{"text_format":"1","workbook":"xlsx","n_sheets":55,"sheets":["Résumé","Pilotage","CA","Hypothèses","Population","Calculs","Rapports","ExecutiveSummary","TarifsServices","TarifsAbos","Evolution CA A0","Investissement","Frais","Associés","Ressources","Plan financier initial","Comptes de résultat 3 ans","SIG","Points morts","Plan de financement à 6 ans","Comptes de résultat A0","Comptes de résultat 6 ans","SIG A0","SIG 6 ans","Plan de trésorerie A0","Plan de trésorerie 6 ans","DAT","Budget","Activités","Synthèse","FabLab","FabCafé","Boutiques","Coworking","Travaux","Installation","Matériel","Loyers","Charges Ext","Licences","Consommables","Stock","Impôts","Salaires","Ventes Stock","Ventes Produits","Prestations","Abos","Locations","Credit-bail","Emprunt","Prêts honneur","PCE","Change","Ammortissements"],"not_rendered":{"charts":27,"images":3,"macros":1,"external_links":0,"defined_names":17,"comments":6,"pivot_tables":0},"unopened":[],"bounds":{"document_bytes":16777216,"sheet_cells":100000,"rows_first":2000,"rows_last":500,"rows_between":2000,"halvings":0,"cell_chars":16384,"cell_head_chars":4096},"cells_cut":0,"cells_raw":0,"read":"whole","date_system":"1900"}

{"sheet":"Résumé","index":0,"n_rows":18,"n_cols":5,"rows_kept":18,"cut":false,"hidden":true,"merged":[]}
[]
[]
[]
[]
[]
[null,null,"Porteur",null,{"$f":"VLOOKUP(\"SquaregoLab\",FabLabs[],7,FALSE)","v":"Joris Navarro"}]
[null,null,"Contact",null,{"$f":"VLOOKUP(\"SquaregoLab\",FabLabs[],8,FALSE)","v":"contact@squaregolab.com"}]
[null,null,"Structure juridique",null,{"$f":"VLOOKUP(\"SquaregoLab\",FabLabs[],4,FALSE)","v":"Inconnue"}]
[]
[null,null,"Localisation",null,{"$f":"VLOOKUP(\"SquaregoLab\",FabLabs[],2,FALSE)","v":"Perpignan"}]
[null,null,"Etablissement",null,{"$f":"Pilotage!D5&\" m²\"","v":"0 m²"}]
[]
[null,null,"Employés",null,{"$f":"ROUND(Pilotage!E68,2) & \" ETP\"","v":"4 ETP"}]
[]
[null,null,"Clients abonnés",null,{"$f":"CA!I36&\" abonnés\"","v":"0 abonnés"}]
[]
[null,null,"Budget initial",null,{"$f":"'Plan financier initial'!E39","v":9571.0000000000018}]
[null,null,"Point mort",null,{"$f":"ROUND(Calculs!C29,0)&\" j\"","v":"684 j"}]

{"sheet":"Pilotage","index":1,"n_rows":94,"n_cols":18,"rows_kept":94,"cut":false,"hidden":false,"merged":[[56,14,56,15],[1,2,1,17],[70,3,70,14],[53,3,53,14],[56,4,56,5],[56,6,56,7],[56,8,56,9],[56,10,56,11],[56,12,56,13]]}
[]
[null,null,"Pilotage"]
[]
[null,"Locaux",null,null,null,"Fonds",null,null,null,null,"Scenario achats","Eco",0]
[null,null,"Surface locaux",0,null,null,"ARE",1631]
[null,null,"Prix m² HT annuel",0,null,null,"Fin de versement de l'ARE","2015-08-01",null,null,"DAT","Taux max"]
[null,null,"Loyer mensuel HT calc",{"$f":"Loyers!F10","v":0},null,null,"Nb mois restant",{"$f":"(YEAR(H6)-YEAR(TODAY()))*12+MONTH(H6)-MONTH(TODAY())","v":5}]
[null,null,"Charges (elec /chauff)",0,null,null,"Taux ARCE",0,null,null,"Ventes"]
[null,null,"Nb mois de cautions",0,null,null,"ARCE",{"$f":"H5*H8*(H7-3)","v":0},null,null,null,"NB semaines de  fermeture",3]
[null,null,"Taux de référence Perpignan",0.34339999999999998,null,null,"Fond propre",10000,null,null,null,"Semaines d'ouverture",{"$f":"D42-M9","v":49}]
[null,null,"Surface dédié au coworking",0,null,null,"Apports en nature",0,null,null,null,"Jours ouvrés",{"$f":"(D42-M9)*E94","v":294}]
[null,null,null,null,null,null,"Apports associés",0,null,null,null,"Nb heures location par an",{"$f":"($D$42-$M$9)*Pilotage!$E$93","v":2156}]
[null,"Divers",null,null,null,null,"Financement participatif",{"$f":"'Plan financier initial'!I17","v":0},null,null,null,"Nb heures OpenLabs par an",{"$f":"($D$42-$M$9)*Pilotage!$E$92","v":392}]
[null,null,"TVA",0.2,null,null,"Contreparties",0.02,null,null,null,"Ratio loc adhérent",0.33]
[null,null,"TTC -> HT",{"$f":"(100/(100+100*Pilotage!$D$14))","v":0.83333333333333337},null,null,"Part plate-forme",0.08,null,null,null,"Ratio loc tarif réduit",0.33]
[null,null,"Taux $ vers €",{"$f":"(TRIM(CLEAN(SUBSTITUTE(Change!E6,\".\",\",\"))))","v":"0,7467"},null,null,"Objectif",{"$f":"H13*(1+H14)*(1+H15)","v":0},"Ecart A0",null,null,"Ratio loc entreprise",0.33]
[null,null,"Aléas",0.02,null,null,"Compte courant d'associés",0,{"$f":"'Plan financier initial'!I41","v":428.99999999999818},null,null,"Tarif réduit",0.1]
[null,null,"Taux d'amortissement linéaire",0.2,null,null,"Financements participatifs",0,null,null,null,"Remise adhérent",0.2]
[null,null,"Impôt IS ? (0 ou 1)",1,null,null,"Autres fonds (NACRE, fondations)",0,"Sub. D'exploit",null,null,"Marge de revente du stock",0.1]
[null,null,"TMO S1 2014",2.2800000000000001E-2,null,null,"Financements privés/sponsors",0,0,null,null,"Marge sur les produits finis",0]
[null,"Banque",null,null,null,null,"Prêts d'honneur",0]
[null,null,"Taux d'intérêt annuel",0.04,null,null,"PCE",0,null,null,null,null,"Année 0","Année 1","Année 2","Année 3","Année 4","Année 5"]
[null,null,"Durée en année",15,null,null,"BFR",0,{"$f":"H23-I17","v":-428.99999999999818},null,null,"Renouvellement des consommables",null,0.25,0.25,0.25,0.25,0.25]
[null,null,"Périodicité (nb fois/an, 4 = trimest.)",4,null,null,null,null,null,null,null,"Renouvellement des équipements",null,0.1,0.1,0.2,0.2,0.2]
[null,null,"Paiement (0=fin/1=début)",0,null,"Prestations","Tarifs horaires","Quantités","ratio /abon","h/sem",null,"Augmentation salaires",null,0.03,0.03,0.03,0.03,0.03]
[null,null,"Date de début du remboursement",{"$f":"DATE(2014,10,1)","v":"2014-10-01"},null,"Formations",0,0,0,{"$f":"H26/(D$42-M$9)","v":0},null,"Estim. des ventes du stock",1,2,2,2,1,1.1000000000000001]
[null,null,{"$f":"\"Montant d'une échéance (\"&12/D24&\" mois)\"","v":"Montant d'une échéance (3 mois)"},{"$f":"Emprunt!C12","v":0},null,"Presta(conseil, accomp)",0,0,0,{"$f":"H27/(D$42-M$9)","v":0},null,"Transf. du stock en produit",0,0,0,0,0,0]
[null,null,"Coût total",{"$f":"Emprunt!C13","v":0},null,"Cours collectifs",0,0,null,{"$f":"H28/M10","v":0},null,"Prog. ventes du stock",{"$f":"PRODUCT($M26:M26)","v":1},1.5,2,2,2,2]
[null,null,"Capital emprunté",0,null,"Privatisation du fablab",0,0,null,{"$f":"H29/(D$42-M$9)","v":0},null,"Progr. des ventes de produits",{"$f":"PRODUCT($M27:M27)","v":0},{"$f":"PRODUCT($M27:N27)","v":0},{"$f":"PRODUCT($M27:O27)","v":0},{"$f":"PRODUCT($M27:P27)","v":0},{"$f":"PRODUCT($M27:Q27)","v":0},{"$f":"PRODUCT($M27:R27)","v":0}]
[null,null,"Besoins (-BI-BFR) perm. couverts",{"$f":"D29/('Plan de financement à 6 ans'!E40-'Plan de financement à 6 ans'!E26-'Plan de financement à 6 ans'!E13)","v":0},null,"Location à emporter Impr.3D",0,0,null,{"$f":"H30/8/(D$42-M$9)","v":0},null,"Stock avant excercice",100,{"$f":"INT(M33+$M$30*N35)","v":220},{"$f":"N33+INT($M$30*O35)","v":438},{"$f":"O33+INT($M$30*P35)","v":876},{"$f":"P33+INT($M$30*Q35)","v":872},{"$f":"Q33+INT($M$30*R35)","v":960}]
[null,null,"Couverture maximale",0.7,null,"Location bureau(0,5j)",0,0,null,null,null,"Stock vendu",{"$f":"M30*M28","v":100},{"$f":"INT(M31*N26)","v":200},400,800,800,880]
[null,null,"Maximum empruntable",{"$f":"('Plan de financement à 6 ans'!E40-'Plan de financement à 6 ans'!E26-'Plan de financement à 6 ans'!E13)*Pilotage!D31","v":6699.7000000000007},null,null,null,null,null,null,null,"Produits vendu",{"$f":"M30*M27","v":0},0,0,0,0,0]
[null,null,"Capital idéal à emprunter",{"$f":"IF('Plan financier initial'!E39-SUM('Plan financier initial'!I16,'Plan financier initial'!I33,'Plan financier initial'!I7) > 0, 'Plan financier initial'!E39-SUM('Plan financier initial'!I7,'Plan financier initial'!I33,'Plan financier initial'!I16), 0)","v":0},null,"Adhésions","Prix année","Quantités",null,null,null,"Stock après excercice",{"$f":"M30-M31-M32","v":0},20,38,76,72,80]
[null,null,null,null,null,"Starter",0,0,{"$f":"Hypothèses!M36","v":96},"Calculé",null,"Restockage idéal",null,{"$f":"IF((N31+N32-M33)/100<0,0,(N31+N32-M33)/100)","v":2},{"$f":"IF((O31+O32-N33)/100<0,0,(O31+O32-N33)/100)","v":3.8},{"$f":"IF((P31+P32-O33)/100<0,0,(P31+P32-O33)/100)","v":7.62},{"$f":"IF((Q31+Q32-P33)/100<0,0,(Q31+Q32-P33)/100)","v":7.24},{"$f":"IF((R31+R32-Q33)/100<0,0,(R31+R32-Q33)/100)","v":8.08}]
[null,"Salaires",null,null,null,"Maker",0,0,{"$f":"ROUND(AVERAGE(I34,Hypothèses!G114),0)","v":98},"Hypothèse",null,"Renouvellement du stock",null,{"$f":"N34*110%","v":2.2000000000000002},{"$f":"O34*110%","v":4.18},{"$f":"P34*110%","v":8.3820000000000014},{"$f":"Q34*110%","v":7.9640000000000013},{"$f":"R34*110%","v":8.8880000000000017}]
[null,null,"Taux Smic horaire brut 2014",9.5299999999999994,null,"Startup",0,0,{"$f":"IF(I35=\"\",I34,I35)","v":98},"Conseillé",null,"Estim des ventes de presta",1,1.3,1.2,1,1.05,1.1000000000000001]
[null,null,"Taux Ch. Salariales",0.22,null,"Pro",0,0,50,"Utilisé",null,"Progression des prestations",{"$f":"PRODUCT($M36:M36)","v":1},{"$f":"PRODUCT($M36:N36)","v":1.3},{"$f":"PRODUCT($M36:O36)","v":1.56},{"$f":"PRODUCT($M36:P36)","v":1.56},{"$f":"PRODUCT($M36:Q36)","v":1.6380000000000001},{"$f":"PRODUCT($M36:R36)","v":1.8018000000000003}]
[null,null,"Nb heures/ semaine",35,null,"Accès atelier",0,0,null,null,null,"Estimation des locations",1,1.45,1.2,1.1000000000000001,1.05,1]
[null,null,"Plafond horaire de la sécurité sociale",23,null,"Accès atelier réduit",0,0,null,null,null,"Nb h / sem / machine",{"$f":"H51","v":3.1111111111111112},{"$f":"M39*N38","v":4.5111111111111111},{"$f":"N39*O38","v":5.4133333333333331},{"$f":"O39*P38","v":5.9546666666666672},{"$f":"P39*Q38","v":6.2524000000000006},{"$f":"Q39*R38","v":6.2524000000000006}]
[null,null,"Taux Ch. Patronales",0.42,null,null,null,null,null,null,null,"Progression des locations",{"$f":"PRODUCT($M38:M38)","v":1},{"$f":"PRODUCT($M38:N38)","v":1.45},{"$f":"PRODUCT($M38:O38)","v":1.74},{"$f":"PRODUCT($M38:P38)","v":1.9140000000000001},{"$f":"PRODUCT($M38:Q38)","v":2.0097},{"$f":"PRODUCT($M38:R38)","v":2.0097}]
[null,null,"Nb Mois",12,null,"Machines","Tarifs horaires","Quantités","Nb machines","Utilisation",null,"Bénéfices",{"$f":"'Comptes de résultat 6 ans'!G84","v":""},{"$f":"'Comptes de résultat 6 ans'!H84","v":2099.832080000022},{"$f":"'Comptes de résultat 6 ans'!I84","v":203011.55387506666},{"$f":"'Comptes de résultat 6 ans'!J84","v":611577.34178509645},{"$f":"'Comptes de résultat 6 ans'!K84","v":605074.53308563086},{"$f":"'Comptes de résultat 6 ans'!L84","v":681412.13648320583}]
[null,null,"Nb semaines",52,null,"Découpe laser",0,7,0,{"$f":"H42/H$51","v":2.25},null,"Pertes",{"$f":"'Comptes de résultat 6 ans'!R84","v":93717.042850000027},{"$f":"'Comptes de résultat 6 ans'!S84","v":""},{"$f":"'Comptes de résultat 6 ans'!T84","v":""},{"$f":"'Comptes de résultat 6 ans'!U84","v":""},{"$f":"'Comptes de résultat 6 ans'!V84","v":""},{"$f":"'Comptes de résultat 6 ans'!W84","v":""}]
[null,null,"Gratification horaire min du stagiaire",{"$f":"(D39*12.5%)","v":2.875},null,"Imprimante 3D",0,6,0,1.9285714285714286,null,"Point mort",{"$f":"Calculs!C29","v":684.40514832692315},{"$f":"Calculs!D29","v":356.36567524615378},{"$f":"Calculs!E29","v":184.31692453119229},{"$f":"Calculs!F29","v":82.282412621430126},{"$f":"Calculs!G29","v":84.826901286222025},{"$f":"Calculs!H29","v":79.194205934951341}]
[null,null,"Gratification mensuelle min du stagiaire",520,null,"Petite imprimante 3D",0,3,0,0.9642857142857143,null,null,{"$f":"IF(M42<>\"\",M42*-1,\"\")","v":-93717.042850000027},"","","","",""]
[null,null,"Nb heures/mois",{"$f":"D38*D42/D41","v":151.66666666666666},null,"Découpe vinyle",0,1,0,0.3214285714285714,null,null,{"$f":"E68","v":4},{"$f":"G68","v":4},{"$f":"I68","v":4},{"$f":"K68","v":4},{"$f":"M68","v":4},{"$f":"O68","v":4}]
[null,null,"SMIC brut",{"$f":"D45*D36","v":1445.3833333333332},null,"Petite fraiseuse",0,1,0,0.3214285714285714,null,"Cumulés",{"$f":"SUM($M41:M41)+SUM($M44:M44)","v":-93717.042850000027},{"$f":"SUM($M41:N41)+SUM($M44:N44)","v":-91617.210770000005},{"$f":"SUM($M41:O41)+SUM($M44:O44)","v":111394.34310506665},{"$f":"SUM($M41:P41)+SUM($M44:P44)","v":722971.68489016313},{"$f":"SUM($M41:Q41)+SUM($M44:Q44)","v":1328046.2179757939},{"$f":"SUM($M41:R41)+SUM($M44:R44)","v":2009458.3544589996}]
[null,null,"Aléas",0,null,"Grande fraiseuse",0,6,0,1.9285714285714286,null,"Chiffre d'affaire",{"$f":"'Comptes de résultat 6 ans'!R82","v":104000},{"$f":"'Comptes de résultat 6 ans'!S82","v":208000},{"$f":"'Comptes de résultat 6 ans'!T82","v":416000},{"$f":"'Comptes de résultat 6 ans'!U82","v":832000},{"$f":"'Comptes de résultat 6 ans'!V82","v":832000},{"$f":"'Comptes de résultat 6 ans'!W82","v":915200}]
[null,null,"Formations",5.4999999999999997E-3,null,"Machine à coudre",0,0,0,0,null,"Charges",{"$f":"'Comptes de résultat 6 ans'!G82","v":197717.04285000003},{"$f":"'Comptes de résultat 6 ans'!H82","v":205900.16791999998},{"$f":"'Comptes de résultat 6 ans'!I82","v":212988.44612493334},{"$f":"'Comptes de résultat 6 ans'!J82","v":220422.65821490358},{"$f":"'Comptes de résultat 6 ans'!K82","v":226925.46691436914},{"$f":"'Comptes de résultat 6 ans'!L82","v":233787.86351679414}]
[null,null,"Nb semaines CP",5,null,"Machine à broder/coudre",0,3,0,0.9642857142857143]
[null,null,null,null,null,"Presse à chaud",0,1,0,0.3214285714285714]
[null,null,null,null,null,null,"Moyenne",{"$f":"AVERAGE(H42:H50)","v":3.1111111111111112},{"$f":"SUM(I42:I50)","v":0},{"$f":"AVERAGE(J42:J50)","v":1}]
[null,null,null,null,null,null,null,{"$f":"\"soit \"&ROUND(SUM(H42:H50)/E94,2)&\" h/j\"","v":"soit 4,67 h/j"},{"$f":"SUM(H42:H50)","v":28}]
[null,null,null,null,null,null,null,{"$f":"SUM(H42:H50)*M10","v":1372}]
[null,null,null,"Ressources humaines"]
[]
[null,null,{"$f":"Salaires!B7","v":"Poste"},null,{"$f":"Salaires!E7","v":"Heures / semaine"},{"$f":"Salaires!Q7","v":"Nombre d'employé à ce poste"},{"$f":"$E$56","v":"Heures / semaine"},{"$f":"$F$56","v":"Nombre d'employé à ce poste"},{"$f":"$E$56","v":"Heures / semaine"},{"$f":"$F$56","v":"Nombre d'employé à ce poste"},{"$f":"$E$56","v":"Heures / semaine"},{"$f":"$F$56","v":"Nombre d'employé à ce poste"},{"$f":"$E$56","v":"Heures / semaine"},{"$f":"$F$56","v":"Nombre d'employé à ce poste"},{"$f":"$E$56","v":"Heures / semaine"},{"$f":"$F$56","v":"Nombre d'employé à ce poste"},"Coût horaire"]
[null,null,null,"Salire brut","Année 0",null,"Année 1",null,"Année 2",null,"Année 3",null,"Année 4",null,"Année 5"]
[null,null,null,null,null,null,{"$f":"N25","v":0.03},null,{"$f":"O25","v":0.03},null,{"$f":"P25","v":0.03},null,{"$f":"Q25","v":0.03},null,{"$f":"R25","v":0.03}]
[null,null,"Associé",2500,35,2,35,2,35,2,35,2,35,2,35,2,{"$f":"Salaires!V8","v":26.646990881458969}]
[null,null,"Community manager",2200,35,1,35,1,35,1,35,1,35,1,35,1,{"$f":"Salaires!V9","v":23.522300303951369}]
[null,null,"Developpeur",2000,35,1,35,1,35,1,35,1,35,1,35,1,{"$f":"Salaires!V10","v":21.439173252279637}]
[null,null,"administrateur",2000,35,0,35,0,35,0,35,0,35,0,35,0,{"$f":"Salaires!V11","v":21.439173252279637}]
[null,null,"Salarié 5",1800,35,0,35,0,35,0,35,0,35,0,35,0,{"$f":"Salaires!V12","v":19.356046200607903}]
[null,null,"Salarié 6",{"$f":"D46","v":1445.3833333333332},35,0,35,0,35,0,35,0,35,0,35,0,{"$f":"Salaires!V13","v":15.662488344072946}]
[null,null,"Stagiaire",{"$f":"D44","v":520},35,0,35,0,35,0,35,0,35,0,35,0,{"$f":"Salaires!V14","v":4.1181276595744682}]
[null,null,"Masse salariale",null,{"$f":"Salaires!T16","v":161630.22400000002},null,{"$f":"Salaires!T29","v":166359.13071999999},null,{"$f":"Salaires!T42","v":171229.90464160001},null,{"$f":"Salaires!T55","v":176246.80178084801},null,{"$f":"Salaires!T68","v":181414.20583427342},null,{"$f":"Salaires!T81","v":186736.63200930168}]
[null,null,"Heures / semaines ",null,{"$f":"E59*F59+E60*F60+E61*F61+E62*F62+E63*F63+E64*F64+E65*F65","v":140},null,{"$f":"G59*H59+G60*H60+G61*H61+G62*H62+G63*H63+G64*H64+G65*H65","v":140},null,{"$f":"I59*J59+I60*J60+I61*J61+I62*J62+I63*J63+I64*J64+I65*J65","v":140},null,{"$f":"K59*L59+K60*L60+K61*L61+K62*L62+K63*L63+K64*L64+K65*L65","v":140},null,{"$f":"M59*N59+M60*N60+M61*N61+M62*N62+M63*N63+M64*N64+M65*N65","v":140},null,{"$f":"O59*P59+O60*P60+O61*P61+O62*P62+O63*P63+O64*P64+O65*P65","v":140}]
[null,null,"ETP",null,{"$f":"E67/35","v":4},null,{"$f":"G67/35","v":4},null,{"$f":"I67/35","v":4},null,{"$f":"K67/35","v":4},null,{"$f":"M67/35","v":4},null,{"$f":"O67/35","v":4}]
[]
[]
[null,null,null,"Agenda"]
[]
[null,null,null,null,null,"Lundi","Mardi","Mercredi","Jeudi","Vendredi","Samedi","Dimanche"]
[null,null,null,null,"8h - 9h"]
[null,null,null,null,"9h - 10h"]
[null,null,null,null,"10h - 11h",1,1,1,1,1,1]
[null,null,null,null,"11h - 12h",1,1,1,1,1,1]
[null,null,null,null,"12h - 13h",1,1,1,1,1,1]
[null,null,null,null,"13h - 14h",1,1,1,1,1,1]
[null,null,null,null,"14h - 15h",1,1,1,1,1,1]
[null,null,null,null,"15h - 16h",1,-1,1,1,1,1]
[null,null,null,null,"16h - 17h",1,-1,1,1,1,1]
[null,null,null,null,"17h - 18h",1,-1,1,1,1,1]
[null,null,null,null,"18h - 19h",1,-1,1,1,-1,1]
[null,null,null,null,"19h - 20h",null,null,1,null,-1]
[null,null,null,null,"20h - 21h",null,null,1,null,-1]
[null,null,null,null,"21h - 22h",null,null,1,null,-1]
[null,null,null,null,"22h - 23h"]
[null,null,null,null,"23h - 24h"]
[]
[null,null,null,"Total",{"$f":"SUM(F91:L91)","v":52},{"$f":"COUNTIF(F74:F89,\">0\")","v":9},{"$f":"COUNTIF(G74:G89,\">0\")","v":5},12,9,8,9,0]
[null,null,null,"Open labs",{"$f":"SUM(F92:L92)","v":8},{"$f":"COUNTIF(F74:F89,\"<0\")","v":0},{"$f":"COUNTIF(G74:G89,\"<0\")","v":4},0,0,4,0,0]
[null,null,null,"Location",{"$f":"E91-E92","v":44},{"$f":"F91-F92","v":9},1,12,9,4,9,0]
[null,null,null,"Ouvré",{"$f":"SUM(F94:L94)","v":6},{"$f":"IF(ABS(SUM(F74:F89))>0,1,0)","v":1},{"$f":"IF(ABS(SUM(G74:G89))>0,1,0)","v":1},1,1,1,1,0]

{"sheet":"CA","index":2,"n_rows":55,"n_cols":22,"rows_kept":55,"cut":false,"hidden":false,"merged":[[10,9,10,10],[22,8,22,9],[30,8,30,9],[35,9,35,10],[39,8,39,9]]}
[]
[null,null,null,null,null,null,null,null,null,null,null,null,"Objectifs"]
[]
[null,null,null,null,null,null,null,null,null,null,null,null,"Revenus HT",null,"CA /an",null,"CA /sem.","CA /jour","Qtt/j"]
[]
[null,null,null,null,null,null,null,null,null,null,null,null,"Ventes de produits finis",null,0,null,{"$f":"ROUND(O6/(Pilotage!$M$10),1)","v":0},{"$f":"ROUND(O6/(Pilotage!$M$11),1)","v":0}]
[]
[null,null,null,null,null,null,null,null,null,null,null,null,"Ventes",null,{"$f":"SUM(O9:O14)","v":{"$error":"#REF!"}},{"$f":"SUM(P9:P14)","v":0},{"$f":"SUM(Q9:Q14)","v":{"$error":"#REF!"}},{"$f":"SUM(R9:R14)","v":{"$error":"#REF!"}}]
[null,null,null,null,null,null,null,null,null,null,null,null,null,"Cafés",{"$f":"'Ventes Stock'!#REF!","v":{"$error":"#REF!"}},null,{"$f":"ROUND(O9/(Pilotage!$M$10),1)","v":{"$error":"#REF!"}},{"$f":"ROUND(O9/(Pilotage!$M$11),1)","v":{"$error":"#REF!"}},{"$f":"R9/'Ventes Stock'!#REF!","v":{"$error":"#REF!"}},"/j"]
[null,null,null,null,{"$f":"Résumé!C6","v":"Porteur"},{"$f":"Résumé!E6","v":"Joris Navarro"},null,null,{"$f":"Résumé!C7","v":"Contact"},"info@diod.co",null,null,null,"Thés",{"$f":"'Ventes Stock'!#REF!","v":{"$error":"#REF!"}},null,{"$f":"ROUND(O10/(Pilotage!$M$10),1)","v":{"$error":"#REF!"}},{"$f":"ROUND(O10/(Pilotage!$M$11),1)","v":{"$error":"#REF!"}},{"$f":"R10/'Ventes Stock'!#REF!","v":{"$error":"#REF!"}},"/j"]
[null,null,null,null,"Version",0,null,null,"Date d'extraction",{"$f":"TODAY()","v":"2015-03-03"},null,null,null,"Boissons",{"$f":"'Ventes Stock'!#REF!","v":{"$error":"#REF!"}},null,{"$f":"ROUND(O11/(Pilotage!$M$10),1)","v":{"$error":"#REF!"}},{"$f":"ROUND(O11/(Pilotage!$M$11),1)","v":{"$error":"#REF!"}},{"$f":"R11/'Ventes Stock'!#REF!","v":{"$error":"#REF!"}},"/j"]
[null,null,null,null,null,null,null,null,null,null,null,null,null,"Boissons"]
[null,null,null,null,null,null,null,null,null,null,null,null,null,"Viennoiseries",{"$f":"'Ventes Stock'!#REF!","v":{"$error":"#REF!"}},null,{"$f":"ROUND(O13/(Pilotage!$M$10),1)","v":{"$error":"#REF!"}},{"$f":"ROUND(O13/(Pilotage!$M$11),1)","v":{"$error":"#REF!"}},{"$f":"R13/'Ventes Stock'!#REF!","v":{"$error":"#REF!"}},"/j"]
[null,null,null,null,"Informations sur le projet",null,null,null,null,null,null,null,null,"Matières premières",{"$f":"'Ventes Stock'!$M$5-SUM('Ventes Stock'!#REF!)","v":{"$error":"#REF!"}},null,{"$f":"ROUND(O14/(Pilotage!$M$10),1)","v":{"$error":"#REF!"}},{"$f":"ROUND(O14/(Pilotage!$M$11),1)","v":{"$error":"#REF!"}},null,null,{"$f":"R14*6","v":{"$error":"#REF!"}}]
[null,null,null,null,null,null,null,null,null,null,null,null,"Prestations de services",null,{"$f":"SUM(O16:O21)","v":0},{"$f":"SUM(P16:P21)","v":0},{"$f":"SUM(Q16:Q21)","v":0},{"$f":"SUM(R16:R21)","v":0}]
[null,null,null,null,{"$f":"Résumé!C10","v":"Localisation"},{"$f":"Résumé!E10","v":"Perpignan"},null,null,"R.H.",{"$f":" SUM(Pilotage!$F$59:$F$65)&\" personne(s) la première année\"","v":"4 personne(s) la première année"},null,null,null,{"$f":"E24","v":"Formations"},{"$f":"Prestations!$M7","v":0},null,{"$f":"ROUND(O16/(Pilotage!$M$10),1)","v":0},{"$f":"ROUND(O16/(Pilotage!$M$11),1)","v":0},{"$f":"R16/(F24*Pilotage!$D$15)","v":{"$error":"#DIV/0!"}},"h/j"]
[null,null,null,null,"Lieu",null,null,null,"-",{"$f":" Pilotage!$F$59 &\" gérant + \" & Pilotage!$F$61 & \" employé + \" &Pilotage!$F$65& \" stagiaire (\"&12*Pilotage!$F$65&\"mois)\"","v":"2 gérant + 1 employé + 0 stagiaire (0mois)"},null,null,null,"Presta(conseil, accomp)",{"$f":"Prestations!$M8","v":0},null,{"$f":"ROUND(O17/(Pilotage!$M$10),1)","v":0},{"$f":"ROUND(O17/(Pilotage!$M$11),1)","v":0},{"$f":"R17/(F25*Pilotage!$D$15)","v":{"$error":"#DIV/0!"}},"h/j"]
[null,null,null,null,{"$f":"Résumé!C11","v":"Etablissement"},{"$f":"Résumé!E11","v":"0 m²"},null,null,"-","Embauche d'un ingénieur la 2ème année",null,null,null,"Cours collectifs",{"$f":"Prestations!$M9","v":0},null,{"$f":"ROUND(O18/(Pilotage!$M$10),1)","v":0},{"$f":"ROUND(O18/(Pilotage!$M$11),1)","v":0},{"$f":"R18/(F26*Pilotage!$D$15)","v":{"$error":"#DIV/0!"}},"h/j"]
[null,null,null,null,"Loyer",{"$f":"Pilotage!$D$7& \" € HT/mois\"","v":"0 € HT/mois"},null,null,null,null,null,null,null,"Privatisation du fablab",{"$f":"Prestations!$M10","v":0},null,{"$f":"ROUND(O19/(Pilotage!$M$10),1)","v":0},{"$f":"ROUND(O19/(Pilotage!$M$11),1)","v":0},{"$f":"R19/(F27*Pilotage!$D$15)","v":{"$error":"#DIV/0!"}},"h/j"]
[null,null,null,null,null,null,null,null,null,null,null,null,null,"Location à emporter Impr.3D",{"$f":"Prestations!$M11","v":0},null,{"$f":"ROUND(O20/(Pilotage!$M$10),1)","v":0},{"$f":"ROUND(O20/(Pilotage!$M$11),1)","v":0},{"$f":"R20/(F28*Pilotage!$D$15)","v":{"$error":"#DIV/0!"}},"h/j"]
[null,null,null,null,"Tarifs TTC",null,null,null,null,null,null,null,null,"Location bureau(0,5j)",{"$f":"Prestations!$M12","v":0},null,{"$f":"ROUND(O21/(Pilotage!$M$10),1)","v":0},{"$f":"ROUND(O21/(Pilotage!$M$11),1)","v":0},{"$f":"R21/(F29*Pilotage!$D$15)","v":{"$error":"#DIV/0!"}},"h/j"]
[null,null,null,null,null,null,null,null,null,null,null,null,"Locations",null,{"$f":"SUM(O23:O31)","v":{"$error":"#REF!"}},{"$f":"SUM(P23:P31)","v":0},{"$f":"SUM(Q23:Q31)","v":{"$error":"#REF!"}},{"$f":"SUM(R23:R31)","v":{"$error":"#REF!"}}]
[null,null,null,null,{"$f":"Pilotage!F25","v":"Prestations"},{"$f":"Pilotage!G25","v":"Tarifs horaires"},null,null,{"$f":"Pilotage!H25","v":"Quantités"},null,"Commentaires",null,null,{"$f":"E43","v":"Découpe laser"},{"$f":"Locations!#REF!+Locations!#REF!+Locations!#REF!","v":{"$error":"#REF!"}},null,{"$f":"ROUND(O23/(Pilotage!$M$10),1)","v":{"$error":"#REF!"}},{"$f":"ROUND(O23/(Pilotage!$M$11),1)","v":{"$error":"#REF!"}},{"$f":"I43/Pilotage!$E$94","v":1.1666666666666667},"h/j"]
[null,null,null,null,{"$f":"Pilotage!F26","v":"Formations"},{"$f":"Pilotage!G26","v":0},null,null,{"$f":"Pilotage!H26","v":0},"h/an",{"$f":"\"soit \" &ROUND((I24)/(I$36),1) & \" h/abo./an\"","v":{"$error":"#DIV/0!"}},null,null,"Imprimante 3D",{"$f":"Locations!#REF!+Locations!#REF!+Locations!#REF!","v":{"$error":"#REF!"}},null,{"$f":"ROUND(O24/(Pilotage!$M$10),1)","v":{"$error":"#REF!"}},{"$f":"ROUND(O24/(Pilotage!$M$11),1)","v":{"$error":"#REF!"}},{"$f":"I44/Pilotage!$E$94","v":1},"h/j"]
[null,null,null,null,{"$f":"Pilotage!F27","v":"Presta(conseil, accomp)"},{"$f":"Pilotage!G27","v":0},null,null,{"$f":"Pilotage!H27","v":0},"h/an",{"$f":"\"soit \"&ROUND(I25/I$36,1)&\" h/abo./an ou \" & ROUND(I25/8,1)&\" j/an de prestation\"","v":{"$error":"#DIV/0!"}},null,null,"Petite imprimante 3D",{"$f":"Locations!#REF!+Locations!#REF!+Locations!#REF!","v":{"$error":"#REF!"}},null,{"$f":"ROUND(O25/(Pilotage!$M$10),1)","v":{"$error":"#REF!"}},{"$f":"ROUND(O25/(Pilotage!$M$11),1)","v":{"$error":"#REF!"}},{"$f":"I45/Pilotage!$E$94","v":0.5},"h/j"]
[null,null,null,null,{"$f":"Pilotage!F28","v":"Cours collectifs"},{"$f":"Pilotage!G28","v":0},null,null,{"$f":"Pilotage!H28","v":0},"h/an",{"$f":"\"soit \" &ROUND((I26/5)*4.33/50,1) & \" cours de 5 pers./mois\"","v":"soit 0 cours de 5 pers./mois"},null,null,"Découpe vinyle",{"$f":"Locations!#REF!+Locations!#REF!+Locations!#REF!","v":{"$error":"#REF!"}},null,{"$f":"ROUND(O26/(Pilotage!$M$10),1)","v":{"$error":"#REF!"}},{"$f":"ROUND(O26/(Pilotage!$M$11),1)","v":{"$error":"#REF!"}},{"$f":"I46/Pilotage!$E$94","v":0.16666666666666666},"h/j"]
[null,null,null,null,{"$f":"Pilotage!F29","v":"Privatisation du fablab"},{"$f":"Pilotage!G29","v":0},null,null,{"$f":"Pilotage!H29","v":0},"h/an",{"$f":"\"soit \" &ROUND((I27/8),2) & \" j/an\"","v":"soit 0 j/an"},null,null,"Petite fraiseuse",{"$f":"Locations!#REF!+Locations!#REF!+Locations!#REF!","v":{"$error":"#REF!"}},null,{"$f":"ROUND(O27/(Pilotage!$M$10),1)","v":{"$error":"#REF!"}},{"$f":"ROUND(O27/(Pilotage!$M$11),1)","v":{"$error":"#REF!"}},{"$f":"I47/Pilotage!$E$94","v":0.16666666666666666},"h/j"]
[null,null,null,null,{"$f":"Pilotage!F30","v":"Location à emporter Impr.3D"},{"$f":"Pilotage!G30","v":0},null,null,{"$f":"Pilotage!H30","v":0},"h/an",{"$f":"\"soit \" &ROUND((I28/8),2) & \" j/an\"","v":"soit 0 j/an"},null,null,"Grande fraiseuse",{"$f":"Locations!#REF!+Locations!#REF!+Locations!#REF!","v":{"$error":"#REF!"}},null,{"$f":"ROUND(O28/(Pilotage!$M$10),1)","v":{"$error":"#REF!"}},{"$f":"ROUND(O28/(Pilotage!$M$11),1)","v":{"$error":"#REF!"}},{"$f":"I48/Pilotage!$E$94","v":1},"h/j"]
[null,null,null,null,{"$f":"Pilotage!F31","v":"Location bureau(0,5j)"},{"$f":"Pilotage!G31","v":0},null,null,{"$f":"Pilotage!H31","v":0},"loyers",null,null,null,"Machine à coudre",{"$f":"Locations!#REF!+Locations!#REF!+Locations!#REF!","v":{"$error":"#REF!"}},null,{"$f":"ROUND(O29/(Pilotage!$M$10),1)","v":{"$error":"#REF!"}},{"$f":"ROUND(O29/(Pilotage!$M$11),1)","v":{"$error":"#REF!"}},{"$f":"I49/Pilotage!$E$94","v":0},"h/j"]
[null,null,null,null,null,null,null,null,null,null,null,null,null,"Machine à broder/coudre",{"$f":"Locations!#REF!+Locations!#REF!+Locations!#REF!","v":{"$error":"#REF!"}},null,{"$f":"ROUND(O30/(Pilotage!$M$10),1)","v":{"$error":"#REF!"}},{"$f":"ROUND(O30/(Pilotage!$M$11),1)","v":{"$error":"#REF!"}},{"$f":"I50/Pilotage!$E$94","v":0.5},"h/j"]
[null,null,null,null,{"$f":"Pilotage!F33","v":"Adhésions"},{"$f":"Pilotage!G33","v":"Prix année"},null,null,{"$f":"Pilotage!H33","v":"Quantités"},null,"Commentaires",null,null,"Presse à chaud",{"$f":"Locations!#REF!+Locations!#REF!+Locations!#REF!","v":{"$error":"#REF!"}},null,{"$f":"ROUND(O31/(Pilotage!$M$10),1)","v":{"$error":"#REF!"}},{"$f":"ROUND(O31/(Pilotage!$M$11),1)","v":{"$error":"#REF!"}},{"$f":"I51/Pilotage!$E$94","v":0.16666666666666666},"h/j",{"$f":"SUM(S23:S31)","v":4.666666666666667},{"$f":"U31*6","v":28}]
[null,1,1,0,{"$f":"Pilotage!F34&\" (étudiants, sans emploi, ...)\"","v":"Starter (étudiants, sans emploi, ...)"},{"$f":"Pilotage!G34","v":0},null,null,{"$f":"Pilotage!H34","v":0},"adh.",{"$f":"\"soit \" &ROUND(F32/12,1)&\" €/mois pour \"&B32&\" h/an de formation, \"&C32&\" h/mois de temps machine \"&IF(D32>0,\", \"&D32&\" h/m d'accompagnement personnalisé\",\"\")&\" (valeur : \"&C32*12*F$52+D32*F$25*12+B32*F$24&\" €)\"","v":"soit 0 €/mois pour 1 h/an de formation, 1 h/mois de temps machine  (valeur : 0 €)"},null,"Accès",null,{"$f":"SUM(O33:O34)","v":0},null,{"$f":"ROUND(O32/(Pilotage!$M$10),1)","v":0},{"$f":"ROUND(O32/(Pilotage!$M$11),1)","v":0}]
[null,1,1,0,{"$f":"Pilotage!F35","v":"Maker"},{"$f":"Pilotage!G35","v":0},null,null,{"$f":"Pilotage!H35","v":0},"adh.",{"$f":"\"soit \" &ROUND(F33/12,1)&\" €/mois pour \"&B33&\" h/an de formation, \"&C33&\" h/m de temps machine \"&IF(D33>0,\", \"&D33&\" h/mois d'accompagnement personnalisé\",\"\")&\" au lieu de \"&C33*12*F$52+D33*F$25*12+B33*F$24&\" €\"","v":"soit 0 €/mois pour 1 h/an de formation, 1 h/m de temps machine  au lieu de 0 €"},null,null,{"$f":"Pilotage!F38","v":"Accès atelier"},{"$f":"Abos!M12","v":0},null,{"$f":"ROUND(O33/(Pilotage!$M$10),1)","v":0},{"$f":"ROUND(O33/(Pilotage!$M$11),1)","v":0},{"$f":"F36/Pilotage!$E$94","v":0},"h/j"]
[null,1,3,1,{"$f":"Pilotage!F36","v":"Startup"},{"$f":"Pilotage!G36","v":0},null,null,{"$f":"Pilotage!H36","v":0},"adh.",{"$f":"\"soit \" &ROUND(F34/12,1)&\" €/mois pour \"&B34&\" h/an de formation, \"&C34&\" h/mois de temps machine \"&IF(D34>0,\", \"&D34&\" h/mois d'accompagnement personnalisé\",\"\")&\" (valeur : \"&C34*12*F$52+D34*F$25*12+B34*F$24&\" €)\"","v":"soit 0 €/mois pour 1 h/an de formation, 3 h/mois de temps machine , 1 h/mois d'accompagnement personnalisé (valeur : 0 €)"},null,null,{"$f":"Pilotage!F39","v":"Accès atelier réduit"},{"$f":"Abos!M13","v":0},null,{"$f":"ROUND(O34/(Pilotage!$M$10),1)","v":0},{"$f":"ROUND(O34/(Pilotage!$M$11),1)","v":0},{"$f":"F37/Pilotage!$E$94","v":0},"h/j"]
[null,2,5,2,{"$f":"Pilotage!F37","v":"Pro"},{"$f":"Pilotage!G37","v":0},null,null,{"$f":"Pilotage!H37","v":0},"adh.",{"$f":"\"soit \" &ROUND(F35/12,1)&\" €/mois pour \"&B35&\" h/an de formation, \"&C35&\" h/m de temps machine \"&IF(D35>0,\", \"&D35&\" h/m d'accompagnement personnalisé\",\"\")&\" (valeur : \"&C35*12*F$52+D35*F$25*12+B35*F$24&\" €)\"","v":"soit 0 €/mois pour 2 h/an de formation, 5 h/m de temps machine , 2 h/m d'accompagnement personnalisé (valeur : 0 €)"},null,"Abonnements",null,{"$f":"Abos!$M$5-O32","v":0},null,{"$f":"ROUND(O35/(Pilotage!$M$10),1)","v":0},{"$f":"ROUND(O35/(Pilotage!$M$11),1)","v":0},{"$f":"ROUND(R35/((F32*I32+F33*I33+F34*I34+F35*I35)/I36),2)","v":{"$error":"#DIV/0!"}},"/j"]
[null,null,null,null,{"$f":"Pilotage!F38","v":"Accès atelier"},{"$f":"Pilotage!G38","v":0},{"$f":"Pilotage!H38","v":0},"Total",{"$f":"SUM(I32:I35)","v":0},"adhérents ( chiffres basé sur la fréquentation de fablabs en France)",null,null,null,null,{"$f":"O4","v":"CA /an"},{"$f":"P4","v":0},{"$f":"Q4","v":"CA /sem."},{"$f":"R4","v":"CA /jour"}]
[null,null,null,null,{"$f":"Pilotage!F39","v":"Accès atelier réduit"},{"$f":"Pilotage!G39","v":0},{"$f":"Pilotage!H39","v":0},null,{"$f":"Hypothèses!D106","v":11453},"associations dans le bassin de perpignan",null,null,"Total",null,{"$f":"SUM(O8)+SUM(O35)+O15+O22+SUM(O33:O34)","v":{"$error":"#REF!"}},{"$f":"SUM(P8)+SUM(P35)+P15+P22+SUM(P33:P34)","v":0},{"$error":"#REF!"},{"$error":"#REF!"}]
[null,null,null,null,null,null,null,null,{"$f":"Hypothèses!D109","v":1145.3},"assoc. représentant 10% de ce marché"]
[null,null,null,null,null,null,null,null,null,null,null,null,null,null,{"$f":"'Comptes de résultat 3 ans'!D13-CA!O37","v":{"$error":"#REF!"}}]
[null,null,null,null,{"$f":"Pilotage!F41","v":"Machines"},{"$f":"Pilotage!G41","v":"Tarifs horaires"},null,null,{"$f":"Pilotage!H41","v":"Quantités"},null,"Commentaires"]
[null,null,null,null,null,{"$f":"Pilotage!$M$16","v":0.33},{"$f":"Pilotage!$M$15","v":0.33},{"$f":"Pilotage!$M$14","v":0.33}]
[null,null,null,null,null,"Plein tarif","Réduit","Adhérent"]
[null,null,null,null,{"$f":"Pilotage!F42","v":"Découpe laser"},{"$f":"Pilotage!G42","v":0},{"$f":"F43-F43*Pilotage!$M$17","v":0},{"$f":"F43-F43*Pilotage!$M$18","v":0},{"$f":"Pilotage!H42","v":7},"h/sem","Gravure métal, verre. Découpe cuir, plexi, carton, bois fin"]
[null,null,null,null,{"$f":"Pilotage!F43","v":"Imprimante 3D"},{"$f":"Pilotage!G43","v":0},{"$f":"F44-F44*Pilotage!$M$17","v":0},{"$f":"F44-F44*Pilotage!$M$16","v":0},{"$f":"Pilotage!H43","v":6},"h/sem","Impression d'objets 3D, avec ajout de matière plastique"]
[null,null,null,null,{"$f":"Pilotage!F44","v":"Petite imprimante 3D"},{"$f":"Pilotage!G44","v":0},{"$f":"F45-F45*Pilotage!$M$17","v":0},{"$f":"F45-F45*Pilotage!$M$16","v":0},{"$f":"Pilotage!H44","v":3},"h/sem"]
[null,null,null,null,{"$f":"Pilotage!F45","v":"Découpe vinyle"},{"$f":"Pilotage!G45","v":0},{"$f":"F46-F46*Pilotage!$M$17","v":0},{"$f":"F46-F46*Pilotage!$M$16","v":0},{"$f":"Pilotage!H45","v":1},"h/sem","Découpe de stickers, papier"]
[null,null,null,null,{"$f":"Pilotage!F46","v":"Petite fraiseuse"},{"$f":"Pilotage!G46","v":0},{"$f":"F47-F47*Pilotage!$M$17","v":0},{"$f":"F47-F47*Pilotage!$M$16","v":0},{"$f":"Pilotage!H46","v":1},"h/sem","Scan et modelage 3D"]
[null,null,null,null,{"$f":"Pilotage!F47","v":"Grande fraiseuse"},{"$f":"Pilotage!G47","v":0},{"$f":"F48-F48*Pilotage!$M$17","v":0},{"$f":"F48-F48*Pilotage!$M$16","v":0},{"$f":"Pilotage!H47","v":6},"h/sem","Découpe de bois, petites et  grandes dimensions pour meubles, structures, ..."]
[null,null,null,null,{"$f":"Pilotage!F48","v":"Machine à coudre"},{"$f":"Pilotage!G48","v":0},{"$f":"F49-F49*Pilotage!$M$17","v":0},{"$f":"F49-F49*Pilotage!$M$16","v":0},{"$f":"Pilotage!H48","v":0},"h/sem","Couture"]
[null,null,null,null,{"$f":"Pilotage!$F49","v":"Machine à broder/coudre"},{"$f":"Pilotage!G49","v":0},{"$f":"F50-F50*Pilotage!$M$17","v":0},{"$f":"F50-F50*Pilotage!$M$16","v":0},{"$f":"Pilotage!H49","v":3},"h/sem","Couture et broderie"]
[null,null,null,null,{"$f":"Pilotage!$F50","v":"Presse à chaud"},{"$f":"Pilotage!G50","v":0},{"$f":"F51-F51*Pilotage!$M$17","v":0},{"$f":"F51-F51*Pilotage!$M$16","v":0},{"$f":"Pilotage!H50","v":1},"h/sem","Flocage de t-shirt"]
[null,null,null,null,"Prix moyen",{"$f":"H43","v":0},null,null,{"$f":"\"soit \"&SUM(I43:I51)*Pilotage!M10","v":"soit 1372"},"h/an"]
[]
[null,null,null,null,null,null,null,null,{"$f":"SUM(I43:I51)","v":28}]
[null,null,null,null,null,{"$f":"C35*12*F$52+D35*F$25*12+B35*F$24","v":0}]

{"sheet":"Hypothèses","index":3,"n_rows":114,"n_cols":14,"rows_kept":114,"cut":false,"hidden":true,"merged":[[75,3,75,4],[75,5,75,6],[75,7,75,8]]}
[null,null,null,null,null,"Formulaire DGCIS",null,"Contacter Interfabs"]
[]
[null,null,"Dénomination","Lieu","Dept","Forme jur.","APE(NAF)","Commentaire","Contacts","mails","téléphone","Population","Abonnés","Ratio"]
[null,null,"Antibes NavLab","Antibes",6,"SASU",null,null,"Bruno MESSIN","navlab@avitys.com",688521764,75553,38,{"$f":"IF(FabLabs[[#This Row],[Abonnés]]<>\"\",FabLabs[[#This Row],[Abonnés]]/FabLabs[[#This Row],[Population]],0)","v":5.0295818829166282E-4}]
[null,null,"Smart Materials","Charleville-Mezières",8,"Institut de Formation Technique Supérieur (IFTS)",null,null,"Camille Billaudel","fablab@ifts.net; camille.billaudel@etudiant.univ-reims.fr",null,null,null,{"$f":"IF(FabLabs[[#This Row],[Abonnés]]<>\"\",FabLabs[[#This Row],[Abonnés]]/FabLabs[[#This Row],[Population]],0)","v":0}]
[null,null,"FABLAB MARSEILLE","Marseille",13,"Association","8230Z","Organisation de foires, salons professionnels et congrès",null,null,null,850602,null,{"$f":"IF(FabLabs[[#This Row],[Abonnés]]<>\"\",FabLabs[[#This Row],[Abonnés]]/FabLabs[[#This Row],[Population]],0)","v":0}]
[null,null,"FabLab Provence","Aix-en-Provence",13,null,null,null,"Sébastien Nedjar ","contact@fablab-provence.com",null,null,null,{"$f":"IF(FabLabs[[#This Row],[Abonnés]]<>\"\",FabLabs[[#This Row],[Abonnés]]/FabLabs[[#This Row],[Population]],0)","v":0}]
[null,null,"Laboratoire d'Aix-périmentation et de Bidouille - FabLab Aix","Aix-en-Provence",13,null,null,null,null,null,null,null,null,{"$f":"IF(FabLabs[[#This Row],[Abonnés]]<>\"\",FabLabs[[#This Row],[Abonnés]]/FabLabs[[#This Row],[Population]],0)","v":0}]
[null,null,"RELAIS DE SCIENCES CCSTI DE BN","Caen",14,"Association",null,null,null,"mdebar@relais-sciences.org","02 31 06 60 50",null,null,{"$f":"IF(FabLabs[[#This Row],[Abonnés]]<>\"\",FabLabs[[#This Row],[Abonnés]]/FabLabs[[#This Row],[Population]],0)","v":0}]
[null,null,"Kelle FabriK ","Dijon",21,"Association (IUT)",null,null,"Laurence Berthoud lafarge ","kellefabrik@gmail.com","06 22 69 40 71",null,null,{"$f":"IF(FabLabs[[#This Row],[Abonnés]]<>\"\",FabLabs[[#This Row],[Abonnés]]/FabLabs[[#This Row],[Population]],0)","v":0}]
[null,null,"KER NEL NOUVEL ESPACE LUDO-CREATIF","Lannion",22,"Association",null,null,null,"contact@fablab-lannion.org","02 96 37 84 46",null,null,{"$f":"IF(FabLabs[[#This Row],[Abonnés]]<>\"\",FabLabs[[#This Row],[Abonnés]]/FabLabs[[#This Row],[Population]],0)","v":0}]
[null,null,"8Fablab Drome","Crest",26,"SCIC SA","7410Z","Activités spécialisées de design","Carole Thourigny directrice, Nicolas Nolibos fabmanager","http://www.8fablab.fr/index.php?option=com_content&view=article&id=5&Itemid=107","04 75 55 14 78",7789,null,{"$f":"IF(FabLabs[[#This Row],[Abonnés]]<>\"\",FabLabs[[#This Row],[Abonnés]]/FabLabs[[#This Row],[Population]],0)","v":0}]
[null,null,"Artilect","Toulouse",31,"Association","9499Z","Autres organisations fonctionnant par adhésion volontaire","Nicolas LASSABE et Lionel DESSIRIEIX  Philippe Semanaz (FM)","contact@artilect.fr",null,439553,700,{"$f":"IF(FabLabs[[#This Row],[Abonnés]]<>\"\",FabLabs[[#This Row],[Abonnés]]/FabLabs[[#This Row],[Population]],0)","v":1.5925269535186884E-3}]
[null,null,"Under development","Cintegabelle",31,null,null,null,null,null,null,null,null,{"$f":"IF(FabLabs[[#This Row],[Abonnés]]<>\"\",FabLabs[[#This Row],[Abonnés]]/FabLabs[[#This Row],[Population]],0)","v":0}]
[null,null,"LabSud","Montpellier",34,"Association",null,null,"Jean-phililppe Civade ","contact@labsud.org","09 84 31 82 08",252998,100,{"$f":"IF(FabLabs[[#This Row],[Abonnés]]<>\"\",FabLabs[[#This Row],[Abonnés]]/FabLabs[[#This Row],[Population]],0)","v":3.9526004158135639E-4}]
[null,null,"Web-5","Béziers",34,"Association (IUT)",null,null,"Alexis Bory ","fablab@web-5.org","-",71432,50,{"$f":"IF(FabLabs[[#This Row],[Abonnés]]<>\"\",FabLabs[[#This Row],[Abonnés]]/FabLabs[[#This Row],[Population]],0)","v":6.9996640161272257E-4}]
[null,null,"LabFab","Rennes",35,"EESAB – Ecole Européenne Supérieure d’Arts de Bretagne",null,null,"richard de logu ","contact@labfab.fr;richard.delogu@asso-bug.org",null,null,null,{"$f":"IF(FabLabs[[#This Row],[Abonnés]]<>\"\",FabLabs[[#This Row],[Abonnés]]/FabLabs[[#This Row],[Population]],0)","v":0}]
[null,null,"Fabrique d’Usages Numériques","Tours",37,"Association",null,null,"Didier Roudaut & Cyrille Giquello ","fablab.tours@gmail.com","06 03 95 12 16",null,null,{"$f":"IF(FabLabs[[#This Row],[Abonnés]]<>\"\",FabLabs[[#This Row],[Abonnés]]/FabLabs[[#This Row],[Population]],0)","v":0}]
[null,null,"La casemate CCSTI Grenoble","Grenoble",38,"Association",null,null,null,"fablab@ccsti-grenoble.org","04 76 44 88 76",null,null,{"$f":"IF(FabLabs[[#This Row],[Abonnés]]<>\"\",FabLabs[[#This Row],[Abonnés]]/FabLabs[[#This Row],[Population]],0)","v":0}]
[null,null,"Net-Iki","Biarne",39,"Association","9499Z","Autres organisations fonctionnant par adhésion volontaire",null,"fablab.netiki@gmail.com",660324386,null,null,{"$f":"IF(FabLabs[[#This Row],[Abonnés]]<>\"\",FabLabs[[#This Row],[Abonnés]]/FabLabs[[#This Row],[Population]],0)","v":0}]
[null,null,"FabLab Comtois Champagnole","Champagnole",39,"Association",null,null,"Gilles Ramseier","fablabchampagnole@gmail.com ","03 81 68 83 10 ",250,null,{"$f":"IF(FabLabs[[#This Row],[Abonnés]]<>\"\",FabLabs[[#This Row],[Abonnés]]/FabLabs[[#This Row],[Population]],0)","v":0}]
[null,null,"Fabriques Alternatives","Mont de marsan",40,"Association",null,null,"Frederic Coubard ","fabriques.alternatives@gmail.com","06 86 97 82 56",null,null,{"$f":"IF(FabLabs[[#This Row],[Abonnés]]<>\"\",FabLabs[[#This Row],[Abonnés]]/FabLabs[[#This Row],[Population]],0)","v":0}]
[null,null,"FabLab Robert-Houdin","Chailles",41,null,null,null,null,"fablabs41@gmail.com",null,null,null,{"$f":"IF(FabLabs[[#This Row],[Abonnés]]<>\"\",FabLabs[[#This Row],[Abonnés]]/FabLabs[[#This Row],[Population]],0)","v":0}]
[null,null,"FormaLab ","Le Puy-en-Velay",43,"Service du Greta du Velay",null,null,null,null,null,null,null,{"$f":"IF(FabLabs[[#This Row],[Abonnés]]<>\"\",FabLabs[[#This Row],[Abonnés]]/FabLabs[[#This Row],[Population]],0)","v":0}]
[null,null,"Ping","Nantes",44,"Association",null,null,"Cedric Doutriaux ",null,null,null,null,{"$f":"IF(FabLabs[[#This Row],[Abonnés]]<>\"\",FabLabs[[#This Row],[Abonnés]]/FabLabs[[#This Row],[Population]],0)","v":0}]
[null,null,"Plateforme C","Nantes",44,null,null,null,"Laurent Berthelot","contact@plateforme-c.org",null,null,null,{"$f":"IF(FabLabs[[#This Row],[Abonnés]]<>\"\",FabLabs[[#This Row],[Abonnés]]/FabLabs[[#This Row],[Population]],0)","v":0}]
[null,null,"FABLAB ORLEANAIS","Orléans",45,"Association",null,null,null,null,null,null,null,{"$f":"IF(FabLabs[[#This Row],[Abonnés]]<>\"\",FabLabs[[#This Row],[Abonnés]]/FabLabs[[#This Row],[Population]],0)","v":0}]
[null,null,"CERFAV Glass Fablab","Vannes-le-chatel",54,"Association","8532Z","Enseignement secondaire technique ou professionnel","M GARCIA Denis & M LOTZER Gerard ",null,null,577,null,{"$f":"IF(FabLabs[[#This Row],[Abonnés]]<>\"\",FabLabs[[#This Row],[Abonnés]]/FabLabs[[#This Row],[Population]],0)","v":0}]
[null,null,"Nybi.cc","Nancy",54,"Association",null,"consensus mou","Loïc Fejoz ","association@nybi.cc",null,null,null,{"$f":"IF(FabLabs[[#This Row],[Abonnés]]<>\"\",FabLabs[[#This Row],[Abonnés]]/FabLabs[[#This Row],[Population]],0)","v":0}]
[null,null,"TechTic & Co","Thionville / Yutz",57,"Association",null,null,null,null,null,null,null,{"$f":"IF(FabLabs[[#This Row],[Abonnés]]<>\"\",FabLabs[[#This Row],[Abonnés]]/FabLabs[[#This Row],[Population]],0)","v":0}]
[null,null,"GRAOULAB","Metz",57,"Association loi 1908",null,null,null,"contact@graoulab.org",null,null,null,{"$f":"IF(FabLabs[[#This Row],[Abonnés]]<>\"\",FabLabs[[#This Row],[Abonnés]]/FabLabs[[#This Row],[Population]],0)","v":0}]
[null,null,"ASS UTILISATEURS FAB LAB OPEN EDGE","Folschviller",57,null,null,null,"Emmanuel Gilloz ","fablab@openedge.cc",null,null,null,{"$f":"IF(FabLabs[[#This Row],[Abonnés]]<>\"\",FabLabs[[#This Row],[Abonnés]]/FabLabs[[#This Row],[Population]],0)","v":0}]
[null,null,"FabLab Lille","Lille",59,"EURL","7739Z","Location et location-bail d'autres machines, équi. et biens matériels n.c.a.","Charles-Albert de Medeiros","info@fablablille.fr","06 86 67 06 96",225784,null,{"$f":"IF(FabLabs[[#This Row],[Abonnés]]<>\"\",FabLabs[[#This Row],[Abonnés]]/FabLabs[[#This Row],[Population]],0)","v":0}]
[null,null,"ACoLab","Clermont-Ferrand",63,"Association",null,null,"Alexandre Rault","contact@acolab.fr","06 51 80 05 18",138588,null,{"$f":"IF(FabLabs[[#This Row],[Abonnés]]<>\"\",FabLabs[[#This Row],[Abonnés]]/FabLabs[[#This Row],[Population]],0)","v":0}]
[null,null,"FabLab Pau","Pau",64,null,null,null,null,"contact@fablab-pau.org",null,null,null,{"$f":"IF(FabLabs[[#This Row],[Abonnés]]<>\"\",FabLabs[[#This Row],[Abonnés]]/FabLabs[[#This Row],[Population]],0)","v":0}]
[null,null,"SquaregoLab","Perpignan",66,"Inconnue",null,null,"Joris Navarro","contact@squaregolab.com",null,{"$f":"D73","v":120365},{"$f":"ROUND(FabLabs[[#This Row],[Population]]*$D$69,0)","v":96},{"$f":"IF(FabLabs[[#This Row],[Abonnés]]<>\"\",FabLabs[[#This Row],[Abonnés]]/FabLabs[[#This Row],[Population]],0)","v":7.9757404561126575E-4}]
[null,null,"AV-Fablab","Starsbourg",67,null,null,null,null,"contact@av-lab.net; av.exciters@gmail.com",null,271708,null,{"$f":"IF(FabLabs[[#This Row],[Abonnés]]<>\"\",FabLabs[[#This Row],[Abonnés]]/FabLabs[[#This Row],[Population]],0)","v":0}]
[null,null,"Ideas'Lab Strasbourg","Strasbourg",67,null,null,null,null,null,null,271708,null,{"$f":"IF(FabLabs[[#This Row],[Abonnés]]<>\"\",FabLabs[[#This Row],[Abonnés]]/FabLabs[[#This Row],[Population]],0)","v":0}]
[null,null,"Fabrique d’Objets Libres","Lyon",69,"Association",null,null,null,"contact@fabriquedobjetslibres.fr","06 40 11 52 80",null,null,{"$f":"IF(FabLabs[[#This Row],[Abonnés]]<>\"\",FabLabs[[#This Row],[Abonnés]]/FabLabs[[#This Row],[Population]],0)","v":0}]
[null,null,"LE PETIT FABLAB DE PARIS (LPFP)","Paris",75,"Association","9499Z","Autres organisations fonctionnant par adhésion volontaire","Arthur Schmitt & Florian Gendrot ","bonjour@lepetitfablabdeparis.fr",null,2234105,null,{"$f":"IF(FabLabs[[#This Row],[Abonnés]]<>\"\",FabLabs[[#This Row],[Abonnés]]/FabLabs[[#This Row],[Population]],0)","v":0}]
[null,null,"PMC-lab","Jussieu",75,"Association",null,"hébergée par l'université Pierre et Marie CURIE",null,null,null,null,null,{"$f":"IF(FabLabs[[#This Row],[Abonnés]]<>\"\",FabLabs[[#This Row],[Abonnés]]/FabLabs[[#This Row],[Population]],0)","v":0}]
[null,null,"DesignLab","Saclay",91,null,null,null,null,null,null,3013,null,{"$f":"IF(FabLabs[[#This Row],[Abonnés]]<>\"\",FabLabs[[#This Row],[Abonnés]]/FabLabs[[#This Row],[Population]],0)","v":0}]
[null,null,"FacLab","Gennevilliers",92,"Service de l'université de Cergy-Pontoise",null,null,"Cloé Duc ","c.duc@faclab.org",null,null,null,{"$f":"IF(FabLabs[[#This Row],[Abonnés]]<>\"\",FabLabs[[#This Row],[Abonnés]]/FabLabs[[#This Row],[Population]],0)","v":0}]
[null,null,"tmplab","Vitry sur seine",94,"Association","9499Z","Autres organisations fonctionnant par adhésion volontaire",null,null,null,null,null,{"$f":"IF(FabLabs[[#This Row],[Abonnés]]<>\"\",FabLabs[[#This Row],[Abonnés]]/FabLabs[[#This Row],[Population]],0)","v":0}]
[null,null,"GSI-Lab","Nancy",null,null,null,null,null,null,null,null,null,{"$f":"IF(FabLabs[[#This Row],[Abonnés]]<>\"\",FabLabs[[#This Row],[Abonnés]]/FabLabs[[#This Row],[Population]],0)","v":0}]
[null,null,"La Forge des Possibles","la Roche-sur-Yon",null,null,null,null,null,null,null,null,null,{"$f":"IF(FabLabs[[#This Row],[Abonnés]]<>\"\",FabLabs[[#This Row],[Abonnés]]/FabLabs[[#This Row],[Population]],0)","v":0}]
[null,null,"L'abscisse","Dijon",null,null,null,null,null,null,null,null,null,{"$f":"IF(FabLabs[[#This Row],[Abonnés]]<>\"\",FabLabs[[#This Row],[Abonnés]]/FabLabs[[#This Row],[Population]],0)","v":0}]
[null,null,"L'atelier du c01n","Orléans",null,null,null,null,null,null,null,null,null,{"$f":"IF(FabLabs[[#This Row],[Abonnés]]<>\"\",FabLabs[[#This Row],[Abonnés]]/FabLabs[[#This Row],[Population]],0)","v":0}]
[null,null,"Le Fab","Saint nazaire",44,"SASU","2229A","Fabrication de pièces techniques à base de matières plastiques","Julien et Aurelie LETHUILLIER  ","contact@lefab44.com",null,null,null,{"$f":"IF(FabLabs[[#This Row],[Abonnés]]<>\"\",FabLabs[[#This Row],[Abonnés]]/FabLabs[[#This Row],[Population]],0)","v":0}]
[null,null,"Le Flood","Saint-Brieuc",null,null,null,null,null,null,null,null,null,{"$f":"IF(FabLabs[[#This Row],[Abonnés]]<>\"\",FabLabs[[#This Row],[Abonnés]]/FabLabs[[#This Row],[Population]],0)","v":0}]
[null,null,"Limouzi Lab","Limoges",null,null,null,null,null,null,null,null,null,{"$f":"IF(FabLabs[[#This Row],[Abonnés]]<>\"\",FabLabs[[#This Row],[Abonnés]]/FabLabs[[#This Row],[Population]],0)","v":0}]
[null,null,"Makerspace56","Vannes",null,null,null,null,null,null,null,null,null,{"$f":"IF(FabLabs[[#This Row],[Abonnés]]<>\"\",FabLabs[[#This Row],[Abonnés]]/FabLabs[[#This Row],[Population]],0)","v":0}]
[null,null,"Nicelab","Nice",null,null,null,null,null,null,null,null,null,{"$f":"IF(FabLabs[[#This Row],[Abonnés]]<>\"\",FabLabs[[#This Row],[Abonnés]]/FabLabs[[#This Row],[Population]],0)","v":0}]
[null,null,"NoNameYet","Segala Carmausin, Midi-Pyrenees",null,null,null,null,null,null,null,null,null,{"$f":"IF(FabLabs[[#This Row],[Abonnés]]<>\"\",FabLabs[[#This Row],[Abonnés]]/FabLabs[[#This Row],[Population]],0)","v":0}]
[null,null,"OpenEdge","Folschviller",null,null,null,null,null,null,null,null,null,{"$f":"IF(FabLabs[[#This Row],[Abonnés]]<>\"\",FabLabs[[#This Row],[Abonnés]]/FabLabs[[#This Row],[Population]],0)","v":0}]
[null,null,"Photonic FabLab","Orsay",null,null,null,null,null,null,null,null,null,{"$f":"IF(FabLabs[[#This Row],[Abonnés]]<>\"\",FabLabs[[#This Row],[Abonnés]]/FabLabs[[#This Row],[Population]],0)","v":0}]
[null,null,"Technistub","Mulhouse",null,null,null,null,null,null,null,null,null,{"$f":"IF(FabLabs[[#This Row],[Abonnés]]<>\"\",FabLabs[[#This Row],[Abonnés]]/FabLabs[[#This Row],[Population]],0)","v":0}]
[null,null,"Telefab Telecom Bretagne","Brest",null,null,null,null,null,null,null,null,null,{"$f":"IF(FabLabs[[#This Row],[Abonnés]]<>\"\",FabLabs[[#This Row],[Abonnés]]/FabLabs[[#This Row],[Population]],0)","v":0}]
[null,null,"TyFab","Brest",null,null,null,null,null,null,null,null,null,{"$f":"IF(FabLabs[[#This Row],[Abonnés]]<>\"\",FabLabs[[#This Row],[Abonnés]]/FabLabs[[#This Row],[Population]],0)","v":0}]
[null,null,"ArtLab","Paris",75,"SASU",null,"DigitalArti",null,"artlab@digitalarti.com",null,null,null,{"$f":"IF(FabLabs[[#This Row],[Abonnés]]<>\"\",FabLabs[[#This Row],[Abonnés]]/FabLabs[[#This Row],[Population]],0)","v":0}]
[null,null,"Zbis ","Les Sables-d'Olone",85,"EURL","6202A","Conseil en systèmes et logiciels informatiques","Mme Emmanuelle JONIK (née ROUX)",null,null,41574,null,{"$f":"IF(FabLabs[[#This Row],[Abonnés]]<>\"\",FabLabs[[#This Row],[Abonnés]]/FabLabs[[#This Row],[Population]],0)","v":0}]
[null,null,"Tech Lab LR","Montpellier",34,"Association",null,null,null,null,null,null,null,{"$f":"IF(FabLabs[[#This Row],[Abonnés]]<>\"\",FabLabs[[#This Row],[Abonnés]]/FabLabs[[#This Row],[Population]],0)","v":0}]
[null,null,"Usine IO","Paris",75,"SASU",null,null,"Benjamin Carlu","hello@usine.io",null,null,null,{"$f":"IF(FabLabs[[#This Row],[Abonnés]]<>\"\",FabLabs[[#This Row],[Abonnés]]/FabLabs[[#This Row],[Population]],0)","v":0}]
[null,null,"Lorem","Paris",75,null,null,null,null,null,null,null,null,{"$f":"IF(FabLabs[[#This Row],[Abonnés]]<>\"\",FabLabs[[#This Row],[Abonnés]]/FabLabs[[#This Row],[Population]],0)","v":0}]
[null,null,"RuralLab","Néons sur Creuse",36,"Association",null,"http://blog.50a.fr/architecturesociale/rurallab-le-fablab-campagnard-des-bricoleurs-2-0",null,null,null,401,0,{"$f":"IF(FabLabs[[#This Row],[Abonnés]]<>\"\",FabLabs[[#This Row],[Abonnés]]/FabLabs[[#This Row],[Population]],0)","v":0}]
[null,null,"Etoele","Amiens",80,"EURL","6202A","Conseil en systèmes et logiciels informatiques","Jean-Baptiste HEREN",null,null,null,null,{"$f":"IF(FabLabs[[#This Row],[Abonnés]]<>\"\",FabLabs[[#This Row],[Abonnés]]/FabLabs[[#This Row],[Population]],0)","v":0}]
[]
[]
[null,null,"Coeff moyen / habitant",{"$f":"SUM(N37:N68,N4:N35)/(COUNTIF(N4:N35,\">0\")+COUNTIF(N37:N68,\">0\"))","v":7.9767789625110751E-4},null,{"$f":"\"soit 1 abonnée pour \"&ROUND(1/D69,0)&\" habitants de Perpignan\"","v":"soit 1 abonnée pour 1254 habitants de Perpignan"}]
[]
[]
[null,null,"Populations","Totale","Ratio pop",null,"Cible"]
[null,null,"Perpignan",120365,{"$f":"D73*E$75/D$75","v":0.26598236581000156},null,{"$f":"M$36*100%/D73","v":7.9757404561126575E-4}]
[null,null,"Bassin de Perpignan",343615,{"$f":"D74*E$75/D$75","v":0.75931982410005971},null,{"$f":"M$36*100%/D74","v":2.7938244837972728E-4}]
[null,null,"Département",{"$f":"Population!C8","v":452530},1,null,{"$f":"M$36*100%/D75","v":2.1214063156033854E-4}]
[null,null,null,"Département",null,"Bassin de perpignan",null,"Perpignan"]
[null,null,"hommes",{"$f":"Population!C19","v":214960},{"$f":"D77*E$75/D$75","v":0.47501823083552469},{"$f":"D77*E$74","v":163223.38938854885},{"$f":"E77*E$74","v":0.36069075948235219},{"$f":"D77*E$73","v":57175.569354517938},{"$f":"E77*E$73","v":0.12634647284051428}]
[null,null,"hommes de 15 à 60 ans",{"$f":"SUM(Population!C21:C23)","v":117230},0.25905464831060926,89015.062979249997,0.19670532998751467,31181.112743906484,6.8903968231733781E-2]
[null,null,"hommes sans activité professionnelle",{"$f":"Population!C69","v":23899},5.2811968267297199E-2,18146.984476167327,4.0101174455102043E-2,6356.7125604932271,1.4047052262818438E-2]
[null,null,"hommes de 15 à 64 ans, étudiants ou stagiares",{"$f":"Population!C$77*Population!C82/100*E$77","v":11315.219269440699},2.5004351688154815E-2,8591.8703053253175,1.8986299925585745E-2,3009.6487909447546,6.650716617560724E-3]
[null,null,"hommes de 15 à 64 ans, employés",{"$f":"Population!C$77*Population!C79/100*E$77","v":72833.595297549327},0.16094755109616893,55303.992769910088,0.12221066618767837,19372.451987690376,4.2809210411885124E-2]
[null,null,"hommes de 15 à 64 ans, chômeurs",{"$f":"Population!C$77*Population!C80/100*E$77","v":15086.959025920933},3.3339135584206425E-2,11455.82707376709,2.5315066567447666E-2,4012.8650545930063,8.8676221567476343E-3]
[]
[null,null,"Potentiel créateurs",{"$f":"F80*37%","v":3178.9920129703673}]
[null,null,"Potentiel créateurs à court terme",{"$f":"D84*0.4","v":1271.5968051881471}]
[null,null,"10% cible",{"$f":"D85*0.1","v":127.15968051881471}]
[]
[]
[]
[]
[]
[]
[]
[]
[null,null,"Les associations","Total","Culture/Art","Recherche"]
[null,null,"Département"]
[null,null,"Création",11375,3480,1000]
[null,null,"Associations",17147,4468,1246]
[]
[null,null,"Perpignan"]
[null,null,"Création",2859,951,275]
[null,null,"Associations",4590,1222,366]
[]
[null,null,"Pref perpi"]
[null,null,"Création",7780,2404,683]
[null,null,"Association",11453,3059,859]
[]
[null,null,"Ratio",0.1,0.1]
[null,null,"Sous total",{"$f":"D106*D108","v":1145.3},{"$f":"E106*E108","v":305.90000000000003}]
[null,null,"Total"]
[null,null,"Année","FabLabs",null,"Abos","Moyennes"]
[null,null,2012,42,1,390,{"$f":"ROUND(F112/D112,2)","v":9.2899999999999991},1]
[null,null,2013,50,{"$f":"ROUND(F113*E112/F112,1)","v":8.5},3334,{"$f":"ROUND(F113/D113,2)","v":66.680000000000007},{"$f":"G113*H$112/G112","v":7.1776103336921437}]
[null,null,2014,68,1.5,{"$f":"D114*E114*G113","v":6801.3600000000006},{"$f":"ROUND(F114/D114,2)","v":100.02},{"$f":"G114*H$112/G113","v":1.4999999999999998}]

{"sheet":"Population","index":4,"n_rows":208,"n_cols":8,"rows_kept":208,"cut":false,"hidden":true,"merged":[[32,1,32,3],[4,1,4,5],[5,1,5,5],[15,1,15,5],[16,1,16,5],[31,1,31,3],[102,1,102,5],[43,1,43,5],[44,1,44,5],[56,1,56,6],[57,1,57,6],[58,1,59,1],[58,2,59,2],[58,3,59,3],[58,4,58,6],[73,1,73,3],[74,1,74,3],[85,1,85,6],[86,1,86,6],[101,1,101,5],[154,1,154,7],[105,2,105,5],[113,1,113,3],[114,1,114,3],[122,1,122,3],[123,1,123,3],[124,1,124,3],[131,1,131,5],[132,1,132,5],[142,1,142,3],[143,1,143,3],[153,1,153,7],[155,6,155,7],[168,1,168,6],[169,1,169,6],[170,1,171,1],[170,2,171,2],[170,3,171,3],[170,4,170,6],[180,1,180,4],[181,1,181,4],[206,3,206,4],[207,3,207,4],[155,1,156,1],[155,2,155,5]]}
[]
[null,"Chiffres clés Évolution et structure de la population"]
[]
[null,"http://www.insee.fr/fr/themes/tableau_local.asp?ref_id=POP&millesime=2011&typgeo=DEP&search=66"]
[null,"POP T0 - Population par grandes tranches d'âges"]
[null,"Sources : Insee, RP2006 et RP2011 exploitations principales."]
[null,null,2011,"%",2006,"%"]
[null,"Ensemble",452530,100,432116,100]
[null,"0 à 14 ans",76613,16.899999999999999,72754,16.8]
[null,"15 à 29 ans",69819,15.4,69036,16]
[null,"30 à 44 ans",82556,18.2,83752,19.399999999999999]
[null,"45 à 59 ans",89101,19.7,85958,19.899999999999999]
[null,"60 à 74 ans",80194,17.7,71959,16.7]
[null,"75 ans ou plus",54247,12,48657,11.3]
[]
[null,"POP T3 - Population par sexe et âge en 2011"]
[null,"Source : Insee, RP2011 exploitation principale."]
[null,null,"Hommes","%","Femmes","%"]
[null,"Ensemble",214960,100,237570,100,{"$f":"SUM(C19,E19)","v":452530}]
[null,"0 à 14 ans",39458,18.399999999999999,37155,15.6]
[null,"15 à 29 ans",35175,16.399999999999999,34644,14.6]
[null,"30 à 44 ans",39594,18.399999999999999,42962,18.100000000000001]
[null,"45 à 59 ans",42461,19.8,46640,19.600000000000001]
[null,"60 à 74 ans",37301,17.399999999999999,42894,18.100000000000001]
[null,"75 à 89 ans",19581,9.1,29558,12.4]
[null,"90 ans ou plus",1391,0.6,3717,1.6]
[]
[null,"0 à 19 ans",52673,24.5,49029,20.6]
[null,"20 à 64 ans",119073,55.4,129638,54.6]
[null,"65 ans ou plus",43214,20.100000000000001,58903,24.8]
[null,null,{"$f":"SUM(C21:C23)","v":117230},{"$f":"SUM(D21:D23)","v":54.599999999999994}]
[null,"POP T4M - Lieu de résidence 1 an auparavant"]
[null,"Source : Insee, RP2011 exploitation principale."]
[null,null,2011,"%"]
[null,"Personnes d'1 an ou plus habitant auparavant :",447687,100]
[null,"Même logement",389314,87]
[null,"Autre logement de la même commune",20423,4.5999999999999996]
[null,"Autre commune du même département",20837,4.7]
[null,"Autre département de la même région",2960,0.7]
[null,"Autre région en France métropolitaine",11762,2.6]
[null,"Autre région dans un Dom",288,0.1]
[null,"Hors de France métropolitaine ou d'un Dom",2105,0.5]
[]
[null,"POP T5 - Population de 15 ans ou plus selon la catégorie socioprofessionnelle"]
[null,"Sources : Insee, RP2006 et RP2011 exploitations complémentaires."]
[null,null,2011,"%",2006,"%"]
[null,"Ensemble",376187,100,359053,100]
[null,"Agriculteurs exploitants",3301,0.9,3796,1.1000000000000001]
[null,"Artisans, commerçants, chefs entreprise",17100,4.5,15449,4.3]
[null,"Cadres et professions intellectuelles supérieures",18809,5,16603,4.5999999999999996]
[null,"Professions intermédiaires",42812,11.4,39265,10.9]
[null,"Employés",60650,16.100000000000001,58168,16.2]
[null,"Ouvriers",41431,11,41133,11.5]
[null,"Retraités",126018,33.5,116986,32.6]
[null,"Autres personnes sans activité professionnelle",66065,17.600000000000001,67651,18.8]
[]
[null,"OP T6 - Population de 15 ans ou plus par sexe, âge et catégorie socioprofessionnelle en 2011"]
[null,"Source : Insee, RP2011 exploitation complémentaire."]
[null,null,"Hommes","Femmes","Part en % de la population âgée de"]
[null,null,null,null,"15 à 24 ans","25 à 54 ans","55 ans ou +"]
[null,"Ensemble",175742,200445,100,100,100]
[null,"Agriculteurs exploitants",2363,938,0.1,1.4,0.6]
[null,"Artisans, commerçants, chefs entreprise",11919,5181,0.9,8,2.2000000000000002]
[null,"Cadres et professions intellectuelles supérieures",11294,7515,0.7,8.6999999999999993,2.5]
[null,"Professions intermédiaires",20082,22730,6.7,20.9,3.2]
[null,"Employés",14220,46430,16.100000000000001,27.8,4.4000000000000004]
[null,"Ouvriers",34207,7224,14.9,18.5,2.2999999999999998]
[null,"Retraités",57758,68260,0,0.7,76.3]
[null,"Autres personnes sans activité professionnelle",23899,42166,60.5,14.1,8.5]
[null,null,{"$f":"SUM(C63:C67)","v":91722},null,{"$f":"SUM(E63:E67)","v":39.300000000000004},{"$f":"SUM(F63:F67)","v":83.899999999999991}]
[null,null,{"$f":"C70*100/C61","v":52.191280399676799}]
[null,"Chiffres clés Emploi - Population active"]
[]
[null,"EMP T1 - Population de 15 à 64 ans par type d'activité"]
[null,"Sources : Insee, RP2006 et RP2011 exploitations principales."]
[null,null,2011,2006]
[null,"Ensemble",273800,264059]
[null,"Actifs en %",67.599999999999994,66.400000000000006]
[null,"actifs ayant un emploi en %",56,55.9]
[null,"chômeurs en %",11.6,10.5]
[null,"Inactifs en %",32.4,33.6]
[null,"élèves, étudiants et stagiaires non rémunérés en %",8.6999999999999993,9.6999999999999993]
[null,"retraités ou préretraités en %",11.3,10.9]
[null,"autres inactifs en %",12.4,13]
[]
[null,"EMP T2 - Activité et emploi de la population de 15 à 64 ans par sexe et âge en 2011"]
[null,"Source : Insee, RP2011 exploitation principale."]
[null,null,"Population","Actifs","Taux d'activité en %","Actifs ayant un emploi","Taux d'emploi en %"]
[null,"Ensemble",273800,185187,67.599999999999994,153464,56]
[null,"15 à 24 ans",47225,20612,43.6,12956,27.4]
[null,"25 à 54 ans",165020,141675,85.9,120444,73]
[null,"55 à 64 ans",61555,22900,37.200000000000003,20064,32.6]
[null,"Hommes",132287,94676,71.599999999999994,79049,59.8]
[null,"15 à 24 ans",24276,11477,47.3,7287,30]
[null,"25 à 54 ans",79188,71793,90.7,61736,78]
[null,"55 à 64 ans",28824,11406,39.6,10026,34.799999999999997]
[null,"Femmes",141512,90511,64,74415,52.6]
[null,"15 à 24 ans",22949,9135,39.799999999999997,5669,24.7]
[null,"25 à 54 ans",85832,69881,81.400000000000006,58708,68.400000000000006]
[null,"55 à 64 ans",32731,11494,35.1,10038,30.7]
[]
[null,"EMP T3 - Population active de 15 à 64 ans selon la catégorie socioprofessionnelle"]
[null,"Sources : Insee, RP2006 et RP2011 exploitations complémentaires."]
[null,null,2011,"dont actifs ayant un emploi",2006,"dont actifs ayant un emploi"]
[null,"Ensemble",184965,153152,175102,147864]
[null,"dont"]
[null,"Agriculteurs exploitants",3182,3068,3688,3574]
[null,"Artisans, commerçants, chefs entreprise",16670,15202,15164,13737]
[null,"Cadres et professions intellectuelles supérieures",18487,17236,16364,15450]
[null,"Professions intermédiaires",42491,38136,39110,35025]
[null,"Employés",60190,48555,57851,47664]
[null,"Ouvriers",41140,30955,40865,32414]
[]
[null,"EMP T4 - Chômage (au sens du recensement) des 15-64 ans"]
[null,"Sources : Insee, RP2006 et RP2011 exploitations principales."]
[null,null,2011,2006]
[null,"Nombre de chômeurs",31722,27655]
[null,"Taux de chômage en %",17.100000000000001,15.8]
[null,"Taux de chômage des hommes en %",16.5,13.7]
[null,"Taux de chômage des femmes en %",17.8,18]
[null,"Part des femmes parmi les chômeurs en %",50.7,54.9]
[]
[null,"EMP T5 - Emploi et activité"]
[null,"L'indicateur de concentration d'emploi est égal au nombre d'emplois dans la zone pour 100 actifs ayant un emploi résidant dans la zone."]
[null,"Sources : Insee, RP2006 et RP2011 exploitations principales lieu de résidence et lieu de travail."]
[null,null,2011,2006]
[null,"Nombre d'emplois dans la zone",153349,146867]
[null,"Actifs ayant un emploi résidant dans la zone",155344,148940]
[null,"Indicateur de concentration d'emploi",98.7,98.6]
[null,"Taux d'activité parmi les 15 ans ou plus en %",49.8,49.2]
[]
[null,"EMP T6 - Emplois selon le statut professionnel"]
[null,"Sources : Insee, RP2006 et RP2011 exploitations principales lieu de travail."]
[null,null,2011,"%",2006,"%"]
[null,"Ensemble",153349,100,146867,100]
[null,"Salariés",125506,81.8,121702,82.9]
[null,"dont femmes",64661,42.2,60614,41.3]
[null,"dont temps partiel",26342,17.2,25391,17.3]
[null,"Non-salariés",27844,18.2,25165,17.100000000000001]
[null,"dont femmes",9998,6.5,8667,5.9]
[null,"dont temps partiel",3526,2.2999999999999998,2777,1.9]
[]
[null,"EMP T7 - Emplois par catégorie socioprofessionnelle en 2011"]
[null,"Source : Insee, RP2011 exploitation complémentaire lieu de travail."]
[null,null,"Nombre","%"]
[null,"Ensemble",153175,100]
[null,"Agriculteurs exploitants",3175,2.1]
[null,"Artisans, commerçants, chefs entreprise",15489,10.1]
[null,"Cadres et professions intellectuelles supérieures",16987,11.1]
[null,"Professions intermédiaires",37902,24.7]
[null,"Employés",48616,31.7]
[null,"Ouvriers",31006,20.2]
[]
[null,"EMP T8 - Emplois selon le secteur d'activité"]
[null,"Sources : Insee, RP2006 et RP2011 exploitations complémentaires lieu de travail."]
[null,null,2011,null,null,null,2006]
[null,null,"Nombre","%","dont femmes en %","dont salariés en %","Nombre","%"]
[null,"Ensemble",153175,100,48.7,83.5,147095,100]
[null,"Agriculture",5687,3.7,30.3,47.1,7001,4.8]
[null,"Industrie",9298,6.1,30.7,86.9,10052,6.8]
[null,"Construction",13331,8.6999999999999993,9.6,70.2,12632,8.6]
[null,"Commerce, transports, services divers",69625,45.5,47.3,81.3,66392,45.1]
[null,"Administration publique, enseignement, santé, action sociale",55234,36.1,64.8,92.7,51018,34.700000000000003]
[]
[]
[null,"Chiffres clés Diplômes - Formation"]
[null,"http://www.insee.fr/fr/themes/tableau_local.asp?ref_id=FOR&nivgeo=DEP&codgeo=66&millesime=2011"]
[]
[null,"FOR T1 - Scolarisation selon l'âge et le sexe en 2011"]
[null,"Source : Insee, RP2011 exploitation principale."]
[null,null,"Ensemble","Population scolarisée","Part de la population scolarisée en %"]
[null,null,null,null,"Ensemble","Hommes","Femmes"]
[null,"2 à 5 ans",19813,14720,74.3,73.5,75.099999999999994]
[null,"6 à 10 ans",25883,25534,98.7,98.7,98.6]
[null,"11 à 14 ans",21563,21330,98.9,98.8,99]
[null,"15 à 17 ans",15289,14334,93.8,92.9,94.7]
[null,"18 à 24 ans",31935,14430,45.2,44,46.4]
[null,"25 à 29 ans",22594,1429,6.3,6.2,6.4]
[null,"30 ans ou plus",306098,2554,0.8,0.8,0.9]
[]
[null,"FOR T2 - Diplôme le plus élevé de la population non scolarisée de 15 ans ou plus selon le sexe en 2011"]
[null,"Source : Insee, RP2011 exploitation principale."]
[null,null,"Ensemble","Hommes","Femmes"]
[null,"Population non scolarisée de 15 ans ou plus",343169,159071,184098]
[null,"Part des titulaires en %"]
[null,"d'aucun diplôme",19.5,18.600000000000001,20.2]
[null,"du certificat d'études primaires",10.3,8.6999999999999993,11.6]
[null,"du BEPC, brevet des collèges",8,7.1,8.8000000000000007]
[null,"d'un CAP ou d'un BEP",23.6,28.4,19.3]
[null,"d'un baccalauréat ou d'un brevet professionnel",17.600000000000001,17.100000000000001,18.100000000000001]
[null,"d'un diplôme de l’enseignement supérieur court",10.7,9.1999999999999993,12.1]
[null,"d'un diplôme de l’enseignement supérieur long",10.3,10.9,9.8000000000000007]
[null,null,null,{"$f":"SUM(D190:D192)","v":37.200000000000003}]
[]
[null,"Autres chiffres clés"]
[null,"Bricolage"]
[null,"Poids des rayons"]
[null,"Jardin",0.123,"Bâtiments, matériaux",0.11]
[null,"Plomberie/Sanitaire",0.14599999999999999,"Outillage"," 8 %"]
[null,"Peinture/Colles",0.127,"Auto, Moto, Cycle","  0,35 %"]
[null,"Bois, Dérivés",0.127,"Brico léger","  27,9 %"]
[null,"Electricité/Luminaires",0.11700000000000001,"Brico lourd","  38,5 %"]
[null,"Revêtements murs, sols",8.8499999999999995E-2,"Déco","  21,4 %"]
[null,"Quincaillerie",7.8E-2,"Jardin","  12,3 %"]
[]
[null,"Consommation des ménages (par foyer)","€/foyer","CA marché"]
[null,"Bricolage",799,"18,66 Milliards d'€"]
[null,"Jardinage",269,"3,52 Milliards d'€"]

{"sheet":"Calculs","index":5,"n_rows":97,"n_cols":9,"rows_kept":97,"cut":false,"hidden":false,"merged":[[92,1,92,7],[80,1,80,7],[57,1,57,7],[19,1,19,7],[1,1,1,7],[31,1,31,7],[41,1,41,7],[47,1,47,7]]}
[]
[null,"Utilisation des machines"]
[]
[null,null,{"$f":"Pilotage!M$22","v":"Année 0"},{"$f":"Pilotage!N$22","v":"Année 1"},{"$f":"Pilotage!O$22","v":"Année 2"},{"$f":"Pilotage!P$22","v":"Année 3"},{"$f":"Pilotage!Q$22","v":"Année 4"},{"$f":"Pilotage!R$22","v":"Année 5"}]
[null,"Découpe laser",{"$f":"Pilotage!E$93*C$15*SUM(Locations!#REF!,Locations!#REF!,Locations!#REF!)/C$43","v":{"$error":"#REF!"}},{"$f":"C5*Pilotage!N$38","v":{"$error":"#REF!"}},{"$f":"D5*Pilotage!O$38","v":{"$error":"#REF!"}},{"$f":"E5*Pilotage!P$38","v":{"$error":"#REF!"}},{"$f":"F5*Pilotage!Q$38","v":{"$error":"#REF!"}},{"$f":"G5*Pilotage!R$38","v":{"$error":"#REF!"}}]
[null,"Imprimante 3D",{"$f":"Pilotage!E$93*C$15*SUM(Locations!#REF!,Locations!#REF!,Locations!#REF!)/C$43","v":{"$error":"#REF!"}},{"$f":"C6*Pilotage!N$38","v":{"$error":"#REF!"}},{"$f":"D6*Pilotage!O$38","v":{"$error":"#REF!"}},{"$f":"E6*Pilotage!P$38","v":{"$error":"#REF!"}},{"$f":"F6*Pilotage!Q$38","v":{"$error":"#REF!"}},{"$f":"G6*Pilotage!R$38","v":{"$error":"#REF!"}}]
[null,"Petite imprimante 3D",{"$f":"Pilotage!E$93*C$15*SUM(Locations!#REF!,Locations!#REF!,Locations!#REF!)/C$43","v":{"$error":"#REF!"}},{"$f":"C7*Pilotage!N$38","v":{"$error":"#REF!"}},{"$f":"D7*Pilotage!O$38","v":{"$error":"#REF!"}},{"$f":"E7*Pilotage!P$38","v":{"$error":"#REF!"}},{"$f":"F7*Pilotage!Q$38","v":{"$error":"#REF!"}},{"$f":"G7*Pilotage!R$38","v":{"$error":"#REF!"}}]
[null,"Découpe vinyle",{"$f":"Pilotage!E$93*C$15*SUM(Locations!#REF!,Locations!#REF!,Locations!#REF!)/C$43","v":{"$error":"#REF!"}},{"$f":"C8*Pilotage!N$38","v":{"$error":"#REF!"}},{"$f":"D8*Pilotage!O$38","v":{"$error":"#REF!"}},{"$f":"E8*Pilotage!P$38","v":{"$error":"#REF!"}},{"$f":"F8*Pilotage!Q$38","v":{"$error":"#REF!"}},{"$f":"G8*Pilotage!R$38","v":{"$error":"#REF!"}}]
[null,"Petie fraiseuse",{"$f":"Pilotage!E$93*C$15*SUM(Locations!#REF!,Locations!#REF!,Locations!#REF!)/C$43","v":{"$error":"#REF!"}},{"$f":"C9*Pilotage!N$38","v":{"$error":"#REF!"}},{"$f":"D9*Pilotage!O$38","v":{"$error":"#REF!"}},{"$f":"E9*Pilotage!P$38","v":{"$error":"#REF!"}},{"$f":"F9*Pilotage!Q$38","v":{"$error":"#REF!"}},{"$f":"G9*Pilotage!R$38","v":{"$error":"#REF!"}}]
[null,"Grande fraiseuse",{"$f":"Pilotage!E$93*C$15*SUM(Locations!#REF!,Locations!#REF!,Locations!#REF!)/C$43","v":{"$error":"#REF!"}},{"$f":"C10*Pilotage!N$38","v":{"$error":"#REF!"}},{"$f":"D10*Pilotage!O$38","v":{"$error":"#REF!"}},{"$f":"E10*Pilotage!P$38","v":{"$error":"#REF!"}},{"$f":"F10*Pilotage!Q$38","v":{"$error":"#REF!"}},{"$f":"G10*Pilotage!R$38","v":{"$error":"#REF!"}}]
[null,"Machine à coudre",{"$f":"Pilotage!E$93*C$15*SUM(Locations!#REF!,Locations!#REF!,Locations!#REF!)/C$43","v":{"$error":"#REF!"}},{"$f":"C11*Pilotage!N$38","v":{"$error":"#REF!"}},{"$f":"D11*Pilotage!O$38","v":{"$error":"#REF!"}},{"$f":"E11*Pilotage!P$38","v":{"$error":"#REF!"}},{"$f":"F11*Pilotage!Q$38","v":{"$error":"#REF!"}},{"$f":"G11*Pilotage!R$38","v":{"$error":"#REF!"}}]
[null,"Machine à broder",{"$f":"Pilotage!E$93*C$15*SUM(Locations!#REF!,Locations!#REF!,Locations!#REF!)/C$43","v":{"$error":"#REF!"}},{"$f":"C12*Pilotage!N$38","v":{"$error":"#REF!"}},{"$f":"D12*Pilotage!O$38","v":{"$error":"#REF!"}},{"$f":"E12*Pilotage!P$38","v":{"$error":"#REF!"}},{"$f":"F12*Pilotage!Q$38","v":{"$error":"#REF!"}},{"$f":"G12*Pilotage!R$38","v":{"$error":"#REF!"}}]
[null,"Presse à chaud",{"$f":"Pilotage!E$93*C$15*SUM(Locations!#REF!,Locations!#REF!,Locations!#REF!)/C$43","v":{"$error":"#REF!"}},{"$f":"C13*Pilotage!N$38","v":{"$error":"#REF!"}},{"$f":"D13*Pilotage!O$38","v":{"$error":"#REF!"}},{"$f":"E13*Pilotage!P$38","v":{"$error":"#REF!"}},{"$f":"F13*Pilotage!Q$38","v":{"$error":"#REF!"}},{"$f":"G13*Pilotage!R$38","v":{"$error":"#REF!"}}]
[null,"Libre",{"$f":"Pilotage!$I51*Pilotage!$E93-Calculs!C17","v":{"$error":"#REF!"}},{"$f":"Pilotage!$I51*Pilotage!$E93-Calculs!D17","v":{"$error":"#REF!"}},{"$f":"Pilotage!$I51*Pilotage!$E93-Calculs!E17","v":{"$error":"#REF!"}},{"$f":"Pilotage!$I51*Pilotage!$E93-Calculs!F17","v":{"$error":"#REF!"}},{"$f":"Pilotage!$I51*Pilotage!$E93-Calculs!G17","v":{"$error":"#REF!"}},{"$f":"Pilotage!$I51*Pilotage!$E93-Calculs!H17","v":{"$error":"#REF!"}}]
[null,"Ratio",{"$f":"Pilotage!M$40","v":1},{"$f":"Pilotage!N$40","v":1.45},{"$f":"Pilotage!O$40","v":1.74},{"$f":"Pilotage!P$40","v":1.9140000000000001},{"$f":"Pilotage!Q$40","v":2.0097},{"$f":"Pilotage!R$40","v":2.0097}]
[null,null,{"$f":"C17/Pilotage!$I51","v":{"$error":"#REF!"}},{"$f":"D17/Pilotage!$I51","v":{"$error":"#REF!"}},{"$f":"E17/Pilotage!$I51","v":{"$error":"#REF!"}},{"$f":"F17/Pilotage!$I51","v":{"$error":"#REF!"}},{"$f":"G17/Pilotage!$I51","v":{"$error":"#REF!"}},{"$f":"H17/Pilotage!$I51","v":{"$error":"#REF!"}}]
[null,"Par semaine",{"$f":"SUM(C5:C13)","v":{"$error":"#REF!"}},{"$f":"C17*Pilotage!N38","v":{"$error":"#REF!"}},{"$f":"D17*Pilotage!O38","v":{"$error":"#REF!"}},{"$f":"E17*Pilotage!P38","v":{"$error":"#REF!"}},{"$f":"F17*Pilotage!Q38","v":{"$error":"#REF!"}},{"$f":"G17*Pilotage!R38","v":{"$error":"#REF!"}}]
[]
[]
[null,"Seuils de rentabilité"]
[]
[null,null,{"$f":"Pilotage!M$22","v":"Année 0"},{"$f":"Pilotage!N$22","v":"Année 1"},{"$f":"Pilotage!O$22","v":"Année 2"},{"$f":"Pilotage!P$22","v":"Année 3"},{"$f":"Pilotage!Q$22","v":"Année 4"},{"$f":"Pilotage!R$22","v":"Année 5"}]
[null,"CA (HT)",{"$f":"'Comptes de résultat 6 ans'!R6","v":104000},{"$f":"'Comptes de résultat 6 ans'!S6","v":208000},{"$f":"'Comptes de résultat 6 ans'!T6","v":416000},{"$f":"'Comptes de résultat 6 ans'!U6","v":832000},{"$f":"'Comptes de résultat 6 ans'!V6","v":832000},{"$f":"'Comptes de résultat 6 ans'!W6","v":915200},"CA"]
[null,"Total charges variables(HT)",{"$f":"'Comptes de résultat 6 ans'!G79","v":0},{"$f":"'Comptes de résultat 6 ans'!H79","v":0},{"$f":"'Comptes de résultat 6 ans'!I79","v":0},{"$f":"'Comptes de résultat 6 ans'!J79","v":39223.982028499995},{"$f":"'Comptes de résultat 6 ans'!K79","v":40400.701489354993},{"$f":"'Comptes de résultat 6 ans'!L79","v":41612.722534035645},"CV"]
[null,"Marge sur coûts variables",{"$f":"C23-C24","v":104000},208000,416000,792776.01797150006,791599.29851064505,873587.27746596432,"MCV=CA-CV"]
[null,"Taux de marge sur coûts variables",{"$f":"IF(C23=0,0,C25/C23)","v":1},1,1,0.95285579083112992,0.95144146455606371,0.9545315531752232,"TMCV=MCV/CA"]
[null,"Total charges fixes (HT)",{"$f":"'Comptes de résultat 6 ans'!G78","v":197717.04285000003},{"$f":"'Comptes de résultat 6 ans'!H78","v":205900.16791999998},{"$f":"'Comptes de résultat 6 ans'!I78","v":212988.44612493334},{"$f":"'Comptes de résultat 6 ans'!J78","v":181198.67618640358},{"$f":"'Comptes de résultat 6 ans'!K78","v":186524.76542501416},{"$f":"'Comptes de résultat 6 ans'!L78","v":192175.14098275849},"CF"]
[null,"Seuil de rentabilité",{"$f":"IF(C27=0,0,C27/C26)","v":197717.04285000003},205900.16791999998,212988.44612493334,190163.79805841632,196044.39408371315,201329.2701990763,"SR=CF/TMCV"]
[null,"Point Mort (j)",{"$f":"C28/(C23/360)","v":684.40514832692315},356.36567524615378,184.31692453119229,82.282412621430126,84.826901286222025,79.194205934951341,"PM=SR/(CA/360)"]
[null,null,365,365,365,365,365,365]
[]
[null,"Répartition des prestations"]
[]
[null,null,{"$f":"Pilotage!M$22","v":"Année 0"},{"$f":"Pilotage!N$22","v":"Année 1"},{"$f":"Pilotage!O$22","v":"Année 2"},{"$f":"Pilotage!P$22","v":"Année 3"},{"$f":"Pilotage!Q$22","v":"Année 4"},{"$f":"Pilotage!R$22","v":"Année 5"}]
[null,"Formations",{"$f":"Prestations!A7*Pilotage!M$36/SUM(Pilotage!M$12:M$13)","v":0},{"$f":"C35*Pilotage!N$36","v":0},{"$f":"D35*Pilotage!O$36","v":0},{"$f":"E35*Pilotage!P$36","v":0},{"$f":"F35*Pilotage!Q$36","v":0},{"$f":"G35*Pilotage!R$36","v":0}]
[null,"Conseil",{"$f":"Prestations!A8*Pilotage!M$36/SUM(Pilotage!M$12:M$13)","v":0},{"$f":"C36*Pilotage!N$36","v":0},{"$f":"D36*Pilotage!O$36","v":0},{"$f":"E36*Pilotage!P$36","v":0},{"$f":"F36*Pilotage!Q$36","v":0},{"$f":"G36*Pilotage!R$36","v":0}]
[null,"Cours collectifs",{"$f":"Prestations!A9*Pilotage!M$36/SUM(Pilotage!M$12:M$13)","v":0},{"$f":"C37*Pilotage!N$36","v":0},{"$f":"D37*Pilotage!O$36","v":0},{"$f":"E37*Pilotage!P$36","v":0},{"$f":"F37*Pilotage!Q$36","v":0},{"$f":"G37*Pilotage!R$36","v":0}]
[null,"Privatisation du fablab",{"$f":"Prestations!A10*Pilotage!M$36/SUM(Pilotage!M$12:M$13)","v":0},{"$f":"C38*Pilotage!N$36","v":0},{"$f":"D38*Pilotage!O$36","v":0},{"$f":"E38*Pilotage!P$36","v":0},{"$f":"F38*Pilotage!Q$36","v":0},{"$f":"G38*Pilotage!R$36","v":0}]
[null,"Location à emporter Tobeca",{"$f":"Prestations!A11*Pilotage!M$36/SUM(Pilotage!M$12:M$13)","v":0},{"$f":"C39*Pilotage!N$36","v":0},{"$f":"D39*Pilotage!O$36","v":0},{"$f":"E39*Pilotage!P$36","v":0},{"$f":"F39*Pilotage!Q$36","v":0},{"$f":"G39*Pilotage!R$36","v":0}]
[null,"Libre",{"$f":"100%-SUM(C35:C39)","v":1},1,1,1,1,1]
[]
[null,"Ratio OpenLabs/location"]
[null,"Location",{"$f":"Pilotage!M12","v":2156},{"$f":"C43*D45/C45","v":0.84615384615384615},{"$f":"C43/(Pilotage!D$42-Pilotage!M$9) & \" h\"","v":"44 h"}]
[null,"OpenLabs",{"$f":"Pilotage!M13","v":392},{"$f":"C44*D45/C45","v":0.15384615384615385},{"$f":"C44/(Pilotage!D$42-Pilotage!M$9) & \" h\"","v":"8 h"}]
[null,"Total",{"$f":"SUM(C43:C44)","v":2548},1,{"$f":"C45/(Pilotage!D$42-Pilotage!M$9) & \" h\"","v":"52 h"}]
[]
[]
[null,"Répartition des revenus"]
[]
[null,null,{"$f":"Pilotage!M$22","v":"Année 0"},{"$f":"Pilotage!N$22","v":"Année 1"},{"$f":"Pilotage!O$22","v":"Année 2"},{"$f":"Pilotage!P$22","v":"Année 3"},{"$f":"Pilotage!Q$22","v":"Année 4"},{"$f":"Pilotage!R$22","v":"Année 5"}]
[null,"Ventes de produits finis",{"$f":"'Comptes de résultat 6 ans'!R7*(1+Pilotage!$D$14)","v":0},{"$f":"'Comptes de résultat 6 ans'!S7*(1+Pilotage!$D$14)","v":0},{"$f":"'Comptes de résultat 6 ans'!T7*(1+Pilotage!$D$14)","v":0},{"$f":"'Comptes de résultat 6 ans'!U7*(1+Pilotage!$D$14)","v":0},{"$f":"'Comptes de résultat 6 ans'!V7*(1+Pilotage!$D$14)","v":0},{"$f":"'Comptes de résultat 6 ans'!W7*(1+Pilotage!$D$14)","v":0}]
[null,"Ventes de matières premières",{"$f":"'Comptes de résultat 6 ans'!R8*(1+Pilotage!$D$14)","v":124800},{"$f":"'Comptes de résultat 6 ans'!S8*(1+Pilotage!$D$14)","v":249600},{"$f":"'Comptes de résultat 6 ans'!T8*(1+Pilotage!$D$14)","v":499200},{"$f":"'Comptes de résultat 6 ans'!U8*(1+Pilotage!$D$14)","v":998400},{"$f":"'Comptes de résultat 6 ans'!V8*(1+Pilotage!$D$14)","v":998400},{"$f":"'Comptes de résultat 6 ans'!W8*(1+Pilotage!$D$14)","v":1098240}]
[null,"Prestations de services",{"$f":"'Comptes de résultat 6 ans'!R12*(1+Pilotage!$D$14)","v":0},{"$f":"'Comptes de résultat 6 ans'!S12*(1+Pilotage!$D$14)","v":0},{"$f":"'Comptes de résultat 6 ans'!T12*(1+Pilotage!$D$14)","v":0},{"$f":"'Comptes de résultat 6 ans'!U12*(1+Pilotage!$D$14)","v":0},{"$f":"'Comptes de résultat 6 ans'!V12*(1+Pilotage!$D$14)","v":0},{"$f":"'Comptes de résultat 6 ans'!W12*(1+Pilotage!$D$14)","v":0}]
[null,"Locations de machines",{"$f":"'Comptes de résultat 6 ans'!R14*(1+Pilotage!$D$14)","v":0},{"$f":"'Comptes de résultat 6 ans'!S14*(1+Pilotage!$D$14)","v":0},{"$f":"'Comptes de résultat 6 ans'!T14*(1+Pilotage!$D$14)","v":0},{"$f":"'Comptes de résultat 6 ans'!U14*(1+Pilotage!$D$14)","v":0},{"$f":"'Comptes de résultat 6 ans'!V14*(1+Pilotage!$D$14)","v":0},{"$f":"'Comptes de résultat 6 ans'!W14*(1+Pilotage!$D$14)","v":0}]
[null,"Abonnements",{"$f":"'Comptes de résultat 6 ans'!R20*(1+Pilotage!$D$14)","v":0},{"$f":"'Comptes de résultat 6 ans'!S20*(1+Pilotage!$D$14)","v":0},{"$f":"'Comptes de résultat 6 ans'!T20*(1+Pilotage!$D$14)","v":0},{"$f":"'Comptes de résultat 6 ans'!U20*(1+Pilotage!$D$14)","v":0},{"$f":"'Comptes de résultat 6 ans'!V20*(1+Pilotage!$D$14)","v":0},{"$f":"'Comptes de résultat 6 ans'!W20*(1+Pilotage!$D$14)","v":0}]
[null,null,{"$f":"SUM(C51:C55)","v":124800},249600,499200,998400,998400,1098240]
[]
[null,"Evolution de la trésorerie sur 6 ans"]
[null,null,{"$f":"Pilotage!M$22","v":"Année 0"},{"$f":"Pilotage!N$22","v":"Année 1"},{"$f":"Pilotage!O$22","v":"Année 2"},{"$f":"Pilotage!P$22","v":"Année 3"},{"$f":"Pilotage!Q$22","v":"Année 4"},{"$f":"Pilotage!R$22","v":"Année 5"}]
[null,{"$f":"'Plan de trésorerie 6 ans'!A94","v":"Apports en capital"},{"$f":"'Plan de trésorerie 6 ans'!C94","v":5000},{"$f":"-1*'Plan de trésorerie 6 ans'!D94","v":0},{"$f":"-1*'Plan de trésorerie 6 ans'!E94","v":-5000},{"$f":"-1*'Plan de trésorerie 6 ans'!F94","v":0},{"$f":"-1*'Plan de trésorerie 6 ans'!G94","v":0},{"$f":"-1*'Plan de trésorerie 6 ans'!H94","v":0}]
[null,{"$f":"'Plan de trésorerie 6 ans'!A95","v":"Apports en comptes courants d'associés"},{"$f":"'Plan de trésorerie 6 ans'!C95","v":0},{"$f":"-1*'Plan de trésorerie 6 ans'!D95","v":0},{"$f":"-1*'Plan de trésorerie 6 ans'!E95","v":0},{"$f":"-1*'Plan de trésorerie 6 ans'!F95","v":0},{"$f":"-1*'Plan de trésorerie 6 ans'!G95","v":0},{"$f":"-1*'Plan de trésorerie 6 ans'!H95","v":0}]
[null,{"$f":"'Plan de trésorerie 6 ans'!A96","v":"Subventions"},{"$f":"'Plan de trésorerie 6 ans'!C96","v":0},{"$f":"-1*'Plan de trésorerie 6 ans'!D96","v":0},{"$f":"-1*'Plan de trésorerie 6 ans'!E96","v":0},{"$f":"-1*'Plan de trésorerie 6 ans'!F96","v":0},{"$f":"-1*'Plan de trésorerie 6 ans'!G96","v":0},{"$f":"-1*'Plan de trésorerie 6 ans'!H96","v":0}]
[null,{"$f":"'Plan de trésorerie 6 ans'!A97","v":"Emprunt"},{"$f":"'Plan de trésorerie 6 ans'!C97","v":0},{"$f":"-1*'Plan de trésorerie 6 ans'!D97","v":0},{"$f":"-1*'Plan de trésorerie 6 ans'!E97","v":0},{"$f":"-1*'Plan de trésorerie 6 ans'!F97","v":0},{"$f":"-1*'Plan de trésorerie 6 ans'!G97","v":0},{"$f":"-1*'Plan de trésorerie 6 ans'!H97","v":0}]
[null,{"$f":"'Plan de trésorerie 6 ans'!A100","v":"Autres encaissements"},{"$f":"'Plan de trésorerie 6 ans'!C100","v":0},{"$f":"-1*'Plan de trésorerie 6 ans'!D100","v":0},{"$f":"-1*'Plan de trésorerie 6 ans'!E100","v":0},{"$f":"-1*'Plan de trésorerie 6 ans'!F100","v":0},{"$f":"-1*'Plan de trésorerie 6 ans'!G100","v":0},{"$f":"-1*'Plan de trésorerie 6 ans'!H100","v":0}]
[null,{"$f":"'Plan de trésorerie 6 ans'!A101","v":"Matériel (Matériel)"},{"$f":"-1*'Plan de trésorerie 6 ans'!C101","v":0},{"$f":"-1*'Plan de trésorerie 6 ans'!D101","v":0},{"$f":"-1*'Plan de trésorerie 6 ans'!E101","v":0},{"$f":"-1*'Plan de trésorerie 6 ans'!F101","v":0},{"$f":"-1*'Plan de trésorerie 6 ans'!G101","v":0},{"$f":"-1*'Plan de trésorerie 6 ans'!H101","v":0}]
[null,{"$f":"'Plan de trésorerie 6 ans'!A102","v":"Travaux"},{"$f":"-1*'Plan de trésorerie 6 ans'!C102","v":0},{"$f":"-1*'Plan de trésorerie 6 ans'!D102","v":0},{"$f":"-1*'Plan de trésorerie 6 ans'!E102","v":0},{"$f":"-1*'Plan de trésorerie 6 ans'!F102","v":0},{"$f":"-1*'Plan de trésorerie 6 ans'!G102","v":0},{"$f":"-1*'Plan de trésorerie 6 ans'!H102","v":0}]
[null,{"$f":"'Plan de trésorerie 6 ans'!A104","v":"Marchandises(Stock)"},{"$f":"-1*'Plan de trésorerie 6 ans'!C104","v":0},{"$f":"-1*'Plan de trésorerie 6 ans'!D104","v":0},{"$f":"-1*'Plan de trésorerie 6 ans'!E104","v":0},{"$f":"-1*'Plan de trésorerie 6 ans'!F104","v":0},{"$f":"-1*'Plan de trésorerie 6 ans'!G104","v":0},{"$f":"-1*'Plan de trésorerie 6 ans'!H104","v":0}]
[null,{"$f":"'Plan de trésorerie 6 ans'!A105","v":"Ventes (Ventes Stock + Ventes Produits)"},{"$f":"'Plan de trésorerie 6 ans'!C105","v":124800},{"$f":"'Plan de trésorerie 6 ans'!D105","v":249600},{"$f":"'Plan de trésorerie 6 ans'!E105","v":499200},{"$f":"'Plan de trésorerie 6 ans'!F105","v":998400},{"$f":"'Plan de trésorerie 6 ans'!G105","v":998400},{"$f":"'Plan de trésorerie 6 ans'!H105","v":1098240}]
[null,{"$f":"'Plan de trésorerie 6 ans'!A106","v":"Autres revenus (Prestations + Locations)"},{"$f":"'Plan de trésorerie 6 ans'!C106","v":0},{"$f":"'Plan de trésorerie 6 ans'!D106","v":0},{"$f":"'Plan de trésorerie 6 ans'!E106","v":0},{"$f":"'Plan de trésorerie 6 ans'!F106","v":0},{"$f":"'Plan de trésorerie 6 ans'!G106","v":0},{"$f":"'Plan de trésorerie 6 ans'!H106","v":0}]
[null,{"$f":"'Plan de trésorerie 6 ans'!A107","v":"Salaires (Salaires)"},{"$f":"-1*'Plan de trésorerie 6 ans'!C107","v":-161630.22400000002},{"$f":"-1*'Plan de trésorerie 6 ans'!D107","v":-166359.13071999999},{"$f":"-1*'Plan de trésorerie 6 ans'!E107","v":-171229.90464160001},{"$f":"-1*'Plan de trésorerie 6 ans'!F107","v":-176246.80178084801},{"$f":"-1*'Plan de trésorerie 6 ans'!G107","v":-181414.20583427342},{"$f":"-1*'Plan de trésorerie 6 ans'!H107","v":-186736.63200930168}]
[null,{"$f":"'Plan de trésorerie 6 ans'!A108","v":"Loyers"},{"$f":"-1*'Plan de trésorerie 6 ans'!C108","v":0},{"$f":"-1*'Plan de trésorerie 6 ans'!D108","v":0},{"$f":"-1*'Plan de trésorerie 6 ans'!E108","v":0},{"$f":"-1*'Plan de trésorerie 6 ans'!F108","v":0},{"$f":"-1*'Plan de trésorerie 6 ans'!G108","v":0},{"$f":"-1*'Plan de trésorerie 6 ans'!H108","v":0}]
[null,{"$f":"'Plan de trésorerie 6 ans'!A109","v":"Licences (Licences)"},{"$f":"-1*'Plan de trésorerie 6 ans'!C109","v":-229.58262000000002},{"$f":"-1*'Plan de trésorerie 6 ans'!D109","v":-229.58262000000002},{"$f":"-1*'Plan de trésorerie 6 ans'!E109","v":-229.58262000000002},{"$f":"-1*'Plan de trésorerie 6 ans'!F109","v":-229.58262000000002},{"$f":"-1*'Plan de trésorerie 6 ans'!G109","v":-229.58262000000002},{"$f":"-1*'Plan de trésorerie 6 ans'!H109","v":-229.58262000000002}]
[null,{"$f":"'Plan de trésorerie 6 ans'!A112","v":"Impôts sur les bénéfices"},{"$f":"-1*'Plan de trésorerie 6 ans'!C112","v":0},{"$f":"-1*'Plan de trésorerie 6 ans'!D112","v":-314.97481200000328},{"$f":"-1*'Plan de trésorerie 6 ans'!E112","v":-60681.851291688887},{"$f":"-1*'Plan de trésorerie 6 ans'!F112","v":-196870.44726169881},{"$f":"-1*'Plan de trésorerie 6 ans'!G112","v":-194702.84436187695},{"$f":"-1*'Plan de trésorerie 6 ans'!H112","v":-220148.7121610686}]
[null,{"$f":"'Plan de trésorerie 6 ans'!A113","v":"Garanties sur loyer"},{"$f":"-1*'Plan de trésorerie 6 ans'!C113","v":0},{"$f":"-1*'Plan de trésorerie 6 ans'!D113","v":0},{"$f":"-1*'Plan de trésorerie 6 ans'!E113","v":0},{"$f":"-1*'Plan de trésorerie 6 ans'!F113","v":0},{"$f":"-1*'Plan de trésorerie 6 ans'!G113","v":0},{"$f":"-1*'Plan de trésorerie 6 ans'!H113","v":0}]
[null,{"$f":"'Plan de trésorerie 6 ans'!A114","v":"Garanties professionnelles"},{"$f":"-1*'Plan de trésorerie 6 ans'!C114","v":0},{"$f":"-1*'Plan de trésorerie 6 ans'!D114","v":0},{"$f":"-1*'Plan de trésorerie 6 ans'!E114","v":0},{"$f":"-1*'Plan de trésorerie 6 ans'!F114","v":0},{"$f":"-1*'Plan de trésorerie 6 ans'!G114","v":0},{"$f":"-1*'Plan de trésorerie 6 ans'!H114","v":0}]
[null,{"$f":"'Plan de trésorerie 6 ans'!A115","v":"Remboursements d'emprunts"},{"$f":"-1*'Plan de trésorerie 6 ans'!C115","v":0},{"$f":"-1*'Plan de trésorerie 6 ans'!D115","v":0},{"$f":"-1*'Plan de trésorerie 6 ans'!E115","v":0},{"$f":"-1*'Plan de trésorerie 6 ans'!F115","v":0},{"$f":"-1*'Plan de trésorerie 6 ans'!G115","v":0},{"$f":"-1*'Plan de trésorerie 6 ans'!H115","v":0}]
[null,null,{"$f":"SUM(C60:C76)","v":-32059.806620000018},82696.311848000012,262058.66144671114,625053.16833745316,622053.36718384956,691125.07320962974]
[null,null,{"$f":"SUM($C77:C77)","v":-32059.806620000018},{"$f":"SUM($C77:D77)","v":50636.505227999995},{"$f":"SUM($C77:E77)","v":312695.16667471116},{"$f":"SUM($C77:F77)","v":937748.33501216432},{"$f":"SUM($C77:G77)","v":1559801.7021960139},{"$f":"SUM($C77:H77)","v":2250926.7754056435}]
[]
[]
[null,"Répartition du CA par activité"]
[null,null,{"$f":"Synthèse!G5","v":"FabLab"},{"$f":"Synthèse!H5","v":"FabCafé"},{"$f":"Synthèse!I5","v":"Boutiques"},{"$f":"Synthèse!J5","v":"Coworking"}]
[null,"CA (HT)",{"$f":"Synthèse!U7","v":{"$error":"#REF!"}},{"$f":"Synthèse!V7","v":{"$error":"#REF!"}},{"$f":"Synthèse!W7","v":{"$error":"#REF!"}},{"$f":"Synthèse!X7","v":{"$error":"#REF!"}}]
[null,"Total charges variables(HT)",{"$f":"Synthèse!G79","v":{"$error":"#REF!"}},{"$f":"Synthèse!H79","v":{"$error":"#REF!"}},{"$f":"Synthèse!I79","v":{"$error":"#REF!"}},{"$f":"Synthèse!J79","v":{"$error":"#REF!"}}]
[null,"Marge sur coûts variables",{"$f":"C83-C84","v":{"$error":"#REF!"}},{"$f":"D83-D84","v":{"$error":"#REF!"}},{"$f":"E83-E84","v":{"$error":"#REF!"}},{"$f":"F83-F84","v":{"$error":"#REF!"}}]
[null,"Taux de marge sur coûts variables",{"$f":"IF(C83=0,0,C85/C83)","v":{"$error":"#REF!"}},{"$f":"IF(D83=0,0,D85/D83)","v":{"$error":"#REF!"}},{"$f":"IF(E83=0,0,E85/E83)","v":{"$error":"#REF!"}},{"$f":"IF(F83=0,0,F85/F83)","v":{"$error":"#REF!"}}]
[null,"Total charges fixes (HT)",{"$f":"Synthèse!G78","v":{"$error":"#REF!"}},{"$f":"Synthèse!H78","v":{"$error":"#REF!"}},{"$f":"Synthèse!I78","v":{"$error":"#REF!"}},{"$f":"Synthèse!J78","v":{"$error":"#REF!"}}]
[null,"Seuil de rentabilité",{"$f":"IF(C87=0,0,C87/C86)","v":{"$error":"#REF!"}},{"$f":"IF(D87=0,0,D87/D86)","v":{"$error":"#REF!"}},{"$f":"IF(E87=0,0,E87/E86)","v":{"$error":"#REF!"}},{"$f":"IF(F87=0,0,F87/F86)","v":{"$error":"#REF!"}}]
[null,"Point Mort (j)",{"$f":"C88/(C83/360)","v":{"$error":"#REF!"}},{"$f":"D88/(D83/360)","v":{"$error":"#REF!"}},{"$f":"E88/(E83/360)","v":{"$error":"#REF!"}},{"$f":"F88/(F83/360)","v":{"$error":"#REF!"}}]
[]
[]
[]
[null,"Evolution du résultat net"]
[null,null,{"$f":"Pilotage!M$22","v":"Année 0"},{"$f":"Pilotage!N$22","v":"Année 1"},{"$f":"Pilotage!O$22","v":"Année 2"},{"$f":"Pilotage!P$22","v":"Année 3"},{"$f":"Pilotage!Q$22","v":"Année 4"},{"$f":"Pilotage!R$22","v":"Année 5"}]
[null,"Résultat net",{"$f":"'SIG 6 ans'!D35","v":-93717.042850000013},{"$f":"'SIG 6 ans'!G35","v":1784.8572680000195},{"$f":"'SIG 6 ans'!J35","v":142329.70258337777},{"$f":"'SIG 6 ans'!M35","v":414706.89452339767},{"$f":"'SIG 6 ans'!P35","v":410371.6887237539},{"$f":"'SIG 6 ans'!S35","v":461263.42432213726}]
[null,"Taux",{"$f":"'SIG 6 ans'!E35","v":-0.90112541201923091},{"$f":"'SIG 6 ans'!H35","v":8.5810445576924022E-3},{"$f":"'SIG 6 ans'!K35","v":0.34213870813311964},{"$f":"'SIG 6 ans'!N35","v":0.49844578668677603},{"$f":"'SIG 6 ans'!Q35","v":0.49323520279297345},{"$f":"'SIG 6 ans'!T35","v":0.50400286748485279}]
[null,null,{"$f":"'SIG 6 ans'!C38:E38","v":0},{"$f":"'SIG 6 ans'!F38","v":1},{"$f":"'SIG 6 ans'!I38","v":1},{"$f":"'SIG 6 ans'!L38","v":1},{"$f":"'SIG 6 ans'!O38","v":0},{"$f":"'SIG 6 ans'!R38","v":0.10000000000000009}]

{"sheet":"Rapports","index":6,"n_rows":2,"n_cols":2,"rows_kept":2,"cut":false,"hidden":false,"merged":[[1,1,1,14]]}
[]
[null,"Rapports"]

{"sheet":"ExecutiveSummary","index":7,"n_rows":27,"n_cols":4,"rows_kept":27,"cut":false,"hidden":false,"merged":[]}
["L’organisation"]
[null,"Etablissement",null,{"$f":"Pilotage!D5&\" m²\"","v":"0 m²"}]
[null,"Machines",null,{"$f":"Investissement!B5","v":0}]
[null,"BFR",null,{"$f":"'Plan de financement à 6 ans'!E26","v":0}]
[null,"Personnel"]
[null,null,"1ère année",{"$f":" SUM(Pilotage!F59:F65)&\" ETP\"","v":"4 ETP"}]
[null,null,"2ème année",{"$f":" SUM(Pilotage!H59:H65)&\" ETP\"","v":"4 ETP"}]
[null,null,"3ème année",{"$f":" SUM(Pilotage!J59:J65)&\" ETP\"","v":"4 ETP"}]
[]
["Le chiffre d’affaire"]
[null,"1ère année",null,{"$f":"'Comptes de résultat 6 ans'!R6","v":104000}]
[null,"2ème année",null,{"$f":"'Comptes de résultat 6 ans'!S6","v":208000}]
[null,"3ème année",null,{"$f":"'Comptes de résultat 6 ans'!T6","v":416000}]
[]
["Résultat net (après IS)"]
[null,"1ère année",null,{"$f":"'Comptes de résultat 6 ans'!G91","v":-93717.042850000027}]
[null,"2ème année",null,{"$f":"'Comptes de résultat 6 ans'!H91","v":1784.8572680000186}]
[null,"3ème année",null,{"$f":"'Comptes de résultat 6 ans'!I91","v":142329.70258337777}]
[]
["Capital social",null,null,{"$f":"'Plan de financement à 6 ans'!N8","v":10000}]
[]
["Autres financements",null,null,{"$f":"'Plan de financement à 6 ans'!N17","v":0}]
[]
["Emprunts"]
[null,"Bancaires",null,{"$f":"'Plan de financement à 6 ans'!N33","v":0}]
[null,"PCE",null,{"$f":"'Plan de financement à 6 ans'!N32","v":0}]
[null,"Prêts d'honneur",null,{"$f":"'Plan de financement à 6 ans'!N31","v":0}]

{"sheet":"TarifsServices","index":8,"n_rows":31,"n_cols":5,"rows_kept":31,"cut":false,"hidden":false,"merged":[]}
["Passeports (en € TTC)","Plein tarif","Tarif réduit","Tarif adhérent","Durée"]
[{"$f":"Pilotage!F42","v":"Découpe laser"},60,{"$f":"B2*(1-Pilotage!M$17)","v":54},{"$f":"B2*(1-Pilotage!M$18)","v":48},"1 h"]
[{"$f":"Pilotage!F43","v":"Imprimante 3D"},30,{"$f":"B3*(1-Pilotage!M$17)","v":27},{"$f":"B3*(1-Pilotage!M$18)","v":24},"30 min - 1 h"]
[{"$f":"Pilotage!F44","v":"Petite imprimante 3D"},30,{"$f":"B4*(1-Pilotage!M$17)","v":27},{"$f":"B4*(1-Pilotage!M$18)","v":24},"30 min - 1 h"]
[{"$f":"Pilotage!F45","v":"Découpe vinyle"},30,{"$f":"B5*(1-Pilotage!M$17)","v":27},{"$f":"B5*(1-Pilotage!M$18)","v":24},"30 min - 1 h"]
[{"$f":"Pilotage!F46","v":"Petite fraiseuse"},30,{"$f":"B6*(1-Pilotage!M$17)","v":27},{"$f":"B6*(1-Pilotage!M$18)","v":24},"30 min - 1 h"]
[{"$f":"Pilotage!F47","v":"Grande fraiseuse"},150,{"$f":"B7*(1-Pilotage!M$17)","v":135},{"$f":"B7*(1-Pilotage!M$18)","v":120},"2 h - 3 h"]
[{"$f":"Pilotage!F49","v":"Machine à broder/coudre"},30,{"$f":"B8*(1-Pilotage!M$17)","v":27},{"$f":"B8*(1-Pilotage!M$18)","v":24},"30 min - 1 h"]
[{"$f":"Pilotage!F50","v":"Presse à chaud"},5,{"$f":"B9*(1-Pilotage!M$17)","v":4.5},{"$f":"B9*(1-Pilotage!M$18)","v":4},"15 min"]
[]
["Autre (en € TTC)",{"$f":"B17","v":"Plein tarif"},{"$f":"C17","v":"Tarif réduit"},{"$f":"D17","v":"Tarif adhérent"}]
["Accès atelier (0,5j/p)",5,{"$f":"INT(B12*(1-Pilotage!M$17))","v":4},{"$f":"\"0 €  \"","v":"0 €  "}]
["Privatisation de l'atelier (/h)",150,{"$f":"B13*(1-Pilotage!M$17)","v":135},{"$f":"B13*(1-Pilotage!M$18)","v":120}]
["Location Imprimante 3D (/h)",10,{"$f":"B14*(1-Pilotage!M$17)","v":9},{"$f":"B14*(1-Pilotage!M$18)","v":8}]
["Location bureau (0,5j/p)",5,{"$f":"B15*(1-Pilotage!M$17)","v":4.5},{"$f":"B15*(1-Pilotage!M$18)","v":4}]
[]
["Services (en € TTC)","Plein tarif","Tarif réduit","Tarif adhérent"]
["Formation individuelle",60,{"$f":"B18*(1-Pilotage!M$17)","v":54},{"$f":"B18*(1-Pilotage!M$18)","v":48}]
["Formation collective",30,{"$f":"B19*(1-Pilotage!M$17)","v":27},{"$f":"B19*(1-Pilotage!M$18)","v":24}]
["Accompagnement",30,{"$f":"B20*(1-Pilotage!M$17)","v":27},{"$f":"B20*(1-Pilotage!M$18)","v":24}]
["Prestation",30,{"$f":"B21*(1-Pilotage!M$17)","v":27},{"$f":"B21*(1-Pilotage!M$18)","v":24}]
[]
["Locations (en € TTC)",{"$f":"B17","v":"Plein tarif"},{"$f":"C17","v":"Tarif réduit"},"Tarif adhérent"]
[{"$f":"Pilotage!F42","v":"Découpe laser"},{"$f":"Pilotage!G42","v":0},{"$f":"B24*(1-Pilotage!M$17)","v":0},{"$f":"B24*(1-Pilotage!M$18)","v":0}]
[{"$f":"Pilotage!F43","v":"Imprimante 3D"},{"$f":"Pilotage!G43","v":0},{"$f":"B25*(1-Pilotage!M$17)","v":0},{"$f":"B25*(1-Pilotage!M$18)","v":0}]
[{"$f":"Pilotage!F44","v":"Petite imprimante 3D"},{"$f":"Pilotage!G44","v":0},{"$f":"B26*(1-Pilotage!M$17)","v":0},{"$f":"B26*(1-Pilotage!M$18)","v":0}]
[{"$f":"Pilotage!F45","v":"Découpe vinyle"},{"$f":"Pilotage!G45","v":0},{"$f":"B27*(1-Pilotage!M$17)","v":0},{"$f":"B27*(1-Pilotage!M$18)","v":0}]
[{"$f":"Pilotage!F46","v":"Petite fraiseuse"},{"$f":"Pilotage!G46","v":0},{"$f":"B28*(1-Pilotage!M$17)","v":0},{"$f":"B28*(1-Pilotage!M$18)","v":0}]
[{"$f":"Pilotage!F47","v":"Grande fraiseuse"},{"$f":"Pilotage!G47","v":0},{"$f":"B29*(1-Pilotage!M$17)","v":0},{"$f":"B29*(1-Pilotage!M$18)","v":0}]
[{"$f":"Pilotage!F48","v":"Machine à coudre"},{"$f":"Pilotage!G48","v":0},{"$f":"B30*(1-Pilotage!M$17)","v":0},{"$f":"B30*(1-Pilotage!M$18)","v":0}]
[{"$f":"Pilotage!F49","v":"Machine à broder/coudre"},{"$f":"Pilotage!G49","v":0},{"$f":"B31*(1-Pilotage!M$17)","v":0},{"$f":"B31*(1-Pilotage!M$18)","v":0}]

{"sheet":"TarifsAbos","index":9,"n_rows":6,"n_cols":5,"rows_kept":6,"cut":false,"hidden":false,"merged":[]}
[]
["Abonnements","Annuel","Mensuel",null,"Comprend"]
[{"$f":"Pilotage!F34&\" (étudiants, <25 ans, demandeurs d'emploi) \"","v":"Starter (étudiants, <25 ans, demandeurs d'emploi) "},{"$f":"Pilotage!G34","v":0},{"$f":"B3/12","v":0},null,{"$f":"CA!K32","v":"soit 0 €/mois pour 1 h/an de formation, 1 h/mois de temps machine  (valeur : 0 €)"}]
[{"$f":"Pilotage!F35","v":"Maker"},{"$f":"Pilotage!G35","v":0},{"$f":"B4/12","v":0},null,{"$f":"CA!K33","v":"soit 0 €/mois pour 1 h/an de formation, 1 h/m de temps machine  au lieu de 0 €"}]
[{"$f":"Pilotage!F36","v":"Startup"},{"$f":"Pilotage!G36","v":0},0,null,{"$f":"CA!K34","v":"soit 0 €/mois pour 1 h/an de formation, 3 h/mois de temps machine , 1 h/mois d'accompagnement personnalisé (valeur : 0 €)"}]
[{"$f":"Pilotage!F37","v":"Pro"},{"$f":"Pilotage!G37","v":0},0,null,{"$f":"CA!K35","v":"soit 0 €/mois pour 2 h/an de formation, 5 h/m de temps machine , 2 h/m d'accompagnement personnalisé (valeur : 0 €)"}]

{"sheet":"Evolution CA A0","index":10,"n_rows":4,"n_cols":14,"rows_kept":4,"cut":false,"hidden":false,"merged":[]}
["en € TTC","Contrôle","Mois 1","Mois 2","Mois 3","Mois 4","Mois 5","Mois 6","Mois 7","Mois 8","Mois 9","Mois 10","Mois 11","Mois 12"]
["Coeff",{"$f":"'Plan de trésorerie A0'!B100","v":1},{"$f":"'Plan de trésorerie A0'!C100","v":0.01},{"$f":"'Plan de trésorerie A0'!D100","v":0.03},{"$f":"'Plan de trésorerie A0'!E100","v":0.05},{"$f":"'Plan de trésorerie A0'!F100","v":0.08},{"$f":"'Plan de trésorerie A0'!G100","v":0.09},{"$f":"'Plan de trésorerie A0'!H100","v":8.6484895513569471E-2},{"$f":"'Plan de trésorerie A0'!I100","v":9.2419624074659368E-2},{"$f":"'Plan de trésorerie A0'!J100","v":9.7654425659387534E-2},{"$f":"'Plan de trésorerie A0'!K100","v":0.10233711524417982},{"$f":"'Plan de trésorerie A0'!L100","v":0.12},{"$f":"'Plan de trésorerie A0'!M100","v":0.12},{"$f":"'Plan de trésorerie A0'!N100","v":0.12}]
["Ventes directes",{"$f":"'Plan de trésorerie A0'!B101","v":124800},{"$f":"'Plan de trésorerie A0'!C101","v":1248},{"$f":"'Plan de trésorerie A0'!D101","v":3744},{"$f":"'Plan de trésorerie A0'!E101","v":6240},{"$f":"'Plan de trésorerie A0'!F101","v":9984},{"$f":"'Plan de trésorerie A0'!G101","v":11232},{"$f":"'Plan de trésorerie A0'!H101","v":10793.31496009347},{"$f":"'Plan de trésorerie A0'!I101","v":11533.969084517488},{"$f":"'Plan de trésorerie A0'!J101","v":12187.272322291565},{"$f":"'Plan de trésorerie A0'!K101","v":12771.671982473641},{"$f":"'Plan de trésorerie A0'!L101","v":14976},{"$f":"'Plan de trésorerie A0'!M101","v":14976},{"$f":"'Plan de trésorerie A0'!N101","v":14955.37}]
["Autres (loca et prestas)",{"$f":"'Plan de trésorerie A0'!B102","v":0},{"$f":"'Plan de trésorerie A0'!C102","v":0},{"$f":"'Plan de trésorerie A0'!D102","v":0},{"$f":"'Plan de trésorerie A0'!E102","v":0},{"$f":"'Plan de trésorerie A0'!F102","v":0},{"$f":"'Plan de trésorerie A0'!G102","v":0},{"$f":"'Plan de trésorerie A0'!H102","v":0},{"$f":"'Plan de trésorerie A0'!I102","v":0},{"$f":"'Plan de trésorerie A0'!J102","v":0},{"$f":"'Plan de trésorerie A0'!K102","v":0},{"$f":"'Plan de trésorerie A0'!L102","v":0},{"$f":"'Plan de trésorerie A0'!M102","v":0},{"$f":"'Plan de trésorerie A0'!N102","v":-45.32}]

{"sheet":"Investissement","index":11,"n_rows":5,"n_cols":2,"rows_kept":5,"cut":false,"hidden":false,"merged":[]}
[]
["Achats de matériel","Montant en € HT"]
["financés par emprunts",{"$f":"'Plan de financement à 6 ans'!E20","v":0}]
["financés par Crédit-bail/financement locatif",{"$f":"'Credit-bail'!C5","v":0}]
["Total des investissements matériels",{"$f":"SUM(B3:B4)","v":0}]

{"sheet":"Frais","index":12,"n_rows":32,"n_cols":5,"rows_kept":32,"cut":false,"hidden":false,"merged":[]}
[null,"Charges (en € HT)","Année 0","Année 1","Année 2"]
[null,"Eau et électricité",0,{"$f":"C2*103%","v":0},{"$f":"D2*103%","v":0}]
[null,"Fournitures d'entretien, petit équipement",0,{"$f":"C3*103%","v":0},0]
[null,"Sous-traitance",0,0,0]
[null,"Locations diverses (Hébergement Web)",{"$f":"'Charges Ext'!K16+'Charges Ext'!K17+'Charges Ext'!K18","v":2400},2472,2546.16]
[null,"Assurances TTC",{"$f":"'Charges Ext'!K13","v":500},515,530.45000000000005]
[null,"Formation, Etudes et recherches",{"$f":"'Charges Ext'!K33","v":0},0,0]
[null,"Documentation",0,0,0]
[null,"Personnel extérieur",{"$f":"'Charges Ext'!K22","v":1666.6666666666667},1716.6666666666667,1768.1666666666667]
[null,"Honoraires",{"$f":"'Charges Ext'!K25","v":3000},3090,3182.7000000000003]
[null,"Publicité",{"$f":"'Charges Ext'!K24","v":20833.333333333336},21458.333333333336,22102.083333333336]
[null,"Salons & frais de réception",{"$f":"'Charges Ext'!K31","v":0},0,0]
[null,"Déplacement TTC",{"$f":"'Charges Ext'!K28+'Charges Ext'!K29","v":5000},5150,5304.5]
[null,"Poste et télécom",{"$f":"SUM('Charges Ext'!K9:K9)","v":125},128.75,132.61250000000001]
[null,"Autres",{"$f":"'Charges Ext'!L6*0.833333","v":703.83305180000013},724.94804335400011,746.69648465462012]
[null,"Sous total",{"$f":"SUM(C2:C15)","v":34228.8330518},{"$f":"SUM(D2:D15)","v":35255.698043354001},{"$f":"SUM(E2:E15)","v":36313.368984654626}]
[]
[null,"Fournitures / consommables",{"$f":"'Comptes de résultat 6 ans'!G12","v":0},{"$f":"'Comptes de résultat 6 ans'!H12","v":0},{"$f":"'Comptes de résultat 6 ans'!I12","v":0}]
[null,"Redevances du crédit-bail",{"$f":"'Comptes de résultat 6 ans'!G28","v":0},{"$f":"'Comptes de résultat 6 ans'!H28","v":0},{"$f":"'Comptes de résultat 6 ans'!I28","v":0}]
[null,"Services bancaires (intérêts d'emprunts)",{"$f":"'Comptes de résultat 6 ans'!G61","v":0},{"$f":"'Comptes de résultat 6 ans'!H61","v":0},{"$f":"'Comptes de résultat 6 ans'!I61","v":0}]
[null,"Loyer et charges locatives",{"$f":"'Comptes de résultat 6 ans'!G27","v":0},{"$f":"'Comptes de résultat 6 ans'!H27","v":0},{"$f":"'Comptes de résultat 6 ans'!I27","v":0}]
[null,"Entretien et maintenances",{"$f":"'Comptes de résultat 6 ans'!G13","v":0},{"$f":"'Comptes de résultat 6 ans'!H13","v":0},{"$f":"'Comptes de résultat 6 ans'!I13","v":0}]
[null,"Licences logicielles",{"$f":"'Comptes de résultat 6 ans'!G57","v":191.31885000000003},{"$f":"'Comptes de résultat 6 ans'!H57","v":191.31885000000003},{"$f":"'Comptes de résultat 6 ans'!I57","v":191.31885000000003}]
[null,"Impôts et taxes (CET)",{"$f":"'Comptes de résultat 6 ans'!G42","v":0},{"$f":"'Comptes de résultat 6 ans'!H42","v":2375},{"$f":"'Comptes de résultat 6 ans'!I42","v":3483.3333333333335}]
[]
[null,"Total",{"$f":"SUM(C2:C15)+SUM(C18:C24)","v":34420.151901800004},{"$f":"SUM(D2:D15)+SUM(D18:D24)","v":37822.016893354004},{"$f":"SUM(E2:E15)+SUM(E18:E24)","v":39988.021167987958}]
[]
[null,"Salaires",{"$f":"'Comptes de résultat 6 ans'!G50","v":161630.22400000002},{"$f":"'Comptes de résultat 6 ans'!H50","v":166359.13071999999},{"$f":"'Comptes de résultat 6 ans'!I50","v":171229.90464160001}]
[null,"DAT",{"$f":"'Comptes de résultat 6 ans'!G69","v":0},{"$f":"'Comptes de résultat 6 ans'!H69","v":2.3533499999999998},{"$f":"'Comptes de résultat 6 ans'!I69","v":2.3533499999999998}]
[null,"Stock - Marchandises",{"$f":"'Comptes de résultat 6 ans'!G8","v":0},{"$f":"'Comptes de résultat 6 ans'!H8","v":0},{"$f":"'Comptes de résultat 6 ans'!I8","v":0}]
[]
[null,"Total charges",{"$f":"SUM(C26,C28:C30)","v":196050.37590180003},{"$f":"SUM(D26,D28:D30)","v":204183.50096335399},{"$f":"SUM(E26,E28:E30)","v":211220.27915958795}]

{"sheet":"Associés","index":13,"n_rows":43,"n_cols":10,"rows_kept":43,"cut":false,"hidden":false,"merged":[]}
[null,null,"Collèges",null,"Apports","Parts","% du capital social par associé","% du capital social par collège","Nb voix","Part du nb de votes"]
[null,null,"Salariés de l’entreprise",null,null,null,null,{"$f":"SUM(G3:G4)","v":0.3783783783783784},{"$f":"IF(C2<>\"\",COUNTIF(E3:E4,\">0\"),\"\")","v":1},0.3]
[null,null,null,"Joris",7000,{"$f":"IF(E3<>\"\",E3/100,\"\")","v":70},{"$f":"IF(E3<>\"\",E3/$E$42,\"\")","v":0.3783783783783784},null,{"$f":"IF(C3<>\"\",COUNTIF(E4:E5,\">0\"),\"\")","v":""}]
[]
[null,null,"Bénéficiaires",null,null,{"$f":"IF(E5<>\"\",E5/100,\"\")","v":""},{"$f":"IF(E5<>\"\",E5/$E$42,\"\")","v":""},{"$f":"SUM(G6:G25)","v":9.7297297297297303E-2},{"$f":"IF(C5<>\"\",COUNTIF(E6:E25,\">0\"),\"\")","v":18},0.3]
[null,null,null,"Sandrine",100,1,5.4054054054054057E-3,null,{"$f":"IF(C6<>\"\",COUNTIF(E25:E25,\">0\"),\"\")","v":""}]
[null,null,null,"Isabelle",100,1,5.4054054054054057E-3]
[null,null,null,"Bernard",100,1,5.4054054054054057E-3]
[null,null,null,"Georges",100,1,5.4054054054054057E-3]
[null,null,null,"Michèle",100,1,5.4054054054054057E-3]
[null,null,null,"Pierre",100,1,5.4054054054054057E-3]
[null,null,null,"Jacques",100,{"$f":"IF(E12<>\"\",E12/100,\"\")","v":1},5.4054054054054057E-3]
[null,null,null,"Maurice",100,1,5.4054054054054057E-3]
[null,null,null,"Fabien",100,1,5.4054054054054057E-3]
[null,null,null,"Dimitri",100,1,5.4054054054054057E-3]
[null,null,null,"Ben",100,1,5.4054054054054057E-3]
[null,null,null,"Thierry",100,1,5.4054054054054057E-3]
[null,null,null,"Linda",100,1,5.4054054054054057E-3]
[null,null,null,"Jean-Michel",100,1,{"$f":"IF(E19<>\"\",E19/$E$42,\"\")","v":5.4054054054054057E-3}]
[null,null,null,"Jean benoit",100,1,5.4054054054054057E-3]
[null,null,null,"Cindy",100,1,5.4054054054054057E-3]
[null,null,null,"Vincent",100,1,5.4054054054054057E-3]
[null,null,null,"Henri",100,1,5.4054054054054057E-3]
[]
[null,null,null,null,null,{"$f":"IF(E25<>\"\",E25/100,\"\")","v":""},{"$f":"IF(E25<>\"\",E25/$E$42,\"\")","v":""},null,{"$f":"IF(C25<>\"\",COUNTIF(E26:E38,\">0\"),\"\")","v":""}]
[null,null,"FabLabs",null,null,"",{"$f":"IF(E26<>\"\",E26/$E$42,\"\")","v":""},{"$f":"SUM(G27:G31)","v":1.6216216216216217E-2},{"$f":"IF(C26<>\"\",COUNTIF(E27:E31,\">0\"),\"\")","v":3},0.1]
[null,null,null,"FabLab 1",100,1,{"$f":"IF(E27<>\"\",E27/$E$42,\"\")","v":5.4054054054054057E-3}]
[null,null,null,"FabLab 2",100,1,{"$f":"IF(E28<>\"\",E28/$E$42,\"\")","v":5.4054054054054057E-3}]
[null,null,null,"FabLab 3",100,1,5.4054054054054057E-3]
[]
[null,null,null,null,null,"",{"$f":"IF(E31<>\"\",E31/$E$42,\"\")","v":""},null,{"$f":"IF(C31<>\"\",COUNTIF(#REF!,\">0\"),\"\")","v":""}]
[null,null,"Partenaires",null,null,null,null,{"$f":"SUM(G33:G36)","v":0.21621621621621623},{"$f":"IF(C32<>\"\",COUNTIF(E33:E40,\">0\"),\"\")","v":6},0.3]
[null,null,null,"Ecole 1",1000,10,{"$f":"IF(E33<>\"\",E33/$E$42,\"\")","v":5.4054054054054057E-2}]
[null,null,null,"Marie",1000,10,5.4054054054054057E-2]
[null,null,null,"Com com",1000,10,5.4054054054054057E-2]
[null,null,null,"Département",1000,10,5.4054054054054057E-2]
[null,null,null,"Association",1000,10,5.4054054054054057E-2]
[null,null,null,"Société",1000,{"$f":"IF(E38<>\"\",E38/100,\"\")","v":10},5.4054054054054057E-2]
[]
[null,null,null,null,null,{"$f":"IF(E40<>\"\",E40/100,\"\")","v":""},null,null,{"$f":"IF(C40<>\"\",COUNTIF(E41:E41,\">0\"),\"\")","v":""}]
[null,null,"Total","actuel",{"$f":"SUM(E2:E38)","v":15100},{"$f":"SUM(F3:F38)","v":151},"Nb associés",null,{"$f":"SUM(I2:I32)","v":28},{"$f":"SUM(J2:J33)","v":1}]
[null,null,null,"cible",18500,{"$f":"E42/100","v":185}]
[null,null,null,"restant",{"$f":"E42-E41","v":3400},{"$f":"\"soit \"&F42-F41&\" parts\"","v":"soit 34 parts"}]

{"sheet":"Ressources","index":14,"n_rows":16,"n_cols":3,"rows_kept":16,"cut":false,"hidden":false,"merged":[[1,0,1,2]]}
[]
["Ressources"]
[{"$f":"'Plan de financement à 6 ans'!L8","v":"Capitaux propres"},null,{"$f":"'Plan de financement à 6 ans'!N8","v":10000}]
[{"$f":"'Plan de financement à 6 ans'!L9","v":" "},{"$f":"'Plan de financement à 6 ans'!M9","v":"Apports personnels"},{"$f":"'Plan de financement à 6 ans'!N9","v":10000}]
[null,{"$f":"'Plan de financement à 6 ans'!M10","v":"Apports des associés"},{"$f":"'Plan de financement à 6 ans'!N10","v":0}]
[null,{"$f":"'Plan de financement à 6 ans'!M11","v":"Apports en nature"},{"$f":"'Plan de financement à 6 ans'!N11","v":0}]
[{"$f":"'Plan de financement à 6 ans'!L13","v":"Comptes courants d'associés"},null,0]
[{"$f":"'Plan de financement à 6 ans'!L17","v":"Subvention, prime"},null,{"$f":"'Plan de financement à 6 ans'!N17","v":0}]
[null,{"$f":"'Plan de financement à 6 ans'!M18","v":"Financements participatifs"},{"$f":"'Plan de financement à 6 ans'!N18","v":0}]
[null,{"$f":"'Plan de financement à 6 ans'!M19","v":"Autres fonds (NACRE, fondations)"},{"$f":"'Plan de financement à 6 ans'!N19","v":0}]
[null,{"$f":"'Plan de financement à 6 ans'!M20","v":"Financements privés/sponsors"},{"$f":"'Plan de financement à 6 ans'!N20","v":0}]
[{"$f":"'Plan de financement à 6 ans'!L30","v":"Capitaux empruntés"},null,{"$f":"'Plan de financement à 6 ans'!N30","v":0}]
[null,{"$f":"'Plan de financement à 6 ans'!M31","v":"Prêts d'honneur"},{"$f":"'Plan de financement à 6 ans'!N31","v":0}]
[null,{"$f":"'Plan de financement à 6 ans'!M32","v":"PCE"},{"$f":"'Plan de financement à 6 ans'!N32","v":0}]
[null,{"$f":"'Plan de financement à 6 ans'!M33","v":"Prêt bancaire"},{"$f":"'Plan de financement à 6 ans'!N33","v":0}]
["TOTAL",null,{"$f":"'Plan de financement à 6 ans'!N40","v":10000}]

{"sheet":"Plan financier initial","index":15,"n_rows":41,"n_cols":9,"rows_kept":41,"cut":false,"hidden":false,"merged":[[4,2,4,4],[4,6,4,8],[1,1,1,9]]}
[]
[null,"Plan de financement initial"]
[]
[]
[null,null,"BESOINS PERMANENTS",null,null,null,"RESSOURCES DURABLES"]
[]
[null,null,"Frais d'établissement",null,{"$f":"Installation!K4","v":9571.0000000000018},null,"Capitaux propres",null,{"$f":"SUM(I8:I10)","v":10000}]
[null,null,null,null,null,null," ","Apports personnels",{"$f":"Pilotage!H10","v":10000}]
[null,null,null,null,null,null,null,"Apports des associés",{"$f":"Pilotage!H12","v":0}]
[null,null,null,null,null,null,null,"Apports en nature",{"$f":"Pilotage!H11","v":0}]
[]
[null,null,"Immobilisations incorporelles",null,{"$f":"E13+E14","v":0}]
[null,null,null,"  Brevet, licences",0]
[null,null,null,"  Fonds de commerce ou droit au bail",0]
[]
[null,null,"Immobilisations corporelles",null,{"$f":"E17+E19+E18","v":0},null,"Subvention, prime",null,{"$f":"SUM(I17:I19)","v":0}]
[null,null,null,"Travaux / aménagements / Mobilier",{"$f":"Travaux!K4","v":0},null,null,"Financement participatif",{"$f":"Pilotage!H18","v":0}]
[null,null,null,"Matériel",{"$f":"Matériel!K4","v":0},null,null,{"$f":"Pilotage!G19","v":"Autres fonds (NACRE, fondations)"},{"$f":"Pilotage!H19","v":0}]
[null,null,null,"  Véhicule",0,null,null,{"$f":"Pilotage!G20","v":"Financements privés/sponsors"},{"$f":"Pilotage!H20","v":0}]
[]
[null,null,"Immobilisations financières",null,{"$f":"E22+E23","v":0}]
[null,null,null,"Caution sur loyer",{"$f":"Pilotage!D9*Pilotage!D7","v":0}]
[null,null,null,"Garanties professionnelles",0]
[]
[null,null,"Besoin en fond de roulement",null,{"$f":"Pilotage!H23","v":0}]
[]
[null,null,"Stock de marchandises",null,0]
[]
[null,null,"Remboursements",null,{"$f":"SUM(E30:E33)","v":0},null,"Capitaux empruntés",null,{"$f":"SUM(I30:I32)","v":0}]
[null,null,null,"  Prêts d'honneur",{"$f":"'Prêts honneur'!C12*'Prêts honneur'!C8","v":0},null,null,{"$f":"Pilotage!G21","v":"Prêts d'honneur"},{"$f":"Pilotage!H21","v":0}]
[null,null,null,"  PCE",{"$f":"PCE!C12*PCE!C8","v":0},null,null,{"$f":"Pilotage!G22","v":"PCE"},{"$f":"Pilotage!H22","v":0}]
[null,null,null,"  Prêt bancaire",{"$f":"Emprunt!$C8*Emprunt!$C12","v":0},null,null,"Prêt bancaire",{"$f":"Pilotage!D29","v":0}]
[null,null,null,"  Crédit-bail/location financière",{"$f":"'Credit-bail'!C12*'Credit-bail'!C8","v":0},null,null,"Comptes courants d'associés",{"$f":"Pilotage!H17","v":0}]
[]
[null,null,"Rémunération exploitant individuel",null,0,null,null,"Besoins couverts",{"$f":"I32/I39","v":0}]
[]
[null,null,"Distribution de dividendes",null,0]
[]
[null,null," TOTAL",null,{"$f":"E12+E16+E21+E25+E27+E29+E35+E37+E7","v":9571.0000000000018},null," TOTAL",null,{"$f":"I7+I33+I16+I29","v":10000}]
[]
[null,null,null,null,null,null,"ECARTS",null,{"$f":"I39-E39","v":428.99999999999818}]

{"sheet":"Comptes de résultat 3 ans","index":16,"n_rows":60,"n_cols":6,"rows_kept":60,"cut":false,"hidden":false,"merged":[[14,0,14,5],[1,0,1,5]]}
[null,null,null,"Année 0","Année 1","Année 2"]
["PRODUITS (HT)"]
[null,"  Ventes de marchandises",null,{"$f":"'Comptes de résultat 6 ans'!R8","v":104000},{"$f":"'Comptes de résultat 6 ans'!S8","v":208000},{"$f":"'Comptes de résultat 6 ans'!T8","v":416000}]
[null,"  Production stockée",null,0,0,0]
[null,"  Prestations de services",null,{"$f":"SUM(D6:D8)","v":0},{"$f":"SUM(E6:E8)","v":0},{"$f":"SUM(F6:F8)","v":0}]
[null,null,"Prestations",{"$f":"'Comptes de résultat 6 ans'!R12","v":0},{"$f":"'Comptes de résultat 6 ans'!S12","v":0},{"$f":"'Comptes de résultat 6 ans'!T12","v":0}]
[null,null,"Locations",{"$f":"'Comptes de résultat 6 ans'!R14","v":0},{"$f":"'Comptes de résultat 6 ans'!S14","v":0},{"$f":"'Comptes de résultat 6 ans'!T14","v":0}]
[null,null,"Abonnements",{"$f":"'Comptes de résultat 6 ans'!R20","v":0},{"$f":"'Comptes de résultat 6 ans'!S20","v":0},{"$f":"'Comptes de résultat 6 ans'!T20","v":0}]
[null,"  Subventions d'exploitation",null,{"$f":"'Comptes de résultat 6 ans'!R50","v":0},{"$f":"'Comptes de résultat 6 ans'!S50","v":0},{"$f":"'Comptes de résultat 6 ans'!T50","v":0}]
[null,"  Autres produits",null,{"$f":"'Comptes de résultat 6 ans'!R33","v":0},{"$f":"'Comptes de résultat 6 ans'!S33","v":0},{"$f":"'Comptes de résultat 6 ans'!T33","v":0}]
[null,"  Produits financiers",null,{"$f":"'Comptes de résultat 6 ans'!R60","v":0},{"$f":"'Comptes de résultat 6 ans'!S60","v":0},{"$f":"'Comptes de résultat 6 ans'!T60","v":0}]
[null,"  Produits exceptionnels",null,{"$f":"'Comptes de résultat 6 ans'!R65","v":0},{"$f":"'Comptes de résultat 6 ans'!S65","v":0},{"$f":"'Comptes de résultat 6 ans'!T65","v":0}]
[" TOTAL PRODUITS",null,null,{"$f":"SUM(D9:D12)+SUM(D3:D5)","v":104000},{"$f":"SUM(E9:E12)+SUM(E3:E5)","v":208000},{"$f":"SUM(F9:F12)+SUM(F3:F5)","v":416000}]
[]
["CHARGES (HT)"]
[null," CHARGES D'EXPLOITATION"]
[null,null,"Achats (charges variables)",{"$f":"SUM(D18:D20)","v":0},{"$f":"SUM(E18:E20)","v":0},{"$f":"SUM(F18:F20)","v":0}]
[null,null,"  Achat de marchandises",{"$f":"'Comptes de résultat 6 ans'!G8","v":0},{"$f":"'Comptes de résultat 6 ans'!H8","v":0},{"$f":"'Comptes de résultat 6 ans'!I8","v":0}]
[null,null,"  Sous-traitance",0,0,0]
[null,null,"  Variation de stock",{"$f":"'Ventes Stock'!O5","v":0},{"$f":"'Ventes Stock'!X5","v":0},{"$f":"'Ventes Stock'!AG5","v":0}]
[null,null,"Achats de fournitures",{"$f":"SUM(D22:D25)","v":0},{"$f":"SUM(E22:E25)","v":0},{"$f":"SUM(F22:F25)","v":0}]
[null,null,"  Eau",0,{"$f":"D22*1.03","v":0},0]
[null,null,"  Electricité",0,0,0]
[null,null,"  Fournitures d'entretien",0,0,0]
[null,null,"  Fournitures administratives",{"$f":"'Comptes de résultat 6 ans'!G12","v":0},{"$f":"'Comptes de résultat 6 ans'!H12","v":0},{"$f":"'Comptes de résultat 6 ans'!I12","v":0}]
[null,null,"Charges externes",{"$f":"SUM(D27:D31)","v":500},{"$f":"SUM(E27:E31)","v":515},530.45000000000005]
[null,null,"  Loyers de crédit-bail",{"$f":"'Comptes de résultat 6 ans'!G28","v":0},{"$f":"'Comptes de résultat 6 ans'!H28","v":0},{"$f":"'Comptes de résultat 6 ans'!I28","v":0}]
[null,null,"  Loyers et charges locatives",{"$f":"'Comptes de résultat 6 ans'!G27","v":0},{"$f":"'Comptes de résultat 6 ans'!H27","v":0},{"$f":"'Comptes de résultat 6 ans'!I27","v":0}]
[null,null,"  Assurances",{"$f":"SUM('Charges Ext'!K13:K13)","v":500},{"$f":"D29*1.03","v":515},{"$f":"E29*1.03","v":530.45000000000005}]
[null,null,"  Documentation",{"$f":"'Charges Ext'!K33","v":0},{"$f":"D30*1.03","v":0},{"$f":"E30*1.03","v":0}]
[null,null,"  Entretien (locaux, matériel)",{"$f":"'Comptes de résultat 6 ans'!G13","v":0},{"$f":"'Comptes de résultat 6 ans'!H13","v":0},{"$f":"'Comptes de résultat 6 ans'!I13","v":0}]
[null,null,"Autres charges externes ",{"$f":"SUM(D33:D44)","v":35586.818850000011},{"$f":"SUM(E33:E44)","v":36648.683850000009},37742.404800000004]
[null,null,"  Honoraires",{"$f":"SUM('Charges Ext'!K22:K25)-'Charges Ext'!K24","v":6333.3333333333321},{"$f":"D33*1.03","v":6523.3333333333321},{"$f":"E33*1.03","v":6719.0333333333319}]
[null,null,"  Frais d'acte et de contentieux",0,{"$f":"D34*1.03","v":0},0]
[null,null,"  Affranchissements",{"$f":"'Charges Ext'!K9","v":125},128.75,132.61250000000001]
[null,null,"  Services internet (hébergements)",{"$f":"SUM('Charges Ext'!K16:K18)","v":2400},2472,2546.16]
[null,null,"  Internet",0,0,0]
[null,null,"  Publicité",{"$f":"'Charges Ext'!K24","v":20833.333333333336},21458.333333333336,22102.083333333336]
[null,null,"  Frais de transport",0,0,0]
[null,null,"  Emballages et conditionnement",0,0,0]
[null,null,"  Voyages et déplacements",{"$f":"'Charges Ext'!K28","v":5000},5150,5304.5]
[null,null,"  Frais de reception",{"$f":"'Charges Ext'!K31","v":0},{"$f":"D42*1.03","v":0},{"$f":"E42*1.03","v":0}]
[null,null,"  Licences logicielles",{"$f":"'Comptes de résultat 6 ans'!G57","v":191.31885000000003},{"$f":"'Comptes de résultat 6 ans'!H57","v":191.31885000000003},{"$f":"'Comptes de résultat 6 ans'!I57","v":191.31885000000003}]
[null,null,"  Divers",{"$f":"'Charges Ext'!L6*Pilotage!D15","v":703.83333333333348},{"$f":"D44*1.03","v":724.94833333333349},{"$f":"E44*1.03","v":746.69678333333354}]
[null,null,"Contribution économique territoriale (CET)",{"$f":"'Comptes de résultat 6 ans'!G42","v":0},{"$f":"'Comptes de résultat 6 ans'!H42","v":2375},{"$f":"'Comptes de résultat 6 ans'!I42","v":3483.3333333333335}]
[null,null,"Frais de personnel",{"$f":"SUM(D47:D50)","v":161630.22400000002},{"$f":"SUM(E47:E50)","v":166359.13071999999},{"$f":"SUM(F47:F50)","v":171229.90464160001}]
[null,null,"  Rémunération du dirigeant",0,0,0]
[null,null,"  Cotisations sociales du dirigeant",0,0,0]
[null,null,"  Salaires et charges sociales des salariés",{"$f":"'Comptes de résultat 6 ans'!G50","v":161630.22400000002},{"$f":"'Comptes de résultat 6 ans'!H50","v":166359.13071999999},{"$f":"'Comptes de résultat 6 ans'!I50","v":171229.90464160001}]
[null,null,"  Commissions versées",0,0,0]
[null,null,"Dotation aux amortissements (DAP)",{"$f":"'Comptes de résultat 6 ans'!G69","v":0},{"$f":"'Comptes de résultat 6 ans'!H69","v":2.3533499999999998},{"$f":"'Comptes de résultat 6 ans'!I69","v":2.3533499999999998}]
[null," CHARGES FINANCIERES",null,{"$f":"SUM(D53)","v":0},{"$f":"SUM(E53)","v":0},{"$f":"SUM(F53)","v":0}]
[null,null,"  Agios et intérêts payés",{"$f":"'Comptes de résultat 6 ans'!G61","v":0},{"$f":"'Comptes de résultat 6 ans'!H61","v":0},{"$f":"'Comptes de résultat 6 ans'!I61","v":0}]
[null," CHARGES EXCEPTIONNELLES",null,{"$f":"'Comptes de résultat 6 ans'!G65","v":0},{"$f":"'Comptes de résultat 6 ans'!H65","v":0},{"$f":"'Comptes de résultat 6 ans'!I65","v":0}]
[" TOTAL CHARGES",null,null,{"$f":"D54+D52+D51+D46+D45+D32+D26+D21+D17","v":197717.04285000003},{"$f":"E54+E52+E51+E46+E45+E32+E26+E21+E17","v":205900.16791999998},{"$f":"F54+F52+F51+F46+F45+F32+F26+F21+F17","v":212988.44612493337}]
[]
[" RESULTAT avant impôts",null,null,{"$f":"D13-D55","v":-93717.042850000027},{"$f":"E13-E55","v":2099.832080000022},{"$f":"F13-F55","v":203011.55387506663}]
[null,null,"En réserves impartageables",{"$f":"IF(D57>0,D57*57.5%,0)","v":0},{"$f":"IF(E57>0,E57*57.5%,0)","v":1207.4034460000125},116731.6434781633]
[" Impôts sur les bénéfices",null,null,{"$f":"IF(AND(D57<>\"\",D57>0),Pilotage!$D19*IF(D57>38120,(38120*0.15)+(D57-38120)/3,D57*15%),0)","v":0},{"$f":"IF(AND(E57<>\"\",E57>0),Pilotage!$D19*IF(E57>38120,(38120*0.15)+(E57-38120)/3,E57*15%),0)","v":314.97481200000328},{"$f":"IF(AND(F57<>\"\",F57>0),Pilotage!$D19*IF(F57>38120,(38120*0.15)+(F57-38120)/3,F57*15%),0)","v":60681.851291688879}]
["RESULTAT NET",null,null,{"$f":"D57-D59","v":-93717.042850000027},{"$f":"E57-E59","v":1784.8572680000186},{"$f":"F57-F59","v":142329.70258337774}]

{"sheet":"SIG","index":17,"n_rows":33,"n_cols":11,"rows_kept":33,"cut":false,"hidden":false,"merged":[[0,2,0,4],[0,5,0,7],[0,8,0,10]]}
[null,null,{"$f":"'Comptes de résultat 3 ans'!D1","v":"Année 0"},null,null,{"$f":"'Comptes de résultat 3 ans'!E1","v":"Année 1"},null,null,{"$f":"'Comptes de résultat 3 ans'!F1","v":"Année 2"}]
[null,"État de résultat","Montants","Soldes","%",null,"Soldes","%",null,"Soldes","%"]
[null,"Chiffre d'affaires",{"$f":"SUM('Comptes de résultat 3 ans'!D3,'Comptes de résultat 3 ans'!D5)","v":104000},null,null,{"$f":"SUM('Comptes de résultat 3 ans'!E3,'Comptes de résultat 3 ans'!E5)","v":208000},null,{"$f":"\"+\"&ROUND((F3/C3-1)*100,1)&\"%\"","v":"+100%"},{"$f":"SUM('Comptes de résultat 3 ans'!F3,'Comptes de résultat 3 ans'!F5)","v":416000},null,{"$f":"\"+\"&ROUND((I3/F3-1)*100,1)&\"%\"","v":"+100%"}]
[null,"Travaux en cours initiaux",0,null,null,0,null,null,0]
[null,"Travaux en cours finaux",0,null,null,0,null,null,0]
[null,"Volume d'activité",null,{"$f":"SUM(C3:C5)","v":104000},1,null,{"$f":"SUM(F3:F5)","v":208000},1,null,{"$f":"SUM(I3:I5)","v":416000},1]
[null,"Charges fixes",{"$f":"'Comptes de résultat 3 ans'!D21-C9","v":0},null,null,{"$f":"'Comptes de résultat 3 ans'!E21-F9","v":0},null,null,{"$f":"'Comptes de résultat 3 ans'!F21-I9","v":0}]
[null,"Charges variables",{"$f":"'Comptes de résultat 3 ans'!D17","v":0},null,null,{"$f":"'Comptes de résultat 3 ans'!E17","v":0},null,null,{"$f":"'Comptes de résultat 3 ans'!F17","v":0}]
[null,"Stock Final",{"$f":"'Comptes de résultat 3 ans'!D20","v":0},null,null,{"$f":"'Comptes de résultat 3 ans'!E20","v":0},null,null,{"$f":"'Comptes de résultat 3 ans'!F20","v":0}]
[null,"Achats Consommés",null,{"$f":"SUM(C7:C9)","v":0},{"$f":"D10/D6","v":0},null,{"$f":"SUM(F7:F9)","v":0},{"$f":"G10/G6","v":0},null,{"$f":"SUM(I7:I9)","v":0},{"$f":"J10/J6","v":0}]
[null,"Marge Brute",null,{"$f":"D6-D10","v":104000},{"$f":"E6-E10","v":1},null,{"$f":"G6-G10","v":208000},{"$f":"H6-H10","v":1},null,{"$f":"J6-J10","v":416000},{"$f":"K6-K10","v":1}]
[null,"Achats non stockables",0,null,null,0,null,null,0]
[null,"Services extérieurs",{"$f":"'Comptes de résultat 3 ans'!D26","v":500},null,null,{"$f":"'Comptes de résultat 3 ans'!E26","v":515},null,null,{"$f":"'Comptes de résultat 3 ans'!F26","v":530.45000000000005}]
[null,"Autres services extérieurs",{"$f":"'Comptes de résultat 3 ans'!D32","v":35586.818850000011},null,null,{"$f":"'Comptes de résultat 3 ans'!E32","v":36648.683850000009},null,null,{"$f":"'Comptes de résultat 3 ans'!F32","v":37742.404800000004}]
[null,"Valeur ajoutée",null,{"$f":"D11-SUM(C12:C14)","v":67913.181149999989},{"$f":"D15/D$6","v":0.65301135721153836},null,{"$f":"G11-SUM(F12:F14)","v":170836.31615},{"$f":"G15/G$6","v":0.82132844302884611},null,{"$f":"J11-SUM(I12:I14)","v":377727.14520000003},{"$f":"J15/J$6","v":0.90799794519230781}]
[null,"Subvention d'exploitation",{"$f":"'Comptes de résultat 3 ans'!D9","v":0},null,null,{"$f":"'Comptes de résultat 3 ans'!E9","v":0},null,null,{"$f":"'Comptes de résultat 3 ans'!F9","v":0}]
[null,"Impôts et taxes",{"$f":"'Comptes de résultat 3 ans'!D45","v":0},null,null,{"$f":"'Comptes de résultat 3 ans'!E45","v":2375},null,null,{"$f":"'Comptes de résultat 3 ans'!F45","v":3483.3333333333335}]
[null,"Charges de personnel",{"$f":"'Comptes de résultat 3 ans'!D46","v":161630.22400000002},null,null,{"$f":"'Comptes de résultat 3 ans'!E46","v":166359.13071999999},null,null,{"$f":"'Comptes de résultat 3 ans'!F46","v":171229.90464160001}]
[null,"Cotisations personnelles",0,null,null,0,null,null,0]
[null,"Excédent brut d'exploitation",null,{"$f":"D15+C16-SUM(C17:C19)","v":-93717.042850000027},{"$f":"D20/D$6","v":-0.90112541201923102},null,{"$f":"G15-SUM(F17:F19)","v":2102.1854300000123},{"$f":"G20/G$6","v":1.0106660721153906E-2},null,{"$f":"J15-SUM(I17:I19)","v":203013.90722506668},{"$f":"J20/J$6","v":0.48801420006025642}]
[null,"Dotation aux amortissements",{"$f":"'Comptes de résultat 3 ans'!D51","v":0},null,null,{"$f":"'Comptes de résultat 3 ans'!E51","v":2.3533499999999998},null,null,{"$f":"'Comptes de résultat 3 ans'!F51","v":2.3533499999999998}]
[null,"Autres charges de gestion",0,null,null,0,null,null,0]
[null,"Autres produits de gestion",{"$f":"'Comptes de résultat 3 ans'!D10","v":0},null,null,{"$f":"'Comptes de résultat 3 ans'!G10","v":0},null,null,{"$f":"'Comptes de résultat 3 ans'!J10","v":0}]
[null,"Résultat d'exploitation",null,{"$f":"D20-SUM(C21:C23)","v":-93717.042850000027},{"$f":"D24/D$6","v":-0.90112541201923102},null,{"$f":"G20-SUM(F21:F23)","v":2099.8320800000124},{"$f":"G24/G$6","v":1.0095346538461598E-2},null,{"$f":"J20-SUM(I21:I23)","v":203011.55387506669},{"$f":"J24/J$6","v":0.48800854296891033}]
[null,"Produits financiers",{"$f":"'Comptes de résultat 3 ans'!D11","v":0},null,null,{"$f":"'Comptes de résultat 3 ans'!E11","v":0},null,null,{"$f":"'Comptes de résultat 3 ans'!F11","v":0}]
[null,"Charges financières",{"$f":"'Comptes de résultat 3 ans'!D52","v":0},null,null,{"$f":"'Comptes de résultat 3 ans'!E52","v":0},null,null,{"$f":"'Comptes de résultat 3 ans'!F52","v":0}]
[null,"Résultat financier",null,{"$f":"C25-C26","v":0},null,null,{"$f":"F25-F26","v":0},null,null,{"$f":"I25-I26","v":0}]
[null,"Résultat courant avant impôts",null,{"$f":"D24+D27","v":-93717.042850000027},{"$f":"D28/D$6","v":-0.90112541201923102},null,{"$f":"G24+G27","v":2099.8320800000124},{"$f":"G28/G$6","v":1.0095346538461598E-2},null,{"$f":"J24+J27","v":203011.55387506669},{"$f":"J28/J$6","v":0.48800854296891033}]
[null,"Produits exceptionnels",{"$f":"'Comptes de résultat 3 ans'!D12","v":0},null,null,{"$f":"'Comptes de résultat 3 ans'!E12","v":0},null,null,{"$f":"'Comptes de résultat 3 ans'!F12","v":0}]
[null,"Charges exceptionnelles",{"$f":"'Comptes de résultat 3 ans'!D54","v":0},null,null,{"$f":"'Comptes de résultat 3 ans'!E54","v":0},null,null,{"$f":"'Comptes de résultat 3 ans'!F54","v":0}]
[null,"Résultat exceptionnel",null,{"$f":"C29-C30","v":0},null,null,{"$f":"F29-F30","v":0},null,null,{"$f":"I29-I30","v":0}]
[null,"Impôt sur les bénéfices",{"$f":"'Comptes de résultat 3 ans'!D59","v":0},null,null,{"$f":"'Comptes de résultat 3 ans'!E59","v":314.97481200000328},null,null,{"$f":"'Comptes de résultat 3 ans'!F59","v":60681.851291688879}]
[null,"Résultat net",null,{"$f":"D28-C32+D31","v":-93717.042850000027},{"$f":"D33/D$6","v":-0.90112541201923102},null,{"$f":"G28-F32+G31","v":1784.8572680000091},{"$f":"G33/G$6","v":8.5810445576923518E-3},null,{"$f":"J28-I32+J31","v":142329.7025833778},{"$f":"J33/J$6","v":0.3421387081331197}]

{"sheet":"Points morts","index":18,"n_rows":8,"n_cols":5,"rows_kept":8,"cut":false,"hidden":false,"merged":[]}
[null,{"$f":"'Comptes de résultat 3 ans'!D1","v":"Année 0"},{"$f":"'Comptes de résultat 3 ans'!E1","v":"Année 1"},{"$f":"'Comptes de résultat 3 ans'!F1","v":"Année 2"}]
["CA (HT)",{"$f":"SIG!C3","v":104000},{"$f":"SIG!F3","v":208000},{"$f":"SIG!I3","v":416000},"CA"]
["Total charges variables(HT)",{"$f":"SIG!C8","v":0},{"$f":"SIG!F8","v":0},{"$f":"SIG!I8","v":0},"CV"]
["Marge sur coûts variables",{"$f":"B2-B3","v":104000},{"$f":"C2-C3","v":208000},{"$f":"D2-D3","v":416000},"MCV=CA-CV"]
["Taux de marge sur coûts variables",{"$f":"B4/B2","v":1},{"$f":"C4/C2","v":1},{"$f":"D4/D2","v":1},"TMCV=MCV/CA"]
["Total charges fixes (HT)",{"$f":"SIG!C7+SIG!C13+SIG!C14+SIG!C18+SIG!C26","v":197717.04285000003},{"$f":"SIG!F7+SIG!F13+SIG!F14+SIG!F18+SIG!F26","v":203522.81456999999},{"$f":"SIG!I7+SIG!I13+SIG!I14+SIG!I18+SIG!I26","v":209502.75944160001},"CF"]
["Seuil de rentabilité",{"$f":"B6/B5","v":197717.04285000003},{"$f":"C6/C5","v":203522.81456999999},{"$f":"D6/D5","v":209502.75944160001},"SR=CF/TMCV"]
["Point Mort (j)",{"$f":"B7/(B2/360)","v":684.40514832692315},{"$f":"C7/(C2/360)","v":352.25102521730764},{"$f":"D7/(D2/360)","v":181.3004649013846},"PM=SR/(CA/360)"]

{"sheet":"Plan de financement à 6 ans","index":19,"n_rows":41,"n_cols":19,"rows_kept":41,"cut":false,"hidden":false,"merged":[[1,1,1,19],[4,2,4,4],[4,11,4,13],[29,2,29,3]]}
[]
[null,"Plan de financement à 6 ans"]
[]
[]
[null,null,"BESOINS PERMANENTS",null,null,null,null,null,null,null,null,"RESSOURCES DURABLES"]
[null,null,null,null,"Année 0","Année 1","Année 2","Année 3","Année 4","Année 5",null,null,null,{"$f":"E6","v":"Année 0"},"Année 1","Année 2","Année 3","Année 4","Année 5"]
[]
[null,null," Frais d'établissement",null,{"$f":"SUM(E9:E11)","v":9571.0000000000018},0,0,0,0,0,null,"Capitaux propres",null,{"$f":"SUM(N9:N11)","v":10000}]
[null,null,null,"Frais d'installation",{"$f":"Installation!K4","v":9571.0000000000018},0,{"$f":"Installation!M4","v":0},{"$f":"Installation!N4","v":0},{"$f":"Installation!O4","v":0},{"$f":"Installation!P4","v":0},null," ","Apports personnels",{"$f":"Pilotage!H10","v":10000}]
[null,null,null,null,null,null,null,null,null,null,null,null,"Apports des associés",{"$f":"Pilotage!H12","v":0}]
[null,null,null,null,null,null,null,null,null,null,null,null,"Apports en nature",{"$f":"Pilotage!H11","v":0}]
[]
[null,null," Immobilisations incorporelles",null,{"$f":"E14+E15","v":0},0,0,0,0,0,null,"Comptes courants d'associés",null,{"$f":"Pilotage!H17","v":0}]
[null,null,null,"  Brevet, licences",0,0,0,0,0,0]
[null,null,null,"  Droit au bail",0,0,0,0,0,0]
[null,null,null,null,null,null,null,null,null,null,null,null,"Minimum à trouver"]
[null,null," Immobilisations corporelles",null,{"$f":"E18+E19+E20","v":0},0,0,0,0,0,null,"Subvention, prime",null,{"$f":"SUM(N18:N20)","v":0}]
[null,null,null,"  Travaux / aménagements / Mobiler",{"$f":"Travaux!K4","v":0},0,0,0,0,0,null,null,{"$f":"Pilotage!G18","v":"Financements participatifs"},{"$f":"Pilotage!H18","v":0}]
[null,null,null,"  Véhicule",0,0,0,0,0,0,null,null,{"$f":"Pilotage!G19","v":"Autres fonds (NACRE, fondations)"},{"$f":"Pilotage!H19","v":0}]
[null,null,null,"  Matériel",{"$f":"Matériel!K4+'Comptes de résultat 6 ans'!G13","v":0},{"$f":"'Comptes de résultat 6 ans'!H13","v":0},{"$f":"'Comptes de résultat 6 ans'!I13","v":0},{"$f":"'Comptes de résultat 6 ans'!J13","v":0},{"$f":"'Comptes de résultat 6 ans'!K13","v":0},{"$f":"'Comptes de résultat 6 ans'!L13","v":0},null,null,{"$f":"Pilotage!G20","v":"Financements privés/sponsors"},{"$f":"Pilotage!H20","v":0}]
[]
[null,null," Immobilisations financières",null,{"$f":"E23+E24","v":0},0,0,0,0,0]
[null,null,null,"Caution sur loyer",{"$f":"Pilotage!D9*Pilotage!D7","v":0},0,0,0,0,0]
[null,null,null,"Garanties professionnelles",0,0,0,0,0,0]
[]
[null,null,"Besoin en fond de roulement",null,{"$f":"Pilotage!H23","v":0},null,null,null,null,null,null,"Capacité d'auto financement",null,0,{"$f":"IF('Comptes de résultat 6 ans'!G91<>\"\",'Comptes de résultat 6 ans'!G91,0)+IF('Comptes de résultat 6 ans'!G69<>\"\",'Comptes de résultat 6 ans'!G69,0)","v":-93717.042850000027},{"$f":"IF('Comptes de résultat 6 ans'!H91<>\"\",'Comptes de résultat 6 ans'!H91,0)+IF('Comptes de résultat 6 ans'!H69<>\"\",'Comptes de résultat 6 ans'!H69,0)","v":1787.2106180000187},{"$f":"IF('Comptes de résultat 6 ans'!I91<>\"\",'Comptes de résultat 6 ans'!I91,0)+IF('Comptes de résultat 6 ans'!I69<>\"\",'Comptes de résultat 6 ans'!I69,0)","v":142332.05593337776},{"$f":"IF('Comptes de résultat 6 ans'!J91<>\"\",'Comptes de résultat 6 ans'!J91,0)+IF('Comptes de résultat 6 ans'!J69<>\"\",'Comptes de résultat 6 ans'!J69,0)","v":414706.89452339767},{"$f":"IF('Comptes de résultat 6 ans'!K91<>\"\",'Comptes de résultat 6 ans'!K91,0)+IF('Comptes de résultat 6 ans'!K69<>\"\",'Comptes de résultat 6 ans'!K69,0)","v":410371.6887237539}]
[]
[null,null,"Stock de marchandises",null,0,0,0,{"$f":"Pilotage!$H12","v":0},{"$f":"Pilotage!$H12","v":0},{"$f":"Pilotage!$H12","v":0}]
[]
[null,null," Remboursements",null,{"$f":"SUM(E31:E34)","v":0},0,0,0,0,0,null,"Capitaux empruntés",null,{"$f":"SUM(N31:N33)","v":0}]
[null,null,null,"  Prêt d'honneur",{"$f":"'Prêts honneur'!$C8*'Prêts honneur'!$C12","v":0},{"$f":"'Prêts honneur'!$C8*'Prêts honneur'!$C12","v":0},{"$f":"'Prêts honneur'!$C8*'Prêts honneur'!$C12","v":0},{"$f":"'Prêts honneur'!$C8*'Prêts honneur'!$C12","v":0},{"$f":"'Prêts honneur'!$C8*'Prêts honneur'!$C12","v":0},{"$f":"'Prêts honneur'!$C8*'Prêts honneur'!$C12","v":0},null,null,{"$f":"Pilotage!G21","v":"Prêts d'honneur"},{"$f":"Pilotage!H21","v":0}]
[null,null,null,"  PCE",{"$f":"PCE!$C8*PCE!$C12","v":0},{"$f":"PCE!$C8*PCE!$C12","v":0},{"$f":"PCE!$C8*PCE!$C12","v":0},{"$f":"PCE!$C8*PCE!$C12","v":0},{"$f":"PCE!$C8*PCE!$C12","v":0},{"$f":"PCE!$C8*PCE!$C12","v":0},null,null,{"$f":"Pilotage!G22","v":"PCE"},{"$f":"Pilotage!H22","v":0}]
[null,null,null,"  Prêt bancaire",{"$f":"Emprunt!$C8*Emprunt!$C12","v":0},{"$f":"Emprunt!$C8*Emprunt!$C12","v":0},{"$f":"Emprunt!$C8*Emprunt!$C12","v":0},{"$f":"Emprunt!$C8*Emprunt!$C12","v":0},{"$f":"Emprunt!$C8*Emprunt!$C12","v":0},{"$f":"Emprunt!$C8*Emprunt!$C12","v":0},null,null,"Prêt bancaire",{"$f":"Pilotage!D29","v":0}]
[null,null,null,"  Crédit-bail",{"$f":"'Credit-bail'!$C8*'Credit-bail'!$C12","v":0},{"$f":"'Credit-bail'!$C8*'Credit-bail'!$C12","v":0},{"$f":"'Credit-bail'!$C8*'Credit-bail'!$C12","v":0},{"$f":"'Credit-bail'!$C8*'Credit-bail'!$C12","v":0},{"$f":"'Credit-bail'!$C8*'Credit-bail'!$C12","v":0},{"$f":"'Credit-bail'!$C8*'Credit-bail'!$C12","v":0},null,null,"Max",{"$f":"(E40-E26-E13)*Pilotage!D31","v":6699.7000000000007}]
[null,null,null,null,null,null,null,null,null,null,null,null,null,{"$f":"N33/N40","v":0}]
[null,null,"Rémunération exploitant individuel",null,0,0,0,0,0,0]
[]
[null,null,"Distribution de dividendes",null,0,0,0,0,0,0]
[]
[null,null," TOTAL",null,{"$f":"E13+E17+E22+E26+E30+E38+E36+E8+E28","v":9571.0000000000018},{"$f":"F13+F17+F22+F26+F30+F38+F36+F8+F28","v":0},{"$f":"G13+G17+G22+G26+G30+G38+G36+G8+G28","v":0},{"$f":"H13+H17+H22+H26+H30+H38+H36+H8","v":0},{"$f":"I13+I17+I22+I26+I30+I38+I36+I8","v":0},{"$f":"J13+J17+J22+J26+J30+J38+J36+J8","v":0},{"$f":"K13+K17+K22+K26+K30+K38+K36+K8","v":0}," TOTAL",null,{"$f":"N8+N13+N17+N30+N26","v":10000},{"$f":"O14+O17+O19+O30+O15+O26","v":-93717.042850000027},{"$f":"P14+P17+P19+P30+P15+P26","v":1787.2106180000187},{"$f":"Q14+Q17+Q19+Q30+Q15+Q26","v":142332.05593337776},{"$f":"R14+R17+R19+R30+R15+R26","v":414706.89452339767},{"$f":"S14+S17+S19+S30+S15+S26","v":410371.6887237539}]
[null,null,null,null,null,null,null,null,null,null,null,"ECARTS",null,{"$f":"N40-E40","v":428.99999999999818},-93717.042850000027,1787.2106180000187,142332.05593337776,414706.89452339767,410371.6887237539]

{"sheet":"Comptes de résultat A0","index":20,"n_rows":90,"n_cols":13,"rows_kept":90,"cut":false,"hidden":true,"merged":[[69,3,69,5],[69,10,69,11],[70,3,70,5],[70,10,70,11],[80,1,80,5],[80,8,80,11],[1,1,1,12],[3,1,3,6],[3,8,3,12],[55,3,55,5],[68,3,68,5],[68,10,68,11]]}
[]
[null,"Comptes de résultat Année 0"]
[]
[null,"Charges",null,null,null,null,null,null,"Produits"]
[null,null,null,null,null,null,"Année 0",null,null,null,null,null,{"$f":"G5","v":"Année 0"}]
[null,null,"Achats",null,null,null,{"$f":"SUM(G7,G13)","v":0},null,null,"Ventes.",null,null,{"$f":"SUM(M7:M12)","v":{"$error":"#REF!"}}]
[null,null,null,"Achats stockés :",null,null,{"$f":"SUM(G8:G12)","v":0},null,null,null,"Ventes de produits finis",null,{"$f":"'Ventes Produits'!L5","v":{"$error":"#REF!"}}]
[null,null,null,null,"Achats de marchandises,",null,{"$f":"Stock!K4","v":0},null,null,null,"Ventes de matières premières",null,{"$f":"'Ventes Stock'!M5","v":104000}]
[null,null,null,null,"Achats de matières premières,"]
[null,null,null,null,"Achats d’emballages,"]
[null,null,null,null,"Achats de fournitures consommables :",null,{"$f":"Consommables!K4","v":0},null,null,null,"Prestations de services",null,{"$f":"Prestations!$M$5*Pilotage!M36","v":0}]
[null,null,null,null,"Achats d’études, équipements, travaux.",null,0,null,null,null,"Produits et activités annexes(Locations)",null,{"$f":"SUM(M13:M23)","v":0}]
[null,null,null,"Achats non stockés :",null,null,{"$f":"SUM(G14:G18)","v":0},null,null,null,null,"Locations",{"$f":"Locations!$M$5*Pilotage!M40","v":0}]
[null,null,null,null,"Eau,"]
[null,null,null,null,"Energie,"]
[null,null,null,null,"Carburant,"]
[null,null,null,null,"Fournitures administratives,"]
[null,null,null,null,"Fournitures d’entretien, petit équipement."]
[null,null,null,null,null,null,null,null,null,null,null,"Abonnements",{"$f":"Abos!M5*Pilotage!M36","v":0}]
[]
[]
[]
[]
[]
[null,null,"Services extérieurs.",null,null,null,{"$f":"SUM(G26:G31)","v":0}]
[null,null,null,"Locations immobilières et mobilières,",null,null,{"$f":"Loyers!K4","v":0}]
[null,null,null,"Redevances de crédit bail,",null,null,{"$f":"'Credit-bail'!C8*'Credit-bail'!C12","v":0}]
[null,null,null,"Charges locatives et de copropriété,"]
[null,null,null,"Entretien et réparations,"]
[null,null,null,"Assurances,"]
[null,null,null,"Etudes et recherches."]
[null,null,"Autres services extérieurs.",null,null,null,{"$f":"SUM(G33:G39)","v":35895.5},null,null,"Autres produits de gestion courante.",null,null,{"$f":"SUM(M33:M34)","v":0}]
[null,null,null,"Frais extérieurs, publicité, déplacements, …",null,null,{"$f":"'Charges Ext'!K4","v":35895.5},null,null,null,"Redevances reçues pour brevets, licences, marques,"]
[null,null,null,"Honoraires et rémunérations d’intermédiaires,",null,null,null,null,null,null,"Revenus des immeubles."]
[null,null,null,"Publicité, relations publiques,"]
[null,null,null,"Transports de biens et transports du personnel,"]
[null,null,null,"Déplacements, missions, réceptions,"]
[null,null,null,"Frais postaux et de télécommunications,"]
[null,null,null,"Services bancaires."]
[null,null,"Impôts, taxes et versements assimilés.",null,null,null,{"$f":"SUM(G41:G48)","v":0}]
[null,null,null,"CET,"]
[null,null,null,"Taxe sur les salaires,"]
[null,null,null,"Taxe d’apprentissage,"]
[null,null,null,"Droits d’enregistrement,"]
[null,null,null,"Impôts locaux,"]
[null,null,null,"Contribution à la formation continue,"]
[null,null,null,"Contribution sociale de solidarité,"]
[null,null,null,"Timbres fiscaux."]
[null,null,"Charges de personnel.",null,null,null,{"$f":"SUM(G50:G54)","v":161630.22400000002}]
[null,null,null,"Rémunérations, salaires,",null,null,{"$f":"Salaires!T16","v":161630.22400000002}]
[null,null,null,"Congés payés,"]
[null,null,null,"Primes, indemnités,"]
[null,null,null,"Charges sociales,"]
[null,null,null,"Œuvres sociales."]
[null,null,"Autres charges de gestion courante.",null,null,null,{"$f":"SUM(G56:G58)","v":191.31885000000003}]
[null,null,null,"Redevances versées pour brevets, licences, marques,",null,null,{"$f":"Licences!$K4","v":191.31885000000003}]
[null,null,null,"Pertes sur créances irrécouvrables,"]
[null,null,null,"Charges diverses."]
[null,null,"Charges financières.",null,null,null,{"$f":"SUM(G60:G63)","v":0},null,null,"Produits financiers.",null,null,{"$f":"SUM(M60:M63)","v":0}]
[null,null,null,"Intérêts des emprunts,",null,null,{"$f":"Emprunt!O6","v":0},null,null,null,"Revenus des titres (dividendes, intérêts),"]
[null,null,null,"Escomptes accordés,",null,null,null,null,null,null,"Intérêts des prêts,"]
[null,null,null,"Intérêts bancaires,",null,null,null,null,null,null,"Escomptes obtenus,"]
[null,null,null,"Pertes de change.",null,null,null,null,null,null,"Gains de change."]
[null,null,"Charges exceptionnelles.",null,null,null,{"$f":"SUM(G65:G67)","v":0},null,null,"Produits exceptionnels.",null,null,{"$f":"SUM(M65:M66)","v":0}]
[null,null,null,"Valeurs comptables des éléments d’actif cédés,",null,null,null,null,null,null,"Produits exceptionnels sur opérations de gestion,"]
[null,null,null,"Pénalités, amendes fiscales et pénales,",null,null,null,null,null,null,"Prix de cession d’éléments d’actif."]
[null,null,null,"Dons et libéralités."]
[null,null,"Dotations.",null,null,null,{"$f":"SUM(G69:G71)","v":0},null,null,"Reprises.",null,null,{"$f":"SUM(M69:M71)","v":0}]
[null,null,null,"Dotations aux amortissements, aux dépréciations et aux provisions – Charges d’exploitation,",null,null,{"$f":"DAT!C6","v":0},null,null,null,"Reprises sur amortissements, dépréciations et provisions – Produits d’exploitation,"]
[null,null,null,"Dotations aux amortissements, aux dépréciations et aux provisions – Charges financières,",null,null,null,null,null,null,"Reprises sur dépréciations et provisions – Produits financiers,"]
[null,null,null,"Dotations aux amortissements, aux dépréciations et aux provisions – Charges exceptionnelles,",null,null,null,null,null,null,"Reprises sur dépréciations et provisions – Produits"]
[null,null,null,null,null,null,null,null,null,"Transferts de charges.",null,null,{"$f":"SUM(M73:M75)","v":0}]
[null,null,null,null,null,null,null,null,null,null,"Transferts de charges d’exploitation,"]
[null,null,null,null,null,null,null,null,null,null,"Transferts de charges financières,"]
[null,null,null,null,null,null,null,null,null,null,"Transferts de charges exceptionnelles."]
[]
[null,null,"Charges fixes",null,null,null,{"$f":"G68+G11+G64+G59+G55+G49+G40+G25","v":161821.54285000003}]
[null,null,"Charges variables",null,null,null,{"$f":"G8+G32","v":35895.5}]
[]
[null,null,null,null,null,null,{"$f":"G5","v":"Année 0"},null,null,null,null,null,{"$f":"G80","v":"Année 0"}]
[null,"Total des charges",null,null,null,null,{"$f":"SUM(G68,G64,G59,G55,G49,G40,G32,G25,G6)","v":197717.04285000003},null,"Total des produits",null,null,null,{"$f":"SUM(M72,M68,M64,M59,M32,M6)","v":{"$error":"#REF!"}}]
[null,"Avant Impôts"]
[null,"Solde créditeur : bénéfice",null,null,null,null,{"$f":"IF(M81>G81,M81-G81,\"\")","v":{"$error":"#REF!"}},null,"Solde débiteur : perte",null,null,null,{"$f":"IF(G81>M81,G81-M81,\"\")","v":{"$error":"#REF!"}}]
[]
[null,"Participation des salariés, impôts sur les bénéfices et assimilés.",null,null,null,null,{"$f":"SUM(G86:G87)","v":{"$error":"#REF!"}}]
[null,null,null,"Impôts sur les bénéfices,",null,null,{"$f":"IF(G83<>\"\",IF(G83>32810,G83/3,G83*15%),0)","v":{"$error":"#REF!"}}]
[null,null,null,"Participation des salariés aux résultats.",null,null,0]
[]
[null,null,null,null,null,null,{"$f":"G80","v":"Année 0"}]
[null,"Résultat net après impôts",null,null,null,null,{"$f":"IF(G83<>\"\",G83,0)-IF(G85<>\"\",G85,0)-IF(M83<>\"\",M83,0)","v":{"$error":"#REF!"}}]

{"sheet":"Comptes de résultat 6 ans","index":21,"n_rows":93,"n_cols":23,"rows_kept":93,"cut":false,"hidden":false,"merged":[[70,15,70,16],[71,15,71,16],[1,1,1,22],[3,13,3,18],[81,13,81,16],[56,3,56,5],[69,3,69,5],[70,3,70,5],[71,3,71,5],[69,15,69,16],[81,1,81,5],[3,1,3,7]]}
[]
[null,"Comptes de résultat sur 6 ans"]
[]
[null,"Charges",null,null,null,null,null,null,null,null,null,null,null,"Produits"]
[null,null,null,null,null,null,"Année 0","Année 1","Année 2","Année 3","Année 4","Année 5",null,null,null,null,null,{"$f":"G5","v":"Année 0"},"Année 1","Année 2","Année 3","Année 4","Année 5"]
[null,null,"Achats",null,null,null,{"$f":"SUM(G7,G14)","v":0},0,0,0,0,0,null,null,"Ventes.",null,null,{"$f":"SUM(R7:R13)","v":104000},208000,416000,832000,832000,915200]
[null,null,null,"Achats stockés :",null,null,{"$f":"SUM(G8:G13)","v":0},0,0,0,0,0,null,null,null,"Ventes de produits finis",null,0,0,0,0,0,0]
[null,null,null,null,"Achats de marchandises,",null,{"$f":"Stock!K4","v":0},{"$f":"'Ventes Stock'!P5","v":0},{"$f":"'Ventes Stock'!Y5","v":0},{"$f":"'Ventes Stock'!AH5","v":0},{"$f":"'Ventes Stock'!AQ5","v":0},{"$f":"'Ventes Stock'!AZ5","v":0},null,null,null,"Ventes de matières premières",null,{"$f":"'Ventes Stock'!M5","v":104000},{"$f":"'Ventes Stock'!V5","v":208000},{"$f":"'Ventes Stock'!AE5","v":416000},{"$f":"'Ventes Stock'!AN5","v":832000},{"$f":"'Ventes Stock'!AW5","v":832000},{"$f":"'Ventes Stock'!BF5","v":915200}]
[null,null,null,null,"Variation de stock",null,{"$f":"'Ventes Stock'!O5","v":0},{"$f":"'Ventes Stock'!X5","v":0},{"$f":"'Ventes Stock'!AG5","v":0}]
[null,null,null,null,"Achats de matières premières,"]
[null,null,null,null,"Achats d’emballages,"]
[null,null,null,null,"Achats de fournitures consommables :",null,{"$f":"Consommables!K4","v":0},{"$f":"$G$12*Pilotage!N23","v":0},{"$f":"$G$12*Pilotage!O23","v":0},{"$f":"$G$12*Pilotage!P23","v":0},{"$f":"$G$12*Pilotage!Q23","v":0},{"$f":"$G$12*Pilotage!R23","v":0},null,null,null,"Prestations de services",null,{"$f":"Prestations!$M$5*Pilotage!M36","v":0},{"$f":"R12*Pilotage!N36","v":0},{"$f":"S12*Pilotage!O36","v":0},{"$f":"T12*Pilotage!P36","v":0},{"$f":"U12*Pilotage!Q36","v":0},{"$f":"V12*Pilotage!R36","v":0}]
[null,null,null,null,"Achats d’études, équipements, travaux.",null,0,{"$f":"Matériel!$K4*Pilotage!N24","v":0},{"$f":"Matériel!$K4*Pilotage!O24","v":0},{"$f":"Matériel!$K4*Pilotage!P24","v":0},{"$f":"Matériel!$K4*Pilotage!Q24","v":0},{"$f":"Matériel!$K4*Pilotage!R24","v":0},null,null,null,"Produits et activités annexes",null,{"$f":"SUM(R14:R24)","v":0},0,0,0,0,0]
[null,null,null,"Achats non stockés :",null,null,{"$f":"SUM(G15:G19)","v":0},0,0,0,0,0,null,null,null,"Locations","Locations",{"$f":"Locations!$M$5*Pilotage!M40","v":0},{"$f":"Locations!$M$5*Pilotage!N40","v":0},{"$f":"Locations!$M$5*Pilotage!O40","v":0},{"$f":"Locations!$M$5*Pilotage!P40","v":0},{"$f":"Locations!$M$5*Pilotage!Q40","v":0},{"$f":"Locations!$M$5*Pilotage!R40","v":0}]
[null,null,null,null,"Eau,"]
[null,null,null,null,"Energie,"]
[null,null,null,null,"Carburant,"]
[null,null,null,null,"Fournitures administratives,"]
[null,null,null,null,"Fournitures d’entretien, petit équipement."]
[null,null,null,null,null,null,null,null,null,null,null,null,null,null,null,"Abonnements","Abonnements",{"$f":"Abos!$M$5*Pilotage!M40","v":0},{"$f":"Abos!$M$5*Pilotage!N40","v":0},{"$f":"Abos!$M$5*Pilotage!O40","v":0},{"$f":"Abos!$M$5*Pilotage!P40","v":0},{"$f":"Abos!$M$5*Pilotage!Q40","v":0},{"$f":"Abos!$M$5*Pilotage!R40","v":0}]
[]
[]
[]
[]
[]
[null,null,"Services extérieurs.",null,null,null,{"$f":"SUM(G27:G32)","v":0},0,0,0,0,0]
[null,null,null,"Locations immobilières et mobilières,",null,null,{"$f":"Loyers!K4","v":0},{"$f":"G27*103%","v":0},{"$f":"H27*103%","v":0},{"$f":"I27*103%","v":0},{"$f":"J27*103%","v":0},{"$f":"K27*103%","v":0}]
[null,null,null,"Redevances de crédit bail,",null,null,{"$f":"'Credit-bail'!$C8*'Credit-bail'!$C12","v":0},{"$f":"'Credit-bail'!$C8*'Credit-bail'!$C12","v":0},{"$f":"'Credit-bail'!$C8*'Credit-bail'!$C12","v":0},{"$f":"'Credit-bail'!$C8*'Credit-bail'!$C12","v":0},{"$f":"'Credit-bail'!$C8*'Credit-bail'!$C12","v":0},0]
[null,null,null,"Charges locatives et de copropriété,"]
[null,null,null,"Entretien et réparations,"]
[null,null,null,"Assurances,"]
[null,null,null,"Etudes et recherches."]
[null,null,"Autres services extérieurs.",null,null,null,{"$f":"SUM(G34:G40)","v":35895.5},36972.364999999998,38081.535949999998,39223.982028499995,40400.701489354993,41612.722534035645,null,null,"Autres produits de gestion courante.",null,null,{"$f":"SUM(R34:R35)","v":0},0,0,0,0,0]
[null,null,null,"Frais extérieurs, publicité, déplacements, …",null,null,{"$f":"'Charges Ext'!K4","v":35895.5},{"$f":"G34*103%","v":36972.364999999998},{"$f":"H34*103%","v":38081.535949999998},{"$f":"I34*103%","v":39223.982028499995},{"$f":"J34*103%","v":40400.701489354993},{"$f":"K34*103%","v":41612.722534035645},null,null,null,"Redevances reçues pour brevets, licences, marques,"]
[null,null,null,"Honoraires et rémunérations d’intermédiaires,",null,null,null,null,null,null,null,null,null,null,null,"Revenus des immeubles."]
[null,null,null,"Publicité, relations publiques,"]
[null,null,null,"Transports de biens et transports du personnel,"]
[null,null,null,"Déplacements, missions, réceptions,"]
[null,null,null,"Frais postaux et de télécommunications,"]
[null,null,null,"Services bancaires."]
[null,null,"Impôts, taxes et versements assimilés.",null,null,null,{"$f":"SUM(G42:G49)","v":0},2375,3483.3333333333335,4760.5555555555547,4919.2407407407391,5247.1901234567886]
[null,null,null,"CET,",null,null,0,{"$f":"Impôts!$H4*AVERAGE(Pilotage!N26,Pilotage!N36,Pilotage!N38)","v":2375},{"$f":"H42*AVERAGE(Pilotage!O26,Pilotage!O36,Pilotage!O38)","v":3483.3333333333335},{"$f":"I42*AVERAGE(Pilotage!P26,Pilotage!P36,Pilotage!P38)","v":4760.5555555555547},{"$f":"J42*AVERAGE(Pilotage!Q26,Pilotage!Q36,Pilotage!Q38)","v":4919.2407407407391},{"$f":"K42*AVERAGE(Pilotage!R26,Pilotage!R36,Pilotage!R38)","v":5247.1901234567886}]
[null,null,null,"Taxe sur les salaires,"]
[null,null,null,"Taxe d’apprentissage,"]
[null,null,null,"Droits d’enregistrement,"]
[null,null,null,"Impôts locaux,"]
[null,null,null,"Contribution à la formation continue,"]
[null,null,null,"Contribution sociale de solidarité,"]
[null,null,null,"Timbres fiscaux."]
[null,null,"Charges de personnel.",null,null,null,{"$f":"SUM(G51:G55)","v":161630.22400000002},166359.13071999999,171229.90464160001,176246.80178084801,181414.20583427342,186736.63200930168,null,null,"Subventions d'exploitation",null,null,{"$f":"Pilotage!I20","v":0}]
[null,null,null,"Rémunérations, salaires,",null,null,{"$f":"Salaires!T16","v":161630.22400000002},{"$f":"Salaires!T29","v":166359.13071999999},{"$f":"Salaires!T42","v":171229.90464160001},{"$f":"Salaires!T55","v":176246.80178084801},{"$f":"Salaires!T68","v":181414.20583427342},{"$f":"Salaires!T81","v":186736.63200930168}]
[null,null,null,"Congés payés,"]
[null,null,null,"Primes, indemnités,"]
[null,null,null,"Charges sociales,"]
[null,null,null,"Œuvres sociales."]
[null,null,"Autres charges de gestion courante.",null,null,null,{"$f":"SUM(G57:G59)","v":191.31885000000003},191.31885000000003,191.31885000000003,191.31885000000003,191.31885000000003,191.31885000000003]
[null,null,null,"Redevances versées pour brevets, licences, marques,",null,null,{"$f":"Licences!$K4","v":191.31885000000003},{"$f":"Licences!$K4","v":191.31885000000003},{"$f":"Licences!$K4","v":191.31885000000003},{"$f":"Licences!$K4","v":191.31885000000003},{"$f":"Licences!$K4","v":191.31885000000003},{"$f":"Licences!$K4","v":191.31885000000003}]
[null,null,null,"Pertes sur créances irrécouvrables,"]
[null,null,null,"Charges diverses."]
[null,null,"Charges financières.",null,null,null,{"$f":"SUM(G61:G64)","v":0},0,0,0,0,0,null,null,"Produits financiers.",null,null,{"$f":"SUM(R61:R64)","v":0},0,0,0,0,0]
[null,null,null,"Intérêts des emprunts,",null,null,{"$f":"Emprunt!O6","v":0},{"$f":"Emprunt!O7","v":0},{"$f":"Emprunt!O8","v":0},{"$f":"Emprunt!O9","v":0},{"$f":"Emprunt!O10","v":0},{"$f":"Emprunt!O11","v":0},null,null,null,"Revenus des titres (dividendes, intérêts),"]
[null,null,null,"Escomptes accordés,",null,null,null,null,null,null,null,null,null,null,null,"Intérêts des prêts,"]
[null,null,null,"Intérêts bancaires,",null,null,null,null,null,null,null,null,null,null,null,"Escomptes obtenus,"]
[null,null,null,"Pertes de change.",null,null,null,null,null,null,null,null,null,null,null,"Gains de change."]
[null,null,"Charges exceptionnelles.",null,null,null,{"$f":"SUM(G66:G68)","v":0},0,0,0,0,0,null,null,"Produits exceptionnels.",null,null,{"$f":"SUM(R66:R67)","v":0},0,0,0,0,0]
[null,null,null,"Valeurs comptables des éléments d’actif cédés,",null,null,null,null,null,null,null,null,null,null,null,"Produits exceptionnels sur opérations de gestion,"]
[null,null,null,"Pénalités, amendes fiscales et pénales,",null,null,null,null,null,null,null,null,null,null,null,"Prix de cession d’éléments d’actif."]
[null,null,null,"Dons et libéralités."]
[null,null,"Dotations.",null,null,null,{"$f":"SUM(G70:G72)","v":0},2.3533499999999998,2.3533499999999998,0,0,0,null,null,"Reprises.",null,null,{"$f":"SUM(R70:R72)","v":0},0,0,0,0,0]
[null,null,null,"Dotations aux amortissements, aux dépréciations et aux provisions – Charges d’exploitation,",null,null,{"$f":"DAT!C6","v":0},{"$f":"DAT!D6","v":2.3533499999999998},{"$f":"DAT!E6","v":2.3533499999999998},{"$f":"DAT!F6","v":0},{"$f":"DAT!G6","v":0},{"$f":"DAT!H6","v":0},null,null,null,"Reprises sur amortissements, dépréciations et provisions – Produits d’exploitation,"]
[null,null,null,"Dotations aux amortissements, aux dépréciations et aux provisions – Charges financières,",null,null,null,null,null,null,null,null,null,null,null,"Reprises sur dépréciations et provisions – Produits financiers,"]
[null,null,null,"Dotations aux amortissements, aux dépréciations et aux provisions – Charges exceptionnelles,",null,null,null,null,null,null,null,null,null,null,null,"Reprises sur dépréciations et provisions – Produits"]
[null,null,null,null,null,null,null,null,null,null,null,null,null,null,"Transferts de charges.",null,null,{"$f":"SUM(R74:R76)","v":0},0,0,0,0,0]
[null,null,null,null,null,null,null,null,null,null,null,null,null,null,null,"Transferts de charges d’exploitation,"]
[null,null,null,null,null,null,null,null,null,null,null,null,null,null,null,"Transferts de charges financières,"]
[null,null,null,null,null,null,null,null,null,null,null,null,null,null,null,"Transferts de charges exceptionnelles."]
[]
[null,null,"Charges fixes",null,null,null,{"$f":"G69+G1+G12+G33+G342+G65+G60+G56+G50+G41+G26","v":197717.04285000003},{"$f":"H69+H1+H12+H33+H342+H65+H60+H56+H50+H41+H26","v":205900.16791999998},212988.44612493334,{"$f":"J69+J12+J65+J60+J56+J50+J41+J26","v":181198.67618640358},186524.76542501416,192175.14098275849]
[null,null,"Charges variables",null,null,null,{"$f":"G8","v":0},{"$f":"H8","v":0},0,{"$f":"J8+J33","v":39223.982028499995},40400.701489354993,41612.722534035645]
[]
[null,null,null,null,null,null,{"$f":"G5","v":"Année 0"},"Année 1","Année 2","Année 3","Année 4","Année 5",null,null,null,null,null,{"$f":"G81","v":"Année 0"},"Année 1","Année 2","Année 3","Année 4","Année 5"]
[null,"Total des charges",null,null,null,null,{"$f":"SUM(G69,G65,G60,G56,G50,G41,G33,G26,G6)","v":197717.04285000003},205900.16791999998,212988.44612493334,220422.65821490358,226925.46691436914,233787.86351679414,null,"Total des produits",null,null,null,{"$f":"SUM(R73,R69,R65,R60,R33,R6,R50)","v":104000},{"$f":"SUM(S73,S69,S65,S60,S33,S6)","v":208000},{"$f":"SUM(T73,T69,T65,T60,T33,T6)","v":416000},{"$f":"SUM(U73,U69,U65,U60,U33,U6)","v":832000},{"$f":"SUM(V73,V69,V65,V60,V33,V6)","v":832000},{"$f":"SUM(W73,W69,W65,W60,W33,W6)","v":915200}]
[null,"Avant Impôts"]
[null,"Solde créditeur : bénéfice",null,null,null,null,{"$f":"IF(R82>G82,R82-G82,\"\")","v":""},2099.832080000022,203011.55387506666,611577.34178509645,605074.53308563086,681412.13648320583,null,"Solde débiteur : perte",null,null,null,{"$f":"IF(G82>R82,G82-R82,\"\")","v":93717.042850000027},"","","","",""]
[]
[null,"Participation des salariés, impôts sur les bénéfices et assimilés.",null,null,null,null,{"$f":"SUM(G87:G88)","v":0},314.97481200000328,60681.851291688887,196870.44726169881,194702.84436187695,220148.7121610686]
[null,null,"Impôts sur les bénéfices,",null,null,null,{"$f":"IF(G84<>\"\",Pilotage!$D19*IF(G84>38120,(38120*0.15)+(G84-38120)/3,G84*15%),0)","v":0},{"$f":"IF(H84<>\"\",Pilotage!$D19*IF(H84>38120,(38120*0.15)+(H84-38120)/3,H84*15%),0)","v":314.97481200000328},{"$f":"IF(I84<>\"\",Pilotage!$D19*IF(I84>38120,(38120*0.15)+(I84-38120)/3,I84*15%),0)","v":60681.851291688887},{"$f":"IF(J84<>\"\",Pilotage!$D19*IF(J84>38120,(38120*0.15)+(J84-38120)/3,J84*15%),0)","v":196870.44726169881},{"$f":"IF(K84<>\"\",Pilotage!$D19*IF(K84>38120,(38120*0.15)+(K84-38120)/3,K84*15%),0)","v":194702.84436187695},{"$f":"IF(L84<>\"\",Pilotage!$D19*IF(L84>38120,(38120*0.15)+(L84-38120)/3,L84*15%),0)","v":220148.7121610686},null,null,null,null,null,null,null,null,{"$f":"V6/U6","v":1},{"$f":"W6/V6","v":1.1000000000000001}]
[null,null,"Participation des salariés aux résultats.",null,null,null,0,0,0,0,0,0]
[]
[null,null,null,null,null,null,{"$f":"G81","v":"Année 0"},"Année 1","Année 2","Année 3","Année 4","Année 5"]
[null,"Résultat net après impôts",null,null,null,null,{"$f":"IF(G84<>\"\",G84,0)-IF(G86<>\"\",G86,0)-IF(R84<>\"\",R84,0)","v":-93717.042850000027},1784.8572680000186,142329.70258337777,414706.89452339767,410371.6887237539,461263.42432213726]
[]
[null,"Croissance CA",null,null,null,null,null,{"$f":"S6/R6","v":2},{"$f":"T6/S6","v":2},{"$f":"U6/T6","v":2},{"$f":"V6/U6","v":1},{"$f":"W6/V6","v":1.1000000000000001}]

{"sheet":"SIG A0","index":22,"n_rows":34,"n_cols":5,"rows_kept":34,"cut":false,"hidden":true,"merged":[[1,1,1,4]]}
[]
[null,"Soldes intermédiaires de gestion"]
[]
[null,"État de résultat","Montants","Soldes","%"]
[null,"Chiffre d'affaires",{"$f":"'Comptes de résultat A0'!M6","v":{"$error":"#REF!"}}]
[null,"Travaux en cours initiaux",0]
[null,"Travaux en cours finaux",0]
[null,"Volume d'activité",null,{"$f":"SUM(C5:C7)","v":{"$error":"#REF!"}},1]
[null,"Charges fixes",{"$f":"'Comptes de résultat A0'!G11","v":0}]
[null,"Charges variables",{"$f":"'Comptes de résultat A0'!G8","v":0}]
[null,"Stock Final",0]
[null,"Achats Consommés",null,{"$f":"SUM(C9:C11)","v":0},{"$f":"D12/D8","v":{"$error":"#REF!"}}]
[null,"Marge Brute",null,{"$f":"D8-D12","v":{"$error":"#REF!"}},{"$f":"E8-E12","v":{"$error":"#REF!"}}]
[null,"Achats non stockables",{"$f":"'Comptes de résultat A0'!G13","v":0}]
[null,"Services extérieurs",{"$f":"'Comptes de résultat A0'!G25","v":0}]
[null,"Autres services extérieurs",{"$f":"'Comptes de résultat A0'!G32","v":35895.5}]
[null,"Valeur ajoutée",null,{"$f":"D13-SUM(C14:C16)","v":{"$error":"#REF!"}},{"$f":"D17/D$8","v":{"$error":"#REF!"}}]
[null,"Impôts et taxes",{"$f":"'Comptes de résultat A0'!G40","v":0}]
[null,"Charges de personnel",{"$f":"'Comptes de résultat A0'!G49","v":161630.22400000002}]
[null,"Cotisations personnelles",0]
[null,"Excédent brut d'exploitation",null,{"$f":"D17-SUM(C18:C20)","v":{"$error":"#REF!"}},{"$f":"D21/D$8","v":{"$error":"#REF!"}}]
[null,"Dotation aux amortissements",{"$f":"'Comptes de résultat A0'!G68","v":0}]
[null,"Autres charges de gestion",{"$f":"'Comptes de résultat A0'!G55","v":191.31885000000003}]
[null,"Autres produits de gestion",{"$f":"'Comptes de résultat A0'!M68+'Comptes de résultat A0'!M72","v":0}]
[null,"Résultat d'exploitation",null,{"$f":"D21-SUM(C22:C24)","v":{"$error":"#REF!"}},{"$f":"D25/D$8","v":{"$error":"#REF!"}}]
[null,"Produits financiers",{"$f":"'Comptes de résultat A0'!M59","v":0}]
[null,"Charges financières",{"$f":"'Comptes de résultat A0'!G59","v":0}]
[null,"Résultat financier",null,{"$f":"C26-C27","v":0}]
[null,"Résultat courant avant impôts",null,{"$f":"D25+D28","v":{"$error":"#REF!"}},{"$f":"D29/D$8","v":{"$error":"#REF!"}}]
[null,"Produits exceptionnels",{"$f":"'Comptes de résultat A0'!M64","v":0}]
[null,"Charges exceptionnelles",{"$f":"'Comptes de résultat A0'!G64","v":0}]
[null,"Résultat exceptionnel",null,{"$f":"C30-C31","v":0}]
[null,"Impôt sur les bénéfices",{"$f":"'Comptes de résultat A0'!G86","v":{"$error":"#REF!"}}]
[null,"Résultat net",null,{"$f":"D29-C33+D32","v":{"$error":"#REF!"}},{"$f":"D34/D$8","v":{"$error":"#REF!"}}]

{"sheet":"SIG 6 ans","index":23,"n_rows":39,"n_cols":20,"rows_kept":39,"cut":false,"hidden":false,"merged":[[1,1,1,19],[37,2,37,4],[37,5,37,7],[37,8,37,10],[37,11,37,13],[37,14,37,16],[37,17,37,19],[3,2,3,4],[3,5,3,7],[3,8,3,10],[3,11,3,13],[3,14,3,16],[38,14,38,16],[38,17,38,19],[3,17,3,19],[38,2,38,4],[38,5,38,7],[38,8,38,10],[38,11,38,13]]}
[]
[null,"Soldes intermédiaires de gestion sur 6 ans"]
[]
[null,null,{"$f":"'Comptes de résultat 6 ans'!G5","v":"Année 0"},null,null,{"$f":"'Comptes de résultat 6 ans'!H5","v":"Année 1"},null,null,{"$f":"'Comptes de résultat 6 ans'!I5","v":"Année 2"},null,null,{"$f":"'Comptes de résultat 6 ans'!J5","v":"Année 3"},null,null,{"$f":"'Comptes de résultat 6 ans'!K5","v":"Année 4"},null,null,{"$f":"'Comptes de résultat 6 ans'!L5","v":"Année 5"}]
[null,"État de résultat","Montants","Soldes","%",null,"Soldes","%",null,"Soldes","%",null,"Soldes","%",null,"Soldes","%",null,"Soldes","%"]
[null,"Chiffre d'affaires",{"$f":"'Comptes de résultat 6 ans'!R6","v":104000},null,null,{"$f":"'Comptes de résultat 6 ans'!S6","v":208000},null,null,{"$f":"'Comptes de résultat 6 ans'!T6","v":416000},null,null,{"$f":"'Comptes de résultat 6 ans'!U6","v":832000},null,null,{"$f":"'Comptes de résultat 6 ans'!V6","v":832000},null,null,{"$f":"'Comptes de résultat 6 ans'!W6","v":915200}]
[null,"Travaux en cours initiaux",0,null,null,0,null,null,0,null,null,0,null,null,0,null,null,0]
[null,"Travaux en cours finaux",0,null,null,0,null,null,0,null,null,0,null,null,0,null,null,0]
[null,"Volume d'activité",null,{"$f":"SUM(C6:C8)","v":104000},1,null,{"$f":"SUM(F6:F8)","v":208000},1,null,{"$f":"SUM(I6:I8)","v":416000},1,null,{"$f":"SUM(L6:L8)","v":832000},1,null,{"$f":"SUM(O6:O8)","v":832000},1,null,{"$f":"SUM(R6:R8)","v":915200},1]
[null,"Charges fixes",{"$f":"'Comptes de résultat 6 ans'!G12","v":0},null,null,{"$f":"'Comptes de résultat 6 ans'!H12","v":0},null,null,{"$f":"'Comptes de résultat 6 ans'!I12","v":0},null,null,{"$f":"'Comptes de résultat 6 ans'!J12","v":0},null,null,{"$f":"'Comptes de résultat 6 ans'!K12","v":0},null,null,{"$f":"'Comptes de résultat 6 ans'!L12","v":0}]
[null,"Charges variables",{"$f":"'Comptes de résultat 6 ans'!G8","v":0},null,null,{"$f":"'Comptes de résultat 6 ans'!H8","v":0},null,null,{"$f":"'Comptes de résultat 6 ans'!I8","v":0},null,null,{"$f":"'Comptes de résultat 6 ans'!J8","v":0},null,null,{"$f":"'Comptes de résultat 6 ans'!K8","v":0},null,null,{"$f":"'Comptes de résultat 6 ans'!L8","v":0}]
[null,"Stock Final",0,null,null,0,null,null,0,null,null,0,null,null,0,null,null,0]
[null,"Achats Consommés",null,{"$f":"SUM(C10:C12)","v":0},{"$f":"D13/D9","v":0},null,{"$f":"SUM(F10:F12)","v":0},{"$f":"G13/G9","v":0},null,{"$f":"SUM(I10:I12)","v":0},{"$f":"J13/J9","v":0},null,{"$f":"SUM(L10:L12)","v":0},{"$f":"M13/M9","v":0},null,{"$f":"SUM(O10:O12)","v":0},{"$f":"P13/P9","v":0},null,{"$f":"SUM(R10:R12)","v":0},{"$f":"S13/S9","v":0}]
[null,"Marge Brute",null,{"$f":"D9-D13","v":104000},{"$f":"E9-E13","v":1},null,{"$f":"G9-G13","v":208000},{"$f":"H9-H13","v":1},null,{"$f":"J9-J13","v":416000},{"$f":"K9-K13","v":1},null,{"$f":"M9-M13","v":832000},{"$f":"N9-N13","v":1},null,{"$f":"P9-P13","v":832000},{"$f":"Q9-Q13","v":1},null,{"$f":"S9-S13","v":915200},{"$f":"T9-T13","v":1}]
[null,"Achats non stockables",{"$f":"'Comptes de résultat 6 ans'!G14","v":0},null,null,{"$f":"'Comptes de résultat 6 ans'!H14","v":0},null,null,{"$f":"'Comptes de résultat 6 ans'!I14","v":0},null,null,{"$f":"'Comptes de résultat 6 ans'!J14","v":0},null,null,{"$f":"'Comptes de résultat 6 ans'!K14","v":0},null,null,{"$f":"'Comptes de résultat 6 ans'!L14","v":0}]
[null,"Services extérieurs",{"$f":"'Comptes de résultat 6 ans'!G26","v":0},null,null,{"$f":"'Comptes de résultat 6 ans'!H26","v":0},null,null,{"$f":"'Comptes de résultat 6 ans'!I26","v":0},null,null,{"$f":"'Comptes de résultat 6 ans'!J26","v":0},null,null,{"$f":"'Comptes de résultat 6 ans'!K26","v":0},null,null,{"$f":"'Comptes de résultat 6 ans'!L26","v":0}]
[null,"Autres services extérieurs",{"$f":"'Comptes de résultat 6 ans'!G33","v":35895.5},null,null,{"$f":"'Comptes de résultat 6 ans'!H33","v":36972.364999999998},null,null,{"$f":"'Comptes de résultat 6 ans'!I33","v":38081.535949999998},null,null,{"$f":"'Comptes de résultat 6 ans'!J33","v":39223.982028499995},null,null,{"$f":"'Comptes de résultat 6 ans'!K33","v":40400.701489354993},null,null,{"$f":"'Comptes de résultat 6 ans'!L33","v":41612.722534035645}]
[null,"Valeur ajoutée",null,{"$f":"D14-SUM(C15:C17)","v":68104.5},{"$f":"D18/D$9","v":0.65485096153846156},null,{"$f":"G14-SUM(F15:F17)","v":171027.63500000001},{"$f":"G18/G$9","v":0.82224824519230777},null,{"$f":"J14-SUM(I15:I17)","v":377918.46405000001},{"$f":"J18/J$9","v":0.90845784627403847},null,{"$f":"M14-SUM(L15:L17)","v":792776.01797150006},{"$f":"M18/M$9","v":0.95285579083112992},null,{"$f":"P14-SUM(O15:O17)","v":791599.29851064505},{"$f":"P18/P$9","v":0.95144146455606371},null,{"$f":"S14-SUM(R15:R17)","v":873587.27746596432},{"$f":"S18/S$9","v":0.9545315531752232}]
[null,"Impôts et taxes",{"$f":"'Comptes de résultat 6 ans'!G41","v":0},null,null,{"$f":"'Comptes de résultat 6 ans'!H41","v":2375},null,null,{"$f":"'Comptes de résultat 6 ans'!I41","v":3483.3333333333335},null,null,{"$f":"'Comptes de résultat 6 ans'!J41","v":4760.5555555555547},null,null,{"$f":"'Comptes de résultat 6 ans'!K41","v":4919.2407407407391},null,null,{"$f":"'Comptes de résultat 6 ans'!L41","v":5247.1901234567886}]
[null,"Charges de personnel",{"$f":"'Comptes de résultat 6 ans'!G50","v":161630.22400000002},null,null,{"$f":"'Comptes de résultat 6 ans'!H50","v":166359.13071999999},null,null,{"$f":"'Comptes de résultat 6 ans'!I50","v":171229.90464160001},null,null,{"$f":"'Comptes de résultat 6 ans'!J50","v":176246.80178084801},null,null,{"$f":"'Comptes de résultat 6 ans'!K50","v":181414.20583427342},null,null,{"$f":"'Comptes de résultat 6 ans'!L50","v":186736.63200930168}]
[null,"Cotisations personnelles",0,null,null,0,null,null,0,null,null,0,null,null,0,null,null,0]
[null,"Excédent brut d'exploitation",null,{"$f":"D18-SUM(C19:C21)","v":-93525.724000000017},{"$f":"D22/D$9","v":-0.89928580769230781},null,{"$f":"G18-SUM(F19:F21)","v":2293.5042800000228},{"$f":"G22/G$9","v":1.1026462884615494E-2},null,{"$f":"J18-SUM(I19:I21)","v":203205.22607506666},{"$f":"J22/J$9","v":0.48847410114198714},null,{"$f":"M18-SUM(L19:L21)","v":611768.66063509649},{"$f":"M22/M$9","v":0.73529887095564483},null,{"$f":"P18-SUM(O19:O21)","v":605265.8519356309},{"$f":"P22/P$9","v":0.72748299511494097},null,{"$f":"S18-SUM(R19:R21)","v":681603.45533320587},{"$f":"S22/S$9","v":0.74475902025044349}]
[null,"Dotation aux amortissements",{"$f":"'Comptes de résultat 6 ans'!G69","v":0},null,null,{"$f":"'Comptes de résultat 6 ans'!H69","v":2.3533499999999998},null,null,{"$f":"'Comptes de résultat 6 ans'!I69","v":2.3533499999999998},null,null,{"$f":"'Comptes de résultat 6 ans'!J69","v":0},null,null,{"$f":"'Comptes de résultat 6 ans'!K69","v":0},null,null,{"$f":"'Comptes de résultat 6 ans'!L69","v":0}]
[null,"Autres charges de gestion",{"$f":"'Comptes de résultat 6 ans'!G56","v":191.31885000000003},null,null,{"$f":"'Comptes de résultat 6 ans'!H56","v":191.31885000000003},null,null,{"$f":"'Comptes de résultat 6 ans'!I56","v":191.31885000000003},null,null,{"$f":"'Comptes de résultat 6 ans'!J56","v":191.31885000000003},null,null,{"$f":"'Comptes de résultat 6 ans'!K56","v":191.31885000000003},null,null,{"$f":"'Comptes de résultat 6 ans'!L56","v":191.31885000000003}]
[null,"Autres produits de gestion",{"$f":"'Comptes de résultat 6 ans'!R69+'Comptes de résultat 6 ans'!R73","v":0},null,null,{"$f":"'Comptes de résultat 6 ans'!S69+'Comptes de résultat 6 ans'!S73","v":0},null,null,{"$f":"'Comptes de résultat 6 ans'!T69+'Comptes de résultat 6 ans'!T73","v":0},null,null,{"$f":"'Comptes de résultat 6 ans'!U69+'Comptes de résultat 6 ans'!U73","v":0},null,null,{"$f":"'Comptes de résultat 6 ans'!V69+'Comptes de résultat 6 ans'!V73","v":0},null,null,{"$f":"'Comptes de résultat 6 ans'!W69+'Comptes de résultat 6 ans'!W73","v":0}]
[null,"Résultat d'exploitation",null,{"$f":"D22-SUM(C23:C25)","v":-93717.042850000013},{"$f":"D26/D$9","v":-0.90112541201923091},null,{"$f":"G22-SUM(F23:F25)","v":2099.8320800000229},{"$f":"G26/G$9","v":1.0095346538461648E-2},null,{"$f":"J22-SUM(I23:I25)","v":203011.55387506666},{"$f":"J26/J$9","v":0.48800854296891022},null,{"$f":"M22-SUM(L23:L25)","v":611577.34178509645},{"$f":"M26/M$9","v":0.73506892041477934},null,{"$f":"P22-SUM(O23:O25)","v":605074.53308563086},{"$f":"P26/P$9","v":0.72725304457407558},null,{"$f":"S22-SUM(R23:R25)","v":681412.13648320583},{"$f":"S26/S$9","v":0.74454997430420222}]
[null,"Produits financiers",{"$f":"'Comptes de résultat 6 ans'!R60","v":0},null,null,{"$f":"'Comptes de résultat 6 ans'!S60","v":0},null,null,{"$f":"'Comptes de résultat 6 ans'!T60","v":0},null,null,{"$f":"'Comptes de résultat 6 ans'!U60","v":0},null,null,{"$f":"'Comptes de résultat 6 ans'!V60","v":0},null,null,{"$f":"'Comptes de résultat 6 ans'!W60","v":0}]
[null,"Charges financières",{"$f":"'Comptes de résultat 6 ans'!G60","v":0},null,null,{"$f":"'Comptes de résultat 6 ans'!H60","v":0},null,null,{"$f":"'Comptes de résultat 6 ans'!I60","v":0},null,null,{"$f":"'Comptes de résultat 6 ans'!J60","v":0},null,null,{"$f":"'Comptes de résultat 6 ans'!K60","v":0},null,null,{"$f":"'Comptes de résultat 6 ans'!L60","v":0}]
[null,"Résultat financier",null,{"$f":"C27-C28","v":0},null,null,{"$f":"F27-F28","v":0},null,null,{"$f":"I27-I28","v":0},null,null,{"$f":"L27-L28","v":0},null,null,{"$f":"O27-O28","v":0},null,null,{"$f":"R27-R28","v":0}]
[null,"Résultat courant avant impôts",null,{"$f":"D26+D29","v":-93717.042850000013},{"$f":"D30/D$9","v":-0.90112541201923091},null,{"$f":"G26+G29","v":2099.8320800000229},{"$f":"G30/G$9","v":1.0095346538461648E-2},null,{"$f":"J26+J29","v":203011.55387506666},{"$f":"J30/J$9","v":0.48800854296891022},null,{"$f":"M26+M29","v":611577.34178509645},{"$f":"M30/M$9","v":0.73506892041477934},null,{"$f":"P26+P29","v":605074.53308563086},{"$f":"P30/P$9","v":0.72725304457407558},null,{"$f":"S26+S29","v":681412.13648320583},{"$f":"S30/S$9","v":0.74454997430420222}]
[null,"Produits exceptionnels",{"$f":"'Comptes de résultat 6 ans'!R65","v":0},null,null,{"$f":"'Comptes de résultat 6 ans'!S65","v":0},null,null,{"$f":"'Comptes de résultat 6 ans'!T65","v":0},null,null,{"$f":"'Comptes de résultat 6 ans'!U65","v":0},null,null,{"$f":"'Comptes de résultat 6 ans'!V65","v":0},null,null,{"$f":"'Comptes de résultat 6 ans'!W65","v":0}]
[null,"Charges exceptionnelles",{"$f":"'Comptes de résultat 6 ans'!G65","v":0},null,null,{"$f":"'Comptes de résultat 6 ans'!H65","v":0},null,null,{"$f":"'Comptes de résultat 6 ans'!I65","v":0},null,null,{"$f":"'Comptes de résultat 6 ans'!J65","v":0},null,null,{"$f":"'Comptes de résultat 6 ans'!K65","v":0},null,null,{"$f":"'Comptes de résultat 6 ans'!L65","v":0}]
[null,"Résultat exceptionnel",null,{"$f":"C31-C32","v":0},null,null,{"$f":"F31-F32","v":0},null,null,{"$f":"I31-I32","v":0},null,null,{"$f":"L31-L32","v":0},null,null,{"$f":"O31-O32","v":0},null,null,{"$f":"R31-R32","v":0}]
[null,"Impôt sur les bénéfices",{"$f":"'Comptes de résultat 6 ans'!G87","v":0},null,null,{"$f":"'Comptes de résultat 6 ans'!H87","v":314.97481200000328},null,null,{"$f":"'Comptes de résultat 6 ans'!I87","v":60681.851291688887},null,null,{"$f":"'Comptes de résultat 6 ans'!J87","v":196870.44726169881},null,null,{"$f":"'Comptes de résultat 6 ans'!K87","v":194702.84436187695},null,null,{"$f":"'Comptes de résultat 6 ans'!L87","v":220148.7121610686}]
[null,"Résultat net",null,{"$f":"D30-C34+D33","v":-93717.042850000013},{"$f":"D35/D$9","v":-0.90112541201923091},null,{"$f":"G30-F34+G33","v":1784.8572680000195},{"$f":"G35/G$9","v":8.5810445576924022E-3},null,{"$f":"J30-I34+J33","v":142329.70258337777},{"$f":"J35/J$9","v":0.34213870813311964},null,{"$f":"M30-L34+M33","v":414706.89452339767},{"$f":"M35/M$9","v":0.49844578668677603},null,{"$f":"P30-O34+P33","v":410371.6887237539},{"$f":"P35/P$9","v":0.49323520279297345},null,{"$f":"S30-R34+S33","v":461263.42432213726},{"$f":"S35/S$9","v":0.50400286748485279}]
[]
[]
[null,"Croissance CA",0,null,null,{"$f":"F6/C6-1","v":1},null,null,{"$f":"I6/F6-1","v":1},null,null,{"$f":"L6/I6-1","v":1},null,null,{"$f":"O6/L6-1","v":0},null,null,{"$f":"R6/O6-1","v":0.10000000000000009}]
[null,"Croissance bénéfices",0,null,null,{"$f":"G30/D30-1","v":-1.022406085554374},null,null,{"$f":"J30/G30-1","v":95.679899220829341},null,null,{"$f":"M30/J30-1","v":2.0125248051717355},null,null,{"$f":"P30/M30-1","v":-1.0632847646848576E-2},null,null,{"$f":"S30/P30-1","v":0.12616231426611968}]

{"sheet":"Plan de trésorerie A0","index":24,"n_rows":130,"n_cols":23,"rows_kept":130,"cut":false,"hidden":false,"merged":[[80,1,80,9],[81,0,81,9],[82,1,82,9],[1,1,1,13],[19,2,19,13],[20,2,21,13],[77,1,78,9],[79,1,79,9],[54,2,54,13],[74,1,74,9]]}
[]
[null,"Plan de trésorerie Année 0"]
[]
[]
[null,null,"1er mois","2e mois","3e mois","4e mois","5e mois","6e mois","7e mois","8e mois","9e mois","10e mois","11e mois","12e mois"]
[null,null,null,null,null,null,null,null,null,null,null,null,null,null,"Total","Prévu"]
[null," 1. SOLDE EN DEBUT DE MOIS",null,{"$f":"C72","v":-14545.890841333339},{"$f":"D72","v":-27906.821682666668},-39270.952524,-47639.883365333335,-55010.414206666668,-62731.893079925227,-69860.848653644571,-76467.161637144658,-82605.954892499081,-86981.28573383241,-91356.616575165739]
[null," 2. ENCAISSEMENTS"]
[null," 2 A. D'exploitation"]
[null,"Ventes",{"$f":"C101","v":1248},3744,6240,9984,11232,10793.31496009347,11533.969084517488,12187.272322291565,12771.671982473641,14976,14976,{"$f":"N101+P101","v":15113.771650623841},{"$f":"SUM(C10:N10)","v":124800},{"$f":"B101","v":124800}]
[null,"Prestations et locations",{"$f":"C102","v":0},{"$f":"D102","v":0},0,0,0,0,0,0,0,0,0,{"$f":"N102+P102","v":0},{"$f":"SUM(C11:N11)","v":0},{"$f":"B102","v":0},null,{"$f":"SUM(C10:C11)","v":1248},3744,6240,9984,11232,10793.31496009347]
[null," 2 B. Hors exploitation",{"$f":"SUM(C10:C11)","v":1248},{"$f":"SUM(D10:D11)","v":3744},6240,9984,11232,10793.31496009347,11533.969084517488,12187.272322291565,12771.671982473641,14976,14976,15113.771650623841]
[null,"  Apports en capital",{"$f":"C119","v":10000},{"$f":"D119","v":0},0,0,0,0,0,0,0,0,0,0]
[null,"  Apports en comptes courants d'associés",{"$f":"C120","v":0},0,0,0,0,0,0,0,0,0,0,0]
[null,"  Subventions",0,0,0,0,0,0,0,0,0,0,0,0]
[null,"Emprunts à moyen et long terme \n(PCE + prêt bancaire + ….)",{"$f":"C122+C123+C124","v":0},{"$f":"D122+D123+D124","v":0},0,0,0,0,0,0,0,0,0,0]
[null,"Autres encaissements",{"$f":"C125","v":0},0,0,0,0,0,0,0,0,0,0,0]
[null,"TVA à encaisser",{"$f":"SUM('Plan de trésorerie A0'!C23:C45,'Plan de trésorerie A0'!C56,'Plan de trésorerie A0'!C60,'Plan de trésorerie A0'!C61,'Plan de trésorerie A0'!C62)*Pilotage!$D14","v":3018.7763770000006},{"$f":"SUM('Plan de trésorerie A0'!D23:D45,'Plan de trésorerie A0'!D56,'Plan de trésorerie A0'!D60,'Plan de trésorerie A0'!D61,'Plan de trésorerie A0'!D62)*Pilotage!$D14","v":721.73637699999995},{"$f":"SUM('Plan de trésorerie A0'!E23:E45,'Plan de trésorerie A0'!E56,'Plan de trésorerie A0'!E60,'Plan de trésorerie A0'!E61,'Plan de trésorerie A0'!E62)*Pilotage!$D14","v":721.73637699999995},{"$f":"SUM('Plan de trésorerie A0'!F23:F45,'Plan de trésorerie A0'!F56,'Plan de trésorerie A0'!F60,'Plan de trésorerie A0'!F61,'Plan de trésorerie A0'!F62)*Pilotage!$D14","v":721.73637699999995},{"$f":"SUM('Plan de trésorerie A0'!G23:G45,'Plan de trésorerie A0'!G56,'Plan de trésorerie A0'!G60,'Plan de trésorerie A0'!G61,'Plan de trésorerie A0'!G62)*Pilotage!$D14","v":721.73637699999995},{"$f":"SUM('Plan de trésorerie A0'!H23:H45,'Plan de trésorerie A0'!H56,'Plan de trésorerie A0'!H60,'Plan de trésorerie A0'!H61,'Plan de trésorerie A0'!H62)*Pilotage!$D14","v":721.73637699999995},{"$f":"SUM('Plan de trésorerie A0'!I23:I45,'Plan de trésorerie A0'!I56,'Plan de trésorerie A0'!I60,'Plan de trésorerie A0'!I61,'Plan de trésorerie A0'!I62)*Pilotage!$D14","v":721.73637699999995},{"$f":"SUM('Plan de trésorerie A0'!J23:J45,'Plan de trésorerie A0'!J56,'Plan de trésorerie A0'!J60,'Plan de trésorerie A0'!J61,'Plan de trésorerie A0'!J62)*Pilotage!$D14","v":721.73637699999995},{"$f":"SUM('Plan de trésorerie A0'!K23:K45,'Plan de trésorerie A0'!K56,'Plan de trésorerie A0'!K60,'Plan de trésorerie A0'!K61,'Plan de trésorerie A0'!K62)*Pilotage!$D14","v":721.73637699999995},{"$f":"SUM('Plan de trésorerie A0'!L23:L45,'Plan de trésorerie A0'!L56,'Plan de trésorerie A0'!L60,'Plan de trésorerie A0'!L61,'Plan de trésorerie A0'!L62)*Pilotage!$D14","v":721.73637699999995},{"$f":"SUM('Plan de trésorerie A0'!M23:M45,'Plan de trésorerie A0'!M56,'Plan de trésorerie A0'!M60,'Plan de trésorerie A0'!M61,'Plan de trésorerie A0'!M62)*Pilotage!$D14","v":721.73637699999995},{"$f":"SUM('Plan de trésorerie A0'!N23:N45,'Plan de trésorerie A0'!N56,'Plan de trésorerie A0'!N60,'Plan de trésorerie A0'!N61,'Plan de trésorerie A0'!N62)*Pilotage!$D14","v":721.73637699999995},{"$f":"SUM(C18:N18)","v":10957.876523999999}]
[null,"A. TOTAL ENCAISSEMENTS",{"$f":"SUM(C9:C11)+SUM(C13:C18)","v":14266.776377},{"$f":"SUM(D9:D11)+SUM(D13:D18)","v":4465.7363770000002},6961.7363770000002,10705.736376999999,11953.736376999999,11515.05133709347,12255.705461517487,12909.008699291564,13493.40835947364,15697.736376999999,15697.736376999999,15835.50802762384,{"$f":"SUM(C19:N19)","v":145757.87652399999}]
[]
[null," 3. DECAISSEMENTS"]
[null," 3 A. D'exploitation"]
[null,"  Achats de marchandises TTC",{"$f":"C96","v":0},0,0,0,0,0,0,0,0,0,0,0,{"$f":"SUM(C23:N23)","v":0},{"$f":"B96","v":0}]
[null,"Charges externes",{"$f":"C108","v":3589.5499999999997},{"$f":"D108","v":3589.5499999999997},3589.5499999999997,3589.5499999999997,3589.5499999999997,3589.5499999999997,3589.5499999999997,3589.5499999999997,3589.5499999999997,3589.5499999999997,3589.5499999999997,3589.5499999999997,{"$f":"SUM(C24:N24)","v":43074.600000000006},{"$f":"B108","v":43074.6}]
[null,"  Sous-traitance",null,null,null,null,null,null,null,null,null,null,null,null,{"$f":"SUM(C25:N25)","v":0}]
[null,"  Eau",null,null,null,null,null,null,null,null,null,null,null,null,0]
[null,"  Electricité",null,null,null,null,null,null,null,null,null,null,null,null,0]
[null,"  Fournitures d'entretien",null,null,null,null,null,null,null,null,null,null,null,null,0]
[null,"  Fournitures administratives",null,null,null,null,null,null,null,null,null,null,null,null,0]
[null,"  Fournitures diverses",null,null,null,null,null,null,null,null,null,null,null,null,0]
[null,"  Loyers de crédit bail",null,null,null,null,null,null,null,null,null,null,null,null,0]
[null,"  Loyers et charges locatives",null,null,null,null,null,null,null,null,null,null,null,null,0]
[null,"  Assurances",null,null,null,null,null,null,null,null,null,null,null,null,0]
[null,"  Entretien (locaux, matériel)",null,null,null,null,null,null,null,null,null,null,null,null,0]
[null,"  Documentation",null,null,null,null,null,null,null,null,null,null,null,null,0]
[null,"  Honoraires",null,null,null,null,null,null,null,null,null,null,null,null,0]
[null,"  Frais d'acte et de contentieux",null,null,null,null,null,null,null,null,null,null,null,null,0]
[null,"  Affranchissements",null,null,null,null,null,null,null,null,null,null,null,null,0]
[null,"  Téléphone",null,null,null,null,null,null,null,null,null,null,null,null,0]
[null,"  Internet",null,null,null,null,null,null,null,null,null,null,null,null,0]
[null,"  Publicité",null,null,null,null,null,null,null,null,null,null,null,null,0]
[null,"  Frais de transport",null,null,null,null,null,null,null,null,null,null,null,null,0]
[null,"  Emballages et conditionnement",null,null,null,null,null,null,null,null,null,null,null,null,0]
[null,"  Voyages et déplacements",null,null,null,null,null,null,null,null,null,null,null,null,0]
[null,"Loyers",{"$f":"C107","v":0},{"$f":"D107","v":0},0,0,0,0,0,0,0,0,0,0,{"$f":"SUM(C45:N45)","v":0},{"$f":"B107","v":0},null,{"$f":"SUM(C23:C54)","v":17308.335333333336},17807.535333333333,18306.735333333334,19055.535333333333,19305.135333333335,19217.398325352027]
[null,"TVA -  Impôts et taxes (hors IS ou IR)",{"$f":"SUM(C10:C11)*Pilotage!$D14","v":249.60000000000002},{"$f":"SUM(D10:D11)*Pilotage!$D14","v":748.80000000000007},{"$f":"SUM(E10:E11)*Pilotage!$D14","v":1248},{"$f":"SUM(F10:F11)*Pilotage!$D14","v":1996.8000000000002},{"$f":"SUM(G10:G11)*Pilotage!$D14","v":2246.4},{"$f":"SUM(H10:H11)*Pilotage!$D14","v":2158.6629920186942},{"$f":"SUM(I10:I11)*Pilotage!$D14","v":2306.7938169034978},{"$f":"SUM(J10:J11)*Pilotage!$D14","v":2437.4544644583129},{"$f":"SUM(K10:K11)*Pilotage!$D14","v":2554.3343964947285},{"$f":"SUM(L10:L11)*Pilotage!$D14","v":2995.2000000000003},{"$f":"SUM(M10:M11)*Pilotage!$D14","v":2995.2000000000003},{"$f":"SUM(N10:N11)*Pilotage!$D14","v":3022.7543301247683},24960.000000000004,{"$f":"B110","v":1500}]
[null,"Salaires",{"$f":"C106","v":13469.185333333335},13469.185333333335,13469.185333333335,13469.185333333335,13469.185333333335,13469.185333333335,13469.185333333335,13469.185333333335,13469.185333333335,13469.185333333335,13469.185333333335,13469.185333333335,{"$f":"SUM(C47:N47)","v":161630.22399999996},{"$f":"Salaires!T16","v":161630.22400000002}]
[null,"  Rémunération du dirigeant"]
[null,"  Cotisations sociales du dirigeant"]
[null,"  Salaires brut des salariés"]
[null,"  Cotisations sociales salariés"]
[null,"  Commissions versées"]
[null,"  Agios et intérêts payés"]
[null,"  Autres"]
[null," 3 B. Hors exploitation"]
[null,"Matériel",{"$f":"C94","v":0},0,0,0,0,0,0,0,0,0,0,0,{"$f":"SUM(C56:N56)","v":0},{"$f":"B94","v":0}]
[null,"  Achat terrain construction"]
[null,"  Brevet"]
[null,"  Création site internet"]
[null,"  Logiciels",{"$f":"C109","v":19.131885},{"$f":"D109","v":19.131885},19.131885,19.131885,19.131885,19.131885,19.131885,19.131885,19.131885,19.131885,19.131885,19.131885,{"$f":"SUM(C60:N60)","v":229.58262000000005},{"$f":"B109","v":229.58262000000002}]
[null,"  Travaux / aménagements",{"$f":"C95","v":0},0,0,0,0,0,0,0,0,0,0,0,{"$f":"SUM(C61:N61)","v":0},{"$f":"B95","v":0}]
[null,"  Frais de création",{"$f":"C126","v":11485.200000000003},{"$f":"D126","v":0},0,0,0,0,0,0,0,0,0,0,{"$f":"SUM(C62:N62)","v":11485.200000000003},{"$f":"B126","v":11485.200000000003}]
[null,"  Véhicule"]
[null,"  Mobilier"]
[null,"  Matériel informatique"]
[null,"  Garanties sur loyers",{"$f":"C117","v":0},{"$f":"D117","v":0},0,0,0,0,0,0,0,0,0,0,{"$f":"SUM(C66:N66)","v":0}]
[null,"  Garanties professionnelles",{"$f":"C118","v":0},{"$f":"D118","v":0},0,0,0,0,0,0,0,0,0,0,{"$f":"SUM(C67:N67)","v":0}]
[null,"  Remboursement d'emprunts ",{"$f":"C130+C112+C113","v":0},{"$f":"D130+D112+D113","v":0},0,0,0,0,0,0,0,0,0,0,{"$f":"SUM(C68:N68)","v":0}]
[null,"Crédit-bail",{"$f":"C111","v":0},{"$f":"D111","v":0},0,0,0,0,0,0,0,0,0,0,{"$f":"SUM(C69:N69)","v":0}]
[null,"B. TOTAL DECAISSEMENTS",{"$f":"SUM(C23:C54)+SUM(C56:C69)","v":28812.667218333339},{"$f":"SUM(D22:D69)","v":17826.667218333332},18325.867218333333,19074.667218333332,19324.267218333334,19236.530210352026,19384.661035236833,19515.321682791644,19632.201614828064,20073.067218333334,20073.067218333334,20100.621548458101,{"$f":"SUM(C70:N70)","v":241379.60661999998}]
[null," 4. SOLDE DU MOIS (A - B)",{"$f":"C19-C70","v":-14545.890841333339},-13360.930841333331,-11364.130841333332,-8368.9308413333329,-7370.530841333335,-7721.4788732585566,-7128.9555737193459,-6606.31298350008,-6138.7932553544233,-4375.3308413333343,-4375.3308413333343,-4265.1135208342603,-95621.730095999985]
[null," 5. SOLDE DE FIN DE MOIS (1 + 4)",{"$f":"C7+C71","v":-14545.890841333339},-27906.821682666668,-39270.952524,-47639.883365333335,-55010.414206666668,-62731.893079925227,-69860.848653644571,-76467.161637144658,-82605.954892499081,-86981.28573383241,-91356.616575165739,-95621.730095999999]
[]
[null,"Construction du plan de trésorerie"]
[null,"Certaines sommes proviennent directement de l'activité de l'entreprise : ce sont les encaissements d'exploitation\nD'autres ont pour objet de financer l'exploitation mais ne sont pas directement issues de l'activité : elles sont \"hors exploitation\""]
[]
[null,"2 A. : indiquer le chiffre d'affaires TTC réellement encaissé (ou prévisionnel si vous êtes en phase de construction de votre projet)"]
[null,"Attention !\n• Le montant du chiffre d'affaires encaissé est inscrit TTC. L'éventuel montant de la TVA à reverser est comptabilisé dans les impôts et taxes. \n• Le montant des ventes est celui réellement encaissé : ne pas oublier les délais de paiement possibles entre la facturation et l'encaissement du paiement"]
[]
[]
[null,"2 B. : Reprendre les chiffres du plan de financement initial pour le 1er mois. En cas de versement ultérieur, porter la somme sur le mois où elle est (ou sera) réellement reçue."]
[]
[null,"3 A. : Attention ! \n• Le montant des achats est comptabilisé TTC : le solde de TVA sera porté au poste\" impôts et taxes\" s'il est décaissé par l'entreprise\n• De même, ne pas oublier de tenir compte des délais de paiement et porter le décaissement le mois où celui-ci a (ou aura) réellement eu lieu  "]
[]
[]
[]
[]
[]
[]
[null,"Valeur à répartir TTC",1,2,3,4,5,6,7,8,9,10,11,12,"Total","Différence"]
["Répartition dégressive",null,null,null,null,null,null,null,null,null,null,null,null,"Coeffs tend.",{"$f":"LOGEST(C92:N92,C90:N90,TRUE,FALSE)","v":0.50892810121063259},0.72844709654046924]
["Courbe",null,0.2,0.47,0.2,0.1,0.01,0.01,5.0000000000000001E-3,2.5000000000000001E-3,5.0000000000000001E-4,5.0000000000000001E-4,5.0000000000000001E-4,1E-3,{"$f":"SUM(C92:N92)","v":0.99999999999999967},{"$f":"100%-O92","v":0}]
["Tendance",1,{"$f":"$P91*$O91^C90","v":0.37072719767473938},0.18867348877974394,9.6021240393460675E-2,4.8867907549333636E-2,2.4870251399219102E-2,1.2657169821235657E-2,6.4415894038219847E-3,3.2783058640656533E-3,1.668421978586615E-3,8.4910682958017265E-4,4.3213432650321745E-4,2.19925302255218E-4,{"$f":"SUM(C93:N93)","v":0.75470673932254539},{"$f":"B93-O93","v":0.24529326067745461}]
["Matériel (Matériel)",{"$f":"Matériel!K4*(1+Pilotage!$D$14)","v":0},{"$f":"C$92*$B94","v":0},0,0,0,0,0,0,0,0,0,0,0,{"$f":"SUM(C94:N94)","v":0},{"$f":"B94-O94","v":0}]
["Travaux",{"$f":"Travaux!K4*(1+Pilotage!$D$14)","v":0},0,0,0,0,0,0,0,0,0,0,0,0,{"$f":"SUM(C95:N95)","v":0},{"$f":"B95-O95","v":0}]
["Marchandises(Stock)",{"$f":"Stock!K4*(1+Pilotage!$D$14)","v":0},0,0,0,0,0,0,0,0,0,0,0,0,{"$f":"SUM(C96:N96)","v":0},{"$f":"B96-O96","v":0}]
[]
[]
["Répartition progressive",null,null,null,null,null,null,null,null,null,null,null,null,null,null,null,"Delta"]
["Courbe",1,0.01,0.03,0.05,0.08,0.09,{"$f":"LN(1+H90)/22.5","v":8.6484895513569471E-2},9.2419624074659368E-2,9.7654425659387534E-2,0.10233711524417982,0.12,0.12,0.12,{"$f":"SUM(C100:N100)","v":0.99889606049179613},{"$f":"100%-O100","v":1.1039395082038661E-3}]
["Ventes (Ventes Stock + Ventes Produits)",{"$f":"SUM('Comptes de résultat 6 ans'!R7:R8)*(1+Pilotage!$D$14)","v":124800},{"$f":"C$100*$B101","v":1248},{"$f":"D$100*$B101","v":3744},6240,9984,11232,10793.31496009347,11533.969084517488,12187.272322291565,12771.671982473641,14976,14976,{"$f":"N$100*$B101+Q101","v":14955.37},{"$f":"SUM(C101:N101)","v":124641.59834937616},{"$f":"B101-O101","v":158.4016506238404},-20.63]
["Autres revenus (Prestations + Locations)",{"$f":"SUM('Comptes de résultat 6 ans'!R12:R13)*(1+Pilotage!$D$14)","v":0},{"$f":"C$100*$B102","v":0},0,0,0,0,0,0,0,0,0,0,{"$f":"N$100*$B102+Q102","v":-45.32},{"$f":"SUM(C102:N102)","v":-45.32},{"$f":"B102-O102","v":45.32},-45.32]
[]
["Répartition linéaire"]
["Courbe",1,{"$f":"1/12","v":8.3333333333333329E-2},{"$f":"1/12","v":8.3333333333333329E-2},8.3333333333333329E-2,8.3333333333333329E-2,8.3333333333333329E-2,8.3333333333333329E-2,8.3333333333333329E-2,8.3333333333333329E-2,8.3333333333333329E-2,8.3333333333333329E-2,8.3333333333333329E-2,8.3333333333333329E-2,{"$f":"SUM(C105:N105)","v":1},{"$f":"100%-O105","v":0}]
["Salaires (Salaires)",{"$f":"Salaires!$T$16","v":161630.22400000002},{"$f":"C$105*$B106","v":13469.185333333335},13469.185333333335,13469.185333333335,13469.185333333335,13469.185333333335,13469.185333333335,13469.185333333335,13469.185333333335,13469.185333333335,13469.185333333335,13469.185333333335,13469.185333333335,161630.22399999996,{"$f":"B106-O106","v":0}]
["Loyers",{"$f":"Loyers!K4*(1+Pilotage!$D$14)","v":0},0,0,0,0,0,0,0,0,0,0,0,0,0,0]
["Assurances, … (Charges)",{"$f":"'Charges Ext'!K4*(1+Pilotage!$D$14)","v":43074.6},3589.5499999999997,3589.5499999999997,3589.5499999999997,3589.5499999999997,3589.5499999999997,3589.5499999999997,3589.5499999999997,3589.5499999999997,3589.5499999999997,3589.5499999999997,3589.5499999999997,3589.5499999999997,{"$f":"SUM(C108:N108)","v":43074.600000000006},0]
["Licences (Licences)",{"$f":"Licences!K4*(1+Pilotage!$D$14)","v":229.58262000000002},19.131885,19.131885,19.131885,19.131885,19.131885,19.131885,19.131885,19.131885,19.131885,19.131885,19.131885,19.131885,229.58262000000005,0]
["Taxes et Impôts (Impots, Hors IS)",{"$f":"Impôts!H4","v":1500},125,125,125,125,125,125,125,125,125,125,125,125,1500,0]
["Crédit bail",{"$f":"'Credit-bail'!C8*'Credit-bail'!C12","v":0},0,0,0,0,0,0,0,0,0,0,0,0,0,0]
["Remboursement prêts d'honneur",{"$f":"'Prêts honneur'!C8*'Prêts honneur'!C12","v":0},0,0,0,0,0,0,0,0,0,0,0,0,{"$f":"SUM(C112:N112)","v":0}]
["Remboursement PCE",{"$f":"PCE!C8*PCE!C12","v":0},0,0,0,0,0,0,0,0,0,0,0,0,{"$f":"SUM(C113:N113)","v":0}]
[]
["Sans répartition"]
["Courbe",1,1,0,0,0,0,0,0,0,0,0,0,0,{"$f":"SUM(C116:N116)","v":1},{"$f":"100%-O116","v":0}]
["Garanties sur loyer",{"$f":"'Plan financier initial'!E22","v":0},{"$f":"$B117*C$116","v":0},{"$f":"$B117*D$116","v":0},0,0,0,0,0,0,0,0,0,0,0,{"$f":"B117-O117","v":0}]
["Garanties professionnelles",{"$f":"'Plan financier initial'!E23","v":0},{"$f":"$B118*C$116","v":0},0,0,0,0,0,0,0,0,0,0,0,0,0]
["Apports en capital",{"$f":"Pilotage!H10+Pilotage!H9","v":10000},10000,0,0,0,0,0,0,0,0,0,0,0,10000,0]
["Apports en comptes courants d'associés",{"$f":"Pilotage!H17","v":0},0,0,0,0,0,0,0,0,0,0,0,0,0,0]
["Subventions",{"$f":"SUM(Pilotage!H19:H20)+Pilotage!H17","v":0},0,0,0,0,0,0,0,0,0,0,0,0,0,0]
["Emprunts à moyen et long terme \n(PCE + prêt bancaire + ….)",{"$f":"Pilotage!D29","v":0},0,0,0,0,0,0,0,0,0,0,0,0,0,0]
["Prêts d'honneur",{"$f":"Pilotage!H21","v":0},0,0,0,0,0,0,0,0,0,0,0,0,{"$f":"SUM(C123:N123)","v":0},{"$f":"B123-O123","v":0}]
["PCE",{"$f":"Pilotage!H22","v":0},0,0,0,0,0,0,0,0,0,0,0,0,{"$f":"SUM(C124:N124)","v":0},{"$f":"B124-O124","v":0}]
["Autres encaissements",{"$f":"Pilotage!H18","v":0},0,0,0,0,0,0,0,0,0,0,0,0,0,0]
["Frais de création(Installation)",{"$f":"Installation!K4*(1+Pilotage!$D$14)","v":11485.200000000003},11485.200000000003,0,0,0,0,0,0,0,0,0,0,0,{"$f":"SUM(C126:N126)","v":11485.200000000003},{"$f":"B126-O126","v":0}]
[]
["Emprunt"]
["Courbe",1,{"$f":"IF(MOD(C90,12/Pilotage!$D$24)=0,1/Pilotage!$D$24,0)","v":0},{"$f":"IF(MOD(D90,12/Pilotage!$D$24)=0,1/Pilotage!$D$24,0)","v":0},{"$f":"IF(MOD(E90,12/Pilotage!$D$24)=0,1/Pilotage!$D$24,0)","v":0.25},{"$f":"IF(MOD(F90,12/Pilotage!$D$24)=0,1/Pilotage!$D$24,0)","v":0},{"$f":"IF(MOD(G90,12/Pilotage!$D$24)=0,1/Pilotage!$D$24,0)","v":0},{"$f":"IF(MOD(H90,12/Pilotage!$D$24)=0,1/Pilotage!$D$24,0)","v":0.25},{"$f":"IF(MOD(I90,12/Pilotage!$D$24)=0,1/Pilotage!$D$24,0)","v":0},{"$f":"IF(MOD(J90,12/Pilotage!$D$24)=0,1/Pilotage!$D$24,0)","v":0},{"$f":"IF(MOD(K90,12/Pilotage!$D$24)=0,1/Pilotage!$D$24,0)","v":0.25},{"$f":"IF(MOD(L90,12/Pilotage!$D$24)=0,1/Pilotage!$D$24,0)","v":0},{"$f":"IF(MOD(M90,12/Pilotage!$D$24)=0,1/Pilotage!$D$24,0)","v":0},{"$f":"IF(MOD(N90,12/Pilotage!$D$24)=0,1/Pilotage!$D$24,0)","v":0.25},{"$f":"SUM(C129:N129)","v":1},{"$f":"100%-O129","v":0}]
["Remboursements d'emprunts",{"$f":"Pilotage!D27*Pilotage!D24","v":0},{"$f":"$B130*C129","v":0},{"$f":"$B130*D129","v":0},0,0,0,0,0,0,0,0,0,0,{"$f":"SUM(C130:N130)","v":0},{"$f":"B130-O130","v":0}]

{"sheet":"Plan de trésorerie 6 ans","index":25,"n_rows":125,"n_cols":11,"rows_kept":125,"cut":false,"hidden":false,"merged":[[84,1,84,7],[56,2,56,7],[76,1,76,7],[79,1,80,7],[81,1,81,7],[82,1,82,7],[83,0,83,7],[7,2,8,7],[19,2,19,7],[20,2,21,7],[1,1,1,7],[4,2,5,2],[4,3,5,3],[4,4,5,4],[4,5,5,5],[4,6,5,6],[4,7,5,7]]}
[]
[null,"Plan de trésorerie sur 6 ans"]
[]
[]
[null,null,{"$f":"Pilotage!M22","v":"Année 0"},{"$f":"Pilotage!N22","v":"Année 1"},{"$f":"Pilotage!O22","v":"Année 2"},{"$f":"Pilotage!P22","v":"Année 3"},{"$f":"Pilotage!Q22","v":"Année 4"},{"$f":"Pilotage!R22","v":"Année 5"}]
[null,null,null,null,null,null,null,null,"Total"]
[null," 1. SOLDE EN DEBUT D'ANNEE",0,{"$f":"C74","v":-100621.73009600004},{"$f":"D74","v":-103292.97212400002},{"$f":"E74","v":32413.331334711052},{"$f":"F74","v":420177.39344880427},{"$f":"G74","v":803812.00372687308}]
[null," 2. ENCAISSEMENTS"]
[null," 2 A. D'exploitation"]
[null,"Ventes",{"$f":"C105","v":124800},249600,499200,998400,998400,1098240,{"$f":"SUM(C10:H10)","v":3968640}]
[null,"Prestations et locations",{"$f":"C106","v":0},0,0,0,0,0,{"$f":"SUM(C11:H11)","v":0}]
[null," 2 B. Hors exploitation"]
[null,"  Apports en capital",{"$f":"C94","v":5000},0,5000,0,0,0,{"$f":"SUM(C13:H13)","v":10000}]
[null,"  Apports en comptes courants d'associés",{"$f":"C95","v":0},0,0,0,0,0]
[null,"  Subventions",0,0,0,0,0,0,{"$f":"SUM(C15:H15)","v":0}]
[null,"Emprunts à moyen et long terme \n(PCE + prêt bancaire + ….)",{"$f":"C97+C98+C99","v":0},0,0,0,0,0,{"$f":"SUM(C16:H16)","v":0}]
[null,"Autres encaissements",{"$f":"C100","v":0},0,0,0,0,0,{"$f":"SUM(C17:H17)","v":0}]
[null,"TVA à encaisser",{"$f":"SUM(C23:C45,C58,C62,C63,C64)*Pilotage!$D14","v":10957.876524000001},{"$f":"SUM(D23:D45,D58,D62,D63,D64)*Pilotage!$D14","v":8919.2841239999998},{"$f":"SUM(E23:E45,E58,E62,E63,E64)*Pilotage!$D14","v":9185.4851519999993},{"$f":"SUM(F23:F45,F58,F62,F63,F64)*Pilotage!$D14","v":9459.672210839999},{"$f":"SUM(G23:G45,G58,G62,G63,G64)*Pilotage!$D14","v":9742.0848814451983},{"$f":"SUM(H23:H45,H58,H62,H63,H64)*Pilotage!$D14","v":10032.969932168555}]
[null,"A. TOTAL ENCAISSEMENTS",{"$f":"SUM(C9:C18)","v":140757.87652399999},258519.284124,513385.48515199998,1007859.67221084,1008142.0848814452,1108272.9699321685,{"$f":"SUM(C19:H19)","v":4036937.3728244537}]
[]
[null," 3. DECAISSEMENTS"]
[null," 3 A. D'exploitation"]
[null,"  Achats de marchandises TTC",{"$f":"C104","v":0},0,0,0,0,0,{"$f":"SUM(C23:H23)","v":0}]
[null,"Charges externes",{"$f":"C110","v":43074.6},44366.837999999996,45697.843139999997,47068.778434199994,48480.841787225989,49935.267040842773,278624.16840226873]
[null,"  Sous-traitance",null,null,null,null,null,null,0]
[null,"  Eau",null,null,null,null,null,null,0]
[null,"  Electricité",null,null,null,null,null,null,0]
[null,"  Fournitures d'entretien",null,null,null,null,null,null,0]
[null,"  Fournitures administratives",null,null,null,null,null,null,0]
[null,"  Fournitures diverses",null,null,null,null,null,null,0]
[null,"  Loyers de crédit bail",null,null,null,null,null,null,0]
[null,"  Loyers et charges locatives",null,null,null,null,null,null,0]
[null,"  Assurances",null,null,null,null,null,null,0]
[null,"  Entretien (locaux, matériel)",null,null,null,null,null,null,0]
[null,"  Documentation",null,null,null,null,null,null,0]
[null,"  Honoraires",null,null,null,null,null,null,0]
[null,"  Frais d'acte et de contentieux",null,null,null,null,null,null,0]
[null,"  Affranchissements",null,null,null,null,null,null,0]
[null,"  Téléphone",null,null,null,null,null,null,0]
[null,"  Internet",null,null,null,null,null,null,0]
[null,"  Publicité",null,null,null,null,null,null,0]
[null,"  Frais de transport",null,null,null,null,null,null,0]
[null,"  Emballages et conditionnement",null,null,null,null,null,null,0]
[null,"  Voyages et déplacements",null,null,null,null,null,null,0]
[null,"Loyers",{"$f":"C108","v":0},0,0,0,0,0,{"$f":"SUM(C45:H45)","v":0}]
[null,"  Divers"]
[null,"TVA -  Impôts et taxes (hors IS ou IR)",{"$f":"SUM(C10:C11)*Pilotage!$D14","v":24960},{"$f":"SUM(D10:D11)*Pilotage!$D14","v":49920},{"$f":"SUM(E10:E11)*Pilotage!$D14","v":99840},{"$f":"SUM(F10:F11)*Pilotage!$D14","v":199680},{"$f":"SUM(G10:G11)*Pilotage!$D14","v":199680},{"$f":"SUM(H10:H11)*Pilotage!$D14","v":219648},{"$f":"SUM(C47:H47)","v":793728}]
[null,"Impôts sur les bénéfices",{"$f":"C112","v":0},314.97481200000328,60681.851291688887,196870.44726169881,194702.84436187695,220148.7121610686,{"$f":"SUM(C48:H48)","v":672718.82988833322}]
[null,"Salaires",{"$f":"C107","v":161630.22400000002},166359.13071999999,171229.90464160001,176246.80178084801,181414.20583427342,186736.63200930168,{"$f":"SUM(C49:H49)","v":1043616.8989860233}]
[null,"  Rémunération du dirigeant"]
[null,"  Cotisations sociales du dirigeant"]
[null,"  Salaires brut des salariés"]
[null,"  Cotisations sociales salariés"]
[null,"  Commissions versées"]
[null,"  Agios et intérêts payés"]
[null,"  Autres"]
[null," 3 B. Hors exploitation",null,null,null,null,null,null,{"$f":"SUM(I23:I56)*(1+Pilotage!D$14)","v":3346425.4767319504}]
[null,"Matériel",{"$f":"C101","v":0},0,0,0,0,0,{"$f":"SUM(C58:H58)","v":0}]
[null,"  Achat terrain construction"]
[null,"  Brevet"]
[null,"  Création site internet"]
[null,"  Logiciels",{"$f":"C109","v":229.58262000000002},229.58262000000002,229.58262000000002,229.58262000000002,229.58262000000002,229.58262000000002,{"$f":"SUM(C62:H62)","v":1377.4957200000003}]
[null,"  Travaux / aménagements",{"$f":"C102","v":0},0,0,0,0,0,{"$f":"SUM(C63:H63)","v":0}]
[null,"  Frais de création",{"$f":"C103","v":11485.200000000003},0,0,0,0,0,{"$f":"SUM(C64:H64)","v":11485.200000000003}]
[null,"  Véhicule"]
[null,"  Mobilier"]
[null,"  Matériel informatique"]
[null,"  Garanties sur loyers",{"$f":"C113","v":0},{"$f":"D113","v":0},0,0,0,0]
[null,"  Garanties professionnelles",{"$f":"C114","v":0},0,0,0,0,0]
[null,"  Remboursement d'emprunts ",{"$f":"C115+C116+C117","v":0},0,0,0,0,0]
[null,"Crédit-bail",{"$f":"C118","v":0},0,0,0,0,0]
[null,"B. TOTAL DECAISSEMENTS",{"$f":"SUM(C22:C71)","v":241379.60662000004},261190.52615199998,377679.18169328891,620095.61009674682,624507.47460337635,676698.19383121305,{"$f":"SUM(C72:H72)","v":2801550.5929966252}]
[null," 4. SOLDE DE L'ANNEE (A - B)",{"$f":"C19-C72","v":-100621.73009600004},-2671.2420279999787,135706.30345871107,387764.06211409322,383634.61027806881,431574.77610095544,1235386.7798278285]
[null," 5. SOLDE DE FIN D'ANNEE (1 + 4)",{"$f":"C7+C73","v":-100621.73009600004},-103292.97212400002,32413.331334711052,420177.39344880427,803812.00372687308,1235386.7798278285]
[null,"Avant IS",{"$f":"C74+C48","v":-100621.73009600004},-102977.99731200002,93095.182626399939,617047.84071050305,998514.84808875003,1455535.4919888971]
[null,"Construction du plan de trésorerie"]
[null,"Certaines sommes proviennent directement de l'activité de l'entreprise : ce sont les encaissements d'exploitation\nD'autres ont pour objet de financer l'exploitation mais ne sont pas directement issues de l'activité : elles sont \"hors exploitation\""]
[]
[null,"2 A. : indiquer le chiffre d'affaires TTC réellement encaissé (ou prévisionnel si vous êtes en phase de construction de votre projet)"]
[null,"Attention !\n• Le montant du chiffre d'affaires encaissé est inscrit TTC. L'éventuel montant de la TVA à reverser est comptabilisé dans les impôts et taxes. \n• Le montant des ventes est celui réellement encaissé : ne pas oublier les délais de paiement possibles entre la facturation et l'encaissement du paiement"]
[]
[]
[null,"2 B. : Reprendre les chiffres du plan de financement initial pour le 1er mois. En cas de versement ultérieur, porter la somme sur le mois où elle est (ou sera) réellement reçue."]
[]
[null,"3 A. : Attention ! \n• Le montant des achats est comptabilisé TTC : le solde de TVA sera porté au poste\" impôts et taxes\" s'il est décaissé par l'entreprise\n• De même, ne pas oublier de tenir compte des délais de paiement et porter le décaissement le mois où celui-ci a (ou aura) réellement eu lieu  "]
[]
[]
[]
[]
[]
[]
[null,null,1,2,3,4,5,6,"Total","Différence","TVA"]
[null,"Evolutions"]
["Apports en capital",null,{"$f":"Pilotage!H10/2+(Pilotage!H9)/2","v":5000},0,{"$f":"Pilotage!H10/2+(Pilotage!H9)/2","v":5000},0,0,0,{"$f":"SUM(C94:H94)","v":10000},{"$f":"I94","v":10000}]
["Apports en comptes courants d'associés",null,{"$f":"Pilotage!H17","v":0},0,0,0,0,0,0,0]
["Subventions",null,{"$f":"SUM(Pilotage!H19:H20)","v":0},0,0,0,0,0,0,0]
["Emprunt",null,{"$f":"Pilotage!D29","v":0},0,0,0,0,0,0,0]
["Prêts d'honneur",null,{"$f":"Pilotage!H21","v":0},0,0,0,0,0,0,0]
["PCE",null,{"$f":"Pilotage!H22","v":0},0,0,0,0,0,0,0]
["Autres encaissements",null,{"$f":"Pilotage!H18","v":0},0,0,0,0,0,0,0]
["Matériel (Matériel)",null,{"$f":"Matériel!K4*(1+Pilotage!$D$14)","v":0},{"$f":"$C101*Pilotage!N24","v":0},{"$f":"$C101*Pilotage!O24","v":0},{"$f":"$C101*Pilotage!P24","v":0},{"$f":"$C101*Pilotage!Q24","v":0},{"$f":"$C101*Pilotage!R24","v":0},{"$f":"SUM(C101:H101)","v":0},{"$f":"0-I101","v":0}]
["Travaux",null,{"$f":"Travaux!K4*(1+Pilotage!$D$14)","v":0},{"$f":"$C102*Pilotage!N24","v":0},{"$f":"$C102*Pilotage!O24","v":0},{"$f":"$C102*Pilotage!P24","v":0},{"$f":"$C102*Pilotage!Q24","v":0},{"$f":"$C102*Pilotage!R24","v":0},0,{"$f":"0-I102","v":0}]
["Installation",null,{"$f":"Installation!K4*(1+Pilotage!$D$14)","v":11485.200000000003},0,0,0,0,0,11485.200000000003,{"$f":"0-I103","v":-11485.200000000003}]
["Marchandises(Stock)",null,{"$f":"'Comptes de résultat 6 ans'!G8*(1+Pilotage!$D$14)","v":0},{"$f":"'Comptes de résultat 6 ans'!H8*(1+Pilotage!$D$14)","v":0},{"$f":"'Comptes de résultat 6 ans'!I8*(1+Pilotage!$D$14)","v":0},{"$f":"'Comptes de résultat 6 ans'!J8*(1+Pilotage!$D$14)","v":0},{"$f":"'Comptes de résultat 6 ans'!K8*(1+Pilotage!$D$14)","v":0},{"$f":"'Comptes de résultat 6 ans'!L8*(1+Pilotage!$D$14)","v":0},0,0]
["Ventes (Ventes Stock + Ventes Produits)",null,{"$f":"SUM('Comptes de résultat 6 ans'!R7:R8)*(1+Pilotage!$D$14)","v":124800},{"$f":"SUM('Comptes de résultat 6 ans'!S7:S8)*(1+Pilotage!$D$14)","v":249600},{"$f":"SUM('Comptes de résultat 6 ans'!T7:T8)*(1+Pilotage!$D$14)","v":499200},{"$f":"SUM('Comptes de résultat 6 ans'!U7:U8)*(1+Pilotage!$D$14)","v":998400},{"$f":"SUM('Comptes de résultat 6 ans'!V7:V8)*(1+Pilotage!$D$14)","v":998400},{"$f":"SUM('Comptes de résultat 6 ans'!W7:W8)*(1+Pilotage!$D$14)","v":1098240},3968640,{"$f":"I105","v":3968640}]
["Autres revenus (Prestations + Locations)",null,{"$f":"SUM('Comptes de résultat 6 ans'!R12:R13)*(1+Pilotage!$D$14)","v":0},{"$f":"SUM('Comptes de résultat 6 ans'!S12:S13)*(1+Pilotage!$D$14)","v":0},{"$f":"SUM('Comptes de résultat 6 ans'!T12:T13)*(1+Pilotage!$D$14)","v":0},{"$f":"SUM('Comptes de résultat 6 ans'!U12:U13)*(1+Pilotage!$D$14)","v":0},{"$f":"SUM('Comptes de résultat 6 ans'!V12:V13)*(1+Pilotage!$D$14)","v":0},{"$f":"SUM('Comptes de résultat 6 ans'!W12:W13)*(1+Pilotage!$D$14)","v":0},0,{"$f":"I106","v":0}]
["Salaires (Salaires)",null,{"$f":"'Comptes de résultat 6 ans'!G50","v":161630.22400000002},{"$f":"'Comptes de résultat 6 ans'!H50","v":166359.13071999999},{"$f":"'Comptes de résultat 6 ans'!I50","v":171229.90464160001},{"$f":"'Comptes de résultat 6 ans'!J50","v":176246.80178084801},{"$f":"'Comptes de résultat 6 ans'!K50","v":181414.20583427342},{"$f":"'Comptes de résultat 6 ans'!L50","v":186736.63200930168},1043616.8989860233,-1043616.8989860233]
["Loyers",null,{"$f":"'Comptes de résultat 6 ans'!G27*(1+Pilotage!$D$14)","v":0},{"$f":"'Comptes de résultat 6 ans'!H27*(1+Pilotage!$D$14)","v":0},{"$f":"'Comptes de résultat 6 ans'!I27*(1+Pilotage!$D$14)","v":0},{"$f":"'Comptes de résultat 6 ans'!J27*(1+Pilotage!$D$14)","v":0},{"$f":"'Comptes de résultat 6 ans'!K27*(1+Pilotage!$D$14)","v":0},{"$f":"'Comptes de résultat 6 ans'!L27*(1+Pilotage!$D$14)","v":0},0,0]
["Licences (Licences)",null,{"$f":"'Comptes de résultat 6 ans'!G56*(1+Pilotage!$D$14)","v":229.58262000000002},{"$f":"'Comptes de résultat 6 ans'!H56*(1+Pilotage!$D$14)","v":229.58262000000002},{"$f":"'Comptes de résultat 6 ans'!I56*(1+Pilotage!$D$14)","v":229.58262000000002},{"$f":"'Comptes de résultat 6 ans'!J56*(1+Pilotage!$D$14)","v":229.58262000000002},{"$f":"'Comptes de résultat 6 ans'!K56*(1+Pilotage!$D$14)","v":229.58262000000002},{"$f":"'Comptes de résultat 6 ans'!L56*(1+Pilotage!$D$14)","v":229.58262000000002},1377.4957200000003,{"$f":"0-I109","v":-1377.4957200000003}]
["Assurances, … (Charges)",null,{"$f":"'Comptes de résultat 6 ans'!G34*(1+Pilotage!$D$14)","v":43074.6},{"$f":"'Comptes de résultat 6 ans'!H34*(1+Pilotage!$D$14)","v":44366.837999999996},{"$f":"'Comptes de résultat 6 ans'!I34*(1+Pilotage!$D$14)","v":45697.843139999997},{"$f":"'Comptes de résultat 6 ans'!J34*(1+Pilotage!$D$14)","v":47068.778434199994},{"$f":"'Comptes de résultat 6 ans'!K34*(1+Pilotage!$D$14)","v":48480.841787225989},{"$f":"'Comptes de résultat 6 ans'!L34*(1+Pilotage!$D$14)","v":49935.267040842773},278624.16840226873,{"$f":"0-I110","v":-278624.16840226873}]
["Taxes"]
["Impôts sur les bénéfices",null,{"$f":"'Comptes de résultat 6 ans'!G87","v":0},{"$f":"'Comptes de résultat 6 ans'!H87","v":314.97481200000328},{"$f":"'Comptes de résultat 6 ans'!I87","v":60681.851291688887},{"$f":"'Comptes de résultat 6 ans'!J87","v":196870.44726169881},{"$f":"'Comptes de résultat 6 ans'!K87","v":194702.84436187695},{"$f":"'Comptes de résultat 6 ans'!L87","v":220148.7121610686},672718.82988833322,-672718.82988833322]
["Garanties sur loyer",null,{"$f":"'Plan financier initial'!E22","v":0},0,0,0,0,0,0,0]
["Garanties professionnelles",null,{"$f":"'Plan financier initial'!E23","v":0},{"$f":"$C114*D113","v":0},{"$f":"$C114*E113","v":0},{"$f":"$C114*F113","v":0},{"$f":"$C114*G113","v":0},{"$f":"$C114*H113","v":0},0,0]
["Remboursements d'emprunts",null,{"$f":"Emprunt!$C12*Emprunt!$C8","v":0},{"$f":"Emprunt!$C12*Emprunt!$C8","v":0},{"$f":"Emprunt!$C12*Emprunt!$C8","v":0},{"$f":"Emprunt!$C12*Emprunt!$C8","v":0},{"$f":"Emprunt!$C12*Emprunt!$C8","v":0},{"$f":"Emprunt!$C12*Emprunt!$C8","v":0},0,0]
["Remboursements prêts d'honneur",null,{"$f":"'Prêts honneur'!$C8*'Prêts honneur'!$C12","v":0},{"$f":"'Prêts honneur'!$C8*'Prêts honneur'!$C12","v":0},{"$f":"'Prêts honneur'!$C8*'Prêts honneur'!$C12","v":0},{"$f":"'Prêts honneur'!$C8*'Prêts honneur'!$C12","v":0},{"$f":"'Prêts honneur'!$C8*'Prêts honneur'!$C12","v":0},0,{"$f":"SUM(C116:H116)","v":0},{"$f":"0-I116","v":0}]
["Remboursements PCE",null,{"$f":"PCE!$C8*PCE!$C12","v":0},{"$f":"PCE!$C8*PCE!$C12","v":0},{"$f":"PCE!$C8*PCE!$C12","v":0},{"$f":"PCE!$C8*PCE!$C12","v":0},{"$f":"PCE!$C8*PCE!$C12","v":0},0,{"$f":"SUM(C117:H117)","v":0},{"$f":"0-I117","v":0}]
["Crédit-bail",null,{"$f":"'Credit-bail'!$C8*'Credit-bail'!$C12","v":0},{"$f":"'Credit-bail'!$C8*'Credit-bail'!$C12","v":0},{"$f":"'Credit-bail'!$C8*'Credit-bail'!$C12","v":0},{"$f":"'Credit-bail'!$C8*'Credit-bail'!$C12","v":0},{"$f":"'Credit-bail'!$C8*'Credit-bail'!$C12","v":0},0,{"$f":"SUM(C118:H118)","v":0},{"$f":"0-I118","v":0}]
[null,null,{"$f":"SUM(C94:C100,C105:C106)-SUM(C101:C104,C107:C118)","v":-86619.606620000035},38329.473848000023,226360.81830671115,577984.38990325318,573572.52539662365,641189.80616878695,null,{"$f":"SUM(J94:J118)","v":1970817.4070033748}]
[]
["TVA à décaisser",null,{"$f":"(SUM(C101:C104,C108:C110))*Pilotage!$D14","v":10957.876524000001},{"$f":"(SUM(D101:D104,D108:D109))*Pilotage!$D14","v":45.91652400000001},{"$f":"(SUM(E101:E104,E108:E109))*Pilotage!$D14","v":45.91652400000001},{"$f":"(SUM(F101:F104,F108:F109))*Pilotage!$D14","v":45.91652400000001},{"$f":"(SUM(G101:G104,G108:G109))*Pilotage!$D14","v":45.91652400000001},{"$f":"(SUM(H101:H104,H108:H109))*Pilotage!$D14","v":45.91652400000001}]
["TVA à encaisser",null,{"$f":"SUM(C105:C106)*Pilotage!$D14","v":24960},{"$f":"SUM(D105:D106)*Pilotage!$D14","v":49920},{"$f":"SUM(E105:E106)*Pilotage!$D14","v":99840},{"$f":"SUM(F105:F106)*Pilotage!$D14","v":199680},{"$f":"SUM(G105:G106)*Pilotage!$D14","v":199680},{"$f":"SUM(H105:H106)*Pilotage!$D14","v":219648}]
["Total TVA",null,{"$f":"C121-C122","v":-14002.123475999999},-49874.083476,-99794.083476,-199634.083476,-199634.083476,-219602.083476]
[]
["Total après impôts",null,{"$f":"C119+C123","v":-100621.73009600003},-11544.609627999977,126566.73483071115,378350.30642725318,373938.44192062365,421587.72269278695]

{"sheet":"DAT","index":26,"n_rows":13,"n_cols":15,"rows_kept":13,"cut":false,"hidden":true,"merged":[[1,1,1,14]]}
[]
[null,"Calculs des amortissements"]
[]
[null,null,"Année 0","Année 1","Année 2","Année 3","Année 4","Année 5","Année 6","Année 7","Année 8","Année 9","Année 10","Année 11","Année 12"]
[null,null,"Total DAT ","Total DAT ","Total DAT ","Total DAT ","Total DAT ","Total DAT ","Total DAT ","Total DAT ","Total DAT ","Total DAT ","Total DAT ","Total DAT ","Total DAT "]
[null,null,{"$f":"SUM(C8:C12)","v":0},{"$f":"SUM(D8:D12)","v":2.3533499999999998},2.3533499999999998,0,0,0,0,0,0,0,0,0,0]
[]
[null,"Matériel",{"$f":"Matériel!AG4","v":0},{"$f":"Matériel!AH4","v":0},{"$f":"Matériel!AI4","v":0},{"$f":"Matériel!AJ4","v":0},{"$f":"Matériel!AK4","v":0},{"$f":"Matériel!AL4","v":0},{"$f":"Matériel!AM4","v":0},{"$f":"Matériel!AN4","v":0},{"$f":"Matériel!AO4","v":0},{"$f":"Matériel!AP4","v":0},{"$f":"Matériel!AQ4","v":0},{"$f":"Matériel!AR4","v":0},{"$f":"Matériel!AS4","v":0}]
[null,"Travaux",{"$f":"Travaux!AG4","v":0},{"$f":"Travaux!AH4","v":0},{"$f":"Travaux!AI4","v":0},{"$f":"Travaux!AJ4","v":0},{"$f":"Travaux!AK4","v":0},{"$f":"Travaux!AL4","v":0},{"$f":"Travaux!AM4","v":0},{"$f":"Travaux!AN4","v":0},{"$f":"Travaux!AO4","v":0},{"$f":"Travaux!AP4","v":0},{"$f":"Travaux!AQ4","v":0},{"$f":"Travaux!AR4","v":0},{"$f":"Travaux!AS4","v":0}]
[null,"Charges",{"$f":"Loyers!AG4","v":0},{"$f":"Loyers!AH4","v":0},{"$f":"Loyers!AI4","v":0},{"$f":"Loyers!AJ4","v":0},{"$f":"Loyers!AK4","v":0},{"$f":"Loyers!AL4","v":0},{"$f":"Loyers!AM4","v":0},{"$f":"Loyers!AN4","v":0},{"$f":"Loyers!AO4","v":0},{"$f":"Loyers!AP4","v":0},{"$f":"Loyers!AQ4","v":0},{"$f":"Loyers!AR4","v":0},{"$f":"Loyers!AS4","v":0}]
[null,"Licences",{"$f":"Licences!AG4","v":0},{"$f":"Licences!AH4","v":2.3533499999999998},{"$f":"Licences!AI4","v":2.3533499999999998},{"$f":"Licences!AJ4","v":0},{"$f":"Licences!AK4","v":0},{"$f":"Licences!AL4","v":0},{"$f":"Licences!AM4","v":0},{"$f":"Licences!AN4","v":0},{"$f":"Licences!AO4","v":0},{"$f":"Licences!AP4","v":0},{"$f":"Licences!AQ4","v":0},{"$f":"Licences!AR4","v":0},{"$f":"Licences!AS4","v":0}]
[null,"Consommables",{"$f":"Consommables!AG4","v":0},{"$f":"Consommables!AH4","v":0},{"$f":"Consommables!AI4","v":0},{"$f":"Consommables!AJ4","v":0},{"$f":"Consommables!AK4","v":0},{"$f":"Consommables!AL4","v":0},{"$f":"Consommables!AM4","v":0},{"$f":"Consommables!AN4","v":0},{"$f":"Consommables!AO4","v":0},{"$f":"Consommables!AP4","v":0},{"$f":"Consommables!AQ4","v":0},{"$f":"Consommables!AR4","v":0},{"$f":"Consommables!AS4","v":0}]
[null,"Installation",{"$f":"Installation!AG4","v":0},{"$f":"Installation!AH4","v":688.33333333333337},{"$f":"Installation!AI4","v":688.33333333333337},{"$f":"Installation!AJ4","v":688.33333333333337},{"$f":"Installation!AK4","v":688.33333333333337},{"$f":"Installation!AL4","v":688.33333333333337},{"$f":"Installation!AM4","v":688.33333333333337},{"$f":"Installation!AN4","v":688.33333333333337},{"$f":"Installation!AO4","v":688.33333333333337},{"$f":"Installation!AP4","v":688.33333333333337},{"$f":"Installation!AQ4","v":688.33333333333337},{"$f":"Installation!AR4","v":0},{"$f":"Installation!AS4","v":0}]

{"sheet":"Budget","index":27,"n_rows":28,"n_cols":12,"rows_kept":28,"cut":false,"hidden":true,"merged":[[4,1,4,5],[4,7,4,11],[2,1,2,11],[1,1,1,11]]}
[]
[null,"SquaregoLab - FabLab Perpignan"]
[null,"Budget prévisionnel 2015"]
[]
[null,"Dépenses",null,null,null,null,null,"Recettes"]
[null,"Rubriques",null,null,"Mode de calcul","Montant en € HT",null,"Sources",null,"Montant en € HT","Acquis (a) Encours (e)","%"]
[null,"Dépense d'investissement",null,null,null,null,null,"Ressources locales"]
[null,null,null,"Achat de matérial","Achat des machines du FabLab",{"$f":"'Plan de financement à 6 ans'!E20+Matériel!#REF!","v":{"$error":"#REF!"}},null,null,"Participation des bénéficiaires"]
[null,null,null,"Travaux d'installation",null,{"$f":"'Plan de financement à 6 ans'!E18","v":0},null,null,"Association locale"]
[null,null,null,null,null,null,null,null,"Collectivité locale"]
[null,"Dépenses de fonctionnement"]
[null,null,"Achats",null,null,null,null,"Ressources propres"]
[null,null,null,"Achat de marchandise","Matières premières",{"$f":"'Comptes de résultat 6 ans'!G8","v":0},null,null,"Fonds propres",{"$f":"'Plan de financement à 6 ans'!$N$8","v":10000},"e",{"$f":"J13/J$28","v":7.6550013377114839E-2}]
[null,null,null,"Achat de fourniture et consommable","pour les machines",{"$f":"'Comptes de résultat 6 ans'!G12","v":0},null,null,"Dons",{"$f":"'Plan de financement à 6 ans'!$N$18","v":0},"e",{"$f":"J14/J$28","v":0}]
[null,null,"Services extérieurs",null,null,null,null,null,"Recettes activité",{"$f":"('Comptes de résultat 6 ans'!$R$6)*0.66-321.02","v":68318.98},"e",{"$f":"J15/J$28","v":0.52298188329108408}]
[null,null,null,"Locations immobilières et mobilières,","Loyers local",{"$f":"'Comptes de résultat 6 ans'!G27","v":0}]
[null,null,"Autres services extérieurs",null,null,{"$f":"'Comptes de résultat 6 ans'!$G$33","v":35895.5},null,"Subventions publiques"]
[null,null,null,"Frais extérieurs, publicité, déplacements, …",null,null,null,null,"Commune"]
[null,null,null,"Honoraires et rémunérations d’intermédiaires,",null,null,null,null,"Conseil général"]
[null,null,null,"Publicité, relations publiques,",null,null,null,null,"Région"]
[null,null,null,"Transports de biens et transports du personnel,",null,null,null,null,"Ministère"]
[null,null,null,"Déplacements, missions, réceptions,"]
[null,null,null,"Frais postaux et de télécommunications,",null,null,null,"Ressources privées"]
[null,null,null,"Services bancaires.",null,null,null,null,"Fondation orange",52314.57,"e",{"$f":"J24/J$28","v":0.40046810333180111}]
[null,null,null,null,null,null,null,null,"Mécénat",{"$f":"'Plan de financement à 6 ans'!N20","v":0},"e",{"$f":"J25/J$28","v":0}]
[null,null,"Charges de personnel",null,"0,5 ETP FabManager",{"$f":"'Comptes de résultat 6 ans'!$G$50","v":161630.22400000002},null,null,"Associations"]
[]
[null,"Total des dépenses",null,null,null,{"$f":"SUM(F8:F27)","v":{"$error":"#REF!"}},null,"Total des recettes",null,{"$f":"SUM(J7:J26)","v":130633.54999999999},null,{"$f":"SUM(L7:L26)","v":1}]

{"sheet":"Activités","index":28,"n_rows":23,"n_cols":24,"rows_kept":23,"cut":false,"hidden":true,"merged":[[4,5,4,8],[4,9,4,12],[4,13,4,16],[4,17,4,20],[2,2,2,22],[4,21,4,22]]}
[]
[]
[null,null,"Planning de charge"]
[]
[null,null,null,null,null,"FabLab",null,null,null,"FabCafé",null,null,null,"Boutiques",null,null,null,"Coworking",null,null,null,"Contrôles"]
[null,null,"h/an","€/h","etp","ratio","h","€/etp","€",{"$f":"F6","v":"ratio"},{"$f":"G6","v":"h"},"€/etp",{"$f":"I6","v":"€"},{"$f":"J6","v":"ratio"},{"$f":"K6","v":"h"},"€/etp",{"$f":"M6","v":"€"},{"$f":"N6","v":"ratio"},{"$f":"O6","v":"h"},"€/etp",{"$f":"Q6","v":"€"}]
[null,{"$f":"Pilotage!C59","v":"Associé"},{"$f":"Salaires!G8-Salaires!H8","v":1645},{"$f":"Salaires!V8","v":26.646990881458969},{"$f":"Pilotage!F59","v":2},0.96,{"$f":"F7*$C7","v":1579.2},{"$f":"G7*$D7","v":42080.928000000007},{"$f":"H7*$E7","v":84161.856000000014},0.02,{"$f":"J7*$C7","v":32.9},{"$f":"K7*$D7","v":876.68600000000004},{"$f":"L7*$E7","v":1753.3720000000001},0.02,{"$f":"N7*$C7","v":32.9},{"$f":"O7*$D7","v":876.68600000000004},{"$f":"P7*$E7","v":1753.3720000000001},0,{"$f":"R7*$C7","v":0},{"$f":"S7*$D7","v":0},{"$f":"T7*$E7","v":0},{"$f":"G7+K7+O7+S7","v":1645.0000000000002},{"$f":"V7/C7","v":1.0000000000000002},{"$f":"U7+Q7+M7+I7","v":87668.60000000002}]
[null,{"$f":"Pilotage!C60","v":"Community manager"},{"$f":"Salaires!G9-Salaires!H9","v":1645},{"$f":"Salaires!V9","v":23.522300303951369},{"$f":"Pilotage!F60","v":1},0.8,1316,30955.3472,30955.3472,0.05,82.25,1934.7092,1934.7092,0.1,164.5,3869.4184,3869.4184,0.05,82.25,1934.7092,1934.7092,1645,1,{"$f":"U8+Q8+M8+I8","v":38694.184000000001}]
[null,{"$f":"Pilotage!C61","v":"Developpeur"},{"$f":"Salaires!G10-Salaires!H10","v":1645},{"$f":"Salaires!V10","v":21.439173252279637},{"$f":"Pilotage!F61","v":1},0.53,871.85,18691.743200000001,18691.743200000001,0.23,378.35,8111.5112000000017,8111.5112000000017,0.23,378.35,8111.5112000000017,8111.5112000000017,0.01,16.45,352.67440000000005,352.67440000000005,1645.0000000000002,1.0000000000000002,35267.440000000002]
[null,{"$f":"Pilotage!C62","v":"administrateur"},{"$f":"Salaires!G11-Salaires!H11","v":1645},{"$f":"Salaires!V11","v":21.439173252279637},{"$f":"Pilotage!F62","v":0},0.75,1233.75,26450.58,0,0.05,82.25,1763.3720000000001,0,0.15,246.75,5290.1160000000009,0,0.05,82.25,1763.3720000000001,0,1645,1,0]
[null,{"$f":"Pilotage!C63","v":"Salarié 5"},{"$f":"Salaires!G12-Salaires!H12","v":1645},{"$f":"Salaires!V12","v":19.356046200607903},{"$f":"Pilotage!F63","v":0},0.8,1316,25472.556799999998,0,0.05,82.25,1592.0347999999999,0,0.1,164.5,3184.0695999999998,0,0.05,82.25,1592.0347999999999,0,1645,1,0]
[null,{"$f":"Pilotage!C64","v":"Salarié 6"},{"$f":"Salaires!G13-Salaires!H13","v":1645},{"$f":"Salaires!V13","v":15.662488344072946},{"$f":"Pilotage!F64","v":0},0.25,411.25,6441.1983314999989,0,0.25,411.25,6441.1983314999989,0,0.25,411.25,6441.1983314999989,0,0.25,411.25,6441.1983314999989,0,1645,1,0]
[null,{"$f":"Pilotage!C65","v":"Stagiaire"},{"$f":"Salaires!G14-Salaires!H14","v":1645},{"$f":"Salaires!V14","v":4.1181276595744682},{"$f":"Pilotage!F65","v":0},0.75,{"$f":"F13*$C13","v":1233.75},{"$f":"G13*$D13","v":5080.74},{"$f":"H13*$E13","v":0},0.05,82.25,{"$f":"K13*$D13","v":338.71600000000001},0,0.15,246.75,{"$f":"O13*$D13","v":1016.148},0,0.05,{"$f":"R13*$C13","v":82.25},{"$f":"S13*$D13","v":338.71600000000001},0,1645,1,0]
[]
[null,"Total salaire sur activité",{"$f":"Salaires!T16","v":161630.22400000002},null,null,null,null,null,{"$f":"SUM(I7:I13)","v":133808.94640000002},null,null,null,{"$f":"SUM(M7:M13)","v":11799.592400000001},null,null,null,{"$f":"SUM(Q7:Q13)","v":13734.301600000003},null,null,null,{"$f":"SUM(U7:U13)","v":2287.3836000000001},{"$f":"SUM(U15,Q15,M15,I15)","v":161630.22400000002},{"$f":"C15-V15","v":0}]
[null,"Clé par masse salariale",1,null,null,null,null,null,{"$f":"I15/$V15","v":0.82787082198190853},null,null,null,{"$f":"M15/$V15","v":7.3003625856510601E-2},null,null,null,{"$f":"Q15/$V15","v":8.4973597512306862E-2},null,null,null,{"$f":"U15/$V15","v":1.4151954649274011E-2},{"$f":"SUM(U16,Q16,M16,I16)","v":1}]
[null,"CA par activité",null,null,null,null,null,null,{"$f":"Synthèse!U7","v":{"$error":"#REF!"}},null,null,null,{"$f":"Synthèse!V7","v":{"$error":"#REF!"}},null,null,null,{"$f":"Synthèse!W7","v":{"$error":"#REF!"}},null,null,null,{"$f":"Synthèse!X7","v":{"$error":"#REF!"}}]
[null,"Clé par CA",null,null,null,null,null,null,{"$f":"I17/SUM(M17,I17,Q17,U17)","v":{"$error":"#REF!"}},null,null,null,{"$f":"M17/SUM(I17,M17,Q17,U17)","v":{"$error":"#REF!"}},null,null,null,{"$f":"Q17/SUM(I17,M17,Q17,U17)","v":{"$error":"#REF!"}},null,null,null,{"$f":"U17/SUM(I17,M17,Q17,U17)","v":{"$error":"#REF!"}},{"$f":"SUM(U18,Q18,M18,I18)","v":{"$error":"#REF!"}}]
[null,"Clé utilisée",null,null,null,null,null,null,{"$f":"AVERAGE(I18,I16)","v":{"$error":"#REF!"}},null,null,null,{"$f":"AVERAGE(M18,M16)","v":{"$error":"#REF!"}},null,null,null,{"$f":"AVERAGE(Q18,Q16)","v":{"$error":"#REF!"}},null,null,null,{"$f":"AVERAGE(U18,U16)","v":{"$error":"#REF!"}},{"$f":"SUM(U19,Q19,M19,I19)","v":{"$error":"#REF!"}}]
[]
[null,"Résultats",null,null,null,null,null,null,{"$f":"F5","v":"FabLab"},null,null,null,{"$f":"J5","v":"FabCafé"},null,null,null,{"$f":"N5","v":"Boutiques"},null,null,null,{"$f":"R5","v":"Coworking"}]
[null,"Charges par activité",null,null,null,null,null,null,{"$f":"Synthèse!G82","v":{"$error":"#REF!"}},null,null,null,{"$f":"Synthèse!H82","v":{"$error":"#REF!"}},null,null,null,{"$f":"Synthèse!I82","v":{"$error":"#REF!"}},null,null,null,{"$f":"Synthèse!J82","v":{"$error":"#REF!"}}]
[null,"Résultat par activité",null,null,null,null,null,null,{"$f":"Synthèse!U82-Synthèse!G82","v":{"$error":"#REF!"}},null,null,null,{"$f":"Synthèse!V82-Synthèse!H82","v":{"$error":"#REF!"}},null,null,null,{"$f":"Synthèse!W82-Synthèse!I82","v":{"$error":"#REF!"}},null,null,null,{"$f":"Synthèse!X82-Synthèse!J82","v":{"$error":"#REF!"}}]

{"sheet":"Synthèse","index":29,"n_rows":88,"n_cols":28,"rows_kept":88,"cut":false,"hidden":true,"merged":[[1,1,1,27],[3,1,3,7],[3,15,3,20],[81,1,81,5],[69,3,69,5],[70,3,70,5],[71,3,71,5],[56,3,56,5]]}
[]
[null,"Comptes de résultat par activité"]
[]
[null,"Charges",null,null,null,null,null,null,null,null,null,null,null,null,null,"Produits"]
[null,null,null,null,null,null,"FabLab","FabCafé","Boutiques","Coworking",null,"Total","Compte de résultat","Contrôles"," ",null,null,null,null,null,{"$f":"G5","v":"FabLab"},{"$f":"H5","v":"FabCafé"},{"$f":"I5","v":"Boutiques"},{"$f":"J5","v":"Coworking"},null,{"$f":"L5","v":"Total"},{"$f":"M5","v":"Compte de résultat"},{"$f":"N5","v":"Contrôles"}]
[null,null,null,null,null,null,{"$f":"IF(FabLab!G7<>\"\",FabLab!G7,\"\")","v":"Année 0"},{"$f":"IF(FabCafé!G7<>\"\",FabCafé!G7,\"\")","v":"Année 0"},{"$f":"IF(Boutiques!G7<>\"\",Boutiques!G7,\"\")","v":"Année 0"},{"$f":"IF(Coworking!G7<>\"\",Coworking!G7,\"\")","v":"Année 0"},null,null,{"$f":"'Comptes de résultat A0'!G5","v":"Année 0"},null,null,null,null,null,null,null,{"$f":"IF(FabLab!M7<>\"\",FabLab!M7,\"\")","v":"Année 0"},{"$f":"IF(FabCafé!M7<>\"\",FabCafé!M7,\"\")","v":"Année 0"},{"$f":"IF(Boutiques!M7<>\"\",Boutiques!M7,\"\")","v":"Année 0"},{"$f":"IF(Coworking!M7<>\"\",Coworking!M7,\"\")","v":"Année 0"},null,null,{"$f":"'Comptes de résultat A0'!M5","v":"Année 0"}]
[null,null,"Achats",null,null,null,{"$f":"IF(FabLab!G8<>\"\",FabLab!G8,\"\")","v":{"$error":"#REF!"}},{"$f":"IF(FabCafé!G8<>\"\",FabCafé!G8,\"\")","v":{"$error":"#REF!"}},{"$f":"IF(Boutiques!G8<>\"\",Boutiques!G8,\"\")","v":{"$error":"#REF!"}},{"$f":"IF(Coworking!G8<>\"\",Coworking!G8,\"\")","v":{"$error":"#REF!"}},null,{"$f":"IF(SUM(G7:J7)<>0,SUM(G7:J7),\"\")","v":{"$error":"#REF!"}},{"$f":"'Comptes de résultat A0'!G6","v":0},{"$f":"M7-L7","v":{"$error":"#REF!"}},null,null,"Ventes.",null,null,null,{"$f":"IF(FabLab!M8<>\"\",FabLab!M8,\"\")","v":{"$error":"#REF!"}},{"$f":"IF(FabCafé!M8<>\"\",FabCafé!M8,\"\")","v":{"$error":"#REF!"}},{"$f":"IF(Boutiques!M8<>\"\",Boutiques!M8,\"\")","v":{"$error":"#REF!"}},{"$f":"IF(Coworking!M8<>\"\",Coworking!M8,\"\")","v":{"$error":"#REF!"}},null,{"$f":"IF(SUM(U7:X7)<>0,SUM(U7:X7),0)","v":{"$error":"#REF!"}},{"$f":"'Comptes de résultat A0'!M6","v":{"$error":"#REF!"}},{"$f":"AA7-Z7","v":{"$error":"#REF!"}}]
[null,null,null,"Achats stockés :",null,null,{"$f":"IF(FabLab!G9<>\"\",FabLab!G9,\"\")","v":{"$error":"#REF!"}},{"$f":"IF(FabCafé!G9<>\"\",FabCafé!G9,\"\")","v":{"$error":"#REF!"}},{"$f":"IF(Boutiques!G9<>\"\",Boutiques!G9,\"\")","v":{"$error":"#REF!"}},{"$f":"IF(Coworking!G9<>\"\",Coworking!G9,\"\")","v":{"$error":"#REF!"}},null,{"$f":"SUM(G8:J8)","v":{"$error":"#REF!"}},{"$f":"'Comptes de résultat A0'!G7","v":0},{"$f":"ROUND(M8-L8,2)","v":{"$error":"#REF!"}},null,null,null,"Ventes de produits finis",null,null,{"$f":"IF(FabLab!M9<>\"\",FabLab!M9,\"\")","v":{"$error":"#REF!"}},{"$f":"IF(FabCafé!M9<>\"\",FabCafé!M9,\"\")","v":{"$error":"#REF!"}},{"$f":"IF(Boutiques!M9<>\"\",Boutiques!M9,\"\")","v":{"$error":"#REF!"}},{"$f":"IF(Coworking!M9<>\"\",Coworking!M9,\"\")","v":{"$error":"#REF!"}},null,{"$f":"IF(SUM(U8:X8)<>0,SUM(U8:X8),0)","v":{"$error":"#REF!"}},{"$f":"'Comptes de résultat A0'!M7","v":{"$error":"#REF!"}},{"$f":"AA8-Z8","v":{"$error":"#REF!"}}]
[null,null,null,null,"Achats de marchandises,",null,{"$f":"IF(FabLab!G10<>\"\",FabLab!G10,\"\")","v":{"$error":"#REF!"}},{"$f":"IF(FabCafé!G10<>\"\",FabCafé!G10,\"\")","v":{"$error":"#REF!"}},{"$f":"IF(Boutiques!G10<>\"\",Boutiques!G10,\"\")","v":{"$error":"#REF!"}},{"$f":"IF(Coworking!G10<>\"\",Coworking!G10,\"\")","v":{"$error":"#REF!"}},null,{"$error":"#REF!"},{"$f":"'Comptes de résultat A0'!G8","v":0},{"$f":"ROUND(M9-L9,2)","v":{"$error":"#REF!"}},null,null,null,"Ventes de matières premières",null,null,{"$f":"IF(FabLab!M10<>\"\",FabLab!M10,\"\")","v":0},{"$f":"IF(FabCafé!M10<>\"\",FabCafé!M10,\"\")","v":{"$error":"#REF!"}},{"$f":"IF(Boutiques!M10<>\"\",Boutiques!M10,\"\")","v":{"$error":"#REF!"}},{"$f":"IF(Coworking!M10<>\"\",Coworking!M10,\"\")","v":0},null,{"$f":"IF(SUM(U9:X9)<>0,SUM(U9:X9),0)","v":{"$error":"#REF!"}},{"$f":"'Comptes de résultat A0'!M8","v":104000},{"$f":"AA9-Z9","v":{"$error":"#REF!"}}]
[null,null,null,null,"Achats de matières premières,",null,{"$f":"IF(FabLab!G11<>\"\",FabLab!G11,\"\")","v":""},{"$f":"IF(FabCafé!G11<>\"\",FabCafé!G11,\"\")","v":""},{"$f":"IF(Boutiques!G11<>\"\",Boutiques!G11,\"\")","v":""},{"$f":"IF(Coworking!G11<>\"\",Coworking!G11,\"\")","v":""},null,0,{"$f":"'Comptes de résultat A0'!G9","v":0},0]
[null,null,null,null,"Achats d’emballages,",null,{"$f":"IF(FabLab!G12<>\"\",FabLab!G12,\"\")","v":""},{"$f":"IF(FabCafé!G12<>\"\",FabCafé!G12,\"\")","v":""},{"$f":"IF(Boutiques!G12<>\"\",Boutiques!G12,\"\")","v":""},{"$f":"IF(Coworking!G12<>\"\",Coworking!G12,\"\")","v":""},null,0,{"$f":"'Comptes de résultat A0'!G10","v":0},0]
[null,null,null,null,"Achats de fournitures consommables :",null,{"$f":"IF(FabLab!G13<>\"\",FabLab!G13,\"\")","v":{"$error":"#REF!"}},{"$f":"IF(FabCafé!G13<>\"\",FabCafé!G13,\"\")","v":{"$error":"#REF!"}},{"$f":"IF(Boutiques!G13<>\"\",Boutiques!G13,\"\")","v":{"$error":"#REF!"}},{"$f":"IF(Coworking!G13<>\"\",Coworking!G13,\"\")","v":{"$error":"#REF!"}},null,{"$error":"#REF!"},{"$f":"'Comptes de résultat A0'!G11","v":0},{"$error":"#REF!"},null,null,null,"Prestations de services",null,null,{"$f":"IF(FabLab!M13<>\"\",FabLab!M13,\"\")","v":0},{"$f":"IF(FabCafé!M13<>\"\",FabCafé!M13,\"\")","v":0},{"$f":"IF(Boutiques!M13<>\"\",Boutiques!M13,\"\")","v":0},{"$f":"IF(Coworking!M13<>\"\",Coworking!M13,\"\")","v":0},null,{"$f":"IF(SUM(U12:X12)<>0,SUM(U12:X12),0)","v":0},{"$f":"'Comptes de résultat A0'!M11","v":0},{"$f":"AA12-Z12","v":0}]
[null,null,null,null,"Achats d’études, équipements, travaux.",null,{"$f":"IF(FabLab!G14<>\"\",FabLab!G14,\"\")","v":0},{"$f":"IF(FabCafé!G14<>\"\",FabCafé!G14,\"\")","v":0},{"$f":"IF(Boutiques!G14<>\"\",Boutiques!G14,\"\")","v":0},{"$f":"IF(Coworking!G14<>\"\",Coworking!G14,\"\")","v":0},null,0,{"$f":"'Comptes de résultat A0'!G12","v":0},0,null,null,null,"Produits et activités annexes",null,null,{"$f":"IF(FabLab!M14<>\"\",FabLab!M14,\"\")","v":0},{"$f":"IF(FabCafé!M14<>\"\",FabCafé!M14,\"\")","v":0},{"$f":"IF(Boutiques!M14<>\"\",Boutiques!M14,\"\")","v":0},{"$f":"IF(Coworking!M14<>\"\",Coworking!M14,\"\")","v":0},null,{"$f":"IF(SUM(U13:X13)<>0,SUM(U13:X13),0)","v":0},{"$f":"'Comptes de résultat A0'!M12","v":0},{"$f":"AA13-Z13","v":0}]
[null,null,null,"Achats non stockés :",null,null,{"$f":"IF(FabLab!G15<>\"\",FabLab!G15,\"\")","v":0},{"$f":"IF(FabCafé!G15<>\"\",FabCafé!G15,\"\")","v":0},{"$f":"IF(Boutiques!G15<>\"\",Boutiques!G15,\"\")","v":0},{"$f":"IF(Coworking!G15<>\"\",Coworking!G15,\"\")","v":0},null,0,{"$f":"'Comptes de résultat A0'!G13","v":0},0,null,null,null,null,"Locations",null,{"$f":"IF(FabLab!M15<>\"\",FabLab!M15,\"\")","v":0},{"$f":"IF(FabCafé!M15<>\"\",FabCafé!M15,\"\")","v":0},{"$f":"IF(Boutiques!M15<>\"\",Boutiques!M15,\"\")","v":0},{"$f":"IF(Coworking!M15<>\"\",Coworking!M15,\"\")","v":0},null,{"$f":"IF(SUM(U14:X14)<>0,SUM(U14:X14),0)","v":0},{"$f":"'Comptes de résultat A0'!M13","v":0},{"$f":"AA14-Z14","v":0}]
[null,null,null,null,"Eau,",null,{"$f":"IF(FabLab!G16<>\"\",FabLab!G16,\"\")","v":""},{"$f":"IF(FabCafé!G16<>\"\",FabCafé!G16,\"\")","v":""},{"$f":"IF(Boutiques!G16<>\"\",Boutiques!G16,\"\")","v":""},{"$f":"IF(Coworking!G16<>\"\",Coworking!G16,\"\")","v":""},null,0,{"$f":"'Comptes de résultat A0'!G14","v":0},0]
[null,null,null,null,"Energie,",null,{"$f":"IF(FabLab!G17<>\"\",FabLab!G17,\"\")","v":""},{"$f":"IF(FabCafé!G17<>\"\",FabCafé!G17,\"\")","v":""},{"$f":"IF(Boutiques!G17<>\"\",Boutiques!G17,\"\")","v":""},{"$f":"IF(Coworking!G17<>\"\",Coworking!G17,\"\")","v":""},null,0,{"$f":"'Comptes de résultat A0'!G15","v":0},0]
[null,null,null,null,"Carburant,",null,{"$f":"IF(FabLab!G18<>\"\",FabLab!G18,\"\")","v":""},{"$f":"IF(FabCafé!G18<>\"\",FabCafé!G18,\"\")","v":""},{"$f":"IF(Boutiques!G18<>\"\",Boutiques!G18,\"\")","v":""},{"$f":"IF(Coworking!G18<>\"\",Coworking!G18,\"\")","v":""},null,0,{"$f":"'Comptes de résultat A0'!G16","v":0},0]
[null,null,null,null,"Fournitures administratives,",null,{"$f":"IF(FabLab!G19<>\"\",FabLab!G19,\"\")","v":""},{"$f":"IF(FabCafé!G19<>\"\",FabCafé!G19,\"\")","v":""},{"$f":"IF(Boutiques!G19<>\"\",Boutiques!G19,\"\")","v":""},{"$f":"IF(Coworking!G19<>\"\",Coworking!G19,\"\")","v":""},null,0,{"$f":"'Comptes de résultat A0'!G17","v":0},0]
[null,null,null,null,"Fournitures d’entretien, petit équipement.",null,{"$f":"IF(FabLab!G20<>\"\",FabLab!G20,\"\")","v":""},{"$f":"IF(FabCafé!G20<>\"\",FabCafé!G20,\"\")","v":""},{"$f":"IF(Boutiques!G20<>\"\",Boutiques!G20,\"\")","v":""},{"$f":"IF(Coworking!G20<>\"\",Coworking!G20,\"\")","v":""},null,0,{"$f":"'Comptes de résultat A0'!G18","v":0},0]
[null,null,null,null,null,null,null,null,null,null,null,null,null,0,null,null,null,null,"Abonnements",null,{"$f":"IF(FabLab!M21<>\"\",FabLab!M21,\"\")","v":0},{"$f":"IF(FabCafé!M21<>\"\",FabCafé!M21,\"\")","v":0},{"$f":"IF(Boutiques!M21<>\"\",Boutiques!M21,\"\")","v":0},{"$f":"IF(Coworking!M21<>\"\",Coworking!M21,\"\")","v":0},null,{"$f":"IF(SUM(U20:X20)<>0,SUM(U20:X20),0)","v":0},{"$f":"'Comptes de résultat A0'!M19","v":0},{"$f":"AA20-Z20","v":0}]
[null,null,null,null,null,null,null,null,null,null,null,null,null,0]
[null,null,null,null,null,null,null,null,null,null,null,null,null,0]
[null,null,null,null,null,null,null,null,null,null,null,null,null,0]
[null,null,null,null,null,null,null,null,null,null,null,null,null,0]
[null,null,null,null,null,null,null,null,null,null,null,null,null,0]
[null,null,"Services extérieurs.",null,null,null,{"$f":"IF(FabLab!G27<>\"\",FabLab!G27,\"\")","v":{"$error":"#REF!"}},{"$f":"IF(FabCafé!G27<>\"\",FabCafé!G27,\"\")","v":{"$error":"#REF!"}},{"$f":"IF(Boutiques!G27<>\"\",Boutiques!G27,\"\")","v":{"$error":"#REF!"}},{"$f":"IF(Coworking!G27<>\"\",Coworking!G27,\"\")","v":{"$error":"#REF!"}},null,{"$error":"#REF!"},{"$f":"'Comptes de résultat A0'!G25","v":0},{"$error":"#REF!"}]
[null,null,null,"Locations immobilières et mobilières,",null,null,{"$f":"IF(FabLab!G28<>\"\",FabLab!G28,\"\")","v":{"$error":"#REF!"}},{"$f":"IF(FabCafé!G28<>\"\",FabCafé!G28,\"\")","v":{"$error":"#REF!"}},{"$f":"IF(Boutiques!G28<>\"\",Boutiques!G28,\"\")","v":{"$error":"#REF!"}},{"$f":"IF(Coworking!G28<>\"\",Coworking!G28,\"\")","v":{"$error":"#REF!"}},null,{"$error":"#REF!"},{"$f":"'Comptes de résultat A0'!G26","v":0},{"$error":"#REF!"}]
[null,null,null,"Redevances de crédit bail,",null,null,{"$f":"IF(FabLab!G29<>\"\",FabLab!G29,\"\")","v":0},{"$f":"IF(FabCafé!G29<>\"\",FabCafé!G29,\"\")","v":""},{"$f":"IF(Boutiques!G29<>\"\",Boutiques!G29,\"\")","v":""},{"$f":"IF(Coworking!G29<>\"\",Coworking!G29,\"\")","v":""},null,0,{"$f":"'Comptes de résultat A0'!G27","v":0},0]
[null,null,null,"Charges locatives et de copropriété,",null,null,{"$f":"IF(FabLab!G30<>\"\",FabLab!G30,\"\")","v":""},{"$f":"IF(FabCafé!G30<>\"\",FabCafé!G30,\"\")","v":""},{"$f":"IF(Boutiques!G30<>\"\",Boutiques!G30,\"\")","v":""},{"$f":"IF(Coworking!G30<>\"\",Coworking!G30,\"\")","v":""},null,0,{"$f":"'Comptes de résultat A0'!G28","v":0},0]
[null,null,null,"Entretien et réparations,",null,null,{"$f":"IF(FabLab!G31<>\"\",FabLab!G31,\"\")","v":""},{"$f":"IF(FabCafé!G31<>\"\",FabCafé!G31,\"\")","v":""},{"$f":"IF(Boutiques!G31<>\"\",Boutiques!G31,\"\")","v":""},{"$f":"IF(Coworking!G31<>\"\",Coworking!G31,\"\")","v":""},null,0,{"$f":"'Comptes de résultat A0'!G29","v":0},0]
[null,null,null,"Assurances,",null,null,{"$f":"IF(FabLab!G32<>\"\",FabLab!G32,\"\")","v":""},{"$f":"IF(FabCafé!G32<>\"\",FabCafé!G32,\"\")","v":""},{"$f":"IF(Boutiques!G32<>\"\",Boutiques!G32,\"\")","v":""},{"$f":"IF(Coworking!G32<>\"\",Coworking!G32,\"\")","v":""},null,0,{"$f":"'Comptes de résultat A0'!G30","v":0},0]
[null,null,null,"Etudes et recherches.",null,null,{"$f":"IF(FabLab!G33<>\"\",FabLab!G33,\"\")","v":""},{"$f":"IF(FabCafé!G33<>\"\",FabCafé!G33,\"\")","v":""},{"$f":"IF(Boutiques!G33<>\"\",Boutiques!G33,\"\")","v":""},{"$f":"IF(Coworking!G33<>\"\",Coworking!G33,\"\")","v":""},null,0,{"$f":"'Comptes de résultat A0'!G31","v":0},0]
[null,null,"Autres services extérieurs.",null,null,null,{"$f":"IF(FabLab!G34<>\"\",FabLab!G34,\"\")","v":{"$error":"#REF!"}},{"$f":"IF(FabCafé!G34<>\"\",FabCafé!G34,\"\")","v":{"$error":"#REF!"}},{"$f":"IF(Boutiques!G34<>\"\",Boutiques!G34,\"\")","v":{"$error":"#REF!"}},{"$f":"IF(Coworking!G34<>\"\",Coworking!G34,\"\")","v":{"$error":"#REF!"}},null,{"$error":"#REF!"},{"$f":"'Comptes de résultat A0'!G32","v":35895.5},{"$error":"#REF!"},null,null,"Autres produits de gestion courante.",null,null,null,{"$f":"IF(FabLab!M34<>\"\",FabLab!M34,\"\")","v":0},{"$f":"IF(FabCafé!M34<>\"\",FabCafé!M34,\"\")","v":0},{"$f":"IF(Boutiques!M34<>\"\",Boutiques!M34,\"\")","v":0},{"$f":"IF(Coworking!M34<>\"\",Coworking!M34,\"\")","v":0},null,{"$f":"IF(SUM(U33:X33)<>0,SUM(U33:X33),0)","v":0},{"$f":"'Comptes de résultat A0'!M32","v":0},{"$f":"AA33-Z33","v":0}]
[null,null,null,"Frais extérieurs, publicité, déplacements, …",null,null,{"$f":"IF(FabLab!G35<>\"\",FabLab!G35,\"\")","v":{"$error":"#REF!"}},{"$f":"IF(FabCafé!G35<>\"\",FabCafé!G35,\"\")","v":{"$error":"#REF!"}},{"$f":"IF(Boutiques!G35<>\"\",Boutiques!G35,\"\")","v":{"$error":"#REF!"}},{"$f":"IF(Coworking!G35<>\"\",Coworking!G35,\"\")","v":{"$error":"#REF!"}},null,{"$error":"#REF!"},{"$f":"'Comptes de résultat A0'!G33","v":35895.5},{"$error":"#REF!"},null,null,null,"Redevances reçues pour brevets, licences, marques,",null,null,{"$f":"IF(FabLab!M35<>\"\",FabLab!M35,\"\")","v":""},{"$f":"IF(FabCafé!M35<>\"\",FabCafé!M35,\"\")","v":""},{"$f":"IF(Boutiques!M35<>\"\",Boutiques!M35,\"\")","v":""},{"$f":"IF(Coworking!M35<>\"\",Coworking!M35,\"\")","v":""},null,{"$f":"IF(SUM(U34:X34)<>0,SUM(U34:X34),0)","v":0},{"$f":"'Comptes de résultat A0'!M33","v":0},{"$f":"AA34-Z34","v":0}]
[null,null,null,"Honoraires et rémunérations d’intermédiaires,",null,null,{"$f":"IF(FabLab!G36<>\"\",FabLab!G36,\"\")","v":""},{"$f":"IF(FabCafé!G36<>\"\",FabCafé!G36,\"\")","v":""},{"$f":"IF(Boutiques!G36<>\"\",Boutiques!G36,\"\")","v":""},{"$f":"IF(Coworking!G36<>\"\",Coworking!G36,\"\")","v":""},null,0,{"$f":"'Comptes de résultat A0'!G34","v":0},0,null,null,null,"Revenus des immeubles.",null,null,{"$f":"IF(FabLab!M36<>\"\",FabLab!M36,\"\")","v":""},{"$f":"IF(FabCafé!M36<>\"\",FabCafé!M36,\"\")","v":""},{"$f":"IF(Boutiques!M36<>\"\",Boutiques!M36,\"\")","v":""},{"$f":"IF(Coworking!M36<>\"\",Coworking!M36,\"\")","v":""},null,{"$f":"IF(SUM(U35:X35)<>0,SUM(U35:X35),0)","v":0},{"$f":"'Comptes de résultat A0'!M34","v":0},{"$f":"AA35-Z35","v":0}]
[null,null,null,"Publicité, relations publiques,",null,null,{"$f":"IF(FabLab!G37<>\"\",FabLab!G37,\"\")","v":""},{"$f":"IF(FabCafé!G37<>\"\",FabCafé!G37,\"\")","v":""},{"$f":"IF(Boutiques!G37<>\"\",Boutiques!G37,\"\")","v":""},{"$f":"IF(Coworking!G37<>\"\",Coworking!G37,\"\")","v":""},null,0,{"$f":"'Comptes de résultat A0'!G35","v":0},0]
[null,null,null,"Transports de biens et transports du personnel,",null,null,{"$f":"IF(FabLab!G38<>\"\",FabLab!G38,\"\")","v":""},{"$f":"IF(FabCafé!G38<>\"\",FabCafé!G38,\"\")","v":""},{"$f":"IF(Boutiques!G38<>\"\",Boutiques!G38,\"\")","v":""},{"$f":"IF(Coworking!G38<>\"\",Coworking!G38,\"\")","v":""},null,0,{"$f":"'Comptes de résultat A0'!G36","v":0},0]
[null,null,null,"Déplacements, missions, réceptions,",null,null,{"$f":"IF(FabLab!G39<>\"\",FabLab!G39,\"\")","v":""},{"$f":"IF(FabCafé!G39<>\"\",FabCafé!G39,\"\")","v":""},{"$f":"IF(Boutiques!G39<>\"\",Boutiques!G39,\"\")","v":""},{"$f":"IF(Coworking!G39<>\"\",Coworking!G39,\"\")","v":""},null,0,{"$f":"'Comptes de résultat A0'!G37","v":0},0]
[null,null,null,"Frais postaux et de télécommunications,",null,null,{"$f":"IF(FabLab!G40<>\"\",FabLab!G40,\"\")","v":""},{"$f":"IF(FabCafé!G40<>\"\",FabCafé!G40,\"\")","v":""},{"$f":"IF(Boutiques!G40<>\"\",Boutiques!G40,\"\")","v":""},{"$f":"IF(Coworking!G40<>\"\",Coworking!G40,\"\")","v":""},null,0,{"$f":"'Comptes de résultat A0'!G38","v":0},0]
[null,null,null,"Services bancaires.",null,null,{"$f":"IF(FabLab!G41<>\"\",FabLab!G41,\"\")","v":""},{"$f":"IF(FabCafé!G41<>\"\",FabCafé!G41,\"\")","v":""},{"$f":"IF(Boutiques!G41<>\"\",Boutiques!G41,\"\")","v":""},{"$f":"IF(Coworking!G41<>\"\",Coworking!G41,\"\")","v":""},null,0,{"$f":"'Comptes de résultat A0'!G39","v":0},0]
[null,null,"Impôts, taxes et versements assimilés.",null,null,null,{"$f":"IF(FabLab!G42<>\"\",FabLab!G42,\"\")","v":0},{"$f":"IF(FabCafé!G42<>\"\",FabCafé!G42,\"\")","v":0},{"$f":"IF(Boutiques!G42<>\"\",Boutiques!G42,\"\")","v":0},{"$f":"IF(Coworking!G42<>\"\",Coworking!G42,\"\")","v":0},null,0,{"$f":"'Comptes de résultat A0'!G40","v":0},0]
[null,null,null,"CET,",null,null,{"$f":"IF(FabLab!G43<>\"\",FabLab!G43,\"\")","v":""},{"$f":"IF(FabCafé!G43<>\"\",FabCafé!G43,\"\")","v":""},{"$f":"IF(Boutiques!G43<>\"\",Boutiques!G43,\"\")","v":""},{"$f":"IF(Coworking!G43<>\"\",Coworking!G43,\"\")","v":""},null,0,{"$f":"'Comptes de résultat A0'!G41","v":0},0]
[null,null,null,"Taxe sur les salaires,",null,null,{"$f":"IF(FabLab!G44<>\"\",FabLab!G44,\"\")","v":""},{"$f":"IF(FabCafé!G44<>\"\",FabCafé!G44,\"\")","v":""},{"$f":"IF(Boutiques!G44<>\"\",Boutiques!G44,\"\")","v":""},{"$f":"IF(Coworking!G44<>\"\",Coworking!G44,\"\")","v":""},null,0,{"$f":"'Comptes de résultat A0'!G42","v":0},0]
[null,null,null,"Taxe d’apprentissage,",null,null,{"$f":"IF(FabLab!G45<>\"\",FabLab!G45,\"\")","v":""},{"$f":"IF(FabCafé!G45<>\"\",FabCafé!G45,\"\")","v":""},{"$f":"IF(Boutiques!G45<>\"\",Boutiques!G45,\"\")","v":""},{"$f":"IF(Coworking!G45<>\"\",Coworking!G45,\"\")","v":""},null,0,{"$f":"'Comptes de résultat A0'!G43","v":0},0]
[null,null,null,"Droits d’enregistrement,",null,null,{"$f":"IF(FabLab!G46<>\"\",FabLab!G46,\"\")","v":""},{"$f":"IF(FabCafé!G46<>\"\",FabCafé!G46,\"\")","v":""},{"$f":"IF(Boutiques!G46<>\"\",Boutiques!G46,\"\")","v":""},{"$f":"IF(Coworking!G46<>\"\",Coworking!G46,\"\")","v":""},null,0,{"$f":"'Comptes de résultat A0'!G44","v":0},0]
[null,null,null,"Impôts locaux,",null,null,{"$f":"IF(FabLab!G47<>\"\",FabLab!G47,\"\")","v":""},{"$f":"IF(FabCafé!G47<>\"\",FabCafé!G47,\"\")","v":""},{"$f":"IF(Boutiques!G47<>\"\",Boutiques!G47,\"\")","v":""},{"$f":"IF(Coworking!G47<>\"\",Coworking!G47,\"\")","v":""},null,{"$f":"SUM(G46:J46)","v":0},{"$f":"'Comptes de résultat A0'!G45","v":0},0]
[null,null,null,"Contribution à la formation continue,",null,null,{"$f":"IF(FabLab!G48<>\"\",FabLab!G48,\"\")","v":""},{"$f":"IF(FabCafé!G48<>\"\",FabCafé!G48,\"\")","v":""},{"$f":"IF(Boutiques!G48<>\"\",Boutiques!G48,\"\")","v":""},{"$f":"IF(Coworking!G48<>\"\",Coworking!G48,\"\")","v":""},null,0,{"$f":"'Comptes de résultat A0'!G46","v":0},0]
[null,null,null,"Contribution sociale de solidarité,",null,null,{"$f":"IF(FabLab!G49<>\"\",FabLab!G49,\"\")","v":""},{"$f":"IF(FabCafé!G49<>\"\",FabCafé!G49,\"\")","v":""},{"$f":"IF(Boutiques!G49<>\"\",Boutiques!G49,\"\")","v":""},{"$f":"IF(Coworking!G49<>\"\",Coworking!G49,\"\")","v":""},null,0,{"$f":"'Comptes de résultat A0'!G47","v":0},0]
[null,null,null,"Timbres fiscaux.",null,null,{"$f":"IF(FabLab!G50<>\"\",FabLab!G50,\"\")","v":""},{"$f":"IF(FabCafé!G50<>\"\",FabCafé!G50,\"\")","v":""},{"$f":"IF(Boutiques!G50<>\"\",Boutiques!G50,\"\")","v":""},{"$f":"IF(Coworking!G50<>\"\",Coworking!G50,\"\")","v":""},null,0,{"$f":"'Comptes de résultat A0'!G48","v":0},0]
[null,null,"Charges de personnel.",null,null,null,{"$f":"IF(FabLab!G51<>\"\",FabLab!G51,\"\")","v":133808.94640000002},{"$f":"IF(FabCafé!G51<>\"\",FabCafé!G51,\"\")","v":11799.592400000001},{"$f":"IF(Boutiques!G51<>\"\",Boutiques!G51,\"\")","v":13734.301600000003},{"$f":"IF(Coworking!G51<>\"\",Coworking!G51,\"\")","v":2287.3836000000001},null,161630.22400000002,{"$f":"'Comptes de résultat A0'!G49","v":161630.22400000002},0]
[null,null,null,"Rémunérations, salaires,",null,null,{"$f":"IF(FabLab!G52<>\"\",FabLab!G52,\"\")","v":133808.94640000002},{"$f":"IF(FabCafé!G52<>\"\",FabCafé!G52,\"\")","v":11799.592400000001},{"$f":"IF(Boutiques!G52<>\"\",Boutiques!G52,\"\")","v":13734.301600000003},{"$f":"IF(Coworking!G52<>\"\",Coworking!G52,\"\")","v":2287.3836000000001},null,161630.22400000002,{"$f":"'Comptes de résultat A0'!G50","v":161630.22400000002},0]
[null,null,null,"Congés payés,",null,null,{"$f":"IF(FabLab!G53<>\"\",FabLab!G53,\"\")","v":""},{"$f":"IF(FabCafé!G53<>\"\",FabCafé!G53,\"\")","v":""},{"$f":"IF(Boutiques!G53<>\"\",Boutiques!G53,\"\")","v":""},{"$f":"IF(Coworking!G53<>\"\",Coworking!G53,\"\")","v":""},null,0,{"$f":"'Comptes de résultat A0'!G51","v":0},0]
[null,null,null,"Primes, indemnités,",null,null,{"$f":"IF(FabLab!G54<>\"\",FabLab!G54,\"\")","v":""},{"$f":"IF(FabCafé!G54<>\"\",FabCafé!G54,\"\")","v":""},{"$f":"IF(Boutiques!G54<>\"\",Boutiques!G54,\"\")","v":""},{"$f":"IF(Coworking!G54<>\"\",Coworking!G54,\"\")","v":""},null,0,{"$f":"'Comptes de résultat A0'!G52","v":0},0]
[null,null,null,"Charges sociales,",null,null,{"$f":"IF(FabLab!G55<>\"\",FabLab!G55,\"\")","v":""},{"$f":"IF(FabCafé!G55<>\"\",FabCafé!G55,\"\")","v":""},{"$f":"IF(Boutiques!G55<>\"\",Boutiques!G55,\"\")","v":""},{"$f":"IF(Coworking!G55<>\"\",Coworking!G55,\"\")","v":""},null,0,{"$f":"'Comptes de résultat A0'!G53","v":0},0]
[null,null,null,"Œuvres sociales.",null,null,{"$f":"IF(FabLab!G56<>\"\",FabLab!G56,\"\")","v":""},{"$f":"IF(FabCafé!G56<>\"\",FabCafé!G56,\"\")","v":""},{"$f":"IF(Boutiques!G56<>\"\",Boutiques!G56,\"\")","v":""},{"$f":"IF(Coworking!G56<>\"\",Coworking!G56,\"\")","v":""},null,0,{"$f":"'Comptes de résultat A0'!G54","v":0},0]
[null,null,"Autres charges de gestion courante.",null,null,null,{"$f":"IF(FabLab!G57<>\"\",FabLab!G57,\"\")","v":{"$error":"#REF!"}},{"$f":"IF(FabCafé!G57<>\"\",FabCafé!G57,\"\")","v":{"$error":"#REF!"}},{"$f":"IF(Boutiques!G57<>\"\",Boutiques!G57,\"\")","v":{"$error":"#REF!"}},{"$f":"IF(Coworking!G57<>\"\",Coworking!G57,\"\")","v":{"$error":"#REF!"}},null,{"$error":"#REF!"},{"$f":"'Comptes de résultat A0'!G55","v":191.31885000000003},{"$error":"#REF!"}]
[null,null,null,"Redevances versées pour brevets, licences, marques,",null,null,{"$f":"IF(FabLab!G58<>\"\",FabLab!G58,\"\")","v":{"$error":"#REF!"}},{"$f":"IF(FabCafé!G58<>\"\",FabCafé!G58,\"\")","v":{"$error":"#REF!"}},{"$f":"IF(Boutiques!G58<>\"\",Boutiques!G58,\"\")","v":{"$error":"#REF!"}},{"$f":"IF(Coworking!G58<>\"\",Coworking!G58,\"\")","v":{"$error":"#REF!"}},null,{"$error":"#REF!"},{"$f":"'Comptes de résultat A0'!G56","v":191.31885000000003},{"$error":"#REF!"}]
[null,null,null,"Pertes sur créances irrécouvrables,",null,null,{"$f":"IF(FabLab!G59<>\"\",FabLab!G59,\"\")","v":""},{"$f":"IF(FabCafé!G59<>\"\",FabCafé!G59,\"\")","v":""},{"$f":"IF(Boutiques!G59<>\"\",Boutiques!G59,\"\")","v":""},{"$f":"IF(Coworking!G59<>\"\",Coworking!G59,\"\")","v":""},null,0,{"$f":"'Comptes de résultat A0'!G57","v":0},0]
[null,null,null,"Charges diverses.",null,null,{"$f":"IF(FabLab!G60<>\"\",FabLab!G60,\"\")","v":""},{"$f":"IF(FabCafé!G60<>\"\",FabCafé!G60,\"\")","v":""},{"$f":"IF(Boutiques!G60<>\"\",Boutiques!G60,\"\")","v":""},{"$f":"IF(Coworking!G60<>\"\",Coworking!G60,\"\")","v":""},null,0,{"$f":"'Comptes de résultat A0'!G58","v":0},0]
[null,null,"Charges financières.",null,null,null,{"$f":"IF(FabLab!G61<>\"\",FabLab!G61,\"\")","v":{"$error":"#REF!"}},{"$f":"IF(FabCafé!G61<>\"\",FabCafé!G61,\"\")","v":{"$error":"#REF!"}},{"$f":"IF(Boutiques!G61<>\"\",Boutiques!G61,\"\")","v":{"$error":"#REF!"}},{"$f":"IF(Coworking!G61<>\"\",Coworking!G61,\"\")","v":{"$error":"#REF!"}},null,{"$error":"#REF!"},{"$f":"'Comptes de résultat A0'!G59","v":0},{"$error":"#REF!"},null,null,"Produits financiers.",null,null,null,{"$f":"IF(FabLab!M61<>\"\",FabLab!M61,\"\")","v":0},{"$f":"IF(FabCafé!M61<>\"\",FabCafé!M61,\"\")","v":0},{"$f":"IF(Boutiques!M61<>\"\",Boutiques!M61,\"\")","v":0},{"$f":"IF(Coworking!M61<>\"\",Coworking!M61,\"\")","v":0},null,{"$f":"IF(SUM(U60:X60)<>0,SUM(U60:X60),0)","v":0},{"$f":"'Comptes de résultat A0'!M59","v":0},{"$f":"AA60-Z60","v":0}]
[null,null,null,"Intérêts des emprunts,",null,null,{"$f":"IF(FabLab!G62<>\"\",FabLab!G62,\"\")","v":{"$error":"#REF!"}},{"$f":"IF(FabCafé!G62<>\"\",FabCafé!G62,\"\")","v":{"$error":"#REF!"}},{"$f":"IF(Boutiques!G62<>\"\",Boutiques!G62,\"\")","v":{"$error":"#REF!"}},{"$f":"IF(Coworking!G62<>\"\",Coworking!G62,\"\")","v":{"$error":"#REF!"}},null,{"$error":"#REF!"},{"$f":"'Comptes de résultat A0'!G60","v":0},{"$error":"#REF!"},null,null,null,"Revenus des titres (dividendes, intérêts),",null,null,{"$f":"IF(FabLab!M62<>\"\",FabLab!M62,\"\")","v":""},{"$f":"IF(FabCafé!M62<>\"\",FabCafé!M62,\"\")","v":""},{"$f":"IF(Boutiques!M62<>\"\",Boutiques!M62,\"\")","v":""},{"$f":"IF(Coworking!M62<>\"\",Coworking!M62,\"\")","v":""},null,0,{"$f":"'Comptes de résultat A0'!M60","v":0},0]
[null,null,null,"Escomptes accordés,",null,null,{"$f":"IF(FabLab!G63<>\"\",FabLab!G63,\"\")","v":""},{"$f":"IF(FabCafé!G63<>\"\",FabCafé!G63,\"\")","v":""},{"$f":"IF(Boutiques!G63<>\"\",Boutiques!G63,\"\")","v":""},{"$f":"IF(Coworking!G63<>\"\",Coworking!G63,\"\")","v":""},null,0,{"$f":"'Comptes de résultat A0'!G61","v":0},0,null,null,null,"Intérêts des prêts,",null,null,{"$f":"IF(FabLab!M63<>\"\",FabLab!M63,\"\")","v":""},{"$f":"IF(FabCafé!M63<>\"\",FabCafé!M63,\"\")","v":""},{"$f":"IF(Boutiques!M63<>\"\",Boutiques!M63,\"\")","v":""},{"$f":"IF(Coworking!M63<>\"\",Coworking!M63,\"\")","v":""},null,0,{"$f":"'Comptes de résultat A0'!M61","v":0},0]
[null,null,null,"Intérêts bancaires,",null,null,{"$f":"IF(FabLab!G64<>\"\",FabLab!G64,\"\")","v":""},{"$f":"IF(FabCafé!G64<>\"\",FabCafé!G64,\"\")","v":""},{"$f":"IF(Boutiques!G64<>\"\",Boutiques!G64,\"\")","v":""},{"$f":"IF(Coworking!G64<>\"\",Coworking!G64,\"\")","v":""},null,0,{"$f":"'Comptes de résultat A0'!G62","v":0},0,null,null,null,"Escomptes obtenus,",null,null,{"$f":"IF(FabLab!M64<>\"\",FabLab!M64,\"\")","v":""},{"$f":"IF(FabCafé!M64<>\"\",FabCafé!M64,\"\")","v":""},{"$f":"IF(Boutiques!M64<>\"\",Boutiques!M64,\"\")","v":""},{"$f":"IF(Coworking!M64<>\"\",Coworking!M64,\"\")","v":""},null,0,{"$f":"'Comptes de résultat A0'!M62","v":0},0]
[null,null,null,"Pertes de change.",null,null,{"$f":"IF(FabLab!G65<>\"\",FabLab!G65,\"\")","v":""},{"$f":"IF(FabCafé!G65<>\"\",FabCafé!G65,\"\")","v":""},{"$f":"IF(Boutiques!G65<>\"\",Boutiques!G65,\"\")","v":""},{"$f":"IF(Coworking!G65<>\"\",Coworking!G65,\"\")","v":""},null,0,{"$f":"'Comptes de résultat A0'!G63","v":0},0,null,null,null,"Gains de change.",null,null,{"$f":"IF(FabLab!M65<>\"\",FabLab!M65,\"\")","v":""},{"$f":"IF(FabCafé!M65<>\"\",FabCafé!M65,\"\")","v":""},{"$f":"IF(Boutiques!M65<>\"\",Boutiques!M65,\"\")","v":""},{"$f":"IF(Coworking!M65<>\"\",Coworking!M65,\"\")","v":""},null,0,{"$f":"'Comptes de résultat A0'!M63","v":0},0]
[null,null,"Charges exceptionnelles.",null,null,null,{"$f":"IF(FabLab!G66<>\"\",FabLab!G66,\"\")","v":0},{"$f":"IF(FabCafé!G66<>\"\",FabCafé!G66,\"\")","v":0},{"$f":"IF(Boutiques!G66<>\"\",Boutiques!G66,\"\")","v":0},{"$f":"IF(Coworking!G66<>\"\",Coworking!G66,\"\")","v":0},null,0,{"$f":"'Comptes de résultat A0'!G64","v":0},0,null,null,"Produits exceptionnels.",null,null,null,{"$f":"IF(FabLab!M66<>\"\",FabLab!M66,\"\")","v":0},{"$f":"IF(FabCafé!M66<>\"\",FabCafé!M66,\"\")","v":0},{"$f":"IF(Boutiques!M66<>\"\",Boutiques!M66,\"\")","v":0},{"$f":"IF(Coworking!M66<>\"\",Coworking!M66,\"\")","v":0},null,0,{"$f":"'Comptes de résultat A0'!M64","v":0},0]
[null,null,null,"Valeurs comptables des éléments d’actif cédés,",null,null,{"$f":"IF(FabLab!G67<>\"\",FabLab!G67,\"\")","v":""},{"$f":"IF(FabCafé!G67<>\"\",FabCafé!G67,\"\")","v":""},{"$f":"IF(Boutiques!G67<>\"\",Boutiques!G67,\"\")","v":""},{"$f":"IF(Coworking!G67<>\"\",Coworking!G67,\"\")","v":""},null,0,{"$f":"'Comptes de résultat A0'!G65","v":0},0,null,null,null,"Produits exceptionnels sur opérations de gestion,",null,null,{"$f":"IF(FabLab!M67<>\"\",FabLab!M67,\"\")","v":""},{"$f":"IF(FabCafé!M67<>\"\",FabCafé!M67,\"\")","v":""},{"$f":"IF(Boutiques!M67<>\"\",Boutiques!M67,\"\")","v":""},{"$f":"IF(Coworking!M67<>\"\",Coworking!M67,\"\")","v":""},null,0,{"$f":"'Comptes de résultat A0'!M65","v":0},0]
[null,null,null,"Pénalités, amendes fiscales et pénales,",null,null,{"$f":"IF(FabLab!G68<>\"\",FabLab!G68,\"\")","v":""},{"$f":"IF(FabCafé!G68<>\"\",FabCafé!G68,\"\")","v":""},{"$f":"IF(Boutiques!G68<>\"\",Boutiques!G68,\"\")","v":""},{"$f":"IF(Coworking!G68<>\"\",Coworking!G68,\"\")","v":""},null,0,{"$f":"'Comptes de résultat A0'!G66","v":0},0,null,null,null,"Prix de cession d’éléments d’actif.",null,null,{"$f":"IF(FabLab!M68<>\"\",FabLab!M68,\"\")","v":""},{"$f":"IF(FabCafé!M68<>\"\",FabCafé!M68,\"\")","v":""},{"$f":"IF(Boutiques!M68<>\"\",Boutiques!M68,\"\")","v":""},{"$f":"IF(Coworking!M68<>\"\",Coworking!M68,\"\")","v":""},null,0,{"$f":"'Comptes de résultat A0'!M66","v":0},0]
[null,null,null,"Dons et libéralités.",null,null,{"$f":"IF(FabLab!G69<>\"\",FabLab!G69,\"\")","v":""},{"$f":"IF(FabCafé!G69<>\"\",FabCafé!G69,\"\")","v":""},{"$f":"IF(Boutiques!G69<>\"\",Boutiques!G69,\"\")","v":""},{"$f":"IF(Coworking!G69<>\"\",Coworking!G69,\"\")","v":""},null,0,{"$f":"'Comptes de résultat A0'!G67","v":0},0,null,null,null,null,null,null,{"$f":"IF(FabLab!M69<>\"\",FabLab!M69,\"\")","v":""},{"$f":"IF(FabCafé!M69<>\"\",FabCafé!M69,\"\")","v":""},{"$f":"IF(Boutiques!M69<>\"\",Boutiques!M69,\"\")","v":""},{"$f":"IF(Coworking!M69<>\"\",Coworking!M69,\"\")","v":""}]
[null,null,"Dotations.",null,null,null,{"$f":"IF(FabLab!G70<>\"\",FabLab!G70,\"\")","v":0},{"$f":"IF(FabCafé!G70<>\"\",FabCafé!G70,\"\")","v":0},{"$f":"IF(Boutiques!G70<>\"\",Boutiques!G70,\"\")","v":0},{"$f":"IF(Coworking!G70<>\"\",Coworking!G70,\"\")","v":0},null,0,{"$f":"'Comptes de résultat A0'!G68","v":0},0,null,null,"Reprises.",null,null,null,{"$f":"IF(FabLab!M70<>\"\",FabLab!M70,\"\")","v":0},{"$f":"IF(FabCafé!M70<>\"\",FabCafé!M70,\"\")","v":0},{"$f":"IF(Boutiques!M70<>\"\",Boutiques!M70,\"\")","v":0},{"$f":"IF(Coworking!M70<>\"\",Coworking!M70,\"\")","v":0},null,0,{"$f":"'Comptes de résultat A0'!M68","v":0},0]
[null,null,null,"Dotations aux amortissements, aux dépréciations et aux provisions – Charges d’exploitation,",null,null,{"$f":"IF(FabLab!G71<>\"\",FabLab!G71,\"\")","v":0},{"$f":"IF(FabCafé!G71<>\"\",FabCafé!G71,\"\")","v":0},{"$f":"IF(Boutiques!G71<>\"\",Boutiques!G71,\"\")","v":0},{"$f":"IF(Coworking!G71<>\"\",Coworking!G71,\"\")","v":0},null,0,{"$f":"'Comptes de résultat A0'!G69","v":0},0,null,null,null,"Reprises sur amortissements, dépréciations et provisions – Produits d’exploitation,",null,null,{"$f":"IF(FabLab!M71<>\"\",FabLab!M71,\"\")","v":""},{"$f":"IF(FabCafé!M71<>\"\",FabCafé!M71,\"\")","v":""},{"$f":"IF(Boutiques!M71<>\"\",Boutiques!M71,\"\")","v":""},{"$f":"IF(Coworking!M71<>\"\",Coworking!M71,\"\")","v":""},null,0,{"$f":"'Comptes de résultat A0'!M69","v":0},0]
[null,null,null,"Dotations aux amortissements, aux dépréciations et aux provisions – Charges financières,",null,null,{"$f":"IF(FabLab!G72<>\"\",FabLab!G72,\"\")","v":""},{"$f":"IF(FabCafé!G72<>\"\",FabCafé!G72,\"\")","v":""},{"$f":"IF(Boutiques!G72<>\"\",Boutiques!G72,\"\")","v":""},{"$f":"IF(Coworking!G72<>\"\",Coworking!G72,\"\")","v":""},null,0,{"$f":"'Comptes de résultat A0'!G70","v":0},0,null,null,null,"Reprises sur dépréciations et provisions – Produits financiers,",null,null,{"$f":"IF(FabLab!M72<>\"\",FabLab!M72,\"\")","v":""},{"$f":"IF(FabCafé!M72<>\"\",FabCafé!M72,\"\")","v":""},{"$f":"IF(Boutiques!M72<>\"\",Boutiques!M72,\"\")","v":""},{"$f":"IF(Coworking!M72<>\"\",Coworking!M72,\"\")","v":""},null,0,{"$f":"'Comptes de résultat A0'!M70","v":0},0]
[null,null,null,"Dotations aux amortissements, aux dépréciations et aux provisions – Charges exceptionnelles,",null,null,{"$f":"IF(FabLab!G73<>\"\",FabLab!G73,\"\")","v":""},{"$f":"IF(FabCafé!G73<>\"\",FabCafé!G73,\"\")","v":""},{"$f":"IF(Boutiques!G73<>\"\",Boutiques!G73,\"\")","v":""},{"$f":"IF(Coworking!G73<>\"\",Coworking!G73,\"\")","v":""},null,0,{"$f":"'Comptes de résultat A0'!G71","v":0},0,null,null,null,"Reprises sur dépréciations et provisions – Produits",null,null,{"$f":"IF(FabLab!M73<>\"\",FabLab!M73,\"\")","v":""},{"$f":"IF(FabCafé!M73<>\"\",FabCafé!M73,\"\")","v":""},{"$f":"IF(Boutiques!M73<>\"\",Boutiques!M73,\"\")","v":""},{"$f":"IF(Coworking!M73<>\"\",Coworking!M73,\"\")","v":""},null,0,{"$f":"'Comptes de résultat A0'!M71","v":0},0]
[null,null,{"$f":"IF(FabLab!C74<>\"\",FabLab!C74,\"\")","v":""},{"$f":"IF(FabLab!D74<>\"\",FabLab!D74,\"\")","v":""},null,null,{"$f":"IF(FabLab!G74<>\"\",FabLab!G74,\"\")","v":""},{"$f":"IF(FabCafé!G74<>\"\",FabCafé!G74,\"\")","v":""},{"$f":"IF(Boutiques!G74<>\"\",Boutiques!G74,\"\")","v":""},{"$f":"IF(Coworking!G74<>\"\",Coworking!G74,\"\")","v":""},null,null,{"$f":"'Comptes de résultat A0'!G72","v":0},{"$f":"ROUND(M73-L73,2)","v":0},null,null,"Transferts de charges.",null,null,null,{"$f":"IF(FabLab!M74<>\"\",FabLab!M74,\"\")","v":0},{"$f":"IF(FabCafé!M74<>\"\",FabCafé!M74,\"\")","v":0},{"$f":"IF(Boutiques!M74<>\"\",Boutiques!M74,\"\")","v":0},{"$f":"IF(Coworking!M74<>\"\",Coworking!M74,\"\")","v":0},null,0,{"$f":"'Comptes de résultat A0'!M72","v":0},0]
[null,null,{"$f":"IF(FabLab!C75<>\"\",FabLab!C75,\"\")","v":""},{"$f":"IF(FabLab!D75<>\"\",FabLab!D75,\"\")","v":""},null,null,{"$f":"IF(FabLab!G75<>\"\",FabLab!G75,\"\")","v":""},{"$f":"IF(FabCafé!G75<>\"\",FabCafé!G75,\"\")","v":""},{"$f":"IF(Boutiques!G75<>\"\",Boutiques!G75,\"\")","v":""},{"$f":"IF(Coworking!G75<>\"\",Coworking!G75,\"\")","v":""},null,null,{"$f":"'Comptes de résultat A0'!G73","v":0},0,null,null,null,"Transferts de charges d’exploitation,",null,null,{"$f":"IF(FabLab!M75<>\"\",FabLab!M75,\"\")","v":""},{"$f":"IF(FabCafé!M75<>\"\",FabCafé!M75,\"\")","v":""},{"$f":"IF(Boutiques!M75<>\"\",Boutiques!M75,\"\")","v":""},{"$f":"IF(Coworking!M75<>\"\",Coworking!M75,\"\")","v":""},null,0,{"$f":"'Comptes de résultat A0'!M73","v":0},0]
[null,null,{"$f":"IF(FabLab!C76<>\"\",FabLab!C76,\"\")","v":""},{"$f":"IF(FabLab!D76<>\"\",FabLab!D76,\"\")","v":""},null,null,{"$f":"IF(FabLab!G76<>\"\",FabLab!G76,\"\")","v":""},{"$f":"IF(FabCafé!G76<>\"\",FabCafé!G76,\"\")","v":""},{"$f":"IF(Boutiques!G76<>\"\",Boutiques!G76,\"\")","v":""},{"$f":"IF(Coworking!G76<>\"\",Coworking!G76,\"\")","v":""},null,null,{"$f":"'Comptes de résultat A0'!G74","v":0},0,null,null,null,"Transferts de charges financières,",null,null,{"$f":"IF(FabLab!M76<>\"\",FabLab!M76,\"\")","v":""},{"$f":"IF(FabCafé!M76<>\"\",FabCafé!M76,\"\")","v":""},{"$f":"IF(Boutiques!M76<>\"\",Boutiques!M76,\"\")","v":""},{"$f":"IF(Coworking!M76<>\"\",Coworking!M76,\"\")","v":""},null,0,{"$f":"'Comptes de résultat A0'!M74","v":0},0]
[null,null,{"$f":"IF(FabLab!C77<>\"\",FabLab!C77,\"\")","v":""},{"$f":"IF(FabLab!D77<>\"\",FabLab!D77,\"\")","v":""},null,null,{"$f":"IF(FabLab!G77<>\"\",FabLab!G77,\"\")","v":""},{"$f":"IF(FabCafé!G77<>\"\",FabCafé!G77,\"\")","v":""},{"$f":"IF(Boutiques!G77<>\"\",Boutiques!G77,\"\")","v":""},{"$f":"IF(Coworking!G77<>\"\",Coworking!G77,\"\")","v":""},null,null,{"$f":"'Comptes de résultat A0'!G75","v":0},0,null,null,null,"Transferts de charges exceptionnelles.",null,null,{"$f":"IF(FabLab!M77<>\"\",FabLab!M77,\"\")","v":""},{"$f":"IF(FabCafé!M77<>\"\",FabCafé!M77,\"\")","v":""},{"$f":"IF(Boutiques!M77<>\"\",Boutiques!M77,\"\")","v":""},{"$f":"IF(Coworking!M77<>\"\",Coworking!M77,\"\")","v":""},null,0,{"$f":"'Comptes de résultat A0'!M75","v":0},0]
[null,null,{"$f":"IF(FabLab!C78<>\"\",FabLab!C78,\"\")","v":""},null,null,null,{"$f":"IF(FabLab!G78<>\"\",FabLab!G78,\"\")","v":""},{"$f":"IF(FabCafé!G78<>\"\",FabCafé!G78,\"\")","v":""},{"$f":"IF(Boutiques!G78<>\"\",Boutiques!G78,\"\")","v":""},{"$f":"IF(Coworking!G78<>\"\",Coworking!G78,\"\")","v":""},null,null,{"$f":"'Comptes de résultat A0'!G76","v":0},0,null,null,{"$f":"IF(FabLab!J78<>\"\",FabLab!J78,\"\")","v":""},{"$f":"IF(FabLab!K78<>\"\",FabLab!K78,\"\")","v":""},{"$f":"IF(FabLab!L78<>\"\",FabLab!L78,\"\")","v":""},null,{"$f":"IF(FabLab!M78<>\"\",FabLab!M78,\"\")","v":""},{"$f":"IF(FabCafé!M78<>\"\",FabCafé!M78,\"\")","v":""},{"$f":"IF(Boutiques!M78<>\"\",Boutiques!M78,\"\")","v":""},{"$f":"IF(Coworking!M78<>\"\",Coworking!M78,\"\")","v":""}]
[null,null,"Charges fixes",null,null,null,{"$f":"IF(FabLab!G79<>\"\",FabLab!G79,\"\")","v":{"$error":"#REF!"}},{"$f":"IF(FabCafé!G79<>\"\",FabCafé!G79,\"\")","v":{"$error":"#REF!"}},{"$f":"IF(Boutiques!G79<>\"\",Boutiques!G79,\"\")","v":{"$error":"#REF!"}},{"$f":"IF(Coworking!G79<>\"\",Coworking!G79,\"\")","v":{"$error":"#REF!"}},null,{"$f":"SUM(G78:J78)","v":{"$error":"#REF!"}},{"$f":"'Comptes de résultat A0'!G77","v":161821.54285000003},{"$error":"#REF!"},null,null,{"$f":"IF(FabLab!J79<>\"\",FabLab!J79,\"\")","v":""},{"$f":"IF(FabLab!K79<>\"\",FabLab!K79,\"\")","v":""},{"$f":"IF(FabLab!L79<>\"\",FabLab!L79,\"\")","v":""},null,{"$f":"IF(FabLab!M79<>\"\",FabLab!M79,\"\")","v":""},{"$f":"IF(FabCafé!M79<>\"\",FabCafé!M79,\"\")","v":""},{"$f":"IF(Boutiques!M79<>\"\",Boutiques!M79,\"\")","v":""},{"$f":"IF(Coworking!M79<>\"\",Coworking!M79,\"\")","v":""}]
[null,null,"Charges variables",null,null,null,{"$f":"IF(FabLab!G80<>\"\",FabLab!G80,\"\")","v":{"$error":"#REF!"}},{"$f":"IF(FabCafé!G80<>\"\",FabCafé!G80,\"\")","v":{"$error":"#REF!"}},{"$f":"IF(Boutiques!G80<>\"\",Boutiques!G80,\"\")","v":{"$error":"#REF!"}},{"$f":"IF(Coworking!G80<>\"\",Coworking!G80,\"\")","v":{"$error":"#REF!"}},null,{"$f":"SUM(G79:J79)","v":{"$error":"#REF!"}},{"$f":"'Comptes de résultat A0'!G78","v":35895.5},{"$error":"#REF!"},null,null,{"$f":"IF(FabLab!J80<>\"\",FabLab!J80,\"\")","v":""},{"$f":"IF(FabLab!K80<>\"\",FabLab!K80,\"\")","v":""},{"$f":"IF(FabLab!L80<>\"\",FabLab!L80,\"\")","v":""},null,{"$f":"IF(FabLab!M80<>\"\",FabLab!M80,\"\")","v":""},{"$f":"IF(FabCafé!M80<>\"\",FabCafé!M80,\"\")","v":""},{"$f":"IF(Boutiques!M80<>\"\",Boutiques!M80,\"\")","v":""},{"$f":"IF(Coworking!M80<>\"\",Coworking!M80,\"\")","v":""}]
[null,null,{"$f":"IF(FabLab!C81<>\"\",FabLab!C81,\"\")","v":""},{"$f":"IF(FabLab!D81<>\"\",FabLab!D81,\"\")","v":""},{"$f":"IF(FabLab!E81<>\"\",FabLab!E81,\"\")","v":""},null,{"$f":"IF(FabLab!G81<>\"\",FabLab!G81,\"\")","v":""},{"$f":"IF(FabCafé!G81<>\"\",FabCafé!G81,\"\")","v":""},{"$f":"IF(Boutiques!G81<>\"\",Boutiques!G81,\"\")","v":""},{"$f":"IF(Coworking!G81<>\"\",Coworking!G81,\"\")","v":""},null,null,null,{"$f":"M80-L80","v":0},null,null,{"$f":"IF(FabLab!J81<>\"\",FabLab!J81,\"\")","v":""},{"$f":"IF(FabLab!K81<>\"\",FabLab!K81,\"\")","v":""},{"$f":"IF(FabLab!L81<>\"\",FabLab!L81,\"\")","v":""},null,{"$f":"IF(FabLab!M81<>\"\",FabLab!M81,\"\")","v":""},{"$f":"IF(FabCafé!M81<>\"\",FabCafé!M81,\"\")","v":""},{"$f":"IF(Boutiques!M81<>\"\",Boutiques!M81,\"\")","v":""},{"$f":"IF(Coworking!M81<>\"\",Coworking!M81,\"\")","v":""}]
[null,null,{"$f":"IF(FabLab!C82<>\"\",FabLab!C82,\"\")","v":""},{"$f":"IF(FabLab!D82<>\"\",FabLab!D82,\"\")","v":""},{"$f":"IF(FabLab!E82<>\"\",FabLab!E82,\"\")","v":""},null,{"$f":"FabLab!G82","v":"Année 0"},{"$f":"FabCafé!G82","v":"Année 0"},{"$f":"Boutiques!G82","v":"Année 0"},{"$f":"Coworking!G82","v":"Année 0"},null,{"$f":"J81","v":"Année 0"},{"$f":"'Comptes de résultat A0'!G80","v":"Année 0"},null,null,null,{"$f":"IF(FabLab!J82<>\"\",FabLab!J82,\"\")","v":""},{"$f":"IF(FabLab!K82<>\"\",FabLab!K82,\"\")","v":""},{"$f":"IF(FabLab!L82<>\"\",FabLab!L82,\"\")","v":""},null,{"$f":"IF(FabLab!M82<>\"\",FabLab!M82,\"\")","v":"Année 0"},{"$f":"IF(FabCafé!M82<>\"\",FabCafé!M82,\"\")","v":"Année 0"},{"$f":"IF(Boutiques!M82<>\"\",Boutiques!M82,\"\")","v":"Année 0"},{"$f":"IF(Coworking!M82<>\"\",Coworking!M82,\"\")","v":"Année 0"},null,null,{"$f":"'Comptes de résultat A0'!M80","v":"Année 0"}]
[null,"Total des charges",null,null,null,null,{"$f":"FabLab!G83","v":{"$error":"#REF!"}},{"$f":"FabCafé!G83","v":{"$error":"#REF!"}},{"$f":"Boutiques!G83","v":{"$error":"#REF!"}},{"$f":"Coworking!G83","v":{"$error":"#REF!"}},null,{"$f":"SUM(G82:J82)","v":{"$error":"#REF!"}},{"$f":"'Comptes de résultat A0'!G81","v":197717.04285000003},{"$f":"M82-L82","v":{"$error":"#REF!"}},null,"Total des produits",null,null,null,null,{"$f":"IF(FabLab!M83<>\"\",FabLab!M83,\"\")","v":{"$error":"#REF!"}},{"$f":"IF(FabCafé!M83<>\"\",FabCafé!M83,\"\")","v":{"$error":"#REF!"}},{"$f":"IF(Boutiques!M83<>\"\",Boutiques!M83,\"\")","v":{"$error":"#REF!"}},{"$f":"IF(Coworking!M83<>\"\",Coworking!M83,\"\")","v":{"$error":"#REF!"}},null,{"$f":"IF(SUM(U82:X82)<>0,SUM(U82:X82),0)","v":{"$error":"#REF!"}},{"$f":"'Comptes de résultat A0'!M81","v":{"$error":"#REF!"}}]
[null,null,null,null,null,null,null,null,null,null,null,null,null,null,null,null,{"$f":"IF(FabLab!J84<>\"\",FabLab!J84,\"\")","v":""},{"$f":"IF(FabLab!K84<>\"\",FabLab!K84,\"\")","v":""},{"$f":"IF(FabLab!L84<>\"\",FabLab!L84,\"\")","v":""},null,{"$f":"IF(FabLab!M84<>\"\",FabLab!M84,\"\")","v":""},{"$f":"IF(FabCafé!M84<>\"\",FabCafé!M84,\"\")","v":""},{"$f":"IF(Boutiques!M84<>\"\",Boutiques!M84,\"\")","v":""},{"$f":"IF(Coworking!M84<>\"\",Coworking!M84,\"\")","v":""},null,null,{"$f":"'Comptes de résultat A0'!M82","v":0}]
[null,null,null,null,null,null,null,null,null,null,null,null,null,null,null,null,{"$f":"IF(FabLab!J85<>\"\",FabLab!J85,\"\")","v":""},{"$f":"IF(FabLab!K85<>\"\",FabLab!K85,\"\")","v":""},{"$f":"IF(FabLab!L85<>\"\",FabLab!L85,\"\")","v":""}]
[null,"Bénéfices",null,null,null,null,{"$f":"FabLab!G85","v":{"$error":"#REF!"}},{"$f":"FabCafé!G85","v":{"$error":"#REF!"}},{"$f":"Boutiques!G85","v":{"$error":"#REF!"}},{"$f":"Coworking!G85","v":{"$error":"#REF!"}},null,{"$f":"SUM(G85,H85,I85,J85)","v":{"$error":"#REF!"}},{"$f":"'Comptes de résultat A0'!G83","v":{"$error":"#REF!"}},null,null,null,{"$f":"IF(FabLab!J86<>\"\",FabLab!J86,\"\")","v":""},{"$f":"IF(FabLab!K86<>\"\",FabLab!K86,\"\")","v":""},{"$f":"IF(FabLab!L86<>\"\",FabLab!L86,\"\")","v":""}]
[null,"Pertes",null,null,null,null,{"$f":"FabLab!M85","v":{"$error":"#REF!"}},{"$f":"FabCafé!M85","v":{"$error":"#REF!"}},{"$f":"Boutiques!M85","v":{"$error":"#REF!"}},{"$f":"Coworking!M85","v":{"$error":"#REF!"}},null,{"$f":"SUM(G86,H86,I86,J86)","v":{"$error":"#REF!"}},null,null,null,null,{"$f":"IF(FabLab!J87<>\"\",FabLab!J87,\"\")","v":""},{"$f":"IF(FabLab!K87<>\"\",FabLab!K87,\"\")","v":""},{"$f":"IF(FabLab!L87<>\"\",FabLab!L87,\"\")","v":""}]
[null,null,null,null,null,null,null,null,null,null,null,null,null,null,null,null,{"$f":"IF(FabLab!J88<>\"\",FabLab!J88,\"\")","v":""},{"$f":"IF(FabLab!K88<>\"\",FabLab!K88,\"\")","v":""},{"$f":"IF(FabLab!L88<>\"\",FabLab!L88,\"\")","v":""}]
[null,{"$f":"'SIG A0'!B29","v":"Résultat courant avant impôts"},null,null,null,null,null,null,null,null,{"$f":"K85-K86","v":0},{"$f":"L85-L86","v":{"$error":"#REF!"}},{"$f":"M85-M86","v":{"$error":"#REF!"}},{"$f":"L88-M88","v":{"$error":"#REF!"}},null,null,{"$f":"IF(FabLab!J89<>\"\",FabLab!J89,\"\")","v":""},{"$f":"IF(FabLab!K89<>\"\",FabLab!K89,\"\")","v":""},{"$f":"IF(FabLab!L89<>\"\",FabLab!L89,\"\")","v":""}]

{"sheet":"FabLab","index":30,"n_rows":89,"n_cols":13,"rows_kept":89,"cut":false,"hidden":true,"merged":[[1,1,1,12],[5,1,5,6],[5,8,5,12],[82,1,82,5],[82,8,82,11]]}
[]
[null,"FabLab"]
[]
[null,"Clé de répartition",null,null,null,null,{"$f":"Activités!I19","v":{"$error":"#REF!"}}]
[]
[null,"Charges",null,null,null,null,null,null,"Produits"]
[null,null,null,null,null,null,"Année 0",null,null,null,null,null,{"$f":"G7","v":"Année 0"}]
[null,null,{"$f":"IF(Synthèse!C7<>\"\",Synthèse!C7,\"\")","v":"Achats"},null,{"$f":"IF(Synthèse!E7<>\"\",Synthèse!E7,\"\")","v":""},null,{"$f":"SUM(G9,G15)","v":{"$error":"#REF!"}},null,null,{"$f":"IF(Synthèse!Q7<>\"\",Synthèse!Q7,\"\")","v":"Ventes."},null,null,{"$f":"SUM(M9:M14)","v":{"$error":"#REF!"}}]
[null,null,{"$f":"IF(Synthèse!C8<>\"\",Synthèse!C8,\"\")","v":""},{"$f":"IF(Synthèse!D8<>\"\",Synthèse!D8,\"\")","v":"Achats stockés :"},null,null,{"$f":"SUM(G10:G14)","v":{"$error":"#REF!"}},null,null,{"$f":"IF(Synthèse!Q8<>\"\",Synthèse!Q8,\"\")","v":""},{"$f":"IF(Synthèse!R8<>\"\",Synthèse!R8,\"\")","v":"Ventes de produits finis"},null,{"$f":"'Ventes Produits'!L5","v":{"$error":"#REF!"}}]
[null,null,{"$f":"IF(Synthèse!C9<>\"\",Synthèse!C9,\"\")","v":""},{"$f":"IF(Synthèse!D9<>\"\",Synthèse!D9,\"\")","v":""},{"$f":"IF(Synthèse!E9<>\"\",Synthèse!E9,\"\")","v":"Achats de marchandises,"},null,{"$f":"Stock!X4+FabLab!G4*Stock!W4","v":{"$error":"#REF!"}},null,null,{"$f":"IF(Synthèse!Q9<>\"\",Synthèse!Q9,\"\")","v":""},{"$f":"IF(Synthèse!R9<>\"\",Synthèse!R9,\"\")","v":"Ventes de matières premières"},null,0]
[null,null,{"$f":"IF(Synthèse!C10<>\"\",Synthèse!C10,\"\")","v":""},{"$f":"IF(Synthèse!D10<>\"\",Synthèse!D10,\"\")","v":""},{"$f":"IF(Synthèse!E10<>\"\",Synthèse!E10,\"\")","v":"Achats de matières premières,"},null,null,null,null,{"$f":"IF(Synthèse!Q10<>\"\",Synthèse!Q10,\"\")","v":""}]
[null,null,{"$f":"IF(Synthèse!C11<>\"\",Synthèse!C11,\"\")","v":""},{"$f":"IF(Synthèse!D11<>\"\",Synthèse!D11,\"\")","v":""},{"$f":"IF(Synthèse!E11<>\"\",Synthèse!E11,\"\")","v":"Achats d’emballages,"},null,null,null,null,{"$f":"IF(Synthèse!Q11<>\"\",Synthèse!Q11,\"\")","v":""}]
[null,null,{"$f":"IF(Synthèse!C12<>\"\",Synthèse!C12,\"\")","v":""},{"$f":"IF(Synthèse!D12<>\"\",Synthèse!D12,\"\")","v":""},{"$f":"IF(Synthèse!E12<>\"\",Synthèse!E12,\"\")","v":"Achats de fournitures consommables :"},null,{"$f":"Consommables!X4+Consommables!W4*FabLab!G4","v":{"$error":"#REF!"}},null,null,{"$f":"IF(Synthèse!Q12<>\"\",Synthèse!Q12,\"\")","v":""},{"$f":"IF(Synthèse!R12<>\"\",Synthèse!R12,\"\")","v":"Prestations de services"},null,{"$f":"(Prestations!$M$5-Prestations!M12)*Pilotage!M36","v":0}]
[null,null,{"$f":"IF(Synthèse!C13<>\"\",Synthèse!C13,\"\")","v":""},{"$f":"IF(Synthèse!D13<>\"\",Synthèse!D13,\"\")","v":""},{"$f":"IF(Synthèse!E13<>\"\",Synthèse!E13,\"\")","v":"Achats d’études, équipements, travaux."},null,0,null,null,{"$f":"IF(Synthèse!Q13<>\"\",Synthèse!Q13,\"\")","v":""},{"$f":"IF(Synthèse!R13<>\"\",Synthèse!R13,\"\")","v":"Produits et activités annexes"},null,{"$f":"SUM(M15:M25)","v":0}]
[null,null,{"$f":"IF(Synthèse!C14<>\"\",Synthèse!C14,\"\")","v":""},{"$f":"IF(Synthèse!D14<>\"\",Synthèse!D14,\"\")","v":"Achats non stockés :"},null,null,{"$f":"SUM(G16:G20)","v":0},null,null,{"$f":"IF(Synthèse!Q14<>\"\",Synthèse!Q14,\"\")","v":""},{"$f":"IF(Synthèse!R14<>\"\",Synthèse!R14,\"\")","v":""},{"$f":"IF(Synthèse!S14<>\"\",Synthèse!S14,\"\")","v":"Locations"},{"$f":"Locations!$M$5*Pilotage!M38","v":0}]
[null,null,{"$f":"IF(Synthèse!C15<>\"\",Synthèse!C15,\"\")","v":""},{"$f":"IF(Synthèse!D15<>\"\",Synthèse!D15,\"\")","v":""},{"$f":"IF(Synthèse!E15<>\"\",Synthèse!E15,\"\")","v":"Eau,"},null,null,null,null,{"$f":"IF(Synthèse!Q15<>\"\",Synthèse!Q15,\"\")","v":""},{"$f":"IF(Synthèse!R15<>\"\",Synthèse!R15,\"\")","v":""},{"$f":"IF(Synthèse!S15<>\"\",Synthèse!S15,\"\")","v":""}]
[null,null,{"$f":"IF(Synthèse!C16<>\"\",Synthèse!C16,\"\")","v":""},{"$f":"IF(Synthèse!D16<>\"\",Synthèse!D16,\"\")","v":""},{"$f":"IF(Synthèse!E16<>\"\",Synthèse!E16,\"\")","v":"Energie,"},null,null,null,null,{"$f":"IF(Synthèse!Q16<>\"\",Synthèse!Q16,\"\")","v":""},{"$f":"IF(Synthèse!R16<>\"\",Synthèse!R16,\"\")","v":""},{"$f":"IF(Synthèse!S16<>\"\",Synthèse!S16,\"\")","v":""}]
[null,null,{"$f":"IF(Synthèse!C17<>\"\",Synthèse!C17,\"\")","v":""},{"$f":"IF(Synthèse!D17<>\"\",Synthèse!D17,\"\")","v":""},{"$f":"IF(Synthèse!E17<>\"\",Synthèse!E17,\"\")","v":"Carburant,"},null,null,null,null,{"$f":"IF(Synthèse!Q17<>\"\",Synthèse!Q17,\"\")","v":""},{"$f":"IF(Synthèse!R17<>\"\",Synthèse!R17,\"\")","v":""},{"$f":"IF(Synthèse!S17<>\"\",Synthèse!S17,\"\")","v":""}]
[null,null,{"$f":"IF(Synthèse!C18<>\"\",Synthèse!C18,\"\")","v":""},{"$f":"IF(Synthèse!D18<>\"\",Synthèse!D18,\"\")","v":""},{"$f":"IF(Synthèse!E18<>\"\",Synthèse!E18,\"\")","v":"Fournitures administratives,"},null,null,null,null,{"$f":"IF(Synthèse!Q18<>\"\",Synthèse!Q18,\"\")","v":""},{"$f":"IF(Synthèse!R18<>\"\",Synthèse!R18,\"\")","v":""},{"$f":"IF(Synthèse!S18<>\"\",Synthèse!S18,\"\")","v":""}]
[null,null,{"$f":"IF(Synthèse!C19<>\"\",Synthèse!C19,\"\")","v":""},{"$f":"IF(Synthèse!D19<>\"\",Synthèse!D19,\"\")","v":""},{"$f":"IF(Synthèse!E19<>\"\",Synthèse!E19,\"\")","v":"Fournitures d’entretien, petit équipement."},null,null,null,null,{"$f":"IF(Synthèse!Q19<>\"\",Synthèse!Q19,\"\")","v":""},{"$f":"IF(Synthèse!R19<>\"\",Synthèse!R19,\"\")","v":""},{"$f":"IF(Synthèse!S19<>\"\",Synthèse!S19,\"\")","v":""}]
[null,null,null,null,null,null,null,null,null,null,null,{"$f":"IF(Synthèse!S20<>\"\",Synthèse!S20,\"\")","v":"Abonnements"},{"$f":"Abos!M5*Pilotage!M36","v":0}]
[]
[]
[]
[]
[null,null,null,null,null,null,null,null,null,null,{"$f":"IF(Synthèse!R25<>\"\",Synthèse!R25,\"\")","v":""}]
[null,null,{"$f":"IF(Synthèse!C26<>\"\",Synthèse!C26,\"\")","v":"Services extérieurs."},null,null,null,{"$f":"SUM(G28:G33)","v":{"$error":"#REF!"}}]
[null,null,{"$f":"IF(Synthèse!C27<>\"\",Synthèse!C27,\"\")","v":""},{"$f":"IF(Synthèse!D27<>\"\",Synthèse!D27,\"\")","v":"Locations immobilières et mobilières,"},null,null,{"$f":"Loyers!X4+Loyers!W4*FabLab!G4","v":{"$error":"#REF!"}}]
[null,null,{"$f":"IF(Synthèse!C28<>\"\",Synthèse!C28,\"\")","v":""},{"$f":"IF(Synthèse!D28<>\"\",Synthèse!D28,\"\")","v":"Redevances de crédit bail,"},null,null,{"$f":"'Comptes de résultat A0'!G27","v":0}]
[null,null,{"$f":"IF(Synthèse!C29<>\"\",Synthèse!C29,\"\")","v":""},{"$f":"IF(Synthèse!D29<>\"\",Synthèse!D29,\"\")","v":"Charges locatives et de copropriété,"},null,null,null,null,null,{"$f":"IF(Synthèse!Q29<>\"\",Synthèse!Q29,\"\")","v":""},{"$f":"IF(Synthèse!R29<>\"\",Synthèse!R29,\"\")","v":""},{"$f":"IF(Synthèse!S29<>\"\",Synthèse!S29,\"\")","v":""}]
[null,null,{"$f":"IF(Synthèse!C30<>\"\",Synthèse!C30,\"\")","v":""},{"$f":"IF(Synthèse!D30<>\"\",Synthèse!D30,\"\")","v":"Entretien et réparations,"},null,null,null,null,null,{"$f":"IF(Synthèse!Q30<>\"\",Synthèse!Q30,\"\")","v":""},{"$f":"IF(Synthèse!R30<>\"\",Synthèse!R30,\"\")","v":""},{"$f":"IF(Synthèse!S30<>\"\",Synthèse!S30,\"\")","v":""}]
[null,null,{"$f":"IF(Synthèse!C31<>\"\",Synthèse!C31,\"\")","v":""},{"$f":"IF(Synthèse!D31<>\"\",Synthèse!D31,\"\")","v":"Assurances,"},null,null,null,null,null,{"$f":"IF(Synthèse!Q31<>\"\",Synthèse!Q31,\"\")","v":""},{"$f":"IF(Synthèse!R31<>\"\",Synthèse!R31,\"\")","v":""},{"$f":"IF(Synthèse!S31<>\"\",Synthèse!S31,\"\")","v":""}]
[null,null,{"$f":"IF(Synthèse!C32<>\"\",Synthèse!C32,\"\")","v":""},{"$f":"IF(Synthèse!D32<>\"\",Synthèse!D32,\"\")","v":"Etudes et recherches."},null,null,null,null,null,{"$f":"IF(Synthèse!Q32<>\"\",Synthèse!Q32,\"\")","v":""},{"$f":"IF(Synthèse!R32<>\"\",Synthèse!R32,\"\")","v":""},{"$f":"IF(Synthèse!S32<>\"\",Synthèse!S32,\"\")","v":""}]
[null,null,{"$f":"IF(Synthèse!C33<>\"\",Synthèse!C33,\"\")","v":"Autres services extérieurs."},null,null,null,{"$f":"SUM(G35:G41)","v":{"$error":"#REF!"}},null,null,{"$f":"IF(Synthèse!Q33<>\"\",Synthèse!Q33,\"\")","v":"Autres produits de gestion courante."},null,null,{"$f":"SUM(M35:M36)","v":0}]
[null,null,{"$f":"IF(Synthèse!C34<>\"\",Synthèse!C34,\"\")","v":""},{"$f":"IF(Synthèse!D34<>\"\",Synthèse!D34,\"\")","v":"Frais extérieurs, publicité, déplacements, …"},null,null,{"$f":"'Charges Ext'!W4*G4+'Charges Ext'!X4","v":{"$error":"#REF!"}},null,null,{"$f":"IF(Synthèse!Q34<>\"\",Synthèse!Q34,\"\")","v":""},{"$f":"IF(Synthèse!R34<>\"\",Synthèse!R34,\"\")","v":"Redevances reçues pour brevets, licences, marques,"}]
[null,null,{"$f":"IF(Synthèse!C35<>\"\",Synthèse!C35,\"\")","v":""},{"$f":"IF(Synthèse!D35<>\"\",Synthèse!D35,\"\")","v":"Honoraires et rémunérations d’intermédiaires,"},null,null,null,null,null,{"$f":"IF(Synthèse!Q35<>\"\",Synthèse!Q35,\"\")","v":""},{"$f":"IF(Synthèse!R35<>\"\",Synthèse!R35,\"\")","v":"Revenus des immeubles."}]
[null,null,{"$f":"IF(Synthèse!C36<>\"\",Synthèse!C36,\"\")","v":""},{"$f":"IF(Synthèse!D36<>\"\",Synthèse!D36,\"\")","v":"Publicité, relations publiques,"},null,null,null,null,null,{"$f":"IF(Synthèse!Q36<>\"\",Synthèse!Q36,\"\")","v":""},{"$f":"IF(Synthèse!R36<>\"\",Synthèse!R36,\"\")","v":""},{"$f":"IF(Synthèse!S36<>\"\",Synthèse!S36,\"\")","v":""}]
[null,null,{"$f":"IF(Synthèse!C37<>\"\",Synthèse!C37,\"\")","v":""},{"$f":"IF(Synthèse!D37<>\"\",Synthèse!D37,\"\")","v":"Transports de biens et transports du personnel,"},null,null,null,null,null,{"$f":"IF(Synthèse!Q37<>\"\",Synthèse!Q37,\"\")","v":""},{"$f":"IF(Synthèse!R37<>\"\",Synthèse!R37,\"\")","v":""},{"$f":"IF(Synthèse!S37<>\"\",Synthèse!S37,\"\")","v":""}]
[null,null,{"$f":"IF(Synthèse!C38<>\"\",Synthèse!C38,\"\")","v":""},{"$f":"IF(Synthèse!D38<>\"\",Synthèse!D38,\"\")","v":"Déplacements, missions, réceptions,"},null,null,null,null,null,{"$f":"IF(Synthèse!Q38<>\"\",Synthèse!Q38,\"\")","v":""},{"$f":"IF(Synthèse!R38<>\"\",Synthèse!R38,\"\")","v":""},{"$f":"IF(Synthèse!S38<>\"\",Synthèse!S38,\"\")","v":""}]
[null,null,{"$f":"IF(Synthèse!C39<>\"\",Synthèse!C39,\"\")","v":""},{"$f":"IF(Synthèse!D39<>\"\",Synthèse!D39,\"\")","v":"Frais postaux et de télécommunications,"},null,null,null,null,null,{"$f":"IF(Synthèse!Q39<>\"\",Synthèse!Q39,\"\")","v":""},{"$f":"IF(Synthèse!R39<>\"\",Synthèse!R39,\"\")","v":""},{"$f":"IF(Synthèse!S39<>\"\",Synthèse!S39,\"\")","v":""}]
[null,null,{"$f":"IF(Synthèse!C40<>\"\",Synthèse!C40,\"\")","v":""},{"$f":"IF(Synthèse!D40<>\"\",Synthèse!D40,\"\")","v":"Services bancaires."},null,null,null,null,null,{"$f":"IF(Synthèse!Q40<>\"\",Synthèse!Q40,\"\")","v":""},{"$f":"IF(Synthèse!R40<>\"\",Synthèse!R40,\"\")","v":""},{"$f":"IF(Synthèse!S40<>\"\",Synthèse!S40,\"\")","v":""}]
[null,null,{"$f":"IF(Synthèse!C41<>\"\",Synthèse!C41,\"\")","v":"Impôts, taxes et versements assimilés."},null,null,null,{"$f":"SUM(G43:G50)","v":0},null,null,{"$f":"IF(Synthèse!Q41<>\"\",Synthèse!Q41,\"\")","v":""},{"$f":"IF(Synthèse!R41<>\"\",Synthèse!R41,\"\")","v":""},{"$f":"IF(Synthèse!S41<>\"\",Synthèse!S41,\"\")","v":""}]
[null,null,{"$f":"IF(Synthèse!C42<>\"\",Synthèse!C42,\"\")","v":""},{"$f":"IF(Synthèse!D42<>\"\",Synthèse!D42,\"\")","v":"CET,"},null,null,null,null,null,{"$f":"IF(Synthèse!Q42<>\"\",Synthèse!Q42,\"\")","v":""},{"$f":"IF(Synthèse!R42<>\"\",Synthèse!R42,\"\")","v":""},{"$f":"IF(Synthèse!S42<>\"\",Synthèse!S42,\"\")","v":""}]
[null,null,{"$f":"IF(Synthèse!C43<>\"\",Synthèse!C43,\"\")","v":""},{"$f":"IF(Synthèse!D43<>\"\",Synthèse!D43,\"\")","v":"Taxe sur les salaires,"},null,null,null,null,null,{"$f":"IF(Synthèse!Q43<>\"\",Synthèse!Q43,\"\")","v":""},{"$f":"IF(Synthèse!R43<>\"\",Synthèse!R43,\"\")","v":""},{"$f":"IF(Synthèse!S43<>\"\",Synthèse!S43,\"\")","v":""}]
[null,null,{"$f":"IF(Synthèse!C44<>\"\",Synthèse!C44,\"\")","v":""},{"$f":"IF(Synthèse!D44<>\"\",Synthèse!D44,\"\")","v":"Taxe d’apprentissage,"},null,null,null,null,null,{"$f":"IF(Synthèse!Q44<>\"\",Synthèse!Q44,\"\")","v":""},{"$f":"IF(Synthèse!R44<>\"\",Synthèse!R44,\"\")","v":""},{"$f":"IF(Synthèse!S44<>\"\",Synthèse!S44,\"\")","v":""}]
[null,null,{"$f":"IF(Synthèse!C45<>\"\",Synthèse!C45,\"\")","v":""},{"$f":"IF(Synthèse!D45<>\"\",Synthèse!D45,\"\")","v":"Droits d’enregistrement,"},null,null,null,null,null,{"$f":"IF(Synthèse!Q45<>\"\",Synthèse!Q45,\"\")","v":""},{"$f":"IF(Synthèse!R45<>\"\",Synthèse!R45,\"\")","v":""},{"$f":"IF(Synthèse!S45<>\"\",Synthèse!S45,\"\")","v":""}]
[null,null,{"$f":"IF(Synthèse!C46<>\"\",Synthèse!C46,\"\")","v":""},{"$f":"IF(Synthèse!D46<>\"\",Synthèse!D46,\"\")","v":"Impôts locaux,"},null,null,null,null,null,{"$f":"IF(Synthèse!Q46<>\"\",Synthèse!Q46,\"\")","v":""},{"$f":"IF(Synthèse!R46<>\"\",Synthèse!R46,\"\")","v":""},{"$f":"IF(Synthèse!S46<>\"\",Synthèse!S46,\"\")","v":""}]
[null,null,{"$f":"IF(Synthèse!C47<>\"\",Synthèse!C47,\"\")","v":""},{"$f":"IF(Synthèse!D47<>\"\",Synthèse!D47,\"\")","v":"Contribution à la formation continue,"},null,null,null,null,null,{"$f":"IF(Synthèse!Q47<>\"\",Synthèse!Q47,\"\")","v":""},{"$f":"IF(Synthèse!R47<>\"\",Synthèse!R47,\"\")","v":""},{"$f":"IF(Synthèse!S47<>\"\",Synthèse!S47,\"\")","v":""}]
[null,null,{"$f":"IF(Synthèse!C48<>\"\",Synthèse!C48,\"\")","v":""},{"$f":"IF(Synthèse!D48<>\"\",Synthèse!D48,\"\")","v":"Contribution sociale de solidarité,"},null,null,null,null,null,{"$f":"IF(Synthèse!Q48<>\"\",Synthèse!Q48,\"\")","v":""},{"$f":"IF(Synthèse!R48<>\"\",Synthèse!R48,\"\")","v":""},{"$f":"IF(Synthèse!S48<>\"\",Synthèse!S48,\"\")","v":""}]
[null,null,{"$f":"IF(Synthèse!C49<>\"\",Synthèse!C49,\"\")","v":""},{"$f":"IF(Synthèse!D49<>\"\",Synthèse!D49,\"\")","v":"Timbres fiscaux."},null,null,null,null,null,{"$f":"IF(Synthèse!Q49<>\"\",Synthèse!Q49,\"\")","v":""},{"$f":"IF(Synthèse!R49<>\"\",Synthèse!R49,\"\")","v":""},{"$f":"IF(Synthèse!S49<>\"\",Synthèse!S49,\"\")","v":""}]
[null,null,{"$f":"IF(Synthèse!C50<>\"\",Synthèse!C50,\"\")","v":"Charges de personnel."},null,null,null,{"$f":"SUM(G52:G56)","v":133808.94640000002},null,null,{"$f":"IF(Synthèse!Q50<>\"\",Synthèse!Q50,\"\")","v":""},{"$f":"IF(Synthèse!R50<>\"\",Synthèse!R50,\"\")","v":""},{"$f":"IF(Synthèse!S50<>\"\",Synthèse!S50,\"\")","v":""}]
[null,null,{"$f":"IF(Synthèse!C51<>\"\",Synthèse!C51,\"\")","v":""},{"$f":"IF(Synthèse!D51<>\"\",Synthèse!D51,\"\")","v":"Rémunérations, salaires,"},null,null,{"$f":"Activités!I15","v":133808.94640000002},null,null,{"$f":"IF(Synthèse!Q51<>\"\",Synthèse!Q51,\"\")","v":""},{"$f":"IF(Synthèse!R51<>\"\",Synthèse!R51,\"\")","v":""},{"$f":"IF(Synthèse!S51<>\"\",Synthèse!S51,\"\")","v":""}]
[null,null,{"$f":"IF(Synthèse!C52<>\"\",Synthèse!C52,\"\")","v":""},{"$f":"IF(Synthèse!D52<>\"\",Synthèse!D52,\"\")","v":"Congés payés,"},null,null,null,null,null,{"$f":"IF(Synthèse!Q52<>\"\",Synthèse!Q52,\"\")","v":""},{"$f":"IF(Synthèse!R52<>\"\",Synthèse!R52,\"\")","v":""},{"$f":"IF(Synthèse!S52<>\"\",Synthèse!S52,\"\")","v":""}]
[null,null,{"$f":"IF(Synthèse!C53<>\"\",Synthèse!C53,\"\")","v":""},{"$f":"IF(Synthèse!D53<>\"\",Synthèse!D53,\"\")","v":"Primes, indemnités,"},null,null,null,null,null,{"$f":"IF(Synthèse!Q53<>\"\",Synthèse!Q53,\"\")","v":""},{"$f":"IF(Synthèse!R53<>\"\",Synthèse!R53,\"\")","v":""},{"$f":"IF(Synthèse!S53<>\"\",Synthèse!S53,\"\")","v":""}]
[null,null,{"$f":"IF(Synthèse!C54<>\"\",Synthèse!C54,\"\")","v":""},{"$f":"IF(Synthèse!D54<>\"\",Synthèse!D54,\"\")","v":"Charges sociales,"},null,null,null,null,null,{"$f":"IF(Synthèse!Q54<>\"\",Synthèse!Q54,\"\")","v":""},{"$f":"IF(Synthèse!R54<>\"\",Synthèse!R54,\"\")","v":""},{"$f":"IF(Synthèse!S54<>\"\",Synthèse!S54,\"\")","v":""}]
[null,null,{"$f":"IF(Synthèse!C55<>\"\",Synthèse!C55,\"\")","v":""},{"$f":"IF(Synthèse!D55<>\"\",Synthèse!D55,\"\")","v":"Œuvres sociales."},null,null,null,null,null,{"$f":"IF(Synthèse!Q55<>\"\",Synthèse!Q55,\"\")","v":""},{"$f":"IF(Synthèse!R55<>\"\",Synthèse!R55,\"\")","v":""},{"$f":"IF(Synthèse!S55<>\"\",Synthèse!S55,\"\")","v":""}]
[null,null,{"$f":"IF(Synthèse!C56<>\"\",Synthèse!C56,\"\")","v":"Autres charges de gestion courante."},null,null,null,{"$f":"SUM(G58:G60)","v":{"$error":"#REF!"}},null,null,{"$f":"IF(Synthèse!Q56<>\"\",Synthèse!Q56,\"\")","v":""},{"$f":"IF(Synthèse!R56<>\"\",Synthèse!R56,\"\")","v":""},{"$f":"IF(Synthèse!S56<>\"\",Synthèse!S56,\"\")","v":""}]
[null,null,{"$f":"IF(Synthèse!C57<>\"\",Synthèse!C57,\"\")","v":""},{"$f":"IF(Synthèse!D57<>\"\",Synthèse!D57,\"\")","v":"Redevances versées pour brevets, licences, marques,"},null,null,{"$f":"Licences!X4+Licences!W4*FabLab!G4","v":{"$error":"#REF!"}},null,null,{"$f":"IF(Synthèse!Q57<>\"\",Synthèse!Q57,\"\")","v":""},{"$f":"IF(Synthèse!R57<>\"\",Synthèse!R57,\"\")","v":""},{"$f":"IF(Synthèse!S57<>\"\",Synthèse!S57,\"\")","v":""}]
[null,null,{"$f":"IF(Synthèse!C58<>\"\",Synthèse!C58,\"\")","v":""},{"$f":"IF(Synthèse!D58<>\"\",Synthèse!D58,\"\")","v":"Pertes sur créances irrécouvrables,"},null,null,null,null,null,{"$f":"IF(Synthèse!Q58<>\"\",Synthèse!Q58,\"\")","v":""},{"$f":"IF(Synthèse!R58<>\"\",Synthèse!R58,\"\")","v":""},{"$f":"IF(Synthèse!S58<>\"\",Synthèse!S58,\"\")","v":""}]
[null,null,{"$f":"IF(Synthèse!C59<>\"\",Synthèse!C59,\"\")","v":""},{"$f":"IF(Synthèse!D59<>\"\",Synthèse!D59,\"\")","v":"Charges diverses."},null,null,null,null,null,{"$f":"IF(Synthèse!Q59<>\"\",Synthèse!Q59,\"\")","v":""},{"$f":"IF(Synthèse!R59<>\"\",Synthèse!R59,\"\")","v":""},{"$f":"IF(Synthèse!S59<>\"\",Synthèse!S59,\"\")","v":""}]
[null,null,{"$f":"IF(Synthèse!C60<>\"\",Synthèse!C60,\"\")","v":"Charges financières."},null,null,null,{"$f":"SUM(G62:G65)","v":{"$error":"#REF!"}},null,null,{"$f":"IF(Synthèse!Q60<>\"\",Synthèse!Q60,\"\")","v":"Produits financiers."},null,null,{"$f":"SUM(M62:M65)","v":0}]
[null,null,{"$f":"IF(Synthèse!C61<>\"\",Synthèse!C61,\"\")","v":""},{"$f":"IF(Synthèse!D61<>\"\",Synthèse!D61,\"\")","v":"Intérêts des emprunts,"},null,null,{"$f":"Emprunt!O6*G4","v":{"$error":"#REF!"}},null,null,{"$f":"IF(Synthèse!Q61<>\"\",Synthèse!Q61,\"\")","v":""},{"$f":"IF(Synthèse!R61<>\"\",Synthèse!R61,\"\")","v":"Revenus des titres (dividendes, intérêts),"}]
[null,null,{"$f":"IF(Synthèse!C62<>\"\",Synthèse!C62,\"\")","v":""},{"$f":"IF(Synthèse!D62<>\"\",Synthèse!D62,\"\")","v":"Escomptes accordés,"},null,null,null,null,null,{"$f":"IF(Synthèse!Q62<>\"\",Synthèse!Q62,\"\")","v":""},{"$f":"IF(Synthèse!R62<>\"\",Synthèse!R62,\"\")","v":"Intérêts des prêts,"}]
[null,null,{"$f":"IF(Synthèse!C63<>\"\",Synthèse!C63,\"\")","v":""},{"$f":"IF(Synthèse!D63<>\"\",Synthèse!D63,\"\")","v":"Intérêts bancaires,"},null,null,null,null,null,{"$f":"IF(Synthèse!Q63<>\"\",Synthèse!Q63,\"\")","v":""},{"$f":"IF(Synthèse!R63<>\"\",Synthèse!R63,\"\")","v":"Escomptes obtenus,"}]
[null,null,{"$f":"IF(Synthèse!C64<>\"\",Synthèse!C64,\"\")","v":""},{"$f":"IF(Synthèse!D64<>\"\",Synthèse!D64,\"\")","v":"Pertes de change."},null,null,null,null,null,{"$f":"IF(Synthèse!Q64<>\"\",Synthèse!Q64,\"\")","v":""},{"$f":"IF(Synthèse!R64<>\"\",Synthèse!R64,\"\")","v":"Gains de change."}]
[null,null,{"$f":"IF(Synthèse!C65<>\"\",Synthèse!C65,\"\")","v":"Charges exceptionnelles."},null,null,null,{"$f":"SUM(G67:G69)","v":0},null,null,{"$f":"IF(Synthèse!Q65<>\"\",Synthèse!Q65,\"\")","v":"Produits exceptionnels."},null,null,{"$f":"SUM(M67:M68)","v":0}]
[null,null,{"$f":"IF(Synthèse!C66<>\"\",Synthèse!C66,\"\")","v":""},{"$f":"IF(Synthèse!D66<>\"\",Synthèse!D66,\"\")","v":"Valeurs comptables des éléments d’actif cédés,"},null,null,null,null,null,{"$f":"IF(Synthèse!Q66<>\"\",Synthèse!Q66,\"\")","v":""},{"$f":"IF(Synthèse!R66<>\"\",Synthèse!R66,\"\")","v":"Produits exceptionnels sur opérations de gestion,"}]
[null,null,{"$f":"IF(Synthèse!C67<>\"\",Synthèse!C67,\"\")","v":""},{"$f":"IF(Synthèse!D67<>\"\",Synthèse!D67,\"\")","v":"Pénalités, amendes fiscales et pénales,"},null,null,null,null,null,{"$f":"IF(Synthèse!Q67<>\"\",Synthèse!Q67,\"\")","v":""},{"$f":"IF(Synthèse!R67<>\"\",Synthèse!R67,\"\")","v":"Prix de cession d’éléments d’actif."}]
[null,null,{"$f":"IF(Synthèse!C68<>\"\",Synthèse!C68,\"\")","v":""},{"$f":"IF(Synthèse!D68<>\"\",Synthèse!D68,\"\")","v":"Dons et libéralités."},null,null,null,null,null,{"$f":"IF(Synthèse!Q68<>\"\",Synthèse!Q68,\"\")","v":""},{"$f":"IF(Synthèse!R68<>\"\",Synthèse!R68,\"\")","v":""}]
[null,null,{"$f":"IF(Synthèse!C69<>\"\",Synthèse!C69,\"\")","v":"Dotations."},null,null,null,{"$f":"SUM(G71:G73)","v":0},null,null,{"$f":"IF(Synthèse!Q69<>\"\",Synthèse!Q69,\"\")","v":"Reprises."},null,null,{"$f":"SUM(M71:M73)","v":0}]
[null,null,{"$f":"IF(Synthèse!C70<>\"\",Synthèse!C70,\"\")","v":""},{"$f":"IF(Synthèse!D70<>\"\",Synthèse!D70,\"\")","v":"Dotations aux amortissements, aux dépréciations et aux provisions – Charges d’exploitation,"},null,null,{"$f":"'Comptes de résultat A0'!G69","v":0},null,null,{"$f":"IF(Synthèse!Q70<>\"\",Synthèse!Q70,\"\")","v":""},{"$f":"IF(Synthèse!R70<>\"\",Synthèse!R70,\"\")","v":"Reprises sur amortissements, dépréciations et provisions – Produits d’exploitation,"}]
[null,null,{"$f":"IF(Synthèse!C71<>\"\",Synthèse!C71,\"\")","v":""},{"$f":"IF(Synthèse!D71<>\"\",Synthèse!D71,\"\")","v":"Dotations aux amortissements, aux dépréciations et aux provisions – Charges financières,"},null,null,null,null,null,{"$f":"IF(Synthèse!Q71<>\"\",Synthèse!Q71,\"\")","v":""},{"$f":"IF(Synthèse!R71<>\"\",Synthèse!R71,\"\")","v":"Reprises sur dépréciations et provisions – Produits financiers,"}]
[null,null,{"$f":"IF(Synthèse!C72<>\"\",Synthèse!C72,\"\")","v":""},{"$f":"IF(Synthèse!D72<>\"\",Synthèse!D72,\"\")","v":"Dotations aux amortissements, aux dépréciations et aux provisions – Charges exceptionnelles,"},null,null,null,null,null,{"$f":"IF(Synthèse!Q72<>\"\",Synthèse!Q72,\"\")","v":""},{"$f":"IF(Synthèse!R72<>\"\",Synthèse!R72,\"\")","v":"Reprises sur dépréciations et provisions – Produits"}]
[null,null,null,null,null,null,null,null,null,{"$f":"IF(Synthèse!Q73<>\"\",Synthèse!Q73,\"\")","v":"Transferts de charges."},null,null,{"$f":"SUM(M75:M77)","v":0}]
[null,null,null,null,null,null,null,null,null,{"$f":"IF(Synthèse!Q74<>\"\",Synthèse!Q74,\"\")","v":""},{"$f":"IF(Synthèse!R74<>\"\",Synthèse!R74,\"\")","v":"Transferts de charges d’exploitation,"}]
[null,null,null,null,null,null,null,null,null,{"$f":"IF(Synthèse!Q75<>\"\",Synthèse!Q75,\"\")","v":""},{"$f":"IF(Synthèse!R75<>\"\",Synthèse!R75,\"\")","v":"Transferts de charges financières,"}]
[null,null,null,null,null,null,null,null,null,{"$f":"IF(Synthèse!Q76<>\"\",Synthèse!Q76,\"\")","v":""},{"$f":"IF(Synthèse!R76<>\"\",Synthèse!R76,\"\")","v":"Transferts de charges exceptionnelles."}]
[]
[null,null,"Charges fixes",null,null,null,{"$f":"G70+G13+G66+G61+G57+G51+G42+G27","v":{"$error":"#REF!"}}]
[null,null,"Charges variables",null,null,null,{"$f":"G10+G34","v":{"$error":"#REF!"}}]
[]
[null,null,null,null,null,null,{"$f":"G7","v":"Année 0"},null,null,null,null,null,{"$f":"G82","v":"Année 0"}]
[null,"Total des charges",null,null,null,null,{"$f":"SUM(G70,G66,G61,G57,G51,G42,G34,G27,G8)","v":{"$error":"#REF!"}},null,"Total des produits",null,null,null,{"$f":"SUM(M74,M70,M66,M61,M34,M8)","v":{"$error":"#REF!"}}]
[]
[null,"Solde créditeur : bénéfice",null,null,null,null,{"$f":"IF(M83>G83,M83-G83,\"\")","v":{"$error":"#REF!"}},null,"Solde débiteur : perte",null,null,null,{"$f":"IF(G83>M83,G83-M83,\"\")","v":{"$error":"#REF!"}}]
[]
[]
[null,null,null,null,null,null,{"$f":"G82","v":"Année 0"}]
[null,"Résultat net avant impôts",null,null,null,null,{"$f":"M83-G83","v":{"$error":"#REF!"}}]

{"sheet":"FabCafé","index":31,"n_rows":89,"n_cols":13,"rows_kept":89,"cut":false,"hidden":true,"merged":[[82,1,82,5],[82,8,82,11],[1,1,1,12],[5,1,5,6],[5,8,5,12]]}
[]
[null,"FabCafé"]
[]
[null,"Clé de répartition",null,null,null,null,{"$f":"Activités!M19","v":{"$error":"#REF!"}}]
[]
[null,"Charges",null,null,null,null,null,null,"Produits"]
[null,null,null,null,null,null,"Année 0",null,null,null,null,null,{"$f":"G7","v":"Année 0"}]
[null,null,{"$f":"IF(Synthèse!C7<>\"\",Synthèse!C7,\"\")","v":"Achats"},null,{"$f":"IF(Synthèse!E7<>\"\",Synthèse!E7,\"\")","v":""},null,{"$f":"SUM(G9,G15)","v":{"$error":"#REF!"}},null,null,{"$f":"IF(Synthèse!Q7<>\"\",Synthèse!Q7,\"\")","v":"Ventes."},null,null,{"$f":"SUM(M9:M14)","v":{"$error":"#REF!"}}]
[null,null,{"$f":"IF(Synthèse!C8<>\"\",Synthèse!C8,\"\")","v":""},{"$f":"IF(Synthèse!D8<>\"\",Synthèse!D8,\"\")","v":"Achats stockés :"},null,null,{"$f":"SUM(G10:G14)","v":{"$error":"#REF!"}},null,null,{"$f":"IF(Synthèse!Q8<>\"\",Synthèse!Q8,\"\")","v":""},{"$f":"IF(Synthèse!R8<>\"\",Synthèse!R8,\"\")","v":"Ventes de produits finis"},null,{"$f":"'Ventes Produits'!L5","v":{"$error":"#REF!"}}]
[null,null,{"$f":"IF(Synthèse!C9<>\"\",Synthèse!C9,\"\")","v":""},{"$f":"IF(Synthèse!D9<>\"\",Synthèse!D9,\"\")","v":""},{"$f":"IF(Synthèse!E9<>\"\",Synthèse!E9,\"\")","v":"Achats de marchandises,"},null,{"$f":"Stock!Y4+FabCafé!G4*Stock!W4","v":{"$error":"#REF!"}},null,null,{"$f":"IF(Synthèse!Q9<>\"\",Synthèse!Q9,\"\")","v":""},{"$f":"IF(Synthèse!R9<>\"\",Synthèse!R9,\"\")","v":"Ventes de matières premières"},null,{"$f":"SUM('Ventes Stock'!#REF!)","v":{"$error":"#REF!"}}]
[null,null,{"$f":"IF(Synthèse!C10<>\"\",Synthèse!C10,\"\")","v":""},{"$f":"IF(Synthèse!D10<>\"\",Synthèse!D10,\"\")","v":""},{"$f":"IF(Synthèse!E10<>\"\",Synthèse!E10,\"\")","v":"Achats de matières premières,"},null,null,null,null,{"$f":"IF(Synthèse!Q10<>\"\",Synthèse!Q10,\"\")","v":""}]
[null,null,{"$f":"IF(Synthèse!C11<>\"\",Synthèse!C11,\"\")","v":""},{"$f":"IF(Synthèse!D11<>\"\",Synthèse!D11,\"\")","v":""},{"$f":"IF(Synthèse!E11<>\"\",Synthèse!E11,\"\")","v":"Achats d’emballages,"},null,null,null,null,{"$f":"IF(Synthèse!Q11<>\"\",Synthèse!Q11,\"\")","v":""}]
[null,null,{"$f":"IF(Synthèse!C12<>\"\",Synthèse!C12,\"\")","v":""},{"$f":"IF(Synthèse!D12<>\"\",Synthèse!D12,\"\")","v":""},{"$f":"IF(Synthèse!E12<>\"\",Synthèse!E12,\"\")","v":"Achats de fournitures consommables :"},null,{"$f":"Consommables!Y4+Consommables!W4*FabCafé!G4","v":{"$error":"#REF!"}},null,null,{"$f":"IF(Synthèse!Q12<>\"\",Synthèse!Q12,\"\")","v":""},{"$f":"IF(Synthèse!R12<>\"\",Synthèse!R12,\"\")","v":"Prestations de services"},null,0]
[null,null,{"$f":"IF(Synthèse!C13<>\"\",Synthèse!C13,\"\")","v":""},{"$f":"IF(Synthèse!D13<>\"\",Synthèse!D13,\"\")","v":""},{"$f":"IF(Synthèse!E13<>\"\",Synthèse!E13,\"\")","v":"Achats d’études, équipements, travaux."},null,0,null,null,{"$f":"IF(Synthèse!Q13<>\"\",Synthèse!Q13,\"\")","v":""},{"$f":"IF(Synthèse!R13<>\"\",Synthèse!R13,\"\")","v":"Produits et activités annexes"},null,{"$f":"SUM(M15:M25)","v":0}]
[null,null,{"$f":"IF(Synthèse!C14<>\"\",Synthèse!C14,\"\")","v":""},{"$f":"IF(Synthèse!D14<>\"\",Synthèse!D14,\"\")","v":"Achats non stockés :"},null,null,{"$f":"SUM(G16:G20)","v":0},null,null,{"$f":"IF(Synthèse!Q14<>\"\",Synthèse!Q14,\"\")","v":""},{"$f":"IF(Synthèse!R14<>\"\",Synthèse!R14,\"\")","v":""},{"$f":"IF(Synthèse!S14<>\"\",Synthèse!S14,\"\")","v":"Locations"},0]
[null,null,{"$f":"IF(Synthèse!C15<>\"\",Synthèse!C15,\"\")","v":""},{"$f":"IF(Synthèse!D15<>\"\",Synthèse!D15,\"\")","v":""},{"$f":"IF(Synthèse!E15<>\"\",Synthèse!E15,\"\")","v":"Eau,"},null,null,null,null,{"$f":"IF(Synthèse!Q15<>\"\",Synthèse!Q15,\"\")","v":""},{"$f":"IF(Synthèse!R15<>\"\",Synthèse!R15,\"\")","v":""},{"$f":"IF(Synthèse!S15<>\"\",Synthèse!S15,\"\")","v":""}]
[null,null,{"$f":"IF(Synthèse!C16<>\"\",Synthèse!C16,\"\")","v":""},{"$f":"IF(Synthèse!D16<>\"\",Synthèse!D16,\"\")","v":""},{"$f":"IF(Synthèse!E16<>\"\",Synthèse!E16,\"\")","v":"Energie,"},null,null,null,null,{"$f":"IF(Synthèse!Q16<>\"\",Synthèse!Q16,\"\")","v":""},{"$f":"IF(Synthèse!R16<>\"\",Synthèse!R16,\"\")","v":""},{"$f":"IF(Synthèse!S16<>\"\",Synthèse!S16,\"\")","v":""}]
[null,null,{"$f":"IF(Synthèse!C17<>\"\",Synthèse!C17,\"\")","v":""},{"$f":"IF(Synthèse!D17<>\"\",Synthèse!D17,\"\")","v":""},{"$f":"IF(Synthèse!E17<>\"\",Synthèse!E17,\"\")","v":"Carburant,"},null,null,null,null,{"$f":"IF(Synthèse!Q17<>\"\",Synthèse!Q17,\"\")","v":""},{"$f":"IF(Synthèse!R17<>\"\",Synthèse!R17,\"\")","v":""},{"$f":"IF(Synthèse!S17<>\"\",Synthèse!S17,\"\")","v":""}]
[null,null,{"$f":"IF(Synthèse!C18<>\"\",Synthèse!C18,\"\")","v":""},{"$f":"IF(Synthèse!D18<>\"\",Synthèse!D18,\"\")","v":""},{"$f":"IF(Synthèse!E18<>\"\",Synthèse!E18,\"\")","v":"Fournitures administratives,"},null,null,null,null,{"$f":"IF(Synthèse!Q18<>\"\",Synthèse!Q18,\"\")","v":""},{"$f":"IF(Synthèse!R18<>\"\",Synthèse!R18,\"\")","v":""},{"$f":"IF(Synthèse!S18<>\"\",Synthèse!S18,\"\")","v":""}]
[null,null,{"$f":"IF(Synthèse!C19<>\"\",Synthèse!C19,\"\")","v":""},{"$f":"IF(Synthèse!D19<>\"\",Synthèse!D19,\"\")","v":""},{"$f":"IF(Synthèse!E19<>\"\",Synthèse!E19,\"\")","v":"Fournitures d’entretien, petit équipement."},null,null,null,null,{"$f":"IF(Synthèse!Q19<>\"\",Synthèse!Q19,\"\")","v":""},{"$f":"IF(Synthèse!R19<>\"\",Synthèse!R19,\"\")","v":""},{"$f":"IF(Synthèse!S19<>\"\",Synthèse!S19,\"\")","v":""}]
[null,null,null,null,null,null,null,null,null,null,null,{"$f":"IF(Synthèse!S20<>\"\",Synthèse!S20,\"\")","v":"Abonnements"},0]
[]
[]
[]
[]
[null,null,null,null,null,null,null,null,null,null,{"$f":"IF(Synthèse!R25<>\"\",Synthèse!R25,\"\")","v":""}]
[null,null,{"$f":"IF(Synthèse!C26<>\"\",Synthèse!C26,\"\")","v":"Services extérieurs."},null,null,null,{"$f":"SUM(G28:G33)","v":{"$error":"#REF!"}}]
[null,null,{"$f":"IF(Synthèse!C27<>\"\",Synthèse!C27,\"\")","v":""},{"$f":"IF(Synthèse!D27<>\"\",Synthèse!D27,\"\")","v":"Locations immobilières et mobilières,"},null,null,{"$f":"Loyers!Y4+Loyers!W4*FabCafé!G4","v":{"$error":"#REF!"}}]
[null,null,{"$f":"IF(Synthèse!C28<>\"\",Synthèse!C28,\"\")","v":""},{"$f":"IF(Synthèse!D28<>\"\",Synthèse!D28,\"\")","v":"Redevances de crédit bail,"}]
[null,null,{"$f":"IF(Synthèse!C29<>\"\",Synthèse!C29,\"\")","v":""},{"$f":"IF(Synthèse!D29<>\"\",Synthèse!D29,\"\")","v":"Charges locatives et de copropriété,"},null,null,null,null,null,{"$f":"IF(Synthèse!Q29<>\"\",Synthèse!Q29,\"\")","v":""},{"$f":"IF(Synthèse!R29<>\"\",Synthèse!R29,\"\")","v":""},{"$f":"IF(Synthèse!S29<>\"\",Synthèse!S29,\"\")","v":""}]
[null,null,{"$f":"IF(Synthèse!C30<>\"\",Synthèse!C30,\"\")","v":""},{"$f":"IF(Synthèse!D30<>\"\",Synthèse!D30,\"\")","v":"Entretien et réparations,"},null,null,null,null,null,{"$f":"IF(Synthèse!Q30<>\"\",Synthèse!Q30,\"\")","v":""},{"$f":"IF(Synthèse!R30<>\"\",Synthèse!R30,\"\")","v":""},{"$f":"IF(Synthèse!S30<>\"\",Synthèse!S30,\"\")","v":""}]
[null,null,{"$f":"IF(Synthèse!C31<>\"\",Synthèse!C31,\"\")","v":""},{"$f":"IF(Synthèse!D31<>\"\",Synthèse!D31,\"\")","v":"Assurances,"},null,null,null,null,null,{"$f":"IF(Synthèse!Q31<>\"\",Synthèse!Q31,\"\")","v":""},{"$f":"IF(Synthèse!R31<>\"\",Synthèse!R31,\"\")","v":""},{"$f":"IF(Synthèse!S31<>\"\",Synthèse!S31,\"\")","v":""}]
[null,null,{"$f":"IF(Synthèse!C32<>\"\",Synthèse!C32,\"\")","v":""},{"$f":"IF(Synthèse!D32<>\"\",Synthèse!D32,\"\")","v":"Etudes et recherches."},null,null,null,null,null,{"$f":"IF(Synthèse!Q32<>\"\",Synthèse!Q32,\"\")","v":""},{"$f":"IF(Synthèse!R32<>\"\",Synthèse!R32,\"\")","v":""},{"$f":"IF(Synthèse!S32<>\"\",Synthèse!S32,\"\")","v":""}]
[null,null,{"$f":"IF(Synthèse!C33<>\"\",Synthèse!C33,\"\")","v":"Autres services extérieurs."},null,null,null,{"$f":"SUM(G35:G41)","v":{"$error":"#REF!"}},null,null,{"$f":"IF(Synthèse!Q33<>\"\",Synthèse!Q33,\"\")","v":"Autres produits de gestion courante."},null,null,{"$f":"SUM(M35:M36)","v":0}]
[null,null,{"$f":"IF(Synthèse!C34<>\"\",Synthèse!C34,\"\")","v":""},{"$f":"IF(Synthèse!D34<>\"\",Synthèse!D34,\"\")","v":"Frais extérieurs, publicité, déplacements, …"},null,null,{"$f":"G4*'Charges Ext'!W4+'Charges Ext'!Y4","v":{"$error":"#REF!"}},null,null,{"$f":"IF(Synthèse!Q34<>\"\",Synthèse!Q34,\"\")","v":""},{"$f":"IF(Synthèse!R34<>\"\",Synthèse!R34,\"\")","v":"Redevances reçues pour brevets, licences, marques,"}]
[null,null,{"$f":"IF(Synthèse!C35<>\"\",Synthèse!C35,\"\")","v":""},{"$f":"IF(Synthèse!D35<>\"\",Synthèse!D35,\"\")","v":"Honoraires et rémunérations d’intermédiaires,"},null,null,null,null,null,{"$f":"IF(Synthèse!Q35<>\"\",Synthèse!Q35,\"\")","v":""},{"$f":"IF(Synthèse!R35<>\"\",Synthèse!R35,\"\")","v":"Revenus des immeubles."}]
[null,null,{"$f":"IF(Synthèse!C36<>\"\",Synthèse!C36,\"\")","v":""},{"$f":"IF(Synthèse!D36<>\"\",Synthèse!D36,\"\")","v":"Publicité, relations publiques,"},null,null,null,null,null,{"$f":"IF(Synthèse!Q36<>\"\",Synthèse!Q36,\"\")","v":""},{"$f":"IF(Synthèse!R36<>\"\",Synthèse!R36,\"\")","v":""},{"$f":"IF(Synthèse!S36<>\"\",Synthèse!S36,\"\")","v":""}]
[null,null,{"$f":"IF(Synthèse!C37<>\"\",Synthèse!C37,\"\")","v":""},{"$f":"IF(Synthèse!D37<>\"\",Synthèse!D37,\"\")","v":"Transports de biens et transports du personnel,"},null,null,null,null,null,{"$f":"IF(Synthèse!Q37<>\"\",Synthèse!Q37,\"\")","v":""},{"$f":"IF(Synthèse!R37<>\"\",Synthèse!R37,\"\")","v":""},{"$f":"IF(Synthèse!S37<>\"\",Synthèse!S37,\"\")","v":""}]
[null,null,{"$f":"IF(Synthèse!C38<>\"\",Synthèse!C38,\"\")","v":""},{"$f":"IF(Synthèse!D38<>\"\",Synthèse!D38,\"\")","v":"Déplacements, missions, réceptions,"},null,null,null,null,null,{"$f":"IF(Synthèse!Q38<>\"\",Synthèse!Q38,\"\")","v":""},{"$f":"IF(Synthèse!R38<>\"\",Synthèse!R38,\"\")","v":""},{"$f":"IF(Synthèse!S38<>\"\",Synthèse!S38,\"\")","v":""}]
[null,null,{"$f":"IF(Synthèse!C39<>\"\",Synthèse!C39,\"\")","v":""},{"$f":"IF(Synthèse!D39<>\"\",Synthèse!D39,\"\")","v":"Frais postaux et de télécommunications,"},null,null,null,null,null,{"$f":"IF(Synthèse!Q39<>\"\",Synthèse!Q39,\"\")","v":""},{"$f":"IF(Synthèse!R39<>\"\",Synthèse!R39,\"\")","v":""},{"$f":"IF(Synthèse!S39<>\"\",Synthèse!S39,\"\")","v":""}]
[null,null,{"$f":"IF(Synthèse!C40<>\"\",Synthèse!C40,\"\")","v":""},{"$f":"IF(Synthèse!D40<>\"\",Synthèse!D40,\"\")","v":"Services bancaires."},null,null,null,null,null,{"$f":"IF(Synthèse!Q40<>\"\",Synthèse!Q40,\"\")","v":""},{"$f":"IF(Synthèse!R40<>\"\",Synthèse!R40,\"\")","v":""},{"$f":"IF(Synthèse!S40<>\"\",Synthèse!S40,\"\")","v":""}]
[null,null,{"$f":"IF(Synthèse!C41<>\"\",Synthèse!C41,\"\")","v":"Impôts, taxes et versements assimilés."},null,null,null,{"$f":"SUM(G43:G50)","v":0},null,null,{"$f":"IF(Synthèse!Q41<>\"\",Synthèse!Q41,\"\")","v":""},{"$f":"IF(Synthèse!R41<>\"\",Synthèse!R41,\"\")","v":""},{"$f":"IF(Synthèse!S41<>\"\",Synthèse!S41,\"\")","v":""}]
[null,null,{"$f":"IF(Synthèse!C42<>\"\",Synthèse!C42,\"\")","v":""},{"$f":"IF(Synthèse!D42<>\"\",Synthèse!D42,\"\")","v":"CET,"},null,null,null,null,null,{"$f":"IF(Synthèse!Q42<>\"\",Synthèse!Q42,\"\")","v":""},{"$f":"IF(Synthèse!R42<>\"\",Synthèse!R42,\"\")","v":""},{"$f":"IF(Synthèse!S42<>\"\",Synthèse!S42,\"\")","v":""}]
[null,null,{"$f":"IF(Synthèse!C43<>\"\",Synthèse!C43,\"\")","v":""},{"$f":"IF(Synthèse!D43<>\"\",Synthèse!D43,\"\")","v":"Taxe sur les salaires,"},null,null,null,null,null,{"$f":"IF(Synthèse!Q43<>\"\",Synthèse!Q43,\"\")","v":""},{"$f":"IF(Synthèse!R43<>\"\",Synthèse!R43,\"\")","v":""},{"$f":"IF(Synthèse!S43<>\"\",Synthèse!S43,\"\")","v":""}]
[null,null,{"$f":"IF(Synthèse!C44<>\"\",Synthèse!C44,\"\")","v":""},{"$f":"IF(Synthèse!D44<>\"\",Synthèse!D44,\"\")","v":"Taxe d’apprentissage,"},null,null,null,null,null,{"$f":"IF(Synthèse!Q44<>\"\",Synthèse!Q44,\"\")","v":""},{"$f":"IF(Synthèse!R44<>\"\",Synthèse!R44,\"\")","v":""},{"$f":"IF(Synthèse!S44<>\"\",Synthèse!S44,\"\")","v":""}]
[null,null,{"$f":"IF(Synthèse!C45<>\"\",Synthèse!C45,\"\")","v":""},{"$f":"IF(Synthèse!D45<>\"\",Synthèse!D45,\"\")","v":"Droits d’enregistrement,"},null,null,null,null,null,{"$f":"IF(Synthèse!Q45<>\"\",Synthèse!Q45,\"\")","v":""},{"$f":"IF(Synthèse!R45<>\"\",Synthèse!R45,\"\")","v":""},{"$f":"IF(Synthèse!S45<>\"\",Synthèse!S45,\"\")","v":""}]
[null,null,{"$f":"IF(Synthèse!C46<>\"\",Synthèse!C46,\"\")","v":""},{"$f":"IF(Synthèse!D46<>\"\",Synthèse!D46,\"\")","v":"Impôts locaux,"},null,null,null,null,null,{"$f":"IF(Synthèse!Q46<>\"\",Synthèse!Q46,\"\")","v":""},{"$f":"IF(Synthèse!R46<>\"\",Synthèse!R46,\"\")","v":""},{"$f":"IF(Synthèse!S46<>\"\",Synthèse!S46,\"\")","v":""}]
[null,null,{"$f":"IF(Synthèse!C47<>\"\",Synthèse!C47,\"\")","v":""},{"$f":"IF(Synthèse!D47<>\"\",Synthèse!D47,\"\")","v":"Contribution à la formation continue,"},null,null,null,null,null,{"$f":"IF(Synthèse!Q47<>\"\",Synthèse!Q47,\"\")","v":""},{"$f":"IF(Synthèse!R47<>\"\",Synthèse!R47,\"\")","v":""},{"$f":"IF(Synthèse!S47<>\"\",Synthèse!S47,\"\")","v":""}]
[null,null,{"$f":"IF(Synthèse!C48<>\"\",Synthèse!C48,\"\")","v":""},{"$f":"IF(Synthèse!D48<>\"\",Synthèse!D48,\"\")","v":"Contribution sociale de solidarité,"},null,null,null,null,null,{"$f":"IF(Synthèse!Q48<>\"\",Synthèse!Q48,\"\")","v":""},{"$f":"IF(Synthèse!R48<>\"\",Synthèse!R48,\"\")","v":""},{"$f":"IF(Synthèse!S48<>\"\",Synthèse!S48,\"\")","v":""}]
[null,null,{"$f":"IF(Synthèse!C49<>\"\",Synthèse!C49,\"\")","v":""},{"$f":"IF(Synthèse!D49<>\"\",Synthèse!D49,\"\")","v":"Timbres fiscaux."},null,null,null,null,null,{"$f":"IF(Synthèse!Q49<>\"\",Synthèse!Q49,\"\")","v":""},{"$f":"IF(Synthèse!R49<>\"\",Synthèse!R49,\"\")","v":""},{"$f":"IF(Synthèse!S49<>\"\",Synthèse!S49,\"\")","v":""}]
[null,null,{"$f":"IF(Synthèse!C50<>\"\",Synthèse!C50,\"\")","v":"Charges de personnel."},null,null,null,{"$f":"SUM(G52:G56)","v":11799.592400000001},null,null,{"$f":"IF(Synthèse!Q50<>\"\",Synthèse!Q50,\"\")","v":""},{"$f":"IF(Synthèse!R50<>\"\",Synthèse!R50,\"\")","v":""},{"$f":"IF(Synthèse!S50<>\"\",Synthèse!S50,\"\")","v":""}]
[null,null,{"$f":"IF(Synthèse!C51<>\"\",Synthèse!C51,\"\")","v":""},{"$f":"IF(Synthèse!D51<>\"\",Synthèse!D51,\"\")","v":"Rémunérations, salaires,"},null,null,{"$f":"Activités!M15","v":11799.592400000001},null,null,{"$f":"IF(Synthèse!Q51<>\"\",Synthèse!Q51,\"\")","v":""},{"$f":"IF(Synthèse!R51<>\"\",Synthèse!R51,\"\")","v":""},{"$f":"IF(Synthèse!S51<>\"\",Synthèse!S51,\"\")","v":""}]
[null,null,{"$f":"IF(Synthèse!C52<>\"\",Synthèse!C52,\"\")","v":""},{"$f":"IF(Synthèse!D52<>\"\",Synthèse!D52,\"\")","v":"Congés payés,"},null,null,null,null,null,{"$f":"IF(Synthèse!Q52<>\"\",Synthèse!Q52,\"\")","v":""},{"$f":"IF(Synthèse!R52<>\"\",Synthèse!R52,\"\")","v":""},{"$f":"IF(Synthèse!S52<>\"\",Synthèse!S52,\"\")","v":""}]
[null,null,{"$f":"IF(Synthèse!C53<>\"\",Synthèse!C53,\"\")","v":""},{"$f":"IF(Synthèse!D53<>\"\",Synthèse!D53,\"\")","v":"Primes, indemnités,"},null,null,null,null,null,{"$f":"IF(Synthèse!Q53<>\"\",Synthèse!Q53,\"\")","v":""},{"$f":"IF(Synthèse!R53<>\"\",Synthèse!R53,\"\")","v":""},{"$f":"IF(Synthèse!S53<>\"\",Synthèse!S53,\"\")","v":""}]
[null,null,{"$f":"IF(Synthèse!C54<>\"\",Synthèse!C54,\"\")","v":""},{"$f":"IF(Synthèse!D54<>\"\",Synthèse!D54,\"\")","v":"Charges sociales,"},null,null,null,null,null,{"$f":"IF(Synthèse!Q54<>\"\",Synthèse!Q54,\"\")","v":""},{"$f":"IF(Synthèse!R54<>\"\",Synthèse!R54,\"\")","v":""},{"$f":"IF(Synthèse!S54<>\"\",Synthèse!S54,\"\")","v":""}]
[null,null,{"$f":"IF(Synthèse!C55<>\"\",Synthèse!C55,\"\")","v":""},{"$f":"IF(Synthèse!D55<>\"\",Synthèse!D55,\"\")","v":"Œuvres sociales."},null,null,null,null,null,{"$f":"IF(Synthèse!Q55<>\"\",Synthèse!Q55,\"\")","v":""},{"$f":"IF(Synthèse!R55<>\"\",Synthèse!R55,\"\")","v":""},{"$f":"IF(Synthèse!S55<>\"\",Synthèse!S55,\"\")","v":""}]
[null,null,{"$f":"IF(Synthèse!C56<>\"\",Synthèse!C56,\"\")","v":"Autres charges de gestion courante."},null,null,null,{"$f":"SUM(G58:G60)","v":{"$error":"#REF!"}},null,null,{"$f":"IF(Synthèse!Q56<>\"\",Synthèse!Q56,\"\")","v":""},{"$f":"IF(Synthèse!R56<>\"\",Synthèse!R56,\"\")","v":""},{"$f":"IF(Synthèse!S56<>\"\",Synthèse!S56,\"\")","v":""}]
[null,null,{"$f":"IF(Synthèse!C57<>\"\",Synthèse!C57,\"\")","v":""},{"$f":"IF(Synthèse!D57<>\"\",Synthèse!D57,\"\")","v":"Redevances versées pour brevets, licences, marques,"},null,null,{"$f":"Licences!Y4+Licences!W4*FabCafé!G4","v":{"$error":"#REF!"}},null,null,{"$f":"IF(Synthèse!Q57<>\"\",Synthèse!Q57,\"\")","v":""},{"$f":"IF(Synthèse!R57<>\"\",Synthèse!R57,\"\")","v":""},{"$f":"IF(Synthèse!S57<>\"\",Synthèse!S57,\"\")","v":""}]
[null,null,{"$f":"IF(Synthèse!C58<>\"\",Synthèse!C58,\"\")","v":""},{"$f":"IF(Synthèse!D58<>\"\",Synthèse!D58,\"\")","v":"Pertes sur créances irrécouvrables,"},null,null,null,null,null,{"$f":"IF(Synthèse!Q58<>\"\",Synthèse!Q58,\"\")","v":""},{"$f":"IF(Synthèse!R58<>\"\",Synthèse!R58,\"\")","v":""},{"$f":"IF(Synthèse!S58<>\"\",Synthèse!S58,\"\")","v":""}]
[null,null,{"$f":"IF(Synthèse!C59<>\"\",Synthèse!C59,\"\")","v":""},{"$f":"IF(Synthèse!D59<>\"\",Synthèse!D59,\"\")","v":"Charges diverses."},null,null,null,null,null,{"$f":"IF(Synthèse!Q59<>\"\",Synthèse!Q59,\"\")","v":""},{"$f":"IF(Synthèse!R59<>\"\",Synthèse!R59,\"\")","v":""},{"$f":"IF(Synthèse!S59<>\"\",Synthèse!S59,\"\")","v":""}]
[null,null,{"$f":"IF(Synthèse!C60<>\"\",Synthèse!C60,\"\")","v":"Charges financières."},null,null,null,{"$f":"SUM(G62:G65)","v":{"$error":"#REF!"}},null,null,{"$f":"IF(Synthèse!Q60<>\"\",Synthèse!Q60,\"\")","v":"Produits financiers."},null,null,{"$f":"SUM(M62:M65)","v":0}]
[null,null,{"$f":"IF(Synthèse!C61<>\"\",Synthèse!C61,\"\")","v":""},{"$f":"IF(Synthèse!D61<>\"\",Synthèse!D61,\"\")","v":"Intérêts des emprunts,"},null,null,{"$f":"Emprunt!O6*G4","v":{"$error":"#REF!"}},null,null,{"$f":"IF(Synthèse!Q61<>\"\",Synthèse!Q61,\"\")","v":""},{"$f":"IF(Synthèse!R61<>\"\",Synthèse!R61,\"\")","v":"Revenus des titres (dividendes, intérêts),"}]
[null,null,{"$f":"IF(Synthèse!C62<>\"\",Synthèse!C62,\"\")","v":""},{"$f":"IF(Synthèse!D62<>\"\",Synthèse!D62,\"\")","v":"Escomptes accordés,"},null,null,null,null,null,{"$f":"IF(Synthèse!Q62<>\"\",Synthèse!Q62,\"\")","v":""},{"$f":"IF(Synthèse!R62<>\"\",Synthèse!R62,\"\")","v":"Intérêts des prêts,"}]
[null,null,{"$f":"IF(Synthèse!C63<>\"\",Synthèse!C63,\"\")","v":""},{"$f":"IF(Synthèse!D63<>\"\",Synthèse!D63,\"\")","v":"Intérêts bancaires,"},null,null,null,null,null,{"$f":"IF(Synthèse!Q63<>\"\",Synthèse!Q63,\"\")","v":""},{"$f":"IF(Synthèse!R63<>\"\",Synthèse!R63,\"\")","v":"Escomptes obtenus,"}]
[null,null,{"$f":"IF(Synthèse!C64<>\"\",Synthèse!C64,\"\")","v":""},{"$f":"IF(Synthèse!D64<>\"\",Synthèse!D64,\"\")","v":"Pertes de change."},null,null,null,null,null,{"$f":"IF(Synthèse!Q64<>\"\",Synthèse!Q64,\"\")","v":""},{"$f":"IF(Synthèse!R64<>\"\",Synthèse!R64,\"\")","v":"Gains de change."}]
[null,null,{"$f":"IF(Synthèse!C65<>\"\",Synthèse!C65,\"\")","v":"Charges exceptionnelles."},null,null,null,{"$f":"SUM(G67:G69)","v":0},null,null,{"$f":"IF(Synthèse!Q65<>\"\",Synthèse!Q65,\"\")","v":"Produits exceptionnels."},null,null,{"$f":"SUM(M67:M68)","v":0}]
[null,null,{"$f":"IF(Synthèse!C66<>\"\",Synthèse!C66,\"\")","v":""},{"$f":"IF(Synthèse!D66<>\"\",Synthèse!D66,\"\")","v":"Valeurs comptables des éléments d’actif cédés,"},null,null,null,null,null,{"$f":"IF(Synthèse!Q66<>\"\",Synthèse!Q66,\"\")","v":""},{"$f":"IF(Synthèse!R66<>\"\",Synthèse!R66,\"\")","v":"Produits exceptionnels sur opérations de gestion,"}]
[null,null,{"$f":"IF(Synthèse!C67<>\"\",Synthèse!C67,\"\")","v":""},{"$f":"IF(Synthèse!D67<>\"\",Synthèse!D67,\"\")","v":"Pénalités, amendes fiscales et pénales,"},null,null,null,null,null,{"$f":"IF(Synthèse!Q67<>\"\",Synthèse!Q67,\"\")","v":""},{"$f":"IF(Synthèse!R67<>\"\",Synthèse!R67,\"\")","v":"Prix de cession d’éléments d’actif."}]
[null,null,{"$f":"IF(Synthèse!C68<>\"\",Synthèse!C68,\"\")","v":""},{"$f":"IF(Synthèse!D68<>\"\",Synthèse!D68,\"\")","v":"Dons et libéralités."},null,null,null,null,null,{"$f":"IF(Synthèse!Q68<>\"\",Synthèse!Q68,\"\")","v":""},{"$f":"IF(Synthèse!R68<>\"\",Synthèse!R68,\"\")","v":""}]
[null,null,{"$f":"IF(Synthèse!C69<>\"\",Synthèse!C69,\"\")","v":"Dotations."},null,null,null,{"$f":"SUM(G71:G73)","v":0},null,null,{"$f":"IF(Synthèse!Q69<>\"\",Synthèse!Q69,\"\")","v":"Reprises."},null,null,{"$f":"SUM(M71:M73)","v":0}]
[null,null,{"$f":"IF(Synthèse!C70<>\"\",Synthèse!C70,\"\")","v":""},{"$f":"IF(Synthèse!D70<>\"\",Synthèse!D70,\"\")","v":"Dotations aux amortissements, aux dépréciations et aux provisions – Charges d’exploitation,"},null,null,0,null,null,{"$f":"IF(Synthèse!Q70<>\"\",Synthèse!Q70,\"\")","v":""},{"$f":"IF(Synthèse!R70<>\"\",Synthèse!R70,\"\")","v":"Reprises sur amortissements, dépréciations et provisions – Produits d’exploitation,"}]
[null,null,{"$f":"IF(Synthèse!C71<>\"\",Synthèse!C71,\"\")","v":""},{"$f":"IF(Synthèse!D71<>\"\",Synthèse!D71,\"\")","v":"Dotations aux amortissements, aux dépréciations et aux provisions – Charges financières,"},null,null,null,null,null,{"$f":"IF(Synthèse!Q71<>\"\",Synthèse!Q71,\"\")","v":""},{"$f":"IF(Synthèse!R71<>\"\",Synthèse!R71,\"\")","v":"Reprises sur dépréciations et provisions – Produits financiers,"}]
[null,null,{"$f":"IF(Synthèse!C72<>\"\",Synthèse!C72,\"\")","v":""},{"$f":"IF(Synthèse!D72<>\"\",Synthèse!D72,\"\")","v":"Dotations aux amortissements, aux dépréciations et aux provisions – Charges exceptionnelles,"},null,null,null,null,null,{"$f":"IF(Synthèse!Q72<>\"\",Synthèse!Q72,\"\")","v":""},{"$f":"IF(Synthèse!R72<>\"\",Synthèse!R72,\"\")","v":"Reprises sur dépréciations et provisions – Produits"}]
[null,null,null,null,null,null,null,null,null,{"$f":"IF(Synthèse!Q73<>\"\",Synthèse!Q73,\"\")","v":"Transferts de charges."},null,null,{"$f":"SUM(M75:M77)","v":0}]
[null,null,null,null,null,null,null,null,null,{"$f":"IF(Synthèse!Q74<>\"\",Synthèse!Q74,\"\")","v":""},{"$f":"IF(Synthèse!R74<>\"\",Synthèse!R74,\"\")","v":"Transferts de charges d’exploitation,"}]
[null,null,null,null,null,null,null,null,null,{"$f":"IF(Synthèse!Q75<>\"\",Synthèse!Q75,\"\")","v":""},{"$f":"IF(Synthèse!R75<>\"\",Synthèse!R75,\"\")","v":"Transferts de charges financières,"}]
[null,null,null,null,null,null,null,null,null,{"$f":"IF(Synthèse!Q76<>\"\",Synthèse!Q76,\"\")","v":""},{"$f":"IF(Synthèse!R76<>\"\",Synthèse!R76,\"\")","v":"Transferts de charges exceptionnelles."}]
[]
[null,null,"Charges fixes",null,null,null,{"$f":"G70+G13+G66+G61+G57+G51+G42+G27","v":{"$error":"#REF!"}}]
[null,null,"Charges variables",null,null,null,{"$f":"G10+G34","v":{"$error":"#REF!"}}]
[]
[null,null,null,null,null,null,{"$f":"G7","v":"Année 0"},null,null,null,null,null,{"$f":"G82","v":"Année 0"}]
[null,"Total des charges",null,null,null,null,{"$f":"SUM(G70,G66,G61,G57,G51,G42,G34,G27,G8)","v":{"$error":"#REF!"}},null,"Total des produits",null,null,null,{"$f":"SUM(M74,M70,M66,M61,M34,M8)","v":{"$error":"#REF!"}}]
[]
[null,"Solde créditeur : bénéfice",null,null,null,null,{"$f":"IF(M83>G83,M83-G83,\"\")","v":{"$error":"#REF!"}},null,"Solde débiteur : perte",null,null,null,{"$f":"IF(G83>M83,G83-M83,\"\")","v":{"$error":"#REF!"}}]
[]
[]
[null,null,null,null,null,null,{"$f":"G82","v":"Année 0"}]
[null,"Résultat net avant impôts",null,null,null,null,{"$f":"M83-G83","v":{"$error":"#REF!"}}]

{"sheet":"Boutiques","index":32,"n_rows":89,"n_cols":13,"rows_kept":89,"cut":false,"hidden":true,"merged":[[82,1,82,5],[82,8,82,11],[1,1,1,12],[5,1,5,6],[5,8,5,12]]}
[]
[null,"Boutiques"]
[]
[null,"Clé de répartition",null,null,null,null,{"$f":"Activités!Q19","v":{"$error":"#REF!"}}]
[]
[null,"Charges",null,null,null,null,null,null,"Produits"]
[null,null,null,null,null,null,"Année 0",null,null,null,null,null,{"$f":"G7","v":"Année 0"}]
[null,null,{"$f":"IF(Synthèse!C7<>\"\",Synthèse!C7,\"\")","v":"Achats"},null,{"$f":"IF(Synthèse!E7<>\"\",Synthèse!E7,\"\")","v":""},null,{"$f":"SUM(G9,G15)","v":{"$error":"#REF!"}},null,null,{"$f":"IF(Synthèse!Q7<>\"\",Synthèse!Q7,\"\")","v":"Ventes."},null,null,{"$f":"SUM(M9:M14)","v":{"$error":"#REF!"}}]
[null,null,{"$f":"IF(Synthèse!C8<>\"\",Synthèse!C8,\"\")","v":""},{"$f":"IF(Synthèse!D8<>\"\",Synthèse!D8,\"\")","v":"Achats stockés :"},null,null,{"$f":"SUM(G10:G14)","v":{"$error":"#REF!"}},null,null,{"$f":"IF(Synthèse!Q8<>\"\",Synthèse!Q8,\"\")","v":""},{"$f":"IF(Synthèse!R8<>\"\",Synthèse!R8,\"\")","v":"Ventes de produits finis"},null,{"$f":"'Ventes Produits'!L5","v":{"$error":"#REF!"}}]
[null,null,{"$f":"IF(Synthèse!C9<>\"\",Synthèse!C9,\"\")","v":""},{"$f":"IF(Synthèse!D9<>\"\",Synthèse!D9,\"\")","v":""},{"$f":"IF(Synthèse!E9<>\"\",Synthèse!E9,\"\")","v":"Achats de marchandises,"},null,{"$f":"Stock!Z4+Boutiques!G4*Stock!W4","v":{"$error":"#REF!"}},null,null,{"$f":"IF(Synthèse!Q9<>\"\",Synthèse!Q9,\"\")","v":""},{"$f":"IF(Synthèse!R9<>\"\",Synthèse!R9,\"\")","v":"Ventes de matières premières"},null,{"$f":"'Ventes Stock'!M5-SUM('Ventes Stock'!#REF!)","v":{"$error":"#REF!"}}]
[null,null,{"$f":"IF(Synthèse!C10<>\"\",Synthèse!C10,\"\")","v":""},{"$f":"IF(Synthèse!D10<>\"\",Synthèse!D10,\"\")","v":""},{"$f":"IF(Synthèse!E10<>\"\",Synthèse!E10,\"\")","v":"Achats de matières premières,"},null,null,null,null,{"$f":"IF(Synthèse!Q10<>\"\",Synthèse!Q10,\"\")","v":""}]
[null,null,{"$f":"IF(Synthèse!C11<>\"\",Synthèse!C11,\"\")","v":""},{"$f":"IF(Synthèse!D11<>\"\",Synthèse!D11,\"\")","v":""},{"$f":"IF(Synthèse!E11<>\"\",Synthèse!E11,\"\")","v":"Achats d’emballages,"},null,null,null,null,{"$f":"IF(Synthèse!Q11<>\"\",Synthèse!Q11,\"\")","v":""}]
[null,null,{"$f":"IF(Synthèse!C12<>\"\",Synthèse!C12,\"\")","v":""},{"$f":"IF(Synthèse!D12<>\"\",Synthèse!D12,\"\")","v":""},{"$f":"IF(Synthèse!E12<>\"\",Synthèse!E12,\"\")","v":"Achats de fournitures consommables :"},null,{"$f":"Consommables!Z4+Consommables!W4*Boutiques!G4","v":{"$error":"#REF!"}},null,null,{"$f":"IF(Synthèse!Q12<>\"\",Synthèse!Q12,\"\")","v":""},{"$f":"IF(Synthèse!R12<>\"\",Synthèse!R12,\"\")","v":"Prestations de services"},null,0]
[null,null,{"$f":"IF(Synthèse!C13<>\"\",Synthèse!C13,\"\")","v":""},{"$f":"IF(Synthèse!D13<>\"\",Synthèse!D13,\"\")","v":""},{"$f":"IF(Synthèse!E13<>\"\",Synthèse!E13,\"\")","v":"Achats d’études, équipements, travaux."},null,0,null,null,{"$f":"IF(Synthèse!Q13<>\"\",Synthèse!Q13,\"\")","v":""},{"$f":"IF(Synthèse!R13<>\"\",Synthèse!R13,\"\")","v":"Produits et activités annexes"},null,{"$f":"SUM(M15:M25)","v":0}]
[null,null,{"$f":"IF(Synthèse!C14<>\"\",Synthèse!C14,\"\")","v":""},{"$f":"IF(Synthèse!D14<>\"\",Synthèse!D14,\"\")","v":"Achats non stockés :"},null,null,{"$f":"SUM(G16:G20)","v":0},null,null,{"$f":"IF(Synthèse!Q14<>\"\",Synthèse!Q14,\"\")","v":""},{"$f":"IF(Synthèse!R14<>\"\",Synthèse!R14,\"\")","v":""},{"$f":"IF(Synthèse!S14<>\"\",Synthèse!S14,\"\")","v":"Locations"},0]
[null,null,{"$f":"IF(Synthèse!C15<>\"\",Synthèse!C15,\"\")","v":""},{"$f":"IF(Synthèse!D15<>\"\",Synthèse!D15,\"\")","v":""},{"$f":"IF(Synthèse!E15<>\"\",Synthèse!E15,\"\")","v":"Eau,"},null,null,null,null,{"$f":"IF(Synthèse!Q15<>\"\",Synthèse!Q15,\"\")","v":""},{"$f":"IF(Synthèse!R15<>\"\",Synthèse!R15,\"\")","v":""},{"$f":"IF(Synthèse!S15<>\"\",Synthèse!S15,\"\")","v":""}]
[null,null,{"$f":"IF(Synthèse!C16<>\"\",Synthèse!C16,\"\")","v":""},{"$f":"IF(Synthèse!D16<>\"\",Synthèse!D16,\"\")","v":""},{"$f":"IF(Synthèse!E16<>\"\",Synthèse!E16,\"\")","v":"Energie,"},null,null,null,null,{"$f":"IF(Synthèse!Q16<>\"\",Synthèse!Q16,\"\")","v":""},{"$f":"IF(Synthèse!R16<>\"\",Synthèse!R16,\"\")","v":""},{"$f":"IF(Synthèse!S16<>\"\",Synthèse!S16,\"\")","v":""}]
[null,null,{"$f":"IF(Synthèse!C17<>\"\",Synthèse!C17,\"\")","v":""},{"$f":"IF(Synthèse!D17<>\"\",Synthèse!D17,\"\")","v":""},{"$f":"IF(Synthèse!E17<>\"\",Synthèse!E17,\"\")","v":"Carburant,"},null,null,null,null,{"$f":"IF(Synthèse!Q17<>\"\",Synthèse!Q17,\"\")","v":""},{"$f":"IF(Synthèse!R17<>\"\",Synthèse!R17,\"\")","v":""},{"$f":"IF(Synthèse!S17<>\"\",Synthèse!S17,\"\")","v":""}]
[null,null,{"$f":"IF(Synthèse!C18<>\"\",Synthèse!C18,\"\")","v":""},{"$f":"IF(Synthèse!D18<>\"\",Synthèse!D18,\"\")","v":""},{"$f":"IF(Synthèse!E18<>\"\",Synthèse!E18,\"\")","v":"Fournitures administratives,"},null,null,null,null,{"$f":"IF(Synthèse!Q18<>\"\",Synthèse!Q18,\"\")","v":""},{"$f":"IF(Synthèse!R18<>\"\",Synthèse!R18,\"\")","v":""},{"$f":"IF(Synthèse!S18<>\"\",Synthèse!S18,\"\")","v":""}]
[null,null,{"$f":"IF(Synthèse!C19<>\"\",Synthèse!C19,\"\")","v":""},{"$f":"IF(Synthèse!D19<>\"\",Synthèse!D19,\"\")","v":""},{"$f":"IF(Synthèse!E19<>\"\",Synthèse!E19,\"\")","v":"Fournitures d’entretien, petit équipement."},null,null,null,null,{"$f":"IF(Synthèse!Q19<>\"\",Synthèse!Q19,\"\")","v":""},{"$f":"IF(Synthèse!R19<>\"\",Synthèse!R19,\"\")","v":""},{"$f":"IF(Synthèse!S19<>\"\",Synthèse!S19,\"\")","v":""}]
[null,null,null,null,null,null,null,null,null,null,null,{"$f":"IF(Synthèse!S20<>\"\",Synthèse!S20,\"\")","v":"Abonnements"},0]
[]
[]
[]
[]
[null,null,null,null,null,null,null,null,null,null,{"$f":"IF(Synthèse!R25<>\"\",Synthèse!R25,\"\")","v":""}]
[null,null,{"$f":"IF(Synthèse!C26<>\"\",Synthèse!C26,\"\")","v":"Services extérieurs."},null,null,null,{"$f":"SUM(G28:G33)","v":{"$error":"#REF!"}}]
[null,null,{"$f":"IF(Synthèse!C27<>\"\",Synthèse!C27,\"\")","v":""},{"$f":"IF(Synthèse!D27<>\"\",Synthèse!D27,\"\")","v":"Locations immobilières et mobilières,"},null,null,{"$f":"Loyers!Z4+Loyers!W4*Boutiques!G4","v":{"$error":"#REF!"}}]
[null,null,{"$f":"IF(Synthèse!C28<>\"\",Synthèse!C28,\"\")","v":""},{"$f":"IF(Synthèse!D28<>\"\",Synthèse!D28,\"\")","v":"Redevances de crédit bail,"}]
[null,null,{"$f":"IF(Synthèse!C29<>\"\",Synthèse!C29,\"\")","v":""},{"$f":"IF(Synthèse!D29<>\"\",Synthèse!D29,\"\")","v":"Charges locatives et de copropriété,"},null,null,null,null,null,{"$f":"IF(Synthèse!Q29<>\"\",Synthèse!Q29,\"\")","v":""},{"$f":"IF(Synthèse!R29<>\"\",Synthèse!R29,\"\")","v":""},{"$f":"IF(Synthèse!S29<>\"\",Synthèse!S29,\"\")","v":""}]
[null,null,{"$f":"IF(Synthèse!C30<>\"\",Synthèse!C30,\"\")","v":""},{"$f":"IF(Synthèse!D30<>\"\",Synthèse!D30,\"\")","v":"Entretien et réparations,"},null,null,null,null,null,{"$f":"IF(Synthèse!Q30<>\"\",Synthèse!Q30,\"\")","v":""},{"$f":"IF(Synthèse!R30<>\"\",Synthèse!R30,\"\")","v":""},{"$f":"IF(Synthèse!S30<>\"\",Synthèse!S30,\"\")","v":""}]
[null,null,{"$f":"IF(Synthèse!C31<>\"\",Synthèse!C31,\"\")","v":""},{"$f":"IF(Synthèse!D31<>\"\",Synthèse!D31,\"\")","v":"Assurances,"},null,null,null,null,null,{"$f":"IF(Synthèse!Q31<>\"\",Synthèse!Q31,\"\")","v":""},{"$f":"IF(Synthèse!R31<>\"\",Synthèse!R31,\"\")","v":""},{"$f":"IF(Synthèse!S31<>\"\",Synthèse!S31,\"\")","v":""}]
[null,null,{"$f":"IF(Synthèse!C32<>\"\",Synthèse!C32,\"\")","v":""},{"$f":"IF(Synthèse!D32<>\"\",Synthèse!D32,\"\")","v":"Etudes et recherches."},null,null,null,null,null,{"$f":"IF(Synthèse!Q32<>\"\",Synthèse!Q32,\"\")","v":""},{"$f":"IF(Synthèse!R32<>\"\",Synthèse!R32,\"\")","v":""},{"$f":"IF(Synthèse!S32<>\"\",Synthèse!S32,\"\")","v":""}]
[null,null,{"$f":"IF(Synthèse!C33<>\"\",Synthèse!C33,\"\")","v":"Autres services extérieurs."},null,null,null,{"$f":"SUM(G35:G41)","v":{"$error":"#REF!"}},null,null,{"$f":"IF(Synthèse!Q33<>\"\",Synthèse!Q33,\"\")","v":"Autres produits de gestion courante."},null,null,{"$f":"SUM(M35:M36)","v":0}]
[null,null,{"$f":"IF(Synthèse!C34<>\"\",Synthèse!C34,\"\")","v":""},{"$f":"IF(Synthèse!D34<>\"\",Synthèse!D34,\"\")","v":"Frais extérieurs, publicité, déplacements, …"},null,null,{"$f":"G4*'Charges Ext'!W4+'Charges Ext'!Z4","v":{"$error":"#REF!"}},null,null,{"$f":"IF(Synthèse!Q34<>\"\",Synthèse!Q34,\"\")","v":""},{"$f":"IF(Synthèse!R34<>\"\",Synthèse!R34,\"\")","v":"Redevances reçues pour brevets, licences, marques,"}]
[null,null,{"$f":"IF(Synthèse!C35<>\"\",Synthèse!C35,\"\")","v":""},{"$f":"IF(Synthèse!D35<>\"\",Synthèse!D35,\"\")","v":"Honoraires et rémunérations d’intermédiaires,"},null,null,null,null,null,{"$f":"IF(Synthèse!Q35<>\"\",Synthèse!Q35,\"\")","v":""},{"$f":"IF(Synthèse!R35<>\"\",Synthèse!R35,\"\")","v":"Revenus des immeubles."}]
[null,null,{"$f":"IF(Synthèse!C36<>\"\",Synthèse!C36,\"\")","v":""},{"$f":"IF(Synthèse!D36<>\"\",Synthèse!D36,\"\")","v":"Publicité, relations publiques,"},null,null,null,null,null,{"$f":"IF(Synthèse!Q36<>\"\",Synthèse!Q36,\"\")","v":""},{"$f":"IF(Synthèse!R36<>\"\",Synthèse!R36,\"\")","v":""},{"$f":"IF(Synthèse!S36<>\"\",Synthèse!S36,\"\")","v":""}]
[null,null,{"$f":"IF(Synthèse!C37<>\"\",Synthèse!C37,\"\")","v":""},{"$f":"IF(Synthèse!D37<>\"\",Synthèse!D37,\"\")","v":"Transports de biens et transports du personnel,"},null,null,null,null,null,{"$f":"IF(Synthèse!Q37<>\"\",Synthèse!Q37,\"\")","v":""},{"$f":"IF(Synthèse!R37<>\"\",Synthèse!R37,\"\")","v":""},{"$f":"IF(Synthèse!S37<>\"\",Synthèse!S37,\"\")","v":""}]
[null,null,{"$f":"IF(Synthèse!C38<>\"\",Synthèse!C38,\"\")","v":""},{"$f":"IF(Synthèse!D38<>\"\",Synthèse!D38,\"\")","v":"Déplacements, missions, réceptions,"},null,null,null,null,null,{"$f":"IF(Synthèse!Q38<>\"\",Synthèse!Q38,\"\")","v":""},{"$f":"IF(Synthèse!R38<>\"\",Synthèse!R38,\"\")","v":""},{"$f":"IF(Synthèse!S38<>\"\",Synthèse!S38,\"\")","v":""}]
[null,null,{"$f":"IF(Synthèse!C39<>\"\",Synthèse!C39,\"\")","v":""},{"$f":"IF(Synthèse!D39<>\"\",Synthèse!D39,\"\")","v":"Frais postaux et de télécommunications,"},null,null,null,null,null,{"$f":"IF(Synthèse!Q39<>\"\",Synthèse!Q39,\"\")","v":""},{"$f":"IF(Synthèse!R39<>\"\",Synthèse!R39,\"\")","v":""},{"$f":"IF(Synthèse!S39<>\"\",Synthèse!S39,\"\")","v":""}]
[null,null,{"$f":"IF(Synthèse!C40<>\"\",Synthèse!C40,\"\")","v":""},{"$f":"IF(Synthèse!D40<>\"\",Synthèse!D40,\"\")","v":"Services bancaires."},null,null,null,null,null,{"$f":"IF(Synthèse!Q40<>\"\",Synthèse!Q40,\"\")","v":""},{"$f":"IF(Synthèse!R40<>\"\",Synthèse!R40,\"\")","v":""},{"$f":"IF(Synthèse!S40<>\"\",Synthèse!S40,\"\")","v":""}]
[null,null,{"$f":"IF(Synthèse!C41<>\"\",Synthèse!C41,\"\")","v":"Impôts, taxes et versements assimilés."},null,null,null,{"$f":"SUM(G43:G50)","v":0},null,null,{"$f":"IF(Synthèse!Q41<>\"\",Synthèse!Q41,\"\")","v":""},{"$f":"IF(Synthèse!R41<>\"\",Synthèse!R41,\"\")","v":""},{"$f":"IF(Synthèse!S41<>\"\",Synthèse!S41,\"\")","v":""}]
[null,null,{"$f":"IF(Synthèse!C42<>\"\",Synthèse!C42,\"\")","v":""},{"$f":"IF(Synthèse!D42<>\"\",Synthèse!D42,\"\")","v":"CET,"},null,null,null,null,null,{"$f":"IF(Synthèse!Q42<>\"\",Synthèse!Q42,\"\")","v":""},{"$f":"IF(Synthèse!R42<>\"\",Synthèse!R42,\"\")","v":""},{"$f":"IF(Synthèse!S42<>\"\",Synthèse!S42,\"\")","v":""}]
[null,null,{"$f":"IF(Synthèse!C43<>\"\",Synthèse!C43,\"\")","v":""},{"$f":"IF(Synthèse!D43<>\"\",Synthèse!D43,\"\")","v":"Taxe sur les salaires,"},null,null,null,null,null,{"$f":"IF(Synthèse!Q43<>\"\",Synthèse!Q43,\"\")","v":""},{"$f":"IF(Synthèse!R43<>\"\",Synthèse!R43,\"\")","v":""},{"$f":"IF(Synthèse!S43<>\"\",Synthèse!S43,\"\")","v":""}]
[null,null,{"$f":"IF(Synthèse!C44<>\"\",Synthèse!C44,\"\")","v":""},{"$f":"IF(Synthèse!D44<>\"\",Synthèse!D44,\"\")","v":"Taxe d’apprentissage,"},null,null,null,null,null,{"$f":"IF(Synthèse!Q44<>\"\",Synthèse!Q44,\"\")","v":""},{"$f":"IF(Synthèse!R44<>\"\",Synthèse!R44,\"\")","v":""},{"$f":"IF(Synthèse!S44<>\"\",Synthèse!S44,\"\")","v":""}]
[null,null,{"$f":"IF(Synthèse!C45<>\"\",Synthèse!C45,\"\")","v":""},{"$f":"IF(Synthèse!D45<>\"\",Synthèse!D45,\"\")","v":"Droits d’enregistrement,"},null,null,null,null,null,{"$f":"IF(Synthèse!Q45<>\"\",Synthèse!Q45,\"\")","v":""},{"$f":"IF(Synthèse!R45<>\"\",Synthèse!R45,\"\")","v":""},{"$f":"IF(Synthèse!S45<>\"\",Synthèse!S45,\"\")","v":""}]
[null,null,{"$f":"IF(Synthèse!C46<>\"\",Synthèse!C46,\"\")","v":""},{"$f":"IF(Synthèse!D46<>\"\",Synthèse!D46,\"\")","v":"Impôts locaux,"},null,null,null,null,null,{"$f":"IF(Synthèse!Q46<>\"\",Synthèse!Q46,\"\")","v":""},{"$f":"IF(Synthèse!R46<>\"\",Synthèse!R46,\"\")","v":""},{"$f":"IF(Synthèse!S46<>\"\",Synthèse!S46,\"\")","v":""}]
[null,null,{"$f":"IF(Synthèse!C47<>\"\",Synthèse!C47,\"\")","v":""},{"$f":"IF(Synthèse!D47<>\"\",Synthèse!D47,\"\")","v":"Contribution à la formation continue,"},null,null,null,null,null,{"$f":"IF(Synthèse!Q47<>\"\",Synthèse!Q47,\"\")","v":""},{"$f":"IF(Synthèse!R47<>\"\",Synthèse!R47,\"\")","v":""},{"$f":"IF(Synthèse!S47<>\"\",Synthèse!S47,\"\")","v":""}]
[null,null,{"$f":"IF(Synthèse!C48<>\"\",Synthèse!C48,\"\")","v":""},{"$f":"IF(Synthèse!D48<>\"\",Synthèse!D48,\"\")","v":"Contribution sociale de solidarité,"},null,null,null,null,null,{"$f":"IF(Synthèse!Q48<>\"\",Synthèse!Q48,\"\")","v":""},{"$f":"IF(Synthèse!R48<>\"\",Synthèse!R48,\"\")","v":""},{"$f":"IF(Synthèse!S48<>\"\",Synthèse!S48,\"\")","v":""}]
[null,null,{"$f":"IF(Synthèse!C49<>\"\",Synthèse!C49,\"\")","v":""},{"$f":"IF(Synthèse!D49<>\"\",Synthèse!D49,\"\")","v":"Timbres fiscaux."},null,null,null,null,null,{"$f":"IF(Synthèse!Q49<>\"\",Synthèse!Q49,\"\")","v":""},{"$f":"IF(Synthèse!R49<>\"\",Synthèse!R49,\"\")","v":""},{"$f":"IF(Synthèse!S49<>\"\",Synthèse!S49,\"\")","v":""}]
[null,null,{"$f":"IF(Synthèse!C50<>\"\",Synthèse!C50,\"\")","v":"Charges de personnel."},null,null,null,{"$f":"SUM(G52:G56)","v":13734.301600000003},null,null,{"$f":"IF(Synthèse!Q50<>\"\",Synthèse!Q50,\"\")","v":""},{"$f":"IF(Synthèse!R50<>\"\",Synthèse!R50,\"\")","v":""},{"$f":"IF(Synthèse!S50<>\"\",Synthèse!S50,\"\")","v":""}]
[null,null,{"$f":"IF(Synthèse!C51<>\"\",Synthèse!C51,\"\")","v":""},{"$f":"IF(Synthèse!D51<>\"\",Synthèse!D51,\"\")","v":"Rémunérations, salaires,"},null,null,{"$f":"Activités!Q15","v":13734.301600000003},null,null,{"$f":"IF(Synthèse!Q51<>\"\",Synthèse!Q51,\"\")","v":""},{"$f":"IF(Synthèse!R51<>\"\",Synthèse!R51,\"\")","v":""},{"$f":"IF(Synthèse!S51<>\"\",Synthèse!S51,\"\")","v":""}]
[null,null,{"$f":"IF(Synthèse!C52<>\"\",Synthèse!C52,\"\")","v":""},{"$f":"IF(Synthèse!D52<>\"\",Synthèse!D52,\"\")","v":"Congés payés,"},null,null,null,null,null,{"$f":"IF(Synthèse!Q52<>\"\",Synthèse!Q52,\"\")","v":""},{"$f":"IF(Synthèse!R52<>\"\",Synthèse!R52,\"\")","v":""},{"$f":"IF(Synthèse!S52<>\"\",Synthèse!S52,\"\")","v":""}]
[null,null,{"$f":"IF(Synthèse!C53<>\"\",Synthèse!C53,\"\")","v":""},{"$f":"IF(Synthèse!D53<>\"\",Synthèse!D53,\"\")","v":"Primes, indemnités,"},null,null,null,null,null,{"$f":"IF(Synthèse!Q53<>\"\",Synthèse!Q53,\"\")","v":""},{"$f":"IF(Synthèse!R53<>\"\",Synthèse!R53,\"\")","v":""},{"$f":"IF(Synthèse!S53<>\"\",Synthèse!S53,\"\")","v":""}]
[null,null,{"$f":"IF(Synthèse!C54<>\"\",Synthèse!C54,\"\")","v":""},{"$f":"IF(Synthèse!D54<>\"\",Synthèse!D54,\"\")","v":"Charges sociales,"},null,null,null,null,null,{"$f":"IF(Synthèse!Q54<>\"\",Synthèse!Q54,\"\")","v":""},{"$f":"IF(Synthèse!R54<>\"\",Synthèse!R54,\"\")","v":""},{"$f":"IF(Synthèse!S54<>\"\",Synthèse!S54,\"\")","v":""}]
[null,null,{"$f":"IF(Synthèse!C55<>\"\",Synthèse!C55,\"\")","v":""},{"$f":"IF(Synthèse!D55<>\"\",Synthèse!D55,\"\")","v":"Œuvres sociales."},null,null,null,null,null,{"$f":"IF(Synthèse!Q55<>\"\",Synthèse!Q55,\"\")","v":""},{"$f":"IF(Synthèse!R55<>\"\",Synthèse!R55,\"\")","v":""},{"$f":"IF(Synthèse!S55<>\"\",Synthèse!S55,\"\")","v":""}]
[null,null,{"$f":"IF(Synthèse!C56<>\"\",Synthèse!C56,\"\")","v":"Autres charges de gestion courante."},null,null,null,{"$f":"SUM(G58:G60)","v":{"$error":"#REF!"}},null,null,{"$f":"IF(Synthèse!Q56<>\"\",Synthèse!Q56,\"\")","v":""},{"$f":"IF(Synthèse!R56<>\"\",Synthèse!R56,\"\")","v":""},{"$f":"IF(Synthèse!S56<>\"\",Synthèse!S56,\"\")","v":""}]
[null,null,{"$f":"IF(Synthèse!C57<>\"\",Synthèse!C57,\"\")","v":""},{"$f":"IF(Synthèse!D57<>\"\",Synthèse!D57,\"\")","v":"Redevances versées pour brevets, licences, marques,"},null,null,{"$f":"Licences!Z4+Licences!W4*Boutiques!G4","v":{"$error":"#REF!"}},null,null,{"$f":"IF(Synthèse!Q57<>\"\",Synthèse!Q57,\"\")","v":""},{"$f":"IF(Synthèse!R57<>\"\",Synthèse!R57,\"\")","v":""},{"$f":"IF(Synthèse!S57<>\"\",Synthèse!S57,\"\")","v":""}]
[null,null,{"$f":"IF(Synthèse!C58<>\"\",Synthèse!C58,\"\")","v":""},{"$f":"IF(Synthèse!D58<>\"\",Synthèse!D58,\"\")","v":"Pertes sur créances irrécouvrables,"},null,null,null,null,null,{"$f":"IF(Synthèse!Q58<>\"\",Synthèse!Q58,\"\")","v":""},{"$f":"IF(Synthèse!R58<>\"\",Synthèse!R58,\"\")","v":""},{"$f":"IF(Synthèse!S58<>\"\",Synthèse!S58,\"\")","v":""}]
[null,null,{"$f":"IF(Synthèse!C59<>\"\",Synthèse!C59,\"\")","v":""},{"$f":"IF(Synthèse!D59<>\"\",Synthèse!D59,\"\")","v":"Charges diverses."},null,null,null,null,null,{"$f":"IF(Synthèse!Q59<>\"\",Synthèse!Q59,\"\")","v":""},{"$f":"IF(Synthèse!R59<>\"\",Synthèse!R59,\"\")","v":""},{"$f":"IF(Synthèse!S59<>\"\",Synthèse!S59,\"\")","v":""}]
[null,null,{"$f":"IF(Synthèse!C60<>\"\",Synthèse!C60,\"\")","v":"Charges financières."},null,null,null,{"$f":"SUM(G62:G65)","v":{"$error":"#REF!"}},null,null,{"$f":"IF(Synthèse!Q60<>\"\",Synthèse!Q60,\"\")","v":"Produits financiers."},null,null,{"$f":"SUM(M62:M65)","v":0}]
[null,null,{"$f":"IF(Synthèse!C61<>\"\",Synthèse!C61,\"\")","v":""},{"$f":"IF(Synthèse!D61<>\"\",Synthèse!D61,\"\")","v":"Intérêts des emprunts,"},null,null,{"$f":"Emprunt!O6*G4","v":{"$error":"#REF!"}},null,null,{"$f":"IF(Synthèse!Q61<>\"\",Synthèse!Q61,\"\")","v":""},{"$f":"IF(Synthèse!R61<>\"\",Synthèse!R61,\"\")","v":"Revenus des titres (dividendes, intérêts),"}]
[null,null,{"$f":"IF(Synthèse!C62<>\"\",Synthèse!C62,\"\")","v":""},{"$f":"IF(Synthèse!D62<>\"\",Synthèse!D62,\"\")","v":"Escomptes accordés,"},null,null,null,null,null,{"$f":"IF(Synthèse!Q62<>\"\",Synthèse!Q62,\"\")","v":""},{"$f":"IF(Synthèse!R62<>\"\",Synthèse!R62,\"\")","v":"Intérêts des prêts,"}]
[null,null,{"$f":"IF(Synthèse!C63<>\"\",Synthèse!C63,\"\")","v":""},{"$f":"IF(Synthèse!D63<>\"\",Synthèse!D63,\"\")","v":"Intérêts bancaires,"},null,null,null,null,null,{"$f":"IF(Synthèse!Q63<>\"\",Synthèse!Q63,\"\")","v":""},{"$f":"IF(Synthèse!R63<>\"\",Synthèse!R63,\"\")","v":"Escomptes obtenus,"}]
[null,null,{"$f":"IF(Synthèse!C64<>\"\",Synthèse!C64,\"\")","v":""},{"$f":"IF(Synthèse!D64<>\"\",Synthèse!D64,\"\")","v":"Pertes de change."},null,null,null,null,null,{"$f":"IF(Synthèse!Q64<>\"\",Synthèse!Q64,\"\")","v":""},{"$f":"IF(Synthèse!R64<>\"\",Synthèse!R64,\"\")","v":"Gains de change."}]
[null,null,{"$f":"IF(Synthèse!C65<>\"\",Synthèse!C65,\"\")","v":"Charges exceptionnelles."},null,null,null,{"$f":"SUM(G67:G69)","v":0},null,null,{"$f":"IF(Synthèse!Q65<>\"\",Synthèse!Q65,\"\")","v":"Produits exceptionnels."},null,null,{"$f":"SUM(M67:M68)","v":0}]
[null,null,{"$f":"IF(Synthèse!C66<>\"\",Synthèse!C66,\"\")","v":""},{"$f":"IF(Synthèse!D66<>\"\",Synthèse!D66,\"\")","v":"Valeurs comptables des éléments d’actif cédés,"},null,null,null,null,null,{"$f":"IF(Synthèse!Q66<>\"\",Synthèse!Q66,\"\")","v":""},{"$f":"IF(Synthèse!R66<>\"\",Synthèse!R66,\"\")","v":"Produits exceptionnels sur opérations de gestion,"}]
[null,null,{"$f":"IF(Synthèse!C67<>\"\",Synthèse!C67,\"\")","v":""},{"$f":"IF(Synthèse!D67<>\"\",Synthèse!D67,\"\")","v":"Pénalités, amendes fiscales et pénales,"},null,null,null,null,null,{"$f":"IF(Synthèse!Q67<>\"\",Synthèse!Q67,\"\")","v":""},{"$f":"IF(Synthèse!R67<>\"\",Synthèse!R67,\"\")","v":"Prix de cession d’éléments d’actif."}]
[null,null,{"$f":"IF(Synthèse!C68<>\"\",Synthèse!C68,\"\")","v":""},{"$f":"IF(Synthèse!D68<>\"\",Synthèse!D68,\"\")","v":"Dons et libéralités."},null,null,null,null,null,{"$f":"IF(Synthèse!Q68<>\"\",Synthèse!Q68,\"\")","v":""},{"$f":"IF(Synthèse!R68<>\"\",Synthèse!R68,\"\")","v":""}]
[null,null,{"$f":"IF(Synthèse!C69<>\"\",Synthèse!C69,\"\")","v":"Dotations."},null,null,null,{"$f":"SUM(G71:G73)","v":0},null,null,{"$f":"IF(Synthèse!Q69<>\"\",Synthèse!Q69,\"\")","v":"Reprises."},null,null,{"$f":"SUM(M71:M73)","v":0}]
[null,null,{"$f":"IF(Synthèse!C70<>\"\",Synthèse!C70,\"\")","v":""},{"$f":"IF(Synthèse!D70<>\"\",Synthèse!D70,\"\")","v":"Dotations aux amortissements, aux dépréciations et aux provisions – Charges d’exploitation,"},null,null,0,null,null,{"$f":"IF(Synthèse!Q70<>\"\",Synthèse!Q70,\"\")","v":""},{"$f":"IF(Synthèse!R70<>\"\",Synthèse!R70,\"\")","v":"Reprises sur amortissements, dépréciations et provisions – Produits d’exploitation,"}]
[null,null,{"$f":"IF(Synthèse!C71<>\"\",Synthèse!C71,\"\")","v":""},{"$f":"IF(Synthèse!D71<>\"\",Synthèse!D71,\"\")","v":"Dotations aux amortissements, aux dépréciations et aux provisions – Charges financières,"},null,null,null,null,null,{"$f":"IF(Synthèse!Q71<>\"\",Synthèse!Q71,\"\")","v":""},{"$f":"IF(Synthèse!R71<>\"\",Synthèse!R71,\"\")","v":"Reprises sur dépréciations et provisions – Produits financiers,"}]
[null,null,{"$f":"IF(Synthèse!C72<>\"\",Synthèse!C72,\"\")","v":""},{"$f":"IF(Synthèse!D72<>\"\",Synthèse!D72,\"\")","v":"Dotations aux amortissements, aux dépréciations et aux provisions – Charges exceptionnelles,"},null,null,null,null,null,{"$f":"IF(Synthèse!Q72<>\"\",Synthèse!Q72,\"\")","v":""},{"$f":"IF(Synthèse!R72<>\"\",Synthèse!R72,\"\")","v":"Reprises sur dépréciations et provisions – Produits"}]
[null,null,null,null,null,null,null,null,null,{"$f":"IF(Synthèse!Q73<>\"\",Synthèse!Q73,\"\")","v":"Transferts de charges."},null,null,{"$f":"SUM(M75:M77)","v":0}]
[null,null,null,null,null,null,null,null,null,{"$f":"IF(Synthèse!Q74<>\"\",Synthèse!Q74,\"\")","v":""},{"$f":"IF(Synthèse!R74<>\"\",Synthèse!R74,\"\")","v":"Transferts de charges d’exploitation,"}]
[null,null,null,null,null,null,null,null,null,{"$f":"IF(Synthèse!Q75<>\"\",Synthèse!Q75,\"\")","v":""},{"$f":"IF(Synthèse!R75<>\"\",Synthèse!R75,\"\")","v":"Transferts de charges financières,"}]
[null,null,null,null,null,null,null,null,null,{"$f":"IF(Synthèse!Q76<>\"\",Synthèse!Q76,\"\")","v":""},{"$f":"IF(Synthèse!R76<>\"\",Synthèse!R76,\"\")","v":"Transferts de charges exceptionnelles."}]
[]
[null,null,"Charges fixes",null,null,null,{"$f":"G70+G13+G66+G61+G57+G51+G42+G27","v":{"$error":"#REF!"}}]
[null,null,"Charges variables",null,null,null,{"$f":"G10+G34","v":{"$error":"#REF!"}}]
[]
[null,null,null,null,null,null,{"$f":"G7","v":"Année 0"},null,null,null,null,null,{"$f":"G82","v":"Année 0"}]
[null,"Total des charges",null,null,null,null,{"$f":"SUM(G70,G66,G61,G57,G51,G42,G34,G27,G8)","v":{"$error":"#REF!"}},null,"Total des produits",null,null,null,{"$f":"SUM(M74,M70,M66,M61,M34,M8)","v":{"$error":"#REF!"}}]
[]
[null,"Solde créditeur : bénéfice",null,null,null,null,{"$f":"IF(M83>G83,M83-G83,\"\")","v":{"$error":"#REF!"}},null,"Solde débiteur : perte",null,null,null,{"$f":"IF(G83>M83,G83-M83,\"\")","v":{"$error":"#REF!"}}]
[]
[]
[null,null,null,null,null,null,{"$f":"G82","v":"Année 0"}]
[null,"Résultat net avant impôts",null,null,null,null,{"$f":"M83-G83","v":{"$error":"#REF!"}}]

{"sheet":"Coworking","index":33,"n_rows":89,"n_cols":13,"rows_kept":89,"cut":false,"hidden":true,"merged":[[82,1,82,5],[82,8,82,11],[1,1,1,12],[5,1,5,6],[5,8,5,12]]}
[]
[null,"Coworking"]
[]
[null,"Clé de répartition",null,null,null,null,{"$f":"Activités!U19","v":{"$error":"#REF!"}}]
[]
[null,"Charges",null,null,null,null,null,null,"Produits"]
[null,null,null,null,null,null,"Année 0",null,null,null,null,null,{"$f":"G7","v":"Année 0"}]
[null,null,{"$f":"IF(Synthèse!C7<>\"\",Synthèse!C7,\"\")","v":"Achats"},null,{"$f":"IF(Synthèse!E7<>\"\",Synthèse!E7,\"\")","v":""},null,{"$f":"SUM(G9,G15)","v":{"$error":"#REF!"}},null,null,{"$f":"IF(Synthèse!Q7<>\"\",Synthèse!Q7,\"\")","v":"Ventes."},null,null,{"$f":"SUM(M9:M14)","v":{"$error":"#REF!"}}]
[null,null,{"$f":"IF(Synthèse!C8<>\"\",Synthèse!C8,\"\")","v":""},{"$f":"IF(Synthèse!D8<>\"\",Synthèse!D8,\"\")","v":"Achats stockés :"},null,null,{"$f":"SUM(G10:G14)","v":{"$error":"#REF!"}},null,null,{"$f":"IF(Synthèse!Q8<>\"\",Synthèse!Q8,\"\")","v":""},{"$f":"IF(Synthèse!R8<>\"\",Synthèse!R8,\"\")","v":"Ventes de produits finis"},null,{"$f":"'Ventes Produits'!L5","v":{"$error":"#REF!"}}]
[null,null,{"$f":"IF(Synthèse!C9<>\"\",Synthèse!C9,\"\")","v":""},{"$f":"IF(Synthèse!D9<>\"\",Synthèse!D9,\"\")","v":""},{"$f":"IF(Synthèse!E9<>\"\",Synthèse!E9,\"\")","v":"Achats de marchandises,"},null,{"$f":"Stock!AA4+Coworking!G4*Stock!W4","v":{"$error":"#REF!"}},null,null,{"$f":"IF(Synthèse!Q9<>\"\",Synthèse!Q9,\"\")","v":""},{"$f":"IF(Synthèse!R9<>\"\",Synthèse!R9,\"\")","v":"Ventes de matières premières"},null,0]
[null,null,{"$f":"IF(Synthèse!C10<>\"\",Synthèse!C10,\"\")","v":""},{"$f":"IF(Synthèse!D10<>\"\",Synthèse!D10,\"\")","v":""},{"$f":"IF(Synthèse!E10<>\"\",Synthèse!E10,\"\")","v":"Achats de matières premières,"},null,null,null,null,{"$f":"IF(Synthèse!Q10<>\"\",Synthèse!Q10,\"\")","v":""}]
[null,null,{"$f":"IF(Synthèse!C11<>\"\",Synthèse!C11,\"\")","v":""},{"$f":"IF(Synthèse!D11<>\"\",Synthèse!D11,\"\")","v":""},{"$f":"IF(Synthèse!E11<>\"\",Synthèse!E11,\"\")","v":"Achats d’emballages,"},null,null,null,null,{"$f":"IF(Synthèse!Q11<>\"\",Synthèse!Q11,\"\")","v":""}]
[null,null,{"$f":"IF(Synthèse!C12<>\"\",Synthèse!C12,\"\")","v":""},{"$f":"IF(Synthèse!D12<>\"\",Synthèse!D12,\"\")","v":""},{"$f":"IF(Synthèse!E12<>\"\",Synthèse!E12,\"\")","v":"Achats de fournitures consommables :"},null,{"$f":"Consommables!AA4+Consommables!W4*Coworking!G4","v":{"$error":"#REF!"}},null,null,{"$f":"IF(Synthèse!Q12<>\"\",Synthèse!Q12,\"\")","v":""},{"$f":"IF(Synthèse!R12<>\"\",Synthèse!R12,\"\")","v":"Prestations de services"},null,{"$f":"Prestations!M12*Pilotage!M36","v":0}]
[null,null,{"$f":"IF(Synthèse!C13<>\"\",Synthèse!C13,\"\")","v":""},{"$f":"IF(Synthèse!D13<>\"\",Synthèse!D13,\"\")","v":""},{"$f":"IF(Synthèse!E13<>\"\",Synthèse!E13,\"\")","v":"Achats d’études, équipements, travaux."},null,0,null,null,{"$f":"IF(Synthèse!Q13<>\"\",Synthèse!Q13,\"\")","v":""},{"$f":"IF(Synthèse!R13<>\"\",Synthèse!R13,\"\")","v":"Produits et activités annexes"},null,{"$f":"SUM(M15:M25)","v":0}]
[null,null,{"$f":"IF(Synthèse!C14<>\"\",Synthèse!C14,\"\")","v":""},{"$f":"IF(Synthèse!D14<>\"\",Synthèse!D14,\"\")","v":"Achats non stockés :"},null,null,{"$f":"SUM(G16:G20)","v":0},null,null,{"$f":"IF(Synthèse!Q14<>\"\",Synthèse!Q14,\"\")","v":""},{"$f":"IF(Synthèse!R14<>\"\",Synthèse!R14,\"\")","v":""},{"$f":"IF(Synthèse!S14<>\"\",Synthèse!S14,\"\")","v":"Locations"},0]
[null,null,{"$f":"IF(Synthèse!C15<>\"\",Synthèse!C15,\"\")","v":""},{"$f":"IF(Synthèse!D15<>\"\",Synthèse!D15,\"\")","v":""},{"$f":"IF(Synthèse!E15<>\"\",Synthèse!E15,\"\")","v":"Eau,"},null,null,null,null,{"$f":"IF(Synthèse!Q15<>\"\",Synthèse!Q15,\"\")","v":""},{"$f":"IF(Synthèse!R15<>\"\",Synthèse!R15,\"\")","v":""},{"$f":"IF(Synthèse!S15<>\"\",Synthèse!S15,\"\")","v":""}]
[null,null,{"$f":"IF(Synthèse!C16<>\"\",Synthèse!C16,\"\")","v":""},{"$f":"IF(Synthèse!D16<>\"\",Synthèse!D16,\"\")","v":""},{"$f":"IF(Synthèse!E16<>\"\",Synthèse!E16,\"\")","v":"Energie,"},null,null,null,null,{"$f":"IF(Synthèse!Q16<>\"\",Synthèse!Q16,\"\")","v":""},{"$f":"IF(Synthèse!R16<>\"\",Synthèse!R16,\"\")","v":""},{"$f":"IF(Synthèse!S16<>\"\",Synthèse!S16,\"\")","v":""}]
[null,null,{"$f":"IF(Synthèse!C17<>\"\",Synthèse!C17,\"\")","v":""},{"$f":"IF(Synthèse!D17<>\"\",Synthèse!D17,\"\")","v":""},{"$f":"IF(Synthèse!E17<>\"\",Synthèse!E17,\"\")","v":"Carburant,"},null,null,null,null,{"$f":"IF(Synthèse!Q17<>\"\",Synthèse!Q17,\"\")","v":""},{"$f":"IF(Synthèse!R17<>\"\",Synthèse!R17,\"\")","v":""},{"$f":"IF(Synthèse!S17<>\"\",Synthèse!S17,\"\")","v":""}]
[null,null,{"$f":"IF(Synthèse!C18<>\"\",Synthèse!C18,\"\")","v":""},{"$f":"IF(Synthèse!D18<>\"\",Synthèse!D18,\"\")","v":""},{"$f":"IF(Synthèse!E18<>\"\",Synthèse!E18,\"\")","v":"Fournitures administratives,"},null,null,null,null,{"$f":"IF(Synthèse!Q18<>\"\",Synthèse!Q18,\"\")","v":""},{"$f":"IF(Synthèse!R18<>\"\",Synthèse!R18,\"\")","v":""},{"$f":"IF(Synthèse!S18<>\"\",Synthèse!S18,\"\")","v":""}]
[null,null,{"$f":"IF(Synthèse!C19<>\"\",Synthèse!C19,\"\")","v":""},{"$f":"IF(Synthèse!D19<>\"\",Synthèse!D19,\"\")","v":""},{"$f":"IF(Synthèse!E19<>\"\",Synthèse!E19,\"\")","v":"Fournitures d’entretien, petit équipement."},null,null,null,null,{"$f":"IF(Synthèse!Q19<>\"\",Synthèse!Q19,\"\")","v":""},{"$f":"IF(Synthèse!R19<>\"\",Synthèse!R19,\"\")","v":""},{"$f":"IF(Synthèse!S19<>\"\",Synthèse!S19,\"\")","v":""}]
[null,null,null,null,null,null,null,null,null,null,null,{"$f":"IF(Synthèse!S20<>\"\",Synthèse!S20,\"\")","v":"Abonnements"},0]
[]
[]
[]
[]
[null,null,null,null,null,null,null,null,null,null,{"$f":"IF(Synthèse!R25<>\"\",Synthèse!R25,\"\")","v":""}]
[null,null,{"$f":"IF(Synthèse!C26<>\"\",Synthèse!C26,\"\")","v":"Services extérieurs."},null,null,null,{"$f":"SUM(G28:G33)","v":{"$error":"#REF!"}}]
[null,null,{"$f":"IF(Synthèse!C27<>\"\",Synthèse!C27,\"\")","v":""},{"$f":"IF(Synthèse!D27<>\"\",Synthèse!D27,\"\")","v":"Locations immobilières et mobilières,"},null,null,{"$f":"Loyers!AA4+Loyers!W4*Coworking!G4","v":{"$error":"#REF!"}}]
[null,null,{"$f":"IF(Synthèse!C28<>\"\",Synthèse!C28,\"\")","v":""},{"$f":"IF(Synthèse!D28<>\"\",Synthèse!D28,\"\")","v":"Redevances de crédit bail,"}]
[null,null,{"$f":"IF(Synthèse!C29<>\"\",Synthèse!C29,\"\")","v":""},{"$f":"IF(Synthèse!D29<>\"\",Synthèse!D29,\"\")","v":"Charges locatives et de copropriété,"},null,null,null,null,null,{"$f":"IF(Synthèse!Q29<>\"\",Synthèse!Q29,\"\")","v":""},{"$f":"IF(Synthèse!R29<>\"\",Synthèse!R29,\"\")","v":""},{"$f":"IF(Synthèse!S29<>\"\",Synthèse!S29,\"\")","v":""}]
[null,null,{"$f":"IF(Synthèse!C30<>\"\",Synthèse!C30,\"\")","v":""},{"$f":"IF(Synthèse!D30<>\"\",Synthèse!D30,\"\")","v":"Entretien et réparations,"},null,null,null,null,null,{"$f":"IF(Synthèse!Q30<>\"\",Synthèse!Q30,\"\")","v":""},{"$f":"IF(Synthèse!R30<>\"\",Synthèse!R30,\"\")","v":""},{"$f":"IF(Synthèse!S30<>\"\",Synthèse!S30,\"\")","v":""}]
[null,null,{"$f":"IF(Synthèse!C31<>\"\",Synthèse!C31,\"\")","v":""},{"$f":"IF(Synthèse!D31<>\"\",Synthèse!D31,\"\")","v":"Assurances,"},null,null,null,null,null,{"$f":"IF(Synthèse!Q31<>\"\",Synthèse!Q31,\"\")","v":""},{"$f":"IF(Synthèse!R31<>\"\",Synthèse!R31,\"\")","v":""},{"$f":"IF(Synthèse!S31<>\"\",Synthèse!S31,\"\")","v":""}]
[null,null,{"$f":"IF(Synthèse!C32<>\"\",Synthèse!C32,\"\")","v":""},{"$f":"IF(Synthèse!D32<>\"\",Synthèse!D32,\"\")","v":"Etudes et recherches."},null,null,null,null,null,{"$f":"IF(Synthèse!Q32<>\"\",Synthèse!Q32,\"\")","v":""},{"$f":"IF(Synthèse!R32<>\"\",Synthèse!R32,\"\")","v":""},{"$f":"IF(Synthèse!S32<>\"\",Synthèse!S32,\"\")","v":""}]
[null,null,{"$f":"IF(Synthèse!C33<>\"\",Synthèse!C33,\"\")","v":"Autres services extérieurs."},null,null,null,{"$f":"SUM(G35:G41)","v":{"$error":"#REF!"}},null,null,{"$f":"IF(Synthèse!Q33<>\"\",Synthèse!Q33,\"\")","v":"Autres produits de gestion courante."},null,null,{"$f":"SUM(M35:M36)","v":0}]
[null,null,{"$f":"IF(Synthèse!C34<>\"\",Synthèse!C34,\"\")","v":""},{"$f":"IF(Synthèse!D34<>\"\",Synthèse!D34,\"\")","v":"Frais extérieurs, publicité, déplacements, …"},null,null,{"$f":"G4*'Charges Ext'!W4+'Charges Ext'!AA4","v":{"$error":"#REF!"}},null,null,{"$f":"IF(Synthèse!Q34<>\"\",Synthèse!Q34,\"\")","v":""},{"$f":"IF(Synthèse!R34<>\"\",Synthèse!R34,\"\")","v":"Redevances reçues pour brevets, licences, marques,"}]
[null,null,{"$f":"IF(Synthèse!C35<>\"\",Synthèse!C35,\"\")","v":""},{"$f":"IF(Synthèse!D35<>\"\",Synthèse!D35,\"\")","v":"Honoraires et rémunérations d’intermédiaires,"},null,null,null,null,null,{"$f":"IF(Synthèse!Q35<>\"\",Synthèse!Q35,\"\")","v":""},{"$f":"IF(Synthèse!R35<>\"\",Synthèse!R35,\"\")","v":"Revenus des immeubles."}]
[null,null,{"$f":"IF(Synthèse!C36<>\"\",Synthèse!C36,\"\")","v":""},{"$f":"IF(Synthèse!D36<>\"\",Synthèse!D36,\"\")","v":"Publicité, relations publiques,"},null,null,null,null,null,{"$f":"IF(Synthèse!Q36<>\"\",Synthèse!Q36,\"\")","v":""},{"$f":"IF(Synthèse!R36<>\"\",Synthèse!R36,\"\")","v":""},{"$f":"IF(Synthèse!S36<>\"\",Synthèse!S36,\"\")","v":""}]
[null,null,{"$f":"IF(Synthèse!C37<>\"\",Synthèse!C37,\"\")","v":""},{"$f":"IF(Synthèse!D37<>\"\",Synthèse!D37,\"\")","v":"Transports de biens et transports du personnel,"},null,null,null,null,null,{"$f":"IF(Synthèse!Q37<>\"\",Synthèse!Q37,\"\")","v":""},{"$f":"IF(Synthèse!R37<>\"\",Synthèse!R37,\"\")","v":""},{"$f":"IF(Synthèse!S37<>\"\",Synthèse!S37,\"\")","v":""}]
[null,null,{"$f":"IF(Synthèse!C38<>\"\",Synthèse!C38,\"\")","v":""},{"$f":"IF(Synthèse!D38<>\"\",Synthèse!D38,\"\")","v":"Déplacements, missions, réceptions,"},null,null,null,null,null,{"$f":"IF(Synthèse!Q38<>\"\",Synthèse!Q38,\"\")","v":""},{"$f":"IF(Synthèse!R38<>\"\",Synthèse!R38,\"\")","v":""},{"$f":"IF(Synthèse!S38<>\"\",Synthèse!S38,\"\")","v":""}]
[null,null,{"$f":"IF(Synthèse!C39<>\"\",Synthèse!C39,\"\")","v":""},{"$f":"IF(Synthèse!D39<>\"\",Synthèse!D39,\"\")","v":"Frais postaux et de télécommunications,"},null,null,null,null,null,{"$f":"IF(Synthèse!Q39<>\"\",Synthèse!Q39,\"\")","v":""},{"$f":"IF(Synthèse!R39<>\"\",Synthèse!R39,\"\")","v":""},{"$f":"IF(Synthèse!S39<>\"\",Synthèse!S39,\"\")","v":""}]
[null,null,{"$f":"IF(Synthèse!C40<>\"\",Synthèse!C40,\"\")","v":""},{"$f":"IF(Synthèse!D40<>\"\",Synthèse!D40,\"\")","v":"Services bancaires."},null,null,null,null,null,{"$f":"IF(Synthèse!Q40<>\"\",Synthèse!Q40,\"\")","v":""},{"$f":"IF(Synthèse!R40<>\"\",Synthèse!R40,\"\")","v":""},{"$f":"IF(Synthèse!S40<>\"\",Synthèse!S40,\"\")","v":""}]
[null,null,{"$f":"IF(Synthèse!C41<>\"\",Synthèse!C41,\"\")","v":"Impôts, taxes et versements assimilés."},null,null,null,{"$f":"SUM(G43:G50)","v":0},null,null,{"$f":"IF(Synthèse!Q41<>\"\",Synthèse!Q41,\"\")","v":""},{"$f":"IF(Synthèse!R41<>\"\",Synthèse!R41,\"\")","v":""},{"$f":"IF(Synthèse!S41<>\"\",Synthèse!S41,\"\")","v":""}]
[null,null,{"$f":"IF(Synthèse!C42<>\"\",Synthèse!C42,\"\")","v":""},{"$f":"IF(Synthèse!D42<>\"\",Synthèse!D42,\"\")","v":"CET,"},null,null,null,null,null,{"$f":"IF(Synthèse!Q42<>\"\",Synthèse!Q42,\"\")","v":""},{"$f":"IF(Synthèse!R42<>\"\",Synthèse!R42,\"\")","v":""},{"$f":"IF(Synthèse!S42<>\"\",Synthèse!S42,\"\")","v":""}]
[null,null,{"$f":"IF(Synthèse!C43<>\"\",Synthèse!C43,\"\")","v":""},{"$f":"IF(Synthèse!D43<>\"\",Synthèse!D43,\"\")","v":"Taxe sur les salaires,"},null,null,null,null,null,{"$f":"IF(Synthèse!Q43<>\"\",Synthèse!Q43,\"\")","v":""},{"$f":"IF(Synthèse!R43<>\"\",Synthèse!R43,\"\")","v":""},{"$f":"IF(Synthèse!S43<>\"\",Synthèse!S43,\"\")","v":""}]
[null,null,{"$f":"IF(Synthèse!C44<>\"\",Synthèse!C44,\"\")","v":""},{"$f":"IF(Synthèse!D44<>\"\",Synthèse!D44,\"\")","v":"Taxe d’apprentissage,"},null,null,null,null,null,{"$f":"IF(Synthèse!Q44<>\"\",Synthèse!Q44,\"\")","v":""},{"$f":"IF(Synthèse!R44<>\"\",Synthèse!R44,\"\")","v":""},{"$f":"IF(Synthèse!S44<>\"\",Synthèse!S44,\"\")","v":""}]
[null,null,{"$f":"IF(Synthèse!C45<>\"\",Synthèse!C45,\"\")","v":""},{"$f":"IF(Synthèse!D45<>\"\",Synthèse!D45,\"\")","v":"Droits d’enregistrement,"},null,null,null,null,null,{"$f":"IF(Synthèse!Q45<>\"\",Synthèse!Q45,\"\")","v":""},{"$f":"IF(Synthèse!R45<>\"\",Synthèse!R45,\"\")","v":""},{"$f":"IF(Synthèse!S45<>\"\",Synthèse!S45,\"\")","v":""}]
[null,null,{"$f":"IF(Synthèse!C46<>\"\",Synthèse!C46,\"\")","v":""},{"$f":"IF(Synthèse!D46<>\"\",Synthèse!D46,\"\")","v":"Impôts locaux,"},null,null,null,null,null,{"$f":"IF(Synthèse!Q46<>\"\",Synthèse!Q46,\"\")","v":""},{"$f":"IF(Synthèse!R46<>\"\",Synthèse!R46,\"\")","v":""},{"$f":"IF(Synthèse!S46<>\"\",Synthèse!S46,\"\")","v":""}]
[null,null,{"$f":"IF(Synthèse!C47<>\"\",Synthèse!C47,\"\")","v":""},{"$f":"IF(Synthèse!D47<>\"\",Synthèse!D47,\"\")","v":"Contribution à la formation continue,"},null,null,null,null,null,{"$f":"IF(Synthèse!Q47<>\"\",Synthèse!Q47,\"\")","v":""},{"$f":"IF(Synthèse!R47<>\"\",Synthèse!R47,\"\")","v":""},{"$f":"IF(Synthèse!S47<>\"\",Synthèse!S47,\"\")","v":""}]
[null,null,{"$f":"IF(Synthèse!C48<>\"\",Synthèse!C48,\"\")","v":""},{"$f":"IF(Synthèse!D48<>\"\",Synthèse!D48,\"\")","v":"Contribution sociale de solidarité,"},null,null,null,null,null,{"$f":"IF(Synthèse!Q48<>\"\",Synthèse!Q48,\"\")","v":""},{"$f":"IF(Synthèse!R48<>\"\",Synthèse!R48,\"\")","v":""},{"$f":"IF(Synthèse!S48<>\"\",Synthèse!S48,\"\")","v":""}]
[null,null,{"$f":"IF(Synthèse!C49<>\"\",Synthèse!C49,\"\")","v":""},{"$f":"IF(Synthèse!D49<>\"\",Synthèse!D49,\"\")","v":"Timbres fiscaux."},null,null,null,null,null,{"$f":"IF(Synthèse!Q49<>\"\",Synthèse!Q49,\"\")","v":""},{"$f":"IF(Synthèse!R49<>\"\",Synthèse!R49,\"\")","v":""},{"$f":"IF(Synthèse!S49<>\"\",Synthèse!S49,\"\")","v":""}]
[null,null,{"$f":"IF(Synthèse!C50<>\"\",Synthèse!C50,\"\")","v":"Charges de personnel."},null,null,null,{"$f":"SUM(G52:G56)","v":2287.3836000000001},null,null,{"$f":"IF(Synthèse!Q50<>\"\",Synthèse!Q50,\"\")","v":""},{"$f":"IF(Synthèse!R50<>\"\",Synthèse!R50,\"\")","v":""},{"$f":"IF(Synthèse!S50<>\"\",Synthèse!S50,\"\")","v":""}]
[null,null,{"$f":"IF(Synthèse!C51<>\"\",Synthèse!C51,\"\")","v":""},{"$f":"IF(Synthèse!D51<>\"\",Synthèse!D51,\"\")","v":"Rémunérations, salaires,"},null,null,{"$f":"Activités!U15","v":2287.3836000000001},null,null,{"$f":"IF(Synthèse!Q51<>\"\",Synthèse!Q51,\"\")","v":""},{"$f":"IF(Synthèse!R51<>\"\",Synthèse!R51,\"\")","v":""},{"$f":"IF(Synthèse!S51<>\"\",Synthèse!S51,\"\")","v":""}]
[null,null,{"$f":"IF(Synthèse!C52<>\"\",Synthèse!C52,\"\")","v":""},{"$f":"IF(Synthèse!D52<>\"\",Synthèse!D52,\"\")","v":"Congés payés,"},null,null,null,null,null,{"$f":"IF(Synthèse!Q52<>\"\",Synthèse!Q52,\"\")","v":""},{"$f":"IF(Synthèse!R52<>\"\",Synthèse!R52,\"\")","v":""},{"$f":"IF(Synthèse!S52<>\"\",Synthèse!S52,\"\")","v":""}]
[null,null,{"$f":"IF(Synthèse!C53<>\"\",Synthèse!C53,\"\")","v":""},{"$f":"IF(Synthèse!D53<>\"\",Synthèse!D53,\"\")","v":"Primes, indemnités,"},null,null,null,null,null,{"$f":"IF(Synthèse!Q53<>\"\",Synthèse!Q53,\"\")","v":""},{"$f":"IF(Synthèse!R53<>\"\",Synthèse!R53,\"\")","v":""},{"$f":"IF(Synthèse!S53<>\"\",Synthèse!S53,\"\")","v":""}]
[null,null,{"$f":"IF(Synthèse!C54<>\"\",Synthèse!C54,\"\")","v":""},{"$f":"IF(Synthèse!D54<>\"\",Synthèse!D54,\"\")","v":"Charges sociales,"},null,null,null,null,null,{"$f":"IF(Synthèse!Q54<>\"\",Synthèse!Q54,\"\")","v":""},{"$f":"IF(Synthèse!R54<>\"\",Synthèse!R54,\"\")","v":""},{"$f":"IF(Synthèse!S54<>\"\",Synthèse!S54,\"\")","v":""}]
[null,null,{"$f":"IF(Synthèse!C55<>\"\",Synthèse!C55,\"\")","v":""},{"$f":"IF(Synthèse!D55<>\"\",Synthèse!D55,\"\")","v":"Œuvres sociales."},null,null,null,null,null,{"$f":"IF(Synthèse!Q55<>\"\",Synthèse!Q55,\"\")","v":""},{"$f":"IF(Synthèse!R55<>\"\",Synthèse!R55,\"\")","v":""},{"$f":"IF(Synthèse!S55<>\"\",Synthèse!S55,\"\")","v":""}]
[null,null,{"$f":"IF(Synthèse!C56<>\"\",Synthèse!C56,\"\")","v":"Autres charges de gestion courante."},null,null,null,{"$f":"SUM(G58:G60)","v":{"$error":"#REF!"}},null,null,{"$f":"IF(Synthèse!Q56<>\"\",Synthèse!Q56,\"\")","v":""},{"$f":"IF(Synthèse!R56<>\"\",Synthèse!R56,\"\")","v":""},{"$f":"IF(Synthèse!S56<>\"\",Synthèse!S56,\"\")","v":""}]
[null,null,{"$f":"IF(Synthèse!C57<>\"\",Synthèse!C57,\"\")","v":""},{"$f":"IF(Synthèse!D57<>\"\",Synthèse!D57,\"\")","v":"Redevances versées pour brevets, licences, marques,"},null,null,{"$f":"Licences!AA4+Licences!W4*Coworking!G4","v":{"$error":"#REF!"}},null,null,{"$f":"IF(Synthèse!Q57<>\"\",Synthèse!Q57,\"\")","v":""},{"$f":"IF(Synthèse!R57<>\"\",Synthèse!R57,\"\")","v":""},{"$f":"IF(Synthèse!S57<>\"\",Synthèse!S57,\"\")","v":""}]
[null,null,{"$f":"IF(Synthèse!C58<>\"\",Synthèse!C58,\"\")","v":""},{"$f":"IF(Synthèse!D58<>\"\",Synthèse!D58,\"\")","v":"Pertes sur créances irrécouvrables,"},null,null,null,null,null,{"$f":"IF(Synthèse!Q58<>\"\",Synthèse!Q58,\"\")","v":""},{"$f":"IF(Synthèse!R58<>\"\",Synthèse!R58,\"\")","v":""},{"$f":"IF(Synthèse!S58<>\"\",Synthèse!S58,\"\")","v":""}]
[null,null,{"$f":"IF(Synthèse!C59<>\"\",Synthèse!C59,\"\")","v":""},{"$f":"IF(Synthèse!D59<>\"\",Synthèse!D59,\"\")","v":"Charges diverses."},null,null,null,null,null,{"$f":"IF(Synthèse!Q59<>\"\",Synthèse!Q59,\"\")","v":""},{"$f":"IF(Synthèse!R59<>\"\",Synthèse!R59,\"\")","v":""},{"$f":"IF(Synthèse!S59<>\"\",Synthèse!S59,\"\")","v":""}]
[null,null,{"$f":"IF(Synthèse!C60<>\"\",Synthèse!C60,\"\")","v":"Charges financières."},null,null,null,{"$f":"SUM(G62:G65)","v":{"$error":"#REF!"}},null,null,{"$f":"IF(Synthèse!Q60<>\"\",Synthèse!Q60,\"\")","v":"Produits financiers."},null,null,{"$f":"SUM(M62:M65)","v":0}]
[null,null,{"$f":"IF(Synthèse!C61<>\"\",Synthèse!C61,\"\")","v":""},{"$f":"IF(Synthèse!D61<>\"\",Synthèse!D61,\"\")","v":"Intérêts des emprunts,"},null,null,{"$f":"Emprunt!O6*G4","v":{"$error":"#REF!"}},null,null,{"$f":"IF(Synthèse!Q61<>\"\",Synthèse!Q61,\"\")","v":""},{"$f":"IF(Synthèse!R61<>\"\",Synthèse!R61,\"\")","v":"Revenus des titres (dividendes, intérêts),"}]
[null,null,{"$f":"IF(Synthèse!C62<>\"\",Synthèse!C62,\"\")","v":""},{"$f":"IF(Synthèse!D62<>\"\",Synthèse!D62,\"\")","v":"Escomptes accordés,"},null,null,null,null,null,{"$f":"IF(Synthèse!Q62<>\"\",Synthèse!Q62,\"\")","v":""},{"$f":"IF(Synthèse!R62<>\"\",Synthèse!R62,\"\")","v":"Intérêts des prêts,"}]
[null,null,{"$f":"IF(Synthèse!C63<>\"\",Synthèse!C63,\"\")","v":""},{"$f":"IF(Synthèse!D63<>\"\",Synthèse!D63,\"\")","v":"Intérêts bancaires,"},null,null,null,null,null,{"$f":"IF(Synthèse!Q63<>\"\",Synthèse!Q63,\"\")","v":""},{"$f":"IF(Synthèse!R63<>\"\",Synthèse!R63,\"\")","v":"Escomptes obtenus,"}]
[null,null,{"$f":"IF(Synthèse!C64<>\"\",Synthèse!C64,\"\")","v":""},{"$f":"IF(Synthèse!D64<>\"\",Synthèse!D64,\"\")","v":"Pertes de change."},null,null,null,null,null,{"$f":"IF(Synthèse!Q64<>\"\",Synthèse!Q64,\"\")","v":""},{"$f":"IF(Synthèse!R64<>\"\",Synthèse!R64,\"\")","v":"Gains de change."}]
[null,null,{"$f":"IF(Synthèse!C65<>\"\",Synthèse!C65,\"\")","v":"Charges exceptionnelles."},null,null,null,{"$f":"SUM(G67:G69)","v":0},null,null,{"$f":"IF(Synthèse!Q65<>\"\",Synthèse!Q65,\"\")","v":"Produits exceptionnels."},null,null,{"$f":"SUM(M67:M68)","v":0}]
[null,null,{"$f":"IF(Synthèse!C66<>\"\",Synthèse!C66,\"\")","v":""},{"$f":"IF(Synthèse!D66<>\"\",Synthèse!D66,\"\")","v":"Valeurs comptables des éléments d’actif cédés,"},null,null,null,null,null,{"$f":"IF(Synthèse!Q66<>\"\",Synthèse!Q66,\"\")","v":""},{"$f":"IF(Synthèse!R66<>\"\",Synthèse!R66,\"\")","v":"Produits exceptionnels sur opérations de gestion,"}]
[null,null,{"$f":"IF(Synthèse!C67<>\"\",Synthèse!C67,\"\")","v":""},{"$f":"IF(Synthèse!D67<>\"\",Synthèse!D67,\"\")","v":"Pénalités, amendes fiscales et pénales,"},null,null,null,null,null,{"$f":"IF(Synthèse!Q67<>\"\",Synthèse!Q67,\"\")","v":""},{"$f":"IF(Synthèse!R67<>\"\",Synthèse!R67,\"\")","v":"Prix de cession d’éléments d’actif."}]
[null,null,{"$f":"IF(Synthèse!C68<>\"\",Synthèse!C68,\"\")","v":""},{"$f":"IF(Synthèse!D68<>\"\",Synthèse!D68,\"\")","v":"Dons et libéralités."},null,null,null,null,null,{"$f":"IF(Synthèse!Q68<>\"\",Synthèse!Q68,\"\")","v":""},{"$f":"IF(Synthèse!R68<>\"\",Synthèse!R68,\"\")","v":""}]
[null,null,{"$f":"IF(Synthèse!C69<>\"\",Synthèse!C69,\"\")","v":"Dotations."},null,null,null,{"$f":"SUM(G71:G73)","v":0},null,null,{"$f":"IF(Synthèse!Q69<>\"\",Synthèse!Q69,\"\")","v":"Reprises."},null,null,{"$f":"SUM(M71:M73)","v":0}]
[null,null,{"$f":"IF(Synthèse!C70<>\"\",Synthèse!C70,\"\")","v":""},{"$f":"IF(Synthèse!D70<>\"\",Synthèse!D70,\"\")","v":"Dotations aux amortissements, aux dépréciations et aux provisions – Charges d’exploitation,"},null,null,0,null,null,{"$f":"IF(Synthèse!Q70<>\"\",Synthèse!Q70,\"\")","v":""},{"$f":"IF(Synthèse!R70<>\"\",Synthèse!R70,\"\")","v":"Reprises sur amortissements, dépréciations et provisions – Produits d’exploitation,"}]
[null,null,{"$f":"IF(Synthèse!C71<>\"\",Synthèse!C71,\"\")","v":""},{"$f":"IF(Synthèse!D71<>\"\",Synthèse!D71,\"\")","v":"Dotations aux amortissements, aux dépréciations et aux provisions – Charges financières,"},null,null,null,null,null,{"$f":"IF(Synthèse!Q71<>\"\",Synthèse!Q71,\"\")","v":""},{"$f":"IF(Synthèse!R71<>\"\",Synthèse!R71,\"\")","v":"Reprises sur dépréciations et provisions – Produits financiers,"}]
[null,null,{"$f":"IF(Synthèse!C72<>\"\",Synthèse!C72,\"\")","v":""},{"$f":"IF(Synthèse!D72<>\"\",Synthèse!D72,\"\")","v":"Dotations aux amortissements, aux dépréciations et aux provisions – Charges exceptionnelles,"},null,null,null,null,null,{"$f":"IF(Synthèse!Q72<>\"\",Synthèse!Q72,\"\")","v":""},{"$f":"IF(Synthèse!R72<>\"\",Synthèse!R72,\"\")","v":"Reprises sur dépréciations et provisions – Produits"}]
[null,null,null,null,null,null,null,null,null,{"$f":"IF(Synthèse!Q73<>\"\",Synthèse!Q73,\"\")","v":"Transferts de charges."},null,null,{"$f":"SUM(M75:M77)","v":0}]
[null,null,null,null,null,null,null,null,null,{"$f":"IF(Synthèse!Q74<>\"\",Synthèse!Q74,\"\")","v":""},{"$f":"IF(Synthèse!R74<>\"\",Synthèse!R74,\"\")","v":"Transferts de charges d’exploitation,"}]
[null,null,null,null,null,null,null,null,null,{"$f":"IF(Synthèse!Q75<>\"\",Synthèse!Q75,\"\")","v":""},{"$f":"IF(Synthèse!R75<>\"\",Synthèse!R75,\"\")","v":"Transferts de charges financières,"}]
[null,null,null,null,null,null,null,null,null,{"$f":"IF(Synthèse!Q76<>\"\",Synthèse!Q76,\"\")","v":""},{"$f":"IF(Synthèse!R76<>\"\",Synthèse!R76,\"\")","v":"Transferts de charges exceptionnelles."}]
[]
[null,null,"Charges fixes",null,null,null,{"$f":"G70+G13+G66+G61+G57+G51+G42+G27","v":{"$error":"#REF!"}}]
[null,null,"Charges variables",null,null,null,{"$f":"G10+G34","v":{"$error":"#REF!"}}]
[]
[null,null,null,null,null,null,{"$f":"G7","v":"Année 0"},null,null,null,null,null,{"$f":"G82","v":"Année 0"}]
[null,"Total des charges",null,null,null,null,{"$f":"SUM(G70,G66,G61,G57,G51,G42,G34,G27,G8)","v":{"$error":"#REF!"}},null,"Total des produits",null,null,null,{"$f":"SUM(M74,M70,M66,M61,M34,M8)","v":{"$error":"#REF!"}}]
[]
[null,"Solde créditeur : bénéfice",null,null,null,null,{"$f":"IF(M83>G83,M83-G83,\"\")","v":{"$error":"#REF!"}},null,"Solde débiteur : perte",null,null,null,{"$f":"IF(G83>M83,G83-M83,\"\")","v":{"$error":"#REF!"}}]
[]
[]
[null,null,null,null,null,null,{"$f":"G82","v":"Année 0"}]
[null,"Résultat net avant impôts",null,null,null,null,{"$f":"M83-G83","v":{"$error":"#REF!"}}]

{"sheet":"Travaux","index":34,"n_rows":281,"n_cols":45,"rows_kept":281,"cut":false,"hidden":false,"merged":[[0,1,0,2]]}
["Qtt","Catégorie",null,"Designation","Commentaires","Prix unitaire €","Prix Unit. From $","Prix en $","Exprimé HT","TVA","Prix HT","Prix TTC","Sous totaux TTC","Provenance","Dont charges",null,"*","FL","FC","B","CW",null,"*","FL","FC","B","CW",null,null,null,"Durée","Taux","Année 0","Année 1","Année 2","Année 3","Année 4","Année 5","Année 6","Année 7","Année 8","Année 9","Année 10","Année 11","Année 12"]
[null,null,null,null,null,null,null,null,null,null,null,null,null,null,null,null,null,null,null,null,null,null,null,null,null,null,null,null,null,null,null,null,0,1,2,3,4,5,6,7,8,9,10,11,12]
[null,null,null,null,null,null,null,null,null,null,"Total HT","Total TTC",null,null,"Charges HT",null,null,null,null,null,null,null,{"$f":"W4/$K4","v":{"$error":"#DIV/0!"}},{"$f":"X4/$K4","v":{"$error":"#DIV/0!"}},{"$f":"Y4/$K4","v":{"$error":"#DIV/0!"}},{"$f":"Z4/$K4","v":{"$error":"#DIV/0!"}},{"$f":"AA4/$K4","v":{"$error":"#DIV/0!"}},{"$f":"SUM(W3:AA3)","v":{"$error":"#DIV/0!"}},null,null,null,null,"Total DAT ","Total DAT ","Total DAT ","Total DAT ","Total DAT ","Total DAT ","Total DAT ","Total DAT ","Total DAT ","Total DAT ","Total DAT ","Total DAT ","Total DAT "]
[null,null,null,null,null,null,null,null,null,null,{"$f":"L4*(100/(100 + 100*Pilotage!$D$14))","v":0},{"$f":"SUM(M:M)","v":0},null,null,{"$f":"SUM($O$8:$O812)","v":4000},null,null,null,null,null,null,null,{"$f":"SUM(W6:W20)","v":0},{"$f":"SUM(X8:X20)","v":0},{"$f":"SUM(Y8:Y20)","v":0},{"$f":"SUM(Z8:Z20)","v":0},{"$f":"SUM(AA8:AA20)","v":0},{"$f":"SUM(W4:AA4)","v":0},null,null,null,null,{"$f":"SUM(AG8:AG108)","v":0},0,0,0,0,0,0,0,0,0,0,0,0]
[null,null,null,null,null,null,null,null,null,null,null,{"$f":"IF(L4<>SUM($L$6:$L$812),\"ERREUR Page Investissements\",\"\")","v":""},null,null,null,null,null,null,null,null,null,null,null,null,null,null,null,{"$f":"K4-AB4","v":0}]
[null,"Aléas",null,{"$f":"Pilotage!$D$17","v":0.02},null,null,{"$f":"IF(H6=\"\",\"\",H6*$G$4)","v":""},null,null,{"$f":"IF(A6=\"\",\"\",SUM(F6:G6)*Pilotage!$D$14*I6)","v":""},{"$f":"IF(A6=\"\",\"\",#REF!*(100/(100 + 100*Pilotage!$D$14)))","v":""},{"$f":"D6*SUM(K$8:K$714)*(1+Pilotage!$D$14)","v":0},{"$f":"L6","v":0},null,null,null,1,null,null,null,null,null,{"$f":"L6*Pilotage!D15","v":0},0,0,0,0]
[]
[null,"Travaux & mise aux normes",null,null,null,null,{"$f":"IF(H8=\"\",\"\",H8*Pilotage!$D$16)","v":""},null,null,{"$f":"IF(A8=\"\",\"\",SUM(F8:G8)*Pilotage!$D$14*I8)","v":""},{"$f":"IF(A8=\"\",\"\",L8*(100/(100 + 100*Pilotage!$D$14)))","v":""},{"$f":"IF(A8=\"\",\"\",(SUM(F8:G8)+J8)*A8)","v":""},null,null,null,null,null,null,null,null,null,null,{"$f":"IF($A8<>\"\",Q8*$K8,\"\")","v":""},{"$f":"IF($A8<>\"\",R8*$K8,\"\")","v":""},{"$f":"IF($A8<>\"\",S8*$K8,\"\")","v":""},{"$f":"IF($A8<>\"\",T8*$K8,\"\")","v":""},{"$f":"IF($A8<>\"\",U8*$K8,\"\")","v":""},null,null,null,{"$f":"IF(A8<>\"\",IF($AD8<>\"\",VLOOKUP($AD8,Immobilisations[],7),0),\"\")","v":""},{"$f":"IF(A8<>\"\",IF($AD8<>\"\",VLOOKUP($AD8,Immobilisations[],8),\"\"),\"\")","v":""},{"$f":"IF(AND($A8<>\"\",$AF8<>\"\"),IF(AG$2=0,0,IF(ROUNDDOWN(AG$2/($AE8+1),0)=0,$K8*$AE8/100,0)),\"\")","v":""},"",{"$f":"IF(AND($A8<>\"\",$AF8<>\"\"),IF(AI$2=0,0,IF(ROUNDDOWN(AI$2/($AE8+1),0)=0,$K8*$AE8/100,0)),\"\")","v":""},"","","","","","","","","",""]
[null,null,"Mise état des lieux",null,null,0,{"$f":"IF(H9=\"\",\"\",H9*Pilotage!$D$16)","v":""},null,0,{"$f":"IF(A9=\"\",\"\",SUM(F9:G9)*Pilotage!$D$14*I9)","v":""},{"$f":"IF(A9=\"\",\"\",L9*(100/(100 + 100*Pilotage!$D$14)))","v":""},{"$f":"IF(A9=\"\",\"\",(SUM(F9:G9)+J9)*A9)","v":""},null,null,{"$f":"IF(A9>0,IF(SUM(F9:G9)-J9<500,K9,\"\"),\"\")","v":""},null,1,null,null,null,null,null,"","","","","",null,null,"Frais d’installation",{"$f":"IF(A9<>\"\",IF($AD9<>\"\",VLOOKUP($AD9,Immobilisations[],7),0),\"\")","v":""},{"$f":"IF(A9<>\"\",IF($AD9<>\"\",VLOOKUP($AD9,Immobilisations[],8),\"\"),\"\")","v":""},"","","","","","","","","","","","",""]
[null,null,"Alarme anti intrusion",null,null,0,{"$f":"IF(H10=\"\",\"\",H10*Pilotage!$D$16)","v":""},null,1,{"$f":"IF(A10=\"\",\"\",SUM(F10:G10)*Pilotage!$D$14*I10)","v":""},{"$f":"IF(A10=\"\",\"\",L10*(100/(100 + 100*Pilotage!$D$14)))","v":""},"",null,{"$f":"IF(SUM(F10:G10)-J10<500,K10,\"\")","v":{"$error":"#VALUE!"}},{"$f":"IF(A10>0,IF(SUM(F10:G10)-J10<500,K10,\"\"),\"\")","v":""},null,1,null,null,null,null,null,"","","","","",null,null,"Matériel fixe",{"$f":"IF(A10<>\"\",IF($AD10<>\"\",VLOOKUP($AD10,Immobilisations[],7),0),\"\")","v":""},{"$f":"IF(A10<>\"\",IF($AD10<>\"\",VLOOKUP($AD10,Immobilisations[],8),\"\"),\"\")","v":""},"","","","","","","","","","","","",""]
[null,null,"Travaux et fournitures élect.",null,null,0,{"$f":"IF(H11=\"\",\"\",H11*Pilotage!$D$16)","v":""},null,1,{"$f":"IF(A11=\"\",\"\",SUM(F11:G11)*Pilotage!$D$14*I11)","v":""},{"$f":"IF(A11=\"\",\"\",L11*(100/(100 + 100*Pilotage!$D$14)))","v":""},"",null,{"$f":"IF(SUM(F11:G11)-J11<500,K11,\"\")","v":{"$error":"#VALUE!"}},2000,null,1,null,null,null,null,null,"","","","","",null,null,"Frais d’installation",{"$f":"IF(A11<>\"\",IF($AD11<>\"\",VLOOKUP($AD11,Immobilisations[],7),0),\"\")","v":""},{"$f":"IF(A11<>\"\",IF($AD11<>\"\",VLOOKUP($AD11,Immobilisations[],8),\"\"),\"\")","v":""},"","","","","","","","","","","","",""]
[null,null,"Contrôle du système électrique",null,null,0,{"$f":"IF(H12=\"\",\"\",H12*Pilotage!$D$16)","v":""},null,1,{"$f":"IF(A12=\"\",\"\",SUM(F12:G12)*Pilotage!$D$14*I12)","v":""},{"$f":"IF(A12=\"\",\"\",L12*(100/(100 + 100*Pilotage!$D$14)))","v":""},"",null,null,{"$f":"IF(A12<>\"\",IF(SUM(F12:G12)-J12<500,K12,\"\"),\"\")","v":""},null,1,null,null,null,null,null,"","","","","",null,null,"Frais d’installation",{"$f":"IF(A12<>\"\",IF($AD12<>\"\",VLOOKUP($AD12,Immobilisations[],7),0),\"\")","v":""},{"$f":"IF(A12<>\"\",IF($AD12<>\"\",VLOOKUP($AD12,Immobilisations[],8),\"\"),\"\")","v":""},"","","","","","","","","","","","",""]
[null,null,"Système incendie",null,null,0,{"$f":"IF(H13=\"\",\"\",H13*Pilotage!$D$16)","v":""},null,1,{"$f":"IF(A13=\"\",\"\",SUM(F13:G13)*Pilotage!$D$14*I13)","v":""},{"$f":"IF(A13=\"\",\"\",L13*(100/(100 + 100*Pilotage!$D$14)))","v":""},"",null,null,{"$f":"IF(A13<>\"\",IF(SUM(F13:G13)-J13<500,K13,\"\"),\"\")","v":""},null,1,null,null,null,null,null,"","","","","",null,null,null,{"$f":"IF(A13<>\"\",IF($AD13<>\"\",VLOOKUP($AD13,Immobilisations[],7),0),\"\")","v":""},{"$f":"IF(A13<>\"\",IF($AD13<>\"\",VLOOKUP($AD13,Immobilisations[],8),\"\"),\"\")","v":""},"","","","","","","","","","","","",""]
[null,null,"Instincteurs",null,null,0,{"$f":"IF(H14=\"\",\"\",H14*Pilotage!$D$16)","v":""},null,1,{"$f":"IF(A14=\"\",\"\",SUM(F14:G14)*Pilotage!$D$14*I14)","v":""},{"$f":"IF(A14=\"\",\"\",L14*(100/(100 + 100*Pilotage!$D$14)))","v":""},"",null,null,"",null,1,null,null,null,null,null,"","","","","",null,null,null,{"$f":"IF(A14<>\"\",IF($AD14<>\"\",VLOOKUP($AD14,Immobilisations[],7),0),\"\")","v":""},{"$f":"IF(A14<>\"\",IF($AD14<>\"\",VLOOKUP($AD14,Immobilisations[],8),\"\"),\"\")","v":""},"","","","","","","","","","","","",""]
[null,null,"Bloc sortie de secours",null,null,0,{"$f":"IF(H15=\"\",\"\",H15*Pilotage!$D$16)","v":""},null,1,{"$f":"IF(A15=\"\",\"\",SUM(F15:G15)*Pilotage!$D$14*I15)","v":""},{"$f":"IF(A15=\"\",\"\",L15*(100/(100 + 100*Pilotage!$D$14)))","v":""},"",null,null,"",null,1,null,null,null,null,null,"","","","","",null,null,null,{"$f":"IF(A15<>\"\",IF($AD15<>\"\",VLOOKUP($AD15,Immobilisations[],7),0),\"\")","v":""},{"$f":"IF(A15<>\"\",IF($AD15<>\"\",VLOOKUP($AD15,Immobilisations[],8),\"\"),\"\")","v":""},"","","","","","","","","","","","",""]
[null,null,"Intervention BET sécurité incendie",null,null,0,null,null,1,{"$f":"IF(A16=\"\",\"\",SUM(F16:G16)*Pilotage!$D$14*I16)","v":""},{"$f":"IF(A16=\"\",\"\",L16*(100/(100 + 100*Pilotage!$D$14)))","v":""},"",null,null,"",null,1,null,null,null,null,null,"","","","","",null,null,"Frais d’installation",{"$f":"IF(A16<>\"\",IF($AD16<>\"\",VLOOKUP($AD16,Immobilisations[],7),0),\"\")","v":""},{"$f":"IF(A16<>\"\",IF($AD16<>\"\",VLOOKUP($AD16,Immobilisations[],8),\"\"),\"\")","v":""},"","","","","","","","","","","","",""]
[null,null,"Intervention BET accessibilité",null,null,0,{"$f":"IF(H17=\"\",\"\",H17*Pilotage!$D$16)","v":""},null,1,{"$f":"IF(A17=\"\",\"\",SUM(F17:G17)*Pilotage!$D$14*I17)","v":""},{"$f":"IF(A17=\"\",\"\",L17*(100/(100 + 100*Pilotage!$D$14)))","v":""},"",null,null,"",null,1,null,null,null,null,null,"","","","","",null,null,"Frais d’installation",{"$f":"IF(A17<>\"\",IF($AD17<>\"\",VLOOKUP($AD17,Immobilisations[],7),0),\"\")","v":""},{"$f":"IF(A17<>\"\",IF($AD17<>\"\",VLOOKUP($AD17,Immobilisations[],8),\"\"),\"\")","v":""},"","","","","","","","","","","","",""]
[null,null,"Sanitaires",null,null,0,null,null,null,{"$f":"IF(A18=\"\",\"\",SUM(F18:G18)*Pilotage!$D$14*I18)","v":""},{"$f":"IF(A18=\"\",\"\",L18*(100/(100 + 100*Pilotage!$D$14)))","v":""},"",null,null,2000,null,1,null,null,null,null,null,"","","","","",null,null,"Frais d’installation",{"$f":"IF(A18<>\"\",IF($AD18<>\"\",VLOOKUP($AD18,Immobilisations[],7),0),\"\")","v":""},{"$f":"IF(A18<>\"\",IF($AD18<>\"\",VLOOKUP($AD18,Immobilisations[],8),\"\"),\"\")","v":""},"","","","","","","","","","","","",""]
[null,null,null,null,null,null,null,null,null,{"$f":"IF(A19=\"\",\"\",SUM(F19:G19)*Pilotage!$D$14*I19)","v":""},{"$f":"IF(A19=\"\",\"\",L19*(100/(100 + 100*Pilotage!$D$14)))","v":""},null,{"$f":"SUM(L9:L18)","v":0},null,"",null,null,null,null,null,null,null,"","","","","",null,null,null,{"$f":"IF(A19<>\"\",IF($AD19<>\"\",VLOOKUP($AD19,Immobilisations[],7),0),\"\")","v":""},{"$f":"IF(A19<>\"\",IF($AD19<>\"\",VLOOKUP($AD19,Immobilisations[],8),\"\"),\"\")","v":""},"","","","","","","","","","","","",""]
[null,"Installation & ameublement",null,null,null,null,null,null,null,{"$f":"IF(A20=\"\",\"\",SUM(F20:G20)*Pilotage!$D$14*I20)","v":""},{"$f":"IF(A20=\"\",\"\",L20*(100/(100 + 100*Pilotage!$D$14)))","v":""},null,null,null,"",null,null,null,null,null,null,null,"","","","","",null,null,null,{"$f":"IF(A20<>\"\",IF($AD20<>\"\",VLOOKUP($AD20,Immobilisations[],7),0),\"\")","v":""},{"$f":"IF(A20<>\"\",IF($AD20<>\"\",VLOOKUP($AD20,Immobilisations[],8),\"\"),\"\")","v":""},"","","","","","","","","","","","",""]
[null,null,null,null,null,null,null,null,null,{"$f":"IF(A21=\"\",\"\",SUM(F21:G21)*Pilotage!$D$14*I21)","v":""},{"$f":"IF(A21=\"\",\"\",L21*(100/(100 + 100*Pilotage!$D$14)))","v":""},null,null,null,{"$f":"IF(A21>0,IF(SUM(F21:G21)-J21<500,K21,\"\"),\"\")","v":""},null,null,null,null,null,null,null,null,null,null,null,null,null,null,null,{"$f":"IF(A21<>\"\",IF($AD21<>\"\",VLOOKUP($AD21,Immobilisations[],7),0),\"\")","v":""},{"$f":"IF(A21<>\"\",IF($AD21<>\"\",VLOOKUP($AD21,Immobilisations[],8),\"\"),\"\")","v":""},{"$f":"IF(AND($A21<>\"\",$AF21<>\"\"),IF(AG$2=0,0,IF(ROUNDDOWN(AG$2/($AE21+1),0)=0,$K21*$AE21/100,0)),\"\")","v":""},"",{"$f":"IF(AND($A21<>\"\",$AF21<>\"\"),IF(AI$2=0,0,IF(ROUNDDOWN(AI$2/($AE21+1),0)=0,$K21*$AE21/100,0)),\"\")","v":""},"","","","","","","","","",""]
[null,null,null,null,null,null,{"$f":"IF(H22=\"\",\"\",H22*Pilotage!$D$16)","v":""},null,null,{"$f":"IF(A22=\"\",\"\",SUM(F22:G22)*Pilotage!$D$14*I22)","v":""},{"$f":"IF(A22=\"\",\"\",L22*(100/(100 + 100*Pilotage!$D$14)))","v":""},{"$f":"IF(A22=\"\",\"\",(SUM(F22:G22)+J22)*A22)","v":""},null,null,{"$f":"IF(A22>0,IF(SUM(F22:G22)-J22<500,K22,\"\"),\"\")","v":""},null,null,null,null,null,null,null,null,null,null,null,null,null,null,null,{"$f":"IF(A22<>\"\",IF($AD22<>\"\",VLOOKUP($AD22,Immobilisations[],7),0),\"\")","v":""},{"$f":"IF(A22<>\"\",IF($AD22<>\"\",VLOOKUP($AD22,Immobilisations[],8),\"\"),\"\")","v":""},"","","","","","","","","","","","",""]
[null,null,null,null,null,null,{"$f":"IF(H23=\"\",\"\",H23*Pilotage!$D$16)","v":""},null,null,{"$f":"IF(A23=\"\",\"\",SUM(F23:G23)*Pilotage!$D$14*I23)","v":""},{"$f":"IF(A23=\"\",\"\",L23*(100/(100 + 100*Pilotage!$D$14)))","v":""},"",null,null,null,null,null,null,null,null,null,null,null,null,null,null,null,null,null,null,{"$f":"IF(A23<>\"\",IF($AD23<>\"\",VLOOKUP($AD23,Immobilisations[],7),0),\"\")","v":""},{"$f":"IF(A23<>\"\",IF($AD23<>\"\",VLOOKUP($AD23,Immobilisations[],8),\"\"),\"\")","v":""},"","","","","","","","","","","","",""]
[null,null,null,null,null,null,{"$f":"IF(H24=\"\",\"\",H24*Pilotage!$D$16)","v":""},null,null,{"$f":"IF(A24=\"\",\"\",SUM(F24:G24)*Pilotage!$D$14*I24)","v":""},{"$f":"IF(A24=\"\",\"\",L24*(100/(100 + 100*Pilotage!$D$14)))","v":""},"",null,null,null,null,null,null,null,null,null,null,null,null,null,null,null,null,null,null,{"$f":"IF(A24<>\"\",IF($AD24<>\"\",VLOOKUP($AD24,Immobilisations[],7),0),\"\")","v":""},{"$f":"IF(A24<>\"\",IF($AD24<>\"\",VLOOKUP($AD24,Immobilisations[],8),\"\"),\"\")","v":""},"","","","","","","","","","","","",""]
[null,null,null,null,null,null,{"$f":"IF(H25=\"\",\"\",H25*Pilotage!$D$16)","v":""},null,null,{"$f":"IF(A25=\"\",\"\",SUM(F25:G25)*Pilotage!$D$14*I25)","v":""},{"$f":"IF(A25=\"\",\"\",L25*(100/(100 + 100*Pilotage!$D$14)))","v":""},"",null,null,null,null,null,null,null,null,null,null,null,null,null,null,null,null,null,null,{"$f":"IF(A25<>\"\",IF($AD25<>\"\",VLOOKUP($AD25,Immobilisations[],7),0),\"\")","v":""},{"$f":"IF(A25<>\"\",IF($AD25<>\"\",VLOOKUP($AD25,Immobilisations[],8),\"\"),\"\")","v":""},"","","","","","","","","","","","",""]
[null,null,null,null,null,null,{"$f":"IF(H26=\"\",\"\",H26*Pilotage!$D$16)","v":""},null,null,{"$f":"IF(A26=\"\",\"\",SUM(F26:G26)*Pilotage!$D$14*I26)","v":""},{"$f":"IF(A26=\"\",\"\",L26*(100/(100 + 100*Pilotage!$D$14)))","v":""},"",null,null,null,null,null,null,null,null,null,null,null,null,null,null,null,null,null,null,{"$f":"IF(A26<>\"\",IF($AD26<>\"\",VLOOKUP($AD26,Immobilisations[],7),0),\"\")","v":""},{"$f":"IF(A26<>\"\",IF($AD26<>\"\",VLOOKUP($AD26,Immobilisations[],8),\"\"),\"\")","v":""},"","","","","","","","","","","","",""]
[null,null,null,null,null,null,{"$f":"IF(H27=\"\",\"\",H27*Pilotage!$D$16)","v":""},null,null,{"$f":"IF(A27=\"\",\"\",SUM(F27:G27)*Pilotage!$D$14*I27)","v":""},{"$f":"IF(A27=\"\",\"\",L27*(100/(100 + 100*Pilotage!$D$14)))","v":""},"",null,null,null,null,null,null,null,null,null,null,null,null,null,null,null,null,null,null,{"$f":"IF(A27<>\"\",IF($AD27<>\"\",VLOOKUP($AD27,Immobilisations[],7),0),\"\")","v":""},{"$f":"IF(A27<>\"\",IF($AD27<>\"\",VLOOKUP($AD27,Immobilisations[],8),\"\"),\"\")","v":""},"","","","","","","","","","","","",""]
[null,null,null,null,null,null,{"$f":"IF(H28=\"\",\"\",H28*Pilotage!$D$16)","v":""},null,null,{"$f":"IF(A28=\"\",\"\",SUM(F28:G28)*Pilotage!$D$14*I28)","v":""},{"$f":"IF(A28=\"\",\"\",L28*(100/(100 + 100*Pilotage!$D$14)))","v":""},"",null,null,null,null,null,null,null,null,null,null,null,null,null,null,null,null,null,null,{"$f":"IF(A28<>\"\",IF($AD28<>\"\",VLOOKUP($AD28,Immobilisations[],7),0),\"\")","v":""},{"$f":"IF(A28<>\"\",IF($AD28<>\"\",VLOOKUP($AD28,Immobilisations[],8),\"\"),\"\")","v":""},"","","","","","","","","","","","",""]
[null,null,null,null,null,null,{"$f":"IF(H29=\"\",\"\",H29*Pilotage!$D$16)","v":""},null,null,{"$f":"IF(A29=\"\",\"\",SUM(F29:G29)*Pilotage!$D$14*I29)","v":""},{"$f":"IF(A29=\"\",\"\",L29*(100/(100 + 100*Pilotage!$D$14)))","v":""},"",null,null,null,null,null,null,null,null,null,null,null,null,null,null,null,null,null,null,{"$f":"IF(A29<>\"\",IF($AD29<>\"\",VLOOKUP($AD29,Immobilisations[],7),0),\"\")","v":""},{"$f":"IF(A29<>\"\",IF($AD29<>\"\",VLOOKUP($AD29,Immobilisations[],8),\"\"),\"\")","v":""},"","","","","","","","","","","","",""]
[null,null,null,null,null,null,{"$f":"IF(H30=\"\",\"\",H30*Pilotage!$D$16)","v":""},null,null,{"$f":"IF(A30=\"\",\"\",SUM(F30:G30)*Pilotage!$D$14*I30)","v":""},{"$f":"IF(A30=\"\",\"\",L30*(100/(100 + 100*Pilotage!$D$14)))","v":""},"",null,null,null,null,null,null,null,null,null,null,null,null,null,null,null,null,null,null,{"$f":"IF(A30<>\"\",IF($AD30<>\"\",VLOOKUP($AD30,Immobilisations[],7),0),\"\")","v":""},{"$f":"IF(A30<>\"\",IF($AD30<>\"\",VLOOKUP($AD30,Immobilisations[],8),\"\"),\"\")","v":""},"","","","","","","","","","","","",""]
[null,null,null,null,null,null,{"$f":"IF(H31=\"\",\"\",H31*Pilotage!$D$16)","v":""},null,null,{"$f":"IF(A31=\"\",\"\",SUM(F31:G31)*Pilotage!$D$14*I31)","v":""},{"$f":"IF(A31=\"\",\"\",L31*(100/(100 + 100*Pilotage!$D$14)))","v":""},"",null,null,null,null,null,null,null,null,null,null,null,null,null,null,null,null,null,null,{"$f":"IF(A31<>\"\",IF($AD31<>\"\",VLOOKUP($AD31,Immobilisations[],7),0),\"\")","v":""},{"$f":"IF(A31<>\"\",IF($AD31<>\"\",VLOOKUP($AD31,Immobilisations[],8),\"\"),\"\")","v":""},"","","","","","","","","","","","",""]
[null,null,null,null,null,null,{"$f":"IF(H32=\"\",\"\",H32*Pilotage!$D$16)","v":""},null,null,{"$f":"IF(A32=\"\",\"\",SUM(F32:G32)*Pilotage!$D$14*I32)","v":""},{"$f":"IF(A32=\"\",\"\",L32*(100/(100 + 100*Pilotage!$D$14)))","v":""},"",null,null,null,null,null,null,null,null,null,null,null,null,null,null,null,null,null,null,{"$f":"IF(A32<>\"\",IF($AD32<>\"\",VLOOKUP($AD32,Immobilisations[],7),0),\"\")","v":""},{"$f":"IF(A32<>\"\",IF($AD32<>\"\",VLOOKUP($AD32,Immobilisations[],8),\"\"),\"\")","v":""},"","","","","","","","","","","","",""]
[null,null,null,null,null,null,null,null,null,{"$f":"IF(A33=\"\",\"\",SUM(F33:G33)*Pilotage!$D$14*I33)","v":""},{"$f":"IF(A33=\"\",\"\",L33*(100/(100 + 100*Pilotage!$D$14)))","v":""},"",null,null,null,null,null,null,null,null,null,null,null,null,null,null,null,null,null,null,{"$f":"IF(A33<>\"\",IF($AD33<>\"\",VLOOKUP($AD33,Immobilisations[],7),0),\"\")","v":""},{"$f":"IF(A33<>\"\",IF($AD33<>\"\",VLOOKUP($AD33,Immobilisations[],8),\"\"),\"\")","v":""},"","","","","","","","","","","","",""]
[null,null,null,null,null,null,null,null,null,{"$f":"IF(A34=\"\",\"\",SUM(F34:G34)*Pilotage!$D$14*I34)","v":""},{"$f":"IF(A34=\"\",\"\",L34*(100/(100 + 100*Pilotage!$D$14)))","v":""},"",null,null,null,null,null,null,null,null,null,null,null,null,null,null,null,null,null,null,{"$f":"IF(A34<>\"\",IF($AD34<>\"\",VLOOKUP($AD34,Immobilisations[],7),0),\"\")","v":""},{"$f":"IF(A34<>\"\",IF($AD34<>\"\",VLOOKUP($AD34,Immobilisations[],8),\"\"),\"\")","v":""},"","","","","","","","","","","","",""]
[null,null,null,null,null,null,null,null,null,{"$f":"IF(A35=\"\",\"\",SUM(F35:G35)*Pilotage!$D$14*I35)","v":""},{"$f":"IF(A35=\"\",\"\",L35*(100/(100 + 100*Pilotage!$D$14)))","v":""},"",null,null,null,null,null,null,null,null,null,null,null,null,null,null,null,null,null,null,{"$f":"IF(A35<>\"\",IF($AD35<>\"\",VLOOKUP($AD35,Immobilisations[],7),0),\"\")","v":""},{"$f":"IF(A35<>\"\",IF($AD35<>\"\",VLOOKUP($AD35,Immobilisations[],8),\"\"),\"\")","v":""},"","","","","","","","","","","","",""]
[null,null,null,null,null,null,null,null,null,{"$f":"IF(A36=\"\",\"\",SUM(F36:G36)*Pilotage!$D$14*I36)","v":""},{"$f":"IF(A36=\"\",\"\",L36*(100/(100 + 100*Pilotage!$D$14)))","v":""},"",null,null,null,null,null,null,null,null,null,null,null,null,null,null,null,null,null,null,{"$f":"IF(A36<>\"\",IF($AD36<>\"\",VLOOKUP($AD36,Immobilisations[],7),0),\"\")","v":""},{"$f":"IF(A36<>\"\",IF($AD36<>\"\",VLOOKUP($AD36,Immobilisations[],8),\"\"),\"\")","v":""},"","","","","","","","","","",{"$f":"IF(AND($A36<>\"\",$AF36<>\"\"),IF(AQ$2=0,0,IF(ROUNDDOWN(AQ$2/($AE36+1),0)=0,$K36*$AE36/100,0)),\"\")","v":""},"",""]
[null,null,null,null,null,null,null,null,null,{"$f":"IF(A37=\"\",\"\",SUM(F37:G37)*Pilotage!$D$14*I37)","v":""},{"$f":"IF(A37=\"\",\"\",L37*(100/(100 + 100*Pilotage!$D$14)))","v":""},"",null,null,null,null,null,null,null,null,null,null,null,null,null,null,null,null,null,null,{"$f":"IF(A37<>\"\",IF($AD37<>\"\",VLOOKUP($AD37,Immobilisations[],7),0),\"\")","v":""},{"$f":"IF(A37<>\"\",IF($AD37<>\"\",VLOOKUP($AD37,Immobilisations[],8),\"\"),\"\")","v":""},"","","","","","","","","","","","",""]
[null,null,null,null,null,null,null,null,null,{"$f":"IF(A38=\"\",\"\",SUM(F38:G38)*Pilotage!$D$14*I38)","v":""},{"$f":"IF(A38=\"\",\"\",L38*(100/(100 + 100*Pilotage!$D$14)))","v":""},null,null,null,null,null,null,null,null,null,null,null,null,null,null,null,null,null,null,null,{"$f":"IF(A38<>\"\",IF($AD38<>\"\",VLOOKUP($AD38,Immobilisations[],7),0),\"\")","v":""},{"$f":"IF(A38<>\"\",IF($AD38<>\"\",VLOOKUP($AD38,Immobilisations[],8),\"\"),\"\")","v":""},"","","","","","","","","","","","",""]
[null,null,null,null,null,null,null,null,null,{"$f":"IF(A39=\"\",\"\",SUM(F39:G39)*Pilotage!$D$14*I39)","v":""},{"$f":"IF(A39=\"\",\"\",L39*(100/(100 + 100*Pilotage!$D$14)))","v":""},null,null,null,null,null,null,null,null,null,null,null,null,null,null,null,null,null,null,null,{"$f":"IF(A39<>\"\",IF($AD39<>\"\",VLOOKUP($AD39,Immobilisations[],7),0),\"\")","v":""},{"$f":"IF(A39<>\"\",IF($AD39<>\"\",VLOOKUP($AD39,Immobilisations[],8),\"\"),\"\")","v":""},"","","","","","","","","","","","",""]
[null,null,null,null,null,null,null,null,null,{"$f":"IF(A40=\"\",\"\",SUM(F40:G40)*Pilotage!$D$14*I40)","v":""},{"$f":"IF(A40=\"\",\"\",L40*(100/(100 + 100*Pilotage!$D$14)))","v":""},null,null,null,null,null,null,null,null,null,null,null,null,null,null,null,null,null,null,null,{"$f":"IF(A40<>\"\",IF($AD40<>\"\",VLOOKUP($AD40,Immobilisations[],7),0),\"\")","v":""},{"$f":"IF(A40<>\"\",IF($AD40<>\"\",VLOOKUP($AD40,Immobilisations[],8),\"\"),\"\")","v":""},"","","","","","","","","","","","",""]
[null,null,null,null,null,null,null,null,null,{"$f":"IF(A41=\"\",\"\",SUM(F41:G41)*Pilotage!$D$14*I41)","v":""},{"$f":"IF(A41=\"\",\"\",L41*(100/(100 + 100*Pilotage!$D$14)))","v":""},null,null,null,null,null,null,null,null,null,null,null,null,null,null,null,null,null,null,null,{"$f":"IF(A41<>\"\",IF($AD41<>\"\",VLOOKUP($AD41,Immobilisations[],7),0),\"\")","v":""},{"$f":"IF(A41<>\"\",IF($AD41<>\"\",VLOOKUP($AD41,Immobilisations[],8),\"\"),\"\")","v":""},"","","","","","","","","","","","",""]
[null,null,null,null,null,null,null,null,null,{"$f":"IF(A42=\"\",\"\",SUM(F42:G42)*Pilotage!$D$14*I42)","v":""},{"$f":"IF(A42=\"\",\"\",L42*(100/(100 + 100*Pilotage!$D$14)))","v":""},null,null,null,null,null,null,null,null,null,null,null,null,null,null,null,null,null,null,null,{"$f":"IF(A42<>\"\",IF($AD42<>\"\",VLOOKUP($AD42,Immobilisations[],7),0),\"\")","v":""},{"$f":"IF(A42<>\"\",IF($AD42<>\"\",VLOOKUP($AD42,Immobilisations[],8),\"\"),\"\")","v":""},"","","","","","","","","","","","",""]
[null,null,null,null,null,null,null,null,null,{"$f":"IF(A43=\"\",\"\",SUM(F43:G43)*Pilotage!$D$14*I43)","v":""},{"$f":"IF(A43=\"\",\"\",L43*(100/(100 + 100*Pilotage!$D$14)))","v":""},null,null,null,null,null,null,null,null,null,null,null,null,null,null,null,null,null,null,null,{"$f":"IF(A43<>\"\",IF($AD43<>\"\",VLOOKUP($AD43,Immobilisations[],7),0),\"\")","v":""},{"$f":"IF(A43<>\"\",IF($AD43<>\"\",VLOOKUP($AD43,Immobilisations[],8),\"\"),\"\")","v":""},"","","","","","","","","","","","",""]
[null,null,null,null,null,null,null,null,null,{"$f":"IF(A44=\"\",\"\",SUM(F44:G44)*Pilotage!$D$14*I44)","v":""},{"$f":"IF(A44=\"\",\"\",L44*(100/(100 + 100*Pilotage!$D$14)))","v":""},null,null,null,null,null,null,null,null,null,null,null,null,null,null,null,null,null,null,null,{"$f":"IF(A44<>\"\",IF($AD44<>\"\",VLOOKUP($AD44,Immobilisations[],7),0),\"\")","v":""},{"$f":"IF(A44<>\"\",IF($AD44<>\"\",VLOOKUP($AD44,Immobilisations[],8),\"\"),\"\")","v":""},"","","","","","","","","","","","",""]
[null,null,null,null,null,null,null,null,null,{"$f":"IF(A45=\"\",\"\",SUM(F45:G45)*Pilotage!$D$14*I45)","v":""},{"$f":"IF(A45=\"\",\"\",L45*(100/(100 + 100*Pilotage!$D$14)))","v":""},null,null,null,null,null,null,null,null,null,null,null,null,null,null,null,null,null,null,null,{"$f":"IF(A45<>\"\",IF($AD45<>\"\",VLOOKUP($AD45,Immobilisations[],7),0),\"\")","v":""},{"$f":"IF(A45<>\"\",IF($AD45<>\"\",VLOOKUP($AD45,Immobilisations[],8),\"\"),\"\")","v":""},"","","","","","","","","","","","",""]
[null,null,null,null,null,null,null,null,null,{"$f":"IF(A46=\"\",\"\",SUM(F46:G46)*Pilotage!$D$14*I46)","v":""},{"$f":"IF(A46=\"\",\"\",L46*(100/(100 + 100*Pilotage!$D$14)))","v":""},null,null,null,null,null,null,null,null,null,null,null,null,null,null,null,null,null,null,null,{"$f":"IF(A46<>\"\",IF($AD46<>\"\",VLOOKUP($AD46,Immobilisations[],7),0),\"\")","v":""},{"$f":"IF(A46<>\"\",IF($AD46<>\"\",VLOOKUP($AD46,Immobilisations[],8),\"\"),\"\")","v":""},{"$f":"IF(AND($A46<>\"\",$AF46<>\"\"),IF(AG$2=0,0,IF(ROUNDDOWN(AG$2/($AE46+1),0)=0,$K46*$AE46/100,0)),\"\")","v":""},"","","","","","","","","","","",""]
[null,null,null,null,null,null,null,null,null,{"$f":"IF(A47=\"\",\"\",SUM(F47:G47)*Pilotage!$D$14*I47)","v":""},{"$f":"IF(A47=\"\",\"\",L47*(100/(100 + 100*Pilotage!$D$14)))","v":""},null,null,null,null,null,null,null,null,null,null,null,null,null,null,null,null,null,null,null,{"$f":"IF(A47<>\"\",IF($AD47<>\"\",VLOOKUP($AD47,Immobilisations[],7),0),\"\")","v":""},{"$f":"IF(A47<>\"\",IF($AD47<>\"\",VLOOKUP($AD47,Immobilisations[],8),\"\"),\"\")","v":""},"","","","","","","","","","","","",""]
[null,null,null,null,null,null,null,null,null,{"$f":"IF(A48=\"\",\"\",SUM(F48:G48)*Pilotage!$D$14*I48)","v":""},{"$f":"IF(A48=\"\",\"\",L48*(100/(100 + 100*Pilotage!$D$14)))","v":""},null,null,null,null,null,null,null,null,null,null,null,null,null,null,null,null,null,null,null,{"$f":"IF(A48<>\"\",IF($AD48<>\"\",VLOOKUP($AD48,Immobilisations[],7),0),\"\")","v":""},{"$f":"IF(A48<>\"\",IF($AD48<>\"\",VLOOKUP($AD48,Immobilisations[],8),\"\"),\"\")","v":""},"","","","","","","","","","","","",""]
[null,null,null,null,null,null,null,null,null,{"$f":"IF(A49=\"\",\"\",SUM(F49:G49)*Pilotage!$D$14*I49)","v":""},{"$f":"IF(A49=\"\",\"\",L49*(100/(100 + 100*Pilotage!$D$14)))","v":""},null,null,null,null,null,null,null,null,null,null,null,null,null,null,null,null,null,null,null,{"$f":"IF(A49<>\"\",IF($AD49<>\"\",VLOOKUP($AD49,Immobilisations[],7),0),\"\")","v":""},{"$f":"IF(A49<>\"\",IF($AD49<>\"\",VLOOKUP($AD49,Immobilisations[],8),\"\"),\"\")","v":""},"","","","","","","","","","","","",""]
[null,null,null,null,null,null,null,null,null,{"$f":"IF(A50=\"\",\"\",SUM(F50:G50)*Pilotage!$D$14*I50)","v":""},{"$f":"IF(A50=\"\",\"\",L50*(100/(100 + 100*Pilotage!$D$14)))","v":""},null,null,null,null,null,null,null,null,null,null,null,null,null,null,null,null,null,null,null,{"$f":"IF(A50<>\"\",IF($AD50<>\"\",VLOOKUP($AD50,Immobilisations[],7),0),\"\")","v":""},{"$f":"IF(A50<>\"\",IF($AD50<>\"\",VLOOKUP($AD50,Immobilisations[],8),\"\"),\"\")","v":""},"","","","","","","","","","","","",""]
[null,null,null,null,null,null,null,null,null,{"$f":"IF(A51=\"\",\"\",SUM(F51:G51)*Pilotage!$D$14*I51)","v":""},{"$f":"IF(A51=\"\",\"\",L51*(100/(100 + 100*Pilotage!$D$14)))","v":""},null,null,null,null,null,null,null,null,null,null,null,null,null,null,null,null,null,null,null,{"$f":"IF(A51<>\"\",IF($AD51<>\"\",VLOOKUP($AD51,Immobilisations[],7),0),\"\")","v":""},{"$f":"IF(A51<>\"\",IF($AD51<>\"\",VLOOKUP($AD51,Immobilisations[],8),\"\"),\"\")","v":""},"","","","","","","","","","","","",""]
[null,null,null,null,null,null,null,null,null,{"$f":"IF(A52=\"\",\"\",SUM(F52:G52)*Pilotage!$D$14*I52)","v":""},{"$f":"IF(A52=\"\",\"\",L52*(100/(100 + 100*Pilotage!$D$14)))","v":""},null,null,null,null,null,null,null,null,null,null,null,null,null,null,null,null,null,null,null,{"$f":"IF(A52<>\"\",IF($AD52<>\"\",VLOOKUP($AD52,Immobilisations[],7),0),\"\")","v":""},{"$f":"IF(A52<>\"\",IF($AD52<>\"\",VLOOKUP($AD52,Immobilisations[],8),\"\"),\"\")","v":""},"","","","","","","","","","","","",""]
[null,null,null,null,null,null,null,null,null,{"$f":"IF(A53=\"\",\"\",SUM(F53:G53)*Pilotage!$D$14*I53)","v":""},{"$f":"IF(A53=\"\",\"\",L53*(100/(100 + 100*Pilotage!$D$14)))","v":""},null,null,null,null,null,null,null,null,null,null,null,null,null,null,null,null,null,null,null,{"$f":"IF(A53<>\"\",IF($AD53<>\"\",VLOOKUP($AD53,Immobilisations[],7),0),\"\")","v":""},{"$f":"IF(A53<>\"\",IF($AD53<>\"\",VLOOKUP($AD53,Immobilisations[],8),\"\"),\"\")","v":""},"","","","","","","","","","","","",""]
[null,null,null,null,null,null,null,null,null,{"$f":"IF(A54=\"\",\"\",SUM(F54:G54)*Pilotage!$D$14*I54)","v":""},{"$f":"IF(A54=\"\",\"\",L54*(100/(100 + 100*Pilotage!$D$14)))","v":""},null,null,null,null,null,null,null,null,null,null,null,null,null,null,null,null,null,null,null,{"$f":"IF(A54<>\"\",IF($AD54<>\"\",VLOOKUP($AD54,Immobilisations[],7),0),\"\")","v":""},{"$f":"IF(A54<>\"\",IF($AD54<>\"\",VLOOKUP($AD54,Immobilisations[],8),\"\"),\"\")","v":""},"","","","","","","","","","","","",""]
[null,null,null,null,null,null,null,null,null,{"$f":"IF(A55=\"\",\"\",SUM(F55:G55)*Pilotage!$D$14*I55)","v":""},{"$f":"IF(A55=\"\",\"\",L55*(100/(100 + 100*Pilotage!$D$14)))","v":""},null,null,null,null,null,null,null,null,null,null,null,null,null,null,null,null,null,null,null,{"$f":"IF(A55<>\"\",IF($AD55<>\"\",VLOOKUP($AD55,Immobilisations[],7),0),\"\")","v":""},{"$f":"IF(A55<>\"\",IF($AD55<>\"\",VLOOKUP($AD55,Immobilisations[],8),\"\"),\"\")","v":""},"","","","","","","","","","","","",""]
[null,null,null,null,null,null,null,null,null,{"$f":"IF(A56=\"\",\"\",SUM(F56:G56)*Pilotage!$D$14*I56)","v":""},{"$f":"IF(A56=\"\",\"\",L56*(100/(100 + 100*Pilotage!$D$14)))","v":""},null,null,null,null,null,null,null,null,null,null,null,null,null,null,null,null,null,null,null,{"$f":"IF(A56<>\"\",IF($AD56<>\"\",VLOOKUP($AD56,Immobilisations[],7),0),\"\")","v":""},{"$f":"IF(A56<>\"\",IF($AD56<>\"\",VLOOKUP($AD56,Immobilisations[],8),\"\"),\"\")","v":""},"","","","","","","","","","","","",""]
[null,null,null,null,null,null,null,null,null,{"$f":"IF(A57=\"\",\"\",SUM(F57:G57)*Pilotage!$D$14*I57)","v":""},{"$f":"IF(A57=\"\",\"\",L57*(100/(100 + 100*Pilotage!$D$14)))","v":""},null,null,null,null,null,null,null,null,null,null,null,null,null,null,null,null,null,null,null,{"$f":"IF(A57<>\"\",IF($AD57<>\"\",VLOOKUP($AD57,Immobilisations[],7),0),\"\")","v":""},{"$f":"IF(A57<>\"\",IF($AD57<>\"\",VLOOKUP($AD57,Immobilisations[],8),\"\"),\"\")","v":""},"","","","","","","","","","","","",""]
[null,null,null,null,null,null,null,null,null,{"$f":"IF(A58=\"\",\"\",SUM(F58:G58)*Pilotage!$D$14*I58)","v":""},{"$f":"IF(A58=\"\",\"\",L58*(100/(100 + 100*Pilotage!$D$14)))","v":""},null,null,null,null,null,null,null,null,null,null,null,null,null,null,null,null,null,null,null,{"$f":"IF(A58<>\"\",IF($AD58<>\"\",VLOOKUP($AD58,Immobilisations[],7),0),\"\")","v":""},{"$f":"IF(A58<>\"\",IF($AD58<>\"\",VLOOKUP($AD58,Immobilisations[],8),\"\"),\"\")","v":""},"","","","","","","","","","","","",""]
[null,null,null,null,null,null,null,null,null,{"$f":"IF(A59=\"\",\"\",SUM(F59:G59)*Pilotage!$D$14*I59)","v":""},{"$f":"IF(A59=\"\",\"\",L59*(100/(100 + 100*Pilotage!$D$14)))","v":""},null,null,null,null,null,null,null,null,null,null,null,null,null,null,null,null,null,null,null,{"$f":"IF(A59<>\"\",IF($AD59<>\"\",VLOOKUP($AD59,Immobilisations[],7),0),\"\")","v":""},{"$f":"IF(A59<>\"\",IF($AD59<>\"\",VLOOKUP($AD59,Immobilisations[],8),\"\"),\"\")","v":""},"","","","","","","","","","","","",{"$f":"IF(AND($A59<>\"\",$AF59<>\"\"),IF(AS$2=0,0,IF(ROUNDDOWN(AS$2/($AE59+1),0)=0,$K59*$AE59/100,0)),\"\")","v":""}]
[null,null,null,null,null,null,null,null,null,{"$f":"IF(A60=\"\",\"\",SUM(F60:G60)*Pilotage!$D$14*I60)","v":""},{"$f":"IF(A60=\"\",\"\",L60*(100/(100 + 100*Pilotage!$D$14)))","v":""},null,null,null,null,null,null,null,null,null,null,null,null,null,null,null,null,null,null,null,{"$f":"IF(A60<>\"\",IF($AD60<>\"\",VLOOKUP($AD60,Immobilisations[],7),0),\"\")","v":""},{"$f":"IF(A60<>\"\",IF($AD60<>\"\",VLOOKUP($AD60,Immobilisations[],8),\"\"),\"\")","v":""},"","","","","","","","","","","","",""]
[null,null,null,null,null,null,null,null,null,{"$f":"IF(A61=\"\",\"\",SUM(F61:G61)*Pilotage!$D$14*I61)","v":""},{"$f":"IF(A61=\"\",\"\",L61*(100/(100 + 100*Pilotage!$D$14)))","v":""},null,null,null,null,null,null,null,null,null,null,null,null,null,null,null,null,null,null,null,{"$f":"IF(A61<>\"\",IF($AD61<>\"\",VLOOKUP($AD61,Immobilisations[],7),0),\"\")","v":""},{"$f":"IF(A61<>\"\",IF($AD61<>\"\",VLOOKUP($AD61,Immobilisations[],8),\"\"),\"\")","v":""},"","","","","","","","","","","","",""]
[null,null,null,null,null,null,null,null,null,{"$f":"IF(A62=\"\",\"\",SUM(F62:G62)*Pilotage!$D$14*I62)","v":""},{"$f":"IF(A62=\"\",\"\",L62*(100/(100 + 100*Pilotage!$D$14)))","v":""},null,null,null,null,null,null,null,null,null,null,null,null,null,null,null,null,null,null,null,{"$f":"IF(A62<>\"\",IF($AD62<>\"\",VLOOKUP($AD62,Immobilisations[],7),0),\"\")","v":""},{"$f":"IF(A62<>\"\",IF($AD62<>\"\",VLOOKUP($AD62,Immobilisations[],8),\"\"),\"\")","v":""},"","","","","","","","","","","","",""]
[null,null,null,null,null,null,null,null,null,{"$f":"IF(A63=\"\",\"\",SUM(F63:G63)*Pilotage!$D$14*I63)","v":""},{"$f":"IF(A63=\"\",\"\",L63*(100/(100 + 100*Pilotage!$D$14)))","v":""},null,null,null,null,null,null,null,null,null,null,null,null,null,null,null,null,null,null,null,{"$f":"IF(A63<>\"\",IF($AD63<>\"\",VLOOKUP($AD63,Immobilisations[],7),0),\"\")","v":""},{"$f":"IF(A63<>\"\",IF($AD63<>\"\",VLOOKUP($AD63,Immobilisations[],8),\"\"),\"\")","v":""},"","","","","","","","","","","","",""]
[null,null,null,null,null,null,null,null,null,{"$f":"IF(A64=\"\",\"\",SUM(F64:G64)*Pilotage!$D$14*I64)","v":""},{"$f":"IF(A64=\"\",\"\",L64*(100/(100 + 100*Pilotage!$D$14)))","v":""},null,null,null,null,null,null,null,null,null,null,null,null,null,null,null,null,null,null,null,{"$f":"IF(A64<>\"\",IF($AD64<>\"\",VLOOKUP($AD64,Immobilisations[],7),0),\"\")","v":""},{"$f":"IF(A64<>\"\",IF($AD64<>\"\",VLOOKUP($AD64,Immobilisations[],8),\"\"),\"\")","v":""},"","","","","","","","","","","","",""]
[null,null,null,null,null,null,null,null,null,{"$f":"IF(A65=\"\",\"\",SUM(F65:G65)*Pilotage!$D$14*I65)","v":""},{"$f":"IF(A65=\"\",\"\",L65*(100/(100 + 100*Pilotage!$D$14)))","v":""},null,null,null,null,null,null,null,null,null,null,null,null,null,null,null,null,null,null,null,{"$f":"IF(A65<>\"\",IF($AD65<>\"\",VLOOKUP($AD65,Immobilisations[],7),0),\"\")","v":""},{"$f":"IF(A65<>\"\",IF($AD65<>\"\",VLOOKUP($AD65,Immobilisations[],8),\"\"),\"\")","v":""},"","","","","","","","","","","","",""]
[null,null,null,null,null,null,null,null,null,{"$f":"IF(A66=\"\",\"\",SUM(F66:G66)*Pilotage!$D$14*I66)","v":""},{"$f":"IF(A66=\"\",\"\",L66*(100/(100 + 100*Pilotage!$D$14)))","v":""},null,null,null,null,null,null,null,null,null,null,null,null,null,null,null,null,null,null,null,{"$f":"IF(A66<>\"\",IF($AD66<>\"\",VLOOKUP($AD66,Immobilisations[],7),0),\"\")","v":""},{"$f":"IF(A66<>\"\",IF($AD66<>\"\",VLOOKUP($AD66,Immobilisations[],8),\"\"),\"\")","v":""},"","","","","","","","","","","","",""]
[null,null,null,null,null,null,null,null,null,{"$f":"IF(A67=\"\",\"\",SUM(F67:G67)*Pilotage!$D$14*I67)","v":""},{"$f":"IF(A67=\"\",\"\",L67*(100/(100 + 100*Pilotage!$D$14)))","v":""},null,null,null,null,null,null,null,null,null,null,null,null,null,null,null,null,null,null,null,{"$f":"IF(A67<>\"\",IF($AD67<>\"\",VLOOKUP($AD67,Immobilisations[],7),0),\"\")","v":""},{"$f":"IF(A67<>\"\",IF($AD67<>\"\",VLOOKUP($AD67,Immobilisations[],8),\"\"),\"\")","v":""},"","","","","","","","","","","","",""]
[null,null,null,null,null,null,null,null,null,{"$f":"IF(A68=\"\",\"\",SUM(F68:G68)*Pilotage!$D$14*I68)","v":""},{"$f":"IF(A68=\"\",\"\",L68*(100/(100 + 100*Pilotage!$D$14)))","v":""},null,null,null,null,null,null,null,null,null,null,null,null,null,null,null,null,null,null,null,{"$f":"IF(A68<>\"\",IF($AD68<>\"\",VLOOKUP($AD68,Immobilisations[],7),0),\"\")","v":""},{"$f":"IF(A68<>\"\",IF($AD68<>\"\",VLOOKUP($AD68,Immobilisations[],8),\"\"),\"\")","v":""},"","","","","","","","","","","","",""]
[null,null,null,null,null,null,null,null,null,{"$f":"IF(A69=\"\",\"\",SUM(F69:G69)*Pilotage!$D$14*I69)","v":""},{"$f":"IF(A69=\"\",\"\",L69*(100/(100 + 100*Pilotage!$D$14)))","v":""},null,null,null,null,null,null,null,null,null,null,null,null,null,null,null,null,null,null,null,{"$f":"IF(A69<>\"\",IF($AD69<>\"\",VLOOKUP($AD69,Immobilisations[],7),0),\"\")","v":""},{"$f":"IF(A69<>\"\",IF($AD69<>\"\",VLOOKUP($AD69,Immobilisations[],8),\"\"),\"\")","v":""},"","","","","","","","","","","","",""]
[null,null,null,null,null,null,null,null,null,{"$f":"IF(A70=\"\",\"\",SUM(F70:G70)*Pilotage!$D$14*I70)","v":""},{"$f":"IF(A70=\"\",\"\",L70*(100/(100 + 100*Pilotage!$D$14)))","v":""},null,null,null,null,null,null,null,null,null,null,null,null,null,null,null,null,null,null,null,{"$f":"IF(A70<>\"\",IF($AD70<>\"\",VLOOKUP($AD70,Immobilisations[],7),0),\"\")","v":""},{"$f":"IF(A70<>\"\",IF($AD70<>\"\",VLOOKUP($AD70,Immobilisations[],8),\"\"),\"\")","v":""},"","","","","","","","","","","","",""]
[null,null,null,null,null,null,null,null,null,{"$f":"IF(A71=\"\",\"\",SUM(F71:G71)*Pilotage!$D$14*I71)","v":""},{"$f":"IF(A71=\"\",\"\",L71*(100/(100 + 100*Pilotage!$D$14)))","v":""},null,null,null,null,null,null,null,null,null,null,null,null,null,null,null,null,null,null,null,{"$f":"IF(A71<>\"\",IF($AD71<>\"\",VLOOKUP($AD71,Immobilisations[],7),0),\"\")","v":""},{"$f":"IF(A71<>\"\",IF($AD71<>\"\",VLOOKUP($AD71,Immobilisations[],8),\"\"),\"\")","v":""},"","","","","","","","","","","","",""]
[null,null,null,null,null,null,null,null,null,{"$f":"IF(A72=\"\",\"\",SUM(F72:G72)*Pilotage!$D$14*I72)","v":""},{"$f":"IF(A72=\"\",\"\",L72*(100/(100 + 100*Pilotage!$D$14)))","v":""},null,null,null,null,null,null,null,null,null,null,null,null,null,null,null,null,null,null,null,{"$f":"IF(A72<>\"\",IF($AD72<>\"\",VLOOKUP($AD72,Immobilisations[],7),0),\"\")","v":""},{"$f":"IF(A72<>\"\",IF($AD72<>\"\",VLOOKUP($AD72,Immobilisations[],8),\"\"),\"\")","v":""},"","","","","","","","","","","","",""]
[null,null,null,null,null,null,null,null,null,{"$f":"IF(A73=\"\",\"\",SUM(F73:G73)*Pilotage!$D$14*I73)","v":""},{"$f":"IF(A73=\"\",\"\",L73*(100/(100 + 100*Pilotage!$D$14)))","v":""},null,null,null,null,null,null,null,null,null,null,null,null,null,null,null,null,null,null,null,{"$f":"IF(A73<>\"\",IF($AD73<>\"\",VLOOKUP($AD73,Immobilisations[],7),0),\"\")","v":""},{"$f":"IF(A73<>\"\",IF($AD73<>\"\",VLOOKUP($AD73,Immobilisations[],8),\"\"),\"\")","v":""},"","","","","","","","","","","","",""]
[null,null,null,null,null,null,null,null,null,{"$f":"IF(A74=\"\",\"\",SUM(F74:G74)*Pilotage!$D$14*I74)","v":""},{"$f":"IF(A74=\"\",\"\",L74*(100/(100 + 100*Pilotage!$D$14)))","v":""},null,null,null,null,null,null,null,null,null,null,null,null,null,null,null,null,null,null,null,{"$f":"IF(A74<>\"\",IF($AD74<>\"\",VLOOKUP($AD74,Immobilisations[],7),0),\"\")","v":""},{"$f":"IF(A74<>\"\",IF($AD74<>\"\",VLOOKUP($AD74,Immobilisations[],8),\"\"),\"\")","v":""},"","","","","","","","","","","","",""]
[null,null,null,null,null,null,null,null,null,{"$f":"IF(A75=\"\",\"\",SUM(F75:G75)*Pilotage!$D$14*I75)","v":""},{"$f":"IF(A75=\"\",\"\",L75*(100/(100 + 100*Pilotage!$D$14)))","v":""},null,null,null,null,null,null,null,null,null,null,null,null,null,null,null,null,null,null,null,{"$f":"IF(A75<>\"\",IF($AD75<>\"\",VLOOKUP($AD75,Immobilisations[],7),0),\"\")","v":""},{"$f":"IF(A75<>\"\",IF($AD75<>\"\",VLOOKUP($AD75,Immobilisations[],8),\"\"),\"\")","v":""},"","","","","","","","","","","","",""]
[null,null,null,null,null,null,null,null,null,{"$f":"IF(A76=\"\",\"\",SUM(F76:G76)*Pilotage!$D$14*I76)","v":""},{"$f":"IF(A76=\"\",\"\",L76*(100/(100 + 100*Pilotage!$D$14)))","v":""},null,null,null,null,null,null,null,null,null,null,null,null,null,null,null,null,null,null,null,{"$f":"IF(A76<>\"\",IF($AD76<>\"\",VLOOKUP($AD76,Immobilisations[],7),0),\"\")","v":""},{"$f":"IF(A76<>\"\",IF($AD76<>\"\",VLOOKUP($AD76,Immobilisations[],8),\"\"),\"\")","v":""},"","","","","","","","","","","","",""]
[null,null,null,null,null,null,null,null,null,{"$f":"IF(A77=\"\",\"\",SUM(F77:G77)*Pilotage!$D$14*I77)","v":""},{"$f":"IF(A77=\"\",\"\",L77*(100/(100 + 100*Pilotage!$D$14)))","v":""},null,null,null,null,null,null,null,null,null,null,null,null,null,null,null,null,null,null,null,{"$f":"IF(A77<>\"\",IF($AD77<>\"\",VLOOKUP($AD77,Immobilisations[],7),0),\"\")","v":""},{"$f":"IF(A77<>\"\",IF($AD77<>\"\",VLOOKUP($AD77,Immobilisations[],8),\"\"),\"\")","v":""},"","","","","","","","","","","","",""]
[null,null,null,null,null,null,null,null,null,{"$f":"IF(A78=\"\",\"\",SUM(F78:G78)*Pilotage!$D$14*I78)","v":""},{"$f":"IF(A78=\"\",\"\",L78*(100/(100 + 100*Pilotage!$D$14)))","v":""},null,null,null,null,null,null,null,null,null,null,null,null,null,null,null,null,null,null,null,{"$f":"IF(A78<>\"\",IF($AD78<>\"\",VLOOKUP($AD78,Immobilisations[],7),0),\"\")","v":""},{"$f":"IF(A78<>\"\",IF($AD78<>\"\",VLOOKUP($AD78,Immobilisations[],8),\"\"),\"\")","v":""},{"$f":"IF(AND($A78<>\"\",$AF78<>\"\"),IF(AG$2=0,0,IF(ROUNDDOWN(AG$2/($AE78+1),0)=0,$K78*$AE78/100,0)),\"\")","v":""},"","","","","","","","","","","",""]
[null,null,null,null,null,null,null,null,null,{"$f":"IF(A79=\"\",\"\",SUM(F79:G79)*Pilotage!$D$14*I79)","v":""},{"$f":"IF(A79=\"\",\"\",L79*(100/(100 + 100*Pilotage!$D$14)))","v":""},null,null,null,null,null,null,null,null,null,null,null,null,null,null,null,null,null,null,null,{"$f":"IF(A79<>\"\",IF($AD79<>\"\",VLOOKUP($AD79,Immobilisations[],7),0),\"\")","v":""},{"$f":"IF(A79<>\"\",IF($AD79<>\"\",VLOOKUP($AD79,Immobilisations[],8),\"\"),\"\")","v":""},"","","","","","","","","","","","",""]
[null,null,null,null,null,null,null,null,null,{"$f":"IF(A80=\"\",\"\",SUM(F80:G80)*Pilotage!$D$14*I80)","v":""},{"$f":"IF(A80=\"\",\"\",L80*(100/(100 + 100*Pilotage!$D$14)))","v":""},null,null,null,null,null,null,null,null,null,null,null,null,null,null,null,null,null,null,null,{"$f":"IF(A80<>\"\",IF($AD80<>\"\",VLOOKUP($AD80,Immobilisations[],7),0),\"\")","v":""},{"$f":"IF(A80<>\"\",IF($AD80<>\"\",VLOOKUP($AD80,Immobilisations[],8),\"\"),\"\")","v":""},"","","","","","","","","","","","",""]
[null,null,null,null,null,null,null,null,null,{"$f":"IF(A81=\"\",\"\",SUM(F81:G81)*Pilotage!$D$14*I81)","v":""},{"$f":"IF(A81=\"\",\"\",L81*(100/(100 + 100*Pilotage!$D$14)))","v":""},null,null,null,null,null,null,null,null,null,null,null,null,null,null,null,null,null,null,null,{"$f":"IF(A81<>\"\",IF($AD81<>\"\",VLOOKUP($AD81,Immobilisations[],7),0),\"\")","v":""},{"$f":"IF(A81<>\"\",IF($AD81<>\"\",VLOOKUP($AD81,Immobilisations[],8),\"\"),\"\")","v":""},"","","","","","","","","","","","",""]
[null,null,null,null,null,null,null,null,null,{"$f":"IF(A82=\"\",\"\",SUM(F82:G82)*Pilotage!$D$14*I82)","v":""},{"$f":"IF(A82=\"\",\"\",L82*(100/(100 + 100*Pilotage!$D$14)))","v":""},null,null,null,null,null,null,null,null,null,null,null,null,null,null,null,null,null,null,null,{"$f":"IF(A82<>\"\",IF($AD82<>\"\",VLOOKUP($AD82,Immobilisations[],7),0),\"\")","v":""},{"$f":"IF(A82<>\"\",IF($AD82<>\"\",VLOOKUP($AD82,Immobilisations[],8),\"\"),\"\")","v":""},"","","","","","","","","","","","",""]
[null,null,null,null,null,null,null,null,null,{"$f":"IF(A83=\"\",\"\",SUM(F83:G83)*Pilotage!$D$14*I83)","v":""},{"$f":"IF(A83=\"\",\"\",L83*(100/(100 + 100*Pilotage!$D$14)))","v":""},null,null,null,null,null,null,null,null,null,null,null,null,null,null,null,null,null,null,null,{"$f":"IF(A83<>\"\",IF($AD83<>\"\",VLOOKUP($AD83,Immobilisations[],7),0),\"\")","v":""},{"$f":"IF(A83<>\"\",IF($AD83<>\"\",VLOOKUP($AD83,Immobilisations[],8),\"\"),\"\")","v":""},"","","",{"$f":"IF(AND($A83<>\"\",$AF83<>\"\"),IF(AJ$2=0,0,IF(ROUNDDOWN(AJ$2/($AE83+1),0)=0,$K83*$AE83/100,0)),\"\")","v":""},"","","","","","","","",""]
[null,null,null,null,null,null,null,null,null,{"$f":"IF(A84=\"\",\"\",SUM(F84:G84)*Pilotage!$D$14*I84)","v":""},{"$f":"IF(A84=\"\",\"\",L84*(100/(100 + 100*Pilotage!$D$14)))","v":""},null,null,null,null,null,null,null,null,null,null,null,null,null,null,null,null,null,null,null,{"$f":"IF(A84<>\"\",IF($AD84<>\"\",VLOOKUP($AD84,Immobilisations[],7),0),\"\")","v":""},{"$f":"IF(A84<>\"\",IF($AD84<>\"\",VLOOKUP($AD84,Immobilisations[],8),\"\"),\"\")","v":""},"","","","","","","","","","","","",""]
[null,null,null,null,null,null,null,null,null,{"$f":"IF(A85=\"\",\"\",SUM(F85:G85)*Pilotage!$D$14*I85)","v":""},{"$f":"IF(A85=\"\",\"\",L85*(100/(100 + 100*Pilotage!$D$14)))","v":""},null,null,null,null,null,null,null,null,null,null,null,null,null,null,null,null,null,null,null,{"$f":"IF(A85<>\"\",IF($AD85<>\"\",VLOOKUP($AD85,Immobilisations[],7),0),\"\")","v":""},{"$f":"IF(A85<>\"\",IF($AD85<>\"\",VLOOKUP($AD85,Immobilisations[],8),\"\"),\"\")","v":""},"","","","","","","","","","","","",""]
[null,null,null,null,null,null,null,null,null,{"$f":"IF(A86=\"\",\"\",SUM(F86:G86)*Pilotage!$D$14*I86)","v":""},{"$f":"IF(A86=\"\",\"\",L86*(100/(100 + 100*Pilotage!$D$14)))","v":""},null,null,null,null,null,null,null,null,null,null,null,null,null,null,null,null,null,null,null,{"$f":"IF(A86<>\"\",IF($AD86<>\"\",VLOOKUP($AD86,Immobilisations[],7),0),\"\")","v":""},{"$f":"IF(A86<>\"\",IF($AD86<>\"\",VLOOKUP($AD86,Immobilisations[],8),\"\"),\"\")","v":""},"","","","","","","","","","","","",""]
[null,null,null,null,null,null,null,null,null,{"$f":"IF(A87=\"\",\"\",SUM(F87:G87)*Pilotage!$D$14*I87)","v":""},{"$f":"IF(A87=\"\",\"\",L87*(100/(100 + 100*Pilotage!$D$14)))","v":""},null,null,null,null,null,null,null,null,null,null,null,null,null,null,null,null,null,null,null,{"$f":"IF(A87<>\"\",IF($AD87<>\"\",VLOOKUP($AD87,Immobilisations[],7),0),\"\")","v":""},{"$f":"IF(A87<>\"\",IF($AD87<>\"\",VLOOKUP($AD87,Immobilisations[],8),\"\"),\"\")","v":""},"","","","","","","","","","","","",""]
[null,null,null,null,null,null,null,null,null,{"$f":"IF(A88=\"\",\"\",SUM(F88:G88)*Pilotage!$D$14*I88)","v":""},{"$f":"IF(A88=\"\",\"\",L88*(100/(100 + 100*Pilotage!$D$14)))","v":""},null,null,null,null,null,null,null,null,null,null,null,null,null,null,null,null,null,null,null,{"$f":"IF(A88<>\"\",IF($AD88<>\"\",VLOOKUP($AD88,Immobilisations[],7),0),\"\")","v":""},{"$f":"IF(A88<>\"\",IF($AD88<>\"\",VLOOKUP($AD88,Immobilisations[],8),\"\"),\"\")","v":""},"","","","","","","","","","","","",""]
[null,null,null,null,null,null,null,null,null,{"$f":"IF(A89=\"\",\"\",SUM(F89:G89)*Pilotage!$D$14*I89)","v":""},{"$f":"IF(A89=\"\",\"\",L89*(100/(100 + 100*Pilotage!$D$14)))","v":""},null,null,null,null,null,null,null,null,null,null,null,null,null,null,null,null,null,null,null,{"$f":"IF(A89<>\"\",IF($AD89<>\"\",VLOOKUP($AD89,Immobilisations[],7),0),\"\")","v":""},{"$f":"IF(A89<>\"\",IF($AD89<>\"\",VLOOKUP($AD89,Immobilisations[],8),\"\"),\"\")","v":""},"","","","","","","","","","","","",""]
[null,null,null,null,null,null,null,null,null,{"$f":"IF(A90=\"\",\"\",SUM(F90:G90)*Pilotage!$D$14*I90)","v":""},{"$f":"IF(A90=\"\",\"\",L90*(100/(100 + 100*Pilotage!$D$14)))","v":""},null,null,null,null,null,null,null,null,null,null,null,null,null,null,null,null,null,null,null,{"$f":"IF(A90<>\"\",IF($AD90<>\"\",VLOOKUP($AD90,Immobilisations[],7),0),\"\")","v":""},{"$f":"IF(A90<>\"\",IF($AD90<>\"\",VLOOKUP($AD90,Immobilisations[],8),\"\"),\"\")","v":""},"","","","","","","","","","","","",""]
[null,null,null,null,null,null,null,null,null,{"$f":"IF(A91=\"\",\"\",SUM(F91:G91)*Pilotage!$D$14*I91)","v":""},{"$f":"IF(A91=\"\",\"\",L91*(100/(100 + 100*Pilotage!$D$14)))","v":""},null,null,null,null,null,null,null,null,null,null,null,null,null,null,null,null,null,null,null,{"$f":"IF(A91<>\"\",IF($AD91<>\"\",VLOOKUP($AD91,Immobilisations[],7),0),\"\")","v":""},{"$f":"IF(A91<>\"\",IF($AD91<>\"\",VLOOKUP($AD91,Immobilisations[],8),\"\"),\"\")","v":""},"","","","","","","","","","","","",""]
[null,null,null,null,null,null,null,null,null,{"$f":"IF(A92=\"\",\"\",SUM(F92:G92)*Pilotage!$D$14*I92)","v":""},{"$f":"IF(A92=\"\",\"\",L92*(100/(100 + 100*Pilotage!$D$14)))","v":""},null,null,null,null,null,null,null,null,null,null,null,null,null,null,null,null,null,null,null,{"$f":"IF(A92<>\"\",IF($AD92<>\"\",VLOOKUP($AD92,Immobilisations[],7),0),\"\")","v":""},{"$f":"IF(A92<>\"\",IF($AD92<>\"\",VLOOKUP($AD92,Immobilisations[],8),\"\"),\"\")","v":""},"","","","","","","","","","","","",""]
[null,null,null,null,null,null,null,null,null,{"$f":"IF(A93=\"\",\"\",SUM(F93:G93)*Pilotage!$D$14*I93)","v":""},{"$f":"IF(A93=\"\",\"\",L93*(100/(100 + 100*Pilotage!$D$14)))","v":""},null,null,null,null,null,null,null,null,null,null,null,null,null,null,null,null,null,null,null,{"$f":"IF(A93<>\"\",IF($AD93<>\"\",VLOOKUP($AD93,Immobilisations[],7),0),\"\")","v":""},{"$f":"IF(A93<>\"\",IF($AD93<>\"\",VLOOKUP($AD93,Immobilisations[],8),\"\"),\"\")","v":""},"","","","","","","","","","","","",""]
[null,null,null,null,null,null,null,null,null,{"$f":"IF(A94=\"\",\"\",SUM(F94:G94)*Pilotage!$D$14*I94)","v":""},{"$f":"IF(A94=\"\",\"\",L94*(100/(100 + 100*Pilotage!$D$14)))","v":""},null,null,null,null,null,null,null,null,null,null,null,null,null,null,null,null,null,null,null,{"$f":"IF(A94<>\"\",IF($AD94<>\"\",VLOOKUP($AD94,Immobilisations[],7),0),\"\")","v":""},{"$f":"IF(A94<>\"\",IF($AD94<>\"\",VLOOKUP($AD94,Immobilisations[],8),\"\"),\"\")","v":""},"","","","","","","","","","","","",""]
[null,null,null,null,null,null,null,null,null,{"$f":"IF(A95=\"\",\"\",SUM(F95:G95)*Pilotage!$D$14*I95)","v":""},{"$f":"IF(A95=\"\",\"\",L95*(100/(100 + 100*Pilotage!$D$14)))","v":""},null,null,null,null,null,null,null,null,null,null,null,null,null,null,null,null,null,null,null,{"$f":"IF(A95<>\"\",IF($AD95<>\"\",VLOOKUP($AD95,Immobilisations[],7),0),\"\")","v":""},{"$f":"IF(A95<>\"\",IF($AD95<>\"\",VLOOKUP($AD95,Immobilisations[],8),\"\"),\"\")","v":""},"","","","","","","","","","","","",""]
[null,null,null,null,null,null,null,null,null,{"$f":"IF(A96=\"\",\"\",SUM(F96:G96)*Pilotage!$D$14*I96)","v":""},{"$f":"IF(A96=\"\",\"\",L96*(100/(100 + 100*Pilotage!$D$14)))","v":""},null,null,null,null,null,null,null,null,null,null,null,null,null,null,null,null,null,null,null,{"$f":"IF(A96<>\"\",IF($AD96<>\"\",VLOOKUP($AD96,Immobilisations[],7),0),\"\")","v":""},{"$f":"IF(A96<>\"\",IF($AD96<>\"\",VLOOKUP($AD96,Immobilisations[],8),\"\"),\"\")","v":""},"","","","","","","","","","","","",""]
[null,null,null,null,null,null,null,null,null,{"$f":"IF(A97=\"\",\"\",SUM(F97:G97)*Pilotage!$D$14*I97)","v":""},{"$f":"IF(A97=\"\",\"\",L97*(100/(100 + 100*Pilotage!$D$14)))","v":""},null,null,null,null,null,null,null,null,null,null,null,null,null,null,null,null,null,null,null,{"$f":"IF(A97<>\"\",IF($AD97<>\"\",VLOOKUP($AD97,Immobilisations[],7),0),\"\")","v":""},{"$f":"IF(A97<>\"\",IF($AD97<>\"\",VLOOKUP($AD97,Immobilisations[],8),\"\"),\"\")","v":""},"","","","","","","","","","","","",""]
[null,null,null,null,null,null,null,null,null,{"$f":"IF(A98=\"\",\"\",SUM(F98:G98)*Pilotage!$D$14*I98)","v":""},{"$f":"IF(A98=\"\",\"\",L98*(100/(100 + 100*Pilotage!$D$14)))","v":""},null,null,null,null,null,null,null,null,null,null,null,null,null,null,null,null,null,null,null,{"$f":"IF(A98<>\"\",IF($AD98<>\"\",VLOOKUP($AD98,Immobilisations[],7),0),\"\")","v":""},{"$f":"IF(A98<>\"\",IF($AD98<>\"\",VLOOKUP($AD98,Immobilisations[],8),\"\"),\"\")","v":""},"","","","","","","","","","","","",""]
[null,null,null,null,null,null,null,null,null,{"$f":"IF(A99=\"\",\"\",SUM(F99:G99)*Pilotage!$D$14*I99)","v":""},{"$f":"IF(A99=\"\",\"\",L99*(100/(100 + 100*Pilotage!$D$14)))","v":""},null,null,null,null,null,null,null,null,null,null,null,null,null,null,null,null,null,null,null,{"$f":"IF(A99<>\"\",IF($AD99<>\"\",VLOOKUP($AD99,Immobilisations[],7),0),\"\")","v":""},{"$f":"IF(A99<>\"\",IF($AD99<>\"\",VLOOKUP($AD99,Immobilisations[],8),\"\"),\"\")","v":""},"","","","","","","","","","","","",""]
[null,null,null,null,null,null,null,null,null,{"$f":"IF(A100=\"\",\"\",SUM(F100:G100)*Pilotage!$D$14*I100)","v":""},{"$f":"IF(A100=\"\",\"\",L100*(100/(100 + 100*Pilotage!$D$14)))","v":""},null,null,null,null,null,null,null,null,null,null,null,null,null,null,null,null,null,null,null,{"$f":"IF(A100<>\"\",IF($AD100<>\"\",VLOOKUP($AD100,Immobilisations[],7),0),\"\")","v":""},{"$f":"IF(A100<>\"\",IF($AD100<>\"\",VLOOKUP($AD100,Immobilisations[],8),\"\"),\"\")","v":""},"","","","","","","","","","","","",""]
[null,null,null,null,null,null,null,null,null,{"$f":"IF(A101=\"\",\"\",SUM(F101:G101)*Pilotage!$D$14*I101)","v":""},{"$f":"IF(A101=\"\",\"\",L101*(100/(100 + 100*Pilotage!$D$14)))","v":""},null,null,null,null,null,null,null,null,null,null,null,null,null,null,null,null,null,null,null,{"$f":"IF(A101<>\"\",IF($AD101<>\"\",VLOOKUP($AD101,Immobilisations[],7),0),\"\")","v":""},{"$f":"IF(A101<>\"\",IF($AD101<>\"\",VLOOKUP($AD101,Immobilisations[],8),\"\"),\"\")","v":""},"","","","","","","","","","","","",""]
[null,null,null,null,null,null,null,null,null,{"$f":"IF(A102=\"\",\"\",SUM(F102:G102)*Pilotage!$D$14*I102)","v":""},{"$f":"IF(A102=\"\",\"\",L102*(100/(100 + 100*Pilotage!$D$14)))","v":""},null,null,null,null,null,null,null,null,null,null,null,null,null,null,null,null,null,null,null,{"$f":"IF(A102<>\"\",IF($AD102<>\"\",VLOOKUP($AD102,Immobilisations[],7),0),\"\")","v":""},{"$f":"IF(A102<>\"\",IF($AD102<>\"\",VLOOKUP($AD102,Immobilisations[],8),\"\"),\"\")","v":""},"","","","","","","","","","","","",""]
[null,null,null,null,null,null,null,null,null,{"$f":"IF(A103=\"\",\"\",SUM(F103:G103)*Pilotage!$D$14*I103)","v":""},{"$f":"IF(A103=\"\",\"\",L103*(100/(100 + 100*Pilotage!$D$14)))","v":""},null,null,null,null,null,null,null,null,null,null,null,null,null,null,null,null,null,null,null,{"$f":"IF(A103<>\"\",IF($AD103<>\"\",VLOOKUP($AD103,Immobilisations[],7),0),\"\")","v":""},{"$f":"IF(A103<>\"\",IF($AD103<>\"\",VLOOKUP($AD103,Immobilisations[],8),\"\"),\"\")","v":""},"","","","","","","","","","","","",""]
[null,null,null,null,null,null,null,null,null,{"$f":"IF(A104=\"\",\"\",SUM(F104:G104)*Pilotage!$D$14*I104)","v":""},{"$f":"IF(A104=\"\",\"\",L104*(100/(100 + 100*Pilotage!$D$14)))","v":""},null,null,null,null,null,null,null,null,null,null,null,null,null,null,null,null,null,null,null,{"$f":"IF(A104<>\"\",IF($AD104<>\"\",VLOOKUP($AD104,Immobilisations[],7),0),\"\")","v":""},{"$f":"IF(A104<>\"\",IF($AD104<>\"\",VLOOKUP($AD104,Immobilisations[],8),\"\"),\"\")","v":""},"","","","","","","","","","","","",""]
[null,null,null,null,null,null,null,null,null,{"$f":"IF(A105=\"\",\"\",SUM(F105:G105)*Pilotage!$D$14*I105)","v":""},{"$f":"IF(A105=\"\",\"\",L105*(100/(100 + 100*Pilotage!$D$14)))","v":""},null,null,null,null,null,null,null,null,null,null,null,null,null,null,null,null,null,null,null,{"$f":"IF(A105<>\"\",IF($AD105<>\"\",VLOOKUP($AD105,Immobilisations[],7),0),\"\")","v":""},{"$f":"IF(A105<>\"\",IF($AD105<>\"\",VLOOKUP($AD105,Immobilisations[],8),\"\"),\"\")","v":""},"","","","","","","","","","","","",""]
[null,null,null,null,null,null,null,null,null,{"$f":"IF(A106=\"\",\"\",SUM(F106:G106)*Pilotage!$D$14*I106)","v":""},{"$f":"IF(A106=\"\",\"\",L106*(100/(100 + 100*Pilotage!$D$14)))","v":""},null,null,null,null,null,null,null,null,null,null,null,null,null,null,null,null,null,null,null,{"$f":"IF(A106<>\"\",IF($AD106<>\"\",VLOOKUP($AD106,Immobilisations[],7),0),\"\")","v":""},{"$f":"IF(A106<>\"\",IF($AD106<>\"\",VLOOKUP($AD106,Immobilisations[],8),\"\"),\"\")","v":""},"","","","","",{"$f":"IF(AND($A106<>\"\",$AF106<>\"\"),IF(AL$2=0,0,IF(ROUNDDOWN(AL$2/($AE106+1),0)=0,$K106*$AE106/100,0)),\"\")","v":""},"","","","","","",""]
[null,null,null,null,null,null,null,null,null,{"$f":"IF(A107=\"\",\"\",SUM(F107:G107)*Pilotage!$D$14*I107)","v":""},{"$f":"IF(A107=\"\",\"\",L107*(100/(100 + 100*Pilotage!$D$14)))","v":""},null,null,null,null,null,null,null,null,null,null,null,null,null,null,null,null,null,null,null,{"$f":"IF(A107<>\"\",IF($AD107<>\"\",VLOOKUP($AD107,Immobilisations[],7),0),\"\")","v":""},{"$f":"IF(A107<>\"\",IF($AD107<>\"\",VLOOKUP($AD107,Immobilisations[],8),\"\"),\"\")","v":""},"","","","","","","","","","","","",""]
[null,null,null,null,null,null,null,null,null,{"$f":"IF(A108=\"\",\"\",SUM(F108:G108)*Pilotage!$D$14*I108)","v":""},{"$f":"IF(A108=\"\",\"\",L108*(100/(100 + 100*Pilotage!$D$14)))","v":""},null,null,null,null,null,null,null,null,null,null,null,null,null,null,null,null,null,null,null,{"$f":"IF(A108<>\"\",IF($AD108<>\"\",VLOOKUP($AD108,Immobilisations[],7),0),\"\")","v":""},{"$f":"IF(A108<>\"\",IF($AD108<>\"\",VLOOKUP($AD108,Immobilisations[],8),\"\"),\"\")","v":""},"","","","","","","","","","","","",""]
[null,null,null,null,null,null,null,null,null,{"$f":"IF(A109=\"\",\"\",SUM(F109:G109)*Pilotage!$D$14*I109)","v":""},{"$f":"IF(A109=\"\",\"\",L109*(100/(100 + 100*Pilotage!$D$14)))","v":""},null,null,null,null,null,null,null,null,null,null,null,null,null,null,null,null,null,null,null,null,null,{"$f":"IF($A109<>\"\",IF(AG102=0,0,IF(ROUNDDOWN(AG102/($AE109+1),0)=0,$K109*$AE109/100,0)),\"\")","v":""},"","","","","","","","","","","",""]
[null,null,null,null,null,null,null,null,null,{"$f":"IF(A110=\"\",\"\",SUM(F110:G110)*Pilotage!$D$14*I110)","v":""},{"$f":"IF(A110=\"\",\"\",L110*(100/(100 + 100*Pilotage!$D$14)))","v":""}]
[null,null,null,null,null,null,null,null,null,{"$f":"IF(A111=\"\",\"\",SUM(F111:G111)*Pilotage!$D$14*I111)","v":""},{"$f":"IF(A111=\"\",\"\",L111*(100/(100 + 100*Pilotage!$D$14)))","v":""}]
[null,null,null,null,null,null,null,null,null,{"$f":"IF(A112=\"\",\"\",SUM(F112:G112)*Pilotage!$D$14*I112)","v":""},{"$f":"IF(A112=\"\",\"\",L112*(100/(100 + 100*Pilotage!$D$14)))","v":""}]
[null,null,null,null,null,null,null,null,null,{"$f":"IF(A113=\"\",\"\",SUM(F113:G113)*Pilotage!$D$14*I113)","v":""},{"$f":"IF(A113=\"\",\"\",L113*(100/(100 + 100*Pilotage!$D$14)))","v":""}]
[null,null,null,null,null,null,null,null,null,{"$f":"IF(A114=\"\",\"\",SUM(F114:G114)*Pilotage!$D$14*I114)","v":""},{"$f":"IF(A114=\"\",\"\",L114*(100/(100 + 100*Pilotage!$D$14)))","v":""}]
[null,null,null,null,null,null,null,null,null,{"$f":"IF(A115=\"\",\"\",SUM(F115:G115)*Pilotage!$D$14*I115)","v":""},{"$f":"IF(A115=\"\",\"\",L115*(100/(100 + 100*Pilotage!$D$14)))","v":""}]
[null,null,null,null,null,null,null,null,null,{"$f":"IF(A116=\"\",\"\",SUM(F116:G116)*Pilotage!$D$14*I116)","v":""},{"$f":"IF(A116=\"\",\"\",L116*(100/(100 + 100*Pilotage!$D$14)))","v":""}]
[null,null,null,null,null,null,null,null,null,{"$f":"IF(A117=\"\",\"\",SUM(F117:G117)*Pilotage!$D$14*I117)","v":""},{"$f":"IF(A117=\"\",\"\",L117*(100/(100 + 100*Pilotage!$D$14)))","v":""}]
[null,null,null,null,null,null,null,null,null,{"$f":"IF(A118=\"\",\"\",SUM(F118:G118)*Pilotage!$D$14*I118)","v":""},{"$f":"IF(A118=\"\",\"\",L118*(100/(100 + 100*Pilotage!$D$14)))","v":""}]
[null,null,null,null,null,null,null,null,null,{"$f":"IF(A119=\"\",\"\",SUM(F119:G119)*Pilotage!$D$14*I119)","v":""},{"$f":"IF(A119=\"\",\"\",L119*(100/(100 + 100*Pilotage!$D$14)))","v":""}]
[null,null,null,null,null,null,null,null,null,{"$f":"IF(A120=\"\",\"\",SUM(F120:G120)*Pilotage!$D$14*I120)","v":""},{"$f":"IF(A120=\"\",\"\",L120*(100/(100 + 100*Pilotage!$D$14)))","v":""}]
[null,null,null,null,null,null,null,null,null,{"$f":"IF(A121=\"\",\"\",SUM(F121:G121)*Pilotage!$D$14*I121)","v":""},{"$f":"IF(A121=\"\",\"\",L121*(100/(100 + 100*Pilotage!$D$14)))","v":""}]
[null,null,null,null,null,null,null,null,null,{"$f":"IF(A122=\"\",\"\",SUM(F122:G122)*Pilotage!$D$14*I122)","v":""},{"$f":"IF(A122=\"\",\"\",L122*(100/(100 + 100*Pilotage!$D$14)))","v":""}]
[null,null,null,null,null,null,null,null,null,{"$f":"IF(A123=\"\",\"\",SUM(F123:G123)*Pilotage!$D$14*I123)","v":""},{"$f":"IF(A123=\"\",\"\",L123*(100/(100 + 100*Pilotage!$D$14)))","v":""}]
[null,null,null,null,null,null,null,null,null,{"$f":"IF(A124=\"\",\"\",SUM(F124:G124)*Pilotage!$D$14*I124)","v":""},{"$f":"IF(A124=\"\",\"\",L124*(100/(100 + 100*Pilotage!$D$14)))","v":""}]
[null,null,null,null,null,null,null,null,null,{"$f":"IF(A125=\"\",\"\",SUM(F125:G125)*Pilotage!$D$14*I125)","v":""},{"$f":"IF(A125=\"\",\"\",L125*(100/(100 + 100*Pilotage!$D$14)))","v":""}]
[null,null,null,null,null,null,null,null,null,{"$f":"IF(A126=\"\",\"\",SUM(F126:G126)*Pilotage!$D$14*I126)","v":""},{"$f":"IF(A126=\"\",\"\",L126*(100/(100 + 100*Pilotage!$D$14)))","v":""}]
[null,null,null,null,null,null,null,null,null,{"$f":"IF(A127=\"\",\"\",SUM(F127:G127)*Pilotage!$D$14*I127)","v":""},{"$f":"IF(A127=\"\",\"\",L127*(100/(100 + 100*Pilotage!$D$14)))","v":""}]
[null,null,null,null,null,null,null,null,null,{"$f":"IF(A128=\"\",\"\",SUM(F128:G128)*Pilotage!$D$14*I128)","v":""},{"$f":"IF(A128=\"\",\"\",L128*(100/(100 + 100*Pilotage!$D$14)))","v":""}]
[null,null,null,null,null,null,null,null,null,{"$f":"IF(A129=\"\",\"\",SUM(F129:G129)*Pilotage!$D$14*I129)","v":""},{"$f":"IF(A129=\"\",\"\",L129*(100/(100 + 100*Pilotage!$D$14)))","v":""}]
[null,null,null,null,null,null,null,null,null,{"$f":"IF(A130=\"\",\"\",SUM(F130:G130)*Pilotage!$D$14*I130)","v":""},{"$f":"IF(A130=\"\",\"\",L130*(100/(100 + 100*Pilotage!$D$14)))","v":""}]
[null,null,null,null,null,null,null,null,null,{"$f":"IF(A131=\"\",\"\",SUM(F131:G131)*Pilotage!$D$14*I131)","v":""},{"$f":"IF(A131=\"\",\"\",L131*(100/(100 + 100*Pilotage!$D$14)))","v":""}]
[null,null,null,null,null,null,null,null,null,{"$f":"IF(A132=\"\",\"\",SUM(F132:G132)*Pilotage!$D$14*I132)","v":""},{"$f":"IF(A132=\"\",\"\",L132*(100/(100 + 100*Pilotage!$D$14)))","v":""}]
[null,null,null,null,null,null,null,null,null,{"$f":"IF(A133=\"\",\"\",SUM(F133:G133)*Pilotage!$D$14*I133)","v":""},{"$f":"IF(A133=\"\",\"\",L133*(100/(100 + 100*Pilotage!$D$14)))","v":""}]
[null,null,null,null,null,null,null,null,null,{"$f":"IF(A134=\"\",\"\",SUM(F134:G134)*Pilotage!$D$14*I134)","v":""},{"$f":"IF(A134=\"\",\"\",L134*(100/(100 + 100*Pilotage!$D$14)))","v":""}]
[null,null,null,null,null,null,null,null,null,{"$f":"IF(A135=\"\",\"\",SUM(F135:G135)*Pilotage!$D$14*I135)","v":""},{"$f":"IF(A135=\"\",\"\",L135*(100/(100 + 100*Pilotage!$D$14)))","v":""}]
[null,null,null,null,null,null,null,null,null,{"$f":"IF(A136=\"\",\"\",SUM(F136:G136)*Pilotage!$D$14*I136)","v":""},{"$f":"IF(A136=\"\",\"\",L136*(100/(100 + 100*Pilotage!$D$14)))","v":""}]
[null,null,null,null,null,null,null,null,null,{"$f":"IF(A137=\"\",\"\",SUM(F137:G137)*Pilotage!$D$14*I137)","v":""},{"$f":"IF(A137=\"\",\"\",L137*(100/(100 + 100*Pilotage!$D$14)))","v":""}]
[null,null,null,null,null,null,null,null,null,{"$f":"IF(A138=\"\",\"\",SUM(F138:G138)*Pilotage!$D$14*I138)","v":""},{"$f":"IF(A138=\"\",\"\",L138*(100/(100 + 100*Pilotage!$D$14)))","v":""}]
[null,null,null,null,null,null,null,null,null,{"$f":"IF(A139=\"\",\"\",SUM(F139:G139)*Pilotage!$D$14*I139)","v":""},{"$f":"IF(A139=\"\",\"\",L139*(100/(100 + 100*Pilotage!$D$14)))","v":""}]
[null,null,null,null,null,null,null,null,null,{"$f":"IF(A140=\"\",\"\",SUM(F140:G140)*Pilotage!$D$14*I140)","v":""},{"$f":"IF(A140=\"\",\"\",L140*(100/(100 + 100*Pilotage!$D$14)))","v":""}]
[null,null,null,null,null,null,null,null,null,{"$f":"IF(A141=\"\",\"\",SUM(F141:G141)*Pilotage!$D$14*I141)","v":""},{"$f":"IF(A141=\"\",\"\",L141*(100/(100 + 100*Pilotage!$D$14)))","v":""}]
[null,null,null,null,null,null,null,null,null,{"$f":"IF(A142=\"\",\"\",SUM(F142:G142)*Pilotage!$D$14*I142)","v":""},{"$f":"IF(A142=\"\",\"\",L142*(100/(100 + 100*Pilotage!$D$14)))","v":""}]
[null,null,null,null,null,null,null,null,null,{"$f":"IF(A143=\"\",\"\",SUM(F143:G143)*Pilotage!$D$14*I143)","v":""},{"$f":"IF(A143=\"\",\"\",L143*(100/(100 + 100*Pilotage!$D$14)))","v":""}]
[null,null,null,null,null,null,null,null,null,{"$f":"IF(A144=\"\",\"\",SUM(F144:G144)*Pilotage!$D$14*I144)","v":""},{"$f":"IF(A144=\"\",\"\",L144*(100/(100 + 100*Pilotage!$D$14)))","v":""}]
[null,null,null,null,null,null,null,null,null,{"$f":"IF(A145=\"\",\"\",SUM(F145:G145)*Pilotage!$D$14*I145)","v":""},{"$f":"IF(A145=\"\",\"\",L145*(100/(100 + 100*Pilotage!$D$14)))","v":""}]
[null,null,null,null,null,null,null,null,null,{"$f":"IF(A146=\"\",\"\",SUM(F146:G146)*Pilotage!$D$14*I146)","v":""},{"$f":"IF(A146=\"\",\"\",L146*(100/(100 + 100*Pilotage!$D$14)))","v":""}]
[null,null,null,null,null,null,null,null,null,{"$f":"IF(A147=\"\",\"\",SUM(F147:G147)*Pilotage!$D$14*I147)","v":""},{"$f":"IF(A147=\"\",\"\",L147*(100/(100 + 100*Pilotage!$D$14)))","v":""}]
[null,null,null,null,null,null,null,null,null,{"$f":"IF(A148=\"\",\"\",SUM(F148:G148)*Pilotage!$D$14*I148)","v":""},{"$f":"IF(A148=\"\",\"\",L148*(100/(100 + 100*Pilotage!$D$14)))","v":""}]
[null,null,null,null,null,null,null,null,null,{"$f":"IF(A149=\"\",\"\",SUM(F149:G149)*Pilotage!$D$14*I149)","v":""},{"$f":"IF(A149=\"\",\"\",L149*(100/(100 + 100*Pilotage!$D$14)))","v":""}]
[null,null,null,null,null,null,null,null,null,{"$f":"IF(A150=\"\",\"\",SUM(F150:G150)*Pilotage!$D$14*I150)","v":""},{"$f":"IF(A150=\"\",\"\",L150*(100/(100 + 100*Pilotage!$D$14)))","v":""}]
[null,null,null,null,null,null,null,null,null,{"$f":"IF(A151=\"\",\"\",SUM(F151:G151)*Pilotage!$D$14*I151)","v":""},{"$f":"IF(A151=\"\",\"\",L151*(100/(100 + 100*Pilotage!$D$14)))","v":""}]
[null,null,null,null,null,null,null,null,null,{"$f":"IF(A152=\"\",\"\",SUM(F152:G152)*Pilotage!$D$14*I152)","v":""},{"$f":"IF(A152=\"\",\"\",L152*(100/(100 + 100*Pilotage!$D$14)))","v":""}]
[null,null,null,null,null,null,null,null,null,{"$f":"IF(A153=\"\",\"\",SUM(F153:G153)*Pilotage!$D$14*I153)","v":""},{"$f":"IF(A153=\"\",\"\",L153*(100/(100 + 100*Pilotage!$D$14)))","v":""}]
[null,null,null,null,null,null,null,null,null,{"$f":"IF(A154=\"\",\"\",SUM(F154:G154)*Pilotage!$D$14*I154)","v":""},{"$f":"IF(A154=\"\",\"\",L154*(100/(100 + 100*Pilotage!$D$14)))","v":""}]
[null,null,null,null,null,null,null,null,null,{"$f":"IF(A155=\"\",\"\",SUM(F155:G155)*Pilotage!$D$14*I155)","v":""},{"$f":"IF(A155=\"\",\"\",L155*(100/(100 + 100*Pilotage!$D$14)))","v":""}]
[null,null,null,null,null,null,null,null,null,{"$f":"IF(A156=\"\",\"\",SUM(F156:G156)*Pilotage!$D$14*I156)","v":""},{"$f":"IF(A156=\"\",\"\",L156*(100/(100 + 100*Pilotage!$D$14)))","v":""}]
[null,null,null,null,null,null,null,null,null,{"$f":"IF(A157=\"\",\"\",SUM(F157:G157)*Pilotage!$D$14*I157)","v":""},{"$f":"IF(A157=\"\",\"\",L157*(100/(100 + 100*Pilotage!$D$14)))","v":""}]
[null,null,null,null,null,null,null,null,null,{"$f":"IF(A158=\"\",\"\",SUM(F158:G158)*Pilotage!$D$14*I158)","v":""},{"$f":"IF(A158=\"\",\"\",L158*(100/(100 + 100*Pilotage!$D$14)))","v":""}]
[null,null,null,null,null,null,null,null,null,{"$f":"IF(A159=\"\",\"\",SUM(F159:G159)*Pilotage!$D$14*I159)","v":""},{"$f":"IF(A159=\"\",\"\",L159*(100/(100 + 100*Pilotage!$D$14)))","v":""}]
[null,null,null,null,null,null,null,null,null,{"$f":"IF(A160=\"\",\"\",SUM(F160:G160)*Pilotage!$D$14*I160)","v":""},{"$f":"IF(A160=\"\",\"\",L160*(100/(100 + 100*Pilotage!$D$14)))","v":""}]
[null,null,null,null,null,null,null,null,null,{"$f":"IF(A161=\"\",\"\",SUM(F161:G161)*Pilotage!$D$14*I161)","v":""},{"$f":"IF(A161=\"\",\"\",L161*(100/(100 + 100*Pilotage!$D$14)))","v":""}]
[null,null,null,null,null,null,null,null,null,{"$f":"IF(A162=\"\",\"\",SUM(F162:G162)*Pilotage!$D$14*I162)","v":""},{"$f":"IF(A162=\"\",\"\",L162*(100/(100 + 100*Pilotage!$D$14)))","v":""}]
[null,null,null,null,null,null,null,null,null,{"$f":"IF(A163=\"\",\"\",SUM(F163:G163)*Pilotage!$D$14*I163)","v":""},{"$f":"IF(A163=\"\",\"\",L163*(100/(100 + 100*Pilotage!$D$14)))","v":""}]
[null,null,null,null,null,null,null,null,null,{"$f":"IF(A164=\"\",\"\",SUM(F164:G164)*Pilotage!$D$14*I164)","v":""},{"$f":"IF(A164=\"\",\"\",L164*(100/(100 + 100*Pilotage!$D$14)))","v":""}]
[null,null,null,null,null,null,null,null,null,{"$f":"IF(A165=\"\",\"\",SUM(F165:G165)*Pilotage!$D$14*I165)","v":""},{"$f":"IF(A165=\"\",\"\",L165*(100/(100 + 100*Pilotage!$D$14)))","v":""}]
[null,null,null,null,null,null,null,null,null,{"$f":"IF(A166=\"\",\"\",SUM(F166:G166)*Pilotage!$D$14*I166)","v":""},{"$f":"IF(A166=\"\",\"\",L166*(100/(100 + 100*Pilotage!$D$14)))","v":""}]
[null,null,null,null,null,null,null,null,null,{"$f":"IF(A167=\"\",\"\",SUM(F167:G167)*Pilotage!$D$14*I167)","v":""},{"$f":"IF(A167=\"\",\"\",L167*(100/(100 + 100*Pilotage!$D$14)))","v":""}]
[null,null,null,null,null,null,null,null,null,{"$f":"IF(A168=\"\",\"\",SUM(F168:G168)*Pilotage!$D$14*I168)","v":""},{"$f":"IF(A168=\"\",\"\",L168*(100/(100 + 100*Pilotage!$D$14)))","v":""}]
[null,null,null,null,null,null,null,null,null,{"$f":"IF(A169=\"\",\"\",SUM(F169:G169)*Pilotage!$D$14*I169)","v":""},{"$f":"IF(A169=\"\",\"\",L169*(100/(100 + 100*Pilotage!$D$14)))","v":""}]
[null,null,null,null,null,null,null,null,null,{"$f":"IF(A170=\"\",\"\",SUM(F170:G170)*Pilotage!$D$14*I170)","v":""},{"$f":"IF(A170=\"\",\"\",L170*(100/(100 + 100*Pilotage!$D$14)))","v":""}]
[null,null,null,null,null,null,null,null,null,{"$f":"IF(A171=\"\",\"\",SUM(F171:G171)*Pilotage!$D$14*I171)","v":""},{"$f":"IF(A171=\"\",\"\",L171*(100/(100 + 100*Pilotage!$D$14)))","v":""}]
[null,null,null,null,null,null,null,null,null,{"$f":"IF(A172=\"\",\"\",SUM(F172:G172)*Pilotage!$D$14*I172)","v":""},{"$f":"IF(A172=\"\",\"\",L172*(100/(100 + 100*Pilotage!$D$14)))","v":""}]
[null,null,null,null,null,null,null,null,null,{"$f":"IF(A173=\"\",\"\",SUM(F173:G173)*Pilotage!$D$14*I173)","v":""},{"$f":"IF(A173=\"\",\"\",L173*(100/(100 + 100*Pilotage!$D$14)))","v":""}]
[null,null,null,null,null,null,null,null,null,{"$f":"IF(A174=\"\",\"\",SUM(F174:G174)*Pilotage!$D$14*I174)","v":""},{"$f":"IF(A174=\"\",\"\",L174*(100/(100 + 100*Pilotage!$D$14)))","v":""}]
[null,null,null,null,null,null,null,null,null,{"$f":"IF(A175=\"\",\"\",SUM(F175:G175)*Pilotage!$D$14*I175)","v":""},{"$f":"IF(A175=\"\",\"\",L175*(100/(100 + 100*Pilotage!$D$14)))","v":""}]
[null,null,null,null,null,null,null,null,null,{"$f":"IF(A176=\"\",\"\",SUM(F176:G176)*Pilotage!$D$14*I176)","v":""},{"$f":"IF(A176=\"\",\"\",L176*(100/(100 + 100*Pilotage!$D$14)))","v":""}]
[null,null,null,null,null,null,null,null,null,{"$f":"IF(A177=\"\",\"\",SUM(F177:G177)*Pilotage!$D$14*I177)","v":""},{"$f":"IF(A177=\"\",\"\",L177*(100/(100 + 100*Pilotage!$D$14)))","v":""}]
[null,null,null,null,null,null,null,null,null,{"$f":"IF(A178=\"\",\"\",SUM(F178:G178)*Pilotage!$D$14*I178)","v":""},{"$f":"IF(A178=\"\",\"\",L178*(100/(100 + 100*Pilotage!$D$14)))","v":""}]
[null,null,null,null,null,null,null,null,null,{"$f":"IF(A179=\"\",\"\",SUM(F179:G179)*Pilotage!$D$14*I179)","v":""},{"$f":"IF(A179=\"\",\"\",L179*(100/(100 + 100*Pilotage!$D$14)))","v":""}]
[null,null,null,null,null,null,null,null,null,{"$f":"IF(A180=\"\",\"\",SUM(F180:G180)*Pilotage!$D$14*I180)","v":""},{"$f":"IF(A180=\"\",\"\",L180*(100/(100 + 100*Pilotage!$D$14)))","v":""}]
[null,null,null,null,null,null,null,null,null,{"$f":"IF(A181=\"\",\"\",SUM(F181:G181)*Pilotage!$D$14*I181)","v":""},{"$f":"IF(A181=\"\",\"\",L181*(100/(100 + 100*Pilotage!$D$14)))","v":""}]
[null,null,null,null,null,null,null,null,null,{"$f":"IF(A182=\"\",\"\",SUM(F182:G182)*Pilotage!$D$14*I182)","v":""},{"$f":"IF(A182=\"\",\"\",L182*(100/(100 + 100*Pilotage!$D$14)))","v":""}]
[null,null,null,null,null,null,null,null,null,{"$f":"IF(A183=\"\",\"\",SUM(F183:G183)*Pilotage!$D$14*I183)","v":""},{"$f":"IF(A183=\"\",\"\",L183*(100/(100 + 100*Pilotage!$D$14)))","v":""}]
[null,null,null,null,null,null,null,null,null,{"$f":"IF(A184=\"\",\"\",SUM(F184:G184)*Pilotage!$D$14*I184)","v":""},{"$f":"IF(A184=\"\",\"\",L184*(100/(100 + 100*Pilotage!$D$14)))","v":""}]
[null,null,null,null,null,null,null,null,null,{"$f":"IF(A185=\"\",\"\",SUM(F185:G185)*Pilotage!$D$14*I185)","v":""},{"$f":"IF(A185=\"\",\"\",L185*(100/(100 + 100*Pilotage!$D$14)))","v":""}]
[null,null,null,null,null,null,null,null,null,{"$f":"IF(A186=\"\",\"\",SUM(F186:G186)*Pilotage!$D$14*I186)","v":""},{"$f":"IF(A186=\"\",\"\",L186*(100/(100 + 100*Pilotage!$D$14)))","v":""}]
[null,null,null,null,null,null,null,null,null,{"$f":"IF(A187=\"\",\"\",SUM(F187:G187)*Pilotage!$D$14*I187)","v":""},{"$f":"IF(A187=\"\",\"\",L187*(100/(100 + 100*Pilotage!$D$14)))","v":""}]
[null,null,null,null,null,null,null,null,null,{"$f":"IF(A188=\"\",\"\",SUM(F188:G188)*Pilotage!$D$14*I188)","v":""},{"$f":"IF(A188=\"\",\"\",L188*(100/(100 + 100*Pilotage!$D$14)))","v":""}]
[null,null,null,null,null,null,null,null,null,{"$f":"IF(A189=\"\",\"\",SUM(F189:G189)*Pilotage!$D$14*I189)","v":""},{"$f":"IF(A189=\"\",\"\",L189*(100/(100 + 100*Pilotage!$D$14)))","v":""}]
[null,null,null,null,null,null,null,null,null,{"$f":"IF(A190=\"\",\"\",SUM(F190:G190)*Pilotage!$D$14*I190)","v":""},{"$f":"IF(A190=\"\",\"\",L190*(100/(100 + 100*Pilotage!$D$14)))","v":""}]
[null,null,null,null,null,null,null,null,null,{"$f":"IF(A191=\"\",\"\",SUM(F191:G191)*Pilotage!$D$14*I191)","v":""},{"$f":"IF(A191=\"\",\"\",L191*(100/(100 + 100*Pilotage!$D$14)))","v":""}]
[null,null,null,null,null,null,null,null,null,{"$f":"IF(A192=\"\",\"\",SUM(F192:G192)*Pilotage!$D$14*I192)","v":""},{"$f":"IF(A192=\"\",\"\",L192*(100/(100 + 100*Pilotage!$D$14)))","v":""}]
[null,null,null,null,null,null,null,null,null,{"$f":"IF(A193=\"\",\"\",SUM(F193:G193)*Pilotage!$D$14*I193)","v":""},{"$f":"IF(A193=\"\",\"\",L193*(100/(100 + 100*Pilotage!$D$14)))","v":""}]
[null,null,null,null,null,null,null,null,null,{"$f":"IF(A194=\"\",\"\",SUM(F194:G194)*Pilotage!$D$14*I194)","v":""},{"$f":"IF(A194=\"\",\"\",L194*(100/(100 + 100*Pilotage!$D$14)))","v":""}]
[null,null,null,null,null,null,null,null,null,{"$f":"IF(A195=\"\",\"\",SUM(F195:G195)*Pilotage!$D$14*I195)","v":""},{"$f":"IF(A195=\"\",\"\",L195*(100/(100 + 100*Pilotage!$D$14)))","v":""}]
[null,null,null,null,null,null,null,null,null,{"$f":"IF(A196=\"\",\"\",SUM(F196:G196)*Pilotage!$D$14*I196)","v":""},{"$f":"IF(A196=\"\",\"\",L196*(100/(100 + 100*Pilotage!$D$14)))","v":""}]
[null,null,null,null,null,null,null,null,null,{"$f":"IF(A197=\"\",\"\",SUM(F197:G197)*Pilotage!$D$14*I197)","v":""},{"$f":"IF(A197=\"\",\"\",L197*(100/(100 + 100*Pilotage!$D$14)))","v":""}]
[null,null,null,null,null,null,null,null,null,{"$f":"IF(A198=\"\",\"\",SUM(F198:G198)*Pilotage!$D$14*I198)","v":""},{"$f":"IF(A198=\"\",\"\",L198*(100/(100 + 100*Pilotage!$D$14)))","v":""}]
[null,null,null,null,null,null,null,null,null,{"$f":"IF(A199=\"\",\"\",SUM(F199:G199)*Pilotage!$D$14*I199)","v":""},{"$f":"IF(A199=\"\",\"\",L199*(100/(100 + 100*Pilotage!$D$14)))","v":""}]
[null,null,null,null,null,null,null,null,null,{"$f":"IF(A200=\"\",\"\",SUM(F200:G200)*Pilotage!$D$14*I200)","v":""},{"$f":"IF(A200=\"\",\"\",L200*(100/(100 + 100*Pilotage!$D$14)))","v":""}]
[null,null,null,null,null,null,null,null,null,{"$f":"IF(A201=\"\",\"\",SUM(F201:G201)*Pilotage!$D$14*I201)","v":""},{"$f":"IF(A201=\"\",\"\",L201*(100/(100 + 100*Pilotage!$D$14)))","v":""}]
[null,null,null,null,null,null,null,null,null,{"$f":"IF(A202=\"\",\"\",SUM(F202:G202)*Pilotage!$D$14*I202)","v":""},{"$f":"IF(A202=\"\",\"\",L202*(100/(100 + 100*Pilotage!$D$14)))","v":""}]
[null,null,null,null,null,null,null,null,null,{"$f":"IF(A203=\"\",\"\",SUM(F203:G203)*Pilotage!$D$14*I203)","v":""},{"$f":"IF(A203=\"\",\"\",L203*(100/(100 + 100*Pilotage!$D$14)))","v":""}]
[null,null,null,null,null,null,null,null,null,{"$f":"IF(A204=\"\",\"\",SUM(F204:G204)*Pilotage!$D$14*I204)","v":""},{"$f":"IF(A204=\"\",\"\",L204*(100/(100 + 100*Pilotage!$D$14)))","v":""}]
[null,null,null,null,null,null,null,null,null,{"$f":"IF(A205=\"\",\"\",SUM(F205:G205)*Pilotage!$D$14*I205)","v":""},{"$f":"IF(A205=\"\",\"\",L205*(100/(100 + 100*Pilotage!$D$14)))","v":""}]
[null,null,null,null,null,null,null,null,null,{"$f":"IF(A206=\"\",\"\",SUM(F206:G206)*Pilotage!$D$14*I206)","v":""},{"$f":"IF(A206=\"\",\"\",L206*(100/(100 + 100*Pilotage!$D$14)))","v":""}]
[null,null,null,null,null,null,null,null,null,{"$f":"IF(A207=\"\",\"\",SUM(F207:G207)*Pilotage!$D$14*I207)","v":""},{"$f":"IF(A207=\"\",\"\",L207*(100/(100 + 100*Pilotage!$D$14)))","v":""}]
[null,null,null,null,null,null,null,null,null,{"$f":"IF(A208=\"\",\"\",SUM(F208:G208)*Pilotage!$D$14*I208)","v":""},{"$f":"IF(A208=\"\",\"\",L208*(100/(100 + 100*Pilotage!$D$14)))","v":""}]
[null,null,null,null,null,null,null,null,null,{"$f":"IF(A209=\"\",\"\",SUM(F209:G209)*Pilotage!$D$14*I209)","v":""},{"$f":"IF(A209=\"\",\"\",L209*(100/(100 + 100*Pilotage!$D$14)))","v":""}]
[null,null,null,null,null,null,null,null,null,{"$f":"IF(A210=\"\",\"\",SUM(F210:G210)*Pilotage!$D$14*I210)","v":""},{"$f":"IF(A210=\"\",\"\",L210*(100/(100 + 100*Pilotage!$D$14)))","v":""}]
[null,null,null,null,null,null,null,null,null,{"$f":"IF(A211=\"\",\"\",SUM(F211:G211)*Pilotage!$D$14*I211)","v":""},{"$f":"IF(A211=\"\",\"\",L211*(100/(100 + 100*Pilotage!$D$14)))","v":""}]
[null,null,null,null,null,null,null,null,null,{"$f":"IF(A212=\"\",\"\",SUM(F212:G212)*Pilotage!$D$14*I212)","v":""},{"$f":"IF(A212=\"\",\"\",L212*(100/(100 + 100*Pilotage!$D$14)))","v":""}]
[null,null,null,null,null,null,null,null,null,{"$f":"IF(A213=\"\",\"\",SUM(F213:G213)*Pilotage!$D$14*I213)","v":""},{"$f":"IF(A213=\"\",\"\",L213*(100/(100 + 100*Pilotage!$D$14)))","v":""}]
[null,null,null,null,null,null,null,null,null,{"$f":"IF(A214=\"\",\"\",SUM(F214:G214)*Pilotage!$D$14*I214)","v":""},{"$f":"IF(A214=\"\",\"\",L214*(100/(100 + 100*Pilotage!$D$14)))","v":""}]
[null,null,null,null,null,null,null,null,null,{"$f":"IF(A215=\"\",\"\",SUM(F215:G215)*Pilotage!$D$14*I215)","v":""},{"$f":"IF(A215=\"\",\"\",L215*(100/(100 + 100*Pilotage!$D$14)))","v":""}]
[null,null,null,null,null,null,null,null,null,{"$f":"IF(A216=\"\",\"\",SUM(F216:G216)*Pilotage!$D$14*I216)","v":""},{"$f":"IF(A216=\"\",\"\",L216*(100/(100 + 100*Pilotage!$D$14)))","v":""}]
[null,null,null,null,null,null,null,null,null,{"$f":"IF(A217=\"\",\"\",SUM(F217:G217)*Pilotage!$D$14*I217)","v":""},{"$f":"IF(A217=\"\",\"\",L217*(100/(100 + 100*Pilotage!$D$14)))","v":""}]
[null,null,null,null,null,null,null,null,null,{"$f":"IF(A218=\"\",\"\",SUM(F218:G218)*Pilotage!$D$14*I218)","v":""},{"$f":"IF(A218=\"\",\"\",L218*(100/(100 + 100*Pilotage!$D$14)))","v":""}]
[null,null,null,null,null,null,null,null,null,{"$f":"IF(A219=\"\",\"\",SUM(F219:G219)*Pilotage!$D$14*I219)","v":""},{"$f":"IF(A219=\"\",\"\",L219*(100/(100 + 100*Pilotage!$D$14)))","v":""}]
[null,null,null,null,null,null,null,null,null,{"$f":"IF(A220=\"\",\"\",SUM(F220:G220)*Pilotage!$D$14*I220)","v":""},{"$f":"IF(A220=\"\",\"\",L220*(100/(100 + 100*Pilotage!$D$14)))","v":""}]
[null,null,null,null,null,null,null,null,null,{"$f":"IF(A221=\"\",\"\",SUM(F221:G221)*Pilotage!$D$14*I221)","v":""},{"$f":"IF(A221=\"\",\"\",L221*(100/(100 + 100*Pilotage!$D$14)))","v":""}]
[null,null,null,null,null,null,null,null,null,{"$f":"IF(A222=\"\",\"\",SUM(F222:G222)*Pilotage!$D$14*I222)","v":""},{"$f":"IF(A222=\"\",\"\",L222*(100/(100 + 100*Pilotage!$D$14)))","v":""}]
[null,null,null,null,null,null,null,null,null,{"$f":"IF(A223=\"\",\"\",SUM(F223:G223)*Pilotage!$D$14*I223)","v":""},{"$f":"IF(A223=\"\",\"\",L223*(100/(100 + 100*Pilotage!$D$14)))","v":""}]
[null,null,null,null,null,null,null,null,null,{"$f":"IF(A224=\"\",\"\",SUM(F224:G224)*Pilotage!$D$14*I224)","v":""},{"$f":"IF(A224=\"\",\"\",L224*(100/(100 + 100*Pilotage!$D$14)))","v":""}]
[null,null,null,null,null,null,null,null,null,{"$f":"IF(A225=\"\",\"\",SUM(F225:G225)*Pilotage!$D$14*I225)","v":""},{"$f":"IF(A225=\"\",\"\",L225*(100/(100 + 100*Pilotage!$D$14)))","v":""}]
[null,null,null,null,null,null,null,null,null,{"$f":"IF(A226=\"\",\"\",SUM(F226:G226)*Pilotage!$D$14*I226)","v":""},{"$f":"IF(A226=\"\",\"\",L226*(100/(100 + 100*Pilotage!$D$14)))","v":""}]
[null,null,null,null,null,null,null,null,null,{"$f":"IF(A227=\"\",\"\",SUM(F227:G227)*Pilotage!$D$14*I227)","v":""},{"$f":"IF(A227=\"\",\"\",L227*(100/(100 + 100*Pilotage!$D$14)))","v":""}]
[null,null,null,null,null,null,null,null,null,{"$f":"IF(A228=\"\",\"\",SUM(F228:G228)*Pilotage!$D$14*I228)","v":""},{"$f":"IF(A228=\"\",\"\",L228*(100/(100 + 100*Pilotage!$D$14)))","v":""}]
[null,null,null,null,null,null,null,null,null,{"$f":"IF(A229=\"\",\"\",SUM(F229:G229)*Pilotage!$D$14*I229)","v":""},{"$f":"IF(A229=\"\",\"\",L229*(100/(100 + 100*Pilotage!$D$14)))","v":""}]
[null,null,null,null,null,null,null,null,null,{"$f":"IF(A230=\"\",\"\",SUM(F230:G230)*Pilotage!$D$14*I230)","v":""},{"$f":"IF(A230=\"\",\"\",L230*(100/(100 + 100*Pilotage!$D$14)))","v":""}]
[null,null,null,null,null,null,null,null,null,{"$f":"IF(A231=\"\",\"\",SUM(F231:G231)*Pilotage!$D$14*I231)","v":""},{"$f":"IF(A231=\"\",\"\",L231*(100/(100 + 100*Pilotage!$D$14)))","v":""}]
[null,null,null,null,null,null,null,null,null,{"$f":"IF(A232=\"\",\"\",SUM(F232:G232)*Pilotage!$D$14*I232)","v":""},{"$f":"IF(A232=\"\",\"\",L232*(100/(100 + 100*Pilotage!$D$14)))","v":""}]
[null,null,null,null,null,null,null,null,null,{"$f":"IF(A233=\"\",\"\",SUM(F233:G233)*Pilotage!$D$14*I233)","v":""},{"$f":"IF(A233=\"\",\"\",L233*(100/(100 + 100*Pilotage!$D$14)))","v":""}]
[null,null,null,null,null,null,null,null,null,{"$f":"IF(A234=\"\",\"\",SUM(F234:G234)*Pilotage!$D$14*I234)","v":""},{"$f":"IF(A234=\"\",\"\",L234*(100/(100 + 100*Pilotage!$D$14)))","v":""}]
[null,null,null,null,null,null,null,null,null,{"$f":"IF(A235=\"\",\"\",SUM(F235:G235)*Pilotage!$D$14*I235)","v":""},{"$f":"IF(A235=\"\",\"\",L235*(100/(100 + 100*Pilotage!$D$14)))","v":""}]
[null,null,null,null,null,null,null,null,null,{"$f":"IF(A236=\"\",\"\",SUM(F236:G236)*Pilotage!$D$14*I236)","v":""},{"$f":"IF(A236=\"\",\"\",L236*(100/(100 + 100*Pilotage!$D$14)))","v":""}]
[null,null,null,null,null,null,null,null,null,{"$f":"IF(A237=\"\",\"\",SUM(F237:G237)*Pilotage!$D$14*I237)","v":""},{"$f":"IF(A237=\"\",\"\",L237*(100/(100 + 100*Pilotage!$D$14)))","v":""}]
[null,null,null,null,null,null,null,null,null,{"$f":"IF(A238=\"\",\"\",SUM(F238:G238)*Pilotage!$D$14*I238)","v":""},{"$f":"IF(A238=\"\",\"\",L238*(100/(100 + 100*Pilotage!$D$14)))","v":""}]
[null,null,null,null,null,null,null,null,null,{"$f":"IF(A239=\"\",\"\",SUM(F239:G239)*Pilotage!$D$14*I239)","v":""},{"$f":"IF(A239=\"\",\"\",L239*(100/(100 + 100*Pilotage!$D$14)))","v":""}]
[null,null,null,null,null,null,null,null,null,{"$f":"IF(A240=\"\",\"\",SUM(F240:G240)*Pilotage!$D$14*I240)","v":""},{"$f":"IF(A240=\"\",\"\",L240*(100/(100 + 100*Pilotage!$D$14)))","v":""}]
[null,null,null,null,null,null,null,null,null,{"$f":"IF(A241=\"\",\"\",SUM(F241:G241)*Pilotage!$D$14*I241)","v":""},{"$f":"IF(A241=\"\",\"\",L241*(100/(100 + 100*Pilotage!$D$14)))","v":""}]
[null,null,null,null,null,null,null,null,null,{"$f":"IF(A242=\"\",\"\",SUM(F242:G242)*Pilotage!$D$14*I242)","v":""},{"$f":"IF(A242=\"\",\"\",L242*(100/(100 + 100*Pilotage!$D$14)))","v":""}]
[null,null,null,null,null,null,null,null,null,{"$f":"IF(A243=\"\",\"\",SUM(F243:G243)*Pilotage!$D$14*I243)","v":""},{"$f":"IF(A243=\"\",\"\",L243*(100/(100 + 100*Pilotage!$D$14)))","v":""}]
[null,null,null,null,null,null,null,null,null,{"$f":"IF(A244=\"\",\"\",SUM(F244:G244)*Pilotage!$D$14*I244)","v":""},{"$f":"IF(A244=\"\",\"\",L244*(100/(100 + 100*Pilotage!$D$14)))","v":""}]
[null,null,null,null,null,null,null,null,null,{"$f":"IF(A245=\"\",\"\",SUM(F245:G245)*Pilotage!$D$14*I245)","v":""},{"$f":"IF(A245=\"\",\"\",L245*(100/(100 + 100*Pilotage!$D$14)))","v":""}]
[null,null,null,null,null,null,null,null,null,{"$f":"IF(A246=\"\",\"\",SUM(F246:G246)*Pilotage!$D$14*I246)","v":""},{"$f":"IF(A246=\"\",\"\",L246*(100/(100 + 100*Pilotage!$D$14)))","v":""}]
[null,null,null,null,null,null,null,null,null,{"$f":"IF(A247=\"\",\"\",SUM(F247:G247)*Pilotage!$D$14*I247)","v":""},{"$f":"IF(A247=\"\",\"\",L247*(100/(100 + 100*Pilotage!$D$14)))","v":""}]
[null,null,null,null,null,null,null,null,null,{"$f":"IF(A248=\"\",\"\",SUM(F248:G248)*Pilotage!$D$14*I248)","v":""},{"$f":"IF(A248=\"\",\"\",L248*(100/(100 + 100*Pilotage!$D$14)))","v":""}]
[null,null,null,null,null,null,null,null,null,{"$f":"IF(A249=\"\",\"\",SUM(F249:G249)*Pilotage!$D$14*I249)","v":""},{"$f":"IF(A249=\"\",\"\",L249*(100/(100 + 100*Pilotage!$D$14)))","v":""}]
[null,null,null,null,null,null,null,null,null,{"$f":"IF(A250=\"\",\"\",SUM(F250:G250)*Pilotage!$D$14*I250)","v":""},{"$f":"IF(A250=\"\",\"\",L250*(100/(100 + 100*Pilotage!$D$14)))","v":""}]
[null,null,null,null,null,null,null,null,null,{"$f":"IF(A251=\"\",\"\",SUM(F251:G251)*Pilotage!$D$14*I251)","v":""},{"$f":"IF(A251=\"\",\"\",L251*(100/(100 + 100*Pilotage!$D$14)))","v":""}]
[null,null,null,null,null,null,null,null,null,{"$f":"IF(A252=\"\",\"\",SUM(F252:G252)*Pilotage!$D$14*I252)","v":""},{"$f":"IF(A252=\"\",\"\",L252*(100/(100 + 100*Pilotage!$D$14)))","v":""}]
[null,null,null,null,null,null,null,null,null,{"$f":"IF(A253=\"\",\"\",SUM(F253:G253)*Pilotage!$D$14*I253)","v":""},{"$f":"IF(A253=\"\",\"\",L253*(100/(100 + 100*Pilotage!$D$14)))","v":""}]
[null,null,null,null,null,null,null,null,null,{"$f":"IF(A254=\"\",\"\",SUM(F254:G254)*Pilotage!$D$14*I254)","v":""},{"$f":"IF(A254=\"\",\"\",L254*(100/(100 + 100*Pilotage!$D$14)))","v":""}]
[null,null,null,null,null,null,null,null,null,{"$f":"IF(A255=\"\",\"\",SUM(F255:G255)*Pilotage!$D$14*I255)","v":""},{"$f":"IF(A255=\"\",\"\",L255*(100/(100 + 100*Pilotage!$D$14)))","v":""}]
[null,null,null,null,null,null,null,null,null,{"$f":"IF(A256=\"\",\"\",SUM(F256:G256)*Pilotage!$D$14*I256)","v":""},{"$f":"IF(A256=\"\",\"\",L256*(100/(100 + 100*Pilotage!$D$14)))","v":""}]
[null,null,null,null,null,null,null,null,null,{"$f":"IF(A257=\"\",\"\",SUM(F257:G257)*Pilotage!$D$14*I257)","v":""},{"$f":"IF(A257=\"\",\"\",L257*(100/(100 + 100*Pilotage!$D$14)))","v":""}]
[null,null,null,null,null,null,null,null,null,{"$f":"IF(A258=\"\",\"\",SUM(F258:G258)*Pilotage!$D$14*I258)","v":""},{"$f":"IF(A258=\"\",\"\",L258*(100/(100 + 100*Pilotage!$D$14)))","v":""}]
[null,null,null,null,null,null,null,null,null,{"$f":"IF(A259=\"\",\"\",SUM(F259:G259)*Pilotage!$D$14*I259)","v":""},{"$f":"IF(A259=\"\",\"\",L259*(100/(100 + 100*Pilotage!$D$14)))","v":""}]
[null,null,null,null,null,null,null,null,null,{"$f":"IF(A260=\"\",\"\",SUM(F260:G260)*Pilotage!$D$14*I260)","v":""},{"$f":"IF(A260=\"\",\"\",L260*(100/(100 + 100*Pilotage!$D$14)))","v":""}]
[null,null,null,null,null,null,null,null,null,{"$f":"IF(A261=\"\",\"\",SUM(F261:G261)*Pilotage!$D$14*I261)","v":""},{"$f":"IF(A261=\"\",\"\",L261*(100/(100 + 100*Pilotage!$D$14)))","v":""}]
[null,null,null,null,null,null,null,null,null,{"$f":"IF(A262=\"\",\"\",SUM(F262:G262)*Pilotage!$D$14*I262)","v":""},{"$f":"IF(A262=\"\",\"\",L262*(100/(100 + 100*Pilotage!$D$14)))","v":""}]
[null,null,null,null,null,null,null,null,null,{"$f":"IF(A263=\"\",\"\",SUM(F263:G263)*Pilotage!$D$14*I263)","v":""},{"$f":"IF(A263=\"\",\"\",L263*(100/(100 + 100*Pilotage!$D$14)))","v":""}]
[null,null,null,null,null,null,null,null,null,{"$f":"IF(A264=\"\",\"\",SUM(F264:G264)*Pilotage!$D$14*I264)","v":""},{"$f":"IF(A264=\"\",\"\",L264*(100/(100 + 100*Pilotage!$D$14)))","v":""}]
[null,null,null,null,null,null,null,null,null,{"$f":"IF(A265=\"\",\"\",SUM(F265:G265)*Pilotage!$D$14*I265)","v":""},{"$f":"IF(A265=\"\",\"\",L265*(100/(100 + 100*Pilotage!$D$14)))","v":""}]
[null,null,null,null,null,null,null,null,null,{"$f":"IF(A266=\"\",\"\",SUM(F266:G266)*Pilotage!$D$14*I266)","v":""},{"$f":"IF(A266=\"\",\"\",L266*(100/(100 + 100*Pilotage!$D$14)))","v":""}]
[null,null,null,null,null,null,null,null,null,{"$f":"IF(A267=\"\",\"\",SUM(F267:G267)*Pilotage!$D$14*I267)","v":""}]
[null,null,null,null,null,null,null,null,null,{"$f":"IF(A268=\"\",\"\",SUM(F268:G268)*Pilotage!$D$14*I268)","v":""}]
[null,null,null,null,null,null,null,null,null,{"$f":"IF(A269=\"\",\"\",SUM(F269:G269)*Pilotage!$D$14*I269)","v":""}]
[null,null,null,null,null,null,null,null,null,{"$f":"IF(A270=\"\",\"\",SUM(F270:G270)*Pilotage!$D$14*I270)","v":""}]
[null,null,null,null,null,null,null,null,null,{"$f":"IF(A271=\"\",\"\",SUM(F271:G271)*Pilotage!$D$14*I271)","v":""}]
[null,null,null,null,null,null,null,null,null,{"$f":"IF(A272=\"\",\"\",SUM(F272:G272)*Pilotage!$D$14*I272)","v":""}]
[null,null,null,null,null,null,null,null,null,{"$f":"IF(A273=\"\",\"\",SUM(F273:G273)*Pilotage!$D$14*I273)","v":""}]
[null,null,null,null,null,null,null,null,null,{"$f":"IF(A274=\"\",\"\",SUM(F274:G274)*Pilotage!$D$14*I274)","v":""}]
[null,null,null,null,null,null,null,null,null,{"$f":"IF(A275=\"\",\"\",SUM(F275:G275)*Pilotage!$D$14*I275)","v":""}]
[null,null,null,null,null,null,null,null,null,{"$f":"IF(A276=\"\",\"\",SUM(F276:G276)*Pilotage!$D$14*I276)","v":""}]
[null,null,null,null,null,null,null,null,null,{"$f":"IF(A277=\"\",\"\",SUM(F277:G277)*Pilotage!$D$14*I277)","v":""}]
[null,null,null,null,null,null,null,null,null,{"$f":"IF(A278=\"\",\"\",SUM(F278:G278)*Pilotage!$D$14*I278)","v":""}]
[null,null,null,null,null,null,null,null,null,{"$f":"IF(A279=\"\",\"\",SUM(F279:G279)*Pilotage!$D$14*I279)","v":""}]
[null,null,null,null,null,null,null,null,null,{"$f":"IF(A280=\"\",\"\",SUM(F280:G280)*Pilotage!$D$14*I280)","v":""}]
[null,null,null,null,null,null,null,null,null,{"$f":"IF(A281=\"\",\"\",SUM(F281:G281)*Pilotage!$D$14*I281)","v":""}]

{"sheet":"Installation","index":35,"n_rows":271,"n_cols":45,"rows_kept":271,"cut":false,"hidden":false,"merged":[[0,1,0,2]]}
["Qtt","Catégorie",null,"Designation","Commentaires","Prix unitaire €","Prix Unit. From $","Prix en $","Exprimé HT","TVA","Prix HT","Prix TTC","Sous totaux TTC","Provenance","Dont charges",null,"*","FL","FC","B","CW",null,"*","FL","FC","B","CW",null,null,null,"Durée","Taux","Année 0","Année 1","Année 2","Année 3","Année 4","Année 5","Année 6","Année 7","Année 8","Année 9","Année 10","Année 11","Année 12"]
[null,null,null,null,null,null,null,null,null,null,null,null,null,null,null,null,null,null,null,null,null,null,null,null,null,null,null,null,null,null,null,null,0,1,2,3,4,5,6,7,8,9,10,11,12]
[null,null,null,null,null,null,null,null,null,null,"Total HT","Total TTC",null,null,"Charges HT",null,null,null,null,null,null,null,{"$f":"W4/$K4","v":1.9607843137254898E-2},{"$f":"X4/$K4","v":0.71918643123323922},{"$f":"Y4/$K4","v":0},{"$f":"Z4/$K4","v":0},{"$f":"AA4/$K4","v":0},{"$f":"SUM(W3:AA3)","v":0.73879427437049416},null,null,null,null,"Total DAT ","Total DAT ","Total DAT ","Total DAT ","Total DAT ","Total DAT ","Total DAT ","Total DAT ","Total DAT ","Total DAT ","Total DAT ","Total DAT ","Total DAT "]
[null,null,null,null,null,null,null,null,null,null,{"$f":"L4*(100/(100 + 100*Pilotage!$D$14))","v":9571.0000000000018},{"$f":"SUM(M:M)","v":11485.2},null,null,{"$f":"SUM($O$15:$O802)","v":0},null,null,null,null,null,null,null,{"$f":"SUM(W6:W15)","v":187.66666666666666},{"$f":"SUM(X6:X15)","v":6883.3333333333339},{"$f":"SUM(Y6:Y15)","v":0},{"$f":"SUM(Z6:Z15)","v":0},{"$f":"SUM(AA6:AA15)","v":0},{"$f":"SUM(W4:AA4)","v":7071.0000000000009},null,null,null,null,{"$f":"SUM(AG9:AG98)","v":0},688.33333333333337,688.33333333333337,688.33333333333337,688.33333333333337,688.33333333333337,688.33333333333337,688.33333333333337,688.33333333333337,688.33333333333337,688.33333333333337,0,0]
[null,null,null,null,null,null,null,null,null,null,null,{"$f":"IF(L4<>SUM($L$6:$L$802),\"ERREUR Page Investissements\",\"\")","v":""},null,null,null,null,null,null,null,null,null,null,null,null,null,null,null,{"$f":"K4-AB4","v":2500.0000000000009}]
[null,"Aléas",null,{"$f":"Pilotage!$D$17","v":0.02},null,null,{"$f":"IF(H6=\"\",\"\",H6*$G$4)","v":""},null,null,{"$f":"IF(A6=\"\",\"\",SUM(F6:G6)*Pilotage!$D$14*I6)","v":""},{"$f":"IF(A6=\"\",\"\",#REF!*(100/(100 + 100*Pilotage!$D$14)))","v":""},{"$f":"D6*SUM(K$8:K$704)*(1+Pilotage!$D$14)","v":225.2},{"$f":"L6","v":225.2},null,null,null,0,1,null,null,null,null,{"$f":"L6*Pilotage!D15","v":187.66666666666666},0,0,0,0]
[]
[null,"Frais de création"]
[1,null,"Publication",null,null,350,null,null,1,{"$f":"IF(A9=\"\",\"\",SUM(F9:G9)*Pilotage!$D$14*I9)","v":70},{"$f":"IF(A9=\"\",\"\",L9*(100/(100 + 100*Pilotage!$D$14)))","v":350},{"$f":"IF(A9=\"\",\"\",(SUM(F9:G9)+J9)*A9)","v":420},null,null,null,null,0,1,null,null,null,null,{"$f":"IF($A9<>\"\",Q9*$K9,\"\")","v":0},{"$f":"IF($A9<>\"\",R9*$K9,\"\")","v":350},{"$f":"IF($A9<>\"\",S9*$K9,\"\")","v":0},{"$f":"IF($A9<>\"\",T9*$K9,\"\")","v":0},{"$f":"IF($A9<>\"\",U9*$K9,\"\")","v":0},null,null,"Frais d’installation",{"$f":"IF(A9<>\"\",IF($AD9<>\"\",VLOOKUP($AD9,Immobilisations[],7),0),\"\")","v":10},{"$f":"IF(A9<>\"\",IF($AD9<>\"\",VLOOKUP($AD9,Immobilisations[],8),\"\"),\"\")","v":0.1},{"$f":"IF(AND($A9<>\"\",$AF9<>\"\"),IF(AG$2=0,0,IF(ROUNDDOWN(AG$2/($AE9+1),0)=0,$K9*$AE9/100,0)),\"\")","v":0},{"$f":"IF(AND($A9<>\"\",$AF9<>\"\"),IF(AH$2=0,0,IF(ROUNDDOWN(AH$2/($AE9+1),0)=0,$K9*$AE9/100,0)),\"\")","v":35},{"$f":"IF(AND($A9<>\"\",$AF9<>\"\"),IF(AI$2=0,0,IF(ROUNDDOWN(AI$2/($AE9+1),0)=0,$K9*$AE9/100,0)),\"\")","v":35},35,35,35,35,35,35,35,35,0,0]
[1,null,"Greffe",null,null,75,null,null,1,{"$f":"IF(A10=\"\",\"\",SUM(F10:G10)*Pilotage!$D$14*I10)","v":15},{"$f":"IF(A10=\"\",\"\",L10*(100/(100 + 100*Pilotage!$D$14)))","v":75},90,null,null,null,null,0,1,null,null,null,null,{"$f":"IF($A10<>\"\",Q10*$K10,\"\")","v":0},75,{"$f":"IF($A10<>\"\",S10*$K10,\"\")","v":0},0,0,null,null,"Frais d’installation",{"$f":"IF(A10<>\"\",IF($AD10<>\"\",VLOOKUP($AD10,Immobilisations[],7),0),\"\")","v":10},{"$f":"IF(A10<>\"\",IF($AD10<>\"\",VLOOKUP($AD10,Immobilisations[],8),\"\"),\"\")","v":0.1},{"$f":"IF(AND($A10<>\"\",$AF10<>\"\"),IF(AG$2=0,0,IF(ROUNDDOWN(AG$2/($AE10+1),0)=0,$K10*$AE10/100,0)),\"\")","v":0},7.5,7.5,7.5,7.5,7.5,7.5,7.5,7.5,7.5,7.5,0,0]
[1,null,"commissaire aux apports",null,"entre 1000 à 2000",1500,null,null,1,{"$f":"IF(A11=\"\",\"\",SUM(F11:G11)*Pilotage!$D$14*I11)","v":300},{"$f":"IF(A11=\"\",\"\",L11*(100/(100 + 100*Pilotage!$D$14)))","v":1500},1800,null,null,null,null,0,1,null,null,null,null,0,1500,0,0,0,null,null,"Frais d’installation",{"$f":"IF(A11<>\"\",IF($AD11<>\"\",VLOOKUP($AD11,Immobilisations[],7),0),\"\")","v":10},{"$f":"IF(A11<>\"\",IF($AD11<>\"\",VLOOKUP($AD11,Immobilisations[],8),\"\"),\"\")","v":0.1},0,150,150,150,150,150,150,150,150,150,150,0,0]
[1,null,"CGV+CGU",null,null,3000,null,null,null,{"$f":"IF(A12=\"\",\"\",SUM(F12:G12)*Pilotage!$D$14*I12)","v":0},{"$f":"IF(A12=\"\",\"\",L12*(100/(100 + 100*Pilotage!$D$14)))","v":2500},3000]
[1,null,"avocat",null,"entre 500 et 3000 selon la forme juridique",3000,null,null,1,{"$f":"IF(A13=\"\",\"\",SUM(F13:G13)*Pilotage!$D$14*I13)","v":600},{"$f":"IF(A13=\"\",\"\",L13*(100/(100 + 100*Pilotage!$D$14)))","v":3000},3600,null,null,null,null,0,1,null,null,null,null,0,3000,0,0,0,null,null,"Frais d’installation",{"$f":"IF(A13<>\"\",IF($AD13<>\"\",VLOOKUP($AD13,Immobilisations[],7),0),\"\")","v":10},{"$f":"IF(A13<>\"\",IF($AD13<>\"\",VLOOKUP($AD13,Immobilisations[],8),\"\"),\"\")","v":0.1},0,300,300,300,300,300,300,300,300,300,300,0,0]
[1,null,"publicité",null,null,2000,null,null,null,{"$f":"IF(A14=\"\",\"\",SUM(F14:G14)*Pilotage!$D$14*I14)","v":0},{"$f":"IF(A14=\"\",\"\",L14*(100/(100 + 100*Pilotage!$D$14)))","v":1666.6666666666667},2000,null,null,null,null,0,1,null,null,null,null,0,1666.6666666666667,0,0,0,null,null,"Frais d’installation",{"$f":"IF(A14<>\"\",IF($AD14<>\"\",VLOOKUP($AD14,Immobilisations[],7),0),\"\")","v":10},{"$f":"IF(A14<>\"\",IF($AD14<>\"\",VLOOKUP($AD14,Immobilisations[],8),\"\"),\"\")","v":0.1},0,166.66666666666669,166.66666666666669,166.66666666666669,166.66666666666669,166.66666666666669,166.66666666666669,166.66666666666669,166.66666666666669,166.66666666666669,166.66666666666669,0,0]
[1,null,"INPI",null,null,350,{"$f":"IF(H15=\"\",\"\",H15*Pilotage!$D$16)","v":""},null,null,{"$f":"IF(A15=\"\",\"\",SUM(F15:G15)*Pilotage!$D$14*I15)","v":0},{"$f":"IF(A15=\"\",\"\",L15*(100/(100 + 100*Pilotage!$D$14)))","v":291.66666666666669},{"$f":"IF(A15=\"\",\"\",(SUM(F15:G15)+J15)*A15)","v":350},null,null,null,null,0,1,null,null,null,null,{"$f":"IF($A15<>\"\",Q15*$K15,\"\")","v":0},{"$f":"IF($A15<>\"\",R15*$K15,\"\")","v":291.66666666666669},{"$f":"IF($A15<>\"\",S15*$K15,\"\")","v":0},{"$f":"IF($A15<>\"\",T15*$K15,\"\")","v":0},{"$f":"IF($A15<>\"\",U15*$K15,\"\")","v":0},null,null,"Frais d’installation",{"$f":"IF(A15<>\"\",IF($AD15<>\"\",VLOOKUP($AD15,Immobilisations[],7),0),\"\")","v":10},{"$f":"IF(A15<>\"\",IF($AD15<>\"\",VLOOKUP($AD15,Immobilisations[],8),\"\"),\"\")","v":0.1},{"$f":"IF(AND($A15<>\"\",$AF15<>\"\"),IF(AG$2=0,0,IF(ROUNDDOWN(AG$2/($AE15+1),0)=0,$K15*$AE15/100,0)),\"\")","v":0},29.166666666666671,29.166666666666671,29.166666666666671,29.166666666666671,29.166666666666671,29.166666666666671,29.166666666666671,29.166666666666671,29.166666666666671,29.166666666666671,0,0]
[null,null,null,null,null,null,{"$f":"IF(H16=\"\",\"\",H16*Pilotage!$D$16)","v":""},null,null,{"$f":"IF(A16=\"\",\"\",SUM(F16:G16)*Pilotage!$D$14*I16)","v":""},{"$f":"IF(A16=\"\",\"\",L16*(100/(100 + 100*Pilotage!$D$14)))","v":""},"",{"$f":"SUM(L9:L15)","v":11260},null,null,null,null,null,null,null,null,null,null,null,null,null,null,null,null,null,{"$f":"IF(A16<>\"\",IF($AD16<>\"\",VLOOKUP($AD16,Immobilisations[],7),0),\"\")","v":""},{"$f":"IF(A16<>\"\",IF($AD16<>\"\",VLOOKUP($AD16,Immobilisations[],8),\"\"),\"\")","v":""},"","","","","","","","","","","","",""]
[null,null,null,null,null,null,{"$f":"IF(H17=\"\",\"\",H17*Pilotage!$D$16)","v":""},null,null,{"$f":"IF(A17=\"\",\"\",SUM(F17:G17)*Pilotage!$D$14*I17)","v":""},{"$f":"IF(A17=\"\",\"\",L17*(100/(100 + 100*Pilotage!$D$14)))","v":""},"",null,null,null,null,null,null,null,null,null,null,null,null,null,null,null,null,null,null,{"$f":"IF(A17<>\"\",IF($AD17<>\"\",VLOOKUP($AD17,Immobilisations[],7),0),\"\")","v":""},{"$f":"IF(A17<>\"\",IF($AD17<>\"\",VLOOKUP($AD17,Immobilisations[],8),\"\"),\"\")","v":""},"","","","","","","","","","","","",""]
[null,null,null,null,null,null,{"$f":"IF(H18=\"\",\"\",H18*Pilotage!$D$16)","v":""},null,null,{"$f":"IF(A18=\"\",\"\",SUM(F18:G18)*Pilotage!$D$14*I18)","v":""},{"$f":"IF(A18=\"\",\"\",L18*(100/(100 + 100*Pilotage!$D$14)))","v":""},"",null,null,null,null,null,null,null,null,null,null,null,null,null,null,null,null,null,null,{"$f":"IF(A18<>\"\",IF($AD18<>\"\",VLOOKUP($AD18,Immobilisations[],7),0),\"\")","v":""},{"$f":"IF(A18<>\"\",IF($AD18<>\"\",VLOOKUP($AD18,Immobilisations[],8),\"\"),\"\")","v":""},"","","","","","","","","","","","",""]
[null,null,null,null,null,null,{"$f":"IF(H19=\"\",\"\",H19*Pilotage!$D$16)","v":""},null,null,{"$f":"IF(A19=\"\",\"\",SUM(F19:G19)*Pilotage!$D$14*I19)","v":""},{"$f":"IF(A19=\"\",\"\",L19*(100/(100 + 100*Pilotage!$D$14)))","v":""},"",null,null,null,null,null,null,null,null,null,null,null,null,null,null,null,null,null,null,{"$f":"IF(A19<>\"\",IF($AD19<>\"\",VLOOKUP($AD19,Immobilisations[],7),0),\"\")","v":""},{"$f":"IF(A19<>\"\",IF($AD19<>\"\",VLOOKUP($AD19,Immobilisations[],8),\"\"),\"\")","v":""},"","","","","","","","","","","","",""]
[null,null,null,null,null,null,{"$f":"IF(H20=\"\",\"\",H20*Pilotage!$D$16)","v":""},null,null,{"$f":"IF(A20=\"\",\"\",SUM(F20:G20)*Pilotage!$D$14*I20)","v":""},{"$f":"IF(A20=\"\",\"\",L20*(100/(100 + 100*Pilotage!$D$14)))","v":""},"",null,null,null,null,null,null,null,null,null,null,null,null,null,null,null,null,null,null,{"$f":"IF(A20<>\"\",IF($AD20<>\"\",VLOOKUP($AD20,Immobilisations[],7),0),\"\")","v":""},{"$f":"IF(A20<>\"\",IF($AD20<>\"\",VLOOKUP($AD20,Immobilisations[],8),\"\"),\"\")","v":""},"","","","","","","","","","","","",""]
[null,null,null,null,null,null,{"$f":"IF(H21=\"\",\"\",H21*Pilotage!$D$16)","v":""},null,null,{"$f":"IF(A21=\"\",\"\",SUM(F21:G21)*Pilotage!$D$14*I21)","v":""},{"$f":"IF(A21=\"\",\"\",L21*(100/(100 + 100*Pilotage!$D$14)))","v":""},"",null,null,null,null,null,null,null,null,null,null,null,null,null,null,null,null,null,null,{"$f":"IF(A21<>\"\",IF($AD21<>\"\",VLOOKUP($AD21,Immobilisations[],7),0),\"\")","v":""},{"$f":"IF(A21<>\"\",IF($AD21<>\"\",VLOOKUP($AD21,Immobilisations[],8),\"\"),\"\")","v":""},"","","","","","","","","","","","",""]
[null,null,null,null,null,null,{"$f":"IF(H22=\"\",\"\",H22*Pilotage!$D$16)","v":""},null,null,{"$f":"IF(A22=\"\",\"\",SUM(F22:G22)*Pilotage!$D$14*I22)","v":""},{"$f":"IF(A22=\"\",\"\",L22*(100/(100 + 100*Pilotage!$D$14)))","v":""},"",null,null,null,null,null,null,null,null,null,null,null,null,null,null,null,null,null,null,{"$f":"IF(A22<>\"\",IF($AD22<>\"\",VLOOKUP($AD22,Immobilisations[],7),0),\"\")","v":""},{"$f":"IF(A22<>\"\",IF($AD22<>\"\",VLOOKUP($AD22,Immobilisations[],8),\"\"),\"\")","v":""},"","","","","","","","","","","","",""]
[null,null,null,null,null,null,null,null,null,{"$f":"IF(A23=\"\",\"\",SUM(F23:G23)*Pilotage!$D$14*I23)","v":""},{"$f":"IF(A23=\"\",\"\",L23*(100/(100 + 100*Pilotage!$D$14)))","v":""},"",null,null,null,null,null,null,null,null,null,null,null,null,null,null,null,null,null,null,{"$f":"IF(A23<>\"\",IF($AD23<>\"\",VLOOKUP($AD23,Immobilisations[],7),0),\"\")","v":""},{"$f":"IF(A23<>\"\",IF($AD23<>\"\",VLOOKUP($AD23,Immobilisations[],8),\"\"),\"\")","v":""},"","","","","","","","",{"$f":"IF(AND($A23<>\"\",$AF23<>\"\"),IF(AO$2=0,0,IF(ROUNDDOWN(AO$2/($AE23+1),0)=0,$K23*$AE23/100,0)),\"\")","v":""},{"$f":"IF(AND($A23<>\"\",$AF23<>\"\"),IF(AP$2=0,0,IF(ROUNDDOWN(AP$2/($AE23+1),0)=0,$K23*$AE23/100,0)),\"\")","v":""},{"$f":"IF(AND($A23<>\"\",$AF23<>\"\"),IF(AQ$2=0,0,IF(ROUNDDOWN(AQ$2/($AE23+1),0)=0,$K23*$AE23/100,0)),\"\")","v":""},{"$f":"IF(AND($A23<>\"\",$AF23<>\"\"),IF(AR$2=0,0,IF(ROUNDDOWN(AR$2/($AE23+1),0)=0,$K23*$AE23/100,0)),\"\")","v":""},{"$f":"IF(AND($A23<>\"\",$AF23<>\"\"),IF(AS$2=0,0,IF(ROUNDDOWN(AS$2/($AE23+1),0)=0,$K23*$AE23/100,0)),\"\")","v":""}]
[null,null,null,null,null,null,null,null,null,{"$f":"IF(A24=\"\",\"\",SUM(F24:G24)*Pilotage!$D$14*I24)","v":""},{"$f":"IF(A24=\"\",\"\",L24*(100/(100 + 100*Pilotage!$D$14)))","v":""},"",null,null,null,null,null,null,null,null,null,null,null,null,null,null,null,null,null,null,{"$f":"IF(A24<>\"\",IF($AD24<>\"\",VLOOKUP($AD24,Immobilisations[],7),0),\"\")","v":""},{"$f":"IF(A24<>\"\",IF($AD24<>\"\",VLOOKUP($AD24,Immobilisations[],8),\"\"),\"\")","v":""},{"$f":"IF(AND($A24<>\"\",$AF24<>\"\"),IF(AG$2=0,0,IF(ROUNDDOWN(AG$2/($AE24+1),0)=0,$K24*$AE24/100,0)),\"\")","v":""},"","","","","","","","","","","",""]
[null,null,null,null,null,null,null,null,null,{"$f":"IF(A25=\"\",\"\",SUM(F25:G25)*Pilotage!$D$14*I25)","v":""},{"$f":"IF(A25=\"\",\"\",L25*(100/(100 + 100*Pilotage!$D$14)))","v":""},"",null,null,null,null,null,null,null,null,null,null,null,null,null,null,null,null,null,null,{"$f":"IF(A25<>\"\",IF($AD25<>\"\",VLOOKUP($AD25,Immobilisations[],7),0),\"\")","v":""},{"$f":"IF(A25<>\"\",IF($AD25<>\"\",VLOOKUP($AD25,Immobilisations[],8),\"\"),\"\")","v":""},"","","","","","","","","","","","",""]
[null,null,null,null,null,null,null,null,null,{"$f":"IF(A26=\"\",\"\",SUM(F26:G26)*Pilotage!$D$14*I26)","v":""},{"$f":"IF(A26=\"\",\"\",L26*(100/(100 + 100*Pilotage!$D$14)))","v":""},"",null,null,null,null,null,null,null,null,null,null,null,null,null,null,null,null,null,null,{"$f":"IF(A26<>\"\",IF($AD26<>\"\",VLOOKUP($AD26,Immobilisations[],7),0),\"\")","v":""},{"$f":"IF(A26<>\"\",IF($AD26<>\"\",VLOOKUP($AD26,Immobilisations[],8),\"\"),\"\")","v":""},"","","","","","","","","","","","",""]
[null,null,null,null,null,null,null,null,null,{"$f":"IF(A27=\"\",\"\",SUM(F27:G27)*Pilotage!$D$14*I27)","v":""},{"$f":"IF(A27=\"\",\"\",L27*(100/(100 + 100*Pilotage!$D$14)))","v":""},"",null,null,null,null,null,null,null,null,null,null,null,null,null,null,null,null,null,null,{"$f":"IF(A27<>\"\",IF($AD27<>\"\",VLOOKUP($AD27,Immobilisations[],7),0),\"\")","v":""},{"$f":"IF(A27<>\"\",IF($AD27<>\"\",VLOOKUP($AD27,Immobilisations[],8),\"\"),\"\")","v":""},"","","","","","","","","","","","",""]
[null,null,null,null,null,null,null,null,null,{"$f":"IF(A28=\"\",\"\",SUM(F28:G28)*Pilotage!$D$14*I28)","v":""},{"$f":"IF(A28=\"\",\"\",L28*(100/(100 + 100*Pilotage!$D$14)))","v":""},null,null,null,null,null,null,null,null,null,null,null,null,null,null,null,null,null,null,null,{"$f":"IF(A28<>\"\",IF($AD28<>\"\",VLOOKUP($AD28,Immobilisations[],7),0),\"\")","v":""},{"$f":"IF(A28<>\"\",IF($AD28<>\"\",VLOOKUP($AD28,Immobilisations[],8),\"\"),\"\")","v":""},"","","","","","","","","","","","",""]
[null,null,null,null,null,null,null,null,null,{"$f":"IF(A29=\"\",\"\",SUM(F29:G29)*Pilotage!$D$14*I29)","v":""},{"$f":"IF(A29=\"\",\"\",L29*(100/(100 + 100*Pilotage!$D$14)))","v":""},null,null,null,null,null,null,null,null,null,null,null,null,null,null,null,null,null,null,null,{"$f":"IF(A29<>\"\",IF($AD29<>\"\",VLOOKUP($AD29,Immobilisations[],7),0),\"\")","v":""},{"$f":"IF(A29<>\"\",IF($AD29<>\"\",VLOOKUP($AD29,Immobilisations[],8),\"\"),\"\")","v":""},"","","","","","","","","","","","",""]
[null,null,null,null,null,null,null,null,null,{"$f":"IF(A30=\"\",\"\",SUM(F30:G30)*Pilotage!$D$14*I30)","v":""},{"$f":"IF(A30=\"\",\"\",L30*(100/(100 + 100*Pilotage!$D$14)))","v":""},null,null,null,null,null,null,null,null,null,null,null,null,null,null,null,null,null,null,null,{"$f":"IF(A30<>\"\",IF($AD30<>\"\",VLOOKUP($AD30,Immobilisations[],7),0),\"\")","v":""},{"$f":"IF(A30<>\"\",IF($AD30<>\"\",VLOOKUP($AD30,Immobilisations[],8),\"\"),\"\")","v":""},"","","","","","","","","","","","",""]
[null,null,null,null,null,null,null,null,null,{"$f":"IF(A31=\"\",\"\",SUM(F31:G31)*Pilotage!$D$14*I31)","v":""},{"$f":"IF(A31=\"\",\"\",L31*(100/(100 + 100*Pilotage!$D$14)))","v":""},null,null,null,null,null,null,null,null,null,null,null,null,null,null,null,null,null,null,null,{"$f":"IF(A31<>\"\",IF($AD31<>\"\",VLOOKUP($AD31,Immobilisations[],7),0),\"\")","v":""},{"$f":"IF(A31<>\"\",IF($AD31<>\"\",VLOOKUP($AD31,Immobilisations[],8),\"\"),\"\")","v":""},"","","","","","","","","","","","",""]
[null,null,null,null,null,null,null,null,null,{"$f":"IF(A32=\"\",\"\",SUM(F32:G32)*Pilotage!$D$14*I32)","v":""},{"$f":"IF(A32=\"\",\"\",L32*(100/(100 + 100*Pilotage!$D$14)))","v":""},null,null,null,null,null,null,null,null,null,null,null,null,null,null,null,null,null,null,null,{"$f":"IF(A32<>\"\",IF($AD32<>\"\",VLOOKUP($AD32,Immobilisations[],7),0),\"\")","v":""},{"$f":"IF(A32<>\"\",IF($AD32<>\"\",VLOOKUP($AD32,Immobilisations[],8),\"\"),\"\")","v":""},"","","","","","","","","","","","",""]
[null,null,null,null,null,null,null,null,null,{"$f":"IF(A33=\"\",\"\",SUM(F33:G33)*Pilotage!$D$14*I33)","v":""},{"$f":"IF(A33=\"\",\"\",L33*(100/(100 + 100*Pilotage!$D$14)))","v":""},null,null,null,null,null,null,null,null,null,null,null,null,null,null,null,null,null,null,null,{"$f":"IF(A33<>\"\",IF($AD33<>\"\",VLOOKUP($AD33,Immobilisations[],7),0),\"\")","v":""},{"$f":"IF(A33<>\"\",IF($AD33<>\"\",VLOOKUP($AD33,Immobilisations[],8),\"\"),\"\")","v":""},"","","","","","","","","","","","",""]
[null,null,null,null,null,null,null,null,null,{"$f":"IF(A34=\"\",\"\",SUM(F34:G34)*Pilotage!$D$14*I34)","v":""},{"$f":"IF(A34=\"\",\"\",L34*(100/(100 + 100*Pilotage!$D$14)))","v":""},null,null,null,null,null,null,null,null,null,null,null,null,null,null,null,null,null,null,null,{"$f":"IF(A34<>\"\",IF($AD34<>\"\",VLOOKUP($AD34,Immobilisations[],7),0),\"\")","v":""},{"$f":"IF(A34<>\"\",IF($AD34<>\"\",VLOOKUP($AD34,Immobilisations[],8),\"\"),\"\")","v":""},"","","","","","","","","","","","",""]
[null,null,null,null,null,null,null,null,null,{"$f":"IF(A35=\"\",\"\",SUM(F35:G35)*Pilotage!$D$14*I35)","v":""},{"$f":"IF(A35=\"\",\"\",L35*(100/(100 + 100*Pilotage!$D$14)))","v":""},null,null,null,null,null,null,null,null,null,null,null,null,null,null,null,null,null,null,null,{"$f":"IF(A35<>\"\",IF($AD35<>\"\",VLOOKUP($AD35,Immobilisations[],7),0),\"\")","v":""},{"$f":"IF(A35<>\"\",IF($AD35<>\"\",VLOOKUP($AD35,Immobilisations[],8),\"\"),\"\")","v":""},"","","","","","","","","","","","",""]
[null,null,null,null,null,null,null,null,null,{"$f":"IF(A36=\"\",\"\",SUM(F36:G36)*Pilotage!$D$14*I36)","v":""},{"$f":"IF(A36=\"\",\"\",L36*(100/(100 + 100*Pilotage!$D$14)))","v":""},null,null,null,null,null,null,null,null,null,null,null,null,null,null,null,null,null,null,null,{"$f":"IF(A36<>\"\",IF($AD36<>\"\",VLOOKUP($AD36,Immobilisations[],7),0),\"\")","v":""},{"$f":"IF(A36<>\"\",IF($AD36<>\"\",VLOOKUP($AD36,Immobilisations[],8),\"\"),\"\")","v":""},"","","","","","","","","","","","",""]
[null,null,null,null,null,null,null,null,null,{"$f":"IF(A37=\"\",\"\",SUM(F37:G37)*Pilotage!$D$14*I37)","v":""},{"$f":"IF(A37=\"\",\"\",L37*(100/(100 + 100*Pilotage!$D$14)))","v":""},null,null,null,null,null,null,null,null,null,null,null,null,null,null,null,null,null,null,null,{"$f":"IF(A37<>\"\",IF($AD37<>\"\",VLOOKUP($AD37,Immobilisations[],7),0),\"\")","v":""},{"$f":"IF(A37<>\"\",IF($AD37<>\"\",VLOOKUP($AD37,Immobilisations[],8),\"\"),\"\")","v":""},"","","","","","","","","","","","",""]
[null,null,null,null,null,null,null,null,null,{"$f":"IF(A38=\"\",\"\",SUM(F38:G38)*Pilotage!$D$14*I38)","v":""},{"$f":"IF(A38=\"\",\"\",L38*(100/(100 + 100*Pilotage!$D$14)))","v":""},null,null,null,null,null,null,null,null,null,null,null,null,null,null,null,null,null,null,null,{"$f":"IF(A38<>\"\",IF($AD38<>\"\",VLOOKUP($AD38,Immobilisations[],7),0),\"\")","v":""},{"$f":"IF(A38<>\"\",IF($AD38<>\"\",VLOOKUP($AD38,Immobilisations[],8),\"\"),\"\")","v":""},"","","","","","","","","","","","",""]
[null,null,null,null,null,null,null,null,null,{"$f":"IF(A39=\"\",\"\",SUM(F39:G39)*Pilotage!$D$14*I39)","v":""},{"$f":"IF(A39=\"\",\"\",L39*(100/(100 + 100*Pilotage!$D$14)))","v":""},null,null,null,null,null,null,null,null,null,null,null,null,null,null,null,null,null,null,null,{"$f":"IF(A39<>\"\",IF($AD39<>\"\",VLOOKUP($AD39,Immobilisations[],7),0),\"\")","v":""},{"$f":"IF(A39<>\"\",IF($AD39<>\"\",VLOOKUP($AD39,Immobilisations[],8),\"\"),\"\")","v":""},"","","","","","","","","","","","",""]
[null,null,null,null,null,null,null,null,null,{"$f":"IF(A40=\"\",\"\",SUM(F40:G40)*Pilotage!$D$14*I40)","v":""},{"$f":"IF(A40=\"\",\"\",L40*(100/(100 + 100*Pilotage!$D$14)))","v":""},null,null,null,null,null,null,null,null,null,null,null,null,null,null,null,null,null,null,null,{"$f":"IF(A40<>\"\",IF($AD40<>\"\",VLOOKUP($AD40,Immobilisations[],7),0),\"\")","v":""},{"$f":"IF(A40<>\"\",IF($AD40<>\"\",VLOOKUP($AD40,Immobilisations[],8),\"\"),\"\")","v":""},"","","","","","","","","","","","",""]
[null,null,null,null,null,null,null,null,null,{"$f":"IF(A41=\"\",\"\",SUM(F41:G41)*Pilotage!$D$14*I41)","v":""},{"$f":"IF(A41=\"\",\"\",L41*(100/(100 + 100*Pilotage!$D$14)))","v":""},null,null,null,null,null,null,null,null,null,null,null,null,null,null,null,null,null,null,null,{"$f":"IF(A41<>\"\",IF($AD41<>\"\",VLOOKUP($AD41,Immobilisations[],7),0),\"\")","v":""},{"$f":"IF(A41<>\"\",IF($AD41<>\"\",VLOOKUP($AD41,Immobilisations[],8),\"\"),\"\")","v":""},"","","","","","","","","","","","",""]
[null,null,null,null,null,null,null,null,null,{"$f":"IF(A42=\"\",\"\",SUM(F42:G42)*Pilotage!$D$14*I42)","v":""},{"$f":"IF(A42=\"\",\"\",L42*(100/(100 + 100*Pilotage!$D$14)))","v":""},null,null,null,null,null,null,null,null,null,null,null,null,null,null,null,null,null,null,null,{"$f":"IF(A42<>\"\",IF($AD42<>\"\",VLOOKUP($AD42,Immobilisations[],7),0),\"\")","v":""},{"$f":"IF(A42<>\"\",IF($AD42<>\"\",VLOOKUP($AD42,Immobilisations[],8),\"\"),\"\")","v":""},"","","","","","","","","","","","",""]
[null,null,null,null,null,null,null,null,null,{"$f":"IF(A43=\"\",\"\",SUM(F43:G43)*Pilotage!$D$14*I43)","v":""},{"$f":"IF(A43=\"\",\"\",L43*(100/(100 + 100*Pilotage!$D$14)))","v":""},null,null,null,null,null,null,null,null,null,null,null,null,null,null,null,null,null,null,null,{"$f":"IF(A43<>\"\",IF($AD43<>\"\",VLOOKUP($AD43,Immobilisations[],7),0),\"\")","v":""},{"$f":"IF(A43<>\"\",IF($AD43<>\"\",VLOOKUP($AD43,Immobilisations[],8),\"\"),\"\")","v":""},"","","","","","","","",{"$f":"IF(AND($A43<>\"\",$AF43<>\"\"),IF(AO$2=0,0,IF(ROUNDDOWN(AO$2/($AE43+1),0)=0,$K43*$AE43/100,0)),\"\")","v":""},{"$f":"IF(AND($A43<>\"\",$AF43<>\"\"),IF(AP$2=0,0,IF(ROUNDDOWN(AP$2/($AE43+1),0)=0,$K43*$AE43/100,0)),\"\")","v":""},{"$f":"IF(AND($A43<>\"\",$AF43<>\"\"),IF(AQ$2=0,0,IF(ROUNDDOWN(AQ$2/($AE43+1),0)=0,$K43*$AE43/100,0)),\"\")","v":""},{"$f":"IF(AND($A43<>\"\",$AF43<>\"\"),IF(AR$2=0,0,IF(ROUNDDOWN(AR$2/($AE43+1),0)=0,$K43*$AE43/100,0)),\"\")","v":""},{"$f":"IF(AND($A43<>\"\",$AF43<>\"\"),IF(AS$2=0,0,IF(ROUNDDOWN(AS$2/($AE43+1),0)=0,$K43*$AE43/100,0)),\"\")","v":""}]
[null,null,null,null,null,null,null,null,null,{"$f":"IF(A44=\"\",\"\",SUM(F44:G44)*Pilotage!$D$14*I44)","v":""},{"$f":"IF(A44=\"\",\"\",L44*(100/(100 + 100*Pilotage!$D$14)))","v":""},null,null,null,null,null,null,null,null,null,null,null,null,null,null,null,null,null,null,null,{"$f":"IF(A44<>\"\",IF($AD44<>\"\",VLOOKUP($AD44,Immobilisations[],7),0),\"\")","v":""},{"$f":"IF(A44<>\"\",IF($AD44<>\"\",VLOOKUP($AD44,Immobilisations[],8),\"\"),\"\")","v":""},{"$f":"IF(AND($A44<>\"\",$AF44<>\"\"),IF(AG$2=0,0,IF(ROUNDDOWN(AG$2/($AE44+1),0)=0,$K44*$AE44/100,0)),\"\")","v":""},"","","","","","","","","","","",""]
[null,null,null,null,null,null,null,null,null,{"$f":"IF(A45=\"\",\"\",SUM(F45:G45)*Pilotage!$D$14*I45)","v":""},{"$f":"IF(A45=\"\",\"\",L45*(100/(100 + 100*Pilotage!$D$14)))","v":""},null,null,null,null,null,null,null,null,null,null,null,null,null,null,null,null,null,null,null,{"$f":"IF(A45<>\"\",IF($AD45<>\"\",VLOOKUP($AD45,Immobilisations[],7),0),\"\")","v":""},{"$f":"IF(A45<>\"\",IF($AD45<>\"\",VLOOKUP($AD45,Immobilisations[],8),\"\"),\"\")","v":""},"","","","","","","","","","","","",""]
[null,null,null,null,null,null,null,null,null,{"$f":"IF(A46=\"\",\"\",SUM(F46:G46)*Pilotage!$D$14*I46)","v":""},{"$f":"IF(A46=\"\",\"\",L46*(100/(100 + 100*Pilotage!$D$14)))","v":""},null,null,null,null,null,null,null,null,null,null,null,null,null,null,null,null,null,null,null,{"$f":"IF(A46<>\"\",IF($AD46<>\"\",VLOOKUP($AD46,Immobilisations[],7),0),\"\")","v":""},{"$f":"IF(A46<>\"\",IF($AD46<>\"\",VLOOKUP($AD46,Immobilisations[],8),\"\"),\"\")","v":""},"","","","","","","","","","","","",""]
[null,null,null,null,null,null,null,null,null,{"$f":"IF(A47=\"\",\"\",SUM(F47:G47)*Pilotage!$D$14*I47)","v":""},{"$f":"IF(A47=\"\",\"\",L47*(100/(100 + 100*Pilotage!$D$14)))","v":""},null,null,null,null,null,null,null,null,null,null,null,null,null,null,null,null,null,null,null,{"$f":"IF(A47<>\"\",IF($AD47<>\"\",VLOOKUP($AD47,Immobilisations[],7),0),\"\")","v":""},{"$f":"IF(A47<>\"\",IF($AD47<>\"\",VLOOKUP($AD47,Immobilisations[],8),\"\"),\"\")","v":""},"","","","","","","","","","","","",""]
[null,null,null,null,null,null,null,null,null,{"$f":"IF(A48=\"\",\"\",SUM(F48:G48)*Pilotage!$D$14*I48)","v":""},{"$f":"IF(A48=\"\",\"\",L48*(100/(100 + 100*Pilotage!$D$14)))","v":""},null,null,null,null,null,null,null,null,null,null,null,null,null,null,null,null,null,null,null,{"$f":"IF(A48<>\"\",IF($AD48<>\"\",VLOOKUP($AD48,Immobilisations[],7),0),\"\")","v":""},{"$f":"IF(A48<>\"\",IF($AD48<>\"\",VLOOKUP($AD48,Immobilisations[],8),\"\"),\"\")","v":""},"","","","","","","","","","","","",""]
[null,null,null,null,null,null,null,null,null,{"$f":"IF(A49=\"\",\"\",SUM(F49:G49)*Pilotage!$D$14*I49)","v":""},{"$f":"IF(A49=\"\",\"\",L49*(100/(100 + 100*Pilotage!$D$14)))","v":""},null,null,null,null,null,null,null,null,null,null,null,null,null,null,null,null,null,null,null,{"$f":"IF(A49<>\"\",IF($AD49<>\"\",VLOOKUP($AD49,Immobilisations[],7),0),\"\")","v":""},{"$f":"IF(A49<>\"\",IF($AD49<>\"\",VLOOKUP($AD49,Immobilisations[],8),\"\"),\"\")","v":""},"","","","","","","","","","","","",""]
[null,null,null,null,null,null,null,null,null,{"$f":"IF(A50=\"\",\"\",SUM(F50:G50)*Pilotage!$D$14*I50)","v":""},{"$f":"IF(A50=\"\",\"\",L50*(100/(100 + 100*Pilotage!$D$14)))","v":""},null,null,null,null,null,null,null,null,null,null,null,null,null,null,null,null,null,null,null,{"$f":"IF(A50<>\"\",IF($AD50<>\"\",VLOOKUP($AD50,Immobilisations[],7),0),\"\")","v":""},{"$f":"IF(A50<>\"\",IF($AD50<>\"\",VLOOKUP($AD50,Immobilisations[],8),\"\"),\"\")","v":""},"","","","","","","","","","","","",""]
[null,null,null,null,null,null,null,null,null,{"$f":"IF(A51=\"\",\"\",SUM(F51:G51)*Pilotage!$D$14*I51)","v":""},{"$f":"IF(A51=\"\",\"\",L51*(100/(100 + 100*Pilotage!$D$14)))","v":""},null,null,null,null,null,null,null,null,null,null,null,null,null,null,null,null,null,null,null,{"$f":"IF(A51<>\"\",IF($AD51<>\"\",VLOOKUP($AD51,Immobilisations[],7),0),\"\")","v":""},{"$f":"IF(A51<>\"\",IF($AD51<>\"\",VLOOKUP($AD51,Immobilisations[],8),\"\"),\"\")","v":""},"","","","","","","","","","","","",""]
[null,null,null,null,null,null,null,null,null,{"$f":"IF(A52=\"\",\"\",SUM(F52:G52)*Pilotage!$D$14*I52)","v":""},{"$f":"IF(A52=\"\",\"\",L52*(100/(100 + 100*Pilotage!$D$14)))","v":""},null,null,null,null,null,null,null,null,null,null,null,null,null,null,null,null,null,null,null,{"$f":"IF(A52<>\"\",IF($AD52<>\"\",VLOOKUP($AD52,Immobilisations[],7),0),\"\")","v":""},{"$f":"IF(A52<>\"\",IF($AD52<>\"\",VLOOKUP($AD52,Immobilisations[],8),\"\"),\"\")","v":""},"","","","","","","","","","","","",""]
[null,null,null,null,null,null,null,null,null,{"$f":"IF(A53=\"\",\"\",SUM(F53:G53)*Pilotage!$D$14*I53)","v":""},{"$f":"IF(A53=\"\",\"\",L53*(100/(100 + 100*Pilotage!$D$14)))","v":""},null,null,null,null,null,null,null,null,null,null,null,null,null,null,null,null,null,null,null,{"$f":"IF(A53<>\"\",IF($AD53<>\"\",VLOOKUP($AD53,Immobilisations[],7),0),\"\")","v":""},{"$f":"IF(A53<>\"\",IF($AD53<>\"\",VLOOKUP($AD53,Immobilisations[],8),\"\"),\"\")","v":""},"","","","","","","","","","","","",""]
[null,null,null,null,null,null,null,null,null,{"$f":"IF(A54=\"\",\"\",SUM(F54:G54)*Pilotage!$D$14*I54)","v":""},{"$f":"IF(A54=\"\",\"\",L54*(100/(100 + 100*Pilotage!$D$14)))","v":""},null,null,null,null,null,null,null,null,null,null,null,null,null,null,null,null,null,null,null,{"$f":"IF(A54<>\"\",IF($AD54<>\"\",VLOOKUP($AD54,Immobilisations[],7),0),\"\")","v":""},{"$f":"IF(A54<>\"\",IF($AD54<>\"\",VLOOKUP($AD54,Immobilisations[],8),\"\"),\"\")","v":""},"","","","","","","","","","","","",""]
[null,null,null,null,null,null,null,null,null,{"$f":"IF(A55=\"\",\"\",SUM(F55:G55)*Pilotage!$D$14*I55)","v":""},{"$f":"IF(A55=\"\",\"\",L55*(100/(100 + 100*Pilotage!$D$14)))","v":""},null,null,null,null,null,null,null,null,null,null,null,null,null,null,null,null,null,null,null,{"$f":"IF(A55<>\"\",IF($AD55<>\"\",VLOOKUP($AD55,Immobilisations[],7),0),\"\")","v":""},{"$f":"IF(A55<>\"\",IF($AD55<>\"\",VLOOKUP($AD55,Immobilisations[],8),\"\"),\"\")","v":""},"","","","","","","","","","","","",""]
[null,null,null,null,null,null,null,null,null,{"$f":"IF(A56=\"\",\"\",SUM(F56:G56)*Pilotage!$D$14*I56)","v":""},{"$f":"IF(A56=\"\",\"\",L56*(100/(100 + 100*Pilotage!$D$14)))","v":""},null,null,null,null,null,null,null,null,null,null,null,null,null,null,null,null,null,null,null,{"$f":"IF(A56<>\"\",IF($AD56<>\"\",VLOOKUP($AD56,Immobilisations[],7),0),\"\")","v":""},{"$f":"IF(A56<>\"\",IF($AD56<>\"\",VLOOKUP($AD56,Immobilisations[],8),\"\"),\"\")","v":""},"","","","","","","","","","","","",""]
[null,null,null,null,null,null,null,null,null,{"$f":"IF(A57=\"\",\"\",SUM(F57:G57)*Pilotage!$D$14*I57)","v":""},{"$f":"IF(A57=\"\",\"\",L57*(100/(100 + 100*Pilotage!$D$14)))","v":""},null,null,null,null,null,null,null,null,null,null,null,null,null,null,null,null,null,null,null,{"$f":"IF(A57<>\"\",IF($AD57<>\"\",VLOOKUP($AD57,Immobilisations[],7),0),\"\")","v":""},{"$f":"IF(A57<>\"\",IF($AD57<>\"\",VLOOKUP($AD57,Immobilisations[],8),\"\"),\"\")","v":""},"","","","","","","","","","","","",""]
[null,null,null,null,null,null,null,null,null,{"$f":"IF(A58=\"\",\"\",SUM(F58:G58)*Pilotage!$D$14*I58)","v":""},{"$f":"IF(A58=\"\",\"\",L58*(100/(100 + 100*Pilotage!$D$14)))","v":""},null,null,null,null,null,null,null,null,null,null,null,null,null,null,null,null,null,null,null,{"$f":"IF(A58<>\"\",IF($AD58<>\"\",VLOOKUP($AD58,Immobilisations[],7),0),\"\")","v":""},{"$f":"IF(A58<>\"\",IF($AD58<>\"\",VLOOKUP($AD58,Immobilisations[],8),\"\"),\"\")","v":""},"","","","","","","","","","","","",""]
[null,null,null,null,null,null,null,null,null,{"$f":"IF(A59=\"\",\"\",SUM(F59:G59)*Pilotage!$D$14*I59)","v":""},{"$f":"IF(A59=\"\",\"\",L59*(100/(100 + 100*Pilotage!$D$14)))","v":""},null,null,null,null,null,null,null,null,null,null,null,null,null,null,null,null,null,null,null,{"$f":"IF(A59<>\"\",IF($AD59<>\"\",VLOOKUP($AD59,Immobilisations[],7),0),\"\")","v":""},{"$f":"IF(A59<>\"\",IF($AD59<>\"\",VLOOKUP($AD59,Immobilisations[],8),\"\"),\"\")","v":""},"","","","","","","","","","","","",""]
[null,null,null,null,null,null,null,null,null,{"$f":"IF(A60=\"\",\"\",SUM(F60:G60)*Pilotage!$D$14*I60)","v":""},{"$f":"IF(A60=\"\",\"\",L60*(100/(100 + 100*Pilotage!$D$14)))","v":""},null,null,null,null,null,null,null,null,null,null,null,null,null,null,null,null,null,null,null,{"$f":"IF(A60<>\"\",IF($AD60<>\"\",VLOOKUP($AD60,Immobilisations[],7),0),\"\")","v":""},{"$f":"IF(A60<>\"\",IF($AD60<>\"\",VLOOKUP($AD60,Immobilisations[],8),\"\"),\"\")","v":""},"","","","","","","","","","","","",""]
[null,null,null,null,null,null,null,null,null,{"$f":"IF(A61=\"\",\"\",SUM(F61:G61)*Pilotage!$D$14*I61)","v":""},{"$f":"IF(A61=\"\",\"\",L61*(100/(100 + 100*Pilotage!$D$14)))","v":""},null,null,null,null,null,null,null,null,null,null,null,null,null,null,null,null,null,null,null,{"$f":"IF(A61<>\"\",IF($AD61<>\"\",VLOOKUP($AD61,Immobilisations[],7),0),\"\")","v":""},{"$f":"IF(A61<>\"\",IF($AD61<>\"\",VLOOKUP($AD61,Immobilisations[],8),\"\"),\"\")","v":""},"","","","","","","","","","","","",""]
[null,null,null,null,null,null,null,null,null,{"$f":"IF(A62=\"\",\"\",SUM(F62:G62)*Pilotage!$D$14*I62)","v":""},{"$f":"IF(A62=\"\",\"\",L62*(100/(100 + 100*Pilotage!$D$14)))","v":""},null,null,null,null,null,null,null,null,null,null,null,null,null,null,null,null,null,null,null,{"$f":"IF(A62<>\"\",IF($AD62<>\"\",VLOOKUP($AD62,Immobilisations[],7),0),\"\")","v":""},{"$f":"IF(A62<>\"\",IF($AD62<>\"\",VLOOKUP($AD62,Immobilisations[],8),\"\"),\"\")","v":""},"","","","","","","","","","","","",""]
[null,null,null,null,null,null,null,null,null,{"$f":"IF(A63=\"\",\"\",SUM(F63:G63)*Pilotage!$D$14*I63)","v":""},{"$f":"IF(A63=\"\",\"\",L63*(100/(100 + 100*Pilotage!$D$14)))","v":""},null,null,null,null,null,null,null,null,null,null,null,null,null,null,null,null,null,null,null,{"$f":"IF(A63<>\"\",IF($AD63<>\"\",VLOOKUP($AD63,Immobilisations[],7),0),\"\")","v":""},{"$f":"IF(A63<>\"\",IF($AD63<>\"\",VLOOKUP($AD63,Immobilisations[],8),\"\"),\"\")","v":""},"","","","","","","","",{"$f":"IF(AND($A63<>\"\",$AF63<>\"\"),IF(AO$2=0,0,IF(ROUNDDOWN(AO$2/($AE63+1),0)=0,$K63*$AE63/100,0)),\"\")","v":""},{"$f":"IF(AND($A63<>\"\",$AF63<>\"\"),IF(AP$2=0,0,IF(ROUNDDOWN(AP$2/($AE63+1),0)=0,$K63*$AE63/100,0)),\"\")","v":""},{"$f":"IF(AND($A63<>\"\",$AF63<>\"\"),IF(AQ$2=0,0,IF(ROUNDDOWN(AQ$2/($AE63+1),0)=0,$K63*$AE63/100,0)),\"\")","v":""},{"$f":"IF(AND($A63<>\"\",$AF63<>\"\"),IF(AR$2=0,0,IF(ROUNDDOWN(AR$2/($AE63+1),0)=0,$K63*$AE63/100,0)),\"\")","v":""},{"$f":"IF(AND($A63<>\"\",$AF63<>\"\"),IF(AS$2=0,0,IF(ROUNDDOWN(AS$2/($AE63+1),0)=0,$K63*$AE63/100,0)),\"\")","v":""}]
[null,null,null,null,null,null,null,null,null,{"$f":"IF(A64=\"\",\"\",SUM(F64:G64)*Pilotage!$D$14*I64)","v":""},{"$f":"IF(A64=\"\",\"\",L64*(100/(100 + 100*Pilotage!$D$14)))","v":""},null,null,null,null,null,null,null,null,null,null,null,null,null,null,null,null,null,null,null,{"$f":"IF(A64<>\"\",IF($AD64<>\"\",VLOOKUP($AD64,Immobilisations[],7),0),\"\")","v":""},{"$f":"IF(A64<>\"\",IF($AD64<>\"\",VLOOKUP($AD64,Immobilisations[],8),\"\"),\"\")","v":""},{"$f":"IF(AND($A64<>\"\",$AF64<>\"\"),IF(AG$2=0,0,IF(ROUNDDOWN(AG$2/($AE64+1),0)=0,$K64*$AE64/100,0)),\"\")","v":""},"","","","","","","","","","","",""]
[null,null,null,null,null,null,null,null,null,{"$f":"IF(A65=\"\",\"\",SUM(F65:G65)*Pilotage!$D$14*I65)","v":""},{"$f":"IF(A65=\"\",\"\",L65*(100/(100 + 100*Pilotage!$D$14)))","v":""},null,null,null,null,null,null,null,null,null,null,null,null,null,null,null,null,null,null,null,{"$f":"IF(A65<>\"\",IF($AD65<>\"\",VLOOKUP($AD65,Immobilisations[],7),0),\"\")","v":""},{"$f":"IF(A65<>\"\",IF($AD65<>\"\",VLOOKUP($AD65,Immobilisations[],8),\"\"),\"\")","v":""},"","","","","","","","","","","","",""]
[null,null,null,null,null,null,null,null,null,{"$f":"IF(A66=\"\",\"\",SUM(F66:G66)*Pilotage!$D$14*I66)","v":""},{"$f":"IF(A66=\"\",\"\",L66*(100/(100 + 100*Pilotage!$D$14)))","v":""},null,null,null,null,null,null,null,null,null,null,null,null,null,null,null,null,null,null,null,{"$f":"IF(A66<>\"\",IF($AD66<>\"\",VLOOKUP($AD66,Immobilisations[],7),0),\"\")","v":""},{"$f":"IF(A66<>\"\",IF($AD66<>\"\",VLOOKUP($AD66,Immobilisations[],8),\"\"),\"\")","v":""},"","","","","","","","","","","","",""]
[null,null,null,null,null,null,null,null,null,{"$f":"IF(A67=\"\",\"\",SUM(F67:G67)*Pilotage!$D$14*I67)","v":""},{"$f":"IF(A67=\"\",\"\",L67*(100/(100 + 100*Pilotage!$D$14)))","v":""},null,null,null,null,null,null,null,null,null,null,null,null,null,null,null,null,null,null,null,{"$f":"IF(A67<>\"\",IF($AD67<>\"\",VLOOKUP($AD67,Immobilisations[],7),0),\"\")","v":""},{"$f":"IF(A67<>\"\",IF($AD67<>\"\",VLOOKUP($AD67,Immobilisations[],8),\"\"),\"\")","v":""},"","","","","","","","","","","","",""]
[null,null,null,null,null,null,null,null,null,{"$f":"IF(A68=\"\",\"\",SUM(F68:G68)*Pilotage!$D$14*I68)","v":""},{"$f":"IF(A68=\"\",\"\",L68*(100/(100 + 100*Pilotage!$D$14)))","v":""},null,null,null,null,null,null,null,null,null,null,null,null,null,null,null,null,null,null,null,{"$f":"IF(A68<>\"\",IF($AD68<>\"\",VLOOKUP($AD68,Immobilisations[],7),0),\"\")","v":""},{"$f":"IF(A68<>\"\",IF($AD68<>\"\",VLOOKUP($AD68,Immobilisations[],8),\"\"),\"\")","v":""},"","","","","","","","","","","","",""]
[null,null,null,null,null,null,null,null,null,{"$f":"IF(A69=\"\",\"\",SUM(F69:G69)*Pilotage!$D$14*I69)","v":""},{"$f":"IF(A69=\"\",\"\",L69*(100/(100 + 100*Pilotage!$D$14)))","v":""},null,null,null,null,null,null,null,null,null,null,null,null,null,null,null,null,null,null,null,{"$f":"IF(A69<>\"\",IF($AD69<>\"\",VLOOKUP($AD69,Immobilisations[],7),0),\"\")","v":""},{"$f":"IF(A69<>\"\",IF($AD69<>\"\",VLOOKUP($AD69,Immobilisations[],8),\"\"),\"\")","v":""},"","","","","","","","","","","","",""]
[null,null,null,null,null,null,null,null,null,{"$f":"IF(A70=\"\",\"\",SUM(F70:G70)*Pilotage!$D$14*I70)","v":""},{"$f":"IF(A70=\"\",\"\",L70*(100/(100 + 100*Pilotage!$D$14)))","v":""},null,null,null,null,null,null,null,null,null,null,null,null,null,null,null,null,null,null,null,{"$f":"IF(A70<>\"\",IF($AD70<>\"\",VLOOKUP($AD70,Immobilisations[],7),0),\"\")","v":""},{"$f":"IF(A70<>\"\",IF($AD70<>\"\",VLOOKUP($AD70,Immobilisations[],8),\"\"),\"\")","v":""},"","","","","","","","","","","","",""]
[null,null,null,null,null,null,null,null,null,{"$f":"IF(A71=\"\",\"\",SUM(F71:G71)*Pilotage!$D$14*I71)","v":""},{"$f":"IF(A71=\"\",\"\",L71*(100/(100 + 100*Pilotage!$D$14)))","v":""},null,null,null,null,null,null,null,null,null,null,null,null,null,null,null,null,null,null,null,{"$f":"IF(A71<>\"\",IF($AD71<>\"\",VLOOKUP($AD71,Immobilisations[],7),0),\"\")","v":""},{"$f":"IF(A71<>\"\",IF($AD71<>\"\",VLOOKUP($AD71,Immobilisations[],8),\"\"),\"\")","v":""},"","","","","","","","","","","","",""]
[null,null,null,null,null,null,null,null,null,{"$f":"IF(A72=\"\",\"\",SUM(F72:G72)*Pilotage!$D$14*I72)","v":""},{"$f":"IF(A72=\"\",\"\",L72*(100/(100 + 100*Pilotage!$D$14)))","v":""},null,null,null,null,null,null,null,null,null,null,null,null,null,null,null,null,null,null,null,{"$f":"IF(A72<>\"\",IF($AD72<>\"\",VLOOKUP($AD72,Immobilisations[],7),0),\"\")","v":""},{"$f":"IF(A72<>\"\",IF($AD72<>\"\",VLOOKUP($AD72,Immobilisations[],8),\"\"),\"\")","v":""},"","","","","","","","","","","","",""]
[null,null,null,null,null,null,null,null,null,{"$f":"IF(A73=\"\",\"\",SUM(F73:G73)*Pilotage!$D$14*I73)","v":""},{"$f":"IF(A73=\"\",\"\",L73*(100/(100 + 100*Pilotage!$D$14)))","v":""},null,null,null,null,null,null,null,null,null,null,null,null,null,null,null,null,null,null,null,{"$f":"IF(A73<>\"\",IF($AD73<>\"\",VLOOKUP($AD73,Immobilisations[],7),0),\"\")","v":""},{"$f":"IF(A73<>\"\",IF($AD73<>\"\",VLOOKUP($AD73,Immobilisations[],8),\"\"),\"\")","v":""},"","","","","","","","","","","","",""]
[null,null,null,null,null,null,null,null,null,{"$f":"IF(A74=\"\",\"\",SUM(F74:G74)*Pilotage!$D$14*I74)","v":""},{"$f":"IF(A74=\"\",\"\",L74*(100/(100 + 100*Pilotage!$D$14)))","v":""},null,null,null,null,null,null,null,null,null,null,null,null,null,null,null,null,null,null,null,{"$f":"IF(A74<>\"\",IF($AD74<>\"\",VLOOKUP($AD74,Immobilisations[],7),0),\"\")","v":""},{"$f":"IF(A74<>\"\",IF($AD74<>\"\",VLOOKUP($AD74,Immobilisations[],8),\"\"),\"\")","v":""},"","","","","","","","","","","","",""]
[null,null,null,null,null,null,null,null,null,{"$f":"IF(A75=\"\",\"\",SUM(F75:G75)*Pilotage!$D$14*I75)","v":""},{"$f":"IF(A75=\"\",\"\",L75*(100/(100 + 100*Pilotage!$D$14)))","v":""},null,null,null,null,null,null,null,null,null,null,null,null,null,null,null,null,null,null,null,{"$f":"IF(A75<>\"\",IF($AD75<>\"\",VLOOKUP($AD75,Immobilisations[],7),0),\"\")","v":""},{"$f":"IF(A75<>\"\",IF($AD75<>\"\",VLOOKUP($AD75,Immobilisations[],8),\"\"),\"\")","v":""},"","","","","","","","","","","","",""]
[null,null,null,null,null,null,null,null,null,{"$f":"IF(A76=\"\",\"\",SUM(F76:G76)*Pilotage!$D$14*I76)","v":""},{"$f":"IF(A76=\"\",\"\",L76*(100/(100 + 100*Pilotage!$D$14)))","v":""},null,null,null,null,null,null,null,null,null,null,null,null,null,null,null,null,null,null,null,{"$f":"IF(A76<>\"\",IF($AD76<>\"\",VLOOKUP($AD76,Immobilisations[],7),0),\"\")","v":""},{"$f":"IF(A76<>\"\",IF($AD76<>\"\",VLOOKUP($AD76,Immobilisations[],8),\"\"),\"\")","v":""},"","","","","","","","","","","","",""]
[null,null,null,null,null,null,null,null,null,{"$f":"IF(A77=\"\",\"\",SUM(F77:G77)*Pilotage!$D$14*I77)","v":""},{"$f":"IF(A77=\"\",\"\",L77*(100/(100 + 100*Pilotage!$D$14)))","v":""},null,null,null,null,null,null,null,null,null,null,null,null,null,null,null,null,null,null,null,{"$f":"IF(A77<>\"\",IF($AD77<>\"\",VLOOKUP($AD77,Immobilisations[],7),0),\"\")","v":""},{"$f":"IF(A77<>\"\",IF($AD77<>\"\",VLOOKUP($AD77,Immobilisations[],8),\"\"),\"\")","v":""},"","","","","","","","","","","","",""]
[null,null,null,null,null,null,null,null,null,{"$f":"IF(A78=\"\",\"\",SUM(F78:G78)*Pilotage!$D$14*I78)","v":""},{"$f":"IF(A78=\"\",\"\",L78*(100/(100 + 100*Pilotage!$D$14)))","v":""},null,null,null,null,null,null,null,null,null,null,null,null,null,null,null,null,null,null,null,{"$f":"IF(A78<>\"\",IF($AD78<>\"\",VLOOKUP($AD78,Immobilisations[],7),0),\"\")","v":""},{"$f":"IF(A78<>\"\",IF($AD78<>\"\",VLOOKUP($AD78,Immobilisations[],8),\"\"),\"\")","v":""},"","","","","","","","","","","","",""]
[null,null,null,null,null,null,null,null,null,{"$f":"IF(A79=\"\",\"\",SUM(F79:G79)*Pilotage!$D$14*I79)","v":""},{"$f":"IF(A79=\"\",\"\",L79*(100/(100 + 100*Pilotage!$D$14)))","v":""},null,null,null,null,null,null,null,null,null,null,null,null,null,null,null,null,null,null,null,{"$f":"IF(A79<>\"\",IF($AD79<>\"\",VLOOKUP($AD79,Immobilisations[],7),0),\"\")","v":""},{"$f":"IF(A79<>\"\",IF($AD79<>\"\",VLOOKUP($AD79,Immobilisations[],8),\"\"),\"\")","v":""},"","","","","","","","","","","","",""]
[null,null,null,null,null,null,null,null,null,{"$f":"IF(A80=\"\",\"\",SUM(F80:G80)*Pilotage!$D$14*I80)","v":""},{"$f":"IF(A80=\"\",\"\",L80*(100/(100 + 100*Pilotage!$D$14)))","v":""},null,null,null,null,null,null,null,null,null,null,null,null,null,null,null,null,null,null,null,{"$f":"IF(A80<>\"\",IF($AD80<>\"\",VLOOKUP($AD80,Immobilisations[],7),0),\"\")","v":""},{"$f":"IF(A80<>\"\",IF($AD80<>\"\",VLOOKUP($AD80,Immobilisations[],8),\"\"),\"\")","v":""},"","","","","","","","","","","","",""]
[null,null,null,null,null,null,null,null,null,{"$f":"IF(A81=\"\",\"\",SUM(F81:G81)*Pilotage!$D$14*I81)","v":""},{"$f":"IF(A81=\"\",\"\",L81*(100/(100 + 100*Pilotage!$D$14)))","v":""},null,null,null,null,null,null,null,null,null,null,null,null,null,null,null,null,null,null,null,{"$f":"IF(A81<>\"\",IF($AD81<>\"\",VLOOKUP($AD81,Immobilisations[],7),0),\"\")","v":""},{"$f":"IF(A81<>\"\",IF($AD81<>\"\",VLOOKUP($AD81,Immobilisations[],8),\"\"),\"\")","v":""},"","","","","","","","","","","","",""]
[null,null,null,null,null,null,null,null,null,{"$f":"IF(A82=\"\",\"\",SUM(F82:G82)*Pilotage!$D$14*I82)","v":""},{"$f":"IF(A82=\"\",\"\",L82*(100/(100 + 100*Pilotage!$D$14)))","v":""},null,null,null,null,null,null,null,null,null,null,null,null,null,null,null,null,null,null,null,{"$f":"IF(A82<>\"\",IF($AD82<>\"\",VLOOKUP($AD82,Immobilisations[],7),0),\"\")","v":""},{"$f":"IF(A82<>\"\",IF($AD82<>\"\",VLOOKUP($AD82,Immobilisations[],8),\"\"),\"\")","v":""},"","","","","","","","","","","","",""]
[null,null,null,null,null,null,null,null,null,{"$f":"IF(A83=\"\",\"\",SUM(F83:G83)*Pilotage!$D$14*I83)","v":""},{"$f":"IF(A83=\"\",\"\",L83*(100/(100 + 100*Pilotage!$D$14)))","v":""},null,null,null,null,null,null,null,null,null,null,null,null,null,null,null,null,null,null,null,{"$f":"IF(A83<>\"\",IF($AD83<>\"\",VLOOKUP($AD83,Immobilisations[],7),0),\"\")","v":""},{"$f":"IF(A83<>\"\",IF($AD83<>\"\",VLOOKUP($AD83,Immobilisations[],8),\"\"),\"\")","v":""},"","","","","","","","",{"$f":"IF(AND($A83<>\"\",$AF83<>\"\"),IF(AO$2=0,0,IF(ROUNDDOWN(AO$2/($AE83+1),0)=0,$K83*$AE83/100,0)),\"\")","v":""},{"$f":"IF(AND($A83<>\"\",$AF83<>\"\"),IF(AP$2=0,0,IF(ROUNDDOWN(AP$2/($AE83+1),0)=0,$K83*$AE83/100,0)),\"\")","v":""},{"$f":"IF(AND($A83<>\"\",$AF83<>\"\"),IF(AQ$2=0,0,IF(ROUNDDOWN(AQ$2/($AE83+1),0)=0,$K83*$AE83/100,0)),\"\")","v":""},{"$f":"IF(AND($A83<>\"\",$AF83<>\"\"),IF(AR$2=0,0,IF(ROUNDDOWN(AR$2/($AE83+1),0)=0,$K83*$AE83/100,0)),\"\")","v":""},{"$f":"IF(AND($A83<>\"\",$AF83<>\"\"),IF(AS$2=0,0,IF(ROUNDDOWN(AS$2/($AE83+1),0)=0,$K83*$AE83/100,0)),\"\")","v":""}]
[null,null,null,null,null,null,null,null,null,{"$f":"IF(A84=\"\",\"\",SUM(F84:G84)*Pilotage!$D$14*I84)","v":""},{"$f":"IF(A84=\"\",\"\",L84*(100/(100 + 100*Pilotage!$D$14)))","v":""},null,null,null,null,null,null,null,null,null,null,null,null,null,null,null,null,null,null,null,{"$f":"IF(A84<>\"\",IF($AD84<>\"\",VLOOKUP($AD84,Immobilisations[],7),0),\"\")","v":""},{"$f":"IF(A84<>\"\",IF($AD84<>\"\",VLOOKUP($AD84,Immobilisations[],8),\"\"),\"\")","v":""},{"$f":"IF(AND($A84<>\"\",$AF84<>\"\"),IF(AG$2=0,0,IF(ROUNDDOWN(AG$2/($AE84+1),0)=0,$K84*$AE84/100,0)),\"\")","v":""},"","","","","","","","","","","",""]
[null,null,null,null,null,null,null,null,null,{"$f":"IF(A85=\"\",\"\",SUM(F85:G85)*Pilotage!$D$14*I85)","v":""},{"$f":"IF(A85=\"\",\"\",L85*(100/(100 + 100*Pilotage!$D$14)))","v":""},null,null,null,null,null,null,null,null,null,null,null,null,null,null,null,null,null,null,null,{"$f":"IF(A85<>\"\",IF($AD85<>\"\",VLOOKUP($AD85,Immobilisations[],7),0),\"\")","v":""},{"$f":"IF(A85<>\"\",IF($AD85<>\"\",VLOOKUP($AD85,Immobilisations[],8),\"\"),\"\")","v":""},"","","","","","","","","","","","",""]
[null,null,null,null,null,null,null,null,null,{"$f":"IF(A86=\"\",\"\",SUM(F86:G86)*Pilotage!$D$14*I86)","v":""},{"$f":"IF(A86=\"\",\"\",L86*(100/(100 + 100*Pilotage!$D$14)))","v":""},null,null,null,null,null,null,null,null,null,null,null,null,null,null,null,null,null,null,null,{"$f":"IF(A86<>\"\",IF($AD86<>\"\",VLOOKUP($AD86,Immobilisations[],7),0),\"\")","v":""},{"$f":"IF(A86<>\"\",IF($AD86<>\"\",VLOOKUP($AD86,Immobilisations[],8),\"\"),\"\")","v":""},"","","","","","","","","","","","",""]
[null,null,null,null,null,null,null,null,null,{"$f":"IF(A87=\"\",\"\",SUM(F87:G87)*Pilotage!$D$14*I87)","v":""},{"$f":"IF(A87=\"\",\"\",L87*(100/(100 + 100*Pilotage!$D$14)))","v":""},null,null,null,null,null,null,null,null,null,null,null,null,null,null,null,null,null,null,null,{"$f":"IF(A87<>\"\",IF($AD87<>\"\",VLOOKUP($AD87,Immobilisations[],7),0),\"\")","v":""},{"$f":"IF(A87<>\"\",IF($AD87<>\"\",VLOOKUP($AD87,Immobilisations[],8),\"\"),\"\")","v":""},"","","","","","","","","","","","",""]
[null,null,null,null,null,null,null,null,null,{"$f":"IF(A88=\"\",\"\",SUM(F88:G88)*Pilotage!$D$14*I88)","v":""},{"$f":"IF(A88=\"\",\"\",L88*(100/(100 + 100*Pilotage!$D$14)))","v":""},null,null,null,null,null,null,null,null,null,null,null,null,null,null,null,null,null,null,null,{"$f":"IF(A88<>\"\",IF($AD88<>\"\",VLOOKUP($AD88,Immobilisations[],7),0),\"\")","v":""},{"$f":"IF(A88<>\"\",IF($AD88<>\"\",VLOOKUP($AD88,Immobilisations[],8),\"\"),\"\")","v":""},"","","","","","","","","","","","",""]
[null,null,null,null,null,null,null,null,null,{"$f":"IF(A89=\"\",\"\",SUM(F89:G89)*Pilotage!$D$14*I89)","v":""},{"$f":"IF(A89=\"\",\"\",L89*(100/(100 + 100*Pilotage!$D$14)))","v":""},null,null,null,null,null,null,null,null,null,null,null,null,null,null,null,null,null,null,null,{"$f":"IF(A89<>\"\",IF($AD89<>\"\",VLOOKUP($AD89,Immobilisations[],7),0),\"\")","v":""},{"$f":"IF(A89<>\"\",IF($AD89<>\"\",VLOOKUP($AD89,Immobilisations[],8),\"\"),\"\")","v":""},"","","","","","","","","","","","",""]
[null,null,null,null,null,null,null,null,null,{"$f":"IF(A90=\"\",\"\",SUM(F90:G90)*Pilotage!$D$14*I90)","v":""},{"$f":"IF(A90=\"\",\"\",L90*(100/(100 + 100*Pilotage!$D$14)))","v":""},null,null,null,null,null,null,null,null,null,null,null,null,null,null,null,null,null,null,null,{"$f":"IF(A90<>\"\",IF($AD90<>\"\",VLOOKUP($AD90,Immobilisations[],7),0),\"\")","v":""},{"$f":"IF(A90<>\"\",IF($AD90<>\"\",VLOOKUP($AD90,Immobilisations[],8),\"\"),\"\")","v":""},"","","","","","","","","","","","",""]
[null,null,null,null,null,null,null,null,null,{"$f":"IF(A91=\"\",\"\",SUM(F91:G91)*Pilotage!$D$14*I91)","v":""},{"$f":"IF(A91=\"\",\"\",L91*(100/(100 + 100*Pilotage!$D$14)))","v":""},null,null,null,null,null,null,null,null,null,null,null,null,null,null,null,null,null,null,null,{"$f":"IF(A91<>\"\",IF($AD91<>\"\",VLOOKUP($AD91,Immobilisations[],7),0),\"\")","v":""},{"$f":"IF(A91<>\"\",IF($AD91<>\"\",VLOOKUP($AD91,Immobilisations[],8),\"\"),\"\")","v":""},"","","","","","","","","","","","",""]
[null,null,null,null,null,null,null,null,null,{"$f":"IF(A92=\"\",\"\",SUM(F92:G92)*Pilotage!$D$14*I92)","v":""},{"$f":"IF(A92=\"\",\"\",L92*(100/(100 + 100*Pilotage!$D$14)))","v":""},null,null,null,null,null,null,null,null,null,null,null,null,null,null,null,null,null,null,null,{"$f":"IF(A92<>\"\",IF($AD92<>\"\",VLOOKUP($AD92,Immobilisations[],7),0),\"\")","v":""},{"$f":"IF(A92<>\"\",IF($AD92<>\"\",VLOOKUP($AD92,Immobilisations[],8),\"\"),\"\")","v":""},"","","","","","","","","","","","",""]
[null,null,null,null,null,null,null,null,null,{"$f":"IF(A93=\"\",\"\",SUM(F93:G93)*Pilotage!$D$14*I93)","v":""},{"$f":"IF(A93=\"\",\"\",L93*(100/(100 + 100*Pilotage!$D$14)))","v":""},null,null,null,null,null,null,null,null,null,null,null,null,null,null,null,null,null,null,null,{"$f":"IF(A93<>\"\",IF($AD93<>\"\",VLOOKUP($AD93,Immobilisations[],7),0),\"\")","v":""},{"$f":"IF(A93<>\"\",IF($AD93<>\"\",VLOOKUP($AD93,Immobilisations[],8),\"\"),\"\")","v":""},"","","","","","","","","","","","",""]
[null,null,null,null,null,null,null,null,null,{"$f":"IF(A94=\"\",\"\",SUM(F94:G94)*Pilotage!$D$14*I94)","v":""},{"$f":"IF(A94=\"\",\"\",L94*(100/(100 + 100*Pilotage!$D$14)))","v":""},null,null,null,null,null,null,null,null,null,null,null,null,null,null,null,null,null,null,null,{"$f":"IF(A94<>\"\",IF($AD94<>\"\",VLOOKUP($AD94,Immobilisations[],7),0),\"\")","v":""},{"$f":"IF(A94<>\"\",IF($AD94<>\"\",VLOOKUP($AD94,Immobilisations[],8),\"\"),\"\")","v":""},"","","","","","","","","","","","",""]
[null,null,null,null,null,null,null,null,null,{"$f":"IF(A95=\"\",\"\",SUM(F95:G95)*Pilotage!$D$14*I95)","v":""},{"$f":"IF(A95=\"\",\"\",L95*(100/(100 + 100*Pilotage!$D$14)))","v":""},null,null,null,null,null,null,null,null,null,null,null,null,null,null,null,null,null,null,null,{"$f":"IF(A95<>\"\",IF($AD95<>\"\",VLOOKUP($AD95,Immobilisations[],7),0),\"\")","v":""},{"$f":"IF(A95<>\"\",IF($AD95<>\"\",VLOOKUP($AD95,Immobilisations[],8),\"\"),\"\")","v":""},"","","","","","","","","","","","",""]
[null,null,null,null,null,null,null,null,null,{"$f":"IF(A96=\"\",\"\",SUM(F96:G96)*Pilotage!$D$14*I96)","v":""},{"$f":"IF(A96=\"\",\"\",L96*(100/(100 + 100*Pilotage!$D$14)))","v":""},null,null,null,null,null,null,null,null,null,null,null,null,null,null,null,null,null,null,null,{"$f":"IF(A96<>\"\",IF($AD96<>\"\",VLOOKUP($AD96,Immobilisations[],7),0),\"\")","v":""},{"$f":"IF(A96<>\"\",IF($AD96<>\"\",VLOOKUP($AD96,Immobilisations[],8),\"\"),\"\")","v":""},"","","","","","","","","","","","",""]
[null,null,null,null,null,null,null,null,null,{"$f":"IF(A97=\"\",\"\",SUM(F97:G97)*Pilotage!$D$14*I97)","v":""},{"$f":"IF(A97=\"\",\"\",L97*(100/(100 + 100*Pilotage!$D$14)))","v":""},null,null,null,null,null,null,null,null,null,null,null,null,null,null,null,null,null,null,null,{"$f":"IF(A97<>\"\",IF($AD97<>\"\",VLOOKUP($AD97,Immobilisations[],7),0),\"\")","v":""},{"$f":"IF(A97<>\"\",IF($AD97<>\"\",VLOOKUP($AD97,Immobilisations[],8),\"\"),\"\")","v":""},"","","","","","","","","","","","",""]
[null,null,null,null,null,null,null,null,null,{"$f":"IF(A98=\"\",\"\",SUM(F98:G98)*Pilotage!$D$14*I98)","v":""},{"$f":"IF(A98=\"\",\"\",L98*(100/(100 + 100*Pilotage!$D$14)))","v":""},null,null,null,null,null,null,null,null,null,null,null,null,null,null,null,null,null,null,null,{"$f":"IF(A98<>\"\",IF($AD98<>\"\",VLOOKUP($AD98,Immobilisations[],7),0),\"\")","v":""},{"$f":"IF(A98<>\"\",IF($AD98<>\"\",VLOOKUP($AD98,Immobilisations[],8),\"\"),\"\")","v":""},"","","","","","","","","","","","",""]
[null,null,null,null,null,null,null,null,null,{"$f":"IF(A99=\"\",\"\",SUM(F99:G99)*Pilotage!$D$14*I99)","v":""},{"$f":"IF(A99=\"\",\"\",L99*(100/(100 + 100*Pilotage!$D$14)))","v":""},null,null,null,null,null,null,null,null,null,null,null,null,null,null,null,null,null,null,null,null,null,{"$f":"IF($A99<>\"\",IF(AG92=0,0,IF(ROUNDDOWN(AG92/($AE99+1),0)=0,$K99*$AE99/100,0)),\"\")","v":""},"","","","","","","","","","","",""]
[null,null,null,null,null,null,null,null,null,{"$f":"IF(A100=\"\",\"\",SUM(F100:G100)*Pilotage!$D$14*I100)","v":""},{"$f":"IF(A100=\"\",\"\",L100*(100/(100 + 100*Pilotage!$D$14)))","v":""}]
[null,null,null,null,null,null,null,null,null,{"$f":"IF(A101=\"\",\"\",SUM(F101:G101)*Pilotage!$D$14*I101)","v":""},{"$f":"IF(A101=\"\",\"\",L101*(100/(100 + 100*Pilotage!$D$14)))","v":""}]
[null,null,null,null,null,null,null,null,null,{"$f":"IF(A102=\"\",\"\",SUM(F102:G102)*Pilotage!$D$14*I102)","v":""},{"$f":"IF(A102=\"\",\"\",L102*(100/(100 + 100*Pilotage!$D$14)))","v":""}]
[null,null,null,null,null,null,null,null,null,{"$f":"IF(A103=\"\",\"\",SUM(F103:G103)*Pilotage!$D$14*I103)","v":""},{"$f":"IF(A103=\"\",\"\",L103*(100/(100 + 100*Pilotage!$D$14)))","v":""}]
[null,null,null,null,null,null,null,null,null,{"$f":"IF(A104=\"\",\"\",SUM(F104:G104)*Pilotage!$D$14*I104)","v":""},{"$f":"IF(A104=\"\",\"\",L104*(100/(100 + 100*Pilotage!$D$14)))","v":""}]
[null,null,null,null,null,null,null,null,null,{"$f":"IF(A105=\"\",\"\",SUM(F105:G105)*Pilotage!$D$14*I105)","v":""},{"$f":"IF(A105=\"\",\"\",L105*(100/(100 + 100*Pilotage!$D$14)))","v":""}]
[null,null,null,null,null,null,null,null,null,{"$f":"IF(A106=\"\",\"\",SUM(F106:G106)*Pilotage!$D$14*I106)","v":""},{"$f":"IF(A106=\"\",\"\",L106*(100/(100 + 100*Pilotage!$D$14)))","v":""}]
[null,null,null,null,null,null,null,null,null,{"$f":"IF(A107=\"\",\"\",SUM(F107:G107)*Pilotage!$D$14*I107)","v":""},{"$f":"IF(A107=\"\",\"\",L107*(100/(100 + 100*Pilotage!$D$14)))","v":""}]
[null,null,null,null,null,null,null,null,null,{"$f":"IF(A108=\"\",\"\",SUM(F108:G108)*Pilotage!$D$14*I108)","v":""},{"$f":"IF(A108=\"\",\"\",L108*(100/(100 + 100*Pilotage!$D$14)))","v":""}]
[null,null,null,null,null,null,null,null,null,{"$f":"IF(A109=\"\",\"\",SUM(F109:G109)*Pilotage!$D$14*I109)","v":""},{"$f":"IF(A109=\"\",\"\",L109*(100/(100 + 100*Pilotage!$D$14)))","v":""}]
[null,null,null,null,null,null,null,null,null,{"$f":"IF(A110=\"\",\"\",SUM(F110:G110)*Pilotage!$D$14*I110)","v":""},{"$f":"IF(A110=\"\",\"\",L110*(100/(100 + 100*Pilotage!$D$14)))","v":""}]
[null,null,null,null,null,null,null,null,null,{"$f":"IF(A111=\"\",\"\",SUM(F111:G111)*Pilotage!$D$14*I111)","v":""},{"$f":"IF(A111=\"\",\"\",L111*(100/(100 + 100*Pilotage!$D$14)))","v":""}]
[null,null,null,null,null,null,null,null,null,{"$f":"IF(A112=\"\",\"\",SUM(F112:G112)*Pilotage!$D$14*I112)","v":""},{"$f":"IF(A112=\"\",\"\",L112*(100/(100 + 100*Pilotage!$D$14)))","v":""}]
[null,null,null,null,null,null,null,null,null,{"$f":"IF(A113=\"\",\"\",SUM(F113:G113)*Pilotage!$D$14*I113)","v":""},{"$f":"IF(A113=\"\",\"\",L113*(100/(100 + 100*Pilotage!$D$14)))","v":""}]
[null,null,null,null,null,null,null,null,null,{"$f":"IF(A114=\"\",\"\",SUM(F114:G114)*Pilotage!$D$14*I114)","v":""},{"$f":"IF(A114=\"\",\"\",L114*(100/(100 + 100*Pilotage!$D$14)))","v":""}]
[null,null,null,null,null,null,null,null,null,{"$f":"IF(A115=\"\",\"\",SUM(F115:G115)*Pilotage!$D$14*I115)","v":""},{"$f":"IF(A115=\"\",\"\",L115*(100/(100 + 100*Pilotage!$D$14)))","v":""}]
[null,null,null,null,null,null,null,null,null,{"$f":"IF(A116=\"\",\"\",SUM(F116:G116)*Pilotage!$D$14*I116)","v":""},{"$f":"IF(A116=\"\",\"\",L116*(100/(100 + 100*Pilotage!$D$14)))","v":""}]
[null,null,null,null,null,null,null,null,null,{"$f":"IF(A117=\"\",\"\",SUM(F117:G117)*Pilotage!$D$14*I117)","v":""},{"$f":"IF(A117=\"\",\"\",L117*(100/(100 + 100*Pilotage!$D$14)))","v":""}]
[null,null,null,null,null,null,null,null,null,{"$f":"IF(A118=\"\",\"\",SUM(F118:G118)*Pilotage!$D$14*I118)","v":""},{"$f":"IF(A118=\"\",\"\",L118*(100/(100 + 100*Pilotage!$D$14)))","v":""}]
[null,null,null,null,null,null,null,null,null,{"$f":"IF(A119=\"\",\"\",SUM(F119:G119)*Pilotage!$D$14*I119)","v":""},{"$f":"IF(A119=\"\",\"\",L119*(100/(100 + 100*Pilotage!$D$14)))","v":""}]
[null,null,null,null,null,null,null,null,null,{"$f":"IF(A120=\"\",\"\",SUM(F120:G120)*Pilotage!$D$14*I120)","v":""},{"$f":"IF(A120=\"\",\"\",L120*(100/(100 + 100*Pilotage!$D$14)))","v":""}]
[null,null,null,null,null,null,null,null,null,{"$f":"IF(A121=\"\",\"\",SUM(F121:G121)*Pilotage!$D$14*I121)","v":""},{"$f":"IF(A121=\"\",\"\",L121*(100/(100 + 100*Pilotage!$D$14)))","v":""}]
[null,null,null,null,null,null,null,null,null,{"$f":"IF(A122=\"\",\"\",SUM(F122:G122)*Pilotage!$D$14*I122)","v":""},{"$f":"IF(A122=\"\",\"\",L122*(100/(100 + 100*Pilotage!$D$14)))","v":""}]
[null,null,null,null,null,null,null,null,null,{"$f":"IF(A123=\"\",\"\",SUM(F123:G123)*Pilotage!$D$14*I123)","v":""},{"$f":"IF(A123=\"\",\"\",L123*(100/(100 + 100*Pilotage!$D$14)))","v":""}]
[null,null,null,null,null,null,null,null,null,{"$f":"IF(A124=\"\",\"\",SUM(F124:G124)*Pilotage!$D$14*I124)","v":""},{"$f":"IF(A124=\"\",\"\",L124*(100/(100 + 100*Pilotage!$D$14)))","v":""}]
[null,null,null,null,null,null,null,null,null,{"$f":"IF(A125=\"\",\"\",SUM(F125:G125)*Pilotage!$D$14*I125)","v":""},{"$f":"IF(A125=\"\",\"\",L125*(100/(100 + 100*Pilotage!$D$14)))","v":""}]
[null,null,null,null,null,null,null,null,null,{"$f":"IF(A126=\"\",\"\",SUM(F126:G126)*Pilotage!$D$14*I126)","v":""},{"$f":"IF(A126=\"\",\"\",L126*(100/(100 + 100*Pilotage!$D$14)))","v":""}]
[null,null,null,null,null,null,null,null,null,{"$f":"IF(A127=\"\",\"\",SUM(F127:G127)*Pilotage!$D$14*I127)","v":""},{"$f":"IF(A127=\"\",\"\",L127*(100/(100 + 100*Pilotage!$D$14)))","v":""}]
[null,null,null,null,null,null,null,null,null,{"$f":"IF(A128=\"\",\"\",SUM(F128:G128)*Pilotage!$D$14*I128)","v":""},{"$f":"IF(A128=\"\",\"\",L128*(100/(100 + 100*Pilotage!$D$14)))","v":""}]
[null,null,null,null,null,null,null,null,null,{"$f":"IF(A129=\"\",\"\",SUM(F129:G129)*Pilotage!$D$14*I129)","v":""},{"$f":"IF(A129=\"\",\"\",L129*(100/(100 + 100*Pilotage!$D$14)))","v":""}]
[null,null,null,null,null,null,null,null,null,{"$f":"IF(A130=\"\",\"\",SUM(F130:G130)*Pilotage!$D$14*I130)","v":""},{"$f":"IF(A130=\"\",\"\",L130*(100/(100 + 100*Pilotage!$D$14)))","v":""}]
[null,null,null,null,null,null,null,null,null,{"$f":"IF(A131=\"\",\"\",SUM(F131:G131)*Pilotage!$D$14*I131)","v":""},{"$f":"IF(A131=\"\",\"\",L131*(100/(100 + 100*Pilotage!$D$14)))","v":""}]
[null,null,null,null,null,null,null,null,null,{"$f":"IF(A132=\"\",\"\",SUM(F132:G132)*Pilotage!$D$14*I132)","v":""},{"$f":"IF(A132=\"\",\"\",L132*(100/(100 + 100*Pilotage!$D$14)))","v":""}]
[null,null,null,null,null,null,null,null,null,{"$f":"IF(A133=\"\",\"\",SUM(F133:G133)*Pilotage!$D$14*I133)","v":""},{"$f":"IF(A133=\"\",\"\",L133*(100/(100 + 100*Pilotage!$D$14)))","v":""}]
[null,null,null,null,null,null,null,null,null,{"$f":"IF(A134=\"\",\"\",SUM(F134:G134)*Pilotage!$D$14*I134)","v":""},{"$f":"IF(A134=\"\",\"\",L134*(100/(100 + 100*Pilotage!$D$14)))","v":""}]
[null,null,null,null,null,null,null,null,null,{"$f":"IF(A135=\"\",\"\",SUM(F135:G135)*Pilotage!$D$14*I135)","v":""},{"$f":"IF(A135=\"\",\"\",L135*(100/(100 + 100*Pilotage!$D$14)))","v":""}]
[null,null,null,null,null,null,null,null,null,{"$f":"IF(A136=\"\",\"\",SUM(F136:G136)*Pilotage!$D$14*I136)","v":""},{"$f":"IF(A136=\"\",\"\",L136*(100/(100 + 100*Pilotage!$D$14)))","v":""}]
[null,null,null,null,null,null,null,null,null,{"$f":"IF(A137=\"\",\"\",SUM(F137:G137)*Pilotage!$D$14*I137)","v":""},{"$f":"IF(A137=\"\",\"\",L137*(100/(100 + 100*Pilotage!$D$14)))","v":""}]
[null,null,null,null,null,null,null,null,null,{"$f":"IF(A138=\"\",\"\",SUM(F138:G138)*Pilotage!$D$14*I138)","v":""},{"$f":"IF(A138=\"\",\"\",L138*(100/(100 + 100*Pilotage!$D$14)))","v":""}]
[null,null,null,null,null,null,null,null,null,{"$f":"IF(A139=\"\",\"\",SUM(F139:G139)*Pilotage!$D$14*I139)","v":""},{"$f":"IF(A139=\"\",\"\",L139*(100/(100 + 100*Pilotage!$D$14)))","v":""}]
[null,null,null,null,null,null,null,null,null,{"$f":"IF(A140=\"\",\"\",SUM(F140:G140)*Pilotage!$D$14*I140)","v":""},{"$f":"IF(A140=\"\",\"\",L140*(100/(100 + 100*Pilotage!$D$14)))","v":""}]
[null,null,null,null,null,null,null,null,null,{"$f":"IF(A141=\"\",\"\",SUM(F141:G141)*Pilotage!$D$14*I141)","v":""},{"$f":"IF(A141=\"\",\"\",L141*(100/(100 + 100*Pilotage!$D$14)))","v":""}]
[null,null,null,null,null,null,null,null,null,{"$f":"IF(A142=\"\",\"\",SUM(F142:G142)*Pilotage!$D$14*I142)","v":""},{"$f":"IF(A142=\"\",\"\",L142*(100/(100 + 100*Pilotage!$D$14)))","v":""}]
[null,null,null,null,null,null,null,null,null,{"$f":"IF(A143=\"\",\"\",SUM(F143:G143)*Pilotage!$D$14*I143)","v":""},{"$f":"IF(A143=\"\",\"\",L143*(100/(100 + 100*Pilotage!$D$14)))","v":""}]
[null,null,null,null,null,null,null,null,null,{"$f":"IF(A144=\"\",\"\",SUM(F144:G144)*Pilotage!$D$14*I144)","v":""},{"$f":"IF(A144=\"\",\"\",L144*(100/(100 + 100*Pilotage!$D$14)))","v":""}]
[null,null,null,null,null,null,null,null,null,{"$f":"IF(A145=\"\",\"\",SUM(F145:G145)*Pilotage!$D$14*I145)","v":""},{"$f":"IF(A145=\"\",\"\",L145*(100/(100 + 100*Pilotage!$D$14)))","v":""}]
[null,null,null,null,null,null,null,null,null,{"$f":"IF(A146=\"\",\"\",SUM(F146:G146)*Pilotage!$D$14*I146)","v":""},{"$f":"IF(A146=\"\",\"\",L146*(100/(100 + 100*Pilotage!$D$14)))","v":""}]
[null,null,null,null,null,null,null,null,null,{"$f":"IF(A147=\"\",\"\",SUM(F147:G147)*Pilotage!$D$14*I147)","v":""},{"$f":"IF(A147=\"\",\"\",L147*(100/(100 + 100*Pilotage!$D$14)))","v":""}]
[null,null,null,null,null,null,null,null,null,{"$f":"IF(A148=\"\",\"\",SUM(F148:G148)*Pilotage!$D$14*I148)","v":""},{"$f":"IF(A148=\"\",\"\",L148*(100/(100 + 100*Pilotage!$D$14)))","v":""}]
[null,null,null,null,null,null,null,null,null,{"$f":"IF(A149=\"\",\"\",SUM(F149:G149)*Pilotage!$D$14*I149)","v":""},{"$f":"IF(A149=\"\",\"\",L149*(100/(100 + 100*Pilotage!$D$14)))","v":""}]
[null,null,null,null,null,null,null,null,null,{"$f":"IF(A150=\"\",\"\",SUM(F150:G150)*Pilotage!$D$14*I150)","v":""},{"$f":"IF(A150=\"\",\"\",L150*(100/(100 + 100*Pilotage!$D$14)))","v":""}]
[null,null,null,null,null,null,null,null,null,{"$f":"IF(A151=\"\",\"\",SUM(F151:G151)*Pilotage!$D$14*I151)","v":""},{"$f":"IF(A151=\"\",\"\",L151*(100/(100 + 100*Pilotage!$D$14)))","v":""}]
[null,null,null,null,null,null,null,null,null,{"$f":"IF(A152=\"\",\"\",SUM(F152:G152)*Pilotage!$D$14*I152)","v":""},{"$f":"IF(A152=\"\",\"\",L152*(100/(100 + 100*Pilotage!$D$14)))","v":""}]
[null,null,null,null,null,null,null,null,null,{"$f":"IF(A153=\"\",\"\",SUM(F153:G153)*Pilotage!$D$14*I153)","v":""},{"$f":"IF(A153=\"\",\"\",L153*(100/(100 + 100*Pilotage!$D$14)))","v":""}]
[null,null,null,null,null,null,null,null,null,{"$f":"IF(A154=\"\",\"\",SUM(F154:G154)*Pilotage!$D$14*I154)","v":""},{"$f":"IF(A154=\"\",\"\",L154*(100/(100 + 100*Pilotage!$D$14)))","v":""}]
[null,null,null,null,null,null,null,null,null,{"$f":"IF(A155=\"\",\"\",SUM(F155:G155)*Pilotage!$D$14*I155)","v":""},{"$f":"IF(A155=\"\",\"\",L155*(100/(100 + 100*Pilotage!$D$14)))","v":""}]
[null,null,null,null,null,null,null,null,null,{"$f":"IF(A156=\"\",\"\",SUM(F156:G156)*Pilotage!$D$14*I156)","v":""},{"$f":"IF(A156=\"\",\"\",L156*(100/(100 + 100*Pilotage!$D$14)))","v":""}]
[null,null,null,null,null,null,null,null,null,{"$f":"IF(A157=\"\",\"\",SUM(F157:G157)*Pilotage!$D$14*I157)","v":""},{"$f":"IF(A157=\"\",\"\",L157*(100/(100 + 100*Pilotage!$D$14)))","v":""}]
[null,null,null,null,null,null,null,null,null,{"$f":"IF(A158=\"\",\"\",SUM(F158:G158)*Pilotage!$D$14*I158)","v":""},{"$f":"IF(A158=\"\",\"\",L158*(100/(100 + 100*Pilotage!$D$14)))","v":""}]
[null,null,null,null,null,null,null,null,null,{"$f":"IF(A159=\"\",\"\",SUM(F159:G159)*Pilotage!$D$14*I159)","v":""},{"$f":"IF(A159=\"\",\"\",L159*(100/(100 + 100*Pilotage!$D$14)))","v":""}]
[null,null,null,null,null,null,null,null,null,{"$f":"IF(A160=\"\",\"\",SUM(F160:G160)*Pilotage!$D$14*I160)","v":""},{"$f":"IF(A160=\"\",\"\",L160*(100/(100 + 100*Pilotage!$D$14)))","v":""}]
[null,null,null,null,null,null,null,null,null,{"$f":"IF(A161=\"\",\"\",SUM(F161:G161)*Pilotage!$D$14*I161)","v":""},{"$f":"IF(A161=\"\",\"\",L161*(100/(100 + 100*Pilotage!$D$14)))","v":""}]
[null,null,null,null,null,null,null,null,null,{"$f":"IF(A162=\"\",\"\",SUM(F162:G162)*Pilotage!$D$14*I162)","v":""},{"$f":"IF(A162=\"\",\"\",L162*(100/(100 + 100*Pilotage!$D$14)))","v":""}]
[null,null,null,null,null,null,null,null,null,{"$f":"IF(A163=\"\",\"\",SUM(F163:G163)*Pilotage!$D$14*I163)","v":""},{"$f":"IF(A163=\"\",\"\",L163*(100/(100 + 100*Pilotage!$D$14)))","v":""}]
[null,null,null,null,null,null,null,null,null,{"$f":"IF(A164=\"\",\"\",SUM(F164:G164)*Pilotage!$D$14*I164)","v":""},{"$f":"IF(A164=\"\",\"\",L164*(100/(100 + 100*Pilotage!$D$14)))","v":""}]
[null,null,null,null,null,null,null,null,null,{"$f":"IF(A165=\"\",\"\",SUM(F165:G165)*Pilotage!$D$14*I165)","v":""},{"$f":"IF(A165=\"\",\"\",L165*(100/(100 + 100*Pilotage!$D$14)))","v":""}]
[null,null,null,null,null,null,null,null,null,{"$f":"IF(A166=\"\",\"\",SUM(F166:G166)*Pilotage!$D$14*I166)","v":""},{"$f":"IF(A166=\"\",\"\",L166*(100/(100 + 100*Pilotage!$D$14)))","v":""}]
[null,null,null,null,null,null,null,null,null,{"$f":"IF(A167=\"\",\"\",SUM(F167:G167)*Pilotage!$D$14*I167)","v":""},{"$f":"IF(A167=\"\",\"\",L167*(100/(100 + 100*Pilotage!$D$14)))","v":""}]
[null,null,null,null,null,null,null,null,null,{"$f":"IF(A168=\"\",\"\",SUM(F168:G168)*Pilotage!$D$14*I168)","v":""},{"$f":"IF(A168=\"\",\"\",L168*(100/(100 + 100*Pilotage!$D$14)))","v":""}]
[null,null,null,null,null,null,null,null,null,{"$f":"IF(A169=\"\",\"\",SUM(F169:G169)*Pilotage!$D$14*I169)","v":""},{"$f":"IF(A169=\"\",\"\",L169*(100/(100 + 100*Pilotage!$D$14)))","v":""}]
[null,null,null,null,null,null,null,null,null,{"$f":"IF(A170=\"\",\"\",SUM(F170:G170)*Pilotage!$D$14*I170)","v":""},{"$f":"IF(A170=\"\",\"\",L170*(100/(100 + 100*Pilotage!$D$14)))","v":""}]
[null,null,null,null,null,null,null,null,null,{"$f":"IF(A171=\"\",\"\",SUM(F171:G171)*Pilotage!$D$14*I171)","v":""},{"$f":"IF(A171=\"\",\"\",L171*(100/(100 + 100*Pilotage!$D$14)))","v":""}]
[null,null,null,null,null,null,null,null,null,{"$f":"IF(A172=\"\",\"\",SUM(F172:G172)*Pilotage!$D$14*I172)","v":""},{"$f":"IF(A172=\"\",\"\",L172*(100/(100 + 100*Pilotage!$D$14)))","v":""}]
[null,null,null,null,null,null,null,null,null,{"$f":"IF(A173=\"\",\"\",SUM(F173:G173)*Pilotage!$D$14*I173)","v":""},{"$f":"IF(A173=\"\",\"\",L173*(100/(100 + 100*Pilotage!$D$14)))","v":""}]
[null,null,null,null,null,null,null,null,null,{"$f":"IF(A174=\"\",\"\",SUM(F174:G174)*Pilotage!$D$14*I174)","v":""},{"$f":"IF(A174=\"\",\"\",L174*(100/(100 + 100*Pilotage!$D$14)))","v":""}]
[null,null,null,null,null,null,null,null,null,{"$f":"IF(A175=\"\",\"\",SUM(F175:G175)*Pilotage!$D$14*I175)","v":""},{"$f":"IF(A175=\"\",\"\",L175*(100/(100 + 100*Pilotage!$D$14)))","v":""}]
[null,null,null,null,null,null,null,null,null,{"$f":"IF(A176=\"\",\"\",SUM(F176:G176)*Pilotage!$D$14*I176)","v":""},{"$f":"IF(A176=\"\",\"\",L176*(100/(100 + 100*Pilotage!$D$14)))","v":""}]
[null,null,null,null,null,null,null,null,null,{"$f":"IF(A177=\"\",\"\",SUM(F177:G177)*Pilotage!$D$14*I177)","v":""},{"$f":"IF(A177=\"\",\"\",L177*(100/(100 + 100*Pilotage!$D$14)))","v":""}]
[null,null,null,null,null,null,null,null,null,{"$f":"IF(A178=\"\",\"\",SUM(F178:G178)*Pilotage!$D$14*I178)","v":""},{"$f":"IF(A178=\"\",\"\",L178*(100/(100 + 100*Pilotage!$D$14)))","v":""}]
[null,null,null,null,null,null,null,null,null,{"$f":"IF(A179=\"\",\"\",SUM(F179:G179)*Pilotage!$D$14*I179)","v":""},{"$f":"IF(A179=\"\",\"\",L179*(100/(100 + 100*Pilotage!$D$14)))","v":""}]
[null,null,null,null,null,null,null,null,null,{"$f":"IF(A180=\"\",\"\",SUM(F180:G180)*Pilotage!$D$14*I180)","v":""},{"$f":"IF(A180=\"\",\"\",L180*(100/(100 + 100*Pilotage!$D$14)))","v":""}]
[null,null,null,null,null,null,null,null,null,{"$f":"IF(A181=\"\",\"\",SUM(F181:G181)*Pilotage!$D$14*I181)","v":""},{"$f":"IF(A181=\"\",\"\",L181*(100/(100 + 100*Pilotage!$D$14)))","v":""}]
[null,null,null,null,null,null,null,null,null,{"$f":"IF(A182=\"\",\"\",SUM(F182:G182)*Pilotage!$D$14*I182)","v":""},{"$f":"IF(A182=\"\",\"\",L182*(100/(100 + 100*Pilotage!$D$14)))","v":""}]
[null,null,null,null,null,null,null,null,null,{"$f":"IF(A183=\"\",\"\",SUM(F183:G183)*Pilotage!$D$14*I183)","v":""},{"$f":"IF(A183=\"\",\"\",L183*(100/(100 + 100*Pilotage!$D$14)))","v":""}]
[null,null,null,null,null,null,null,null,null,{"$f":"IF(A184=\"\",\"\",SUM(F184:G184)*Pilotage!$D$14*I184)","v":""},{"$f":"IF(A184=\"\",\"\",L184*(100/(100 + 100*Pilotage!$D$14)))","v":""}]
[null,null,null,null,null,null,null,null,null,{"$f":"IF(A185=\"\",\"\",SUM(F185:G185)*Pilotage!$D$14*I185)","v":""},{"$f":"IF(A185=\"\",\"\",L185*(100/(100 + 100*Pilotage!$D$14)))","v":""}]
[null,null,null,null,null,null,null,null,null,{"$f":"IF(A186=\"\",\"\",SUM(F186:G186)*Pilotage!$D$14*I186)","v":""},{"$f":"IF(A186=\"\",\"\",L186*(100/(100 + 100*Pilotage!$D$14)))","v":""}]
[null,null,null,null,null,null,null,null,null,{"$f":"IF(A187=\"\",\"\",SUM(F187:G187)*Pilotage!$D$14*I187)","v":""},{"$f":"IF(A187=\"\",\"\",L187*(100/(100 + 100*Pilotage!$D$14)))","v":""}]
[null,null,null,null,null,null,null,null,null,{"$f":"IF(A188=\"\",\"\",SUM(F188:G188)*Pilotage!$D$14*I188)","v":""},{"$f":"IF(A188=\"\",\"\",L188*(100/(100 + 100*Pilotage!$D$14)))","v":""}]
[null,null,null,null,null,null,null,null,null,{"$f":"IF(A189=\"\",\"\",SUM(F189:G189)*Pilotage!$D$14*I189)","v":""},{"$f":"IF(A189=\"\",\"\",L189*(100/(100 + 100*Pilotage!$D$14)))","v":""}]
[null,null,null,null,null,null,null,null,null,{"$f":"IF(A190=\"\",\"\",SUM(F190:G190)*Pilotage!$D$14*I190)","v":""},{"$f":"IF(A190=\"\",\"\",L190*(100/(100 + 100*Pilotage!$D$14)))","v":""}]
[null,null,null,null,null,null,null,null,null,{"$f":"IF(A191=\"\",\"\",SUM(F191:G191)*Pilotage!$D$14*I191)","v":""},{"$f":"IF(A191=\"\",\"\",L191*(100/(100 + 100*Pilotage!$D$14)))","v":""}]
[null,null,null,null,null,null,null,null,null,{"$f":"IF(A192=\"\",\"\",SUM(F192:G192)*Pilotage!$D$14*I192)","v":""},{"$f":"IF(A192=\"\",\"\",L192*(100/(100 + 100*Pilotage!$D$14)))","v":""}]
[null,null,null,null,null,null,null,null,null,{"$f":"IF(A193=\"\",\"\",SUM(F193:G193)*Pilotage!$D$14*I193)","v":""},{"$f":"IF(A193=\"\",\"\",L193*(100/(100 + 100*Pilotage!$D$14)))","v":""}]
[null,null,null,null,null,null,null,null,null,{"$f":"IF(A194=\"\",\"\",SUM(F194:G194)*Pilotage!$D$14*I194)","v":""},{"$f":"IF(A194=\"\",\"\",L194*(100/(100 + 100*Pilotage!$D$14)))","v":""}]
[null,null,null,null,null,null,null,null,null,{"$f":"IF(A195=\"\",\"\",SUM(F195:G195)*Pilotage!$D$14*I195)","v":""},{"$f":"IF(A195=\"\",\"\",L195*(100/(100 + 100*Pilotage!$D$14)))","v":""}]
[null,null,null,null,null,null,null,null,null,{"$f":"IF(A196=\"\",\"\",SUM(F196:G196)*Pilotage!$D$14*I196)","v":""},{"$f":"IF(A196=\"\",\"\",L196*(100/(100 + 100*Pilotage!$D$14)))","v":""}]
[null,null,null,null,null,null,null,null,null,{"$f":"IF(A197=\"\",\"\",SUM(F197:G197)*Pilotage!$D$14*I197)","v":""},{"$f":"IF(A197=\"\",\"\",L197*(100/(100 + 100*Pilotage!$D$14)))","v":""}]
[null,null,null,null,null,null,null,null,null,{"$f":"IF(A198=\"\",\"\",SUM(F198:G198)*Pilotage!$D$14*I198)","v":""},{"$f":"IF(A198=\"\",\"\",L198*(100/(100 + 100*Pilotage!$D$14)))","v":""}]
[null,null,null,null,null,null,null,null,null,{"$f":"IF(A199=\"\",\"\",SUM(F199:G199)*Pilotage!$D$14*I199)","v":""},{"$f":"IF(A199=\"\",\"\",L199*(100/(100 + 100*Pilotage!$D$14)))","v":""}]
[null,null,null,null,null,null,null,null,null,{"$f":"IF(A200=\"\",\"\",SUM(F200:G200)*Pilotage!$D$14*I200)","v":""},{"$f":"IF(A200=\"\",\"\",L200*(100/(100 + 100*Pilotage!$D$14)))","v":""}]
[null,null,null,null,null,null,null,null,null,{"$f":"IF(A201=\"\",\"\",SUM(F201:G201)*Pilotage!$D$14*I201)","v":""},{"$f":"IF(A201=\"\",\"\",L201*(100/(100 + 100*Pilotage!$D$14)))","v":""}]
[null,null,null,null,null,null,null,null,null,{"$f":"IF(A202=\"\",\"\",SUM(F202:G202)*Pilotage!$D$14*I202)","v":""},{"$f":"IF(A202=\"\",\"\",L202*(100/(100 + 100*Pilotage!$D$14)))","v":""}]
[null,null,null,null,null,null,null,null,null,{"$f":"IF(A203=\"\",\"\",SUM(F203:G203)*Pilotage!$D$14*I203)","v":""},{"$f":"IF(A203=\"\",\"\",L203*(100/(100 + 100*Pilotage!$D$14)))","v":""}]
[null,null,null,null,null,null,null,null,null,{"$f":"IF(A204=\"\",\"\",SUM(F204:G204)*Pilotage!$D$14*I204)","v":""},{"$f":"IF(A204=\"\",\"\",L204*(100/(100 + 100*Pilotage!$D$14)))","v":""}]
[null,null,null,null,null,null,null,null,null,{"$f":"IF(A205=\"\",\"\",SUM(F205:G205)*Pilotage!$D$14*I205)","v":""},{"$f":"IF(A205=\"\",\"\",L205*(100/(100 + 100*Pilotage!$D$14)))","v":""}]
[null,null,null,null,null,null,null,null,null,{"$f":"IF(A206=\"\",\"\",SUM(F206:G206)*Pilotage!$D$14*I206)","v":""},{"$f":"IF(A206=\"\",\"\",L206*(100/(100 + 100*Pilotage!$D$14)))","v":""}]
[null,null,null,null,null,null,null,null,null,{"$f":"IF(A207=\"\",\"\",SUM(F207:G207)*Pilotage!$D$14*I207)","v":""},{"$f":"IF(A207=\"\",\"\",L207*(100/(100 + 100*Pilotage!$D$14)))","v":""}]
[null,null,null,null,null,null,null,null,null,{"$f":"IF(A208=\"\",\"\",SUM(F208:G208)*Pilotage!$D$14*I208)","v":""},{"$f":"IF(A208=\"\",\"\",L208*(100/(100 + 100*Pilotage!$D$14)))","v":""}]
[null,null,null,null,null,null,null,null,null,{"$f":"IF(A209=\"\",\"\",SUM(F209:G209)*Pilotage!$D$14*I209)","v":""},{"$f":"IF(A209=\"\",\"\",L209*(100/(100 + 100*Pilotage!$D$14)))","v":""}]
[null,null,null,null,null,null,null,null,null,{"$f":"IF(A210=\"\",\"\",SUM(F210:G210)*Pilotage!$D$14*I210)","v":""},{"$f":"IF(A210=\"\",\"\",L210*(100/(100 + 100*Pilotage!$D$14)))","v":""}]
[null,null,null,null,null,null,null,null,null,{"$f":"IF(A211=\"\",\"\",SUM(F211:G211)*Pilotage!$D$14*I211)","v":""},{"$f":"IF(A211=\"\",\"\",L211*(100/(100 + 100*Pilotage!$D$14)))","v":""}]
[null,null,null,null,null,null,null,null,null,{"$f":"IF(A212=\"\",\"\",SUM(F212:G212)*Pilotage!$D$14*I212)","v":""},{"$f":"IF(A212=\"\",\"\",L212*(100/(100 + 100*Pilotage!$D$14)))","v":""}]
[null,null,null,null,null,null,null,null,null,{"$f":"IF(A213=\"\",\"\",SUM(F213:G213)*Pilotage!$D$14*I213)","v":""},{"$f":"IF(A213=\"\",\"\",L213*(100/(100 + 100*Pilotage!$D$14)))","v":""}]
[null,null,null,null,null,null,null,null,null,{"$f":"IF(A214=\"\",\"\",SUM(F214:G214)*Pilotage!$D$14*I214)","v":""},{"$f":"IF(A214=\"\",\"\",L214*(100/(100 + 100*Pilotage!$D$14)))","v":""}]
[null,null,null,null,null,null,null,null,null,{"$f":"IF(A215=\"\",\"\",SUM(F215:G215)*Pilotage!$D$14*I215)","v":""},{"$f":"IF(A215=\"\",\"\",L215*(100/(100 + 100*Pilotage!$D$14)))","v":""}]
[null,null,null,null,null,null,null,null,null,{"$f":"IF(A216=\"\",\"\",SUM(F216:G216)*Pilotage!$D$14*I216)","v":""},{"$f":"IF(A216=\"\",\"\",L216*(100/(100 + 100*Pilotage!$D$14)))","v":""}]
[null,null,null,null,null,null,null,null,null,{"$f":"IF(A217=\"\",\"\",SUM(F217:G217)*Pilotage!$D$14*I217)","v":""},{"$f":"IF(A217=\"\",\"\",L217*(100/(100 + 100*Pilotage!$D$14)))","v":""}]
[null,null,null,null,null,null,null,null,null,{"$f":"IF(A218=\"\",\"\",SUM(F218:G218)*Pilotage!$D$14*I218)","v":""},{"$f":"IF(A218=\"\",\"\",L218*(100/(100 + 100*Pilotage!$D$14)))","v":""}]
[null,null,null,null,null,null,null,null,null,{"$f":"IF(A219=\"\",\"\",SUM(F219:G219)*Pilotage!$D$14*I219)","v":""},{"$f":"IF(A219=\"\",\"\",L219*(100/(100 + 100*Pilotage!$D$14)))","v":""}]
[null,null,null,null,null,null,null,null,null,{"$f":"IF(A220=\"\",\"\",SUM(F220:G220)*Pilotage!$D$14*I220)","v":""},{"$f":"IF(A220=\"\",\"\",L220*(100/(100 + 100*Pilotage!$D$14)))","v":""}]
[null,null,null,null,null,null,null,null,null,{"$f":"IF(A221=\"\",\"\",SUM(F221:G221)*Pilotage!$D$14*I221)","v":""},{"$f":"IF(A221=\"\",\"\",L221*(100/(100 + 100*Pilotage!$D$14)))","v":""}]
[null,null,null,null,null,null,null,null,null,{"$f":"IF(A222=\"\",\"\",SUM(F222:G222)*Pilotage!$D$14*I222)","v":""},{"$f":"IF(A222=\"\",\"\",L222*(100/(100 + 100*Pilotage!$D$14)))","v":""}]
[null,null,null,null,null,null,null,null,null,{"$f":"IF(A223=\"\",\"\",SUM(F223:G223)*Pilotage!$D$14*I223)","v":""},{"$f":"IF(A223=\"\",\"\",L223*(100/(100 + 100*Pilotage!$D$14)))","v":""}]
[null,null,null,null,null,null,null,null,null,{"$f":"IF(A224=\"\",\"\",SUM(F224:G224)*Pilotage!$D$14*I224)","v":""},{"$f":"IF(A224=\"\",\"\",L224*(100/(100 + 100*Pilotage!$D$14)))","v":""}]
[null,null,null,null,null,null,null,null,null,{"$f":"IF(A225=\"\",\"\",SUM(F225:G225)*Pilotage!$D$14*I225)","v":""},{"$f":"IF(A225=\"\",\"\",L225*(100/(100 + 100*Pilotage!$D$14)))","v":""}]
[null,null,null,null,null,null,null,null,null,{"$f":"IF(A226=\"\",\"\",SUM(F226:G226)*Pilotage!$D$14*I226)","v":""},{"$f":"IF(A226=\"\",\"\",L226*(100/(100 + 100*Pilotage!$D$14)))","v":""}]
[null,null,null,null,null,null,null,null,null,{"$f":"IF(A227=\"\",\"\",SUM(F227:G227)*Pilotage!$D$14*I227)","v":""},{"$f":"IF(A227=\"\",\"\",L227*(100/(100 + 100*Pilotage!$D$14)))","v":""}]
[null,null,null,null,null,null,null,null,null,{"$f":"IF(A228=\"\",\"\",SUM(F228:G228)*Pilotage!$D$14*I228)","v":""},{"$f":"IF(A228=\"\",\"\",L228*(100/(100 + 100*Pilotage!$D$14)))","v":""}]
[null,null,null,null,null,null,null,null,null,{"$f":"IF(A229=\"\",\"\",SUM(F229:G229)*Pilotage!$D$14*I229)","v":""},{"$f":"IF(A229=\"\",\"\",L229*(100/(100 + 100*Pilotage!$D$14)))","v":""}]
[null,null,null,null,null,null,null,null,null,{"$f":"IF(A230=\"\",\"\",SUM(F230:G230)*Pilotage!$D$14*I230)","v":""},{"$f":"IF(A230=\"\",\"\",L230*(100/(100 + 100*Pilotage!$D$14)))","v":""}]
[null,null,null,null,null,null,null,null,null,{"$f":"IF(A231=\"\",\"\",SUM(F231:G231)*Pilotage!$D$14*I231)","v":""},{"$f":"IF(A231=\"\",\"\",L231*(100/(100 + 100*Pilotage!$D$14)))","v":""}]
[null,null,null,null,null,null,null,null,null,{"$f":"IF(A232=\"\",\"\",SUM(F232:G232)*Pilotage!$D$14*I232)","v":""},{"$f":"IF(A232=\"\",\"\",L232*(100/(100 + 100*Pilotage!$D$14)))","v":""}]
[null,null,null,null,null,null,null,null,null,{"$f":"IF(A233=\"\",\"\",SUM(F233:G233)*Pilotage!$D$14*I233)","v":""},{"$f":"IF(A233=\"\",\"\",L233*(100/(100 + 100*Pilotage!$D$14)))","v":""}]
[null,null,null,null,null,null,null,null,null,{"$f":"IF(A234=\"\",\"\",SUM(F234:G234)*Pilotage!$D$14*I234)","v":""},{"$f":"IF(A234=\"\",\"\",L234*(100/(100 + 100*Pilotage!$D$14)))","v":""}]
[null,null,null,null,null,null,null,null,null,{"$f":"IF(A235=\"\",\"\",SUM(F235:G235)*Pilotage!$D$14*I235)","v":""},{"$f":"IF(A235=\"\",\"\",L235*(100/(100 + 100*Pilotage!$D$14)))","v":""}]
[null,null,null,null,null,null,null,null,null,{"$f":"IF(A236=\"\",\"\",SUM(F236:G236)*Pilotage!$D$14*I236)","v":""},{"$f":"IF(A236=\"\",\"\",L236*(100/(100 + 100*Pilotage!$D$14)))","v":""}]
[null,null,null,null,null,null,null,null,null,{"$f":"IF(A237=\"\",\"\",SUM(F237:G237)*Pilotage!$D$14*I237)","v":""},{"$f":"IF(A237=\"\",\"\",L237*(100/(100 + 100*Pilotage!$D$14)))","v":""}]
[null,null,null,null,null,null,null,null,null,{"$f":"IF(A238=\"\",\"\",SUM(F238:G238)*Pilotage!$D$14*I238)","v":""},{"$f":"IF(A238=\"\",\"\",L238*(100/(100 + 100*Pilotage!$D$14)))","v":""}]
[null,null,null,null,null,null,null,null,null,{"$f":"IF(A239=\"\",\"\",SUM(F239:G239)*Pilotage!$D$14*I239)","v":""},{"$f":"IF(A239=\"\",\"\",L239*(100/(100 + 100*Pilotage!$D$14)))","v":""}]
[null,null,null,null,null,null,null,null,null,{"$f":"IF(A240=\"\",\"\",SUM(F240:G240)*Pilotage!$D$14*I240)","v":""},{"$f":"IF(A240=\"\",\"\",L240*(100/(100 + 100*Pilotage!$D$14)))","v":""}]
[null,null,null,null,null,null,null,null,null,{"$f":"IF(A241=\"\",\"\",SUM(F241:G241)*Pilotage!$D$14*I241)","v":""},{"$f":"IF(A241=\"\",\"\",L241*(100/(100 + 100*Pilotage!$D$14)))","v":""}]
[null,null,null,null,null,null,null,null,null,{"$f":"IF(A242=\"\",\"\",SUM(F242:G242)*Pilotage!$D$14*I242)","v":""},{"$f":"IF(A242=\"\",\"\",L242*(100/(100 + 100*Pilotage!$D$14)))","v":""}]
[null,null,null,null,null,null,null,null,null,{"$f":"IF(A243=\"\",\"\",SUM(F243:G243)*Pilotage!$D$14*I243)","v":""},{"$f":"IF(A243=\"\",\"\",L243*(100/(100 + 100*Pilotage!$D$14)))","v":""}]
[null,null,null,null,null,null,null,null,null,{"$f":"IF(A244=\"\",\"\",SUM(F244:G244)*Pilotage!$D$14*I244)","v":""},{"$f":"IF(A244=\"\",\"\",L244*(100/(100 + 100*Pilotage!$D$14)))","v":""}]
[null,null,null,null,null,null,null,null,null,{"$f":"IF(A245=\"\",\"\",SUM(F245:G245)*Pilotage!$D$14*I245)","v":""},{"$f":"IF(A245=\"\",\"\",L245*(100/(100 + 100*Pilotage!$D$14)))","v":""}]
[null,null,null,null,null,null,null,null,null,{"$f":"IF(A246=\"\",\"\",SUM(F246:G246)*Pilotage!$D$14*I246)","v":""},{"$f":"IF(A246=\"\",\"\",L246*(100/(100 + 100*Pilotage!$D$14)))","v":""}]
[null,null,null,null,null,null,null,null,null,{"$f":"IF(A247=\"\",\"\",SUM(F247:G247)*Pilotage!$D$14*I247)","v":""},{"$f":"IF(A247=\"\",\"\",L247*(100/(100 + 100*Pilotage!$D$14)))","v":""}]
[null,null,null,null,null,null,null,null,null,{"$f":"IF(A248=\"\",\"\",SUM(F248:G248)*Pilotage!$D$14*I248)","v":""},{"$f":"IF(A248=\"\",\"\",L248*(100/(100 + 100*Pilotage!$D$14)))","v":""}]
[null,null,null,null,null,null,null,null,null,{"$f":"IF(A249=\"\",\"\",SUM(F249:G249)*Pilotage!$D$14*I249)","v":""},{"$f":"IF(A249=\"\",\"\",L249*(100/(100 + 100*Pilotage!$D$14)))","v":""}]
[null,null,null,null,null,null,null,null,null,{"$f":"IF(A250=\"\",\"\",SUM(F250:G250)*Pilotage!$D$14*I250)","v":""},{"$f":"IF(A250=\"\",\"\",L250*(100/(100 + 100*Pilotage!$D$14)))","v":""}]
[null,null,null,null,null,null,null,null,null,{"$f":"IF(A251=\"\",\"\",SUM(F251:G251)*Pilotage!$D$14*I251)","v":""},{"$f":"IF(A251=\"\",\"\",L251*(100/(100 + 100*Pilotage!$D$14)))","v":""}]
[null,null,null,null,null,null,null,null,null,{"$f":"IF(A252=\"\",\"\",SUM(F252:G252)*Pilotage!$D$14*I252)","v":""},{"$f":"IF(A252=\"\",\"\",L252*(100/(100 + 100*Pilotage!$D$14)))","v":""}]
[null,null,null,null,null,null,null,null,null,{"$f":"IF(A253=\"\",\"\",SUM(F253:G253)*Pilotage!$D$14*I253)","v":""},{"$f":"IF(A253=\"\",\"\",L253*(100/(100 + 100*Pilotage!$D$14)))","v":""}]
[null,null,null,null,null,null,null,null,null,{"$f":"IF(A254=\"\",\"\",SUM(F254:G254)*Pilotage!$D$14*I254)","v":""},{"$f":"IF(A254=\"\",\"\",L254*(100/(100 + 100*Pilotage!$D$14)))","v":""}]
[null,null,null,null,null,null,null,null,null,{"$f":"IF(A255=\"\",\"\",SUM(F255:G255)*Pilotage!$D$14*I255)","v":""},{"$f":"IF(A255=\"\",\"\",L255*(100/(100 + 100*Pilotage!$D$14)))","v":""}]
[null,null,null,null,null,null,null,null,null,{"$f":"IF(A256=\"\",\"\",SUM(F256:G256)*Pilotage!$D$14*I256)","v":""},{"$f":"IF(A256=\"\",\"\",L256*(100/(100 + 100*Pilotage!$D$14)))","v":""}]
[null,null,null,null,null,null,null,null,null,{"$f":"IF(A257=\"\",\"\",SUM(F257:G257)*Pilotage!$D$14*I257)","v":""}]
[null,null,null,null,null,null,null,null,null,{"$f":"IF(A258=\"\",\"\",SUM(F258:G258)*Pilotage!$D$14*I258)","v":""}]
[null,null,null,null,null,null,null,null,null,{"$f":"IF(A259=\"\",\"\",SUM(F259:G259)*Pilotage!$D$14*I259)","v":""}]
[null,null,null,null,null,null,null,null,null,{"$f":"IF(A260=\"\",\"\",SUM(F260:G260)*Pilotage!$D$14*I260)","v":""}]
[null,null,null,null,null,null,null,null,null,{"$f":"IF(A261=\"\",\"\",SUM(F261:G261)*Pilotage!$D$14*I261)","v":""}]
[null,null,null,null,null,null,null,null,null,{"$f":"IF(A262=\"\",\"\",SUM(F262:G262)*Pilotage!$D$14*I262)","v":""}]
[null,null,null,null,null,null,null,null,null,{"$f":"IF(A263=\"\",\"\",SUM(F263:G263)*Pilotage!$D$14*I263)","v":""}]
[null,null,null,null,null,null,null,null,null,{"$f":"IF(A264=\"\",\"\",SUM(F264:G264)*Pilotage!$D$14*I264)","v":""}]
[null,null,null,null,null,null,null,null,null,{"$f":"IF(A265=\"\",\"\",SUM(F265:G265)*Pilotage!$D$14*I265)","v":""}]
[null,null,null,null,null,null,null,null,null,{"$f":"IF(A266=\"\",\"\",SUM(F266:G266)*Pilotage!$D$14*I266)","v":""}]
[null,null,null,null,null,null,null,null,null,{"$f":"IF(A267=\"\",\"\",SUM(F267:G267)*Pilotage!$D$14*I267)","v":""}]
[null,null,null,null,null,null,null,null,null,{"$f":"IF(A268=\"\",\"\",SUM(F268:G268)*Pilotage!$D$14*I268)","v":""}]
[null,null,null,null,null,null,null,null,null,{"$f":"IF(A269=\"\",\"\",SUM(F269:G269)*Pilotage!$D$14*I269)","v":""}]
[null,null,null,null,null,null,null,null,null,{"$f":"IF(A270=\"\",\"\",SUM(F270:G270)*Pilotage!$D$14*I270)","v":""}]
[null,null,null,null,null,null,null,null,null,{"$f":"IF(A271=\"\",\"\",SUM(F271:G271)*Pilotage!$D$14*I271)","v":""}]

{"sheet":"Matériel","index":36,"n_rows":271,"n_cols":45,"rows_kept":271,"cut":false,"hidden":false,"merged":[[0,1,0,2]]}
["Qtt","Catégorie",null,"Designation","Commentaires","Prix unitaire €","Prix Unit. From $","Prix en $","Exprimé HT","TVA","Prix HT","Prix TTC","Sous totaux TTC","Provenance","Dont charges",null,"*","FL","FC","B","CW",null,"*","FL","FC","B","CW",null,null,null,"Durée","Taux","Année 0","Année 1","Année 2","Année 3","Année 4","Année 5","Année 6","Année 7","Année 8","Année 9","Année 10","Année 11","Année 12"]
[null,null,null,null,null,null,null,null,null,null,null,null,null,null,null,null,null,null,null,null,null,null,null,null,null,null,null,null,null,null,null,null,0,1,2,3,4,5,6,7,8,9,10,11,12]
[null,null,null,null,null,null,null,null,null,null,"Total HT","Total TTC",null,null,"Charges HT",null,null,null,null,null,null,null,{"$f":"W4/$K4","v":{"$error":"#DIV/0!"}},{"$f":"X4/$K4","v":{"$error":"#DIV/0!"}},{"$f":"Y4/$K4","v":{"$error":"#DIV/0!"}},{"$f":"Z4/$K4","v":{"$error":"#DIV/0!"}},{"$f":"AA4/$K4","v":{"$error":"#DIV/0!"}},{"$f":"SUM(W3:AA3)","v":{"$error":"#DIV/0!"}},null,null,null,null,"Total DAT ","Total DAT ","Total DAT ","Total DAT ","Total DAT ","Total DAT ","Total DAT ","Total DAT ","Total DAT ","Total DAT ","Total DAT ","Total DAT ","Total DAT "]
[null,null,null,null,null,null,null,null,null,null,{"$f":"L4*(100/(100 + 100*Pilotage!$D$14))","v":0},{"$f":"SUM(M:M)","v":0},null,null,{"$f":"SUM($O$8:$O802)","v":0},null,null,null,null,null,null,null,{"$f":"SUM(W6:W13)","v":0},{"$f":"SUM(X6:X13)","v":0},{"$f":"SUM(Y6:Y13)","v":0},{"$f":"SUM(Z6:Z13)","v":0},{"$f":"SUM(AA6:AA13)","v":0},{"$f":"SUM(W4:AA4)","v":0},null,null,null,null,{"$f":"SUM(AG9:AG13)","v":0},0,0,0,0,0,0,0,0,0,0,0,0]
[null,null,null,null,null,null,null,null,null,null,null,{"$f":"IF(L4<>SUM($L$6:$L$802),\"ERREUR Page Investissements\",\"\")","v":""},null,null,null,null,null,null,null,null,null,null,null,null,null,null,null,{"$f":"K4-AB4","v":0}]
[null,"Aléas",null,{"$f":"Pilotage!$D$17","v":0.02},null,null,{"$f":"IF(H6=\"\",\"\",H6*$G$4)","v":""},null,null,{"$f":"IF(A6=\"\",\"\",SUM(F6:G6)*Pilotage!$D$14*I6)","v":""},{"$f":"IF(A6=\"\",\"\",#REF!*(100/(100 + 100*Pilotage!$D$14)))","v":""},{"$f":"D6*SUM(K$8:K$618)*(1+Pilotage!$D$14)","v":0},{"$f":"L6","v":0},null,null,null,1,null,null,null,null,null,{"$f":"L6*Pilotage!D15","v":0},0,0,0,0]
[]
[null,"Café/Détente",null,null,null,null,null,null,null,{"$f":"IF(A8=\"\",\"\",SUM(F8:G8)*#REF!*I8)","v":""},{"$f":"IF(A8=\"\",\"\",L8*(100/(100 + 100*Pilotage!$D$14)))","v":""},{"$f":"IF(A8=\"\",\"\",(SUM(F8:G8)+J8)*A8)","v":""},null,null,{"$f":"IF(A8>0,IF(SUM(F8:G8)-J8<500,K8,\"\"),\"\")","v":""}]
[0,null,null,"Ordinateur",null,1500,{"$f":"IF(H9=\"\",\"\",H9*Pilotage!$D$16)","v":""},null,1,{"$f":"IF(A9=\"\",\"\",SUM(F9:G9)*Pilotage!$D$14*I9)","v":300},{"$f":"IF(A9=\"\",\"\",L9*(100/(100 + 100*Pilotage!$D$14)))","v":0},0,null,null,{"$f":"IF(A9>0,IF(SUM(F9:G9)-J9<500,K9,\"\"),\"\")","v":""},null,null,null,1,null,null,null,{"$f":"IF($A9<>\"\",Q9*$K9,\"\")","v":0},{"$f":"IF($A9<>\"\",R9*$K9,\"\")","v":0},0,0,0,null,null,"Matériel fixe",{"$f":"IF(A9<>\"\",IF($AD9<>\"\",VLOOKUP($AD9,Immobilisations[],7),0),\"\")","v":10},{"$f":"IF(A9<>\"\",IF($AD9<>\"\",VLOOKUP($AD9,Immobilisations[],8),\"\"),\"\")","v":0.1},{"$f":"IF(AND($A9<>\"\",$AF9<>\"\"),IF(AG$2=0,0,IF(ROUNDDOWN(AG$2/($AE9+1),0)=0,$K9*$AE9/100,0)),\"\")","v":0},{"$f":"IF(AND($A9<>\"\",$AF9<>\"\"),IF(AH$2=0,0,IF(ROUNDDOWN(AH$2/($AE9+1),0)=0,$K9*$AE9/100,0)),\"\")","v":0},{"$f":"IF(AND($A9<>\"\",$AF9<>\"\"),IF(AI$2=0,0,IF(ROUNDDOWN(AI$2/($AE9+1),0)=0,$K9*$AE9/100,0)),\"\")","v":0},0,0,0,0,0,0,0,0,0,0]
[]
[]
[]
[null,null,null,null,null,null,{"$f":"IF(H13=\"\",\"\",H13*Pilotage!$D$16)","v":""},null,null,{"$f":"IF(A13=\"\",\"\",SUM(F13:G13)*Pilotage!$D$14*I13)","v":""},{"$f":"IF(A13=\"\",\"\",L13*(100/(100 + 100*Pilotage!$D$14)))","v":""},"",{"$f":"SUM(L9:L12)","v":0},null,{"$f":"IF(A13<>\"\",IF(SUM(F13:G13)-J13<500,K13,\"\"),\"\")","v":""},null,null,null,null,null,null,null,{"$f":"IF($A13<>\"\",Q13*$K13,\"\")","v":""},"","","","",null,null,null,{"$f":"IF(A13<>\"\",IF($AD13<>\"\",VLOOKUP($AD13,Immobilisations[],7),0),\"\")","v":""},{"$f":"IF(A13<>\"\",IF($AD13<>\"\",VLOOKUP($AD13,Immobilisations[],8),\"\"),\"\")","v":""},{"$f":"IF(AND($A13<>\"\",$AF13<>\"\"),IF(AG$2=0,0,IF(ROUNDDOWN(AG$2/($AE13+1),0)=0,$K13*$AE13/100,0)),\"\")","v":""},"","","","","","","","","","","",""]
[null,null,null,null,null,null,{"$f":"IF(H14=\"\",\"\",H14*Pilotage!$D$16)","v":""},null,null,{"$f":"IF(A14=\"\",\"\",SUM(F14:G14)*Pilotage!$D$14*I14)","v":""},{"$f":"IF(A14=\"\",\"\",L14*(100/(100 + 100*Pilotage!$D$14)))","v":""},{"$f":"IF(A14=\"\",\"\",(SUM(F14:G14)+J14)*A14)","v":""},null,null,null,null,null,null,null,null,null,null,null,{"$f":"IF($A14<>\"\",R14*$K14,\"\")","v":""}]
[null,null,null,null,null,null,{"$f":"IF(H15=\"\",\"\",H15*Pilotage!$D$16)","v":""},null,null,{"$f":"IF(A15=\"\",\"\",SUM(F15:G15)*Pilotage!$D$14*I15)","v":""},{"$f":"IF(A15=\"\",\"\",L15*(100/(100 + 100*Pilotage!$D$14)))","v":""},"",null,null,null,null,null,null,null,null,null,null,null,""]
[null,null,null,null,null,null,{"$f":"IF(H16=\"\",\"\",H16*Pilotage!$D$16)","v":""},null,null,{"$f":"IF(A16=\"\",\"\",SUM(F16:G16)*Pilotage!$D$14*I16)","v":""},{"$f":"IF(A16=\"\",\"\",L16*(100/(100 + 100*Pilotage!$D$14)))","v":""},"",null,null,null,null,null,null,null,null,null,null,null,""]
[null,null,null,null,null,null,{"$f":"IF(H17=\"\",\"\",H17*Pilotage!$D$16)","v":""},null,null,{"$f":"IF(A17=\"\",\"\",SUM(F17:G17)*Pilotage!$D$14*I17)","v":""},{"$f":"IF(A17=\"\",\"\",L17*(100/(100 + 100*Pilotage!$D$14)))","v":""},"",null,null,null,null,null,null,null,null,null,null,null,""]
[null,null,null,null,null,null,{"$f":"IF(H18=\"\",\"\",H18*Pilotage!$D$16)","v":""},null,null,{"$f":"IF(A18=\"\",\"\",SUM(F18:G18)*Pilotage!$D$14*I18)","v":""},{"$f":"IF(A18=\"\",\"\",L18*(100/(100 + 100*Pilotage!$D$14)))","v":""},"",null,null,null,null,null,null,null,null,null,null,null,""]
[null,null,null,null,null,null,{"$f":"IF(H19=\"\",\"\",H19*Pilotage!$D$16)","v":""},null,null,{"$f":"IF(A19=\"\",\"\",SUM(F19:G19)*Pilotage!$D$14*I19)","v":""},{"$f":"IF(A19=\"\",\"\",L19*(100/(100 + 100*Pilotage!$D$14)))","v":""},"",null,null,null,null,null,null,null,null,null,null,null,""]
[null,null,null,null,null,null,{"$f":"IF(H20=\"\",\"\",H20*Pilotage!$D$16)","v":""},null,null,{"$f":"IF(A20=\"\",\"\",SUM(F20:G20)*Pilotage!$D$14*I20)","v":""},{"$f":"IF(A20=\"\",\"\",L20*(100/(100 + 100*Pilotage!$D$14)))","v":""},"",null,null,null,null,null,null,null,null,null,null,null,""]
[null,null,null,null,null,null,{"$f":"IF(H21=\"\",\"\",H21*Pilotage!$D$16)","v":""},null,null,{"$f":"IF(A21=\"\",\"\",SUM(F21:G21)*Pilotage!$D$14*I21)","v":""},{"$f":"IF(A21=\"\",\"\",L21*(100/(100 + 100*Pilotage!$D$14)))","v":""},"",null,null,null,null,null,null,null,null,null,null,null,""]
[null,null,null,null,null,null,{"$f":"IF(H22=\"\",\"\",H22*Pilotage!$D$16)","v":""},null,null,{"$f":"IF(A22=\"\",\"\",SUM(F22:G22)*Pilotage!$D$14*I22)","v":""},{"$f":"IF(A22=\"\",\"\",L22*(100/(100 + 100*Pilotage!$D$14)))","v":""},"",null,null,null,null,null,null,null,null,null,null,null,""]
[null,null,null,null,null,null,null,null,null,{"$f":"IF(A23=\"\",\"\",SUM(F23:G23)*Pilotage!$D$14*I23)","v":""},{"$f":"IF(A23=\"\",\"\",L23*(100/(100 + 100*Pilotage!$D$14)))","v":""},"",null,null,null,null,null,null,null,null,null,null,null,""]
[null,null,null,null,null,null,null,null,null,{"$f":"IF(A24=\"\",\"\",SUM(F24:G24)*Pilotage!$D$14*I24)","v":""},{"$f":"IF(A24=\"\",\"\",L24*(100/(100 + 100*Pilotage!$D$14)))","v":""},"",null,null,null,null,null,null,null,null,null,null,null,""]
[null,null,null,null,null,null,null,null,null,{"$f":"IF(A25=\"\",\"\",SUM(F25:G25)*Pilotage!$D$14*I25)","v":""},{"$f":"IF(A25=\"\",\"\",L25*(100/(100 + 100*Pilotage!$D$14)))","v":""},"",null,null,null,null,null,null,null,null,null,null,null,""]
[null,null,null,null,null,null,null,null,null,{"$f":"IF(A26=\"\",\"\",SUM(F26:G26)*Pilotage!$D$14*I26)","v":""},{"$f":"IF(A26=\"\",\"\",L26*(100/(100 + 100*Pilotage!$D$14)))","v":""},"",null,null,null,null,null,null,null,null,null,null,null,""]
[null,null,null,null,null,null,null,null,null,{"$f":"IF(A27=\"\",\"\",SUM(F27:G27)*Pilotage!$D$14*I27)","v":""},{"$f":"IF(A27=\"\",\"\",L27*(100/(100 + 100*Pilotage!$D$14)))","v":""},""]
[null,null,null,null,null,null,null,null,null,{"$f":"IF(A28=\"\",\"\",SUM(F28:G28)*Pilotage!$D$14*I28)","v":""},{"$f":"IF(A28=\"\",\"\",L28*(100/(100 + 100*Pilotage!$D$14)))","v":""}]
[null,null,null,null,null,null,null,null,null,{"$f":"IF(A29=\"\",\"\",SUM(F29:G29)*Pilotage!$D$14*I29)","v":""},{"$f":"IF(A29=\"\",\"\",L29*(100/(100 + 100*Pilotage!$D$14)))","v":""}]
[null,null,null,null,null,null,null,null,null,{"$f":"IF(A30=\"\",\"\",SUM(F30:G30)*Pilotage!$D$14*I30)","v":""},{"$f":"IF(A30=\"\",\"\",L30*(100/(100 + 100*Pilotage!$D$14)))","v":""}]
[null,null,null,null,null,null,null,null,null,{"$f":"IF(A31=\"\",\"\",SUM(F31:G31)*Pilotage!$D$14*I31)","v":""},{"$f":"IF(A31=\"\",\"\",L31*(100/(100 + 100*Pilotage!$D$14)))","v":""}]
[null,null,null,null,null,null,null,null,null,{"$f":"IF(A32=\"\",\"\",SUM(F32:G32)*Pilotage!$D$14*I32)","v":""},{"$f":"IF(A32=\"\",\"\",L32*(100/(100 + 100*Pilotage!$D$14)))","v":""}]
[null,null,null,null,null,null,null,null,null,{"$f":"IF(A33=\"\",\"\",SUM(F33:G33)*Pilotage!$D$14*I33)","v":""},{"$f":"IF(A33=\"\",\"\",L33*(100/(100 + 100*Pilotage!$D$14)))","v":""}]
[null,null,null,null,null,null,null,null,null,{"$f":"IF(A34=\"\",\"\",SUM(F34:G34)*Pilotage!$D$14*I34)","v":""},{"$f":"IF(A34=\"\",\"\",L34*(100/(100 + 100*Pilotage!$D$14)))","v":""}]
[null,null,null,null,null,null,null,null,null,{"$f":"IF(A35=\"\",\"\",SUM(F35:G35)*Pilotage!$D$14*I35)","v":""},{"$f":"IF(A35=\"\",\"\",L35*(100/(100 + 100*Pilotage!$D$14)))","v":""}]
[null,null,null,null,null,null,null,null,null,{"$f":"IF(A36=\"\",\"\",SUM(F36:G36)*Pilotage!$D$14*I36)","v":""},{"$f":"IF(A36=\"\",\"\",L36*(100/(100 + 100*Pilotage!$D$14)))","v":""}]
[null,null,null,null,null,null,null,null,null,{"$f":"IF(A37=\"\",\"\",SUM(F37:G37)*Pilotage!$D$14*I37)","v":""},{"$f":"IF(A37=\"\",\"\",L37*(100/(100 + 100*Pilotage!$D$14)))","v":""}]
[null,null,null,null,null,null,null,null,null,{"$f":"IF(A38=\"\",\"\",SUM(F38:G38)*Pilotage!$D$14*I38)","v":""},{"$f":"IF(A38=\"\",\"\",L38*(100/(100 + 100*Pilotage!$D$14)))","v":""}]
[null,null,null,null,null,null,null,null,null,{"$f":"IF(A39=\"\",\"\",SUM(F39:G39)*Pilotage!$D$14*I39)","v":""},{"$f":"IF(A39=\"\",\"\",L39*(100/(100 + 100*Pilotage!$D$14)))","v":""}]
[null,null,null,null,null,null,null,null,null,{"$f":"IF(A40=\"\",\"\",SUM(F40:G40)*Pilotage!$D$14*I40)","v":""},{"$f":"IF(A40=\"\",\"\",L40*(100/(100 + 100*Pilotage!$D$14)))","v":""}]
[null,null,null,null,null,null,null,null,null,{"$f":"IF(A41=\"\",\"\",SUM(F41:G41)*Pilotage!$D$14*I41)","v":""},{"$f":"IF(A41=\"\",\"\",L41*(100/(100 + 100*Pilotage!$D$14)))","v":""}]
[null,null,null,null,null,null,null,null,null,{"$f":"IF(A42=\"\",\"\",SUM(F42:G42)*Pilotage!$D$14*I42)","v":""},{"$f":"IF(A42=\"\",\"\",L42*(100/(100 + 100*Pilotage!$D$14)))","v":""}]
[null,null,null,null,null,null,null,null,null,{"$f":"IF(A43=\"\",\"\",SUM(F43:G43)*Pilotage!$D$14*I43)","v":""},{"$f":"IF(A43=\"\",\"\",L43*(100/(100 + 100*Pilotage!$D$14)))","v":""}]
[null,null,null,null,null,null,null,null,null,{"$f":"IF(A44=\"\",\"\",SUM(F44:G44)*Pilotage!$D$14*I44)","v":""},{"$f":"IF(A44=\"\",\"\",L44*(100/(100 + 100*Pilotage!$D$14)))","v":""}]
[null,null,null,null,null,null,null,null,null,{"$f":"IF(A45=\"\",\"\",SUM(F45:G45)*Pilotage!$D$14*I45)","v":""},{"$f":"IF(A45=\"\",\"\",L45*(100/(100 + 100*Pilotage!$D$14)))","v":""}]
[null,null,null,null,null,null,null,null,null,{"$f":"IF(A46=\"\",\"\",SUM(F46:G46)*Pilotage!$D$14*I46)","v":""},{"$f":"IF(A46=\"\",\"\",L46*(100/(100 + 100*Pilotage!$D$14)))","v":""}]
[null,null,null,null,null,null,null,null,null,{"$f":"IF(A47=\"\",\"\",SUM(F47:G47)*Pilotage!$D$14*I47)","v":""},{"$f":"IF(A47=\"\",\"\",L47*(100/(100 + 100*Pilotage!$D$14)))","v":""}]
[null,null,null,null,null,null,null,null,null,{"$f":"IF(A48=\"\",\"\",SUM(F48:G48)*Pilotage!$D$14*I48)","v":""},{"$f":"IF(A48=\"\",\"\",L48*(100/(100 + 100*Pilotage!$D$14)))","v":""}]
[null,null,null,null,null,null,null,null,null,{"$f":"IF(A49=\"\",\"\",SUM(F49:G49)*Pilotage!$D$14*I49)","v":""},{"$f":"IF(A49=\"\",\"\",L49*(100/(100 + 100*Pilotage!$D$14)))","v":""}]
[null,null,null,null,null,null,null,null,null,{"$f":"IF(A50=\"\",\"\",SUM(F50:G50)*Pilotage!$D$14*I50)","v":""},{"$f":"IF(A50=\"\",\"\",L50*(100/(100 + 100*Pilotage!$D$14)))","v":""}]
[null,null,null,null,null,null,null,null,null,{"$f":"IF(A51=\"\",\"\",SUM(F51:G51)*Pilotage!$D$14*I51)","v":""},{"$f":"IF(A51=\"\",\"\",L51*(100/(100 + 100*Pilotage!$D$14)))","v":""}]
[null,null,null,null,null,null,null,null,null,{"$f":"IF(A52=\"\",\"\",SUM(F52:G52)*Pilotage!$D$14*I52)","v":""},{"$f":"IF(A52=\"\",\"\",L52*(100/(100 + 100*Pilotage!$D$14)))","v":""}]
[null,null,null,null,null,null,null,null,null,{"$f":"IF(A53=\"\",\"\",SUM(F53:G53)*Pilotage!$D$14*I53)","v":""},{"$f":"IF(A53=\"\",\"\",L53*(100/(100 + 100*Pilotage!$D$14)))","v":""}]
[null,null,null,null,null,null,null,null,null,{"$f":"IF(A54=\"\",\"\",SUM(F54:G54)*Pilotage!$D$14*I54)","v":""},{"$f":"IF(A54=\"\",\"\",L54*(100/(100 + 100*Pilotage!$D$14)))","v":""}]
[null,null,null,null,null,null,null,null,null,{"$f":"IF(A55=\"\",\"\",SUM(F55:G55)*Pilotage!$D$14*I55)","v":""},{"$f":"IF(A55=\"\",\"\",L55*(100/(100 + 100*Pilotage!$D$14)))","v":""}]
[null,null,null,null,null,null,null,null,null,{"$f":"IF(A56=\"\",\"\",SUM(F56:G56)*Pilotage!$D$14*I56)","v":""},{"$f":"IF(A56=\"\",\"\",L56*(100/(100 + 100*Pilotage!$D$14)))","v":""}]
[null,null,null,null,null,null,null,null,null,{"$f":"IF(A57=\"\",\"\",SUM(F57:G57)*Pilotage!$D$14*I57)","v":""},{"$f":"IF(A57=\"\",\"\",L57*(100/(100 + 100*Pilotage!$D$14)))","v":""}]
[null,null,null,null,null,null,null,null,null,{"$f":"IF(A58=\"\",\"\",SUM(F58:G58)*Pilotage!$D$14*I58)","v":""},{"$f":"IF(A58=\"\",\"\",L58*(100/(100 + 100*Pilotage!$D$14)))","v":""}]
[null,null,null,null,null,null,null,null,null,{"$f":"IF(A59=\"\",\"\",SUM(F59:G59)*Pilotage!$D$14*I59)","v":""},{"$f":"IF(A59=\"\",\"\",L59*(100/(100 + 100*Pilotage!$D$14)))","v":""}]
[null,null,null,null,null,null,null,null,null,{"$f":"IF(A60=\"\",\"\",SUM(F60:G60)*Pilotage!$D$14*I60)","v":""},{"$f":"IF(A60=\"\",\"\",L60*(100/(100 + 100*Pilotage!$D$14)))","v":""}]
[null,null,null,null,null,null,null,null,null,{"$f":"IF(A61=\"\",\"\",SUM(F61:G61)*Pilotage!$D$14*I61)","v":""},{"$f":"IF(A61=\"\",\"\",L61*(100/(100 + 100*Pilotage!$D$14)))","v":""}]
[null,null,null,null,null,null,null,null,null,{"$f":"IF(A62=\"\",\"\",SUM(F62:G62)*Pilotage!$D$14*I62)","v":""},{"$f":"IF(A62=\"\",\"\",L62*(100/(100 + 100*Pilotage!$D$14)))","v":""}]
[null,null,null,null,null,null,null,null,null,{"$f":"IF(A63=\"\",\"\",SUM(F63:G63)*Pilotage!$D$14*I63)","v":""},{"$f":"IF(A63=\"\",\"\",L63*(100/(100 + 100*Pilotage!$D$14)))","v":""}]
[null,null,null,null,null,null,null,null,null,{"$f":"IF(A64=\"\",\"\",SUM(F64:G64)*Pilotage!$D$14*I64)","v":""},{"$f":"IF(A64=\"\",\"\",L64*(100/(100 + 100*Pilotage!$D$14)))","v":""}]
[null,null,null,null,null,null,null,null,null,{"$f":"IF(A65=\"\",\"\",SUM(F65:G65)*Pilotage!$D$14*I65)","v":""},{"$f":"IF(A65=\"\",\"\",L65*(100/(100 + 100*Pilotage!$D$14)))","v":""}]
[null,null,null,null,null,null,null,null,null,{"$f":"IF(A66=\"\",\"\",SUM(F66:G66)*Pilotage!$D$14*I66)","v":""},{"$f":"IF(A66=\"\",\"\",L66*(100/(100 + 100*Pilotage!$D$14)))","v":""}]
[null,null,null,null,null,null,null,null,null,{"$f":"IF(A67=\"\",\"\",SUM(F67:G67)*Pilotage!$D$14*I67)","v":""},{"$f":"IF(A67=\"\",\"\",L67*(100/(100 + 100*Pilotage!$D$14)))","v":""}]
[null,null,null,null,null,null,null,null,null,{"$f":"IF(A68=\"\",\"\",SUM(F68:G68)*Pilotage!$D$14*I68)","v":""},{"$f":"IF(A68=\"\",\"\",L68*(100/(100 + 100*Pilotage!$D$14)))","v":""}]
[null,null,null,null,null,null,null,null,null,{"$f":"IF(A69=\"\",\"\",SUM(F69:G69)*Pilotage!$D$14*I69)","v":""},{"$f":"IF(A69=\"\",\"\",L69*(100/(100 + 100*Pilotage!$D$14)))","v":""}]
[null,null,null,null,null,null,null,null,null,{"$f":"IF(A70=\"\",\"\",SUM(F70:G70)*Pilotage!$D$14*I70)","v":""},{"$f":"IF(A70=\"\",\"\",L70*(100/(100 + 100*Pilotage!$D$14)))","v":""}]
[null,null,null,null,null,null,null,null,null,{"$f":"IF(A71=\"\",\"\",SUM(F71:G71)*Pilotage!$D$14*I71)","v":""},{"$f":"IF(A71=\"\",\"\",L71*(100/(100 + 100*Pilotage!$D$14)))","v":""}]
[null,null,null,null,null,null,null,null,null,{"$f":"IF(A72=\"\",\"\",SUM(F72:G72)*Pilotage!$D$14*I72)","v":""},{"$f":"IF(A72=\"\",\"\",L72*(100/(100 + 100*Pilotage!$D$14)))","v":""}]
[null,null,null,null,null,null,null,null,null,{"$f":"IF(A73=\"\",\"\",SUM(F73:G73)*Pilotage!$D$14*I73)","v":""},{"$f":"IF(A73=\"\",\"\",L73*(100/(100 + 100*Pilotage!$D$14)))","v":""}]
[null,null,null,null,null,null,null,null,null,{"$f":"IF(A74=\"\",\"\",SUM(F74:G74)*Pilotage!$D$14*I74)","v":""},{"$f":"IF(A74=\"\",\"\",L74*(100/(100 + 100*Pilotage!$D$14)))","v":""}]
[null,null,null,null,null,null,null,null,null,{"$f":"IF(A75=\"\",\"\",SUM(F75:G75)*Pilotage!$D$14*I75)","v":""},{"$f":"IF(A75=\"\",\"\",L75*(100/(100 + 100*Pilotage!$D$14)))","v":""}]
[null,null,null,null,null,null,null,null,null,{"$f":"IF(A76=\"\",\"\",SUM(F76:G76)*Pilotage!$D$14*I76)","v":""},{"$f":"IF(A76=\"\",\"\",L76*(100/(100 + 100*Pilotage!$D$14)))","v":""}]
[null,null,null,null,null,null,null,null,null,{"$f":"IF(A77=\"\",\"\",SUM(F77:G77)*Pilotage!$D$14*I77)","v":""},{"$f":"IF(A77=\"\",\"\",L77*(100/(100 + 100*Pilotage!$D$14)))","v":""}]
[null,null,null,null,null,null,null,null,null,{"$f":"IF(A78=\"\",\"\",SUM(F78:G78)*Pilotage!$D$14*I78)","v":""},{"$f":"IF(A78=\"\",\"\",L78*(100/(100 + 100*Pilotage!$D$14)))","v":""}]
[null,null,null,null,null,null,null,null,null,{"$f":"IF(A79=\"\",\"\",SUM(F79:G79)*Pilotage!$D$14*I79)","v":""},{"$f":"IF(A79=\"\",\"\",L79*(100/(100 + 100*Pilotage!$D$14)))","v":""}]
[null,null,null,null,null,null,null,null,null,{"$f":"IF(A80=\"\",\"\",SUM(F80:G80)*Pilotage!$D$14*I80)","v":""},{"$f":"IF(A80=\"\",\"\",L80*(100/(100 + 100*Pilotage!$D$14)))","v":""}]
[null,null,null,null,null,null,null,null,null,{"$f":"IF(A81=\"\",\"\",SUM(F81:G81)*Pilotage!$D$14*I81)","v":""},{"$f":"IF(A81=\"\",\"\",L81*(100/(100 + 100*Pilotage!$D$14)))","v":""}]
[null,null,null,null,null,null,null,null,null,{"$f":"IF(A82=\"\",\"\",SUM(F82:G82)*Pilotage!$D$14*I82)","v":""},{"$f":"IF(A82=\"\",\"\",L82*(100/(100 + 100*Pilotage!$D$14)))","v":""}]
[null,null,null,null,null,null,null,null,null,{"$f":"IF(A83=\"\",\"\",SUM(F83:G83)*Pilotage!$D$14*I83)","v":""},{"$f":"IF(A83=\"\",\"\",L83*(100/(100 + 100*Pilotage!$D$14)))","v":""}]
[null,null,null,null,null,null,null,null,null,{"$f":"IF(A84=\"\",\"\",SUM(F84:G84)*Pilotage!$D$14*I84)","v":""},{"$f":"IF(A84=\"\",\"\",L84*(100/(100 + 100*Pilotage!$D$14)))","v":""}]
[null,null,null,null,null,null,null,null,null,{"$f":"IF(A85=\"\",\"\",SUM(F85:G85)*Pilotage!$D$14*I85)","v":""},{"$f":"IF(A85=\"\",\"\",L85*(100/(100 + 100*Pilotage!$D$14)))","v":""}]
[null,null,null,null,null,null,null,null,null,{"$f":"IF(A86=\"\",\"\",SUM(F86:G86)*Pilotage!$D$14*I86)","v":""},{"$f":"IF(A86=\"\",\"\",L86*(100/(100 + 100*Pilotage!$D$14)))","v":""}]
[null,null,null,null,null,null,null,null,null,{"$f":"IF(A87=\"\",\"\",SUM(F87:G87)*Pilotage!$D$14*I87)","v":""},{"$f":"IF(A87=\"\",\"\",L87*(100/(100 + 100*Pilotage!$D$14)))","v":""}]
[null,null,null,null,null,null,null,null,null,{"$f":"IF(A88=\"\",\"\",SUM(F88:G88)*Pilotage!$D$14*I88)","v":""},{"$f":"IF(A88=\"\",\"\",L88*(100/(100 + 100*Pilotage!$D$14)))","v":""}]
[null,null,null,null,null,null,null,null,null,{"$f":"IF(A89=\"\",\"\",SUM(F89:G89)*Pilotage!$D$14*I89)","v":""},{"$f":"IF(A89=\"\",\"\",L89*(100/(100 + 100*Pilotage!$D$14)))","v":""}]
[null,null,null,null,null,null,null,null,null,{"$f":"IF(A90=\"\",\"\",SUM(F90:G90)*Pilotage!$D$14*I90)","v":""},{"$f":"IF(A90=\"\",\"\",L90*(100/(100 + 100*Pilotage!$D$14)))","v":""}]
[null,null,null,null,null,null,null,null,null,{"$f":"IF(A91=\"\",\"\",SUM(F91:G91)*Pilotage!$D$14*I91)","v":""},{"$f":"IF(A91=\"\",\"\",L91*(100/(100 + 100*Pilotage!$D$14)))","v":""}]
[null,null,null,null,null,null,null,null,null,{"$f":"IF(A92=\"\",\"\",SUM(F92:G92)*Pilotage!$D$14*I92)","v":""},{"$f":"IF(A92=\"\",\"\",L92*(100/(100 + 100*Pilotage!$D$14)))","v":""}]
[null,null,null,null,null,null,null,null,null,{"$f":"IF(A93=\"\",\"\",SUM(F93:G93)*Pilotage!$D$14*I93)","v":""},{"$f":"IF(A93=\"\",\"\",L93*(100/(100 + 100*Pilotage!$D$14)))","v":""}]
[null,null,null,null,null,null,null,null,null,{"$f":"IF(A94=\"\",\"\",SUM(F94:G94)*Pilotage!$D$14*I94)","v":""},{"$f":"IF(A94=\"\",\"\",L94*(100/(100 + 100*Pilotage!$D$14)))","v":""}]
[null,null,null,null,null,null,null,null,null,{"$f":"IF(A95=\"\",\"\",SUM(F95:G95)*Pilotage!$D$14*I95)","v":""},{"$f":"IF(A95=\"\",\"\",L95*(100/(100 + 100*Pilotage!$D$14)))","v":""}]
[null,null,null,null,null,null,null,null,null,{"$f":"IF(A96=\"\",\"\",SUM(F96:G96)*Pilotage!$D$14*I96)","v":""},{"$f":"IF(A96=\"\",\"\",L96*(100/(100 + 100*Pilotage!$D$14)))","v":""}]
[null,null,null,null,null,null,null,null,null,{"$f":"IF(A97=\"\",\"\",SUM(F97:G97)*Pilotage!$D$14*I97)","v":""},{"$f":"IF(A97=\"\",\"\",L97*(100/(100 + 100*Pilotage!$D$14)))","v":""}]
[null,null,null,null,null,null,null,null,null,{"$f":"IF(A98=\"\",\"\",SUM(F98:G98)*Pilotage!$D$14*I98)","v":""},{"$f":"IF(A98=\"\",\"\",L98*(100/(100 + 100*Pilotage!$D$14)))","v":""}]
[null,null,null,null,null,null,null,null,null,{"$f":"IF(A99=\"\",\"\",SUM(F99:G99)*Pilotage!$D$14*I99)","v":""},{"$f":"IF(A99=\"\",\"\",L99*(100/(100 + 100*Pilotage!$D$14)))","v":""}]
[null,null,null,null,null,null,null,null,null,{"$f":"IF(A100=\"\",\"\",SUM(F100:G100)*Pilotage!$D$14*I100)","v":""},{"$f":"IF(A100=\"\",\"\",L100*(100/(100 + 100*Pilotage!$D$14)))","v":""}]
[null,null,null,null,null,null,null,null,null,{"$f":"IF(A101=\"\",\"\",SUM(F101:G101)*Pilotage!$D$14*I101)","v":""},{"$f":"IF(A101=\"\",\"\",L101*(100/(100 + 100*Pilotage!$D$14)))","v":""}]
[null,null,null,null,null,null,null,null,null,{"$f":"IF(A102=\"\",\"\",SUM(F102:G102)*Pilotage!$D$14*I102)","v":""},{"$f":"IF(A102=\"\",\"\",L102*(100/(100 + 100*Pilotage!$D$14)))","v":""}]
[null,null,null,null,null,null,null,null,null,{"$f":"IF(A103=\"\",\"\",SUM(F103:G103)*Pilotage!$D$14*I103)","v":""},{"$f":"IF(A103=\"\",\"\",L103*(100/(100 + 100*Pilotage!$D$14)))","v":""}]
[null,null,null,null,null,null,null,null,null,{"$f":"IF(A104=\"\",\"\",SUM(F104:G104)*Pilotage!$D$14*I104)","v":""},{"$f":"IF(A104=\"\",\"\",L104*(100/(100 + 100*Pilotage!$D$14)))","v":""}]
[null,null,null,null,null,null,null,null,null,{"$f":"IF(A105=\"\",\"\",SUM(F105:G105)*Pilotage!$D$14*I105)","v":""},{"$f":"IF(A105=\"\",\"\",L105*(100/(100 + 100*Pilotage!$D$14)))","v":""}]
[null,null,null,null,null,null,null,null,null,{"$f":"IF(A106=\"\",\"\",SUM(F106:G106)*Pilotage!$D$14*I106)","v":""},{"$f":"IF(A106=\"\",\"\",L106*(100/(100 + 100*Pilotage!$D$14)))","v":""}]
[null,null,null,null,null,null,null,null,null,{"$f":"IF(A107=\"\",\"\",SUM(F107:G107)*Pilotage!$D$14*I107)","v":""},{"$f":"IF(A107=\"\",\"\",L107*(100/(100 + 100*Pilotage!$D$14)))","v":""}]
[null,null,null,null,null,null,null,null,null,{"$f":"IF(A108=\"\",\"\",SUM(F108:G108)*Pilotage!$D$14*I108)","v":""},{"$f":"IF(A108=\"\",\"\",L108*(100/(100 + 100*Pilotage!$D$14)))","v":""}]
[null,null,null,null,null,null,null,null,null,{"$f":"IF(A109=\"\",\"\",SUM(F109:G109)*Pilotage!$D$14*I109)","v":""},{"$f":"IF(A109=\"\",\"\",L109*(100/(100 + 100*Pilotage!$D$14)))","v":""}]
[null,null,null,null,null,null,null,null,null,{"$f":"IF(A110=\"\",\"\",SUM(F110:G110)*Pilotage!$D$14*I110)","v":""},{"$f":"IF(A110=\"\",\"\",L110*(100/(100 + 100*Pilotage!$D$14)))","v":""}]
[null,null,null,null,null,null,null,null,null,{"$f":"IF(A111=\"\",\"\",SUM(F111:G111)*Pilotage!$D$14*I111)","v":""},{"$f":"IF(A111=\"\",\"\",L111*(100/(100 + 100*Pilotage!$D$14)))","v":""}]
[null,null,null,null,null,null,null,null,null,{"$f":"IF(A112=\"\",\"\",SUM(F112:G112)*Pilotage!$D$14*I112)","v":""},{"$f":"IF(A112=\"\",\"\",L112*(100/(100 + 100*Pilotage!$D$14)))","v":""}]
[null,null,null,null,null,null,null,null,null,{"$f":"IF(A113=\"\",\"\",SUM(F113:G113)*Pilotage!$D$14*I113)","v":""},{"$f":"IF(A113=\"\",\"\",L113*(100/(100 + 100*Pilotage!$D$14)))","v":""}]
[null,null,null,null,null,null,null,null,null,{"$f":"IF(A114=\"\",\"\",SUM(F114:G114)*Pilotage!$D$14*I114)","v":""},{"$f":"IF(A114=\"\",\"\",L114*(100/(100 + 100*Pilotage!$D$14)))","v":""}]
[null,null,null,null,null,null,null,null,null,{"$f":"IF(A115=\"\",\"\",SUM(F115:G115)*Pilotage!$D$14*I115)","v":""},{"$f":"IF(A115=\"\",\"\",L115*(100/(100 + 100*Pilotage!$D$14)))","v":""}]
[null,null,null,null,null,null,null,null,null,{"$f":"IF(A116=\"\",\"\",SUM(F116:G116)*Pilotage!$D$14*I116)","v":""},{"$f":"IF(A116=\"\",\"\",L116*(100/(100 + 100*Pilotage!$D$14)))","v":""}]
[null,null,null,null,null,null,null,null,null,{"$f":"IF(A117=\"\",\"\",SUM(F117:G117)*Pilotage!$D$14*I117)","v":""},{"$f":"IF(A117=\"\",\"\",L117*(100/(100 + 100*Pilotage!$D$14)))","v":""}]
[null,null,null,null,null,null,null,null,null,{"$f":"IF(A118=\"\",\"\",SUM(F118:G118)*Pilotage!$D$14*I118)","v":""},{"$f":"IF(A118=\"\",\"\",L118*(100/(100 + 100*Pilotage!$D$14)))","v":""}]
[null,null,null,null,null,null,null,null,null,{"$f":"IF(A119=\"\",\"\",SUM(F119:G119)*Pilotage!$D$14*I119)","v":""},{"$f":"IF(A119=\"\",\"\",L119*(100/(100 + 100*Pilotage!$D$14)))","v":""}]
[null,null,null,null,null,null,null,null,null,{"$f":"IF(A120=\"\",\"\",SUM(F120:G120)*Pilotage!$D$14*I120)","v":""},{"$f":"IF(A120=\"\",\"\",L120*(100/(100 + 100*Pilotage!$D$14)))","v":""}]
[null,null,null,null,null,null,null,null,null,{"$f":"IF(A121=\"\",\"\",SUM(F121:G121)*Pilotage!$D$14*I121)","v":""},{"$f":"IF(A121=\"\",\"\",L121*(100/(100 + 100*Pilotage!$D$14)))","v":""}]
[null,null,null,null,null,null,null,null,null,{"$f":"IF(A122=\"\",\"\",SUM(F122:G122)*Pilotage!$D$14*I122)","v":""},{"$f":"IF(A122=\"\",\"\",L122*(100/(100 + 100*Pilotage!$D$14)))","v":""}]
[null,null,null,null,null,null,null,null,null,{"$f":"IF(A123=\"\",\"\",SUM(F123:G123)*Pilotage!$D$14*I123)","v":""},{"$f":"IF(A123=\"\",\"\",L123*(100/(100 + 100*Pilotage!$D$14)))","v":""}]
[null,null,null,null,null,null,null,null,null,{"$f":"IF(A124=\"\",\"\",SUM(F124:G124)*Pilotage!$D$14*I124)","v":""},{"$f":"IF(A124=\"\",\"\",L124*(100/(100 + 100*Pilotage!$D$14)))","v":""}]
[null,null,null,null,null,null,null,null,null,{"$f":"IF(A125=\"\",\"\",SUM(F125:G125)*Pilotage!$D$14*I125)","v":""},{"$f":"IF(A125=\"\",\"\",L125*(100/(100 + 100*Pilotage!$D$14)))","v":""}]
[null,null,null,null,null,null,null,null,null,{"$f":"IF(A126=\"\",\"\",SUM(F126:G126)*Pilotage!$D$14*I126)","v":""},{"$f":"IF(A126=\"\",\"\",L126*(100/(100 + 100*Pilotage!$D$14)))","v":""}]
[null,null,null,null,null,null,null,null,null,{"$f":"IF(A127=\"\",\"\",SUM(F127:G127)*Pilotage!$D$14*I127)","v":""},{"$f":"IF(A127=\"\",\"\",L127*(100/(100 + 100*Pilotage!$D$14)))","v":""}]
[null,null,null,null,null,null,null,null,null,{"$f":"IF(A128=\"\",\"\",SUM(F128:G128)*Pilotage!$D$14*I128)","v":""},{"$f":"IF(A128=\"\",\"\",L128*(100/(100 + 100*Pilotage!$D$14)))","v":""}]
[null,null,null,null,null,null,null,null,null,{"$f":"IF(A129=\"\",\"\",SUM(F129:G129)*Pilotage!$D$14*I129)","v":""},{"$f":"IF(A129=\"\",\"\",L129*(100/(100 + 100*Pilotage!$D$14)))","v":""}]
[null,null,null,null,null,null,null,null,null,{"$f":"IF(A130=\"\",\"\",SUM(F130:G130)*Pilotage!$D$14*I130)","v":""},{"$f":"IF(A130=\"\",\"\",L130*(100/(100 + 100*Pilotage!$D$14)))","v":""}]
[null,null,null,null,null,null,null,null,null,{"$f":"IF(A131=\"\",\"\",SUM(F131:G131)*Pilotage!$D$14*I131)","v":""},{"$f":"IF(A131=\"\",\"\",L131*(100/(100 + 100*Pilotage!$D$14)))","v":""}]
[null,null,null,null,null,null,null,null,null,{"$f":"IF(A132=\"\",\"\",SUM(F132:G132)*Pilotage!$D$14*I132)","v":""},{"$f":"IF(A132=\"\",\"\",L132*(100/(100 + 100*Pilotage!$D$14)))","v":""}]
[null,null,null,null,null,null,null,null,null,{"$f":"IF(A133=\"\",\"\",SUM(F133:G133)*Pilotage!$D$14*I133)","v":""},{"$f":"IF(A133=\"\",\"\",L133*(100/(100 + 100*Pilotage!$D$14)))","v":""}]
[null,null,null,null,null,null,null,null,null,{"$f":"IF(A134=\"\",\"\",SUM(F134:G134)*Pilotage!$D$14*I134)","v":""},{"$f":"IF(A134=\"\",\"\",L134*(100/(100 + 100*Pilotage!$D$14)))","v":""}]
[null,null,null,null,null,null,null,null,null,{"$f":"IF(A135=\"\",\"\",SUM(F135:G135)*Pilotage!$D$14*I135)","v":""},{"$f":"IF(A135=\"\",\"\",L135*(100/(100 + 100*Pilotage!$D$14)))","v":""}]
[null,null,null,null,null,null,null,null,null,{"$f":"IF(A136=\"\",\"\",SUM(F136:G136)*Pilotage!$D$14*I136)","v":""},{"$f":"IF(A136=\"\",\"\",L136*(100/(100 + 100*Pilotage!$D$14)))","v":""}]
[null,null,null,null,null,null,null,null,null,{"$f":"IF(A137=\"\",\"\",SUM(F137:G137)*Pilotage!$D$14*I137)","v":""},{"$f":"IF(A137=\"\",\"\",L137*(100/(100 + 100*Pilotage!$D$14)))","v":""}]
[null,null,null,null,null,null,null,null,null,{"$f":"IF(A138=\"\",\"\",SUM(F138:G138)*Pilotage!$D$14*I138)","v":""},{"$f":"IF(A138=\"\",\"\",L138*(100/(100 + 100*Pilotage!$D$14)))","v":""}]
[null,null,null,null,null,null,null,null,null,{"$f":"IF(A139=\"\",\"\",SUM(F139:G139)*Pilotage!$D$14*I139)","v":""},{"$f":"IF(A139=\"\",\"\",L139*(100/(100 + 100*Pilotage!$D$14)))","v":""}]
[null,null,null,null,null,null,null,null,null,{"$f":"IF(A140=\"\",\"\",SUM(F140:G140)*Pilotage!$D$14*I140)","v":""},{"$f":"IF(A140=\"\",\"\",L140*(100/(100 + 100*Pilotage!$D$14)))","v":""}]
[null,null,null,null,null,null,null,null,null,{"$f":"IF(A141=\"\",\"\",SUM(F141:G141)*Pilotage!$D$14*I141)","v":""},{"$f":"IF(A141=\"\",\"\",L141*(100/(100 + 100*Pilotage!$D$14)))","v":""}]
[null,null,null,null,null,null,null,null,null,{"$f":"IF(A142=\"\",\"\",SUM(F142:G142)*Pilotage!$D$14*I142)","v":""},{"$f":"IF(A142=\"\",\"\",L142*(100/(100 + 100*Pilotage!$D$14)))","v":""}]
[null,null,null,null,null,null,null,null,null,{"$f":"IF(A143=\"\",\"\",SUM(F143:G143)*Pilotage!$D$14*I143)","v":""},{"$f":"IF(A143=\"\",\"\",L143*(100/(100 + 100*Pilotage!$D$14)))","v":""}]
[null,null,null,null,null,null,null,null,null,{"$f":"IF(A144=\"\",\"\",SUM(F144:G144)*Pilotage!$D$14*I144)","v":""},{"$f":"IF(A144=\"\",\"\",L144*(100/(100 + 100*Pilotage!$D$14)))","v":""}]
[null,null,null,null,null,null,null,null,null,{"$f":"IF(A145=\"\",\"\",SUM(F145:G145)*Pilotage!$D$14*I145)","v":""},{"$f":"IF(A145=\"\",\"\",L145*(100/(100 + 100*Pilotage!$D$14)))","v":""}]
[null,null,null,null,null,null,null,null,null,{"$f":"IF(A146=\"\",\"\",SUM(F146:G146)*Pilotage!$D$14*I146)","v":""},{"$f":"IF(A146=\"\",\"\",L146*(100/(100 + 100*Pilotage!$D$14)))","v":""}]
[null,null,null,null,null,null,null,null,null,{"$f":"IF(A147=\"\",\"\",SUM(F147:G147)*Pilotage!$D$14*I147)","v":""},{"$f":"IF(A147=\"\",\"\",L147*(100/(100 + 100*Pilotage!$D$14)))","v":""}]
[null,null,null,null,null,null,null,null,null,{"$f":"IF(A148=\"\",\"\",SUM(F148:G148)*Pilotage!$D$14*I148)","v":""},{"$f":"IF(A148=\"\",\"\",L148*(100/(100 + 100*Pilotage!$D$14)))","v":""}]
[null,null,null,null,null,null,null,null,null,{"$f":"IF(A149=\"\",\"\",SUM(F149:G149)*Pilotage!$D$14*I149)","v":""},{"$f":"IF(A149=\"\",\"\",L149*(100/(100 + 100*Pilotage!$D$14)))","v":""}]
[null,null,null,null,null,null,null,null,null,{"$f":"IF(A150=\"\",\"\",SUM(F150:G150)*Pilotage!$D$14*I150)","v":""},{"$f":"IF(A150=\"\",\"\",L150*(100/(100 + 100*Pilotage!$D$14)))","v":""}]
[null,null,null,null,null,null,null,null,null,{"$f":"IF(A151=\"\",\"\",SUM(F151:G151)*Pilotage!$D$14*I151)","v":""},{"$f":"IF(A151=\"\",\"\",L151*(100/(100 + 100*Pilotage!$D$14)))","v":""}]
[null,null,null,null,null,null,null,null,null,{"$f":"IF(A152=\"\",\"\",SUM(F152:G152)*Pilotage!$D$14*I152)","v":""},{"$f":"IF(A152=\"\",\"\",L152*(100/(100 + 100*Pilotage!$D$14)))","v":""}]
[null,null,null,null,null,null,null,null,null,{"$f":"IF(A153=\"\",\"\",SUM(F153:G153)*Pilotage!$D$14*I153)","v":""},{"$f":"IF(A153=\"\",\"\",L153*(100/(100 + 100*Pilotage!$D$14)))","v":""}]
[null,null,null,null,null,null,null,null,null,{"$f":"IF(A154=\"\",\"\",SUM(F154:G154)*Pilotage!$D$14*I154)","v":""},{"$f":"IF(A154=\"\",\"\",L154*(100/(100 + 100*Pilotage!$D$14)))","v":""}]
[null,null,null,null,null,null,null,null,null,{"$f":"IF(A155=\"\",\"\",SUM(F155:G155)*Pilotage!$D$14*I155)","v":""},{"$f":"IF(A155=\"\",\"\",L155*(100/(100 + 100*Pilotage!$D$14)))","v":""}]
[null,null,null,null,null,null,null,null,null,{"$f":"IF(A156=\"\",\"\",SUM(F156:G156)*Pilotage!$D$14*I156)","v":""},{"$f":"IF(A156=\"\",\"\",L156*(100/(100 + 100*Pilotage!$D$14)))","v":""}]
[null,null,null,null,null,null,null,null,null,{"$f":"IF(A157=\"\",\"\",SUM(F157:G157)*Pilotage!$D$14*I157)","v":""},{"$f":"IF(A157=\"\",\"\",L157*(100/(100 + 100*Pilotage!$D$14)))","v":""}]
[null,null,null,null,null,null,null,null,null,{"$f":"IF(A158=\"\",\"\",SUM(F158:G158)*Pilotage!$D$14*I158)","v":""},{"$f":"IF(A158=\"\",\"\",L158*(100/(100 + 100*Pilotage!$D$14)))","v":""}]
[null,null,null,null,null,null,null,null,null,{"$f":"IF(A159=\"\",\"\",SUM(F159:G159)*Pilotage!$D$14*I159)","v":""},{"$f":"IF(A159=\"\",\"\",L159*(100/(100 + 100*Pilotage!$D$14)))","v":""}]
[null,null,null,null,null,null,null,null,null,{"$f":"IF(A160=\"\",\"\",SUM(F160:G160)*Pilotage!$D$14*I160)","v":""},{"$f":"IF(A160=\"\",\"\",L160*(100/(100 + 100*Pilotage!$D$14)))","v":""}]
[null,null,null,null,null,null,null,null,null,{"$f":"IF(A161=\"\",\"\",SUM(F161:G161)*Pilotage!$D$14*I161)","v":""},{"$f":"IF(A161=\"\",\"\",L161*(100/(100 + 100*Pilotage!$D$14)))","v":""}]
[null,null,null,null,null,null,null,null,null,{"$f":"IF(A162=\"\",\"\",SUM(F162:G162)*Pilotage!$D$14*I162)","v":""},{"$f":"IF(A162=\"\",\"\",L162*(100/(100 + 100*Pilotage!$D$14)))","v":""}]
[null,null,null,null,null,null,null,null,null,{"$f":"IF(A163=\"\",\"\",SUM(F163:G163)*Pilotage!$D$14*I163)","v":""},{"$f":"IF(A163=\"\",\"\",L163*(100/(100 + 100*Pilotage!$D$14)))","v":""}]
[null,null,null,null,null,null,null,null,null,{"$f":"IF(A164=\"\",\"\",SUM(F164:G164)*Pilotage!$D$14*I164)","v":""},{"$f":"IF(A164=\"\",\"\",L164*(100/(100 + 100*Pilotage!$D$14)))","v":""}]
[null,null,null,null,null,null,null,null,null,{"$f":"IF(A165=\"\",\"\",SUM(F165:G165)*Pilotage!$D$14*I165)","v":""},{"$f":"IF(A165=\"\",\"\",L165*(100/(100 + 100*Pilotage!$D$14)))","v":""}]
[null,null,null,null,null,null,null,null,null,{"$f":"IF(A166=\"\",\"\",SUM(F166:G166)*Pilotage!$D$14*I166)","v":""},{"$f":"IF(A166=\"\",\"\",L166*(100/(100 + 100*Pilotage!$D$14)))","v":""}]
[null,null,null,null,null,null,null,null,null,{"$f":"IF(A167=\"\",\"\",SUM(F167:G167)*Pilotage!$D$14*I167)","v":""},{"$f":"IF(A167=\"\",\"\",L167*(100/(100 + 100*Pilotage!$D$14)))","v":""}]
[null,null,null,null,null,null,null,null,null,{"$f":"IF(A168=\"\",\"\",SUM(F168:G168)*Pilotage!$D$14*I168)","v":""},{"$f":"IF(A168=\"\",\"\",L168*(100/(100 + 100*Pilotage!$D$14)))","v":""}]
[null,null,null,null,null,null,null,null,null,{"$f":"IF(A169=\"\",\"\",SUM(F169:G169)*Pilotage!$D$14*I169)","v":""},{"$f":"IF(A169=\"\",\"\",L169*(100/(100 + 100*Pilotage!$D$14)))","v":""}]
[null,null,null,null,null,null,null,null,null,{"$f":"IF(A170=\"\",\"\",SUM(F170:G170)*Pilotage!$D$14*I170)","v":""},{"$f":"IF(A170=\"\",\"\",L170*(100/(100 + 100*Pilotage!$D$14)))","v":""}]
[null,null,null,null,null,null,null,null,null,{"$f":"IF(A171=\"\",\"\",SUM(F171:G171)*Pilotage!$D$14*I171)","v":""},{"$f":"IF(A171=\"\",\"\",L171*(100/(100 + 100*Pilotage!$D$14)))","v":""}]
[null,null,null,null,null,null,null,null,null,{"$f":"IF(A172=\"\",\"\",SUM(F172:G172)*Pilotage!$D$14*I172)","v":""},{"$f":"IF(A172=\"\",\"\",L172*(100/(100 + 100*Pilotage!$D$14)))","v":""}]
[null,null,null,null,null,null,null,null,null,{"$f":"IF(A173=\"\",\"\",SUM(F173:G173)*Pilotage!$D$14*I173)","v":""},{"$f":"IF(A173=\"\",\"\",L173*(100/(100 + 100*Pilotage!$D$14)))","v":""}]
[null,null,null,null,null,null,null,null,null,{"$f":"IF(A174=\"\",\"\",SUM(F174:G174)*Pilotage!$D$14*I174)","v":""},{"$f":"IF(A174=\"\",\"\",L174*(100/(100 + 100*Pilotage!$D$14)))","v":""}]
[null,null,null,null,null,null,null,null,null,{"$f":"IF(A175=\"\",\"\",SUM(F175:G175)*Pilotage!$D$14*I175)","v":""},{"$f":"IF(A175=\"\",\"\",L175*(100/(100 + 100*Pilotage!$D$14)))","v":""}]
[null,null,null,null,null,null,null,null,null,{"$f":"IF(A176=\"\",\"\",SUM(F176:G176)*Pilotage!$D$14*I176)","v":""},{"$f":"IF(A176=\"\",\"\",L176*(100/(100 + 100*Pilotage!$D$14)))","v":""}]
[null,null,null,null,null,null,null,null,null,{"$f":"IF(A177=\"\",\"\",SUM(F177:G177)*Pilotage!$D$14*I177)","v":""},{"$f":"IF(A177=\"\",\"\",L177*(100/(100 + 100*Pilotage!$D$14)))","v":""}]
[null,null,null,null,null,null,null,null,null,{"$f":"IF(A178=\"\",\"\",SUM(F178:G178)*Pilotage!$D$14*I178)","v":""},{"$f":"IF(A178=\"\",\"\",L178*(100/(100 + 100*Pilotage!$D$14)))","v":""}]
[null,null,null,null,null,null,null,null,null,{"$f":"IF(A179=\"\",\"\",SUM(F179:G179)*Pilotage!$D$14*I179)","v":""},{"$f":"IF(A179=\"\",\"\",L179*(100/(100 + 100*Pilotage!$D$14)))","v":""}]
[null,null,null,null,null,null,null,null,null,{"$f":"IF(A180=\"\",\"\",SUM(F180:G180)*Pilotage!$D$14*I180)","v":""},{"$f":"IF(A180=\"\",\"\",L180*(100/(100 + 100*Pilotage!$D$14)))","v":""}]
[null,null,null,null,null,null,null,null,null,{"$f":"IF(A181=\"\",\"\",SUM(F181:G181)*Pilotage!$D$14*I181)","v":""},{"$f":"IF(A181=\"\",\"\",L181*(100/(100 + 100*Pilotage!$D$14)))","v":""}]
[null,null,null,null,null,null,null,null,null,{"$f":"IF(A182=\"\",\"\",SUM(F182:G182)*Pilotage!$D$14*I182)","v":""},{"$f":"IF(A182=\"\",\"\",L182*(100/(100 + 100*Pilotage!$D$14)))","v":""}]
[null,null,null,null,null,null,null,null,null,{"$f":"IF(A183=\"\",\"\",SUM(F183:G183)*Pilotage!$D$14*I183)","v":""},{"$f":"IF(A183=\"\",\"\",L183*(100/(100 + 100*Pilotage!$D$14)))","v":""}]
[null,null,null,null,null,null,null,null,null,{"$f":"IF(A184=\"\",\"\",SUM(F184:G184)*Pilotage!$D$14*I184)","v":""},{"$f":"IF(A184=\"\",\"\",L184*(100/(100 + 100*Pilotage!$D$14)))","v":""}]
[null,null,null,null,null,null,null,null,null,{"$f":"IF(A185=\"\",\"\",SUM(F185:G185)*Pilotage!$D$14*I185)","v":""},{"$f":"IF(A185=\"\",\"\",L185*(100/(100 + 100*Pilotage!$D$14)))","v":""}]
[null,null,null,null,null,null,null,null,null,{"$f":"IF(A186=\"\",\"\",SUM(F186:G186)*Pilotage!$D$14*I186)","v":""},{"$f":"IF(A186=\"\",\"\",L186*(100/(100 + 100*Pilotage!$D$14)))","v":""}]
[null,null,null,null,null,null,null,null,null,{"$f":"IF(A187=\"\",\"\",SUM(F187:G187)*Pilotage!$D$14*I187)","v":""},{"$f":"IF(A187=\"\",\"\",L187*(100/(100 + 100*Pilotage!$D$14)))","v":""}]
[null,null,null,null,null,null,null,null,null,{"$f":"IF(A188=\"\",\"\",SUM(F188:G188)*Pilotage!$D$14*I188)","v":""},{"$f":"IF(A188=\"\",\"\",L188*(100/(100 + 100*Pilotage!$D$14)))","v":""}]
[null,null,null,null,null,null,null,null,null,{"$f":"IF(A189=\"\",\"\",SUM(F189:G189)*Pilotage!$D$14*I189)","v":""},{"$f":"IF(A189=\"\",\"\",L189*(100/(100 + 100*Pilotage!$D$14)))","v":""}]
[null,null,null,null,null,null,null,null,null,{"$f":"IF(A190=\"\",\"\",SUM(F190:G190)*Pilotage!$D$14*I190)","v":""},{"$f":"IF(A190=\"\",\"\",L190*(100/(100 + 100*Pilotage!$D$14)))","v":""}]
[null,null,null,null,null,null,null,null,null,{"$f":"IF(A191=\"\",\"\",SUM(F191:G191)*Pilotage!$D$14*I191)","v":""},{"$f":"IF(A191=\"\",\"\",L191*(100/(100 + 100*Pilotage!$D$14)))","v":""}]
[null,null,null,null,null,null,null,null,null,{"$f":"IF(A192=\"\",\"\",SUM(F192:G192)*Pilotage!$D$14*I192)","v":""},{"$f":"IF(A192=\"\",\"\",L192*(100/(100 + 100*Pilotage!$D$14)))","v":""}]
[null,null,null,null,null,null,null,null,null,{"$f":"IF(A193=\"\",\"\",SUM(F193:G193)*Pilotage!$D$14*I193)","v":""},{"$f":"IF(A193=\"\",\"\",L193*(100/(100 + 100*Pilotage!$D$14)))","v":""}]
[null,null,null,null,null,null,null,null,null,{"$f":"IF(A194=\"\",\"\",SUM(F194:G194)*Pilotage!$D$14*I194)","v":""},{"$f":"IF(A194=\"\",\"\",L194*(100/(100 + 100*Pilotage!$D$14)))","v":""}]
[null,null,null,null,null,null,null,null,null,{"$f":"IF(A195=\"\",\"\",SUM(F195:G195)*Pilotage!$D$14*I195)","v":""},{"$f":"IF(A195=\"\",\"\",L195*(100/(100 + 100*Pilotage!$D$14)))","v":""}]
[null,null,null,null,null,null,null,null,null,{"$f":"IF(A196=\"\",\"\",SUM(F196:G196)*Pilotage!$D$14*I196)","v":""},{"$f":"IF(A196=\"\",\"\",L196*(100/(100 + 100*Pilotage!$D$14)))","v":""}]
[null,null,null,null,null,null,null,null,null,{"$f":"IF(A197=\"\",\"\",SUM(F197:G197)*Pilotage!$D$14*I197)","v":""},{"$f":"IF(A197=\"\",\"\",L197*(100/(100 + 100*Pilotage!$D$14)))","v":""}]
[null,null,null,null,null,null,null,null,null,{"$f":"IF(A198=\"\",\"\",SUM(F198:G198)*Pilotage!$D$14*I198)","v":""},{"$f":"IF(A198=\"\",\"\",L198*(100/(100 + 100*Pilotage!$D$14)))","v":""}]
[null,null,null,null,null,null,null,null,null,{"$f":"IF(A199=\"\",\"\",SUM(F199:G199)*Pilotage!$D$14*I199)","v":""},{"$f":"IF(A199=\"\",\"\",L199*(100/(100 + 100*Pilotage!$D$14)))","v":""}]
[null,null,null,null,null,null,null,null,null,{"$f":"IF(A200=\"\",\"\",SUM(F200:G200)*Pilotage!$D$14*I200)","v":""},{"$f":"IF(A200=\"\",\"\",L200*(100/(100 + 100*Pilotage!$D$14)))","v":""}]
[null,null,null,null,null,null,null,null,null,{"$f":"IF(A201=\"\",\"\",SUM(F201:G201)*Pilotage!$D$14*I201)","v":""},{"$f":"IF(A201=\"\",\"\",L201*(100/(100 + 100*Pilotage!$D$14)))","v":""}]
[null,null,null,null,null,null,null,null,null,{"$f":"IF(A202=\"\",\"\",SUM(F202:G202)*Pilotage!$D$14*I202)","v":""},{"$f":"IF(A202=\"\",\"\",L202*(100/(100 + 100*Pilotage!$D$14)))","v":""}]
[null,null,null,null,null,null,null,null,null,{"$f":"IF(A203=\"\",\"\",SUM(F203:G203)*Pilotage!$D$14*I203)","v":""},{"$f":"IF(A203=\"\",\"\",L203*(100/(100 + 100*Pilotage!$D$14)))","v":""}]
[null,null,null,null,null,null,null,null,null,{"$f":"IF(A204=\"\",\"\",SUM(F204:G204)*Pilotage!$D$14*I204)","v":""},{"$f":"IF(A204=\"\",\"\",L204*(100/(100 + 100*Pilotage!$D$14)))","v":""}]
[null,null,null,null,null,null,null,null,null,{"$f":"IF(A205=\"\",\"\",SUM(F205:G205)*Pilotage!$D$14*I205)","v":""},{"$f":"IF(A205=\"\",\"\",L205*(100/(100 + 100*Pilotage!$D$14)))","v":""}]
[null,null,null,null,null,null,null,null,null,{"$f":"IF(A206=\"\",\"\",SUM(F206:G206)*Pilotage!$D$14*I206)","v":""},{"$f":"IF(A206=\"\",\"\",L206*(100/(100 + 100*Pilotage!$D$14)))","v":""}]
[null,null,null,null,null,null,null,null,null,{"$f":"IF(A207=\"\",\"\",SUM(F207:G207)*Pilotage!$D$14*I207)","v":""},{"$f":"IF(A207=\"\",\"\",L207*(100/(100 + 100*Pilotage!$D$14)))","v":""}]
[null,null,null,null,null,null,null,null,null,{"$f":"IF(A208=\"\",\"\",SUM(F208:G208)*Pilotage!$D$14*I208)","v":""},{"$f":"IF(A208=\"\",\"\",L208*(100/(100 + 100*Pilotage!$D$14)))","v":""}]
[null,null,null,null,null,null,null,null,null,{"$f":"IF(A209=\"\",\"\",SUM(F209:G209)*Pilotage!$D$14*I209)","v":""},{"$f":"IF(A209=\"\",\"\",L209*(100/(100 + 100*Pilotage!$D$14)))","v":""}]
[null,null,null,null,null,null,null,null,null,{"$f":"IF(A210=\"\",\"\",SUM(F210:G210)*Pilotage!$D$14*I210)","v":""},{"$f":"IF(A210=\"\",\"\",L210*(100/(100 + 100*Pilotage!$D$14)))","v":""}]
[null,null,null,null,null,null,null,null,null,{"$f":"IF(A211=\"\",\"\",SUM(F211:G211)*Pilotage!$D$14*I211)","v":""},{"$f":"IF(A211=\"\",\"\",L211*(100/(100 + 100*Pilotage!$D$14)))","v":""}]
[null,null,null,null,null,null,null,null,null,{"$f":"IF(A212=\"\",\"\",SUM(F212:G212)*Pilotage!$D$14*I212)","v":""},{"$f":"IF(A212=\"\",\"\",L212*(100/(100 + 100*Pilotage!$D$14)))","v":""}]
[null,null,null,null,null,null,null,null,null,{"$f":"IF(A213=\"\",\"\",SUM(F213:G213)*Pilotage!$D$14*I213)","v":""},{"$f":"IF(A213=\"\",\"\",L213*(100/(100 + 100*Pilotage!$D$14)))","v":""}]
[null,null,null,null,null,null,null,null,null,{"$f":"IF(A214=\"\",\"\",SUM(F214:G214)*Pilotage!$D$14*I214)","v":""},{"$f":"IF(A214=\"\",\"\",L214*(100/(100 + 100*Pilotage!$D$14)))","v":""}]
[null,null,null,null,null,null,null,null,null,{"$f":"IF(A215=\"\",\"\",SUM(F215:G215)*Pilotage!$D$14*I215)","v":""},{"$f":"IF(A215=\"\",\"\",L215*(100/(100 + 100*Pilotage!$D$14)))","v":""}]
[null,null,null,null,null,null,null,null,null,{"$f":"IF(A216=\"\",\"\",SUM(F216:G216)*Pilotage!$D$14*I216)","v":""},{"$f":"IF(A216=\"\",\"\",L216*(100/(100 + 100*Pilotage!$D$14)))","v":""}]
[null,null,null,null,null,null,null,null,null,{"$f":"IF(A217=\"\",\"\",SUM(F217:G217)*Pilotage!$D$14*I217)","v":""},{"$f":"IF(A217=\"\",\"\",L217*(100/(100 + 100*Pilotage!$D$14)))","v":""}]
[null,null,null,null,null,null,null,null,null,{"$f":"IF(A218=\"\",\"\",SUM(F218:G218)*Pilotage!$D$14*I218)","v":""},{"$f":"IF(A218=\"\",\"\",L218*(100/(100 + 100*Pilotage!$D$14)))","v":""}]
[null,null,null,null,null,null,null,null,null,{"$f":"IF(A219=\"\",\"\",SUM(F219:G219)*Pilotage!$D$14*I219)","v":""},{"$f":"IF(A219=\"\",\"\",L219*(100/(100 + 100*Pilotage!$D$14)))","v":""}]
[null,null,null,null,null,null,null,null,null,{"$f":"IF(A220=\"\",\"\",SUM(F220:G220)*Pilotage!$D$14*I220)","v":""},{"$f":"IF(A220=\"\",\"\",L220*(100/(100 + 100*Pilotage!$D$14)))","v":""}]
[null,null,null,null,null,null,null,null,null,{"$f":"IF(A221=\"\",\"\",SUM(F221:G221)*Pilotage!$D$14*I221)","v":""},{"$f":"IF(A221=\"\",\"\",L221*(100/(100 + 100*Pilotage!$D$14)))","v":""}]
[null,null,null,null,null,null,null,null,null,{"$f":"IF(A222=\"\",\"\",SUM(F222:G222)*Pilotage!$D$14*I222)","v":""},{"$f":"IF(A222=\"\",\"\",L222*(100/(100 + 100*Pilotage!$D$14)))","v":""}]
[null,null,null,null,null,null,null,null,null,{"$f":"IF(A223=\"\",\"\",SUM(F223:G223)*Pilotage!$D$14*I223)","v":""},{"$f":"IF(A223=\"\",\"\",L223*(100/(100 + 100*Pilotage!$D$14)))","v":""}]
[null,null,null,null,null,null,null,null,null,{"$f":"IF(A224=\"\",\"\",SUM(F224:G224)*Pilotage!$D$14*I224)","v":""},{"$f":"IF(A224=\"\",\"\",L224*(100/(100 + 100*Pilotage!$D$14)))","v":""}]
[null,null,null,null,null,null,null,null,null,{"$f":"IF(A225=\"\",\"\",SUM(F225:G225)*Pilotage!$D$14*I225)","v":""},{"$f":"IF(A225=\"\",\"\",L225*(100/(100 + 100*Pilotage!$D$14)))","v":""}]
[null,null,null,null,null,null,null,null,null,{"$f":"IF(A226=\"\",\"\",SUM(F226:G226)*Pilotage!$D$14*I226)","v":""},{"$f":"IF(A226=\"\",\"\",L226*(100/(100 + 100*Pilotage!$D$14)))","v":""}]
[null,null,null,null,null,null,null,null,null,{"$f":"IF(A227=\"\",\"\",SUM(F227:G227)*Pilotage!$D$14*I227)","v":""},{"$f":"IF(A227=\"\",\"\",L227*(100/(100 + 100*Pilotage!$D$14)))","v":""}]
[null,null,null,null,null,null,null,null,null,{"$f":"IF(A228=\"\",\"\",SUM(F228:G228)*Pilotage!$D$14*I228)","v":""},{"$f":"IF(A228=\"\",\"\",L228*(100/(100 + 100*Pilotage!$D$14)))","v":""}]
[null,null,null,null,null,null,null,null,null,{"$f":"IF(A229=\"\",\"\",SUM(F229:G229)*Pilotage!$D$14*I229)","v":""},{"$f":"IF(A229=\"\",\"\",L229*(100/(100 + 100*Pilotage!$D$14)))","v":""}]
[null,null,null,null,null,null,null,null,null,{"$f":"IF(A230=\"\",\"\",SUM(F230:G230)*Pilotage!$D$14*I230)","v":""},{"$f":"IF(A230=\"\",\"\",L230*(100/(100 + 100*Pilotage!$D$14)))","v":""}]
[null,null,null,null,null,null,null,null,null,{"$f":"IF(A231=\"\",\"\",SUM(F231:G231)*Pilotage!$D$14*I231)","v":""},{"$f":"IF(A231=\"\",\"\",L231*(100/(100 + 100*Pilotage!$D$14)))","v":""}]
[null,null,null,null,null,null,null,null,null,{"$f":"IF(A232=\"\",\"\",SUM(F232:G232)*Pilotage!$D$14*I232)","v":""},{"$f":"IF(A232=\"\",\"\",L232*(100/(100 + 100*Pilotage!$D$14)))","v":""}]
[null,null,null,null,null,null,null,null,null,{"$f":"IF(A233=\"\",\"\",SUM(F233:G233)*Pilotage!$D$14*I233)","v":""},{"$f":"IF(A233=\"\",\"\",L233*(100/(100 + 100*Pilotage!$D$14)))","v":""}]
[null,null,null,null,null,null,null,null,null,{"$f":"IF(A234=\"\",\"\",SUM(F234:G234)*Pilotage!$D$14*I234)","v":""},{"$f":"IF(A234=\"\",\"\",L234*(100/(100 + 100*Pilotage!$D$14)))","v":""}]
[null,null,null,null,null,null,null,null,null,{"$f":"IF(A235=\"\",\"\",SUM(F235:G235)*Pilotage!$D$14*I235)","v":""},{"$f":"IF(A235=\"\",\"\",L235*(100/(100 + 100*Pilotage!$D$14)))","v":""}]
[null,null,null,null,null,null,null,null,null,{"$f":"IF(A236=\"\",\"\",SUM(F236:G236)*Pilotage!$D$14*I236)","v":""},{"$f":"IF(A236=\"\",\"\",L236*(100/(100 + 100*Pilotage!$D$14)))","v":""}]
[null,null,null,null,null,null,null,null,null,{"$f":"IF(A237=\"\",\"\",SUM(F237:G237)*Pilotage!$D$14*I237)","v":""},{"$f":"IF(A237=\"\",\"\",L237*(100/(100 + 100*Pilotage!$D$14)))","v":""}]
[null,null,null,null,null,null,null,null,null,{"$f":"IF(A238=\"\",\"\",SUM(F238:G238)*Pilotage!$D$14*I238)","v":""},{"$f":"IF(A238=\"\",\"\",L238*(100/(100 + 100*Pilotage!$D$14)))","v":""}]
[null,null,null,null,null,null,null,null,null,{"$f":"IF(A239=\"\",\"\",SUM(F239:G239)*Pilotage!$D$14*I239)","v":""},{"$f":"IF(A239=\"\",\"\",L239*(100/(100 + 100*Pilotage!$D$14)))","v":""}]
[null,null,null,null,null,null,null,null,null,{"$f":"IF(A240=\"\",\"\",SUM(F240:G240)*Pilotage!$D$14*I240)","v":""},{"$f":"IF(A240=\"\",\"\",L240*(100/(100 + 100*Pilotage!$D$14)))","v":""}]
[null,null,null,null,null,null,null,null,null,{"$f":"IF(A241=\"\",\"\",SUM(F241:G241)*Pilotage!$D$14*I241)","v":""},{"$f":"IF(A241=\"\",\"\",L241*(100/(100 + 100*Pilotage!$D$14)))","v":""}]
[null,null,null,null,null,null,null,null,null,{"$f":"IF(A242=\"\",\"\",SUM(F242:G242)*Pilotage!$D$14*I242)","v":""},{"$f":"IF(A242=\"\",\"\",L242*(100/(100 + 100*Pilotage!$D$14)))","v":""}]
[null,null,null,null,null,null,null,null,null,{"$f":"IF(A243=\"\",\"\",SUM(F243:G243)*Pilotage!$D$14*I243)","v":""},{"$f":"IF(A243=\"\",\"\",L243*(100/(100 + 100*Pilotage!$D$14)))","v":""}]
[null,null,null,null,null,null,null,null,null,{"$f":"IF(A244=\"\",\"\",SUM(F244:G244)*Pilotage!$D$14*I244)","v":""},{"$f":"IF(A244=\"\",\"\",L244*(100/(100 + 100*Pilotage!$D$14)))","v":""}]
[null,null,null,null,null,null,null,null,null,{"$f":"IF(A245=\"\",\"\",SUM(F245:G245)*Pilotage!$D$14*I245)","v":""},{"$f":"IF(A245=\"\",\"\",L245*(100/(100 + 100*Pilotage!$D$14)))","v":""}]
[null,null,null,null,null,null,null,null,null,{"$f":"IF(A246=\"\",\"\",SUM(F246:G246)*Pilotage!$D$14*I246)","v":""},{"$f":"IF(A246=\"\",\"\",L246*(100/(100 + 100*Pilotage!$D$14)))","v":""}]
[null,null,null,null,null,null,null,null,null,{"$f":"IF(A247=\"\",\"\",SUM(F247:G247)*Pilotage!$D$14*I247)","v":""},{"$f":"IF(A247=\"\",\"\",L247*(100/(100 + 100*Pilotage!$D$14)))","v":""}]
[null,null,null,null,null,null,null,null,null,{"$f":"IF(A248=\"\",\"\",SUM(F248:G248)*Pilotage!$D$14*I248)","v":""},{"$f":"IF(A248=\"\",\"\",L248*(100/(100 + 100*Pilotage!$D$14)))","v":""}]
[null,null,null,null,null,null,null,null,null,{"$f":"IF(A249=\"\",\"\",SUM(F249:G249)*Pilotage!$D$14*I249)","v":""},{"$f":"IF(A249=\"\",\"\",L249*(100/(100 + 100*Pilotage!$D$14)))","v":""}]
[null,null,null,null,null,null,null,null,null,{"$f":"IF(A250=\"\",\"\",SUM(F250:G250)*Pilotage!$D$14*I250)","v":""},{"$f":"IF(A250=\"\",\"\",L250*(100/(100 + 100*Pilotage!$D$14)))","v":""}]
[null,null,null,null,null,null,null,null,null,{"$f":"IF(A251=\"\",\"\",SUM(F251:G251)*Pilotage!$D$14*I251)","v":""},{"$f":"IF(A251=\"\",\"\",L251*(100/(100 + 100*Pilotage!$D$14)))","v":""}]
[null,null,null,null,null,null,null,null,null,{"$f":"IF(A252=\"\",\"\",SUM(F252:G252)*Pilotage!$D$14*I252)","v":""},{"$f":"IF(A252=\"\",\"\",L252*(100/(100 + 100*Pilotage!$D$14)))","v":""}]
[null,null,null,null,null,null,null,null,null,{"$f":"IF(A253=\"\",\"\",SUM(F253:G253)*Pilotage!$D$14*I253)","v":""},{"$f":"IF(A253=\"\",\"\",L253*(100/(100 + 100*Pilotage!$D$14)))","v":""}]
[null,null,null,null,null,null,null,null,null,{"$f":"IF(A254=\"\",\"\",SUM(F254:G254)*Pilotage!$D$14*I254)","v":""},{"$f":"IF(A254=\"\",\"\",L254*(100/(100 + 100*Pilotage!$D$14)))","v":""}]
[null,null,null,null,null,null,null,null,null,{"$f":"IF(A255=\"\",\"\",SUM(F255:G255)*Pilotage!$D$14*I255)","v":""},{"$f":"IF(A255=\"\",\"\",L255*(100/(100 + 100*Pilotage!$D$14)))","v":""}]
[null,null,null,null,null,null,null,null,null,{"$f":"IF(A256=\"\",\"\",SUM(F256:G256)*Pilotage!$D$14*I256)","v":""},{"$f":"IF(A256=\"\",\"\",L256*(100/(100 + 100*Pilotage!$D$14)))","v":""}]
[null,null,null,null,null,null,null,null,null,{"$f":"IF(A257=\"\",\"\",SUM(F257:G257)*Pilotage!$D$14*I257)","v":""}]
[null,null,null,null,null,null,null,null,null,{"$f":"IF(A258=\"\",\"\",SUM(F258:G258)*Pilotage!$D$14*I258)","v":""}]
[null,null,null,null,null,null,null,null,null,{"$f":"IF(A259=\"\",\"\",SUM(F259:G259)*Pilotage!$D$14*I259)","v":""}]
[null,null,null,null,null,null,null,null,null,{"$f":"IF(A260=\"\",\"\",SUM(F260:G260)*Pilotage!$D$14*I260)","v":""}]
[null,null,null,null,null,null,null,null,null,{"$f":"IF(A261=\"\",\"\",SUM(F261:G261)*Pilotage!$D$14*I261)","v":""}]
[null,null,null,null,null,null,null,null,null,{"$f":"IF(A262=\"\",\"\",SUM(F262:G262)*Pilotage!$D$14*I262)","v":""}]
[null,null,null,null,null,null,null,null,null,{"$f":"IF(A263=\"\",\"\",SUM(F263:G263)*Pilotage!$D$14*I263)","v":""}]
[null,null,null,null,null,null,null,null,null,{"$f":"IF(A264=\"\",\"\",SUM(F264:G264)*Pilotage!$D$14*I264)","v":""}]
[null,null,null,null,null,null,null,null,null,{"$f":"IF(A265=\"\",\"\",SUM(F265:G265)*Pilotage!$D$14*I265)","v":""}]
[null,null,null,null,null,null,null,null,null,{"$f":"IF(A266=\"\",\"\",SUM(F266:G266)*Pilotage!$D$14*I266)","v":""}]
[null,null,null,null,null,null,null,null,null,{"$f":"IF(A267=\"\",\"\",SUM(F267:G267)*Pilotage!$D$14*I267)","v":""}]
[null,null,null,null,null,null,null,null,null,{"$f":"IF(A268=\"\",\"\",SUM(F268:G268)*Pilotage!$D$14*I268)","v":""}]
[null,null,null,null,null,null,null,null,null,{"$f":"IF(A269=\"\",\"\",SUM(F269:G269)*Pilotage!$D$14*I269)","v":""}]
[null,null,null,null,null,null,null,null,null,{"$f":"IF(A270=\"\",\"\",SUM(F270:G270)*Pilotage!$D$14*I270)","v":""}]
[null,null,null,null,null,null,null,null,null,{"$f":"IF(A271=\"\",\"\",SUM(F271:G271)*Pilotage!$D$14*I271)","v":""}]

{"sheet":"Loyers","index":37,"n_rows":140,"n_cols":45,"rows_kept":140,"cut":false,"hidden":false,"merged":[]}
["Qtt","Catégorie",null,"Designation","Commentaires","Prix unitaire €","Prix Unit. From $","Prix en $","Exprimé HT","TVA","Prix HT","Prix TTC","Sous totaux TTC","Pays d'origine",null,null,"*","FL","FC","B","CW",null,"*","FL","FC","B","CW",null,null,null,"Durée","Taux","Année 0","Année 1","Année 2","Année 3","Année 4","Année 5","Année 6","Année 7","Année 8","Année 9","Année 10","Année 11","Année 12"]
[null,null,null,null,null,null,null,null,null,null,null,null,null,null,null,null,null,null,null,null,null,null,null,null,null,null,null,null,null,null,null,null,0,1,2,3,4,5,6,7,8,9,10,11,12]
[null,null,null,null,null,null,null,null,null,null,"Total HT","Total TTC",null,null,null,null,null,null,null,null,null,null,{"$f":"W4/$K4","v":{"$error":"#DIV/0!"}},{"$f":"X4/$K4","v":{"$error":"#DIV/0!"}},{"$f":"Y4/$K4","v":{"$error":"#DIV/0!"}},{"$f":"Z4/$K4","v":{"$error":"#DIV/0!"}},{"$f":"AA4/$K4","v":{"$error":"#DIV/0!"}},{"$f":"SUM(W3:AA3)","v":{"$error":"#DIV/0!"}},null,null,null,null,"Total DAT ","Total DAT ","Total DAT ","Total DAT ","Total DAT ","Total DAT ","Total DAT ","Total DAT ","Total DAT ","Total DAT ","Total DAT ","Total DAT ","Total DAT "]
[null,null,null,null,null,null,null,null,null,null,{"$f":"L4*(100/(100 + 100*Pilotage!D14))","v":0},{"$f":"SUM(M:M)","v":0},null,null,null,null,null,null,null,null,null,null,{"$f":"SUM(W6:W122)","v":0},{"$f":"SUM(X6:X122)","v":0},{"$f":"SUM(Y6:Y122)","v":0},{"$f":"SUM(Z6:Z122)","v":0},{"$f":"SUM(AA6:AA122)","v":0},{"$f":"SUM(W4:AA4)","v":0},null,null,null,null,{"$f":"SUM(AG8:AG122)","v":0},0,0,0,0,0,0,0,0,0,0,0,0]
[null,null,null,null,null,null,null,null,null,null,null,{"$f":"IF(L4<>SUM($L$6:$L$971),\"ERREUR Page Administration\",\"\")","v":""},null,null,null,null,null,null,null,null,null,null,null,null,null,null,null,{"$f":"K4-AB4","v":0}]
[null,"Aléas",null,{"$f":"Pilotage!$D$17","v":0.02},null,null,{"$f":"IF(H6=\"\",\"\",H6*$G$4)","v":""},null,null,{"$f":"IF(A6=\"\",\"\",SUM(F6:G6)*Pilotage!$D$14*I6)","v":""},{"$f":"IF(A6=\"\",\"\",#REF!*(100/(100 + 100*Pilotage!$D$14)))","v":""},{"$f":"D6*SUM(K$8:K$724)*(1+Pilotage!$D$14)","v":0},{"$f":"L6","v":0},null,null,null,null,null,null,null,null,null,{"$f":"L6*Pilotage!D15","v":0},0,0,0,0]
[]
[null,"Locaux",null,null,null,null,{"$f":"IF(H8=\"\",\"\",H8*Pilotage!$D$16)","v":""},null,null,{"$f":"IF(A8=\"\",\"\",SUM(F8:G8)*Pilotage!$D$14*I8)","v":""},{"$f":"IF(A8=\"\",\"\",L8*(100/(100 + 100*Pilotage!$D$14)))","v":""},{"$f":"IF(A8=\"\",\"\",(SUM(F8:G8)+J8)*A8)","v":""},null,null,null,null,null,null,null,null,null,null,{"$f":"IF($A8<>\"\",Q8*$K8,\"\")","v":""},{"$f":"IF($A8<>\"\",R8*$K8,\"\")","v":""},"","","",null,null,null,{"$f":"IF(A8<>\"\",IF($AD8<>\"\",VLOOKUP($AD8,Immobilisations[],7),0),\"\")","v":""},{"$f":"IF(A8<>\"\",IF($AD8<>\"\",VLOOKUP($AD8,Immobilisations[],8),\"\"),\"\")","v":""},{"$f":"IF(AND($A8<>\"\",$AF8<>\"\"),IF(AG$2=0,0,IF(ROUNDDOWN(AG$2/($AE8+1),0)=0,$K8*$AE8/100,0)),\"\")","v":""},"",{"$f":"IF(AND($A8<>\"\",$AF8<>\"\"),IF(AI$2=0,0,IF(ROUNDDOWN(AI$2/($AE8+1),0)=0,$K8*$AE8/100,0)),\"\")","v":""},"","","","","","","","","",""]
[null,null,"Locaux",null,null,null,{"$f":"IF(H9=\"\",\"\",H9*Pilotage!$D$16)","v":""},null,null,{"$f":"IF(A9=\"\",\"\",SUM(F9:G9)*Pilotage!$D$14*I9)","v":""},{"$f":"IF(A9=\"\",\"\",L9*(100/(100 + 100*Pilotage!$D$14)))","v":""},{"$f":"IF(A9=\"\",\"\",(SUM(F9:G9)+J9)*A9)","v":""},null,null,null,null,null,null,null,null,null,null,{"$f":"IF($A9<>\"\",Q9*$K9,\"\")","v":""},"","","","",null,null,null,{"$f":"IF(A9<>\"\",IF($AD9<>\"\",VLOOKUP($AD9,Immobilisations[],7),0),\"\")","v":""},{"$f":"IF(A9<>\"\",IF($AD9<>\"\",VLOOKUP($AD9,Immobilisations[],8),\"\"),\"\")","v":""},"","","","","","","","","","","","",""]
[12,null,null,"Loyer locaux",null,{"$f":"Pilotage!D5*Pilotage!D6/12","v":0},{"$f":"IF(H10=\"\",\"\",H10*Pilotage!$D$16)","v":""},null,1,{"$f":"IF(A10=\"\",\"\",SUM(F10:G10)*Pilotage!$D$14*I10)","v":0},{"$f":"IF(A10=\"\",\"\",L10*(100/(100 + 100*Pilotage!$D$14)))","v":0},{"$f":"IF(A10=\"\",\"\",(SUM(F10:G10)+J10)*A10)","v":0},null,null,null,null,null,1,0,0,0,null,{"$f":"IF($A10<>\"\",Q10*$K10,\"\")","v":0},0,0,0,0,null,null,null,{"$f":"IF(A10<>\"\",IF($AD10<>\"\",VLOOKUP($AD10,Immobilisations[],7),0),\"\")","v":0},{"$f":"IF(A10<>\"\",IF($AD10<>\"\",VLOOKUP($AD10,Immobilisations[],8),\"\"),\"\")","v":""},"","","","","","","","","","","","",""]
[null,null,null,null,null,null,{"$f":"IF(H11=\"\",\"\",H11*Pilotage!$D$16)","v":""},null,null,{"$f":"IF(A11=\"\",\"\",SUM(F11:G11)*Pilotage!$D$14*I11)","v":""},{"$f":"IF(A11=\"\",\"\",L11*(100/(100 + 100*Pilotage!$D$14)))","v":""},{"$f":"IF(A11=\"\",\"\",(SUM(F11:G11)+J11)*A11)","v":""},{"$f":"SUM(L10)","v":0},null,null,null,null,null,null,null,null,null,{"$f":"IF($A11<>\"\",#REF!*$K11,\"\")","v":""},{"$f":"IF($A11<>\"\",#REF!*$K11,\"\")","v":""},{"$f":"IF($A11<>\"\",S11*$K11,\"\")","v":""},"","",null,null,null,{"$f":"IF(A11<>\"\",IF($AD11<>\"\",VLOOKUP($AD11,Immobilisations[],7),0),\"\")","v":""},{"$f":"IF(A11<>\"\",IF($AD11<>\"\",VLOOKUP($AD11,Immobilisations[],8),\"\"),\"\")","v":""},{"$f":"IF(AND($A11<>\"\",$AF11<>\"\"),IF(AG$2=0,0,IF(ROUNDDOWN(AG$2/($AE11+1),0)=0,$K11*$AE11/100,0)),\"\")","v":""},"","","","","","","","","","","",""]
[null,null,null,null,null,null,null,null,null,null,null,null,null,null,null,null,null,null,null,null,null,null,{"$f":"IF($A12<>\"\",#REF!*$K12,\"\")","v":""},{"$f":"IF($A12<>\"\",#REF!*$K12,\"\")","v":""},"","","",null,null,null,{"$f":"IF(A12<>\"\",IF($AD12<>\"\",VLOOKUP($AD12,Immobilisations[],7),0),\"\")","v":""},{"$f":"IF(A12<>\"\",IF($AD12<>\"\",VLOOKUP($AD12,Immobilisations[],8),\"\"),\"\")","v":""},"","","","","","","","","","","","",""]
[null,null,null,null,null,null,{"$f":"IF(H13=\"\",\"\",H13*Pilotage!$D$16)","v":""},null,null,{"$f":"IF(A13=\"\",\"\",SUM(F13:G13)*Pilotage!$D$14*I13)","v":""},{"$f":"IF(A13=\"\",\"\",L13*(100/(100 + 100*Pilotage!$D$14)))","v":""},null,null,null,null,null,null,null,null,null,null,null,"","","","","",null,null,null,{"$f":"IF(A13<>\"\",IF($AD13<>\"\",VLOOKUP($AD13,Immobilisations[],7),0),\"\")","v":""},{"$f":"IF(A13<>\"\",IF($AD13<>\"\",VLOOKUP($AD13,Immobilisations[],8),\"\"),\"\")","v":""},"","","","","","","","","","","","",""]
[null,null,null,null,null,null,{"$f":"IF(H14=\"\",\"\",H14*$G$4)","v":""},null,null,{"$f":"IF(A14=\"\",\"\",SUM(F14:G14)*Pilotage!$E$13*I14)","v":""},{"$f":"IF(A14=\"\",\"\",L14*(100/(100 + 100*Pilotage!$E$13)))","v":""},{"$f":"IF(A14=\"\",\"\",(SUM(F14:G14)+J14)*A14)","v":""},null,null,null,null,null,null,null,null,null,null,"","","","","",null,null,null,{"$f":"IF(A14<>\"\",IF($AD14<>\"\",VLOOKUP($AD14,Immobilisations[],7),0),\"\")","v":""},{"$f":"IF(A14<>\"\",IF($AD14<>\"\",VLOOKUP($AD14,Immobilisations[],8),\"\"),\"\")","v":""},"","","","","","","","","","","","",""]
[null,null,null,null,null,null,"",null,null,{"$f":"IF(A15=\"\",\"\",SUM(F15:G15)*Pilotage!$E$13*I15)","v":""},{"$f":"IF(A15=\"\",\"\",L15*(100/(100 + 100*Pilotage!$E$13)))","v":""},{"$f":"IF(A15=\"\",\"\",(SUM(F15:G15)+J15)*A15)","v":""},null,null,null,null,null,null,null,null,null,null,"","","","","",null,null,null,{"$f":"IF(A15<>\"\",IF($AD15<>\"\",VLOOKUP($AD15,Immobilisations[],7),0),\"\")","v":""},{"$f":"IF(A15<>\"\",IF($AD15<>\"\",VLOOKUP($AD15,Immobilisations[],8),\"\"),\"\")","v":""},"","","","","","","","","","","","",""]
[null,null,null,null,null,null,"",null,null,{"$f":"IF(A16=\"\",\"\",SUM(F16:G16)*Pilotage!$E$13*I16)","v":""},{"$f":"IF(A16=\"\",\"\",L16*(100/(100 + 100*Pilotage!$E$13)))","v":""},{"$f":"IF(A16=\"\",\"\",(SUM(F16:G16)+J16)*A16)","v":""},null,null,null,null,null,null,null,null,null,null,"","","","","",null,null,null,{"$f":"IF(A16<>\"\",IF($AD16<>\"\",VLOOKUP($AD16,Immobilisations[],7),0),\"\")","v":""},{"$f":"IF(A16<>\"\",IF($AD16<>\"\",VLOOKUP($AD16,Immobilisations[],8),\"\"),\"\")","v":""},"","","","","","","","","","","","",""]
[null,null,null,null,null,null,"",null,null,{"$f":"IF(A17=\"\",\"\",SUM(F17:G17)*Pilotage!$E$13*I17)","v":""},{"$f":"IF(A17=\"\",\"\",L17*(100/(100 + 100*Pilotage!$E$13)))","v":""},{"$f":"IF(A17=\"\",\"\",(SUM(F17:G17)+J17)*A17)","v":""},null,null,null,null,null,null,null,null,null,null,"","","","","",null,null,null,{"$f":"IF(A17<>\"\",IF($AD17<>\"\",VLOOKUP($AD17,Immobilisations[],7),0),\"\")","v":""},{"$f":"IF(A17<>\"\",IF($AD17<>\"\",VLOOKUP($AD17,Immobilisations[],8),\"\"),\"\")","v":""},"","","","","","","","","","","","",""]
[null,null,null,null,null,null,"",null,null,{"$f":"IF(A18=\"\",\"\",SUM(F18:G18)*Pilotage!$E$13*I18)","v":""},null,{"$f":"IF(A18=\"\",\"\",(SUM(F18:G18)+J18)*A18)","v":""},null,null,null,null,null,null,null,null,null,null,"","","","","",null,null,null,{"$f":"IF(A18<>\"\",IF($AD18<>\"\",VLOOKUP($AD18,Immobilisations[],7),0),\"\")","v":""},{"$f":"IF(A18<>\"\",IF($AD18<>\"\",VLOOKUP($AD18,Immobilisations[],8),\"\"),\"\")","v":""},"","","","","","","","","","","","",""]
[null,null,null,null,null,null,"",null,null,{"$f":"IF(A19=\"\",\"\",SUM(F19:G19)*Pilotage!$E$13*I19)","v":""},null,"",null,null,null,null,null,null,null,null,null,null,"","","","","",null,null,null,{"$f":"IF(A19<>\"\",IF($AD19<>\"\",VLOOKUP($AD19,Immobilisations[],7),0),\"\")","v":""},{"$f":"IF(A19<>\"\",IF($AD19<>\"\",VLOOKUP($AD19,Immobilisations[],8),\"\"),\"\")","v":""},"","","","","","","","","","","","",""]
[null,null,null,null,null,null,"",null,null,{"$f":"IF(A20=\"\",\"\",SUM(F20:G20)*Pilotage!$E$13*I20)","v":""},null,"",null,null,null,null,null,null,null,null,null,null,"","","","","",null,null,null,{"$f":"IF(A20<>\"\",IF($AD20<>\"\",VLOOKUP($AD20,Immobilisations[],7),0),\"\")","v":""},{"$f":"IF(A20<>\"\",IF($AD20<>\"\",VLOOKUP($AD20,Immobilisations[],8),\"\"),\"\")","v":""},"","","","","","","","","","","","",""]
[null,null,null,null,null,null,"",null,null,{"$f":"IF(A21=\"\",\"\",SUM(F21:G21)*Pilotage!$E$13*I21)","v":""},null,"",null,null,null,null,null,null,null,null,null,null,"","","","","",null,null,null,{"$f":"IF(A21<>\"\",IF($AD21<>\"\",VLOOKUP($AD21,Immobilisations[],7),0),\"\")","v":""},{"$f":"IF(A21<>\"\",IF($AD21<>\"\",VLOOKUP($AD21,Immobilisations[],8),\"\"),\"\")","v":""},"","","","","","","","","","","","",""]
[null,null,null,null,null,null,"",null,null,{"$f":"IF(A22=\"\",\"\",SUM(F22:G22)*Pilotage!$E$13*I22)","v":""},null,"",null,null,null,null,null,null,null,null,null,null,"","","","","",null,null,null,{"$f":"IF(A22<>\"\",IF($AD22<>\"\",VLOOKUP($AD22,Immobilisations[],7),0),\"\")","v":""},{"$f":"IF(A22<>\"\",IF($AD22<>\"\",VLOOKUP($AD22,Immobilisations[],8),\"\"),\"\")","v":""},"","","","","","","","","","","","",""]
[null,null,null,null,null,null,"",null,null,{"$f":"IF(A23=\"\",\"\",SUM(F23:G23)*Pilotage!$E$13*I23)","v":""},null,"",null,null,null,null,null,null,null,null,null,null,"","","","","",null,null,null,{"$f":"IF(A23<>\"\",IF($AD23<>\"\",VLOOKUP($AD23,Immobilisations[],7),0),\"\")","v":""},{"$f":"IF(A23<>\"\",IF($AD23<>\"\",VLOOKUP($AD23,Immobilisations[],8),\"\"),\"\")","v":""},"","","","","","","","","","","","",""]
[null,null,null,null,null,null,"",null,null,{"$f":"IF(A24=\"\",\"\",SUM(F24:G24)*Pilotage!$E$13*I24)","v":""},null,"",null,null,null,null,null,null,null,null,null,null,"","","","","",null,null,null,{"$f":"IF(A24<>\"\",IF($AD24<>\"\",VLOOKUP($AD24,Immobilisations[],7),0),\"\")","v":""},{"$f":"IF(A24<>\"\",IF($AD24<>\"\",VLOOKUP($AD24,Immobilisations[],8),\"\"),\"\")","v":""},"","","","","","","","","","","","",""]
[null,null,null,null,null,null,"",null,null,{"$f":"IF(A25=\"\",\"\",SUM(F25:G25)*Pilotage!$E$13*I25)","v":""},null,"",null,null,null,null,null,null,null,null,null,null,"","","","","",null,null,null,{"$f":"IF(A25<>\"\",IF($AD25<>\"\",VLOOKUP($AD25,Immobilisations[],7),0),\"\")","v":""},{"$f":"IF(A25<>\"\",IF($AD25<>\"\",VLOOKUP($AD25,Immobilisations[],8),\"\"),\"\")","v":""},"","","","","","","","","","","","",""]
[null,null,null,null,null,null,"",null,null,{"$f":"IF(A26=\"\",\"\",SUM(F26:G26)*Pilotage!$E$13*I26)","v":""},null,"",null,null,null,null,null,null,null,null,null,null,"","","","","",null,null,null,{"$f":"IF(A26<>\"\",IF($AD26<>\"\",VLOOKUP($AD26,Immobilisations[],7),0),\"\")","v":""},{"$f":"IF(A26<>\"\",IF($AD26<>\"\",VLOOKUP($AD26,Immobilisations[],8),\"\"),\"\")","v":""},"","","","","","","","","","","","",""]
[null,null,null,null,null,null,null,null,null,{"$f":"IF(A27=\"\",\"\",SUM(F27:G27)*Pilotage!$E$13*I27)","v":""},null,"",null,null,null,null,null,null,null,null,null,null,"","","","","",null,null,null,{"$f":"IF(A27<>\"\",IF($AD27<>\"\",VLOOKUP($AD27,Immobilisations[],7),0),\"\")","v":""},{"$f":"IF(A27<>\"\",IF($AD27<>\"\",VLOOKUP($AD27,Immobilisations[],8),\"\"),\"\")","v":""},"","","","","","","","",{"$f":"IF(AND($A27<>\"\",$AF27<>\"\"),IF(AO$2=0,0,IF(ROUNDDOWN(AO$2/($AE27+1),0)=0,$K27*$AE27/100,0)),\"\")","v":""},"","","",""]
[null,null,null,null,null,null,null,null,null,null,null,null,null,null,null,null,null,null,null,null,null,null,"","","","","",null,null,null,{"$f":"IF(A28<>\"\",IF($AD28<>\"\",VLOOKUP($AD28,Immobilisations[],7),0),\"\")","v":""},{"$f":"IF(A28<>\"\",IF($AD28<>\"\",VLOOKUP($AD28,Immobilisations[],8),\"\"),\"\")","v":""},{"$f":"IF(AND($A28<>\"\",$AF28<>\"\"),IF(AG$2=0,0,IF(ROUNDDOWN(AG$2/($AE28+1),0)=0,$K28*$AE28/100,0)),\"\")","v":""},"","","","","","","","","","","",""]
[null,null,null,null,null,null,null,null,null,null,null,null,null,null,null,null,null,null,null,null,null,null,"","","","","",null,null,null,{"$f":"IF(A29<>\"\",IF($AD29<>\"\",VLOOKUP($AD29,Immobilisations[],7),0),\"\")","v":""},{"$f":"IF(A29<>\"\",IF($AD29<>\"\",VLOOKUP($AD29,Immobilisations[],8),\"\"),\"\")","v":""},"","","","","","","","","","","","",""]
[null,null,null,null,null,null,null,null,null,null,null,null,null,null,null,null,null,null,null,null,null,null,"","","","","",null,null,null,{"$f":"IF(A30<>\"\",IF($AD30<>\"\",VLOOKUP($AD30,Immobilisations[],7),0),\"\")","v":""},{"$f":"IF(A30<>\"\",IF($AD30<>\"\",VLOOKUP($AD30,Immobilisations[],8),\"\"),\"\")","v":""},"","","","","","","","","","","","",""]
[null,null,null,null,null,null,null,null,null,null,null,null,null,null,null,null,null,null,null,null,null,null,"","","","","",null,null,null,{"$f":"IF(A31<>\"\",IF($AD31<>\"\",VLOOKUP($AD31,Immobilisations[],7),0),\"\")","v":""},{"$f":"IF(A31<>\"\",IF($AD31<>\"\",VLOOKUP($AD31,Immobilisations[],8),\"\"),\"\")","v":""},"","","","","","","","","","","","",""]
[null,null,null,null,null,null,null,null,null,null,null,null,null,null,null,null,null,null,null,null,null,null,"","","","","",null,null,null,{"$f":"IF(A32<>\"\",IF($AD32<>\"\",VLOOKUP($AD32,Immobilisations[],7),0),\"\")","v":""},{"$f":"IF(A32<>\"\",IF($AD32<>\"\",VLOOKUP($AD32,Immobilisations[],8),\"\"),\"\")","v":""},"","","","","","","","","","","","",""]
[null,null,null,null,null,null,null,null,null,null,null,null,null,null,null,null,null,null,null,null,null,null,"","","","","",null,null,null,{"$f":"IF(A33<>\"\",IF($AD33<>\"\",VLOOKUP($AD33,Immobilisations[],7),0),\"\")","v":""},{"$f":"IF(A33<>\"\",IF($AD33<>\"\",VLOOKUP($AD33,Immobilisations[],8),\"\"),\"\")","v":""},"","","","","","","","","","","","",""]
[null,null,null,null,null,null,null,null,null,null,null,null,null,null,null,null,null,null,null,null,null,null,"","","","","",null,null,null,{"$f":"IF(A34<>\"\",IF($AD34<>\"\",VLOOKUP($AD34,Immobilisations[],7),0),\"\")","v":""},{"$f":"IF(A34<>\"\",IF($AD34<>\"\",VLOOKUP($AD34,Immobilisations[],8),\"\"),\"\")","v":""},"","","","","","","","","","","","",""]
[null,null,null,null,null,null,null,null,null,null,null,null,null,null,null,null,null,null,null,null,null,null,"","","","","",null,null,null,{"$f":"IF(A35<>\"\",IF($AD35<>\"\",VLOOKUP($AD35,Immobilisations[],7),0),\"\")","v":""},{"$f":"IF(A35<>\"\",IF($AD35<>\"\",VLOOKUP($AD35,Immobilisations[],8),\"\"),\"\")","v":""},"","","","","","","","","","","","",""]
[null,null,null,null,null,null,null,null,null,null,null,null,null,null,null,null,null,null,null,null,null,null,"","","","","",null,null,null,{"$f":"IF(A36<>\"\",IF($AD36<>\"\",VLOOKUP($AD36,Immobilisations[],7),0),\"\")","v":""},{"$f":"IF(A36<>\"\",IF($AD36<>\"\",VLOOKUP($AD36,Immobilisations[],8),\"\"),\"\")","v":""},"","","","","","","","","","","","",""]
[null,null,null,null,null,null,null,null,null,null,null,null,null,null,null,null,null,null,null,null,null,null,"","","","","",null,null,null,{"$f":"IF(A37<>\"\",IF($AD37<>\"\",VLOOKUP($AD37,Immobilisations[],7),0),\"\")","v":""},{"$f":"IF(A37<>\"\",IF($AD37<>\"\",VLOOKUP($AD37,Immobilisations[],8),\"\"),\"\")","v":""},"","","","","","","","","","","","",""]
[null,null,null,null,null,null,null,null,null,null,null,null,null,null,null,null,null,null,null,null,null,null,"","","","","",null,null,null,{"$f":"IF(A38<>\"\",IF($AD38<>\"\",VLOOKUP($AD38,Immobilisations[],7),0),\"\")","v":""},{"$f":"IF(A38<>\"\",IF($AD38<>\"\",VLOOKUP($AD38,Immobilisations[],8),\"\"),\"\")","v":""},"","","","","","","","","","","","",""]
[null,null,null,null,null,null,null,null,null,null,null,null,null,null,null,null,null,null,null,null,null,null,"","","","","",null,null,null,{"$f":"IF(A39<>\"\",IF($AD39<>\"\",VLOOKUP($AD39,Immobilisations[],7),0),\"\")","v":""},{"$f":"IF(A39<>\"\",IF($AD39<>\"\",VLOOKUP($AD39,Immobilisations[],8),\"\"),\"\")","v":""},"","","","","","","","","","","","",""]
[null,null,null,null,null,null,null,null,null,null,null,null,null,null,null,null,null,null,null,null,null,null,"","","","","",null,null,null,{"$f":"IF(A40<>\"\",IF($AD40<>\"\",VLOOKUP($AD40,Immobilisations[],7),0),\"\")","v":""},{"$f":"IF(A40<>\"\",IF($AD40<>\"\",VLOOKUP($AD40,Immobilisations[],8),\"\"),\"\")","v":""},"","","","","","","","","","","","",""]
[null,null,null,null,null,null,null,null,null,null,null,null,null,null,null,null,null,null,null,null,null,null,"","","","","",null,null,null,{"$f":"IF(A41<>\"\",IF($AD41<>\"\",VLOOKUP($AD41,Immobilisations[],7),0),\"\")","v":""},{"$f":"IF(A41<>\"\",IF($AD41<>\"\",VLOOKUP($AD41,Immobilisations[],8),\"\"),\"\")","v":""},"","","","","","","","","","","","",""]
[null,null,null,null,null,null,null,null,null,null,null,null,null,null,null,null,null,null,null,null,null,null,"","","","","",null,null,null,{"$f":"IF(A42<>\"\",IF($AD42<>\"\",VLOOKUP($AD42,Immobilisations[],7),0),\"\")","v":""},{"$f":"IF(A42<>\"\",IF($AD42<>\"\",VLOOKUP($AD42,Immobilisations[],8),\"\"),\"\")","v":""},"","","","","","","","","","","","",""]
[null,null,null,null,null,null,null,null,null,null,null,null,null,null,null,null,null,null,null,null,null,null,"","","","","",null,null,null,{"$f":"IF(A43<>\"\",IF($AD43<>\"\",VLOOKUP($AD43,Immobilisations[],7),0),\"\")","v":""},{"$f":"IF(A43<>\"\",IF($AD43<>\"\",VLOOKUP($AD43,Immobilisations[],8),\"\"),\"\")","v":""},"","","","","","","","","","","","",""]
[null,null,null,null,null,null,null,null,null,null,null,null,null,null,null,null,null,null,null,null,null,null,"","","","","",null,null,null,{"$f":"IF(A44<>\"\",IF($AD44<>\"\",VLOOKUP($AD44,Immobilisations[],7),0),\"\")","v":""},{"$f":"IF(A44<>\"\",IF($AD44<>\"\",VLOOKUP($AD44,Immobilisations[],8),\"\"),\"\")","v":""},"","","","","","","","","","","","",""]
[null,null,null,null,null,null,null,null,null,null,null,null,null,null,null,null,null,null,null,null,null,null,"","","","","",null,null,null,{"$f":"IF(A45<>\"\",IF($AD45<>\"\",VLOOKUP($AD45,Immobilisations[],7),0),\"\")","v":""},{"$f":"IF(A45<>\"\",IF($AD45<>\"\",VLOOKUP($AD45,Immobilisations[],8),\"\"),\"\")","v":""},"","","","","","","","","","","","",""]
[null,null,null,null,null,null,null,null,null,null,null,null,null,null,null,null,null,null,null,null,null,null,"","","","","",null,null,null,{"$f":"IF(A46<>\"\",IF($AD46<>\"\",VLOOKUP($AD46,Immobilisations[],7),0),\"\")","v":""},{"$f":"IF(A46<>\"\",IF($AD46<>\"\",VLOOKUP($AD46,Immobilisations[],8),\"\"),\"\")","v":""},"","","","","","","","","","","","",""]
[null,null,null,null,null,null,null,null,null,null,null,null,null,null,null,null,null,null,null,null,null,null,{"$f":"IF($A47<>\"\",Q47*$K47,\"\")","v":""},"","","","",null,null,null,{"$f":"IF(A47<>\"\",IF($AD47<>\"\",VLOOKUP($AD47,Immobilisations[],7),0),\"\")","v":""},{"$f":"IF(A47<>\"\",IF($AD47<>\"\",VLOOKUP($AD47,Immobilisations[],8),\"\"),\"\")","v":""},"","","","","","","","","","","","",""]
[null,null,null,null,null,null,null,null,null,null,null,null,null,null,null,null,null,null,null,null,null,null,"","","","","",null,null,null,{"$f":"IF(A48<>\"\",IF($AD48<>\"\",VLOOKUP($AD48,Immobilisations[],7),0),\"\")","v":""},{"$f":"IF(A48<>\"\",IF($AD48<>\"\",VLOOKUP($AD48,Immobilisations[],8),\"\"),\"\")","v":""},"","","","","","","","","","","","",""]
[null,null,null,null,null,null,null,null,null,null,null,null,null,null,null,null,null,null,null,null,null,null,"","","","","",null,null,null,{"$f":"IF(A49<>\"\",IF($AD49<>\"\",VLOOKUP($AD49,Immobilisations[],7),0),\"\")","v":""},{"$f":"IF(A49<>\"\",IF($AD49<>\"\",VLOOKUP($AD49,Immobilisations[],8),\"\"),\"\")","v":""},"","","","","","","","","","","","",""]
[null,null,null,null,null,null,null,null,null,null,null,null,null,null,null,null,null,null,null,null,null,null,"","","","","",null,null,null,{"$f":"IF(A50<>\"\",IF($AD50<>\"\",VLOOKUP($AD50,Immobilisations[],7),0),\"\")","v":""},{"$f":"IF(A50<>\"\",IF($AD50<>\"\",VLOOKUP($AD50,Immobilisations[],8),\"\"),\"\")","v":""},"","","","","","","","","","",{"$f":"IF(AND($A50<>\"\",$AF50<>\"\"),IF(AQ$2=0,0,IF(ROUNDDOWN(AQ$2/($AE50+1),0)=0,$K50*$AE50/100,0)),\"\")","v":""},"",""]
[null,null,null,null,null,null,null,null,null,null,null,null,null,null,null,null,null,null,null,null,null,null,"","","","","",null,null,null,{"$f":"IF(A51<>\"\",IF($AD51<>\"\",VLOOKUP($AD51,Immobilisations[],7),0),\"\")","v":""},{"$f":"IF(A51<>\"\",IF($AD51<>\"\",VLOOKUP($AD51,Immobilisations[],8),\"\"),\"\")","v":""},"","","","","","","","","","","","",""]
[null,null,null,null,null,null,null,null,null,null,null,null,null,null,null,null,null,null,null,null,null,null,"","","","","",null,null,null,{"$f":"IF(A52<>\"\",IF($AD52<>\"\",VLOOKUP($AD52,Immobilisations[],7),0),\"\")","v":""},{"$f":"IF(A52<>\"\",IF($AD52<>\"\",VLOOKUP($AD52,Immobilisations[],8),\"\"),\"\")","v":""},"","","","","","","","","","","","",""]
[null,null,null,null,null,null,null,null,null,null,null,null,null,null,null,null,null,null,null,null,null,null,"","","","","",null,null,null,{"$f":"IF(A53<>\"\",IF($AD53<>\"\",VLOOKUP($AD53,Immobilisations[],7),0),\"\")","v":""},{"$f":"IF(A53<>\"\",IF($AD53<>\"\",VLOOKUP($AD53,Immobilisations[],8),\"\"),\"\")","v":""},"","","","","","","","","","","","",""]
[null,null,null,null,null,null,null,null,null,null,null,null,null,null,null,null,null,null,null,null,null,null,"","","","","",null,null,null,{"$f":"IF(A54<>\"\",IF($AD54<>\"\",VLOOKUP($AD54,Immobilisations[],7),0),\"\")","v":""},{"$f":"IF(A54<>\"\",IF($AD54<>\"\",VLOOKUP($AD54,Immobilisations[],8),\"\"),\"\")","v":""},"","","","","","","","","","","","",""]
[null,null,null,null,null,null,null,null,null,null,null,null,null,null,null,null,null,null,null,null,null,null,"","","","","",null,null,null,{"$f":"IF(A55<>\"\",IF($AD55<>\"\",VLOOKUP($AD55,Immobilisations[],7),0),\"\")","v":""},{"$f":"IF(A55<>\"\",IF($AD55<>\"\",VLOOKUP($AD55,Immobilisations[],8),\"\"),\"\")","v":""},"","","","","","","","","","","","",""]
[null,null,null,null,null,null,null,null,null,null,null,null,null,null,null,null,null,null,null,null,null,null,"","","","","",null,null,null,{"$f":"IF(A56<>\"\",IF($AD56<>\"\",VLOOKUP($AD56,Immobilisations[],7),0),\"\")","v":""},{"$f":"IF(A56<>\"\",IF($AD56<>\"\",VLOOKUP($AD56,Immobilisations[],8),\"\"),\"\")","v":""},"","","","","","","","","","","","",""]
[null,null,null,null,null,null,null,null,null,null,null,null,null,null,null,null,null,null,null,null,null,null,"","","","","",null,null,null,{"$f":"IF(A57<>\"\",IF($AD57<>\"\",VLOOKUP($AD57,Immobilisations[],7),0),\"\")","v":""},{"$f":"IF(A57<>\"\",IF($AD57<>\"\",VLOOKUP($AD57,Immobilisations[],8),\"\"),\"\")","v":""},"","","","","","","","","","","","",""]
[null,null,null,null,null,null,null,null,null,null,null,null,null,null,null,null,null,null,null,null,null,null,"","","","","",null,null,null,{"$f":"IF(A58<>\"\",IF($AD58<>\"\",VLOOKUP($AD58,Immobilisations[],7),0),\"\")","v":""},{"$f":"IF(A58<>\"\",IF($AD58<>\"\",VLOOKUP($AD58,Immobilisations[],8),\"\"),\"\")","v":""},"","","","","","","","","","","","",""]
[null,null,null,null,null,null,null,null,null,null,null,null,null,null,null,null,null,null,null,null,null,null,"","","","","",null,null,null,{"$f":"IF(A59<>\"\",IF($AD59<>\"\",VLOOKUP($AD59,Immobilisations[],7),0),\"\")","v":""},{"$f":"IF(A59<>\"\",IF($AD59<>\"\",VLOOKUP($AD59,Immobilisations[],8),\"\"),\"\")","v":""},"","","","","","","","","","","","",""]
[null,null,null,null,null,null,null,null,null,null,null,null,null,null,null,null,null,null,null,null,null,null,"","","","","",null,null,null,{"$f":"IF(A60<>\"\",IF($AD60<>\"\",VLOOKUP($AD60,Immobilisations[],7),0),\"\")","v":""},{"$f":"IF(A60<>\"\",IF($AD60<>\"\",VLOOKUP($AD60,Immobilisations[],8),\"\"),\"\")","v":""},{"$f":"IF(AND($A60<>\"\",$AF60<>\"\"),IF(AG$2=0,0,IF(ROUNDDOWN(AG$2/($AE60+1),0)=0,$K60*$AE60/100,0)),\"\")","v":""},"","","","","","","","","","","",""]
[null,null,null,null,null,null,null,null,null,null,null,null,null,null,null,null,null,null,null,null,null,null,"","","","","",null,null,null,{"$f":"IF(A61<>\"\",IF($AD61<>\"\",VLOOKUP($AD61,Immobilisations[],7),0),\"\")","v":""},{"$f":"IF(A61<>\"\",IF($AD61<>\"\",VLOOKUP($AD61,Immobilisations[],8),\"\"),\"\")","v":""},"","","","","","","","","","","","",""]
[null,null,null,null,null,null,null,null,null,null,null,null,null,null,null,null,null,null,null,null,null,null,"","","","","",null,null,null,{"$f":"IF(A62<>\"\",IF($AD62<>\"\",VLOOKUP($AD62,Immobilisations[],7),0),\"\")","v":""},{"$f":"IF(A62<>\"\",IF($AD62<>\"\",VLOOKUP($AD62,Immobilisations[],8),\"\"),\"\")","v":""},"","","","","","","","","","","","",""]
[null,null,null,null,null,null,null,null,null,null,null,null,null,null,null,null,null,null,null,null,null,null,"","","","","",null,null,null,{"$f":"IF(A63<>\"\",IF($AD63<>\"\",VLOOKUP($AD63,Immobilisations[],7),0),\"\")","v":""},{"$f":"IF(A63<>\"\",IF($AD63<>\"\",VLOOKUP($AD63,Immobilisations[],8),\"\"),\"\")","v":""},"","","","","","","","","","","","",""]
[null,null,null,null,null,null,null,null,null,null,null,null,null,null,null,null,null,null,null,null,null,null,"","","","","",null,null,null,{"$f":"IF(A64<>\"\",IF($AD64<>\"\",VLOOKUP($AD64,Immobilisations[],7),0),\"\")","v":""},{"$f":"IF(A64<>\"\",IF($AD64<>\"\",VLOOKUP($AD64,Immobilisations[],8),\"\"),\"\")","v":""},"","","","","","","","","","","","",""]
[null,null,null,null,null,null,null,null,null,null,null,null,null,null,null,null,null,null,null,null,null,null,"","","","","",null,null,null,{"$f":"IF(A65<>\"\",IF($AD65<>\"\",VLOOKUP($AD65,Immobilisations[],7),0),\"\")","v":""},{"$f":"IF(A65<>\"\",IF($AD65<>\"\",VLOOKUP($AD65,Immobilisations[],8),\"\"),\"\")","v":""},"","","","","","","","","","","","",""]
[null,null,null,null,null,null,null,null,null,null,null,null,null,null,null,null,null,null,null,null,null,null,"","","","","",null,null,null,{"$f":"IF(A66<>\"\",IF($AD66<>\"\",VLOOKUP($AD66,Immobilisations[],7),0),\"\")","v":""},{"$f":"IF(A66<>\"\",IF($AD66<>\"\",VLOOKUP($AD66,Immobilisations[],8),\"\"),\"\")","v":""},"","","","","","","","","","","","",""]
[null,null,null,null,null,null,null,null,null,null,null,null,null,null,null,null,null,null,null,null,null,null,"","","","","",null,null,null,{"$f":"IF(A67<>\"\",IF($AD67<>\"\",VLOOKUP($AD67,Immobilisations[],7),0),\"\")","v":""},{"$f":"IF(A67<>\"\",IF($AD67<>\"\",VLOOKUP($AD67,Immobilisations[],8),\"\"),\"\")","v":""},"","","","","","","","","","","","",""]
[null,null,null,null,null,null,null,null,null,null,null,null,null,null,null,null,null,null,null,null,null,null,"","","","","",null,null,null,{"$f":"IF(A68<>\"\",IF($AD68<>\"\",VLOOKUP($AD68,Immobilisations[],7),0),\"\")","v":""},{"$f":"IF(A68<>\"\",IF($AD68<>\"\",VLOOKUP($AD68,Immobilisations[],8),\"\"),\"\")","v":""},"","","","","","","","","","","","",""]
[null,null,null,null,null,null,null,null,null,null,null,null,null,null,null,null,null,null,null,null,null,null,"","","","","",null,null,null,{"$f":"IF(A69<>\"\",IF($AD69<>\"\",VLOOKUP($AD69,Immobilisations[],7),0),\"\")","v":""},{"$f":"IF(A69<>\"\",IF($AD69<>\"\",VLOOKUP($AD69,Immobilisations[],8),\"\"),\"\")","v":""},"","","","","","","","","","","","",""]
[null,null,null,null,null,null,null,null,null,null,null,null,null,null,null,null,null,null,null,null,null,null,"","","","","",null,null,null,{"$f":"IF(A70<>\"\",IF($AD70<>\"\",VLOOKUP($AD70,Immobilisations[],7),0),\"\")","v":""},{"$f":"IF(A70<>\"\",IF($AD70<>\"\",VLOOKUP($AD70,Immobilisations[],8),\"\"),\"\")","v":""},"","","","","","","","","","","","",""]
[null,null,null,null,null,null,null,null,null,null,null,null,null,null,null,null,null,null,null,null,null,null,"","","","","",null,null,null,{"$f":"IF(A71<>\"\",IF($AD71<>\"\",VLOOKUP($AD71,Immobilisations[],7),0),\"\")","v":""},{"$f":"IF(A71<>\"\",IF($AD71<>\"\",VLOOKUP($AD71,Immobilisations[],8),\"\"),\"\")","v":""},"","","","","","","","","","","","",""]
[null,null,null,null,null,null,null,null,null,null,null,null,null,null,null,null,null,null,null,null,null,null,"","","","","",null,null,null,{"$f":"IF(A72<>\"\",IF($AD72<>\"\",VLOOKUP($AD72,Immobilisations[],7),0),\"\")","v":""},{"$f":"IF(A72<>\"\",IF($AD72<>\"\",VLOOKUP($AD72,Immobilisations[],8),\"\"),\"\")","v":""},"","","","","","","","","","","","",""]
[null,null,null,null,null,null,null,null,null,null,null,null,null,null,null,null,null,null,null,null,null,null,"","","","","",null,null,null,{"$f":"IF(A73<>\"\",IF($AD73<>\"\",VLOOKUP($AD73,Immobilisations[],7),0),\"\")","v":""},{"$f":"IF(A73<>\"\",IF($AD73<>\"\",VLOOKUP($AD73,Immobilisations[],8),\"\"),\"\")","v":""},"","","","","","","","","","","","",{"$f":"IF(AND($A73<>\"\",$AF73<>\"\"),IF(AS$2=0,0,IF(ROUNDDOWN(AS$2/($AE73+1),0)=0,$K73*$AE73/100,0)),\"\")","v":""}]
[null,null,null,null,null,null,null,null,null,null,null,null,null,null,null,null,null,null,null,null,null,null,"","","","","",null,null,null,{"$f":"IF(A74<>\"\",IF($AD74<>\"\",VLOOKUP($AD74,Immobilisations[],7),0),\"\")","v":""},{"$f":"IF(A74<>\"\",IF($AD74<>\"\",VLOOKUP($AD74,Immobilisations[],8),\"\"),\"\")","v":""},"","","","","","","","","","","","",""]
[null,null,null,null,null,null,null,null,null,null,null,null,null,null,null,null,null,null,null,null,null,null,"","","","","",null,null,null,{"$f":"IF(A75<>\"\",IF($AD75<>\"\",VLOOKUP($AD75,Immobilisations[],7),0),\"\")","v":""},{"$f":"IF(A75<>\"\",IF($AD75<>\"\",VLOOKUP($AD75,Immobilisations[],8),\"\"),\"\")","v":""},"","","","","","","","","","","","",""]
[null,null,null,null,null,null,null,null,null,null,null,null,null,null,null,null,null,null,null,null,null,null,"","","","","",null,null,null,{"$f":"IF(A76<>\"\",IF($AD76<>\"\",VLOOKUP($AD76,Immobilisations[],7),0),\"\")","v":""},{"$f":"IF(A76<>\"\",IF($AD76<>\"\",VLOOKUP($AD76,Immobilisations[],8),\"\"),\"\")","v":""},"","","","","","","","","","","","",""]
[null,null,null,null,null,null,null,null,null,null,null,null,null,null,null,null,null,null,null,null,null,null,"","","","","",null,null,null,{"$f":"IF(A77<>\"\",IF($AD77<>\"\",VLOOKUP($AD77,Immobilisations[],7),0),\"\")","v":""},{"$f":"IF(A77<>\"\",IF($AD77<>\"\",VLOOKUP($AD77,Immobilisations[],8),\"\"),\"\")","v":""},"","","","","","","","","","","","",""]
[null,null,null,null,null,null,null,null,null,null,null,null,null,null,null,null,null,null,null,null,null,null,"","","","","",null,null,null,{"$f":"IF(A78<>\"\",IF($AD78<>\"\",VLOOKUP($AD78,Immobilisations[],7),0),\"\")","v":""},{"$f":"IF(A78<>\"\",IF($AD78<>\"\",VLOOKUP($AD78,Immobilisations[],8),\"\"),\"\")","v":""},"","","","","","","","","","","","",""]
[null,null,null,null,null,null,null,null,null,null,null,null,null,null,null,null,null,null,null,null,null,null,"","","","","",null,null,null,{"$f":"IF(A79<>\"\",IF($AD79<>\"\",VLOOKUP($AD79,Immobilisations[],7),0),\"\")","v":""},{"$f":"IF(A79<>\"\",IF($AD79<>\"\",VLOOKUP($AD79,Immobilisations[],8),\"\"),\"\")","v":""},"","","","","","","","","","","","",""]
[null,null,null,null,null,null,null,null,null,null,null,null,null,null,null,null,null,null,null,null,null,null,"","","","","",null,null,null,{"$f":"IF(A80<>\"\",IF($AD80<>\"\",VLOOKUP($AD80,Immobilisations[],7),0),\"\")","v":""},{"$f":"IF(A80<>\"\",IF($AD80<>\"\",VLOOKUP($AD80,Immobilisations[],8),\"\"),\"\")","v":""},"","","","","","","","","","","","",""]
[null,null,null,null,null,null,null,null,null,null,null,null,null,null,null,null,null,null,null,null,null,null,"","","","","",null,null,null,{"$f":"IF(A81<>\"\",IF($AD81<>\"\",VLOOKUP($AD81,Immobilisations[],7),0),\"\")","v":""},{"$f":"IF(A81<>\"\",IF($AD81<>\"\",VLOOKUP($AD81,Immobilisations[],8),\"\"),\"\")","v":""},"","","","","","","","","","","","",""]
[null,null,null,null,null,null,null,null,null,null,null,null,null,null,null,null,null,null,null,null,null,null,"","","","","",null,null,null,{"$f":"IF(A82<>\"\",IF($AD82<>\"\",VLOOKUP($AD82,Immobilisations[],7),0),\"\")","v":""},{"$f":"IF(A82<>\"\",IF($AD82<>\"\",VLOOKUP($AD82,Immobilisations[],8),\"\"),\"\")","v":""},"","","","","","","","","","","","",""]
[null,null,null,null,null,null,null,null,null,null,null,null,null,null,null,null,null,null,null,null,null,null,"","","","","",null,null,null,{"$f":"IF(A83<>\"\",IF($AD83<>\"\",VLOOKUP($AD83,Immobilisations[],7),0),\"\")","v":""},{"$f":"IF(A83<>\"\",IF($AD83<>\"\",VLOOKUP($AD83,Immobilisations[],8),\"\"),\"\")","v":""},"","","","","","","","","","","","",""]
[null,null,null,null,null,null,null,null,null,null,null,null,null,null,null,null,null,null,null,null,null,null,"","","","","",null,null,null,{"$f":"IF(A84<>\"\",IF($AD84<>\"\",VLOOKUP($AD84,Immobilisations[],7),0),\"\")","v":""},{"$f":"IF(A84<>\"\",IF($AD84<>\"\",VLOOKUP($AD84,Immobilisations[],8),\"\"),\"\")","v":""},"","","","","","","","","","","","",""]
[null,null,null,null,null,null,null,null,null,null,null,null,null,null,null,null,null,null,null,null,null,null,"","","","","",null,null,null,{"$f":"IF(A85<>\"\",IF($AD85<>\"\",VLOOKUP($AD85,Immobilisations[],7),0),\"\")","v":""},{"$f":"IF(A85<>\"\",IF($AD85<>\"\",VLOOKUP($AD85,Immobilisations[],8),\"\"),\"\")","v":""},"","","","","","","","","","","","",""]
[null,null,null,null,null,null,null,null,null,null,null,null,null,null,null,null,null,null,null,null,null,null,"","","","","",null,null,null,{"$f":"IF(A86<>\"\",IF($AD86<>\"\",VLOOKUP($AD86,Immobilisations[],7),0),\"\")","v":""},{"$f":"IF(A86<>\"\",IF($AD86<>\"\",VLOOKUP($AD86,Immobilisations[],8),\"\"),\"\")","v":""},"","","","","","","","","","","","",""]
[null,null,null,null,null,null,null,null,null,null,null,null,null,null,null,null,null,null,null,null,null,null,"","","","","",null,null,null,{"$f":"IF(A87<>\"\",IF($AD87<>\"\",VLOOKUP($AD87,Immobilisations[],7),0),\"\")","v":""},{"$f":"IF(A87<>\"\",IF($AD87<>\"\",VLOOKUP($AD87,Immobilisations[],8),\"\"),\"\")","v":""},"","","","","","","","","","","","",""]
[null,null,null,null,null,null,null,null,null,null,null,null,null,null,null,null,null,null,null,null,null,null,"","","","","",null,null,null,{"$f":"IF(A88<>\"\",IF($AD88<>\"\",VLOOKUP($AD88,Immobilisations[],7),0),\"\")","v":""},{"$f":"IF(A88<>\"\",IF($AD88<>\"\",VLOOKUP($AD88,Immobilisations[],8),\"\"),\"\")","v":""},"","","","","","","","","","","","",""]
[null,null,null,null,null,null,null,null,null,null,null,null,null,null,null,null,null,null,null,null,null,null,"","","","","",null,null,null,{"$f":"IF(A89<>\"\",IF($AD89<>\"\",VLOOKUP($AD89,Immobilisations[],7),0),\"\")","v":""},{"$f":"IF(A89<>\"\",IF($AD89<>\"\",VLOOKUP($AD89,Immobilisations[],8),\"\"),\"\")","v":""},"","","","","","","","","","","","",""]
[null,null,null,null,null,null,null,null,null,null,null,null,null,null,null,null,null,null,null,null,null,null,"","","","","",null,null,null,{"$f":"IF(A90<>\"\",IF($AD90<>\"\",VLOOKUP($AD90,Immobilisations[],7),0),\"\")","v":""},{"$f":"IF(A90<>\"\",IF($AD90<>\"\",VLOOKUP($AD90,Immobilisations[],8),\"\"),\"\")","v":""},"","","","","","","","","","","","",""]
[null,null,null,null,null,null,null,null,null,null,null,null,null,null,null,null,null,null,null,null,null,null,"","","","","",null,null,null,{"$f":"IF(A91<>\"\",IF($AD91<>\"\",VLOOKUP($AD91,Immobilisations[],7),0),\"\")","v":""},{"$f":"IF(A91<>\"\",IF($AD91<>\"\",VLOOKUP($AD91,Immobilisations[],8),\"\"),\"\")","v":""},"","","","","","","","","","","","",""]
[null,null,null,null,null,null,null,null,null,null,null,null,null,null,null,null,null,null,null,null,null,null,"","","","","",null,null,null,{"$f":"IF(A92<>\"\",IF($AD92<>\"\",VLOOKUP($AD92,Immobilisations[],7),0),\"\")","v":""},{"$f":"IF(A92<>\"\",IF($AD92<>\"\",VLOOKUP($AD92,Immobilisations[],8),\"\"),\"\")","v":""},{"$f":"IF(AND($A92<>\"\",$AF92<>\"\"),IF(AG$2=0,0,IF(ROUNDDOWN(AG$2/($AE92+1),0)=0,$K92*$AE92/100,0)),\"\")","v":""},"","","","","","","","","","","",""]
[null,null,null,null,null,null,null,null,null,null,null,null,null,null,null,null,null,null,null,null,null,null,"","","","","",null,null,null,{"$f":"IF(A93<>\"\",IF($AD93<>\"\",VLOOKUP($AD93,Immobilisations[],7),0),\"\")","v":""},{"$f":"IF(A93<>\"\",IF($AD93<>\"\",VLOOKUP($AD93,Immobilisations[],8),\"\"),\"\")","v":""},"","","","","","","","","","","","",""]
[null,null,null,null,null,null,null,null,null,null,null,null,null,null,null,null,null,null,null,null,null,null,"","","","","",null,null,null,{"$f":"IF(A94<>\"\",IF($AD94<>\"\",VLOOKUP($AD94,Immobilisations[],7),0),\"\")","v":""},{"$f":"IF(A94<>\"\",IF($AD94<>\"\",VLOOKUP($AD94,Immobilisations[],8),\"\"),\"\")","v":""},"","","","","","","","","","","","",""]
[null,null,null,null,null,null,null,null,null,null,null,null,null,null,null,null,null,null,null,null,null,null,"","","","","",null,null,null,{"$f":"IF(A95<>\"\",IF($AD95<>\"\",VLOOKUP($AD95,Immobilisations[],7),0),\"\")","v":""},{"$f":"IF(A95<>\"\",IF($AD95<>\"\",VLOOKUP($AD95,Immobilisations[],8),\"\"),\"\")","v":""},"","","","","","","","","","","","",""]
[null,null,null,null,null,null,null,null,null,null,null,null,null,null,null,null,null,null,null,null,null,null,"","","","","",null,null,null,{"$f":"IF(A96<>\"\",IF($AD96<>\"\",VLOOKUP($AD96,Immobilisations[],7),0),\"\")","v":""},{"$f":"IF(A96<>\"\",IF($AD96<>\"\",VLOOKUP($AD96,Immobilisations[],8),\"\"),\"\")","v":""},"","","","","","","","","","","","",""]
[null,null,null,null,null,null,null,null,null,null,null,null,null,null,null,null,null,null,null,null,null,null,"","","","","",null,null,null,{"$f":"IF(A97<>\"\",IF($AD97<>\"\",VLOOKUP($AD97,Immobilisations[],7),0),\"\")","v":""},{"$f":"IF(A97<>\"\",IF($AD97<>\"\",VLOOKUP($AD97,Immobilisations[],8),\"\"),\"\")","v":""},"","","",{"$f":"IF(AND($A97<>\"\",$AF97<>\"\"),IF(AJ$2=0,0,IF(ROUNDDOWN(AJ$2/($AE97+1),0)=0,$K97*$AE97/100,0)),\"\")","v":""},"","","","","","","","",""]
[null,null,null,null,null,null,null,null,null,null,null,null,null,null,null,null,null,null,null,null,null,null,{"$f":"IF($A98<>\"\",Q98*$K98,\"\")","v":""},"","","","",null,null,null,{"$f":"IF(A98<>\"\",IF($AD98<>\"\",VLOOKUP($AD98,Immobilisations[],7),0),\"\")","v":""},{"$f":"IF(A98<>\"\",IF($AD98<>\"\",VLOOKUP($AD98,Immobilisations[],8),\"\"),\"\")","v":""},"","","","","","","","","","","","",""]
[null,null,null,null,null,null,null,null,null,null,null,null,null,null,null,null,null,null,null,null,null,null,"","","","","",null,null,null,{"$f":"IF(A99<>\"\",IF($AD99<>\"\",VLOOKUP($AD99,Immobilisations[],7),0),\"\")","v":""},{"$f":"IF(A99<>\"\",IF($AD99<>\"\",VLOOKUP($AD99,Immobilisations[],8),\"\"),\"\")","v":""},"","","","","","","","","","","","",""]
[null,null,null,null,null,null,null,null,null,null,null,null,null,null,null,null,null,null,null,null,null,null,"","","","","",null,null,null,{"$f":"IF(A100<>\"\",IF($AD100<>\"\",VLOOKUP($AD100,Immobilisations[],7),0),\"\")","v":""},{"$f":"IF(A100<>\"\",IF($AD100<>\"\",VLOOKUP($AD100,Immobilisations[],8),\"\"),\"\")","v":""},"","","","","","","","","","","","",""]
[null,null,null,null,null,null,null,null,null,null,null,null,null,null,null,null,null,null,null,null,null,null,"","","","","",null,null,null,{"$f":"IF(A101<>\"\",IF($AD101<>\"\",VLOOKUP($AD101,Immobilisations[],7),0),\"\")","v":""},{"$f":"IF(A101<>\"\",IF($AD101<>\"\",VLOOKUP($AD101,Immobilisations[],8),\"\"),\"\")","v":""},"","","","","","","","","","","","",""]
[null,null,null,null,null,null,null,null,null,null,null,null,null,null,null,null,null,null,null,null,null,null,"","","","","",null,null,null,{"$f":"IF(A102<>\"\",IF($AD102<>\"\",VLOOKUP($AD102,Immobilisations[],7),0),\"\")","v":""},{"$f":"IF(A102<>\"\",IF($AD102<>\"\",VLOOKUP($AD102,Immobilisations[],8),\"\"),\"\")","v":""},"","","","","","","","","","","","",""]
[null,null,null,null,null,null,null,null,null,null,null,null,null,null,null,null,null,null,null,null,null,null,"","","","","",null,null,null,{"$f":"IF(A103<>\"\",IF($AD103<>\"\",VLOOKUP($AD103,Immobilisations[],7),0),\"\")","v":""},{"$f":"IF(A103<>\"\",IF($AD103<>\"\",VLOOKUP($AD103,Immobilisations[],8),\"\"),\"\")","v":""},"","","","","","","","","","","","",""]
[null,null,null,null,null,null,null,null,null,null,null,null,null,null,null,null,null,null,null,null,null,null,"","","","","",null,null,null,{"$f":"IF(A104<>\"\",IF($AD104<>\"\",VLOOKUP($AD104,Immobilisations[],7),0),\"\")","v":""},{"$f":"IF(A104<>\"\",IF($AD104<>\"\",VLOOKUP($AD104,Immobilisations[],8),\"\"),\"\")","v":""},"","","","","","","","","","","","",""]
[null,null,null,null,null,null,null,null,null,null,null,null,null,null,null,null,null,null,null,null,null,null,"","","","","",null,null,null,{"$f":"IF(A105<>\"\",IF($AD105<>\"\",VLOOKUP($AD105,Immobilisations[],7),0),\"\")","v":""},{"$f":"IF(A105<>\"\",IF($AD105<>\"\",VLOOKUP($AD105,Immobilisations[],8),\"\"),\"\")","v":""},"","","","","","","","","","","","",""]
[null,null,null,null,null,null,null,null,null,null,null,null,null,null,null,null,null,null,null,null,null,null,"","","","","",null,null,null,{"$f":"IF(A106<>\"\",IF($AD106<>\"\",VLOOKUP($AD106,Immobilisations[],7),0),\"\")","v":""},{"$f":"IF(A106<>\"\",IF($AD106<>\"\",VLOOKUP($AD106,Immobilisations[],8),\"\"),\"\")","v":""},"","","","","","","","","","","","",""]
[null,null,null,null,null,null,null,null,null,null,null,null,null,null,null,null,null,null,null,null,null,null,"","","","","",null,null,null,{"$f":"IF(A107<>\"\",IF($AD107<>\"\",VLOOKUP($AD107,Immobilisations[],7),0),\"\")","v":""},{"$f":"IF(A107<>\"\",IF($AD107<>\"\",VLOOKUP($AD107,Immobilisations[],8),\"\"),\"\")","v":""},"","","","","","","","","","","","",""]
[null,null,null,null,null,null,null,null,null,null,null,null,null,null,null,null,null,null,null,null,null,null,"","","","","",null,null,null,{"$f":"IF(A108<>\"\",IF($AD108<>\"\",VLOOKUP($AD108,Immobilisations[],7),0),\"\")","v":""},{"$f":"IF(A108<>\"\",IF($AD108<>\"\",VLOOKUP($AD108,Immobilisations[],8),\"\"),\"\")","v":""},"","","","","","","","","","","","",""]
[null,null,null,null,null,null,null,null,null,null,null,null,null,null,null,null,null,null,null,null,null,null,"","","","","",null,null,null,{"$f":"IF(A109<>\"\",IF($AD109<>\"\",VLOOKUP($AD109,Immobilisations[],7),0),\"\")","v":""},{"$f":"IF(A109<>\"\",IF($AD109<>\"\",VLOOKUP($AD109,Immobilisations[],8),\"\"),\"\")","v":""},"","","","","","","","","","","","",""]
[null,null,null,null,null,null,null,null,null,null,null,null,null,null,null,null,null,null,null,null,null,null,"","","","","",null,null,null,{"$f":"IF(A110<>\"\",IF($AD110<>\"\",VLOOKUP($AD110,Immobilisations[],7),0),\"\")","v":""},{"$f":"IF(A110<>\"\",IF($AD110<>\"\",VLOOKUP($AD110,Immobilisations[],8),\"\"),\"\")","v":""},"","","","","","","","","","","","",""]
[null,null,null,null,null,null,null,null,null,null,null,null,null,null,null,null,null,null,null,null,null,null,"","","","","",null,null,null,{"$f":"IF(A111<>\"\",IF($AD111<>\"\",VLOOKUP($AD111,Immobilisations[],7),0),\"\")","v":""},{"$f":"IF(A111<>\"\",IF($AD111<>\"\",VLOOKUP($AD111,Immobilisations[],8),\"\"),\"\")","v":""},"","","","","","","","","","","","",""]
[null,null,null,null,null,null,null,null,null,null,null,null,null,null,null,null,null,null,null,null,null,null,"","","","","",null,null,null,{"$f":"IF(A112<>\"\",IF($AD112<>\"\",VLOOKUP($AD112,Immobilisations[],7),0),\"\")","v":""},{"$f":"IF(A112<>\"\",IF($AD112<>\"\",VLOOKUP($AD112,Immobilisations[],8),\"\"),\"\")","v":""},"","","","","","","","","","","","",""]
[null,null,null,null,null,null,null,null,null,null,null,null,null,null,null,null,null,null,null,null,null,null,"","","","","",null,null,null,{"$f":"IF(A113<>\"\",IF($AD113<>\"\",VLOOKUP($AD113,Immobilisations[],7),0),\"\")","v":""},{"$f":"IF(A113<>\"\",IF($AD113<>\"\",VLOOKUP($AD113,Immobilisations[],8),\"\"),\"\")","v":""},"","","","","","","","","","","","",""]
[null,null,null,null,null,null,null,null,null,null,null,null,null,null,null,null,null,null,null,null,null,null,"","","","","",null,null,null,{"$f":"IF(A114<>\"\",IF($AD114<>\"\",VLOOKUP($AD114,Immobilisations[],7),0),\"\")","v":""},{"$f":"IF(A114<>\"\",IF($AD114<>\"\",VLOOKUP($AD114,Immobilisations[],8),\"\"),\"\")","v":""},"","","","","","","","","","","","",""]
[null,null,null,null,null,null,null,null,null,null,null,null,null,null,null,null,null,null,null,null,null,null,"","","","","",null,null,null,{"$f":"IF(A115<>\"\",IF($AD115<>\"\",VLOOKUP($AD115,Immobilisations[],7),0),\"\")","v":""},{"$f":"IF(A115<>\"\",IF($AD115<>\"\",VLOOKUP($AD115,Immobilisations[],8),\"\"),\"\")","v":""},"","","","","","","","","","","","",""]
[null,null,null,null,null,null,null,null,null,null,null,null,null,null,null,null,null,null,null,null,null,null,"","","","","",null,null,null,{"$f":"IF(A116<>\"\",IF($AD116<>\"\",VLOOKUP($AD116,Immobilisations[],7),0),\"\")","v":""},{"$f":"IF(A116<>\"\",IF($AD116<>\"\",VLOOKUP($AD116,Immobilisations[],8),\"\"),\"\")","v":""},"","","","","","","","","","","","",""]
[null,null,null,null,null,null,null,null,null,null,null,null,null,null,null,null,null,null,null,null,null,null,"","","","","",null,null,null,{"$f":"IF(A117<>\"\",IF($AD117<>\"\",VLOOKUP($AD117,Immobilisations[],7),0),\"\")","v":""},{"$f":"IF(A117<>\"\",IF($AD117<>\"\",VLOOKUP($AD117,Immobilisations[],8),\"\"),\"\")","v":""},"","","","","","","","","","","","",""]
[null,null,null,null,null,null,null,null,null,null,null,null,null,null,null,null,null,null,null,null,null,null,"","","","","",null,null,null,{"$f":"IF(A118<>\"\",IF($AD118<>\"\",VLOOKUP($AD118,Immobilisations[],7),0),\"\")","v":""},{"$f":"IF(A118<>\"\",IF($AD118<>\"\",VLOOKUP($AD118,Immobilisations[],8),\"\"),\"\")","v":""},"","","","","","","","","","","","",""]
[null,null,null,null,null,null,null,null,null,null,null,null,null,null,null,null,null,null,null,null,null,null,"","","","","",null,null,null,{"$f":"IF(A119<>\"\",IF($AD119<>\"\",VLOOKUP($AD119,Immobilisations[],7),0),\"\")","v":""},{"$f":"IF(A119<>\"\",IF($AD119<>\"\",VLOOKUP($AD119,Immobilisations[],8),\"\"),\"\")","v":""},"","","","","","","","","","","","",""]
[null,null,null,null,null,null,null,null,null,null,null,null,null,null,null,null,null,null,null,null,null,null,"","","","","",null,null,null,{"$f":"IF(A120<>\"\",IF($AD120<>\"\",VLOOKUP($AD120,Immobilisations[],7),0),\"\")","v":""},{"$f":"IF(A120<>\"\",IF($AD120<>\"\",VLOOKUP($AD120,Immobilisations[],8),\"\"),\"\")","v":""},"","","","","",{"$f":"IF(AND($A120<>\"\",$AF120<>\"\"),IF(AL$2=0,0,IF(ROUNDDOWN(AL$2/($AE120+1),0)=0,$K120*$AE120/100,0)),\"\")","v":""},"","","","","","",""]
[null,null,null,null,null,null,null,null,null,null,null,null,null,null,null,null,null,null,null,null,null,null,"","","","","",null,null,null,{"$f":"IF(A121<>\"\",IF($AD121<>\"\",VLOOKUP($AD121,Immobilisations[],7),0),\"\")","v":""},{"$f":"IF(A121<>\"\",IF($AD121<>\"\",VLOOKUP($AD121,Immobilisations[],8),\"\"),\"\")","v":""},"","","","","","","","","","","","",""]
[null,null,null,null,null,null,null,null,null,null,null,null,null,null,null,null,null,null,null,null,null,null,"","","","","",null,null,null,{"$f":"IF(A122<>\"\",IF($AD122<>\"\",VLOOKUP($AD122,Immobilisations[],7),0),\"\")","v":""},{"$f":"IF(A122<>\"\",IF($AD122<>\"\",VLOOKUP($AD122,Immobilisations[],8),\"\"),\"\")","v":""},"","","","","","","","","","","","",""]
[null,null,null,null,null,null,null,null,null,null,null,null,null,null,null,null,null,null,null,null,null,null,"","","","","",null,null,null,null,null,{"$f":"IF($A123<>\"\",IF(AG116=0,0,IF(ROUNDDOWN(AG116/($AE123+1),0)=0,$K123*$AE123/100,0)),\"\")","v":""},"","","","","","","","","","","",""]
[null,null,null,null,null,null,null,null,null,null,null,null,null,null,null,null,null,null,null,null,null,null,"","","","",""]
[null,null,null,null,null,null,null,null,null,null,null,null,null,null,null,null,null,null,null,null,null,null,null,""]
[null,null,null,null,null,null,null,null,null,null,null,null,null,null,null,null,null,null,null,null,null,null,null,""]
[null,null,null,null,null,null,null,null,null,null,null,null,null,null,null,null,null,null,null,null,null,null,null,""]
[null,null,null,null,null,null,null,null,null,null,null,null,null,null,null,null,null,null,null,null,null,null,null,""]
[null,null,null,null,null,null,null,null,null,null,null,null,null,null,null,null,null,null,null,null,null,null,null,""]
[null,null,null,null,null,null,null,null,null,null,null,null,null,null,null,null,null,null,null,null,null,null,null,""]
[null,null,null,null,null,null,null,null,null,null,null,null,null,null,null,null,null,null,null,null,null,null,null,""]
[null,null,null,null,null,null,null,null,null,null,null,null,null,null,null,null,null,null,null,null,null,null,null,""]
[null,null,null,null,null,null,null,null,null,null,null,null,null,null,null,null,null,null,null,null,null,null,null,""]
[null,null,null,null,null,null,null,null,null,null,null,null,null,null,null,null,null,null,null,null,null,null,null,""]
[null,null,null,null,null,null,null,null,null,null,null,null,null,null,null,null,null,null,null,null,null,null,null,""]
[null,null,null,null,null,null,null,null,null,null,null,null,null,null,null,null,null,null,null,null,null,null,null,""]
[null,null,null,null,null,null,null,null,null,null,null,null,null,null,null,null,null,null,null,null,null,null,null,""]
[null,null,null,null,null,null,null,null,null,null,null,null,null,null,null,null,null,null,null,null,null,null,null,""]
[null,null,null,null,null,null,null,null,null,null,null,null,null,null,null,null,null,null,null,null,null,null,null,""]
[null,null,null,null,null,null,null,null,null,null,null,null,null,null,null,null,null,null,null,null,null,null,null,""]

{"sheet":"Charges Ext","index":38,"n_rows":163,"n_cols":45,"rows_kept":163,"cut":false,"hidden":false,"merged":[]}
["Qtt","Catégorie",null,"Designation","Commentaires","Prix unitaire €","Prix Unit. From $","Prix en $","Exprimé HT","TVA","Prix HT","Prix TTC","Sous totaux TTC","Pays d'origine",null,null,"*","FL","FC","B","CW",null,"*","FL","FC","B","CW",null,null,null,"Durée","Taux","Année 0","Année 1","Année 2","Année 3","Année 4","Année 5","Année 6","Année 7","Année 8","Année 9","Année 10","Année 11","Année 12"]
[null,null,null,null,null,null,null,null,null,null,null,null,null,null,null,null,null,null,null,null,null,null,null,null,null,null,null,null,null,null,null,null,0,1,2,3,4,5,6,7,8,9,10,11,12]
[null,null,null,null,null,null,null,null,null,null,"Total HT","Total TTC",null,null,null,null,null,null,null,null,null,null,{"$f":"W4/$K4","v":0.3493938423107818},{"$f":"X4/$K4","v":0.53731433373728377},{"$f":"Y4/$K4","v":0},{"$f":"Z4/$K4","v":6.686074856179744E-2},{"$f":"AA4/$K4","v":0},{"$f":"SUM(W3:AA3)","v":0.95356892460986298},null,null,null,null,"Total DAT ","Total DAT ","Total DAT ","Total DAT ","Total DAT ","Total DAT ","Total DAT ","Total DAT ","Total DAT ","Total DAT ","Total DAT ","Total DAT ","Total DAT "]
[null,null,null,null,null,null,null,null,null,null,{"$f":"L4*(100/(100 + 100*Pilotage!D14))","v":35895.5},{"$f":"SUM(M:M)","v":43074.6},null,null,null,null,null,null,null,null,null,null,{"$f":"SUM(W6:W145)","v":12541.666666666668},{"$f":"SUM(X6:X145)","v":19287.166666666668},{"$f":"SUM(Y6:Y145)","v":0},{"$f":"SUM(Z6:Z145)","v":2400},{"$f":"SUM(AA6:AA145)","v":0},{"$f":"SUM(W4:AA4)","v":34228.833333333336},null,null,null,null,{"$f":"SUM(AG9:AG145)","v":0},0,0,0,0,0,0,0,0,0,0,0,0]
[null,null,null,null,null,null,null,null,null,null,null,{"$f":"IF(L4<>SUM($L$6:$L$994),\"ERREUR Page Administration\",\"\")","v":""},null,null,null,null,null,null,null,null,null,null,null,null,null,null,null,{"$f":"K4-AB4","v":1666.6666666666642}]
[null,"Aléas",null,{"$f":"Pilotage!$D$17","v":0.02},null,null,{"$f":"IF(H6=\"\",\"\",H6*$G$4)","v":""},null,null,{"$f":"IF(A6=\"\",\"\",SUM(F6:G6)*Pilotage!$D$14*I6)","v":""},{"$f":"IF(A6=\"\",\"\",#REF!*(100/(100 + 100*Pilotage!$D$14)))","v":""},{"$f":"D6*SUM(K$8:K$747)*(1+Pilotage!$D$14)","v":844.60000000000014},{"$f":"L6","v":844.60000000000014},null,null,null,null,null,null,null,null,null,0,{"$f":"L6*Pilotage!D15","v":703.83333333333348},0,0,0]
[]
[null,"Internet/téléphone"]
[1,null,"Postaux",null,null,150,null,null,null,{"$f":"IF(A9=\"\",\"\",SUM(F9:G9)*Pilotage!$D$14*I9)","v":0},{"$f":"IF(A9=\"\",\"\",L9*(100/(100 + 100*Pilotage!$D$14)))","v":125},{"$f":"IF(A9=\"\",\"\",(SUM(F9:G9)+J9)*A9)","v":150},null,null,null,null,1,null,null,null,null,null,{"$f":"IF($A9<>\"\",Q9*$K9,\"\")","v":125},0,0,0,0,null,null,null,{"$f":"IF(A9<>\"\",IF($AD9<>\"\",VLOOKUP($AD9,Immobilisations[],7),0),\"\")","v":0},{"$f":"IF(A9<>\"\",IF($AD9<>\"\",VLOOKUP($AD9,Immobilisations[],8),\"\"),\"\")","v":""},{"$f":"IF(AND($A9<>\"\",$AF9<>\"\"),IF(AG$2=0,0,IF(ROUNDDOWN(AG$2/($AE9+1),0)=0,$K9*$AE9/100,0)),\"\")","v":""},"",{"$f":"IF(AND($A9<>\"\",$AF9<>\"\"),IF(AI$2=0,0,IF(ROUNDDOWN(AI$2/($AE9+1),0)=0,$K9*$AE9/100,0)),\"\")","v":""},"","","","","","","","","",""]
[null,null,null,null,null,null,{"$f":"IF(H10=\"\",\"\",H10*Pilotage!$D$16)","v":""},null,null,{"$f":"IF(A10=\"\",\"\",SUM(F10:G10)*Pilotage!$D$14*I10)","v":""},{"$f":"IF(A10=\"\",\"\",L10*(100/(100 + 100*Pilotage!$D$14)))","v":""},"",{"$f":"SUM(L9:L9)","v":150},null,null,null,null,null,null,null,null,null,"","","","","",null,null,null,{"$f":"IF(A10<>\"\",IF($AD10<>\"\",VLOOKUP($AD10,Immobilisations[],7),0),\"\")","v":""},{"$f":"IF(A10<>\"\",IF($AD10<>\"\",VLOOKUP($AD10,Immobilisations[],8),\"\"),\"\")","v":""},"","","","","","","","","","","","",""]
[null,"Locaux",null,null,null,null,{"$f":"IF(H11=\"\",\"\",H11*Pilotage!$D$16)","v":""},null,null,{"$f":"IF(A11=\"\",\"\",SUM(F11:G11)*Pilotage!$D$14*I11)","v":""},{"$f":"IF(A11=\"\",\"\",L11*(100/(100 + 100*Pilotage!$D$14)))","v":""},"",null,null,null,null,null,null,null,null,null,null,"","","","","",null,null,null,{"$f":"IF(A11<>\"\",IF($AD11<>\"\",VLOOKUP($AD11,Immobilisations[],7),0),\"\")","v":""},{"$f":"IF(A11<>\"\",IF($AD11<>\"\",VLOOKUP($AD11,Immobilisations[],8),\"\"),\"\")","v":""},"","","","","","","","","","","","",""]
[null,null,"Assurances",null,null,null,{"$f":"IF(H12=\"\",\"\",H12*Pilotage!$D$16)","v":""},null,null,{"$f":"IF(A12=\"\",\"\",SUM(F12:G12)*Pilotage!$D$14*I12)","v":""},{"$f":"IF(A12=\"\",\"\",L12*(100/(100 + 100*Pilotage!$D$14)))","v":""},"",null,null,null,null,null,null,null,null,null,null,"","","","","",null,null,null,{"$f":"IF(A12<>\"\",IF($AD12<>\"\",VLOOKUP($AD12,Immobilisations[],7),0),\"\")","v":""},{"$f":"IF(A12<>\"\",IF($AD12<>\"\",VLOOKUP($AD12,Immobilisations[],8),\"\"),\"\")","v":""},"","","","","","","","","","","","",""]
[12,null,null,"Assurance",null,50,{"$f":"IF(H13=\"\",\"\",H13*Pilotage!$D$16)","v":""},null,null,{"$f":"IF(A13=\"\",\"\",SUM(F13:G13)*Pilotage!$D$14*I13)","v":0},{"$f":"IF(A13=\"\",\"\",L13*(100/(100 + 100*Pilotage!$D$14)))","v":500},600,null,null,null,null,1,null,null,null,null,null,500,0,0,0,0,null,null,null,{"$f":"IF(A13<>\"\",IF($AD13<>\"\",VLOOKUP($AD13,Immobilisations[],7),0),\"\")","v":0},{"$f":"IF(A13<>\"\",IF($AD13<>\"\",VLOOKUP($AD13,Immobilisations[],8),\"\"),\"\")","v":""},"","","","","","","","","","","","",""]
[null,null,null,null,null,null,{"$f":"IF(H14=\"\",\"\",H14*Pilotage!$D$16)","v":""},null,null,{"$f":"IF(A14=\"\",\"\",SUM(F14:G14)*Pilotage!$D$14*I14)","v":""},{"$f":"IF(A14=\"\",\"\",L14*(100/(100 + 100*Pilotage!$D$14)))","v":""},"",{"$f":"SUM(L13:L13)","v":600},null,null,null,null,null,null,null,null,null,"","","","","",null,null,null,{"$f":"IF(A14<>\"\",IF($AD14<>\"\",VLOOKUP($AD14,Immobilisations[],7),0),\"\")","v":""},{"$f":"IF(A14<>\"\",IF($AD14<>\"\",VLOOKUP($AD14,Immobilisations[],8),\"\"),\"\")","v":""},"","","","","","","","","","","","",""]
[null,"Serveurs",null,null,null,null,{"$f":"IF(H15=\"\",\"\",H15*Pilotage!$D$16)","v":""},null,null,{"$f":"IF(A15=\"\",\"\",SUM(F15:G15)*Pilotage!$D$14*I15)","v":""},{"$f":"IF(A15=\"\",\"\",L15*(100/(100 + 100*Pilotage!$D$14)))","v":""},"",null,null,null,null,null,null,null,null,null,null,"","","","","",null,null,null,{"$f":"IF(A15<>\"\",IF($AD15<>\"\",VLOOKUP($AD15,Immobilisations[],7),0),\"\")","v":""},{"$f":"IF(A15<>\"\",IF($AD15<>\"\",VLOOKUP($AD15,Immobilisations[],8),\"\"),\"\")","v":""},"","","","","","","","","","","","",""]
[12,null,"Site web",null,null,200,{"$f":"IF(H16=\"\",\"\",H16*Pilotage!$D$16)","v":""},null,1,{"$f":"IF(A16=\"\",\"\",SUM(F16:G16)*Pilotage!$D$14*I16)","v":40},{"$f":"IF(A16=\"\",\"\",L16*(100/(100 + 100*Pilotage!$D$14)))","v":2400},2880,null,null,null,null,null,null,null,1,null,null,0,0,0,2400,0,null,null,null,{"$f":"IF(A16<>\"\",IF($AD16<>\"\",VLOOKUP($AD16,Immobilisations[],7),0),\"\")","v":0},{"$f":"IF(A16<>\"\",IF($AD16<>\"\",VLOOKUP($AD16,Immobilisations[],8),\"\"),\"\")","v":""},"","","","","","","","","","","","",""]
[0,null,"Boutique",null,null,300,null,null,2,{"$f":"IF(A17=\"\",\"\",SUM(F17:G17)*Pilotage!$D$14*I17)","v":120},{"$f":"IF(A17=\"\",\"\",L17*(100/(100 + 100*Pilotage!$D$14)))","v":0},0,null,null,null,null,null,1,null,0,null,null,0,0,0,0,0,null,null,null,{"$f":"IF(A17<>\"\",IF($AD17<>\"\",VLOOKUP($AD17,Immobilisations[],7),0),\"\")","v":0},{"$f":"IF(A17<>\"\",IF($AD17<>\"\",VLOOKUP($AD17,Immobilisations[],8),\"\"),\"\")","v":""},"","","","","","","","","","","","",""]
[12,null,"Services cloud",null,null,0,null,null,1,{"$f":"IF(A18=\"\",\"\",SUM(F18:G18)*Pilotage!$D$14*I18)","v":0},{"$f":"IF(A18=\"\",\"\",L18*(100/(100 + 100*Pilotage!$D$14)))","v":0},0,null,null,null,null,null,0.5,null,0.5,null,null,{"$f":"IF($A18<>\"\",Q18*$K18,\"\")","v":0},0,0,0,0,null,null,null,{"$f":"IF(A18<>\"\",IF($AD18<>\"\",VLOOKUP($AD18,Immobilisations[],7),0),\"\")","v":0},{"$f":"IF(A18<>\"\",IF($AD18<>\"\",VLOOKUP($AD18,Immobilisations[],8),\"\"),\"\")","v":""},"","","","","","","","","","","","",""]
[null,null,null,null,null,null,{"$f":"IF(H19=\"\",\"\",H19*Pilotage!$D$16)","v":""},null,null,{"$f":"IF(A19=\"\",\"\",SUM(F19:G19)*Pilotage!$D$14*I19)","v":""},{"$f":"IF(A19=\"\",\"\",L19*(100/(100 + 100*Pilotage!$D$14)))","v":""},"",{"$f":"SUM(L16:L18)","v":2880},null,null,null,null,null,null,null,null,null,"","","","","",null,null,null,{"$f":"IF(A19<>\"\",IF($AD19<>\"\",VLOOKUP($AD19,Immobilisations[],7),0),\"\")","v":""},{"$f":"IF(A19<>\"\",IF($AD19<>\"\",VLOOKUP($AD19,Immobilisations[],8),\"\"),\"\")","v":""},"","","","","","","","","","","","",""]
[null,"Divers",null,null,null,null,{"$f":"IF(H20=\"\",\"\",H20*Pilotage!$D$16)","v":""},null,null,{"$f":"IF(A20=\"\",\"\",SUM(F20:G20)*Pilotage!$D$14*I20)","v":""},{"$f":"IF(A20=\"\",\"\",L20*(100/(100 + 100*Pilotage!$D$14)))","v":""},"",null,null,null,null,null,null,null,null,null,null,"","","","","",null,null,null,{"$f":"IF(A20<>\"\",IF($AD20<>\"\",VLOOKUP($AD20,Immobilisations[],7),0),\"\")","v":""},{"$f":"IF(A20<>\"\",IF($AD20<>\"\",VLOOKUP($AD20,Immobilisations[],8),\"\"),\"\")","v":""},"","","","","","","","","","","","",""]
[null,null,"Prestations",null,null,null,{"$f":"IF(H21=\"\",\"\",H21*Pilotage!$D$16)","v":""},null,null,{"$f":"IF(A21=\"\",\"\",SUM(F21:G21)*Pilotage!$D$14*I21)","v":""},{"$f":"IF(A21=\"\",\"\",L21*(100/(100 + 100*Pilotage!$D$14)))","v":""},"",null,null,null,null,null,null,null,null,null,null,"","","","","",null,null,null,{"$f":"IF(A21<>\"\",IF($AD21<>\"\",VLOOKUP($AD21,Immobilisations[],7),0),\"\")","v":""},{"$f":"IF(A21<>\"\",IF($AD21<>\"\",VLOOKUP($AD21,Immobilisations[],8),\"\"),\"\")","v":""},"","","","","","","","","","","","",""]
[4,null,null,"Traducteur",null,500,{"$f":"IF(H22=\"\",\"\",H22*Pilotage!$D$16)","v":""},null,null,{"$f":"IF(A22=\"\",\"\",SUM(F22:G22)*Pilotage!$D$14*I22)","v":0},{"$f":"IF(A22=\"\",\"\",L22*(100/(100 + 100*Pilotage!$D$14)))","v":1666.6666666666667},2000,null,null,null,null,null,1,null,null,null,null,0,1666.6666666666667,0,0,0,null,null,null,{"$f":"IF(A22<>\"\",IF($AD22<>\"\",VLOOKUP($AD22,Immobilisations[],7),0),\"\")","v":0},{"$f":"IF(A22<>\"\",IF($AD22<>\"\",VLOOKUP($AD22,Immobilisations[],8),\"\"),\"\")","v":""},"","","","","","","","","","","","",""]
[1,null,null,"Salon",null,2000,null,null,null,{"$f":"IF(A23=\"\",\"\",SUM(F23:G23)*Pilotage!$D$14*I23)","v":0},{"$f":"IF(A23=\"\",\"\",L23*(100/(100 + 100*Pilotage!$D$14)))","v":1666.6666666666667},{"$f":"IF(A23=\"\",\"\",(SUM(F23:G23)+J23)*A23)","v":2000}]
[1,null,null,"Publicité",null,25000,{"$f":"IF(H24=\"\",\"\",H24*Pilotage!$D$16)","v":""},null,null,{"$f":"IF(A24=\"\",\"\",SUM(F24:G24)*Pilotage!$D$14*I24)","v":0},{"$f":"IF(A24=\"\",\"\",L24*(100/(100 + 100*Pilotage!$D$14)))","v":20833.333333333336},25000,null,null,null,null,0.5,0.5,null,null,null,null,10416.666666666668,10416.666666666668,0,0,0,null,null,null,{"$f":"IF(A24<>\"\",IF($AD24<>\"\",VLOOKUP($AD24,Immobilisations[],7),0),\"\")","v":0},{"$f":"IF(A24<>\"\",IF($AD24<>\"\",VLOOKUP($AD24,Immobilisations[],8),\"\"),\"\")","v":""},"","","","","","","","","","","","",""]
[1,null,null,"Comptable",null,3000,null,null,1,{"$f":"IF(A25=\"\",\"\",SUM(F25:G25)*Pilotage!$D$14*I25)","v":600},{"$f":"IF(A25=\"\",\"\",L25*(100/(100 + 100*Pilotage!$D$14)))","v":3000},3600,null,null,null,null,0.5,0.5,null,null,null,null,1500,1500,0,0,0,null,null,null,{"$f":"IF(A25<>\"\",IF($AD25<>\"\",VLOOKUP($AD25,Immobilisations[],7),0),\"\")","v":0},{"$f":"IF(A25<>\"\",IF($AD25<>\"\",VLOOKUP($AD25,Immobilisations[],8),\"\"),\"\")","v":""},"","","","","","","","","","","","",""]
[null,null,null,null,null,null,{"$f":"IF(H26=\"\",\"\",H26*Pilotage!$D$16)","v":""},null,null,{"$f":"IF(A26=\"\",\"\",SUM(F26:G26)*Pilotage!$D$14*I26)","v":""},{"$f":"IF(A26=\"\",\"\",L26*(100/(100 + 100*Pilotage!$D$14)))","v":""},"",{"$f":"SUM(L22:L25)","v":32600},null,null,null,null,null,null,null,null,null,"","","","","",null,null,null,{"$f":"IF(A26<>\"\",IF($AD26<>\"\",VLOOKUP($AD26,Immobilisations[],7),0),\"\")","v":""},{"$f":"IF(A26<>\"\",IF($AD26<>\"\",VLOOKUP($AD26,Immobilisations[],8),\"\"),\"\")","v":""},"","","","","","","","","","","","",""]
[null,null,"Voyages",null,null,null,{"$f":"IF(H27=\"\",\"\",H27*Pilotage!$D$16)","v":""},null,null,{"$f":"IF(A27=\"\",\"\",SUM(F27:G27)*Pilotage!$D$14*I27)","v":""},{"$f":"IF(A27=\"\",\"\",L27*(100/(100 + 100*Pilotage!$D$14)))","v":""},"",null,null,null,null,null,null,null,null,null,null,"","","","","",null,null,null,{"$f":"IF(A27<>\"\",IF($AD27<>\"\",VLOOKUP($AD27,Immobilisations[],7),0),\"\")","v":""},{"$f":"IF(A27<>\"\",IF($AD27<>\"\",VLOOKUP($AD27,Immobilisations[],8),\"\"),\"\")","v":""},"","","","","","","","","","","","",""]
[12,null,null,"locaux",null,500,{"$f":"IF(H28=\"\",\"\",H28*Pilotage!$D$16)","v":""},null,null,{"$f":"IF(A28=\"\",\"\",SUM(F28:G28)*Pilotage!$D$14*I28)","v":0},{"$f":"IF(A28=\"\",\"\",L28*(100/(100 + 100*Pilotage!$D$14)))","v":5000},6000,null,null,null,null,null,1,null,null,null,null,0,5000,0,0,0,null,null,null,{"$f":"IF(A28<>\"\",IF($AD28<>\"\",VLOOKUP($AD28,Immobilisations[],7),0),\"\")","v":0},{"$f":"IF(A28<>\"\",IF($AD28<>\"\",VLOOKUP($AD28,Immobilisations[],8),\"\"),\"\")","v":""},"","","","","","","","","","","","",""]
[0,null,null,"Internationnaux",null,3300,{"$f":"IF(H29=\"\",\"\",H29*Pilotage!$D$16)","v":""},null,null,{"$f":"IF(A29=\"\",\"\",SUM(F29:G29)*Pilotage!$D$14*I29)","v":0},{"$f":"IF(A29=\"\",\"\",L29*(100/(100 + 100*Pilotage!$D$14)))","v":0},0,null,null,null,null,null,1,null,null,null,null,0,0,0,0,0,null,null,null,{"$f":"IF(A29<>\"\",IF($AD29<>\"\",VLOOKUP($AD29,Immobilisations[],7),0),\"\")","v":0},{"$f":"IF(A29<>\"\",IF($AD29<>\"\",VLOOKUP($AD29,Immobilisations[],8),\"\"),\"\")","v":""},"","","","","","","","","","","","",""]
[null,null,null,null,null,null,{"$f":"IF(H30=\"\",\"\",H30*Pilotage!$D$16)","v":""},null,null,{"$f":"IF(A30=\"\",\"\",SUM(F30:G30)*Pilotage!$D$14*I30)","v":""},{"$f":"IF(A30=\"\",\"\",L30*(100/(100 + 100*Pilotage!$D$14)))","v":""},"",{"$f":"SUM(L28:L29)","v":6000},null,null,null,null,null,null,null,null,null,"","","","","",null,null,null,{"$f":"IF(A30<>\"\",IF($AD30<>\"\",VLOOKUP($AD30,Immobilisations[],7),0),\"\")","v":""},{"$f":"IF(A30<>\"\",IF($AD30<>\"\",VLOOKUP($AD30,Immobilisations[],8),\"\"),\"\")","v":""},"","","","","","","","","","","","",""]
[0,null,"Frais de reception",null,null,2000,{"$f":"IF(H31=\"\",\"\",H31*Pilotage!$D$16)","v":""},null,null,{"$f":"IF(A31=\"\",\"\",SUM(F31:G31)*Pilotage!$D$14*I31)","v":0},{"$f":"IF(A31=\"\",\"\",L31*(100/(100 + 100*Pilotage!$D$14)))","v":0},0,null,null,null,null,null,1,null,null,null,null,0,0,0,0,0,null,null,null,{"$f":"IF(A31<>\"\",IF($AD31<>\"\",VLOOKUP($AD31,Immobilisations[],7),0),\"\")","v":0},{"$f":"IF(A31<>\"\",IF($AD31<>\"\",VLOOKUP($AD31,Immobilisations[],8),\"\"),\"\")","v":""},{"$f":"IF(AND($A31<>\"\",$AF31<>\"\"),IF(AG$2=0,0,IF(ROUNDDOWN(AG$2/($AE31+1),0)=0,$K31*$AE31/100,0)),\"\")","v":""},"","","","","","","","","","","",""]
[null,null,null,null,null,null,{"$f":"IF(H32=\"\",\"\",H32*Pilotage!$D$16)","v":""},null,null,{"$f":"IF(A32=\"\",\"\",SUM(F32:G32)*Pilotage!$D$14*I32)","v":""},{"$f":"IF(A32=\"\",\"\",L32*(100/(100 + 100*Pilotage!$D$14)))","v":""},"",{"$f":"L31","v":0},null,null,null,null,null,null,null,null,null,"","","","","",null,null,null,{"$f":"IF(A32<>\"\",IF($AD32<>\"\",VLOOKUP($AD32,Immobilisations[],7),0),\"\")","v":""},{"$f":"IF(A32<>\"\",IF($AD32<>\"\",VLOOKUP($AD32,Immobilisations[],8),\"\"),\"\")","v":""},"","","","","","","","","","","","",""]
[0,null,"Formations",null,null,1500,{"$f":"IF(H33=\"\",\"\",H33*Pilotage!$D$16)","v":""},null,null,{"$f":"IF(A33=\"\",\"\",SUM(F33:G33)*Pilotage!$D$14*I33)","v":0},{"$f":"IF(A33=\"\",\"\",L33*(100/(100 + 100*Pilotage!$D$14)))","v":0},0,null,null,null,null,null,1,null,null,null,null,0,0,0,0,0,null,null,null,{"$f":"IF(A33<>\"\",IF($AD33<>\"\",VLOOKUP($AD33,Immobilisations[],7),0),\"\")","v":0},{"$f":"IF(A33<>\"\",IF($AD33<>\"\",VLOOKUP($AD33,Immobilisations[],8),\"\"),\"\")","v":""},"","","","","","","","","","","","",""]
[null,null,null,null,null,null,{"$f":"IF(H34=\"\",\"\",H34*Pilotage!$D$16)","v":""},null,null,{"$f":"IF(A34=\"\",\"\",SUM(F34:G34)*Pilotage!$D$14*I34)","v":""},{"$f":"IF(A34=\"\",\"\",L34*(100/(100 + 100*Pilotage!$D$14)))","v":""},"",{"$f":"SUM(L33)","v":0},null,null,null,null,null,null,null,null,null,{"$f":"IF($A34<>\"\",#REF!*$K34,\"\")","v":""},{"$f":"IF($A34<>\"\",#REF!*$K34,\"\")","v":""},"","","",null,null,null,{"$f":"IF(A34<>\"\",IF($AD34<>\"\",VLOOKUP($AD34,Immobilisations[],7),0),\"\")","v":""},{"$f":"IF(A34<>\"\",IF($AD34<>\"\",VLOOKUP($AD34,Immobilisations[],8),\"\"),\"\")","v":""},"","","","","","","","","","","","",""]
[null,null,null,null,null,null,null,null,null,null,null,null,null,null,null,null,null,null,null,null,null,null,{"$f":"IF($A35<>\"\",#REF!*$K35,\"\")","v":""},{"$f":"IF($A35<>\"\",#REF!*$K35,\"\")","v":""},"","","",null,null,null,{"$f":"IF(A35<>\"\",IF($AD35<>\"\",VLOOKUP($AD35,Immobilisations[],7),0),\"\")","v":""},{"$f":"IF(A35<>\"\",IF($AD35<>\"\",VLOOKUP($AD35,Immobilisations[],8),\"\"),\"\")","v":""},"","","","","","","","","","","","",""]
[null,null,null,null,null,null,{"$f":"IF(H36=\"\",\"\",H36*Pilotage!$D$16)","v":""},null,null,{"$f":"IF(A36=\"\",\"\",SUM(F36:G36)*Pilotage!$D$14*I36)","v":""},{"$f":"IF(A36=\"\",\"\",L36*(100/(100 + 100*Pilotage!$D$14)))","v":""},null,null,null,null,null,null,null,null,null,null,null,"","","","","",null,null,null,{"$f":"IF(A36<>\"\",IF($AD36<>\"\",VLOOKUP($AD36,Immobilisations[],7),0),\"\")","v":""},{"$f":"IF(A36<>\"\",IF($AD36<>\"\",VLOOKUP($AD36,Immobilisations[],8),\"\"),\"\")","v":""},"","","","","","","","","","","","",""]
[null,null,null,null,null,null,{"$f":"IF(H37=\"\",\"\",H37*$G$4)","v":""},null,null,{"$f":"IF(A37=\"\",\"\",SUM(F37:G37)*Pilotage!$E$13*I37)","v":""},{"$f":"IF(A37=\"\",\"\",L37*(100/(100 + 100*Pilotage!$E$13)))","v":""},{"$f":"IF(A37=\"\",\"\",(SUM(F37:G37)+J37)*A37)","v":""},null,null,null,null,null,null,null,null,null,null,"","","","","",null,null,null,{"$f":"IF(A37<>\"\",IF($AD37<>\"\",VLOOKUP($AD37,Immobilisations[],7),0),\"\")","v":""},{"$f":"IF(A37<>\"\",IF($AD37<>\"\",VLOOKUP($AD37,Immobilisations[],8),\"\"),\"\")","v":""},"","","","","","","","","","","","",""]
[null,null,null,null,null,null,"",null,null,{"$f":"IF(A38=\"\",\"\",SUM(F38:G38)*Pilotage!$E$13*I38)","v":""},{"$f":"IF(A38=\"\",\"\",L38*(100/(100 + 100*Pilotage!$E$13)))","v":""},{"$f":"IF(A38=\"\",\"\",(SUM(F38:G38)+J38)*A38)","v":""},null,null,null,null,null,null,null,null,null,null,"","","","","",null,null,null,{"$f":"IF(A38<>\"\",IF($AD38<>\"\",VLOOKUP($AD38,Immobilisations[],7),0),\"\")","v":""},{"$f":"IF(A38<>\"\",IF($AD38<>\"\",VLOOKUP($AD38,Immobilisations[],8),\"\"),\"\")","v":""},"","","","","","","","","","","","",""]
[null,null,null,null,null,null,"",null,null,{"$f":"IF(A39=\"\",\"\",SUM(F39:G39)*Pilotage!$E$13*I39)","v":""},{"$f":"IF(A39=\"\",\"\",L39*(100/(100 + 100*Pilotage!$E$13)))","v":""},{"$f":"IF(A39=\"\",\"\",(SUM(F39:G39)+J39)*A39)","v":""},null,null,null,null,null,null,null,null,null,null,"","","","","",null,null,null,{"$f":"IF(A39<>\"\",IF($AD39<>\"\",VLOOKUP($AD39,Immobilisations[],7),0),\"\")","v":""},{"$f":"IF(A39<>\"\",IF($AD39<>\"\",VLOOKUP($AD39,Immobilisations[],8),\"\"),\"\")","v":""},"","","","","","","","","","","","",""]
[null,null,null,null,null,null,"",null,null,{"$f":"IF(A40=\"\",\"\",SUM(F40:G40)*Pilotage!$E$13*I40)","v":""},{"$f":"IF(A40=\"\",\"\",L40*(100/(100 + 100*Pilotage!$E$13)))","v":""},{"$f":"IF(A40=\"\",\"\",(SUM(F40:G40)+J40)*A40)","v":""},null,null,null,null,null,null,null,null,null,null,"","","","","",null,null,null,{"$f":"IF(A40<>\"\",IF($AD40<>\"\",VLOOKUP($AD40,Immobilisations[],7),0),\"\")","v":""},{"$f":"IF(A40<>\"\",IF($AD40<>\"\",VLOOKUP($AD40,Immobilisations[],8),\"\"),\"\")","v":""},"","","","","","","","","","","","",""]
[null,null,null,null,null,null,"",null,null,{"$f":"IF(A41=\"\",\"\",SUM(F41:G41)*Pilotage!$E$13*I41)","v":""},null,{"$f":"IF(A41=\"\",\"\",(SUM(F41:G41)+J41)*A41)","v":""},null,null,null,null,null,null,null,null,null,null,"","","","","",null,null,null,{"$f":"IF(A41<>\"\",IF($AD41<>\"\",VLOOKUP($AD41,Immobilisations[],7),0),\"\")","v":""},{"$f":"IF(A41<>\"\",IF($AD41<>\"\",VLOOKUP($AD41,Immobilisations[],8),\"\"),\"\")","v":""},"","","","","","","","","","","","",""]
[null,null,null,null,null,null,"",null,null,{"$f":"IF(A42=\"\",\"\",SUM(F42:G42)*Pilotage!$E$13*I42)","v":""},null,"",null,null,null,null,null,null,null,null,null,null,"","","","","",null,null,null,{"$f":"IF(A42<>\"\",IF($AD42<>\"\",VLOOKUP($AD42,Immobilisations[],7),0),\"\")","v":""},{"$f":"IF(A42<>\"\",IF($AD42<>\"\",VLOOKUP($AD42,Immobilisations[],8),\"\"),\"\")","v":""},"","","","","","","","","","","","",""]
[null,null,null,null,null,null,"",null,null,{"$f":"IF(A43=\"\",\"\",SUM(F43:G43)*Pilotage!$E$13*I43)","v":""},null,"",null,null,null,null,null,null,null,null,null,null,"","","","","",null,null,null,{"$f":"IF(A43<>\"\",IF($AD43<>\"\",VLOOKUP($AD43,Immobilisations[],7),0),\"\")","v":""},{"$f":"IF(A43<>\"\",IF($AD43<>\"\",VLOOKUP($AD43,Immobilisations[],8),\"\"),\"\")","v":""},"","","","","","","","","","","","",""]
[null,null,null,null,null,null,"",null,null,{"$f":"IF(A44=\"\",\"\",SUM(F44:G44)*Pilotage!$E$13*I44)","v":""},null,"",null,null,null,null,null,null,null,null,null,null,"","","","","",null,null,null,{"$f":"IF(A44<>\"\",IF($AD44<>\"\",VLOOKUP($AD44,Immobilisations[],7),0),\"\")","v":""},{"$f":"IF(A44<>\"\",IF($AD44<>\"\",VLOOKUP($AD44,Immobilisations[],8),\"\"),\"\")","v":""},"","","","","","","","","","","","",""]
[null,null,null,null,null,null,"",null,null,{"$f":"IF(A45=\"\",\"\",SUM(F45:G45)*Pilotage!$E$13*I45)","v":""},null,"",null,null,null,null,null,null,null,null,null,null,"","","","","",null,null,null,{"$f":"IF(A45<>\"\",IF($AD45<>\"\",VLOOKUP($AD45,Immobilisations[],7),0),\"\")","v":""},{"$f":"IF(A45<>\"\",IF($AD45<>\"\",VLOOKUP($AD45,Immobilisations[],8),\"\"),\"\")","v":""},"","","","","","","","","","","","",""]
[null,null,null,null,null,null,"",null,null,{"$f":"IF(A46=\"\",\"\",SUM(F46:G46)*Pilotage!$E$13*I46)","v":""},null,"",null,null,null,null,null,null,null,null,null,null,"","","","","",null,null,null,{"$f":"IF(A46<>\"\",IF($AD46<>\"\",VLOOKUP($AD46,Immobilisations[],7),0),\"\")","v":""},{"$f":"IF(A46<>\"\",IF($AD46<>\"\",VLOOKUP($AD46,Immobilisations[],8),\"\"),\"\")","v":""},"","","","","","","","","","","","",""]
[null,null,null,null,null,null,"",null,null,{"$f":"IF(A47=\"\",\"\",SUM(F47:G47)*Pilotage!$E$13*I47)","v":""},null,"",null,null,null,null,null,null,null,null,null,null,"","","","","",null,null,null,{"$f":"IF(A47<>\"\",IF($AD47<>\"\",VLOOKUP($AD47,Immobilisations[],7),0),\"\")","v":""},{"$f":"IF(A47<>\"\",IF($AD47<>\"\",VLOOKUP($AD47,Immobilisations[],8),\"\"),\"\")","v":""},"","","","","","","","","","","","",""]
[null,null,null,null,null,null,"",null,null,{"$f":"IF(A48=\"\",\"\",SUM(F48:G48)*Pilotage!$E$13*I48)","v":""},null,"",null,null,null,null,null,null,null,null,null,null,"","","","","",null,null,null,{"$f":"IF(A48<>\"\",IF($AD48<>\"\",VLOOKUP($AD48,Immobilisations[],7),0),\"\")","v":""},{"$f":"IF(A48<>\"\",IF($AD48<>\"\",VLOOKUP($AD48,Immobilisations[],8),\"\"),\"\")","v":""},"","","","","","","","","","","","",""]
[null,null,null,null,null,null,"",null,null,{"$f":"IF(A49=\"\",\"\",SUM(F49:G49)*Pilotage!$E$13*I49)","v":""},null,"",null,null,null,null,null,null,null,null,null,null,"","","","","",null,null,null,{"$f":"IF(A49<>\"\",IF($AD49<>\"\",VLOOKUP($AD49,Immobilisations[],7),0),\"\")","v":""},{"$f":"IF(A49<>\"\",IF($AD49<>\"\",VLOOKUP($AD49,Immobilisations[],8),\"\"),\"\")","v":""},"","","","","","","","","","","","",""]
[null,null,null,null,null,null,null,null,null,{"$f":"IF(A50=\"\",\"\",SUM(F50:G50)*Pilotage!$E$13*I50)","v":""},null,"",null,null,null,null,null,null,null,null,null,null,"","","","","",null,null,null,{"$f":"IF(A50<>\"\",IF($AD50<>\"\",VLOOKUP($AD50,Immobilisations[],7),0),\"\")","v":""},{"$f":"IF(A50<>\"\",IF($AD50<>\"\",VLOOKUP($AD50,Immobilisations[],8),\"\"),\"\")","v":""},"","","","","","","","",{"$f":"IF(AND($A50<>\"\",$AF50<>\"\"),IF(AO$2=0,0,IF(ROUNDDOWN(AO$2/($AE50+1),0)=0,$K50*$AE50/100,0)),\"\")","v":""},{"$f":"IF(AND($A50<>\"\",$AF50<>\"\"),IF(AP$2=0,0,IF(ROUNDDOWN(AP$2/($AE50+1),0)=0,$K50*$AE50/100,0)),\"\")","v":""},{"$f":"IF(AND($A50<>\"\",$AF50<>\"\"),IF(AQ$2=0,0,IF(ROUNDDOWN(AQ$2/($AE50+1),0)=0,$K50*$AE50/100,0)),\"\")","v":""},{"$f":"IF(AND($A50<>\"\",$AF50<>\"\"),IF(AR$2=0,0,IF(ROUNDDOWN(AR$2/($AE50+1),0)=0,$K50*$AE50/100,0)),\"\")","v":""},{"$f":"IF(AND($A50<>\"\",$AF50<>\"\"),IF(AS$2=0,0,IF(ROUNDDOWN(AS$2/($AE50+1),0)=0,$K50*$AE50/100,0)),\"\")","v":""}]
[null,null,null,null,null,null,null,null,null,null,null,null,null,null,null,null,null,null,null,null,null,null,"","","","","",null,null,null,{"$f":"IF(A51<>\"\",IF($AD51<>\"\",VLOOKUP($AD51,Immobilisations[],7),0),\"\")","v":""},{"$f":"IF(A51<>\"\",IF($AD51<>\"\",VLOOKUP($AD51,Immobilisations[],8),\"\"),\"\")","v":""},{"$f":"IF(AND($A51<>\"\",$AF51<>\"\"),IF(AG$2=0,0,IF(ROUNDDOWN(AG$2/($AE51+1),0)=0,$K51*$AE51/100,0)),\"\")","v":""},"","","","","","","","","","","",""]
[null,null,null,null,null,null,null,null,null,null,null,null,null,null,null,null,null,null,null,null,null,null,"","","","","",null,null,null,{"$f":"IF(A52<>\"\",IF($AD52<>\"\",VLOOKUP($AD52,Immobilisations[],7),0),\"\")","v":""},{"$f":"IF(A52<>\"\",IF($AD52<>\"\",VLOOKUP($AD52,Immobilisations[],8),\"\"),\"\")","v":""},"","","","","","","","","","","","",""]
[null,null,null,null,null,null,null,null,null,null,null,null,null,null,null,null,null,null,null,null,null,null,"","","","","",null,null,null,{"$f":"IF(A53<>\"\",IF($AD53<>\"\",VLOOKUP($AD53,Immobilisations[],7),0),\"\")","v":""},{"$f":"IF(A53<>\"\",IF($AD53<>\"\",VLOOKUP($AD53,Immobilisations[],8),\"\"),\"\")","v":""},"","","","","","","","","","","","",""]
[null,null,null,null,null,null,null,null,null,null,null,null,null,null,null,null,null,null,null,null,null,null,"","","","","",null,null,null,{"$f":"IF(A54<>\"\",IF($AD54<>\"\",VLOOKUP($AD54,Immobilisations[],7),0),\"\")","v":""},{"$f":"IF(A54<>\"\",IF($AD54<>\"\",VLOOKUP($AD54,Immobilisations[],8),\"\"),\"\")","v":""},"","","","","","","","","","","","",""]
[null,null,null,null,null,null,null,null,null,null,null,null,null,null,null,null,null,null,null,null,null,null,"","","","","",null,null,null,{"$f":"IF(A55<>\"\",IF($AD55<>\"\",VLOOKUP($AD55,Immobilisations[],7),0),\"\")","v":""},{"$f":"IF(A55<>\"\",IF($AD55<>\"\",VLOOKUP($AD55,Immobilisations[],8),\"\"),\"\")","v":""},"","","","","","","","","","","","",""]
[null,null,null,null,null,null,null,null,null,null,null,null,null,null,null,null,null,null,null,null,null,null,"","","","","",null,null,null,{"$f":"IF(A56<>\"\",IF($AD56<>\"\",VLOOKUP($AD56,Immobilisations[],7),0),\"\")","v":""},{"$f":"IF(A56<>\"\",IF($AD56<>\"\",VLOOKUP($AD56,Immobilisations[],8),\"\"),\"\")","v":""},"","","","","","","","","","","","",""]
[null,null,null,null,null,null,null,null,null,null,null,null,null,null,null,null,null,null,null,null,null,null,"","","","","",null,null,null,{"$f":"IF(A57<>\"\",IF($AD57<>\"\",VLOOKUP($AD57,Immobilisations[],7),0),\"\")","v":""},{"$f":"IF(A57<>\"\",IF($AD57<>\"\",VLOOKUP($AD57,Immobilisations[],8),\"\"),\"\")","v":""},"","","","","","","","","","","","",""]
[null,null,null,null,null,null,null,null,null,null,null,null,null,null,null,null,null,null,null,null,null,null,"","","","","",null,null,null,{"$f":"IF(A58<>\"\",IF($AD58<>\"\",VLOOKUP($AD58,Immobilisations[],7),0),\"\")","v":""},{"$f":"IF(A58<>\"\",IF($AD58<>\"\",VLOOKUP($AD58,Immobilisations[],8),\"\"),\"\")","v":""},"","","","","","","","","","","","",""]
[null,null,null,null,null,null,null,null,null,null,null,null,null,null,null,null,null,null,null,null,null,null,"","","","","",null,null,null,{"$f":"IF(A59<>\"\",IF($AD59<>\"\",VLOOKUP($AD59,Immobilisations[],7),0),\"\")","v":""},{"$f":"IF(A59<>\"\",IF($AD59<>\"\",VLOOKUP($AD59,Immobilisations[],8),\"\"),\"\")","v":""},"","","","","","","","","","","","",""]
[null,null,null,null,null,null,null,null,null,null,null,null,null,null,null,null,null,null,null,null,null,null,"","","","","",null,null,null,{"$f":"IF(A60<>\"\",IF($AD60<>\"\",VLOOKUP($AD60,Immobilisations[],7),0),\"\")","v":""},{"$f":"IF(A60<>\"\",IF($AD60<>\"\",VLOOKUP($AD60,Immobilisations[],8),\"\"),\"\")","v":""},"","","","","","","","","","","","",""]
[null,null,null,null,null,null,null,null,null,null,null,null,null,null,null,null,null,null,null,null,null,null,"","","","","",null,null,null,{"$f":"IF(A61<>\"\",IF($AD61<>\"\",VLOOKUP($AD61,Immobilisations[],7),0),\"\")","v":""},{"$f":"IF(A61<>\"\",IF($AD61<>\"\",VLOOKUP($AD61,Immobilisations[],8),\"\"),\"\")","v":""},"","","","","","","","","","","","",""]
[null,null,null,null,null,null,null,null,null,null,null,null,null,null,null,null,null,null,null,null,null,null,"","","","","",null,null,null,{"$f":"IF(A62<>\"\",IF($AD62<>\"\",VLOOKUP($AD62,Immobilisations[],7),0),\"\")","v":""},{"$f":"IF(A62<>\"\",IF($AD62<>\"\",VLOOKUP($AD62,Immobilisations[],8),\"\"),\"\")","v":""},"","","","","","","","","","","","",""]
[null,null,null,null,null,null,null,null,null,null,null,null,null,null,null,null,null,null,null,null,null,null,"","","","","",null,null,null,{"$f":"IF(A63<>\"\",IF($AD63<>\"\",VLOOKUP($AD63,Immobilisations[],7),0),\"\")","v":""},{"$f":"IF(A63<>\"\",IF($AD63<>\"\",VLOOKUP($AD63,Immobilisations[],8),\"\"),\"\")","v":""},"","","","","","","","","","","","",""]
[null,null,null,null,null,null,null,null,null,null,null,null,null,null,null,null,null,null,null,null,null,null,"","","","","",null,null,null,{"$f":"IF(A64<>\"\",IF($AD64<>\"\",VLOOKUP($AD64,Immobilisations[],7),0),\"\")","v":""},{"$f":"IF(A64<>\"\",IF($AD64<>\"\",VLOOKUP($AD64,Immobilisations[],8),\"\"),\"\")","v":""},"","","","","","","","","","","","",""]
[null,null,null,null,null,null,null,null,null,null,null,null,null,null,null,null,null,null,null,null,null,null,"","","","","",null,null,null,{"$f":"IF(A65<>\"\",IF($AD65<>\"\",VLOOKUP($AD65,Immobilisations[],7),0),\"\")","v":""},{"$f":"IF(A65<>\"\",IF($AD65<>\"\",VLOOKUP($AD65,Immobilisations[],8),\"\"),\"\")","v":""},"","","","","","","","","","","","",""]
[null,null,null,null,null,null,null,null,null,null,null,null,null,null,null,null,null,null,null,null,null,null,"","","","","",null,null,null,{"$f":"IF(A66<>\"\",IF($AD66<>\"\",VLOOKUP($AD66,Immobilisations[],7),0),\"\")","v":""},{"$f":"IF(A66<>\"\",IF($AD66<>\"\",VLOOKUP($AD66,Immobilisations[],8),\"\"),\"\")","v":""},"","","","","","","","","","","","",""]
[null,null,null,null,null,null,null,null,null,null,null,null,null,null,null,null,null,null,null,null,null,null,"","","","","",null,null,null,{"$f":"IF(A67<>\"\",IF($AD67<>\"\",VLOOKUP($AD67,Immobilisations[],7),0),\"\")","v":""},{"$f":"IF(A67<>\"\",IF($AD67<>\"\",VLOOKUP($AD67,Immobilisations[],8),\"\"),\"\")","v":""},"","","","","","","","","","","","",""]
[null,null,null,null,null,null,null,null,null,null,null,null,null,null,null,null,null,null,null,null,null,null,"","","","","",null,null,null,{"$f":"IF(A68<>\"\",IF($AD68<>\"\",VLOOKUP($AD68,Immobilisations[],7),0),\"\")","v":""},{"$f":"IF(A68<>\"\",IF($AD68<>\"\",VLOOKUP($AD68,Immobilisations[],8),\"\"),\"\")","v":""},"","","","","","","","","","","","",""]
[null,null,null,null,null,null,null,null,null,null,null,null,null,null,null,null,null,null,null,null,null,null,"","","","","",null,null,null,{"$f":"IF(A69<>\"\",IF($AD69<>\"\",VLOOKUP($AD69,Immobilisations[],7),0),\"\")","v":""},{"$f":"IF(A69<>\"\",IF($AD69<>\"\",VLOOKUP($AD69,Immobilisations[],8),\"\"),\"\")","v":""},"","","","","","","","","","","","",""]
[null,null,null,null,null,null,null,null,null,null,null,null,null,null,null,null,null,null,null,null,null,null,{"$f":"IF($A70<>\"\",Q70*$K70,\"\")","v":""},"","","","",null,null,null,{"$f":"IF(A70<>\"\",IF($AD70<>\"\",VLOOKUP($AD70,Immobilisations[],7),0),\"\")","v":""},{"$f":"IF(A70<>\"\",IF($AD70<>\"\",VLOOKUP($AD70,Immobilisations[],8),\"\"),\"\")","v":""},"","","","","","","","",{"$f":"IF(AND($A70<>\"\",$AF70<>\"\"),IF(AO$2=0,0,IF(ROUNDDOWN(AO$2/($AE70+1),0)=0,$K70*$AE70/100,0)),\"\")","v":""},{"$f":"IF(AND($A70<>\"\",$AF70<>\"\"),IF(AP$2=0,0,IF(ROUNDDOWN(AP$2/($AE70+1),0)=0,$K70*$AE70/100,0)),\"\")","v":""},{"$f":"IF(AND($A70<>\"\",$AF70<>\"\"),IF(AQ$2=0,0,IF(ROUNDDOWN(AQ$2/($AE70+1),0)=0,$K70*$AE70/100,0)),\"\")","v":""},{"$f":"IF(AND($A70<>\"\",$AF70<>\"\"),IF(AR$2=0,0,IF(ROUNDDOWN(AR$2/($AE70+1),0)=0,$K70*$AE70/100,0)),\"\")","v":""},{"$f":"IF(AND($A70<>\"\",$AF70<>\"\"),IF(AS$2=0,0,IF(ROUNDDOWN(AS$2/($AE70+1),0)=0,$K70*$AE70/100,0)),\"\")","v":""}]
[null,null,null,null,null,null,null,null,null,null,null,null,null,null,null,null,null,null,null,null,null,null,"","","","","",null,null,null,{"$f":"IF(A71<>\"\",IF($AD71<>\"\",VLOOKUP($AD71,Immobilisations[],7),0),\"\")","v":""},{"$f":"IF(A71<>\"\",IF($AD71<>\"\",VLOOKUP($AD71,Immobilisations[],8),\"\"),\"\")","v":""},{"$f":"IF(AND($A71<>\"\",$AF71<>\"\"),IF(AG$2=0,0,IF(ROUNDDOWN(AG$2/($AE71+1),0)=0,$K71*$AE71/100,0)),\"\")","v":""},"","","","","","","","","","","",""]
[null,null,null,null,null,null,null,null,null,null,null,null,null,null,null,null,null,null,null,null,null,null,"","","","","",null,null,null,{"$f":"IF(A72<>\"\",IF($AD72<>\"\",VLOOKUP($AD72,Immobilisations[],7),0),\"\")","v":""},{"$f":"IF(A72<>\"\",IF($AD72<>\"\",VLOOKUP($AD72,Immobilisations[],8),\"\"),\"\")","v":""},"","","","","","","","","","","","",""]
[null,null,null,null,null,null,null,null,null,null,null,null,null,null,null,null,null,null,null,null,null,null,"","","","","",null,null,null,{"$f":"IF(A73<>\"\",IF($AD73<>\"\",VLOOKUP($AD73,Immobilisations[],7),0),\"\")","v":""},{"$f":"IF(A73<>\"\",IF($AD73<>\"\",VLOOKUP($AD73,Immobilisations[],8),\"\"),\"\")","v":""},"","","","","","","","","","","","",""]
[null,null,null,null,null,null,null,null,null,null,null,null,null,null,null,null,null,null,null,null,null,null,"","","","","",null,null,null,{"$f":"IF(A74<>\"\",IF($AD74<>\"\",VLOOKUP($AD74,Immobilisations[],7),0),\"\")","v":""},{"$f":"IF(A74<>\"\",IF($AD74<>\"\",VLOOKUP($AD74,Immobilisations[],8),\"\"),\"\")","v":""},"","","","","","","","","","","","",""]
[null,null,null,null,null,null,null,null,null,null,null,null,null,null,null,null,null,null,null,null,null,null,"","","","","",null,null,null,{"$f":"IF(A75<>\"\",IF($AD75<>\"\",VLOOKUP($AD75,Immobilisations[],7),0),\"\")","v":""},{"$f":"IF(A75<>\"\",IF($AD75<>\"\",VLOOKUP($AD75,Immobilisations[],8),\"\"),\"\")","v":""},"","","","","","","","","","","","",""]
[null,null,null,null,null,null,null,null,null,null,null,null,null,null,null,null,null,null,null,null,null,null,"","","","","",null,null,null,{"$f":"IF(A76<>\"\",IF($AD76<>\"\",VLOOKUP($AD76,Immobilisations[],7),0),\"\")","v":""},{"$f":"IF(A76<>\"\",IF($AD76<>\"\",VLOOKUP($AD76,Immobilisations[],8),\"\"),\"\")","v":""},"","","","","","","","","","","","",""]
[null,null,null,null,null,null,null,null,null,null,null,null,null,null,null,null,null,null,null,null,null,null,"","","","","",null,null,null,{"$f":"IF(A77<>\"\",IF($AD77<>\"\",VLOOKUP($AD77,Immobilisations[],7),0),\"\")","v":""},{"$f":"IF(A77<>\"\",IF($AD77<>\"\",VLOOKUP($AD77,Immobilisations[],8),\"\"),\"\")","v":""},"","","","","","","","","","","","",""]
[null,null,null,null,null,null,null,null,null,null,null,null,null,null,null,null,null,null,null,null,null,null,"","","","","",null,null,null,{"$f":"IF(A78<>\"\",IF($AD78<>\"\",VLOOKUP($AD78,Immobilisations[],7),0),\"\")","v":""},{"$f":"IF(A78<>\"\",IF($AD78<>\"\",VLOOKUP($AD78,Immobilisations[],8),\"\"),\"\")","v":""},"","","","","","","","","","","","",""]
[null,null,null,null,null,null,null,null,null,null,null,null,null,null,null,null,null,null,null,null,null,null,"","","","","",null,null,null,{"$f":"IF(A79<>\"\",IF($AD79<>\"\",VLOOKUP($AD79,Immobilisations[],7),0),\"\")","v":""},{"$f":"IF(A79<>\"\",IF($AD79<>\"\",VLOOKUP($AD79,Immobilisations[],8),\"\"),\"\")","v":""},"","","","","","","","","","","","",""]
[null,null,null,null,null,null,null,null,null,null,null,null,null,null,null,null,null,null,null,null,null,null,"","","","","",null,null,null,{"$f":"IF(A80<>\"\",IF($AD80<>\"\",VLOOKUP($AD80,Immobilisations[],7),0),\"\")","v":""},{"$f":"IF(A80<>\"\",IF($AD80<>\"\",VLOOKUP($AD80,Immobilisations[],8),\"\"),\"\")","v":""},"","","","","","","","","","","","",""]
[null,null,null,null,null,null,null,null,null,null,null,null,null,null,null,null,null,null,null,null,null,null,"","","","","",null,null,null,{"$f":"IF(A81<>\"\",IF($AD81<>\"\",VLOOKUP($AD81,Immobilisations[],7),0),\"\")","v":""},{"$f":"IF(A81<>\"\",IF($AD81<>\"\",VLOOKUP($AD81,Immobilisations[],8),\"\"),\"\")","v":""},"","","","","","","","","","","","",""]
[null,null,null,null,null,null,null,null,null,null,null,null,null,null,null,null,null,null,null,null,null,null,"","","","","",null,null,null,{"$f":"IF(A82<>\"\",IF($AD82<>\"\",VLOOKUP($AD82,Immobilisations[],7),0),\"\")","v":""},{"$f":"IF(A82<>\"\",IF($AD82<>\"\",VLOOKUP($AD82,Immobilisations[],8),\"\"),\"\")","v":""},"","","","","","","","","","","","",""]
[null,null,null,null,null,null,null,null,null,null,null,null,null,null,null,null,null,null,null,null,null,null,"","","","","",null,null,null,{"$f":"IF(A83<>\"\",IF($AD83<>\"\",VLOOKUP($AD83,Immobilisations[],7),0),\"\")","v":""},{"$f":"IF(A83<>\"\",IF($AD83<>\"\",VLOOKUP($AD83,Immobilisations[],8),\"\"),\"\")","v":""},"","","","","","","","","","","","",""]
[null,null,null,null,null,null,null,null,null,null,null,null,null,null,null,null,null,null,null,null,null,null,"","","","","",null,null,null,{"$f":"IF(A84<>\"\",IF($AD84<>\"\",VLOOKUP($AD84,Immobilisations[],7),0),\"\")","v":""},{"$f":"IF(A84<>\"\",IF($AD84<>\"\",VLOOKUP($AD84,Immobilisations[],8),\"\"),\"\")","v":""},"","","","","","","","","","","","",""]
[null,null,null,null,null,null,null,null,null,null,null,null,null,null,null,null,null,null,null,null,null,null,"","","","","",null,null,null,{"$f":"IF(A85<>\"\",IF($AD85<>\"\",VLOOKUP($AD85,Immobilisations[],7),0),\"\")","v":""},{"$f":"IF(A85<>\"\",IF($AD85<>\"\",VLOOKUP($AD85,Immobilisations[],8),\"\"),\"\")","v":""},"","","","","","","","","","","","",""]
[null,null,null,null,null,null,null,null,null,null,null,null,null,null,null,null,null,null,null,null,null,null,"","","","","",null,null,null,{"$f":"IF(A86<>\"\",IF($AD86<>\"\",VLOOKUP($AD86,Immobilisations[],7),0),\"\")","v":""},{"$f":"IF(A86<>\"\",IF($AD86<>\"\",VLOOKUP($AD86,Immobilisations[],8),\"\"),\"\")","v":""},"","","","","","","","","","","","",""]
[null,null,null,null,null,null,null,null,null,null,null,null,null,null,null,null,null,null,null,null,null,null,"","","","","",null,null,null,{"$f":"IF(A87<>\"\",IF($AD87<>\"\",VLOOKUP($AD87,Immobilisations[],7),0),\"\")","v":""},{"$f":"IF(A87<>\"\",IF($AD87<>\"\",VLOOKUP($AD87,Immobilisations[],8),\"\"),\"\")","v":""},"","","","","","","","","","","","",""]
[null,null,null,null,null,null,null,null,null,null,null,null,null,null,null,null,null,null,null,null,null,null,"","","","","",null,null,null,{"$f":"IF(A88<>\"\",IF($AD88<>\"\",VLOOKUP($AD88,Immobilisations[],7),0),\"\")","v":""},{"$f":"IF(A88<>\"\",IF($AD88<>\"\",VLOOKUP($AD88,Immobilisations[],8),\"\"),\"\")","v":""},"","","","","","","","","","","","",""]
[null,null,null,null,null,null,null,null,null,null,null,null,null,null,null,null,null,null,null,null,null,null,"","","","","",null,null,null,{"$f":"IF(A89<>\"\",IF($AD89<>\"\",VLOOKUP($AD89,Immobilisations[],7),0),\"\")","v":""},{"$f":"IF(A89<>\"\",IF($AD89<>\"\",VLOOKUP($AD89,Immobilisations[],8),\"\"),\"\")","v":""},"","","","","","","","","","","","",""]
[null,null,null,null,null,null,null,null,null,null,null,null,null,null,null,null,null,null,null,null,null,null,"","","","","",null,null,null,{"$f":"IF(A90<>\"\",IF($AD90<>\"\",VLOOKUP($AD90,Immobilisations[],7),0),\"\")","v":""},{"$f":"IF(A90<>\"\",IF($AD90<>\"\",VLOOKUP($AD90,Immobilisations[],8),\"\"),\"\")","v":""},"","","","","","","","",{"$f":"IF(AND($A90<>\"\",$AF90<>\"\"),IF(AO$2=0,0,IF(ROUNDDOWN(AO$2/($AE90+1),0)=0,$K90*$AE90/100,0)),\"\")","v":""},{"$f":"IF(AND($A90<>\"\",$AF90<>\"\"),IF(AP$2=0,0,IF(ROUNDDOWN(AP$2/($AE90+1),0)=0,$K90*$AE90/100,0)),\"\")","v":""},{"$f":"IF(AND($A90<>\"\",$AF90<>\"\"),IF(AQ$2=0,0,IF(ROUNDDOWN(AQ$2/($AE90+1),0)=0,$K90*$AE90/100,0)),\"\")","v":""},{"$f":"IF(AND($A90<>\"\",$AF90<>\"\"),IF(AR$2=0,0,IF(ROUNDDOWN(AR$2/($AE90+1),0)=0,$K90*$AE90/100,0)),\"\")","v":""},{"$f":"IF(AND($A90<>\"\",$AF90<>\"\"),IF(AS$2=0,0,IF(ROUNDDOWN(AS$2/($AE90+1),0)=0,$K90*$AE90/100,0)),\"\")","v":""}]
[null,null,null,null,null,null,null,null,null,null,null,null,null,null,null,null,null,null,null,null,null,null,"","","","","",null,null,null,{"$f":"IF(A91<>\"\",IF($AD91<>\"\",VLOOKUP($AD91,Immobilisations[],7),0),\"\")","v":""},{"$f":"IF(A91<>\"\",IF($AD91<>\"\",VLOOKUP($AD91,Immobilisations[],8),\"\"),\"\")","v":""},{"$f":"IF(AND($A91<>\"\",$AF91<>\"\"),IF(AG$2=0,0,IF(ROUNDDOWN(AG$2/($AE91+1),0)=0,$K91*$AE91/100,0)),\"\")","v":""},"","","","","","","","","","","",""]
[null,null,null,null,null,null,null,null,null,null,null,null,null,null,null,null,null,null,null,null,null,null,"","","","","",null,null,null,{"$f":"IF(A92<>\"\",IF($AD92<>\"\",VLOOKUP($AD92,Immobilisations[],7),0),\"\")","v":""},{"$f":"IF(A92<>\"\",IF($AD92<>\"\",VLOOKUP($AD92,Immobilisations[],8),\"\"),\"\")","v":""},"","","","","","","","","","","","",""]
[null,null,null,null,null,null,null,null,null,null,null,null,null,null,null,null,null,null,null,null,null,null,"","","","","",null,null,null,{"$f":"IF(A93<>\"\",IF($AD93<>\"\",VLOOKUP($AD93,Immobilisations[],7),0),\"\")","v":""},{"$f":"IF(A93<>\"\",IF($AD93<>\"\",VLOOKUP($AD93,Immobilisations[],8),\"\"),\"\")","v":""},"","","","","","","","","","","","",""]
[null,null,null,null,null,null,null,null,null,null,null,null,null,null,null,null,null,null,null,null,null,null,"","","","","",null,null,null,{"$f":"IF(A94<>\"\",IF($AD94<>\"\",VLOOKUP($AD94,Immobilisations[],7),0),\"\")","v":""},{"$f":"IF(A94<>\"\",IF($AD94<>\"\",VLOOKUP($AD94,Immobilisations[],8),\"\"),\"\")","v":""},"","","","","","","","","","","","",""]
[null,null,null,null,null,null,null,null,null,null,null,null,null,null,null,null,null,null,null,null,null,null,"","","","","",null,null,null,{"$f":"IF(A95<>\"\",IF($AD95<>\"\",VLOOKUP($AD95,Immobilisations[],7),0),\"\")","v":""},{"$f":"IF(A95<>\"\",IF($AD95<>\"\",VLOOKUP($AD95,Immobilisations[],8),\"\"),\"\")","v":""},"","","","","","","","","","","","",""]
[null,null,null,null,null,null,null,null,null,null,null,null,null,null,null,null,null,null,null,null,null,null,"","","","","",null,null,null,{"$f":"IF(A96<>\"\",IF($AD96<>\"\",VLOOKUP($AD96,Immobilisations[],7),0),\"\")","v":""},{"$f":"IF(A96<>\"\",IF($AD96<>\"\",VLOOKUP($AD96,Immobilisations[],8),\"\"),\"\")","v":""},"","","","","","","","","","","","",""]
[null,null,null,null,null,null,null,null,null,null,null,null,null,null,null,null,null,null,null,null,null,null,"","","","","",null,null,null,{"$f":"IF(A97<>\"\",IF($AD97<>\"\",VLOOKUP($AD97,Immobilisations[],7),0),\"\")","v":""},{"$f":"IF(A97<>\"\",IF($AD97<>\"\",VLOOKUP($AD97,Immobilisations[],8),\"\"),\"\")","v":""},"","","","","","","","","","","","",""]
[null,null,null,null,null,null,null,null,null,null,null,null,null,null,null,null,null,null,null,null,null,null,"","","","","",null,null,null,{"$f":"IF(A98<>\"\",IF($AD98<>\"\",VLOOKUP($AD98,Immobilisations[],7),0),\"\")","v":""},{"$f":"IF(A98<>\"\",IF($AD98<>\"\",VLOOKUP($AD98,Immobilisations[],8),\"\"),\"\")","v":""},"","","","","","","","","","","","",""]
[null,null,null,null,null,null,null,null,null,null,null,null,null,null,null,null,null,null,null,null,null,null,"","","","","",null,null,null,{"$f":"IF(A99<>\"\",IF($AD99<>\"\",VLOOKUP($AD99,Immobilisations[],7),0),\"\")","v":""},{"$f":"IF(A99<>\"\",IF($AD99<>\"\",VLOOKUP($AD99,Immobilisations[],8),\"\"),\"\")","v":""},"","","","","","","","","","","","",""]
[null,null,null,null,null,null,null,null,null,null,null,null,null,null,null,null,null,null,null,null,null,null,"","","","","",null,null,null,{"$f":"IF(A100<>\"\",IF($AD100<>\"\",VLOOKUP($AD100,Immobilisations[],7),0),\"\")","v":""},{"$f":"IF(A100<>\"\",IF($AD100<>\"\",VLOOKUP($AD100,Immobilisations[],8),\"\"),\"\")","v":""},"","","","","","","","","","","","",""]
[null,null,null,null,null,null,null,null,null,null,null,null,null,null,null,null,null,null,null,null,null,null,"","","","","",null,null,null,{"$f":"IF(A101<>\"\",IF($AD101<>\"\",VLOOKUP($AD101,Immobilisations[],7),0),\"\")","v":""},{"$f":"IF(A101<>\"\",IF($AD101<>\"\",VLOOKUP($AD101,Immobilisations[],8),\"\"),\"\")","v":""},"","","","","","","","","","","","",""]
[null,null,null,null,null,null,null,null,null,null,null,null,null,null,null,null,null,null,null,null,null,null,"","","","","",null,null,null,{"$f":"IF(A102<>\"\",IF($AD102<>\"\",VLOOKUP($AD102,Immobilisations[],7),0),\"\")","v":""},{"$f":"IF(A102<>\"\",IF($AD102<>\"\",VLOOKUP($AD102,Immobilisations[],8),\"\"),\"\")","v":""},"","","","","","","","","","","","",""]
[null,null,null,null,null,null,null,null,null,null,null,null,null,null,null,null,null,null,null,null,null,null,"","","","","",null,null,null,{"$f":"IF(A103<>\"\",IF($AD103<>\"\",VLOOKUP($AD103,Immobilisations[],7),0),\"\")","v":""},{"$f":"IF(A103<>\"\",IF($AD103<>\"\",VLOOKUP($AD103,Immobilisations[],8),\"\"),\"\")","v":""},"","","","","","","","","","","","",""]
[null,null,null,null,null,null,null,null,null,null,null,null,null,null,null,null,null,null,null,null,null,null,"","","","","",null,null,null,{"$f":"IF(A104<>\"\",IF($AD104<>\"\",VLOOKUP($AD104,Immobilisations[],7),0),\"\")","v":""},{"$f":"IF(A104<>\"\",IF($AD104<>\"\",VLOOKUP($AD104,Immobilisations[],8),\"\"),\"\")","v":""},"","","","","","","","","","","","",""]
[null,null,null,null,null,null,null,null,null,null,null,null,null,null,null,null,null,null,null,null,null,null,"","","","","",null,null,null,{"$f":"IF(A105<>\"\",IF($AD105<>\"\",VLOOKUP($AD105,Immobilisations[],7),0),\"\")","v":""},{"$f":"IF(A105<>\"\",IF($AD105<>\"\",VLOOKUP($AD105,Immobilisations[],8),\"\"),\"\")","v":""},"","","","","","","","","","","","",""]
[null,null,null,null,null,null,null,null,null,null,null,null,null,null,null,null,null,null,null,null,null,null,"","","","","",null,null,null,{"$f":"IF(A106<>\"\",IF($AD106<>\"\",VLOOKUP($AD106,Immobilisations[],7),0),\"\")","v":""},{"$f":"IF(A106<>\"\",IF($AD106<>\"\",VLOOKUP($AD106,Immobilisations[],8),\"\"),\"\")","v":""},"","","","","","","","","","","","",""]
[null,null,null,null,null,null,null,null,null,null,null,null,null,null,null,null,null,null,null,null,null,null,"","","","","",null,null,null,{"$f":"IF(A107<>\"\",IF($AD107<>\"\",VLOOKUP($AD107,Immobilisations[],7),0),\"\")","v":""},{"$f":"IF(A107<>\"\",IF($AD107<>\"\",VLOOKUP($AD107,Immobilisations[],8),\"\"),\"\")","v":""},"","","","","","","","","","","","",""]
[null,null,null,null,null,null,null,null,null,null,null,null,null,null,null,null,null,null,null,null,null,null,"","","","","",null,null,null,{"$f":"IF(A108<>\"\",IF($AD108<>\"\",VLOOKUP($AD108,Immobilisations[],7),0),\"\")","v":""},{"$f":"IF(A108<>\"\",IF($AD108<>\"\",VLOOKUP($AD108,Immobilisations[],8),\"\"),\"\")","v":""},"","","","","","","","","","","","",""]
[null,null,null,null,null,null,null,null,null,null,null,null,null,null,null,null,null,null,null,null,null,null,"","","","","",null,null,null,{"$f":"IF(A109<>\"\",IF($AD109<>\"\",VLOOKUP($AD109,Immobilisations[],7),0),\"\")","v":""},{"$f":"IF(A109<>\"\",IF($AD109<>\"\",VLOOKUP($AD109,Immobilisations[],8),\"\"),\"\")","v":""},"","","","","","","","","","","","",""]
[null,null,null,null,null,null,null,null,null,null,null,null,null,null,null,null,null,null,null,null,null,null,"","","","","",null,null,null,{"$f":"IF(A110<>\"\",IF($AD110<>\"\",VLOOKUP($AD110,Immobilisations[],7),0),\"\")","v":""},{"$f":"IF(A110<>\"\",IF($AD110<>\"\",VLOOKUP($AD110,Immobilisations[],8),\"\"),\"\")","v":""},"","","","","","","","",{"$f":"IF(AND($A110<>\"\",$AF110<>\"\"),IF(AO$2=0,0,IF(ROUNDDOWN(AO$2/($AE110+1),0)=0,$K110*$AE110/100,0)),\"\")","v":""},{"$f":"IF(AND($A110<>\"\",$AF110<>\"\"),IF(AP$2=0,0,IF(ROUNDDOWN(AP$2/($AE110+1),0)=0,$K110*$AE110/100,0)),\"\")","v":""},{"$f":"IF(AND($A110<>\"\",$AF110<>\"\"),IF(AQ$2=0,0,IF(ROUNDDOWN(AQ$2/($AE110+1),0)=0,$K110*$AE110/100,0)),\"\")","v":""},{"$f":"IF(AND($A110<>\"\",$AF110<>\"\"),IF(AR$2=0,0,IF(ROUNDDOWN(AR$2/($AE110+1),0)=0,$K110*$AE110/100,0)),\"\")","v":""},{"$f":"IF(AND($A110<>\"\",$AF110<>\"\"),IF(AS$2=0,0,IF(ROUNDDOWN(AS$2/($AE110+1),0)=0,$K110*$AE110/100,0)),\"\")","v":""}]
[null,null,null,null,null,null,null,null,null,null,null,null,null,null,null,null,null,null,null,null,null,null,"","","","","",null,null,null,{"$f":"IF(A111<>\"\",IF($AD111<>\"\",VLOOKUP($AD111,Immobilisations[],7),0),\"\")","v":""},{"$f":"IF(A111<>\"\",IF($AD111<>\"\",VLOOKUP($AD111,Immobilisations[],8),\"\"),\"\")","v":""},{"$f":"IF(AND($A111<>\"\",$AF111<>\"\"),IF(AG$2=0,0,IF(ROUNDDOWN(AG$2/($AE111+1),0)=0,$K111*$AE111/100,0)),\"\")","v":""},"","","","","","","","","","","",""]
[null,null,null,null,null,null,null,null,null,null,null,null,null,null,null,null,null,null,null,null,null,null,"","","","","",null,null,null,{"$f":"IF(A112<>\"\",IF($AD112<>\"\",VLOOKUP($AD112,Immobilisations[],7),0),\"\")","v":""},{"$f":"IF(A112<>\"\",IF($AD112<>\"\",VLOOKUP($AD112,Immobilisations[],8),\"\"),\"\")","v":""},"","","","","","","","","","","","",""]
[null,null,null,null,null,null,null,null,null,null,null,null,null,null,null,null,null,null,null,null,null,null,"","","","","",null,null,null,{"$f":"IF(A113<>\"\",IF($AD113<>\"\",VLOOKUP($AD113,Immobilisations[],7),0),\"\")","v":""},{"$f":"IF(A113<>\"\",IF($AD113<>\"\",VLOOKUP($AD113,Immobilisations[],8),\"\"),\"\")","v":""},"","","","","","","","","","","","",""]
[null,null,null,null,null,null,null,null,null,null,null,null,null,null,null,null,null,null,null,null,null,null,"","","","","",null,null,null,{"$f":"IF(A114<>\"\",IF($AD114<>\"\",VLOOKUP($AD114,Immobilisations[],7),0),\"\")","v":""},{"$f":"IF(A114<>\"\",IF($AD114<>\"\",VLOOKUP($AD114,Immobilisations[],8),\"\"),\"\")","v":""},"","","","","","","","","","","","",""]
[null,null,null,null,null,null,null,null,null,null,null,null,null,null,null,null,null,null,null,null,null,null,"","","","","",null,null,null,{"$f":"IF(A115<>\"\",IF($AD115<>\"\",VLOOKUP($AD115,Immobilisations[],7),0),\"\")","v":""},{"$f":"IF(A115<>\"\",IF($AD115<>\"\",VLOOKUP($AD115,Immobilisations[],8),\"\"),\"\")","v":""},"","","","","","","","","","","","",""]
[null,null,null,null,null,null,null,null,null,null,null,null,null,null,null,null,null,null,null,null,null,null,"","","","","",null,null,null,{"$f":"IF(A116<>\"\",IF($AD116<>\"\",VLOOKUP($AD116,Immobilisations[],7),0),\"\")","v":""},{"$f":"IF(A116<>\"\",IF($AD116<>\"\",VLOOKUP($AD116,Immobilisations[],8),\"\"),\"\")","v":""},"","","","","","","","","","","","",""]
[null,null,null,null,null,null,null,null,null,null,null,null,null,null,null,null,null,null,null,null,null,null,"","","","","",null,null,null,{"$f":"IF(A117<>\"\",IF($AD117<>\"\",VLOOKUP($AD117,Immobilisations[],7),0),\"\")","v":""},{"$f":"IF(A117<>\"\",IF($AD117<>\"\",VLOOKUP($AD117,Immobilisations[],8),\"\"),\"\")","v":""},"","","","","","","","","","","","",""]
[null,null,null,null,null,null,null,null,null,null,null,null,null,null,null,null,null,null,null,null,null,null,"","","","","",null,null,null,{"$f":"IF(A118<>\"\",IF($AD118<>\"\",VLOOKUP($AD118,Immobilisations[],7),0),\"\")","v":""},{"$f":"IF(A118<>\"\",IF($AD118<>\"\",VLOOKUP($AD118,Immobilisations[],8),\"\"),\"\")","v":""},"","","","","","","","","","","","",""]
[null,null,null,null,null,null,null,null,null,null,null,null,null,null,null,null,null,null,null,null,null,null,"","","","","",null,null,null,{"$f":"IF(A119<>\"\",IF($AD119<>\"\",VLOOKUP($AD119,Immobilisations[],7),0),\"\")","v":""},{"$f":"IF(A119<>\"\",IF($AD119<>\"\",VLOOKUP($AD119,Immobilisations[],8),\"\"),\"\")","v":""},"","","","","","","","","","","","",""]
[null,null,null,null,null,null,null,null,null,null,null,null,null,null,null,null,null,null,null,null,null,null,"","","","","",null,null,null,{"$f":"IF(A120<>\"\",IF($AD120<>\"\",VLOOKUP($AD120,Immobilisations[],7),0),\"\")","v":""},{"$f":"IF(A120<>\"\",IF($AD120<>\"\",VLOOKUP($AD120,Immobilisations[],8),\"\"),\"\")","v":""},"","","","","","","","","","","","",""]
[null,null,null,null,null,null,null,null,null,null,null,null,null,null,null,null,null,null,null,null,null,null,{"$f":"IF($A121<>\"\",Q121*$K121,\"\")","v":""},"","","","",null,null,null,{"$f":"IF(A121<>\"\",IF($AD121<>\"\",VLOOKUP($AD121,Immobilisations[],7),0),\"\")","v":""},{"$f":"IF(A121<>\"\",IF($AD121<>\"\",VLOOKUP($AD121,Immobilisations[],8),\"\"),\"\")","v":""},"","","","","","","","","","","","",""]
[null,null,null,null,null,null,null,null,null,null,null,null,null,null,null,null,null,null,null,null,null,null,"","","","","",null,null,null,{"$f":"IF(A122<>\"\",IF($AD122<>\"\",VLOOKUP($AD122,Immobilisations[],7),0),\"\")","v":""},{"$f":"IF(A122<>\"\",IF($AD122<>\"\",VLOOKUP($AD122,Immobilisations[],8),\"\"),\"\")","v":""},"","","","","","","","","","","","",""]
[null,null,null,null,null,null,null,null,null,null,null,null,null,null,null,null,null,null,null,null,null,null,"","","","","",null,null,null,{"$f":"IF(A123<>\"\",IF($AD123<>\"\",VLOOKUP($AD123,Immobilisations[],7),0),\"\")","v":""},{"$f":"IF(A123<>\"\",IF($AD123<>\"\",VLOOKUP($AD123,Immobilisations[],8),\"\"),\"\")","v":""},"","","","","","","","","","","","",""]
[null,null,null,null,null,null,null,null,null,null,null,null,null,null,null,null,null,null,null,null,null,null,"","","","","",null,null,null,{"$f":"IF(A124<>\"\",IF($AD124<>\"\",VLOOKUP($AD124,Immobilisations[],7),0),\"\")","v":""},{"$f":"IF(A124<>\"\",IF($AD124<>\"\",VLOOKUP($AD124,Immobilisations[],8),\"\"),\"\")","v":""},"","","","","","","","","","","","",""]
[null,null,null,null,null,null,null,null,null,null,null,null,null,null,null,null,null,null,null,null,null,null,"","","","","",null,null,null,{"$f":"IF(A125<>\"\",IF($AD125<>\"\",VLOOKUP($AD125,Immobilisations[],7),0),\"\")","v":""},{"$f":"IF(A125<>\"\",IF($AD125<>\"\",VLOOKUP($AD125,Immobilisations[],8),\"\"),\"\")","v":""},"","","","","","","","","","","","",""]
[null,null,null,null,null,null,null,null,null,null,null,null,null,null,null,null,null,null,null,null,null,null,"","","","","",null,null,null,{"$f":"IF(A126<>\"\",IF($AD126<>\"\",VLOOKUP($AD126,Immobilisations[],7),0),\"\")","v":""},{"$f":"IF(A126<>\"\",IF($AD126<>\"\",VLOOKUP($AD126,Immobilisations[],8),\"\"),\"\")","v":""},"","","","","","","","","","","","",""]
[null,null,null,null,null,null,null,null,null,null,null,null,null,null,null,null,null,null,null,null,null,null,"","","","","",null,null,null,{"$f":"IF(A127<>\"\",IF($AD127<>\"\",VLOOKUP($AD127,Immobilisations[],7),0),\"\")","v":""},{"$f":"IF(A127<>\"\",IF($AD127<>\"\",VLOOKUP($AD127,Immobilisations[],8),\"\"),\"\")","v":""},"","","","","","","","","","","","",""]
[null,null,null,null,null,null,null,null,null,null,null,null,null,null,null,null,null,null,null,null,null,null,"","","","","",null,null,null,{"$f":"IF(A128<>\"\",IF($AD128<>\"\",VLOOKUP($AD128,Immobilisations[],7),0),\"\")","v":""},{"$f":"IF(A128<>\"\",IF($AD128<>\"\",VLOOKUP($AD128,Immobilisations[],8),\"\"),\"\")","v":""},"","","","","","","","","","","","",""]
[null,null,null,null,null,null,null,null,null,null,null,null,null,null,null,null,null,null,null,null,null,null,"","","","","",null,null,null,{"$f":"IF(A129<>\"\",IF($AD129<>\"\",VLOOKUP($AD129,Immobilisations[],7),0),\"\")","v":""},{"$f":"IF(A129<>\"\",IF($AD129<>\"\",VLOOKUP($AD129,Immobilisations[],8),\"\"),\"\")","v":""},"","","","","","","","","","","","",""]
[null,null,null,null,null,null,null,null,null,null,null,null,null,null,null,null,null,null,null,null,null,null,"","","","","",null,null,null,{"$f":"IF(A130<>\"\",IF($AD130<>\"\",VLOOKUP($AD130,Immobilisations[],7),0),\"\")","v":""},{"$f":"IF(A130<>\"\",IF($AD130<>\"\",VLOOKUP($AD130,Immobilisations[],8),\"\"),\"\")","v":""},"","","","","","","","",{"$f":"IF(AND($A130<>\"\",$AF130<>\"\"),IF(AO$2=0,0,IF(ROUNDDOWN(AO$2/($AE130+1),0)=0,$K130*$AE130/100,0)),\"\")","v":""},{"$f":"IF(AND($A130<>\"\",$AF130<>\"\"),IF(AP$2=0,0,IF(ROUNDDOWN(AP$2/($AE130+1),0)=0,$K130*$AE130/100,0)),\"\")","v":""},{"$f":"IF(AND($A130<>\"\",$AF130<>\"\"),IF(AQ$2=0,0,IF(ROUNDDOWN(AQ$2/($AE130+1),0)=0,$K130*$AE130/100,0)),\"\")","v":""},{"$f":"IF(AND($A130<>\"\",$AF130<>\"\"),IF(AR$2=0,0,IF(ROUNDDOWN(AR$2/($AE130+1),0)=0,$K130*$AE130/100,0)),\"\")","v":""},{"$f":"IF(AND($A130<>\"\",$AF130<>\"\"),IF(AS$2=0,0,IF(ROUNDDOWN(AS$2/($AE130+1),0)=0,$K130*$AE130/100,0)),\"\")","v":""}]
[null,null,null,null,null,null,null,null,null,null,null,null,null,null,null,null,null,null,null,null,null,null,"","","","","",null,null,null,{"$f":"IF(A131<>\"\",IF($AD131<>\"\",VLOOKUP($AD131,Immobilisations[],7),0),\"\")","v":""},{"$f":"IF(A131<>\"\",IF($AD131<>\"\",VLOOKUP($AD131,Immobilisations[],8),\"\"),\"\")","v":""},{"$f":"IF(AND($A131<>\"\",$AF131<>\"\"),IF(AG$2=0,0,IF(ROUNDDOWN(AG$2/($AE131+1),0)=0,$K131*$AE131/100,0)),\"\")","v":""},"","","","","","","","","","","",""]
[null,null,null,null,null,null,null,null,null,null,null,null,null,null,null,null,null,null,null,null,null,null,"","","","","",null,null,null,{"$f":"IF(A132<>\"\",IF($AD132<>\"\",VLOOKUP($AD132,Immobilisations[],7),0),\"\")","v":""},{"$f":"IF(A132<>\"\",IF($AD132<>\"\",VLOOKUP($AD132,Immobilisations[],8),\"\"),\"\")","v":""},"","","","","","","","","","","","",""]
[null,null,null,null,null,null,null,null,null,null,null,null,null,null,null,null,null,null,null,null,null,null,"","","","","",null,null,null,{"$f":"IF(A133<>\"\",IF($AD133<>\"\",VLOOKUP($AD133,Immobilisations[],7),0),\"\")","v":""},{"$f":"IF(A133<>\"\",IF($AD133<>\"\",VLOOKUP($AD133,Immobilisations[],8),\"\"),\"\")","v":""},"","","","","","","","","","","","",""]
[null,null,null,null,null,null,null,null,null,null,null,null,null,null,null,null,null,null,null,null,null,null,"","","","","",null,null,null,{"$f":"IF(A134<>\"\",IF($AD134<>\"\",VLOOKUP($AD134,Immobilisations[],7),0),\"\")","v":""},{"$f":"IF(A134<>\"\",IF($AD134<>\"\",VLOOKUP($AD134,Immobilisations[],8),\"\"),\"\")","v":""},"","","","","","","","","","","","",""]
[null,null,null,null,null,null,null,null,null,null,null,null,null,null,null,null,null,null,null,null,null,null,"","","","","",null,null,null,{"$f":"IF(A135<>\"\",IF($AD135<>\"\",VLOOKUP($AD135,Immobilisations[],7),0),\"\")","v":""},{"$f":"IF(A135<>\"\",IF($AD135<>\"\",VLOOKUP($AD135,Immobilisations[],8),\"\"),\"\")","v":""},"","","","","","","","","","","","",""]
[null,null,null,null,null,null,null,null,null,null,null,null,null,null,null,null,null,null,null,null,null,null,"","","","","",null,null,null,{"$f":"IF(A136<>\"\",IF($AD136<>\"\",VLOOKUP($AD136,Immobilisations[],7),0),\"\")","v":""},{"$f":"IF(A136<>\"\",IF($AD136<>\"\",VLOOKUP($AD136,Immobilisations[],8),\"\"),\"\")","v":""},"","","","","","","","","","","","",""]
[null,null,null,null,null,null,null,null,null,null,null,null,null,null,null,null,null,null,null,null,null,null,"","","","","",null,null,null,{"$f":"IF(A137<>\"\",IF($AD137<>\"\",VLOOKUP($AD137,Immobilisations[],7),0),\"\")","v":""},{"$f":"IF(A137<>\"\",IF($AD137<>\"\",VLOOKUP($AD137,Immobilisations[],8),\"\"),\"\")","v":""},"","","","","","","","","","","","",""]
[null,null,null,null,null,null,null,null,null,null,null,null,null,null,null,null,null,null,null,null,null,null,"","","","","",null,null,null,{"$f":"IF(A138<>\"\",IF($AD138<>\"\",VLOOKUP($AD138,Immobilisations[],7),0),\"\")","v":""},{"$f":"IF(A138<>\"\",IF($AD138<>\"\",VLOOKUP($AD138,Immobilisations[],8),\"\"),\"\")","v":""},"","","","","","","","","","","","",""]
[null,null,null,null,null,null,null,null,null,null,null,null,null,null,null,null,null,null,null,null,null,null,"","","","","",null,null,null,{"$f":"IF(A139<>\"\",IF($AD139<>\"\",VLOOKUP($AD139,Immobilisations[],7),0),\"\")","v":""},{"$f":"IF(A139<>\"\",IF($AD139<>\"\",VLOOKUP($AD139,Immobilisations[],8),\"\"),\"\")","v":""},"","","","","","","","","","","","",""]
[null,null,null,null,null,null,null,null,null,null,null,null,null,null,null,null,null,null,null,null,null,null,"","","","","",null,null,null,{"$f":"IF(A140<>\"\",IF($AD140<>\"\",VLOOKUP($AD140,Immobilisations[],7),0),\"\")","v":""},{"$f":"IF(A140<>\"\",IF($AD140<>\"\",VLOOKUP($AD140,Immobilisations[],8),\"\"),\"\")","v":""},"","","","","","","","","","","","",""]
[null,null,null,null,null,null,null,null,null,null,null,null,null,null,null,null,null,null,null,null,null,null,"","","","","",null,null,null,{"$f":"IF(A141<>\"\",IF($AD141<>\"\",VLOOKUP($AD141,Immobilisations[],7),0),\"\")","v":""},{"$f":"IF(A141<>\"\",IF($AD141<>\"\",VLOOKUP($AD141,Immobilisations[],8),\"\"),\"\")","v":""},"","","","","","","","","","","","",""]
[null,null,null,null,null,null,null,null,null,null,null,null,null,null,null,null,null,null,null,null,null,null,"","","","","",null,null,null,{"$f":"IF(A142<>\"\",IF($AD142<>\"\",VLOOKUP($AD142,Immobilisations[],7),0),\"\")","v":""},{"$f":"IF(A142<>\"\",IF($AD142<>\"\",VLOOKUP($AD142,Immobilisations[],8),\"\"),\"\")","v":""},"","","","","","","","","","","","",""]
[null,null,null,null,null,null,null,null,null,null,null,null,null,null,null,null,null,null,null,null,null,null,"","","","","",null,null,null,{"$f":"IF(A143<>\"\",IF($AD143<>\"\",VLOOKUP($AD143,Immobilisations[],7),0),\"\")","v":""},{"$f":"IF(A143<>\"\",IF($AD143<>\"\",VLOOKUP($AD143,Immobilisations[],8),\"\"),\"\")","v":""},"","","","","","","","","","","","",""]
[null,null,null,null,null,null,null,null,null,null,null,null,null,null,null,null,null,null,null,null,null,null,"","","","","",null,null,null,{"$f":"IF(A144<>\"\",IF($AD144<>\"\",VLOOKUP($AD144,Immobilisations[],7),0),\"\")","v":""},{"$f":"IF(A144<>\"\",IF($AD144<>\"\",VLOOKUP($AD144,Immobilisations[],8),\"\"),\"\")","v":""},"","","","","","","","","","","","",""]
[null,null,null,null,null,null,null,null,null,null,null,null,null,null,null,null,null,null,null,null,null,null,"","","","","",null,null,null,{"$f":"IF(A145<>\"\",IF($AD145<>\"\",VLOOKUP($AD145,Immobilisations[],7),0),\"\")","v":""},{"$f":"IF(A145<>\"\",IF($AD145<>\"\",VLOOKUP($AD145,Immobilisations[],8),\"\"),\"\")","v":""},"","","","","","","","","","","","",""]
[null,null,null,null,null,null,null,null,null,null,null,null,null,null,null,null,null,null,null,null,null,null,"","","","","",null,null,null,null,null,{"$f":"IF($A146<>\"\",IF(AG139=0,0,IF(ROUNDDOWN(AG139/($AE146+1),0)=0,$K146*$AE146/100,0)),\"\")","v":""},"","","","","","","","","","","",""]
[null,null,null,null,null,null,null,null,null,null,null,null,null,null,null,null,null,null,null,null,null,null,"","","","",""]
[null,null,null,null,null,null,null,null,null,null,null,null,null,null,null,null,null,null,null,null,null,null,null,""]
[null,null,null,null,null,null,null,null,null,null,null,null,null,null,null,null,null,null,null,null,null,null,null,""]
[null,null,null,null,null,null,null,null,null,null,null,null,null,null,null,null,null,null,null,null,null,null,null,""]
[null,null,null,null,null,null,null,null,null,null,null,null,null,null,null,null,null,null,null,null,null,null,null,""]
[null,null,null,null,null,null,null,null,null,null,null,null,null,null,null,null,null,null,null,null,null,null,null,""]
[null,null,null,null,null,null,null,null,null,null,null,null,null,null,null,null,null,null,null,null,null,null,null,""]
[null,null,null,null,null,null,null,null,null,null,null,null,null,null,null,null,null,null,null,null,null,null,null,""]
[null,null,null,null,null,null,null,null,null,null,null,null,null,null,null,null,null,null,null,null,null,null,null,""]
[null,null,null,null,null,null,null,null,null,null,null,null,null,null,null,null,null,null,null,null,null,null,null,""]
[null,null,null,null,null,null,null,null,null,null,null,null,null,null,null,null,null,null,null,null,null,null,null,""]
[null,null,null,null,null,null,null,null,null,null,null,null,null,null,null,null,null,null,null,null,null,null,null,""]
[null,null,null,null,null,null,null,null,null,null,null,null,null,null,null,null,null,null,null,null,null,null,null,""]
[null,null,null,null,null,null,null,null,null,null,null,null,null,null,null,null,null,null,null,null,null,null,null,""]
[null,null,null,null,null,null,null,null,null,null,null,null,null,null,null,null,null,null,null,null,null,null,null,""]
[null,null,null,null,null,null,null,null,null,null,null,null,null,null,null,null,null,null,null,null,null,null,null,""]
[null,null,null,null,null,null,null,null,null,null,null,null,null,null,null,null,null,null,null,null,null,null,null,""]

{"sheet":"Licences","index":39,"n_rows":277,"n_cols":45,"rows_kept":277,"cut":false,"hidden":false,"merged":[[0,1,0,2]]}
[null,"Catégorie",null,"Designation","Commentaires","Prix unitaire €","Prix Unit. From $","Prix en $","Exprimé HT","TVA","Prix HT","Prix TTC","Sous totaux TTC","Provenance",null,null,"*","FL","FC","B","CW",null,"*","FL","FC","B","CW",null,null,null,"Durée","Taux","Année 0","Année 1","Année 2","Année 3","Année 4","Année 5","Année 6","Année 7","Année 8","Année 9","Année 10","Année 11","Année 12"]
[null,null,null,null,null,null,null,null,null,null,null,null,null,null,null,null,null,null,null,null,null,null,null,null,null,null,null,null,null,null,null,null,0,1,2,3,4,5,6,7,8,9,10,11,12]
[null,null,null,null,null,null,null,null,null,null,"Total HT","Total TTC",null,null,null,null,null,null,null,null,null,null,{"$f":"W4/$K4","v":1.9607843137254898E-2},{"$f":"X4/$K4","v":0.98039215686274495},{"$f":"Y4/$K4","v":0},{"$f":"Z4/$K4","v":0},{"$f":"AA4/$K4","v":0},{"$f":"SUM(W3:AA3)","v":0.99999999999999989},null,null,null,null,"Total DAT ","Total DAT ","Total DAT ","Total DAT ","Total DAT ","Total DAT ","Total DAT ","Total DAT ","Total DAT ","Total DAT ","Total DAT ","Total DAT ","Total DAT "]
[null,null,null,null,null,null,null,null,null,null,{"$f":"L4*(100/(100 + 100*Pilotage!$D$14))","v":191.31885000000003},{"$f":"SUM(M:M)","v":229.58262000000002},null,null,null,null,null,null,null,null,null,null,{"$f":"SUM(W6:W153)","v":3.75135},{"$f":"SUM(X6:X153)","v":187.5675},{"$f":"SUM(Y6:Y153)","v":0},{"$f":"SUM(Z6:Z153)","v":0},{"$f":"SUM(AA6:AA153)","v":0},{"$f":"SUM(W4:AA4)","v":191.31885},null,null,null,null,{"$f":"SUM(AG9:AG153)","v":0},2.3533499999999998,2.3533499999999998,0,0,0,0,0,0,0,0,0,0]
[null,null,null,null,null,null,null,null,null,null,null,{"$f":"IF(L4<>SUM($L$6:$L$1001),\"ERREUR Page Licences\",\"\")","v":""},null,null,null,null,null,null,null,null,null,null,null,null,null,null,null,{"$f":"K4-AB4","v":0}]
[null,"Aléas",null,{"$f":"Pilotage!$D$17","v":0.02},null,null,{"$f":"IF(H6=\"\",\"\",H6*$G$4)","v":""},null,null,{"$f":"IF(A6=\"\",\"\",SUM(F6:G6)*Pilotage!$D$14*I6)","v":""},{"$f":"IF(A6=\"\",\"\",#REF!*(100/(100 + 100*Pilotage!$D$14)))","v":""},{"$f":"D6*SUM(K$8:K$759)*(1+Pilotage!$D$14)","v":4.50162},{"$f":"L6","v":4.50162},null,null,null,null,null,null,null,null,null,{"$f":"L6*Pilotage!D15","v":3.75135},0,0,0,0]
[]
[null,null,"Logiciel",null,null,null,{"$f":"IF(H8=\"\",\"\",H8*Pilotage!$D$16)","v":""},null,null,{"$f":"IF(A8=\"\",\"\",SUM(F8:G8)*Pilotage!$D$14*I8)","v":""},{"$f":"IF(A8=\"\",\"\",L8*(100/(100 + 100*Pilotage!$D$14)))","v":""},{"$f":"IF(A8=\"\",\"\",(SUM(F8:G8)+J8)*A8)","v":""}]
[null,null,"Achat licence",null,null,null,{"$f":"IF(H9=\"\",\"\",H9*Pilotage!$D$16)","v":""},null,null,{"$f":"IF(A9=\"\",\"\",SUM(F9:G9)*Pilotage!$D$14*I9)","v":""},{"$f":"IF(A9=\"\",\"\",L9*(100/(100 + 100*Pilotage!$D$14)))","v":""},"",null,null,null,null,null,null,null,null,null,null,{"$f":"IF($A9<>\"\",Q9*$K9,\"\")","v":""},{"$f":"IF($A9<>\"\",R9*$K9,\"\")","v":""},"","","",null,null,null,{"$f":"IF(A9<>\"\",IF($AD9<>\"\",VLOOKUP($AD9,Immobilisations[],7),0),\"\")","v":""},{"$f":"IF(A9<>\"\",IF($AD9<>\"\",VLOOKUP($AD9,Immobilisations[],8),\"\"),\"\")","v":""},{"$f":"IF(AND($A9<>\"\",$AF9<>\"\"),IF(AG$2=0,0,IF(ROUNDDOWN(AG$2/($AE9+1),0)=0,$K9*$AE9/100,0)),\"\")","v":""},{"$f":"IF(AND($A9<>\"\",$AF9<>\"\"),IF(AH$2=0,0,IF(ROUNDDOWN(AH$2/($AE9+1),0)=0,$K9*$AE9/100,0)),\"\")","v":""},{"$f":"IF(AND($A9<>\"\",$AF9<>\"\"),IF(AI$2=0,0,IF(ROUNDDOWN(AI$2/($AE9+1),0)=0,$K9*$AE9/100,0)),\"\")","v":""},"","","","","","","","","",""]
[1,null,null,"IOS",null,99,{"$f":"IF(H10=\"\",\"\",H10*Pilotage!$D$16)","v":""},null,1,{"$f":"IF(A10=\"\",\"\",SUM(F10:G10)*Pilotage!$D$14*I10)","v":19.8},{"$f":"IF(A10=\"\",\"\",L10*(100/(100 + 100*Pilotage!$D$14)))","v":99},118.8,null,null,null,null,null,1,null,null,null,null,{"$f":"IF($A10<>\"\",Q10*$K10,\"\")","v":0},99,0,0,0,null,null,"Logiciels",{"$f":"IF(A10<>\"\",IF($AD10<>\"\",VLOOKUP($AD10,Immobilisations[],7),0),\"\")","v":2},{"$f":"IF(A10<>\"\",IF($AD10<>\"\",VLOOKUP($AD10,Immobilisations[],8),\"\"),\"\")","v":0.5},{"$f":"IF(AND($A10<>\"\",$AF10<>\"\"),IF(AG$2=0,0,IF(ROUNDDOWN(AG$2/($AE10+1),0)=0,$K10*$AE10/100,0)),\"\")","v":0},1.98,1.98,0,0,0,0,0,0,0,0,0,0]
[1,null,null,"Android",null,0,{"$f":"IF(H11=\"\",\"\",H11*Pilotage!$D$16)","v":18.6675},25,1,{"$f":"IF(A11=\"\",\"\",SUM(F11:G11)*Pilotage!$D$14*I11)","v":3.7335000000000003},{"$f":"IF(A11=\"\",\"\",L11*(100/(100 + 100*Pilotage!$D$14)))","v":18.6675},22.401,null,null,null,null,null,1,null,null,null,null,0,18.6675,0,0,0,null,null,"Logiciels",{"$f":"IF(A11<>\"\",IF($AD11<>\"\",VLOOKUP($AD11,Immobilisations[],7),0),\"\")","v":2},{"$f":"IF(A11<>\"\",IF($AD11<>\"\",VLOOKUP($AD11,Immobilisations[],8),\"\"),\"\")","v":0.5},0,0.37335000000000002,0.37335000000000002,0,0,0,0,0,0,0,0,0,0]
[null,null,"Location licences:",null,null,null,{"$f":"IF(H12=\"\",\"\",H12*Pilotage!$D$16)","v":""},null,null,{"$f":"IF(A12=\"\",\"\",SUM(F12:G12)*Pilotage!$D$14*I12)","v":""},{"$f":"IF(A12=\"\",\"\",L12*(100/(100 + 100*Pilotage!$D$14)))","v":""},"",null,null,null,null,null,null,null,null,null,null,"","","","","",null,null,null,{"$f":"IF(A12<>\"\",IF($AD12<>\"\",VLOOKUP($AD12,Immobilisations[],7),0),\"\")","v":""},{"$f":"IF(A12<>\"\",IF($AD12<>\"\",VLOOKUP($AD12,Immobilisations[],8),\"\"),\"\")","v":""},"","","","","","","","","","","","",""]
[1,null,null,"Adobe Creative Cloud",null,69.900000000000006,{"$f":"IF(H13=\"\",\"\",H13*Pilotage!$D$16)","v":""},null,1,{"$f":"IF(A13=\"\",\"\",SUM(F13:G13)*Pilotage!$D$14*I13)","v":13.980000000000002},{"$f":"IF(A13=\"\",\"\",L13*(100/(100 + 100*Pilotage!$D$14)))","v":69.900000000000006},83.88000000000001,null,null,null,null,null,1,null,null,null,null,0,69.900000000000006,0,0,0,null,null,null,{"$f":"IF(A13<>\"\",IF($AD13<>\"\",VLOOKUP($AD13,Immobilisations[],7),0),\"\")","v":0},{"$f":"IF(A13<>\"\",IF($AD13<>\"\",VLOOKUP($AD13,Immobilisations[],8),\"\"),\"\")","v":""},"","","","","","","","","","","","",""]
[0,null,null,"Office 365 Petite Etreprise Premium","Par an / Par utilisateur",124.8,{"$f":"IF(H14=\"\",\"\",H14*Pilotage!$D$16)","v":""},null,1,{"$f":"IF(A14=\"\",\"\",SUM(F14:G14)*Pilotage!$D$14*I14)","v":24.96},{"$f":"IF(A14=\"\",\"\",L14*(100/(100 + 100*Pilotage!$D$14)))","v":0},0,null,null,null,null,null,null,null,null,1,null,0,0,0,0,0,null,null,null,{"$f":"IF(A14<>\"\",IF($AD14<>\"\",VLOOKUP($AD14,Immobilisations[],7),0),\"\")","v":0},{"$f":"IF(A14<>\"\",IF($AD14<>\"\",VLOOKUP($AD14,Immobilisations[],8),\"\"),\"\")","v":""},"","","","","","","","","","","","",""]
[null,null,null,null,null,null,{"$f":"IF(H15=\"\",\"\",H15*Pilotage!$D$16)","v":""},null,null,{"$f":"IF(A15=\"\",\"\",SUM(F15:G15)*Pilotage!$D$14*I15)","v":""},{"$f":"IF(A15=\"\",\"\",L15*(100/(100 + 100*Pilotage!$D$14)))","v":""},"",{"$f":"SUM(L10:L14)","v":225.08100000000002},null,null,null,null,null,null,null,null,null,{"$f":"IF($A15<>\"\",Q15*$K15,\"\")","v":""},{"$f":"IF($A15<>\"\",R15*$K15,\"\")","v":""},{"$f":"IF($A15<>\"\",S15*$K15,\"\")","v":""},{"$f":"IF($A15<>\"\",T15*$K15,\"\")","v":""},{"$f":"IF($A15<>\"\",U15*$K15,\"\")","v":""},null,null,null,{"$f":"IF(A15<>\"\",IF($AD15<>\"\",VLOOKUP($AD15,Immobilisations[],7),0),\"\")","v":""},{"$f":"IF(A15<>\"\",IF($AD15<>\"\",VLOOKUP($AD15,Immobilisations[],8),\"\"),\"\")","v":""},"","","","","","","","","","","","",""]
[null,null,null,null,null,null,{"$f":"IF(H16=\"\",\"\",H16*Pilotage!$D$16)","v":""},null,null,{"$f":"IF(A16=\"\",\"\",SUM(F16:G16)*Pilotage!$D$14*I16)","v":""},{"$f":"IF(A16=\"\",\"\",L16*(100/(100 + 100*Pilotage!$D$14)))","v":""},"",null,null,null,null,null,null,null,null,null,null,"","","","","",null,null,null,{"$f":"IF(A16<>\"\",IF($AD16<>\"\",VLOOKUP($AD16,Immobilisations[],7),0),\"\")","v":""},{"$f":"IF(A16<>\"\",IF($AD16<>\"\",VLOOKUP($AD16,Immobilisations[],8),\"\"),\"\")","v":""},"","","","","","","","","","","","",""]
[null,null,null,null,null,null,null,null,null,{"$f":"IF(A17=\"\",\"\",SUM(F17:G17)*Pilotage!$D$14*I17)","v":""},{"$f":"IF(A17=\"\",\"\",L17*(100/(100 + 100*Pilotage!$D$14)))","v":""},null,null,null,null,null,null,null,null,null,null,null,"","","","","",null,null,null,{"$f":"IF(A17<>\"\",IF($AD17<>\"\",VLOOKUP($AD17,Immobilisations[],7),0),\"\")","v":""},{"$f":"IF(A17<>\"\",IF($AD17<>\"\",VLOOKUP($AD17,Immobilisations[],8),\"\"),\"\")","v":""},"","","","","","","","","","","","",""]
[null,null,null,null,null,null,{"$f":"IF(H18=\"\",\"\",H18*Pilotage!$D$16)","v":""},null,null,{"$f":"IF(A18=\"\",\"\",SUM(F18:G18)*Pilotage!$D$14*I18)","v":""},{"$f":"IF(A18=\"\",\"\",L18*(100/(100 + 100*Pilotage!$D$14)))","v":""},{"$f":"IF(A18=\"\",\"\",(SUM(F18:G18)+J18)*A18)","v":""},null,null,null,null,null,null,null,null,null,null,"","","","","",null,null,null,{"$f":"IF(A18<>\"\",IF($AD18<>\"\",VLOOKUP($AD18,Immobilisations[],7),0),\"\")","v":""},{"$f":"IF(A18<>\"\",IF($AD18<>\"\",VLOOKUP($AD18,Immobilisations[],8),\"\"),\"\")","v":""},"","","","","","","","","","","","",""]
[null,null,null,null,null,null,{"$f":"IF(H19=\"\",\"\",H19*Pilotage!$D$16)","v":""},null,null,{"$f":"IF(A19=\"\",\"\",SUM(F19:G19)*Pilotage!$D$14*I19)","v":""},{"$f":"IF(A19=\"\",\"\",L19*(100/(100 + 100*Pilotage!$D$14)))","v":""},"",null,null,null,null,null,null,null,null,null,null,"","","","","",null,null,null,{"$f":"IF(A19<>\"\",IF($AD19<>\"\",VLOOKUP($AD19,Immobilisations[],7),0),\"\")","v":""},{"$f":"IF(A19<>\"\",IF($AD19<>\"\",VLOOKUP($AD19,Immobilisations[],8),\"\"),\"\")","v":""},"","","","","","","","","","","","",""]
[null,null,null,null,null,null,{"$f":"IF(H20=\"\",\"\",H20*Pilotage!$D$16)","v":""},null,null,{"$f":"IF(A20=\"\",\"\",SUM(F20:G20)*Pilotage!$D$14*I20)","v":""},{"$f":"IF(A20=\"\",\"\",L20*(100/(100 + 100*Pilotage!$D$14)))","v":""},"",null,null,null,null,null,null,null,null,null,null,"","","","","",null,null,null,{"$f":"IF(A20<>\"\",IF($AD20<>\"\",VLOOKUP($AD20,Immobilisations[],7),0),\"\")","v":""},{"$f":"IF(A20<>\"\",IF($AD20<>\"\",VLOOKUP($AD20,Immobilisations[],8),\"\"),\"\")","v":""},"","","","","","","","","","","","",""]
[null,null,null,null,null,null,{"$f":"IF(H21=\"\",\"\",H21*Pilotage!$D$16)","v":""},null,null,{"$f":"IF(A21=\"\",\"\",SUM(F21:G21)*Pilotage!$D$14*I21)","v":""},{"$f":"IF(A21=\"\",\"\",L21*(100/(100 + 100*Pilotage!$D$14)))","v":""},"",null,null,null,null,null,null,null,null,null,null,"","","","","",null,null,null,{"$f":"IF(A21<>\"\",IF($AD21<>\"\",VLOOKUP($AD21,Immobilisations[],7),0),\"\")","v":""},{"$f":"IF(A21<>\"\",IF($AD21<>\"\",VLOOKUP($AD21,Immobilisations[],8),\"\"),\"\")","v":""},"","","","","","","","","","","","",""]
[null,null,null,null,null,null,{"$f":"IF(H22=\"\",\"\",H22*Pilotage!$D$16)","v":""},null,null,{"$f":"IF(A22=\"\",\"\",SUM(F22:G22)*Pilotage!$D$14*I22)","v":""},{"$f":"IF(A22=\"\",\"\",L22*(100/(100 + 100*Pilotage!$D$14)))","v":""},"",null,null,null,null,null,null,null,null,null,null,"","","","","",null,null,null,{"$f":"IF(A22<>\"\",IF($AD22<>\"\",VLOOKUP($AD22,Immobilisations[],7),0),\"\")","v":""},{"$f":"IF(A22<>\"\",IF($AD22<>\"\",VLOOKUP($AD22,Immobilisations[],8),\"\"),\"\")","v":""},"","","","","","","","","","","","",""]
[null,null,null,null,null,null,{"$f":"IF(H23=\"\",\"\",H23*Pilotage!$D$16)","v":""},null,null,{"$f":"IF(A23=\"\",\"\",SUM(F23:G23)*Pilotage!$D$14*I23)","v":""},{"$f":"IF(A23=\"\",\"\",L23*(100/(100 + 100*Pilotage!$D$14)))","v":""},"",null,null,null,null,null,null,null,null,null,null,"","","","","",null,null,null,{"$f":"IF(A23<>\"\",IF($AD23<>\"\",VLOOKUP($AD23,Immobilisations[],7),0),\"\")","v":""},{"$f":"IF(A23<>\"\",IF($AD23<>\"\",VLOOKUP($AD23,Immobilisations[],8),\"\"),\"\")","v":""},"","","","","","","","","","","","",""]
[null,null,null,null,null,null,{"$f":"IF(H24=\"\",\"\",H24*Pilotage!$D$16)","v":""},null,null,{"$f":"IF(A24=\"\",\"\",SUM(F24:G24)*Pilotage!$D$14*I24)","v":""},{"$f":"IF(A24=\"\",\"\",L24*(100/(100 + 100*Pilotage!$D$14)))","v":""},"",null,null,null,null,null,null,null,null,null,null,"","","","","",null,null,null,{"$f":"IF(A24<>\"\",IF($AD24<>\"\",VLOOKUP($AD24,Immobilisations[],7),0),\"\")","v":""},{"$f":"IF(A24<>\"\",IF($AD24<>\"\",VLOOKUP($AD24,Immobilisations[],8),\"\"),\"\")","v":""},"","","","","","","","","","","","",""]
[null,null,null,null,null,null,{"$f":"IF(H25=\"\",\"\",H25*Pilotage!$D$16)","v":""},null,null,{"$f":"IF(A25=\"\",\"\",SUM(F25:G25)*Pilotage!$D$14*I25)","v":""},{"$f":"IF(A25=\"\",\"\",L25*(100/(100 + 100*Pilotage!$D$14)))","v":""},"",null,null,null,null,null,null,null,null,null,null,"","","","","",null,null,null,{"$f":"IF(A25<>\"\",IF($AD25<>\"\",VLOOKUP($AD25,Immobilisations[],7),0),\"\")","v":""},{"$f":"IF(A25<>\"\",IF($AD25<>\"\",VLOOKUP($AD25,Immobilisations[],8),\"\"),\"\")","v":""},"","","","","","","","","","","","",""]
[null,null,null,null,null,null,{"$f":"IF(H26=\"\",\"\",H26*Pilotage!$D$16)","v":""},null,null,{"$f":"IF(A26=\"\",\"\",SUM(F26:G26)*Pilotage!$D$14*I26)","v":""},{"$f":"IF(A26=\"\",\"\",L26*(100/(100 + 100*Pilotage!$D$14)))","v":""},"",null,null,null,null,null,null,null,null,null,null,"","","","","",null,null,null,{"$f":"IF(A26<>\"\",IF($AD26<>\"\",VLOOKUP($AD26,Immobilisations[],7),0),\"\")","v":""},{"$f":"IF(A26<>\"\",IF($AD26<>\"\",VLOOKUP($AD26,Immobilisations[],8),\"\"),\"\")","v":""},"","","","","","","","","","","","",""]
[null,null,null,null,null,null,{"$f":"IF(H27=\"\",\"\",H27*Pilotage!$D$16)","v":""},null,null,{"$f":"IF(A27=\"\",\"\",SUM(F27:G27)*Pilotage!$D$14*I27)","v":""},{"$f":"IF(A27=\"\",\"\",L27*(100/(100 + 100*Pilotage!$D$14)))","v":""},"",null,null,null,null,null,null,null,null,null,null,"","","","","",null,null,null,{"$f":"IF(A27<>\"\",IF($AD27<>\"\",VLOOKUP($AD27,Immobilisations[],7),0),\"\")","v":""},{"$f":"IF(A27<>\"\",IF($AD27<>\"\",VLOOKUP($AD27,Immobilisations[],8),\"\"),\"\")","v":""},"","","","","","","","","","","","",""]
[null,null,null,null,null,null,{"$f":"IF(H28=\"\",\"\",H28*Pilotage!$D$16)","v":""},null,null,{"$f":"IF(A28=\"\",\"\",SUM(F28:G28)*Pilotage!$D$14*I28)","v":""},{"$f":"IF(A28=\"\",\"\",L28*(100/(100 + 100*Pilotage!$D$14)))","v":""},"",null,null,null,null,null,null,null,null,null,null,"","","","","",null,null,null,{"$f":"IF(A28<>\"\",IF($AD28<>\"\",VLOOKUP($AD28,Immobilisations[],7),0),\"\")","v":""},{"$f":"IF(A28<>\"\",IF($AD28<>\"\",VLOOKUP($AD28,Immobilisations[],8),\"\"),\"\")","v":""},"","","","","","","","","","","","",""]
[null,null,null,null,null,null,null,null,null,{"$f":"IF(A29=\"\",\"\",SUM(F29:G29)*Pilotage!$D$14*I29)","v":""},{"$f":"IF(A29=\"\",\"\",L29*(100/(100 + 100*Pilotage!$D$14)))","v":""},"",null,null,null,null,null,null,null,null,null,null,"","","","","",null,null,null,{"$f":"IF(A29<>\"\",IF($AD29<>\"\",VLOOKUP($AD29,Immobilisations[],7),0),\"\")","v":""},{"$f":"IF(A29<>\"\",IF($AD29<>\"\",VLOOKUP($AD29,Immobilisations[],8),\"\"),\"\")","v":""},"","","","","","","","","","","","",""]
[null,null,null,null,null,null,null,null,null,{"$f":"IF(A30=\"\",\"\",SUM(F30:G30)*Pilotage!$D$14*I30)","v":""},{"$f":"IF(A30=\"\",\"\",L30*(100/(100 + 100*Pilotage!$D$14)))","v":""},"",null,null,null,null,null,null,null,null,null,null,"","","","","",null,null,null,{"$f":"IF(A30<>\"\",IF($AD30<>\"\",VLOOKUP($AD30,Immobilisations[],7),0),\"\")","v":""},{"$f":"IF(A30<>\"\",IF($AD30<>\"\",VLOOKUP($AD30,Immobilisations[],8),\"\"),\"\")","v":""},"","","","","","","","","","","","",""]
[null,null,null,null,null,null,null,null,null,{"$f":"IF(A31=\"\",\"\",SUM(F31:G31)*Pilotage!$D$14*I31)","v":""},{"$f":"IF(A31=\"\",\"\",L31*(100/(100 + 100*Pilotage!$D$14)))","v":""},"",null,null,null,null,null,null,null,null,null,null,"","","","","",null,null,null,{"$f":"IF(A31<>\"\",IF($AD31<>\"\",VLOOKUP($AD31,Immobilisations[],7),0),\"\")","v":""},{"$f":"IF(A31<>\"\",IF($AD31<>\"\",VLOOKUP($AD31,Immobilisations[],8),\"\"),\"\")","v":""},"","","","","","","","","","","","",""]
[null,null,null,null,null,null,null,null,null,{"$f":"IF(A32=\"\",\"\",SUM(F32:G32)*Pilotage!$D$14*I32)","v":""},{"$f":"IF(A32=\"\",\"\",L32*(100/(100 + 100*Pilotage!$D$14)))","v":""},"",null,null,null,null,null,null,null,null,null,null,"","","","","",null,null,null,{"$f":"IF(A32<>\"\",IF($AD32<>\"\",VLOOKUP($AD32,Immobilisations[],7),0),\"\")","v":""},{"$f":"IF(A32<>\"\",IF($AD32<>\"\",VLOOKUP($AD32,Immobilisations[],8),\"\"),\"\")","v":""},"","","","","","","","","","","","",""]
[null,null,null,null,null,null,null,null,null,{"$f":"IF(A33=\"\",\"\",SUM(F33:G33)*Pilotage!$D$14*I33)","v":""},{"$f":"IF(A33=\"\",\"\",L33*(100/(100 + 100*Pilotage!$D$14)))","v":""},"",null,null,null,null,null,null,null,null,null,null,"","","","","",null,null,null,{"$f":"IF(A33<>\"\",IF($AD33<>\"\",VLOOKUP($AD33,Immobilisations[],7),0),\"\")","v":""},{"$f":"IF(A33<>\"\",IF($AD33<>\"\",VLOOKUP($AD33,Immobilisations[],8),\"\"),\"\")","v":""},"","","","","","","","","","","","",""]
[null,null,null,null,null,null,null,null,null,{"$f":"IF(A34=\"\",\"\",SUM(F34:G34)*Pilotage!$D$14*I34)","v":""},{"$f":"IF(A34=\"\",\"\",L34*(100/(100 + 100*Pilotage!$D$14)))","v":""},null,null,null,null,null,null,null,null,null,null,null,"","","","","",null,null,null,{"$f":"IF(A34<>\"\",IF($AD34<>\"\",VLOOKUP($AD34,Immobilisations[],7),0),\"\")","v":""},{"$f":"IF(A34<>\"\",IF($AD34<>\"\",VLOOKUP($AD34,Immobilisations[],8),\"\"),\"\")","v":""},"","","","","","","","","","","","",""]
[null,null,null,null,null,null,null,null,null,{"$f":"IF(A35=\"\",\"\",SUM(F35:G35)*Pilotage!$D$14*I35)","v":""},{"$f":"IF(A35=\"\",\"\",L35*(100/(100 + 100*Pilotage!$D$14)))","v":""},null,null,null,null,null,null,null,null,null,null,null,"","","","","",null,null,null,{"$f":"IF(A35<>\"\",IF($AD35<>\"\",VLOOKUP($AD35,Immobilisations[],7),0),\"\")","v":""},{"$f":"IF(A35<>\"\",IF($AD35<>\"\",VLOOKUP($AD35,Immobilisations[],8),\"\"),\"\")","v":""},"","","","","","","","","","","","",""]
[null,null,null,null,null,null,null,null,null,{"$f":"IF(A36=\"\",\"\",SUM(F36:G36)*Pilotage!$D$14*I36)","v":""},{"$f":"IF(A36=\"\",\"\",L36*(100/(100 + 100*Pilotage!$D$14)))","v":""},null,null,null,null,null,null,null,null,null,null,null,"","","","","",null,null,null,{"$f":"IF(A36<>\"\",IF($AD36<>\"\",VLOOKUP($AD36,Immobilisations[],7),0),\"\")","v":""},{"$f":"IF(A36<>\"\",IF($AD36<>\"\",VLOOKUP($AD36,Immobilisations[],8),\"\"),\"\")","v":""},"","","","","","","","","","","","",""]
[null,null,null,null,null,null,null,null,null,{"$f":"IF(A37=\"\",\"\",SUM(F37:G37)*Pilotage!$D$14*I37)","v":""},{"$f":"IF(A37=\"\",\"\",L37*(100/(100 + 100*Pilotage!$D$14)))","v":""},null,null,null,null,null,null,null,null,null,null,null,"","","","","",null,null,null,{"$f":"IF(A37<>\"\",IF($AD37<>\"\",VLOOKUP($AD37,Immobilisations[],7),0),\"\")","v":""},{"$f":"IF(A37<>\"\",IF($AD37<>\"\",VLOOKUP($AD37,Immobilisations[],8),\"\"),\"\")","v":""},"","","","","","","","","","","","",""]
[null,null,null,null,null,null,null,null,null,{"$f":"IF(A38=\"\",\"\",SUM(F38:G38)*Pilotage!$D$14*I38)","v":""},{"$f":"IF(A38=\"\",\"\",L38*(100/(100 + 100*Pilotage!$D$14)))","v":""},null,null,null,null,null,null,null,null,null,null,null,"","","","","",null,null,null,{"$f":"IF(A38<>\"\",IF($AD38<>\"\",VLOOKUP($AD38,Immobilisations[],7),0),\"\")","v":""},{"$f":"IF(A38<>\"\",IF($AD38<>\"\",VLOOKUP($AD38,Immobilisations[],8),\"\"),\"\")","v":""},"","","","","","","","","","","","",""]
[null,null,null,null,null,null,null,null,null,{"$f":"IF(A39=\"\",\"\",SUM(F39:G39)*Pilotage!$D$14*I39)","v":""},{"$f":"IF(A39=\"\",\"\",L39*(100/(100 + 100*Pilotage!$D$14)))","v":""},null,null,null,null,null,null,null,null,null,null,null,"","","","","",null,null,null,{"$f":"IF(A39<>\"\",IF($AD39<>\"\",VLOOKUP($AD39,Immobilisations[],7),0),\"\")","v":""},{"$f":"IF(A39<>\"\",IF($AD39<>\"\",VLOOKUP($AD39,Immobilisations[],8),\"\"),\"\")","v":""},{"$f":"IF(AND($A39<>\"\",$AF39<>\"\"),IF(AG$2=0,0,IF(ROUNDDOWN(AG$2/($AE39+1),0)=0,$K39*$AE39/100,0)),\"\")","v":""},"","","","","","","","","","","",""]
[null,null,null,null,null,null,null,null,null,{"$f":"IF(A40=\"\",\"\",SUM(F40:G40)*Pilotage!$D$14*I40)","v":""},{"$f":"IF(A40=\"\",\"\",L40*(100/(100 + 100*Pilotage!$D$14)))","v":""},null,null,null,null,null,null,null,null,null,null,null,"","","","","",null,null,null,{"$f":"IF(A40<>\"\",IF($AD40<>\"\",VLOOKUP($AD40,Immobilisations[],7),0),\"\")","v":""},{"$f":"IF(A40<>\"\",IF($AD40<>\"\",VLOOKUP($AD40,Immobilisations[],8),\"\"),\"\")","v":""},"","","","","","","","","","","","",""]
[null,null,null,null,null,null,null,null,null,{"$f":"IF(A41=\"\",\"\",SUM(F41:G41)*Pilotage!$D$14*I41)","v":""},{"$f":"IF(A41=\"\",\"\",L41*(100/(100 + 100*Pilotage!$D$14)))","v":""},null,null,null,null,null,null,null,null,null,null,null,"","","","","",null,null,null,{"$f":"IF(A41<>\"\",IF($AD41<>\"\",VLOOKUP($AD41,Immobilisations[],7),0),\"\")","v":""},{"$f":"IF(A41<>\"\",IF($AD41<>\"\",VLOOKUP($AD41,Immobilisations[],8),\"\"),\"\")","v":""},"","","","","","","","","","","","",""]
[null,null,null,null,null,null,null,null,null,{"$f":"IF(A42=\"\",\"\",SUM(F42:G42)*Pilotage!$D$14*I42)","v":""},{"$f":"IF(A42=\"\",\"\",L42*(100/(100 + 100*Pilotage!$D$14)))","v":""},null,null,null,null,null,null,null,null,null,null,null,"","","","","",null,null,null,{"$f":"IF(A42<>\"\",IF($AD42<>\"\",VLOOKUP($AD42,Immobilisations[],7),0),\"\")","v":""},{"$f":"IF(A42<>\"\",IF($AD42<>\"\",VLOOKUP($AD42,Immobilisations[],8),\"\"),\"\")","v":""},"","","","","","","","","","","","",""]
[null,null,null,null,null,null,null,null,null,{"$f":"IF(A43=\"\",\"\",SUM(F43:G43)*Pilotage!$D$14*I43)","v":""},{"$f":"IF(A43=\"\",\"\",L43*(100/(100 + 100*Pilotage!$D$14)))","v":""},null,null,null,null,null,null,null,null,null,null,null,"","","","","",null,null,null,{"$f":"IF(A43<>\"\",IF($AD43<>\"\",VLOOKUP($AD43,Immobilisations[],7),0),\"\")","v":""},{"$f":"IF(A43<>\"\",IF($AD43<>\"\",VLOOKUP($AD43,Immobilisations[],8),\"\"),\"\")","v":""},"","","","","","","","","","","","",""]
[null,null,null,null,null,null,null,null,null,{"$f":"IF(A44=\"\",\"\",SUM(F44:G44)*Pilotage!$D$14*I44)","v":""},{"$f":"IF(A44=\"\",\"\",L44*(100/(100 + 100*Pilotage!$D$14)))","v":""},null,null,null,null,null,null,null,null,null,null,null,"","","","","",null,null,null,{"$f":"IF(A44<>\"\",IF($AD44<>\"\",VLOOKUP($AD44,Immobilisations[],7),0),\"\")","v":""},{"$f":"IF(A44<>\"\",IF($AD44<>\"\",VLOOKUP($AD44,Immobilisations[],8),\"\"),\"\")","v":""},"","","","","","","","","","","","",""]
[null,null,null,null,null,null,null,null,null,{"$f":"IF(A45=\"\",\"\",SUM(F45:G45)*Pilotage!$D$14*I45)","v":""},{"$f":"IF(A45=\"\",\"\",L45*(100/(100 + 100*Pilotage!$D$14)))","v":""},null,null,null,null,null,null,null,null,null,null,null,"","","","","",null,null,null,{"$f":"IF(A45<>\"\",IF($AD45<>\"\",VLOOKUP($AD45,Immobilisations[],7),0),\"\")","v":""},{"$f":"IF(A45<>\"\",IF($AD45<>\"\",VLOOKUP($AD45,Immobilisations[],8),\"\"),\"\")","v":""},"","","","","","","","","","","","",""]
[null,null,null,null,null,null,null,null,null,{"$f":"IF(A46=\"\",\"\",SUM(F46:G46)*Pilotage!$D$14*I46)","v":""},{"$f":"IF(A46=\"\",\"\",L46*(100/(100 + 100*Pilotage!$D$14)))","v":""},null,null,null,null,null,null,null,null,null,null,null,"","","","","",null,null,null,{"$f":"IF(A46<>\"\",IF($AD46<>\"\",VLOOKUP($AD46,Immobilisations[],7),0),\"\")","v":""},{"$f":"IF(A46<>\"\",IF($AD46<>\"\",VLOOKUP($AD46,Immobilisations[],8),\"\"),\"\")","v":""},"","","","","","","","","","","","",""]
[null,null,null,null,null,null,null,null,null,{"$f":"IF(A47=\"\",\"\",SUM(F47:G47)*Pilotage!$D$14*I47)","v":""},{"$f":"IF(A47=\"\",\"\",L47*(100/(100 + 100*Pilotage!$D$14)))","v":""},null,null,null,null,null,null,null,null,null,null,null,"","","","","",null,null,null,{"$f":"IF(A47<>\"\",IF($AD47<>\"\",VLOOKUP($AD47,Immobilisations[],7),0),\"\")","v":""},{"$f":"IF(A47<>\"\",IF($AD47<>\"\",VLOOKUP($AD47,Immobilisations[],8),\"\"),\"\")","v":""},"","","","","","","","","","","","",""]
[null,null,null,null,null,null,null,null,null,{"$f":"IF(A48=\"\",\"\",SUM(F48:G48)*Pilotage!$D$14*I48)","v":""},{"$f":"IF(A48=\"\",\"\",L48*(100/(100 + 100*Pilotage!$D$14)))","v":""},null,null,null,null,null,null,null,null,null,null,null,"","","","","",null,null,null,{"$f":"IF(A48<>\"\",IF($AD48<>\"\",VLOOKUP($AD48,Immobilisations[],7),0),\"\")","v":""},{"$f":"IF(A48<>\"\",IF($AD48<>\"\",VLOOKUP($AD48,Immobilisations[],8),\"\"),\"\")","v":""},"","","","","","","","","","","","",""]
[null,null,null,null,null,null,null,null,null,{"$f":"IF(A49=\"\",\"\",SUM(F49:G49)*Pilotage!$D$14*I49)","v":""},{"$f":"IF(A49=\"\",\"\",L49*(100/(100 + 100*Pilotage!$D$14)))","v":""},null,null,null,null,null,null,null,null,null,null,null,"","","","","",null,null,null,{"$f":"IF(A49<>\"\",IF($AD49<>\"\",VLOOKUP($AD49,Immobilisations[],7),0),\"\")","v":""},{"$f":"IF(A49<>\"\",IF($AD49<>\"\",VLOOKUP($AD49,Immobilisations[],8),\"\"),\"\")","v":""},"","","","","","","","","","","","",""]
[null,null,null,null,null,null,null,null,null,{"$f":"IF(A50=\"\",\"\",SUM(F50:G50)*Pilotage!$D$14*I50)","v":""},{"$f":"IF(A50=\"\",\"\",L50*(100/(100 + 100*Pilotage!$D$14)))","v":""},null,null,null,null,null,null,null,null,null,null,null,"","","","","",null,null,null,{"$f":"IF(A50<>\"\",IF($AD50<>\"\",VLOOKUP($AD50,Immobilisations[],7),0),\"\")","v":""},{"$f":"IF(A50<>\"\",IF($AD50<>\"\",VLOOKUP($AD50,Immobilisations[],8),\"\"),\"\")","v":""},"","","","","","","","","","","","",""]
[null,null,null,null,null,null,null,null,null,{"$f":"IF(A51=\"\",\"\",SUM(F51:G51)*Pilotage!$D$14*I51)","v":""},{"$f":"IF(A51=\"\",\"\",L51*(100/(100 + 100*Pilotage!$D$14)))","v":""},null,null,null,null,null,null,null,null,null,null,null,"","","","","",null,null,null,{"$f":"IF(A51<>\"\",IF($AD51<>\"\",VLOOKUP($AD51,Immobilisations[],7),0),\"\")","v":""},{"$f":"IF(A51<>\"\",IF($AD51<>\"\",VLOOKUP($AD51,Immobilisations[],8),\"\"),\"\")","v":""},"","","","","","","","","","","","",""]
[null,null,null,null,null,null,null,null,null,{"$f":"IF(A52=\"\",\"\",SUM(F52:G52)*Pilotage!$D$14*I52)","v":""},{"$f":"IF(A52=\"\",\"\",L52*(100/(100 + 100*Pilotage!$D$14)))","v":""},null,null,null,null,null,null,null,null,null,null,null,"","","","","",null,null,null,{"$f":"IF(A52<>\"\",IF($AD52<>\"\",VLOOKUP($AD52,Immobilisations[],7),0),\"\")","v":""},{"$f":"IF(A52<>\"\",IF($AD52<>\"\",VLOOKUP($AD52,Immobilisations[],8),\"\"),\"\")","v":""},"","","","","","","","","","","","",""]
[null,null,null,null,null,null,null,null,null,{"$f":"IF(A53=\"\",\"\",SUM(F53:G53)*Pilotage!$D$14*I53)","v":""},{"$f":"IF(A53=\"\",\"\",L53*(100/(100 + 100*Pilotage!$D$14)))","v":""},null,null,null,null,null,null,null,null,null,null,null,"","","","","",null,null,null,{"$f":"IF(A53<>\"\",IF($AD53<>\"\",VLOOKUP($AD53,Immobilisations[],7),0),\"\")","v":""},{"$f":"IF(A53<>\"\",IF($AD53<>\"\",VLOOKUP($AD53,Immobilisations[],8),\"\"),\"\")","v":""},"","","","","","","","","","","","",""]
[null,null,null,null,null,null,null,null,null,{"$f":"IF(A54=\"\",\"\",SUM(F54:G54)*Pilotage!$D$14*I54)","v":""},{"$f":"IF(A54=\"\",\"\",L54*(100/(100 + 100*Pilotage!$D$14)))","v":""},null,null,null,null,null,null,null,null,null,null,null,"","","","","",null,null,null,{"$f":"IF(A54<>\"\",IF($AD54<>\"\",VLOOKUP($AD54,Immobilisations[],7),0),\"\")","v":""},{"$f":"IF(A54<>\"\",IF($AD54<>\"\",VLOOKUP($AD54,Immobilisations[],8),\"\"),\"\")","v":""},"","","","","","","","","","","","",""]
[null,null,null,null,null,null,null,null,null,{"$f":"IF(A55=\"\",\"\",SUM(F55:G55)*Pilotage!$D$14*I55)","v":""},{"$f":"IF(A55=\"\",\"\",L55*(100/(100 + 100*Pilotage!$D$14)))","v":""},null,null,null,null,null,null,null,null,null,null,null,"","","","","",null,null,null,{"$f":"IF(A55<>\"\",IF($AD55<>\"\",VLOOKUP($AD55,Immobilisations[],7),0),\"\")","v":""},{"$f":"IF(A55<>\"\",IF($AD55<>\"\",VLOOKUP($AD55,Immobilisations[],8),\"\"),\"\")","v":""},"","","","","","","","","","","","",""]
[null,null,null,null,null,null,null,null,null,{"$f":"IF(A56=\"\",\"\",SUM(F56:G56)*Pilotage!$D$14*I56)","v":""},{"$f":"IF(A56=\"\",\"\",L56*(100/(100 + 100*Pilotage!$D$14)))","v":""},null,null,null,null,null,null,null,null,null,null,null,"","","","","",null,null,null,{"$f":"IF(A56<>\"\",IF($AD56<>\"\",VLOOKUP($AD56,Immobilisations[],7),0),\"\")","v":""},{"$f":"IF(A56<>\"\",IF($AD56<>\"\",VLOOKUP($AD56,Immobilisations[],8),\"\"),\"\")","v":""},"","","","","","","","","","","","",""]
[null,null,null,null,null,null,null,null,null,{"$f":"IF(A57=\"\",\"\",SUM(F57:G57)*Pilotage!$D$14*I57)","v":""},{"$f":"IF(A57=\"\",\"\",L57*(100/(100 + 100*Pilotage!$D$14)))","v":""},null,null,null,null,null,null,null,null,null,null,null,"","","","","",null,null,null,{"$f":"IF(A57<>\"\",IF($AD57<>\"\",VLOOKUP($AD57,Immobilisations[],7),0),\"\")","v":""},{"$f":"IF(A57<>\"\",IF($AD57<>\"\",VLOOKUP($AD57,Immobilisations[],8),\"\"),\"\")","v":""},"","","","","","","","","","","","",""]
[null,null,null,null,null,null,null,null,null,{"$f":"IF(A58=\"\",\"\",SUM(F58:G58)*Pilotage!$D$14*I58)","v":""},{"$f":"IF(A58=\"\",\"\",L58*(100/(100 + 100*Pilotage!$D$14)))","v":""},null,null,null,null,null,null,null,null,null,null,null,"","","","","",null,null,null,{"$f":"IF(A58<>\"\",IF($AD58<>\"\",VLOOKUP($AD58,Immobilisations[],7),0),\"\")","v":""},{"$f":"IF(A58<>\"\",IF($AD58<>\"\",VLOOKUP($AD58,Immobilisations[],8),\"\"),\"\")","v":""},"","","","","","","","",{"$f":"IF(AND($A58<>\"\",$AF58<>\"\"),IF(AO$2=0,0,IF(ROUNDDOWN(AO$2/($AE58+1),0)=0,$K58*$AE58/100,0)),\"\")","v":""},"","","",""]
[null,null,null,null,null,null,null,null,null,{"$f":"IF(A59=\"\",\"\",SUM(F59:G59)*Pilotage!$D$14*I59)","v":""},{"$f":"IF(A59=\"\",\"\",L59*(100/(100 + 100*Pilotage!$D$14)))","v":""},null,null,null,null,null,null,null,null,null,null,null,"","","","","",null,null,null,{"$f":"IF(A59<>\"\",IF($AD59<>\"\",VLOOKUP($AD59,Immobilisations[],7),0),\"\")","v":""},{"$f":"IF(A59<>\"\",IF($AD59<>\"\",VLOOKUP($AD59,Immobilisations[],8),\"\"),\"\")","v":""},{"$f":"IF(AND($A59<>\"\",$AF59<>\"\"),IF(AG$2=0,0,IF(ROUNDDOWN(AG$2/($AE59+1),0)=0,$K59*$AE59/100,0)),\"\")","v":""},"","","","","","","","","","","",""]
[null,null,null,null,null,null,null,null,null,{"$f":"IF(A60=\"\",\"\",SUM(F60:G60)*Pilotage!$D$14*I60)","v":""},{"$f":"IF(A60=\"\",\"\",L60*(100/(100 + 100*Pilotage!$D$14)))","v":""},null,null,null,null,null,null,null,null,null,null,null,"","","","","",null,null,null,{"$f":"IF(A60<>\"\",IF($AD60<>\"\",VLOOKUP($AD60,Immobilisations[],7),0),\"\")","v":""},{"$f":"IF(A60<>\"\",IF($AD60<>\"\",VLOOKUP($AD60,Immobilisations[],8),\"\"),\"\")","v":""},"","","","","","","","","","","","",""]
[null,null,null,null,null,null,null,null,null,{"$f":"IF(A61=\"\",\"\",SUM(F61:G61)*Pilotage!$D$14*I61)","v":""},{"$f":"IF(A61=\"\",\"\",L61*(100/(100 + 100*Pilotage!$D$14)))","v":""},null,null,null,null,null,null,null,null,null,null,null,"","","","","",null,null,null,{"$f":"IF(A61<>\"\",IF($AD61<>\"\",VLOOKUP($AD61,Immobilisations[],7),0),\"\")","v":""},{"$f":"IF(A61<>\"\",IF($AD61<>\"\",VLOOKUP($AD61,Immobilisations[],8),\"\"),\"\")","v":""},"","","","","","","","","","","","",""]
[null,null,null,null,null,null,null,null,null,{"$f":"IF(A62=\"\",\"\",SUM(F62:G62)*Pilotage!$D$14*I62)","v":""},{"$f":"IF(A62=\"\",\"\",L62*(100/(100 + 100*Pilotage!$D$14)))","v":""},null,null,null,null,null,null,null,null,null,null,null,"","","","","",null,null,null,{"$f":"IF(A62<>\"\",IF($AD62<>\"\",VLOOKUP($AD62,Immobilisations[],7),0),\"\")","v":""},{"$f":"IF(A62<>\"\",IF($AD62<>\"\",VLOOKUP($AD62,Immobilisations[],8),\"\"),\"\")","v":""},"","","","","","","","","","","","",""]
[null,null,null,null,null,null,null,null,null,{"$f":"IF(A63=\"\",\"\",SUM(F63:G63)*Pilotage!$D$14*I63)","v":""},{"$f":"IF(A63=\"\",\"\",L63*(100/(100 + 100*Pilotage!$D$14)))","v":""},null,null,null,null,null,null,null,null,null,null,null,"","","","","",null,null,null,{"$f":"IF(A63<>\"\",IF($AD63<>\"\",VLOOKUP($AD63,Immobilisations[],7),0),\"\")","v":""},{"$f":"IF(A63<>\"\",IF($AD63<>\"\",VLOOKUP($AD63,Immobilisations[],8),\"\"),\"\")","v":""},"","","","","","","","","","","","",""]
[null,null,null,null,null,null,null,null,null,{"$f":"IF(A64=\"\",\"\",SUM(F64:G64)*Pilotage!$D$14*I64)","v":""},{"$f":"IF(A64=\"\",\"\",L64*(100/(100 + 100*Pilotage!$D$14)))","v":""},null,null,null,null,null,null,null,null,null,null,null,"","","","","",null,null,null,{"$f":"IF(A64<>\"\",IF($AD64<>\"\",VLOOKUP($AD64,Immobilisations[],7),0),\"\")","v":""},{"$f":"IF(A64<>\"\",IF($AD64<>\"\",VLOOKUP($AD64,Immobilisations[],8),\"\"),\"\")","v":""},"","","","","","","","","","","","",""]
[null,null,null,null,null,null,null,null,null,{"$f":"IF(A65=\"\",\"\",SUM(F65:G65)*Pilotage!$D$14*I65)","v":""},{"$f":"IF(A65=\"\",\"\",L65*(100/(100 + 100*Pilotage!$D$14)))","v":""},null,null,null,null,null,null,null,null,null,null,null,"","","","","",null,null,null,{"$f":"IF(A65<>\"\",IF($AD65<>\"\",VLOOKUP($AD65,Immobilisations[],7),0),\"\")","v":""},{"$f":"IF(A65<>\"\",IF($AD65<>\"\",VLOOKUP($AD65,Immobilisations[],8),\"\"),\"\")","v":""},"","","","","","","","","","","","",""]
[null,null,null,null,null,null,null,null,null,{"$f":"IF(A66=\"\",\"\",SUM(F66:G66)*Pilotage!$D$14*I66)","v":""},{"$f":"IF(A66=\"\",\"\",L66*(100/(100 + 100*Pilotage!$D$14)))","v":""},null,null,null,null,null,null,null,null,null,null,null,"","","","","",null,null,null,{"$f":"IF(A66<>\"\",IF($AD66<>\"\",VLOOKUP($AD66,Immobilisations[],7),0),\"\")","v":""},{"$f":"IF(A66<>\"\",IF($AD66<>\"\",VLOOKUP($AD66,Immobilisations[],8),\"\"),\"\")","v":""},"","","","","","","","","","","","",""]
[null,null,null,null,null,null,null,null,null,{"$f":"IF(A67=\"\",\"\",SUM(F67:G67)*Pilotage!$D$14*I67)","v":""},{"$f":"IF(A67=\"\",\"\",L67*(100/(100 + 100*Pilotage!$D$14)))","v":""},null,null,null,null,null,null,null,null,null,null,null,"","","","","",null,null,null,{"$f":"IF(A67<>\"\",IF($AD67<>\"\",VLOOKUP($AD67,Immobilisations[],7),0),\"\")","v":""},{"$f":"IF(A67<>\"\",IF($AD67<>\"\",VLOOKUP($AD67,Immobilisations[],8),\"\"),\"\")","v":""},"","","","","","","","","","","","",""]
[null,null,null,null,null,null,null,null,null,{"$f":"IF(A68=\"\",\"\",SUM(F68:G68)*Pilotage!$D$14*I68)","v":""},{"$f":"IF(A68=\"\",\"\",L68*(100/(100 + 100*Pilotage!$D$14)))","v":""},null,null,null,null,null,null,null,null,null,null,null,"","","","","",null,null,null,{"$f":"IF(A68<>\"\",IF($AD68<>\"\",VLOOKUP($AD68,Immobilisations[],7),0),\"\")","v":""},{"$f":"IF(A68<>\"\",IF($AD68<>\"\",VLOOKUP($AD68,Immobilisations[],8),\"\"),\"\")","v":""},"","","","","","","","","","","","",""]
[null,null,null,null,null,null,null,null,null,{"$f":"IF(A69=\"\",\"\",SUM(F69:G69)*Pilotage!$D$14*I69)","v":""},{"$f":"IF(A69=\"\",\"\",L69*(100/(100 + 100*Pilotage!$D$14)))","v":""},null,null,null,null,null,null,null,null,null,null,null,"","","","","",null,null,null,{"$f":"IF(A69<>\"\",IF($AD69<>\"\",VLOOKUP($AD69,Immobilisations[],7),0),\"\")","v":""},{"$f":"IF(A69<>\"\",IF($AD69<>\"\",VLOOKUP($AD69,Immobilisations[],8),\"\"),\"\")","v":""},"","","","","","","","","","","","",""]
[null,null,null,null,null,null,null,null,null,{"$f":"IF(A70=\"\",\"\",SUM(F70:G70)*Pilotage!$D$14*I70)","v":""},{"$f":"IF(A70=\"\",\"\",L70*(100/(100 + 100*Pilotage!$D$14)))","v":""},null,null,null,null,null,null,null,null,null,null,null,"","","","","",null,null,null,{"$f":"IF(A70<>\"\",IF($AD70<>\"\",VLOOKUP($AD70,Immobilisations[],7),0),\"\")","v":""},{"$f":"IF(A70<>\"\",IF($AD70<>\"\",VLOOKUP($AD70,Immobilisations[],8),\"\"),\"\")","v":""},"","","","","","","","","","","","",""]
[null,null,null,null,null,null,null,null,null,{"$f":"IF(A71=\"\",\"\",SUM(F71:G71)*Pilotage!$D$14*I71)","v":""},{"$f":"IF(A71=\"\",\"\",L71*(100/(100 + 100*Pilotage!$D$14)))","v":""},null,null,null,null,null,null,null,null,null,null,null,"","","","","",null,null,null,{"$f":"IF(A71<>\"\",IF($AD71<>\"\",VLOOKUP($AD71,Immobilisations[],7),0),\"\")","v":""},{"$f":"IF(A71<>\"\",IF($AD71<>\"\",VLOOKUP($AD71,Immobilisations[],8),\"\"),\"\")","v":""},"","","","","","","","","","","","",""]
[null,null,null,null,null,null,null,null,null,{"$f":"IF(A72=\"\",\"\",SUM(F72:G72)*Pilotage!$D$14*I72)","v":""},{"$f":"IF(A72=\"\",\"\",L72*(100/(100 + 100*Pilotage!$D$14)))","v":""},null,null,null,null,null,null,null,null,null,null,null,"","","","","",null,null,null,{"$f":"IF(A72<>\"\",IF($AD72<>\"\",VLOOKUP($AD72,Immobilisations[],7),0),\"\")","v":""},{"$f":"IF(A72<>\"\",IF($AD72<>\"\",VLOOKUP($AD72,Immobilisations[],8),\"\"),\"\")","v":""},"","","","","","","","","","","","",""]
[null,null,null,null,null,null,null,null,null,{"$f":"IF(A73=\"\",\"\",SUM(F73:G73)*Pilotage!$D$14*I73)","v":""},{"$f":"IF(A73=\"\",\"\",L73*(100/(100 + 100*Pilotage!$D$14)))","v":""},null,null,null,null,null,null,null,null,null,null,null,"","","","","",null,null,null,{"$f":"IF(A73<>\"\",IF($AD73<>\"\",VLOOKUP($AD73,Immobilisations[],7),0),\"\")","v":""},{"$f":"IF(A73<>\"\",IF($AD73<>\"\",VLOOKUP($AD73,Immobilisations[],8),\"\"),\"\")","v":""},"","","","","","","","","","","","",""]
[null,null,null,null,null,null,null,null,null,{"$f":"IF(A74=\"\",\"\",SUM(F74:G74)*Pilotage!$D$14*I74)","v":""},{"$f":"IF(A74=\"\",\"\",L74*(100/(100 + 100*Pilotage!$D$14)))","v":""},null,null,null,null,null,null,null,null,null,null,null,"","","","","",null,null,null,{"$f":"IF(A74<>\"\",IF($AD74<>\"\",VLOOKUP($AD74,Immobilisations[],7),0),\"\")","v":""},{"$f":"IF(A74<>\"\",IF($AD74<>\"\",VLOOKUP($AD74,Immobilisations[],8),\"\"),\"\")","v":""},"","","","","","","","","","","","",""]
[null,null,null,null,null,null,null,null,null,{"$f":"IF(A75=\"\",\"\",SUM(F75:G75)*Pilotage!$D$14*I75)","v":""},{"$f":"IF(A75=\"\",\"\",L75*(100/(100 + 100*Pilotage!$D$14)))","v":""},null,null,null,null,null,null,null,null,null,null,null,"","","","","",null,null,null,{"$f":"IF(A75<>\"\",IF($AD75<>\"\",VLOOKUP($AD75,Immobilisations[],7),0),\"\")","v":""},{"$f":"IF(A75<>\"\",IF($AD75<>\"\",VLOOKUP($AD75,Immobilisations[],8),\"\"),\"\")","v":""},"","","","","","","","","","","","",""]
[null,null,null,null,null,null,null,null,null,{"$f":"IF(A76=\"\",\"\",SUM(F76:G76)*Pilotage!$D$14*I76)","v":""},{"$f":"IF(A76=\"\",\"\",L76*(100/(100 + 100*Pilotage!$D$14)))","v":""},null,null,null,null,null,null,null,null,null,null,null,"","","","","",null,null,null,{"$f":"IF(A76<>\"\",IF($AD76<>\"\",VLOOKUP($AD76,Immobilisations[],7),0),\"\")","v":""},{"$f":"IF(A76<>\"\",IF($AD76<>\"\",VLOOKUP($AD76,Immobilisations[],8),\"\"),\"\")","v":""},"","","","","","","","","","","","",""]
[null,null,null,null,null,null,null,null,null,{"$f":"IF(A77=\"\",\"\",SUM(F77:G77)*Pilotage!$D$14*I77)","v":""},{"$f":"IF(A77=\"\",\"\",L77*(100/(100 + 100*Pilotage!$D$14)))","v":""},null,null,null,null,null,null,null,null,null,null,null,"","","","","",null,null,null,{"$f":"IF(A77<>\"\",IF($AD77<>\"\",VLOOKUP($AD77,Immobilisations[],7),0),\"\")","v":""},{"$f":"IF(A77<>\"\",IF($AD77<>\"\",VLOOKUP($AD77,Immobilisations[],8),\"\"),\"\")","v":""},"","","","","","","","","","","","",""]
[null,null,null,null,null,null,null,null,null,{"$f":"IF(A78=\"\",\"\",SUM(F78:G78)*Pilotage!$D$14*I78)","v":""},{"$f":"IF(A78=\"\",\"\",L78*(100/(100 + 100*Pilotage!$D$14)))","v":""},null,null,null,null,null,null,null,null,null,null,null,"","","","","",null,null,null,{"$f":"IF(A78<>\"\",IF($AD78<>\"\",VLOOKUP($AD78,Immobilisations[],7),0),\"\")","v":""},{"$f":"IF(A78<>\"\",IF($AD78<>\"\",VLOOKUP($AD78,Immobilisations[],8),\"\"),\"\")","v":""},"","","","","","","","","","","","",""]
[null,null,null,null,null,null,null,null,null,{"$f":"IF(A79=\"\",\"\",SUM(F79:G79)*Pilotage!$D$14*I79)","v":""},{"$f":"IF(A79=\"\",\"\",L79*(100/(100 + 100*Pilotage!$D$14)))","v":""},null,null,null,null,null,null,null,null,null,null,null,{"$f":"IF($A79<>\"\",Q79*$K79,\"\")","v":""},{"$f":"IF($A79<>\"\",R79*$K79,\"\")","v":""},{"$f":"IF($A79<>\"\",S79*$K79,\"\")","v":""},{"$f":"IF($A79<>\"\",T79*$K79,\"\")","v":""},{"$f":"IF($A79<>\"\",U79*$K79,\"\")","v":""},null,null,null,{"$f":"IF(A79<>\"\",IF($AD79<>\"\",VLOOKUP($AD79,Immobilisations[],7),0),\"\")","v":""},{"$f":"IF(A79<>\"\",IF($AD79<>\"\",VLOOKUP($AD79,Immobilisations[],8),\"\"),\"\")","v":""},"","","","","","","","","","","","",""]
[null,null,null,null,null,null,null,null,null,{"$f":"IF(A80=\"\",\"\",SUM(F80:G80)*Pilotage!$D$14*I80)","v":""},{"$f":"IF(A80=\"\",\"\",L80*(100/(100 + 100*Pilotage!$D$14)))","v":""},null,null,null,null,null,null,null,null,null,null,null,"","","","","",null,null,null,{"$f":"IF(A80<>\"\",IF($AD80<>\"\",VLOOKUP($AD80,Immobilisations[],7),0),\"\")","v":""},{"$f":"IF(A80<>\"\",IF($AD80<>\"\",VLOOKUP($AD80,Immobilisations[],8),\"\"),\"\")","v":""},"","","","","","","","","","","","",""]
[null,null,null,null,null,null,null,null,null,{"$f":"IF(A81=\"\",\"\",SUM(F81:G81)*Pilotage!$D$14*I81)","v":""},{"$f":"IF(A81=\"\",\"\",L81*(100/(100 + 100*Pilotage!$D$14)))","v":""},null,null,null,null,null,null,null,null,null,null,null,"","","","","",null,null,null,{"$f":"IF(A81<>\"\",IF($AD81<>\"\",VLOOKUP($AD81,Immobilisations[],7),0),\"\")","v":""},{"$f":"IF(A81<>\"\",IF($AD81<>\"\",VLOOKUP($AD81,Immobilisations[],8),\"\"),\"\")","v":""},"","","","","","","","","","",{"$f":"IF(AND($A81<>\"\",$AF81<>\"\"),IF(AQ$2=0,0,IF(ROUNDDOWN(AQ$2/($AE81+1),0)=0,$K81*$AE81/100,0)),\"\")","v":""},"",""]
[null,null,null,null,null,null,null,null,null,{"$f":"IF(A82=\"\",\"\",SUM(F82:G82)*Pilotage!$D$14*I82)","v":""},{"$f":"IF(A82=\"\",\"\",L82*(100/(100 + 100*Pilotage!$D$14)))","v":""},null,null,null,null,null,null,null,null,null,null,null,"","","","","",null,null,null,{"$f":"IF(A82<>\"\",IF($AD82<>\"\",VLOOKUP($AD82,Immobilisations[],7),0),\"\")","v":""},{"$f":"IF(A82<>\"\",IF($AD82<>\"\",VLOOKUP($AD82,Immobilisations[],8),\"\"),\"\")","v":""},"","","","","","","","","","","","",""]
[null,null,null,null,null,null,null,null,null,{"$f":"IF(A83=\"\",\"\",SUM(F83:G83)*Pilotage!$D$14*I83)","v":""},{"$f":"IF(A83=\"\",\"\",L83*(100/(100 + 100*Pilotage!$D$14)))","v":""},null,null,null,null,null,null,null,null,null,null,null,"","","","","",null,null,null,{"$f":"IF(A83<>\"\",IF($AD83<>\"\",VLOOKUP($AD83,Immobilisations[],7),0),\"\")","v":""},{"$f":"IF(A83<>\"\",IF($AD83<>\"\",VLOOKUP($AD83,Immobilisations[],8),\"\"),\"\")","v":""},"","","","","","","","","","","","",""]
[null,null,null,null,null,null,null,null,null,{"$f":"IF(A84=\"\",\"\",SUM(F84:G84)*Pilotage!$D$14*I84)","v":""},{"$f":"IF(A84=\"\",\"\",L84*(100/(100 + 100*Pilotage!$D$14)))","v":""},null,null,null,null,null,null,null,null,null,null,null,"","","","","",null,null,null,{"$f":"IF(A84<>\"\",IF($AD84<>\"\",VLOOKUP($AD84,Immobilisations[],7),0),\"\")","v":""},{"$f":"IF(A84<>\"\",IF($AD84<>\"\",VLOOKUP($AD84,Immobilisations[],8),\"\"),\"\")","v":""},"","","","","","","","","","","","",""]
[null,null,null,null,null,null,null,null,null,{"$f":"IF(A85=\"\",\"\",SUM(F85:G85)*Pilotage!$D$14*I85)","v":""},{"$f":"IF(A85=\"\",\"\",L85*(100/(100 + 100*Pilotage!$D$14)))","v":""},null,null,null,null,null,null,null,null,null,null,null,"","","","","",null,null,null,{"$f":"IF(A85<>\"\",IF($AD85<>\"\",VLOOKUP($AD85,Immobilisations[],7),0),\"\")","v":""},{"$f":"IF(A85<>\"\",IF($AD85<>\"\",VLOOKUP($AD85,Immobilisations[],8),\"\"),\"\")","v":""},"","","","","","","","","","","","",""]
[null,null,null,null,null,null,null,null,null,{"$f":"IF(A86=\"\",\"\",SUM(F86:G86)*Pilotage!$D$14*I86)","v":""},{"$f":"IF(A86=\"\",\"\",L86*(100/(100 + 100*Pilotage!$D$14)))","v":""},null,null,null,null,null,null,null,null,null,null,null,"","","","","",null,null,null,{"$f":"IF(A86<>\"\",IF($AD86<>\"\",VLOOKUP($AD86,Immobilisations[],7),0),\"\")","v":""},{"$f":"IF(A86<>\"\",IF($AD86<>\"\",VLOOKUP($AD86,Immobilisations[],8),\"\"),\"\")","v":""},"","","","","","","","","","","","",""]
[null,null,null,null,null,null,null,null,null,{"$f":"IF(A87=\"\",\"\",SUM(F87:G87)*Pilotage!$D$14*I87)","v":""},{"$f":"IF(A87=\"\",\"\",L87*(100/(100 + 100*Pilotage!$D$14)))","v":""},null,null,null,null,null,null,null,null,null,null,null,"","","","","",null,null,null,{"$f":"IF(A87<>\"\",IF($AD87<>\"\",VLOOKUP($AD87,Immobilisations[],7),0),\"\")","v":""},{"$f":"IF(A87<>\"\",IF($AD87<>\"\",VLOOKUP($AD87,Immobilisations[],8),\"\"),\"\")","v":""},"","","","","","","","","","","","",""]
[null,null,null,null,null,null,null,null,null,{"$f":"IF(A88=\"\",\"\",SUM(F88:G88)*Pilotage!$D$14*I88)","v":""},{"$f":"IF(A88=\"\",\"\",L88*(100/(100 + 100*Pilotage!$D$14)))","v":""},null,null,null,null,null,null,null,null,null,null,null,"","","","","",null,null,null,{"$f":"IF(A88<>\"\",IF($AD88<>\"\",VLOOKUP($AD88,Immobilisations[],7),0),\"\")","v":""},{"$f":"IF(A88<>\"\",IF($AD88<>\"\",VLOOKUP($AD88,Immobilisations[],8),\"\"),\"\")","v":""},"","","","","","","","","","","","",""]
[null,null,null,null,null,null,null,null,null,{"$f":"IF(A89=\"\",\"\",SUM(F89:G89)*Pilotage!$D$14*I89)","v":""},{"$f":"IF(A89=\"\",\"\",L89*(100/(100 + 100*Pilotage!$D$14)))","v":""},null,null,null,null,null,null,null,null,null,null,null,"","","","","",null,null,null,{"$f":"IF(A89<>\"\",IF($AD89<>\"\",VLOOKUP($AD89,Immobilisations[],7),0),\"\")","v":""},{"$f":"IF(A89<>\"\",IF($AD89<>\"\",VLOOKUP($AD89,Immobilisations[],8),\"\"),\"\")","v":""},"","","","","","","","","","","","",""]
[null,null,null,null,null,null,null,null,null,{"$f":"IF(A90=\"\",\"\",SUM(F90:G90)*Pilotage!$D$14*I90)","v":""},{"$f":"IF(A90=\"\",\"\",L90*(100/(100 + 100*Pilotage!$D$14)))","v":""},null,null,null,null,null,null,null,null,null,null,null,"","","","","",null,null,null,{"$f":"IF(A90<>\"\",IF($AD90<>\"\",VLOOKUP($AD90,Immobilisations[],7),0),\"\")","v":""},{"$f":"IF(A90<>\"\",IF($AD90<>\"\",VLOOKUP($AD90,Immobilisations[],8),\"\"),\"\")","v":""},"","","","","","","","","","","","",""]
[null,null,null,null,null,null,null,null,null,{"$f":"IF(A91=\"\",\"\",SUM(F91:G91)*Pilotage!$D$14*I91)","v":""},{"$f":"IF(A91=\"\",\"\",L91*(100/(100 + 100*Pilotage!$D$14)))","v":""},null,null,null,null,null,null,null,null,null,null,null,"","","","","",null,null,null,{"$f":"IF(A91<>\"\",IF($AD91<>\"\",VLOOKUP($AD91,Immobilisations[],7),0),\"\")","v":""},{"$f":"IF(A91<>\"\",IF($AD91<>\"\",VLOOKUP($AD91,Immobilisations[],8),\"\"),\"\")","v":""},{"$f":"IF(AND($A91<>\"\",$AF91<>\"\"),IF(AG$2=0,0,IF(ROUNDDOWN(AG$2/($AE91+1),0)=0,$K91*$AE91/100,0)),\"\")","v":""},"","","","","","","","","","","",""]
[null,null,null,null,null,null,null,null,null,{"$f":"IF(A92=\"\",\"\",SUM(F92:G92)*Pilotage!$D$14*I92)","v":""},{"$f":"IF(A92=\"\",\"\",L92*(100/(100 + 100*Pilotage!$D$14)))","v":""},null,null,null,null,null,null,null,null,null,null,null,"","","","","",null,null,null,{"$f":"IF(A92<>\"\",IF($AD92<>\"\",VLOOKUP($AD92,Immobilisations[],7),0),\"\")","v":""},{"$f":"IF(A92<>\"\",IF($AD92<>\"\",VLOOKUP($AD92,Immobilisations[],8),\"\"),\"\")","v":""},"","","","","","","","","","","","",""]
[null,null,null,null,null,null,null,null,null,{"$f":"IF(A93=\"\",\"\",SUM(F93:G93)*Pilotage!$D$14*I93)","v":""},{"$f":"IF(A93=\"\",\"\",L93*(100/(100 + 100*Pilotage!$D$14)))","v":""},null,null,null,null,null,null,null,null,null,null,null,"","","","","",null,null,null,{"$f":"IF(A93<>\"\",IF($AD93<>\"\",VLOOKUP($AD93,Immobilisations[],7),0),\"\")","v":""},{"$f":"IF(A93<>\"\",IF($AD93<>\"\",VLOOKUP($AD93,Immobilisations[],8),\"\"),\"\")","v":""},"","","","","","","","","","","","",""]
[null,null,null,null,null,null,null,null,null,{"$f":"IF(A94=\"\",\"\",SUM(F94:G94)*Pilotage!$D$14*I94)","v":""},{"$f":"IF(A94=\"\",\"\",L94*(100/(100 + 100*Pilotage!$D$14)))","v":""},null,null,null,null,null,null,null,null,null,null,null,"","","","","",null,null,null,{"$f":"IF(A94<>\"\",IF($AD94<>\"\",VLOOKUP($AD94,Immobilisations[],7),0),\"\")","v":""},{"$f":"IF(A94<>\"\",IF($AD94<>\"\",VLOOKUP($AD94,Immobilisations[],8),\"\"),\"\")","v":""},"","","","","","","","","","","","",""]
[null,null,null,null,null,null,null,null,null,{"$f":"IF(A95=\"\",\"\",SUM(F95:G95)*Pilotage!$D$14*I95)","v":""},{"$f":"IF(A95=\"\",\"\",L95*(100/(100 + 100*Pilotage!$D$14)))","v":""},null,null,null,null,null,null,null,null,null,null,null,"","","","","",null,null,null,{"$f":"IF(A95<>\"\",IF($AD95<>\"\",VLOOKUP($AD95,Immobilisations[],7),0),\"\")","v":""},{"$f":"IF(A95<>\"\",IF($AD95<>\"\",VLOOKUP($AD95,Immobilisations[],8),\"\"),\"\")","v":""},"","","","","","","","","","","","",""]
[null,null,null,null,null,null,null,null,null,{"$f":"IF(A96=\"\",\"\",SUM(F96:G96)*Pilotage!$D$14*I96)","v":""},{"$f":"IF(A96=\"\",\"\",L96*(100/(100 + 100*Pilotage!$D$14)))","v":""},null,null,null,null,null,null,null,null,null,null,null,"","","","","",null,null,null,{"$f":"IF(A96<>\"\",IF($AD96<>\"\",VLOOKUP($AD96,Immobilisations[],7),0),\"\")","v":""},{"$f":"IF(A96<>\"\",IF($AD96<>\"\",VLOOKUP($AD96,Immobilisations[],8),\"\"),\"\")","v":""},"","","","","","","","","","","","",""]
[null,null,null,null,null,null,null,null,null,{"$f":"IF(A97=\"\",\"\",SUM(F97:G97)*Pilotage!$D$14*I97)","v":""},{"$f":"IF(A97=\"\",\"\",L97*(100/(100 + 100*Pilotage!$D$14)))","v":""},null,null,null,null,null,null,null,null,null,null,null,"","","","","",null,null,null,{"$f":"IF(A97<>\"\",IF($AD97<>\"\",VLOOKUP($AD97,Immobilisations[],7),0),\"\")","v":""},{"$f":"IF(A97<>\"\",IF($AD97<>\"\",VLOOKUP($AD97,Immobilisations[],8),\"\"),\"\")","v":""},"","","","","","","","","","","","",""]
[null,null,null,null,null,null,null,null,null,{"$f":"IF(A98=\"\",\"\",SUM(F98:G98)*Pilotage!$D$14*I98)","v":""},{"$f":"IF(A98=\"\",\"\",L98*(100/(100 + 100*Pilotage!$D$14)))","v":""},null,null,null,null,null,null,null,null,null,null,null,"","","","","",null,null,null,{"$f":"IF(A98<>\"\",IF($AD98<>\"\",VLOOKUP($AD98,Immobilisations[],7),0),\"\")","v":""},{"$f":"IF(A98<>\"\",IF($AD98<>\"\",VLOOKUP($AD98,Immobilisations[],8),\"\"),\"\")","v":""},"","","","","","","","","","","","",""]
[null,null,null,null,null,null,null,null,null,{"$f":"IF(A99=\"\",\"\",SUM(F99:G99)*Pilotage!$D$14*I99)","v":""},{"$f":"IF(A99=\"\",\"\",L99*(100/(100 + 100*Pilotage!$D$14)))","v":""},null,null,null,null,null,null,null,null,null,null,null,"","","","","",null,null,null,{"$f":"IF(A99<>\"\",IF($AD99<>\"\",VLOOKUP($AD99,Immobilisations[],7),0),\"\")","v":""},{"$f":"IF(A99<>\"\",IF($AD99<>\"\",VLOOKUP($AD99,Immobilisations[],8),\"\"),\"\")","v":""},"","","","","","","","","","","","",""]
[null,null,null,null,null,null,null,null,null,{"$f":"IF(A100=\"\",\"\",SUM(F100:G100)*Pilotage!$D$14*I100)","v":""},{"$f":"IF(A100=\"\",\"\",L100*(100/(100 + 100*Pilotage!$D$14)))","v":""},null,null,null,null,null,null,null,null,null,null,null,"","","","","",null,null,null,{"$f":"IF(A100<>\"\",IF($AD100<>\"\",VLOOKUP($AD100,Immobilisations[],7),0),\"\")","v":""},{"$f":"IF(A100<>\"\",IF($AD100<>\"\",VLOOKUP($AD100,Immobilisations[],8),\"\"),\"\")","v":""},"","","","","","","","","","","","",""]
[null,null,null,null,null,null,null,null,null,{"$f":"IF(A101=\"\",\"\",SUM(F101:G101)*Pilotage!$D$14*I101)","v":""},{"$f":"IF(A101=\"\",\"\",L101*(100/(100 + 100*Pilotage!$D$14)))","v":""},null,null,null,null,null,null,null,null,null,null,null,"","","","","",null,null,null,{"$f":"IF(A101<>\"\",IF($AD101<>\"\",VLOOKUP($AD101,Immobilisations[],7),0),\"\")","v":""},{"$f":"IF(A101<>\"\",IF($AD101<>\"\",VLOOKUP($AD101,Immobilisations[],8),\"\"),\"\")","v":""},"","","","","","","","","","","","",""]
[null,null,null,null,null,null,null,null,null,{"$f":"IF(A102=\"\",\"\",SUM(F102:G102)*Pilotage!$D$14*I102)","v":""},{"$f":"IF(A102=\"\",\"\",L102*(100/(100 + 100*Pilotage!$D$14)))","v":""},null,null,null,null,null,null,null,null,null,null,null,"","","","","",null,null,null,{"$f":"IF(A102<>\"\",IF($AD102<>\"\",VLOOKUP($AD102,Immobilisations[],7),0),\"\")","v":""},{"$f":"IF(A102<>\"\",IF($AD102<>\"\",VLOOKUP($AD102,Immobilisations[],8),\"\"),\"\")","v":""},"","","","","","","","","","","","",""]
[null,null,null,null,null,null,null,null,null,{"$f":"IF(A103=\"\",\"\",SUM(F103:G103)*Pilotage!$D$14*I103)","v":""},{"$f":"IF(A103=\"\",\"\",L103*(100/(100 + 100*Pilotage!$D$14)))","v":""},null,null,null,null,null,null,null,null,null,null,null,"","","","","",null,null,null,{"$f":"IF(A103<>\"\",IF($AD103<>\"\",VLOOKUP($AD103,Immobilisations[],7),0),\"\")","v":""},{"$f":"IF(A103<>\"\",IF($AD103<>\"\",VLOOKUP($AD103,Immobilisations[],8),\"\"),\"\")","v":""},"","","","","","","","","","","","",""]
[null,null,null,null,null,null,null,null,null,{"$f":"IF(A104=\"\",\"\",SUM(F104:G104)*Pilotage!$D$14*I104)","v":""},{"$f":"IF(A104=\"\",\"\",L104*(100/(100 + 100*Pilotage!$D$14)))","v":""},null,null,null,null,null,null,null,null,null,null,null,"","","","","",null,null,null,{"$f":"IF(A104<>\"\",IF($AD104<>\"\",VLOOKUP($AD104,Immobilisations[],7),0),\"\")","v":""},{"$f":"IF(A104<>\"\",IF($AD104<>\"\",VLOOKUP($AD104,Immobilisations[],8),\"\"),\"\")","v":""},"","","","","","","","","","","","",{"$f":"IF(AND($A104<>\"\",$AF104<>\"\"),IF(AS$2=0,0,IF(ROUNDDOWN(AS$2/($AE104+1),0)=0,$K104*$AE104/100,0)),\"\")","v":""}]
[null,null,null,null,null,null,null,null,null,{"$f":"IF(A105=\"\",\"\",SUM(F105:G105)*Pilotage!$D$14*I105)","v":""},{"$f":"IF(A105=\"\",\"\",L105*(100/(100 + 100*Pilotage!$D$14)))","v":""},null,null,null,null,null,null,null,null,null,null,null,"","","","","",null,null,null,{"$f":"IF(A105<>\"\",IF($AD105<>\"\",VLOOKUP($AD105,Immobilisations[],7),0),\"\")","v":""},{"$f":"IF(A105<>\"\",IF($AD105<>\"\",VLOOKUP($AD105,Immobilisations[],8),\"\"),\"\")","v":""},"","","","","","","","","","","","",""]
[null,null,null,null,null,null,null,null,null,{"$f":"IF(A106=\"\",\"\",SUM(F106:G106)*Pilotage!$D$14*I106)","v":""},{"$f":"IF(A106=\"\",\"\",L106*(100/(100 + 100*Pilotage!$D$14)))","v":""},null,null,null,null,null,null,null,null,null,null,null,"","","","","",null,null,null,{"$f":"IF(A106<>\"\",IF($AD106<>\"\",VLOOKUP($AD106,Immobilisations[],7),0),\"\")","v":""},{"$f":"IF(A106<>\"\",IF($AD106<>\"\",VLOOKUP($AD106,Immobilisations[],8),\"\"),\"\")","v":""},"","","","","","","","","","","","",""]
[null,null,null,null,null,null,null,null,null,{"$f":"IF(A107=\"\",\"\",SUM(F107:G107)*Pilotage!$D$14*I107)","v":""},{"$f":"IF(A107=\"\",\"\",L107*(100/(100 + 100*Pilotage!$D$14)))","v":""},null,null,null,null,null,null,null,null,null,null,null,"","","","","",null,null,null,{"$f":"IF(A107<>\"\",IF($AD107<>\"\",VLOOKUP($AD107,Immobilisations[],7),0),\"\")","v":""},{"$f":"IF(A107<>\"\",IF($AD107<>\"\",VLOOKUP($AD107,Immobilisations[],8),\"\"),\"\")","v":""},"","","","","","","","","","","","",""]
[null,null,null,null,null,null,null,null,null,{"$f":"IF(A108=\"\",\"\",SUM(F108:G108)*Pilotage!$D$14*I108)","v":""},{"$f":"IF(A108=\"\",\"\",L108*(100/(100 + 100*Pilotage!$D$14)))","v":""},null,null,null,null,null,null,null,null,null,null,null,"","","","","",null,null,null,{"$f":"IF(A108<>\"\",IF($AD108<>\"\",VLOOKUP($AD108,Immobilisations[],7),0),\"\")","v":""},{"$f":"IF(A108<>\"\",IF($AD108<>\"\",VLOOKUP($AD108,Immobilisations[],8),\"\"),\"\")","v":""},"","","","","","","","","","","","",""]
[null,null,null,null,null,null,null,null,null,{"$f":"IF(A109=\"\",\"\",SUM(F109:G109)*Pilotage!$D$14*I109)","v":""},{"$f":"IF(A109=\"\",\"\",L109*(100/(100 + 100*Pilotage!$D$14)))","v":""},null,null,null,null,null,null,null,null,null,null,null,"","","","","",null,null,null,{"$f":"IF(A109<>\"\",IF($AD109<>\"\",VLOOKUP($AD109,Immobilisations[],7),0),\"\")","v":""},{"$f":"IF(A109<>\"\",IF($AD109<>\"\",VLOOKUP($AD109,Immobilisations[],8),\"\"),\"\")","v":""},"","","","","","","","","","","","",""]
[null,null,null,null,null,null,null,null,null,{"$f":"IF(A110=\"\",\"\",SUM(F110:G110)*Pilotage!$D$14*I110)","v":""},{"$f":"IF(A110=\"\",\"\",L110*(100/(100 + 100*Pilotage!$D$14)))","v":""},null,null,null,null,null,null,null,null,null,null,null,"","","","","",null,null,null,{"$f":"IF(A110<>\"\",IF($AD110<>\"\",VLOOKUP($AD110,Immobilisations[],7),0),\"\")","v":""},{"$f":"IF(A110<>\"\",IF($AD110<>\"\",VLOOKUP($AD110,Immobilisations[],8),\"\"),\"\")","v":""},"","","","","","","","","","","","",""]
[null,null,null,null,null,null,null,null,null,{"$f":"IF(A111=\"\",\"\",SUM(F111:G111)*Pilotage!$D$14*I111)","v":""},{"$f":"IF(A111=\"\",\"\",L111*(100/(100 + 100*Pilotage!$D$14)))","v":""},null,null,null,null,null,null,null,null,null,null,null,"","","","","",null,null,null,{"$f":"IF(A111<>\"\",IF($AD111<>\"\",VLOOKUP($AD111,Immobilisations[],7),0),\"\")","v":""},{"$f":"IF(A111<>\"\",IF($AD111<>\"\",VLOOKUP($AD111,Immobilisations[],8),\"\"),\"\")","v":""},"","","","","","","","","","","","",""]
[null,null,null,null,null,null,null,null,null,{"$f":"IF(A112=\"\",\"\",SUM(F112:G112)*Pilotage!$D$14*I112)","v":""},{"$f":"IF(A112=\"\",\"\",L112*(100/(100 + 100*Pilotage!$D$14)))","v":""},null,null,null,null,null,null,null,null,null,null,null,"","","","","",null,null,null,{"$f":"IF(A112<>\"\",IF($AD112<>\"\",VLOOKUP($AD112,Immobilisations[],7),0),\"\")","v":""},{"$f":"IF(A112<>\"\",IF($AD112<>\"\",VLOOKUP($AD112,Immobilisations[],8),\"\"),\"\")","v":""},"","","","","","","","","","","","",""]
[null,null,null,null,null,null,null,null,null,{"$f":"IF(A113=\"\",\"\",SUM(F113:G113)*Pilotage!$D$14*I113)","v":""},{"$f":"IF(A113=\"\",\"\",L113*(100/(100 + 100*Pilotage!$D$14)))","v":""},null,null,null,null,null,null,null,null,null,null,null,"","","","","",null,null,null,{"$f":"IF(A113<>\"\",IF($AD113<>\"\",VLOOKUP($AD113,Immobilisations[],7),0),\"\")","v":""},{"$f":"IF(A113<>\"\",IF($AD113<>\"\",VLOOKUP($AD113,Immobilisations[],8),\"\"),\"\")","v":""},"","","","","","","","","","","","",""]
[null,null,null,null,null,null,null,null,null,{"$f":"IF(A114=\"\",\"\",SUM(F114:G114)*Pilotage!$D$14*I114)","v":""},{"$f":"IF(A114=\"\",\"\",L114*(100/(100 + 100*Pilotage!$D$14)))","v":""},null,null,null,null,null,null,null,null,null,null,null,"","","","","",null,null,null,{"$f":"IF(A114<>\"\",IF($AD114<>\"\",VLOOKUP($AD114,Immobilisations[],7),0),\"\")","v":""},{"$f":"IF(A114<>\"\",IF($AD114<>\"\",VLOOKUP($AD114,Immobilisations[],8),\"\"),\"\")","v":""},"","","","","","","","","","","","",""]
[null,null,null,null,null,null,null,null,null,{"$f":"IF(A115=\"\",\"\",SUM(F115:G115)*Pilotage!$D$14*I115)","v":""},{"$f":"IF(A115=\"\",\"\",L115*(100/(100 + 100*Pilotage!$D$14)))","v":""},null,null,null,null,null,null,null,null,null,null,null,"","","","","",null,null,null,{"$f":"IF(A115<>\"\",IF($AD115<>\"\",VLOOKUP($AD115,Immobilisations[],7),0),\"\")","v":""},{"$f":"IF(A115<>\"\",IF($AD115<>\"\",VLOOKUP($AD115,Immobilisations[],8),\"\"),\"\")","v":""},"","","","","","","","","","","","",""]
[null,null,null,null,null,null,null,null,null,{"$f":"IF(A116=\"\",\"\",SUM(F116:G116)*Pilotage!$D$14*I116)","v":""},{"$f":"IF(A116=\"\",\"\",L116*(100/(100 + 100*Pilotage!$D$14)))","v":""},null,null,null,null,null,null,null,null,null,null,null,"","","","","",null,null,null,{"$f":"IF(A116<>\"\",IF($AD116<>\"\",VLOOKUP($AD116,Immobilisations[],7),0),\"\")","v":""},{"$f":"IF(A116<>\"\",IF($AD116<>\"\",VLOOKUP($AD116,Immobilisations[],8),\"\"),\"\")","v":""},"","","","","","","","","","","","",""]
[null,null,null,null,null,null,null,null,null,{"$f":"IF(A117=\"\",\"\",SUM(F117:G117)*Pilotage!$D$14*I117)","v":""},{"$f":"IF(A117=\"\",\"\",L117*(100/(100 + 100*Pilotage!$D$14)))","v":""},null,null,null,null,null,null,null,null,null,null,null,"","","","","",null,null,null,{"$f":"IF(A117<>\"\",IF($AD117<>\"\",VLOOKUP($AD117,Immobilisations[],7),0),\"\")","v":""},{"$f":"IF(A117<>\"\",IF($AD117<>\"\",VLOOKUP($AD117,Immobilisations[],8),\"\"),\"\")","v":""},"","","","","","","","","","","","",""]
[null,null,null,null,null,null,null,null,null,{"$f":"IF(A118=\"\",\"\",SUM(F118:G118)*Pilotage!$D$14*I118)","v":""},{"$f":"IF(A118=\"\",\"\",L118*(100/(100 + 100*Pilotage!$D$14)))","v":""},null,null,null,null,null,null,null,null,null,null,null,"","","","","",null,null,null,{"$f":"IF(A118<>\"\",IF($AD118<>\"\",VLOOKUP($AD118,Immobilisations[],7),0),\"\")","v":""},{"$f":"IF(A118<>\"\",IF($AD118<>\"\",VLOOKUP($AD118,Immobilisations[],8),\"\"),\"\")","v":""},"","","","","","","","","","","","",""]
[null,null,null,null,null,null,null,null,null,{"$f":"IF(A119=\"\",\"\",SUM(F119:G119)*Pilotage!$D$14*I119)","v":""},{"$f":"IF(A119=\"\",\"\",L119*(100/(100 + 100*Pilotage!$D$14)))","v":""},null,null,null,null,null,null,null,null,null,null,null,"","","","","",null,null,null,{"$f":"IF(A119<>\"\",IF($AD119<>\"\",VLOOKUP($AD119,Immobilisations[],7),0),\"\")","v":""},{"$f":"IF(A119<>\"\",IF($AD119<>\"\",VLOOKUP($AD119,Immobilisations[],8),\"\"),\"\")","v":""},"","","","","","","","","","","","",""]
[null,null,null,null,null,null,null,null,null,{"$f":"IF(A120=\"\",\"\",SUM(F120:G120)*Pilotage!$D$14*I120)","v":""},{"$f":"IF(A120=\"\",\"\",L120*(100/(100 + 100*Pilotage!$D$14)))","v":""},null,null,null,null,null,null,null,null,null,null,null,"","","","","",null,null,null,{"$f":"IF(A120<>\"\",IF($AD120<>\"\",VLOOKUP($AD120,Immobilisations[],7),0),\"\")","v":""},{"$f":"IF(A120<>\"\",IF($AD120<>\"\",VLOOKUP($AD120,Immobilisations[],8),\"\"),\"\")","v":""},"","","","","","","","","","","","",""]
[null,null,null,null,null,null,null,null,null,{"$f":"IF(A121=\"\",\"\",SUM(F121:G121)*Pilotage!$D$14*I121)","v":""},{"$f":"IF(A121=\"\",\"\",L121*(100/(100 + 100*Pilotage!$D$14)))","v":""},null,null,null,null,null,null,null,null,null,null,null,"","","","","",null,null,null,{"$f":"IF(A121<>\"\",IF($AD121<>\"\",VLOOKUP($AD121,Immobilisations[],7),0),\"\")","v":""},{"$f":"IF(A121<>\"\",IF($AD121<>\"\",VLOOKUP($AD121,Immobilisations[],8),\"\"),\"\")","v":""},"","","","","","","","","","","","",""]
[null,null,null,null,null,null,null,null,null,{"$f":"IF(A122=\"\",\"\",SUM(F122:G122)*Pilotage!$D$14*I122)","v":""},{"$f":"IF(A122=\"\",\"\",L122*(100/(100 + 100*Pilotage!$D$14)))","v":""},null,null,null,null,null,null,null,null,null,null,null,"","","","","",null,null,null,{"$f":"IF(A122<>\"\",IF($AD122<>\"\",VLOOKUP($AD122,Immobilisations[],7),0),\"\")","v":""},{"$f":"IF(A122<>\"\",IF($AD122<>\"\",VLOOKUP($AD122,Immobilisations[],8),\"\"),\"\")","v":""},"","","","","","","","","","","","",""]
[null,null,null,null,null,null,null,null,null,{"$f":"IF(A123=\"\",\"\",SUM(F123:G123)*Pilotage!$D$14*I123)","v":""},{"$f":"IF(A123=\"\",\"\",L123*(100/(100 + 100*Pilotage!$D$14)))","v":""},null,null,null,null,null,null,null,null,null,null,null,"","","","","",null,null,null,{"$f":"IF(A123<>\"\",IF($AD123<>\"\",VLOOKUP($AD123,Immobilisations[],7),0),\"\")","v":""},{"$f":"IF(A123<>\"\",IF($AD123<>\"\",VLOOKUP($AD123,Immobilisations[],8),\"\"),\"\")","v":""},{"$f":"IF(AND($A123<>\"\",$AF123<>\"\"),IF(AG$2=0,0,IF(ROUNDDOWN(AG$2/($AE123+1),0)=0,$K123*$AE123/100,0)),\"\")","v":""},"","","","","","","","","","","",""]
[null,null,null,null,null,null,null,null,null,{"$f":"IF(A124=\"\",\"\",SUM(F124:G124)*Pilotage!$D$14*I124)","v":""},{"$f":"IF(A124=\"\",\"\",L124*(100/(100 + 100*Pilotage!$D$14)))","v":""},null,null,null,null,null,null,null,null,null,null,null,"","","","","",null,null,null,{"$f":"IF(A124<>\"\",IF($AD124<>\"\",VLOOKUP($AD124,Immobilisations[],7),0),\"\")","v":""},{"$f":"IF(A124<>\"\",IF($AD124<>\"\",VLOOKUP($AD124,Immobilisations[],8),\"\"),\"\")","v":""},"","","","","","","","","","","","",""]
[null,null,null,null,null,null,null,null,null,{"$f":"IF(A125=\"\",\"\",SUM(F125:G125)*Pilotage!$D$14*I125)","v":""},{"$f":"IF(A125=\"\",\"\",L125*(100/(100 + 100*Pilotage!$D$14)))","v":""},null,null,null,null,null,null,null,null,null,null,null,"","","","","",null,null,null,{"$f":"IF(A125<>\"\",IF($AD125<>\"\",VLOOKUP($AD125,Immobilisations[],7),0),\"\")","v":""},{"$f":"IF(A125<>\"\",IF($AD125<>\"\",VLOOKUP($AD125,Immobilisations[],8),\"\"),\"\")","v":""},"","","","","","","","","","","","",""]
[null,null,null,null,null,null,null,null,null,{"$f":"IF(A126=\"\",\"\",SUM(F126:G126)*Pilotage!$D$14*I126)","v":""},{"$f":"IF(A126=\"\",\"\",L126*(100/(100 + 100*Pilotage!$D$14)))","v":""},null,null,null,null,null,null,null,null,null,null,null,"","","","","",null,null,null,{"$f":"IF(A126<>\"\",IF($AD126<>\"\",VLOOKUP($AD126,Immobilisations[],7),0),\"\")","v":""},{"$f":"IF(A126<>\"\",IF($AD126<>\"\",VLOOKUP($AD126,Immobilisations[],8),\"\"),\"\")","v":""},"","","","","","","","","","","","",""]
[null,null,null,null,null,null,null,null,null,{"$f":"IF(A127=\"\",\"\",SUM(F127:G127)*Pilotage!$D$14*I127)","v":""},{"$f":"IF(A127=\"\",\"\",L127*(100/(100 + 100*Pilotage!$D$14)))","v":""},null,null,null,null,null,null,null,null,null,null,null,"","","","","",null,null,null,{"$f":"IF(A127<>\"\",IF($AD127<>\"\",VLOOKUP($AD127,Immobilisations[],7),0),\"\")","v":""},{"$f":"IF(A127<>\"\",IF($AD127<>\"\",VLOOKUP($AD127,Immobilisations[],8),\"\"),\"\")","v":""},"","","","","","","","","","","","",""]
[null,null,null,null,null,null,null,null,null,{"$f":"IF(A128=\"\",\"\",SUM(F128:G128)*Pilotage!$D$14*I128)","v":""},{"$f":"IF(A128=\"\",\"\",L128*(100/(100 + 100*Pilotage!$D$14)))","v":""},null,null,null,null,null,null,null,null,null,null,null,"","","","","",null,null,null,{"$f":"IF(A128<>\"\",IF($AD128<>\"\",VLOOKUP($AD128,Immobilisations[],7),0),\"\")","v":""},{"$f":"IF(A128<>\"\",IF($AD128<>\"\",VLOOKUP($AD128,Immobilisations[],8),\"\"),\"\")","v":""},"","","",{"$f":"IF(AND($A128<>\"\",$AF128<>\"\"),IF(AJ$2=0,0,IF(ROUNDDOWN(AJ$2/($AE128+1),0)=0,$K128*$AE128/100,0)),\"\")","v":""},"","","","","","","","",""]
[null,null,null,null,null,null,null,null,null,{"$f":"IF(A129=\"\",\"\",SUM(F129:G129)*Pilotage!$D$14*I129)","v":""},{"$f":"IF(A129=\"\",\"\",L129*(100/(100 + 100*Pilotage!$D$14)))","v":""},null,null,null,null,null,null,null,null,null,null,null,"","","","","",null,null,null,{"$f":"IF(A129<>\"\",IF($AD129<>\"\",VLOOKUP($AD129,Immobilisations[],7),0),\"\")","v":""},{"$f":"IF(A129<>\"\",IF($AD129<>\"\",VLOOKUP($AD129,Immobilisations[],8),\"\"),\"\")","v":""},"","","","","","","","","","","","",""]
[null,null,null,null,null,null,null,null,null,{"$f":"IF(A130=\"\",\"\",SUM(F130:G130)*Pilotage!$D$14*I130)","v":""},{"$f":"IF(A130=\"\",\"\",L130*(100/(100 + 100*Pilotage!$D$14)))","v":""},null,null,null,null,null,null,null,null,null,null,null,"","","","","",null,null,null,{"$f":"IF(A130<>\"\",IF($AD130<>\"\",VLOOKUP($AD130,Immobilisations[],7),0),\"\")","v":""},{"$f":"IF(A130<>\"\",IF($AD130<>\"\",VLOOKUP($AD130,Immobilisations[],8),\"\"),\"\")","v":""},"","","","","","","","","","","","",""]
[null,null,null,null,null,null,null,null,null,{"$f":"IF(A131=\"\",\"\",SUM(F131:G131)*Pilotage!$D$14*I131)","v":""},{"$f":"IF(A131=\"\",\"\",L131*(100/(100 + 100*Pilotage!$D$14)))","v":""},null,null,null,null,null,null,null,null,null,null,null,"","","","","",null,null,null,{"$f":"IF(A131<>\"\",IF($AD131<>\"\",VLOOKUP($AD131,Immobilisations[],7),0),\"\")","v":""},{"$f":"IF(A131<>\"\",IF($AD131<>\"\",VLOOKUP($AD131,Immobilisations[],8),\"\"),\"\")","v":""},"","","","","","","","","","","","",""]
[null,null,null,null,null,null,null,null,null,{"$f":"IF(A132=\"\",\"\",SUM(F132:G132)*Pilotage!$D$14*I132)","v":""},{"$f":"IF(A132=\"\",\"\",L132*(100/(100 + 100*Pilotage!$D$14)))","v":""},null,null,null,null,null,null,null,null,null,null,null,{"$f":"IF($A132<>\"\",Q132*$K132,\"\")","v":""},"","","","",null,null,null,{"$f":"IF(A132<>\"\",IF($AD132<>\"\",VLOOKUP($AD132,Immobilisations[],7),0),\"\")","v":""},{"$f":"IF(A132<>\"\",IF($AD132<>\"\",VLOOKUP($AD132,Immobilisations[],8),\"\"),\"\")","v":""},"","","","","","","","","","","","",""]
[null,null,null,null,null,null,null,null,null,{"$f":"IF(A133=\"\",\"\",SUM(F133:G133)*Pilotage!$D$14*I133)","v":""},{"$f":"IF(A133=\"\",\"\",L133*(100/(100 + 100*Pilotage!$D$14)))","v":""},null,null,null,null,null,null,null,null,null,null,null,"","","","","",null,null,null,{"$f":"IF(A133<>\"\",IF($AD133<>\"\",VLOOKUP($AD133,Immobilisations[],7),0),\"\")","v":""},{"$f":"IF(A133<>\"\",IF($AD133<>\"\",VLOOKUP($AD133,Immobilisations[],8),\"\"),\"\")","v":""},"","","","","","","","","","","","",""]
[null,null,null,null,null,null,null,null,null,{"$f":"IF(A134=\"\",\"\",SUM(F134:G134)*Pilotage!$D$14*I134)","v":""},{"$f":"IF(A134=\"\",\"\",L134*(100/(100 + 100*Pilotage!$D$14)))","v":""},null,null,null,null,null,null,null,null,null,null,null,"","","","","",null,null,null,{"$f":"IF(A134<>\"\",IF($AD134<>\"\",VLOOKUP($AD134,Immobilisations[],7),0),\"\")","v":""},{"$f":"IF(A134<>\"\",IF($AD134<>\"\",VLOOKUP($AD134,Immobilisations[],8),\"\"),\"\")","v":""},"","","","","","","","","","","","",""]
[null,null,null,null,null,null,null,null,null,{"$f":"IF(A135=\"\",\"\",SUM(F135:G135)*Pilotage!$D$14*I135)","v":""},{"$f":"IF(A135=\"\",\"\",L135*(100/(100 + 100*Pilotage!$D$14)))","v":""},null,null,null,null,null,null,null,null,null,null,null,"","","","","",null,null,null,{"$f":"IF(A135<>\"\",IF($AD135<>\"\",VLOOKUP($AD135,Immobilisations[],7),0),\"\")","v":""},{"$f":"IF(A135<>\"\",IF($AD135<>\"\",VLOOKUP($AD135,Immobilisations[],8),\"\"),\"\")","v":""},"","","","","","","","","","","","",""]
[null,null,null,null,null,null,null,null,null,{"$f":"IF(A136=\"\",\"\",SUM(F136:G136)*Pilotage!$D$14*I136)","v":""},{"$f":"IF(A136=\"\",\"\",L136*(100/(100 + 100*Pilotage!$D$14)))","v":""},null,null,null,null,null,null,null,null,null,null,null,"","","","","",null,null,null,{"$f":"IF(A136<>\"\",IF($AD136<>\"\",VLOOKUP($AD136,Immobilisations[],7),0),\"\")","v":""},{"$f":"IF(A136<>\"\",IF($AD136<>\"\",VLOOKUP($AD136,Immobilisations[],8),\"\"),\"\")","v":""},"","","","","","","","","","","","",""]
[null,null,null,null,null,null,null,null,null,{"$f":"IF(A137=\"\",\"\",SUM(F137:G137)*Pilotage!$D$14*I137)","v":""},{"$f":"IF(A137=\"\",\"\",L137*(100/(100 + 100*Pilotage!$D$14)))","v":""},null,null,null,null,null,null,null,null,null,null,null,"","","","","",null,null,null,{"$f":"IF(A137<>\"\",IF($AD137<>\"\",VLOOKUP($AD137,Immobilisations[],7),0),\"\")","v":""},{"$f":"IF(A137<>\"\",IF($AD137<>\"\",VLOOKUP($AD137,Immobilisations[],8),\"\"),\"\")","v":""},"","","","","","","","","","","","",""]
[null,null,null,null,null,null,null,null,null,{"$f":"IF(A138=\"\",\"\",SUM(F138:G138)*Pilotage!$D$14*I138)","v":""},{"$f":"IF(A138=\"\",\"\",L138*(100/(100 + 100*Pilotage!$D$14)))","v":""},null,null,null,null,null,null,null,null,null,null,null,"","","","","",null,null,null,{"$f":"IF(A138<>\"\",IF($AD138<>\"\",VLOOKUP($AD138,Immobilisations[],7),0),\"\")","v":""},{"$f":"IF(A138<>\"\",IF($AD138<>\"\",VLOOKUP($AD138,Immobilisations[],8),\"\"),\"\")","v":""},"","","","","","","","","","","","",""]
[null,null,null,null,null,null,null,null,null,{"$f":"IF(A139=\"\",\"\",SUM(F139:G139)*Pilotage!$D$14*I139)","v":""},{"$f":"IF(A139=\"\",\"\",L139*(100/(100 + 100*Pilotage!$D$14)))","v":""},null,null,null,null,null,null,null,null,null,null,null,"","","","","",null,null,null,{"$f":"IF(A139<>\"\",IF($AD139<>\"\",VLOOKUP($AD139,Immobilisations[],7),0),\"\")","v":""},{"$f":"IF(A139<>\"\",IF($AD139<>\"\",VLOOKUP($AD139,Immobilisations[],8),\"\"),\"\")","v":""},"","","","","","","","","","","","",""]
[null,null,null,null,null,null,null,null,null,{"$f":"IF(A140=\"\",\"\",SUM(F140:G140)*Pilotage!$D$14*I140)","v":""},{"$f":"IF(A140=\"\",\"\",L140*(100/(100 + 100*Pilotage!$D$14)))","v":""},null,null,null,null,null,null,null,null,null,null,null,"","","","","",null,null,null,{"$f":"IF(A140<>\"\",IF($AD140<>\"\",VLOOKUP($AD140,Immobilisations[],7),0),\"\")","v":""},{"$f":"IF(A140<>\"\",IF($AD140<>\"\",VLOOKUP($AD140,Immobilisations[],8),\"\"),\"\")","v":""},"","","","","","","","","","","","",""]
[null,null,null,null,null,null,null,null,null,{"$f":"IF(A141=\"\",\"\",SUM(F141:G141)*Pilotage!$D$14*I141)","v":""},{"$f":"IF(A141=\"\",\"\",L141*(100/(100 + 100*Pilotage!$D$14)))","v":""},null,null,null,null,null,null,null,null,null,null,null,"","","","","",null,null,null,{"$f":"IF(A141<>\"\",IF($AD141<>\"\",VLOOKUP($AD141,Immobilisations[],7),0),\"\")","v":""},{"$f":"IF(A141<>\"\",IF($AD141<>\"\",VLOOKUP($AD141,Immobilisations[],8),\"\"),\"\")","v":""},"","","","","","","","","","","","",""]
[null,null,null,null,null,null,null,null,null,{"$f":"IF(A142=\"\",\"\",SUM(F142:G142)*Pilotage!$D$14*I142)","v":""},{"$f":"IF(A142=\"\",\"\",L142*(100/(100 + 100*Pilotage!$D$14)))","v":""},null,null,null,null,null,null,null,null,null,null,null,"","","","","",null,null,null,{"$f":"IF(A142<>\"\",IF($AD142<>\"\",VLOOKUP($AD142,Immobilisations[],7),0),\"\")","v":""},{"$f":"IF(A142<>\"\",IF($AD142<>\"\",VLOOKUP($AD142,Immobilisations[],8),\"\"),\"\")","v":""},"","","","","","","","","","","","",""]
[null,null,null,null,null,null,null,null,null,{"$f":"IF(A143=\"\",\"\",SUM(F143:G143)*Pilotage!$D$14*I143)","v":""},{"$f":"IF(A143=\"\",\"\",L143*(100/(100 + 100*Pilotage!$D$14)))","v":""},null,null,null,null,null,null,null,null,null,null,null,"","","","","",null,null,null,{"$f":"IF(A143<>\"\",IF($AD143<>\"\",VLOOKUP($AD143,Immobilisations[],7),0),\"\")","v":""},{"$f":"IF(A143<>\"\",IF($AD143<>\"\",VLOOKUP($AD143,Immobilisations[],8),\"\"),\"\")","v":""},"","","","","","","","","","","","",""]
[null,null,null,null,null,null,null,null,null,{"$f":"IF(A144=\"\",\"\",SUM(F144:G144)*Pilotage!$D$14*I144)","v":""},{"$f":"IF(A144=\"\",\"\",L144*(100/(100 + 100*Pilotage!$D$14)))","v":""},null,null,null,null,null,null,null,null,null,null,null,"","","","","",null,null,null,{"$f":"IF(A144<>\"\",IF($AD144<>\"\",VLOOKUP($AD144,Immobilisations[],7),0),\"\")","v":""},{"$f":"IF(A144<>\"\",IF($AD144<>\"\",VLOOKUP($AD144,Immobilisations[],8),\"\"),\"\")","v":""},"","","","","","","","","","","","",""]
[null,null,null,null,null,null,null,null,null,{"$f":"IF(A145=\"\",\"\",SUM(F145:G145)*Pilotage!$D$14*I145)","v":""},{"$f":"IF(A145=\"\",\"\",L145*(100/(100 + 100*Pilotage!$D$14)))","v":""},null,null,null,null,null,null,null,null,null,null,null,"","","","","",null,null,null,{"$f":"IF(A145<>\"\",IF($AD145<>\"\",VLOOKUP($AD145,Immobilisations[],7),0),\"\")","v":""},{"$f":"IF(A145<>\"\",IF($AD145<>\"\",VLOOKUP($AD145,Immobilisations[],8),\"\"),\"\")","v":""},"","","","","","","","","","","","",""]
[null,null,null,null,null,null,null,null,null,{"$f":"IF(A146=\"\",\"\",SUM(F146:G146)*Pilotage!$D$14*I146)","v":""},{"$f":"IF(A146=\"\",\"\",L146*(100/(100 + 100*Pilotage!$D$14)))","v":""},null,null,null,null,null,null,null,null,null,null,null,"","","","","",null,null,null,{"$f":"IF(A146<>\"\",IF($AD146<>\"\",VLOOKUP($AD146,Immobilisations[],7),0),\"\")","v":""},{"$f":"IF(A146<>\"\",IF($AD146<>\"\",VLOOKUP($AD146,Immobilisations[],8),\"\"),\"\")","v":""},"","","","","","","","","","","","",""]
[null,null,null,null,null,null,null,null,null,{"$f":"IF(A147=\"\",\"\",SUM(F147:G147)*Pilotage!$D$14*I147)","v":""},{"$f":"IF(A147=\"\",\"\",L147*(100/(100 + 100*Pilotage!$D$14)))","v":""},null,null,null,null,null,null,null,null,null,null,null,"","","","","",null,null,null,{"$f":"IF(A147<>\"\",IF($AD147<>\"\",VLOOKUP($AD147,Immobilisations[],7),0),\"\")","v":""},{"$f":"IF(A147<>\"\",IF($AD147<>\"\",VLOOKUP($AD147,Immobilisations[],8),\"\"),\"\")","v":""},"","","","","","","","","","","","",""]
[null,null,null,null,null,null,null,null,null,{"$f":"IF(A148=\"\",\"\",SUM(F148:G148)*Pilotage!$D$14*I148)","v":""},{"$f":"IF(A148=\"\",\"\",L148*(100/(100 + 100*Pilotage!$D$14)))","v":""},null,null,null,null,null,null,null,null,null,null,null,"","","","","",null,null,null,{"$f":"IF(A148<>\"\",IF($AD148<>\"\",VLOOKUP($AD148,Immobilisations[],7),0),\"\")","v":""},{"$f":"IF(A148<>\"\",IF($AD148<>\"\",VLOOKUP($AD148,Immobilisations[],8),\"\"),\"\")","v":""},"","","","","","","","","","","","",""]
[null,null,null,null,null,null,null,null,null,{"$f":"IF(A149=\"\",\"\",SUM(F149:G149)*Pilotage!$D$14*I149)","v":""},{"$f":"IF(A149=\"\",\"\",L149*(100/(100 + 100*Pilotage!$D$14)))","v":""},null,null,null,null,null,null,null,null,null,null,null,"","","","","",null,null,null,{"$f":"IF(A149<>\"\",IF($AD149<>\"\",VLOOKUP($AD149,Immobilisations[],7),0),\"\")","v":""},{"$f":"IF(A149<>\"\",IF($AD149<>\"\",VLOOKUP($AD149,Immobilisations[],8),\"\"),\"\")","v":""},"","","","","","","","","","","","",""]
[null,null,null,null,null,null,null,null,null,{"$f":"IF(A150=\"\",\"\",SUM(F150:G150)*Pilotage!$D$14*I150)","v":""},{"$f":"IF(A150=\"\",\"\",L150*(100/(100 + 100*Pilotage!$D$14)))","v":""},null,null,null,null,null,null,null,null,null,null,null,"","","","","",null,null,null,{"$f":"IF(A150<>\"\",IF($AD150<>\"\",VLOOKUP($AD150,Immobilisations[],7),0),\"\")","v":""},{"$f":"IF(A150<>\"\",IF($AD150<>\"\",VLOOKUP($AD150,Immobilisations[],8),\"\"),\"\")","v":""},"","","","","","","","","","","","",""]
[null,null,null,null,null,null,null,null,null,{"$f":"IF(A151=\"\",\"\",SUM(F151:G151)*Pilotage!$D$14*I151)","v":""},{"$f":"IF(A151=\"\",\"\",L151*(100/(100 + 100*Pilotage!$D$14)))","v":""},null,null,null,null,null,null,null,null,null,null,null,"","","","","",null,null,null,{"$f":"IF(A151<>\"\",IF($AD151<>\"\",VLOOKUP($AD151,Immobilisations[],7),0),\"\")","v":""},{"$f":"IF(A151<>\"\",IF($AD151<>\"\",VLOOKUP($AD151,Immobilisations[],8),\"\"),\"\")","v":""},"","","","","",{"$f":"IF(AND($A151<>\"\",$AF151<>\"\"),IF(AL$2=0,0,IF(ROUNDDOWN(AL$2/($AE151+1),0)=0,$K151*$AE151/100,0)),\"\")","v":""},"","","","","","",""]
[null,null,null,null,null,null,null,null,null,{"$f":"IF(A152=\"\",\"\",SUM(F152:G152)*Pilotage!$D$14*I152)","v":""},{"$f":"IF(A152=\"\",\"\",L152*(100/(100 + 100*Pilotage!$D$14)))","v":""},null,null,null,null,null,null,null,null,null,null,null,"","","","","",null,null,null,{"$f":"IF(A152<>\"\",IF($AD152<>\"\",VLOOKUP($AD152,Immobilisations[],7),0),\"\")","v":""},{"$f":"IF(A152<>\"\",IF($AD152<>\"\",VLOOKUP($AD152,Immobilisations[],8),\"\"),\"\")","v":""},"","","","","","","","","","","","",""]
[null,null,null,null,null,null,null,null,null,{"$f":"IF(A153=\"\",\"\",SUM(F153:G153)*Pilotage!$D$14*I153)","v":""},{"$f":"IF(A153=\"\",\"\",L153*(100/(100 + 100*Pilotage!$D$14)))","v":""},null,null,null,null,null,null,null,null,null,null,null,"","","","","",null,null,null,{"$f":"IF(A153<>\"\",IF($AD153<>\"\",VLOOKUP($AD153,Immobilisations[],7),0),\"\")","v":""},{"$f":"IF(A153<>\"\",IF($AD153<>\"\",VLOOKUP($AD153,Immobilisations[],8),\"\"),\"\")","v":""},"","","","","","","","","","","","",""]
[null,null,null,null,null,null,null,null,null,{"$f":"IF(A154=\"\",\"\",SUM(F154:G154)*Pilotage!$D$14*I154)","v":""},{"$f":"IF(A154=\"\",\"\",L154*(100/(100 + 100*Pilotage!$D$14)))","v":""},null,null,null,null,null,null,null,null,null,null,null,"","","","","",null,null,null,null,null,{"$f":"IF($A154<>\"\",IF(AG147=0,0,IF(ROUNDDOWN(AG147/($AE154+1),0)=0,$K154*$AE154/100,0)),\"\")","v":""},"","","","","","","","","","","",""]
[null,null,null,null,null,null,null,null,null,{"$f":"IF(A155=\"\",\"\",SUM(F155:G155)*Pilotage!$D$14*I155)","v":""},{"$f":"IF(A155=\"\",\"\",L155*(100/(100 + 100*Pilotage!$D$14)))","v":""},null,null,null,null,null,null,null,null,null,null,null,"","","","",""]
[null,null,null,null,null,null,null,null,null,{"$f":"IF(A156=\"\",\"\",SUM(F156:G156)*Pilotage!$D$14*I156)","v":""},{"$f":"IF(A156=\"\",\"\",L156*(100/(100 + 100*Pilotage!$D$14)))","v":""},null,null,null,null,null,null,null,null,null,null,null,null,""]
[null,null,null,null,null,null,null,null,null,{"$f":"IF(A157=\"\",\"\",SUM(F157:G157)*Pilotage!$D$14*I157)","v":""},{"$f":"IF(A157=\"\",\"\",L157*(100/(100 + 100*Pilotage!$D$14)))","v":""},null,null,null,null,null,null,null,null,null,null,null,null,""]
[null,null,null,null,null,null,null,null,null,{"$f":"IF(A158=\"\",\"\",SUM(F158:G158)*Pilotage!$D$14*I158)","v":""},{"$f":"IF(A158=\"\",\"\",L158*(100/(100 + 100*Pilotage!$D$14)))","v":""},null,null,null,null,null,null,null,null,null,null,null,null,""]
[null,null,null,null,null,null,null,null,null,{"$f":"IF(A159=\"\",\"\",SUM(F159:G159)*Pilotage!$D$14*I159)","v":""},{"$f":"IF(A159=\"\",\"\",L159*(100/(100 + 100*Pilotage!$D$14)))","v":""},null,null,null,null,null,null,null,null,null,null,null,null,""]
[null,null,null,null,null,null,null,null,null,{"$f":"IF(A160=\"\",\"\",SUM(F160:G160)*Pilotage!$D$14*I160)","v":""},{"$f":"IF(A160=\"\",\"\",L160*(100/(100 + 100*Pilotage!$D$14)))","v":""},null,null,null,null,null,null,null,null,null,null,null,null,""]
[null,null,null,null,null,null,null,null,null,{"$f":"IF(A161=\"\",\"\",SUM(F161:G161)*Pilotage!$D$14*I161)","v":""},{"$f":"IF(A161=\"\",\"\",L161*(100/(100 + 100*Pilotage!$D$14)))","v":""},null,null,null,null,null,null,null,null,null,null,null,null,""]
[null,null,null,null,null,null,null,null,null,{"$f":"IF(A162=\"\",\"\",SUM(F162:G162)*Pilotage!$D$14*I162)","v":""},{"$f":"IF(A162=\"\",\"\",L162*(100/(100 + 100*Pilotage!$D$14)))","v":""},null,null,null,null,null,null,null,null,null,null,null,null,""]
[null,null,null,null,null,null,null,null,null,{"$f":"IF(A163=\"\",\"\",SUM(F163:G163)*Pilotage!$D$14*I163)","v":""},{"$f":"IF(A163=\"\",\"\",L163*(100/(100 + 100*Pilotage!$D$14)))","v":""},null,null,null,null,null,null,null,null,null,null,null,null,""]
[null,null,null,null,null,null,null,null,null,{"$f":"IF(A164=\"\",\"\",SUM(F164:G164)*Pilotage!$D$14*I164)","v":""},{"$f":"IF(A164=\"\",\"\",L164*(100/(100 + 100*Pilotage!$D$14)))","v":""},null,null,null,null,null,null,null,null,null,null,null,null,""]
[null,null,null,null,null,null,null,null,null,{"$f":"IF(A165=\"\",\"\",SUM(F165:G165)*Pilotage!$D$14*I165)","v":""},{"$f":"IF(A165=\"\",\"\",L165*(100/(100 + 100*Pilotage!$D$14)))","v":""},null,null,null,null,null,null,null,null,null,null,null,null,""]
[null,null,null,null,null,null,null,null,null,{"$f":"IF(A166=\"\",\"\",SUM(F166:G166)*Pilotage!$D$14*I166)","v":""},{"$f":"IF(A166=\"\",\"\",L166*(100/(100 + 100*Pilotage!$D$14)))","v":""},null,null,null,null,null,null,null,null,null,null,null,null,""]
[null,null,null,null,null,null,null,null,null,{"$f":"IF(A167=\"\",\"\",SUM(F167:G167)*Pilotage!$D$14*I167)","v":""},{"$f":"IF(A167=\"\",\"\",L167*(100/(100 + 100*Pilotage!$D$14)))","v":""},null,null,null,null,null,null,null,null,null,null,null,null,""]
[null,null,null,null,null,null,null,null,null,{"$f":"IF(A168=\"\",\"\",SUM(F168:G168)*Pilotage!$D$14*I168)","v":""},{"$f":"IF(A168=\"\",\"\",L168*(100/(100 + 100*Pilotage!$D$14)))","v":""},null,null,null,null,null,null,null,null,null,null,null,null,""]
[null,null,null,null,null,null,null,null,null,{"$f":"IF(A169=\"\",\"\",SUM(F169:G169)*Pilotage!$D$14*I169)","v":""},{"$f":"IF(A169=\"\",\"\",L169*(100/(100 + 100*Pilotage!$D$14)))","v":""},null,null,null,null,null,null,null,null,null,null,null,null,""]
[null,null,null,null,null,null,null,null,null,{"$f":"IF(A170=\"\",\"\",SUM(F170:G170)*Pilotage!$D$14*I170)","v":""},{"$f":"IF(A170=\"\",\"\",L170*(100/(100 + 100*Pilotage!$D$14)))","v":""},null,null,null,null,null,null,null,null,null,null,null,null,""]
[null,null,null,null,null,null,null,null,null,{"$f":"IF(A171=\"\",\"\",SUM(F171:G171)*Pilotage!$D$14*I171)","v":""},{"$f":"IF(A171=\"\",\"\",L171*(100/(100 + 100*Pilotage!$D$14)))","v":""},null,null,null,null,null,null,null,null,null,null,null,null,""]
[null,null,null,null,null,null,null,null,null,{"$f":"IF(A172=\"\",\"\",SUM(F172:G172)*Pilotage!$D$14*I172)","v":""},{"$f":"IF(A172=\"\",\"\",L172*(100/(100 + 100*Pilotage!$D$14)))","v":""}]
[null,null,null,null,null,null,null,null,null,{"$f":"IF(A173=\"\",\"\",SUM(F173:G173)*Pilotage!$D$14*I173)","v":""},{"$f":"IF(A173=\"\",\"\",L173*(100/(100 + 100*Pilotage!$D$14)))","v":""}]
[null,null,null,null,null,null,null,null,null,{"$f":"IF(A174=\"\",\"\",SUM(F174:G174)*Pilotage!$D$14*I174)","v":""},{"$f":"IF(A174=\"\",\"\",L174*(100/(100 + 100*Pilotage!$D$14)))","v":""}]
[null,null,null,null,null,null,null,null,null,{"$f":"IF(A175=\"\",\"\",SUM(F175:G175)*Pilotage!$D$14*I175)","v":""},{"$f":"IF(A175=\"\",\"\",L175*(100/(100 + 100*Pilotage!$D$14)))","v":""}]
[null,null,null,null,null,null,null,null,null,{"$f":"IF(A176=\"\",\"\",SUM(F176:G176)*Pilotage!$D$14*I176)","v":""},{"$f":"IF(A176=\"\",\"\",L176*(100/(100 + 100*Pilotage!$D$14)))","v":""}]
[null,null,null,null,null,null,null,null,null,{"$f":"IF(A177=\"\",\"\",SUM(F177:G177)*Pilotage!$D$14*I177)","v":""},{"$f":"IF(A177=\"\",\"\",L177*(100/(100 + 100*Pilotage!$D$14)))","v":""}]
[null,null,null,null,null,null,null,null,null,{"$f":"IF(A178=\"\",\"\",SUM(F178:G178)*Pilotage!$D$14*I178)","v":""},{"$f":"IF(A178=\"\",\"\",L178*(100/(100 + 100*Pilotage!$D$14)))","v":""}]
[null,null,null,null,null,null,null,null,null,{"$f":"IF(A179=\"\",\"\",SUM(F179:G179)*Pilotage!$D$14*I179)","v":""},{"$f":"IF(A179=\"\",\"\",L179*(100/(100 + 100*Pilotage!$D$14)))","v":""}]
[null,null,null,null,null,null,null,null,null,{"$f":"IF(A180=\"\",\"\",SUM(F180:G180)*Pilotage!$D$14*I180)","v":""},{"$f":"IF(A180=\"\",\"\",L180*(100/(100 + 100*Pilotage!$D$14)))","v":""}]
[null,null,null,null,null,null,null,null,null,{"$f":"IF(A181=\"\",\"\",SUM(F181:G181)*Pilotage!$D$14*I181)","v":""},{"$f":"IF(A181=\"\",\"\",L181*(100/(100 + 100*Pilotage!$D$14)))","v":""}]
[null,null,null,null,null,null,null,null,null,{"$f":"IF(A182=\"\",\"\",SUM(F182:G182)*Pilotage!$D$14*I182)","v":""},{"$f":"IF(A182=\"\",\"\",L182*(100/(100 + 100*Pilotage!$D$14)))","v":""}]
[null,null,null,null,null,null,null,null,null,{"$f":"IF(A183=\"\",\"\",SUM(F183:G183)*Pilotage!$D$14*I183)","v":""},{"$f":"IF(A183=\"\",\"\",L183*(100/(100 + 100*Pilotage!$D$14)))","v":""}]
[null,null,null,null,null,null,null,null,null,{"$f":"IF(A184=\"\",\"\",SUM(F184:G184)*Pilotage!$D$14*I184)","v":""},{"$f":"IF(A184=\"\",\"\",L184*(100/(100 + 100*Pilotage!$D$14)))","v":""}]
[null,null,null,null,null,null,null,null,null,{"$f":"IF(A185=\"\",\"\",SUM(F185:G185)*Pilotage!$D$14*I185)","v":""},{"$f":"IF(A185=\"\",\"\",L185*(100/(100 + 100*Pilotage!$D$14)))","v":""}]
[null,null,null,null,null,null,null,null,null,{"$f":"IF(A186=\"\",\"\",SUM(F186:G186)*Pilotage!$D$14*I186)","v":""},{"$f":"IF(A186=\"\",\"\",L186*(100/(100 + 100*Pilotage!$D$14)))","v":""}]
[null,null,null,null,null,null,null,null,null,{"$f":"IF(A187=\"\",\"\",SUM(F187:G187)*Pilotage!$D$14*I187)","v":""},{"$f":"IF(A187=\"\",\"\",L187*(100/(100 + 100*Pilotage!$D$14)))","v":""}]
[null,null,null,null,null,null,null,null,null,{"$f":"IF(A188=\"\",\"\",SUM(F188:G188)*Pilotage!$D$14*I188)","v":""},{"$f":"IF(A188=\"\",\"\",L188*(100/(100 + 100*Pilotage!$D$14)))","v":""}]
[null,null,null,null,null,null,null,null,null,{"$f":"IF(A189=\"\",\"\",SUM(F189:G189)*Pilotage!$D$14*I189)","v":""},{"$f":"IF(A189=\"\",\"\",L189*(100/(100 + 100*Pilotage!$D$14)))","v":""}]
[null,null,null,null,null,null,null,null,null,{"$f":"IF(A190=\"\",\"\",SUM(F190:G190)*Pilotage!$D$14*I190)","v":""},{"$f":"IF(A190=\"\",\"\",L190*(100/(100 + 100*Pilotage!$D$14)))","v":""}]
[null,null,null,null,null,null,null,null,null,{"$f":"IF(A191=\"\",\"\",SUM(F191:G191)*Pilotage!$D$14*I191)","v":""},{"$f":"IF(A191=\"\",\"\",L191*(100/(100 + 100*Pilotage!$D$14)))","v":""}]
[null,null,null,null,null,null,null,null,null,{"$f":"IF(A192=\"\",\"\",SUM(F192:G192)*Pilotage!$D$14*I192)","v":""},{"$f":"IF(A192=\"\",\"\",L192*(100/(100 + 100*Pilotage!$D$14)))","v":""}]
[null,null,null,null,null,null,null,null,null,{"$f":"IF(A193=\"\",\"\",SUM(F193:G193)*Pilotage!$D$14*I193)","v":""},{"$f":"IF(A193=\"\",\"\",L193*(100/(100 + 100*Pilotage!$D$14)))","v":""}]
[null,null,null,null,null,null,null,null,null,{"$f":"IF(A194=\"\",\"\",SUM(F194:G194)*Pilotage!$D$14*I194)","v":""},{"$f":"IF(A194=\"\",\"\",L194*(100/(100 + 100*Pilotage!$D$14)))","v":""}]
[null,null,null,null,null,null,null,null,null,{"$f":"IF(A195=\"\",\"\",SUM(F195:G195)*Pilotage!$D$14*I195)","v":""},{"$f":"IF(A195=\"\",\"\",L195*(100/(100 + 100*Pilotage!$D$14)))","v":""}]
[null,null,null,null,null,null,null,null,null,{"$f":"IF(A196=\"\",\"\",SUM(F196:G196)*Pilotage!$D$14*I196)","v":""},{"$f":"IF(A196=\"\",\"\",L196*(100/(100 + 100*Pilotage!$D$14)))","v":""}]
[null,null,null,null,null,null,null,null,null,{"$f":"IF(A197=\"\",\"\",SUM(F197:G197)*Pilotage!$D$14*I197)","v":""},{"$f":"IF(A197=\"\",\"\",L197*(100/(100 + 100*Pilotage!$D$14)))","v":""}]
[null,null,null,null,null,null,null,null,null,{"$f":"IF(A198=\"\",\"\",SUM(F198:G198)*Pilotage!$D$14*I198)","v":""},{"$f":"IF(A198=\"\",\"\",L198*(100/(100 + 100*Pilotage!$D$14)))","v":""}]
[null,null,null,null,null,null,null,null,null,{"$f":"IF(A199=\"\",\"\",SUM(F199:G199)*Pilotage!$D$14*I199)","v":""},{"$f":"IF(A199=\"\",\"\",L199*(100/(100 + 100*Pilotage!$D$14)))","v":""}]
[null,null,null,null,null,null,null,null,null,{"$f":"IF(A200=\"\",\"\",SUM(F200:G200)*Pilotage!$D$14*I200)","v":""},{"$f":"IF(A200=\"\",\"\",L200*(100/(100 + 100*Pilotage!$D$14)))","v":""}]
[null,null,null,null,null,null,null,null,null,{"$f":"IF(A201=\"\",\"\",SUM(F201:G201)*Pilotage!$D$14*I201)","v":""},{"$f":"IF(A201=\"\",\"\",L201*(100/(100 + 100*Pilotage!$D$14)))","v":""}]
[null,null,null,null,null,null,null,null,null,{"$f":"IF(A202=\"\",\"\",SUM(F202:G202)*Pilotage!$D$14*I202)","v":""},{"$f":"IF(A202=\"\",\"\",L202*(100/(100 + 100*Pilotage!$D$14)))","v":""}]
[null,null,null,null,null,null,null,null,null,{"$f":"IF(A203=\"\",\"\",SUM(F203:G203)*Pilotage!$D$14*I203)","v":""},{"$f":"IF(A203=\"\",\"\",L203*(100/(100 + 100*Pilotage!$D$14)))","v":""}]
[null,null,null,null,null,null,null,null,null,{"$f":"IF(A204=\"\",\"\",SUM(F204:G204)*Pilotage!$D$14*I204)","v":""},{"$f":"IF(A204=\"\",\"\",L204*(100/(100 + 100*Pilotage!$D$14)))","v":""}]
[null,null,null,null,null,null,null,null,null,{"$f":"IF(A205=\"\",\"\",SUM(F205:G205)*Pilotage!$D$14*I205)","v":""},{"$f":"IF(A205=\"\",\"\",L205*(100/(100 + 100*Pilotage!$D$14)))","v":""}]
[null,null,null,null,null,null,null,null,null,{"$f":"IF(A206=\"\",\"\",SUM(F206:G206)*Pilotage!$D$14*I206)","v":""},{"$f":"IF(A206=\"\",\"\",L206*(100/(100 + 100*Pilotage!$D$14)))","v":""}]
[null,null,null,null,null,null,null,null,null,{"$f":"IF(A207=\"\",\"\",SUM(F207:G207)*Pilotage!$D$14*I207)","v":""},{"$f":"IF(A207=\"\",\"\",L207*(100/(100 + 100*Pilotage!$D$14)))","v":""}]
[null,null,null,null,null,null,null,null,null,{"$f":"IF(A208=\"\",\"\",SUM(F208:G208)*Pilotage!$D$14*I208)","v":""},{"$f":"IF(A208=\"\",\"\",L208*(100/(100 + 100*Pilotage!$D$14)))","v":""}]
[null,null,null,null,null,null,null,null,null,{"$f":"IF(A209=\"\",\"\",SUM(F209:G209)*Pilotage!$D$14*I209)","v":""},{"$f":"IF(A209=\"\",\"\",L209*(100/(100 + 100*Pilotage!$D$14)))","v":""}]
[null,null,null,null,null,null,null,null,null,{"$f":"IF(A210=\"\",\"\",SUM(F210:G210)*Pilotage!$D$14*I210)","v":""},{"$f":"IF(A210=\"\",\"\",L210*(100/(100 + 100*Pilotage!$D$14)))","v":""}]
[null,null,null,null,null,null,null,null,null,{"$f":"IF(A211=\"\",\"\",SUM(F211:G211)*Pilotage!$D$14*I211)","v":""},{"$f":"IF(A211=\"\",\"\",L211*(100/(100 + 100*Pilotage!$D$14)))","v":""}]
[null,null,null,null,null,null,null,null,null,{"$f":"IF(A212=\"\",\"\",SUM(F212:G212)*Pilotage!$D$14*I212)","v":""},{"$f":"IF(A212=\"\",\"\",L212*(100/(100 + 100*Pilotage!$D$14)))","v":""}]
[null,null,null,null,null,null,null,null,null,{"$f":"IF(A213=\"\",\"\",SUM(F213:G213)*Pilotage!$D$14*I213)","v":""},{"$f":"IF(A213=\"\",\"\",L213*(100/(100 + 100*Pilotage!$D$14)))","v":""}]
[null,null,null,null,null,null,null,null,null,{"$f":"IF(A214=\"\",\"\",SUM(F214:G214)*Pilotage!$D$14*I214)","v":""},{"$f":"IF(A214=\"\",\"\",L214*(100/(100 + 100*Pilotage!$D$14)))","v":""}]
[null,null,null,null,null,null,null,null,null,{"$f":"IF(A215=\"\",\"\",SUM(F215:G215)*Pilotage!$D$14*I215)","v":""},{"$f":"IF(A215=\"\",\"\",L215*(100/(100 + 100*Pilotage!$D$14)))","v":""}]
[null,null,null,null,null,null,null,null,null,{"$f":"IF(A216=\"\",\"\",SUM(F216:G216)*Pilotage!$D$14*I216)","v":""},{"$f":"IF(A216=\"\",\"\",L216*(100/(100 + 100*Pilotage!$D$14)))","v":""}]
[null,null,null,null,null,null,null,null,null,{"$f":"IF(A217=\"\",\"\",SUM(F217:G217)*Pilotage!$D$14*I217)","v":""},{"$f":"IF(A217=\"\",\"\",L217*(100/(100 + 100*Pilotage!$D$14)))","v":""}]
[null,null,null,null,null,null,null,null,null,{"$f":"IF(A218=\"\",\"\",SUM(F218:G218)*Pilotage!$D$14*I218)","v":""},{"$f":"IF(A218=\"\",\"\",L218*(100/(100 + 100*Pilotage!$D$14)))","v":""}]
[null,null,null,null,null,null,null,null,null,{"$f":"IF(A219=\"\",\"\",SUM(F219:G219)*Pilotage!$D$14*I219)","v":""},{"$f":"IF(A219=\"\",\"\",L219*(100/(100 + 100*Pilotage!$D$14)))","v":""}]
[null,null,null,null,null,null,null,null,null,{"$f":"IF(A220=\"\",\"\",SUM(F220:G220)*Pilotage!$D$14*I220)","v":""},{"$f":"IF(A220=\"\",\"\",L220*(100/(100 + 100*Pilotage!$D$14)))","v":""}]
[null,null,null,null,null,null,null,null,null,{"$f":"IF(A221=\"\",\"\",SUM(F221:G221)*Pilotage!$D$14*I221)","v":""},{"$f":"IF(A221=\"\",\"\",L221*(100/(100 + 100*Pilotage!$D$14)))","v":""}]
[null,null,null,null,null,null,null,null,null,{"$f":"IF(A222=\"\",\"\",SUM(F222:G222)*Pilotage!$D$14*I222)","v":""},{"$f":"IF(A222=\"\",\"\",L222*(100/(100 + 100*Pilotage!$D$14)))","v":""}]
[null,null,null,null,null,null,null,null,null,{"$f":"IF(A223=\"\",\"\",SUM(F223:G223)*Pilotage!$D$14*I223)","v":""},{"$f":"IF(A223=\"\",\"\",L223*(100/(100 + 100*Pilotage!$D$14)))","v":""}]
[null,null,null,null,null,null,null,null,null,{"$f":"IF(A224=\"\",\"\",SUM(F224:G224)*Pilotage!$D$14*I224)","v":""},{"$f":"IF(A224=\"\",\"\",L224*(100/(100 + 100*Pilotage!$D$14)))","v":""}]
[null,null,null,null,null,null,null,null,null,{"$f":"IF(A225=\"\",\"\",SUM(F225:G225)*Pilotage!$D$14*I225)","v":""},{"$f":"IF(A225=\"\",\"\",L225*(100/(100 + 100*Pilotage!$D$14)))","v":""}]
[null,null,null,null,null,null,null,null,null,{"$f":"IF(A226=\"\",\"\",SUM(F226:G226)*Pilotage!$D$14*I226)","v":""},{"$f":"IF(A226=\"\",\"\",L226*(100/(100 + 100*Pilotage!$D$14)))","v":""}]
[null,null,null,null,null,null,null,null,null,{"$f":"IF(A227=\"\",\"\",SUM(F227:G227)*Pilotage!$D$14*I227)","v":""},{"$f":"IF(A227=\"\",\"\",L227*(100/(100 + 100*Pilotage!$D$14)))","v":""}]
[null,null,null,null,null,null,null,null,null,{"$f":"IF(A228=\"\",\"\",SUM(F228:G228)*Pilotage!$D$14*I228)","v":""},{"$f":"IF(A228=\"\",\"\",L228*(100/(100 + 100*Pilotage!$D$14)))","v":""}]
[null,null,null,null,null,null,null,null,null,{"$f":"IF(A229=\"\",\"\",SUM(F229:G229)*Pilotage!$D$14*I229)","v":""},{"$f":"IF(A229=\"\",\"\",L229*(100/(100 + 100*Pilotage!$D$14)))","v":""}]
[null,null,null,null,null,null,null,null,null,{"$f":"IF(A230=\"\",\"\",SUM(F230:G230)*Pilotage!$D$14*I230)","v":""},{"$f":"IF(A230=\"\",\"\",L230*(100/(100 + 100*Pilotage!$D$14)))","v":""}]
[null,null,null,null,null,null,null,null,null,{"$f":"IF(A231=\"\",\"\",SUM(F231:G231)*Pilotage!$D$14*I231)","v":""},{"$f":"IF(A231=\"\",\"\",L231*(100/(100 + 100*Pilotage!$D$14)))","v":""}]
[null,null,null,null,null,null,null,null,null,{"$f":"IF(A232=\"\",\"\",SUM(F232:G232)*Pilotage!$D$14*I232)","v":""},{"$f":"IF(A232=\"\",\"\",L232*(100/(100 + 100*Pilotage!$D$14)))","v":""}]
[null,null,null,null,null,null,null,null,null,{"$f":"IF(A233=\"\",\"\",SUM(F233:G233)*Pilotage!$D$14*I233)","v":""},{"$f":"IF(A233=\"\",\"\",L233*(100/(100 + 100*Pilotage!$D$14)))","v":""}]
[null,null,null,null,null,null,null,null,null,{"$f":"IF(A234=\"\",\"\",SUM(F234:G234)*Pilotage!$D$14*I234)","v":""},{"$f":"IF(A234=\"\",\"\",L234*(100/(100 + 100*Pilotage!$D$14)))","v":""}]
[null,null,null,null,null,null,null,null,null,{"$f":"IF(A235=\"\",\"\",SUM(F235:G235)*Pilotage!$D$14*I235)","v":""},{"$f":"IF(A235=\"\",\"\",L235*(100/(100 + 100*Pilotage!$D$14)))","v":""}]
[null,null,null,null,null,null,null,null,null,{"$f":"IF(A236=\"\",\"\",SUM(F236:G236)*Pilotage!$D$14*I236)","v":""},{"$f":"IF(A236=\"\",\"\",L236*(100/(100 + 100*Pilotage!$D$14)))","v":""}]
[null,null,null,null,null,null,null,null,null,{"$f":"IF(A237=\"\",\"\",SUM(F237:G237)*Pilotage!$D$14*I237)","v":""},{"$f":"IF(A237=\"\",\"\",L237*(100/(100 + 100*Pilotage!$D$14)))","v":""}]
[null,null,null,null,null,null,null,null,null,{"$f":"IF(A238=\"\",\"\",SUM(F238:G238)*Pilotage!$D$14*I238)","v":""},{"$f":"IF(A238=\"\",\"\",L238*(100/(100 + 100*Pilotage!$D$14)))","v":""}]
[null,null,null,null,null,null,null,null,null,{"$f":"IF(A239=\"\",\"\",SUM(F239:G239)*Pilotage!$D$14*I239)","v":""},{"$f":"IF(A239=\"\",\"\",L239*(100/(100 + 100*Pilotage!$D$14)))","v":""}]
[null,null,null,null,null,null,null,null,null,{"$f":"IF(A240=\"\",\"\",SUM(F240:G240)*Pilotage!$D$14*I240)","v":""},{"$f":"IF(A240=\"\",\"\",L240*(100/(100 + 100*Pilotage!$D$14)))","v":""}]
[null,null,null,null,null,null,null,null,null,{"$f":"IF(A241=\"\",\"\",SUM(F241:G241)*Pilotage!$D$14*I241)","v":""},{"$f":"IF(A241=\"\",\"\",L241*(100/(100 + 100*Pilotage!$D$14)))","v":""}]
[null,null,null,null,null,null,null,null,null,{"$f":"IF(A242=\"\",\"\",SUM(F242:G242)*Pilotage!$D$14*I242)","v":""},{"$f":"IF(A242=\"\",\"\",L242*(100/(100 + 100*Pilotage!$D$14)))","v":""}]
[null,null,null,null,null,null,null,null,null,{"$f":"IF(A243=\"\",\"\",SUM(F243:G243)*Pilotage!$D$14*I243)","v":""},{"$f":"IF(A243=\"\",\"\",L243*(100/(100 + 100*Pilotage!$D$14)))","v":""}]
[null,null,null,null,null,null,null,null,null,{"$f":"IF(A244=\"\",\"\",SUM(F244:G244)*Pilotage!$D$14*I244)","v":""},{"$f":"IF(A244=\"\",\"\",L244*(100/(100 + 100*Pilotage!$D$14)))","v":""}]
[null,null,null,null,null,null,null,null,null,{"$f":"IF(A245=\"\",\"\",SUM(F245:G245)*Pilotage!$D$14*I245)","v":""},{"$f":"IF(A245=\"\",\"\",L245*(100/(100 + 100*Pilotage!$D$14)))","v":""}]
[null,null,null,null,null,null,null,null,null,{"$f":"IF(A246=\"\",\"\",SUM(F246:G246)*Pilotage!$D$14*I246)","v":""},{"$f":"IF(A246=\"\",\"\",L246*(100/(100 + 100*Pilotage!$D$14)))","v":""}]
[null,null,null,null,null,null,null,null,null,{"$f":"IF(A247=\"\",\"\",SUM(F247:G247)*Pilotage!$D$14*I247)","v":""},{"$f":"IF(A247=\"\",\"\",L247*(100/(100 + 100*Pilotage!$D$14)))","v":""}]
[null,null,null,null,null,null,null,null,null,{"$f":"IF(A248=\"\",\"\",SUM(F248:G248)*Pilotage!$D$14*I248)","v":""},{"$f":"IF(A248=\"\",\"\",L248*(100/(100 + 100*Pilotage!$D$14)))","v":""}]
[null,null,null,null,null,null,null,null,null,{"$f":"IF(A249=\"\",\"\",SUM(F249:G249)*Pilotage!$D$14*I249)","v":""},{"$f":"IF(A249=\"\",\"\",L249*(100/(100 + 100*Pilotage!$D$14)))","v":""}]
[null,null,null,null,null,null,null,null,null,{"$f":"IF(A250=\"\",\"\",SUM(F250:G250)*Pilotage!$D$14*I250)","v":""},{"$f":"IF(A250=\"\",\"\",L250*(100/(100 + 100*Pilotage!$D$14)))","v":""}]
[null,null,null,null,null,null,null,null,null,{"$f":"IF(A251=\"\",\"\",SUM(F251:G251)*Pilotage!$D$14*I251)","v":""},{"$f":"IF(A251=\"\",\"\",L251*(100/(100 + 100*Pilotage!$D$14)))","v":""}]
[null,null,null,null,null,null,null,null,null,{"$f":"IF(A252=\"\",\"\",SUM(F252:G252)*Pilotage!$D$14*I252)","v":""},{"$f":"IF(A252=\"\",\"\",L252*(100/(100 + 100*Pilotage!$D$14)))","v":""}]
[null,null,null,null,null,null,null,null,null,{"$f":"IF(A253=\"\",\"\",SUM(F253:G253)*Pilotage!$D$14*I253)","v":""},{"$f":"IF(A253=\"\",\"\",L253*(100/(100 + 100*Pilotage!$D$14)))","v":""}]
[null,null,null,null,null,null,null,null,null,{"$f":"IF(A254=\"\",\"\",SUM(F254:G254)*Pilotage!$D$14*I254)","v":""},{"$f":"IF(A254=\"\",\"\",L254*(100/(100 + 100*Pilotage!$D$14)))","v":""}]
[null,null,null,null,null,null,null,null,null,{"$f":"IF(A255=\"\",\"\",SUM(F255:G255)*Pilotage!$D$14*I255)","v":""},{"$f":"IF(A255=\"\",\"\",L255*(100/(100 + 100*Pilotage!$D$14)))","v":""}]
[null,null,null,null,null,null,null,null,null,{"$f":"IF(A256=\"\",\"\",SUM(F256:G256)*Pilotage!$D$14*I256)","v":""},{"$f":"IF(A256=\"\",\"\",L256*(100/(100 + 100*Pilotage!$D$14)))","v":""}]
[null,null,null,null,null,null,null,null,null,{"$f":"IF(A257=\"\",\"\",SUM(F257:G257)*Pilotage!$D$14*I257)","v":""},{"$f":"IF(A257=\"\",\"\",L257*(100/(100 + 100*Pilotage!$D$14)))","v":""}]
[null,null,null,null,null,null,null,null,null,{"$f":"IF(A258=\"\",\"\",SUM(F258:G258)*Pilotage!$D$14*I258)","v":""},{"$f":"IF(A258=\"\",\"\",L258*(100/(100 + 100*Pilotage!$D$14)))","v":""}]
[null,null,null,null,null,null,null,null,null,{"$f":"IF(A259=\"\",\"\",SUM(F259:G259)*Pilotage!$D$14*I259)","v":""},{"$f":"IF(A259=\"\",\"\",L259*(100/(100 + 100*Pilotage!$D$14)))","v":""}]
[null,null,null,null,null,null,null,null,null,{"$f":"IF(A260=\"\",\"\",SUM(F260:G260)*Pilotage!$D$14*I260)","v":""},{"$f":"IF(A260=\"\",\"\",L260*(100/(100 + 100*Pilotage!$D$14)))","v":""}]
[null,null,null,null,null,null,null,null,null,{"$f":"IF(A261=\"\",\"\",SUM(F261:G261)*Pilotage!$D$14*I261)","v":""},{"$f":"IF(A261=\"\",\"\",L261*(100/(100 + 100*Pilotage!$D$14)))","v":""}]
[null,null,null,null,null,null,null,null,null,{"$f":"IF(A262=\"\",\"\",SUM(F262:G262)*Pilotage!$D$14*I262)","v":""},{"$f":"IF(A262=\"\",\"\",L262*(100/(100 + 100*Pilotage!$D$14)))","v":""}]
[null,null,null,null,null,null,null,null,null,{"$f":"IF(A263=\"\",\"\",SUM(F263:G263)*Pilotage!$D$14*I263)","v":""}]
[null,null,null,null,null,null,null,null,null,{"$f":"IF(A264=\"\",\"\",SUM(F264:G264)*Pilotage!$D$14*I264)","v":""}]
[null,null,null,null,null,null,null,null,null,{"$f":"IF(A265=\"\",\"\",SUM(F265:G265)*Pilotage!$D$14*I265)","v":""}]
[null,null,null,null,null,null,null,null,null,{"$f":"IF(A266=\"\",\"\",SUM(F266:G266)*Pilotage!$D$14*I266)","v":""}]
[null,null,null,null,null,null,null,null,null,{"$f":"IF(A267=\"\",\"\",SUM(F267:G267)*Pilotage!$D$14*I267)","v":""}]
[null,null,null,null,null,null,null,null,null,{"$f":"IF(A268=\"\",\"\",SUM(F268:G268)*Pilotage!$D$14*I268)","v":""}]
[null,null,null,null,null,null,null,null,null,{"$f":"IF(A269=\"\",\"\",SUM(F269:G269)*Pilotage!$D$14*I269)","v":""}]
[null,null,null,null,null,null,null,null,null,{"$f":"IF(A270=\"\",\"\",SUM(F270:G270)*Pilotage!$D$14*I270)","v":""}]
[null,null,null,null,null,null,null,null,null,{"$f":"IF(A271=\"\",\"\",SUM(F271:G271)*Pilotage!$D$14*I271)","v":""}]
[null,null,null,null,null,null,null,null,null,{"$f":"IF(A272=\"\",\"\",SUM(F272:G272)*Pilotage!$D$14*I272)","v":""}]
[null,null,null,null,null,null,null,null,null,{"$f":"IF(A273=\"\",\"\",SUM(F273:G273)*Pilotage!$D$14*I273)","v":""}]
[null,null,null,null,null,null,null,null,null,{"$f":"IF(A274=\"\",\"\",SUM(F274:G274)*Pilotage!$D$14*I274)","v":""}]
[null,null,null,null,null,null,null,null,null,{"$f":"IF(A275=\"\",\"\",SUM(F275:G275)*Pilotage!$D$14*I275)","v":""}]
[null,null,null,null,null,null,null,null,null,{"$f":"IF(A276=\"\",\"\",SUM(F276:G276)*Pilotage!$D$14*I276)","v":""}]
[null,null,null,null,null,null,null,null,null,{"$f":"IF(A277=\"\",\"\",SUM(F277:G277)*Pilotage!$D$14*I277)","v":""}]

{"sheet":"Consommables","index":40,"n_rows":52,"n_cols":45,"rows_kept":52,"cut":false,"hidden":false,"merged":[]}
["Qtt","Catégorie","Société","Designation","Commentaires","Prix unitaire €","Prix Unit. From $","Prix en $","Exprimé HT","TVA","Prix HT","Prix TTC","Sous totaux TTC","Pays d'origine",null,null,"*","FL","FC","B","CW",null,"*","FL","FC","B","CW",null,null,null,"Durée","Taux","Année 0","Année 1","Année 2","Année 3","Année 4","Année 5","Année 6","Année 7","Année 8","Année 9","Année 10","Année 11","Année 12"]
[null,null,null,null,null,null,null,null,null,null,null,null,null,null,null,null,null,null,null,null,null,null,null,null,null,null,null,null,null,null,null,null,0,1,2,3,4,5,6,7,8,9,10,11,12]
[null,null,null,null,null,null,null,null,null,null,"Total HT","Total TTC",null,null,null,null,null,null,null,null,null,null,{"$f":"W4/$K4","v":{"$error":"#DIV/0!"}},{"$f":"X4/$K4","v":{"$error":"#DIV/0!"}},{"$f":"Y4/$K4","v":{"$error":"#DIV/0!"}},{"$f":"Z4/$K4","v":{"$error":"#DIV/0!"}},{"$f":"AA4/$K4","v":{"$error":"#DIV/0!"}},{"$f":"SUM(W3:AA3)","v":{"$error":"#DIV/0!"}},null,null,null,null,"Total DAT ","Total DAT ","Total DAT ","Total DAT ","Total DAT ","Total DAT ","Total DAT ","Total DAT ","Total DAT ","Total DAT ","Total DAT ","Total DAT ","Total DAT "]
[null,null,null,null,null,null,null,null,null,null,{"$f":"L4*(100/(100 + 100*Pilotage!$D$14))","v":0},{"$f":"SUM(M:M)","v":0},null,null,null,null,null,null,null,null,null,null,{"$f":"SUM(W6:W34)","v":0},{"$f":"SUM(X6:X34)","v":0},{"$f":"SUM(Y6:Y34)","v":0},{"$f":"SUM(Z6:Z34)","v":0},{"$f":"SUM(AA6:AA34)","v":0},{"$f":"SUM(W4:AA4)","v":0},null,null,null,null,{"$f":"SUM(AG8:AG34)","v":0},0,0,0,0,0,0,0,0,0,0,0,0]
[null,null,null,null,null,null,null,null,null,null,null,{"$f":"IF(L4<>SUM(L6:L725),\"ERREUR Page Consomables\",\"\")","v":""},null,null,null,null,null,null,null,null,null,null,null,null,null,null,null,{"$f":"K4-AB4","v":0}]
[null,"Aléas",null,{"$f":"Pilotage!$D$17","v":0.02},null,null,{"$f":"IF(H6=\"\",\"\",H6*$G$4)","v":""},null,null,{"$f":"IF(A6=\"\",\"\",SUM(F6:G6)*Pilotage!$D$14*I6)","v":""},{"$f":"IF(A6=\"\",\"\",#REF!*(100/(100 + 100*Pilotage!$D$14)))","v":""},{"$f":"D6*SUM(K$8:K$640)*(1+Pilotage!$D$14)","v":0},{"$f":"L6","v":0},null,null,null,null,null,null,null,null,null,{"$f":"L6*Pilotage!D15","v":0},0,0,0,0]
[]
[null,null,null,null,null,null,{"$f":"IF(H8=\"\",\"\",H8*Pilotage!$D$16)","v":""},null,null,{"$f":"IF(A8=\"\",\"\",SUM(F8:G8)*Pilotage!$D$14*I8)","v":""},{"$f":"IF(A8=\"\",\"\",L8*(100/(100 + 100*Pilotage!$D$14)))","v":""},null,null,null,null,null,null,null,null,null,null,null,{"$f":"IF($A8<>\"\",Q8*$K8,\"\")","v":""},"","","","",null,null,null,{"$f":"IF(A8<>\"\",IF($AD8<>\"\",VLOOKUP($AD8,Immobilisations[],7),0),\"\")","v":""},{"$f":"IF(A8<>\"\",IF($AD8<>\"\",VLOOKUP($AD8,Immobilisations[],8),\"\"),\"\")","v":""},{"$f":"IF(AND($A8<>\"\",$AF8<>\"\"),IF(AG$2=0,0,IF(ROUNDDOWN(AG$2/($AE8+1),0)=0,$K8*$AE8/100,0)),\"\")","v":""},"",{"$f":"IF(AND($A8<>\"\",$AF8<>\"\"),IF(AI$2=0,0,IF(ROUNDDOWN(AI$2/($AE8+1),0)=0,$K8*$AE8/100,0)),\"\")","v":""},"","","","","","","","","",""]
[null,"Informatique",null,null,null,null,{"$f":"IF(H9=\"\",\"\",H9*Pilotage!$D$16)","v":""},null,null,{"$f":"IF(A9=\"\",\"\",SUM(F9:G9)*Pilotage!$D$14*I9)","v":""},{"$f":"IF(A9=\"\",\"\",L9*(100/(100 + 100*Pilotage!$D$14)))","v":""},null,null,null,null,null,null,null,null,null,null,null,"","","","","",null,null,null,{"$f":"IF(A9<>\"\",IF($AD9<>\"\",VLOOKUP($AD9,Immobilisations[],7),0),\"\")","v":""},{"$f":"IF(A9<>\"\",IF($AD9<>\"\",VLOOKUP($AD9,Immobilisations[],8),\"\"),\"\")","v":""},"","","",{"$f":"IF(AND($A9<>\"\",$AF9<>\"\"),IF(AJ$2=0,0,IF(ROUNDDOWN(AJ$2/($AE9+1),0)=0,$K9*$AE9/100,0)),\"\")","v":""},"","","","","","","","",""]
[null,null,null,null,null,null,{"$f":"IF(H10=\"\",\"\",H10*Pilotage!$D$16)","v":""},null,null,{"$f":"IF(A10=\"\",\"\",SUM(F10:G10)*Pilotage!$D$14*I10)","v":""},{"$f":"IF(A10=\"\",\"\",L10*(100/(100 + 100*Pilotage!$D$14)))","v":""},null,null,null,null,null,null,null,null,null,null,null,"","","","",{"$f":"IF($A10<>\"\",U10*$K10,\"\")","v":""},null,null,null,{"$f":"IF(A10<>\"\",IF($AD10<>\"\",VLOOKUP($AD10,Immobilisations[],7),0),\"\")","v":""},{"$f":"IF(A10<>\"\",IF($AD10<>\"\",VLOOKUP($AD10,Immobilisations[],8),\"\"),\"\")","v":""},"","","","","","","","","","","","",""]
[null,null,"Printing:",null,null,null,{"$f":"IF(H11=\"\",\"\",H11*Pilotage!$D$16)","v":""},null,null,{"$f":"IF(A11=\"\",\"\",SUM(F11:G11)*Pilotage!$D$14*I11)","v":""},{"$f":"IF(A11=\"\",\"\",L11*(100/(100 + 100*Pilotage!$D$14)))","v":""},{"$f":"IF(A11=\"\",\"\",(SUM(F11:G11)+J11)*A11)","v":""},null,null,null,null,null,null,null,null,null,null,"","","","","",null,null,null,{"$f":"IF(A11<>\"\",IF($AD11<>\"\",VLOOKUP($AD11,Immobilisations[],7),0),\"\")","v":""},{"$f":"IF(A11<>\"\",IF($AD11<>\"\",VLOOKUP($AD11,Immobilisations[],8),\"\"),\"\")","v":""},"","","","","","","","","","","","",""]
[0,null,null,"Toner d'origine Noir","B0041H9YRS",62.48,{"$f":"IF(H12=\"\",\"\",H12*Pilotage!$D$16)","v":""},null,null,{"$f":"IF(A12=\"\",\"\",SUM(F12:G12)*Pilotage!$D$14*I12)","v":0},{"$f":"IF(A12=\"\",\"\",L12*(100/(100 + 100*Pilotage!$D$14)))","v":0},0,null,null,null,null,1,null,null,null,null,null,0,0,0,0,0,null,null,"Matériel de bureau",{"$f":"IF(A12<>\"\",IF($AD12<>\"\",VLOOKUP($AD12,Immobilisations[],7),0),\"\")","v":10},{"$f":"IF(A12<>\"\",IF($AD12<>\"\",VLOOKUP($AD12,Immobilisations[],8),\"\"),\"\")","v":0.1},0,0,0,0,0,0,0,0,0,0,0,0,0]
[0,null,null,"Toner d'origine Cyan","B0041H9YSC",109.56,{"$f":"IF(H13=\"\",\"\",H13*Pilotage!$D$16)","v":""},null,null,{"$f":"IF(A13=\"\",\"\",SUM(F13:G13)*Pilotage!$D$14*I13)","v":0},{"$f":"IF(A13=\"\",\"\",L13*(100/(100 + 100*Pilotage!$D$14)))","v":0},0,null,null,null,null,1,null,null,null,null,null,0,0,0,0,0,null,null,"Matériel de bureau",{"$f":"IF(A13<>\"\",IF($AD13<>\"\",VLOOKUP($AD13,Immobilisations[],7),0),\"\")","v":10},{"$f":"IF(A13<>\"\",IF($AD13<>\"\",VLOOKUP($AD13,Immobilisations[],8),\"\"),\"\")","v":0.1},0,0,0,0,0,0,0,0,0,0,0,0,0]
[0,null,null,"Toner d'origine Magenta","B0041H9YSM",130.11000000000001,{"$f":"IF(H14=\"\",\"\",H14*Pilotage!$D$16)","v":""},null,null,{"$f":"IF(A14=\"\",\"\",SUM(F14:G14)*Pilotage!$D$14*I14)","v":0},{"$f":"IF(A14=\"\",\"\",L14*(100/(100 + 100*Pilotage!$D$14)))","v":0},0,null,null,null,null,1,null,null,null,null,null,0,0,0,0,0,null,null,"Matériel de bureau",{"$f":"IF(A14<>\"\",IF($AD14<>\"\",VLOOKUP($AD14,Immobilisations[],7),0),\"\")","v":10},{"$f":"IF(A14<>\"\",IF($AD14<>\"\",VLOOKUP($AD14,Immobilisations[],8),\"\"),\"\")","v":0.1},0,0,0,0,0,0,0,0,0,0,0,0,0]
[0,null,null,"Toner d'origine jaune","B0041H9YT6",131.4,{"$f":"IF(H15=\"\",\"\",H15*Pilotage!$D$16)","v":""},null,null,{"$f":"IF(A15=\"\",\"\",SUM(F15:G15)*Pilotage!$D$14*I15)","v":0},{"$f":"IF(A15=\"\",\"\",L15*(100/(100 + 100*Pilotage!$D$14)))","v":0},0,null,null,null,null,1,null,null,null,null,null,0,0,0,0,0,null,null,"Matériel de bureau",{"$f":"IF(A15<>\"\",IF($AD15<>\"\",VLOOKUP($AD15,Immobilisations[],7),0),\"\")","v":10},{"$f":"IF(A15<>\"\",IF($AD15<>\"\",VLOOKUP($AD15,Immobilisations[],8),\"\"),\"\")","v":0.1},0,0,0,0,0,0,0,0,0,0,0,0,0]
[null,null,null,null,null,null,{"$f":"IF(H16=\"\",\"\",H16*Pilotage!$D$16)","v":""},null,null,{"$f":"IF(A16=\"\",\"\",SUM(F16:G16)*Pilotage!$D$14*I16)","v":""},{"$f":"IF(A16=\"\",\"\",L16*(100/(100 + 100*Pilotage!$D$14)))","v":""},"",null,null,null,null,null,null,null,null,null,null,"","","","","",null,null,null,{"$f":"IF(A16<>\"\",IF($AD16<>\"\",VLOOKUP($AD16,Immobilisations[],7),0),\"\")","v":""},{"$f":"IF(A16<>\"\",IF($AD16<>\"\",VLOOKUP($AD16,Immobilisations[],8),\"\"),\"\")","v":""},"","","","","","","","","","","","",""]
[null,null,null,null,null,null,{"$f":"IF(H17=\"\",\"\",H17*Pilotage!$D$16)","v":""},null,null,{"$f":"IF(A17=\"\",\"\",SUM(F17:G17)*Pilotage!$D$14*I17)","v":""},{"$f":"IF(A17=\"\",\"\",L17*(100/(100 + 100*Pilotage!$D$14)))","v":""},"",{"$f":"SUM(L10:L16)","v":0},null,null,null,null,null,null,null,null,null,"","","","","",null,null,null,{"$f":"IF(A17<>\"\",IF($AD17<>\"\",VLOOKUP($AD17,Immobilisations[],7),0),\"\")","v":""},{"$f":"IF(A17<>\"\",IF($AD17<>\"\",VLOOKUP($AD17,Immobilisations[],8),\"\"),\"\")","v":""},"","","","","","","","","","","","",""]
[null,null,null,null,null,null,{"$f":"IF(H18=\"\",\"\",H18*Pilotage!$D$16)","v":""},null,null,{"$f":"IF(A18=\"\",\"\",SUM(F18:G18)*Pilotage!$D$14*I18)","v":""},{"$f":"IF(A18=\"\",\"\",L18*(100/(100 + 100*Pilotage!$D$14)))","v":""},null,null,null,null,null,null,null,null,null,null,null,"","","","","",null,null,null,{"$f":"IF(A18<>\"\",IF($AD18<>\"\",VLOOKUP($AD18,Immobilisations[],7),0),\"\")","v":""},{"$f":"IF(A18<>\"\",IF($AD18<>\"\",VLOOKUP($AD18,Immobilisations[],8),\"\"),\"\")","v":""},"","","","","","","","","","","","",""]
[null,"Fournitures de bureau",null,null,null,null,{"$f":"IF(H19=\"\",\"\",H19*Pilotage!$D$16)","v":""},null,null,{"$f":"IF(A19=\"\",\"\",SUM(F19:G19)*Pilotage!$D$14*I19)","v":""},{"$f":"IF(A19=\"\",\"\",L19*(100/(100 + 100*Pilotage!$D$14)))","v":""},"",null,null,null,null,null,null,null,null,null,null,"","","","","",null,null,null,{"$f":"IF(A19<>\"\",IF($AD19<>\"\",VLOOKUP($AD19,Immobilisations[],7),0),\"\")","v":""},{"$f":"IF(A19<>\"\",IF($AD19<>\"\",VLOOKUP($AD19,Immobilisations[],8),\"\"),\"\")","v":""},"","","","","","","","","","","","",""]
[0,null,null,"papier",null,100,{"$f":"IF(H20=\"\",\"\",H20*Pilotage!$D$16)","v":""},null,null,{"$f":"IF(A20=\"\",\"\",SUM(F20:G20)*Pilotage!$D$14*I20)","v":0},{"$f":"IF(A20=\"\",\"\",L20*(100/(100 + 100*Pilotage!$D$14)))","v":0},0,null,null,null,null,1,null,null,null,null,null,0,0,0,0,0,null,null,"Matériel de bureau",{"$f":"IF(A20<>\"\",IF($AD20<>\"\",VLOOKUP($AD20,Immobilisations[],7),0),\"\")","v":10},{"$f":"IF(A20<>\"\",IF($AD20<>\"\",VLOOKUP($AD20,Immobilisations[],8),\"\"),\"\")","v":0.1},0,0,0,0,0,0,0,0,0,0,0,0,0]
[0,null,null,"stylo, bloc notes, post it",null,300,{"$f":"IF(H21=\"\",\"\",H21*Pilotage!$D$16)","v":""},null,null,{"$f":"IF(A21=\"\",\"\",SUM(F21:G21)*Pilotage!$D$14*I21)","v":0},{"$f":"IF(A21=\"\",\"\",L21*(100/(100 + 100*Pilotage!$D$14)))","v":0},{"$f":"IF(A21=\"\",\"\",(SUM(F21:G21)+J21)*A21)","v":0},null,null,null,null,1,null,null,null,null,null,0,0,0,0,0,null,null,"Matériel de bureau",{"$f":"IF(A21<>\"\",IF($AD21<>\"\",VLOOKUP($AD21,Immobilisations[],7),0),\"\")","v":10},{"$f":"IF(A21<>\"\",IF($AD21<>\"\",VLOOKUP($AD21,Immobilisations[],8),\"\"),\"\")","v":0.1},0,0,0,0,0,0,0,0,0,0,0,0,0]
[null,null,null,null,null,null,{"$f":"IF(H22=\"\",\"\",H22*Pilotage!$D$16)","v":""},null,null,{"$f":"IF(A22=\"\",\"\",SUM(F22:G22)*Pilotage!$D$14*I22)","v":""},{"$f":"IF(A22=\"\",\"\",L22*(100/(100 + 100*Pilotage!$D$14)))","v":""},{"$f":"IF(A22=\"\",\"\",(SUM(F22:G22)+J22)*A22)","v":""},{"$f":"SUM(L20:L21)","v":0},null,null,null,null,null,null,null,null,null,"","","","","",null,null,null,{"$f":"IF(A22<>\"\",IF($AD22<>\"\",VLOOKUP($AD22,Immobilisations[],7),0),\"\")","v":""},{"$f":"IF(A22<>\"\",IF($AD22<>\"\",VLOOKUP($AD22,Immobilisations[],8),\"\"),\"\")","v":""},"","","","","","","","","","","","",""]
[null,null,null,null,null,null,null,null,null,null,null,null,null,null,null,null,null,null,null,null,null,null,"","","","","",null,null,null,{"$f":"IF(A23<>\"\",IF($AD23<>\"\",VLOOKUP($AD23,Immobilisations[],7),0),\"\")","v":""},{"$f":"IF(A23<>\"\",IF($AD23<>\"\",VLOOKUP($AD23,Immobilisations[],8),\"\"),\"\")","v":""},"","","","","","","","","","","","",""]
[null,null,null,null,null,null,{"$f":"IF(H24=\"\",\"\",H24*Pilotage!$D$16)","v":""},null,null,{"$f":"IF(A24=\"\",\"\",SUM(F24:G24)*Pilotage!$D$14*I24)","v":""},null,"",null,null,null,null,null,null,null,null,null,null,"","","","","",null,null,null,{"$f":"IF(A24<>\"\",IF($AD24<>\"\",VLOOKUP($AD24,Immobilisations[],7),0),\"\")","v":""},{"$f":"IF(A24<>\"\",IF($AD24<>\"\",VLOOKUP($AD24,Immobilisations[],8),\"\"),\"\")","v":""},"","","","","","","","","","","","",""]
[null,null,null,null,null,null,{"$f":"IF(H25=\"\",\"\",H25*Pilotage!$D$16)","v":""},null,null,{"$f":"IF(A25=\"\",\"\",SUM(F25:G25)*Pilotage!$E$13*I25)","v":""},null,"",null,null,null,null,null,null,null,null,null,null,"","","","","",null,null,null,{"$f":"IF(A25<>\"\",IF($AD25<>\"\",VLOOKUP($AD25,Immobilisations[],7),0),\"\")","v":""},{"$f":"IF(A25<>\"\",IF($AD25<>\"\",VLOOKUP($AD25,Immobilisations[],8),\"\"),\"\")","v":""},"","","","","","","","","","","","",""]
[null,null,null,null,null,null,{"$f":"IF(H26=\"\",\"\",H26*Pilotage!$D$16)","v":""},null,null,{"$f":"IF(A26=\"\",\"\",SUM(F26:G26)*Pilotage!$E$13*I26)","v":""},null,"",null,null,null,null,null,null,null,null,null,null,"","","","","",null,null,null,{"$f":"IF(A26<>\"\",IF($AD26<>\"\",VLOOKUP($AD26,Immobilisations[],7),0),\"\")","v":""},{"$f":"IF(A26<>\"\",IF($AD26<>\"\",VLOOKUP($AD26,Immobilisations[],8),\"\"),\"\")","v":""},"","","","","","","","","","","","",""]
[null,null,null,null,null,null,{"$f":"IF(H27=\"\",\"\",H27*Pilotage!$D$16)","v":""},null,null,{"$f":"IF(A27=\"\",\"\",SUM(F27:G27)*Pilotage!$E$13*I27)","v":""},null,"",null,null,null,null,null,null,null,null,null,null,"","","","","",null,null,null,{"$f":"IF(A27<>\"\",IF($AD27<>\"\",VLOOKUP($AD27,Immobilisations[],7),0),\"\")","v":""},{"$f":"IF(A27<>\"\",IF($AD27<>\"\",VLOOKUP($AD27,Immobilisations[],8),\"\"),\"\")","v":""},"","","","","","","","","","","","",""]
[null,null,null,null,null,null,{"$f":"IF(H28=\"\",\"\",H28*Pilotage!$D$16)","v":""},null,null,{"$f":"IF(A28=\"\",\"\",SUM(F28:G28)*Pilotage!$E$13*I28)","v":""},null,"",null,null,null,null,null,null,null,null,null,null,"","","","","",null,null,null,{"$f":"IF(A28<>\"\",IF($AD28<>\"\",VLOOKUP($AD28,Immobilisations[],7),0),\"\")","v":""},{"$f":"IF(A28<>\"\",IF($AD28<>\"\",VLOOKUP($AD28,Immobilisations[],8),\"\"),\"\")","v":""},"","","","","","","","","","","","",""]
[null,null,null,null,null,null,{"$f":"IF(H29=\"\",\"\",H29*Pilotage!$D$16)","v":""},null,null,{"$f":"IF(A29=\"\",\"\",SUM(F29:G29)*Pilotage!$E$13*I29)","v":""},null,"",null,null,null,null,null,null,null,null,null,null,"","","","","",null,null,null,{"$f":"IF(A29<>\"\",IF($AD29<>\"\",VLOOKUP($AD29,Immobilisations[],7),0),\"\")","v":""},{"$f":"IF(A29<>\"\",IF($AD29<>\"\",VLOOKUP($AD29,Immobilisations[],8),\"\"),\"\")","v":""},"","","","","","","","","","","","",""]
[null,null,null,null,null,null,{"$f":"IF(H30=\"\",\"\",H30*Pilotage!$D$16)","v":""},null,null,{"$f":"IF(A30=\"\",\"\",SUM(F30:G30)*Pilotage!$E$13*I30)","v":""},null,"",null,null,null,null,null,null,null,null,null,null,"","","","","",null,null,null,{"$f":"IF(A30<>\"\",IF($AD30<>\"\",VLOOKUP($AD30,Immobilisations[],7),0),\"\")","v":""},{"$f":"IF(A30<>\"\",IF($AD30<>\"\",VLOOKUP($AD30,Immobilisations[],8),\"\"),\"\")","v":""},"","","","","","","","","","","","",""]
[null,null,null,null,null,null,{"$f":"IF(H31=\"\",\"\",H31*Pilotage!$D$16)","v":""},null,null,{"$f":"IF(A31=\"\",\"\",SUM(F31:G31)*Pilotage!$E$13*I31)","v":""},null,"",null,null,null,null,null,null,null,null,null,null,"","","","","",null,null,null,{"$f":"IF(A31<>\"\",IF($AD31<>\"\",VLOOKUP($AD31,Immobilisations[],7),0),\"\")","v":""},{"$f":"IF(A31<>\"\",IF($AD31<>\"\",VLOOKUP($AD31,Immobilisations[],8),\"\"),\"\")","v":""},"","","","","","","","","","","","",""]
[null,null,null,null,null,null,{"$f":"IF(H32=\"\",\"\",H32*Pilotage!$D$16)","v":""},null,null,{"$f":"IF(A32=\"\",\"\",SUM(F32:G32)*Pilotage!$E$13*I32)","v":""},null,"",null,null,null,null,null,null,null,null,null,null,"","","","","",null,null,null,{"$f":"IF(A32<>\"\",IF($AD32<>\"\",VLOOKUP($AD32,Immobilisations[],7),0),\"\")","v":""},{"$f":"IF(A32<>\"\",IF($AD32<>\"\",VLOOKUP($AD32,Immobilisations[],8),\"\"),\"\")","v":""},"","","","","",{"$f":"IF(AND($A32<>\"\",$AF32<>\"\"),IF(AL$2=0,0,IF(ROUNDDOWN(AL$2/($AE32+1),0)=0,$K32*$AE32/100,0)),\"\")","v":""},"","","","","","",""]
[null,null,null,null,null,null,{"$f":"IF(H33=\"\",\"\",H33*Pilotage!$D$16)","v":""},null,null,{"$f":"IF(A33=\"\",\"\",SUM(F33:G33)*Pilotage!$E$13*I33)","v":""},null,"",null,null,null,null,null,null,null,null,null,null,"","","","","",null,null,null,{"$f":"IF(A33<>\"\",IF($AD33<>\"\",VLOOKUP($AD33,Immobilisations[],7),0),\"\")","v":""},{"$f":"IF(A33<>\"\",IF($AD33<>\"\",VLOOKUP($AD33,Immobilisations[],8),\"\"),\"\")","v":""},"","","","","","","","","","","","",""]
[null,null,null,null,null,null,{"$f":"IF(H34=\"\",\"\",H34*Pilotage!$D$16)","v":""},null,null,{"$f":"IF(A34=\"\",\"\",SUM(F34:G34)*Pilotage!$E$13*I34)","v":""},null,"",null,null,null,null,null,null,null,null,null,null,"","","","","",null,null,null,{"$f":"IF(A34<>\"\",IF($AD34<>\"\",VLOOKUP($AD34,Immobilisations[],7),0),\"\")","v":""},{"$f":"IF(A34<>\"\",IF($AD34<>\"\",VLOOKUP($AD34,Immobilisations[],8),\"\"),\"\")","v":""},"","","","","","","","","","","","",""]
[null,null,null,null,null,null,{"$f":"IF(H35=\"\",\"\",H35*Pilotage!$D$16)","v":""},null,null,{"$f":"IF(A35=\"\",\"\",SUM(F35:G35)*Pilotage!$E$13*I35)","v":""},null,"",null,null,null,null,null,null,null,null,null,null,"","","","","",null,null,null,null,null,{"$f":"IF($A35<>\"\",IF(AG28=0,0,IF(ROUNDDOWN(AG28/($AE35+1),0)=0,$K35*$AE35/100,0)),\"\")","v":""},"","","","","","","","","","","",""]
[null,null,null,null,null,null,{"$f":"IF(H36=\"\",\"\",H36*Pilotage!$D$16)","v":""},null,null,{"$f":"IF(A36=\"\",\"\",SUM(F36:G36)*$E$3*I36)","v":""},null,"",null,null,null,null,null,null,null,null,null,null,"","","","",""]
[null,null,null,null,null,null,null,null,null,"",null,"",null,null,null,null,null,null,null,null,null,null,null,""]
[null,null,null,null,null,null,null,null,null,"",null,"",null,null,null,null,null,null,null,null,null,null,null,""]
[null,null,null,null,null,null,null,null,null,"",null,"",null,null,null,null,null,null,null,null,null,null,null,""]
[null,null,null,null,null,null,null,null,null,"",null,"",null,null,null,null,null,null,null,null,null,null,null,""]
[null,null,null,null,null,null,null,null,null,"",null,"",null,null,null,null,null,null,null,null,null,null,null,""]
[null,null,null,null,null,null,null,null,null,"",null,"",null,null,null,null,null,null,null,null,null,null,null,""]
[null,null,null,null,null,null,null,null,null,"",null,"",null,null,null,null,null,null,null,null,null,null,null,""]
[null,null,null,null,null,null,null,null,null,null,null,null,null,null,null,null,null,null,null,null,null,null,null,""]
[null,null,null,null,null,null,null,null,null,null,null,null,null,null,null,null,null,null,null,null,null,null,null,""]
[null,null,null,null,null,null,null,null,null,null,null,null,null,null,null,null,null,null,null,null,null,null,null,""]
[null,null,null,null,null,null,null,null,null,null,null,null,null,null,null,null,null,null,null,null,null,null,null,""]
[null,null,null,null,null,null,null,null,null,null,null,null,null,null,null,null,null,null,null,null,null,null,null,""]
[null,null,null,null,null,null,null,null,null,null,null,null,null,null,null,null,null,null,null,null,null,null,null,""]
[null,null,null,null,null,null,null,null,null,null,null,null,null,null,null,null,null,null,null,null,null,null,null,""]
[null,null,null,null,null,null,null,null,null,null,null,null,null,null,null,null,null,null,null,null,null,null,null,""]
[null,null,null,null,null,null,null,null,null,null,null,null,null,null,null,null,null,null,null,null,null,null,null,""]

{"sheet":"Stock","index":41,"n_rows":30,"n_cols":28,"rows_kept":30,"cut":false,"hidden":false,"merged":[]}
["Qtt","Catégorie","Société","Designation","Commentaires","Prix unitaire €","Prix Unit. From $","Prix en $","Exprimé HT","TVA","Prix HT","Prix TTC","Sous totaux TTC",null,null,null,"*","FL","FC","B","CW",null,"*","FL","FC","B","CW"]
[]
[null,null,null,null,null,null,null,null,null,null,"Total HT","Total TTC",null,null,null,null,null,null,null,null,null,null,{"$f":"W4/$K4","v":{"$error":"#DIV/0!"}},{"$f":"X4/$K4","v":{"$error":"#DIV/0!"}},{"$f":"Y4/$K4","v":{"$error":"#DIV/0!"}},{"$f":"Z4/$K4","v":{"$error":"#DIV/0!"}},{"$f":"AA4/$K4","v":{"$error":"#DIV/0!"}},{"$f":"SUM(W3:AA3)","v":{"$error":"#DIV/0!"}}]
[null,null,null,null,null,null,null,null,null,null,{"$f":"L4*(100/(100 + 100*Pilotage!$D$14))","v":0},{"$f":"SUM(M:M)","v":0},null,null,null,null,null,null,null,null,null,null,{"$f":"SUM(W6:W7)","v":0},{"$f":"SUM(X6:X7)","v":0},{"$f":"SUM(Y6:Y7)","v":0},{"$f":"SUM(Z6:Z7)","v":0},{"$f":"SUM(AA6:AA7)","v":0},{"$f":"SUM(W4:AA4)","v":0}]
[null,null,null,null,null,null,null,null,null,{"$f":"IF(A5=\"\",\"\",SUM(F5:G5)*$E$3*H5)","v":""},null,{"$f":"IF(L4<>SUM($L$6:$L$791),\"ERREUR Page Stock\",\"\")","v":""},null,null,null,null,null,null,null,null,null,null,null,null,null,null,null,{"$f":"K4-AB4","v":0}]
[null,"Aléas",null,{"$f":"Pilotage!$D$17","v":0.02},null,null,{"$f":"IF(H6=\"\",\"\",H6*$G$4)","v":""},null,null,{"$f":"IF(A6=\"\",\"\",SUM(F6:G6)*Pilotage!$D$14*I6)","v":""},{"$f":"IF(A6=\"\",\"\",#REF!*(100/(100 + 100*Pilotage!$D$14)))","v":""},{"$f":"D6*SUM(K$8:K$316)*(1+Pilotage!$D$14)","v":0},{"$f":"L6","v":0},null,null,null,null,null,null,null,null,null,0,0,0,{"$f":"L6*Pilotage!D15","v":0},0]
[null,null,null,null,null,null,null,null,null,null,null,null,null,null,null,null,null,null,null,null,null,null,null,null,null,null,null,{"$f":"SUM(K6:K7)","v":0}]
[0,null,null,"Article 1",null,5,null,null,null,{"$f":"IF(A8=\"\",\"\",SUM(F8:G8)*Pilotage!$D$14*I8)","v":0},{"$f":"IF(A8=\"\",\"\",L8*(100/(100 + 100*Pilotage!$D$14)))","v":0},{"$f":"IF(A8=\"\",\"\",(SUM(F8:G8)+J8)*A8)","v":0}]
[0,null,null,"Article 2",null,10,null,null,null,{"$f":"IF(A9=\"\",\"\",SUM(F9:G9)*Pilotage!$D$14*I9)","v":0},{"$f":"IF(A9=\"\",\"\",L9*(100/(100 + 100*Pilotage!$D$14)))","v":0},0]
[0,null,null,"Article 3",null,20,null,null,null,{"$f":"IF(A10=\"\",\"\",SUM(F10:G10)*Pilotage!$D$14*I10)","v":0},{"$f":"IF(A10=\"\",\"\",L10*(100/(100 + 100*Pilotage!$D$14)))","v":0},0]
[0,null,null,"Article 4",null,30,null,null,null,{"$f":"IF(A11=\"\",\"\",SUM(F11:G11)*Pilotage!$D$14*I11)","v":0},{"$f":"IF(A11=\"\",\"\",L11*(100/(100 + 100*Pilotage!$D$14)))","v":0},0]
[0,null,null,"Article 5",null,40,null,null,null,{"$f":"IF(A12=\"\",\"\",SUM(F12:G12)*Pilotage!$D$14*I12)","v":0},{"$f":"IF(A12=\"\",\"\",L12*(100/(100 + 100*Pilotage!$D$14)))","v":0},0]
[0,null,null,"Article 6",null,50,null,null,null,{"$f":"IF(A13=\"\",\"\",SUM(F13:G13)*Pilotage!$D$14*I13)","v":0},{"$f":"IF(A13=\"\",\"\",L13*(100/(100 + 100*Pilotage!$D$14)))","v":0},0]
[0,null,null,"Article 7",null,60,null,null,null,{"$f":"IF(A14=\"\",\"\",SUM(F14:G14)*Pilotage!$D$14*I14)","v":0},{"$f":"IF(A14=\"\",\"\",L14*(100/(100 + 100*Pilotage!$D$14)))","v":0},0]
[0,null,null,"Article 8",null,70,null,null,null,{"$f":"IF(A15=\"\",\"\",SUM(F15:G15)*Pilotage!$D$14*I15)","v":0},{"$f":"IF(A15=\"\",\"\",L15*(100/(100 + 100*Pilotage!$D$14)))","v":0},0]
[0,null,null,"Article 9",null,80,null,null,null,{"$f":"IF(A16=\"\",\"\",SUM(F16:G16)*Pilotage!$D$14*I16)","v":0},{"$f":"IF(A16=\"\",\"\",L16*(100/(100 + 100*Pilotage!$D$14)))","v":0},0]
[0,null,null,"Article 10",null,90,null,null,null,{"$f":"IF(A17=\"\",\"\",SUM(F17:G17)*Pilotage!$D$14*I17)","v":0},{"$f":"IF(A17=\"\",\"\",L17*(100/(100 + 100*Pilotage!$D$14)))","v":0},0]
[0,null,null,"Article 11",null,100,null,null,null,{"$f":"IF(A18=\"\",\"\",SUM(F18:G18)*Pilotage!$D$14*I18)","v":0},{"$f":"IF(A18=\"\",\"\",L18*(100/(100 + 100*Pilotage!$D$14)))","v":0},0]
[0,null,null,"Article 12",null,110,null,null,null,{"$f":"IF(A19=\"\",\"\",SUM(F19:G19)*Pilotage!$D$14*I19)","v":0},{"$f":"IF(A19=\"\",\"\",L19*(100/(100 + 100*Pilotage!$D$14)))","v":0},0]
[0,null,null,"Article 13",null,120,null,null,null,{"$f":"IF(A20=\"\",\"\",SUM(F20:G20)*Pilotage!$D$14*I20)","v":0},{"$f":"IF(A20=\"\",\"\",L20*(100/(100 + 100*Pilotage!$D$14)))","v":0},0]
[0,null,null,"Article 14",null,130,null,null,null,{"$f":"IF(A21=\"\",\"\",SUM(F21:G21)*Pilotage!$D$14*I21)","v":0},{"$f":"IF(A21=\"\",\"\",L21*(100/(100 + 100*Pilotage!$D$14)))","v":0},0]
[0,null,null,"Article 15",null,140,null,null,null,{"$f":"IF(A22=\"\",\"\",SUM(F22:G22)*Pilotage!$D$14*I22)","v":0},{"$f":"IF(A22=\"\",\"\",L22*(100/(100 + 100*Pilotage!$D$14)))","v":0},0]
[0,null,null,"Article 16",null,150,null,null,null,{"$f":"IF(A23=\"\",\"\",SUM(F23:G23)*Pilotage!$D$14*I23)","v":0},{"$f":"IF(A23=\"\",\"\",L23*(100/(100 + 100*Pilotage!$D$14)))","v":0},0]
[0,null,null,"Article 17",null,200,null,null,null,{"$f":"IF(A24=\"\",\"\",SUM(F24:G24)*Pilotage!$D$14*I24)","v":0},{"$f":"IF(A24=\"\",\"\",L24*(100/(100 + 100*Pilotage!$D$14)))","v":0},0]
[0,null,null,"Article 18",null,250,null,null,null,{"$f":"IF(A25=\"\",\"\",SUM(F25:G25)*Pilotage!$D$14*I25)","v":0},{"$f":"IF(A25=\"\",\"\",L25*(100/(100 + 100*Pilotage!$D$14)))","v":0},0]
[0,null,null,"Article 19",null,300,null,null,null,{"$f":"IF(A26=\"\",\"\",SUM(F26:G26)*Pilotage!$D$14*I26)","v":0},{"$f":"IF(A26=\"\",\"\",L26*(100/(100 + 100*Pilotage!$D$14)))","v":0},0]
[0,null,null,"Article 20",null,350,null,null,null,{"$f":"IF(A27=\"\",\"\",SUM(F27:G27)*Pilotage!$D$14*I27)","v":0},{"$f":"IF(A27=\"\",\"\",L27*(100/(100 + 100*Pilotage!$D$14)))","v":0},0]
[0,null,null,"Article 21",null,400,null,null,null,{"$f":"IF(A28=\"\",\"\",SUM(F28:G28)*Pilotage!$D$14*I28)","v":0},{"$f":"IF(A28=\"\",\"\",L28*(100/(100 + 100*Pilotage!$D$14)))","v":0},0]
[0,null,null,"Article 22",null,450,null,null,null,{"$f":"IF(A29=\"\",\"\",SUM(F29:G29)*Pilotage!$D$14*I29)","v":0},{"$f":"IF(A29=\"\",\"\",L29*(100/(100 + 100*Pilotage!$D$14)))","v":0},{"$f":"IF(A29=\"\",\"\",(SUM(F29:G29)+J29)*A29)","v":0}]
[0,null,null,"Article 23",null,500,null,null,null,{"$f":"IF(A30=\"\",\"\",SUM(F30:G30)*Pilotage!$D$14*I30)","v":0},{"$f":"IF(A30=\"\",\"\",L30*(100/(100 + 100*Pilotage!$D$14)))","v":0},0]

{"sheet":"Impôts","index":42,"n_rows":36,"n_cols":28,"rows_kept":36,"cut":false,"hidden":false,"merged":[]}
["Qtt","Catégorie",null,"Designation","Commentaires","Prix unitaire €","Prix","Sous totaux",null,null,null,null,null,null,null,null,"*","FL","FC","B","CW",null,"*","FL","FC","B","CW"]
[]
[null,null,null,null,null,null,null,"Total ",null,null,null,null,null,null,null,null,null,null,null,null,null,null,{"$f":"W4/$H4","v":1},0,0,0,0,1]
[null,null,null,null,null,null,null,{"$f":"SUM(H6:H18)","v":1500},null,null,null,null,null,null,null,null,null,null,null,null,null,null,{"$f":"SUM(W6:W447)","v":1500},{"$f":"SUM(X6:X447)","v":0},{"$f":"SUM(Y6:Y447)","v":0},{"$f":"SUM(Z6:Z447)","v":0},{"$f":"SUM(AA6:AA447)","v":0},{"$f":"SUM(W4:AA4)","v":1500}]
[null,null,null,null,null,null,null,null,null,null,null,null,null,null,null,null,null,null,null,null,null,null,null,null,null,null,null,{"$f":"H4-AB4","v":0}]
[null,"Taxes",null,null,null,null,{"$f":"IF(A6=\"\",\"\",#REF!*(100/(100 + 100*Pilotage!$D$14)))","v":""},null,null,null,null,null,null,null,null,null,null,null,null,null,null,null,0,0,0,{"$f":"L6*Pilotage!D15","v":0},0]
[null,null,"Impôts et taxes",null,null,null,{"$f":"IF(A7=\"\",\"\",#REF!*(100/(100 + 100*Pilotage!$D$14)))","v":""},null,null,null,null,null,null,null,null,null,null,null,null,null,null,null,null,null,null,null,null,{"$f":"SUM(K6:K448)","v":0}]
[0,null,null,"Taxe d’apprentissage",null,0,{"$f":"IF(A8<>\"\",F8*A8,\"\")","v":0}]
[0,null,null,"Formation professionnelle continue",null,0,{"$f":"IF(A9<>\"\",F9*A9,\"\")","v":0},null,null,null,null,null,null,null,null,null,null,null,null,null,null,null,{"$f":"IF($A9<>\"\",Q9*$G9,\"\")","v":0},{"$f":"IF($A9<>\"\",R9*$G9,\"\")","v":0},{"$f":"IF($A9<>\"\",S9*$G9,\"\")","v":0},{"$f":"IF($A9<>\"\",T9*$G9,\"\")","v":0},{"$f":"IF($A9<>\"\",U9*$G9,\"\")","v":0}]
[0,null,null,"Cartes grises",null,0,0,null,null,null,null,null,null,null,null,null,null,null,null,null,null,null,{"$f":"IF($A10<>\"\",Q10*$G10,\"\")","v":0},{"$f":"IF($A10<>\"\",R10*$G10,\"\")","v":0},{"$f":"IF($A10<>\"\",S10*$G10,\"\")","v":0},{"$f":"IF($A10<>\"\",T10*$G10,\"\")","v":0},{"$f":"IF($A10<>\"\",U10*$G10,\"\")","v":0}]
[null,null,null,null,null,null,"",{"$f":"SUM(G8:G10)","v":0},null,null,null,null,null,null,null,null,null,null,null,null,null,null,"","","","",""]
[null,null,"Contribution économique territoriale",null,null,0,"",null,null,null,null,null,null,null,null,null,null,null,null,null,null,null,"","","","",""]
[0,null,null,"Cotisation foncière des entreprises","simulateur",0,0,null,null,null,null,null,null,null,null,null,null,null,null,null,null,null,0,0,0,0,0]
[0,null,null,"Cotisation sur la valeur ajoutée des entreprises",null,0,0,null,null,null,null,null,null,null,null,null,null,null,null,null,null,null,0,0,0,0,0]
[1,null,null,"Montant arbitraire",null,null,{"$f":"1500*A15","v":1500},null,null,null,null,null,null,null,null,null,1,null,null,null,null,null,1500,0,0,0,0]
[null,null,null,null,null,null,null,{"$f":"SUM(G13:G15)","v":1500},null,null,null,null,null,null,null,null,null,null,null,null,null,null,"","","","","",{"$f":"SUM(W10:AA15)*1.2","v":1800}]
[0,null,"Taxe pour frais de chambres de commerce et d’industrie",null,null,0,0,null,null,null,null,null,null,null,null,null,null,null,null,null,null,null,0,0,0,0,0]
[null,null,null,null,null,null,"",{"$f":"G17","v":0},null,null,null,null,null,null,null,null,null,null,null,null,null,null,"","","","",""]
[null,null,null,null,null,null,"",null,null,null,null,null,null,null,null,null,null,null,null,null,null,null,"","","","",""]
[null,null,null,null,null,null,"",null,null,null,null,null,null,null,null,null,null,null,null,null,null,null,"","","","",""]
[null,null,null,null,null,null,"",null,null,null,null,null,null,null,null,null,null,null,null,null,null,null,"","","","",""]
[null,null,null,null,null,null,"","Total ",null,null,null,null,null,null,null,null,null,null,null,null,null,null,"","","","","",{"$f":"SUM(W16:AA21)*1.2","v":0}]
[null,null,null,null,null,null,"",{"$f":"SUM(H25:H30)","v":0},null,null,null,null,null,null,null,null,null,null,null,null,null,null,"","","","",""]
[null,null,null,null,null,null,"",null,null,null,null,null,null,null,null,null,null,null,null,null,null,null,"","","","",""]
[null,"Impôts",null,null,null,null,"",null,null,null,null,null,null,null,null,null,null,null,null,null,null,null,"","","","",""]
[1,null,"Impôt sur les sociétés",null,"15% si <32810€ sinon 33,33%",null,{"$f":"IF('Comptes de résultat 6 ans'!G87<>\"\",'Comptes de résultat 6 ans'!G87,0)","v":0},{"$f":"G26*A26","v":0},null,null,null,null,null,null,null,null,null,null,null,null,null,null,0,0,0,0,0]
[null,null,null,null,null,null,"",null,null,null,null,null,null,null,null,null,null,null,null,null,null,null,"","","","",""]
[null,null,null,null,null,null,"",null,null,null,null,null,null,null,null,null,null,null,null,null,null,null,"","","","",""]
[null,null,null,null,null,null,"",null,null,null,null,null,null,null,null,null,null,null,null,null,null,null,{"$f":"IF($A29<>\"\",Q29*$K29,\"\")","v":""},"","","",""]
[null,null,null,null,null,null,"",null,null,null,null,null,null,null,null,null,null,null,null,null,null,null,"","","","",""]
[null,null,null,null,null,null,""]
[null,null,null,null,null,null,""]
[null,null,null,null,null,null,""]
[null,null,null,null,null,null,""]
[null,null,null,null,null,null,""]
[null,null,null,null,null,null,""]

{"sheet":"Salaires","index":43,"n_rows":82,"n_cols":22,"rows_kept":82,"cut":false,"hidden":false,"merged":[[1,1,1,19]]}
[]
[null,"Salaires"]
[]
[]
[null,{"$f":"Pilotage!E57","v":"Année 0"}]
[]
[null,"Poste","Revenu net mensuel","Taux horaire","Heures / semaine","Heures / mois","Heures / an","Heures de congés / an","Ratio","Salaire brut mensuel de base","Heures supp.","Cotisations sociales salariales","Salaire Brut final","Charges patronales","Coût mensuel","Coût annuel","Nombre d'employé à ce poste","Primes","Formations","Coût total","Coût unitaire","Coût horaire"]
[null,{"$f":"Pilotage!C59","v":"Associé"},{"$f":"M8-L8","v":1950},{"$f":"J8/Pilotage!$D$45","v":16.483516483516485},{"$f":"Pilotage!E59","v":35},{"$f":"E8*(52/12)","v":151.66666666666666},{"$f":"F8*12","v":1820},{"$f":"E8*Pilotage!$D$49","v":175},{"$f":"E8/Pilotage!$D$38","v":1},{"$f":"Pilotage!D59","v":2500},{"$f":"IF(M8>J8,M8-J8,0)","v":0},{"$f":"M8*Pilotage!$D$37","v":550},{"$f":"J8*I8","v":2500},{"$f":"M8*Pilotage!$D$40","v":1050},{"$f":"SUM(M8:N8)","v":3550},{"$f":"O8*Pilotage!$D$41","v":42600},{"$f":"Pilotage!F59","v":2},1000,{"$f":"P8*Pilotage!$D$48","v":234.29999999999998},{"$f":"Q8*P8+Q8*R8+Q8*S8","v":87668.6},{"$f":"P8+R8+S8","v":43834.3},{"$f":"U8/(G8-H8)","v":26.646990881458969}]
[null,{"$f":"Pilotage!C60","v":"Community manager"},1716,{"$f":"J9/Pilotage!$D$45","v":14.505494505494507},{"$f":"Pilotage!E60","v":35},{"$f":"E9*(52/12)","v":151.66666666666666},{"$f":"F9*12","v":1820},{"$f":"E9*Pilotage!$D$49","v":175},{"$f":"E9/Pilotage!$D$38","v":1},{"$f":"Pilotage!D60","v":2200},0,{"$f":"M9*Pilotage!$D$37","v":484},2200,{"$f":"M9*Pilotage!$D$40","v":924},3124,{"$f":"O9*Pilotage!$D$41","v":37488},{"$f":"Pilotage!F60","v":1},1000,{"$f":"P9*Pilotage!$D$48","v":206.184},{"$f":"Q9*P9+Q9*R9+Q9*S9","v":38694.184000000001},{"$f":"P9+R9+S9","v":38694.184000000001},{"$f":"U9/(G9-H9)","v":23.522300303951369}]
[null,{"$f":"Pilotage!C61","v":"Developpeur"},1560,{"$f":"J10/Pilotage!$D$45","v":13.186813186813188},{"$f":"Pilotage!E61","v":35},151.66666666666666,1820,{"$f":"E10*Pilotage!$D$49","v":175},{"$f":"E10/Pilotage!$D$38","v":1},{"$f":"Pilotage!D61","v":2000},0,{"$f":"M10*Pilotage!$D$37","v":440},2000,{"$f":"M10*Pilotage!$D$40","v":840},2840,{"$f":"O10*Pilotage!$D$41","v":34080},{"$f":"Pilotage!F61","v":1},1000,{"$f":"P10*Pilotage!$D$48","v":187.44},35267.440000000002,35267.440000000002,21.439173252279637]
[null,{"$f":"Pilotage!C62","v":"administrateur"},1560,{"$f":"J11/Pilotage!$D$45","v":13.186813186813188},{"$f":"Pilotage!E62","v":35},151.66666666666666,1820,{"$f":"E11*Pilotage!$D$49","v":175},{"$f":"E11/Pilotage!$D$38","v":1},{"$f":"Pilotage!D62","v":2000},0,{"$f":"M11*Pilotage!$D$37","v":440},2000,{"$f":"M11*Pilotage!$D$40","v":840},2840,{"$f":"O11*Pilotage!$D$41","v":34080},{"$f":"Pilotage!F62","v":0},1000,{"$f":"P11*Pilotage!$D$48","v":187.44},0,35267.440000000002,21.439173252279637]
[null,{"$f":"Pilotage!C63","v":"Salarié 5"},1404,{"$f":"J12/Pilotage!$D$45","v":11.868131868131869},{"$f":"Pilotage!E63","v":35},151.66666666666666,1820,{"$f":"E12*Pilotage!$D$49","v":175},{"$f":"E12/Pilotage!$D$38","v":1},{"$f":"Pilotage!D63","v":1800},0,{"$f":"M12*Pilotage!$D$37","v":396},1800,{"$f":"M12*Pilotage!$D$40","v":756},2556,{"$f":"O12*Pilotage!$D$41","v":30672},{"$f":"Pilotage!F63","v":0},1000,{"$f":"P12*Pilotage!$D$48","v":168.696},0,31840.696,19.356046200607903]
[null,"SMIC",1127.3989999999999,{"$f":"J13/Pilotage!$D$45","v":9.5299999999999994},{"$f":"Pilotage!E64","v":35},151.66666666666666,1820,{"$f":"E13*Pilotage!$D$49","v":175},{"$f":"E13/Pilotage!$D$38","v":1},{"$f":"Pilotage!$D$36*Pilotage!$D$45","v":1445.3833333333332},0,{"$f":"M13*Pilotage!$D$37","v":317.98433333333332},1445.3833333333332,{"$f":"M13*Pilotage!$D$40","v":607.06099999999992},2052.4443333333329,{"$f":"O13*Pilotage!$D$41","v":24629.331999999995},{"$f":"Pilotage!F64","v":0},1000,{"$f":"P13*Pilotage!$D$48","v":135.46132599999996},0,25764.793325999995,15.662488344072946]
[null,"Stagiaire",{"$f":"J14*I14","v":520},{"$f":"J14/Pilotage!$D$45","v":3.4285714285714288},{"$f":"Pilotage!E65","v":35},151.66666666666666,1820,{"$f":"E14*Pilotage!$D$49","v":175},{"$f":"E14/Pilotage!$D$38","v":1},{"$f":"Pilotage!D65","v":520},{"$f":"J14*((E14/Pilotage!$D$38)-1)","v":0},{"$f":"IF(C14<=Pilotage!$D$44,0,C14-Pilotage!$D$44)","v":0},{"$f":"SUM(J14:L14)","v":520},0,520,{"$f":"O14*Pilotage!$D$41","v":6240},{"$f":"Pilotage!F65","v":0},500,{"$f":"P14*Pilotage!$D$48","v":34.32},0,6774.32,4.1181276595744682]
[null,null,null,null,null,null,null,null,null,null,null,null,null,null,null,null,"Aléas",null,null,{"$f":"Pilotage!$D$47*SUM(T8:T14)","v":0}]
[null,null,{"$f":"SUM(C14,C10,C8)","v":4030},{"$f":"C16*12","v":48360},{"$f":"D16*1.65","v":79794},null,null,null,null,null,null,null,null,null,null,null,"Masse salariale annuelle",null,null,{"$f":"SUM(T8:T15)","v":161630.22400000002}]
[null,null,null,null,null,null,null,null,null,null,null,null,null,null,null,null,"Masse salariale mensuelle",null,null,{"$f":"T16/12","v":13469.185333333335}]
[null,{"$f":"Pilotage!G57","v":"Année 1"}]
[null,null,null,null,"Augmentation",null,null,null,null,{"$f":"Pilotage!G58","v":0.03}]
[null,{"$f":"B$7","v":"Poste"},"Revenu net mensuel","Taux horaire","Heures / semaine","Heures / mois","Heures / an",{"$f":"H$7","v":"Heures de congés / an"},"Ratio","Salaire brut mensuel de base","Heures supp.","Cotisations sociales salariales","Salaire Brut final","Charges patronales","Coût mensuel","Coût annuel","Nombre d'employé à ce poste","Primes","Formations","Coût total","Coût unitaire","Coût horaire"]
[null,"Fab Director & Manager",{"$f":"M21-L21","v":2008.5},{"$f":"J21/Pilotage!$D$45","v":16.978021978021978},{"$f":"Pilotage!G59","v":35},{"$f":"E21*(52/12)","v":151.66666666666666},{"$f":"F21*12","v":1820},{"$f":"E21*Pilotage!M$9","v":105},{"$f":"E21/Pilotage!$D$38","v":1},{"$f":"J8*(1+$J$19)","v":2575},{"$f":"IF(M21>J21,M21-J21,0)","v":0},{"$f":"M21*Pilotage!$D$37","v":566.5},{"$f":"J21*I21","v":2575},{"$f":"M21*Pilotage!$D$40","v":1081.5},{"$f":"SUM(M21:N21)","v":3656.5},{"$f":"O21*Pilotage!$D$41","v":43878},{"$f":"Pilotage!H59","v":2},{"$f":"R8","v":1000},{"$f":"P21*Pilotage!$D$48","v":241.32899999999998},{"$f":"Q21*P21+Q21*R21+Q21*S21","v":90238.657999999996},{"$f":"P21+R21+S21","v":45119.328999999998},{"$f":"U21/(G21-H21)","v":26.308646647230319}]
[null,"Fab Manager",1767.48,{"$f":"J22/Pilotage!$D$45","v":14.940659340659341},{"$f":"Pilotage!G60","v":35},{"$f":"E22*(52/12)","v":151.66666666666666},{"$f":"F22*12","v":1820},{"$f":"E22*Pilotage!$D$49","v":175},{"$f":"E22/Pilotage!$D$38","v":1},2266,0,{"$f":"M22*Pilotage!$D$37","v":498.52},2266,{"$f":"M22*Pilotage!$D$40","v":951.71999999999991},3217.72,{"$f":"O22*Pilotage!$D$41","v":38612.639999999999},{"$f":"Pilotage!H60","v":1},{"$f":"R9","v":1000},{"$f":"P22*Pilotage!$D$48","v":212.36951999999999},{"$f":"Q22*P22+Q22*R22+Q22*S22","v":39825.00952},{"$f":"P22+R22+S22","v":39825.00952},{"$f":"U22/(G22-H22)","v":24.209732231003038}]
[null,"Employé",1606.8,{"$f":"J23/Pilotage!$D$45","v":13.582417582417584},{"$f":"Pilotage!G61","v":35},151.66666666666666,1820,{"$f":"E23*Pilotage!$D$49","v":175},{"$f":"E23/Pilotage!$D$38","v":1},2060,0,{"$f":"M23*Pilotage!$D$37","v":453.2},2060,{"$f":"M23*Pilotage!$D$40","v":865.19999999999993},2925.2,{"$f":"O23*Pilotage!$D$41","v":35102.399999999994},{"$f":"Pilotage!H61","v":1},1000,{"$f":"P23*Pilotage!$D$48","v":193.06319999999997},36295.463199999991,36295.463199999991,22.064111367781148]
[null,"Ingenieur débutant",1606.8,{"$f":"J24/Pilotage!$D$45","v":13.582417582417584},{"$f":"Pilotage!G62","v":35},151.66666666666666,1820,{"$f":"E24*Pilotage!$D$49","v":175},{"$f":"E24/Pilotage!$D$38","v":1},2060,0,{"$f":"M24*Pilotage!$D$37","v":453.2},2060,{"$f":"M24*Pilotage!$D$40","v":865.19999999999993},2925.2,{"$f":"O24*Pilotage!$D$41","v":35102.399999999994},{"$f":"Pilotage!H62","v":0},1000,{"$f":"P24*Pilotage!$D$48","v":193.06319999999997},0,36295.463199999991,22.064111367781148]
[null,"Technicien",1446.12,{"$f":"J25/Pilotage!$D$45","v":12.224175824175825},{"$f":"Pilotage!G63","v":35},151.66666666666666,1820,{"$f":"E25*Pilotage!$D$49","v":175},{"$f":"E25/Pilotage!$D$38","v":1},1854,0,{"$f":"M25*Pilotage!$D$37","v":407.88},1854,{"$f":"M25*Pilotage!$D$40","v":778.68},2632.68,{"$f":"O25*Pilotage!$D$41","v":31592.159999999996},{"$f":"Pilotage!H63","v":0},1000,{"$f":"P25*Pilotage!$D$48","v":173.75687999999997},0,32765.916879999997,19.918490504559269]
[null,"SMIC",1161.2209699999999,{"$f":"J26/Pilotage!$D$45","v":9.8158999999999992},{"$f":"Pilotage!G64","v":35},151.66666666666666,1820,{"$f":"E26*Pilotage!$D$49","v":175},{"$f":"E26/Pilotage!$D$38","v":1},1488.7448333333332,0,{"$f":"M26*Pilotage!$D$37","v":327.52386333333328},1488.7448333333332,{"$f":"M26*Pilotage!$D$40","v":625.27282999999989},2114.0176633333331,{"$f":"O26*Pilotage!$D$41","v":25368.211959999997},{"$f":"Pilotage!H64","v":0},1000,{"$f":"P26*Pilotage!$D$48","v":139.52516577999998},0,26507.737125779997,16.114125912328266]
[null,"Stagiaire",{"$f":"J27*I27","v":535.6},{"$f":"J27/Pilotage!$D$45","v":3.5314285714285716},{"$f":"Pilotage!G65","v":35},151.66666666666666,1820,{"$f":"E27*Pilotage!$D$49","v":175},{"$f":"E27/Pilotage!$D$38","v":1},535.6,{"$f":"J27*((E27/Pilotage!$D$38)-1)","v":0},{"$f":"IF(C27<=Pilotage!$D$44,0,C27-Pilotage!$D$44)","v":15.600000000000023},{"$f":"SUM(J27:L27)","v":551.20000000000005},0,551.20000000000005,{"$f":"O27*Pilotage!$D$41","v":6614.4000000000005},{"$f":"Pilotage!H65","v":0},500,{"$f":"P27*Pilotage!$D$48","v":36.379200000000004},0,7150.7792000000009,4.3469782370820678]
[null,null,null,null,null,null,null,null,null,null,null,null,null,null,null,null,"Aléas",null,null,{"$f":"Pilotage!$D$47*SUM(T21:T27)","v":0}]
[null,null,null,null,null,null,null,null,null,null,null,null,null,null,null,null,"Masse salariale annuelle",null,null,{"$f":"SUM(T21:T28)","v":166359.13071999999}]
[null,null,null,null,null,null,null,null,null,null,null,null,null,null,null,null,"Masse salariale mensuelle",null,null,{"$f":"T29/12","v":13863.260893333332}]
[]
[null,null,null,null,"Augmentation",null,null,null,null,{"$f":"Pilotage!I58","v":0.03}]
[null,{"$f":"B$7","v":"Poste"},"Revenu net mensuel","Taux horaire","Heures / semaine","Heures / mois","Heures / an",{"$f":"H$7","v":"Heures de congés / an"},"Ratio","Salaire brut mensuel de base","Heures supp.","Cotisations sociales salariales","Salaire Brut final","Charges patronales","Coût mensuel","Coût annuel","Nombre d'employé à ce poste","Primes","Formations","Coût total","Coût unitaire","Coût horaire"]
[null,"Fab Director & Manager",{"$f":"M34-L34","v":2068.7550000000001},{"$f":"J34/Pilotage!$D$45","v":17.48736263736264},{"$f":"Pilotage!I59","v":35},{"$f":"E34*(52/12)","v":151.66666666666666},{"$f":"F34*12","v":1820},{"$f":"E34*Pilotage!M$9","v":105},{"$f":"E34/Pilotage!$D$38","v":1},{"$f":"J21*(1+$J$32)","v":2652.25},{"$f":"IF(M34>J34,M34-J34,0)","v":0},{"$f":"M34*Pilotage!$D$37","v":583.495},{"$f":"J34*I34","v":2652.25},{"$f":"M34*Pilotage!$D$40","v":1113.9449999999999},{"$f":"SUM(M34:N34)","v":3766.1949999999997},{"$f":"O34*Pilotage!$D$41","v":45194.34},{"$f":"Pilotage!J59","v":2},{"$f":"R21","v":1000},{"$f":"P34*Pilotage!$D$48","v":248.56886999999998},{"$f":"Q34*P34+Q34*R34+Q34*S34","v":92885.817739999999},{"$f":"P34+R34+S34","v":46442.908869999999},{"$f":"U34/(G34-H34)","v":27.080413335276969}]
[null,"Fab Manager",1820.5044,{"$f":"J35/Pilotage!$D$45","v":15.388879120879121},{"$f":"Pilotage!I60","v":35},{"$f":"E35*(52/12)","v":151.66666666666666},{"$f":"F35*12","v":1820},{"$f":"E35*Pilotage!$D$49","v":175},{"$f":"E35/Pilotage!$D$38","v":1},2333.98,0,{"$f":"M35*Pilotage!$D$37","v":513.47559999999999},2333.98,{"$f":"M35*Pilotage!$D$40","v":980.27159999999992},3314.2516000000001,{"$f":"O35*Pilotage!$D$41","v":39771.019200000002},{"$f":"Pilotage!J60","v":1},{"$f":"R22","v":1000},{"$f":"P35*Pilotage!$D$48","v":218.74060560000001},{"$f":"Q35*P35+Q35*R35+Q35*S35","v":40989.759805600006},{"$f":"P35+R35+S35","v":40989.759805600006},{"$f":"U35/(G35-H35)","v":24.917787115866265}]
[null,"Employé",1655.0040000000001,{"$f":"J36/Pilotage!$D$45","v":13.989890109890112},{"$f":"Pilotage!I61","v":35},151.66666666666666,1820,{"$f":"E36*Pilotage!$D$49","v":175},{"$f":"E36/Pilotage!$D$38","v":1},2121.8000000000002,0,{"$f":"M36*Pilotage!$D$37","v":466.79600000000005},2121.8000000000002,{"$f":"M36*Pilotage!$D$40","v":891.15600000000006},3012.9560000000001,{"$f":"O36*Pilotage!$D$41","v":36155.472000000002},{"$f":"Pilotage!J61","v":1},1000,{"$f":"P36*Pilotage!$D$48","v":198.855096},37354.327096000001,37354.327096000001,22.70779762674772]
[null,"Ingenieur débutant",1655.0040000000001,{"$f":"J37/Pilotage!$D$45","v":13.989890109890112},{"$f":"Pilotage!I62","v":35},151.66666666666666,1820,{"$f":"E37*Pilotage!$D$49","v":175},{"$f":"E37/Pilotage!$D$38","v":1},2121.8000000000002,0,{"$f":"M37*Pilotage!$D$37","v":466.79600000000005},2121.8000000000002,{"$f":"M37*Pilotage!$D$40","v":891.15600000000006},3012.9560000000001,{"$f":"O37*Pilotage!$D$41","v":36155.472000000002},{"$f":"Pilotage!J62","v":0},1000,{"$f":"P37*Pilotage!$D$48","v":198.855096},0,37354.327096000001,22.70779762674772]
[null,"Technicien",1489.5036,{"$f":"J38/Pilotage!$D$45","v":12.590901098901101},{"$f":"Pilotage!I63","v":35},151.66666666666666,1820,{"$f":"E38*Pilotage!$D$49","v":175},{"$f":"E38/Pilotage!$D$38","v":1},1909.6200000000001,0,{"$f":"M38*Pilotage!$D$37","v":420.11640000000006},1909.6200000000001,{"$f":"M38*Pilotage!$D$40","v":802.04039999999998},2711.6604000000002,{"$f":"O38*Pilotage!$D$41","v":32539.924800000001},{"$f":"Pilotage!J63","v":0},1000,{"$f":"P38*Pilotage!$D$48","v":178.9695864},0,33718.894386400003,20.497808137629182]
[null,"SMIC",1196.0575990999998,{"$f":"J39/Pilotage!$D$45","v":10.110377},{"$f":"Pilotage!I64","v":35},151.66666666666666,1820,{"$f":"E39*Pilotage!$D$49","v":175},{"$f":"E39/Pilotage!$D$38","v":1},1533.4071783333331,0,{"$f":"M39*Pilotage!$D$37","v":337.34957923333332},1533.4071783333331,{"$f":"M39*Pilotage!$D$40","v":644.03101489999995},2177.4381932333331,{"$f":"O39*Pilotage!$D$41","v":26129.258318799999},{"$f":"Pilotage!J64","v":0},1000,{"$f":"P39*Pilotage!$D$48","v":143.71092075339999},0,27272.9692395534,16.579312607631245]
[null,"Stagiaire",{"$f":"J40*I40","v":551.66800000000001},{"$f":"J40/Pilotage!$D$45","v":3.6373714285714289},{"$f":"Pilotage!I65","v":35},151.66666666666666,1820,{"$f":"E40*Pilotage!$D$49","v":175},{"$f":"E40/Pilotage!$D$38","v":1},551.66800000000001,{"$f":"J40*((E40/Pilotage!$D$38)-1)","v":0},{"$f":"IF(C40<=Pilotage!$D$44,0,C40-Pilotage!$D$44)","v":31.668000000000006},{"$f":"SUM(J40:L40)","v":583.33600000000001},0,583.33600000000001,{"$f":"O40*Pilotage!$D$41","v":7000.0320000000002},{"$f":"Pilotage!J65","v":0},500,{"$f":"P40*Pilotage!$D$48","v":38.500175999999996},0,7538.5321759999997,4.5826943319148938]
[null,null,null,null,null,null,null,null,null,null,null,null,null,null,null,null,"Aléas",null,null,{"$f":"Pilotage!$D$47*SUM(T34:T40)","v":0}]
[null,null,null,null,null,null,null,null,null,null,null,null,null,null,null,null,"Masse salariale annuelle",null,null,{"$f":"SUM(T34:T41)","v":171229.90464160001}]
[null,null,null,null,null,null,null,null,null,null,null,null,null,null,null,null,"Masse salariale mensuelle",null,null,{"$f":"T42/12","v":14269.158720133333}]
[]
[null,null,null,null,"Augmentation",null,null,null,null,{"$f":"Pilotage!K58","v":0.03}]
[null,{"$f":"B$7","v":"Poste"},"Revenu net mensuel","Taux horaire","Heures / semaine","Heures / mois","Heures / an",{"$f":"H$7","v":"Heures de congés / an"},"Ratio","Salaire brut mensuel de base","Heures supp.","Cotisations sociales salariales","Salaire Brut final","Charges patronales","Coût mensuel","Coût annuel","Nombre d'employé à ce poste","Primes","Formations","Coût total","Coût unitaire","Coût horaire"]
[null,"Fab Director & Manager",{"$f":"M47-L47","v":2130.81765},{"$f":"J47/Pilotage!$D$45","v":18.011983516483518},{"$f":"Pilotage!K59","v":35},{"$f":"E47*(52/12)","v":151.66666666666666},{"$f":"F47*12","v":1820},{"$f":"E47*Pilotage!M$9","v":105},{"$f":"E47/Pilotage!$D$38","v":1},{"$f":"J34*(1+$J$45)","v":2731.8175000000001},{"$f":"IF(M47>J47,M47-J47,0)","v":0},{"$f":"M47*Pilotage!$D$37","v":600.99985000000004},{"$f":"J47*I47","v":2731.8175000000001},{"$f":"M47*Pilotage!$D$40","v":1147.3633500000001},{"$f":"SUM(M47:N47)","v":3879.1808500000002},{"$f":"O47*Pilotage!$D$41","v":46550.1702},{"$f":"Pilotage!L59","v":2},{"$f":"R34","v":1000},{"$f":"P47*Pilotage!$D$48","v":256.02593609999997},{"$f":"Q47*P47+Q47*R47+Q47*S47","v":95612.392272199999},{"$f":"P47+R47+S47","v":47806.196136099999},{"$f":"U47/(G47-H47)","v":27.875333023965013}]
[null,"Fab Manager",1875.1195320000002,{"$f":"J48/Pilotage!$D$45","v":15.850545494505496},{"$f":"Pilotage!K60","v":35},{"$f":"E48*(52/12)","v":151.66666666666666},{"$f":"F48*12","v":1820},{"$f":"E48*Pilotage!$D$49","v":175},{"$f":"E48/Pilotage!$D$38","v":1},2403.9994000000002,0,{"$f":"M48*Pilotage!$D$37","v":528.87986799999999},2403.9994000000002,{"$f":"M48*Pilotage!$D$40","v":1009.679748},3413.6791480000002,{"$f":"O48*Pilotage!$D$41","v":40964.149776000006},{"$f":"Pilotage!L60","v":1},{"$f":"R35","v":1000},{"$f":"P48*Pilotage!$D$48","v":225.30282376800002},{"$f":"Q48*P48+Q48*R48+Q48*S48","v":42189.452599768003},{"$f":"P48+R48+S48","v":42189.452599768003},{"$f":"U48/(G48-H48)","v":25.64708364727538}]
[null,"Employé",1704.6541200000001,{"$f":"J49/Pilotage!$D$45","v":14.409586813186815},{"$f":"Pilotage!K61","v":35},151.66666666666666,1820,{"$f":"E49*Pilotage!$D$49","v":175},{"$f":"E49/Pilotage!$D$38","v":1},2185.4540000000002,0,{"$f":"M49*Pilotage!$D$37","v":480.79988000000003},2185.4540000000002,{"$f":"M49*Pilotage!$D$40","v":917.89068000000009},3103.3446800000002,{"$f":"O49*Pilotage!$D$41","v":37240.136160000002},{"$f":"Pilotage!L61","v":1},1000,{"$f":"P49*Pilotage!$D$48","v":204.82074888},38444.956908880005,38444.956908880005,23.370794473483286]
[null,"Ingenieur débutant",1704.6541200000001,{"$f":"J50/Pilotage!$D$45","v":14.409586813186815},{"$f":"Pilotage!K62","v":35},151.66666666666666,1820,{"$f":"E50*Pilotage!$D$49","v":175},{"$f":"E50/Pilotage!$D$38","v":1},2185.4540000000002,0,{"$f":"M50*Pilotage!$D$37","v":480.79988000000003},2185.4540000000002,{"$f":"M50*Pilotage!$D$40","v":917.89068000000009},3103.3446800000002,{"$f":"O50*Pilotage!$D$41","v":37240.136160000002},{"$f":"Pilotage!L62","v":0},1000,{"$f":"P50*Pilotage!$D$48","v":204.82074888},0,38444.956908880005,23.370794473483286]
[null,"Technicien",1534.1887080000001,{"$f":"J51/Pilotage!$D$45","v":12.968628131868135},{"$f":"Pilotage!K63","v":35},151.66666666666666,1820,{"$f":"E51*Pilotage!$D$49","v":175},{"$f":"E51/Pilotage!$D$38","v":1},1966.9086000000002,0,{"$f":"M51*Pilotage!$D$37","v":432.71989200000007},1966.9086000000002,{"$f":"M51*Pilotage!$D$40","v":826.10161200000005},2793.0102120000001,{"$f":"O51*Pilotage!$D$41","v":33516.122543999998},{"$f":"Pilotage!L63","v":0},1000,{"$f":"P51*Pilotage!$D$48","v":184.33867399199997},0,34700.461217992,21.094505299691185]
[null,"SMIC",1231.939327073,{"$f":"J52/Pilotage!$D$45","v":10.41368831},{"$f":"Pilotage!K64","v":35},151.66666666666666,1820,{"$f":"E52*Pilotage!$D$49","v":175},{"$f":"E52/Pilotage!$D$38","v":1},1579.4093936833333,0,{"$f":"M52*Pilotage!$D$37","v":347.47006661033333},1579.4093936833333,{"$f":"M52*Pilotage!$D$40","v":663.35194534699997},2242.7613390303331,{"$f":"O52*Pilotage!$D$41","v":26913.136068363998},{"$f":"Pilotage!L64","v":0},1000,{"$f":"P52*Pilotage!$D$48","v":148.02224837600198},0,28061.158316739999,17.058454903793312]
[null,"Stagiaire",{"$f":"J53*I53","v":568.21803999999997},{"$f":"J53/Pilotage!$D$45","v":3.7464925714285715},{"$f":"Pilotage!K65","v":35},151.66666666666666,1820,{"$f":"E53*Pilotage!$D$49","v":175},{"$f":"E53/Pilotage!$D$38","v":1},568.21803999999997,{"$f":"J53*((E53/Pilotage!$D$38)-1)","v":0},{"$f":"IF(C53<=Pilotage!$D$44,0,C53-Pilotage!$D$44)","v":48.218039999999974},{"$f":"SUM(J53:L53)","v":616.43607999999995},0,616.43607999999995,{"$f":"O53*Pilotage!$D$41","v":7397.2329599999994},{"$f":"Pilotage!L65","v":0},500,{"$f":"P53*Pilotage!$D$48","v":40.684781279999996},0,7937.9177412799991,4.8254819095927042]
[null,null,null,null,null,null,null,null,null,null,null,null,null,null,null,null,"Aléas",null,null,{"$f":"Pilotage!$D$47*SUM(T47:T53)","v":0}]
[null,null,null,null,null,null,null,null,null,null,null,null,null,null,null,null,"Masse salariale annuelle",null,null,{"$f":"SUM(T47:T54)","v":176246.80178084801}]
[null,null,null,null,null,null,null,null,null,null,null,null,null,null,null,null,"Masse salariale mensuelle",null,null,{"$f":"T55/12","v":14687.233481737334}]
[]
[null,null,null,null,"Augmentation",null,null,null,null,{"$f":"Pilotage!M58","v":0.03}]
[null,{"$f":"B$7","v":"Poste"},"Revenu net mensuel","Taux horaire","Heures / semaine","Heures / mois","Heures / an",{"$f":"H$7","v":"Heures de congés / an"},"Ratio","Salaire brut mensuel de base","Heures supp.","Cotisations sociales salariales","Salaire Brut final","Charges patronales","Coût mensuel","Coût annuel","Nombre d'employé à ce poste","Primes","Formations","Coût total","Coût unitaire","Coût horaire"]
[null,"Fab Director & Manager",{"$f":"M60-L60","v":2194.7421795},{"$f":"J60/Pilotage!$D$45","v":18.552343021978025},{"$f":"Pilotage!M59","v":35},{"$f":"E60*(52/12)","v":151.66666666666666},{"$f":"F60*12","v":1820},{"$f":"E60*Pilotage!M$9","v":105},{"$f":"E60/Pilotage!$D$38","v":1},{"$f":"J47*(1+$J$58)","v":2813.7720250000002},{"$f":"IF(M60>J60,M60-J60,0)","v":0},{"$f":"M60*Pilotage!$D$37","v":619.02984550000008},{"$f":"J60*I60","v":2813.7720250000002},{"$f":"M60*Pilotage!$D$40","v":1181.7842505000001},{"$f":"SUM(M60:N60)","v":3995.5562755000001},{"$f":"O60*Pilotage!$D$41","v":47946.675306000005},{"$f":"Pilotage!N59","v":2},{"$f":"R47","v":1000},{"$f":"P60*Pilotage!$D$48","v":263.70671418300003},{"$f":"Q60*P60+Q60*R60+Q60*S60","v":98420.764040366004},{"$f":"P60+R60+S60","v":49210.382020183002},{"$f":"U60/(G60-H60)","v":28.694100303313704}]
[null,"Fab Manager",1931.3731179600004,{"$f":"J61/Pilotage!$D$45","v":16.326061859340662},{"$f":"Pilotage!M60","v":35},{"$f":"E61*(52/12)","v":151.66666666666666},{"$f":"F61*12","v":1820},{"$f":"E61*Pilotage!$D$49","v":175},{"$f":"E61/Pilotage!$D$38","v":1},2476.1193820000003,0,{"$f":"M61*Pilotage!$D$37","v":544.74626404000003},2476.1193820000003,{"$f":"M61*Pilotage!$D$40","v":1039.97014044},3516.0895224400001,{"$f":"O61*Pilotage!$D$41","v":42193.074269279998},{"$f":"Pilotage!N60","v":1},{"$f":"R48","v":1000},{"$f":"P61*Pilotage!$D$48","v":232.06190848103998},{"$f":"Q61*P61+Q61*R61+Q61*S61","v":43425.136177761036},{"$f":"P61+R61+S61","v":43425.136177761036},{"$f":"U61/(G61-H61)","v":26.398259074626768}]
[null,"Employé",1755.7937436000002,{"$f":"J62/Pilotage!$D$45","v":14.841874417582419},{"$f":"Pilotage!M61","v":35},151.66666666666666,1820,{"$f":"E62*Pilotage!$D$49","v":175},{"$f":"E62/Pilotage!$D$38","v":1},2251.0176200000001,0,{"$f":"M62*Pilotage!$D$37","v":495.22387639999999},2251.0176200000001,{"$f":"M62*Pilotage!$D$40","v":945.42740040000001},3196.4450204,{"$f":"O62*Pilotage!$D$41","v":38357.340244799998},{"$f":"Pilotage!N61","v":1},1000,{"$f":"P62*Pilotage!$D$48","v":210.96537134639996},39568.305616146397,39568.305616146397,24.05368122562091]
[null,"Ingenieur débutant",1755.7937436000002,{"$f":"J63/Pilotage!$D$45","v":14.841874417582419},{"$f":"Pilotage!M62","v":35},151.66666666666666,1820,{"$f":"E63*Pilotage!$D$49","v":175},{"$f":"E63/Pilotage!$D$38","v":1},2251.0176200000001,0,{"$f":"M63*Pilotage!$D$37","v":495.22387639999999},2251.0176200000001,{"$f":"M63*Pilotage!$D$40","v":945.42740040000001},3196.4450204,{"$f":"O63*Pilotage!$D$41","v":38357.340244799998},{"$f":"Pilotage!N62","v":0},1000,{"$f":"P63*Pilotage!$D$48","v":210.96537134639996},0,39568.305616146397,24.05368122562091]
[null,"Technicien",1580.2143692400002,{"$f":"J64/Pilotage!$D$45","v":13.357686975824178},{"$f":"Pilotage!M63","v":35},151.66666666666666,1820,{"$f":"E64*Pilotage!$D$49","v":175},{"$f":"E64/Pilotage!$D$38","v":1},2025.9158580000003,0,{"$f":"M64*Pilotage!$D$37","v":445.70148876000007},2025.9158580000003,{"$f":"M64*Pilotage!$D$40","v":850.88466036000011},2876.8005183600003,{"$f":"O64*Pilotage!$D$41","v":34521.606220320005},{"$f":"Pilotage!N63","v":0},1000,{"$f":"P64*Pilotage!$D$48","v":189.86883421176003},0,35711.475054531766,21.709103376615055]
[null,"SMIC",1268.8975068851901,{"$f":"J65/Pilotage!$D$45","v":10.7260989593},{"$f":"Pilotage!M64","v":35},151.66666666666666,1820,{"$f":"E65*Pilotage!$D$49","v":175},{"$f":"E65/Pilotage!$D$38","v":1},1626.7916754938333,0,{"$f":"M65*Pilotage!$D$37","v":357.89416860864333},1626.7916754938333,{"$f":"M65*Pilotage!$D$40","v":683.25250370740991},2310.0441792012434,{"$f":"O65*Pilotage!$D$41","v":27720.530150414921},{"$f":"Pilotage!N64","v":0},1000,{"$f":"P65*Pilotage!$D$48","v":152.46291582728205},0,28872.993066242205,17.551971468840247]
[null,"Stagiaire",{"$f":"J66*I66","v":585.26458119999995},{"$f":"J66/Pilotage!$D$45","v":3.8588873485714283},{"$f":"Pilotage!M65","v":35},151.66666666666666,1820,{"$f":"E66*Pilotage!$D$49","v":175},{"$f":"E66/Pilotage!$D$38","v":1},585.26458119999995,{"$f":"J66*((E66/Pilotage!$D$38)-1)","v":0},{"$f":"IF(C66<=Pilotage!$D$44,0,C66-Pilotage!$D$44)","v":65.264581199999952},{"$f":"SUM(J66:L66)","v":650.5291623999999},0,650.5291623999999,{"$f":"O66*Pilotage!$D$41","v":7806.3499487999989},{"$f":"Pilotage!N65","v":0},500,{"$f":"P66*Pilotage!$D$48","v":42.934924718399991},0,8349.2848735183979,5.0755531146008499]
[null,null,null,null,null,null,null,null,null,null,null,null,null,null,null,null,"Aléas",null,null,{"$f":"Pilotage!$D$47*SUM(T60:T66)","v":0}]
[null,null,null,null,null,null,null,null,null,null,null,null,null,null,null,null,"Masse salariale annuelle",null,null,{"$f":"SUM(T60:T67)","v":181414.20583427342}]
[null,null,null,null,null,null,null,null,null,null,null,null,null,null,null,null,"Masse salariale mensuelle",null,null,{"$f":"T68/12","v":15117.850486189453}]
[]
[null,null,null,null,"Augmentation",null,null,null,null,{"$f":"Pilotage!O58","v":0.03}]
[null,{"$f":"B$7","v":"Poste"},"Revenu net mensuel","Taux horaire","Heures / semaine","Heures / mois","Heures / an",{"$f":"H$7","v":"Heures de congés / an"},"Ratio","Salaire brut mensuel de base","Heures supp.","Cotisations sociales salariales","Salaire Brut final","Charges patronales","Coût mensuel","Coût annuel","Nombre d'employé à ce poste","Primes","Formations","Coût total","Coût unitaire","Coût horaire"]
[null,"Fab Director & Manager",{"$f":"M73-L73","v":2260.5844448850003},{"$f":"J73/Pilotage!$D$45","v":19.108913312637366},{"$f":"Pilotage!O59","v":35},{"$f":"E73*(52/12)","v":151.66666666666666},{"$f":"F73*12","v":1820},{"$f":"E73*Pilotage!M$9","v":105},{"$f":"E73/Pilotage!$D$38","v":1},{"$f":"J60*(1+$J$71)","v":2898.1851857500001},{"$f":"IF(M73>J73,M73-J73,0)","v":0},{"$f":"M73*Pilotage!$D$37","v":637.60074086500003},{"$f":"J73*I73","v":2898.1851857500001},{"$f":"M73*Pilotage!$D$40","v":1217.237778015},{"$f":"SUM(M73:N73)","v":4115.4229637650005},{"$f":"O73*Pilotage!$D$41","v":49385.075565180006},{"$f":"Pilotage!P59","v":2},{"$f":"R60","v":1000},{"$f":"P73*Pilotage!$D$48","v":271.61791560849002},{"$f":"Q73*P73+Q73*R73+Q73*S73","v":101313.38696157699},{"$f":"P73+R73+S73","v":50656.693480788497},{"$f":"U73/(G73-H73)","v":29.537430601042857}]
[null,"Fab Manager",1989.3143114988004,{"$f":"J74/Pilotage!$D$45","v":16.815843715120884},{"$f":"Pilotage!O60","v":35},{"$f":"E74*(52/12)","v":151.66666666666666},{"$f":"F74*12","v":1820},{"$f":"E74*Pilotage!$D$49","v":175},{"$f":"E74/Pilotage!$D$38","v":1},2550.4029634600006,0,{"$f":"M74*Pilotage!$D$37","v":561.08865196120018},2550.4029634600006,{"$f":"M74*Pilotage!$D$40","v":1071.1692446532002},3621.5722081132008,{"$f":"O74*Pilotage!$D$41","v":43458.866497358409},{"$f":"Pilotage!P60","v":1},{"$f":"R61","v":1000},{"$f":"P74*Pilotage!$D$48","v":239.02376573547124},{"$f":"Q74*P74+Q74*R74+Q74*S74","v":44697.890263093883},{"$f":"P74+R74+S74","v":44697.890263093883},{"$f":"U74/(G74-H74)","v":27.171969764798714}]
[null,"Employé",1808.4675559080001,{"$f":"J75/Pilotage!$D$45","v":15.287130650109892},{"$f":"Pilotage!O61","v":35},151.66666666666666,1820,{"$f":"E75*Pilotage!$D$49","v":175},{"$f":"E75/Pilotage!$D$38","v":1},2318.5481486000003,0,{"$f":"M75*Pilotage!$D$37","v":510.0805926920001},2318.5481486000003,{"$f":"M75*Pilotage!$D$40","v":973.79022241200005},3292.3383710120006,{"$f":"O75*Pilotage!$D$41","v":39508.060452144011},{"$f":"Pilotage!P61","v":1},1000,{"$f":"P75*Pilotage!$D$48","v":217.29433248679206},40725.354784630807,40725.354784630807,24.757054580322677]
[null,"Ingenieur débutant",1808.4675559080001,{"$f":"J76/Pilotage!$D$45","v":15.287130650109892},{"$f":"Pilotage!O62","v":35},151.66666666666666,1820,{"$f":"E76*Pilotage!$D$49","v":175},{"$f":"E76/Pilotage!$D$38","v":1},2318.5481486000003,0,{"$f":"M76*Pilotage!$D$37","v":510.0805926920001},2318.5481486000003,{"$f":"M76*Pilotage!$D$40","v":973.79022241200005},3292.3383710120006,{"$f":"O76*Pilotage!$D$41","v":39508.060452144011},{"$f":"Pilotage!P62","v":0},1000,{"$f":"P76*Pilotage!$D$48","v":217.29433248679206},0,40725.354784630807,24.757054580322677]
[null,"Technicien",1627.6208003172005,{"$f":"J77/Pilotage!$D$45","v":13.758417585098906},{"$f":"Pilotage!O63","v":35},151.66666666666666,1820,{"$f":"E77*Pilotage!$D$49","v":175},{"$f":"E77/Pilotage!$D$38","v":1},2086.6933337400005,0,{"$f":"M77*Pilotage!$D$37","v":459.07253342280012},2086.6933337400005,{"$f":"M77*Pilotage!$D$40","v":876.41120017080016},2963.1045339108005,{"$f":"O77*Pilotage!$D$41","v":35557.254406929605},{"$f":"Pilotage!P63","v":0},1000,{"$f":"P77*Pilotage!$D$48","v":195.56489923811282},0,36752.819306167716,22.342139395846637]
[null,"SMIC",1306.9644320917457,{"$f":"J78/Pilotage!$D$45","v":11.047881928079001},{"$f":"Pilotage!O64","v":35},151.66666666666666,1820,{"$f":"E78*Pilotage!$D$49","v":175},{"$f":"E78/Pilotage!$D$38","v":1},1675.5954257586484,0,{"$f":"M78*Pilotage!$D$37","v":368.63099366690267},1675.5954257586484,{"$f":"M78*Pilotage!$D$40","v":703.75007881863235},2379.3455045772807,{"$f":"O78*Pilotage!$D$41","v":28552.146054927369},{"$f":"Pilotage!P64","v":0},1000,{"$f":"P78*Pilotage!$D$48","v":157.03680330210051},0,29709.182858229469,18.060293530838582]
[null,"Stagiaire",{"$f":"J79*I79","v":602.82251863599993},{"$f":"J79/Pilotage!$D$45","v":3.9746539690285712},{"$f":"Pilotage!O65","v":35},151.66666666666666,1820,{"$f":"E79*Pilotage!$D$49","v":175},{"$f":"E79/Pilotage!$D$38","v":1},602.82251863599993,{"$f":"J79*((E79/Pilotage!$D$38)-1)","v":0},{"$f":"IF(C79<=Pilotage!$D$44,0,C79-Pilotage!$D$44)","v":82.822518635999927},{"$f":"SUM(J79:L79)","v":685.64503727199985},0,685.64503727199985,{"$f":"O79*Pilotage!$D$41","v":8227.7404472639973},{"$f":"Pilotage!P65","v":0},500,{"$f":"P79*Pilotage!$D$48","v":45.252572459951985},0,8772.9930197239501,5.3331264557592402]
[null,null,null,null,null,null,null,null,null,null,null,null,null,null,null,null,"Aléas",null,null,{"$f":"Pilotage!$D$47*SUM(T73:T79)","v":0}]
[null,null,null,null,null,null,null,null,null,null,null,null,null,null,null,null,"Masse salariale annuelle",null,null,{"$f":"SUM(T73:T80)","v":186736.63200930168}]
[null,null,null,null,null,null,null,null,null,null,null,null,null,null,null,null,"Masse salariale mensuelle",null,null,{"$f":"T81/12","v":15561.386000775141}]

{"sheet":"Ventes Stock","index":44,"n_rows":255,"n_cols":60,"rows_kept":255,"cut":false,"hidden":false,"merged":[[1,42,1,50],[2,42,3,42],[1,51,1,59],[2,51,3,51],[1,8,1,14],[1,15,1,23],[1,24,1,32],[2,24,3,24],[2,15,3,15],[1,33,1,41],[2,33,3,33]]}
[null,"QTT","sous cat.","Designation","Vendu",null,"Acheté HT","Commision","Stock Init A0 Initiale","Valeur stock avant A0","Estimation A0","Vendus A0","CA A0","Stock après A0","Valeur stock après A0","Restockage A1","Qtt restockées A1","Stock Init A1 Initiale","Valeur stock avant A1","Estimation A1","Vendus A1","CA A1","Stock après A1","Valeur stock après A1","Restockage A2","Qtt restockées A2","Stock Init A2 Initiale","Valeur stock avant A2","Estimation A2","Vendus A2","CA A2","Stock après A2","Valeur stock après A2","Restockage A3","Qtt restockées A3","Stock Init A3 Initiale","Valeur stock avant A3","Estimation A3","Vendus A3","CA A3","Stock après A3","Valeur stock après A3","Restockage A4","Qtt restockées A4","Stock Init A4 Initiale","Valeur stock avant A4","Estimation A4","Vendus A4","CA A4","Stock après A4","Valeur stock après A4","Restockage A5","Qtt restockées A5","Stock Init A5 Initiale","Valeur stock avant A5","Estimation A5","Vendus A5","CA A5","Stock après A5","Valeur stock après A5"]
[null,null,null,null,null,null,null,null,"Année 0",null,null,null,null,null,null,"Année 1",null,null,null,null,null,null,null,null,"Année 2",null,null,null,null,null,null,null,null,"Année 3",null,null,null,null,null,null,null,null,"Année 4",null,null,null,null,null,null,null,null,"Année 3"]
[null,null,null,null,null,null,null,null,null,null,null,null,null,null,null,"Coût restockage",null,null,null,null,null,null,null,null,"Coût restockage",null,null,null,null,null,null,null,null,"Coût restockage",null,null,null,null,null,null,null,null,"Coût restockage",null,null,null,null,null,null,null,null,"Coût restockage"]
[null,null,null,null,null,null,null,null,null,"Total",null,null,"Total",null,"Total",null,null,null,"Total",null,null,"Total",null,"Total",null,null,null,"Total",null,null,"Total",null,"Total",null,null,null,"Total",null,null,"Total",null,"Total",null,null,null,"Total",null,null,"Total",null,"Total",null,null,null,"Total",null,null,"Total",null,"Total"]
[null,null,null,null,null,null,null,null,null,{"$f":"SUM(J8:J552)","v":0},null,null,{"$f":"SUM(M8:M552)","v":104000},null,{"$f":"SUM(O8:O552)","v":0},{"$f":"S5-O5","v":0},null,null,{"$f":"SUM(S8:S552)","v":0},null,null,{"$f":"SUM(V8:V552)","v":208000},null,{"$f":"SUM(X8:X552)","v":0},{"$f":"AB5-X5","v":0},null,null,{"$f":"SUM(AB8:AB552)","v":0},null,null,{"$f":"SUM(AE8:AE552)","v":416000},null,{"$f":"SUM(AG8:AG552)","v":0},{"$f":"AK5-AG5","v":0},null,null,{"$f":"SUM(AK8:AK552)","v":0},null,null,{"$f":"SUM(AN8:AN552)","v":832000},null,{"$f":"SUM(AP8:AP552)","v":0},{"$f":"AT5-AP5","v":0},null,null,{"$f":"SUM(AT8:AT552)","v":0},null,null,{"$f":"SUM(AW8:AW552)","v":832000},null,{"$f":"SUM(AY8:AY552)","v":0},{"$f":"BC5-AY5","v":0},null,null,{"$f":"SUM(BC8:BC552)","v":0},null,null,{"$f":"SUM(BF8:BF552)","v":915200},null,{"$f":"SUM(BH8:BH552)","v":0}]
[]
[]
[{"$f":"B8/4","v":500},2000,null,{"$f":"IF(Stock!D8<>\"\",Stock!D8,\"\")","v":"Article 1"},{"$f":"Stock!F8","v":5},null,{"$f":"IF(Stock!$A8<>\"\",IF(Stock!$A8>0,Stock!$K8/Stock!$A8,0),\"\")","v":0},2,{"$f":"B8","v":2000},{"$f":"IF(Stock!$A8<>\"\",I8*$G8,\"\")","v":0},{"$f":"IF(Stock!$A8<>\"\",Pilotage!$M$26,\"\")","v":1},{"$f":"IF(Stock!$A8<>\"\",ROUND(I8*K8,0),\"\")","v":2000},{"$f":"IF(Stock!$A8<>\"\",$H8*L8,\"\")","v":4000},{"$f":"IF(Stock!$A8<>\"\",I8-L8-'Ventes Produits'!K457,\"\")","v":0},{"$f":"IF(Stock!$A8<>\"\",N8*$G8,\"\")","v":0},{"$f":"IF(Stock!$A8<>\"\",Pilotage!$N$35,\"\")","v":2.2000000000000002},{"$f":"IF(Stock!$A8<>\"\",ROUND(Stock!$A8*P8,0),\"\")","v":0},{"$f":"IF(Stock!$A8<>\"\",N8+Q8,\"\")","v":0},{"$f":"IF(Stock!$A8<>\"\",R8*$G8,\"\")","v":0},{"$f":"IF(Stock!$A8<>\"\",Pilotage!N$26,\"\")","v":2},{"$f":"IF(Stock!$A8<>\"\",ROUND(L8*T8,0),\"\")","v":4000},{"$f":"IF(Stock!$A8<>\"\",$H8*U8,\"\")","v":8000},{"$f":"IF(Stock!$A8<>\"\",R8-U8-'Ventes Produits'!N457,\"\")","v":-4000},{"$f":"IF(Stock!$A8<>\"\",W8*$G8,\"\")","v":0},{"$f":"IF(Stock!$A8<>\"\",Pilotage!$O$35,\"\")","v":4.18},{"$f":"IF(Stock!$A8<>\"\",ROUND(Stock!$A8*Y8,0),\"\")","v":0},{"$f":"IF(Stock!$A8<>\"\",W8+Z8,\"\")","v":-4000},{"$f":"IF(Stock!$A8<>\"\",AA8*$G8,\"\")","v":0},{"$f":"IF(Stock!$A8<>\"\",Pilotage!O$26,\"\")","v":2},{"$f":"IF(Stock!$A8<>\"\",ROUND(U8*AC8,0),\"\")","v":8000},{"$f":"IF(Stock!$A8<>\"\",$H8*AD8,\"\")","v":16000},{"$f":"IF(Stock!$A8<>\"\",AA8-AD8-'Ventes Produits'!Q457,\"\")","v":-12000},{"$f":"IF(Stock!$A8<>\"\",AF8*$G8,\"\")","v":0},{"$f":"IF(Stock!$A8<>\"\",Pilotage!$P$35,\"\")","v":8.3820000000000014},{"$f":"IF(Stock!$A8<>\"\",ROUND(Stock!$A8*AH8,0),\"\")","v":0},{"$f":"IF(Stock!$A8<>\"\",AF8+AI8,\"\")","v":-12000},{"$f":"IF(Stock!$A8<>\"\",AJ8*$G8,\"\")","v":0},{"$f":"IF(Stock!$A8<>\"\",Pilotage!P$26,\"\")","v":2},{"$f":"IF(Stock!$A8<>\"\",ROUND(AD8*AL8,0),\"\")","v":16000},{"$f":"IF(Stock!$A8<>\"\",$H8*AM8,\"\")","v":32000},{"$f":"IF(Stock!$A8<>\"\",AJ8-AM8-'Ventes Produits'!T457,\"\")","v":-28000},{"$f":"IF(Stock!$A8<>\"\",AO8*$G8,\"\")","v":0},{"$f":"IF(Stock!$A8<>\"\",Pilotage!$Q$35,\"\")","v":7.9640000000000013},{"$f":"IF(Stock!$A8<>\"\",ROUND(Stock!$A8*AQ8,0),\"\")","v":0},{"$f":"IF(Stock!$A8<>\"\",AO8+AR8,\"\")","v":-28000},{"$f":"IF(Stock!$A8<>\"\",AS8*$G8,\"\")","v":0},{"$f":"IF(Stock!$A8<>\"\",Pilotage!Q$26,\"\")","v":1},{"$f":"IF(Stock!$A8<>\"\",ROUND(AM8*AU8,0),\"\")","v":16000},{"$f":"IF(Stock!$A8<>\"\",$H8*AV8,\"\")","v":32000},{"$f":"IF(Stock!$A8<>\"\",AS8-AV8-'Ventes Produits'!W457,\"\")","v":-44000},{"$f":"IF(Stock!$A8<>\"\",AX8*$G8,\"\")","v":0},{"$f":"IF(Stock!$A8<>\"\",Pilotage!$R$35,\"\")","v":8.8880000000000017},{"$f":"IF(Stock!$A8<>\"\",ROUND(Stock!$A8*AZ8,0),\"\")","v":0},{"$f":"IF(Stock!$A8<>\"\",AX8+BA8,\"\")","v":-44000},{"$f":"IF(Stock!$A8<>\"\",BB8*$G8,\"\")","v":0},{"$f":"IF(Stock!$A8<>\"\",Pilotage!R$26,\"\")","v":1.1000000000000001},{"$f":"IF(Stock!$A8<>\"\",ROUND(AV8*BD8,0),\"\")","v":17600},{"$f":"IF(Stock!$A8<>\"\",$H8*BE8,\"\")","v":35200},{"$f":"IF(Stock!$A8<>\"\",BB8-BE8-'Ventes Produits'!Z457,\"\")","v":-61600},{"$f":"IF(Stock!$A8<>\"\",BG8*$G8,\"\")","v":0}]
[500,2000,null,{"$f":"IF(Stock!D9<>\"\",Stock!D9,\"\")","v":"Article 2"},{"$f":"Stock!F9","v":10},null,{"$f":"IF(Stock!$A9<>\"\",IF(Stock!$A9>0,Stock!$K9/Stock!$A9,0),\"\")","v":0},{"$f":"Stock!F9*Pilotage!M$19","v":1},2000,{"$f":"IF(Stock!$A9<>\"\",I9*$G9,\"\")","v":0},{"$f":"IF(Stock!$A9<>\"\",Pilotage!$M$26,\"\")","v":1},{"$f":"IF(Stock!$A9<>\"\",ROUND(I9*K9,0),\"\")","v":2000},{"$f":"IF(Stock!$A9<>\"\",$H9*L9,\"\")","v":2000},{"$f":"IF(Stock!$A9<>\"\",I9-L9-'Ventes Produits'!K458,\"\")","v":0},{"$f":"IF(Stock!$A9<>\"\",N9*$G9,\"\")","v":0},{"$f":"IF(Stock!$A9<>\"\",Pilotage!$N$35,\"\")","v":2.2000000000000002},{"$f":"IF(Stock!$A9<>\"\",ROUND(Stock!$A9*P9,0),\"\")","v":0},{"$f":"IF(Stock!$A9<>\"\",N9+Q9,\"\")","v":0},{"$f":"IF(Stock!$A9<>\"\",R9*$G9,\"\")","v":0},{"$f":"IF(Stock!$A9<>\"\",Pilotage!N$26,\"\")","v":2},{"$f":"IF(Stock!$A9<>\"\",ROUND(L9*T9,0),\"\")","v":4000},{"$f":"IF(Stock!$A9<>\"\",$H9*U9,\"\")","v":4000},{"$f":"IF(Stock!$A9<>\"\",R9-U9-'Ventes Produits'!N458,\"\")","v":-4000},{"$f":"IF(Stock!$A9<>\"\",W9*$G9,\"\")","v":0},{"$f":"IF(Stock!$A9<>\"\",Pilotage!$O$35,\"\")","v":4.18},{"$f":"IF(Stock!$A9<>\"\",ROUND(Stock!$A9*Y9,0),\"\")","v":0},{"$f":"IF(Stock!$A9<>\"\",W9+Z9,\"\")","v":-4000},{"$f":"IF(Stock!$A9<>\"\",AA9*$G9,\"\")","v":0},{"$f":"IF(Stock!$A9<>\"\",Pilotage!O$26,\"\")","v":2},{"$f":"IF(Stock!$A9<>\"\",ROUND(U9*AC9,0),\"\")","v":8000},{"$f":"IF(Stock!$A9<>\"\",$H9*AD9,\"\")","v":8000},{"$f":"IF(Stock!$A9<>\"\",AA9-AD9-'Ventes Produits'!Q458,\"\")","v":-12000},{"$f":"IF(Stock!$A9<>\"\",AF9*$G9,\"\")","v":0},{"$f":"IF(Stock!$A9<>\"\",Pilotage!$P$35,\"\")","v":8.3820000000000014},{"$f":"IF(Stock!$A9<>\"\",ROUND(Stock!$A9*AH9,0),\"\")","v":0},{"$f":"IF(Stock!$A9<>\"\",AF9+AI9,\"\")","v":-12000},{"$f":"IF(Stock!$A9<>\"\",AJ9*$G9,\"\")","v":0},{"$f":"IF(Stock!$A9<>\"\",Pilotage!P$26,\"\")","v":2},{"$f":"IF(Stock!$A9<>\"\",ROUND(AD9*AL9,0),\"\")","v":16000},{"$f":"IF(Stock!$A9<>\"\",$H9*AM9,\"\")","v":16000},{"$f":"IF(Stock!$A9<>\"\",AJ9-AM9-'Ventes Produits'!T458,\"\")","v":-28000},{"$f":"IF(Stock!$A9<>\"\",AO9*$G9,\"\")","v":0},{"$f":"IF(Stock!$A9<>\"\",Pilotage!$Q$35,\"\")","v":7.9640000000000013},{"$f":"IF(Stock!$A9<>\"\",ROUND(Stock!$A9*AQ9,0),\"\")","v":0},{"$f":"IF(Stock!$A9<>\"\",AO9+AR9,\"\")","v":-28000},{"$f":"IF(Stock!$A9<>\"\",AS9*$G9,\"\")","v":0},{"$f":"IF(Stock!$A9<>\"\",Pilotage!Q$26,\"\")","v":1},{"$f":"IF(Stock!$A9<>\"\",ROUND(AM9*AU9,0),\"\")","v":16000},{"$f":"IF(Stock!$A9<>\"\",$H9*AV9,\"\")","v":16000},{"$f":"IF(Stock!$A9<>\"\",AS9-AV9-'Ventes Produits'!W458,\"\")","v":-44000},{"$f":"IF(Stock!$A9<>\"\",AX9*$G9,\"\")","v":0},{"$f":"IF(Stock!$A9<>\"\",Pilotage!$R$35,\"\")","v":8.8880000000000017},{"$f":"IF(Stock!$A9<>\"\",ROUND(Stock!$A9*AZ9,0),\"\")","v":0},{"$f":"IF(Stock!$A9<>\"\",AX9+BA9,\"\")","v":-44000},{"$f":"IF(Stock!$A9<>\"\",BB9*$G9,\"\")","v":0},{"$f":"IF(Stock!$A9<>\"\",Pilotage!R$26,\"\")","v":1.1000000000000001},{"$f":"IF(Stock!$A9<>\"\",ROUND(AV9*BD9,0),\"\")","v":17600},{"$f":"IF(Stock!$A9<>\"\",$H9*BE9,\"\")","v":17600},{"$f":"IF(Stock!$A9<>\"\",BB9-BE9-'Ventes Produits'!Z458,\"\")","v":-61600},{"$f":"IF(Stock!$A9<>\"\",BG9*$G9,\"\")","v":0}]
[500,2000,null,{"$f":"IF(Stock!D10<>\"\",Stock!D10,\"\")","v":"Article 3"},{"$f":"Stock!F10","v":20},null,{"$f":"IF(Stock!$A10<>\"\",IF(Stock!$A10>0,Stock!$K10/Stock!$A10,0),\"\")","v":0},{"$f":"Stock!F10*Pilotage!M$19","v":2},2000,{"$f":"IF(Stock!$A10<>\"\",I10*$G10,\"\")","v":0},{"$f":"IF(Stock!$A10<>\"\",Pilotage!$M$26,\"\")","v":1},{"$f":"IF(Stock!$A10<>\"\",ROUND(I10*K10,0),\"\")","v":2000},{"$f":"IF(Stock!$A10<>\"\",$H10*L10,\"\")","v":4000},{"$f":"IF(Stock!$A10<>\"\",I10-L10-'Ventes Produits'!K459,\"\")","v":0},{"$f":"IF(Stock!$A10<>\"\",N10*$G10,\"\")","v":0},{"$f":"IF(Stock!$A10<>\"\",Pilotage!$N$35,\"\")","v":2.2000000000000002},{"$f":"IF(Stock!$A10<>\"\",ROUND(Stock!$A10*P10,0),\"\")","v":0},{"$f":"IF(Stock!$A10<>\"\",N10+Q10,\"\")","v":0},{"$f":"IF(Stock!$A10<>\"\",R10*$G10,\"\")","v":0},{"$f":"IF(Stock!$A10<>\"\",Pilotage!N$26,\"\")","v":2},{"$f":"IF(Stock!$A10<>\"\",ROUND(L10*T10,0),\"\")","v":4000},{"$f":"IF(Stock!$A10<>\"\",$H10*U10,\"\")","v":8000},{"$f":"IF(Stock!$A10<>\"\",R10-U10-'Ventes Produits'!N459,\"\")","v":-4000},{"$f":"IF(Stock!$A10<>\"\",W10*$G10,\"\")","v":0},{"$f":"IF(Stock!$A10<>\"\",Pilotage!$O$35,\"\")","v":4.18},{"$f":"IF(Stock!$A10<>\"\",ROUND(Stock!$A10*Y10,0),\"\")","v":0},{"$f":"IF(Stock!$A10<>\"\",W10+Z10,\"\")","v":-4000},{"$f":"IF(Stock!$A10<>\"\",AA10*$G10,\"\")","v":0},{"$f":"IF(Stock!$A10<>\"\",Pilotage!O$26,\"\")","v":2},{"$f":"IF(Stock!$A10<>\"\",ROUND(U10*AC10,0),\"\")","v":8000},{"$f":"IF(Stock!$A10<>\"\",$H10*AD10,\"\")","v":16000},{"$f":"IF(Stock!$A10<>\"\",AA10-AD10-'Ventes Produits'!Q459,\"\")","v":-12000},{"$f":"IF(Stock!$A10<>\"\",AF10*$G10,\"\")","v":0},{"$f":"IF(Stock!$A10<>\"\",Pilotage!$P$35,\"\")","v":8.3820000000000014},{"$f":"IF(Stock!$A10<>\"\",ROUND(Stock!$A10*AH10,0),\"\")","v":0},{"$f":"IF(Stock!$A10<>\"\",AF10+AI10,\"\")","v":-12000},{"$f":"IF(Stock!$A10<>\"\",AJ10*$G10,\"\")","v":0},{"$f":"IF(Stock!$A10<>\"\",Pilotage!P$26,\"\")","v":2},{"$f":"IF(Stock!$A10<>\"\",ROUND(AD10*AL10,0),\"\")","v":16000},{"$f":"IF(Stock!$A10<>\"\",$H10*AM10,\"\")","v":32000},{"$f":"IF(Stock!$A10<>\"\",AJ10-AM10-'Ventes Produits'!T459,\"\")","v":-28000},{"$f":"IF(Stock!$A10<>\"\",AO10*$G10,\"\")","v":0},{"$f":"IF(Stock!$A10<>\"\",Pilotage!$Q$35,\"\")","v":7.9640000000000013},{"$f":"IF(Stock!$A10<>\"\",ROUND(Stock!$A10*AQ10,0),\"\")","v":0},{"$f":"IF(Stock!$A10<>\"\",AO10+AR10,\"\")","v":-28000},{"$f":"IF(Stock!$A10<>\"\",AS10*$G10,\"\")","v":0},{"$f":"IF(Stock!$A10<>\"\",Pilotage!Q$26,\"\")","v":1},{"$f":"IF(Stock!$A10<>\"\",ROUND(AM10*AU10,0),\"\")","v":16000},{"$f":"IF(Stock!$A10<>\"\",$H10*AV10,\"\")","v":32000},{"$f":"IF(Stock!$A10<>\"\",AS10-AV10-'Ventes Produits'!W459,\"\")","v":-44000},{"$f":"IF(Stock!$A10<>\"\",AX10*$G10,\"\")","v":0},{"$f":"IF(Stock!$A10<>\"\",Pilotage!$R$35,\"\")","v":8.8880000000000017},{"$f":"IF(Stock!$A10<>\"\",ROUND(Stock!$A10*AZ10,0),\"\")","v":0},{"$f":"IF(Stock!$A10<>\"\",AX10+BA10,\"\")","v":-44000},{"$f":"IF(Stock!$A10<>\"\",BB10*$G10,\"\")","v":0},{"$f":"IF(Stock!$A10<>\"\",Pilotage!R$26,\"\")","v":1.1000000000000001},{"$f":"IF(Stock!$A10<>\"\",ROUND(AV10*BD10,0),\"\")","v":17600},{"$f":"IF(Stock!$A10<>\"\",$H10*BE10,\"\")","v":35200},{"$f":"IF(Stock!$A10<>\"\",BB10-BE10-'Ventes Produits'!Z459,\"\")","v":-61600},{"$f":"IF(Stock!$A10<>\"\",BG10*$G10,\"\")","v":0}]
[500,2000,null,{"$f":"IF(Stock!D11<>\"\",Stock!D11,\"\")","v":"Article 4"},{"$f":"Stock!F11","v":30},null,{"$f":"IF(Stock!$A11<>\"\",IF(Stock!$A11>0,Stock!$K11/Stock!$A11,0),\"\")","v":0},{"$f":"Stock!F11*Pilotage!M$19","v":3},2000,{"$f":"IF(Stock!$A11<>\"\",I11*$G11,\"\")","v":0},{"$f":"IF(Stock!$A11<>\"\",Pilotage!$M$26,\"\")","v":1},{"$f":"IF(Stock!$A11<>\"\",ROUND(I11*K11,0),\"\")","v":2000},{"$f":"IF(Stock!$A11<>\"\",$H11*L11,\"\")","v":6000},{"$f":"IF(Stock!$A11<>\"\",I11-L11-'Ventes Produits'!K460,\"\")","v":0},{"$f":"IF(Stock!$A11<>\"\",N11*$G11,\"\")","v":0},{"$f":"IF(Stock!$A11<>\"\",Pilotage!$N$35,\"\")","v":2.2000000000000002},{"$f":"IF(Stock!$A11<>\"\",ROUND(Stock!$A11*P11,0),\"\")","v":0},{"$f":"IF(Stock!$A11<>\"\",N11+Q11,\"\")","v":0},{"$f":"IF(Stock!$A11<>\"\",R11*$G11,\"\")","v":0},{"$f":"IF(Stock!$A11<>\"\",Pilotage!N$26,\"\")","v":2},{"$f":"IF(Stock!$A11<>\"\",ROUND(L11*T11,0),\"\")","v":4000},{"$f":"IF(Stock!$A11<>\"\",$H11*U11,\"\")","v":12000},{"$f":"IF(Stock!$A11<>\"\",R11-U11-'Ventes Produits'!N460,\"\")","v":-4000},{"$f":"IF(Stock!$A11<>\"\",W11*$G11,\"\")","v":0},{"$f":"IF(Stock!$A11<>\"\",Pilotage!$O$35,\"\")","v":4.18},{"$f":"IF(Stock!$A11<>\"\",ROUND(Stock!$A11*Y11,0),\"\")","v":0},{"$f":"IF(Stock!$A11<>\"\",W11+Z11,\"\")","v":-4000},{"$f":"IF(Stock!$A11<>\"\",AA11*$G11,\"\")","v":0},{"$f":"IF(Stock!$A11<>\"\",Pilotage!O$26,\"\")","v":2},{"$f":"IF(Stock!$A11<>\"\",ROUND(U11*AC11,0),\"\")","v":8000},{"$f":"IF(Stock!$A11<>\"\",$H11*AD11,\"\")","v":24000},{"$f":"IF(Stock!$A11<>\"\",AA11-AD11-'Ventes Produits'!Q460,\"\")","v":-12000},{"$f":"IF(Stock!$A11<>\"\",AF11*$G11,\"\")","v":0},{"$f":"IF(Stock!$A11<>\"\",Pilotage!$P$35,\"\")","v":8.3820000000000014},{"$f":"IF(Stock!$A11<>\"\",ROUND(Stock!$A11*AH11,0),\"\")","v":0},{"$f":"IF(Stock!$A11<>\"\",AF11+AI11,\"\")","v":-12000},{"$f":"IF(Stock!$A11<>\"\",AJ11*$G11,\"\")","v":0},{"$f":"IF(Stock!$A11<>\"\",Pilotage!P$26,\"\")","v":2},{"$f":"IF(Stock!$A11<>\"\",ROUND(AD11*AL11,0),\"\")","v":16000},{"$f":"IF(Stock!$A11<>\"\",$H11*AM11,\"\")","v":48000},{"$f":"IF(Stock!$A11<>\"\",AJ11-AM11-'Ventes Produits'!T460,\"\")","v":-28000},{"$f":"IF(Stock!$A11<>\"\",AO11*$G11,\"\")","v":0},{"$f":"IF(Stock!$A11<>\"\",Pilotage!$Q$35,\"\")","v":7.9640000000000013},{"$f":"IF(Stock!$A11<>\"\",ROUND(Stock!$A11*AQ11,0),\"\")","v":0},{"$f":"IF(Stock!$A11<>\"\",AO11+AR11,\"\")","v":-28000},{"$f":"IF(Stock!$A11<>\"\",AS11*$G11,\"\")","v":0},{"$f":"IF(Stock!$A11<>\"\",Pilotage!Q$26,\"\")","v":1},{"$f":"IF(Stock!$A11<>\"\",ROUND(AM11*AU11,0),\"\")","v":16000},{"$f":"IF(Stock!$A11<>\"\",$H11*AV11,\"\")","v":48000},{"$f":"IF(Stock!$A11<>\"\",AS11-AV11-'Ventes Produits'!W460,\"\")","v":-44000},{"$f":"IF(Stock!$A11<>\"\",AX11*$G11,\"\")","v":0},{"$f":"IF(Stock!$A11<>\"\",Pilotage!$R$35,\"\")","v":8.8880000000000017},{"$f":"IF(Stock!$A11<>\"\",ROUND(Stock!$A11*AZ11,0),\"\")","v":0},{"$f":"IF(Stock!$A11<>\"\",AX11+BA11,\"\")","v":-44000},{"$f":"IF(Stock!$A11<>\"\",BB11*$G11,\"\")","v":0},{"$f":"IF(Stock!$A11<>\"\",Pilotage!R$26,\"\")","v":1.1000000000000001},{"$f":"IF(Stock!$A11<>\"\",ROUND(AV11*BD11,0),\"\")","v":17600},{"$f":"IF(Stock!$A11<>\"\",$H11*BE11,\"\")","v":52800},{"$f":"IF(Stock!$A11<>\"\",BB11-BE11-'Ventes Produits'!Z460,\"\")","v":-61600},{"$f":"IF(Stock!$A11<>\"\",BG11*$G11,\"\")","v":0}]
[500,2000,null,{"$f":"IF(Stock!D12<>\"\",Stock!D12,\"\")","v":"Article 5"},{"$f":"Stock!F12","v":40},null,{"$f":"IF(Stock!$A12<>\"\",IF(Stock!$A12>0,Stock!$K12/Stock!$A12,0),\"\")","v":0},{"$f":"Stock!F12*Pilotage!M$19","v":4},2000,{"$f":"IF(Stock!$A12<>\"\",I12*$G12,\"\")","v":0},{"$f":"IF(Stock!$A12<>\"\",Pilotage!$M$26,\"\")","v":1},{"$f":"IF(Stock!$A12<>\"\",ROUND(I12*K12,0),\"\")","v":2000},{"$f":"IF(Stock!$A12<>\"\",$H12*L12,\"\")","v":8000},{"$f":"IF(Stock!$A12<>\"\",I12-L12-'Ventes Produits'!K461,\"\")","v":0},{"$f":"IF(Stock!$A12<>\"\",N12*$G12,\"\")","v":0},{"$f":"IF(Stock!$A12<>\"\",Pilotage!$N$35,\"\")","v":2.2000000000000002},{"$f":"IF(Stock!$A12<>\"\",ROUND(Stock!$A12*P12,0),\"\")","v":0},{"$f":"IF(Stock!$A12<>\"\",N12+Q12,\"\")","v":0},{"$f":"IF(Stock!$A12<>\"\",R12*$G12,\"\")","v":0},{"$f":"IF(Stock!$A12<>\"\",Pilotage!N$26,\"\")","v":2},{"$f":"IF(Stock!$A12<>\"\",ROUND(L12*T12,0),\"\")","v":4000},{"$f":"IF(Stock!$A12<>\"\",$H12*U12,\"\")","v":16000},{"$f":"IF(Stock!$A12<>\"\",R12-U12-'Ventes Produits'!N461,\"\")","v":-4000},{"$f":"IF(Stock!$A12<>\"\",W12*$G12,\"\")","v":0},{"$f":"IF(Stock!$A12<>\"\",Pilotage!$O$35,\"\")","v":4.18},{"$f":"IF(Stock!$A12<>\"\",ROUND(Stock!$A12*Y12,0),\"\")","v":0},{"$f":"IF(Stock!$A12<>\"\",W12+Z12,\"\")","v":-4000},{"$f":"IF(Stock!$A12<>\"\",AA12*$G12,\"\")","v":0},{"$f":"IF(Stock!$A12<>\"\",Pilotage!O$26,\"\")","v":2},{"$f":"IF(Stock!$A12<>\"\",ROUND(U12*AC12,0),\"\")","v":8000},{"$f":"IF(Stock!$A12<>\"\",$H12*AD12,\"\")","v":32000},{"$f":"IF(Stock!$A12<>\"\",AA12-AD12-'Ventes Produits'!Q461,\"\")","v":-12000},{"$f":"IF(Stock!$A12<>\"\",AF12*$G12,\"\")","v":0},{"$f":"IF(Stock!$A12<>\"\",Pilotage!$P$35,\"\")","v":8.3820000000000014},{"$f":"IF(Stock!$A12<>\"\",ROUND(Stock!$A12*AH12,0),\"\")","v":0},{"$f":"IF(Stock!$A12<>\"\",AF12+AI12,\"\")","v":-12000},{"$f":"IF(Stock!$A12<>\"\",AJ12*$G12,\"\")","v":0},{"$f":"IF(Stock!$A12<>\"\",Pilotage!P$26,\"\")","v":2},{"$f":"IF(Stock!$A12<>\"\",ROUND(AD12*AL12,0),\"\")","v":16000},{"$f":"IF(Stock!$A12<>\"\",$H12*AM12,\"\")","v":64000},{"$f":"IF(Stock!$A12<>\"\",AJ12-AM12-'Ventes Produits'!T461,\"\")","v":-28000},{"$f":"IF(Stock!$A12<>\"\",AO12*$G12,\"\")","v":0},{"$f":"IF(Stock!$A12<>\"\",Pilotage!$Q$35,\"\")","v":7.9640000000000013},{"$f":"IF(Stock!$A12<>\"\",ROUND(Stock!$A12*AQ12,0),\"\")","v":0},{"$f":"IF(Stock!$A12<>\"\",AO12+AR12,\"\")","v":-28000},{"$f":"IF(Stock!$A12<>\"\",AS12*$G12,\"\")","v":0},{"$f":"IF(Stock!$A12<>\"\",Pilotage!Q$26,\"\")","v":1},{"$f":"IF(Stock!$A12<>\"\",ROUND(AM12*AU12,0),\"\")","v":16000},{"$f":"IF(Stock!$A12<>\"\",$H12*AV12,\"\")","v":64000},{"$f":"IF(Stock!$A12<>\"\",AS12-AV12-'Ventes Produits'!W461,\"\")","v":-44000},{"$f":"IF(Stock!$A12<>\"\",AX12*$G12,\"\")","v":0},{"$f":"IF(Stock!$A12<>\"\",Pilotage!$R$35,\"\")","v":8.8880000000000017},{"$f":"IF(Stock!$A12<>\"\",ROUND(Stock!$A12*AZ12,0),\"\")","v":0},{"$f":"IF(Stock!$A12<>\"\",AX12+BA12,\"\")","v":-44000},{"$f":"IF(Stock!$A12<>\"\",BB12*$G12,\"\")","v":0},{"$f":"IF(Stock!$A12<>\"\",Pilotage!R$26,\"\")","v":1.1000000000000001},{"$f":"IF(Stock!$A12<>\"\",ROUND(AV12*BD12,0),\"\")","v":17600},{"$f":"IF(Stock!$A12<>\"\",$H12*BE12,\"\")","v":70400},{"$f":"IF(Stock!$A12<>\"\",BB12-BE12-'Ventes Produits'!Z461,\"\")","v":-61600},{"$f":"IF(Stock!$A12<>\"\",BG12*$G12,\"\")","v":0}]
[500,2000,null,{"$f":"IF(Stock!D13<>\"\",Stock!D13,\"\")","v":"Article 6"},{"$f":"Stock!F13","v":50},null,{"$f":"IF(Stock!$A13<>\"\",IF(Stock!$A13>0,Stock!$K13/Stock!$A13,0),\"\")","v":0},{"$f":"Stock!F13*Pilotage!M$19","v":5},2000,{"$f":"IF(Stock!$A13<>\"\",I13*$G13,\"\")","v":0},{"$f":"IF(Stock!$A13<>\"\",Pilotage!$M$26,\"\")","v":1},{"$f":"IF(Stock!$A13<>\"\",ROUND(I13*K13,0),\"\")","v":2000},{"$f":"IF(Stock!$A13<>\"\",$H13*L13,\"\")","v":10000},{"$f":"IF(Stock!$A13<>\"\",I13-L13-'Ventes Produits'!K462,\"\")","v":0},{"$f":"IF(Stock!$A13<>\"\",N13*$G13,\"\")","v":0},{"$f":"IF(Stock!$A13<>\"\",Pilotage!$N$35,\"\")","v":2.2000000000000002},{"$f":"IF(Stock!$A13<>\"\",ROUND(Stock!$A13*P13,0),\"\")","v":0},{"$f":"IF(Stock!$A13<>\"\",N13+Q13,\"\")","v":0},{"$f":"IF(Stock!$A13<>\"\",R13*$G13,\"\")","v":0},{"$f":"IF(Stock!$A13<>\"\",Pilotage!N$26,\"\")","v":2},{"$f":"IF(Stock!$A13<>\"\",ROUND(L13*T13,0),\"\")","v":4000},{"$f":"IF(Stock!$A13<>\"\",$H13*U13,\"\")","v":20000},{"$f":"IF(Stock!$A13<>\"\",R13-U13-'Ventes Produits'!N462,\"\")","v":-4000},{"$f":"IF(Stock!$A13<>\"\",W13*$G13,\"\")","v":0},{"$f":"IF(Stock!$A13<>\"\",Pilotage!$O$35,\"\")","v":4.18},{"$f":"IF(Stock!$A13<>\"\",ROUND(Stock!$A13*Y13,0),\"\")","v":0},{"$f":"IF(Stock!$A13<>\"\",W13+Z13,\"\")","v":-4000},{"$f":"IF(Stock!$A13<>\"\",AA13*$G13,\"\")","v":0},{"$f":"IF(Stock!$A13<>\"\",Pilotage!O$26,\"\")","v":2},{"$f":"IF(Stock!$A13<>\"\",ROUND(U13*AC13,0),\"\")","v":8000},{"$f":"IF(Stock!$A13<>\"\",$H13*AD13,\"\")","v":40000},{"$f":"IF(Stock!$A13<>\"\",AA13-AD13-'Ventes Produits'!Q462,\"\")","v":-12000},{"$f":"IF(Stock!$A13<>\"\",AF13*$G13,\"\")","v":0},{"$f":"IF(Stock!$A13<>\"\",Pilotage!$P$35,\"\")","v":8.3820000000000014},{"$f":"IF(Stock!$A13<>\"\",ROUND(Stock!$A13*AH13,0),\"\")","v":0},{"$f":"IF(Stock!$A13<>\"\",AF13+AI13,\"\")","v":-12000},{"$f":"IF(Stock!$A13<>\"\",AJ13*$G13,\"\")","v":0},{"$f":"IF(Stock!$A13<>\"\",Pilotage!P$26,\"\")","v":2},{"$f":"IF(Stock!$A13<>\"\",ROUND(AD13*AL13,0),\"\")","v":16000},{"$f":"IF(Stock!$A13<>\"\",$H13*AM13,\"\")","v":80000},{"$f":"IF(Stock!$A13<>\"\",AJ13-AM13-'Ventes Produits'!T462,\"\")","v":-28000},{"$f":"IF(Stock!$A13<>\"\",AO13*$G13,\"\")","v":0},{"$f":"IF(Stock!$A13<>\"\",Pilotage!$Q$35,\"\")","v":7.9640000000000013},{"$f":"IF(Stock!$A13<>\"\",ROUND(Stock!$A13*AQ13,0),\"\")","v":0},{"$f":"IF(Stock!$A13<>\"\",AO13+AR13,\"\")","v":-28000},{"$f":"IF(Stock!$A13<>\"\",AS13*$G13,\"\")","v":0},{"$f":"IF(Stock!$A13<>\"\",Pilotage!Q$26,\"\")","v":1},{"$f":"IF(Stock!$A13<>\"\",ROUND(AM13*AU13,0),\"\")","v":16000},{"$f":"IF(Stock!$A13<>\"\",$H13*AV13,\"\")","v":80000},{"$f":"IF(Stock!$A13<>\"\",AS13-AV13-'Ventes Produits'!W462,\"\")","v":-44000},{"$f":"IF(Stock!$A13<>\"\",AX13*$G13,\"\")","v":0},{"$f":"IF(Stock!$A13<>\"\",Pilotage!$R$35,\"\")","v":8.8880000000000017},{"$f":"IF(Stock!$A13<>\"\",ROUND(Stock!$A13*AZ13,0),\"\")","v":0},{"$f":"IF(Stock!$A13<>\"\",AX13+BA13,\"\")","v":-44000},{"$f":"IF(Stock!$A13<>\"\",BB13*$G13,\"\")","v":0},{"$f":"IF(Stock!$A13<>\"\",Pilotage!R$26,\"\")","v":1.1000000000000001},{"$f":"IF(Stock!$A13<>\"\",ROUND(AV13*BD13,0),\"\")","v":17600},{"$f":"IF(Stock!$A13<>\"\",$H13*BE13,\"\")","v":88000},{"$f":"IF(Stock!$A13<>\"\",BB13-BE13-'Ventes Produits'!Z462,\"\")","v":-61600},{"$f":"IF(Stock!$A13<>\"\",BG13*$G13,\"\")","v":0}]
[50,200,null,{"$f":"IF(Stock!D14<>\"\",Stock!D14,\"\")","v":"Article 7"},{"$f":"Stock!F14","v":60},null,{"$f":"IF(Stock!$A14<>\"\",IF(Stock!$A14>0,Stock!$K14/Stock!$A14,0),\"\")","v":0},{"$f":"Stock!F14*Pilotage!M$19","v":6},200,{"$f":"IF(Stock!$A14<>\"\",I14*$G14,\"\")","v":0},{"$f":"IF(Stock!$A14<>\"\",Pilotage!$M$26,\"\")","v":1},{"$f":"IF(Stock!$A14<>\"\",ROUND(I14*K14,0),\"\")","v":200},{"$f":"IF(Stock!$A14<>\"\",$H14*L14,\"\")","v":1200},{"$f":"IF(Stock!$A14<>\"\",I14-L14-'Ventes Produits'!K463,\"\")","v":0},{"$f":"IF(Stock!$A14<>\"\",N14*$G14,\"\")","v":0},{"$f":"IF(Stock!$A14<>\"\",Pilotage!$N$35,\"\")","v":2.2000000000000002},{"$f":"IF(Stock!$A14<>\"\",ROUND(Stock!$A14*P14,0),\"\")","v":0},{"$f":"IF(Stock!$A14<>\"\",N14+Q14,\"\")","v":0},{"$f":"IF(Stock!$A14<>\"\",R14*$G14,\"\")","v":0},{"$f":"IF(Stock!$A14<>\"\",Pilotage!N$26,\"\")","v":2},{"$f":"IF(Stock!$A14<>\"\",ROUND(L14*T14,0),\"\")","v":400},{"$f":"IF(Stock!$A14<>\"\",$H14*U14,\"\")","v":2400},{"$f":"IF(Stock!$A14<>\"\",R14-U14-'Ventes Produits'!N463,\"\")","v":-400},{"$f":"IF(Stock!$A14<>\"\",W14*$G14,\"\")","v":0},{"$f":"IF(Stock!$A14<>\"\",Pilotage!$O$35,\"\")","v":4.18},{"$f":"IF(Stock!$A14<>\"\",ROUND(Stock!$A14*Y14,0),\"\")","v":0},{"$f":"IF(Stock!$A14<>\"\",W14+Z14,\"\")","v":-400},{"$f":"IF(Stock!$A14<>\"\",AA14*$G14,\"\")","v":0},{"$f":"IF(Stock!$A14<>\"\",Pilotage!O$26,\"\")","v":2},{"$f":"IF(Stock!$A14<>\"\",ROUND(U14*AC14,0),\"\")","v":800},{"$f":"IF(Stock!$A14<>\"\",$H14*AD14,\"\")","v":4800},{"$f":"IF(Stock!$A14<>\"\",AA14-AD14-'Ventes Produits'!Q463,\"\")","v":-1200},{"$f":"IF(Stock!$A14<>\"\",AF14*$G14,\"\")","v":0},{"$f":"IF(Stock!$A14<>\"\",Pilotage!$P$35,\"\")","v":8.3820000000000014},{"$f":"IF(Stock!$A14<>\"\",ROUND(Stock!$A14*AH14,0),\"\")","v":0},{"$f":"IF(Stock!$A14<>\"\",AF14+AI14,\"\")","v":-1200},{"$f":"IF(Stock!$A14<>\"\",AJ14*$G14,\"\")","v":0},{"$f":"IF(Stock!$A14<>\"\",Pilotage!P$26,\"\")","v":2},{"$f":"IF(Stock!$A14<>\"\",ROUND(AD14*AL14,0),\"\")","v":1600},{"$f":"IF(Stock!$A14<>\"\",$H14*AM14,\"\")","v":9600},{"$f":"IF(Stock!$A14<>\"\",AJ14-AM14-'Ventes Produits'!T463,\"\")","v":-2800},{"$f":"IF(Stock!$A14<>\"\",AO14*$G14,\"\")","v":0},{"$f":"IF(Stock!$A14<>\"\",Pilotage!$Q$35,\"\")","v":7.9640000000000013},{"$f":"IF(Stock!$A14<>\"\",ROUND(Stock!$A14*AQ14,0),\"\")","v":0},{"$f":"IF(Stock!$A14<>\"\",AO14+AR14,\"\")","v":-2800},{"$f":"IF(Stock!$A14<>\"\",AS14*$G14,\"\")","v":0},{"$f":"IF(Stock!$A14<>\"\",Pilotage!Q$26,\"\")","v":1},{"$f":"IF(Stock!$A14<>\"\",ROUND(AM14*AU14,0),\"\")","v":1600},{"$f":"IF(Stock!$A14<>\"\",$H14*AV14,\"\")","v":9600},{"$f":"IF(Stock!$A14<>\"\",AS14-AV14-'Ventes Produits'!W463,\"\")","v":-4400},{"$f":"IF(Stock!$A14<>\"\",AX14*$G14,\"\")","v":0},{"$f":"IF(Stock!$A14<>\"\",Pilotage!$R$35,\"\")","v":8.8880000000000017},{"$f":"IF(Stock!$A14<>\"\",ROUND(Stock!$A14*AZ14,0),\"\")","v":0},{"$f":"IF(Stock!$A14<>\"\",AX14+BA14,\"\")","v":-4400},{"$f":"IF(Stock!$A14<>\"\",BB14*$G14,\"\")","v":0},{"$f":"IF(Stock!$A14<>\"\",Pilotage!R$26,\"\")","v":1.1000000000000001},{"$f":"IF(Stock!$A14<>\"\",ROUND(AV14*BD14,0),\"\")","v":1760},{"$f":"IF(Stock!$A14<>\"\",$H14*BE14,\"\")","v":10560},{"$f":"IF(Stock!$A14<>\"\",BB14-BE14-'Ventes Produits'!Z463,\"\")","v":-6160},{"$f":"IF(Stock!$A14<>\"\",BG14*$G14,\"\")","v":0}]
[50,200,null,{"$f":"IF(Stock!D15<>\"\",Stock!D15,\"\")","v":"Article 8"},{"$f":"Stock!F15","v":70},null,{"$f":"IF(Stock!$A15<>\"\",IF(Stock!$A15>0,Stock!$K15/Stock!$A15,0),\"\")","v":0},{"$f":"Stock!F15*Pilotage!M$19","v":7},200,{"$f":"IF(Stock!$A15<>\"\",I15*$G15,\"\")","v":0},{"$f":"IF(Stock!$A15<>\"\",Pilotage!$M$26,\"\")","v":1},{"$f":"IF(Stock!$A15<>\"\",ROUND(I15*K15,0),\"\")","v":200},{"$f":"IF(Stock!$A15<>\"\",$H15*L15,\"\")","v":1400},{"$f":"IF(Stock!$A15<>\"\",I15-L15-'Ventes Produits'!K464,\"\")","v":0},{"$f":"IF(Stock!$A15<>\"\",N15*$G15,\"\")","v":0},{"$f":"IF(Stock!$A15<>\"\",Pilotage!$N$35,\"\")","v":2.2000000000000002},{"$f":"IF(Stock!$A15<>\"\",ROUND(Stock!$A15*P15,0),\"\")","v":0},{"$f":"IF(Stock!$A15<>\"\",N15+Q15,\"\")","v":0},{"$f":"IF(Stock!$A15<>\"\",R15*$G15,\"\")","v":0},{"$f":"IF(Stock!$A15<>\"\",Pilotage!N$26,\"\")","v":2},{"$f":"IF(Stock!$A15<>\"\",ROUND(L15*T15,0),\"\")","v":400},{"$f":"IF(Stock!$A15<>\"\",$H15*U15,\"\")","v":2800},{"$f":"IF(Stock!$A15<>\"\",R15-U15-'Ventes Produits'!N464,\"\")","v":-400},{"$f":"IF(Stock!$A15<>\"\",W15*$G15,\"\")","v":0},{"$f":"IF(Stock!$A15<>\"\",Pilotage!$O$35,\"\")","v":4.18},{"$f":"IF(Stock!$A15<>\"\",ROUND(Stock!$A15*Y15,0),\"\")","v":0},{"$f":"IF(Stock!$A15<>\"\",W15+Z15,\"\")","v":-400},{"$f":"IF(Stock!$A15<>\"\",AA15*$G15,\"\")","v":0},{"$f":"IF(Stock!$A15<>\"\",Pilotage!O$26,\"\")","v":2},{"$f":"IF(Stock!$A15<>\"\",ROUND(U15*AC15,0),\"\")","v":800},{"$f":"IF(Stock!$A15<>\"\",$H15*AD15,\"\")","v":5600},{"$f":"IF(Stock!$A15<>\"\",AA15-AD15-'Ventes Produits'!Q464,\"\")","v":-1200},{"$f":"IF(Stock!$A15<>\"\",AF15*$G15,\"\")","v":0},{"$f":"IF(Stock!$A15<>\"\",Pilotage!$P$35,\"\")","v":8.3820000000000014},{"$f":"IF(Stock!$A15<>\"\",ROUND(Stock!$A15*AH15,0),\"\")","v":0},{"$f":"IF(Stock!$A15<>\"\",AF15+AI15,\"\")","v":-1200},{"$f":"IF(Stock!$A15<>\"\",AJ15*$G15,\"\")","v":0},{"$f":"IF(Stock!$A15<>\"\",Pilotage!P$26,\"\")","v":2},{"$f":"IF(Stock!$A15<>\"\",ROUND(AD15*AL15,0),\"\")","v":1600},{"$f":"IF(Stock!$A15<>\"\",$H15*AM15,\"\")","v":11200},{"$f":"IF(Stock!$A15<>\"\",AJ15-AM15-'Ventes Produits'!T464,\"\")","v":-2800},{"$f":"IF(Stock!$A15<>\"\",AO15*$G15,\"\")","v":0},{"$f":"IF(Stock!$A15<>\"\",Pilotage!$Q$35,\"\")","v":7.9640000000000013},{"$f":"IF(Stock!$A15<>\"\",ROUND(Stock!$A15*AQ15,0),\"\")","v":0},{"$f":"IF(Stock!$A15<>\"\",AO15+AR15,\"\")","v":-2800},{"$f":"IF(Stock!$A15<>\"\",AS15*$G15,\"\")","v":0},{"$f":"IF(Stock!$A15<>\"\",Pilotage!Q$26,\"\")","v":1},{"$f":"IF(Stock!$A15<>\"\",ROUND(AM15*AU15,0),\"\")","v":1600},{"$f":"IF(Stock!$A15<>\"\",$H15*AV15,\"\")","v":11200},{"$f":"IF(Stock!$A15<>\"\",AS15-AV15-'Ventes Produits'!W464,\"\")","v":-4400},{"$f":"IF(Stock!$A15<>\"\",AX15*$G15,\"\")","v":0},{"$f":"IF(Stock!$A15<>\"\",Pilotage!$R$35,\"\")","v":8.8880000000000017},{"$f":"IF(Stock!$A15<>\"\",ROUND(Stock!$A15*AZ15,0),\"\")","v":0},{"$f":"IF(Stock!$A15<>\"\",AX15+BA15,\"\")","v":-4400},{"$f":"IF(Stock!$A15<>\"\",BB15*$G15,\"\")","v":0},{"$f":"IF(Stock!$A15<>\"\",Pilotage!R$26,\"\")","v":1.1000000000000001},{"$f":"IF(Stock!$A15<>\"\",ROUND(AV15*BD15,0),\"\")","v":1760},{"$f":"IF(Stock!$A15<>\"\",$H15*BE15,\"\")","v":12320},{"$f":"IF(Stock!$A15<>\"\",BB15-BE15-'Ventes Produits'!Z464,\"\")","v":-6160},{"$f":"IF(Stock!$A15<>\"\",BG15*$G15,\"\")","v":0}]
[50,200,null,{"$f":"IF(Stock!D16<>\"\",Stock!D16,\"\")","v":"Article 9"},{"$f":"Stock!F16","v":80},null,{"$f":"IF(Stock!$A16<>\"\",IF(Stock!$A16>0,Stock!$K16/Stock!$A16,0),\"\")","v":0},{"$f":"Stock!F16*Pilotage!M$19","v":8},200,{"$f":"IF(Stock!$A16<>\"\",I16*$G16,\"\")","v":0},{"$f":"IF(Stock!$A16<>\"\",Pilotage!$M$26,\"\")","v":1},{"$f":"IF(Stock!$A16<>\"\",ROUND(I16*K16,0),\"\")","v":200},{"$f":"IF(Stock!$A16<>\"\",$H16*L16,\"\")","v":1600},{"$f":"IF(Stock!$A16<>\"\",I16-L16-'Ventes Produits'!K465,\"\")","v":0},{"$f":"IF(Stock!$A16<>\"\",N16*$G16,\"\")","v":0},{"$f":"IF(Stock!$A16<>\"\",Pilotage!$N$35,\"\")","v":2.2000000000000002},{"$f":"IF(Stock!$A16<>\"\",ROUND(Stock!$A16*P16,0),\"\")","v":0},{"$f":"IF(Stock!$A16<>\"\",N16+Q16,\"\")","v":0},{"$f":"IF(Stock!$A16<>\"\",R16*$G16,\"\")","v":0},{"$f":"IF(Stock!$A16<>\"\",Pilotage!N$26,\"\")","v":2},{"$f":"IF(Stock!$A16<>\"\",ROUND(L16*T16,0),\"\")","v":400},{"$f":"IF(Stock!$A16<>\"\",$H16*U16,\"\")","v":3200},{"$f":"IF(Stock!$A16<>\"\",R16-U16-'Ventes Produits'!N465,\"\")","v":-400},{"$f":"IF(Stock!$A16<>\"\",W16*$G16,\"\")","v":0},{"$f":"IF(Stock!$A16<>\"\",Pilotage!$O$35,\"\")","v":4.18},{"$f":"IF(Stock!$A16<>\"\",ROUND(Stock!$A16*Y16,0),\"\")","v":0},{"$f":"IF(Stock!$A16<>\"\",W16+Z16,\"\")","v":-400},{"$f":"IF(Stock!$A16<>\"\",AA16*$G16,\"\")","v":0},{"$f":"IF(Stock!$A16<>\"\",Pilotage!O$26,\"\")","v":2},{"$f":"IF(Stock!$A16<>\"\",ROUND(U16*AC16,0),\"\")","v":800},{"$f":"IF(Stock!$A16<>\"\",$H16*AD16,\"\")","v":6400},{"$f":"IF(Stock!$A16<>\"\",AA16-AD16-'Ventes Produits'!Q465,\"\")","v":-1200},{"$f":"IF(Stock!$A16<>\"\",AF16*$G16,\"\")","v":0},{"$f":"IF(Stock!$A16<>\"\",Pilotage!$P$35,\"\")","v":8.3820000000000014},{"$f":"IF(Stock!$A16<>\"\",ROUND(Stock!$A16*AH16,0),\"\")","v":0},{"$f":"IF(Stock!$A16<>\"\",AF16+AI16,\"\")","v":-1200},{"$f":"IF(Stock!$A16<>\"\",AJ16*$G16,\"\")","v":0},{"$f":"IF(Stock!$A16<>\"\",Pilotage!P$26,\"\")","v":2},{"$f":"IF(Stock!$A16<>\"\",ROUND(AD16*AL16,0),\"\")","v":1600},{"$f":"IF(Stock!$A16<>\"\",$H16*AM16,\"\")","v":12800},{"$f":"IF(Stock!$A16<>\"\",AJ16-AM16-'Ventes Produits'!T465,\"\")","v":-2800},{"$f":"IF(Stock!$A16<>\"\",AO16*$G16,\"\")","v":0},{"$f":"IF(Stock!$A16<>\"\",Pilotage!$Q$35,\"\")","v":7.9640000000000013},{"$f":"IF(Stock!$A16<>\"\",ROUND(Stock!$A16*AQ16,0),\"\")","v":0},{"$f":"IF(Stock!$A16<>\"\",AO16+AR16,\"\")","v":-2800},{"$f":"IF(Stock!$A16<>\"\",AS16*$G16,\"\")","v":0},{"$f":"IF(Stock!$A16<>\"\",Pilotage!Q$26,\"\")","v":1},{"$f":"IF(Stock!$A16<>\"\",ROUND(AM16*AU16,0),\"\")","v":1600},{"$f":"IF(Stock!$A16<>\"\",$H16*AV16,\"\")","v":12800},{"$f":"IF(Stock!$A16<>\"\",AS16-AV16-'Ventes Produits'!W465,\"\")","v":-4400},{"$f":"IF(Stock!$A16<>\"\",AX16*$G16,\"\")","v":0},{"$f":"IF(Stock!$A16<>\"\",Pilotage!$R$35,\"\")","v":8.8880000000000017},{"$f":"IF(Stock!$A16<>\"\",ROUND(Stock!$A16*AZ16,0),\"\")","v":0},{"$f":"IF(Stock!$A16<>\"\",AX16+BA16,\"\")","v":-4400},{"$f":"IF(Stock!$A16<>\"\",BB16*$G16,\"\")","v":0},{"$f":"IF(Stock!$A16<>\"\",Pilotage!R$26,\"\")","v":1.1000000000000001},{"$f":"IF(Stock!$A16<>\"\",ROUND(AV16*BD16,0),\"\")","v":1760},{"$f":"IF(Stock!$A16<>\"\",$H16*BE16,\"\")","v":14080},{"$f":"IF(Stock!$A16<>\"\",BB16-BE16-'Ventes Produits'!Z465,\"\")","v":-6160},{"$f":"IF(Stock!$A16<>\"\",BG16*$G16,\"\")","v":0}]
[50,200,null,{"$f":"IF(Stock!D17<>\"\",Stock!D17,\"\")","v":"Article 10"},{"$f":"Stock!F17","v":90},null,{"$f":"IF(Stock!$A17<>\"\",IF(Stock!$A17>0,Stock!$K17/Stock!$A17,0),\"\")","v":0},{"$f":"Stock!F17*Pilotage!M$19","v":9},200,{"$f":"IF(Stock!$A17<>\"\",I17*$G17,\"\")","v":0},{"$f":"IF(Stock!$A17<>\"\",Pilotage!$M$26,\"\")","v":1},{"$f":"IF(Stock!$A17<>\"\",ROUND(I17*K17,0),\"\")","v":200},{"$f":"IF(Stock!$A17<>\"\",$H17*L17,\"\")","v":1800},{"$f":"IF(Stock!$A17<>\"\",I17-L17-'Ventes Produits'!K466,\"\")","v":0},{"$f":"IF(Stock!$A17<>\"\",N17*$G17,\"\")","v":0},{"$f":"IF(Stock!$A17<>\"\",Pilotage!$N$35,\"\")","v":2.2000000000000002},{"$f":"IF(Stock!$A17<>\"\",ROUND(Stock!$A17*P17,0),\"\")","v":0},{"$f":"IF(Stock!$A17<>\"\",N17+Q17,\"\")","v":0},{"$f":"IF(Stock!$A17<>\"\",R17*$G17,\"\")","v":0},{"$f":"IF(Stock!$A17<>\"\",Pilotage!N$26,\"\")","v":2},{"$f":"IF(Stock!$A17<>\"\",ROUND(L17*T17,0),\"\")","v":400},{"$f":"IF(Stock!$A17<>\"\",$H17*U17,\"\")","v":3600},{"$f":"IF(Stock!$A17<>\"\",R17-U17-'Ventes Produits'!N466,\"\")","v":-400},{"$f":"IF(Stock!$A17<>\"\",W17*$G17,\"\")","v":0},{"$f":"IF(Stock!$A17<>\"\",Pilotage!$O$35,\"\")","v":4.18},{"$f":"IF(Stock!$A17<>\"\",ROUND(Stock!$A17*Y17,0),\"\")","v":0},{"$f":"IF(Stock!$A17<>\"\",W17+Z17,\"\")","v":-400},{"$f":"IF(Stock!$A17<>\"\",AA17*$G17,\"\")","v":0},{"$f":"IF(Stock!$A17<>\"\",Pilotage!O$26,\"\")","v":2},{"$f":"IF(Stock!$A17<>\"\",ROUND(U17*AC17,0),\"\")","v":800},{"$f":"IF(Stock!$A17<>\"\",$H17*AD17,\"\")","v":7200},{"$f":"IF(Stock!$A17<>\"\",AA17-AD17-'Ventes Produits'!Q466,\"\")","v":-1200},{"$f":"IF(Stock!$A17<>\"\",AF17*$G17,\"\")","v":0},{"$f":"IF(Stock!$A17<>\"\",Pilotage!$P$35,\"\")","v":8.3820000000000014},{"$f":"IF(Stock!$A17<>\"\",ROUND(Stock!$A17*AH17,0),\"\")","v":0},{"$f":"IF(Stock!$A17<>\"\",AF17+AI17,\"\")","v":-1200},{"$f":"IF(Stock!$A17<>\"\",AJ17*$G17,\"\")","v":0},{"$f":"IF(Stock!$A17<>\"\",Pilotage!P$26,\"\")","v":2},{"$f":"IF(Stock!$A17<>\"\",ROUND(AD17*AL17,0),\"\")","v":1600},{"$f":"IF(Stock!$A17<>\"\",$H17*AM17,\"\")","v":14400},{"$f":"IF(Stock!$A17<>\"\",AJ17-AM17-'Ventes Produits'!T466,\"\")","v":-2800},{"$f":"IF(Stock!$A17<>\"\",AO17*$G17,\"\")","v":0},{"$f":"IF(Stock!$A17<>\"\",Pilotage!$Q$35,\"\")","v":7.9640000000000013},{"$f":"IF(Stock!$A17<>\"\",ROUND(Stock!$A17*AQ17,0),\"\")","v":0},{"$f":"IF(Stock!$A17<>\"\",AO17+AR17,\"\")","v":-2800},{"$f":"IF(Stock!$A17<>\"\",AS17*$G17,\"\")","v":0},{"$f":"IF(Stock!$A17<>\"\",Pilotage!Q$26,\"\")","v":1},{"$f":"IF(Stock!$A17<>\"\",ROUND(AM17*AU17,0),\"\")","v":1600},{"$f":"IF(Stock!$A17<>\"\",$H17*AV17,\"\")","v":14400},{"$f":"IF(Stock!$A17<>\"\",AS17-AV17-'Ventes Produits'!W466,\"\")","v":-4400},{"$f":"IF(Stock!$A17<>\"\",AX17*$G17,\"\")","v":0},{"$f":"IF(Stock!$A17<>\"\",Pilotage!$R$35,\"\")","v":8.8880000000000017},{"$f":"IF(Stock!$A17<>\"\",ROUND(Stock!$A17*AZ17,0),\"\")","v":0},{"$f":"IF(Stock!$A17<>\"\",AX17+BA17,\"\")","v":-4400},{"$f":"IF(Stock!$A17<>\"\",BB17*$G17,\"\")","v":0},{"$f":"IF(Stock!$A17<>\"\",Pilotage!R$26,\"\")","v":1.1000000000000001},{"$f":"IF(Stock!$A17<>\"\",ROUND(AV17*BD17,0),\"\")","v":1760},{"$f":"IF(Stock!$A17<>\"\",$H17*BE17,\"\")","v":15840},{"$f":"IF(Stock!$A17<>\"\",BB17-BE17-'Ventes Produits'!Z466,\"\")","v":-6160},{"$f":"IF(Stock!$A17<>\"\",BG17*$G17,\"\")","v":0}]
[50,200,null,{"$f":"IF(Stock!D18<>\"\",Stock!D18,\"\")","v":"Article 11"},{"$f":"Stock!F18","v":100},null,{"$f":"IF(Stock!$A18<>\"\",IF(Stock!$A18>0,Stock!$K18/Stock!$A18,0),\"\")","v":0},{"$f":"Stock!F18*Pilotage!M$19","v":10},200,{"$f":"IF(Stock!$A18<>\"\",I18*$G18,\"\")","v":0},{"$f":"IF(Stock!$A18<>\"\",Pilotage!$M$26,\"\")","v":1},{"$f":"IF(Stock!$A18<>\"\",ROUND(I18*K18,0),\"\")","v":200},{"$f":"IF(Stock!$A18<>\"\",$H18*L18,\"\")","v":2000},{"$f":"IF(Stock!$A18<>\"\",I18-L18-'Ventes Produits'!K467,\"\")","v":0},{"$f":"IF(Stock!$A18<>\"\",N18*$G18,\"\")","v":0},{"$f":"IF(Stock!$A18<>\"\",Pilotage!$N$35,\"\")","v":2.2000000000000002},{"$f":"IF(Stock!$A18<>\"\",ROUND(Stock!$A18*P18,0),\"\")","v":0},{"$f":"IF(Stock!$A18<>\"\",N18+Q18,\"\")","v":0},{"$f":"IF(Stock!$A18<>\"\",R18*$G18,\"\")","v":0},{"$f":"IF(Stock!$A18<>\"\",Pilotage!N$26,\"\")","v":2},{"$f":"IF(Stock!$A18<>\"\",ROUND(L18*T18,0),\"\")","v":400},{"$f":"IF(Stock!$A18<>\"\",$H18*U18,\"\")","v":4000},{"$f":"IF(Stock!$A18<>\"\",R18-U18-'Ventes Produits'!N467,\"\")","v":-400},{"$f":"IF(Stock!$A18<>\"\",W18*$G18,\"\")","v":0},{"$f":"IF(Stock!$A18<>\"\",Pilotage!$O$35,\"\")","v":4.18},{"$f":"IF(Stock!$A18<>\"\",ROUND(Stock!$A18*Y18,0),\"\")","v":0},{"$f":"IF(Stock!$A18<>\"\",W18+Z18,\"\")","v":-400},{"$f":"IF(Stock!$A18<>\"\",AA18*$G18,\"\")","v":0},{"$f":"IF(Stock!$A18<>\"\",Pilotage!O$26,\"\")","v":2},{"$f":"IF(Stock!$A18<>\"\",ROUND(U18*AC18,0),\"\")","v":800},{"$f":"IF(Stock!$A18<>\"\",$H18*AD18,\"\")","v":8000},{"$f":"IF(Stock!$A18<>\"\",AA18-AD18-'Ventes Produits'!Q467,\"\")","v":-1200},{"$f":"IF(Stock!$A18<>\"\",AF18*$G18,\"\")","v":0},{"$f":"IF(Stock!$A18<>\"\",Pilotage!$P$35,\"\")","v":8.3820000000000014},{"$f":"IF(Stock!$A18<>\"\",ROUND(Stock!$A18*AH18,0),\"\")","v":0},{"$f":"IF(Stock!$A18<>\"\",AF18+AI18,\"\")","v":-1200},{"$f":"IF(Stock!$A18<>\"\",AJ18*$G18,\"\")","v":0},{"$f":"IF(Stock!$A18<>\"\",Pilotage!P$26,\"\")","v":2},{"$f":"IF(Stock!$A18<>\"\",ROUND(AD18*AL18,0),\"\")","v":1600},{"$f":"IF(Stock!$A18<>\"\",$H18*AM18,\"\")","v":16000},{"$f":"IF(Stock!$A18<>\"\",AJ18-AM18-'Ventes Produits'!T467,\"\")","v":-2800},{"$f":"IF(Stock!$A18<>\"\",AO18*$G18,\"\")","v":0},{"$f":"IF(Stock!$A18<>\"\",Pilotage!$Q$35,\"\")","v":7.9640000000000013},{"$f":"IF(Stock!$A18<>\"\",ROUND(Stock!$A18*AQ18,0),\"\")","v":0},{"$f":"IF(Stock!$A18<>\"\",AO18+AR18,\"\")","v":-2800},{"$f":"IF(Stock!$A18<>\"\",AS18*$G18,\"\")","v":0},{"$f":"IF(Stock!$A18<>\"\",Pilotage!Q$26,\"\")","v":1},{"$f":"IF(Stock!$A18<>\"\",ROUND(AM18*AU18,0),\"\")","v":1600},{"$f":"IF(Stock!$A18<>\"\",$H18*AV18,\"\")","v":16000},{"$f":"IF(Stock!$A18<>\"\",AS18-AV18-'Ventes Produits'!W467,\"\")","v":-4400},{"$f":"IF(Stock!$A18<>\"\",AX18*$G18,\"\")","v":0},{"$f":"IF(Stock!$A18<>\"\",Pilotage!$R$35,\"\")","v":8.8880000000000017},{"$f":"IF(Stock!$A18<>\"\",ROUND(Stock!$A18*AZ18,0),\"\")","v":0},{"$f":"IF(Stock!$A18<>\"\",AX18+BA18,\"\")","v":-4400},{"$f":"IF(Stock!$A18<>\"\",BB18*$G18,\"\")","v":0},{"$f":"IF(Stock!$A18<>\"\",Pilotage!R$26,\"\")","v":1.1000000000000001},{"$f":"IF(Stock!$A18<>\"\",ROUND(AV18*BD18,0),\"\")","v":1760},{"$f":"IF(Stock!$A18<>\"\",$H18*BE18,\"\")","v":17600},{"$f":"IF(Stock!$A18<>\"\",BB18-BE18-'Ventes Produits'!Z467,\"\")","v":-6160},{"$f":"IF(Stock!$A18<>\"\",BG18*$G18,\"\")","v":0}]
[50,200,null,{"$f":"IF(Stock!D19<>\"\",Stock!D19,\"\")","v":"Article 12"},{"$f":"Stock!F19","v":110},null,{"$f":"IF(Stock!$A19<>\"\",IF(Stock!$A19>0,Stock!$K19/Stock!$A19,0),\"\")","v":0},{"$f":"Stock!F19*Pilotage!M$19","v":11},200,{"$f":"IF(Stock!$A19<>\"\",I19*$G19,\"\")","v":0},{"$f":"IF(Stock!$A19<>\"\",Pilotage!$M$26,\"\")","v":1},{"$f":"IF(Stock!$A19<>\"\",ROUND(I19*K19,0),\"\")","v":200},{"$f":"IF(Stock!$A19<>\"\",$H19*L19,\"\")","v":2200},{"$f":"IF(Stock!$A19<>\"\",I19-L19-'Ventes Produits'!K468,\"\")","v":0},{"$f":"IF(Stock!$A19<>\"\",N19*$G19,\"\")","v":0},{"$f":"IF(Stock!$A19<>\"\",Pilotage!$N$35,\"\")","v":2.2000000000000002},{"$f":"IF(Stock!$A19<>\"\",ROUND(Stock!$A19*P19,0),\"\")","v":0},{"$f":"IF(Stock!$A19<>\"\",N19+Q19,\"\")","v":0},{"$f":"IF(Stock!$A19<>\"\",R19*$G19,\"\")","v":0},{"$f":"IF(Stock!$A19<>\"\",Pilotage!N$26,\"\")","v":2},{"$f":"IF(Stock!$A19<>\"\",ROUND(L19*T19,0),\"\")","v":400},{"$f":"IF(Stock!$A19<>\"\",$H19*U19,\"\")","v":4400},{"$f":"IF(Stock!$A19<>\"\",R19-U19-'Ventes Produits'!N468,\"\")","v":-400},{"$f":"IF(Stock!$A19<>\"\",W19*$G19,\"\")","v":0},{"$f":"IF(Stock!$A19<>\"\",Pilotage!$O$35,\"\")","v":4.18},{"$f":"IF(Stock!$A19<>\"\",ROUND(Stock!$A19*Y19,0),\"\")","v":0},{"$f":"IF(Stock!$A19<>\"\",W19+Z19,\"\")","v":-400},{"$f":"IF(Stock!$A19<>\"\",AA19*$G19,\"\")","v":0},{"$f":"IF(Stock!$A19<>\"\",Pilotage!O$26,\"\")","v":2},{"$f":"IF(Stock!$A19<>\"\",ROUND(U19*AC19,0),\"\")","v":800},{"$f":"IF(Stock!$A19<>\"\",$H19*AD19,\"\")","v":8800},{"$f":"IF(Stock!$A19<>\"\",AA19-AD19-'Ventes Produits'!Q468,\"\")","v":-1200},{"$f":"IF(Stock!$A19<>\"\",AF19*$G19,\"\")","v":0},{"$f":"IF(Stock!$A19<>\"\",Pilotage!$P$35,\"\")","v":8.3820000000000014},{"$f":"IF(Stock!$A19<>\"\",ROUND(Stock!$A19*AH19,0),\"\")","v":0},{"$f":"IF(Stock!$A19<>\"\",AF19+AI19,\"\")","v":-1200},{"$f":"IF(Stock!$A19<>\"\",AJ19*$G19,\"\")","v":0},{"$f":"IF(Stock!$A19<>\"\",Pilotage!P$26,\"\")","v":2},{"$f":"IF(Stock!$A19<>\"\",ROUND(AD19*AL19,0),\"\")","v":1600},{"$f":"IF(Stock!$A19<>\"\",$H19*AM19,\"\")","v":17600},{"$f":"IF(Stock!$A19<>\"\",AJ19-AM19-'Ventes Produits'!T468,\"\")","v":-2800},{"$f":"IF(Stock!$A19<>\"\",AO19*$G19,\"\")","v":0},{"$f":"IF(Stock!$A19<>\"\",Pilotage!$Q$35,\"\")","v":7.9640000000000013},{"$f":"IF(Stock!$A19<>\"\",ROUND(Stock!$A19*AQ19,0),\"\")","v":0},{"$f":"IF(Stock!$A19<>\"\",AO19+AR19,\"\")","v":-2800},{"$f":"IF(Stock!$A19<>\"\",AS19*$G19,\"\")","v":0},{"$f":"IF(Stock!$A19<>\"\",Pilotage!Q$26,\"\")","v":1},{"$f":"IF(Stock!$A19<>\"\",ROUND(AM19*AU19,0),\"\")","v":1600},{"$f":"IF(Stock!$A19<>\"\",$H19*AV19,\"\")","v":17600},{"$f":"IF(Stock!$A19<>\"\",AS19-AV19-'Ventes Produits'!W468,\"\")","v":-4400},{"$f":"IF(Stock!$A19<>\"\",AX19*$G19,\"\")","v":0},{"$f":"IF(Stock!$A19<>\"\",Pilotage!$R$35,\"\")","v":8.8880000000000017},{"$f":"IF(Stock!$A19<>\"\",ROUND(Stock!$A19*AZ19,0),\"\")","v":0},{"$f":"IF(Stock!$A19<>\"\",AX19+BA19,\"\")","v":-4400},{"$f":"IF(Stock!$A19<>\"\",BB19*$G19,\"\")","v":0},{"$f":"IF(Stock!$A19<>\"\",Pilotage!R$26,\"\")","v":1.1000000000000001},{"$f":"IF(Stock!$A19<>\"\",ROUND(AV19*BD19,0),\"\")","v":1760},{"$f":"IF(Stock!$A19<>\"\",$H19*BE19,\"\")","v":19360},{"$f":"IF(Stock!$A19<>\"\",BB19-BE19-'Ventes Produits'!Z468,\"\")","v":-6160},{"$f":"IF(Stock!$A19<>\"\",BG19*$G19,\"\")","v":0}]
[50,200,null,{"$f":"IF(Stock!D20<>\"\",Stock!D20,\"\")","v":"Article 13"},{"$f":"Stock!F20","v":120},null,{"$f":"IF(Stock!$A20<>\"\",IF(Stock!$A20>0,Stock!$K20/Stock!$A20,0),\"\")","v":0},{"$f":"Stock!F20*Pilotage!M$19","v":12},200,{"$f":"IF(Stock!$A20<>\"\",I20*$G20,\"\")","v":0},{"$f":"IF(Stock!$A20<>\"\",Pilotage!$M$26,\"\")","v":1},{"$f":"IF(Stock!$A20<>\"\",ROUND(I20*K20,0),\"\")","v":200},{"$f":"IF(Stock!$A20<>\"\",$H20*L20,\"\")","v":2400},{"$f":"IF(Stock!$A20<>\"\",I20-L20-'Ventes Produits'!K469,\"\")","v":0},{"$f":"IF(Stock!$A20<>\"\",N20*$G20,\"\")","v":0},{"$f":"IF(Stock!$A20<>\"\",Pilotage!$N$35,\"\")","v":2.2000000000000002},{"$f":"IF(Stock!$A20<>\"\",ROUND(Stock!$A20*P20,0),\"\")","v":0},{"$f":"IF(Stock!$A20<>\"\",N20+Q20,\"\")","v":0},{"$f":"IF(Stock!$A20<>\"\",R20*$G20,\"\")","v":0},{"$f":"IF(Stock!$A20<>\"\",Pilotage!N$26,\"\")","v":2},{"$f":"IF(Stock!$A20<>\"\",ROUND(L20*T20,0),\"\")","v":400},{"$f":"IF(Stock!$A20<>\"\",$H20*U20,\"\")","v":4800},{"$f":"IF(Stock!$A20<>\"\",R20-U20-'Ventes Produits'!N469,\"\")","v":-400},{"$f":"IF(Stock!$A20<>\"\",W20*$G20,\"\")","v":0},{"$f":"IF(Stock!$A20<>\"\",Pilotage!$O$35,\"\")","v":4.18},{"$f":"IF(Stock!$A20<>\"\",ROUND(Stock!$A20*Y20,0),\"\")","v":0},{"$f":"IF(Stock!$A20<>\"\",W20+Z20,\"\")","v":-400},{"$f":"IF(Stock!$A20<>\"\",AA20*$G20,\"\")","v":0},{"$f":"IF(Stock!$A20<>\"\",Pilotage!O$26,\"\")","v":2},{"$f":"IF(Stock!$A20<>\"\",ROUND(U20*AC20,0),\"\")","v":800},{"$f":"IF(Stock!$A20<>\"\",$H20*AD20,\"\")","v":9600},{"$f":"IF(Stock!$A20<>\"\",AA20-AD20-'Ventes Produits'!Q469,\"\")","v":-1200},{"$f":"IF(Stock!$A20<>\"\",AF20*$G20,\"\")","v":0},{"$f":"IF(Stock!$A20<>\"\",Pilotage!$P$35,\"\")","v":8.3820000000000014},{"$f":"IF(Stock!$A20<>\"\",ROUND(Stock!$A20*AH20,0),\"\")","v":0},{"$f":"IF(Stock!$A20<>\"\",AF20+AI20,\"\")","v":-1200},{"$f":"IF(Stock!$A20<>\"\",AJ20*$G20,\"\")","v":0},{"$f":"IF(Stock!$A20<>\"\",Pilotage!P$26,\"\")","v":2},{"$f":"IF(Stock!$A20<>\"\",ROUND(AD20*AL20,0),\"\")","v":1600},{"$f":"IF(Stock!$A20<>\"\",$H20*AM20,\"\")","v":19200},{"$f":"IF(Stock!$A20<>\"\",AJ20-AM20-'Ventes Produits'!T469,\"\")","v":-2800},{"$f":"IF(Stock!$A20<>\"\",AO20*$G20,\"\")","v":0},{"$f":"IF(Stock!$A20<>\"\",Pilotage!$Q$35,\"\")","v":7.9640000000000013},{"$f":"IF(Stock!$A20<>\"\",ROUND(Stock!$A20*AQ20,0),\"\")","v":0},{"$f":"IF(Stock!$A20<>\"\",AO20+AR20,\"\")","v":-2800},{"$f":"IF(Stock!$A20<>\"\",AS20*$G20,\"\")","v":0},{"$f":"IF(Stock!$A20<>\"\",Pilotage!Q$26,\"\")","v":1},{"$f":"IF(Stock!$A20<>\"\",ROUND(AM20*AU20,0),\"\")","v":1600},{"$f":"IF(Stock!$A20<>\"\",$H20*AV20,\"\")","v":19200},{"$f":"IF(Stock!$A20<>\"\",AS20-AV20-'Ventes Produits'!W469,\"\")","v":-4400},{"$f":"IF(Stock!$A20<>\"\",AX20*$G20,\"\")","v":0},{"$f":"IF(Stock!$A20<>\"\",Pilotage!$R$35,\"\")","v":8.8880000000000017},{"$f":"IF(Stock!$A20<>\"\",ROUND(Stock!$A20*AZ20,0),\"\")","v":0},{"$f":"IF(Stock!$A20<>\"\",AX20+BA20,\"\")","v":-4400},{"$f":"IF(Stock!$A20<>\"\",BB20*$G20,\"\")","v":0},{"$f":"IF(Stock!$A20<>\"\",Pilotage!R$26,\"\")","v":1.1000000000000001},{"$f":"IF(Stock!$A20<>\"\",ROUND(AV20*BD20,0),\"\")","v":1760},{"$f":"IF(Stock!$A20<>\"\",$H20*BE20,\"\")","v":21120},{"$f":"IF(Stock!$A20<>\"\",BB20-BE20-'Ventes Produits'!Z469,\"\")","v":-6160},{"$f":"IF(Stock!$A20<>\"\",BG20*$G20,\"\")","v":0}]
[50,200,null,{"$f":"IF(Stock!D21<>\"\",Stock!D21,\"\")","v":"Article 14"},{"$f":"Stock!F21","v":130},null,{"$f":"IF(Stock!$A21<>\"\",IF(Stock!$A21>0,Stock!$K21/Stock!$A21,0),\"\")","v":0},{"$f":"Stock!F21*Pilotage!M$19","v":13},200,{"$f":"IF(Stock!$A21<>\"\",I21*$G21,\"\")","v":0},{"$f":"IF(Stock!$A21<>\"\",Pilotage!$M$26,\"\")","v":1},{"$f":"IF(Stock!$A21<>\"\",ROUND(I21*K21,0),\"\")","v":200},{"$f":"IF(Stock!$A21<>\"\",$H21*L21,\"\")","v":2600},{"$f":"IF(Stock!$A21<>\"\",I21-L21-'Ventes Produits'!K470,\"\")","v":0},{"$f":"IF(Stock!$A21<>\"\",N21*$G21,\"\")","v":0},{"$f":"IF(Stock!$A21<>\"\",Pilotage!$N$35,\"\")","v":2.2000000000000002},{"$f":"IF(Stock!$A21<>\"\",ROUND(Stock!$A21*P21,0),\"\")","v":0},{"$f":"IF(Stock!$A21<>\"\",N21+Q21,\"\")","v":0},{"$f":"IF(Stock!$A21<>\"\",R21*$G21,\"\")","v":0},{"$f":"IF(Stock!$A21<>\"\",Pilotage!N$26,\"\")","v":2},{"$f":"IF(Stock!$A21<>\"\",ROUND(L21*T21,0),\"\")","v":400},{"$f":"IF(Stock!$A21<>\"\",$H21*U21,\"\")","v":5200},{"$f":"IF(Stock!$A21<>\"\",R21-U21-'Ventes Produits'!N470,\"\")","v":-400},{"$f":"IF(Stock!$A21<>\"\",W21*$G21,\"\")","v":0},{"$f":"IF(Stock!$A21<>\"\",Pilotage!$O$35,\"\")","v":4.18},{"$f":"IF(Stock!$A21<>\"\",ROUND(Stock!$A21*Y21,0),\"\")","v":0},{"$f":"IF(Stock!$A21<>\"\",W21+Z21,\"\")","v":-400},{"$f":"IF(Stock!$A21<>\"\",AA21*$G21,\"\")","v":0},{"$f":"IF(Stock!$A21<>\"\",Pilotage!O$26,\"\")","v":2},{"$f":"IF(Stock!$A21<>\"\",ROUND(U21*AC21,0),\"\")","v":800},{"$f":"IF(Stock!$A21<>\"\",$H21*AD21,\"\")","v":10400},{"$f":"IF(Stock!$A21<>\"\",AA21-AD21-'Ventes Produits'!Q470,\"\")","v":-1200},{"$f":"IF(Stock!$A21<>\"\",AF21*$G21,\"\")","v":0},{"$f":"IF(Stock!$A21<>\"\",Pilotage!$P$35,\"\")","v":8.3820000000000014},{"$f":"IF(Stock!$A21<>\"\",ROUND(Stock!$A21*AH21,0),\"\")","v":0},{"$f":"IF(Stock!$A21<>\"\",AF21+AI21,\"\")","v":-1200},{"$f":"IF(Stock!$A21<>\"\",AJ21*$G21,\"\")","v":0},{"$f":"IF(Stock!$A21<>\"\",Pilotage!P$26,\"\")","v":2},{"$f":"IF(Stock!$A21<>\"\",ROUND(AD21*AL21,0),\"\")","v":1600},{"$f":"IF(Stock!$A21<>\"\",$H21*AM21,\"\")","v":20800},{"$f":"IF(Stock!$A21<>\"\",AJ21-AM21-'Ventes Produits'!T470,\"\")","v":-2800},{"$f":"IF(Stock!$A21<>\"\",AO21*$G21,\"\")","v":0},{"$f":"IF(Stock!$A21<>\"\",Pilotage!$Q$35,\"\")","v":7.9640000000000013},{"$f":"IF(Stock!$A21<>\"\",ROUND(Stock!$A21*AQ21,0),\"\")","v":0},{"$f":"IF(Stock!$A21<>\"\",AO21+AR21,\"\")","v":-2800},{"$f":"IF(Stock!$A21<>\"\",AS21*$G21,\"\")","v":0},{"$f":"IF(Stock!$A21<>\"\",Pilotage!Q$26,\"\")","v":1},{"$f":"IF(Stock!$A21<>\"\",ROUND(AM21*AU21,0),\"\")","v":1600},{"$f":"IF(Stock!$A21<>\"\",$H21*AV21,\"\")","v":20800},{"$f":"IF(Stock!$A21<>\"\",AS21-AV21-'Ventes Produits'!W470,\"\")","v":-4400},{"$f":"IF(Stock!$A21<>\"\",AX21*$G21,\"\")","v":0},{"$f":"IF(Stock!$A21<>\"\",Pilotage!$R$35,\"\")","v":8.8880000000000017},{"$f":"IF(Stock!$A21<>\"\",ROUND(Stock!$A21*AZ21,0),\"\")","v":0},{"$f":"IF(Stock!$A21<>\"\",AX21+BA21,\"\")","v":-4400},{"$f":"IF(Stock!$A21<>\"\",BB21*$G21,\"\")","v":0},{"$f":"IF(Stock!$A21<>\"\",Pilotage!R$26,\"\")","v":1.1000000000000001},{"$f":"IF(Stock!$A21<>\"\",ROUND(AV21*BD21,0),\"\")","v":1760},{"$f":"IF(Stock!$A21<>\"\",$H21*BE21,\"\")","v":22880},{"$f":"IF(Stock!$A21<>\"\",BB21-BE21-'Ventes Produits'!Z470,\"\")","v":-6160},{"$f":"IF(Stock!$A21<>\"\",BG21*$G21,\"\")","v":0}]
[50,200,null,{"$f":"IF(Stock!D22<>\"\",Stock!D22,\"\")","v":"Article 15"},{"$f":"Stock!F22","v":140},null,{"$f":"IF(Stock!$A22<>\"\",IF(Stock!$A22>0,Stock!$K22/Stock!$A22,0),\"\")","v":0},{"$f":"Stock!F22*Pilotage!M$19","v":14},200,{"$f":"IF(Stock!$A22<>\"\",I22*$G22,\"\")","v":0},{"$f":"IF(Stock!$A22<>\"\",Pilotage!$M$26,\"\")","v":1},{"$f":"IF(Stock!$A22<>\"\",ROUND(I22*K22,0),\"\")","v":200},{"$f":"IF(Stock!$A22<>\"\",$H22*L22,\"\")","v":2800},{"$f":"IF(Stock!$A22<>\"\",I22-L22-'Ventes Produits'!K471,\"\")","v":0},{"$f":"IF(Stock!$A22<>\"\",N22*$G22,\"\")","v":0},{"$f":"IF(Stock!$A22<>\"\",Pilotage!$N$35,\"\")","v":2.2000000000000002},{"$f":"IF(Stock!$A22<>\"\",ROUND(Stock!$A22*P22,0),\"\")","v":0},{"$f":"IF(Stock!$A22<>\"\",N22+Q22,\"\")","v":0},{"$f":"IF(Stock!$A22<>\"\",R22*$G22,\"\")","v":0},{"$f":"IF(Stock!$A22<>\"\",Pilotage!N$26,\"\")","v":2},{"$f":"IF(Stock!$A22<>\"\",ROUND(L22*T22,0),\"\")","v":400},{"$f":"IF(Stock!$A22<>\"\",$H22*U22,\"\")","v":5600},{"$f":"IF(Stock!$A22<>\"\",R22-U22-'Ventes Produits'!N471,\"\")","v":-400},{"$f":"IF(Stock!$A22<>\"\",W22*$G22,\"\")","v":0},{"$f":"IF(Stock!$A22<>\"\",Pilotage!$O$35,\"\")","v":4.18},{"$f":"IF(Stock!$A22<>\"\",ROUND(Stock!$A22*Y22,0),\"\")","v":0},{"$f":"IF(Stock!$A22<>\"\",W22+Z22,\"\")","v":-400},{"$f":"IF(Stock!$A22<>\"\",AA22*$G22,\"\")","v":0},{"$f":"IF(Stock!$A22<>\"\",Pilotage!O$26,\"\")","v":2},{"$f":"IF(Stock!$A22<>\"\",ROUND(U22*AC22,0),\"\")","v":800},{"$f":"IF(Stock!$A22<>\"\",$H22*AD22,\"\")","v":11200},{"$f":"IF(Stock!$A22<>\"\",AA22-AD22-'Ventes Produits'!Q471,\"\")","v":-1200},{"$f":"IF(Stock!$A22<>\"\",AF22*$G22,\"\")","v":0},{"$f":"IF(Stock!$A22<>\"\",Pilotage!$P$35,\"\")","v":8.3820000000000014},{"$f":"IF(Stock!$A22<>\"\",ROUND(Stock!$A22*AH22,0),\"\")","v":0},{"$f":"IF(Stock!$A22<>\"\",AF22+AI22,\"\")","v":-1200},{"$f":"IF(Stock!$A22<>\"\",AJ22*$G22,\"\")","v":0},{"$f":"IF(Stock!$A22<>\"\",Pilotage!P$26,\"\")","v":2},{"$f":"IF(Stock!$A22<>\"\",ROUND(AD22*AL22,0),\"\")","v":1600},{"$f":"IF(Stock!$A22<>\"\",$H22*AM22,\"\")","v":22400},{"$f":"IF(Stock!$A22<>\"\",AJ22-AM22-'Ventes Produits'!T471,\"\")","v":-2800},{"$f":"IF(Stock!$A22<>\"\",AO22*$G22,\"\")","v":0},{"$f":"IF(Stock!$A22<>\"\",Pilotage!$Q$35,\"\")","v":7.9640000000000013},{"$f":"IF(Stock!$A22<>\"\",ROUND(Stock!$A22*AQ22,0),\"\")","v":0},{"$f":"IF(Stock!$A22<>\"\",AO22+AR22,\"\")","v":-2800},{"$f":"IF(Stock!$A22<>\"\",AS22*$G22,\"\")","v":0},{"$f":"IF(Stock!$A22<>\"\",Pilotage!Q$26,\"\")","v":1},{"$f":"IF(Stock!$A22<>\"\",ROUND(AM22*AU22,0),\"\")","v":1600},{"$f":"IF(Stock!$A22<>\"\",$H22*AV22,\"\")","v":22400},{"$f":"IF(Stock!$A22<>\"\",AS22-AV22-'Ventes Produits'!W471,\"\")","v":-4400},{"$f":"IF(Stock!$A22<>\"\",AX22*$G22,\"\")","v":0},{"$f":"IF(Stock!$A22<>\"\",Pilotage!$R$35,\"\")","v":8.8880000000000017},{"$f":"IF(Stock!$A22<>\"\",ROUND(Stock!$A22*AZ22,0),\"\")","v":0},{"$f":"IF(Stock!$A22<>\"\",AX22+BA22,\"\")","v":-4400},{"$f":"IF(Stock!$A22<>\"\",BB22*$G22,\"\")","v":0},{"$f":"IF(Stock!$A22<>\"\",Pilotage!R$26,\"\")","v":1.1000000000000001},{"$f":"IF(Stock!$A22<>\"\",ROUND(AV22*BD22,0),\"\")","v":1760},{"$f":"IF(Stock!$A22<>\"\",$H22*BE22,\"\")","v":24640},{"$f":"IF(Stock!$A22<>\"\",BB22-BE22-'Ventes Produits'!Z471,\"\")","v":-6160},{"$f":"IF(Stock!$A22<>\"\",BG22*$G22,\"\")","v":0}]
[50,200,null,{"$f":"IF(Stock!D23<>\"\",Stock!D23,\"\")","v":"Article 16"},{"$f":"Stock!F23","v":150},null,{"$f":"IF(Stock!$A23<>\"\",IF(Stock!$A23>0,Stock!$K23/Stock!$A23,0),\"\")","v":0},{"$f":"Stock!F23*Pilotage!M$19","v":15},200,{"$f":"IF(Stock!$A23<>\"\",I23*$G23,\"\")","v":0},{"$f":"IF(Stock!$A23<>\"\",Pilotage!$M$26,\"\")","v":1},{"$f":"IF(Stock!$A23<>\"\",ROUND(I23*K23,0),\"\")","v":200},{"$f":"IF(Stock!$A23<>\"\",$H23*L23,\"\")","v":3000},{"$f":"IF(Stock!$A23<>\"\",I23-L23-'Ventes Produits'!K472,\"\")","v":0},{"$f":"IF(Stock!$A23<>\"\",N23*$G23,\"\")","v":0},{"$f":"IF(Stock!$A23<>\"\",Pilotage!$N$35,\"\")","v":2.2000000000000002},{"$f":"IF(Stock!$A23<>\"\",ROUND(Stock!$A23*P23,0),\"\")","v":0},{"$f":"IF(Stock!$A23<>\"\",N23+Q23,\"\")","v":0},{"$f":"IF(Stock!$A23<>\"\",R23*$G23,\"\")","v":0},{"$f":"IF(Stock!$A23<>\"\",Pilotage!N$26,\"\")","v":2},{"$f":"IF(Stock!$A23<>\"\",ROUND(L23*T23,0),\"\")","v":400},{"$f":"IF(Stock!$A23<>\"\",$H23*U23,\"\")","v":6000},{"$f":"IF(Stock!$A23<>\"\",R23-U23-'Ventes Produits'!N472,\"\")","v":-400},{"$f":"IF(Stock!$A23<>\"\",W23*$G23,\"\")","v":0},{"$f":"IF(Stock!$A23<>\"\",Pilotage!$O$35,\"\")","v":4.18},{"$f":"IF(Stock!$A23<>\"\",ROUND(Stock!$A23*Y23,0),\"\")","v":0},{"$f":"IF(Stock!$A23<>\"\",W23+Z23,\"\")","v":-400},{"$f":"IF(Stock!$A23<>\"\",AA23*$G23,\"\")","v":0},{"$f":"IF(Stock!$A23<>\"\",Pilotage!O$26,\"\")","v":2},{"$f":"IF(Stock!$A23<>\"\",ROUND(U23*AC23,0),\"\")","v":800},{"$f":"IF(Stock!$A23<>\"\",$H23*AD23,\"\")","v":12000},{"$f":"IF(Stock!$A23<>\"\",AA23-AD23-'Ventes Produits'!Q472,\"\")","v":-1200},{"$f":"IF(Stock!$A23<>\"\",AF23*$G23,\"\")","v":0},{"$f":"IF(Stock!$A23<>\"\",Pilotage!$P$35,\"\")","v":8.3820000000000014},{"$f":"IF(Stock!$A23<>\"\",ROUND(Stock!$A23*AH23,0),\"\")","v":0},{"$f":"IF(Stock!$A23<>\"\",AF23+AI23,\"\")","v":-1200},{"$f":"IF(Stock!$A23<>\"\",AJ23*$G23,\"\")","v":0},{"$f":"IF(Stock!$A23<>\"\",Pilotage!P$26,\"\")","v":2},{"$f":"IF(Stock!$A23<>\"\",ROUND(AD23*AL23,0),\"\")","v":1600},{"$f":"IF(Stock!$A23<>\"\",$H23*AM23,\"\")","v":24000},{"$f":"IF(Stock!$A23<>\"\",AJ23-AM23-'Ventes Produits'!T472,\"\")","v":-2800},{"$f":"IF(Stock!$A23<>\"\",AO23*$G23,\"\")","v":0},{"$f":"IF(Stock!$A23<>\"\",Pilotage!$Q$35,\"\")","v":7.9640000000000013},{"$f":"IF(Stock!$A23<>\"\",ROUND(Stock!$A23*AQ23,0),\"\")","v":0},{"$f":"IF(Stock!$A23<>\"\",AO23+AR23,\"\")","v":-2800},{"$f":"IF(Stock!$A23<>\"\",AS23*$G23,\"\")","v":0},{"$f":"IF(Stock!$A23<>\"\",Pilotage!Q$26,\"\")","v":1},{"$f":"IF(Stock!$A23<>\"\",ROUND(AM23*AU23,0),\"\")","v":1600},{"$f":"IF(Stock!$A23<>\"\",$H23*AV23,\"\")","v":24000},{"$f":"IF(Stock!$A23<>\"\",AS23-AV23-'Ventes Produits'!W472,\"\")","v":-4400},{"$f":"IF(Stock!$A23<>\"\",AX23*$G23,\"\")","v":0},{"$f":"IF(Stock!$A23<>\"\",Pilotage!$R$35,\"\")","v":8.8880000000000017},{"$f":"IF(Stock!$A23<>\"\",ROUND(Stock!$A23*AZ23,0),\"\")","v":0},{"$f":"IF(Stock!$A23<>\"\",AX23+BA23,\"\")","v":-4400},{"$f":"IF(Stock!$A23<>\"\",BB23*$G23,\"\")","v":0},{"$f":"IF(Stock!$A23<>\"\",Pilotage!R$26,\"\")","v":1.1000000000000001},{"$f":"IF(Stock!$A23<>\"\",ROUND(AV23*BD23,0),\"\")","v":1760},{"$f":"IF(Stock!$A23<>\"\",$H23*BE23,\"\")","v":26400},{"$f":"IF(Stock!$A23<>\"\",BB23-BE23-'Ventes Produits'!Z472,\"\")","v":-6160},{"$f":"IF(Stock!$A23<>\"\",BG23*$G23,\"\")","v":0}]
[50,200,null,{"$f":"IF(Stock!D24<>\"\",Stock!D24,\"\")","v":"Article 17"},{"$f":"Stock!F24","v":200},null,{"$f":"IF(Stock!$A24<>\"\",IF(Stock!$A24>0,Stock!$K24/Stock!$A24,0),\"\")","v":0},{"$f":"Stock!F24*Pilotage!M$19","v":20},200,{"$f":"IF(Stock!$A24<>\"\",I24*$G24,\"\")","v":0},{"$f":"IF(Stock!$A24<>\"\",Pilotage!$M$26,\"\")","v":1},{"$f":"IF(Stock!$A24<>\"\",ROUND(I24*K24,0),\"\")","v":200},{"$f":"IF(Stock!$A24<>\"\",$H24*L24,\"\")","v":4000},{"$f":"IF(Stock!$A24<>\"\",I24-L24-'Ventes Produits'!K473,\"\")","v":0},{"$f":"IF(Stock!$A24<>\"\",N24*$G24,\"\")","v":0},{"$f":"IF(Stock!$A24<>\"\",Pilotage!$N$35,\"\")","v":2.2000000000000002},{"$f":"IF(Stock!$A24<>\"\",ROUND(Stock!$A24*P24,0),\"\")","v":0},{"$f":"IF(Stock!$A24<>\"\",N24+Q24,\"\")","v":0},{"$f":"IF(Stock!$A24<>\"\",R24*$G24,\"\")","v":0},{"$f":"IF(Stock!$A24<>\"\",Pilotage!N$26,\"\")","v":2},{"$f":"IF(Stock!$A24<>\"\",ROUND(L24*T24,0),\"\")","v":400},{"$f":"IF(Stock!$A24<>\"\",$H24*U24,\"\")","v":8000},{"$f":"IF(Stock!$A24<>\"\",R24-U24-'Ventes Produits'!N473,\"\")","v":-400},{"$f":"IF(Stock!$A24<>\"\",W24*$G24,\"\")","v":0},{"$f":"IF(Stock!$A24<>\"\",Pilotage!$O$35,\"\")","v":4.18},{"$f":"IF(Stock!$A24<>\"\",ROUND(Stock!$A24*Y24,0),\"\")","v":0},{"$f":"IF(Stock!$A24<>\"\",W24+Z24,\"\")","v":-400},{"$f":"IF(Stock!$A24<>\"\",AA24*$G24,\"\")","v":0},{"$f":"IF(Stock!$A24<>\"\",Pilotage!O$26,\"\")","v":2},{"$f":"IF(Stock!$A24<>\"\",ROUND(U24*AC24,0),\"\")","v":800},{"$f":"IF(Stock!$A24<>\"\",$H24*AD24,\"\")","v":16000},{"$f":"IF(Stock!$A24<>\"\",AA24-AD24-'Ventes Produits'!Q473,\"\")","v":-1200},{"$f":"IF(Stock!$A24<>\"\",AF24*$G24,\"\")","v":0},{"$f":"IF(Stock!$A24<>\"\",Pilotage!$P$35,\"\")","v":8.3820000000000014},{"$f":"IF(Stock!$A24<>\"\",ROUND(Stock!$A24*AH24,0),\"\")","v":0},{"$f":"IF(Stock!$A24<>\"\",AF24+AI24,\"\")","v":-1200},{"$f":"IF(Stock!$A24<>\"\",AJ24*$G24,\"\")","v":0},{"$f":"IF(Stock!$A24<>\"\",Pilotage!P$26,\"\")","v":2},{"$f":"IF(Stock!$A24<>\"\",ROUND(AD24*AL24,0),\"\")","v":1600},{"$f":"IF(Stock!$A24<>\"\",$H24*AM24,\"\")","v":32000},{"$f":"IF(Stock!$A24<>\"\",AJ24-AM24-'Ventes Produits'!T473,\"\")","v":-2800},{"$f":"IF(Stock!$A24<>\"\",AO24*$G24,\"\")","v":0},{"$f":"IF(Stock!$A24<>\"\",Pilotage!$Q$35,\"\")","v":7.9640000000000013},{"$f":"IF(Stock!$A24<>\"\",ROUND(Stock!$A24*AQ24,0),\"\")","v":0},{"$f":"IF(Stock!$A24<>\"\",AO24+AR24,\"\")","v":-2800},{"$f":"IF(Stock!$A24<>\"\",AS24*$G24,\"\")","v":0},{"$f":"IF(Stock!$A24<>\"\",Pilotage!Q$26,\"\")","v":1},{"$f":"IF(Stock!$A24<>\"\",ROUND(AM24*AU24,0),\"\")","v":1600},{"$f":"IF(Stock!$A24<>\"\",$H24*AV24,\"\")","v":32000},{"$f":"IF(Stock!$A24<>\"\",AS24-AV24-'Ventes Produits'!W473,\"\")","v":-4400},{"$f":"IF(Stock!$A24<>\"\",AX24*$G24,\"\")","v":0},{"$f":"IF(Stock!$A24<>\"\",Pilotage!$R$35,\"\")","v":8.8880000000000017},{"$f":"IF(Stock!$A24<>\"\",ROUND(Stock!$A24*AZ24,0),\"\")","v":0},{"$f":"IF(Stock!$A24<>\"\",AX24+BA24,\"\")","v":-4400},{"$f":"IF(Stock!$A24<>\"\",BB24*$G24,\"\")","v":0},{"$f":"IF(Stock!$A24<>\"\",Pilotage!R$26,\"\")","v":1.1000000000000001},{"$f":"IF(Stock!$A24<>\"\",ROUND(AV24*BD24,0),\"\")","v":1760},{"$f":"IF(Stock!$A24<>\"\",$H24*BE24,\"\")","v":35200},{"$f":"IF(Stock!$A24<>\"\",BB24-BE24-'Ventes Produits'!Z473,\"\")","v":-6160},{"$f":"IF(Stock!$A24<>\"\",BG24*$G24,\"\")","v":0}]
[50,200,null,{"$f":"IF(Stock!D25<>\"\",Stock!D25,\"\")","v":"Article 18"},{"$f":"Stock!F25","v":250},null,{"$f":"IF(Stock!$A25<>\"\",IF(Stock!$A25>0,Stock!$K25/Stock!$A25,0),\"\")","v":0},{"$f":"Stock!F25*Pilotage!M$19","v":25},200,{"$f":"IF(Stock!$A25<>\"\",I25*$G25,\"\")","v":0},{"$f":"IF(Stock!$A25<>\"\",Pilotage!$M$26,\"\")","v":1},{"$f":"IF(Stock!$A25<>\"\",ROUND(I25*K25,0),\"\")","v":200},{"$f":"IF(Stock!$A25<>\"\",$H25*L25,\"\")","v":5000},{"$f":"IF(Stock!$A25<>\"\",I25-L25-'Ventes Produits'!K474,\"\")","v":0},{"$f":"IF(Stock!$A25<>\"\",N25*$G25,\"\")","v":0},{"$f":"IF(Stock!$A25<>\"\",Pilotage!$N$35,\"\")","v":2.2000000000000002},{"$f":"IF(Stock!$A25<>\"\",ROUND(Stock!$A25*P25,0),\"\")","v":0},{"$f":"IF(Stock!$A25<>\"\",N25+Q25,\"\")","v":0},{"$f":"IF(Stock!$A25<>\"\",R25*$G25,\"\")","v":0},{"$f":"IF(Stock!$A25<>\"\",Pilotage!N$26,\"\")","v":2},{"$f":"IF(Stock!$A25<>\"\",ROUND(L25*T25,0),\"\")","v":400},{"$f":"IF(Stock!$A25<>\"\",$H25*U25,\"\")","v":10000},{"$f":"IF(Stock!$A25<>\"\",R25-U25-'Ventes Produits'!N474,\"\")","v":-400},{"$f":"IF(Stock!$A25<>\"\",W25*$G25,\"\")","v":0},{"$f":"IF(Stock!$A25<>\"\",Pilotage!$O$35,\"\")","v":4.18},{"$f":"IF(Stock!$A25<>\"\",ROUND(Stock!$A25*Y25,0),\"\")","v":0},{"$f":"IF(Stock!$A25<>\"\",W25+Z25,\"\")","v":-400},{"$f":"IF(Stock!$A25<>\"\",AA25*$G25,\"\")","v":0},{"$f":"IF(Stock!$A25<>\"\",Pilotage!O$26,\"\")","v":2},{"$f":"IF(Stock!$A25<>\"\",ROUND(U25*AC25,0),\"\")","v":800},{"$f":"IF(Stock!$A25<>\"\",$H25*AD25,\"\")","v":20000},{"$f":"IF(Stock!$A25<>\"\",AA25-AD25-'Ventes Produits'!Q474,\"\")","v":-1200},{"$f":"IF(Stock!$A25<>\"\",AF25*$G25,\"\")","v":0},{"$f":"IF(Stock!$A25<>\"\",Pilotage!$P$35,\"\")","v":8.3820000000000014},{"$f":"IF(Stock!$A25<>\"\",ROUND(Stock!$A25*AH25,0),\"\")","v":0},{"$f":"IF(Stock!$A25<>\"\",AF25+AI25,\"\")","v":-1200},{"$f":"IF(Stock!$A25<>\"\",AJ25*$G25,\"\")","v":0},{"$f":"IF(Stock!$A25<>\"\",Pilotage!P$26,\"\")","v":2},{"$f":"IF(Stock!$A25<>\"\",ROUND(AD25*AL25,0),\"\")","v":1600},{"$f":"IF(Stock!$A25<>\"\",$H25*AM25,\"\")","v":40000},{"$f":"IF(Stock!$A25<>\"\",AJ25-AM25-'Ventes Produits'!T474,\"\")","v":-2800},{"$f":"IF(Stock!$A25<>\"\",AO25*$G25,\"\")","v":0},{"$f":"IF(Stock!$A25<>\"\",Pilotage!$Q$35,\"\")","v":7.9640000000000013},{"$f":"IF(Stock!$A25<>\"\",ROUND(Stock!$A25*AQ25,0),\"\")","v":0},{"$f":"IF(Stock!$A25<>\"\",AO25+AR25,\"\")","v":-2800},{"$f":"IF(Stock!$A25<>\"\",AS25*$G25,\"\")","v":0},{"$f":"IF(Stock!$A25<>\"\",Pilotage!Q$26,\"\")","v":1},{"$f":"IF(Stock!$A25<>\"\",ROUND(AM25*AU25,0),\"\")","v":1600},{"$f":"IF(Stock!$A25<>\"\",$H25*AV25,\"\")","v":40000},{"$f":"IF(Stock!$A25<>\"\",AS25-AV25-'Ventes Produits'!W474,\"\")","v":-4400},{"$f":"IF(Stock!$A25<>\"\",AX25*$G25,\"\")","v":0},{"$f":"IF(Stock!$A25<>\"\",Pilotage!$R$35,\"\")","v":8.8880000000000017},{"$f":"IF(Stock!$A25<>\"\",ROUND(Stock!$A25*AZ25,0),\"\")","v":0},{"$f":"IF(Stock!$A25<>\"\",AX25+BA25,\"\")","v":-4400},{"$f":"IF(Stock!$A25<>\"\",BB25*$G25,\"\")","v":0},{"$f":"IF(Stock!$A25<>\"\",Pilotage!R$26,\"\")","v":1.1000000000000001},{"$f":"IF(Stock!$A25<>\"\",ROUND(AV25*BD25,0),\"\")","v":1760},{"$f":"IF(Stock!$A25<>\"\",$H25*BE25,\"\")","v":44000},{"$f":"IF(Stock!$A25<>\"\",BB25-BE25-'Ventes Produits'!Z474,\"\")","v":-6160},{"$f":"IF(Stock!$A25<>\"\",BG25*$G25,\"\")","v":0}]
[50,200,null,{"$f":"IF(Stock!D26<>\"\",Stock!D26,\"\")","v":"Article 19"},{"$f":"Stock!F26","v":300},null,{"$f":"IF(Stock!$A26<>\"\",IF(Stock!$A26>0,Stock!$K26/Stock!$A26,0),\"\")","v":0},{"$f":"Stock!F26*Pilotage!M$19","v":30},200,{"$f":"IF(Stock!$A26<>\"\",I26*$G26,\"\")","v":0},{"$f":"IF(Stock!$A26<>\"\",Pilotage!$M$26,\"\")","v":1},{"$f":"IF(Stock!$A26<>\"\",ROUND(I26*K26,0),\"\")","v":200},{"$f":"IF(Stock!$A26<>\"\",$H26*L26,\"\")","v":6000},{"$f":"IF(Stock!$A26<>\"\",I26-L26-'Ventes Produits'!K475,\"\")","v":0},{"$f":"IF(Stock!$A26<>\"\",N26*$G26,\"\")","v":0},{"$f":"IF(Stock!$A26<>\"\",Pilotage!$N$35,\"\")","v":2.2000000000000002},{"$f":"IF(Stock!$A26<>\"\",ROUND(Stock!$A26*P26,0),\"\")","v":0},{"$f":"IF(Stock!$A26<>\"\",N26+Q26,\"\")","v":0},{"$f":"IF(Stock!$A26<>\"\",R26*$G26,\"\")","v":0},{"$f":"IF(Stock!$A26<>\"\",Pilotage!N$26,\"\")","v":2},{"$f":"IF(Stock!$A26<>\"\",ROUND(L26*T26,0),\"\")","v":400},{"$f":"IF(Stock!$A26<>\"\",$H26*U26,\"\")","v":12000},{"$f":"IF(Stock!$A26<>\"\",R26-U26-'Ventes Produits'!N475,\"\")","v":-400},{"$f":"IF(Stock!$A26<>\"\",W26*$G26,\"\")","v":0},{"$f":"IF(Stock!$A26<>\"\",Pilotage!$O$35,\"\")","v":4.18},{"$f":"IF(Stock!$A26<>\"\",ROUND(Stock!$A26*Y26,0),\"\")","v":0},{"$f":"IF(Stock!$A26<>\"\",W26+Z26,\"\")","v":-400},{"$f":"IF(Stock!$A26<>\"\",AA26*$G26,\"\")","v":0},{"$f":"IF(Stock!$A26<>\"\",Pilotage!O$26,\"\")","v":2},{"$f":"IF(Stock!$A26<>\"\",ROUND(U26*AC26,0),\"\")","v":800},{"$f":"IF(Stock!$A26<>\"\",$H26*AD26,\"\")","v":24000},{"$f":"IF(Stock!$A26<>\"\",AA26-AD26-'Ventes Produits'!Q475,\"\")","v":-1200},{"$f":"IF(Stock!$A26<>\"\",AF26*$G26,\"\")","v":0},{"$f":"IF(Stock!$A26<>\"\",Pilotage!$P$35,\"\")","v":8.3820000000000014},{"$f":"IF(Stock!$A26<>\"\",ROUND(Stock!$A26*AH26,0),\"\")","v":0},{"$f":"IF(Stock!$A26<>\"\",AF26+AI26,\"\")","v":-1200},{"$f":"IF(Stock!$A26<>\"\",AJ26*$G26,\"\")","v":0},{"$f":"IF(Stock!$A26<>\"\",Pilotage!P$26,\"\")","v":2},{"$f":"IF(Stock!$A26<>\"\",ROUND(AD26*AL26,0),\"\")","v":1600},{"$f":"IF(Stock!$A26<>\"\",$H26*AM26,\"\")","v":48000},{"$f":"IF(Stock!$A26<>\"\",AJ26-AM26-'Ventes Produits'!T475,\"\")","v":-2800},{"$f":"IF(Stock!$A26<>\"\",AO26*$G26,\"\")","v":0},{"$f":"IF(Stock!$A26<>\"\",Pilotage!$Q$35,\"\")","v":7.9640000000000013},{"$f":"IF(Stock!$A26<>\"\",ROUND(Stock!$A26*AQ26,0),\"\")","v":0},{"$f":"IF(Stock!$A26<>\"\",AO26+AR26,\"\")","v":-2800},{"$f":"IF(Stock!$A26<>\"\",AS26*$G26,\"\")","v":0},{"$f":"IF(Stock!$A26<>\"\",Pilotage!Q$26,\"\")","v":1},{"$f":"IF(Stock!$A26<>\"\",ROUND(AM26*AU26,0),\"\")","v":1600},{"$f":"IF(Stock!$A26<>\"\",$H26*AV26,\"\")","v":48000},{"$f":"IF(Stock!$A26<>\"\",AS26-AV26-'Ventes Produits'!W475,\"\")","v":-4400},{"$f":"IF(Stock!$A26<>\"\",AX26*$G26,\"\")","v":0},{"$f":"IF(Stock!$A26<>\"\",Pilotage!$R$35,\"\")","v":8.8880000000000017},{"$f":"IF(Stock!$A26<>\"\",ROUND(Stock!$A26*AZ26,0),\"\")","v":0},{"$f":"IF(Stock!$A26<>\"\",AX26+BA26,\"\")","v":-4400},{"$f":"IF(Stock!$A26<>\"\",BB26*$G26,\"\")","v":0},{"$f":"IF(Stock!$A26<>\"\",Pilotage!R$26,\"\")","v":1.1000000000000001},{"$f":"IF(Stock!$A26<>\"\",ROUND(AV26*BD26,0),\"\")","v":1760},{"$f":"IF(Stock!$A26<>\"\",$H26*BE26,\"\")","v":52800},{"$f":"IF(Stock!$A26<>\"\",BB26-BE26-'Ventes Produits'!Z475,\"\")","v":-6160},{"$f":"IF(Stock!$A26<>\"\",BG26*$G26,\"\")","v":0}]
[50,200,null,{"$f":"IF(Stock!D27<>\"\",Stock!D27,\"\")","v":"Article 20"},{"$f":"Stock!F27","v":350},null,{"$f":"IF(Stock!$A27<>\"\",IF(Stock!$A27>0,Stock!$K27/Stock!$A27,0),\"\")","v":0},{"$f":"Stock!F27*Pilotage!M$19","v":35},200,{"$f":"IF(Stock!$A27<>\"\",I27*$G27,\"\")","v":0},{"$f":"IF(Stock!$A27<>\"\",Pilotage!$M$26,\"\")","v":1},{"$f":"IF(Stock!$A27<>\"\",ROUND(I27*K27,0),\"\")","v":200},{"$f":"IF(Stock!$A27<>\"\",$H27*L27,\"\")","v":7000},{"$f":"IF(Stock!$A27<>\"\",I27-L27-'Ventes Produits'!K476,\"\")","v":0},{"$f":"IF(Stock!$A27<>\"\",N27*$G27,\"\")","v":0},{"$f":"IF(Stock!$A27<>\"\",Pilotage!$N$35,\"\")","v":2.2000000000000002},{"$f":"IF(Stock!$A27<>\"\",ROUND(Stock!$A27*P27,0),\"\")","v":0},{"$f":"IF(Stock!$A27<>\"\",N27+Q27,\"\")","v":0},{"$f":"IF(Stock!$A27<>\"\",R27*$G27,\"\")","v":0},{"$f":"IF(Stock!$A27<>\"\",Pilotage!N$26,\"\")","v":2},{"$f":"IF(Stock!$A27<>\"\",ROUND(L27*T27,0),\"\")","v":400},{"$f":"IF(Stock!$A27<>\"\",$H27*U27,\"\")","v":14000},{"$f":"IF(Stock!$A27<>\"\",R27-U27-'Ventes Produits'!N476,\"\")","v":-400},{"$f":"IF(Stock!$A27<>\"\",W27*$G27,\"\")","v":0},{"$f":"IF(Stock!$A27<>\"\",Pilotage!$O$35,\"\")","v":4.18},{"$f":"IF(Stock!$A27<>\"\",ROUND(Stock!$A27*Y27,0),\"\")","v":0},{"$f":"IF(Stock!$A27<>\"\",W27+Z27,\"\")","v":-400},{"$f":"IF(Stock!$A27<>\"\",AA27*$G27,\"\")","v":0},{"$f":"IF(Stock!$A27<>\"\",Pilotage!O$26,\"\")","v":2},{"$f":"IF(Stock!$A27<>\"\",ROUND(U27*AC27,0),\"\")","v":800},{"$f":"IF(Stock!$A27<>\"\",$H27*AD27,\"\")","v":28000},{"$f":"IF(Stock!$A27<>\"\",AA27-AD27-'Ventes Produits'!Q476,\"\")","v":-1200},{"$f":"IF(Stock!$A27<>\"\",AF27*$G27,\"\")","v":0},{"$f":"IF(Stock!$A27<>\"\",Pilotage!$P$35,\"\")","v":8.3820000000000014},{"$f":"IF(Stock!$A27<>\"\",ROUND(Stock!$A27*AH27,0),\"\")","v":0},{"$f":"IF(Stock!$A27<>\"\",AF27+AI27,\"\")","v":-1200},{"$f":"IF(Stock!$A27<>\"\",AJ27*$G27,\"\")","v":0},{"$f":"IF(Stock!$A27<>\"\",Pilotage!P$26,\"\")","v":2},{"$f":"IF(Stock!$A27<>\"\",ROUND(AD27*AL27,0),\"\")","v":1600},{"$f":"IF(Stock!$A27<>\"\",$H27*AM27,\"\")","v":56000},{"$f":"IF(Stock!$A27<>\"\",AJ27-AM27-'Ventes Produits'!T476,\"\")","v":-2800},{"$f":"IF(Stock!$A27<>\"\",AO27*$G27,\"\")","v":0},{"$f":"IF(Stock!$A27<>\"\",Pilotage!$Q$35,\"\")","v":7.9640000000000013},{"$f":"IF(Stock!$A27<>\"\",ROUND(Stock!$A27*AQ27,0),\"\")","v":0},{"$f":"IF(Stock!$A27<>\"\",AO27+AR27,\"\")","v":-2800},{"$f":"IF(Stock!$A27<>\"\",AS27*$G27,\"\")","v":0},{"$f":"IF(Stock!$A27<>\"\",Pilotage!Q$26,\"\")","v":1},{"$f":"IF(Stock!$A27<>\"\",ROUND(AM27*AU27,0),\"\")","v":1600},{"$f":"IF(Stock!$A27<>\"\",$H27*AV27,\"\")","v":56000},{"$f":"IF(Stock!$A27<>\"\",AS27-AV27-'Ventes Produits'!W476,\"\")","v":-4400},{"$f":"IF(Stock!$A27<>\"\",AX27*$G27,\"\")","v":0},{"$f":"IF(Stock!$A27<>\"\",Pilotage!$R$35,\"\")","v":8.8880000000000017},{"$f":"IF(Stock!$A27<>\"\",ROUND(Stock!$A27*AZ27,0),\"\")","v":0},{"$f":"IF(Stock!$A27<>\"\",AX27+BA27,\"\")","v":-4400},{"$f":"IF(Stock!$A27<>\"\",BB27*$G27,\"\")","v":0},{"$f":"IF(Stock!$A27<>\"\",Pilotage!R$26,\"\")","v":1.1000000000000001},{"$f":"IF(Stock!$A27<>\"\",ROUND(AV27*BD27,0),\"\")","v":1760},{"$f":"IF(Stock!$A27<>\"\",$H27*BE27,\"\")","v":61600},{"$f":"IF(Stock!$A27<>\"\",BB27-BE27-'Ventes Produits'!Z476,\"\")","v":-6160},{"$f":"IF(Stock!$A27<>\"\",BG27*$G27,\"\")","v":0}]
[50,200,null,{"$f":"IF(Stock!D28<>\"\",Stock!D28,\"\")","v":"Article 21"},{"$f":"Stock!F28","v":400},null,{"$f":"IF(Stock!$A28<>\"\",IF(Stock!$A28>0,Stock!$K28/Stock!$A28,0),\"\")","v":0},{"$f":"Stock!F28*Pilotage!M$19","v":40},200,{"$f":"IF(Stock!$A28<>\"\",I28*$G28,\"\")","v":0},{"$f":"IF(Stock!$A28<>\"\",Pilotage!$M$26,\"\")","v":1},{"$f":"IF(Stock!$A28<>\"\",ROUND(I28*K28,0),\"\")","v":200},{"$f":"IF(Stock!$A28<>\"\",$H28*L28,\"\")","v":8000},{"$f":"IF(Stock!$A28<>\"\",I28-L28-'Ventes Produits'!K477,\"\")","v":0},{"$f":"IF(Stock!$A28<>\"\",N28*$G28,\"\")","v":0},{"$f":"IF(Stock!$A28<>\"\",Pilotage!$N$35,\"\")","v":2.2000000000000002},{"$f":"IF(Stock!$A28<>\"\",ROUND(Stock!$A28*P28,0),\"\")","v":0},{"$f":"IF(Stock!$A28<>\"\",N28+Q28,\"\")","v":0},{"$f":"IF(Stock!$A28<>\"\",R28*$G28,\"\")","v":0},{"$f":"IF(Stock!$A28<>\"\",Pilotage!N$26,\"\")","v":2},{"$f":"IF(Stock!$A28<>\"\",ROUND(L28*T28,0),\"\")","v":400},{"$f":"IF(Stock!$A28<>\"\",$H28*U28,\"\")","v":16000},{"$f":"IF(Stock!$A28<>\"\",R28-U28-'Ventes Produits'!N477,\"\")","v":-400},{"$f":"IF(Stock!$A28<>\"\",W28*$G28,\"\")","v":0},{"$f":"IF(Stock!$A28<>\"\",Pilotage!$O$35,\"\")","v":4.18},{"$f":"IF(Stock!$A28<>\"\",ROUND(Stock!$A28*Y28,0),\"\")","v":0},{"$f":"IF(Stock!$A28<>\"\",W28+Z28,\"\")","v":-400},{"$f":"IF(Stock!$A28<>\"\",AA28*$G28,\"\")","v":0},{"$f":"IF(Stock!$A28<>\"\",Pilotage!O$26,\"\")","v":2},{"$f":"IF(Stock!$A28<>\"\",ROUND(U28*AC28,0),\"\")","v":800},{"$f":"IF(Stock!$A28<>\"\",$H28*AD28,\"\")","v":32000},{"$f":"IF(Stock!$A28<>\"\",AA28-AD28-'Ventes Produits'!Q477,\"\")","v":-1200},{"$f":"IF(Stock!$A28<>\"\",AF28*$G28,\"\")","v":0},{"$f":"IF(Stock!$A28<>\"\",Pilotage!$P$35,\"\")","v":8.3820000000000014},{"$f":"IF(Stock!$A28<>\"\",ROUND(Stock!$A28*AH28,0),\"\")","v":0},{"$f":"IF(Stock!$A28<>\"\",AF28+AI28,\"\")","v":-1200},{"$f":"IF(Stock!$A28<>\"\",AJ28*$G28,\"\")","v":0},{"$f":"IF(Stock!$A28<>\"\",Pilotage!P$26,\"\")","v":2},{"$f":"IF(Stock!$A28<>\"\",ROUND(AD28*AL28,0),\"\")","v":1600},{"$f":"IF(Stock!$A28<>\"\",$H28*AM28,\"\")","v":64000},{"$f":"IF(Stock!$A28<>\"\",AJ28-AM28-'Ventes Produits'!T477,\"\")","v":-2800},{"$f":"IF(Stock!$A28<>\"\",AO28*$G28,\"\")","v":0},{"$f":"IF(Stock!$A28<>\"\",Pilotage!$Q$35,\"\")","v":7.9640000000000013},{"$f":"IF(Stock!$A28<>\"\",ROUND(Stock!$A28*AQ28,0),\"\")","v":0},{"$f":"IF(Stock!$A28<>\"\",AO28+AR28,\"\")","v":-2800},{"$f":"IF(Stock!$A28<>\"\",AS28*$G28,\"\")","v":0},{"$f":"IF(Stock!$A28<>\"\",Pilotage!Q$26,\"\")","v":1},{"$f":"IF(Stock!$A28<>\"\",ROUND(AM28*AU28,0),\"\")","v":1600},{"$f":"IF(Stock!$A28<>\"\",$H28*AV28,\"\")","v":64000},{"$f":"IF(Stock!$A28<>\"\",AS28-AV28-'Ventes Produits'!W477,\"\")","v":-4400},{"$f":"IF(Stock!$A28<>\"\",AX28*$G28,\"\")","v":0},{"$f":"IF(Stock!$A28<>\"\",Pilotage!$R$35,\"\")","v":8.8880000000000017},{"$f":"IF(Stock!$A28<>\"\",ROUND(Stock!$A28*AZ28,0),\"\")","v":0},{"$f":"IF(Stock!$A28<>\"\",AX28+BA28,\"\")","v":-4400},{"$f":"IF(Stock!$A28<>\"\",BB28*$G28,\"\")","v":0},{"$f":"IF(Stock!$A28<>\"\",Pilotage!R$26,\"\")","v":1.1000000000000001},{"$f":"IF(Stock!$A28<>\"\",ROUND(AV28*BD28,0),\"\")","v":1760},{"$f":"IF(Stock!$A28<>\"\",$H28*BE28,\"\")","v":70400},{"$f":"IF(Stock!$A28<>\"\",BB28-BE28-'Ventes Produits'!Z477,\"\")","v":-6160},{"$f":"IF(Stock!$A28<>\"\",BG28*$G28,\"\")","v":0}]
[50,200,null,{"$f":"IF(Stock!D29<>\"\",Stock!D29,\"\")","v":"Article 22"},{"$f":"Stock!F29","v":450},null,{"$f":"IF(Stock!$A29<>\"\",IF(Stock!$A29>0,Stock!$K29/Stock!$A29,0),\"\")","v":0},{"$f":"Stock!F29*Pilotage!M$19","v":45},200,{"$f":"IF(Stock!$A29<>\"\",I29*$G29,\"\")","v":0},{"$f":"IF(Stock!$A29<>\"\",Pilotage!$M$26,\"\")","v":1},{"$f":"IF(Stock!$A29<>\"\",ROUND(I29*K29,0),\"\")","v":200},{"$f":"IF(Stock!$A29<>\"\",$H29*L29,\"\")","v":9000},{"$f":"IF(Stock!$A29<>\"\",I29-L29-'Ventes Produits'!K478,\"\")","v":0},{"$f":"IF(Stock!$A29<>\"\",N29*$G29,\"\")","v":0},{"$f":"IF(Stock!$A29<>\"\",Pilotage!$N$35,\"\")","v":2.2000000000000002},{"$f":"IF(Stock!$A29<>\"\",ROUND(Stock!$A29*P29,0),\"\")","v":0},{"$f":"IF(Stock!$A29<>\"\",N29+Q29,\"\")","v":0},{"$f":"IF(Stock!$A29<>\"\",R29*$G29,\"\")","v":0},{"$f":"IF(Stock!$A29<>\"\",Pilotage!N$26,\"\")","v":2},{"$f":"IF(Stock!$A29<>\"\",ROUND(L29*T29,0),\"\")","v":400},{"$f":"IF(Stock!$A29<>\"\",$H29*U29,\"\")","v":18000},{"$f":"IF(Stock!$A29<>\"\",R29-U29-'Ventes Produits'!N478,\"\")","v":-400},{"$f":"IF(Stock!$A29<>\"\",W29*$G29,\"\")","v":0},{"$f":"IF(Stock!$A29<>\"\",Pilotage!$O$35,\"\")","v":4.18},{"$f":"IF(Stock!$A29<>\"\",ROUND(Stock!$A29*Y29,0),\"\")","v":0},{"$f":"IF(Stock!$A29<>\"\",W29+Z29,\"\")","v":-400},{"$f":"IF(Stock!$A29<>\"\",AA29*$G29,\"\")","v":0},{"$f":"IF(Stock!$A29<>\"\",Pilotage!O$26,\"\")","v":2},{"$f":"IF(Stock!$A29<>\"\",ROUND(U29*AC29,0),\"\")","v":800},{"$f":"IF(Stock!$A29<>\"\",$H29*AD29,\"\")","v":36000},{"$f":"IF(Stock!$A29<>\"\",AA29-AD29-'Ventes Produits'!Q478,\"\")","v":-1200},{"$f":"IF(Stock!$A29<>\"\",AF29*$G29,\"\")","v":0},{"$f":"IF(Stock!$A29<>\"\",Pilotage!$P$35,\"\")","v":8.3820000000000014},{"$f":"IF(Stock!$A29<>\"\",ROUND(Stock!$A29*AH29,0),\"\")","v":0},{"$f":"IF(Stock!$A29<>\"\",AF29+AI29,\"\")","v":-1200},{"$f":"IF(Stock!$A29<>\"\",AJ29*$G29,\"\")","v":0},{"$f":"IF(Stock!$A29<>\"\",Pilotage!P$26,\"\")","v":2},{"$f":"IF(Stock!$A29<>\"\",ROUND(AD29*AL29,0),\"\")","v":1600},{"$f":"IF(Stock!$A29<>\"\",$H29*AM29,\"\")","v":72000},{"$f":"IF(Stock!$A29<>\"\",AJ29-AM29-'Ventes Produits'!T478,\"\")","v":-2800},{"$f":"IF(Stock!$A29<>\"\",AO29*$G29,\"\")","v":0},{"$f":"IF(Stock!$A29<>\"\",Pilotage!$Q$35,\"\")","v":7.9640000000000013},{"$f":"IF(Stock!$A29<>\"\",ROUND(Stock!$A29*AQ29,0),\"\")","v":0},{"$f":"IF(Stock!$A29<>\"\",AO29+AR29,\"\")","v":-2800},{"$f":"IF(Stock!$A29<>\"\",AS29*$G29,\"\")","v":0},{"$f":"IF(Stock!$A29<>\"\",Pilotage!Q$26,\"\")","v":1},{"$f":"IF(Stock!$A29<>\"\",ROUND(AM29*AU29,0),\"\")","v":1600},{"$f":"IF(Stock!$A29<>\"\",$H29*AV29,\"\")","v":72000},{"$f":"IF(Stock!$A29<>\"\",AS29-AV29-'Ventes Produits'!W478,\"\")","v":-4400},{"$f":"IF(Stock!$A29<>\"\",AX29*$G29,\"\")","v":0},{"$f":"IF(Stock!$A29<>\"\",Pilotage!$R$35,\"\")","v":8.8880000000000017},{"$f":"IF(Stock!$A29<>\"\",ROUND(Stock!$A29*AZ29,0),\"\")","v":0},{"$f":"IF(Stock!$A29<>\"\",AX29+BA29,\"\")","v":-4400},{"$f":"IF(Stock!$A29<>\"\",BB29*$G29,\"\")","v":0},{"$f":"IF(Stock!$A29<>\"\",Pilotage!R$26,\"\")","v":1.1000000000000001},{"$f":"IF(Stock!$A29<>\"\",ROUND(AV29*BD29,0),\"\")","v":1760},{"$f":"IF(Stock!$A29<>\"\",$H29*BE29,\"\")","v":79200},{"$f":"IF(Stock!$A29<>\"\",BB29-BE29-'Ventes Produits'!Z478,\"\")","v":-6160},{"$f":"IF(Stock!$A29<>\"\",BG29*$G29,\"\")","v":0}]
[50,200,null,{"$f":"IF(Stock!D30<>\"\",Stock!D30,\"\")","v":"Article 23"},{"$f":"Stock!F30","v":500},null,{"$f":"IF(Stock!$A30<>\"\",IF(Stock!$A30>0,Stock!$K30/Stock!$A30,0),\"\")","v":0},{"$f":"Stock!F30*Pilotage!M$19","v":50},200,{"$f":"IF(Stock!$A30<>\"\",I30*$G30,\"\")","v":0},{"$f":"IF(Stock!$A30<>\"\",Pilotage!$M$26,\"\")","v":1},{"$f":"IF(Stock!$A30<>\"\",ROUND(I30*K30,0),\"\")","v":200},{"$f":"IF(Stock!$A30<>\"\",$H30*L30,\"\")","v":10000},{"$f":"IF(Stock!$A30<>\"\",I30-L30-'Ventes Produits'!K479,\"\")","v":0},{"$f":"IF(Stock!$A30<>\"\",N30*$G30,\"\")","v":0},{"$f":"IF(Stock!$A30<>\"\",Pilotage!$N$35,\"\")","v":2.2000000000000002},{"$f":"IF(Stock!$A30<>\"\",ROUND(Stock!$A30*P30,0),\"\")","v":0},{"$f":"IF(Stock!$A30<>\"\",N30+Q30,\"\")","v":0},{"$f":"IF(Stock!$A30<>\"\",R30*$G30,\"\")","v":0},{"$f":"IF(Stock!$A30<>\"\",Pilotage!N$26,\"\")","v":2},{"$f":"IF(Stock!$A30<>\"\",ROUND(L30*T30,0),\"\")","v":400},{"$f":"IF(Stock!$A30<>\"\",$H30*U30,\"\")","v":20000},{"$f":"IF(Stock!$A30<>\"\",R30-U30-'Ventes Produits'!N479,\"\")","v":-400},{"$f":"IF(Stock!$A30<>\"\",W30*$G30,\"\")","v":0},{"$f":"IF(Stock!$A30<>\"\",Pilotage!$O$35,\"\")","v":4.18},{"$f":"IF(Stock!$A30<>\"\",ROUND(Stock!$A30*Y30,0),\"\")","v":0},{"$f":"IF(Stock!$A30<>\"\",W30+Z30,\"\")","v":-400},{"$f":"IF(Stock!$A30<>\"\",AA30*$G30,\"\")","v":0},{"$f":"IF(Stock!$A30<>\"\",Pilotage!O$26,\"\")","v":2},{"$f":"IF(Stock!$A30<>\"\",ROUND(U30*AC30,0),\"\")","v":800},{"$f":"IF(Stock!$A30<>\"\",$H30*AD30,\"\")","v":40000},{"$f":"IF(Stock!$A30<>\"\",AA30-AD30-'Ventes Produits'!Q479,\"\")","v":-1200},{"$f":"IF(Stock!$A30<>\"\",AF30*$G30,\"\")","v":0},{"$f":"IF(Stock!$A30<>\"\",Pilotage!$P$35,\"\")","v":8.3820000000000014},{"$f":"IF(Stock!$A30<>\"\",ROUND(Stock!$A30*AH30,0),\"\")","v":0},{"$f":"IF(Stock!$A30<>\"\",AF30+AI30,\"\")","v":-1200},{"$f":"IF(Stock!$A30<>\"\",AJ30*$G30,\"\")","v":0},{"$f":"IF(Stock!$A30<>\"\",Pilotage!P$26,\"\")","v":2},{"$f":"IF(Stock!$A30<>\"\",ROUND(AD30*AL30,0),\"\")","v":1600},{"$f":"IF(Stock!$A30<>\"\",$H30*AM30,\"\")","v":80000},{"$f":"IF(Stock!$A30<>\"\",AJ30-AM30-'Ventes Produits'!T479,\"\")","v":-2800},{"$f":"IF(Stock!$A30<>\"\",AO30*$G30,\"\")","v":0},{"$f":"IF(Stock!$A30<>\"\",Pilotage!$Q$35,\"\")","v":7.9640000000000013},{"$f":"IF(Stock!$A30<>\"\",ROUND(Stock!$A30*AQ30,0),\"\")","v":0},{"$f":"IF(Stock!$A30<>\"\",AO30+AR30,\"\")","v":-2800},{"$f":"IF(Stock!$A30<>\"\",AS30*$G30,\"\")","v":0},{"$f":"IF(Stock!$A30<>\"\",Pilotage!Q$26,\"\")","v":1},{"$f":"IF(Stock!$A30<>\"\",ROUND(AM30*AU30,0),\"\")","v":1600},{"$f":"IF(Stock!$A30<>\"\",$H30*AV30,\"\")","v":80000},{"$f":"IF(Stock!$A30<>\"\",AS30-AV30-'Ventes Produits'!W479,\"\")","v":-4400},{"$f":"IF(Stock!$A30<>\"\",AX30*$G30,\"\")","v":0},{"$f":"IF(Stock!$A30<>\"\",Pilotage!$R$35,\"\")","v":8.8880000000000017},{"$f":"IF(Stock!$A30<>\"\",ROUND(Stock!$A30*AZ30,0),\"\")","v":0},{"$f":"IF(Stock!$A30<>\"\",AX30+BA30,\"\")","v":-4400},{"$f":"IF(Stock!$A30<>\"\",BB30*$G30,\"\")","v":0},{"$f":"IF(Stock!$A30<>\"\",Pilotage!R$26,\"\")","v":1.1000000000000001},{"$f":"IF(Stock!$A30<>\"\",ROUND(AV30*BD30,0),\"\")","v":1760},{"$f":"IF(Stock!$A30<>\"\",$H30*BE30,\"\")","v":88000},{"$f":"IF(Stock!$A30<>\"\",BB30-BE30-'Ventes Produits'!Z479,\"\")","v":-6160},{"$f":"IF(Stock!$A30<>\"\",BG30*$G30,\"\")","v":0}]
[null,{"$f":"IF(Stock!B31<>\"\",Stock!B31,\"\")","v":""},{"$f":"IF(Stock!C31<>\"\",Stock!C31,\"\")","v":""},{"$f":"IF(Stock!D31<>\"\",Stock!D31,\"\")","v":""},null,null,{"$f":"IF(Stock!$A31<>\"\",IF(Stock!$A31>0,Stock!$K31/Stock!$A31,0),\"\")","v":""},null,{"$f":"B31","v":""},{"$f":"IF(Stock!$A31<>\"\",I31*$G31,\"\")","v":""},{"$f":"IF(Stock!$A31<>\"\",Pilotage!$M$26,\"\")","v":""},{"$f":"IF(Stock!$A31<>\"\",ROUND(I31*K31,0),\"\")","v":""},{"$f":"IF(Stock!$A31<>\"\",$H31*L31,\"\")","v":""},{"$f":"IF(Stock!$A31<>\"\",I31-L31-'Ventes Produits'!K480,\"\")","v":""},{"$f":"IF(Stock!$A31<>\"\",N31*$G31,\"\")","v":""},{"$f":"IF(Stock!$A31<>\"\",Pilotage!$N$35,\"\")","v":""},{"$f":"IF(Stock!$A31<>\"\",ROUND(Stock!$A31*P31,0),\"\")","v":""},{"$f":"IF(Stock!$A31<>\"\",N31+Q31,\"\")","v":""},{"$f":"IF(Stock!$A31<>\"\",R31*$G31,\"\")","v":""},{"$f":"IF(Stock!$A31<>\"\",Pilotage!N$26,\"\")","v":""},{"$f":"IF(Stock!$A31<>\"\",ROUND(L31*T31,0),\"\")","v":""},{"$f":"IF(Stock!$A31<>\"\",$H31*U31,\"\")","v":""},{"$f":"IF(Stock!$A31<>\"\",R31-U31-'Ventes Produits'!N480,\"\")","v":""},{"$f":"IF(Stock!$A31<>\"\",W31*$G31,\"\")","v":""},{"$f":"IF(Stock!$A31<>\"\",Pilotage!$O$35,\"\")","v":""},{"$f":"IF(Stock!$A31<>\"\",ROUND(Stock!$A31*Y31,0),\"\")","v":""},{"$f":"IF(Stock!$A31<>\"\",W31+Z31,\"\")","v":""},{"$f":"IF(Stock!$A31<>\"\",AA31*$G31,\"\")","v":""},{"$f":"IF(Stock!$A31<>\"\",Pilotage!O$26,\"\")","v":""},{"$f":"IF(Stock!$A31<>\"\",ROUND(U31*AC31,0),\"\")","v":""},{"$f":"IF(Stock!$A31<>\"\",$H31*AD31,\"\")","v":""},{"$f":"IF(Stock!$A31<>\"\",AA31-AD31-'Ventes Produits'!Q480,\"\")","v":""},{"$f":"IF(Stock!$A31<>\"\",AF31*$G31,\"\")","v":""},{"$f":"IF(Stock!$A31<>\"\",Pilotage!$P$35,\"\")","v":""},{"$f":"IF(Stock!$A31<>\"\",ROUND(Stock!$A31*AH31,0),\"\")","v":""},{"$f":"IF(Stock!$A31<>\"\",AF31+AI31,\"\")","v":""},{"$f":"IF(Stock!$A31<>\"\",AJ31*$G31,\"\")","v":""},{"$f":"IF(Stock!$A31<>\"\",Pilotage!P$26,\"\")","v":""},{"$f":"IF(Stock!$A31<>\"\",ROUND(AD31*AL31,0),\"\")","v":""},{"$f":"IF(Stock!$A31<>\"\",$H31*AM31,\"\")","v":""},{"$f":"IF(Stock!$A31<>\"\",AJ31-AM31-'Ventes Produits'!T480,\"\")","v":""},{"$f":"IF(Stock!$A31<>\"\",AO31*$G31,\"\")","v":""},{"$f":"IF(Stock!$A31<>\"\",Pilotage!$Q$35,\"\")","v":""},{"$f":"IF(Stock!$A31<>\"\",ROUND(Stock!$A31*AQ31,0),\"\")","v":""},{"$f":"IF(Stock!$A31<>\"\",AO31+AR31,\"\")","v":""},{"$f":"IF(Stock!$A31<>\"\",AS31*$G31,\"\")","v":""},{"$f":"IF(Stock!$A31<>\"\",Pilotage!Q$26,\"\")","v":""},{"$f":"IF(Stock!$A31<>\"\",ROUND(AM31*AU31,0),\"\")","v":""},{"$f":"IF(Stock!$A31<>\"\",$H31*AV31,\"\")","v":""},{"$f":"IF(Stock!$A31<>\"\",AS31-AV31-'Ventes Produits'!W480,\"\")","v":""},{"$f":"IF(Stock!$A31<>\"\",AX31*$G31,\"\")","v":""},{"$f":"IF(Stock!$A31<>\"\",Pilotage!$R$35,\"\")","v":""},{"$f":"IF(Stock!$A31<>\"\",ROUND(Stock!$A31*AZ31,0),\"\")","v":""},{"$f":"IF(Stock!$A31<>\"\",AX31+BA31,\"\")","v":""},{"$f":"IF(Stock!$A31<>\"\",BB31*$G31,\"\")","v":""},{"$f":"IF(Stock!$A31<>\"\",Pilotage!R$26,\"\")","v":""},{"$f":"IF(Stock!$A31<>\"\",ROUND(AV31*BD31,0),\"\")","v":""},{"$f":"IF(Stock!$A31<>\"\",$H31*BE31,\"\")","v":""},{"$f":"IF(Stock!$A31<>\"\",BB31-BE31-'Ventes Produits'!Z480,\"\")","v":""},{"$f":"IF(Stock!$A31<>\"\",BG31*$G31,\"\")","v":""}]
[null,{"$f":"SUM(B8:B30)","v":15400},{"$f":"IF(Stock!C32<>\"\",Stock!C32,\"\")","v":""},{"$f":"IF(Stock!D32<>\"\",Stock!D32,\"\")","v":""},null,null,{"$f":"IF(Stock!$A32<>\"\",IF(Stock!$A32>0,Stock!$K32/Stock!$A32,0),\"\")","v":""},null,15400,{"$f":"IF(Stock!$A32<>\"\",I32*$G32,\"\")","v":""},{"$f":"IF(Stock!$A32<>\"\",Pilotage!$M$26,\"\")","v":""},{"$f":"IF(Stock!$A32<>\"\",ROUND(I32*K32,0),\"\")","v":""},{"$f":"IF(Stock!$A32<>\"\",$H32*L32,\"\")","v":""},{"$f":"IF(Stock!$A32<>\"\",I32-L32-'Ventes Produits'!K481,\"\")","v":""},{"$f":"IF(Stock!$A32<>\"\",N32*$G32,\"\")","v":""},{"$f":"IF(Stock!$A32<>\"\",Pilotage!$N$35,\"\")","v":""},{"$f":"IF(Stock!$A32<>\"\",ROUND(Stock!$A32*P32,0),\"\")","v":""},{"$f":"IF(Stock!$A32<>\"\",N32+Q32,\"\")","v":""},{"$f":"IF(Stock!$A32<>\"\",R32*$G32,\"\")","v":""},{"$f":"IF(Stock!$A32<>\"\",Pilotage!N$26,\"\")","v":""},{"$f":"IF(Stock!$A32<>\"\",ROUND(L32*T32,0),\"\")","v":""},{"$f":"IF(Stock!$A32<>\"\",$H32*U32,\"\")","v":""},{"$f":"IF(Stock!$A32<>\"\",R32-U32-'Ventes Produits'!N481,\"\")","v":""},{"$f":"IF(Stock!$A32<>\"\",W32*$G32,\"\")","v":""},{"$f":"IF(Stock!$A32<>\"\",Pilotage!$O$35,\"\")","v":""},{"$f":"IF(Stock!$A32<>\"\",ROUND(Stock!$A32*Y32,0),\"\")","v":""},{"$f":"IF(Stock!$A32<>\"\",W32+Z32,\"\")","v":""},{"$f":"IF(Stock!$A32<>\"\",AA32*$G32,\"\")","v":""},{"$f":"IF(Stock!$A32<>\"\",Pilotage!O$26,\"\")","v":""},{"$f":"IF(Stock!$A32<>\"\",ROUND(U32*AC32,0),\"\")","v":""},{"$f":"IF(Stock!$A32<>\"\",$H32*AD32,\"\")","v":""},{"$f":"IF(Stock!$A32<>\"\",AA32-AD32-'Ventes Produits'!Q481,\"\")","v":""},{"$f":"IF(Stock!$A32<>\"\",AF32*$G32,\"\")","v":""},{"$f":"IF(Stock!$A32<>\"\",Pilotage!$P$35,\"\")","v":""},{"$f":"IF(Stock!$A32<>\"\",ROUND(Stock!$A32*AH32,0),\"\")","v":""},{"$f":"IF(Stock!$A32<>\"\",AF32+AI32,\"\")","v":""},{"$f":"IF(Stock!$A32<>\"\",AJ32*$G32,\"\")","v":""},{"$f":"IF(Stock!$A32<>\"\",Pilotage!P$26,\"\")","v":""},{"$f":"IF(Stock!$A32<>\"\",ROUND(AD32*AL32,0),\"\")","v":""},{"$f":"IF(Stock!$A32<>\"\",$H32*AM32,\"\")","v":""},{"$f":"IF(Stock!$A32<>\"\",AJ32-AM32-'Ventes Produits'!T481,\"\")","v":""},{"$f":"IF(Stock!$A32<>\"\",AO32*$G32,\"\")","v":""},{"$f":"IF(Stock!$A32<>\"\",Pilotage!$Q$35,\"\")","v":""},{"$f":"IF(Stock!$A32<>\"\",ROUND(Stock!$A32*AQ32,0),\"\")","v":""},{"$f":"IF(Stock!$A32<>\"\",AO32+AR32,\"\")","v":""},{"$f":"IF(Stock!$A32<>\"\",AS32*$G32,\"\")","v":""},{"$f":"IF(Stock!$A32<>\"\",Pilotage!Q$26,\"\")","v":""},{"$f":"IF(Stock!$A32<>\"\",ROUND(AM32*AU32,0),\"\")","v":""},{"$f":"IF(Stock!$A32<>\"\",$H32*AV32,\"\")","v":""},{"$f":"IF(Stock!$A32<>\"\",AS32-AV32-'Ventes Produits'!W481,\"\")","v":""},{"$f":"IF(Stock!$A32<>\"\",AX32*$G32,\"\")","v":""},{"$f":"IF(Stock!$A32<>\"\",Pilotage!$R$35,\"\")","v":""},{"$f":"IF(Stock!$A32<>\"\",ROUND(Stock!$A32*AZ32,0),\"\")","v":""},{"$f":"IF(Stock!$A32<>\"\",AX32+BA32,\"\")","v":""},{"$f":"IF(Stock!$A32<>\"\",BB32*$G32,\"\")","v":""},{"$f":"IF(Stock!$A32<>\"\",Pilotage!R$26,\"\")","v":""},{"$f":"IF(Stock!$A32<>\"\",ROUND(AV32*BD32,0),\"\")","v":""},{"$f":"IF(Stock!$A32<>\"\",$H32*BE32,\"\")","v":""},{"$f":"IF(Stock!$A32<>\"\",BB32-BE32-'Ventes Produits'!Z481,\"\")","v":""},{"$f":"IF(Stock!$A32<>\"\",BG32*$G32,\"\")","v":""}]
[null,{"$f":"B32/365","v":42.19178082191781},{"$f":"IF(Stock!C33<>\"\",Stock!C33,\"\")","v":""},{"$f":"IF(Stock!D33<>\"\",Stock!D33,\"\")","v":""},{"$f":"AVERAGE(E8:E30)","v":158.91304347826087},null,{"$f":"IF(Stock!$A33<>\"\",IF(Stock!$A33>0,Stock!$K33/Stock!$A33,0),\"\")","v":""},null,42.19178082191781,{"$f":"IF(Stock!$A33<>\"\",I33*$G33,\"\")","v":""},{"$f":"IF(Stock!$A33<>\"\",Pilotage!$M$26,\"\")","v":""},{"$f":"IF(Stock!$A33<>\"\",ROUND(I33*K33,0),\"\")","v":""},{"$f":"IF(Stock!$A33<>\"\",$H33*L33,\"\")","v":""},{"$f":"IF(Stock!$A33<>\"\",I33-L33-'Ventes Produits'!K482,\"\")","v":""},{"$f":"IF(Stock!$A33<>\"\",N33*$G33,\"\")","v":""},{"$f":"IF(Stock!$A33<>\"\",Pilotage!$N$35,\"\")","v":""},{"$f":"IF(Stock!$A33<>\"\",ROUND(Stock!$A33*P33,0),\"\")","v":""},{"$f":"IF(Stock!$A33<>\"\",N33+Q33,\"\")","v":""},{"$f":"IF(Stock!$A33<>\"\",R33*$G33,\"\")","v":""},{"$f":"IF(Stock!$A33<>\"\",Pilotage!N$26,\"\")","v":""},{"$f":"IF(Stock!$A33<>\"\",ROUND(L33*T33,0),\"\")","v":""},{"$f":"IF(Stock!$A33<>\"\",$H33*U33,\"\")","v":""},{"$f":"IF(Stock!$A33<>\"\",R33-U33-'Ventes Produits'!N482,\"\")","v":""},{"$f":"IF(Stock!$A33<>\"\",W33*$G33,\"\")","v":""},{"$f":"IF(Stock!$A33<>\"\",Pilotage!$O$35,\"\")","v":""},{"$f":"IF(Stock!$A33<>\"\",ROUND(Stock!$A33*Y33,0),\"\")","v":""},{"$f":"IF(Stock!$A33<>\"\",W33+Z33,\"\")","v":""},{"$f":"IF(Stock!$A33<>\"\",AA33*$G33,\"\")","v":""},{"$f":"IF(Stock!$A33<>\"\",Pilotage!O$26,\"\")","v":""},{"$f":"IF(Stock!$A33<>\"\",ROUND(U33*AC33,0),\"\")","v":""},{"$f":"IF(Stock!$A33<>\"\",$H33*AD33,\"\")","v":""},{"$f":"IF(Stock!$A33<>\"\",AA33-AD33-'Ventes Produits'!Q482,\"\")","v":""},{"$f":"IF(Stock!$A33<>\"\",AF33*$G33,\"\")","v":""},{"$f":"IF(Stock!$A33<>\"\",Pilotage!$P$35,\"\")","v":""},{"$f":"IF(Stock!$A33<>\"\",ROUND(Stock!$A33*AH33,0),\"\")","v":""},{"$f":"IF(Stock!$A33<>\"\",AF33+AI33,\"\")","v":""},{"$f":"IF(Stock!$A33<>\"\",AJ33*$G33,\"\")","v":""},{"$f":"IF(Stock!$A33<>\"\",Pilotage!P$26,\"\")","v":""},{"$f":"IF(Stock!$A33<>\"\",ROUND(AD33*AL33,0),\"\")","v":""},{"$f":"IF(Stock!$A33<>\"\",$H33*AM33,\"\")","v":""},{"$f":"IF(Stock!$A33<>\"\",AJ33-AM33-'Ventes Produits'!T482,\"\")","v":""},{"$f":"IF(Stock!$A33<>\"\",AO33*$G33,\"\")","v":""},{"$f":"IF(Stock!$A33<>\"\",Pilotage!$Q$35,\"\")","v":""},{"$f":"IF(Stock!$A33<>\"\",ROUND(Stock!$A33*AQ33,0),\"\")","v":""},{"$f":"IF(Stock!$A33<>\"\",AO33+AR33,\"\")","v":""},{"$f":"IF(Stock!$A33<>\"\",AS33*$G33,\"\")","v":""},{"$f":"IF(Stock!$A33<>\"\",Pilotage!Q$26,\"\")","v":""},{"$f":"IF(Stock!$A33<>\"\",ROUND(AM33*AU33,0),\"\")","v":""},{"$f":"IF(Stock!$A33<>\"\",$H33*AV33,\"\")","v":""},{"$f":"IF(Stock!$A33<>\"\",AS33-AV33-'Ventes Produits'!W482,\"\")","v":""},{"$f":"IF(Stock!$A33<>\"\",AX33*$G33,\"\")","v":""},{"$f":"IF(Stock!$A33<>\"\",Pilotage!$R$35,\"\")","v":""},{"$f":"IF(Stock!$A33<>\"\",ROUND(Stock!$A33*AZ33,0),\"\")","v":""},{"$f":"IF(Stock!$A33<>\"\",AX33+BA33,\"\")","v":""},{"$f":"IF(Stock!$A33<>\"\",BB33*$G33,\"\")","v":""},{"$f":"IF(Stock!$A33<>\"\",Pilotage!R$26,\"\")","v":""},{"$f":"IF(Stock!$A33<>\"\",ROUND(AV33*BD33,0),\"\")","v":""},{"$f":"IF(Stock!$A33<>\"\",$H33*BE33,\"\")","v":""},{"$f":"IF(Stock!$A33<>\"\",BB33-BE33-'Ventes Produits'!Z482,\"\")","v":""},{"$f":"IF(Stock!$A33<>\"\",BG33*$G33,\"\")","v":""}]
[null,{"$f":"IF(Stock!B34<>\"\",Stock!B34,\"\")","v":""},{"$f":"IF(Stock!C34<>\"\",Stock!C34,\"\")","v":""},{"$f":"IF(Stock!D34<>\"\",Stock!D34,\"\")","v":""},null,null,{"$f":"IF(Stock!$A34<>\"\",IF(Stock!$A34>0,Stock!$K34/Stock!$A34,0),\"\")","v":""},null,"",{"$f":"IF(Stock!$A34<>\"\",I34*$G34,\"\")","v":""},{"$f":"IF(Stock!$A34<>\"\",Pilotage!$M$26,\"\")","v":""},{"$f":"IF(Stock!$A34<>\"\",ROUND(I34*K34,0),\"\")","v":""},{"$f":"IF(Stock!$A34<>\"\",$H34*L34,\"\")","v":""},{"$f":"IF(Stock!$A34<>\"\",I34-L34-'Ventes Produits'!K483,\"\")","v":""},{"$f":"IF(Stock!$A34<>\"\",N34*$G34,\"\")","v":""},{"$f":"IF(Stock!$A34<>\"\",Pilotage!$N$35,\"\")","v":""},{"$f":"IF(Stock!$A34<>\"\",ROUND(Stock!$A34*P34,0),\"\")","v":""},{"$f":"IF(Stock!$A34<>\"\",N34+Q34,\"\")","v":""},{"$f":"IF(Stock!$A34<>\"\",R34*$G34,\"\")","v":""},{"$f":"IF(Stock!$A34<>\"\",Pilotage!N$26,\"\")","v":""},{"$f":"IF(Stock!$A34<>\"\",ROUND(L34*T34,0),\"\")","v":""},{"$f":"IF(Stock!$A34<>\"\",$H34*U34,\"\")","v":""},{"$f":"IF(Stock!$A34<>\"\",R34-U34-'Ventes Produits'!N483,\"\")","v":""},{"$f":"IF(Stock!$A34<>\"\",W34*$G34,\"\")","v":""},{"$f":"IF(Stock!$A34<>\"\",Pilotage!$O$35,\"\")","v":""},{"$f":"IF(Stock!$A34<>\"\",ROUND(Stock!$A34*Y34,0),\"\")","v":""},{"$f":"IF(Stock!$A34<>\"\",W34+Z34,\"\")","v":""},{"$f":"IF(Stock!$A34<>\"\",AA34*$G34,\"\")","v":""},{"$f":"IF(Stock!$A34<>\"\",Pilotage!O$26,\"\")","v":""},{"$f":"IF(Stock!$A34<>\"\",ROUND(U34*AC34,0),\"\")","v":""},{"$f":"IF(Stock!$A34<>\"\",$H34*AD34,\"\")","v":""},{"$f":"IF(Stock!$A34<>\"\",AA34-AD34-'Ventes Produits'!Q483,\"\")","v":""},{"$f":"IF(Stock!$A34<>\"\",AF34*$G34,\"\")","v":""},{"$f":"IF(Stock!$A34<>\"\",Pilotage!$P$35,\"\")","v":""},{"$f":"IF(Stock!$A34<>\"\",ROUND(Stock!$A34*AH34,0),\"\")","v":""},{"$f":"IF(Stock!$A34<>\"\",AF34+AI34,\"\")","v":""},{"$f":"IF(Stock!$A34<>\"\",AJ34*$G34,\"\")","v":""},{"$f":"IF(Stock!$A34<>\"\",Pilotage!P$26,\"\")","v":""},{"$f":"IF(Stock!$A34<>\"\",ROUND(AD34*AL34,0),\"\")","v":""},{"$f":"IF(Stock!$A34<>\"\",$H34*AM34,\"\")","v":""},{"$f":"IF(Stock!$A34<>\"\",AJ34-AM34-'Ventes Produits'!T483,\"\")","v":""},{"$f":"IF(Stock!$A34<>\"\",AO34*$G34,\"\")","v":""},{"$f":"IF(Stock!$A34<>\"\",Pilotage!$Q$35,\"\")","v":""},{"$f":"IF(Stock!$A34<>\"\",ROUND(Stock!$A34*AQ34,0),\"\")","v":""},{"$f":"IF(Stock!$A34<>\"\",AO34+AR34,\"\")","v":""},{"$f":"IF(Stock!$A34<>\"\",AS34*$G34,\"\")","v":""},{"$f":"IF(Stock!$A34<>\"\",Pilotage!Q$26,\"\")","v":""},{"$f":"IF(Stock!$A34<>\"\",ROUND(AM34*AU34,0),\"\")","v":""},{"$f":"IF(Stock!$A34<>\"\",$H34*AV34,\"\")","v":""},{"$f":"IF(Stock!$A34<>\"\",AS34-AV34-'Ventes Produits'!W483,\"\")","v":""},{"$f":"IF(Stock!$A34<>\"\",AX34*$G34,\"\")","v":""},{"$f":"IF(Stock!$A34<>\"\",Pilotage!$R$35,\"\")","v":""},{"$f":"IF(Stock!$A34<>\"\",ROUND(Stock!$A34*AZ34,0),\"\")","v":""},{"$f":"IF(Stock!$A34<>\"\",AX34+BA34,\"\")","v":""},{"$f":"IF(Stock!$A34<>\"\",BB34*$G34,\"\")","v":""},{"$f":"IF(Stock!$A34<>\"\",Pilotage!R$26,\"\")","v":""},{"$f":"IF(Stock!$A34<>\"\",ROUND(AV34*BD34,0),\"\")","v":""},{"$f":"IF(Stock!$A34<>\"\",$H34*BE34,\"\")","v":""},{"$f":"IF(Stock!$A34<>\"\",BB34-BE34-'Ventes Produits'!Z483,\"\")","v":""},{"$f":"IF(Stock!$A34<>\"\",BG34*$G34,\"\")","v":""}]
[null,0,{"$f":"IF(Stock!C35<>\"\",Stock!C35,\"\")","v":""},"Premium",5,null,{"$f":"IF(Stock!$A35<>\"\",IF(Stock!$A35>0,Stock!$K35/Stock!$A35,0),\"\")","v":""},{"$f":"E35","v":5},0,{"$f":"IF(Stock!$A35<>\"\",I35*$G35,\"\")","v":""},{"$f":"IF(Stock!$A35<>\"\",Pilotage!$M$26,\"\")","v":""},{"$f":"B35","v":0},{"$f":"H35*L35","v":0},{"$f":"IF(Stock!$A35<>\"\",I35-L35-'Ventes Produits'!K484,\"\")","v":""},{"$f":"IF(Stock!$A35<>\"\",N35*$G35,\"\")","v":""},{"$f":"IF(Stock!$A35<>\"\",Pilotage!$N$35,\"\")","v":""},{"$f":"IF(Stock!$A35<>\"\",ROUND(Stock!$A35*P35,0),\"\")","v":""},{"$f":"IF(Stock!$A35<>\"\",N35+Q35,\"\")","v":""},{"$f":"IF(Stock!$A35<>\"\",R35*$G35,\"\")","v":""},{"$f":"IF(Stock!$A35<>\"\",Pilotage!N$26,\"\")","v":""},{"$f":"IF(Stock!$A35<>\"\",ROUND(L35*T35,0),\"\")","v":""},{"$f":"IF(Stock!$A35<>\"\",$H35*U35,\"\")","v":""},{"$f":"IF(Stock!$A35<>\"\",R35-U35-'Ventes Produits'!N484,\"\")","v":""},{"$f":"IF(Stock!$A35<>\"\",W35*$G35,\"\")","v":""},{"$f":"IF(Stock!$A35<>\"\",Pilotage!$O$35,\"\")","v":""},{"$f":"IF(Stock!$A35<>\"\",ROUND(Stock!$A35*Y35,0),\"\")","v":""},{"$f":"IF(Stock!$A35<>\"\",W35+Z35,\"\")","v":""},{"$f":"IF(Stock!$A35<>\"\",AA35*$G35,\"\")","v":""},{"$f":"IF(Stock!$A35<>\"\",Pilotage!O$26,\"\")","v":""},{"$f":"IF(Stock!$A35<>\"\",ROUND(U35*AC35,0),\"\")","v":""},{"$f":"IF(Stock!$A35<>\"\",$H35*AD35,\"\")","v":""},{"$f":"IF(Stock!$A35<>\"\",AA35-AD35-'Ventes Produits'!Q484,\"\")","v":""},{"$f":"IF(Stock!$A35<>\"\",AF35*$G35,\"\")","v":""},{"$f":"IF(Stock!$A35<>\"\",Pilotage!$P$35,\"\")","v":""},{"$f":"IF(Stock!$A35<>\"\",ROUND(Stock!$A35*AH35,0),\"\")","v":""},{"$f":"IF(Stock!$A35<>\"\",AF35+AI35,\"\")","v":""},{"$f":"IF(Stock!$A35<>\"\",AJ35*$G35,\"\")","v":""},{"$f":"IF(Stock!$A35<>\"\",Pilotage!P$26,\"\")","v":""},{"$f":"IF(Stock!$A35<>\"\",ROUND(AD35*AL35,0),\"\")","v":""},{"$f":"IF(Stock!$A35<>\"\",$H35*AM35,\"\")","v":""},{"$f":"IF(Stock!$A35<>\"\",AJ35-AM35-'Ventes Produits'!T484,\"\")","v":""},{"$f":"IF(Stock!$A35<>\"\",AO35*$G35,\"\")","v":""},{"$f":"IF(Stock!$A35<>\"\",Pilotage!$Q$35,\"\")","v":""},{"$f":"IF(Stock!$A35<>\"\",ROUND(Stock!$A35*AQ35,0),\"\")","v":""},{"$f":"IF(Stock!$A35<>\"\",AO35+AR35,\"\")","v":""},{"$f":"IF(Stock!$A35<>\"\",AS35*$G35,\"\")","v":""},{"$f":"IF(Stock!$A35<>\"\",Pilotage!Q$26,\"\")","v":""},{"$f":"IF(Stock!$A35<>\"\",ROUND(AM35*AU35,0),\"\")","v":""},{"$f":"IF(Stock!$A35<>\"\",$H35*AV35,\"\")","v":""},{"$f":"IF(Stock!$A35<>\"\",AS35-AV35-'Ventes Produits'!W484,\"\")","v":""},{"$f":"IF(Stock!$A35<>\"\",AX35*$G35,\"\")","v":""},{"$f":"IF(Stock!$A35<>\"\",Pilotage!$R$35,\"\")","v":""},{"$f":"IF(Stock!$A35<>\"\",ROUND(Stock!$A35*AZ35,0),\"\")","v":""},{"$f":"IF(Stock!$A35<>\"\",AX35+BA35,\"\")","v":""},{"$f":"IF(Stock!$A35<>\"\",BB35*$G35,\"\")","v":""},{"$f":"IF(Stock!$A35<>\"\",Pilotage!R$26,\"\")","v":""},{"$f":"IF(Stock!$A35<>\"\",ROUND(AV35*BD35,0),\"\")","v":""},{"$f":"IF(Stock!$A35<>\"\",$H35*BE35,\"\")","v":""},{"$f":"IF(Stock!$A35<>\"\",BB35-BE35-'Ventes Produits'!Z484,\"\")","v":""},{"$f":"IF(Stock!$A35<>\"\",BG35*$G35,\"\")","v":""}]
[null,null,{"$f":"IF(Stock!C36<>\"\",Stock!C36,\"\")","v":""},{"$f":"IF(Stock!D36<>\"\",Stock!D36,\"\")","v":""},null,null,{"$f":"IF(Stock!$A36<>\"\",IF(Stock!$A36>0,Stock!$K36/Stock!$A36,0),\"\")","v":""},{"$f":"Stock!F36*Pilotage!M$19","v":0},0,{"$f":"IF(Stock!$A36<>\"\",I36*$G36,\"\")","v":""},{"$f":"IF(Stock!$A36<>\"\",Pilotage!$M$26,\"\")","v":""},{"$f":"IF(Stock!$A36<>\"\",ROUND(I36*K36,0),\"\")","v":""},{"$f":"IF(Stock!$A36<>\"\",$H36*L36,\"\")","v":""},{"$f":"IF(Stock!$A36<>\"\",I36-L36-'Ventes Produits'!K485,\"\")","v":""},{"$f":"IF(Stock!$A36<>\"\",N36*$G36,\"\")","v":""},{"$f":"IF(Stock!$A36<>\"\",Pilotage!$N$35,\"\")","v":""},{"$f":"IF(Stock!$A36<>\"\",ROUND(Stock!$A36*P36,0),\"\")","v":""},{"$f":"IF(Stock!$A36<>\"\",N36+Q36,\"\")","v":""},{"$f":"IF(Stock!$A36<>\"\",R36*$G36,\"\")","v":""},{"$f":"IF(Stock!$A36<>\"\",Pilotage!N$26,\"\")","v":""},{"$f":"IF(Stock!$A36<>\"\",ROUND(L36*T36,0),\"\")","v":""},{"$f":"IF(Stock!$A36<>\"\",$H36*U36,\"\")","v":""},{"$f":"IF(Stock!$A36<>\"\",R36-U36-'Ventes Produits'!N485,\"\")","v":""},{"$f":"IF(Stock!$A36<>\"\",W36*$G36,\"\")","v":""},{"$f":"IF(Stock!$A36<>\"\",Pilotage!$O$35,\"\")","v":""},{"$f":"IF(Stock!$A36<>\"\",ROUND(Stock!$A36*Y36,0),\"\")","v":""},{"$f":"IF(Stock!$A36<>\"\",W36+Z36,\"\")","v":""},{"$f":"IF(Stock!$A36<>\"\",AA36*$G36,\"\")","v":""},{"$f":"IF(Stock!$A36<>\"\",Pilotage!O$26,\"\")","v":""},{"$f":"IF(Stock!$A36<>\"\",ROUND(U36*AC36,0),\"\")","v":""},{"$f":"IF(Stock!$A36<>\"\",$H36*AD36,\"\")","v":""},{"$f":"IF(Stock!$A36<>\"\",AA36-AD36-'Ventes Produits'!Q485,\"\")","v":""},{"$f":"IF(Stock!$A36<>\"\",AF36*$G36,\"\")","v":""},{"$f":"IF(Stock!$A36<>\"\",Pilotage!$P$35,\"\")","v":""},{"$f":"IF(Stock!$A36<>\"\",ROUND(Stock!$A36*AH36,0),\"\")","v":""},{"$f":"IF(Stock!$A36<>\"\",AF36+AI36,\"\")","v":""},{"$f":"IF(Stock!$A36<>\"\",AJ36*$G36,\"\")","v":""},{"$f":"IF(Stock!$A36<>\"\",Pilotage!P$26,\"\")","v":""},{"$f":"IF(Stock!$A36<>\"\",ROUND(AD36*AL36,0),\"\")","v":""},{"$f":"IF(Stock!$A36<>\"\",$H36*AM36,\"\")","v":""},{"$f":"IF(Stock!$A36<>\"\",AJ36-AM36-'Ventes Produits'!T485,\"\")","v":""},{"$f":"IF(Stock!$A36<>\"\",AO36*$G36,\"\")","v":""},{"$f":"IF(Stock!$A36<>\"\",Pilotage!$Q$35,\"\")","v":""},{"$f":"IF(Stock!$A36<>\"\",ROUND(Stock!$A36*AQ36,0),\"\")","v":""},{"$f":"IF(Stock!$A36<>\"\",AO36+AR36,\"\")","v":""},{"$f":"IF(Stock!$A36<>\"\",AS36*$G36,\"\")","v":""},{"$f":"IF(Stock!$A36<>\"\",Pilotage!Q$26,\"\")","v":""},{"$f":"IF(Stock!$A36<>\"\",ROUND(AM36*AU36,0),\"\")","v":""},{"$f":"IF(Stock!$A36<>\"\",$H36*AV36,\"\")","v":""},{"$f":"IF(Stock!$A36<>\"\",AS36-AV36-'Ventes Produits'!W485,\"\")","v":""},{"$f":"IF(Stock!$A36<>\"\",AX36*$G36,\"\")","v":""},{"$f":"IF(Stock!$A36<>\"\",Pilotage!$R$35,\"\")","v":""},{"$f":"IF(Stock!$A36<>\"\",ROUND(Stock!$A36*AZ36,0),\"\")","v":""},{"$f":"IF(Stock!$A36<>\"\",AX36+BA36,\"\")","v":""},{"$f":"IF(Stock!$A36<>\"\",BB36*$G36,\"\")","v":""},{"$f":"IF(Stock!$A36<>\"\",Pilotage!R$26,\"\")","v":""},{"$f":"IF(Stock!$A36<>\"\",ROUND(AV36*BD36,0),\"\")","v":""},{"$f":"IF(Stock!$A36<>\"\",$H36*BE36,\"\")","v":""},{"$f":"IF(Stock!$A36<>\"\",BB36-BE36-'Ventes Produits'!Z485,\"\")","v":""},{"$f":"IF(Stock!$A36<>\"\",BG36*$G36,\"\")","v":""}]
[null,{"$f":"IF(Stock!B37<>\"\",Stock!B37,\"\")","v":""},{"$f":"IF(Stock!C37<>\"\",Stock!C37,\"\")","v":""},{"$f":"IF(Stock!D37<>\"\",Stock!D37,\"\")","v":""},null,null,{"$f":"IF(Stock!$A37<>\"\",IF(Stock!$A37>0,Stock!$K37/Stock!$A37,0),\"\")","v":""},{"$f":"Stock!F37*Pilotage!M$19","v":0},"",{"$f":"IF(Stock!$A37<>\"\",I37*$G37,\"\")","v":""},{"$f":"IF(Stock!$A37<>\"\",Pilotage!$M$26,\"\")","v":""},{"$f":"IF(Stock!$A37<>\"\",ROUND(I37*K37,0),\"\")","v":""},{"$f":"IF(Stock!$A37<>\"\",$H37*L37,\"\")","v":""},{"$f":"IF(Stock!$A37<>\"\",I37-L37-'Ventes Produits'!K486,\"\")","v":""},{"$f":"IF(Stock!$A37<>\"\",N37*$G37,\"\")","v":""},{"$f":"IF(Stock!$A37<>\"\",Pilotage!$N$35,\"\")","v":""},{"$f":"IF(Stock!$A37<>\"\",ROUND(Stock!$A37*P37,0),\"\")","v":""},{"$f":"IF(Stock!$A37<>\"\",N37+Q37,\"\")","v":""},{"$f":"IF(Stock!$A37<>\"\",R37*$G37,\"\")","v":""},{"$f":"IF(Stock!$A37<>\"\",Pilotage!N$26,\"\")","v":""},{"$f":"IF(Stock!$A37<>\"\",ROUND(L37*T37,0),\"\")","v":""},{"$f":"IF(Stock!$A37<>\"\",$H37*U37,\"\")","v":""},{"$f":"IF(Stock!$A37<>\"\",R37-U37-'Ventes Produits'!N486,\"\")","v":""},{"$f":"IF(Stock!$A37<>\"\",W37*$G37,\"\")","v":""},{"$f":"IF(Stock!$A37<>\"\",Pilotage!$O$35,\"\")","v":""},{"$f":"IF(Stock!$A37<>\"\",ROUND(Stock!$A37*Y37,0),\"\")","v":""},{"$f":"IF(Stock!$A37<>\"\",W37+Z37,\"\")","v":""},{"$f":"IF(Stock!$A37<>\"\",AA37*$G37,\"\")","v":""},{"$f":"IF(Stock!$A37<>\"\",Pilotage!O$26,\"\")","v":""},{"$f":"IF(Stock!$A37<>\"\",ROUND(U37*AC37,0),\"\")","v":""},{"$f":"IF(Stock!$A37<>\"\",$H37*AD37,\"\")","v":""},{"$f":"IF(Stock!$A37<>\"\",AA37-AD37-'Ventes Produits'!Q486,\"\")","v":""},{"$f":"IF(Stock!$A37<>\"\",AF37*$G37,\"\")","v":""},{"$f":"IF(Stock!$A37<>\"\",Pilotage!$P$35,\"\")","v":""},{"$f":"IF(Stock!$A37<>\"\",ROUND(Stock!$A37*AH37,0),\"\")","v":""},{"$f":"IF(Stock!$A37<>\"\",AF37+AI37,\"\")","v":""},{"$f":"IF(Stock!$A37<>\"\",AJ37*$G37,\"\")","v":""},{"$f":"IF(Stock!$A37<>\"\",Pilotage!P$26,\"\")","v":""},{"$f":"IF(Stock!$A37<>\"\",ROUND(AD37*AL37,0),\"\")","v":""},{"$f":"IF(Stock!$A37<>\"\",$H37*AM37,\"\")","v":""},{"$f":"IF(Stock!$A37<>\"\",AJ37-AM37-'Ventes Produits'!T486,\"\")","v":""},{"$f":"IF(Stock!$A37<>\"\",AO37*$G37,\"\")","v":""},{"$f":"IF(Stock!$A37<>\"\",Pilotage!$Q$35,\"\")","v":""},{"$f":"IF(Stock!$A37<>\"\",ROUND(Stock!$A37*AQ37,0),\"\")","v":""},{"$f":"IF(Stock!$A37<>\"\",AO37+AR37,\"\")","v":""},{"$f":"IF(Stock!$A37<>\"\",AS37*$G37,\"\")","v":""},{"$f":"IF(Stock!$A37<>\"\",Pilotage!Q$26,\"\")","v":""},{"$f":"IF(Stock!$A37<>\"\",ROUND(AM37*AU37,0),\"\")","v":""},{"$f":"IF(Stock!$A37<>\"\",$H37*AV37,\"\")","v":""},{"$f":"IF(Stock!$A37<>\"\",AS37-AV37-'Ventes Produits'!W486,\"\")","v":""},{"$f":"IF(Stock!$A37<>\"\",AX37*$G37,\"\")","v":""},{"$f":"IF(Stock!$A37<>\"\",Pilotage!$R$35,\"\")","v":""},{"$f":"IF(Stock!$A37<>\"\",ROUND(Stock!$A37*AZ37,0),\"\")","v":""},{"$f":"IF(Stock!$A37<>\"\",AX37+BA37,\"\")","v":""},{"$f":"IF(Stock!$A37<>\"\",BB37*$G37,\"\")","v":""},{"$f":"IF(Stock!$A37<>\"\",Pilotage!R$26,\"\")","v":""},{"$f":"IF(Stock!$A37<>\"\",ROUND(AV37*BD37,0),\"\")","v":""},{"$f":"IF(Stock!$A37<>\"\",$H37*BE37,\"\")","v":""},{"$f":"IF(Stock!$A37<>\"\",BB37-BE37-'Ventes Produits'!Z486,\"\")","v":""},{"$f":"IF(Stock!$A37<>\"\",BG37*$G37,\"\")","v":""}]
[null,{"$f":"IF(Stock!B38<>\"\",Stock!B38,\"\")","v":""},{"$f":"IF(Stock!C38<>\"\",Stock!C38,\"\")","v":""},{"$f":"IF(Stock!D38<>\"\",Stock!D38,\"\")","v":""},null,null,{"$f":"IF(Stock!$A38<>\"\",IF(Stock!$A38>0,Stock!$K38/Stock!$A38,0),\"\")","v":""},{"$f":"Stock!F38*Pilotage!M$19","v":0},"",{"$f":"IF(Stock!$A38<>\"\",I38*$G38,\"\")","v":""},{"$f":"IF(Stock!$A38<>\"\",Pilotage!$M$26,\"\")","v":""},{"$f":"IF(Stock!$A38<>\"\",ROUND(I38*K38,0),\"\")","v":""},{"$f":"IF(Stock!$A38<>\"\",$H38*L38,\"\")","v":""},{"$f":"IF(Stock!$A38<>\"\",I38-L38-'Ventes Produits'!K487,\"\")","v":""},{"$f":"IF(Stock!$A38<>\"\",N38*$G38,\"\")","v":""},{"$f":"IF(Stock!$A38<>\"\",Pilotage!$N$35,\"\")","v":""},{"$f":"IF(Stock!$A38<>\"\",ROUND(Stock!$A38*P38,0),\"\")","v":""},{"$f":"IF(Stock!$A38<>\"\",N38+Q38,\"\")","v":""},{"$f":"IF(Stock!$A38<>\"\",R38*$G38,\"\")","v":""},{"$f":"IF(Stock!$A38<>\"\",Pilotage!N$26,\"\")","v":""},{"$f":"IF(Stock!$A38<>\"\",ROUND(L38*T38,0),\"\")","v":""},{"$f":"IF(Stock!$A38<>\"\",$H38*U38,\"\")","v":""},{"$f":"IF(Stock!$A38<>\"\",R38-U38-'Ventes Produits'!N487,\"\")","v":""},{"$f":"IF(Stock!$A38<>\"\",W38*$G38,\"\")","v":""},{"$f":"IF(Stock!$A38<>\"\",Pilotage!$O$35,\"\")","v":""},{"$f":"IF(Stock!$A38<>\"\",ROUND(Stock!$A38*Y38,0),\"\")","v":""},{"$f":"IF(Stock!$A38<>\"\",W38+Z38,\"\")","v":""},{"$f":"IF(Stock!$A38<>\"\",AA38*$G38,\"\")","v":""},{"$f":"IF(Stock!$A38<>\"\",Pilotage!O$26,\"\")","v":""},{"$f":"IF(Stock!$A38<>\"\",ROUND(U38*AC38,0),\"\")","v":""},{"$f":"IF(Stock!$A38<>\"\",$H38*AD38,\"\")","v":""},{"$f":"IF(Stock!$A38<>\"\",AA38-AD38-'Ventes Produits'!Q487,\"\")","v":""},{"$f":"IF(Stock!$A38<>\"\",AF38*$G38,\"\")","v":""},{"$f":"IF(Stock!$A38<>\"\",Pilotage!$P$35,\"\")","v":""},{"$f":"IF(Stock!$A38<>\"\",ROUND(Stock!$A38*AH38,0),\"\")","v":""},{"$f":"IF(Stock!$A38<>\"\",AF38+AI38,\"\")","v":""},{"$f":"IF(Stock!$A38<>\"\",AJ38*$G38,\"\")","v":""},{"$f":"IF(Stock!$A38<>\"\",Pilotage!P$26,\"\")","v":""},{"$f":"IF(Stock!$A38<>\"\",ROUND(AD38*AL38,0),\"\")","v":""},{"$f":"IF(Stock!$A38<>\"\",$H38*AM38,\"\")","v":""},{"$f":"IF(Stock!$A38<>\"\",AJ38-AM38-'Ventes Produits'!T487,\"\")","v":""},{"$f":"IF(Stock!$A38<>\"\",AO38*$G38,\"\")","v":""},{"$f":"IF(Stock!$A38<>\"\",Pilotage!$Q$35,\"\")","v":""},{"$f":"IF(Stock!$A38<>\"\",ROUND(Stock!$A38*AQ38,0),\"\")","v":""},{"$f":"IF(Stock!$A38<>\"\",AO38+AR38,\"\")","v":""},{"$f":"IF(Stock!$A38<>\"\",AS38*$G38,\"\")","v":""},{"$f":"IF(Stock!$A38<>\"\",Pilotage!Q$26,\"\")","v":""},{"$f":"IF(Stock!$A38<>\"\",ROUND(AM38*AU38,0),\"\")","v":""},{"$f":"IF(Stock!$A38<>\"\",$H38*AV38,\"\")","v":""},{"$f":"IF(Stock!$A38<>\"\",AS38-AV38-'Ventes Produits'!W487,\"\")","v":""},{"$f":"IF(Stock!$A38<>\"\",AX38*$G38,\"\")","v":""},{"$f":"IF(Stock!$A38<>\"\",Pilotage!$R$35,\"\")","v":""},{"$f":"IF(Stock!$A38<>\"\",ROUND(Stock!$A38*AZ38,0),\"\")","v":""},{"$f":"IF(Stock!$A38<>\"\",AX38+BA38,\"\")","v":""},{"$f":"IF(Stock!$A38<>\"\",BB38*$G38,\"\")","v":""},{"$f":"IF(Stock!$A38<>\"\",Pilotage!R$26,\"\")","v":""},{"$f":"IF(Stock!$A38<>\"\",ROUND(AV38*BD38,0),\"\")","v":""},{"$f":"IF(Stock!$A38<>\"\",$H38*BE38,\"\")","v":""},{"$f":"IF(Stock!$A38<>\"\",BB38-BE38-'Ventes Produits'!Z487,\"\")","v":""},{"$f":"IF(Stock!$A38<>\"\",BG38*$G38,\"\")","v":""}]
[null,{"$f":"IF(Stock!B39<>\"\",Stock!B39,\"\")","v":""},{"$f":"IF(Stock!C39<>\"\",Stock!C39,\"\")","v":""},{"$f":"IF(Stock!D39<>\"\",Stock!D39,\"\")","v":""},null,null,{"$f":"IF(Stock!$A39<>\"\",IF(Stock!$A39>0,Stock!$K39/Stock!$A39,0),\"\")","v":""},{"$f":"Stock!F39*Pilotage!M$19","v":0},"",{"$f":"IF(Stock!$A39<>\"\",I39*$G39,\"\")","v":""},{"$f":"IF(Stock!$A39<>\"\",Pilotage!$M$26,\"\")","v":""},{"$f":"IF(Stock!$A39<>\"\",ROUND(I39*K39,0),\"\")","v":""},{"$f":"IF(Stock!$A39<>\"\",$H39*L39,\"\")","v":""},{"$f":"IF(Stock!$A39<>\"\",I39-L39-'Ventes Produits'!K488,\"\")","v":""},{"$f":"IF(Stock!$A39<>\"\",N39*$G39,\"\")","v":""},{"$f":"IF(Stock!$A39<>\"\",Pilotage!$N$35,\"\")","v":""},{"$f":"IF(Stock!$A39<>\"\",ROUND(Stock!$A39*P39,0),\"\")","v":""},{"$f":"IF(Stock!$A39<>\"\",N39+Q39,\"\")","v":""},{"$f":"IF(Stock!$A39<>\"\",R39*$G39,\"\")","v":""},{"$f":"IF(Stock!$A39<>\"\",Pilotage!N$26,\"\")","v":""},{"$f":"IF(Stock!$A39<>\"\",ROUND(L39*T39,0),\"\")","v":""},{"$f":"IF(Stock!$A39<>\"\",$H39*U39,\"\")","v":""},{"$f":"IF(Stock!$A39<>\"\",R39-U39-'Ventes Produits'!N488,\"\")","v":""},{"$f":"IF(Stock!$A39<>\"\",W39*$G39,\"\")","v":""},{"$f":"IF(Stock!$A39<>\"\",Pilotage!$O$35,\"\")","v":""},{"$f":"IF(Stock!$A39<>\"\",ROUND(Stock!$A39*Y39,0),\"\")","v":""},{"$f":"IF(Stock!$A39<>\"\",W39+Z39,\"\")","v":""},{"$f":"IF(Stock!$A39<>\"\",AA39*$G39,\"\")","v":""},{"$f":"IF(Stock!$A39<>\"\",Pilotage!O$26,\"\")","v":""},{"$f":"IF(Stock!$A39<>\"\",ROUND(U39*AC39,0),\"\")","v":""},{"$f":"IF(Stock!$A39<>\"\",$H39*AD39,\"\")","v":""},{"$f":"IF(Stock!$A39<>\"\",AA39-AD39-'Ventes Produits'!Q488,\"\")","v":""},{"$f":"IF(Stock!$A39<>\"\",AF39*$G39,\"\")","v":""},{"$f":"IF(Stock!$A39<>\"\",Pilotage!$P$35,\"\")","v":""},{"$f":"IF(Stock!$A39<>\"\",ROUND(Stock!$A39*AH39,0),\"\")","v":""},{"$f":"IF(Stock!$A39<>\"\",AF39+AI39,\"\")","v":""},{"$f":"IF(Stock!$A39<>\"\",AJ39*$G39,\"\")","v":""},{"$f":"IF(Stock!$A39<>\"\",Pilotage!P$26,\"\")","v":""},{"$f":"IF(Stock!$A39<>\"\",ROUND(AD39*AL39,0),\"\")","v":""},{"$f":"IF(Stock!$A39<>\"\",$H39*AM39,\"\")","v":""},{"$f":"IF(Stock!$A39<>\"\",AJ39-AM39-'Ventes Produits'!T488,\"\")","v":""},{"$f":"IF(Stock!$A39<>\"\",AO39*$G39,\"\")","v":""},{"$f":"IF(Stock!$A39<>\"\",Pilotage!$Q$35,\"\")","v":""},{"$f":"IF(Stock!$A39<>\"\",ROUND(Stock!$A39*AQ39,0),\"\")","v":""},{"$f":"IF(Stock!$A39<>\"\",AO39+AR39,\"\")","v":""},{"$f":"IF(Stock!$A39<>\"\",AS39*$G39,\"\")","v":""},{"$f":"IF(Stock!$A39<>\"\",Pilotage!Q$26,\"\")","v":""},{"$f":"IF(Stock!$A39<>\"\",ROUND(AM39*AU39,0),\"\")","v":""},{"$f":"IF(Stock!$A39<>\"\",$H39*AV39,\"\")","v":""},{"$f":"IF(Stock!$A39<>\"\",AS39-AV39-'Ventes Produits'!W488,\"\")","v":""},{"$f":"IF(Stock!$A39<>\"\",AX39*$G39,\"\")","v":""},{"$f":"IF(Stock!$A39<>\"\",Pilotage!$R$35,\"\")","v":""},{"$f":"IF(Stock!$A39<>\"\",ROUND(Stock!$A39*AZ39,0),\"\")","v":""},{"$f":"IF(Stock!$A39<>\"\",AX39+BA39,\"\")","v":""},{"$f":"IF(Stock!$A39<>\"\",BB39*$G39,\"\")","v":""},{"$f":"IF(Stock!$A39<>\"\",Pilotage!R$26,\"\")","v":""},{"$f":"IF(Stock!$A39<>\"\",ROUND(AV39*BD39,0),\"\")","v":""},{"$f":"IF(Stock!$A39<>\"\",$H39*BE39,\"\")","v":""},{"$f":"IF(Stock!$A39<>\"\",BB39-BE39-'Ventes Produits'!Z488,\"\")","v":""},{"$f":"IF(Stock!$A39<>\"\",BG39*$G39,\"\")","v":""}]
[null,{"$f":"IF(Stock!B40<>\"\",Stock!B40,\"\")","v":""},{"$f":"IF(Stock!C40<>\"\",Stock!C40,\"\")","v":""},{"$f":"IF(Stock!D40<>\"\",Stock!D40,\"\")","v":""},null,null,{"$f":"IF(Stock!$A40<>\"\",IF(Stock!$A40>0,Stock!$K40/Stock!$A40,0),\"\")","v":""},{"$f":"Stock!F40*Pilotage!M$19","v":0},"",{"$f":"IF(Stock!$A40<>\"\",I40*$G40,\"\")","v":""},{"$f":"IF(Stock!$A40<>\"\",Pilotage!$M$26,\"\")","v":""},{"$f":"IF(Stock!$A40<>\"\",ROUND(I40*K40,0),\"\")","v":""},{"$f":"IF(Stock!$A40<>\"\",$H40*L40,\"\")","v":""},{"$f":"IF(Stock!$A40<>\"\",I40-L40-'Ventes Produits'!K489,\"\")","v":""},{"$f":"IF(Stock!$A40<>\"\",N40*$G40,\"\")","v":""},{"$f":"IF(Stock!$A40<>\"\",Pilotage!$N$35,\"\")","v":""},{"$f":"IF(Stock!$A40<>\"\",ROUND(Stock!$A40*P40,0),\"\")","v":""},{"$f":"IF(Stock!$A40<>\"\",N40+Q40,\"\")","v":""},{"$f":"IF(Stock!$A40<>\"\",R40*$G40,\"\")","v":""},{"$f":"IF(Stock!$A40<>\"\",Pilotage!N$26,\"\")","v":""},{"$f":"IF(Stock!$A40<>\"\",ROUND(L40*T40,0),\"\")","v":""},{"$f":"IF(Stock!$A40<>\"\",$H40*U40,\"\")","v":""},{"$f":"IF(Stock!$A40<>\"\",R40-U40-'Ventes Produits'!N489,\"\")","v":""},{"$f":"IF(Stock!$A40<>\"\",W40*$G40,\"\")","v":""},{"$f":"IF(Stock!$A40<>\"\",Pilotage!$O$35,\"\")","v":""},{"$f":"IF(Stock!$A40<>\"\",ROUND(Stock!$A40*Y40,0),\"\")","v":""},{"$f":"IF(Stock!$A40<>\"\",W40+Z40,\"\")","v":""},{"$f":"IF(Stock!$A40<>\"\",AA40*$G40,\"\")","v":""},{"$f":"IF(Stock!$A40<>\"\",Pilotage!O$26,\"\")","v":""},{"$f":"IF(Stock!$A40<>\"\",ROUND(U40*AC40,0),\"\")","v":""},{"$f":"IF(Stock!$A40<>\"\",$H40*AD40,\"\")","v":""},{"$f":"IF(Stock!$A40<>\"\",AA40-AD40-'Ventes Produits'!Q489,\"\")","v":""},{"$f":"IF(Stock!$A40<>\"\",AF40*$G40,\"\")","v":""},{"$f":"IF(Stock!$A40<>\"\",Pilotage!$P$35,\"\")","v":""},{"$f":"IF(Stock!$A40<>\"\",ROUND(Stock!$A40*AH40,0),\"\")","v":""},{"$f":"IF(Stock!$A40<>\"\",AF40+AI40,\"\")","v":""},{"$f":"IF(Stock!$A40<>\"\",AJ40*$G40,\"\")","v":""},{"$f":"IF(Stock!$A40<>\"\",Pilotage!P$26,\"\")","v":""},{"$f":"IF(Stock!$A40<>\"\",ROUND(AD40*AL40,0),\"\")","v":""},{"$f":"IF(Stock!$A40<>\"\",$H40*AM40,\"\")","v":""},{"$f":"IF(Stock!$A40<>\"\",AJ40-AM40-'Ventes Produits'!T489,\"\")","v":""},{"$f":"IF(Stock!$A40<>\"\",AO40*$G40,\"\")","v":""},{"$f":"IF(Stock!$A40<>\"\",Pilotage!$Q$35,\"\")","v":""},{"$f":"IF(Stock!$A40<>\"\",ROUND(Stock!$A40*AQ40,0),\"\")","v":""},{"$f":"IF(Stock!$A40<>\"\",AO40+AR40,\"\")","v":""},{"$f":"IF(Stock!$A40<>\"\",AS40*$G40,\"\")","v":""},{"$f":"IF(Stock!$A40<>\"\",Pilotage!Q$26,\"\")","v":""},{"$f":"IF(Stock!$A40<>\"\",ROUND(AM40*AU40,0),\"\")","v":""},{"$f":"IF(Stock!$A40<>\"\",$H40*AV40,\"\")","v":""},{"$f":"IF(Stock!$A40<>\"\",AS40-AV40-'Ventes Produits'!W489,\"\")","v":""},{"$f":"IF(Stock!$A40<>\"\",AX40*$G40,\"\")","v":""},{"$f":"IF(Stock!$A40<>\"\",Pilotage!$R$35,\"\")","v":""},{"$f":"IF(Stock!$A40<>\"\",ROUND(Stock!$A40*AZ40,0),\"\")","v":""},{"$f":"IF(Stock!$A40<>\"\",AX40+BA40,\"\")","v":""},{"$f":"IF(Stock!$A40<>\"\",BB40*$G40,\"\")","v":""},{"$f":"IF(Stock!$A40<>\"\",Pilotage!R$26,\"\")","v":""},{"$f":"IF(Stock!$A40<>\"\",ROUND(AV40*BD40,0),\"\")","v":""},{"$f":"IF(Stock!$A40<>\"\",$H40*BE40,\"\")","v":""},{"$f":"IF(Stock!$A40<>\"\",BB40-BE40-'Ventes Produits'!Z489,\"\")","v":""},{"$f":"IF(Stock!$A40<>\"\",BG40*$G40,\"\")","v":""}]
[null,{"$f":"IF(Stock!B41<>\"\",Stock!B41,\"\")","v":""},{"$f":"IF(Stock!C41<>\"\",Stock!C41,\"\")","v":""},{"$f":"IF(Stock!D41<>\"\",Stock!D41,\"\")","v":""},null,null,{"$f":"IF(Stock!$A41<>\"\",IF(Stock!$A41>0,Stock!$K41/Stock!$A41,0),\"\")","v":""},{"$f":"Stock!F41*Pilotage!M$19","v":0},"",{"$f":"IF(Stock!$A41<>\"\",I41*$G41,\"\")","v":""},{"$f":"IF(Stock!$A41<>\"\",Pilotage!$M$26,\"\")","v":""},{"$f":"IF(Stock!$A41<>\"\",ROUND(I41*K41,0),\"\")","v":""},{"$f":"IF(Stock!$A41<>\"\",$H41*L41,\"\")","v":""},{"$f":"IF(Stock!$A41<>\"\",I41-L41-'Ventes Produits'!K490,\"\")","v":""},{"$f":"IF(Stock!$A41<>\"\",N41*$G41,\"\")","v":""},{"$f":"IF(Stock!$A41<>\"\",Pilotage!$N$35,\"\")","v":""},{"$f":"IF(Stock!$A41<>\"\",ROUND(Stock!$A41*P41,0),\"\")","v":""},{"$f":"IF(Stock!$A41<>\"\",N41+Q41,\"\")","v":""},{"$f":"IF(Stock!$A41<>\"\",R41*$G41,\"\")","v":""},{"$f":"IF(Stock!$A41<>\"\",Pilotage!N$26,\"\")","v":""},{"$f":"IF(Stock!$A41<>\"\",ROUND(L41*T41,0),\"\")","v":""},{"$f":"IF(Stock!$A41<>\"\",$H41*U41,\"\")","v":""},{"$f":"IF(Stock!$A41<>\"\",R41-U41-'Ventes Produits'!N490,\"\")","v":""},{"$f":"IF(Stock!$A41<>\"\",W41*$G41,\"\")","v":""},{"$f":"IF(Stock!$A41<>\"\",Pilotage!$O$35,\"\")","v":""},{"$f":"IF(Stock!$A41<>\"\",ROUND(Stock!$A41*Y41,0),\"\")","v":""},{"$f":"IF(Stock!$A41<>\"\",W41+Z41,\"\")","v":""},{"$f":"IF(Stock!$A41<>\"\",AA41*$G41,\"\")","v":""},{"$f":"IF(Stock!$A41<>\"\",Pilotage!O$26,\"\")","v":""},{"$f":"IF(Stock!$A41<>\"\",ROUND(U41*AC41,0),\"\")","v":""},{"$f":"IF(Stock!$A41<>\"\",$H41*AD41,\"\")","v":""},{"$f":"IF(Stock!$A41<>\"\",AA41-AD41-'Ventes Produits'!Q490,\"\")","v":""},{"$f":"IF(Stock!$A41<>\"\",AF41*$G41,\"\")","v":""},{"$f":"IF(Stock!$A41<>\"\",Pilotage!$P$35,\"\")","v":""},{"$f":"IF(Stock!$A41<>\"\",ROUND(Stock!$A41*AH41,0),\"\")","v":""},{"$f":"IF(Stock!$A41<>\"\",AF41+AI41,\"\")","v":""},{"$f":"IF(Stock!$A41<>\"\",AJ41*$G41,\"\")","v":""},{"$f":"IF(Stock!$A41<>\"\",Pilotage!P$26,\"\")","v":""},{"$f":"IF(Stock!$A41<>\"\",ROUND(AD41*AL41,0),\"\")","v":""},{"$f":"IF(Stock!$A41<>\"\",$H41*AM41,\"\")","v":""},{"$f":"IF(Stock!$A41<>\"\",AJ41-AM41-'Ventes Produits'!T490,\"\")","v":""},{"$f":"IF(Stock!$A41<>\"\",AO41*$G41,\"\")","v":""},{"$f":"IF(Stock!$A41<>\"\",Pilotage!$Q$35,\"\")","v":""},{"$f":"IF(Stock!$A41<>\"\",ROUND(Stock!$A41*AQ41,0),\"\")","v":""},{"$f":"IF(Stock!$A41<>\"\",AO41+AR41,\"\")","v":""},{"$f":"IF(Stock!$A41<>\"\",AS41*$G41,\"\")","v":""},{"$f":"IF(Stock!$A41<>\"\",Pilotage!Q$26,\"\")","v":""},{"$f":"IF(Stock!$A41<>\"\",ROUND(AM41*AU41,0),\"\")","v":""},{"$f":"IF(Stock!$A41<>\"\",$H41*AV41,\"\")","v":""},{"$f":"IF(Stock!$A41<>\"\",AS41-AV41-'Ventes Produits'!W490,\"\")","v":""},{"$f":"IF(Stock!$A41<>\"\",AX41*$G41,\"\")","v":""},{"$f":"IF(Stock!$A41<>\"\",Pilotage!$R$35,\"\")","v":""},{"$f":"IF(Stock!$A41<>\"\",ROUND(Stock!$A41*AZ41,0),\"\")","v":""},{"$f":"IF(Stock!$A41<>\"\",AX41+BA41,\"\")","v":""},{"$f":"IF(Stock!$A41<>\"\",BB41*$G41,\"\")","v":""},{"$f":"IF(Stock!$A41<>\"\",Pilotage!R$26,\"\")","v":""},{"$f":"IF(Stock!$A41<>\"\",ROUND(AV41*BD41,0),\"\")","v":""},{"$f":"IF(Stock!$A41<>\"\",$H41*BE41,\"\")","v":""},{"$f":"IF(Stock!$A41<>\"\",BB41-BE41-'Ventes Produits'!Z490,\"\")","v":""},{"$f":"IF(Stock!$A41<>\"\",BG41*$G41,\"\")","v":""}]
[null,{"$f":"IF(Stock!B42<>\"\",Stock!B42,\"\")","v":""},{"$f":"IF(Stock!C42<>\"\",Stock!C42,\"\")","v":""},{"$f":"IF(Stock!D42<>\"\",Stock!D42,\"\")","v":""},null,null,{"$f":"IF(Stock!$A42<>\"\",IF(Stock!$A42>0,Stock!$K42/Stock!$A42,0),\"\")","v":""},{"$f":"Stock!F42*Pilotage!M$19","v":0},"",{"$f":"IF(Stock!$A42<>\"\",I42*$G42,\"\")","v":""},{"$f":"IF(Stock!$A42<>\"\",Pilotage!$M$26,\"\")","v":""},{"$f":"IF(Stock!$A42<>\"\",ROUND(I42*K42,0),\"\")","v":""},{"$f":"IF(Stock!$A42<>\"\",$H42*L42,\"\")","v":""},{"$f":"IF(Stock!$A42<>\"\",I42-L42-'Ventes Produits'!K491,\"\")","v":""},{"$f":"IF(Stock!$A42<>\"\",N42*$G42,\"\")","v":""},{"$f":"IF(Stock!$A42<>\"\",Pilotage!$N$35,\"\")","v":""},{"$f":"IF(Stock!$A42<>\"\",ROUND(Stock!$A42*P42,0),\"\")","v":""},{"$f":"IF(Stock!$A42<>\"\",N42+Q42,\"\")","v":""},{"$f":"IF(Stock!$A42<>\"\",R42*$G42,\"\")","v":""},{"$f":"IF(Stock!$A42<>\"\",Pilotage!N$26,\"\")","v":""},{"$f":"IF(Stock!$A42<>\"\",ROUND(L42*T42,0),\"\")","v":""},{"$f":"IF(Stock!$A42<>\"\",$H42*U42,\"\")","v":""},{"$f":"IF(Stock!$A42<>\"\",R42-U42-'Ventes Produits'!N491,\"\")","v":""},{"$f":"IF(Stock!$A42<>\"\",W42*$G42,\"\")","v":""},{"$f":"IF(Stock!$A42<>\"\",Pilotage!$O$35,\"\")","v":""},{"$f":"IF(Stock!$A42<>\"\",ROUND(Stock!$A42*Y42,0),\"\")","v":""},{"$f":"IF(Stock!$A42<>\"\",W42+Z42,\"\")","v":""},{"$f":"IF(Stock!$A42<>\"\",AA42*$G42,\"\")","v":""},{"$f":"IF(Stock!$A42<>\"\",Pilotage!O$26,\"\")","v":""},{"$f":"IF(Stock!$A42<>\"\",ROUND(U42*AC42,0),\"\")","v":""},{"$f":"IF(Stock!$A42<>\"\",$H42*AD42,\"\")","v":""},{"$f":"IF(Stock!$A42<>\"\",AA42-AD42-'Ventes Produits'!Q491,\"\")","v":""},{"$f":"IF(Stock!$A42<>\"\",AF42*$G42,\"\")","v":""},{"$f":"IF(Stock!$A42<>\"\",Pilotage!$P$35,\"\")","v":""},{"$f":"IF(Stock!$A42<>\"\",ROUND(Stock!$A42*AH42,0),\"\")","v":""},{"$f":"IF(Stock!$A42<>\"\",AF42+AI42,\"\")","v":""},{"$f":"IF(Stock!$A42<>\"\",AJ42*$G42,\"\")","v":""},{"$f":"IF(Stock!$A42<>\"\",Pilotage!P$26,\"\")","v":""},{"$f":"IF(Stock!$A42<>\"\",ROUND(AD42*AL42,0),\"\")","v":""},{"$f":"IF(Stock!$A42<>\"\",$H42*AM42,\"\")","v":""},{"$f":"IF(Stock!$A42<>\"\",AJ42-AM42-'Ventes Produits'!T491,\"\")","v":""},{"$f":"IF(Stock!$A42<>\"\",AO42*$G42,\"\")","v":""},{"$f":"IF(Stock!$A42<>\"\",Pilotage!$Q$35,\"\")","v":""},{"$f":"IF(Stock!$A42<>\"\",ROUND(Stock!$A42*AQ42,0),\"\")","v":""},{"$f":"IF(Stock!$A42<>\"\",AO42+AR42,\"\")","v":""},{"$f":"IF(Stock!$A42<>\"\",AS42*$G42,\"\")","v":""},{"$f":"IF(Stock!$A42<>\"\",Pilotage!Q$26,\"\")","v":""},{"$f":"IF(Stock!$A42<>\"\",ROUND(AM42*AU42,0),\"\")","v":""},{"$f":"IF(Stock!$A42<>\"\",$H42*AV42,\"\")","v":""},{"$f":"IF(Stock!$A42<>\"\",AS42-AV42-'Ventes Produits'!W491,\"\")","v":""},{"$f":"IF(Stock!$A42<>\"\",AX42*$G42,\"\")","v":""},{"$f":"IF(Stock!$A42<>\"\",Pilotage!$R$35,\"\")","v":""},{"$f":"IF(Stock!$A42<>\"\",ROUND(Stock!$A42*AZ42,0),\"\")","v":""},{"$f":"IF(Stock!$A42<>\"\",AX42+BA42,\"\")","v":""},{"$f":"IF(Stock!$A42<>\"\",BB42*$G42,\"\")","v":""},{"$f":"IF(Stock!$A42<>\"\",Pilotage!R$26,\"\")","v":""},{"$f":"IF(Stock!$A42<>\"\",ROUND(AV42*BD42,0),\"\")","v":""},{"$f":"IF(Stock!$A42<>\"\",$H42*BE42,\"\")","v":""},{"$f":"IF(Stock!$A42<>\"\",BB42-BE42-'Ventes Produits'!Z491,\"\")","v":""},{"$f":"IF(Stock!$A42<>\"\",BG42*$G42,\"\")","v":""}]
[null,{"$f":"IF(Stock!B43<>\"\",Stock!B43,\"\")","v":""},{"$f":"IF(Stock!C43<>\"\",Stock!C43,\"\")","v":""},{"$f":"IF(Stock!D43<>\"\",Stock!D43,\"\")","v":""},null,null,{"$f":"IF(Stock!$A43<>\"\",IF(Stock!$A43>0,Stock!$K43/Stock!$A43,0),\"\")","v":""},{"$f":"Stock!F43*Pilotage!M$19","v":0},"",{"$f":"IF(Stock!$A43<>\"\",I43*$G43,\"\")","v":""},{"$f":"IF(Stock!$A43<>\"\",Pilotage!$M$26,\"\")","v":""},{"$f":"IF(Stock!$A43<>\"\",ROUND(I43*K43,0),\"\")","v":""},{"$f":"IF(Stock!$A43<>\"\",$H43*L43,\"\")","v":""},{"$f":"IF(Stock!$A43<>\"\",I43-L43-'Ventes Produits'!K492,\"\")","v":""},{"$f":"IF(Stock!$A43<>\"\",N43*$G43,\"\")","v":""},{"$f":"IF(Stock!$A43<>\"\",Pilotage!$N$35,\"\")","v":""},{"$f":"IF(Stock!$A43<>\"\",ROUND(Stock!$A43*P43,0),\"\")","v":""},{"$f":"IF(Stock!$A43<>\"\",N43+Q43,\"\")","v":""},{"$f":"IF(Stock!$A43<>\"\",R43*$G43,\"\")","v":""},{"$f":"IF(Stock!$A43<>\"\",Pilotage!N$26,\"\")","v":""},{"$f":"IF(Stock!$A43<>\"\",ROUND(L43*T43,0),\"\")","v":""},{"$f":"IF(Stock!$A43<>\"\",$H43*U43,\"\")","v":""},{"$f":"IF(Stock!$A43<>\"\",R43-U43-'Ventes Produits'!N492,\"\")","v":""},{"$f":"IF(Stock!$A43<>\"\",W43*$G43,\"\")","v":""},{"$f":"IF(Stock!$A43<>\"\",Pilotage!$O$35,\"\")","v":""},{"$f":"IF(Stock!$A43<>\"\",ROUND(Stock!$A43*Y43,0),\"\")","v":""},{"$f":"IF(Stock!$A43<>\"\",W43+Z43,\"\")","v":""},{"$f":"IF(Stock!$A43<>\"\",AA43*$G43,\"\")","v":""},{"$f":"IF(Stock!$A43<>\"\",Pilotage!O$26,\"\")","v":""},{"$f":"IF(Stock!$A43<>\"\",ROUND(U43*AC43,0),\"\")","v":""},{"$f":"IF(Stock!$A43<>\"\",$H43*AD43,\"\")","v":""},{"$f":"IF(Stock!$A43<>\"\",AA43-AD43-'Ventes Produits'!Q492,\"\")","v":""},{"$f":"IF(Stock!$A43<>\"\",AF43*$G43,\"\")","v":""},{"$f":"IF(Stock!$A43<>\"\",Pilotage!$P$35,\"\")","v":""},{"$f":"IF(Stock!$A43<>\"\",ROUND(Stock!$A43*AH43,0),\"\")","v":""},{"$f":"IF(Stock!$A43<>\"\",AF43+AI43,\"\")","v":""},{"$f":"IF(Stock!$A43<>\"\",AJ43*$G43,\"\")","v":""},{"$f":"IF(Stock!$A43<>\"\",Pilotage!P$26,\"\")","v":""},{"$f":"IF(Stock!$A43<>\"\",ROUND(AD43*AL43,0),\"\")","v":""},{"$f":"IF(Stock!$A43<>\"\",$H43*AM43,\"\")","v":""},{"$f":"IF(Stock!$A43<>\"\",AJ43-AM43-'Ventes Produits'!T492,\"\")","v":""},{"$f":"IF(Stock!$A43<>\"\",AO43*$G43,\"\")","v":""},{"$f":"IF(Stock!$A43<>\"\",Pilotage!$Q$35,\"\")","v":""},{"$f":"IF(Stock!$A43<>\"\",ROUND(Stock!$A43*AQ43,0),\"\")","v":""},{"$f":"IF(Stock!$A43<>\"\",AO43+AR43,\"\")","v":""},{"$f":"IF(Stock!$A43<>\"\",AS43*$G43,\"\")","v":""},{"$f":"IF(Stock!$A43<>\"\",Pilotage!Q$26,\"\")","v":""},{"$f":"IF(Stock!$A43<>\"\",ROUND(AM43*AU43,0),\"\")","v":""},{"$f":"IF(Stock!$A43<>\"\",$H43*AV43,\"\")","v":""},{"$f":"IF(Stock!$A43<>\"\",AS43-AV43-'Ventes Produits'!W492,\"\")","v":""},{"$f":"IF(Stock!$A43<>\"\",AX43*$G43,\"\")","v":""},{"$f":"IF(Stock!$A43<>\"\",Pilotage!$R$35,\"\")","v":""},{"$f":"IF(Stock!$A43<>\"\",ROUND(Stock!$A43*AZ43,0),\"\")","v":""},{"$f":"IF(Stock!$A43<>\"\",AX43+BA43,\"\")","v":""},{"$f":"IF(Stock!$A43<>\"\",BB43*$G43,\"\")","v":""},{"$f":"IF(Stock!$A43<>\"\",Pilotage!R$26,\"\")","v":""},{"$f":"IF(Stock!$A43<>\"\",ROUND(AV43*BD43,0),\"\")","v":""},{"$f":"IF(Stock!$A43<>\"\",$H43*BE43,\"\")","v":""},{"$f":"IF(Stock!$A43<>\"\",BB43-BE43-'Ventes Produits'!Z492,\"\")","v":""},{"$f":"IF(Stock!$A43<>\"\",BG43*$G43,\"\")","v":""}]
[null,{"$f":"IF(Stock!B44<>\"\",Stock!B44,\"\")","v":""},{"$f":"IF(Stock!C44<>\"\",Stock!C44,\"\")","v":""},{"$f":"IF(Stock!D44<>\"\",Stock!D44,\"\")","v":""},null,null,{"$f":"IF(Stock!$A44<>\"\",IF(Stock!$A44>0,Stock!$K44/Stock!$A44,0),\"\")","v":""},{"$f":"Stock!F44*Pilotage!M$19","v":0},"",{"$f":"IF(Stock!$A44<>\"\",I44*$G44,\"\")","v":""},{"$f":"IF(Stock!$A44<>\"\",Pilotage!$M$26,\"\")","v":""},{"$f":"IF(Stock!$A44<>\"\",ROUND(I44*K44,0),\"\")","v":""},{"$f":"IF(Stock!$A44<>\"\",$H44*L44,\"\")","v":""},{"$f":"IF(Stock!$A44<>\"\",I44-L44-'Ventes Produits'!K493,\"\")","v":""},{"$f":"IF(Stock!$A44<>\"\",N44*$G44,\"\")","v":""},{"$f":"IF(Stock!$A44<>\"\",Pilotage!$N$35,\"\")","v":""},{"$f":"IF(Stock!$A44<>\"\",ROUND(Stock!$A44*P44,0),\"\")","v":""},{"$f":"IF(Stock!$A44<>\"\",N44+Q44,\"\")","v":""},{"$f":"IF(Stock!$A44<>\"\",R44*$G44,\"\")","v":""},{"$f":"IF(Stock!$A44<>\"\",Pilotage!N$26,\"\")","v":""},{"$f":"IF(Stock!$A44<>\"\",ROUND(L44*T44,0),\"\")","v":""},{"$f":"IF(Stock!$A44<>\"\",$H44*U44,\"\")","v":""},{"$f":"IF(Stock!$A44<>\"\",R44-U44-'Ventes Produits'!N493,\"\")","v":""},{"$f":"IF(Stock!$A44<>\"\",W44*$G44,\"\")","v":""},{"$f":"IF(Stock!$A44<>\"\",Pilotage!$O$35,\"\")","v":""},{"$f":"IF(Stock!$A44<>\"\",ROUND(Stock!$A44*Y44,0),\"\")","v":""},{"$f":"IF(Stock!$A44<>\"\",W44+Z44,\"\")","v":""},{"$f":"IF(Stock!$A44<>\"\",AA44*$G44,\"\")","v":""},{"$f":"IF(Stock!$A44<>\"\",Pilotage!O$26,\"\")","v":""},{"$f":"IF(Stock!$A44<>\"\",ROUND(U44*AC44,0),\"\")","v":""},{"$f":"IF(Stock!$A44<>\"\",$H44*AD44,\"\")","v":""},{"$f":"IF(Stock!$A44<>\"\",AA44-AD44-'Ventes Produits'!Q493,\"\")","v":""},{"$f":"IF(Stock!$A44<>\"\",AF44*$G44,\"\")","v":""},{"$f":"IF(Stock!$A44<>\"\",Pilotage!$P$35,\"\")","v":""},{"$f":"IF(Stock!$A44<>\"\",ROUND(Stock!$A44*AH44,0),\"\")","v":""},{"$f":"IF(Stock!$A44<>\"\",AF44+AI44,\"\")","v":""},{"$f":"IF(Stock!$A44<>\"\",AJ44*$G44,\"\")","v":""},{"$f":"IF(Stock!$A44<>\"\",Pilotage!P$26,\"\")","v":""},{"$f":"IF(Stock!$A44<>\"\",ROUND(AD44*AL44,0),\"\")","v":""},{"$f":"IF(Stock!$A44<>\"\",$H44*AM44,\"\")","v":""},{"$f":"IF(Stock!$A44<>\"\",AJ44-AM44-'Ventes Produits'!T493,\"\")","v":""},{"$f":"IF(Stock!$A44<>\"\",AO44*$G44,\"\")","v":""},{"$f":"IF(Stock!$A44<>\"\",Pilotage!$Q$35,\"\")","v":""},{"$f":"IF(Stock!$A44<>\"\",ROUND(Stock!$A44*AQ44,0),\"\")","v":""},{"$f":"IF(Stock!$A44<>\"\",AO44+AR44,\"\")","v":""},{"$f":"IF(Stock!$A44<>\"\",AS44*$G44,\"\")","v":""},{"$f":"IF(Stock!$A44<>\"\",Pilotage!Q$26,\"\")","v":""},{"$f":"IF(Stock!$A44<>\"\",ROUND(AM44*AU44,0),\"\")","v":""},{"$f":"IF(Stock!$A44<>\"\",$H44*AV44,\"\")","v":""},{"$f":"IF(Stock!$A44<>\"\",AS44-AV44-'Ventes Produits'!W493,\"\")","v":""},{"$f":"IF(Stock!$A44<>\"\",AX44*$G44,\"\")","v":""},{"$f":"IF(Stock!$A44<>\"\",Pilotage!$R$35,\"\")","v":""},{"$f":"IF(Stock!$A44<>\"\",ROUND(Stock!$A44*AZ44,0),\"\")","v":""},{"$f":"IF(Stock!$A44<>\"\",AX44+BA44,\"\")","v":""},{"$f":"IF(Stock!$A44<>\"\",BB44*$G44,\"\")","v":""},{"$f":"IF(Stock!$A44<>\"\",Pilotage!R$26,\"\")","v":""},{"$f":"IF(Stock!$A44<>\"\",ROUND(AV44*BD44,0),\"\")","v":""},{"$f":"IF(Stock!$A44<>\"\",$H44*BE44,\"\")","v":""},{"$f":"IF(Stock!$A44<>\"\",BB44-BE44-'Ventes Produits'!Z493,\"\")","v":""},{"$f":"IF(Stock!$A44<>\"\",BG44*$G44,\"\")","v":""}]
[null,{"$f":"IF(Stock!B45<>\"\",Stock!B45,\"\")","v":""},{"$f":"IF(Stock!C45<>\"\",Stock!C45,\"\")","v":""},{"$f":"IF(Stock!D45<>\"\",Stock!D45,\"\")","v":""},null,null,{"$f":"IF(Stock!$A45<>\"\",IF(Stock!$A45>0,Stock!$K45/Stock!$A45,0),\"\")","v":""},{"$f":"Stock!F45*Pilotage!M$19","v":0},"",{"$f":"IF(Stock!$A45<>\"\",I45*$G45,\"\")","v":""},{"$f":"IF(Stock!$A45<>\"\",Pilotage!$M$26,\"\")","v":""},{"$f":"IF(Stock!$A45<>\"\",ROUND(I45*K45,0),\"\")","v":""},{"$f":"IF(Stock!$A45<>\"\",$H45*L45,\"\")","v":""},{"$f":"IF(Stock!$A45<>\"\",I45-L45-'Ventes Produits'!K494,\"\")","v":""},{"$f":"IF(Stock!$A45<>\"\",N45*$G45,\"\")","v":""},{"$f":"IF(Stock!$A45<>\"\",Pilotage!$N$35,\"\")","v":""},{"$f":"IF(Stock!$A45<>\"\",ROUND(Stock!$A45*P45,0),\"\")","v":""},{"$f":"IF(Stock!$A45<>\"\",N45+Q45,\"\")","v":""},{"$f":"IF(Stock!$A45<>\"\",R45*$G45,\"\")","v":""},{"$f":"IF(Stock!$A45<>\"\",Pilotage!N$26,\"\")","v":""},{"$f":"IF(Stock!$A45<>\"\",ROUND(L45*T45,0),\"\")","v":""},{"$f":"IF(Stock!$A45<>\"\",$H45*U45,\"\")","v":""},{"$f":"IF(Stock!$A45<>\"\",R45-U45-'Ventes Produits'!N494,\"\")","v":""},{"$f":"IF(Stock!$A45<>\"\",W45*$G45,\"\")","v":""},{"$f":"IF(Stock!$A45<>\"\",Pilotage!$O$35,\"\")","v":""},{"$f":"IF(Stock!$A45<>\"\",ROUND(Stock!$A45*Y45,0),\"\")","v":""},{"$f":"IF(Stock!$A45<>\"\",W45+Z45,\"\")","v":""},{"$f":"IF(Stock!$A45<>\"\",AA45*$G45,\"\")","v":""},{"$f":"IF(Stock!$A45<>\"\",Pilotage!O$26,\"\")","v":""},{"$f":"IF(Stock!$A45<>\"\",ROUND(U45*AC45,0),\"\")","v":""},{"$f":"IF(Stock!$A45<>\"\",$H45*AD45,\"\")","v":""},{"$f":"IF(Stock!$A45<>\"\",AA45-AD45-'Ventes Produits'!Q494,\"\")","v":""},{"$f":"IF(Stock!$A45<>\"\",AF45*$G45,\"\")","v":""},{"$f":"IF(Stock!$A45<>\"\",Pilotage!$P$35,\"\")","v":""},{"$f":"IF(Stock!$A45<>\"\",ROUND(Stock!$A45*AH45,0),\"\")","v":""},{"$f":"IF(Stock!$A45<>\"\",AF45+AI45,\"\")","v":""},{"$f":"IF(Stock!$A45<>\"\",AJ45*$G45,\"\")","v":""},{"$f":"IF(Stock!$A45<>\"\",Pilotage!P$26,\"\")","v":""},{"$f":"IF(Stock!$A45<>\"\",ROUND(AD45*AL45,0),\"\")","v":""},{"$f":"IF(Stock!$A45<>\"\",$H45*AM45,\"\")","v":""},{"$f":"IF(Stock!$A45<>\"\",AJ45-AM45-'Ventes Produits'!T494,\"\")","v":""},{"$f":"IF(Stock!$A45<>\"\",AO45*$G45,\"\")","v":""},{"$f":"IF(Stock!$A45<>\"\",Pilotage!$Q$35,\"\")","v":""},{"$f":"IF(Stock!$A45<>\"\",ROUND(Stock!$A45*AQ45,0),\"\")","v":""},{"$f":"IF(Stock!$A45<>\"\",AO45+AR45,\"\")","v":""},{"$f":"IF(Stock!$A45<>\"\",AS45*$G45,\"\")","v":""},{"$f":"IF(Stock!$A45<>\"\",Pilotage!Q$26,\"\")","v":""},{"$f":"IF(Stock!$A45<>\"\",ROUND(AM45*AU45,0),\"\")","v":""},{"$f":"IF(Stock!$A45<>\"\",$H45*AV45,\"\")","v":""},{"$f":"IF(Stock!$A45<>\"\",AS45-AV45-'Ventes Produits'!W494,\"\")","v":""},{"$f":"IF(Stock!$A45<>\"\",AX45*$G45,\"\")","v":""},{"$f":"IF(Stock!$A45<>\"\",Pilotage!$R$35,\"\")","v":""},{"$f":"IF(Stock!$A45<>\"\",ROUND(Stock!$A45*AZ45,0),\"\")","v":""},{"$f":"IF(Stock!$A45<>\"\",AX45+BA45,\"\")","v":""},{"$f":"IF(Stock!$A45<>\"\",BB45*$G45,\"\")","v":""},{"$f":"IF(Stock!$A45<>\"\",Pilotage!R$26,\"\")","v":""},{"$f":"IF(Stock!$A45<>\"\",ROUND(AV45*BD45,0),\"\")","v":""},{"$f":"IF(Stock!$A45<>\"\",$H45*BE45,\"\")","v":""},{"$f":"IF(Stock!$A45<>\"\",BB45-BE45-'Ventes Produits'!Z494,\"\")","v":""},{"$f":"IF(Stock!$A45<>\"\",BG45*$G45,\"\")","v":""}]
[null,{"$f":"IF(Stock!B46<>\"\",Stock!B46,\"\")","v":""},{"$f":"IF(Stock!C46<>\"\",Stock!C46,\"\")","v":""},{"$f":"IF(Stock!D46<>\"\",Stock!D46,\"\")","v":""},null,null,{"$f":"IF(Stock!$A46<>\"\",IF(Stock!$A46>0,Stock!$K46/Stock!$A46,0),\"\")","v":""},{"$f":"Stock!F46*Pilotage!M$19","v":0},"",{"$f":"IF(Stock!$A46<>\"\",I46*$G46,\"\")","v":""},{"$f":"IF(Stock!$A46<>\"\",Pilotage!$M$26,\"\")","v":""},{"$f":"IF(Stock!$A46<>\"\",ROUND(I46*K46,0),\"\")","v":""},{"$f":"IF(Stock!$A46<>\"\",$H46*L46,\"\")","v":""},{"$f":"IF(Stock!$A46<>\"\",I46-L46-'Ventes Produits'!K495,\"\")","v":""},{"$f":"IF(Stock!$A46<>\"\",N46*$G46,\"\")","v":""},{"$f":"IF(Stock!$A46<>\"\",Pilotage!$N$35,\"\")","v":""},{"$f":"IF(Stock!$A46<>\"\",ROUND(Stock!$A46*P46,0),\"\")","v":""},{"$f":"IF(Stock!$A46<>\"\",N46+Q46,\"\")","v":""},{"$f":"IF(Stock!$A46<>\"\",R46*$G46,\"\")","v":""},{"$f":"IF(Stock!$A46<>\"\",Pilotage!N$26,\"\")","v":""},{"$f":"IF(Stock!$A46<>\"\",ROUND(L46*T46,0),\"\")","v":""},{"$f":"IF(Stock!$A46<>\"\",$H46*U46,\"\")","v":""},{"$f":"IF(Stock!$A46<>\"\",R46-U46-'Ventes Produits'!N495,\"\")","v":""},{"$f":"IF(Stock!$A46<>\"\",W46*$G46,\"\")","v":""},{"$f":"IF(Stock!$A46<>\"\",Pilotage!$O$35,\"\")","v":""},{"$f":"IF(Stock!$A46<>\"\",ROUND(Stock!$A46*Y46,0),\"\")","v":""},{"$f":"IF(Stock!$A46<>\"\",W46+Z46,\"\")","v":""},{"$f":"IF(Stock!$A46<>\"\",AA46*$G46,\"\")","v":""},{"$f":"IF(Stock!$A46<>\"\",Pilotage!O$26,\"\")","v":""},{"$f":"IF(Stock!$A46<>\"\",ROUND(U46*AC46,0),\"\")","v":""},{"$f":"IF(Stock!$A46<>\"\",$H46*AD46,\"\")","v":""},{"$f":"IF(Stock!$A46<>\"\",AA46-AD46-'Ventes Produits'!Q495,\"\")","v":""},{"$f":"IF(Stock!$A46<>\"\",AF46*$G46,\"\")","v":""},{"$f":"IF(Stock!$A46<>\"\",Pilotage!$P$35,\"\")","v":""},{"$f":"IF(Stock!$A46<>\"\",ROUND(Stock!$A46*AH46,0),\"\")","v":""},{"$f":"IF(Stock!$A46<>\"\",AF46+AI46,\"\")","v":""},{"$f":"IF(Stock!$A46<>\"\",AJ46*$G46,\"\")","v":""},{"$f":"IF(Stock!$A46<>\"\",Pilotage!P$26,\"\")","v":""},{"$f":"IF(Stock!$A46<>\"\",ROUND(AD46*AL46,0),\"\")","v":""},{"$f":"IF(Stock!$A46<>\"\",$H46*AM46,\"\")","v":""},{"$f":"IF(Stock!$A46<>\"\",AJ46-AM46-'Ventes Produits'!T495,\"\")","v":""},{"$f":"IF(Stock!$A46<>\"\",AO46*$G46,\"\")","v":""},{"$f":"IF(Stock!$A46<>\"\",Pilotage!$Q$35,\"\")","v":""},{"$f":"IF(Stock!$A46<>\"\",ROUND(Stock!$A46*AQ46,0),\"\")","v":""},{"$f":"IF(Stock!$A46<>\"\",AO46+AR46,\"\")","v":""},{"$f":"IF(Stock!$A46<>\"\",AS46*$G46,\"\")","v":""},{"$f":"IF(Stock!$A46<>\"\",Pilotage!Q$26,\"\")","v":""},{"$f":"IF(Stock!$A46<>\"\",ROUND(AM46*AU46,0),\"\")","v":""},{"$f":"IF(Stock!$A46<>\"\",$H46*AV46,\"\")","v":""},{"$f":"IF(Stock!$A46<>\"\",AS46-AV46-'Ventes Produits'!W495,\"\")","v":""},{"$f":"IF(Stock!$A46<>\"\",AX46*$G46,\"\")","v":""},{"$f":"IF(Stock!$A46<>\"\",Pilotage!$R$35,\"\")","v":""},{"$f":"IF(Stock!$A46<>\"\",ROUND(Stock!$A46*AZ46,0),\"\")","v":""},{"$f":"IF(Stock!$A46<>\"\",AX46+BA46,\"\")","v":""},{"$f":"IF(Stock!$A46<>\"\",BB46*$G46,\"\")","v":""},{"$f":"IF(Stock!$A46<>\"\",Pilotage!R$26,\"\")","v":""},{"$f":"IF(Stock!$A46<>\"\",ROUND(AV46*BD46,0),\"\")","v":""},{"$f":"IF(Stock!$A46<>\"\",$H46*BE46,\"\")","v":""},{"$f":"IF(Stock!$A46<>\"\",BB46-BE46-'Ventes Produits'!Z495,\"\")","v":""},{"$f":"IF(Stock!$A46<>\"\",BG46*$G46,\"\")","v":""}]
[null,{"$f":"IF(Stock!B47<>\"\",Stock!B47,\"\")","v":""},{"$f":"IF(Stock!C47<>\"\",Stock!C47,\"\")","v":""},{"$f":"IF(Stock!D47<>\"\",Stock!D47,\"\")","v":""},null,null,{"$f":"IF(Stock!$A47<>\"\",IF(Stock!$A47>0,Stock!$K47/Stock!$A47,0),\"\")","v":""},{"$f":"Stock!F47*Pilotage!M$19","v":0},"",{"$f":"IF(Stock!$A47<>\"\",I47*$G47,\"\")","v":""},{"$f":"IF(Stock!$A47<>\"\",Pilotage!$M$26,\"\")","v":""},{"$f":"IF(Stock!$A47<>\"\",ROUND(I47*K47,0),\"\")","v":""},{"$f":"IF(Stock!$A47<>\"\",$H47*L47,\"\")","v":""},{"$f":"IF(Stock!$A47<>\"\",I47-L47-'Ventes Produits'!K496,\"\")","v":""},{"$f":"IF(Stock!$A47<>\"\",N47*$G47,\"\")","v":""},{"$f":"IF(Stock!$A47<>\"\",Pilotage!$N$35,\"\")","v":""},{"$f":"IF(Stock!$A47<>\"\",ROUND(Stock!$A47*P47,0),\"\")","v":""},{"$f":"IF(Stock!$A47<>\"\",N47+Q47,\"\")","v":""},{"$f":"IF(Stock!$A47<>\"\",R47*$G47,\"\")","v":""},{"$f":"IF(Stock!$A47<>\"\",Pilotage!N$26,\"\")","v":""},{"$f":"IF(Stock!$A47<>\"\",ROUND(L47*T47,0),\"\")","v":""},{"$f":"IF(Stock!$A47<>\"\",$H47*U47,\"\")","v":""},{"$f":"IF(Stock!$A47<>\"\",R47-U47-'Ventes Produits'!N496,\"\")","v":""},{"$f":"IF(Stock!$A47<>\"\",W47*$G47,\"\")","v":""},{"$f":"IF(Stock!$A47<>\"\",Pilotage!$O$35,\"\")","v":""},{"$f":"IF(Stock!$A47<>\"\",ROUND(Stock!$A47*Y47,0),\"\")","v":""},{"$f":"IF(Stock!$A47<>\"\",W47+Z47,\"\")","v":""},{"$f":"IF(Stock!$A47<>\"\",AA47*$G47,\"\")","v":""},{"$f":"IF(Stock!$A47<>\"\",Pilotage!O$26,\"\")","v":""},{"$f":"IF(Stock!$A47<>\"\",ROUND(U47*AC47,0),\"\")","v":""},{"$f":"IF(Stock!$A47<>\"\",$H47*AD47,\"\")","v":""},{"$f":"IF(Stock!$A47<>\"\",AA47-AD47-'Ventes Produits'!Q496,\"\")","v":""},{"$f":"IF(Stock!$A47<>\"\",AF47*$G47,\"\")","v":""},{"$f":"IF(Stock!$A47<>\"\",Pilotage!$P$35,\"\")","v":""},{"$f":"IF(Stock!$A47<>\"\",ROUND(Stock!$A47*AH47,0),\"\")","v":""},{"$f":"IF(Stock!$A47<>\"\",AF47+AI47,\"\")","v":""},{"$f":"IF(Stock!$A47<>\"\",AJ47*$G47,\"\")","v":""},{"$f":"IF(Stock!$A47<>\"\",Pilotage!P$26,\"\")","v":""},{"$f":"IF(Stock!$A47<>\"\",ROUND(AD47*AL47,0),\"\")","v":""},{"$f":"IF(Stock!$A47<>\"\",$H47*AM47,\"\")","v":""},{"$f":"IF(Stock!$A47<>\"\",AJ47-AM47-'Ventes Produits'!T496,\"\")","v":""},{"$f":"IF(Stock!$A47<>\"\",AO47*$G47,\"\")","v":""},{"$f":"IF(Stock!$A47<>\"\",Pilotage!$Q$35,\"\")","v":""},{"$f":"IF(Stock!$A47<>\"\",ROUND(Stock!$A47*AQ47,0),\"\")","v":""},{"$f":"IF(Stock!$A47<>\"\",AO47+AR47,\"\")","v":""},{"$f":"IF(Stock!$A47<>\"\",AS47*$G47,\"\")","v":""},{"$f":"IF(Stock!$A47<>\"\",Pilotage!Q$26,\"\")","v":""},{"$f":"IF(Stock!$A47<>\"\",ROUND(AM47*AU47,0),\"\")","v":""},{"$f":"IF(Stock!$A47<>\"\",$H47*AV47,\"\")","v":""},{"$f":"IF(Stock!$A47<>\"\",AS47-AV47-'Ventes Produits'!W496,\"\")","v":""},{"$f":"IF(Stock!$A47<>\"\",AX47*$G47,\"\")","v":""},{"$f":"IF(Stock!$A47<>\"\",Pilotage!$R$35,\"\")","v":""},{"$f":"IF(Stock!$A47<>\"\",ROUND(Stock!$A47*AZ47,0),\"\")","v":""},{"$f":"IF(Stock!$A47<>\"\",AX47+BA47,\"\")","v":""},{"$f":"IF(Stock!$A47<>\"\",BB47*$G47,\"\")","v":""},{"$f":"IF(Stock!$A47<>\"\",Pilotage!R$26,\"\")","v":""},{"$f":"IF(Stock!$A47<>\"\",ROUND(AV47*BD47,0),\"\")","v":""},{"$f":"IF(Stock!$A47<>\"\",$H47*BE47,\"\")","v":""},{"$f":"IF(Stock!$A47<>\"\",BB47-BE47-'Ventes Produits'!Z496,\"\")","v":""},{"$f":"IF(Stock!$A47<>\"\",BG47*$G47,\"\")","v":""}]
[null,{"$f":"IF(Stock!B48<>\"\",Stock!B48,\"\")","v":""},{"$f":"IF(Stock!C48<>\"\",Stock!C48,\"\")","v":""},{"$f":"IF(Stock!D48<>\"\",Stock!D48,\"\")","v":""},null,null,{"$f":"IF(Stock!$A48<>\"\",IF(Stock!$A48>0,Stock!$K48/Stock!$A48,0),\"\")","v":""},{"$f":"IF(Stock!$A48<>\"\",E48*Pilotage!$D$15,\"\")","v":""},{"$f":"IF(Stock!$A48<>\"\",IF(Stock!$A48>0,Stock!$A48,0),\"\")","v":""},{"$f":"IF(Stock!$A48<>\"\",I48*$G48,\"\")","v":""},{"$f":"IF(Stock!$A48<>\"\",Pilotage!$M$26,\"\")","v":""},{"$f":"IF(Stock!$A48<>\"\",ROUND(I48*K48,0),\"\")","v":""},{"$f":"IF(Stock!$A48<>\"\",$H48*L48,\"\")","v":""},{"$f":"IF(Stock!$A48<>\"\",I48-L48-'Ventes Produits'!K497,\"\")","v":""},{"$f":"IF(Stock!$A48<>\"\",N48*$G48,\"\")","v":""},{"$f":"IF(Stock!$A48<>\"\",Pilotage!$N$35,\"\")","v":""},{"$f":"IF(Stock!$A48<>\"\",ROUND(Stock!$A48*P48,0),\"\")","v":""},{"$f":"IF(Stock!$A48<>\"\",N48+Q48,\"\")","v":""},{"$f":"IF(Stock!$A48<>\"\",R48*$G48,\"\")","v":""},{"$f":"IF(Stock!$A48<>\"\",Pilotage!N$26,\"\")","v":""},{"$f":"IF(Stock!$A48<>\"\",ROUND(L48*T48,0),\"\")","v":""},{"$f":"IF(Stock!$A48<>\"\",$H48*U48,\"\")","v":""},{"$f":"IF(Stock!$A48<>\"\",R48-U48-'Ventes Produits'!N497,\"\")","v":""},{"$f":"IF(Stock!$A48<>\"\",W48*$G48,\"\")","v":""},{"$f":"IF(Stock!$A48<>\"\",Pilotage!$O$35,\"\")","v":""},{"$f":"IF(Stock!$A48<>\"\",ROUND(Stock!$A48*Y48,0),\"\")","v":""},{"$f":"IF(Stock!$A48<>\"\",W48+Z48,\"\")","v":""},{"$f":"IF(Stock!$A48<>\"\",AA48*$G48,\"\")","v":""},{"$f":"IF(Stock!$A48<>\"\",Pilotage!O$26,\"\")","v":""},{"$f":"IF(Stock!$A48<>\"\",ROUND(U48*AC48,0),\"\")","v":""},{"$f":"IF(Stock!$A48<>\"\",$H48*AD48,\"\")","v":""},{"$f":"IF(Stock!$A48<>\"\",AA48-AD48-'Ventes Produits'!Q497,\"\")","v":""},{"$f":"IF(Stock!$A48<>\"\",AF48*$G48,\"\")","v":""},{"$f":"IF(Stock!$A48<>\"\",Pilotage!$P$35,\"\")","v":""},{"$f":"IF(Stock!$A48<>\"\",ROUND(Stock!$A48*AH48,0),\"\")","v":""},{"$f":"IF(Stock!$A48<>\"\",AF48+AI48,\"\")","v":""},{"$f":"IF(Stock!$A48<>\"\",AJ48*$G48,\"\")","v":""},{"$f":"IF(Stock!$A48<>\"\",Pilotage!P$26,\"\")","v":""},{"$f":"IF(Stock!$A48<>\"\",ROUND(AD48*AL48,0),\"\")","v":""},{"$f":"IF(Stock!$A48<>\"\",$H48*AM48,\"\")","v":""},{"$f":"IF(Stock!$A48<>\"\",AJ48-AM48-'Ventes Produits'!T497,\"\")","v":""},{"$f":"IF(Stock!$A48<>\"\",AO48*$G48,\"\")","v":""},{"$f":"IF(Stock!$A48<>\"\",Pilotage!$Q$35,\"\")","v":""},{"$f":"IF(Stock!$A48<>\"\",ROUND(Stock!$A48*AQ48,0),\"\")","v":""},{"$f":"IF(Stock!$A48<>\"\",AO48+AR48,\"\")","v":""},{"$f":"IF(Stock!$A48<>\"\",AS48*$G48,\"\")","v":""},{"$f":"IF(Stock!$A48<>\"\",Pilotage!Q$26,\"\")","v":""},{"$f":"IF(Stock!$A48<>\"\",ROUND(AM48*AU48,0),\"\")","v":""},{"$f":"IF(Stock!$A48<>\"\",$H48*AV48,\"\")","v":""},{"$f":"IF(Stock!$A48<>\"\",AS48-AV48-'Ventes Produits'!W497,\"\")","v":""},{"$f":"IF(Stock!$A48<>\"\",AX48*$G48,\"\")","v":""},{"$f":"IF(Stock!$A48<>\"\",Pilotage!$R$35,\"\")","v":""},{"$f":"IF(Stock!$A48<>\"\",ROUND(Stock!$A48*AZ48,0),\"\")","v":""},{"$f":"IF(Stock!$A48<>\"\",AX48+BA48,\"\")","v":""},{"$f":"IF(Stock!$A48<>\"\",BB48*$G48,\"\")","v":""},{"$f":"IF(Stock!$A48<>\"\",Pilotage!R$26,\"\")","v":""},{"$f":"IF(Stock!$A48<>\"\",ROUND(AV48*BD48,0),\"\")","v":""},{"$f":"IF(Stock!$A48<>\"\",$H48*BE48,\"\")","v":""},{"$f":"IF(Stock!$A48<>\"\",BB48-BE48-'Ventes Produits'!Z497,\"\")","v":""},{"$f":"IF(Stock!$A48<>\"\",BG48*$G48,\"\")","v":""}]
[null,{"$f":"IF(Stock!B49<>\"\",Stock!B49,\"\")","v":""},{"$f":"IF(Stock!C49<>\"\",Stock!C49,\"\")","v":""},{"$f":"IF(Stock!D49<>\"\",Stock!D49,\"\")","v":""},null,null,{"$f":"IF(Stock!$A49<>\"\",IF(Stock!$A49>0,Stock!$K49/Stock!$A49,0),\"\")","v":""},{"$f":"IF(Stock!$A49<>\"\",E49*Pilotage!$D$15,\"\")","v":""},{"$f":"IF(Stock!$A49<>\"\",IF(Stock!$A49>0,Stock!$A49,0),\"\")","v":""},{"$f":"IF(Stock!$A49<>\"\",I49*$G49,\"\")","v":""},{"$f":"IF(Stock!$A49<>\"\",Pilotage!$M$26,\"\")","v":""},{"$f":"IF(Stock!$A49<>\"\",ROUND(I49*K49,0),\"\")","v":""},{"$f":"IF(Stock!$A49<>\"\",$H49*L49,\"\")","v":""},{"$f":"IF(Stock!$A49<>\"\",I49-L49-'Ventes Produits'!K498,\"\")","v":""},{"$f":"IF(Stock!$A49<>\"\",N49*$G49,\"\")","v":""},{"$f":"IF(Stock!$A49<>\"\",Pilotage!$N$35,\"\")","v":""},{"$f":"IF(Stock!$A49<>\"\",ROUND(Stock!$A49*P49,0),\"\")","v":""},{"$f":"IF(Stock!$A49<>\"\",N49+Q49,\"\")","v":""},{"$f":"IF(Stock!$A49<>\"\",R49*$G49,\"\")","v":""},{"$f":"IF(Stock!$A49<>\"\",Pilotage!N$26,\"\")","v":""},{"$f":"IF(Stock!$A49<>\"\",ROUND(L49*T49,0),\"\")","v":""},{"$f":"IF(Stock!$A49<>\"\",$H49*U49,\"\")","v":""},{"$f":"IF(Stock!$A49<>\"\",R49-U49-'Ventes Produits'!N498,\"\")","v":""},{"$f":"IF(Stock!$A49<>\"\",W49*$G49,\"\")","v":""},{"$f":"IF(Stock!$A49<>\"\",Pilotage!$O$35,\"\")","v":""},{"$f":"IF(Stock!$A49<>\"\",ROUND(Stock!$A49*Y49,0),\"\")","v":""},{"$f":"IF(Stock!$A49<>\"\",W49+Z49,\"\")","v":""},{"$f":"IF(Stock!$A49<>\"\",AA49*$G49,\"\")","v":""},{"$f":"IF(Stock!$A49<>\"\",Pilotage!O$26,\"\")","v":""},{"$f":"IF(Stock!$A49<>\"\",ROUND(U49*AC49,0),\"\")","v":""},{"$f":"IF(Stock!$A49<>\"\",$H49*AD49,\"\")","v":""},{"$f":"IF(Stock!$A49<>\"\",AA49-AD49-'Ventes Produits'!Q498,\"\")","v":""},{"$f":"IF(Stock!$A49<>\"\",AF49*$G49,\"\")","v":""},{"$f":"IF(Stock!$A49<>\"\",Pilotage!$P$35,\"\")","v":""},{"$f":"IF(Stock!$A49<>\"\",ROUND(Stock!$A49*AH49,0),\"\")","v":""},{"$f":"IF(Stock!$A49<>\"\",AF49+AI49,\"\")","v":""},{"$f":"IF(Stock!$A49<>\"\",AJ49*$G49,\"\")","v":""},{"$f":"IF(Stock!$A49<>\"\",Pilotage!P$26,\"\")","v":""},{"$f":"IF(Stock!$A49<>\"\",ROUND(AD49*AL49,0),\"\")","v":""},{"$f":"IF(Stock!$A49<>\"\",$H49*AM49,\"\")","v":""},{"$f":"IF(Stock!$A49<>\"\",AJ49-AM49-'Ventes Produits'!T498,\"\")","v":""},{"$f":"IF(Stock!$A49<>\"\",AO49*$G49,\"\")","v":""},{"$f":"IF(Stock!$A49<>\"\",Pilotage!$Q$35,\"\")","v":""},{"$f":"IF(Stock!$A49<>\"\",ROUND(Stock!$A49*AQ49,0),\"\")","v":""},{"$f":"IF(Stock!$A49<>\"\",AO49+AR49,\"\")","v":""},{"$f":"IF(Stock!$A49<>\"\",AS49*$G49,\"\")","v":""},{"$f":"IF(Stock!$A49<>\"\",Pilotage!Q$26,\"\")","v":""},{"$f":"IF(Stock!$A49<>\"\",ROUND(AM49*AU49,0),\"\")","v":""},{"$f":"IF(Stock!$A49<>\"\",$H49*AV49,\"\")","v":""},{"$f":"IF(Stock!$A49<>\"\",AS49-AV49-'Ventes Produits'!W498,\"\")","v":""},{"$f":"IF(Stock!$A49<>\"\",AX49*$G49,\"\")","v":""},{"$f":"IF(Stock!$A49<>\"\",Pilotage!$R$35,\"\")","v":""},{"$f":"IF(Stock!$A49<>\"\",ROUND(Stock!$A49*AZ49,0),\"\")","v":""},{"$f":"IF(Stock!$A49<>\"\",AX49+BA49,\"\")","v":""},{"$f":"IF(Stock!$A49<>\"\",BB49*$G49,\"\")","v":""},{"$f":"IF(Stock!$A49<>\"\",Pilotage!R$26,\"\")","v":""},{"$f":"IF(Stock!$A49<>\"\",ROUND(AV49*BD49,0),\"\")","v":""},{"$f":"IF(Stock!$A49<>\"\",$H49*BE49,\"\")","v":""},{"$f":"IF(Stock!$A49<>\"\",BB49-BE49-'Ventes Produits'!Z498,\"\")","v":""},{"$f":"IF(Stock!$A49<>\"\",BG49*$G49,\"\")","v":""}]
[null,{"$f":"IF(Stock!B50<>\"\",Stock!B50,\"\")","v":""},{"$f":"IF(Stock!C50<>\"\",Stock!C50,\"\")","v":""},{"$f":"IF(Stock!D50<>\"\",Stock!D50,\"\")","v":""},null,null,{"$f":"IF(Stock!$A50<>\"\",IF(Stock!$A50>0,Stock!$K50/Stock!$A50,0),\"\")","v":""},{"$f":"IF(Stock!$A50<>\"\",E50*Pilotage!$D$15,\"\")","v":""},{"$f":"IF(Stock!$A50<>\"\",IF(Stock!$A50>0,Stock!$A50,0),\"\")","v":""},{"$f":"IF(Stock!$A50<>\"\",I50*$G50,\"\")","v":""},{"$f":"IF(Stock!$A50<>\"\",Pilotage!$M$26,\"\")","v":""},{"$f":"IF(Stock!$A50<>\"\",ROUND(I50*K50,0),\"\")","v":""},{"$f":"IF(Stock!$A50<>\"\",$H50*L50,\"\")","v":""},{"$f":"IF(Stock!$A50<>\"\",I50-L50-'Ventes Produits'!K499,\"\")","v":""},{"$f":"IF(Stock!$A50<>\"\",N50*$G50,\"\")","v":""},{"$f":"IF(Stock!$A50<>\"\",Pilotage!$N$35,\"\")","v":""},{"$f":"IF(Stock!$A50<>\"\",ROUND(Stock!$A50*P50,0),\"\")","v":""},{"$f":"IF(Stock!$A50<>\"\",N50+Q50,\"\")","v":""},{"$f":"IF(Stock!$A50<>\"\",R50*$G50,\"\")","v":""},{"$f":"IF(Stock!$A50<>\"\",Pilotage!N$26,\"\")","v":""},{"$f":"IF(Stock!$A50<>\"\",ROUND(L50*T50,0),\"\")","v":""},{"$f":"IF(Stock!$A50<>\"\",$H50*U50,\"\")","v":""},{"$f":"IF(Stock!$A50<>\"\",R50-U50-'Ventes Produits'!N499,\"\")","v":""},{"$f":"IF(Stock!$A50<>\"\",W50*$G50,\"\")","v":""},{"$f":"IF(Stock!$A50<>\"\",Pilotage!$O$35,\"\")","v":""},{"$f":"IF(Stock!$A50<>\"\",ROUND(Stock!$A50*Y50,0),\"\")","v":""},{"$f":"IF(Stock!$A50<>\"\",W50+Z50,\"\")","v":""},{"$f":"IF(Stock!$A50<>\"\",AA50*$G50,\"\")","v":""},{"$f":"IF(Stock!$A50<>\"\",Pilotage!O$26,\"\")","v":""},{"$f":"IF(Stock!$A50<>\"\",ROUND(U50*AC50,0),\"\")","v":""},{"$f":"IF(Stock!$A50<>\"\",$H50*AD50,\"\")","v":""},{"$f":"IF(Stock!$A50<>\"\",AA50-AD50-'Ventes Produits'!Q499,\"\")","v":""},{"$f":"IF(Stock!$A50<>\"\",AF50*$G50,\"\")","v":""},{"$f":"IF(Stock!$A50<>\"\",Pilotage!$P$35,\"\")","v":""},{"$f":"IF(Stock!$A50<>\"\",ROUND(Stock!$A50*AH50,0),\"\")","v":""},{"$f":"IF(Stock!$A50<>\"\",AF50+AI50,\"\")","v":""},{"$f":"IF(Stock!$A50<>\"\",AJ50*$G50,\"\")","v":""},{"$f":"IF(Stock!$A50<>\"\",Pilotage!P$26,\"\")","v":""},{"$f":"IF(Stock!$A50<>\"\",ROUND(AD50*AL50,0),\"\")","v":""},{"$f":"IF(Stock!$A50<>\"\",$H50*AM50,\"\")","v":""},{"$f":"IF(Stock!$A50<>\"\",AJ50-AM50-'Ventes Produits'!T499,\"\")","v":""},{"$f":"IF(Stock!$A50<>\"\",AO50*$G50,\"\")","v":""},{"$f":"IF(Stock!$A50<>\"\",Pilotage!$Q$35,\"\")","v":""},{"$f":"IF(Stock!$A50<>\"\",ROUND(Stock!$A50*AQ50,0),\"\")","v":""},{"$f":"IF(Stock!$A50<>\"\",AO50+AR50,\"\")","v":""},{"$f":"IF(Stock!$A50<>\"\",AS50*$G50,\"\")","v":""},{"$f":"IF(Stock!$A50<>\"\",Pilotage!Q$26,\"\")","v":""},{"$f":"IF(Stock!$A50<>\"\",ROUND(AM50*AU50,0),\"\")","v":""},{"$f":"IF(Stock!$A50<>\"\",$H50*AV50,\"\")","v":""},{"$f":"IF(Stock!$A50<>\"\",AS50-AV50-'Ventes Produits'!W499,\"\")","v":""},{"$f":"IF(Stock!$A50<>\"\",AX50*$G50,\"\")","v":""},{"$f":"IF(Stock!$A50<>\"\",Pilotage!$R$35,\"\")","v":""},{"$f":"IF(Stock!$A50<>\"\",ROUND(Stock!$A50*AZ50,0),\"\")","v":""},{"$f":"IF(Stock!$A50<>\"\",AX50+BA50,\"\")","v":""},{"$f":"IF(Stock!$A50<>\"\",BB50*$G50,\"\")","v":""},{"$f":"IF(Stock!$A50<>\"\",Pilotage!R$26,\"\")","v":""},{"$f":"IF(Stock!$A50<>\"\",ROUND(AV50*BD50,0),\"\")","v":""},{"$f":"IF(Stock!$A50<>\"\",$H50*BE50,\"\")","v":""},{"$f":"IF(Stock!$A50<>\"\",BB50-BE50-'Ventes Produits'!Z499,\"\")","v":""},{"$f":"IF(Stock!$A50<>\"\",BG50*$G50,\"\")","v":""}]
[null,{"$f":"IF(Stock!B51<>\"\",Stock!B51,\"\")","v":""},{"$f":"IF(Stock!C51<>\"\",Stock!C51,\"\")","v":""},{"$f":"IF(Stock!D51<>\"\",Stock!D51,\"\")","v":""},null,null,{"$f":"IF(Stock!$A51<>\"\",IF(Stock!$A51>0,Stock!$K51/Stock!$A51,0),\"\")","v":""},{"$f":"IF(Stock!$A51<>\"\",E51*Pilotage!$D$15,\"\")","v":""},{"$f":"IF(Stock!$A51<>\"\",IF(Stock!$A51>0,Stock!$A51,0),\"\")","v":""},{"$f":"IF(Stock!$A51<>\"\",I51*$G51,\"\")","v":""},{"$f":"IF(Stock!$A51<>\"\",Pilotage!$M$26,\"\")","v":""},{"$f":"IF(Stock!$A51<>\"\",ROUND(I51*K51,0),\"\")","v":""},{"$f":"IF(Stock!$A51<>\"\",$H51*L51,\"\")","v":""},{"$f":"IF(Stock!$A51<>\"\",I51-L51-'Ventes Produits'!K500,\"\")","v":""},{"$f":"IF(Stock!$A51<>\"\",N51*$G51,\"\")","v":""},{"$f":"IF(Stock!$A51<>\"\",Pilotage!$N$35,\"\")","v":""},{"$f":"IF(Stock!$A51<>\"\",ROUND(Stock!$A51*P51,0),\"\")","v":""},{"$f":"IF(Stock!$A51<>\"\",N51+Q51,\"\")","v":""},{"$f":"IF(Stock!$A51<>\"\",R51*$G51,\"\")","v":""},{"$f":"IF(Stock!$A51<>\"\",Pilotage!N$26,\"\")","v":""},{"$f":"IF(Stock!$A51<>\"\",ROUND(L51*T51,0),\"\")","v":""},{"$f":"IF(Stock!$A51<>\"\",$H51*U51,\"\")","v":""},{"$f":"IF(Stock!$A51<>\"\",R51-U51-'Ventes Produits'!N500,\"\")","v":""},{"$f":"IF(Stock!$A51<>\"\",W51*$G51,\"\")","v":""},{"$f":"IF(Stock!$A51<>\"\",Pilotage!$O$35,\"\")","v":""},{"$f":"IF(Stock!$A51<>\"\",ROUND(Stock!$A51*Y51,0),\"\")","v":""},{"$f":"IF(Stock!$A51<>\"\",W51+Z51,\"\")","v":""},{"$f":"IF(Stock!$A51<>\"\",AA51*$G51,\"\")","v":""},{"$f":"IF(Stock!$A51<>\"\",Pilotage!O$26,\"\")","v":""},{"$f":"IF(Stock!$A51<>\"\",ROUND(U51*AC51,0),\"\")","v":""},{"$f":"IF(Stock!$A51<>\"\",$H51*AD51,\"\")","v":""},{"$f":"IF(Stock!$A51<>\"\",AA51-AD51-'Ventes Produits'!Q500,\"\")","v":""},{"$f":"IF(Stock!$A51<>\"\",AF51*$G51,\"\")","v":""},{"$f":"IF(Stock!$A51<>\"\",Pilotage!$P$35,\"\")","v":""},{"$f":"IF(Stock!$A51<>\"\",ROUND(Stock!$A51*AH51,0),\"\")","v":""},{"$f":"IF(Stock!$A51<>\"\",AF51+AI51,\"\")","v":""},{"$f":"IF(Stock!$A51<>\"\",AJ51*$G51,\"\")","v":""},{"$f":"IF(Stock!$A51<>\"\",Pilotage!P$26,\"\")","v":""},{"$f":"IF(Stock!$A51<>\"\",ROUND(AD51*AL51,0),\"\")","v":""},{"$f":"IF(Stock!$A51<>\"\",$H51*AM51,\"\")","v":""},{"$f":"IF(Stock!$A51<>\"\",AJ51-AM51-'Ventes Produits'!T500,\"\")","v":""},{"$f":"IF(Stock!$A51<>\"\",AO51*$G51,\"\")","v":""},{"$f":"IF(Stock!$A51<>\"\",Pilotage!$Q$35,\"\")","v":""},{"$f":"IF(Stock!$A51<>\"\",ROUND(Stock!$A51*AQ51,0),\"\")","v":""},{"$f":"IF(Stock!$A51<>\"\",AO51+AR51,\"\")","v":""},{"$f":"IF(Stock!$A51<>\"\",AS51*$G51,\"\")","v":""},{"$f":"IF(Stock!$A51<>\"\",Pilotage!Q$26,\"\")","v":""},{"$f":"IF(Stock!$A51<>\"\",ROUND(AM51*AU51,0),\"\")","v":""},{"$f":"IF(Stock!$A51<>\"\",$H51*AV51,\"\")","v":""},{"$f":"IF(Stock!$A51<>\"\",AS51-AV51-'Ventes Produits'!W500,\"\")","v":""},{"$f":"IF(Stock!$A51<>\"\",AX51*$G51,\"\")","v":""},{"$f":"IF(Stock!$A51<>\"\",Pilotage!$R$35,\"\")","v":""},{"$f":"IF(Stock!$A51<>\"\",ROUND(Stock!$A51*AZ51,0),\"\")","v":""},{"$f":"IF(Stock!$A51<>\"\",AX51+BA51,\"\")","v":""},{"$f":"IF(Stock!$A51<>\"\",BB51*$G51,\"\")","v":""},{"$f":"IF(Stock!$A51<>\"\",Pilotage!R$26,\"\")","v":""},{"$f":"IF(Stock!$A51<>\"\",ROUND(AV51*BD51,0),\"\")","v":""},{"$f":"IF(Stock!$A51<>\"\",$H51*BE51,\"\")","v":""},{"$f":"IF(Stock!$A51<>\"\",BB51-BE51-'Ventes Produits'!Z500,\"\")","v":""},{"$f":"IF(Stock!$A51<>\"\",BG51*$G51,\"\")","v":""}]
[]
[]
[]
[]
[]
[]
[]
[]
[]
[]
[]
[]
[]
[]
[]
[]
[]
[]
[]
[]
[]
[]
[]
[]
[]
[]
[]
[]
[]
[]
[]
[]
[]
[]
[]
[]
[]
[]
[]
[]
[]
[]
[]
[]
[]
[]
[]
[]
[]
[]
[]
[]
[]
[]
[]
[]
[]
[]
[]
[]
[]
[]
[]
[]
[]
[]
[]
[]
[]
[]
[]
[]
[]
[]
[]
[]
[]
[]
[]
[]
[]
[]
[]
[]
[]
[]
[]
[]
[]
[]
[]
[]
[]
[]
[]
[]
[]
[]
[]
[]
[]
[]
[]
[]
[]
[]
[]
[]
[]
[]
[]
[]
[]
[]
[]
[]
[]
[]
[]
[]
[]
[]
[]
[]
[]
[]
[]
[]
[]
[]
[]
[]
[]
[]
[]
[]
[]
[]
[]
[]
[]
[]
[]
[]
[]
[]
[]
[]
[]
[]
[]
[]
[]
[]
[]
[]
[]
[]
[]
[]
[]
[]
[]
[]
[]
[]
[]
[]
[]
[]
[]
[]
[]
[]
[]
[]
[null,{"$f":"IF(Stock!B229<>\"\",Stock!B229,\"\")","v":""},{"$f":"IF(Stock!C229<>\"\",Stock!C229,\"\")","v":""},{"$f":"IF(Stock!D233<>\"\",Stock!D233,\"\")","v":""}]
[null,{"$f":"IF(Stock!B230<>\"\",Stock!B230,\"\")","v":""},{"$f":"IF(Stock!C230<>\"\",Stock!C230,\"\")","v":""},{"$f":"IF(Stock!D234<>\"\",Stock!D234,\"\")","v":""}]
[null,{"$f":"IF(Stock!B231<>\"\",Stock!B231,\"\")","v":""},{"$f":"IF(Stock!C231<>\"\",Stock!C231,\"\")","v":""},{"$f":"IF(Stock!D235<>\"\",Stock!D235,\"\")","v":""}]
[null,{"$f":"IF(Stock!B232<>\"\",Stock!B232,\"\")","v":""},{"$f":"IF(Stock!C232<>\"\",Stock!C232,\"\")","v":""},{"$f":"IF(Stock!D236<>\"\",Stock!D236,\"\")","v":""}]
[null,{"$f":"IF(Stock!B233<>\"\",Stock!B233,\"\")","v":""},{"$f":"IF(Stock!C233<>\"\",Stock!C233,\"\")","v":""},{"$f":"IF(Stock!D237<>\"\",Stock!D237,\"\")","v":""}]
[null,{"$f":"IF(Stock!B234<>\"\",Stock!B234,\"\")","v":""},{"$f":"IF(Stock!C234<>\"\",Stock!C234,\"\")","v":""},{"$f":"IF(Stock!D238<>\"\",Stock!D238,\"\")","v":""}]
[null,{"$f":"IF(Stock!B235<>\"\",Stock!B235,\"\")","v":""},{"$f":"IF(Stock!C235<>\"\",Stock!C235,\"\")","v":""},{"$f":"IF(Stock!D239<>\"\",Stock!D239,\"\")","v":""}]
[null,{"$f":"IF(Stock!B236<>\"\",Stock!B236,\"\")","v":""},{"$f":"IF(Stock!C236<>\"\",Stock!C236,\"\")","v":""},{"$f":"IF(Stock!D240<>\"\",Stock!D240,\"\")","v":""}]
[null,{"$f":"IF(Stock!B237<>\"\",Stock!B237,\"\")","v":""},{"$f":"IF(Stock!C237<>\"\",Stock!C237,\"\")","v":""},{"$f":"IF(Stock!D241<>\"\",Stock!D241,\"\")","v":""}]
[null,{"$f":"IF(Stock!B238<>\"\",Stock!B238,\"\")","v":""},{"$f":"IF(Stock!C238<>\"\",Stock!C238,\"\")","v":""},{"$f":"IF(Stock!D242<>\"\",Stock!D242,\"\")","v":""}]
[null,{"$f":"IF(Stock!B239<>\"\",Stock!B239,\"\")","v":""},{"$f":"IF(Stock!C239<>\"\",Stock!C239,\"\")","v":""},{"$f":"IF(Stock!D243<>\"\",Stock!D243,\"\")","v":""}]
[null,{"$f":"IF(Stock!B240<>\"\",Stock!B240,\"\")","v":""},{"$f":"IF(Stock!C240<>\"\",Stock!C240,\"\")","v":""},{"$f":"IF(Stock!D244<>\"\",Stock!D244,\"\")","v":""}]
[null,{"$f":"IF(Stock!B241<>\"\",Stock!B241,\"\")","v":""},{"$f":"IF(Stock!C241<>\"\",Stock!C241,\"\")","v":""},{"$f":"IF(Stock!D245<>\"\",Stock!D245,\"\")","v":""}]
[null,{"$f":"IF(Stock!B242<>\"\",Stock!B242,\"\")","v":""},{"$f":"IF(Stock!C242<>\"\",Stock!C242,\"\")","v":""},{"$f":"IF(Stock!D246<>\"\",Stock!D246,\"\")","v":""}]
[null,{"$f":"IF(Stock!B243<>\"\",Stock!B243,\"\")","v":""},{"$f":"IF(Stock!C243<>\"\",Stock!C243,\"\")","v":""},{"$f":"IF(Stock!D247<>\"\",Stock!D247,\"\")","v":""}]
[null,{"$f":"IF(Stock!B244<>\"\",Stock!B244,\"\")","v":""},{"$f":"IF(Stock!C244<>\"\",Stock!C244,\"\")","v":""},{"$f":"IF(Stock!D248<>\"\",Stock!D248,\"\")","v":""}]
[null,{"$f":"IF(Stock!B245<>\"\",Stock!B245,\"\")","v":""},{"$f":"IF(Stock!C245<>\"\",Stock!C245,\"\")","v":""},{"$f":"IF(Stock!D249<>\"\",Stock!D249,\"\")","v":""}]
[null,{"$f":"IF(Stock!B246<>\"\",Stock!B246,\"\")","v":""},{"$f":"IF(Stock!C246<>\"\",Stock!C246,\"\")","v":""},{"$f":"IF(Stock!D250<>\"\",Stock!D250,\"\")","v":""}]
[null,{"$f":"IF(Stock!B247<>\"\",Stock!B247,\"\")","v":""},{"$f":"IF(Stock!C247<>\"\",Stock!C247,\"\")","v":""},{"$f":"IF(Stock!D251<>\"\",Stock!D251,\"\")","v":""}]
[null,{"$f":"IF(Stock!B248<>\"\",Stock!B248,\"\")","v":""},{"$f":"IF(Stock!C248<>\"\",Stock!C248,\"\")","v":""},{"$f":"IF(Stock!D252<>\"\",Stock!D252,\"\")","v":""}]
[null,{"$f":"IF(Stock!B249<>\"\",Stock!B249,\"\")","v":""},{"$f":"IF(Stock!C249<>\"\",Stock!C249,\"\")","v":""},{"$f":"IF(Stock!D253<>\"\",Stock!D253,\"\")","v":""}]
[null,{"$f":"IF(Stock!B250<>\"\",Stock!B250,\"\")","v":""},{"$f":"IF(Stock!C250<>\"\",Stock!C250,\"\")","v":""},{"$f":"IF(Stock!D254<>\"\",Stock!D254,\"\")","v":""}]
[null,{"$f":"IF(Stock!B251<>\"\",Stock!B251,\"\")","v":""},{"$f":"IF(Stock!C251<>\"\",Stock!C251,\"\")","v":""},{"$f":"IF(Stock!D255<>\"\",Stock!D255,\"\")","v":""}]
[null,{"$f":"IF(Stock!B252<>\"\",Stock!B252,\"\")","v":""},{"$f":"IF(Stock!C252<>\"\",Stock!C252,\"\")","v":""},{"$f":"IF(Stock!D256<>\"\",Stock!D256,\"\")","v":""}]
[null,{"$f":"IF(Stock!B253<>\"\",Stock!B253,\"\")","v":""},{"$f":"IF(Stock!C253<>\"\",Stock!C253,\"\")","v":""},{"$f":"IF(Stock!D257<>\"\",Stock!D257,\"\")","v":""}]
[null,{"$f":"IF(Stock!B254<>\"\",Stock!B254,\"\")","v":""},{"$f":"IF(Stock!C254<>\"\",Stock!C254,\"\")","v":""},{"$f":"IF(Stock!D258<>\"\",Stock!D258,\"\")","v":""}]
[null,{"$f":"IF(Stock!B330<>\"\",Stock!B330,\"\")","v":""},{"$f":"IF(Stock!C330<>\"\",Stock!C330,\"\")","v":""},{"$f":"IF(Stock!D334<>\"\",Stock!D334,\"\")","v":""}]
[null,{"$f":"IF(Stock!B331<>\"\",Stock!B331,\"\")","v":""},{"$f":"IF(Stock!C331<>\"\",Stock!C331,\"\")","v":""},{"$f":"IF(Stock!D335<>\"\",Stock!D335,\"\")","v":""}]

{"sheet":"Ventes Produits","index":45,"n_rows":704,"n_cols":27,"rows_kept":704,"cut":false,"hidden":true,"merged":[[1,24,1,26],[1,8,1,11],[1,12,1,14],[1,15,1,17],[1,18,1,20],[1,21,1,23]]}
["Cat.","sous cat.","Designation","Coût TTC","Prix de vente TTC",null,"Acheté HT","Vendu HT","Stock Init A0 Initiale","Estimation A0","Vendus A0","CA A0","Estimation A1","Vendus A1","CA A1","Estimation A2","Vendus A2","CA A2","Estimation A3","Vendus A3","CA A3","Estimation A4","Vendus A4","CA A4","Estimation A5","Vendus A5","CA A5"]
[null,null,null,null,null,null,null,null,"Année 0"]
[]
[null,null,null,null,null,null,null,null,null,null,null,"Total",null,null,"Total",null,null,"Total",null,null,"Total",null,null,"Total",null,null,"Total"]
[null,null,null,null,null,null,null,null,null,null,null,{"$f":"SUM(L8:L1001)","v":{"$error":"#REF!"}},null,null,{"$f":"SUM(O8:O1001)","v":{"$error":"#REF!"}},null,null,{"$f":"SUM(R8:R1001)","v":{"$error":"#REF!"}},null,null,{"$f":"SUM(U8:U1001)","v":{"$error":"#REF!"}},null,null,{"$f":"SUM(X8:X1001)","v":{"$error":"#REF!"}},null,null,{"$f":"SUM(AA8:AA1001)","v":{"$error":"#REF!"}}]
[]
[{"$f":"IF(Stock!B7<>\"\",Stock!B7,\"\")","v":""},{"$f":"IF(Stock!C7<>\"\",Stock!C7,\"\")","v":""},{"$f":"IF(Stock!D7<>\"\",Stock!D7,\"\")","v":""},{"$f":"IF(Stock!$A7<>\"\",SUM(Stock!$J7,Stock!$F7,Stock!$G7),\"\")","v":""},{"$f":"IF(Stock!$A7<>\"\",D7*(1+Pilotage!$M$20),\"\")","v":""}]
[{"$f":"IF(Stock!#REF!<>\"\",Stock!#REF!,\"\")","v":{"$error":"#REF!"}},{"$f":"IF(Stock!#REF!<>\"\",Stock!#REF!,\"\")","v":{"$error":"#REF!"}},{"$f":"IF(Stock!#REF!<>\"\",Stock!#REF!,\"\")","v":{"$error":"#REF!"}},{"$f":"IF(Stock!#REF!<>\"\",SUM(Stock!#REF!,Stock!#REF!,Stock!#REF!),\"\")","v":{"$error":"#REF!"}},{"$f":"IF(Stock!#REF!<>\"\",D8*(1+Pilotage!$M$20),\"\")","v":{"$error":"#REF!"}},null,{"$f":"IF(Stock!#REF!<>\"\",IF(Stock!#REF!>0,Stock!#REF!/Stock!#REF!,0),\"\")","v":{"$error":"#REF!"}},{"$f":"IF(Stock!#REF!<>\"\",#REF!,\"\")","v":{"$error":"#REF!"}},{"$f":"IF(Stock!#REF!<>\"\",IF(Stock!#REF!>0,Stock!#REF!,0),\"\")","v":{"$error":"#REF!"}},{"$f":"IF(Stock!#REF!<>\"\",Pilotage!$M$27,\"\")","v":{"$error":"#REF!"}},{"$f":"IF(Stock!#REF!<>\"\",ROUND(Stock!#REF!*J8,0),\"\")","v":{"$error":"#REF!"}},{"$f":"IF(Stock!#REF!<>\"\",$H8*K8,\"\")","v":{"$error":"#REF!"}},null,{"$f":"IF(Stock!#REF!<>\"\",ROUND(Stock!#REF!*M8,0),\"\")","v":{"$error":"#REF!"}},{"$f":"IF(Stock!#REF!<>\"\",$H8*N8,\"\")","v":{"$error":"#REF!"}},null,{"$f":"IF(Stock!#REF!<>\"\",ROUND(Stock!#REF!*P8,0),\"\")","v":{"$error":"#REF!"}},{"$f":"IF(Stock!#REF!<>\"\",$H8*Q8,\"\")","v":{"$error":"#REF!"}},null,{"$f":"IF(Stock!#REF!<>\"\",ROUND(Stock!#REF!*S8,0),\"\")","v":{"$error":"#REF!"}},{"$f":"IF(Stock!#REF!<>\"\",$H8*T8,\"\")","v":{"$error":"#REF!"}},null,{"$f":"IF(Stock!#REF!<>\"\",ROUND(Stock!#REF!*V8,0),\"\")","v":{"$error":"#REF!"}},{"$f":"IF(Stock!#REF!<>\"\",$H8*W8,\"\")","v":{"$error":"#REF!"}},null,{"$f":"IF(Stock!#REF!<>\"\",ROUND(Stock!#REF!*Y8,0),\"\")","v":{"$error":"#REF!"}},{"$f":"IF(Stock!#REF!<>\"\",$H8*Z8,\"\")","v":{"$error":"#REF!"}}]
[{"$f":"IF(Stock!#REF!<>\"\",Stock!#REF!,\"\")","v":{"$error":"#REF!"}},{"$f":"IF(Stock!#REF!<>\"\",Stock!#REF!,\"\")","v":{"$error":"#REF!"}},{"$f":"IF(Stock!#REF!<>\"\",Stock!#REF!,\"\")","v":{"$error":"#REF!"}},{"$f":"IF(Stock!#REF!<>\"\",SUM(Stock!#REF!,Stock!#REF!,Stock!#REF!),\"\")","v":{"$error":"#REF!"}},{"$f":"IF(Stock!#REF!<>\"\",D9*(1+Pilotage!$M$20),\"\")","v":{"$error":"#REF!"}},null,{"$f":"IF(Stock!#REF!<>\"\",IF(Stock!#REF!>0,Stock!#REF!/Stock!#REF!,0),\"\")","v":{"$error":"#REF!"}},{"$f":"IF(Stock!#REF!<>\"\",#REF!,\"\")","v":{"$error":"#REF!"}},{"$f":"IF(Stock!#REF!<>\"\",IF(Stock!#REF!>0,Stock!#REF!,0),\"\")","v":{"$error":"#REF!"}},{"$f":"IF(Stock!#REF!<>\"\",Pilotage!$M$27,\"\")","v":{"$error":"#REF!"}},{"$f":"IF(Stock!#REF!<>\"\",ROUND(Stock!#REF!*J9,0),\"\")","v":{"$error":"#REF!"}},{"$f":"IF(Stock!#REF!<>\"\",$H9*K9,\"\")","v":{"$error":"#REF!"}},null,{"$f":"IF(Stock!#REF!<>\"\",ROUND(Stock!#REF!*M9,0),\"\")","v":{"$error":"#REF!"}},{"$f":"IF(Stock!#REF!<>\"\",$H9*N9,\"\")","v":{"$error":"#REF!"}},null,{"$f":"IF(Stock!#REF!<>\"\",ROUND(Stock!#REF!*P9,0),\"\")","v":{"$error":"#REF!"}},{"$f":"IF(Stock!#REF!<>\"\",$H9*Q9,\"\")","v":{"$error":"#REF!"}},null,{"$f":"IF(Stock!#REF!<>\"\",ROUND(Stock!#REF!*S9,0),\"\")","v":{"$error":"#REF!"}},{"$f":"IF(Stock!#REF!<>\"\",$H9*T9,\"\")","v":{"$error":"#REF!"}},null,{"$f":"IF(Stock!#REF!<>\"\",ROUND(Stock!#REF!*V9,0),\"\")","v":{"$error":"#REF!"}},{"$f":"IF(Stock!#REF!<>\"\",$H9*W9,\"\")","v":{"$error":"#REF!"}},null,{"$f":"IF(Stock!#REF!<>\"\",ROUND(Stock!#REF!*Y9,0),\"\")","v":{"$error":"#REF!"}},{"$f":"IF(Stock!#REF!<>\"\",$H9*Z9,\"\")","v":{"$error":"#REF!"}}]
[{"$f":"IF(Stock!#REF!<>\"\",Stock!#REF!,\"\")","v":{"$error":"#REF!"}},{"$f":"IF(Stock!#REF!<>\"\",Stock!#REF!,\"\")","v":{"$error":"#REF!"}},{"$f":"IF(Stock!#REF!<>\"\",Stock!#REF!,\"\")","v":{"$error":"#REF!"}},{"$f":"IF(Stock!#REF!<>\"\",SUM(Stock!#REF!,Stock!#REF!,Stock!#REF!),\"\")","v":{"$error":"#REF!"}},{"$f":"IF(Stock!#REF!<>\"\",#REF!*(1+Pilotage!$M$20),\"\")","v":{"$error":"#REF!"}},null,{"$f":"IF(Stock!#REF!<>\"\",IF(Stock!#REF!>0,Stock!#REF!/Stock!#REF!,0),\"\")","v":{"$error":"#REF!"}},{"$f":"IF(Stock!#REF!<>\"\",E10*Pilotage!$D$15,\"\")","v":{"$error":"#REF!"}},{"$f":"IF(Stock!#REF!<>\"\",IF(Stock!#REF!>0,Stock!#REF!,0),\"\")","v":{"$error":"#REF!"}},{"$f":"IF(Stock!#REF!<>\"\",Pilotage!$M$27,\"\")","v":{"$error":"#REF!"}},{"$f":"IF(Stock!#REF!<>\"\",ROUND(Stock!#REF!*J10,0),\"\")","v":{"$error":"#REF!"}},{"$f":"IF(Stock!#REF!<>\"\",$H10*K10,\"\")","v":{"$error":"#REF!"}},{"$f":"IF(Stock!#REF!<>\"\",Pilotage!N$27,\"\")","v":{"$error":"#REF!"}},{"$f":"IF(Stock!#REF!<>\"\",ROUND(K10*M10,0),\"\")","v":{"$error":"#REF!"}},{"$f":"IF(Stock!#REF!<>\"\",$H10*N10,\"\")","v":{"$error":"#REF!"}},{"$f":"IF(Stock!#REF!<>\"\",Pilotage!O$27,\"\")","v":{"$error":"#REF!"}},{"$f":"IF(Stock!#REF!<>\"\",ROUND(K10*P10,0),\"\")","v":{"$error":"#REF!"}},{"$f":"IF(Stock!#REF!<>\"\",$H10*Q10,\"\")","v":{"$error":"#REF!"}},{"$f":"IF(Stock!#REF!<>\"\",Pilotage!P$27,\"\")","v":{"$error":"#REF!"}},{"$f":"IF(Stock!#REF!<>\"\",ROUND(Q10*S10,0),\"\")","v":{"$error":"#REF!"}},{"$f":"IF(Stock!#REF!<>\"\",$H10*T10,\"\")","v":{"$error":"#REF!"}},{"$f":"IF(Stock!#REF!<>\"\",Pilotage!Q$27,\"\")","v":{"$error":"#REF!"}},{"$f":"IF(Stock!#REF!<>\"\",ROUND(T10*V10,0),\"\")","v":{"$error":"#REF!"}},{"$f":"IF(Stock!#REF!<>\"\",$H10*W10,\"\")","v":{"$error":"#REF!"}},{"$f":"IF(Stock!#REF!<>\"\",Pilotage!R$27,\"\")","v":{"$error":"#REF!"}},{"$f":"IF(Stock!#REF!<>\"\",ROUND(W10*Y10,0),\"\")","v":{"$error":"#REF!"}},{"$f":"IF(Stock!#REF!<>\"\",$H10*Z10,\"\")","v":{"$error":"#REF!"}}]
[null,null,null,null,{"$f":"IF(Stock!#REF!<>\"\",#REF!*(1+Pilotage!$M$20),\"\")","v":{"$error":"#REF!"}}]
[null,null,null,null,{"$f":"IF(Stock!#REF!<>\"\",#REF!*(1+Pilotage!$M$20),\"\")","v":{"$error":"#REF!"}}]
[null,null,null,null,{"$f":"IF(Stock!#REF!<>\"\",#REF!*(1+Pilotage!$M$20),\"\")","v":{"$error":"#REF!"}}]
[null,null,null,null,{"$f":"IF(Stock!#REF!<>\"\",#REF!*(1+Pilotage!$M$20),\"\")","v":{"$error":"#REF!"}}]
[null,null,null,null,{"$f":"IF(Stock!#REF!<>\"\",#REF!*(1+Pilotage!$M$20),\"\")","v":{"$error":"#REF!"}}]
[{"$f":"IF(Stock!#REF!<>\"\",Stock!#REF!,\"\")","v":{"$error":"#REF!"}},{"$f":"IF(Stock!#REF!<>\"\",Stock!#REF!,\"\")","v":{"$error":"#REF!"}},{"$f":"IF(Stock!#REF!<>\"\",Stock!#REF!,\"\")","v":{"$error":"#REF!"}},{"$f":"IF(Stock!#REF!<>\"\",SUM(Stock!#REF!,Stock!#REF!,Stock!#REF!),\"\")","v":{"$error":"#REF!"}},{"$f":"IF(Stock!#REF!<>\"\",#REF!*(1+Pilotage!$M$20),\"\")","v":{"$error":"#REF!"}},null,{"$f":"IF(Stock!#REF!<>\"\",IF(Stock!#REF!>0,Stock!#REF!/Stock!#REF!,0),\"\")","v":{"$error":"#REF!"}},{"$f":"IF(Stock!#REF!<>\"\",E16*Pilotage!$D$15,\"\")","v":{"$error":"#REF!"}},{"$f":"IF(Stock!#REF!<>\"\",IF(Stock!#REF!>0,Stock!#REF!,0),\"\")","v":{"$error":"#REF!"}},{"$f":"IF(Stock!#REF!<>\"\",Pilotage!$M$27,\"\")","v":{"$error":"#REF!"}},{"$f":"IF(Stock!#REF!<>\"\",ROUND(Stock!#REF!*J16,0),\"\")","v":{"$error":"#REF!"}},{"$f":"IF(Stock!#REF!<>\"\",$H16*K16,\"\")","v":{"$error":"#REF!"}},{"$f":"IF(Stock!#REF!<>\"\",Pilotage!N$27,\"\")","v":{"$error":"#REF!"}},{"$f":"IF(Stock!#REF!<>\"\",ROUND(K16*M16,0),\"\")","v":{"$error":"#REF!"}},{"$f":"IF(Stock!#REF!<>\"\",$H16*N16,\"\")","v":{"$error":"#REF!"}},{"$f":"IF(Stock!#REF!<>\"\",Pilotage!O$27,\"\")","v":{"$error":"#REF!"}},{"$f":"IF(Stock!#REF!<>\"\",ROUND(K16*P16,0),\"\")","v":{"$error":"#REF!"}},{"$f":"IF(Stock!#REF!<>\"\",$H16*Q16,\"\")","v":{"$error":"#REF!"}},{"$f":"IF(Stock!#REF!<>\"\",Pilotage!P$27,\"\")","v":{"$error":"#REF!"}},{"$f":"IF(Stock!#REF!<>\"\",ROUND(Q16*S16,0),\"\")","v":{"$error":"#REF!"}},{"$f":"IF(Stock!#REF!<>\"\",$H16*T16,\"\")","v":{"$error":"#REF!"}},{"$f":"IF(Stock!#REF!<>\"\",Pilotage!Q$27,\"\")","v":{"$error":"#REF!"}},{"$f":"IF(Stock!#REF!<>\"\",ROUND(T16*V16,0),\"\")","v":{"$error":"#REF!"}},{"$f":"IF(Stock!#REF!<>\"\",$H16*W16,\"\")","v":{"$error":"#REF!"}},{"$f":"IF(Stock!#REF!<>\"\",Pilotage!R$27,\"\")","v":{"$error":"#REF!"}},{"$f":"IF(Stock!#REF!<>\"\",ROUND(W16*Y16,0),\"\")","v":{"$error":"#REF!"}},{"$f":"IF(Stock!#REF!<>\"\",$H16*Z16,\"\")","v":{"$error":"#REF!"}}]
[{"$f":"IF(Stock!#REF!<>\"\",Stock!#REF!,\"\")","v":{"$error":"#REF!"}},{"$f":"IF(Stock!#REF!<>\"\",Stock!#REF!,\"\")","v":{"$error":"#REF!"}},{"$f":"IF(Stock!#REF!<>\"\",Stock!#REF!,\"\")","v":{"$error":"#REF!"}},{"$f":"IF(Stock!#REF!<>\"\",SUM(Stock!#REF!,Stock!#REF!,Stock!#REF!),\"\")","v":{"$error":"#REF!"}},{"$f":"IF(Stock!#REF!<>\"\",#REF!*(1+Pilotage!$M$20),\"\")","v":{"$error":"#REF!"}},null,{"$f":"IF(Stock!#REF!<>\"\",IF(Stock!#REF!>0,Stock!#REF!/Stock!#REF!,0),\"\")","v":{"$error":"#REF!"}},{"$f":"IF(Stock!#REF!<>\"\",E17*Pilotage!$D$15,\"\")","v":{"$error":"#REF!"}},{"$f":"IF(Stock!#REF!<>\"\",IF(Stock!#REF!>0,Stock!#REF!,0),\"\")","v":{"$error":"#REF!"}},{"$f":"IF(Stock!#REF!<>\"\",Pilotage!$M$27,\"\")","v":{"$error":"#REF!"}},{"$f":"IF(Stock!#REF!<>\"\",ROUND(Stock!#REF!*J17,0),\"\")","v":{"$error":"#REF!"}},{"$f":"IF(Stock!#REF!<>\"\",$H17*K17,\"\")","v":{"$error":"#REF!"}},{"$f":"IF(Stock!#REF!<>\"\",Pilotage!N$27,\"\")","v":{"$error":"#REF!"}},{"$f":"IF(Stock!#REF!<>\"\",ROUND(K17*M17,0),\"\")","v":{"$error":"#REF!"}},{"$f":"IF(Stock!#REF!<>\"\",$H17*N17,\"\")","v":{"$error":"#REF!"}},{"$f":"IF(Stock!#REF!<>\"\",Pilotage!O$27,\"\")","v":{"$error":"#REF!"}},{"$f":"IF(Stock!#REF!<>\"\",ROUND(K17*P17,0),\"\")","v":{"$error":"#REF!"}},{"$f":"IF(Stock!#REF!<>\"\",$H17*Q17,\"\")","v":{"$error":"#REF!"}},{"$f":"IF(Stock!#REF!<>\"\",Pilotage!P$27,\"\")","v":{"$error":"#REF!"}},{"$f":"IF(Stock!#REF!<>\"\",ROUND(Q17*S17,0),\"\")","v":{"$error":"#REF!"}},{"$f":"IF(Stock!#REF!<>\"\",$H17*T17,\"\")","v":{"$error":"#REF!"}},{"$f":"IF(Stock!#REF!<>\"\",Pilotage!Q$27,\"\")","v":{"$error":"#REF!"}},{"$f":"IF(Stock!#REF!<>\"\",ROUND(T17*V17,0),\"\")","v":{"$error":"#REF!"}},{"$f":"IF(Stock!#REF!<>\"\",$H17*W17,\"\")","v":{"$error":"#REF!"}},{"$f":"IF(Stock!#REF!<>\"\",Pilotage!R$27,\"\")","v":{"$error":"#REF!"}},{"$f":"IF(Stock!#REF!<>\"\",ROUND(W17*Y17,0),\"\")","v":{"$error":"#REF!"}},{"$f":"IF(Stock!#REF!<>\"\",$H17*Z17,\"\")","v":{"$error":"#REF!"}}]
[{"$f":"IF(Stock!#REF!<>\"\",Stock!#REF!,\"\")","v":{"$error":"#REF!"}},{"$f":"IF(Stock!#REF!<>\"\",Stock!#REF!,\"\")","v":{"$error":"#REF!"}},{"$f":"IF(Stock!#REF!<>\"\",Stock!#REF!,\"\")","v":{"$error":"#REF!"}},{"$f":"IF(Stock!#REF!<>\"\",SUM(Stock!#REF!,Stock!#REF!,Stock!#REF!),\"\")","v":{"$error":"#REF!"}},{"$f":"IF(Stock!#REF!<>\"\",#REF!*(1+Pilotage!$M$20),\"\")","v":{"$error":"#REF!"}},null,{"$f":"IF(Stock!#REF!<>\"\",IF(Stock!#REF!>0,Stock!#REF!/Stock!#REF!,0),\"\")","v":{"$error":"#REF!"}},{"$f":"IF(Stock!#REF!<>\"\",E18*Pilotage!$D$15,\"\")","v":{"$error":"#REF!"}},{"$f":"IF(Stock!#REF!<>\"\",IF(Stock!#REF!>0,Stock!#REF!,0),\"\")","v":{"$error":"#REF!"}},{"$f":"IF(Stock!#REF!<>\"\",Pilotage!$M$27,\"\")","v":{"$error":"#REF!"}},{"$f":"IF(Stock!#REF!<>\"\",ROUND(Stock!#REF!*J18,0),\"\")","v":{"$error":"#REF!"}},{"$f":"IF(Stock!#REF!<>\"\",$H18*K18,\"\")","v":{"$error":"#REF!"}},{"$f":"IF(Stock!#REF!<>\"\",Pilotage!N$27,\"\")","v":{"$error":"#REF!"}},{"$f":"IF(Stock!#REF!<>\"\",ROUND(K18*M18,0),\"\")","v":{"$error":"#REF!"}},{"$f":"IF(Stock!#REF!<>\"\",$H18*N18,\"\")","v":{"$error":"#REF!"}},{"$f":"IF(Stock!#REF!<>\"\",Pilotage!O$27,\"\")","v":{"$error":"#REF!"}},{"$f":"IF(Stock!#REF!<>\"\",ROUND(K18*P18,0),\"\")","v":{"$error":"#REF!"}},{"$f":"IF(Stock!#REF!<>\"\",$H18*Q18,\"\")","v":{"$error":"#REF!"}},{"$f":"IF(Stock!#REF!<>\"\",Pilotage!P$27,\"\")","v":{"$error":"#REF!"}},{"$f":"IF(Stock!#REF!<>\"\",ROUND(Q18*S18,0),\"\")","v":{"$error":"#REF!"}},{"$f":"IF(Stock!#REF!<>\"\",$H18*T18,\"\")","v":{"$error":"#REF!"}},{"$f":"IF(Stock!#REF!<>\"\",Pilotage!Q$27,\"\")","v":{"$error":"#REF!"}},{"$f":"IF(Stock!#REF!<>\"\",ROUND(T18*V18,0),\"\")","v":{"$error":"#REF!"}},{"$f":"IF(Stock!#REF!<>\"\",$H18*W18,\"\")","v":{"$error":"#REF!"}},{"$f":"IF(Stock!#REF!<>\"\",Pilotage!R$27,\"\")","v":{"$error":"#REF!"}},{"$f":"IF(Stock!#REF!<>\"\",ROUND(W18*Y18,0),\"\")","v":{"$error":"#REF!"}},{"$f":"IF(Stock!#REF!<>\"\",$H18*Z18,\"\")","v":{"$error":"#REF!"}}]
[{"$f":"IF(Stock!#REF!<>\"\",Stock!#REF!,\"\")","v":{"$error":"#REF!"}},{"$f":"IF(Stock!#REF!<>\"\",Stock!#REF!,\"\")","v":{"$error":"#REF!"}},{"$f":"IF(Stock!#REF!<>\"\",Stock!#REF!,\"\")","v":{"$error":"#REF!"}},{"$f":"IF(Stock!#REF!<>\"\",SUM(Stock!#REF!,Stock!#REF!,Stock!#REF!),\"\")","v":{"$error":"#REF!"}},{"$f":"IF(Stock!#REF!<>\"\",#REF!*(1+Pilotage!$M$20),\"\")","v":{"$error":"#REF!"}},null,{"$f":"IF(Stock!#REF!<>\"\",IF(Stock!#REF!>0,Stock!#REF!/Stock!#REF!,0),\"\")","v":{"$error":"#REF!"}},{"$f":"IF(Stock!#REF!<>\"\",E19*Pilotage!$D$15,\"\")","v":{"$error":"#REF!"}},{"$f":"IF(Stock!#REF!<>\"\",IF(Stock!#REF!>0,Stock!#REF!,0),\"\")","v":{"$error":"#REF!"}},{"$f":"IF(Stock!#REF!<>\"\",Pilotage!$M$27,\"\")","v":{"$error":"#REF!"}},{"$f":"IF(Stock!#REF!<>\"\",ROUND(Stock!#REF!*J19,0),\"\")","v":{"$error":"#REF!"}},{"$f":"IF(Stock!#REF!<>\"\",$H19*K19,\"\")","v":{"$error":"#REF!"}},{"$f":"IF(Stock!#REF!<>\"\",Pilotage!N$27,\"\")","v":{"$error":"#REF!"}},{"$f":"IF(Stock!#REF!<>\"\",ROUND(K19*M19,0),\"\")","v":{"$error":"#REF!"}},{"$f":"IF(Stock!#REF!<>\"\",$H19*N19,\"\")","v":{"$error":"#REF!"}},{"$f":"IF(Stock!#REF!<>\"\",Pilotage!O$27,\"\")","v":{"$error":"#REF!"}},{"$f":"IF(Stock!#REF!<>\"\",ROUND(K19*P19,0),\"\")","v":{"$error":"#REF!"}},{"$f":"IF(Stock!#REF!<>\"\",$H19*Q19,\"\")","v":{"$error":"#REF!"}},{"$f":"IF(Stock!#REF!<>\"\",Pilotage!P$27,\"\")","v":{"$error":"#REF!"}},{"$f":"IF(Stock!#REF!<>\"\",ROUND(Q19*S19,0),\"\")","v":{"$error":"#REF!"}},{"$f":"IF(Stock!#REF!<>\"\",$H19*T19,\"\")","v":{"$error":"#REF!"}},{"$f":"IF(Stock!#REF!<>\"\",Pilotage!Q$27,\"\")","v":{"$error":"#REF!"}},{"$f":"IF(Stock!#REF!<>\"\",ROUND(T19*V19,0),\"\")","v":{"$error":"#REF!"}},{"$f":"IF(Stock!#REF!<>\"\",$H19*W19,\"\")","v":{"$error":"#REF!"}},{"$f":"IF(Stock!#REF!<>\"\",Pilotage!R$27,\"\")","v":{"$error":"#REF!"}},{"$f":"IF(Stock!#REF!<>\"\",ROUND(W19*Y19,0),\"\")","v":{"$error":"#REF!"}},{"$f":"IF(Stock!#REF!<>\"\",$H19*Z19,\"\")","v":{"$error":"#REF!"}}]
[{"$f":"IF(Stock!#REF!<>\"\",Stock!#REF!,\"\")","v":{"$error":"#REF!"}},{"$f":"IF(Stock!#REF!<>\"\",Stock!#REF!,\"\")","v":{"$error":"#REF!"}},{"$f":"IF(Stock!#REF!<>\"\",Stock!#REF!,\"\")","v":{"$error":"#REF!"}},{"$f":"IF(Stock!#REF!<>\"\",SUM(Stock!#REF!,Stock!#REF!,Stock!#REF!),\"\")","v":{"$error":"#REF!"}},{"$f":"IF(Stock!#REF!<>\"\",#REF!*(1+Pilotage!$M$20),\"\")","v":{"$error":"#REF!"}},null,{"$f":"IF(Stock!#REF!<>\"\",IF(Stock!#REF!>0,Stock!#REF!/Stock!#REF!,0),\"\")","v":{"$error":"#REF!"}},{"$f":"IF(Stock!#REF!<>\"\",E20*Pilotage!$D$15,\"\")","v":{"$error":"#REF!"}},{"$f":"IF(Stock!#REF!<>\"\",IF(Stock!#REF!>0,Stock!#REF!,0),\"\")","v":{"$error":"#REF!"}},{"$f":"IF(Stock!#REF!<>\"\",Pilotage!$M$27,\"\")","v":{"$error":"#REF!"}},{"$f":"IF(Stock!#REF!<>\"\",ROUND(Stock!#REF!*J20,0),\"\")","v":{"$error":"#REF!"}},{"$f":"IF(Stock!#REF!<>\"\",$H20*K20,\"\")","v":{"$error":"#REF!"}},{"$f":"IF(Stock!#REF!<>\"\",Pilotage!N$27,\"\")","v":{"$error":"#REF!"}},{"$f":"IF(Stock!#REF!<>\"\",ROUND(K20*M20,0),\"\")","v":{"$error":"#REF!"}},{"$f":"IF(Stock!#REF!<>\"\",$H20*N20,\"\")","v":{"$error":"#REF!"}},{"$f":"IF(Stock!#REF!<>\"\",Pilotage!O$27,\"\")","v":{"$error":"#REF!"}},{"$f":"IF(Stock!#REF!<>\"\",ROUND(K20*P20,0),\"\")","v":{"$error":"#REF!"}},{"$f":"IF(Stock!#REF!<>\"\",$H20*Q20,\"\")","v":{"$error":"#REF!"}},{"$f":"IF(Stock!#REF!<>\"\",Pilotage!P$27,\"\")","v":{"$error":"#REF!"}},{"$f":"IF(Stock!#REF!<>\"\",ROUND(Q20*S20,0),\"\")","v":{"$error":"#REF!"}},{"$f":"IF(Stock!#REF!<>\"\",$H20*T20,\"\")","v":{"$error":"#REF!"}},{"$f":"IF(Stock!#REF!<>\"\",Pilotage!Q$27,\"\")","v":{"$error":"#REF!"}},{"$f":"IF(Stock!#REF!<>\"\",ROUND(T20*V20,0),\"\")","v":{"$error":"#REF!"}},{"$f":"IF(Stock!#REF!<>\"\",$H20*W20,\"\")","v":{"$error":"#REF!"}},{"$f":"IF(Stock!#REF!<>\"\",Pilotage!R$27,\"\")","v":{"$error":"#REF!"}},{"$f":"IF(Stock!#REF!<>\"\",ROUND(W20*Y20,0),\"\")","v":{"$error":"#REF!"}},{"$f":"IF(Stock!#REF!<>\"\",$H20*Z20,\"\")","v":{"$error":"#REF!"}}]
[{"$f":"IF(Stock!#REF!<>\"\",Stock!#REF!,\"\")","v":{"$error":"#REF!"}},{"$f":"IF(Stock!#REF!<>\"\",Stock!#REF!,\"\")","v":{"$error":"#REF!"}},{"$f":"IF(Stock!#REF!<>\"\",Stock!#REF!,\"\")","v":{"$error":"#REF!"}},{"$f":"IF(Stock!#REF!<>\"\",SUM(Stock!#REF!,Stock!#REF!,Stock!#REF!),\"\")","v":{"$error":"#REF!"}},{"$f":"IF(Stock!#REF!<>\"\",#REF!*(1+Pilotage!$M$20),\"\")","v":{"$error":"#REF!"}},null,{"$f":"IF(Stock!#REF!<>\"\",IF(Stock!#REF!>0,Stock!#REF!/Stock!#REF!,0),\"\")","v":{"$error":"#REF!"}},{"$f":"IF(Stock!#REF!<>\"\",E21*Pilotage!$D$15,\"\")","v":{"$error":"#REF!"}},{"$f":"IF(Stock!#REF!<>\"\",IF(Stock!#REF!>0,Stock!#REF!,0),\"\")","v":{"$error":"#REF!"}},{"$f":"IF(Stock!#REF!<>\"\",Pilotage!$M$27,\"\")","v":{"$error":"#REF!"}},{"$f":"IF(Stock!#REF!<>\"\",ROUND(Stock!#REF!*J21,0),\"\")","v":{"$error":"#REF!"}},{"$f":"IF(Stock!#REF!<>\"\",$H21*K21,\"\")","v":{"$error":"#REF!"}},{"$f":"IF(Stock!#REF!<>\"\",Pilotage!N$27,\"\")","v":{"$error":"#REF!"}},{"$f":"IF(Stock!#REF!<>\"\",ROUND(K21*M21,0),\"\")","v":{"$error":"#REF!"}},{"$f":"IF(Stock!#REF!<>\"\",$H21*N21,\"\")","v":{"$error":"#REF!"}},{"$f":"IF(Stock!#REF!<>\"\",Pilotage!O$27,\"\")","v":{"$error":"#REF!"}},{"$f":"IF(Stock!#REF!<>\"\",ROUND(K21*P21,0),\"\")","v":{"$error":"#REF!"}},{"$f":"IF(Stock!#REF!<>\"\",$H21*Q21,\"\")","v":{"$error":"#REF!"}},{"$f":"IF(Stock!#REF!<>\"\",Pilotage!P$27,\"\")","v":{"$error":"#REF!"}},{"$f":"IF(Stock!#REF!<>\"\",ROUND(Q21*S21,0),\"\")","v":{"$error":"#REF!"}},{"$f":"IF(Stock!#REF!<>\"\",$H21*T21,\"\")","v":{"$error":"#REF!"}},{"$f":"IF(Stock!#REF!<>\"\",Pilotage!Q$27,\"\")","v":{"$error":"#REF!"}},{"$f":"IF(Stock!#REF!<>\"\",ROUND(T21*V21,0),\"\")","v":{"$error":"#REF!"}},{"$f":"IF(Stock!#REF!<>\"\",$H21*W21,\"\")","v":{"$error":"#REF!"}},{"$f":"IF(Stock!#REF!<>\"\",Pilotage!R$27,\"\")","v":{"$error":"#REF!"}},{"$f":"IF(Stock!#REF!<>\"\",ROUND(W21*Y21,0),\"\")","v":{"$error":"#REF!"}},{"$f":"IF(Stock!#REF!<>\"\",$H21*Z21,\"\")","v":{"$error":"#REF!"}}]
[{"$f":"IF(Stock!#REF!<>\"\",Stock!#REF!,\"\")","v":{"$error":"#REF!"}},{"$f":"IF(Stock!#REF!<>\"\",Stock!#REF!,\"\")","v":{"$error":"#REF!"}},{"$f":"IF(Stock!#REF!<>\"\",Stock!#REF!,\"\")","v":{"$error":"#REF!"}},{"$f":"IF(Stock!#REF!<>\"\",SUM(Stock!#REF!,Stock!#REF!,Stock!#REF!),\"\")","v":{"$error":"#REF!"}},{"$f":"IF(Stock!#REF!<>\"\",#REF!*(1+Pilotage!$M$20),\"\")","v":{"$error":"#REF!"}},null,{"$f":"IF(Stock!#REF!<>\"\",IF(Stock!#REF!>0,Stock!#REF!/Stock!#REF!,0),\"\")","v":{"$error":"#REF!"}},{"$f":"IF(Stock!#REF!<>\"\",E22*Pilotage!$D$15,\"\")","v":{"$error":"#REF!"}},{"$f":"IF(Stock!#REF!<>\"\",IF(Stock!#REF!>0,Stock!#REF!,0),\"\")","v":{"$error":"#REF!"}},{"$f":"IF(Stock!#REF!<>\"\",Pilotage!$M$27,\"\")","v":{"$error":"#REF!"}},{"$f":"IF(Stock!#REF!<>\"\",ROUND(Stock!#REF!*J22,0),\"\")","v":{"$error":"#REF!"}},{"$f":"IF(Stock!#REF!<>\"\",$H22*K22,\"\")","v":{"$error":"#REF!"}},{"$f":"IF(Stock!#REF!<>\"\",Pilotage!N$27,\"\")","v":{"$error":"#REF!"}},{"$f":"IF(Stock!#REF!<>\"\",ROUND(K22*M22,0),\"\")","v":{"$error":"#REF!"}},{"$f":"IF(Stock!#REF!<>\"\",$H22*N22,\"\")","v":{"$error":"#REF!"}},{"$f":"IF(Stock!#REF!<>\"\",Pilotage!O$27,\"\")","v":{"$error":"#REF!"}},{"$f":"IF(Stock!#REF!<>\"\",ROUND(K22*P22,0),\"\")","v":{"$error":"#REF!"}},{"$f":"IF(Stock!#REF!<>\"\",$H22*Q22,\"\")","v":{"$error":"#REF!"}},{"$f":"IF(Stock!#REF!<>\"\",Pilotage!P$27,\"\")","v":{"$error":"#REF!"}},{"$f":"IF(Stock!#REF!<>\"\",ROUND(Q22*S22,0),\"\")","v":{"$error":"#REF!"}},{"$f":"IF(Stock!#REF!<>\"\",$H22*T22,\"\")","v":{"$error":"#REF!"}},{"$f":"IF(Stock!#REF!<>\"\",Pilotage!Q$27,\"\")","v":{"$error":"#REF!"}},{"$f":"IF(Stock!#REF!<>\"\",ROUND(T22*V22,0),\"\")","v":{"$error":"#REF!"}},{"$f":"IF(Stock!#REF!<>\"\",$H22*W22,\"\")","v":{"$error":"#REF!"}},{"$f":"IF(Stock!#REF!<>\"\",Pilotage!R$27,\"\")","v":{"$error":"#REF!"}},{"$f":"IF(Stock!#REF!<>\"\",ROUND(W22*Y22,0),\"\")","v":{"$error":"#REF!"}},{"$f":"IF(Stock!#REF!<>\"\",$H22*Z22,\"\")","v":{"$error":"#REF!"}}]
[{"$f":"IF(Stock!#REF!<>\"\",Stock!#REF!,\"\")","v":{"$error":"#REF!"}},{"$f":"IF(Stock!#REF!<>\"\",Stock!#REF!,\"\")","v":{"$error":"#REF!"}},{"$f":"IF(Stock!#REF!<>\"\",Stock!#REF!,\"\")","v":{"$error":"#REF!"}},{"$f":"IF(Stock!#REF!<>\"\",SUM(Stock!#REF!,Stock!#REF!,Stock!#REF!),\"\")","v":{"$error":"#REF!"}},{"$f":"IF(Stock!#REF!<>\"\",#REF!*(1+Pilotage!$M$20),\"\")","v":{"$error":"#REF!"}},null,{"$f":"IF(Stock!#REF!<>\"\",IF(Stock!#REF!>0,Stock!#REF!/Stock!#REF!,0),\"\")","v":{"$error":"#REF!"}},{"$f":"IF(Stock!#REF!<>\"\",E23*Pilotage!$D$15,\"\")","v":{"$error":"#REF!"}},{"$f":"IF(Stock!#REF!<>\"\",IF(Stock!#REF!>0,Stock!#REF!,0),\"\")","v":{"$error":"#REF!"}},{"$f":"IF(Stock!#REF!<>\"\",Pilotage!$M$27,\"\")","v":{"$error":"#REF!"}},{"$f":"IF(Stock!#REF!<>\"\",ROUND(Stock!#REF!*J23,0),\"\")","v":{"$error":"#REF!"}},{"$f":"IF(Stock!#REF!<>\"\",$H23*K23,\"\")","v":{"$error":"#REF!"}},{"$f":"IF(Stock!#REF!<>\"\",Pilotage!N$27,\"\")","v":{"$error":"#REF!"}},{"$f":"IF(Stock!#REF!<>\"\",ROUND(K23*M23,0),\"\")","v":{"$error":"#REF!"}},{"$f":"IF(Stock!#REF!<>\"\",$H23*N23,\"\")","v":{"$error":"#REF!"}},{"$f":"IF(Stock!#REF!<>\"\",Pilotage!O$27,\"\")","v":{"$error":"#REF!"}},{"$f":"IF(Stock!#REF!<>\"\",ROUND(K23*P23,0),\"\")","v":{"$error":"#REF!"}},{"$f":"IF(Stock!#REF!<>\"\",$H23*Q23,\"\")","v":{"$error":"#REF!"}},{"$f":"IF(Stock!#REF!<>\"\",Pilotage!P$27,\"\")","v":{"$error":"#REF!"}},{"$f":"IF(Stock!#REF!<>\"\",ROUND(Q23*S23,0),\"\")","v":{"$error":"#REF!"}},{"$f":"IF(Stock!#REF!<>\"\",$H23*T23,\"\")","v":{"$error":"#REF!"}},{"$f":"IF(Stock!#REF!<>\"\",Pilotage!Q$27,\"\")","v":{"$error":"#REF!"}},{"$f":"IF(Stock!#REF!<>\"\",ROUND(T23*V23,0),\"\")","v":{"$error":"#REF!"}},{"$f":"IF(Stock!#REF!<>\"\",$H23*W23,\"\")","v":{"$error":"#REF!"}},{"$f":"IF(Stock!#REF!<>\"\",Pilotage!R$27,\"\")","v":{"$error":"#REF!"}},{"$f":"IF(Stock!#REF!<>\"\",ROUND(W23*Y23,0),\"\")","v":{"$error":"#REF!"}},{"$f":"IF(Stock!#REF!<>\"\",$H23*Z23,\"\")","v":{"$error":"#REF!"}}]
[{"$f":"IF(Stock!#REF!<>\"\",Stock!#REF!,\"\")","v":{"$error":"#REF!"}},{"$f":"IF(Stock!#REF!<>\"\",Stock!#REF!,\"\")","v":{"$error":"#REF!"}},{"$f":"IF(Stock!#REF!<>\"\",Stock!#REF!,\"\")","v":{"$error":"#REF!"}},{"$f":"IF(Stock!#REF!<>\"\",SUM(Stock!#REF!,Stock!#REF!,Stock!#REF!),\"\")","v":{"$error":"#REF!"}},{"$f":"IF(Stock!#REF!<>\"\",#REF!*(1+Pilotage!$M$20),\"\")","v":{"$error":"#REF!"}},null,{"$f":"IF(Stock!#REF!<>\"\",IF(Stock!#REF!>0,Stock!#REF!/Stock!#REF!,0),\"\")","v":{"$error":"#REF!"}},{"$f":"IF(Stock!#REF!<>\"\",E24*Pilotage!$D$15,\"\")","v":{"$error":"#REF!"}},{"$f":"IF(Stock!#REF!<>\"\",IF(Stock!#REF!>0,Stock!#REF!,0),\"\")","v":{"$error":"#REF!"}},{"$f":"IF(Stock!#REF!<>\"\",Pilotage!$M$27,\"\")","v":{"$error":"#REF!"}},{"$f":"IF(Stock!#REF!<>\"\",ROUND(Stock!#REF!*J24,0),\"\")","v":{"$error":"#REF!"}},{"$f":"IF(Stock!#REF!<>\"\",$H24*K24,\"\")","v":{"$error":"#REF!"}},{"$f":"IF(Stock!#REF!<>\"\",Pilotage!N$27,\"\")","v":{"$error":"#REF!"}},{"$f":"IF(Stock!#REF!<>\"\",ROUND(K24*M24,0),\"\")","v":{"$error":"#REF!"}},{"$f":"IF(Stock!#REF!<>\"\",$H24*N24,\"\")","v":{"$error":"#REF!"}},{"$f":"IF(Stock!#REF!<>\"\",Pilotage!O$27,\"\")","v":{"$error":"#REF!"}},{"$f":"IF(Stock!#REF!<>\"\",ROUND(K24*P24,0),\"\")","v":{"$error":"#REF!"}},{"$f":"IF(Stock!#REF!<>\"\",$H24*Q24,\"\")","v":{"$error":"#REF!"}},{"$f":"IF(Stock!#REF!<>\"\",Pilotage!P$27,\"\")","v":{"$error":"#REF!"}},{"$f":"IF(Stock!#REF!<>\"\",ROUND(Q24*S24,0),\"\")","v":{"$error":"#REF!"}},{"$f":"IF(Stock!#REF!<>\"\",$H24*T24,\"\")","v":{"$error":"#REF!"}},{"$f":"IF(Stock!#REF!<>\"\",Pilotage!Q$27,\"\")","v":{"$error":"#REF!"}},{"$f":"IF(Stock!#REF!<>\"\",ROUND(T24*V24,0),\"\")","v":{"$error":"#REF!"}},{"$f":"IF(Stock!#REF!<>\"\",$H24*W24,\"\")","v":{"$error":"#REF!"}},{"$f":"IF(Stock!#REF!<>\"\",Pilotage!R$27,\"\")","v":{"$error":"#REF!"}},{"$f":"IF(Stock!#REF!<>\"\",ROUND(W24*Y24,0),\"\")","v":{"$error":"#REF!"}},{"$f":"IF(Stock!#REF!<>\"\",$H24*Z24,\"\")","v":{"$error":"#REF!"}}]
[{"$f":"IF(Stock!#REF!<>\"\",Stock!#REF!,\"\")","v":{"$error":"#REF!"}},{"$f":"IF(Stock!#REF!<>\"\",Stock!#REF!,\"\")","v":{"$error":"#REF!"}},{"$f":"IF(Stock!#REF!<>\"\",Stock!#REF!,\"\")","v":{"$error":"#REF!"}},{"$f":"IF(Stock!#REF!<>\"\",SUM(Stock!#REF!,Stock!#REF!,Stock!#REF!),\"\")","v":{"$error":"#REF!"}},{"$f":"IF(Stock!#REF!<>\"\",#REF!*(1+Pilotage!$M$20),\"\")","v":{"$error":"#REF!"}},null,{"$f":"IF(Stock!#REF!<>\"\",IF(Stock!#REF!>0,Stock!#REF!/Stock!#REF!,0),\"\")","v":{"$error":"#REF!"}},{"$f":"IF(Stock!#REF!<>\"\",E25*Pilotage!$D$15,\"\")","v":{"$error":"#REF!"}},{"$f":"IF(Stock!#REF!<>\"\",IF(Stock!#REF!>0,Stock!#REF!,0),\"\")","v":{"$error":"#REF!"}},{"$f":"IF(Stock!#REF!<>\"\",Pilotage!$M$27,\"\")","v":{"$error":"#REF!"}},{"$f":"IF(Stock!#REF!<>\"\",ROUND(Stock!#REF!*J25,0),\"\")","v":{"$error":"#REF!"}},{"$f":"IF(Stock!#REF!<>\"\",$H25*K25,\"\")","v":{"$error":"#REF!"}},{"$f":"IF(Stock!#REF!<>\"\",Pilotage!N$27,\"\")","v":{"$error":"#REF!"}},{"$f":"IF(Stock!#REF!<>\"\",ROUND(K25*M25,0),\"\")","v":{"$error":"#REF!"}},{"$f":"IF(Stock!#REF!<>\"\",$H25*N25,\"\")","v":{"$error":"#REF!"}},{"$f":"IF(Stock!#REF!<>\"\",Pilotage!O$27,\"\")","v":{"$error":"#REF!"}},{"$f":"IF(Stock!#REF!<>\"\",ROUND(K25*P25,0),\"\")","v":{"$error":"#REF!"}},{"$f":"IF(Stock!#REF!<>\"\",$H25*Q25,\"\")","v":{"$error":"#REF!"}},{"$f":"IF(Stock!#REF!<>\"\",Pilotage!P$27,\"\")","v":{"$error":"#REF!"}},{"$f":"IF(Stock!#REF!<>\"\",ROUND(Q25*S25,0),\"\")","v":{"$error":"#REF!"}},{"$f":"IF(Stock!#REF!<>\"\",$H25*T25,\"\")","v":{"$error":"#REF!"}},{"$f":"IF(Stock!#REF!<>\"\",Pilotage!Q$27,\"\")","v":{"$error":"#REF!"}},{"$f":"IF(Stock!#REF!<>\"\",ROUND(T25*V25,0),\"\")","v":{"$error":"#REF!"}},{"$f":"IF(Stock!#REF!<>\"\",$H25*W25,\"\")","v":{"$error":"#REF!"}},{"$f":"IF(Stock!#REF!<>\"\",Pilotage!R$27,\"\")","v":{"$error":"#REF!"}},{"$f":"IF(Stock!#REF!<>\"\",ROUND(W25*Y25,0),\"\")","v":{"$error":"#REF!"}},{"$f":"IF(Stock!#REF!<>\"\",$H25*Z25,\"\")","v":{"$error":"#REF!"}}]
[{"$f":"IF(Stock!#REF!<>\"\",Stock!#REF!,\"\")","v":{"$error":"#REF!"}},{"$f":"IF(Stock!#REF!<>\"\",Stock!#REF!,\"\")","v":{"$error":"#REF!"}},{"$f":"IF(Stock!#REF!<>\"\",Stock!#REF!,\"\")","v":{"$error":"#REF!"}},{"$f":"IF(Stock!#REF!<>\"\",SUM(Stock!#REF!,Stock!#REF!,Stock!#REF!),\"\")","v":{"$error":"#REF!"}},{"$f":"IF(Stock!#REF!<>\"\",#REF!*(1+Pilotage!$M$20),\"\")","v":{"$error":"#REF!"}},null,{"$f":"IF(Stock!#REF!<>\"\",IF(Stock!#REF!>0,Stock!#REF!/Stock!#REF!,0),\"\")","v":{"$error":"#REF!"}},{"$f":"IF(Stock!#REF!<>\"\",E26*Pilotage!$D$15,\"\")","v":{"$error":"#REF!"}},{"$f":"IF(Stock!#REF!<>\"\",IF(Stock!#REF!>0,Stock!#REF!,0),\"\")","v":{"$error":"#REF!"}},{"$f":"IF(Stock!#REF!<>\"\",Pilotage!$M$27,\"\")","v":{"$error":"#REF!"}},{"$f":"IF(Stock!#REF!<>\"\",ROUND(Stock!#REF!*J26,0),\"\")","v":{"$error":"#REF!"}},{"$f":"IF(Stock!#REF!<>\"\",$H26*K26,\"\")","v":{"$error":"#REF!"}},{"$f":"IF(Stock!#REF!<>\"\",Pilotage!N$27,\"\")","v":{"$error":"#REF!"}},{"$f":"IF(Stock!#REF!<>\"\",ROUND(K26*M26,0),\"\")","v":{"$error":"#REF!"}},{"$f":"IF(Stock!#REF!<>\"\",$H26*N26,\"\")","v":{"$error":"#REF!"}},{"$f":"IF(Stock!#REF!<>\"\",Pilotage!O$27,\"\")","v":{"$error":"#REF!"}},{"$f":"IF(Stock!#REF!<>\"\",ROUND(K26*P26,0),\"\")","v":{"$error":"#REF!"}},{"$f":"IF(Stock!#REF!<>\"\",$H26*Q26,\"\")","v":{"$error":"#REF!"}},{"$f":"IF(Stock!#REF!<>\"\",Pilotage!P$27,\"\")","v":{"$error":"#REF!"}},{"$f":"IF(Stock!#REF!<>\"\",ROUND(Q26*S26,0),\"\")","v":{"$error":"#REF!"}},{"$f":"IF(Stock!#REF!<>\"\",$H26*T26,\"\")","v":{"$error":"#REF!"}},{"$f":"IF(Stock!#REF!<>\"\",Pilotage!Q$27,\"\")","v":{"$error":"#REF!"}},{"$f":"IF(Stock!#REF!<>\"\",ROUND(T26*V26,0),\"\")","v":{"$error":"#REF!"}},{"$f":"IF(Stock!#REF!<>\"\",$H26*W26,\"\")","v":{"$error":"#REF!"}},{"$f":"IF(Stock!#REF!<>\"\",Pilotage!R$27,\"\")","v":{"$error":"#REF!"}},{"$f":"IF(Stock!#REF!<>\"\",ROUND(W26*Y26,0),\"\")","v":{"$error":"#REF!"}},{"$f":"IF(Stock!#REF!<>\"\",$H26*Z26,\"\")","v":{"$error":"#REF!"}}]
[{"$f":"IF(Stock!#REF!<>\"\",Stock!#REF!,\"\")","v":{"$error":"#REF!"}},{"$f":"IF(Stock!#REF!<>\"\",Stock!#REF!,\"\")","v":{"$error":"#REF!"}},{"$f":"IF(Stock!#REF!<>\"\",Stock!#REF!,\"\")","v":{"$error":"#REF!"}},{"$f":"IF(Stock!#REF!<>\"\",SUM(Stock!#REF!,Stock!#REF!,Stock!#REF!),\"\")","v":{"$error":"#REF!"}},{"$f":"IF(Stock!#REF!<>\"\",#REF!*(1+Pilotage!$M$20),\"\")","v":{"$error":"#REF!"}},null,{"$f":"IF(Stock!#REF!<>\"\",IF(Stock!#REF!>0,Stock!#REF!/Stock!#REF!,0),\"\")","v":{"$error":"#REF!"}},{"$f":"IF(Stock!#REF!<>\"\",E27*Pilotage!$D$15,\"\")","v":{"$error":"#REF!"}},{"$f":"IF(Stock!#REF!<>\"\",IF(Stock!#REF!>0,Stock!#REF!,0),\"\")","v":{"$error":"#REF!"}},{"$f":"IF(Stock!#REF!<>\"\",Pilotage!$M$27,\"\")","v":{"$error":"#REF!"}},{"$f":"IF(Stock!#REF!<>\"\",ROUND(Stock!#REF!*J27,0),\"\")","v":{"$error":"#REF!"}},{"$f":"IF(Stock!#REF!<>\"\",$H27*K27,\"\")","v":{"$error":"#REF!"}},{"$f":"IF(Stock!#REF!<>\"\",Pilotage!N$27,\"\")","v":{"$error":"#REF!"}},{"$f":"IF(Stock!#REF!<>\"\",ROUND(K27*M27,0),\"\")","v":{"$error":"#REF!"}},{"$f":"IF(Stock!#REF!<>\"\",$H27*N27,\"\")","v":{"$error":"#REF!"}},{"$f":"IF(Stock!#REF!<>\"\",Pilotage!O$27,\"\")","v":{"$error":"#REF!"}},{"$f":"IF(Stock!#REF!<>\"\",ROUND(K27*P27,0),\"\")","v":{"$error":"#REF!"}},{"$f":"IF(Stock!#REF!<>\"\",$H27*Q27,\"\")","v":{"$error":"#REF!"}},{"$f":"IF(Stock!#REF!<>\"\",Pilotage!P$27,\"\")","v":{"$error":"#REF!"}},{"$f":"IF(Stock!#REF!<>\"\",ROUND(Q27*S27,0),\"\")","v":{"$error":"#REF!"}},{"$f":"IF(Stock!#REF!<>\"\",$H27*T27,\"\")","v":{"$error":"#REF!"}},{"$f":"IF(Stock!#REF!<>\"\",Pilotage!Q$27,\"\")","v":{"$error":"#REF!"}},{"$f":"IF(Stock!#REF!<>\"\",ROUND(T27*V27,0),\"\")","v":{"$error":"#REF!"}},{"$f":"IF(Stock!#REF!<>\"\",$H27*W27,\"\")","v":{"$error":"#REF!"}},{"$f":"IF(Stock!#REF!<>\"\",Pilotage!R$27,\"\")","v":{"$error":"#REF!"}},{"$f":"IF(Stock!#REF!<>\"\",ROUND(W27*Y27,0),\"\")","v":{"$error":"#REF!"}},{"$f":"IF(Stock!#REF!<>\"\",$H27*Z27,\"\")","v":{"$error":"#REF!"}}]
[{"$f":"IF(Stock!#REF!<>\"\",Stock!#REF!,\"\")","v":{"$error":"#REF!"}},{"$f":"IF(Stock!#REF!<>\"\",Stock!#REF!,\"\")","v":{"$error":"#REF!"}},{"$f":"IF(Stock!#REF!<>\"\",Stock!#REF!,\"\")","v":{"$error":"#REF!"}},{"$f":"IF(Stock!#REF!<>\"\",SUM(Stock!#REF!,Stock!#REF!,Stock!#REF!),\"\")","v":{"$error":"#REF!"}},{"$f":"IF(Stock!#REF!<>\"\",#REF!*(1+Pilotage!$M$20),\"\")","v":{"$error":"#REF!"}},null,{"$f":"IF(Stock!#REF!<>\"\",IF(Stock!#REF!>0,Stock!#REF!/Stock!#REF!,0),\"\")","v":{"$error":"#REF!"}},{"$f":"IF(Stock!#REF!<>\"\",E28*Pilotage!$D$15,\"\")","v":{"$error":"#REF!"}},{"$f":"IF(Stock!#REF!<>\"\",IF(Stock!#REF!>0,Stock!#REF!,0),\"\")","v":{"$error":"#REF!"}},{"$f":"IF(Stock!#REF!<>\"\",Pilotage!$M$27,\"\")","v":{"$error":"#REF!"}},{"$f":"IF(Stock!#REF!<>\"\",ROUND(Stock!#REF!*J28,0),\"\")","v":{"$error":"#REF!"}},{"$f":"IF(Stock!#REF!<>\"\",$H28*K28,\"\")","v":{"$error":"#REF!"}},{"$f":"IF(Stock!#REF!<>\"\",Pilotage!N$27,\"\")","v":{"$error":"#REF!"}},{"$f":"IF(Stock!#REF!<>\"\",ROUND(K28*M28,0),\"\")","v":{"$error":"#REF!"}},{"$f":"IF(Stock!#REF!<>\"\",$H28*N28,\"\")","v":{"$error":"#REF!"}},{"$f":"IF(Stock!#REF!<>\"\",Pilotage!O$27,\"\")","v":{"$error":"#REF!"}},{"$f":"IF(Stock!#REF!<>\"\",ROUND(K28*P28,0),\"\")","v":{"$error":"#REF!"}},{"$f":"IF(Stock!#REF!<>\"\",$H28*Q28,\"\")","v":{"$error":"#REF!"}},{"$f":"IF(Stock!#REF!<>\"\",Pilotage!P$27,\"\")","v":{"$error":"#REF!"}},{"$f":"IF(Stock!#REF!<>\"\",ROUND(Q28*S28,0),\"\")","v":{"$error":"#REF!"}},{"$f":"IF(Stock!#REF!<>\"\",$H28*T28,\"\")","v":{"$error":"#REF!"}},{"$f":"IF(Stock!#REF!<>\"\",Pilotage!Q$27,\"\")","v":{"$error":"#REF!"}},{"$f":"IF(Stock!#REF!<>\"\",ROUND(T28*V28,0),\"\")","v":{"$error":"#REF!"}},{"$f":"IF(Stock!#REF!<>\"\",$H28*W28,\"\")","v":{"$error":"#REF!"}},{"$f":"IF(Stock!#REF!<>\"\",Pilotage!R$27,\"\")","v":{"$error":"#REF!"}},{"$f":"IF(Stock!#REF!<>\"\",ROUND(W28*Y28,0),\"\")","v":{"$error":"#REF!"}},{"$f":"IF(Stock!#REF!<>\"\",$H28*Z28,\"\")","v":{"$error":"#REF!"}}]
[{"$f":"IF(Stock!#REF!<>\"\",Stock!#REF!,\"\")","v":{"$error":"#REF!"}},{"$f":"IF(Stock!#REF!<>\"\",Stock!#REF!,\"\")","v":{"$error":"#REF!"}},{"$f":"IF(Stock!#REF!<>\"\",Stock!#REF!,\"\")","v":{"$error":"#REF!"}},{"$f":"IF(Stock!#REF!<>\"\",SUM(Stock!#REF!,Stock!#REF!,Stock!#REF!),\"\")","v":{"$error":"#REF!"}},{"$f":"IF(Stock!#REF!<>\"\",#REF!*(1+Pilotage!$M$20),\"\")","v":{"$error":"#REF!"}},null,{"$f":"IF(Stock!#REF!<>\"\",IF(Stock!#REF!>0,Stock!#REF!/Stock!#REF!,0),\"\")","v":{"$error":"#REF!"}},{"$f":"IF(Stock!#REF!<>\"\",E29*Pilotage!$D$15,\"\")","v":{"$error":"#REF!"}},{"$f":"IF(Stock!#REF!<>\"\",IF(Stock!#REF!>0,Stock!#REF!,0),\"\")","v":{"$error":"#REF!"}},{"$f":"IF(Stock!#REF!<>\"\",Pilotage!$M$27,\"\")","v":{"$error":"#REF!"}},{"$f":"IF(Stock!#REF!<>\"\",ROUND(Stock!#REF!*J29,0),\"\")","v":{"$error":"#REF!"}},{"$f":"IF(Stock!#REF!<>\"\",$H29*K29,\"\")","v":{"$error":"#REF!"}},{"$f":"IF(Stock!#REF!<>\"\",Pilotage!N$27,\"\")","v":{"$error":"#REF!"}},{"$f":"IF(Stock!#REF!<>\"\",ROUND(K29*M29,0),\"\")","v":{"$error":"#REF!"}},{"$f":"IF(Stock!#REF!<>\"\",$H29*N29,\"\")","v":{"$error":"#REF!"}},{"$f":"IF(Stock!#REF!<>\"\",Pilotage!O$27,\"\")","v":{"$error":"#REF!"}},{"$f":"IF(Stock!#REF!<>\"\",ROUND(K29*P29,0),\"\")","v":{"$error":"#REF!"}},{"$f":"IF(Stock!#REF!<>\"\",$H29*Q29,\"\")","v":{"$error":"#REF!"}},{"$f":"IF(Stock!#REF!<>\"\",Pilotage!P$27,\"\")","v":{"$error":"#REF!"}},{"$f":"IF(Stock!#REF!<>\"\",ROUND(Q29*S29,0),\"\")","v":{"$error":"#REF!"}},{"$f":"IF(Stock!#REF!<>\"\",$H29*T29,\"\")","v":{"$error":"#REF!"}},{"$f":"IF(Stock!#REF!<>\"\",Pilotage!Q$27,\"\")","v":{"$error":"#REF!"}},{"$f":"IF(Stock!#REF!<>\"\",ROUND(T29*V29,0),\"\")","v":{"$error":"#REF!"}},{"$f":"IF(Stock!#REF!<>\"\",$H29*W29,\"\")","v":{"$error":"#REF!"}},{"$f":"IF(Stock!#REF!<>\"\",Pilotage!R$27,\"\")","v":{"$error":"#REF!"}},{"$f":"IF(Stock!#REF!<>\"\",ROUND(W29*Y29,0),\"\")","v":{"$error":"#REF!"}},{"$f":"IF(Stock!#REF!<>\"\",$H29*Z29,\"\")","v":{"$error":"#REF!"}}]
[{"$f":"IF(Stock!#REF!<>\"\",Stock!#REF!,\"\")","v":{"$error":"#REF!"}},{"$f":"IF(Stock!#REF!<>\"\",Stock!#REF!,\"\")","v":{"$error":"#REF!"}},{"$f":"IF(Stock!#REF!<>\"\",Stock!#REF!,\"\")","v":{"$error":"#REF!"}},{"$f":"IF(Stock!#REF!<>\"\",SUM(Stock!#REF!,Stock!#REF!,Stock!#REF!),\"\")","v":{"$error":"#REF!"}},{"$f":"IF(Stock!#REF!<>\"\",#REF!*(1+Pilotage!$M$20),\"\")","v":{"$error":"#REF!"}},null,{"$f":"IF(Stock!#REF!<>\"\",IF(Stock!#REF!>0,Stock!#REF!/Stock!#REF!,0),\"\")","v":{"$error":"#REF!"}},{"$f":"IF(Stock!#REF!<>\"\",E30*Pilotage!$D$15,\"\")","v":{"$error":"#REF!"}},{"$f":"IF(Stock!#REF!<>\"\",IF(Stock!#REF!>0,Stock!#REF!,0),\"\")","v":{"$error":"#REF!"}},{"$f":"IF(Stock!#REF!<>\"\",Pilotage!$M$27,\"\")","v":{"$error":"#REF!"}},{"$f":"IF(Stock!#REF!<>\"\",ROUND(Stock!#REF!*J30,0),\"\")","v":{"$error":"#REF!"}},{"$f":"IF(Stock!#REF!<>\"\",$H30*K30,\"\")","v":{"$error":"#REF!"}},{"$f":"IF(Stock!#REF!<>\"\",Pilotage!N$27,\"\")","v":{"$error":"#REF!"}},{"$f":"IF(Stock!#REF!<>\"\",ROUND(K30*M30,0),\"\")","v":{"$error":"#REF!"}},{"$f":"IF(Stock!#REF!<>\"\",$H30*N30,\"\")","v":{"$error":"#REF!"}},{"$f":"IF(Stock!#REF!<>\"\",Pilotage!O$27,\"\")","v":{"$error":"#REF!"}},{"$f":"IF(Stock!#REF!<>\"\",ROUND(K30*P30,0),\"\")","v":{"$error":"#REF!"}},{"$f":"IF(Stock!#REF!<>\"\",$H30*Q30,\"\")","v":{"$error":"#REF!"}},{"$f":"IF(Stock!#REF!<>\"\",Pilotage!P$27,\"\")","v":{"$error":"#REF!"}},{"$f":"IF(Stock!#REF!<>\"\",ROUND(Q30*S30,0),\"\")","v":{"$error":"#REF!"}},{"$f":"IF(Stock!#REF!<>\"\",$H30*T30,\"\")","v":{"$error":"#REF!"}},{"$f":"IF(Stock!#REF!<>\"\",Pilotage!Q$27,\"\")","v":{"$error":"#REF!"}},{"$f":"IF(Stock!#REF!<>\"\",ROUND(T30*V30,0),\"\")","v":{"$error":"#REF!"}},{"$f":"IF(Stock!#REF!<>\"\",$H30*W30,\"\")","v":{"$error":"#REF!"}},{"$f":"IF(Stock!#REF!<>\"\",Pilotage!R$27,\"\")","v":{"$error":"#REF!"}},{"$f":"IF(Stock!#REF!<>\"\",ROUND(W30*Y30,0),\"\")","v":{"$error":"#REF!"}},{"$f":"IF(Stock!#REF!<>\"\",$H30*Z30,\"\")","v":{"$error":"#REF!"}}]
[{"$f":"IF(Stock!#REF!<>\"\",Stock!#REF!,\"\")","v":{"$error":"#REF!"}},{"$f":"IF(Stock!#REF!<>\"\",Stock!#REF!,\"\")","v":{"$error":"#REF!"}},{"$f":"IF(Stock!#REF!<>\"\",Stock!#REF!,\"\")","v":{"$error":"#REF!"}},{"$f":"IF(Stock!#REF!<>\"\",SUM(Stock!#REF!,Stock!#REF!,Stock!#REF!),\"\")","v":{"$error":"#REF!"}},{"$f":"IF(Stock!#REF!<>\"\",#REF!*(1+Pilotage!$M$20),\"\")","v":{"$error":"#REF!"}},null,{"$f":"IF(Stock!#REF!<>\"\",IF(Stock!#REF!>0,Stock!#REF!/Stock!#REF!,0),\"\")","v":{"$error":"#REF!"}},{"$f":"IF(Stock!#REF!<>\"\",E31*Pilotage!$D$15,\"\")","v":{"$error":"#REF!"}},{"$f":"IF(Stock!#REF!<>\"\",IF(Stock!#REF!>0,Stock!#REF!,0),\"\")","v":{"$error":"#REF!"}},{"$f":"IF(Stock!#REF!<>\"\",Pilotage!$M$27,\"\")","v":{"$error":"#REF!"}},{"$f":"IF(Stock!#REF!<>\"\",ROUND(Stock!#REF!*J31,0),\"\")","v":{"$error":"#REF!"}},{"$f":"IF(Stock!#REF!<>\"\",$H31*K31,\"\")","v":{"$error":"#REF!"}},{"$f":"IF(Stock!#REF!<>\"\",Pilotage!N$27,\"\")","v":{"$error":"#REF!"}},{"$f":"IF(Stock!#REF!<>\"\",ROUND(K31*M31,0),\"\")","v":{"$error":"#REF!"}},{"$f":"IF(Stock!#REF!<>\"\",$H31*N31,\"\")","v":{"$error":"#REF!"}},{"$f":"IF(Stock!#REF!<>\"\",Pilotage!O$27,\"\")","v":{"$error":"#REF!"}},{"$f":"IF(Stock!#REF!<>\"\",ROUND(K31*P31,0),\"\")","v":{"$error":"#REF!"}},{"$f":"IF(Stock!#REF!<>\"\",$H31*Q31,\"\")","v":{"$error":"#REF!"}},{"$f":"IF(Stock!#REF!<>\"\",Pilotage!P$27,\"\")","v":{"$error":"#REF!"}},{"$f":"IF(Stock!#REF!<>\"\",ROUND(Q31*S31,0),\"\")","v":{"$error":"#REF!"}},{"$f":"IF(Stock!#REF!<>\"\",$H31*T31,\"\")","v":{"$error":"#REF!"}},{"$f":"IF(Stock!#REF!<>\"\",Pilotage!Q$27,\"\")","v":{"$error":"#REF!"}},{"$f":"IF(Stock!#REF!<>\"\",ROUND(T31*V31,0),\"\")","v":{"$error":"#REF!"}},{"$f":"IF(Stock!#REF!<>\"\",$H31*W31,\"\")","v":{"$error":"#REF!"}},{"$f":"IF(Stock!#REF!<>\"\",Pilotage!R$27,\"\")","v":{"$error":"#REF!"}},{"$f":"IF(Stock!#REF!<>\"\",ROUND(W31*Y31,0),\"\")","v":{"$error":"#REF!"}},{"$f":"IF(Stock!#REF!<>\"\",$H31*Z31,\"\")","v":{"$error":"#REF!"}}]
[{"$f":"IF(Stock!#REF!<>\"\",Stock!#REF!,\"\")","v":{"$error":"#REF!"}},{"$f":"IF(Stock!#REF!<>\"\",Stock!#REF!,\"\")","v":{"$error":"#REF!"}},{"$f":"IF(Stock!#REF!<>\"\",Stock!#REF!,\"\")","v":{"$error":"#REF!"}},{"$f":"IF(Stock!#REF!<>\"\",SUM(Stock!#REF!,Stock!#REF!,Stock!#REF!),\"\")","v":{"$error":"#REF!"}},{"$f":"IF(Stock!#REF!<>\"\",#REF!*(1+Pilotage!$M$20),\"\")","v":{"$error":"#REF!"}},null,{"$f":"IF(Stock!#REF!<>\"\",IF(Stock!#REF!>0,Stock!#REF!/Stock!#REF!,0),\"\")","v":{"$error":"#REF!"}},{"$f":"IF(Stock!#REF!<>\"\",E32*Pilotage!$D$15,\"\")","v":{"$error":"#REF!"}},{"$f":"IF(Stock!#REF!<>\"\",IF(Stock!#REF!>0,Stock!#REF!,0),\"\")","v":{"$error":"#REF!"}},{"$f":"IF(Stock!#REF!<>\"\",Pilotage!$M$27,\"\")","v":{"$error":"#REF!"}},{"$f":"IF(Stock!#REF!<>\"\",ROUND(Stock!#REF!*J32,0),\"\")","v":{"$error":"#REF!"}},{"$f":"IF(Stock!#REF!<>\"\",$H32*K32,\"\")","v":{"$error":"#REF!"}},{"$f":"IF(Stock!#REF!<>\"\",Pilotage!N$27,\"\")","v":{"$error":"#REF!"}},{"$f":"IF(Stock!#REF!<>\"\",ROUND(K32*M32,0),\"\")","v":{"$error":"#REF!"}},{"$f":"IF(Stock!#REF!<>\"\",$H32*N32,\"\")","v":{"$error":"#REF!"}},{"$f":"IF(Stock!#REF!<>\"\",Pilotage!O$27,\"\")","v":{"$error":"#REF!"}},{"$f":"IF(Stock!#REF!<>\"\",ROUND(K32*P32,0),\"\")","v":{"$error":"#REF!"}},{"$f":"IF(Stock!#REF!<>\"\",$H32*Q32,\"\")","v":{"$error":"#REF!"}},{"$f":"IF(Stock!#REF!<>\"\",Pilotage!P$27,\"\")","v":{"$error":"#REF!"}},{"$f":"IF(Stock!#REF!<>\"\",ROUND(Q32*S32,0),\"\")","v":{"$error":"#REF!"}},{"$f":"IF(Stock!#REF!<>\"\",$H32*T32,\"\")","v":{"$error":"#REF!"}},{"$f":"IF(Stock!#REF!<>\"\",Pilotage!Q$27,\"\")","v":{"$error":"#REF!"}},{"$f":"IF(Stock!#REF!<>\"\",ROUND(T32*V32,0),\"\")","v":{"$error":"#REF!"}},{"$f":"IF(Stock!#REF!<>\"\",$H32*W32,\"\")","v":{"$error":"#REF!"}},{"$f":"IF(Stock!#REF!<>\"\",Pilotage!R$27,\"\")","v":{"$error":"#REF!"}},{"$f":"IF(Stock!#REF!<>\"\",ROUND(W32*Y32,0),\"\")","v":{"$error":"#REF!"}},{"$f":"IF(Stock!#REF!<>\"\",$H32*Z32,\"\")","v":{"$error":"#REF!"}}]
[{"$f":"IF(Stock!#REF!<>\"\",Stock!#REF!,\"\")","v":{"$error":"#REF!"}},{"$f":"IF(Stock!#REF!<>\"\",Stock!#REF!,\"\")","v":{"$error":"#REF!"}},{"$f":"IF(Stock!#REF!<>\"\",Stock!#REF!,\"\")","v":{"$error":"#REF!"}},{"$f":"IF(Stock!#REF!<>\"\",SUM(Stock!#REF!,Stock!#REF!,Stock!#REF!),\"\")","v":{"$error":"#REF!"}},{"$f":"IF(Stock!#REF!<>\"\",#REF!*(1+Pilotage!$M$20),\"\")","v":{"$error":"#REF!"}},null,{"$f":"IF(Stock!#REF!<>\"\",IF(Stock!#REF!>0,Stock!#REF!/Stock!#REF!,0),\"\")","v":{"$error":"#REF!"}},{"$f":"IF(Stock!#REF!<>\"\",E33*Pilotage!$D$15,\"\")","v":{"$error":"#REF!"}},{"$f":"IF(Stock!#REF!<>\"\",IF(Stock!#REF!>0,Stock!#REF!,0),\"\")","v":{"$error":"#REF!"}},{"$f":"IF(Stock!#REF!<>\"\",Pilotage!$M$27,\"\")","v":{"$error":"#REF!"}},{"$f":"IF(Stock!#REF!<>\"\",ROUND(Stock!#REF!*J33,0),\"\")","v":{"$error":"#REF!"}},{"$f":"IF(Stock!#REF!<>\"\",$H33*K33,\"\")","v":{"$error":"#REF!"}},{"$f":"IF(Stock!#REF!<>\"\",Pilotage!N$27,\"\")","v":{"$error":"#REF!"}},{"$f":"IF(Stock!#REF!<>\"\",ROUND(K33*M33,0),\"\")","v":{"$error":"#REF!"}},{"$f":"IF(Stock!#REF!<>\"\",$H33*N33,\"\")","v":{"$error":"#REF!"}},{"$f":"IF(Stock!#REF!<>\"\",Pilotage!O$27,\"\")","v":{"$error":"#REF!"}},{"$f":"IF(Stock!#REF!<>\"\",ROUND(K33*P33,0),\"\")","v":{"$error":"#REF!"}},{"$f":"IF(Stock!#REF!<>\"\",$H33*Q33,\"\")","v":{"$error":"#REF!"}},{"$f":"IF(Stock!#REF!<>\"\",Pilotage!P$27,\"\")","v":{"$error":"#REF!"}},{"$f":"IF(Stock!#REF!<>\"\",ROUND(Q33*S33,0),\"\")","v":{"$error":"#REF!"}},{"$f":"IF(Stock!#REF!<>\"\",$H33*T33,\"\")","v":{"$error":"#REF!"}},{"$f":"IF(Stock!#REF!<>\"\",Pilotage!Q$27,\"\")","v":{"$error":"#REF!"}},{"$f":"IF(Stock!#REF!<>\"\",ROUND(T33*V33,0),\"\")","v":{"$error":"#REF!"}},{"$f":"IF(Stock!#REF!<>\"\",$H33*W33,\"\")","v":{"$error":"#REF!"}},{"$f":"IF(Stock!#REF!<>\"\",Pilotage!R$27,\"\")","v":{"$error":"#REF!"}},{"$f":"IF(Stock!#REF!<>\"\",ROUND(W33*Y33,0),\"\")","v":{"$error":"#REF!"}},{"$f":"IF(Stock!#REF!<>\"\",$H33*Z33,\"\")","v":{"$error":"#REF!"}}]
[{"$f":"IF(Stock!#REF!<>\"\",Stock!#REF!,\"\")","v":{"$error":"#REF!"}},{"$f":"IF(Stock!#REF!<>\"\",Stock!#REF!,\"\")","v":{"$error":"#REF!"}},{"$f":"IF(Stock!#REF!<>\"\",Stock!#REF!,\"\")","v":{"$error":"#REF!"}},{"$f":"IF(Stock!#REF!<>\"\",SUM(Stock!#REF!,Stock!#REF!,Stock!#REF!),\"\")","v":{"$error":"#REF!"}},{"$f":"IF(Stock!#REF!<>\"\",#REF!*(1+Pilotage!$M$20),\"\")","v":{"$error":"#REF!"}},null,{"$f":"IF(Stock!#REF!<>\"\",IF(Stock!#REF!>0,Stock!#REF!/Stock!#REF!,0),\"\")","v":{"$error":"#REF!"}},{"$f":"IF(Stock!#REF!<>\"\",E34*Pilotage!$D$15,\"\")","v":{"$error":"#REF!"}},{"$f":"IF(Stock!#REF!<>\"\",IF(Stock!#REF!>0,Stock!#REF!,0),\"\")","v":{"$error":"#REF!"}},{"$f":"IF(Stock!#REF!<>\"\",Pilotage!$M$27,\"\")","v":{"$error":"#REF!"}},{"$f":"IF(Stock!#REF!<>\"\",ROUND(Stock!#REF!*J34,0),\"\")","v":{"$error":"#REF!"}},{"$f":"IF(Stock!#REF!<>\"\",$H34*K34,\"\")","v":{"$error":"#REF!"}},{"$f":"IF(Stock!#REF!<>\"\",Pilotage!N$27,\"\")","v":{"$error":"#REF!"}},{"$f":"IF(Stock!#REF!<>\"\",ROUND(K34*M34,0),\"\")","v":{"$error":"#REF!"}},{"$f":"IF(Stock!#REF!<>\"\",$H34*N34,\"\")","v":{"$error":"#REF!"}},{"$f":"IF(Stock!#REF!<>\"\",Pilotage!O$27,\"\")","v":{"$error":"#REF!"}},{"$f":"IF(Stock!#REF!<>\"\",ROUND(K34*P34,0),\"\")","v":{"$error":"#REF!"}},{"$f":"IF(Stock!#REF!<>\"\",$H34*Q34,\"\")","v":{"$error":"#REF!"}},{"$f":"IF(Stock!#REF!<>\"\",Pilotage!P$27,\"\")","v":{"$error":"#REF!"}},{"$f":"IF(Stock!#REF!<>\"\",ROUND(Q34*S34,0),\"\")","v":{"$error":"#REF!"}},{"$f":"IF(Stock!#REF!<>\"\",$H34*T34,\"\")","v":{"$error":"#REF!"}},{"$f":"IF(Stock!#REF!<>\"\",Pilotage!Q$27,\"\")","v":{"$error":"#REF!"}},{"$f":"IF(Stock!#REF!<>\"\",ROUND(T34*V34,0),\"\")","v":{"$error":"#REF!"}},{"$f":"IF(Stock!#REF!<>\"\",$H34*W34,\"\")","v":{"$error":"#REF!"}},{"$f":"IF(Stock!#REF!<>\"\",Pilotage!R$27,\"\")","v":{"$error":"#REF!"}},{"$f":"IF(Stock!#REF!<>\"\",ROUND(W34*Y34,0),\"\")","v":{"$error":"#REF!"}},{"$f":"IF(Stock!#REF!<>\"\",$H34*Z34,\"\")","v":{"$error":"#REF!"}}]
[{"$f":"IF(Stock!#REF!<>\"\",Stock!#REF!,\"\")","v":{"$error":"#REF!"}},{"$f":"IF(Stock!#REF!<>\"\",Stock!#REF!,\"\")","v":{"$error":"#REF!"}},{"$f":"IF(Stock!#REF!<>\"\",Stock!#REF!,\"\")","v":{"$error":"#REF!"}},{"$f":"IF(Stock!#REF!<>\"\",SUM(Stock!#REF!,Stock!#REF!,Stock!#REF!),\"\")","v":{"$error":"#REF!"}},{"$f":"IF(Stock!#REF!<>\"\",#REF!*(1+Pilotage!$M$20),\"\")","v":{"$error":"#REF!"}},null,{"$f":"IF(Stock!#REF!<>\"\",IF(Stock!#REF!>0,Stock!#REF!/Stock!#REF!,0),\"\")","v":{"$error":"#REF!"}},{"$f":"IF(Stock!#REF!<>\"\",E35*Pilotage!$D$15,\"\")","v":{"$error":"#REF!"}},{"$f":"IF(Stock!#REF!<>\"\",IF(Stock!#REF!>0,Stock!#REF!,0),\"\")","v":{"$error":"#REF!"}},{"$f":"IF(Stock!#REF!<>\"\",Pilotage!$M$27,\"\")","v":{"$error":"#REF!"}},{"$f":"IF(Stock!#REF!<>\"\",ROUND(Stock!#REF!*J35,0),\"\")","v":{"$error":"#REF!"}},{"$f":"IF(Stock!#REF!<>\"\",$H35*K35,\"\")","v":{"$error":"#REF!"}},{"$f":"IF(Stock!#REF!<>\"\",Pilotage!N$27,\"\")","v":{"$error":"#REF!"}},{"$f":"IF(Stock!#REF!<>\"\",ROUND(K35*M35,0),\"\")","v":{"$error":"#REF!"}},{"$f":"IF(Stock!#REF!<>\"\",$H35*N35,\"\")","v":{"$error":"#REF!"}},{"$f":"IF(Stock!#REF!<>\"\",Pilotage!O$27,\"\")","v":{"$error":"#REF!"}},{"$f":"IF(Stock!#REF!<>\"\",ROUND(K35*P35,0),\"\")","v":{"$error":"#REF!"}},{"$f":"IF(Stock!#REF!<>\"\",$H35*Q35,\"\")","v":{"$error":"#REF!"}},{"$f":"IF(Stock!#REF!<>\"\",Pilotage!P$27,\"\")","v":{"$error":"#REF!"}},{"$f":"IF(Stock!#REF!<>\"\",ROUND(Q35*S35,0),\"\")","v":{"$error":"#REF!"}},{"$f":"IF(Stock!#REF!<>\"\",$H35*T35,\"\")","v":{"$error":"#REF!"}},{"$f":"IF(Stock!#REF!<>\"\",Pilotage!Q$27,\"\")","v":{"$error":"#REF!"}},{"$f":"IF(Stock!#REF!<>\"\",ROUND(T35*V35,0),\"\")","v":{"$error":"#REF!"}},{"$f":"IF(Stock!#REF!<>\"\",$H35*W35,\"\")","v":{"$error":"#REF!"}},{"$f":"IF(Stock!#REF!<>\"\",Pilotage!R$27,\"\")","v":{"$error":"#REF!"}},{"$f":"IF(Stock!#REF!<>\"\",ROUND(W35*Y35,0),\"\")","v":{"$error":"#REF!"}},{"$f":"IF(Stock!#REF!<>\"\",$H35*Z35,\"\")","v":{"$error":"#REF!"}}]
[{"$f":"IF(Stock!#REF!<>\"\",Stock!#REF!,\"\")","v":{"$error":"#REF!"}},{"$f":"IF(Stock!#REF!<>\"\",Stock!#REF!,\"\")","v":{"$error":"#REF!"}},{"$f":"IF(Stock!#REF!<>\"\",Stock!#REF!,\"\")","v":{"$error":"#REF!"}},{"$f":"IF(Stock!#REF!<>\"\",SUM(Stock!#REF!,Stock!#REF!,Stock!#REF!),\"\")","v":{"$error":"#REF!"}},{"$f":"IF(Stock!#REF!<>\"\",#REF!*(1+Pilotage!$M$20),\"\")","v":{"$error":"#REF!"}},null,{"$f":"IF(Stock!#REF!<>\"\",IF(Stock!#REF!>0,Stock!#REF!/Stock!#REF!,0),\"\")","v":{"$error":"#REF!"}},{"$f":"IF(Stock!#REF!<>\"\",E36*Pilotage!$D$15,\"\")","v":{"$error":"#REF!"}},{"$f":"IF(Stock!#REF!<>\"\",IF(Stock!#REF!>0,Stock!#REF!,0),\"\")","v":{"$error":"#REF!"}},{"$f":"IF(Stock!#REF!<>\"\",Pilotage!$M$27,\"\")","v":{"$error":"#REF!"}},{"$f":"IF(Stock!#REF!<>\"\",ROUND(Stock!#REF!*J36,0),\"\")","v":{"$error":"#REF!"}},{"$f":"IF(Stock!#REF!<>\"\",$H36*K36,\"\")","v":{"$error":"#REF!"}},{"$f":"IF(Stock!#REF!<>\"\",Pilotage!N$27,\"\")","v":{"$error":"#REF!"}},{"$f":"IF(Stock!#REF!<>\"\",ROUND(K36*M36,0),\"\")","v":{"$error":"#REF!"}},{"$f":"IF(Stock!#REF!<>\"\",$H36*N36,\"\")","v":{"$error":"#REF!"}},{"$f":"IF(Stock!#REF!<>\"\",Pilotage!O$27,\"\")","v":{"$error":"#REF!"}},{"$f":"IF(Stock!#REF!<>\"\",ROUND(K36*P36,0),\"\")","v":{"$error":"#REF!"}},{"$f":"IF(Stock!#REF!<>\"\",$H36*Q36,\"\")","v":{"$error":"#REF!"}},{"$f":"IF(Stock!#REF!<>\"\",Pilotage!P$27,\"\")","v":{"$error":"#REF!"}},{"$f":"IF(Stock!#REF!<>\"\",ROUND(Q36*S36,0),\"\")","v":{"$error":"#REF!"}},{"$f":"IF(Stock!#REF!<>\"\",$H36*T36,\"\")","v":{"$error":"#REF!"}},{"$f":"IF(Stock!#REF!<>\"\",Pilotage!Q$27,\"\")","v":{"$error":"#REF!"}},{"$f":"IF(Stock!#REF!<>\"\",ROUND(T36*V36,0),\"\")","v":{"$error":"#REF!"}},{"$f":"IF(Stock!#REF!<>\"\",$H36*W36,\"\")","v":{"$error":"#REF!"}},{"$f":"IF(Stock!#REF!<>\"\",Pilotage!R$27,\"\")","v":{"$error":"#REF!"}},{"$f":"IF(Stock!#REF!<>\"\",ROUND(W36*Y36,0),\"\")","v":{"$error":"#REF!"}},{"$f":"IF(Stock!#REF!<>\"\",$H36*Z36,\"\")","v":{"$error":"#REF!"}}]
[{"$f":"IF(Stock!#REF!<>\"\",Stock!#REF!,\"\")","v":{"$error":"#REF!"}},{"$f":"IF(Stock!#REF!<>\"\",Stock!#REF!,\"\")","v":{"$error":"#REF!"}},{"$f":"IF(Stock!#REF!<>\"\",Stock!#REF!,\"\")","v":{"$error":"#REF!"}},{"$f":"IF(Stock!#REF!<>\"\",SUM(Stock!#REF!,Stock!#REF!,Stock!#REF!),\"\")","v":{"$error":"#REF!"}},{"$f":"IF(Stock!#REF!<>\"\",#REF!*(1+Pilotage!$M$20),\"\")","v":{"$error":"#REF!"}},null,{"$f":"IF(Stock!#REF!<>\"\",IF(Stock!#REF!>0,Stock!#REF!/Stock!#REF!,0),\"\")","v":{"$error":"#REF!"}},{"$f":"IF(Stock!#REF!<>\"\",E37*Pilotage!$D$15,\"\")","v":{"$error":"#REF!"}},{"$f":"IF(Stock!#REF!<>\"\",IF(Stock!#REF!>0,Stock!#REF!,0),\"\")","v":{"$error":"#REF!"}},{"$f":"IF(Stock!#REF!<>\"\",Pilotage!$M$27,\"\")","v":{"$error":"#REF!"}},{"$f":"IF(Stock!#REF!<>\"\",ROUND(Stock!#REF!*J37,0),\"\")","v":{"$error":"#REF!"}},{"$f":"IF(Stock!#REF!<>\"\",$H37*K37,\"\")","v":{"$error":"#REF!"}},{"$f":"IF(Stock!#REF!<>\"\",Pilotage!N$27,\"\")","v":{"$error":"#REF!"}},{"$f":"IF(Stock!#REF!<>\"\",ROUND(K37*M37,0),\"\")","v":{"$error":"#REF!"}},{"$f":"IF(Stock!#REF!<>\"\",$H37*N37,\"\")","v":{"$error":"#REF!"}},{"$f":"IF(Stock!#REF!<>\"\",Pilotage!O$27,\"\")","v":{"$error":"#REF!"}},{"$f":"IF(Stock!#REF!<>\"\",ROUND(K37*P37,0),\"\")","v":{"$error":"#REF!"}},{"$f":"IF(Stock!#REF!<>\"\",$H37*Q37,\"\")","v":{"$error":"#REF!"}},{"$f":"IF(Stock!#REF!<>\"\",Pilotage!P$27,\"\")","v":{"$error":"#REF!"}},{"$f":"IF(Stock!#REF!<>\"\",ROUND(Q37*S37,0),\"\")","v":{"$error":"#REF!"}},{"$f":"IF(Stock!#REF!<>\"\",$H37*T37,\"\")","v":{"$error":"#REF!"}},{"$f":"IF(Stock!#REF!<>\"\",Pilotage!Q$27,\"\")","v":{"$error":"#REF!"}},{"$f":"IF(Stock!#REF!<>\"\",ROUND(T37*V37,0),\"\")","v":{"$error":"#REF!"}},{"$f":"IF(Stock!#REF!<>\"\",$H37*W37,\"\")","v":{"$error":"#REF!"}},{"$f":"IF(Stock!#REF!<>\"\",Pilotage!R$27,\"\")","v":{"$error":"#REF!"}},{"$f":"IF(Stock!#REF!<>\"\",ROUND(W37*Y37,0),\"\")","v":{"$error":"#REF!"}},{"$f":"IF(Stock!#REF!<>\"\",$H37*Z37,\"\")","v":{"$error":"#REF!"}}]
[{"$f":"IF(Stock!#REF!<>\"\",Stock!#REF!,\"\")","v":{"$error":"#REF!"}},{"$f":"IF(Stock!#REF!<>\"\",Stock!#REF!,\"\")","v":{"$error":"#REF!"}},{"$f":"IF(Stock!#REF!<>\"\",Stock!#REF!,\"\")","v":{"$error":"#REF!"}},{"$f":"IF(Stock!#REF!<>\"\",SUM(Stock!#REF!,Stock!#REF!,Stock!#REF!),\"\")","v":{"$error":"#REF!"}},{"$f":"IF(Stock!#REF!<>\"\",#REF!*(1+Pilotage!$M$20),\"\")","v":{"$error":"#REF!"}},null,{"$f":"IF(Stock!#REF!<>\"\",IF(Stock!#REF!>0,Stock!#REF!/Stock!#REF!,0),\"\")","v":{"$error":"#REF!"}},{"$f":"IF(Stock!#REF!<>\"\",E38*Pilotage!$D$15,\"\")","v":{"$error":"#REF!"}},{"$f":"IF(Stock!#REF!<>\"\",IF(Stock!#REF!>0,Stock!#REF!,0),\"\")","v":{"$error":"#REF!"}},{"$f":"IF(Stock!#REF!<>\"\",Pilotage!$M$27,\"\")","v":{"$error":"#REF!"}},{"$f":"IF(Stock!#REF!<>\"\",ROUND(Stock!#REF!*J38,0),\"\")","v":{"$error":"#REF!"}},{"$f":"IF(Stock!#REF!<>\"\",$H38*K38,\"\")","v":{"$error":"#REF!"}},{"$f":"IF(Stock!#REF!<>\"\",Pilotage!N$27,\"\")","v":{"$error":"#REF!"}},{"$f":"IF(Stock!#REF!<>\"\",ROUND(K38*M38,0),\"\")","v":{"$error":"#REF!"}},{"$f":"IF(Stock!#REF!<>\"\",$H38*N38,\"\")","v":{"$error":"#REF!"}},{"$f":"IF(Stock!#REF!<>\"\",Pilotage!O$27,\"\")","v":{"$error":"#REF!"}},{"$f":"IF(Stock!#REF!<>\"\",ROUND(K38*P38,0),\"\")","v":{"$error":"#REF!"}},{"$f":"IF(Stock!#REF!<>\"\",$H38*Q38,\"\")","v":{"$error":"#REF!"}},{"$f":"IF(Stock!#REF!<>\"\",Pilotage!P$27,\"\")","v":{"$error":"#REF!"}},{"$f":"IF(Stock!#REF!<>\"\",ROUND(Q38*S38,0),\"\")","v":{"$error":"#REF!"}},{"$f":"IF(Stock!#REF!<>\"\",$H38*T38,\"\")","v":{"$error":"#REF!"}},{"$f":"IF(Stock!#REF!<>\"\",Pilotage!Q$27,\"\")","v":{"$error":"#REF!"}},{"$f":"IF(Stock!#REF!<>\"\",ROUND(T38*V38,0),\"\")","v":{"$error":"#REF!"}},{"$f":"IF(Stock!#REF!<>\"\",$H38*W38,\"\")","v":{"$error":"#REF!"}},{"$f":"IF(Stock!#REF!<>\"\",Pilotage!R$27,\"\")","v":{"$error":"#REF!"}},{"$f":"IF(Stock!#REF!<>\"\",ROUND(W38*Y38,0),\"\")","v":{"$error":"#REF!"}},{"$f":"IF(Stock!#REF!<>\"\",$H38*Z38,\"\")","v":{"$error":"#REF!"}}]
[{"$f":"IF(Stock!#REF!<>\"\",Stock!#REF!,\"\")","v":{"$error":"#REF!"}},{"$f":"IF(Stock!#REF!<>\"\",Stock!#REF!,\"\")","v":{"$error":"#REF!"}},{"$f":"IF(Stock!#REF!<>\"\",Stock!#REF!,\"\")","v":{"$error":"#REF!"}},{"$f":"IF(Stock!#REF!<>\"\",SUM(Stock!#REF!,Stock!#REF!,Stock!#REF!),\"\")","v":{"$error":"#REF!"}},{"$f":"IF(Stock!#REF!<>\"\",#REF!*(1+Pilotage!$M$20),\"\")","v":{"$error":"#REF!"}},null,{"$f":"IF(Stock!#REF!<>\"\",IF(Stock!#REF!>0,Stock!#REF!/Stock!#REF!,0),\"\")","v":{"$error":"#REF!"}},{"$f":"IF(Stock!#REF!<>\"\",E39*Pilotage!$D$15,\"\")","v":{"$error":"#REF!"}},{"$f":"IF(Stock!#REF!<>\"\",IF(Stock!#REF!>0,Stock!#REF!,0),\"\")","v":{"$error":"#REF!"}},{"$f":"IF(Stock!#REF!<>\"\",Pilotage!$M$27,\"\")","v":{"$error":"#REF!"}},{"$f":"IF(Stock!#REF!<>\"\",ROUND(Stock!#REF!*J39,0),\"\")","v":{"$error":"#REF!"}},{"$f":"IF(Stock!#REF!<>\"\",$H39*K39,\"\")","v":{"$error":"#REF!"}},{"$f":"IF(Stock!#REF!<>\"\",Pilotage!N$27,\"\")","v":{"$error":"#REF!"}},{"$f":"IF(Stock!#REF!<>\"\",ROUND(K39*M39,0),\"\")","v":{"$error":"#REF!"}},{"$f":"IF(Stock!#REF!<>\"\",$H39*N39,\"\")","v":{"$error":"#REF!"}},{"$f":"IF(Stock!#REF!<>\"\",Pilotage!O$27,\"\")","v":{"$error":"#REF!"}},{"$f":"IF(Stock!#REF!<>\"\",ROUND(K39*P39,0),\"\")","v":{"$error":"#REF!"}},{"$f":"IF(Stock!#REF!<>\"\",$H39*Q39,\"\")","v":{"$error":"#REF!"}},{"$f":"IF(Stock!#REF!<>\"\",Pilotage!P$27,\"\")","v":{"$error":"#REF!"}},{"$f":"IF(Stock!#REF!<>\"\",ROUND(Q39*S39,0),\"\")","v":{"$error":"#REF!"}},{"$f":"IF(Stock!#REF!<>\"\",$H39*T39,\"\")","v":{"$error":"#REF!"}},{"$f":"IF(Stock!#REF!<>\"\",Pilotage!Q$27,\"\")","v":{"$error":"#REF!"}},{"$f":"IF(Stock!#REF!<>\"\",ROUND(T39*V39,0),\"\")","v":{"$error":"#REF!"}},{"$f":"IF(Stock!#REF!<>\"\",$H39*W39,\"\")","v":{"$error":"#REF!"}},{"$f":"IF(Stock!#REF!<>\"\",Pilotage!R$27,\"\")","v":{"$error":"#REF!"}},{"$f":"IF(Stock!#REF!<>\"\",ROUND(W39*Y39,0),\"\")","v":{"$error":"#REF!"}},{"$f":"IF(Stock!#REF!<>\"\",$H39*Z39,\"\")","v":{"$error":"#REF!"}}]
[{"$f":"IF(Stock!#REF!<>\"\",Stock!#REF!,\"\")","v":{"$error":"#REF!"}},{"$f":"IF(Stock!#REF!<>\"\",Stock!#REF!,\"\")","v":{"$error":"#REF!"}},{"$f":"IF(Stock!#REF!<>\"\",Stock!#REF!,\"\")","v":{"$error":"#REF!"}},{"$f":"IF(Stock!#REF!<>\"\",SUM(Stock!#REF!,Stock!#REF!,Stock!#REF!),\"\")","v":{"$error":"#REF!"}},{"$f":"IF(Stock!#REF!<>\"\",#REF!*(1+Pilotage!$M$20),\"\")","v":{"$error":"#REF!"}},null,{"$f":"IF(Stock!#REF!<>\"\",IF(Stock!#REF!>0,Stock!#REF!/Stock!#REF!,0),\"\")","v":{"$error":"#REF!"}},{"$f":"IF(Stock!#REF!<>\"\",E40*Pilotage!$D$15,\"\")","v":{"$error":"#REF!"}},{"$f":"IF(Stock!#REF!<>\"\",IF(Stock!#REF!>0,Stock!#REF!,0),\"\")","v":{"$error":"#REF!"}},{"$f":"IF(Stock!#REF!<>\"\",Pilotage!$M$27,\"\")","v":{"$error":"#REF!"}},{"$f":"IF(Stock!#REF!<>\"\",ROUND(Stock!#REF!*J40,0),\"\")","v":{"$error":"#REF!"}},{"$f":"IF(Stock!#REF!<>\"\",$H40*K40,\"\")","v":{"$error":"#REF!"}},{"$f":"IF(Stock!#REF!<>\"\",Pilotage!N$27,\"\")","v":{"$error":"#REF!"}},{"$f":"IF(Stock!#REF!<>\"\",ROUND(K40*M40,0),\"\")","v":{"$error":"#REF!"}},{"$f":"IF(Stock!#REF!<>\"\",$H40*N40,\"\")","v":{"$error":"#REF!"}},{"$f":"IF(Stock!#REF!<>\"\",Pilotage!O$27,\"\")","v":{"$error":"#REF!"}},{"$f":"IF(Stock!#REF!<>\"\",ROUND(K40*P40,0),\"\")","v":{"$error":"#REF!"}},{"$f":"IF(Stock!#REF!<>\"\",$H40*Q40,\"\")","v":{"$error":"#REF!"}},{"$f":"IF(Stock!#REF!<>\"\",Pilotage!P$27,\"\")","v":{"$error":"#REF!"}},{"$f":"IF(Stock!#REF!<>\"\",ROUND(Q40*S40,0),\"\")","v":{"$error":"#REF!"}},{"$f":"IF(Stock!#REF!<>\"\",$H40*T40,\"\")","v":{"$error":"#REF!"}},{"$f":"IF(Stock!#REF!<>\"\",Pilotage!Q$27,\"\")","v":{"$error":"#REF!"}},{"$f":"IF(Stock!#REF!<>\"\",ROUND(T40*V40,0),\"\")","v":{"$error":"#REF!"}},{"$f":"IF(Stock!#REF!<>\"\",$H40*W40,\"\")","v":{"$error":"#REF!"}},{"$f":"IF(Stock!#REF!<>\"\",Pilotage!R$27,\"\")","v":{"$error":"#REF!"}},{"$f":"IF(Stock!#REF!<>\"\",ROUND(W40*Y40,0),\"\")","v":{"$error":"#REF!"}},{"$f":"IF(Stock!#REF!<>\"\",$H40*Z40,\"\")","v":{"$error":"#REF!"}}]
[{"$f":"IF(Stock!#REF!<>\"\",Stock!#REF!,\"\")","v":{"$error":"#REF!"}},{"$f":"IF(Stock!#REF!<>\"\",Stock!#REF!,\"\")","v":{"$error":"#REF!"}},{"$f":"IF(Stock!#REF!<>\"\",Stock!#REF!,\"\")","v":{"$error":"#REF!"}},{"$f":"IF(Stock!#REF!<>\"\",SUM(Stock!#REF!,Stock!#REF!,Stock!#REF!),\"\")","v":{"$error":"#REF!"}},{"$f":"IF(Stock!#REF!<>\"\",#REF!*(1+Pilotage!$M$20),\"\")","v":{"$error":"#REF!"}},null,{"$f":"IF(Stock!#REF!<>\"\",IF(Stock!#REF!>0,Stock!#REF!/Stock!#REF!,0),\"\")","v":{"$error":"#REF!"}},{"$f":"IF(Stock!#REF!<>\"\",E41*Pilotage!$D$15,\"\")","v":{"$error":"#REF!"}},{"$f":"IF(Stock!#REF!<>\"\",IF(Stock!#REF!>0,Stock!#REF!,0),\"\")","v":{"$error":"#REF!"}},{"$f":"IF(Stock!#REF!<>\"\",Pilotage!$M$27,\"\")","v":{"$error":"#REF!"}},{"$f":"IF(Stock!#REF!<>\"\",ROUND(Stock!#REF!*J41,0),\"\")","v":{"$error":"#REF!"}},{"$f":"IF(Stock!#REF!<>\"\",$H41*K41,\"\")","v":{"$error":"#REF!"}},{"$f":"IF(Stock!#REF!<>\"\",Pilotage!N$27,\"\")","v":{"$error":"#REF!"}},{"$f":"IF(Stock!#REF!<>\"\",ROUND(K41*M41,0),\"\")","v":{"$error":"#REF!"}},{"$f":"IF(Stock!#REF!<>\"\",$H41*N41,\"\")","v":{"$error":"#REF!"}},{"$f":"IF(Stock!#REF!<>\"\",Pilotage!O$27,\"\")","v":{"$error":"#REF!"}},{"$f":"IF(Stock!#REF!<>\"\",ROUND(K41*P41,0),\"\")","v":{"$error":"#REF!"}},{"$f":"IF(Stock!#REF!<>\"\",$H41*Q41,\"\")","v":{"$error":"#REF!"}},{"$f":"IF(Stock!#REF!<>\"\",Pilotage!P$27,\"\")","v":{"$error":"#REF!"}},{"$f":"IF(Stock!#REF!<>\"\",ROUND(Q41*S41,0),\"\")","v":{"$error":"#REF!"}},{"$f":"IF(Stock!#REF!<>\"\",$H41*T41,\"\")","v":{"$error":"#REF!"}},{"$f":"IF(Stock!#REF!<>\"\",Pilotage!Q$27,\"\")","v":{"$error":"#REF!"}},{"$f":"IF(Stock!#REF!<>\"\",ROUND(T41*V41,0),\"\")","v":{"$error":"#REF!"}},{"$f":"IF(Stock!#REF!<>\"\",$H41*W41,\"\")","v":{"$error":"#REF!"}},{"$f":"IF(Stock!#REF!<>\"\",Pilotage!R$27,\"\")","v":{"$error":"#REF!"}},{"$f":"IF(Stock!#REF!<>\"\",ROUND(W41*Y41,0),\"\")","v":{"$error":"#REF!"}},{"$f":"IF(Stock!#REF!<>\"\",$H41*Z41,\"\")","v":{"$error":"#REF!"}}]
[{"$f":"IF(Stock!#REF!<>\"\",Stock!#REF!,\"\")","v":{"$error":"#REF!"}},{"$f":"IF(Stock!#REF!<>\"\",Stock!#REF!,\"\")","v":{"$error":"#REF!"}},{"$f":"IF(Stock!#REF!<>\"\",Stock!#REF!,\"\")","v":{"$error":"#REF!"}},{"$f":"IF(Stock!#REF!<>\"\",SUM(Stock!#REF!,Stock!#REF!,Stock!#REF!),\"\")","v":{"$error":"#REF!"}},{"$f":"IF(Stock!#REF!<>\"\",#REF!*(1+Pilotage!$M$20),\"\")","v":{"$error":"#REF!"}},null,{"$f":"IF(Stock!#REF!<>\"\",IF(Stock!#REF!>0,Stock!#REF!/Stock!#REF!,0),\"\")","v":{"$error":"#REF!"}},{"$f":"IF(Stock!#REF!<>\"\",E42*Pilotage!$D$15,\"\")","v":{"$error":"#REF!"}},{"$f":"IF(Stock!#REF!<>\"\",IF(Stock!#REF!>0,Stock!#REF!,0),\"\")","v":{"$error":"#REF!"}},{"$f":"IF(Stock!#REF!<>\"\",Pilotage!$M$27,\"\")","v":{"$error":"#REF!"}},{"$f":"IF(Stock!#REF!<>\"\",ROUND(Stock!#REF!*J42,0),\"\")","v":{"$error":"#REF!"}},{"$f":"IF(Stock!#REF!<>\"\",$H42*K42,\"\")","v":{"$error":"#REF!"}},{"$f":"IF(Stock!#REF!<>\"\",Pilotage!N$27,\"\")","v":{"$error":"#REF!"}},{"$f":"IF(Stock!#REF!<>\"\",ROUND(K42*M42,0),\"\")","v":{"$error":"#REF!"}},{"$f":"IF(Stock!#REF!<>\"\",$H42*N42,\"\")","v":{"$error":"#REF!"}},{"$f":"IF(Stock!#REF!<>\"\",Pilotage!O$27,\"\")","v":{"$error":"#REF!"}},{"$f":"IF(Stock!#REF!<>\"\",ROUND(K42*P42,0),\"\")","v":{"$error":"#REF!"}},{"$f":"IF(Stock!#REF!<>\"\",$H42*Q42,\"\")","v":{"$error":"#REF!"}},{"$f":"IF(Stock!#REF!<>\"\",Pilotage!P$27,\"\")","v":{"$error":"#REF!"}},{"$f":"IF(Stock!#REF!<>\"\",ROUND(Q42*S42,0),\"\")","v":{"$error":"#REF!"}},{"$f":"IF(Stock!#REF!<>\"\",$H42*T42,\"\")","v":{"$error":"#REF!"}},{"$f":"IF(Stock!#REF!<>\"\",Pilotage!Q$27,\"\")","v":{"$error":"#REF!"}},{"$f":"IF(Stock!#REF!<>\"\",ROUND(T42*V42,0),\"\")","v":{"$error":"#REF!"}},{"$f":"IF(Stock!#REF!<>\"\",$H42*W42,\"\")","v":{"$error":"#REF!"}},{"$f":"IF(Stock!#REF!<>\"\",Pilotage!R$27,\"\")","v":{"$error":"#REF!"}},{"$f":"IF(Stock!#REF!<>\"\",ROUND(W42*Y42,0),\"\")","v":{"$error":"#REF!"}},{"$f":"IF(Stock!#REF!<>\"\",$H42*Z42,\"\")","v":{"$error":"#REF!"}}]
[{"$f":"IF(Stock!#REF!<>\"\",Stock!#REF!,\"\")","v":{"$error":"#REF!"}},{"$f":"IF(Stock!#REF!<>\"\",Stock!#REF!,\"\")","v":{"$error":"#REF!"}},{"$f":"IF(Stock!#REF!<>\"\",Stock!#REF!,\"\")","v":{"$error":"#REF!"}},{"$f":"IF(Stock!#REF!<>\"\",SUM(Stock!#REF!,Stock!#REF!,Stock!#REF!),\"\")","v":{"$error":"#REF!"}},{"$f":"IF(Stock!#REF!<>\"\",#REF!*(1+Pilotage!$M$20),\"\")","v":{"$error":"#REF!"}},null,{"$f":"IF(Stock!#REF!<>\"\",IF(Stock!#REF!>0,Stock!#REF!/Stock!#REF!,0),\"\")","v":{"$error":"#REF!"}},{"$f":"IF(Stock!#REF!<>\"\",E43*Pilotage!$D$15,\"\")","v":{"$error":"#REF!"}},{"$f":"IF(Stock!#REF!<>\"\",IF(Stock!#REF!>0,Stock!#REF!,0),\"\")","v":{"$error":"#REF!"}},{"$f":"IF(Stock!#REF!<>\"\",Pilotage!$M$27,\"\")","v":{"$error":"#REF!"}},{"$f":"IF(Stock!#REF!<>\"\",ROUND(Stock!#REF!*J43,0),\"\")","v":{"$error":"#REF!"}},{"$f":"IF(Stock!#REF!<>\"\",$H43*K43,\"\")","v":{"$error":"#REF!"}},{"$f":"IF(Stock!#REF!<>\"\",Pilotage!N$27,\"\")","v":{"$error":"#REF!"}},{"$f":"IF(Stock!#REF!<>\"\",ROUND(K43*M43,0),\"\")","v":{"$error":"#REF!"}},{"$f":"IF(Stock!#REF!<>\"\",$H43*N43,\"\")","v":{"$error":"#REF!"}},{"$f":"IF(Stock!#REF!<>\"\",Pilotage!O$27,\"\")","v":{"$error":"#REF!"}},{"$f":"IF(Stock!#REF!<>\"\",ROUND(K43*P43,0),\"\")","v":{"$error":"#REF!"}},{"$f":"IF(Stock!#REF!<>\"\",$H43*Q43,\"\")","v":{"$error":"#REF!"}},{"$f":"IF(Stock!#REF!<>\"\",Pilotage!P$27,\"\")","v":{"$error":"#REF!"}},{"$f":"IF(Stock!#REF!<>\"\",ROUND(Q43*S43,0),\"\")","v":{"$error":"#REF!"}},{"$f":"IF(Stock!#REF!<>\"\",$H43*T43,\"\")","v":{"$error":"#REF!"}},{"$f":"IF(Stock!#REF!<>\"\",Pilotage!Q$27,\"\")","v":{"$error":"#REF!"}},{"$f":"IF(Stock!#REF!<>\"\",ROUND(T43*V43,0),\"\")","v":{"$error":"#REF!"}},{"$f":"IF(Stock!#REF!<>\"\",$H43*W43,\"\")","v":{"$error":"#REF!"}},{"$f":"IF(Stock!#REF!<>\"\",Pilotage!R$27,\"\")","v":{"$error":"#REF!"}},{"$f":"IF(Stock!#REF!<>\"\",ROUND(W43*Y43,0),\"\")","v":{"$error":"#REF!"}},{"$f":"IF(Stock!#REF!<>\"\",$H43*Z43,\"\")","v":{"$error":"#REF!"}}]
[{"$f":"IF(Stock!#REF!<>\"\",Stock!#REF!,\"\")","v":{"$error":"#REF!"}},{"$f":"IF(Stock!#REF!<>\"\",Stock!#REF!,\"\")","v":{"$error":"#REF!"}},{"$f":"IF(Stock!#REF!<>\"\",Stock!#REF!,\"\")","v":{"$error":"#REF!"}},{"$f":"IF(Stock!#REF!<>\"\",SUM(Stock!#REF!,Stock!#REF!,Stock!#REF!),\"\")","v":{"$error":"#REF!"}},{"$f":"IF(Stock!#REF!<>\"\",#REF!*(1+Pilotage!$M$20),\"\")","v":{"$error":"#REF!"}},null,{"$f":"IF(Stock!#REF!<>\"\",IF(Stock!#REF!>0,Stock!#REF!/Stock!#REF!,0),\"\")","v":{"$error":"#REF!"}},{"$f":"IF(Stock!#REF!<>\"\",E44*Pilotage!$D$15,\"\")","v":{"$error":"#REF!"}},{"$f":"IF(Stock!#REF!<>\"\",IF(Stock!#REF!>0,Stock!#REF!,0),\"\")","v":{"$error":"#REF!"}},{"$f":"IF(Stock!#REF!<>\"\",Pilotage!$M$27,\"\")","v":{"$error":"#REF!"}},{"$f":"IF(Stock!#REF!<>\"\",ROUND(Stock!#REF!*J44,0),\"\")","v":{"$error":"#REF!"}},{"$f":"IF(Stock!#REF!<>\"\",$H44*K44,\"\")","v":{"$error":"#REF!"}},{"$f":"IF(Stock!#REF!<>\"\",Pilotage!N$27,\"\")","v":{"$error":"#REF!"}},{"$f":"IF(Stock!#REF!<>\"\",ROUND(K44*M44,0),\"\")","v":{"$error":"#REF!"}},{"$f":"IF(Stock!#REF!<>\"\",$H44*N44,\"\")","v":{"$error":"#REF!"}},{"$f":"IF(Stock!#REF!<>\"\",Pilotage!O$27,\"\")","v":{"$error":"#REF!"}},{"$f":"IF(Stock!#REF!<>\"\",ROUND(K44*P44,0),\"\")","v":{"$error":"#REF!"}},{"$f":"IF(Stock!#REF!<>\"\",$H44*Q44,\"\")","v":{"$error":"#REF!"}},{"$f":"IF(Stock!#REF!<>\"\",Pilotage!P$27,\"\")","v":{"$error":"#REF!"}},{"$f":"IF(Stock!#REF!<>\"\",ROUND(Q44*S44,0),\"\")","v":{"$error":"#REF!"}},{"$f":"IF(Stock!#REF!<>\"\",$H44*T44,\"\")","v":{"$error":"#REF!"}},{"$f":"IF(Stock!#REF!<>\"\",Pilotage!Q$27,\"\")","v":{"$error":"#REF!"}},{"$f":"IF(Stock!#REF!<>\"\",ROUND(T44*V44,0),\"\")","v":{"$error":"#REF!"}},{"$f":"IF(Stock!#REF!<>\"\",$H44*W44,\"\")","v":{"$error":"#REF!"}},{"$f":"IF(Stock!#REF!<>\"\",Pilotage!R$27,\"\")","v":{"$error":"#REF!"}},{"$f":"IF(Stock!#REF!<>\"\",ROUND(W44*Y44,0),\"\")","v":{"$error":"#REF!"}},{"$f":"IF(Stock!#REF!<>\"\",$H44*Z44,\"\")","v":{"$error":"#REF!"}}]
[{"$f":"IF(Stock!#REF!<>\"\",Stock!#REF!,\"\")","v":{"$error":"#REF!"}},{"$f":"IF(Stock!#REF!<>\"\",Stock!#REF!,\"\")","v":{"$error":"#REF!"}},{"$f":"IF(Stock!#REF!<>\"\",Stock!#REF!,\"\")","v":{"$error":"#REF!"}},{"$f":"IF(Stock!#REF!<>\"\",SUM(Stock!#REF!,Stock!#REF!,Stock!#REF!),\"\")","v":{"$error":"#REF!"}},{"$f":"IF(Stock!#REF!<>\"\",#REF!*(1+Pilotage!$M$20),\"\")","v":{"$error":"#REF!"}},null,{"$f":"IF(Stock!#REF!<>\"\",IF(Stock!#REF!>0,Stock!#REF!/Stock!#REF!,0),\"\")","v":{"$error":"#REF!"}},{"$f":"IF(Stock!#REF!<>\"\",E45*Pilotage!$D$15,\"\")","v":{"$error":"#REF!"}},{"$f":"IF(Stock!#REF!<>\"\",IF(Stock!#REF!>0,Stock!#REF!,0),\"\")","v":{"$error":"#REF!"}},{"$f":"IF(Stock!#REF!<>\"\",Pilotage!$M$27,\"\")","v":{"$error":"#REF!"}},{"$f":"IF(Stock!#REF!<>\"\",ROUND(Stock!#REF!*J45,0),\"\")","v":{"$error":"#REF!"}},{"$f":"IF(Stock!#REF!<>\"\",$H45*K45,\"\")","v":{"$error":"#REF!"}},{"$f":"IF(Stock!#REF!<>\"\",Pilotage!N$27,\"\")","v":{"$error":"#REF!"}},{"$f":"IF(Stock!#REF!<>\"\",ROUND(K45*M45,0),\"\")","v":{"$error":"#REF!"}},{"$f":"IF(Stock!#REF!<>\"\",$H45*N45,\"\")","v":{"$error":"#REF!"}},{"$f":"IF(Stock!#REF!<>\"\",Pilotage!O$27,\"\")","v":{"$error":"#REF!"}},{"$f":"IF(Stock!#REF!<>\"\",ROUND(K45*P45,0),\"\")","v":{"$error":"#REF!"}},{"$f":"IF(Stock!#REF!<>\"\",$H45*Q45,\"\")","v":{"$error":"#REF!"}},{"$f":"IF(Stock!#REF!<>\"\",Pilotage!P$27,\"\")","v":{"$error":"#REF!"}},{"$f":"IF(Stock!#REF!<>\"\",ROUND(Q45*S45,0),\"\")","v":{"$error":"#REF!"}},{"$f":"IF(Stock!#REF!<>\"\",$H45*T45,\"\")","v":{"$error":"#REF!"}},{"$f":"IF(Stock!#REF!<>\"\",Pilotage!Q$27,\"\")","v":{"$error":"#REF!"}},{"$f":"IF(Stock!#REF!<>\"\",ROUND(T45*V45,0),\"\")","v":{"$error":"#REF!"}},{"$f":"IF(Stock!#REF!<>\"\",$H45*W45,\"\")","v":{"$error":"#REF!"}},{"$f":"IF(Stock!#REF!<>\"\",Pilotage!R$27,\"\")","v":{"$error":"#REF!"}},{"$f":"IF(Stock!#REF!<>\"\",ROUND(W45*Y45,0),\"\")","v":{"$error":"#REF!"}},{"$f":"IF(Stock!#REF!<>\"\",$H45*Z45,\"\")","v":{"$error":"#REF!"}}]
[{"$f":"IF(Stock!#REF!<>\"\",Stock!#REF!,\"\")","v":{"$error":"#REF!"}},{"$f":"IF(Stock!#REF!<>\"\",Stock!#REF!,\"\")","v":{"$error":"#REF!"}},{"$f":"IF(Stock!#REF!<>\"\",Stock!#REF!,\"\")","v":{"$error":"#REF!"}},{"$f":"IF(Stock!#REF!<>\"\",SUM(Stock!#REF!,Stock!#REF!,Stock!#REF!),\"\")","v":{"$error":"#REF!"}},{"$f":"IF(Stock!#REF!<>\"\",#REF!*(1+Pilotage!$M$20),\"\")","v":{"$error":"#REF!"}},null,{"$f":"IF(Stock!#REF!<>\"\",IF(Stock!#REF!>0,Stock!#REF!/Stock!#REF!,0),\"\")","v":{"$error":"#REF!"}},{"$f":"IF(Stock!#REF!<>\"\",E46*Pilotage!$D$15,\"\")","v":{"$error":"#REF!"}},{"$f":"IF(Stock!#REF!<>\"\",IF(Stock!#REF!>0,Stock!#REF!,0),\"\")","v":{"$error":"#REF!"}},{"$f":"IF(Stock!#REF!<>\"\",Pilotage!$M$27,\"\")","v":{"$error":"#REF!"}},{"$f":"IF(Stock!#REF!<>\"\",ROUND(Stock!#REF!*J46,0),\"\")","v":{"$error":"#REF!"}},{"$f":"IF(Stock!#REF!<>\"\",$H46*K46,\"\")","v":{"$error":"#REF!"}},{"$f":"IF(Stock!#REF!<>\"\",Pilotage!N$27,\"\")","v":{"$error":"#REF!"}},{"$f":"IF(Stock!#REF!<>\"\",ROUND(K46*M46,0),\"\")","v":{"$error":"#REF!"}},{"$f":"IF(Stock!#REF!<>\"\",$H46*N46,\"\")","v":{"$error":"#REF!"}},{"$f":"IF(Stock!#REF!<>\"\",Pilotage!O$27,\"\")","v":{"$error":"#REF!"}},{"$f":"IF(Stock!#REF!<>\"\",ROUND(K46*P46,0),\"\")","v":{"$error":"#REF!"}},{"$f":"IF(Stock!#REF!<>\"\",$H46*Q46,\"\")","v":{"$error":"#REF!"}},{"$f":"IF(Stock!#REF!<>\"\",Pilotage!P$27,\"\")","v":{"$error":"#REF!"}},{"$f":"IF(Stock!#REF!<>\"\",ROUND(Q46*S46,0),\"\")","v":{"$error":"#REF!"}},{"$f":"IF(Stock!#REF!<>\"\",$H46*T46,\"\")","v":{"$error":"#REF!"}},{"$f":"IF(Stock!#REF!<>\"\",Pilotage!Q$27,\"\")","v":{"$error":"#REF!"}},{"$f":"IF(Stock!#REF!<>\"\",ROUND(T46*V46,0),\"\")","v":{"$error":"#REF!"}},{"$f":"IF(Stock!#REF!<>\"\",$H46*W46,\"\")","v":{"$error":"#REF!"}},{"$f":"IF(Stock!#REF!<>\"\",Pilotage!R$27,\"\")","v":{"$error":"#REF!"}},{"$f":"IF(Stock!#REF!<>\"\",ROUND(W46*Y46,0),\"\")","v":{"$error":"#REF!"}},{"$f":"IF(Stock!#REF!<>\"\",$H46*Z46,\"\")","v":{"$error":"#REF!"}}]
[{"$f":"IF(Stock!#REF!<>\"\",Stock!#REF!,\"\")","v":{"$error":"#REF!"}},{"$f":"IF(Stock!#REF!<>\"\",Stock!#REF!,\"\")","v":{"$error":"#REF!"}},{"$f":"IF(Stock!#REF!<>\"\",Stock!#REF!,\"\")","v":{"$error":"#REF!"}},{"$f":"IF(Stock!#REF!<>\"\",SUM(Stock!#REF!,Stock!#REF!,Stock!#REF!),\"\")","v":{"$error":"#REF!"}},{"$f":"IF(Stock!#REF!<>\"\",#REF!*(1+Pilotage!$M$20),\"\")","v":{"$error":"#REF!"}},null,{"$f":"IF(Stock!#REF!<>\"\",IF(Stock!#REF!>0,Stock!#REF!/Stock!#REF!,0),\"\")","v":{"$error":"#REF!"}},{"$f":"IF(Stock!#REF!<>\"\",E47*Pilotage!$D$15,\"\")","v":{"$error":"#REF!"}},{"$f":"IF(Stock!#REF!<>\"\",IF(Stock!#REF!>0,Stock!#REF!,0),\"\")","v":{"$error":"#REF!"}},{"$f":"IF(Stock!#REF!<>\"\",Pilotage!$M$27,\"\")","v":{"$error":"#REF!"}},{"$f":"IF(Stock!#REF!<>\"\",ROUND(Stock!#REF!*J47,0),\"\")","v":{"$error":"#REF!"}},{"$f":"IF(Stock!#REF!<>\"\",$H47*K47,\"\")","v":{"$error":"#REF!"}},{"$f":"IF(Stock!#REF!<>\"\",Pilotage!N$27,\"\")","v":{"$error":"#REF!"}},{"$f":"IF(Stock!#REF!<>\"\",ROUND(K47*M47,0),\"\")","v":{"$error":"#REF!"}},{"$f":"IF(Stock!#REF!<>\"\",$H47*N47,\"\")","v":{"$error":"#REF!"}},{"$f":"IF(Stock!#REF!<>\"\",Pilotage!O$27,\"\")","v":{"$error":"#REF!"}},{"$f":"IF(Stock!#REF!<>\"\",ROUND(K47*P47,0),\"\")","v":{"$error":"#REF!"}},{"$f":"IF(Stock!#REF!<>\"\",$H47*Q47,\"\")","v":{"$error":"#REF!"}},{"$f":"IF(Stock!#REF!<>\"\",Pilotage!P$27,\"\")","v":{"$error":"#REF!"}},{"$f":"IF(Stock!#REF!<>\"\",ROUND(Q47*S47,0),\"\")","v":{"$error":"#REF!"}},{"$f":"IF(Stock!#REF!<>\"\",$H47*T47,\"\")","v":{"$error":"#REF!"}},{"$f":"IF(Stock!#REF!<>\"\",Pilotage!Q$27,\"\")","v":{"$error":"#REF!"}},{"$f":"IF(Stock!#REF!<>\"\",ROUND(T47*V47,0),\"\")","v":{"$error":"#REF!"}},{"$f":"IF(Stock!#REF!<>\"\",$H47*W47,\"\")","v":{"$error":"#REF!"}},{"$f":"IF(Stock!#REF!<>\"\",Pilotage!R$27,\"\")","v":{"$error":"#REF!"}},{"$f":"IF(Stock!#REF!<>\"\",ROUND(W47*Y47,0),\"\")","v":{"$error":"#REF!"}},{"$f":"IF(Stock!#REF!<>\"\",$H47*Z47,\"\")","v":{"$error":"#REF!"}}]
[{"$f":"IF(Stock!#REF!<>\"\",Stock!#REF!,\"\")","v":{"$error":"#REF!"}},{"$f":"IF(Stock!#REF!<>\"\",Stock!#REF!,\"\")","v":{"$error":"#REF!"}},{"$f":"IF(Stock!#REF!<>\"\",Stock!#REF!,\"\")","v":{"$error":"#REF!"}},{"$f":"IF(Stock!#REF!<>\"\",SUM(Stock!#REF!,Stock!#REF!,Stock!#REF!),\"\")","v":{"$error":"#REF!"}},{"$f":"IF(Stock!#REF!<>\"\",#REF!*(1+Pilotage!$M$20),\"\")","v":{"$error":"#REF!"}},null,{"$f":"IF(Stock!#REF!<>\"\",IF(Stock!#REF!>0,Stock!#REF!/Stock!#REF!,0),\"\")","v":{"$error":"#REF!"}},{"$f":"IF(Stock!#REF!<>\"\",E48*Pilotage!$D$15,\"\")","v":{"$error":"#REF!"}},{"$f":"IF(Stock!#REF!<>\"\",IF(Stock!#REF!>0,Stock!#REF!,0),\"\")","v":{"$error":"#REF!"}},{"$f":"IF(Stock!#REF!<>\"\",Pilotage!$M$27,\"\")","v":{"$error":"#REF!"}},{"$f":"IF(Stock!#REF!<>\"\",ROUND(Stock!#REF!*J48,0),\"\")","v":{"$error":"#REF!"}},{"$f":"IF(Stock!#REF!<>\"\",$H48*K48,\"\")","v":{"$error":"#REF!"}},{"$f":"IF(Stock!#REF!<>\"\",Pilotage!N$27,\"\")","v":{"$error":"#REF!"}},{"$f":"IF(Stock!#REF!<>\"\",ROUND(K48*M48,0),\"\")","v":{"$error":"#REF!"}},{"$f":"IF(Stock!#REF!<>\"\",$H48*N48,\"\")","v":{"$error":"#REF!"}},{"$f":"IF(Stock!#REF!<>\"\",Pilotage!O$27,\"\")","v":{"$error":"#REF!"}},{"$f":"IF(Stock!#REF!<>\"\",ROUND(K48*P48,0),\"\")","v":{"$error":"#REF!"}},{"$f":"IF(Stock!#REF!<>\"\",$H48*Q48,\"\")","v":{"$error":"#REF!"}},{"$f":"IF(Stock!#REF!<>\"\",Pilotage!P$27,\"\")","v":{"$error":"#REF!"}},{"$f":"IF(Stock!#REF!<>\"\",ROUND(Q48*S48,0),\"\")","v":{"$error":"#REF!"}},{"$f":"IF(Stock!#REF!<>\"\",$H48*T48,\"\")","v":{"$error":"#REF!"}},{"$f":"IF(Stock!#REF!<>\"\",Pilotage!Q$27,\"\")","v":{"$error":"#REF!"}},{"$f":"IF(Stock!#REF!<>\"\",ROUND(T48*V48,0),\"\")","v":{"$error":"#REF!"}},{"$f":"IF(Stock!#REF!<>\"\",$H48*W48,\"\")","v":{"$error":"#REF!"}},{"$f":"IF(Stock!#REF!<>\"\",Pilotage!R$27,\"\")","v":{"$error":"#REF!"}},{"$f":"IF(Stock!#REF!<>\"\",ROUND(W48*Y48,0),\"\")","v":{"$error":"#REF!"}},{"$f":"IF(Stock!#REF!<>\"\",$H48*Z48,\"\")","v":{"$error":"#REF!"}}]
[{"$f":"IF(Stock!#REF!<>\"\",Stock!#REF!,\"\")","v":{"$error":"#REF!"}},{"$f":"IF(Stock!#REF!<>\"\",Stock!#REF!,\"\")","v":{"$error":"#REF!"}},{"$f":"IF(Stock!#REF!<>\"\",Stock!#REF!,\"\")","v":{"$error":"#REF!"}},{"$f":"IF(Stock!#REF!<>\"\",SUM(Stock!#REF!,Stock!#REF!,Stock!#REF!),\"\")","v":{"$error":"#REF!"}},{"$f":"IF(Stock!#REF!<>\"\",#REF!*(1+Pilotage!$M$20),\"\")","v":{"$error":"#REF!"}},null,{"$f":"IF(Stock!#REF!<>\"\",IF(Stock!#REF!>0,Stock!#REF!/Stock!#REF!,0),\"\")","v":{"$error":"#REF!"}},{"$f":"IF(Stock!#REF!<>\"\",E49*Pilotage!$D$15,\"\")","v":{"$error":"#REF!"}},{"$f":"IF(Stock!#REF!<>\"\",IF(Stock!#REF!>0,Stock!#REF!,0),\"\")","v":{"$error":"#REF!"}},{"$f":"IF(Stock!#REF!<>\"\",Pilotage!$M$27,\"\")","v":{"$error":"#REF!"}},{"$f":"IF(Stock!#REF!<>\"\",ROUND(Stock!#REF!*J49,0),\"\")","v":{"$error":"#REF!"}},{"$f":"IF(Stock!#REF!<>\"\",$H49*K49,\"\")","v":{"$error":"#REF!"}},{"$f":"IF(Stock!#REF!<>\"\",Pilotage!N$27,\"\")","v":{"$error":"#REF!"}},{"$f":"IF(Stock!#REF!<>\"\",ROUND(K49*M49,0),\"\")","v":{"$error":"#REF!"}},{"$f":"IF(Stock!#REF!<>\"\",$H49*N49,\"\")","v":{"$error":"#REF!"}},{"$f":"IF(Stock!#REF!<>\"\",Pilotage!O$27,\"\")","v":{"$error":"#REF!"}},{"$f":"IF(Stock!#REF!<>\"\",ROUND(K49*P49,0),\"\")","v":{"$error":"#REF!"}},{"$f":"IF(Stock!#REF!<>\"\",$H49*Q49,\"\")","v":{"$error":"#REF!"}},{"$f":"IF(Stock!#REF!<>\"\",Pilotage!P$27,\"\")","v":{"$error":"#REF!"}},{"$f":"IF(Stock!#REF!<>\"\",ROUND(Q49*S49,0),\"\")","v":{"$error":"#REF!"}},{"$f":"IF(Stock!#REF!<>\"\",$H49*T49,\"\")","v":{"$error":"#REF!"}},{"$f":"IF(Stock!#REF!<>\"\",Pilotage!Q$27,\"\")","v":{"$error":"#REF!"}},{"$f":"IF(Stock!#REF!<>\"\",ROUND(T49*V49,0),\"\")","v":{"$error":"#REF!"}},{"$f":"IF(Stock!#REF!<>\"\",$H49*W49,\"\")","v":{"$error":"#REF!"}},{"$f":"IF(Stock!#REF!<>\"\",Pilotage!R$27,\"\")","v":{"$error":"#REF!"}},{"$f":"IF(Stock!#REF!<>\"\",ROUND(W49*Y49,0),\"\")","v":{"$error":"#REF!"}},{"$f":"IF(Stock!#REF!<>\"\",$H49*Z49,\"\")","v":{"$error":"#REF!"}}]
[{"$f":"IF(Stock!#REF!<>\"\",Stock!#REF!,\"\")","v":{"$error":"#REF!"}},{"$f":"IF(Stock!#REF!<>\"\",Stock!#REF!,\"\")","v":{"$error":"#REF!"}},{"$f":"IF(Stock!#REF!<>\"\",Stock!#REF!,\"\")","v":{"$error":"#REF!"}},{"$f":"IF(Stock!#REF!<>\"\",SUM(Stock!#REF!,Stock!#REF!,Stock!#REF!),\"\")","v":{"$error":"#REF!"}},{"$f":"IF(Stock!#REF!<>\"\",#REF!*(1+Pilotage!$M$20),\"\")","v":{"$error":"#REF!"}},null,{"$f":"IF(Stock!#REF!<>\"\",IF(Stock!#REF!>0,Stock!#REF!/Stock!#REF!,0),\"\")","v":{"$error":"#REF!"}},{"$f":"IF(Stock!#REF!<>\"\",E50*Pilotage!$D$15,\"\")","v":{"$error":"#REF!"}},{"$f":"IF(Stock!#REF!<>\"\",IF(Stock!#REF!>0,Stock!#REF!,0),\"\")","v":{"$error":"#REF!"}},{"$f":"IF(Stock!#REF!<>\"\",Pilotage!$M$27,\"\")","v":{"$error":"#REF!"}},{"$f":"IF(Stock!#REF!<>\"\",ROUND(Stock!#REF!*J50,0),\"\")","v":{"$error":"#REF!"}},{"$f":"IF(Stock!#REF!<>\"\",$H50*K50,\"\")","v":{"$error":"#REF!"}},{"$f":"IF(Stock!#REF!<>\"\",Pilotage!N$27,\"\")","v":{"$error":"#REF!"}},{"$f":"IF(Stock!#REF!<>\"\",ROUND(K50*M50,0),\"\")","v":{"$error":"#REF!"}},{"$f":"IF(Stock!#REF!<>\"\",$H50*N50,\"\")","v":{"$error":"#REF!"}},{"$f":"IF(Stock!#REF!<>\"\",Pilotage!O$27,\"\")","v":{"$error":"#REF!"}},{"$f":"IF(Stock!#REF!<>\"\",ROUND(K50*P50,0),\"\")","v":{"$error":"#REF!"}},{"$f":"IF(Stock!#REF!<>\"\",$H50*Q50,\"\")","v":{"$error":"#REF!"}},{"$f":"IF(Stock!#REF!<>\"\",Pilotage!P$27,\"\")","v":{"$error":"#REF!"}},{"$f":"IF(Stock!#REF!<>\"\",ROUND(Q50*S50,0),\"\")","v":{"$error":"#REF!"}},{"$f":"IF(Stock!#REF!<>\"\",$H50*T50,\"\")","v":{"$error":"#REF!"}},{"$f":"IF(Stock!#REF!<>\"\",Pilotage!Q$27,\"\")","v":{"$error":"#REF!"}},{"$f":"IF(Stock!#REF!<>\"\",ROUND(T50*V50,0),\"\")","v":{"$error":"#REF!"}},{"$f":"IF(Stock!#REF!<>\"\",$H50*W50,\"\")","v":{"$error":"#REF!"}},{"$f":"IF(Stock!#REF!<>\"\",Pilotage!R$27,\"\")","v":{"$error":"#REF!"}},{"$f":"IF(Stock!#REF!<>\"\",ROUND(W50*Y50,0),\"\")","v":{"$error":"#REF!"}},{"$f":"IF(Stock!#REF!<>\"\",$H50*Z50,\"\")","v":{"$error":"#REF!"}}]
[{"$f":"IF(Stock!#REF!<>\"\",Stock!#REF!,\"\")","v":{"$error":"#REF!"}},{"$f":"IF(Stock!#REF!<>\"\",Stock!#REF!,\"\")","v":{"$error":"#REF!"}},{"$f":"IF(Stock!#REF!<>\"\",Stock!#REF!,\"\")","v":{"$error":"#REF!"}},{"$f":"IF(Stock!#REF!<>\"\",SUM(Stock!#REF!,Stock!#REF!,Stock!#REF!),\"\")","v":{"$error":"#REF!"}},{"$f":"IF(Stock!#REF!<>\"\",#REF!*(1+Pilotage!$M$20),\"\")","v":{"$error":"#REF!"}},null,{"$f":"IF(Stock!#REF!<>\"\",IF(Stock!#REF!>0,Stock!#REF!/Stock!#REF!,0),\"\")","v":{"$error":"#REF!"}},{"$f":"IF(Stock!#REF!<>\"\",E51*Pilotage!$D$15,\"\")","v":{"$error":"#REF!"}},{"$f":"IF(Stock!#REF!<>\"\",IF(Stock!#REF!>0,Stock!#REF!,0),\"\")","v":{"$error":"#REF!"}},{"$f":"IF(Stock!#REF!<>\"\",Pilotage!$M$27,\"\")","v":{"$error":"#REF!"}},{"$f":"IF(Stock!#REF!<>\"\",ROUND(Stock!#REF!*J51,0),\"\")","v":{"$error":"#REF!"}},{"$f":"IF(Stock!#REF!<>\"\",$H51*K51,\"\")","v":{"$error":"#REF!"}},{"$f":"IF(Stock!#REF!<>\"\",Pilotage!N$27,\"\")","v":{"$error":"#REF!"}},{"$f":"IF(Stock!#REF!<>\"\",ROUND(K51*M51,0),\"\")","v":{"$error":"#REF!"}},{"$f":"IF(Stock!#REF!<>\"\",$H51*N51,\"\")","v":{"$error":"#REF!"}},{"$f":"IF(Stock!#REF!<>\"\",Pilotage!O$27,\"\")","v":{"$error":"#REF!"}},{"$f":"IF(Stock!#REF!<>\"\",ROUND(K51*P51,0),\"\")","v":{"$error":"#REF!"}},{"$f":"IF(Stock!#REF!<>\"\",$H51*Q51,\"\")","v":{"$error":"#REF!"}},{"$f":"IF(Stock!#REF!<>\"\",Pilotage!P$27,\"\")","v":{"$error":"#REF!"}},{"$f":"IF(Stock!#REF!<>\"\",ROUND(Q51*S51,0),\"\")","v":{"$error":"#REF!"}},{"$f":"IF(Stock!#REF!<>\"\",$H51*T51,\"\")","v":{"$error":"#REF!"}},{"$f":"IF(Stock!#REF!<>\"\",Pilotage!Q$27,\"\")","v":{"$error":"#REF!"}},{"$f":"IF(Stock!#REF!<>\"\",ROUND(T51*V51,0),\"\")","v":{"$error":"#REF!"}},{"$f":"IF(Stock!#REF!<>\"\",$H51*W51,\"\")","v":{"$error":"#REF!"}},{"$f":"IF(Stock!#REF!<>\"\",Pilotage!R$27,\"\")","v":{"$error":"#REF!"}},{"$f":"IF(Stock!#REF!<>\"\",ROUND(W51*Y51,0),\"\")","v":{"$error":"#REF!"}},{"$f":"IF(Stock!#REF!<>\"\",$H51*Z51,\"\")","v":{"$error":"#REF!"}}]
[{"$f":"IF(Stock!#REF!<>\"\",Stock!#REF!,\"\")","v":{"$error":"#REF!"}},{"$f":"IF(Stock!#REF!<>\"\",Stock!#REF!,\"\")","v":{"$error":"#REF!"}},{"$f":"IF(Stock!#REF!<>\"\",Stock!#REF!,\"\")","v":{"$error":"#REF!"}},{"$f":"IF(Stock!#REF!<>\"\",SUM(Stock!#REF!,Stock!#REF!,Stock!#REF!),\"\")","v":{"$error":"#REF!"}},{"$f":"IF(Stock!#REF!<>\"\",#REF!*(1+Pilotage!$M$20),\"\")","v":{"$error":"#REF!"}},null,{"$f":"IF(Stock!#REF!<>\"\",IF(Stock!#REF!>0,Stock!#REF!/Stock!#REF!,0),\"\")","v":{"$error":"#REF!"}},{"$f":"IF(Stock!#REF!<>\"\",E52*Pilotage!$D$15,\"\")","v":{"$error":"#REF!"}},{"$f":"IF(Stock!#REF!<>\"\",IF(Stock!#REF!>0,Stock!#REF!,0),\"\")","v":{"$error":"#REF!"}},{"$f":"IF(Stock!#REF!<>\"\",Pilotage!$M$27,\"\")","v":{"$error":"#REF!"}},{"$f":"IF(Stock!#REF!<>\"\",ROUND(Stock!#REF!*J52,0),\"\")","v":{"$error":"#REF!"}},{"$f":"IF(Stock!#REF!<>\"\",$H52*K52,\"\")","v":{"$error":"#REF!"}},{"$f":"IF(Stock!#REF!<>\"\",Pilotage!N$27,\"\")","v":{"$error":"#REF!"}},{"$f":"IF(Stock!#REF!<>\"\",ROUND(K52*M52,0),\"\")","v":{"$error":"#REF!"}},{"$f":"IF(Stock!#REF!<>\"\",$H52*N52,\"\")","v":{"$error":"#REF!"}},{"$f":"IF(Stock!#REF!<>\"\",Pilotage!O$27,\"\")","v":{"$error":"#REF!"}},{"$f":"IF(Stock!#REF!<>\"\",ROUND(K52*P52,0),\"\")","v":{"$error":"#REF!"}},{"$f":"IF(Stock!#REF!<>\"\",$H52*Q52,\"\")","v":{"$error":"#REF!"}},{"$f":"IF(Stock!#REF!<>\"\",Pilotage!P$27,\"\")","v":{"$error":"#REF!"}},{"$f":"IF(Stock!#REF!<>\"\",ROUND(Q52*S52,0),\"\")","v":{"$error":"#REF!"}},{"$f":"IF(Stock!#REF!<>\"\",$H52*T52,\"\")","v":{"$error":"#REF!"}},{"$f":"IF(Stock!#REF!<>\"\",Pilotage!Q$27,\"\")","v":{"$error":"#REF!"}},{"$f":"IF(Stock!#REF!<>\"\",ROUND(T52*V52,0),\"\")","v":{"$error":"#REF!"}},{"$f":"IF(Stock!#REF!<>\"\",$H52*W52,\"\")","v":{"$error":"#REF!"}},{"$f":"IF(Stock!#REF!<>\"\",Pilotage!R$27,\"\")","v":{"$error":"#REF!"}},{"$f":"IF(Stock!#REF!<>\"\",ROUND(W52*Y52,0),\"\")","v":{"$error":"#REF!"}},{"$f":"IF(Stock!#REF!<>\"\",$H52*Z52,\"\")","v":{"$error":"#REF!"}}]
[{"$f":"IF(Stock!#REF!<>\"\",Stock!#REF!,\"\")","v":{"$error":"#REF!"}},{"$f":"IF(Stock!#REF!<>\"\",Stock!#REF!,\"\")","v":{"$error":"#REF!"}},{"$f":"IF(Stock!#REF!<>\"\",Stock!#REF!,\"\")","v":{"$error":"#REF!"}},{"$f":"IF(Stock!#REF!<>\"\",SUM(Stock!#REF!,Stock!#REF!,Stock!#REF!),\"\")","v":{"$error":"#REF!"}},{"$f":"IF(Stock!#REF!<>\"\",#REF!*(1+Pilotage!$M$20),\"\")","v":{"$error":"#REF!"}},null,{"$f":"IF(Stock!#REF!<>\"\",IF(Stock!#REF!>0,Stock!#REF!/Stock!#REF!,0),\"\")","v":{"$error":"#REF!"}},{"$f":"IF(Stock!#REF!<>\"\",E53*Pilotage!$D$15,\"\")","v":{"$error":"#REF!"}},{"$f":"IF(Stock!#REF!<>\"\",IF(Stock!#REF!>0,Stock!#REF!,0),\"\")","v":{"$error":"#REF!"}},{"$f":"IF(Stock!#REF!<>\"\",Pilotage!$M$27,\"\")","v":{"$error":"#REF!"}},{"$f":"IF(Stock!#REF!<>\"\",ROUND(Stock!#REF!*J53,0),\"\")","v":{"$error":"#REF!"}},{"$f":"IF(Stock!#REF!<>\"\",$H53*K53,\"\")","v":{"$error":"#REF!"}},{"$f":"IF(Stock!#REF!<>\"\",Pilotage!N$27,\"\")","v":{"$error":"#REF!"}},{"$f":"IF(Stock!#REF!<>\"\",ROUND(K53*M53,0),\"\")","v":{"$error":"#REF!"}},{"$f":"IF(Stock!#REF!<>\"\",$H53*N53,\"\")","v":{"$error":"#REF!"}},{"$f":"IF(Stock!#REF!<>\"\",Pilotage!O$27,\"\")","v":{"$error":"#REF!"}},{"$f":"IF(Stock!#REF!<>\"\",ROUND(K53*P53,0),\"\")","v":{"$error":"#REF!"}},{"$f":"IF(Stock!#REF!<>\"\",$H53*Q53,\"\")","v":{"$error":"#REF!"}},{"$f":"IF(Stock!#REF!<>\"\",Pilotage!P$27,\"\")","v":{"$error":"#REF!"}},{"$f":"IF(Stock!#REF!<>\"\",ROUND(Q53*S53,0),\"\")","v":{"$error":"#REF!"}},{"$f":"IF(Stock!#REF!<>\"\",$H53*T53,\"\")","v":{"$error":"#REF!"}},{"$f":"IF(Stock!#REF!<>\"\",Pilotage!Q$27,\"\")","v":{"$error":"#REF!"}},{"$f":"IF(Stock!#REF!<>\"\",ROUND(T53*V53,0),\"\")","v":{"$error":"#REF!"}},{"$f":"IF(Stock!#REF!<>\"\",$H53*W53,\"\")","v":{"$error":"#REF!"}},{"$f":"IF(Stock!#REF!<>\"\",Pilotage!R$27,\"\")","v":{"$error":"#REF!"}},{"$f":"IF(Stock!#REF!<>\"\",ROUND(W53*Y53,0),\"\")","v":{"$error":"#REF!"}},{"$f":"IF(Stock!#REF!<>\"\",$H53*Z53,\"\")","v":{"$error":"#REF!"}}]
[{"$f":"IF(Stock!#REF!<>\"\",Stock!#REF!,\"\")","v":{"$error":"#REF!"}},{"$f":"IF(Stock!#REF!<>\"\",Stock!#REF!,\"\")","v":{"$error":"#REF!"}},{"$f":"IF(Stock!#REF!<>\"\",Stock!#REF!,\"\")","v":{"$error":"#REF!"}},{"$f":"IF(Stock!#REF!<>\"\",SUM(Stock!#REF!,Stock!#REF!,Stock!#REF!),\"\")","v":{"$error":"#REF!"}},{"$f":"IF(Stock!#REF!<>\"\",#REF!*(1+Pilotage!$M$20),\"\")","v":{"$error":"#REF!"}},null,{"$f":"IF(Stock!#REF!<>\"\",IF(Stock!#REF!>0,Stock!#REF!/Stock!#REF!,0),\"\")","v":{"$error":"#REF!"}},{"$f":"IF(Stock!#REF!<>\"\",E54*Pilotage!$D$15,\"\")","v":{"$error":"#REF!"}},{"$f":"IF(Stock!#REF!<>\"\",IF(Stock!#REF!>0,Stock!#REF!,0),\"\")","v":{"$error":"#REF!"}},{"$f":"IF(Stock!#REF!<>\"\",Pilotage!$M$27,\"\")","v":{"$error":"#REF!"}},{"$f":"IF(Stock!#REF!<>\"\",ROUND(Stock!#REF!*J54,0),\"\")","v":{"$error":"#REF!"}},{"$f":"IF(Stock!#REF!<>\"\",$H54*K54,\"\")","v":{"$error":"#REF!"}},{"$f":"IF(Stock!#REF!<>\"\",Pilotage!N$27,\"\")","v":{"$error":"#REF!"}},{"$f":"IF(Stock!#REF!<>\"\",ROUND(K54*M54,0),\"\")","v":{"$error":"#REF!"}},{"$f":"IF(Stock!#REF!<>\"\",$H54*N54,\"\")","v":{"$error":"#REF!"}},{"$f":"IF(Stock!#REF!<>\"\",Pilotage!O$27,\"\")","v":{"$error":"#REF!"}},{"$f":"IF(Stock!#REF!<>\"\",ROUND(K54*P54,0),\"\")","v":{"$error":"#REF!"}},{"$f":"IF(Stock!#REF!<>\"\",$H54*Q54,\"\")","v":{"$error":"#REF!"}},{"$f":"IF(Stock!#REF!<>\"\",Pilotage!P$27,\"\")","v":{"$error":"#REF!"}},{"$f":"IF(Stock!#REF!<>\"\",ROUND(Q54*S54,0),\"\")","v":{"$error":"#REF!"}},{"$f":"IF(Stock!#REF!<>\"\",$H54*T54,\"\")","v":{"$error":"#REF!"}},{"$f":"IF(Stock!#REF!<>\"\",Pilotage!Q$27,\"\")","v":{"$error":"#REF!"}},{"$f":"IF(Stock!#REF!<>\"\",ROUND(T54*V54,0),\"\")","v":{"$error":"#REF!"}},{"$f":"IF(Stock!#REF!<>\"\",$H54*W54,\"\")","v":{"$error":"#REF!"}},{"$f":"IF(Stock!#REF!<>\"\",Pilotage!R$27,\"\")","v":{"$error":"#REF!"}},{"$f":"IF(Stock!#REF!<>\"\",ROUND(W54*Y54,0),\"\")","v":{"$error":"#REF!"}},{"$f":"IF(Stock!#REF!<>\"\",$H54*Z54,\"\")","v":{"$error":"#REF!"}}]
[{"$f":"IF(Stock!#REF!<>\"\",Stock!#REF!,\"\")","v":{"$error":"#REF!"}},{"$f":"IF(Stock!#REF!<>\"\",Stock!#REF!,\"\")","v":{"$error":"#REF!"}},{"$f":"IF(Stock!#REF!<>\"\",Stock!#REF!,\"\")","v":{"$error":"#REF!"}},{"$f":"IF(Stock!#REF!<>\"\",SUM(Stock!#REF!,Stock!#REF!,Stock!#REF!),\"\")","v":{"$error":"#REF!"}},{"$f":"IF(Stock!#REF!<>\"\",#REF!*(1+Pilotage!$M$20),\"\")","v":{"$error":"#REF!"}},null,{"$f":"IF(Stock!#REF!<>\"\",IF(Stock!#REF!>0,Stock!#REF!/Stock!#REF!,0),\"\")","v":{"$error":"#REF!"}},{"$f":"IF(Stock!#REF!<>\"\",E55*Pilotage!$D$15,\"\")","v":{"$error":"#REF!"}},{"$f":"IF(Stock!#REF!<>\"\",IF(Stock!#REF!>0,Stock!#REF!,0),\"\")","v":{"$error":"#REF!"}},{"$f":"IF(Stock!#REF!<>\"\",Pilotage!$M$27,\"\")","v":{"$error":"#REF!"}},{"$f":"IF(Stock!#REF!<>\"\",ROUND(Stock!#REF!*J55,0),\"\")","v":{"$error":"#REF!"}},{"$f":"IF(Stock!#REF!<>\"\",$H55*K55,\"\")","v":{"$error":"#REF!"}},{"$f":"IF(Stock!#REF!<>\"\",Pilotage!N$27,\"\")","v":{"$error":"#REF!"}},{"$f":"IF(Stock!#REF!<>\"\",ROUND(K55*M55,0),\"\")","v":{"$error":"#REF!"}},{"$f":"IF(Stock!#REF!<>\"\",$H55*N55,\"\")","v":{"$error":"#REF!"}},{"$f":"IF(Stock!#REF!<>\"\",Pilotage!O$27,\"\")","v":{"$error":"#REF!"}},{"$f":"IF(Stock!#REF!<>\"\",ROUND(K55*P55,0),\"\")","v":{"$error":"#REF!"}},{"$f":"IF(Stock!#REF!<>\"\",$H55*Q55,\"\")","v":{"$error":"#REF!"}},{"$f":"IF(Stock!#REF!<>\"\",Pilotage!P$27,\"\")","v":{"$error":"#REF!"}},{"$f":"IF(Stock!#REF!<>\"\",ROUND(Q55*S55,0),\"\")","v":{"$error":"#REF!"}},{"$f":"IF(Stock!#REF!<>\"\",$H55*T55,\"\")","v":{"$error":"#REF!"}},{"$f":"IF(Stock!#REF!<>\"\",Pilotage!Q$27,\"\")","v":{"$error":"#REF!"}},{"$f":"IF(Stock!#REF!<>\"\",ROUND(T55*V55,0),\"\")","v":{"$error":"#REF!"}},{"$f":"IF(Stock!#REF!<>\"\",$H55*W55,\"\")","v":{"$error":"#REF!"}},{"$f":"IF(Stock!#REF!<>\"\",Pilotage!R$27,\"\")","v":{"$error":"#REF!"}},{"$f":"IF(Stock!#REF!<>\"\",ROUND(W55*Y55,0),\"\")","v":{"$error":"#REF!"}},{"$f":"IF(Stock!#REF!<>\"\",$H55*Z55,\"\")","v":{"$error":"#REF!"}}]
[{"$f":"IF(Stock!#REF!<>\"\",Stock!#REF!,\"\")","v":{"$error":"#REF!"}},{"$f":"IF(Stock!#REF!<>\"\",Stock!#REF!,\"\")","v":{"$error":"#REF!"}},{"$f":"IF(Stock!#REF!<>\"\",Stock!#REF!,\"\")","v":{"$error":"#REF!"}},{"$f":"IF(Stock!#REF!<>\"\",SUM(Stock!#REF!,Stock!#REF!,Stock!#REF!),\"\")","v":{"$error":"#REF!"}},{"$f":"IF(Stock!#REF!<>\"\",#REF!*(1+Pilotage!$M$20),\"\")","v":{"$error":"#REF!"}},null,{"$f":"IF(Stock!#REF!<>\"\",IF(Stock!#REF!>0,Stock!#REF!/Stock!#REF!,0),\"\")","v":{"$error":"#REF!"}},{"$f":"IF(Stock!#REF!<>\"\",E56*Pilotage!$D$15,\"\")","v":{"$error":"#REF!"}},{"$f":"IF(Stock!#REF!<>\"\",IF(Stock!#REF!>0,Stock!#REF!,0),\"\")","v":{"$error":"#REF!"}},{"$f":"IF(Stock!#REF!<>\"\",Pilotage!$M$27,\"\")","v":{"$error":"#REF!"}},{"$f":"IF(Stock!#REF!<>\"\",ROUND(Stock!#REF!*J56,0),\"\")","v":{"$error":"#REF!"}},{"$f":"IF(Stock!#REF!<>\"\",$H56*K56,\"\")","v":{"$error":"#REF!"}},{"$f":"IF(Stock!#REF!<>\"\",Pilotage!N$27,\"\")","v":{"$error":"#REF!"}},{"$f":"IF(Stock!#REF!<>\"\",ROUND(K56*M56,0),\"\")","v":{"$error":"#REF!"}},{"$f":"IF(Stock!#REF!<>\"\",$H56*N56,\"\")","v":{"$error":"#REF!"}},{"$f":"IF(Stock!#REF!<>\"\",Pilotage!O$27,\"\")","v":{"$error":"#REF!"}},{"$f":"IF(Stock!#REF!<>\"\",ROUND(K56*P56,0),\"\")","v":{"$error":"#REF!"}},{"$f":"IF(Stock!#REF!<>\"\",$H56*Q56,\"\")","v":{"$error":"#REF!"}},{"$f":"IF(Stock!#REF!<>\"\",Pilotage!P$27,\"\")","v":{"$error":"#REF!"}},{"$f":"IF(Stock!#REF!<>\"\",ROUND(Q56*S56,0),\"\")","v":{"$error":"#REF!"}},{"$f":"IF(Stock!#REF!<>\"\",$H56*T56,\"\")","v":{"$error":"#REF!"}},{"$f":"IF(Stock!#REF!<>\"\",Pilotage!Q$27,\"\")","v":{"$error":"#REF!"}},{"$f":"IF(Stock!#REF!<>\"\",ROUND(T56*V56,0),\"\")","v":{"$error":"#REF!"}},{"$f":"IF(Stock!#REF!<>\"\",$H56*W56,\"\")","v":{"$error":"#REF!"}},{"$f":"IF(Stock!#REF!<>\"\",Pilotage!R$27,\"\")","v":{"$error":"#REF!"}},{"$f":"IF(Stock!#REF!<>\"\",ROUND(W56*Y56,0),\"\")","v":{"$error":"#REF!"}},{"$f":"IF(Stock!#REF!<>\"\",$H56*Z56,\"\")","v":{"$error":"#REF!"}}]
[{"$f":"IF(Stock!#REF!<>\"\",Stock!#REF!,\"\")","v":{"$error":"#REF!"}},{"$f":"IF(Stock!#REF!<>\"\",Stock!#REF!,\"\")","v":{"$error":"#REF!"}},{"$f":"IF(Stock!#REF!<>\"\",Stock!#REF!,\"\")","v":{"$error":"#REF!"}},{"$f":"IF(Stock!#REF!<>\"\",SUM(Stock!#REF!,Stock!#REF!,Stock!#REF!),\"\")","v":{"$error":"#REF!"}},{"$f":"IF(Stock!#REF!<>\"\",#REF!*(1+Pilotage!$M$20),\"\")","v":{"$error":"#REF!"}},null,{"$f":"IF(Stock!#REF!<>\"\",IF(Stock!#REF!>0,Stock!#REF!/Stock!#REF!,0),\"\")","v":{"$error":"#REF!"}},{"$f":"IF(Stock!#REF!<>\"\",E57*Pilotage!$D$15,\"\")","v":{"$error":"#REF!"}},{"$f":"IF(Stock!#REF!<>\"\",IF(Stock!#REF!>0,Stock!#REF!,0),\"\")","v":{"$error":"#REF!"}},{"$f":"IF(Stock!#REF!<>\"\",Pilotage!$M$27,\"\")","v":{"$error":"#REF!"}},{"$f":"IF(Stock!#REF!<>\"\",ROUND(Stock!#REF!*J57,0),\"\")","v":{"$error":"#REF!"}},{"$f":"IF(Stock!#REF!<>\"\",$H57*K57,\"\")","v":{"$error":"#REF!"}},{"$f":"IF(Stock!#REF!<>\"\",Pilotage!N$27,\"\")","v":{"$error":"#REF!"}},{"$f":"IF(Stock!#REF!<>\"\",ROUND(K57*M57,0),\"\")","v":{"$error":"#REF!"}},{"$f":"IF(Stock!#REF!<>\"\",$H57*N57,\"\")","v":{"$error":"#REF!"}},{"$f":"IF(Stock!#REF!<>\"\",Pilotage!O$27,\"\")","v":{"$error":"#REF!"}},{"$f":"IF(Stock!#REF!<>\"\",ROUND(K57*P57,0),\"\")","v":{"$error":"#REF!"}},{"$f":"IF(Stock!#REF!<>\"\",$H57*Q57,\"\")","v":{"$error":"#REF!"}},{"$f":"IF(Stock!#REF!<>\"\",Pilotage!P$27,\"\")","v":{"$error":"#REF!"}},{"$f":"IF(Stock!#REF!<>\"\",ROUND(Q57*S57,0),\"\")","v":{"$error":"#REF!"}},{"$f":"IF(Stock!#REF!<>\"\",$H57*T57,\"\")","v":{"$error":"#REF!"}},{"$f":"IF(Stock!#REF!<>\"\",Pilotage!Q$27,\"\")","v":{"$error":"#REF!"}},{"$f":"IF(Stock!#REF!<>\"\",ROUND(T57*V57,0),\"\")","v":{"$error":"#REF!"}},{"$f":"IF(Stock!#REF!<>\"\",$H57*W57,\"\")","v":{"$error":"#REF!"}},{"$f":"IF(Stock!#REF!<>\"\",Pilotage!R$27,\"\")","v":{"$error":"#REF!"}},{"$f":"IF(Stock!#REF!<>\"\",ROUND(W57*Y57,0),\"\")","v":{"$error":"#REF!"}},{"$f":"IF(Stock!#REF!<>\"\",$H57*Z57,\"\")","v":{"$error":"#REF!"}}]
[{"$f":"IF(Stock!#REF!<>\"\",Stock!#REF!,\"\")","v":{"$error":"#REF!"}},{"$f":"IF(Stock!#REF!<>\"\",Stock!#REF!,\"\")","v":{"$error":"#REF!"}},{"$f":"IF(Stock!#REF!<>\"\",Stock!#REF!,\"\")","v":{"$error":"#REF!"}},{"$f":"IF(Stock!#REF!<>\"\",SUM(Stock!#REF!,Stock!#REF!,Stock!#REF!),\"\")","v":{"$error":"#REF!"}},{"$f":"IF(Stock!#REF!<>\"\",#REF!*(1+Pilotage!$M$20),\"\")","v":{"$error":"#REF!"}},null,{"$f":"IF(Stock!#REF!<>\"\",IF(Stock!#REF!>0,Stock!#REF!/Stock!#REF!,0),\"\")","v":{"$error":"#REF!"}},{"$f":"IF(Stock!#REF!<>\"\",E58*Pilotage!$D$15,\"\")","v":{"$error":"#REF!"}},{"$f":"IF(Stock!#REF!<>\"\",IF(Stock!#REF!>0,Stock!#REF!,0),\"\")","v":{"$error":"#REF!"}},{"$f":"IF(Stock!#REF!<>\"\",Pilotage!$M$27,\"\")","v":{"$error":"#REF!"}},{"$f":"IF(Stock!#REF!<>\"\",ROUND(Stock!#REF!*J58,0),\"\")","v":{"$error":"#REF!"}},{"$f":"IF(Stock!#REF!<>\"\",$H58*K58,\"\")","v":{"$error":"#REF!"}},{"$f":"IF(Stock!#REF!<>\"\",Pilotage!N$27,\"\")","v":{"$error":"#REF!"}},{"$f":"IF(Stock!#REF!<>\"\",ROUND(K58*M58,0),\"\")","v":{"$error":"#REF!"}},{"$f":"IF(Stock!#REF!<>\"\",$H58*N58,\"\")","v":{"$error":"#REF!"}},{"$f":"IF(Stock!#REF!<>\"\",Pilotage!O$27,\"\")","v":{"$error":"#REF!"}},{"$f":"IF(Stock!#REF!<>\"\",ROUND(K58*P58,0),\"\")","v":{"$error":"#REF!"}},{"$f":"IF(Stock!#REF!<>\"\",$H58*Q58,\"\")","v":{"$error":"#REF!"}},{"$f":"IF(Stock!#REF!<>\"\",Pilotage!P$27,\"\")","v":{"$error":"#REF!"}},{"$f":"IF(Stock!#REF!<>\"\",ROUND(Q58*S58,0),\"\")","v":{"$error":"#REF!"}},{"$f":"IF(Stock!#REF!<>\"\",$H58*T58,\"\")","v":{"$error":"#REF!"}},{"$f":"IF(Stock!#REF!<>\"\",Pilotage!Q$27,\"\")","v":{"$error":"#REF!"}},{"$f":"IF(Stock!#REF!<>\"\",ROUND(T58*V58,0),\"\")","v":{"$error":"#REF!"}},{"$f":"IF(Stock!#REF!<>\"\",$H58*W58,\"\")","v":{"$error":"#REF!"}},{"$f":"IF(Stock!#REF!<>\"\",Pilotage!R$27,\"\")","v":{"$error":"#REF!"}},{"$f":"IF(Stock!#REF!<>\"\",ROUND(W58*Y58,0),\"\")","v":{"$error":"#REF!"}},{"$f":"IF(Stock!#REF!<>\"\",$H58*Z58,\"\")","v":{"$error":"#REF!"}}]
[{"$f":"IF(Stock!#REF!<>\"\",Stock!#REF!,\"\")","v":{"$error":"#REF!"}},{"$f":"IF(Stock!#REF!<>\"\",Stock!#REF!,\"\")","v":{"$error":"#REF!"}},{"$f":"IF(Stock!#REF!<>\"\",Stock!#REF!,\"\")","v":{"$error":"#REF!"}},{"$f":"IF(Stock!#REF!<>\"\",SUM(Stock!#REF!,Stock!#REF!,Stock!#REF!),\"\")","v":{"$error":"#REF!"}},{"$f":"IF(Stock!#REF!<>\"\",#REF!*(1+Pilotage!$M$20),\"\")","v":{"$error":"#REF!"}},null,{"$f":"IF(Stock!#REF!<>\"\",IF(Stock!#REF!>0,Stock!#REF!/Stock!#REF!,0),\"\")","v":{"$error":"#REF!"}},{"$f":"IF(Stock!#REF!<>\"\",E59*Pilotage!$D$15,\"\")","v":{"$error":"#REF!"}},{"$f":"IF(Stock!#REF!<>\"\",IF(Stock!#REF!>0,Stock!#REF!,0),\"\")","v":{"$error":"#REF!"}},{"$f":"IF(Stock!#REF!<>\"\",Pilotage!$M$27,\"\")","v":{"$error":"#REF!"}},{"$f":"IF(Stock!#REF!<>\"\",ROUND(Stock!#REF!*J59,0),\"\")","v":{"$error":"#REF!"}},{"$f":"IF(Stock!#REF!<>\"\",$H59*K59,\"\")","v":{"$error":"#REF!"}},{"$f":"IF(Stock!#REF!<>\"\",Pilotage!N$27,\"\")","v":{"$error":"#REF!"}},{"$f":"IF(Stock!#REF!<>\"\",ROUND(K59*M59,0),\"\")","v":{"$error":"#REF!"}},{"$f":"IF(Stock!#REF!<>\"\",$H59*N59,\"\")","v":{"$error":"#REF!"}},{"$f":"IF(Stock!#REF!<>\"\",Pilotage!O$27,\"\")","v":{"$error":"#REF!"}},{"$f":"IF(Stock!#REF!<>\"\",ROUND(K59*P59,0),\"\")","v":{"$error":"#REF!"}},{"$f":"IF(Stock!#REF!<>\"\",$H59*Q59,\"\")","v":{"$error":"#REF!"}},{"$f":"IF(Stock!#REF!<>\"\",Pilotage!P$27,\"\")","v":{"$error":"#REF!"}},{"$f":"IF(Stock!#REF!<>\"\",ROUND(Q59*S59,0),\"\")","v":{"$error":"#REF!"}},{"$f":"IF(Stock!#REF!<>\"\",$H59*T59,\"\")","v":{"$error":"#REF!"}},{"$f":"IF(Stock!#REF!<>\"\",Pilotage!Q$27,\"\")","v":{"$error":"#REF!"}},{"$f":"IF(Stock!#REF!<>\"\",ROUND(T59*V59,0),\"\")","v":{"$error":"#REF!"}},{"$f":"IF(Stock!#REF!<>\"\",$H59*W59,\"\")","v":{"$error":"#REF!"}},{"$f":"IF(Stock!#REF!<>\"\",Pilotage!R$27,\"\")","v":{"$error":"#REF!"}},{"$f":"IF(Stock!#REF!<>\"\",ROUND(W59*Y59,0),\"\")","v":{"$error":"#REF!"}},{"$f":"IF(Stock!#REF!<>\"\",$H59*Z59,\"\")","v":{"$error":"#REF!"}}]
[{"$f":"IF(Stock!#REF!<>\"\",Stock!#REF!,\"\")","v":{"$error":"#REF!"}},{"$f":"IF(Stock!#REF!<>\"\",Stock!#REF!,\"\")","v":{"$error":"#REF!"}},{"$f":"IF(Stock!#REF!<>\"\",Stock!#REF!,\"\")","v":{"$error":"#REF!"}},{"$f":"IF(Stock!#REF!<>\"\",SUM(Stock!#REF!,Stock!#REF!,Stock!#REF!),\"\")","v":{"$error":"#REF!"}},{"$f":"IF(Stock!#REF!<>\"\",#REF!*(1+Pilotage!$M$20),\"\")","v":{"$error":"#REF!"}},null,{"$f":"IF(Stock!#REF!<>\"\",IF(Stock!#REF!>0,Stock!#REF!/Stock!#REF!,0),\"\")","v":{"$error":"#REF!"}},{"$f":"IF(Stock!#REF!<>\"\",E60*Pilotage!$D$15,\"\")","v":{"$error":"#REF!"}},{"$f":"IF(Stock!#REF!<>\"\",IF(Stock!#REF!>0,Stock!#REF!,0),\"\")","v":{"$error":"#REF!"}},{"$f":"IF(Stock!#REF!<>\"\",Pilotage!$M$27,\"\")","v":{"$error":"#REF!"}},{"$f":"IF(Stock!#REF!<>\"\",ROUND(Stock!#REF!*J60,0),\"\")","v":{"$error":"#REF!"}},{"$f":"IF(Stock!#REF!<>\"\",$H60*K60,\"\")","v":{"$error":"#REF!"}},{"$f":"IF(Stock!#REF!<>\"\",Pilotage!N$27,\"\")","v":{"$error":"#REF!"}},{"$f":"IF(Stock!#REF!<>\"\",ROUND(K60*M60,0),\"\")","v":{"$error":"#REF!"}},{"$f":"IF(Stock!#REF!<>\"\",$H60*N60,\"\")","v":{"$error":"#REF!"}},{"$f":"IF(Stock!#REF!<>\"\",Pilotage!O$27,\"\")","v":{"$error":"#REF!"}},{"$f":"IF(Stock!#REF!<>\"\",ROUND(K60*P60,0),\"\")","v":{"$error":"#REF!"}},{"$f":"IF(Stock!#REF!<>\"\",$H60*Q60,\"\")","v":{"$error":"#REF!"}},{"$f":"IF(Stock!#REF!<>\"\",Pilotage!P$27,\"\")","v":{"$error":"#REF!"}},{"$f":"IF(Stock!#REF!<>\"\",ROUND(Q60*S60,0),\"\")","v":{"$error":"#REF!"}},{"$f":"IF(Stock!#REF!<>\"\",$H60*T60,\"\")","v":{"$error":"#REF!"}},{"$f":"IF(Stock!#REF!<>\"\",Pilotage!Q$27,\"\")","v":{"$error":"#REF!"}},{"$f":"IF(Stock!#REF!<>\"\",ROUND(T60*V60,0),\"\")","v":{"$error":"#REF!"}},{"$f":"IF(Stock!#REF!<>\"\",$H60*W60,\"\")","v":{"$error":"#REF!"}},{"$f":"IF(Stock!#REF!<>\"\",Pilotage!R$27,\"\")","v":{"$error":"#REF!"}},{"$f":"IF(Stock!#REF!<>\"\",ROUND(W60*Y60,0),\"\")","v":{"$error":"#REF!"}},{"$f":"IF(Stock!#REF!<>\"\",$H60*Z60,\"\")","v":{"$error":"#REF!"}}]
[{"$f":"IF(Stock!#REF!<>\"\",Stock!#REF!,\"\")","v":{"$error":"#REF!"}},{"$f":"IF(Stock!#REF!<>\"\",Stock!#REF!,\"\")","v":{"$error":"#REF!"}},{"$f":"IF(Stock!#REF!<>\"\",Stock!#REF!,\"\")","v":{"$error":"#REF!"}},{"$f":"IF(Stock!#REF!<>\"\",SUM(Stock!#REF!,Stock!#REF!,Stock!#REF!),\"\")","v":{"$error":"#REF!"}},{"$f":"IF(Stock!#REF!<>\"\",#REF!*(1+Pilotage!$M$20),\"\")","v":{"$error":"#REF!"}},null,{"$f":"IF(Stock!#REF!<>\"\",IF(Stock!#REF!>0,Stock!#REF!/Stock!#REF!,0),\"\")","v":{"$error":"#REF!"}},{"$f":"IF(Stock!#REF!<>\"\",E61*Pilotage!$D$15,\"\")","v":{"$error":"#REF!"}},{"$f":"IF(Stock!#REF!<>\"\",IF(Stock!#REF!>0,Stock!#REF!,0),\"\")","v":{"$error":"#REF!"}},{"$f":"IF(Stock!#REF!<>\"\",Pilotage!$M$27,\"\")","v":{"$error":"#REF!"}},{"$f":"IF(Stock!#REF!<>\"\",ROUND(Stock!#REF!*J61,0),\"\")","v":{"$error":"#REF!"}},{"$f":"IF(Stock!#REF!<>\"\",$H61*K61,\"\")","v":{"$error":"#REF!"}},{"$f":"IF(Stock!#REF!<>\"\",Pilotage!N$27,\"\")","v":{"$error":"#REF!"}},{"$f":"IF(Stock!#REF!<>\"\",ROUND(K61*M61,0),\"\")","v":{"$error":"#REF!"}},{"$f":"IF(Stock!#REF!<>\"\",$H61*N61,\"\")","v":{"$error":"#REF!"}},{"$f":"IF(Stock!#REF!<>\"\",Pilotage!O$27,\"\")","v":{"$error":"#REF!"}},{"$f":"IF(Stock!#REF!<>\"\",ROUND(K61*P61,0),\"\")","v":{"$error":"#REF!"}},{"$f":"IF(Stock!#REF!<>\"\",$H61*Q61,\"\")","v":{"$error":"#REF!"}},{"$f":"IF(Stock!#REF!<>\"\",Pilotage!P$27,\"\")","v":{"$error":"#REF!"}},{"$f":"IF(Stock!#REF!<>\"\",ROUND(Q61*S61,0),\"\")","v":{"$error":"#REF!"}},{"$f":"IF(Stock!#REF!<>\"\",$H61*T61,\"\")","v":{"$error":"#REF!"}},{"$f":"IF(Stock!#REF!<>\"\",Pilotage!Q$27,\"\")","v":{"$error":"#REF!"}},{"$f":"IF(Stock!#REF!<>\"\",ROUND(T61*V61,0),\"\")","v":{"$error":"#REF!"}},{"$f":"IF(Stock!#REF!<>\"\",$H61*W61,\"\")","v":{"$error":"#REF!"}},{"$f":"IF(Stock!#REF!<>\"\",Pilotage!R$27,\"\")","v":{"$error":"#REF!"}},{"$f":"IF(Stock!#REF!<>\"\",ROUND(W61*Y61,0),\"\")","v":{"$error":"#REF!"}},{"$f":"IF(Stock!#REF!<>\"\",$H61*Z61,\"\")","v":{"$error":"#REF!"}}]
[{"$f":"IF(Stock!#REF!<>\"\",Stock!#REF!,\"\")","v":{"$error":"#REF!"}},{"$f":"IF(Stock!#REF!<>\"\",Stock!#REF!,\"\")","v":{"$error":"#REF!"}},{"$f":"IF(Stock!#REF!<>\"\",Stock!#REF!,\"\")","v":{"$error":"#REF!"}},{"$f":"IF(Stock!#REF!<>\"\",SUM(Stock!#REF!,Stock!#REF!,Stock!#REF!),\"\")","v":{"$error":"#REF!"}},{"$f":"IF(Stock!#REF!<>\"\",#REF!*(1+Pilotage!$M$20),\"\")","v":{"$error":"#REF!"}},null,{"$f":"IF(Stock!#REF!<>\"\",IF(Stock!#REF!>0,Stock!#REF!/Stock!#REF!,0),\"\")","v":{"$error":"#REF!"}},{"$f":"IF(Stock!#REF!<>\"\",E62*Pilotage!$D$15,\"\")","v":{"$error":"#REF!"}},{"$f":"IF(Stock!#REF!<>\"\",IF(Stock!#REF!>0,Stock!#REF!,0),\"\")","v":{"$error":"#REF!"}},{"$f":"IF(Stock!#REF!<>\"\",Pilotage!$M$27,\"\")","v":{"$error":"#REF!"}},{"$f":"IF(Stock!#REF!<>\"\",ROUND(Stock!#REF!*J62,0),\"\")","v":{"$error":"#REF!"}},{"$f":"IF(Stock!#REF!<>\"\",$H62*K62,\"\")","v":{"$error":"#REF!"}},{"$f":"IF(Stock!#REF!<>\"\",Pilotage!N$27,\"\")","v":{"$error":"#REF!"}},{"$f":"IF(Stock!#REF!<>\"\",ROUND(K62*M62,0),\"\")","v":{"$error":"#REF!"}},{"$f":"IF(Stock!#REF!<>\"\",$H62*N62,\"\")","v":{"$error":"#REF!"}},{"$f":"IF(Stock!#REF!<>\"\",Pilotage!O$27,\"\")","v":{"$error":"#REF!"}},{"$f":"IF(Stock!#REF!<>\"\",ROUND(K62*P62,0),\"\")","v":{"$error":"#REF!"}},{"$f":"IF(Stock!#REF!<>\"\",$H62*Q62,\"\")","v":{"$error":"#REF!"}},{"$f":"IF(Stock!#REF!<>\"\",Pilotage!P$27,\"\")","v":{"$error":"#REF!"}},{"$f":"IF(Stock!#REF!<>\"\",ROUND(Q62*S62,0),\"\")","v":{"$error":"#REF!"}},{"$f":"IF(Stock!#REF!<>\"\",$H62*T62,\"\")","v":{"$error":"#REF!"}},{"$f":"IF(Stock!#REF!<>\"\",Pilotage!Q$27,\"\")","v":{"$error":"#REF!"}},{"$f":"IF(Stock!#REF!<>\"\",ROUND(T62*V62,0),\"\")","v":{"$error":"#REF!"}},{"$f":"IF(Stock!#REF!<>\"\",$H62*W62,\"\")","v":{"$error":"#REF!"}},{"$f":"IF(Stock!#REF!<>\"\",Pilotage!R$27,\"\")","v":{"$error":"#REF!"}},{"$f":"IF(Stock!#REF!<>\"\",ROUND(W62*Y62,0),\"\")","v":{"$error":"#REF!"}},{"$f":"IF(Stock!#REF!<>\"\",$H62*Z62,\"\")","v":{"$error":"#REF!"}}]
[{"$f":"IF(Stock!#REF!<>\"\",Stock!#REF!,\"\")","v":{"$error":"#REF!"}},{"$f":"IF(Stock!#REF!<>\"\",Stock!#REF!,\"\")","v":{"$error":"#REF!"}},{"$f":"IF(Stock!#REF!<>\"\",Stock!#REF!,\"\")","v":{"$error":"#REF!"}},{"$f":"IF(Stock!#REF!<>\"\",SUM(Stock!#REF!,Stock!#REF!,Stock!#REF!),\"\")","v":{"$error":"#REF!"}},{"$f":"IF(Stock!#REF!<>\"\",#REF!*(1+Pilotage!$M$20),\"\")","v":{"$error":"#REF!"}},null,{"$f":"IF(Stock!#REF!<>\"\",IF(Stock!#REF!>0,Stock!#REF!/Stock!#REF!,0),\"\")","v":{"$error":"#REF!"}},{"$f":"IF(Stock!#REF!<>\"\",E63*Pilotage!$D$15,\"\")","v":{"$error":"#REF!"}},{"$f":"IF(Stock!#REF!<>\"\",IF(Stock!#REF!>0,Stock!#REF!,0),\"\")","v":{"$error":"#REF!"}},{"$f":"IF(Stock!#REF!<>\"\",Pilotage!$M$27,\"\")","v":{"$error":"#REF!"}},{"$f":"IF(Stock!#REF!<>\"\",ROUND(Stock!#REF!*J63,0),\"\")","v":{"$error":"#REF!"}},{"$f":"IF(Stock!#REF!<>\"\",$H63*K63,\"\")","v":{"$error":"#REF!"}},{"$f":"IF(Stock!#REF!<>\"\",Pilotage!N$27,\"\")","v":{"$error":"#REF!"}},{"$f":"IF(Stock!#REF!<>\"\",ROUND(K63*M63,0),\"\")","v":{"$error":"#REF!"}},{"$f":"IF(Stock!#REF!<>\"\",$H63*N63,\"\")","v":{"$error":"#REF!"}},{"$f":"IF(Stock!#REF!<>\"\",Pilotage!O$27,\"\")","v":{"$error":"#REF!"}},{"$f":"IF(Stock!#REF!<>\"\",ROUND(K63*P63,0),\"\")","v":{"$error":"#REF!"}},{"$f":"IF(Stock!#REF!<>\"\",$H63*Q63,\"\")","v":{"$error":"#REF!"}},{"$f":"IF(Stock!#REF!<>\"\",Pilotage!P$27,\"\")","v":{"$error":"#REF!"}},{"$f":"IF(Stock!#REF!<>\"\",ROUND(Q63*S63,0),\"\")","v":{"$error":"#REF!"}},{"$f":"IF(Stock!#REF!<>\"\",$H63*T63,\"\")","v":{"$error":"#REF!"}},{"$f":"IF(Stock!#REF!<>\"\",Pilotage!Q$27,\"\")","v":{"$error":"#REF!"}},{"$f":"IF(Stock!#REF!<>\"\",ROUND(T63*V63,0),\"\")","v":{"$error":"#REF!"}},{"$f":"IF(Stock!#REF!<>\"\",$H63*W63,\"\")","v":{"$error":"#REF!"}},{"$f":"IF(Stock!#REF!<>\"\",Pilotage!R$27,\"\")","v":{"$error":"#REF!"}},{"$f":"IF(Stock!#REF!<>\"\",ROUND(W63*Y63,0),\"\")","v":{"$error":"#REF!"}},{"$f":"IF(Stock!#REF!<>\"\",$H63*Z63,\"\")","v":{"$error":"#REF!"}}]
[{"$f":"IF(Stock!#REF!<>\"\",Stock!#REF!,\"\")","v":{"$error":"#REF!"}},{"$f":"IF(Stock!#REF!<>\"\",Stock!#REF!,\"\")","v":{"$error":"#REF!"}},{"$f":"IF(Stock!#REF!<>\"\",Stock!#REF!,\"\")","v":{"$error":"#REF!"}},{"$f":"IF(Stock!#REF!<>\"\",SUM(Stock!#REF!,Stock!#REF!,Stock!#REF!),\"\")","v":{"$error":"#REF!"}},{"$f":"IF(Stock!#REF!<>\"\",#REF!*(1+Pilotage!$M$20),\"\")","v":{"$error":"#REF!"}},null,{"$f":"IF(Stock!#REF!<>\"\",IF(Stock!#REF!>0,Stock!#REF!/Stock!#REF!,0),\"\")","v":{"$error":"#REF!"}},{"$f":"IF(Stock!#REF!<>\"\",E64*Pilotage!$D$15,\"\")","v":{"$error":"#REF!"}},{"$f":"IF(Stock!#REF!<>\"\",IF(Stock!#REF!>0,Stock!#REF!,0),\"\")","v":{"$error":"#REF!"}},{"$f":"IF(Stock!#REF!<>\"\",Pilotage!$M$27,\"\")","v":{"$error":"#REF!"}},{"$f":"IF(Stock!#REF!<>\"\",ROUND(Stock!#REF!*J64,0),\"\")","v":{"$error":"#REF!"}},{"$f":"IF(Stock!#REF!<>\"\",$H64*K64,\"\")","v":{"$error":"#REF!"}},{"$f":"IF(Stock!#REF!<>\"\",Pilotage!N$27,\"\")","v":{"$error":"#REF!"}},{"$f":"IF(Stock!#REF!<>\"\",ROUND(K64*M64,0),\"\")","v":{"$error":"#REF!"}},{"$f":"IF(Stock!#REF!<>\"\",$H64*N64,\"\")","v":{"$error":"#REF!"}},{"$f":"IF(Stock!#REF!<>\"\",Pilotage!O$27,\"\")","v":{"$error":"#REF!"}},{"$f":"IF(Stock!#REF!<>\"\",ROUND(K64*P64,0),\"\")","v":{"$error":"#REF!"}},{"$f":"IF(Stock!#REF!<>\"\",$H64*Q64,\"\")","v":{"$error":"#REF!"}},{"$f":"IF(Stock!#REF!<>\"\",Pilotage!P$27,\"\")","v":{"$error":"#REF!"}},{"$f":"IF(Stock!#REF!<>\"\",ROUND(Q64*S64,0),\"\")","v":{"$error":"#REF!"}},{"$f":"IF(Stock!#REF!<>\"\",$H64*T64,\"\")","v":{"$error":"#REF!"}},{"$f":"IF(Stock!#REF!<>\"\",Pilotage!Q$27,\"\")","v":{"$error":"#REF!"}},{"$f":"IF(Stock!#REF!<>\"\",ROUND(T64*V64,0),\"\")","v":{"$error":"#REF!"}},{"$f":"IF(Stock!#REF!<>\"\",$H64*W64,\"\")","v":{"$error":"#REF!"}},{"$f":"IF(Stock!#REF!<>\"\",Pilotage!R$27,\"\")","v":{"$error":"#REF!"}},{"$f":"IF(Stock!#REF!<>\"\",ROUND(W64*Y64,0),\"\")","v":{"$error":"#REF!"}},{"$f":"IF(Stock!#REF!<>\"\",$H64*Z64,\"\")","v":{"$error":"#REF!"}}]
[{"$f":"IF(Stock!#REF!<>\"\",Stock!#REF!,\"\")","v":{"$error":"#REF!"}},{"$f":"IF(Stock!#REF!<>\"\",Stock!#REF!,\"\")","v":{"$error":"#REF!"}},{"$f":"IF(Stock!#REF!<>\"\",Stock!#REF!,\"\")","v":{"$error":"#REF!"}},{"$f":"IF(Stock!#REF!<>\"\",SUM(Stock!#REF!,Stock!#REF!,Stock!#REF!),\"\")","v":{"$error":"#REF!"}},{"$f":"IF(Stock!#REF!<>\"\",#REF!*(1+Pilotage!$M$20),\"\")","v":{"$error":"#REF!"}},null,{"$f":"IF(Stock!#REF!<>\"\",IF(Stock!#REF!>0,Stock!#REF!/Stock!#REF!,0),\"\")","v":{"$error":"#REF!"}},{"$f":"IF(Stock!#REF!<>\"\",E65*Pilotage!$D$15,\"\")","v":{"$error":"#REF!"}},{"$f":"IF(Stock!#REF!<>\"\",IF(Stock!#REF!>0,Stock!#REF!,0),\"\")","v":{"$error":"#REF!"}},{"$f":"IF(Stock!#REF!<>\"\",Pilotage!$M$27,\"\")","v":{"$error":"#REF!"}},{"$f":"IF(Stock!#REF!<>\"\",ROUND(Stock!#REF!*J65,0),\"\")","v":{"$error":"#REF!"}},{"$f":"IF(Stock!#REF!<>\"\",$H65*K65,\"\")","v":{"$error":"#REF!"}},{"$f":"IF(Stock!#REF!<>\"\",Pilotage!N$27,\"\")","v":{"$error":"#REF!"}},{"$f":"IF(Stock!#REF!<>\"\",ROUND(K65*M65,0),\"\")","v":{"$error":"#REF!"}},{"$f":"IF(Stock!#REF!<>\"\",$H65*N65,\"\")","v":{"$error":"#REF!"}},{"$f":"IF(Stock!#REF!<>\"\",Pilotage!O$27,\"\")","v":{"$error":"#REF!"}},{"$f":"IF(Stock!#REF!<>\"\",ROUND(K65*P65,0),\"\")","v":{"$error":"#REF!"}},{"$f":"IF(Stock!#REF!<>\"\",$H65*Q65,\"\")","v":{"$error":"#REF!"}},{"$f":"IF(Stock!#REF!<>\"\",Pilotage!P$27,\"\")","v":{"$error":"#REF!"}},{"$f":"IF(Stock!#REF!<>\"\",ROUND(Q65*S65,0),\"\")","v":{"$error":"#REF!"}},{"$f":"IF(Stock!#REF!<>\"\",$H65*T65,\"\")","v":{"$error":"#REF!"}},{"$f":"IF(Stock!#REF!<>\"\",Pilotage!Q$27,\"\")","v":{"$error":"#REF!"}},{"$f":"IF(Stock!#REF!<>\"\",ROUND(T65*V65,0),\"\")","v":{"$error":"#REF!"}},{"$f":"IF(Stock!#REF!<>\"\",$H65*W65,\"\")","v":{"$error":"#REF!"}},{"$f":"IF(Stock!#REF!<>\"\",Pilotage!R$27,\"\")","v":{"$error":"#REF!"}},{"$f":"IF(Stock!#REF!<>\"\",ROUND(W65*Y65,0),\"\")","v":{"$error":"#REF!"}},{"$f":"IF(Stock!#REF!<>\"\",$H65*Z65,\"\")","v":{"$error":"#REF!"}}]
[{"$f":"IF(Stock!#REF!<>\"\",Stock!#REF!,\"\")","v":{"$error":"#REF!"}},{"$f":"IF(Stock!#REF!<>\"\",Stock!#REF!,\"\")","v":{"$error":"#REF!"}},{"$f":"IF(Stock!#REF!<>\"\",Stock!#REF!,\"\")","v":{"$error":"#REF!"}},{"$f":"IF(Stock!#REF!<>\"\",SUM(Stock!#REF!,Stock!#REF!,Stock!#REF!),\"\")","v":{"$error":"#REF!"}},{"$f":"IF(Stock!#REF!<>\"\",#REF!*(1+Pilotage!$M$20),\"\")","v":{"$error":"#REF!"}},null,{"$f":"IF(Stock!#REF!<>\"\",IF(Stock!#REF!>0,Stock!#REF!/Stock!#REF!,0),\"\")","v":{"$error":"#REF!"}},{"$f":"IF(Stock!#REF!<>\"\",E66*Pilotage!$D$15,\"\")","v":{"$error":"#REF!"}},{"$f":"IF(Stock!#REF!<>\"\",IF(Stock!#REF!>0,Stock!#REF!,0),\"\")","v":{"$error":"#REF!"}},{"$f":"IF(Stock!#REF!<>\"\",Pilotage!$M$27,\"\")","v":{"$error":"#REF!"}},{"$f":"IF(Stock!#REF!<>\"\",ROUND(Stock!#REF!*J66,0),\"\")","v":{"$error":"#REF!"}},{"$f":"IF(Stock!#REF!<>\"\",$H66*K66,\"\")","v":{"$error":"#REF!"}},{"$f":"IF(Stock!#REF!<>\"\",Pilotage!N$27,\"\")","v":{"$error":"#REF!"}},{"$f":"IF(Stock!#REF!<>\"\",ROUND(K66*M66,0),\"\")","v":{"$error":"#REF!"}},{"$f":"IF(Stock!#REF!<>\"\",$H66*N66,\"\")","v":{"$error":"#REF!"}},{"$f":"IF(Stock!#REF!<>\"\",Pilotage!O$27,\"\")","v":{"$error":"#REF!"}},{"$f":"IF(Stock!#REF!<>\"\",ROUND(K66*P66,0),\"\")","v":{"$error":"#REF!"}},{"$f":"IF(Stock!#REF!<>\"\",$H66*Q66,\"\")","v":{"$error":"#REF!"}},{"$f":"IF(Stock!#REF!<>\"\",Pilotage!P$27,\"\")","v":{"$error":"#REF!"}},{"$f":"IF(Stock!#REF!<>\"\",ROUND(Q66*S66,0),\"\")","v":{"$error":"#REF!"}},{"$f":"IF(Stock!#REF!<>\"\",$H66*T66,\"\")","v":{"$error":"#REF!"}},{"$f":"IF(Stock!#REF!<>\"\",Pilotage!Q$27,\"\")","v":{"$error":"#REF!"}},{"$f":"IF(Stock!#REF!<>\"\",ROUND(T66*V66,0),\"\")","v":{"$error":"#REF!"}},{"$f":"IF(Stock!#REF!<>\"\",$H66*W66,\"\")","v":{"$error":"#REF!"}},{"$f":"IF(Stock!#REF!<>\"\",Pilotage!R$27,\"\")","v":{"$error":"#REF!"}},{"$f":"IF(Stock!#REF!<>\"\",ROUND(W66*Y66,0),\"\")","v":{"$error":"#REF!"}},{"$f":"IF(Stock!#REF!<>\"\",$H66*Z66,\"\")","v":{"$error":"#REF!"}}]
[{"$f":"IF(Stock!#REF!<>\"\",Stock!#REF!,\"\")","v":{"$error":"#REF!"}},{"$f":"IF(Stock!#REF!<>\"\",Stock!#REF!,\"\")","v":{"$error":"#REF!"}},{"$f":"IF(Stock!#REF!<>\"\",Stock!#REF!,\"\")","v":{"$error":"#REF!"}},{"$f":"IF(Stock!#REF!<>\"\",SUM(Stock!#REF!,Stock!#REF!,Stock!#REF!),\"\")","v":{"$error":"#REF!"}},{"$f":"IF(Stock!#REF!<>\"\",#REF!*(1+Pilotage!$M$20),\"\")","v":{"$error":"#REF!"}},null,{"$f":"IF(Stock!#REF!<>\"\",IF(Stock!#REF!>0,Stock!#REF!/Stock!#REF!,0),\"\")","v":{"$error":"#REF!"}},{"$f":"IF(Stock!#REF!<>\"\",E67*Pilotage!$D$15,\"\")","v":{"$error":"#REF!"}},{"$f":"IF(Stock!#REF!<>\"\",IF(Stock!#REF!>0,Stock!#REF!,0),\"\")","v":{"$error":"#REF!"}},{"$f":"IF(Stock!#REF!<>\"\",Pilotage!$M$27,\"\")","v":{"$error":"#REF!"}},{"$f":"IF(Stock!#REF!<>\"\",ROUND(Stock!#REF!*J67,0),\"\")","v":{"$error":"#REF!"}},{"$f":"IF(Stock!#REF!<>\"\",$H67*K67,\"\")","v":{"$error":"#REF!"}},{"$f":"IF(Stock!#REF!<>\"\",Pilotage!N$27,\"\")","v":{"$error":"#REF!"}},{"$f":"IF(Stock!#REF!<>\"\",ROUND(K67*M67,0),\"\")","v":{"$error":"#REF!"}},{"$f":"IF(Stock!#REF!<>\"\",$H67*N67,\"\")","v":{"$error":"#REF!"}},{"$f":"IF(Stock!#REF!<>\"\",Pilotage!O$27,\"\")","v":{"$error":"#REF!"}},{"$f":"IF(Stock!#REF!<>\"\",ROUND(K67*P67,0),\"\")","v":{"$error":"#REF!"}},{"$f":"IF(Stock!#REF!<>\"\",$H67*Q67,\"\")","v":{"$error":"#REF!"}},{"$f":"IF(Stock!#REF!<>\"\",Pilotage!P$27,\"\")","v":{"$error":"#REF!"}},{"$f":"IF(Stock!#REF!<>\"\",ROUND(Q67*S67,0),\"\")","v":{"$error":"#REF!"}},{"$f":"IF(Stock!#REF!<>\"\",$H67*T67,\"\")","v":{"$error":"#REF!"}},{"$f":"IF(Stock!#REF!<>\"\",Pilotage!Q$27,\"\")","v":{"$error":"#REF!"}},{"$f":"IF(Stock!#REF!<>\"\",ROUND(T67*V67,0),\"\")","v":{"$error":"#REF!"}},{"$f":"IF(Stock!#REF!<>\"\",$H67*W67,\"\")","v":{"$error":"#REF!"}},{"$f":"IF(Stock!#REF!<>\"\",Pilotage!R$27,\"\")","v":{"$error":"#REF!"}},{"$f":"IF(Stock!#REF!<>\"\",ROUND(W67*Y67,0),\"\")","v":{"$error":"#REF!"}},{"$f":"IF(Stock!#REF!<>\"\",$H67*Z67,\"\")","v":{"$error":"#REF!"}}]
[{"$f":"IF(Stock!#REF!<>\"\",Stock!#REF!,\"\")","v":{"$error":"#REF!"}},{"$f":"IF(Stock!#REF!<>\"\",Stock!#REF!,\"\")","v":{"$error":"#REF!"}},{"$f":"IF(Stock!#REF!<>\"\",Stock!#REF!,\"\")","v":{"$error":"#REF!"}},{"$f":"IF(Stock!#REF!<>\"\",SUM(Stock!#REF!,Stock!#REF!,Stock!#REF!),\"\")","v":{"$error":"#REF!"}},{"$f":"IF(Stock!#REF!<>\"\",#REF!*(1+Pilotage!$M$20),\"\")","v":{"$error":"#REF!"}},null,{"$f":"IF(Stock!#REF!<>\"\",IF(Stock!#REF!>0,Stock!#REF!/Stock!#REF!,0),\"\")","v":{"$error":"#REF!"}},{"$f":"IF(Stock!#REF!<>\"\",E68*Pilotage!$D$15,\"\")","v":{"$error":"#REF!"}},{"$f":"IF(Stock!#REF!<>\"\",IF(Stock!#REF!>0,Stock!#REF!,0),\"\")","v":{"$error":"#REF!"}},{"$f":"IF(Stock!#REF!<>\"\",Pilotage!$M$27,\"\")","v":{"$error":"#REF!"}},{"$f":"IF(Stock!#REF!<>\"\",ROUND(Stock!#REF!*J68,0),\"\")","v":{"$error":"#REF!"}},{"$f":"IF(Stock!#REF!<>\"\",$H68*K68,\"\")","v":{"$error":"#REF!"}},{"$f":"IF(Stock!#REF!<>\"\",Pilotage!N$27,\"\")","v":{"$error":"#REF!"}},{"$f":"IF(Stock!#REF!<>\"\",ROUND(K68*M68,0),\"\")","v":{"$error":"#REF!"}},{"$f":"IF(Stock!#REF!<>\"\",$H68*N68,\"\")","v":{"$error":"#REF!"}},{"$f":"IF(Stock!#REF!<>\"\",Pilotage!O$27,\"\")","v":{"$error":"#REF!"}},{"$f":"IF(Stock!#REF!<>\"\",ROUND(K68*P68,0),\"\")","v":{"$error":"#REF!"}},{"$f":"IF(Stock!#REF!<>\"\",$H68*Q68,\"\")","v":{"$error":"#REF!"}},{"$f":"IF(Stock!#REF!<>\"\",Pilotage!P$27,\"\")","v":{"$error":"#REF!"}},{"$f":"IF(Stock!#REF!<>\"\",ROUND(Q68*S68,0),\"\")","v":{"$error":"#REF!"}},{"$f":"IF(Stock!#REF!<>\"\",$H68*T68,\"\")","v":{"$error":"#REF!"}},{"$f":"IF(Stock!#REF!<>\"\",Pilotage!Q$27,\"\")","v":{"$error":"#REF!"}},{"$f":"IF(Stock!#REF!<>\"\",ROUND(T68*V68,0),\"\")","v":{"$error":"#REF!"}},{"$f":"IF(Stock!#REF!<>\"\",$H68*W68,\"\")","v":{"$error":"#REF!"}},{"$f":"IF(Stock!#REF!<>\"\",Pilotage!R$27,\"\")","v":{"$error":"#REF!"}},{"$f":"IF(Stock!#REF!<>\"\",ROUND(W68*Y68,0),\"\")","v":{"$error":"#REF!"}},{"$f":"IF(Stock!#REF!<>\"\",$H68*Z68,\"\")","v":{"$error":"#REF!"}}]
[{"$f":"IF(Stock!#REF!<>\"\",Stock!#REF!,\"\")","v":{"$error":"#REF!"}},{"$f":"IF(Stock!#REF!<>\"\",Stock!#REF!,\"\")","v":{"$error":"#REF!"}},{"$f":"IF(Stock!#REF!<>\"\",Stock!#REF!,\"\")","v":{"$error":"#REF!"}},{"$f":"IF(Stock!#REF!<>\"\",SUM(Stock!#REF!,Stock!#REF!,Stock!#REF!),\"\")","v":{"$error":"#REF!"}},{"$f":"IF(Stock!#REF!<>\"\",#REF!*(1+Pilotage!$M$20),\"\")","v":{"$error":"#REF!"}},null,{"$f":"IF(Stock!#REF!<>\"\",IF(Stock!#REF!>0,Stock!#REF!/Stock!#REF!,0),\"\")","v":{"$error":"#REF!"}},{"$f":"IF(Stock!#REF!<>\"\",E69*Pilotage!$D$15,\"\")","v":{"$error":"#REF!"}},{"$f":"IF(Stock!#REF!<>\"\",IF(Stock!#REF!>0,Stock!#REF!,0),\"\")","v":{"$error":"#REF!"}},{"$f":"IF(Stock!#REF!<>\"\",Pilotage!$M$27,\"\")","v":{"$error":"#REF!"}},{"$f":"IF(Stock!#REF!<>\"\",ROUND(Stock!#REF!*J69,0),\"\")","v":{"$error":"#REF!"}},{"$f":"IF(Stock!#REF!<>\"\",$H69*K69,\"\")","v":{"$error":"#REF!"}},{"$f":"IF(Stock!#REF!<>\"\",Pilotage!N$27,\"\")","v":{"$error":"#REF!"}},{"$f":"IF(Stock!#REF!<>\"\",ROUND(K69*M69,0),\"\")","v":{"$error":"#REF!"}},{"$f":"IF(Stock!#REF!<>\"\",$H69*N69,\"\")","v":{"$error":"#REF!"}},{"$f":"IF(Stock!#REF!<>\"\",Pilotage!O$27,\"\")","v":{"$error":"#REF!"}},{"$f":"IF(Stock!#REF!<>\"\",ROUND(K69*P69,0),\"\")","v":{"$error":"#REF!"}},{"$f":"IF(Stock!#REF!<>\"\",$H69*Q69,\"\")","v":{"$error":"#REF!"}},{"$f":"IF(Stock!#REF!<>\"\",Pilotage!P$27,\"\")","v":{"$error":"#REF!"}},{"$f":"IF(Stock!#REF!<>\"\",ROUND(Q69*S69,0),\"\")","v":{"$error":"#REF!"}},{"$f":"IF(Stock!#REF!<>\"\",$H69*T69,\"\")","v":{"$error":"#REF!"}},{"$f":"IF(Stock!#REF!<>\"\",Pilotage!Q$27,\"\")","v":{"$error":"#REF!"}},{"$f":"IF(Stock!#REF!<>\"\",ROUND(T69*V69,0),\"\")","v":{"$error":"#REF!"}},{"$f":"IF(Stock!#REF!<>\"\",$H69*W69,\"\")","v":{"$error":"#REF!"}},{"$f":"IF(Stock!#REF!<>\"\",Pilotage!R$27,\"\")","v":{"$error":"#REF!"}},{"$f":"IF(Stock!#REF!<>\"\",ROUND(W69*Y69,0),\"\")","v":{"$error":"#REF!"}},{"$f":"IF(Stock!#REF!<>\"\",$H69*Z69,\"\")","v":{"$error":"#REF!"}}]
[{"$f":"IF(Stock!#REF!<>\"\",Stock!#REF!,\"\")","v":{"$error":"#REF!"}},{"$f":"IF(Stock!#REF!<>\"\",Stock!#REF!,\"\")","v":{"$error":"#REF!"}},{"$f":"IF(Stock!#REF!<>\"\",Stock!#REF!,\"\")","v":{"$error":"#REF!"}},{"$f":"IF(Stock!#REF!<>\"\",SUM(Stock!#REF!,Stock!#REF!,Stock!#REF!),\"\")","v":{"$error":"#REF!"}},{"$f":"IF(Stock!#REF!<>\"\",#REF!*(1+Pilotage!$M$20),\"\")","v":{"$error":"#REF!"}},null,{"$f":"IF(Stock!#REF!<>\"\",IF(Stock!#REF!>0,Stock!#REF!/Stock!#REF!,0),\"\")","v":{"$error":"#REF!"}},{"$f":"IF(Stock!#REF!<>\"\",E70*Pilotage!$D$15,\"\")","v":{"$error":"#REF!"}},{"$f":"IF(Stock!#REF!<>\"\",IF(Stock!#REF!>0,Stock!#REF!,0),\"\")","v":{"$error":"#REF!"}},{"$f":"IF(Stock!#REF!<>\"\",Pilotage!$M$27,\"\")","v":{"$error":"#REF!"}},{"$f":"IF(Stock!#REF!<>\"\",ROUND(Stock!#REF!*J70,0),\"\")","v":{"$error":"#REF!"}},{"$f":"IF(Stock!#REF!<>\"\",$H70*K70,\"\")","v":{"$error":"#REF!"}},{"$f":"IF(Stock!#REF!<>\"\",Pilotage!N$27,\"\")","v":{"$error":"#REF!"}},{"$f":"IF(Stock!#REF!<>\"\",ROUND(K70*M70,0),\"\")","v":{"$error":"#REF!"}},{"$f":"IF(Stock!#REF!<>\"\",$H70*N70,\"\")","v":{"$error":"#REF!"}},{"$f":"IF(Stock!#REF!<>\"\",Pilotage!O$27,\"\")","v":{"$error":"#REF!"}},{"$f":"IF(Stock!#REF!<>\"\",ROUND(K70*P70,0),\"\")","v":{"$error":"#REF!"}},{"$f":"IF(Stock!#REF!<>\"\",$H70*Q70,\"\")","v":{"$error":"#REF!"}},{"$f":"IF(Stock!#REF!<>\"\",Pilotage!P$27,\"\")","v":{"$error":"#REF!"}},{"$f":"IF(Stock!#REF!<>\"\",ROUND(Q70*S70,0),\"\")","v":{"$error":"#REF!"}},{"$f":"IF(Stock!#REF!<>\"\",$H70*T70,\"\")","v":{"$error":"#REF!"}},{"$f":"IF(Stock!#REF!<>\"\",Pilotage!Q$27,\"\")","v":{"$error":"#REF!"}},{"$f":"IF(Stock!#REF!<>\"\",ROUND(T70*V70,0),\"\")","v":{"$error":"#REF!"}},{"$f":"IF(Stock!#REF!<>\"\",$H70*W70,\"\")","v":{"$error":"#REF!"}},{"$f":"IF(Stock!#REF!<>\"\",Pilotage!R$27,\"\")","v":{"$error":"#REF!"}},{"$f":"IF(Stock!#REF!<>\"\",ROUND(W70*Y70,0),\"\")","v":{"$error":"#REF!"}},{"$f":"IF(Stock!#REF!<>\"\",$H70*Z70,\"\")","v":{"$error":"#REF!"}}]
[{"$f":"IF(Stock!#REF!<>\"\",Stock!#REF!,\"\")","v":{"$error":"#REF!"}},{"$f":"IF(Stock!#REF!<>\"\",Stock!#REF!,\"\")","v":{"$error":"#REF!"}},{"$f":"IF(Stock!#REF!<>\"\",Stock!#REF!,\"\")","v":{"$error":"#REF!"}},{"$f":"IF(Stock!#REF!<>\"\",SUM(Stock!#REF!,Stock!#REF!,Stock!#REF!),\"\")","v":{"$error":"#REF!"}},{"$f":"IF(Stock!#REF!<>\"\",#REF!*(1+Pilotage!$M$20),\"\")","v":{"$error":"#REF!"}},null,{"$f":"IF(Stock!#REF!<>\"\",IF(Stock!#REF!>0,Stock!#REF!/Stock!#REF!,0),\"\")","v":{"$error":"#REF!"}},{"$f":"IF(Stock!#REF!<>\"\",E71*Pilotage!$D$15,\"\")","v":{"$error":"#REF!"}},{"$f":"IF(Stock!#REF!<>\"\",IF(Stock!#REF!>0,Stock!#REF!,0),\"\")","v":{"$error":"#REF!"}},{"$f":"IF(Stock!#REF!<>\"\",Pilotage!$M$27,\"\")","v":{"$error":"#REF!"}},{"$f":"IF(Stock!#REF!<>\"\",ROUND(Stock!#REF!*J71,0),\"\")","v":{"$error":"#REF!"}},{"$f":"IF(Stock!#REF!<>\"\",$H71*K71,\"\")","v":{"$error":"#REF!"}},{"$f":"IF(Stock!#REF!<>\"\",Pilotage!N$27,\"\")","v":{"$error":"#REF!"}},{"$f":"IF(Stock!#REF!<>\"\",ROUND(K71*M71,0),\"\")","v":{"$error":"#REF!"}},{"$f":"IF(Stock!#REF!<>\"\",$H71*N71,\"\")","v":{"$error":"#REF!"}},{"$f":"IF(Stock!#REF!<>\"\",Pilotage!O$27,\"\")","v":{"$error":"#REF!"}},{"$f":"IF(Stock!#REF!<>\"\",ROUND(K71*P71,0),\"\")","v":{"$error":"#REF!"}},{"$f":"IF(Stock!#REF!<>\"\",$H71*Q71,\"\")","v":{"$error":"#REF!"}},{"$f":"IF(Stock!#REF!<>\"\",Pilotage!P$27,\"\")","v":{"$error":"#REF!"}},{"$f":"IF(Stock!#REF!<>\"\",ROUND(Q71*S71,0),\"\")","v":{"$error":"#REF!"}},{"$f":"IF(Stock!#REF!<>\"\",$H71*T71,\"\")","v":{"$error":"#REF!"}},{"$f":"IF(Stock!#REF!<>\"\",Pilotage!Q$27,\"\")","v":{"$error":"#REF!"}},{"$f":"IF(Stock!#REF!<>\"\",ROUND(T71*V71,0),\"\")","v":{"$error":"#REF!"}},{"$f":"IF(Stock!#REF!<>\"\",$H71*W71,\"\")","v":{"$error":"#REF!"}},{"$f":"IF(Stock!#REF!<>\"\",Pilotage!R$27,\"\")","v":{"$error":"#REF!"}},{"$f":"IF(Stock!#REF!<>\"\",ROUND(W71*Y71,0),\"\")","v":{"$error":"#REF!"}},{"$f":"IF(Stock!#REF!<>\"\",$H71*Z71,\"\")","v":{"$error":"#REF!"}}]
[{"$f":"IF(Stock!#REF!<>\"\",Stock!#REF!,\"\")","v":{"$error":"#REF!"}},{"$f":"IF(Stock!#REF!<>\"\",Stock!#REF!,\"\")","v":{"$error":"#REF!"}},{"$f":"IF(Stock!#REF!<>\"\",Stock!#REF!,\"\")","v":{"$error":"#REF!"}},{"$f":"IF(Stock!#REF!<>\"\",SUM(Stock!#REF!,Stock!#REF!,Stock!#REF!),\"\")","v":{"$error":"#REF!"}},{"$f":"IF(Stock!#REF!<>\"\",#REF!*(1+Pilotage!$M$20),\"\")","v":{"$error":"#REF!"}},null,{"$f":"IF(Stock!#REF!<>\"\",IF(Stock!#REF!>0,Stock!#REF!/Stock!#REF!,0),\"\")","v":{"$error":"#REF!"}},{"$f":"IF(Stock!#REF!<>\"\",E72*Pilotage!$D$15,\"\")","v":{"$error":"#REF!"}},{"$f":"IF(Stock!#REF!<>\"\",IF(Stock!#REF!>0,Stock!#REF!,0),\"\")","v":{"$error":"#REF!"}},{"$f":"IF(Stock!#REF!<>\"\",Pilotage!$M$27,\"\")","v":{"$error":"#REF!"}},{"$f":"IF(Stock!#REF!<>\"\",ROUND(Stock!#REF!*J72,0),\"\")","v":{"$error":"#REF!"}},{"$f":"IF(Stock!#REF!<>\"\",$H72*K72,\"\")","v":{"$error":"#REF!"}},{"$f":"IF(Stock!#REF!<>\"\",Pilotage!N$27,\"\")","v":{"$error":"#REF!"}},{"$f":"IF(Stock!#REF!<>\"\",ROUND(K72*M72,0),\"\")","v":{"$error":"#REF!"}},{"$f":"IF(Stock!#REF!<>\"\",$H72*N72,\"\")","v":{"$error":"#REF!"}},{"$f":"IF(Stock!#REF!<>\"\",Pilotage!O$27,\"\")","v":{"$error":"#REF!"}},{"$f":"IF(Stock!#REF!<>\"\",ROUND(K72*P72,0),\"\")","v":{"$error":"#REF!"}},{"$f":"IF(Stock!#REF!<>\"\",$H72*Q72,\"\")","v":{"$error":"#REF!"}},{"$f":"IF(Stock!#REF!<>\"\",Pilotage!P$27,\"\")","v":{"$error":"#REF!"}},{"$f":"IF(Stock!#REF!<>\"\",ROUND(Q72*S72,0),\"\")","v":{"$error":"#REF!"}},{"$f":"IF(Stock!#REF!<>\"\",$H72*T72,\"\")","v":{"$error":"#REF!"}},{"$f":"IF(Stock!#REF!<>\"\",Pilotage!Q$27,\"\")","v":{"$error":"#REF!"}},{"$f":"IF(Stock!#REF!<>\"\",ROUND(T72*V72,0),\"\")","v":{"$error":"#REF!"}},{"$f":"IF(Stock!#REF!<>\"\",$H72*W72,\"\")","v":{"$error":"#REF!"}},{"$f":"IF(Stock!#REF!<>\"\",Pilotage!R$27,\"\")","v":{"$error":"#REF!"}},{"$f":"IF(Stock!#REF!<>\"\",ROUND(W72*Y72,0),\"\")","v":{"$error":"#REF!"}},{"$f":"IF(Stock!#REF!<>\"\",$H72*Z72,\"\")","v":{"$error":"#REF!"}}]
[{"$f":"IF(Stock!#REF!<>\"\",Stock!#REF!,\"\")","v":{"$error":"#REF!"}},{"$f":"IF(Stock!#REF!<>\"\",Stock!#REF!,\"\")","v":{"$error":"#REF!"}},{"$f":"IF(Stock!#REF!<>\"\",Stock!#REF!,\"\")","v":{"$error":"#REF!"}},{"$f":"IF(Stock!#REF!<>\"\",SUM(Stock!#REF!,Stock!#REF!,Stock!#REF!),\"\")","v":{"$error":"#REF!"}},{"$f":"IF(Stock!#REF!<>\"\",#REF!*(1+Pilotage!$M$20),\"\")","v":{"$error":"#REF!"}},null,{"$f":"IF(Stock!#REF!<>\"\",IF(Stock!#REF!>0,Stock!#REF!/Stock!#REF!,0),\"\")","v":{"$error":"#REF!"}},{"$f":"IF(Stock!#REF!<>\"\",E73*Pilotage!$D$15,\"\")","v":{"$error":"#REF!"}},{"$f":"IF(Stock!#REF!<>\"\",IF(Stock!#REF!>0,Stock!#REF!,0),\"\")","v":{"$error":"#REF!"}},{"$f":"IF(Stock!#REF!<>\"\",Pilotage!$M$27,\"\")","v":{"$error":"#REF!"}},{"$f":"IF(Stock!#REF!<>\"\",ROUND(Stock!#REF!*J73,0),\"\")","v":{"$error":"#REF!"}},{"$f":"IF(Stock!#REF!<>\"\",$H73*K73,\"\")","v":{"$error":"#REF!"}},{"$f":"IF(Stock!#REF!<>\"\",Pilotage!N$27,\"\")","v":{"$error":"#REF!"}},{"$f":"IF(Stock!#REF!<>\"\",ROUND(K73*M73,0),\"\")","v":{"$error":"#REF!"}},{"$f":"IF(Stock!#REF!<>\"\",$H73*N73,\"\")","v":{"$error":"#REF!"}},{"$f":"IF(Stock!#REF!<>\"\",Pilotage!O$27,\"\")","v":{"$error":"#REF!"}},{"$f":"IF(Stock!#REF!<>\"\",ROUND(K73*P73,0),\"\")","v":{"$error":"#REF!"}},{"$f":"IF(Stock!#REF!<>\"\",$H73*Q73,\"\")","v":{"$error":"#REF!"}},{"$f":"IF(Stock!#REF!<>\"\",Pilotage!P$27,\"\")","v":{"$error":"#REF!"}},{"$f":"IF(Stock!#REF!<>\"\",ROUND(Q73*S73,0),\"\")","v":{"$error":"#REF!"}},{"$f":"IF(Stock!#REF!<>\"\",$H73*T73,\"\")","v":{"$error":"#REF!"}},{"$f":"IF(Stock!#REF!<>\"\",Pilotage!Q$27,\"\")","v":{"$error":"#REF!"}},{"$f":"IF(Stock!#REF!<>\"\",ROUND(T73*V73,0),\"\")","v":{"$error":"#REF!"}},{"$f":"IF(Stock!#REF!<>\"\",$H73*W73,\"\")","v":{"$error":"#REF!"}},{"$f":"IF(Stock!#REF!<>\"\",Pilotage!R$27,\"\")","v":{"$error":"#REF!"}},{"$f":"IF(Stock!#REF!<>\"\",ROUND(W73*Y73,0),\"\")","v":{"$error":"#REF!"}},{"$f":"IF(Stock!#REF!<>\"\",$H73*Z73,\"\")","v":{"$error":"#REF!"}}]
[{"$f":"IF(Stock!#REF!<>\"\",Stock!#REF!,\"\")","v":{"$error":"#REF!"}},{"$f":"IF(Stock!#REF!<>\"\",Stock!#REF!,\"\")","v":{"$error":"#REF!"}},{"$f":"IF(Stock!#REF!<>\"\",Stock!#REF!,\"\")","v":{"$error":"#REF!"}},{"$f":"IF(Stock!#REF!<>\"\",SUM(Stock!#REF!,Stock!#REF!,Stock!#REF!),\"\")","v":{"$error":"#REF!"}},{"$f":"IF(Stock!#REF!<>\"\",#REF!*(1+Pilotage!$M$20),\"\")","v":{"$error":"#REF!"}},null,{"$f":"IF(Stock!#REF!<>\"\",IF(Stock!#REF!>0,Stock!#REF!/Stock!#REF!,0),\"\")","v":{"$error":"#REF!"}},{"$f":"IF(Stock!#REF!<>\"\",E74*Pilotage!$D$15,\"\")","v":{"$error":"#REF!"}},{"$f":"IF(Stock!#REF!<>\"\",IF(Stock!#REF!>0,Stock!#REF!,0),\"\")","v":{"$error":"#REF!"}},{"$f":"IF(Stock!#REF!<>\"\",Pilotage!$M$27,\"\")","v":{"$error":"#REF!"}},{"$f":"IF(Stock!#REF!<>\"\",ROUND(Stock!#REF!*J74,0),\"\")","v":{"$error":"#REF!"}},{"$f":"IF(Stock!#REF!<>\"\",$H74*K74,\"\")","v":{"$error":"#REF!"}},{"$f":"IF(Stock!#REF!<>\"\",Pilotage!N$27,\"\")","v":{"$error":"#REF!"}},{"$f":"IF(Stock!#REF!<>\"\",ROUND(K74*M74,0),\"\")","v":{"$error":"#REF!"}},{"$f":"IF(Stock!#REF!<>\"\",$H74*N74,\"\")","v":{"$error":"#REF!"}},{"$f":"IF(Stock!#REF!<>\"\",Pilotage!O$27,\"\")","v":{"$error":"#REF!"}},{"$f":"IF(Stock!#REF!<>\"\",ROUND(K74*P74,0),\"\")","v":{"$error":"#REF!"}},{"$f":"IF(Stock!#REF!<>\"\",$H74*Q74,\"\")","v":{"$error":"#REF!"}},{"$f":"IF(Stock!#REF!<>\"\",Pilotage!P$27,\"\")","v":{"$error":"#REF!"}},{"$f":"IF(Stock!#REF!<>\"\",ROUND(Q74*S74,0),\"\")","v":{"$error":"#REF!"}},{"$f":"IF(Stock!#REF!<>\"\",$H74*T74,\"\")","v":{"$error":"#REF!"}},{"$f":"IF(Stock!#REF!<>\"\",Pilotage!Q$27,\"\")","v":{"$error":"#REF!"}},{"$f":"IF(Stock!#REF!<>\"\",ROUND(T74*V74,0),\"\")","v":{"$error":"#REF!"}},{"$f":"IF(Stock!#REF!<>\"\",$H74*W74,\"\")","v":{"$error":"#REF!"}},{"$f":"IF(Stock!#REF!<>\"\",Pilotage!R$27,\"\")","v":{"$error":"#REF!"}},{"$f":"IF(Stock!#REF!<>\"\",ROUND(W74*Y74,0),\"\")","v":{"$error":"#REF!"}},{"$f":"IF(Stock!#REF!<>\"\",$H74*Z74,\"\")","v":{"$error":"#REF!"}}]
[{"$f":"IF(Stock!#REF!<>\"\",Stock!#REF!,\"\")","v":{"$error":"#REF!"}},{"$f":"IF(Stock!#REF!<>\"\",Stock!#REF!,\"\")","v":{"$error":"#REF!"}},{"$f":"IF(Stock!#REF!<>\"\",Stock!#REF!,\"\")","v":{"$error":"#REF!"}},{"$f":"IF(Stock!#REF!<>\"\",SUM(Stock!#REF!,Stock!#REF!,Stock!#REF!),\"\")","v":{"$error":"#REF!"}},{"$f":"IF(Stock!#REF!<>\"\",#REF!*(1+Pilotage!$M$20),\"\")","v":{"$error":"#REF!"}},null,{"$f":"IF(Stock!#REF!<>\"\",IF(Stock!#REF!>0,Stock!#REF!/Stock!#REF!,0),\"\")","v":{"$error":"#REF!"}},{"$f":"IF(Stock!#REF!<>\"\",E75*Pilotage!$D$15,\"\")","v":{"$error":"#REF!"}},{"$f":"IF(Stock!#REF!<>\"\",IF(Stock!#REF!>0,Stock!#REF!,0),\"\")","v":{"$error":"#REF!"}},{"$f":"IF(Stock!#REF!<>\"\",Pilotage!$M$27,\"\")","v":{"$error":"#REF!"}},{"$f":"IF(Stock!#REF!<>\"\",ROUND(Stock!#REF!*J75,0),\"\")","v":{"$error":"#REF!"}},{"$f":"IF(Stock!#REF!<>\"\",$H75*K75,\"\")","v":{"$error":"#REF!"}},{"$f":"IF(Stock!#REF!<>\"\",Pilotage!N$27,\"\")","v":{"$error":"#REF!"}},{"$f":"IF(Stock!#REF!<>\"\",ROUND(K75*M75,0),\"\")","v":{"$error":"#REF!"}},{"$f":"IF(Stock!#REF!<>\"\",$H75*N75,\"\")","v":{"$error":"#REF!"}},{"$f":"IF(Stock!#REF!<>\"\",Pilotage!O$27,\"\")","v":{"$error":"#REF!"}},{"$f":"IF(Stock!#REF!<>\"\",ROUND(K75*P75,0),\"\")","v":{"$error":"#REF!"}},{"$f":"IF(Stock!#REF!<>\"\",$H75*Q75,\"\")","v":{"$error":"#REF!"}},{"$f":"IF(Stock!#REF!<>\"\",Pilotage!P$27,\"\")","v":{"$error":"#REF!"}},{"$f":"IF(Stock!#REF!<>\"\",ROUND(Q75*S75,0),\"\")","v":{"$error":"#REF!"}},{"$f":"IF(Stock!#REF!<>\"\",$H75*T75,\"\")","v":{"$error":"#REF!"}},{"$f":"IF(Stock!#REF!<>\"\",Pilotage!Q$27,\"\")","v":{"$error":"#REF!"}},{"$f":"IF(Stock!#REF!<>\"\",ROUND(T75*V75,0),\"\")","v":{"$error":"#REF!"}},{"$f":"IF(Stock!#REF!<>\"\",$H75*W75,\"\")","v":{"$error":"#REF!"}},{"$f":"IF(Stock!#REF!<>\"\",Pilotage!R$27,\"\")","v":{"$error":"#REF!"}},{"$f":"IF(Stock!#REF!<>\"\",ROUND(W75*Y75,0),\"\")","v":{"$error":"#REF!"}},{"$f":"IF(Stock!#REF!<>\"\",$H75*Z75,\"\")","v":{"$error":"#REF!"}}]
[{"$f":"IF(Stock!#REF!<>\"\",Stock!#REF!,\"\")","v":{"$error":"#REF!"}},{"$f":"IF(Stock!#REF!<>\"\",Stock!#REF!,\"\")","v":{"$error":"#REF!"}},{"$f":"IF(Stock!#REF!<>\"\",Stock!#REF!,\"\")","v":{"$error":"#REF!"}},{"$f":"IF(Stock!#REF!<>\"\",SUM(Stock!#REF!,Stock!#REF!,Stock!#REF!),\"\")","v":{"$error":"#REF!"}},{"$f":"IF(Stock!#REF!<>\"\",#REF!*(1+Pilotage!$M$20),\"\")","v":{"$error":"#REF!"}},null,{"$f":"IF(Stock!#REF!<>\"\",IF(Stock!#REF!>0,Stock!#REF!/Stock!#REF!,0),\"\")","v":{"$error":"#REF!"}},{"$f":"IF(Stock!#REF!<>\"\",E76*Pilotage!$D$15,\"\")","v":{"$error":"#REF!"}},{"$f":"IF(Stock!#REF!<>\"\",IF(Stock!#REF!>0,Stock!#REF!,0),\"\")","v":{"$error":"#REF!"}},{"$f":"IF(Stock!#REF!<>\"\",Pilotage!$M$27,\"\")","v":{"$error":"#REF!"}},{"$f":"IF(Stock!#REF!<>\"\",ROUND(Stock!#REF!*J76,0),\"\")","v":{"$error":"#REF!"}},{"$f":"IF(Stock!#REF!<>\"\",$H76*K76,\"\")","v":{"$error":"#REF!"}},{"$f":"IF(Stock!#REF!<>\"\",Pilotage!N$27,\"\")","v":{"$error":"#REF!"}},{"$f":"IF(Stock!#REF!<>\"\",ROUND(K76*M76,0),\"\")","v":{"$error":"#REF!"}},{"$f":"IF(Stock!#REF!<>\"\",$H76*N76,\"\")","v":{"$error":"#REF!"}},{"$f":"IF(Stock!#REF!<>\"\",Pilotage!O$27,\"\")","v":{"$error":"#REF!"}},{"$f":"IF(Stock!#REF!<>\"\",ROUND(K76*P76,0),\"\")","v":{"$error":"#REF!"}},{"$f":"IF(Stock!#REF!<>\"\",$H76*Q76,\"\")","v":{"$error":"#REF!"}},{"$f":"IF(Stock!#REF!<>\"\",Pilotage!P$27,\"\")","v":{"$error":"#REF!"}},{"$f":"IF(Stock!#REF!<>\"\",ROUND(Q76*S76,0),\"\")","v":{"$error":"#REF!"}},{"$f":"IF(Stock!#REF!<>\"\",$H76*T76,\"\")","v":{"$error":"#REF!"}},{"$f":"IF(Stock!#REF!<>\"\",Pilotage!Q$27,\"\")","v":{"$error":"#REF!"}},{"$f":"IF(Stock!#REF!<>\"\",ROUND(T76*V76,0),\"\")","v":{"$error":"#REF!"}},{"$f":"IF(Stock!#REF!<>\"\",$H76*W76,\"\")","v":{"$error":"#REF!"}},{"$f":"IF(Stock!#REF!<>\"\",Pilotage!R$27,\"\")","v":{"$error":"#REF!"}},{"$f":"IF(Stock!#REF!<>\"\",ROUND(W76*Y76,0),\"\")","v":{"$error":"#REF!"}},{"$f":"IF(Stock!#REF!<>\"\",$H76*Z76,\"\")","v":{"$error":"#REF!"}}]
[{"$f":"IF(Stock!#REF!<>\"\",Stock!#REF!,\"\")","v":{"$error":"#REF!"}},{"$f":"IF(Stock!#REF!<>\"\",Stock!#REF!,\"\")","v":{"$error":"#REF!"}},{"$f":"IF(Stock!#REF!<>\"\",Stock!#REF!,\"\")","v":{"$error":"#REF!"}},{"$f":"IF(Stock!#REF!<>\"\",SUM(Stock!#REF!,Stock!#REF!,Stock!#REF!),\"\")","v":{"$error":"#REF!"}},{"$f":"IF(Stock!#REF!<>\"\",#REF!*(1+Pilotage!$M$20),\"\")","v":{"$error":"#REF!"}},null,{"$f":"IF(Stock!#REF!<>\"\",IF(Stock!#REF!>0,Stock!#REF!/Stock!#REF!,0),\"\")","v":{"$error":"#REF!"}},{"$f":"IF(Stock!#REF!<>\"\",E77*Pilotage!$D$15,\"\")","v":{"$error":"#REF!"}},{"$f":"IF(Stock!#REF!<>\"\",IF(Stock!#REF!>0,Stock!#REF!,0),\"\")","v":{"$error":"#REF!"}},{"$f":"IF(Stock!#REF!<>\"\",Pilotage!$M$27,\"\")","v":{"$error":"#REF!"}},{"$f":"IF(Stock!#REF!<>\"\",ROUND(Stock!#REF!*J77,0),\"\")","v":{"$error":"#REF!"}},{"$f":"IF(Stock!#REF!<>\"\",$H77*K77,\"\")","v":{"$error":"#REF!"}},{"$f":"IF(Stock!#REF!<>\"\",Pilotage!N$27,\"\")","v":{"$error":"#REF!"}},{"$f":"IF(Stock!#REF!<>\"\",ROUND(K77*M77,0),\"\")","v":{"$error":"#REF!"}},{"$f":"IF(Stock!#REF!<>\"\",$H77*N77,\"\")","v":{"$error":"#REF!"}},{"$f":"IF(Stock!#REF!<>\"\",Pilotage!O$27,\"\")","v":{"$error":"#REF!"}},{"$f":"IF(Stock!#REF!<>\"\",ROUND(K77*P77,0),\"\")","v":{"$error":"#REF!"}},{"$f":"IF(Stock!#REF!<>\"\",$H77*Q77,\"\")","v":{"$error":"#REF!"}},{"$f":"IF(Stock!#REF!<>\"\",Pilotage!P$27,\"\")","v":{"$error":"#REF!"}},{"$f":"IF(Stock!#REF!<>\"\",ROUND(Q77*S77,0),\"\")","v":{"$error":"#REF!"}},{"$f":"IF(Stock!#REF!<>\"\",$H77*T77,\"\")","v":{"$error":"#REF!"}},{"$f":"IF(Stock!#REF!<>\"\",Pilotage!Q$27,\"\")","v":{"$error":"#REF!"}},{"$f":"IF(Stock!#REF!<>\"\",ROUND(T77*V77,0),\"\")","v":{"$error":"#REF!"}},{"$f":"IF(Stock!#REF!<>\"\",$H77*W77,\"\")","v":{"$error":"#REF!"}},{"$f":"IF(Stock!#REF!<>\"\",Pilotage!R$27,\"\")","v":{"$error":"#REF!"}},{"$f":"IF(Stock!#REF!<>\"\",ROUND(W77*Y77,0),\"\")","v":{"$error":"#REF!"}},{"$f":"IF(Stock!#REF!<>\"\",$H77*Z77,\"\")","v":{"$error":"#REF!"}}]
[{"$f":"IF(Stock!#REF!<>\"\",Stock!#REF!,\"\")","v":{"$error":"#REF!"}},{"$f":"IF(Stock!#REF!<>\"\",Stock!#REF!,\"\")","v":{"$error":"#REF!"}},{"$f":"IF(Stock!#REF!<>\"\",Stock!#REF!,\"\")","v":{"$error":"#REF!"}},{"$f":"IF(Stock!#REF!<>\"\",SUM(Stock!#REF!,Stock!#REF!,Stock!#REF!),\"\")","v":{"$error":"#REF!"}},{"$f":"IF(Stock!#REF!<>\"\",#REF!*(1+Pilotage!$M$20),\"\")","v":{"$error":"#REF!"}},null,{"$f":"IF(Stock!#REF!<>\"\",IF(Stock!#REF!>0,Stock!#REF!/Stock!#REF!,0),\"\")","v":{"$error":"#REF!"}},{"$f":"IF(Stock!#REF!<>\"\",E78*Pilotage!$D$15,\"\")","v":{"$error":"#REF!"}},{"$f":"IF(Stock!#REF!<>\"\",IF(Stock!#REF!>0,Stock!#REF!,0),\"\")","v":{"$error":"#REF!"}},{"$f":"IF(Stock!#REF!<>\"\",Pilotage!$M$27,\"\")","v":{"$error":"#REF!"}},{"$f":"IF(Stock!#REF!<>\"\",ROUND(Stock!#REF!*J78,0),\"\")","v":{"$error":"#REF!"}},{"$f":"IF(Stock!#REF!<>\"\",$H78*K78,\"\")","v":{"$error":"#REF!"}},{"$f":"IF(Stock!#REF!<>\"\",Pilotage!N$27,\"\")","v":{"$error":"#REF!"}},{"$f":"IF(Stock!#REF!<>\"\",ROUND(K78*M78,0),\"\")","v":{"$error":"#REF!"}},{"$f":"IF(Stock!#REF!<>\"\",$H78*N78,\"\")","v":{"$error":"#REF!"}},{"$f":"IF(Stock!#REF!<>\"\",Pilotage!O$27,\"\")","v":{"$error":"#REF!"}},{"$f":"IF(Stock!#REF!<>\"\",ROUND(K78*P78,0),\"\")","v":{"$error":"#REF!"}},{"$f":"IF(Stock!#REF!<>\"\",$H78*Q78,\"\")","v":{"$error":"#REF!"}},{"$f":"IF(Stock!#REF!<>\"\",Pilotage!P$27,\"\")","v":{"$error":"#REF!"}},{"$f":"IF(Stock!#REF!<>\"\",ROUND(Q78*S78,0),\"\")","v":{"$error":"#REF!"}},{"$f":"IF(Stock!#REF!<>\"\",$H78*T78,\"\")","v":{"$error":"#REF!"}},{"$f":"IF(Stock!#REF!<>\"\",Pilotage!Q$27,\"\")","v":{"$error":"#REF!"}},{"$f":"IF(Stock!#REF!<>\"\",ROUND(T78*V78,0),\"\")","v":{"$error":"#REF!"}},{"$f":"IF(Stock!#REF!<>\"\",$H78*W78,\"\")","v":{"$error":"#REF!"}},{"$f":"IF(Stock!#REF!<>\"\",Pilotage!R$27,\"\")","v":{"$error":"#REF!"}},{"$f":"IF(Stock!#REF!<>\"\",ROUND(W78*Y78,0),\"\")","v":{"$error":"#REF!"}},{"$f":"IF(Stock!#REF!<>\"\",$H78*Z78,\"\")","v":{"$error":"#REF!"}}]
[{"$f":"IF(Stock!#REF!<>\"\",Stock!#REF!,\"\")","v":{"$error":"#REF!"}},{"$f":"IF(Stock!#REF!<>\"\",Stock!#REF!,\"\")","v":{"$error":"#REF!"}},{"$f":"IF(Stock!#REF!<>\"\",Stock!#REF!,\"\")","v":{"$error":"#REF!"}},{"$f":"IF(Stock!#REF!<>\"\",SUM(Stock!#REF!,Stock!#REF!,Stock!#REF!),\"\")","v":{"$error":"#REF!"}},{"$f":"IF(Stock!#REF!<>\"\",#REF!*(1+Pilotage!$M$20),\"\")","v":{"$error":"#REF!"}},null,{"$f":"IF(Stock!#REF!<>\"\",IF(Stock!#REF!>0,Stock!#REF!/Stock!#REF!,0),\"\")","v":{"$error":"#REF!"}},{"$f":"IF(Stock!#REF!<>\"\",E79*Pilotage!$D$15,\"\")","v":{"$error":"#REF!"}},{"$f":"IF(Stock!#REF!<>\"\",IF(Stock!#REF!>0,Stock!#REF!,0),\"\")","v":{"$error":"#REF!"}},{"$f":"IF(Stock!#REF!<>\"\",Pilotage!$M$27,\"\")","v":{"$error":"#REF!"}},{"$f":"IF(Stock!#REF!<>\"\",ROUND(Stock!#REF!*J79,0),\"\")","v":{"$error":"#REF!"}},{"$f":"IF(Stock!#REF!<>\"\",$H79*K79,\"\")","v":{"$error":"#REF!"}},{"$f":"IF(Stock!#REF!<>\"\",Pilotage!N$27,\"\")","v":{"$error":"#REF!"}},{"$f":"IF(Stock!#REF!<>\"\",ROUND(K79*M79,0),\"\")","v":{"$error":"#REF!"}},{"$f":"IF(Stock!#REF!<>\"\",$H79*N79,\"\")","v":{"$error":"#REF!"}},{"$f":"IF(Stock!#REF!<>\"\",Pilotage!O$27,\"\")","v":{"$error":"#REF!"}},{"$f":"IF(Stock!#REF!<>\"\",ROUND(K79*P79,0),\"\")","v":{"$error":"#REF!"}},{"$f":"IF(Stock!#REF!<>\"\",$H79*Q79,\"\")","v":{"$error":"#REF!"}},{"$f":"IF(Stock!#REF!<>\"\",Pilotage!P$27,\"\")","v":{"$error":"#REF!"}},{"$f":"IF(Stock!#REF!<>\"\",ROUND(Q79*S79,0),\"\")","v":{"$error":"#REF!"}},{"$f":"IF(Stock!#REF!<>\"\",$H79*T79,\"\")","v":{"$error":"#REF!"}},{"$f":"IF(Stock!#REF!<>\"\",Pilotage!Q$27,\"\")","v":{"$error":"#REF!"}},{"$f":"IF(Stock!#REF!<>\"\",ROUND(T79*V79,0),\"\")","v":{"$error":"#REF!"}},{"$f":"IF(Stock!#REF!<>\"\",$H79*W79,\"\")","v":{"$error":"#REF!"}},{"$f":"IF(Stock!#REF!<>\"\",Pilotage!R$27,\"\")","v":{"$error":"#REF!"}},{"$f":"IF(Stock!#REF!<>\"\",ROUND(W79*Y79,0),\"\")","v":{"$error":"#REF!"}},{"$f":"IF(Stock!#REF!<>\"\",$H79*Z79,\"\")","v":{"$error":"#REF!"}}]
[{"$f":"IF(Stock!#REF!<>\"\",Stock!#REF!,\"\")","v":{"$error":"#REF!"}},{"$f":"IF(Stock!#REF!<>\"\",Stock!#REF!,\"\")","v":{"$error":"#REF!"}},{"$f":"IF(Stock!#REF!<>\"\",Stock!#REF!,\"\")","v":{"$error":"#REF!"}},{"$f":"IF(Stock!#REF!<>\"\",SUM(Stock!#REF!,Stock!#REF!,Stock!#REF!),\"\")","v":{"$error":"#REF!"}},{"$f":"IF(Stock!#REF!<>\"\",#REF!*(1+Pilotage!$M$20),\"\")","v":{"$error":"#REF!"}},null,{"$f":"IF(Stock!#REF!<>\"\",IF(Stock!#REF!>0,Stock!#REF!/Stock!#REF!,0),\"\")","v":{"$error":"#REF!"}},{"$f":"IF(Stock!#REF!<>\"\",E80*Pilotage!$D$15,\"\")","v":{"$error":"#REF!"}},{"$f":"IF(Stock!#REF!<>\"\",IF(Stock!#REF!>0,Stock!#REF!,0),\"\")","v":{"$error":"#REF!"}},{"$f":"IF(Stock!#REF!<>\"\",Pilotage!$M$27,\"\")","v":{"$error":"#REF!"}},{"$f":"IF(Stock!#REF!<>\"\",ROUND(Stock!#REF!*J80,0),\"\")","v":{"$error":"#REF!"}},{"$f":"IF(Stock!#REF!<>\"\",$H80*K80,\"\")","v":{"$error":"#REF!"}},{"$f":"IF(Stock!#REF!<>\"\",Pilotage!N$27,\"\")","v":{"$error":"#REF!"}},{"$f":"IF(Stock!#REF!<>\"\",ROUND(K80*M80,0),\"\")","v":{"$error":"#REF!"}},{"$f":"IF(Stock!#REF!<>\"\",$H80*N80,\"\")","v":{"$error":"#REF!"}},{"$f":"IF(Stock!#REF!<>\"\",Pilotage!O$27,\"\")","v":{"$error":"#REF!"}},{"$f":"IF(Stock!#REF!<>\"\",ROUND(K80*P80,0),\"\")","v":{"$error":"#REF!"}},{"$f":"IF(Stock!#REF!<>\"\",$H80*Q80,\"\")","v":{"$error":"#REF!"}},{"$f":"IF(Stock!#REF!<>\"\",Pilotage!P$27,\"\")","v":{"$error":"#REF!"}},{"$f":"IF(Stock!#REF!<>\"\",ROUND(Q80*S80,0),\"\")","v":{"$error":"#REF!"}},{"$f":"IF(Stock!#REF!<>\"\",$H80*T80,\"\")","v":{"$error":"#REF!"}},{"$f":"IF(Stock!#REF!<>\"\",Pilotage!Q$27,\"\")","v":{"$error":"#REF!"}},{"$f":"IF(Stock!#REF!<>\"\",ROUND(T80*V80,0),\"\")","v":{"$error":"#REF!"}},{"$f":"IF(Stock!#REF!<>\"\",$H80*W80,\"\")","v":{"$error":"#REF!"}},{"$f":"IF(Stock!#REF!<>\"\",Pilotage!R$27,\"\")","v":{"$error":"#REF!"}},{"$f":"IF(Stock!#REF!<>\"\",ROUND(W80*Y80,0),\"\")","v":{"$error":"#REF!"}},{"$f":"IF(Stock!#REF!<>\"\",$H80*Z80,\"\")","v":{"$error":"#REF!"}}]
[{"$f":"IF(Stock!#REF!<>\"\",Stock!#REF!,\"\")","v":{"$error":"#REF!"}},{"$f":"IF(Stock!#REF!<>\"\",Stock!#REF!,\"\")","v":{"$error":"#REF!"}},{"$f":"IF(Stock!#REF!<>\"\",Stock!#REF!,\"\")","v":{"$error":"#REF!"}},{"$f":"IF(Stock!#REF!<>\"\",SUM(Stock!#REF!,Stock!#REF!,Stock!#REF!),\"\")","v":{"$error":"#REF!"}},{"$f":"IF(Stock!#REF!<>\"\",#REF!*(1+Pilotage!$M$20),\"\")","v":{"$error":"#REF!"}},null,{"$f":"IF(Stock!#REF!<>\"\",IF(Stock!#REF!>0,Stock!#REF!/Stock!#REF!,0),\"\")","v":{"$error":"#REF!"}},{"$f":"IF(Stock!#REF!<>\"\",E81*Pilotage!$D$15,\"\")","v":{"$error":"#REF!"}},{"$f":"IF(Stock!#REF!<>\"\",IF(Stock!#REF!>0,Stock!#REF!,0),\"\")","v":{"$error":"#REF!"}},{"$f":"IF(Stock!#REF!<>\"\",Pilotage!$M$27,\"\")","v":{"$error":"#REF!"}},{"$f":"IF(Stock!#REF!<>\"\",ROUND(Stock!#REF!*J81,0),\"\")","v":{"$error":"#REF!"}},{"$f":"IF(Stock!#REF!<>\"\",$H81*K81,\"\")","v":{"$error":"#REF!"}},{"$f":"IF(Stock!#REF!<>\"\",Pilotage!N$27,\"\")","v":{"$error":"#REF!"}},{"$f":"IF(Stock!#REF!<>\"\",ROUND(K81*M81,0),\"\")","v":{"$error":"#REF!"}},{"$f":"IF(Stock!#REF!<>\"\",$H81*N81,\"\")","v":{"$error":"#REF!"}},{"$f":"IF(Stock!#REF!<>\"\",Pilotage!O$27,\"\")","v":{"$error":"#REF!"}},{"$f":"IF(Stock!#REF!<>\"\",ROUND(K81*P81,0),\"\")","v":{"$error":"#REF!"}},{"$f":"IF(Stock!#REF!<>\"\",$H81*Q81,\"\")","v":{"$error":"#REF!"}},{"$f":"IF(Stock!#REF!<>\"\",Pilotage!P$27,\"\")","v":{"$error":"#REF!"}},{"$f":"IF(Stock!#REF!<>\"\",ROUND(Q81*S81,0),\"\")","v":{"$error":"#REF!"}},{"$f":"IF(Stock!#REF!<>\"\",$H81*T81,\"\")","v":{"$error":"#REF!"}},{"$f":"IF(Stock!#REF!<>\"\",Pilotage!Q$27,\"\")","v":{"$error":"#REF!"}},{"$f":"IF(Stock!#REF!<>\"\",ROUND(T81*V81,0),\"\")","v":{"$error":"#REF!"}},{"$f":"IF(Stock!#REF!<>\"\",$H81*W81,\"\")","v":{"$error":"#REF!"}},{"$f":"IF(Stock!#REF!<>\"\",Pilotage!R$27,\"\")","v":{"$error":"#REF!"}},{"$f":"IF(Stock!#REF!<>\"\",ROUND(W81*Y81,0),\"\")","v":{"$error":"#REF!"}},{"$f":"IF(Stock!#REF!<>\"\",$H81*Z81,\"\")","v":{"$error":"#REF!"}}]
[{"$f":"IF(Stock!#REF!<>\"\",Stock!#REF!,\"\")","v":{"$error":"#REF!"}},{"$f":"IF(Stock!#REF!<>\"\",Stock!#REF!,\"\")","v":{"$error":"#REF!"}},{"$f":"IF(Stock!#REF!<>\"\",Stock!#REF!,\"\")","v":{"$error":"#REF!"}},{"$f":"IF(Stock!#REF!<>\"\",SUM(Stock!#REF!,Stock!#REF!,Stock!#REF!),\"\")","v":{"$error":"#REF!"}},{"$f":"IF(Stock!#REF!<>\"\",#REF!*(1+Pilotage!$M$20),\"\")","v":{"$error":"#REF!"}},null,{"$f":"IF(Stock!#REF!<>\"\",IF(Stock!#REF!>0,Stock!#REF!/Stock!#REF!,0),\"\")","v":{"$error":"#REF!"}},{"$f":"IF(Stock!#REF!<>\"\",E82*Pilotage!$D$15,\"\")","v":{"$error":"#REF!"}},{"$f":"IF(Stock!#REF!<>\"\",IF(Stock!#REF!>0,Stock!#REF!,0),\"\")","v":{"$error":"#REF!"}},{"$f":"IF(Stock!#REF!<>\"\",Pilotage!$M$27,\"\")","v":{"$error":"#REF!"}},{"$f":"IF(Stock!#REF!<>\"\",ROUND(Stock!#REF!*J82,0),\"\")","v":{"$error":"#REF!"}},{"$f":"IF(Stock!#REF!<>\"\",$H82*K82,\"\")","v":{"$error":"#REF!"}},{"$f":"IF(Stock!#REF!<>\"\",Pilotage!N$27,\"\")","v":{"$error":"#REF!"}},{"$f":"IF(Stock!#REF!<>\"\",ROUND(K82*M82,0),\"\")","v":{"$error":"#REF!"}},{"$f":"IF(Stock!#REF!<>\"\",$H82*N82,\"\")","v":{"$error":"#REF!"}},{"$f":"IF(Stock!#REF!<>\"\",Pilotage!O$27,\"\")","v":{"$error":"#REF!"}},{"$f":"IF(Stock!#REF!<>\"\",ROUND(K82*P82,0),\"\")","v":{"$error":"#REF!"}},{"$f":"IF(Stock!#REF!<>\"\",$H82*Q82,\"\")","v":{"$error":"#REF!"}},{"$f":"IF(Stock!#REF!<>\"\",Pilotage!P$27,\"\")","v":{"$error":"#REF!"}},{"$f":"IF(Stock!#REF!<>\"\",ROUND(Q82*S82,0),\"\")","v":{"$error":"#REF!"}},{"$f":"IF(Stock!#REF!<>\"\",$H82*T82,\"\")","v":{"$error":"#REF!"}},{"$f":"IF(Stock!#REF!<>\"\",Pilotage!Q$27,\"\")","v":{"$error":"#REF!"}},{"$f":"IF(Stock!#REF!<>\"\",ROUND(T82*V82,0),\"\")","v":{"$error":"#REF!"}},{"$f":"IF(Stock!#REF!<>\"\",$H82*W82,\"\")","v":{"$error":"#REF!"}},{"$f":"IF(Stock!#REF!<>\"\",Pilotage!R$27,\"\")","v":{"$error":"#REF!"}},{"$f":"IF(Stock!#REF!<>\"\",ROUND(W82*Y82,0),\"\")","v":{"$error":"#REF!"}},{"$f":"IF(Stock!#REF!<>\"\",$H82*Z82,\"\")","v":{"$error":"#REF!"}}]
[{"$f":"IF(Stock!#REF!<>\"\",Stock!#REF!,\"\")","v":{"$error":"#REF!"}},{"$f":"IF(Stock!#REF!<>\"\",Stock!#REF!,\"\")","v":{"$error":"#REF!"}},{"$f":"IF(Stock!#REF!<>\"\",Stock!#REF!,\"\")","v":{"$error":"#REF!"}},{"$f":"IF(Stock!#REF!<>\"\",SUM(Stock!#REF!,Stock!#REF!,Stock!#REF!),\"\")","v":{"$error":"#REF!"}},{"$f":"IF(Stock!#REF!<>\"\",#REF!*(1+Pilotage!$M$20),\"\")","v":{"$error":"#REF!"}},null,{"$f":"IF(Stock!#REF!<>\"\",IF(Stock!#REF!>0,Stock!#REF!/Stock!#REF!,0),\"\")","v":{"$error":"#REF!"}},{"$f":"IF(Stock!#REF!<>\"\",E83*Pilotage!$D$15,\"\")","v":{"$error":"#REF!"}},{"$f":"IF(Stock!#REF!<>\"\",IF(Stock!#REF!>0,Stock!#REF!,0),\"\")","v":{"$error":"#REF!"}},{"$f":"IF(Stock!#REF!<>\"\",Pilotage!$M$27,\"\")","v":{"$error":"#REF!"}},{"$f":"IF(Stock!#REF!<>\"\",ROUND(Stock!#REF!*J83,0),\"\")","v":{"$error":"#REF!"}},{"$f":"IF(Stock!#REF!<>\"\",$H83*K83,\"\")","v":{"$error":"#REF!"}},{"$f":"IF(Stock!#REF!<>\"\",Pilotage!N$27,\"\")","v":{"$error":"#REF!"}},{"$f":"IF(Stock!#REF!<>\"\",ROUND(K83*M83,0),\"\")","v":{"$error":"#REF!"}},{"$f":"IF(Stock!#REF!<>\"\",$H83*N83,\"\")","v":{"$error":"#REF!"}},{"$f":"IF(Stock!#REF!<>\"\",Pilotage!O$27,\"\")","v":{"$error":"#REF!"}},{"$f":"IF(Stock!#REF!<>\"\",ROUND(K83*P83,0),\"\")","v":{"$error":"#REF!"}},{"$f":"IF(Stock!#REF!<>\"\",$H83*Q83,\"\")","v":{"$error":"#REF!"}},{"$f":"IF(Stock!#REF!<>\"\",Pilotage!P$27,\"\")","v":{"$error":"#REF!"}},{"$f":"IF(Stock!#REF!<>\"\",ROUND(Q83*S83,0),\"\")","v":{"$error":"#REF!"}},{"$f":"IF(Stock!#REF!<>\"\",$H83*T83,\"\")","v":{"$error":"#REF!"}},{"$f":"IF(Stock!#REF!<>\"\",Pilotage!Q$27,\"\")","v":{"$error":"#REF!"}},{"$f":"IF(Stock!#REF!<>\"\",ROUND(T83*V83,0),\"\")","v":{"$error":"#REF!"}},{"$f":"IF(Stock!#REF!<>\"\",$H83*W83,\"\")","v":{"$error":"#REF!"}},{"$f":"IF(Stock!#REF!<>\"\",Pilotage!R$27,\"\")","v":{"$error":"#REF!"}},{"$f":"IF(Stock!#REF!<>\"\",ROUND(W83*Y83,0),\"\")","v":{"$error":"#REF!"}},{"$f":"IF(Stock!#REF!<>\"\",$H83*Z83,\"\")","v":{"$error":"#REF!"}}]
[{"$f":"IF(Stock!#REF!<>\"\",Stock!#REF!,\"\")","v":{"$error":"#REF!"}},{"$f":"IF(Stock!#REF!<>\"\",Stock!#REF!,\"\")","v":{"$error":"#REF!"}},{"$f":"IF(Stock!#REF!<>\"\",Stock!#REF!,\"\")","v":{"$error":"#REF!"}},{"$f":"IF(Stock!#REF!<>\"\",SUM(Stock!#REF!,Stock!#REF!,Stock!#REF!),\"\")","v":{"$error":"#REF!"}},{"$f":"IF(Stock!#REF!<>\"\",#REF!*(1+Pilotage!$M$20),\"\")","v":{"$error":"#REF!"}},null,{"$f":"IF(Stock!#REF!<>\"\",IF(Stock!#REF!>0,Stock!#REF!/Stock!#REF!,0),\"\")","v":{"$error":"#REF!"}},{"$f":"IF(Stock!#REF!<>\"\",E84*Pilotage!$D$15,\"\")","v":{"$error":"#REF!"}},{"$f":"IF(Stock!#REF!<>\"\",IF(Stock!#REF!>0,Stock!#REF!,0),\"\")","v":{"$error":"#REF!"}},{"$f":"IF(Stock!#REF!<>\"\",Pilotage!$M$27,\"\")","v":{"$error":"#REF!"}},{"$f":"IF(Stock!#REF!<>\"\",ROUND(Stock!#REF!*J84,0),\"\")","v":{"$error":"#REF!"}},{"$f":"IF(Stock!#REF!<>\"\",$H84*K84,\"\")","v":{"$error":"#REF!"}},{"$f":"IF(Stock!#REF!<>\"\",Pilotage!N$27,\"\")","v":{"$error":"#REF!"}},{"$f":"IF(Stock!#REF!<>\"\",ROUND(K84*M84,0),\"\")","v":{"$error":"#REF!"}},{"$f":"IF(Stock!#REF!<>\"\",$H84*N84,\"\")","v":{"$error":"#REF!"}},{"$f":"IF(Stock!#REF!<>\"\",Pilotage!O$27,\"\")","v":{"$error":"#REF!"}},{"$f":"IF(Stock!#REF!<>\"\",ROUND(K84*P84,0),\"\")","v":{"$error":"#REF!"}},{"$f":"IF(Stock!#REF!<>\"\",$H84*Q84,\"\")","v":{"$error":"#REF!"}},{"$f":"IF(Stock!#REF!<>\"\",Pilotage!P$27,\"\")","v":{"$error":"#REF!"}},{"$f":"IF(Stock!#REF!<>\"\",ROUND(Q84*S84,0),\"\")","v":{"$error":"#REF!"}},{"$f":"IF(Stock!#REF!<>\"\",$H84*T84,\"\")","v":{"$error":"#REF!"}},{"$f":"IF(Stock!#REF!<>\"\",Pilotage!Q$27,\"\")","v":{"$error":"#REF!"}},{"$f":"IF(Stock!#REF!<>\"\",ROUND(T84*V84,0),\"\")","v":{"$error":"#REF!"}},{"$f":"IF(Stock!#REF!<>\"\",$H84*W84,\"\")","v":{"$error":"#REF!"}},{"$f":"IF(Stock!#REF!<>\"\",Pilotage!R$27,\"\")","v":{"$error":"#REF!"}},{"$f":"IF(Stock!#REF!<>\"\",ROUND(W84*Y84,0),\"\")","v":{"$error":"#REF!"}},{"$f":"IF(Stock!#REF!<>\"\",$H84*Z84,\"\")","v":{"$error":"#REF!"}}]
[{"$f":"IF(Stock!#REF!<>\"\",Stock!#REF!,\"\")","v":{"$error":"#REF!"}},{"$f":"IF(Stock!#REF!<>\"\",Stock!#REF!,\"\")","v":{"$error":"#REF!"}},{"$f":"IF(Stock!#REF!<>\"\",Stock!#REF!,\"\")","v":{"$error":"#REF!"}},{"$f":"IF(Stock!#REF!<>\"\",SUM(Stock!#REF!,Stock!#REF!,Stock!#REF!),\"\")","v":{"$error":"#REF!"}},{"$f":"IF(Stock!#REF!<>\"\",#REF!*(1+Pilotage!$M$20),\"\")","v":{"$error":"#REF!"}},null,{"$f":"IF(Stock!#REF!<>\"\",IF(Stock!#REF!>0,Stock!#REF!/Stock!#REF!,0),\"\")","v":{"$error":"#REF!"}},{"$f":"IF(Stock!#REF!<>\"\",E85*Pilotage!$D$15,\"\")","v":{"$error":"#REF!"}},{"$f":"IF(Stock!#REF!<>\"\",IF(Stock!#REF!>0,Stock!#REF!,0),\"\")","v":{"$error":"#REF!"}},{"$f":"IF(Stock!#REF!<>\"\",Pilotage!$M$27,\"\")","v":{"$error":"#REF!"}},{"$f":"IF(Stock!#REF!<>\"\",ROUND(Stock!#REF!*J85,0),\"\")","v":{"$error":"#REF!"}},{"$f":"IF(Stock!#REF!<>\"\",$H85*K85,\"\")","v":{"$error":"#REF!"}},{"$f":"IF(Stock!#REF!<>\"\",Pilotage!N$27,\"\")","v":{"$error":"#REF!"}},{"$f":"IF(Stock!#REF!<>\"\",ROUND(K85*M85,0),\"\")","v":{"$error":"#REF!"}},{"$f":"IF(Stock!#REF!<>\"\",$H85*N85,\"\")","v":{"$error":"#REF!"}},{"$f":"IF(Stock!#REF!<>\"\",Pilotage!O$27,\"\")","v":{"$error":"#REF!"}},{"$f":"IF(Stock!#REF!<>\"\",ROUND(K85*P85,0),\"\")","v":{"$error":"#REF!"}},{"$f":"IF(Stock!#REF!<>\"\",$H85*Q85,\"\")","v":{"$error":"#REF!"}},{"$f":"IF(Stock!#REF!<>\"\",Pilotage!P$27,\"\")","v":{"$error":"#REF!"}},{"$f":"IF(Stock!#REF!<>\"\",ROUND(Q85*S85,0),\"\")","v":{"$error":"#REF!"}},{"$f":"IF(Stock!#REF!<>\"\",$H85*T85,\"\")","v":{"$error":"#REF!"}},{"$f":"IF(Stock!#REF!<>\"\",Pilotage!Q$27,\"\")","v":{"$error":"#REF!"}},{"$f":"IF(Stock!#REF!<>\"\",ROUND(T85*V85,0),\"\")","v":{"$error":"#REF!"}},{"$f":"IF(Stock!#REF!<>\"\",$H85*W85,\"\")","v":{"$error":"#REF!"}},{"$f":"IF(Stock!#REF!<>\"\",Pilotage!R$27,\"\")","v":{"$error":"#REF!"}},{"$f":"IF(Stock!#REF!<>\"\",ROUND(W85*Y85,0),\"\")","v":{"$error":"#REF!"}},{"$f":"IF(Stock!#REF!<>\"\",$H85*Z85,\"\")","v":{"$error":"#REF!"}}]
[{"$f":"IF(Stock!#REF!<>\"\",Stock!#REF!,\"\")","v":{"$error":"#REF!"}},{"$f":"IF(Stock!#REF!<>\"\",Stock!#REF!,\"\")","v":{"$error":"#REF!"}},{"$f":"IF(Stock!#REF!<>\"\",Stock!#REF!,\"\")","v":{"$error":"#REF!"}},{"$f":"IF(Stock!#REF!<>\"\",SUM(Stock!#REF!,Stock!#REF!,Stock!#REF!),\"\")","v":{"$error":"#REF!"}},{"$f":"IF(Stock!#REF!<>\"\",#REF!*(1+Pilotage!$M$20),\"\")","v":{"$error":"#REF!"}},null,{"$f":"IF(Stock!#REF!<>\"\",IF(Stock!#REF!>0,Stock!#REF!/Stock!#REF!,0),\"\")","v":{"$error":"#REF!"}},{"$f":"IF(Stock!#REF!<>\"\",E86*Pilotage!$D$15,\"\")","v":{"$error":"#REF!"}},{"$f":"IF(Stock!#REF!<>\"\",IF(Stock!#REF!>0,Stock!#REF!,0),\"\")","v":{"$error":"#REF!"}},{"$f":"IF(Stock!#REF!<>\"\",Pilotage!$M$27,\"\")","v":{"$error":"#REF!"}},{"$f":"IF(Stock!#REF!<>\"\",ROUND(Stock!#REF!*J86,0),\"\")","v":{"$error":"#REF!"}},{"$f":"IF(Stock!#REF!<>\"\",$H86*K86,\"\")","v":{"$error":"#REF!"}},{"$f":"IF(Stock!#REF!<>\"\",Pilotage!N$27,\"\")","v":{"$error":"#REF!"}},{"$f":"IF(Stock!#REF!<>\"\",ROUND(K86*M86,0),\"\")","v":{"$error":"#REF!"}},{"$f":"IF(Stock!#REF!<>\"\",$H86*N86,\"\")","v":{"$error":"#REF!"}},{"$f":"IF(Stock!#REF!<>\"\",Pilotage!O$27,\"\")","v":{"$error":"#REF!"}},{"$f":"IF(Stock!#REF!<>\"\",ROUND(K86*P86,0),\"\")","v":{"$error":"#REF!"}},{"$f":"IF(Stock!#REF!<>\"\",$H86*Q86,\"\")","v":{"$error":"#REF!"}},{"$f":"IF(Stock!#REF!<>\"\",Pilotage!P$27,\"\")","v":{"$error":"#REF!"}},{"$f":"IF(Stock!#REF!<>\"\",ROUND(Q86*S86,0),\"\")","v":{"$error":"#REF!"}},{"$f":"IF(Stock!#REF!<>\"\",$H86*T86,\"\")","v":{"$error":"#REF!"}},{"$f":"IF(Stock!#REF!<>\"\",Pilotage!Q$27,\"\")","v":{"$error":"#REF!"}},{"$f":"IF(Stock!#REF!<>\"\",ROUND(T86*V86,0),\"\")","v":{"$error":"#REF!"}},{"$f":"IF(Stock!#REF!<>\"\",$H86*W86,\"\")","v":{"$error":"#REF!"}},{"$f":"IF(Stock!#REF!<>\"\",Pilotage!R$27,\"\")","v":{"$error":"#REF!"}},{"$f":"IF(Stock!#REF!<>\"\",ROUND(W86*Y86,0),\"\")","v":{"$error":"#REF!"}},{"$f":"IF(Stock!#REF!<>\"\",$H86*Z86,\"\")","v":{"$error":"#REF!"}}]
[{"$f":"IF(Stock!#REF!<>\"\",Stock!#REF!,\"\")","v":{"$error":"#REF!"}},{"$f":"IF(Stock!#REF!<>\"\",Stock!#REF!,\"\")","v":{"$error":"#REF!"}},{"$f":"IF(Stock!#REF!<>\"\",Stock!#REF!,\"\")","v":{"$error":"#REF!"}},{"$f":"IF(Stock!#REF!<>\"\",SUM(Stock!#REF!,Stock!#REF!,Stock!#REF!),\"\")","v":{"$error":"#REF!"}},{"$f":"IF(Stock!#REF!<>\"\",#REF!*(1+Pilotage!$M$20),\"\")","v":{"$error":"#REF!"}},null,{"$f":"IF(Stock!#REF!<>\"\",IF(Stock!#REF!>0,Stock!#REF!/Stock!#REF!,0),\"\")","v":{"$error":"#REF!"}},{"$f":"IF(Stock!#REF!<>\"\",E87*Pilotage!$D$15,\"\")","v":{"$error":"#REF!"}},{"$f":"IF(Stock!#REF!<>\"\",IF(Stock!#REF!>0,Stock!#REF!,0),\"\")","v":{"$error":"#REF!"}},{"$f":"IF(Stock!#REF!<>\"\",Pilotage!$M$27,\"\")","v":{"$error":"#REF!"}},{"$f":"IF(Stock!#REF!<>\"\",ROUND(Stock!#REF!*J87,0),\"\")","v":{"$error":"#REF!"}},{"$f":"IF(Stock!#REF!<>\"\",$H87*K87,\"\")","v":{"$error":"#REF!"}},{"$f":"IF(Stock!#REF!<>\"\",Pilotage!N$27,\"\")","v":{"$error":"#REF!"}},{"$f":"IF(Stock!#REF!<>\"\",ROUND(K87*M87,0),\"\")","v":{"$error":"#REF!"}},{"$f":"IF(Stock!#REF!<>\"\",$H87*N87,\"\")","v":{"$error":"#REF!"}},{"$f":"IF(Stock!#REF!<>\"\",Pilotage!O$27,\"\")","v":{"$error":"#REF!"}},{"$f":"IF(Stock!#REF!<>\"\",ROUND(K87*P87,0),\"\")","v":{"$error":"#REF!"}},{"$f":"IF(Stock!#REF!<>\"\",$H87*Q87,\"\")","v":{"$error":"#REF!"}},{"$f":"IF(Stock!#REF!<>\"\",Pilotage!P$27,\"\")","v":{"$error":"#REF!"}},{"$f":"IF(Stock!#REF!<>\"\",ROUND(Q87*S87,0),\"\")","v":{"$error":"#REF!"}},{"$f":"IF(Stock!#REF!<>\"\",$H87*T87,\"\")","v":{"$error":"#REF!"}},{"$f":"IF(Stock!#REF!<>\"\",Pilotage!Q$27,\"\")","v":{"$error":"#REF!"}},{"$f":"IF(Stock!#REF!<>\"\",ROUND(T87*V87,0),\"\")","v":{"$error":"#REF!"}},{"$f":"IF(Stock!#REF!<>\"\",$H87*W87,\"\")","v":{"$error":"#REF!"}},{"$f":"IF(Stock!#REF!<>\"\",Pilotage!R$27,\"\")","v":{"$error":"#REF!"}},{"$f":"IF(Stock!#REF!<>\"\",ROUND(W87*Y87,0),\"\")","v":{"$error":"#REF!"}},{"$f":"IF(Stock!#REF!<>\"\",$H87*Z87,\"\")","v":{"$error":"#REF!"}}]
[{"$f":"IF(Stock!#REF!<>\"\",Stock!#REF!,\"\")","v":{"$error":"#REF!"}},{"$f":"IF(Stock!#REF!<>\"\",Stock!#REF!,\"\")","v":{"$error":"#REF!"}},{"$f":"IF(Stock!#REF!<>\"\",Stock!#REF!,\"\")","v":{"$error":"#REF!"}},{"$f":"IF(Stock!#REF!<>\"\",SUM(Stock!#REF!,Stock!#REF!,Stock!#REF!),\"\")","v":{"$error":"#REF!"}},{"$f":"IF(Stock!#REF!<>\"\",#REF!*(1+Pilotage!$M$20),\"\")","v":{"$error":"#REF!"}},null,{"$f":"IF(Stock!#REF!<>\"\",IF(Stock!#REF!>0,Stock!#REF!/Stock!#REF!,0),\"\")","v":{"$error":"#REF!"}},{"$f":"IF(Stock!#REF!<>\"\",E88*Pilotage!$D$15,\"\")","v":{"$error":"#REF!"}},{"$f":"IF(Stock!#REF!<>\"\",IF(Stock!#REF!>0,Stock!#REF!,0),\"\")","v":{"$error":"#REF!"}},{"$f":"IF(Stock!#REF!<>\"\",Pilotage!$M$27,\"\")","v":{"$error":"#REF!"}},{"$f":"IF(Stock!#REF!<>\"\",ROUND(Stock!#REF!*J88,0),\"\")","v":{"$error":"#REF!"}},{"$f":"IF(Stock!#REF!<>\"\",$H88*K88,\"\")","v":{"$error":"#REF!"}},{"$f":"IF(Stock!#REF!<>\"\",Pilotage!N$27,\"\")","v":{"$error":"#REF!"}},{"$f":"IF(Stock!#REF!<>\"\",ROUND(K88*M88,0),\"\")","v":{"$error":"#REF!"}},{"$f":"IF(Stock!#REF!<>\"\",$H88*N88,\"\")","v":{"$error":"#REF!"}},{"$f":"IF(Stock!#REF!<>\"\",Pilotage!O$27,\"\")","v":{"$error":"#REF!"}},{"$f":"IF(Stock!#REF!<>\"\",ROUND(K88*P88,0),\"\")","v":{"$error":"#REF!"}},{"$f":"IF(Stock!#REF!<>\"\",$H88*Q88,\"\")","v":{"$error":"#REF!"}},{"$f":"IF(Stock!#REF!<>\"\",Pilotage!P$27,\"\")","v":{"$error":"#REF!"}},{"$f":"IF(Stock!#REF!<>\"\",ROUND(Q88*S88,0),\"\")","v":{"$error":"#REF!"}},{"$f":"IF(Stock!#REF!<>\"\",$H88*T88,\"\")","v":{"$error":"#REF!"}},{"$f":"IF(Stock!#REF!<>\"\",Pilotage!Q$27,\"\")","v":{"$error":"#REF!"}},{"$f":"IF(Stock!#REF!<>\"\",ROUND(T88*V88,0),\"\")","v":{"$error":"#REF!"}},{"$f":"IF(Stock!#REF!<>\"\",$H88*W88,\"\")","v":{"$error":"#REF!"}},{"$f":"IF(Stock!#REF!<>\"\",Pilotage!R$27,\"\")","v":{"$error":"#REF!"}},{"$f":"IF(Stock!#REF!<>\"\",ROUND(W88*Y88,0),\"\")","v":{"$error":"#REF!"}},{"$f":"IF(Stock!#REF!<>\"\",$H88*Z88,\"\")","v":{"$error":"#REF!"}}]
[{"$f":"IF(Stock!#REF!<>\"\",Stock!#REF!,\"\")","v":{"$error":"#REF!"}},{"$f":"IF(Stock!#REF!<>\"\",Stock!#REF!,\"\")","v":{"$error":"#REF!"}},{"$f":"IF(Stock!#REF!<>\"\",Stock!#REF!,\"\")","v":{"$error":"#REF!"}},{"$f":"IF(Stock!#REF!<>\"\",SUM(Stock!#REF!,Stock!#REF!,Stock!#REF!),\"\")","v":{"$error":"#REF!"}},{"$f":"IF(Stock!#REF!<>\"\",#REF!*(1+Pilotage!$M$20),\"\")","v":{"$error":"#REF!"}},null,{"$f":"IF(Stock!#REF!<>\"\",IF(Stock!#REF!>0,Stock!#REF!/Stock!#REF!,0),\"\")","v":{"$error":"#REF!"}},{"$f":"IF(Stock!#REF!<>\"\",E89*Pilotage!$D$15,\"\")","v":{"$error":"#REF!"}},{"$f":"IF(Stock!#REF!<>\"\",IF(Stock!#REF!>0,Stock!#REF!,0),\"\")","v":{"$error":"#REF!"}},{"$f":"IF(Stock!#REF!<>\"\",Pilotage!$M$27,\"\")","v":{"$error":"#REF!"}},{"$f":"IF(Stock!#REF!<>\"\",ROUND(Stock!#REF!*J89,0),\"\")","v":{"$error":"#REF!"}},{"$f":"IF(Stock!#REF!<>\"\",$H89*K89,\"\")","v":{"$error":"#REF!"}},{"$f":"IF(Stock!#REF!<>\"\",Pilotage!N$27,\"\")","v":{"$error":"#REF!"}},{"$f":"IF(Stock!#REF!<>\"\",ROUND(K89*M89,0),\"\")","v":{"$error":"#REF!"}},{"$f":"IF(Stock!#REF!<>\"\",$H89*N89,\"\")","v":{"$error":"#REF!"}},{"$f":"IF(Stock!#REF!<>\"\",Pilotage!O$27,\"\")","v":{"$error":"#REF!"}},{"$f":"IF(Stock!#REF!<>\"\",ROUND(K89*P89,0),\"\")","v":{"$error":"#REF!"}},{"$f":"IF(Stock!#REF!<>\"\",$H89*Q89,\"\")","v":{"$error":"#REF!"}},{"$f":"IF(Stock!#REF!<>\"\",Pilotage!P$27,\"\")","v":{"$error":"#REF!"}},{"$f":"IF(Stock!#REF!<>\"\",ROUND(Q89*S89,0),\"\")","v":{"$error":"#REF!"}},{"$f":"IF(Stock!#REF!<>\"\",$H89*T89,\"\")","v":{"$error":"#REF!"}},{"$f":"IF(Stock!#REF!<>\"\",Pilotage!Q$27,\"\")","v":{"$error":"#REF!"}},{"$f":"IF(Stock!#REF!<>\"\",ROUND(T89*V89,0),\"\")","v":{"$error":"#REF!"}},{"$f":"IF(Stock!#REF!<>\"\",$H89*W89,\"\")","v":{"$error":"#REF!"}},{"$f":"IF(Stock!#REF!<>\"\",Pilotage!R$27,\"\")","v":{"$error":"#REF!"}},{"$f":"IF(Stock!#REF!<>\"\",ROUND(W89*Y89,0),\"\")","v":{"$error":"#REF!"}},{"$f":"IF(Stock!#REF!<>\"\",$H89*Z89,\"\")","v":{"$error":"#REF!"}}]
[{"$f":"IF(Stock!#REF!<>\"\",Stock!#REF!,\"\")","v":{"$error":"#REF!"}},{"$f":"IF(Stock!#REF!<>\"\",Stock!#REF!,\"\")","v":{"$error":"#REF!"}},{"$f":"IF(Stock!#REF!<>\"\",Stock!#REF!,\"\")","v":{"$error":"#REF!"}},{"$f":"IF(Stock!#REF!<>\"\",SUM(Stock!#REF!,Stock!#REF!,Stock!#REF!),\"\")","v":{"$error":"#REF!"}},{"$f":"IF(Stock!#REF!<>\"\",#REF!*(1+Pilotage!$M$20),\"\")","v":{"$error":"#REF!"}},null,{"$f":"IF(Stock!#REF!<>\"\",IF(Stock!#REF!>0,Stock!#REF!/Stock!#REF!,0),\"\")","v":{"$error":"#REF!"}},{"$f":"IF(Stock!#REF!<>\"\",E90*Pilotage!$D$15,\"\")","v":{"$error":"#REF!"}},{"$f":"IF(Stock!#REF!<>\"\",IF(Stock!#REF!>0,Stock!#REF!,0),\"\")","v":{"$error":"#REF!"}},{"$f":"IF(Stock!#REF!<>\"\",Pilotage!$M$27,\"\")","v":{"$error":"#REF!"}},{"$f":"IF(Stock!#REF!<>\"\",ROUND(Stock!#REF!*J90,0),\"\")","v":{"$error":"#REF!"}},{"$f":"IF(Stock!#REF!<>\"\",$H90*K90,\"\")","v":{"$error":"#REF!"}},{"$f":"IF(Stock!#REF!<>\"\",Pilotage!N$27,\"\")","v":{"$error":"#REF!"}},{"$f":"IF(Stock!#REF!<>\"\",ROUND(K90*M90,0),\"\")","v":{"$error":"#REF!"}},{"$f":"IF(Stock!#REF!<>\"\",$H90*N90,\"\")","v":{"$error":"#REF!"}},{"$f":"IF(Stock!#REF!<>\"\",Pilotage!O$27,\"\")","v":{"$error":"#REF!"}},{"$f":"IF(Stock!#REF!<>\"\",ROUND(K90*P90,0),\"\")","v":{"$error":"#REF!"}},{"$f":"IF(Stock!#REF!<>\"\",$H90*Q90,\"\")","v":{"$error":"#REF!"}},{"$f":"IF(Stock!#REF!<>\"\",Pilotage!P$27,\"\")","v":{"$error":"#REF!"}},{"$f":"IF(Stock!#REF!<>\"\",ROUND(Q90*S90,0),\"\")","v":{"$error":"#REF!"}},{"$f":"IF(Stock!#REF!<>\"\",$H90*T90,\"\")","v":{"$error":"#REF!"}},{"$f":"IF(Stock!#REF!<>\"\",Pilotage!Q$27,\"\")","v":{"$error":"#REF!"}},{"$f":"IF(Stock!#REF!<>\"\",ROUND(T90*V90,0),\"\")","v":{"$error":"#REF!"}},{"$f":"IF(Stock!#REF!<>\"\",$H90*W90,\"\")","v":{"$error":"#REF!"}},{"$f":"IF(Stock!#REF!<>\"\",Pilotage!R$27,\"\")","v":{"$error":"#REF!"}},{"$f":"IF(Stock!#REF!<>\"\",ROUND(W90*Y90,0),\"\")","v":{"$error":"#REF!"}},{"$f":"IF(Stock!#REF!<>\"\",$H90*Z90,\"\")","v":{"$error":"#REF!"}}]
[{"$f":"IF(Stock!#REF!<>\"\",Stock!#REF!,\"\")","v":{"$error":"#REF!"}},{"$f":"IF(Stock!#REF!<>\"\",Stock!#REF!,\"\")","v":{"$error":"#REF!"}},{"$f":"IF(Stock!#REF!<>\"\",Stock!#REF!,\"\")","v":{"$error":"#REF!"}},{"$f":"IF(Stock!#REF!<>\"\",SUM(Stock!#REF!,Stock!#REF!,Stock!#REF!),\"\")","v":{"$error":"#REF!"}},{"$f":"IF(Stock!#REF!<>\"\",#REF!*(1+Pilotage!$M$20),\"\")","v":{"$error":"#REF!"}},null,{"$f":"IF(Stock!#REF!<>\"\",IF(Stock!#REF!>0,Stock!#REF!/Stock!#REF!,0),\"\")","v":{"$error":"#REF!"}},{"$f":"IF(Stock!#REF!<>\"\",E91*Pilotage!$D$15,\"\")","v":{"$error":"#REF!"}},{"$f":"IF(Stock!#REF!<>\"\",IF(Stock!#REF!>0,Stock!#REF!,0),\"\")","v":{"$error":"#REF!"}},{"$f":"IF(Stock!#REF!<>\"\",Pilotage!$M$27,\"\")","v":{"$error":"#REF!"}},{"$f":"IF(Stock!#REF!<>\"\",ROUND(Stock!#REF!*J91,0),\"\")","v":{"$error":"#REF!"}},{"$f":"IF(Stock!#REF!<>\"\",$H91*K91,\"\")","v":{"$error":"#REF!"}},{"$f":"IF(Stock!#REF!<>\"\",Pilotage!N$27,\"\")","v":{"$error":"#REF!"}},{"$f":"IF(Stock!#REF!<>\"\",ROUND(K91*M91,0),\"\")","v":{"$error":"#REF!"}},{"$f":"IF(Stock!#REF!<>\"\",$H91*N91,\"\")","v":{"$error":"#REF!"}},{"$f":"IF(Stock!#REF!<>\"\",Pilotage!O$27,\"\")","v":{"$error":"#REF!"}},{"$f":"IF(Stock!#REF!<>\"\",ROUND(K91*P91,0),\"\")","v":{"$error":"#REF!"}},{"$f":"IF(Stock!#REF!<>\"\",$H91*Q91,\"\")","v":{"$error":"#REF!"}},{"$f":"IF(Stock!#REF!<>\"\",Pilotage!P$27,\"\")","v":{"$error":"#REF!"}},{"$f":"IF(Stock!#REF!<>\"\",ROUND(Q91*S91,0),\"\")","v":{"$error":"#REF!"}},{"$f":"IF(Stock!#REF!<>\"\",$H91*T91,\"\")","v":{"$error":"#REF!"}},{"$f":"IF(Stock!#REF!<>\"\",Pilotage!Q$27,\"\")","v":{"$error":"#REF!"}},{"$f":"IF(Stock!#REF!<>\"\",ROUND(T91*V91,0),\"\")","v":{"$error":"#REF!"}},{"$f":"IF(Stock!#REF!<>\"\",$H91*W91,\"\")","v":{"$error":"#REF!"}},{"$f":"IF(Stock!#REF!<>\"\",Pilotage!R$27,\"\")","v":{"$error":"#REF!"}},{"$f":"IF(Stock!#REF!<>\"\",ROUND(W91*Y91,0),\"\")","v":{"$error":"#REF!"}},{"$f":"IF(Stock!#REF!<>\"\",$H91*Z91,\"\")","v":{"$error":"#REF!"}}]
[{"$f":"IF(Stock!#REF!<>\"\",Stock!#REF!,\"\")","v":{"$error":"#REF!"}},{"$f":"IF(Stock!#REF!<>\"\",Stock!#REF!,\"\")","v":{"$error":"#REF!"}},{"$f":"IF(Stock!#REF!<>\"\",Stock!#REF!,\"\")","v":{"$error":"#REF!"}},{"$f":"IF(Stock!#REF!<>\"\",SUM(Stock!#REF!,Stock!#REF!,Stock!#REF!),\"\")","v":{"$error":"#REF!"}},{"$f":"IF(Stock!#REF!<>\"\",#REF!*(1+Pilotage!$M$20),\"\")","v":{"$error":"#REF!"}},null,{"$f":"IF(Stock!#REF!<>\"\",IF(Stock!#REF!>0,Stock!#REF!/Stock!#REF!,0),\"\")","v":{"$error":"#REF!"}},{"$f":"IF(Stock!#REF!<>\"\",E92*Pilotage!$D$15,\"\")","v":{"$error":"#REF!"}},{"$f":"IF(Stock!#REF!<>\"\",IF(Stock!#REF!>0,Stock!#REF!,0),\"\")","v":{"$error":"#REF!"}},{"$f":"IF(Stock!#REF!<>\"\",Pilotage!$M$27,\"\")","v":{"$error":"#REF!"}},{"$f":"IF(Stock!#REF!<>\"\",ROUND(Stock!#REF!*J92,0),\"\")","v":{"$error":"#REF!"}},{"$f":"IF(Stock!#REF!<>\"\",$H92*K92,\"\")","v":{"$error":"#REF!"}},{"$f":"IF(Stock!#REF!<>\"\",Pilotage!N$27,\"\")","v":{"$error":"#REF!"}},{"$f":"IF(Stock!#REF!<>\"\",ROUND(K92*M92,0),\"\")","v":{"$error":"#REF!"}},{"$f":"IF(Stock!#REF!<>\"\",$H92*N92,\"\")","v":{"$error":"#REF!"}},{"$f":"IF(Stock!#REF!<>\"\",Pilotage!O$27,\"\")","v":{"$error":"#REF!"}},{"$f":"IF(Stock!#REF!<>\"\",ROUND(K92*P92,0),\"\")","v":{"$error":"#REF!"}},{"$f":"IF(Stock!#REF!<>\"\",$H92*Q92,\"\")","v":{"$error":"#REF!"}},{"$f":"IF(Stock!#REF!<>\"\",Pilotage!P$27,\"\")","v":{"$error":"#REF!"}},{"$f":"IF(Stock!#REF!<>\"\",ROUND(Q92*S92,0),\"\")","v":{"$error":"#REF!"}},{"$f":"IF(Stock!#REF!<>\"\",$H92*T92,\"\")","v":{"$error":"#REF!"}},{"$f":"IF(Stock!#REF!<>\"\",Pilotage!Q$27,\"\")","v":{"$error":"#REF!"}},{"$f":"IF(Stock!#REF!<>\"\",ROUND(T92*V92,0),\"\")","v":{"$error":"#REF!"}},{"$f":"IF(Stock!#REF!<>\"\",$H92*W92,\"\")","v":{"$error":"#REF!"}},{"$f":"IF(Stock!#REF!<>\"\",Pilotage!R$27,\"\")","v":{"$error":"#REF!"}},{"$f":"IF(Stock!#REF!<>\"\",ROUND(W92*Y92,0),\"\")","v":{"$error":"#REF!"}},{"$f":"IF(Stock!#REF!<>\"\",$H92*Z92,\"\")","v":{"$error":"#REF!"}}]
[{"$f":"IF(Stock!#REF!<>\"\",Stock!#REF!,\"\")","v":{"$error":"#REF!"}},{"$f":"IF(Stock!#REF!<>\"\",Stock!#REF!,\"\")","v":{"$error":"#REF!"}},{"$f":"IF(Stock!#REF!<>\"\",Stock!#REF!,\"\")","v":{"$error":"#REF!"}},{"$f":"IF(Stock!#REF!<>\"\",SUM(Stock!#REF!,Stock!#REF!,Stock!#REF!),\"\")","v":{"$error":"#REF!"}},{"$f":"IF(Stock!#REF!<>\"\",#REF!*(1+Pilotage!$M$20),\"\")","v":{"$error":"#REF!"}},null,{"$f":"IF(Stock!#REF!<>\"\",IF(Stock!#REF!>0,Stock!#REF!/Stock!#REF!,0),\"\")","v":{"$error":"#REF!"}},{"$f":"IF(Stock!#REF!<>\"\",E93*Pilotage!$D$15,\"\")","v":{"$error":"#REF!"}},{"$f":"IF(Stock!#REF!<>\"\",IF(Stock!#REF!>0,Stock!#REF!,0),\"\")","v":{"$error":"#REF!"}},{"$f":"IF(Stock!#REF!<>\"\",Pilotage!$M$27,\"\")","v":{"$error":"#REF!"}},{"$f":"IF(Stock!#REF!<>\"\",ROUND(Stock!#REF!*J93,0),\"\")","v":{"$error":"#REF!"}},{"$f":"IF(Stock!#REF!<>\"\",$H93*K93,\"\")","v":{"$error":"#REF!"}},{"$f":"IF(Stock!#REF!<>\"\",Pilotage!N$27,\"\")","v":{"$error":"#REF!"}},{"$f":"IF(Stock!#REF!<>\"\",ROUND(K93*M93,0),\"\")","v":{"$error":"#REF!"}},{"$f":"IF(Stock!#REF!<>\"\",$H93*N93,\"\")","v":{"$error":"#REF!"}},{"$f":"IF(Stock!#REF!<>\"\",Pilotage!O$27,\"\")","v":{"$error":"#REF!"}},{"$f":"IF(Stock!#REF!<>\"\",ROUND(K93*P93,0),\"\")","v":{"$error":"#REF!"}},{"$f":"IF(Stock!#REF!<>\"\",$H93*Q93,\"\")","v":{"$error":"#REF!"}},{"$f":"IF(Stock!#REF!<>\"\",Pilotage!P$27,\"\")","v":{"$error":"#REF!"}},{"$f":"IF(Stock!#REF!<>\"\",ROUND(Q93*S93,0),\"\")","v":{"$error":"#REF!"}},{"$f":"IF(Stock!#REF!<>\"\",$H93*T93,\"\")","v":{"$error":"#REF!"}},{"$f":"IF(Stock!#REF!<>\"\",Pilotage!Q$27,\"\")","v":{"$error":"#REF!"}},{"$f":"IF(Stock!#REF!<>\"\",ROUND(T93*V93,0),\"\")","v":{"$error":"#REF!"}},{"$f":"IF(Stock!#REF!<>\"\",$H93*W93,\"\")","v":{"$error":"#REF!"}},{"$f":"IF(Stock!#REF!<>\"\",Pilotage!R$27,\"\")","v":{"$error":"#REF!"}},{"$f":"IF(Stock!#REF!<>\"\",ROUND(W93*Y93,0),\"\")","v":{"$error":"#REF!"}},{"$f":"IF(Stock!#REF!<>\"\",$H93*Z93,\"\")","v":{"$error":"#REF!"}}]
[{"$f":"IF(Stock!#REF!<>\"\",Stock!#REF!,\"\")","v":{"$error":"#REF!"}},{"$f":"IF(Stock!#REF!<>\"\",Stock!#REF!,\"\")","v":{"$error":"#REF!"}},{"$f":"IF(Stock!#REF!<>\"\",Stock!#REF!,\"\")","v":{"$error":"#REF!"}},{"$f":"IF(Stock!#REF!<>\"\",SUM(Stock!#REF!,Stock!#REF!,Stock!#REF!),\"\")","v":{"$error":"#REF!"}},{"$f":"IF(Stock!#REF!<>\"\",#REF!*(1+Pilotage!$M$20),\"\")","v":{"$error":"#REF!"}},null,{"$f":"IF(Stock!#REF!<>\"\",IF(Stock!#REF!>0,Stock!#REF!/Stock!#REF!,0),\"\")","v":{"$error":"#REF!"}},{"$f":"IF(Stock!#REF!<>\"\",E94*Pilotage!$D$15,\"\")","v":{"$error":"#REF!"}},{"$f":"IF(Stock!#REF!<>\"\",IF(Stock!#REF!>0,Stock!#REF!,0),\"\")","v":{"$error":"#REF!"}},{"$f":"IF(Stock!#REF!<>\"\",Pilotage!$M$27,\"\")","v":{"$error":"#REF!"}},{"$f":"IF(Stock!#REF!<>\"\",ROUND(Stock!#REF!*J94,0),\"\")","v":{"$error":"#REF!"}},{"$f":"IF(Stock!#REF!<>\"\",$H94*K94,\"\")","v":{"$error":"#REF!"}},{"$f":"IF(Stock!#REF!<>\"\",Pilotage!N$27,\"\")","v":{"$error":"#REF!"}},{"$f":"IF(Stock!#REF!<>\"\",ROUND(K94*M94,0),\"\")","v":{"$error":"#REF!"}},{"$f":"IF(Stock!#REF!<>\"\",$H94*N94,\"\")","v":{"$error":"#REF!"}},{"$f":"IF(Stock!#REF!<>\"\",Pilotage!O$27,\"\")","v":{"$error":"#REF!"}},{"$f":"IF(Stock!#REF!<>\"\",ROUND(K94*P94,0),\"\")","v":{"$error":"#REF!"}},{"$f":"IF(Stock!#REF!<>\"\",$H94*Q94,\"\")","v":{"$error":"#REF!"}},{"$f":"IF(Stock!#REF!<>\"\",Pilotage!P$27,\"\")","v":{"$error":"#REF!"}},{"$f":"IF(Stock!#REF!<>\"\",ROUND(Q94*S94,0),\"\")","v":{"$error":"#REF!"}},{"$f":"IF(Stock!#REF!<>\"\",$H94*T94,\"\")","v":{"$error":"#REF!"}},{"$f":"IF(Stock!#REF!<>\"\",Pilotage!Q$27,\"\")","v":{"$error":"#REF!"}},{"$f":"IF(Stock!#REF!<>\"\",ROUND(T94*V94,0),\"\")","v":{"$error":"#REF!"}},{"$f":"IF(Stock!#REF!<>\"\",$H94*W94,\"\")","v":{"$error":"#REF!"}},{"$f":"IF(Stock!#REF!<>\"\",Pilotage!R$27,\"\")","v":{"$error":"#REF!"}},{"$f":"IF(Stock!#REF!<>\"\",ROUND(W94*Y94,0),\"\")","v":{"$error":"#REF!"}},{"$f":"IF(Stock!#REF!<>\"\",$H94*Z94,\"\")","v":{"$error":"#REF!"}}]
[{"$f":"IF(Stock!#REF!<>\"\",Stock!#REF!,\"\")","v":{"$error":"#REF!"}},{"$f":"IF(Stock!#REF!<>\"\",Stock!#REF!,\"\")","v":{"$error":"#REF!"}},{"$f":"IF(Stock!#REF!<>\"\",Stock!#REF!,\"\")","v":{"$error":"#REF!"}},{"$f":"IF(Stock!#REF!<>\"\",SUM(Stock!#REF!,Stock!#REF!,Stock!#REF!),\"\")","v":{"$error":"#REF!"}},{"$f":"IF(Stock!#REF!<>\"\",#REF!*(1+Pilotage!$M$20),\"\")","v":{"$error":"#REF!"}},null,{"$f":"IF(Stock!#REF!<>\"\",IF(Stock!#REF!>0,Stock!#REF!/Stock!#REF!,0),\"\")","v":{"$error":"#REF!"}},{"$f":"IF(Stock!#REF!<>\"\",E95*Pilotage!$D$15,\"\")","v":{"$error":"#REF!"}},{"$f":"IF(Stock!#REF!<>\"\",IF(Stock!#REF!>0,Stock!#REF!,0),\"\")","v":{"$error":"#REF!"}},{"$f":"IF(Stock!#REF!<>\"\",Pilotage!$M$27,\"\")","v":{"$error":"#REF!"}},{"$f":"IF(Stock!#REF!<>\"\",ROUND(Stock!#REF!*J95,0),\"\")","v":{"$error":"#REF!"}},{"$f":"IF(Stock!#REF!<>\"\",$H95*K95,\"\")","v":{"$error":"#REF!"}},{"$f":"IF(Stock!#REF!<>\"\",Pilotage!N$27,\"\")","v":{"$error":"#REF!"}},{"$f":"IF(Stock!#REF!<>\"\",ROUND(K95*M95,0),\"\")","v":{"$error":"#REF!"}},{"$f":"IF(Stock!#REF!<>\"\",$H95*N95,\"\")","v":{"$error":"#REF!"}},{"$f":"IF(Stock!#REF!<>\"\",Pilotage!O$27,\"\")","v":{"$error":"#REF!"}},{"$f":"IF(Stock!#REF!<>\"\",ROUND(K95*P95,0),\"\")","v":{"$error":"#REF!"}},{"$f":"IF(Stock!#REF!<>\"\",$H95*Q95,\"\")","v":{"$error":"#REF!"}},{"$f":"IF(Stock!#REF!<>\"\",Pilotage!P$27,\"\")","v":{"$error":"#REF!"}},{"$f":"IF(Stock!#REF!<>\"\",ROUND(Q95*S95,0),\"\")","v":{"$error":"#REF!"}},{"$f":"IF(Stock!#REF!<>\"\",$H95*T95,\"\")","v":{"$error":"#REF!"}},{"$f":"IF(Stock!#REF!<>\"\",Pilotage!Q$27,\"\")","v":{"$error":"#REF!"}},{"$f":"IF(Stock!#REF!<>\"\",ROUND(T95*V95,0),\"\")","v":{"$error":"#REF!"}},{"$f":"IF(Stock!#REF!<>\"\",$H95*W95,\"\")","v":{"$error":"#REF!"}},{"$f":"IF(Stock!#REF!<>\"\",Pilotage!R$27,\"\")","v":{"$error":"#REF!"}},{"$f":"IF(Stock!#REF!<>\"\",ROUND(W95*Y95,0),\"\")","v":{"$error":"#REF!"}},{"$f":"IF(Stock!#REF!<>\"\",$H95*Z95,\"\")","v":{"$error":"#REF!"}}]
[{"$f":"IF(Stock!#REF!<>\"\",Stock!#REF!,\"\")","v":{"$error":"#REF!"}},{"$f":"IF(Stock!#REF!<>\"\",Stock!#REF!,\"\")","v":{"$error":"#REF!"}},{"$f":"IF(Stock!#REF!<>\"\",Stock!#REF!,\"\")","v":{"$error":"#REF!"}},{"$f":"IF(Stock!#REF!<>\"\",SUM(Stock!#REF!,Stock!#REF!,Stock!#REF!),\"\")","v":{"$error":"#REF!"}},{"$f":"IF(Stock!#REF!<>\"\",#REF!*(1+Pilotage!$M$20),\"\")","v":{"$error":"#REF!"}},null,{"$f":"IF(Stock!#REF!<>\"\",IF(Stock!#REF!>0,Stock!#REF!/Stock!#REF!,0),\"\")","v":{"$error":"#REF!"}},{"$f":"IF(Stock!#REF!<>\"\",E96*Pilotage!$D$15,\"\")","v":{"$error":"#REF!"}},{"$f":"IF(Stock!#REF!<>\"\",IF(Stock!#REF!>0,Stock!#REF!,0),\"\")","v":{"$error":"#REF!"}},{"$f":"IF(Stock!#REF!<>\"\",Pilotage!$M$27,\"\")","v":{"$error":"#REF!"}},{"$f":"IF(Stock!#REF!<>\"\",ROUND(Stock!#REF!*J96,0),\"\")","v":{"$error":"#REF!"}},{"$f":"IF(Stock!#REF!<>\"\",$H96*K96,\"\")","v":{"$error":"#REF!"}},{"$f":"IF(Stock!#REF!<>\"\",Pilotage!N$27,\"\")","v":{"$error":"#REF!"}},{"$f":"IF(Stock!#REF!<>\"\",ROUND(K96*M96,0),\"\")","v":{"$error":"#REF!"}},{"$f":"IF(Stock!#REF!<>\"\",$H96*N96,\"\")","v":{"$error":"#REF!"}},{"$f":"IF(Stock!#REF!<>\"\",Pilotage!O$27,\"\")","v":{"$error":"#REF!"}},{"$f":"IF(Stock!#REF!<>\"\",ROUND(K96*P96,0),\"\")","v":{"$error":"#REF!"}},{"$f":"IF(Stock!#REF!<>\"\",$H96*Q96,\"\")","v":{"$error":"#REF!"}},{"$f":"IF(Stock!#REF!<>\"\",Pilotage!P$27,\"\")","v":{"$error":"#REF!"}},{"$f":"IF(Stock!#REF!<>\"\",ROUND(Q96*S96,0),\"\")","v":{"$error":"#REF!"}},{"$f":"IF(Stock!#REF!<>\"\",$H96*T96,\"\")","v":{"$error":"#REF!"}},{"$f":"IF(Stock!#REF!<>\"\",Pilotage!Q$27,\"\")","v":{"$error":"#REF!"}},{"$f":"IF(Stock!#REF!<>\"\",ROUND(T96*V96,0),\"\")","v":{"$error":"#REF!"}},{"$f":"IF(Stock!#REF!<>\"\",$H96*W96,\"\")","v":{"$error":"#REF!"}},{"$f":"IF(Stock!#REF!<>\"\",Pilotage!R$27,\"\")","v":{"$error":"#REF!"}},{"$f":"IF(Stock!#REF!<>\"\",ROUND(W96*Y96,0),\"\")","v":{"$error":"#REF!"}},{"$f":"IF(Stock!#REF!<>\"\",$H96*Z96,\"\")","v":{"$error":"#REF!"}}]
[{"$f":"IF(Stock!#REF!<>\"\",Stock!#REF!,\"\")","v":{"$error":"#REF!"}},{"$f":"IF(Stock!#REF!<>\"\",Stock!#REF!,\"\")","v":{"$error":"#REF!"}},{"$f":"IF(Stock!#REF!<>\"\",Stock!#REF!,\"\")","v":{"$error":"#REF!"}},{"$f":"IF(Stock!#REF!<>\"\",SUM(Stock!#REF!,Stock!#REF!,Stock!#REF!),\"\")","v":{"$error":"#REF!"}},{"$f":"IF(Stock!#REF!<>\"\",#REF!*(1+Pilotage!$M$20),\"\")","v":{"$error":"#REF!"}},null,{"$f":"IF(Stock!#REF!<>\"\",IF(Stock!#REF!>0,Stock!#REF!/Stock!#REF!,0),\"\")","v":{"$error":"#REF!"}},{"$f":"IF(Stock!#REF!<>\"\",E97*Pilotage!$D$15,\"\")","v":{"$error":"#REF!"}},{"$f":"IF(Stock!#REF!<>\"\",IF(Stock!#REF!>0,Stock!#REF!,0),\"\")","v":{"$error":"#REF!"}},{"$f":"IF(Stock!#REF!<>\"\",Pilotage!$M$27,\"\")","v":{"$error":"#REF!"}},{"$f":"IF(Stock!#REF!<>\"\",ROUND(Stock!#REF!*J97,0),\"\")","v":{"$error":"#REF!"}},{"$f":"IF(Stock!#REF!<>\"\",$H97*K97,\"\")","v":{"$error":"#REF!"}},{"$f":"IF(Stock!#REF!<>\"\",Pilotage!N$27,\"\")","v":{"$error":"#REF!"}},{"$f":"IF(Stock!#REF!<>\"\",ROUND(K97*M97,0),\"\")","v":{"$error":"#REF!"}},{"$f":"IF(Stock!#REF!<>\"\",$H97*N97,\"\")","v":{"$error":"#REF!"}},{"$f":"IF(Stock!#REF!<>\"\",Pilotage!O$27,\"\")","v":{"$error":"#REF!"}},{"$f":"IF(Stock!#REF!<>\"\",ROUND(K97*P97,0),\"\")","v":{"$error":"#REF!"}},{"$f":"IF(Stock!#REF!<>\"\",$H97*Q97,\"\")","v":{"$error":"#REF!"}},{"$f":"IF(Stock!#REF!<>\"\",Pilotage!P$27,\"\")","v":{"$error":"#REF!"}},{"$f":"IF(Stock!#REF!<>\"\",ROUND(Q97*S97,0),\"\")","v":{"$error":"#REF!"}},{"$f":"IF(Stock!#REF!<>\"\",$H97*T97,\"\")","v":{"$error":"#REF!"}},{"$f":"IF(Stock!#REF!<>\"\",Pilotage!Q$27,\"\")","v":{"$error":"#REF!"}},{"$f":"IF(Stock!#REF!<>\"\",ROUND(T97*V97,0),\"\")","v":{"$error":"#REF!"}},{"$f":"IF(Stock!#REF!<>\"\",$H97*W97,\"\")","v":{"$error":"#REF!"}},{"$f":"IF(Stock!#REF!<>\"\",Pilotage!R$27,\"\")","v":{"$error":"#REF!"}},{"$f":"IF(Stock!#REF!<>\"\",ROUND(W97*Y97,0),\"\")","v":{"$error":"#REF!"}},{"$f":"IF(Stock!#REF!<>\"\",$H97*Z97,\"\")","v":{"$error":"#REF!"}}]
[{"$f":"IF(Stock!#REF!<>\"\",Stock!#REF!,\"\")","v":{"$error":"#REF!"}},{"$f":"IF(Stock!#REF!<>\"\",Stock!#REF!,\"\")","v":{"$error":"#REF!"}},{"$f":"IF(Stock!#REF!<>\"\",Stock!#REF!,\"\")","v":{"$error":"#REF!"}},{"$f":"IF(Stock!#REF!<>\"\",SUM(Stock!#REF!,Stock!#REF!,Stock!#REF!),\"\")","v":{"$error":"#REF!"}},{"$f":"IF(Stock!#REF!<>\"\",#REF!*(1+Pilotage!$M$20),\"\")","v":{"$error":"#REF!"}},null,{"$f":"IF(Stock!#REF!<>\"\",IF(Stock!#REF!>0,Stock!#REF!/Stock!#REF!,0),\"\")","v":{"$error":"#REF!"}},{"$f":"IF(Stock!#REF!<>\"\",E98*Pilotage!$D$15,\"\")","v":{"$error":"#REF!"}},{"$f":"IF(Stock!#REF!<>\"\",IF(Stock!#REF!>0,Stock!#REF!,0),\"\")","v":{"$error":"#REF!"}},{"$f":"IF(Stock!#REF!<>\"\",Pilotage!$M$27,\"\")","v":{"$error":"#REF!"}},{"$f":"IF(Stock!#REF!<>\"\",ROUND(Stock!#REF!*J98,0),\"\")","v":{"$error":"#REF!"}},{"$f":"IF(Stock!#REF!<>\"\",$H98*K98,\"\")","v":{"$error":"#REF!"}},{"$f":"IF(Stock!#REF!<>\"\",Pilotage!N$27,\"\")","v":{"$error":"#REF!"}},{"$f":"IF(Stock!#REF!<>\"\",ROUND(K98*M98,0),\"\")","v":{"$error":"#REF!"}},{"$f":"IF(Stock!#REF!<>\"\",$H98*N98,\"\")","v":{"$error":"#REF!"}},{"$f":"IF(Stock!#REF!<>\"\",Pilotage!O$27,\"\")","v":{"$error":"#REF!"}},{"$f":"IF(Stock!#REF!<>\"\",ROUND(K98*P98,0),\"\")","v":{"$error":"#REF!"}},{"$f":"IF(Stock!#REF!<>\"\",$H98*Q98,\"\")","v":{"$error":"#REF!"}},{"$f":"IF(Stock!#REF!<>\"\",Pilotage!P$27,\"\")","v":{"$error":"#REF!"}},{"$f":"IF(Stock!#REF!<>\"\",ROUND(Q98*S98,0),\"\")","v":{"$error":"#REF!"}},{"$f":"IF(Stock!#REF!<>\"\",$H98*T98,\"\")","v":{"$error":"#REF!"}},{"$f":"IF(Stock!#REF!<>\"\",Pilotage!Q$27,\"\")","v":{"$error":"#REF!"}},{"$f":"IF(Stock!#REF!<>\"\",ROUND(T98*V98,0),\"\")","v":{"$error":"#REF!"}},{"$f":"IF(Stock!#REF!<>\"\",$H98*W98,\"\")","v":{"$error":"#REF!"}},{"$f":"IF(Stock!#REF!<>\"\",Pilotage!R$27,\"\")","v":{"$error":"#REF!"}},{"$f":"IF(Stock!#REF!<>\"\",ROUND(W98*Y98,0),\"\")","v":{"$error":"#REF!"}},{"$f":"IF(Stock!#REF!<>\"\",$H98*Z98,\"\")","v":{"$error":"#REF!"}}]
[{"$f":"IF(Stock!#REF!<>\"\",Stock!#REF!,\"\")","v":{"$error":"#REF!"}},{"$f":"IF(Stock!#REF!<>\"\",Stock!#REF!,\"\")","v":{"$error":"#REF!"}},{"$f":"IF(Stock!#REF!<>\"\",Stock!#REF!,\"\")","v":{"$error":"#REF!"}},{"$f":"IF(Stock!#REF!<>\"\",SUM(Stock!#REF!,Stock!#REF!,Stock!#REF!),\"\")","v":{"$error":"#REF!"}},{"$f":"IF(Stock!#REF!<>\"\",#REF!*(1+Pilotage!$M$20),\"\")","v":{"$error":"#REF!"}},null,{"$f":"IF(Stock!#REF!<>\"\",IF(Stock!#REF!>0,Stock!#REF!/Stock!#REF!,0),\"\")","v":{"$error":"#REF!"}},{"$f":"IF(Stock!#REF!<>\"\",E99*Pilotage!$D$15,\"\")","v":{"$error":"#REF!"}},{"$f":"IF(Stock!#REF!<>\"\",IF(Stock!#REF!>0,Stock!#REF!,0),\"\")","v":{"$error":"#REF!"}},{"$f":"IF(Stock!#REF!<>\"\",Pilotage!$M$27,\"\")","v":{"$error":"#REF!"}},{"$f":"IF(Stock!#REF!<>\"\",ROUND(Stock!#REF!*J99,0),\"\")","v":{"$error":"#REF!"}},{"$f":"IF(Stock!#REF!<>\"\",$H99*K99,\"\")","v":{"$error":"#REF!"}},{"$f":"IF(Stock!#REF!<>\"\",Pilotage!N$27,\"\")","v":{"$error":"#REF!"}},{"$f":"IF(Stock!#REF!<>\"\",ROUND(K99*M99,0),\"\")","v":{"$error":"#REF!"}},{"$f":"IF(Stock!#REF!<>\"\",$H99*N99,\"\")","v":{"$error":"#REF!"}},{"$f":"IF(Stock!#REF!<>\"\",Pilotage!O$27,\"\")","v":{"$error":"#REF!"}},{"$f":"IF(Stock!#REF!<>\"\",ROUND(K99*P99,0),\"\")","v":{"$error":"#REF!"}},{"$f":"IF(Stock!#REF!<>\"\",$H99*Q99,\"\")","v":{"$error":"#REF!"}},{"$f":"IF(Stock!#REF!<>\"\",Pilotage!P$27,\"\")","v":{"$error":"#REF!"}},{"$f":"IF(Stock!#REF!<>\"\",ROUND(Q99*S99,0),\"\")","v":{"$error":"#REF!"}},{"$f":"IF(Stock!#REF!<>\"\",$H99*T99,\"\")","v":{"$error":"#REF!"}},{"$f":"IF(Stock!#REF!<>\"\",Pilotage!Q$27,\"\")","v":{"$error":"#REF!"}},{"$f":"IF(Stock!#REF!<>\"\",ROUND(T99*V99,0),\"\")","v":{"$error":"#REF!"}},{"$f":"IF(Stock!#REF!<>\"\",$H99*W99,\"\")","v":{"$error":"#REF!"}},{"$f":"IF(Stock!#REF!<>\"\",Pilotage!R$27,\"\")","v":{"$error":"#REF!"}},{"$f":"IF(Stock!#REF!<>\"\",ROUND(W99*Y99,0),\"\")","v":{"$error":"#REF!"}},{"$f":"IF(Stock!#REF!<>\"\",$H99*Z99,\"\")","v":{"$error":"#REF!"}}]
[{"$f":"IF(Stock!#REF!<>\"\",Stock!#REF!,\"\")","v":{"$error":"#REF!"}},{"$f":"IF(Stock!#REF!<>\"\",Stock!#REF!,\"\")","v":{"$error":"#REF!"}},{"$f":"IF(Stock!#REF!<>\"\",Stock!#REF!,\"\")","v":{"$error":"#REF!"}},{"$f":"IF(Stock!#REF!<>\"\",SUM(Stock!#REF!,Stock!#REF!,Stock!#REF!),\"\")","v":{"$error":"#REF!"}},{"$f":"IF(Stock!#REF!<>\"\",#REF!*(1+Pilotage!$M$20),\"\")","v":{"$error":"#REF!"}},null,{"$f":"IF(Stock!#REF!<>\"\",IF(Stock!#REF!>0,Stock!#REF!/Stock!#REF!,0),\"\")","v":{"$error":"#REF!"}},{"$f":"IF(Stock!#REF!<>\"\",E100*Pilotage!$D$15,\"\")","v":{"$error":"#REF!"}},{"$f":"IF(Stock!#REF!<>\"\",IF(Stock!#REF!>0,Stock!#REF!,0),\"\")","v":{"$error":"#REF!"}},{"$f":"IF(Stock!#REF!<>\"\",Pilotage!$M$27,\"\")","v":{"$error":"#REF!"}},{"$f":"IF(Stock!#REF!<>\"\",ROUND(Stock!#REF!*J100,0),\"\")","v":{"$error":"#REF!"}},{"$f":"IF(Stock!#REF!<>\"\",$H100*K100,\"\")","v":{"$error":"#REF!"}},{"$f":"IF(Stock!#REF!<>\"\",Pilotage!N$27,\"\")","v":{"$error":"#REF!"}},{"$f":"IF(Stock!#REF!<>\"\",ROUND(K100*M100,0),\"\")","v":{"$error":"#REF!"}},{"$f":"IF(Stock!#REF!<>\"\",$H100*N100,\"\")","v":{"$error":"#REF!"}},{"$f":"IF(Stock!#REF!<>\"\",Pilotage!O$27,\"\")","v":{"$error":"#REF!"}},{"$f":"IF(Stock!#REF!<>\"\",ROUND(K100*P100,0),\"\")","v":{"$error":"#REF!"}},{"$f":"IF(Stock!#REF!<>\"\",$H100*Q100,\"\")","v":{"$error":"#REF!"}},{"$f":"IF(Stock!#REF!<>\"\",Pilotage!P$27,\"\")","v":{"$error":"#REF!"}},{"$f":"IF(Stock!#REF!<>\"\",ROUND(Q100*S100,0),\"\")","v":{"$error":"#REF!"}},{"$f":"IF(Stock!#REF!<>\"\",$H100*T100,\"\")","v":{"$error":"#REF!"}},{"$f":"IF(Stock!#REF!<>\"\",Pilotage!Q$27,\"\")","v":{"$error":"#REF!"}},{"$f":"IF(Stock!#REF!<>\"\",ROUND(T100*V100,0),\"\")","v":{"$error":"#REF!"}},{"$f":"IF(Stock!#REF!<>\"\",$H100*W100,\"\")","v":{"$error":"#REF!"}},{"$f":"IF(Stock!#REF!<>\"\",Pilotage!R$27,\"\")","v":{"$error":"#REF!"}},{"$f":"IF(Stock!#REF!<>\"\",ROUND(W100*Y100,0),\"\")","v":{"$error":"#REF!"}},{"$f":"IF(Stock!#REF!<>\"\",$H100*Z100,\"\")","v":{"$error":"#REF!"}}]
[{"$f":"IF(Stock!#REF!<>\"\",Stock!#REF!,\"\")","v":{"$error":"#REF!"}},{"$f":"IF(Stock!#REF!<>\"\",Stock!#REF!,\"\")","v":{"$error":"#REF!"}},{"$f":"IF(Stock!#REF!<>\"\",Stock!#REF!,\"\")","v":{"$error":"#REF!"}},{"$f":"IF(Stock!#REF!<>\"\",SUM(Stock!#REF!,Stock!#REF!,Stock!#REF!),\"\")","v":{"$error":"#REF!"}},{"$f":"IF(Stock!#REF!<>\"\",#REF!*(1+Pilotage!$M$20),\"\")","v":{"$error":"#REF!"}},null,{"$f":"IF(Stock!#REF!<>\"\",IF(Stock!#REF!>0,Stock!#REF!/Stock!#REF!,0),\"\")","v":{"$error":"#REF!"}},{"$f":"IF(Stock!#REF!<>\"\",E101*Pilotage!$D$15,\"\")","v":{"$error":"#REF!"}},{"$f":"IF(Stock!#REF!<>\"\",IF(Stock!#REF!>0,Stock!#REF!,0),\"\")","v":{"$error":"#REF!"}},{"$f":"IF(Stock!#REF!<>\"\",Pilotage!$M$27,\"\")","v":{"$error":"#REF!"}},{"$f":"IF(Stock!#REF!<>\"\",ROUND(Stock!#REF!*J101,0),\"\")","v":{"$error":"#REF!"}},{"$f":"IF(Stock!#REF!<>\"\",$H101*K101,\"\")","v":{"$error":"#REF!"}},{"$f":"IF(Stock!#REF!<>\"\",Pilotage!N$27,\"\")","v":{"$error":"#REF!"}},{"$f":"IF(Stock!#REF!<>\"\",ROUND(K101*M101,0),\"\")","v":{"$error":"#REF!"}},{"$f":"IF(Stock!#REF!<>\"\",$H101*N101,\"\")","v":{"$error":"#REF!"}},{"$f":"IF(Stock!#REF!<>\"\",Pilotage!O$27,\"\")","v":{"$error":"#REF!"}},{"$f":"IF(Stock!#REF!<>\"\",ROUND(K101*P101,0),\"\")","v":{"$error":"#REF!"}},{"$f":"IF(Stock!#REF!<>\"\",$H101*Q101,\"\")","v":{"$error":"#REF!"}},{"$f":"IF(Stock!#REF!<>\"\",Pilotage!P$27,\"\")","v":{"$error":"#REF!"}},{"$f":"IF(Stock!#REF!<>\"\",ROUND(Q101*S101,0),\"\")","v":{"$error":"#REF!"}},{"$f":"IF(Stock!#REF!<>\"\",$H101*T101,\"\")","v":{"$error":"#REF!"}},{"$f":"IF(Stock!#REF!<>\"\",Pilotage!Q$27,\"\")","v":{"$error":"#REF!"}},{"$f":"IF(Stock!#REF!<>\"\",ROUND(T101*V101,0),\"\")","v":{"$error":"#REF!"}},{"$f":"IF(Stock!#REF!<>\"\",$H101*W101,\"\")","v":{"$error":"#REF!"}},{"$f":"IF(Stock!#REF!<>\"\",Pilotage!R$27,\"\")","v":{"$error":"#REF!"}},{"$f":"IF(Stock!#REF!<>\"\",ROUND(W101*Y101,0),\"\")","v":{"$error":"#REF!"}},{"$f":"IF(Stock!#REF!<>\"\",$H101*Z101,\"\")","v":{"$error":"#REF!"}}]
[{"$f":"IF(Stock!#REF!<>\"\",Stock!#REF!,\"\")","v":{"$error":"#REF!"}},{"$f":"IF(Stock!#REF!<>\"\",Stock!#REF!,\"\")","v":{"$error":"#REF!"}},{"$f":"IF(Stock!#REF!<>\"\",Stock!#REF!,\"\")","v":{"$error":"#REF!"}},{"$f":"IF(Stock!#REF!<>\"\",SUM(Stock!#REF!,Stock!#REF!,Stock!#REF!),\"\")","v":{"$error":"#REF!"}},{"$f":"IF(Stock!#REF!<>\"\",#REF!*(1+Pilotage!$M$20),\"\")","v":{"$error":"#REF!"}},null,{"$f":"IF(Stock!#REF!<>\"\",IF(Stock!#REF!>0,Stock!#REF!/Stock!#REF!,0),\"\")","v":{"$error":"#REF!"}},{"$f":"IF(Stock!#REF!<>\"\",E102*Pilotage!$D$15,\"\")","v":{"$error":"#REF!"}},{"$f":"IF(Stock!#REF!<>\"\",IF(Stock!#REF!>0,Stock!#REF!,0),\"\")","v":{"$error":"#REF!"}},{"$f":"IF(Stock!#REF!<>\"\",Pilotage!$M$27,\"\")","v":{"$error":"#REF!"}},{"$f":"IF(Stock!#REF!<>\"\",ROUND(Stock!#REF!*J102,0),\"\")","v":{"$error":"#REF!"}},{"$f":"IF(Stock!#REF!<>\"\",$H102*K102,\"\")","v":{"$error":"#REF!"}},{"$f":"IF(Stock!#REF!<>\"\",Pilotage!N$27,\"\")","v":{"$error":"#REF!"}},{"$f":"IF(Stock!#REF!<>\"\",ROUND(K102*M102,0),\"\")","v":{"$error":"#REF!"}},{"$f":"IF(Stock!#REF!<>\"\",$H102*N102,\"\")","v":{"$error":"#REF!"}},{"$f":"IF(Stock!#REF!<>\"\",Pilotage!O$27,\"\")","v":{"$error":"#REF!"}},{"$f":"IF(Stock!#REF!<>\"\",ROUND(K102*P102,0),\"\")","v":{"$error":"#REF!"}},{"$f":"IF(Stock!#REF!<>\"\",$H102*Q102,\"\")","v":{"$error":"#REF!"}},{"$f":"IF(Stock!#REF!<>\"\",Pilotage!P$27,\"\")","v":{"$error":"#REF!"}},{"$f":"IF(Stock!#REF!<>\"\",ROUND(Q102*S102,0),\"\")","v":{"$error":"#REF!"}},{"$f":"IF(Stock!#REF!<>\"\",$H102*T102,\"\")","v":{"$error":"#REF!"}},{"$f":"IF(Stock!#REF!<>\"\",Pilotage!Q$27,\"\")","v":{"$error":"#REF!"}},{"$f":"IF(Stock!#REF!<>\"\",ROUND(T102*V102,0),\"\")","v":{"$error":"#REF!"}},{"$f":"IF(Stock!#REF!<>\"\",$H102*W102,\"\")","v":{"$error":"#REF!"}},{"$f":"IF(Stock!#REF!<>\"\",Pilotage!R$27,\"\")","v":{"$error":"#REF!"}},{"$f":"IF(Stock!#REF!<>\"\",ROUND(W102*Y102,0),\"\")","v":{"$error":"#REF!"}},{"$f":"IF(Stock!#REF!<>\"\",$H102*Z102,\"\")","v":{"$error":"#REF!"}}]
[{"$f":"IF(Stock!#REF!<>\"\",Stock!#REF!,\"\")","v":{"$error":"#REF!"}},{"$f":"IF(Stock!#REF!<>\"\",Stock!#REF!,\"\")","v":{"$error":"#REF!"}},{"$f":"IF(Stock!#REF!<>\"\",Stock!#REF!,\"\")","v":{"$error":"#REF!"}},{"$f":"IF(Stock!#REF!<>\"\",SUM(Stock!#REF!,Stock!#REF!,Stock!#REF!),\"\")","v":{"$error":"#REF!"}},{"$f":"IF(Stock!#REF!<>\"\",#REF!*(1+Pilotage!$M$20),\"\")","v":{"$error":"#REF!"}},null,{"$f":"IF(Stock!#REF!<>\"\",IF(Stock!#REF!>0,Stock!#REF!/Stock!#REF!,0),\"\")","v":{"$error":"#REF!"}},{"$f":"IF(Stock!#REF!<>\"\",E103*Pilotage!$D$15,\"\")","v":{"$error":"#REF!"}},{"$f":"IF(Stock!#REF!<>\"\",IF(Stock!#REF!>0,Stock!#REF!,0),\"\")","v":{"$error":"#REF!"}},{"$f":"IF(Stock!#REF!<>\"\",Pilotage!$M$27,\"\")","v":{"$error":"#REF!"}},{"$f":"IF(Stock!#REF!<>\"\",ROUND(Stock!#REF!*J103,0),\"\")","v":{"$error":"#REF!"}},{"$f":"IF(Stock!#REF!<>\"\",$H103*K103,\"\")","v":{"$error":"#REF!"}},{"$f":"IF(Stock!#REF!<>\"\",Pilotage!N$27,\"\")","v":{"$error":"#REF!"}},{"$f":"IF(Stock!#REF!<>\"\",ROUND(K103*M103,0),\"\")","v":{"$error":"#REF!"}},{"$f":"IF(Stock!#REF!<>\"\",$H103*N103,\"\")","v":{"$error":"#REF!"}},{"$f":"IF(Stock!#REF!<>\"\",Pilotage!O$27,\"\")","v":{"$error":"#REF!"}},{"$f":"IF(Stock!#REF!<>\"\",ROUND(K103*P103,0),\"\")","v":{"$error":"#REF!"}},{"$f":"IF(Stock!#REF!<>\"\",$H103*Q103,\"\")","v":{"$error":"#REF!"}},{"$f":"IF(Stock!#REF!<>\"\",Pilotage!P$27,\"\")","v":{"$error":"#REF!"}},{"$f":"IF(Stock!#REF!<>\"\",ROUND(Q103*S103,0),\"\")","v":{"$error":"#REF!"}},{"$f":"IF(Stock!#REF!<>\"\",$H103*T103,\"\")","v":{"$error":"#REF!"}},{"$f":"IF(Stock!#REF!<>\"\",Pilotage!Q$27,\"\")","v":{"$error":"#REF!"}},{"$f":"IF(Stock!#REF!<>\"\",ROUND(T103*V103,0),\"\")","v":{"$error":"#REF!"}},{"$f":"IF(Stock!#REF!<>\"\",$H103*W103,\"\")","v":{"$error":"#REF!"}},{"$f":"IF(Stock!#REF!<>\"\",Pilotage!R$27,\"\")","v":{"$error":"#REF!"}},{"$f":"IF(Stock!#REF!<>\"\",ROUND(W103*Y103,0),\"\")","v":{"$error":"#REF!"}},{"$f":"IF(Stock!#REF!<>\"\",$H103*Z103,\"\")","v":{"$error":"#REF!"}}]
[{"$f":"IF(Stock!#REF!<>\"\",Stock!#REF!,\"\")","v":{"$error":"#REF!"}},{"$f":"IF(Stock!#REF!<>\"\",Stock!#REF!,\"\")","v":{"$error":"#REF!"}},{"$f":"IF(Stock!#REF!<>\"\",Stock!#REF!,\"\")","v":{"$error":"#REF!"}},{"$f":"IF(Stock!#REF!<>\"\",SUM(Stock!#REF!,Stock!#REF!,Stock!#REF!),\"\")","v":{"$error":"#REF!"}},{"$f":"IF(Stock!#REF!<>\"\",#REF!*(1+Pilotage!$M$20),\"\")","v":{"$error":"#REF!"}},null,{"$f":"IF(Stock!#REF!<>\"\",IF(Stock!#REF!>0,Stock!#REF!/Stock!#REF!,0),\"\")","v":{"$error":"#REF!"}},{"$f":"IF(Stock!#REF!<>\"\",E104*Pilotage!$D$15,\"\")","v":{"$error":"#REF!"}},{"$f":"IF(Stock!#REF!<>\"\",IF(Stock!#REF!>0,Stock!#REF!,0),\"\")","v":{"$error":"#REF!"}},{"$f":"IF(Stock!#REF!<>\"\",Pilotage!$M$27,\"\")","v":{"$error":"#REF!"}},{"$f":"IF(Stock!#REF!<>\"\",ROUND(Stock!#REF!*J104,0),\"\")","v":{"$error":"#REF!"}},{"$f":"IF(Stock!#REF!<>\"\",$H104*K104,\"\")","v":{"$error":"#REF!"}},{"$f":"IF(Stock!#REF!<>\"\",Pilotage!N$27,\"\")","v":{"$error":"#REF!"}},{"$f":"IF(Stock!#REF!<>\"\",ROUND(K104*M104,0),\"\")","v":{"$error":"#REF!"}},{"$f":"IF(Stock!#REF!<>\"\",$H104*N104,\"\")","v":{"$error":"#REF!"}},{"$f":"IF(Stock!#REF!<>\"\",Pilotage!O$27,\"\")","v":{"$error":"#REF!"}},{"$f":"IF(Stock!#REF!<>\"\",ROUND(K104*P104,0),\"\")","v":{"$error":"#REF!"}},{"$f":"IF(Stock!#REF!<>\"\",$H104*Q104,\"\")","v":{"$error":"#REF!"}},{"$f":"IF(Stock!#REF!<>\"\",Pilotage!P$27,\"\")","v":{"$error":"#REF!"}},{"$f":"IF(Stock!#REF!<>\"\",ROUND(Q104*S104,0),\"\")","v":{"$error":"#REF!"}},{"$f":"IF(Stock!#REF!<>\"\",$H104*T104,\"\")","v":{"$error":"#REF!"}},{"$f":"IF(Stock!#REF!<>\"\",Pilotage!Q$27,\"\")","v":{"$error":"#REF!"}},{"$f":"IF(Stock!#REF!<>\"\",ROUND(T104*V104,0),\"\")","v":{"$error":"#REF!"}},{"$f":"IF(Stock!#REF!<>\"\",$H104*W104,\"\")","v":{"$error":"#REF!"}},{"$f":"IF(Stock!#REF!<>\"\",Pilotage!R$27,\"\")","v":{"$error":"#REF!"}},{"$f":"IF(Stock!#REF!<>\"\",ROUND(W104*Y104,0),\"\")","v":{"$error":"#REF!"}},{"$f":"IF(Stock!#REF!<>\"\",$H104*Z104,\"\")","v":{"$error":"#REF!"}}]
[{"$f":"IF(Stock!#REF!<>\"\",Stock!#REF!,\"\")","v":{"$error":"#REF!"}},{"$f":"IF(Stock!#REF!<>\"\",Stock!#REF!,\"\")","v":{"$error":"#REF!"}},{"$f":"IF(Stock!#REF!<>\"\",Stock!#REF!,\"\")","v":{"$error":"#REF!"}},{"$f":"IF(Stock!#REF!<>\"\",SUM(Stock!#REF!,Stock!#REF!,Stock!#REF!),\"\")","v":{"$error":"#REF!"}},{"$f":"IF(Stock!#REF!<>\"\",#REF!*(1+Pilotage!$M$20),\"\")","v":{"$error":"#REF!"}},null,{"$f":"IF(Stock!#REF!<>\"\",IF(Stock!#REF!>0,Stock!#REF!/Stock!#REF!,0),\"\")","v":{"$error":"#REF!"}},{"$f":"IF(Stock!#REF!<>\"\",E105*Pilotage!$D$15,\"\")","v":{"$error":"#REF!"}},{"$f":"IF(Stock!#REF!<>\"\",IF(Stock!#REF!>0,Stock!#REF!,0),\"\")","v":{"$error":"#REF!"}},{"$f":"IF(Stock!#REF!<>\"\",Pilotage!$M$27,\"\")","v":{"$error":"#REF!"}},{"$f":"IF(Stock!#REF!<>\"\",ROUND(Stock!#REF!*J105,0),\"\")","v":{"$error":"#REF!"}},{"$f":"IF(Stock!#REF!<>\"\",$H105*K105,\"\")","v":{"$error":"#REF!"}},{"$f":"IF(Stock!#REF!<>\"\",Pilotage!N$27,\"\")","v":{"$error":"#REF!"}},{"$f":"IF(Stock!#REF!<>\"\",ROUND(K105*M105,0),\"\")","v":{"$error":"#REF!"}},{"$f":"IF(Stock!#REF!<>\"\",$H105*N105,\"\")","v":{"$error":"#REF!"}},{"$f":"IF(Stock!#REF!<>\"\",Pilotage!O$27,\"\")","v":{"$error":"#REF!"}},{"$f":"IF(Stock!#REF!<>\"\",ROUND(K105*P105,0),\"\")","v":{"$error":"#REF!"}},{"$f":"IF(Stock!#REF!<>\"\",$H105*Q105,\"\")","v":{"$error":"#REF!"}},{"$f":"IF(Stock!#REF!<>\"\",Pilotage!P$27,\"\")","v":{"$error":"#REF!"}},{"$f":"IF(Stock!#REF!<>\"\",ROUND(Q105*S105,0),\"\")","v":{"$error":"#REF!"}},{"$f":"IF(Stock!#REF!<>\"\",$H105*T105,\"\")","v":{"$error":"#REF!"}},{"$f":"IF(Stock!#REF!<>\"\",Pilotage!Q$27,\"\")","v":{"$error":"#REF!"}},{"$f":"IF(Stock!#REF!<>\"\",ROUND(T105*V105,0),\"\")","v":{"$error":"#REF!"}},{"$f":"IF(Stock!#REF!<>\"\",$H105*W105,\"\")","v":{"$error":"#REF!"}},{"$f":"IF(Stock!#REF!<>\"\",Pilotage!R$27,\"\")","v":{"$error":"#REF!"}},{"$f":"IF(Stock!#REF!<>\"\",ROUND(W105*Y105,0),\"\")","v":{"$error":"#REF!"}},{"$f":"IF(Stock!#REF!<>\"\",$H105*Z105,\"\")","v":{"$error":"#REF!"}}]
[{"$f":"IF(Stock!#REF!<>\"\",Stock!#REF!,\"\")","v":{"$error":"#REF!"}},{"$f":"IF(Stock!#REF!<>\"\",Stock!#REF!,\"\")","v":{"$error":"#REF!"}},{"$f":"IF(Stock!#REF!<>\"\",Stock!#REF!,\"\")","v":{"$error":"#REF!"}},{"$f":"IF(Stock!#REF!<>\"\",SUM(Stock!#REF!,Stock!#REF!,Stock!#REF!),\"\")","v":{"$error":"#REF!"}},{"$f":"IF(Stock!#REF!<>\"\",#REF!*(1+Pilotage!$M$20),\"\")","v":{"$error":"#REF!"}},null,{"$f":"IF(Stock!#REF!<>\"\",IF(Stock!#REF!>0,Stock!#REF!/Stock!#REF!,0),\"\")","v":{"$error":"#REF!"}},{"$f":"IF(Stock!#REF!<>\"\",E106*Pilotage!$D$15,\"\")","v":{"$error":"#REF!"}},{"$f":"IF(Stock!#REF!<>\"\",IF(Stock!#REF!>0,Stock!#REF!,0),\"\")","v":{"$error":"#REF!"}},{"$f":"IF(Stock!#REF!<>\"\",Pilotage!$M$27,\"\")","v":{"$error":"#REF!"}},{"$f":"IF(Stock!#REF!<>\"\",ROUND(Stock!#REF!*J106,0),\"\")","v":{"$error":"#REF!"}},{"$f":"IF(Stock!#REF!<>\"\",$H106*K106,\"\")","v":{"$error":"#REF!"}},{"$f":"IF(Stock!#REF!<>\"\",Pilotage!N$27,\"\")","v":{"$error":"#REF!"}},{"$f":"IF(Stock!#REF!<>\"\",ROUND(K106*M106,0),\"\")","v":{"$error":"#REF!"}},{"$f":"IF(Stock!#REF!<>\"\",$H106*N106,\"\")","v":{"$error":"#REF!"}},{"$f":"IF(Stock!#REF!<>\"\",Pilotage!O$27,\"\")","v":{"$error":"#REF!"}},{"$f":"IF(Stock!#REF!<>\"\",ROUND(K106*P106,0),\"\")","v":{"$error":"#REF!"}},{"$f":"IF(Stock!#REF!<>\"\",$H106*Q106,\"\")","v":{"$error":"#REF!"}},{"$f":"IF(Stock!#REF!<>\"\",Pilotage!P$27,\"\")","v":{"$error":"#REF!"}},{"$f":"IF(Stock!#REF!<>\"\",ROUND(Q106*S106,0),\"\")","v":{"$error":"#REF!"}},{"$f":"IF(Stock!#REF!<>\"\",$H106*T106,\"\")","v":{"$error":"#REF!"}},{"$f":"IF(Stock!#REF!<>\"\",Pilotage!Q$27,\"\")","v":{"$error":"#REF!"}},{"$f":"IF(Stock!#REF!<>\"\",ROUND(T106*V106,0),\"\")","v":{"$error":"#REF!"}},{"$f":"IF(Stock!#REF!<>\"\",$H106*W106,\"\")","v":{"$error":"#REF!"}},{"$f":"IF(Stock!#REF!<>\"\",Pilotage!R$27,\"\")","v":{"$error":"#REF!"}},{"$f":"IF(Stock!#REF!<>\"\",ROUND(W106*Y106,0),\"\")","v":{"$error":"#REF!"}},{"$f":"IF(Stock!#REF!<>\"\",$H106*Z106,\"\")","v":{"$error":"#REF!"}}]
[{"$f":"IF(Stock!#REF!<>\"\",Stock!#REF!,\"\")","v":{"$error":"#REF!"}},{"$f":"IF(Stock!#REF!<>\"\",Stock!#REF!,\"\")","v":{"$error":"#REF!"}},{"$f":"IF(Stock!#REF!<>\"\",Stock!#REF!,\"\")","v":{"$error":"#REF!"}},{"$f":"IF(Stock!#REF!<>\"\",SUM(Stock!#REF!,Stock!#REF!,Stock!#REF!),\"\")","v":{"$error":"#REF!"}},{"$f":"IF(Stock!#REF!<>\"\",#REF!*(1+Pilotage!$M$20),\"\")","v":{"$error":"#REF!"}},null,{"$f":"IF(Stock!#REF!<>\"\",IF(Stock!#REF!>0,Stock!#REF!/Stock!#REF!,0),\"\")","v":{"$error":"#REF!"}},{"$f":"IF(Stock!#REF!<>\"\",E107*Pilotage!$D$15,\"\")","v":{"$error":"#REF!"}},{"$f":"IF(Stock!#REF!<>\"\",IF(Stock!#REF!>0,Stock!#REF!,0),\"\")","v":{"$error":"#REF!"}},{"$f":"IF(Stock!#REF!<>\"\",Pilotage!$M$27,\"\")","v":{"$error":"#REF!"}},{"$f":"IF(Stock!#REF!<>\"\",ROUND(Stock!#REF!*J107,0),\"\")","v":{"$error":"#REF!"}},{"$f":"IF(Stock!#REF!<>\"\",$H107*K107,\"\")","v":{"$error":"#REF!"}},{"$f":"IF(Stock!#REF!<>\"\",Pilotage!N$27,\"\")","v":{"$error":"#REF!"}},{"$f":"IF(Stock!#REF!<>\"\",ROUND(K107*M107,0),\"\")","v":{"$error":"#REF!"}},{"$f":"IF(Stock!#REF!<>\"\",$H107*N107,\"\")","v":{"$error":"#REF!"}},{"$f":"IF(Stock!#REF!<>\"\",Pilotage!O$27,\"\")","v":{"$error":"#REF!"}},{"$f":"IF(Stock!#REF!<>\"\",ROUND(K107*P107,0),\"\")","v":{"$error":"#REF!"}},{"$f":"IF(Stock!#REF!<>\"\",$H107*Q107,\"\")","v":{"$error":"#REF!"}},{"$f":"IF(Stock!#REF!<>\"\",Pilotage!P$27,\"\")","v":{"$error":"#REF!"}},{"$f":"IF(Stock!#REF!<>\"\",ROUND(Q107*S107,0),\"\")","v":{"$error":"#REF!"}},{"$f":"IF(Stock!#REF!<>\"\",$H107*T107,\"\")","v":{"$error":"#REF!"}},{"$f":"IF(Stock!#REF!<>\"\",Pilotage!Q$27,\"\")","v":{"$error":"#REF!"}},{"$f":"IF(Stock!#REF!<>\"\",ROUND(T107*V107,0),\"\")","v":{"$error":"#REF!"}},{"$f":"IF(Stock!#REF!<>\"\",$H107*W107,\"\")","v":{"$error":"#REF!"}},{"$f":"IF(Stock!#REF!<>\"\",Pilotage!R$27,\"\")","v":{"$error":"#REF!"}},{"$f":"IF(Stock!#REF!<>\"\",ROUND(W107*Y107,0),\"\")","v":{"$error":"#REF!"}},{"$f":"IF(Stock!#REF!<>\"\",$H107*Z107,\"\")","v":{"$error":"#REF!"}}]
[{"$f":"IF(Stock!#REF!<>\"\",Stock!#REF!,\"\")","v":{"$error":"#REF!"}},{"$f":"IF(Stock!#REF!<>\"\",Stock!#REF!,\"\")","v":{"$error":"#REF!"}},{"$f":"IF(Stock!#REF!<>\"\",Stock!#REF!,\"\")","v":{"$error":"#REF!"}},{"$f":"IF(Stock!#REF!<>\"\",SUM(Stock!#REF!,Stock!#REF!,Stock!#REF!),\"\")","v":{"$error":"#REF!"}},{"$f":"IF(Stock!#REF!<>\"\",#REF!*(1+Pilotage!$M$20),\"\")","v":{"$error":"#REF!"}},null,{"$f":"IF(Stock!#REF!<>\"\",IF(Stock!#REF!>0,Stock!#REF!/Stock!#REF!,0),\"\")","v":{"$error":"#REF!"}},{"$f":"IF(Stock!#REF!<>\"\",E108*Pilotage!$D$15,\"\")","v":{"$error":"#REF!"}},{"$f":"IF(Stock!#REF!<>\"\",IF(Stock!#REF!>0,Stock!#REF!,0),\"\")","v":{"$error":"#REF!"}},{"$f":"IF(Stock!#REF!<>\"\",Pilotage!$M$27,\"\")","v":{"$error":"#REF!"}},{"$f":"IF(Stock!#REF!<>\"\",ROUND(Stock!#REF!*J108,0),\"\")","v":{"$error":"#REF!"}},{"$f":"IF(Stock!#REF!<>\"\",$H108*K108,\"\")","v":{"$error":"#REF!"}},{"$f":"IF(Stock!#REF!<>\"\",Pilotage!N$27,\"\")","v":{"$error":"#REF!"}},{"$f":"IF(Stock!#REF!<>\"\",ROUND(K108*M108,0),\"\")","v":{"$error":"#REF!"}},{"$f":"IF(Stock!#REF!<>\"\",$H108*N108,\"\")","v":{"$error":"#REF!"}},{"$f":"IF(Stock!#REF!<>\"\",Pilotage!O$27,\"\")","v":{"$error":"#REF!"}},{"$f":"IF(Stock!#REF!<>\"\",ROUND(K108*P108,0),\"\")","v":{"$error":"#REF!"}},{"$f":"IF(Stock!#REF!<>\"\",$H108*Q108,\"\")","v":{"$error":"#REF!"}},{"$f":"IF(Stock!#REF!<>\"\",Pilotage!P$27,\"\")","v":{"$error":"#REF!"}},{"$f":"IF(Stock!#REF!<>\"\",ROUND(Q108*S108,0),\"\")","v":{"$error":"#REF!"}},{"$f":"IF(Stock!#REF!<>\"\",$H108*T108,\"\")","v":{"$error":"#REF!"}},{"$f":"IF(Stock!#REF!<>\"\",Pilotage!Q$27,\"\")","v":{"$error":"#REF!"}},{"$f":"IF(Stock!#REF!<>\"\",ROUND(T108*V108,0),\"\")","v":{"$error":"#REF!"}},{"$f":"IF(Stock!#REF!<>\"\",$H108*W108,\"\")","v":{"$error":"#REF!"}},{"$f":"IF(Stock!#REF!<>\"\",Pilotage!R$27,\"\")","v":{"$error":"#REF!"}},{"$f":"IF(Stock!#REF!<>\"\",ROUND(W108*Y108,0),\"\")","v":{"$error":"#REF!"}},{"$f":"IF(Stock!#REF!<>\"\",$H108*Z108,\"\")","v":{"$error":"#REF!"}}]
[{"$f":"IF(Stock!#REF!<>\"\",Stock!#REF!,\"\")","v":{"$error":"#REF!"}},{"$f":"IF(Stock!#REF!<>\"\",Stock!#REF!,\"\")","v":{"$error":"#REF!"}},{"$f":"IF(Stock!#REF!<>\"\",Stock!#REF!,\"\")","v":{"$error":"#REF!"}},{"$f":"IF(Stock!#REF!<>\"\",SUM(Stock!#REF!,Stock!#REF!,Stock!#REF!),\"\")","v":{"$error":"#REF!"}},{"$f":"IF(Stock!#REF!<>\"\",#REF!*(1+Pilotage!$M$20),\"\")","v":{"$error":"#REF!"}},null,{"$f":"IF(Stock!#REF!<>\"\",IF(Stock!#REF!>0,Stock!#REF!/Stock!#REF!,0),\"\")","v":{"$error":"#REF!"}},{"$f":"IF(Stock!#REF!<>\"\",E109*Pilotage!$D$15,\"\")","v":{"$error":"#REF!"}},{"$f":"IF(Stock!#REF!<>\"\",IF(Stock!#REF!>0,Stock!#REF!,0),\"\")","v":{"$error":"#REF!"}},{"$f":"IF(Stock!#REF!<>\"\",Pilotage!$M$27,\"\")","v":{"$error":"#REF!"}},{"$f":"IF(Stock!#REF!<>\"\",ROUND(Stock!#REF!*J109,0),\"\")","v":{"$error":"#REF!"}},{"$f":"IF(Stock!#REF!<>\"\",$H109*K109,\"\")","v":{"$error":"#REF!"}},{"$f":"IF(Stock!#REF!<>\"\",Pilotage!N$27,\"\")","v":{"$error":"#REF!"}},{"$f":"IF(Stock!#REF!<>\"\",ROUND(K109*M109,0),\"\")","v":{"$error":"#REF!"}},{"$f":"IF(Stock!#REF!<>\"\",$H109*N109,\"\")","v":{"$error":"#REF!"}},{"$f":"IF(Stock!#REF!<>\"\",Pilotage!O$27,\"\")","v":{"$error":"#REF!"}},{"$f":"IF(Stock!#REF!<>\"\",ROUND(K109*P109,0),\"\")","v":{"$error":"#REF!"}},{"$f":"IF(Stock!#REF!<>\"\",$H109*Q109,\"\")","v":{"$error":"#REF!"}},{"$f":"IF(Stock!#REF!<>\"\",Pilotage!P$27,\"\")","v":{"$error":"#REF!"}},{"$f":"IF(Stock!#REF!<>\"\",ROUND(Q109*S109,0),\"\")","v":{"$error":"#REF!"}},{"$f":"IF(Stock!#REF!<>\"\",$H109*T109,\"\")","v":{"$error":"#REF!"}},{"$f":"IF(Stock!#REF!<>\"\",Pilotage!Q$27,\"\")","v":{"$error":"#REF!"}},{"$f":"IF(Stock!#REF!<>\"\",ROUND(T109*V109,0),\"\")","v":{"$error":"#REF!"}},{"$f":"IF(Stock!#REF!<>\"\",$H109*W109,\"\")","v":{"$error":"#REF!"}},{"$f":"IF(Stock!#REF!<>\"\",Pilotage!R$27,\"\")","v":{"$error":"#REF!"}},{"$f":"IF(Stock!#REF!<>\"\",ROUND(W109*Y109,0),\"\")","v":{"$error":"#REF!"}},{"$f":"IF(Stock!#REF!<>\"\",$H109*Z109,\"\")","v":{"$error":"#REF!"}}]
[{"$f":"IF(Stock!#REF!<>\"\",Stock!#REF!,\"\")","v":{"$error":"#REF!"}},{"$f":"IF(Stock!#REF!<>\"\",Stock!#REF!,\"\")","v":{"$error":"#REF!"}},{"$f":"IF(Stock!#REF!<>\"\",Stock!#REF!,\"\")","v":{"$error":"#REF!"}},{"$f":"IF(Stock!#REF!<>\"\",SUM(Stock!#REF!,Stock!#REF!,Stock!#REF!),\"\")","v":{"$error":"#REF!"}},{"$f":"IF(Stock!#REF!<>\"\",#REF!*(1+Pilotage!$M$20),\"\")","v":{"$error":"#REF!"}},null,{"$f":"IF(Stock!#REF!<>\"\",IF(Stock!#REF!>0,Stock!#REF!/Stock!#REF!,0),\"\")","v":{"$error":"#REF!"}},{"$f":"IF(Stock!#REF!<>\"\",E110*Pilotage!$D$15,\"\")","v":{"$error":"#REF!"}},{"$f":"IF(Stock!#REF!<>\"\",IF(Stock!#REF!>0,Stock!#REF!,0),\"\")","v":{"$error":"#REF!"}},{"$f":"IF(Stock!#REF!<>\"\",Pilotage!$M$27,\"\")","v":{"$error":"#REF!"}},{"$f":"IF(Stock!#REF!<>\"\",ROUND(Stock!#REF!*J110,0),\"\")","v":{"$error":"#REF!"}},{"$f":"IF(Stock!#REF!<>\"\",$H110*K110,\"\")","v":{"$error":"#REF!"}},{"$f":"IF(Stock!#REF!<>\"\",Pilotage!N$27,\"\")","v":{"$error":"#REF!"}},{"$f":"IF(Stock!#REF!<>\"\",ROUND(K110*M110,0),\"\")","v":{"$error":"#REF!"}},{"$f":"IF(Stock!#REF!<>\"\",$H110*N110,\"\")","v":{"$error":"#REF!"}},{"$f":"IF(Stock!#REF!<>\"\",Pilotage!O$27,\"\")","v":{"$error":"#REF!"}},{"$f":"IF(Stock!#REF!<>\"\",ROUND(K110*P110,0),\"\")","v":{"$error":"#REF!"}},{"$f":"IF(Stock!#REF!<>\"\",$H110*Q110,\"\")","v":{"$error":"#REF!"}},{"$f":"IF(Stock!#REF!<>\"\",Pilotage!P$27,\"\")","v":{"$error":"#REF!"}},{"$f":"IF(Stock!#REF!<>\"\",ROUND(Q110*S110,0),\"\")","v":{"$error":"#REF!"}},{"$f":"IF(Stock!#REF!<>\"\",$H110*T110,\"\")","v":{"$error":"#REF!"}},{"$f":"IF(Stock!#REF!<>\"\",Pilotage!Q$27,\"\")","v":{"$error":"#REF!"}},{"$f":"IF(Stock!#REF!<>\"\",ROUND(T110*V110,0),\"\")","v":{"$error":"#REF!"}},{"$f":"IF(Stock!#REF!<>\"\",$H110*W110,\"\")","v":{"$error":"#REF!"}},{"$f":"IF(Stock!#REF!<>\"\",Pilotage!R$27,\"\")","v":{"$error":"#REF!"}},{"$f":"IF(Stock!#REF!<>\"\",ROUND(W110*Y110,0),\"\")","v":{"$error":"#REF!"}},{"$f":"IF(Stock!#REF!<>\"\",$H110*Z110,\"\")","v":{"$error":"#REF!"}}]
[{"$f":"IF(Stock!#REF!<>\"\",Stock!#REF!,\"\")","v":{"$error":"#REF!"}},{"$f":"IF(Stock!#REF!<>\"\",Stock!#REF!,\"\")","v":{"$error":"#REF!"}},{"$f":"IF(Stock!#REF!<>\"\",Stock!#REF!,\"\")","v":{"$error":"#REF!"}},{"$f":"IF(Stock!#REF!<>\"\",SUM(Stock!#REF!,Stock!#REF!,Stock!#REF!),\"\")","v":{"$error":"#REF!"}},{"$f":"IF(Stock!#REF!<>\"\",#REF!*(1+Pilotage!$M$20),\"\")","v":{"$error":"#REF!"}},null,{"$f":"IF(Stock!#REF!<>\"\",IF(Stock!#REF!>0,Stock!#REF!/Stock!#REF!,0),\"\")","v":{"$error":"#REF!"}},{"$f":"IF(Stock!#REF!<>\"\",E111*Pilotage!$D$15,\"\")","v":{"$error":"#REF!"}},{"$f":"IF(Stock!#REF!<>\"\",IF(Stock!#REF!>0,Stock!#REF!,0),\"\")","v":{"$error":"#REF!"}},{"$f":"IF(Stock!#REF!<>\"\",Pilotage!$M$27,\"\")","v":{"$error":"#REF!"}},{"$f":"IF(Stock!#REF!<>\"\",ROUND(Stock!#REF!*J111,0),\"\")","v":{"$error":"#REF!"}},{"$f":"IF(Stock!#REF!<>\"\",$H111*K111,\"\")","v":{"$error":"#REF!"}},{"$f":"IF(Stock!#REF!<>\"\",Pilotage!N$27,\"\")","v":{"$error":"#REF!"}},{"$f":"IF(Stock!#REF!<>\"\",ROUND(K111*M111,0),\"\")","v":{"$error":"#REF!"}},{"$f":"IF(Stock!#REF!<>\"\",$H111*N111,\"\")","v":{"$error":"#REF!"}},{"$f":"IF(Stock!#REF!<>\"\",Pilotage!O$27,\"\")","v":{"$error":"#REF!"}},{"$f":"IF(Stock!#REF!<>\"\",ROUND(K111*P111,0),\"\")","v":{"$error":"#REF!"}},{"$f":"IF(Stock!#REF!<>\"\",$H111*Q111,\"\")","v":{"$error":"#REF!"}},{"$f":"IF(Stock!#REF!<>\"\",Pilotage!P$27,\"\")","v":{"$error":"#REF!"}},{"$f":"IF(Stock!#REF!<>\"\",ROUND(Q111*S111,0),\"\")","v":{"$error":"#REF!"}},{"$f":"IF(Stock!#REF!<>\"\",$H111*T111,\"\")","v":{"$error":"#REF!"}},{"$f":"IF(Stock!#REF!<>\"\",Pilotage!Q$27,\"\")","v":{"$error":"#REF!"}},{"$f":"IF(Stock!#REF!<>\"\",ROUND(T111*V111,0),\"\")","v":{"$error":"#REF!"}},{"$f":"IF(Stock!#REF!<>\"\",$H111*W111,\"\")","v":{"$error":"#REF!"}},{"$f":"IF(Stock!#REF!<>\"\",Pilotage!R$27,\"\")","v":{"$error":"#REF!"}},{"$f":"IF(Stock!#REF!<>\"\",ROUND(W111*Y111,0),\"\")","v":{"$error":"#REF!"}},{"$f":"IF(Stock!#REF!<>\"\",$H111*Z111,\"\")","v":{"$error":"#REF!"}}]
[{"$f":"IF(Stock!#REF!<>\"\",Stock!#REF!,\"\")","v":{"$error":"#REF!"}},{"$f":"IF(Stock!#REF!<>\"\",Stock!#REF!,\"\")","v":{"$error":"#REF!"}},{"$f":"IF(Stock!#REF!<>\"\",Stock!#REF!,\"\")","v":{"$error":"#REF!"}},{"$f":"IF(Stock!#REF!<>\"\",SUM(Stock!#REF!,Stock!#REF!,Stock!#REF!),\"\")","v":{"$error":"#REF!"}},{"$f":"IF(Stock!#REF!<>\"\",#REF!*(1+Pilotage!$M$20),\"\")","v":{"$error":"#REF!"}},null,{"$f":"IF(Stock!#REF!<>\"\",IF(Stock!#REF!>0,Stock!#REF!/Stock!#REF!,0),\"\")","v":{"$error":"#REF!"}},{"$f":"IF(Stock!#REF!<>\"\",E112*Pilotage!$D$15,\"\")","v":{"$error":"#REF!"}},{"$f":"IF(Stock!#REF!<>\"\",IF(Stock!#REF!>0,Stock!#REF!,0),\"\")","v":{"$error":"#REF!"}},{"$f":"IF(Stock!#REF!<>\"\",Pilotage!$M$27,\"\")","v":{"$error":"#REF!"}},{"$f":"IF(Stock!#REF!<>\"\",ROUND(Stock!#REF!*J112,0),\"\")","v":{"$error":"#REF!"}},{"$f":"IF(Stock!#REF!<>\"\",$H112*K112,\"\")","v":{"$error":"#REF!"}},{"$f":"IF(Stock!#REF!<>\"\",Pilotage!N$27,\"\")","v":{"$error":"#REF!"}},{"$f":"IF(Stock!#REF!<>\"\",ROUND(K112*M112,0),\"\")","v":{"$error":"#REF!"}},{"$f":"IF(Stock!#REF!<>\"\",$H112*N112,\"\")","v":{"$error":"#REF!"}},{"$f":"IF(Stock!#REF!<>\"\",Pilotage!O$27,\"\")","v":{"$error":"#REF!"}},{"$f":"IF(Stock!#REF!<>\"\",ROUND(K112*P112,0),\"\")","v":{"$error":"#REF!"}},{"$f":"IF(Stock!#REF!<>\"\",$H112*Q112,\"\")","v":{"$error":"#REF!"}},{"$f":"IF(Stock!#REF!<>\"\",Pilotage!P$27,\"\")","v":{"$error":"#REF!"}},{"$f":"IF(Stock!#REF!<>\"\",ROUND(Q112*S112,0),\"\")","v":{"$error":"#REF!"}},{"$f":"IF(Stock!#REF!<>\"\",$H112*T112,\"\")","v":{"$error":"#REF!"}},{"$f":"IF(Stock!#REF!<>\"\",Pilotage!Q$27,\"\")","v":{"$error":"#REF!"}},{"$f":"IF(Stock!#REF!<>\"\",ROUND(T112*V112,0),\"\")","v":{"$error":"#REF!"}},{"$f":"IF(Stock!#REF!<>\"\",$H112*W112,\"\")","v":{"$error":"#REF!"}},{"$f":"IF(Stock!#REF!<>\"\",Pilotage!R$27,\"\")","v":{"$error":"#REF!"}},{"$f":"IF(Stock!#REF!<>\"\",ROUND(W112*Y112,0),\"\")","v":{"$error":"#REF!"}},{"$f":"IF(Stock!#REF!<>\"\",$H112*Z112,\"\")","v":{"$error":"#REF!"}}]
[{"$f":"IF(Stock!#REF!<>\"\",Stock!#REF!,\"\")","v":{"$error":"#REF!"}},{"$f":"IF(Stock!#REF!<>\"\",Stock!#REF!,\"\")","v":{"$error":"#REF!"}},{"$f":"IF(Stock!#REF!<>\"\",Stock!#REF!,\"\")","v":{"$error":"#REF!"}},{"$f":"IF(Stock!#REF!<>\"\",SUM(Stock!#REF!,Stock!#REF!,Stock!#REF!),\"\")","v":{"$error":"#REF!"}},{"$f":"IF(Stock!#REF!<>\"\",#REF!*(1+Pilotage!$M$20),\"\")","v":{"$error":"#REF!"}},null,{"$f":"IF(Stock!#REF!<>\"\",IF(Stock!#REF!>0,Stock!#REF!/Stock!#REF!,0),\"\")","v":{"$error":"#REF!"}},{"$f":"IF(Stock!#REF!<>\"\",E113*Pilotage!$D$15,\"\")","v":{"$error":"#REF!"}},{"$f":"IF(Stock!#REF!<>\"\",IF(Stock!#REF!>0,Stock!#REF!,0),\"\")","v":{"$error":"#REF!"}},{"$f":"IF(Stock!#REF!<>\"\",Pilotage!$M$27,\"\")","v":{"$error":"#REF!"}},{"$f":"IF(Stock!#REF!<>\"\",ROUND(Stock!#REF!*J113,0),\"\")","v":{"$error":"#REF!"}},{"$f":"IF(Stock!#REF!<>\"\",$H113*K113,\"\")","v":{"$error":"#REF!"}},{"$f":"IF(Stock!#REF!<>\"\",Pilotage!N$27,\"\")","v":{"$error":"#REF!"}},{"$f":"IF(Stock!#REF!<>\"\",ROUND(K113*M113,0),\"\")","v":{"$error":"#REF!"}},{"$f":"IF(Stock!#REF!<>\"\",$H113*N113,\"\")","v":{"$error":"#REF!"}},{"$f":"IF(Stock!#REF!<>\"\",Pilotage!O$27,\"\")","v":{"$error":"#REF!"}},{"$f":"IF(Stock!#REF!<>\"\",ROUND(K113*P113,0),\"\")","v":{"$error":"#REF!"}},{"$f":"IF(Stock!#REF!<>\"\",$H113*Q113,\"\")","v":{"$error":"#REF!"}},{"$f":"IF(Stock!#REF!<>\"\",Pilotage!P$27,\"\")","v":{"$error":"#REF!"}},{"$f":"IF(Stock!#REF!<>\"\",ROUND(Q113*S113,0),\"\")","v":{"$error":"#REF!"}},{"$f":"IF(Stock!#REF!<>\"\",$H113*T113,\"\")","v":{"$error":"#REF!"}},{"$f":"IF(Stock!#REF!<>\"\",Pilotage!Q$27,\"\")","v":{"$error":"#REF!"}},{"$f":"IF(Stock!#REF!<>\"\",ROUND(T113*V113,0),\"\")","v":{"$error":"#REF!"}},{"$f":"IF(Stock!#REF!<>\"\",$H113*W113,\"\")","v":{"$error":"#REF!"}},{"$f":"IF(Stock!#REF!<>\"\",Pilotage!R$27,\"\")","v":{"$error":"#REF!"}},{"$f":"IF(Stock!#REF!<>\"\",ROUND(W113*Y113,0),\"\")","v":{"$error":"#REF!"}},{"$f":"IF(Stock!#REF!<>\"\",$H113*Z113,\"\")","v":{"$error":"#REF!"}}]
[{"$f":"IF(Stock!#REF!<>\"\",Stock!#REF!,\"\")","v":{"$error":"#REF!"}},{"$f":"IF(Stock!#REF!<>\"\",Stock!#REF!,\"\")","v":{"$error":"#REF!"}},{"$f":"IF(Stock!#REF!<>\"\",Stock!#REF!,\"\")","v":{"$error":"#REF!"}},{"$f":"IF(Stock!#REF!<>\"\",SUM(Stock!#REF!,Stock!#REF!,Stock!#REF!),\"\")","v":{"$error":"#REF!"}},{"$f":"IF(Stock!#REF!<>\"\",#REF!*(1+Pilotage!$M$20),\"\")","v":{"$error":"#REF!"}},null,{"$f":"IF(Stock!#REF!<>\"\",IF(Stock!#REF!>0,Stock!#REF!/Stock!#REF!,0),\"\")","v":{"$error":"#REF!"}},{"$f":"IF(Stock!#REF!<>\"\",E114*Pilotage!$D$15,\"\")","v":{"$error":"#REF!"}},{"$f":"IF(Stock!#REF!<>\"\",IF(Stock!#REF!>0,Stock!#REF!,0),\"\")","v":{"$error":"#REF!"}},{"$f":"IF(Stock!#REF!<>\"\",Pilotage!$M$27,\"\")","v":{"$error":"#REF!"}},{"$f":"IF(Stock!#REF!<>\"\",ROUND(Stock!#REF!*J114,0),\"\")","v":{"$error":"#REF!"}},{"$f":"IF(Stock!#REF!<>\"\",$H114*K114,\"\")","v":{"$error":"#REF!"}},{"$f":"IF(Stock!#REF!<>\"\",Pilotage!N$27,\"\")","v":{"$error":"#REF!"}},{"$f":"IF(Stock!#REF!<>\"\",ROUND(K114*M114,0),\"\")","v":{"$error":"#REF!"}},{"$f":"IF(Stock!#REF!<>\"\",$H114*N114,\"\")","v":{"$error":"#REF!"}},{"$f":"IF(Stock!#REF!<>\"\",Pilotage!O$27,\"\")","v":{"$error":"#REF!"}},{"$f":"IF(Stock!#REF!<>\"\",ROUND(K114*P114,0),\"\")","v":{"$error":"#REF!"}},{"$f":"IF(Stock!#REF!<>\"\",$H114*Q114,\"\")","v":{"$error":"#REF!"}},{"$f":"IF(Stock!#REF!<>\"\",Pilotage!P$27,\"\")","v":{"$error":"#REF!"}},{"$f":"IF(Stock!#REF!<>\"\",ROUND(Q114*S114,0),\"\")","v":{"$error":"#REF!"}},{"$f":"IF(Stock!#REF!<>\"\",$H114*T114,\"\")","v":{"$error":"#REF!"}},{"$f":"IF(Stock!#REF!<>\"\",Pilotage!Q$27,\"\")","v":{"$error":"#REF!"}},{"$f":"IF(Stock!#REF!<>\"\",ROUND(T114*V114,0),\"\")","v":{"$error":"#REF!"}},{"$f":"IF(Stock!#REF!<>\"\",$H114*W114,\"\")","v":{"$error":"#REF!"}},{"$f":"IF(Stock!#REF!<>\"\",Pilotage!R$27,\"\")","v":{"$error":"#REF!"}},{"$f":"IF(Stock!#REF!<>\"\",ROUND(W114*Y114,0),\"\")","v":{"$error":"#REF!"}},{"$f":"IF(Stock!#REF!<>\"\",$H114*Z114,\"\")","v":{"$error":"#REF!"}}]
[{"$f":"IF(Stock!#REF!<>\"\",Stock!#REF!,\"\")","v":{"$error":"#REF!"}},{"$f":"IF(Stock!#REF!<>\"\",Stock!#REF!,\"\")","v":{"$error":"#REF!"}},{"$f":"IF(Stock!#REF!<>\"\",Stock!#REF!,\"\")","v":{"$error":"#REF!"}},{"$f":"IF(Stock!#REF!<>\"\",SUM(Stock!#REF!,Stock!#REF!,Stock!#REF!),\"\")","v":{"$error":"#REF!"}},{"$f":"IF(Stock!#REF!<>\"\",#REF!*(1+Pilotage!$M$20),\"\")","v":{"$error":"#REF!"}},null,{"$f":"IF(Stock!#REF!<>\"\",IF(Stock!#REF!>0,Stock!#REF!/Stock!#REF!,0),\"\")","v":{"$error":"#REF!"}},{"$f":"IF(Stock!#REF!<>\"\",E115*Pilotage!$D$15,\"\")","v":{"$error":"#REF!"}},{"$f":"IF(Stock!#REF!<>\"\",IF(Stock!#REF!>0,Stock!#REF!,0),\"\")","v":{"$error":"#REF!"}},{"$f":"IF(Stock!#REF!<>\"\",Pilotage!$M$27,\"\")","v":{"$error":"#REF!"}},{"$f":"IF(Stock!#REF!<>\"\",ROUND(Stock!#REF!*J115,0),\"\")","v":{"$error":"#REF!"}},{"$f":"IF(Stock!#REF!<>\"\",$H115*K115,\"\")","v":{"$error":"#REF!"}},{"$f":"IF(Stock!#REF!<>\"\",Pilotage!N$27,\"\")","v":{"$error":"#REF!"}},{"$f":"IF(Stock!#REF!<>\"\",ROUND(K115*M115,0),\"\")","v":{"$error":"#REF!"}},{"$f":"IF(Stock!#REF!<>\"\",$H115*N115,\"\")","v":{"$error":"#REF!"}},{"$f":"IF(Stock!#REF!<>\"\",Pilotage!O$27,\"\")","v":{"$error":"#REF!"}},{"$f":"IF(Stock!#REF!<>\"\",ROUND(K115*P115,0),\"\")","v":{"$error":"#REF!"}},{"$f":"IF(Stock!#REF!<>\"\",$H115*Q115,\"\")","v":{"$error":"#REF!"}},{"$f":"IF(Stock!#REF!<>\"\",Pilotage!P$27,\"\")","v":{"$error":"#REF!"}},{"$f":"IF(Stock!#REF!<>\"\",ROUND(Q115*S115,0),\"\")","v":{"$error":"#REF!"}},{"$f":"IF(Stock!#REF!<>\"\",$H115*T115,\"\")","v":{"$error":"#REF!"}},{"$f":"IF(Stock!#REF!<>\"\",Pilotage!Q$27,\"\")","v":{"$error":"#REF!"}},{"$f":"IF(Stock!#REF!<>\"\",ROUND(T115*V115,0),\"\")","v":{"$error":"#REF!"}},{"$f":"IF(Stock!#REF!<>\"\",$H115*W115,\"\")","v":{"$error":"#REF!"}},{"$f":"IF(Stock!#REF!<>\"\",Pilotage!R$27,\"\")","v":{"$error":"#REF!"}},{"$f":"IF(Stock!#REF!<>\"\",ROUND(W115*Y115,0),\"\")","v":{"$error":"#REF!"}},{"$f":"IF(Stock!#REF!<>\"\",$H115*Z115,\"\")","v":{"$error":"#REF!"}}]
[{"$f":"IF(Stock!#REF!<>\"\",Stock!#REF!,\"\")","v":{"$error":"#REF!"}},{"$f":"IF(Stock!#REF!<>\"\",Stock!#REF!,\"\")","v":{"$error":"#REF!"}},{"$f":"IF(Stock!#REF!<>\"\",Stock!#REF!,\"\")","v":{"$error":"#REF!"}},{"$f":"IF(Stock!#REF!<>\"\",SUM(Stock!#REF!,Stock!#REF!,Stock!#REF!),\"\")","v":{"$error":"#REF!"}},{"$f":"IF(Stock!#REF!<>\"\",#REF!*(1+Pilotage!$M$20),\"\")","v":{"$error":"#REF!"}},null,{"$f":"IF(Stock!#REF!<>\"\",IF(Stock!#REF!>0,Stock!#REF!/Stock!#REF!,0),\"\")","v":{"$error":"#REF!"}},{"$f":"IF(Stock!#REF!<>\"\",E116*Pilotage!$D$15,\"\")","v":{"$error":"#REF!"}},{"$f":"IF(Stock!#REF!<>\"\",IF(Stock!#REF!>0,Stock!#REF!,0),\"\")","v":{"$error":"#REF!"}},{"$f":"IF(Stock!#REF!<>\"\",Pilotage!$M$27,\"\")","v":{"$error":"#REF!"}},{"$f":"IF(Stock!#REF!<>\"\",ROUND(Stock!#REF!*J116,0),\"\")","v":{"$error":"#REF!"}},{"$f":"IF(Stock!#REF!<>\"\",$H116*K116,\"\")","v":{"$error":"#REF!"}},{"$f":"IF(Stock!#REF!<>\"\",Pilotage!N$27,\"\")","v":{"$error":"#REF!"}},{"$f":"IF(Stock!#REF!<>\"\",ROUND(K116*M116,0),\"\")","v":{"$error":"#REF!"}},{"$f":"IF(Stock!#REF!<>\"\",$H116*N116,\"\")","v":{"$error":"#REF!"}},{"$f":"IF(Stock!#REF!<>\"\",Pilotage!O$27,\"\")","v":{"$error":"#REF!"}},{"$f":"IF(Stock!#REF!<>\"\",ROUND(K116*P116,0),\"\")","v":{"$error":"#REF!"}},{"$f":"IF(Stock!#REF!<>\"\",$H116*Q116,\"\")","v":{"$error":"#REF!"}},{"$f":"IF(Stock!#REF!<>\"\",Pilotage!P$27,\"\")","v":{"$error":"#REF!"}},{"$f":"IF(Stock!#REF!<>\"\",ROUND(Q116*S116,0),\"\")","v":{"$error":"#REF!"}},{"$f":"IF(Stock!#REF!<>\"\",$H116*T116,\"\")","v":{"$error":"#REF!"}},{"$f":"IF(Stock!#REF!<>\"\",Pilotage!Q$27,\"\")","v":{"$error":"#REF!"}},{"$f":"IF(Stock!#REF!<>\"\",ROUND(T116*V116,0),\"\")","v":{"$error":"#REF!"}},{"$f":"IF(Stock!#REF!<>\"\",$H116*W116,\"\")","v":{"$error":"#REF!"}},{"$f":"IF(Stock!#REF!<>\"\",Pilotage!R$27,\"\")","v":{"$error":"#REF!"}},{"$f":"IF(Stock!#REF!<>\"\",ROUND(W116*Y116,0),\"\")","v":{"$error":"#REF!"}},{"$f":"IF(Stock!#REF!<>\"\",$H116*Z116,\"\")","v":{"$error":"#REF!"}}]
[{"$f":"IF(Stock!#REF!<>\"\",Stock!#REF!,\"\")","v":{"$error":"#REF!"}},{"$f":"IF(Stock!#REF!<>\"\",Stock!#REF!,\"\")","v":{"$error":"#REF!"}},{"$f":"IF(Stock!#REF!<>\"\",Stock!#REF!,\"\")","v":{"$error":"#REF!"}},{"$f":"IF(Stock!#REF!<>\"\",SUM(Stock!#REF!,Stock!#REF!,Stock!#REF!),\"\")","v":{"$error":"#REF!"}},{"$f":"IF(Stock!#REF!<>\"\",#REF!*(1+Pilotage!$M$20),\"\")","v":{"$error":"#REF!"}},null,{"$f":"IF(Stock!#REF!<>\"\",IF(Stock!#REF!>0,Stock!#REF!/Stock!#REF!,0),\"\")","v":{"$error":"#REF!"}},{"$f":"IF(Stock!#REF!<>\"\",E117*Pilotage!$D$15,\"\")","v":{"$error":"#REF!"}},{"$f":"IF(Stock!#REF!<>\"\",IF(Stock!#REF!>0,Stock!#REF!,0),\"\")","v":{"$error":"#REF!"}},{"$f":"IF(Stock!#REF!<>\"\",Pilotage!$M$27,\"\")","v":{"$error":"#REF!"}},{"$f":"IF(Stock!#REF!<>\"\",ROUND(Stock!#REF!*J117,0),\"\")","v":{"$error":"#REF!"}},{"$f":"IF(Stock!#REF!<>\"\",$H117*K117,\"\")","v":{"$error":"#REF!"}},{"$f":"IF(Stock!#REF!<>\"\",Pilotage!N$27,\"\")","v":{"$error":"#REF!"}},{"$f":"IF(Stock!#REF!<>\"\",ROUND(K117*M117,0),\"\")","v":{"$error":"#REF!"}},{"$f":"IF(Stock!#REF!<>\"\",$H117*N117,\"\")","v":{"$error":"#REF!"}},{"$f":"IF(Stock!#REF!<>\"\",Pilotage!O$27,\"\")","v":{"$error":"#REF!"}},{"$f":"IF(Stock!#REF!<>\"\",ROUND(K117*P117,0),\"\")","v":{"$error":"#REF!"}},{"$f":"IF(Stock!#REF!<>\"\",$H117*Q117,\"\")","v":{"$error":"#REF!"}},{"$f":"IF(Stock!#REF!<>\"\",Pilotage!P$27,\"\")","v":{"$error":"#REF!"}},{"$f":"IF(Stock!#REF!<>\"\",ROUND(Q117*S117,0),\"\")","v":{"$error":"#REF!"}},{"$f":"IF(Stock!#REF!<>\"\",$H117*T117,\"\")","v":{"$error":"#REF!"}},{"$f":"IF(Stock!#REF!<>\"\",Pilotage!Q$27,\"\")","v":{"$error":"#REF!"}},{"$f":"IF(Stock!#REF!<>\"\",ROUND(T117*V117,0),\"\")","v":{"$error":"#REF!"}},{"$f":"IF(Stock!#REF!<>\"\",$H117*W117,\"\")","v":{"$error":"#REF!"}},{"$f":"IF(Stock!#REF!<>\"\",Pilotage!R$27,\"\")","v":{"$error":"#REF!"}},{"$f":"IF(Stock!#REF!<>\"\",ROUND(W117*Y117,0),\"\")","v":{"$error":"#REF!"}},{"$f":"IF(Stock!#REF!<>\"\",$H117*Z117,\"\")","v":{"$error":"#REF!"}}]
[{"$f":"IF(Stock!#REF!<>\"\",Stock!#REF!,\"\")","v":{"$error":"#REF!"}},{"$f":"IF(Stock!#REF!<>\"\",Stock!#REF!,\"\")","v":{"$error":"#REF!"}},{"$f":"IF(Stock!#REF!<>\"\",Stock!#REF!,\"\")","v":{"$error":"#REF!"}},{"$f":"IF(Stock!#REF!<>\"\",SUM(Stock!#REF!,Stock!#REF!,Stock!#REF!),\"\")","v":{"$error":"#REF!"}},{"$f":"IF(Stock!#REF!<>\"\",#REF!*(1+Pilotage!$M$20),\"\")","v":{"$error":"#REF!"}},null,{"$f":"IF(Stock!#REF!<>\"\",IF(Stock!#REF!>0,Stock!#REF!/Stock!#REF!,0),\"\")","v":{"$error":"#REF!"}},{"$f":"IF(Stock!#REF!<>\"\",E118*Pilotage!$D$15,\"\")","v":{"$error":"#REF!"}},{"$f":"IF(Stock!#REF!<>\"\",IF(Stock!#REF!>0,Stock!#REF!,0),\"\")","v":{"$error":"#REF!"}},{"$f":"IF(Stock!#REF!<>\"\",Pilotage!$M$27,\"\")","v":{"$error":"#REF!"}},{"$f":"IF(Stock!#REF!<>\"\",ROUND(Stock!#REF!*J118,0),\"\")","v":{"$error":"#REF!"}},{"$f":"IF(Stock!#REF!<>\"\",$H118*K118,\"\")","v":{"$error":"#REF!"}},{"$f":"IF(Stock!#REF!<>\"\",Pilotage!N$27,\"\")","v":{"$error":"#REF!"}},{"$f":"IF(Stock!#REF!<>\"\",ROUND(K118*M118,0),\"\")","v":{"$error":"#REF!"}},{"$f":"IF(Stock!#REF!<>\"\",$H118*N118,\"\")","v":{"$error":"#REF!"}},{"$f":"IF(Stock!#REF!<>\"\",Pilotage!O$27,\"\")","v":{"$error":"#REF!"}},{"$f":"IF(Stock!#REF!<>\"\",ROUND(K118*P118,0),\"\")","v":{"$error":"#REF!"}},{"$f":"IF(Stock!#REF!<>\"\",$H118*Q118,\"\")","v":{"$error":"#REF!"}},{"$f":"IF(Stock!#REF!<>\"\",Pilotage!P$27,\"\")","v":{"$error":"#REF!"}},{"$f":"IF(Stock!#REF!<>\"\",ROUND(Q118*S118,0),\"\")","v":{"$error":"#REF!"}},{"$f":"IF(Stock!#REF!<>\"\",$H118*T118,\"\")","v":{"$error":"#REF!"}},{"$f":"IF(Stock!#REF!<>\"\",Pilotage!Q$27,\"\")","v":{"$error":"#REF!"}},{"$f":"IF(Stock!#REF!<>\"\",ROUND(T118*V118,0),\"\")","v":{"$error":"#REF!"}},{"$f":"IF(Stock!#REF!<>\"\",$H118*W118,\"\")","v":{"$error":"#REF!"}},{"$f":"IF(Stock!#REF!<>\"\",Pilotage!R$27,\"\")","v":{"$error":"#REF!"}},{"$f":"IF(Stock!#REF!<>\"\",ROUND(W118*Y118,0),\"\")","v":{"$error":"#REF!"}},{"$f":"IF(Stock!#REF!<>\"\",$H118*Z118,\"\")","v":{"$error":"#REF!"}}]
[{"$f":"IF(Stock!#REF!<>\"\",Stock!#REF!,\"\")","v":{"$error":"#REF!"}},{"$f":"IF(Stock!#REF!<>\"\",Stock!#REF!,\"\")","v":{"$error":"#REF!"}},{"$f":"IF(Stock!#REF!<>\"\",Stock!#REF!,\"\")","v":{"$error":"#REF!"}},{"$f":"IF(Stock!#REF!<>\"\",SUM(Stock!#REF!,Stock!#REF!,Stock!#REF!),\"\")","v":{"$error":"#REF!"}},{"$f":"IF(Stock!#REF!<>\"\",#REF!*(1+Pilotage!$M$20),\"\")","v":{"$error":"#REF!"}},null,{"$f":"IF(Stock!#REF!<>\"\",IF(Stock!#REF!>0,Stock!#REF!/Stock!#REF!,0),\"\")","v":{"$error":"#REF!"}},{"$f":"IF(Stock!#REF!<>\"\",E119*Pilotage!$D$15,\"\")","v":{"$error":"#REF!"}},{"$f":"IF(Stock!#REF!<>\"\",IF(Stock!#REF!>0,Stock!#REF!,0),\"\")","v":{"$error":"#REF!"}},{"$f":"IF(Stock!#REF!<>\"\",Pilotage!$M$27,\"\")","v":{"$error":"#REF!"}},{"$f":"IF(Stock!#REF!<>\"\",ROUND(Stock!#REF!*J119,0),\"\")","v":{"$error":"#REF!"}},{"$f":"IF(Stock!#REF!<>\"\",$H119*K119,\"\")","v":{"$error":"#REF!"}},{"$f":"IF(Stock!#REF!<>\"\",Pilotage!N$27,\"\")","v":{"$error":"#REF!"}},{"$f":"IF(Stock!#REF!<>\"\",ROUND(K119*M119,0),\"\")","v":{"$error":"#REF!"}},{"$f":"IF(Stock!#REF!<>\"\",$H119*N119,\"\")","v":{"$error":"#REF!"}},{"$f":"IF(Stock!#REF!<>\"\",Pilotage!O$27,\"\")","v":{"$error":"#REF!"}},{"$f":"IF(Stock!#REF!<>\"\",ROUND(K119*P119,0),\"\")","v":{"$error":"#REF!"}},{"$f":"IF(Stock!#REF!<>\"\",$H119*Q119,\"\")","v":{"$error":"#REF!"}},{"$f":"IF(Stock!#REF!<>\"\",Pilotage!P$27,\"\")","v":{"$error":"#REF!"}},{"$f":"IF(Stock!#REF!<>\"\",ROUND(Q119*S119,0),\"\")","v":{"$error":"#REF!"}},{"$f":"IF(Stock!#REF!<>\"\",$H119*T119,\"\")","v":{"$error":"#REF!"}},{"$f":"IF(Stock!#REF!<>\"\",Pilotage!Q$27,\"\")","v":{"$error":"#REF!"}},{"$f":"IF(Stock!#REF!<>\"\",ROUND(T119*V119,0),\"\")","v":{"$error":"#REF!"}},{"$f":"IF(Stock!#REF!<>\"\",$H119*W119,\"\")","v":{"$error":"#REF!"}},{"$f":"IF(Stock!#REF!<>\"\",Pilotage!R$27,\"\")","v":{"$error":"#REF!"}},{"$f":"IF(Stock!#REF!<>\"\",ROUND(W119*Y119,0),\"\")","v":{"$error":"#REF!"}},{"$f":"IF(Stock!#REF!<>\"\",$H119*Z119,\"\")","v":{"$error":"#REF!"}}]
[{"$f":"IF(Stock!#REF!<>\"\",Stock!#REF!,\"\")","v":{"$error":"#REF!"}},{"$f":"IF(Stock!#REF!<>\"\",Stock!#REF!,\"\")","v":{"$error":"#REF!"}},{"$f":"IF(Stock!#REF!<>\"\",Stock!#REF!,\"\")","v":{"$error":"#REF!"}},{"$f":"IF(Stock!#REF!<>\"\",SUM(Stock!#REF!,Stock!#REF!,Stock!#REF!),\"\")","v":{"$error":"#REF!"}},{"$f":"IF(Stock!#REF!<>\"\",#REF!*(1+Pilotage!$M$20),\"\")","v":{"$error":"#REF!"}},null,{"$f":"IF(Stock!#REF!<>\"\",IF(Stock!#REF!>0,Stock!#REF!/Stock!#REF!,0),\"\")","v":{"$error":"#REF!"}},{"$f":"IF(Stock!#REF!<>\"\",E120*Pilotage!$D$15,\"\")","v":{"$error":"#REF!"}},{"$f":"IF(Stock!#REF!<>\"\",IF(Stock!#REF!>0,Stock!#REF!,0),\"\")","v":{"$error":"#REF!"}},{"$f":"IF(Stock!#REF!<>\"\",Pilotage!$M$27,\"\")","v":{"$error":"#REF!"}},{"$f":"IF(Stock!#REF!<>\"\",ROUND(Stock!#REF!*J120,0),\"\")","v":{"$error":"#REF!"}},{"$f":"IF(Stock!#REF!<>\"\",$H120*K120,\"\")","v":{"$error":"#REF!"}},{"$f":"IF(Stock!#REF!<>\"\",Pilotage!N$27,\"\")","v":{"$error":"#REF!"}},{"$f":"IF(Stock!#REF!<>\"\",ROUND(K120*M120,0),\"\")","v":{"$error":"#REF!"}},{"$f":"IF(Stock!#REF!<>\"\",$H120*N120,\"\")","v":{"$error":"#REF!"}},{"$f":"IF(Stock!#REF!<>\"\",Pilotage!O$27,\"\")","v":{"$error":"#REF!"}},{"$f":"IF(Stock!#REF!<>\"\",ROUND(K120*P120,0),\"\")","v":{"$error":"#REF!"}},{"$f":"IF(Stock!#REF!<>\"\",$H120*Q120,\"\")","v":{"$error":"#REF!"}},{"$f":"IF(Stock!#REF!<>\"\",Pilotage!P$27,\"\")","v":{"$error":"#REF!"}},{"$f":"IF(Stock!#REF!<>\"\",ROUND(Q120*S120,0),\"\")","v":{"$error":"#REF!"}},{"$f":"IF(Stock!#REF!<>\"\",$H120*T120,\"\")","v":{"$error":"#REF!"}},{"$f":"IF(Stock!#REF!<>\"\",Pilotage!Q$27,\"\")","v":{"$error":"#REF!"}},{"$f":"IF(Stock!#REF!<>\"\",ROUND(T120*V120,0),\"\")","v":{"$error":"#REF!"}},{"$f":"IF(Stock!#REF!<>\"\",$H120*W120,\"\")","v":{"$error":"#REF!"}},{"$f":"IF(Stock!#REF!<>\"\",Pilotage!R$27,\"\")","v":{"$error":"#REF!"}},{"$f":"IF(Stock!#REF!<>\"\",ROUND(W120*Y120,0),\"\")","v":{"$error":"#REF!"}},{"$f":"IF(Stock!#REF!<>\"\",$H120*Z120,\"\")","v":{"$error":"#REF!"}}]
[{"$f":"IF(Stock!#REF!<>\"\",Stock!#REF!,\"\")","v":{"$error":"#REF!"}},{"$f":"IF(Stock!#REF!<>\"\",Stock!#REF!,\"\")","v":{"$error":"#REF!"}},{"$f":"IF(Stock!#REF!<>\"\",Stock!#REF!,\"\")","v":{"$error":"#REF!"}},{"$f":"IF(Stock!#REF!<>\"\",SUM(Stock!#REF!,Stock!#REF!,Stock!#REF!),\"\")","v":{"$error":"#REF!"}},{"$f":"IF(Stock!#REF!<>\"\",#REF!*(1+Pilotage!$M$20),\"\")","v":{"$error":"#REF!"}},null,{"$f":"IF(Stock!#REF!<>\"\",IF(Stock!#REF!>0,Stock!#REF!/Stock!#REF!,0),\"\")","v":{"$error":"#REF!"}},{"$f":"IF(Stock!#REF!<>\"\",E121*Pilotage!$D$15,\"\")","v":{"$error":"#REF!"}},{"$f":"IF(Stock!#REF!<>\"\",IF(Stock!#REF!>0,Stock!#REF!,0),\"\")","v":{"$error":"#REF!"}},{"$f":"IF(Stock!#REF!<>\"\",Pilotage!$M$27,\"\")","v":{"$error":"#REF!"}},{"$f":"IF(Stock!#REF!<>\"\",ROUND(Stock!#REF!*J121,0),\"\")","v":{"$error":"#REF!"}},{"$f":"IF(Stock!#REF!<>\"\",$H121*K121,\"\")","v":{"$error":"#REF!"}},{"$f":"IF(Stock!#REF!<>\"\",Pilotage!N$27,\"\")","v":{"$error":"#REF!"}},{"$f":"IF(Stock!#REF!<>\"\",ROUND(K121*M121,0),\"\")","v":{"$error":"#REF!"}},{"$f":"IF(Stock!#REF!<>\"\",$H121*N121,\"\")","v":{"$error":"#REF!"}},{"$f":"IF(Stock!#REF!<>\"\",Pilotage!O$27,\"\")","v":{"$error":"#REF!"}},{"$f":"IF(Stock!#REF!<>\"\",ROUND(K121*P121,0),\"\")","v":{"$error":"#REF!"}},{"$f":"IF(Stock!#REF!<>\"\",$H121*Q121,\"\")","v":{"$error":"#REF!"}},{"$f":"IF(Stock!#REF!<>\"\",Pilotage!P$27,\"\")","v":{"$error":"#REF!"}},{"$f":"IF(Stock!#REF!<>\"\",ROUND(Q121*S121,0),\"\")","v":{"$error":"#REF!"}},{"$f":"IF(Stock!#REF!<>\"\",$H121*T121,\"\")","v":{"$error":"#REF!"}},{"$f":"IF(Stock!#REF!<>\"\",Pilotage!Q$27,\"\")","v":{"$error":"#REF!"}},{"$f":"IF(Stock!#REF!<>\"\",ROUND(T121*V121,0),\"\")","v":{"$error":"#REF!"}},{"$f":"IF(Stock!#REF!<>\"\",$H121*W121,\"\")","v":{"$error":"#REF!"}},{"$f":"IF(Stock!#REF!<>\"\",Pilotage!R$27,\"\")","v":{"$error":"#REF!"}},{"$f":"IF(Stock!#REF!<>\"\",ROUND(W121*Y121,0),\"\")","v":{"$error":"#REF!"}},{"$f":"IF(Stock!#REF!<>\"\",$H121*Z121,\"\")","v":{"$error":"#REF!"}}]
[{"$f":"IF(Stock!#REF!<>\"\",Stock!#REF!,\"\")","v":{"$error":"#REF!"}},{"$f":"IF(Stock!#REF!<>\"\",Stock!#REF!,\"\")","v":{"$error":"#REF!"}},{"$f":"IF(Stock!#REF!<>\"\",Stock!#REF!,\"\")","v":{"$error":"#REF!"}},{"$f":"IF(Stock!#REF!<>\"\",SUM(Stock!#REF!,Stock!#REF!,Stock!#REF!),\"\")","v":{"$error":"#REF!"}},{"$f":"IF(Stock!#REF!<>\"\",#REF!*(1+Pilotage!$M$20),\"\")","v":{"$error":"#REF!"}},null,{"$f":"IF(Stock!#REF!<>\"\",IF(Stock!#REF!>0,Stock!#REF!/Stock!#REF!,0),\"\")","v":{"$error":"#REF!"}},{"$f":"IF(Stock!#REF!<>\"\",E122*Pilotage!$D$15,\"\")","v":{"$error":"#REF!"}},{"$f":"IF(Stock!#REF!<>\"\",IF(Stock!#REF!>0,Stock!#REF!,0),\"\")","v":{"$error":"#REF!"}},{"$f":"IF(Stock!#REF!<>\"\",Pilotage!$M$27,\"\")","v":{"$error":"#REF!"}},{"$f":"IF(Stock!#REF!<>\"\",ROUND(Stock!#REF!*J122,0),\"\")","v":{"$error":"#REF!"}},{"$f":"IF(Stock!#REF!<>\"\",$H122*K122,\"\")","v":{"$error":"#REF!"}},{"$f":"IF(Stock!#REF!<>\"\",Pilotage!N$27,\"\")","v":{"$error":"#REF!"}},{"$f":"IF(Stock!#REF!<>\"\",ROUND(K122*M122,0),\"\")","v":{"$error":"#REF!"}},{"$f":"IF(Stock!#REF!<>\"\",$H122*N122,\"\")","v":{"$error":"#REF!"}},{"$f":"IF(Stock!#REF!<>\"\",Pilotage!O$27,\"\")","v":{"$error":"#REF!"}},{"$f":"IF(Stock!#REF!<>\"\",ROUND(K122*P122,0),\"\")","v":{"$error":"#REF!"}},{"$f":"IF(Stock!#REF!<>\"\",$H122*Q122,\"\")","v":{"$error":"#REF!"}},{"$f":"IF(Stock!#REF!<>\"\",Pilotage!P$27,\"\")","v":{"$error":"#REF!"}},{"$f":"IF(Stock!#REF!<>\"\",ROUND(Q122*S122,0),\"\")","v":{"$error":"#REF!"}},{"$f":"IF(Stock!#REF!<>\"\",$H122*T122,\"\")","v":{"$error":"#REF!"}},{"$f":"IF(Stock!#REF!<>\"\",Pilotage!Q$27,\"\")","v":{"$error":"#REF!"}},{"$f":"IF(Stock!#REF!<>\"\",ROUND(T122*V122,0),\"\")","v":{"$error":"#REF!"}},{"$f":"IF(Stock!#REF!<>\"\",$H122*W122,\"\")","v":{"$error":"#REF!"}},{"$f":"IF(Stock!#REF!<>\"\",Pilotage!R$27,\"\")","v":{"$error":"#REF!"}},{"$f":"IF(Stock!#REF!<>\"\",ROUND(W122*Y122,0),\"\")","v":{"$error":"#REF!"}},{"$f":"IF(Stock!#REF!<>\"\",$H122*Z122,\"\")","v":{"$error":"#REF!"}}]
[{"$f":"IF(Stock!#REF!<>\"\",Stock!#REF!,\"\")","v":{"$error":"#REF!"}},{"$f":"IF(Stock!#REF!<>\"\",Stock!#REF!,\"\")","v":{"$error":"#REF!"}},{"$f":"IF(Stock!#REF!<>\"\",Stock!#REF!,\"\")","v":{"$error":"#REF!"}},{"$f":"IF(Stock!#REF!<>\"\",SUM(Stock!#REF!,Stock!#REF!,Stock!#REF!),\"\")","v":{"$error":"#REF!"}},{"$f":"IF(Stock!#REF!<>\"\",#REF!*(1+Pilotage!$M$20),\"\")","v":{"$error":"#REF!"}},null,{"$f":"IF(Stock!#REF!<>\"\",IF(Stock!#REF!>0,Stock!#REF!/Stock!#REF!,0),\"\")","v":{"$error":"#REF!"}},{"$f":"IF(Stock!#REF!<>\"\",E123*Pilotage!$D$15,\"\")","v":{"$error":"#REF!"}},{"$f":"IF(Stock!#REF!<>\"\",IF(Stock!#REF!>0,Stock!#REF!,0),\"\")","v":{"$error":"#REF!"}},{"$f":"IF(Stock!#REF!<>\"\",Pilotage!$M$27,\"\")","v":{"$error":"#REF!"}},{"$f":"IF(Stock!#REF!<>\"\",ROUND(Stock!#REF!*J123,0),\"\")","v":{"$error":"#REF!"}},{"$f":"IF(Stock!#REF!<>\"\",$H123*K123,\"\")","v":{"$error":"#REF!"}},{"$f":"IF(Stock!#REF!<>\"\",Pilotage!N$27,\"\")","v":{"$error":"#REF!"}},{"$f":"IF(Stock!#REF!<>\"\",ROUND(K123*M123,0),\"\")","v":{"$error":"#REF!"}},{"$f":"IF(Stock!#REF!<>\"\",$H123*N123,\"\")","v":{"$error":"#REF!"}},{"$f":"IF(Stock!#REF!<>\"\",Pilotage!O$27,\"\")","v":{"$error":"#REF!"}},{"$f":"IF(Stock!#REF!<>\"\",ROUND(K123*P123,0),\"\")","v":{"$error":"#REF!"}},{"$f":"IF(Stock!#REF!<>\"\",$H123*Q123,\"\")","v":{"$error":"#REF!"}},{"$f":"IF(Stock!#REF!<>\"\",Pilotage!P$27,\"\")","v":{"$error":"#REF!"}},{"$f":"IF(Stock!#REF!<>\"\",ROUND(Q123*S123,0),\"\")","v":{"$error":"#REF!"}},{"$f":"IF(Stock!#REF!<>\"\",$H123*T123,\"\")","v":{"$error":"#REF!"}},{"$f":"IF(Stock!#REF!<>\"\",Pilotage!Q$27,\"\")","v":{"$error":"#REF!"}},{"$f":"IF(Stock!#REF!<>\"\",ROUND(T123*V123,0),\"\")","v":{"$error":"#REF!"}},{"$f":"IF(Stock!#REF!<>\"\",$H123*W123,\"\")","v":{"$error":"#REF!"}},{"$f":"IF(Stock!#REF!<>\"\",Pilotage!R$27,\"\")","v":{"$error":"#REF!"}},{"$f":"IF(Stock!#REF!<>\"\",ROUND(W123*Y123,0),\"\")","v":{"$error":"#REF!"}},{"$f":"IF(Stock!#REF!<>\"\",$H123*Z123,\"\")","v":{"$error":"#REF!"}}]
[{"$f":"IF(Stock!#REF!<>\"\",Stock!#REF!,\"\")","v":{"$error":"#REF!"}},{"$f":"IF(Stock!#REF!<>\"\",Stock!#REF!,\"\")","v":{"$error":"#REF!"}},{"$f":"IF(Stock!#REF!<>\"\",Stock!#REF!,\"\")","v":{"$error":"#REF!"}},{"$f":"IF(Stock!#REF!<>\"\",SUM(Stock!#REF!,Stock!#REF!,Stock!#REF!),\"\")","v":{"$error":"#REF!"}},{"$f":"IF(Stock!#REF!<>\"\",#REF!*(1+Pilotage!$M$20),\"\")","v":{"$error":"#REF!"}},null,{"$f":"IF(Stock!#REF!<>\"\",IF(Stock!#REF!>0,Stock!#REF!/Stock!#REF!,0),\"\")","v":{"$error":"#REF!"}},{"$f":"IF(Stock!#REF!<>\"\",E124*Pilotage!$D$15,\"\")","v":{"$error":"#REF!"}},{"$f":"IF(Stock!#REF!<>\"\",IF(Stock!#REF!>0,Stock!#REF!,0),\"\")","v":{"$error":"#REF!"}},{"$f":"IF(Stock!#REF!<>\"\",Pilotage!$M$27,\"\")","v":{"$error":"#REF!"}},{"$f":"IF(Stock!#REF!<>\"\",ROUND(Stock!#REF!*J124,0),\"\")","v":{"$error":"#REF!"}},{"$f":"IF(Stock!#REF!<>\"\",$H124*K124,\"\")","v":{"$error":"#REF!"}},{"$f":"IF(Stock!#REF!<>\"\",Pilotage!N$27,\"\")","v":{"$error":"#REF!"}},{"$f":"IF(Stock!#REF!<>\"\",ROUND(K124*M124,0),\"\")","v":{"$error":"#REF!"}},{"$f":"IF(Stock!#REF!<>\"\",$H124*N124,\"\")","v":{"$error":"#REF!"}},{"$f":"IF(Stock!#REF!<>\"\",Pilotage!O$27,\"\")","v":{"$error":"#REF!"}},{"$f":"IF(Stock!#REF!<>\"\",ROUND(K124*P124,0),\"\")","v":{"$error":"#REF!"}},{"$f":"IF(Stock!#REF!<>\"\",$H124*Q124,\"\")","v":{"$error":"#REF!"}},{"$f":"IF(Stock!#REF!<>\"\",Pilotage!P$27,\"\")","v":{"$error":"#REF!"}},{"$f":"IF(Stock!#REF!<>\"\",ROUND(Q124*S124,0),\"\")","v":{"$error":"#REF!"}},{"$f":"IF(Stock!#REF!<>\"\",$H124*T124,\"\")","v":{"$error":"#REF!"}},{"$f":"IF(Stock!#REF!<>\"\",Pilotage!Q$27,\"\")","v":{"$error":"#REF!"}},{"$f":"IF(Stock!#REF!<>\"\",ROUND(T124*V124,0),\"\")","v":{"$error":"#REF!"}},{"$f":"IF(Stock!#REF!<>\"\",$H124*W124,\"\")","v":{"$error":"#REF!"}},{"$f":"IF(Stock!#REF!<>\"\",Pilotage!R$27,\"\")","v":{"$error":"#REF!"}},{"$f":"IF(Stock!#REF!<>\"\",ROUND(W124*Y124,0),\"\")","v":{"$error":"#REF!"}},{"$f":"IF(Stock!#REF!<>\"\",$H124*Z124,\"\")","v":{"$error":"#REF!"}}]
[{"$f":"IF(Stock!#REF!<>\"\",Stock!#REF!,\"\")","v":{"$error":"#REF!"}},{"$f":"IF(Stock!#REF!<>\"\",Stock!#REF!,\"\")","v":{"$error":"#REF!"}},{"$f":"IF(Stock!#REF!<>\"\",Stock!#REF!,\"\")","v":{"$error":"#REF!"}},{"$f":"IF(Stock!#REF!<>\"\",SUM(Stock!#REF!,Stock!#REF!,Stock!#REF!),\"\")","v":{"$error":"#REF!"}},{"$f":"IF(Stock!#REF!<>\"\",#REF!*(1+Pilotage!$M$20),\"\")","v":{"$error":"#REF!"}},null,{"$f":"IF(Stock!#REF!<>\"\",IF(Stock!#REF!>0,Stock!#REF!/Stock!#REF!,0),\"\")","v":{"$error":"#REF!"}},{"$f":"IF(Stock!#REF!<>\"\",E125*Pilotage!$D$15,\"\")","v":{"$error":"#REF!"}},{"$f":"IF(Stock!#REF!<>\"\",IF(Stock!#REF!>0,Stock!#REF!,0),\"\")","v":{"$error":"#REF!"}},{"$f":"IF(Stock!#REF!<>\"\",Pilotage!$M$27,\"\")","v":{"$error":"#REF!"}},{"$f":"IF(Stock!#REF!<>\"\",ROUND(Stock!#REF!*J125,0),\"\")","v":{"$error":"#REF!"}},{"$f":"IF(Stock!#REF!<>\"\",$H125*K125,\"\")","v":{"$error":"#REF!"}},{"$f":"IF(Stock!#REF!<>\"\",Pilotage!N$27,\"\")","v":{"$error":"#REF!"}},{"$f":"IF(Stock!#REF!<>\"\",ROUND(K125*M125,0),\"\")","v":{"$error":"#REF!"}},{"$f":"IF(Stock!#REF!<>\"\",$H125*N125,\"\")","v":{"$error":"#REF!"}},{"$f":"IF(Stock!#REF!<>\"\",Pilotage!O$27,\"\")","v":{"$error":"#REF!"}},{"$f":"IF(Stock!#REF!<>\"\",ROUND(K125*P125,0),\"\")","v":{"$error":"#REF!"}},{"$f":"IF(Stock!#REF!<>\"\",$H125*Q125,\"\")","v":{"$error":"#REF!"}},{"$f":"IF(Stock!#REF!<>\"\",Pilotage!P$27,\"\")","v":{"$error":"#REF!"}},{"$f":"IF(Stock!#REF!<>\"\",ROUND(Q125*S125,0),\"\")","v":{"$error":"#REF!"}},{"$f":"IF(Stock!#REF!<>\"\",$H125*T125,\"\")","v":{"$error":"#REF!"}},{"$f":"IF(Stock!#REF!<>\"\",Pilotage!Q$27,\"\")","v":{"$error":"#REF!"}},{"$f":"IF(Stock!#REF!<>\"\",ROUND(T125*V125,0),\"\")","v":{"$error":"#REF!"}},{"$f":"IF(Stock!#REF!<>\"\",$H125*W125,\"\")","v":{"$error":"#REF!"}},{"$f":"IF(Stock!#REF!<>\"\",Pilotage!R$27,\"\")","v":{"$error":"#REF!"}},{"$f":"IF(Stock!#REF!<>\"\",ROUND(W125*Y125,0),\"\")","v":{"$error":"#REF!"}},{"$f":"IF(Stock!#REF!<>\"\",$H125*Z125,\"\")","v":{"$error":"#REF!"}}]
[{"$f":"IF(Stock!#REF!<>\"\",Stock!#REF!,\"\")","v":{"$error":"#REF!"}},{"$f":"IF(Stock!#REF!<>\"\",Stock!#REF!,\"\")","v":{"$error":"#REF!"}},{"$f":"IF(Stock!#REF!<>\"\",Stock!#REF!,\"\")","v":{"$error":"#REF!"}},{"$f":"IF(Stock!#REF!<>\"\",SUM(Stock!#REF!,Stock!#REF!,Stock!#REF!),\"\")","v":{"$error":"#REF!"}},{"$f":"IF(Stock!#REF!<>\"\",#REF!*(1+Pilotage!$M$20),\"\")","v":{"$error":"#REF!"}},null,{"$f":"IF(Stock!#REF!<>\"\",IF(Stock!#REF!>0,Stock!#REF!/Stock!#REF!,0),\"\")","v":{"$error":"#REF!"}},{"$f":"IF(Stock!#REF!<>\"\",E126*Pilotage!$D$15,\"\")","v":{"$error":"#REF!"}},{"$f":"IF(Stock!#REF!<>\"\",IF(Stock!#REF!>0,Stock!#REF!,0),\"\")","v":{"$error":"#REF!"}},{"$f":"IF(Stock!#REF!<>\"\",Pilotage!$M$27,\"\")","v":{"$error":"#REF!"}},{"$f":"IF(Stock!#REF!<>\"\",ROUND(Stock!#REF!*J126,0),\"\")","v":{"$error":"#REF!"}},{"$f":"IF(Stock!#REF!<>\"\",$H126*K126,\"\")","v":{"$error":"#REF!"}},{"$f":"IF(Stock!#REF!<>\"\",Pilotage!N$27,\"\")","v":{"$error":"#REF!"}},{"$f":"IF(Stock!#REF!<>\"\",ROUND(K126*M126,0),\"\")","v":{"$error":"#REF!"}},{"$f":"IF(Stock!#REF!<>\"\",$H126*N126,\"\")","v":{"$error":"#REF!"}},{"$f":"IF(Stock!#REF!<>\"\",Pilotage!O$27,\"\")","v":{"$error":"#REF!"}},{"$f":"IF(Stock!#REF!<>\"\",ROUND(K126*P126,0),\"\")","v":{"$error":"#REF!"}},{"$f":"IF(Stock!#REF!<>\"\",$H126*Q126,\"\")","v":{"$error":"#REF!"}},{"$f":"IF(Stock!#REF!<>\"\",Pilotage!P$27,\"\")","v":{"$error":"#REF!"}},{"$f":"IF(Stock!#REF!<>\"\",ROUND(Q126*S126,0),\"\")","v":{"$error":"#REF!"}},{"$f":"IF(Stock!#REF!<>\"\",$H126*T126,\"\")","v":{"$error":"#REF!"}},{"$f":"IF(Stock!#REF!<>\"\",Pilotage!Q$27,\"\")","v":{"$error":"#REF!"}},{"$f":"IF(Stock!#REF!<>\"\",ROUND(T126*V126,0),\"\")","v":{"$error":"#REF!"}},{"$f":"IF(Stock!#REF!<>\"\",$H126*W126,\"\")","v":{"$error":"#REF!"}},{"$f":"IF(Stock!#REF!<>\"\",Pilotage!R$27,\"\")","v":{"$error":"#REF!"}},{"$f":"IF(Stock!#REF!<>\"\",ROUND(W126*Y126,0),\"\")","v":{"$error":"#REF!"}},{"$f":"IF(Stock!#REF!<>\"\",$H126*Z126,\"\")","v":{"$error":"#REF!"}}]
[{"$f":"IF(Stock!#REF!<>\"\",Stock!#REF!,\"\")","v":{"$error":"#REF!"}},{"$f":"IF(Stock!#REF!<>\"\",Stock!#REF!,\"\")","v":{"$error":"#REF!"}},{"$f":"IF(Stock!#REF!<>\"\",Stock!#REF!,\"\")","v":{"$error":"#REF!"}},{"$f":"IF(Stock!#REF!<>\"\",SUM(Stock!#REF!,Stock!#REF!,Stock!#REF!),\"\")","v":{"$error":"#REF!"}},{"$f":"IF(Stock!#REF!<>\"\",#REF!*(1+Pilotage!$M$20),\"\")","v":{"$error":"#REF!"}},null,{"$f":"IF(Stock!#REF!<>\"\",IF(Stock!#REF!>0,Stock!#REF!/Stock!#REF!,0),\"\")","v":{"$error":"#REF!"}},{"$f":"IF(Stock!#REF!<>\"\",E127*Pilotage!$D$15,\"\")","v":{"$error":"#REF!"}},{"$f":"IF(Stock!#REF!<>\"\",IF(Stock!#REF!>0,Stock!#REF!,0),\"\")","v":{"$error":"#REF!"}},{"$f":"IF(Stock!#REF!<>\"\",Pilotage!$M$27,\"\")","v":{"$error":"#REF!"}},{"$f":"IF(Stock!#REF!<>\"\",ROUND(Stock!#REF!*J127,0),\"\")","v":{"$error":"#REF!"}},{"$f":"IF(Stock!#REF!<>\"\",$H127*K127,\"\")","v":{"$error":"#REF!"}},{"$f":"IF(Stock!#REF!<>\"\",Pilotage!N$27,\"\")","v":{"$error":"#REF!"}},{"$f":"IF(Stock!#REF!<>\"\",ROUND(K127*M127,0),\"\")","v":{"$error":"#REF!"}},{"$f":"IF(Stock!#REF!<>\"\",$H127*N127,\"\")","v":{"$error":"#REF!"}},{"$f":"IF(Stock!#REF!<>\"\",Pilotage!O$27,\"\")","v":{"$error":"#REF!"}},{"$f":"IF(Stock!#REF!<>\"\",ROUND(K127*P127,0),\"\")","v":{"$error":"#REF!"}},{"$f":"IF(Stock!#REF!<>\"\",$H127*Q127,\"\")","v":{"$error":"#REF!"}},{"$f":"IF(Stock!#REF!<>\"\",Pilotage!P$27,\"\")","v":{"$error":"#REF!"}},{"$f":"IF(Stock!#REF!<>\"\",ROUND(Q127*S127,0),\"\")","v":{"$error":"#REF!"}},{"$f":"IF(Stock!#REF!<>\"\",$H127*T127,\"\")","v":{"$error":"#REF!"}},{"$f":"IF(Stock!#REF!<>\"\",Pilotage!Q$27,\"\")","v":{"$error":"#REF!"}},{"$f":"IF(Stock!#REF!<>\"\",ROUND(T127*V127,0),\"\")","v":{"$error":"#REF!"}},{"$f":"IF(Stock!#REF!<>\"\",$H127*W127,\"\")","v":{"$error":"#REF!"}},{"$f":"IF(Stock!#REF!<>\"\",Pilotage!R$27,\"\")","v":{"$error":"#REF!"}},{"$f":"IF(Stock!#REF!<>\"\",ROUND(W127*Y127,0),\"\")","v":{"$error":"#REF!"}},{"$f":"IF(Stock!#REF!<>\"\",$H127*Z127,\"\")","v":{"$error":"#REF!"}}]
[{"$f":"IF(Stock!#REF!<>\"\",Stock!#REF!,\"\")","v":{"$error":"#REF!"}},{"$f":"IF(Stock!#REF!<>\"\",Stock!#REF!,\"\")","v":{"$error":"#REF!"}},{"$f":"IF(Stock!#REF!<>\"\",Stock!#REF!,\"\")","v":{"$error":"#REF!"}},{"$f":"IF(Stock!#REF!<>\"\",SUM(Stock!#REF!,Stock!#REF!,Stock!#REF!),\"\")","v":{"$error":"#REF!"}},{"$f":"IF(Stock!#REF!<>\"\",#REF!*(1+Pilotage!$M$20),\"\")","v":{"$error":"#REF!"}},null,{"$f":"IF(Stock!#REF!<>\"\",IF(Stock!#REF!>0,Stock!#REF!/Stock!#REF!,0),\"\")","v":{"$error":"#REF!"}},{"$f":"IF(Stock!#REF!<>\"\",E128*Pilotage!$D$15,\"\")","v":{"$error":"#REF!"}},{"$f":"IF(Stock!#REF!<>\"\",IF(Stock!#REF!>0,Stock!#REF!,0),\"\")","v":{"$error":"#REF!"}},{"$f":"IF(Stock!#REF!<>\"\",Pilotage!$M$27,\"\")","v":{"$error":"#REF!"}},{"$f":"IF(Stock!#REF!<>\"\",ROUND(Stock!#REF!*J128,0),\"\")","v":{"$error":"#REF!"}},{"$f":"IF(Stock!#REF!<>\"\",$H128*K128,\"\")","v":{"$error":"#REF!"}},{"$f":"IF(Stock!#REF!<>\"\",Pilotage!N$27,\"\")","v":{"$error":"#REF!"}},{"$f":"IF(Stock!#REF!<>\"\",ROUND(K128*M128,0),\"\")","v":{"$error":"#REF!"}},{"$f":"IF(Stock!#REF!<>\"\",$H128*N128,\"\")","v":{"$error":"#REF!"}},{"$f":"IF(Stock!#REF!<>\"\",Pilotage!O$27,\"\")","v":{"$error":"#REF!"}},{"$f":"IF(Stock!#REF!<>\"\",ROUND(K128*P128,0),\"\")","v":{"$error":"#REF!"}},{"$f":"IF(Stock!#REF!<>\"\",$H128*Q128,\"\")","v":{"$error":"#REF!"}},{"$f":"IF(Stock!#REF!<>\"\",Pilotage!P$27,\"\")","v":{"$error":"#REF!"}},{"$f":"IF(Stock!#REF!<>\"\",ROUND(Q128*S128,0),\"\")","v":{"$error":"#REF!"}},{"$f":"IF(Stock!#REF!<>\"\",$H128*T128,\"\")","v":{"$error":"#REF!"}},{"$f":"IF(Stock!#REF!<>\"\",Pilotage!Q$27,\"\")","v":{"$error":"#REF!"}},{"$f":"IF(Stock!#REF!<>\"\",ROUND(T128*V128,0),\"\")","v":{"$error":"#REF!"}},{"$f":"IF(Stock!#REF!<>\"\",$H128*W128,\"\")","v":{"$error":"#REF!"}},{"$f":"IF(Stock!#REF!<>\"\",Pilotage!R$27,\"\")","v":{"$error":"#REF!"}},{"$f":"IF(Stock!#REF!<>\"\",ROUND(W128*Y128,0),\"\")","v":{"$error":"#REF!"}},{"$f":"IF(Stock!#REF!<>\"\",$H128*Z128,\"\")","v":{"$error":"#REF!"}}]
[{"$f":"IF(Stock!#REF!<>\"\",Stock!#REF!,\"\")","v":{"$error":"#REF!"}},{"$f":"IF(Stock!#REF!<>\"\",Stock!#REF!,\"\")","v":{"$error":"#REF!"}},{"$f":"IF(Stock!#REF!<>\"\",Stock!#REF!,\"\")","v":{"$error":"#REF!"}},{"$f":"IF(Stock!#REF!<>\"\",SUM(Stock!#REF!,Stock!#REF!,Stock!#REF!),\"\")","v":{"$error":"#REF!"}},{"$f":"IF(Stock!#REF!<>\"\",#REF!*(1+Pilotage!$M$20),\"\")","v":{"$error":"#REF!"}},null,{"$f":"IF(Stock!#REF!<>\"\",IF(Stock!#REF!>0,Stock!#REF!/Stock!#REF!,0),\"\")","v":{"$error":"#REF!"}},{"$f":"IF(Stock!#REF!<>\"\",E129*Pilotage!$D$15,\"\")","v":{"$error":"#REF!"}},{"$f":"IF(Stock!#REF!<>\"\",IF(Stock!#REF!>0,Stock!#REF!,0),\"\")","v":{"$error":"#REF!"}},{"$f":"IF(Stock!#REF!<>\"\",Pilotage!$M$27,\"\")","v":{"$error":"#REF!"}},{"$f":"IF(Stock!#REF!<>\"\",ROUND(Stock!#REF!*J129,0),\"\")","v":{"$error":"#REF!"}},{"$f":"IF(Stock!#REF!<>\"\",$H129*K129,\"\")","v":{"$error":"#REF!"}},{"$f":"IF(Stock!#REF!<>\"\",Pilotage!N$27,\"\")","v":{"$error":"#REF!"}},{"$f":"IF(Stock!#REF!<>\"\",ROUND(K129*M129,0),\"\")","v":{"$error":"#REF!"}},{"$f":"IF(Stock!#REF!<>\"\",$H129*N129,\"\")","v":{"$error":"#REF!"}},{"$f":"IF(Stock!#REF!<>\"\",Pilotage!O$27,\"\")","v":{"$error":"#REF!"}},{"$f":"IF(Stock!#REF!<>\"\",ROUND(K129*P129,0),\"\")","v":{"$error":"#REF!"}},{"$f":"IF(Stock!#REF!<>\"\",$H129*Q129,\"\")","v":{"$error":"#REF!"}},{"$f":"IF(Stock!#REF!<>\"\",Pilotage!P$27,\"\")","v":{"$error":"#REF!"}},{"$f":"IF(Stock!#REF!<>\"\",ROUND(Q129*S129,0),\"\")","v":{"$error":"#REF!"}},{"$f":"IF(Stock!#REF!<>\"\",$H129*T129,\"\")","v":{"$error":"#REF!"}},{"$f":"IF(Stock!#REF!<>\"\",Pilotage!Q$27,\"\")","v":{"$error":"#REF!"}},{"$f":"IF(Stock!#REF!<>\"\",ROUND(T129*V129,0),\"\")","v":{"$error":"#REF!"}},{"$f":"IF(Stock!#REF!<>\"\",$H129*W129,\"\")","v":{"$error":"#REF!"}},{"$f":"IF(Stock!#REF!<>\"\",Pilotage!R$27,\"\")","v":{"$error":"#REF!"}},{"$f":"IF(Stock!#REF!<>\"\",ROUND(W129*Y129,0),\"\")","v":{"$error":"#REF!"}},{"$f":"IF(Stock!#REF!<>\"\",$H129*Z129,\"\")","v":{"$error":"#REF!"}}]
[{"$f":"IF(Stock!#REF!<>\"\",Stock!#REF!,\"\")","v":{"$error":"#REF!"}},{"$f":"IF(Stock!#REF!<>\"\",Stock!#REF!,\"\")","v":{"$error":"#REF!"}},{"$f":"IF(Stock!#REF!<>\"\",Stock!#REF!,\"\")","v":{"$error":"#REF!"}},{"$f":"IF(Stock!#REF!<>\"\",SUM(Stock!#REF!,Stock!#REF!,Stock!#REF!),\"\")","v":{"$error":"#REF!"}},{"$f":"IF(Stock!#REF!<>\"\",#REF!*(1+Pilotage!$M$20),\"\")","v":{"$error":"#REF!"}},null,{"$f":"IF(Stock!#REF!<>\"\",IF(Stock!#REF!>0,Stock!#REF!/Stock!#REF!,0),\"\")","v":{"$error":"#REF!"}},{"$f":"IF(Stock!#REF!<>\"\",E130*Pilotage!$D$15,\"\")","v":{"$error":"#REF!"}},{"$f":"IF(Stock!#REF!<>\"\",IF(Stock!#REF!>0,Stock!#REF!,0),\"\")","v":{"$error":"#REF!"}},{"$f":"IF(Stock!#REF!<>\"\",Pilotage!$M$27,\"\")","v":{"$error":"#REF!"}},{"$f":"IF(Stock!#REF!<>\"\",ROUND(Stock!#REF!*J130,0),\"\")","v":{"$error":"#REF!"}},{"$f":"IF(Stock!#REF!<>\"\",$H130*K130,\"\")","v":{"$error":"#REF!"}},{"$f":"IF(Stock!#REF!<>\"\",Pilotage!N$27,\"\")","v":{"$error":"#REF!"}},{"$f":"IF(Stock!#REF!<>\"\",ROUND(K130*M130,0),\"\")","v":{"$error":"#REF!"}},{"$f":"IF(Stock!#REF!<>\"\",$H130*N130,\"\")","v":{"$error":"#REF!"}},{"$f":"IF(Stock!#REF!<>\"\",Pilotage!O$27,\"\")","v":{"$error":"#REF!"}},{"$f":"IF(Stock!#REF!<>\"\",ROUND(K130*P130,0),\"\")","v":{"$error":"#REF!"}},{"$f":"IF(Stock!#REF!<>\"\",$H130*Q130,\"\")","v":{"$error":"#REF!"}},{"$f":"IF(Stock!#REF!<>\"\",Pilotage!P$27,\"\")","v":{"$error":"#REF!"}},{"$f":"IF(Stock!#REF!<>\"\",ROUND(Q130*S130,0),\"\")","v":{"$error":"#REF!"}},{"$f":"IF(Stock!#REF!<>\"\",$H130*T130,\"\")","v":{"$error":"#REF!"}},{"$f":"IF(Stock!#REF!<>\"\",Pilotage!Q$27,\"\")","v":{"$error":"#REF!"}},{"$f":"IF(Stock!#REF!<>\"\",ROUND(T130*V130,0),\"\")","v":{"$error":"#REF!"}},{"$f":"IF(Stock!#REF!<>\"\",$H130*W130,\"\")","v":{"$error":"#REF!"}},{"$f":"IF(Stock!#REF!<>\"\",Pilotage!R$27,\"\")","v":{"$error":"#REF!"}},{"$f":"IF(Stock!#REF!<>\"\",ROUND(W130*Y130,0),\"\")","v":{"$error":"#REF!"}},{"$f":"IF(Stock!#REF!<>\"\",$H130*Z130,\"\")","v":{"$error":"#REF!"}}]
[{"$f":"IF(Stock!#REF!<>\"\",Stock!#REF!,\"\")","v":{"$error":"#REF!"}},{"$f":"IF(Stock!#REF!<>\"\",Stock!#REF!,\"\")","v":{"$error":"#REF!"}},{"$f":"IF(Stock!#REF!<>\"\",Stock!#REF!,\"\")","v":{"$error":"#REF!"}},{"$f":"IF(Stock!#REF!<>\"\",SUM(Stock!#REF!,Stock!#REF!,Stock!#REF!),\"\")","v":{"$error":"#REF!"}},{"$f":"IF(Stock!#REF!<>\"\",#REF!*(1+Pilotage!$M$20),\"\")","v":{"$error":"#REF!"}},null,{"$f":"IF(Stock!#REF!<>\"\",IF(Stock!#REF!>0,Stock!#REF!/Stock!#REF!,0),\"\")","v":{"$error":"#REF!"}},{"$f":"IF(Stock!#REF!<>\"\",E131*Pilotage!$D$15,\"\")","v":{"$error":"#REF!"}},{"$f":"IF(Stock!#REF!<>\"\",IF(Stock!#REF!>0,Stock!#REF!,0),\"\")","v":{"$error":"#REF!"}},{"$f":"IF(Stock!#REF!<>\"\",Pilotage!$M$27,\"\")","v":{"$error":"#REF!"}},{"$f":"IF(Stock!#REF!<>\"\",ROUND(Stock!#REF!*J131,0),\"\")","v":{"$error":"#REF!"}},{"$f":"IF(Stock!#REF!<>\"\",$H131*K131,\"\")","v":{"$error":"#REF!"}},{"$f":"IF(Stock!#REF!<>\"\",Pilotage!N$27,\"\")","v":{"$error":"#REF!"}},{"$f":"IF(Stock!#REF!<>\"\",ROUND(K131*M131,0),\"\")","v":{"$error":"#REF!"}},{"$f":"IF(Stock!#REF!<>\"\",$H131*N131,\"\")","v":{"$error":"#REF!"}},{"$f":"IF(Stock!#REF!<>\"\",Pilotage!O$27,\"\")","v":{"$error":"#REF!"}},{"$f":"IF(Stock!#REF!<>\"\",ROUND(K131*P131,0),\"\")","v":{"$error":"#REF!"}},{"$f":"IF(Stock!#REF!<>\"\",$H131*Q131,\"\")","v":{"$error":"#REF!"}},{"$f":"IF(Stock!#REF!<>\"\",Pilotage!P$27,\"\")","v":{"$error":"#REF!"}},{"$f":"IF(Stock!#REF!<>\"\",ROUND(Q131*S131,0),\"\")","v":{"$error":"#REF!"}},{"$f":"IF(Stock!#REF!<>\"\",$H131*T131,\"\")","v":{"$error":"#REF!"}},{"$f":"IF(Stock!#REF!<>\"\",Pilotage!Q$27,\"\")","v":{"$error":"#REF!"}},{"$f":"IF(Stock!#REF!<>\"\",ROUND(T131*V131,0),\"\")","v":{"$error":"#REF!"}},{"$f":"IF(Stock!#REF!<>\"\",$H131*W131,\"\")","v":{"$error":"#REF!"}},{"$f":"IF(Stock!#REF!<>\"\",Pilotage!R$27,\"\")","v":{"$error":"#REF!"}},{"$f":"IF(Stock!#REF!<>\"\",ROUND(W131*Y131,0),\"\")","v":{"$error":"#REF!"}},{"$f":"IF(Stock!#REF!<>\"\",$H131*Z131,\"\")","v":{"$error":"#REF!"}}]
[{"$f":"IF(Stock!#REF!<>\"\",Stock!#REF!,\"\")","v":{"$error":"#REF!"}},{"$f":"IF(Stock!#REF!<>\"\",Stock!#REF!,\"\")","v":{"$error":"#REF!"}},{"$f":"IF(Stock!#REF!<>\"\",Stock!#REF!,\"\")","v":{"$error":"#REF!"}},{"$f":"IF(Stock!#REF!<>\"\",SUM(Stock!#REF!,Stock!#REF!,Stock!#REF!),\"\")","v":{"$error":"#REF!"}},{"$f":"IF(Stock!#REF!<>\"\",#REF!*(1+Pilotage!$M$20),\"\")","v":{"$error":"#REF!"}},null,{"$f":"IF(Stock!#REF!<>\"\",IF(Stock!#REF!>0,Stock!#REF!/Stock!#REF!,0),\"\")","v":{"$error":"#REF!"}},{"$f":"IF(Stock!#REF!<>\"\",E132*Pilotage!$D$15,\"\")","v":{"$error":"#REF!"}},{"$f":"IF(Stock!#REF!<>\"\",IF(Stock!#REF!>0,Stock!#REF!,0),\"\")","v":{"$error":"#REF!"}},{"$f":"IF(Stock!#REF!<>\"\",Pilotage!$M$27,\"\")","v":{"$error":"#REF!"}},{"$f":"IF(Stock!#REF!<>\"\",ROUND(Stock!#REF!*J132,0),\"\")","v":{"$error":"#REF!"}},{"$f":"IF(Stock!#REF!<>\"\",$H132*K132,\"\")","v":{"$error":"#REF!"}},{"$f":"IF(Stock!#REF!<>\"\",Pilotage!N$27,\"\")","v":{"$error":"#REF!"}},{"$f":"IF(Stock!#REF!<>\"\",ROUND(K132*M132,0),\"\")","v":{"$error":"#REF!"}},{"$f":"IF(Stock!#REF!<>\"\",$H132*N132,\"\")","v":{"$error":"#REF!"}},{"$f":"IF(Stock!#REF!<>\"\",Pilotage!O$27,\"\")","v":{"$error":"#REF!"}},{"$f":"IF(Stock!#REF!<>\"\",ROUND(K132*P132,0),\"\")","v":{"$error":"#REF!"}},{"$f":"IF(Stock!#REF!<>\"\",$H132*Q132,\"\")","v":{"$error":"#REF!"}},{"$f":"IF(Stock!#REF!<>\"\",Pilotage!P$27,\"\")","v":{"$error":"#REF!"}},{"$f":"IF(Stock!#REF!<>\"\",ROUND(Q132*S132,0),\"\")","v":{"$error":"#REF!"}},{"$f":"IF(Stock!#REF!<>\"\",$H132*T132,\"\")","v":{"$error":"#REF!"}},{"$f":"IF(Stock!#REF!<>\"\",Pilotage!Q$27,\"\")","v":{"$error":"#REF!"}},{"$f":"IF(Stock!#REF!<>\"\",ROUND(T132*V132,0),\"\")","v":{"$error":"#REF!"}},{"$f":"IF(Stock!#REF!<>\"\",$H132*W132,\"\")","v":{"$error":"#REF!"}},{"$f":"IF(Stock!#REF!<>\"\",Pilotage!R$27,\"\")","v":{"$error":"#REF!"}},{"$f":"IF(Stock!#REF!<>\"\",ROUND(W132*Y132,0),\"\")","v":{"$error":"#REF!"}},{"$f":"IF(Stock!#REF!<>\"\",$H132*Z132,\"\")","v":{"$error":"#REF!"}}]
[{"$f":"IF(Stock!#REF!<>\"\",Stock!#REF!,\"\")","v":{"$error":"#REF!"}},{"$f":"IF(Stock!#REF!<>\"\",Stock!#REF!,\"\")","v":{"$error":"#REF!"}},{"$f":"IF(Stock!#REF!<>\"\",Stock!#REF!,\"\")","v":{"$error":"#REF!"}},{"$f":"IF(Stock!#REF!<>\"\",SUM(Stock!#REF!,Stock!#REF!,Stock!#REF!),\"\")","v":{"$error":"#REF!"}},{"$f":"IF(Stock!#REF!<>\"\",#REF!*(1+Pilotage!$M$20),\"\")","v":{"$error":"#REF!"}},null,{"$f":"IF(Stock!#REF!<>\"\",IF(Stock!#REF!>0,Stock!#REF!/Stock!#REF!,0),\"\")","v":{"$error":"#REF!"}},{"$f":"IF(Stock!#REF!<>\"\",E133*Pilotage!$D$15,\"\")","v":{"$error":"#REF!"}},{"$f":"IF(Stock!#REF!<>\"\",IF(Stock!#REF!>0,Stock!#REF!,0),\"\")","v":{"$error":"#REF!"}},{"$f":"IF(Stock!#REF!<>\"\",Pilotage!$M$27,\"\")","v":{"$error":"#REF!"}},{"$f":"IF(Stock!#REF!<>\"\",ROUND(Stock!#REF!*J133,0),\"\")","v":{"$error":"#REF!"}},{"$f":"IF(Stock!#REF!<>\"\",$H133*K133,\"\")","v":{"$error":"#REF!"}},{"$f":"IF(Stock!#REF!<>\"\",Pilotage!N$27,\"\")","v":{"$error":"#REF!"}},{"$f":"IF(Stock!#REF!<>\"\",ROUND(K133*M133,0),\"\")","v":{"$error":"#REF!"}},{"$f":"IF(Stock!#REF!<>\"\",$H133*N133,\"\")","v":{"$error":"#REF!"}},{"$f":"IF(Stock!#REF!<>\"\",Pilotage!O$27,\"\")","v":{"$error":"#REF!"}},{"$f":"IF(Stock!#REF!<>\"\",ROUND(K133*P133,0),\"\")","v":{"$error":"#REF!"}},{"$f":"IF(Stock!#REF!<>\"\",$H133*Q133,\"\")","v":{"$error":"#REF!"}},{"$f":"IF(Stock!#REF!<>\"\",Pilotage!P$27,\"\")","v":{"$error":"#REF!"}},{"$f":"IF(Stock!#REF!<>\"\",ROUND(Q133*S133,0),\"\")","v":{"$error":"#REF!"}},{"$f":"IF(Stock!#REF!<>\"\",$H133*T133,\"\")","v":{"$error":"#REF!"}},{"$f":"IF(Stock!#REF!<>\"\",Pilotage!Q$27,\"\")","v":{"$error":"#REF!"}},{"$f":"IF(Stock!#REF!<>\"\",ROUND(T133*V133,0),\"\")","v":{"$error":"#REF!"}},{"$f":"IF(Stock!#REF!<>\"\",$H133*W133,\"\")","v":{"$error":"#REF!"}},{"$f":"IF(Stock!#REF!<>\"\",Pilotage!R$27,\"\")","v":{"$error":"#REF!"}},{"$f":"IF(Stock!#REF!<>\"\",ROUND(W133*Y133,0),\"\")","v":{"$error":"#REF!"}},{"$f":"IF(Stock!#REF!<>\"\",$H133*Z133,\"\")","v":{"$error":"#REF!"}}]
[{"$f":"IF(Stock!#REF!<>\"\",Stock!#REF!,\"\")","v":{"$error":"#REF!"}},{"$f":"IF(Stock!#REF!<>\"\",Stock!#REF!,\"\")","v":{"$error":"#REF!"}},{"$f":"IF(Stock!#REF!<>\"\",Stock!#REF!,\"\")","v":{"$error":"#REF!"}},{"$f":"IF(Stock!#REF!<>\"\",SUM(Stock!#REF!,Stock!#REF!,Stock!#REF!),\"\")","v":{"$error":"#REF!"}},{"$f":"IF(Stock!#REF!<>\"\",#REF!*(1+Pilotage!$M$20),\"\")","v":{"$error":"#REF!"}},null,{"$f":"IF(Stock!#REF!<>\"\",IF(Stock!#REF!>0,Stock!#REF!/Stock!#REF!,0),\"\")","v":{"$error":"#REF!"}},{"$f":"IF(Stock!#REF!<>\"\",E134*Pilotage!$D$15,\"\")","v":{"$error":"#REF!"}},{"$f":"IF(Stock!#REF!<>\"\",IF(Stock!#REF!>0,Stock!#REF!,0),\"\")","v":{"$error":"#REF!"}},{"$f":"IF(Stock!#REF!<>\"\",Pilotage!$M$27,\"\")","v":{"$error":"#REF!"}},{"$f":"IF(Stock!#REF!<>\"\",ROUND(Stock!#REF!*J134,0),\"\")","v":{"$error":"#REF!"}},{"$f":"IF(Stock!#REF!<>\"\",$H134*K134,\"\")","v":{"$error":"#REF!"}},{"$f":"IF(Stock!#REF!<>\"\",Pilotage!N$27,\"\")","v":{"$error":"#REF!"}},{"$f":"IF(Stock!#REF!<>\"\",ROUND(K134*M134,0),\"\")","v":{"$error":"#REF!"}},{"$f":"IF(Stock!#REF!<>\"\",$H134*N134,\"\")","v":{"$error":"#REF!"}},{"$f":"IF(Stock!#REF!<>\"\",Pilotage!O$27,\"\")","v":{"$error":"#REF!"}},{"$f":"IF(Stock!#REF!<>\"\",ROUND(K134*P134,0),\"\")","v":{"$error":"#REF!"}},{"$f":"IF(Stock!#REF!<>\"\",$H134*Q134,\"\")","v":{"$error":"#REF!"}},{"$f":"IF(Stock!#REF!<>\"\",Pilotage!P$27,\"\")","v":{"$error":"#REF!"}},{"$f":"IF(Stock!#REF!<>\"\",ROUND(Q134*S134,0),\"\")","v":{"$error":"#REF!"}},{"$f":"IF(Stock!#REF!<>\"\",$H134*T134,\"\")","v":{"$error":"#REF!"}},{"$f":"IF(Stock!#REF!<>\"\",Pilotage!Q$27,\"\")","v":{"$error":"#REF!"}},{"$f":"IF(Stock!#REF!<>\"\",ROUND(T134*V134,0),\"\")","v":{"$error":"#REF!"}},{"$f":"IF(Stock!#REF!<>\"\",$H134*W134,\"\")","v":{"$error":"#REF!"}},{"$f":"IF(Stock!#REF!<>\"\",Pilotage!R$27,\"\")","v":{"$error":"#REF!"}},{"$f":"IF(Stock!#REF!<>\"\",ROUND(W134*Y134,0),\"\")","v":{"$error":"#REF!"}},{"$f":"IF(Stock!#REF!<>\"\",$H134*Z134,\"\")","v":{"$error":"#REF!"}}]
[{"$f":"IF(Stock!#REF!<>\"\",Stock!#REF!,\"\")","v":{"$error":"#REF!"}},{"$f":"IF(Stock!#REF!<>\"\",Stock!#REF!,\"\")","v":{"$error":"#REF!"}},{"$f":"IF(Stock!#REF!<>\"\",Stock!#REF!,\"\")","v":{"$error":"#REF!"}},{"$f":"IF(Stock!#REF!<>\"\",SUM(Stock!#REF!,Stock!#REF!,Stock!#REF!),\"\")","v":{"$error":"#REF!"}},{"$f":"IF(Stock!#REF!<>\"\",#REF!*(1+Pilotage!$M$20),\"\")","v":{"$error":"#REF!"}},null,{"$f":"IF(Stock!#REF!<>\"\",IF(Stock!#REF!>0,Stock!#REF!/Stock!#REF!,0),\"\")","v":{"$error":"#REF!"}},{"$f":"IF(Stock!#REF!<>\"\",E135*Pilotage!$D$15,\"\")","v":{"$error":"#REF!"}},{"$f":"IF(Stock!#REF!<>\"\",IF(Stock!#REF!>0,Stock!#REF!,0),\"\")","v":{"$error":"#REF!"}},{"$f":"IF(Stock!#REF!<>\"\",Pilotage!$M$27,\"\")","v":{"$error":"#REF!"}},{"$f":"IF(Stock!#REF!<>\"\",ROUND(Stock!#REF!*J135,0),\"\")","v":{"$error":"#REF!"}},{"$f":"IF(Stock!#REF!<>\"\",$H135*K135,\"\")","v":{"$error":"#REF!"}},{"$f":"IF(Stock!#REF!<>\"\",Pilotage!N$27,\"\")","v":{"$error":"#REF!"}},{"$f":"IF(Stock!#REF!<>\"\",ROUND(K135*M135,0),\"\")","v":{"$error":"#REF!"}},{"$f":"IF(Stock!#REF!<>\"\",$H135*N135,\"\")","v":{"$error":"#REF!"}},{"$f":"IF(Stock!#REF!<>\"\",Pilotage!O$27,\"\")","v":{"$error":"#REF!"}},{"$f":"IF(Stock!#REF!<>\"\",ROUND(K135*P135,0),\"\")","v":{"$error":"#REF!"}},{"$f":"IF(Stock!#REF!<>\"\",$H135*Q135,\"\")","v":{"$error":"#REF!"}},{"$f":"IF(Stock!#REF!<>\"\",Pilotage!P$27,\"\")","v":{"$error":"#REF!"}},{"$f":"IF(Stock!#REF!<>\"\",ROUND(Q135*S135,0),\"\")","v":{"$error":"#REF!"}},{"$f":"IF(Stock!#REF!<>\"\",$H135*T135,\"\")","v":{"$error":"#REF!"}},{"$f":"IF(Stock!#REF!<>\"\",Pilotage!Q$27,\"\")","v":{"$error":"#REF!"}},{"$f":"IF(Stock!#REF!<>\"\",ROUND(T135*V135,0),\"\")","v":{"$error":"#REF!"}},{"$f":"IF(Stock!#REF!<>\"\",$H135*W135,\"\")","v":{"$error":"#REF!"}},{"$f":"IF(Stock!#REF!<>\"\",Pilotage!R$27,\"\")","v":{"$error":"#REF!"}},{"$f":"IF(Stock!#REF!<>\"\",ROUND(W135*Y135,0),\"\")","v":{"$error":"#REF!"}},{"$f":"IF(Stock!#REF!<>\"\",$H135*Z135,\"\")","v":{"$error":"#REF!"}}]
[{"$f":"IF(Stock!#REF!<>\"\",Stock!#REF!,\"\")","v":{"$error":"#REF!"}},{"$f":"IF(Stock!#REF!<>\"\",Stock!#REF!,\"\")","v":{"$error":"#REF!"}},{"$f":"IF(Stock!#REF!<>\"\",Stock!#REF!,\"\")","v":{"$error":"#REF!"}},{"$f":"IF(Stock!#REF!<>\"\",SUM(Stock!#REF!,Stock!#REF!,Stock!#REF!),\"\")","v":{"$error":"#REF!"}},{"$f":"IF(Stock!#REF!<>\"\",#REF!*(1+Pilotage!$M$20),\"\")","v":{"$error":"#REF!"}},null,{"$f":"IF(Stock!#REF!<>\"\",IF(Stock!#REF!>0,Stock!#REF!/Stock!#REF!,0),\"\")","v":{"$error":"#REF!"}},{"$f":"IF(Stock!#REF!<>\"\",E136*Pilotage!$D$15,\"\")","v":{"$error":"#REF!"}},{"$f":"IF(Stock!#REF!<>\"\",IF(Stock!#REF!>0,Stock!#REF!,0),\"\")","v":{"$error":"#REF!"}},{"$f":"IF(Stock!#REF!<>\"\",Pilotage!$M$27,\"\")","v":{"$error":"#REF!"}},{"$f":"IF(Stock!#REF!<>\"\",ROUND(Stock!#REF!*J136,0),\"\")","v":{"$error":"#REF!"}},{"$f":"IF(Stock!#REF!<>\"\",$H136*K136,\"\")","v":{"$error":"#REF!"}},{"$f":"IF(Stock!#REF!<>\"\",Pilotage!N$27,\"\")","v":{"$error":"#REF!"}},{"$f":"IF(Stock!#REF!<>\"\",ROUND(K136*M136,0),\"\")","v":{"$error":"#REF!"}},{"$f":"IF(Stock!#REF!<>\"\",$H136*N136,\"\")","v":{"$error":"#REF!"}},{"$f":"IF(Stock!#REF!<>\"\",Pilotage!O$27,\"\")","v":{"$error":"#REF!"}},{"$f":"IF(Stock!#REF!<>\"\",ROUND(K136*P136,0),\"\")","v":{"$error":"#REF!"}},{"$f":"IF(Stock!#REF!<>\"\",$H136*Q136,\"\")","v":{"$error":"#REF!"}},{"$f":"IF(Stock!#REF!<>\"\",Pilotage!P$27,\"\")","v":{"$error":"#REF!"}},{"$f":"IF(Stock!#REF!<>\"\",ROUND(Q136*S136,0),\"\")","v":{"$error":"#REF!"}},{"$f":"IF(Stock!#REF!<>\"\",$H136*T136,\"\")","v":{"$error":"#REF!"}},{"$f":"IF(Stock!#REF!<>\"\",Pilotage!Q$27,\"\")","v":{"$error":"#REF!"}},{"$f":"IF(Stock!#REF!<>\"\",ROUND(T136*V136,0),\"\")","v":{"$error":"#REF!"}},{"$f":"IF(Stock!#REF!<>\"\",$H136*W136,\"\")","v":{"$error":"#REF!"}},{"$f":"IF(Stock!#REF!<>\"\",Pilotage!R$27,\"\")","v":{"$error":"#REF!"}},{"$f":"IF(Stock!#REF!<>\"\",ROUND(W136*Y136,0),\"\")","v":{"$error":"#REF!"}},{"$f":"IF(Stock!#REF!<>\"\",$H136*Z136,\"\")","v":{"$error":"#REF!"}}]
[{"$f":"IF(Stock!#REF!<>\"\",Stock!#REF!,\"\")","v":{"$error":"#REF!"}},{"$f":"IF(Stock!#REF!<>\"\",Stock!#REF!,\"\")","v":{"$error":"#REF!"}},{"$f":"IF(Stock!#REF!<>\"\",Stock!#REF!,\"\")","v":{"$error":"#REF!"}},{"$f":"IF(Stock!#REF!<>\"\",SUM(Stock!#REF!,Stock!#REF!,Stock!#REF!),\"\")","v":{"$error":"#REF!"}},{"$f":"IF(Stock!#REF!<>\"\",#REF!*(1+Pilotage!$M$20),\"\")","v":{"$error":"#REF!"}},null,{"$f":"IF(Stock!#REF!<>\"\",IF(Stock!#REF!>0,Stock!#REF!/Stock!#REF!,0),\"\")","v":{"$error":"#REF!"}},{"$f":"IF(Stock!#REF!<>\"\",E137*Pilotage!$D$15,\"\")","v":{"$error":"#REF!"}},{"$f":"IF(Stock!#REF!<>\"\",IF(Stock!#REF!>0,Stock!#REF!,0),\"\")","v":{"$error":"#REF!"}},{"$f":"IF(Stock!#REF!<>\"\",Pilotage!$M$27,\"\")","v":{"$error":"#REF!"}},{"$f":"IF(Stock!#REF!<>\"\",ROUND(Stock!#REF!*J137,0),\"\")","v":{"$error":"#REF!"}},{"$f":"IF(Stock!#REF!<>\"\",$H137*K137,\"\")","v":{"$error":"#REF!"}},{"$f":"IF(Stock!#REF!<>\"\",Pilotage!N$27,\"\")","v":{"$error":"#REF!"}},{"$f":"IF(Stock!#REF!<>\"\",ROUND(K137*M137,0),\"\")","v":{"$error":"#REF!"}},{"$f":"IF(Stock!#REF!<>\"\",$H137*N137,\"\")","v":{"$error":"#REF!"}},{"$f":"IF(Stock!#REF!<>\"\",Pilotage!O$27,\"\")","v":{"$error":"#REF!"}},{"$f":"IF(Stock!#REF!<>\"\",ROUND(K137*P137,0),\"\")","v":{"$error":"#REF!"}},{"$f":"IF(Stock!#REF!<>\"\",$H137*Q137,\"\")","v":{"$error":"#REF!"}},{"$f":"IF(Stock!#REF!<>\"\",Pilotage!P$27,\"\")","v":{"$error":"#REF!"}},{"$f":"IF(Stock!#REF!<>\"\",ROUND(Q137*S137,0),\"\")","v":{"$error":"#REF!"}},{"$f":"IF(Stock!#REF!<>\"\",$H137*T137,\"\")","v":{"$error":"#REF!"}},{"$f":"IF(Stock!#REF!<>\"\",Pilotage!Q$27,\"\")","v":{"$error":"#REF!"}},{"$f":"IF(Stock!#REF!<>\"\",ROUND(T137*V137,0),\"\")","v":{"$error":"#REF!"}},{"$f":"IF(Stock!#REF!<>\"\",$H137*W137,\"\")","v":{"$error":"#REF!"}},{"$f":"IF(Stock!#REF!<>\"\",Pilotage!R$27,\"\")","v":{"$error":"#REF!"}},{"$f":"IF(Stock!#REF!<>\"\",ROUND(W137*Y137,0),\"\")","v":{"$error":"#REF!"}},{"$f":"IF(Stock!#REF!<>\"\",$H137*Z137,\"\")","v":{"$error":"#REF!"}}]
[{"$f":"IF(Stock!#REF!<>\"\",Stock!#REF!,\"\")","v":{"$error":"#REF!"}},{"$f":"IF(Stock!#REF!<>\"\",Stock!#REF!,\"\")","v":{"$error":"#REF!"}},{"$f":"IF(Stock!#REF!<>\"\",Stock!#REF!,\"\")","v":{"$error":"#REF!"}},{"$f":"IF(Stock!#REF!<>\"\",SUM(Stock!#REF!,Stock!#REF!,Stock!#REF!),\"\")","v":{"$error":"#REF!"}},{"$f":"IF(Stock!#REF!<>\"\",#REF!*(1+Pilotage!$M$20),\"\")","v":{"$error":"#REF!"}},null,{"$f":"IF(Stock!#REF!<>\"\",IF(Stock!#REF!>0,Stock!#REF!/Stock!#REF!,0),\"\")","v":{"$error":"#REF!"}},{"$f":"IF(Stock!#REF!<>\"\",E138*Pilotage!$D$15,\"\")","v":{"$error":"#REF!"}},{"$f":"IF(Stock!#REF!<>\"\",IF(Stock!#REF!>0,Stock!#REF!,0),\"\")","v":{"$error":"#REF!"}},{"$f":"IF(Stock!#REF!<>\"\",Pilotage!$M$27,\"\")","v":{"$error":"#REF!"}},{"$f":"IF(Stock!#REF!<>\"\",ROUND(Stock!#REF!*J138,0),\"\")","v":{"$error":"#REF!"}},{"$f":"IF(Stock!#REF!<>\"\",$H138*K138,\"\")","v":{"$error":"#REF!"}},{"$f":"IF(Stock!#REF!<>\"\",Pilotage!N$27,\"\")","v":{"$error":"#REF!"}},{"$f":"IF(Stock!#REF!<>\"\",ROUND(K138*M138,0),\"\")","v":{"$error":"#REF!"}},{"$f":"IF(Stock!#REF!<>\"\",$H138*N138,\"\")","v":{"$error":"#REF!"}},{"$f":"IF(Stock!#REF!<>\"\",Pilotage!O$27,\"\")","v":{"$error":"#REF!"}},{"$f":"IF(Stock!#REF!<>\"\",ROUND(K138*P138,0),\"\")","v":{"$error":"#REF!"}},{"$f":"IF(Stock!#REF!<>\"\",$H138*Q138,\"\")","v":{"$error":"#REF!"}},{"$f":"IF(Stock!#REF!<>\"\",Pilotage!P$27,\"\")","v":{"$error":"#REF!"}},{"$f":"IF(Stock!#REF!<>\"\",ROUND(Q138*S138,0),\"\")","v":{"$error":"#REF!"}},{"$f":"IF(Stock!#REF!<>\"\",$H138*T138,\"\")","v":{"$error":"#REF!"}},{"$f":"IF(Stock!#REF!<>\"\",Pilotage!Q$27,\"\")","v":{"$error":"#REF!"}},{"$f":"IF(Stock!#REF!<>\"\",ROUND(T138*V138,0),\"\")","v":{"$error":"#REF!"}},{"$f":"IF(Stock!#REF!<>\"\",$H138*W138,\"\")","v":{"$error":"#REF!"}},{"$f":"IF(Stock!#REF!<>\"\",Pilotage!R$27,\"\")","v":{"$error":"#REF!"}},{"$f":"IF(Stock!#REF!<>\"\",ROUND(W138*Y138,0),\"\")","v":{"$error":"#REF!"}},{"$f":"IF(Stock!#REF!<>\"\",$H138*Z138,\"\")","v":{"$error":"#REF!"}}]
[{"$f":"IF(Stock!#REF!<>\"\",Stock!#REF!,\"\")","v":{"$error":"#REF!"}},{"$f":"IF(Stock!#REF!<>\"\",Stock!#REF!,\"\")","v":{"$error":"#REF!"}},{"$f":"IF(Stock!#REF!<>\"\",Stock!#REF!,\"\")","v":{"$error":"#REF!"}},{"$f":"IF(Stock!#REF!<>\"\",SUM(Stock!#REF!,Stock!#REF!,Stock!#REF!),\"\")","v":{"$error":"#REF!"}},{"$f":"IF(Stock!#REF!<>\"\",#REF!*(1+Pilotage!$M$20),\"\")","v":{"$error":"#REF!"}},null,{"$f":"IF(Stock!#REF!<>\"\",IF(Stock!#REF!>0,Stock!#REF!/Stock!#REF!,0),\"\")","v":{"$error":"#REF!"}},{"$f":"IF(Stock!#REF!<>\"\",E139*Pilotage!$D$15,\"\")","v":{"$error":"#REF!"}},{"$f":"IF(Stock!#REF!<>\"\",IF(Stock!#REF!>0,Stock!#REF!,0),\"\")","v":{"$error":"#REF!"}},{"$f":"IF(Stock!#REF!<>\"\",Pilotage!$M$27,\"\")","v":{"$error":"#REF!"}},{"$f":"IF(Stock!#REF!<>\"\",ROUND(Stock!#REF!*J139,0),\"\")","v":{"$error":"#REF!"}},{"$f":"IF(Stock!#REF!<>\"\",$H139*K139,\"\")","v":{"$error":"#REF!"}},{"$f":"IF(Stock!#REF!<>\"\",Pilotage!N$27,\"\")","v":{"$error":"#REF!"}},{"$f":"IF(Stock!#REF!<>\"\",ROUND(K139*M139,0),\"\")","v":{"$error":"#REF!"}},{"$f":"IF(Stock!#REF!<>\"\",$H139*N139,\"\")","v":{"$error":"#REF!"}},{"$f":"IF(Stock!#REF!<>\"\",Pilotage!O$27,\"\")","v":{"$error":"#REF!"}},{"$f":"IF(Stock!#REF!<>\"\",ROUND(K139*P139,0),\"\")","v":{"$error":"#REF!"}},{"$f":"IF(Stock!#REF!<>\"\",$H139*Q139,\"\")","v":{"$error":"#REF!"}},{"$f":"IF(Stock!#REF!<>\"\",Pilotage!P$27,\"\")","v":{"$error":"#REF!"}},{"$f":"IF(Stock!#REF!<>\"\",ROUND(Q139*S139,0),\"\")","v":{"$error":"#REF!"}},{"$f":"IF(Stock!#REF!<>\"\",$H139*T139,\"\")","v":{"$error":"#REF!"}},{"$f":"IF(Stock!#REF!<>\"\",Pilotage!Q$27,\"\")","v":{"$error":"#REF!"}},{"$f":"IF(Stock!#REF!<>\"\",ROUND(T139*V139,0),\"\")","v":{"$error":"#REF!"}},{"$f":"IF(Stock!#REF!<>\"\",$H139*W139,\"\")","v":{"$error":"#REF!"}},{"$f":"IF(Stock!#REF!<>\"\",Pilotage!R$27,\"\")","v":{"$error":"#REF!"}},{"$f":"IF(Stock!#REF!<>\"\",ROUND(W139*Y139,0),\"\")","v":{"$error":"#REF!"}},{"$f":"IF(Stock!#REF!<>\"\",$H139*Z139,\"\")","v":{"$error":"#REF!"}}]
[{"$f":"IF(Stock!#REF!<>\"\",Stock!#REF!,\"\")","v":{"$error":"#REF!"}},{"$f":"IF(Stock!#REF!<>\"\",Stock!#REF!,\"\")","v":{"$error":"#REF!"}},{"$f":"IF(Stock!#REF!<>\"\",Stock!#REF!,\"\")","v":{"$error":"#REF!"}},{"$f":"IF(Stock!#REF!<>\"\",SUM(Stock!#REF!,Stock!#REF!,Stock!#REF!),\"\")","v":{"$error":"#REF!"}},{"$f":"IF(Stock!#REF!<>\"\",#REF!*(1+Pilotage!$M$20),\"\")","v":{"$error":"#REF!"}},null,{"$f":"IF(Stock!#REF!<>\"\",IF(Stock!#REF!>0,Stock!#REF!/Stock!#REF!,0),\"\")","v":{"$error":"#REF!"}},{"$f":"IF(Stock!#REF!<>\"\",E140*Pilotage!$D$15,\"\")","v":{"$error":"#REF!"}},{"$f":"IF(Stock!#REF!<>\"\",IF(Stock!#REF!>0,Stock!#REF!,0),\"\")","v":{"$error":"#REF!"}},{"$f":"IF(Stock!#REF!<>\"\",Pilotage!$M$27,\"\")","v":{"$error":"#REF!"}},{"$f":"IF(Stock!#REF!<>\"\",ROUND(Stock!#REF!*J140,0),\"\")","v":{"$error":"#REF!"}},{"$f":"IF(Stock!#REF!<>\"\",$H140*K140,\"\")","v":{"$error":"#REF!"}},{"$f":"IF(Stock!#REF!<>\"\",Pilotage!N$27,\"\")","v":{"$error":"#REF!"}},{"$f":"IF(Stock!#REF!<>\"\",ROUND(K140*M140,0),\"\")","v":{"$error":"#REF!"}},{"$f":"IF(Stock!#REF!<>\"\",$H140*N140,\"\")","v":{"$error":"#REF!"}},{"$f":"IF(Stock!#REF!<>\"\",Pilotage!O$27,\"\")","v":{"$error":"#REF!"}},{"$f":"IF(Stock!#REF!<>\"\",ROUND(K140*P140,0),\"\")","v":{"$error":"#REF!"}},{"$f":"IF(Stock!#REF!<>\"\",$H140*Q140,\"\")","v":{"$error":"#REF!"}},{"$f":"IF(Stock!#REF!<>\"\",Pilotage!P$27,\"\")","v":{"$error":"#REF!"}},{"$f":"IF(Stock!#REF!<>\"\",ROUND(Q140*S140,0),\"\")","v":{"$error":"#REF!"}},{"$f":"IF(Stock!#REF!<>\"\",$H140*T140,\"\")","v":{"$error":"#REF!"}},{"$f":"IF(Stock!#REF!<>\"\",Pilotage!Q$27,\"\")","v":{"$error":"#REF!"}},{"$f":"IF(Stock!#REF!<>\"\",ROUND(T140*V140,0),\"\")","v":{"$error":"#REF!"}},{"$f":"IF(Stock!#REF!<>\"\",$H140*W140,\"\")","v":{"$error":"#REF!"}},{"$f":"IF(Stock!#REF!<>\"\",Pilotage!R$27,\"\")","v":{"$error":"#REF!"}},{"$f":"IF(Stock!#REF!<>\"\",ROUND(W140*Y140,0),\"\")","v":{"$error":"#REF!"}},{"$f":"IF(Stock!#REF!<>\"\",$H140*Z140,\"\")","v":{"$error":"#REF!"}}]
[{"$f":"IF(Stock!#REF!<>\"\",Stock!#REF!,\"\")","v":{"$error":"#REF!"}},{"$f":"IF(Stock!#REF!<>\"\",Stock!#REF!,\"\")","v":{"$error":"#REF!"}},{"$f":"IF(Stock!#REF!<>\"\",Stock!#REF!,\"\")","v":{"$error":"#REF!"}},{"$f":"IF(Stock!#REF!<>\"\",SUM(Stock!#REF!,Stock!#REF!,Stock!#REF!),\"\")","v":{"$error":"#REF!"}},{"$f":"IF(Stock!#REF!<>\"\",#REF!*(1+Pilotage!$M$20),\"\")","v":{"$error":"#REF!"}},null,{"$f":"IF(Stock!#REF!<>\"\",IF(Stock!#REF!>0,Stock!#REF!/Stock!#REF!,0),\"\")","v":{"$error":"#REF!"}},{"$f":"IF(Stock!#REF!<>\"\",E141*Pilotage!$D$15,\"\")","v":{"$error":"#REF!"}},{"$f":"IF(Stock!#REF!<>\"\",IF(Stock!#REF!>0,Stock!#REF!,0),\"\")","v":{"$error":"#REF!"}},{"$f":"IF(Stock!#REF!<>\"\",Pilotage!$M$27,\"\")","v":{"$error":"#REF!"}},{"$f":"IF(Stock!#REF!<>\"\",ROUND(Stock!#REF!*J141,0),\"\")","v":{"$error":"#REF!"}},{"$f":"IF(Stock!#REF!<>\"\",$H141*K141,\"\")","v":{"$error":"#REF!"}},{"$f":"IF(Stock!#REF!<>\"\",Pilotage!N$27,\"\")","v":{"$error":"#REF!"}},{"$f":"IF(Stock!#REF!<>\"\",ROUND(K141*M141,0),\"\")","v":{"$error":"#REF!"}},{"$f":"IF(Stock!#REF!<>\"\",$H141*N141,\"\")","v":{"$error":"#REF!"}},{"$f":"IF(Stock!#REF!<>\"\",Pilotage!O$27,\"\")","v":{"$error":"#REF!"}},{"$f":"IF(Stock!#REF!<>\"\",ROUND(K141*P141,0),\"\")","v":{"$error":"#REF!"}},{"$f":"IF(Stock!#REF!<>\"\",$H141*Q141,\"\")","v":{"$error":"#REF!"}},{"$f":"IF(Stock!#REF!<>\"\",Pilotage!P$27,\"\")","v":{"$error":"#REF!"}},{"$f":"IF(Stock!#REF!<>\"\",ROUND(Q141*S141,0),\"\")","v":{"$error":"#REF!"}},{"$f":"IF(Stock!#REF!<>\"\",$H141*T141,\"\")","v":{"$error":"#REF!"}},{"$f":"IF(Stock!#REF!<>\"\",Pilotage!Q$27,\"\")","v":{"$error":"#REF!"}},{"$f":"IF(Stock!#REF!<>\"\",ROUND(T141*V141,0),\"\")","v":{"$error":"#REF!"}},{"$f":"IF(Stock!#REF!<>\"\",$H141*W141,\"\")","v":{"$error":"#REF!"}},{"$f":"IF(Stock!#REF!<>\"\",Pilotage!R$27,\"\")","v":{"$error":"#REF!"}},{"$f":"IF(Stock!#REF!<>\"\",ROUND(W141*Y141,0),\"\")","v":{"$error":"#REF!"}},{"$f":"IF(Stock!#REF!<>\"\",$H141*Z141,\"\")","v":{"$error":"#REF!"}}]
[{"$f":"IF(Stock!#REF!<>\"\",Stock!#REF!,\"\")","v":{"$error":"#REF!"}},{"$f":"IF(Stock!#REF!<>\"\",Stock!#REF!,\"\")","v":{"$error":"#REF!"}},{"$f":"IF(Stock!#REF!<>\"\",Stock!#REF!,\"\")","v":{"$error":"#REF!"}},{"$f":"IF(Stock!#REF!<>\"\",SUM(Stock!#REF!,Stock!#REF!,Stock!#REF!),\"\")","v":{"$error":"#REF!"}},{"$f":"IF(Stock!#REF!<>\"\",#REF!*(1+Pilotage!$M$20),\"\")","v":{"$error":"#REF!"}},null,{"$f":"IF(Stock!#REF!<>\"\",IF(Stock!#REF!>0,Stock!#REF!/Stock!#REF!,0),\"\")","v":{"$error":"#REF!"}},{"$f":"IF(Stock!#REF!<>\"\",E142*Pilotage!$D$15,\"\")","v":{"$error":"#REF!"}},{"$f":"IF(Stock!#REF!<>\"\",IF(Stock!#REF!>0,Stock!#REF!,0),\"\")","v":{"$error":"#REF!"}},{"$f":"IF(Stock!#REF!<>\"\",Pilotage!$M$27,\"\")","v":{"$error":"#REF!"}},{"$f":"IF(Stock!#REF!<>\"\",ROUND(Stock!#REF!*J142,0),\"\")","v":{"$error":"#REF!"}},{"$f":"IF(Stock!#REF!<>\"\",$H142*K142,\"\")","v":{"$error":"#REF!"}},{"$f":"IF(Stock!#REF!<>\"\",Pilotage!N$27,\"\")","v":{"$error":"#REF!"}},{"$f":"IF(Stock!#REF!<>\"\",ROUND(K142*M142,0),\"\")","v":{"$error":"#REF!"}},{"$f":"IF(Stock!#REF!<>\"\",$H142*N142,\"\")","v":{"$error":"#REF!"}},{"$f":"IF(Stock!#REF!<>\"\",Pilotage!O$27,\"\")","v":{"$error":"#REF!"}},{"$f":"IF(Stock!#REF!<>\"\",ROUND(K142*P142,0),\"\")","v":{"$error":"#REF!"}},{"$f":"IF(Stock!#REF!<>\"\",$H142*Q142,\"\")","v":{"$error":"#REF!"}},{"$f":"IF(Stock!#REF!<>\"\",Pilotage!P$27,\"\")","v":{"$error":"#REF!"}},{"$f":"IF(Stock!#REF!<>\"\",ROUND(Q142*S142,0),\"\")","v":{"$error":"#REF!"}},{"$f":"IF(Stock!#REF!<>\"\",$H142*T142,\"\")","v":{"$error":"#REF!"}},{"$f":"IF(Stock!#REF!<>\"\",Pilotage!Q$27,\"\")","v":{"$error":"#REF!"}},{"$f":"IF(Stock!#REF!<>\"\",ROUND(T142*V142,0),\"\")","v":{"$error":"#REF!"}},{"$f":"IF(Stock!#REF!<>\"\",$H142*W142,\"\")","v":{"$error":"#REF!"}},{"$f":"IF(Stock!#REF!<>\"\",Pilotage!R$27,\"\")","v":{"$error":"#REF!"}},{"$f":"IF(Stock!#REF!<>\"\",ROUND(W142*Y142,0),\"\")","v":{"$error":"#REF!"}},{"$f":"IF(Stock!#REF!<>\"\",$H142*Z142,\"\")","v":{"$error":"#REF!"}}]
[{"$f":"IF(Stock!#REF!<>\"\",Stock!#REF!,\"\")","v":{"$error":"#REF!"}},{"$f":"IF(Stock!#REF!<>\"\",Stock!#REF!,\"\")","v":{"$error":"#REF!"}},{"$f":"IF(Stock!#REF!<>\"\",Stock!#REF!,\"\")","v":{"$error":"#REF!"}},{"$f":"IF(Stock!#REF!<>\"\",SUM(Stock!#REF!,Stock!#REF!,Stock!#REF!),\"\")","v":{"$error":"#REF!"}},{"$f":"IF(Stock!#REF!<>\"\",#REF!*(1+Pilotage!$M$20),\"\")","v":{"$error":"#REF!"}},null,{"$f":"IF(Stock!#REF!<>\"\",IF(Stock!#REF!>0,Stock!#REF!/Stock!#REF!,0),\"\")","v":{"$error":"#REF!"}},{"$f":"IF(Stock!#REF!<>\"\",E143*Pilotage!$D$15,\"\")","v":{"$error":"#REF!"}},{"$f":"IF(Stock!#REF!<>\"\",IF(Stock!#REF!>0,Stock!#REF!,0),\"\")","v":{"$error":"#REF!"}},{"$f":"IF(Stock!#REF!<>\"\",Pilotage!$M$27,\"\")","v":{"$error":"#REF!"}},{"$f":"IF(Stock!#REF!<>\"\",ROUND(Stock!#REF!*J143,0),\"\")","v":{"$error":"#REF!"}},{"$f":"IF(Stock!#REF!<>\"\",$H143*K143,\"\")","v":{"$error":"#REF!"}},{"$f":"IF(Stock!#REF!<>\"\",Pilotage!N$27,\"\")","v":{"$error":"#REF!"}},{"$f":"IF(Stock!#REF!<>\"\",ROUND(K143*M143,0),\"\")","v":{"$error":"#REF!"}},{"$f":"IF(Stock!#REF!<>\"\",$H143*N143,\"\")","v":{"$error":"#REF!"}},{"$f":"IF(Stock!#REF!<>\"\",Pilotage!O$27,\"\")","v":{"$error":"#REF!"}},{"$f":"IF(Stock!#REF!<>\"\",ROUND(K143*P143,0),\"\")","v":{"$error":"#REF!"}},{"$f":"IF(Stock!#REF!<>\"\",$H143*Q143,\"\")","v":{"$error":"#REF!"}},{"$f":"IF(Stock!#REF!<>\"\",Pilotage!P$27,\"\")","v":{"$error":"#REF!"}},{"$f":"IF(Stock!#REF!<>\"\",ROUND(Q143*S143,0),\"\")","v":{"$error":"#REF!"}},{"$f":"IF(Stock!#REF!<>\"\",$H143*T143,\"\")","v":{"$error":"#REF!"}},{"$f":"IF(Stock!#REF!<>\"\",Pilotage!Q$27,\"\")","v":{"$error":"#REF!"}},{"$f":"IF(Stock!#REF!<>\"\",ROUND(T143*V143,0),\"\")","v":{"$error":"#REF!"}},{"$f":"IF(Stock!#REF!<>\"\",$H143*W143,\"\")","v":{"$error":"#REF!"}},{"$f":"IF(Stock!#REF!<>\"\",Pilotage!R$27,\"\")","v":{"$error":"#REF!"}},{"$f":"IF(Stock!#REF!<>\"\",ROUND(W143*Y143,0),\"\")","v":{"$error":"#REF!"}},{"$f":"IF(Stock!#REF!<>\"\",$H143*Z143,\"\")","v":{"$error":"#REF!"}}]
[{"$f":"IF(Stock!#REF!<>\"\",Stock!#REF!,\"\")","v":{"$error":"#REF!"}},{"$f":"IF(Stock!#REF!<>\"\",Stock!#REF!,\"\")","v":{"$error":"#REF!"}},{"$f":"IF(Stock!#REF!<>\"\",Stock!#REF!,\"\")","v":{"$error":"#REF!"}},{"$f":"IF(Stock!#REF!<>\"\",SUM(Stock!#REF!,Stock!#REF!,Stock!#REF!),\"\")","v":{"$error":"#REF!"}},{"$f":"IF(Stock!#REF!<>\"\",#REF!*(1+Pilotage!$M$20),\"\")","v":{"$error":"#REF!"}},null,{"$f":"IF(Stock!#REF!<>\"\",IF(Stock!#REF!>0,Stock!#REF!/Stock!#REF!,0),\"\")","v":{"$error":"#REF!"}},{"$f":"IF(Stock!#REF!<>\"\",E144*Pilotage!$D$15,\"\")","v":{"$error":"#REF!"}},{"$f":"IF(Stock!#REF!<>\"\",IF(Stock!#REF!>0,Stock!#REF!,0),\"\")","v":{"$error":"#REF!"}},{"$f":"IF(Stock!#REF!<>\"\",Pilotage!$M$27,\"\")","v":{"$error":"#REF!"}},{"$f":"IF(Stock!#REF!<>\"\",ROUND(Stock!#REF!*J144,0),\"\")","v":{"$error":"#REF!"}},{"$f":"IF(Stock!#REF!<>\"\",$H144*K144,\"\")","v":{"$error":"#REF!"}},{"$f":"IF(Stock!#REF!<>\"\",Pilotage!N$27,\"\")","v":{"$error":"#REF!"}},{"$f":"IF(Stock!#REF!<>\"\",ROUND(K144*M144,0),\"\")","v":{"$error":"#REF!"}},{"$f":"IF(Stock!#REF!<>\"\",$H144*N144,\"\")","v":{"$error":"#REF!"}},{"$f":"IF(Stock!#REF!<>\"\",Pilotage!O$27,\"\")","v":{"$error":"#REF!"}},{"$f":"IF(Stock!#REF!<>\"\",ROUND(K144*P144,0),\"\")","v":{"$error":"#REF!"}},{"$f":"IF(Stock!#REF!<>\"\",$H144*Q144,\"\")","v":{"$error":"#REF!"}},{"$f":"IF(Stock!#REF!<>\"\",Pilotage!P$27,\"\")","v":{"$error":"#REF!"}},{"$f":"IF(Stock!#REF!<>\"\",ROUND(Q144*S144,0),\"\")","v":{"$error":"#REF!"}},{"$f":"IF(Stock!#REF!<>\"\",$H144*T144,\"\")","v":{"$error":"#REF!"}},{"$f":"IF(Stock!#REF!<>\"\",Pilotage!Q$27,\"\")","v":{"$error":"#REF!"}},{"$f":"IF(Stock!#REF!<>\"\",ROUND(T144*V144,0),\"\")","v":{"$error":"#REF!"}},{"$f":"IF(Stock!#REF!<>\"\",$H144*W144,\"\")","v":{"$error":"#REF!"}},{"$f":"IF(Stock!#REF!<>\"\",Pilotage!R$27,\"\")","v":{"$error":"#REF!"}},{"$f":"IF(Stock!#REF!<>\"\",ROUND(W144*Y144,0),\"\")","v":{"$error":"#REF!"}},{"$f":"IF(Stock!#REF!<>\"\",$H144*Z144,\"\")","v":{"$error":"#REF!"}}]
[{"$f":"IF(Stock!#REF!<>\"\",Stock!#REF!,\"\")","v":{"$error":"#REF!"}},{"$f":"IF(Stock!#REF!<>\"\",Stock!#REF!,\"\")","v":{"$error":"#REF!"}},{"$f":"IF(Stock!#REF!<>\"\",Stock!#REF!,\"\")","v":{"$error":"#REF!"}},{"$f":"IF(Stock!#REF!<>\"\",SUM(Stock!#REF!,Stock!#REF!,Stock!#REF!),\"\")","v":{"$error":"#REF!"}},{"$f":"IF(Stock!#REF!<>\"\",#REF!*(1+Pilotage!$M$20),\"\")","v":{"$error":"#REF!"}},null,{"$f":"IF(Stock!#REF!<>\"\",IF(Stock!#REF!>0,Stock!#REF!/Stock!#REF!,0),\"\")","v":{"$error":"#REF!"}},{"$f":"IF(Stock!#REF!<>\"\",E145*Pilotage!$D$15,\"\")","v":{"$error":"#REF!"}},{"$f":"IF(Stock!#REF!<>\"\",IF(Stock!#REF!>0,Stock!#REF!,0),\"\")","v":{"$error":"#REF!"}},{"$f":"IF(Stock!#REF!<>\"\",Pilotage!$M$27,\"\")","v":{"$error":"#REF!"}},{"$f":"IF(Stock!#REF!<>\"\",ROUND(Stock!#REF!*J145,0),\"\")","v":{"$error":"#REF!"}},{"$f":"IF(Stock!#REF!<>\"\",$H145*K145,\"\")","v":{"$error":"#REF!"}},{"$f":"IF(Stock!#REF!<>\"\",Pilotage!N$27,\"\")","v":{"$error":"#REF!"}},{"$f":"IF(Stock!#REF!<>\"\",ROUND(K145*M145,0),\"\")","v":{"$error":"#REF!"}},{"$f":"IF(Stock!#REF!<>\"\",$H145*N145,\"\")","v":{"$error":"#REF!"}},{"$f":"IF(Stock!#REF!<>\"\",Pilotage!O$27,\"\")","v":{"$error":"#REF!"}},{"$f":"IF(Stock!#REF!<>\"\",ROUND(K145*P145,0),\"\")","v":{"$error":"#REF!"}},{"$f":"IF(Stock!#REF!<>\"\",$H145*Q145,\"\")","v":{"$error":"#REF!"}},{"$f":"IF(Stock!#REF!<>\"\",Pilotage!P$27,\"\")","v":{"$error":"#REF!"}},{"$f":"IF(Stock!#REF!<>\"\",ROUND(Q145*S145,0),\"\")","v":{"$error":"#REF!"}},{"$f":"IF(Stock!#REF!<>\"\",$H145*T145,\"\")","v":{"$error":"#REF!"}},{"$f":"IF(Stock!#REF!<>\"\",Pilotage!Q$27,\"\")","v":{"$error":"#REF!"}},{"$f":"IF(Stock!#REF!<>\"\",ROUND(T145*V145,0),\"\")","v":{"$error":"#REF!"}},{"$f":"IF(Stock!#REF!<>\"\",$H145*W145,\"\")","v":{"$error":"#REF!"}},{"$f":"IF(Stock!#REF!<>\"\",Pilotage!R$27,\"\")","v":{"$error":"#REF!"}},{"$f":"IF(Stock!#REF!<>\"\",ROUND(W145*Y145,0),\"\")","v":{"$error":"#REF!"}},{"$f":"IF(Stock!#REF!<>\"\",$H145*Z145,\"\")","v":{"$error":"#REF!"}}]
[{"$f":"IF(Stock!#REF!<>\"\",Stock!#REF!,\"\")","v":{"$error":"#REF!"}},{"$f":"IF(Stock!#REF!<>\"\",Stock!#REF!,\"\")","v":{"$error":"#REF!"}},{"$f":"IF(Stock!#REF!<>\"\",Stock!#REF!,\"\")","v":{"$error":"#REF!"}},{"$f":"IF(Stock!#REF!<>\"\",SUM(Stock!#REF!,Stock!#REF!,Stock!#REF!),\"\")","v":{"$error":"#REF!"}},{"$f":"IF(Stock!#REF!<>\"\",#REF!*(1+Pilotage!$M$20),\"\")","v":{"$error":"#REF!"}},null,{"$f":"IF(Stock!#REF!<>\"\",IF(Stock!#REF!>0,Stock!#REF!/Stock!#REF!,0),\"\")","v":{"$error":"#REF!"}},{"$f":"IF(Stock!#REF!<>\"\",E146*Pilotage!$D$15,\"\")","v":{"$error":"#REF!"}},{"$f":"IF(Stock!#REF!<>\"\",IF(Stock!#REF!>0,Stock!#REF!,0),\"\")","v":{"$error":"#REF!"}},{"$f":"IF(Stock!#REF!<>\"\",Pilotage!$M$27,\"\")","v":{"$error":"#REF!"}},{"$f":"IF(Stock!#REF!<>\"\",ROUND(Stock!#REF!*J146,0),\"\")","v":{"$error":"#REF!"}},{"$f":"IF(Stock!#REF!<>\"\",$H146*K146,\"\")","v":{"$error":"#REF!"}},{"$f":"IF(Stock!#REF!<>\"\",Pilotage!N$27,\"\")","v":{"$error":"#REF!"}},{"$f":"IF(Stock!#REF!<>\"\",ROUND(K146*M146,0),\"\")","v":{"$error":"#REF!"}},{"$f":"IF(Stock!#REF!<>\"\",$H146*N146,\"\")","v":{"$error":"#REF!"}},{"$f":"IF(Stock!#REF!<>\"\",Pilotage!O$27,\"\")","v":{"$error":"#REF!"}},{"$f":"IF(Stock!#REF!<>\"\",ROUND(K146*P146,0),\"\")","v":{"$error":"#REF!"}},{"$f":"IF(Stock!#REF!<>\"\",$H146*Q146,\"\")","v":{"$error":"#REF!"}},{"$f":"IF(Stock!#REF!<>\"\",Pilotage!P$27,\"\")","v":{"$error":"#REF!"}},{"$f":"IF(Stock!#REF!<>\"\",ROUND(Q146*S146,0),\"\")","v":{"$error":"#REF!"}},{"$f":"IF(Stock!#REF!<>\"\",$H146*T146,\"\")","v":{"$error":"#REF!"}},{"$f":"IF(Stock!#REF!<>\"\",Pilotage!Q$27,\"\")","v":{"$error":"#REF!"}},{"$f":"IF(Stock!#REF!<>\"\",ROUND(T146*V146,0),\"\")","v":{"$error":"#REF!"}},{"$f":"IF(Stock!#REF!<>\"\",$H146*W146,\"\")","v":{"$error":"#REF!"}},{"$f":"IF(Stock!#REF!<>\"\",Pilotage!R$27,\"\")","v":{"$error":"#REF!"}},{"$f":"IF(Stock!#REF!<>\"\",ROUND(W146*Y146,0),\"\")","v":{"$error":"#REF!"}},{"$f":"IF(Stock!#REF!<>\"\",$H146*Z146,\"\")","v":{"$error":"#REF!"}}]
[{"$f":"IF(Stock!#REF!<>\"\",Stock!#REF!,\"\")","v":{"$error":"#REF!"}},{"$f":"IF(Stock!#REF!<>\"\",Stock!#REF!,\"\")","v":{"$error":"#REF!"}},{"$f":"IF(Stock!#REF!<>\"\",Stock!#REF!,\"\")","v":{"$error":"#REF!"}},{"$f":"IF(Stock!#REF!<>\"\",SUM(Stock!#REF!,Stock!#REF!,Stock!#REF!),\"\")","v":{"$error":"#REF!"}},{"$f":"IF(Stock!#REF!<>\"\",#REF!*(1+Pilotage!$M$20),\"\")","v":{"$error":"#REF!"}},null,{"$f":"IF(Stock!#REF!<>\"\",IF(Stock!#REF!>0,Stock!#REF!/Stock!#REF!,0),\"\")","v":{"$error":"#REF!"}},{"$f":"IF(Stock!#REF!<>\"\",E147*Pilotage!$D$15,\"\")","v":{"$error":"#REF!"}},{"$f":"IF(Stock!#REF!<>\"\",IF(Stock!#REF!>0,Stock!#REF!,0),\"\")","v":{"$error":"#REF!"}},{"$f":"IF(Stock!#REF!<>\"\",Pilotage!$M$27,\"\")","v":{"$error":"#REF!"}},{"$f":"IF(Stock!#REF!<>\"\",ROUND(Stock!#REF!*J147,0),\"\")","v":{"$error":"#REF!"}},{"$f":"IF(Stock!#REF!<>\"\",$H147*K147,\"\")","v":{"$error":"#REF!"}},{"$f":"IF(Stock!#REF!<>\"\",Pilotage!N$27,\"\")","v":{"$error":"#REF!"}},{"$f":"IF(Stock!#REF!<>\"\",ROUND(K147*M147,0),\"\")","v":{"$error":"#REF!"}},{"$f":"IF(Stock!#REF!<>\"\",$H147*N147,\"\")","v":{"$error":"#REF!"}},{"$f":"IF(Stock!#REF!<>\"\",Pilotage!O$27,\"\")","v":{"$error":"#REF!"}},{"$f":"IF(Stock!#REF!<>\"\",ROUND(K147*P147,0),\"\")","v":{"$error":"#REF!"}},{"$f":"IF(Stock!#REF!<>\"\",$H147*Q147,\"\")","v":{"$error":"#REF!"}},{"$f":"IF(Stock!#REF!<>\"\",Pilotage!P$27,\"\")","v":{"$error":"#REF!"}},{"$f":"IF(Stock!#REF!<>\"\",ROUND(Q147*S147,0),\"\")","v":{"$error":"#REF!"}},{"$f":"IF(Stock!#REF!<>\"\",$H147*T147,\"\")","v":{"$error":"#REF!"}},{"$f":"IF(Stock!#REF!<>\"\",Pilotage!Q$27,\"\")","v":{"$error":"#REF!"}},{"$f":"IF(Stock!#REF!<>\"\",ROUND(T147*V147,0),\"\")","v":{"$error":"#REF!"}},{"$f":"IF(Stock!#REF!<>\"\",$H147*W147,\"\")","v":{"$error":"#REF!"}},{"$f":"IF(Stock!#REF!<>\"\",Pilotage!R$27,\"\")","v":{"$error":"#REF!"}},{"$f":"IF(Stock!#REF!<>\"\",ROUND(W147*Y147,0),\"\")","v":{"$error":"#REF!"}},{"$f":"IF(Stock!#REF!<>\"\",$H147*Z147,\"\")","v":{"$error":"#REF!"}}]
[{"$f":"IF(Stock!#REF!<>\"\",Stock!#REF!,\"\")","v":{"$error":"#REF!"}},{"$f":"IF(Stock!#REF!<>\"\",Stock!#REF!,\"\")","v":{"$error":"#REF!"}},{"$f":"IF(Stock!#REF!<>\"\",Stock!#REF!,\"\")","v":{"$error":"#REF!"}},{"$f":"IF(Stock!#REF!<>\"\",SUM(Stock!#REF!,Stock!#REF!,Stock!#REF!),\"\")","v":{"$error":"#REF!"}},{"$f":"IF(Stock!#REF!<>\"\",#REF!*(1+Pilotage!$M$20),\"\")","v":{"$error":"#REF!"}},null,{"$f":"IF(Stock!#REF!<>\"\",IF(Stock!#REF!>0,Stock!#REF!/Stock!#REF!,0),\"\")","v":{"$error":"#REF!"}},{"$f":"IF(Stock!#REF!<>\"\",E148*Pilotage!$D$15,\"\")","v":{"$error":"#REF!"}},{"$f":"IF(Stock!#REF!<>\"\",IF(Stock!#REF!>0,Stock!#REF!,0),\"\")","v":{"$error":"#REF!"}},{"$f":"IF(Stock!#REF!<>\"\",Pilotage!$M$27,\"\")","v":{"$error":"#REF!"}},{"$f":"IF(Stock!#REF!<>\"\",ROUND(Stock!#REF!*J148,0),\"\")","v":{"$error":"#REF!"}},{"$f":"IF(Stock!#REF!<>\"\",$H148*K148,\"\")","v":{"$error":"#REF!"}},{"$f":"IF(Stock!#REF!<>\"\",Pilotage!N$27,\"\")","v":{"$error":"#REF!"}},{"$f":"IF(Stock!#REF!<>\"\",ROUND(K148*M148,0),\"\")","v":{"$error":"#REF!"}},{"$f":"IF(Stock!#REF!<>\"\",$H148*N148,\"\")","v":{"$error":"#REF!"}},{"$f":"IF(Stock!#REF!<>\"\",Pilotage!O$27,\"\")","v":{"$error":"#REF!"}},{"$f":"IF(Stock!#REF!<>\"\",ROUND(K148*P148,0),\"\")","v":{"$error":"#REF!"}},{"$f":"IF(Stock!#REF!<>\"\",$H148*Q148,\"\")","v":{"$error":"#REF!"}},{"$f":"IF(Stock!#REF!<>\"\",Pilotage!P$27,\"\")","v":{"$error":"#REF!"}},{"$f":"IF(Stock!#REF!<>\"\",ROUND(Q148*S148,0),\"\")","v":{"$error":"#REF!"}},{"$f":"IF(Stock!#REF!<>\"\",$H148*T148,\"\")","v":{"$error":"#REF!"}},{"$f":"IF(Stock!#REF!<>\"\",Pilotage!Q$27,\"\")","v":{"$error":"#REF!"}},{"$f":"IF(Stock!#REF!<>\"\",ROUND(T148*V148,0),\"\")","v":{"$error":"#REF!"}},{"$f":"IF(Stock!#REF!<>\"\",$H148*W148,\"\")","v":{"$error":"#REF!"}},{"$f":"IF(Stock!#REF!<>\"\",Pilotage!R$27,\"\")","v":{"$error":"#REF!"}},{"$f":"IF(Stock!#REF!<>\"\",ROUND(W148*Y148,0),\"\")","v":{"$error":"#REF!"}},{"$f":"IF(Stock!#REF!<>\"\",$H148*Z148,\"\")","v":{"$error":"#REF!"}}]
[{"$f":"IF(Stock!#REF!<>\"\",Stock!#REF!,\"\")","v":{"$error":"#REF!"}},{"$f":"IF(Stock!#REF!<>\"\",Stock!#REF!,\"\")","v":{"$error":"#REF!"}},{"$f":"IF(Stock!#REF!<>\"\",Stock!#REF!,\"\")","v":{"$error":"#REF!"}},{"$f":"IF(Stock!#REF!<>\"\",SUM(Stock!#REF!,Stock!#REF!,Stock!#REF!),\"\")","v":{"$error":"#REF!"}},{"$f":"IF(Stock!#REF!<>\"\",#REF!*(1+Pilotage!$M$20),\"\")","v":{"$error":"#REF!"}},null,{"$f":"IF(Stock!#REF!<>\"\",IF(Stock!#REF!>0,Stock!#REF!/Stock!#REF!,0),\"\")","v":{"$error":"#REF!"}},{"$f":"IF(Stock!#REF!<>\"\",E149*Pilotage!$D$15,\"\")","v":{"$error":"#REF!"}},{"$f":"IF(Stock!#REF!<>\"\",IF(Stock!#REF!>0,Stock!#REF!,0),\"\")","v":{"$error":"#REF!"}},{"$f":"IF(Stock!#REF!<>\"\",Pilotage!$M$27,\"\")","v":{"$error":"#REF!"}},{"$f":"IF(Stock!#REF!<>\"\",ROUND(Stock!#REF!*J149,0),\"\")","v":{"$error":"#REF!"}},{"$f":"IF(Stock!#REF!<>\"\",$H149*K149,\"\")","v":{"$error":"#REF!"}},{"$f":"IF(Stock!#REF!<>\"\",Pilotage!N$27,\"\")","v":{"$error":"#REF!"}},{"$f":"IF(Stock!#REF!<>\"\",ROUND(K149*M149,0),\"\")","v":{"$error":"#REF!"}},{"$f":"IF(Stock!#REF!<>\"\",$H149*N149,\"\")","v":{"$error":"#REF!"}},{"$f":"IF(Stock!#REF!<>\"\",Pilotage!O$27,\"\")","v":{"$error":"#REF!"}},{"$f":"IF(Stock!#REF!<>\"\",ROUND(K149*P149,0),\"\")","v":{"$error":"#REF!"}},{"$f":"IF(Stock!#REF!<>\"\",$H149*Q149,\"\")","v":{"$error":"#REF!"}},{"$f":"IF(Stock!#REF!<>\"\",Pilotage!P$27,\"\")","v":{"$error":"#REF!"}},{"$f":"IF(Stock!#REF!<>\"\",ROUND(Q149*S149,0),\"\")","v":{"$error":"#REF!"}},{"$f":"IF(Stock!#REF!<>\"\",$H149*T149,\"\")","v":{"$error":"#REF!"}},{"$f":"IF(Stock!#REF!<>\"\",Pilotage!Q$27,\"\")","v":{"$error":"#REF!"}},{"$f":"IF(Stock!#REF!<>\"\",ROUND(T149*V149,0),\"\")","v":{"$error":"#REF!"}},{"$f":"IF(Stock!#REF!<>\"\",$H149*W149,\"\")","v":{"$error":"#REF!"}},{"$f":"IF(Stock!#REF!<>\"\",Pilotage!R$27,\"\")","v":{"$error":"#REF!"}},{"$f":"IF(Stock!#REF!<>\"\",ROUND(W149*Y149,0),\"\")","v":{"$error":"#REF!"}},{"$f":"IF(Stock!#REF!<>\"\",$H149*Z149,\"\")","v":{"$error":"#REF!"}}]
[{"$f":"IF(Stock!#REF!<>\"\",Stock!#REF!,\"\")","v":{"$error":"#REF!"}},{"$f":"IF(Stock!#REF!<>\"\",Stock!#REF!,\"\")","v":{"$error":"#REF!"}},{"$f":"IF(Stock!#REF!<>\"\",Stock!#REF!,\"\")","v":{"$error":"#REF!"}},{"$f":"IF(Stock!#REF!<>\"\",SUM(Stock!#REF!,Stock!#REF!,Stock!#REF!),\"\")","v":{"$error":"#REF!"}},{"$f":"IF(Stock!#REF!<>\"\",#REF!*(1+Pilotage!$M$20),\"\")","v":{"$error":"#REF!"}},null,{"$f":"IF(Stock!#REF!<>\"\",IF(Stock!#REF!>0,Stock!#REF!/Stock!#REF!,0),\"\")","v":{"$error":"#REF!"}},{"$f":"IF(Stock!#REF!<>\"\",E150*Pilotage!$D$15,\"\")","v":{"$error":"#REF!"}},{"$f":"IF(Stock!#REF!<>\"\",IF(Stock!#REF!>0,Stock!#REF!,0),\"\")","v":{"$error":"#REF!"}},{"$f":"IF(Stock!#REF!<>\"\",Pilotage!$M$27,\"\")","v":{"$error":"#REF!"}},{"$f":"IF(Stock!#REF!<>\"\",ROUND(Stock!#REF!*J150,0),\"\")","v":{"$error":"#REF!"}},{"$f":"IF(Stock!#REF!<>\"\",$H150*K150,\"\")","v":{"$error":"#REF!"}},{"$f":"IF(Stock!#REF!<>\"\",Pilotage!N$27,\"\")","v":{"$error":"#REF!"}},{"$f":"IF(Stock!#REF!<>\"\",ROUND(K150*M150,0),\"\")","v":{"$error":"#REF!"}},{"$f":"IF(Stock!#REF!<>\"\",$H150*N150,\"\")","v":{"$error":"#REF!"}},{"$f":"IF(Stock!#REF!<>\"\",Pilotage!O$27,\"\")","v":{"$error":"#REF!"}},{"$f":"IF(Stock!#REF!<>\"\",ROUND(K150*P150,0),\"\")","v":{"$error":"#REF!"}},{"$f":"IF(Stock!#REF!<>\"\",$H150*Q150,\"\")","v":{"$error":"#REF!"}},{"$f":"IF(Stock!#REF!<>\"\",Pilotage!P$27,\"\")","v":{"$error":"#REF!"}},{"$f":"IF(Stock!#REF!<>\"\",ROUND(Q150*S150,0),\"\")","v":{"$error":"#REF!"}},{"$f":"IF(Stock!#REF!<>\"\",$H150*T150,\"\")","v":{"$error":"#REF!"}},{"$f":"IF(Stock!#REF!<>\"\",Pilotage!Q$27,\"\")","v":{"$error":"#REF!"}},{"$f":"IF(Stock!#REF!<>\"\",ROUND(T150*V150,0),\"\")","v":{"$error":"#REF!"}},{"$f":"IF(Stock!#REF!<>\"\",$H150*W150,\"\")","v":{"$error":"#REF!"}},{"$f":"IF(Stock!#REF!<>\"\",Pilotage!R$27,\"\")","v":{"$error":"#REF!"}},{"$f":"IF(Stock!#REF!<>\"\",ROUND(W150*Y150,0),\"\")","v":{"$error":"#REF!"}},{"$f":"IF(Stock!#REF!<>\"\",$H150*Z150,\"\")","v":{"$error":"#REF!"}}]
[{"$f":"IF(Stock!#REF!<>\"\",Stock!#REF!,\"\")","v":{"$error":"#REF!"}},{"$f":"IF(Stock!#REF!<>\"\",Stock!#REF!,\"\")","v":{"$error":"#REF!"}},{"$f":"IF(Stock!#REF!<>\"\",Stock!#REF!,\"\")","v":{"$error":"#REF!"}},{"$f":"IF(Stock!#REF!<>\"\",SUM(Stock!#REF!,Stock!#REF!,Stock!#REF!),\"\")","v":{"$error":"#REF!"}},{"$f":"IF(Stock!#REF!<>\"\",#REF!*(1+Pilotage!$M$20),\"\")","v":{"$error":"#REF!"}},null,{"$f":"IF(Stock!#REF!<>\"\",IF(Stock!#REF!>0,Stock!#REF!/Stock!#REF!,0),\"\")","v":{"$error":"#REF!"}},{"$f":"IF(Stock!#REF!<>\"\",E151*Pilotage!$D$15,\"\")","v":{"$error":"#REF!"}},{"$f":"IF(Stock!#REF!<>\"\",IF(Stock!#REF!>0,Stock!#REF!,0),\"\")","v":{"$error":"#REF!"}},{"$f":"IF(Stock!#REF!<>\"\",Pilotage!$M$27,\"\")","v":{"$error":"#REF!"}},{"$f":"IF(Stock!#REF!<>\"\",ROUND(Stock!#REF!*J151,0),\"\")","v":{"$error":"#REF!"}},{"$f":"IF(Stock!#REF!<>\"\",$H151*K151,\"\")","v":{"$error":"#REF!"}},{"$f":"IF(Stock!#REF!<>\"\",Pilotage!N$27,\"\")","v":{"$error":"#REF!"}},{"$f":"IF(Stock!#REF!<>\"\",ROUND(K151*M151,0),\"\")","v":{"$error":"#REF!"}},{"$f":"IF(Stock!#REF!<>\"\",$H151*N151,\"\")","v":{"$error":"#REF!"}},{"$f":"IF(Stock!#REF!<>\"\",Pilotage!O$27,\"\")","v":{"$error":"#REF!"}},{"$f":"IF(Stock!#REF!<>\"\",ROUND(K151*P151,0),\"\")","v":{"$error":"#REF!"}},{"$f":"IF(Stock!#REF!<>\"\",$H151*Q151,\"\")","v":{"$error":"#REF!"}},{"$f":"IF(Stock!#REF!<>\"\",Pilotage!P$27,\"\")","v":{"$error":"#REF!"}},{"$f":"IF(Stock!#REF!<>\"\",ROUND(Q151*S151,0),\"\")","v":{"$error":"#REF!"}},{"$f":"IF(Stock!#REF!<>\"\",$H151*T151,\"\")","v":{"$error":"#REF!"}},{"$f":"IF(Stock!#REF!<>\"\",Pilotage!Q$27,\"\")","v":{"$error":"#REF!"}},{"$f":"IF(Stock!#REF!<>\"\",ROUND(T151*V151,0),\"\")","v":{"$error":"#REF!"}},{"$f":"IF(Stock!#REF!<>\"\",$H151*W151,\"\")","v":{"$error":"#REF!"}},{"$f":"IF(Stock!#REF!<>\"\",Pilotage!R$27,\"\")","v":{"$error":"#REF!"}},{"$f":"IF(Stock!#REF!<>\"\",ROUND(W151*Y151,0),\"\")","v":{"$error":"#REF!"}},{"$f":"IF(Stock!#REF!<>\"\",$H151*Z151,\"\")","v":{"$error":"#REF!"}}]
[{"$f":"IF(Stock!#REF!<>\"\",Stock!#REF!,\"\")","v":{"$error":"#REF!"}},{"$f":"IF(Stock!#REF!<>\"\",Stock!#REF!,\"\")","v":{"$error":"#REF!"}},{"$f":"IF(Stock!#REF!<>\"\",Stock!#REF!,\"\")","v":{"$error":"#REF!"}},{"$f":"IF(Stock!#REF!<>\"\",SUM(Stock!#REF!,Stock!#REF!,Stock!#REF!),\"\")","v":{"$error":"#REF!"}},{"$f":"IF(Stock!#REF!<>\"\",#REF!*(1+Pilotage!$M$20),\"\")","v":{"$error":"#REF!"}},null,{"$f":"IF(Stock!#REF!<>\"\",IF(Stock!#REF!>0,Stock!#REF!/Stock!#REF!,0),\"\")","v":{"$error":"#REF!"}},{"$f":"IF(Stock!#REF!<>\"\",E152*Pilotage!$D$15,\"\")","v":{"$error":"#REF!"}},{"$f":"IF(Stock!#REF!<>\"\",IF(Stock!#REF!>0,Stock!#REF!,0),\"\")","v":{"$error":"#REF!"}},{"$f":"IF(Stock!#REF!<>\"\",Pilotage!$M$27,\"\")","v":{"$error":"#REF!"}},{"$f":"IF(Stock!#REF!<>\"\",ROUND(Stock!#REF!*J152,0),\"\")","v":{"$error":"#REF!"}},{"$f":"IF(Stock!#REF!<>\"\",$H152*K152,\"\")","v":{"$error":"#REF!"}},{"$f":"IF(Stock!#REF!<>\"\",Pilotage!N$27,\"\")","v":{"$error":"#REF!"}},{"$f":"IF(Stock!#REF!<>\"\",ROUND(K152*M152,0),\"\")","v":{"$error":"#REF!"}},{"$f":"IF(Stock!#REF!<>\"\",$H152*N152,\"\")","v":{"$error":"#REF!"}},{"$f":"IF(Stock!#REF!<>\"\",Pilotage!O$27,\"\")","v":{"$error":"#REF!"}},{"$f":"IF(Stock!#REF!<>\"\",ROUND(K152*P152,0),\"\")","v":{"$error":"#REF!"}},{"$f":"IF(Stock!#REF!<>\"\",$H152*Q152,\"\")","v":{"$error":"#REF!"}},{"$f":"IF(Stock!#REF!<>\"\",Pilotage!P$27,\"\")","v":{"$error":"#REF!"}},{"$f":"IF(Stock!#REF!<>\"\",ROUND(Q152*S152,0),\"\")","v":{"$error":"#REF!"}},{"$f":"IF(Stock!#REF!<>\"\",$H152*T152,\"\")","v":{"$error":"#REF!"}},{"$f":"IF(Stock!#REF!<>\"\",Pilotage!Q$27,\"\")","v":{"$error":"#REF!"}},{"$f":"IF(Stock!#REF!<>\"\",ROUND(T152*V152,0),\"\")","v":{"$error":"#REF!"}},{"$f":"IF(Stock!#REF!<>\"\",$H152*W152,\"\")","v":{"$error":"#REF!"}},{"$f":"IF(Stock!#REF!<>\"\",Pilotage!R$27,\"\")","v":{"$error":"#REF!"}},{"$f":"IF(Stock!#REF!<>\"\",ROUND(W152*Y152,0),\"\")","v":{"$error":"#REF!"}},{"$f":"IF(Stock!#REF!<>\"\",$H152*Z152,\"\")","v":{"$error":"#REF!"}}]
[{"$f":"IF(Stock!#REF!<>\"\",Stock!#REF!,\"\")","v":{"$error":"#REF!"}},{"$f":"IF(Stock!#REF!<>\"\",Stock!#REF!,\"\")","v":{"$error":"#REF!"}},{"$f":"IF(Stock!#REF!<>\"\",Stock!#REF!,\"\")","v":{"$error":"#REF!"}},{"$f":"IF(Stock!#REF!<>\"\",SUM(Stock!#REF!,Stock!#REF!,Stock!#REF!),\"\")","v":{"$error":"#REF!"}},{"$f":"IF(Stock!#REF!<>\"\",#REF!*(1+Pilotage!$M$20),\"\")","v":{"$error":"#REF!"}},null,{"$f":"IF(Stock!#REF!<>\"\",IF(Stock!#REF!>0,Stock!#REF!/Stock!#REF!,0),\"\")","v":{"$error":"#REF!"}},{"$f":"IF(Stock!#REF!<>\"\",E153*Pilotage!$D$15,\"\")","v":{"$error":"#REF!"}},{"$f":"IF(Stock!#REF!<>\"\",IF(Stock!#REF!>0,Stock!#REF!,0),\"\")","v":{"$error":"#REF!"}},{"$f":"IF(Stock!#REF!<>\"\",Pilotage!$M$27,\"\")","v":{"$error":"#REF!"}},{"$f":"IF(Stock!#REF!<>\"\",ROUND(Stock!#REF!*J153,0),\"\")","v":{"$error":"#REF!"}},{"$f":"IF(Stock!#REF!<>\"\",$H153*K153,\"\")","v":{"$error":"#REF!"}},{"$f":"IF(Stock!#REF!<>\"\",Pilotage!N$27,\"\")","v":{"$error":"#REF!"}},{"$f":"IF(Stock!#REF!<>\"\",ROUND(K153*M153,0),\"\")","v":{"$error":"#REF!"}},{"$f":"IF(Stock!#REF!<>\"\",$H153*N153,\"\")","v":{"$error":"#REF!"}},{"$f":"IF(Stock!#REF!<>\"\",Pilotage!O$27,\"\")","v":{"$error":"#REF!"}},{"$f":"IF(Stock!#REF!<>\"\",ROUND(K153*P153,0),\"\")","v":{"$error":"#REF!"}},{"$f":"IF(Stock!#REF!<>\"\",$H153*Q153,\"\")","v":{"$error":"#REF!"}},{"$f":"IF(Stock!#REF!<>\"\",Pilotage!P$27,\"\")","v":{"$error":"#REF!"}},{"$f":"IF(Stock!#REF!<>\"\",ROUND(Q153*S153,0),\"\")","v":{"$error":"#REF!"}},{"$f":"IF(Stock!#REF!<>\"\",$H153*T153,\"\")","v":{"$error":"#REF!"}},{"$f":"IF(Stock!#REF!<>\"\",Pilotage!Q$27,\"\")","v":{"$error":"#REF!"}},{"$f":"IF(Stock!#REF!<>\"\",ROUND(T153*V153,0),\"\")","v":{"$error":"#REF!"}},{"$f":"IF(Stock!#REF!<>\"\",$H153*W153,\"\")","v":{"$error":"#REF!"}},{"$f":"IF(Stock!#REF!<>\"\",Pilotage!R$27,\"\")","v":{"$error":"#REF!"}},{"$f":"IF(Stock!#REF!<>\"\",ROUND(W153*Y153,0),\"\")","v":{"$error":"#REF!"}},{"$f":"IF(Stock!#REF!<>\"\",$H153*Z153,\"\")","v":{"$error":"#REF!"}}]
[{"$f":"IF(Stock!#REF!<>\"\",Stock!#REF!,\"\")","v":{"$error":"#REF!"}},{"$f":"IF(Stock!#REF!<>\"\",Stock!#REF!,\"\")","v":{"$error":"#REF!"}},{"$f":"IF(Stock!#REF!<>\"\",Stock!#REF!,\"\")","v":{"$error":"#REF!"}},{"$f":"IF(Stock!#REF!<>\"\",SUM(Stock!#REF!,Stock!#REF!,Stock!#REF!),\"\")","v":{"$error":"#REF!"}},{"$f":"IF(Stock!#REF!<>\"\",#REF!*(1+Pilotage!$M$20),\"\")","v":{"$error":"#REF!"}},null,{"$f":"IF(Stock!#REF!<>\"\",IF(Stock!#REF!>0,Stock!#REF!/Stock!#REF!,0),\"\")","v":{"$error":"#REF!"}},{"$f":"IF(Stock!#REF!<>\"\",E154*Pilotage!$D$15,\"\")","v":{"$error":"#REF!"}},{"$f":"IF(Stock!#REF!<>\"\",IF(Stock!#REF!>0,Stock!#REF!,0),\"\")","v":{"$error":"#REF!"}},{"$f":"IF(Stock!#REF!<>\"\",Pilotage!$M$27,\"\")","v":{"$error":"#REF!"}},{"$f":"IF(Stock!#REF!<>\"\",ROUND(Stock!#REF!*J154,0),\"\")","v":{"$error":"#REF!"}},{"$f":"IF(Stock!#REF!<>\"\",$H154*K154,\"\")","v":{"$error":"#REF!"}},{"$f":"IF(Stock!#REF!<>\"\",Pilotage!N$27,\"\")","v":{"$error":"#REF!"}},{"$f":"IF(Stock!#REF!<>\"\",ROUND(K154*M154,0),\"\")","v":{"$error":"#REF!"}},{"$f":"IF(Stock!#REF!<>\"\",$H154*N154,\"\")","v":{"$error":"#REF!"}},{"$f":"IF(Stock!#REF!<>\"\",Pilotage!O$27,\"\")","v":{"$error":"#REF!"}},{"$f":"IF(Stock!#REF!<>\"\",ROUND(K154*P154,0),\"\")","v":{"$error":"#REF!"}},{"$f":"IF(Stock!#REF!<>\"\",$H154*Q154,\"\")","v":{"$error":"#REF!"}},{"$f":"IF(Stock!#REF!<>\"\",Pilotage!P$27,\"\")","v":{"$error":"#REF!"}},{"$f":"IF(Stock!#REF!<>\"\",ROUND(Q154*S154,0),\"\")","v":{"$error":"#REF!"}},{"$f":"IF(Stock!#REF!<>\"\",$H154*T154,\"\")","v":{"$error":"#REF!"}},{"$f":"IF(Stock!#REF!<>\"\",Pilotage!Q$27,\"\")","v":{"$error":"#REF!"}},{"$f":"IF(Stock!#REF!<>\"\",ROUND(T154*V154,0),\"\")","v":{"$error":"#REF!"}},{"$f":"IF(Stock!#REF!<>\"\",$H154*W154,\"\")","v":{"$error":"#REF!"}},{"$f":"IF(Stock!#REF!<>\"\",Pilotage!R$27,\"\")","v":{"$error":"#REF!"}},{"$f":"IF(Stock!#REF!<>\"\",ROUND(W154*Y154,0),\"\")","v":{"$error":"#REF!"}},{"$f":"IF(Stock!#REF!<>\"\",$H154*Z154,\"\")","v":{"$error":"#REF!"}}]
[{"$f":"IF(Stock!#REF!<>\"\",Stock!#REF!,\"\")","v":{"$error":"#REF!"}},{"$f":"IF(Stock!#REF!<>\"\",Stock!#REF!,\"\")","v":{"$error":"#REF!"}},{"$f":"IF(Stock!#REF!<>\"\",Stock!#REF!,\"\")","v":{"$error":"#REF!"}},{"$f":"IF(Stock!#REF!<>\"\",SUM(Stock!#REF!,Stock!#REF!,Stock!#REF!),\"\")","v":{"$error":"#REF!"}},{"$f":"IF(Stock!#REF!<>\"\",#REF!*(1+Pilotage!$M$20),\"\")","v":{"$error":"#REF!"}},null,{"$f":"IF(Stock!#REF!<>\"\",IF(Stock!#REF!>0,Stock!#REF!/Stock!#REF!,0),\"\")","v":{"$error":"#REF!"}},{"$f":"IF(Stock!#REF!<>\"\",E155*Pilotage!$D$15,\"\")","v":{"$error":"#REF!"}},{"$f":"IF(Stock!#REF!<>\"\",IF(Stock!#REF!>0,Stock!#REF!,0),\"\")","v":{"$error":"#REF!"}},{"$f":"IF(Stock!#REF!<>\"\",Pilotage!$M$27,\"\")","v":{"$error":"#REF!"}},{"$f":"IF(Stock!#REF!<>\"\",ROUND(Stock!#REF!*J155,0),\"\")","v":{"$error":"#REF!"}},{"$f":"IF(Stock!#REF!<>\"\",$H155*K155,\"\")","v":{"$error":"#REF!"}},{"$f":"IF(Stock!#REF!<>\"\",Pilotage!N$27,\"\")","v":{"$error":"#REF!"}},{"$f":"IF(Stock!#REF!<>\"\",ROUND(K155*M155,0),\"\")","v":{"$error":"#REF!"}},{"$f":"IF(Stock!#REF!<>\"\",$H155*N155,\"\")","v":{"$error":"#REF!"}},{"$f":"IF(Stock!#REF!<>\"\",Pilotage!O$27,\"\")","v":{"$error":"#REF!"}},{"$f":"IF(Stock!#REF!<>\"\",ROUND(K155*P155,0),\"\")","v":{"$error":"#REF!"}},{"$f":"IF(Stock!#REF!<>\"\",$H155*Q155,\"\")","v":{"$error":"#REF!"}},{"$f":"IF(Stock!#REF!<>\"\",Pilotage!P$27,\"\")","v":{"$error":"#REF!"}},{"$f":"IF(Stock!#REF!<>\"\",ROUND(Q155*S155,0),\"\")","v":{"$error":"#REF!"}},{"$f":"IF(Stock!#REF!<>\"\",$H155*T155,\"\")","v":{"$error":"#REF!"}},{"$f":"IF(Stock!#REF!<>\"\",Pilotage!Q$27,\"\")","v":{"$error":"#REF!"}},{"$f":"IF(Stock!#REF!<>\"\",ROUND(T155*V155,0),\"\")","v":{"$error":"#REF!"}},{"$f":"IF(Stock!#REF!<>\"\",$H155*W155,\"\")","v":{"$error":"#REF!"}},{"$f":"IF(Stock!#REF!<>\"\",Pilotage!R$27,\"\")","v":{"$error":"#REF!"}},{"$f":"IF(Stock!#REF!<>\"\",ROUND(W155*Y155,0),\"\")","v":{"$error":"#REF!"}},{"$f":"IF(Stock!#REF!<>\"\",$H155*Z155,\"\")","v":{"$error":"#REF!"}}]
[{"$f":"IF(Stock!#REF!<>\"\",Stock!#REF!,\"\")","v":{"$error":"#REF!"}},{"$f":"IF(Stock!#REF!<>\"\",Stock!#REF!,\"\")","v":{"$error":"#REF!"}},{"$f":"IF(Stock!#REF!<>\"\",Stock!#REF!,\"\")","v":{"$error":"#REF!"}},{"$f":"IF(Stock!#REF!<>\"\",SUM(Stock!#REF!,Stock!#REF!,Stock!#REF!),\"\")","v":{"$error":"#REF!"}},{"$f":"IF(Stock!#REF!<>\"\",#REF!*(1+Pilotage!$M$20),\"\")","v":{"$error":"#REF!"}},null,{"$f":"IF(Stock!#REF!<>\"\",IF(Stock!#REF!>0,Stock!#REF!/Stock!#REF!,0),\"\")","v":{"$error":"#REF!"}},{"$f":"IF(Stock!#REF!<>\"\",E156*Pilotage!$D$15,\"\")","v":{"$error":"#REF!"}},{"$f":"IF(Stock!#REF!<>\"\",IF(Stock!#REF!>0,Stock!#REF!,0),\"\")","v":{"$error":"#REF!"}},{"$f":"IF(Stock!#REF!<>\"\",Pilotage!$M$27,\"\")","v":{"$error":"#REF!"}},{"$f":"IF(Stock!#REF!<>\"\",ROUND(Stock!#REF!*J156,0),\"\")","v":{"$error":"#REF!"}},{"$f":"IF(Stock!#REF!<>\"\",$H156*K156,\"\")","v":{"$error":"#REF!"}},{"$f":"IF(Stock!#REF!<>\"\",Pilotage!N$27,\"\")","v":{"$error":"#REF!"}},{"$f":"IF(Stock!#REF!<>\"\",ROUND(K156*M156,0),\"\")","v":{"$error":"#REF!"}},{"$f":"IF(Stock!#REF!<>\"\",$H156*N156,\"\")","v":{"$error":"#REF!"}},{"$f":"IF(Stock!#REF!<>\"\",Pilotage!O$27,\"\")","v":{"$error":"#REF!"}},{"$f":"IF(Stock!#REF!<>\"\",ROUND(K156*P156,0),\"\")","v":{"$error":"#REF!"}},{"$f":"IF(Stock!#REF!<>\"\",$H156*Q156,\"\")","v":{"$error":"#REF!"}},{"$f":"IF(Stock!#REF!<>\"\",Pilotage!P$27,\"\")","v":{"$error":"#REF!"}},{"$f":"IF(Stock!#REF!<>\"\",ROUND(Q156*S156,0),\"\")","v":{"$error":"#REF!"}},{"$f":"IF(Stock!#REF!<>\"\",$H156*T156,\"\")","v":{"$error":"#REF!"}},{"$f":"IF(Stock!#REF!<>\"\",Pilotage!Q$27,\"\")","v":{"$error":"#REF!"}},{"$f":"IF(Stock!#REF!<>\"\",ROUND(T156*V156,0),\"\")","v":{"$error":"#REF!"}},{"$f":"IF(Stock!#REF!<>\"\",$H156*W156,\"\")","v":{"$error":"#REF!"}},{"$f":"IF(Stock!#REF!<>\"\",Pilotage!R$27,\"\")","v":{"$error":"#REF!"}},{"$f":"IF(Stock!#REF!<>\"\",ROUND(W156*Y156,0),\"\")","v":{"$error":"#REF!"}},{"$f":"IF(Stock!#REF!<>\"\",$H156*Z156,\"\")","v":{"$error":"#REF!"}}]
[{"$f":"IF(Stock!#REF!<>\"\",Stock!#REF!,\"\")","v":{"$error":"#REF!"}},{"$f":"IF(Stock!#REF!<>\"\",Stock!#REF!,\"\")","v":{"$error":"#REF!"}},{"$f":"IF(Stock!#REF!<>\"\",Stock!#REF!,\"\")","v":{"$error":"#REF!"}},{"$f":"IF(Stock!#REF!<>\"\",SUM(Stock!#REF!,Stock!#REF!,Stock!#REF!),\"\")","v":{"$error":"#REF!"}},{"$f":"IF(Stock!#REF!<>\"\",#REF!*(1+Pilotage!$M$20),\"\")","v":{"$error":"#REF!"}},null,{"$f":"IF(Stock!#REF!<>\"\",IF(Stock!#REF!>0,Stock!#REF!/Stock!#REF!,0),\"\")","v":{"$error":"#REF!"}},{"$f":"IF(Stock!#REF!<>\"\",E157*Pilotage!$D$15,\"\")","v":{"$error":"#REF!"}},{"$f":"IF(Stock!#REF!<>\"\",IF(Stock!#REF!>0,Stock!#REF!,0),\"\")","v":{"$error":"#REF!"}},{"$f":"IF(Stock!#REF!<>\"\",Pilotage!$M$27,\"\")","v":{"$error":"#REF!"}},{"$f":"IF(Stock!#REF!<>\"\",ROUND(Stock!#REF!*J157,0),\"\")","v":{"$error":"#REF!"}},{"$f":"IF(Stock!#REF!<>\"\",$H157*K157,\"\")","v":{"$error":"#REF!"}},{"$f":"IF(Stock!#REF!<>\"\",Pilotage!N$27,\"\")","v":{"$error":"#REF!"}},{"$f":"IF(Stock!#REF!<>\"\",ROUND(K157*M157,0),\"\")","v":{"$error":"#REF!"}},{"$f":"IF(Stock!#REF!<>\"\",$H157*N157,\"\")","v":{"$error":"#REF!"}},{"$f":"IF(Stock!#REF!<>\"\",Pilotage!O$27,\"\")","v":{"$error":"#REF!"}},{"$f":"IF(Stock!#REF!<>\"\",ROUND(K157*P157,0),\"\")","v":{"$error":"#REF!"}},{"$f":"IF(Stock!#REF!<>\"\",$H157*Q157,\"\")","v":{"$error":"#REF!"}},{"$f":"IF(Stock!#REF!<>\"\",Pilotage!P$27,\"\")","v":{"$error":"#REF!"}},{"$f":"IF(Stock!#REF!<>\"\",ROUND(Q157*S157,0),\"\")","v":{"$error":"#REF!"}},{"$f":"IF(Stock!#REF!<>\"\",$H157*T157,\"\")","v":{"$error":"#REF!"}},{"$f":"IF(Stock!#REF!<>\"\",Pilotage!Q$27,\"\")","v":{"$error":"#REF!"}},{"$f":"IF(Stock!#REF!<>\"\",ROUND(T157*V157,0),\"\")","v":{"$error":"#REF!"}},{"$f":"IF(Stock!#REF!<>\"\",$H157*W157,\"\")","v":{"$error":"#REF!"}},{"$f":"IF(Stock!#REF!<>\"\",Pilotage!R$27,\"\")","v":{"$error":"#REF!"}},{"$f":"IF(Stock!#REF!<>\"\",ROUND(W157*Y157,0),\"\")","v":{"$error":"#REF!"}},{"$f":"IF(Stock!#REF!<>\"\",$H157*Z157,\"\")","v":{"$error":"#REF!"}}]
[{"$f":"IF(Stock!#REF!<>\"\",Stock!#REF!,\"\")","v":{"$error":"#REF!"}},{"$f":"IF(Stock!#REF!<>\"\",Stock!#REF!,\"\")","v":{"$error":"#REF!"}},{"$f":"IF(Stock!#REF!<>\"\",Stock!#REF!,\"\")","v":{"$error":"#REF!"}},{"$f":"IF(Stock!#REF!<>\"\",SUM(Stock!#REF!,Stock!#REF!,Stock!#REF!),\"\")","v":{"$error":"#REF!"}},{"$f":"IF(Stock!#REF!<>\"\",#REF!*(1+Pilotage!$M$20),\"\")","v":{"$error":"#REF!"}},null,{"$f":"IF(Stock!#REF!<>\"\",IF(Stock!#REF!>0,Stock!#REF!/Stock!#REF!,0),\"\")","v":{"$error":"#REF!"}},{"$f":"IF(Stock!#REF!<>\"\",E158*Pilotage!$D$15,\"\")","v":{"$error":"#REF!"}},{"$f":"IF(Stock!#REF!<>\"\",IF(Stock!#REF!>0,Stock!#REF!,0),\"\")","v":{"$error":"#REF!"}},{"$f":"IF(Stock!#REF!<>\"\",Pilotage!$M$27,\"\")","v":{"$error":"#REF!"}},{"$f":"IF(Stock!#REF!<>\"\",ROUND(Stock!#REF!*J158,0),\"\")","v":{"$error":"#REF!"}},{"$f":"IF(Stock!#REF!<>\"\",$H158*K158,\"\")","v":{"$error":"#REF!"}},{"$f":"IF(Stock!#REF!<>\"\",Pilotage!N$27,\"\")","v":{"$error":"#REF!"}},{"$f":"IF(Stock!#REF!<>\"\",ROUND(K158*M158,0),\"\")","v":{"$error":"#REF!"}},{"$f":"IF(Stock!#REF!<>\"\",$H158*N158,\"\")","v":{"$error":"#REF!"}},{"$f":"IF(Stock!#REF!<>\"\",Pilotage!O$27,\"\")","v":{"$error":"#REF!"}},{"$f":"IF(Stock!#REF!<>\"\",ROUND(K158*P158,0),\"\")","v":{"$error":"#REF!"}},{"$f":"IF(Stock!#REF!<>\"\",$H158*Q158,\"\")","v":{"$error":"#REF!"}},{"$f":"IF(Stock!#REF!<>\"\",Pilotage!P$27,\"\")","v":{"$error":"#REF!"}},{"$f":"IF(Stock!#REF!<>\"\",ROUND(Q158*S158,0),\"\")","v":{"$error":"#REF!"}},{"$f":"IF(Stock!#REF!<>\"\",$H158*T158,\"\")","v":{"$error":"#REF!"}},{"$f":"IF(Stock!#REF!<>\"\",Pilotage!Q$27,\"\")","v":{"$error":"#REF!"}},{"$f":"IF(Stock!#REF!<>\"\",ROUND(T158*V158,0),\"\")","v":{"$error":"#REF!"}},{"$f":"IF(Stock!#REF!<>\"\",$H158*W158,\"\")","v":{"$error":"#REF!"}},{"$f":"IF(Stock!#REF!<>\"\",Pilotage!R$27,\"\")","v":{"$error":"#REF!"}},{"$f":"IF(Stock!#REF!<>\"\",ROUND(W158*Y158,0),\"\")","v":{"$error":"#REF!"}},{"$f":"IF(Stock!#REF!<>\"\",$H158*Z158,\"\")","v":{"$error":"#REF!"}}]
[{"$f":"IF(Stock!#REF!<>\"\",Stock!#REF!,\"\")","v":{"$error":"#REF!"}},{"$f":"IF(Stock!#REF!<>\"\",Stock!#REF!,\"\")","v":{"$error":"#REF!"}},{"$f":"IF(Stock!#REF!<>\"\",Stock!#REF!,\"\")","v":{"$error":"#REF!"}},{"$f":"IF(Stock!#REF!<>\"\",SUM(Stock!#REF!,Stock!#REF!,Stock!#REF!),\"\")","v":{"$error":"#REF!"}},{"$f":"IF(Stock!#REF!<>\"\",#REF!*(1+Pilotage!$M$20),\"\")","v":{"$error":"#REF!"}},null,{"$f":"IF(Stock!#REF!<>\"\",IF(Stock!#REF!>0,Stock!#REF!/Stock!#REF!,0),\"\")","v":{"$error":"#REF!"}},{"$f":"IF(Stock!#REF!<>\"\",E159*Pilotage!$D$15,\"\")","v":{"$error":"#REF!"}},{"$f":"IF(Stock!#REF!<>\"\",IF(Stock!#REF!>0,Stock!#REF!,0),\"\")","v":{"$error":"#REF!"}},{"$f":"IF(Stock!#REF!<>\"\",Pilotage!$M$27,\"\")","v":{"$error":"#REF!"}},{"$f":"IF(Stock!#REF!<>\"\",ROUND(Stock!#REF!*J159,0),\"\")","v":{"$error":"#REF!"}},{"$f":"IF(Stock!#REF!<>\"\",$H159*K159,\"\")","v":{"$error":"#REF!"}},{"$f":"IF(Stock!#REF!<>\"\",Pilotage!N$27,\"\")","v":{"$error":"#REF!"}},{"$f":"IF(Stock!#REF!<>\"\",ROUND(K159*M159,0),\"\")","v":{"$error":"#REF!"}},{"$f":"IF(Stock!#REF!<>\"\",$H159*N159,\"\")","v":{"$error":"#REF!"}},{"$f":"IF(Stock!#REF!<>\"\",Pilotage!O$27,\"\")","v":{"$error":"#REF!"}},{"$f":"IF(Stock!#REF!<>\"\",ROUND(K159*P159,0),\"\")","v":{"$error":"#REF!"}},{"$f":"IF(Stock!#REF!<>\"\",$H159*Q159,\"\")","v":{"$error":"#REF!"}},{"$f":"IF(Stock!#REF!<>\"\",Pilotage!P$27,\"\")","v":{"$error":"#REF!"}},{"$f":"IF(Stock!#REF!<>\"\",ROUND(Q159*S159,0),\"\")","v":{"$error":"#REF!"}},{"$f":"IF(Stock!#REF!<>\"\",$H159*T159,\"\")","v":{"$error":"#REF!"}},{"$f":"IF(Stock!#REF!<>\"\",Pilotage!Q$27,\"\")","v":{"$error":"#REF!"}},{"$f":"IF(Stock!#REF!<>\"\",ROUND(T159*V159,0),\"\")","v":{"$error":"#REF!"}},{"$f":"IF(Stock!#REF!<>\"\",$H159*W159,\"\")","v":{"$error":"#REF!"}},{"$f":"IF(Stock!#REF!<>\"\",Pilotage!R$27,\"\")","v":{"$error":"#REF!"}},{"$f":"IF(Stock!#REF!<>\"\",ROUND(W159*Y159,0),\"\")","v":{"$error":"#REF!"}},{"$f":"IF(Stock!#REF!<>\"\",$H159*Z159,\"\")","v":{"$error":"#REF!"}}]
[{"$f":"IF(Stock!#REF!<>\"\",Stock!#REF!,\"\")","v":{"$error":"#REF!"}},{"$f":"IF(Stock!#REF!<>\"\",Stock!#REF!,\"\")","v":{"$error":"#REF!"}},{"$f":"IF(Stock!#REF!<>\"\",Stock!#REF!,\"\")","v":{"$error":"#REF!"}},{"$f":"IF(Stock!#REF!<>\"\",SUM(Stock!#REF!,Stock!#REF!,Stock!#REF!),\"\")","v":{"$error":"#REF!"}},{"$f":"IF(Stock!#REF!<>\"\",#REF!*(1+Pilotage!$M$20),\"\")","v":{"$error":"#REF!"}},null,{"$f":"IF(Stock!#REF!<>\"\",IF(Stock!#REF!>0,Stock!#REF!/Stock!#REF!,0),\"\")","v":{"$error":"#REF!"}},{"$f":"IF(Stock!#REF!<>\"\",E160*Pilotage!$D$15,\"\")","v":{"$error":"#REF!"}},{"$f":"IF(Stock!#REF!<>\"\",IF(Stock!#REF!>0,Stock!#REF!,0),\"\")","v":{"$error":"#REF!"}},{"$f":"IF(Stock!#REF!<>\"\",Pilotage!$M$27,\"\")","v":{"$error":"#REF!"}},{"$f":"IF(Stock!#REF!<>\"\",ROUND(Stock!#REF!*J160,0),\"\")","v":{"$error":"#REF!"}},{"$f":"IF(Stock!#REF!<>\"\",$H160*K160,\"\")","v":{"$error":"#REF!"}},{"$f":"IF(Stock!#REF!<>\"\",Pilotage!N$27,\"\")","v":{"$error":"#REF!"}},{"$f":"IF(Stock!#REF!<>\"\",ROUND(K160*M160,0),\"\")","v":{"$error":"#REF!"}},{"$f":"IF(Stock!#REF!<>\"\",$H160*N160,\"\")","v":{"$error":"#REF!"}},{"$f":"IF(Stock!#REF!<>\"\",Pilotage!O$27,\"\")","v":{"$error":"#REF!"}},{"$f":"IF(Stock!#REF!<>\"\",ROUND(K160*P160,0),\"\")","v":{"$error":"#REF!"}},{"$f":"IF(Stock!#REF!<>\"\",$H160*Q160,\"\")","v":{"$error":"#REF!"}},{"$f":"IF(Stock!#REF!<>\"\",Pilotage!P$27,\"\")","v":{"$error":"#REF!"}},{"$f":"IF(Stock!#REF!<>\"\",ROUND(Q160*S160,0),\"\")","v":{"$error":"#REF!"}},{"$f":"IF(Stock!#REF!<>\"\",$H160*T160,\"\")","v":{"$error":"#REF!"}},{"$f":"IF(Stock!#REF!<>\"\",Pilotage!Q$27,\"\")","v":{"$error":"#REF!"}},{"$f":"IF(Stock!#REF!<>\"\",ROUND(T160*V160,0),\"\")","v":{"$error":"#REF!"}},{"$f":"IF(Stock!#REF!<>\"\",$H160*W160,\"\")","v":{"$error":"#REF!"}},{"$f":"IF(Stock!#REF!<>\"\",Pilotage!R$27,\"\")","v":{"$error":"#REF!"}},{"$f":"IF(Stock!#REF!<>\"\",ROUND(W160*Y160,0),\"\")","v":{"$error":"#REF!"}},{"$f":"IF(Stock!#REF!<>\"\",$H160*Z160,\"\")","v":{"$error":"#REF!"}}]
[{"$f":"IF(Stock!#REF!<>\"\",Stock!#REF!,\"\")","v":{"$error":"#REF!"}},{"$f":"IF(Stock!#REF!<>\"\",Stock!#REF!,\"\")","v":{"$error":"#REF!"}},{"$f":"IF(Stock!#REF!<>\"\",Stock!#REF!,\"\")","v":{"$error":"#REF!"}},{"$f":"IF(Stock!#REF!<>\"\",SUM(Stock!#REF!,Stock!#REF!,Stock!#REF!),\"\")","v":{"$error":"#REF!"}},{"$f":"IF(Stock!#REF!<>\"\",#REF!*(1+Pilotage!$M$20),\"\")","v":{"$error":"#REF!"}},null,{"$f":"IF(Stock!#REF!<>\"\",IF(Stock!#REF!>0,Stock!#REF!/Stock!#REF!,0),\"\")","v":{"$error":"#REF!"}},{"$f":"IF(Stock!#REF!<>\"\",E161*Pilotage!$D$15,\"\")","v":{"$error":"#REF!"}},{"$f":"IF(Stock!#REF!<>\"\",IF(Stock!#REF!>0,Stock!#REF!,0),\"\")","v":{"$error":"#REF!"}},{"$f":"IF(Stock!#REF!<>\"\",Pilotage!$M$27,\"\")","v":{"$error":"#REF!"}},{"$f":"IF(Stock!#REF!<>\"\",ROUND(Stock!#REF!*J161,0),\"\")","v":{"$error":"#REF!"}},{"$f":"IF(Stock!#REF!<>\"\",$H161*K161,\"\")","v":{"$error":"#REF!"}},{"$f":"IF(Stock!#REF!<>\"\",Pilotage!N$27,\"\")","v":{"$error":"#REF!"}},{"$f":"IF(Stock!#REF!<>\"\",ROUND(K161*M161,0),\"\")","v":{"$error":"#REF!"}},{"$f":"IF(Stock!#REF!<>\"\",$H161*N161,\"\")","v":{"$error":"#REF!"}},{"$f":"IF(Stock!#REF!<>\"\",Pilotage!O$27,\"\")","v":{"$error":"#REF!"}},{"$f":"IF(Stock!#REF!<>\"\",ROUND(K161*P161,0),\"\")","v":{"$error":"#REF!"}},{"$f":"IF(Stock!#REF!<>\"\",$H161*Q161,\"\")","v":{"$error":"#REF!"}},{"$f":"IF(Stock!#REF!<>\"\",Pilotage!P$27,\"\")","v":{"$error":"#REF!"}},{"$f":"IF(Stock!#REF!<>\"\",ROUND(Q161*S161,0),\"\")","v":{"$error":"#REF!"}},{"$f":"IF(Stock!#REF!<>\"\",$H161*T161,\"\")","v":{"$error":"#REF!"}},{"$f":"IF(Stock!#REF!<>\"\",Pilotage!Q$27,\"\")","v":{"$error":"#REF!"}},{"$f":"IF(Stock!#REF!<>\"\",ROUND(T161*V161,0),\"\")","v":{"$error":"#REF!"}},{"$f":"IF(Stock!#REF!<>\"\",$H161*W161,\"\")","v":{"$error":"#REF!"}},{"$f":"IF(Stock!#REF!<>\"\",Pilotage!R$27,\"\")","v":{"$error":"#REF!"}},{"$f":"IF(Stock!#REF!<>\"\",ROUND(W161*Y161,0),\"\")","v":{"$error":"#REF!"}},{"$f":"IF(Stock!#REF!<>\"\",$H161*Z161,\"\")","v":{"$error":"#REF!"}}]
[{"$f":"IF(Stock!#REF!<>\"\",Stock!#REF!,\"\")","v":{"$error":"#REF!"}},{"$f":"IF(Stock!#REF!<>\"\",Stock!#REF!,\"\")","v":{"$error":"#REF!"}},{"$f":"IF(Stock!#REF!<>\"\",Stock!#REF!,\"\")","v":{"$error":"#REF!"}},{"$f":"IF(Stock!#REF!<>\"\",SUM(Stock!#REF!,Stock!#REF!,Stock!#REF!),\"\")","v":{"$error":"#REF!"}},{"$f":"IF(Stock!#REF!<>\"\",#REF!*(1+Pilotage!$M$20),\"\")","v":{"$error":"#REF!"}},null,{"$f":"IF(Stock!#REF!<>\"\",IF(Stock!#REF!>0,Stock!#REF!/Stock!#REF!,0),\"\")","v":{"$error":"#REF!"}},{"$f":"IF(Stock!#REF!<>\"\",E162*Pilotage!$D$15,\"\")","v":{"$error":"#REF!"}},{"$f":"IF(Stock!#REF!<>\"\",IF(Stock!#REF!>0,Stock!#REF!,0),\"\")","v":{"$error":"#REF!"}},{"$f":"IF(Stock!#REF!<>\"\",Pilotage!$M$27,\"\")","v":{"$error":"#REF!"}},{"$f":"IF(Stock!#REF!<>\"\",ROUND(Stock!#REF!*J162,0),\"\")","v":{"$error":"#REF!"}},{"$f":"IF(Stock!#REF!<>\"\",$H162*K162,\"\")","v":{"$error":"#REF!"}},{"$f":"IF(Stock!#REF!<>\"\",Pilotage!N$27,\"\")","v":{"$error":"#REF!"}},{"$f":"IF(Stock!#REF!<>\"\",ROUND(K162*M162,0),\"\")","v":{"$error":"#REF!"}},{"$f":"IF(Stock!#REF!<>\"\",$H162*N162,\"\")","v":{"$error":"#REF!"}},{"$f":"IF(Stock!#REF!<>\"\",Pilotage!O$27,\"\")","v":{"$error":"#REF!"}},{"$f":"IF(Stock!#REF!<>\"\",ROUND(K162*P162,0),\"\")","v":{"$error":"#REF!"}},{"$f":"IF(Stock!#REF!<>\"\",$H162*Q162,\"\")","v":{"$error":"#REF!"}},{"$f":"IF(Stock!#REF!<>\"\",Pilotage!P$27,\"\")","v":{"$error":"#REF!"}},{"$f":"IF(Stock!#REF!<>\"\",ROUND(Q162*S162,0),\"\")","v":{"$error":"#REF!"}},{"$f":"IF(Stock!#REF!<>\"\",$H162*T162,\"\")","v":{"$error":"#REF!"}},{"$f":"IF(Stock!#REF!<>\"\",Pilotage!Q$27,\"\")","v":{"$error":"#REF!"}},{"$f":"IF(Stock!#REF!<>\"\",ROUND(T162*V162,0),\"\")","v":{"$error":"#REF!"}},{"$f":"IF(Stock!#REF!<>\"\",$H162*W162,\"\")","v":{"$error":"#REF!"}},{"$f":"IF(Stock!#REF!<>\"\",Pilotage!R$27,\"\")","v":{"$error":"#REF!"}},{"$f":"IF(Stock!#REF!<>\"\",ROUND(W162*Y162,0),\"\")","v":{"$error":"#REF!"}},{"$f":"IF(Stock!#REF!<>\"\",$H162*Z162,\"\")","v":{"$error":"#REF!"}}]
[{"$f":"IF(Stock!#REF!<>\"\",Stock!#REF!,\"\")","v":{"$error":"#REF!"}},{"$f":"IF(Stock!#REF!<>\"\",Stock!#REF!,\"\")","v":{"$error":"#REF!"}},{"$f":"IF(Stock!#REF!<>\"\",Stock!#REF!,\"\")","v":{"$error":"#REF!"}},{"$f":"IF(Stock!#REF!<>\"\",SUM(Stock!#REF!,Stock!#REF!,Stock!#REF!),\"\")","v":{"$error":"#REF!"}},{"$f":"IF(Stock!#REF!<>\"\",#REF!*(1+Pilotage!$M$20),\"\")","v":{"$error":"#REF!"}},null,{"$f":"IF(Stock!#REF!<>\"\",IF(Stock!#REF!>0,Stock!#REF!/Stock!#REF!,0),\"\")","v":{"$error":"#REF!"}},{"$f":"IF(Stock!#REF!<>\"\",E163*Pilotage!$D$15,\"\")","v":{"$error":"#REF!"}},{"$f":"IF(Stock!#REF!<>\"\",IF(Stock!#REF!>0,Stock!#REF!,0),\"\")","v":{"$error":"#REF!"}},{"$f":"IF(Stock!#REF!<>\"\",Pilotage!$M$27,\"\")","v":{"$error":"#REF!"}},{"$f":"IF(Stock!#REF!<>\"\",ROUND(Stock!#REF!*J163,0),\"\")","v":{"$error":"#REF!"}},{"$f":"IF(Stock!#REF!<>\"\",$H163*K163,\"\")","v":{"$error":"#REF!"}},{"$f":"IF(Stock!#REF!<>\"\",Pilotage!N$27,\"\")","v":{"$error":"#REF!"}},{"$f":"IF(Stock!#REF!<>\"\",ROUND(K163*M163,0),\"\")","v":{"$error":"#REF!"}},{"$f":"IF(Stock!#REF!<>\"\",$H163*N163,\"\")","v":{"$error":"#REF!"}},{"$f":"IF(Stock!#REF!<>\"\",Pilotage!O$27,\"\")","v":{"$error":"#REF!"}},{"$f":"IF(Stock!#REF!<>\"\",ROUND(K163*P163,0),\"\")","v":{"$error":"#REF!"}},{"$f":"IF(Stock!#REF!<>\"\",$H163*Q163,\"\")","v":{"$error":"#REF!"}},{"$f":"IF(Stock!#REF!<>\"\",Pilotage!P$27,\"\")","v":{"$error":"#REF!"}},{"$f":"IF(Stock!#REF!<>\"\",ROUND(Q163*S163,0),\"\")","v":{"$error":"#REF!"}},{"$f":"IF(Stock!#REF!<>\"\",$H163*T163,\"\")","v":{"$error":"#REF!"}},{"$f":"IF(Stock!#REF!<>\"\",Pilotage!Q$27,\"\")","v":{"$error":"#REF!"}},{"$f":"IF(Stock!#REF!<>\"\",ROUND(T163*V163,0),\"\")","v":{"$error":"#REF!"}},{"$f":"IF(Stock!#REF!<>\"\",$H163*W163,\"\")","v":{"$error":"#REF!"}},{"$f":"IF(Stock!#REF!<>\"\",Pilotage!R$27,\"\")","v":{"$error":"#REF!"}},{"$f":"IF(Stock!#REF!<>\"\",ROUND(W163*Y163,0),\"\")","v":{"$error":"#REF!"}},{"$f":"IF(Stock!#REF!<>\"\",$H163*Z163,\"\")","v":{"$error":"#REF!"}}]
[{"$f":"IF(Stock!#REF!<>\"\",Stock!#REF!,\"\")","v":{"$error":"#REF!"}},{"$f":"IF(Stock!#REF!<>\"\",Stock!#REF!,\"\")","v":{"$error":"#REF!"}},{"$f":"IF(Stock!#REF!<>\"\",Stock!#REF!,\"\")","v":{"$error":"#REF!"}},{"$f":"IF(Stock!#REF!<>\"\",SUM(Stock!#REF!,Stock!#REF!,Stock!#REF!),\"\")","v":{"$error":"#REF!"}},{"$f":"IF(Stock!#REF!<>\"\",#REF!*(1+Pilotage!$M$20),\"\")","v":{"$error":"#REF!"}},null,{"$f":"IF(Stock!#REF!<>\"\",IF(Stock!#REF!>0,Stock!#REF!/Stock!#REF!,0),\"\")","v":{"$error":"#REF!"}},{"$f":"IF(Stock!#REF!<>\"\",E164*Pilotage!$D$15,\"\")","v":{"$error":"#REF!"}},{"$f":"IF(Stock!#REF!<>\"\",IF(Stock!#REF!>0,Stock!#REF!,0),\"\")","v":{"$error":"#REF!"}},{"$f":"IF(Stock!#REF!<>\"\",Pilotage!$M$27,\"\")","v":{"$error":"#REF!"}},{"$f":"IF(Stock!#REF!<>\"\",ROUND(Stock!#REF!*J164,0),\"\")","v":{"$error":"#REF!"}},{"$f":"IF(Stock!#REF!<>\"\",$H164*K164,\"\")","v":{"$error":"#REF!"}},{"$f":"IF(Stock!#REF!<>\"\",Pilotage!N$27,\"\")","v":{"$error":"#REF!"}},{"$f":"IF(Stock!#REF!<>\"\",ROUND(K164*M164,0),\"\")","v":{"$error":"#REF!"}},{"$f":"IF(Stock!#REF!<>\"\",$H164*N164,\"\")","v":{"$error":"#REF!"}},{"$f":"IF(Stock!#REF!<>\"\",Pilotage!O$27,\"\")","v":{"$error":"#REF!"}},{"$f":"IF(Stock!#REF!<>\"\",ROUND(K164*P164,0),\"\")","v":{"$error":"#REF!"}},{"$f":"IF(Stock!#REF!<>\"\",$H164*Q164,\"\")","v":{"$error":"#REF!"}},{"$f":"IF(Stock!#REF!<>\"\",Pilotage!P$27,\"\")","v":{"$error":"#REF!"}},{"$f":"IF(Stock!#REF!<>\"\",ROUND(Q164*S164,0),\"\")","v":{"$error":"#REF!"}},{"$f":"IF(Stock!#REF!<>\"\",$H164*T164,\"\")","v":{"$error":"#REF!"}},{"$f":"IF(Stock!#REF!<>\"\",Pilotage!Q$27,\"\")","v":{"$error":"#REF!"}},{"$f":"IF(Stock!#REF!<>\"\",ROUND(T164*V164,0),\"\")","v":{"$error":"#REF!"}},{"$f":"IF(Stock!#REF!<>\"\",$H164*W164,\"\")","v":{"$error":"#REF!"}},{"$f":"IF(Stock!#REF!<>\"\",Pilotage!R$27,\"\")","v":{"$error":"#REF!"}},{"$f":"IF(Stock!#REF!<>\"\",ROUND(W164*Y164,0),\"\")","v":{"$error":"#REF!"}},{"$f":"IF(Stock!#REF!<>\"\",$H164*Z164,\"\")","v":{"$error":"#REF!"}}]
[{"$f":"IF(Stock!#REF!<>\"\",Stock!#REF!,\"\")","v":{"$error":"#REF!"}},{"$f":"IF(Stock!#REF!<>\"\",Stock!#REF!,\"\")","v":{"$error":"#REF!"}},{"$f":"IF(Stock!#REF!<>\"\",Stock!#REF!,\"\")","v":{"$error":"#REF!"}},{"$f":"IF(Stock!#REF!<>\"\",SUM(Stock!#REF!,Stock!#REF!,Stock!#REF!),\"\")","v":{"$error":"#REF!"}},{"$f":"IF(Stock!#REF!<>\"\",#REF!*(1+Pilotage!$M$20),\"\")","v":{"$error":"#REF!"}},null,{"$f":"IF(Stock!#REF!<>\"\",IF(Stock!#REF!>0,Stock!#REF!/Stock!#REF!,0),\"\")","v":{"$error":"#REF!"}},{"$f":"IF(Stock!#REF!<>\"\",E165*Pilotage!$D$15,\"\")","v":{"$error":"#REF!"}},{"$f":"IF(Stock!#REF!<>\"\",IF(Stock!#REF!>0,Stock!#REF!,0),\"\")","v":{"$error":"#REF!"}},{"$f":"IF(Stock!#REF!<>\"\",Pilotage!$M$27,\"\")","v":{"$error":"#REF!"}},{"$f":"IF(Stock!#REF!<>\"\",ROUND(Stock!#REF!*J165,0),\"\")","v":{"$error":"#REF!"}},{"$f":"IF(Stock!#REF!<>\"\",$H165*K165,\"\")","v":{"$error":"#REF!"}},{"$f":"IF(Stock!#REF!<>\"\",Pilotage!N$27,\"\")","v":{"$error":"#REF!"}},{"$f":"IF(Stock!#REF!<>\"\",ROUND(K165*M165,0),\"\")","v":{"$error":"#REF!"}},{"$f":"IF(Stock!#REF!<>\"\",$H165*N165,\"\")","v":{"$error":"#REF!"}},{"$f":"IF(Stock!#REF!<>\"\",Pilotage!O$27,\"\")","v":{"$error":"#REF!"}},{"$f":"IF(Stock!#REF!<>\"\",ROUND(K165*P165,0),\"\")","v":{"$error":"#REF!"}},{"$f":"IF(Stock!#REF!<>\"\",$H165*Q165,\"\")","v":{"$error":"#REF!"}},{"$f":"IF(Stock!#REF!<>\"\",Pilotage!P$27,\"\")","v":{"$error":"#REF!"}},{"$f":"IF(Stock!#REF!<>\"\",ROUND(Q165*S165,0),\"\")","v":{"$error":"#REF!"}},{"$f":"IF(Stock!#REF!<>\"\",$H165*T165,\"\")","v":{"$error":"#REF!"}},{"$f":"IF(Stock!#REF!<>\"\",Pilotage!Q$27,\"\")","v":{"$error":"#REF!"}},{"$f":"IF(Stock!#REF!<>\"\",ROUND(T165*V165,0),\"\")","v":{"$error":"#REF!"}},{"$f":"IF(Stock!#REF!<>\"\",$H165*W165,\"\")","v":{"$error":"#REF!"}},{"$f":"IF(Stock!#REF!<>\"\",Pilotage!R$27,\"\")","v":{"$error":"#REF!"}},{"$f":"IF(Stock!#REF!<>\"\",ROUND(W165*Y165,0),\"\")","v":{"$error":"#REF!"}},{"$f":"IF(Stock!#REF!<>\"\",$H165*Z165,\"\")","v":{"$error":"#REF!"}}]
[{"$f":"IF(Stock!#REF!<>\"\",Stock!#REF!,\"\")","v":{"$error":"#REF!"}},{"$f":"IF(Stock!#REF!<>\"\",Stock!#REF!,\"\")","v":{"$error":"#REF!"}},{"$f":"IF(Stock!#REF!<>\"\",Stock!#REF!,\"\")","v":{"$error":"#REF!"}},{"$f":"IF(Stock!#REF!<>\"\",SUM(Stock!#REF!,Stock!#REF!,Stock!#REF!),\"\")","v":{"$error":"#REF!"}},{"$f":"IF(Stock!#REF!<>\"\",#REF!*(1+Pilotage!$M$20),\"\")","v":{"$error":"#REF!"}},null,{"$f":"IF(Stock!#REF!<>\"\",IF(Stock!#REF!>0,Stock!#REF!/Stock!#REF!,0),\"\")","v":{"$error":"#REF!"}},{"$f":"IF(Stock!#REF!<>\"\",E166*Pilotage!$D$15,\"\")","v":{"$error":"#REF!"}},{"$f":"IF(Stock!#REF!<>\"\",IF(Stock!#REF!>0,Stock!#REF!,0),\"\")","v":{"$error":"#REF!"}},{"$f":"IF(Stock!#REF!<>\"\",Pilotage!$M$27,\"\")","v":{"$error":"#REF!"}},{"$f":"IF(Stock!#REF!<>\"\",ROUND(Stock!#REF!*J166,0),\"\")","v":{"$error":"#REF!"}},{"$f":"IF(Stock!#REF!<>\"\",$H166*K166,\"\")","v":{"$error":"#REF!"}},{"$f":"IF(Stock!#REF!<>\"\",Pilotage!N$27,\"\")","v":{"$error":"#REF!"}},{"$f":"IF(Stock!#REF!<>\"\",ROUND(K166*M166,0),\"\")","v":{"$error":"#REF!"}},{"$f":"IF(Stock!#REF!<>\"\",$H166*N166,\"\")","v":{"$error":"#REF!"}},{"$f":"IF(Stock!#REF!<>\"\",Pilotage!O$27,\"\")","v":{"$error":"#REF!"}},{"$f":"IF(Stock!#REF!<>\"\",ROUND(K166*P166,0),\"\")","v":{"$error":"#REF!"}},{"$f":"IF(Stock!#REF!<>\"\",$H166*Q166,\"\")","v":{"$error":"#REF!"}},{"$f":"IF(Stock!#REF!<>\"\",Pilotage!P$27,\"\")","v":{"$error":"#REF!"}},{"$f":"IF(Stock!#REF!<>\"\",ROUND(Q166*S166,0),\"\")","v":{"$error":"#REF!"}},{"$f":"IF(Stock!#REF!<>\"\",$H166*T166,\"\")","v":{"$error":"#REF!"}},{"$f":"IF(Stock!#REF!<>\"\",Pilotage!Q$27,\"\")","v":{"$error":"#REF!"}},{"$f":"IF(Stock!#REF!<>\"\",ROUND(T166*V166,0),\"\")","v":{"$error":"#REF!"}},{"$f":"IF(Stock!#REF!<>\"\",$H166*W166,\"\")","v":{"$error":"#REF!"}},{"$f":"IF(Stock!#REF!<>\"\",Pilotage!R$27,\"\")","v":{"$error":"#REF!"}},{"$f":"IF(Stock!#REF!<>\"\",ROUND(W166*Y166,0),\"\")","v":{"$error":"#REF!"}},{"$f":"IF(Stock!#REF!<>\"\",$H166*Z166,\"\")","v":{"$error":"#REF!"}}]
[{"$f":"IF(Stock!#REF!<>\"\",Stock!#REF!,\"\")","v":{"$error":"#REF!"}},{"$f":"IF(Stock!#REF!<>\"\",Stock!#REF!,\"\")","v":{"$error":"#REF!"}},{"$f":"IF(Stock!#REF!<>\"\",Stock!#REF!,\"\")","v":{"$error":"#REF!"}},{"$f":"IF(Stock!#REF!<>\"\",SUM(Stock!#REF!,Stock!#REF!,Stock!#REF!),\"\")","v":{"$error":"#REF!"}},{"$f":"IF(Stock!#REF!<>\"\",#REF!*(1+Pilotage!$M$20),\"\")","v":{"$error":"#REF!"}},null,{"$f":"IF(Stock!#REF!<>\"\",IF(Stock!#REF!>0,Stock!#REF!/Stock!#REF!,0),\"\")","v":{"$error":"#REF!"}},{"$f":"IF(Stock!#REF!<>\"\",E167*Pilotage!$D$15,\"\")","v":{"$error":"#REF!"}},{"$f":"IF(Stock!#REF!<>\"\",IF(Stock!#REF!>0,Stock!#REF!,0),\"\")","v":{"$error":"#REF!"}},{"$f":"IF(Stock!#REF!<>\"\",Pilotage!$M$27,\"\")","v":{"$error":"#REF!"}},{"$f":"IF(Stock!#REF!<>\"\",ROUND(Stock!#REF!*J167,0),\"\")","v":{"$error":"#REF!"}},{"$f":"IF(Stock!#REF!<>\"\",$H167*K167,\"\")","v":{"$error":"#REF!"}},{"$f":"IF(Stock!#REF!<>\"\",Pilotage!N$27,\"\")","v":{"$error":"#REF!"}},{"$f":"IF(Stock!#REF!<>\"\",ROUND(K167*M167,0),\"\")","v":{"$error":"#REF!"}},{"$f":"IF(Stock!#REF!<>\"\",$H167*N167,\"\")","v":{"$error":"#REF!"}},{"$f":"IF(Stock!#REF!<>\"\",Pilotage!O$27,\"\")","v":{"$error":"#REF!"}},{"$f":"IF(Stock!#REF!<>\"\",ROUND(K167*P167,0),\"\")","v":{"$error":"#REF!"}},{"$f":"IF(Stock!#REF!<>\"\",$H167*Q167,\"\")","v":{"$error":"#REF!"}},{"$f":"IF(Stock!#REF!<>\"\",Pilotage!P$27,\"\")","v":{"$error":"#REF!"}},{"$f":"IF(Stock!#REF!<>\"\",ROUND(Q167*S167,0),\"\")","v":{"$error":"#REF!"}},{"$f":"IF(Stock!#REF!<>\"\",$H167*T167,\"\")","v":{"$error":"#REF!"}},{"$f":"IF(Stock!#REF!<>\"\",Pilotage!Q$27,\"\")","v":{"$error":"#REF!"}},{"$f":"IF(Stock!#REF!<>\"\",ROUND(T167*V167,0),\"\")","v":{"$error":"#REF!"}},{"$f":"IF(Stock!#REF!<>\"\",$H167*W167,\"\")","v":{"$error":"#REF!"}},{"$f":"IF(Stock!#REF!<>\"\",Pilotage!R$27,\"\")","v":{"$error":"#REF!"}},{"$f":"IF(Stock!#REF!<>\"\",ROUND(W167*Y167,0),\"\")","v":{"$error":"#REF!"}},{"$f":"IF(Stock!#REF!<>\"\",$H167*Z167,\"\")","v":{"$error":"#REF!"}}]
[{"$f":"IF(Stock!#REF!<>\"\",Stock!#REF!,\"\")","v":{"$error":"#REF!"}},{"$f":"IF(Stock!#REF!<>\"\",Stock!#REF!,\"\")","v":{"$error":"#REF!"}},{"$f":"IF(Stock!#REF!<>\"\",Stock!#REF!,\"\")","v":{"$error":"#REF!"}},{"$f":"IF(Stock!#REF!<>\"\",SUM(Stock!#REF!,Stock!#REF!,Stock!#REF!),\"\")","v":{"$error":"#REF!"}},{"$f":"IF(Stock!#REF!<>\"\",#REF!*(1+Pilotage!$M$20),\"\")","v":{"$error":"#REF!"}},null,{"$f":"IF(Stock!#REF!<>\"\",IF(Stock!#REF!>0,Stock!#REF!/Stock!#REF!,0),\"\")","v":{"$error":"#REF!"}},{"$f":"IF(Stock!#REF!<>\"\",E168*Pilotage!$D$15,\"\")","v":{"$error":"#REF!"}},{"$f":"IF(Stock!#REF!<>\"\",IF(Stock!#REF!>0,Stock!#REF!,0),\"\")","v":{"$error":"#REF!"}},{"$f":"IF(Stock!#REF!<>\"\",Pilotage!$M$27,\"\")","v":{"$error":"#REF!"}},{"$f":"IF(Stock!#REF!<>\"\",ROUND(Stock!#REF!*J168,0),\"\")","v":{"$error":"#REF!"}},{"$f":"IF(Stock!#REF!<>\"\",$H168*K168,\"\")","v":{"$error":"#REF!"}},{"$f":"IF(Stock!#REF!<>\"\",Pilotage!N$27,\"\")","v":{"$error":"#REF!"}},{"$f":"IF(Stock!#REF!<>\"\",ROUND(K168*M168,0),\"\")","v":{"$error":"#REF!"}},{"$f":"IF(Stock!#REF!<>\"\",$H168*N168,\"\")","v":{"$error":"#REF!"}},{"$f":"IF(Stock!#REF!<>\"\",Pilotage!O$27,\"\")","v":{"$error":"#REF!"}},{"$f":"IF(Stock!#REF!<>\"\",ROUND(K168*P168,0),\"\")","v":{"$error":"#REF!"}},{"$f":"IF(Stock!#REF!<>\"\",$H168*Q168,\"\")","v":{"$error":"#REF!"}},{"$f":"IF(Stock!#REF!<>\"\",Pilotage!P$27,\"\")","v":{"$error":"#REF!"}},{"$f":"IF(Stock!#REF!<>\"\",ROUND(Q168*S168,0),\"\")","v":{"$error":"#REF!"}},{"$f":"IF(Stock!#REF!<>\"\",$H168*T168,\"\")","v":{"$error":"#REF!"}},{"$f":"IF(Stock!#REF!<>\"\",Pilotage!Q$27,\"\")","v":{"$error":"#REF!"}},{"$f":"IF(Stock!#REF!<>\"\",ROUND(T168*V168,0),\"\")","v":{"$error":"#REF!"}},{"$f":"IF(Stock!#REF!<>\"\",$H168*W168,\"\")","v":{"$error":"#REF!"}},{"$f":"IF(Stock!#REF!<>\"\",Pilotage!R$27,\"\")","v":{"$error":"#REF!"}},{"$f":"IF(Stock!#REF!<>\"\",ROUND(W168*Y168,0),\"\")","v":{"$error":"#REF!"}},{"$f":"IF(Stock!#REF!<>\"\",$H168*Z168,\"\")","v":{"$error":"#REF!"}}]
[{"$f":"IF(Stock!#REF!<>\"\",Stock!#REF!,\"\")","v":{"$error":"#REF!"}},{"$f":"IF(Stock!#REF!<>\"\",Stock!#REF!,\"\")","v":{"$error":"#REF!"}},{"$f":"IF(Stock!#REF!<>\"\",Stock!#REF!,\"\")","v":{"$error":"#REF!"}},{"$f":"IF(Stock!#REF!<>\"\",SUM(Stock!#REF!,Stock!#REF!,Stock!#REF!),\"\")","v":{"$error":"#REF!"}},{"$f":"IF(Stock!#REF!<>\"\",#REF!*(1+Pilotage!$M$20),\"\")","v":{"$error":"#REF!"}},null,{"$f":"IF(Stock!#REF!<>\"\",IF(Stock!#REF!>0,Stock!#REF!/Stock!#REF!,0),\"\")","v":{"$error":"#REF!"}},{"$f":"IF(Stock!#REF!<>\"\",E169*Pilotage!$D$15,\"\")","v":{"$error":"#REF!"}},{"$f":"IF(Stock!#REF!<>\"\",IF(Stock!#REF!>0,Stock!#REF!,0),\"\")","v":{"$error":"#REF!"}},{"$f":"IF(Stock!#REF!<>\"\",Pilotage!$M$27,\"\")","v":{"$error":"#REF!"}},{"$f":"IF(Stock!#REF!<>\"\",ROUND(Stock!#REF!*J169,0),\"\")","v":{"$error":"#REF!"}},{"$f":"IF(Stock!#REF!<>\"\",$H169*K169,\"\")","v":{"$error":"#REF!"}},{"$f":"IF(Stock!#REF!<>\"\",Pilotage!N$27,\"\")","v":{"$error":"#REF!"}},{"$f":"IF(Stock!#REF!<>\"\",ROUND(K169*M169,0),\"\")","v":{"$error":"#REF!"}},{"$f":"IF(Stock!#REF!<>\"\",$H169*N169,\"\")","v":{"$error":"#REF!"}},{"$f":"IF(Stock!#REF!<>\"\",Pilotage!O$27,\"\")","v":{"$error":"#REF!"}},{"$f":"IF(Stock!#REF!<>\"\",ROUND(K169*P169,0),\"\")","v":{"$error":"#REF!"}},{"$f":"IF(Stock!#REF!<>\"\",$H169*Q169,\"\")","v":{"$error":"#REF!"}},{"$f":"IF(Stock!#REF!<>\"\",Pilotage!P$27,\"\")","v":{"$error":"#REF!"}},{"$f":"IF(Stock!#REF!<>\"\",ROUND(Q169*S169,0),\"\")","v":{"$error":"#REF!"}},{"$f":"IF(Stock!#REF!<>\"\",$H169*T169,\"\")","v":{"$error":"#REF!"}},{"$f":"IF(Stock!#REF!<>\"\",Pilotage!Q$27,\"\")","v":{"$error":"#REF!"}},{"$f":"IF(Stock!#REF!<>\"\",ROUND(T169*V169,0),\"\")","v":{"$error":"#REF!"}},{"$f":"IF(Stock!#REF!<>\"\",$H169*W169,\"\")","v":{"$error":"#REF!"}},{"$f":"IF(Stock!#REF!<>\"\",Pilotage!R$27,\"\")","v":{"$error":"#REF!"}},{"$f":"IF(Stock!#REF!<>\"\",ROUND(W169*Y169,0),\"\")","v":{"$error":"#REF!"}},{"$f":"IF(Stock!#REF!<>\"\",$H169*Z169,\"\")","v":{"$error":"#REF!"}}]
[{"$f":"IF(Stock!#REF!<>\"\",Stock!#REF!,\"\")","v":{"$error":"#REF!"}},{"$f":"IF(Stock!#REF!<>\"\",Stock!#REF!,\"\")","v":{"$error":"#REF!"}},{"$f":"IF(Stock!#REF!<>\"\",Stock!#REF!,\"\")","v":{"$error":"#REF!"}},{"$f":"IF(Stock!#REF!<>\"\",SUM(Stock!#REF!,Stock!#REF!,Stock!#REF!),\"\")","v":{"$error":"#REF!"}},{"$f":"IF(Stock!#REF!<>\"\",#REF!*(1+Pilotage!$M$20),\"\")","v":{"$error":"#REF!"}},null,{"$f":"IF(Stock!#REF!<>\"\",IF(Stock!#REF!>0,Stock!#REF!/Stock!#REF!,0),\"\")","v":{"$error":"#REF!"}},{"$f":"IF(Stock!#REF!<>\"\",E170*Pilotage!$D$15,\"\")","v":{"$error":"#REF!"}},{"$f":"IF(Stock!#REF!<>\"\",IF(Stock!#REF!>0,Stock!#REF!,0),\"\")","v":{"$error":"#REF!"}},{"$f":"IF(Stock!#REF!<>\"\",Pilotage!$M$27,\"\")","v":{"$error":"#REF!"}},{"$f":"IF(Stock!#REF!<>\"\",ROUND(Stock!#REF!*J170,0),\"\")","v":{"$error":"#REF!"}},{"$f":"IF(Stock!#REF!<>\"\",$H170*K170,\"\")","v":{"$error":"#REF!"}},{"$f":"IF(Stock!#REF!<>\"\",Pilotage!N$27,\"\")","v":{"$error":"#REF!"}},{"$f":"IF(Stock!#REF!<>\"\",ROUND(K170*M170,0),\"\")","v":{"$error":"#REF!"}},{"$f":"IF(Stock!#REF!<>\"\",$H170*N170,\"\")","v":{"$error":"#REF!"}},{"$f":"IF(Stock!#REF!<>\"\",Pilotage!O$27,\"\")","v":{"$error":"#REF!"}},{"$f":"IF(Stock!#REF!<>\"\",ROUND(K170*P170,0),\"\")","v":{"$error":"#REF!"}},{"$f":"IF(Stock!#REF!<>\"\",$H170*Q170,\"\")","v":{"$error":"#REF!"}},{"$f":"IF(Stock!#REF!<>\"\",Pilotage!P$27,\"\")","v":{"$error":"#REF!"}},{"$f":"IF(Stock!#REF!<>\"\",ROUND(Q170*S170,0),\"\")","v":{"$error":"#REF!"}},{"$f":"IF(Stock!#REF!<>\"\",$H170*T170,\"\")","v":{"$error":"#REF!"}},{"$f":"IF(Stock!#REF!<>\"\",Pilotage!Q$27,\"\")","v":{"$error":"#REF!"}},{"$f":"IF(Stock!#REF!<>\"\",ROUND(T170*V170,0),\"\")","v":{"$error":"#REF!"}},{"$f":"IF(Stock!#REF!<>\"\",$H170*W170,\"\")","v":{"$error":"#REF!"}},{"$f":"IF(Stock!#REF!<>\"\",Pilotage!R$27,\"\")","v":{"$error":"#REF!"}},{"$f":"IF(Stock!#REF!<>\"\",ROUND(W170*Y170,0),\"\")","v":{"$error":"#REF!"}},{"$f":"IF(Stock!#REF!<>\"\",$H170*Z170,\"\")","v":{"$error":"#REF!"}}]
[{"$f":"IF(Stock!#REF!<>\"\",Stock!#REF!,\"\")","v":{"$error":"#REF!"}},{"$f":"IF(Stock!#REF!<>\"\",Stock!#REF!,\"\")","v":{"$error":"#REF!"}},{"$f":"IF(Stock!#REF!<>\"\",Stock!#REF!,\"\")","v":{"$error":"#REF!"}},{"$f":"IF(Stock!#REF!<>\"\",SUM(Stock!#REF!,Stock!#REF!,Stock!#REF!),\"\")","v":{"$error":"#REF!"}},{"$f":"IF(Stock!#REF!<>\"\",#REF!*(1+Pilotage!$M$20),\"\")","v":{"$error":"#REF!"}},null,{"$f":"IF(Stock!#REF!<>\"\",IF(Stock!#REF!>0,Stock!#REF!/Stock!#REF!,0),\"\")","v":{"$error":"#REF!"}},{"$f":"IF(Stock!#REF!<>\"\",E171*Pilotage!$D$15,\"\")","v":{"$error":"#REF!"}},{"$f":"IF(Stock!#REF!<>\"\",IF(Stock!#REF!>0,Stock!#REF!,0),\"\")","v":{"$error":"#REF!"}},{"$f":"IF(Stock!#REF!<>\"\",Pilotage!$M$27,\"\")","v":{"$error":"#REF!"}},{"$f":"IF(Stock!#REF!<>\"\",ROUND(Stock!#REF!*J171,0),\"\")","v":{"$error":"#REF!"}},{"$f":"IF(Stock!#REF!<>\"\",$H171*K171,\"\")","v":{"$error":"#REF!"}},{"$f":"IF(Stock!#REF!<>\"\",Pilotage!N$27,\"\")","v":{"$error":"#REF!"}},{"$f":"IF(Stock!#REF!<>\"\",ROUND(K171*M171,0),\"\")","v":{"$error":"#REF!"}},{"$f":"IF(Stock!#REF!<>\"\",$H171*N171,\"\")","v":{"$error":"#REF!"}},{"$f":"IF(Stock!#REF!<>\"\",Pilotage!O$27,\"\")","v":{"$error":"#REF!"}},{"$f":"IF(Stock!#REF!<>\"\",ROUND(K171*P171,0),\"\")","v":{"$error":"#REF!"}},{"$f":"IF(Stock!#REF!<>\"\",$H171*Q171,\"\")","v":{"$error":"#REF!"}},{"$f":"IF(Stock!#REF!<>\"\",Pilotage!P$27,\"\")","v":{"$error":"#REF!"}},{"$f":"IF(Stock!#REF!<>\"\",ROUND(Q171*S171,0),\"\")","v":{"$error":"#REF!"}},{"$f":"IF(Stock!#REF!<>\"\",$H171*T171,\"\")","v":{"$error":"#REF!"}},{"$f":"IF(Stock!#REF!<>\"\",Pilotage!Q$27,\"\")","v":{"$error":"#REF!"}},{"$f":"IF(Stock!#REF!<>\"\",ROUND(T171*V171,0),\"\")","v":{"$error":"#REF!"}},{"$f":"IF(Stock!#REF!<>\"\",$H171*W171,\"\")","v":{"$error":"#REF!"}},{"$f":"IF(Stock!#REF!<>\"\",Pilotage!R$27,\"\")","v":{"$error":"#REF!"}},{"$f":"IF(Stock!#REF!<>\"\",ROUND(W171*Y171,0),\"\")","v":{"$error":"#REF!"}},{"$f":"IF(Stock!#REF!<>\"\",$H171*Z171,\"\")","v":{"$error":"#REF!"}}]
[{"$f":"IF(Stock!#REF!<>\"\",Stock!#REF!,\"\")","v":{"$error":"#REF!"}},{"$f":"IF(Stock!#REF!<>\"\",Stock!#REF!,\"\")","v":{"$error":"#REF!"}},{"$f":"IF(Stock!#REF!<>\"\",Stock!#REF!,\"\")","v":{"$error":"#REF!"}},{"$f":"IF(Stock!#REF!<>\"\",SUM(Stock!#REF!,Stock!#REF!,Stock!#REF!),\"\")","v":{"$error":"#REF!"}},{"$f":"IF(Stock!#REF!<>\"\",#REF!*(1+Pilotage!$M$20),\"\")","v":{"$error":"#REF!"}},null,{"$f":"IF(Stock!#REF!<>\"\",IF(Stock!#REF!>0,Stock!#REF!/Stock!#REF!,0),\"\")","v":{"$error":"#REF!"}},{"$f":"IF(Stock!#REF!<>\"\",E172*Pilotage!$D$15,\"\")","v":{"$error":"#REF!"}},{"$f":"IF(Stock!#REF!<>\"\",IF(Stock!#REF!>0,Stock!#REF!,0),\"\")","v":{"$error":"#REF!"}},{"$f":"IF(Stock!#REF!<>\"\",Pilotage!$M$27,\"\")","v":{"$error":"#REF!"}},{"$f":"IF(Stock!#REF!<>\"\",ROUND(Stock!#REF!*J172,0),\"\")","v":{"$error":"#REF!"}},{"$f":"IF(Stock!#REF!<>\"\",$H172*K172,\"\")","v":{"$error":"#REF!"}},{"$f":"IF(Stock!#REF!<>\"\",Pilotage!N$27,\"\")","v":{"$error":"#REF!"}},{"$f":"IF(Stock!#REF!<>\"\",ROUND(K172*M172,0),\"\")","v":{"$error":"#REF!"}},{"$f":"IF(Stock!#REF!<>\"\",$H172*N172,\"\")","v":{"$error":"#REF!"}},{"$f":"IF(Stock!#REF!<>\"\",Pilotage!O$27,\"\")","v":{"$error":"#REF!"}},{"$f":"IF(Stock!#REF!<>\"\",ROUND(K172*P172,0),\"\")","v":{"$error":"#REF!"}},{"$f":"IF(Stock!#REF!<>\"\",$H172*Q172,\"\")","v":{"$error":"#REF!"}},{"$f":"IF(Stock!#REF!<>\"\",Pilotage!P$27,\"\")","v":{"$error":"#REF!"}},{"$f":"IF(Stock!#REF!<>\"\",ROUND(Q172*S172,0),\"\")","v":{"$error":"#REF!"}},{"$f":"IF(Stock!#REF!<>\"\",$H172*T172,\"\")","v":{"$error":"#REF!"}},{"$f":"IF(Stock!#REF!<>\"\",Pilotage!Q$27,\"\")","v":{"$error":"#REF!"}},{"$f":"IF(Stock!#REF!<>\"\",ROUND(T172*V172,0),\"\")","v":{"$error":"#REF!"}},{"$f":"IF(Stock!#REF!<>\"\",$H172*W172,\"\")","v":{"$error":"#REF!"}},{"$f":"IF(Stock!#REF!<>\"\",Pilotage!R$27,\"\")","v":{"$error":"#REF!"}},{"$f":"IF(Stock!#REF!<>\"\",ROUND(W172*Y172,0),\"\")","v":{"$error":"#REF!"}},{"$f":"IF(Stock!#REF!<>\"\",$H172*Z172,\"\")","v":{"$error":"#REF!"}}]
[{"$f":"IF(Stock!#REF!<>\"\",Stock!#REF!,\"\")","v":{"$error":"#REF!"}},{"$f":"IF(Stock!#REF!<>\"\",Stock!#REF!,\"\")","v":{"$error":"#REF!"}},{"$f":"IF(Stock!#REF!<>\"\",Stock!#REF!,\"\")","v":{"$error":"#REF!"}},{"$f":"IF(Stock!#REF!<>\"\",SUM(Stock!#REF!,Stock!#REF!,Stock!#REF!),\"\")","v":{"$error":"#REF!"}},{"$f":"IF(Stock!#REF!<>\"\",#REF!*(1+Pilotage!$M$20),\"\")","v":{"$error":"#REF!"}},null,{"$f":"IF(Stock!#REF!<>\"\",IF(Stock!#REF!>0,Stock!#REF!/Stock!#REF!,0),\"\")","v":{"$error":"#REF!"}},{"$f":"IF(Stock!#REF!<>\"\",E173*Pilotage!$D$15,\"\")","v":{"$error":"#REF!"}},{"$f":"IF(Stock!#REF!<>\"\",IF(Stock!#REF!>0,Stock!#REF!,0),\"\")","v":{"$error":"#REF!"}},{"$f":"IF(Stock!#REF!<>\"\",Pilotage!$M$27,\"\")","v":{"$error":"#REF!"}},{"$f":"IF(Stock!#REF!<>\"\",ROUND(Stock!#REF!*J173,0),\"\")","v":{"$error":"#REF!"}},{"$f":"IF(Stock!#REF!<>\"\",$H173*K173,\"\")","v":{"$error":"#REF!"}},{"$f":"IF(Stock!#REF!<>\"\",Pilotage!N$27,\"\")","v":{"$error":"#REF!"}},{"$f":"IF(Stock!#REF!<>\"\",ROUND(K173*M173,0),\"\")","v":{"$error":"#REF!"}},{"$f":"IF(Stock!#REF!<>\"\",$H173*N173,\"\")","v":{"$error":"#REF!"}},{"$f":"IF(Stock!#REF!<>\"\",Pilotage!O$27,\"\")","v":{"$error":"#REF!"}},{"$f":"IF(Stock!#REF!<>\"\",ROUND(K173*P173,0),\"\")","v":{"$error":"#REF!"}},{"$f":"IF(Stock!#REF!<>\"\",$H173*Q173,\"\")","v":{"$error":"#REF!"}},{"$f":"IF(Stock!#REF!<>\"\",Pilotage!P$27,\"\")","v":{"$error":"#REF!"}},{"$f":"IF(Stock!#REF!<>\"\",ROUND(Q173*S173,0),\"\")","v":{"$error":"#REF!"}},{"$f":"IF(Stock!#REF!<>\"\",$H173*T173,\"\")","v":{"$error":"#REF!"}},{"$f":"IF(Stock!#REF!<>\"\",Pilotage!Q$27,\"\")","v":{"$error":"#REF!"}},{"$f":"IF(Stock!#REF!<>\"\",ROUND(T173*V173,0),\"\")","v":{"$error":"#REF!"}},{"$f":"IF(Stock!#REF!<>\"\",$H173*W173,\"\")","v":{"$error":"#REF!"}},{"$f":"IF(Stock!#REF!<>\"\",Pilotage!R$27,\"\")","v":{"$error":"#REF!"}},{"$f":"IF(Stock!#REF!<>\"\",ROUND(W173*Y173,0),\"\")","v":{"$error":"#REF!"}},{"$f":"IF(Stock!#REF!<>\"\",$H173*Z173,\"\")","v":{"$error":"#REF!"}}]
[{"$f":"IF(Stock!#REF!<>\"\",Stock!#REF!,\"\")","v":{"$error":"#REF!"}},{"$f":"IF(Stock!#REF!<>\"\",Stock!#REF!,\"\")","v":{"$error":"#REF!"}},{"$f":"IF(Stock!#REF!<>\"\",Stock!#REF!,\"\")","v":{"$error":"#REF!"}},{"$f":"IF(Stock!#REF!<>\"\",SUM(Stock!#REF!,Stock!#REF!,Stock!#REF!),\"\")","v":{"$error":"#REF!"}},{"$f":"IF(Stock!#REF!<>\"\",#REF!*(1+Pilotage!$M$20),\"\")","v":{"$error":"#REF!"}},null,{"$f":"IF(Stock!#REF!<>\"\",IF(Stock!#REF!>0,Stock!#REF!/Stock!#REF!,0),\"\")","v":{"$error":"#REF!"}},{"$f":"IF(Stock!#REF!<>\"\",E174*Pilotage!$D$15,\"\")","v":{"$error":"#REF!"}},{"$f":"IF(Stock!#REF!<>\"\",IF(Stock!#REF!>0,Stock!#REF!,0),\"\")","v":{"$error":"#REF!"}},{"$f":"IF(Stock!#REF!<>\"\",Pilotage!$M$27,\"\")","v":{"$error":"#REF!"}},{"$f":"IF(Stock!#REF!<>\"\",ROUND(Stock!#REF!*J174,0),\"\")","v":{"$error":"#REF!"}},{"$f":"IF(Stock!#REF!<>\"\",$H174*K174,\"\")","v":{"$error":"#REF!"}},{"$f":"IF(Stock!#REF!<>\"\",Pilotage!N$27,\"\")","v":{"$error":"#REF!"}},{"$f":"IF(Stock!#REF!<>\"\",ROUND(K174*M174,0),\"\")","v":{"$error":"#REF!"}},{"$f":"IF(Stock!#REF!<>\"\",$H174*N174,\"\")","v":{"$error":"#REF!"}},{"$f":"IF(Stock!#REF!<>\"\",Pilotage!O$27,\"\")","v":{"$error":"#REF!"}},{"$f":"IF(Stock!#REF!<>\"\",ROUND(K174*P174,0),\"\")","v":{"$error":"#REF!"}},{"$f":"IF(Stock!#REF!<>\"\",$H174*Q174,\"\")","v":{"$error":"#REF!"}},{"$f":"IF(Stock!#REF!<>\"\",Pilotage!P$27,\"\")","v":{"$error":"#REF!"}},{"$f":"IF(Stock!#REF!<>\"\",ROUND(Q174*S174,0),\"\")","v":{"$error":"#REF!"}},{"$f":"IF(Stock!#REF!<>\"\",$H174*T174,\"\")","v":{"$error":"#REF!"}},{"$f":"IF(Stock!#REF!<>\"\",Pilotage!Q$27,\"\")","v":{"$error":"#REF!"}},{"$f":"IF(Stock!#REF!<>\"\",ROUND(T174*V174,0),\"\")","v":{"$error":"#REF!"}},{"$f":"IF(Stock!#REF!<>\"\",$H174*W174,\"\")","v":{"$error":"#REF!"}},{"$f":"IF(Stock!#REF!<>\"\",Pilotage!R$27,\"\")","v":{"$error":"#REF!"}},{"$f":"IF(Stock!#REF!<>\"\",ROUND(W174*Y174,0),\"\")","v":{"$error":"#REF!"}},{"$f":"IF(Stock!#REF!<>\"\",$H174*Z174,\"\")","v":{"$error":"#REF!"}}]
[{"$f":"IF(Stock!#REF!<>\"\",Stock!#REF!,\"\")","v":{"$error":"#REF!"}},{"$f":"IF(Stock!#REF!<>\"\",Stock!#REF!,\"\")","v":{"$error":"#REF!"}},{"$f":"IF(Stock!#REF!<>\"\",Stock!#REF!,\"\")","v":{"$error":"#REF!"}},{"$f":"IF(Stock!#REF!<>\"\",SUM(Stock!#REF!,Stock!#REF!,Stock!#REF!),\"\")","v":{"$error":"#REF!"}},{"$f":"IF(Stock!#REF!<>\"\",#REF!*(1+Pilotage!$M$20),\"\")","v":{"$error":"#REF!"}},null,{"$f":"IF(Stock!#REF!<>\"\",IF(Stock!#REF!>0,Stock!#REF!/Stock!#REF!,0),\"\")","v":{"$error":"#REF!"}},{"$f":"IF(Stock!#REF!<>\"\",E175*Pilotage!$D$15,\"\")","v":{"$error":"#REF!"}},{"$f":"IF(Stock!#REF!<>\"\",IF(Stock!#REF!>0,Stock!#REF!,0),\"\")","v":{"$error":"#REF!"}},{"$f":"IF(Stock!#REF!<>\"\",Pilotage!$M$27,\"\")","v":{"$error":"#REF!"}},{"$f":"IF(Stock!#REF!<>\"\",ROUND(Stock!#REF!*J175,0),\"\")","v":{"$error":"#REF!"}},{"$f":"IF(Stock!#REF!<>\"\",$H175*K175,\"\")","v":{"$error":"#REF!"}},{"$f":"IF(Stock!#REF!<>\"\",Pilotage!N$27,\"\")","v":{"$error":"#REF!"}},{"$f":"IF(Stock!#REF!<>\"\",ROUND(K175*M175,0),\"\")","v":{"$error":"#REF!"}},{"$f":"IF(Stock!#REF!<>\"\",$H175*N175,\"\")","v":{"$error":"#REF!"}},{"$f":"IF(Stock!#REF!<>\"\",Pilotage!O$27,\"\")","v":{"$error":"#REF!"}},{"$f":"IF(Stock!#REF!<>\"\",ROUND(K175*P175,0),\"\")","v":{"$error":"#REF!"}},{"$f":"IF(Stock!#REF!<>\"\",$H175*Q175,\"\")","v":{"$error":"#REF!"}},{"$f":"IF(Stock!#REF!<>\"\",Pilotage!P$27,\"\")","v":{"$error":"#REF!"}},{"$f":"IF(Stock!#REF!<>\"\",ROUND(Q175*S175,0),\"\")","v":{"$error":"#REF!"}},{"$f":"IF(Stock!#REF!<>\"\",$H175*T175,\"\")","v":{"$error":"#REF!"}},{"$f":"IF(Stock!#REF!<>\"\",Pilotage!Q$27,\"\")","v":{"$error":"#REF!"}},{"$f":"IF(Stock!#REF!<>\"\",ROUND(T175*V175,0),\"\")","v":{"$error":"#REF!"}},{"$f":"IF(Stock!#REF!<>\"\",$H175*W175,\"\")","v":{"$error":"#REF!"}},{"$f":"IF(Stock!#REF!<>\"\",Pilotage!R$27,\"\")","v":{"$error":"#REF!"}},{"$f":"IF(Stock!#REF!<>\"\",ROUND(W175*Y175,0),\"\")","v":{"$error":"#REF!"}},{"$f":"IF(Stock!#REF!<>\"\",$H175*Z175,\"\")","v":{"$error":"#REF!"}}]
[{"$f":"IF(Stock!#REF!<>\"\",Stock!#REF!,\"\")","v":{"$error":"#REF!"}},{"$f":"IF(Stock!#REF!<>\"\",Stock!#REF!,\"\")","v":{"$error":"#REF!"}},{"$f":"IF(Stock!#REF!<>\"\",Stock!#REF!,\"\")","v":{"$error":"#REF!"}},{"$f":"IF(Stock!#REF!<>\"\",SUM(Stock!#REF!,Stock!#REF!,Stock!#REF!),\"\")","v":{"$error":"#REF!"}},{"$f":"IF(Stock!#REF!<>\"\",#REF!*(1+Pilotage!$M$20),\"\")","v":{"$error":"#REF!"}},null,{"$f":"IF(Stock!#REF!<>\"\",IF(Stock!#REF!>0,Stock!#REF!/Stock!#REF!,0),\"\")","v":{"$error":"#REF!"}},{"$f":"IF(Stock!#REF!<>\"\",E176*Pilotage!$D$15,\"\")","v":{"$error":"#REF!"}},{"$f":"IF(Stock!#REF!<>\"\",IF(Stock!#REF!>0,Stock!#REF!,0),\"\")","v":{"$error":"#REF!"}},{"$f":"IF(Stock!#REF!<>\"\",Pilotage!$M$27,\"\")","v":{"$error":"#REF!"}},{"$f":"IF(Stock!#REF!<>\"\",ROUND(Stock!#REF!*J176,0),\"\")","v":{"$error":"#REF!"}},{"$f":"IF(Stock!#REF!<>\"\",$H176*K176,\"\")","v":{"$error":"#REF!"}},{"$f":"IF(Stock!#REF!<>\"\",Pilotage!N$27,\"\")","v":{"$error":"#REF!"}},{"$f":"IF(Stock!#REF!<>\"\",ROUND(K176*M176,0),\"\")","v":{"$error":"#REF!"}},{"$f":"IF(Stock!#REF!<>\"\",$H176*N176,\"\")","v":{"$error":"#REF!"}},{"$f":"IF(Stock!#REF!<>\"\",Pilotage!O$27,\"\")","v":{"$error":"#REF!"}},{"$f":"IF(Stock!#REF!<>\"\",ROUND(K176*P176,0),\"\")","v":{"$error":"#REF!"}},{"$f":"IF(Stock!#REF!<>\"\",$H176*Q176,\"\")","v":{"$error":"#REF!"}},{"$f":"IF(Stock!#REF!<>\"\",Pilotage!P$27,\"\")","v":{"$error":"#REF!"}},{"$f":"IF(Stock!#REF!<>\"\",ROUND(Q176*S176,0),\"\")","v":{"$error":"#REF!"}},{"$f":"IF(Stock!#REF!<>\"\",$H176*T176,\"\")","v":{"$error":"#REF!"}},{"$f":"IF(Stock!#REF!<>\"\",Pilotage!Q$27,\"\")","v":{"$error":"#REF!"}},{"$f":"IF(Stock!#REF!<>\"\",ROUND(T176*V176,0),\"\")","v":{"$error":"#REF!"}},{"$f":"IF(Stock!#REF!<>\"\",$H176*W176,\"\")","v":{"$error":"#REF!"}},{"$f":"IF(Stock!#REF!<>\"\",Pilotage!R$27,\"\")","v":{"$error":"#REF!"}},{"$f":"IF(Stock!#REF!<>\"\",ROUND(W176*Y176,0),\"\")","v":{"$error":"#REF!"}},{"$f":"IF(Stock!#REF!<>\"\",$H176*Z176,\"\")","v":{"$error":"#REF!"}}]
[{"$f":"IF(Stock!#REF!<>\"\",Stock!#REF!,\"\")","v":{"$error":"#REF!"}},{"$f":"IF(Stock!#REF!<>\"\",Stock!#REF!,\"\")","v":{"$error":"#REF!"}},{"$f":"IF(Stock!#REF!<>\"\",Stock!#REF!,\"\")","v":{"$error":"#REF!"}},{"$f":"IF(Stock!#REF!<>\"\",SUM(Stock!#REF!,Stock!#REF!,Stock!#REF!),\"\")","v":{"$error":"#REF!"}},{"$f":"IF(Stock!#REF!<>\"\",#REF!*(1+Pilotage!$M$20),\"\")","v":{"$error":"#REF!"}},null,{"$f":"IF(Stock!#REF!<>\"\",IF(Stock!#REF!>0,Stock!#REF!/Stock!#REF!,0),\"\")","v":{"$error":"#REF!"}},{"$f":"IF(Stock!#REF!<>\"\",E177*Pilotage!$D$15,\"\")","v":{"$error":"#REF!"}},{"$f":"IF(Stock!#REF!<>\"\",IF(Stock!#REF!>0,Stock!#REF!,0),\"\")","v":{"$error":"#REF!"}},{"$f":"IF(Stock!#REF!<>\"\",Pilotage!$M$27,\"\")","v":{"$error":"#REF!"}},{"$f":"IF(Stock!#REF!<>\"\",ROUND(Stock!#REF!*J177,0),\"\")","v":{"$error":"#REF!"}},{"$f":"IF(Stock!#REF!<>\"\",$H177*K177,\"\")","v":{"$error":"#REF!"}},{"$f":"IF(Stock!#REF!<>\"\",Pilotage!N$27,\"\")","v":{"$error":"#REF!"}},{"$f":"IF(Stock!#REF!<>\"\",ROUND(K177*M177,0),\"\")","v":{"$error":"#REF!"}},{"$f":"IF(Stock!#REF!<>\"\",$H177*N177,\"\")","v":{"$error":"#REF!"}},{"$f":"IF(Stock!#REF!<>\"\",Pilotage!O$27,\"\")","v":{"$error":"#REF!"}},{"$f":"IF(Stock!#REF!<>\"\",ROUND(K177*P177,0),\"\")","v":{"$error":"#REF!"}},{"$f":"IF(Stock!#REF!<>\"\",$H177*Q177,\"\")","v":{"$error":"#REF!"}},{"$f":"IF(Stock!#REF!<>\"\",Pilotage!P$27,\"\")","v":{"$error":"#REF!"}},{"$f":"IF(Stock!#REF!<>\"\",ROUND(Q177*S177,0),\"\")","v":{"$error":"#REF!"}},{"$f":"IF(Stock!#REF!<>\"\",$H177*T177,\"\")","v":{"$error":"#REF!"}},{"$f":"IF(Stock!#REF!<>\"\",Pilotage!Q$27,\"\")","v":{"$error":"#REF!"}},{"$f":"IF(Stock!#REF!<>\"\",ROUND(T177*V177,0),\"\")","v":{"$error":"#REF!"}},{"$f":"IF(Stock!#REF!<>\"\",$H177*W177,\"\")","v":{"$error":"#REF!"}},{"$f":"IF(Stock!#REF!<>\"\",Pilotage!R$27,\"\")","v":{"$error":"#REF!"}},{"$f":"IF(Stock!#REF!<>\"\",ROUND(W177*Y177,0),\"\")","v":{"$error":"#REF!"}},{"$f":"IF(Stock!#REF!<>\"\",$H177*Z177,\"\")","v":{"$error":"#REF!"}}]
[{"$f":"IF(Stock!#REF!<>\"\",Stock!#REF!,\"\")","v":{"$error":"#REF!"}},{"$f":"IF(Stock!#REF!<>\"\",Stock!#REF!,\"\")","v":{"$error":"#REF!"}},{"$f":"IF(Stock!#REF!<>\"\",Stock!#REF!,\"\")","v":{"$error":"#REF!"}},{"$f":"IF(Stock!#REF!<>\"\",SUM(Stock!#REF!,Stock!#REF!,Stock!#REF!),\"\")","v":{"$error":"#REF!"}},{"$f":"IF(Stock!#REF!<>\"\",#REF!*(1+Pilotage!$M$20),\"\")","v":{"$error":"#REF!"}},null,{"$f":"IF(Stock!#REF!<>\"\",IF(Stock!#REF!>0,Stock!#REF!/Stock!#REF!,0),\"\")","v":{"$error":"#REF!"}},{"$f":"IF(Stock!#REF!<>\"\",E178*Pilotage!$D$15,\"\")","v":{"$error":"#REF!"}},{"$f":"IF(Stock!#REF!<>\"\",IF(Stock!#REF!>0,Stock!#REF!,0),\"\")","v":{"$error":"#REF!"}},{"$f":"IF(Stock!#REF!<>\"\",Pilotage!$M$27,\"\")","v":{"$error":"#REF!"}},{"$f":"IF(Stock!#REF!<>\"\",ROUND(Stock!#REF!*J178,0),\"\")","v":{"$error":"#REF!"}},{"$f":"IF(Stock!#REF!<>\"\",$H178*K178,\"\")","v":{"$error":"#REF!"}},{"$f":"IF(Stock!#REF!<>\"\",Pilotage!N$27,\"\")","v":{"$error":"#REF!"}},{"$f":"IF(Stock!#REF!<>\"\",ROUND(K178*M178,0),\"\")","v":{"$error":"#REF!"}},{"$f":"IF(Stock!#REF!<>\"\",$H178*N178,\"\")","v":{"$error":"#REF!"}},{"$f":"IF(Stock!#REF!<>\"\",Pilotage!O$27,\"\")","v":{"$error":"#REF!"}},{"$f":"IF(Stock!#REF!<>\"\",ROUND(K178*P178,0),\"\")","v":{"$error":"#REF!"}},{"$f":"IF(Stock!#REF!<>\"\",$H178*Q178,\"\")","v":{"$error":"#REF!"}},{"$f":"IF(Stock!#REF!<>\"\",Pilotage!P$27,\"\")","v":{"$error":"#REF!"}},{"$f":"IF(Stock!#REF!<>\"\",ROUND(Q178*S178,0),\"\")","v":{"$error":"#REF!"}},{"$f":"IF(Stock!#REF!<>\"\",$H178*T178,\"\")","v":{"$error":"#REF!"}},{"$f":"IF(Stock!#REF!<>\"\",Pilotage!Q$27,\"\")","v":{"$error":"#REF!"}},{"$f":"IF(Stock!#REF!<>\"\",ROUND(T178*V178,0),\"\")","v":{"$error":"#REF!"}},{"$f":"IF(Stock!#REF!<>\"\",$H178*W178,\"\")","v":{"$error":"#REF!"}},{"$f":"IF(Stock!#REF!<>\"\",Pilotage!R$27,\"\")","v":{"$error":"#REF!"}},{"$f":"IF(Stock!#REF!<>\"\",ROUND(W178*Y178,0),\"\")","v":{"$error":"#REF!"}},{"$f":"IF(Stock!#REF!<>\"\",$H178*Z178,\"\")","v":{"$error":"#REF!"}}]
[{"$f":"IF(Stock!#REF!<>\"\",Stock!#REF!,\"\")","v":{"$error":"#REF!"}},{"$f":"IF(Stock!#REF!<>\"\",Stock!#REF!,\"\")","v":{"$error":"#REF!"}},{"$f":"IF(Stock!#REF!<>\"\",Stock!#REF!,\"\")","v":{"$error":"#REF!"}},{"$f":"IF(Stock!#REF!<>\"\",SUM(Stock!#REF!,Stock!#REF!,Stock!#REF!),\"\")","v":{"$error":"#REF!"}},{"$f":"IF(Stock!#REF!<>\"\",#REF!*(1+Pilotage!$M$20),\"\")","v":{"$error":"#REF!"}},null,{"$f":"IF(Stock!#REF!<>\"\",IF(Stock!#REF!>0,Stock!#REF!/Stock!#REF!,0),\"\")","v":{"$error":"#REF!"}},{"$f":"IF(Stock!#REF!<>\"\",E179*Pilotage!$D$15,\"\")","v":{"$error":"#REF!"}},{"$f":"IF(Stock!#REF!<>\"\",IF(Stock!#REF!>0,Stock!#REF!,0),\"\")","v":{"$error":"#REF!"}},{"$f":"IF(Stock!#REF!<>\"\",Pilotage!$M$27,\"\")","v":{"$error":"#REF!"}},{"$f":"IF(Stock!#REF!<>\"\",ROUND(Stock!#REF!*J179,0),\"\")","v":{"$error":"#REF!"}},{"$f":"IF(Stock!#REF!<>\"\",$H179*K179,\"\")","v":{"$error":"#REF!"}},{"$f":"IF(Stock!#REF!<>\"\",Pilotage!N$27,\"\")","v":{"$error":"#REF!"}},{"$f":"IF(Stock!#REF!<>\"\",ROUND(K179*M179,0),\"\")","v":{"$error":"#REF!"}},{"$f":"IF(Stock!#REF!<>\"\",$H179*N179,\"\")","v":{"$error":"#REF!"}},{"$f":"IF(Stock!#REF!<>\"\",Pilotage!O$27,\"\")","v":{"$error":"#REF!"}},{"$f":"IF(Stock!#REF!<>\"\",ROUND(K179*P179,0),\"\")","v":{"$error":"#REF!"}},{"$f":"IF(Stock!#REF!<>\"\",$H179*Q179,\"\")","v":{"$error":"#REF!"}},{"$f":"IF(Stock!#REF!<>\"\",Pilotage!P$27,\"\")","v":{"$error":"#REF!"}},{"$f":"IF(Stock!#REF!<>\"\",ROUND(Q179*S179,0),\"\")","v":{"$error":"#REF!"}},{"$f":"IF(Stock!#REF!<>\"\",$H179*T179,\"\")","v":{"$error":"#REF!"}},{"$f":"IF(Stock!#REF!<>\"\",Pilotage!Q$27,\"\")","v":{"$error":"#REF!"}},{"$f":"IF(Stock!#REF!<>\"\",ROUND(T179*V179,0),\"\")","v":{"$error":"#REF!"}},{"$f":"IF(Stock!#REF!<>\"\",$H179*W179,\"\")","v":{"$error":"#REF!"}},{"$f":"IF(Stock!#REF!<>\"\",Pilotage!R$27,\"\")","v":{"$error":"#REF!"}},{"$f":"IF(Stock!#REF!<>\"\",ROUND(W179*Y179,0),\"\")","v":{"$error":"#REF!"}},{"$f":"IF(Stock!#REF!<>\"\",$H179*Z179,\"\")","v":{"$error":"#REF!"}}]
[{"$f":"IF(Stock!#REF!<>\"\",Stock!#REF!,\"\")","v":{"$error":"#REF!"}},{"$f":"IF(Stock!#REF!<>\"\",Stock!#REF!,\"\")","v":{"$error":"#REF!"}},{"$f":"IF(Stock!#REF!<>\"\",Stock!#REF!,\"\")","v":{"$error":"#REF!"}},{"$f":"IF(Stock!#REF!<>\"\",SUM(Stock!#REF!,Stock!#REF!,Stock!#REF!),\"\")","v":{"$error":"#REF!"}},{"$f":"IF(Stock!#REF!<>\"\",#REF!*(1+Pilotage!$M$20),\"\")","v":{"$error":"#REF!"}},null,{"$f":"IF(Stock!#REF!<>\"\",IF(Stock!#REF!>0,Stock!#REF!/Stock!#REF!,0),\"\")","v":{"$error":"#REF!"}},{"$f":"IF(Stock!#REF!<>\"\",E180*Pilotage!$D$15,\"\")","v":{"$error":"#REF!"}},{"$f":"IF(Stock!#REF!<>\"\",IF(Stock!#REF!>0,Stock!#REF!,0),\"\")","v":{"$error":"#REF!"}},{"$f":"IF(Stock!#REF!<>\"\",Pilotage!$M$27,\"\")","v":{"$error":"#REF!"}},{"$f":"IF(Stock!#REF!<>\"\",ROUND(Stock!#REF!*J180,0),\"\")","v":{"$error":"#REF!"}},{"$f":"IF(Stock!#REF!<>\"\",$H180*K180,\"\")","v":{"$error":"#REF!"}},{"$f":"IF(Stock!#REF!<>\"\",Pilotage!N$27,\"\")","v":{"$error":"#REF!"}},{"$f":"IF(Stock!#REF!<>\"\",ROUND(K180*M180,0),\"\")","v":{"$error":"#REF!"}},{"$f":"IF(Stock!#REF!<>\"\",$H180*N180,\"\")","v":{"$error":"#REF!"}},{"$f":"IF(Stock!#REF!<>\"\",Pilotage!O$27,\"\")","v":{"$error":"#REF!"}},{"$f":"IF(Stock!#REF!<>\"\",ROUND(K180*P180,0),\"\")","v":{"$error":"#REF!"}},{"$f":"IF(Stock!#REF!<>\"\",$H180*Q180,\"\")","v":{"$error":"#REF!"}},{"$f":"IF(Stock!#REF!<>\"\",Pilotage!P$27,\"\")","v":{"$error":"#REF!"}},{"$f":"IF(Stock!#REF!<>\"\",ROUND(Q180*S180,0),\"\")","v":{"$error":"#REF!"}},{"$f":"IF(Stock!#REF!<>\"\",$H180*T180,\"\")","v":{"$error":"#REF!"}},{"$f":"IF(Stock!#REF!<>\"\",Pilotage!Q$27,\"\")","v":{"$error":"#REF!"}},{"$f":"IF(Stock!#REF!<>\"\",ROUND(T180*V180,0),\"\")","v":{"$error":"#REF!"}},{"$f":"IF(Stock!#REF!<>\"\",$H180*W180,\"\")","v":{"$error":"#REF!"}},{"$f":"IF(Stock!#REF!<>\"\",Pilotage!R$27,\"\")","v":{"$error":"#REF!"}},{"$f":"IF(Stock!#REF!<>\"\",ROUND(W180*Y180,0),\"\")","v":{"$error":"#REF!"}},{"$f":"IF(Stock!#REF!<>\"\",$H180*Z180,\"\")","v":{"$error":"#REF!"}}]
[{"$f":"IF(Stock!#REF!<>\"\",Stock!#REF!,\"\")","v":{"$error":"#REF!"}},{"$f":"IF(Stock!#REF!<>\"\",Stock!#REF!,\"\")","v":{"$error":"#REF!"}},{"$f":"IF(Stock!#REF!<>\"\",Stock!#REF!,\"\")","v":{"$error":"#REF!"}},{"$f":"IF(Stock!#REF!<>\"\",SUM(Stock!#REF!,Stock!#REF!,Stock!#REF!),\"\")","v":{"$error":"#REF!"}},{"$f":"IF(Stock!#REF!<>\"\",#REF!*(1+Pilotage!$M$20),\"\")","v":{"$error":"#REF!"}},null,{"$f":"IF(Stock!#REF!<>\"\",IF(Stock!#REF!>0,Stock!#REF!/Stock!#REF!,0),\"\")","v":{"$error":"#REF!"}},{"$f":"IF(Stock!#REF!<>\"\",E181*Pilotage!$D$15,\"\")","v":{"$error":"#REF!"}},{"$f":"IF(Stock!#REF!<>\"\",IF(Stock!#REF!>0,Stock!#REF!,0),\"\")","v":{"$error":"#REF!"}},{"$f":"IF(Stock!#REF!<>\"\",Pilotage!$M$27,\"\")","v":{"$error":"#REF!"}},{"$f":"IF(Stock!#REF!<>\"\",ROUND(Stock!#REF!*J181,0),\"\")","v":{"$error":"#REF!"}},{"$f":"IF(Stock!#REF!<>\"\",$H181*K181,\"\")","v":{"$error":"#REF!"}},{"$f":"IF(Stock!#REF!<>\"\",Pilotage!N$27,\"\")","v":{"$error":"#REF!"}},{"$f":"IF(Stock!#REF!<>\"\",ROUND(K181*M181,0),\"\")","v":{"$error":"#REF!"}},{"$f":"IF(Stock!#REF!<>\"\",$H181*N181,\"\")","v":{"$error":"#REF!"}},{"$f":"IF(Stock!#REF!<>\"\",Pilotage!O$27,\"\")","v":{"$error":"#REF!"}},{"$f":"IF(Stock!#REF!<>\"\",ROUND(K181*P181,0),\"\")","v":{"$error":"#REF!"}},{"$f":"IF(Stock!#REF!<>\"\",$H181*Q181,\"\")","v":{"$error":"#REF!"}},{"$f":"IF(Stock!#REF!<>\"\",Pilotage!P$27,\"\")","v":{"$error":"#REF!"}},{"$f":"IF(Stock!#REF!<>\"\",ROUND(Q181*S181,0),\"\")","v":{"$error":"#REF!"}},{"$f":"IF(Stock!#REF!<>\"\",$H181*T181,\"\")","v":{"$error":"#REF!"}},{"$f":"IF(Stock!#REF!<>\"\",Pilotage!Q$27,\"\")","v":{"$error":"#REF!"}},{"$f":"IF(Stock!#REF!<>\"\",ROUND(T181*V181,0),\"\")","v":{"$error":"#REF!"}},{"$f":"IF(Stock!#REF!<>\"\",$H181*W181,\"\")","v":{"$error":"#REF!"}},{"$f":"IF(Stock!#REF!<>\"\",Pilotage!R$27,\"\")","v":{"$error":"#REF!"}},{"$f":"IF(Stock!#REF!<>\"\",ROUND(W181*Y181,0),\"\")","v":{"$error":"#REF!"}},{"$f":"IF(Stock!#REF!<>\"\",$H181*Z181,\"\")","v":{"$error":"#REF!"}}]
[{"$f":"IF(Stock!#REF!<>\"\",Stock!#REF!,\"\")","v":{"$error":"#REF!"}},{"$f":"IF(Stock!#REF!<>\"\",Stock!#REF!,\"\")","v":{"$error":"#REF!"}},{"$f":"IF(Stock!#REF!<>\"\",Stock!#REF!,\"\")","v":{"$error":"#REF!"}},{"$f":"IF(Stock!#REF!<>\"\",SUM(Stock!#REF!,Stock!#REF!,Stock!#REF!),\"\")","v":{"$error":"#REF!"}},{"$f":"IF(Stock!#REF!<>\"\",#REF!*(1+Pilotage!$M$20),\"\")","v":{"$error":"#REF!"}},null,{"$f":"IF(Stock!#REF!<>\"\",IF(Stock!#REF!>0,Stock!#REF!/Stock!#REF!,0),\"\")","v":{"$error":"#REF!"}},{"$f":"IF(Stock!#REF!<>\"\",E182*Pilotage!$D$15,\"\")","v":{"$error":"#REF!"}},{"$f":"IF(Stock!#REF!<>\"\",IF(Stock!#REF!>0,Stock!#REF!,0),\"\")","v":{"$error":"#REF!"}},{"$f":"IF(Stock!#REF!<>\"\",Pilotage!$M$27,\"\")","v":{"$error":"#REF!"}},{"$f":"IF(Stock!#REF!<>\"\",ROUND(Stock!#REF!*J182,0),\"\")","v":{"$error":"#REF!"}},{"$f":"IF(Stock!#REF!<>\"\",$H182*K182,\"\")","v":{"$error":"#REF!"}},{"$f":"IF(Stock!#REF!<>\"\",Pilotage!N$27,\"\")","v":{"$error":"#REF!"}},{"$f":"IF(Stock!#REF!<>\"\",ROUND(K182*M182,0),\"\")","v":{"$error":"#REF!"}},{"$f":"IF(Stock!#REF!<>\"\",$H182*N182,\"\")","v":{"$error":"#REF!"}},{"$f":"IF(Stock!#REF!<>\"\",Pilotage!O$27,\"\")","v":{"$error":"#REF!"}},{"$f":"IF(Stock!#REF!<>\"\",ROUND(K182*P182,0),\"\")","v":{"$error":"#REF!"}},{"$f":"IF(Stock!#REF!<>\"\",$H182*Q182,\"\")","v":{"$error":"#REF!"}},{"$f":"IF(Stock!#REF!<>\"\",Pilotage!P$27,\"\")","v":{"$error":"#REF!"}},{"$f":"IF(Stock!#REF!<>\"\",ROUND(Q182*S182,0),\"\")","v":{"$error":"#REF!"}},{"$f":"IF(Stock!#REF!<>\"\",$H182*T182,\"\")","v":{"$error":"#REF!"}},{"$f":"IF(Stock!#REF!<>\"\",Pilotage!Q$27,\"\")","v":{"$error":"#REF!"}},{"$f":"IF(Stock!#REF!<>\"\",ROUND(T182*V182,0),\"\")","v":{"$error":"#REF!"}},{"$f":"IF(Stock!#REF!<>\"\",$H182*W182,\"\")","v":{"$error":"#REF!"}},{"$f":"IF(Stock!#REF!<>\"\",Pilotage!R$27,\"\")","v":{"$error":"#REF!"}},{"$f":"IF(Stock!#REF!<>\"\",ROUND(W182*Y182,0),\"\")","v":{"$error":"#REF!"}},{"$f":"IF(Stock!#REF!<>\"\",$H182*Z182,\"\")","v":{"$error":"#REF!"}}]
[{"$f":"IF(Stock!#REF!<>\"\",Stock!#REF!,\"\")","v":{"$error":"#REF!"}},{"$f":"IF(Stock!#REF!<>\"\",Stock!#REF!,\"\")","v":{"$error":"#REF!"}},{"$f":"IF(Stock!#REF!<>\"\",Stock!#REF!,\"\")","v":{"$error":"#REF!"}},{"$f":"IF(Stock!#REF!<>\"\",SUM(Stock!#REF!,Stock!#REF!,Stock!#REF!),\"\")","v":{"$error":"#REF!"}},{"$f":"IF(Stock!#REF!<>\"\",#REF!*(1+Pilotage!$M$20),\"\")","v":{"$error":"#REF!"}},null,{"$f":"IF(Stock!#REF!<>\"\",IF(Stock!#REF!>0,Stock!#REF!/Stock!#REF!,0),\"\")","v":{"$error":"#REF!"}},{"$f":"IF(Stock!#REF!<>\"\",E183*Pilotage!$D$15,\"\")","v":{"$error":"#REF!"}},{"$f":"IF(Stock!#REF!<>\"\",IF(Stock!#REF!>0,Stock!#REF!,0),\"\")","v":{"$error":"#REF!"}},{"$f":"IF(Stock!#REF!<>\"\",Pilotage!$M$27,\"\")","v":{"$error":"#REF!"}},{"$f":"IF(Stock!#REF!<>\"\",ROUND(Stock!#REF!*J183,0),\"\")","v":{"$error":"#REF!"}},{"$f":"IF(Stock!#REF!<>\"\",$H183*K183,\"\")","v":{"$error":"#REF!"}},{"$f":"IF(Stock!#REF!<>\"\",Pilotage!N$27,\"\")","v":{"$error":"#REF!"}},{"$f":"IF(Stock!#REF!<>\"\",ROUND(K183*M183,0),\"\")","v":{"$error":"#REF!"}},{"$f":"IF(Stock!#REF!<>\"\",$H183*N183,\"\")","v":{"$error":"#REF!"}},{"$f":"IF(Stock!#REF!<>\"\",Pilotage!O$27,\"\")","v":{"$error":"#REF!"}},{"$f":"IF(Stock!#REF!<>\"\",ROUND(K183*P183,0),\"\")","v":{"$error":"#REF!"}},{"$f":"IF(Stock!#REF!<>\"\",$H183*Q183,\"\")","v":{"$error":"#REF!"}},{"$f":"IF(Stock!#REF!<>\"\",Pilotage!P$27,\"\")","v":{"$error":"#REF!"}},{"$f":"IF(Stock!#REF!<>\"\",ROUND(Q183*S183,0),\"\")","v":{"$error":"#REF!"}},{"$f":"IF(Stock!#REF!<>\"\",$H183*T183,\"\")","v":{"$error":"#REF!"}},{"$f":"IF(Stock!#REF!<>\"\",Pilotage!Q$27,\"\")","v":{"$error":"#REF!"}},{"$f":"IF(Stock!#REF!<>\"\",ROUND(T183*V183,0),\"\")","v":{"$error":"#REF!"}},{"$f":"IF(Stock!#REF!<>\"\",$H183*W183,\"\")","v":{"$error":"#REF!"}},{"$f":"IF(Stock!#REF!<>\"\",Pilotage!R$27,\"\")","v":{"$error":"#REF!"}},{"$f":"IF(Stock!#REF!<>\"\",ROUND(W183*Y183,0),\"\")","v":{"$error":"#REF!"}},{"$f":"IF(Stock!#REF!<>\"\",$H183*Z183,\"\")","v":{"$error":"#REF!"}}]
[{"$f":"IF(Stock!#REF!<>\"\",Stock!#REF!,\"\")","v":{"$error":"#REF!"}},{"$f":"IF(Stock!#REF!<>\"\",Stock!#REF!,\"\")","v":{"$error":"#REF!"}},{"$f":"IF(Stock!#REF!<>\"\",Stock!#REF!,\"\")","v":{"$error":"#REF!"}},{"$f":"IF(Stock!#REF!<>\"\",SUM(Stock!#REF!,Stock!#REF!,Stock!#REF!),\"\")","v":{"$error":"#REF!"}},{"$f":"IF(Stock!#REF!<>\"\",#REF!*(1+Pilotage!$M$20),\"\")","v":{"$error":"#REF!"}},null,{"$f":"IF(Stock!#REF!<>\"\",IF(Stock!#REF!>0,Stock!#REF!/Stock!#REF!,0),\"\")","v":{"$error":"#REF!"}},{"$f":"IF(Stock!#REF!<>\"\",E184*Pilotage!$D$15,\"\")","v":{"$error":"#REF!"}},{"$f":"IF(Stock!#REF!<>\"\",IF(Stock!#REF!>0,Stock!#REF!,0),\"\")","v":{"$error":"#REF!"}},{"$f":"IF(Stock!#REF!<>\"\",Pilotage!$M$27,\"\")","v":{"$error":"#REF!"}},{"$f":"IF(Stock!#REF!<>\"\",ROUND(Stock!#REF!*J184,0),\"\")","v":{"$error":"#REF!"}},{"$f":"IF(Stock!#REF!<>\"\",$H184*K184,\"\")","v":{"$error":"#REF!"}},{"$f":"IF(Stock!#REF!<>\"\",Pilotage!N$27,\"\")","v":{"$error":"#REF!"}},{"$f":"IF(Stock!#REF!<>\"\",ROUND(K184*M184,0),\"\")","v":{"$error":"#REF!"}},{"$f":"IF(Stock!#REF!<>\"\",$H184*N184,\"\")","v":{"$error":"#REF!"}},{"$f":"IF(Stock!#REF!<>\"\",Pilotage!O$27,\"\")","v":{"$error":"#REF!"}},{"$f":"IF(Stock!#REF!<>\"\",ROUND(K184*P184,0),\"\")","v":{"$error":"#REF!"}},{"$f":"IF(Stock!#REF!<>\"\",$H184*Q184,\"\")","v":{"$error":"#REF!"}},{"$f":"IF(Stock!#REF!<>\"\",Pilotage!P$27,\"\")","v":{"$error":"#REF!"}},{"$f":"IF(Stock!#REF!<>\"\",ROUND(Q184*S184,0),\"\")","v":{"$error":"#REF!"}},{"$f":"IF(Stock!#REF!<>\"\",$H184*T184,\"\")","v":{"$error":"#REF!"}},{"$f":"IF(Stock!#REF!<>\"\",Pilotage!Q$27,\"\")","v":{"$error":"#REF!"}},{"$f":"IF(Stock!#REF!<>\"\",ROUND(T184*V184,0),\"\")","v":{"$error":"#REF!"}},{"$f":"IF(Stock!#REF!<>\"\",$H184*W184,\"\")","v":{"$error":"#REF!"}},{"$f":"IF(Stock!#REF!<>\"\",Pilotage!R$27,\"\")","v":{"$error":"#REF!"}},{"$f":"IF(Stock!#REF!<>\"\",ROUND(W184*Y184,0),\"\")","v":{"$error":"#REF!"}},{"$f":"IF(Stock!#REF!<>\"\",$H184*Z184,\"\")","v":{"$error":"#REF!"}}]
[{"$f":"IF(Stock!#REF!<>\"\",Stock!#REF!,\"\")","v":{"$error":"#REF!"}},{"$f":"IF(Stock!#REF!<>\"\",Stock!#REF!,\"\")","v":{"$error":"#REF!"}},{"$f":"IF(Stock!#REF!<>\"\",Stock!#REF!,\"\")","v":{"$error":"#REF!"}},{"$f":"IF(Stock!#REF!<>\"\",SUM(Stock!#REF!,Stock!#REF!,Stock!#REF!),\"\")","v":{"$error":"#REF!"}},{"$f":"IF(Stock!#REF!<>\"\",#REF!*(1+Pilotage!$M$20),\"\")","v":{"$error":"#REF!"}},null,{"$f":"IF(Stock!#REF!<>\"\",IF(Stock!#REF!>0,Stock!#REF!/Stock!#REF!,0),\"\")","v":{"$error":"#REF!"}},{"$f":"IF(Stock!#REF!<>\"\",E185*Pilotage!$D$15,\"\")","v":{"$error":"#REF!"}},{"$f":"IF(Stock!#REF!<>\"\",IF(Stock!#REF!>0,Stock!#REF!,0),\"\")","v":{"$error":"#REF!"}},{"$f":"IF(Stock!#REF!<>\"\",Pilotage!$M$27,\"\")","v":{"$error":"#REF!"}},{"$f":"IF(Stock!#REF!<>\"\",ROUND(Stock!#REF!*J185,0),\"\")","v":{"$error":"#REF!"}},{"$f":"IF(Stock!#REF!<>\"\",$H185*K185,\"\")","v":{"$error":"#REF!"}},{"$f":"IF(Stock!#REF!<>\"\",Pilotage!N$27,\"\")","v":{"$error":"#REF!"}},{"$f":"IF(Stock!#REF!<>\"\",ROUND(K185*M185,0),\"\")","v":{"$error":"#REF!"}},{"$f":"IF(Stock!#REF!<>\"\",$H185*N185,\"\")","v":{"$error":"#REF!"}},{"$f":"IF(Stock!#REF!<>\"\",Pilotage!O$27,\"\")","v":{"$error":"#REF!"}},{"$f":"IF(Stock!#REF!<>\"\",ROUND(K185*P185,0),\"\")","v":{"$error":"#REF!"}},{"$f":"IF(Stock!#REF!<>\"\",$H185*Q185,\"\")","v":{"$error":"#REF!"}},{"$f":"IF(Stock!#REF!<>\"\",Pilotage!P$27,\"\")","v":{"$error":"#REF!"}},{"$f":"IF(Stock!#REF!<>\"\",ROUND(Q185*S185,0),\"\")","v":{"$error":"#REF!"}},{"$f":"IF(Stock!#REF!<>\"\",$H185*T185,\"\")","v":{"$error":"#REF!"}},{"$f":"IF(Stock!#REF!<>\"\",Pilotage!Q$27,\"\")","v":{"$error":"#REF!"}},{"$f":"IF(Stock!#REF!<>\"\",ROUND(T185*V185,0),\"\")","v":{"$error":"#REF!"}},{"$f":"IF(Stock!#REF!<>\"\",$H185*W185,\"\")","v":{"$error":"#REF!"}},{"$f":"IF(Stock!#REF!<>\"\",Pilotage!R$27,\"\")","v":{"$error":"#REF!"}},{"$f":"IF(Stock!#REF!<>\"\",ROUND(W185*Y185,0),\"\")","v":{"$error":"#REF!"}},{"$f":"IF(Stock!#REF!<>\"\",$H185*Z185,\"\")","v":{"$error":"#REF!"}}]
[{"$f":"IF(Stock!#REF!<>\"\",Stock!#REF!,\"\")","v":{"$error":"#REF!"}},{"$f":"IF(Stock!#REF!<>\"\",Stock!#REF!,\"\")","v":{"$error":"#REF!"}},{"$f":"IF(Stock!#REF!<>\"\",Stock!#REF!,\"\")","v":{"$error":"#REF!"}},{"$f":"IF(Stock!#REF!<>\"\",SUM(Stock!#REF!,Stock!#REF!,Stock!#REF!),\"\")","v":{"$error":"#REF!"}},{"$f":"IF(Stock!#REF!<>\"\",#REF!*(1+Pilotage!$M$20),\"\")","v":{"$error":"#REF!"}},null,{"$f":"IF(Stock!#REF!<>\"\",IF(Stock!#REF!>0,Stock!#REF!/Stock!#REF!,0),\"\")","v":{"$error":"#REF!"}},{"$f":"IF(Stock!#REF!<>\"\",E186*Pilotage!$D$15,\"\")","v":{"$error":"#REF!"}},{"$f":"IF(Stock!#REF!<>\"\",IF(Stock!#REF!>0,Stock!#REF!,0),\"\")","v":{"$error":"#REF!"}},{"$f":"IF(Stock!#REF!<>\"\",Pilotage!$M$27,\"\")","v":{"$error":"#REF!"}},{"$f":"IF(Stock!#REF!<>\"\",ROUND(Stock!#REF!*J186,0),\"\")","v":{"$error":"#REF!"}},{"$f":"IF(Stock!#REF!<>\"\",$H186*K186,\"\")","v":{"$error":"#REF!"}},{"$f":"IF(Stock!#REF!<>\"\",Pilotage!N$27,\"\")","v":{"$error":"#REF!"}},{"$f":"IF(Stock!#REF!<>\"\",ROUND(K186*M186,0),\"\")","v":{"$error":"#REF!"}},{"$f":"IF(Stock!#REF!<>\"\",$H186*N186,\"\")","v":{"$error":"#REF!"}},{"$f":"IF(Stock!#REF!<>\"\",Pilotage!O$27,\"\")","v":{"$error":"#REF!"}},{"$f":"IF(Stock!#REF!<>\"\",ROUND(K186*P186,0),\"\")","v":{"$error":"#REF!"}},{"$f":"IF(Stock!#REF!<>\"\",$H186*Q186,\"\")","v":{"$error":"#REF!"}},{"$f":"IF(Stock!#REF!<>\"\",Pilotage!P$27,\"\")","v":{"$error":"#REF!"}},{"$f":"IF(Stock!#REF!<>\"\",ROUND(Q186*S186,0),\"\")","v":{"$error":"#REF!"}},{"$f":"IF(Stock!#REF!<>\"\",$H186*T186,\"\")","v":{"$error":"#REF!"}},{"$f":"IF(Stock!#REF!<>\"\",Pilotage!Q$27,\"\")","v":{"$error":"#REF!"}},{"$f":"IF(Stock!#REF!<>\"\",ROUND(T186*V186,0),\"\")","v":{"$error":"#REF!"}},{"$f":"IF(Stock!#REF!<>\"\",$H186*W186,\"\")","v":{"$error":"#REF!"}},{"$f":"IF(Stock!#REF!<>\"\",Pilotage!R$27,\"\")","v":{"$error":"#REF!"}},{"$f":"IF(Stock!#REF!<>\"\",ROUND(W186*Y186,0),\"\")","v":{"$error":"#REF!"}},{"$f":"IF(Stock!#REF!<>\"\",$H186*Z186,\"\")","v":{"$error":"#REF!"}}]
[{"$f":"IF(Stock!#REF!<>\"\",Stock!#REF!,\"\")","v":{"$error":"#REF!"}},{"$f":"IF(Stock!#REF!<>\"\",Stock!#REF!,\"\")","v":{"$error":"#REF!"}},{"$f":"IF(Stock!#REF!<>\"\",Stock!#REF!,\"\")","v":{"$error":"#REF!"}},{"$f":"IF(Stock!#REF!<>\"\",SUM(Stock!#REF!,Stock!#REF!,Stock!#REF!),\"\")","v":{"$error":"#REF!"}},{"$f":"IF(Stock!#REF!<>\"\",#REF!*(1+Pilotage!$M$20),\"\")","v":{"$error":"#REF!"}},null,{"$f":"IF(Stock!#REF!<>\"\",IF(Stock!#REF!>0,Stock!#REF!/Stock!#REF!,0),\"\")","v":{"$error":"#REF!"}},{"$f":"IF(Stock!#REF!<>\"\",E187*Pilotage!$D$15,\"\")","v":{"$error":"#REF!"}},{"$f":"IF(Stock!#REF!<>\"\",IF(Stock!#REF!>0,Stock!#REF!,0),\"\")","v":{"$error":"#REF!"}},{"$f":"IF(Stock!#REF!<>\"\",Pilotage!$M$27,\"\")","v":{"$error":"#REF!"}},{"$f":"IF(Stock!#REF!<>\"\",ROUND(Stock!#REF!*J187,0),\"\")","v":{"$error":"#REF!"}},{"$f":"IF(Stock!#REF!<>\"\",$H187*K187,\"\")","v":{"$error":"#REF!"}},{"$f":"IF(Stock!#REF!<>\"\",Pilotage!N$27,\"\")","v":{"$error":"#REF!"}},{"$f":"IF(Stock!#REF!<>\"\",ROUND(K187*M187,0),\"\")","v":{"$error":"#REF!"}},{"$f":"IF(Stock!#REF!<>\"\",$H187*N187,\"\")","v":{"$error":"#REF!"}},{"$f":"IF(Stock!#REF!<>\"\",Pilotage!O$27,\"\")","v":{"$error":"#REF!"}},{"$f":"IF(Stock!#REF!<>\"\",ROUND(K187*P187,0),\"\")","v":{"$error":"#REF!"}},{"$f":"IF(Stock!#REF!<>\"\",$H187*Q187,\"\")","v":{"$error":"#REF!"}},{"$f":"IF(Stock!#REF!<>\"\",Pilotage!P$27,\"\")","v":{"$error":"#REF!"}},{"$f":"IF(Stock!#REF!<>\"\",ROUND(Q187*S187,0),\"\")","v":{"$error":"#REF!"}},{"$f":"IF(Stock!#REF!<>\"\",$H187*T187,\"\")","v":{"$error":"#REF!"}},{"$f":"IF(Stock!#REF!<>\"\",Pilotage!Q$27,\"\")","v":{"$error":"#REF!"}},{"$f":"IF(Stock!#REF!<>\"\",ROUND(T187*V187,0),\"\")","v":{"$error":"#REF!"}},{"$f":"IF(Stock!#REF!<>\"\",$H187*W187,\"\")","v":{"$error":"#REF!"}},{"$f":"IF(Stock!#REF!<>\"\",Pilotage!R$27,\"\")","v":{"$error":"#REF!"}},{"$f":"IF(Stock!#REF!<>\"\",ROUND(W187*Y187,0),\"\")","v":{"$error":"#REF!"}},{"$f":"IF(Stock!#REF!<>\"\",$H187*Z187,\"\")","v":{"$error":"#REF!"}}]
[{"$f":"IF(Stock!#REF!<>\"\",Stock!#REF!,\"\")","v":{"$error":"#REF!"}},{"$f":"IF(Stock!#REF!<>\"\",Stock!#REF!,\"\")","v":{"$error":"#REF!"}},{"$f":"IF(Stock!#REF!<>\"\",Stock!#REF!,\"\")","v":{"$error":"#REF!"}},{"$f":"IF(Stock!#REF!<>\"\",SUM(Stock!#REF!,Stock!#REF!,Stock!#REF!),\"\")","v":{"$error":"#REF!"}},{"$f":"IF(Stock!#REF!<>\"\",#REF!*(1+Pilotage!$M$20),\"\")","v":{"$error":"#REF!"}},null,{"$f":"IF(Stock!#REF!<>\"\",IF(Stock!#REF!>0,Stock!#REF!/Stock!#REF!,0),\"\")","v":{"$error":"#REF!"}},{"$f":"IF(Stock!#REF!<>\"\",E188*Pilotage!$D$15,\"\")","v":{"$error":"#REF!"}},{"$f":"IF(Stock!#REF!<>\"\",IF(Stock!#REF!>0,Stock!#REF!,0),\"\")","v":{"$error":"#REF!"}},{"$f":"IF(Stock!#REF!<>\"\",Pilotage!$M$27,\"\")","v":{"$error":"#REF!"}},{"$f":"IF(Stock!#REF!<>\"\",ROUND(Stock!#REF!*J188,0),\"\")","v":{"$error":"#REF!"}},{"$f":"IF(Stock!#REF!<>\"\",$H188*K188,\"\")","v":{"$error":"#REF!"}},{"$f":"IF(Stock!#REF!<>\"\",Pilotage!N$27,\"\")","v":{"$error":"#REF!"}},{"$f":"IF(Stock!#REF!<>\"\",ROUND(K188*M188,0),\"\")","v":{"$error":"#REF!"}},{"$f":"IF(Stock!#REF!<>\"\",$H188*N188,\"\")","v":{"$error":"#REF!"}},{"$f":"IF(Stock!#REF!<>\"\",Pilotage!O$27,\"\")","v":{"$error":"#REF!"}},{"$f":"IF(Stock!#REF!<>\"\",ROUND(K188*P188,0),\"\")","v":{"$error":"#REF!"}},{"$f":"IF(Stock!#REF!<>\"\",$H188*Q188,\"\")","v":{"$error":"#REF!"}},{"$f":"IF(Stock!#REF!<>\"\",Pilotage!P$27,\"\")","v":{"$error":"#REF!"}},{"$f":"IF(Stock!#REF!<>\"\",ROUND(Q188*S188,0),\"\")","v":{"$error":"#REF!"}},{"$f":"IF(Stock!#REF!<>\"\",$H188*T188,\"\")","v":{"$error":"#REF!"}},{"$f":"IF(Stock!#REF!<>\"\",Pilotage!Q$27,\"\")","v":{"$error":"#REF!"}},{"$f":"IF(Stock!#REF!<>\"\",ROUND(T188*V188,0),\"\")","v":{"$error":"#REF!"}},{"$f":"IF(Stock!#REF!<>\"\",$H188*W188,\"\")","v":{"$error":"#REF!"}},{"$f":"IF(Stock!#REF!<>\"\",Pilotage!R$27,\"\")","v":{"$error":"#REF!"}},{"$f":"IF(Stock!#REF!<>\"\",ROUND(W188*Y188,0),\"\")","v":{"$error":"#REF!"}},{"$f":"IF(Stock!#REF!<>\"\",$H188*Z188,\"\")","v":{"$error":"#REF!"}}]
[{"$f":"IF(Stock!#REF!<>\"\",Stock!#REF!,\"\")","v":{"$error":"#REF!"}},{"$f":"IF(Stock!#REF!<>\"\",Stock!#REF!,\"\")","v":{"$error":"#REF!"}},{"$f":"IF(Stock!#REF!<>\"\",Stock!#REF!,\"\")","v":{"$error":"#REF!"}},{"$f":"IF(Stock!#REF!<>\"\",SUM(Stock!#REF!,Stock!#REF!,Stock!#REF!),\"\")","v":{"$error":"#REF!"}},{"$f":"IF(Stock!#REF!<>\"\",#REF!*(1+Pilotage!$M$20),\"\")","v":{"$error":"#REF!"}},null,{"$f":"IF(Stock!#REF!<>\"\",IF(Stock!#REF!>0,Stock!#REF!/Stock!#REF!,0),\"\")","v":{"$error":"#REF!"}},{"$f":"IF(Stock!#REF!<>\"\",E189*Pilotage!$D$15,\"\")","v":{"$error":"#REF!"}},{"$f":"IF(Stock!#REF!<>\"\",IF(Stock!#REF!>0,Stock!#REF!,0),\"\")","v":{"$error":"#REF!"}},{"$f":"IF(Stock!#REF!<>\"\",Pilotage!$M$27,\"\")","v":{"$error":"#REF!"}},{"$f":"IF(Stock!#REF!<>\"\",ROUND(Stock!#REF!*J189,0),\"\")","v":{"$error":"#REF!"}},{"$f":"IF(Stock!#REF!<>\"\",$H189*K189,\"\")","v":{"$error":"#REF!"}},{"$f":"IF(Stock!#REF!<>\"\",Pilotage!N$27,\"\")","v":{"$error":"#REF!"}},{"$f":"IF(Stock!#REF!<>\"\",ROUND(K189*M189,0),\"\")","v":{"$error":"#REF!"}},{"$f":"IF(Stock!#REF!<>\"\",$H189*N189,\"\")","v":{"$error":"#REF!"}},{"$f":"IF(Stock!#REF!<>\"\",Pilotage!O$27,\"\")","v":{"$error":"#REF!"}},{"$f":"IF(Stock!#REF!<>\"\",ROUND(K189*P189,0),\"\")","v":{"$error":"#REF!"}},{"$f":"IF(Stock!#REF!<>\"\",$H189*Q189,\"\")","v":{"$error":"#REF!"}},{"$f":"IF(Stock!#REF!<>\"\",Pilotage!P$27,\"\")","v":{"$error":"#REF!"}},{"$f":"IF(Stock!#REF!<>\"\",ROUND(Q189*S189,0),\"\")","v":{"$error":"#REF!"}},{"$f":"IF(Stock!#REF!<>\"\",$H189*T189,\"\")","v":{"$error":"#REF!"}},{"$f":"IF(Stock!#REF!<>\"\",Pilotage!Q$27,\"\")","v":{"$error":"#REF!"}},{"$f":"IF(Stock!#REF!<>\"\",ROUND(T189*V189,0),\"\")","v":{"$error":"#REF!"}},{"$f":"IF(Stock!#REF!<>\"\",$H189*W189,\"\")","v":{"$error":"#REF!"}},{"$f":"IF(Stock!#REF!<>\"\",Pilotage!R$27,\"\")","v":{"$error":"#REF!"}},{"$f":"IF(Stock!#REF!<>\"\",ROUND(W189*Y189,0),\"\")","v":{"$error":"#REF!"}},{"$f":"IF(Stock!#REF!<>\"\",$H189*Z189,\"\")","v":{"$error":"#REF!"}}]
[{"$f":"IF(Stock!#REF!<>\"\",Stock!#REF!,\"\")","v":{"$error":"#REF!"}},{"$f":"IF(Stock!#REF!<>\"\",Stock!#REF!,\"\")","v":{"$error":"#REF!"}},{"$f":"IF(Stock!#REF!<>\"\",Stock!#REF!,\"\")","v":{"$error":"#REF!"}},{"$f":"IF(Stock!#REF!<>\"\",SUM(Stock!#REF!,Stock!#REF!,Stock!#REF!),\"\")","v":{"$error":"#REF!"}},{"$f":"IF(Stock!#REF!<>\"\",#REF!*(1+Pilotage!$M$20),\"\")","v":{"$error":"#REF!"}},null,{"$f":"IF(Stock!#REF!<>\"\",IF(Stock!#REF!>0,Stock!#REF!/Stock!#REF!,0),\"\")","v":{"$error":"#REF!"}},{"$f":"IF(Stock!#REF!<>\"\",E190*Pilotage!$D$15,\"\")","v":{"$error":"#REF!"}},{"$f":"IF(Stock!#REF!<>\"\",IF(Stock!#REF!>0,Stock!#REF!,0),\"\")","v":{"$error":"#REF!"}},{"$f":"IF(Stock!#REF!<>\"\",Pilotage!$M$27,\"\")","v":{"$error":"#REF!"}},{"$f":"IF(Stock!#REF!<>\"\",ROUND(Stock!#REF!*J190,0),\"\")","v":{"$error":"#REF!"}},{"$f":"IF(Stock!#REF!<>\"\",$H190*K190,\"\")","v":{"$error":"#REF!"}},{"$f":"IF(Stock!#REF!<>\"\",Pilotage!N$27,\"\")","v":{"$error":"#REF!"}},{"$f":"IF(Stock!#REF!<>\"\",ROUND(K190*M190,0),\"\")","v":{"$error":"#REF!"}},{"$f":"IF(Stock!#REF!<>\"\",$H190*N190,\"\")","v":{"$error":"#REF!"}},{"$f":"IF(Stock!#REF!<>\"\",Pilotage!O$27,\"\")","v":{"$error":"#REF!"}},{"$f":"IF(Stock!#REF!<>\"\",ROUND(K190*P190,0),\"\")","v":{"$error":"#REF!"}},{"$f":"IF(Stock!#REF!<>\"\",$H190*Q190,\"\")","v":{"$error":"#REF!"}},{"$f":"IF(Stock!#REF!<>\"\",Pilotage!P$27,\"\")","v":{"$error":"#REF!"}},{"$f":"IF(Stock!#REF!<>\"\",ROUND(Q190*S190,0),\"\")","v":{"$error":"#REF!"}},{"$f":"IF(Stock!#REF!<>\"\",$H190*T190,\"\")","v":{"$error":"#REF!"}},{"$f":"IF(Stock!#REF!<>\"\",Pilotage!Q$27,\"\")","v":{"$error":"#REF!"}},{"$f":"IF(Stock!#REF!<>\"\",ROUND(T190*V190,0),\"\")","v":{"$error":"#REF!"}},{"$f":"IF(Stock!#REF!<>\"\",$H190*W190,\"\")","v":{"$error":"#REF!"}},{"$f":"IF(Stock!#REF!<>\"\",Pilotage!R$27,\"\")","v":{"$error":"#REF!"}},{"$f":"IF(Stock!#REF!<>\"\",ROUND(W190*Y190,0),\"\")","v":{"$error":"#REF!"}},{"$f":"IF(Stock!#REF!<>\"\",$H190*Z190,\"\")","v":{"$error":"#REF!"}}]
[{"$f":"IF(Stock!#REF!<>\"\",Stock!#REF!,\"\")","v":{"$error":"#REF!"}},{"$f":"IF(Stock!#REF!<>\"\",Stock!#REF!,\"\")","v":{"$error":"#REF!"}},{"$f":"IF(Stock!#REF!<>\"\",Stock!#REF!,\"\")","v":{"$error":"#REF!"}},{"$f":"IF(Stock!#REF!<>\"\",SUM(Stock!#REF!,Stock!#REF!,Stock!#REF!),\"\")","v":{"$error":"#REF!"}},{"$f":"IF(Stock!#REF!<>\"\",#REF!*(1+Pilotage!$M$20),\"\")","v":{"$error":"#REF!"}},null,{"$f":"IF(Stock!#REF!<>\"\",IF(Stock!#REF!>0,Stock!#REF!/Stock!#REF!,0),\"\")","v":{"$error":"#REF!"}},{"$f":"IF(Stock!#REF!<>\"\",E191*Pilotage!$D$15,\"\")","v":{"$error":"#REF!"}},{"$f":"IF(Stock!#REF!<>\"\",IF(Stock!#REF!>0,Stock!#REF!,0),\"\")","v":{"$error":"#REF!"}},{"$f":"IF(Stock!#REF!<>\"\",Pilotage!$M$27,\"\")","v":{"$error":"#REF!"}},{"$f":"IF(Stock!#REF!<>\"\",ROUND(Stock!#REF!*J191,0),\"\")","v":{"$error":"#REF!"}},{"$f":"IF(Stock!#REF!<>\"\",$H191*K191,\"\")","v":{"$error":"#REF!"}},{"$f":"IF(Stock!#REF!<>\"\",Pilotage!N$27,\"\")","v":{"$error":"#REF!"}},{"$f":"IF(Stock!#REF!<>\"\",ROUND(K191*M191,0),\"\")","v":{"$error":"#REF!"}},{"$f":"IF(Stock!#REF!<>\"\",$H191*N191,\"\")","v":{"$error":"#REF!"}},{"$f":"IF(Stock!#REF!<>\"\",Pilotage!O$27,\"\")","v":{"$error":"#REF!"}},{"$f":"IF(Stock!#REF!<>\"\",ROUND(K191*P191,0),\"\")","v":{"$error":"#REF!"}},{"$f":"IF(Stock!#REF!<>\"\",$H191*Q191,\"\")","v":{"$error":"#REF!"}},{"$f":"IF(Stock!#REF!<>\"\",Pilotage!P$27,\"\")","v":{"$error":"#REF!"}},{"$f":"IF(Stock!#REF!<>\"\",ROUND(Q191*S191,0),\"\")","v":{"$error":"#REF!"}},{"$f":"IF(Stock!#REF!<>\"\",$H191*T191,\"\")","v":{"$error":"#REF!"}},{"$f":"IF(Stock!#REF!<>\"\",Pilotage!Q$27,\"\")","v":{"$error":"#REF!"}},{"$f":"IF(Stock!#REF!<>\"\",ROUND(T191*V191,0),\"\")","v":{"$error":"#REF!"}},{"$f":"IF(Stock!#REF!<>\"\",$H191*W191,\"\")","v":{"$error":"#REF!"}},{"$f":"IF(Stock!#REF!<>\"\",Pilotage!R$27,\"\")","v":{"$error":"#REF!"}},{"$f":"IF(Stock!#REF!<>\"\",ROUND(W191*Y191,0),\"\")","v":{"$error":"#REF!"}},{"$f":"IF(Stock!#REF!<>\"\",$H191*Z191,\"\")","v":{"$error":"#REF!"}}]
[{"$f":"IF(Stock!#REF!<>\"\",Stock!#REF!,\"\")","v":{"$error":"#REF!"}},{"$f":"IF(Stock!#REF!<>\"\",Stock!#REF!,\"\")","v":{"$error":"#REF!"}},{"$f":"IF(Stock!#REF!<>\"\",Stock!#REF!,\"\")","v":{"$error":"#REF!"}},{"$f":"IF(Stock!#REF!<>\"\",SUM(Stock!#REF!,Stock!#REF!,Stock!#REF!),\"\")","v":{"$error":"#REF!"}},{"$f":"IF(Stock!#REF!<>\"\",#REF!*(1+Pilotage!$M$20),\"\")","v":{"$error":"#REF!"}},null,{"$f":"IF(Stock!#REF!<>\"\",IF(Stock!#REF!>0,Stock!#REF!/Stock!#REF!,0),\"\")","v":{"$error":"#REF!"}},{"$f":"IF(Stock!#REF!<>\"\",E192*Pilotage!$D$15,\"\")","v":{"$error":"#REF!"}},{"$f":"IF(Stock!#REF!<>\"\",IF(Stock!#REF!>0,Stock!#REF!,0),\"\")","v":{"$error":"#REF!"}},{"$f":"IF(Stock!#REF!<>\"\",Pilotage!$M$27,\"\")","v":{"$error":"#REF!"}},{"$f":"IF(Stock!#REF!<>\"\",ROUND(Stock!#REF!*J192,0),\"\")","v":{"$error":"#REF!"}},{"$f":"IF(Stock!#REF!<>\"\",$H192*K192,\"\")","v":{"$error":"#REF!"}},{"$f":"IF(Stock!#REF!<>\"\",Pilotage!N$27,\"\")","v":{"$error":"#REF!"}},{"$f":"IF(Stock!#REF!<>\"\",ROUND(K192*M192,0),\"\")","v":{"$error":"#REF!"}},{"$f":"IF(Stock!#REF!<>\"\",$H192*N192,\"\")","v":{"$error":"#REF!"}},{"$f":"IF(Stock!#REF!<>\"\",Pilotage!O$27,\"\")","v":{"$error":"#REF!"}},{"$f":"IF(Stock!#REF!<>\"\",ROUND(K192*P192,0),\"\")","v":{"$error":"#REF!"}},{"$f":"IF(Stock!#REF!<>\"\",$H192*Q192,\"\")","v":{"$error":"#REF!"}},{"$f":"IF(Stock!#REF!<>\"\",Pilotage!P$27,\"\")","v":{"$error":"#REF!"}},{"$f":"IF(Stock!#REF!<>\"\",ROUND(Q192*S192,0),\"\")","v":{"$error":"#REF!"}},{"$f":"IF(Stock!#REF!<>\"\",$H192*T192,\"\")","v":{"$error":"#REF!"}},{"$f":"IF(Stock!#REF!<>\"\",Pilotage!Q$27,\"\")","v":{"$error":"#REF!"}},{"$f":"IF(Stock!#REF!<>\"\",ROUND(T192*V192,0),\"\")","v":{"$error":"#REF!"}},{"$f":"IF(Stock!#REF!<>\"\",$H192*W192,\"\")","v":{"$error":"#REF!"}},{"$f":"IF(Stock!#REF!<>\"\",Pilotage!R$27,\"\")","v":{"$error":"#REF!"}},{"$f":"IF(Stock!#REF!<>\"\",ROUND(W192*Y192,0),\"\")","v":{"$error":"#REF!"}},{"$f":"IF(Stock!#REF!<>\"\",$H192*Z192,\"\")","v":{"$error":"#REF!"}}]
[{"$f":"IF(Stock!#REF!<>\"\",Stock!#REF!,\"\")","v":{"$error":"#REF!"}},{"$f":"IF(Stock!#REF!<>\"\",Stock!#REF!,\"\")","v":{"$error":"#REF!"}},{"$f":"IF(Stock!#REF!<>\"\",Stock!#REF!,\"\")","v":{"$error":"#REF!"}},{"$f":"IF(Stock!#REF!<>\"\",SUM(Stock!#REF!,Stock!#REF!,Stock!#REF!),\"\")","v":{"$error":"#REF!"}},{"$f":"IF(Stock!#REF!<>\"\",#REF!*(1+Pilotage!$M$20),\"\")","v":{"$error":"#REF!"}},null,{"$f":"IF(Stock!#REF!<>\"\",IF(Stock!#REF!>0,Stock!#REF!/Stock!#REF!,0),\"\")","v":{"$error":"#REF!"}},{"$f":"IF(Stock!#REF!<>\"\",E193*Pilotage!$D$15,\"\")","v":{"$error":"#REF!"}},{"$f":"IF(Stock!#REF!<>\"\",IF(Stock!#REF!>0,Stock!#REF!,0),\"\")","v":{"$error":"#REF!"}},{"$f":"IF(Stock!#REF!<>\"\",Pilotage!$M$27,\"\")","v":{"$error":"#REF!"}},{"$f":"IF(Stock!#REF!<>\"\",ROUND(Stock!#REF!*J193,0),\"\")","v":{"$error":"#REF!"}},{"$f":"IF(Stock!#REF!<>\"\",$H193*K193,\"\")","v":{"$error":"#REF!"}},{"$f":"IF(Stock!#REF!<>\"\",Pilotage!N$27,\"\")","v":{"$error":"#REF!"}},{"$f":"IF(Stock!#REF!<>\"\",ROUND(K193*M193,0),\"\")","v":{"$error":"#REF!"}},{"$f":"IF(Stock!#REF!<>\"\",$H193*N193,\"\")","v":{"$error":"#REF!"}},{"$f":"IF(Stock!#REF!<>\"\",Pilotage!O$27,\"\")","v":{"$error":"#REF!"}},{"$f":"IF(Stock!#REF!<>\"\",ROUND(K193*P193,0),\"\")","v":{"$error":"#REF!"}},{"$f":"IF(Stock!#REF!<>\"\",$H193*Q193,\"\")","v":{"$error":"#REF!"}},{"$f":"IF(Stock!#REF!<>\"\",Pilotage!P$27,\"\")","v":{"$error":"#REF!"}},{"$f":"IF(Stock!#REF!<>\"\",ROUND(Q193*S193,0),\"\")","v":{"$error":"#REF!"}},{"$f":"IF(Stock!#REF!<>\"\",$H193*T193,\"\")","v":{"$error":"#REF!"}},{"$f":"IF(Stock!#REF!<>\"\",Pilotage!Q$27,\"\")","v":{"$error":"#REF!"}},{"$f":"IF(Stock!#REF!<>\"\",ROUND(T193*V193,0),\"\")","v":{"$error":"#REF!"}},{"$f":"IF(Stock!#REF!<>\"\",$H193*W193,\"\")","v":{"$error":"#REF!"}},{"$f":"IF(Stock!#REF!<>\"\",Pilotage!R$27,\"\")","v":{"$error":"#REF!"}},{"$f":"IF(Stock!#REF!<>\"\",ROUND(W193*Y193,0),\"\")","v":{"$error":"#REF!"}},{"$f":"IF(Stock!#REF!<>\"\",$H193*Z193,\"\")","v":{"$error":"#REF!"}}]
[{"$f":"IF(Stock!#REF!<>\"\",Stock!#REF!,\"\")","v":{"$error":"#REF!"}},{"$f":"IF(Stock!#REF!<>\"\",Stock!#REF!,\"\")","v":{"$error":"#REF!"}},{"$f":"IF(Stock!#REF!<>\"\",Stock!#REF!,\"\")","v":{"$error":"#REF!"}},{"$f":"IF(Stock!#REF!<>\"\",SUM(Stock!#REF!,Stock!#REF!,Stock!#REF!),\"\")","v":{"$error":"#REF!"}},{"$f":"IF(Stock!#REF!<>\"\",#REF!*(1+Pilotage!$M$20),\"\")","v":{"$error":"#REF!"}},null,{"$f":"IF(Stock!#REF!<>\"\",IF(Stock!#REF!>0,Stock!#REF!/Stock!#REF!,0),\"\")","v":{"$error":"#REF!"}},{"$f":"IF(Stock!#REF!<>\"\",E194*Pilotage!$D$15,\"\")","v":{"$error":"#REF!"}},{"$f":"IF(Stock!#REF!<>\"\",IF(Stock!#REF!>0,Stock!#REF!,0),\"\")","v":{"$error":"#REF!"}},{"$f":"IF(Stock!#REF!<>\"\",Pilotage!$M$27,\"\")","v":{"$error":"#REF!"}},{"$f":"IF(Stock!#REF!<>\"\",ROUND(Stock!#REF!*J194,0),\"\")","v":{"$error":"#REF!"}},{"$f":"IF(Stock!#REF!<>\"\",$H194*K194,\"\")","v":{"$error":"#REF!"}},{"$f":"IF(Stock!#REF!<>\"\",Pilotage!N$27,\"\")","v":{"$error":"#REF!"}},{"$f":"IF(Stock!#REF!<>\"\",ROUND(K194*M194,0),\"\")","v":{"$error":"#REF!"}},{"$f":"IF(Stock!#REF!<>\"\",$H194*N194,\"\")","v":{"$error":"#REF!"}},{"$f":"IF(Stock!#REF!<>\"\",Pilotage!O$27,\"\")","v":{"$error":"#REF!"}},{"$f":"IF(Stock!#REF!<>\"\",ROUND(K194*P194,0),\"\")","v":{"$error":"#REF!"}},{"$f":"IF(Stock!#REF!<>\"\",$H194*Q194,\"\")","v":{"$error":"#REF!"}},{"$f":"IF(Stock!#REF!<>\"\",Pilotage!P$27,\"\")","v":{"$error":"#REF!"}},{"$f":"IF(Stock!#REF!<>\"\",ROUND(Q194*S194,0),\"\")","v":{"$error":"#REF!"}},{"$f":"IF(Stock!#REF!<>\"\",$H194*T194,\"\")","v":{"$error":"#REF!"}},{"$f":"IF(Stock!#REF!<>\"\",Pilotage!Q$27,\"\")","v":{"$error":"#REF!"}},{"$f":"IF(Stock!#REF!<>\"\",ROUND(T194*V194,0),\"\")","v":{"$error":"#REF!"}},{"$f":"IF(Stock!#REF!<>\"\",$H194*W194,\"\")","v":{"$error":"#REF!"}},{"$f":"IF(Stock!#REF!<>\"\",Pilotage!R$27,\"\")","v":{"$error":"#REF!"}},{"$f":"IF(Stock!#REF!<>\"\",ROUND(W194*Y194,0),\"\")","v":{"$error":"#REF!"}},{"$f":"IF(Stock!#REF!<>\"\",$H194*Z194,\"\")","v":{"$error":"#REF!"}}]
[{"$f":"IF(Stock!#REF!<>\"\",Stock!#REF!,\"\")","v":{"$error":"#REF!"}},{"$f":"IF(Stock!#REF!<>\"\",Stock!#REF!,\"\")","v":{"$error":"#REF!"}},{"$f":"IF(Stock!#REF!<>\"\",Stock!#REF!,\"\")","v":{"$error":"#REF!"}},{"$f":"IF(Stock!#REF!<>\"\",SUM(Stock!#REF!,Stock!#REF!,Stock!#REF!),\"\")","v":{"$error":"#REF!"}},{"$f":"IF(Stock!#REF!<>\"\",#REF!*(1+Pilotage!$M$20),\"\")","v":{"$error":"#REF!"}},null,{"$f":"IF(Stock!#REF!<>\"\",IF(Stock!#REF!>0,Stock!#REF!/Stock!#REF!,0),\"\")","v":{"$error":"#REF!"}},{"$f":"IF(Stock!#REF!<>\"\",E195*Pilotage!$D$15,\"\")","v":{"$error":"#REF!"}},{"$f":"IF(Stock!#REF!<>\"\",IF(Stock!#REF!>0,Stock!#REF!,0),\"\")","v":{"$error":"#REF!"}},{"$f":"IF(Stock!#REF!<>\"\",Pilotage!$M$27,\"\")","v":{"$error":"#REF!"}},{"$f":"IF(Stock!#REF!<>\"\",ROUND(Stock!#REF!*J195,0),\"\")","v":{"$error":"#REF!"}},{"$f":"IF(Stock!#REF!<>\"\",$H195*K195,\"\")","v":{"$error":"#REF!"}},{"$f":"IF(Stock!#REF!<>\"\",Pilotage!N$27,\"\")","v":{"$error":"#REF!"}},{"$f":"IF(Stock!#REF!<>\"\",ROUND(K195*M195,0),\"\")","v":{"$error":"#REF!"}},{"$f":"IF(Stock!#REF!<>\"\",$H195*N195,\"\")","v":{"$error":"#REF!"}},{"$f":"IF(Stock!#REF!<>\"\",Pilotage!O$27,\"\")","v":{"$error":"#REF!"}},{"$f":"IF(Stock!#REF!<>\"\",ROUND(K195*P195,0),\"\")","v":{"$error":"#REF!"}},{"$f":"IF(Stock!#REF!<>\"\",$H195*Q195,\"\")","v":{"$error":"#REF!"}},{"$f":"IF(Stock!#REF!<>\"\",Pilotage!P$27,\"\")","v":{"$error":"#REF!"}},{"$f":"IF(Stock!#REF!<>\"\",ROUND(Q195*S195,0),\"\")","v":{"$error":"#REF!"}},{"$f":"IF(Stock!#REF!<>\"\",$H195*T195,\"\")","v":{"$error":"#REF!"}},{"$f":"IF(Stock!#REF!<>\"\",Pilotage!Q$27,\"\")","v":{"$error":"#REF!"}},{"$f":"IF(Stock!#REF!<>\"\",ROUND(T195*V195,0),\"\")","v":{"$error":"#REF!"}},{"$f":"IF(Stock!#REF!<>\"\",$H195*W195,\"\")","v":{"$error":"#REF!"}},{"$f":"IF(Stock!#REF!<>\"\",Pilotage!R$27,\"\")","v":{"$error":"#REF!"}},{"$f":"IF(Stock!#REF!<>\"\",ROUND(W195*Y195,0),\"\")","v":{"$error":"#REF!"}},{"$f":"IF(Stock!#REF!<>\"\",$H195*Z195,\"\")","v":{"$error":"#REF!"}}]
[{"$f":"IF(Stock!#REF!<>\"\",Stock!#REF!,\"\")","v":{"$error":"#REF!"}},{"$f":"IF(Stock!#REF!<>\"\",Stock!#REF!,\"\")","v":{"$error":"#REF!"}},{"$f":"IF(Stock!#REF!<>\"\",Stock!#REF!,\"\")","v":{"$error":"#REF!"}},{"$f":"IF(Stock!#REF!<>\"\",SUM(Stock!#REF!,Stock!#REF!,Stock!#REF!),\"\")","v":{"$error":"#REF!"}},{"$f":"IF(Stock!#REF!<>\"\",#REF!*(1+Pilotage!$M$20),\"\")","v":{"$error":"#REF!"}},null,{"$f":"IF(Stock!#REF!<>\"\",IF(Stock!#REF!>0,Stock!#REF!/Stock!#REF!,0),\"\")","v":{"$error":"#REF!"}},{"$f":"IF(Stock!#REF!<>\"\",E196*Pilotage!$D$15,\"\")","v":{"$error":"#REF!"}},{"$f":"IF(Stock!#REF!<>\"\",IF(Stock!#REF!>0,Stock!#REF!,0),\"\")","v":{"$error":"#REF!"}},{"$f":"IF(Stock!#REF!<>\"\",Pilotage!$M$27,\"\")","v":{"$error":"#REF!"}},{"$f":"IF(Stock!#REF!<>\"\",ROUND(Stock!#REF!*J196,0),\"\")","v":{"$error":"#REF!"}},{"$f":"IF(Stock!#REF!<>\"\",$H196*K196,\"\")","v":{"$error":"#REF!"}},{"$f":"IF(Stock!#REF!<>\"\",Pilotage!N$27,\"\")","v":{"$error":"#REF!"}},{"$f":"IF(Stock!#REF!<>\"\",ROUND(K196*M196,0),\"\")","v":{"$error":"#REF!"}},{"$f":"IF(Stock!#REF!<>\"\",$H196*N196,\"\")","v":{"$error":"#REF!"}},{"$f":"IF(Stock!#REF!<>\"\",Pilotage!O$27,\"\")","v":{"$error":"#REF!"}},{"$f":"IF(Stock!#REF!<>\"\",ROUND(K196*P196,0),\"\")","v":{"$error":"#REF!"}},{"$f":"IF(Stock!#REF!<>\"\",$H196*Q196,\"\")","v":{"$error":"#REF!"}},{"$f":"IF(Stock!#REF!<>\"\",Pilotage!P$27,\"\")","v":{"$error":"#REF!"}},{"$f":"IF(Stock!#REF!<>\"\",ROUND(Q196*S196,0),\"\")","v":{"$error":"#REF!"}},{"$f":"IF(Stock!#REF!<>\"\",$H196*T196,\"\")","v":{"$error":"#REF!"}},{"$f":"IF(Stock!#REF!<>\"\",Pilotage!Q$27,\"\")","v":{"$error":"#REF!"}},{"$f":"IF(Stock!#REF!<>\"\",ROUND(T196*V196,0),\"\")","v":{"$error":"#REF!"}},{"$f":"IF(Stock!#REF!<>\"\",$H196*W196,\"\")","v":{"$error":"#REF!"}},{"$f":"IF(Stock!#REF!<>\"\",Pilotage!R$27,\"\")","v":{"$error":"#REF!"}},{"$f":"IF(Stock!#REF!<>\"\",ROUND(W196*Y196,0),\"\")","v":{"$error":"#REF!"}},{"$f":"IF(Stock!#REF!<>\"\",$H196*Z196,\"\")","v":{"$error":"#REF!"}}]
[{"$f":"IF(Stock!#REF!<>\"\",Stock!#REF!,\"\")","v":{"$error":"#REF!"}},{"$f":"IF(Stock!#REF!<>\"\",Stock!#REF!,\"\")","v":{"$error":"#REF!"}},{"$f":"IF(Stock!#REF!<>\"\",Stock!#REF!,\"\")","v":{"$error":"#REF!"}},{"$f":"IF(Stock!#REF!<>\"\",SUM(Stock!#REF!,Stock!#REF!,Stock!#REF!),\"\")","v":{"$error":"#REF!"}},{"$f":"IF(Stock!#REF!<>\"\",#REF!*(1+Pilotage!$M$20),\"\")","v":{"$error":"#REF!"}},null,{"$f":"IF(Stock!#REF!<>\"\",IF(Stock!#REF!>0,Stock!#REF!/Stock!#REF!,0),\"\")","v":{"$error":"#REF!"}},{"$f":"IF(Stock!#REF!<>\"\",E197*Pilotage!$D$15,\"\")","v":{"$error":"#REF!"}},{"$f":"IF(Stock!#REF!<>\"\",IF(Stock!#REF!>0,Stock!#REF!,0),\"\")","v":{"$error":"#REF!"}},{"$f":"IF(Stock!#REF!<>\"\",Pilotage!$M$27,\"\")","v":{"$error":"#REF!"}},{"$f":"IF(Stock!#REF!<>\"\",ROUND(Stock!#REF!*J197,0),\"\")","v":{"$error":"#REF!"}},{"$f":"IF(Stock!#REF!<>\"\",$H197*K197,\"\")","v":{"$error":"#REF!"}},{"$f":"IF(Stock!#REF!<>\"\",Pilotage!N$27,\"\")","v":{"$error":"#REF!"}},{"$f":"IF(Stock!#REF!<>\"\",ROUND(K197*M197,0),\"\")","v":{"$error":"#REF!"}},{"$f":"IF(Stock!#REF!<>\"\",$H197*N197,\"\")","v":{"$error":"#REF!"}},{"$f":"IF(Stock!#REF!<>\"\",Pilotage!O$27,\"\")","v":{"$error":"#REF!"}},{"$f":"IF(Stock!#REF!<>\"\",ROUND(K197*P197,0),\"\")","v":{"$error":"#REF!"}},{"$f":"IF(Stock!#REF!<>\"\",$H197*Q197,\"\")","v":{"$error":"#REF!"}},{"$f":"IF(Stock!#REF!<>\"\",Pilotage!P$27,\"\")","v":{"$error":"#REF!"}},{"$f":"IF(Stock!#REF!<>\"\",ROUND(Q197*S197,0),\"\")","v":{"$error":"#REF!"}},{"$f":"IF(Stock!#REF!<>\"\",$H197*T197,\"\")","v":{"$error":"#REF!"}},{"$f":"IF(Stock!#REF!<>\"\",Pilotage!Q$27,\"\")","v":{"$error":"#REF!"}},{"$f":"IF(Stock!#REF!<>\"\",ROUND(T197*V197,0),\"\")","v":{"$error":"#REF!"}},{"$f":"IF(Stock!#REF!<>\"\",$H197*W197,\"\")","v":{"$error":"#REF!"}},{"$f":"IF(Stock!#REF!<>\"\",Pilotage!R$27,\"\")","v":{"$error":"#REF!"}},{"$f":"IF(Stock!#REF!<>\"\",ROUND(W197*Y197,0),\"\")","v":{"$error":"#REF!"}},{"$f":"IF(Stock!#REF!<>\"\",$H197*Z197,\"\")","v":{"$error":"#REF!"}}]
[{"$f":"IF(Stock!#REF!<>\"\",Stock!#REF!,\"\")","v":{"$error":"#REF!"}},{"$f":"IF(Stock!#REF!<>\"\",Stock!#REF!,\"\")","v":{"$error":"#REF!"}},{"$f":"IF(Stock!#REF!<>\"\",Stock!#REF!,\"\")","v":{"$error":"#REF!"}},{"$f":"IF(Stock!#REF!<>\"\",SUM(Stock!#REF!,Stock!#REF!,Stock!#REF!),\"\")","v":{"$error":"#REF!"}},{"$f":"IF(Stock!#REF!<>\"\",#REF!*(1+Pilotage!$M$20),\"\")","v":{"$error":"#REF!"}},null,{"$f":"IF(Stock!#REF!<>\"\",IF(Stock!#REF!>0,Stock!#REF!/Stock!#REF!,0),\"\")","v":{"$error":"#REF!"}},{"$f":"IF(Stock!#REF!<>\"\",E198*Pilotage!$D$15,\"\")","v":{"$error":"#REF!"}},{"$f":"IF(Stock!#REF!<>\"\",IF(Stock!#REF!>0,Stock!#REF!,0),\"\")","v":{"$error":"#REF!"}},{"$f":"IF(Stock!#REF!<>\"\",Pilotage!$M$27,\"\")","v":{"$error":"#REF!"}},{"$f":"IF(Stock!#REF!<>\"\",ROUND(Stock!#REF!*J198,0),\"\")","v":{"$error":"#REF!"}},{"$f":"IF(Stock!#REF!<>\"\",$H198*K198,\"\")","v":{"$error":"#REF!"}},{"$f":"IF(Stock!#REF!<>\"\",Pilotage!N$27,\"\")","v":{"$error":"#REF!"}},{"$f":"IF(Stock!#REF!<>\"\",ROUND(K198*M198,0),\"\")","v":{"$error":"#REF!"}},{"$f":"IF(Stock!#REF!<>\"\",$H198*N198,\"\")","v":{"$error":"#REF!"}},{"$f":"IF(Stock!#REF!<>\"\",Pilotage!O$27,\"\")","v":{"$error":"#REF!"}},{"$f":"IF(Stock!#REF!<>\"\",ROUND(K198*P198,0),\"\")","v":{"$error":"#REF!"}},{"$f":"IF(Stock!#REF!<>\"\",$H198*Q198,\"\")","v":{"$error":"#REF!"}},{"$f":"IF(Stock!#REF!<>\"\",Pilotage!P$27,\"\")","v":{"$error":"#REF!"}},{"$f":"IF(Stock!#REF!<>\"\",ROUND(Q198*S198,0),\"\")","v":{"$error":"#REF!"}},{"$f":"IF(Stock!#REF!<>\"\",$H198*T198,\"\")","v":{"$error":"#REF!"}},{"$f":"IF(Stock!#REF!<>\"\",Pilotage!Q$27,\"\")","v":{"$error":"#REF!"}},{"$f":"IF(Stock!#REF!<>\"\",ROUND(T198*V198,0),\"\")","v":{"$error":"#REF!"}},{"$f":"IF(Stock!#REF!<>\"\",$H198*W198,\"\")","v":{"$error":"#REF!"}},{"$f":"IF(Stock!#REF!<>\"\",Pilotage!R$27,\"\")","v":{"$error":"#REF!"}},{"$f":"IF(Stock!#REF!<>\"\",ROUND(W198*Y198,0),\"\")","v":{"$error":"#REF!"}},{"$f":"IF(Stock!#REF!<>\"\",$H198*Z198,\"\")","v":{"$error":"#REF!"}}]
[{"$f":"IF(Stock!#REF!<>\"\",Stock!#REF!,\"\")","v":{"$error":"#REF!"}},{"$f":"IF(Stock!#REF!<>\"\",Stock!#REF!,\"\")","v":{"$error":"#REF!"}},{"$f":"IF(Stock!#REF!<>\"\",Stock!#REF!,\"\")","v":{"$error":"#REF!"}},{"$f":"IF(Stock!#REF!<>\"\",SUM(Stock!#REF!,Stock!#REF!,Stock!#REF!),\"\")","v":{"$error":"#REF!"}},{"$f":"IF(Stock!#REF!<>\"\",#REF!*(1+Pilotage!$M$20),\"\")","v":{"$error":"#REF!"}},null,{"$f":"IF(Stock!#REF!<>\"\",IF(Stock!#REF!>0,Stock!#REF!/Stock!#REF!,0),\"\")","v":{"$error":"#REF!"}},{"$f":"IF(Stock!#REF!<>\"\",E199*Pilotage!$D$15,\"\")","v":{"$error":"#REF!"}},{"$f":"IF(Stock!#REF!<>\"\",IF(Stock!#REF!>0,Stock!#REF!,0),\"\")","v":{"$error":"#REF!"}},{"$f":"IF(Stock!#REF!<>\"\",Pilotage!$M$27,\"\")","v":{"$error":"#REF!"}},{"$f":"IF(Stock!#REF!<>\"\",ROUND(Stock!#REF!*J199,0),\"\")","v":{"$error":"#REF!"}},{"$f":"IF(Stock!#REF!<>\"\",$H199*K199,\"\")","v":{"$error":"#REF!"}},{"$f":"IF(Stock!#REF!<>\"\",Pilotage!N$27,\"\")","v":{"$error":"#REF!"}},{"$f":"IF(Stock!#REF!<>\"\",ROUND(K199*M199,0),\"\")","v":{"$error":"#REF!"}},{"$f":"IF(Stock!#REF!<>\"\",$H199*N199,\"\")","v":{"$error":"#REF!"}},{"$f":"IF(Stock!#REF!<>\"\",Pilotage!O$27,\"\")","v":{"$error":"#REF!"}},{"$f":"IF(Stock!#REF!<>\"\",ROUND(K199*P199,0),\"\")","v":{"$error":"#REF!"}},{"$f":"IF(Stock!#REF!<>\"\",$H199*Q199,\"\")","v":{"$error":"#REF!"}},{"$f":"IF(Stock!#REF!<>\"\",Pilotage!P$27,\"\")","v":{"$error":"#REF!"}},{"$f":"IF(Stock!#REF!<>\"\",ROUND(Q199*S199,0),\"\")","v":{"$error":"#REF!"}},{"$f":"IF(Stock!#REF!<>\"\",$H199*T199,\"\")","v":{"$error":"#REF!"}},{"$f":"IF(Stock!#REF!<>\"\",Pilotage!Q$27,\"\")","v":{"$error":"#REF!"}},{"$f":"IF(Stock!#REF!<>\"\",ROUND(T199*V199,0),\"\")","v":{"$error":"#REF!"}},{"$f":"IF(Stock!#REF!<>\"\",$H199*W199,\"\")","v":{"$error":"#REF!"}},{"$f":"IF(Stock!#REF!<>\"\",Pilotage!R$27,\"\")","v":{"$error":"#REF!"}},{"$f":"IF(Stock!#REF!<>\"\",ROUND(W199*Y199,0),\"\")","v":{"$error":"#REF!"}},{"$f":"IF(Stock!#REF!<>\"\",$H199*Z199,\"\")","v":{"$error":"#REF!"}}]
[{"$f":"IF(Stock!#REF!<>\"\",Stock!#REF!,\"\")","v":{"$error":"#REF!"}},{"$f":"IF(Stock!#REF!<>\"\",Stock!#REF!,\"\")","v":{"$error":"#REF!"}},{"$f":"IF(Stock!#REF!<>\"\",Stock!#REF!,\"\")","v":{"$error":"#REF!"}},{"$f":"IF(Stock!#REF!<>\"\",SUM(Stock!#REF!,Stock!#REF!,Stock!#REF!),\"\")","v":{"$error":"#REF!"}},{"$f":"IF(Stock!#REF!<>\"\",#REF!*(1+Pilotage!$M$20),\"\")","v":{"$error":"#REF!"}},null,{"$f":"IF(Stock!#REF!<>\"\",IF(Stock!#REF!>0,Stock!#REF!/Stock!#REF!,0),\"\")","v":{"$error":"#REF!"}},{"$f":"IF(Stock!#REF!<>\"\",E200*Pilotage!$D$15,\"\")","v":{"$error":"#REF!"}},{"$f":"IF(Stock!#REF!<>\"\",IF(Stock!#REF!>0,Stock!#REF!,0),\"\")","v":{"$error":"#REF!"}},{"$f":"IF(Stock!#REF!<>\"\",Pilotage!$M$27,\"\")","v":{"$error":"#REF!"}},{"$f":"IF(Stock!#REF!<>\"\",ROUND(Stock!#REF!*J200,0),\"\")","v":{"$error":"#REF!"}},{"$f":"IF(Stock!#REF!<>\"\",$H200*K200,\"\")","v":{"$error":"#REF!"}},{"$f":"IF(Stock!#REF!<>\"\",Pilotage!N$27,\"\")","v":{"$error":"#REF!"}},{"$f":"IF(Stock!#REF!<>\"\",ROUND(K200*M200,0),\"\")","v":{"$error":"#REF!"}},{"$f":"IF(Stock!#REF!<>\"\",$H200*N200,\"\")","v":{"$error":"#REF!"}},{"$f":"IF(Stock!#REF!<>\"\",Pilotage!O$27,\"\")","v":{"$error":"#REF!"}},{"$f":"IF(Stock!#REF!<>\"\",ROUND(K200*P200,0),\"\")","v":{"$error":"#REF!"}},{"$f":"IF(Stock!#REF!<>\"\",$H200*Q200,\"\")","v":{"$error":"#REF!"}},{"$f":"IF(Stock!#REF!<>\"\",Pilotage!P$27,\"\")","v":{"$error":"#REF!"}},{"$f":"IF(Stock!#REF!<>\"\",ROUND(Q200*S200,0),\"\")","v":{"$error":"#REF!"}},{"$f":"IF(Stock!#REF!<>\"\",$H200*T200,\"\")","v":{"$error":"#REF!"}},{"$f":"IF(Stock!#REF!<>\"\",Pilotage!Q$27,\"\")","v":{"$error":"#REF!"}},{"$f":"IF(Stock!#REF!<>\"\",ROUND(T200*V200,0),\"\")","v":{"$error":"#REF!"}},{"$f":"IF(Stock!#REF!<>\"\",$H200*W200,\"\")","v":{"$error":"#REF!"}},{"$f":"IF(Stock!#REF!<>\"\",Pilotage!R$27,\"\")","v":{"$error":"#REF!"}},{"$f":"IF(Stock!#REF!<>\"\",ROUND(W200*Y200,0),\"\")","v":{"$error":"#REF!"}},{"$f":"IF(Stock!#REF!<>\"\",$H200*Z200,\"\")","v":{"$error":"#REF!"}}]
[{"$f":"IF(Stock!#REF!<>\"\",Stock!#REF!,\"\")","v":{"$error":"#REF!"}},{"$f":"IF(Stock!#REF!<>\"\",Stock!#REF!,\"\")","v":{"$error":"#REF!"}},{"$f":"IF(Stock!#REF!<>\"\",Stock!#REF!,\"\")","v":{"$error":"#REF!"}},{"$f":"IF(Stock!#REF!<>\"\",SUM(Stock!#REF!,Stock!#REF!,Stock!#REF!),\"\")","v":{"$error":"#REF!"}},{"$f":"IF(Stock!#REF!<>\"\",#REF!*(1+Pilotage!$M$20),\"\")","v":{"$error":"#REF!"}},null,{"$f":"IF(Stock!#REF!<>\"\",IF(Stock!#REF!>0,Stock!#REF!/Stock!#REF!,0),\"\")","v":{"$error":"#REF!"}},{"$f":"IF(Stock!#REF!<>\"\",E201*Pilotage!$D$15,\"\")","v":{"$error":"#REF!"}},{"$f":"IF(Stock!#REF!<>\"\",IF(Stock!#REF!>0,Stock!#REF!,0),\"\")","v":{"$error":"#REF!"}},{"$f":"IF(Stock!#REF!<>\"\",Pilotage!$M$27,\"\")","v":{"$error":"#REF!"}},{"$f":"IF(Stock!#REF!<>\"\",ROUND(Stock!#REF!*J201,0),\"\")","v":{"$error":"#REF!"}},{"$f":"IF(Stock!#REF!<>\"\",$H201*K201,\"\")","v":{"$error":"#REF!"}},{"$f":"IF(Stock!#REF!<>\"\",Pilotage!N$27,\"\")","v":{"$error":"#REF!"}},{"$f":"IF(Stock!#REF!<>\"\",ROUND(K201*M201,0),\"\")","v":{"$error":"#REF!"}},{"$f":"IF(Stock!#REF!<>\"\",$H201*N201,\"\")","v":{"$error":"#REF!"}},{"$f":"IF(Stock!#REF!<>\"\",Pilotage!O$27,\"\")","v":{"$error":"#REF!"}},{"$f":"IF(Stock!#REF!<>\"\",ROUND(K201*P201,0),\"\")","v":{"$error":"#REF!"}},{"$f":"IF(Stock!#REF!<>\"\",$H201*Q201,\"\")","v":{"$error":"#REF!"}},{"$f":"IF(Stock!#REF!<>\"\",Pilotage!P$27,\"\")","v":{"$error":"#REF!"}},{"$f":"IF(Stock!#REF!<>\"\",ROUND(Q201*S201,0),\"\")","v":{"$error":"#REF!"}},{"$f":"IF(Stock!#REF!<>\"\",$H201*T201,\"\")","v":{"$error":"#REF!"}},{"$f":"IF(Stock!#REF!<>\"\",Pilotage!Q$27,\"\")","v":{"$error":"#REF!"}},{"$f":"IF(Stock!#REF!<>\"\",ROUND(T201*V201,0),\"\")","v":{"$error":"#REF!"}},{"$f":"IF(Stock!#REF!<>\"\",$H201*W201,\"\")","v":{"$error":"#REF!"}},{"$f":"IF(Stock!#REF!<>\"\",Pilotage!R$27,\"\")","v":{"$error":"#REF!"}},{"$f":"IF(Stock!#REF!<>\"\",ROUND(W201*Y201,0),\"\")","v":{"$error":"#REF!"}},{"$f":"IF(Stock!#REF!<>\"\",$H201*Z201,\"\")","v":{"$error":"#REF!"}}]
[{"$f":"IF(Stock!#REF!<>\"\",Stock!#REF!,\"\")","v":{"$error":"#REF!"}},{"$f":"IF(Stock!#REF!<>\"\",Stock!#REF!,\"\")","v":{"$error":"#REF!"}},{"$f":"IF(Stock!#REF!<>\"\",Stock!#REF!,\"\")","v":{"$error":"#REF!"}},{"$f":"IF(Stock!#REF!<>\"\",SUM(Stock!#REF!,Stock!#REF!,Stock!#REF!),\"\")","v":{"$error":"#REF!"}},{"$f":"IF(Stock!#REF!<>\"\",#REF!*(1+Pilotage!$M$20),\"\")","v":{"$error":"#REF!"}},null,{"$f":"IF(Stock!#REF!<>\"\",IF(Stock!#REF!>0,Stock!#REF!/Stock!#REF!,0),\"\")","v":{"$error":"#REF!"}},{"$f":"IF(Stock!#REF!<>\"\",E202*Pilotage!$D$15,\"\")","v":{"$error":"#REF!"}},{"$f":"IF(Stock!#REF!<>\"\",IF(Stock!#REF!>0,Stock!#REF!,0),\"\")","v":{"$error":"#REF!"}},{"$f":"IF(Stock!#REF!<>\"\",Pilotage!$M$27,\"\")","v":{"$error":"#REF!"}},{"$f":"IF(Stock!#REF!<>\"\",ROUND(Stock!#REF!*J202,0),\"\")","v":{"$error":"#REF!"}},{"$f":"IF(Stock!#REF!<>\"\",$H202*K202,\"\")","v":{"$error":"#REF!"}},{"$f":"IF(Stock!#REF!<>\"\",Pilotage!N$27,\"\")","v":{"$error":"#REF!"}},{"$f":"IF(Stock!#REF!<>\"\",ROUND(K202*M202,0),\"\")","v":{"$error":"#REF!"}},{"$f":"IF(Stock!#REF!<>\"\",$H202*N202,\"\")","v":{"$error":"#REF!"}},{"$f":"IF(Stock!#REF!<>\"\",Pilotage!O$27,\"\")","v":{"$error":"#REF!"}},{"$f":"IF(Stock!#REF!<>\"\",ROUND(K202*P202,0),\"\")","v":{"$error":"#REF!"}},{"$f":"IF(Stock!#REF!<>\"\",$H202*Q202,\"\")","v":{"$error":"#REF!"}},{"$f":"IF(Stock!#REF!<>\"\",Pilotage!P$27,\"\")","v":{"$error":"#REF!"}},{"$f":"IF(Stock!#REF!<>\"\",ROUND(Q202*S202,0),\"\")","v":{"$error":"#REF!"}},{"$f":"IF(Stock!#REF!<>\"\",$H202*T202,\"\")","v":{"$error":"#REF!"}},{"$f":"IF(Stock!#REF!<>\"\",Pilotage!Q$27,\"\")","v":{"$error":"#REF!"}},{"$f":"IF(Stock!#REF!<>\"\",ROUND(T202*V202,0),\"\")","v":{"$error":"#REF!"}},{"$f":"IF(Stock!#REF!<>\"\",$H202*W202,\"\")","v":{"$error":"#REF!"}},{"$f":"IF(Stock!#REF!<>\"\",Pilotage!R$27,\"\")","v":{"$error":"#REF!"}},{"$f":"IF(Stock!#REF!<>\"\",ROUND(W202*Y202,0),\"\")","v":{"$error":"#REF!"}},{"$f":"IF(Stock!#REF!<>\"\",$H202*Z202,\"\")","v":{"$error":"#REF!"}}]
[{"$f":"IF(Stock!#REF!<>\"\",Stock!#REF!,\"\")","v":{"$error":"#REF!"}},{"$f":"IF(Stock!#REF!<>\"\",Stock!#REF!,\"\")","v":{"$error":"#REF!"}},{"$f":"IF(Stock!#REF!<>\"\",Stock!#REF!,\"\")","v":{"$error":"#REF!"}},{"$f":"IF(Stock!#REF!<>\"\",SUM(Stock!#REF!,Stock!#REF!,Stock!#REF!),\"\")","v":{"$error":"#REF!"}},{"$f":"IF(Stock!#REF!<>\"\",#REF!*(1+Pilotage!$M$20),\"\")","v":{"$error":"#REF!"}},null,{"$f":"IF(Stock!#REF!<>\"\",IF(Stock!#REF!>0,Stock!#REF!/Stock!#REF!,0),\"\")","v":{"$error":"#REF!"}},{"$f":"IF(Stock!#REF!<>\"\",E203*Pilotage!$D$15,\"\")","v":{"$error":"#REF!"}},{"$f":"IF(Stock!#REF!<>\"\",IF(Stock!#REF!>0,Stock!#REF!,0),\"\")","v":{"$error":"#REF!"}},{"$f":"IF(Stock!#REF!<>\"\",Pilotage!$M$27,\"\")","v":{"$error":"#REF!"}},{"$f":"IF(Stock!#REF!<>\"\",ROUND(Stock!#REF!*J203,0),\"\")","v":{"$error":"#REF!"}},{"$f":"IF(Stock!#REF!<>\"\",$H203*K203,\"\")","v":{"$error":"#REF!"}},{"$f":"IF(Stock!#REF!<>\"\",Pilotage!N$27,\"\")","v":{"$error":"#REF!"}},{"$f":"IF(Stock!#REF!<>\"\",ROUND(K203*M203,0),\"\")","v":{"$error":"#REF!"}},{"$f":"IF(Stock!#REF!<>\"\",$H203*N203,\"\")","v":{"$error":"#REF!"}},{"$f":"IF(Stock!#REF!<>\"\",Pilotage!O$27,\"\")","v":{"$error":"#REF!"}},{"$f":"IF(Stock!#REF!<>\"\",ROUND(K203*P203,0),\"\")","v":{"$error":"#REF!"}},{"$f":"IF(Stock!#REF!<>\"\",$H203*Q203,\"\")","v":{"$error":"#REF!"}},{"$f":"IF(Stock!#REF!<>\"\",Pilotage!P$27,\"\")","v":{"$error":"#REF!"}},{"$f":"IF(Stock!#REF!<>\"\",ROUND(Q203*S203,0),\"\")","v":{"$error":"#REF!"}},{"$f":"IF(Stock!#REF!<>\"\",$H203*T203,\"\")","v":{"$error":"#REF!"}},{"$f":"IF(Stock!#REF!<>\"\",Pilotage!Q$27,\"\")","v":{"$error":"#REF!"}},{"$f":"IF(Stock!#REF!<>\"\",ROUND(T203*V203,0),\"\")","v":{"$error":"#REF!"}},{"$f":"IF(Stock!#REF!<>\"\",$H203*W203,\"\")","v":{"$error":"#REF!"}},{"$f":"IF(Stock!#REF!<>\"\",Pilotage!R$27,\"\")","v":{"$error":"#REF!"}},{"$f":"IF(Stock!#REF!<>\"\",ROUND(W203*Y203,0),\"\")","v":{"$error":"#REF!"}},{"$f":"IF(Stock!#REF!<>\"\",$H203*Z203,\"\")","v":{"$error":"#REF!"}}]
[{"$f":"IF(Stock!#REF!<>\"\",Stock!#REF!,\"\")","v":{"$error":"#REF!"}},{"$f":"IF(Stock!#REF!<>\"\",Stock!#REF!,\"\")","v":{"$error":"#REF!"}},{"$f":"IF(Stock!#REF!<>\"\",Stock!#REF!,\"\")","v":{"$error":"#REF!"}},{"$f":"IF(Stock!#REF!<>\"\",SUM(Stock!#REF!,Stock!#REF!,Stock!#REF!),\"\")","v":{"$error":"#REF!"}},{"$f":"IF(Stock!#REF!<>\"\",#REF!*(1+Pilotage!$M$20),\"\")","v":{"$error":"#REF!"}},null,{"$f":"IF(Stock!#REF!<>\"\",IF(Stock!#REF!>0,Stock!#REF!/Stock!#REF!,0),\"\")","v":{"$error":"#REF!"}},{"$f":"IF(Stock!#REF!<>\"\",E204*Pilotage!$D$15,\"\")","v":{"$error":"#REF!"}},{"$f":"IF(Stock!#REF!<>\"\",IF(Stock!#REF!>0,Stock!#REF!,0),\"\")","v":{"$error":"#REF!"}},{"$f":"IF(Stock!#REF!<>\"\",Pilotage!$M$27,\"\")","v":{"$error":"#REF!"}},{"$f":"IF(Stock!#REF!<>\"\",ROUND(Stock!#REF!*J204,0),\"\")","v":{"$error":"#REF!"}},{"$f":"IF(Stock!#REF!<>\"\",$H204*K204,\"\")","v":{"$error":"#REF!"}},{"$f":"IF(Stock!#REF!<>\"\",Pilotage!N$27,\"\")","v":{"$error":"#REF!"}},{"$f":"IF(Stock!#REF!<>\"\",ROUND(K204*M204,0),\"\")","v":{"$error":"#REF!"}},{"$f":"IF(Stock!#REF!<>\"\",$H204*N204,\"\")","v":{"$error":"#REF!"}},{"$f":"IF(Stock!#REF!<>\"\",Pilotage!O$27,\"\")","v":{"$error":"#REF!"}},{"$f":"IF(Stock!#REF!<>\"\",ROUND(K204*P204,0),\"\")","v":{"$error":"#REF!"}},{"$f":"IF(Stock!#REF!<>\"\",$H204*Q204,\"\")","v":{"$error":"#REF!"}},{"$f":"IF(Stock!#REF!<>\"\",Pilotage!P$27,\"\")","v":{"$error":"#REF!"}},{"$f":"IF(Stock!#REF!<>\"\",ROUND(Q204*S204,0),\"\")","v":{"$error":"#REF!"}},{"$f":"IF(Stock!#REF!<>\"\",$H204*T204,\"\")","v":{"$error":"#REF!"}},{"$f":"IF(Stock!#REF!<>\"\",Pilotage!Q$27,\"\")","v":{"$error":"#REF!"}},{"$f":"IF(Stock!#REF!<>\"\",ROUND(T204*V204,0),\"\")","v":{"$error":"#REF!"}},{"$f":"IF(Stock!#REF!<>\"\",$H204*W204,\"\")","v":{"$error":"#REF!"}},{"$f":"IF(Stock!#REF!<>\"\",Pilotage!R$27,\"\")","v":{"$error":"#REF!"}},{"$f":"IF(Stock!#REF!<>\"\",ROUND(W204*Y204,0),\"\")","v":{"$error":"#REF!"}},{"$f":"IF(Stock!#REF!<>\"\",$H204*Z204,\"\")","v":{"$error":"#REF!"}}]
[{"$f":"IF(Stock!#REF!<>\"\",Stock!#REF!,\"\")","v":{"$error":"#REF!"}},{"$f":"IF(Stock!#REF!<>\"\",Stock!#REF!,\"\")","v":{"$error":"#REF!"}},{"$f":"IF(Stock!#REF!<>\"\",Stock!#REF!,\"\")","v":{"$error":"#REF!"}},{"$f":"IF(Stock!#REF!<>\"\",SUM(Stock!#REF!,Stock!#REF!,Stock!#REF!),\"\")","v":{"$error":"#REF!"}},{"$f":"IF(Stock!#REF!<>\"\",#REF!*(1+Pilotage!$M$20),\"\")","v":{"$error":"#REF!"}},null,{"$f":"IF(Stock!#REF!<>\"\",IF(Stock!#REF!>0,Stock!#REF!/Stock!#REF!,0),\"\")","v":{"$error":"#REF!"}},{"$f":"IF(Stock!#REF!<>\"\",E205*Pilotage!$D$15,\"\")","v":{"$error":"#REF!"}},{"$f":"IF(Stock!#REF!<>\"\",IF(Stock!#REF!>0,Stock!#REF!,0),\"\")","v":{"$error":"#REF!"}},{"$f":"IF(Stock!#REF!<>\"\",Pilotage!$M$27,\"\")","v":{"$error":"#REF!"}},{"$f":"IF(Stock!#REF!<>\"\",ROUND(Stock!#REF!*J205,0),\"\")","v":{"$error":"#REF!"}},{"$f":"IF(Stock!#REF!<>\"\",$H205*K205,\"\")","v":{"$error":"#REF!"}},{"$f":"IF(Stock!#REF!<>\"\",Pilotage!N$27,\"\")","v":{"$error":"#REF!"}},{"$f":"IF(Stock!#REF!<>\"\",ROUND(K205*M205,0),\"\")","v":{"$error":"#REF!"}},{"$f":"IF(Stock!#REF!<>\"\",$H205*N205,\"\")","v":{"$error":"#REF!"}},{"$f":"IF(Stock!#REF!<>\"\",Pilotage!O$27,\"\")","v":{"$error":"#REF!"}},{"$f":"IF(Stock!#REF!<>\"\",ROUND(K205*P205,0),\"\")","v":{"$error":"#REF!"}},{"$f":"IF(Stock!#REF!<>\"\",$H205*Q205,\"\")","v":{"$error":"#REF!"}},{"$f":"IF(Stock!#REF!<>\"\",Pilotage!P$27,\"\")","v":{"$error":"#REF!"}},{"$f":"IF(Stock!#REF!<>\"\",ROUND(Q205*S205,0),\"\")","v":{"$error":"#REF!"}},{"$f":"IF(Stock!#REF!<>\"\",$H205*T205,\"\")","v":{"$error":"#REF!"}},{"$f":"IF(Stock!#REF!<>\"\",Pilotage!Q$27,\"\")","v":{"$error":"#REF!"}},{"$f":"IF(Stock!#REF!<>\"\",ROUND(T205*V205,0),\"\")","v":{"$error":"#REF!"}},{"$f":"IF(Stock!#REF!<>\"\",$H205*W205,\"\")","v":{"$error":"#REF!"}},{"$f":"IF(Stock!#REF!<>\"\",Pilotage!R$27,\"\")","v":{"$error":"#REF!"}},{"$f":"IF(Stock!#REF!<>\"\",ROUND(W205*Y205,0),\"\")","v":{"$error":"#REF!"}},{"$f":"IF(Stock!#REF!<>\"\",$H205*Z205,\"\")","v":{"$error":"#REF!"}}]
[{"$f":"IF(Stock!#REF!<>\"\",Stock!#REF!,\"\")","v":{"$error":"#REF!"}},{"$f":"IF(Stock!#REF!<>\"\",Stock!#REF!,\"\")","v":{"$error":"#REF!"}},{"$f":"IF(Stock!#REF!<>\"\",Stock!#REF!,\"\")","v":{"$error":"#REF!"}},{"$f":"IF(Stock!#REF!<>\"\",SUM(Stock!#REF!,Stock!#REF!,Stock!#REF!),\"\")","v":{"$error":"#REF!"}},{"$f":"IF(Stock!#REF!<>\"\",#REF!*(1+Pilotage!$M$20),\"\")","v":{"$error":"#REF!"}},null,{"$f":"IF(Stock!#REF!<>\"\",IF(Stock!#REF!>0,Stock!#REF!/Stock!#REF!,0),\"\")","v":{"$error":"#REF!"}},{"$f":"IF(Stock!#REF!<>\"\",E206*Pilotage!$D$15,\"\")","v":{"$error":"#REF!"}},{"$f":"IF(Stock!#REF!<>\"\",IF(Stock!#REF!>0,Stock!#REF!,0),\"\")","v":{"$error":"#REF!"}},{"$f":"IF(Stock!#REF!<>\"\",Pilotage!$M$27,\"\")","v":{"$error":"#REF!"}},{"$f":"IF(Stock!#REF!<>\"\",ROUND(Stock!#REF!*J206,0),\"\")","v":{"$error":"#REF!"}},{"$f":"IF(Stock!#REF!<>\"\",$H206*K206,\"\")","v":{"$error":"#REF!"}},{"$f":"IF(Stock!#REF!<>\"\",Pilotage!N$27,\"\")","v":{"$error":"#REF!"}},{"$f":"IF(Stock!#REF!<>\"\",ROUND(K206*M206,0),\"\")","v":{"$error":"#REF!"}},{"$f":"IF(Stock!#REF!<>\"\",$H206*N206,\"\")","v":{"$error":"#REF!"}},{"$f":"IF(Stock!#REF!<>\"\",Pilotage!O$27,\"\")","v":{"$error":"#REF!"}},{"$f":"IF(Stock!#REF!<>\"\",ROUND(K206*P206,0),\"\")","v":{"$error":"#REF!"}},{"$f":"IF(Stock!#REF!<>\"\",$H206*Q206,\"\")","v":{"$error":"#REF!"}},{"$f":"IF(Stock!#REF!<>\"\",Pilotage!P$27,\"\")","v":{"$error":"#REF!"}},{"$f":"IF(Stock!#REF!<>\"\",ROUND(Q206*S206,0),\"\")","v":{"$error":"#REF!"}},{"$f":"IF(Stock!#REF!<>\"\",$H206*T206,\"\")","v":{"$error":"#REF!"}},{"$f":"IF(Stock!#REF!<>\"\",Pilotage!Q$27,\"\")","v":{"$error":"#REF!"}},{"$f":"IF(Stock!#REF!<>\"\",ROUND(T206*V206,0),\"\")","v":{"$error":"#REF!"}},{"$f":"IF(Stock!#REF!<>\"\",$H206*W206,\"\")","v":{"$error":"#REF!"}},{"$f":"IF(Stock!#REF!<>\"\",Pilotage!R$27,\"\")","v":{"$error":"#REF!"}},{"$f":"IF(Stock!#REF!<>\"\",ROUND(W206*Y206,0),\"\")","v":{"$error":"#REF!"}},{"$f":"IF(Stock!#REF!<>\"\",$H206*Z206,\"\")","v":{"$error":"#REF!"}}]
[{"$f":"IF(Stock!#REF!<>\"\",Stock!#REF!,\"\")","v":{"$error":"#REF!"}},{"$f":"IF(Stock!#REF!<>\"\",Stock!#REF!,\"\")","v":{"$error":"#REF!"}},{"$f":"IF(Stock!#REF!<>\"\",Stock!#REF!,\"\")","v":{"$error":"#REF!"}},{"$f":"IF(Stock!#REF!<>\"\",SUM(Stock!#REF!,Stock!#REF!,Stock!#REF!),\"\")","v":{"$error":"#REF!"}},{"$f":"IF(Stock!#REF!<>\"\",#REF!*(1+Pilotage!$M$20),\"\")","v":{"$error":"#REF!"}},null,{"$f":"IF(Stock!#REF!<>\"\",IF(Stock!#REF!>0,Stock!#REF!/Stock!#REF!,0),\"\")","v":{"$error":"#REF!"}},{"$f":"IF(Stock!#REF!<>\"\",E207*Pilotage!$D$15,\"\")","v":{"$error":"#REF!"}},{"$f":"IF(Stock!#REF!<>\"\",IF(Stock!#REF!>0,Stock!#REF!,0),\"\")","v":{"$error":"#REF!"}},{"$f":"IF(Stock!#REF!<>\"\",Pilotage!$M$27,\"\")","v":{"$error":"#REF!"}},{"$f":"IF(Stock!#REF!<>\"\",ROUND(Stock!#REF!*J207,0),\"\")","v":{"$error":"#REF!"}},{"$f":"IF(Stock!#REF!<>\"\",$H207*K207,\"\")","v":{"$error":"#REF!"}},{"$f":"IF(Stock!#REF!<>\"\",Pilotage!N$27,\"\")","v":{"$error":"#REF!"}},{"$f":"IF(Stock!#REF!<>\"\",ROUND(K207*M207,0),\"\")","v":{"$error":"#REF!"}},{"$f":"IF(Stock!#REF!<>\"\",$H207*N207,\"\")","v":{"$error":"#REF!"}},{"$f":"IF(Stock!#REF!<>\"\",Pilotage!O$27,\"\")","v":{"$error":"#REF!"}},{"$f":"IF(Stock!#REF!<>\"\",ROUND(K207*P207,0),\"\")","v":{"$error":"#REF!"}},{"$f":"IF(Stock!#REF!<>\"\",$H207*Q207,\"\")","v":{"$error":"#REF!"}},{"$f":"IF(Stock!#REF!<>\"\",Pilotage!P$27,\"\")","v":{"$error":"#REF!"}},{"$f":"IF(Stock!#REF!<>\"\",ROUND(Q207*S207,0),\"\")","v":{"$error":"#REF!"}},{"$f":"IF(Stock!#REF!<>\"\",$H207*T207,\"\")","v":{"$error":"#REF!"}},{"$f":"IF(Stock!#REF!<>\"\",Pilotage!Q$27,\"\")","v":{"$error":"#REF!"}},{"$f":"IF(Stock!#REF!<>\"\",ROUND(T207*V207,0),\"\")","v":{"$error":"#REF!"}},{"$f":"IF(Stock!#REF!<>\"\",$H207*W207,\"\")","v":{"$error":"#REF!"}},{"$f":"IF(Stock!#REF!<>\"\",Pilotage!R$27,\"\")","v":{"$error":"#REF!"}},{"$f":"IF(Stock!#REF!<>\"\",ROUND(W207*Y207,0),\"\")","v":{"$error":"#REF!"}},{"$f":"IF(Stock!#REF!<>\"\",$H207*Z207,\"\")","v":{"$error":"#REF!"}}]
[{"$f":"IF(Stock!#REF!<>\"\",Stock!#REF!,\"\")","v":{"$error":"#REF!"}},{"$f":"IF(Stock!#REF!<>\"\",Stock!#REF!,\"\")","v":{"$error":"#REF!"}},{"$f":"IF(Stock!#REF!<>\"\",Stock!#REF!,\"\")","v":{"$error":"#REF!"}},{"$f":"IF(Stock!#REF!<>\"\",SUM(Stock!#REF!,Stock!#REF!,Stock!#REF!),\"\")","v":{"$error":"#REF!"}},{"$f":"IF(Stock!#REF!<>\"\",#REF!*(1+Pilotage!$M$20),\"\")","v":{"$error":"#REF!"}},null,{"$f":"IF(Stock!#REF!<>\"\",IF(Stock!#REF!>0,Stock!#REF!/Stock!#REF!,0),\"\")","v":{"$error":"#REF!"}},{"$f":"IF(Stock!#REF!<>\"\",E208*Pilotage!$D$15,\"\")","v":{"$error":"#REF!"}},{"$f":"IF(Stock!#REF!<>\"\",IF(Stock!#REF!>0,Stock!#REF!,0),\"\")","v":{"$error":"#REF!"}},{"$f":"IF(Stock!#REF!<>\"\",Pilotage!$M$27,\"\")","v":{"$error":"#REF!"}},{"$f":"IF(Stock!#REF!<>\"\",ROUND(Stock!#REF!*J208,0),\"\")","v":{"$error":"#REF!"}},{"$f":"IF(Stock!#REF!<>\"\",$H208*K208,\"\")","v":{"$error":"#REF!"}},{"$f":"IF(Stock!#REF!<>\"\",Pilotage!N$27,\"\")","v":{"$error":"#REF!"}},{"$f":"IF(Stock!#REF!<>\"\",ROUND(K208*M208,0),\"\")","v":{"$error":"#REF!"}},{"$f":"IF(Stock!#REF!<>\"\",$H208*N208,\"\")","v":{"$error":"#REF!"}},{"$f":"IF(Stock!#REF!<>\"\",Pilotage!O$27,\"\")","v":{"$error":"#REF!"}},{"$f":"IF(Stock!#REF!<>\"\",ROUND(K208*P208,0),\"\")","v":{"$error":"#REF!"}},{"$f":"IF(Stock!#REF!<>\"\",$H208*Q208,\"\")","v":{"$error":"#REF!"}},{"$f":"IF(Stock!#REF!<>\"\",Pilotage!P$27,\"\")","v":{"$error":"#REF!"}},{"$f":"IF(Stock!#REF!<>\"\",ROUND(Q208*S208,0),\"\")","v":{"$error":"#REF!"}},{"$f":"IF(Stock!#REF!<>\"\",$H208*T208,\"\")","v":{"$error":"#REF!"}},{"$f":"IF(Stock!#REF!<>\"\",Pilotage!Q$27,\"\")","v":{"$error":"#REF!"}},{"$f":"IF(Stock!#REF!<>\"\",ROUND(T208*V208,0),\"\")","v":{"$error":"#REF!"}},{"$f":"IF(Stock!#REF!<>\"\",$H208*W208,\"\")","v":{"$error":"#REF!"}},{"$f":"IF(Stock!#REF!<>\"\",Pilotage!R$27,\"\")","v":{"$error":"#REF!"}},{"$f":"IF(Stock!#REF!<>\"\",ROUND(W208*Y208,0),\"\")","v":{"$error":"#REF!"}},{"$f":"IF(Stock!#REF!<>\"\",$H208*Z208,\"\")","v":{"$error":"#REF!"}}]
[{"$f":"IF(Stock!#REF!<>\"\",Stock!#REF!,\"\")","v":{"$error":"#REF!"}},{"$f":"IF(Stock!#REF!<>\"\",Stock!#REF!,\"\")","v":{"$error":"#REF!"}},{"$f":"IF(Stock!#REF!<>\"\",Stock!#REF!,\"\")","v":{"$error":"#REF!"}},{"$f":"IF(Stock!#REF!<>\"\",SUM(Stock!#REF!,Stock!#REF!,Stock!#REF!),\"\")","v":{"$error":"#REF!"}},{"$f":"IF(Stock!#REF!<>\"\",#REF!*(1+Pilotage!$M$20),\"\")","v":{"$error":"#REF!"}},null,{"$f":"IF(Stock!#REF!<>\"\",IF(Stock!#REF!>0,Stock!#REF!/Stock!#REF!,0),\"\")","v":{"$error":"#REF!"}},{"$f":"IF(Stock!#REF!<>\"\",E209*Pilotage!$D$15,\"\")","v":{"$error":"#REF!"}},{"$f":"IF(Stock!#REF!<>\"\",IF(Stock!#REF!>0,Stock!#REF!,0),\"\")","v":{"$error":"#REF!"}},{"$f":"IF(Stock!#REF!<>\"\",Pilotage!$M$27,\"\")","v":{"$error":"#REF!"}},{"$f":"IF(Stock!#REF!<>\"\",ROUND(Stock!#REF!*J209,0),\"\")","v":{"$error":"#REF!"}},{"$f":"IF(Stock!#REF!<>\"\",$H209*K209,\"\")","v":{"$error":"#REF!"}},{"$f":"IF(Stock!#REF!<>\"\",Pilotage!N$27,\"\")","v":{"$error":"#REF!"}},{"$f":"IF(Stock!#REF!<>\"\",ROUND(K209*M209,0),\"\")","v":{"$error":"#REF!"}},{"$f":"IF(Stock!#REF!<>\"\",$H209*N209,\"\")","v":{"$error":"#REF!"}},{"$f":"IF(Stock!#REF!<>\"\",Pilotage!O$27,\"\")","v":{"$error":"#REF!"}},{"$f":"IF(Stock!#REF!<>\"\",ROUND(K209*P209,0),\"\")","v":{"$error":"#REF!"}},{"$f":"IF(Stock!#REF!<>\"\",$H209*Q209,\"\")","v":{"$error":"#REF!"}},{"$f":"IF(Stock!#REF!<>\"\",Pilotage!P$27,\"\")","v":{"$error":"#REF!"}},{"$f":"IF(Stock!#REF!<>\"\",ROUND(Q209*S209,0),\"\")","v":{"$error":"#REF!"}},{"$f":"IF(Stock!#REF!<>\"\",$H209*T209,\"\")","v":{"$error":"#REF!"}},{"$f":"IF(Stock!#REF!<>\"\",Pilotage!Q$27,\"\")","v":{"$error":"#REF!"}},{"$f":"IF(Stock!#REF!<>\"\",ROUND(T209*V209,0),\"\")","v":{"$error":"#REF!"}},{"$f":"IF(Stock!#REF!<>\"\",$H209*W209,\"\")","v":{"$error":"#REF!"}},{"$f":"IF(Stock!#REF!<>\"\",Pilotage!R$27,\"\")","v":{"$error":"#REF!"}},{"$f":"IF(Stock!#REF!<>\"\",ROUND(W209*Y209,0),\"\")","v":{"$error":"#REF!"}},{"$f":"IF(Stock!#REF!<>\"\",$H209*Z209,\"\")","v":{"$error":"#REF!"}}]
[{"$f":"IF(Stock!#REF!<>\"\",Stock!#REF!,\"\")","v":{"$error":"#REF!"}},{"$f":"IF(Stock!#REF!<>\"\",Stock!#REF!,\"\")","v":{"$error":"#REF!"}},{"$f":"IF(Stock!#REF!<>\"\",Stock!#REF!,\"\")","v":{"$error":"#REF!"}},{"$f":"IF(Stock!#REF!<>\"\",SUM(Stock!#REF!,Stock!#REF!,Stock!#REF!),\"\")","v":{"$error":"#REF!"}},{"$f":"IF(Stock!#REF!<>\"\",#REF!*(1+Pilotage!$M$20),\"\")","v":{"$error":"#REF!"}},null,{"$f":"IF(Stock!#REF!<>\"\",IF(Stock!#REF!>0,Stock!#REF!/Stock!#REF!,0),\"\")","v":{"$error":"#REF!"}},{"$f":"IF(Stock!#REF!<>\"\",E210*Pilotage!$D$15,\"\")","v":{"$error":"#REF!"}},{"$f":"IF(Stock!#REF!<>\"\",IF(Stock!#REF!>0,Stock!#REF!,0),\"\")","v":{"$error":"#REF!"}},{"$f":"IF(Stock!#REF!<>\"\",Pilotage!$M$27,\"\")","v":{"$error":"#REF!"}},{"$f":"IF(Stock!#REF!<>\"\",ROUND(Stock!#REF!*J210,0),\"\")","v":{"$error":"#REF!"}},{"$f":"IF(Stock!#REF!<>\"\",$H210*K210,\"\")","v":{"$error":"#REF!"}},{"$f":"IF(Stock!#REF!<>\"\",Pilotage!N$27,\"\")","v":{"$error":"#REF!"}},{"$f":"IF(Stock!#REF!<>\"\",ROUND(K210*M210,0),\"\")","v":{"$error":"#REF!"}},{"$f":"IF(Stock!#REF!<>\"\",$H210*N210,\"\")","v":{"$error":"#REF!"}},{"$f":"IF(Stock!#REF!<>\"\",Pilotage!O$27,\"\")","v":{"$error":"#REF!"}},{"$f":"IF(Stock!#REF!<>\"\",ROUND(K210*P210,0),\"\")","v":{"$error":"#REF!"}},{"$f":"IF(Stock!#REF!<>\"\",$H210*Q210,\"\")","v":{"$error":"#REF!"}},{"$f":"IF(Stock!#REF!<>\"\",Pilotage!P$27,\"\")","v":{"$error":"#REF!"}},{"$f":"IF(Stock!#REF!<>\"\",ROUND(Q210*S210,0),\"\")","v":{"$error":"#REF!"}},{"$f":"IF(Stock!#REF!<>\"\",$H210*T210,\"\")","v":{"$error":"#REF!"}},{"$f":"IF(Stock!#REF!<>\"\",Pilotage!Q$27,\"\")","v":{"$error":"#REF!"}},{"$f":"IF(Stock!#REF!<>\"\",ROUND(T210*V210,0),\"\")","v":{"$error":"#REF!"}},{"$f":"IF(Stock!#REF!<>\"\",$H210*W210,\"\")","v":{"$error":"#REF!"}},{"$f":"IF(Stock!#REF!<>\"\",Pilotage!R$27,\"\")","v":{"$error":"#REF!"}},{"$f":"IF(Stock!#REF!<>\"\",ROUND(W210*Y210,0),\"\")","v":{"$error":"#REF!"}},{"$f":"IF(Stock!#REF!<>\"\",$H210*Z210,\"\")","v":{"$error":"#REF!"}}]
[{"$f":"IF(Stock!#REF!<>\"\",Stock!#REF!,\"\")","v":{"$error":"#REF!"}},{"$f":"IF(Stock!#REF!<>\"\",Stock!#REF!,\"\")","v":{"$error":"#REF!"}},{"$f":"IF(Stock!#REF!<>\"\",Stock!#REF!,\"\")","v":{"$error":"#REF!"}},{"$f":"IF(Stock!#REF!<>\"\",SUM(Stock!#REF!,Stock!#REF!,Stock!#REF!),\"\")","v":{"$error":"#REF!"}},{"$f":"IF(Stock!#REF!<>\"\",#REF!*(1+Pilotage!$M$20),\"\")","v":{"$error":"#REF!"}},null,{"$f":"IF(Stock!#REF!<>\"\",IF(Stock!#REF!>0,Stock!#REF!/Stock!#REF!,0),\"\")","v":{"$error":"#REF!"}},{"$f":"IF(Stock!#REF!<>\"\",E211*Pilotage!$D$15,\"\")","v":{"$error":"#REF!"}},{"$f":"IF(Stock!#REF!<>\"\",IF(Stock!#REF!>0,Stock!#REF!,0),\"\")","v":{"$error":"#REF!"}},{"$f":"IF(Stock!#REF!<>\"\",Pilotage!$M$27,\"\")","v":{"$error":"#REF!"}},{"$f":"IF(Stock!#REF!<>\"\",ROUND(Stock!#REF!*J211,0),\"\")","v":{"$error":"#REF!"}},{"$f":"IF(Stock!#REF!<>\"\",$H211*K211,\"\")","v":{"$error":"#REF!"}},{"$f":"IF(Stock!#REF!<>\"\",Pilotage!N$27,\"\")","v":{"$error":"#REF!"}},{"$f":"IF(Stock!#REF!<>\"\",ROUND(K211*M211,0),\"\")","v":{"$error":"#REF!"}},{"$f":"IF(Stock!#REF!<>\"\",$H211*N211,\"\")","v":{"$error":"#REF!"}},{"$f":"IF(Stock!#REF!<>\"\",Pilotage!O$27,\"\")","v":{"$error":"#REF!"}},{"$f":"IF(Stock!#REF!<>\"\",ROUND(K211*P211,0),\"\")","v":{"$error":"#REF!"}},{"$f":"IF(Stock!#REF!<>\"\",$H211*Q211,\"\")","v":{"$error":"#REF!"}},{"$f":"IF(Stock!#REF!<>\"\",Pilotage!P$27,\"\")","v":{"$error":"#REF!"}},{"$f":"IF(Stock!#REF!<>\"\",ROUND(Q211*S211,0),\"\")","v":{"$error":"#REF!"}},{"$f":"IF(Stock!#REF!<>\"\",$H211*T211,\"\")","v":{"$error":"#REF!"}},{"$f":"IF(Stock!#REF!<>\"\",Pilotage!Q$27,\"\")","v":{"$error":"#REF!"}},{"$f":"IF(Stock!#REF!<>\"\",ROUND(T211*V211,0),\"\")","v":{"$error":"#REF!"}},{"$f":"IF(Stock!#REF!<>\"\",$H211*W211,\"\")","v":{"$error":"#REF!"}},{"$f":"IF(Stock!#REF!<>\"\",Pilotage!R$27,\"\")","v":{"$error":"#REF!"}},{"$f":"IF(Stock!#REF!<>\"\",ROUND(W211*Y211,0),\"\")","v":{"$error":"#REF!"}},{"$f":"IF(Stock!#REF!<>\"\",$H211*Z211,\"\")","v":{"$error":"#REF!"}}]
[{"$f":"IF(Stock!#REF!<>\"\",Stock!#REF!,\"\")","v":{"$error":"#REF!"}},{"$f":"IF(Stock!#REF!<>\"\",Stock!#REF!,\"\")","v":{"$error":"#REF!"}},{"$f":"IF(Stock!#REF!<>\"\",Stock!#REF!,\"\")","v":{"$error":"#REF!"}},{"$f":"IF(Stock!#REF!<>\"\",SUM(Stock!#REF!,Stock!#REF!,Stock!#REF!),\"\")","v":{"$error":"#REF!"}},{"$f":"IF(Stock!#REF!<>\"\",#REF!*(1+Pilotage!$M$20),\"\")","v":{"$error":"#REF!"}},null,{"$f":"IF(Stock!#REF!<>\"\",IF(Stock!#REF!>0,Stock!#REF!/Stock!#REF!,0),\"\")","v":{"$error":"#REF!"}},{"$f":"IF(Stock!#REF!<>\"\",E212*Pilotage!$D$15,\"\")","v":{"$error":"#REF!"}},{"$f":"IF(Stock!#REF!<>\"\",IF(Stock!#REF!>0,Stock!#REF!,0),\"\")","v":{"$error":"#REF!"}},{"$f":"IF(Stock!#REF!<>\"\",Pilotage!$M$27,\"\")","v":{"$error":"#REF!"}},{"$f":"IF(Stock!#REF!<>\"\",ROUND(Stock!#REF!*J212,0),\"\")","v":{"$error":"#REF!"}},{"$f":"IF(Stock!#REF!<>\"\",$H212*K212,\"\")","v":{"$error":"#REF!"}},{"$f":"IF(Stock!#REF!<>\"\",Pilotage!N$27,\"\")","v":{"$error":"#REF!"}},{"$f":"IF(Stock!#REF!<>\"\",ROUND(K212*M212,0),\"\")","v":{"$error":"#REF!"}},{"$f":"IF(Stock!#REF!<>\"\",$H212*N212,\"\")","v":{"$error":"#REF!"}},{"$f":"IF(Stock!#REF!<>\"\",Pilotage!O$27,\"\")","v":{"$error":"#REF!"}},{"$f":"IF(Stock!#REF!<>\"\",ROUND(K212*P212,0),\"\")","v":{"$error":"#REF!"}},{"$f":"IF(Stock!#REF!<>\"\",$H212*Q212,\"\")","v":{"$error":"#REF!"}},{"$f":"IF(Stock!#REF!<>\"\",Pilotage!P$27,\"\")","v":{"$error":"#REF!"}},{"$f":"IF(Stock!#REF!<>\"\",ROUND(Q212*S212,0),\"\")","v":{"$error":"#REF!"}},{"$f":"IF(Stock!#REF!<>\"\",$H212*T212,\"\")","v":{"$error":"#REF!"}},{"$f":"IF(Stock!#REF!<>\"\",Pilotage!Q$27,\"\")","v":{"$error":"#REF!"}},{"$f":"IF(Stock!#REF!<>\"\",ROUND(T212*V212,0),\"\")","v":{"$error":"#REF!"}},{"$f":"IF(Stock!#REF!<>\"\",$H212*W212,\"\")","v":{"$error":"#REF!"}},{"$f":"IF(Stock!#REF!<>\"\",Pilotage!R$27,\"\")","v":{"$error":"#REF!"}},{"$f":"IF(Stock!#REF!<>\"\",ROUND(W212*Y212,0),\"\")","v":{"$error":"#REF!"}},{"$f":"IF(Stock!#REF!<>\"\",$H212*Z212,\"\")","v":{"$error":"#REF!"}}]
[{"$f":"IF(Stock!#REF!<>\"\",Stock!#REF!,\"\")","v":{"$error":"#REF!"}},{"$f":"IF(Stock!#REF!<>\"\",Stock!#REF!,\"\")","v":{"$error":"#REF!"}},{"$f":"IF(Stock!#REF!<>\"\",Stock!#REF!,\"\")","v":{"$error":"#REF!"}},{"$f":"IF(Stock!#REF!<>\"\",SUM(Stock!#REF!,Stock!#REF!,Stock!#REF!),\"\")","v":{"$error":"#REF!"}},{"$f":"IF(Stock!#REF!<>\"\",#REF!*(1+Pilotage!$M$20),\"\")","v":{"$error":"#REF!"}},null,{"$f":"IF(Stock!#REF!<>\"\",IF(Stock!#REF!>0,Stock!#REF!/Stock!#REF!,0),\"\")","v":{"$error":"#REF!"}},{"$f":"IF(Stock!#REF!<>\"\",E213*Pilotage!$D$15,\"\")","v":{"$error":"#REF!"}},{"$f":"IF(Stock!#REF!<>\"\",IF(Stock!#REF!>0,Stock!#REF!,0),\"\")","v":{"$error":"#REF!"}},{"$f":"IF(Stock!#REF!<>\"\",Pilotage!$M$27,\"\")","v":{"$error":"#REF!"}},{"$f":"IF(Stock!#REF!<>\"\",ROUND(Stock!#REF!*J213,0),\"\")","v":{"$error":"#REF!"}},{"$f":"IF(Stock!#REF!<>\"\",$H213*K213,\"\")","v":{"$error":"#REF!"}},{"$f":"IF(Stock!#REF!<>\"\",Pilotage!N$27,\"\")","v":{"$error":"#REF!"}},{"$f":"IF(Stock!#REF!<>\"\",ROUND(K213*M213,0),\"\")","v":{"$error":"#REF!"}},{"$f":"IF(Stock!#REF!<>\"\",$H213*N213,\"\")","v":{"$error":"#REF!"}},{"$f":"IF(Stock!#REF!<>\"\",Pilotage!O$27,\"\")","v":{"$error":"#REF!"}},{"$f":"IF(Stock!#REF!<>\"\",ROUND(K213*P213,0),\"\")","v":{"$error":"#REF!"}},{"$f":"IF(Stock!#REF!<>\"\",$H213*Q213,\"\")","v":{"$error":"#REF!"}},{"$f":"IF(Stock!#REF!<>\"\",Pilotage!P$27,\"\")","v":{"$error":"#REF!"}},{"$f":"IF(Stock!#REF!<>\"\",ROUND(Q213*S213,0),\"\")","v":{"$error":"#REF!"}},{"$f":"IF(Stock!#REF!<>\"\",$H213*T213,\"\")","v":{"$error":"#REF!"}},{"$f":"IF(Stock!#REF!<>\"\",Pilotage!Q$27,\"\")","v":{"$error":"#REF!"}},{"$f":"IF(Stock!#REF!<>\"\",ROUND(T213*V213,0),\"\")","v":{"$error":"#REF!"}},{"$f":"IF(Stock!#REF!<>\"\",$H213*W213,\"\")","v":{"$error":"#REF!"}},{"$f":"IF(Stock!#REF!<>\"\",Pilotage!R$27,\"\")","v":{"$error":"#REF!"}},{"$f":"IF(Stock!#REF!<>\"\",ROUND(W213*Y213,0),\"\")","v":{"$error":"#REF!"}},{"$f":"IF(Stock!#REF!<>\"\",$H213*Z213,\"\")","v":{"$error":"#REF!"}}]
[{"$f":"IF(Stock!#REF!<>\"\",Stock!#REF!,\"\")","v":{"$error":"#REF!"}},{"$f":"IF(Stock!#REF!<>\"\",Stock!#REF!,\"\")","v":{"$error":"#REF!"}},{"$f":"IF(Stock!#REF!<>\"\",Stock!#REF!,\"\")","v":{"$error":"#REF!"}},{"$f":"IF(Stock!#REF!<>\"\",SUM(Stock!#REF!,Stock!#REF!,Stock!#REF!),\"\")","v":{"$error":"#REF!"}},{"$f":"IF(Stock!#REF!<>\"\",#REF!*(1+Pilotage!$M$20),\"\")","v":{"$error":"#REF!"}},null,{"$f":"IF(Stock!#REF!<>\"\",IF(Stock!#REF!>0,Stock!#REF!/Stock!#REF!,0),\"\")","v":{"$error":"#REF!"}},{"$f":"IF(Stock!#REF!<>\"\",E214*Pilotage!$D$15,\"\")","v":{"$error":"#REF!"}},{"$f":"IF(Stock!#REF!<>\"\",IF(Stock!#REF!>0,Stock!#REF!,0),\"\")","v":{"$error":"#REF!"}},{"$f":"IF(Stock!#REF!<>\"\",Pilotage!$M$27,\"\")","v":{"$error":"#REF!"}},{"$f":"IF(Stock!#REF!<>\"\",ROUND(Stock!#REF!*J214,0),\"\")","v":{"$error":"#REF!"}},{"$f":"IF(Stock!#REF!<>\"\",$H214*K214,\"\")","v":{"$error":"#REF!"}},{"$f":"IF(Stock!#REF!<>\"\",Pilotage!N$27,\"\")","v":{"$error":"#REF!"}},{"$f":"IF(Stock!#REF!<>\"\",ROUND(K214*M214,0),\"\")","v":{"$error":"#REF!"}},{"$f":"IF(Stock!#REF!<>\"\",$H214*N214,\"\")","v":{"$error":"#REF!"}},{"$f":"IF(Stock!#REF!<>\"\",Pilotage!O$27,\"\")","v":{"$error":"#REF!"}},{"$f":"IF(Stock!#REF!<>\"\",ROUND(K214*P214,0),\"\")","v":{"$error":"#REF!"}},{"$f":"IF(Stock!#REF!<>\"\",$H214*Q214,\"\")","v":{"$error":"#REF!"}},{"$f":"IF(Stock!#REF!<>\"\",Pilotage!P$27,\"\")","v":{"$error":"#REF!"}},{"$f":"IF(Stock!#REF!<>\"\",ROUND(Q214*S214,0),\"\")","v":{"$error":"#REF!"}},{"$f":"IF(Stock!#REF!<>\"\",$H214*T214,\"\")","v":{"$error":"#REF!"}},{"$f":"IF(Stock!#REF!<>\"\",Pilotage!Q$27,\"\")","v":{"$error":"#REF!"}},{"$f":"IF(Stock!#REF!<>\"\",ROUND(T214*V214,0),\"\")","v":{"$error":"#REF!"}},{"$f":"IF(Stock!#REF!<>\"\",$H214*W214,\"\")","v":{"$error":"#REF!"}},{"$f":"IF(Stock!#REF!<>\"\",Pilotage!R$27,\"\")","v":{"$error":"#REF!"}},{"$f":"IF(Stock!#REF!<>\"\",ROUND(W214*Y214,0),\"\")","v":{"$error":"#REF!"}},{"$f":"IF(Stock!#REF!<>\"\",$H214*Z214,\"\")","v":{"$error":"#REF!"}}]
[{"$f":"IF(Stock!#REF!<>\"\",Stock!#REF!,\"\")","v":{"$error":"#REF!"}},{"$f":"IF(Stock!#REF!<>\"\",Stock!#REF!,\"\")","v":{"$error":"#REF!"}},{"$f":"IF(Stock!#REF!<>\"\",Stock!#REF!,\"\")","v":{"$error":"#REF!"}},{"$f":"IF(Stock!#REF!<>\"\",SUM(Stock!#REF!,Stock!#REF!,Stock!#REF!),\"\")","v":{"$error":"#REF!"}},{"$f":"IF(Stock!#REF!<>\"\",#REF!*(1+Pilotage!$M$20),\"\")","v":{"$error":"#REF!"}},null,{"$f":"IF(Stock!#REF!<>\"\",IF(Stock!#REF!>0,Stock!#REF!/Stock!#REF!,0),\"\")","v":{"$error":"#REF!"}},{"$f":"IF(Stock!#REF!<>\"\",E215*Pilotage!$D$15,\"\")","v":{"$error":"#REF!"}},{"$f":"IF(Stock!#REF!<>\"\",IF(Stock!#REF!>0,Stock!#REF!,0),\"\")","v":{"$error":"#REF!"}},{"$f":"IF(Stock!#REF!<>\"\",Pilotage!$M$27,\"\")","v":{"$error":"#REF!"}},{"$f":"IF(Stock!#REF!<>\"\",ROUND(Stock!#REF!*J215,0),\"\")","v":{"$error":"#REF!"}},{"$f":"IF(Stock!#REF!<>\"\",$H215*K215,\"\")","v":{"$error":"#REF!"}},{"$f":"IF(Stock!#REF!<>\"\",Pilotage!N$27,\"\")","v":{"$error":"#REF!"}},{"$f":"IF(Stock!#REF!<>\"\",ROUND(K215*M215,0),\"\")","v":{"$error":"#REF!"}},{"$f":"IF(Stock!#REF!<>\"\",$H215*N215,\"\")","v":{"$error":"#REF!"}},{"$f":"IF(Stock!#REF!<>\"\",Pilotage!O$27,\"\")","v":{"$error":"#REF!"}},{"$f":"IF(Stock!#REF!<>\"\",ROUND(K215*P215,0),\"\")","v":{"$error":"#REF!"}},{"$f":"IF(Stock!#REF!<>\"\",$H215*Q215,\"\")","v":{"$error":"#REF!"}},{"$f":"IF(Stock!#REF!<>\"\",Pilotage!P$27,\"\")","v":{"$error":"#REF!"}},{"$f":"IF(Stock!#REF!<>\"\",ROUND(Q215*S215,0),\"\")","v":{"$error":"#REF!"}},{"$f":"IF(Stock!#REF!<>\"\",$H215*T215,\"\")","v":{"$error":"#REF!"}},{"$f":"IF(Stock!#REF!<>\"\",Pilotage!Q$27,\"\")","v":{"$error":"#REF!"}},{"$f":"IF(Stock!#REF!<>\"\",ROUND(T215*V215,0),\"\")","v":{"$error":"#REF!"}},{"$f":"IF(Stock!#REF!<>\"\",$H215*W215,\"\")","v":{"$error":"#REF!"}},{"$f":"IF(Stock!#REF!<>\"\",Pilotage!R$27,\"\")","v":{"$error":"#REF!"}},{"$f":"IF(Stock!#REF!<>\"\",ROUND(W215*Y215,0),\"\")","v":{"$error":"#REF!"}},{"$f":"IF(Stock!#REF!<>\"\",$H215*Z215,\"\")","v":{"$error":"#REF!"}}]
[{"$f":"IF(Stock!#REF!<>\"\",Stock!#REF!,\"\")","v":{"$error":"#REF!"}},{"$f":"IF(Stock!#REF!<>\"\",Stock!#REF!,\"\")","v":{"$error":"#REF!"}},{"$f":"IF(Stock!#REF!<>\"\",Stock!#REF!,\"\")","v":{"$error":"#REF!"}},{"$f":"IF(Stock!#REF!<>\"\",SUM(Stock!#REF!,Stock!#REF!,Stock!#REF!),\"\")","v":{"$error":"#REF!"}},{"$f":"IF(Stock!#REF!<>\"\",#REF!*(1+Pilotage!$M$20),\"\")","v":{"$error":"#REF!"}},null,{"$f":"IF(Stock!#REF!<>\"\",IF(Stock!#REF!>0,Stock!#REF!/Stock!#REF!,0),\"\")","v":{"$error":"#REF!"}},{"$f":"IF(Stock!#REF!<>\"\",E216*Pilotage!$D$15,\"\")","v":{"$error":"#REF!"}},{"$f":"IF(Stock!#REF!<>\"\",IF(Stock!#REF!>0,Stock!#REF!,0),\"\")","v":{"$error":"#REF!"}},{"$f":"IF(Stock!#REF!<>\"\",Pilotage!$M$27,\"\")","v":{"$error":"#REF!"}},{"$f":"IF(Stock!#REF!<>\"\",ROUND(Stock!#REF!*J216,0),\"\")","v":{"$error":"#REF!"}},{"$f":"IF(Stock!#REF!<>\"\",$H216*K216,\"\")","v":{"$error":"#REF!"}},{"$f":"IF(Stock!#REF!<>\"\",Pilotage!N$27,\"\")","v":{"$error":"#REF!"}},{"$f":"IF(Stock!#REF!<>\"\",ROUND(K216*M216,0),\"\")","v":{"$error":"#REF!"}},{"$f":"IF(Stock!#REF!<>\"\",$H216*N216,\"\")","v":{"$error":"#REF!"}},{"$f":"IF(Stock!#REF!<>\"\",Pilotage!O$27,\"\")","v":{"$error":"#REF!"}},{"$f":"IF(Stock!#REF!<>\"\",ROUND(K216*P216,0),\"\")","v":{"$error":"#REF!"}},{"$f":"IF(Stock!#REF!<>\"\",$H216*Q216,\"\")","v":{"$error":"#REF!"}},{"$f":"IF(Stock!#REF!<>\"\",Pilotage!P$27,\"\")","v":{"$error":"#REF!"}},{"$f":"IF(Stock!#REF!<>\"\",ROUND(Q216*S216,0),\"\")","v":{"$error":"#REF!"}},{"$f":"IF(Stock!#REF!<>\"\",$H216*T216,\"\")","v":{"$error":"#REF!"}},{"$f":"IF(Stock!#REF!<>\"\",Pilotage!Q$27,\"\")","v":{"$error":"#REF!"}},{"$f":"IF(Stock!#REF!<>\"\",ROUND(T216*V216,0),\"\")","v":{"$error":"#REF!"}},{"$f":"IF(Stock!#REF!<>\"\",$H216*W216,\"\")","v":{"$error":"#REF!"}},{"$f":"IF(Stock!#REF!<>\"\",Pilotage!R$27,\"\")","v":{"$error":"#REF!"}},{"$f":"IF(Stock!#REF!<>\"\",ROUND(W216*Y216,0),\"\")","v":{"$error":"#REF!"}},{"$f":"IF(Stock!#REF!<>\"\",$H216*Z216,\"\")","v":{"$error":"#REF!"}}]
[{"$f":"IF(Stock!#REF!<>\"\",Stock!#REF!,\"\")","v":{"$error":"#REF!"}},{"$f":"IF(Stock!#REF!<>\"\",Stock!#REF!,\"\")","v":{"$error":"#REF!"}},{"$f":"IF(Stock!#REF!<>\"\",Stock!#REF!,\"\")","v":{"$error":"#REF!"}},{"$f":"IF(Stock!#REF!<>\"\",SUM(Stock!#REF!,Stock!#REF!,Stock!#REF!),\"\")","v":{"$error":"#REF!"}},{"$f":"IF(Stock!#REF!<>\"\",#REF!*(1+Pilotage!$M$20),\"\")","v":{"$error":"#REF!"}},null,{"$f":"IF(Stock!#REF!<>\"\",IF(Stock!#REF!>0,Stock!#REF!/Stock!#REF!,0),\"\")","v":{"$error":"#REF!"}},{"$f":"IF(Stock!#REF!<>\"\",E217*Pilotage!$D$15,\"\")","v":{"$error":"#REF!"}},{"$f":"IF(Stock!#REF!<>\"\",IF(Stock!#REF!>0,Stock!#REF!,0),\"\")","v":{"$error":"#REF!"}},{"$f":"IF(Stock!#REF!<>\"\",Pilotage!$M$27,\"\")","v":{"$error":"#REF!"}},{"$f":"IF(Stock!#REF!<>\"\",ROUND(Stock!#REF!*J217,0),\"\")","v":{"$error":"#REF!"}},{"$f":"IF(Stock!#REF!<>\"\",$H217*K217,\"\")","v":{"$error":"#REF!"}},{"$f":"IF(Stock!#REF!<>\"\",Pilotage!N$27,\"\")","v":{"$error":"#REF!"}},{"$f":"IF(Stock!#REF!<>\"\",ROUND(K217*M217,0),\"\")","v":{"$error":"#REF!"}},{"$f":"IF(Stock!#REF!<>\"\",$H217*N217,\"\")","v":{"$error":"#REF!"}},{"$f":"IF(Stock!#REF!<>\"\",Pilotage!O$27,\"\")","v":{"$error":"#REF!"}},{"$f":"IF(Stock!#REF!<>\"\",ROUND(K217*P217,0),\"\")","v":{"$error":"#REF!"}},{"$f":"IF(Stock!#REF!<>\"\",$H217*Q217,\"\")","v":{"$error":"#REF!"}},{"$f":"IF(Stock!#REF!<>\"\",Pilotage!P$27,\"\")","v":{"$error":"#REF!"}},{"$f":"IF(Stock!#REF!<>\"\",ROUND(Q217*S217,0),\"\")","v":{"$error":"#REF!"}},{"$f":"IF(Stock!#REF!<>\"\",$H217*T217,\"\")","v":{"$error":"#REF!"}},{"$f":"IF(Stock!#REF!<>\"\",Pilotage!Q$27,\"\")","v":{"$error":"#REF!"}},{"$f":"IF(Stock!#REF!<>\"\",ROUND(T217*V217,0),\"\")","v":{"$error":"#REF!"}},{"$f":"IF(Stock!#REF!<>\"\",$H217*W217,\"\")","v":{"$error":"#REF!"}},{"$f":"IF(Stock!#REF!<>\"\",Pilotage!R$27,\"\")","v":{"$error":"#REF!"}},{"$f":"IF(Stock!#REF!<>\"\",ROUND(W217*Y217,0),\"\")","v":{"$error":"#REF!"}},{"$f":"IF(Stock!#REF!<>\"\",$H217*Z217,\"\")","v":{"$error":"#REF!"}}]
[{"$f":"IF(Stock!#REF!<>\"\",Stock!#REF!,\"\")","v":{"$error":"#REF!"}},{"$f":"IF(Stock!#REF!<>\"\",Stock!#REF!,\"\")","v":{"$error":"#REF!"}},{"$f":"IF(Stock!#REF!<>\"\",Stock!#REF!,\"\")","v":{"$error":"#REF!"}},{"$f":"IF(Stock!#REF!<>\"\",SUM(Stock!#REF!,Stock!#REF!,Stock!#REF!),\"\")","v":{"$error":"#REF!"}},{"$f":"IF(Stock!#REF!<>\"\",#REF!*(1+Pilotage!$M$20),\"\")","v":{"$error":"#REF!"}},null,{"$f":"IF(Stock!#REF!<>\"\",IF(Stock!#REF!>0,Stock!#REF!/Stock!#REF!,0),\"\")","v":{"$error":"#REF!"}},{"$f":"IF(Stock!#REF!<>\"\",E218*Pilotage!$D$15,\"\")","v":{"$error":"#REF!"}},{"$f":"IF(Stock!#REF!<>\"\",IF(Stock!#REF!>0,Stock!#REF!,0),\"\")","v":{"$error":"#REF!"}},{"$f":"IF(Stock!#REF!<>\"\",Pilotage!$M$27,\"\")","v":{"$error":"#REF!"}},{"$f":"IF(Stock!#REF!<>\"\",ROUND(Stock!#REF!*J218,0),\"\")","v":{"$error":"#REF!"}},{"$f":"IF(Stock!#REF!<>\"\",$H218*K218,\"\")","v":{"$error":"#REF!"}},{"$f":"IF(Stock!#REF!<>\"\",Pilotage!N$27,\"\")","v":{"$error":"#REF!"}},{"$f":"IF(Stock!#REF!<>\"\",ROUND(K218*M218,0),\"\")","v":{"$error":"#REF!"}},{"$f":"IF(Stock!#REF!<>\"\",$H218*N218,\"\")","v":{"$error":"#REF!"}},{"$f":"IF(Stock!#REF!<>\"\",Pilotage!O$27,\"\")","v":{"$error":"#REF!"}},{"$f":"IF(Stock!#REF!<>\"\",ROUND(K218*P218,0),\"\")","v":{"$error":"#REF!"}},{"$f":"IF(Stock!#REF!<>\"\",$H218*Q218,\"\")","v":{"$error":"#REF!"}},{"$f":"IF(Stock!#REF!<>\"\",Pilotage!P$27,\"\")","v":{"$error":"#REF!"}},{"$f":"IF(Stock!#REF!<>\"\",ROUND(Q218*S218,0),\"\")","v":{"$error":"#REF!"}},{"$f":"IF(Stock!#REF!<>\"\",$H218*T218,\"\")","v":{"$error":"#REF!"}},{"$f":"IF(Stock!#REF!<>\"\",Pilotage!Q$27,\"\")","v":{"$error":"#REF!"}},{"$f":"IF(Stock!#REF!<>\"\",ROUND(T218*V218,0),\"\")","v":{"$error":"#REF!"}},{"$f":"IF(Stock!#REF!<>\"\",$H218*W218,\"\")","v":{"$error":"#REF!"}},{"$f":"IF(Stock!#REF!<>\"\",Pilotage!R$27,\"\")","v":{"$error":"#REF!"}},{"$f":"IF(Stock!#REF!<>\"\",ROUND(W218*Y218,0),\"\")","v":{"$error":"#REF!"}},{"$f":"IF(Stock!#REF!<>\"\",$H218*Z218,\"\")","v":{"$error":"#REF!"}}]
[{"$f":"IF(Stock!#REF!<>\"\",Stock!#REF!,\"\")","v":{"$error":"#REF!"}},{"$f":"IF(Stock!#REF!<>\"\",Stock!#REF!,\"\")","v":{"$error":"#REF!"}},{"$f":"IF(Stock!#REF!<>\"\",Stock!#REF!,\"\")","v":{"$error":"#REF!"}},{"$f":"IF(Stock!#REF!<>\"\",SUM(Stock!#REF!,Stock!#REF!,Stock!#REF!),\"\")","v":{"$error":"#REF!"}},{"$f":"IF(Stock!#REF!<>\"\",#REF!*(1+Pilotage!$M$20),\"\")","v":{"$error":"#REF!"}},null,{"$f":"IF(Stock!#REF!<>\"\",IF(Stock!#REF!>0,Stock!#REF!/Stock!#REF!,0),\"\")","v":{"$error":"#REF!"}},{"$f":"IF(Stock!#REF!<>\"\",E219*Pilotage!$D$15,\"\")","v":{"$error":"#REF!"}},{"$f":"IF(Stock!#REF!<>\"\",IF(Stock!#REF!>0,Stock!#REF!,0),\"\")","v":{"$error":"#REF!"}},{"$f":"IF(Stock!#REF!<>\"\",Pilotage!$M$27,\"\")","v":{"$error":"#REF!"}},{"$f":"IF(Stock!#REF!<>\"\",ROUND(Stock!#REF!*J219,0),\"\")","v":{"$error":"#REF!"}},{"$f":"IF(Stock!#REF!<>\"\",$H219*K219,\"\")","v":{"$error":"#REF!"}},{"$f":"IF(Stock!#REF!<>\"\",Pilotage!N$27,\"\")","v":{"$error":"#REF!"}},{"$f":"IF(Stock!#REF!<>\"\",ROUND(K219*M219,0),\"\")","v":{"$error":"#REF!"}},{"$f":"IF(Stock!#REF!<>\"\",$H219*N219,\"\")","v":{"$error":"#REF!"}},{"$f":"IF(Stock!#REF!<>\"\",Pilotage!O$27,\"\")","v":{"$error":"#REF!"}},{"$f":"IF(Stock!#REF!<>\"\",ROUND(K219*P219,0),\"\")","v":{"$error":"#REF!"}},{"$f":"IF(Stock!#REF!<>\"\",$H219*Q219,\"\")","v":{"$error":"#REF!"}},{"$f":"IF(Stock!#REF!<>\"\",Pilotage!P$27,\"\")","v":{"$error":"#REF!"}},{"$f":"IF(Stock!#REF!<>\"\",ROUND(Q219*S219,0),\"\")","v":{"$error":"#REF!"}},{"$f":"IF(Stock!#REF!<>\"\",$H219*T219,\"\")","v":{"$error":"#REF!"}},{"$f":"IF(Stock!#REF!<>\"\",Pilotage!Q$27,\"\")","v":{"$error":"#REF!"}},{"$f":"IF(Stock!#REF!<>\"\",ROUND(T219*V219,0),\"\")","v":{"$error":"#REF!"}},{"$f":"IF(Stock!#REF!<>\"\",$H219*W219,\"\")","v":{"$error":"#REF!"}},{"$f":"IF(Stock!#REF!<>\"\",Pilotage!R$27,\"\")","v":{"$error":"#REF!"}},{"$f":"IF(Stock!#REF!<>\"\",ROUND(W219*Y219,0),\"\")","v":{"$error":"#REF!"}},{"$f":"IF(Stock!#REF!<>\"\",$H219*Z219,\"\")","v":{"$error":"#REF!"}}]
[{"$f":"IF(Stock!#REF!<>\"\",Stock!#REF!,\"\")","v":{"$error":"#REF!"}},{"$f":"IF(Stock!#REF!<>\"\",Stock!#REF!,\"\")","v":{"$error":"#REF!"}},{"$f":"IF(Stock!#REF!<>\"\",Stock!#REF!,\"\")","v":{"$error":"#REF!"}},{"$f":"IF(Stock!#REF!<>\"\",SUM(Stock!#REF!,Stock!#REF!,Stock!#REF!),\"\")","v":{"$error":"#REF!"}},{"$f":"IF(Stock!#REF!<>\"\",#REF!*(1+Pilotage!$M$20),\"\")","v":{"$error":"#REF!"}},null,{"$f":"IF(Stock!#REF!<>\"\",IF(Stock!#REF!>0,Stock!#REF!/Stock!#REF!,0),\"\")","v":{"$error":"#REF!"}},{"$f":"IF(Stock!#REF!<>\"\",E220*Pilotage!$D$15,\"\")","v":{"$error":"#REF!"}},{"$f":"IF(Stock!#REF!<>\"\",IF(Stock!#REF!>0,Stock!#REF!,0),\"\")","v":{"$error":"#REF!"}},{"$f":"IF(Stock!#REF!<>\"\",Pilotage!$M$27,\"\")","v":{"$error":"#REF!"}},{"$f":"IF(Stock!#REF!<>\"\",ROUND(Stock!#REF!*J220,0),\"\")","v":{"$error":"#REF!"}},{"$f":"IF(Stock!#REF!<>\"\",$H220*K220,\"\")","v":{"$error":"#REF!"}},{"$f":"IF(Stock!#REF!<>\"\",Pilotage!N$27,\"\")","v":{"$error":"#REF!"}},{"$f":"IF(Stock!#REF!<>\"\",ROUND(K220*M220,0),\"\")","v":{"$error":"#REF!"}},{"$f":"IF(Stock!#REF!<>\"\",$H220*N220,\"\")","v":{"$error":"#REF!"}},{"$f":"IF(Stock!#REF!<>\"\",Pilotage!O$27,\"\")","v":{"$error":"#REF!"}},{"$f":"IF(Stock!#REF!<>\"\",ROUND(K220*P220,0),\"\")","v":{"$error":"#REF!"}},{"$f":"IF(Stock!#REF!<>\"\",$H220*Q220,\"\")","v":{"$error":"#REF!"}},{"$f":"IF(Stock!#REF!<>\"\",Pilotage!P$27,\"\")","v":{"$error":"#REF!"}},{"$f":"IF(Stock!#REF!<>\"\",ROUND(Q220*S220,0),\"\")","v":{"$error":"#REF!"}},{"$f":"IF(Stock!#REF!<>\"\",$H220*T220,\"\")","v":{"$error":"#REF!"}},{"$f":"IF(Stock!#REF!<>\"\",Pilotage!Q$27,\"\")","v":{"$error":"#REF!"}},{"$f":"IF(Stock!#REF!<>\"\",ROUND(T220*V220,0),\"\")","v":{"$error":"#REF!"}},{"$f":"IF(Stock!#REF!<>\"\",$H220*W220,\"\")","v":{"$error":"#REF!"}},{"$f":"IF(Stock!#REF!<>\"\",Pilotage!R$27,\"\")","v":{"$error":"#REF!"}},{"$f":"IF(Stock!#REF!<>\"\",ROUND(W220*Y220,0),\"\")","v":{"$error":"#REF!"}},{"$f":"IF(Stock!#REF!<>\"\",$H220*Z220,\"\")","v":{"$error":"#REF!"}}]
[{"$f":"IF(Stock!#REF!<>\"\",Stock!#REF!,\"\")","v":{"$error":"#REF!"}},{"$f":"IF(Stock!#REF!<>\"\",Stock!#REF!,\"\")","v":{"$error":"#REF!"}},{"$f":"IF(Stock!#REF!<>\"\",Stock!#REF!,\"\")","v":{"$error":"#REF!"}},{"$f":"IF(Stock!#REF!<>\"\",SUM(Stock!#REF!,Stock!#REF!,Stock!#REF!),\"\")","v":{"$error":"#REF!"}},{"$f":"IF(Stock!#REF!<>\"\",#REF!*(1+Pilotage!$M$20),\"\")","v":{"$error":"#REF!"}},null,{"$f":"IF(Stock!#REF!<>\"\",IF(Stock!#REF!>0,Stock!#REF!/Stock!#REF!,0),\"\")","v":{"$error":"#REF!"}},{"$f":"IF(Stock!#REF!<>\"\",E221*Pilotage!$D$15,\"\")","v":{"$error":"#REF!"}},{"$f":"IF(Stock!#REF!<>\"\",IF(Stock!#REF!>0,Stock!#REF!,0),\"\")","v":{"$error":"#REF!"}},{"$f":"IF(Stock!#REF!<>\"\",Pilotage!$M$27,\"\")","v":{"$error":"#REF!"}},{"$f":"IF(Stock!#REF!<>\"\",ROUND(Stock!#REF!*J221,0),\"\")","v":{"$error":"#REF!"}},{"$f":"IF(Stock!#REF!<>\"\",$H221*K221,\"\")","v":{"$error":"#REF!"}},{"$f":"IF(Stock!#REF!<>\"\",Pilotage!N$27,\"\")","v":{"$error":"#REF!"}},{"$f":"IF(Stock!#REF!<>\"\",ROUND(K221*M221,0),\"\")","v":{"$error":"#REF!"}},{"$f":"IF(Stock!#REF!<>\"\",$H221*N221,\"\")","v":{"$error":"#REF!"}},{"$f":"IF(Stock!#REF!<>\"\",Pilotage!O$27,\"\")","v":{"$error":"#REF!"}},{"$f":"IF(Stock!#REF!<>\"\",ROUND(K221*P221,0),\"\")","v":{"$error":"#REF!"}},{"$f":"IF(Stock!#REF!<>\"\",$H221*Q221,\"\")","v":{"$error":"#REF!"}},{"$f":"IF(Stock!#REF!<>\"\",Pilotage!P$27,\"\")","v":{"$error":"#REF!"}},{"$f":"IF(Stock!#REF!<>\"\",ROUND(Q221*S221,0),\"\")","v":{"$error":"#REF!"}},{"$f":"IF(Stock!#REF!<>\"\",$H221*T221,\"\")","v":{"$error":"#REF!"}},{"$f":"IF(Stock!#REF!<>\"\",Pilotage!Q$27,\"\")","v":{"$error":"#REF!"}},{"$f":"IF(Stock!#REF!<>\"\",ROUND(T221*V221,0),\"\")","v":{"$error":"#REF!"}},{"$f":"IF(Stock!#REF!<>\"\",$H221*W221,\"\")","v":{"$error":"#REF!"}},{"$f":"IF(Stock!#REF!<>\"\",Pilotage!R$27,\"\")","v":{"$error":"#REF!"}},{"$f":"IF(Stock!#REF!<>\"\",ROUND(W221*Y221,0),\"\")","v":{"$error":"#REF!"}},{"$f":"IF(Stock!#REF!<>\"\",$H221*Z221,\"\")","v":{"$error":"#REF!"}}]
[{"$f":"IF(Stock!#REF!<>\"\",Stock!#REF!,\"\")","v":{"$error":"#REF!"}},{"$f":"IF(Stock!#REF!<>\"\",Stock!#REF!,\"\")","v":{"$error":"#REF!"}},{"$f":"IF(Stock!#REF!<>\"\",Stock!#REF!,\"\")","v":{"$error":"#REF!"}},{"$f":"IF(Stock!#REF!<>\"\",SUM(Stock!#REF!,Stock!#REF!,Stock!#REF!),\"\")","v":{"$error":"#REF!"}},{"$f":"IF(Stock!#REF!<>\"\",#REF!*(1+Pilotage!$M$20),\"\")","v":{"$error":"#REF!"}},null,{"$f":"IF(Stock!#REF!<>\"\",IF(Stock!#REF!>0,Stock!#REF!/Stock!#REF!,0),\"\")","v":{"$error":"#REF!"}},{"$f":"IF(Stock!#REF!<>\"\",E222*Pilotage!$D$15,\"\")","v":{"$error":"#REF!"}},{"$f":"IF(Stock!#REF!<>\"\",IF(Stock!#REF!>0,Stock!#REF!,0),\"\")","v":{"$error":"#REF!"}},{"$f":"IF(Stock!#REF!<>\"\",Pilotage!$M$27,\"\")","v":{"$error":"#REF!"}},{"$f":"IF(Stock!#REF!<>\"\",ROUND(Stock!#REF!*J222,0),\"\")","v":{"$error":"#REF!"}},{"$f":"IF(Stock!#REF!<>\"\",$H222*K222,\"\")","v":{"$error":"#REF!"}},{"$f":"IF(Stock!#REF!<>\"\",Pilotage!N$27,\"\")","v":{"$error":"#REF!"}},{"$f":"IF(Stock!#REF!<>\"\",ROUND(K222*M222,0),\"\")","v":{"$error":"#REF!"}},{"$f":"IF(Stock!#REF!<>\"\",$H222*N222,\"\")","v":{"$error":"#REF!"}},{"$f":"IF(Stock!#REF!<>\"\",Pilotage!O$27,\"\")","v":{"$error":"#REF!"}},{"$f":"IF(Stock!#REF!<>\"\",ROUND(K222*P222,0),\"\")","v":{"$error":"#REF!"}},{"$f":"IF(Stock!#REF!<>\"\",$H222*Q222,\"\")","v":{"$error":"#REF!"}},{"$f":"IF(Stock!#REF!<>\"\",Pilotage!P$27,\"\")","v":{"$error":"#REF!"}},{"$f":"IF(Stock!#REF!<>\"\",ROUND(Q222*S222,0),\"\")","v":{"$error":"#REF!"}},{"$f":"IF(Stock!#REF!<>\"\",$H222*T222,\"\")","v":{"$error":"#REF!"}},{"$f":"IF(Stock!#REF!<>\"\",Pilotage!Q$27,\"\")","v":{"$error":"#REF!"}},{"$f":"IF(Stock!#REF!<>\"\",ROUND(T222*V222,0),\"\")","v":{"$error":"#REF!"}},{"$f":"IF(Stock!#REF!<>\"\",$H222*W222,\"\")","v":{"$error":"#REF!"}},{"$f":"IF(Stock!#REF!<>\"\",Pilotage!R$27,\"\")","v":{"$error":"#REF!"}},{"$f":"IF(Stock!#REF!<>\"\",ROUND(W222*Y222,0),\"\")","v":{"$error":"#REF!"}},{"$f":"IF(Stock!#REF!<>\"\",$H222*Z222,\"\")","v":{"$error":"#REF!"}}]
[{"$f":"IF(Stock!#REF!<>\"\",Stock!#REF!,\"\")","v":{"$error":"#REF!"}},{"$f":"IF(Stock!#REF!<>\"\",Stock!#REF!,\"\")","v":{"$error":"#REF!"}},{"$f":"IF(Stock!#REF!<>\"\",Stock!#REF!,\"\")","v":{"$error":"#REF!"}},{"$f":"IF(Stock!#REF!<>\"\",SUM(Stock!#REF!,Stock!#REF!,Stock!#REF!),\"\")","v":{"$error":"#REF!"}},{"$f":"IF(Stock!#REF!<>\"\",#REF!*(1+Pilotage!$M$20),\"\")","v":{"$error":"#REF!"}},null,{"$f":"IF(Stock!#REF!<>\"\",IF(Stock!#REF!>0,Stock!#REF!/Stock!#REF!,0),\"\")","v":{"$error":"#REF!"}},{"$f":"IF(Stock!#REF!<>\"\",E223*Pilotage!$D$15,\"\")","v":{"$error":"#REF!"}},{"$f":"IF(Stock!#REF!<>\"\",IF(Stock!#REF!>0,Stock!#REF!,0),\"\")","v":{"$error":"#REF!"}},{"$f":"IF(Stock!#REF!<>\"\",Pilotage!$M$27,\"\")","v":{"$error":"#REF!"}},{"$f":"IF(Stock!#REF!<>\"\",ROUND(Stock!#REF!*J223,0),\"\")","v":{"$error":"#REF!"}},{"$f":"IF(Stock!#REF!<>\"\",$H223*K223,\"\")","v":{"$error":"#REF!"}},{"$f":"IF(Stock!#REF!<>\"\",Pilotage!N$27,\"\")","v":{"$error":"#REF!"}},{"$f":"IF(Stock!#REF!<>\"\",ROUND(K223*M223,0),\"\")","v":{"$error":"#REF!"}},{"$f":"IF(Stock!#REF!<>\"\",$H223*N223,\"\")","v":{"$error":"#REF!"}},{"$f":"IF(Stock!#REF!<>\"\",Pilotage!O$27,\"\")","v":{"$error":"#REF!"}},{"$f":"IF(Stock!#REF!<>\"\",ROUND(K223*P223,0),\"\")","v":{"$error":"#REF!"}},{"$f":"IF(Stock!#REF!<>\"\",$H223*Q223,\"\")","v":{"$error":"#REF!"}},{"$f":"IF(Stock!#REF!<>\"\",Pilotage!P$27,\"\")","v":{"$error":"#REF!"}},{"$f":"IF(Stock!#REF!<>\"\",ROUND(Q223*S223,0),\"\")","v":{"$error":"#REF!"}},{"$f":"IF(Stock!#REF!<>\"\",$H223*T223,\"\")","v":{"$error":"#REF!"}},{"$f":"IF(Stock!#REF!<>\"\",Pilotage!Q$27,\"\")","v":{"$error":"#REF!"}},{"$f":"IF(Stock!#REF!<>\"\",ROUND(T223*V223,0),\"\")","v":{"$error":"#REF!"}},{"$f":"IF(Stock!#REF!<>\"\",$H223*W223,\"\")","v":{"$error":"#REF!"}},{"$f":"IF(Stock!#REF!<>\"\",Pilotage!R$27,\"\")","v":{"$error":"#REF!"}},{"$f":"IF(Stock!#REF!<>\"\",ROUND(W223*Y223,0),\"\")","v":{"$error":"#REF!"}},{"$f":"IF(Stock!#REF!<>\"\",$H223*Z223,\"\")","v":{"$error":"#REF!"}}]
[{"$f":"IF(Stock!#REF!<>\"\",Stock!#REF!,\"\")","v":{"$error":"#REF!"}},{"$f":"IF(Stock!#REF!<>\"\",Stock!#REF!,\"\")","v":{"$error":"#REF!"}},{"$f":"IF(Stock!#REF!<>\"\",Stock!#REF!,\"\")","v":{"$error":"#REF!"}},{"$f":"IF(Stock!#REF!<>\"\",SUM(Stock!#REF!,Stock!#REF!,Stock!#REF!),\"\")","v":{"$error":"#REF!"}},{"$f":"IF(Stock!#REF!<>\"\",#REF!*(1+Pilotage!$M$20),\"\")","v":{"$error":"#REF!"}},null,{"$f":"IF(Stock!#REF!<>\"\",IF(Stock!#REF!>0,Stock!#REF!/Stock!#REF!,0),\"\")","v":{"$error":"#REF!"}},{"$f":"IF(Stock!#REF!<>\"\",E224*Pilotage!$D$15,\"\")","v":{"$error":"#REF!"}},{"$f":"IF(Stock!#REF!<>\"\",IF(Stock!#REF!>0,Stock!#REF!,0),\"\")","v":{"$error":"#REF!"}},{"$f":"IF(Stock!#REF!<>\"\",Pilotage!$M$27,\"\")","v":{"$error":"#REF!"}},{"$f":"IF(Stock!#REF!<>\"\",ROUND(Stock!#REF!*J224,0),\"\")","v":{"$error":"#REF!"}},{"$f":"IF(Stock!#REF!<>\"\",$H224*K224,\"\")","v":{"$error":"#REF!"}},{"$f":"IF(Stock!#REF!<>\"\",Pilotage!N$27,\"\")","v":{"$error":"#REF!"}},{"$f":"IF(Stock!#REF!<>\"\",ROUND(K224*M224,0),\"\")","v":{"$error":"#REF!"}},{"$f":"IF(Stock!#REF!<>\"\",$H224*N224,\"\")","v":{"$error":"#REF!"}},{"$f":"IF(Stock!#REF!<>\"\",Pilotage!O$27,\"\")","v":{"$error":"#REF!"}},{"$f":"IF(Stock!#REF!<>\"\",ROUND(K224*P224,0),\"\")","v":{"$error":"#REF!"}},{"$f":"IF(Stock!#REF!<>\"\",$H224*Q224,\"\")","v":{"$error":"#REF!"}},{"$f":"IF(Stock!#REF!<>\"\",Pilotage!P$27,\"\")","v":{"$error":"#REF!"}},{"$f":"IF(Stock!#REF!<>\"\",ROUND(Q224*S224,0),\"\")","v":{"$error":"#REF!"}},{"$f":"IF(Stock!#REF!<>\"\",$H224*T224,\"\")","v":{"$error":"#REF!"}},{"$f":"IF(Stock!#REF!<>\"\",Pilotage!Q$27,\"\")","v":{"$error":"#REF!"}},{"$f":"IF(Stock!#REF!<>\"\",ROUND(T224*V224,0),\"\")","v":{"$error":"#REF!"}},{"$f":"IF(Stock!#REF!<>\"\",$H224*W224,\"\")","v":{"$error":"#REF!"}},{"$f":"IF(Stock!#REF!<>\"\",Pilotage!R$27,\"\")","v":{"$error":"#REF!"}},{"$f":"IF(Stock!#REF!<>\"\",ROUND(W224*Y224,0),\"\")","v":{"$error":"#REF!"}},{"$f":"IF(Stock!#REF!<>\"\",$H224*Z224,\"\")","v":{"$error":"#REF!"}}]
[{"$f":"IF(Stock!#REF!<>\"\",Stock!#REF!,\"\")","v":{"$error":"#REF!"}},{"$f":"IF(Stock!#REF!<>\"\",Stock!#REF!,\"\")","v":{"$error":"#REF!"}},{"$f":"IF(Stock!#REF!<>\"\",Stock!#REF!,\"\")","v":{"$error":"#REF!"}},{"$f":"IF(Stock!#REF!<>\"\",SUM(Stock!#REF!,Stock!#REF!,Stock!#REF!),\"\")","v":{"$error":"#REF!"}},{"$f":"IF(Stock!#REF!<>\"\",#REF!*(1+Pilotage!$M$20),\"\")","v":{"$error":"#REF!"}},null,{"$f":"IF(Stock!#REF!<>\"\",IF(Stock!#REF!>0,Stock!#REF!/Stock!#REF!,0),\"\")","v":{"$error":"#REF!"}},{"$f":"IF(Stock!#REF!<>\"\",E225*Pilotage!$D$15,\"\")","v":{"$error":"#REF!"}},{"$f":"IF(Stock!#REF!<>\"\",IF(Stock!#REF!>0,Stock!#REF!,0),\"\")","v":{"$error":"#REF!"}},{"$f":"IF(Stock!#REF!<>\"\",Pilotage!$M$27,\"\")","v":{"$error":"#REF!"}},{"$f":"IF(Stock!#REF!<>\"\",ROUND(Stock!#REF!*J225,0),\"\")","v":{"$error":"#REF!"}},{"$f":"IF(Stock!#REF!<>\"\",$H225*K225,\"\")","v":{"$error":"#REF!"}},{"$f":"IF(Stock!#REF!<>\"\",Pilotage!N$27,\"\")","v":{"$error":"#REF!"}},{"$f":"IF(Stock!#REF!<>\"\",ROUND(K225*M225,0),\"\")","v":{"$error":"#REF!"}},{"$f":"IF(Stock!#REF!<>\"\",$H225*N225,\"\")","v":{"$error":"#REF!"}},{"$f":"IF(Stock!#REF!<>\"\",Pilotage!O$27,\"\")","v":{"$error":"#REF!"}},{"$f":"IF(Stock!#REF!<>\"\",ROUND(K225*P225,0),\"\")","v":{"$error":"#REF!"}},{"$f":"IF(Stock!#REF!<>\"\",$H225*Q225,\"\")","v":{"$error":"#REF!"}},{"$f":"IF(Stock!#REF!<>\"\",Pilotage!P$27,\"\")","v":{"$error":"#REF!"}},{"$f":"IF(Stock!#REF!<>\"\",ROUND(Q225*S225,0),\"\")","v":{"$error":"#REF!"}},{"$f":"IF(Stock!#REF!<>\"\",$H225*T225,\"\")","v":{"$error":"#REF!"}},{"$f":"IF(Stock!#REF!<>\"\",Pilotage!Q$27,\"\")","v":{"$error":"#REF!"}},{"$f":"IF(Stock!#REF!<>\"\",ROUND(T225*V225,0),\"\")","v":{"$error":"#REF!"}},{"$f":"IF(Stock!#REF!<>\"\",$H225*W225,\"\")","v":{"$error":"#REF!"}},{"$f":"IF(Stock!#REF!<>\"\",Pilotage!R$27,\"\")","v":{"$error":"#REF!"}},{"$f":"IF(Stock!#REF!<>\"\",ROUND(W225*Y225,0),\"\")","v":{"$error":"#REF!"}},{"$f":"IF(Stock!#REF!<>\"\",$H225*Z225,\"\")","v":{"$error":"#REF!"}}]
[{"$f":"IF(Stock!#REF!<>\"\",Stock!#REF!,\"\")","v":{"$error":"#REF!"}},{"$f":"IF(Stock!#REF!<>\"\",Stock!#REF!,\"\")","v":{"$error":"#REF!"}},{"$f":"IF(Stock!#REF!<>\"\",Stock!#REF!,\"\")","v":{"$error":"#REF!"}},{"$f":"IF(Stock!#REF!<>\"\",SUM(Stock!#REF!,Stock!#REF!,Stock!#REF!),\"\")","v":{"$error":"#REF!"}},{"$f":"IF(Stock!#REF!<>\"\",#REF!*(1+Pilotage!$M$20),\"\")","v":{"$error":"#REF!"}},null,{"$f":"IF(Stock!#REF!<>\"\",IF(Stock!#REF!>0,Stock!#REF!/Stock!#REF!,0),\"\")","v":{"$error":"#REF!"}},{"$f":"IF(Stock!#REF!<>\"\",E226*Pilotage!$D$15,\"\")","v":{"$error":"#REF!"}},{"$f":"IF(Stock!#REF!<>\"\",IF(Stock!#REF!>0,Stock!#REF!,0),\"\")","v":{"$error":"#REF!"}},{"$f":"IF(Stock!#REF!<>\"\",Pilotage!$M$27,\"\")","v":{"$error":"#REF!"}},{"$f":"IF(Stock!#REF!<>\"\",ROUND(Stock!#REF!*J226,0),\"\")","v":{"$error":"#REF!"}},{"$f":"IF(Stock!#REF!<>\"\",$H226*K226,\"\")","v":{"$error":"#REF!"}},{"$f":"IF(Stock!#REF!<>\"\",Pilotage!N$27,\"\")","v":{"$error":"#REF!"}},{"$f":"IF(Stock!#REF!<>\"\",ROUND(K226*M226,0),\"\")","v":{"$error":"#REF!"}},{"$f":"IF(Stock!#REF!<>\"\",$H226*N226,\"\")","v":{"$error":"#REF!"}},{"$f":"IF(Stock!#REF!<>\"\",Pilotage!O$27,\"\")","v":{"$error":"#REF!"}},{"$f":"IF(Stock!#REF!<>\"\",ROUND(K226*P226,0),\"\")","v":{"$error":"#REF!"}},{"$f":"IF(Stock!#REF!<>\"\",$H226*Q226,\"\")","v":{"$error":"#REF!"}},{"$f":"IF(Stock!#REF!<>\"\",Pilotage!P$27,\"\")","v":{"$error":"#REF!"}},{"$f":"IF(Stock!#REF!<>\"\",ROUND(Q226*S226,0),\"\")","v":{"$error":"#REF!"}},{"$f":"IF(Stock!#REF!<>\"\",$H226*T226,\"\")","v":{"$error":"#REF!"}},{"$f":"IF(Stock!#REF!<>\"\",Pilotage!Q$27,\"\")","v":{"$error":"#REF!"}},{"$f":"IF(Stock!#REF!<>\"\",ROUND(T226*V226,0),\"\")","v":{"$error":"#REF!"}},{"$f":"IF(Stock!#REF!<>\"\",$H226*W226,\"\")","v":{"$error":"#REF!"}},{"$f":"IF(Stock!#REF!<>\"\",Pilotage!R$27,\"\")","v":{"$error":"#REF!"}},{"$f":"IF(Stock!#REF!<>\"\",ROUND(W226*Y226,0),\"\")","v":{"$error":"#REF!"}},{"$f":"IF(Stock!#REF!<>\"\",$H226*Z226,\"\")","v":{"$error":"#REF!"}}]
[{"$f":"IF(Stock!#REF!<>\"\",Stock!#REF!,\"\")","v":{"$error":"#REF!"}},{"$f":"IF(Stock!#REF!<>\"\",Stock!#REF!,\"\")","v":{"$error":"#REF!"}},{"$f":"IF(Stock!#REF!<>\"\",Stock!#REF!,\"\")","v":{"$error":"#REF!"}},{"$f":"IF(Stock!#REF!<>\"\",SUM(Stock!#REF!,Stock!#REF!,Stock!#REF!),\"\")","v":{"$error":"#REF!"}},{"$f":"IF(Stock!#REF!<>\"\",#REF!*(1+Pilotage!$M$20),\"\")","v":{"$error":"#REF!"}},null,{"$f":"IF(Stock!#REF!<>\"\",IF(Stock!#REF!>0,Stock!#REF!/Stock!#REF!,0),\"\")","v":{"$error":"#REF!"}},{"$f":"IF(Stock!#REF!<>\"\",E227*Pilotage!$D$15,\"\")","v":{"$error":"#REF!"}},{"$f":"IF(Stock!#REF!<>\"\",IF(Stock!#REF!>0,Stock!#REF!,0),\"\")","v":{"$error":"#REF!"}},{"$f":"IF(Stock!#REF!<>\"\",Pilotage!$M$27,\"\")","v":{"$error":"#REF!"}},{"$f":"IF(Stock!#REF!<>\"\",ROUND(Stock!#REF!*J227,0),\"\")","v":{"$error":"#REF!"}},{"$f":"IF(Stock!#REF!<>\"\",$H227*K227,\"\")","v":{"$error":"#REF!"}},{"$f":"IF(Stock!#REF!<>\"\",Pilotage!N$27,\"\")","v":{"$error":"#REF!"}},{"$f":"IF(Stock!#REF!<>\"\",ROUND(K227*M227,0),\"\")","v":{"$error":"#REF!"}},{"$f":"IF(Stock!#REF!<>\"\",$H227*N227,\"\")","v":{"$error":"#REF!"}},{"$f":"IF(Stock!#REF!<>\"\",Pilotage!O$27,\"\")","v":{"$error":"#REF!"}},{"$f":"IF(Stock!#REF!<>\"\",ROUND(K227*P227,0),\"\")","v":{"$error":"#REF!"}},{"$f":"IF(Stock!#REF!<>\"\",$H227*Q227,\"\")","v":{"$error":"#REF!"}},{"$f":"IF(Stock!#REF!<>\"\",Pilotage!P$27,\"\")","v":{"$error":"#REF!"}},{"$f":"IF(Stock!#REF!<>\"\",ROUND(Q227*S227,0),\"\")","v":{"$error":"#REF!"}},{"$f":"IF(Stock!#REF!<>\"\",$H227*T227,\"\")","v":{"$error":"#REF!"}},{"$f":"IF(Stock!#REF!<>\"\",Pilotage!Q$27,\"\")","v":{"$error":"#REF!"}},{"$f":"IF(Stock!#REF!<>\"\",ROUND(T227*V227,0),\"\")","v":{"$error":"#REF!"}},{"$f":"IF(Stock!#REF!<>\"\",$H227*W227,\"\")","v":{"$error":"#REF!"}},{"$f":"IF(Stock!#REF!<>\"\",Pilotage!R$27,\"\")","v":{"$error":"#REF!"}},{"$f":"IF(Stock!#REF!<>\"\",ROUND(W227*Y227,0),\"\")","v":{"$error":"#REF!"}},{"$f":"IF(Stock!#REF!<>\"\",$H227*Z227,\"\")","v":{"$error":"#REF!"}}]
[{"$f":"IF(Stock!#REF!<>\"\",Stock!#REF!,\"\")","v":{"$error":"#REF!"}},{"$f":"IF(Stock!#REF!<>\"\",Stock!#REF!,\"\")","v":{"$error":"#REF!"}},{"$f":"IF(Stock!#REF!<>\"\",Stock!#REF!,\"\")","v":{"$error":"#REF!"}},{"$f":"IF(Stock!#REF!<>\"\",SUM(Stock!#REF!,Stock!#REF!,Stock!#REF!),\"\")","v":{"$error":"#REF!"}},{"$f":"IF(Stock!#REF!<>\"\",#REF!*(1+Pilotage!$M$20),\"\")","v":{"$error":"#REF!"}},null,{"$f":"IF(Stock!#REF!<>\"\",IF(Stock!#REF!>0,Stock!#REF!/Stock!#REF!,0),\"\")","v":{"$error":"#REF!"}},{"$f":"IF(Stock!#REF!<>\"\",E228*Pilotage!$D$15,\"\")","v":{"$error":"#REF!"}},{"$f":"IF(Stock!#REF!<>\"\",IF(Stock!#REF!>0,Stock!#REF!,0),\"\")","v":{"$error":"#REF!"}},{"$f":"IF(Stock!#REF!<>\"\",Pilotage!$M$27,\"\")","v":{"$error":"#REF!"}},{"$f":"IF(Stock!#REF!<>\"\",ROUND(Stock!#REF!*J228,0),\"\")","v":{"$error":"#REF!"}},{"$f":"IF(Stock!#REF!<>\"\",$H228*K228,\"\")","v":{"$error":"#REF!"}},{"$f":"IF(Stock!#REF!<>\"\",Pilotage!N$27,\"\")","v":{"$error":"#REF!"}},{"$f":"IF(Stock!#REF!<>\"\",ROUND(K228*M228,0),\"\")","v":{"$error":"#REF!"}},{"$f":"IF(Stock!#REF!<>\"\",$H228*N228,\"\")","v":{"$error":"#REF!"}},{"$f":"IF(Stock!#REF!<>\"\",Pilotage!O$27,\"\")","v":{"$error":"#REF!"}},{"$f":"IF(Stock!#REF!<>\"\",ROUND(K228*P228,0),\"\")","v":{"$error":"#REF!"}},{"$f":"IF(Stock!#REF!<>\"\",$H228*Q228,\"\")","v":{"$error":"#REF!"}},{"$f":"IF(Stock!#REF!<>\"\",Pilotage!P$27,\"\")","v":{"$error":"#REF!"}},{"$f":"IF(Stock!#REF!<>\"\",ROUND(Q228*S228,0),\"\")","v":{"$error":"#REF!"}},{"$f":"IF(Stock!#REF!<>\"\",$H228*T228,\"\")","v":{"$error":"#REF!"}},{"$f":"IF(Stock!#REF!<>\"\",Pilotage!Q$27,\"\")","v":{"$error":"#REF!"}},{"$f":"IF(Stock!#REF!<>\"\",ROUND(T228*V228,0),\"\")","v":{"$error":"#REF!"}},{"$f":"IF(Stock!#REF!<>\"\",$H228*W228,\"\")","v":{"$error":"#REF!"}},{"$f":"IF(Stock!#REF!<>\"\",Pilotage!R$27,\"\")","v":{"$error":"#REF!"}},{"$f":"IF(Stock!#REF!<>\"\",ROUND(W228*Y228,0),\"\")","v":{"$error":"#REF!"}},{"$f":"IF(Stock!#REF!<>\"\",$H228*Z228,\"\")","v":{"$error":"#REF!"}}]
[{"$f":"IF(Stock!#REF!<>\"\",Stock!#REF!,\"\")","v":{"$error":"#REF!"}},{"$f":"IF(Stock!#REF!<>\"\",Stock!#REF!,\"\")","v":{"$error":"#REF!"}},{"$f":"IF(Stock!#REF!<>\"\",Stock!#REF!,\"\")","v":{"$error":"#REF!"}},{"$f":"IF(Stock!#REF!<>\"\",SUM(Stock!#REF!,Stock!#REF!,Stock!#REF!),\"\")","v":{"$error":"#REF!"}},{"$f":"IF(Stock!#REF!<>\"\",#REF!*(1+Pilotage!$M$20),\"\")","v":{"$error":"#REF!"}},null,{"$f":"IF(Stock!#REF!<>\"\",IF(Stock!#REF!>0,Stock!#REF!/Stock!#REF!,0),\"\")","v":{"$error":"#REF!"}},{"$f":"IF(Stock!#REF!<>\"\",E229*Pilotage!$D$15,\"\")","v":{"$error":"#REF!"}},{"$f":"IF(Stock!#REF!<>\"\",IF(Stock!#REF!>0,Stock!#REF!,0),\"\")","v":{"$error":"#REF!"}},{"$f":"IF(Stock!#REF!<>\"\",Pilotage!$M$27,\"\")","v":{"$error":"#REF!"}},{"$f":"IF(Stock!#REF!<>\"\",ROUND(Stock!#REF!*J229,0),\"\")","v":{"$error":"#REF!"}},{"$f":"IF(Stock!#REF!<>\"\",$H229*K229,\"\")","v":{"$error":"#REF!"}},{"$f":"IF(Stock!#REF!<>\"\",Pilotage!N$27,\"\")","v":{"$error":"#REF!"}},{"$f":"IF(Stock!#REF!<>\"\",ROUND(K229*M229,0),\"\")","v":{"$error":"#REF!"}},{"$f":"IF(Stock!#REF!<>\"\",$H229*N229,\"\")","v":{"$error":"#REF!"}},{"$f":"IF(Stock!#REF!<>\"\",Pilotage!O$27,\"\")","v":{"$error":"#REF!"}},{"$f":"IF(Stock!#REF!<>\"\",ROUND(K229*P229,0),\"\")","v":{"$error":"#REF!"}},{"$f":"IF(Stock!#REF!<>\"\",$H229*Q229,\"\")","v":{"$error":"#REF!"}},{"$f":"IF(Stock!#REF!<>\"\",Pilotage!P$27,\"\")","v":{"$error":"#REF!"}},{"$f":"IF(Stock!#REF!<>\"\",ROUND(Q229*S229,0),\"\")","v":{"$error":"#REF!"}},{"$f":"IF(Stock!#REF!<>\"\",$H229*T229,\"\")","v":{"$error":"#REF!"}},{"$f":"IF(Stock!#REF!<>\"\",Pilotage!Q$27,\"\")","v":{"$error":"#REF!"}},{"$f":"IF(Stock!#REF!<>\"\",ROUND(T229*V229,0),\"\")","v":{"$error":"#REF!"}},{"$f":"IF(Stock!#REF!<>\"\",$H229*W229,\"\")","v":{"$error":"#REF!"}},{"$f":"IF(Stock!#REF!<>\"\",Pilotage!R$27,\"\")","v":{"$error":"#REF!"}},{"$f":"IF(Stock!#REF!<>\"\",ROUND(W229*Y229,0),\"\")","v":{"$error":"#REF!"}},{"$f":"IF(Stock!#REF!<>\"\",$H229*Z229,\"\")","v":{"$error":"#REF!"}}]
[{"$f":"IF(Stock!#REF!<>\"\",Stock!#REF!,\"\")","v":{"$error":"#REF!"}},{"$f":"IF(Stock!#REF!<>\"\",Stock!#REF!,\"\")","v":{"$error":"#REF!"}},{"$f":"IF(Stock!#REF!<>\"\",Stock!#REF!,\"\")","v":{"$error":"#REF!"}},{"$f":"IF(Stock!#REF!<>\"\",SUM(Stock!#REF!,Stock!#REF!,Stock!#REF!),\"\")","v":{"$error":"#REF!"}},{"$f":"IF(Stock!#REF!<>\"\",#REF!*(1+Pilotage!$M$20),\"\")","v":{"$error":"#REF!"}},null,{"$f":"IF(Stock!#REF!<>\"\",IF(Stock!#REF!>0,Stock!#REF!/Stock!#REF!,0),\"\")","v":{"$error":"#REF!"}},{"$f":"IF(Stock!#REF!<>\"\",E230*Pilotage!$D$15,\"\")","v":{"$error":"#REF!"}},{"$f":"IF(Stock!#REF!<>\"\",IF(Stock!#REF!>0,Stock!#REF!,0),\"\")","v":{"$error":"#REF!"}},{"$f":"IF(Stock!#REF!<>\"\",Pilotage!$M$27,\"\")","v":{"$error":"#REF!"}},{"$f":"IF(Stock!#REF!<>\"\",ROUND(Stock!#REF!*J230,0),\"\")","v":{"$error":"#REF!"}},{"$f":"IF(Stock!#REF!<>\"\",$H230*K230,\"\")","v":{"$error":"#REF!"}},{"$f":"IF(Stock!#REF!<>\"\",Pilotage!N$27,\"\")","v":{"$error":"#REF!"}},{"$f":"IF(Stock!#REF!<>\"\",ROUND(K230*M230,0),\"\")","v":{"$error":"#REF!"}},{"$f":"IF(Stock!#REF!<>\"\",$H230*N230,\"\")","v":{"$error":"#REF!"}},{"$f":"IF(Stock!#REF!<>\"\",Pilotage!O$27,\"\")","v":{"$error":"#REF!"}},{"$f":"IF(Stock!#REF!<>\"\",ROUND(K230*P230,0),\"\")","v":{"$error":"#REF!"}},{"$f":"IF(Stock!#REF!<>\"\",$H230*Q230,\"\")","v":{"$error":"#REF!"}},{"$f":"IF(Stock!#REF!<>\"\",Pilotage!P$27,\"\")","v":{"$error":"#REF!"}},{"$f":"IF(Stock!#REF!<>\"\",ROUND(Q230*S230,0),\"\")","v":{"$error":"#REF!"}},{"$f":"IF(Stock!#REF!<>\"\",$H230*T230,\"\")","v":{"$error":"#REF!"}},{"$f":"IF(Stock!#REF!<>\"\",Pilotage!Q$27,\"\")","v":{"$error":"#REF!"}},{"$f":"IF(Stock!#REF!<>\"\",ROUND(T230*V230,0),\"\")","v":{"$error":"#REF!"}},{"$f":"IF(Stock!#REF!<>\"\",$H230*W230,\"\")","v":{"$error":"#REF!"}},{"$f":"IF(Stock!#REF!<>\"\",Pilotage!R$27,\"\")","v":{"$error":"#REF!"}},{"$f":"IF(Stock!#REF!<>\"\",ROUND(W230*Y230,0),\"\")","v":{"$error":"#REF!"}},{"$f":"IF(Stock!#REF!<>\"\",$H230*Z230,\"\")","v":{"$error":"#REF!"}}]
[{"$f":"IF(Stock!#REF!<>\"\",Stock!#REF!,\"\")","v":{"$error":"#REF!"}},{"$f":"IF(Stock!#REF!<>\"\",Stock!#REF!,\"\")","v":{"$error":"#REF!"}},{"$f":"IF(Stock!#REF!<>\"\",Stock!#REF!,\"\")","v":{"$error":"#REF!"}},{"$f":"IF(Stock!#REF!<>\"\",SUM(Stock!#REF!,Stock!#REF!,Stock!#REF!),\"\")","v":{"$error":"#REF!"}},{"$f":"IF(Stock!#REF!<>\"\",#REF!*(1+Pilotage!$M$20),\"\")","v":{"$error":"#REF!"}},null,{"$f":"IF(Stock!#REF!<>\"\",IF(Stock!#REF!>0,Stock!#REF!/Stock!#REF!,0),\"\")","v":{"$error":"#REF!"}},{"$f":"IF(Stock!#REF!<>\"\",E231*Pilotage!$D$15,\"\")","v":{"$error":"#REF!"}},{"$f":"IF(Stock!#REF!<>\"\",IF(Stock!#REF!>0,Stock!#REF!,0),\"\")","v":{"$error":"#REF!"}},{"$f":"IF(Stock!#REF!<>\"\",Pilotage!$M$27,\"\")","v":{"$error":"#REF!"}},{"$f":"IF(Stock!#REF!<>\"\",ROUND(Stock!#REF!*J231,0),\"\")","v":{"$error":"#REF!"}},{"$f":"IF(Stock!#REF!<>\"\",$H231*K231,\"\")","v":{"$error":"#REF!"}},{"$f":"IF(Stock!#REF!<>\"\",Pilotage!N$27,\"\")","v":{"$error":"#REF!"}},{"$f":"IF(Stock!#REF!<>\"\",ROUND(K231*M231,0),\"\")","v":{"$error":"#REF!"}},{"$f":"IF(Stock!#REF!<>\"\",$H231*N231,\"\")","v":{"$error":"#REF!"}},{"$f":"IF(Stock!#REF!<>\"\",Pilotage!O$27,\"\")","v":{"$error":"#REF!"}},{"$f":"IF(Stock!#REF!<>\"\",ROUND(K231*P231,0),\"\")","v":{"$error":"#REF!"}},{"$f":"IF(Stock!#REF!<>\"\",$H231*Q231,\"\")","v":{"$error":"#REF!"}},{"$f":"IF(Stock!#REF!<>\"\",Pilotage!P$27,\"\")","v":{"$error":"#REF!"}},{"$f":"IF(Stock!#REF!<>\"\",ROUND(Q231*S231,0),\"\")","v":{"$error":"#REF!"}},{"$f":"IF(Stock!#REF!<>\"\",$H231*T231,\"\")","v":{"$error":"#REF!"}},{"$f":"IF(Stock!#REF!<>\"\",Pilotage!Q$27,\"\")","v":{"$error":"#REF!"}},{"$f":"IF(Stock!#REF!<>\"\",ROUND(T231*V231,0),\"\")","v":{"$error":"#REF!"}},{"$f":"IF(Stock!#REF!<>\"\",$H231*W231,\"\")","v":{"$error":"#REF!"}},{"$f":"IF(Stock!#REF!<>\"\",Pilotage!R$27,\"\")","v":{"$error":"#REF!"}},{"$f":"IF(Stock!#REF!<>\"\",ROUND(W231*Y231,0),\"\")","v":{"$error":"#REF!"}},{"$f":"IF(Stock!#REF!<>\"\",$H231*Z231,\"\")","v":{"$error":"#REF!"}}]
[{"$f":"IF(Stock!#REF!<>\"\",Stock!#REF!,\"\")","v":{"$error":"#REF!"}},{"$f":"IF(Stock!#REF!<>\"\",Stock!#REF!,\"\")","v":{"$error":"#REF!"}},{"$f":"IF(Stock!#REF!<>\"\",Stock!#REF!,\"\")","v":{"$error":"#REF!"}},{"$f":"IF(Stock!#REF!<>\"\",SUM(Stock!#REF!,Stock!#REF!,Stock!#REF!),\"\")","v":{"$error":"#REF!"}},{"$f":"IF(Stock!#REF!<>\"\",#REF!*(1+Pilotage!$M$20),\"\")","v":{"$error":"#REF!"}},null,{"$f":"IF(Stock!#REF!<>\"\",IF(Stock!#REF!>0,Stock!#REF!/Stock!#REF!,0),\"\")","v":{"$error":"#REF!"}},{"$f":"IF(Stock!#REF!<>\"\",E232*Pilotage!$D$15,\"\")","v":{"$error":"#REF!"}},{"$f":"IF(Stock!#REF!<>\"\",IF(Stock!#REF!>0,Stock!#REF!,0),\"\")","v":{"$error":"#REF!"}},{"$f":"IF(Stock!#REF!<>\"\",Pilotage!$M$27,\"\")","v":{"$error":"#REF!"}},{"$f":"IF(Stock!#REF!<>\"\",ROUND(Stock!#REF!*J232,0),\"\")","v":{"$error":"#REF!"}},{"$f":"IF(Stock!#REF!<>\"\",$H232*K232,\"\")","v":{"$error":"#REF!"}},{"$f":"IF(Stock!#REF!<>\"\",Pilotage!N$27,\"\")","v":{"$error":"#REF!"}},{"$f":"IF(Stock!#REF!<>\"\",ROUND(K232*M232,0),\"\")","v":{"$error":"#REF!"}},{"$f":"IF(Stock!#REF!<>\"\",$H232*N232,\"\")","v":{"$error":"#REF!"}},{"$f":"IF(Stock!#REF!<>\"\",Pilotage!O$27,\"\")","v":{"$error":"#REF!"}},{"$f":"IF(Stock!#REF!<>\"\",ROUND(K232*P232,0),\"\")","v":{"$error":"#REF!"}},{"$f":"IF(Stock!#REF!<>\"\",$H232*Q232,\"\")","v":{"$error":"#REF!"}},{"$f":"IF(Stock!#REF!<>\"\",Pilotage!P$27,\"\")","v":{"$error":"#REF!"}},{"$f":"IF(Stock!#REF!<>\"\",ROUND(Q232*S232,0),\"\")","v":{"$error":"#REF!"}},{"$f":"IF(Stock!#REF!<>\"\",$H232*T232,\"\")","v":{"$error":"#REF!"}},{"$f":"IF(Stock!#REF!<>\"\",Pilotage!Q$27,\"\")","v":{"$error":"#REF!"}},{"$f":"IF(Stock!#REF!<>\"\",ROUND(T232*V232,0),\"\")","v":{"$error":"#REF!"}},{"$f":"IF(Stock!#REF!<>\"\",$H232*W232,\"\")","v":{"$error":"#REF!"}},{"$f":"IF(Stock!#REF!<>\"\",Pilotage!R$27,\"\")","v":{"$error":"#REF!"}},{"$f":"IF(Stock!#REF!<>\"\",ROUND(W232*Y232,0),\"\")","v":{"$error":"#REF!"}},{"$f":"IF(Stock!#REF!<>\"\",$H232*Z232,\"\")","v":{"$error":"#REF!"}}]
[{"$f":"IF(Stock!#REF!<>\"\",Stock!#REF!,\"\")","v":{"$error":"#REF!"}},{"$f":"IF(Stock!#REF!<>\"\",Stock!#REF!,\"\")","v":{"$error":"#REF!"}},{"$f":"IF(Stock!#REF!<>\"\",Stock!#REF!,\"\")","v":{"$error":"#REF!"}},{"$f":"IF(Stock!#REF!<>\"\",SUM(Stock!#REF!,Stock!#REF!,Stock!#REF!),\"\")","v":{"$error":"#REF!"}},{"$f":"IF(Stock!#REF!<>\"\",#REF!*(1+Pilotage!$M$20),\"\")","v":{"$error":"#REF!"}},null,{"$f":"IF(Stock!#REF!<>\"\",IF(Stock!#REF!>0,Stock!#REF!/Stock!#REF!,0),\"\")","v":{"$error":"#REF!"}},{"$f":"IF(Stock!#REF!<>\"\",E233*Pilotage!$D$15,\"\")","v":{"$error":"#REF!"}},{"$f":"IF(Stock!#REF!<>\"\",IF(Stock!#REF!>0,Stock!#REF!,0),\"\")","v":{"$error":"#REF!"}},{"$f":"IF(Stock!#REF!<>\"\",Pilotage!$M$27,\"\")","v":{"$error":"#REF!"}},{"$f":"IF(Stock!#REF!<>\"\",ROUND(Stock!#REF!*J233,0),\"\")","v":{"$error":"#REF!"}},{"$f":"IF(Stock!#REF!<>\"\",$H233*K233,\"\")","v":{"$error":"#REF!"}},{"$f":"IF(Stock!#REF!<>\"\",Pilotage!N$27,\"\")","v":{"$error":"#REF!"}},{"$f":"IF(Stock!#REF!<>\"\",ROUND(K233*M233,0),\"\")","v":{"$error":"#REF!"}},{"$f":"IF(Stock!#REF!<>\"\",$H233*N233,\"\")","v":{"$error":"#REF!"}},{"$f":"IF(Stock!#REF!<>\"\",Pilotage!O$27,\"\")","v":{"$error":"#REF!"}},{"$f":"IF(Stock!#REF!<>\"\",ROUND(K233*P233,0),\"\")","v":{"$error":"#REF!"}},{"$f":"IF(Stock!#REF!<>\"\",$H233*Q233,\"\")","v":{"$error":"#REF!"}},{"$f":"IF(Stock!#REF!<>\"\",Pilotage!P$27,\"\")","v":{"$error":"#REF!"}},{"$f":"IF(Stock!#REF!<>\"\",ROUND(Q233*S233,0),\"\")","v":{"$error":"#REF!"}},{"$f":"IF(Stock!#REF!<>\"\",$H233*T233,\"\")","v":{"$error":"#REF!"}},{"$f":"IF(Stock!#REF!<>\"\",Pilotage!Q$27,\"\")","v":{"$error":"#REF!"}},{"$f":"IF(Stock!#REF!<>\"\",ROUND(T233*V233,0),\"\")","v":{"$error":"#REF!"}},{"$f":"IF(Stock!#REF!<>\"\",$H233*W233,\"\")","v":{"$error":"#REF!"}},{"$f":"IF(Stock!#REF!<>\"\",Pilotage!R$27,\"\")","v":{"$error":"#REF!"}},{"$f":"IF(Stock!#REF!<>\"\",ROUND(W233*Y233,0),\"\")","v":{"$error":"#REF!"}},{"$f":"IF(Stock!#REF!<>\"\",$H233*Z233,\"\")","v":{"$error":"#REF!"}}]
[{"$f":"IF(Stock!#REF!<>\"\",Stock!#REF!,\"\")","v":{"$error":"#REF!"}},{"$f":"IF(Stock!#REF!<>\"\",Stock!#REF!,\"\")","v":{"$error":"#REF!"}},{"$f":"IF(Stock!#REF!<>\"\",Stock!#REF!,\"\")","v":{"$error":"#REF!"}},{"$f":"IF(Stock!#REF!<>\"\",SUM(Stock!#REF!,Stock!#REF!,Stock!#REF!),\"\")","v":{"$error":"#REF!"}},{"$f":"IF(Stock!#REF!<>\"\",#REF!*(1+Pilotage!$M$20),\"\")","v":{"$error":"#REF!"}},null,{"$f":"IF(Stock!#REF!<>\"\",IF(Stock!#REF!>0,Stock!#REF!/Stock!#REF!,0),\"\")","v":{"$error":"#REF!"}},{"$f":"IF(Stock!#REF!<>\"\",E234*Pilotage!$D$15,\"\")","v":{"$error":"#REF!"}},{"$f":"IF(Stock!#REF!<>\"\",IF(Stock!#REF!>0,Stock!#REF!,0),\"\")","v":{"$error":"#REF!"}},{"$f":"IF(Stock!#REF!<>\"\",Pilotage!$M$27,\"\")","v":{"$error":"#REF!"}},{"$f":"IF(Stock!#REF!<>\"\",ROUND(Stock!#REF!*J234,0),\"\")","v":{"$error":"#REF!"}},{"$f":"IF(Stock!#REF!<>\"\",$H234*K234,\"\")","v":{"$error":"#REF!"}},{"$f":"IF(Stock!#REF!<>\"\",Pilotage!N$27,\"\")","v":{"$error":"#REF!"}},{"$f":"IF(Stock!#REF!<>\"\",ROUND(K234*M234,0),\"\")","v":{"$error":"#REF!"}},{"$f":"IF(Stock!#REF!<>\"\",$H234*N234,\"\")","v":{"$error":"#REF!"}},{"$f":"IF(Stock!#REF!<>\"\",Pilotage!O$27,\"\")","v":{"$error":"#REF!"}},{"$f":"IF(Stock!#REF!<>\"\",ROUND(K234*P234,0),\"\")","v":{"$error":"#REF!"}},{"$f":"IF(Stock!#REF!<>\"\",$H234*Q234,\"\")","v":{"$error":"#REF!"}},{"$f":"IF(Stock!#REF!<>\"\",Pilotage!P$27,\"\")","v":{"$error":"#REF!"}},{"$f":"IF(Stock!#REF!<>\"\",ROUND(Q234*S234,0),\"\")","v":{"$error":"#REF!"}},{"$f":"IF(Stock!#REF!<>\"\",$H234*T234,\"\")","v":{"$error":"#REF!"}},{"$f":"IF(Stock!#REF!<>\"\",Pilotage!Q$27,\"\")","v":{"$error":"#REF!"}},{"$f":"IF(Stock!#REF!<>\"\",ROUND(T234*V234,0),\"\")","v":{"$error":"#REF!"}},{"$f":"IF(Stock!#REF!<>\"\",$H234*W234,\"\")","v":{"$error":"#REF!"}},{"$f":"IF(Stock!#REF!<>\"\",Pilotage!R$27,\"\")","v":{"$error":"#REF!"}},{"$f":"IF(Stock!#REF!<>\"\",ROUND(W234*Y234,0),\"\")","v":{"$error":"#REF!"}},{"$f":"IF(Stock!#REF!<>\"\",$H234*Z234,\"\")","v":{"$error":"#REF!"}}]
[{"$f":"IF(Stock!#REF!<>\"\",Stock!#REF!,\"\")","v":{"$error":"#REF!"}},{"$f":"IF(Stock!#REF!<>\"\",Stock!#REF!,\"\")","v":{"$error":"#REF!"}},{"$f":"IF(Stock!#REF!<>\"\",Stock!#REF!,\"\")","v":{"$error":"#REF!"}},{"$f":"IF(Stock!#REF!<>\"\",SUM(Stock!#REF!,Stock!#REF!,Stock!#REF!),\"\")","v":{"$error":"#REF!"}},{"$f":"IF(Stock!#REF!<>\"\",#REF!*(1+Pilotage!$M$20),\"\")","v":{"$error":"#REF!"}},null,{"$f":"IF(Stock!#REF!<>\"\",IF(Stock!#REF!>0,Stock!#REF!/Stock!#REF!,0),\"\")","v":{"$error":"#REF!"}},{"$f":"IF(Stock!#REF!<>\"\",E235*Pilotage!$D$15,\"\")","v":{"$error":"#REF!"}},{"$f":"IF(Stock!#REF!<>\"\",IF(Stock!#REF!>0,Stock!#REF!,0),\"\")","v":{"$error":"#REF!"}},{"$f":"IF(Stock!#REF!<>\"\",Pilotage!$M$27,\"\")","v":{"$error":"#REF!"}},{"$f":"IF(Stock!#REF!<>\"\",ROUND(Stock!#REF!*J235,0),\"\")","v":{"$error":"#REF!"}},{"$f":"IF(Stock!#REF!<>\"\",$H235*K235,\"\")","v":{"$error":"#REF!"}},{"$f":"IF(Stock!#REF!<>\"\",Pilotage!N$27,\"\")","v":{"$error":"#REF!"}},{"$f":"IF(Stock!#REF!<>\"\",ROUND(K235*M235,0),\"\")","v":{"$error":"#REF!"}},{"$f":"IF(Stock!#REF!<>\"\",$H235*N235,\"\")","v":{"$error":"#REF!"}},{"$f":"IF(Stock!#REF!<>\"\",Pilotage!O$27,\"\")","v":{"$error":"#REF!"}},{"$f":"IF(Stock!#REF!<>\"\",ROUND(K235*P235,0),\"\")","v":{"$error":"#REF!"}},{"$f":"IF(Stock!#REF!<>\"\",$H235*Q235,\"\")","v":{"$error":"#REF!"}},{"$f":"IF(Stock!#REF!<>\"\",Pilotage!P$27,\"\")","v":{"$error":"#REF!"}},{"$f":"IF(Stock!#REF!<>\"\",ROUND(Q235*S235,0),\"\")","v":{"$error":"#REF!"}},{"$f":"IF(Stock!#REF!<>\"\",$H235*T235,\"\")","v":{"$error":"#REF!"}},{"$f":"IF(Stock!#REF!<>\"\",Pilotage!Q$27,\"\")","v":{"$error":"#REF!"}},{"$f":"IF(Stock!#REF!<>\"\",ROUND(T235*V235,0),\"\")","v":{"$error":"#REF!"}},{"$f":"IF(Stock!#REF!<>\"\",$H235*W235,\"\")","v":{"$error":"#REF!"}},{"$f":"IF(Stock!#REF!<>\"\",Pilotage!R$27,\"\")","v":{"$error":"#REF!"}},{"$f":"IF(Stock!#REF!<>\"\",ROUND(W235*Y235,0),\"\")","v":{"$error":"#REF!"}},{"$f":"IF(Stock!#REF!<>\"\",$H235*Z235,\"\")","v":{"$error":"#REF!"}}]
[{"$f":"IF(Stock!#REF!<>\"\",Stock!#REF!,\"\")","v":{"$error":"#REF!"}},{"$f":"IF(Stock!#REF!<>\"\",Stock!#REF!,\"\")","v":{"$error":"#REF!"}},{"$f":"IF(Stock!#REF!<>\"\",Stock!#REF!,\"\")","v":{"$error":"#REF!"}},{"$f":"IF(Stock!#REF!<>\"\",SUM(Stock!#REF!,Stock!#REF!,Stock!#REF!),\"\")","v":{"$error":"#REF!"}},{"$f":"IF(Stock!#REF!<>\"\",#REF!*(1+Pilotage!$M$20),\"\")","v":{"$error":"#REF!"}},null,{"$f":"IF(Stock!#REF!<>\"\",IF(Stock!#REF!>0,Stock!#REF!/Stock!#REF!,0),\"\")","v":{"$error":"#REF!"}},{"$f":"IF(Stock!#REF!<>\"\",E236*Pilotage!$D$15,\"\")","v":{"$error":"#REF!"}},{"$f":"IF(Stock!#REF!<>\"\",IF(Stock!#REF!>0,Stock!#REF!,0),\"\")","v":{"$error":"#REF!"}},{"$f":"IF(Stock!#REF!<>\"\",Pilotage!$M$27,\"\")","v":{"$error":"#REF!"}},{"$f":"IF(Stock!#REF!<>\"\",ROUND(Stock!#REF!*J236,0),\"\")","v":{"$error":"#REF!"}},{"$f":"IF(Stock!#REF!<>\"\",$H236*K236,\"\")","v":{"$error":"#REF!"}},{"$f":"IF(Stock!#REF!<>\"\",Pilotage!N$27,\"\")","v":{"$error":"#REF!"}},{"$f":"IF(Stock!#REF!<>\"\",ROUND(K236*M236,0),\"\")","v":{"$error":"#REF!"}},{"$f":"IF(Stock!#REF!<>\"\",$H236*N236,\"\")","v":{"$error":"#REF!"}},{"$f":"IF(Stock!#REF!<>\"\",Pilotage!O$27,\"\")","v":{"$error":"#REF!"}},{"$f":"IF(Stock!#REF!<>\"\",ROUND(K236*P236,0),\"\")","v":{"$error":"#REF!"}},{"$f":"IF(Stock!#REF!<>\"\",$H236*Q236,\"\")","v":{"$error":"#REF!"}},{"$f":"IF(Stock!#REF!<>\"\",Pilotage!P$27,\"\")","v":{"$error":"#REF!"}},{"$f":"IF(Stock!#REF!<>\"\",ROUND(Q236*S236,0),\"\")","v":{"$error":"#REF!"}},{"$f":"IF(Stock!#REF!<>\"\",$H236*T236,\"\")","v":{"$error":"#REF!"}},{"$f":"IF(Stock!#REF!<>\"\",Pilotage!Q$27,\"\")","v":{"$error":"#REF!"}},{"$f":"IF(Stock!#REF!<>\"\",ROUND(T236*V236,0),\"\")","v":{"$error":"#REF!"}},{"$f":"IF(Stock!#REF!<>\"\",$H236*W236,\"\")","v":{"$error":"#REF!"}},{"$f":"IF(Stock!#REF!<>\"\",Pilotage!R$27,\"\")","v":{"$error":"#REF!"}},{"$f":"IF(Stock!#REF!<>\"\",ROUND(W236*Y236,0),\"\")","v":{"$error":"#REF!"}},{"$f":"IF(Stock!#REF!<>\"\",$H236*Z236,\"\")","v":{"$error":"#REF!"}}]
[{"$f":"IF(Stock!#REF!<>\"\",Stock!#REF!,\"\")","v":{"$error":"#REF!"}},{"$f":"IF(Stock!#REF!<>\"\",Stock!#REF!,\"\")","v":{"$error":"#REF!"}},{"$f":"IF(Stock!#REF!<>\"\",Stock!#REF!,\"\")","v":{"$error":"#REF!"}},{"$f":"IF(Stock!#REF!<>\"\",SUM(Stock!#REF!,Stock!#REF!,Stock!#REF!),\"\")","v":{"$error":"#REF!"}},{"$f":"IF(Stock!#REF!<>\"\",#REF!*(1+Pilotage!$M$20),\"\")","v":{"$error":"#REF!"}},null,{"$f":"IF(Stock!#REF!<>\"\",IF(Stock!#REF!>0,Stock!#REF!/Stock!#REF!,0),\"\")","v":{"$error":"#REF!"}},{"$f":"IF(Stock!#REF!<>\"\",E237*Pilotage!$D$15,\"\")","v":{"$error":"#REF!"}},{"$f":"IF(Stock!#REF!<>\"\",IF(Stock!#REF!>0,Stock!#REF!,0),\"\")","v":{"$error":"#REF!"}},{"$f":"IF(Stock!#REF!<>\"\",Pilotage!$M$27,\"\")","v":{"$error":"#REF!"}},{"$f":"IF(Stock!#REF!<>\"\",ROUND(Stock!#REF!*J237,0),\"\")","v":{"$error":"#REF!"}},{"$f":"IF(Stock!#REF!<>\"\",$H237*K237,\"\")","v":{"$error":"#REF!"}},{"$f":"IF(Stock!#REF!<>\"\",Pilotage!N$27,\"\")","v":{"$error":"#REF!"}},{"$f":"IF(Stock!#REF!<>\"\",ROUND(K237*M237,0),\"\")","v":{"$error":"#REF!"}},{"$f":"IF(Stock!#REF!<>\"\",$H237*N237,\"\")","v":{"$error":"#REF!"}},{"$f":"IF(Stock!#REF!<>\"\",Pilotage!O$27,\"\")","v":{"$error":"#REF!"}},{"$f":"IF(Stock!#REF!<>\"\",ROUND(K237*P237,0),\"\")","v":{"$error":"#REF!"}},{"$f":"IF(Stock!#REF!<>\"\",$H237*Q237,\"\")","v":{"$error":"#REF!"}},{"$f":"IF(Stock!#REF!<>\"\",Pilotage!P$27,\"\")","v":{"$error":"#REF!"}},{"$f":"IF(Stock!#REF!<>\"\",ROUND(Q237*S237,0),\"\")","v":{"$error":"#REF!"}},{"$f":"IF(Stock!#REF!<>\"\",$H237*T237,\"\")","v":{"$error":"#REF!"}},{"$f":"IF(Stock!#REF!<>\"\",Pilotage!Q$27,\"\")","v":{"$error":"#REF!"}},{"$f":"IF(Stock!#REF!<>\"\",ROUND(T237*V237,0),\"\")","v":{"$error":"#REF!"}},{"$f":"IF(Stock!#REF!<>\"\",$H237*W237,\"\")","v":{"$error":"#REF!"}},{"$f":"IF(Stock!#REF!<>\"\",Pilotage!R$27,\"\")","v":{"$error":"#REF!"}},{"$f":"IF(Stock!#REF!<>\"\",ROUND(W237*Y237,0),\"\")","v":{"$error":"#REF!"}},{"$f":"IF(Stock!#REF!<>\"\",$H237*Z237,\"\")","v":{"$error":"#REF!"}}]
[{"$f":"IF(Stock!#REF!<>\"\",Stock!#REF!,\"\")","v":{"$error":"#REF!"}},{"$f":"IF(Stock!#REF!<>\"\",Stock!#REF!,\"\")","v":{"$error":"#REF!"}},{"$f":"IF(Stock!#REF!<>\"\",Stock!#REF!,\"\")","v":{"$error":"#REF!"}},{"$f":"IF(Stock!#REF!<>\"\",SUM(Stock!#REF!,Stock!#REF!,Stock!#REF!),\"\")","v":{"$error":"#REF!"}},{"$f":"IF(Stock!#REF!<>\"\",#REF!*(1+Pilotage!$M$20),\"\")","v":{"$error":"#REF!"}},null,{"$f":"IF(Stock!#REF!<>\"\",IF(Stock!#REF!>0,Stock!#REF!/Stock!#REF!,0),\"\")","v":{"$error":"#REF!"}},{"$f":"IF(Stock!#REF!<>\"\",E238*Pilotage!$D$15,\"\")","v":{"$error":"#REF!"}},{"$f":"IF(Stock!#REF!<>\"\",IF(Stock!#REF!>0,Stock!#REF!,0),\"\")","v":{"$error":"#REF!"}},{"$f":"IF(Stock!#REF!<>\"\",Pilotage!$M$27,\"\")","v":{"$error":"#REF!"}},{"$f":"IF(Stock!#REF!<>\"\",ROUND(Stock!#REF!*J238,0),\"\")","v":{"$error":"#REF!"}},{"$f":"IF(Stock!#REF!<>\"\",$H238*K238,\"\")","v":{"$error":"#REF!"}},{"$f":"IF(Stock!#REF!<>\"\",Pilotage!N$27,\"\")","v":{"$error":"#REF!"}},{"$f":"IF(Stock!#REF!<>\"\",ROUND(K238*M238,0),\"\")","v":{"$error":"#REF!"}},{"$f":"IF(Stock!#REF!<>\"\",$H238*N238,\"\")","v":{"$error":"#REF!"}},{"$f":"IF(Stock!#REF!<>\"\",Pilotage!O$27,\"\")","v":{"$error":"#REF!"}},{"$f":"IF(Stock!#REF!<>\"\",ROUND(K238*P238,0),\"\")","v":{"$error":"#REF!"}},{"$f":"IF(Stock!#REF!<>\"\",$H238*Q238,\"\")","v":{"$error":"#REF!"}},{"$f":"IF(Stock!#REF!<>\"\",Pilotage!P$27,\"\")","v":{"$error":"#REF!"}},{"$f":"IF(Stock!#REF!<>\"\",ROUND(Q238*S238,0),\"\")","v":{"$error":"#REF!"}},{"$f":"IF(Stock!#REF!<>\"\",$H238*T238,\"\")","v":{"$error":"#REF!"}},{"$f":"IF(Stock!#REF!<>\"\",Pilotage!Q$27,\"\")","v":{"$error":"#REF!"}},{"$f":"IF(Stock!#REF!<>\"\",ROUND(T238*V238,0),\"\")","v":{"$error":"#REF!"}},{"$f":"IF(Stock!#REF!<>\"\",$H238*W238,\"\")","v":{"$error":"#REF!"}},{"$f":"IF(Stock!#REF!<>\"\",Pilotage!R$27,\"\")","v":{"$error":"#REF!"}},{"$f":"IF(Stock!#REF!<>\"\",ROUND(W238*Y238,0),\"\")","v":{"$error":"#REF!"}},{"$f":"IF(Stock!#REF!<>\"\",$H238*Z238,\"\")","v":{"$error":"#REF!"}}]
[{"$f":"IF(Stock!#REF!<>\"\",Stock!#REF!,\"\")","v":{"$error":"#REF!"}},{"$f":"IF(Stock!#REF!<>\"\",Stock!#REF!,\"\")","v":{"$error":"#REF!"}},{"$f":"IF(Stock!#REF!<>\"\",Stock!#REF!,\"\")","v":{"$error":"#REF!"}},{"$f":"IF(Stock!#REF!<>\"\",SUM(Stock!#REF!,Stock!#REF!,Stock!#REF!),\"\")","v":{"$error":"#REF!"}},{"$f":"IF(Stock!#REF!<>\"\",#REF!*(1+Pilotage!$M$20),\"\")","v":{"$error":"#REF!"}},null,{"$f":"IF(Stock!#REF!<>\"\",IF(Stock!#REF!>0,Stock!#REF!/Stock!#REF!,0),\"\")","v":{"$error":"#REF!"}},{"$f":"IF(Stock!#REF!<>\"\",E239*Pilotage!$D$15,\"\")","v":{"$error":"#REF!"}},{"$f":"IF(Stock!#REF!<>\"\",IF(Stock!#REF!>0,Stock!#REF!,0),\"\")","v":{"$error":"#REF!"}},{"$f":"IF(Stock!#REF!<>\"\",Pilotage!$M$27,\"\")","v":{"$error":"#REF!"}},{"$f":"IF(Stock!#REF!<>\"\",ROUND(Stock!#REF!*J239,0),\"\")","v":{"$error":"#REF!"}},{"$f":"IF(Stock!#REF!<>\"\",$H239*K239,\"\")","v":{"$error":"#REF!"}},{"$f":"IF(Stock!#REF!<>\"\",Pilotage!N$27,\"\")","v":{"$error":"#REF!"}},{"$f":"IF(Stock!#REF!<>\"\",ROUND(K239*M239,0),\"\")","v":{"$error":"#REF!"}},{"$f":"IF(Stock!#REF!<>\"\",$H239*N239,\"\")","v":{"$error":"#REF!"}},{"$f":"IF(Stock!#REF!<>\"\",Pilotage!O$27,\"\")","v":{"$error":"#REF!"}},{"$f":"IF(Stock!#REF!<>\"\",ROUND(K239*P239,0),\"\")","v":{"$error":"#REF!"}},{"$f":"IF(Stock!#REF!<>\"\",$H239*Q239,\"\")","v":{"$error":"#REF!"}},{"$f":"IF(Stock!#REF!<>\"\",Pilotage!P$27,\"\")","v":{"$error":"#REF!"}},{"$f":"IF(Stock!#REF!<>\"\",ROUND(Q239*S239,0),\"\")","v":{"$error":"#REF!"}},{"$f":"IF(Stock!#REF!<>\"\",$H239*T239,\"\")","v":{"$error":"#REF!"}},{"$f":"IF(Stock!#REF!<>\"\",Pilotage!Q$27,\"\")","v":{"$error":"#REF!"}},{"$f":"IF(Stock!#REF!<>\"\",ROUND(T239*V239,0),\"\")","v":{"$error":"#REF!"}},{"$f":"IF(Stock!#REF!<>\"\",$H239*W239,\"\")","v":{"$error":"#REF!"}},{"$f":"IF(Stock!#REF!<>\"\",Pilotage!R$27,\"\")","v":{"$error":"#REF!"}},{"$f":"IF(Stock!#REF!<>\"\",ROUND(W239*Y239,0),\"\")","v":{"$error":"#REF!"}},{"$f":"IF(Stock!#REF!<>\"\",$H239*Z239,\"\")","v":{"$error":"#REF!"}}]
[{"$f":"IF(Stock!#REF!<>\"\",Stock!#REF!,\"\")","v":{"$error":"#REF!"}},{"$f":"IF(Stock!#REF!<>\"\",Stock!#REF!,\"\")","v":{"$error":"#REF!"}},{"$f":"IF(Stock!#REF!<>\"\",Stock!#REF!,\"\")","v":{"$error":"#REF!"}},{"$f":"IF(Stock!#REF!<>\"\",SUM(Stock!#REF!,Stock!#REF!,Stock!#REF!),\"\")","v":{"$error":"#REF!"}},{"$f":"IF(Stock!#REF!<>\"\",#REF!*(1+Pilotage!$M$20),\"\")","v":{"$error":"#REF!"}},null,{"$f":"IF(Stock!#REF!<>\"\",IF(Stock!#REF!>0,Stock!#REF!/Stock!#REF!,0),\"\")","v":{"$error":"#REF!"}},{"$f":"IF(Stock!#REF!<>\"\",E240*Pilotage!$D$15,\"\")","v":{"$error":"#REF!"}},{"$f":"IF(Stock!#REF!<>\"\",IF(Stock!#REF!>0,Stock!#REF!,0),\"\")","v":{"$error":"#REF!"}},{"$f":"IF(Stock!#REF!<>\"\",Pilotage!$M$27,\"\")","v":{"$error":"#REF!"}},{"$f":"IF(Stock!#REF!<>\"\",ROUND(Stock!#REF!*J240,0),\"\")","v":{"$error":"#REF!"}},{"$f":"IF(Stock!#REF!<>\"\",$H240*K240,\"\")","v":{"$error":"#REF!"}},{"$f":"IF(Stock!#REF!<>\"\",Pilotage!N$27,\"\")","v":{"$error":"#REF!"}},{"$f":"IF(Stock!#REF!<>\"\",ROUND(K240*M240,0),\"\")","v":{"$error":"#REF!"}},{"$f":"IF(Stock!#REF!<>\"\",$H240*N240,\"\")","v":{"$error":"#REF!"}},{"$f":"IF(Stock!#REF!<>\"\",Pilotage!O$27,\"\")","v":{"$error":"#REF!"}},{"$f":"IF(Stock!#REF!<>\"\",ROUND(K240*P240,0),\"\")","v":{"$error":"#REF!"}},{"$f":"IF(Stock!#REF!<>\"\",$H240*Q240,\"\")","v":{"$error":"#REF!"}},{"$f":"IF(Stock!#REF!<>\"\",Pilotage!P$27,\"\")","v":{"$error":"#REF!"}},{"$f":"IF(Stock!#REF!<>\"\",ROUND(Q240*S240,0),\"\")","v":{"$error":"#REF!"}},{"$f":"IF(Stock!#REF!<>\"\",$H240*T240,\"\")","v":{"$error":"#REF!"}},{"$f":"IF(Stock!#REF!<>\"\",Pilotage!Q$27,\"\")","v":{"$error":"#REF!"}},{"$f":"IF(Stock!#REF!<>\"\",ROUND(T240*V240,0),\"\")","v":{"$error":"#REF!"}},{"$f":"IF(Stock!#REF!<>\"\",$H240*W240,\"\")","v":{"$error":"#REF!"}},{"$f":"IF(Stock!#REF!<>\"\",Pilotage!R$27,\"\")","v":{"$error":"#REF!"}},{"$f":"IF(Stock!#REF!<>\"\",ROUND(W240*Y240,0),\"\")","v":{"$error":"#REF!"}},{"$f":"IF(Stock!#REF!<>\"\",$H240*Z240,\"\")","v":{"$error":"#REF!"}}]
[{"$f":"IF(Stock!#REF!<>\"\",Stock!#REF!,\"\")","v":{"$error":"#REF!"}},{"$f":"IF(Stock!#REF!<>\"\",Stock!#REF!,\"\")","v":{"$error":"#REF!"}},{"$f":"IF(Stock!#REF!<>\"\",Stock!#REF!,\"\")","v":{"$error":"#REF!"}},{"$f":"IF(Stock!#REF!<>\"\",SUM(Stock!#REF!,Stock!#REF!,Stock!#REF!),\"\")","v":{"$error":"#REF!"}},{"$f":"IF(Stock!#REF!<>\"\",#REF!*(1+Pilotage!$M$20),\"\")","v":{"$error":"#REF!"}},null,{"$f":"IF(Stock!#REF!<>\"\",IF(Stock!#REF!>0,Stock!#REF!/Stock!#REF!,0),\"\")","v":{"$error":"#REF!"}},{"$f":"IF(Stock!#REF!<>\"\",E241*Pilotage!$D$15,\"\")","v":{"$error":"#REF!"}},{"$f":"IF(Stock!#REF!<>\"\",IF(Stock!#REF!>0,Stock!#REF!,0),\"\")","v":{"$error":"#REF!"}},{"$f":"IF(Stock!#REF!<>\"\",Pilotage!$M$27,\"\")","v":{"$error":"#REF!"}},{"$f":"IF(Stock!#REF!<>\"\",ROUND(Stock!#REF!*J241,0),\"\")","v":{"$error":"#REF!"}},{"$f":"IF(Stock!#REF!<>\"\",$H241*K241,\"\")","v":{"$error":"#REF!"}},{"$f":"IF(Stock!#REF!<>\"\",Pilotage!N$27,\"\")","v":{"$error":"#REF!"}},{"$f":"IF(Stock!#REF!<>\"\",ROUND(K241*M241,0),\"\")","v":{"$error":"#REF!"}},{"$f":"IF(Stock!#REF!<>\"\",$H241*N241,\"\")","v":{"$error":"#REF!"}},{"$f":"IF(Stock!#REF!<>\"\",Pilotage!O$27,\"\")","v":{"$error":"#REF!"}},{"$f":"IF(Stock!#REF!<>\"\",ROUND(K241*P241,0),\"\")","v":{"$error":"#REF!"}},{"$f":"IF(Stock!#REF!<>\"\",$H241*Q241,\"\")","v":{"$error":"#REF!"}},{"$f":"IF(Stock!#REF!<>\"\",Pilotage!P$27,\"\")","v":{"$error":"#REF!"}},{"$f":"IF(Stock!#REF!<>\"\",ROUND(Q241*S241,0),\"\")","v":{"$error":"#REF!"}},{"$f":"IF(Stock!#REF!<>\"\",$H241*T241,\"\")","v":{"$error":"#REF!"}},{"$f":"IF(Stock!#REF!<>\"\",Pilotage!Q$27,\"\")","v":{"$error":"#REF!"}},{"$f":"IF(Stock!#REF!<>\"\",ROUND(T241*V241,0),\"\")","v":{"$error":"#REF!"}},{"$f":"IF(Stock!#REF!<>\"\",$H241*W241,\"\")","v":{"$error":"#REF!"}},{"$f":"IF(Stock!#REF!<>\"\",Pilotage!R$27,\"\")","v":{"$error":"#REF!"}},{"$f":"IF(Stock!#REF!<>\"\",ROUND(W241*Y241,0),\"\")","v":{"$error":"#REF!"}},{"$f":"IF(Stock!#REF!<>\"\",$H241*Z241,\"\")","v":{"$error":"#REF!"}}]
[{"$f":"IF(Stock!#REF!<>\"\",Stock!#REF!,\"\")","v":{"$error":"#REF!"}},{"$f":"IF(Stock!#REF!<>\"\",Stock!#REF!,\"\")","v":{"$error":"#REF!"}},{"$f":"IF(Stock!#REF!<>\"\",Stock!#REF!,\"\")","v":{"$error":"#REF!"}},{"$f":"IF(Stock!#REF!<>\"\",SUM(Stock!#REF!,Stock!#REF!,Stock!#REF!),\"\")","v":{"$error":"#REF!"}},{"$f":"IF(Stock!#REF!<>\"\",#REF!*(1+Pilotage!$M$20),\"\")","v":{"$error":"#REF!"}},null,{"$f":"IF(Stock!#REF!<>\"\",IF(Stock!#REF!>0,Stock!#REF!/Stock!#REF!,0),\"\")","v":{"$error":"#REF!"}},{"$f":"IF(Stock!#REF!<>\"\",E242*Pilotage!$D$15,\"\")","v":{"$error":"#REF!"}},{"$f":"IF(Stock!#REF!<>\"\",IF(Stock!#REF!>0,Stock!#REF!,0),\"\")","v":{"$error":"#REF!"}},{"$f":"IF(Stock!#REF!<>\"\",Pilotage!$M$27,\"\")","v":{"$error":"#REF!"}},{"$f":"IF(Stock!#REF!<>\"\",ROUND(Stock!#REF!*J242,0),\"\")","v":{"$error":"#REF!"}},{"$f":"IF(Stock!#REF!<>\"\",$H242*K242,\"\")","v":{"$error":"#REF!"}},{"$f":"IF(Stock!#REF!<>\"\",Pilotage!N$27,\"\")","v":{"$error":"#REF!"}},{"$f":"IF(Stock!#REF!<>\"\",ROUND(K242*M242,0),\"\")","v":{"$error":"#REF!"}},{"$f":"IF(Stock!#REF!<>\"\",$H242*N242,\"\")","v":{"$error":"#REF!"}},{"$f":"IF(Stock!#REF!<>\"\",Pilotage!O$27,\"\")","v":{"$error":"#REF!"}},{"$f":"IF(Stock!#REF!<>\"\",ROUND(K242*P242,0),\"\")","v":{"$error":"#REF!"}},{"$f":"IF(Stock!#REF!<>\"\",$H242*Q242,\"\")","v":{"$error":"#REF!"}},{"$f":"IF(Stock!#REF!<>\"\",Pilotage!P$27,\"\")","v":{"$error":"#REF!"}},{"$f":"IF(Stock!#REF!<>\"\",ROUND(Q242*S242,0),\"\")","v":{"$error":"#REF!"}},{"$f":"IF(Stock!#REF!<>\"\",$H242*T242,\"\")","v":{"$error":"#REF!"}},{"$f":"IF(Stock!#REF!<>\"\",Pilotage!Q$27,\"\")","v":{"$error":"#REF!"}},{"$f":"IF(Stock!#REF!<>\"\",ROUND(T242*V242,0),\"\")","v":{"$error":"#REF!"}},{"$f":"IF(Stock!#REF!<>\"\",$H242*W242,\"\")","v":{"$error":"#REF!"}},{"$f":"IF(Stock!#REF!<>\"\",Pilotage!R$27,\"\")","v":{"$error":"#REF!"}},{"$f":"IF(Stock!#REF!<>\"\",ROUND(W242*Y242,0),\"\")","v":{"$error":"#REF!"}},{"$f":"IF(Stock!#REF!<>\"\",$H242*Z242,\"\")","v":{"$error":"#REF!"}}]
[{"$f":"IF(Stock!#REF!<>\"\",Stock!#REF!,\"\")","v":{"$error":"#REF!"}},{"$f":"IF(Stock!#REF!<>\"\",Stock!#REF!,\"\")","v":{"$error":"#REF!"}},{"$f":"IF(Stock!#REF!<>\"\",Stock!#REF!,\"\")","v":{"$error":"#REF!"}},{"$f":"IF(Stock!#REF!<>\"\",SUM(Stock!#REF!,Stock!#REF!,Stock!#REF!),\"\")","v":{"$error":"#REF!"}},{"$f":"IF(Stock!#REF!<>\"\",#REF!*(1+Pilotage!$M$20),\"\")","v":{"$error":"#REF!"}},null,{"$f":"IF(Stock!#REF!<>\"\",IF(Stock!#REF!>0,Stock!#REF!/Stock!#REF!,0),\"\")","v":{"$error":"#REF!"}},{"$f":"IF(Stock!#REF!<>\"\",E243*Pilotage!$D$15,\"\")","v":{"$error":"#REF!"}},{"$f":"IF(Stock!#REF!<>\"\",IF(Stock!#REF!>0,Stock!#REF!,0),\"\")","v":{"$error":"#REF!"}},{"$f":"IF(Stock!#REF!<>\"\",Pilotage!$M$27,\"\")","v":{"$error":"#REF!"}},{"$f":"IF(Stock!#REF!<>\"\",ROUND(Stock!#REF!*J243,0),\"\")","v":{"$error":"#REF!"}},{"$f":"IF(Stock!#REF!<>\"\",$H243*K243,\"\")","v":{"$error":"#REF!"}},{"$f":"IF(Stock!#REF!<>\"\",Pilotage!N$27,\"\")","v":{"$error":"#REF!"}},{"$f":"IF(Stock!#REF!<>\"\",ROUND(K243*M243,0),\"\")","v":{"$error":"#REF!"}},{"$f":"IF(Stock!#REF!<>\"\",$H243*N243,\"\")","v":{"$error":"#REF!"}},{"$f":"IF(Stock!#REF!<>\"\",Pilotage!O$27,\"\")","v":{"$error":"#REF!"}},{"$f":"IF(Stock!#REF!<>\"\",ROUND(K243*P243,0),\"\")","v":{"$error":"#REF!"}},{"$f":"IF(Stock!#REF!<>\"\",$H243*Q243,\"\")","v":{"$error":"#REF!"}},{"$f":"IF(Stock!#REF!<>\"\",Pilotage!P$27,\"\")","v":{"$error":"#REF!"}},{"$f":"IF(Stock!#REF!<>\"\",ROUND(Q243*S243,0),\"\")","v":{"$error":"#REF!"}},{"$f":"IF(Stock!#REF!<>\"\",$H243*T243,\"\")","v":{"$error":"#REF!"}},{"$f":"IF(Stock!#REF!<>\"\",Pilotage!Q$27,\"\")","v":{"$error":"#REF!"}},{"$f":"IF(Stock!#REF!<>\"\",ROUND(T243*V243,0),\"\")","v":{"$error":"#REF!"}},{"$f":"IF(Stock!#REF!<>\"\",$H243*W243,\"\")","v":{"$error":"#REF!"}},{"$f":"IF(Stock!#REF!<>\"\",Pilotage!R$27,\"\")","v":{"$error":"#REF!"}},{"$f":"IF(Stock!#REF!<>\"\",ROUND(W243*Y243,0),\"\")","v":{"$error":"#REF!"}},{"$f":"IF(Stock!#REF!<>\"\",$H243*Z243,\"\")","v":{"$error":"#REF!"}}]
[{"$f":"IF(Stock!#REF!<>\"\",Stock!#REF!,\"\")","v":{"$error":"#REF!"}},{"$f":"IF(Stock!#REF!<>\"\",Stock!#REF!,\"\")","v":{"$error":"#REF!"}},{"$f":"IF(Stock!#REF!<>\"\",Stock!#REF!,\"\")","v":{"$error":"#REF!"}},{"$f":"IF(Stock!#REF!<>\"\",SUM(Stock!#REF!,Stock!#REF!,Stock!#REF!),\"\")","v":{"$error":"#REF!"}},{"$f":"IF(Stock!#REF!<>\"\",#REF!*(1+Pilotage!$M$20),\"\")","v":{"$error":"#REF!"}},null,{"$f":"IF(Stock!#REF!<>\"\",IF(Stock!#REF!>0,Stock!#REF!/Stock!#REF!,0),\"\")","v":{"$error":"#REF!"}},{"$f":"IF(Stock!#REF!<>\"\",E244*Pilotage!$D$15,\"\")","v":{"$error":"#REF!"}},{"$f":"IF(Stock!#REF!<>\"\",IF(Stock!#REF!>0,Stock!#REF!,0),\"\")","v":{"$error":"#REF!"}},{"$f":"IF(Stock!#REF!<>\"\",Pilotage!$M$27,\"\")","v":{"$error":"#REF!"}},{"$f":"IF(Stock!#REF!<>\"\",ROUND(Stock!#REF!*J244,0),\"\")","v":{"$error":"#REF!"}},{"$f":"IF(Stock!#REF!<>\"\",$H244*K244,\"\")","v":{"$error":"#REF!"}},{"$f":"IF(Stock!#REF!<>\"\",Pilotage!N$27,\"\")","v":{"$error":"#REF!"}},{"$f":"IF(Stock!#REF!<>\"\",ROUND(K244*M244,0),\"\")","v":{"$error":"#REF!"}},{"$f":"IF(Stock!#REF!<>\"\",$H244*N244,\"\")","v":{"$error":"#REF!"}},{"$f":"IF(Stock!#REF!<>\"\",Pilotage!O$27,\"\")","v":{"$error":"#REF!"}},{"$f":"IF(Stock!#REF!<>\"\",ROUND(K244*P244,0),\"\")","v":{"$error":"#REF!"}},{"$f":"IF(Stock!#REF!<>\"\",$H244*Q244,\"\")","v":{"$error":"#REF!"}},{"$f":"IF(Stock!#REF!<>\"\",Pilotage!P$27,\"\")","v":{"$error":"#REF!"}},{"$f":"IF(Stock!#REF!<>\"\",ROUND(Q244*S244,0),\"\")","v":{"$error":"#REF!"}},{"$f":"IF(Stock!#REF!<>\"\",$H244*T244,\"\")","v":{"$error":"#REF!"}},{"$f":"IF(Stock!#REF!<>\"\",Pilotage!Q$27,\"\")","v":{"$error":"#REF!"}},{"$f":"IF(Stock!#REF!<>\"\",ROUND(T244*V244,0),\"\")","v":{"$error":"#REF!"}},{"$f":"IF(Stock!#REF!<>\"\",$H244*W244,\"\")","v":{"$error":"#REF!"}},{"$f":"IF(Stock!#REF!<>\"\",Pilotage!R$27,\"\")","v":{"$error":"#REF!"}},{"$f":"IF(Stock!#REF!<>\"\",ROUND(W244*Y244,0),\"\")","v":{"$error":"#REF!"}},{"$f":"IF(Stock!#REF!<>\"\",$H244*Z244,\"\")","v":{"$error":"#REF!"}}]
[{"$f":"IF(Stock!#REF!<>\"\",Stock!#REF!,\"\")","v":{"$error":"#REF!"}},{"$f":"IF(Stock!#REF!<>\"\",Stock!#REF!,\"\")","v":{"$error":"#REF!"}},{"$f":"IF(Stock!#REF!<>\"\",Stock!#REF!,\"\")","v":{"$error":"#REF!"}},{"$f":"IF(Stock!#REF!<>\"\",SUM(Stock!#REF!,Stock!#REF!,Stock!#REF!),\"\")","v":{"$error":"#REF!"}},{"$f":"IF(Stock!#REF!<>\"\",#REF!*(1+Pilotage!$M$20),\"\")","v":{"$error":"#REF!"}},null,{"$f":"IF(Stock!#REF!<>\"\",IF(Stock!#REF!>0,Stock!#REF!/Stock!#REF!,0),\"\")","v":{"$error":"#REF!"}},{"$f":"IF(Stock!#REF!<>\"\",E245*Pilotage!$D$15,\"\")","v":{"$error":"#REF!"}},{"$f":"IF(Stock!#REF!<>\"\",IF(Stock!#REF!>0,Stock!#REF!,0),\"\")","v":{"$error":"#REF!"}},{"$f":"IF(Stock!#REF!<>\"\",Pilotage!$M$27,\"\")","v":{"$error":"#REF!"}},{"$f":"IF(Stock!#REF!<>\"\",ROUND(Stock!#REF!*J245,0),\"\")","v":{"$error":"#REF!"}},{"$f":"IF(Stock!#REF!<>\"\",$H245*K245,\"\")","v":{"$error":"#REF!"}},{"$f":"IF(Stock!#REF!<>\"\",Pilotage!N$27,\"\")","v":{"$error":"#REF!"}},{"$f":"IF(Stock!#REF!<>\"\",ROUND(K245*M245,0),\"\")","v":{"$error":"#REF!"}},{"$f":"IF(Stock!#REF!<>\"\",$H245*N245,\"\")","v":{"$error":"#REF!"}},{"$f":"IF(Stock!#REF!<>\"\",Pilotage!O$27,\"\")","v":{"$error":"#REF!"}},{"$f":"IF(Stock!#REF!<>\"\",ROUND(K245*P245,0),\"\")","v":{"$error":"#REF!"}},{"$f":"IF(Stock!#REF!<>\"\",$H245*Q245,\"\")","v":{"$error":"#REF!"}},{"$f":"IF(Stock!#REF!<>\"\",Pilotage!P$27,\"\")","v":{"$error":"#REF!"}},{"$f":"IF(Stock!#REF!<>\"\",ROUND(Q245*S245,0),\"\")","v":{"$error":"#REF!"}},{"$f":"IF(Stock!#REF!<>\"\",$H245*T245,\"\")","v":{"$error":"#REF!"}},{"$f":"IF(Stock!#REF!<>\"\",Pilotage!Q$27,\"\")","v":{"$error":"#REF!"}},{"$f":"IF(Stock!#REF!<>\"\",ROUND(T245*V245,0),\"\")","v":{"$error":"#REF!"}},{"$f":"IF(Stock!#REF!<>\"\",$H245*W245,\"\")","v":{"$error":"#REF!"}},{"$f":"IF(Stock!#REF!<>\"\",Pilotage!R$27,\"\")","v":{"$error":"#REF!"}},{"$f":"IF(Stock!#REF!<>\"\",ROUND(W245*Y245,0),\"\")","v":{"$error":"#REF!"}},{"$f":"IF(Stock!#REF!<>\"\",$H245*Z245,\"\")","v":{"$error":"#REF!"}}]
[{"$f":"IF(Stock!#REF!<>\"\",Stock!#REF!,\"\")","v":{"$error":"#REF!"}},{"$f":"IF(Stock!#REF!<>\"\",Stock!#REF!,\"\")","v":{"$error":"#REF!"}},{"$f":"IF(Stock!#REF!<>\"\",Stock!#REF!,\"\")","v":{"$error":"#REF!"}},{"$f":"IF(Stock!#REF!<>\"\",SUM(Stock!#REF!,Stock!#REF!,Stock!#REF!),\"\")","v":{"$error":"#REF!"}},{"$f":"IF(Stock!#REF!<>\"\",#REF!*(1+Pilotage!$M$20),\"\")","v":{"$error":"#REF!"}},null,{"$f":"IF(Stock!#REF!<>\"\",IF(Stock!#REF!>0,Stock!#REF!/Stock!#REF!,0),\"\")","v":{"$error":"#REF!"}},{"$f":"IF(Stock!#REF!<>\"\",E246*Pilotage!$D$15,\"\")","v":{"$error":"#REF!"}},{"$f":"IF(Stock!#REF!<>\"\",IF(Stock!#REF!>0,Stock!#REF!,0),\"\")","v":{"$error":"#REF!"}},{"$f":"IF(Stock!#REF!<>\"\",Pilotage!$M$27,\"\")","v":{"$error":"#REF!"}},{"$f":"IF(Stock!#REF!<>\"\",ROUND(Stock!#REF!*J246,0),\"\")","v":{"$error":"#REF!"}},{"$f":"IF(Stock!#REF!<>\"\",$H246*K246,\"\")","v":{"$error":"#REF!"}},{"$f":"IF(Stock!#REF!<>\"\",Pilotage!N$27,\"\")","v":{"$error":"#REF!"}},{"$f":"IF(Stock!#REF!<>\"\",ROUND(K246*M246,0),\"\")","v":{"$error":"#REF!"}},{"$f":"IF(Stock!#REF!<>\"\",$H246*N246,\"\")","v":{"$error":"#REF!"}},{"$f":"IF(Stock!#REF!<>\"\",Pilotage!O$27,\"\")","v":{"$error":"#REF!"}},{"$f":"IF(Stock!#REF!<>\"\",ROUND(K246*P246,0),\"\")","v":{"$error":"#REF!"}},{"$f":"IF(Stock!#REF!<>\"\",$H246*Q246,\"\")","v":{"$error":"#REF!"}},{"$f":"IF(Stock!#REF!<>\"\",Pilotage!P$27,\"\")","v":{"$error":"#REF!"}},{"$f":"IF(Stock!#REF!<>\"\",ROUND(Q246*S246,0),\"\")","v":{"$error":"#REF!"}},{"$f":"IF(Stock!#REF!<>\"\",$H246*T246,\"\")","v":{"$error":"#REF!"}},{"$f":"IF(Stock!#REF!<>\"\",Pilotage!Q$27,\"\")","v":{"$error":"#REF!"}},{"$f":"IF(Stock!#REF!<>\"\",ROUND(T246*V246,0),\"\")","v":{"$error":"#REF!"}},{"$f":"IF(Stock!#REF!<>\"\",$H246*W246,\"\")","v":{"$error":"#REF!"}},{"$f":"IF(Stock!#REF!<>\"\",Pilotage!R$27,\"\")","v":{"$error":"#REF!"}},{"$f":"IF(Stock!#REF!<>\"\",ROUND(W246*Y246,0),\"\")","v":{"$error":"#REF!"}},{"$f":"IF(Stock!#REF!<>\"\",$H246*Z246,\"\")","v":{"$error":"#REF!"}}]
[{"$f":"IF(Stock!#REF!<>\"\",Stock!#REF!,\"\")","v":{"$error":"#REF!"}},{"$f":"IF(Stock!#REF!<>\"\",Stock!#REF!,\"\")","v":{"$error":"#REF!"}},{"$f":"IF(Stock!#REF!<>\"\",Stock!#REF!,\"\")","v":{"$error":"#REF!"}},{"$f":"IF(Stock!#REF!<>\"\",SUM(Stock!#REF!,Stock!#REF!,Stock!#REF!),\"\")","v":{"$error":"#REF!"}},{"$f":"IF(Stock!#REF!<>\"\",#REF!*(1+Pilotage!$M$20),\"\")","v":{"$error":"#REF!"}},null,{"$f":"IF(Stock!#REF!<>\"\",IF(Stock!#REF!>0,Stock!#REF!/Stock!#REF!,0),\"\")","v":{"$error":"#REF!"}},{"$f":"IF(Stock!#REF!<>\"\",E247*Pilotage!$D$15,\"\")","v":{"$error":"#REF!"}},{"$f":"IF(Stock!#REF!<>\"\",IF(Stock!#REF!>0,Stock!#REF!,0),\"\")","v":{"$error":"#REF!"}},{"$f":"IF(Stock!#REF!<>\"\",Pilotage!$M$27,\"\")","v":{"$error":"#REF!"}},{"$f":"IF(Stock!#REF!<>\"\",ROUND(Stock!#REF!*J247,0),\"\")","v":{"$error":"#REF!"}},{"$f":"IF(Stock!#REF!<>\"\",$H247*K247,\"\")","v":{"$error":"#REF!"}},{"$f":"IF(Stock!#REF!<>\"\",Pilotage!N$27,\"\")","v":{"$error":"#REF!"}},{"$f":"IF(Stock!#REF!<>\"\",ROUND(K247*M247,0),\"\")","v":{"$error":"#REF!"}},{"$f":"IF(Stock!#REF!<>\"\",$H247*N247,\"\")","v":{"$error":"#REF!"}},{"$f":"IF(Stock!#REF!<>\"\",Pilotage!O$27,\"\")","v":{"$error":"#REF!"}},{"$f":"IF(Stock!#REF!<>\"\",ROUND(K247*P247,0),\"\")","v":{"$error":"#REF!"}},{"$f":"IF(Stock!#REF!<>\"\",$H247*Q247,\"\")","v":{"$error":"#REF!"}},{"$f":"IF(Stock!#REF!<>\"\",Pilotage!P$27,\"\")","v":{"$error":"#REF!"}},{"$f":"IF(Stock!#REF!<>\"\",ROUND(Q247*S247,0),\"\")","v":{"$error":"#REF!"}},{"$f":"IF(Stock!#REF!<>\"\",$H247*T247,\"\")","v":{"$error":"#REF!"}},{"$f":"IF(Stock!#REF!<>\"\",Pilotage!Q$27,\"\")","v":{"$error":"#REF!"}},{"$f":"IF(Stock!#REF!<>\"\",ROUND(T247*V247,0),\"\")","v":{"$error":"#REF!"}},{"$f":"IF(Stock!#REF!<>\"\",$H247*W247,\"\")","v":{"$error":"#REF!"}},{"$f":"IF(Stock!#REF!<>\"\",Pilotage!R$27,\"\")","v":{"$error":"#REF!"}},{"$f":"IF(Stock!#REF!<>\"\",ROUND(W247*Y247,0),\"\")","v":{"$error":"#REF!"}},{"$f":"IF(Stock!#REF!<>\"\",$H247*Z247,\"\")","v":{"$error":"#REF!"}}]
[{"$f":"IF(Stock!#REF!<>\"\",Stock!#REF!,\"\")","v":{"$error":"#REF!"}},{"$f":"IF(Stock!#REF!<>\"\",Stock!#REF!,\"\")","v":{"$error":"#REF!"}},{"$f":"IF(Stock!#REF!<>\"\",Stock!#REF!,\"\")","v":{"$error":"#REF!"}},{"$f":"IF(Stock!#REF!<>\"\",SUM(Stock!#REF!,Stock!#REF!,Stock!#REF!),\"\")","v":{"$error":"#REF!"}},{"$f":"IF(Stock!#REF!<>\"\",#REF!*(1+Pilotage!$M$20),\"\")","v":{"$error":"#REF!"}},null,{"$f":"IF(Stock!#REF!<>\"\",IF(Stock!#REF!>0,Stock!#REF!/Stock!#REF!,0),\"\")","v":{"$error":"#REF!"}},{"$f":"IF(Stock!#REF!<>\"\",E248*Pilotage!$D$15,\"\")","v":{"$error":"#REF!"}},{"$f":"IF(Stock!#REF!<>\"\",IF(Stock!#REF!>0,Stock!#REF!,0),\"\")","v":{"$error":"#REF!"}},{"$f":"IF(Stock!#REF!<>\"\",Pilotage!$M$27,\"\")","v":{"$error":"#REF!"}},{"$f":"IF(Stock!#REF!<>\"\",ROUND(Stock!#REF!*J248,0),\"\")","v":{"$error":"#REF!"}},{"$f":"IF(Stock!#REF!<>\"\",$H248*K248,\"\")","v":{"$error":"#REF!"}},{"$f":"IF(Stock!#REF!<>\"\",Pilotage!N$27,\"\")","v":{"$error":"#REF!"}},{"$f":"IF(Stock!#REF!<>\"\",ROUND(K248*M248,0),\"\")","v":{"$error":"#REF!"}},{"$f":"IF(Stock!#REF!<>\"\",$H248*N248,\"\")","v":{"$error":"#REF!"}},{"$f":"IF(Stock!#REF!<>\"\",Pilotage!O$27,\"\")","v":{"$error":"#REF!"}},{"$f":"IF(Stock!#REF!<>\"\",ROUND(K248*P248,0),\"\")","v":{"$error":"#REF!"}},{"$f":"IF(Stock!#REF!<>\"\",$H248*Q248,\"\")","v":{"$error":"#REF!"}},{"$f":"IF(Stock!#REF!<>\"\",Pilotage!P$27,\"\")","v":{"$error":"#REF!"}},{"$f":"IF(Stock!#REF!<>\"\",ROUND(Q248*S248,0),\"\")","v":{"$error":"#REF!"}},{"$f":"IF(Stock!#REF!<>\"\",$H248*T248,\"\")","v":{"$error":"#REF!"}},{"$f":"IF(Stock!#REF!<>\"\",Pilotage!Q$27,\"\")","v":{"$error":"#REF!"}},{"$f":"IF(Stock!#REF!<>\"\",ROUND(T248*V248,0),\"\")","v":{"$error":"#REF!"}},{"$f":"IF(Stock!#REF!<>\"\",$H248*W248,\"\")","v":{"$error":"#REF!"}},{"$f":"IF(Stock!#REF!<>\"\",Pilotage!R$27,\"\")","v":{"$error":"#REF!"}},{"$f":"IF(Stock!#REF!<>\"\",ROUND(W248*Y248,0),\"\")","v":{"$error":"#REF!"}},{"$f":"IF(Stock!#REF!<>\"\",$H248*Z248,\"\")","v":{"$error":"#REF!"}}]
[{"$f":"IF(Stock!#REF!<>\"\",Stock!#REF!,\"\")","v":{"$error":"#REF!"}},{"$f":"IF(Stock!#REF!<>\"\",Stock!#REF!,\"\")","v":{"$error":"#REF!"}},{"$f":"IF(Stock!#REF!<>\"\",Stock!#REF!,\"\")","v":{"$error":"#REF!"}},{"$f":"IF(Stock!#REF!<>\"\",SUM(Stock!#REF!,Stock!#REF!,Stock!#REF!),\"\")","v":{"$error":"#REF!"}},{"$f":"IF(Stock!#REF!<>\"\",#REF!*(1+Pilotage!$M$20),\"\")","v":{"$error":"#REF!"}},null,{"$f":"IF(Stock!#REF!<>\"\",IF(Stock!#REF!>0,Stock!#REF!/Stock!#REF!,0),\"\")","v":{"$error":"#REF!"}},{"$f":"IF(Stock!#REF!<>\"\",E249*Pilotage!$D$15,\"\")","v":{"$error":"#REF!"}},{"$f":"IF(Stock!#REF!<>\"\",IF(Stock!#REF!>0,Stock!#REF!,0),\"\")","v":{"$error":"#REF!"}},{"$f":"IF(Stock!#REF!<>\"\",Pilotage!$M$27,\"\")","v":{"$error":"#REF!"}},{"$f":"IF(Stock!#REF!<>\"\",ROUND(Stock!#REF!*J249,0),\"\")","v":{"$error":"#REF!"}},{"$f":"IF(Stock!#REF!<>\"\",$H249*K249,\"\")","v":{"$error":"#REF!"}},{"$f":"IF(Stock!#REF!<>\"\",Pilotage!N$27,\"\")","v":{"$error":"#REF!"}},{"$f":"IF(Stock!#REF!<>\"\",ROUND(K249*M249,0),\"\")","v":{"$error":"#REF!"}},{"$f":"IF(Stock!#REF!<>\"\",$H249*N249,\"\")","v":{"$error":"#REF!"}},{"$f":"IF(Stock!#REF!<>\"\",Pilotage!O$27,\"\")","v":{"$error":"#REF!"}},{"$f":"IF(Stock!#REF!<>\"\",ROUND(K249*P249,0),\"\")","v":{"$error":"#REF!"}},{"$f":"IF(Stock!#REF!<>\"\",$H249*Q249,\"\")","v":{"$error":"#REF!"}},{"$f":"IF(Stock!#REF!<>\"\",Pilotage!P$27,\"\")","v":{"$error":"#REF!"}},{"$f":"IF(Stock!#REF!<>\"\",ROUND(Q249*S249,0),\"\")","v":{"$error":"#REF!"}},{"$f":"IF(Stock!#REF!<>\"\",$H249*T249,\"\")","v":{"$error":"#REF!"}},{"$f":"IF(Stock!#REF!<>\"\",Pilotage!Q$27,\"\")","v":{"$error":"#REF!"}},{"$f":"IF(Stock!#REF!<>\"\",ROUND(T249*V249,0),\"\")","v":{"$error":"#REF!"}},{"$f":"IF(Stock!#REF!<>\"\",$H249*W249,\"\")","v":{"$error":"#REF!"}},{"$f":"IF(Stock!#REF!<>\"\",Pilotage!R$27,\"\")","v":{"$error":"#REF!"}},{"$f":"IF(Stock!#REF!<>\"\",ROUND(W249*Y249,0),\"\")","v":{"$error":"#REF!"}},{"$f":"IF(Stock!#REF!<>\"\",$H249*Z249,\"\")","v":{"$error":"#REF!"}}]
[{"$f":"IF(Stock!#REF!<>\"\",Stock!#REF!,\"\")","v":{"$error":"#REF!"}},{"$f":"IF(Stock!#REF!<>\"\",Stock!#REF!,\"\")","v":{"$error":"#REF!"}},{"$f":"IF(Stock!#REF!<>\"\",Stock!#REF!,\"\")","v":{"$error":"#REF!"}},{"$f":"IF(Stock!#REF!<>\"\",SUM(Stock!#REF!,Stock!#REF!,Stock!#REF!),\"\")","v":{"$error":"#REF!"}},{"$f":"IF(Stock!#REF!<>\"\",#REF!*(1+Pilotage!$M$20),\"\")","v":{"$error":"#REF!"}},null,{"$f":"IF(Stock!#REF!<>\"\",IF(Stock!#REF!>0,Stock!#REF!/Stock!#REF!,0),\"\")","v":{"$error":"#REF!"}},{"$f":"IF(Stock!#REF!<>\"\",E250*Pilotage!$D$15,\"\")","v":{"$error":"#REF!"}},{"$f":"IF(Stock!#REF!<>\"\",IF(Stock!#REF!>0,Stock!#REF!,0),\"\")","v":{"$error":"#REF!"}},{"$f":"IF(Stock!#REF!<>\"\",Pilotage!$M$27,\"\")","v":{"$error":"#REF!"}},{"$f":"IF(Stock!#REF!<>\"\",ROUND(Stock!#REF!*J250,0),\"\")","v":{"$error":"#REF!"}},{"$f":"IF(Stock!#REF!<>\"\",$H250*K250,\"\")","v":{"$error":"#REF!"}},{"$f":"IF(Stock!#REF!<>\"\",Pilotage!N$27,\"\")","v":{"$error":"#REF!"}},{"$f":"IF(Stock!#REF!<>\"\",ROUND(K250*M250,0),\"\")","v":{"$error":"#REF!"}},{"$f":"IF(Stock!#REF!<>\"\",$H250*N250,\"\")","v":{"$error":"#REF!"}},{"$f":"IF(Stock!#REF!<>\"\",Pilotage!O$27,\"\")","v":{"$error":"#REF!"}},{"$f":"IF(Stock!#REF!<>\"\",ROUND(K250*P250,0),\"\")","v":{"$error":"#REF!"}},{"$f":"IF(Stock!#REF!<>\"\",$H250*Q250,\"\")","v":{"$error":"#REF!"}},{"$f":"IF(Stock!#REF!<>\"\",Pilotage!P$27,\"\")","v":{"$error":"#REF!"}},{"$f":"IF(Stock!#REF!<>\"\",ROUND(Q250*S250,0),\"\")","v":{"$error":"#REF!"}},{"$f":"IF(Stock!#REF!<>\"\",$H250*T250,\"\")","v":{"$error":"#REF!"}},{"$f":"IF(Stock!#REF!<>\"\",Pilotage!Q$27,\"\")","v":{"$error":"#REF!"}},{"$f":"IF(Stock!#REF!<>\"\",ROUND(T250*V250,0),\"\")","v":{"$error":"#REF!"}},{"$f":"IF(Stock!#REF!<>\"\",$H250*W250,\"\")","v":{"$error":"#REF!"}},{"$f":"IF(Stock!#REF!<>\"\",Pilotage!R$27,\"\")","v":{"$error":"#REF!"}},{"$f":"IF(Stock!#REF!<>\"\",ROUND(W250*Y250,0),\"\")","v":{"$error":"#REF!"}},{"$f":"IF(Stock!#REF!<>\"\",$H250*Z250,\"\")","v":{"$error":"#REF!"}}]
[{"$f":"IF(Stock!#REF!<>\"\",Stock!#REF!,\"\")","v":{"$error":"#REF!"}},{"$f":"IF(Stock!#REF!<>\"\",Stock!#REF!,\"\")","v":{"$error":"#REF!"}},{"$f":"IF(Stock!#REF!<>\"\",Stock!#REF!,\"\")","v":{"$error":"#REF!"}},{"$f":"IF(Stock!#REF!<>\"\",SUM(Stock!#REF!,Stock!#REF!,Stock!#REF!),\"\")","v":{"$error":"#REF!"}},{"$f":"IF(Stock!#REF!<>\"\",#REF!*(1+Pilotage!$M$20),\"\")","v":{"$error":"#REF!"}},null,{"$f":"IF(Stock!#REF!<>\"\",IF(Stock!#REF!>0,Stock!#REF!/Stock!#REF!,0),\"\")","v":{"$error":"#REF!"}},{"$f":"IF(Stock!#REF!<>\"\",E251*Pilotage!$D$15,\"\")","v":{"$error":"#REF!"}},{"$f":"IF(Stock!#REF!<>\"\",IF(Stock!#REF!>0,Stock!#REF!,0),\"\")","v":{"$error":"#REF!"}},{"$f":"IF(Stock!#REF!<>\"\",Pilotage!$M$27,\"\")","v":{"$error":"#REF!"}},{"$f":"IF(Stock!#REF!<>\"\",ROUND(Stock!#REF!*J251,0),\"\")","v":{"$error":"#REF!"}},{"$f":"IF(Stock!#REF!<>\"\",$H251*K251,\"\")","v":{"$error":"#REF!"}},{"$f":"IF(Stock!#REF!<>\"\",Pilotage!N$27,\"\")","v":{"$error":"#REF!"}},{"$f":"IF(Stock!#REF!<>\"\",ROUND(K251*M251,0),\"\")","v":{"$error":"#REF!"}},{"$f":"IF(Stock!#REF!<>\"\",$H251*N251,\"\")","v":{"$error":"#REF!"}},{"$f":"IF(Stock!#REF!<>\"\",Pilotage!O$27,\"\")","v":{"$error":"#REF!"}},{"$f":"IF(Stock!#REF!<>\"\",ROUND(K251*P251,0),\"\")","v":{"$error":"#REF!"}},{"$f":"IF(Stock!#REF!<>\"\",$H251*Q251,\"\")","v":{"$error":"#REF!"}},{"$f":"IF(Stock!#REF!<>\"\",Pilotage!P$27,\"\")","v":{"$error":"#REF!"}},{"$f":"IF(Stock!#REF!<>\"\",ROUND(Q251*S251,0),\"\")","v":{"$error":"#REF!"}},{"$f":"IF(Stock!#REF!<>\"\",$H251*T251,\"\")","v":{"$error":"#REF!"}},{"$f":"IF(Stock!#REF!<>\"\",Pilotage!Q$27,\"\")","v":{"$error":"#REF!"}},{"$f":"IF(Stock!#REF!<>\"\",ROUND(T251*V251,0),\"\")","v":{"$error":"#REF!"}},{"$f":"IF(Stock!#REF!<>\"\",$H251*W251,\"\")","v":{"$error":"#REF!"}},{"$f":"IF(Stock!#REF!<>\"\",Pilotage!R$27,\"\")","v":{"$error":"#REF!"}},{"$f":"IF(Stock!#REF!<>\"\",ROUND(W251*Y251,0),\"\")","v":{"$error":"#REF!"}},{"$f":"IF(Stock!#REF!<>\"\",$H251*Z251,\"\")","v":{"$error":"#REF!"}}]
[{"$f":"IF(Stock!#REF!<>\"\",Stock!#REF!,\"\")","v":{"$error":"#REF!"}},{"$f":"IF(Stock!#REF!<>\"\",Stock!#REF!,\"\")","v":{"$error":"#REF!"}},{"$f":"IF(Stock!#REF!<>\"\",Stock!#REF!,\"\")","v":{"$error":"#REF!"}},{"$f":"IF(Stock!#REF!<>\"\",SUM(Stock!#REF!,Stock!#REF!,Stock!#REF!),\"\")","v":{"$error":"#REF!"}},{"$f":"IF(Stock!#REF!<>\"\",#REF!*(1+Pilotage!$M$20),\"\")","v":{"$error":"#REF!"}},null,{"$f":"IF(Stock!#REF!<>\"\",IF(Stock!#REF!>0,Stock!#REF!/Stock!#REF!,0),\"\")","v":{"$error":"#REF!"}},{"$f":"IF(Stock!#REF!<>\"\",E252*Pilotage!$D$15,\"\")","v":{"$error":"#REF!"}},{"$f":"IF(Stock!#REF!<>\"\",IF(Stock!#REF!>0,Stock!#REF!,0),\"\")","v":{"$error":"#REF!"}},{"$f":"IF(Stock!#REF!<>\"\",Pilotage!$M$27,\"\")","v":{"$error":"#REF!"}},{"$f":"IF(Stock!#REF!<>\"\",ROUND(Stock!#REF!*J252,0),\"\")","v":{"$error":"#REF!"}},{"$f":"IF(Stock!#REF!<>\"\",$H252*K252,\"\")","v":{"$error":"#REF!"}},{"$f":"IF(Stock!#REF!<>\"\",Pilotage!N$27,\"\")","v":{"$error":"#REF!"}},{"$f":"IF(Stock!#REF!<>\"\",ROUND(K252*M252,0),\"\")","v":{"$error":"#REF!"}},{"$f":"IF(Stock!#REF!<>\"\",$H252*N252,\"\")","v":{"$error":"#REF!"}},{"$f":"IF(Stock!#REF!<>\"\",Pilotage!O$27,\"\")","v":{"$error":"#REF!"}},{"$f":"IF(Stock!#REF!<>\"\",ROUND(K252*P252,0),\"\")","v":{"$error":"#REF!"}},{"$f":"IF(Stock!#REF!<>\"\",$H252*Q252,\"\")","v":{"$error":"#REF!"}},{"$f":"IF(Stock!#REF!<>\"\",Pilotage!P$27,\"\")","v":{"$error":"#REF!"}},{"$f":"IF(Stock!#REF!<>\"\",ROUND(Q252*S252,0),\"\")","v":{"$error":"#REF!"}},{"$f":"IF(Stock!#REF!<>\"\",$H252*T252,\"\")","v":{"$error":"#REF!"}},{"$f":"IF(Stock!#REF!<>\"\",Pilotage!Q$27,\"\")","v":{"$error":"#REF!"}},{"$f":"IF(Stock!#REF!<>\"\",ROUND(T252*V252,0),\"\")","v":{"$error":"#REF!"}},{"$f":"IF(Stock!#REF!<>\"\",$H252*W252,\"\")","v":{"$error":"#REF!"}},{"$f":"IF(Stock!#REF!<>\"\",Pilotage!R$27,\"\")","v":{"$error":"#REF!"}},{"$f":"IF(Stock!#REF!<>\"\",ROUND(W252*Y252,0),\"\")","v":{"$error":"#REF!"}},{"$f":"IF(Stock!#REF!<>\"\",$H252*Z252,\"\")","v":{"$error":"#REF!"}}]
[{"$f":"IF(Stock!#REF!<>\"\",Stock!#REF!,\"\")","v":{"$error":"#REF!"}},{"$f":"IF(Stock!#REF!<>\"\",Stock!#REF!,\"\")","v":{"$error":"#REF!"}},{"$f":"IF(Stock!#REF!<>\"\",Stock!#REF!,\"\")","v":{"$error":"#REF!"}},{"$f":"IF(Stock!#REF!<>\"\",SUM(Stock!#REF!,Stock!#REF!,Stock!#REF!),\"\")","v":{"$error":"#REF!"}},{"$f":"IF(Stock!#REF!<>\"\",#REF!*(1+Pilotage!$M$20),\"\")","v":{"$error":"#REF!"}},null,{"$f":"IF(Stock!#REF!<>\"\",IF(Stock!#REF!>0,Stock!#REF!/Stock!#REF!,0),\"\")","v":{"$error":"#REF!"}},{"$f":"IF(Stock!#REF!<>\"\",E253*Pilotage!$D$15,\"\")","v":{"$error":"#REF!"}},{"$f":"IF(Stock!#REF!<>\"\",IF(Stock!#REF!>0,Stock!#REF!,0),\"\")","v":{"$error":"#REF!"}},{"$f":"IF(Stock!#REF!<>\"\",Pilotage!$M$27,\"\")","v":{"$error":"#REF!"}},{"$f":"IF(Stock!#REF!<>\"\",ROUND(Stock!#REF!*J253,0),\"\")","v":{"$error":"#REF!"}},{"$f":"IF(Stock!#REF!<>\"\",$H253*K253,\"\")","v":{"$error":"#REF!"}},{"$f":"IF(Stock!#REF!<>\"\",Pilotage!N$27,\"\")","v":{"$error":"#REF!"}},{"$f":"IF(Stock!#REF!<>\"\",ROUND(K253*M253,0),\"\")","v":{"$error":"#REF!"}},{"$f":"IF(Stock!#REF!<>\"\",$H253*N253,\"\")","v":{"$error":"#REF!"}},{"$f":"IF(Stock!#REF!<>\"\",Pilotage!O$27,\"\")","v":{"$error":"#REF!"}},{"$f":"IF(Stock!#REF!<>\"\",ROUND(K253*P253,0),\"\")","v":{"$error":"#REF!"}},{"$f":"IF(Stock!#REF!<>\"\",$H253*Q253,\"\")","v":{"$error":"#REF!"}},{"$f":"IF(Stock!#REF!<>\"\",Pilotage!P$27,\"\")","v":{"$error":"#REF!"}},{"$f":"IF(Stock!#REF!<>\"\",ROUND(Q253*S253,0),\"\")","v":{"$error":"#REF!"}},{"$f":"IF(Stock!#REF!<>\"\",$H253*T253,\"\")","v":{"$error":"#REF!"}},{"$f":"IF(Stock!#REF!<>\"\",Pilotage!Q$27,\"\")","v":{"$error":"#REF!"}},{"$f":"IF(Stock!#REF!<>\"\",ROUND(T253*V253,0),\"\")","v":{"$error":"#REF!"}},{"$f":"IF(Stock!#REF!<>\"\",$H253*W253,\"\")","v":{"$error":"#REF!"}},{"$f":"IF(Stock!#REF!<>\"\",Pilotage!R$27,\"\")","v":{"$error":"#REF!"}},{"$f":"IF(Stock!#REF!<>\"\",ROUND(W253*Y253,0),\"\")","v":{"$error":"#REF!"}},{"$f":"IF(Stock!#REF!<>\"\",$H253*Z253,\"\")","v":{"$error":"#REF!"}}]
[{"$f":"IF(Stock!#REF!<>\"\",Stock!#REF!,\"\")","v":{"$error":"#REF!"}},{"$f":"IF(Stock!#REF!<>\"\",Stock!#REF!,\"\")","v":{"$error":"#REF!"}},{"$f":"IF(Stock!#REF!<>\"\",Stock!#REF!,\"\")","v":{"$error":"#REF!"}},{"$f":"IF(Stock!#REF!<>\"\",SUM(Stock!#REF!,Stock!#REF!,Stock!#REF!),\"\")","v":{"$error":"#REF!"}},{"$f":"IF(Stock!#REF!<>\"\",#REF!*(1+Pilotage!$M$20),\"\")","v":{"$error":"#REF!"}},null,{"$f":"IF(Stock!#REF!<>\"\",IF(Stock!#REF!>0,Stock!#REF!/Stock!#REF!,0),\"\")","v":{"$error":"#REF!"}},{"$f":"IF(Stock!#REF!<>\"\",E254*Pilotage!$D$15,\"\")","v":{"$error":"#REF!"}},{"$f":"IF(Stock!#REF!<>\"\",IF(Stock!#REF!>0,Stock!#REF!,0),\"\")","v":{"$error":"#REF!"}},{"$f":"IF(Stock!#REF!<>\"\",Pilotage!$M$27,\"\")","v":{"$error":"#REF!"}},{"$f":"IF(Stock!#REF!<>\"\",ROUND(Stock!#REF!*J254,0),\"\")","v":{"$error":"#REF!"}},{"$f":"IF(Stock!#REF!<>\"\",$H254*K254,\"\")","v":{"$error":"#REF!"}},{"$f":"IF(Stock!#REF!<>\"\",Pilotage!N$27,\"\")","v":{"$error":"#REF!"}},{"$f":"IF(Stock!#REF!<>\"\",ROUND(K254*M254,0),\"\")","v":{"$error":"#REF!"}},{"$f":"IF(Stock!#REF!<>\"\",$H254*N254,\"\")","v":{"$error":"#REF!"}},{"$f":"IF(Stock!#REF!<>\"\",Pilotage!O$27,\"\")","v":{"$error":"#REF!"}},{"$f":"IF(Stock!#REF!<>\"\",ROUND(K254*P254,0),\"\")","v":{"$error":"#REF!"}},{"$f":"IF(Stock!#REF!<>\"\",$H254*Q254,\"\")","v":{"$error":"#REF!"}},{"$f":"IF(Stock!#REF!<>\"\",Pilotage!P$27,\"\")","v":{"$error":"#REF!"}},{"$f":"IF(Stock!#REF!<>\"\",ROUND(Q254*S254,0),\"\")","v":{"$error":"#REF!"}},{"$f":"IF(Stock!#REF!<>\"\",$H254*T254,\"\")","v":{"$error":"#REF!"}},{"$f":"IF(Stock!#REF!<>\"\",Pilotage!Q$27,\"\")","v":{"$error":"#REF!"}},{"$f":"IF(Stock!#REF!<>\"\",ROUND(T254*V254,0),\"\")","v":{"$error":"#REF!"}},{"$f":"IF(Stock!#REF!<>\"\",$H254*W254,\"\")","v":{"$error":"#REF!"}},{"$f":"IF(Stock!#REF!<>\"\",Pilotage!R$27,\"\")","v":{"$error":"#REF!"}},{"$f":"IF(Stock!#REF!<>\"\",ROUND(W254*Y254,0),\"\")","v":{"$error":"#REF!"}},{"$f":"IF(Stock!#REF!<>\"\",$H254*Z254,\"\")","v":{"$error":"#REF!"}}]
[{"$f":"IF(Stock!#REF!<>\"\",Stock!#REF!,\"\")","v":{"$error":"#REF!"}},{"$f":"IF(Stock!#REF!<>\"\",Stock!#REF!,\"\")","v":{"$error":"#REF!"}},{"$f":"IF(Stock!#REF!<>\"\",Stock!#REF!,\"\")","v":{"$error":"#REF!"}},{"$f":"IF(Stock!#REF!<>\"\",SUM(Stock!#REF!,Stock!#REF!,Stock!#REF!),\"\")","v":{"$error":"#REF!"}},{"$f":"IF(Stock!#REF!<>\"\",#REF!*(1+Pilotage!$M$20),\"\")","v":{"$error":"#REF!"}},null,{"$f":"IF(Stock!#REF!<>\"\",IF(Stock!#REF!>0,Stock!#REF!/Stock!#REF!,0),\"\")","v":{"$error":"#REF!"}},{"$f":"IF(Stock!#REF!<>\"\",E255*Pilotage!$D$15,\"\")","v":{"$error":"#REF!"}},{"$f":"IF(Stock!#REF!<>\"\",IF(Stock!#REF!>0,Stock!#REF!,0),\"\")","v":{"$error":"#REF!"}},{"$f":"IF(Stock!#REF!<>\"\",Pilotage!$M$27,\"\")","v":{"$error":"#REF!"}},{"$f":"IF(Stock!#REF!<>\"\",ROUND(Stock!#REF!*J255,0),\"\")","v":{"$error":"#REF!"}},{"$f":"IF(Stock!#REF!<>\"\",$H255*K255,\"\")","v":{"$error":"#REF!"}},{"$f":"IF(Stock!#REF!<>\"\",Pilotage!N$27,\"\")","v":{"$error":"#REF!"}},{"$f":"IF(Stock!#REF!<>\"\",ROUND(K255*M255,0),\"\")","v":{"$error":"#REF!"}},{"$f":"IF(Stock!#REF!<>\"\",$H255*N255,\"\")","v":{"$error":"#REF!"}},{"$f":"IF(Stock!#REF!<>\"\",Pilotage!O$27,\"\")","v":{"$error":"#REF!"}},{"$f":"IF(Stock!#REF!<>\"\",ROUND(K255*P255,0),\"\")","v":{"$error":"#REF!"}},{"$f":"IF(Stock!#REF!<>\"\",$H255*Q255,\"\")","v":{"$error":"#REF!"}},{"$f":"IF(Stock!#REF!<>\"\",Pilotage!P$27,\"\")","v":{"$error":"#REF!"}},{"$f":"IF(Stock!#REF!<>\"\",ROUND(Q255*S255,0),\"\")","v":{"$error":"#REF!"}},{"$f":"IF(Stock!#REF!<>\"\",$H255*T255,\"\")","v":{"$error":"#REF!"}},{"$f":"IF(Stock!#REF!<>\"\",Pilotage!Q$27,\"\")","v":{"$error":"#REF!"}},{"$f":"IF(Stock!#REF!<>\"\",ROUND(T255*V255,0),\"\")","v":{"$error":"#REF!"}},{"$f":"IF(Stock!#REF!<>\"\",$H255*W255,\"\")","v":{"$error":"#REF!"}},{"$f":"IF(Stock!#REF!<>\"\",Pilotage!R$27,\"\")","v":{"$error":"#REF!"}},{"$f":"IF(Stock!#REF!<>\"\",ROUND(W255*Y255,0),\"\")","v":{"$error":"#REF!"}},{"$f":"IF(Stock!#REF!<>\"\",$H255*Z255,\"\")","v":{"$error":"#REF!"}}]
[{"$f":"IF(Stock!#REF!<>\"\",Stock!#REF!,\"\")","v":{"$error":"#REF!"}},{"$f":"IF(Stock!#REF!<>\"\",Stock!#REF!,\"\")","v":{"$error":"#REF!"}},{"$f":"IF(Stock!#REF!<>\"\",Stock!#REF!,\"\")","v":{"$error":"#REF!"}},{"$f":"IF(Stock!#REF!<>\"\",SUM(Stock!#REF!,Stock!#REF!,Stock!#REF!),\"\")","v":{"$error":"#REF!"}},{"$f":"IF(Stock!#REF!<>\"\",#REF!*(1+Pilotage!$M$20),\"\")","v":{"$error":"#REF!"}},null,{"$f":"IF(Stock!#REF!<>\"\",IF(Stock!#REF!>0,Stock!#REF!/Stock!#REF!,0),\"\")","v":{"$error":"#REF!"}},{"$f":"IF(Stock!#REF!<>\"\",E256*Pilotage!$D$15,\"\")","v":{"$error":"#REF!"}},{"$f":"IF(Stock!#REF!<>\"\",IF(Stock!#REF!>0,Stock!#REF!,0),\"\")","v":{"$error":"#REF!"}},{"$f":"IF(Stock!#REF!<>\"\",Pilotage!$M$27,\"\")","v":{"$error":"#REF!"}},{"$f":"IF(Stock!#REF!<>\"\",ROUND(Stock!#REF!*J256,0),\"\")","v":{"$error":"#REF!"}},{"$f":"IF(Stock!#REF!<>\"\",$H256*K256,\"\")","v":{"$error":"#REF!"}},{"$f":"IF(Stock!#REF!<>\"\",Pilotage!N$27,\"\")","v":{"$error":"#REF!"}},{"$f":"IF(Stock!#REF!<>\"\",ROUND(K256*M256,0),\"\")","v":{"$error":"#REF!"}},{"$f":"IF(Stock!#REF!<>\"\",$H256*N256,\"\")","v":{"$error":"#REF!"}},{"$f":"IF(Stock!#REF!<>\"\",Pilotage!O$27,\"\")","v":{"$error":"#REF!"}},{"$f":"IF(Stock!#REF!<>\"\",ROUND(K256*P256,0),\"\")","v":{"$error":"#REF!"}},{"$f":"IF(Stock!#REF!<>\"\",$H256*Q256,\"\")","v":{"$error":"#REF!"}},{"$f":"IF(Stock!#REF!<>\"\",Pilotage!P$27,\"\")","v":{"$error":"#REF!"}},{"$f":"IF(Stock!#REF!<>\"\",ROUND(Q256*S256,0),\"\")","v":{"$error":"#REF!"}},{"$f":"IF(Stock!#REF!<>\"\",$H256*T256,\"\")","v":{"$error":"#REF!"}},{"$f":"IF(Stock!#REF!<>\"\",Pilotage!Q$27,\"\")","v":{"$error":"#REF!"}},{"$f":"IF(Stock!#REF!<>\"\",ROUND(T256*V256,0),\"\")","v":{"$error":"#REF!"}},{"$f":"IF(Stock!#REF!<>\"\",$H256*W256,\"\")","v":{"$error":"#REF!"}},{"$f":"IF(Stock!#REF!<>\"\",Pilotage!R$27,\"\")","v":{"$error":"#REF!"}},{"$f":"IF(Stock!#REF!<>\"\",ROUND(W256*Y256,0),\"\")","v":{"$error":"#REF!"}},{"$f":"IF(Stock!#REF!<>\"\",$H256*Z256,\"\")","v":{"$error":"#REF!"}}]
[{"$f":"IF(Stock!#REF!<>\"\",Stock!#REF!,\"\")","v":{"$error":"#REF!"}},{"$f":"IF(Stock!#REF!<>\"\",Stock!#REF!,\"\")","v":{"$error":"#REF!"}},{"$f":"IF(Stock!#REF!<>\"\",Stock!#REF!,\"\")","v":{"$error":"#REF!"}},{"$f":"IF(Stock!#REF!<>\"\",SUM(Stock!#REF!,Stock!#REF!,Stock!#REF!),\"\")","v":{"$error":"#REF!"}},{"$f":"IF(Stock!#REF!<>\"\",#REF!*(1+Pilotage!$M$20),\"\")","v":{"$error":"#REF!"}},null,{"$f":"IF(Stock!#REF!<>\"\",IF(Stock!#REF!>0,Stock!#REF!/Stock!#REF!,0),\"\")","v":{"$error":"#REF!"}},{"$f":"IF(Stock!#REF!<>\"\",E257*Pilotage!$D$15,\"\")","v":{"$error":"#REF!"}},{"$f":"IF(Stock!#REF!<>\"\",IF(Stock!#REF!>0,Stock!#REF!,0),\"\")","v":{"$error":"#REF!"}},{"$f":"IF(Stock!#REF!<>\"\",Pilotage!$M$27,\"\")","v":{"$error":"#REF!"}},{"$f":"IF(Stock!#REF!<>\"\",ROUND(Stock!#REF!*J257,0),\"\")","v":{"$error":"#REF!"}},{"$f":"IF(Stock!#REF!<>\"\",$H257*K257,\"\")","v":{"$error":"#REF!"}},{"$f":"IF(Stock!#REF!<>\"\",Pilotage!N$27,\"\")","v":{"$error":"#REF!"}},{"$f":"IF(Stock!#REF!<>\"\",ROUND(K257*M257,0),\"\")","v":{"$error":"#REF!"}},{"$f":"IF(Stock!#REF!<>\"\",$H257*N257,\"\")","v":{"$error":"#REF!"}},{"$f":"IF(Stock!#REF!<>\"\",Pilotage!O$27,\"\")","v":{"$error":"#REF!"}},{"$f":"IF(Stock!#REF!<>\"\",ROUND(K257*P257,0),\"\")","v":{"$error":"#REF!"}},{"$f":"IF(Stock!#REF!<>\"\",$H257*Q257,\"\")","v":{"$error":"#REF!"}},{"$f":"IF(Stock!#REF!<>\"\",Pilotage!P$27,\"\")","v":{"$error":"#REF!"}},{"$f":"IF(Stock!#REF!<>\"\",ROUND(Q257*S257,0),\"\")","v":{"$error":"#REF!"}},{"$f":"IF(Stock!#REF!<>\"\",$H257*T257,\"\")","v":{"$error":"#REF!"}},{"$f":"IF(Stock!#REF!<>\"\",Pilotage!Q$27,\"\")","v":{"$error":"#REF!"}},{"$f":"IF(Stock!#REF!<>\"\",ROUND(T257*V257,0),\"\")","v":{"$error":"#REF!"}},{"$f":"IF(Stock!#REF!<>\"\",$H257*W257,\"\")","v":{"$error":"#REF!"}},{"$f":"IF(Stock!#REF!<>\"\",Pilotage!R$27,\"\")","v":{"$error":"#REF!"}},{"$f":"IF(Stock!#REF!<>\"\",ROUND(W257*Y257,0),\"\")","v":{"$error":"#REF!"}},{"$f":"IF(Stock!#REF!<>\"\",$H257*Z257,\"\")","v":{"$error":"#REF!"}}]
[{"$f":"IF(Stock!#REF!<>\"\",Stock!#REF!,\"\")","v":{"$error":"#REF!"}},{"$f":"IF(Stock!#REF!<>\"\",Stock!#REF!,\"\")","v":{"$error":"#REF!"}},{"$f":"IF(Stock!#REF!<>\"\",Stock!#REF!,\"\")","v":{"$error":"#REF!"}},{"$f":"IF(Stock!#REF!<>\"\",SUM(Stock!#REF!,Stock!#REF!,Stock!#REF!),\"\")","v":{"$error":"#REF!"}},{"$f":"IF(Stock!#REF!<>\"\",#REF!*(1+Pilotage!$M$20),\"\")","v":{"$error":"#REF!"}},null,{"$f":"IF(Stock!#REF!<>\"\",IF(Stock!#REF!>0,Stock!#REF!/Stock!#REF!,0),\"\")","v":{"$error":"#REF!"}},{"$f":"IF(Stock!#REF!<>\"\",E258*Pilotage!$D$15,\"\")","v":{"$error":"#REF!"}},{"$f":"IF(Stock!#REF!<>\"\",IF(Stock!#REF!>0,Stock!#REF!,0),\"\")","v":{"$error":"#REF!"}},{"$f":"IF(Stock!#REF!<>\"\",Pilotage!$M$27,\"\")","v":{"$error":"#REF!"}},{"$f":"IF(Stock!#REF!<>\"\",ROUND(Stock!#REF!*J258,0),\"\")","v":{"$error":"#REF!"}},{"$f":"IF(Stock!#REF!<>\"\",$H258*K258,\"\")","v":{"$error":"#REF!"}},{"$f":"IF(Stock!#REF!<>\"\",Pilotage!N$27,\"\")","v":{"$error":"#REF!"}},{"$f":"IF(Stock!#REF!<>\"\",ROUND(K258*M258,0),\"\")","v":{"$error":"#REF!"}},{"$f":"IF(Stock!#REF!<>\"\",$H258*N258,\"\")","v":{"$error":"#REF!"}},{"$f":"IF(Stock!#REF!<>\"\",Pilotage!O$27,\"\")","v":{"$error":"#REF!"}},{"$f":"IF(Stock!#REF!<>\"\",ROUND(K258*P258,0),\"\")","v":{"$error":"#REF!"}},{"$f":"IF(Stock!#REF!<>\"\",$H258*Q258,\"\")","v":{"$error":"#REF!"}},{"$f":"IF(Stock!#REF!<>\"\",Pilotage!P$27,\"\")","v":{"$error":"#REF!"}},{"$f":"IF(Stock!#REF!<>\"\",ROUND(Q258*S258,0),\"\")","v":{"$error":"#REF!"}},{"$f":"IF(Stock!#REF!<>\"\",$H258*T258,\"\")","v":{"$error":"#REF!"}},{"$f":"IF(Stock!#REF!<>\"\",Pilotage!Q$27,\"\")","v":{"$error":"#REF!"}},{"$f":"IF(Stock!#REF!<>\"\",ROUND(T258*V258,0),\"\")","v":{"$error":"#REF!"}},{"$f":"IF(Stock!#REF!<>\"\",$H258*W258,\"\")","v":{"$error":"#REF!"}},{"$f":"IF(Stock!#REF!<>\"\",Pilotage!R$27,\"\")","v":{"$error":"#REF!"}},{"$f":"IF(Stock!#REF!<>\"\",ROUND(W258*Y258,0),\"\")","v":{"$error":"#REF!"}},{"$f":"IF(Stock!#REF!<>\"\",$H258*Z258,\"\")","v":{"$error":"#REF!"}}]
[{"$f":"IF(Stock!#REF!<>\"\",Stock!#REF!,\"\")","v":{"$error":"#REF!"}},{"$f":"IF(Stock!#REF!<>\"\",Stock!#REF!,\"\")","v":{"$error":"#REF!"}},{"$f":"IF(Stock!#REF!<>\"\",Stock!#REF!,\"\")","v":{"$error":"#REF!"}},{"$f":"IF(Stock!#REF!<>\"\",SUM(Stock!#REF!,Stock!#REF!,Stock!#REF!),\"\")","v":{"$error":"#REF!"}},{"$f":"IF(Stock!#REF!<>\"\",#REF!*(1+Pilotage!$M$20),\"\")","v":{"$error":"#REF!"}},null,{"$f":"IF(Stock!#REF!<>\"\",IF(Stock!#REF!>0,Stock!#REF!/Stock!#REF!,0),\"\")","v":{"$error":"#REF!"}},{"$f":"IF(Stock!#REF!<>\"\",E259*Pilotage!$D$15,\"\")","v":{"$error":"#REF!"}},{"$f":"IF(Stock!#REF!<>\"\",IF(Stock!#REF!>0,Stock!#REF!,0),\"\")","v":{"$error":"#REF!"}},{"$f":"IF(Stock!#REF!<>\"\",Pilotage!$M$27,\"\")","v":{"$error":"#REF!"}},{"$f":"IF(Stock!#REF!<>\"\",ROUND(Stock!#REF!*J259,0),\"\")","v":{"$error":"#REF!"}},{"$f":"IF(Stock!#REF!<>\"\",$H259*K259,\"\")","v":{"$error":"#REF!"}},{"$f":"IF(Stock!#REF!<>\"\",Pilotage!N$27,\"\")","v":{"$error":"#REF!"}},{"$f":"IF(Stock!#REF!<>\"\",ROUND(K259*M259,0),\"\")","v":{"$error":"#REF!"}},{"$f":"IF(Stock!#REF!<>\"\",$H259*N259,\"\")","v":{"$error":"#REF!"}},{"$f":"IF(Stock!#REF!<>\"\",Pilotage!O$27,\"\")","v":{"$error":"#REF!"}},{"$f":"IF(Stock!#REF!<>\"\",ROUND(K259*P259,0),\"\")","v":{"$error":"#REF!"}},{"$f":"IF(Stock!#REF!<>\"\",$H259*Q259,\"\")","v":{"$error":"#REF!"}},{"$f":"IF(Stock!#REF!<>\"\",Pilotage!P$27,\"\")","v":{"$error":"#REF!"}},{"$f":"IF(Stock!#REF!<>\"\",ROUND(Q259*S259,0),\"\")","v":{"$error":"#REF!"}},{"$f":"IF(Stock!#REF!<>\"\",$H259*T259,\"\")","v":{"$error":"#REF!"}},{"$f":"IF(Stock!#REF!<>\"\",Pilotage!Q$27,\"\")","v":{"$error":"#REF!"}},{"$f":"IF(Stock!#REF!<>\"\",ROUND(T259*V259,0),\"\")","v":{"$error":"#REF!"}},{"$f":"IF(Stock!#REF!<>\"\",$H259*W259,\"\")","v":{"$error":"#REF!"}},{"$f":"IF(Stock!#REF!<>\"\",Pilotage!R$27,\"\")","v":{"$error":"#REF!"}},{"$f":"IF(Stock!#REF!<>\"\",ROUND(W259*Y259,0),\"\")","v":{"$error":"#REF!"}},{"$f":"IF(Stock!#REF!<>\"\",$H259*Z259,\"\")","v":{"$error":"#REF!"}}]
[{"$f":"IF(Stock!#REF!<>\"\",Stock!#REF!,\"\")","v":{"$error":"#REF!"}},{"$f":"IF(Stock!#REF!<>\"\",Stock!#REF!,\"\")","v":{"$error":"#REF!"}},{"$f":"IF(Stock!#REF!<>\"\",Stock!#REF!,\"\")","v":{"$error":"#REF!"}},{"$f":"IF(Stock!#REF!<>\"\",SUM(Stock!#REF!,Stock!#REF!,Stock!#REF!),\"\")","v":{"$error":"#REF!"}},{"$f":"IF(Stock!#REF!<>\"\",#REF!*(1+Pilotage!$M$20),\"\")","v":{"$error":"#REF!"}},null,{"$f":"IF(Stock!#REF!<>\"\",IF(Stock!#REF!>0,Stock!#REF!/Stock!#REF!,0),\"\")","v":{"$error":"#REF!"}},{"$f":"IF(Stock!#REF!<>\"\",E260*Pilotage!$D$15,\"\")","v":{"$error":"#REF!"}},{"$f":"IF(Stock!#REF!<>\"\",IF(Stock!#REF!>0,Stock!#REF!,0),\"\")","v":{"$error":"#REF!"}},{"$f":"IF(Stock!#REF!<>\"\",Pilotage!$M$27,\"\")","v":{"$error":"#REF!"}},{"$f":"IF(Stock!#REF!<>\"\",ROUND(Stock!#REF!*J260,0),\"\")","v":{"$error":"#REF!"}},{"$f":"IF(Stock!#REF!<>\"\",$H260*K260,\"\")","v":{"$error":"#REF!"}},{"$f":"IF(Stock!#REF!<>\"\",Pilotage!N$27,\"\")","v":{"$error":"#REF!"}},{"$f":"IF(Stock!#REF!<>\"\",ROUND(K260*M260,0),\"\")","v":{"$error":"#REF!"}},{"$f":"IF(Stock!#REF!<>\"\",$H260*N260,\"\")","v":{"$error":"#REF!"}},{"$f":"IF(Stock!#REF!<>\"\",Pilotage!O$27,\"\")","v":{"$error":"#REF!"}},{"$f":"IF(Stock!#REF!<>\"\",ROUND(K260*P260,0),\"\")","v":{"$error":"#REF!"}},{"$f":"IF(Stock!#REF!<>\"\",$H260*Q260,\"\")","v":{"$error":"#REF!"}},{"$f":"IF(Stock!#REF!<>\"\",Pilotage!P$27,\"\")","v":{"$error":"#REF!"}},{"$f":"IF(Stock!#REF!<>\"\",ROUND(Q260*S260,0),\"\")","v":{"$error":"#REF!"}},{"$f":"IF(Stock!#REF!<>\"\",$H260*T260,\"\")","v":{"$error":"#REF!"}},{"$f":"IF(Stock!#REF!<>\"\",Pilotage!Q$27,\"\")","v":{"$error":"#REF!"}},{"$f":"IF(Stock!#REF!<>\"\",ROUND(T260*V260,0),\"\")","v":{"$error":"#REF!"}},{"$f":"IF(Stock!#REF!<>\"\",$H260*W260,\"\")","v":{"$error":"#REF!"}},{"$f":"IF(Stock!#REF!<>\"\",Pilotage!R$27,\"\")","v":{"$error":"#REF!"}},{"$f":"IF(Stock!#REF!<>\"\",ROUND(W260*Y260,0),\"\")","v":{"$error":"#REF!"}},{"$f":"IF(Stock!#REF!<>\"\",$H260*Z260,\"\")","v":{"$error":"#REF!"}}]
[{"$f":"IF(Stock!#REF!<>\"\",Stock!#REF!,\"\")","v":{"$error":"#REF!"}},{"$f":"IF(Stock!#REF!<>\"\",Stock!#REF!,\"\")","v":{"$error":"#REF!"}},{"$f":"IF(Stock!#REF!<>\"\",Stock!#REF!,\"\")","v":{"$error":"#REF!"}},{"$f":"IF(Stock!#REF!<>\"\",SUM(Stock!#REF!,Stock!#REF!,Stock!#REF!),\"\")","v":{"$error":"#REF!"}},{"$f":"IF(Stock!#REF!<>\"\",#REF!*(1+Pilotage!$M$20),\"\")","v":{"$error":"#REF!"}},null,{"$f":"IF(Stock!#REF!<>\"\",IF(Stock!#REF!>0,Stock!#REF!/Stock!#REF!,0),\"\")","v":{"$error":"#REF!"}},{"$f":"IF(Stock!#REF!<>\"\",E261*Pilotage!$D$15,\"\")","v":{"$error":"#REF!"}},{"$f":"IF(Stock!#REF!<>\"\",IF(Stock!#REF!>0,Stock!#REF!,0),\"\")","v":{"$error":"#REF!"}},{"$f":"IF(Stock!#REF!<>\"\",Pilotage!$M$27,\"\")","v":{"$error":"#REF!"}},{"$f":"IF(Stock!#REF!<>\"\",ROUND(Stock!#REF!*J261,0),\"\")","v":{"$error":"#REF!"}},{"$f":"IF(Stock!#REF!<>\"\",$H261*K261,\"\")","v":{"$error":"#REF!"}},{"$f":"IF(Stock!#REF!<>\"\",Pilotage!N$27,\"\")","v":{"$error":"#REF!"}},{"$f":"IF(Stock!#REF!<>\"\",ROUND(K261*M261,0),\"\")","v":{"$error":"#REF!"}},{"$f":"IF(Stock!#REF!<>\"\",$H261*N261,\"\")","v":{"$error":"#REF!"}},{"$f":"IF(Stock!#REF!<>\"\",Pilotage!O$27,\"\")","v":{"$error":"#REF!"}},{"$f":"IF(Stock!#REF!<>\"\",ROUND(K261*P261,0),\"\")","v":{"$error":"#REF!"}},{"$f":"IF(Stock!#REF!<>\"\",$H261*Q261,\"\")","v":{"$error":"#REF!"}},{"$f":"IF(Stock!#REF!<>\"\",Pilotage!P$27,\"\")","v":{"$error":"#REF!"}},{"$f":"IF(Stock!#REF!<>\"\",ROUND(Q261*S261,0),\"\")","v":{"$error":"#REF!"}},{"$f":"IF(Stock!#REF!<>\"\",$H261*T261,\"\")","v":{"$error":"#REF!"}},{"$f":"IF(Stock!#REF!<>\"\",Pilotage!Q$27,\"\")","v":{"$error":"#REF!"}},{"$f":"IF(Stock!#REF!<>\"\",ROUND(T261*V261,0),\"\")","v":{"$error":"#REF!"}},{"$f":"IF(Stock!#REF!<>\"\",$H261*W261,\"\")","v":{"$error":"#REF!"}},{"$f":"IF(Stock!#REF!<>\"\",Pilotage!R$27,\"\")","v":{"$error":"#REF!"}},{"$f":"IF(Stock!#REF!<>\"\",ROUND(W261*Y261,0),\"\")","v":{"$error":"#REF!"}},{"$f":"IF(Stock!#REF!<>\"\",$H261*Z261,\"\")","v":{"$error":"#REF!"}}]
[{"$f":"IF(Stock!#REF!<>\"\",Stock!#REF!,\"\")","v":{"$error":"#REF!"}},{"$f":"IF(Stock!#REF!<>\"\",Stock!#REF!,\"\")","v":{"$error":"#REF!"}},{"$f":"IF(Stock!#REF!<>\"\",Stock!#REF!,\"\")","v":{"$error":"#REF!"}},{"$f":"IF(Stock!#REF!<>\"\",SUM(Stock!#REF!,Stock!#REF!,Stock!#REF!),\"\")","v":{"$error":"#REF!"}},{"$f":"IF(Stock!#REF!<>\"\",#REF!*(1+Pilotage!$M$20),\"\")","v":{"$error":"#REF!"}},null,{"$f":"IF(Stock!#REF!<>\"\",IF(Stock!#REF!>0,Stock!#REF!/Stock!#REF!,0),\"\")","v":{"$error":"#REF!"}},{"$f":"IF(Stock!#REF!<>\"\",E262*Pilotage!$D$15,\"\")","v":{"$error":"#REF!"}},{"$f":"IF(Stock!#REF!<>\"\",IF(Stock!#REF!>0,Stock!#REF!,0),\"\")","v":{"$error":"#REF!"}},{"$f":"IF(Stock!#REF!<>\"\",Pilotage!$M$27,\"\")","v":{"$error":"#REF!"}},{"$f":"IF(Stock!#REF!<>\"\",ROUND(Stock!#REF!*J262,0),\"\")","v":{"$error":"#REF!"}},{"$f":"IF(Stock!#REF!<>\"\",$H262*K262,\"\")","v":{"$error":"#REF!"}},{"$f":"IF(Stock!#REF!<>\"\",Pilotage!N$27,\"\")","v":{"$error":"#REF!"}},{"$f":"IF(Stock!#REF!<>\"\",ROUND(K262*M262,0),\"\")","v":{"$error":"#REF!"}},{"$f":"IF(Stock!#REF!<>\"\",$H262*N262,\"\")","v":{"$error":"#REF!"}},{"$f":"IF(Stock!#REF!<>\"\",Pilotage!O$27,\"\")","v":{"$error":"#REF!"}},{"$f":"IF(Stock!#REF!<>\"\",ROUND(K262*P262,0),\"\")","v":{"$error":"#REF!"}},{"$f":"IF(Stock!#REF!<>\"\",$H262*Q262,\"\")","v":{"$error":"#REF!"}},{"$f":"IF(Stock!#REF!<>\"\",Pilotage!P$27,\"\")","v":{"$error":"#REF!"}},{"$f":"IF(Stock!#REF!<>\"\",ROUND(Q262*S262,0),\"\")","v":{"$error":"#REF!"}},{"$f":"IF(Stock!#REF!<>\"\",$H262*T262,\"\")","v":{"$error":"#REF!"}},{"$f":"IF(Stock!#REF!<>\"\",Pilotage!Q$27,\"\")","v":{"$error":"#REF!"}},{"$f":"IF(Stock!#REF!<>\"\",ROUND(T262*V262,0),\"\")","v":{"$error":"#REF!"}},{"$f":"IF(Stock!#REF!<>\"\",$H262*W262,\"\")","v":{"$error":"#REF!"}},{"$f":"IF(Stock!#REF!<>\"\",Pilotage!R$27,\"\")","v":{"$error":"#REF!"}},{"$f":"IF(Stock!#REF!<>\"\",ROUND(W262*Y262,0),\"\")","v":{"$error":"#REF!"}},{"$f":"IF(Stock!#REF!<>\"\",$H262*Z262,\"\")","v":{"$error":"#REF!"}}]
[{"$f":"IF(Stock!#REF!<>\"\",Stock!#REF!,\"\")","v":{"$error":"#REF!"}},{"$f":"IF(Stock!#REF!<>\"\",Stock!#REF!,\"\")","v":{"$error":"#REF!"}},{"$f":"IF(Stock!#REF!<>\"\",Stock!#REF!,\"\")","v":{"$error":"#REF!"}},{"$f":"IF(Stock!#REF!<>\"\",SUM(Stock!#REF!,Stock!#REF!,Stock!#REF!),\"\")","v":{"$error":"#REF!"}},{"$f":"IF(Stock!#REF!<>\"\",#REF!*(1+Pilotage!$M$20),\"\")","v":{"$error":"#REF!"}},null,{"$f":"IF(Stock!#REF!<>\"\",IF(Stock!#REF!>0,Stock!#REF!/Stock!#REF!,0),\"\")","v":{"$error":"#REF!"}},{"$f":"IF(Stock!#REF!<>\"\",E263*Pilotage!$D$15,\"\")","v":{"$error":"#REF!"}},{"$f":"IF(Stock!#REF!<>\"\",IF(Stock!#REF!>0,Stock!#REF!,0),\"\")","v":{"$error":"#REF!"}},{"$f":"IF(Stock!#REF!<>\"\",Pilotage!$M$27,\"\")","v":{"$error":"#REF!"}},{"$f":"IF(Stock!#REF!<>\"\",ROUND(Stock!#REF!*J263,0),\"\")","v":{"$error":"#REF!"}},{"$f":"IF(Stock!#REF!<>\"\",$H263*K263,\"\")","v":{"$error":"#REF!"}},{"$f":"IF(Stock!#REF!<>\"\",Pilotage!N$27,\"\")","v":{"$error":"#REF!"}},{"$f":"IF(Stock!#REF!<>\"\",ROUND(K263*M263,0),\"\")","v":{"$error":"#REF!"}},{"$f":"IF(Stock!#REF!<>\"\",$H263*N263,\"\")","v":{"$error":"#REF!"}},{"$f":"IF(Stock!#REF!<>\"\",Pilotage!O$27,\"\")","v":{"$error":"#REF!"}},{"$f":"IF(Stock!#REF!<>\"\",ROUND(K263*P263,0),\"\")","v":{"$error":"#REF!"}},{"$f":"IF(Stock!#REF!<>\"\",$H263*Q263,\"\")","v":{"$error":"#REF!"}},{"$f":"IF(Stock!#REF!<>\"\",Pilotage!P$27,\"\")","v":{"$error":"#REF!"}},{"$f":"IF(Stock!#REF!<>\"\",ROUND(Q263*S263,0),\"\")","v":{"$error":"#REF!"}},{"$f":"IF(Stock!#REF!<>\"\",$H263*T263,\"\")","v":{"$error":"#REF!"}},{"$f":"IF(Stock!#REF!<>\"\",Pilotage!Q$27,\"\")","v":{"$error":"#REF!"}},{"$f":"IF(Stock!#REF!<>\"\",ROUND(T263*V263,0),\"\")","v":{"$error":"#REF!"}},{"$f":"IF(Stock!#REF!<>\"\",$H263*W263,\"\")","v":{"$error":"#REF!"}},{"$f":"IF(Stock!#REF!<>\"\",Pilotage!R$27,\"\")","v":{"$error":"#REF!"}},{"$f":"IF(Stock!#REF!<>\"\",ROUND(W263*Y263,0),\"\")","v":{"$error":"#REF!"}},{"$f":"IF(Stock!#REF!<>\"\",$H263*Z263,\"\")","v":{"$error":"#REF!"}}]
[{"$f":"IF(Stock!#REF!<>\"\",Stock!#REF!,\"\")","v":{"$error":"#REF!"}},{"$f":"IF(Stock!#REF!<>\"\",Stock!#REF!,\"\")","v":{"$error":"#REF!"}},{"$f":"IF(Stock!#REF!<>\"\",Stock!#REF!,\"\")","v":{"$error":"#REF!"}},{"$f":"IF(Stock!#REF!<>\"\",SUM(Stock!#REF!,Stock!#REF!,Stock!#REF!),\"\")","v":{"$error":"#REF!"}},{"$f":"IF(Stock!#REF!<>\"\",#REF!*(1+Pilotage!$M$20),\"\")","v":{"$error":"#REF!"}},null,{"$f":"IF(Stock!#REF!<>\"\",IF(Stock!#REF!>0,Stock!#REF!/Stock!#REF!,0),\"\")","v":{"$error":"#REF!"}},{"$f":"IF(Stock!#REF!<>\"\",E264*Pilotage!$D$15,\"\")","v":{"$error":"#REF!"}},{"$f":"IF(Stock!#REF!<>\"\",IF(Stock!#REF!>0,Stock!#REF!,0),\"\")","v":{"$error":"#REF!"}},{"$f":"IF(Stock!#REF!<>\"\",Pilotage!$M$27,\"\")","v":{"$error":"#REF!"}},{"$f":"IF(Stock!#REF!<>\"\",ROUND(Stock!#REF!*J264,0),\"\")","v":{"$error":"#REF!"}},{"$f":"IF(Stock!#REF!<>\"\",$H264*K264,\"\")","v":{"$error":"#REF!"}},{"$f":"IF(Stock!#REF!<>\"\",Pilotage!N$27,\"\")","v":{"$error":"#REF!"}},{"$f":"IF(Stock!#REF!<>\"\",ROUND(K264*M264,0),\"\")","v":{"$error":"#REF!"}},{"$f":"IF(Stock!#REF!<>\"\",$H264*N264,\"\")","v":{"$error":"#REF!"}},{"$f":"IF(Stock!#REF!<>\"\",Pilotage!O$27,\"\")","v":{"$error":"#REF!"}},{"$f":"IF(Stock!#REF!<>\"\",ROUND(K264*P264,0),\"\")","v":{"$error":"#REF!"}},{"$f":"IF(Stock!#REF!<>\"\",$H264*Q264,\"\")","v":{"$error":"#REF!"}},{"$f":"IF(Stock!#REF!<>\"\",Pilotage!P$27,\"\")","v":{"$error":"#REF!"}},{"$f":"IF(Stock!#REF!<>\"\",ROUND(Q264*S264,0),\"\")","v":{"$error":"#REF!"}},{"$f":"IF(Stock!#REF!<>\"\",$H264*T264,\"\")","v":{"$error":"#REF!"}},{"$f":"IF(Stock!#REF!<>\"\",Pilotage!Q$27,\"\")","v":{"$error":"#REF!"}},{"$f":"IF(Stock!#REF!<>\"\",ROUND(T264*V264,0),\"\")","v":{"$error":"#REF!"}},{"$f":"IF(Stock!#REF!<>\"\",$H264*W264,\"\")","v":{"$error":"#REF!"}},{"$f":"IF(Stock!#REF!<>\"\",Pilotage!R$27,\"\")","v":{"$error":"#REF!"}},{"$f":"IF(Stock!#REF!<>\"\",ROUND(W264*Y264,0),\"\")","v":{"$error":"#REF!"}},{"$f":"IF(Stock!#REF!<>\"\",$H264*Z264,\"\")","v":{"$error":"#REF!"}}]
[{"$f":"IF(Stock!#REF!<>\"\",Stock!#REF!,\"\")","v":{"$error":"#REF!"}},{"$f":"IF(Stock!#REF!<>\"\",Stock!#REF!,\"\")","v":{"$error":"#REF!"}},{"$f":"IF(Stock!#REF!<>\"\",Stock!#REF!,\"\")","v":{"$error":"#REF!"}},{"$f":"IF(Stock!#REF!<>\"\",SUM(Stock!#REF!,Stock!#REF!,Stock!#REF!),\"\")","v":{"$error":"#REF!"}},{"$f":"IF(Stock!#REF!<>\"\",#REF!*(1+Pilotage!$M$20),\"\")","v":{"$error":"#REF!"}},null,{"$f":"IF(Stock!#REF!<>\"\",IF(Stock!#REF!>0,Stock!#REF!/Stock!#REF!,0),\"\")","v":{"$error":"#REF!"}},{"$f":"IF(Stock!#REF!<>\"\",E265*Pilotage!$D$15,\"\")","v":{"$error":"#REF!"}},{"$f":"IF(Stock!#REF!<>\"\",IF(Stock!#REF!>0,Stock!#REF!,0),\"\")","v":{"$error":"#REF!"}},{"$f":"IF(Stock!#REF!<>\"\",Pilotage!$M$27,\"\")","v":{"$error":"#REF!"}},{"$f":"IF(Stock!#REF!<>\"\",ROUND(Stock!#REF!*J265,0),\"\")","v":{"$error":"#REF!"}},{"$f":"IF(Stock!#REF!<>\"\",$H265*K265,\"\")","v":{"$error":"#REF!"}},{"$f":"IF(Stock!#REF!<>\"\",Pilotage!N$27,\"\")","v":{"$error":"#REF!"}},{"$f":"IF(Stock!#REF!<>\"\",ROUND(K265*M265,0),\"\")","v":{"$error":"#REF!"}},{"$f":"IF(Stock!#REF!<>\"\",$H265*N265,\"\")","v":{"$error":"#REF!"}},{"$f":"IF(Stock!#REF!<>\"\",Pilotage!O$27,\"\")","v":{"$error":"#REF!"}},{"$f":"IF(Stock!#REF!<>\"\",ROUND(K265*P265,0),\"\")","v":{"$error":"#REF!"}},{"$f":"IF(Stock!#REF!<>\"\",$H265*Q265,\"\")","v":{"$error":"#REF!"}},{"$f":"IF(Stock!#REF!<>\"\",Pilotage!P$27,\"\")","v":{"$error":"#REF!"}},{"$f":"IF(Stock!#REF!<>\"\",ROUND(Q265*S265,0),\"\")","v":{"$error":"#REF!"}},{"$f":"IF(Stock!#REF!<>\"\",$H265*T265,\"\")","v":{"$error":"#REF!"}},{"$f":"IF(Stock!#REF!<>\"\",Pilotage!Q$27,\"\")","v":{"$error":"#REF!"}},{"$f":"IF(Stock!#REF!<>\"\",ROUND(T265*V265,0),\"\")","v":{"$error":"#REF!"}},{"$f":"IF(Stock!#REF!<>\"\",$H265*W265,\"\")","v":{"$error":"#REF!"}},{"$f":"IF(Stock!#REF!<>\"\",Pilotage!R$27,\"\")","v":{"$error":"#REF!"}},{"$f":"IF(Stock!#REF!<>\"\",ROUND(W265*Y265,0),\"\")","v":{"$error":"#REF!"}},{"$f":"IF(Stock!#REF!<>\"\",$H265*Z265,\"\")","v":{"$error":"#REF!"}}]
[{"$f":"IF(Stock!#REF!<>\"\",Stock!#REF!,\"\")","v":{"$error":"#REF!"}},{"$f":"IF(Stock!#REF!<>\"\",Stock!#REF!,\"\")","v":{"$error":"#REF!"}},{"$f":"IF(Stock!#REF!<>\"\",Stock!#REF!,\"\")","v":{"$error":"#REF!"}},{"$f":"IF(Stock!#REF!<>\"\",SUM(Stock!#REF!,Stock!#REF!,Stock!#REF!),\"\")","v":{"$error":"#REF!"}},{"$f":"IF(Stock!#REF!<>\"\",#REF!*(1+Pilotage!$M$20),\"\")","v":{"$error":"#REF!"}},null,{"$f":"IF(Stock!#REF!<>\"\",IF(Stock!#REF!>0,Stock!#REF!/Stock!#REF!,0),\"\")","v":{"$error":"#REF!"}},{"$f":"IF(Stock!#REF!<>\"\",E266*Pilotage!$D$15,\"\")","v":{"$error":"#REF!"}},{"$f":"IF(Stock!#REF!<>\"\",IF(Stock!#REF!>0,Stock!#REF!,0),\"\")","v":{"$error":"#REF!"}},{"$f":"IF(Stock!#REF!<>\"\",Pilotage!$M$27,\"\")","v":{"$error":"#REF!"}},{"$f":"IF(Stock!#REF!<>\"\",ROUND(Stock!#REF!*J266,0),\"\")","v":{"$error":"#REF!"}},{"$f":"IF(Stock!#REF!<>\"\",$H266*K266,\"\")","v":{"$error":"#REF!"}},{"$f":"IF(Stock!#REF!<>\"\",Pilotage!N$27,\"\")","v":{"$error":"#REF!"}},{"$f":"IF(Stock!#REF!<>\"\",ROUND(K266*M266,0),\"\")","v":{"$error":"#REF!"}},{"$f":"IF(Stock!#REF!<>\"\",$H266*N266,\"\")","v":{"$error":"#REF!"}},{"$f":"IF(Stock!#REF!<>\"\",Pilotage!O$27,\"\")","v":{"$error":"#REF!"}},{"$f":"IF(Stock!#REF!<>\"\",ROUND(K266*P266,0),\"\")","v":{"$error":"#REF!"}},{"$f":"IF(Stock!#REF!<>\"\",$H266*Q266,\"\")","v":{"$error":"#REF!"}},{"$f":"IF(Stock!#REF!<>\"\",Pilotage!P$27,\"\")","v":{"$error":"#REF!"}},{"$f":"IF(Stock!#REF!<>\"\",ROUND(Q266*S266,0),\"\")","v":{"$error":"#REF!"}},{"$f":"IF(Stock!#REF!<>\"\",$H266*T266,\"\")","v":{"$error":"#REF!"}},{"$f":"IF(Stock!#REF!<>\"\",Pilotage!Q$27,\"\")","v":{"$error":"#REF!"}},{"$f":"IF(Stock!#REF!<>\"\",ROUND(T266*V266,0),\"\")","v":{"$error":"#REF!"}},{"$f":"IF(Stock!#REF!<>\"\",$H266*W266,\"\")","v":{"$error":"#REF!"}},{"$f":"IF(Stock!#REF!<>\"\",Pilotage!R$27,\"\")","v":{"$error":"#REF!"}},{"$f":"IF(Stock!#REF!<>\"\",ROUND(W266*Y266,0),\"\")","v":{"$error":"#REF!"}},{"$f":"IF(Stock!#REF!<>\"\",$H266*Z266,\"\")","v":{"$error":"#REF!"}}]
[{"$f":"IF(Stock!#REF!<>\"\",Stock!#REF!,\"\")","v":{"$error":"#REF!"}},{"$f":"IF(Stock!#REF!<>\"\",Stock!#REF!,\"\")","v":{"$error":"#REF!"}},{"$f":"IF(Stock!#REF!<>\"\",Stock!#REF!,\"\")","v":{"$error":"#REF!"}},{"$f":"IF(Stock!#REF!<>\"\",SUM(Stock!#REF!,Stock!#REF!,Stock!#REF!),\"\")","v":{"$error":"#REF!"}},{"$f":"IF(Stock!#REF!<>\"\",#REF!*(1+Pilotage!$M$20),\"\")","v":{"$error":"#REF!"}},null,{"$f":"IF(Stock!#REF!<>\"\",IF(Stock!#REF!>0,Stock!#REF!/Stock!#REF!,0),\"\")","v":{"$error":"#REF!"}},{"$f":"IF(Stock!#REF!<>\"\",E267*Pilotage!$D$15,\"\")","v":{"$error":"#REF!"}},{"$f":"IF(Stock!#REF!<>\"\",IF(Stock!#REF!>0,Stock!#REF!,0),\"\")","v":{"$error":"#REF!"}},{"$f":"IF(Stock!#REF!<>\"\",Pilotage!$M$27,\"\")","v":{"$error":"#REF!"}},{"$f":"IF(Stock!#REF!<>\"\",ROUND(Stock!#REF!*J267,0),\"\")","v":{"$error":"#REF!"}},{"$f":"IF(Stock!#REF!<>\"\",$H267*K267,\"\")","v":{"$error":"#REF!"}},{"$f":"IF(Stock!#REF!<>\"\",Pilotage!N$27,\"\")","v":{"$error":"#REF!"}},{"$f":"IF(Stock!#REF!<>\"\",ROUND(K267*M267,0),\"\")","v":{"$error":"#REF!"}},{"$f":"IF(Stock!#REF!<>\"\",$H267*N267,\"\")","v":{"$error":"#REF!"}},{"$f":"IF(Stock!#REF!<>\"\",Pilotage!O$27,\"\")","v":{"$error":"#REF!"}},{"$f":"IF(Stock!#REF!<>\"\",ROUND(K267*P267,0),\"\")","v":{"$error":"#REF!"}},{"$f":"IF(Stock!#REF!<>\"\",$H267*Q267,\"\")","v":{"$error":"#REF!"}},{"$f":"IF(Stock!#REF!<>\"\",Pilotage!P$27,\"\")","v":{"$error":"#REF!"}},{"$f":"IF(Stock!#REF!<>\"\",ROUND(Q267*S267,0),\"\")","v":{"$error":"#REF!"}},{"$f":"IF(Stock!#REF!<>\"\",$H267*T267,\"\")","v":{"$error":"#REF!"}},{"$f":"IF(Stock!#REF!<>\"\",Pilotage!Q$27,\"\")","v":{"$error":"#REF!"}},{"$f":"IF(Stock!#REF!<>\"\",ROUND(T267*V267,0),\"\")","v":{"$error":"#REF!"}},{"$f":"IF(Stock!#REF!<>\"\",$H267*W267,\"\")","v":{"$error":"#REF!"}},{"$f":"IF(Stock!#REF!<>\"\",Pilotage!R$27,\"\")","v":{"$error":"#REF!"}},{"$f":"IF(Stock!#REF!<>\"\",ROUND(W267*Y267,0),\"\")","v":{"$error":"#REF!"}},{"$f":"IF(Stock!#REF!<>\"\",$H267*Z267,\"\")","v":{"$error":"#REF!"}}]
[{"$f":"IF(Stock!#REF!<>\"\",Stock!#REF!,\"\")","v":{"$error":"#REF!"}},{"$f":"IF(Stock!#REF!<>\"\",Stock!#REF!,\"\")","v":{"$error":"#REF!"}},{"$f":"IF(Stock!#REF!<>\"\",Stock!#REF!,\"\")","v":{"$error":"#REF!"}},{"$f":"IF(Stock!#REF!<>\"\",SUM(Stock!#REF!,Stock!#REF!,Stock!#REF!),\"\")","v":{"$error":"#REF!"}},{"$f":"IF(Stock!#REF!<>\"\",#REF!*(1+Pilotage!$M$20),\"\")","v":{"$error":"#REF!"}},null,{"$f":"IF(Stock!#REF!<>\"\",IF(Stock!#REF!>0,Stock!#REF!/Stock!#REF!,0),\"\")","v":{"$error":"#REF!"}},{"$f":"IF(Stock!#REF!<>\"\",E268*Pilotage!$D$15,\"\")","v":{"$error":"#REF!"}},{"$f":"IF(Stock!#REF!<>\"\",IF(Stock!#REF!>0,Stock!#REF!,0),\"\")","v":{"$error":"#REF!"}},{"$f":"IF(Stock!#REF!<>\"\",Pilotage!$M$27,\"\")","v":{"$error":"#REF!"}},{"$f":"IF(Stock!#REF!<>\"\",ROUND(Stock!#REF!*J268,0),\"\")","v":{"$error":"#REF!"}},{"$f":"IF(Stock!#REF!<>\"\",$H268*K268,\"\")","v":{"$error":"#REF!"}},{"$f":"IF(Stock!#REF!<>\"\",Pilotage!N$27,\"\")","v":{"$error":"#REF!"}},{"$f":"IF(Stock!#REF!<>\"\",ROUND(K268*M268,0),\"\")","v":{"$error":"#REF!"}},{"$f":"IF(Stock!#REF!<>\"\",$H268*N268,\"\")","v":{"$error":"#REF!"}},{"$f":"IF(Stock!#REF!<>\"\",Pilotage!O$27,\"\")","v":{"$error":"#REF!"}},{"$f":"IF(Stock!#REF!<>\"\",ROUND(K268*P268,0),\"\")","v":{"$error":"#REF!"}},{"$f":"IF(Stock!#REF!<>\"\",$H268*Q268,\"\")","v":{"$error":"#REF!"}},{"$f":"IF(Stock!#REF!<>\"\",Pilotage!P$27,\"\")","v":{"$error":"#REF!"}},{"$f":"IF(Stock!#REF!<>\"\",ROUND(Q268*S268,0),\"\")","v":{"$error":"#REF!"}},{"$f":"IF(Stock!#REF!<>\"\",$H268*T268,\"\")","v":{"$error":"#REF!"}},{"$f":"IF(Stock!#REF!<>\"\",Pilotage!Q$27,\"\")","v":{"$error":"#REF!"}},{"$f":"IF(Stock!#REF!<>\"\",ROUND(T268*V268,0),\"\")","v":{"$error":"#REF!"}},{"$f":"IF(Stock!#REF!<>\"\",$H268*W268,\"\")","v":{"$error":"#REF!"}},{"$f":"IF(Stock!#REF!<>\"\",Pilotage!R$27,\"\")","v":{"$error":"#REF!"}},{"$f":"IF(Stock!#REF!<>\"\",ROUND(W268*Y268,0),\"\")","v":{"$error":"#REF!"}},{"$f":"IF(Stock!#REF!<>\"\",$H268*Z268,\"\")","v":{"$error":"#REF!"}}]
[{"$f":"IF(Stock!#REF!<>\"\",Stock!#REF!,\"\")","v":{"$error":"#REF!"}},{"$f":"IF(Stock!#REF!<>\"\",Stock!#REF!,\"\")","v":{"$error":"#REF!"}},{"$f":"IF(Stock!#REF!<>\"\",Stock!#REF!,\"\")","v":{"$error":"#REF!"}},{"$f":"IF(Stock!#REF!<>\"\",SUM(Stock!#REF!,Stock!#REF!,Stock!#REF!),\"\")","v":{"$error":"#REF!"}},{"$f":"IF(Stock!#REF!<>\"\",#REF!*(1+Pilotage!$M$20),\"\")","v":{"$error":"#REF!"}},null,{"$f":"IF(Stock!#REF!<>\"\",IF(Stock!#REF!>0,Stock!#REF!/Stock!#REF!,0),\"\")","v":{"$error":"#REF!"}},{"$f":"IF(Stock!#REF!<>\"\",E269*Pilotage!$D$15,\"\")","v":{"$error":"#REF!"}},{"$f":"IF(Stock!#REF!<>\"\",IF(Stock!#REF!>0,Stock!#REF!,0),\"\")","v":{"$error":"#REF!"}},{"$f":"IF(Stock!#REF!<>\"\",Pilotage!$M$27,\"\")","v":{"$error":"#REF!"}},{"$f":"IF(Stock!#REF!<>\"\",ROUND(Stock!#REF!*J269,0),\"\")","v":{"$error":"#REF!"}},{"$f":"IF(Stock!#REF!<>\"\",$H269*K269,\"\")","v":{"$error":"#REF!"}},{"$f":"IF(Stock!#REF!<>\"\",Pilotage!N$27,\"\")","v":{"$error":"#REF!"}},{"$f":"IF(Stock!#REF!<>\"\",ROUND(K269*M269,0),\"\")","v":{"$error":"#REF!"}},{"$f":"IF(Stock!#REF!<>\"\",$H269*N269,\"\")","v":{"$error":"#REF!"}},{"$f":"IF(Stock!#REF!<>\"\",Pilotage!O$27,\"\")","v":{"$error":"#REF!"}},{"$f":"IF(Stock!#REF!<>\"\",ROUND(K269*P269,0),\"\")","v":{"$error":"#REF!"}},{"$f":"IF(Stock!#REF!<>\"\",$H269*Q269,\"\")","v":{"$error":"#REF!"}},{"$f":"IF(Stock!#REF!<>\"\",Pilotage!P$27,\"\")","v":{"$error":"#REF!"}},{"$f":"IF(Stock!#REF!<>\"\",ROUND(Q269*S269,0),\"\")","v":{"$error":"#REF!"}},{"$f":"IF(Stock!#REF!<>\"\",$H269*T269,\"\")","v":{"$error":"#REF!"}},{"$f":"IF(Stock!#REF!<>\"\",Pilotage!Q$27,\"\")","v":{"$error":"#REF!"}},{"$f":"IF(Stock!#REF!<>\"\",ROUND(T269*V269,0),\"\")","v":{"$error":"#REF!"}},{"$f":"IF(Stock!#REF!<>\"\",$H269*W269,\"\")","v":{"$error":"#REF!"}},{"$f":"IF(Stock!#REF!<>\"\",Pilotage!R$27,\"\")","v":{"$error":"#REF!"}},{"$f":"IF(Stock!#REF!<>\"\",ROUND(W269*Y269,0),\"\")","v":{"$error":"#REF!"}},{"$f":"IF(Stock!#REF!<>\"\",$H269*Z269,\"\")","v":{"$error":"#REF!"}}]
[{"$f":"IF(Stock!#REF!<>\"\",Stock!#REF!,\"\")","v":{"$error":"#REF!"}},{"$f":"IF(Stock!#REF!<>\"\",Stock!#REF!,\"\")","v":{"$error":"#REF!"}},{"$f":"IF(Stock!#REF!<>\"\",Stock!#REF!,\"\")","v":{"$error":"#REF!"}},{"$f":"IF(Stock!#REF!<>\"\",SUM(Stock!#REF!,Stock!#REF!,Stock!#REF!),\"\")","v":{"$error":"#REF!"}},{"$f":"IF(Stock!#REF!<>\"\",#REF!*(1+Pilotage!$M$20),\"\")","v":{"$error":"#REF!"}},null,{"$f":"IF(Stock!#REF!<>\"\",IF(Stock!#REF!>0,Stock!#REF!/Stock!#REF!,0),\"\")","v":{"$error":"#REF!"}},{"$f":"IF(Stock!#REF!<>\"\",E270*Pilotage!$D$15,\"\")","v":{"$error":"#REF!"}},{"$f":"IF(Stock!#REF!<>\"\",IF(Stock!#REF!>0,Stock!#REF!,0),\"\")","v":{"$error":"#REF!"}},{"$f":"IF(Stock!#REF!<>\"\",Pilotage!$M$27,\"\")","v":{"$error":"#REF!"}},{"$f":"IF(Stock!#REF!<>\"\",ROUND(Stock!#REF!*J270,0),\"\")","v":{"$error":"#REF!"}},{"$f":"IF(Stock!#REF!<>\"\",$H270*K270,\"\")","v":{"$error":"#REF!"}},{"$f":"IF(Stock!#REF!<>\"\",Pilotage!N$27,\"\")","v":{"$error":"#REF!"}},{"$f":"IF(Stock!#REF!<>\"\",ROUND(K270*M270,0),\"\")","v":{"$error":"#REF!"}},{"$f":"IF(Stock!#REF!<>\"\",$H270*N270,\"\")","v":{"$error":"#REF!"}},{"$f":"IF(Stock!#REF!<>\"\",Pilotage!O$27,\"\")","v":{"$error":"#REF!"}},{"$f":"IF(Stock!#REF!<>\"\",ROUND(K270*P270,0),\"\")","v":{"$error":"#REF!"}},{"$f":"IF(Stock!#REF!<>\"\",$H270*Q270,\"\")","v":{"$error":"#REF!"}},{"$f":"IF(Stock!#REF!<>\"\",Pilotage!P$27,\"\")","v":{"$error":"#REF!"}},{"$f":"IF(Stock!#REF!<>\"\",ROUND(Q270*S270,0),\"\")","v":{"$error":"#REF!"}},{"$f":"IF(Stock!#REF!<>\"\",$H270*T270,\"\")","v":{"$error":"#REF!"}},{"$f":"IF(Stock!#REF!<>\"\",Pilotage!Q$27,\"\")","v":{"$error":"#REF!"}},{"$f":"IF(Stock!#REF!<>\"\",ROUND(T270*V270,0),\"\")","v":{"$error":"#REF!"}},{"$f":"IF(Stock!#REF!<>\"\",$H270*W270,\"\")","v":{"$error":"#REF!"}},{"$f":"IF(Stock!#REF!<>\"\",Pilotage!R$27,\"\")","v":{"$error":"#REF!"}},{"$f":"IF(Stock!#REF!<>\"\",ROUND(W270*Y270,0),\"\")","v":{"$error":"#REF!"}},{"$f":"IF(Stock!#REF!<>\"\",$H270*Z270,\"\")","v":{"$error":"#REF!"}}]
[{"$f":"IF(Stock!#REF!<>\"\",Stock!#REF!,\"\")","v":{"$error":"#REF!"}},{"$f":"IF(Stock!#REF!<>\"\",Stock!#REF!,\"\")","v":{"$error":"#REF!"}},{"$f":"IF(Stock!#REF!<>\"\",Stock!#REF!,\"\")","v":{"$error":"#REF!"}},{"$f":"IF(Stock!#REF!<>\"\",SUM(Stock!#REF!,Stock!#REF!,Stock!#REF!),\"\")","v":{"$error":"#REF!"}},{"$f":"IF(Stock!#REF!<>\"\",#REF!*(1+Pilotage!$M$20),\"\")","v":{"$error":"#REF!"}},null,{"$f":"IF(Stock!#REF!<>\"\",IF(Stock!#REF!>0,Stock!#REF!/Stock!#REF!,0),\"\")","v":{"$error":"#REF!"}},{"$f":"IF(Stock!#REF!<>\"\",E271*Pilotage!$D$15,\"\")","v":{"$error":"#REF!"}},{"$f":"IF(Stock!#REF!<>\"\",IF(Stock!#REF!>0,Stock!#REF!,0),\"\")","v":{"$error":"#REF!"}},{"$f":"IF(Stock!#REF!<>\"\",Pilotage!$M$27,\"\")","v":{"$error":"#REF!"}},{"$f":"IF(Stock!#REF!<>\"\",ROUND(Stock!#REF!*J271,0),\"\")","v":{"$error":"#REF!"}},{"$f":"IF(Stock!#REF!<>\"\",$H271*K271,\"\")","v":{"$error":"#REF!"}},{"$f":"IF(Stock!#REF!<>\"\",Pilotage!N$27,\"\")","v":{"$error":"#REF!"}},{"$f":"IF(Stock!#REF!<>\"\",ROUND(K271*M271,0),\"\")","v":{"$error":"#REF!"}},{"$f":"IF(Stock!#REF!<>\"\",$H271*N271,\"\")","v":{"$error":"#REF!"}},{"$f":"IF(Stock!#REF!<>\"\",Pilotage!O$27,\"\")","v":{"$error":"#REF!"}},{"$f":"IF(Stock!#REF!<>\"\",ROUND(K271*P271,0),\"\")","v":{"$error":"#REF!"}},{"$f":"IF(Stock!#REF!<>\"\",$H271*Q271,\"\")","v":{"$error":"#REF!"}},{"$f":"IF(Stock!#REF!<>\"\",Pilotage!P$27,\"\")","v":{"$error":"#REF!"}},{"$f":"IF(Stock!#REF!<>\"\",ROUND(Q271*S271,0),\"\")","v":{"$error":"#REF!"}},{"$f":"IF(Stock!#REF!<>\"\",$H271*T271,\"\")","v":{"$error":"#REF!"}},{"$f":"IF(Stock!#REF!<>\"\",Pilotage!Q$27,\"\")","v":{"$error":"#REF!"}},{"$f":"IF(Stock!#REF!<>\"\",ROUND(T271*V271,0),\"\")","v":{"$error":"#REF!"}},{"$f":"IF(Stock!#REF!<>\"\",$H271*W271,\"\")","v":{"$error":"#REF!"}},{"$f":"IF(Stock!#REF!<>\"\",Pilotage!R$27,\"\")","v":{"$error":"#REF!"}},{"$f":"IF(Stock!#REF!<>\"\",ROUND(W271*Y271,0),\"\")","v":{"$error":"#REF!"}},{"$f":"IF(Stock!#REF!<>\"\",$H271*Z271,\"\")","v":{"$error":"#REF!"}}]
[{"$f":"IF(Stock!#REF!<>\"\",Stock!#REF!,\"\")","v":{"$error":"#REF!"}},{"$f":"IF(Stock!#REF!<>\"\",Stock!#REF!,\"\")","v":{"$error":"#REF!"}},{"$f":"IF(Stock!#REF!<>\"\",Stock!#REF!,\"\")","v":{"$error":"#REF!"}},{"$f":"IF(Stock!#REF!<>\"\",SUM(Stock!#REF!,Stock!#REF!,Stock!#REF!),\"\")","v":{"$error":"#REF!"}},{"$f":"IF(Stock!#REF!<>\"\",#REF!*(1+Pilotage!$M$20),\"\")","v":{"$error":"#REF!"}},null,{"$f":"IF(Stock!#REF!<>\"\",IF(Stock!#REF!>0,Stock!#REF!/Stock!#REF!,0),\"\")","v":{"$error":"#REF!"}},{"$f":"IF(Stock!#REF!<>\"\",E272*Pilotage!$D$15,\"\")","v":{"$error":"#REF!"}},{"$f":"IF(Stock!#REF!<>\"\",IF(Stock!#REF!>0,Stock!#REF!,0),\"\")","v":{"$error":"#REF!"}},{"$f":"IF(Stock!#REF!<>\"\",Pilotage!$M$27,\"\")","v":{"$error":"#REF!"}},{"$f":"IF(Stock!#REF!<>\"\",ROUND(Stock!#REF!*J272,0),\"\")","v":{"$error":"#REF!"}},{"$f":"IF(Stock!#REF!<>\"\",$H272*K272,\"\")","v":{"$error":"#REF!"}},{"$f":"IF(Stock!#REF!<>\"\",Pilotage!N$27,\"\")","v":{"$error":"#REF!"}},{"$f":"IF(Stock!#REF!<>\"\",ROUND(K272*M272,0),\"\")","v":{"$error":"#REF!"}},{"$f":"IF(Stock!#REF!<>\"\",$H272*N272,\"\")","v":{"$error":"#REF!"}},{"$f":"IF(Stock!#REF!<>\"\",Pilotage!O$27,\"\")","v":{"$error":"#REF!"}},{"$f":"IF(Stock!#REF!<>\"\",ROUND(K272*P272,0),\"\")","v":{"$error":"#REF!"}},{"$f":"IF(Stock!#REF!<>\"\",$H272*Q272,\"\")","v":{"$error":"#REF!"}},{"$f":"IF(Stock!#REF!<>\"\",Pilotage!P$27,\"\")","v":{"$error":"#REF!"}},{"$f":"IF(Stock!#REF!<>\"\",ROUND(Q272*S272,0),\"\")","v":{"$error":"#REF!"}},{"$f":"IF(Stock!#REF!<>\"\",$H272*T272,\"\")","v":{"$error":"#REF!"}},{"$f":"IF(Stock!#REF!<>\"\",Pilotage!Q$27,\"\")","v":{"$error":"#REF!"}},{"$f":"IF(Stock!#REF!<>\"\",ROUND(T272*V272,0),\"\")","v":{"$error":"#REF!"}},{"$f":"IF(Stock!#REF!<>\"\",$H272*W272,\"\")","v":{"$error":"#REF!"}},{"$f":"IF(Stock!#REF!<>\"\",Pilotage!R$27,\"\")","v":{"$error":"#REF!"}},{"$f":"IF(Stock!#REF!<>\"\",ROUND(W272*Y272,0),\"\")","v":{"$error":"#REF!"}},{"$f":"IF(Stock!#REF!<>\"\",$H272*Z272,\"\")","v":{"$error":"#REF!"}}]
[{"$f":"IF(Stock!#REF!<>\"\",Stock!#REF!,\"\")","v":{"$error":"#REF!"}},{"$f":"IF(Stock!#REF!<>\"\",Stock!#REF!,\"\")","v":{"$error":"#REF!"}},{"$f":"IF(Stock!#REF!<>\"\",Stock!#REF!,\"\")","v":{"$error":"#REF!"}},{"$f":"IF(Stock!#REF!<>\"\",SUM(Stock!#REF!,Stock!#REF!,Stock!#REF!),\"\")","v":{"$error":"#REF!"}},{"$f":"IF(Stock!#REF!<>\"\",#REF!*(1+Pilotage!$M$20),\"\")","v":{"$error":"#REF!"}},null,{"$f":"IF(Stock!#REF!<>\"\",IF(Stock!#REF!>0,Stock!#REF!/Stock!#REF!,0),\"\")","v":{"$error":"#REF!"}},{"$f":"IF(Stock!#REF!<>\"\",E273*Pilotage!$D$15,\"\")","v":{"$error":"#REF!"}},{"$f":"IF(Stock!#REF!<>\"\",IF(Stock!#REF!>0,Stock!#REF!,0),\"\")","v":{"$error":"#REF!"}},{"$f":"IF(Stock!#REF!<>\"\",Pilotage!$M$27,\"\")","v":{"$error":"#REF!"}},{"$f":"IF(Stock!#REF!<>\"\",ROUND(Stock!#REF!*J273,0),\"\")","v":{"$error":"#REF!"}},{"$f":"IF(Stock!#REF!<>\"\",$H273*K273,\"\")","v":{"$error":"#REF!"}},{"$f":"IF(Stock!#REF!<>\"\",Pilotage!N$27,\"\")","v":{"$error":"#REF!"}},{"$f":"IF(Stock!#REF!<>\"\",ROUND(K273*M273,0),\"\")","v":{"$error":"#REF!"}},{"$f":"IF(Stock!#REF!<>\"\",$H273*N273,\"\")","v":{"$error":"#REF!"}},{"$f":"IF(Stock!#REF!<>\"\",Pilotage!O$27,\"\")","v":{"$error":"#REF!"}},{"$f":"IF(Stock!#REF!<>\"\",ROUND(K273*P273,0),\"\")","v":{"$error":"#REF!"}},{"$f":"IF(Stock!#REF!<>\"\",$H273*Q273,\"\")","v":{"$error":"#REF!"}},{"$f":"IF(Stock!#REF!<>\"\",Pilotage!P$27,\"\")","v":{"$error":"#REF!"}},{"$f":"IF(Stock!#REF!<>\"\",ROUND(Q273*S273,0),\"\")","v":{"$error":"#REF!"}},{"$f":"IF(Stock!#REF!<>\"\",$H273*T273,\"\")","v":{"$error":"#REF!"}},{"$f":"IF(Stock!#REF!<>\"\",Pilotage!Q$27,\"\")","v":{"$error":"#REF!"}},{"$f":"IF(Stock!#REF!<>\"\",ROUND(T273*V273,0),\"\")","v":{"$error":"#REF!"}},{"$f":"IF(Stock!#REF!<>\"\",$H273*W273,\"\")","v":{"$error":"#REF!"}},{"$f":"IF(Stock!#REF!<>\"\",Pilotage!R$27,\"\")","v":{"$error":"#REF!"}},{"$f":"IF(Stock!#REF!<>\"\",ROUND(W273*Y273,0),\"\")","v":{"$error":"#REF!"}},{"$f":"IF(Stock!#REF!<>\"\",$H273*Z273,\"\")","v":{"$error":"#REF!"}}]
[{"$f":"IF(Stock!#REF!<>\"\",Stock!#REF!,\"\")","v":{"$error":"#REF!"}},{"$f":"IF(Stock!#REF!<>\"\",Stock!#REF!,\"\")","v":{"$error":"#REF!"}},{"$f":"IF(Stock!#REF!<>\"\",Stock!#REF!,\"\")","v":{"$error":"#REF!"}},{"$f":"IF(Stock!#REF!<>\"\",SUM(Stock!#REF!,Stock!#REF!,Stock!#REF!),\"\")","v":{"$error":"#REF!"}},{"$f":"IF(Stock!#REF!<>\"\",#REF!*(1+Pilotage!$M$20),\"\")","v":{"$error":"#REF!"}},null,{"$f":"IF(Stock!#REF!<>\"\",IF(Stock!#REF!>0,Stock!#REF!/Stock!#REF!,0),\"\")","v":{"$error":"#REF!"}},{"$f":"IF(Stock!#REF!<>\"\",E274*Pilotage!$D$15,\"\")","v":{"$error":"#REF!"}},{"$f":"IF(Stock!#REF!<>\"\",IF(Stock!#REF!>0,Stock!#REF!,0),\"\")","v":{"$error":"#REF!"}},{"$f":"IF(Stock!#REF!<>\"\",Pilotage!$M$27,\"\")","v":{"$error":"#REF!"}},{"$f":"IF(Stock!#REF!<>\"\",ROUND(Stock!#REF!*J274,0),\"\")","v":{"$error":"#REF!"}},{"$f":"IF(Stock!#REF!<>\"\",$H274*K274,\"\")","v":{"$error":"#REF!"}},{"$f":"IF(Stock!#REF!<>\"\",Pilotage!N$27,\"\")","v":{"$error":"#REF!"}},{"$f":"IF(Stock!#REF!<>\"\",ROUND(K274*M274,0),\"\")","v":{"$error":"#REF!"}},{"$f":"IF(Stock!#REF!<>\"\",$H274*N274,\"\")","v":{"$error":"#REF!"}},{"$f":"IF(Stock!#REF!<>\"\",Pilotage!O$27,\"\")","v":{"$error":"#REF!"}},{"$f":"IF(Stock!#REF!<>\"\",ROUND(K274*P274,0),\"\")","v":{"$error":"#REF!"}},{"$f":"IF(Stock!#REF!<>\"\",$H274*Q274,\"\")","v":{"$error":"#REF!"}},{"$f":"IF(Stock!#REF!<>\"\",Pilotage!P$27,\"\")","v":{"$error":"#REF!"}},{"$f":"IF(Stock!#REF!<>\"\",ROUND(Q274*S274,0),\"\")","v":{"$error":"#REF!"}},{"$f":"IF(Stock!#REF!<>\"\",$H274*T274,\"\")","v":{"$error":"#REF!"}},{"$f":"IF(Stock!#REF!<>\"\",Pilotage!Q$27,\"\")","v":{"$error":"#REF!"}},{"$f":"IF(Stock!#REF!<>\"\",ROUND(T274*V274,0),\"\")","v":{"$error":"#REF!"}},{"$f":"IF(Stock!#REF!<>\"\",$H274*W274,\"\")","v":{"$error":"#REF!"}},{"$f":"IF(Stock!#REF!<>\"\",Pilotage!R$27,\"\")","v":{"$error":"#REF!"}},{"$f":"IF(Stock!#REF!<>\"\",ROUND(W274*Y274,0),\"\")","v":{"$error":"#REF!"}},{"$f":"IF(Stock!#REF!<>\"\",$H274*Z274,\"\")","v":{"$error":"#REF!"}}]
[{"$f":"IF(Stock!#REF!<>\"\",Stock!#REF!,\"\")","v":{"$error":"#REF!"}},{"$f":"IF(Stock!#REF!<>\"\",Stock!#REF!,\"\")","v":{"$error":"#REF!"}},{"$f":"IF(Stock!#REF!<>\"\",Stock!#REF!,\"\")","v":{"$error":"#REF!"}},{"$f":"IF(Stock!#REF!<>\"\",SUM(Stock!#REF!,Stock!#REF!,Stock!#REF!),\"\")","v":{"$error":"#REF!"}},{"$f":"IF(Stock!#REF!<>\"\",#REF!*(1+Pilotage!$M$20),\"\")","v":{"$error":"#REF!"}},null,{"$f":"IF(Stock!#REF!<>\"\",IF(Stock!#REF!>0,Stock!#REF!/Stock!#REF!,0),\"\")","v":{"$error":"#REF!"}},{"$f":"IF(Stock!#REF!<>\"\",E275*Pilotage!$D$15,\"\")","v":{"$error":"#REF!"}},{"$f":"IF(Stock!#REF!<>\"\",IF(Stock!#REF!>0,Stock!#REF!,0),\"\")","v":{"$error":"#REF!"}},{"$f":"IF(Stock!#REF!<>\"\",Pilotage!$M$27,\"\")","v":{"$error":"#REF!"}},{"$f":"IF(Stock!#REF!<>\"\",ROUND(Stock!#REF!*J275,0),\"\")","v":{"$error":"#REF!"}},{"$f":"IF(Stock!#REF!<>\"\",$H275*K275,\"\")","v":{"$error":"#REF!"}},{"$f":"IF(Stock!#REF!<>\"\",Pilotage!N$27,\"\")","v":{"$error":"#REF!"}},{"$f":"IF(Stock!#REF!<>\"\",ROUND(K275*M275,0),\"\")","v":{"$error":"#REF!"}},{"$f":"IF(Stock!#REF!<>\"\",$H275*N275,\"\")","v":{"$error":"#REF!"}},{"$f":"IF(Stock!#REF!<>\"\",Pilotage!O$27,\"\")","v":{"$error":"#REF!"}},{"$f":"IF(Stock!#REF!<>\"\",ROUND(K275*P275,0),\"\")","v":{"$error":"#REF!"}},{"$f":"IF(Stock!#REF!<>\"\",$H275*Q275,\"\")","v":{"$error":"#REF!"}},{"$f":"IF(Stock!#REF!<>\"\",Pilotage!P$27,\"\")","v":{"$error":"#REF!"}},{"$f":"IF(Stock!#REF!<>\"\",ROUND(Q275*S275,0),\"\")","v":{"$error":"#REF!"}},{"$f":"IF(Stock!#REF!<>\"\",$H275*T275,\"\")","v":{"$error":"#REF!"}},{"$f":"IF(Stock!#REF!<>\"\",Pilotage!Q$27,\"\")","v":{"$error":"#REF!"}},{"$f":"IF(Stock!#REF!<>\"\",ROUND(T275*V275,0),\"\")","v":{"$error":"#REF!"}},{"$f":"IF(Stock!#REF!<>\"\",$H275*W275,\"\")","v":{"$error":"#REF!"}},{"$f":"IF(Stock!#REF!<>\"\",Pilotage!R$27,\"\")","v":{"$error":"#REF!"}},{"$f":"IF(Stock!#REF!<>\"\",ROUND(W275*Y275,0),\"\")","v":{"$error":"#REF!"}},{"$f":"IF(Stock!#REF!<>\"\",$H275*Z275,\"\")","v":{"$error":"#REF!"}}]
[{"$f":"IF(Stock!#REF!<>\"\",Stock!#REF!,\"\")","v":{"$error":"#REF!"}},{"$f":"IF(Stock!#REF!<>\"\",Stock!#REF!,\"\")","v":{"$error":"#REF!"}},{"$f":"IF(Stock!#REF!<>\"\",Stock!#REF!,\"\")","v":{"$error":"#REF!"}},{"$f":"IF(Stock!#REF!<>\"\",SUM(Stock!#REF!,Stock!#REF!,Stock!#REF!),\"\")","v":{"$error":"#REF!"}},{"$f":"IF(Stock!#REF!<>\"\",#REF!*(1+Pilotage!$M$20),\"\")","v":{"$error":"#REF!"}},null,{"$f":"IF(Stock!#REF!<>\"\",IF(Stock!#REF!>0,Stock!#REF!/Stock!#REF!,0),\"\")","v":{"$error":"#REF!"}},{"$f":"IF(Stock!#REF!<>\"\",E276*Pilotage!$D$15,\"\")","v":{"$error":"#REF!"}},{"$f":"IF(Stock!#REF!<>\"\",IF(Stock!#REF!>0,Stock!#REF!,0),\"\")","v":{"$error":"#REF!"}},{"$f":"IF(Stock!#REF!<>\"\",Pilotage!$M$27,\"\")","v":{"$error":"#REF!"}},{"$f":"IF(Stock!#REF!<>\"\",ROUND(Stock!#REF!*J276,0),\"\")","v":{"$error":"#REF!"}},{"$f":"IF(Stock!#REF!<>\"\",$H276*K276,\"\")","v":{"$error":"#REF!"}},{"$f":"IF(Stock!#REF!<>\"\",Pilotage!N$27,\"\")","v":{"$error":"#REF!"}},{"$f":"IF(Stock!#REF!<>\"\",ROUND(K276*M276,0),\"\")","v":{"$error":"#REF!"}},{"$f":"IF(Stock!#REF!<>\"\",$H276*N276,\"\")","v":{"$error":"#REF!"}},{"$f":"IF(Stock!#REF!<>\"\",Pilotage!O$27,\"\")","v":{"$error":"#REF!"}},{"$f":"IF(Stock!#REF!<>\"\",ROUND(K276*P276,0),\"\")","v":{"$error":"#REF!"}},{"$f":"IF(Stock!#REF!<>\"\",$H276*Q276,\"\")","v":{"$error":"#REF!"}},{"$f":"IF(Stock!#REF!<>\"\",Pilotage!P$27,\"\")","v":{"$error":"#REF!"}},{"$f":"IF(Stock!#REF!<>\"\",ROUND(Q276*S276,0),\"\")","v":{"$error":"#REF!"}},{"$f":"IF(Stock!#REF!<>\"\",$H276*T276,\"\")","v":{"$error":"#REF!"}},{"$f":"IF(Stock!#REF!<>\"\",Pilotage!Q$27,\"\")","v":{"$error":"#REF!"}},{"$f":"IF(Stock!#REF!<>\"\",ROUND(T276*V276,0),\"\")","v":{"$error":"#REF!"}},{"$f":"IF(Stock!#REF!<>\"\",$H276*W276,\"\")","v":{"$error":"#REF!"}},{"$f":"IF(Stock!#REF!<>\"\",Pilotage!R$27,\"\")","v":{"$error":"#REF!"}},{"$f":"IF(Stock!#REF!<>\"\",ROUND(W276*Y276,0),\"\")","v":{"$error":"#REF!"}},{"$f":"IF(Stock!#REF!<>\"\",$H276*Z276,\"\")","v":{"$error":"#REF!"}}]
[{"$f":"IF(Stock!#REF!<>\"\",Stock!#REF!,\"\")","v":{"$error":"#REF!"}},{"$f":"IF(Stock!#REF!<>\"\",Stock!#REF!,\"\")","v":{"$error":"#REF!"}},{"$f":"IF(Stock!#REF!<>\"\",Stock!#REF!,\"\")","v":{"$error":"#REF!"}},{"$f":"IF(Stock!#REF!<>\"\",SUM(Stock!#REF!,Stock!#REF!,Stock!#REF!),\"\")","v":{"$error":"#REF!"}},{"$f":"IF(Stock!#REF!<>\"\",#REF!*(1+Pilotage!$M$20),\"\")","v":{"$error":"#REF!"}},null,{"$f":"IF(Stock!#REF!<>\"\",IF(Stock!#REF!>0,Stock!#REF!/Stock!#REF!,0),\"\")","v":{"$error":"#REF!"}},{"$f":"IF(Stock!#REF!<>\"\",E277*Pilotage!$D$15,\"\")","v":{"$error":"#REF!"}},{"$f":"IF(Stock!#REF!<>\"\",IF(Stock!#REF!>0,Stock!#REF!,0),\"\")","v":{"$error":"#REF!"}},{"$f":"IF(Stock!#REF!<>\"\",Pilotage!$M$27,\"\")","v":{"$error":"#REF!"}},{"$f":"IF(Stock!#REF!<>\"\",ROUND(Stock!#REF!*J277,0),\"\")","v":{"$error":"#REF!"}},{"$f":"IF(Stock!#REF!<>\"\",$H277*K277,\"\")","v":{"$error":"#REF!"}},{"$f":"IF(Stock!#REF!<>\"\",Pilotage!N$27,\"\")","v":{"$error":"#REF!"}},{"$f":"IF(Stock!#REF!<>\"\",ROUND(K277*M277,0),\"\")","v":{"$error":"#REF!"}},{"$f":"IF(Stock!#REF!<>\"\",$H277*N277,\"\")","v":{"$error":"#REF!"}},{"$f":"IF(Stock!#REF!<>\"\",Pilotage!O$27,\"\")","v":{"$error":"#REF!"}},{"$f":"IF(Stock!#REF!<>\"\",ROUND(K277*P277,0),\"\")","v":{"$error":"#REF!"}},{"$f":"IF(Stock!#REF!<>\"\",$H277*Q277,\"\")","v":{"$error":"#REF!"}},{"$f":"IF(Stock!#REF!<>\"\",Pilotage!P$27,\"\")","v":{"$error":"#REF!"}},{"$f":"IF(Stock!#REF!<>\"\",ROUND(Q277*S277,0),\"\")","v":{"$error":"#REF!"}},{"$f":"IF(Stock!#REF!<>\"\",$H277*T277,\"\")","v":{"$error":"#REF!"}},{"$f":"IF(Stock!#REF!<>\"\",Pilotage!Q$27,\"\")","v":{"$error":"#REF!"}},{"$f":"IF(Stock!#REF!<>\"\",ROUND(T277*V277,0),\"\")","v":{"$error":"#REF!"}},{"$f":"IF(Stock!#REF!<>\"\",$H277*W277,\"\")","v":{"$error":"#REF!"}},{"$f":"IF(Stock!#REF!<>\"\",Pilotage!R$27,\"\")","v":{"$error":"#REF!"}},{"$f":"IF(Stock!#REF!<>\"\",ROUND(W277*Y277,0),\"\")","v":{"$error":"#REF!"}},{"$f":"IF(Stock!#REF!<>\"\",$H277*Z277,\"\")","v":{"$error":"#REF!"}}]
[{"$f":"IF(Stock!#REF!<>\"\",Stock!#REF!,\"\")","v":{"$error":"#REF!"}},{"$f":"IF(Stock!#REF!<>\"\",Stock!#REF!,\"\")","v":{"$error":"#REF!"}},{"$f":"IF(Stock!#REF!<>\"\",Stock!#REF!,\"\")","v":{"$error":"#REF!"}},{"$f":"IF(Stock!#REF!<>\"\",SUM(Stock!#REF!,Stock!#REF!,Stock!#REF!),\"\")","v":{"$error":"#REF!"}},{"$f":"IF(Stock!#REF!<>\"\",#REF!*(1+Pilotage!$M$20),\"\")","v":{"$error":"#REF!"}},null,{"$f":"IF(Stock!#REF!<>\"\",IF(Stock!#REF!>0,Stock!#REF!/Stock!#REF!,0),\"\")","v":{"$error":"#REF!"}},{"$f":"IF(Stock!#REF!<>\"\",E278*Pilotage!$D$15,\"\")","v":{"$error":"#REF!"}},{"$f":"IF(Stock!#REF!<>\"\",IF(Stock!#REF!>0,Stock!#REF!,0),\"\")","v":{"$error":"#REF!"}},{"$f":"IF(Stock!#REF!<>\"\",Pilotage!$M$27,\"\")","v":{"$error":"#REF!"}},{"$f":"IF(Stock!#REF!<>\"\",ROUND(Stock!#REF!*J278,0),\"\")","v":{"$error":"#REF!"}},{"$f":"IF(Stock!#REF!<>\"\",$H278*K278,\"\")","v":{"$error":"#REF!"}},{"$f":"IF(Stock!#REF!<>\"\",Pilotage!N$27,\"\")","v":{"$error":"#REF!"}},{"$f":"IF(Stock!#REF!<>\"\",ROUND(K278*M278,0),\"\")","v":{"$error":"#REF!"}},{"$f":"IF(Stock!#REF!<>\"\",$H278*N278,\"\")","v":{"$error":"#REF!"}},{"$f":"IF(Stock!#REF!<>\"\",Pilotage!O$27,\"\")","v":{"$error":"#REF!"}},{"$f":"IF(Stock!#REF!<>\"\",ROUND(K278*P278,0),\"\")","v":{"$error":"#REF!"}},{"$f":"IF(Stock!#REF!<>\"\",$H278*Q278,\"\")","v":{"$error":"#REF!"}},{"$f":"IF(Stock!#REF!<>\"\",Pilotage!P$27,\"\")","v":{"$error":"#REF!"}},{"$f":"IF(Stock!#REF!<>\"\",ROUND(Q278*S278,0),\"\")","v":{"$error":"#REF!"}},{"$f":"IF(Stock!#REF!<>\"\",$H278*T278,\"\")","v":{"$error":"#REF!"}},{"$f":"IF(Stock!#REF!<>\"\",Pilotage!Q$27,\"\")","v":{"$error":"#REF!"}},{"$f":"IF(Stock!#REF!<>\"\",ROUND(T278*V278,0),\"\")","v":{"$error":"#REF!"}},{"$f":"IF(Stock!#REF!<>\"\",$H278*W278,\"\")","v":{"$error":"#REF!"}},{"$f":"IF(Stock!#REF!<>\"\",Pilotage!R$27,\"\")","v":{"$error":"#REF!"}},{"$f":"IF(Stock!#REF!<>\"\",ROUND(W278*Y278,0),\"\")","v":{"$error":"#REF!"}},{"$f":"IF(Stock!#REF!<>\"\",$H278*Z278,\"\")","v":{"$error":"#REF!"}}]
[{"$f":"IF(Stock!#REF!<>\"\",Stock!#REF!,\"\")","v":{"$error":"#REF!"}},{"$f":"IF(Stock!#REF!<>\"\",Stock!#REF!,\"\")","v":{"$error":"#REF!"}},{"$f":"IF(Stock!#REF!<>\"\",Stock!#REF!,\"\")","v":{"$error":"#REF!"}},{"$f":"IF(Stock!#REF!<>\"\",SUM(Stock!#REF!,Stock!#REF!,Stock!#REF!),\"\")","v":{"$error":"#REF!"}},{"$f":"IF(Stock!#REF!<>\"\",#REF!*(1+Pilotage!$M$20),\"\")","v":{"$error":"#REF!"}},null,{"$f":"IF(Stock!#REF!<>\"\",IF(Stock!#REF!>0,Stock!#REF!/Stock!#REF!,0),\"\")","v":{"$error":"#REF!"}},{"$f":"IF(Stock!#REF!<>\"\",E279*Pilotage!$D$15,\"\")","v":{"$error":"#REF!"}},{"$f":"IF(Stock!#REF!<>\"\",IF(Stock!#REF!>0,Stock!#REF!,0),\"\")","v":{"$error":"#REF!"}},{"$f":"IF(Stock!#REF!<>\"\",Pilotage!$M$27,\"\")","v":{"$error":"#REF!"}},{"$f":"IF(Stock!#REF!<>\"\",ROUND(Stock!#REF!*J279,0),\"\")","v":{"$error":"#REF!"}},{"$f":"IF(Stock!#REF!<>\"\",$H279*K279,\"\")","v":{"$error":"#REF!"}},{"$f":"IF(Stock!#REF!<>\"\",Pilotage!N$27,\"\")","v":{"$error":"#REF!"}},{"$f":"IF(Stock!#REF!<>\"\",ROUND(K279*M279,0),\"\")","v":{"$error":"#REF!"}},{"$f":"IF(Stock!#REF!<>\"\",$H279*N279,\"\")","v":{"$error":"#REF!"}},{"$f":"IF(Stock!#REF!<>\"\",Pilotage!O$27,\"\")","v":{"$error":"#REF!"}},{"$f":"IF(Stock!#REF!<>\"\",ROUND(K279*P279,0),\"\")","v":{"$error":"#REF!"}},{"$f":"IF(Stock!#REF!<>\"\",$H279*Q279,\"\")","v":{"$error":"#REF!"}},{"$f":"IF(Stock!#REF!<>\"\",Pilotage!P$27,\"\")","v":{"$error":"#REF!"}},{"$f":"IF(Stock!#REF!<>\"\",ROUND(Q279*S279,0),\"\")","v":{"$error":"#REF!"}},{"$f":"IF(Stock!#REF!<>\"\",$H279*T279,\"\")","v":{"$error":"#REF!"}},{"$f":"IF(Stock!#REF!<>\"\",Pilotage!Q$27,\"\")","v":{"$error":"#REF!"}},{"$f":"IF(Stock!#REF!<>\"\",ROUND(T279*V279,0),\"\")","v":{"$error":"#REF!"}},{"$f":"IF(Stock!#REF!<>\"\",$H279*W279,\"\")","v":{"$error":"#REF!"}},{"$f":"IF(Stock!#REF!<>\"\",Pilotage!R$27,\"\")","v":{"$error":"#REF!"}},{"$f":"IF(Stock!#REF!<>\"\",ROUND(W279*Y279,0),\"\")","v":{"$error":"#REF!"}},{"$f":"IF(Stock!#REF!<>\"\",$H279*Z279,\"\")","v":{"$error":"#REF!"}}]
[{"$f":"IF(Stock!#REF!<>\"\",Stock!#REF!,\"\")","v":{"$error":"#REF!"}},{"$f":"IF(Stock!#REF!<>\"\",Stock!#REF!,\"\")","v":{"$error":"#REF!"}},{"$f":"IF(Stock!#REF!<>\"\",Stock!#REF!,\"\")","v":{"$error":"#REF!"}},{"$f":"IF(Stock!#REF!<>\"\",SUM(Stock!#REF!,Stock!#REF!,Stock!#REF!),\"\")","v":{"$error":"#REF!"}},{"$f":"IF(Stock!#REF!<>\"\",#REF!*(1+Pilotage!$M$20),\"\")","v":{"$error":"#REF!"}},null,{"$f":"IF(Stock!#REF!<>\"\",IF(Stock!#REF!>0,Stock!#REF!/Stock!#REF!,0),\"\")","v":{"$error":"#REF!"}},{"$f":"IF(Stock!#REF!<>\"\",E280*Pilotage!$D$15,\"\")","v":{"$error":"#REF!"}},{"$f":"IF(Stock!#REF!<>\"\",IF(Stock!#REF!>0,Stock!#REF!,0),\"\")","v":{"$error":"#REF!"}},{"$f":"IF(Stock!#REF!<>\"\",Pilotage!$M$27,\"\")","v":{"$error":"#REF!"}},{"$f":"IF(Stock!#REF!<>\"\",ROUND(Stock!#REF!*J280,0),\"\")","v":{"$error":"#REF!"}},{"$f":"IF(Stock!#REF!<>\"\",$H280*K280,\"\")","v":{"$error":"#REF!"}},{"$f":"IF(Stock!#REF!<>\"\",Pilotage!N$27,\"\")","v":{"$error":"#REF!"}},{"$f":"IF(Stock!#REF!<>\"\",ROUND(K280*M280,0),\"\")","v":{"$error":"#REF!"}},{"$f":"IF(Stock!#REF!<>\"\",$H280*N280,\"\")","v":{"$error":"#REF!"}},{"$f":"IF(Stock!#REF!<>\"\",Pilotage!O$27,\"\")","v":{"$error":"#REF!"}},{"$f":"IF(Stock!#REF!<>\"\",ROUND(K280*P280,0),\"\")","v":{"$error":"#REF!"}},{"$f":"IF(Stock!#REF!<>\"\",$H280*Q280,\"\")","v":{"$error":"#REF!"}},{"$f":"IF(Stock!#REF!<>\"\",Pilotage!P$27,\"\")","v":{"$error":"#REF!"}},{"$f":"IF(Stock!#REF!<>\"\",ROUND(Q280*S280,0),\"\")","v":{"$error":"#REF!"}},{"$f":"IF(Stock!#REF!<>\"\",$H280*T280,\"\")","v":{"$error":"#REF!"}},{"$f":"IF(Stock!#REF!<>\"\",Pilotage!Q$27,\"\")","v":{"$error":"#REF!"}},{"$f":"IF(Stock!#REF!<>\"\",ROUND(T280*V280,0),\"\")","v":{"$error":"#REF!"}},{"$f":"IF(Stock!#REF!<>\"\",$H280*W280,\"\")","v":{"$error":"#REF!"}},{"$f":"IF(Stock!#REF!<>\"\",Pilotage!R$27,\"\")","v":{"$error":"#REF!"}},{"$f":"IF(Stock!#REF!<>\"\",ROUND(W280*Y280,0),\"\")","v":{"$error":"#REF!"}},{"$f":"IF(Stock!#REF!<>\"\",$H280*Z280,\"\")","v":{"$error":"#REF!"}}]
[{"$f":"IF(Stock!#REF!<>\"\",Stock!#REF!,\"\")","v":{"$error":"#REF!"}},{"$f":"IF(Stock!#REF!<>\"\",Stock!#REF!,\"\")","v":{"$error":"#REF!"}},{"$f":"IF(Stock!#REF!<>\"\",Stock!#REF!,\"\")","v":{"$error":"#REF!"}},{"$f":"IF(Stock!#REF!<>\"\",SUM(Stock!#REF!,Stock!#REF!,Stock!#REF!),\"\")","v":{"$error":"#REF!"}},{"$f":"IF(Stock!#REF!<>\"\",#REF!*(1+Pilotage!$M$20),\"\")","v":{"$error":"#REF!"}},null,{"$f":"IF(Stock!#REF!<>\"\",IF(Stock!#REF!>0,Stock!#REF!/Stock!#REF!,0),\"\")","v":{"$error":"#REF!"}},{"$f":"IF(Stock!#REF!<>\"\",E281*Pilotage!$D$15,\"\")","v":{"$error":"#REF!"}},{"$f":"IF(Stock!#REF!<>\"\",IF(Stock!#REF!>0,Stock!#REF!,0),\"\")","v":{"$error":"#REF!"}},{"$f":"IF(Stock!#REF!<>\"\",Pilotage!$M$27,\"\")","v":{"$error":"#REF!"}},{"$f":"IF(Stock!#REF!<>\"\",ROUND(Stock!#REF!*J281,0),\"\")","v":{"$error":"#REF!"}},{"$f":"IF(Stock!#REF!<>\"\",$H281*K281,\"\")","v":{"$error":"#REF!"}},{"$f":"IF(Stock!#REF!<>\"\",Pilotage!N$27,\"\")","v":{"$error":"#REF!"}},{"$f":"IF(Stock!#REF!<>\"\",ROUND(K281*M281,0),\"\")","v":{"$error":"#REF!"}},{"$f":"IF(Stock!#REF!<>\"\",$H281*N281,\"\")","v":{"$error":"#REF!"}},{"$f":"IF(Stock!#REF!<>\"\",Pilotage!O$27,\"\")","v":{"$error":"#REF!"}},{"$f":"IF(Stock!#REF!<>\"\",ROUND(K281*P281,0),\"\")","v":{"$error":"#REF!"}},{"$f":"IF(Stock!#REF!<>\"\",$H281*Q281,\"\")","v":{"$error":"#REF!"}},{"$f":"IF(Stock!#REF!<>\"\",Pilotage!P$27,\"\")","v":{"$error":"#REF!"}},{"$f":"IF(Stock!#REF!<>\"\",ROUND(Q281*S281,0),\"\")","v":{"$error":"#REF!"}},{"$f":"IF(Stock!#REF!<>\"\",$H281*T281,\"\")","v":{"$error":"#REF!"}},{"$f":"IF(Stock!#REF!<>\"\",Pilotage!Q$27,\"\")","v":{"$error":"#REF!"}},{"$f":"IF(Stock!#REF!<>\"\",ROUND(T281*V281,0),\"\")","v":{"$error":"#REF!"}},{"$f":"IF(Stock!#REF!<>\"\",$H281*W281,\"\")","v":{"$error":"#REF!"}},{"$f":"IF(Stock!#REF!<>\"\",Pilotage!R$27,\"\")","v":{"$error":"#REF!"}},{"$f":"IF(Stock!#REF!<>\"\",ROUND(W281*Y281,0),\"\")","v":{"$error":"#REF!"}},{"$f":"IF(Stock!#REF!<>\"\",$H281*Z281,\"\")","v":{"$error":"#REF!"}}]
[{"$f":"IF(Stock!#REF!<>\"\",Stock!#REF!,\"\")","v":{"$error":"#REF!"}},{"$f":"IF(Stock!#REF!<>\"\",Stock!#REF!,\"\")","v":{"$error":"#REF!"}},{"$f":"IF(Stock!#REF!<>\"\",Stock!#REF!,\"\")","v":{"$error":"#REF!"}},{"$f":"IF(Stock!#REF!<>\"\",SUM(Stock!#REF!,Stock!#REF!,Stock!#REF!),\"\")","v":{"$error":"#REF!"}},{"$f":"IF(Stock!#REF!<>\"\",#REF!*(1+Pilotage!$M$20),\"\")","v":{"$error":"#REF!"}},null,{"$f":"IF(Stock!#REF!<>\"\",IF(Stock!#REF!>0,Stock!#REF!/Stock!#REF!,0),\"\")","v":{"$error":"#REF!"}},{"$f":"IF(Stock!#REF!<>\"\",E282*Pilotage!$D$15,\"\")","v":{"$error":"#REF!"}},{"$f":"IF(Stock!#REF!<>\"\",IF(Stock!#REF!>0,Stock!#REF!,0),\"\")","v":{"$error":"#REF!"}},{"$f":"IF(Stock!#REF!<>\"\",Pilotage!$M$27,\"\")","v":{"$error":"#REF!"}},{"$f":"IF(Stock!#REF!<>\"\",ROUND(Stock!#REF!*J282,0),\"\")","v":{"$error":"#REF!"}},{"$f":"IF(Stock!#REF!<>\"\",$H282*K282,\"\")","v":{"$error":"#REF!"}},{"$f":"IF(Stock!#REF!<>\"\",Pilotage!N$27,\"\")","v":{"$error":"#REF!"}},{"$f":"IF(Stock!#REF!<>\"\",ROUND(K282*M282,0),\"\")","v":{"$error":"#REF!"}},{"$f":"IF(Stock!#REF!<>\"\",$H282*N282,\"\")","v":{"$error":"#REF!"}},{"$f":"IF(Stock!#REF!<>\"\",Pilotage!O$27,\"\")","v":{"$error":"#REF!"}},{"$f":"IF(Stock!#REF!<>\"\",ROUND(K282*P282,0),\"\")","v":{"$error":"#REF!"}},{"$f":"IF(Stock!#REF!<>\"\",$H282*Q282,\"\")","v":{"$error":"#REF!"}},{"$f":"IF(Stock!#REF!<>\"\",Pilotage!P$27,\"\")","v":{"$error":"#REF!"}},{"$f":"IF(Stock!#REF!<>\"\",ROUND(Q282*S282,0),\"\")","v":{"$error":"#REF!"}},{"$f":"IF(Stock!#REF!<>\"\",$H282*T282,\"\")","v":{"$error":"#REF!"}},{"$f":"IF(Stock!#REF!<>\"\",Pilotage!Q$27,\"\")","v":{"$error":"#REF!"}},{"$f":"IF(Stock!#REF!<>\"\",ROUND(T282*V282,0),\"\")","v":{"$error":"#REF!"}},{"$f":"IF(Stock!#REF!<>\"\",$H282*W282,\"\")","v":{"$error":"#REF!"}},{"$f":"IF(Stock!#REF!<>\"\",Pilotage!R$27,\"\")","v":{"$error":"#REF!"}},{"$f":"IF(Stock!#REF!<>\"\",ROUND(W282*Y282,0),\"\")","v":{"$error":"#REF!"}},{"$f":"IF(Stock!#REF!<>\"\",$H282*Z282,\"\")","v":{"$error":"#REF!"}}]
[{"$f":"IF(Stock!#REF!<>\"\",Stock!#REF!,\"\")","v":{"$error":"#REF!"}},{"$f":"IF(Stock!#REF!<>\"\",Stock!#REF!,\"\")","v":{"$error":"#REF!"}},{"$f":"IF(Stock!#REF!<>\"\",Stock!#REF!,\"\")","v":{"$error":"#REF!"}},{"$f":"IF(Stock!#REF!<>\"\",SUM(Stock!#REF!,Stock!#REF!,Stock!#REF!),\"\")","v":{"$error":"#REF!"}},{"$f":"IF(Stock!#REF!<>\"\",#REF!*(1+Pilotage!$M$20),\"\")","v":{"$error":"#REF!"}},null,{"$f":"IF(Stock!#REF!<>\"\",IF(Stock!#REF!>0,Stock!#REF!/Stock!#REF!,0),\"\")","v":{"$error":"#REF!"}},{"$f":"IF(Stock!#REF!<>\"\",E283*Pilotage!$D$15,\"\")","v":{"$error":"#REF!"}},{"$f":"IF(Stock!#REF!<>\"\",IF(Stock!#REF!>0,Stock!#REF!,0),\"\")","v":{"$error":"#REF!"}},{"$f":"IF(Stock!#REF!<>\"\",Pilotage!$M$27,\"\")","v":{"$error":"#REF!"}},{"$f":"IF(Stock!#REF!<>\"\",ROUND(Stock!#REF!*J283,0),\"\")","v":{"$error":"#REF!"}},{"$f":"IF(Stock!#REF!<>\"\",$H283*K283,\"\")","v":{"$error":"#REF!"}},{"$f":"IF(Stock!#REF!<>\"\",Pilotage!N$27,\"\")","v":{"$error":"#REF!"}},{"$f":"IF(Stock!#REF!<>\"\",ROUND(K283*M283,0),\"\")","v":{"$error":"#REF!"}},{"$f":"IF(Stock!#REF!<>\"\",$H283*N283,\"\")","v":{"$error":"#REF!"}},{"$f":"IF(Stock!#REF!<>\"\",Pilotage!O$27,\"\")","v":{"$error":"#REF!"}},{"$f":"IF(Stock!#REF!<>\"\",ROUND(K283*P283,0),\"\")","v":{"$error":"#REF!"}},{"$f":"IF(Stock!#REF!<>\"\",$H283*Q283,\"\")","v":{"$error":"#REF!"}},{"$f":"IF(Stock!#REF!<>\"\",Pilotage!P$27,\"\")","v":{"$error":"#REF!"}},{"$f":"IF(Stock!#REF!<>\"\",ROUND(Q283*S283,0),\"\")","v":{"$error":"#REF!"}},{"$f":"IF(Stock!#REF!<>\"\",$H283*T283,\"\")","v":{"$error":"#REF!"}},{"$f":"IF(Stock!#REF!<>\"\",Pilotage!Q$27,\"\")","v":{"$error":"#REF!"}},{"$f":"IF(Stock!#REF!<>\"\",ROUND(T283*V283,0),\"\")","v":{"$error":"#REF!"}},{"$f":"IF(Stock!#REF!<>\"\",$H283*W283,\"\")","v":{"$error":"#REF!"}},{"$f":"IF(Stock!#REF!<>\"\",Pilotage!R$27,\"\")","v":{"$error":"#REF!"}},{"$f":"IF(Stock!#REF!<>\"\",ROUND(W283*Y283,0),\"\")","v":{"$error":"#REF!"}},{"$f":"IF(Stock!#REF!<>\"\",$H283*Z283,\"\")","v":{"$error":"#REF!"}}]
[{"$f":"IF(Stock!#REF!<>\"\",Stock!#REF!,\"\")","v":{"$error":"#REF!"}},{"$f":"IF(Stock!#REF!<>\"\",Stock!#REF!,\"\")","v":{"$error":"#REF!"}},{"$f":"IF(Stock!#REF!<>\"\",Stock!#REF!,\"\")","v":{"$error":"#REF!"}},{"$f":"IF(Stock!#REF!<>\"\",SUM(Stock!#REF!,Stock!#REF!,Stock!#REF!),\"\")","v":{"$error":"#REF!"}},{"$f":"IF(Stock!#REF!<>\"\",#REF!*(1+Pilotage!$M$20),\"\")","v":{"$error":"#REF!"}},null,{"$f":"IF(Stock!#REF!<>\"\",IF(Stock!#REF!>0,Stock!#REF!/Stock!#REF!,0),\"\")","v":{"$error":"#REF!"}},{"$f":"IF(Stock!#REF!<>\"\",E284*Pilotage!$D$15,\"\")","v":{"$error":"#REF!"}},{"$f":"IF(Stock!#REF!<>\"\",IF(Stock!#REF!>0,Stock!#REF!,0),\"\")","v":{"$error":"#REF!"}},{"$f":"IF(Stock!#REF!<>\"\",Pilotage!$M$27,\"\")","v":{"$error":"#REF!"}},{"$f":"IF(Stock!#REF!<>\"\",ROUND(Stock!#REF!*J284,0),\"\")","v":{"$error":"#REF!"}},{"$f":"IF(Stock!#REF!<>\"\",$H284*K284,\"\")","v":{"$error":"#REF!"}},{"$f":"IF(Stock!#REF!<>\"\",Pilotage!N$27,\"\")","v":{"$error":"#REF!"}},{"$f":"IF(Stock!#REF!<>\"\",ROUND(K284*M284,0),\"\")","v":{"$error":"#REF!"}},{"$f":"IF(Stock!#REF!<>\"\",$H284*N284,\"\")","v":{"$error":"#REF!"}},{"$f":"IF(Stock!#REF!<>\"\",Pilotage!O$27,\"\")","v":{"$error":"#REF!"}},{"$f":"IF(Stock!#REF!<>\"\",ROUND(K284*P284,0),\"\")","v":{"$error":"#REF!"}},{"$f":"IF(Stock!#REF!<>\"\",$H284*Q284,\"\")","v":{"$error":"#REF!"}},{"$f":"IF(Stock!#REF!<>\"\",Pilotage!P$27,\"\")","v":{"$error":"#REF!"}},{"$f":"IF(Stock!#REF!<>\"\",ROUND(Q284*S284,0),\"\")","v":{"$error":"#REF!"}},{"$f":"IF(Stock!#REF!<>\"\",$H284*T284,\"\")","v":{"$error":"#REF!"}},{"$f":"IF(Stock!#REF!<>\"\",Pilotage!Q$27,\"\")","v":{"$error":"#REF!"}},{"$f":"IF(Stock!#REF!<>\"\",ROUND(T284*V284,0),\"\")","v":{"$error":"#REF!"}},{"$f":"IF(Stock!#REF!<>\"\",$H284*W284,\"\")","v":{"$error":"#REF!"}},{"$f":"IF(Stock!#REF!<>\"\",Pilotage!R$27,\"\")","v":{"$error":"#REF!"}},{"$f":"IF(Stock!#REF!<>\"\",ROUND(W284*Y284,0),\"\")","v":{"$error":"#REF!"}},{"$f":"IF(Stock!#REF!<>\"\",$H284*Z284,\"\")","v":{"$error":"#REF!"}}]
[{"$f":"IF(Stock!#REF!<>\"\",Stock!#REF!,\"\")","v":{"$error":"#REF!"}},{"$f":"IF(Stock!#REF!<>\"\",Stock!#REF!,\"\")","v":{"$error":"#REF!"}},{"$f":"IF(Stock!#REF!<>\"\",Stock!#REF!,\"\")","v":{"$error":"#REF!"}},{"$f":"IF(Stock!#REF!<>\"\",SUM(Stock!#REF!,Stock!#REF!,Stock!#REF!),\"\")","v":{"$error":"#REF!"}},{"$f":"IF(Stock!#REF!<>\"\",#REF!*(1+Pilotage!$M$20),\"\")","v":{"$error":"#REF!"}},null,{"$f":"IF(Stock!#REF!<>\"\",IF(Stock!#REF!>0,Stock!#REF!/Stock!#REF!,0),\"\")","v":{"$error":"#REF!"}},{"$f":"IF(Stock!#REF!<>\"\",E285*Pilotage!$D$15,\"\")","v":{"$error":"#REF!"}},{"$f":"IF(Stock!#REF!<>\"\",IF(Stock!#REF!>0,Stock!#REF!,0),\"\")","v":{"$error":"#REF!"}},{"$f":"IF(Stock!#REF!<>\"\",Pilotage!$M$27,\"\")","v":{"$error":"#REF!"}},{"$f":"IF(Stock!#REF!<>\"\",ROUND(Stock!#REF!*J285,0),\"\")","v":{"$error":"#REF!"}},{"$f":"IF(Stock!#REF!<>\"\",$H285*K285,\"\")","v":{"$error":"#REF!"}},{"$f":"IF(Stock!#REF!<>\"\",Pilotage!N$27,\"\")","v":{"$error":"#REF!"}},{"$f":"IF(Stock!#REF!<>\"\",ROUND(K285*M285,0),\"\")","v":{"$error":"#REF!"}},{"$f":"IF(Stock!#REF!<>\"\",$H285*N285,\"\")","v":{"$error":"#REF!"}},{"$f":"IF(Stock!#REF!<>\"\",Pilotage!O$27,\"\")","v":{"$error":"#REF!"}},{"$f":"IF(Stock!#REF!<>\"\",ROUND(K285*P285,0),\"\")","v":{"$error":"#REF!"}},{"$f":"IF(Stock!#REF!<>\"\",$H285*Q285,\"\")","v":{"$error":"#REF!"}},{"$f":"IF(Stock!#REF!<>\"\",Pilotage!P$27,\"\")","v":{"$error":"#REF!"}},{"$f":"IF(Stock!#REF!<>\"\",ROUND(Q285*S285,0),\"\")","v":{"$error":"#REF!"}},{"$f":"IF(Stock!#REF!<>\"\",$H285*T285,\"\")","v":{"$error":"#REF!"}},{"$f":"IF(Stock!#REF!<>\"\",Pilotage!Q$27,\"\")","v":{"$error":"#REF!"}},{"$f":"IF(Stock!#REF!<>\"\",ROUND(T285*V285,0),\"\")","v":{"$error":"#REF!"}},{"$f":"IF(Stock!#REF!<>\"\",$H285*W285,\"\")","v":{"$error":"#REF!"}},{"$f":"IF(Stock!#REF!<>\"\",Pilotage!R$27,\"\")","v":{"$error":"#REF!"}},{"$f":"IF(Stock!#REF!<>\"\",ROUND(W285*Y285,0),\"\")","v":{"$error":"#REF!"}},{"$f":"IF(Stock!#REF!<>\"\",$H285*Z285,\"\")","v":{"$error":"#REF!"}}]
[{"$f":"IF(Stock!#REF!<>\"\",Stock!#REF!,\"\")","v":{"$error":"#REF!"}},{"$f":"IF(Stock!#REF!<>\"\",Stock!#REF!,\"\")","v":{"$error":"#REF!"}},{"$f":"IF(Stock!#REF!<>\"\",Stock!#REF!,\"\")","v":{"$error":"#REF!"}},{"$f":"IF(Stock!#REF!<>\"\",SUM(Stock!#REF!,Stock!#REF!,Stock!#REF!),\"\")","v":{"$error":"#REF!"}},{"$f":"IF(Stock!#REF!<>\"\",#REF!*(1+Pilotage!$M$20),\"\")","v":{"$error":"#REF!"}},null,{"$f":"IF(Stock!#REF!<>\"\",IF(Stock!#REF!>0,Stock!#REF!/Stock!#REF!,0),\"\")","v":{"$error":"#REF!"}},{"$f":"IF(Stock!#REF!<>\"\",E286*Pilotage!$D$15,\"\")","v":{"$error":"#REF!"}},{"$f":"IF(Stock!#REF!<>\"\",IF(Stock!#REF!>0,Stock!#REF!,0),\"\")","v":{"$error":"#REF!"}},{"$f":"IF(Stock!#REF!<>\"\",Pilotage!$M$27,\"\")","v":{"$error":"#REF!"}},{"$f":"IF(Stock!#REF!<>\"\",ROUND(Stock!#REF!*J286,0),\"\")","v":{"$error":"#REF!"}},{"$f":"IF(Stock!#REF!<>\"\",$H286*K286,\"\")","v":{"$error":"#REF!"}},{"$f":"IF(Stock!#REF!<>\"\",Pilotage!N$27,\"\")","v":{"$error":"#REF!"}},{"$f":"IF(Stock!#REF!<>\"\",ROUND(K286*M286,0),\"\")","v":{"$error":"#REF!"}},{"$f":"IF(Stock!#REF!<>\"\",$H286*N286,\"\")","v":{"$error":"#REF!"}},{"$f":"IF(Stock!#REF!<>\"\",Pilotage!O$27,\"\")","v":{"$error":"#REF!"}},{"$f":"IF(Stock!#REF!<>\"\",ROUND(K286*P286,0),\"\")","v":{"$error":"#REF!"}},{"$f":"IF(Stock!#REF!<>\"\",$H286*Q286,\"\")","v":{"$error":"#REF!"}},{"$f":"IF(Stock!#REF!<>\"\",Pilotage!P$27,\"\")","v":{"$error":"#REF!"}},{"$f":"IF(Stock!#REF!<>\"\",ROUND(Q286*S286,0),\"\")","v":{"$error":"#REF!"}},{"$f":"IF(Stock!#REF!<>\"\",$H286*T286,\"\")","v":{"$error":"#REF!"}},{"$f":"IF(Stock!#REF!<>\"\",Pilotage!Q$27,\"\")","v":{"$error":"#REF!"}},{"$f":"IF(Stock!#REF!<>\"\",ROUND(T286*V286,0),\"\")","v":{"$error":"#REF!"}},{"$f":"IF(Stock!#REF!<>\"\",$H286*W286,\"\")","v":{"$error":"#REF!"}},{"$f":"IF(Stock!#REF!<>\"\",Pilotage!R$27,\"\")","v":{"$error":"#REF!"}},{"$f":"IF(Stock!#REF!<>\"\",ROUND(W286*Y286,0),\"\")","v":{"$error":"#REF!"}},{"$f":"IF(Stock!#REF!<>\"\",$H286*Z286,\"\")","v":{"$error":"#REF!"}}]
[{"$f":"IF(Stock!#REF!<>\"\",Stock!#REF!,\"\")","v":{"$error":"#REF!"}},{"$f":"IF(Stock!#REF!<>\"\",Stock!#REF!,\"\")","v":{"$error":"#REF!"}},{"$f":"IF(Stock!#REF!<>\"\",Stock!#REF!,\"\")","v":{"$error":"#REF!"}},{"$f":"IF(Stock!#REF!<>\"\",SUM(Stock!#REF!,Stock!#REF!,Stock!#REF!),\"\")","v":{"$error":"#REF!"}},{"$f":"IF(Stock!#REF!<>\"\",#REF!*(1+Pilotage!$M$20),\"\")","v":{"$error":"#REF!"}},null,{"$f":"IF(Stock!#REF!<>\"\",IF(Stock!#REF!>0,Stock!#REF!/Stock!#REF!,0),\"\")","v":{"$error":"#REF!"}},{"$f":"IF(Stock!#REF!<>\"\",E287*Pilotage!$D$15,\"\")","v":{"$error":"#REF!"}},{"$f":"IF(Stock!#REF!<>\"\",IF(Stock!#REF!>0,Stock!#REF!,0),\"\")","v":{"$error":"#REF!"}},{"$f":"IF(Stock!#REF!<>\"\",Pilotage!$M$27,\"\")","v":{"$error":"#REF!"}},{"$f":"IF(Stock!#REF!<>\"\",ROUND(Stock!#REF!*J287,0),\"\")","v":{"$error":"#REF!"}},{"$f":"IF(Stock!#REF!<>\"\",$H287*K287,\"\")","v":{"$error":"#REF!"}},{"$f":"IF(Stock!#REF!<>\"\",Pilotage!N$27,\"\")","v":{"$error":"#REF!"}},{"$f":"IF(Stock!#REF!<>\"\",ROUND(K287*M287,0),\"\")","v":{"$error":"#REF!"}},{"$f":"IF(Stock!#REF!<>\"\",$H287*N287,\"\")","v":{"$error":"#REF!"}},{"$f":"IF(Stock!#REF!<>\"\",Pilotage!O$27,\"\")","v":{"$error":"#REF!"}},{"$f":"IF(Stock!#REF!<>\"\",ROUND(K287*P287,0),\"\")","v":{"$error":"#REF!"}},{"$f":"IF(Stock!#REF!<>\"\",$H287*Q287,\"\")","v":{"$error":"#REF!"}},{"$f":"IF(Stock!#REF!<>\"\",Pilotage!P$27,\"\")","v":{"$error":"#REF!"}},{"$f":"IF(Stock!#REF!<>\"\",ROUND(Q287*S287,0),\"\")","v":{"$error":"#REF!"}},{"$f":"IF(Stock!#REF!<>\"\",$H287*T287,\"\")","v":{"$error":"#REF!"}},{"$f":"IF(Stock!#REF!<>\"\",Pilotage!Q$27,\"\")","v":{"$error":"#REF!"}},{"$f":"IF(Stock!#REF!<>\"\",ROUND(T287*V287,0),\"\")","v":{"$error":"#REF!"}},{"$f":"IF(Stock!#REF!<>\"\",$H287*W287,\"\")","v":{"$error":"#REF!"}},{"$f":"IF(Stock!#REF!<>\"\",Pilotage!R$27,\"\")","v":{"$error":"#REF!"}},{"$f":"IF(Stock!#REF!<>\"\",ROUND(W287*Y287,0),\"\")","v":{"$error":"#REF!"}},{"$f":"IF(Stock!#REF!<>\"\",$H287*Z287,\"\")","v":{"$error":"#REF!"}}]
[{"$f":"IF(Stock!#REF!<>\"\",Stock!#REF!,\"\")","v":{"$error":"#REF!"}},{"$f":"IF(Stock!#REF!<>\"\",Stock!#REF!,\"\")","v":{"$error":"#REF!"}},{"$f":"IF(Stock!#REF!<>\"\",Stock!#REF!,\"\")","v":{"$error":"#REF!"}},{"$f":"IF(Stock!#REF!<>\"\",SUM(Stock!#REF!,Stock!#REF!,Stock!#REF!),\"\")","v":{"$error":"#REF!"}},{"$f":"IF(Stock!#REF!<>\"\",#REF!*(1+Pilotage!$M$20),\"\")","v":{"$error":"#REF!"}},null,{"$f":"IF(Stock!#REF!<>\"\",IF(Stock!#REF!>0,Stock!#REF!/Stock!#REF!,0),\"\")","v":{"$error":"#REF!"}},{"$f":"IF(Stock!#REF!<>\"\",E288*Pilotage!$D$15,\"\")","v":{"$error":"#REF!"}},{"$f":"IF(Stock!#REF!<>\"\",IF(Stock!#REF!>0,Stock!#REF!,0),\"\")","v":{"$error":"#REF!"}},{"$f":"IF(Stock!#REF!<>\"\",Pilotage!$M$27,\"\")","v":{"$error":"#REF!"}},{"$f":"IF(Stock!#REF!<>\"\",ROUND(Stock!#REF!*J288,0),\"\")","v":{"$error":"#REF!"}},{"$f":"IF(Stock!#REF!<>\"\",$H288*K288,\"\")","v":{"$error":"#REF!"}},{"$f":"IF(Stock!#REF!<>\"\",Pilotage!N$27,\"\")","v":{"$error":"#REF!"}},{"$f":"IF(Stock!#REF!<>\"\",ROUND(K288*M288,0),\"\")","v":{"$error":"#REF!"}},{"$f":"IF(Stock!#REF!<>\"\",$H288*N288,\"\")","v":{"$error":"#REF!"}},{"$f":"IF(Stock!#REF!<>\"\",Pilotage!O$27,\"\")","v":{"$error":"#REF!"}},{"$f":"IF(Stock!#REF!<>\"\",ROUND(K288*P288,0),\"\")","v":{"$error":"#REF!"}},{"$f":"IF(Stock!#REF!<>\"\",$H288*Q288,\"\")","v":{"$error":"#REF!"}},{"$f":"IF(Stock!#REF!<>\"\",Pilotage!P$27,\"\")","v":{"$error":"#REF!"}},{"$f":"IF(Stock!#REF!<>\"\",ROUND(Q288*S288,0),\"\")","v":{"$error":"#REF!"}},{"$f":"IF(Stock!#REF!<>\"\",$H288*T288,\"\")","v":{"$error":"#REF!"}},{"$f":"IF(Stock!#REF!<>\"\",Pilotage!Q$27,\"\")","v":{"$error":"#REF!"}},{"$f":"IF(Stock!#REF!<>\"\",ROUND(T288*V288,0),\"\")","v":{"$error":"#REF!"}},{"$f":"IF(Stock!#REF!<>\"\",$H288*W288,\"\")","v":{"$error":"#REF!"}},{"$f":"IF(Stock!#REF!<>\"\",Pilotage!R$27,\"\")","v":{"$error":"#REF!"}},{"$f":"IF(Stock!#REF!<>\"\",ROUND(W288*Y288,0),\"\")","v":{"$error":"#REF!"}},{"$f":"IF(Stock!#REF!<>\"\",$H288*Z288,\"\")","v":{"$error":"#REF!"}}]
[{"$f":"IF(Stock!#REF!<>\"\",Stock!#REF!,\"\")","v":{"$error":"#REF!"}},{"$f":"IF(Stock!#REF!<>\"\",Stock!#REF!,\"\")","v":{"$error":"#REF!"}},{"$f":"IF(Stock!#REF!<>\"\",Stock!#REF!,\"\")","v":{"$error":"#REF!"}},{"$f":"IF(Stock!#REF!<>\"\",SUM(Stock!#REF!,Stock!#REF!,Stock!#REF!),\"\")","v":{"$error":"#REF!"}},{"$f":"IF(Stock!#REF!<>\"\",#REF!*(1+Pilotage!$M$20),\"\")","v":{"$error":"#REF!"}},null,{"$f":"IF(Stock!#REF!<>\"\",IF(Stock!#REF!>0,Stock!#REF!/Stock!#REF!,0),\"\")","v":{"$error":"#REF!"}},{"$f":"IF(Stock!#REF!<>\"\",E289*Pilotage!$D$15,\"\")","v":{"$error":"#REF!"}},{"$f":"IF(Stock!#REF!<>\"\",IF(Stock!#REF!>0,Stock!#REF!,0),\"\")","v":{"$error":"#REF!"}},{"$f":"IF(Stock!#REF!<>\"\",Pilotage!$M$27,\"\")","v":{"$error":"#REF!"}},{"$f":"IF(Stock!#REF!<>\"\",ROUND(Stock!#REF!*J289,0),\"\")","v":{"$error":"#REF!"}},{"$f":"IF(Stock!#REF!<>\"\",$H289*K289,\"\")","v":{"$error":"#REF!"}},{"$f":"IF(Stock!#REF!<>\"\",Pilotage!N$27,\"\")","v":{"$error":"#REF!"}},{"$f":"IF(Stock!#REF!<>\"\",ROUND(K289*M289,0),\"\")","v":{"$error":"#REF!"}},{"$f":"IF(Stock!#REF!<>\"\",$H289*N289,\"\")","v":{"$error":"#REF!"}},{"$f":"IF(Stock!#REF!<>\"\",Pilotage!O$27,\"\")","v":{"$error":"#REF!"}},{"$f":"IF(Stock!#REF!<>\"\",ROUND(K289*P289,0),\"\")","v":{"$error":"#REF!"}},{"$f":"IF(Stock!#REF!<>\"\",$H289*Q289,\"\")","v":{"$error":"#REF!"}},{"$f":"IF(Stock!#REF!<>\"\",Pilotage!P$27,\"\")","v":{"$error":"#REF!"}},{"$f":"IF(Stock!#REF!<>\"\",ROUND(Q289*S289,0),\"\")","v":{"$error":"#REF!"}},{"$f":"IF(Stock!#REF!<>\"\",$H289*T289,\"\")","v":{"$error":"#REF!"}},{"$f":"IF(Stock!#REF!<>\"\",Pilotage!Q$27,\"\")","v":{"$error":"#REF!"}},{"$f":"IF(Stock!#REF!<>\"\",ROUND(T289*V289,0),\"\")","v":{"$error":"#REF!"}},{"$f":"IF(Stock!#REF!<>\"\",$H289*W289,\"\")","v":{"$error":"#REF!"}},{"$f":"IF(Stock!#REF!<>\"\",Pilotage!R$27,\"\")","v":{"$error":"#REF!"}},{"$f":"IF(Stock!#REF!<>\"\",ROUND(W289*Y289,0),\"\")","v":{"$error":"#REF!"}},{"$f":"IF(Stock!#REF!<>\"\",$H289*Z289,\"\")","v":{"$error":"#REF!"}}]
[{"$f":"IF(Stock!#REF!<>\"\",Stock!#REF!,\"\")","v":{"$error":"#REF!"}},{"$f":"IF(Stock!#REF!<>\"\",Stock!#REF!,\"\")","v":{"$error":"#REF!"}},{"$f":"IF(Stock!#REF!<>\"\",Stock!#REF!,\"\")","v":{"$error":"#REF!"}},{"$f":"IF(Stock!#REF!<>\"\",SUM(Stock!#REF!,Stock!#REF!,Stock!#REF!),\"\")","v":{"$error":"#REF!"}},{"$f":"IF(Stock!#REF!<>\"\",#REF!*(1+Pilotage!$M$20),\"\")","v":{"$error":"#REF!"}},null,{"$f":"IF(Stock!#REF!<>\"\",IF(Stock!#REF!>0,Stock!#REF!/Stock!#REF!,0),\"\")","v":{"$error":"#REF!"}},{"$f":"IF(Stock!#REF!<>\"\",E290*Pilotage!$D$15,\"\")","v":{"$error":"#REF!"}},{"$f":"IF(Stock!#REF!<>\"\",IF(Stock!#REF!>0,Stock!#REF!,0),\"\")","v":{"$error":"#REF!"}},{"$f":"IF(Stock!#REF!<>\"\",Pilotage!$M$27,\"\")","v":{"$error":"#REF!"}},{"$f":"IF(Stock!#REF!<>\"\",ROUND(Stock!#REF!*J290,0),\"\")","v":{"$error":"#REF!"}},{"$f":"IF(Stock!#REF!<>\"\",$H290*K290,\"\")","v":{"$error":"#REF!"}},{"$f":"IF(Stock!#REF!<>\"\",Pilotage!N$27,\"\")","v":{"$error":"#REF!"}},{"$f":"IF(Stock!#REF!<>\"\",ROUND(K290*M290,0),\"\")","v":{"$error":"#REF!"}},{"$f":"IF(Stock!#REF!<>\"\",$H290*N290,\"\")","v":{"$error":"#REF!"}},{"$f":"IF(Stock!#REF!<>\"\",Pilotage!O$27,\"\")","v":{"$error":"#REF!"}},{"$f":"IF(Stock!#REF!<>\"\",ROUND(K290*P290,0),\"\")","v":{"$error":"#REF!"}},{"$f":"IF(Stock!#REF!<>\"\",$H290*Q290,\"\")","v":{"$error":"#REF!"}},{"$f":"IF(Stock!#REF!<>\"\",Pilotage!P$27,\"\")","v":{"$error":"#REF!"}},{"$f":"IF(Stock!#REF!<>\"\",ROUND(Q290*S290,0),\"\")","v":{"$error":"#REF!"}},{"$f":"IF(Stock!#REF!<>\"\",$H290*T290,\"\")","v":{"$error":"#REF!"}},{"$f":"IF(Stock!#REF!<>\"\",Pilotage!Q$27,\"\")","v":{"$error":"#REF!"}},{"$f":"IF(Stock!#REF!<>\"\",ROUND(T290*V290,0),\"\")","v":{"$error":"#REF!"}},{"$f":"IF(Stock!#REF!<>\"\",$H290*W290,\"\")","v":{"$error":"#REF!"}},{"$f":"IF(Stock!#REF!<>\"\",Pilotage!R$27,\"\")","v":{"$error":"#REF!"}},{"$f":"IF(Stock!#REF!<>\"\",ROUND(W290*Y290,0),\"\")","v":{"$error":"#REF!"}},{"$f":"IF(Stock!#REF!<>\"\",$H290*Z290,\"\")","v":{"$error":"#REF!"}}]
[{"$f":"IF(Stock!#REF!<>\"\",Stock!#REF!,\"\")","v":{"$error":"#REF!"}},{"$f":"IF(Stock!#REF!<>\"\",Stock!#REF!,\"\")","v":{"$error":"#REF!"}},{"$f":"IF(Stock!#REF!<>\"\",Stock!#REF!,\"\")","v":{"$error":"#REF!"}},{"$f":"IF(Stock!#REF!<>\"\",SUM(Stock!#REF!,Stock!#REF!,Stock!#REF!),\"\")","v":{"$error":"#REF!"}},{"$f":"IF(Stock!#REF!<>\"\",#REF!*(1+Pilotage!$M$20),\"\")","v":{"$error":"#REF!"}},null,{"$f":"IF(Stock!#REF!<>\"\",IF(Stock!#REF!>0,Stock!#REF!/Stock!#REF!,0),\"\")","v":{"$error":"#REF!"}},{"$f":"IF(Stock!#REF!<>\"\",E291*Pilotage!$D$15,\"\")","v":{"$error":"#REF!"}},{"$f":"IF(Stock!#REF!<>\"\",IF(Stock!#REF!>0,Stock!#REF!,0),\"\")","v":{"$error":"#REF!"}},{"$f":"IF(Stock!#REF!<>\"\",Pilotage!$M$27,\"\")","v":{"$error":"#REF!"}},{"$f":"IF(Stock!#REF!<>\"\",ROUND(Stock!#REF!*J291,0),\"\")","v":{"$error":"#REF!"}},{"$f":"IF(Stock!#REF!<>\"\",$H291*K291,\"\")","v":{"$error":"#REF!"}},{"$f":"IF(Stock!#REF!<>\"\",Pilotage!N$27,\"\")","v":{"$error":"#REF!"}},{"$f":"IF(Stock!#REF!<>\"\",ROUND(K291*M291,0),\"\")","v":{"$error":"#REF!"}},{"$f":"IF(Stock!#REF!<>\"\",$H291*N291,\"\")","v":{"$error":"#REF!"}},{"$f":"IF(Stock!#REF!<>\"\",Pilotage!O$27,\"\")","v":{"$error":"#REF!"}},{"$f":"IF(Stock!#REF!<>\"\",ROUND(K291*P291,0),\"\")","v":{"$error":"#REF!"}},{"$f":"IF(Stock!#REF!<>\"\",$H291*Q291,\"\")","v":{"$error":"#REF!"}},{"$f":"IF(Stock!#REF!<>\"\",Pilotage!P$27,\"\")","v":{"$error":"#REF!"}},{"$f":"IF(Stock!#REF!<>\"\",ROUND(Q291*S291,0),\"\")","v":{"$error":"#REF!"}},{"$f":"IF(Stock!#REF!<>\"\",$H291*T291,\"\")","v":{"$error":"#REF!"}},{"$f":"IF(Stock!#REF!<>\"\",Pilotage!Q$27,\"\")","v":{"$error":"#REF!"}},{"$f":"IF(Stock!#REF!<>\"\",ROUND(T291*V291,0),\"\")","v":{"$error":"#REF!"}},{"$f":"IF(Stock!#REF!<>\"\",$H291*W291,\"\")","v":{"$error":"#REF!"}},{"$f":"IF(Stock!#REF!<>\"\",Pilotage!R$27,\"\")","v":{"$error":"#REF!"}},{"$f":"IF(Stock!#REF!<>\"\",ROUND(W291*Y291,0),\"\")","v":{"$error":"#REF!"}},{"$f":"IF(Stock!#REF!<>\"\",$H291*Z291,\"\")","v":{"$error":"#REF!"}}]
[{"$f":"IF(Stock!#REF!<>\"\",Stock!#REF!,\"\")","v":{"$error":"#REF!"}},{"$f":"IF(Stock!#REF!<>\"\",Stock!#REF!,\"\")","v":{"$error":"#REF!"}},{"$f":"IF(Stock!#REF!<>\"\",Stock!#REF!,\"\")","v":{"$error":"#REF!"}},{"$f":"IF(Stock!#REF!<>\"\",SUM(Stock!#REF!,Stock!#REF!,Stock!#REF!),\"\")","v":{"$error":"#REF!"}},{"$f":"IF(Stock!#REF!<>\"\",#REF!*(1+Pilotage!$M$20),\"\")","v":{"$error":"#REF!"}},null,{"$f":"IF(Stock!#REF!<>\"\",IF(Stock!#REF!>0,Stock!#REF!/Stock!#REF!,0),\"\")","v":{"$error":"#REF!"}},{"$f":"IF(Stock!#REF!<>\"\",E292*Pilotage!$D$15,\"\")","v":{"$error":"#REF!"}},{"$f":"IF(Stock!#REF!<>\"\",IF(Stock!#REF!>0,Stock!#REF!,0),\"\")","v":{"$error":"#REF!"}},{"$f":"IF(Stock!#REF!<>\"\",Pilotage!$M$27,\"\")","v":{"$error":"#REF!"}},{"$f":"IF(Stock!#REF!<>\"\",ROUND(Stock!#REF!*J292,0),\"\")","v":{"$error":"#REF!"}},{"$f":"IF(Stock!#REF!<>\"\",$H292*K292,\"\")","v":{"$error":"#REF!"}},{"$f":"IF(Stock!#REF!<>\"\",Pilotage!N$27,\"\")","v":{"$error":"#REF!"}},{"$f":"IF(Stock!#REF!<>\"\",ROUND(K292*M292,0),\"\")","v":{"$error":"#REF!"}},{"$f":"IF(Stock!#REF!<>\"\",$H292*N292,\"\")","v":{"$error":"#REF!"}},{"$f":"IF(Stock!#REF!<>\"\",Pilotage!O$27,\"\")","v":{"$error":"#REF!"}},{"$f":"IF(Stock!#REF!<>\"\",ROUND(K292*P292,0),\"\")","v":{"$error":"#REF!"}},{"$f":"IF(Stock!#REF!<>\"\",$H292*Q292,\"\")","v":{"$error":"#REF!"}},{"$f":"IF(Stock!#REF!<>\"\",Pilotage!P$27,\"\")","v":{"$error":"#REF!"}},{"$f":"IF(Stock!#REF!<>\"\",ROUND(Q292*S292,0),\"\")","v":{"$error":"#REF!"}},{"$f":"IF(Stock!#REF!<>\"\",$H292*T292,\"\")","v":{"$error":"#REF!"}},{"$f":"IF(Stock!#REF!<>\"\",Pilotage!Q$27,\"\")","v":{"$error":"#REF!"}},{"$f":"IF(Stock!#REF!<>\"\",ROUND(T292*V292,0),\"\")","v":{"$error":"#REF!"}},{"$f":"IF(Stock!#REF!<>\"\",$H292*W292,\"\")","v":{"$error":"#REF!"}},{"$f":"IF(Stock!#REF!<>\"\",Pilotage!R$27,\"\")","v":{"$error":"#REF!"}},{"$f":"IF(Stock!#REF!<>\"\",ROUND(W292*Y292,0),\"\")","v":{"$error":"#REF!"}},{"$f":"IF(Stock!#REF!<>\"\",$H292*Z292,\"\")","v":{"$error":"#REF!"}}]
[{"$f":"IF(Stock!#REF!<>\"\",Stock!#REF!,\"\")","v":{"$error":"#REF!"}},{"$f":"IF(Stock!#REF!<>\"\",Stock!#REF!,\"\")","v":{"$error":"#REF!"}},{"$f":"IF(Stock!#REF!<>\"\",Stock!#REF!,\"\")","v":{"$error":"#REF!"}},{"$f":"IF(Stock!#REF!<>\"\",SUM(Stock!#REF!,Stock!#REF!,Stock!#REF!),\"\")","v":{"$error":"#REF!"}},{"$f":"IF(Stock!#REF!<>\"\",#REF!*(1+Pilotage!$M$20),\"\")","v":{"$error":"#REF!"}},null,{"$f":"IF(Stock!#REF!<>\"\",IF(Stock!#REF!>0,Stock!#REF!/Stock!#REF!,0),\"\")","v":{"$error":"#REF!"}},{"$f":"IF(Stock!#REF!<>\"\",E293*Pilotage!$D$15,\"\")","v":{"$error":"#REF!"}},{"$f":"IF(Stock!#REF!<>\"\",IF(Stock!#REF!>0,Stock!#REF!,0),\"\")","v":{"$error":"#REF!"}},{"$f":"IF(Stock!#REF!<>\"\",Pilotage!$M$27,\"\")","v":{"$error":"#REF!"}},{"$f":"IF(Stock!#REF!<>\"\",ROUND(Stock!#REF!*J293,0),\"\")","v":{"$error":"#REF!"}},{"$f":"IF(Stock!#REF!<>\"\",$H293*K293,\"\")","v":{"$error":"#REF!"}},{"$f":"IF(Stock!#REF!<>\"\",Pilotage!N$27,\"\")","v":{"$error":"#REF!"}},{"$f":"IF(Stock!#REF!<>\"\",ROUND(K293*M293,0),\"\")","v":{"$error":"#REF!"}},{"$f":"IF(Stock!#REF!<>\"\",$H293*N293,\"\")","v":{"$error":"#REF!"}},{"$f":"IF(Stock!#REF!<>\"\",Pilotage!O$27,\"\")","v":{"$error":"#REF!"}},{"$f":"IF(Stock!#REF!<>\"\",ROUND(K293*P293,0),\"\")","v":{"$error":"#REF!"}},{"$f":"IF(Stock!#REF!<>\"\",$H293*Q293,\"\")","v":{"$error":"#REF!"}},{"$f":"IF(Stock!#REF!<>\"\",Pilotage!P$27,\"\")","v":{"$error":"#REF!"}},{"$f":"IF(Stock!#REF!<>\"\",ROUND(Q293*S293,0),\"\")","v":{"$error":"#REF!"}},{"$f":"IF(Stock!#REF!<>\"\",$H293*T293,\"\")","v":{"$error":"#REF!"}},{"$f":"IF(Stock!#REF!<>\"\",Pilotage!Q$27,\"\")","v":{"$error":"#REF!"}},{"$f":"IF(Stock!#REF!<>\"\",ROUND(T293*V293,0),\"\")","v":{"$error":"#REF!"}},{"$f":"IF(Stock!#REF!<>\"\",$H293*W293,\"\")","v":{"$error":"#REF!"}},{"$f":"IF(Stock!#REF!<>\"\",Pilotage!R$27,\"\")","v":{"$error":"#REF!"}},{"$f":"IF(Stock!#REF!<>\"\",ROUND(W293*Y293,0),\"\")","v":{"$error":"#REF!"}},{"$f":"IF(Stock!#REF!<>\"\",$H293*Z293,\"\")","v":{"$error":"#REF!"}}]
[{"$f":"IF(Stock!#REF!<>\"\",Stock!#REF!,\"\")","v":{"$error":"#REF!"}},{"$f":"IF(Stock!#REF!<>\"\",Stock!#REF!,\"\")","v":{"$error":"#REF!"}},{"$f":"IF(Stock!#REF!<>\"\",Stock!#REF!,\"\")","v":{"$error":"#REF!"}},{"$f":"IF(Stock!#REF!<>\"\",SUM(Stock!#REF!,Stock!#REF!,Stock!#REF!),\"\")","v":{"$error":"#REF!"}},{"$f":"IF(Stock!#REF!<>\"\",#REF!*(1+Pilotage!$M$20),\"\")","v":{"$error":"#REF!"}},null,{"$f":"IF(Stock!#REF!<>\"\",IF(Stock!#REF!>0,Stock!#REF!/Stock!#REF!,0),\"\")","v":{"$error":"#REF!"}},{"$f":"IF(Stock!#REF!<>\"\",E294*Pilotage!$D$15,\"\")","v":{"$error":"#REF!"}},{"$f":"IF(Stock!#REF!<>\"\",IF(Stock!#REF!>0,Stock!#REF!,0),\"\")","v":{"$error":"#REF!"}},{"$f":"IF(Stock!#REF!<>\"\",Pilotage!$M$27,\"\")","v":{"$error":"#REF!"}},{"$f":"IF(Stock!#REF!<>\"\",ROUND(Stock!#REF!*J294,0),\"\")","v":{"$error":"#REF!"}},{"$f":"IF(Stock!#REF!<>\"\",$H294*K294,\"\")","v":{"$error":"#REF!"}},{"$f":"IF(Stock!#REF!<>\"\",Pilotage!N$27,\"\")","v":{"$error":"#REF!"}},{"$f":"IF(Stock!#REF!<>\"\",ROUND(K294*M294,0),\"\")","v":{"$error":"#REF!"}},{"$f":"IF(Stock!#REF!<>\"\",$H294*N294,\"\")","v":{"$error":"#REF!"}},{"$f":"IF(Stock!#REF!<>\"\",Pilotage!O$27,\"\")","v":{"$error":"#REF!"}},{"$f":"IF(Stock!#REF!<>\"\",ROUND(K294*P294,0),\"\")","v":{"$error":"#REF!"}},{"$f":"IF(Stock!#REF!<>\"\",$H294*Q294,\"\")","v":{"$error":"#REF!"}},{"$f":"IF(Stock!#REF!<>\"\",Pilotage!P$27,\"\")","v":{"$error":"#REF!"}},{"$f":"IF(Stock!#REF!<>\"\",ROUND(Q294*S294,0),\"\")","v":{"$error":"#REF!"}},{"$f":"IF(Stock!#REF!<>\"\",$H294*T294,\"\")","v":{"$error":"#REF!"}},{"$f":"IF(Stock!#REF!<>\"\",Pilotage!Q$27,\"\")","v":{"$error":"#REF!"}},{"$f":"IF(Stock!#REF!<>\"\",ROUND(T294*V294,0),\"\")","v":{"$error":"#REF!"}},{"$f":"IF(Stock!#REF!<>\"\",$H294*W294,\"\")","v":{"$error":"#REF!"}},{"$f":"IF(Stock!#REF!<>\"\",Pilotage!R$27,\"\")","v":{"$error":"#REF!"}},{"$f":"IF(Stock!#REF!<>\"\",ROUND(W294*Y294,0),\"\")","v":{"$error":"#REF!"}},{"$f":"IF(Stock!#REF!<>\"\",$H294*Z294,\"\")","v":{"$error":"#REF!"}}]
[{"$f":"IF(Stock!#REF!<>\"\",Stock!#REF!,\"\")","v":{"$error":"#REF!"}},{"$f":"IF(Stock!#REF!<>\"\",Stock!#REF!,\"\")","v":{"$error":"#REF!"}},{"$f":"IF(Stock!#REF!<>\"\",Stock!#REF!,\"\")","v":{"$error":"#REF!"}},{"$f":"IF(Stock!#REF!<>\"\",SUM(Stock!#REF!,Stock!#REF!,Stock!#REF!),\"\")","v":{"$error":"#REF!"}},{"$f":"IF(Stock!#REF!<>\"\",#REF!*(1+Pilotage!$M$20),\"\")","v":{"$error":"#REF!"}},null,{"$f":"IF(Stock!#REF!<>\"\",IF(Stock!#REF!>0,Stock!#REF!/Stock!#REF!,0),\"\")","v":{"$error":"#REF!"}},{"$f":"IF(Stock!#REF!<>\"\",E295*Pilotage!$D$15,\"\")","v":{"$error":"#REF!"}},{"$f":"IF(Stock!#REF!<>\"\",IF(Stock!#REF!>0,Stock!#REF!,0),\"\")","v":{"$error":"#REF!"}},{"$f":"IF(Stock!#REF!<>\"\",Pilotage!$M$27,\"\")","v":{"$error":"#REF!"}},{"$f":"IF(Stock!#REF!<>\"\",ROUND(Stock!#REF!*J295,0),\"\")","v":{"$error":"#REF!"}},{"$f":"IF(Stock!#REF!<>\"\",$H295*K295,\"\")","v":{"$error":"#REF!"}},{"$f":"IF(Stock!#REF!<>\"\",Pilotage!N$27,\"\")","v":{"$error":"#REF!"}},{"$f":"IF(Stock!#REF!<>\"\",ROUND(K295*M295,0),\"\")","v":{"$error":"#REF!"}},{"$f":"IF(Stock!#REF!<>\"\",$H295*N295,\"\")","v":{"$error":"#REF!"}},{"$f":"IF(Stock!#REF!<>\"\",Pilotage!O$27,\"\")","v":{"$error":"#REF!"}},{"$f":"IF(Stock!#REF!<>\"\",ROUND(K295*P295,0),\"\")","v":{"$error":"#REF!"}},{"$f":"IF(Stock!#REF!<>\"\",$H295*Q295,\"\")","v":{"$error":"#REF!"}},{"$f":"IF(Stock!#REF!<>\"\",Pilotage!P$27,\"\")","v":{"$error":"#REF!"}},{"$f":"IF(Stock!#REF!<>\"\",ROUND(Q295*S295,0),\"\")","v":{"$error":"#REF!"}},{"$f":"IF(Stock!#REF!<>\"\",$H295*T295,\"\")","v":{"$error":"#REF!"}},{"$f":"IF(Stock!#REF!<>\"\",Pilotage!Q$27,\"\")","v":{"$error":"#REF!"}},{"$f":"IF(Stock!#REF!<>\"\",ROUND(T295*V295,0),\"\")","v":{"$error":"#REF!"}},{"$f":"IF(Stock!#REF!<>\"\",$H295*W295,\"\")","v":{"$error":"#REF!"}},{"$f":"IF(Stock!#REF!<>\"\",Pilotage!R$27,\"\")","v":{"$error":"#REF!"}},{"$f":"IF(Stock!#REF!<>\"\",ROUND(W295*Y295,0),\"\")","v":{"$error":"#REF!"}},{"$f":"IF(Stock!#REF!<>\"\",$H295*Z295,\"\")","v":{"$error":"#REF!"}}]
[{"$f":"IF(Stock!#REF!<>\"\",Stock!#REF!,\"\")","v":{"$error":"#REF!"}},{"$f":"IF(Stock!#REF!<>\"\",Stock!#REF!,\"\")","v":{"$error":"#REF!"}},{"$f":"IF(Stock!#REF!<>\"\",Stock!#REF!,\"\")","v":{"$error":"#REF!"}},{"$f":"IF(Stock!#REF!<>\"\",SUM(Stock!#REF!,Stock!#REF!,Stock!#REF!),\"\")","v":{"$error":"#REF!"}},{"$f":"IF(Stock!#REF!<>\"\",#REF!*(1+Pilotage!$M$20),\"\")","v":{"$error":"#REF!"}},null,{"$f":"IF(Stock!#REF!<>\"\",IF(Stock!#REF!>0,Stock!#REF!/Stock!#REF!,0),\"\")","v":{"$error":"#REF!"}},{"$f":"IF(Stock!#REF!<>\"\",E296*Pilotage!$D$15,\"\")","v":{"$error":"#REF!"}},{"$f":"IF(Stock!#REF!<>\"\",IF(Stock!#REF!>0,Stock!#REF!,0),\"\")","v":{"$error":"#REF!"}},{"$f":"IF(Stock!#REF!<>\"\",Pilotage!$M$27,\"\")","v":{"$error":"#REF!"}},{"$f":"IF(Stock!#REF!<>\"\",ROUND(Stock!#REF!*J296,0),\"\")","v":{"$error":"#REF!"}},{"$f":"IF(Stock!#REF!<>\"\",$H296*K296,\"\")","v":{"$error":"#REF!"}},{"$f":"IF(Stock!#REF!<>\"\",Pilotage!N$27,\"\")","v":{"$error":"#REF!"}},{"$f":"IF(Stock!#REF!<>\"\",ROUND(K296*M296,0),\"\")","v":{"$error":"#REF!"}},{"$f":"IF(Stock!#REF!<>\"\",$H296*N296,\"\")","v":{"$error":"#REF!"}},{"$f":"IF(Stock!#REF!<>\"\",Pilotage!O$27,\"\")","v":{"$error":"#REF!"}},{"$f":"IF(Stock!#REF!<>\"\",ROUND(K296*P296,0),\"\")","v":{"$error":"#REF!"}},{"$f":"IF(Stock!#REF!<>\"\",$H296*Q296,\"\")","v":{"$error":"#REF!"}},{"$f":"IF(Stock!#REF!<>\"\",Pilotage!P$27,\"\")","v":{"$error":"#REF!"}},{"$f":"IF(Stock!#REF!<>\"\",ROUND(Q296*S296,0),\"\")","v":{"$error":"#REF!"}},{"$f":"IF(Stock!#REF!<>\"\",$H296*T296,\"\")","v":{"$error":"#REF!"}},{"$f":"IF(Stock!#REF!<>\"\",Pilotage!Q$27,\"\")","v":{"$error":"#REF!"}},{"$f":"IF(Stock!#REF!<>\"\",ROUND(T296*V296,0),\"\")","v":{"$error":"#REF!"}},{"$f":"IF(Stock!#REF!<>\"\",$H296*W296,\"\")","v":{"$error":"#REF!"}},{"$f":"IF(Stock!#REF!<>\"\",Pilotage!R$27,\"\")","v":{"$error":"#REF!"}},{"$f":"IF(Stock!#REF!<>\"\",ROUND(W296*Y296,0),\"\")","v":{"$error":"#REF!"}},{"$f":"IF(Stock!#REF!<>\"\",$H296*Z296,\"\")","v":{"$error":"#REF!"}}]
[{"$f":"IF(Stock!#REF!<>\"\",Stock!#REF!,\"\")","v":{"$error":"#REF!"}},{"$f":"IF(Stock!#REF!<>\"\",Stock!#REF!,\"\")","v":{"$error":"#REF!"}},{"$f":"IF(Stock!#REF!<>\"\",Stock!#REF!,\"\")","v":{"$error":"#REF!"}},{"$f":"IF(Stock!#REF!<>\"\",SUM(Stock!#REF!,Stock!#REF!,Stock!#REF!),\"\")","v":{"$error":"#REF!"}},{"$f":"IF(Stock!#REF!<>\"\",#REF!*(1+Pilotage!$M$20),\"\")","v":{"$error":"#REF!"}},null,{"$f":"IF(Stock!#REF!<>\"\",IF(Stock!#REF!>0,Stock!#REF!/Stock!#REF!,0),\"\")","v":{"$error":"#REF!"}},{"$f":"IF(Stock!#REF!<>\"\",E297*Pilotage!$D$15,\"\")","v":{"$error":"#REF!"}},{"$f":"IF(Stock!#REF!<>\"\",IF(Stock!#REF!>0,Stock!#REF!,0),\"\")","v":{"$error":"#REF!"}},{"$f":"IF(Stock!#REF!<>\"\",Pilotage!$M$27,\"\")","v":{"$error":"#REF!"}},{"$f":"IF(Stock!#REF!<>\"\",ROUND(Stock!#REF!*J297,0),\"\")","v":{"$error":"#REF!"}},{"$f":"IF(Stock!#REF!<>\"\",$H297*K297,\"\")","v":{"$error":"#REF!"}},{"$f":"IF(Stock!#REF!<>\"\",Pilotage!N$27,\"\")","v":{"$error":"#REF!"}},{"$f":"IF(Stock!#REF!<>\"\",ROUND(K297*M297,0),\"\")","v":{"$error":"#REF!"}},{"$f":"IF(Stock!#REF!<>\"\",$H297*N297,\"\")","v":{"$error":"#REF!"}},{"$f":"IF(Stock!#REF!<>\"\",Pilotage!O$27,\"\")","v":{"$error":"#REF!"}},{"$f":"IF(Stock!#REF!<>\"\",ROUND(K297*P297,0),\"\")","v":{"$error":"#REF!"}},{"$f":"IF(Stock!#REF!<>\"\",$H297*Q297,\"\")","v":{"$error":"#REF!"}},{"$f":"IF(Stock!#REF!<>\"\",Pilotage!P$27,\"\")","v":{"$error":"#REF!"}},{"$f":"IF(Stock!#REF!<>\"\",ROUND(Q297*S297,0),\"\")","v":{"$error":"#REF!"}},{"$f":"IF(Stock!#REF!<>\"\",$H297*T297,\"\")","v":{"$error":"#REF!"}},{"$f":"IF(Stock!#REF!<>\"\",Pilotage!Q$27,\"\")","v":{"$error":"#REF!"}},{"$f":"IF(Stock!#REF!<>\"\",ROUND(T297*V297,0),\"\")","v":{"$error":"#REF!"}},{"$f":"IF(Stock!#REF!<>\"\",$H297*W297,\"\")","v":{"$error":"#REF!"}},{"$f":"IF(Stock!#REF!<>\"\",Pilotage!R$27,\"\")","v":{"$error":"#REF!"}},{"$f":"IF(Stock!#REF!<>\"\",ROUND(W297*Y297,0),\"\")","v":{"$error":"#REF!"}},{"$f":"IF(Stock!#REF!<>\"\",$H297*Z297,\"\")","v":{"$error":"#REF!"}}]
[{"$f":"IF(Stock!#REF!<>\"\",Stock!#REF!,\"\")","v":{"$error":"#REF!"}},{"$f":"IF(Stock!#REF!<>\"\",Stock!#REF!,\"\")","v":{"$error":"#REF!"}},{"$f":"IF(Stock!#REF!<>\"\",Stock!#REF!,\"\")","v":{"$error":"#REF!"}},{"$f":"IF(Stock!#REF!<>\"\",SUM(Stock!#REF!,Stock!#REF!,Stock!#REF!),\"\")","v":{"$error":"#REF!"}},{"$f":"IF(Stock!#REF!<>\"\",#REF!*(1+Pilotage!$M$20),\"\")","v":{"$error":"#REF!"}},null,{"$f":"IF(Stock!#REF!<>\"\",IF(Stock!#REF!>0,Stock!#REF!/Stock!#REF!,0),\"\")","v":{"$error":"#REF!"}},{"$f":"IF(Stock!#REF!<>\"\",E298*Pilotage!$D$15,\"\")","v":{"$error":"#REF!"}},{"$f":"IF(Stock!#REF!<>\"\",IF(Stock!#REF!>0,Stock!#REF!,0),\"\")","v":{"$error":"#REF!"}},{"$f":"IF(Stock!#REF!<>\"\",Pilotage!$M$27,\"\")","v":{"$error":"#REF!"}},{"$f":"IF(Stock!#REF!<>\"\",ROUND(Stock!#REF!*J298,0),\"\")","v":{"$error":"#REF!"}},{"$f":"IF(Stock!#REF!<>\"\",$H298*K298,\"\")","v":{"$error":"#REF!"}},{"$f":"IF(Stock!#REF!<>\"\",Pilotage!N$27,\"\")","v":{"$error":"#REF!"}},{"$f":"IF(Stock!#REF!<>\"\",ROUND(K298*M298,0),\"\")","v":{"$error":"#REF!"}},{"$f":"IF(Stock!#REF!<>\"\",$H298*N298,\"\")","v":{"$error":"#REF!"}},{"$f":"IF(Stock!#REF!<>\"\",Pilotage!O$27,\"\")","v":{"$error":"#REF!"}},{"$f":"IF(Stock!#REF!<>\"\",ROUND(K298*P298,0),\"\")","v":{"$error":"#REF!"}},{"$f":"IF(Stock!#REF!<>\"\",$H298*Q298,\"\")","v":{"$error":"#REF!"}},{"$f":"IF(Stock!#REF!<>\"\",Pilotage!P$27,\"\")","v":{"$error":"#REF!"}},{"$f":"IF(Stock!#REF!<>\"\",ROUND(Q298*S298,0),\"\")","v":{"$error":"#REF!"}},{"$f":"IF(Stock!#REF!<>\"\",$H298*T298,\"\")","v":{"$error":"#REF!"}},{"$f":"IF(Stock!#REF!<>\"\",Pilotage!Q$27,\"\")","v":{"$error":"#REF!"}},{"$f":"IF(Stock!#REF!<>\"\",ROUND(T298*V298,0),\"\")","v":{"$error":"#REF!"}},{"$f":"IF(Stock!#REF!<>\"\",$H298*W298,\"\")","v":{"$error":"#REF!"}},{"$f":"IF(Stock!#REF!<>\"\",Pilotage!R$27,\"\")","v":{"$error":"#REF!"}},{"$f":"IF(Stock!#REF!<>\"\",ROUND(W298*Y298,0),\"\")","v":{"$error":"#REF!"}},{"$f":"IF(Stock!#REF!<>\"\",$H298*Z298,\"\")","v":{"$error":"#REF!"}}]
[{"$f":"IF(Stock!#REF!<>\"\",Stock!#REF!,\"\")","v":{"$error":"#REF!"}},{"$f":"IF(Stock!#REF!<>\"\",Stock!#REF!,\"\")","v":{"$error":"#REF!"}},{"$f":"IF(Stock!#REF!<>\"\",Stock!#REF!,\"\")","v":{"$error":"#REF!"}},{"$f":"IF(Stock!#REF!<>\"\",SUM(Stock!#REF!,Stock!#REF!,Stock!#REF!),\"\")","v":{"$error":"#REF!"}},{"$f":"IF(Stock!#REF!<>\"\",#REF!*(1+Pilotage!$M$20),\"\")","v":{"$error":"#REF!"}},null,{"$f":"IF(Stock!#REF!<>\"\",IF(Stock!#REF!>0,Stock!#REF!/Stock!#REF!,0),\"\")","v":{"$error":"#REF!"}},{"$f":"IF(Stock!#REF!<>\"\",E299*Pilotage!$D$15,\"\")","v":{"$error":"#REF!"}},{"$f":"IF(Stock!#REF!<>\"\",IF(Stock!#REF!>0,Stock!#REF!,0),\"\")","v":{"$error":"#REF!"}},{"$f":"IF(Stock!#REF!<>\"\",Pilotage!$M$27,\"\")","v":{"$error":"#REF!"}},{"$f":"IF(Stock!#REF!<>\"\",ROUND(Stock!#REF!*J299,0),\"\")","v":{"$error":"#REF!"}},{"$f":"IF(Stock!#REF!<>\"\",$H299*K299,\"\")","v":{"$error":"#REF!"}},{"$f":"IF(Stock!#REF!<>\"\",Pilotage!N$27,\"\")","v":{"$error":"#REF!"}},{"$f":"IF(Stock!#REF!<>\"\",ROUND(K299*M299,0),\"\")","v":{"$error":"#REF!"}},{"$f":"IF(Stock!#REF!<>\"\",$H299*N299,\"\")","v":{"$error":"#REF!"}},{"$f":"IF(Stock!#REF!<>\"\",Pilotage!O$27,\"\")","v":{"$error":"#REF!"}},{"$f":"IF(Stock!#REF!<>\"\",ROUND(K299*P299,0),\"\")","v":{"$error":"#REF!"}},{"$f":"IF(Stock!#REF!<>\"\",$H299*Q299,\"\")","v":{"$error":"#REF!"}},{"$f":"IF(Stock!#REF!<>\"\",Pilotage!P$27,\"\")","v":{"$error":"#REF!"}},{"$f":"IF(Stock!#REF!<>\"\",ROUND(Q299*S299,0),\"\")","v":{"$error":"#REF!"}},{"$f":"IF(Stock!#REF!<>\"\",$H299*T299,\"\")","v":{"$error":"#REF!"}},{"$f":"IF(Stock!#REF!<>\"\",Pilotage!Q$27,\"\")","v":{"$error":"#REF!"}},{"$f":"IF(Stock!#REF!<>\"\",ROUND(T299*V299,0),\"\")","v":{"$error":"#REF!"}},{"$f":"IF(Stock!#REF!<>\"\",$H299*W299,\"\")","v":{"$error":"#REF!"}},{"$f":"IF(Stock!#REF!<>\"\",Pilotage!R$27,\"\")","v":{"$error":"#REF!"}},{"$f":"IF(Stock!#REF!<>\"\",ROUND(W299*Y299,0),\"\")","v":{"$error":"#REF!"}},{"$f":"IF(Stock!#REF!<>\"\",$H299*Z299,\"\")","v":{"$error":"#REF!"}}]
[{"$f":"IF(Stock!#REF!<>\"\",Stock!#REF!,\"\")","v":{"$error":"#REF!"}},{"$f":"IF(Stock!#REF!<>\"\",Stock!#REF!,\"\")","v":{"$error":"#REF!"}},{"$f":"IF(Stock!#REF!<>\"\",Stock!#REF!,\"\")","v":{"$error":"#REF!"}},{"$f":"IF(Stock!#REF!<>\"\",SUM(Stock!#REF!,Stock!#REF!,Stock!#REF!),\"\")","v":{"$error":"#REF!"}},{"$f":"IF(Stock!#REF!<>\"\",#REF!*(1+Pilotage!$M$20),\"\")","v":{"$error":"#REF!"}},null,{"$f":"IF(Stock!#REF!<>\"\",IF(Stock!#REF!>0,Stock!#REF!/Stock!#REF!,0),\"\")","v":{"$error":"#REF!"}},{"$f":"IF(Stock!#REF!<>\"\",E300*Pilotage!$D$15,\"\")","v":{"$error":"#REF!"}},{"$f":"IF(Stock!#REF!<>\"\",IF(Stock!#REF!>0,Stock!#REF!,0),\"\")","v":{"$error":"#REF!"}},{"$f":"IF(Stock!#REF!<>\"\",Pilotage!$M$27,\"\")","v":{"$error":"#REF!"}},{"$f":"IF(Stock!#REF!<>\"\",ROUND(Stock!#REF!*J300,0),\"\")","v":{"$error":"#REF!"}},{"$f":"IF(Stock!#REF!<>\"\",$H300*K300,\"\")","v":{"$error":"#REF!"}},{"$f":"IF(Stock!#REF!<>\"\",Pilotage!N$27,\"\")","v":{"$error":"#REF!"}},{"$f":"IF(Stock!#REF!<>\"\",ROUND(K300*M300,0),\"\")","v":{"$error":"#REF!"}},{"$f":"IF(Stock!#REF!<>\"\",$H300*N300,\"\")","v":{"$error":"#REF!"}},{"$f":"IF(Stock!#REF!<>\"\",Pilotage!O$27,\"\")","v":{"$error":"#REF!"}},{"$f":"IF(Stock!#REF!<>\"\",ROUND(K300*P300,0),\"\")","v":{"$error":"#REF!"}},{"$f":"IF(Stock!#REF!<>\"\",$H300*Q300,\"\")","v":{"$error":"#REF!"}},{"$f":"IF(Stock!#REF!<>\"\",Pilotage!P$27,\"\")","v":{"$error":"#REF!"}},{"$f":"IF(Stock!#REF!<>\"\",ROUND(Q300*S300,0),\"\")","v":{"$error":"#REF!"}},{"$f":"IF(Stock!#REF!<>\"\",$H300*T300,\"\")","v":{"$error":"#REF!"}},{"$f":"IF(Stock!#REF!<>\"\",Pilotage!Q$27,\"\")","v":{"$error":"#REF!"}},{"$f":"IF(Stock!#REF!<>\"\",ROUND(T300*V300,0),\"\")","v":{"$error":"#REF!"}},{"$f":"IF(Stock!#REF!<>\"\",$H300*W300,\"\")","v":{"$error":"#REF!"}},{"$f":"IF(Stock!#REF!<>\"\",Pilotage!R$27,\"\")","v":{"$error":"#REF!"}},{"$f":"IF(Stock!#REF!<>\"\",ROUND(W300*Y300,0),\"\")","v":{"$error":"#REF!"}},{"$f":"IF(Stock!#REF!<>\"\",$H300*Z300,\"\")","v":{"$error":"#REF!"}}]
[{"$f":"IF(Stock!#REF!<>\"\",Stock!#REF!,\"\")","v":{"$error":"#REF!"}},{"$f":"IF(Stock!#REF!<>\"\",Stock!#REF!,\"\")","v":{"$error":"#REF!"}},{"$f":"IF(Stock!#REF!<>\"\",Stock!#REF!,\"\")","v":{"$error":"#REF!"}},{"$f":"IF(Stock!#REF!<>\"\",SUM(Stock!#REF!,Stock!#REF!,Stock!#REF!),\"\")","v":{"$error":"#REF!"}},{"$f":"IF(Stock!#REF!<>\"\",#REF!*(1+Pilotage!$M$20),\"\")","v":{"$error":"#REF!"}},null,{"$f":"IF(Stock!#REF!<>\"\",IF(Stock!#REF!>0,Stock!#REF!/Stock!#REF!,0),\"\")","v":{"$error":"#REF!"}},{"$f":"IF(Stock!#REF!<>\"\",E301*Pilotage!$D$15,\"\")","v":{"$error":"#REF!"}},{"$f":"IF(Stock!#REF!<>\"\",IF(Stock!#REF!>0,Stock!#REF!,0),\"\")","v":{"$error":"#REF!"}},{"$f":"IF(Stock!#REF!<>\"\",Pilotage!$M$27,\"\")","v":{"$error":"#REF!"}},{"$f":"IF(Stock!#REF!<>\"\",ROUND(Stock!#REF!*J301,0),\"\")","v":{"$error":"#REF!"}},{"$f":"IF(Stock!#REF!<>\"\",$H301*K301,\"\")","v":{"$error":"#REF!"}},{"$f":"IF(Stock!#REF!<>\"\",Pilotage!N$27,\"\")","v":{"$error":"#REF!"}},{"$f":"IF(Stock!#REF!<>\"\",ROUND(K301*M301,0),\"\")","v":{"$error":"#REF!"}},{"$f":"IF(Stock!#REF!<>\"\",$H301*N301,\"\")","v":{"$error":"#REF!"}},{"$f":"IF(Stock!#REF!<>\"\",Pilotage!O$27,\"\")","v":{"$error":"#REF!"}},{"$f":"IF(Stock!#REF!<>\"\",ROUND(K301*P301,0),\"\")","v":{"$error":"#REF!"}},{"$f":"IF(Stock!#REF!<>\"\",$H301*Q301,\"\")","v":{"$error":"#REF!"}},{"$f":"IF(Stock!#REF!<>\"\",Pilotage!P$27,\"\")","v":{"$error":"#REF!"}},{"$f":"IF(Stock!#REF!<>\"\",ROUND(Q301*S301,0),\"\")","v":{"$error":"#REF!"}},{"$f":"IF(Stock!#REF!<>\"\",$H301*T301,\"\")","v":{"$error":"#REF!"}},{"$f":"IF(Stock!#REF!<>\"\",Pilotage!Q$27,\"\")","v":{"$error":"#REF!"}},{"$f":"IF(Stock!#REF!<>\"\",ROUND(T301*V301,0),\"\")","v":{"$error":"#REF!"}},{"$f":"IF(Stock!#REF!<>\"\",$H301*W301,\"\")","v":{"$error":"#REF!"}},{"$f":"IF(Stock!#REF!<>\"\",Pilotage!R$27,\"\")","v":{"$error":"#REF!"}},{"$f":"IF(Stock!#REF!<>\"\",ROUND(W301*Y301,0),\"\")","v":{"$error":"#REF!"}},{"$f":"IF(Stock!#REF!<>\"\",$H301*Z301,\"\")","v":{"$error":"#REF!"}}]
[{"$f":"IF(Stock!#REF!<>\"\",Stock!#REF!,\"\")","v":{"$error":"#REF!"}},{"$f":"IF(Stock!#REF!<>\"\",Stock!#REF!,\"\")","v":{"$error":"#REF!"}},{"$f":"IF(Stock!#REF!<>\"\",Stock!#REF!,\"\")","v":{"$error":"#REF!"}},{"$f":"IF(Stock!#REF!<>\"\",SUM(Stock!#REF!,Stock!#REF!,Stock!#REF!),\"\")","v":{"$error":"#REF!"}},{"$f":"IF(Stock!#REF!<>\"\",#REF!*(1+Pilotage!$M$20),\"\")","v":{"$error":"#REF!"}},null,{"$f":"IF(Stock!#REF!<>\"\",IF(Stock!#REF!>0,Stock!#REF!/Stock!#REF!,0),\"\")","v":{"$error":"#REF!"}},{"$f":"IF(Stock!#REF!<>\"\",E302*Pilotage!$D$15,\"\")","v":{"$error":"#REF!"}},{"$f":"IF(Stock!#REF!<>\"\",IF(Stock!#REF!>0,Stock!#REF!,0),\"\")","v":{"$error":"#REF!"}},{"$f":"IF(Stock!#REF!<>\"\",Pilotage!$M$27,\"\")","v":{"$error":"#REF!"}},{"$f":"IF(Stock!#REF!<>\"\",ROUND(Stock!#REF!*J302,0),\"\")","v":{"$error":"#REF!"}},{"$f":"IF(Stock!#REF!<>\"\",$H302*K302,\"\")","v":{"$error":"#REF!"}},{"$f":"IF(Stock!#REF!<>\"\",Pilotage!N$27,\"\")","v":{"$error":"#REF!"}},{"$f":"IF(Stock!#REF!<>\"\",ROUND(K302*M302,0),\"\")","v":{"$error":"#REF!"}},{"$f":"IF(Stock!#REF!<>\"\",$H302*N302,\"\")","v":{"$error":"#REF!"}},{"$f":"IF(Stock!#REF!<>\"\",Pilotage!O$27,\"\")","v":{"$error":"#REF!"}},{"$f":"IF(Stock!#REF!<>\"\",ROUND(K302*P302,0),\"\")","v":{"$error":"#REF!"}},{"$f":"IF(Stock!#REF!<>\"\",$H302*Q302,\"\")","v":{"$error":"#REF!"}},{"$f":"IF(Stock!#REF!<>\"\",Pilotage!P$27,\"\")","v":{"$error":"#REF!"}},{"$f":"IF(Stock!#REF!<>\"\",ROUND(Q302*S302,0),\"\")","v":{"$error":"#REF!"}},{"$f":"IF(Stock!#REF!<>\"\",$H302*T302,\"\")","v":{"$error":"#REF!"}},{"$f":"IF(Stock!#REF!<>\"\",Pilotage!Q$27,\"\")","v":{"$error":"#REF!"}},{"$f":"IF(Stock!#REF!<>\"\",ROUND(T302*V302,0),\"\")","v":{"$error":"#REF!"}},{"$f":"IF(Stock!#REF!<>\"\",$H302*W302,\"\")","v":{"$error":"#REF!"}},{"$f":"IF(Stock!#REF!<>\"\",Pilotage!R$27,\"\")","v":{"$error":"#REF!"}},{"$f":"IF(Stock!#REF!<>\"\",ROUND(W302*Y302,0),\"\")","v":{"$error":"#REF!"}},{"$f":"IF(Stock!#REF!<>\"\",$H302*Z302,\"\")","v":{"$error":"#REF!"}}]
[{"$f":"IF(Stock!#REF!<>\"\",Stock!#REF!,\"\")","v":{"$error":"#REF!"}},{"$f":"IF(Stock!#REF!<>\"\",Stock!#REF!,\"\")","v":{"$error":"#REF!"}},{"$f":"IF(Stock!#REF!<>\"\",Stock!#REF!,\"\")","v":{"$error":"#REF!"}},{"$f":"IF(Stock!#REF!<>\"\",SUM(Stock!#REF!,Stock!#REF!,Stock!#REF!),\"\")","v":{"$error":"#REF!"}},{"$f":"IF(Stock!#REF!<>\"\",#REF!*(1+Pilotage!$M$20),\"\")","v":{"$error":"#REF!"}},null,{"$f":"IF(Stock!#REF!<>\"\",IF(Stock!#REF!>0,Stock!#REF!/Stock!#REF!,0),\"\")","v":{"$error":"#REF!"}},{"$f":"IF(Stock!#REF!<>\"\",E303*Pilotage!$D$15,\"\")","v":{"$error":"#REF!"}},{"$f":"IF(Stock!#REF!<>\"\",IF(Stock!#REF!>0,Stock!#REF!,0),\"\")","v":{"$error":"#REF!"}},{"$f":"IF(Stock!#REF!<>\"\",Pilotage!$M$27,\"\")","v":{"$error":"#REF!"}},{"$f":"IF(Stock!#REF!<>\"\",ROUND(Stock!#REF!*J303,0),\"\")","v":{"$error":"#REF!"}},{"$f":"IF(Stock!#REF!<>\"\",$H303*K303,\"\")","v":{"$error":"#REF!"}},{"$f":"IF(Stock!#REF!<>\"\",Pilotage!N$27,\"\")","v":{"$error":"#REF!"}},{"$f":"IF(Stock!#REF!<>\"\",ROUND(K303*M303,0),\"\")","v":{"$error":"#REF!"}},{"$f":"IF(Stock!#REF!<>\"\",$H303*N303,\"\")","v":{"$error":"#REF!"}},{"$f":"IF(Stock!#REF!<>\"\",Pilotage!O$27,\"\")","v":{"$error":"#REF!"}},{"$f":"IF(Stock!#REF!<>\"\",ROUND(K303*P303,0),\"\")","v":{"$error":"#REF!"}},{"$f":"IF(Stock!#REF!<>\"\",$H303*Q303,\"\")","v":{"$error":"#REF!"}},{"$f":"IF(Stock!#REF!<>\"\",Pilotage!P$27,\"\")","v":{"$error":"#REF!"}},{"$f":"IF(Stock!#REF!<>\"\",ROUND(Q303*S303,0),\"\")","v":{"$error":"#REF!"}},{"$f":"IF(Stock!#REF!<>\"\",$H303*T303,\"\")","v":{"$error":"#REF!"}},{"$f":"IF(Stock!#REF!<>\"\",Pilotage!Q$27,\"\")","v":{"$error":"#REF!"}},{"$f":"IF(Stock!#REF!<>\"\",ROUND(T303*V303,0),\"\")","v":{"$error":"#REF!"}},{"$f":"IF(Stock!#REF!<>\"\",$H303*W303,\"\")","v":{"$error":"#REF!"}},{"$f":"IF(Stock!#REF!<>\"\",Pilotage!R$27,\"\")","v":{"$error":"#REF!"}},{"$f":"IF(Stock!#REF!<>\"\",ROUND(W303*Y303,0),\"\")","v":{"$error":"#REF!"}},{"$f":"IF(Stock!#REF!<>\"\",$H303*Z303,\"\")","v":{"$error":"#REF!"}}]
[{"$f":"IF(Stock!#REF!<>\"\",Stock!#REF!,\"\")","v":{"$error":"#REF!"}},{"$f":"IF(Stock!#REF!<>\"\",Stock!#REF!,\"\")","v":{"$error":"#REF!"}},{"$f":"IF(Stock!#REF!<>\"\",Stock!#REF!,\"\")","v":{"$error":"#REF!"}},{"$f":"IF(Stock!#REF!<>\"\",SUM(Stock!#REF!,Stock!#REF!,Stock!#REF!),\"\")","v":{"$error":"#REF!"}},{"$f":"IF(Stock!#REF!<>\"\",#REF!*(1+Pilotage!$M$20),\"\")","v":{"$error":"#REF!"}},null,{"$f":"IF(Stock!#REF!<>\"\",IF(Stock!#REF!>0,Stock!#REF!/Stock!#REF!,0),\"\")","v":{"$error":"#REF!"}},{"$f":"IF(Stock!#REF!<>\"\",E304*Pilotage!$D$15,\"\")","v":{"$error":"#REF!"}},{"$f":"IF(Stock!#REF!<>\"\",IF(Stock!#REF!>0,Stock!#REF!,0),\"\")","v":{"$error":"#REF!"}},{"$f":"IF(Stock!#REF!<>\"\",Pilotage!$M$27,\"\")","v":{"$error":"#REF!"}},{"$f":"IF(Stock!#REF!<>\"\",ROUND(Stock!#REF!*J304,0),\"\")","v":{"$error":"#REF!"}},{"$f":"IF(Stock!#REF!<>\"\",$H304*K304,\"\")","v":{"$error":"#REF!"}},{"$f":"IF(Stock!#REF!<>\"\",Pilotage!N$27,\"\")","v":{"$error":"#REF!"}},{"$f":"IF(Stock!#REF!<>\"\",ROUND(K304*M304,0),\"\")","v":{"$error":"#REF!"}},{"$f":"IF(Stock!#REF!<>\"\",$H304*N304,\"\")","v":{"$error":"#REF!"}},{"$f":"IF(Stock!#REF!<>\"\",Pilotage!O$27,\"\")","v":{"$error":"#REF!"}},{"$f":"IF(Stock!#REF!<>\"\",ROUND(K304*P304,0),\"\")","v":{"$error":"#REF!"}},{"$f":"IF(Stock!#REF!<>\"\",$H304*Q304,\"\")","v":{"$error":"#REF!"}},{"$f":"IF(Stock!#REF!<>\"\",Pilotage!P$27,\"\")","v":{"$error":"#REF!"}},{"$f":"IF(Stock!#REF!<>\"\",ROUND(Q304*S304,0),\"\")","v":{"$error":"#REF!"}},{"$f":"IF(Stock!#REF!<>\"\",$H304*T304,\"\")","v":{"$error":"#REF!"}},{"$f":"IF(Stock!#REF!<>\"\",Pilotage!Q$27,\"\")","v":{"$error":"#REF!"}},{"$f":"IF(Stock!#REF!<>\"\",ROUND(T304*V304,0),\"\")","v":{"$error":"#REF!"}},{"$f":"IF(Stock!#REF!<>\"\",$H304*W304,\"\")","v":{"$error":"#REF!"}},{"$f":"IF(Stock!#REF!<>\"\",Pilotage!R$27,\"\")","v":{"$error":"#REF!"}},{"$f":"IF(Stock!#REF!<>\"\",ROUND(W304*Y304,0),\"\")","v":{"$error":"#REF!"}},{"$f":"IF(Stock!#REF!<>\"\",$H304*Z304,\"\")","v":{"$error":"#REF!"}}]
[{"$f":"IF(Stock!#REF!<>\"\",Stock!#REF!,\"\")","v":{"$error":"#REF!"}},{"$f":"IF(Stock!#REF!<>\"\",Stock!#REF!,\"\")","v":{"$error":"#REF!"}},{"$f":"IF(Stock!#REF!<>\"\",Stock!#REF!,\"\")","v":{"$error":"#REF!"}},{"$f":"IF(Stock!#REF!<>\"\",SUM(Stock!#REF!,Stock!#REF!,Stock!#REF!),\"\")","v":{"$error":"#REF!"}},{"$f":"IF(Stock!#REF!<>\"\",#REF!*(1+Pilotage!$M$20),\"\")","v":{"$error":"#REF!"}},null,{"$f":"IF(Stock!#REF!<>\"\",IF(Stock!#REF!>0,Stock!#REF!/Stock!#REF!,0),\"\")","v":{"$error":"#REF!"}},{"$f":"IF(Stock!#REF!<>\"\",E305*Pilotage!$D$15,\"\")","v":{"$error":"#REF!"}},{"$f":"IF(Stock!#REF!<>\"\",IF(Stock!#REF!>0,Stock!#REF!,0),\"\")","v":{"$error":"#REF!"}},{"$f":"IF(Stock!#REF!<>\"\",Pilotage!$M$27,\"\")","v":{"$error":"#REF!"}},{"$f":"IF(Stock!#REF!<>\"\",ROUND(Stock!#REF!*J305,0),\"\")","v":{"$error":"#REF!"}},{"$f":"IF(Stock!#REF!<>\"\",$H305*K305,\"\")","v":{"$error":"#REF!"}},{"$f":"IF(Stock!#REF!<>\"\",Pilotage!N$27,\"\")","v":{"$error":"#REF!"}},{"$f":"IF(Stock!#REF!<>\"\",ROUND(K305*M305,0),\"\")","v":{"$error":"#REF!"}},{"$f":"IF(Stock!#REF!<>\"\",$H305*N305,\"\")","v":{"$error":"#REF!"}},{"$f":"IF(Stock!#REF!<>\"\",Pilotage!O$27,\"\")","v":{"$error":"#REF!"}},{"$f":"IF(Stock!#REF!<>\"\",ROUND(K305*P305,0),\"\")","v":{"$error":"#REF!"}},{"$f":"IF(Stock!#REF!<>\"\",$H305*Q305,\"\")","v":{"$error":"#REF!"}},{"$f":"IF(Stock!#REF!<>\"\",Pilotage!P$27,\"\")","v":{"$error":"#REF!"}},{"$f":"IF(Stock!#REF!<>\"\",ROUND(Q305*S305,0),\"\")","v":{"$error":"#REF!"}},{"$f":"IF(Stock!#REF!<>\"\",$H305*T305,\"\")","v":{"$error":"#REF!"}},{"$f":"IF(Stock!#REF!<>\"\",Pilotage!Q$27,\"\")","v":{"$error":"#REF!"}},{"$f":"IF(Stock!#REF!<>\"\",ROUND(T305*V305,0),\"\")","v":{"$error":"#REF!"}},{"$f":"IF(Stock!#REF!<>\"\",$H305*W305,\"\")","v":{"$error":"#REF!"}},{"$f":"IF(Stock!#REF!<>\"\",Pilotage!R$27,\"\")","v":{"$error":"#REF!"}},{"$f":"IF(Stock!#REF!<>\"\",ROUND(W305*Y305,0),\"\")","v":{"$error":"#REF!"}},{"$f":"IF(Stock!#REF!<>\"\",$H305*Z305,\"\")","v":{"$error":"#REF!"}}]
[{"$f":"IF(Stock!#REF!<>\"\",Stock!#REF!,\"\")","v":{"$error":"#REF!"}},{"$f":"IF(Stock!#REF!<>\"\",Stock!#REF!,\"\")","v":{"$error":"#REF!"}},{"$f":"IF(Stock!#REF!<>\"\",Stock!#REF!,\"\")","v":{"$error":"#REF!"}},{"$f":"IF(Stock!#REF!<>\"\",SUM(Stock!#REF!,Stock!#REF!,Stock!#REF!),\"\")","v":{"$error":"#REF!"}},{"$f":"IF(Stock!#REF!<>\"\",#REF!*(1+Pilotage!$M$20),\"\")","v":{"$error":"#REF!"}},null,{"$f":"IF(Stock!#REF!<>\"\",IF(Stock!#REF!>0,Stock!#REF!/Stock!#REF!,0),\"\")","v":{"$error":"#REF!"}},{"$f":"IF(Stock!#REF!<>\"\",E306*Pilotage!$D$15,\"\")","v":{"$error":"#REF!"}},{"$f":"IF(Stock!#REF!<>\"\",IF(Stock!#REF!>0,Stock!#REF!,0),\"\")","v":{"$error":"#REF!"}},{"$f":"IF(Stock!#REF!<>\"\",Pilotage!$M$27,\"\")","v":{"$error":"#REF!"}},{"$f":"IF(Stock!#REF!<>\"\",ROUND(Stock!#REF!*J306,0),\"\")","v":{"$error":"#REF!"}},{"$f":"IF(Stock!#REF!<>\"\",$H306*K306,\"\")","v":{"$error":"#REF!"}},{"$f":"IF(Stock!#REF!<>\"\",Pilotage!N$27,\"\")","v":{"$error":"#REF!"}},{"$f":"IF(Stock!#REF!<>\"\",ROUND(K306*M306,0),\"\")","v":{"$error":"#REF!"}},{"$f":"IF(Stock!#REF!<>\"\",$H306*N306,\"\")","v":{"$error":"#REF!"}},{"$f":"IF(Stock!#REF!<>\"\",Pilotage!O$27,\"\")","v":{"$error":"#REF!"}},{"$f":"IF(Stock!#REF!<>\"\",ROUND(K306*P306,0),\"\")","v":{"$error":"#REF!"}},{"$f":"IF(Stock!#REF!<>\"\",$H306*Q306,\"\")","v":{"$error":"#REF!"}},{"$f":"IF(Stock!#REF!<>\"\",Pilotage!P$27,\"\")","v":{"$error":"#REF!"}},{"$f":"IF(Stock!#REF!<>\"\",ROUND(Q306*S306,0),\"\")","v":{"$error":"#REF!"}},{"$f":"IF(Stock!#REF!<>\"\",$H306*T306,\"\")","v":{"$error":"#REF!"}},{"$f":"IF(Stock!#REF!<>\"\",Pilotage!Q$27,\"\")","v":{"$error":"#REF!"}},{"$f":"IF(Stock!#REF!<>\"\",ROUND(T306*V306,0),\"\")","v":{"$error":"#REF!"}},{"$f":"IF(Stock!#REF!<>\"\",$H306*W306,\"\")","v":{"$error":"#REF!"}},{"$f":"IF(Stock!#REF!<>\"\",Pilotage!R$27,\"\")","v":{"$error":"#REF!"}},{"$f":"IF(Stock!#REF!<>\"\",ROUND(W306*Y306,0),\"\")","v":{"$error":"#REF!"}},{"$f":"IF(Stock!#REF!<>\"\",$H306*Z306,\"\")","v":{"$error":"#REF!"}}]
[{"$f":"IF(Stock!#REF!<>\"\",Stock!#REF!,\"\")","v":{"$error":"#REF!"}},{"$f":"IF(Stock!#REF!<>\"\",Stock!#REF!,\"\")","v":{"$error":"#REF!"}},{"$f":"IF(Stock!#REF!<>\"\",Stock!#REF!,\"\")","v":{"$error":"#REF!"}},{"$f":"IF(Stock!#REF!<>\"\",SUM(Stock!#REF!,Stock!#REF!,Stock!#REF!),\"\")","v":{"$error":"#REF!"}},{"$f":"IF(Stock!#REF!<>\"\",#REF!*(1+Pilotage!$M$20),\"\")","v":{"$error":"#REF!"}},null,{"$f":"IF(Stock!#REF!<>\"\",IF(Stock!#REF!>0,Stock!#REF!/Stock!#REF!,0),\"\")","v":{"$error":"#REF!"}},{"$f":"IF(Stock!#REF!<>\"\",E307*Pilotage!$D$15,\"\")","v":{"$error":"#REF!"}},{"$f":"IF(Stock!#REF!<>\"\",IF(Stock!#REF!>0,Stock!#REF!,0),\"\")","v":{"$error":"#REF!"}},{"$f":"IF(Stock!#REF!<>\"\",Pilotage!$M$27,\"\")","v":{"$error":"#REF!"}},{"$f":"IF(Stock!#REF!<>\"\",ROUND(Stock!#REF!*J307,0),\"\")","v":{"$error":"#REF!"}},{"$f":"IF(Stock!#REF!<>\"\",$H307*K307,\"\")","v":{"$error":"#REF!"}},{"$f":"IF(Stock!#REF!<>\"\",Pilotage!N$27,\"\")","v":{"$error":"#REF!"}},{"$f":"IF(Stock!#REF!<>\"\",ROUND(K307*M307,0),\"\")","v":{"$error":"#REF!"}},{"$f":"IF(Stock!#REF!<>\"\",$H307*N307,\"\")","v":{"$error":"#REF!"}},{"$f":"IF(Stock!#REF!<>\"\",Pilotage!O$27,\"\")","v":{"$error":"#REF!"}},{"$f":"IF(Stock!#REF!<>\"\",ROUND(K307*P307,0),\"\")","v":{"$error":"#REF!"}},{"$f":"IF(Stock!#REF!<>\"\",$H307*Q307,\"\")","v":{"$error":"#REF!"}},{"$f":"IF(Stock!#REF!<>\"\",Pilotage!P$27,\"\")","v":{"$error":"#REF!"}},{"$f":"IF(Stock!#REF!<>\"\",ROUND(Q307*S307,0),\"\")","v":{"$error":"#REF!"}},{"$f":"IF(Stock!#REF!<>\"\",$H307*T307,\"\")","v":{"$error":"#REF!"}},{"$f":"IF(Stock!#REF!<>\"\",Pilotage!Q$27,\"\")","v":{"$error":"#REF!"}},{"$f":"IF(Stock!#REF!<>\"\",ROUND(T307*V307,0),\"\")","v":{"$error":"#REF!"}},{"$f":"IF(Stock!#REF!<>\"\",$H307*W307,\"\")","v":{"$error":"#REF!"}},{"$f":"IF(Stock!#REF!<>\"\",Pilotage!R$27,\"\")","v":{"$error":"#REF!"}},{"$f":"IF(Stock!#REF!<>\"\",ROUND(W307*Y307,0),\"\")","v":{"$error":"#REF!"}},{"$f":"IF(Stock!#REF!<>\"\",$H307*Z307,\"\")","v":{"$error":"#REF!"}}]
[{"$f":"IF(Stock!#REF!<>\"\",Stock!#REF!,\"\")","v":{"$error":"#REF!"}},{"$f":"IF(Stock!#REF!<>\"\",Stock!#REF!,\"\")","v":{"$error":"#REF!"}},{"$f":"IF(Stock!#REF!<>\"\",Stock!#REF!,\"\")","v":{"$error":"#REF!"}},{"$f":"IF(Stock!#REF!<>\"\",SUM(Stock!#REF!,Stock!#REF!,Stock!#REF!),\"\")","v":{"$error":"#REF!"}},{"$f":"IF(Stock!#REF!<>\"\",#REF!*(1+Pilotage!$M$20),\"\")","v":{"$error":"#REF!"}},null,{"$f":"IF(Stock!#REF!<>\"\",IF(Stock!#REF!>0,Stock!#REF!/Stock!#REF!,0),\"\")","v":{"$error":"#REF!"}},{"$f":"IF(Stock!#REF!<>\"\",E308*Pilotage!$D$15,\"\")","v":{"$error":"#REF!"}},{"$f":"IF(Stock!#REF!<>\"\",IF(Stock!#REF!>0,Stock!#REF!,0),\"\")","v":{"$error":"#REF!"}},{"$f":"IF(Stock!#REF!<>\"\",Pilotage!$M$27,\"\")","v":{"$error":"#REF!"}},{"$f":"IF(Stock!#REF!<>\"\",ROUND(Stock!#REF!*J308,0),\"\")","v":{"$error":"#REF!"}},{"$f":"IF(Stock!#REF!<>\"\",$H308*K308,\"\")","v":{"$error":"#REF!"}},{"$f":"IF(Stock!#REF!<>\"\",Pilotage!N$27,\"\")","v":{"$error":"#REF!"}},{"$f":"IF(Stock!#REF!<>\"\",ROUND(K308*M308,0),\"\")","v":{"$error":"#REF!"}},{"$f":"IF(Stock!#REF!<>\"\",$H308*N308,\"\")","v":{"$error":"#REF!"}},{"$f":"IF(Stock!#REF!<>\"\",Pilotage!O$27,\"\")","v":{"$error":"#REF!"}},{"$f":"IF(Stock!#REF!<>\"\",ROUND(K308*P308,0),\"\")","v":{"$error":"#REF!"}},{"$f":"IF(Stock!#REF!<>\"\",$H308*Q308,\"\")","v":{"$error":"#REF!"}},{"$f":"IF(Stock!#REF!<>\"\",Pilotage!P$27,\"\")","v":{"$error":"#REF!"}},{"$f":"IF(Stock!#REF!<>\"\",ROUND(Q308*S308,0),\"\")","v":{"$error":"#REF!"}},{"$f":"IF(Stock!#REF!<>\"\",$H308*T308,\"\")","v":{"$error":"#REF!"}},{"$f":"IF(Stock!#REF!<>\"\",Pilotage!Q$27,\"\")","v":{"$error":"#REF!"}},{"$f":"IF(Stock!#REF!<>\"\",ROUND(T308*V308,0),\"\")","v":{"$error":"#REF!"}},{"$f":"IF(Stock!#REF!<>\"\",$H308*W308,\"\")","v":{"$error":"#REF!"}},{"$f":"IF(Stock!#REF!<>\"\",Pilotage!R$27,\"\")","v":{"$error":"#REF!"}},{"$f":"IF(Stock!#REF!<>\"\",ROUND(W308*Y308,0),\"\")","v":{"$error":"#REF!"}},{"$f":"IF(Stock!#REF!<>\"\",$H308*Z308,\"\")","v":{"$error":"#REF!"}}]
[{"$f":"IF(Stock!#REF!<>\"\",Stock!#REF!,\"\")","v":{"$error":"#REF!"}},{"$f":"IF(Stock!#REF!<>\"\",Stock!#REF!,\"\")","v":{"$error":"#REF!"}},{"$f":"IF(Stock!#REF!<>\"\",Stock!#REF!,\"\")","v":{"$error":"#REF!"}},{"$f":"IF(Stock!#REF!<>\"\",SUM(Stock!#REF!,Stock!#REF!,Stock!#REF!),\"\")","v":{"$error":"#REF!"}},{"$f":"IF(Stock!#REF!<>\"\",#REF!*(1+Pilotage!$M$20),\"\")","v":{"$error":"#REF!"}},null,{"$f":"IF(Stock!#REF!<>\"\",IF(Stock!#REF!>0,Stock!#REF!/Stock!#REF!,0),\"\")","v":{"$error":"#REF!"}},{"$f":"IF(Stock!#REF!<>\"\",E309*Pilotage!$D$15,\"\")","v":{"$error":"#REF!"}},{"$f":"IF(Stock!#REF!<>\"\",IF(Stock!#REF!>0,Stock!#REF!,0),\"\")","v":{"$error":"#REF!"}},{"$f":"IF(Stock!#REF!<>\"\",Pilotage!$M$27,\"\")","v":{"$error":"#REF!"}},{"$f":"IF(Stock!#REF!<>\"\",ROUND(Stock!#REF!*J309,0),\"\")","v":{"$error":"#REF!"}},{"$f":"IF(Stock!#REF!<>\"\",$H309*K309,\"\")","v":{"$error":"#REF!"}},{"$f":"IF(Stock!#REF!<>\"\",Pilotage!N$27,\"\")","v":{"$error":"#REF!"}},{"$f":"IF(Stock!#REF!<>\"\",ROUND(K309*M309,0),\"\")","v":{"$error":"#REF!"}},{"$f":"IF(Stock!#REF!<>\"\",$H309*N309,\"\")","v":{"$error":"#REF!"}},{"$f":"IF(Stock!#REF!<>\"\",Pilotage!O$27,\"\")","v":{"$error":"#REF!"}},{"$f":"IF(Stock!#REF!<>\"\",ROUND(K309*P309,0),\"\")","v":{"$error":"#REF!"}},{"$f":"IF(Stock!#REF!<>\"\",$H309*Q309,\"\")","v":{"$error":"#REF!"}},{"$f":"IF(Stock!#REF!<>\"\",Pilotage!P$27,\"\")","v":{"$error":"#REF!"}},{"$f":"IF(Stock!#REF!<>\"\",ROUND(Q309*S309,0),\"\")","v":{"$error":"#REF!"}},{"$f":"IF(Stock!#REF!<>\"\",$H309*T309,\"\")","v":{"$error":"#REF!"}},{"$f":"IF(Stock!#REF!<>\"\",Pilotage!Q$27,\"\")","v":{"$error":"#REF!"}},{"$f":"IF(Stock!#REF!<>\"\",ROUND(T309*V309,0),\"\")","v":{"$error":"#REF!"}},{"$f":"IF(Stock!#REF!<>\"\",$H309*W309,\"\")","v":{"$error":"#REF!"}},{"$f":"IF(Stock!#REF!<>\"\",Pilotage!R$27,\"\")","v":{"$error":"#REF!"}},{"$f":"IF(Stock!#REF!<>\"\",ROUND(W309*Y309,0),\"\")","v":{"$error":"#REF!"}},{"$f":"IF(Stock!#REF!<>\"\",$H309*Z309,\"\")","v":{"$error":"#REF!"}}]
[{"$f":"IF(Stock!#REF!<>\"\",Stock!#REF!,\"\")","v":{"$error":"#REF!"}},{"$f":"IF(Stock!#REF!<>\"\",Stock!#REF!,\"\")","v":{"$error":"#REF!"}},{"$f":"IF(Stock!#REF!<>\"\",Stock!#REF!,\"\")","v":{"$error":"#REF!"}},{"$f":"IF(Stock!#REF!<>\"\",SUM(Stock!#REF!,Stock!#REF!,Stock!#REF!),\"\")","v":{"$error":"#REF!"}},{"$f":"IF(Stock!#REF!<>\"\",#REF!*(1+Pilotage!$M$20),\"\")","v":{"$error":"#REF!"}},null,{"$f":"IF(Stock!#REF!<>\"\",IF(Stock!#REF!>0,Stock!#REF!/Stock!#REF!,0),\"\")","v":{"$error":"#REF!"}},{"$f":"IF(Stock!#REF!<>\"\",E310*Pilotage!$D$15,\"\")","v":{"$error":"#REF!"}},{"$f":"IF(Stock!#REF!<>\"\",IF(Stock!#REF!>0,Stock!#REF!,0),\"\")","v":{"$error":"#REF!"}},{"$f":"IF(Stock!#REF!<>\"\",Pilotage!$M$27,\"\")","v":{"$error":"#REF!"}},{"$f":"IF(Stock!#REF!<>\"\",ROUND(Stock!#REF!*J310,0),\"\")","v":{"$error":"#REF!"}},{"$f":"IF(Stock!#REF!<>\"\",$H310*K310,\"\")","v":{"$error":"#REF!"}},{"$f":"IF(Stock!#REF!<>\"\",Pilotage!N$27,\"\")","v":{"$error":"#REF!"}},{"$f":"IF(Stock!#REF!<>\"\",ROUND(K310*M310,0),\"\")","v":{"$error":"#REF!"}},{"$f":"IF(Stock!#REF!<>\"\",$H310*N310,\"\")","v":{"$error":"#REF!"}},{"$f":"IF(Stock!#REF!<>\"\",Pilotage!O$27,\"\")","v":{"$error":"#REF!"}},{"$f":"IF(Stock!#REF!<>\"\",ROUND(K310*P310,0),\"\")","v":{"$error":"#REF!"}},{"$f":"IF(Stock!#REF!<>\"\",$H310*Q310,\"\")","v":{"$error":"#REF!"}},{"$f":"IF(Stock!#REF!<>\"\",Pilotage!P$27,\"\")","v":{"$error":"#REF!"}},{"$f":"IF(Stock!#REF!<>\"\",ROUND(Q310*S310,0),\"\")","v":{"$error":"#REF!"}},{"$f":"IF(Stock!#REF!<>\"\",$H310*T310,\"\")","v":{"$error":"#REF!"}},{"$f":"IF(Stock!#REF!<>\"\",Pilotage!Q$27,\"\")","v":{"$error":"#REF!"}},{"$f":"IF(Stock!#REF!<>\"\",ROUND(T310*V310,0),\"\")","v":{"$error":"#REF!"}},{"$f":"IF(Stock!#REF!<>\"\",$H310*W310,\"\")","v":{"$error":"#REF!"}},{"$f":"IF(Stock!#REF!<>\"\",Pilotage!R$27,\"\")","v":{"$error":"#REF!"}},{"$f":"IF(Stock!#REF!<>\"\",ROUND(W310*Y310,0),\"\")","v":{"$error":"#REF!"}},{"$f":"IF(Stock!#REF!<>\"\",$H310*Z310,\"\")","v":{"$error":"#REF!"}}]
[{"$f":"IF(Stock!#REF!<>\"\",Stock!#REF!,\"\")","v":{"$error":"#REF!"}},{"$f":"IF(Stock!#REF!<>\"\",Stock!#REF!,\"\")","v":{"$error":"#REF!"}},{"$f":"IF(Stock!#REF!<>\"\",Stock!#REF!,\"\")","v":{"$error":"#REF!"}},{"$f":"IF(Stock!#REF!<>\"\",SUM(Stock!#REF!,Stock!#REF!,Stock!#REF!),\"\")","v":{"$error":"#REF!"}},{"$f":"IF(Stock!#REF!<>\"\",#REF!*(1+Pilotage!$M$20),\"\")","v":{"$error":"#REF!"}},null,{"$f":"IF(Stock!#REF!<>\"\",IF(Stock!#REF!>0,Stock!#REF!/Stock!#REF!,0),\"\")","v":{"$error":"#REF!"}},{"$f":"IF(Stock!#REF!<>\"\",E311*Pilotage!$D$15,\"\")","v":{"$error":"#REF!"}},{"$f":"IF(Stock!#REF!<>\"\",IF(Stock!#REF!>0,Stock!#REF!,0),\"\")","v":{"$error":"#REF!"}},{"$f":"IF(Stock!#REF!<>\"\",Pilotage!$M$27,\"\")","v":{"$error":"#REF!"}},{"$f":"IF(Stock!#REF!<>\"\",ROUND(Stock!#REF!*J311,0),\"\")","v":{"$error":"#REF!"}},{"$f":"IF(Stock!#REF!<>\"\",$H311*K311,\"\")","v":{"$error":"#REF!"}},{"$f":"IF(Stock!#REF!<>\"\",Pilotage!N$27,\"\")","v":{"$error":"#REF!"}},{"$f":"IF(Stock!#REF!<>\"\",ROUND(K311*M311,0),\"\")","v":{"$error":"#REF!"}},{"$f":"IF(Stock!#REF!<>\"\",$H311*N311,\"\")","v":{"$error":"#REF!"}},{"$f":"IF(Stock!#REF!<>\"\",Pilotage!O$27,\"\")","v":{"$error":"#REF!"}},{"$f":"IF(Stock!#REF!<>\"\",ROUND(K311*P311,0),\"\")","v":{"$error":"#REF!"}},{"$f":"IF(Stock!#REF!<>\"\",$H311*Q311,\"\")","v":{"$error":"#REF!"}},{"$f":"IF(Stock!#REF!<>\"\",Pilotage!P$27,\"\")","v":{"$error":"#REF!"}},{"$f":"IF(Stock!#REF!<>\"\",ROUND(Q311*S311,0),\"\")","v":{"$error":"#REF!"}},{"$f":"IF(Stock!#REF!<>\"\",$H311*T311,\"\")","v":{"$error":"#REF!"}},{"$f":"IF(Stock!#REF!<>\"\",Pilotage!Q$27,\"\")","v":{"$error":"#REF!"}},{"$f":"IF(Stock!#REF!<>\"\",ROUND(T311*V311,0),\"\")","v":{"$error":"#REF!"}},{"$f":"IF(Stock!#REF!<>\"\",$H311*W311,\"\")","v":{"$error":"#REF!"}},{"$f":"IF(Stock!#REF!<>\"\",Pilotage!R$27,\"\")","v":{"$error":"#REF!"}},{"$f":"IF(Stock!#REF!<>\"\",ROUND(W311*Y311,0),\"\")","v":{"$error":"#REF!"}},{"$f":"IF(Stock!#REF!<>\"\",$H311*Z311,\"\")","v":{"$error":"#REF!"}}]
[{"$f":"IF(Stock!#REF!<>\"\",Stock!#REF!,\"\")","v":{"$error":"#REF!"}},{"$f":"IF(Stock!#REF!<>\"\",Stock!#REF!,\"\")","v":{"$error":"#REF!"}},{"$f":"IF(Stock!#REF!<>\"\",Stock!#REF!,\"\")","v":{"$error":"#REF!"}},{"$f":"IF(Stock!#REF!<>\"\",SUM(Stock!#REF!,Stock!#REF!,Stock!#REF!),\"\")","v":{"$error":"#REF!"}},{"$f":"IF(Stock!#REF!<>\"\",#REF!*(1+Pilotage!$M$20),\"\")","v":{"$error":"#REF!"}},null,{"$f":"IF(Stock!#REF!<>\"\",IF(Stock!#REF!>0,Stock!#REF!/Stock!#REF!,0),\"\")","v":{"$error":"#REF!"}},{"$f":"IF(Stock!#REF!<>\"\",E312*Pilotage!$D$15,\"\")","v":{"$error":"#REF!"}},{"$f":"IF(Stock!#REF!<>\"\",IF(Stock!#REF!>0,Stock!#REF!,0),\"\")","v":{"$error":"#REF!"}},{"$f":"IF(Stock!#REF!<>\"\",Pilotage!$M$27,\"\")","v":{"$error":"#REF!"}},{"$f":"IF(Stock!#REF!<>\"\",ROUND(Stock!#REF!*J312,0),\"\")","v":{"$error":"#REF!"}},{"$f":"IF(Stock!#REF!<>\"\",$H312*K312,\"\")","v":{"$error":"#REF!"}},{"$f":"IF(Stock!#REF!<>\"\",Pilotage!N$27,\"\")","v":{"$error":"#REF!"}},{"$f":"IF(Stock!#REF!<>\"\",ROUND(K312*M312,0),\"\")","v":{"$error":"#REF!"}},{"$f":"IF(Stock!#REF!<>\"\",$H312*N312,\"\")","v":{"$error":"#REF!"}},{"$f":"IF(Stock!#REF!<>\"\",Pilotage!O$27,\"\")","v":{"$error":"#REF!"}},{"$f":"IF(Stock!#REF!<>\"\",ROUND(K312*P312,0),\"\")","v":{"$error":"#REF!"}},{"$f":"IF(Stock!#REF!<>\"\",$H312*Q312,\"\")","v":{"$error":"#REF!"}},{"$f":"IF(Stock!#REF!<>\"\",Pilotage!P$27,\"\")","v":{"$error":"#REF!"}},{"$f":"IF(Stock!#REF!<>\"\",ROUND(Q312*S312,0),\"\")","v":{"$error":"#REF!"}},{"$f":"IF(Stock!#REF!<>\"\",$H312*T312,\"\")","v":{"$error":"#REF!"}},{"$f":"IF(Stock!#REF!<>\"\",Pilotage!Q$27,\"\")","v":{"$error":"#REF!"}},{"$f":"IF(Stock!#REF!<>\"\",ROUND(T312*V312,0),\"\")","v":{"$error":"#REF!"}},{"$f":"IF(Stock!#REF!<>\"\",$H312*W312,\"\")","v":{"$error":"#REF!"}},{"$f":"IF(Stock!#REF!<>\"\",Pilotage!R$27,\"\")","v":{"$error":"#REF!"}},{"$f":"IF(Stock!#REF!<>\"\",ROUND(W312*Y312,0),\"\")","v":{"$error":"#REF!"}},{"$f":"IF(Stock!#REF!<>\"\",$H312*Z312,\"\")","v":{"$error":"#REF!"}}]
[{"$f":"IF(Stock!#REF!<>\"\",Stock!#REF!,\"\")","v":{"$error":"#REF!"}},{"$f":"IF(Stock!#REF!<>\"\",Stock!#REF!,\"\")","v":{"$error":"#REF!"}},{"$f":"IF(Stock!#REF!<>\"\",Stock!#REF!,\"\")","v":{"$error":"#REF!"}},{"$f":"IF(Stock!#REF!<>\"\",SUM(Stock!#REF!,Stock!#REF!,Stock!#REF!),\"\")","v":{"$error":"#REF!"}},{"$f":"IF(Stock!#REF!<>\"\",#REF!*(1+Pilotage!$M$20),\"\")","v":{"$error":"#REF!"}},null,{"$f":"IF(Stock!#REF!<>\"\",IF(Stock!#REF!>0,Stock!#REF!/Stock!#REF!,0),\"\")","v":{"$error":"#REF!"}},{"$f":"IF(Stock!#REF!<>\"\",E313*Pilotage!$D$15,\"\")","v":{"$error":"#REF!"}},{"$f":"IF(Stock!#REF!<>\"\",IF(Stock!#REF!>0,Stock!#REF!,0),\"\")","v":{"$error":"#REF!"}},{"$f":"IF(Stock!#REF!<>\"\",Pilotage!$M$27,\"\")","v":{"$error":"#REF!"}},{"$f":"IF(Stock!#REF!<>\"\",ROUND(Stock!#REF!*J313,0),\"\")","v":{"$error":"#REF!"}},{"$f":"IF(Stock!#REF!<>\"\",$H313*K313,\"\")","v":{"$error":"#REF!"}},{"$f":"IF(Stock!#REF!<>\"\",Pilotage!N$27,\"\")","v":{"$error":"#REF!"}},{"$f":"IF(Stock!#REF!<>\"\",ROUND(K313*M313,0),\"\")","v":{"$error":"#REF!"}},{"$f":"IF(Stock!#REF!<>\"\",$H313*N313,\"\")","v":{"$error":"#REF!"}},{"$f":"IF(Stock!#REF!<>\"\",Pilotage!O$27,\"\")","v":{"$error":"#REF!"}},{"$f":"IF(Stock!#REF!<>\"\",ROUND(K313*P313,0),\"\")","v":{"$error":"#REF!"}},{"$f":"IF(Stock!#REF!<>\"\",$H313*Q313,\"\")","v":{"$error":"#REF!"}},{"$f":"IF(Stock!#REF!<>\"\",Pilotage!P$27,\"\")","v":{"$error":"#REF!"}},{"$f":"IF(Stock!#REF!<>\"\",ROUND(Q313*S313,0),\"\")","v":{"$error":"#REF!"}},{"$f":"IF(Stock!#REF!<>\"\",$H313*T313,\"\")","v":{"$error":"#REF!"}},{"$f":"IF(Stock!#REF!<>\"\",Pilotage!Q$27,\"\")","v":{"$error":"#REF!"}},{"$f":"IF(Stock!#REF!<>\"\",ROUND(T313*V313,0),\"\")","v":{"$error":"#REF!"}},{"$f":"IF(Stock!#REF!<>\"\",$H313*W313,\"\")","v":{"$error":"#REF!"}},{"$f":"IF(Stock!#REF!<>\"\",Pilotage!R$27,\"\")","v":{"$error":"#REF!"}},{"$f":"IF(Stock!#REF!<>\"\",ROUND(W313*Y313,0),\"\")","v":{"$error":"#REF!"}},{"$f":"IF(Stock!#REF!<>\"\",$H313*Z313,\"\")","v":{"$error":"#REF!"}}]
[{"$f":"IF(Stock!#REF!<>\"\",Stock!#REF!,\"\")","v":{"$error":"#REF!"}},{"$f":"IF(Stock!#REF!<>\"\",Stock!#REF!,\"\")","v":{"$error":"#REF!"}},{"$f":"IF(Stock!#REF!<>\"\",Stock!#REF!,\"\")","v":{"$error":"#REF!"}},{"$f":"IF(Stock!#REF!<>\"\",SUM(Stock!#REF!,Stock!#REF!,Stock!#REF!),\"\")","v":{"$error":"#REF!"}},{"$f":"IF(Stock!#REF!<>\"\",#REF!*(1+Pilotage!$M$20),\"\")","v":{"$error":"#REF!"}},null,{"$f":"IF(Stock!#REF!<>\"\",IF(Stock!#REF!>0,Stock!#REF!/Stock!#REF!,0),\"\")","v":{"$error":"#REF!"}},{"$f":"IF(Stock!#REF!<>\"\",E314*Pilotage!$D$15,\"\")","v":{"$error":"#REF!"}},{"$f":"IF(Stock!#REF!<>\"\",IF(Stock!#REF!>0,Stock!#REF!,0),\"\")","v":{"$error":"#REF!"}},{"$f":"IF(Stock!#REF!<>\"\",Pilotage!$M$27,\"\")","v":{"$error":"#REF!"}},{"$f":"IF(Stock!#REF!<>\"\",ROUND(Stock!#REF!*J314,0),\"\")","v":{"$error":"#REF!"}},{"$f":"IF(Stock!#REF!<>\"\",$H314*K314,\"\")","v":{"$error":"#REF!"}},{"$f":"IF(Stock!#REF!<>\"\",Pilotage!N$27,\"\")","v":{"$error":"#REF!"}},{"$f":"IF(Stock!#REF!<>\"\",ROUND(K314*M314,0),\"\")","v":{"$error":"#REF!"}},{"$f":"IF(Stock!#REF!<>\"\",$H314*N314,\"\")","v":{"$error":"#REF!"}},{"$f":"IF(Stock!#REF!<>\"\",Pilotage!O$27,\"\")","v":{"$error":"#REF!"}},{"$f":"IF(Stock!#REF!<>\"\",ROUND(K314*P314,0),\"\")","v":{"$error":"#REF!"}},{"$f":"IF(Stock!#REF!<>\"\",$H314*Q314,\"\")","v":{"$error":"#REF!"}},{"$f":"IF(Stock!#REF!<>\"\",Pilotage!P$27,\"\")","v":{"$error":"#REF!"}},{"$f":"IF(Stock!#REF!<>\"\",ROUND(Q314*S314,0),\"\")","v":{"$error":"#REF!"}},{"$f":"IF(Stock!#REF!<>\"\",$H314*T314,\"\")","v":{"$error":"#REF!"}},{"$f":"IF(Stock!#REF!<>\"\",Pilotage!Q$27,\"\")","v":{"$error":"#REF!"}},{"$f":"IF(Stock!#REF!<>\"\",ROUND(T314*V314,0),\"\")","v":{"$error":"#REF!"}},{"$f":"IF(Stock!#REF!<>\"\",$H314*W314,\"\")","v":{"$error":"#REF!"}},{"$f":"IF(Stock!#REF!<>\"\",Pilotage!R$27,\"\")","v":{"$error":"#REF!"}},{"$f":"IF(Stock!#REF!<>\"\",ROUND(W314*Y314,0),\"\")","v":{"$error":"#REF!"}},{"$f":"IF(Stock!#REF!<>\"\",$H314*Z314,\"\")","v":{"$error":"#REF!"}}]
[{"$f":"IF(Stock!#REF!<>\"\",Stock!#REF!,\"\")","v":{"$error":"#REF!"}},{"$f":"IF(Stock!#REF!<>\"\",Stock!#REF!,\"\")","v":{"$error":"#REF!"}},{"$f":"IF(Stock!#REF!<>\"\",Stock!#REF!,\"\")","v":{"$error":"#REF!"}},{"$f":"IF(Stock!#REF!<>\"\",SUM(Stock!#REF!,Stock!#REF!,Stock!#REF!),\"\")","v":{"$error":"#REF!"}},{"$f":"IF(Stock!#REF!<>\"\",#REF!*(1+Pilotage!$M$20),\"\")","v":{"$error":"#REF!"}},null,{"$f":"IF(Stock!#REF!<>\"\",IF(Stock!#REF!>0,Stock!#REF!/Stock!#REF!,0),\"\")","v":{"$error":"#REF!"}},{"$f":"IF(Stock!#REF!<>\"\",E315*Pilotage!$D$15,\"\")","v":{"$error":"#REF!"}},{"$f":"IF(Stock!#REF!<>\"\",IF(Stock!#REF!>0,Stock!#REF!,0),\"\")","v":{"$error":"#REF!"}},{"$f":"IF(Stock!#REF!<>\"\",Pilotage!$M$27,\"\")","v":{"$error":"#REF!"}},{"$f":"IF(Stock!#REF!<>\"\",ROUND(Stock!#REF!*J315,0),\"\")","v":{"$error":"#REF!"}},{"$f":"IF(Stock!#REF!<>\"\",$H315*K315,\"\")","v":{"$error":"#REF!"}},{"$f":"IF(Stock!#REF!<>\"\",Pilotage!N$27,\"\")","v":{"$error":"#REF!"}},{"$f":"IF(Stock!#REF!<>\"\",ROUND(K315*M315,0),\"\")","v":{"$error":"#REF!"}},{"$f":"IF(Stock!#REF!<>\"\",$H315*N315,\"\")","v":{"$error":"#REF!"}},{"$f":"IF(Stock!#REF!<>\"\",Pilotage!O$27,\"\")","v":{"$error":"#REF!"}},{"$f":"IF(Stock!#REF!<>\"\",ROUND(K315*P315,0),\"\")","v":{"$error":"#REF!"}},{"$f":"IF(Stock!#REF!<>\"\",$H315*Q315,\"\")","v":{"$error":"#REF!"}},{"$f":"IF(Stock!#REF!<>\"\",Pilotage!P$27,\"\")","v":{"$error":"#REF!"}},{"$f":"IF(Stock!#REF!<>\"\",ROUND(Q315*S315,0),\"\")","v":{"$error":"#REF!"}},{"$f":"IF(Stock!#REF!<>\"\",$H315*T315,\"\")","v":{"$error":"#REF!"}},{"$f":"IF(Stock!#REF!<>\"\",Pilotage!Q$27,\"\")","v":{"$error":"#REF!"}},{"$f":"IF(Stock!#REF!<>\"\",ROUND(T315*V315,0),\"\")","v":{"$error":"#REF!"}},{"$f":"IF(Stock!#REF!<>\"\",$H315*W315,\"\")","v":{"$error":"#REF!"}},{"$f":"IF(Stock!#REF!<>\"\",Pilotage!R$27,\"\")","v":{"$error":"#REF!"}},{"$f":"IF(Stock!#REF!<>\"\",ROUND(W315*Y315,0),\"\")","v":{"$error":"#REF!"}},{"$f":"IF(Stock!#REF!<>\"\",$H315*Z315,\"\")","v":{"$error":"#REF!"}}]
[{"$f":"IF(Stock!#REF!<>\"\",Stock!#REF!,\"\")","v":{"$error":"#REF!"}},{"$f":"IF(Stock!#REF!<>\"\",Stock!#REF!,\"\")","v":{"$error":"#REF!"}},{"$f":"IF(Stock!#REF!<>\"\",Stock!#REF!,\"\")","v":{"$error":"#REF!"}},{"$f":"IF(Stock!#REF!<>\"\",SUM(Stock!#REF!,Stock!#REF!,Stock!#REF!),\"\")","v":{"$error":"#REF!"}},{"$f":"IF(Stock!#REF!<>\"\",#REF!*(1+Pilotage!$M$20),\"\")","v":{"$error":"#REF!"}},null,{"$f":"IF(Stock!#REF!<>\"\",IF(Stock!#REF!>0,Stock!#REF!/Stock!#REF!,0),\"\")","v":{"$error":"#REF!"}},{"$f":"IF(Stock!#REF!<>\"\",E316*Pilotage!$D$15,\"\")","v":{"$error":"#REF!"}},{"$f":"IF(Stock!#REF!<>\"\",IF(Stock!#REF!>0,Stock!#REF!,0),\"\")","v":{"$error":"#REF!"}},{"$f":"IF(Stock!#REF!<>\"\",Pilotage!$M$27,\"\")","v":{"$error":"#REF!"}},{"$f":"IF(Stock!#REF!<>\"\",ROUND(Stock!#REF!*J316,0),\"\")","v":{"$error":"#REF!"}},{"$f":"IF(Stock!#REF!<>\"\",$H316*K316,\"\")","v":{"$error":"#REF!"}},{"$f":"IF(Stock!#REF!<>\"\",Pilotage!N$27,\"\")","v":{"$error":"#REF!"}},{"$f":"IF(Stock!#REF!<>\"\",ROUND(K316*M316,0),\"\")","v":{"$error":"#REF!"}},{"$f":"IF(Stock!#REF!<>\"\",$H316*N316,\"\")","v":{"$error":"#REF!"}},{"$f":"IF(Stock!#REF!<>\"\",Pilotage!O$27,\"\")","v":{"$error":"#REF!"}},{"$f":"IF(Stock!#REF!<>\"\",ROUND(K316*P316,0),\"\")","v":{"$error":"#REF!"}},{"$f":"IF(Stock!#REF!<>\"\",$H316*Q316,\"\")","v":{"$error":"#REF!"}},{"$f":"IF(Stock!#REF!<>\"\",Pilotage!P$27,\"\")","v":{"$error":"#REF!"}},{"$f":"IF(Stock!#REF!<>\"\",ROUND(Q316*S316,0),\"\")","v":{"$error":"#REF!"}},{"$f":"IF(Stock!#REF!<>\"\",$H316*T316,\"\")","v":{"$error":"#REF!"}},{"$f":"IF(Stock!#REF!<>\"\",Pilotage!Q$27,\"\")","v":{"$error":"#REF!"}},{"$f":"IF(Stock!#REF!<>\"\",ROUND(T316*V316,0),\"\")","v":{"$error":"#REF!"}},{"$f":"IF(Stock!#REF!<>\"\",$H316*W316,\"\")","v":{"$error":"#REF!"}},{"$f":"IF(Stock!#REF!<>\"\",Pilotage!R$27,\"\")","v":{"$error":"#REF!"}},{"$f":"IF(Stock!#REF!<>\"\",ROUND(W316*Y316,0),\"\")","v":{"$error":"#REF!"}},{"$f":"IF(Stock!#REF!<>\"\",$H316*Z316,\"\")","v":{"$error":"#REF!"}}]
[{"$f":"IF(Stock!#REF!<>\"\",Stock!#REF!,\"\")","v":{"$error":"#REF!"}},{"$f":"IF(Stock!#REF!<>\"\",Stock!#REF!,\"\")","v":{"$error":"#REF!"}},{"$f":"IF(Stock!#REF!<>\"\",Stock!#REF!,\"\")","v":{"$error":"#REF!"}},{"$f":"IF(Stock!#REF!<>\"\",SUM(Stock!#REF!,Stock!#REF!,Stock!#REF!),\"\")","v":{"$error":"#REF!"}},{"$f":"IF(Stock!#REF!<>\"\",#REF!*(1+Pilotage!$M$20),\"\")","v":{"$error":"#REF!"}},null,{"$f":"IF(Stock!#REF!<>\"\",IF(Stock!#REF!>0,Stock!#REF!/Stock!#REF!,0),\"\")","v":{"$error":"#REF!"}},{"$f":"IF(Stock!#REF!<>\"\",E317*Pilotage!$D$15,\"\")","v":{"$error":"#REF!"}},{"$f":"IF(Stock!#REF!<>\"\",IF(Stock!#REF!>0,Stock!#REF!,0),\"\")","v":{"$error":"#REF!"}},{"$f":"IF(Stock!#REF!<>\"\",Pilotage!$M$27,\"\")","v":{"$error":"#REF!"}},{"$f":"IF(Stock!#REF!<>\"\",ROUND(Stock!#REF!*J317,0),\"\")","v":{"$error":"#REF!"}},{"$f":"IF(Stock!#REF!<>\"\",$H317*K317,\"\")","v":{"$error":"#REF!"}},{"$f":"IF(Stock!#REF!<>\"\",Pilotage!N$27,\"\")","v":{"$error":"#REF!"}},{"$f":"IF(Stock!#REF!<>\"\",ROUND(K317*M317,0),\"\")","v":{"$error":"#REF!"}},{"$f":"IF(Stock!#REF!<>\"\",$H317*N317,\"\")","v":{"$error":"#REF!"}},{"$f":"IF(Stock!#REF!<>\"\",Pilotage!O$27,\"\")","v":{"$error":"#REF!"}},{"$f":"IF(Stock!#REF!<>\"\",ROUND(K317*P317,0),\"\")","v":{"$error":"#REF!"}},{"$f":"IF(Stock!#REF!<>\"\",$H317*Q317,\"\")","v":{"$error":"#REF!"}},{"$f":"IF(Stock!#REF!<>\"\",Pilotage!P$27,\"\")","v":{"$error":"#REF!"}},{"$f":"IF(Stock!#REF!<>\"\",ROUND(Q317*S317,0),\"\")","v":{"$error":"#REF!"}},{"$f":"IF(Stock!#REF!<>\"\",$H317*T317,\"\")","v":{"$error":"#REF!"}},{"$f":"IF(Stock!#REF!<>\"\",Pilotage!Q$27,\"\")","v":{"$error":"#REF!"}},{"$f":"IF(Stock!#REF!<>\"\",ROUND(T317*V317,0),\"\")","v":{"$error":"#REF!"}},{"$f":"IF(Stock!#REF!<>\"\",$H317*W317,\"\")","v":{"$error":"#REF!"}},{"$f":"IF(Stock!#REF!<>\"\",Pilotage!R$27,\"\")","v":{"$error":"#REF!"}},{"$f":"IF(Stock!#REF!<>\"\",ROUND(W317*Y317,0),\"\")","v":{"$error":"#REF!"}},{"$f":"IF(Stock!#REF!<>\"\",$H317*Z317,\"\")","v":{"$error":"#REF!"}}]
[{"$f":"IF(Stock!#REF!<>\"\",Stock!#REF!,\"\")","v":{"$error":"#REF!"}},{"$f":"IF(Stock!#REF!<>\"\",Stock!#REF!,\"\")","v":{"$error":"#REF!"}},{"$f":"IF(Stock!#REF!<>\"\",Stock!#REF!,\"\")","v":{"$error":"#REF!"}},{"$f":"IF(Stock!#REF!<>\"\",SUM(Stock!#REF!,Stock!#REF!,Stock!#REF!),\"\")","v":{"$error":"#REF!"}},{"$f":"IF(Stock!#REF!<>\"\",#REF!*(1+Pilotage!$M$20),\"\")","v":{"$error":"#REF!"}},null,{"$f":"IF(Stock!#REF!<>\"\",IF(Stock!#REF!>0,Stock!#REF!/Stock!#REF!,0),\"\")","v":{"$error":"#REF!"}},{"$f":"IF(Stock!#REF!<>\"\",E318*Pilotage!$D$15,\"\")","v":{"$error":"#REF!"}},{"$f":"IF(Stock!#REF!<>\"\",IF(Stock!#REF!>0,Stock!#REF!,0),\"\")","v":{"$error":"#REF!"}},{"$f":"IF(Stock!#REF!<>\"\",Pilotage!$M$27,\"\")","v":{"$error":"#REF!"}},{"$f":"IF(Stock!#REF!<>\"\",ROUND(Stock!#REF!*J318,0),\"\")","v":{"$error":"#REF!"}},{"$f":"IF(Stock!#REF!<>\"\",$H318*K318,\"\")","v":{"$error":"#REF!"}},{"$f":"IF(Stock!#REF!<>\"\",Pilotage!N$27,\"\")","v":{"$error":"#REF!"}},{"$f":"IF(Stock!#REF!<>\"\",ROUND(K318*M318,0),\"\")","v":{"$error":"#REF!"}},{"$f":"IF(Stock!#REF!<>\"\",$H318*N318,\"\")","v":{"$error":"#REF!"}},{"$f":"IF(Stock!#REF!<>\"\",Pilotage!O$27,\"\")","v":{"$error":"#REF!"}},{"$f":"IF(Stock!#REF!<>\"\",ROUND(K318*P318,0),\"\")","v":{"$error":"#REF!"}},{"$f":"IF(Stock!#REF!<>\"\",$H318*Q318,\"\")","v":{"$error":"#REF!"}},{"$f":"IF(Stock!#REF!<>\"\",Pilotage!P$27,\"\")","v":{"$error":"#REF!"}},{"$f":"IF(Stock!#REF!<>\"\",ROUND(Q318*S318,0),\"\")","v":{"$error":"#REF!"}},{"$f":"IF(Stock!#REF!<>\"\",$H318*T318,\"\")","v":{"$error":"#REF!"}},{"$f":"IF(Stock!#REF!<>\"\",Pilotage!Q$27,\"\")","v":{"$error":"#REF!"}},{"$f":"IF(Stock!#REF!<>\"\",ROUND(T318*V318,0),\"\")","v":{"$error":"#REF!"}},{"$f":"IF(Stock!#REF!<>\"\",$H318*W318,\"\")","v":{"$error":"#REF!"}},{"$f":"IF(Stock!#REF!<>\"\",Pilotage!R$27,\"\")","v":{"$error":"#REF!"}},{"$f":"IF(Stock!#REF!<>\"\",ROUND(W318*Y318,0),\"\")","v":{"$error":"#REF!"}},{"$f":"IF(Stock!#REF!<>\"\",$H318*Z318,\"\")","v":{"$error":"#REF!"}}]
[{"$f":"IF(Stock!#REF!<>\"\",Stock!#REF!,\"\")","v":{"$error":"#REF!"}},{"$f":"IF(Stock!#REF!<>\"\",Stock!#REF!,\"\")","v":{"$error":"#REF!"}},{"$f":"IF(Stock!#REF!<>\"\",Stock!#REF!,\"\")","v":{"$error":"#REF!"}},{"$f":"IF(Stock!#REF!<>\"\",SUM(Stock!#REF!,Stock!#REF!,Stock!#REF!),\"\")","v":{"$error":"#REF!"}},{"$f":"IF(Stock!#REF!<>\"\",#REF!*(1+Pilotage!$M$20),\"\")","v":{"$error":"#REF!"}},null,{"$f":"IF(Stock!#REF!<>\"\",IF(Stock!#REF!>0,Stock!#REF!/Stock!#REF!,0),\"\")","v":{"$error":"#REF!"}},{"$f":"IF(Stock!#REF!<>\"\",E319*Pilotage!$D$15,\"\")","v":{"$error":"#REF!"}},{"$f":"IF(Stock!#REF!<>\"\",IF(Stock!#REF!>0,Stock!#REF!,0),\"\")","v":{"$error":"#REF!"}},{"$f":"IF(Stock!#REF!<>\"\",Pilotage!$M$27,\"\")","v":{"$error":"#REF!"}},{"$f":"IF(Stock!#REF!<>\"\",ROUND(Stock!#REF!*J319,0),\"\")","v":{"$error":"#REF!"}},{"$f":"IF(Stock!#REF!<>\"\",$H319*K319,\"\")","v":{"$error":"#REF!"}},{"$f":"IF(Stock!#REF!<>\"\",Pilotage!N$27,\"\")","v":{"$error":"#REF!"}},{"$f":"IF(Stock!#REF!<>\"\",ROUND(K319*M319,0),\"\")","v":{"$error":"#REF!"}},{"$f":"IF(Stock!#REF!<>\"\",$H319*N319,\"\")","v":{"$error":"#REF!"}},{"$f":"IF(Stock!#REF!<>\"\",Pilotage!O$27,\"\")","v":{"$error":"#REF!"}},{"$f":"IF(Stock!#REF!<>\"\",ROUND(K319*P319,0),\"\")","v":{"$error":"#REF!"}},{"$f":"IF(Stock!#REF!<>\"\",$H319*Q319,\"\")","v":{"$error":"#REF!"}},{"$f":"IF(Stock!#REF!<>\"\",Pilotage!P$27,\"\")","v":{"$error":"#REF!"}},{"$f":"IF(Stock!#REF!<>\"\",ROUND(Q319*S319,0),\"\")","v":{"$error":"#REF!"}},{"$f":"IF(Stock!#REF!<>\"\",$H319*T319,\"\")","v":{"$error":"#REF!"}},{"$f":"IF(Stock!#REF!<>\"\",Pilotage!Q$27,\"\")","v":{"$error":"#REF!"}},{"$f":"IF(Stock!#REF!<>\"\",ROUND(T319*V319,0),\"\")","v":{"$error":"#REF!"}},{"$f":"IF(Stock!#REF!<>\"\",$H319*W319,\"\")","v":{"$error":"#REF!"}},{"$f":"IF(Stock!#REF!<>\"\",Pilotage!R$27,\"\")","v":{"$error":"#REF!"}},{"$f":"IF(Stock!#REF!<>\"\",ROUND(W319*Y319,0),\"\")","v":{"$error":"#REF!"}},{"$f":"IF(Stock!#REF!<>\"\",$H319*Z319,\"\")","v":{"$error":"#REF!"}}]
[{"$f":"IF(Stock!#REF!<>\"\",Stock!#REF!,\"\")","v":{"$error":"#REF!"}},{"$f":"IF(Stock!#REF!<>\"\",Stock!#REF!,\"\")","v":{"$error":"#REF!"}},{"$f":"IF(Stock!#REF!<>\"\",Stock!#REF!,\"\")","v":{"$error":"#REF!"}},{"$f":"IF(Stock!#REF!<>\"\",SUM(Stock!#REF!,Stock!#REF!,Stock!#REF!),\"\")","v":{"$error":"#REF!"}},{"$f":"IF(Stock!#REF!<>\"\",#REF!*(1+Pilotage!$M$20),\"\")","v":{"$error":"#REF!"}},null,{"$f":"IF(Stock!#REF!<>\"\",IF(Stock!#REF!>0,Stock!#REF!/Stock!#REF!,0),\"\")","v":{"$error":"#REF!"}},{"$f":"IF(Stock!#REF!<>\"\",E320*Pilotage!$D$15,\"\")","v":{"$error":"#REF!"}},{"$f":"IF(Stock!#REF!<>\"\",IF(Stock!#REF!>0,Stock!#REF!,0),\"\")","v":{"$error":"#REF!"}},{"$f":"IF(Stock!#REF!<>\"\",Pilotage!$M$27,\"\")","v":{"$error":"#REF!"}},{"$f":"IF(Stock!#REF!<>\"\",ROUND(Stock!#REF!*J320,0),\"\")","v":{"$error":"#REF!"}},{"$f":"IF(Stock!#REF!<>\"\",$H320*K320,\"\")","v":{"$error":"#REF!"}},{"$f":"IF(Stock!#REF!<>\"\",Pilotage!N$27,\"\")","v":{"$error":"#REF!"}},{"$f":"IF(Stock!#REF!<>\"\",ROUND(K320*M320,0),\"\")","v":{"$error":"#REF!"}},{"$f":"IF(Stock!#REF!<>\"\",$H320*N320,\"\")","v":{"$error":"#REF!"}},{"$f":"IF(Stock!#REF!<>\"\",Pilotage!O$27,\"\")","v":{"$error":"#REF!"}},{"$f":"IF(Stock!#REF!<>\"\",ROUND(K320*P320,0),\"\")","v":{"$error":"#REF!"}},{"$f":"IF(Stock!#REF!<>\"\",$H320*Q320,\"\")","v":{"$error":"#REF!"}},{"$f":"IF(Stock!#REF!<>\"\",Pilotage!P$27,\"\")","v":{"$error":"#REF!"}},{"$f":"IF(Stock!#REF!<>\"\",ROUND(Q320*S320,0),\"\")","v":{"$error":"#REF!"}},{"$f":"IF(Stock!#REF!<>\"\",$H320*T320,\"\")","v":{"$error":"#REF!"}},{"$f":"IF(Stock!#REF!<>\"\",Pilotage!Q$27,\"\")","v":{"$error":"#REF!"}},{"$f":"IF(Stock!#REF!<>\"\",ROUND(T320*V320,0),\"\")","v":{"$error":"#REF!"}},{"$f":"IF(Stock!#REF!<>\"\",$H320*W320,\"\")","v":{"$error":"#REF!"}},{"$f":"IF(Stock!#REF!<>\"\",Pilotage!R$27,\"\")","v":{"$error":"#REF!"}},{"$f":"IF(Stock!#REF!<>\"\",ROUND(W320*Y320,0),\"\")","v":{"$error":"#REF!"}},{"$f":"IF(Stock!#REF!<>\"\",$H320*Z320,\"\")","v":{"$error":"#REF!"}}]
[{"$f":"IF(Stock!#REF!<>\"\",Stock!#REF!,\"\")","v":{"$error":"#REF!"}},{"$f":"IF(Stock!#REF!<>\"\",Stock!#REF!,\"\")","v":{"$error":"#REF!"}},{"$f":"IF(Stock!#REF!<>\"\",Stock!#REF!,\"\")","v":{"$error":"#REF!"}},{"$f":"IF(Stock!#REF!<>\"\",SUM(Stock!#REF!,Stock!#REF!,Stock!#REF!),\"\")","v":{"$error":"#REF!"}},{"$f":"IF(Stock!#REF!<>\"\",#REF!*(1+Pilotage!$M$20),\"\")","v":{"$error":"#REF!"}},null,{"$f":"IF(Stock!#REF!<>\"\",IF(Stock!#REF!>0,Stock!#REF!/Stock!#REF!,0),\"\")","v":{"$error":"#REF!"}},{"$f":"IF(Stock!#REF!<>\"\",E321*Pilotage!$D$15,\"\")","v":{"$error":"#REF!"}},{"$f":"IF(Stock!#REF!<>\"\",IF(Stock!#REF!>0,Stock!#REF!,0),\"\")","v":{"$error":"#REF!"}},{"$f":"IF(Stock!#REF!<>\"\",Pilotage!$M$27,\"\")","v":{"$error":"#REF!"}},{"$f":"IF(Stock!#REF!<>\"\",ROUND(Stock!#REF!*J321,0),\"\")","v":{"$error":"#REF!"}},{"$f":"IF(Stock!#REF!<>\"\",$H321*K321,\"\")","v":{"$error":"#REF!"}},{"$f":"IF(Stock!#REF!<>\"\",Pilotage!N$27,\"\")","v":{"$error":"#REF!"}},{"$f":"IF(Stock!#REF!<>\"\",ROUND(K321*M321,0),\"\")","v":{"$error":"#REF!"}},{"$f":"IF(Stock!#REF!<>\"\",$H321*N321,\"\")","v":{"$error":"#REF!"}},{"$f":"IF(Stock!#REF!<>\"\",Pilotage!O$27,\"\")","v":{"$error":"#REF!"}},{"$f":"IF(Stock!#REF!<>\"\",ROUND(K321*P321,0),\"\")","v":{"$error":"#REF!"}},{"$f":"IF(Stock!#REF!<>\"\",$H321*Q321,\"\")","v":{"$error":"#REF!"}},{"$f":"IF(Stock!#REF!<>\"\",Pilotage!P$27,\"\")","v":{"$error":"#REF!"}},{"$f":"IF(Stock!#REF!<>\"\",ROUND(Q321*S321,0),\"\")","v":{"$error":"#REF!"}},{"$f":"IF(Stock!#REF!<>\"\",$H321*T321,\"\")","v":{"$error":"#REF!"}},{"$f":"IF(Stock!#REF!<>\"\",Pilotage!Q$27,\"\")","v":{"$error":"#REF!"}},{"$f":"IF(Stock!#REF!<>\"\",ROUND(T321*V321,0),\"\")","v":{"$error":"#REF!"}},{"$f":"IF(Stock!#REF!<>\"\",$H321*W321,\"\")","v":{"$error":"#REF!"}},{"$f":"IF(Stock!#REF!<>\"\",Pilotage!R$27,\"\")","v":{"$error":"#REF!"}},{"$f":"IF(Stock!#REF!<>\"\",ROUND(W321*Y321,0),\"\")","v":{"$error":"#REF!"}},{"$f":"IF(Stock!#REF!<>\"\",$H321*Z321,\"\")","v":{"$error":"#REF!"}}]
[{"$f":"IF(Stock!#REF!<>\"\",Stock!#REF!,\"\")","v":{"$error":"#REF!"}},{"$f":"IF(Stock!#REF!<>\"\",Stock!#REF!,\"\")","v":{"$error":"#REF!"}},{"$f":"IF(Stock!#REF!<>\"\",Stock!#REF!,\"\")","v":{"$error":"#REF!"}},{"$f":"IF(Stock!#REF!<>\"\",SUM(Stock!#REF!,Stock!#REF!,Stock!#REF!),\"\")","v":{"$error":"#REF!"}},{"$f":"IF(Stock!#REF!<>\"\",#REF!*(1+Pilotage!$M$20),\"\")","v":{"$error":"#REF!"}},null,{"$f":"IF(Stock!#REF!<>\"\",IF(Stock!#REF!>0,Stock!#REF!/Stock!#REF!,0),\"\")","v":{"$error":"#REF!"}},{"$f":"IF(Stock!#REF!<>\"\",E322*Pilotage!$D$15,\"\")","v":{"$error":"#REF!"}},{"$f":"IF(Stock!#REF!<>\"\",IF(Stock!#REF!>0,Stock!#REF!,0),\"\")","v":{"$error":"#REF!"}},{"$f":"IF(Stock!#REF!<>\"\",Pilotage!$M$27,\"\")","v":{"$error":"#REF!"}},{"$f":"IF(Stock!#REF!<>\"\",ROUND(Stock!#REF!*J322,0),\"\")","v":{"$error":"#REF!"}},{"$f":"IF(Stock!#REF!<>\"\",$H322*K322,\"\")","v":{"$error":"#REF!"}},{"$f":"IF(Stock!#REF!<>\"\",Pilotage!N$27,\"\")","v":{"$error":"#REF!"}},{"$f":"IF(Stock!#REF!<>\"\",ROUND(K322*M322,0),\"\")","v":{"$error":"#REF!"}},{"$f":"IF(Stock!#REF!<>\"\",$H322*N322,\"\")","v":{"$error":"#REF!"}},{"$f":"IF(Stock!#REF!<>\"\",Pilotage!O$27,\"\")","v":{"$error":"#REF!"}},{"$f":"IF(Stock!#REF!<>\"\",ROUND(K322*P322,0),\"\")","v":{"$error":"#REF!"}},{"$f":"IF(Stock!#REF!<>\"\",$H322*Q322,\"\")","v":{"$error":"#REF!"}},{"$f":"IF(Stock!#REF!<>\"\",Pilotage!P$27,\"\")","v":{"$error":"#REF!"}},{"$f":"IF(Stock!#REF!<>\"\",ROUND(Q322*S322,0),\"\")","v":{"$error":"#REF!"}},{"$f":"IF(Stock!#REF!<>\"\",$H322*T322,\"\")","v":{"$error":"#REF!"}},{"$f":"IF(Stock!#REF!<>\"\",Pilotage!Q$27,\"\")","v":{"$error":"#REF!"}},{"$f":"IF(Stock!#REF!<>\"\",ROUND(T322*V322,0),\"\")","v":{"$error":"#REF!"}},{"$f":"IF(Stock!#REF!<>\"\",$H322*W322,\"\")","v":{"$error":"#REF!"}},{"$f":"IF(Stock!#REF!<>\"\",Pilotage!R$27,\"\")","v":{"$error":"#REF!"}},{"$f":"IF(Stock!#REF!<>\"\",ROUND(W322*Y322,0),\"\")","v":{"$error":"#REF!"}},{"$f":"IF(Stock!#REF!<>\"\",$H322*Z322,\"\")","v":{"$error":"#REF!"}}]
[{"$f":"IF(Stock!#REF!<>\"\",Stock!#REF!,\"\")","v":{"$error":"#REF!"}},{"$f":"IF(Stock!#REF!<>\"\",Stock!#REF!,\"\")","v":{"$error":"#REF!"}},{"$f":"IF(Stock!#REF!<>\"\",Stock!#REF!,\"\")","v":{"$error":"#REF!"}},{"$f":"IF(Stock!#REF!<>\"\",SUM(Stock!#REF!,Stock!#REF!,Stock!#REF!),\"\")","v":{"$error":"#REF!"}},{"$f":"IF(Stock!#REF!<>\"\",#REF!*(1+Pilotage!$M$20),\"\")","v":{"$error":"#REF!"}},null,{"$f":"IF(Stock!#REF!<>\"\",IF(Stock!#REF!>0,Stock!#REF!/Stock!#REF!,0),\"\")","v":{"$error":"#REF!"}},{"$f":"IF(Stock!#REF!<>\"\",E323*Pilotage!$D$15,\"\")","v":{"$error":"#REF!"}},{"$f":"IF(Stock!#REF!<>\"\",IF(Stock!#REF!>0,Stock!#REF!,0),\"\")","v":{"$error":"#REF!"}},{"$f":"IF(Stock!#REF!<>\"\",Pilotage!$M$27,\"\")","v":{"$error":"#REF!"}},{"$f":"IF(Stock!#REF!<>\"\",ROUND(Stock!#REF!*J323,0),\"\")","v":{"$error":"#REF!"}},{"$f":"IF(Stock!#REF!<>\"\",$H323*K323,\"\")","v":{"$error":"#REF!"}},{"$f":"IF(Stock!#REF!<>\"\",Pilotage!N$27,\"\")","v":{"$error":"#REF!"}},{"$f":"IF(Stock!#REF!<>\"\",ROUND(K323*M323,0),\"\")","v":{"$error":"#REF!"}},{"$f":"IF(Stock!#REF!<>\"\",$H323*N323,\"\")","v":{"$error":"#REF!"}},{"$f":"IF(Stock!#REF!<>\"\",Pilotage!O$27,\"\")","v":{"$error":"#REF!"}},{"$f":"IF(Stock!#REF!<>\"\",ROUND(K323*P323,0),\"\")","v":{"$error":"#REF!"}},{"$f":"IF(Stock!#REF!<>\"\",$H323*Q323,\"\")","v":{"$error":"#REF!"}},{"$f":"IF(Stock!#REF!<>\"\",Pilotage!P$27,\"\")","v":{"$error":"#REF!"}},{"$f":"IF(Stock!#REF!<>\"\",ROUND(Q323*S323,0),\"\")","v":{"$error":"#REF!"}},{"$f":"IF(Stock!#REF!<>\"\",$H323*T323,\"\")","v":{"$error":"#REF!"}},{"$f":"IF(Stock!#REF!<>\"\",Pilotage!Q$27,\"\")","v":{"$error":"#REF!"}},{"$f":"IF(Stock!#REF!<>\"\",ROUND(T323*V323,0),\"\")","v":{"$error":"#REF!"}},{"$f":"IF(Stock!#REF!<>\"\",$H323*W323,\"\")","v":{"$error":"#REF!"}},{"$f":"IF(Stock!#REF!<>\"\",Pilotage!R$27,\"\")","v":{"$error":"#REF!"}},{"$f":"IF(Stock!#REF!<>\"\",ROUND(W323*Y323,0),\"\")","v":{"$error":"#REF!"}},{"$f":"IF(Stock!#REF!<>\"\",$H323*Z323,\"\")","v":{"$error":"#REF!"}}]
[{"$f":"IF(Stock!#REF!<>\"\",Stock!#REF!,\"\")","v":{"$error":"#REF!"}},{"$f":"IF(Stock!#REF!<>\"\",Stock!#REF!,\"\")","v":{"$error":"#REF!"}},{"$f":"IF(Stock!#REF!<>\"\",Stock!#REF!,\"\")","v":{"$error":"#REF!"}},{"$f":"IF(Stock!#REF!<>\"\",SUM(Stock!#REF!,Stock!#REF!,Stock!#REF!),\"\")","v":{"$error":"#REF!"}},{"$f":"IF(Stock!#REF!<>\"\",#REF!*(1+Pilotage!$M$20),\"\")","v":{"$error":"#REF!"}},null,{"$f":"IF(Stock!#REF!<>\"\",IF(Stock!#REF!>0,Stock!#REF!/Stock!#REF!,0),\"\")","v":{"$error":"#REF!"}},{"$f":"IF(Stock!#REF!<>\"\",E324*Pilotage!$D$15,\"\")","v":{"$error":"#REF!"}},{"$f":"IF(Stock!#REF!<>\"\",IF(Stock!#REF!>0,Stock!#REF!,0),\"\")","v":{"$error":"#REF!"}},{"$f":"IF(Stock!#REF!<>\"\",Pilotage!$M$27,\"\")","v":{"$error":"#REF!"}},{"$f":"IF(Stock!#REF!<>\"\",ROUND(Stock!#REF!*J324,0),\"\")","v":{"$error":"#REF!"}},{"$f":"IF(Stock!#REF!<>\"\",$H324*K324,\"\")","v":{"$error":"#REF!"}},{"$f":"IF(Stock!#REF!<>\"\",Pilotage!N$27,\"\")","v":{"$error":"#REF!"}},{"$f":"IF(Stock!#REF!<>\"\",ROUND(K324*M324,0),\"\")","v":{"$error":"#REF!"}},{"$f":"IF(Stock!#REF!<>\"\",$H324*N324,\"\")","v":{"$error":"#REF!"}},{"$f":"IF(Stock!#REF!<>\"\",Pilotage!O$27,\"\")","v":{"$error":"#REF!"}},{"$f":"IF(Stock!#REF!<>\"\",ROUND(K324*P324,0),\"\")","v":{"$error":"#REF!"}},{"$f":"IF(Stock!#REF!<>\"\",$H324*Q324,\"\")","v":{"$error":"#REF!"}},{"$f":"IF(Stock!#REF!<>\"\",Pilotage!P$27,\"\")","v":{"$error":"#REF!"}},{"$f":"IF(Stock!#REF!<>\"\",ROUND(Q324*S324,0),\"\")","v":{"$error":"#REF!"}},{"$f":"IF(Stock!#REF!<>\"\",$H324*T324,\"\")","v":{"$error":"#REF!"}},{"$f":"IF(Stock!#REF!<>\"\",Pilotage!Q$27,\"\")","v":{"$error":"#REF!"}},{"$f":"IF(Stock!#REF!<>\"\",ROUND(T324*V324,0),\"\")","v":{"$error":"#REF!"}},{"$f":"IF(Stock!#REF!<>\"\",$H324*W324,\"\")","v":{"$error":"#REF!"}},{"$f":"IF(Stock!#REF!<>\"\",Pilotage!R$27,\"\")","v":{"$error":"#REF!"}},{"$f":"IF(Stock!#REF!<>\"\",ROUND(W324*Y324,0),\"\")","v":{"$error":"#REF!"}},{"$f":"IF(Stock!#REF!<>\"\",$H324*Z324,\"\")","v":{"$error":"#REF!"}}]
[{"$f":"IF(Stock!#REF!<>\"\",Stock!#REF!,\"\")","v":{"$error":"#REF!"}},{"$f":"IF(Stock!#REF!<>\"\",Stock!#REF!,\"\")","v":{"$error":"#REF!"}},{"$f":"IF(Stock!#REF!<>\"\",Stock!#REF!,\"\")","v":{"$error":"#REF!"}},{"$f":"IF(Stock!#REF!<>\"\",SUM(Stock!#REF!,Stock!#REF!,Stock!#REF!),\"\")","v":{"$error":"#REF!"}},{"$f":"IF(Stock!#REF!<>\"\",#REF!*(1+Pilotage!$M$20),\"\")","v":{"$error":"#REF!"}},null,{"$f":"IF(Stock!#REF!<>\"\",IF(Stock!#REF!>0,Stock!#REF!/Stock!#REF!,0),\"\")","v":{"$error":"#REF!"}},{"$f":"IF(Stock!#REF!<>\"\",E325*Pilotage!$D$15,\"\")","v":{"$error":"#REF!"}},{"$f":"IF(Stock!#REF!<>\"\",IF(Stock!#REF!>0,Stock!#REF!,0),\"\")","v":{"$error":"#REF!"}},{"$f":"IF(Stock!#REF!<>\"\",Pilotage!$M$27,\"\")","v":{"$error":"#REF!"}},{"$f":"IF(Stock!#REF!<>\"\",ROUND(Stock!#REF!*J325,0),\"\")","v":{"$error":"#REF!"}},{"$f":"IF(Stock!#REF!<>\"\",$H325*K325,\"\")","v":{"$error":"#REF!"}},{"$f":"IF(Stock!#REF!<>\"\",Pilotage!N$27,\"\")","v":{"$error":"#REF!"}},{"$f":"IF(Stock!#REF!<>\"\",ROUND(K325*M325,0),\"\")","v":{"$error":"#REF!"}},{"$f":"IF(Stock!#REF!<>\"\",$H325*N325,\"\")","v":{"$error":"#REF!"}},{"$f":"IF(Stock!#REF!<>\"\",Pilotage!O$27,\"\")","v":{"$error":"#REF!"}},{"$f":"IF(Stock!#REF!<>\"\",ROUND(K325*P325,0),\"\")","v":{"$error":"#REF!"}},{"$f":"IF(Stock!#REF!<>\"\",$H325*Q325,\"\")","v":{"$error":"#REF!"}},{"$f":"IF(Stock!#REF!<>\"\",Pilotage!P$27,\"\")","v":{"$error":"#REF!"}},{"$f":"IF(Stock!#REF!<>\"\",ROUND(Q325*S325,0),\"\")","v":{"$error":"#REF!"}},{"$f":"IF(Stock!#REF!<>\"\",$H325*T325,\"\")","v":{"$error":"#REF!"}},{"$f":"IF(Stock!#REF!<>\"\",Pilotage!Q$27,\"\")","v":{"$error":"#REF!"}},{"$f":"IF(Stock!#REF!<>\"\",ROUND(T325*V325,0),\"\")","v":{"$error":"#REF!"}},{"$f":"IF(Stock!#REF!<>\"\",$H325*W325,\"\")","v":{"$error":"#REF!"}},{"$f":"IF(Stock!#REF!<>\"\",Pilotage!R$27,\"\")","v":{"$error":"#REF!"}},{"$f":"IF(Stock!#REF!<>\"\",ROUND(W325*Y325,0),\"\")","v":{"$error":"#REF!"}},{"$f":"IF(Stock!#REF!<>\"\",$H325*Z325,\"\")","v":{"$error":"#REF!"}}]
[{"$f":"IF(Stock!#REF!<>\"\",Stock!#REF!,\"\")","v":{"$error":"#REF!"}},{"$f":"IF(Stock!#REF!<>\"\",Stock!#REF!,\"\")","v":{"$error":"#REF!"}},{"$f":"IF(Stock!#REF!<>\"\",Stock!#REF!,\"\")","v":{"$error":"#REF!"}},{"$f":"IF(Stock!#REF!<>\"\",SUM(Stock!#REF!,Stock!#REF!,Stock!#REF!),\"\")","v":{"$error":"#REF!"}},{"$f":"IF(Stock!#REF!<>\"\",#REF!*(1+Pilotage!$M$20),\"\")","v":{"$error":"#REF!"}},null,{"$f":"IF(Stock!#REF!<>\"\",IF(Stock!#REF!>0,Stock!#REF!/Stock!#REF!,0),\"\")","v":{"$error":"#REF!"}},{"$f":"IF(Stock!#REF!<>\"\",E326*Pilotage!$D$15,\"\")","v":{"$error":"#REF!"}},{"$f":"IF(Stock!#REF!<>\"\",IF(Stock!#REF!>0,Stock!#REF!,0),\"\")","v":{"$error":"#REF!"}},{"$f":"IF(Stock!#REF!<>\"\",Pilotage!$M$27,\"\")","v":{"$error":"#REF!"}},{"$f":"IF(Stock!#REF!<>\"\",ROUND(Stock!#REF!*J326,0),\"\")","v":{"$error":"#REF!"}},{"$f":"IF(Stock!#REF!<>\"\",$H326*K326,\"\")","v":{"$error":"#REF!"}},{"$f":"IF(Stock!#REF!<>\"\",Pilotage!N$27,\"\")","v":{"$error":"#REF!"}},{"$f":"IF(Stock!#REF!<>\"\",ROUND(K326*M326,0),\"\")","v":{"$error":"#REF!"}},{"$f":"IF(Stock!#REF!<>\"\",$H326*N326,\"\")","v":{"$error":"#REF!"}},{"$f":"IF(Stock!#REF!<>\"\",Pilotage!O$27,\"\")","v":{"$error":"#REF!"}},{"$f":"IF(Stock!#REF!<>\"\",ROUND(K326*P326,0),\"\")","v":{"$error":"#REF!"}},{"$f":"IF(Stock!#REF!<>\"\",$H326*Q326,\"\")","v":{"$error":"#REF!"}},{"$f":"IF(Stock!#REF!<>\"\",Pilotage!P$27,\"\")","v":{"$error":"#REF!"}},{"$f":"IF(Stock!#REF!<>\"\",ROUND(Q326*S326,0),\"\")","v":{"$error":"#REF!"}},{"$f":"IF(Stock!#REF!<>\"\",$H326*T326,\"\")","v":{"$error":"#REF!"}},{"$f":"IF(Stock!#REF!<>\"\",Pilotage!Q$27,\"\")","v":{"$error":"#REF!"}},{"$f":"IF(Stock!#REF!<>\"\",ROUND(T326*V326,0),\"\")","v":{"$error":"#REF!"}},{"$f":"IF(Stock!#REF!<>\"\",$H326*W326,\"\")","v":{"$error":"#REF!"}},{"$f":"IF(Stock!#REF!<>\"\",Pilotage!R$27,\"\")","v":{"$error":"#REF!"}},{"$f":"IF(Stock!#REF!<>\"\",ROUND(W326*Y326,0),\"\")","v":{"$error":"#REF!"}},{"$f":"IF(Stock!#REF!<>\"\",$H326*Z326,\"\")","v":{"$error":"#REF!"}}]
[{"$f":"IF(Stock!#REF!<>\"\",Stock!#REF!,\"\")","v":{"$error":"#REF!"}},{"$f":"IF(Stock!#REF!<>\"\",Stock!#REF!,\"\")","v":{"$error":"#REF!"}},{"$f":"IF(Stock!#REF!<>\"\",Stock!#REF!,\"\")","v":{"$error":"#REF!"}},{"$f":"IF(Stock!#REF!<>\"\",SUM(Stock!#REF!,Stock!#REF!,Stock!#REF!),\"\")","v":{"$error":"#REF!"}},{"$f":"IF(Stock!#REF!<>\"\",#REF!*(1+Pilotage!$M$20),\"\")","v":{"$error":"#REF!"}},null,{"$f":"IF(Stock!#REF!<>\"\",IF(Stock!#REF!>0,Stock!#REF!/Stock!#REF!,0),\"\")","v":{"$error":"#REF!"}},{"$f":"IF(Stock!#REF!<>\"\",E327*Pilotage!$D$15,\"\")","v":{"$error":"#REF!"}},{"$f":"IF(Stock!#REF!<>\"\",IF(Stock!#REF!>0,Stock!#REF!,0),\"\")","v":{"$error":"#REF!"}},{"$f":"IF(Stock!#REF!<>\"\",Pilotage!$M$27,\"\")","v":{"$error":"#REF!"}},{"$f":"IF(Stock!#REF!<>\"\",ROUND(Stock!#REF!*J327,0),\"\")","v":{"$error":"#REF!"}},{"$f":"IF(Stock!#REF!<>\"\",$H327*K327,\"\")","v":{"$error":"#REF!"}},{"$f":"IF(Stock!#REF!<>\"\",Pilotage!N$27,\"\")","v":{"$error":"#REF!"}},{"$f":"IF(Stock!#REF!<>\"\",ROUND(K327*M327,0),\"\")","v":{"$error":"#REF!"}},{"$f":"IF(Stock!#REF!<>\"\",$H327*N327,\"\")","v":{"$error":"#REF!"}},{"$f":"IF(Stock!#REF!<>\"\",Pilotage!O$27,\"\")","v":{"$error":"#REF!"}},{"$f":"IF(Stock!#REF!<>\"\",ROUND(K327*P327,0),\"\")","v":{"$error":"#REF!"}},{"$f":"IF(Stock!#REF!<>\"\",$H327*Q327,\"\")","v":{"$error":"#REF!"}},{"$f":"IF(Stock!#REF!<>\"\",Pilotage!P$27,\"\")","v":{"$error":"#REF!"}},{"$f":"IF(Stock!#REF!<>\"\",ROUND(Q327*S327,0),\"\")","v":{"$error":"#REF!"}},{"$f":"IF(Stock!#REF!<>\"\",$H327*T327,\"\")","v":{"$error":"#REF!"}},{"$f":"IF(Stock!#REF!<>\"\",Pilotage!Q$27,\"\")","v":{"$error":"#REF!"}},{"$f":"IF(Stock!#REF!<>\"\",ROUND(T327*V327,0),\"\")","v":{"$error":"#REF!"}},{"$f":"IF(Stock!#REF!<>\"\",$H327*W327,\"\")","v":{"$error":"#REF!"}},{"$f":"IF(Stock!#REF!<>\"\",Pilotage!R$27,\"\")","v":{"$error":"#REF!"}},{"$f":"IF(Stock!#REF!<>\"\",ROUND(W327*Y327,0),\"\")","v":{"$error":"#REF!"}},{"$f":"IF(Stock!#REF!<>\"\",$H327*Z327,\"\")","v":{"$error":"#REF!"}}]
[{"$f":"IF(Stock!#REF!<>\"\",Stock!#REF!,\"\")","v":{"$error":"#REF!"}},{"$f":"IF(Stock!#REF!<>\"\",Stock!#REF!,\"\")","v":{"$error":"#REF!"}},{"$f":"IF(Stock!#REF!<>\"\",Stock!#REF!,\"\")","v":{"$error":"#REF!"}},{"$f":"IF(Stock!#REF!<>\"\",SUM(Stock!#REF!,Stock!#REF!,Stock!#REF!),\"\")","v":{"$error":"#REF!"}},{"$f":"IF(Stock!#REF!<>\"\",#REF!*(1+Pilotage!$M$20),\"\")","v":{"$error":"#REF!"}},null,{"$f":"IF(Stock!#REF!<>\"\",IF(Stock!#REF!>0,Stock!#REF!/Stock!#REF!,0),\"\")","v":{"$error":"#REF!"}},{"$f":"IF(Stock!#REF!<>\"\",E328*Pilotage!$D$15,\"\")","v":{"$error":"#REF!"}},{"$f":"IF(Stock!#REF!<>\"\",IF(Stock!#REF!>0,Stock!#REF!,0),\"\")","v":{"$error":"#REF!"}},{"$f":"IF(Stock!#REF!<>\"\",Pilotage!$M$27,\"\")","v":{"$error":"#REF!"}},{"$f":"IF(Stock!#REF!<>\"\",ROUND(Stock!#REF!*J328,0),\"\")","v":{"$error":"#REF!"}},{"$f":"IF(Stock!#REF!<>\"\",$H328*K328,\"\")","v":{"$error":"#REF!"}},{"$f":"IF(Stock!#REF!<>\"\",Pilotage!N$27,\"\")","v":{"$error":"#REF!"}},{"$f":"IF(Stock!#REF!<>\"\",ROUND(K328*M328,0),\"\")","v":{"$error":"#REF!"}},{"$f":"IF(Stock!#REF!<>\"\",$H328*N328,\"\")","v":{"$error":"#REF!"}},{"$f":"IF(Stock!#REF!<>\"\",Pilotage!O$27,\"\")","v":{"$error":"#REF!"}},{"$f":"IF(Stock!#REF!<>\"\",ROUND(K328*P328,0),\"\")","v":{"$error":"#REF!"}},{"$f":"IF(Stock!#REF!<>\"\",$H328*Q328,\"\")","v":{"$error":"#REF!"}},{"$f":"IF(Stock!#REF!<>\"\",Pilotage!P$27,\"\")","v":{"$error":"#REF!"}},{"$f":"IF(Stock!#REF!<>\"\",ROUND(Q328*S328,0),\"\")","v":{"$error":"#REF!"}},{"$f":"IF(Stock!#REF!<>\"\",$H328*T328,\"\")","v":{"$error":"#REF!"}},{"$f":"IF(Stock!#REF!<>\"\",Pilotage!Q$27,\"\")","v":{"$error":"#REF!"}},{"$f":"IF(Stock!#REF!<>\"\",ROUND(T328*V328,0),\"\")","v":{"$error":"#REF!"}},{"$f":"IF(Stock!#REF!<>\"\",$H328*W328,\"\")","v":{"$error":"#REF!"}},{"$f":"IF(Stock!#REF!<>\"\",Pilotage!R$27,\"\")","v":{"$error":"#REF!"}},{"$f":"IF(Stock!#REF!<>\"\",ROUND(W328*Y328,0),\"\")","v":{"$error":"#REF!"}},{"$f":"IF(Stock!#REF!<>\"\",$H328*Z328,\"\")","v":{"$error":"#REF!"}}]
[{"$f":"IF(Stock!#REF!<>\"\",Stock!#REF!,\"\")","v":{"$error":"#REF!"}},{"$f":"IF(Stock!#REF!<>\"\",Stock!#REF!,\"\")","v":{"$error":"#REF!"}},{"$f":"IF(Stock!#REF!<>\"\",Stock!#REF!,\"\")","v":{"$error":"#REF!"}},{"$f":"IF(Stock!#REF!<>\"\",SUM(Stock!#REF!,Stock!#REF!,Stock!#REF!),\"\")","v":{"$error":"#REF!"}},{"$f":"IF(Stock!#REF!<>\"\",#REF!*(1+Pilotage!$M$20),\"\")","v":{"$error":"#REF!"}},null,{"$f":"IF(Stock!#REF!<>\"\",IF(Stock!#REF!>0,Stock!#REF!/Stock!#REF!,0),\"\")","v":{"$error":"#REF!"}},{"$f":"IF(Stock!#REF!<>\"\",E329*Pilotage!$D$15,\"\")","v":{"$error":"#REF!"}},{"$f":"IF(Stock!#REF!<>\"\",IF(Stock!#REF!>0,Stock!#REF!,0),\"\")","v":{"$error":"#REF!"}},{"$f":"IF(Stock!#REF!<>\"\",Pilotage!$M$27,\"\")","v":{"$error":"#REF!"}},{"$f":"IF(Stock!#REF!<>\"\",ROUND(Stock!#REF!*J329,0),\"\")","v":{"$error":"#REF!"}},{"$f":"IF(Stock!#REF!<>\"\",$H329*K329,\"\")","v":{"$error":"#REF!"}},{"$f":"IF(Stock!#REF!<>\"\",Pilotage!N$27,\"\")","v":{"$error":"#REF!"}},{"$f":"IF(Stock!#REF!<>\"\",ROUND(K329*M329,0),\"\")","v":{"$error":"#REF!"}},{"$f":"IF(Stock!#REF!<>\"\",$H329*N329,\"\")","v":{"$error":"#REF!"}},{"$f":"IF(Stock!#REF!<>\"\",Pilotage!O$27,\"\")","v":{"$error":"#REF!"}},{"$f":"IF(Stock!#REF!<>\"\",ROUND(K329*P329,0),\"\")","v":{"$error":"#REF!"}},{"$f":"IF(Stock!#REF!<>\"\",$H329*Q329,\"\")","v":{"$error":"#REF!"}},{"$f":"IF(Stock!#REF!<>\"\",Pilotage!P$27,\"\")","v":{"$error":"#REF!"}},{"$f":"IF(Stock!#REF!<>\"\",ROUND(Q329*S329,0),\"\")","v":{"$error":"#REF!"}},{"$f":"IF(Stock!#REF!<>\"\",$H329*T329,\"\")","v":{"$error":"#REF!"}},{"$f":"IF(Stock!#REF!<>\"\",Pilotage!Q$27,\"\")","v":{"$error":"#REF!"}},{"$f":"IF(Stock!#REF!<>\"\",ROUND(T329*V329,0),\"\")","v":{"$error":"#REF!"}},{"$f":"IF(Stock!#REF!<>\"\",$H329*W329,\"\")","v":{"$error":"#REF!"}},{"$f":"IF(Stock!#REF!<>\"\",Pilotage!R$27,\"\")","v":{"$error":"#REF!"}},{"$f":"IF(Stock!#REF!<>\"\",ROUND(W329*Y329,0),\"\")","v":{"$error":"#REF!"}},{"$f":"IF(Stock!#REF!<>\"\",$H329*Z329,\"\")","v":{"$error":"#REF!"}}]
[{"$f":"IF(Stock!#REF!<>\"\",Stock!#REF!,\"\")","v":{"$error":"#REF!"}},{"$f":"IF(Stock!#REF!<>\"\",Stock!#REF!,\"\")","v":{"$error":"#REF!"}},{"$f":"IF(Stock!#REF!<>\"\",Stock!#REF!,\"\")","v":{"$error":"#REF!"}},{"$f":"IF(Stock!#REF!<>\"\",SUM(Stock!#REF!,Stock!#REF!,Stock!#REF!),\"\")","v":{"$error":"#REF!"}},{"$f":"IF(Stock!#REF!<>\"\",#REF!*(1+Pilotage!$M$20),\"\")","v":{"$error":"#REF!"}},null,{"$f":"IF(Stock!#REF!<>\"\",IF(Stock!#REF!>0,Stock!#REF!/Stock!#REF!,0),\"\")","v":{"$error":"#REF!"}},{"$f":"IF(Stock!#REF!<>\"\",E330*Pilotage!$D$15,\"\")","v":{"$error":"#REF!"}},{"$f":"IF(Stock!#REF!<>\"\",IF(Stock!#REF!>0,Stock!#REF!,0),\"\")","v":{"$error":"#REF!"}},{"$f":"IF(Stock!#REF!<>\"\",Pilotage!$M$27,\"\")","v":{"$error":"#REF!"}},{"$f":"IF(Stock!#REF!<>\"\",ROUND(Stock!#REF!*J330,0),\"\")","v":{"$error":"#REF!"}},{"$f":"IF(Stock!#REF!<>\"\",$H330*K330,\"\")","v":{"$error":"#REF!"}},{"$f":"IF(Stock!#REF!<>\"\",Pilotage!N$27,\"\")","v":{"$error":"#REF!"}},{"$f":"IF(Stock!#REF!<>\"\",ROUND(K330*M330,0),\"\")","v":{"$error":"#REF!"}},{"$f":"IF(Stock!#REF!<>\"\",$H330*N330,\"\")","v":{"$error":"#REF!"}},{"$f":"IF(Stock!#REF!<>\"\",Pilotage!O$27,\"\")","v":{"$error":"#REF!"}},{"$f":"IF(Stock!#REF!<>\"\",ROUND(K330*P330,0),\"\")","v":{"$error":"#REF!"}},{"$f":"IF(Stock!#REF!<>\"\",$H330*Q330,\"\")","v":{"$error":"#REF!"}},{"$f":"IF(Stock!#REF!<>\"\",Pilotage!P$27,\"\")","v":{"$error":"#REF!"}},{"$f":"IF(Stock!#REF!<>\"\",ROUND(Q330*S330,0),\"\")","v":{"$error":"#REF!"}},{"$f":"IF(Stock!#REF!<>\"\",$H330*T330,\"\")","v":{"$error":"#REF!"}},{"$f":"IF(Stock!#REF!<>\"\",Pilotage!Q$27,\"\")","v":{"$error":"#REF!"}},{"$f":"IF(Stock!#REF!<>\"\",ROUND(T330*V330,0),\"\")","v":{"$error":"#REF!"}},{"$f":"IF(Stock!#REF!<>\"\",$H330*W330,\"\")","v":{"$error":"#REF!"}},{"$f":"IF(Stock!#REF!<>\"\",Pilotage!R$27,\"\")","v":{"$error":"#REF!"}},{"$f":"IF(Stock!#REF!<>\"\",ROUND(W330*Y330,0),\"\")","v":{"$error":"#REF!"}},{"$f":"IF(Stock!#REF!<>\"\",$H330*Z330,\"\")","v":{"$error":"#REF!"}}]
[{"$f":"IF(Stock!#REF!<>\"\",Stock!#REF!,\"\")","v":{"$error":"#REF!"}},{"$f":"IF(Stock!#REF!<>\"\",Stock!#REF!,\"\")","v":{"$error":"#REF!"}},{"$f":"IF(Stock!#REF!<>\"\",Stock!#REF!,\"\")","v":{"$error":"#REF!"}},{"$f":"IF(Stock!#REF!<>\"\",SUM(Stock!#REF!,Stock!#REF!,Stock!#REF!),\"\")","v":{"$error":"#REF!"}},{"$f":"IF(Stock!#REF!<>\"\",#REF!*(1+Pilotage!$M$20),\"\")","v":{"$error":"#REF!"}},null,{"$f":"IF(Stock!#REF!<>\"\",IF(Stock!#REF!>0,Stock!#REF!/Stock!#REF!,0),\"\")","v":{"$error":"#REF!"}},{"$f":"IF(Stock!#REF!<>\"\",E331*Pilotage!$D$15,\"\")","v":{"$error":"#REF!"}},{"$f":"IF(Stock!#REF!<>\"\",IF(Stock!#REF!>0,Stock!#REF!,0),\"\")","v":{"$error":"#REF!"}},{"$f":"IF(Stock!#REF!<>\"\",Pilotage!$M$27,\"\")","v":{"$error":"#REF!"}},{"$f":"IF(Stock!#REF!<>\"\",ROUND(Stock!#REF!*J331,0),\"\")","v":{"$error":"#REF!"}},{"$f":"IF(Stock!#REF!<>\"\",$H331*K331,\"\")","v":{"$error":"#REF!"}},{"$f":"IF(Stock!#REF!<>\"\",Pilotage!N$27,\"\")","v":{"$error":"#REF!"}},{"$f":"IF(Stock!#REF!<>\"\",ROUND(K331*M331,0),\"\")","v":{"$error":"#REF!"}},{"$f":"IF(Stock!#REF!<>\"\",$H331*N331,\"\")","v":{"$error":"#REF!"}},{"$f":"IF(Stock!#REF!<>\"\",Pilotage!O$27,\"\")","v":{"$error":"#REF!"}},{"$f":"IF(Stock!#REF!<>\"\",ROUND(K331*P331,0),\"\")","v":{"$error":"#REF!"}},{"$f":"IF(Stock!#REF!<>\"\",$H331*Q331,\"\")","v":{"$error":"#REF!"}},{"$f":"IF(Stock!#REF!<>\"\",Pilotage!P$27,\"\")","v":{"$error":"#REF!"}},{"$f":"IF(Stock!#REF!<>\"\",ROUND(Q331*S331,0),\"\")","v":{"$error":"#REF!"}},{"$f":"IF(Stock!#REF!<>\"\",$H331*T331,\"\")","v":{"$error":"#REF!"}},{"$f":"IF(Stock!#REF!<>\"\",Pilotage!Q$27,\"\")","v":{"$error":"#REF!"}},{"$f":"IF(Stock!#REF!<>\"\",ROUND(T331*V331,0),\"\")","v":{"$error":"#REF!"}},{"$f":"IF(Stock!#REF!<>\"\",$H331*W331,\"\")","v":{"$error":"#REF!"}},{"$f":"IF(Stock!#REF!<>\"\",Pilotage!R$27,\"\")","v":{"$error":"#REF!"}},{"$f":"IF(Stock!#REF!<>\"\",ROUND(W331*Y331,0),\"\")","v":{"$error":"#REF!"}},{"$f":"IF(Stock!#REF!<>\"\",$H331*Z331,\"\")","v":{"$error":"#REF!"}}]
[{"$f":"IF(Stock!#REF!<>\"\",Stock!#REF!,\"\")","v":{"$error":"#REF!"}},{"$f":"IF(Stock!#REF!<>\"\",Stock!#REF!,\"\")","v":{"$error":"#REF!"}},{"$f":"IF(Stock!#REF!<>\"\",Stock!#REF!,\"\")","v":{"$error":"#REF!"}},{"$f":"IF(Stock!#REF!<>\"\",SUM(Stock!#REF!,Stock!#REF!,Stock!#REF!),\"\")","v":{"$error":"#REF!"}},{"$f":"IF(Stock!#REF!<>\"\",#REF!*(1+Pilotage!$M$20),\"\")","v":{"$error":"#REF!"}},null,{"$f":"IF(Stock!#REF!<>\"\",IF(Stock!#REF!>0,Stock!#REF!/Stock!#REF!,0),\"\")","v":{"$error":"#REF!"}},{"$f":"IF(Stock!#REF!<>\"\",E332*Pilotage!$D$15,\"\")","v":{"$error":"#REF!"}},{"$f":"IF(Stock!#REF!<>\"\",IF(Stock!#REF!>0,Stock!#REF!,0),\"\")","v":{"$error":"#REF!"}},{"$f":"IF(Stock!#REF!<>\"\",Pilotage!$M$27,\"\")","v":{"$error":"#REF!"}},{"$f":"IF(Stock!#REF!<>\"\",ROUND(Stock!#REF!*J332,0),\"\")","v":{"$error":"#REF!"}},{"$f":"IF(Stock!#REF!<>\"\",$H332*K332,\"\")","v":{"$error":"#REF!"}},{"$f":"IF(Stock!#REF!<>\"\",Pilotage!N$27,\"\")","v":{"$error":"#REF!"}},{"$f":"IF(Stock!#REF!<>\"\",ROUND(K332*M332,0),\"\")","v":{"$error":"#REF!"}},{"$f":"IF(Stock!#REF!<>\"\",$H332*N332,\"\")","v":{"$error":"#REF!"}},{"$f":"IF(Stock!#REF!<>\"\",Pilotage!O$27,\"\")","v":{"$error":"#REF!"}},{"$f":"IF(Stock!#REF!<>\"\",ROUND(K332*P332,0),\"\")","v":{"$error":"#REF!"}},{"$f":"IF(Stock!#REF!<>\"\",$H332*Q332,\"\")","v":{"$error":"#REF!"}},{"$f":"IF(Stock!#REF!<>\"\",Pilotage!P$27,\"\")","v":{"$error":"#REF!"}},{"$f":"IF(Stock!#REF!<>\"\",ROUND(Q332*S332,0),\"\")","v":{"$error":"#REF!"}},{"$f":"IF(Stock!#REF!<>\"\",$H332*T332,\"\")","v":{"$error":"#REF!"}},{"$f":"IF(Stock!#REF!<>\"\",Pilotage!Q$27,\"\")","v":{"$error":"#REF!"}},{"$f":"IF(Stock!#REF!<>\"\",ROUND(T332*V332,0),\"\")","v":{"$error":"#REF!"}},{"$f":"IF(Stock!#REF!<>\"\",$H332*W332,\"\")","v":{"$error":"#REF!"}},{"$f":"IF(Stock!#REF!<>\"\",Pilotage!R$27,\"\")","v":{"$error":"#REF!"}},{"$f":"IF(Stock!#REF!<>\"\",ROUND(W332*Y332,0),\"\")","v":{"$error":"#REF!"}},{"$f":"IF(Stock!#REF!<>\"\",$H332*Z332,\"\")","v":{"$error":"#REF!"}}]
[{"$f":"IF(Stock!#REF!<>\"\",Stock!#REF!,\"\")","v":{"$error":"#REF!"}},{"$f":"IF(Stock!#REF!<>\"\",Stock!#REF!,\"\")","v":{"$error":"#REF!"}},{"$f":"IF(Stock!#REF!<>\"\",Stock!#REF!,\"\")","v":{"$error":"#REF!"}},{"$f":"IF(Stock!#REF!<>\"\",SUM(Stock!#REF!,Stock!#REF!,Stock!#REF!),\"\")","v":{"$error":"#REF!"}},{"$f":"IF(Stock!#REF!<>\"\",#REF!*(1+Pilotage!$M$20),\"\")","v":{"$error":"#REF!"}},null,{"$f":"IF(Stock!#REF!<>\"\",IF(Stock!#REF!>0,Stock!#REF!/Stock!#REF!,0),\"\")","v":{"$error":"#REF!"}},{"$f":"IF(Stock!#REF!<>\"\",E333*Pilotage!$D$15,\"\")","v":{"$error":"#REF!"}},{"$f":"IF(Stock!#REF!<>\"\",IF(Stock!#REF!>0,Stock!#REF!,0),\"\")","v":{"$error":"#REF!"}},{"$f":"IF(Stock!#REF!<>\"\",Pilotage!$M$27,\"\")","v":{"$error":"#REF!"}},{"$f":"IF(Stock!#REF!<>\"\",ROUND(Stock!#REF!*J333,0),\"\")","v":{"$error":"#REF!"}},{"$f":"IF(Stock!#REF!<>\"\",$H333*K333,\"\")","v":{"$error":"#REF!"}},{"$f":"IF(Stock!#REF!<>\"\",Pilotage!N$27,\"\")","v":{"$error":"#REF!"}},{"$f":"IF(Stock!#REF!<>\"\",ROUND(K333*M333,0),\"\")","v":{"$error":"#REF!"}},{"$f":"IF(Stock!#REF!<>\"\",$H333*N333,\"\")","v":{"$error":"#REF!"}},{"$f":"IF(Stock!#REF!<>\"\",Pilotage!O$27,\"\")","v":{"$error":"#REF!"}},{"$f":"IF(Stock!#REF!<>\"\",ROUND(K333*P333,0),\"\")","v":{"$error":"#REF!"}},{"$f":"IF(Stock!#REF!<>\"\",$H333*Q333,\"\")","v":{"$error":"#REF!"}},{"$f":"IF(Stock!#REF!<>\"\",Pilotage!P$27,\"\")","v":{"$error":"#REF!"}},{"$f":"IF(Stock!#REF!<>\"\",ROUND(Q333*S333,0),\"\")","v":{"$error":"#REF!"}},{"$f":"IF(Stock!#REF!<>\"\",$H333*T333,\"\")","v":{"$error":"#REF!"}},{"$f":"IF(Stock!#REF!<>\"\",Pilotage!Q$27,\"\")","v":{"$error":"#REF!"}},{"$f":"IF(Stock!#REF!<>\"\",ROUND(T333*V333,0),\"\")","v":{"$error":"#REF!"}},{"$f":"IF(Stock!#REF!<>\"\",$H333*W333,\"\")","v":{"$error":"#REF!"}},{"$f":"IF(Stock!#REF!<>\"\",Pilotage!R$27,\"\")","v":{"$error":"#REF!"}},{"$f":"IF(Stock!#REF!<>\"\",ROUND(W333*Y333,0),\"\")","v":{"$error":"#REF!"}},{"$f":"IF(Stock!#REF!<>\"\",$H333*Z333,\"\")","v":{"$error":"#REF!"}}]
[{"$f":"IF(Stock!#REF!<>\"\",Stock!#REF!,\"\")","v":{"$error":"#REF!"}},{"$f":"IF(Stock!#REF!<>\"\",Stock!#REF!,\"\")","v":{"$error":"#REF!"}},{"$f":"IF(Stock!#REF!<>\"\",Stock!#REF!,\"\")","v":{"$error":"#REF!"}},{"$f":"IF(Stock!#REF!<>\"\",SUM(Stock!#REF!,Stock!#REF!,Stock!#REF!),\"\")","v":{"$error":"#REF!"}},{"$f":"IF(Stock!#REF!<>\"\",#REF!*(1+Pilotage!$M$20),\"\")","v":{"$error":"#REF!"}},null,{"$f":"IF(Stock!#REF!<>\"\",IF(Stock!#REF!>0,Stock!#REF!/Stock!#REF!,0),\"\")","v":{"$error":"#REF!"}},{"$f":"IF(Stock!#REF!<>\"\",E334*Pilotage!$D$15,\"\")","v":{"$error":"#REF!"}},{"$f":"IF(Stock!#REF!<>\"\",IF(Stock!#REF!>0,Stock!#REF!,0),\"\")","v":{"$error":"#REF!"}},{"$f":"IF(Stock!#REF!<>\"\",Pilotage!$M$27,\"\")","v":{"$error":"#REF!"}},{"$f":"IF(Stock!#REF!<>\"\",ROUND(Stock!#REF!*J334,0),\"\")","v":{"$error":"#REF!"}},{"$f":"IF(Stock!#REF!<>\"\",$H334*K334,\"\")","v":{"$error":"#REF!"}},{"$f":"IF(Stock!#REF!<>\"\",Pilotage!N$27,\"\")","v":{"$error":"#REF!"}},{"$f":"IF(Stock!#REF!<>\"\",ROUND(K334*M334,0),\"\")","v":{"$error":"#REF!"}},{"$f":"IF(Stock!#REF!<>\"\",$H334*N334,\"\")","v":{"$error":"#REF!"}},{"$f":"IF(Stock!#REF!<>\"\",Pilotage!O$27,\"\")","v":{"$error":"#REF!"}},{"$f":"IF(Stock!#REF!<>\"\",ROUND(K334*P334,0),\"\")","v":{"$error":"#REF!"}},{"$f":"IF(Stock!#REF!<>\"\",$H334*Q334,\"\")","v":{"$error":"#REF!"}},{"$f":"IF(Stock!#REF!<>\"\",Pilotage!P$27,\"\")","v":{"$error":"#REF!"}},{"$f":"IF(Stock!#REF!<>\"\",ROUND(Q334*S334,0),\"\")","v":{"$error":"#REF!"}},{"$f":"IF(Stock!#REF!<>\"\",$H334*T334,\"\")","v":{"$error":"#REF!"}},{"$f":"IF(Stock!#REF!<>\"\",Pilotage!Q$27,\"\")","v":{"$error":"#REF!"}},{"$f":"IF(Stock!#REF!<>\"\",ROUND(T334*V334,0),\"\")","v":{"$error":"#REF!"}},{"$f":"IF(Stock!#REF!<>\"\",$H334*W334,\"\")","v":{"$error":"#REF!"}},{"$f":"IF(Stock!#REF!<>\"\",Pilotage!R$27,\"\")","v":{"$error":"#REF!"}},{"$f":"IF(Stock!#REF!<>\"\",ROUND(W334*Y334,0),\"\")","v":{"$error":"#REF!"}},{"$f":"IF(Stock!#REF!<>\"\",$H334*Z334,\"\")","v":{"$error":"#REF!"}}]
[{"$f":"IF(Stock!#REF!<>\"\",Stock!#REF!,\"\")","v":{"$error":"#REF!"}},{"$f":"IF(Stock!#REF!<>\"\",Stock!#REF!,\"\")","v":{"$error":"#REF!"}},{"$f":"IF(Stock!#REF!<>\"\",Stock!#REF!,\"\")","v":{"$error":"#REF!"}},{"$f":"IF(Stock!#REF!<>\"\",SUM(Stock!#REF!,Stock!#REF!,Stock!#REF!),\"\")","v":{"$error":"#REF!"}},{"$f":"IF(Stock!#REF!<>\"\",#REF!*(1+Pilotage!$M$20),\"\")","v":{"$error":"#REF!"}},null,{"$f":"IF(Stock!#REF!<>\"\",IF(Stock!#REF!>0,Stock!#REF!/Stock!#REF!,0),\"\")","v":{"$error":"#REF!"}},{"$f":"IF(Stock!#REF!<>\"\",E335*Pilotage!$D$15,\"\")","v":{"$error":"#REF!"}},{"$f":"IF(Stock!#REF!<>\"\",IF(Stock!#REF!>0,Stock!#REF!,0),\"\")","v":{"$error":"#REF!"}},{"$f":"IF(Stock!#REF!<>\"\",Pilotage!$M$27,\"\")","v":{"$error":"#REF!"}},{"$f":"IF(Stock!#REF!<>\"\",ROUND(Stock!#REF!*J335,0),\"\")","v":{"$error":"#REF!"}},{"$f":"IF(Stock!#REF!<>\"\",$H335*K335,\"\")","v":{"$error":"#REF!"}},{"$f":"IF(Stock!#REF!<>\"\",Pilotage!N$27,\"\")","v":{"$error":"#REF!"}},{"$f":"IF(Stock!#REF!<>\"\",ROUND(K335*M335,0),\"\")","v":{"$error":"#REF!"}},{"$f":"IF(Stock!#REF!<>\"\",$H335*N335,\"\")","v":{"$error":"#REF!"}},{"$f":"IF(Stock!#REF!<>\"\",Pilotage!O$27,\"\")","v":{"$error":"#REF!"}},{"$f":"IF(Stock!#REF!<>\"\",ROUND(K335*P335,0),\"\")","v":{"$error":"#REF!"}},{"$f":"IF(Stock!#REF!<>\"\",$H335*Q335,\"\")","v":{"$error":"#REF!"}},{"$f":"IF(Stock!#REF!<>\"\",Pilotage!P$27,\"\")","v":{"$error":"#REF!"}},{"$f":"IF(Stock!#REF!<>\"\",ROUND(Q335*S335,0),\"\")","v":{"$error":"#REF!"}},{"$f":"IF(Stock!#REF!<>\"\",$H335*T335,\"\")","v":{"$error":"#REF!"}},{"$f":"IF(Stock!#REF!<>\"\",Pilotage!Q$27,\"\")","v":{"$error":"#REF!"}},{"$f":"IF(Stock!#REF!<>\"\",ROUND(T335*V335,0),\"\")","v":{"$error":"#REF!"}},{"$f":"IF(Stock!#REF!<>\"\",$H335*W335,\"\")","v":{"$error":"#REF!"}},{"$f":"IF(Stock!#REF!<>\"\",Pilotage!R$27,\"\")","v":{"$error":"#REF!"}},{"$f":"IF(Stock!#REF!<>\"\",ROUND(W335*Y335,0),\"\")","v":{"$error":"#REF!"}},{"$f":"IF(Stock!#REF!<>\"\",$H335*Z335,\"\")","v":{"$error":"#REF!"}}]
[{"$f":"IF(Stock!#REF!<>\"\",Stock!#REF!,\"\")","v":{"$error":"#REF!"}},{"$f":"IF(Stock!#REF!<>\"\",Stock!#REF!,\"\")","v":{"$error":"#REF!"}},{"$f":"IF(Stock!#REF!<>\"\",Stock!#REF!,\"\")","v":{"$error":"#REF!"}},{"$f":"IF(Stock!#REF!<>\"\",SUM(Stock!#REF!,Stock!#REF!,Stock!#REF!),\"\")","v":{"$error":"#REF!"}},{"$f":"IF(Stock!#REF!<>\"\",#REF!*(1+Pilotage!$M$20),\"\")","v":{"$error":"#REF!"}},null,{"$f":"IF(Stock!#REF!<>\"\",IF(Stock!#REF!>0,Stock!#REF!/Stock!#REF!,0),\"\")","v":{"$error":"#REF!"}},{"$f":"IF(Stock!#REF!<>\"\",E336*Pilotage!$D$15,\"\")","v":{"$error":"#REF!"}},{"$f":"IF(Stock!#REF!<>\"\",IF(Stock!#REF!>0,Stock!#REF!,0),\"\")","v":{"$error":"#REF!"}},{"$f":"IF(Stock!#REF!<>\"\",Pilotage!$M$27,\"\")","v":{"$error":"#REF!"}},{"$f":"IF(Stock!#REF!<>\"\",ROUND(Stock!#REF!*J336,0),\"\")","v":{"$error":"#REF!"}},{"$f":"IF(Stock!#REF!<>\"\",$H336*K336,\"\")","v":{"$error":"#REF!"}},{"$f":"IF(Stock!#REF!<>\"\",Pilotage!N$27,\"\")","v":{"$error":"#REF!"}},{"$f":"IF(Stock!#REF!<>\"\",ROUND(K336*M336,0),\"\")","v":{"$error":"#REF!"}},{"$f":"IF(Stock!#REF!<>\"\",$H336*N336,\"\")","v":{"$error":"#REF!"}},{"$f":"IF(Stock!#REF!<>\"\",Pilotage!O$27,\"\")","v":{"$error":"#REF!"}},{"$f":"IF(Stock!#REF!<>\"\",ROUND(K336*P336,0),\"\")","v":{"$error":"#REF!"}},{"$f":"IF(Stock!#REF!<>\"\",$H336*Q336,\"\")","v":{"$error":"#REF!"}},{"$f":"IF(Stock!#REF!<>\"\",Pilotage!P$27,\"\")","v":{"$error":"#REF!"}},{"$f":"IF(Stock!#REF!<>\"\",ROUND(Q336*S336,0),\"\")","v":{"$error":"#REF!"}},{"$f":"IF(Stock!#REF!<>\"\",$H336*T336,\"\")","v":{"$error":"#REF!"}},{"$f":"IF(Stock!#REF!<>\"\",Pilotage!Q$27,\"\")","v":{"$error":"#REF!"}},{"$f":"IF(Stock!#REF!<>\"\",ROUND(T336*V336,0),\"\")","v":{"$error":"#REF!"}},{"$f":"IF(Stock!#REF!<>\"\",$H336*W336,\"\")","v":{"$error":"#REF!"}},{"$f":"IF(Stock!#REF!<>\"\",Pilotage!R$27,\"\")","v":{"$error":"#REF!"}},{"$f":"IF(Stock!#REF!<>\"\",ROUND(W336*Y336,0),\"\")","v":{"$error":"#REF!"}},{"$f":"IF(Stock!#REF!<>\"\",$H336*Z336,\"\")","v":{"$error":"#REF!"}}]
[{"$f":"IF(Stock!#REF!<>\"\",Stock!#REF!,\"\")","v":{"$error":"#REF!"}},{"$f":"IF(Stock!#REF!<>\"\",Stock!#REF!,\"\")","v":{"$error":"#REF!"}},{"$f":"IF(Stock!#REF!<>\"\",Stock!#REF!,\"\")","v":{"$error":"#REF!"}},{"$f":"IF(Stock!#REF!<>\"\",SUM(Stock!#REF!,Stock!#REF!,Stock!#REF!),\"\")","v":{"$error":"#REF!"}},{"$f":"IF(Stock!#REF!<>\"\",#REF!*(1+Pilotage!$M$20),\"\")","v":{"$error":"#REF!"}},null,{"$f":"IF(Stock!#REF!<>\"\",IF(Stock!#REF!>0,Stock!#REF!/Stock!#REF!,0),\"\")","v":{"$error":"#REF!"}},{"$f":"IF(Stock!#REF!<>\"\",E337*Pilotage!$D$15,\"\")","v":{"$error":"#REF!"}},{"$f":"IF(Stock!#REF!<>\"\",IF(Stock!#REF!>0,Stock!#REF!,0),\"\")","v":{"$error":"#REF!"}},{"$f":"IF(Stock!#REF!<>\"\",Pilotage!$M$27,\"\")","v":{"$error":"#REF!"}},{"$f":"IF(Stock!#REF!<>\"\",ROUND(Stock!#REF!*J337,0),\"\")","v":{"$error":"#REF!"}},{"$f":"IF(Stock!#REF!<>\"\",$H337*K337,\"\")","v":{"$error":"#REF!"}},{"$f":"IF(Stock!#REF!<>\"\",Pilotage!N$27,\"\")","v":{"$error":"#REF!"}},{"$f":"IF(Stock!#REF!<>\"\",ROUND(K337*M337,0),\"\")","v":{"$error":"#REF!"}},{"$f":"IF(Stock!#REF!<>\"\",$H337*N337,\"\")","v":{"$error":"#REF!"}},{"$f":"IF(Stock!#REF!<>\"\",Pilotage!O$27,\"\")","v":{"$error":"#REF!"}},{"$f":"IF(Stock!#REF!<>\"\",ROUND(K337*P337,0),\"\")","v":{"$error":"#REF!"}},{"$f":"IF(Stock!#REF!<>\"\",$H337*Q337,\"\")","v":{"$error":"#REF!"}},{"$f":"IF(Stock!#REF!<>\"\",Pilotage!P$27,\"\")","v":{"$error":"#REF!"}},{"$f":"IF(Stock!#REF!<>\"\",ROUND(Q337*S337,0),\"\")","v":{"$error":"#REF!"}},{"$f":"IF(Stock!#REF!<>\"\",$H337*T337,\"\")","v":{"$error":"#REF!"}},{"$f":"IF(Stock!#REF!<>\"\",Pilotage!Q$27,\"\")","v":{"$error":"#REF!"}},{"$f":"IF(Stock!#REF!<>\"\",ROUND(T337*V337,0),\"\")","v":{"$error":"#REF!"}},{"$f":"IF(Stock!#REF!<>\"\",$H337*W337,\"\")","v":{"$error":"#REF!"}},{"$f":"IF(Stock!#REF!<>\"\",Pilotage!R$27,\"\")","v":{"$error":"#REF!"}},{"$f":"IF(Stock!#REF!<>\"\",ROUND(W337*Y337,0),\"\")","v":{"$error":"#REF!"}},{"$f":"IF(Stock!#REF!<>\"\",$H337*Z337,\"\")","v":{"$error":"#REF!"}}]
[{"$f":"IF(Stock!#REF!<>\"\",Stock!#REF!,\"\")","v":{"$error":"#REF!"}},{"$f":"IF(Stock!#REF!<>\"\",Stock!#REF!,\"\")","v":{"$error":"#REF!"}},{"$f":"IF(Stock!#REF!<>\"\",Stock!#REF!,\"\")","v":{"$error":"#REF!"}},{"$f":"IF(Stock!#REF!<>\"\",SUM(Stock!#REF!,Stock!#REF!,Stock!#REF!),\"\")","v":{"$error":"#REF!"}},{"$f":"IF(Stock!#REF!<>\"\",#REF!*(1+Pilotage!$M$20),\"\")","v":{"$error":"#REF!"}},null,{"$f":"IF(Stock!#REF!<>\"\",IF(Stock!#REF!>0,Stock!#REF!/Stock!#REF!,0),\"\")","v":{"$error":"#REF!"}},{"$f":"IF(Stock!#REF!<>\"\",E338*Pilotage!$D$15,\"\")","v":{"$error":"#REF!"}},{"$f":"IF(Stock!#REF!<>\"\",IF(Stock!#REF!>0,Stock!#REF!,0),\"\")","v":{"$error":"#REF!"}},{"$f":"IF(Stock!#REF!<>\"\",Pilotage!$M$27,\"\")","v":{"$error":"#REF!"}},{"$f":"IF(Stock!#REF!<>\"\",ROUND(Stock!#REF!*J338,0),\"\")","v":{"$error":"#REF!"}},{"$f":"IF(Stock!#REF!<>\"\",$H338*K338,\"\")","v":{"$error":"#REF!"}},{"$f":"IF(Stock!#REF!<>\"\",Pilotage!N$27,\"\")","v":{"$error":"#REF!"}},{"$f":"IF(Stock!#REF!<>\"\",ROUND(K338*M338,0),\"\")","v":{"$error":"#REF!"}},{"$f":"IF(Stock!#REF!<>\"\",$H338*N338,\"\")","v":{"$error":"#REF!"}},{"$f":"IF(Stock!#REF!<>\"\",Pilotage!O$27,\"\")","v":{"$error":"#REF!"}},{"$f":"IF(Stock!#REF!<>\"\",ROUND(K338*P338,0),\"\")","v":{"$error":"#REF!"}},{"$f":"IF(Stock!#REF!<>\"\",$H338*Q338,\"\")","v":{"$error":"#REF!"}},{"$f":"IF(Stock!#REF!<>\"\",Pilotage!P$27,\"\")","v":{"$error":"#REF!"}},{"$f":"IF(Stock!#REF!<>\"\",ROUND(Q338*S338,0),\"\")","v":{"$error":"#REF!"}},{"$f":"IF(Stock!#REF!<>\"\",$H338*T338,\"\")","v":{"$error":"#REF!"}},{"$f":"IF(Stock!#REF!<>\"\",Pilotage!Q$27,\"\")","v":{"$error":"#REF!"}},{"$f":"IF(Stock!#REF!<>\"\",ROUND(T338*V338,0),\"\")","v":{"$error":"#REF!"}},{"$f":"IF(Stock!#REF!<>\"\",$H338*W338,\"\")","v":{"$error":"#REF!"}},{"$f":"IF(Stock!#REF!<>\"\",Pilotage!R$27,\"\")","v":{"$error":"#REF!"}},{"$f":"IF(Stock!#REF!<>\"\",ROUND(W338*Y338,0),\"\")","v":{"$error":"#REF!"}},{"$f":"IF(Stock!#REF!<>\"\",$H338*Z338,\"\")","v":{"$error":"#REF!"}}]
[{"$f":"IF(Stock!#REF!<>\"\",Stock!#REF!,\"\")","v":{"$error":"#REF!"}},{"$f":"IF(Stock!#REF!<>\"\",Stock!#REF!,\"\")","v":{"$error":"#REF!"}},{"$f":"IF(Stock!#REF!<>\"\",Stock!#REF!,\"\")","v":{"$error":"#REF!"}},{"$f":"IF(Stock!#REF!<>\"\",SUM(Stock!#REF!,Stock!#REF!,Stock!#REF!),\"\")","v":{"$error":"#REF!"}},{"$f":"IF(Stock!#REF!<>\"\",#REF!*(1+Pilotage!$M$20),\"\")","v":{"$error":"#REF!"}},null,{"$f":"IF(Stock!#REF!<>\"\",IF(Stock!#REF!>0,Stock!#REF!/Stock!#REF!,0),\"\")","v":{"$error":"#REF!"}},{"$f":"IF(Stock!#REF!<>\"\",E339*Pilotage!$D$15,\"\")","v":{"$error":"#REF!"}},{"$f":"IF(Stock!#REF!<>\"\",IF(Stock!#REF!>0,Stock!#REF!,0),\"\")","v":{"$error":"#REF!"}},{"$f":"IF(Stock!#REF!<>\"\",Pilotage!$M$27,\"\")","v":{"$error":"#REF!"}},{"$f":"IF(Stock!#REF!<>\"\",ROUND(Stock!#REF!*J339,0),\"\")","v":{"$error":"#REF!"}},{"$f":"IF(Stock!#REF!<>\"\",$H339*K339,\"\")","v":{"$error":"#REF!"}},{"$f":"IF(Stock!#REF!<>\"\",Pilotage!N$27,\"\")","v":{"$error":"#REF!"}},{"$f":"IF(Stock!#REF!<>\"\",ROUND(K339*M339,0),\"\")","v":{"$error":"#REF!"}},{"$f":"IF(Stock!#REF!<>\"\",$H339*N339,\"\")","v":{"$error":"#REF!"}},{"$f":"IF(Stock!#REF!<>\"\",Pilotage!O$27,\"\")","v":{"$error":"#REF!"}},{"$f":"IF(Stock!#REF!<>\"\",ROUND(K339*P339,0),\"\")","v":{"$error":"#REF!"}},{"$f":"IF(Stock!#REF!<>\"\",$H339*Q339,\"\")","v":{"$error":"#REF!"}},{"$f":"IF(Stock!#REF!<>\"\",Pilotage!P$27,\"\")","v":{"$error":"#REF!"}},{"$f":"IF(Stock!#REF!<>\"\",ROUND(Q339*S339,0),\"\")","v":{"$error":"#REF!"}},{"$f":"IF(Stock!#REF!<>\"\",$H339*T339,\"\")","v":{"$error":"#REF!"}},{"$f":"IF(Stock!#REF!<>\"\",Pilotage!Q$27,\"\")","v":{"$error":"#REF!"}},{"$f":"IF(Stock!#REF!<>\"\",ROUND(T339*V339,0),\"\")","v":{"$error":"#REF!"}},{"$f":"IF(Stock!#REF!<>\"\",$H339*W339,\"\")","v":{"$error":"#REF!"}},{"$f":"IF(Stock!#REF!<>\"\",Pilotage!R$27,\"\")","v":{"$error":"#REF!"}},{"$f":"IF(Stock!#REF!<>\"\",ROUND(W339*Y339,0),\"\")","v":{"$error":"#REF!"}},{"$f":"IF(Stock!#REF!<>\"\",$H339*Z339,\"\")","v":{"$error":"#REF!"}}]
[{"$f":"IF(Stock!#REF!<>\"\",Stock!#REF!,\"\")","v":{"$error":"#REF!"}},{"$f":"IF(Stock!#REF!<>\"\",Stock!#REF!,\"\")","v":{"$error":"#REF!"}},{"$f":"IF(Stock!#REF!<>\"\",Stock!#REF!,\"\")","v":{"$error":"#REF!"}},{"$f":"IF(Stock!#REF!<>\"\",SUM(Stock!#REF!,Stock!#REF!,Stock!#REF!),\"\")","v":{"$error":"#REF!"}},{"$f":"IF(Stock!#REF!<>\"\",#REF!*(1+Pilotage!$M$20),\"\")","v":{"$error":"#REF!"}},null,{"$f":"IF(Stock!#REF!<>\"\",IF(Stock!#REF!>0,Stock!#REF!/Stock!#REF!,0),\"\")","v":{"$error":"#REF!"}},{"$f":"IF(Stock!#REF!<>\"\",E340*Pilotage!$D$15,\"\")","v":{"$error":"#REF!"}},{"$f":"IF(Stock!#REF!<>\"\",IF(Stock!#REF!>0,Stock!#REF!,0),\"\")","v":{"$error":"#REF!"}},{"$f":"IF(Stock!#REF!<>\"\",Pilotage!$M$27,\"\")","v":{"$error":"#REF!"}},{"$f":"IF(Stock!#REF!<>\"\",ROUND(Stock!#REF!*J340,0),\"\")","v":{"$error":"#REF!"}},{"$f":"IF(Stock!#REF!<>\"\",$H340*K340,\"\")","v":{"$error":"#REF!"}},{"$f":"IF(Stock!#REF!<>\"\",Pilotage!N$27,\"\")","v":{"$error":"#REF!"}},{"$f":"IF(Stock!#REF!<>\"\",ROUND(K340*M340,0),\"\")","v":{"$error":"#REF!"}},{"$f":"IF(Stock!#REF!<>\"\",$H340*N340,\"\")","v":{"$error":"#REF!"}},{"$f":"IF(Stock!#REF!<>\"\",Pilotage!O$27,\"\")","v":{"$error":"#REF!"}},{"$f":"IF(Stock!#REF!<>\"\",ROUND(K340*P340,0),\"\")","v":{"$error":"#REF!"}},{"$f":"IF(Stock!#REF!<>\"\",$H340*Q340,\"\")","v":{"$error":"#REF!"}},{"$f":"IF(Stock!#REF!<>\"\",Pilotage!P$27,\"\")","v":{"$error":"#REF!"}},{"$f":"IF(Stock!#REF!<>\"\",ROUND(Q340*S340,0),\"\")","v":{"$error":"#REF!"}},{"$f":"IF(Stock!#REF!<>\"\",$H340*T340,\"\")","v":{"$error":"#REF!"}},{"$f":"IF(Stock!#REF!<>\"\",Pilotage!Q$27,\"\")","v":{"$error":"#REF!"}},{"$f":"IF(Stock!#REF!<>\"\",ROUND(T340*V340,0),\"\")","v":{"$error":"#REF!"}},{"$f":"IF(Stock!#REF!<>\"\",$H340*W340,\"\")","v":{"$error":"#REF!"}},{"$f":"IF(Stock!#REF!<>\"\",Pilotage!R$27,\"\")","v":{"$error":"#REF!"}},{"$f":"IF(Stock!#REF!<>\"\",ROUND(W340*Y340,0),\"\")","v":{"$error":"#REF!"}},{"$f":"IF(Stock!#REF!<>\"\",$H340*Z340,\"\")","v":{"$error":"#REF!"}}]
[{"$f":"IF(Stock!#REF!<>\"\",Stock!#REF!,\"\")","v":{"$error":"#REF!"}},{"$f":"IF(Stock!#REF!<>\"\",Stock!#REF!,\"\")","v":{"$error":"#REF!"}},{"$f":"IF(Stock!#REF!<>\"\",Stock!#REF!,\"\")","v":{"$error":"#REF!"}},{"$f":"IF(Stock!#REF!<>\"\",SUM(Stock!#REF!,Stock!#REF!,Stock!#REF!),\"\")","v":{"$error":"#REF!"}},{"$f":"IF(Stock!#REF!<>\"\",#REF!*(1+Pilotage!$M$20),\"\")","v":{"$error":"#REF!"}},null,{"$f":"IF(Stock!#REF!<>\"\",IF(Stock!#REF!>0,Stock!#REF!/Stock!#REF!,0),\"\")","v":{"$error":"#REF!"}},{"$f":"IF(Stock!#REF!<>\"\",E341*Pilotage!$D$15,\"\")","v":{"$error":"#REF!"}},{"$f":"IF(Stock!#REF!<>\"\",IF(Stock!#REF!>0,Stock!#REF!,0),\"\")","v":{"$error":"#REF!"}},{"$f":"IF(Stock!#REF!<>\"\",Pilotage!$M$27,\"\")","v":{"$error":"#REF!"}},{"$f":"IF(Stock!#REF!<>\"\",ROUND(Stock!#REF!*J341,0),\"\")","v":{"$error":"#REF!"}},{"$f":"IF(Stock!#REF!<>\"\",$H341*K341,\"\")","v":{"$error":"#REF!"}},{"$f":"IF(Stock!#REF!<>\"\",Pilotage!N$27,\"\")","v":{"$error":"#REF!"}},{"$f":"IF(Stock!#REF!<>\"\",ROUND(K341*M341,0),\"\")","v":{"$error":"#REF!"}},{"$f":"IF(Stock!#REF!<>\"\",$H341*N341,\"\")","v":{"$error":"#REF!"}},{"$f":"IF(Stock!#REF!<>\"\",Pilotage!O$27,\"\")","v":{"$error":"#REF!"}},{"$f":"IF(Stock!#REF!<>\"\",ROUND(K341*P341,0),\"\")","v":{"$error":"#REF!"}},{"$f":"IF(Stock!#REF!<>\"\",$H341*Q341,\"\")","v":{"$error":"#REF!"}},{"$f":"IF(Stock!#REF!<>\"\",Pilotage!P$27,\"\")","v":{"$error":"#REF!"}},{"$f":"IF(Stock!#REF!<>\"\",ROUND(Q341*S341,0),\"\")","v":{"$error":"#REF!"}},{"$f":"IF(Stock!#REF!<>\"\",$H341*T341,\"\")","v":{"$error":"#REF!"}},{"$f":"IF(Stock!#REF!<>\"\",Pilotage!Q$27,\"\")","v":{"$error":"#REF!"}},{"$f":"IF(Stock!#REF!<>\"\",ROUND(T341*V341,0),\"\")","v":{"$error":"#REF!"}},{"$f":"IF(Stock!#REF!<>\"\",$H341*W341,\"\")","v":{"$error":"#REF!"}},{"$f":"IF(Stock!#REF!<>\"\",Pilotage!R$27,\"\")","v":{"$error":"#REF!"}},{"$f":"IF(Stock!#REF!<>\"\",ROUND(W341*Y341,0),\"\")","v":{"$error":"#REF!"}},{"$f":"IF(Stock!#REF!<>\"\",$H341*Z341,\"\")","v":{"$error":"#REF!"}}]
[{"$f":"IF(Stock!#REF!<>\"\",Stock!#REF!,\"\")","v":{"$error":"#REF!"}},{"$f":"IF(Stock!#REF!<>\"\",Stock!#REF!,\"\")","v":{"$error":"#REF!"}},{"$f":"IF(Stock!#REF!<>\"\",Stock!#REF!,\"\")","v":{"$error":"#REF!"}},{"$f":"IF(Stock!#REF!<>\"\",SUM(Stock!#REF!,Stock!#REF!,Stock!#REF!),\"\")","v":{"$error":"#REF!"}},{"$f":"IF(Stock!#REF!<>\"\",#REF!*(1+Pilotage!$M$20),\"\")","v":{"$error":"#REF!"}},null,{"$f":"IF(Stock!#REF!<>\"\",IF(Stock!#REF!>0,Stock!#REF!/Stock!#REF!,0),\"\")","v":{"$error":"#REF!"}},{"$f":"IF(Stock!#REF!<>\"\",E342*Pilotage!$D$15,\"\")","v":{"$error":"#REF!"}},{"$f":"IF(Stock!#REF!<>\"\",IF(Stock!#REF!>0,Stock!#REF!,0),\"\")","v":{"$error":"#REF!"}},{"$f":"IF(Stock!#REF!<>\"\",Pilotage!$M$27,\"\")","v":{"$error":"#REF!"}},{"$f":"IF(Stock!#REF!<>\"\",ROUND(Stock!#REF!*J342,0),\"\")","v":{"$error":"#REF!"}},{"$f":"IF(Stock!#REF!<>\"\",$H342*K342,\"\")","v":{"$error":"#REF!"}},{"$f":"IF(Stock!#REF!<>\"\",Pilotage!N$27,\"\")","v":{"$error":"#REF!"}},{"$f":"IF(Stock!#REF!<>\"\",ROUND(K342*M342,0),\"\")","v":{"$error":"#REF!"}},{"$f":"IF(Stock!#REF!<>\"\",$H342*N342,\"\")","v":{"$error":"#REF!"}},{"$f":"IF(Stock!#REF!<>\"\",Pilotage!O$27,\"\")","v":{"$error":"#REF!"}},{"$f":"IF(Stock!#REF!<>\"\",ROUND(K342*P342,0),\"\")","v":{"$error":"#REF!"}},{"$f":"IF(Stock!#REF!<>\"\",$H342*Q342,\"\")","v":{"$error":"#REF!"}},{"$f":"IF(Stock!#REF!<>\"\",Pilotage!P$27,\"\")","v":{"$error":"#REF!"}},{"$f":"IF(Stock!#REF!<>\"\",ROUND(Q342*S342,0),\"\")","v":{"$error":"#REF!"}},{"$f":"IF(Stock!#REF!<>\"\",$H342*T342,\"\")","v":{"$error":"#REF!"}},{"$f":"IF(Stock!#REF!<>\"\",Pilotage!Q$27,\"\")","v":{"$error":"#REF!"}},{"$f":"IF(Stock!#REF!<>\"\",ROUND(T342*V342,0),\"\")","v":{"$error":"#REF!"}},{"$f":"IF(Stock!#REF!<>\"\",$H342*W342,\"\")","v":{"$error":"#REF!"}},{"$f":"IF(Stock!#REF!<>\"\",Pilotage!R$27,\"\")","v":{"$error":"#REF!"}},{"$f":"IF(Stock!#REF!<>\"\",ROUND(W342*Y342,0),\"\")","v":{"$error":"#REF!"}},{"$f":"IF(Stock!#REF!<>\"\",$H342*Z342,\"\")","v":{"$error":"#REF!"}}]
[{"$f":"IF(Stock!#REF!<>\"\",Stock!#REF!,\"\")","v":{"$error":"#REF!"}},{"$f":"IF(Stock!#REF!<>\"\",Stock!#REF!,\"\")","v":{"$error":"#REF!"}},{"$f":"IF(Stock!#REF!<>\"\",Stock!#REF!,\"\")","v":{"$error":"#REF!"}},{"$f":"IF(Stock!#REF!<>\"\",SUM(Stock!#REF!,Stock!#REF!,Stock!#REF!),\"\")","v":{"$error":"#REF!"}},{"$f":"IF(Stock!#REF!<>\"\",#REF!*(1+Pilotage!$M$20),\"\")","v":{"$error":"#REF!"}},null,{"$f":"IF(Stock!#REF!<>\"\",IF(Stock!#REF!>0,Stock!#REF!/Stock!#REF!,0),\"\")","v":{"$error":"#REF!"}},{"$f":"IF(Stock!#REF!<>\"\",E343*Pilotage!$D$15,\"\")","v":{"$error":"#REF!"}},{"$f":"IF(Stock!#REF!<>\"\",IF(Stock!#REF!>0,Stock!#REF!,0),\"\")","v":{"$error":"#REF!"}},{"$f":"IF(Stock!#REF!<>\"\",Pilotage!$M$27,\"\")","v":{"$error":"#REF!"}},{"$f":"IF(Stock!#REF!<>\"\",ROUND(Stock!#REF!*J343,0),\"\")","v":{"$error":"#REF!"}},{"$f":"IF(Stock!#REF!<>\"\",$H343*K343,\"\")","v":{"$error":"#REF!"}},{"$f":"IF(Stock!#REF!<>\"\",Pilotage!N$27,\"\")","v":{"$error":"#REF!"}},{"$f":"IF(Stock!#REF!<>\"\",ROUND(K343*M343,0),\"\")","v":{"$error":"#REF!"}},{"$f":"IF(Stock!#REF!<>\"\",$H343*N343,\"\")","v":{"$error":"#REF!"}},{"$f":"IF(Stock!#REF!<>\"\",Pilotage!O$27,\"\")","v":{"$error":"#REF!"}},{"$f":"IF(Stock!#REF!<>\"\",ROUND(K343*P343,0),\"\")","v":{"$error":"#REF!"}},{"$f":"IF(Stock!#REF!<>\"\",$H343*Q343,\"\")","v":{"$error":"#REF!"}},{"$f":"IF(Stock!#REF!<>\"\",Pilotage!P$27,\"\")","v":{"$error":"#REF!"}},{"$f":"IF(Stock!#REF!<>\"\",ROUND(Q343*S343,0),\"\")","v":{"$error":"#REF!"}},{"$f":"IF(Stock!#REF!<>\"\",$H343*T343,\"\")","v":{"$error":"#REF!"}},{"$f":"IF(Stock!#REF!<>\"\",Pilotage!Q$27,\"\")","v":{"$error":"#REF!"}},{"$f":"IF(Stock!#REF!<>\"\",ROUND(T343*V343,0),\"\")","v":{"$error":"#REF!"}},{"$f":"IF(Stock!#REF!<>\"\",$H343*W343,\"\")","v":{"$error":"#REF!"}},{"$f":"IF(Stock!#REF!<>\"\",Pilotage!R$27,\"\")","v":{"$error":"#REF!"}},{"$f":"IF(Stock!#REF!<>\"\",ROUND(W343*Y343,0),\"\")","v":{"$error":"#REF!"}},{"$f":"IF(Stock!#REF!<>\"\",$H343*Z343,\"\")","v":{"$error":"#REF!"}}]
[{"$f":"IF(Stock!#REF!<>\"\",Stock!#REF!,\"\")","v":{"$error":"#REF!"}},{"$f":"IF(Stock!#REF!<>\"\",Stock!#REF!,\"\")","v":{"$error":"#REF!"}},{"$f":"IF(Stock!#REF!<>\"\",Stock!#REF!,\"\")","v":{"$error":"#REF!"}},{"$f":"IF(Stock!#REF!<>\"\",SUM(Stock!#REF!,Stock!#REF!,Stock!#REF!),\"\")","v":{"$error":"#REF!"}},{"$f":"IF(Stock!#REF!<>\"\",#REF!*(1+Pilotage!$M$20),\"\")","v":{"$error":"#REF!"}},null,{"$f":"IF(Stock!#REF!<>\"\",IF(Stock!#REF!>0,Stock!#REF!/Stock!#REF!,0),\"\")","v":{"$error":"#REF!"}},{"$f":"IF(Stock!#REF!<>\"\",E344*Pilotage!$D$15,\"\")","v":{"$error":"#REF!"}},{"$f":"IF(Stock!#REF!<>\"\",IF(Stock!#REF!>0,Stock!#REF!,0),\"\")","v":{"$error":"#REF!"}},{"$f":"IF(Stock!#REF!<>\"\",Pilotage!$M$27,\"\")","v":{"$error":"#REF!"}},{"$f":"IF(Stock!#REF!<>\"\",ROUND(Stock!#REF!*J344,0),\"\")","v":{"$error":"#REF!"}},{"$f":"IF(Stock!#REF!<>\"\",$H344*K344,\"\")","v":{"$error":"#REF!"}},{"$f":"IF(Stock!#REF!<>\"\",Pilotage!N$27,\"\")","v":{"$error":"#REF!"}},{"$f":"IF(Stock!#REF!<>\"\",ROUND(K344*M344,0),\"\")","v":{"$error":"#REF!"}},{"$f":"IF(Stock!#REF!<>\"\",$H344*N344,\"\")","v":{"$error":"#REF!"}},{"$f":"IF(Stock!#REF!<>\"\",Pilotage!O$27,\"\")","v":{"$error":"#REF!"}},{"$f":"IF(Stock!#REF!<>\"\",ROUND(K344*P344,0),\"\")","v":{"$error":"#REF!"}},{"$f":"IF(Stock!#REF!<>\"\",$H344*Q344,\"\")","v":{"$error":"#REF!"}},{"$f":"IF(Stock!#REF!<>\"\",Pilotage!P$27,\"\")","v":{"$error":"#REF!"}},{"$f":"IF(Stock!#REF!<>\"\",ROUND(Q344*S344,0),\"\")","v":{"$error":"#REF!"}},{"$f":"IF(Stock!#REF!<>\"\",$H344*T344,\"\")","v":{"$error":"#REF!"}},{"$f":"IF(Stock!#REF!<>\"\",Pilotage!Q$27,\"\")","v":{"$error":"#REF!"}},{"$f":"IF(Stock!#REF!<>\"\",ROUND(T344*V344,0),\"\")","v":{"$error":"#REF!"}},{"$f":"IF(Stock!#REF!<>\"\",$H344*W344,\"\")","v":{"$error":"#REF!"}},{"$f":"IF(Stock!#REF!<>\"\",Pilotage!R$27,\"\")","v":{"$error":"#REF!"}},{"$f":"IF(Stock!#REF!<>\"\",ROUND(W344*Y344,0),\"\")","v":{"$error":"#REF!"}},{"$f":"IF(Stock!#REF!<>\"\",$H344*Z344,\"\")","v":{"$error":"#REF!"}}]
[{"$f":"IF(Stock!#REF!<>\"\",Stock!#REF!,\"\")","v":{"$error":"#REF!"}},{"$f":"IF(Stock!#REF!<>\"\",Stock!#REF!,\"\")","v":{"$error":"#REF!"}},{"$f":"IF(Stock!#REF!<>\"\",Stock!#REF!,\"\")","v":{"$error":"#REF!"}},{"$f":"IF(Stock!#REF!<>\"\",SUM(Stock!#REF!,Stock!#REF!,Stock!#REF!),\"\")","v":{"$error":"#REF!"}},{"$f":"IF(Stock!#REF!<>\"\",#REF!*(1+Pilotage!$M$20),\"\")","v":{"$error":"#REF!"}},null,{"$f":"IF(Stock!#REF!<>\"\",IF(Stock!#REF!>0,Stock!#REF!/Stock!#REF!,0),\"\")","v":{"$error":"#REF!"}},{"$f":"IF(Stock!#REF!<>\"\",E345*Pilotage!$D$15,\"\")","v":{"$error":"#REF!"}},{"$f":"IF(Stock!#REF!<>\"\",IF(Stock!#REF!>0,Stock!#REF!,0),\"\")","v":{"$error":"#REF!"}},{"$f":"IF(Stock!#REF!<>\"\",Pilotage!$M$27,\"\")","v":{"$error":"#REF!"}},{"$f":"IF(Stock!#REF!<>\"\",ROUND(Stock!#REF!*J345,0),\"\")","v":{"$error":"#REF!"}},{"$f":"IF(Stock!#REF!<>\"\",$H345*K345,\"\")","v":{"$error":"#REF!"}},{"$f":"IF(Stock!#REF!<>\"\",Pilotage!N$27,\"\")","v":{"$error":"#REF!"}},{"$f":"IF(Stock!#REF!<>\"\",ROUND(K345*M345,0),\"\")","v":{"$error":"#REF!"}},{"$f":"IF(Stock!#REF!<>\"\",$H345*N345,\"\")","v":{"$error":"#REF!"}},{"$f":"IF(Stock!#REF!<>\"\",Pilotage!O$27,\"\")","v":{"$error":"#REF!"}},{"$f":"IF(Stock!#REF!<>\"\",ROUND(K345*P345,0),\"\")","v":{"$error":"#REF!"}},{"$f":"IF(Stock!#REF!<>\"\",$H345*Q345,\"\")","v":{"$error":"#REF!"}},{"$f":"IF(Stock!#REF!<>\"\",Pilotage!P$27,\"\")","v":{"$error":"#REF!"}},{"$f":"IF(Stock!#REF!<>\"\",ROUND(Q345*S345,0),\"\")","v":{"$error":"#REF!"}},{"$f":"IF(Stock!#REF!<>\"\",$H345*T345,\"\")","v":{"$error":"#REF!"}},{"$f":"IF(Stock!#REF!<>\"\",Pilotage!Q$27,\"\")","v":{"$error":"#REF!"}},{"$f":"IF(Stock!#REF!<>\"\",ROUND(T345*V345,0),\"\")","v":{"$error":"#REF!"}},{"$f":"IF(Stock!#REF!<>\"\",$H345*W345,\"\")","v":{"$error":"#REF!"}},{"$f":"IF(Stock!#REF!<>\"\",Pilotage!R$27,\"\")","v":{"$error":"#REF!"}},{"$f":"IF(Stock!#REF!<>\"\",ROUND(W345*Y345,0),\"\")","v":{"$error":"#REF!"}},{"$f":"IF(Stock!#REF!<>\"\",$H345*Z345,\"\")","v":{"$error":"#REF!"}}]
[{"$f":"IF(Stock!#REF!<>\"\",Stock!#REF!,\"\")","v":{"$error":"#REF!"}},{"$f":"IF(Stock!#REF!<>\"\",Stock!#REF!,\"\")","v":{"$error":"#REF!"}},{"$f":"IF(Stock!#REF!<>\"\",Stock!#REF!,\"\")","v":{"$error":"#REF!"}},{"$f":"IF(Stock!#REF!<>\"\",SUM(Stock!#REF!,Stock!#REF!,Stock!#REF!),\"\")","v":{"$error":"#REF!"}},{"$f":"IF(Stock!#REF!<>\"\",#REF!*(1+Pilotage!$M$20),\"\")","v":{"$error":"#REF!"}},null,{"$f":"IF(Stock!#REF!<>\"\",IF(Stock!#REF!>0,Stock!#REF!/Stock!#REF!,0),\"\")","v":{"$error":"#REF!"}},{"$f":"IF(Stock!#REF!<>\"\",E346*Pilotage!$D$15,\"\")","v":{"$error":"#REF!"}},{"$f":"IF(Stock!#REF!<>\"\",IF(Stock!#REF!>0,Stock!#REF!,0),\"\")","v":{"$error":"#REF!"}},{"$f":"IF(Stock!#REF!<>\"\",Pilotage!$M$27,\"\")","v":{"$error":"#REF!"}},{"$f":"IF(Stock!#REF!<>\"\",ROUND(Stock!#REF!*J346,0),\"\")","v":{"$error":"#REF!"}},{"$f":"IF(Stock!#REF!<>\"\",$H346*K346,\"\")","v":{"$error":"#REF!"}},{"$f":"IF(Stock!#REF!<>\"\",Pilotage!N$27,\"\")","v":{"$error":"#REF!"}},{"$f":"IF(Stock!#REF!<>\"\",ROUND(K346*M346,0),\"\")","v":{"$error":"#REF!"}},{"$f":"IF(Stock!#REF!<>\"\",$H346*N346,\"\")","v":{"$error":"#REF!"}},{"$f":"IF(Stock!#REF!<>\"\",Pilotage!O$27,\"\")","v":{"$error":"#REF!"}},{"$f":"IF(Stock!#REF!<>\"\",ROUND(K346*P346,0),\"\")","v":{"$error":"#REF!"}},{"$f":"IF(Stock!#REF!<>\"\",$H346*Q346,\"\")","v":{"$error":"#REF!"}},{"$f":"IF(Stock!#REF!<>\"\",Pilotage!P$27,\"\")","v":{"$error":"#REF!"}},{"$f":"IF(Stock!#REF!<>\"\",ROUND(Q346*S346,0),\"\")","v":{"$error":"#REF!"}},{"$f":"IF(Stock!#REF!<>\"\",$H346*T346,\"\")","v":{"$error":"#REF!"}},{"$f":"IF(Stock!#REF!<>\"\",Pilotage!Q$27,\"\")","v":{"$error":"#REF!"}},{"$f":"IF(Stock!#REF!<>\"\",ROUND(T346*V346,0),\"\")","v":{"$error":"#REF!"}},{"$f":"IF(Stock!#REF!<>\"\",$H346*W346,\"\")","v":{"$error":"#REF!"}},{"$f":"IF(Stock!#REF!<>\"\",Pilotage!R$27,\"\")","v":{"$error":"#REF!"}},{"$f":"IF(Stock!#REF!<>\"\",ROUND(W346*Y346,0),\"\")","v":{"$error":"#REF!"}},{"$f":"IF(Stock!#REF!<>\"\",$H346*Z346,\"\")","v":{"$error":"#REF!"}}]
[{"$f":"IF(Stock!#REF!<>\"\",Stock!#REF!,\"\")","v":{"$error":"#REF!"}},{"$f":"IF(Stock!#REF!<>\"\",Stock!#REF!,\"\")","v":{"$error":"#REF!"}},{"$f":"IF(Stock!#REF!<>\"\",Stock!#REF!,\"\")","v":{"$error":"#REF!"}},{"$f":"IF(Stock!#REF!<>\"\",SUM(Stock!#REF!,Stock!#REF!,Stock!#REF!),\"\")","v":{"$error":"#REF!"}},{"$f":"IF(Stock!#REF!<>\"\",#REF!*(1+Pilotage!$M$20),\"\")","v":{"$error":"#REF!"}},null,{"$f":"IF(Stock!#REF!<>\"\",IF(Stock!#REF!>0,Stock!#REF!/Stock!#REF!,0),\"\")","v":{"$error":"#REF!"}},{"$f":"IF(Stock!#REF!<>\"\",E347*Pilotage!$D$15,\"\")","v":{"$error":"#REF!"}},{"$f":"IF(Stock!#REF!<>\"\",IF(Stock!#REF!>0,Stock!#REF!,0),\"\")","v":{"$error":"#REF!"}},{"$f":"IF(Stock!#REF!<>\"\",Pilotage!$M$27,\"\")","v":{"$error":"#REF!"}},{"$f":"IF(Stock!#REF!<>\"\",ROUND(Stock!#REF!*J347,0),\"\")","v":{"$error":"#REF!"}},{"$f":"IF(Stock!#REF!<>\"\",$H347*K347,\"\")","v":{"$error":"#REF!"}},{"$f":"IF(Stock!#REF!<>\"\",Pilotage!N$27,\"\")","v":{"$error":"#REF!"}},{"$f":"IF(Stock!#REF!<>\"\",ROUND(K347*M347,0),\"\")","v":{"$error":"#REF!"}},{"$f":"IF(Stock!#REF!<>\"\",$H347*N347,\"\")","v":{"$error":"#REF!"}},{"$f":"IF(Stock!#REF!<>\"\",Pilotage!O$27,\"\")","v":{"$error":"#REF!"}},{"$f":"IF(Stock!#REF!<>\"\",ROUND(K347*P347,0),\"\")","v":{"$error":"#REF!"}},{"$f":"IF(Stock!#REF!<>\"\",$H347*Q347,\"\")","v":{"$error":"#REF!"}},{"$f":"IF(Stock!#REF!<>\"\",Pilotage!P$27,\"\")","v":{"$error":"#REF!"}},{"$f":"IF(Stock!#REF!<>\"\",ROUND(Q347*S347,0),\"\")","v":{"$error":"#REF!"}},{"$f":"IF(Stock!#REF!<>\"\",$H347*T347,\"\")","v":{"$error":"#REF!"}},{"$f":"IF(Stock!#REF!<>\"\",Pilotage!Q$27,\"\")","v":{"$error":"#REF!"}},{"$f":"IF(Stock!#REF!<>\"\",ROUND(T347*V347,0),\"\")","v":{"$error":"#REF!"}},{"$f":"IF(Stock!#REF!<>\"\",$H347*W347,\"\")","v":{"$error":"#REF!"}},{"$f":"IF(Stock!#REF!<>\"\",Pilotage!R$27,\"\")","v":{"$error":"#REF!"}},{"$f":"IF(Stock!#REF!<>\"\",ROUND(W347*Y347,0),\"\")","v":{"$error":"#REF!"}},{"$f":"IF(Stock!#REF!<>\"\",$H347*Z347,\"\")","v":{"$error":"#REF!"}}]
[{"$f":"IF(Stock!#REF!<>\"\",Stock!#REF!,\"\")","v":{"$error":"#REF!"}},{"$f":"IF(Stock!#REF!<>\"\",Stock!#REF!,\"\")","v":{"$error":"#REF!"}},{"$f":"IF(Stock!#REF!<>\"\",Stock!#REF!,\"\")","v":{"$error":"#REF!"}},{"$f":"IF(Stock!#REF!<>\"\",SUM(Stock!#REF!,Stock!#REF!,Stock!#REF!),\"\")","v":{"$error":"#REF!"}},{"$f":"IF(Stock!#REF!<>\"\",#REF!*(1+Pilotage!$M$20),\"\")","v":{"$error":"#REF!"}},null,{"$f":"IF(Stock!#REF!<>\"\",IF(Stock!#REF!>0,Stock!#REF!/Stock!#REF!,0),\"\")","v":{"$error":"#REF!"}},{"$f":"IF(Stock!#REF!<>\"\",E348*Pilotage!$D$15,\"\")","v":{"$error":"#REF!"}},{"$f":"IF(Stock!#REF!<>\"\",IF(Stock!#REF!>0,Stock!#REF!,0),\"\")","v":{"$error":"#REF!"}},{"$f":"IF(Stock!#REF!<>\"\",Pilotage!$M$27,\"\")","v":{"$error":"#REF!"}},{"$f":"IF(Stock!#REF!<>\"\",ROUND(Stock!#REF!*J348,0),\"\")","v":{"$error":"#REF!"}},{"$f":"IF(Stock!#REF!<>\"\",$H348*K348,\"\")","v":{"$error":"#REF!"}},{"$f":"IF(Stock!#REF!<>\"\",Pilotage!N$27,\"\")","v":{"$error":"#REF!"}},{"$f":"IF(Stock!#REF!<>\"\",ROUND(K348*M348,0),\"\")","v":{"$error":"#REF!"}},{"$f":"IF(Stock!#REF!<>\"\",$H348*N348,\"\")","v":{"$error":"#REF!"}},{"$f":"IF(Stock!#REF!<>\"\",Pilotage!O$27,\"\")","v":{"$error":"#REF!"}},{"$f":"IF(Stock!#REF!<>\"\",ROUND(K348*P348,0),\"\")","v":{"$error":"#REF!"}},{"$f":"IF(Stock!#REF!<>\"\",$H348*Q348,\"\")","v":{"$error":"#REF!"}},{"$f":"IF(Stock!#REF!<>\"\",Pilotage!P$27,\"\")","v":{"$error":"#REF!"}},{"$f":"IF(Stock!#REF!<>\"\",ROUND(Q348*S348,0),\"\")","v":{"$error":"#REF!"}},{"$f":"IF(Stock!#REF!<>\"\",$H348*T348,\"\")","v":{"$error":"#REF!"}},{"$f":"IF(Stock!#REF!<>\"\",Pilotage!Q$27,\"\")","v":{"$error":"#REF!"}},{"$f":"IF(Stock!#REF!<>\"\",ROUND(T348*V348,0),\"\")","v":{"$error":"#REF!"}},{"$f":"IF(Stock!#REF!<>\"\",$H348*W348,\"\")","v":{"$error":"#REF!"}},{"$f":"IF(Stock!#REF!<>\"\",Pilotage!R$27,\"\")","v":{"$error":"#REF!"}},{"$f":"IF(Stock!#REF!<>\"\",ROUND(W348*Y348,0),\"\")","v":{"$error":"#REF!"}},{"$f":"IF(Stock!#REF!<>\"\",$H348*Z348,\"\")","v":{"$error":"#REF!"}}]
[{"$f":"IF(Stock!#REF!<>\"\",Stock!#REF!,\"\")","v":{"$error":"#REF!"}},{"$f":"IF(Stock!#REF!<>\"\",Stock!#REF!,\"\")","v":{"$error":"#REF!"}},{"$f":"IF(Stock!#REF!<>\"\",Stock!#REF!,\"\")","v":{"$error":"#REF!"}},{"$f":"IF(Stock!#REF!<>\"\",SUM(Stock!#REF!,Stock!#REF!,Stock!#REF!),\"\")","v":{"$error":"#REF!"}},{"$f":"IF(Stock!#REF!<>\"\",#REF!*(1+Pilotage!$M$20),\"\")","v":{"$error":"#REF!"}},null,{"$f":"IF(Stock!#REF!<>\"\",IF(Stock!#REF!>0,Stock!#REF!/Stock!#REF!,0),\"\")","v":{"$error":"#REF!"}},{"$f":"IF(Stock!#REF!<>\"\",E349*Pilotage!$D$15,\"\")","v":{"$error":"#REF!"}},{"$f":"IF(Stock!#REF!<>\"\",IF(Stock!#REF!>0,Stock!#REF!,0),\"\")","v":{"$error":"#REF!"}},{"$f":"IF(Stock!#REF!<>\"\",Pilotage!$M$27,\"\")","v":{"$error":"#REF!"}},{"$f":"IF(Stock!#REF!<>\"\",ROUND(Stock!#REF!*J349,0),\"\")","v":{"$error":"#REF!"}},{"$f":"IF(Stock!#REF!<>\"\",$H349*K349,\"\")","v":{"$error":"#REF!"}},{"$f":"IF(Stock!#REF!<>\"\",Pilotage!N$27,\"\")","v":{"$error":"#REF!"}},{"$f":"IF(Stock!#REF!<>\"\",ROUND(K349*M349,0),\"\")","v":{"$error":"#REF!"}},{"$f":"IF(Stock!#REF!<>\"\",$H349*N349,\"\")","v":{"$error":"#REF!"}},{"$f":"IF(Stock!#REF!<>\"\",Pilotage!O$27,\"\")","v":{"$error":"#REF!"}},{"$f":"IF(Stock!#REF!<>\"\",ROUND(K349*P349,0),\"\")","v":{"$error":"#REF!"}},{"$f":"IF(Stock!#REF!<>\"\",$H349*Q349,\"\")","v":{"$error":"#REF!"}},{"$f":"IF(Stock!#REF!<>\"\",Pilotage!P$27,\"\")","v":{"$error":"#REF!"}},{"$f":"IF(Stock!#REF!<>\"\",ROUND(Q349*S349,0),\"\")","v":{"$error":"#REF!"}},{"$f":"IF(Stock!#REF!<>\"\",$H349*T349,\"\")","v":{"$error":"#REF!"}},{"$f":"IF(Stock!#REF!<>\"\",Pilotage!Q$27,\"\")","v":{"$error":"#REF!"}},{"$f":"IF(Stock!#REF!<>\"\",ROUND(T349*V349,0),\"\")","v":{"$error":"#REF!"}},{"$f":"IF(Stock!#REF!<>\"\",$H349*W349,\"\")","v":{"$error":"#REF!"}},{"$f":"IF(Stock!#REF!<>\"\",Pilotage!R$27,\"\")","v":{"$error":"#REF!"}},{"$f":"IF(Stock!#REF!<>\"\",ROUND(W349*Y349,0),\"\")","v":{"$error":"#REF!"}},{"$f":"IF(Stock!#REF!<>\"\",$H349*Z349,\"\")","v":{"$error":"#REF!"}}]
[{"$f":"IF(Stock!#REF!<>\"\",Stock!#REF!,\"\")","v":{"$error":"#REF!"}},{"$f":"IF(Stock!#REF!<>\"\",Stock!#REF!,\"\")","v":{"$error":"#REF!"}},{"$f":"IF(Stock!#REF!<>\"\",Stock!#REF!,\"\")","v":{"$error":"#REF!"}},{"$f":"IF(Stock!#REF!<>\"\",SUM(Stock!#REF!,Stock!#REF!,Stock!#REF!),\"\")","v":{"$error":"#REF!"}},{"$f":"IF(Stock!#REF!<>\"\",#REF!*(1+Pilotage!$M$20),\"\")","v":{"$error":"#REF!"}},null,{"$f":"IF(Stock!#REF!<>\"\",IF(Stock!#REF!>0,Stock!#REF!/Stock!#REF!,0),\"\")","v":{"$error":"#REF!"}},{"$f":"IF(Stock!#REF!<>\"\",E350*Pilotage!$D$15,\"\")","v":{"$error":"#REF!"}},{"$f":"IF(Stock!#REF!<>\"\",IF(Stock!#REF!>0,Stock!#REF!,0),\"\")","v":{"$error":"#REF!"}},{"$f":"IF(Stock!#REF!<>\"\",Pilotage!$M$27,\"\")","v":{"$error":"#REF!"}},{"$f":"IF(Stock!#REF!<>\"\",ROUND(Stock!#REF!*J350,0),\"\")","v":{"$error":"#REF!"}},{"$f":"IF(Stock!#REF!<>\"\",$H350*K350,\"\")","v":{"$error":"#REF!"}},{"$f":"IF(Stock!#REF!<>\"\",Pilotage!N$27,\"\")","v":{"$error":"#REF!"}},{"$f":"IF(Stock!#REF!<>\"\",ROUND(K350*M350,0),\"\")","v":{"$error":"#REF!"}},{"$f":"IF(Stock!#REF!<>\"\",$H350*N350,\"\")","v":{"$error":"#REF!"}},{"$f":"IF(Stock!#REF!<>\"\",Pilotage!O$27,\"\")","v":{"$error":"#REF!"}},{"$f":"IF(Stock!#REF!<>\"\",ROUND(K350*P350,0),\"\")","v":{"$error":"#REF!"}},{"$f":"IF(Stock!#REF!<>\"\",$H350*Q350,\"\")","v":{"$error":"#REF!"}},{"$f":"IF(Stock!#REF!<>\"\",Pilotage!P$27,\"\")","v":{"$error":"#REF!"}},{"$f":"IF(Stock!#REF!<>\"\",ROUND(Q350*S350,0),\"\")","v":{"$error":"#REF!"}},{"$f":"IF(Stock!#REF!<>\"\",$H350*T350,\"\")","v":{"$error":"#REF!"}},{"$f":"IF(Stock!#REF!<>\"\",Pilotage!Q$27,\"\")","v":{"$error":"#REF!"}},{"$f":"IF(Stock!#REF!<>\"\",ROUND(T350*V350,0),\"\")","v":{"$error":"#REF!"}},{"$f":"IF(Stock!#REF!<>\"\",$H350*W350,\"\")","v":{"$error":"#REF!"}},{"$f":"IF(Stock!#REF!<>\"\",Pilotage!R$27,\"\")","v":{"$error":"#REF!"}},{"$f":"IF(Stock!#REF!<>\"\",ROUND(W350*Y350,0),\"\")","v":{"$error":"#REF!"}},{"$f":"IF(Stock!#REF!<>\"\",$H350*Z350,\"\")","v":{"$error":"#REF!"}}]
[{"$f":"IF(Stock!#REF!<>\"\",Stock!#REF!,\"\")","v":{"$error":"#REF!"}},{"$f":"IF(Stock!#REF!<>\"\",Stock!#REF!,\"\")","v":{"$error":"#REF!"}},{"$f":"IF(Stock!#REF!<>\"\",Stock!#REF!,\"\")","v":{"$error":"#REF!"}},{"$f":"IF(Stock!#REF!<>\"\",SUM(Stock!#REF!,Stock!#REF!,Stock!#REF!),\"\")","v":{"$error":"#REF!"}},{"$f":"IF(Stock!#REF!<>\"\",#REF!*(1+Pilotage!$M$20),\"\")","v":{"$error":"#REF!"}},null,{"$f":"IF(Stock!#REF!<>\"\",IF(Stock!#REF!>0,Stock!#REF!/Stock!#REF!,0),\"\")","v":{"$error":"#REF!"}},{"$f":"IF(Stock!#REF!<>\"\",E351*Pilotage!$D$15,\"\")","v":{"$error":"#REF!"}},{"$f":"IF(Stock!#REF!<>\"\",IF(Stock!#REF!>0,Stock!#REF!,0),\"\")","v":{"$error":"#REF!"}},{"$f":"IF(Stock!#REF!<>\"\",Pilotage!$M$27,\"\")","v":{"$error":"#REF!"}},{"$f":"IF(Stock!#REF!<>\"\",ROUND(Stock!#REF!*J351,0),\"\")","v":{"$error":"#REF!"}},{"$f":"IF(Stock!#REF!<>\"\",$H351*K351,\"\")","v":{"$error":"#REF!"}},{"$f":"IF(Stock!#REF!<>\"\",Pilotage!N$27,\"\")","v":{"$error":"#REF!"}},{"$f":"IF(Stock!#REF!<>\"\",ROUND(K351*M351,0),\"\")","v":{"$error":"#REF!"}},{"$f":"IF(Stock!#REF!<>\"\",$H351*N351,\"\")","v":{"$error":"#REF!"}},{"$f":"IF(Stock!#REF!<>\"\",Pilotage!O$27,\"\")","v":{"$error":"#REF!"}},{"$f":"IF(Stock!#REF!<>\"\",ROUND(K351*P351,0),\"\")","v":{"$error":"#REF!"}},{"$f":"IF(Stock!#REF!<>\"\",$H351*Q351,\"\")","v":{"$error":"#REF!"}},{"$f":"IF(Stock!#REF!<>\"\",Pilotage!P$27,\"\")","v":{"$error":"#REF!"}},{"$f":"IF(Stock!#REF!<>\"\",ROUND(Q351*S351,0),\"\")","v":{"$error":"#REF!"}},{"$f":"IF(Stock!#REF!<>\"\",$H351*T351,\"\")","v":{"$error":"#REF!"}},{"$f":"IF(Stock!#REF!<>\"\",Pilotage!Q$27,\"\")","v":{"$error":"#REF!"}},{"$f":"IF(Stock!#REF!<>\"\",ROUND(T351*V351,0),\"\")","v":{"$error":"#REF!"}},{"$f":"IF(Stock!#REF!<>\"\",$H351*W351,\"\")","v":{"$error":"#REF!"}},{"$f":"IF(Stock!#REF!<>\"\",Pilotage!R$27,\"\")","v":{"$error":"#REF!"}},{"$f":"IF(Stock!#REF!<>\"\",ROUND(W351*Y351,0),\"\")","v":{"$error":"#REF!"}},{"$f":"IF(Stock!#REF!<>\"\",$H351*Z351,\"\")","v":{"$error":"#REF!"}}]
[{"$f":"IF(Stock!#REF!<>\"\",Stock!#REF!,\"\")","v":{"$error":"#REF!"}},{"$f":"IF(Stock!#REF!<>\"\",Stock!#REF!,\"\")","v":{"$error":"#REF!"}},{"$f":"IF(Stock!#REF!<>\"\",Stock!#REF!,\"\")","v":{"$error":"#REF!"}},{"$f":"IF(Stock!#REF!<>\"\",SUM(Stock!#REF!,Stock!#REF!,Stock!#REF!),\"\")","v":{"$error":"#REF!"}},{"$f":"IF(Stock!#REF!<>\"\",#REF!*(1+Pilotage!$M$20),\"\")","v":{"$error":"#REF!"}},null,{"$f":"IF(Stock!#REF!<>\"\",IF(Stock!#REF!>0,Stock!#REF!/Stock!#REF!,0),\"\")","v":{"$error":"#REF!"}},{"$f":"IF(Stock!#REF!<>\"\",E352*Pilotage!$D$15,\"\")","v":{"$error":"#REF!"}},{"$f":"IF(Stock!#REF!<>\"\",IF(Stock!#REF!>0,Stock!#REF!,0),\"\")","v":{"$error":"#REF!"}},{"$f":"IF(Stock!#REF!<>\"\",Pilotage!$M$27,\"\")","v":{"$error":"#REF!"}},{"$f":"IF(Stock!#REF!<>\"\",ROUND(Stock!#REF!*J352,0),\"\")","v":{"$error":"#REF!"}},{"$f":"IF(Stock!#REF!<>\"\",$H352*K352,\"\")","v":{"$error":"#REF!"}},{"$f":"IF(Stock!#REF!<>\"\",Pilotage!N$27,\"\")","v":{"$error":"#REF!"}},{"$f":"IF(Stock!#REF!<>\"\",ROUND(K352*M352,0),\"\")","v":{"$error":"#REF!"}},{"$f":"IF(Stock!#REF!<>\"\",$H352*N352,\"\")","v":{"$error":"#REF!"}},{"$f":"IF(Stock!#REF!<>\"\",Pilotage!O$27,\"\")","v":{"$error":"#REF!"}},{"$f":"IF(Stock!#REF!<>\"\",ROUND(K352*P352,0),\"\")","v":{"$error":"#REF!"}},{"$f":"IF(Stock!#REF!<>\"\",$H352*Q352,\"\")","v":{"$error":"#REF!"}},{"$f":"IF(Stock!#REF!<>\"\",Pilotage!P$27,\"\")","v":{"$error":"#REF!"}},{"$f":"IF(Stock!#REF!<>\"\",ROUND(Q352*S352,0),\"\")","v":{"$error":"#REF!"}},{"$f":"IF(Stock!#REF!<>\"\",$H352*T352,\"\")","v":{"$error":"#REF!"}},{"$f":"IF(Stock!#REF!<>\"\",Pilotage!Q$27,\"\")","v":{"$error":"#REF!"}},{"$f":"IF(Stock!#REF!<>\"\",ROUND(T352*V352,0),\"\")","v":{"$error":"#REF!"}},{"$f":"IF(Stock!#REF!<>\"\",$H352*W352,\"\")","v":{"$error":"#REF!"}},{"$f":"IF(Stock!#REF!<>\"\",Pilotage!R$27,\"\")","v":{"$error":"#REF!"}},{"$f":"IF(Stock!#REF!<>\"\",ROUND(W352*Y352,0),\"\")","v":{"$error":"#REF!"}},{"$f":"IF(Stock!#REF!<>\"\",$H352*Z352,\"\")","v":{"$error":"#REF!"}}]
[{"$f":"IF(Stock!#REF!<>\"\",Stock!#REF!,\"\")","v":{"$error":"#REF!"}},{"$f":"IF(Stock!#REF!<>\"\",Stock!#REF!,\"\")","v":{"$error":"#REF!"}},{"$f":"IF(Stock!#REF!<>\"\",Stock!#REF!,\"\")","v":{"$error":"#REF!"}},{"$f":"IF(Stock!#REF!<>\"\",SUM(Stock!#REF!,Stock!#REF!,Stock!#REF!),\"\")","v":{"$error":"#REF!"}},{"$f":"IF(Stock!#REF!<>\"\",#REF!*(1+Pilotage!$M$20),\"\")","v":{"$error":"#REF!"}},null,{"$f":"IF(Stock!#REF!<>\"\",IF(Stock!#REF!>0,Stock!#REF!/Stock!#REF!,0),\"\")","v":{"$error":"#REF!"}},{"$f":"IF(Stock!#REF!<>\"\",E353*Pilotage!$D$15,\"\")","v":{"$error":"#REF!"}},{"$f":"IF(Stock!#REF!<>\"\",IF(Stock!#REF!>0,Stock!#REF!,0),\"\")","v":{"$error":"#REF!"}},{"$f":"IF(Stock!#REF!<>\"\",Pilotage!$M$27,\"\")","v":{"$error":"#REF!"}},{"$f":"IF(Stock!#REF!<>\"\",ROUND(Stock!#REF!*J353,0),\"\")","v":{"$error":"#REF!"}},{"$f":"IF(Stock!#REF!<>\"\",$H353*K353,\"\")","v":{"$error":"#REF!"}},{"$f":"IF(Stock!#REF!<>\"\",Pilotage!N$27,\"\")","v":{"$error":"#REF!"}},{"$f":"IF(Stock!#REF!<>\"\",ROUND(K353*M353,0),\"\")","v":{"$error":"#REF!"}},{"$f":"IF(Stock!#REF!<>\"\",$H353*N353,\"\")","v":{"$error":"#REF!"}},{"$f":"IF(Stock!#REF!<>\"\",Pilotage!O$27,\"\")","v":{"$error":"#REF!"}},{"$f":"IF(Stock!#REF!<>\"\",ROUND(K353*P353,0),\"\")","v":{"$error":"#REF!"}},{"$f":"IF(Stock!#REF!<>\"\",$H353*Q353,\"\")","v":{"$error":"#REF!"}},{"$f":"IF(Stock!#REF!<>\"\",Pilotage!P$27,\"\")","v":{"$error":"#REF!"}},{"$f":"IF(Stock!#REF!<>\"\",ROUND(Q353*S353,0),\"\")","v":{"$error":"#REF!"}},{"$f":"IF(Stock!#REF!<>\"\",$H353*T353,\"\")","v":{"$error":"#REF!"}},{"$f":"IF(Stock!#REF!<>\"\",Pilotage!Q$27,\"\")","v":{"$error":"#REF!"}},{"$f":"IF(Stock!#REF!<>\"\",ROUND(T353*V353,0),\"\")","v":{"$error":"#REF!"}},{"$f":"IF(Stock!#REF!<>\"\",$H353*W353,\"\")","v":{"$error":"#REF!"}},{"$f":"IF(Stock!#REF!<>\"\",Pilotage!R$27,\"\")","v":{"$error":"#REF!"}},{"$f":"IF(Stock!#REF!<>\"\",ROUND(W353*Y353,0),\"\")","v":{"$error":"#REF!"}},{"$f":"IF(Stock!#REF!<>\"\",$H353*Z353,\"\")","v":{"$error":"#REF!"}}]
[{"$f":"IF(Stock!#REF!<>\"\",Stock!#REF!,\"\")","v":{"$error":"#REF!"}},{"$f":"IF(Stock!#REF!<>\"\",Stock!#REF!,\"\")","v":{"$error":"#REF!"}},{"$f":"IF(Stock!#REF!<>\"\",Stock!#REF!,\"\")","v":{"$error":"#REF!"}},{"$f":"IF(Stock!#REF!<>\"\",SUM(Stock!#REF!,Stock!#REF!,Stock!#REF!),\"\")","v":{"$error":"#REF!"}},{"$f":"IF(Stock!#REF!<>\"\",#REF!*(1+Pilotage!$M$20),\"\")","v":{"$error":"#REF!"}},null,{"$f":"IF(Stock!#REF!<>\"\",IF(Stock!#REF!>0,Stock!#REF!/Stock!#REF!,0),\"\")","v":{"$error":"#REF!"}},{"$f":"IF(Stock!#REF!<>\"\",E354*Pilotage!$D$15,\"\")","v":{"$error":"#REF!"}},{"$f":"IF(Stock!#REF!<>\"\",IF(Stock!#REF!>0,Stock!#REF!,0),\"\")","v":{"$error":"#REF!"}},{"$f":"IF(Stock!#REF!<>\"\",Pilotage!$M$27,\"\")","v":{"$error":"#REF!"}},{"$f":"IF(Stock!#REF!<>\"\",ROUND(Stock!#REF!*J354,0),\"\")","v":{"$error":"#REF!"}},{"$f":"IF(Stock!#REF!<>\"\",$H354*K354,\"\")","v":{"$error":"#REF!"}},{"$f":"IF(Stock!#REF!<>\"\",Pilotage!N$27,\"\")","v":{"$error":"#REF!"}},{"$f":"IF(Stock!#REF!<>\"\",ROUND(K354*M354,0),\"\")","v":{"$error":"#REF!"}},{"$f":"IF(Stock!#REF!<>\"\",$H354*N354,\"\")","v":{"$error":"#REF!"}},{"$f":"IF(Stock!#REF!<>\"\",Pilotage!O$27,\"\")","v":{"$error":"#REF!"}},{"$f":"IF(Stock!#REF!<>\"\",ROUND(K354*P354,0),\"\")","v":{"$error":"#REF!"}},{"$f":"IF(Stock!#REF!<>\"\",$H354*Q354,\"\")","v":{"$error":"#REF!"}},{"$f":"IF(Stock!#REF!<>\"\",Pilotage!P$27,\"\")","v":{"$error":"#REF!"}},{"$f":"IF(Stock!#REF!<>\"\",ROUND(Q354*S354,0),\"\")","v":{"$error":"#REF!"}},{"$f":"IF(Stock!#REF!<>\"\",$H354*T354,\"\")","v":{"$error":"#REF!"}},{"$f":"IF(Stock!#REF!<>\"\",Pilotage!Q$27,\"\")","v":{"$error":"#REF!"}},{"$f":"IF(Stock!#REF!<>\"\",ROUND(T354*V354,0),\"\")","v":{"$error":"#REF!"}},{"$f":"IF(Stock!#REF!<>\"\",$H354*W354,\"\")","v":{"$error":"#REF!"}},{"$f":"IF(Stock!#REF!<>\"\",Pilotage!R$27,\"\")","v":{"$error":"#REF!"}},{"$f":"IF(Stock!#REF!<>\"\",ROUND(W354*Y354,0),\"\")","v":{"$error":"#REF!"}},{"$f":"IF(Stock!#REF!<>\"\",$H354*Z354,\"\")","v":{"$error":"#REF!"}}]
[{"$f":"IF(Stock!#REF!<>\"\",Stock!#REF!,\"\")","v":{"$error":"#REF!"}},{"$f":"IF(Stock!#REF!<>\"\",Stock!#REF!,\"\")","v":{"$error":"#REF!"}},{"$f":"IF(Stock!#REF!<>\"\",Stock!#REF!,\"\")","v":{"$error":"#REF!"}},{"$f":"IF(Stock!#REF!<>\"\",SUM(Stock!#REF!,Stock!#REF!,Stock!#REF!),\"\")","v":{"$error":"#REF!"}},{"$f":"IF(Stock!#REF!<>\"\",#REF!*(1+Pilotage!$M$20),\"\")","v":{"$error":"#REF!"}},null,{"$f":"IF(Stock!#REF!<>\"\",IF(Stock!#REF!>0,Stock!#REF!/Stock!#REF!,0),\"\")","v":{"$error":"#REF!"}},{"$f":"IF(Stock!#REF!<>\"\",E355*Pilotage!$D$15,\"\")","v":{"$error":"#REF!"}},{"$f":"IF(Stock!#REF!<>\"\",IF(Stock!#REF!>0,Stock!#REF!,0),\"\")","v":{"$error":"#REF!"}},{"$f":"IF(Stock!#REF!<>\"\",Pilotage!$M$27,\"\")","v":{"$error":"#REF!"}},{"$f":"IF(Stock!#REF!<>\"\",ROUND(Stock!#REF!*J355,0),\"\")","v":{"$error":"#REF!"}},{"$f":"IF(Stock!#REF!<>\"\",$H355*K355,\"\")","v":{"$error":"#REF!"}},{"$f":"IF(Stock!#REF!<>\"\",Pilotage!N$27,\"\")","v":{"$error":"#REF!"}},{"$f":"IF(Stock!#REF!<>\"\",ROUND(K355*M355,0),\"\")","v":{"$error":"#REF!"}},{"$f":"IF(Stock!#REF!<>\"\",$H355*N355,\"\")","v":{"$error":"#REF!"}},{"$f":"IF(Stock!#REF!<>\"\",Pilotage!O$27,\"\")","v":{"$error":"#REF!"}},{"$f":"IF(Stock!#REF!<>\"\",ROUND(K355*P355,0),\"\")","v":{"$error":"#REF!"}},{"$f":"IF(Stock!#REF!<>\"\",$H355*Q355,\"\")","v":{"$error":"#REF!"}},{"$f":"IF(Stock!#REF!<>\"\",Pilotage!P$27,\"\")","v":{"$error":"#REF!"}},{"$f":"IF(Stock!#REF!<>\"\",ROUND(Q355*S355,0),\"\")","v":{"$error":"#REF!"}},{"$f":"IF(Stock!#REF!<>\"\",$H355*T355,\"\")","v":{"$error":"#REF!"}},{"$f":"IF(Stock!#REF!<>\"\",Pilotage!Q$27,\"\")","v":{"$error":"#REF!"}},{"$f":"IF(Stock!#REF!<>\"\",ROUND(T355*V355,0),\"\")","v":{"$error":"#REF!"}},{"$f":"IF(Stock!#REF!<>\"\",$H355*W355,\"\")","v":{"$error":"#REF!"}},{"$f":"IF(Stock!#REF!<>\"\",Pilotage!R$27,\"\")","v":{"$error":"#REF!"}},{"$f":"IF(Stock!#REF!<>\"\",ROUND(W355*Y355,0),\"\")","v":{"$error":"#REF!"}},{"$f":"IF(Stock!#REF!<>\"\",$H355*Z355,\"\")","v":{"$error":"#REF!"}}]
[{"$f":"IF(Stock!#REF!<>\"\",Stock!#REF!,\"\")","v":{"$error":"#REF!"}},{"$f":"IF(Stock!#REF!<>\"\",Stock!#REF!,\"\")","v":{"$error":"#REF!"}},{"$f":"IF(Stock!#REF!<>\"\",Stock!#REF!,\"\")","v":{"$error":"#REF!"}},{"$f":"IF(Stock!#REF!<>\"\",SUM(Stock!#REF!,Stock!#REF!,Stock!#REF!),\"\")","v":{"$error":"#REF!"}},{"$f":"IF(Stock!#REF!<>\"\",#REF!*(1+Pilotage!$M$20),\"\")","v":{"$error":"#REF!"}},null,{"$f":"IF(Stock!#REF!<>\"\",IF(Stock!#REF!>0,Stock!#REF!/Stock!#REF!,0),\"\")","v":{"$error":"#REF!"}},{"$f":"IF(Stock!#REF!<>\"\",E356*Pilotage!$D$15,\"\")","v":{"$error":"#REF!"}},{"$f":"IF(Stock!#REF!<>\"\",IF(Stock!#REF!>0,Stock!#REF!,0),\"\")","v":{"$error":"#REF!"}},{"$f":"IF(Stock!#REF!<>\"\",Pilotage!$M$27,\"\")","v":{"$error":"#REF!"}},{"$f":"IF(Stock!#REF!<>\"\",ROUND(Stock!#REF!*J356,0),\"\")","v":{"$error":"#REF!"}},{"$f":"IF(Stock!#REF!<>\"\",$H356*K356,\"\")","v":{"$error":"#REF!"}},{"$f":"IF(Stock!#REF!<>\"\",Pilotage!N$27,\"\")","v":{"$error":"#REF!"}},{"$f":"IF(Stock!#REF!<>\"\",ROUND(K356*M356,0),\"\")","v":{"$error":"#REF!"}},{"$f":"IF(Stock!#REF!<>\"\",$H356*N356,\"\")","v":{"$error":"#REF!"}},{"$f":"IF(Stock!#REF!<>\"\",Pilotage!O$27,\"\")","v":{"$error":"#REF!"}},{"$f":"IF(Stock!#REF!<>\"\",ROUND(K356*P356,0),\"\")","v":{"$error":"#REF!"}},{"$f":"IF(Stock!#REF!<>\"\",$H356*Q356,\"\")","v":{"$error":"#REF!"}},{"$f":"IF(Stock!#REF!<>\"\",Pilotage!P$27,\"\")","v":{"$error":"#REF!"}},{"$f":"IF(Stock!#REF!<>\"\",ROUND(Q356*S356,0),\"\")","v":{"$error":"#REF!"}},{"$f":"IF(Stock!#REF!<>\"\",$H356*T356,\"\")","v":{"$error":"#REF!"}},{"$f":"IF(Stock!#REF!<>\"\",Pilotage!Q$27,\"\")","v":{"$error":"#REF!"}},{"$f":"IF(Stock!#REF!<>\"\",ROUND(T356*V356,0),\"\")","v":{"$error":"#REF!"}},{"$f":"IF(Stock!#REF!<>\"\",$H356*W356,\"\")","v":{"$error":"#REF!"}},{"$f":"IF(Stock!#REF!<>\"\",Pilotage!R$27,\"\")","v":{"$error":"#REF!"}},{"$f":"IF(Stock!#REF!<>\"\",ROUND(W356*Y356,0),\"\")","v":{"$error":"#REF!"}},{"$f":"IF(Stock!#REF!<>\"\",$H356*Z356,\"\")","v":{"$error":"#REF!"}}]
[{"$f":"IF(Stock!#REF!<>\"\",Stock!#REF!,\"\")","v":{"$error":"#REF!"}},{"$f":"IF(Stock!#REF!<>\"\",Stock!#REF!,\"\")","v":{"$error":"#REF!"}},{"$f":"IF(Stock!#REF!<>\"\",Stock!#REF!,\"\")","v":{"$error":"#REF!"}},{"$f":"IF(Stock!#REF!<>\"\",SUM(Stock!#REF!,Stock!#REF!,Stock!#REF!),\"\")","v":{"$error":"#REF!"}},{"$f":"IF(Stock!#REF!<>\"\",#REF!*(1+Pilotage!$M$20),\"\")","v":{"$error":"#REF!"}},null,{"$f":"IF(Stock!#REF!<>\"\",IF(Stock!#REF!>0,Stock!#REF!/Stock!#REF!,0),\"\")","v":{"$error":"#REF!"}},{"$f":"IF(Stock!#REF!<>\"\",E357*Pilotage!$D$15,\"\")","v":{"$error":"#REF!"}},{"$f":"IF(Stock!#REF!<>\"\",IF(Stock!#REF!>0,Stock!#REF!,0),\"\")","v":{"$error":"#REF!"}},{"$f":"IF(Stock!#REF!<>\"\",Pilotage!$M$27,\"\")","v":{"$error":"#REF!"}},{"$f":"IF(Stock!#REF!<>\"\",ROUND(Stock!#REF!*J357,0),\"\")","v":{"$error":"#REF!"}},{"$f":"IF(Stock!#REF!<>\"\",$H357*K357,\"\")","v":{"$error":"#REF!"}},{"$f":"IF(Stock!#REF!<>\"\",Pilotage!N$27,\"\")","v":{"$error":"#REF!"}},{"$f":"IF(Stock!#REF!<>\"\",ROUND(K357*M357,0),\"\")","v":{"$error":"#REF!"}},{"$f":"IF(Stock!#REF!<>\"\",$H357*N357,\"\")","v":{"$error":"#REF!"}},{"$f":"IF(Stock!#REF!<>\"\",Pilotage!O$27,\"\")","v":{"$error":"#REF!"}},{"$f":"IF(Stock!#REF!<>\"\",ROUND(K357*P357,0),\"\")","v":{"$error":"#REF!"}},{"$f":"IF(Stock!#REF!<>\"\",$H357*Q357,\"\")","v":{"$error":"#REF!"}},{"$f":"IF(Stock!#REF!<>\"\",Pilotage!P$27,\"\")","v":{"$error":"#REF!"}},{"$f":"IF(Stock!#REF!<>\"\",ROUND(Q357*S357,0),\"\")","v":{"$error":"#REF!"}},{"$f":"IF(Stock!#REF!<>\"\",$H357*T357,\"\")","v":{"$error":"#REF!"}},{"$f":"IF(Stock!#REF!<>\"\",Pilotage!Q$27,\"\")","v":{"$error":"#REF!"}},{"$f":"IF(Stock!#REF!<>\"\",ROUND(T357*V357,0),\"\")","v":{"$error":"#REF!"}},{"$f":"IF(Stock!#REF!<>\"\",$H357*W357,\"\")","v":{"$error":"#REF!"}},{"$f":"IF(Stock!#REF!<>\"\",Pilotage!R$27,\"\")","v":{"$error":"#REF!"}},{"$f":"IF(Stock!#REF!<>\"\",ROUND(W357*Y357,0),\"\")","v":{"$error":"#REF!"}},{"$f":"IF(Stock!#REF!<>\"\",$H357*Z357,\"\")","v":{"$error":"#REF!"}}]
[{"$f":"IF(Stock!#REF!<>\"\",Stock!#REF!,\"\")","v":{"$error":"#REF!"}},{"$f":"IF(Stock!#REF!<>\"\",Stock!#REF!,\"\")","v":{"$error":"#REF!"}},{"$f":"IF(Stock!#REF!<>\"\",Stock!#REF!,\"\")","v":{"$error":"#REF!"}},{"$f":"IF(Stock!#REF!<>\"\",SUM(Stock!#REF!,Stock!#REF!,Stock!#REF!),\"\")","v":{"$error":"#REF!"}},{"$f":"IF(Stock!#REF!<>\"\",#REF!*(1+Pilotage!$M$20),\"\")","v":{"$error":"#REF!"}},null,{"$f":"IF(Stock!#REF!<>\"\",IF(Stock!#REF!>0,Stock!#REF!/Stock!#REF!,0),\"\")","v":{"$error":"#REF!"}},{"$f":"IF(Stock!#REF!<>\"\",E358*Pilotage!$D$15,\"\")","v":{"$error":"#REF!"}},{"$f":"IF(Stock!#REF!<>\"\",IF(Stock!#REF!>0,Stock!#REF!,0),\"\")","v":{"$error":"#REF!"}},{"$f":"IF(Stock!#REF!<>\"\",Pilotage!$M$27,\"\")","v":{"$error":"#REF!"}},{"$f":"IF(Stock!#REF!<>\"\",ROUND(Stock!#REF!*J358,0),\"\")","v":{"$error":"#REF!"}},{"$f":"IF(Stock!#REF!<>\"\",$H358*K358,\"\")","v":{"$error":"#REF!"}},{"$f":"IF(Stock!#REF!<>\"\",Pilotage!N$27,\"\")","v":{"$error":"#REF!"}},{"$f":"IF(Stock!#REF!<>\"\",ROUND(K358*M358,0),\"\")","v":{"$error":"#REF!"}},{"$f":"IF(Stock!#REF!<>\"\",$H358*N358,\"\")","v":{"$error":"#REF!"}},{"$f":"IF(Stock!#REF!<>\"\",Pilotage!O$27,\"\")","v":{"$error":"#REF!"}},{"$f":"IF(Stock!#REF!<>\"\",ROUND(K358*P358,0),\"\")","v":{"$error":"#REF!"}},{"$f":"IF(Stock!#REF!<>\"\",$H358*Q358,\"\")","v":{"$error":"#REF!"}},{"$f":"IF(Stock!#REF!<>\"\",Pilotage!P$27,\"\")","v":{"$error":"#REF!"}},{"$f":"IF(Stock!#REF!<>\"\",ROUND(Q358*S358,0),\"\")","v":{"$error":"#REF!"}},{"$f":"IF(Stock!#REF!<>\"\",$H358*T358,\"\")","v":{"$error":"#REF!"}},{"$f":"IF(Stock!#REF!<>\"\",Pilotage!Q$27,\"\")","v":{"$error":"#REF!"}},{"$f":"IF(Stock!#REF!<>\"\",ROUND(T358*V358,0),\"\")","v":{"$error":"#REF!"}},{"$f":"IF(Stock!#REF!<>\"\",$H358*W358,\"\")","v":{"$error":"#REF!"}},{"$f":"IF(Stock!#REF!<>\"\",Pilotage!R$27,\"\")","v":{"$error":"#REF!"}},{"$f":"IF(Stock!#REF!<>\"\",ROUND(W358*Y358,0),\"\")","v":{"$error":"#REF!"}},{"$f":"IF(Stock!#REF!<>\"\",$H358*Z358,\"\")","v":{"$error":"#REF!"}}]
[{"$f":"IF(Stock!#REF!<>\"\",Stock!#REF!,\"\")","v":{"$error":"#REF!"}},{"$f":"IF(Stock!#REF!<>\"\",Stock!#REF!,\"\")","v":{"$error":"#REF!"}},{"$f":"IF(Stock!#REF!<>\"\",Stock!#REF!,\"\")","v":{"$error":"#REF!"}},{"$f":"IF(Stock!#REF!<>\"\",SUM(Stock!#REF!,Stock!#REF!,Stock!#REF!),\"\")","v":{"$error":"#REF!"}},{"$f":"IF(Stock!#REF!<>\"\",#REF!*(1+Pilotage!$M$20),\"\")","v":{"$error":"#REF!"}},null,{"$f":"IF(Stock!#REF!<>\"\",IF(Stock!#REF!>0,Stock!#REF!/Stock!#REF!,0),\"\")","v":{"$error":"#REF!"}},{"$f":"IF(Stock!#REF!<>\"\",E359*Pilotage!$D$15,\"\")","v":{"$error":"#REF!"}},{"$f":"IF(Stock!#REF!<>\"\",IF(Stock!#REF!>0,Stock!#REF!,0),\"\")","v":{"$error":"#REF!"}},{"$f":"IF(Stock!#REF!<>\"\",Pilotage!$M$27,\"\")","v":{"$error":"#REF!"}},{"$f":"IF(Stock!#REF!<>\"\",ROUND(Stock!#REF!*J359,0),\"\")","v":{"$error":"#REF!"}},{"$f":"IF(Stock!#REF!<>\"\",$H359*K359,\"\")","v":{"$error":"#REF!"}},{"$f":"IF(Stock!#REF!<>\"\",Pilotage!N$27,\"\")","v":{"$error":"#REF!"}},{"$f":"IF(Stock!#REF!<>\"\",ROUND(K359*M359,0),\"\")","v":{"$error":"#REF!"}},{"$f":"IF(Stock!#REF!<>\"\",$H359*N359,\"\")","v":{"$error":"#REF!"}},{"$f":"IF(Stock!#REF!<>\"\",Pilotage!O$27,\"\")","v":{"$error":"#REF!"}},{"$f":"IF(Stock!#REF!<>\"\",ROUND(K359*P359,0),\"\")","v":{"$error":"#REF!"}},{"$f":"IF(Stock!#REF!<>\"\",$H359*Q359,\"\")","v":{"$error":"#REF!"}},{"$f":"IF(Stock!#REF!<>\"\",Pilotage!P$27,\"\")","v":{"$error":"#REF!"}},{"$f":"IF(Stock!#REF!<>\"\",ROUND(Q359*S359,0),\"\")","v":{"$error":"#REF!"}},{"$f":"IF(Stock!#REF!<>\"\",$H359*T359,\"\")","v":{"$error":"#REF!"}},{"$f":"IF(Stock!#REF!<>\"\",Pilotage!Q$27,\"\")","v":{"$error":"#REF!"}},{"$f":"IF(Stock!#REF!<>\"\",ROUND(T359*V359,0),\"\")","v":{"$error":"#REF!"}},{"$f":"IF(Stock!#REF!<>\"\",$H359*W359,\"\")","v":{"$error":"#REF!"}},{"$f":"IF(Stock!#REF!<>\"\",Pilotage!R$27,\"\")","v":{"$error":"#REF!"}},{"$f":"IF(Stock!#REF!<>\"\",ROUND(W359*Y359,0),\"\")","v":{"$error":"#REF!"}},{"$f":"IF(Stock!#REF!<>\"\",$H359*Z359,\"\")","v":{"$error":"#REF!"}}]
[{"$f":"IF(Stock!#REF!<>\"\",Stock!#REF!,\"\")","v":{"$error":"#REF!"}},{"$f":"IF(Stock!#REF!<>\"\",Stock!#REF!,\"\")","v":{"$error":"#REF!"}},{"$f":"IF(Stock!#REF!<>\"\",Stock!#REF!,\"\")","v":{"$error":"#REF!"}},{"$f":"IF(Stock!#REF!<>\"\",SUM(Stock!#REF!,Stock!#REF!,Stock!#REF!),\"\")","v":{"$error":"#REF!"}},{"$f":"IF(Stock!#REF!<>\"\",#REF!*(1+Pilotage!$M$20),\"\")","v":{"$error":"#REF!"}},null,{"$f":"IF(Stock!#REF!<>\"\",IF(Stock!#REF!>0,Stock!#REF!/Stock!#REF!,0),\"\")","v":{"$error":"#REF!"}},{"$f":"IF(Stock!#REF!<>\"\",E360*Pilotage!$D$15,\"\")","v":{"$error":"#REF!"}},{"$f":"IF(Stock!#REF!<>\"\",IF(Stock!#REF!>0,Stock!#REF!,0),\"\")","v":{"$error":"#REF!"}},{"$f":"IF(Stock!#REF!<>\"\",Pilotage!$M$27,\"\")","v":{"$error":"#REF!"}},{"$f":"IF(Stock!#REF!<>\"\",ROUND(Stock!#REF!*J360,0),\"\")","v":{"$error":"#REF!"}},{"$f":"IF(Stock!#REF!<>\"\",$H360*K360,\"\")","v":{"$error":"#REF!"}},{"$f":"IF(Stock!#REF!<>\"\",Pilotage!N$27,\"\")","v":{"$error":"#REF!"}},{"$f":"IF(Stock!#REF!<>\"\",ROUND(K360*M360,0),\"\")","v":{"$error":"#REF!"}},{"$f":"IF(Stock!#REF!<>\"\",$H360*N360,\"\")","v":{"$error":"#REF!"}},{"$f":"IF(Stock!#REF!<>\"\",Pilotage!O$27,\"\")","v":{"$error":"#REF!"}},{"$f":"IF(Stock!#REF!<>\"\",ROUND(K360*P360,0),\"\")","v":{"$error":"#REF!"}},{"$f":"IF(Stock!#REF!<>\"\",$H360*Q360,\"\")","v":{"$error":"#REF!"}},{"$f":"IF(Stock!#REF!<>\"\",Pilotage!P$27,\"\")","v":{"$error":"#REF!"}},{"$f":"IF(Stock!#REF!<>\"\",ROUND(Q360*S360,0),\"\")","v":{"$error":"#REF!"}},{"$f":"IF(Stock!#REF!<>\"\",$H360*T360,\"\")","v":{"$error":"#REF!"}},{"$f":"IF(Stock!#REF!<>\"\",Pilotage!Q$27,\"\")","v":{"$error":"#REF!"}},{"$f":"IF(Stock!#REF!<>\"\",ROUND(T360*V360,0),\"\")","v":{"$error":"#REF!"}},{"$f":"IF(Stock!#REF!<>\"\",$H360*W360,\"\")","v":{"$error":"#REF!"}},{"$f":"IF(Stock!#REF!<>\"\",Pilotage!R$27,\"\")","v":{"$error":"#REF!"}},{"$f":"IF(Stock!#REF!<>\"\",ROUND(W360*Y360,0),\"\")","v":{"$error":"#REF!"}},{"$f":"IF(Stock!#REF!<>\"\",$H360*Z360,\"\")","v":{"$error":"#REF!"}}]
[{"$f":"IF(Stock!#REF!<>\"\",Stock!#REF!,\"\")","v":{"$error":"#REF!"}},{"$f":"IF(Stock!#REF!<>\"\",Stock!#REF!,\"\")","v":{"$error":"#REF!"}},{"$f":"IF(Stock!#REF!<>\"\",Stock!#REF!,\"\")","v":{"$error":"#REF!"}},{"$f":"IF(Stock!#REF!<>\"\",SUM(Stock!#REF!,Stock!#REF!,Stock!#REF!),\"\")","v":{"$error":"#REF!"}},{"$f":"IF(Stock!#REF!<>\"\",#REF!*(1+Pilotage!$M$20),\"\")","v":{"$error":"#REF!"}},null,{"$f":"IF(Stock!#REF!<>\"\",IF(Stock!#REF!>0,Stock!#REF!/Stock!#REF!,0),\"\")","v":{"$error":"#REF!"}},{"$f":"IF(Stock!#REF!<>\"\",E361*Pilotage!$D$15,\"\")","v":{"$error":"#REF!"}},{"$f":"IF(Stock!#REF!<>\"\",IF(Stock!#REF!>0,Stock!#REF!,0),\"\")","v":{"$error":"#REF!"}},{"$f":"IF(Stock!#REF!<>\"\",Pilotage!$M$27,\"\")","v":{"$error":"#REF!"}},{"$f":"IF(Stock!#REF!<>\"\",ROUND(Stock!#REF!*J361,0),\"\")","v":{"$error":"#REF!"}},{"$f":"IF(Stock!#REF!<>\"\",$H361*K361,\"\")","v":{"$error":"#REF!"}},{"$f":"IF(Stock!#REF!<>\"\",Pilotage!N$27,\"\")","v":{"$error":"#REF!"}},{"$f":"IF(Stock!#REF!<>\"\",ROUND(K361*M361,0),\"\")","v":{"$error":"#REF!"}},{"$f":"IF(Stock!#REF!<>\"\",$H361*N361,\"\")","v":{"$error":"#REF!"}},{"$f":"IF(Stock!#REF!<>\"\",Pilotage!O$27,\"\")","v":{"$error":"#REF!"}},{"$f":"IF(Stock!#REF!<>\"\",ROUND(K361*P361,0),\"\")","v":{"$error":"#REF!"}},{"$f":"IF(Stock!#REF!<>\"\",$H361*Q361,\"\")","v":{"$error":"#REF!"}},{"$f":"IF(Stock!#REF!<>\"\",Pilotage!P$27,\"\")","v":{"$error":"#REF!"}},{"$f":"IF(Stock!#REF!<>\"\",ROUND(Q361*S361,0),\"\")","v":{"$error":"#REF!"}},{"$f":"IF(Stock!#REF!<>\"\",$H361*T361,\"\")","v":{"$error":"#REF!"}},{"$f":"IF(Stock!#REF!<>\"\",Pilotage!Q$27,\"\")","v":{"$error":"#REF!"}},{"$f":"IF(Stock!#REF!<>\"\",ROUND(T361*V361,0),\"\")","v":{"$error":"#REF!"}},{"$f":"IF(Stock!#REF!<>\"\",$H361*W361,\"\")","v":{"$error":"#REF!"}},{"$f":"IF(Stock!#REF!<>\"\",Pilotage!R$27,\"\")","v":{"$error":"#REF!"}},{"$f":"IF(Stock!#REF!<>\"\",ROUND(W361*Y361,0),\"\")","v":{"$error":"#REF!"}},{"$f":"IF(Stock!#REF!<>\"\",$H361*Z361,\"\")","v":{"$error":"#REF!"}}]
[{"$f":"IF(Stock!#REF!<>\"\",Stock!#REF!,\"\")","v":{"$error":"#REF!"}},{"$f":"IF(Stock!#REF!<>\"\",Stock!#REF!,\"\")","v":{"$error":"#REF!"}},{"$f":"IF(Stock!#REF!<>\"\",Stock!#REF!,\"\")","v":{"$error":"#REF!"}},{"$f":"IF(Stock!#REF!<>\"\",SUM(Stock!#REF!,Stock!#REF!,Stock!#REF!),\"\")","v":{"$error":"#REF!"}},{"$f":"IF(Stock!#REF!<>\"\",#REF!*(1+Pilotage!$M$20),\"\")","v":{"$error":"#REF!"}},null,{"$f":"IF(Stock!#REF!<>\"\",IF(Stock!#REF!>0,Stock!#REF!/Stock!#REF!,0),\"\")","v":{"$error":"#REF!"}},{"$f":"IF(Stock!#REF!<>\"\",E362*Pilotage!$D$15,\"\")","v":{"$error":"#REF!"}},{"$f":"IF(Stock!#REF!<>\"\",IF(Stock!#REF!>0,Stock!#REF!,0),\"\")","v":{"$error":"#REF!"}},{"$f":"IF(Stock!#REF!<>\"\",Pilotage!$M$27,\"\")","v":{"$error":"#REF!"}},{"$f":"IF(Stock!#REF!<>\"\",ROUND(Stock!#REF!*J362,0),\"\")","v":{"$error":"#REF!"}},{"$f":"IF(Stock!#REF!<>\"\",$H362*K362,\"\")","v":{"$error":"#REF!"}},{"$f":"IF(Stock!#REF!<>\"\",Pilotage!N$27,\"\")","v":{"$error":"#REF!"}},{"$f":"IF(Stock!#REF!<>\"\",ROUND(K362*M362,0),\"\")","v":{"$error":"#REF!"}},{"$f":"IF(Stock!#REF!<>\"\",$H362*N362,\"\")","v":{"$error":"#REF!"}},{"$f":"IF(Stock!#REF!<>\"\",Pilotage!O$27,\"\")","v":{"$error":"#REF!"}},{"$f":"IF(Stock!#REF!<>\"\",ROUND(K362*P362,0),\"\")","v":{"$error":"#REF!"}},{"$f":"IF(Stock!#REF!<>\"\",$H362*Q362,\"\")","v":{"$error":"#REF!"}},{"$f":"IF(Stock!#REF!<>\"\",Pilotage!P$27,\"\")","v":{"$error":"#REF!"}},{"$f":"IF(Stock!#REF!<>\"\",ROUND(Q362*S362,0),\"\")","v":{"$error":"#REF!"}},{"$f":"IF(Stock!#REF!<>\"\",$H362*T362,\"\")","v":{"$error":"#REF!"}},{"$f":"IF(Stock!#REF!<>\"\",Pilotage!Q$27,\"\")","v":{"$error":"#REF!"}},{"$f":"IF(Stock!#REF!<>\"\",ROUND(T362*V362,0),\"\")","v":{"$error":"#REF!"}},{"$f":"IF(Stock!#REF!<>\"\",$H362*W362,\"\")","v":{"$error":"#REF!"}},{"$f":"IF(Stock!#REF!<>\"\",Pilotage!R$27,\"\")","v":{"$error":"#REF!"}},{"$f":"IF(Stock!#REF!<>\"\",ROUND(W362*Y362,0),\"\")","v":{"$error":"#REF!"}},{"$f":"IF(Stock!#REF!<>\"\",$H362*Z362,\"\")","v":{"$error":"#REF!"}}]
[{"$f":"IF(Stock!#REF!<>\"\",Stock!#REF!,\"\")","v":{"$error":"#REF!"}},{"$f":"IF(Stock!#REF!<>\"\",Stock!#REF!,\"\")","v":{"$error":"#REF!"}},{"$f":"IF(Stock!#REF!<>\"\",Stock!#REF!,\"\")","v":{"$error":"#REF!"}},{"$f":"IF(Stock!#REF!<>\"\",SUM(Stock!#REF!,Stock!#REF!,Stock!#REF!),\"\")","v":{"$error":"#REF!"}},{"$f":"IF(Stock!#REF!<>\"\",#REF!*(1+Pilotage!$M$20),\"\")","v":{"$error":"#REF!"}},null,{"$f":"IF(Stock!#REF!<>\"\",IF(Stock!#REF!>0,Stock!#REF!/Stock!#REF!,0),\"\")","v":{"$error":"#REF!"}},{"$f":"IF(Stock!#REF!<>\"\",E363*Pilotage!$D$15,\"\")","v":{"$error":"#REF!"}},{"$f":"IF(Stock!#REF!<>\"\",IF(Stock!#REF!>0,Stock!#REF!,0),\"\")","v":{"$error":"#REF!"}},{"$f":"IF(Stock!#REF!<>\"\",Pilotage!$M$27,\"\")","v":{"$error":"#REF!"}},{"$f":"IF(Stock!#REF!<>\"\",ROUND(Stock!#REF!*J363,0),\"\")","v":{"$error":"#REF!"}},{"$f":"IF(Stock!#REF!<>\"\",$H363*K363,\"\")","v":{"$error":"#REF!"}},{"$f":"IF(Stock!#REF!<>\"\",Pilotage!N$27,\"\")","v":{"$error":"#REF!"}},{"$f":"IF(Stock!#REF!<>\"\",ROUND(K363*M363,0),\"\")","v":{"$error":"#REF!"}},{"$f":"IF(Stock!#REF!<>\"\",$H363*N363,\"\")","v":{"$error":"#REF!"}},{"$f":"IF(Stock!#REF!<>\"\",Pilotage!O$27,\"\")","v":{"$error":"#REF!"}},{"$f":"IF(Stock!#REF!<>\"\",ROUND(K363*P363,0),\"\")","v":{"$error":"#REF!"}},{"$f":"IF(Stock!#REF!<>\"\",$H363*Q363,\"\")","v":{"$error":"#REF!"}},{"$f":"IF(Stock!#REF!<>\"\",Pilotage!P$27,\"\")","v":{"$error":"#REF!"}},{"$f":"IF(Stock!#REF!<>\"\",ROUND(Q363*S363,0),\"\")","v":{"$error":"#REF!"}},{"$f":"IF(Stock!#REF!<>\"\",$H363*T363,\"\")","v":{"$error":"#REF!"}},{"$f":"IF(Stock!#REF!<>\"\",Pilotage!Q$27,\"\")","v":{"$error":"#REF!"}},{"$f":"IF(Stock!#REF!<>\"\",ROUND(T363*V363,0),\"\")","v":{"$error":"#REF!"}},{"$f":"IF(Stock!#REF!<>\"\",$H363*W363,\"\")","v":{"$error":"#REF!"}},{"$f":"IF(Stock!#REF!<>\"\",Pilotage!R$27,\"\")","v":{"$error":"#REF!"}},{"$f":"IF(Stock!#REF!<>\"\",ROUND(W363*Y363,0),\"\")","v":{"$error":"#REF!"}},{"$f":"IF(Stock!#REF!<>\"\",$H363*Z363,\"\")","v":{"$error":"#REF!"}}]
[{"$f":"IF(Stock!#REF!<>\"\",Stock!#REF!,\"\")","v":{"$error":"#REF!"}},{"$f":"IF(Stock!#REF!<>\"\",Stock!#REF!,\"\")","v":{"$error":"#REF!"}},{"$f":"IF(Stock!#REF!<>\"\",Stock!#REF!,\"\")","v":{"$error":"#REF!"}},{"$f":"IF(Stock!#REF!<>\"\",SUM(Stock!#REF!,Stock!#REF!,Stock!#REF!),\"\")","v":{"$error":"#REF!"}},{"$f":"IF(Stock!#REF!<>\"\",#REF!*(1+Pilotage!$M$20),\"\")","v":{"$error":"#REF!"}},null,{"$f":"IF(Stock!#REF!<>\"\",IF(Stock!#REF!>0,Stock!#REF!/Stock!#REF!,0),\"\")","v":{"$error":"#REF!"}},{"$f":"IF(Stock!#REF!<>\"\",E364*Pilotage!$D$15,\"\")","v":{"$error":"#REF!"}},{"$f":"IF(Stock!#REF!<>\"\",IF(Stock!#REF!>0,Stock!#REF!,0),\"\")","v":{"$error":"#REF!"}},{"$f":"IF(Stock!#REF!<>\"\",Pilotage!$M$27,\"\")","v":{"$error":"#REF!"}},{"$f":"IF(Stock!#REF!<>\"\",ROUND(Stock!#REF!*J364,0),\"\")","v":{"$error":"#REF!"}},{"$f":"IF(Stock!#REF!<>\"\",$H364*K364,\"\")","v":{"$error":"#REF!"}},{"$f":"IF(Stock!#REF!<>\"\",Pilotage!N$27,\"\")","v":{"$error":"#REF!"}},{"$f":"IF(Stock!#REF!<>\"\",ROUND(K364*M364,0),\"\")","v":{"$error":"#REF!"}},{"$f":"IF(Stock!#REF!<>\"\",$H364*N364,\"\")","v":{"$error":"#REF!"}},{"$f":"IF(Stock!#REF!<>\"\",Pilotage!O$27,\"\")","v":{"$error":"#REF!"}},{"$f":"IF(Stock!#REF!<>\"\",ROUND(K364*P364,0),\"\")","v":{"$error":"#REF!"}},{"$f":"IF(Stock!#REF!<>\"\",$H364*Q364,\"\")","v":{"$error":"#REF!"}},{"$f":"IF(Stock!#REF!<>\"\",Pilotage!P$27,\"\")","v":{"$error":"#REF!"}},{"$f":"IF(Stock!#REF!<>\"\",ROUND(Q364*S364,0),\"\")","v":{"$error":"#REF!"}},{"$f":"IF(Stock!#REF!<>\"\",$H364*T364,\"\")","v":{"$error":"#REF!"}},{"$f":"IF(Stock!#REF!<>\"\",Pilotage!Q$27,\"\")","v":{"$error":"#REF!"}},{"$f":"IF(Stock!#REF!<>\"\",ROUND(T364*V364,0),\"\")","v":{"$error":"#REF!"}},{"$f":"IF(Stock!#REF!<>\"\",$H364*W364,\"\")","v":{"$error":"#REF!"}},{"$f":"IF(Stock!#REF!<>\"\",Pilotage!R$27,\"\")","v":{"$error":"#REF!"}},{"$f":"IF(Stock!#REF!<>\"\",ROUND(W364*Y364,0),\"\")","v":{"$error":"#REF!"}},{"$f":"IF(Stock!#REF!<>\"\",$H364*Z364,\"\")","v":{"$error":"#REF!"}}]
[{"$f":"IF(Stock!#REF!<>\"\",Stock!#REF!,\"\")","v":{"$error":"#REF!"}},{"$f":"IF(Stock!#REF!<>\"\",Stock!#REF!,\"\")","v":{"$error":"#REF!"}},{"$f":"IF(Stock!#REF!<>\"\",Stock!#REF!,\"\")","v":{"$error":"#REF!"}},{"$f":"IF(Stock!#REF!<>\"\",SUM(Stock!#REF!,Stock!#REF!,Stock!#REF!),\"\")","v":{"$error":"#REF!"}},{"$f":"IF(Stock!#REF!<>\"\",#REF!*(1+Pilotage!$M$20),\"\")","v":{"$error":"#REF!"}},null,{"$f":"IF(Stock!#REF!<>\"\",IF(Stock!#REF!>0,Stock!#REF!/Stock!#REF!,0),\"\")","v":{"$error":"#REF!"}},{"$f":"IF(Stock!#REF!<>\"\",E365*Pilotage!$D$15,\"\")","v":{"$error":"#REF!"}},{"$f":"IF(Stock!#REF!<>\"\",IF(Stock!#REF!>0,Stock!#REF!,0),\"\")","v":{"$error":"#REF!"}},{"$f":"IF(Stock!#REF!<>\"\",Pilotage!$M$27,\"\")","v":{"$error":"#REF!"}},{"$f":"IF(Stock!#REF!<>\"\",ROUND(Stock!#REF!*J365,0),\"\")","v":{"$error":"#REF!"}},{"$f":"IF(Stock!#REF!<>\"\",$H365*K365,\"\")","v":{"$error":"#REF!"}},{"$f":"IF(Stock!#REF!<>\"\",Pilotage!N$27,\"\")","v":{"$error":"#REF!"}},{"$f":"IF(Stock!#REF!<>\"\",ROUND(K365*M365,0),\"\")","v":{"$error":"#REF!"}},{"$f":"IF(Stock!#REF!<>\"\",$H365*N365,\"\")","v":{"$error":"#REF!"}},{"$f":"IF(Stock!#REF!<>\"\",Pilotage!O$27,\"\")","v":{"$error":"#REF!"}},{"$f":"IF(Stock!#REF!<>\"\",ROUND(K365*P365,0),\"\")","v":{"$error":"#REF!"}},{"$f":"IF(Stock!#REF!<>\"\",$H365*Q365,\"\")","v":{"$error":"#REF!"}},{"$f":"IF(Stock!#REF!<>\"\",Pilotage!P$27,\"\")","v":{"$error":"#REF!"}},{"$f":"IF(Stock!#REF!<>\"\",ROUND(Q365*S365,0),\"\")","v":{"$error":"#REF!"}},{"$f":"IF(Stock!#REF!<>\"\",$H365*T365,\"\")","v":{"$error":"#REF!"}},{"$f":"IF(Stock!#REF!<>\"\",Pilotage!Q$27,\"\")","v":{"$error":"#REF!"}},{"$f":"IF(Stock!#REF!<>\"\",ROUND(T365*V365,0),\"\")","v":{"$error":"#REF!"}},{"$f":"IF(Stock!#REF!<>\"\",$H365*W365,\"\")","v":{"$error":"#REF!"}},{"$f":"IF(Stock!#REF!<>\"\",Pilotage!R$27,\"\")","v":{"$error":"#REF!"}},{"$f":"IF(Stock!#REF!<>\"\",ROUND(W365*Y365,0),\"\")","v":{"$error":"#REF!"}},{"$f":"IF(Stock!#REF!<>\"\",$H365*Z365,\"\")","v":{"$error":"#REF!"}}]
[{"$f":"IF(Stock!#REF!<>\"\",Stock!#REF!,\"\")","v":{"$error":"#REF!"}},{"$f":"IF(Stock!#REF!<>\"\",Stock!#REF!,\"\")","v":{"$error":"#REF!"}},{"$f":"IF(Stock!#REF!<>\"\",Stock!#REF!,\"\")","v":{"$error":"#REF!"}},{"$f":"IF(Stock!#REF!<>\"\",SUM(Stock!#REF!,Stock!#REF!,Stock!#REF!),\"\")","v":{"$error":"#REF!"}},{"$f":"IF(Stock!#REF!<>\"\",#REF!*(1+Pilotage!$M$20),\"\")","v":{"$error":"#REF!"}},null,{"$f":"IF(Stock!#REF!<>\"\",IF(Stock!#REF!>0,Stock!#REF!/Stock!#REF!,0),\"\")","v":{"$error":"#REF!"}},{"$f":"IF(Stock!#REF!<>\"\",E366*Pilotage!$D$15,\"\")","v":{"$error":"#REF!"}},{"$f":"IF(Stock!#REF!<>\"\",IF(Stock!#REF!>0,Stock!#REF!,0),\"\")","v":{"$error":"#REF!"}},{"$f":"IF(Stock!#REF!<>\"\",Pilotage!$M$27,\"\")","v":{"$error":"#REF!"}},{"$f":"IF(Stock!#REF!<>\"\",ROUND(Stock!#REF!*J366,0),\"\")","v":{"$error":"#REF!"}},{"$f":"IF(Stock!#REF!<>\"\",$H366*K366,\"\")","v":{"$error":"#REF!"}},{"$f":"IF(Stock!#REF!<>\"\",Pilotage!N$27,\"\")","v":{"$error":"#REF!"}},{"$f":"IF(Stock!#REF!<>\"\",ROUND(K366*M366,0),\"\")","v":{"$error":"#REF!"}},{"$f":"IF(Stock!#REF!<>\"\",$H366*N366,\"\")","v":{"$error":"#REF!"}},{"$f":"IF(Stock!#REF!<>\"\",Pilotage!O$27,\"\")","v":{"$error":"#REF!"}},{"$f":"IF(Stock!#REF!<>\"\",ROUND(K366*P366,0),\"\")","v":{"$error":"#REF!"}},{"$f":"IF(Stock!#REF!<>\"\",$H366*Q366,\"\")","v":{"$error":"#REF!"}},{"$f":"IF(Stock!#REF!<>\"\",Pilotage!P$27,\"\")","v":{"$error":"#REF!"}},{"$f":"IF(Stock!#REF!<>\"\",ROUND(Q366*S366,0),\"\")","v":{"$error":"#REF!"}},{"$f":"IF(Stock!#REF!<>\"\",$H366*T366,\"\")","v":{"$error":"#REF!"}},{"$f":"IF(Stock!#REF!<>\"\",Pilotage!Q$27,\"\")","v":{"$error":"#REF!"}},{"$f":"IF(Stock!#REF!<>\"\",ROUND(T366*V366,0),\"\")","v":{"$error":"#REF!"}},{"$f":"IF(Stock!#REF!<>\"\",$H366*W366,\"\")","v":{"$error":"#REF!"}},{"$f":"IF(Stock!#REF!<>\"\",Pilotage!R$27,\"\")","v":{"$error":"#REF!"}},{"$f":"IF(Stock!#REF!<>\"\",ROUND(W366*Y366,0),\"\")","v":{"$error":"#REF!"}},{"$f":"IF(Stock!#REF!<>\"\",$H366*Z366,\"\")","v":{"$error":"#REF!"}}]
[{"$f":"IF(Stock!#REF!<>\"\",Stock!#REF!,\"\")","v":{"$error":"#REF!"}},{"$f":"IF(Stock!#REF!<>\"\",Stock!#REF!,\"\")","v":{"$error":"#REF!"}},{"$f":"IF(Stock!#REF!<>\"\",Stock!#REF!,\"\")","v":{"$error":"#REF!"}},{"$f":"IF(Stock!#REF!<>\"\",SUM(Stock!#REF!,Stock!#REF!,Stock!#REF!),\"\")","v":{"$error":"#REF!"}},{"$f":"IF(Stock!#REF!<>\"\",#REF!*(1+Pilotage!$M$20),\"\")","v":{"$error":"#REF!"}},null,{"$f":"IF(Stock!#REF!<>\"\",IF(Stock!#REF!>0,Stock!#REF!/Stock!#REF!,0),\"\")","v":{"$error":"#REF!"}},{"$f":"IF(Stock!#REF!<>\"\",E367*Pilotage!$D$15,\"\")","v":{"$error":"#REF!"}},{"$f":"IF(Stock!#REF!<>\"\",IF(Stock!#REF!>0,Stock!#REF!,0),\"\")","v":{"$error":"#REF!"}},{"$f":"IF(Stock!#REF!<>\"\",Pilotage!$M$27,\"\")","v":{"$error":"#REF!"}},{"$f":"IF(Stock!#REF!<>\"\",ROUND(Stock!#REF!*J367,0),\"\")","v":{"$error":"#REF!"}},{"$f":"IF(Stock!#REF!<>\"\",$H367*K367,\"\")","v":{"$error":"#REF!"}},{"$f":"IF(Stock!#REF!<>\"\",Pilotage!N$27,\"\")","v":{"$error":"#REF!"}},{"$f":"IF(Stock!#REF!<>\"\",ROUND(K367*M367,0),\"\")","v":{"$error":"#REF!"}},{"$f":"IF(Stock!#REF!<>\"\",$H367*N367,\"\")","v":{"$error":"#REF!"}},{"$f":"IF(Stock!#REF!<>\"\",Pilotage!O$27,\"\")","v":{"$error":"#REF!"}},{"$f":"IF(Stock!#REF!<>\"\",ROUND(K367*P367,0),\"\")","v":{"$error":"#REF!"}},{"$f":"IF(Stock!#REF!<>\"\",$H367*Q367,\"\")","v":{"$error":"#REF!"}},{"$f":"IF(Stock!#REF!<>\"\",Pilotage!P$27,\"\")","v":{"$error":"#REF!"}},{"$f":"IF(Stock!#REF!<>\"\",ROUND(Q367*S367,0),\"\")","v":{"$error":"#REF!"}},{"$f":"IF(Stock!#REF!<>\"\",$H367*T367,\"\")","v":{"$error":"#REF!"}},{"$f":"IF(Stock!#REF!<>\"\",Pilotage!Q$27,\"\")","v":{"$error":"#REF!"}},{"$f":"IF(Stock!#REF!<>\"\",ROUND(T367*V367,0),\"\")","v":{"$error":"#REF!"}},{"$f":"IF(Stock!#REF!<>\"\",$H367*W367,\"\")","v":{"$error":"#REF!"}},{"$f":"IF(Stock!#REF!<>\"\",Pilotage!R$27,\"\")","v":{"$error":"#REF!"}},{"$f":"IF(Stock!#REF!<>\"\",ROUND(W367*Y367,0),\"\")","v":{"$error":"#REF!"}},{"$f":"IF(Stock!#REF!<>\"\",$H367*Z367,\"\")","v":{"$error":"#REF!"}}]
[{"$f":"IF(Stock!#REF!<>\"\",Stock!#REF!,\"\")","v":{"$error":"#REF!"}},{"$f":"IF(Stock!#REF!<>\"\",Stock!#REF!,\"\")","v":{"$error":"#REF!"}},{"$f":"IF(Stock!#REF!<>\"\",Stock!#REF!,\"\")","v":{"$error":"#REF!"}},{"$f":"IF(Stock!#REF!<>\"\",SUM(Stock!#REF!,Stock!#REF!,Stock!#REF!),\"\")","v":{"$error":"#REF!"}},{"$f":"IF(Stock!#REF!<>\"\",#REF!*(1+Pilotage!$M$20),\"\")","v":{"$error":"#REF!"}},null,{"$f":"IF(Stock!#REF!<>\"\",IF(Stock!#REF!>0,Stock!#REF!/Stock!#REF!,0),\"\")","v":{"$error":"#REF!"}},{"$f":"IF(Stock!#REF!<>\"\",E368*Pilotage!$D$15,\"\")","v":{"$error":"#REF!"}},{"$f":"IF(Stock!#REF!<>\"\",IF(Stock!#REF!>0,Stock!#REF!,0),\"\")","v":{"$error":"#REF!"}},{"$f":"IF(Stock!#REF!<>\"\",Pilotage!$M$27,\"\")","v":{"$error":"#REF!"}},{"$f":"IF(Stock!#REF!<>\"\",ROUND(Stock!#REF!*J368,0),\"\")","v":{"$error":"#REF!"}},{"$f":"IF(Stock!#REF!<>\"\",$H368*K368,\"\")","v":{"$error":"#REF!"}},{"$f":"IF(Stock!#REF!<>\"\",Pilotage!N$27,\"\")","v":{"$error":"#REF!"}},{"$f":"IF(Stock!#REF!<>\"\",ROUND(K368*M368,0),\"\")","v":{"$error":"#REF!"}},{"$f":"IF(Stock!#REF!<>\"\",$H368*N368,\"\")","v":{"$error":"#REF!"}},{"$f":"IF(Stock!#REF!<>\"\",Pilotage!O$27,\"\")","v":{"$error":"#REF!"}},{"$f":"IF(Stock!#REF!<>\"\",ROUND(K368*P368,0),\"\")","v":{"$error":"#REF!"}},{"$f":"IF(Stock!#REF!<>\"\",$H368*Q368,\"\")","v":{"$error":"#REF!"}},{"$f":"IF(Stock!#REF!<>\"\",Pilotage!P$27,\"\")","v":{"$error":"#REF!"}},{"$f":"IF(Stock!#REF!<>\"\",ROUND(Q368*S368,0),\"\")","v":{"$error":"#REF!"}},{"$f":"IF(Stock!#REF!<>\"\",$H368*T368,\"\")","v":{"$error":"#REF!"}},{"$f":"IF(Stock!#REF!<>\"\",Pilotage!Q$27,\"\")","v":{"$error":"#REF!"}},{"$f":"IF(Stock!#REF!<>\"\",ROUND(T368*V368,0),\"\")","v":{"$error":"#REF!"}},{"$f":"IF(Stock!#REF!<>\"\",$H368*W368,\"\")","v":{"$error":"#REF!"}},{"$f":"IF(Stock!#REF!<>\"\",Pilotage!R$27,\"\")","v":{"$error":"#REF!"}},{"$f":"IF(Stock!#REF!<>\"\",ROUND(W368*Y368,0),\"\")","v":{"$error":"#REF!"}},{"$f":"IF(Stock!#REF!<>\"\",$H368*Z368,\"\")","v":{"$error":"#REF!"}}]
[{"$f":"IF(Stock!#REF!<>\"\",Stock!#REF!,\"\")","v":{"$error":"#REF!"}},{"$f":"IF(Stock!#REF!<>\"\",Stock!#REF!,\"\")","v":{"$error":"#REF!"}},{"$f":"IF(Stock!#REF!<>\"\",Stock!#REF!,\"\")","v":{"$error":"#REF!"}},{"$f":"IF(Stock!#REF!<>\"\",SUM(Stock!#REF!,Stock!#REF!,Stock!#REF!),\"\")","v":{"$error":"#REF!"}},{"$f":"IF(Stock!#REF!<>\"\",#REF!*(1+Pilotage!$M$20),\"\")","v":{"$error":"#REF!"}},null,{"$f":"IF(Stock!#REF!<>\"\",IF(Stock!#REF!>0,Stock!#REF!/Stock!#REF!,0),\"\")","v":{"$error":"#REF!"}},{"$f":"IF(Stock!#REF!<>\"\",E369*Pilotage!$D$15,\"\")","v":{"$error":"#REF!"}},{"$f":"IF(Stock!#REF!<>\"\",IF(Stock!#REF!>0,Stock!#REF!,0),\"\")","v":{"$error":"#REF!"}},{"$f":"IF(Stock!#REF!<>\"\",Pilotage!$M$27,\"\")","v":{"$error":"#REF!"}},{"$f":"IF(Stock!#REF!<>\"\",ROUND(Stock!#REF!*J369,0),\"\")","v":{"$error":"#REF!"}},{"$f":"IF(Stock!#REF!<>\"\",$H369*K369,\"\")","v":{"$error":"#REF!"}},{"$f":"IF(Stock!#REF!<>\"\",Pilotage!N$27,\"\")","v":{"$error":"#REF!"}},{"$f":"IF(Stock!#REF!<>\"\",ROUND(K369*M369,0),\"\")","v":{"$error":"#REF!"}},{"$f":"IF(Stock!#REF!<>\"\",$H369*N369,\"\")","v":{"$error":"#REF!"}},{"$f":"IF(Stock!#REF!<>\"\",Pilotage!O$27,\"\")","v":{"$error":"#REF!"}},{"$f":"IF(Stock!#REF!<>\"\",ROUND(K369*P369,0),\"\")","v":{"$error":"#REF!"}},{"$f":"IF(Stock!#REF!<>\"\",$H369*Q369,\"\")","v":{"$error":"#REF!"}},{"$f":"IF(Stock!#REF!<>\"\",Pilotage!P$27,\"\")","v":{"$error":"#REF!"}},{"$f":"IF(Stock!#REF!<>\"\",ROUND(Q369*S369,0),\"\")","v":{"$error":"#REF!"}},{"$f":"IF(Stock!#REF!<>\"\",$H369*T369,\"\")","v":{"$error":"#REF!"}},{"$f":"IF(Stock!#REF!<>\"\",Pilotage!Q$27,\"\")","v":{"$error":"#REF!"}},{"$f":"IF(Stock!#REF!<>\"\",ROUND(T369*V369,0),\"\")","v":{"$error":"#REF!"}},{"$f":"IF(Stock!#REF!<>\"\",$H369*W369,\"\")","v":{"$error":"#REF!"}},{"$f":"IF(Stock!#REF!<>\"\",Pilotage!R$27,\"\")","v":{"$error":"#REF!"}},{"$f":"IF(Stock!#REF!<>\"\",ROUND(W369*Y369,0),\"\")","v":{"$error":"#REF!"}},{"$f":"IF(Stock!#REF!<>\"\",$H369*Z369,\"\")","v":{"$error":"#REF!"}}]
[{"$f":"IF(Stock!#REF!<>\"\",Stock!#REF!,\"\")","v":{"$error":"#REF!"}},{"$f":"IF(Stock!#REF!<>\"\",Stock!#REF!,\"\")","v":{"$error":"#REF!"}},{"$f":"IF(Stock!#REF!<>\"\",Stock!#REF!,\"\")","v":{"$error":"#REF!"}},{"$f":"IF(Stock!#REF!<>\"\",SUM(Stock!#REF!,Stock!#REF!,Stock!#REF!),\"\")","v":{"$error":"#REF!"}},{"$f":"IF(Stock!#REF!<>\"\",#REF!*(1+Pilotage!$M$20),\"\")","v":{"$error":"#REF!"}},null,{"$f":"IF(Stock!#REF!<>\"\",IF(Stock!#REF!>0,Stock!#REF!/Stock!#REF!,0),\"\")","v":{"$error":"#REF!"}},{"$f":"IF(Stock!#REF!<>\"\",E370*Pilotage!$D$15,\"\")","v":{"$error":"#REF!"}},{"$f":"IF(Stock!#REF!<>\"\",IF(Stock!#REF!>0,Stock!#REF!,0),\"\")","v":{"$error":"#REF!"}},{"$f":"IF(Stock!#REF!<>\"\",Pilotage!$M$27,\"\")","v":{"$error":"#REF!"}},{"$f":"IF(Stock!#REF!<>\"\",ROUND(Stock!#REF!*J370,0),\"\")","v":{"$error":"#REF!"}},{"$f":"IF(Stock!#REF!<>\"\",$H370*K370,\"\")","v":{"$error":"#REF!"}},{"$f":"IF(Stock!#REF!<>\"\",Pilotage!N$27,\"\")","v":{"$error":"#REF!"}},{"$f":"IF(Stock!#REF!<>\"\",ROUND(K370*M370,0),\"\")","v":{"$error":"#REF!"}},{"$f":"IF(Stock!#REF!<>\"\",$H370*N370,\"\")","v":{"$error":"#REF!"}},{"$f":"IF(Stock!#REF!<>\"\",Pilotage!O$27,\"\")","v":{"$error":"#REF!"}},{"$f":"IF(Stock!#REF!<>\"\",ROUND(K370*P370,0),\"\")","v":{"$error":"#REF!"}},{"$f":"IF(Stock!#REF!<>\"\",$H370*Q370,\"\")","v":{"$error":"#REF!"}},{"$f":"IF(Stock!#REF!<>\"\",Pilotage!P$27,\"\")","v":{"$error":"#REF!"}},{"$f":"IF(Stock!#REF!<>\"\",ROUND(Q370*S370,0),\"\")","v":{"$error":"#REF!"}},{"$f":"IF(Stock!#REF!<>\"\",$H370*T370,\"\")","v":{"$error":"#REF!"}},{"$f":"IF(Stock!#REF!<>\"\",Pilotage!Q$27,\"\")","v":{"$error":"#REF!"}},{"$f":"IF(Stock!#REF!<>\"\",ROUND(T370*V370,0),\"\")","v":{"$error":"#REF!"}},{"$f":"IF(Stock!#REF!<>\"\",$H370*W370,\"\")","v":{"$error":"#REF!"}},{"$f":"IF(Stock!#REF!<>\"\",Pilotage!R$27,\"\")","v":{"$error":"#REF!"}},{"$f":"IF(Stock!#REF!<>\"\",ROUND(W370*Y370,0),\"\")","v":{"$error":"#REF!"}},{"$f":"IF(Stock!#REF!<>\"\",$H370*Z370,\"\")","v":{"$error":"#REF!"}}]
[{"$f":"IF(Stock!#REF!<>\"\",Stock!#REF!,\"\")","v":{"$error":"#REF!"}},{"$f":"IF(Stock!#REF!<>\"\",Stock!#REF!,\"\")","v":{"$error":"#REF!"}},{"$f":"IF(Stock!#REF!<>\"\",Stock!#REF!,\"\")","v":{"$error":"#REF!"}},{"$f":"IF(Stock!#REF!<>\"\",SUM(Stock!#REF!,Stock!#REF!,Stock!#REF!),\"\")","v":{"$error":"#REF!"}},{"$f":"IF(Stock!#REF!<>\"\",#REF!*(1+Pilotage!$M$20),\"\")","v":{"$error":"#REF!"}},null,{"$f":"IF(Stock!#REF!<>\"\",IF(Stock!#REF!>0,Stock!#REF!/Stock!#REF!,0),\"\")","v":{"$error":"#REF!"}},{"$f":"IF(Stock!#REF!<>\"\",E371*Pilotage!$D$15,\"\")","v":{"$error":"#REF!"}},{"$f":"IF(Stock!#REF!<>\"\",IF(Stock!#REF!>0,Stock!#REF!,0),\"\")","v":{"$error":"#REF!"}},{"$f":"IF(Stock!#REF!<>\"\",Pilotage!$M$27,\"\")","v":{"$error":"#REF!"}},{"$f":"IF(Stock!#REF!<>\"\",ROUND(Stock!#REF!*J371,0),\"\")","v":{"$error":"#REF!"}},{"$f":"IF(Stock!#REF!<>\"\",$H371*K371,\"\")","v":{"$error":"#REF!"}},{"$f":"IF(Stock!#REF!<>\"\",Pilotage!N$27,\"\")","v":{"$error":"#REF!"}},{"$f":"IF(Stock!#REF!<>\"\",ROUND(K371*M371,0),\"\")","v":{"$error":"#REF!"}},{"$f":"IF(Stock!#REF!<>\"\",$H371*N371,\"\")","v":{"$error":"#REF!"}},{"$f":"IF(Stock!#REF!<>\"\",Pilotage!O$27,\"\")","v":{"$error":"#REF!"}},{"$f":"IF(Stock!#REF!<>\"\",ROUND(K371*P371,0),\"\")","v":{"$error":"#REF!"}},{"$f":"IF(Stock!#REF!<>\"\",$H371*Q371,\"\")","v":{"$error":"#REF!"}},{"$f":"IF(Stock!#REF!<>\"\",Pilotage!P$27,\"\")","v":{"$error":"#REF!"}},{"$f":"IF(Stock!#REF!<>\"\",ROUND(Q371*S371,0),\"\")","v":{"$error":"#REF!"}},{"$f":"IF(Stock!#REF!<>\"\",$H371*T371,\"\")","v":{"$error":"#REF!"}},{"$f":"IF(Stock!#REF!<>\"\",Pilotage!Q$27,\"\")","v":{"$error":"#REF!"}},{"$f":"IF(Stock!#REF!<>\"\",ROUND(T371*V371,0),\"\")","v":{"$error":"#REF!"}},{"$f":"IF(Stock!#REF!<>\"\",$H371*W371,\"\")","v":{"$error":"#REF!"}},{"$f":"IF(Stock!#REF!<>\"\",Pilotage!R$27,\"\")","v":{"$error":"#REF!"}},{"$f":"IF(Stock!#REF!<>\"\",ROUND(W371*Y371,0),\"\")","v":{"$error":"#REF!"}},{"$f":"IF(Stock!#REF!<>\"\",$H371*Z371,\"\")","v":{"$error":"#REF!"}}]
[{"$f":"IF(Stock!#REF!<>\"\",Stock!#REF!,\"\")","v":{"$error":"#REF!"}},{"$f":"IF(Stock!#REF!<>\"\",Stock!#REF!,\"\")","v":{"$error":"#REF!"}},{"$f":"IF(Stock!#REF!<>\"\",Stock!#REF!,\"\")","v":{"$error":"#REF!"}},{"$f":"IF(Stock!#REF!<>\"\",SUM(Stock!#REF!,Stock!#REF!,Stock!#REF!),\"\")","v":{"$error":"#REF!"}},{"$f":"IF(Stock!#REF!<>\"\",#REF!*(1+Pilotage!$M$20),\"\")","v":{"$error":"#REF!"}},null,{"$f":"IF(Stock!#REF!<>\"\",IF(Stock!#REF!>0,Stock!#REF!/Stock!#REF!,0),\"\")","v":{"$error":"#REF!"}},{"$f":"IF(Stock!#REF!<>\"\",E372*Pilotage!$D$15,\"\")","v":{"$error":"#REF!"}},{"$f":"IF(Stock!#REF!<>\"\",IF(Stock!#REF!>0,Stock!#REF!,0),\"\")","v":{"$error":"#REF!"}},{"$f":"IF(Stock!#REF!<>\"\",Pilotage!$M$27,\"\")","v":{"$error":"#REF!"}},{"$f":"IF(Stock!#REF!<>\"\",ROUND(Stock!#REF!*J372,0),\"\")","v":{"$error":"#REF!"}},{"$f":"IF(Stock!#REF!<>\"\",$H372*K372,\"\")","v":{"$error":"#REF!"}},{"$f":"IF(Stock!#REF!<>\"\",Pilotage!N$27,\"\")","v":{"$error":"#REF!"}},{"$f":"IF(Stock!#REF!<>\"\",ROUND(K372*M372,0),\"\")","v":{"$error":"#REF!"}},{"$f":"IF(Stock!#REF!<>\"\",$H372*N372,\"\")","v":{"$error":"#REF!"}},{"$f":"IF(Stock!#REF!<>\"\",Pilotage!O$27,\"\")","v":{"$error":"#REF!"}},{"$f":"IF(Stock!#REF!<>\"\",ROUND(K372*P372,0),\"\")","v":{"$error":"#REF!"}},{"$f":"IF(Stock!#REF!<>\"\",$H372*Q372,\"\")","v":{"$error":"#REF!"}},{"$f":"IF(Stock!#REF!<>\"\",Pilotage!P$27,\"\")","v":{"$error":"#REF!"}},{"$f":"IF(Stock!#REF!<>\"\",ROUND(Q372*S372,0),\"\")","v":{"$error":"#REF!"}},{"$f":"IF(Stock!#REF!<>\"\",$H372*T372,\"\")","v":{"$error":"#REF!"}},{"$f":"IF(Stock!#REF!<>\"\",Pilotage!Q$27,\"\")","v":{"$error":"#REF!"}},{"$f":"IF(Stock!#REF!<>\"\",ROUND(T372*V372,0),\"\")","v":{"$error":"#REF!"}},{"$f":"IF(Stock!#REF!<>\"\",$H372*W372,\"\")","v":{"$error":"#REF!"}},{"$f":"IF(Stock!#REF!<>\"\",Pilotage!R$27,\"\")","v":{"$error":"#REF!"}},{"$f":"IF(Stock!#REF!<>\"\",ROUND(W372*Y372,0),\"\")","v":{"$error":"#REF!"}},{"$f":"IF(Stock!#REF!<>\"\",$H372*Z372,\"\")","v":{"$error":"#REF!"}}]
[{"$f":"IF(Stock!#REF!<>\"\",Stock!#REF!,\"\")","v":{"$error":"#REF!"}},{"$f":"IF(Stock!#REF!<>\"\",Stock!#REF!,\"\")","v":{"$error":"#REF!"}},{"$f":"IF(Stock!#REF!<>\"\",Stock!#REF!,\"\")","v":{"$error":"#REF!"}},{"$f":"IF(Stock!#REF!<>\"\",SUM(Stock!#REF!,Stock!#REF!,Stock!#REF!),\"\")","v":{"$error":"#REF!"}},{"$f":"IF(Stock!#REF!<>\"\",#REF!*(1+Pilotage!$M$20),\"\")","v":{"$error":"#REF!"}},null,{"$f":"IF(Stock!#REF!<>\"\",IF(Stock!#REF!>0,Stock!#REF!/Stock!#REF!,0),\"\")","v":{"$error":"#REF!"}},{"$f":"IF(Stock!#REF!<>\"\",E373*Pilotage!$D$15,\"\")","v":{"$error":"#REF!"}},{"$f":"IF(Stock!#REF!<>\"\",IF(Stock!#REF!>0,Stock!#REF!,0),\"\")","v":{"$error":"#REF!"}},{"$f":"IF(Stock!#REF!<>\"\",Pilotage!$M$27,\"\")","v":{"$error":"#REF!"}},{"$f":"IF(Stock!#REF!<>\"\",ROUND(Stock!#REF!*J373,0),\"\")","v":{"$error":"#REF!"}},{"$f":"IF(Stock!#REF!<>\"\",$H373*K373,\"\")","v":{"$error":"#REF!"}},{"$f":"IF(Stock!#REF!<>\"\",Pilotage!N$27,\"\")","v":{"$error":"#REF!"}},{"$f":"IF(Stock!#REF!<>\"\",ROUND(K373*M373,0),\"\")","v":{"$error":"#REF!"}},{"$f":"IF(Stock!#REF!<>\"\",$H373*N373,\"\")","v":{"$error":"#REF!"}},{"$f":"IF(Stock!#REF!<>\"\",Pilotage!O$27,\"\")","v":{"$error":"#REF!"}},{"$f":"IF(Stock!#REF!<>\"\",ROUND(K373*P373,0),\"\")","v":{"$error":"#REF!"}},{"$f":"IF(Stock!#REF!<>\"\",$H373*Q373,\"\")","v":{"$error":"#REF!"}},{"$f":"IF(Stock!#REF!<>\"\",Pilotage!P$27,\"\")","v":{"$error":"#REF!"}},{"$f":"IF(Stock!#REF!<>\"\",ROUND(Q373*S373,0),\"\")","v":{"$error":"#REF!"}},{"$f":"IF(Stock!#REF!<>\"\",$H373*T373,\"\")","v":{"$error":"#REF!"}},{"$f":"IF(Stock!#REF!<>\"\",Pilotage!Q$27,\"\")","v":{"$error":"#REF!"}},{"$f":"IF(Stock!#REF!<>\"\",ROUND(T373*V373,0),\"\")","v":{"$error":"#REF!"}},{"$f":"IF(Stock!#REF!<>\"\",$H373*W373,\"\")","v":{"$error":"#REF!"}},{"$f":"IF(Stock!#REF!<>\"\",Pilotage!R$27,\"\")","v":{"$error":"#REF!"}},{"$f":"IF(Stock!#REF!<>\"\",ROUND(W373*Y373,0),\"\")","v":{"$error":"#REF!"}},{"$f":"IF(Stock!#REF!<>\"\",$H373*Z373,\"\")","v":{"$error":"#REF!"}}]
[{"$f":"IF(Stock!#REF!<>\"\",Stock!#REF!,\"\")","v":{"$error":"#REF!"}},{"$f":"IF(Stock!#REF!<>\"\",Stock!#REF!,\"\")","v":{"$error":"#REF!"}},{"$f":"IF(Stock!#REF!<>\"\",Stock!#REF!,\"\")","v":{"$error":"#REF!"}},{"$f":"IF(Stock!#REF!<>\"\",SUM(Stock!#REF!,Stock!#REF!,Stock!#REF!),\"\")","v":{"$error":"#REF!"}},{"$f":"IF(Stock!#REF!<>\"\",#REF!*(1+Pilotage!$M$20),\"\")","v":{"$error":"#REF!"}},null,{"$f":"IF(Stock!#REF!<>\"\",IF(Stock!#REF!>0,Stock!#REF!/Stock!#REF!,0),\"\")","v":{"$error":"#REF!"}},{"$f":"IF(Stock!#REF!<>\"\",E374*Pilotage!$D$15,\"\")","v":{"$error":"#REF!"}},{"$f":"IF(Stock!#REF!<>\"\",IF(Stock!#REF!>0,Stock!#REF!,0),\"\")","v":{"$error":"#REF!"}},{"$f":"IF(Stock!#REF!<>\"\",Pilotage!$M$27,\"\")","v":{"$error":"#REF!"}},{"$f":"IF(Stock!#REF!<>\"\",ROUND(Stock!#REF!*J374,0),\"\")","v":{"$error":"#REF!"}},{"$f":"IF(Stock!#REF!<>\"\",$H374*K374,\"\")","v":{"$error":"#REF!"}},{"$f":"IF(Stock!#REF!<>\"\",Pilotage!N$27,\"\")","v":{"$error":"#REF!"}},{"$f":"IF(Stock!#REF!<>\"\",ROUND(K374*M374,0),\"\")","v":{"$error":"#REF!"}},{"$f":"IF(Stock!#REF!<>\"\",$H374*N374,\"\")","v":{"$error":"#REF!"}},{"$f":"IF(Stock!#REF!<>\"\",Pilotage!O$27,\"\")","v":{"$error":"#REF!"}},{"$f":"IF(Stock!#REF!<>\"\",ROUND(K374*P374,0),\"\")","v":{"$error":"#REF!"}},{"$f":"IF(Stock!#REF!<>\"\",$H374*Q374,\"\")","v":{"$error":"#REF!"}},{"$f":"IF(Stock!#REF!<>\"\",Pilotage!P$27,\"\")","v":{"$error":"#REF!"}},{"$f":"IF(Stock!#REF!<>\"\",ROUND(Q374*S374,0),\"\")","v":{"$error":"#REF!"}},{"$f":"IF(Stock!#REF!<>\"\",$H374*T374,\"\")","v":{"$error":"#REF!"}},{"$f":"IF(Stock!#REF!<>\"\",Pilotage!Q$27,\"\")","v":{"$error":"#REF!"}},{"$f":"IF(Stock!#REF!<>\"\",ROUND(T374*V374,0),\"\")","v":{"$error":"#REF!"}},{"$f":"IF(Stock!#REF!<>\"\",$H374*W374,\"\")","v":{"$error":"#REF!"}},{"$f":"IF(Stock!#REF!<>\"\",Pilotage!R$27,\"\")","v":{"$error":"#REF!"}},{"$f":"IF(Stock!#REF!<>\"\",ROUND(W374*Y374,0),\"\")","v":{"$error":"#REF!"}},{"$f":"IF(Stock!#REF!<>\"\",$H374*Z374,\"\")","v":{"$error":"#REF!"}}]
[{"$f":"IF(Stock!#REF!<>\"\",Stock!#REF!,\"\")","v":{"$error":"#REF!"}},{"$f":"IF(Stock!#REF!<>\"\",Stock!#REF!,\"\")","v":{"$error":"#REF!"}},{"$f":"IF(Stock!#REF!<>\"\",Stock!#REF!,\"\")","v":{"$error":"#REF!"}},{"$f":"IF(Stock!#REF!<>\"\",SUM(Stock!#REF!,Stock!#REF!,Stock!#REF!),\"\")","v":{"$error":"#REF!"}},{"$f":"IF(Stock!#REF!<>\"\",#REF!*(1+Pilotage!$M$20),\"\")","v":{"$error":"#REF!"}},null,{"$f":"IF(Stock!#REF!<>\"\",IF(Stock!#REF!>0,Stock!#REF!/Stock!#REF!,0),\"\")","v":{"$error":"#REF!"}},{"$f":"IF(Stock!#REF!<>\"\",E375*Pilotage!$D$15,\"\")","v":{"$error":"#REF!"}},{"$f":"IF(Stock!#REF!<>\"\",IF(Stock!#REF!>0,Stock!#REF!,0),\"\")","v":{"$error":"#REF!"}},{"$f":"IF(Stock!#REF!<>\"\",Pilotage!$M$27,\"\")","v":{"$error":"#REF!"}},{"$f":"IF(Stock!#REF!<>\"\",ROUND(Stock!#REF!*J375,0),\"\")","v":{"$error":"#REF!"}},{"$f":"IF(Stock!#REF!<>\"\",$H375*K375,\"\")","v":{"$error":"#REF!"}},{"$f":"IF(Stock!#REF!<>\"\",Pilotage!N$27,\"\")","v":{"$error":"#REF!"}},{"$f":"IF(Stock!#REF!<>\"\",ROUND(K375*M375,0),\"\")","v":{"$error":"#REF!"}},{"$f":"IF(Stock!#REF!<>\"\",$H375*N375,\"\")","v":{"$error":"#REF!"}},{"$f":"IF(Stock!#REF!<>\"\",Pilotage!O$27,\"\")","v":{"$error":"#REF!"}},{"$f":"IF(Stock!#REF!<>\"\",ROUND(K375*P375,0),\"\")","v":{"$error":"#REF!"}},{"$f":"IF(Stock!#REF!<>\"\",$H375*Q375,\"\")","v":{"$error":"#REF!"}},{"$f":"IF(Stock!#REF!<>\"\",Pilotage!P$27,\"\")","v":{"$error":"#REF!"}},{"$f":"IF(Stock!#REF!<>\"\",ROUND(Q375*S375,0),\"\")","v":{"$error":"#REF!"}},{"$f":"IF(Stock!#REF!<>\"\",$H375*T375,\"\")","v":{"$error":"#REF!"}},{"$f":"IF(Stock!#REF!<>\"\",Pilotage!Q$27,\"\")","v":{"$error":"#REF!"}},{"$f":"IF(Stock!#REF!<>\"\",ROUND(T375*V375,0),\"\")","v":{"$error":"#REF!"}},{"$f":"IF(Stock!#REF!<>\"\",$H375*W375,\"\")","v":{"$error":"#REF!"}},{"$f":"IF(Stock!#REF!<>\"\",Pilotage!R$27,\"\")","v":{"$error":"#REF!"}},{"$f":"IF(Stock!#REF!<>\"\",ROUND(W375*Y375,0),\"\")","v":{"$error":"#REF!"}},{"$f":"IF(Stock!#REF!<>\"\",$H375*Z375,\"\")","v":{"$error":"#REF!"}}]
[{"$f":"IF(Stock!#REF!<>\"\",Stock!#REF!,\"\")","v":{"$error":"#REF!"}},{"$f":"IF(Stock!#REF!<>\"\",Stock!#REF!,\"\")","v":{"$error":"#REF!"}},{"$f":"IF(Stock!#REF!<>\"\",Stock!#REF!,\"\")","v":{"$error":"#REF!"}},{"$f":"IF(Stock!#REF!<>\"\",SUM(Stock!#REF!,Stock!#REF!,Stock!#REF!),\"\")","v":{"$error":"#REF!"}},{"$f":"IF(Stock!#REF!<>\"\",#REF!*(1+Pilotage!$M$20),\"\")","v":{"$error":"#REF!"}},null,{"$f":"IF(Stock!#REF!<>\"\",IF(Stock!#REF!>0,Stock!#REF!/Stock!#REF!,0),\"\")","v":{"$error":"#REF!"}},{"$f":"IF(Stock!#REF!<>\"\",E376*Pilotage!$D$15,\"\")","v":{"$error":"#REF!"}},{"$f":"IF(Stock!#REF!<>\"\",IF(Stock!#REF!>0,Stock!#REF!,0),\"\")","v":{"$error":"#REF!"}},{"$f":"IF(Stock!#REF!<>\"\",Pilotage!$M$27,\"\")","v":{"$error":"#REF!"}},{"$f":"IF(Stock!#REF!<>\"\",ROUND(Stock!#REF!*J376,0),\"\")","v":{"$error":"#REF!"}},{"$f":"IF(Stock!#REF!<>\"\",$H376*K376,\"\")","v":{"$error":"#REF!"}},{"$f":"IF(Stock!#REF!<>\"\",Pilotage!N$27,\"\")","v":{"$error":"#REF!"}},{"$f":"IF(Stock!#REF!<>\"\",ROUND(K376*M376,0),\"\")","v":{"$error":"#REF!"}},{"$f":"IF(Stock!#REF!<>\"\",$H376*N376,\"\")","v":{"$error":"#REF!"}},{"$f":"IF(Stock!#REF!<>\"\",Pilotage!O$27,\"\")","v":{"$error":"#REF!"}},{"$f":"IF(Stock!#REF!<>\"\",ROUND(K376*P376,0),\"\")","v":{"$error":"#REF!"}},{"$f":"IF(Stock!#REF!<>\"\",$H376*Q376,\"\")","v":{"$error":"#REF!"}},{"$f":"IF(Stock!#REF!<>\"\",Pilotage!P$27,\"\")","v":{"$error":"#REF!"}},{"$f":"IF(Stock!#REF!<>\"\",ROUND(Q376*S376,0),\"\")","v":{"$error":"#REF!"}},{"$f":"IF(Stock!#REF!<>\"\",$H376*T376,\"\")","v":{"$error":"#REF!"}},{"$f":"IF(Stock!#REF!<>\"\",Pilotage!Q$27,\"\")","v":{"$error":"#REF!"}},{"$f":"IF(Stock!#REF!<>\"\",ROUND(T376*V376,0),\"\")","v":{"$error":"#REF!"}},{"$f":"IF(Stock!#REF!<>\"\",$H376*W376,\"\")","v":{"$error":"#REF!"}},{"$f":"IF(Stock!#REF!<>\"\",Pilotage!R$27,\"\")","v":{"$error":"#REF!"}},{"$f":"IF(Stock!#REF!<>\"\",ROUND(W376*Y376,0),\"\")","v":{"$error":"#REF!"}},{"$f":"IF(Stock!#REF!<>\"\",$H376*Z376,\"\")","v":{"$error":"#REF!"}}]
[{"$f":"IF(Stock!#REF!<>\"\",Stock!#REF!,\"\")","v":{"$error":"#REF!"}},{"$f":"IF(Stock!#REF!<>\"\",Stock!#REF!,\"\")","v":{"$error":"#REF!"}},{"$f":"IF(Stock!#REF!<>\"\",Stock!#REF!,\"\")","v":{"$error":"#REF!"}},{"$f":"IF(Stock!#REF!<>\"\",SUM(Stock!#REF!,Stock!#REF!,Stock!#REF!),\"\")","v":{"$error":"#REF!"}},{"$f":"IF(Stock!#REF!<>\"\",#REF!*(1+Pilotage!$M$20),\"\")","v":{"$error":"#REF!"}},null,{"$f":"IF(Stock!#REF!<>\"\",IF(Stock!#REF!>0,Stock!#REF!/Stock!#REF!,0),\"\")","v":{"$error":"#REF!"}},{"$f":"IF(Stock!#REF!<>\"\",E377*Pilotage!$D$15,\"\")","v":{"$error":"#REF!"}},{"$f":"IF(Stock!#REF!<>\"\",IF(Stock!#REF!>0,Stock!#REF!,0),\"\")","v":{"$error":"#REF!"}},{"$f":"IF(Stock!#REF!<>\"\",Pilotage!$M$27,\"\")","v":{"$error":"#REF!"}},{"$f":"IF(Stock!#REF!<>\"\",ROUND(Stock!#REF!*J377,0),\"\")","v":{"$error":"#REF!"}},{"$f":"IF(Stock!#REF!<>\"\",$H377*K377,\"\")","v":{"$error":"#REF!"}},{"$f":"IF(Stock!#REF!<>\"\",Pilotage!N$27,\"\")","v":{"$error":"#REF!"}},{"$f":"IF(Stock!#REF!<>\"\",ROUND(K377*M377,0),\"\")","v":{"$error":"#REF!"}},{"$f":"IF(Stock!#REF!<>\"\",$H377*N377,\"\")","v":{"$error":"#REF!"}},{"$f":"IF(Stock!#REF!<>\"\",Pilotage!O$27,\"\")","v":{"$error":"#REF!"}},{"$f":"IF(Stock!#REF!<>\"\",ROUND(K377*P377,0),\"\")","v":{"$error":"#REF!"}},{"$f":"IF(Stock!#REF!<>\"\",$H377*Q377,\"\")","v":{"$error":"#REF!"}},{"$f":"IF(Stock!#REF!<>\"\",Pilotage!P$27,\"\")","v":{"$error":"#REF!"}},{"$f":"IF(Stock!#REF!<>\"\",ROUND(Q377*S377,0),\"\")","v":{"$error":"#REF!"}},{"$f":"IF(Stock!#REF!<>\"\",$H377*T377,\"\")","v":{"$error":"#REF!"}},{"$f":"IF(Stock!#REF!<>\"\",Pilotage!Q$27,\"\")","v":{"$error":"#REF!"}},{"$f":"IF(Stock!#REF!<>\"\",ROUND(T377*V377,0),\"\")","v":{"$error":"#REF!"}},{"$f":"IF(Stock!#REF!<>\"\",$H377*W377,\"\")","v":{"$error":"#REF!"}},{"$f":"IF(Stock!#REF!<>\"\",Pilotage!R$27,\"\")","v":{"$error":"#REF!"}},{"$f":"IF(Stock!#REF!<>\"\",ROUND(W377*Y377,0),\"\")","v":{"$error":"#REF!"}},{"$f":"IF(Stock!#REF!<>\"\",$H377*Z377,\"\")","v":{"$error":"#REF!"}}]
[{"$f":"IF(Stock!#REF!<>\"\",Stock!#REF!,\"\")","v":{"$error":"#REF!"}},{"$f":"IF(Stock!#REF!<>\"\",Stock!#REF!,\"\")","v":{"$error":"#REF!"}},{"$f":"IF(Stock!#REF!<>\"\",Stock!#REF!,\"\")","v":{"$error":"#REF!"}},{"$f":"IF(Stock!#REF!<>\"\",SUM(Stock!#REF!,Stock!#REF!,Stock!#REF!),\"\")","v":{"$error":"#REF!"}},{"$f":"IF(Stock!#REF!<>\"\",#REF!*(1+Pilotage!$M$20),\"\")","v":{"$error":"#REF!"}},null,{"$f":"IF(Stock!#REF!<>\"\",IF(Stock!#REF!>0,Stock!#REF!/Stock!#REF!,0),\"\")","v":{"$error":"#REF!"}},{"$f":"IF(Stock!#REF!<>\"\",E378*Pilotage!$D$15,\"\")","v":{"$error":"#REF!"}},{"$f":"IF(Stock!#REF!<>\"\",IF(Stock!#REF!>0,Stock!#REF!,0),\"\")","v":{"$error":"#REF!"}},{"$f":"IF(Stock!#REF!<>\"\",Pilotage!$M$27,\"\")","v":{"$error":"#REF!"}},{"$f":"IF(Stock!#REF!<>\"\",ROUND(Stock!#REF!*J378,0),\"\")","v":{"$error":"#REF!"}},{"$f":"IF(Stock!#REF!<>\"\",$H378*K378,\"\")","v":{"$error":"#REF!"}},{"$f":"IF(Stock!#REF!<>\"\",Pilotage!N$27,\"\")","v":{"$error":"#REF!"}},{"$f":"IF(Stock!#REF!<>\"\",ROUND(K378*M378,0),\"\")","v":{"$error":"#REF!"}},{"$f":"IF(Stock!#REF!<>\"\",$H378*N378,\"\")","v":{"$error":"#REF!"}},{"$f":"IF(Stock!#REF!<>\"\",Pilotage!O$27,\"\")","v":{"$error":"#REF!"}},{"$f":"IF(Stock!#REF!<>\"\",ROUND(K378*P378,0),\"\")","v":{"$error":"#REF!"}},{"$f":"IF(Stock!#REF!<>\"\",$H378*Q378,\"\")","v":{"$error":"#REF!"}},{"$f":"IF(Stock!#REF!<>\"\",Pilotage!P$27,\"\")","v":{"$error":"#REF!"}},{"$f":"IF(Stock!#REF!<>\"\",ROUND(Q378*S378,0),\"\")","v":{"$error":"#REF!"}},{"$f":"IF(Stock!#REF!<>\"\",$H378*T378,\"\")","v":{"$error":"#REF!"}},{"$f":"IF(Stock!#REF!<>\"\",Pilotage!Q$27,\"\")","v":{"$error":"#REF!"}},{"$f":"IF(Stock!#REF!<>\"\",ROUND(T378*V378,0),\"\")","v":{"$error":"#REF!"}},{"$f":"IF(Stock!#REF!<>\"\",$H378*W378,\"\")","v":{"$error":"#REF!"}},{"$f":"IF(Stock!#REF!<>\"\",Pilotage!R$27,\"\")","v":{"$error":"#REF!"}},{"$f":"IF(Stock!#REF!<>\"\",ROUND(W378*Y378,0),\"\")","v":{"$error":"#REF!"}},{"$f":"IF(Stock!#REF!<>\"\",$H378*Z378,\"\")","v":{"$error":"#REF!"}}]
[{"$f":"IF(Stock!#REF!<>\"\",Stock!#REF!,\"\")","v":{"$error":"#REF!"}},{"$f":"IF(Stock!#REF!<>\"\",Stock!#REF!,\"\")","v":{"$error":"#REF!"}},{"$f":"IF(Stock!#REF!<>\"\",Stock!#REF!,\"\")","v":{"$error":"#REF!"}},{"$f":"IF(Stock!#REF!<>\"\",SUM(Stock!#REF!,Stock!#REF!,Stock!#REF!),\"\")","v":{"$error":"#REF!"}},{"$f":"IF(Stock!#REF!<>\"\",#REF!*(1+Pilotage!$M$20),\"\")","v":{"$error":"#REF!"}},null,{"$f":"IF(Stock!#REF!<>\"\",IF(Stock!#REF!>0,Stock!#REF!/Stock!#REF!,0),\"\")","v":{"$error":"#REF!"}},{"$f":"IF(Stock!#REF!<>\"\",E379*Pilotage!$D$15,\"\")","v":{"$error":"#REF!"}},{"$f":"IF(Stock!#REF!<>\"\",IF(Stock!#REF!>0,Stock!#REF!,0),\"\")","v":{"$error":"#REF!"}},{"$f":"IF(Stock!#REF!<>\"\",Pilotage!$M$27,\"\")","v":{"$error":"#REF!"}},{"$f":"IF(Stock!#REF!<>\"\",ROUND(Stock!#REF!*J379,0),\"\")","v":{"$error":"#REF!"}},{"$f":"IF(Stock!#REF!<>\"\",$H379*K379,\"\")","v":{"$error":"#REF!"}},{"$f":"IF(Stock!#REF!<>\"\",Pilotage!N$27,\"\")","v":{"$error":"#REF!"}},{"$f":"IF(Stock!#REF!<>\"\",ROUND(K379*M379,0),\"\")","v":{"$error":"#REF!"}},{"$f":"IF(Stock!#REF!<>\"\",$H379*N379,\"\")","v":{"$error":"#REF!"}},{"$f":"IF(Stock!#REF!<>\"\",Pilotage!O$27,\"\")","v":{"$error":"#REF!"}},{"$f":"IF(Stock!#REF!<>\"\",ROUND(K379*P379,0),\"\")","v":{"$error":"#REF!"}},{"$f":"IF(Stock!#REF!<>\"\",$H379*Q379,\"\")","v":{"$error":"#REF!"}},{"$f":"IF(Stock!#REF!<>\"\",Pilotage!P$27,\"\")","v":{"$error":"#REF!"}},{"$f":"IF(Stock!#REF!<>\"\",ROUND(Q379*S379,0),\"\")","v":{"$error":"#REF!"}},{"$f":"IF(Stock!#REF!<>\"\",$H379*T379,\"\")","v":{"$error":"#REF!"}},{"$f":"IF(Stock!#REF!<>\"\",Pilotage!Q$27,\"\")","v":{"$error":"#REF!"}},{"$f":"IF(Stock!#REF!<>\"\",ROUND(T379*V379,0),\"\")","v":{"$error":"#REF!"}},{"$f":"IF(Stock!#REF!<>\"\",$H379*W379,\"\")","v":{"$error":"#REF!"}},{"$f":"IF(Stock!#REF!<>\"\",Pilotage!R$27,\"\")","v":{"$error":"#REF!"}},{"$f":"IF(Stock!#REF!<>\"\",ROUND(W379*Y379,0),\"\")","v":{"$error":"#REF!"}},{"$f":"IF(Stock!#REF!<>\"\",$H379*Z379,\"\")","v":{"$error":"#REF!"}}]
[{"$f":"IF(Stock!#REF!<>\"\",Stock!#REF!,\"\")","v":{"$error":"#REF!"}},{"$f":"IF(Stock!#REF!<>\"\",Stock!#REF!,\"\")","v":{"$error":"#REF!"}},{"$f":"IF(Stock!#REF!<>\"\",Stock!#REF!,\"\")","v":{"$error":"#REF!"}},{"$f":"IF(Stock!#REF!<>\"\",SUM(Stock!#REF!,Stock!#REF!,Stock!#REF!),\"\")","v":{"$error":"#REF!"}},{"$f":"IF(Stock!#REF!<>\"\",#REF!*(1+Pilotage!$M$20),\"\")","v":{"$error":"#REF!"}},null,{"$f":"IF(Stock!#REF!<>\"\",IF(Stock!#REF!>0,Stock!#REF!/Stock!#REF!,0),\"\")","v":{"$error":"#REF!"}},{"$f":"IF(Stock!#REF!<>\"\",E380*Pilotage!$D$15,\"\")","v":{"$error":"#REF!"}},{"$f":"IF(Stock!#REF!<>\"\",IF(Stock!#REF!>0,Stock!#REF!,0),\"\")","v":{"$error":"#REF!"}},{"$f":"IF(Stock!#REF!<>\"\",Pilotage!$M$27,\"\")","v":{"$error":"#REF!"}},{"$f":"IF(Stock!#REF!<>\"\",ROUND(Stock!#REF!*J380,0),\"\")","v":{"$error":"#REF!"}},{"$f":"IF(Stock!#REF!<>\"\",$H380*K380,\"\")","v":{"$error":"#REF!"}},{"$f":"IF(Stock!#REF!<>\"\",Pilotage!N$27,\"\")","v":{"$error":"#REF!"}},{"$f":"IF(Stock!#REF!<>\"\",ROUND(K380*M380,0),\"\")","v":{"$error":"#REF!"}},{"$f":"IF(Stock!#REF!<>\"\",$H380*N380,\"\")","v":{"$error":"#REF!"}},{"$f":"IF(Stock!#REF!<>\"\",Pilotage!O$27,\"\")","v":{"$error":"#REF!"}},{"$f":"IF(Stock!#REF!<>\"\",ROUND(K380*P380,0),\"\")","v":{"$error":"#REF!"}},{"$f":"IF(Stock!#REF!<>\"\",$H380*Q380,\"\")","v":{"$error":"#REF!"}},{"$f":"IF(Stock!#REF!<>\"\",Pilotage!P$27,\"\")","v":{"$error":"#REF!"}},{"$f":"IF(Stock!#REF!<>\"\",ROUND(Q380*S380,0),\"\")","v":{"$error":"#REF!"}},{"$f":"IF(Stock!#REF!<>\"\",$H380*T380,\"\")","v":{"$error":"#REF!"}},{"$f":"IF(Stock!#REF!<>\"\",Pilotage!Q$27,\"\")","v":{"$error":"#REF!"}},{"$f":"IF(Stock!#REF!<>\"\",ROUND(T380*V380,0),\"\")","v":{"$error":"#REF!"}},{"$f":"IF(Stock!#REF!<>\"\",$H380*W380,\"\")","v":{"$error":"#REF!"}},{"$f":"IF(Stock!#REF!<>\"\",Pilotage!R$27,\"\")","v":{"$error":"#REF!"}},{"$f":"IF(Stock!#REF!<>\"\",ROUND(W380*Y380,0),\"\")","v":{"$error":"#REF!"}},{"$f":"IF(Stock!#REF!<>\"\",$H380*Z380,\"\")","v":{"$error":"#REF!"}}]
[{"$f":"IF(Stock!#REF!<>\"\",Stock!#REF!,\"\")","v":{"$error":"#REF!"}},{"$f":"IF(Stock!#REF!<>\"\",Stock!#REF!,\"\")","v":{"$error":"#REF!"}},{"$f":"IF(Stock!#REF!<>\"\",Stock!#REF!,\"\")","v":{"$error":"#REF!"}},{"$f":"IF(Stock!#REF!<>\"\",SUM(Stock!#REF!,Stock!#REF!,Stock!#REF!),\"\")","v":{"$error":"#REF!"}},{"$f":"IF(Stock!#REF!<>\"\",#REF!*(1+Pilotage!$M$20),\"\")","v":{"$error":"#REF!"}},null,{"$f":"IF(Stock!#REF!<>\"\",IF(Stock!#REF!>0,Stock!#REF!/Stock!#REF!,0),\"\")","v":{"$error":"#REF!"}},{"$f":"IF(Stock!#REF!<>\"\",E381*Pilotage!$D$15,\"\")","v":{"$error":"#REF!"}},{"$f":"IF(Stock!#REF!<>\"\",IF(Stock!#REF!>0,Stock!#REF!,0),\"\")","v":{"$error":"#REF!"}},{"$f":"IF(Stock!#REF!<>\"\",Pilotage!$M$27,\"\")","v":{"$error":"#REF!"}},{"$f":"IF(Stock!#REF!<>\"\",ROUND(Stock!#REF!*J381,0),\"\")","v":{"$error":"#REF!"}},{"$f":"IF(Stock!#REF!<>\"\",$H381*K381,\"\")","v":{"$error":"#REF!"}},{"$f":"IF(Stock!#REF!<>\"\",Pilotage!N$27,\"\")","v":{"$error":"#REF!"}},{"$f":"IF(Stock!#REF!<>\"\",ROUND(K381*M381,0),\"\")","v":{"$error":"#REF!"}},{"$f":"IF(Stock!#REF!<>\"\",$H381*N381,\"\")","v":{"$error":"#REF!"}},{"$f":"IF(Stock!#REF!<>\"\",Pilotage!O$27,\"\")","v":{"$error":"#REF!"}},{"$f":"IF(Stock!#REF!<>\"\",ROUND(K381*P381,0),\"\")","v":{"$error":"#REF!"}},{"$f":"IF(Stock!#REF!<>\"\",$H381*Q381,\"\")","v":{"$error":"#REF!"}},{"$f":"IF(Stock!#REF!<>\"\",Pilotage!P$27,\"\")","v":{"$error":"#REF!"}},{"$f":"IF(Stock!#REF!<>\"\",ROUND(Q381*S381,0),\"\")","v":{"$error":"#REF!"}},{"$f":"IF(Stock!#REF!<>\"\",$H381*T381,\"\")","v":{"$error":"#REF!"}},{"$f":"IF(Stock!#REF!<>\"\",Pilotage!Q$27,\"\")","v":{"$error":"#REF!"}},{"$f":"IF(Stock!#REF!<>\"\",ROUND(T381*V381,0),\"\")","v":{"$error":"#REF!"}},{"$f":"IF(Stock!#REF!<>\"\",$H381*W381,\"\")","v":{"$error":"#REF!"}},{"$f":"IF(Stock!#REF!<>\"\",Pilotage!R$27,\"\")","v":{"$error":"#REF!"}},{"$f":"IF(Stock!#REF!<>\"\",ROUND(W381*Y381,0),\"\")","v":{"$error":"#REF!"}},{"$f":"IF(Stock!#REF!<>\"\",$H381*Z381,\"\")","v":{"$error":"#REF!"}}]
[{"$f":"IF(Stock!#REF!<>\"\",Stock!#REF!,\"\")","v":{"$error":"#REF!"}},{"$f":"IF(Stock!#REF!<>\"\",Stock!#REF!,\"\")","v":{"$error":"#REF!"}},{"$f":"IF(Stock!#REF!<>\"\",Stock!#REF!,\"\")","v":{"$error":"#REF!"}},{"$f":"IF(Stock!#REF!<>\"\",SUM(Stock!#REF!,Stock!#REF!,Stock!#REF!),\"\")","v":{"$error":"#REF!"}},{"$f":"IF(Stock!#REF!<>\"\",#REF!*(1+Pilotage!$M$20),\"\")","v":{"$error":"#REF!"}},null,{"$f":"IF(Stock!#REF!<>\"\",IF(Stock!#REF!>0,Stock!#REF!/Stock!#REF!,0),\"\")","v":{"$error":"#REF!"}},{"$f":"IF(Stock!#REF!<>\"\",E382*Pilotage!$D$15,\"\")","v":{"$error":"#REF!"}},{"$f":"IF(Stock!#REF!<>\"\",IF(Stock!#REF!>0,Stock!#REF!,0),\"\")","v":{"$error":"#REF!"}},{"$f":"IF(Stock!#REF!<>\"\",Pilotage!$M$27,\"\")","v":{"$error":"#REF!"}},{"$f":"IF(Stock!#REF!<>\"\",ROUND(Stock!#REF!*J382,0),\"\")","v":{"$error":"#REF!"}},{"$f":"IF(Stock!#REF!<>\"\",$H382*K382,\"\")","v":{"$error":"#REF!"}},{"$f":"IF(Stock!#REF!<>\"\",Pilotage!N$27,\"\")","v":{"$error":"#REF!"}},{"$f":"IF(Stock!#REF!<>\"\",ROUND(K382*M382,0),\"\")","v":{"$error":"#REF!"}},{"$f":"IF(Stock!#REF!<>\"\",$H382*N382,\"\")","v":{"$error":"#REF!"}},{"$f":"IF(Stock!#REF!<>\"\",Pilotage!O$27,\"\")","v":{"$error":"#REF!"}},{"$f":"IF(Stock!#REF!<>\"\",ROUND(K382*P382,0),\"\")","v":{"$error":"#REF!"}},{"$f":"IF(Stock!#REF!<>\"\",$H382*Q382,\"\")","v":{"$error":"#REF!"}},{"$f":"IF(Stock!#REF!<>\"\",Pilotage!P$27,\"\")","v":{"$error":"#REF!"}},{"$f":"IF(Stock!#REF!<>\"\",ROUND(Q382*S382,0),\"\")","v":{"$error":"#REF!"}},{"$f":"IF(Stock!#REF!<>\"\",$H382*T382,\"\")","v":{"$error":"#REF!"}},{"$f":"IF(Stock!#REF!<>\"\",Pilotage!Q$27,\"\")","v":{"$error":"#REF!"}},{"$f":"IF(Stock!#REF!<>\"\",ROUND(T382*V382,0),\"\")","v":{"$error":"#REF!"}},{"$f":"IF(Stock!#REF!<>\"\",$H382*W382,\"\")","v":{"$error":"#REF!"}},{"$f":"IF(Stock!#REF!<>\"\",Pilotage!R$27,\"\")","v":{"$error":"#REF!"}},{"$f":"IF(Stock!#REF!<>\"\",ROUND(W382*Y382,0),\"\")","v":{"$error":"#REF!"}},{"$f":"IF(Stock!#REF!<>\"\",$H382*Z382,\"\")","v":{"$error":"#REF!"}}]
[{"$f":"IF(Stock!#REF!<>\"\",Stock!#REF!,\"\")","v":{"$error":"#REF!"}},{"$f":"IF(Stock!#REF!<>\"\",Stock!#REF!,\"\")","v":{"$error":"#REF!"}},{"$f":"IF(Stock!#REF!<>\"\",Stock!#REF!,\"\")","v":{"$error":"#REF!"}},{"$f":"IF(Stock!#REF!<>\"\",SUM(Stock!#REF!,Stock!#REF!,Stock!#REF!),\"\")","v":{"$error":"#REF!"}},{"$f":"IF(Stock!#REF!<>\"\",#REF!*(1+Pilotage!$M$20),\"\")","v":{"$error":"#REF!"}},null,{"$f":"IF(Stock!#REF!<>\"\",IF(Stock!#REF!>0,Stock!#REF!/Stock!#REF!,0),\"\")","v":{"$error":"#REF!"}},{"$f":"IF(Stock!#REF!<>\"\",E383*Pilotage!$D$15,\"\")","v":{"$error":"#REF!"}},{"$f":"IF(Stock!#REF!<>\"\",IF(Stock!#REF!>0,Stock!#REF!,0),\"\")","v":{"$error":"#REF!"}},{"$f":"IF(Stock!#REF!<>\"\",Pilotage!$M$27,\"\")","v":{"$error":"#REF!"}},{"$f":"IF(Stock!#REF!<>\"\",ROUND(Stock!#REF!*J383,0),\"\")","v":{"$error":"#REF!"}},{"$f":"IF(Stock!#REF!<>\"\",$H383*K383,\"\")","v":{"$error":"#REF!"}},{"$f":"IF(Stock!#REF!<>\"\",Pilotage!N$27,\"\")","v":{"$error":"#REF!"}},{"$f":"IF(Stock!#REF!<>\"\",ROUND(K383*M383,0),\"\")","v":{"$error":"#REF!"}},{"$f":"IF(Stock!#REF!<>\"\",$H383*N383,\"\")","v":{"$error":"#REF!"}},{"$f":"IF(Stock!#REF!<>\"\",Pilotage!O$27,\"\")","v":{"$error":"#REF!"}},{"$f":"IF(Stock!#REF!<>\"\",ROUND(K383*P383,0),\"\")","v":{"$error":"#REF!"}},{"$f":"IF(Stock!#REF!<>\"\",$H383*Q383,\"\")","v":{"$error":"#REF!"}},{"$f":"IF(Stock!#REF!<>\"\",Pilotage!P$27,\"\")","v":{"$error":"#REF!"}},{"$f":"IF(Stock!#REF!<>\"\",ROUND(Q383*S383,0),\"\")","v":{"$error":"#REF!"}},{"$f":"IF(Stock!#REF!<>\"\",$H383*T383,\"\")","v":{"$error":"#REF!"}},{"$f":"IF(Stock!#REF!<>\"\",Pilotage!Q$27,\"\")","v":{"$error":"#REF!"}},{"$f":"IF(Stock!#REF!<>\"\",ROUND(T383*V383,0),\"\")","v":{"$error":"#REF!"}},{"$f":"IF(Stock!#REF!<>\"\",$H383*W383,\"\")","v":{"$error":"#REF!"}},{"$f":"IF(Stock!#REF!<>\"\",Pilotage!R$27,\"\")","v":{"$error":"#REF!"}},{"$f":"IF(Stock!#REF!<>\"\",ROUND(W383*Y383,0),\"\")","v":{"$error":"#REF!"}},{"$f":"IF(Stock!#REF!<>\"\",$H383*Z383,\"\")","v":{"$error":"#REF!"}}]
[{"$f":"IF(Stock!#REF!<>\"\",Stock!#REF!,\"\")","v":{"$error":"#REF!"}},{"$f":"IF(Stock!#REF!<>\"\",Stock!#REF!,\"\")","v":{"$error":"#REF!"}},{"$f":"IF(Stock!#REF!<>\"\",Stock!#REF!,\"\")","v":{"$error":"#REF!"}},{"$f":"IF(Stock!#REF!<>\"\",SUM(Stock!#REF!,Stock!#REF!,Stock!#REF!),\"\")","v":{"$error":"#REF!"}},{"$f":"IF(Stock!#REF!<>\"\",#REF!*(1+Pilotage!$M$20),\"\")","v":{"$error":"#REF!"}},null,{"$f":"IF(Stock!#REF!<>\"\",IF(Stock!#REF!>0,Stock!#REF!/Stock!#REF!,0),\"\")","v":{"$error":"#REF!"}},{"$f":"IF(Stock!#REF!<>\"\",E384*Pilotage!$D$15,\"\")","v":{"$error":"#REF!"}},{"$f":"IF(Stock!#REF!<>\"\",IF(Stock!#REF!>0,Stock!#REF!,0),\"\")","v":{"$error":"#REF!"}},{"$f":"IF(Stock!#REF!<>\"\",Pilotage!$M$27,\"\")","v":{"$error":"#REF!"}},{"$f":"IF(Stock!#REF!<>\"\",ROUND(Stock!#REF!*J384,0),\"\")","v":{"$error":"#REF!"}},{"$f":"IF(Stock!#REF!<>\"\",$H384*K384,\"\")","v":{"$error":"#REF!"}},{"$f":"IF(Stock!#REF!<>\"\",Pilotage!N$27,\"\")","v":{"$error":"#REF!"}},{"$f":"IF(Stock!#REF!<>\"\",ROUND(K384*M384,0),\"\")","v":{"$error":"#REF!"}},{"$f":"IF(Stock!#REF!<>\"\",$H384*N384,\"\")","v":{"$error":"#REF!"}},{"$f":"IF(Stock!#REF!<>\"\",Pilotage!O$27,\"\")","v":{"$error":"#REF!"}},{"$f":"IF(Stock!#REF!<>\"\",ROUND(K384*P384,0),\"\")","v":{"$error":"#REF!"}},{"$f":"IF(Stock!#REF!<>\"\",$H384*Q384,\"\")","v":{"$error":"#REF!"}},{"$f":"IF(Stock!#REF!<>\"\",Pilotage!P$27,\"\")","v":{"$error":"#REF!"}},{"$f":"IF(Stock!#REF!<>\"\",ROUND(Q384*S384,0),\"\")","v":{"$error":"#REF!"}},{"$f":"IF(Stock!#REF!<>\"\",$H384*T384,\"\")","v":{"$error":"#REF!"}},{"$f":"IF(Stock!#REF!<>\"\",Pilotage!Q$27,\"\")","v":{"$error":"#REF!"}},{"$f":"IF(Stock!#REF!<>\"\",ROUND(T384*V384,0),\"\")","v":{"$error":"#REF!"}},{"$f":"IF(Stock!#REF!<>\"\",$H384*W384,\"\")","v":{"$error":"#REF!"}},{"$f":"IF(Stock!#REF!<>\"\",Pilotage!R$27,\"\")","v":{"$error":"#REF!"}},{"$f":"IF(Stock!#REF!<>\"\",ROUND(W384*Y384,0),\"\")","v":{"$error":"#REF!"}},{"$f":"IF(Stock!#REF!<>\"\",$H384*Z384,\"\")","v":{"$error":"#REF!"}}]
[{"$f":"IF(Stock!#REF!<>\"\",Stock!#REF!,\"\")","v":{"$error":"#REF!"}},{"$f":"IF(Stock!#REF!<>\"\",Stock!#REF!,\"\")","v":{"$error":"#REF!"}},{"$f":"IF(Stock!#REF!<>\"\",Stock!#REF!,\"\")","v":{"$error":"#REF!"}},{"$f":"IF(Stock!#REF!<>\"\",SUM(Stock!#REF!,Stock!#REF!,Stock!#REF!),\"\")","v":{"$error":"#REF!"}},{"$f":"IF(Stock!#REF!<>\"\",#REF!*(1+Pilotage!$M$20),\"\")","v":{"$error":"#REF!"}},null,{"$f":"IF(Stock!#REF!<>\"\",IF(Stock!#REF!>0,Stock!#REF!/Stock!#REF!,0),\"\")","v":{"$error":"#REF!"}},{"$f":"IF(Stock!#REF!<>\"\",E385*Pilotage!$D$15,\"\")","v":{"$error":"#REF!"}},{"$f":"IF(Stock!#REF!<>\"\",IF(Stock!#REF!>0,Stock!#REF!,0),\"\")","v":{"$error":"#REF!"}},{"$f":"IF(Stock!#REF!<>\"\",Pilotage!$M$27,\"\")","v":{"$error":"#REF!"}},{"$f":"IF(Stock!#REF!<>\"\",ROUND(Stock!#REF!*J385,0),\"\")","v":{"$error":"#REF!"}},{"$f":"IF(Stock!#REF!<>\"\",$H385*K385,\"\")","v":{"$error":"#REF!"}},{"$f":"IF(Stock!#REF!<>\"\",Pilotage!N$27,\"\")","v":{"$error":"#REF!"}},{"$f":"IF(Stock!#REF!<>\"\",ROUND(K385*M385,0),\"\")","v":{"$error":"#REF!"}},{"$f":"IF(Stock!#REF!<>\"\",$H385*N385,\"\")","v":{"$error":"#REF!"}},{"$f":"IF(Stock!#REF!<>\"\",Pilotage!O$27,\"\")","v":{"$error":"#REF!"}},{"$f":"IF(Stock!#REF!<>\"\",ROUND(K385*P385,0),\"\")","v":{"$error":"#REF!"}},{"$f":"IF(Stock!#REF!<>\"\",$H385*Q385,\"\")","v":{"$error":"#REF!"}},{"$f":"IF(Stock!#REF!<>\"\",Pilotage!P$27,\"\")","v":{"$error":"#REF!"}},{"$f":"IF(Stock!#REF!<>\"\",ROUND(Q385*S385,0),\"\")","v":{"$error":"#REF!"}},{"$f":"IF(Stock!#REF!<>\"\",$H385*T385,\"\")","v":{"$error":"#REF!"}},{"$f":"IF(Stock!#REF!<>\"\",Pilotage!Q$27,\"\")","v":{"$error":"#REF!"}},{"$f":"IF(Stock!#REF!<>\"\",ROUND(T385*V385,0),\"\")","v":{"$error":"#REF!"}},{"$f":"IF(Stock!#REF!<>\"\",$H385*W385,\"\")","v":{"$error":"#REF!"}},{"$f":"IF(Stock!#REF!<>\"\",Pilotage!R$27,\"\")","v":{"$error":"#REF!"}},{"$f":"IF(Stock!#REF!<>\"\",ROUND(W385*Y385,0),\"\")","v":{"$error":"#REF!"}},{"$f":"IF(Stock!#REF!<>\"\",$H385*Z385,\"\")","v":{"$error":"#REF!"}}]
[{"$f":"IF(Stock!#REF!<>\"\",Stock!#REF!,\"\")","v":{"$error":"#REF!"}},{"$f":"IF(Stock!#REF!<>\"\",Stock!#REF!,\"\")","v":{"$error":"#REF!"}},{"$f":"IF(Stock!#REF!<>\"\",Stock!#REF!,\"\")","v":{"$error":"#REF!"}},{"$f":"IF(Stock!#REF!<>\"\",SUM(Stock!#REF!,Stock!#REF!,Stock!#REF!),\"\")","v":{"$error":"#REF!"}},{"$f":"IF(Stock!#REF!<>\"\",#REF!*(1+Pilotage!$M$20),\"\")","v":{"$error":"#REF!"}},null,{"$f":"IF(Stock!#REF!<>\"\",IF(Stock!#REF!>0,Stock!#REF!/Stock!#REF!,0),\"\")","v":{"$error":"#REF!"}},{"$f":"IF(Stock!#REF!<>\"\",E386*Pilotage!$D$15,\"\")","v":{"$error":"#REF!"}},{"$f":"IF(Stock!#REF!<>\"\",IF(Stock!#REF!>0,Stock!#REF!,0),\"\")","v":{"$error":"#REF!"}},{"$f":"IF(Stock!#REF!<>\"\",Pilotage!$M$27,\"\")","v":{"$error":"#REF!"}},{"$f":"IF(Stock!#REF!<>\"\",ROUND(Stock!#REF!*J386,0),\"\")","v":{"$error":"#REF!"}},{"$f":"IF(Stock!#REF!<>\"\",$H386*K386,\"\")","v":{"$error":"#REF!"}},{"$f":"IF(Stock!#REF!<>\"\",Pilotage!N$27,\"\")","v":{"$error":"#REF!"}},{"$f":"IF(Stock!#REF!<>\"\",ROUND(K386*M386,0),\"\")","v":{"$error":"#REF!"}},{"$f":"IF(Stock!#REF!<>\"\",$H386*N386,\"\")","v":{"$error":"#REF!"}},{"$f":"IF(Stock!#REF!<>\"\",Pilotage!O$27,\"\")","v":{"$error":"#REF!"}},{"$f":"IF(Stock!#REF!<>\"\",ROUND(K386*P386,0),\"\")","v":{"$error":"#REF!"}},{"$f":"IF(Stock!#REF!<>\"\",$H386*Q386,\"\")","v":{"$error":"#REF!"}},{"$f":"IF(Stock!#REF!<>\"\",Pilotage!P$27,\"\")","v":{"$error":"#REF!"}},{"$f":"IF(Stock!#REF!<>\"\",ROUND(Q386*S386,0),\"\")","v":{"$error":"#REF!"}},{"$f":"IF(Stock!#REF!<>\"\",$H386*T386,\"\")","v":{"$error":"#REF!"}},{"$f":"IF(Stock!#REF!<>\"\",Pilotage!Q$27,\"\")","v":{"$error":"#REF!"}},{"$f":"IF(Stock!#REF!<>\"\",ROUND(T386*V386,0),\"\")","v":{"$error":"#REF!"}},{"$f":"IF(Stock!#REF!<>\"\",$H386*W386,\"\")","v":{"$error":"#REF!"}},{"$f":"IF(Stock!#REF!<>\"\",Pilotage!R$27,\"\")","v":{"$error":"#REF!"}},{"$f":"IF(Stock!#REF!<>\"\",ROUND(W386*Y386,0),\"\")","v":{"$error":"#REF!"}},{"$f":"IF(Stock!#REF!<>\"\",$H386*Z386,\"\")","v":{"$error":"#REF!"}}]
[{"$f":"IF(Stock!#REF!<>\"\",Stock!#REF!,\"\")","v":{"$error":"#REF!"}},{"$f":"IF(Stock!#REF!<>\"\",Stock!#REF!,\"\")","v":{"$error":"#REF!"}},{"$f":"IF(Stock!#REF!<>\"\",Stock!#REF!,\"\")","v":{"$error":"#REF!"}},{"$f":"IF(Stock!#REF!<>\"\",SUM(Stock!#REF!,Stock!#REF!,Stock!#REF!),\"\")","v":{"$error":"#REF!"}},{"$f":"IF(Stock!#REF!<>\"\",#REF!*(1+Pilotage!$M$20),\"\")","v":{"$error":"#REF!"}},null,{"$f":"IF(Stock!#REF!<>\"\",IF(Stock!#REF!>0,Stock!#REF!/Stock!#REF!,0),\"\")","v":{"$error":"#REF!"}},{"$f":"IF(Stock!#REF!<>\"\",E387*Pilotage!$D$15,\"\")","v":{"$error":"#REF!"}},{"$f":"IF(Stock!#REF!<>\"\",IF(Stock!#REF!>0,Stock!#REF!,0),\"\")","v":{"$error":"#REF!"}},{"$f":"IF(Stock!#REF!<>\"\",Pilotage!$M$27,\"\")","v":{"$error":"#REF!"}},{"$f":"IF(Stock!#REF!<>\"\",ROUND(Stock!#REF!*J387,0),\"\")","v":{"$error":"#REF!"}},{"$f":"IF(Stock!#REF!<>\"\",$H387*K387,\"\")","v":{"$error":"#REF!"}},{"$f":"IF(Stock!#REF!<>\"\",Pilotage!N$27,\"\")","v":{"$error":"#REF!"}},{"$f":"IF(Stock!#REF!<>\"\",ROUND(K387*M387,0),\"\")","v":{"$error":"#REF!"}},{"$f":"IF(Stock!#REF!<>\"\",$H387*N387,\"\")","v":{"$error":"#REF!"}},{"$f":"IF(Stock!#REF!<>\"\",Pilotage!O$27,\"\")","v":{"$error":"#REF!"}},{"$f":"IF(Stock!#REF!<>\"\",ROUND(K387*P387,0),\"\")","v":{"$error":"#REF!"}},{"$f":"IF(Stock!#REF!<>\"\",$H387*Q387,\"\")","v":{"$error":"#REF!"}},{"$f":"IF(Stock!#REF!<>\"\",Pilotage!P$27,\"\")","v":{"$error":"#REF!"}},{"$f":"IF(Stock!#REF!<>\"\",ROUND(Q387*S387,0),\"\")","v":{"$error":"#REF!"}},{"$f":"IF(Stock!#REF!<>\"\",$H387*T387,\"\")","v":{"$error":"#REF!"}},{"$f":"IF(Stock!#REF!<>\"\",Pilotage!Q$27,\"\")","v":{"$error":"#REF!"}},{"$f":"IF(Stock!#REF!<>\"\",ROUND(T387*V387,0),\"\")","v":{"$error":"#REF!"}},{"$f":"IF(Stock!#REF!<>\"\",$H387*W387,\"\")","v":{"$error":"#REF!"}},{"$f":"IF(Stock!#REF!<>\"\",Pilotage!R$27,\"\")","v":{"$error":"#REF!"}},{"$f":"IF(Stock!#REF!<>\"\",ROUND(W387*Y387,0),\"\")","v":{"$error":"#REF!"}},{"$f":"IF(Stock!#REF!<>\"\",$H387*Z387,\"\")","v":{"$error":"#REF!"}}]
[{"$f":"IF(Stock!#REF!<>\"\",Stock!#REF!,\"\")","v":{"$error":"#REF!"}},{"$f":"IF(Stock!#REF!<>\"\",Stock!#REF!,\"\")","v":{"$error":"#REF!"}},{"$f":"IF(Stock!#REF!<>\"\",Stock!#REF!,\"\")","v":{"$error":"#REF!"}},{"$f":"IF(Stock!#REF!<>\"\",SUM(Stock!#REF!,Stock!#REF!,Stock!#REF!),\"\")","v":{"$error":"#REF!"}},{"$f":"IF(Stock!#REF!<>\"\",#REF!*(1+Pilotage!$M$20),\"\")","v":{"$error":"#REF!"}},null,{"$f":"IF(Stock!#REF!<>\"\",IF(Stock!#REF!>0,Stock!#REF!/Stock!#REF!,0),\"\")","v":{"$error":"#REF!"}},{"$f":"IF(Stock!#REF!<>\"\",E388*Pilotage!$D$15,\"\")","v":{"$error":"#REF!"}},{"$f":"IF(Stock!#REF!<>\"\",IF(Stock!#REF!>0,Stock!#REF!,0),\"\")","v":{"$error":"#REF!"}},{"$f":"IF(Stock!#REF!<>\"\",Pilotage!$M$27,\"\")","v":{"$error":"#REF!"}},{"$f":"IF(Stock!#REF!<>\"\",ROUND(Stock!#REF!*J388,0),\"\")","v":{"$error":"#REF!"}},{"$f":"IF(Stock!#REF!<>\"\",$H388*K388,\"\")","v":{"$error":"#REF!"}},{"$f":"IF(Stock!#REF!<>\"\",Pilotage!N$27,\"\")","v":{"$error":"#REF!"}},{"$f":"IF(Stock!#REF!<>\"\",ROUND(K388*M388,0),\"\")","v":{"$error":"#REF!"}},{"$f":"IF(Stock!#REF!<>\"\",$H388*N388,\"\")","v":{"$error":"#REF!"}},{"$f":"IF(Stock!#REF!<>\"\",Pilotage!O$27,\"\")","v":{"$error":"#REF!"}},{"$f":"IF(Stock!#REF!<>\"\",ROUND(K388*P388,0),\"\")","v":{"$error":"#REF!"}},{"$f":"IF(Stock!#REF!<>\"\",$H388*Q388,\"\")","v":{"$error":"#REF!"}},{"$f":"IF(Stock!#REF!<>\"\",Pilotage!P$27,\"\")","v":{"$error":"#REF!"}},{"$f":"IF(Stock!#REF!<>\"\",ROUND(Q388*S388,0),\"\")","v":{"$error":"#REF!"}},{"$f":"IF(Stock!#REF!<>\"\",$H388*T388,\"\")","v":{"$error":"#REF!"}},{"$f":"IF(Stock!#REF!<>\"\",Pilotage!Q$27,\"\")","v":{"$error":"#REF!"}},{"$f":"IF(Stock!#REF!<>\"\",ROUND(T388*V388,0),\"\")","v":{"$error":"#REF!"}},{"$f":"IF(Stock!#REF!<>\"\",$H388*W388,\"\")","v":{"$error":"#REF!"}},{"$f":"IF(Stock!#REF!<>\"\",Pilotage!R$27,\"\")","v":{"$error":"#REF!"}},{"$f":"IF(Stock!#REF!<>\"\",ROUND(W388*Y388,0),\"\")","v":{"$error":"#REF!"}},{"$f":"IF(Stock!#REF!<>\"\",$H388*Z388,\"\")","v":{"$error":"#REF!"}}]
[{"$f":"IF(Stock!#REF!<>\"\",Stock!#REF!,\"\")","v":{"$error":"#REF!"}},{"$f":"IF(Stock!#REF!<>\"\",Stock!#REF!,\"\")","v":{"$error":"#REF!"}},{"$f":"IF(Stock!#REF!<>\"\",Stock!#REF!,\"\")","v":{"$error":"#REF!"}},{"$f":"IF(Stock!#REF!<>\"\",SUM(Stock!#REF!,Stock!#REF!,Stock!#REF!),\"\")","v":{"$error":"#REF!"}},{"$f":"IF(Stock!#REF!<>\"\",#REF!*(1+Pilotage!$M$20),\"\")","v":{"$error":"#REF!"}},null,{"$f":"IF(Stock!#REF!<>\"\",IF(Stock!#REF!>0,Stock!#REF!/Stock!#REF!,0),\"\")","v":{"$error":"#REF!"}},{"$f":"IF(Stock!#REF!<>\"\",E389*Pilotage!$D$15,\"\")","v":{"$error":"#REF!"}},{"$f":"IF(Stock!#REF!<>\"\",IF(Stock!#REF!>0,Stock!#REF!,0),\"\")","v":{"$error":"#REF!"}},{"$f":"IF(Stock!#REF!<>\"\",Pilotage!$M$27,\"\")","v":{"$error":"#REF!"}},{"$f":"IF(Stock!#REF!<>\"\",ROUND(Stock!#REF!*J389,0),\"\")","v":{"$error":"#REF!"}},{"$f":"IF(Stock!#REF!<>\"\",$H389*K389,\"\")","v":{"$error":"#REF!"}},{"$f":"IF(Stock!#REF!<>\"\",Pilotage!N$27,\"\")","v":{"$error":"#REF!"}},{"$f":"IF(Stock!#REF!<>\"\",ROUND(K389*M389,0),\"\")","v":{"$error":"#REF!"}},{"$f":"IF(Stock!#REF!<>\"\",$H389*N389,\"\")","v":{"$error":"#REF!"}},{"$f":"IF(Stock!#REF!<>\"\",Pilotage!O$27,\"\")","v":{"$error":"#REF!"}},{"$f":"IF(Stock!#REF!<>\"\",ROUND(K389*P389,0),\"\")","v":{"$error":"#REF!"}},{"$f":"IF(Stock!#REF!<>\"\",$H389*Q389,\"\")","v":{"$error":"#REF!"}},{"$f":"IF(Stock!#REF!<>\"\",Pilotage!P$27,\"\")","v":{"$error":"#REF!"}},{"$f":"IF(Stock!#REF!<>\"\",ROUND(Q389*S389,0),\"\")","v":{"$error":"#REF!"}},{"$f":"IF(Stock!#REF!<>\"\",$H389*T389,\"\")","v":{"$error":"#REF!"}},{"$f":"IF(Stock!#REF!<>\"\",Pilotage!Q$27,\"\")","v":{"$error":"#REF!"}},{"$f":"IF(Stock!#REF!<>\"\",ROUND(T389*V389,0),\"\")","v":{"$error":"#REF!"}},{"$f":"IF(Stock!#REF!<>\"\",$H389*W389,\"\")","v":{"$error":"#REF!"}},{"$f":"IF(Stock!#REF!<>\"\",Pilotage!R$27,\"\")","v":{"$error":"#REF!"}},{"$f":"IF(Stock!#REF!<>\"\",ROUND(W389*Y389,0),\"\")","v":{"$error":"#REF!"}},{"$f":"IF(Stock!#REF!<>\"\",$H389*Z389,\"\")","v":{"$error":"#REF!"}}]
[{"$f":"IF(Stock!#REF!<>\"\",Stock!#REF!,\"\")","v":{"$error":"#REF!"}},{"$f":"IF(Stock!#REF!<>\"\",Stock!#REF!,\"\")","v":{"$error":"#REF!"}},{"$f":"IF(Stock!#REF!<>\"\",Stock!#REF!,\"\")","v":{"$error":"#REF!"}},{"$f":"IF(Stock!#REF!<>\"\",SUM(Stock!#REF!,Stock!#REF!,Stock!#REF!),\"\")","v":{"$error":"#REF!"}},{"$f":"IF(Stock!#REF!<>\"\",#REF!*(1+Pilotage!$M$20),\"\")","v":{"$error":"#REF!"}},null,{"$f":"IF(Stock!#REF!<>\"\",IF(Stock!#REF!>0,Stock!#REF!/Stock!#REF!,0),\"\")","v":{"$error":"#REF!"}},{"$f":"IF(Stock!#REF!<>\"\",E390*Pilotage!$D$15,\"\")","v":{"$error":"#REF!"}},{"$f":"IF(Stock!#REF!<>\"\",IF(Stock!#REF!>0,Stock!#REF!,0),\"\")","v":{"$error":"#REF!"}},{"$f":"IF(Stock!#REF!<>\"\",Pilotage!$M$27,\"\")","v":{"$error":"#REF!"}},{"$f":"IF(Stock!#REF!<>\"\",ROUND(Stock!#REF!*J390,0),\"\")","v":{"$error":"#REF!"}},{"$f":"IF(Stock!#REF!<>\"\",$H390*K390,\"\")","v":{"$error":"#REF!"}},{"$f":"IF(Stock!#REF!<>\"\",Pilotage!N$27,\"\")","v":{"$error":"#REF!"}},{"$f":"IF(Stock!#REF!<>\"\",ROUND(K390*M390,0),\"\")","v":{"$error":"#REF!"}},{"$f":"IF(Stock!#REF!<>\"\",$H390*N390,\"\")","v":{"$error":"#REF!"}},{"$f":"IF(Stock!#REF!<>\"\",Pilotage!O$27,\"\")","v":{"$error":"#REF!"}},{"$f":"IF(Stock!#REF!<>\"\",ROUND(K390*P390,0),\"\")","v":{"$error":"#REF!"}},{"$f":"IF(Stock!#REF!<>\"\",$H390*Q390,\"\")","v":{"$error":"#REF!"}},{"$f":"IF(Stock!#REF!<>\"\",Pilotage!P$27,\"\")","v":{"$error":"#REF!"}},{"$f":"IF(Stock!#REF!<>\"\",ROUND(Q390*S390,0),\"\")","v":{"$error":"#REF!"}},{"$f":"IF(Stock!#REF!<>\"\",$H390*T390,\"\")","v":{"$error":"#REF!"}},{"$f":"IF(Stock!#REF!<>\"\",Pilotage!Q$27,\"\")","v":{"$error":"#REF!"}},{"$f":"IF(Stock!#REF!<>\"\",ROUND(T390*V390,0),\"\")","v":{"$error":"#REF!"}},{"$f":"IF(Stock!#REF!<>\"\",$H390*W390,\"\")","v":{"$error":"#REF!"}},{"$f":"IF(Stock!#REF!<>\"\",Pilotage!R$27,\"\")","v":{"$error":"#REF!"}},{"$f":"IF(Stock!#REF!<>\"\",ROUND(W390*Y390,0),\"\")","v":{"$error":"#REF!"}},{"$f":"IF(Stock!#REF!<>\"\",$H390*Z390,\"\")","v":{"$error":"#REF!"}}]
[{"$f":"IF(Stock!#REF!<>\"\",Stock!#REF!,\"\")","v":{"$error":"#REF!"}},{"$f":"IF(Stock!#REF!<>\"\",Stock!#REF!,\"\")","v":{"$error":"#REF!"}},{"$f":"IF(Stock!#REF!<>\"\",Stock!#REF!,\"\")","v":{"$error":"#REF!"}},{"$f":"IF(Stock!#REF!<>\"\",SUM(Stock!#REF!,Stock!#REF!,Stock!#REF!),\"\")","v":{"$error":"#REF!"}},{"$f":"IF(Stock!#REF!<>\"\",#REF!*(1+Pilotage!$M$20),\"\")","v":{"$error":"#REF!"}},null,{"$f":"IF(Stock!#REF!<>\"\",IF(Stock!#REF!>0,Stock!#REF!/Stock!#REF!,0),\"\")","v":{"$error":"#REF!"}},{"$f":"IF(Stock!#REF!<>\"\",E391*Pilotage!$D$15,\"\")","v":{"$error":"#REF!"}},{"$f":"IF(Stock!#REF!<>\"\",IF(Stock!#REF!>0,Stock!#REF!,0),\"\")","v":{"$error":"#REF!"}},{"$f":"IF(Stock!#REF!<>\"\",Pilotage!$M$27,\"\")","v":{"$error":"#REF!"}},{"$f":"IF(Stock!#REF!<>\"\",ROUND(Stock!#REF!*J391,0),\"\")","v":{"$error":"#REF!"}},{"$f":"IF(Stock!#REF!<>\"\",$H391*K391,\"\")","v":{"$error":"#REF!"}},{"$f":"IF(Stock!#REF!<>\"\",Pilotage!N$27,\"\")","v":{"$error":"#REF!"}},{"$f":"IF(Stock!#REF!<>\"\",ROUND(K391*M391,0),\"\")","v":{"$error":"#REF!"}},{"$f":"IF(Stock!#REF!<>\"\",$H391*N391,\"\")","v":{"$error":"#REF!"}},{"$f":"IF(Stock!#REF!<>\"\",Pilotage!O$27,\"\")","v":{"$error":"#REF!"}},{"$f":"IF(Stock!#REF!<>\"\",ROUND(K391*P391,0),\"\")","v":{"$error":"#REF!"}},{"$f":"IF(Stock!#REF!<>\"\",$H391*Q391,\"\")","v":{"$error":"#REF!"}},{"$f":"IF(Stock!#REF!<>\"\",Pilotage!P$27,\"\")","v":{"$error":"#REF!"}},{"$f":"IF(Stock!#REF!<>\"\",ROUND(Q391*S391,0),\"\")","v":{"$error":"#REF!"}},{"$f":"IF(Stock!#REF!<>\"\",$H391*T391,\"\")","v":{"$error":"#REF!"}},{"$f":"IF(Stock!#REF!<>\"\",Pilotage!Q$27,\"\")","v":{"$error":"#REF!"}},{"$f":"IF(Stock!#REF!<>\"\",ROUND(T391*V391,0),\"\")","v":{"$error":"#REF!"}},{"$f":"IF(Stock!#REF!<>\"\",$H391*W391,\"\")","v":{"$error":"#REF!"}},{"$f":"IF(Stock!#REF!<>\"\",Pilotage!R$27,\"\")","v":{"$error":"#REF!"}},{"$f":"IF(Stock!#REF!<>\"\",ROUND(W391*Y391,0),\"\")","v":{"$error":"#REF!"}},{"$f":"IF(Stock!#REF!<>\"\",$H391*Z391,\"\")","v":{"$error":"#REF!"}}]
[{"$f":"IF(Stock!#REF!<>\"\",Stock!#REF!,\"\")","v":{"$error":"#REF!"}},{"$f":"IF(Stock!#REF!<>\"\",Stock!#REF!,\"\")","v":{"$error":"#REF!"}},{"$f":"IF(Stock!#REF!<>\"\",Stock!#REF!,\"\")","v":{"$error":"#REF!"}},{"$f":"IF(Stock!#REF!<>\"\",SUM(Stock!#REF!,Stock!#REF!,Stock!#REF!),\"\")","v":{"$error":"#REF!"}},{"$f":"IF(Stock!#REF!<>\"\",#REF!*(1+Pilotage!$M$20),\"\")","v":{"$error":"#REF!"}},null,{"$f":"IF(Stock!#REF!<>\"\",IF(Stock!#REF!>0,Stock!#REF!/Stock!#REF!,0),\"\")","v":{"$error":"#REF!"}},{"$f":"IF(Stock!#REF!<>\"\",E392*Pilotage!$D$15,\"\")","v":{"$error":"#REF!"}},{"$f":"IF(Stock!#REF!<>\"\",IF(Stock!#REF!>0,Stock!#REF!,0),\"\")","v":{"$error":"#REF!"}},{"$f":"IF(Stock!#REF!<>\"\",Pilotage!$M$27,\"\")","v":{"$error":"#REF!"}},{"$f":"IF(Stock!#REF!<>\"\",ROUND(Stock!#REF!*J392,0),\"\")","v":{"$error":"#REF!"}},{"$f":"IF(Stock!#REF!<>\"\",$H392*K392,\"\")","v":{"$error":"#REF!"}},{"$f":"IF(Stock!#REF!<>\"\",Pilotage!N$27,\"\")","v":{"$error":"#REF!"}},{"$f":"IF(Stock!#REF!<>\"\",ROUND(K392*M392,0),\"\")","v":{"$error":"#REF!"}},{"$f":"IF(Stock!#REF!<>\"\",$H392*N392,\"\")","v":{"$error":"#REF!"}},{"$f":"IF(Stock!#REF!<>\"\",Pilotage!O$27,\"\")","v":{"$error":"#REF!"}},{"$f":"IF(Stock!#REF!<>\"\",ROUND(K392*P392,0),\"\")","v":{"$error":"#REF!"}},{"$f":"IF(Stock!#REF!<>\"\",$H392*Q392,\"\")","v":{"$error":"#REF!"}},{"$f":"IF(Stock!#REF!<>\"\",Pilotage!P$27,\"\")","v":{"$error":"#REF!"}},{"$f":"IF(Stock!#REF!<>\"\",ROUND(Q392*S392,0),\"\")","v":{"$error":"#REF!"}},{"$f":"IF(Stock!#REF!<>\"\",$H392*T392,\"\")","v":{"$error":"#REF!"}},{"$f":"IF(Stock!#REF!<>\"\",Pilotage!Q$27,\"\")","v":{"$error":"#REF!"}},{"$f":"IF(Stock!#REF!<>\"\",ROUND(T392*V392,0),\"\")","v":{"$error":"#REF!"}},{"$f":"IF(Stock!#REF!<>\"\",$H392*W392,\"\")","v":{"$error":"#REF!"}},{"$f":"IF(Stock!#REF!<>\"\",Pilotage!R$27,\"\")","v":{"$error":"#REF!"}},{"$f":"IF(Stock!#REF!<>\"\",ROUND(W392*Y392,0),\"\")","v":{"$error":"#REF!"}},{"$f":"IF(Stock!#REF!<>\"\",$H392*Z392,\"\")","v":{"$error":"#REF!"}}]
[{"$f":"IF(Stock!#REF!<>\"\",Stock!#REF!,\"\")","v":{"$error":"#REF!"}},{"$f":"IF(Stock!#REF!<>\"\",Stock!#REF!,\"\")","v":{"$error":"#REF!"}},{"$f":"IF(Stock!#REF!<>\"\",Stock!#REF!,\"\")","v":{"$error":"#REF!"}},{"$f":"IF(Stock!#REF!<>\"\",SUM(Stock!#REF!,Stock!#REF!,Stock!#REF!),\"\")","v":{"$error":"#REF!"}},{"$f":"IF(Stock!#REF!<>\"\",#REF!*(1+Pilotage!$M$20),\"\")","v":{"$error":"#REF!"}},null,{"$f":"IF(Stock!#REF!<>\"\",IF(Stock!#REF!>0,Stock!#REF!/Stock!#REF!,0),\"\")","v":{"$error":"#REF!"}},{"$f":"IF(Stock!#REF!<>\"\",E393*Pilotage!$D$15,\"\")","v":{"$error":"#REF!"}},{"$f":"IF(Stock!#REF!<>\"\",IF(Stock!#REF!>0,Stock!#REF!,0),\"\")","v":{"$error":"#REF!"}},{"$f":"IF(Stock!#REF!<>\"\",Pilotage!$M$27,\"\")","v":{"$error":"#REF!"}},{"$f":"IF(Stock!#REF!<>\"\",ROUND(Stock!#REF!*J393,0),\"\")","v":{"$error":"#REF!"}},{"$f":"IF(Stock!#REF!<>\"\",$H393*K393,\"\")","v":{"$error":"#REF!"}},{"$f":"IF(Stock!#REF!<>\"\",Pilotage!N$27,\"\")","v":{"$error":"#REF!"}},{"$f":"IF(Stock!#REF!<>\"\",ROUND(K393*M393,0),\"\")","v":{"$error":"#REF!"}},{"$f":"IF(Stock!#REF!<>\"\",$H393*N393,\"\")","v":{"$error":"#REF!"}},{"$f":"IF(Stock!#REF!<>\"\",Pilotage!O$27,\"\")","v":{"$error":"#REF!"}},{"$f":"IF(Stock!#REF!<>\"\",ROUND(K393*P393,0),\"\")","v":{"$error":"#REF!"}},{"$f":"IF(Stock!#REF!<>\"\",$H393*Q393,\"\")","v":{"$error":"#REF!"}},{"$f":"IF(Stock!#REF!<>\"\",Pilotage!P$27,\"\")","v":{"$error":"#REF!"}},{"$f":"IF(Stock!#REF!<>\"\",ROUND(Q393*S393,0),\"\")","v":{"$error":"#REF!"}},{"$f":"IF(Stock!#REF!<>\"\",$H393*T393,\"\")","v":{"$error":"#REF!"}},{"$f":"IF(Stock!#REF!<>\"\",Pilotage!Q$27,\"\")","v":{"$error":"#REF!"}},{"$f":"IF(Stock!#REF!<>\"\",ROUND(T393*V393,0),\"\")","v":{"$error":"#REF!"}},{"$f":"IF(Stock!#REF!<>\"\",$H393*W393,\"\")","v":{"$error":"#REF!"}},{"$f":"IF(Stock!#REF!<>\"\",Pilotage!R$27,\"\")","v":{"$error":"#REF!"}},{"$f":"IF(Stock!#REF!<>\"\",ROUND(W393*Y393,0),\"\")","v":{"$error":"#REF!"}},{"$f":"IF(Stock!#REF!<>\"\",$H393*Z393,\"\")","v":{"$error":"#REF!"}}]
[{"$f":"IF(Stock!#REF!<>\"\",Stock!#REF!,\"\")","v":{"$error":"#REF!"}},{"$f":"IF(Stock!#REF!<>\"\",Stock!#REF!,\"\")","v":{"$error":"#REF!"}},{"$f":"IF(Stock!#REF!<>\"\",Stock!#REF!,\"\")","v":{"$error":"#REF!"}},{"$f":"IF(Stock!#REF!<>\"\",SUM(Stock!#REF!,Stock!#REF!,Stock!#REF!),\"\")","v":{"$error":"#REF!"}},{"$f":"IF(Stock!#REF!<>\"\",#REF!*(1+Pilotage!$M$20),\"\")","v":{"$error":"#REF!"}},null,{"$f":"IF(Stock!#REF!<>\"\",IF(Stock!#REF!>0,Stock!#REF!/Stock!#REF!,0),\"\")","v":{"$error":"#REF!"}},{"$f":"IF(Stock!#REF!<>\"\",E394*Pilotage!$D$15,\"\")","v":{"$error":"#REF!"}},{"$f":"IF(Stock!#REF!<>\"\",IF(Stock!#REF!>0,Stock!#REF!,0),\"\")","v":{"$error":"#REF!"}},{"$f":"IF(Stock!#REF!<>\"\",Pilotage!$M$27,\"\")","v":{"$error":"#REF!"}},{"$f":"IF(Stock!#REF!<>\"\",ROUND(Stock!#REF!*J394,0),\"\")","v":{"$error":"#REF!"}},{"$f":"IF(Stock!#REF!<>\"\",$H394*K394,\"\")","v":{"$error":"#REF!"}},{"$f":"IF(Stock!#REF!<>\"\",Pilotage!N$27,\"\")","v":{"$error":"#REF!"}},{"$f":"IF(Stock!#REF!<>\"\",ROUND(K394*M394,0),\"\")","v":{"$error":"#REF!"}},{"$f":"IF(Stock!#REF!<>\"\",$H394*N394,\"\")","v":{"$error":"#REF!"}},{"$f":"IF(Stock!#REF!<>\"\",Pilotage!O$27,\"\")","v":{"$error":"#REF!"}},{"$f":"IF(Stock!#REF!<>\"\",ROUND(K394*P394,0),\"\")","v":{"$error":"#REF!"}},{"$f":"IF(Stock!#REF!<>\"\",$H394*Q394,\"\")","v":{"$error":"#REF!"}},{"$f":"IF(Stock!#REF!<>\"\",Pilotage!P$27,\"\")","v":{"$error":"#REF!"}},{"$f":"IF(Stock!#REF!<>\"\",ROUND(Q394*S394,0),\"\")","v":{"$error":"#REF!"}},{"$f":"IF(Stock!#REF!<>\"\",$H394*T394,\"\")","v":{"$error":"#REF!"}},{"$f":"IF(Stock!#REF!<>\"\",Pilotage!Q$27,\"\")","v":{"$error":"#REF!"}},{"$f":"IF(Stock!#REF!<>\"\",ROUND(T394*V394,0),\"\")","v":{"$error":"#REF!"}},{"$f":"IF(Stock!#REF!<>\"\",$H394*W394,\"\")","v":{"$error":"#REF!"}},{"$f":"IF(Stock!#REF!<>\"\",Pilotage!R$27,\"\")","v":{"$error":"#REF!"}},{"$f":"IF(Stock!#REF!<>\"\",ROUND(W394*Y394,0),\"\")","v":{"$error":"#REF!"}},{"$f":"IF(Stock!#REF!<>\"\",$H394*Z394,\"\")","v":{"$error":"#REF!"}}]
[{"$f":"IF(Stock!#REF!<>\"\",Stock!#REF!,\"\")","v":{"$error":"#REF!"}},{"$f":"IF(Stock!#REF!<>\"\",Stock!#REF!,\"\")","v":{"$error":"#REF!"}},{"$f":"IF(Stock!#REF!<>\"\",Stock!#REF!,\"\")","v":{"$error":"#REF!"}},{"$f":"IF(Stock!#REF!<>\"\",SUM(Stock!#REF!,Stock!#REF!,Stock!#REF!),\"\")","v":{"$error":"#REF!"}},{"$f":"IF(Stock!#REF!<>\"\",#REF!*(1+Pilotage!$M$20),\"\")","v":{"$error":"#REF!"}},null,{"$f":"IF(Stock!#REF!<>\"\",IF(Stock!#REF!>0,Stock!#REF!/Stock!#REF!,0),\"\")","v":{"$error":"#REF!"}},{"$f":"IF(Stock!#REF!<>\"\",E395*Pilotage!$D$15,\"\")","v":{"$error":"#REF!"}},{"$f":"IF(Stock!#REF!<>\"\",IF(Stock!#REF!>0,Stock!#REF!,0),\"\")","v":{"$error":"#REF!"}},{"$f":"IF(Stock!#REF!<>\"\",Pilotage!$M$27,\"\")","v":{"$error":"#REF!"}},{"$f":"IF(Stock!#REF!<>\"\",ROUND(Stock!#REF!*J395,0),\"\")","v":{"$error":"#REF!"}},{"$f":"IF(Stock!#REF!<>\"\",$H395*K395,\"\")","v":{"$error":"#REF!"}},{"$f":"IF(Stock!#REF!<>\"\",Pilotage!N$27,\"\")","v":{"$error":"#REF!"}},{"$f":"IF(Stock!#REF!<>\"\",ROUND(K395*M395,0),\"\")","v":{"$error":"#REF!"}},{"$f":"IF(Stock!#REF!<>\"\",$H395*N395,\"\")","v":{"$error":"#REF!"}},{"$f":"IF(Stock!#REF!<>\"\",Pilotage!O$27,\"\")","v":{"$error":"#REF!"}},{"$f":"IF(Stock!#REF!<>\"\",ROUND(K395*P395,0),\"\")","v":{"$error":"#REF!"}},{"$f":"IF(Stock!#REF!<>\"\",$H395*Q395,\"\")","v":{"$error":"#REF!"}},{"$f":"IF(Stock!#REF!<>\"\",Pilotage!P$27,\"\")","v":{"$error":"#REF!"}},{"$f":"IF(Stock!#REF!<>\"\",ROUND(Q395*S395,0),\"\")","v":{"$error":"#REF!"}},{"$f":"IF(Stock!#REF!<>\"\",$H395*T395,\"\")","v":{"$error":"#REF!"}},{"$f":"IF(Stock!#REF!<>\"\",Pilotage!Q$27,\"\")","v":{"$error":"#REF!"}},{"$f":"IF(Stock!#REF!<>\"\",ROUND(T395*V395,0),\"\")","v":{"$error":"#REF!"}},{"$f":"IF(Stock!#REF!<>\"\",$H395*W395,\"\")","v":{"$error":"#REF!"}},{"$f":"IF(Stock!#REF!<>\"\",Pilotage!R$27,\"\")","v":{"$error":"#REF!"}},{"$f":"IF(Stock!#REF!<>\"\",ROUND(W395*Y395,0),\"\")","v":{"$error":"#REF!"}},{"$f":"IF(Stock!#REF!<>\"\",$H395*Z395,\"\")","v":{"$error":"#REF!"}}]
[{"$f":"IF(Stock!#REF!<>\"\",Stock!#REF!,\"\")","v":{"$error":"#REF!"}},{"$f":"IF(Stock!#REF!<>\"\",Stock!#REF!,\"\")","v":{"$error":"#REF!"}},{"$f":"IF(Stock!#REF!<>\"\",Stock!#REF!,\"\")","v":{"$error":"#REF!"}},{"$f":"IF(Stock!#REF!<>\"\",SUM(Stock!#REF!,Stock!#REF!,Stock!#REF!),\"\")","v":{"$error":"#REF!"}},{"$f":"IF(Stock!#REF!<>\"\",#REF!*(1+Pilotage!$M$20),\"\")","v":{"$error":"#REF!"}},null,{"$f":"IF(Stock!#REF!<>\"\",IF(Stock!#REF!>0,Stock!#REF!/Stock!#REF!,0),\"\")","v":{"$error":"#REF!"}},{"$f":"IF(Stock!#REF!<>\"\",E396*Pilotage!$D$15,\"\")","v":{"$error":"#REF!"}},{"$f":"IF(Stock!#REF!<>\"\",IF(Stock!#REF!>0,Stock!#REF!,0),\"\")","v":{"$error":"#REF!"}},{"$f":"IF(Stock!#REF!<>\"\",Pilotage!$M$27,\"\")","v":{"$error":"#REF!"}},{"$f":"IF(Stock!#REF!<>\"\",ROUND(Stock!#REF!*J396,0),\"\")","v":{"$error":"#REF!"}},{"$f":"IF(Stock!#REF!<>\"\",$H396*K396,\"\")","v":{"$error":"#REF!"}},{"$f":"IF(Stock!#REF!<>\"\",Pilotage!N$27,\"\")","v":{"$error":"#REF!"}},{"$f":"IF(Stock!#REF!<>\"\",ROUND(K396*M396,0),\"\")","v":{"$error":"#REF!"}},{"$f":"IF(Stock!#REF!<>\"\",$H396*N396,\"\")","v":{"$error":"#REF!"}},{"$f":"IF(Stock!#REF!<>\"\",Pilotage!O$27,\"\")","v":{"$error":"#REF!"}},{"$f":"IF(Stock!#REF!<>\"\",ROUND(K396*P396,0),\"\")","v":{"$error":"#REF!"}},{"$f":"IF(Stock!#REF!<>\"\",$H396*Q396,\"\")","v":{"$error":"#REF!"}},{"$f":"IF(Stock!#REF!<>\"\",Pilotage!P$27,\"\")","v":{"$error":"#REF!"}},{"$f":"IF(Stock!#REF!<>\"\",ROUND(Q396*S396,0),\"\")","v":{"$error":"#REF!"}},{"$f":"IF(Stock!#REF!<>\"\",$H396*T396,\"\")","v":{"$error":"#REF!"}},{"$f":"IF(Stock!#REF!<>\"\",Pilotage!Q$27,\"\")","v":{"$error":"#REF!"}},{"$f":"IF(Stock!#REF!<>\"\",ROUND(T396*V396,0),\"\")","v":{"$error":"#REF!"}},{"$f":"IF(Stock!#REF!<>\"\",$H396*W396,\"\")","v":{"$error":"#REF!"}},{"$f":"IF(Stock!#REF!<>\"\",Pilotage!R$27,\"\")","v":{"$error":"#REF!"}},{"$f":"IF(Stock!#REF!<>\"\",ROUND(W396*Y396,0),\"\")","v":{"$error":"#REF!"}},{"$f":"IF(Stock!#REF!<>\"\",$H396*Z396,\"\")","v":{"$error":"#REF!"}}]
[{"$f":"IF(Stock!#REF!<>\"\",Stock!#REF!,\"\")","v":{"$error":"#REF!"}},{"$f":"IF(Stock!#REF!<>\"\",Stock!#REF!,\"\")","v":{"$error":"#REF!"}},{"$f":"IF(Stock!#REF!<>\"\",Stock!#REF!,\"\")","v":{"$error":"#REF!"}},{"$f":"IF(Stock!#REF!<>\"\",SUM(Stock!#REF!,Stock!#REF!,Stock!#REF!),\"\")","v":{"$error":"#REF!"}},{"$f":"IF(Stock!#REF!<>\"\",#REF!*(1+Pilotage!$M$20),\"\")","v":{"$error":"#REF!"}},null,{"$f":"IF(Stock!#REF!<>\"\",IF(Stock!#REF!>0,Stock!#REF!/Stock!#REF!,0),\"\")","v":{"$error":"#REF!"}},{"$f":"IF(Stock!#REF!<>\"\",E397*Pilotage!$D$15,\"\")","v":{"$error":"#REF!"}},{"$f":"IF(Stock!#REF!<>\"\",IF(Stock!#REF!>0,Stock!#REF!,0),\"\")","v":{"$error":"#REF!"}},{"$f":"IF(Stock!#REF!<>\"\",Pilotage!$M$27,\"\")","v":{"$error":"#REF!"}},{"$f":"IF(Stock!#REF!<>\"\",ROUND(Stock!#REF!*J397,0),\"\")","v":{"$error":"#REF!"}},{"$f":"IF(Stock!#REF!<>\"\",$H397*K397,\"\")","v":{"$error":"#REF!"}},{"$f":"IF(Stock!#REF!<>\"\",Pilotage!N$27,\"\")","v":{"$error":"#REF!"}},{"$f":"IF(Stock!#REF!<>\"\",ROUND(K397*M397,0),\"\")","v":{"$error":"#REF!"}},{"$f":"IF(Stock!#REF!<>\"\",$H397*N397,\"\")","v":{"$error":"#REF!"}},{"$f":"IF(Stock!#REF!<>\"\",Pilotage!O$27,\"\")","v":{"$error":"#REF!"}},{"$f":"IF(Stock!#REF!<>\"\",ROUND(K397*P397,0),\"\")","v":{"$error":"#REF!"}},{"$f":"IF(Stock!#REF!<>\"\",$H397*Q397,\"\")","v":{"$error":"#REF!"}},{"$f":"IF(Stock!#REF!<>\"\",Pilotage!P$27,\"\")","v":{"$error":"#REF!"}},{"$f":"IF(Stock!#REF!<>\"\",ROUND(Q397*S397,0),\"\")","v":{"$error":"#REF!"}},{"$f":"IF(Stock!#REF!<>\"\",$H397*T397,\"\")","v":{"$error":"#REF!"}},{"$f":"IF(Stock!#REF!<>\"\",Pilotage!Q$27,\"\")","v":{"$error":"#REF!"}},{"$f":"IF(Stock!#REF!<>\"\",ROUND(T397*V397,0),\"\")","v":{"$error":"#REF!"}},{"$f":"IF(Stock!#REF!<>\"\",$H397*W397,\"\")","v":{"$error":"#REF!"}},{"$f":"IF(Stock!#REF!<>\"\",Pilotage!R$27,\"\")","v":{"$error":"#REF!"}},{"$f":"IF(Stock!#REF!<>\"\",ROUND(W397*Y397,0),\"\")","v":{"$error":"#REF!"}},{"$f":"IF(Stock!#REF!<>\"\",$H397*Z397,\"\")","v":{"$error":"#REF!"}}]
[{"$f":"IF(Stock!#REF!<>\"\",Stock!#REF!,\"\")","v":{"$error":"#REF!"}},{"$f":"IF(Stock!#REF!<>\"\",Stock!#REF!,\"\")","v":{"$error":"#REF!"}},{"$f":"IF(Stock!#REF!<>\"\",Stock!#REF!,\"\")","v":{"$error":"#REF!"}},{"$f":"IF(Stock!#REF!<>\"\",SUM(Stock!#REF!,Stock!#REF!,Stock!#REF!),\"\")","v":{"$error":"#REF!"}},{"$f":"IF(Stock!#REF!<>\"\",#REF!*(1+Pilotage!$M$20),\"\")","v":{"$error":"#REF!"}},null,{"$f":"IF(Stock!#REF!<>\"\",IF(Stock!#REF!>0,Stock!#REF!/Stock!#REF!,0),\"\")","v":{"$error":"#REF!"}},{"$f":"IF(Stock!#REF!<>\"\",E398*Pilotage!$D$15,\"\")","v":{"$error":"#REF!"}},{"$f":"IF(Stock!#REF!<>\"\",IF(Stock!#REF!>0,Stock!#REF!,0),\"\")","v":{"$error":"#REF!"}},{"$f":"IF(Stock!#REF!<>\"\",Pilotage!$M$27,\"\")","v":{"$error":"#REF!"}},{"$f":"IF(Stock!#REF!<>\"\",ROUND(Stock!#REF!*J398,0),\"\")","v":{"$error":"#REF!"}},{"$f":"IF(Stock!#REF!<>\"\",$H398*K398,\"\")","v":{"$error":"#REF!"}},{"$f":"IF(Stock!#REF!<>\"\",Pilotage!N$27,\"\")","v":{"$error":"#REF!"}},{"$f":"IF(Stock!#REF!<>\"\",ROUND(K398*M398,0),\"\")","v":{"$error":"#REF!"}},{"$f":"IF(Stock!#REF!<>\"\",$H398*N398,\"\")","v":{"$error":"#REF!"}},{"$f":"IF(Stock!#REF!<>\"\",Pilotage!O$27,\"\")","v":{"$error":"#REF!"}},{"$f":"IF(Stock!#REF!<>\"\",ROUND(K398*P398,0),\"\")","v":{"$error":"#REF!"}},{"$f":"IF(Stock!#REF!<>\"\",$H398*Q398,\"\")","v":{"$error":"#REF!"}},{"$f":"IF(Stock!#REF!<>\"\",Pilotage!P$27,\"\")","v":{"$error":"#REF!"}},{"$f":"IF(Stock!#REF!<>\"\",ROUND(Q398*S398,0),\"\")","v":{"$error":"#REF!"}},{"$f":"IF(Stock!#REF!<>\"\",$H398*T398,\"\")","v":{"$error":"#REF!"}},{"$f":"IF(Stock!#REF!<>\"\",Pilotage!Q$27,\"\")","v":{"$error":"#REF!"}},{"$f":"IF(Stock!#REF!<>\"\",ROUND(T398*V398,0),\"\")","v":{"$error":"#REF!"}},{"$f":"IF(Stock!#REF!<>\"\",$H398*W398,\"\")","v":{"$error":"#REF!"}},{"$f":"IF(Stock!#REF!<>\"\",Pilotage!R$27,\"\")","v":{"$error":"#REF!"}},{"$f":"IF(Stock!#REF!<>\"\",ROUND(W398*Y398,0),\"\")","v":{"$error":"#REF!"}},{"$f":"IF(Stock!#REF!<>\"\",$H398*Z398,\"\")","v":{"$error":"#REF!"}}]
[{"$f":"IF(Stock!#REF!<>\"\",Stock!#REF!,\"\")","v":{"$error":"#REF!"}},{"$f":"IF(Stock!#REF!<>\"\",Stock!#REF!,\"\")","v":{"$error":"#REF!"}},{"$f":"IF(Stock!#REF!<>\"\",Stock!#REF!,\"\")","v":{"$error":"#REF!"}},{"$f":"IF(Stock!#REF!<>\"\",SUM(Stock!#REF!,Stock!#REF!,Stock!#REF!),\"\")","v":{"$error":"#REF!"}},{"$f":"IF(Stock!#REF!<>\"\",#REF!*(1+Pilotage!$M$20),\"\")","v":{"$error":"#REF!"}},null,{"$f":"IF(Stock!#REF!<>\"\",IF(Stock!#REF!>0,Stock!#REF!/Stock!#REF!,0),\"\")","v":{"$error":"#REF!"}},{"$f":"IF(Stock!#REF!<>\"\",E399*Pilotage!$D$15,\"\")","v":{"$error":"#REF!"}},{"$f":"IF(Stock!#REF!<>\"\",IF(Stock!#REF!>0,Stock!#REF!,0),\"\")","v":{"$error":"#REF!"}},{"$f":"IF(Stock!#REF!<>\"\",Pilotage!$M$27,\"\")","v":{"$error":"#REF!"}},{"$f":"IF(Stock!#REF!<>\"\",ROUND(Stock!#REF!*J399,0),\"\")","v":{"$error":"#REF!"}},{"$f":"IF(Stock!#REF!<>\"\",$H399*K399,\"\")","v":{"$error":"#REF!"}},{"$f":"IF(Stock!#REF!<>\"\",Pilotage!N$27,\"\")","v":{"$error":"#REF!"}},{"$f":"IF(Stock!#REF!<>\"\",ROUND(K399*M399,0),\"\")","v":{"$error":"#REF!"}},{"$f":"IF(Stock!#REF!<>\"\",$H399*N399,\"\")","v":{"$error":"#REF!"}},{"$f":"IF(Stock!#REF!<>\"\",Pilotage!O$27,\"\")","v":{"$error":"#REF!"}},{"$f":"IF(Stock!#REF!<>\"\",ROUND(K399*P399,0),\"\")","v":{"$error":"#REF!"}},{"$f":"IF(Stock!#REF!<>\"\",$H399*Q399,\"\")","v":{"$error":"#REF!"}},{"$f":"IF(Stock!#REF!<>\"\",Pilotage!P$27,\"\")","v":{"$error":"#REF!"}},{"$f":"IF(Stock!#REF!<>\"\",ROUND(Q399*S399,0),\"\")","v":{"$error":"#REF!"}},{"$f":"IF(Stock!#REF!<>\"\",$H399*T399,\"\")","v":{"$error":"#REF!"}},{"$f":"IF(Stock!#REF!<>\"\",Pilotage!Q$27,\"\")","v":{"$error":"#REF!"}},{"$f":"IF(Stock!#REF!<>\"\",ROUND(T399*V399,0),\"\")","v":{"$error":"#REF!"}},{"$f":"IF(Stock!#REF!<>\"\",$H399*W399,\"\")","v":{"$error":"#REF!"}},{"$f":"IF(Stock!#REF!<>\"\",Pilotage!R$27,\"\")","v":{"$error":"#REF!"}},{"$f":"IF(Stock!#REF!<>\"\",ROUND(W399*Y399,0),\"\")","v":{"$error":"#REF!"}},{"$f":"IF(Stock!#REF!<>\"\",$H399*Z399,\"\")","v":{"$error":"#REF!"}}]
[{"$f":"IF(Stock!#REF!<>\"\",Stock!#REF!,\"\")","v":{"$error":"#REF!"}},{"$f":"IF(Stock!#REF!<>\"\",Stock!#REF!,\"\")","v":{"$error":"#REF!"}},{"$f":"IF(Stock!#REF!<>\"\",Stock!#REF!,\"\")","v":{"$error":"#REF!"}},{"$f":"IF(Stock!#REF!<>\"\",SUM(Stock!#REF!,Stock!#REF!,Stock!#REF!),\"\")","v":{"$error":"#REF!"}},{"$f":"IF(Stock!#REF!<>\"\",#REF!*(1+Pilotage!$M$20),\"\")","v":{"$error":"#REF!"}},null,{"$f":"IF(Stock!#REF!<>\"\",IF(Stock!#REF!>0,Stock!#REF!/Stock!#REF!,0),\"\")","v":{"$error":"#REF!"}},{"$f":"IF(Stock!#REF!<>\"\",E400*Pilotage!$D$15,\"\")","v":{"$error":"#REF!"}},{"$f":"IF(Stock!#REF!<>\"\",IF(Stock!#REF!>0,Stock!#REF!,0),\"\")","v":{"$error":"#REF!"}},{"$f":"IF(Stock!#REF!<>\"\",Pilotage!$M$27,\"\")","v":{"$error":"#REF!"}},{"$f":"IF(Stock!#REF!<>\"\",ROUND(Stock!#REF!*J400,0),\"\")","v":{"$error":"#REF!"}},{"$f":"IF(Stock!#REF!<>\"\",$H400*K400,\"\")","v":{"$error":"#REF!"}},{"$f":"IF(Stock!#REF!<>\"\",Pilotage!N$27,\"\")","v":{"$error":"#REF!"}},{"$f":"IF(Stock!#REF!<>\"\",ROUND(K400*M400,0),\"\")","v":{"$error":"#REF!"}},{"$f":"IF(Stock!#REF!<>\"\",$H400*N400,\"\")","v":{"$error":"#REF!"}},{"$f":"IF(Stock!#REF!<>\"\",Pilotage!O$27,\"\")","v":{"$error":"#REF!"}},{"$f":"IF(Stock!#REF!<>\"\",ROUND(K400*P400,0),\"\")","v":{"$error":"#REF!"}},{"$f":"IF(Stock!#REF!<>\"\",$H400*Q400,\"\")","v":{"$error":"#REF!"}},{"$f":"IF(Stock!#REF!<>\"\",Pilotage!P$27,\"\")","v":{"$error":"#REF!"}},{"$f":"IF(Stock!#REF!<>\"\",ROUND(Q400*S400,0),\"\")","v":{"$error":"#REF!"}},{"$f":"IF(Stock!#REF!<>\"\",$H400*T400,\"\")","v":{"$error":"#REF!"}},{"$f":"IF(Stock!#REF!<>\"\",Pilotage!Q$27,\"\")","v":{"$error":"#REF!"}},{"$f":"IF(Stock!#REF!<>\"\",ROUND(T400*V400,0),\"\")","v":{"$error":"#REF!"}},{"$f":"IF(Stock!#REF!<>\"\",$H400*W400,\"\")","v":{"$error":"#REF!"}},{"$f":"IF(Stock!#REF!<>\"\",Pilotage!R$27,\"\")","v":{"$error":"#REF!"}},{"$f":"IF(Stock!#REF!<>\"\",ROUND(W400*Y400,0),\"\")","v":{"$error":"#REF!"}},{"$f":"IF(Stock!#REF!<>\"\",$H400*Z400,\"\")","v":{"$error":"#REF!"}}]
[{"$f":"IF(Stock!#REF!<>\"\",Stock!#REF!,\"\")","v":{"$error":"#REF!"}},{"$f":"IF(Stock!#REF!<>\"\",Stock!#REF!,\"\")","v":{"$error":"#REF!"}},{"$f":"IF(Stock!#REF!<>\"\",Stock!#REF!,\"\")","v":{"$error":"#REF!"}},{"$f":"IF(Stock!#REF!<>\"\",SUM(Stock!#REF!,Stock!#REF!,Stock!#REF!),\"\")","v":{"$error":"#REF!"}},{"$f":"IF(Stock!#REF!<>\"\",#REF!*(1+Pilotage!$M$20),\"\")","v":{"$error":"#REF!"}},null,{"$f":"IF(Stock!#REF!<>\"\",IF(Stock!#REF!>0,Stock!#REF!/Stock!#REF!,0),\"\")","v":{"$error":"#REF!"}},{"$f":"IF(Stock!#REF!<>\"\",E401*Pilotage!$D$15,\"\")","v":{"$error":"#REF!"}},{"$f":"IF(Stock!#REF!<>\"\",IF(Stock!#REF!>0,Stock!#REF!,0),\"\")","v":{"$error":"#REF!"}},{"$f":"IF(Stock!#REF!<>\"\",Pilotage!$M$27,\"\")","v":{"$error":"#REF!"}},{"$f":"IF(Stock!#REF!<>\"\",ROUND(Stock!#REF!*J401,0),\"\")","v":{"$error":"#REF!"}},{"$f":"IF(Stock!#REF!<>\"\",$H401*K401,\"\")","v":{"$error":"#REF!"}},{"$f":"IF(Stock!#REF!<>\"\",Pilotage!N$27,\"\")","v":{"$error":"#REF!"}},{"$f":"IF(Stock!#REF!<>\"\",ROUND(K401*M401,0),\"\")","v":{"$error":"#REF!"}},{"$f":"IF(Stock!#REF!<>\"\",$H401*N401,\"\")","v":{"$error":"#REF!"}},{"$f":"IF(Stock!#REF!<>\"\",Pilotage!O$27,\"\")","v":{"$error":"#REF!"}},{"$f":"IF(Stock!#REF!<>\"\",ROUND(K401*P401,0),\"\")","v":{"$error":"#REF!"}},{"$f":"IF(Stock!#REF!<>\"\",$H401*Q401,\"\")","v":{"$error":"#REF!"}},{"$f":"IF(Stock!#REF!<>\"\",Pilotage!P$27,\"\")","v":{"$error":"#REF!"}},{"$f":"IF(Stock!#REF!<>\"\",ROUND(Q401*S401,0),\"\")","v":{"$error":"#REF!"}},{"$f":"IF(Stock!#REF!<>\"\",$H401*T401,\"\")","v":{"$error":"#REF!"}},{"$f":"IF(Stock!#REF!<>\"\",Pilotage!Q$27,\"\")","v":{"$error":"#REF!"}},{"$f":"IF(Stock!#REF!<>\"\",ROUND(T401*V401,0),\"\")","v":{"$error":"#REF!"}},{"$f":"IF(Stock!#REF!<>\"\",$H401*W401,\"\")","v":{"$error":"#REF!"}},{"$f":"IF(Stock!#REF!<>\"\",Pilotage!R$27,\"\")","v":{"$error":"#REF!"}},{"$f":"IF(Stock!#REF!<>\"\",ROUND(W401*Y401,0),\"\")","v":{"$error":"#REF!"}},{"$f":"IF(Stock!#REF!<>\"\",$H401*Z401,\"\")","v":{"$error":"#REF!"}}]
[{"$f":"IF(Stock!#REF!<>\"\",Stock!#REF!,\"\")","v":{"$error":"#REF!"}},{"$f":"IF(Stock!#REF!<>\"\",Stock!#REF!,\"\")","v":{"$error":"#REF!"}},{"$f":"IF(Stock!#REF!<>\"\",Stock!#REF!,\"\")","v":{"$error":"#REF!"}},{"$f":"IF(Stock!#REF!<>\"\",SUM(Stock!#REF!,Stock!#REF!,Stock!#REF!),\"\")","v":{"$error":"#REF!"}},{"$f":"IF(Stock!#REF!<>\"\",#REF!*(1+Pilotage!$M$20),\"\")","v":{"$error":"#REF!"}},null,{"$f":"IF(Stock!#REF!<>\"\",IF(Stock!#REF!>0,Stock!#REF!/Stock!#REF!,0),\"\")","v":{"$error":"#REF!"}},{"$f":"IF(Stock!#REF!<>\"\",E402*Pilotage!$D$15,\"\")","v":{"$error":"#REF!"}},{"$f":"IF(Stock!#REF!<>\"\",IF(Stock!#REF!>0,Stock!#REF!,0),\"\")","v":{"$error":"#REF!"}},{"$f":"IF(Stock!#REF!<>\"\",Pilotage!$M$27,\"\")","v":{"$error":"#REF!"}},{"$f":"IF(Stock!#REF!<>\"\",ROUND(Stock!#REF!*J402,0),\"\")","v":{"$error":"#REF!"}},{"$f":"IF(Stock!#REF!<>\"\",$H402*K402,\"\")","v":{"$error":"#REF!"}},{"$f":"IF(Stock!#REF!<>\"\",Pilotage!N$27,\"\")","v":{"$error":"#REF!"}},{"$f":"IF(Stock!#REF!<>\"\",ROUND(K402*M402,0),\"\")","v":{"$error":"#REF!"}},{"$f":"IF(Stock!#REF!<>\"\",$H402*N402,\"\")","v":{"$error":"#REF!"}},{"$f":"IF(Stock!#REF!<>\"\",Pilotage!O$27,\"\")","v":{"$error":"#REF!"}},{"$f":"IF(Stock!#REF!<>\"\",ROUND(K402*P402,0),\"\")","v":{"$error":"#REF!"}},{"$f":"IF(Stock!#REF!<>\"\",$H402*Q402,\"\")","v":{"$error":"#REF!"}},{"$f":"IF(Stock!#REF!<>\"\",Pilotage!P$27,\"\")","v":{"$error":"#REF!"}},{"$f":"IF(Stock!#REF!<>\"\",ROUND(Q402*S402,0),\"\")","v":{"$error":"#REF!"}},{"$f":"IF(Stock!#REF!<>\"\",$H402*T402,\"\")","v":{"$error":"#REF!"}},{"$f":"IF(Stock!#REF!<>\"\",Pilotage!Q$27,\"\")","v":{"$error":"#REF!"}},{"$f":"IF(Stock!#REF!<>\"\",ROUND(T402*V402,0),\"\")","v":{"$error":"#REF!"}},{"$f":"IF(Stock!#REF!<>\"\",$H402*W402,\"\")","v":{"$error":"#REF!"}},{"$f":"IF(Stock!#REF!<>\"\",Pilotage!R$27,\"\")","v":{"$error":"#REF!"}},{"$f":"IF(Stock!#REF!<>\"\",ROUND(W402*Y402,0),\"\")","v":{"$error":"#REF!"}},{"$f":"IF(Stock!#REF!<>\"\",$H402*Z402,\"\")","v":{"$error":"#REF!"}}]
[{"$f":"IF(Stock!#REF!<>\"\",Stock!#REF!,\"\")","v":{"$error":"#REF!"}},{"$f":"IF(Stock!#REF!<>\"\",Stock!#REF!,\"\")","v":{"$error":"#REF!"}},{"$f":"IF(Stock!#REF!<>\"\",Stock!#REF!,\"\")","v":{"$error":"#REF!"}},{"$f":"IF(Stock!#REF!<>\"\",SUM(Stock!#REF!,Stock!#REF!,Stock!#REF!),\"\")","v":{"$error":"#REF!"}},{"$f":"IF(Stock!#REF!<>\"\",#REF!*(1+Pilotage!$M$20),\"\")","v":{"$error":"#REF!"}},null,{"$f":"IF(Stock!#REF!<>\"\",IF(Stock!#REF!>0,Stock!#REF!/Stock!#REF!,0),\"\")","v":{"$error":"#REF!"}},{"$f":"IF(Stock!#REF!<>\"\",E403*Pilotage!$D$15,\"\")","v":{"$error":"#REF!"}},{"$f":"IF(Stock!#REF!<>\"\",IF(Stock!#REF!>0,Stock!#REF!,0),\"\")","v":{"$error":"#REF!"}},{"$f":"IF(Stock!#REF!<>\"\",Pilotage!$M$27,\"\")","v":{"$error":"#REF!"}},{"$f":"IF(Stock!#REF!<>\"\",ROUND(Stock!#REF!*J403,0),\"\")","v":{"$error":"#REF!"}},{"$f":"IF(Stock!#REF!<>\"\",$H403*K403,\"\")","v":{"$error":"#REF!"}},{"$f":"IF(Stock!#REF!<>\"\",Pilotage!N$27,\"\")","v":{"$error":"#REF!"}},{"$f":"IF(Stock!#REF!<>\"\",ROUND(K403*M403,0),\"\")","v":{"$error":"#REF!"}},{"$f":"IF(Stock!#REF!<>\"\",$H403*N403,\"\")","v":{"$error":"#REF!"}},{"$f":"IF(Stock!#REF!<>\"\",Pilotage!O$27,\"\")","v":{"$error":"#REF!"}},{"$f":"IF(Stock!#REF!<>\"\",ROUND(K403*P403,0),\"\")","v":{"$error":"#REF!"}},{"$f":"IF(Stock!#REF!<>\"\",$H403*Q403,\"\")","v":{"$error":"#REF!"}},{"$f":"IF(Stock!#REF!<>\"\",Pilotage!P$27,\"\")","v":{"$error":"#REF!"}},{"$f":"IF(Stock!#REF!<>\"\",ROUND(Q403*S403,0),\"\")","v":{"$error":"#REF!"}},{"$f":"IF(Stock!#REF!<>\"\",$H403*T403,\"\")","v":{"$error":"#REF!"}},{"$f":"IF(Stock!#REF!<>\"\",Pilotage!Q$27,\"\")","v":{"$error":"#REF!"}},{"$f":"IF(Stock!#REF!<>\"\",ROUND(T403*V403,0),\"\")","v":{"$error":"#REF!"}},{"$f":"IF(Stock!#REF!<>\"\",$H403*W403,\"\")","v":{"$error":"#REF!"}},{"$f":"IF(Stock!#REF!<>\"\",Pilotage!R$27,\"\")","v":{"$error":"#REF!"}},{"$f":"IF(Stock!#REF!<>\"\",ROUND(W403*Y403,0),\"\")","v":{"$error":"#REF!"}},{"$f":"IF(Stock!#REF!<>\"\",$H403*Z403,\"\")","v":{"$error":"#REF!"}}]
[{"$f":"IF(Stock!#REF!<>\"\",Stock!#REF!,\"\")","v":{"$error":"#REF!"}},{"$f":"IF(Stock!#REF!<>\"\",Stock!#REF!,\"\")","v":{"$error":"#REF!"}},{"$f":"IF(Stock!#REF!<>\"\",Stock!#REF!,\"\")","v":{"$error":"#REF!"}},{"$f":"IF(Stock!#REF!<>\"\",SUM(Stock!#REF!,Stock!#REF!,Stock!#REF!),\"\")","v":{"$error":"#REF!"}},{"$f":"IF(Stock!#REF!<>\"\",#REF!*(1+Pilotage!$M$20),\"\")","v":{"$error":"#REF!"}},null,{"$f":"IF(Stock!#REF!<>\"\",IF(Stock!#REF!>0,Stock!#REF!/Stock!#REF!,0),\"\")","v":{"$error":"#REF!"}},{"$f":"IF(Stock!#REF!<>\"\",E404*Pilotage!$D$15,\"\")","v":{"$error":"#REF!"}},{"$f":"IF(Stock!#REF!<>\"\",IF(Stock!#REF!>0,Stock!#REF!,0),\"\")","v":{"$error":"#REF!"}},{"$f":"IF(Stock!#REF!<>\"\",Pilotage!$M$27,\"\")","v":{"$error":"#REF!"}},{"$f":"IF(Stock!#REF!<>\"\",ROUND(Stock!#REF!*J404,0),\"\")","v":{"$error":"#REF!"}},{"$f":"IF(Stock!#REF!<>\"\",$H404*K404,\"\")","v":{"$error":"#REF!"}},{"$f":"IF(Stock!#REF!<>\"\",Pilotage!N$27,\"\")","v":{"$error":"#REF!"}},{"$f":"IF(Stock!#REF!<>\"\",ROUND(K404*M404,0),\"\")","v":{"$error":"#REF!"}},{"$f":"IF(Stock!#REF!<>\"\",$H404*N404,\"\")","v":{"$error":"#REF!"}},{"$f":"IF(Stock!#REF!<>\"\",Pilotage!O$27,\"\")","v":{"$error":"#REF!"}},{"$f":"IF(Stock!#REF!<>\"\",ROUND(K404*P404,0),\"\")","v":{"$error":"#REF!"}},{"$f":"IF(Stock!#REF!<>\"\",$H404*Q404,\"\")","v":{"$error":"#REF!"}},{"$f":"IF(Stock!#REF!<>\"\",Pilotage!P$27,\"\")","v":{"$error":"#REF!"}},{"$f":"IF(Stock!#REF!<>\"\",ROUND(Q404*S404,0),\"\")","v":{"$error":"#REF!"}},{"$f":"IF(Stock!#REF!<>\"\",$H404*T404,\"\")","v":{"$error":"#REF!"}},{"$f":"IF(Stock!#REF!<>\"\",Pilotage!Q$27,\"\")","v":{"$error":"#REF!"}},{"$f":"IF(Stock!#REF!<>\"\",ROUND(T404*V404,0),\"\")","v":{"$error":"#REF!"}},{"$f":"IF(Stock!#REF!<>\"\",$H404*W404,\"\")","v":{"$error":"#REF!"}},{"$f":"IF(Stock!#REF!<>\"\",Pilotage!R$27,\"\")","v":{"$error":"#REF!"}},{"$f":"IF(Stock!#REF!<>\"\",ROUND(W404*Y404,0),\"\")","v":{"$error":"#REF!"}},{"$f":"IF(Stock!#REF!<>\"\",$H404*Z404,\"\")","v":{"$error":"#REF!"}}]
[{"$f":"IF(Stock!#REF!<>\"\",Stock!#REF!,\"\")","v":{"$error":"#REF!"}},{"$f":"IF(Stock!#REF!<>\"\",Stock!#REF!,\"\")","v":{"$error":"#REF!"}},{"$f":"IF(Stock!#REF!<>\"\",Stock!#REF!,\"\")","v":{"$error":"#REF!"}},{"$f":"IF(Stock!#REF!<>\"\",SUM(Stock!#REF!,Stock!#REF!,Stock!#REF!),\"\")","v":{"$error":"#REF!"}},{"$f":"IF(Stock!#REF!<>\"\",#REF!*(1+Pilotage!$M$20),\"\")","v":{"$error":"#REF!"}},null,{"$f":"IF(Stock!#REF!<>\"\",IF(Stock!#REF!>0,Stock!#REF!/Stock!#REF!,0),\"\")","v":{"$error":"#REF!"}},{"$f":"IF(Stock!#REF!<>\"\",E405*Pilotage!$D$15,\"\")","v":{"$error":"#REF!"}},{"$f":"IF(Stock!#REF!<>\"\",IF(Stock!#REF!>0,Stock!#REF!,0),\"\")","v":{"$error":"#REF!"}},{"$f":"IF(Stock!#REF!<>\"\",Pilotage!$M$27,\"\")","v":{"$error":"#REF!"}},{"$f":"IF(Stock!#REF!<>\"\",ROUND(Stock!#REF!*J405,0),\"\")","v":{"$error":"#REF!"}},{"$f":"IF(Stock!#REF!<>\"\",$H405*K405,\"\")","v":{"$error":"#REF!"}},{"$f":"IF(Stock!#REF!<>\"\",Pilotage!N$27,\"\")","v":{"$error":"#REF!"}},{"$f":"IF(Stock!#REF!<>\"\",ROUND(K405*M405,0),\"\")","v":{"$error":"#REF!"}},{"$f":"IF(Stock!#REF!<>\"\",$H405*N405,\"\")","v":{"$error":"#REF!"}},{"$f":"IF(Stock!#REF!<>\"\",Pilotage!O$27,\"\")","v":{"$error":"#REF!"}},{"$f":"IF(Stock!#REF!<>\"\",ROUND(K405*P405,0),\"\")","v":{"$error":"#REF!"}},{"$f":"IF(Stock!#REF!<>\"\",$H405*Q405,\"\")","v":{"$error":"#REF!"}},{"$f":"IF(Stock!#REF!<>\"\",Pilotage!P$27,\"\")","v":{"$error":"#REF!"}},{"$f":"IF(Stock!#REF!<>\"\",ROUND(Q405*S405,0),\"\")","v":{"$error":"#REF!"}},{"$f":"IF(Stock!#REF!<>\"\",$H405*T405,\"\")","v":{"$error":"#REF!"}},{"$f":"IF(Stock!#REF!<>\"\",Pilotage!Q$27,\"\")","v":{"$error":"#REF!"}},{"$f":"IF(Stock!#REF!<>\"\",ROUND(T405*V405,0),\"\")","v":{"$error":"#REF!"}},{"$f":"IF(Stock!#REF!<>\"\",$H405*W405,\"\")","v":{"$error":"#REF!"}},{"$f":"IF(Stock!#REF!<>\"\",Pilotage!R$27,\"\")","v":{"$error":"#REF!"}},{"$f":"IF(Stock!#REF!<>\"\",ROUND(W405*Y405,0),\"\")","v":{"$error":"#REF!"}},{"$f":"IF(Stock!#REF!<>\"\",$H405*Z405,\"\")","v":{"$error":"#REF!"}}]
[{"$f":"IF(Stock!#REF!<>\"\",Stock!#REF!,\"\")","v":{"$error":"#REF!"}},{"$f":"IF(Stock!#REF!<>\"\",Stock!#REF!,\"\")","v":{"$error":"#REF!"}},{"$f":"IF(Stock!#REF!<>\"\",Stock!#REF!,\"\")","v":{"$error":"#REF!"}},{"$f":"IF(Stock!#REF!<>\"\",SUM(Stock!#REF!,Stock!#REF!,Stock!#REF!),\"\")","v":{"$error":"#REF!"}},{"$f":"IF(Stock!#REF!<>\"\",#REF!*(1+Pilotage!$M$20),\"\")","v":{"$error":"#REF!"}},null,{"$f":"IF(Stock!#REF!<>\"\",IF(Stock!#REF!>0,Stock!#REF!/Stock!#REF!,0),\"\")","v":{"$error":"#REF!"}},{"$f":"IF(Stock!#REF!<>\"\",E406*Pilotage!$D$15,\"\")","v":{"$error":"#REF!"}},{"$f":"IF(Stock!#REF!<>\"\",IF(Stock!#REF!>0,Stock!#REF!,0),\"\")","v":{"$error":"#REF!"}},{"$f":"IF(Stock!#REF!<>\"\",Pilotage!$M$27,\"\")","v":{"$error":"#REF!"}},{"$f":"IF(Stock!#REF!<>\"\",ROUND(Stock!#REF!*J406,0),\"\")","v":{"$error":"#REF!"}},{"$f":"IF(Stock!#REF!<>\"\",$H406*K406,\"\")","v":{"$error":"#REF!"}},{"$f":"IF(Stock!#REF!<>\"\",Pilotage!N$27,\"\")","v":{"$error":"#REF!"}},{"$f":"IF(Stock!#REF!<>\"\",ROUND(K406*M406,0),\"\")","v":{"$error":"#REF!"}},{"$f":"IF(Stock!#REF!<>\"\",$H406*N406,\"\")","v":{"$error":"#REF!"}},{"$f":"IF(Stock!#REF!<>\"\",Pilotage!O$27,\"\")","v":{"$error":"#REF!"}},{"$f":"IF(Stock!#REF!<>\"\",ROUND(K406*P406,0),\"\")","v":{"$error":"#REF!"}},{"$f":"IF(Stock!#REF!<>\"\",$H406*Q406,\"\")","v":{"$error":"#REF!"}},{"$f":"IF(Stock!#REF!<>\"\",Pilotage!P$27,\"\")","v":{"$error":"#REF!"}},{"$f":"IF(Stock!#REF!<>\"\",ROUND(Q406*S406,0),\"\")","v":{"$error":"#REF!"}},{"$f":"IF(Stock!#REF!<>\"\",$H406*T406,\"\")","v":{"$error":"#REF!"}},{"$f":"IF(Stock!#REF!<>\"\",Pilotage!Q$27,\"\")","v":{"$error":"#REF!"}},{"$f":"IF(Stock!#REF!<>\"\",ROUND(T406*V406,0),\"\")","v":{"$error":"#REF!"}},{"$f":"IF(Stock!#REF!<>\"\",$H406*W406,\"\")","v":{"$error":"#REF!"}},{"$f":"IF(Stock!#REF!<>\"\",Pilotage!R$27,\"\")","v":{"$error":"#REF!"}},{"$f":"IF(Stock!#REF!<>\"\",ROUND(W406*Y406,0),\"\")","v":{"$error":"#REF!"}},{"$f":"IF(Stock!#REF!<>\"\",$H406*Z406,\"\")","v":{"$error":"#REF!"}}]
[{"$f":"IF(Stock!#REF!<>\"\",Stock!#REF!,\"\")","v":{"$error":"#REF!"}},{"$f":"IF(Stock!#REF!<>\"\",Stock!#REF!,\"\")","v":{"$error":"#REF!"}},{"$f":"IF(Stock!#REF!<>\"\",Stock!#REF!,\"\")","v":{"$error":"#REF!"}},{"$f":"IF(Stock!#REF!<>\"\",SUM(Stock!#REF!,Stock!#REF!,Stock!#REF!),\"\")","v":{"$error":"#REF!"}},{"$f":"IF(Stock!#REF!<>\"\",#REF!*(1+Pilotage!$M$20),\"\")","v":{"$error":"#REF!"}},null,{"$f":"IF(Stock!#REF!<>\"\",IF(Stock!#REF!>0,Stock!#REF!/Stock!#REF!,0),\"\")","v":{"$error":"#REF!"}},{"$f":"IF(Stock!#REF!<>\"\",E407*Pilotage!$D$15,\"\")","v":{"$error":"#REF!"}},{"$f":"IF(Stock!#REF!<>\"\",IF(Stock!#REF!>0,Stock!#REF!,0),\"\")","v":{"$error":"#REF!"}},{"$f":"IF(Stock!#REF!<>\"\",Pilotage!$M$27,\"\")","v":{"$error":"#REF!"}},{"$f":"IF(Stock!#REF!<>\"\",ROUND(Stock!#REF!*J407,0),\"\")","v":{"$error":"#REF!"}},{"$f":"IF(Stock!#REF!<>\"\",$H407*K407,\"\")","v":{"$error":"#REF!"}},{"$f":"IF(Stock!#REF!<>\"\",Pilotage!N$27,\"\")","v":{"$error":"#REF!"}},{"$f":"IF(Stock!#REF!<>\"\",ROUND(K407*M407,0),\"\")","v":{"$error":"#REF!"}},{"$f":"IF(Stock!#REF!<>\"\",$H407*N407,\"\")","v":{"$error":"#REF!"}},{"$f":"IF(Stock!#REF!<>\"\",Pilotage!O$27,\"\")","v":{"$error":"#REF!"}},{"$f":"IF(Stock!#REF!<>\"\",ROUND(K407*P407,0),\"\")","v":{"$error":"#REF!"}},{"$f":"IF(Stock!#REF!<>\"\",$H407*Q407,\"\")","v":{"$error":"#REF!"}},{"$f":"IF(Stock!#REF!<>\"\",Pilotage!P$27,\"\")","v":{"$error":"#REF!"}},{"$f":"IF(Stock!#REF!<>\"\",ROUND(Q407*S407,0),\"\")","v":{"$error":"#REF!"}},{"$f":"IF(Stock!#REF!<>\"\",$H407*T407,\"\")","v":{"$error":"#REF!"}},{"$f":"IF(Stock!#REF!<>\"\",Pilotage!Q$27,\"\")","v":{"$error":"#REF!"}},{"$f":"IF(Stock!#REF!<>\"\",ROUND(T407*V407,0),\"\")","v":{"$error":"#REF!"}},{"$f":"IF(Stock!#REF!<>\"\",$H407*W407,\"\")","v":{"$error":"#REF!"}},{"$f":"IF(Stock!#REF!<>\"\",Pilotage!R$27,\"\")","v":{"$error":"#REF!"}},{"$f":"IF(Stock!#REF!<>\"\",ROUND(W407*Y407,0),\"\")","v":{"$error":"#REF!"}},{"$f":"IF(Stock!#REF!<>\"\",$H407*Z407,\"\")","v":{"$error":"#REF!"}}]
[{"$f":"IF(Stock!#REF!<>\"\",Stock!#REF!,\"\")","v":{"$error":"#REF!"}},{"$f":"IF(Stock!#REF!<>\"\",Stock!#REF!,\"\")","v":{"$error":"#REF!"}},{"$f":"IF(Stock!#REF!<>\"\",Stock!#REF!,\"\")","v":{"$error":"#REF!"}},{"$f":"IF(Stock!#REF!<>\"\",SUM(Stock!#REF!,Stock!#REF!,Stock!#REF!),\"\")","v":{"$error":"#REF!"}},{"$f":"IF(Stock!#REF!<>\"\",#REF!*(1+Pilotage!$M$20),\"\")","v":{"$error":"#REF!"}},null,{"$f":"IF(Stock!#REF!<>\"\",IF(Stock!#REF!>0,Stock!#REF!/Stock!#REF!,0),\"\")","v":{"$error":"#REF!"}},{"$f":"IF(Stock!#REF!<>\"\",E408*Pilotage!$D$15,\"\")","v":{"$error":"#REF!"}},{"$f":"IF(Stock!#REF!<>\"\",IF(Stock!#REF!>0,Stock!#REF!,0),\"\")","v":{"$error":"#REF!"}},{"$f":"IF(Stock!#REF!<>\"\",Pilotage!$M$27,\"\")","v":{"$error":"#REF!"}},{"$f":"IF(Stock!#REF!<>\"\",ROUND(Stock!#REF!*J408,0),\"\")","v":{"$error":"#REF!"}},{"$f":"IF(Stock!#REF!<>\"\",$H408*K408,\"\")","v":{"$error":"#REF!"}},{"$f":"IF(Stock!#REF!<>\"\",Pilotage!N$27,\"\")","v":{"$error":"#REF!"}},{"$f":"IF(Stock!#REF!<>\"\",ROUND(K408*M408,0),\"\")","v":{"$error":"#REF!"}},{"$f":"IF(Stock!#REF!<>\"\",$H408*N408,\"\")","v":{"$error":"#REF!"}},{"$f":"IF(Stock!#REF!<>\"\",Pilotage!O$27,\"\")","v":{"$error":"#REF!"}},{"$f":"IF(Stock!#REF!<>\"\",ROUND(K408*P408,0),\"\")","v":{"$error":"#REF!"}},{"$f":"IF(Stock!#REF!<>\"\",$H408*Q408,\"\")","v":{"$error":"#REF!"}},{"$f":"IF(Stock!#REF!<>\"\",Pilotage!P$27,\"\")","v":{"$error":"#REF!"}},{"$f":"IF(Stock!#REF!<>\"\",ROUND(Q408*S408,0),\"\")","v":{"$error":"#REF!"}},{"$f":"IF(Stock!#REF!<>\"\",$H408*T408,\"\")","v":{"$error":"#REF!"}},{"$f":"IF(Stock!#REF!<>\"\",Pilotage!Q$27,\"\")","v":{"$error":"#REF!"}},{"$f":"IF(Stock!#REF!<>\"\",ROUND(T408*V408,0),\"\")","v":{"$error":"#REF!"}},{"$f":"IF(Stock!#REF!<>\"\",$H408*W408,\"\")","v":{"$error":"#REF!"}},{"$f":"IF(Stock!#REF!<>\"\",Pilotage!R$27,\"\")","v":{"$error":"#REF!"}},{"$f":"IF(Stock!#REF!<>\"\",ROUND(W408*Y408,0),\"\")","v":{"$error":"#REF!"}},{"$f":"IF(Stock!#REF!<>\"\",$H408*Z408,\"\")","v":{"$error":"#REF!"}}]
[{"$f":"IF(Stock!#REF!<>\"\",Stock!#REF!,\"\")","v":{"$error":"#REF!"}},{"$f":"IF(Stock!#REF!<>\"\",Stock!#REF!,\"\")","v":{"$error":"#REF!"}},{"$f":"IF(Stock!#REF!<>\"\",Stock!#REF!,\"\")","v":{"$error":"#REF!"}},{"$f":"IF(Stock!#REF!<>\"\",SUM(Stock!#REF!,Stock!#REF!,Stock!#REF!),\"\")","v":{"$error":"#REF!"}},{"$f":"IF(Stock!#REF!<>\"\",#REF!*(1+Pilotage!$M$20),\"\")","v":{"$error":"#REF!"}},null,{"$f":"IF(Stock!#REF!<>\"\",IF(Stock!#REF!>0,Stock!#REF!/Stock!#REF!,0),\"\")","v":{"$error":"#REF!"}},{"$f":"IF(Stock!#REF!<>\"\",E409*Pilotage!$D$15,\"\")","v":{"$error":"#REF!"}},{"$f":"IF(Stock!#REF!<>\"\",IF(Stock!#REF!>0,Stock!#REF!,0),\"\")","v":{"$error":"#REF!"}},{"$f":"IF(Stock!#REF!<>\"\",Pilotage!$M$27,\"\")","v":{"$error":"#REF!"}},{"$f":"IF(Stock!#REF!<>\"\",ROUND(Stock!#REF!*J409,0),\"\")","v":{"$error":"#REF!"}},{"$f":"IF(Stock!#REF!<>\"\",$H409*K409,\"\")","v":{"$error":"#REF!"}},{"$f":"IF(Stock!#REF!<>\"\",Pilotage!N$27,\"\")","v":{"$error":"#REF!"}},{"$f":"IF(Stock!#REF!<>\"\",ROUND(K409*M409,0),\"\")","v":{"$error":"#REF!"}},{"$f":"IF(Stock!#REF!<>\"\",$H409*N409,\"\")","v":{"$error":"#REF!"}},{"$f":"IF(Stock!#REF!<>\"\",Pilotage!O$27,\"\")","v":{"$error":"#REF!"}},{"$f":"IF(Stock!#REF!<>\"\",ROUND(K409*P409,0),\"\")","v":{"$error":"#REF!"}},{"$f":"IF(Stock!#REF!<>\"\",$H409*Q409,\"\")","v":{"$error":"#REF!"}},{"$f":"IF(Stock!#REF!<>\"\",Pilotage!P$27,\"\")","v":{"$error":"#REF!"}},{"$f":"IF(Stock!#REF!<>\"\",ROUND(Q409*S409,0),\"\")","v":{"$error":"#REF!"}},{"$f":"IF(Stock!#REF!<>\"\",$H409*T409,\"\")","v":{"$error":"#REF!"}},{"$f":"IF(Stock!#REF!<>\"\",Pilotage!Q$27,\"\")","v":{"$error":"#REF!"}},{"$f":"IF(Stock!#REF!<>\"\",ROUND(T409*V409,0),\"\")","v":{"$error":"#REF!"}},{"$f":"IF(Stock!#REF!<>\"\",$H409*W409,\"\")","v":{"$error":"#REF!"}},{"$f":"IF(Stock!#REF!<>\"\",Pilotage!R$27,\"\")","v":{"$error":"#REF!"}},{"$f":"IF(Stock!#REF!<>\"\",ROUND(W409*Y409,0),\"\")","v":{"$error":"#REF!"}},{"$f":"IF(Stock!#REF!<>\"\",$H409*Z409,\"\")","v":{"$error":"#REF!"}}]
[{"$f":"IF(Stock!#REF!<>\"\",Stock!#REF!,\"\")","v":{"$error":"#REF!"}},{"$f":"IF(Stock!#REF!<>\"\",Stock!#REF!,\"\")","v":{"$error":"#REF!"}},{"$f":"IF(Stock!#REF!<>\"\",Stock!#REF!,\"\")","v":{"$error":"#REF!"}},{"$f":"IF(Stock!#REF!<>\"\",SUM(Stock!#REF!,Stock!#REF!,Stock!#REF!),\"\")","v":{"$error":"#REF!"}},{"$f":"IF(Stock!#REF!<>\"\",#REF!*(1+Pilotage!$M$20),\"\")","v":{"$error":"#REF!"}},null,{"$f":"IF(Stock!#REF!<>\"\",IF(Stock!#REF!>0,Stock!#REF!/Stock!#REF!,0),\"\")","v":{"$error":"#REF!"}},{"$f":"IF(Stock!#REF!<>\"\",E410*Pilotage!$D$15,\"\")","v":{"$error":"#REF!"}},{"$f":"IF(Stock!#REF!<>\"\",IF(Stock!#REF!>0,Stock!#REF!,0),\"\")","v":{"$error":"#REF!"}},{"$f":"IF(Stock!#REF!<>\"\",Pilotage!$M$27,\"\")","v":{"$error":"#REF!"}},{"$f":"IF(Stock!#REF!<>\"\",ROUND(Stock!#REF!*J410,0),\"\")","v":{"$error":"#REF!"}},{"$f":"IF(Stock!#REF!<>\"\",$H410*K410,\"\")","v":{"$error":"#REF!"}},{"$f":"IF(Stock!#REF!<>\"\",Pilotage!N$27,\"\")","v":{"$error":"#REF!"}},{"$f":"IF(Stock!#REF!<>\"\",ROUND(K410*M410,0),\"\")","v":{"$error":"#REF!"}},{"$f":"IF(Stock!#REF!<>\"\",$H410*N410,\"\")","v":{"$error":"#REF!"}},{"$f":"IF(Stock!#REF!<>\"\",Pilotage!O$27,\"\")","v":{"$error":"#REF!"}},{"$f":"IF(Stock!#REF!<>\"\",ROUND(K410*P410,0),\"\")","v":{"$error":"#REF!"}},{"$f":"IF(Stock!#REF!<>\"\",$H410*Q410,\"\")","v":{"$error":"#REF!"}},{"$f":"IF(Stock!#REF!<>\"\",Pilotage!P$27,\"\")","v":{"$error":"#REF!"}},{"$f":"IF(Stock!#REF!<>\"\",ROUND(Q410*S410,0),\"\")","v":{"$error":"#REF!"}},{"$f":"IF(Stock!#REF!<>\"\",$H410*T410,\"\")","v":{"$error":"#REF!"}},{"$f":"IF(Stock!#REF!<>\"\",Pilotage!Q$27,\"\")","v":{"$error":"#REF!"}},{"$f":"IF(Stock!#REF!<>\"\",ROUND(T410*V410,0),\"\")","v":{"$error":"#REF!"}},{"$f":"IF(Stock!#REF!<>\"\",$H410*W410,\"\")","v":{"$error":"#REF!"}},{"$f":"IF(Stock!#REF!<>\"\",Pilotage!R$27,\"\")","v":{"$error":"#REF!"}},{"$f":"IF(Stock!#REF!<>\"\",ROUND(W410*Y410,0),\"\")","v":{"$error":"#REF!"}},{"$f":"IF(Stock!#REF!<>\"\",$H410*Z410,\"\")","v":{"$error":"#REF!"}}]
[{"$f":"IF(Stock!#REF!<>\"\",Stock!#REF!,\"\")","v":{"$error":"#REF!"}},{"$f":"IF(Stock!#REF!<>\"\",Stock!#REF!,\"\")","v":{"$error":"#REF!"}},{"$f":"IF(Stock!#REF!<>\"\",Stock!#REF!,\"\")","v":{"$error":"#REF!"}},{"$f":"IF(Stock!#REF!<>\"\",SUM(Stock!#REF!,Stock!#REF!,Stock!#REF!),\"\")","v":{"$error":"#REF!"}},{"$f":"IF(Stock!#REF!<>\"\",#REF!*(1+Pilotage!$M$20),\"\")","v":{"$error":"#REF!"}},null,{"$f":"IF(Stock!#REF!<>\"\",IF(Stock!#REF!>0,Stock!#REF!/Stock!#REF!,0),\"\")","v":{"$error":"#REF!"}},{"$f":"IF(Stock!#REF!<>\"\",E411*Pilotage!$D$15,\"\")","v":{"$error":"#REF!"}},{"$f":"IF(Stock!#REF!<>\"\",IF(Stock!#REF!>0,Stock!#REF!,0),\"\")","v":{"$error":"#REF!"}},{"$f":"IF(Stock!#REF!<>\"\",Pilotage!$M$27,\"\")","v":{"$error":"#REF!"}},{"$f":"IF(Stock!#REF!<>\"\",ROUND(Stock!#REF!*J411,0),\"\")","v":{"$error":"#REF!"}},{"$f":"IF(Stock!#REF!<>\"\",$H411*K411,\"\")","v":{"$error":"#REF!"}},{"$f":"IF(Stock!#REF!<>\"\",Pilotage!N$27,\"\")","v":{"$error":"#REF!"}},{"$f":"IF(Stock!#REF!<>\"\",ROUND(K411*M411,0),\"\")","v":{"$error":"#REF!"}},{"$f":"IF(Stock!#REF!<>\"\",$H411*N411,\"\")","v":{"$error":"#REF!"}},{"$f":"IF(Stock!#REF!<>\"\",Pilotage!O$27,\"\")","v":{"$error":"#REF!"}},{"$f":"IF(Stock!#REF!<>\"\",ROUND(K411*P411,0),\"\")","v":{"$error":"#REF!"}},{"$f":"IF(Stock!#REF!<>\"\",$H411*Q411,\"\")","v":{"$error":"#REF!"}},{"$f":"IF(Stock!#REF!<>\"\",Pilotage!P$27,\"\")","v":{"$error":"#REF!"}},{"$f":"IF(Stock!#REF!<>\"\",ROUND(Q411*S411,0),\"\")","v":{"$error":"#REF!"}},{"$f":"IF(Stock!#REF!<>\"\",$H411*T411,\"\")","v":{"$error":"#REF!"}},{"$f":"IF(Stock!#REF!<>\"\",Pilotage!Q$27,\"\")","v":{"$error":"#REF!"}},{"$f":"IF(Stock!#REF!<>\"\",ROUND(T411*V411,0),\"\")","v":{"$error":"#REF!"}},{"$f":"IF(Stock!#REF!<>\"\",$H411*W411,\"\")","v":{"$error":"#REF!"}},{"$f":"IF(Stock!#REF!<>\"\",Pilotage!R$27,\"\")","v":{"$error":"#REF!"}},{"$f":"IF(Stock!#REF!<>\"\",ROUND(W411*Y411,0),\"\")","v":{"$error":"#REF!"}},{"$f":"IF(Stock!#REF!<>\"\",$H411*Z411,\"\")","v":{"$error":"#REF!"}}]
[{"$f":"IF(Stock!#REF!<>\"\",Stock!#REF!,\"\")","v":{"$error":"#REF!"}},{"$f":"IF(Stock!#REF!<>\"\",Stock!#REF!,\"\")","v":{"$error":"#REF!"}},{"$f":"IF(Stock!#REF!<>\"\",Stock!#REF!,\"\")","v":{"$error":"#REF!"}},{"$f":"IF(Stock!#REF!<>\"\",SUM(Stock!#REF!,Stock!#REF!,Stock!#REF!),\"\")","v":{"$error":"#REF!"}},{"$f":"IF(Stock!#REF!<>\"\",#REF!*(1+Pilotage!$M$20),\"\")","v":{"$error":"#REF!"}},null,{"$f":"IF(Stock!#REF!<>\"\",IF(Stock!#REF!>0,Stock!#REF!/Stock!#REF!,0),\"\")","v":{"$error":"#REF!"}},{"$f":"IF(Stock!#REF!<>\"\",E412*Pilotage!$D$15,\"\")","v":{"$error":"#REF!"}},{"$f":"IF(Stock!#REF!<>\"\",IF(Stock!#REF!>0,Stock!#REF!,0),\"\")","v":{"$error":"#REF!"}},{"$f":"IF(Stock!#REF!<>\"\",Pilotage!$M$27,\"\")","v":{"$error":"#REF!"}},{"$f":"IF(Stock!#REF!<>\"\",ROUND(Stock!#REF!*J412,0),\"\")","v":{"$error":"#REF!"}},{"$f":"IF(Stock!#REF!<>\"\",$H412*K412,\"\")","v":{"$error":"#REF!"}},{"$f":"IF(Stock!#REF!<>\"\",Pilotage!N$27,\"\")","v":{"$error":"#REF!"}},{"$f":"IF(Stock!#REF!<>\"\",ROUND(K412*M412,0),\"\")","v":{"$error":"#REF!"}},{"$f":"IF(Stock!#REF!<>\"\",$H412*N412,\"\")","v":{"$error":"#REF!"}},{"$f":"IF(Stock!#REF!<>\"\",Pilotage!O$27,\"\")","v":{"$error":"#REF!"}},{"$f":"IF(Stock!#REF!<>\"\",ROUND(K412*P412,0),\"\")","v":{"$error":"#REF!"}},{"$f":"IF(Stock!#REF!<>\"\",$H412*Q412,\"\")","v":{"$error":"#REF!"}},{"$f":"IF(Stock!#REF!<>\"\",Pilotage!P$27,\"\")","v":{"$error":"#REF!"}},{"$f":"IF(Stock!#REF!<>\"\",ROUND(Q412*S412,0),\"\")","v":{"$error":"#REF!"}},{"$f":"IF(Stock!#REF!<>\"\",$H412*T412,\"\")","v":{"$error":"#REF!"}},{"$f":"IF(Stock!#REF!<>\"\",Pilotage!Q$27,\"\")","v":{"$error":"#REF!"}},{"$f":"IF(Stock!#REF!<>\"\",ROUND(T412*V412,0),\"\")","v":{"$error":"#REF!"}},{"$f":"IF(Stock!#REF!<>\"\",$H412*W412,\"\")","v":{"$error":"#REF!"}},{"$f":"IF(Stock!#REF!<>\"\",Pilotage!R$27,\"\")","v":{"$error":"#REF!"}},{"$f":"IF(Stock!#REF!<>\"\",ROUND(W412*Y412,0),\"\")","v":{"$error":"#REF!"}},{"$f":"IF(Stock!#REF!<>\"\",$H412*Z412,\"\")","v":{"$error":"#REF!"}}]
[{"$f":"IF(Stock!#REF!<>\"\",Stock!#REF!,\"\")","v":{"$error":"#REF!"}},{"$f":"IF(Stock!#REF!<>\"\",Stock!#REF!,\"\")","v":{"$error":"#REF!"}},{"$f":"IF(Stock!#REF!<>\"\",Stock!#REF!,\"\")","v":{"$error":"#REF!"}},{"$f":"IF(Stock!#REF!<>\"\",SUM(Stock!#REF!,Stock!#REF!,Stock!#REF!),\"\")","v":{"$error":"#REF!"}},{"$f":"IF(Stock!#REF!<>\"\",#REF!*(1+Pilotage!$M$20),\"\")","v":{"$error":"#REF!"}},null,{"$f":"IF(Stock!#REF!<>\"\",IF(Stock!#REF!>0,Stock!#REF!/Stock!#REF!,0),\"\")","v":{"$error":"#REF!"}},{"$f":"IF(Stock!#REF!<>\"\",E413*Pilotage!$D$15,\"\")","v":{"$error":"#REF!"}},{"$f":"IF(Stock!#REF!<>\"\",IF(Stock!#REF!>0,Stock!#REF!,0),\"\")","v":{"$error":"#REF!"}},{"$f":"IF(Stock!#REF!<>\"\",Pilotage!$M$27,\"\")","v":{"$error":"#REF!"}},{"$f":"IF(Stock!#REF!<>\"\",ROUND(Stock!#REF!*J413,0),\"\")","v":{"$error":"#REF!"}},{"$f":"IF(Stock!#REF!<>\"\",$H413*K413,\"\")","v":{"$error":"#REF!"}},{"$f":"IF(Stock!#REF!<>\"\",Pilotage!N$27,\"\")","v":{"$error":"#REF!"}},{"$f":"IF(Stock!#REF!<>\"\",ROUND(K413*M413,0),\"\")","v":{"$error":"#REF!"}},{"$f":"IF(Stock!#REF!<>\"\",$H413*N413,\"\")","v":{"$error":"#REF!"}},{"$f":"IF(Stock!#REF!<>\"\",Pilotage!O$27,\"\")","v":{"$error":"#REF!"}},{"$f":"IF(Stock!#REF!<>\"\",ROUND(K413*P413,0),\"\")","v":{"$error":"#REF!"}},{"$f":"IF(Stock!#REF!<>\"\",$H413*Q413,\"\")","v":{"$error":"#REF!"}},{"$f":"IF(Stock!#REF!<>\"\",Pilotage!P$27,\"\")","v":{"$error":"#REF!"}},{"$f":"IF(Stock!#REF!<>\"\",ROUND(Q413*S413,0),\"\")","v":{"$error":"#REF!"}},{"$f":"IF(Stock!#REF!<>\"\",$H413*T413,\"\")","v":{"$error":"#REF!"}},{"$f":"IF(Stock!#REF!<>\"\",Pilotage!Q$27,\"\")","v":{"$error":"#REF!"}},{"$f":"IF(Stock!#REF!<>\"\",ROUND(T413*V413,0),\"\")","v":{"$error":"#REF!"}},{"$f":"IF(Stock!#REF!<>\"\",$H413*W413,\"\")","v":{"$error":"#REF!"}},{"$f":"IF(Stock!#REF!<>\"\",Pilotage!R$27,\"\")","v":{"$error":"#REF!"}},{"$f":"IF(Stock!#REF!<>\"\",ROUND(W413*Y413,0),\"\")","v":{"$error":"#REF!"}},{"$f":"IF(Stock!#REF!<>\"\",$H413*Z413,\"\")","v":{"$error":"#REF!"}}]
[{"$f":"IF(Stock!#REF!<>\"\",Stock!#REF!,\"\")","v":{"$error":"#REF!"}},{"$f":"IF(Stock!#REF!<>\"\",Stock!#REF!,\"\")","v":{"$error":"#REF!"}},{"$f":"IF(Stock!#REF!<>\"\",Stock!#REF!,\"\")","v":{"$error":"#REF!"}},{"$f":"IF(Stock!#REF!<>\"\",SUM(Stock!#REF!,Stock!#REF!,Stock!#REF!),\"\")","v":{"$error":"#REF!"}},{"$f":"IF(Stock!#REF!<>\"\",#REF!*(1+Pilotage!$M$20),\"\")","v":{"$error":"#REF!"}},null,{"$f":"IF(Stock!#REF!<>\"\",IF(Stock!#REF!>0,Stock!#REF!/Stock!#REF!,0),\"\")","v":{"$error":"#REF!"}},{"$f":"IF(Stock!#REF!<>\"\",E414*Pilotage!$D$15,\"\")","v":{"$error":"#REF!"}},{"$f":"IF(Stock!#REF!<>\"\",IF(Stock!#REF!>0,Stock!#REF!,0),\"\")","v":{"$error":"#REF!"}},{"$f":"IF(Stock!#REF!<>\"\",Pilotage!$M$27,\"\")","v":{"$error":"#REF!"}},{"$f":"IF(Stock!#REF!<>\"\",ROUND(Stock!#REF!*J414,0),\"\")","v":{"$error":"#REF!"}},{"$f":"IF(Stock!#REF!<>\"\",$H414*K414,\"\")","v":{"$error":"#REF!"}},{"$f":"IF(Stock!#REF!<>\"\",Pilotage!N$27,\"\")","v":{"$error":"#REF!"}},{"$f":"IF(Stock!#REF!<>\"\",ROUND(K414*M414,0),\"\")","v":{"$error":"#REF!"}},{"$f":"IF(Stock!#REF!<>\"\",$H414*N414,\"\")","v":{"$error":"#REF!"}},{"$f":"IF(Stock!#REF!<>\"\",Pilotage!O$27,\"\")","v":{"$error":"#REF!"}},{"$f":"IF(Stock!#REF!<>\"\",ROUND(K414*P414,0),\"\")","v":{"$error":"#REF!"}},{"$f":"IF(Stock!#REF!<>\"\",$H414*Q414,\"\")","v":{"$error":"#REF!"}},{"$f":"IF(Stock!#REF!<>\"\",Pilotage!P$27,\"\")","v":{"$error":"#REF!"}},{"$f":"IF(Stock!#REF!<>\"\",ROUND(Q414*S414,0),\"\")","v":{"$error":"#REF!"}},{"$f":"IF(Stock!#REF!<>\"\",$H414*T414,\"\")","v":{"$error":"#REF!"}},{"$f":"IF(Stock!#REF!<>\"\",Pilotage!Q$27,\"\")","v":{"$error":"#REF!"}},{"$f":"IF(Stock!#REF!<>\"\",ROUND(T414*V414,0),\"\")","v":{"$error":"#REF!"}},{"$f":"IF(Stock!#REF!<>\"\",$H414*W414,\"\")","v":{"$error":"#REF!"}},{"$f":"IF(Stock!#REF!<>\"\",Pilotage!R$27,\"\")","v":{"$error":"#REF!"}},{"$f":"IF(Stock!#REF!<>\"\",ROUND(W414*Y414,0),\"\")","v":{"$error":"#REF!"}},{"$f":"IF(Stock!#REF!<>\"\",$H414*Z414,\"\")","v":{"$error":"#REF!"}}]
[{"$f":"IF(Stock!#REF!<>\"\",Stock!#REF!,\"\")","v":{"$error":"#REF!"}},{"$f":"IF(Stock!#REF!<>\"\",Stock!#REF!,\"\")","v":{"$error":"#REF!"}},{"$f":"IF(Stock!#REF!<>\"\",Stock!#REF!,\"\")","v":{"$error":"#REF!"}},{"$f":"IF(Stock!#REF!<>\"\",SUM(Stock!#REF!,Stock!#REF!,Stock!#REF!),\"\")","v":{"$error":"#REF!"}},{"$f":"IF(Stock!#REF!<>\"\",#REF!*(1+Pilotage!$M$20),\"\")","v":{"$error":"#REF!"}},null,{"$f":"IF(Stock!#REF!<>\"\",IF(Stock!#REF!>0,Stock!#REF!/Stock!#REF!,0),\"\")","v":{"$error":"#REF!"}},{"$f":"IF(Stock!#REF!<>\"\",E415*Pilotage!$D$15,\"\")","v":{"$error":"#REF!"}},{"$f":"IF(Stock!#REF!<>\"\",IF(Stock!#REF!>0,Stock!#REF!,0),\"\")","v":{"$error":"#REF!"}},{"$f":"IF(Stock!#REF!<>\"\",Pilotage!$M$27,\"\")","v":{"$error":"#REF!"}},{"$f":"IF(Stock!#REF!<>\"\",ROUND(Stock!#REF!*J415,0),\"\")","v":{"$error":"#REF!"}},{"$f":"IF(Stock!#REF!<>\"\",$H415*K415,\"\")","v":{"$error":"#REF!"}},{"$f":"IF(Stock!#REF!<>\"\",Pilotage!N$27,\"\")","v":{"$error":"#REF!"}},{"$f":"IF(Stock!#REF!<>\"\",ROUND(K415*M415,0),\"\")","v":{"$error":"#REF!"}},{"$f":"IF(Stock!#REF!<>\"\",$H415*N415,\"\")","v":{"$error":"#REF!"}},{"$f":"IF(Stock!#REF!<>\"\",Pilotage!O$27,\"\")","v":{"$error":"#REF!"}},{"$f":"IF(Stock!#REF!<>\"\",ROUND(K415*P415,0),\"\")","v":{"$error":"#REF!"}},{"$f":"IF(Stock!#REF!<>\"\",$H415*Q415,\"\")","v":{"$error":"#REF!"}},{"$f":"IF(Stock!#REF!<>\"\",Pilotage!P$27,\"\")","v":{"$error":"#REF!"}},{"$f":"IF(Stock!#REF!<>\"\",ROUND(Q415*S415,0),\"\")","v":{"$error":"#REF!"}},{"$f":"IF(Stock!#REF!<>\"\",$H415*T415,\"\")","v":{"$error":"#REF!"}},{"$f":"IF(Stock!#REF!<>\"\",Pilotage!Q$27,\"\")","v":{"$error":"#REF!"}},{"$f":"IF(Stock!#REF!<>\"\",ROUND(T415*V415,0),\"\")","v":{"$error":"#REF!"}},{"$f":"IF(Stock!#REF!<>\"\",$H415*W415,\"\")","v":{"$error":"#REF!"}},{"$f":"IF(Stock!#REF!<>\"\",Pilotage!R$27,\"\")","v":{"$error":"#REF!"}},{"$f":"IF(Stock!#REF!<>\"\",ROUND(W415*Y415,0),\"\")","v":{"$error":"#REF!"}},{"$f":"IF(Stock!#REF!<>\"\",$H415*Z415,\"\")","v":{"$error":"#REF!"}}]
[{"$f":"IF(Stock!#REF!<>\"\",Stock!#REF!,\"\")","v":{"$error":"#REF!"}},{"$f":"IF(Stock!#REF!<>\"\",Stock!#REF!,\"\")","v":{"$error":"#REF!"}},{"$f":"IF(Stock!#REF!<>\"\",Stock!#REF!,\"\")","v":{"$error":"#REF!"}},{"$f":"IF(Stock!#REF!<>\"\",SUM(Stock!#REF!,Stock!#REF!,Stock!#REF!),\"\")","v":{"$error":"#REF!"}},{"$f":"IF(Stock!#REF!<>\"\",#REF!*(1+Pilotage!$M$20),\"\")","v":{"$error":"#REF!"}},null,{"$f":"IF(Stock!#REF!<>\"\",IF(Stock!#REF!>0,Stock!#REF!/Stock!#REF!,0),\"\")","v":{"$error":"#REF!"}},{"$f":"IF(Stock!#REF!<>\"\",E416*Pilotage!$D$15,\"\")","v":{"$error":"#REF!"}},{"$f":"IF(Stock!#REF!<>\"\",IF(Stock!#REF!>0,Stock!#REF!,0),\"\")","v":{"$error":"#REF!"}},{"$f":"IF(Stock!#REF!<>\"\",Pilotage!$M$27,\"\")","v":{"$error":"#REF!"}},{"$f":"IF(Stock!#REF!<>\"\",ROUND(Stock!#REF!*J416,0),\"\")","v":{"$error":"#REF!"}},{"$f":"IF(Stock!#REF!<>\"\",$H416*K416,\"\")","v":{"$error":"#REF!"}},{"$f":"IF(Stock!#REF!<>\"\",Pilotage!N$27,\"\")","v":{"$error":"#REF!"}},{"$f":"IF(Stock!#REF!<>\"\",ROUND(K416*M416,0),\"\")","v":{"$error":"#REF!"}},{"$f":"IF(Stock!#REF!<>\"\",$H416*N416,\"\")","v":{"$error":"#REF!"}},{"$f":"IF(Stock!#REF!<>\"\",Pilotage!O$27,\"\")","v":{"$error":"#REF!"}},{"$f":"IF(Stock!#REF!<>\"\",ROUND(K416*P416,0),\"\")","v":{"$error":"#REF!"}},{"$f":"IF(Stock!#REF!<>\"\",$H416*Q416,\"\")","v":{"$error":"#REF!"}},{"$f":"IF(Stock!#REF!<>\"\",Pilotage!P$27,\"\")","v":{"$error":"#REF!"}},{"$f":"IF(Stock!#REF!<>\"\",ROUND(Q416*S416,0),\"\")","v":{"$error":"#REF!"}},{"$f":"IF(Stock!#REF!<>\"\",$H416*T416,\"\")","v":{"$error":"#REF!"}},{"$f":"IF(Stock!#REF!<>\"\",Pilotage!Q$27,\"\")","v":{"$error":"#REF!"}},{"$f":"IF(Stock!#REF!<>\"\",ROUND(T416*V416,0),\"\")","v":{"$error":"#REF!"}},{"$f":"IF(Stock!#REF!<>\"\",$H416*W416,\"\")","v":{"$error":"#REF!"}},{"$f":"IF(Stock!#REF!<>\"\",Pilotage!R$27,\"\")","v":{"$error":"#REF!"}},{"$f":"IF(Stock!#REF!<>\"\",ROUND(W416*Y416,0),\"\")","v":{"$error":"#REF!"}},{"$f":"IF(Stock!#REF!<>\"\",$H416*Z416,\"\")","v":{"$error":"#REF!"}}]
[{"$f":"IF(Stock!#REF!<>\"\",Stock!#REF!,\"\")","v":{"$error":"#REF!"}},{"$f":"IF(Stock!#REF!<>\"\",Stock!#REF!,\"\")","v":{"$error":"#REF!"}},{"$f":"IF(Stock!#REF!<>\"\",Stock!#REF!,\"\")","v":{"$error":"#REF!"}},{"$f":"IF(Stock!#REF!<>\"\",SUM(Stock!#REF!,Stock!#REF!,Stock!#REF!),\"\")","v":{"$error":"#REF!"}},{"$f":"IF(Stock!#REF!<>\"\",#REF!*(1+Pilotage!$M$20),\"\")","v":{"$error":"#REF!"}},null,{"$f":"IF(Stock!#REF!<>\"\",IF(Stock!#REF!>0,Stock!#REF!/Stock!#REF!,0),\"\")","v":{"$error":"#REF!"}},{"$f":"IF(Stock!#REF!<>\"\",E417*Pilotage!$D$15,\"\")","v":{"$error":"#REF!"}},{"$f":"IF(Stock!#REF!<>\"\",IF(Stock!#REF!>0,Stock!#REF!,0),\"\")","v":{"$error":"#REF!"}},{"$f":"IF(Stock!#REF!<>\"\",Pilotage!$M$27,\"\")","v":{"$error":"#REF!"}},{"$f":"IF(Stock!#REF!<>\"\",ROUND(Stock!#REF!*J417,0),\"\")","v":{"$error":"#REF!"}},{"$f":"IF(Stock!#REF!<>\"\",$H417*K417,\"\")","v":{"$error":"#REF!"}},{"$f":"IF(Stock!#REF!<>\"\",Pilotage!N$27,\"\")","v":{"$error":"#REF!"}},{"$f":"IF(Stock!#REF!<>\"\",ROUND(K417*M417,0),\"\")","v":{"$error":"#REF!"}},{"$f":"IF(Stock!#REF!<>\"\",$H417*N417,\"\")","v":{"$error":"#REF!"}},{"$f":"IF(Stock!#REF!<>\"\",Pilotage!O$27,\"\")","v":{"$error":"#REF!"}},{"$f":"IF(Stock!#REF!<>\"\",ROUND(K417*P417,0),\"\")","v":{"$error":"#REF!"}},{"$f":"IF(Stock!#REF!<>\"\",$H417*Q417,\"\")","v":{"$error":"#REF!"}},{"$f":"IF(Stock!#REF!<>\"\",Pilotage!P$27,\"\")","v":{"$error":"#REF!"}},{"$f":"IF(Stock!#REF!<>\"\",ROUND(Q417*S417,0),\"\")","v":{"$error":"#REF!"}},{"$f":"IF(Stock!#REF!<>\"\",$H417*T417,\"\")","v":{"$error":"#REF!"}},{"$f":"IF(Stock!#REF!<>\"\",Pilotage!Q$27,\"\")","v":{"$error":"#REF!"}},{"$f":"IF(Stock!#REF!<>\"\",ROUND(T417*V417,0),\"\")","v":{"$error":"#REF!"}},{"$f":"IF(Stock!#REF!<>\"\",$H417*W417,\"\")","v":{"$error":"#REF!"}},{"$f":"IF(Stock!#REF!<>\"\",Pilotage!R$27,\"\")","v":{"$error":"#REF!"}},{"$f":"IF(Stock!#REF!<>\"\",ROUND(W417*Y417,0),\"\")","v":{"$error":"#REF!"}},{"$f":"IF(Stock!#REF!<>\"\",$H417*Z417,\"\")","v":{"$error":"#REF!"}}]
[{"$f":"IF(Stock!#REF!<>\"\",Stock!#REF!,\"\")","v":{"$error":"#REF!"}},{"$f":"IF(Stock!#REF!<>\"\",Stock!#REF!,\"\")","v":{"$error":"#REF!"}},{"$f":"IF(Stock!#REF!<>\"\",Stock!#REF!,\"\")","v":{"$error":"#REF!"}},{"$f":"IF(Stock!#REF!<>\"\",SUM(Stock!#REF!,Stock!#REF!,Stock!#REF!),\"\")","v":{"$error":"#REF!"}},{"$f":"IF(Stock!#REF!<>\"\",#REF!*(1+Pilotage!$M$20),\"\")","v":{"$error":"#REF!"}},null,{"$f":"IF(Stock!#REF!<>\"\",IF(Stock!#REF!>0,Stock!#REF!/Stock!#REF!,0),\"\")","v":{"$error":"#REF!"}},{"$f":"IF(Stock!#REF!<>\"\",E418*Pilotage!$D$15,\"\")","v":{"$error":"#REF!"}},{"$f":"IF(Stock!#REF!<>\"\",IF(Stock!#REF!>0,Stock!#REF!,0),\"\")","v":{"$error":"#REF!"}},{"$f":"IF(Stock!#REF!<>\"\",Pilotage!$M$27,\"\")","v":{"$error":"#REF!"}},{"$f":"IF(Stock!#REF!<>\"\",ROUND(Stock!#REF!*J418,0),\"\")","v":{"$error":"#REF!"}},{"$f":"IF(Stock!#REF!<>\"\",$H418*K418,\"\")","v":{"$error":"#REF!"}},{"$f":"IF(Stock!#REF!<>\"\",Pilotage!N$27,\"\")","v":{"$error":"#REF!"}},{"$f":"IF(Stock!#REF!<>\"\",ROUND(K418*M418,0),\"\")","v":{"$error":"#REF!"}},{"$f":"IF(Stock!#REF!<>\"\",$H418*N418,\"\")","v":{"$error":"#REF!"}},{"$f":"IF(Stock!#REF!<>\"\",Pilotage!O$27,\"\")","v":{"$error":"#REF!"}},{"$f":"IF(Stock!#REF!<>\"\",ROUND(K418*P418,0),\"\")","v":{"$error":"#REF!"}},{"$f":"IF(Stock!#REF!<>\"\",$H418*Q418,\"\")","v":{"$error":"#REF!"}},{"$f":"IF(Stock!#REF!<>\"\",Pilotage!P$27,\"\")","v":{"$error":"#REF!"}},{"$f":"IF(Stock!#REF!<>\"\",ROUND(Q418*S418,0),\"\")","v":{"$error":"#REF!"}},{"$f":"IF(Stock!#REF!<>\"\",$H418*T418,\"\")","v":{"$error":"#REF!"}},{"$f":"IF(Stock!#REF!<>\"\",Pilotage!Q$27,\"\")","v":{"$error":"#REF!"}},{"$f":"IF(Stock!#REF!<>\"\",ROUND(T418*V418,0),\"\")","v":{"$error":"#REF!"}},{"$f":"IF(Stock!#REF!<>\"\",$H418*W418,\"\")","v":{"$error":"#REF!"}},{"$f":"IF(Stock!#REF!<>\"\",Pilotage!R$27,\"\")","v":{"$error":"#REF!"}},{"$f":"IF(Stock!#REF!<>\"\",ROUND(W418*Y418,0),\"\")","v":{"$error":"#REF!"}},{"$f":"IF(Stock!#REF!<>\"\",$H418*Z418,\"\")","v":{"$error":"#REF!"}}]
[{"$f":"IF(Stock!#REF!<>\"\",Stock!#REF!,\"\")","v":{"$error":"#REF!"}},{"$f":"IF(Stock!#REF!<>\"\",Stock!#REF!,\"\")","v":{"$error":"#REF!"}},{"$f":"IF(Stock!#REF!<>\"\",Stock!#REF!,\"\")","v":{"$error":"#REF!"}},{"$f":"IF(Stock!#REF!<>\"\",SUM(Stock!#REF!,Stock!#REF!,Stock!#REF!),\"\")","v":{"$error":"#REF!"}},{"$f":"IF(Stock!#REF!<>\"\",#REF!*(1+Pilotage!$M$20),\"\")","v":{"$error":"#REF!"}},null,{"$f":"IF(Stock!#REF!<>\"\",IF(Stock!#REF!>0,Stock!#REF!/Stock!#REF!,0),\"\")","v":{"$error":"#REF!"}},{"$f":"IF(Stock!#REF!<>\"\",E419*Pilotage!$D$15,\"\")","v":{"$error":"#REF!"}},{"$f":"IF(Stock!#REF!<>\"\",IF(Stock!#REF!>0,Stock!#REF!,0),\"\")","v":{"$error":"#REF!"}},{"$f":"IF(Stock!#REF!<>\"\",Pilotage!$M$27,\"\")","v":{"$error":"#REF!"}},{"$f":"IF(Stock!#REF!<>\"\",ROUND(Stock!#REF!*J419,0),\"\")","v":{"$error":"#REF!"}},{"$f":"IF(Stock!#REF!<>\"\",$H419*K419,\"\")","v":{"$error":"#REF!"}},{"$f":"IF(Stock!#REF!<>\"\",Pilotage!N$27,\"\")","v":{"$error":"#REF!"}},{"$f":"IF(Stock!#REF!<>\"\",ROUND(K419*M419,0),\"\")","v":{"$error":"#REF!"}},{"$f":"IF(Stock!#REF!<>\"\",$H419*N419,\"\")","v":{"$error":"#REF!"}},{"$f":"IF(Stock!#REF!<>\"\",Pilotage!O$27,\"\")","v":{"$error":"#REF!"}},{"$f":"IF(Stock!#REF!<>\"\",ROUND(K419*P419,0),\"\")","v":{"$error":"#REF!"}},{"$f":"IF(Stock!#REF!<>\"\",$H419*Q419,\"\")","v":{"$error":"#REF!"}},{"$f":"IF(Stock!#REF!<>\"\",Pilotage!P$27,\"\")","v":{"$error":"#REF!"}},{"$f":"IF(Stock!#REF!<>\"\",ROUND(Q419*S419,0),\"\")","v":{"$error":"#REF!"}},{"$f":"IF(Stock!#REF!<>\"\",$H419*T419,\"\")","v":{"$error":"#REF!"}},{"$f":"IF(Stock!#REF!<>\"\",Pilotage!Q$27,\"\")","v":{"$error":"#REF!"}},{"$f":"IF(Stock!#REF!<>\"\",ROUND(T419*V419,0),\"\")","v":{"$error":"#REF!"}},{"$f":"IF(Stock!#REF!<>\"\",$H419*W419,\"\")","v":{"$error":"#REF!"}},{"$f":"IF(Stock!#REF!<>\"\",Pilotage!R$27,\"\")","v":{"$error":"#REF!"}},{"$f":"IF(Stock!#REF!<>\"\",ROUND(W419*Y419,0),\"\")","v":{"$error":"#REF!"}},{"$f":"IF(Stock!#REF!<>\"\",$H419*Z419,\"\")","v":{"$error":"#REF!"}}]
[{"$f":"IF(Stock!#REF!<>\"\",Stock!#REF!,\"\")","v":{"$error":"#REF!"}},{"$f":"IF(Stock!#REF!<>\"\",Stock!#REF!,\"\")","v":{"$error":"#REF!"}},{"$f":"IF(Stock!#REF!<>\"\",Stock!#REF!,\"\")","v":{"$error":"#REF!"}},{"$f":"IF(Stock!#REF!<>\"\",SUM(Stock!#REF!,Stock!#REF!,Stock!#REF!),\"\")","v":{"$error":"#REF!"}},{"$f":"IF(Stock!#REF!<>\"\",#REF!*(1+Pilotage!$M$20),\"\")","v":{"$error":"#REF!"}},null,{"$f":"IF(Stock!#REF!<>\"\",IF(Stock!#REF!>0,Stock!#REF!/Stock!#REF!,0),\"\")","v":{"$error":"#REF!"}},{"$f":"IF(Stock!#REF!<>\"\",E420*Pilotage!$D$15,\"\")","v":{"$error":"#REF!"}},{"$f":"IF(Stock!#REF!<>\"\",IF(Stock!#REF!>0,Stock!#REF!,0),\"\")","v":{"$error":"#REF!"}},{"$f":"IF(Stock!#REF!<>\"\",Pilotage!$M$27,\"\")","v":{"$error":"#REF!"}},{"$f":"IF(Stock!#REF!<>\"\",ROUND(Stock!#REF!*J420,0),\"\")","v":{"$error":"#REF!"}},{"$f":"IF(Stock!#REF!<>\"\",$H420*K420,\"\")","v":{"$error":"#REF!"}},{"$f":"IF(Stock!#REF!<>\"\",Pilotage!N$27,\"\")","v":{"$error":"#REF!"}},{"$f":"IF(Stock!#REF!<>\"\",ROUND(K420*M420,0),\"\")","v":{"$error":"#REF!"}},{"$f":"IF(Stock!#REF!<>\"\",$H420*N420,\"\")","v":{"$error":"#REF!"}},{"$f":"IF(Stock!#REF!<>\"\",Pilotage!O$27,\"\")","v":{"$error":"#REF!"}},{"$f":"IF(Stock!#REF!<>\"\",ROUND(K420*P420,0),\"\")","v":{"$error":"#REF!"}},{"$f":"IF(Stock!#REF!<>\"\",$H420*Q420,\"\")","v":{"$error":"#REF!"}},{"$f":"IF(Stock!#REF!<>\"\",Pilotage!P$27,\"\")","v":{"$error":"#REF!"}},{"$f":"IF(Stock!#REF!<>\"\",ROUND(Q420*S420,0),\"\")","v":{"$error":"#REF!"}},{"$f":"IF(Stock!#REF!<>\"\",$H420*T420,\"\")","v":{"$error":"#REF!"}},{"$f":"IF(Stock!#REF!<>\"\",Pilotage!Q$27,\"\")","v":{"$error":"#REF!"}},{"$f":"IF(Stock!#REF!<>\"\",ROUND(T420*V420,0),\"\")","v":{"$error":"#REF!"}},{"$f":"IF(Stock!#REF!<>\"\",$H420*W420,\"\")","v":{"$error":"#REF!"}},{"$f":"IF(Stock!#REF!<>\"\",Pilotage!R$27,\"\")","v":{"$error":"#REF!"}},{"$f":"IF(Stock!#REF!<>\"\",ROUND(W420*Y420,0),\"\")","v":{"$error":"#REF!"}},{"$f":"IF(Stock!#REF!<>\"\",$H420*Z420,\"\")","v":{"$error":"#REF!"}}]
[{"$f":"IF(Stock!#REF!<>\"\",Stock!#REF!,\"\")","v":{"$error":"#REF!"}},{"$f":"IF(Stock!#REF!<>\"\",Stock!#REF!,\"\")","v":{"$error":"#REF!"}},{"$f":"IF(Stock!#REF!<>\"\",Stock!#REF!,\"\")","v":{"$error":"#REF!"}},{"$f":"IF(Stock!#REF!<>\"\",SUM(Stock!#REF!,Stock!#REF!,Stock!#REF!),\"\")","v":{"$error":"#REF!"}},{"$f":"IF(Stock!#REF!<>\"\",#REF!*(1+Pilotage!$M$20),\"\")","v":{"$error":"#REF!"}},null,{"$f":"IF(Stock!#REF!<>\"\",IF(Stock!#REF!>0,Stock!#REF!/Stock!#REF!,0),\"\")","v":{"$error":"#REF!"}},{"$f":"IF(Stock!#REF!<>\"\",E421*Pilotage!$D$15,\"\")","v":{"$error":"#REF!"}},{"$f":"IF(Stock!#REF!<>\"\",IF(Stock!#REF!>0,Stock!#REF!,0),\"\")","v":{"$error":"#REF!"}},{"$f":"IF(Stock!#REF!<>\"\",Pilotage!$M$27,\"\")","v":{"$error":"#REF!"}},{"$f":"IF(Stock!#REF!<>\"\",ROUND(Stock!#REF!*J421,0),\"\")","v":{"$error":"#REF!"}},{"$f":"IF(Stock!#REF!<>\"\",$H421*K421,\"\")","v":{"$error":"#REF!"}},{"$f":"IF(Stock!#REF!<>\"\",Pilotage!N$27,\"\")","v":{"$error":"#REF!"}},{"$f":"IF(Stock!#REF!<>\"\",ROUND(K421*M421,0),\"\")","v":{"$error":"#REF!"}},{"$f":"IF(Stock!#REF!<>\"\",$H421*N421,\"\")","v":{"$error":"#REF!"}},{"$f":"IF(Stock!#REF!<>\"\",Pilotage!O$27,\"\")","v":{"$error":"#REF!"}},{"$f":"IF(Stock!#REF!<>\"\",ROUND(K421*P421,0),\"\")","v":{"$error":"#REF!"}},{"$f":"IF(Stock!#REF!<>\"\",$H421*Q421,\"\")","v":{"$error":"#REF!"}},{"$f":"IF(Stock!#REF!<>\"\",Pilotage!P$27,\"\")","v":{"$error":"#REF!"}},{"$f":"IF(Stock!#REF!<>\"\",ROUND(Q421*S421,0),\"\")","v":{"$error":"#REF!"}},{"$f":"IF(Stock!#REF!<>\"\",$H421*T421,\"\")","v":{"$error":"#REF!"}},{"$f":"IF(Stock!#REF!<>\"\",Pilotage!Q$27,\"\")","v":{"$error":"#REF!"}},{"$f":"IF(Stock!#REF!<>\"\",ROUND(T421*V421,0),\"\")","v":{"$error":"#REF!"}},{"$f":"IF(Stock!#REF!<>\"\",$H421*W421,\"\")","v":{"$error":"#REF!"}},{"$f":"IF(Stock!#REF!<>\"\",Pilotage!R$27,\"\")","v":{"$error":"#REF!"}},{"$f":"IF(Stock!#REF!<>\"\",ROUND(W421*Y421,0),\"\")","v":{"$error":"#REF!"}},{"$f":"IF(Stock!#REF!<>\"\",$H421*Z421,\"\")","v":{"$error":"#REF!"}}]
[{"$f":"IF(Stock!#REF!<>\"\",Stock!#REF!,\"\")","v":{"$error":"#REF!"}},{"$f":"IF(Stock!#REF!<>\"\",Stock!#REF!,\"\")","v":{"$error":"#REF!"}},{"$f":"IF(Stock!#REF!<>\"\",Stock!#REF!,\"\")","v":{"$error":"#REF!"}},{"$f":"IF(Stock!#REF!<>\"\",SUM(Stock!#REF!,Stock!#REF!,Stock!#REF!),\"\")","v":{"$error":"#REF!"}},{"$f":"IF(Stock!#REF!<>\"\",#REF!*(1+Pilotage!$M$20),\"\")","v":{"$error":"#REF!"}},null,{"$f":"IF(Stock!#REF!<>\"\",IF(Stock!#REF!>0,Stock!#REF!/Stock!#REF!,0),\"\")","v":{"$error":"#REF!"}},{"$f":"IF(Stock!#REF!<>\"\",E422*Pilotage!$D$15,\"\")","v":{"$error":"#REF!"}},{"$f":"IF(Stock!#REF!<>\"\",IF(Stock!#REF!>0,Stock!#REF!,0),\"\")","v":{"$error":"#REF!"}},{"$f":"IF(Stock!#REF!<>\"\",Pilotage!$M$27,\"\")","v":{"$error":"#REF!"}},{"$f":"IF(Stock!#REF!<>\"\",ROUND(Stock!#REF!*J422,0),\"\")","v":{"$error":"#REF!"}},{"$f":"IF(Stock!#REF!<>\"\",$H422*K422,\"\")","v":{"$error":"#REF!"}},{"$f":"IF(Stock!#REF!<>\"\",Pilotage!N$27,\"\")","v":{"$error":"#REF!"}},{"$f":"IF(Stock!#REF!<>\"\",ROUND(K422*M422,0),\"\")","v":{"$error":"#REF!"}},{"$f":"IF(Stock!#REF!<>\"\",$H422*N422,\"\")","v":{"$error":"#REF!"}},{"$f":"IF(Stock!#REF!<>\"\",Pilotage!O$27,\"\")","v":{"$error":"#REF!"}},{"$f":"IF(Stock!#REF!<>\"\",ROUND(K422*P422,0),\"\")","v":{"$error":"#REF!"}},{"$f":"IF(Stock!#REF!<>\"\",$H422*Q422,\"\")","v":{"$error":"#REF!"}},{"$f":"IF(Stock!#REF!<>\"\",Pilotage!P$27,\"\")","v":{"$error":"#REF!"}},{"$f":"IF(Stock!#REF!<>\"\",ROUND(Q422*S422,0),\"\")","v":{"$error":"#REF!"}},{"$f":"IF(Stock!#REF!<>\"\",$H422*T422,\"\")","v":{"$error":"#REF!"}},{"$f":"IF(Stock!#REF!<>\"\",Pilotage!Q$27,\"\")","v":{"$error":"#REF!"}},{"$f":"IF(Stock!#REF!<>\"\",ROUND(T422*V422,0),\"\")","v":{"$error":"#REF!"}},{"$f":"IF(Stock!#REF!<>\"\",$H422*W422,\"\")","v":{"$error":"#REF!"}},{"$f":"IF(Stock!#REF!<>\"\",Pilotage!R$27,\"\")","v":{"$error":"#REF!"}},{"$f":"IF(Stock!#REF!<>\"\",ROUND(W422*Y422,0),\"\")","v":{"$error":"#REF!"}},{"$f":"IF(Stock!#REF!<>\"\",$H422*Z422,\"\")","v":{"$error":"#REF!"}}]
[{"$f":"IF(Stock!#REF!<>\"\",Stock!#REF!,\"\")","v":{"$error":"#REF!"}},{"$f":"IF(Stock!#REF!<>\"\",Stock!#REF!,\"\")","v":{"$error":"#REF!"}},{"$f":"IF(Stock!#REF!<>\"\",Stock!#REF!,\"\")","v":{"$error":"#REF!"}},{"$f":"IF(Stock!#REF!<>\"\",SUM(Stock!#REF!,Stock!#REF!,Stock!#REF!),\"\")","v":{"$error":"#REF!"}},{"$f":"IF(Stock!#REF!<>\"\",#REF!*(1+Pilotage!$M$20),\"\")","v":{"$error":"#REF!"}},null,{"$f":"IF(Stock!#REF!<>\"\",IF(Stock!#REF!>0,Stock!#REF!/Stock!#REF!,0),\"\")","v":{"$error":"#REF!"}},{"$f":"IF(Stock!#REF!<>\"\",E423*Pilotage!$D$15,\"\")","v":{"$error":"#REF!"}},{"$f":"IF(Stock!#REF!<>\"\",IF(Stock!#REF!>0,Stock!#REF!,0),\"\")","v":{"$error":"#REF!"}},{"$f":"IF(Stock!#REF!<>\"\",Pilotage!$M$27,\"\")","v":{"$error":"#REF!"}},{"$f":"IF(Stock!#REF!<>\"\",ROUND(Stock!#REF!*J423,0),\"\")","v":{"$error":"#REF!"}},{"$f":"IF(Stock!#REF!<>\"\",$H423*K423,\"\")","v":{"$error":"#REF!"}},{"$f":"IF(Stock!#REF!<>\"\",Pilotage!N$27,\"\")","v":{"$error":"#REF!"}},{"$f":"IF(Stock!#REF!<>\"\",ROUND(K423*M423,0),\"\")","v":{"$error":"#REF!"}},{"$f":"IF(Stock!#REF!<>\"\",$H423*N423,\"\")","v":{"$error":"#REF!"}},{"$f":"IF(Stock!#REF!<>\"\",Pilotage!O$27,\"\")","v":{"$error":"#REF!"}},{"$f":"IF(Stock!#REF!<>\"\",ROUND(K423*P423,0),\"\")","v":{"$error":"#REF!"}},{"$f":"IF(Stock!#REF!<>\"\",$H423*Q423,\"\")","v":{"$error":"#REF!"}},{"$f":"IF(Stock!#REF!<>\"\",Pilotage!P$27,\"\")","v":{"$error":"#REF!"}},{"$f":"IF(Stock!#REF!<>\"\",ROUND(Q423*S423,0),\"\")","v":{"$error":"#REF!"}},{"$f":"IF(Stock!#REF!<>\"\",$H423*T423,\"\")","v":{"$error":"#REF!"}},{"$f":"IF(Stock!#REF!<>\"\",Pilotage!Q$27,\"\")","v":{"$error":"#REF!"}},{"$f":"IF(Stock!#REF!<>\"\",ROUND(T423*V423,0),\"\")","v":{"$error":"#REF!"}},{"$f":"IF(Stock!#REF!<>\"\",$H423*W423,\"\")","v":{"$error":"#REF!"}},{"$f":"IF(Stock!#REF!<>\"\",Pilotage!R$27,\"\")","v":{"$error":"#REF!"}},{"$f":"IF(Stock!#REF!<>\"\",ROUND(W423*Y423,0),\"\")","v":{"$error":"#REF!"}},{"$f":"IF(Stock!#REF!<>\"\",$H423*Z423,\"\")","v":{"$error":"#REF!"}}]
[{"$f":"IF(Stock!#REF!<>\"\",Stock!#REF!,\"\")","v":{"$error":"#REF!"}},{"$f":"IF(Stock!#REF!<>\"\",Stock!#REF!,\"\")","v":{"$error":"#REF!"}},{"$f":"IF(Stock!#REF!<>\"\",Stock!#REF!,\"\")","v":{"$error":"#REF!"}},{"$f":"IF(Stock!#REF!<>\"\",SUM(Stock!#REF!,Stock!#REF!,Stock!#REF!),\"\")","v":{"$error":"#REF!"}},{"$f":"IF(Stock!#REF!<>\"\",#REF!*(1+Pilotage!$M$20),\"\")","v":{"$error":"#REF!"}},null,{"$f":"IF(Stock!#REF!<>\"\",IF(Stock!#REF!>0,Stock!#REF!/Stock!#REF!,0),\"\")","v":{"$error":"#REF!"}},{"$f":"IF(Stock!#REF!<>\"\",E424*Pilotage!$D$15,\"\")","v":{"$error":"#REF!"}},{"$f":"IF(Stock!#REF!<>\"\",IF(Stock!#REF!>0,Stock!#REF!,0),\"\")","v":{"$error":"#REF!"}},{"$f":"IF(Stock!#REF!<>\"\",Pilotage!$M$27,\"\")","v":{"$error":"#REF!"}},{"$f":"IF(Stock!#REF!<>\"\",ROUND(Stock!#REF!*J424,0),\"\")","v":{"$error":"#REF!"}},{"$f":"IF(Stock!#REF!<>\"\",$H424*K424,\"\")","v":{"$error":"#REF!"}},{"$f":"IF(Stock!#REF!<>\"\",Pilotage!N$27,\"\")","v":{"$error":"#REF!"}},{"$f":"IF(Stock!#REF!<>\"\",ROUND(K424*M424,0),\"\")","v":{"$error":"#REF!"}},{"$f":"IF(Stock!#REF!<>\"\",$H424*N424,\"\")","v":{"$error":"#REF!"}},{"$f":"IF(Stock!#REF!<>\"\",Pilotage!O$27,\"\")","v":{"$error":"#REF!"}},{"$f":"IF(Stock!#REF!<>\"\",ROUND(K424*P424,0),\"\")","v":{"$error":"#REF!"}},{"$f":"IF(Stock!#REF!<>\"\",$H424*Q424,\"\")","v":{"$error":"#REF!"}},{"$f":"IF(Stock!#REF!<>\"\",Pilotage!P$27,\"\")","v":{"$error":"#REF!"}},{"$f":"IF(Stock!#REF!<>\"\",ROUND(Q424*S424,0),\"\")","v":{"$error":"#REF!"}},{"$f":"IF(Stock!#REF!<>\"\",$H424*T424,\"\")","v":{"$error":"#REF!"}},{"$f":"IF(Stock!#REF!<>\"\",Pilotage!Q$27,\"\")","v":{"$error":"#REF!"}},{"$f":"IF(Stock!#REF!<>\"\",ROUND(T424*V424,0),\"\")","v":{"$error":"#REF!"}},{"$f":"IF(Stock!#REF!<>\"\",$H424*W424,\"\")","v":{"$error":"#REF!"}},{"$f":"IF(Stock!#REF!<>\"\",Pilotage!R$27,\"\")","v":{"$error":"#REF!"}},{"$f":"IF(Stock!#REF!<>\"\",ROUND(W424*Y424,0),\"\")","v":{"$error":"#REF!"}},{"$f":"IF(Stock!#REF!<>\"\",$H424*Z424,\"\")","v":{"$error":"#REF!"}}]
[{"$f":"IF(Stock!#REF!<>\"\",Stock!#REF!,\"\")","v":{"$error":"#REF!"}},{"$f":"IF(Stock!#REF!<>\"\",Stock!#REF!,\"\")","v":{"$error":"#REF!"}},{"$f":"IF(Stock!#REF!<>\"\",Stock!#REF!,\"\")","v":{"$error":"#REF!"}},{"$f":"IF(Stock!#REF!<>\"\",SUM(Stock!#REF!,Stock!#REF!,Stock!#REF!),\"\")","v":{"$error":"#REF!"}},{"$f":"IF(Stock!#REF!<>\"\",#REF!*(1+Pilotage!$M$20),\"\")","v":{"$error":"#REF!"}},null,{"$f":"IF(Stock!#REF!<>\"\",IF(Stock!#REF!>0,Stock!#REF!/Stock!#REF!,0),\"\")","v":{"$error":"#REF!"}},{"$f":"IF(Stock!#REF!<>\"\",E425*Pilotage!$D$15,\"\")","v":{"$error":"#REF!"}},{"$f":"IF(Stock!#REF!<>\"\",IF(Stock!#REF!>0,Stock!#REF!,0),\"\")","v":{"$error":"#REF!"}},{"$f":"IF(Stock!#REF!<>\"\",Pilotage!$M$27,\"\")","v":{"$error":"#REF!"}},{"$f":"IF(Stock!#REF!<>\"\",ROUND(Stock!#REF!*J425,0),\"\")","v":{"$error":"#REF!"}},{"$f":"IF(Stock!#REF!<>\"\",$H425*K425,\"\")","v":{"$error":"#REF!"}},{"$f":"IF(Stock!#REF!<>\"\",Pilotage!N$27,\"\")","v":{"$error":"#REF!"}},{"$f":"IF(Stock!#REF!<>\"\",ROUND(K425*M425,0),\"\")","v":{"$error":"#REF!"}},{"$f":"IF(Stock!#REF!<>\"\",$H425*N425,\"\")","v":{"$error":"#REF!"}},{"$f":"IF(Stock!#REF!<>\"\",Pilotage!O$27,\"\")","v":{"$error":"#REF!"}},{"$f":"IF(Stock!#REF!<>\"\",ROUND(K425*P425,0),\"\")","v":{"$error":"#REF!"}},{"$f":"IF(Stock!#REF!<>\"\",$H425*Q425,\"\")","v":{"$error":"#REF!"}},{"$f":"IF(Stock!#REF!<>\"\",Pilotage!P$27,\"\")","v":{"$error":"#REF!"}},{"$f":"IF(Stock!#REF!<>\"\",ROUND(Q425*S425,0),\"\")","v":{"$error":"#REF!"}},{"$f":"IF(Stock!#REF!<>\"\",$H425*T425,\"\")","v":{"$error":"#REF!"}},{"$f":"IF(Stock!#REF!<>\"\",Pilotage!Q$27,\"\")","v":{"$error":"#REF!"}},{"$f":"IF(Stock!#REF!<>\"\",ROUND(T425*V425,0),\"\")","v":{"$error":"#REF!"}},{"$f":"IF(Stock!#REF!<>\"\",$H425*W425,\"\")","v":{"$error":"#REF!"}},{"$f":"IF(Stock!#REF!<>\"\",Pilotage!R$27,\"\")","v":{"$error":"#REF!"}},{"$f":"IF(Stock!#REF!<>\"\",ROUND(W425*Y425,0),\"\")","v":{"$error":"#REF!"}},{"$f":"IF(Stock!#REF!<>\"\",$H425*Z425,\"\")","v":{"$error":"#REF!"}}]
[{"$f":"IF(Stock!#REF!<>\"\",Stock!#REF!,\"\")","v":{"$error":"#REF!"}},{"$f":"IF(Stock!#REF!<>\"\",Stock!#REF!,\"\")","v":{"$error":"#REF!"}},{"$f":"IF(Stock!#REF!<>\"\",Stock!#REF!,\"\")","v":{"$error":"#REF!"}},{"$f":"IF(Stock!#REF!<>\"\",SUM(Stock!#REF!,Stock!#REF!,Stock!#REF!),\"\")","v":{"$error":"#REF!"}},{"$f":"IF(Stock!#REF!<>\"\",#REF!*(1+Pilotage!$M$20),\"\")","v":{"$error":"#REF!"}},null,{"$f":"IF(Stock!#REF!<>\"\",IF(Stock!#REF!>0,Stock!#REF!/Stock!#REF!,0),\"\")","v":{"$error":"#REF!"}},{"$f":"IF(Stock!#REF!<>\"\",E426*Pilotage!$D$15,\"\")","v":{"$error":"#REF!"}},{"$f":"IF(Stock!#REF!<>\"\",IF(Stock!#REF!>0,Stock!#REF!,0),\"\")","v":{"$error":"#REF!"}},{"$f":"IF(Stock!#REF!<>\"\",Pilotage!$M$27,\"\")","v":{"$error":"#REF!"}},{"$f":"IF(Stock!#REF!<>\"\",ROUND(Stock!#REF!*J426,0),\"\")","v":{"$error":"#REF!"}},{"$f":"IF(Stock!#REF!<>\"\",$H426*K426,\"\")","v":{"$error":"#REF!"}},{"$f":"IF(Stock!#REF!<>\"\",Pilotage!N$27,\"\")","v":{"$error":"#REF!"}},{"$f":"IF(Stock!#REF!<>\"\",ROUND(K426*M426,0),\"\")","v":{"$error":"#REF!"}},{"$f":"IF(Stock!#REF!<>\"\",$H426*N426,\"\")","v":{"$error":"#REF!"}},{"$f":"IF(Stock!#REF!<>\"\",Pilotage!O$27,\"\")","v":{"$error":"#REF!"}},{"$f":"IF(Stock!#REF!<>\"\",ROUND(K426*P426,0),\"\")","v":{"$error":"#REF!"}},{"$f":"IF(Stock!#REF!<>\"\",$H426*Q426,\"\")","v":{"$error":"#REF!"}},{"$f":"IF(Stock!#REF!<>\"\",Pilotage!P$27,\"\")","v":{"$error":"#REF!"}},{"$f":"IF(Stock!#REF!<>\"\",ROUND(Q426*S426,0),\"\")","v":{"$error":"#REF!"}},{"$f":"IF(Stock!#REF!<>\"\",$H426*T426,\"\")","v":{"$error":"#REF!"}},{"$f":"IF(Stock!#REF!<>\"\",Pilotage!Q$27,\"\")","v":{"$error":"#REF!"}},{"$f":"IF(Stock!#REF!<>\"\",ROUND(T426*V426,0),\"\")","v":{"$error":"#REF!"}},{"$f":"IF(Stock!#REF!<>\"\",$H426*W426,\"\")","v":{"$error":"#REF!"}},{"$f":"IF(Stock!#REF!<>\"\",Pilotage!R$27,\"\")","v":{"$error":"#REF!"}},{"$f":"IF(Stock!#REF!<>\"\",ROUND(W426*Y426,0),\"\")","v":{"$error":"#REF!"}},{"$f":"IF(Stock!#REF!<>\"\",$H426*Z426,\"\")","v":{"$error":"#REF!"}}]
[{"$f":"IF(Stock!#REF!<>\"\",Stock!#REF!,\"\")","v":{"$error":"#REF!"}},{"$f":"IF(Stock!#REF!<>\"\",Stock!#REF!,\"\")","v":{"$error":"#REF!"}},{"$f":"IF(Stock!#REF!<>\"\",Stock!#REF!,\"\")","v":{"$error":"#REF!"}},{"$f":"IF(Stock!#REF!<>\"\",SUM(Stock!#REF!,Stock!#REF!,Stock!#REF!),\"\")","v":{"$error":"#REF!"}},{"$f":"IF(Stock!#REF!<>\"\",#REF!*(1+Pilotage!$M$20),\"\")","v":{"$error":"#REF!"}},null,{"$f":"IF(Stock!#REF!<>\"\",IF(Stock!#REF!>0,Stock!#REF!/Stock!#REF!,0),\"\")","v":{"$error":"#REF!"}},{"$f":"IF(Stock!#REF!<>\"\",E427*Pilotage!$D$15,\"\")","v":{"$error":"#REF!"}},{"$f":"IF(Stock!#REF!<>\"\",IF(Stock!#REF!>0,Stock!#REF!,0),\"\")","v":{"$error":"#REF!"}},{"$f":"IF(Stock!#REF!<>\"\",Pilotage!$M$27,\"\")","v":{"$error":"#REF!"}},{"$f":"IF(Stock!#REF!<>\"\",ROUND(Stock!#REF!*J427,0),\"\")","v":{"$error":"#REF!"}},{"$f":"IF(Stock!#REF!<>\"\",$H427*K427,\"\")","v":{"$error":"#REF!"}},{"$f":"IF(Stock!#REF!<>\"\",Pilotage!N$27,\"\")","v":{"$error":"#REF!"}},{"$f":"IF(Stock!#REF!<>\"\",ROUND(K427*M427,0),\"\")","v":{"$error":"#REF!"}},{"$f":"IF(Stock!#REF!<>\"\",$H427*N427,\"\")","v":{"$error":"#REF!"}},{"$f":"IF(Stock!#REF!<>\"\",Pilotage!O$27,\"\")","v":{"$error":"#REF!"}},{"$f":"IF(Stock!#REF!<>\"\",ROUND(K427*P427,0),\"\")","v":{"$error":"#REF!"}},{"$f":"IF(Stock!#REF!<>\"\",$H427*Q427,\"\")","v":{"$error":"#REF!"}},{"$f":"IF(Stock!#REF!<>\"\",Pilotage!P$27,\"\")","v":{"$error":"#REF!"}},{"$f":"IF(Stock!#REF!<>\"\",ROUND(Q427*S427,0),\"\")","v":{"$error":"#REF!"}},{"$f":"IF(Stock!#REF!<>\"\",$H427*T427,\"\")","v":{"$error":"#REF!"}},{"$f":"IF(Stock!#REF!<>\"\",Pilotage!Q$27,\"\")","v":{"$error":"#REF!"}},{"$f":"IF(Stock!#REF!<>\"\",ROUND(T427*V427,0),\"\")","v":{"$error":"#REF!"}},{"$f":"IF(Stock!#REF!<>\"\",$H427*W427,\"\")","v":{"$error":"#REF!"}},{"$f":"IF(Stock!#REF!<>\"\",Pilotage!R$27,\"\")","v":{"$error":"#REF!"}},{"$f":"IF(Stock!#REF!<>\"\",ROUND(W427*Y427,0),\"\")","v":{"$error":"#REF!"}},{"$f":"IF(Stock!#REF!<>\"\",$H427*Z427,\"\")","v":{"$error":"#REF!"}}]
[{"$f":"IF(Stock!#REF!<>\"\",Stock!#REF!,\"\")","v":{"$error":"#REF!"}},{"$f":"IF(Stock!#REF!<>\"\",Stock!#REF!,\"\")","v":{"$error":"#REF!"}},{"$f":"IF(Stock!#REF!<>\"\",Stock!#REF!,\"\")","v":{"$error":"#REF!"}},{"$f":"IF(Stock!#REF!<>\"\",SUM(Stock!#REF!,Stock!#REF!,Stock!#REF!),\"\")","v":{"$error":"#REF!"}},{"$f":"IF(Stock!#REF!<>\"\",#REF!*(1+Pilotage!$M$20),\"\")","v":{"$error":"#REF!"}},null,{"$f":"IF(Stock!#REF!<>\"\",IF(Stock!#REF!>0,Stock!#REF!/Stock!#REF!,0),\"\")","v":{"$error":"#REF!"}},{"$f":"IF(Stock!#REF!<>\"\",E428*Pilotage!$D$15,\"\")","v":{"$error":"#REF!"}},{"$f":"IF(Stock!#REF!<>\"\",IF(Stock!#REF!>0,Stock!#REF!,0),\"\")","v":{"$error":"#REF!"}},{"$f":"IF(Stock!#REF!<>\"\",Pilotage!$M$27,\"\")","v":{"$error":"#REF!"}},{"$f":"IF(Stock!#REF!<>\"\",ROUND(Stock!#REF!*J428,0),\"\")","v":{"$error":"#REF!"}},{"$f":"IF(Stock!#REF!<>\"\",$H428*K428,\"\")","v":{"$error":"#REF!"}},{"$f":"IF(Stock!#REF!<>\"\",Pilotage!N$27,\"\")","v":{"$error":"#REF!"}},{"$f":"IF(Stock!#REF!<>\"\",ROUND(K428*M428,0),\"\")","v":{"$error":"#REF!"}},{"$f":"IF(Stock!#REF!<>\"\",$H428*N428,\"\")","v":{"$error":"#REF!"}},{"$f":"IF(Stock!#REF!<>\"\",Pilotage!O$27,\"\")","v":{"$error":"#REF!"}},{"$f":"IF(Stock!#REF!<>\"\",ROUND(K428*P428,0),\"\")","v":{"$error":"#REF!"}},{"$f":"IF(Stock!#REF!<>\"\",$H428*Q428,\"\")","v":{"$error":"#REF!"}},{"$f":"IF(Stock!#REF!<>\"\",Pilotage!P$27,\"\")","v":{"$error":"#REF!"}},{"$f":"IF(Stock!#REF!<>\"\",ROUND(Q428*S428,0),\"\")","v":{"$error":"#REF!"}},{"$f":"IF(Stock!#REF!<>\"\",$H428*T428,\"\")","v":{"$error":"#REF!"}},{"$f":"IF(Stock!#REF!<>\"\",Pilotage!Q$27,\"\")","v":{"$error":"#REF!"}},{"$f":"IF(Stock!#REF!<>\"\",ROUND(T428*V428,0),\"\")","v":{"$error":"#REF!"}},{"$f":"IF(Stock!#REF!<>\"\",$H428*W428,\"\")","v":{"$error":"#REF!"}},{"$f":"IF(Stock!#REF!<>\"\",Pilotage!R$27,\"\")","v":{"$error":"#REF!"}},{"$f":"IF(Stock!#REF!<>\"\",ROUND(W428*Y428,0),\"\")","v":{"$error":"#REF!"}},{"$f":"IF(Stock!#REF!<>\"\",$H428*Z428,\"\")","v":{"$error":"#REF!"}}]
[{"$f":"IF(Stock!#REF!<>\"\",Stock!#REF!,\"\")","v":{"$error":"#REF!"}},{"$f":"IF(Stock!#REF!<>\"\",Stock!#REF!,\"\")","v":{"$error":"#REF!"}},{"$f":"IF(Stock!#REF!<>\"\",Stock!#REF!,\"\")","v":{"$error":"#REF!"}},{"$f":"IF(Stock!#REF!<>\"\",SUM(Stock!#REF!,Stock!#REF!,Stock!#REF!),\"\")","v":{"$error":"#REF!"}},{"$f":"IF(Stock!#REF!<>\"\",#REF!*(1+Pilotage!$M$20),\"\")","v":{"$error":"#REF!"}},null,{"$f":"IF(Stock!#REF!<>\"\",IF(Stock!#REF!>0,Stock!#REF!/Stock!#REF!,0),\"\")","v":{"$error":"#REF!"}},{"$f":"IF(Stock!#REF!<>\"\",E429*Pilotage!$D$15,\"\")","v":{"$error":"#REF!"}},{"$f":"IF(Stock!#REF!<>\"\",IF(Stock!#REF!>0,Stock!#REF!,0),\"\")","v":{"$error":"#REF!"}},{"$f":"IF(Stock!#REF!<>\"\",Pilotage!$M$27,\"\")","v":{"$error":"#REF!"}},{"$f":"IF(Stock!#REF!<>\"\",ROUND(Stock!#REF!*J429,0),\"\")","v":{"$error":"#REF!"}},{"$f":"IF(Stock!#REF!<>\"\",$H429*K429,\"\")","v":{"$error":"#REF!"}},{"$f":"IF(Stock!#REF!<>\"\",Pilotage!N$27,\"\")","v":{"$error":"#REF!"}},{"$f":"IF(Stock!#REF!<>\"\",ROUND(K429*M429,0),\"\")","v":{"$error":"#REF!"}},{"$f":"IF(Stock!#REF!<>\"\",$H429*N429,\"\")","v":{"$error":"#REF!"}},{"$f":"IF(Stock!#REF!<>\"\",Pilotage!O$27,\"\")","v":{"$error":"#REF!"}},{"$f":"IF(Stock!#REF!<>\"\",ROUND(K429*P429,0),\"\")","v":{"$error":"#REF!"}},{"$f":"IF(Stock!#REF!<>\"\",$H429*Q429,\"\")","v":{"$error":"#REF!"}},{"$f":"IF(Stock!#REF!<>\"\",Pilotage!P$27,\"\")","v":{"$error":"#REF!"}},{"$f":"IF(Stock!#REF!<>\"\",ROUND(Q429*S429,0),\"\")","v":{"$error":"#REF!"}},{"$f":"IF(Stock!#REF!<>\"\",$H429*T429,\"\")","v":{"$error":"#REF!"}},{"$f":"IF(Stock!#REF!<>\"\",Pilotage!Q$27,\"\")","v":{"$error":"#REF!"}},{"$f":"IF(Stock!#REF!<>\"\",ROUND(T429*V429,0),\"\")","v":{"$error":"#REF!"}},{"$f":"IF(Stock!#REF!<>\"\",$H429*W429,\"\")","v":{"$error":"#REF!"}},{"$f":"IF(Stock!#REF!<>\"\",Pilotage!R$27,\"\")","v":{"$error":"#REF!"}},{"$f":"IF(Stock!#REF!<>\"\",ROUND(W429*Y429,0),\"\")","v":{"$error":"#REF!"}},{"$f":"IF(Stock!#REF!<>\"\",$H429*Z429,\"\")","v":{"$error":"#REF!"}}]
[{"$f":"IF(Stock!#REF!<>\"\",Stock!#REF!,\"\")","v":{"$error":"#REF!"}},{"$f":"IF(Stock!#REF!<>\"\",Stock!#REF!,\"\")","v":{"$error":"#REF!"}},{"$f":"IF(Stock!#REF!<>\"\",Stock!#REF!,\"\")","v":{"$error":"#REF!"}},{"$f":"IF(Stock!#REF!<>\"\",SUM(Stock!#REF!,Stock!#REF!,Stock!#REF!),\"\")","v":{"$error":"#REF!"}},{"$f":"IF(Stock!#REF!<>\"\",#REF!*(1+Pilotage!$M$20),\"\")","v":{"$error":"#REF!"}},null,{"$f":"IF(Stock!#REF!<>\"\",IF(Stock!#REF!>0,Stock!#REF!/Stock!#REF!,0),\"\")","v":{"$error":"#REF!"}},{"$f":"IF(Stock!#REF!<>\"\",E430*Pilotage!$D$15,\"\")","v":{"$error":"#REF!"}},{"$f":"IF(Stock!#REF!<>\"\",IF(Stock!#REF!>0,Stock!#REF!,0),\"\")","v":{"$error":"#REF!"}},{"$f":"IF(Stock!#REF!<>\"\",Pilotage!$M$27,\"\")","v":{"$error":"#REF!"}},{"$f":"IF(Stock!#REF!<>\"\",ROUND(Stock!#REF!*J430,0),\"\")","v":{"$error":"#REF!"}},{"$f":"IF(Stock!#REF!<>\"\",$H430*K430,\"\")","v":{"$error":"#REF!"}},{"$f":"IF(Stock!#REF!<>\"\",Pilotage!N$27,\"\")","v":{"$error":"#REF!"}},{"$f":"IF(Stock!#REF!<>\"\",ROUND(K430*M430,0),\"\")","v":{"$error":"#REF!"}},{"$f":"IF(Stock!#REF!<>\"\",$H430*N430,\"\")","v":{"$error":"#REF!"}},{"$f":"IF(Stock!#REF!<>\"\",Pilotage!O$27,\"\")","v":{"$error":"#REF!"}},{"$f":"IF(Stock!#REF!<>\"\",ROUND(K430*P430,0),\"\")","v":{"$error":"#REF!"}},{"$f":"IF(Stock!#REF!<>\"\",$H430*Q430,\"\")","v":{"$error":"#REF!"}},{"$f":"IF(Stock!#REF!<>\"\",Pilotage!P$27,\"\")","v":{"$error":"#REF!"}},{"$f":"IF(Stock!#REF!<>\"\",ROUND(Q430*S430,0),\"\")","v":{"$error":"#REF!"}},{"$f":"IF(Stock!#REF!<>\"\",$H430*T430,\"\")","v":{"$error":"#REF!"}},{"$f":"IF(Stock!#REF!<>\"\",Pilotage!Q$27,\"\")","v":{"$error":"#REF!"}},{"$f":"IF(Stock!#REF!<>\"\",ROUND(T430*V430,0),\"\")","v":{"$error":"#REF!"}},{"$f":"IF(Stock!#REF!<>\"\",$H430*W430,\"\")","v":{"$error":"#REF!"}},{"$f":"IF(Stock!#REF!<>\"\",Pilotage!R$27,\"\")","v":{"$error":"#REF!"}},{"$f":"IF(Stock!#REF!<>\"\",ROUND(W430*Y430,0),\"\")","v":{"$error":"#REF!"}},{"$f":"IF(Stock!#REF!<>\"\",$H430*Z430,\"\")","v":{"$error":"#REF!"}}]
[{"$f":"IF(Stock!#REF!<>\"\",Stock!#REF!,\"\")","v":{"$error":"#REF!"}},{"$f":"IF(Stock!#REF!<>\"\",Stock!#REF!,\"\")","v":{"$error":"#REF!"}},{"$f":"IF(Stock!#REF!<>\"\",Stock!#REF!,\"\")","v":{"$error":"#REF!"}},{"$f":"IF(Stock!#REF!<>\"\",SUM(Stock!#REF!,Stock!#REF!,Stock!#REF!),\"\")","v":{"$error":"#REF!"}},{"$f":"IF(Stock!#REF!<>\"\",#REF!*(1+Pilotage!$M$20),\"\")","v":{"$error":"#REF!"}},null,{"$f":"IF(Stock!#REF!<>\"\",IF(Stock!#REF!>0,Stock!#REF!/Stock!#REF!,0),\"\")","v":{"$error":"#REF!"}},{"$f":"IF(Stock!#REF!<>\"\",E431*Pilotage!$D$15,\"\")","v":{"$error":"#REF!"}},{"$f":"IF(Stock!#REF!<>\"\",IF(Stock!#REF!>0,Stock!#REF!,0),\"\")","v":{"$error":"#REF!"}},{"$f":"IF(Stock!#REF!<>\"\",Pilotage!$M$27,\"\")","v":{"$error":"#REF!"}},{"$f":"IF(Stock!#REF!<>\"\",ROUND(Stock!#REF!*J431,0),\"\")","v":{"$error":"#REF!"}},{"$f":"IF(Stock!#REF!<>\"\",$H431*K431,\"\")","v":{"$error":"#REF!"}},{"$f":"IF(Stock!#REF!<>\"\",Pilotage!N$27,\"\")","v":{"$error":"#REF!"}},{"$f":"IF(Stock!#REF!<>\"\",ROUND(K431*M431,0),\"\")","v":{"$error":"#REF!"}},{"$f":"IF(Stock!#REF!<>\"\",$H431*N431,\"\")","v":{"$error":"#REF!"}},{"$f":"IF(Stock!#REF!<>\"\",Pilotage!O$27,\"\")","v":{"$error":"#REF!"}},{"$f":"IF(Stock!#REF!<>\"\",ROUND(K431*P431,0),\"\")","v":{"$error":"#REF!"}},{"$f":"IF(Stock!#REF!<>\"\",$H431*Q431,\"\")","v":{"$error":"#REF!"}},{"$f":"IF(Stock!#REF!<>\"\",Pilotage!P$27,\"\")","v":{"$error":"#REF!"}},{"$f":"IF(Stock!#REF!<>\"\",ROUND(Q431*S431,0),\"\")","v":{"$error":"#REF!"}},{"$f":"IF(Stock!#REF!<>\"\",$H431*T431,\"\")","v":{"$error":"#REF!"}},{"$f":"IF(Stock!#REF!<>\"\",Pilotage!Q$27,\"\")","v":{"$error":"#REF!"}},{"$f":"IF(Stock!#REF!<>\"\",ROUND(T431*V431,0),\"\")","v":{"$error":"#REF!"}},{"$f":"IF(Stock!#REF!<>\"\",$H431*W431,\"\")","v":{"$error":"#REF!"}},{"$f":"IF(Stock!#REF!<>\"\",Pilotage!R$27,\"\")","v":{"$error":"#REF!"}},{"$f":"IF(Stock!#REF!<>\"\",ROUND(W431*Y431,0),\"\")","v":{"$error":"#REF!"}},{"$f":"IF(Stock!#REF!<>\"\",$H431*Z431,\"\")","v":{"$error":"#REF!"}}]
[{"$f":"IF(Stock!#REF!<>\"\",Stock!#REF!,\"\")","v":{"$error":"#REF!"}},{"$f":"IF(Stock!#REF!<>\"\",Stock!#REF!,\"\")","v":{"$error":"#REF!"}},{"$f":"IF(Stock!#REF!<>\"\",Stock!#REF!,\"\")","v":{"$error":"#REF!"}},{"$f":"IF(Stock!#REF!<>\"\",SUM(Stock!#REF!,Stock!#REF!,Stock!#REF!),\"\")","v":{"$error":"#REF!"}},{"$f":"IF(Stock!#REF!<>\"\",#REF!*(1+Pilotage!$M$20),\"\")","v":{"$error":"#REF!"}},null,{"$f":"IF(Stock!#REF!<>\"\",IF(Stock!#REF!>0,Stock!#REF!/Stock!#REF!,0),\"\")","v":{"$error":"#REF!"}},{"$f":"IF(Stock!#REF!<>\"\",E432*Pilotage!$D$15,\"\")","v":{"$error":"#REF!"}},{"$f":"IF(Stock!#REF!<>\"\",IF(Stock!#REF!>0,Stock!#REF!,0),\"\")","v":{"$error":"#REF!"}},{"$f":"IF(Stock!#REF!<>\"\",Pilotage!$M$27,\"\")","v":{"$error":"#REF!"}},{"$f":"IF(Stock!#REF!<>\"\",ROUND(Stock!#REF!*J432,0),\"\")","v":{"$error":"#REF!"}},{"$f":"IF(Stock!#REF!<>\"\",$H432*K432,\"\")","v":{"$error":"#REF!"}},{"$f":"IF(Stock!#REF!<>\"\",Pilotage!N$27,\"\")","v":{"$error":"#REF!"}},{"$f":"IF(Stock!#REF!<>\"\",ROUND(K432*M432,0),\"\")","v":{"$error":"#REF!"}},{"$f":"IF(Stock!#REF!<>\"\",$H432*N432,\"\")","v":{"$error":"#REF!"}},{"$f":"IF(Stock!#REF!<>\"\",Pilotage!O$27,\"\")","v":{"$error":"#REF!"}},{"$f":"IF(Stock!#REF!<>\"\",ROUND(K432*P432,0),\"\")","v":{"$error":"#REF!"}},{"$f":"IF(Stock!#REF!<>\"\",$H432*Q432,\"\")","v":{"$error":"#REF!"}},{"$f":"IF(Stock!#REF!<>\"\",Pilotage!P$27,\"\")","v":{"$error":"#REF!"}},{"$f":"IF(Stock!#REF!<>\"\",ROUND(Q432*S432,0),\"\")","v":{"$error":"#REF!"}},{"$f":"IF(Stock!#REF!<>\"\",$H432*T432,\"\")","v":{"$error":"#REF!"}},{"$f":"IF(Stock!#REF!<>\"\",Pilotage!Q$27,\"\")","v":{"$error":"#REF!"}},{"$f":"IF(Stock!#REF!<>\"\",ROUND(T432*V432,0),\"\")","v":{"$error":"#REF!"}},{"$f":"IF(Stock!#REF!<>\"\",$H432*W432,\"\")","v":{"$error":"#REF!"}},{"$f":"IF(Stock!#REF!<>\"\",Pilotage!R$27,\"\")","v":{"$error":"#REF!"}},{"$f":"IF(Stock!#REF!<>\"\",ROUND(W432*Y432,0),\"\")","v":{"$error":"#REF!"}},{"$f":"IF(Stock!#REF!<>\"\",$H432*Z432,\"\")","v":{"$error":"#REF!"}}]
[{"$f":"IF(Stock!#REF!<>\"\",Stock!#REF!,\"\")","v":{"$error":"#REF!"}},{"$f":"IF(Stock!#REF!<>\"\",Stock!#REF!,\"\")","v":{"$error":"#REF!"}},{"$f":"IF(Stock!#REF!<>\"\",Stock!#REF!,\"\")","v":{"$error":"#REF!"}},{"$f":"IF(Stock!#REF!<>\"\",SUM(Stock!#REF!,Stock!#REF!,Stock!#REF!),\"\")","v":{"$error":"#REF!"}},{"$f":"IF(Stock!#REF!<>\"\",#REF!*(1+Pilotage!$M$20),\"\")","v":{"$error":"#REF!"}},null,{"$f":"IF(Stock!#REF!<>\"\",IF(Stock!#REF!>0,Stock!#REF!/Stock!#REF!,0),\"\")","v":{"$error":"#REF!"}},{"$f":"IF(Stock!#REF!<>\"\",E433*Pilotage!$D$15,\"\")","v":{"$error":"#REF!"}},{"$f":"IF(Stock!#REF!<>\"\",IF(Stock!#REF!>0,Stock!#REF!,0),\"\")","v":{"$error":"#REF!"}},{"$f":"IF(Stock!#REF!<>\"\",Pilotage!$M$27,\"\")","v":{"$error":"#REF!"}},{"$f":"IF(Stock!#REF!<>\"\",ROUND(Stock!#REF!*J433,0),\"\")","v":{"$error":"#REF!"}},{"$f":"IF(Stock!#REF!<>\"\",$H433*K433,\"\")","v":{"$error":"#REF!"}},{"$f":"IF(Stock!#REF!<>\"\",Pilotage!N$27,\"\")","v":{"$error":"#REF!"}},{"$f":"IF(Stock!#REF!<>\"\",ROUND(K433*M433,0),\"\")","v":{"$error":"#REF!"}},{"$f":"IF(Stock!#REF!<>\"\",$H433*N433,\"\")","v":{"$error":"#REF!"}},{"$f":"IF(Stock!#REF!<>\"\",Pilotage!O$27,\"\")","v":{"$error":"#REF!"}},{"$f":"IF(Stock!#REF!<>\"\",ROUND(K433*P433,0),\"\")","v":{"$error":"#REF!"}},{"$f":"IF(Stock!#REF!<>\"\",$H433*Q433,\"\")","v":{"$error":"#REF!"}},{"$f":"IF(Stock!#REF!<>\"\",Pilotage!P$27,\"\")","v":{"$error":"#REF!"}},{"$f":"IF(Stock!#REF!<>\"\",ROUND(Q433*S433,0),\"\")","v":{"$error":"#REF!"}},{"$f":"IF(Stock!#REF!<>\"\",$H433*T433,\"\")","v":{"$error":"#REF!"}},{"$f":"IF(Stock!#REF!<>\"\",Pilotage!Q$27,\"\")","v":{"$error":"#REF!"}},{"$f":"IF(Stock!#REF!<>\"\",ROUND(T433*V433,0),\"\")","v":{"$error":"#REF!"}},{"$f":"IF(Stock!#REF!<>\"\",$H433*W433,\"\")","v":{"$error":"#REF!"}},{"$f":"IF(Stock!#REF!<>\"\",Pilotage!R$27,\"\")","v":{"$error":"#REF!"}},{"$f":"IF(Stock!#REF!<>\"\",ROUND(W433*Y433,0),\"\")","v":{"$error":"#REF!"}},{"$f":"IF(Stock!#REF!<>\"\",$H433*Z433,\"\")","v":{"$error":"#REF!"}}]
[{"$f":"IF(Stock!#REF!<>\"\",Stock!#REF!,\"\")","v":{"$error":"#REF!"}},{"$f":"IF(Stock!#REF!<>\"\",Stock!#REF!,\"\")","v":{"$error":"#REF!"}},{"$f":"IF(Stock!#REF!<>\"\",Stock!#REF!,\"\")","v":{"$error":"#REF!"}},{"$f":"IF(Stock!#REF!<>\"\",SUM(Stock!#REF!,Stock!#REF!,Stock!#REF!),\"\")","v":{"$error":"#REF!"}},{"$f":"IF(Stock!#REF!<>\"\",#REF!*(1+Pilotage!$M$20),\"\")","v":{"$error":"#REF!"}},null,{"$f":"IF(Stock!#REF!<>\"\",IF(Stock!#REF!>0,Stock!#REF!/Stock!#REF!,0),\"\")","v":{"$error":"#REF!"}},{"$f":"IF(Stock!#REF!<>\"\",E434*Pilotage!$D$15,\"\")","v":{"$error":"#REF!"}},{"$f":"IF(Stock!#REF!<>\"\",IF(Stock!#REF!>0,Stock!#REF!,0),\"\")","v":{"$error":"#REF!"}},{"$f":"IF(Stock!#REF!<>\"\",Pilotage!$M$27,\"\")","v":{"$error":"#REF!"}},{"$f":"IF(Stock!#REF!<>\"\",ROUND(Stock!#REF!*J434,0),\"\")","v":{"$error":"#REF!"}},{"$f":"IF(Stock!#REF!<>\"\",$H434*K434,\"\")","v":{"$error":"#REF!"}},{"$f":"IF(Stock!#REF!<>\"\",Pilotage!N$27,\"\")","v":{"$error":"#REF!"}},{"$f":"IF(Stock!#REF!<>\"\",ROUND(K434*M434,0),\"\")","v":{"$error":"#REF!"}},{"$f":"IF(Stock!#REF!<>\"\",$H434*N434,\"\")","v":{"$error":"#REF!"}},{"$f":"IF(Stock!#REF!<>\"\",Pilotage!O$27,\"\")","v":{"$error":"#REF!"}},{"$f":"IF(Stock!#REF!<>\"\",ROUND(K434*P434,0),\"\")","v":{"$error":"#REF!"}},{"$f":"IF(Stock!#REF!<>\"\",$H434*Q434,\"\")","v":{"$error":"#REF!"}},{"$f":"IF(Stock!#REF!<>\"\",Pilotage!P$27,\"\")","v":{"$error":"#REF!"}},{"$f":"IF(Stock!#REF!<>\"\",ROUND(Q434*S434,0),\"\")","v":{"$error":"#REF!"}},{"$f":"IF(Stock!#REF!<>\"\",$H434*T434,\"\")","v":{"$error":"#REF!"}},{"$f":"IF(Stock!#REF!<>\"\",Pilotage!Q$27,\"\")","v":{"$error":"#REF!"}},{"$f":"IF(Stock!#REF!<>\"\",ROUND(T434*V434,0),\"\")","v":{"$error":"#REF!"}},{"$f":"IF(Stock!#REF!<>\"\",$H434*W434,\"\")","v":{"$error":"#REF!"}},{"$f":"IF(Stock!#REF!<>\"\",Pilotage!R$27,\"\")","v":{"$error":"#REF!"}},{"$f":"IF(Stock!#REF!<>\"\",ROUND(W434*Y434,0),\"\")","v":{"$error":"#REF!"}},{"$f":"IF(Stock!#REF!<>\"\",$H434*Z434,\"\")","v":{"$error":"#REF!"}}]
[{"$f":"IF(Stock!#REF!<>\"\",Stock!#REF!,\"\")","v":{"$error":"#REF!"}},{"$f":"IF(Stock!#REF!<>\"\",Stock!#REF!,\"\")","v":{"$error":"#REF!"}},{"$f":"IF(Stock!#REF!<>\"\",Stock!#REF!,\"\")","v":{"$error":"#REF!"}},{"$f":"IF(Stock!#REF!<>\"\",SUM(Stock!#REF!,Stock!#REF!,Stock!#REF!),\"\")","v":{"$error":"#REF!"}},{"$f":"IF(Stock!#REF!<>\"\",#REF!*(1+Pilotage!$M$20),\"\")","v":{"$error":"#REF!"}},null,{"$f":"IF(Stock!#REF!<>\"\",IF(Stock!#REF!>0,Stock!#REF!/Stock!#REF!,0),\"\")","v":{"$error":"#REF!"}},{"$f":"IF(Stock!#REF!<>\"\",E435*Pilotage!$D$15,\"\")","v":{"$error":"#REF!"}},{"$f":"IF(Stock!#REF!<>\"\",IF(Stock!#REF!>0,Stock!#REF!,0),\"\")","v":{"$error":"#REF!"}},{"$f":"IF(Stock!#REF!<>\"\",Pilotage!$M$27,\"\")","v":{"$error":"#REF!"}},{"$f":"IF(Stock!#REF!<>\"\",ROUND(Stock!#REF!*J435,0),\"\")","v":{"$error":"#REF!"}},{"$f":"IF(Stock!#REF!<>\"\",$H435*K435,\"\")","v":{"$error":"#REF!"}},{"$f":"IF(Stock!#REF!<>\"\",Pilotage!N$27,\"\")","v":{"$error":"#REF!"}},{"$f":"IF(Stock!#REF!<>\"\",ROUND(K435*M435,0),\"\")","v":{"$error":"#REF!"}},{"$f":"IF(Stock!#REF!<>\"\",$H435*N435,\"\")","v":{"$error":"#REF!"}},{"$f":"IF(Stock!#REF!<>\"\",Pilotage!O$27,\"\")","v":{"$error":"#REF!"}},{"$f":"IF(Stock!#REF!<>\"\",ROUND(K435*P435,0),\"\")","v":{"$error":"#REF!"}},{"$f":"IF(Stock!#REF!<>\"\",$H435*Q435,\"\")","v":{"$error":"#REF!"}},{"$f":"IF(Stock!#REF!<>\"\",Pilotage!P$27,\"\")","v":{"$error":"#REF!"}},{"$f":"IF(Stock!#REF!<>\"\",ROUND(Q435*S435,0),\"\")","v":{"$error":"#REF!"}},{"$f":"IF(Stock!#REF!<>\"\",$H435*T435,\"\")","v":{"$error":"#REF!"}},{"$f":"IF(Stock!#REF!<>\"\",Pilotage!Q$27,\"\")","v":{"$error":"#REF!"}},{"$f":"IF(Stock!#REF!<>\"\",ROUND(T435*V435,0),\"\")","v":{"$error":"#REF!"}},{"$f":"IF(Stock!#REF!<>\"\",$H435*W435,\"\")","v":{"$error":"#REF!"}},{"$f":"IF(Stock!#REF!<>\"\",Pilotage!R$27,\"\")","v":{"$error":"#REF!"}},{"$f":"IF(Stock!#REF!<>\"\",ROUND(W435*Y435,0),\"\")","v":{"$error":"#REF!"}},{"$f":"IF(Stock!#REF!<>\"\",$H435*Z435,\"\")","v":{"$error":"#REF!"}}]
[{"$f":"IF(Stock!#REF!<>\"\",Stock!#REF!,\"\")","v":{"$error":"#REF!"}},{"$f":"IF(Stock!#REF!<>\"\",Stock!#REF!,\"\")","v":{"$error":"#REF!"}},{"$f":"IF(Stock!#REF!<>\"\",Stock!#REF!,\"\")","v":{"$error":"#REF!"}},{"$f":"IF(Stock!#REF!<>\"\",SUM(Stock!#REF!,Stock!#REF!,Stock!#REF!),\"\")","v":{"$error":"#REF!"}},{"$f":"IF(Stock!#REF!<>\"\",#REF!*(1+Pilotage!$M$20),\"\")","v":{"$error":"#REF!"}},null,{"$f":"IF(Stock!#REF!<>\"\",IF(Stock!#REF!>0,Stock!#REF!/Stock!#REF!,0),\"\")","v":{"$error":"#REF!"}},{"$f":"IF(Stock!#REF!<>\"\",E436*Pilotage!$D$15,\"\")","v":{"$error":"#REF!"}},{"$f":"IF(Stock!#REF!<>\"\",IF(Stock!#REF!>0,Stock!#REF!,0),\"\")","v":{"$error":"#REF!"}},{"$f":"IF(Stock!#REF!<>\"\",Pilotage!$M$27,\"\")","v":{"$error":"#REF!"}},{"$f":"IF(Stock!#REF!<>\"\",ROUND(Stock!#REF!*J436,0),\"\")","v":{"$error":"#REF!"}},{"$f":"IF(Stock!#REF!<>\"\",$H436*K436,\"\")","v":{"$error":"#REF!"}},{"$f":"IF(Stock!#REF!<>\"\",Pilotage!N$27,\"\")","v":{"$error":"#REF!"}},{"$f":"IF(Stock!#REF!<>\"\",ROUND(K436*M436,0),\"\")","v":{"$error":"#REF!"}},{"$f":"IF(Stock!#REF!<>\"\",$H436*N436,\"\")","v":{"$error":"#REF!"}},{"$f":"IF(Stock!#REF!<>\"\",Pilotage!O$27,\"\")","v":{"$error":"#REF!"}},{"$f":"IF(Stock!#REF!<>\"\",ROUND(K436*P436,0),\"\")","v":{"$error":"#REF!"}},{"$f":"IF(Stock!#REF!<>\"\",$H436*Q436,\"\")","v":{"$error":"#REF!"}},{"$f":"IF(Stock!#REF!<>\"\",Pilotage!P$27,\"\")","v":{"$error":"#REF!"}},{"$f":"IF(Stock!#REF!<>\"\",ROUND(Q436*S436,0),\"\")","v":{"$error":"#REF!"}},{"$f":"IF(Stock!#REF!<>\"\",$H436*T436,\"\")","v":{"$error":"#REF!"}},{"$f":"IF(Stock!#REF!<>\"\",Pilotage!Q$27,\"\")","v":{"$error":"#REF!"}},{"$f":"IF(Stock!#REF!<>\"\",ROUND(T436*V436,0),\"\")","v":{"$error":"#REF!"}},{"$f":"IF(Stock!#REF!<>\"\",$H436*W436,\"\")","v":{"$error":"#REF!"}},{"$f":"IF(Stock!#REF!<>\"\",Pilotage!R$27,\"\")","v":{"$error":"#REF!"}},{"$f":"IF(Stock!#REF!<>\"\",ROUND(W436*Y436,0),\"\")","v":{"$error":"#REF!"}},{"$f":"IF(Stock!#REF!<>\"\",$H436*Z436,\"\")","v":{"$error":"#REF!"}}]
[{"$f":"IF(Stock!#REF!<>\"\",Stock!#REF!,\"\")","v":{"$error":"#REF!"}},{"$f":"IF(Stock!#REF!<>\"\",Stock!#REF!,\"\")","v":{"$error":"#REF!"}},{"$f":"IF(Stock!#REF!<>\"\",Stock!#REF!,\"\")","v":{"$error":"#REF!"}},{"$f":"IF(Stock!#REF!<>\"\",SUM(Stock!#REF!,Stock!#REF!,Stock!#REF!),\"\")","v":{"$error":"#REF!"}},{"$f":"IF(Stock!#REF!<>\"\",#REF!*(1+Pilotage!$M$20),\"\")","v":{"$error":"#REF!"}},null,{"$f":"IF(Stock!#REF!<>\"\",IF(Stock!#REF!>0,Stock!#REF!/Stock!#REF!,0),\"\")","v":{"$error":"#REF!"}},{"$f":"IF(Stock!#REF!<>\"\",E437*Pilotage!$D$15,\"\")","v":{"$error":"#REF!"}},{"$f":"IF(Stock!#REF!<>\"\",IF(Stock!#REF!>0,Stock!#REF!,0),\"\")","v":{"$error":"#REF!"}},{"$f":"IF(Stock!#REF!<>\"\",Pilotage!$M$27,\"\")","v":{"$error":"#REF!"}},{"$f":"IF(Stock!#REF!<>\"\",ROUND(Stock!#REF!*J437,0),\"\")","v":{"$error":"#REF!"}},{"$f":"IF(Stock!#REF!<>\"\",$H437*K437,\"\")","v":{"$error":"#REF!"}},{"$f":"IF(Stock!#REF!<>\"\",Pilotage!N$27,\"\")","v":{"$error":"#REF!"}},{"$f":"IF(Stock!#REF!<>\"\",ROUND(K437*M437,0),\"\")","v":{"$error":"#REF!"}},{"$f":"IF(Stock!#REF!<>\"\",$H437*N437,\"\")","v":{"$error":"#REF!"}},{"$f":"IF(Stock!#REF!<>\"\",Pilotage!O$27,\"\")","v":{"$error":"#REF!"}},{"$f":"IF(Stock!#REF!<>\"\",ROUND(K437*P437,0),\"\")","v":{"$error":"#REF!"}},{"$f":"IF(Stock!#REF!<>\"\",$H437*Q437,\"\")","v":{"$error":"#REF!"}},{"$f":"IF(Stock!#REF!<>\"\",Pilotage!P$27,\"\")","v":{"$error":"#REF!"}},{"$f":"IF(Stock!#REF!<>\"\",ROUND(Q437*S437,0),\"\")","v":{"$error":"#REF!"}},{"$f":"IF(Stock!#REF!<>\"\",$H437*T437,\"\")","v":{"$error":"#REF!"}},{"$f":"IF(Stock!#REF!<>\"\",Pilotage!Q$27,\"\")","v":{"$error":"#REF!"}},{"$f":"IF(Stock!#REF!<>\"\",ROUND(T437*V437,0),\"\")","v":{"$error":"#REF!"}},{"$f":"IF(Stock!#REF!<>\"\",$H437*W437,\"\")","v":{"$error":"#REF!"}},{"$f":"IF(Stock!#REF!<>\"\",Pilotage!R$27,\"\")","v":{"$error":"#REF!"}},{"$f":"IF(Stock!#REF!<>\"\",ROUND(W437*Y437,0),\"\")","v":{"$error":"#REF!"}},{"$f":"IF(Stock!#REF!<>\"\",$H437*Z437,\"\")","v":{"$error":"#REF!"}}]
[{"$f":"IF(Stock!#REF!<>\"\",Stock!#REF!,\"\")","v":{"$error":"#REF!"}},{"$f":"IF(Stock!#REF!<>\"\",Stock!#REF!,\"\")","v":{"$error":"#REF!"}},{"$f":"IF(Stock!#REF!<>\"\",Stock!#REF!,\"\")","v":{"$error":"#REF!"}},{"$f":"IF(Stock!#REF!<>\"\",SUM(Stock!#REF!,Stock!#REF!,Stock!#REF!),\"\")","v":{"$error":"#REF!"}},{"$f":"IF(Stock!#REF!<>\"\",#REF!*(1+Pilotage!$M$20),\"\")","v":{"$error":"#REF!"}},null,{"$f":"IF(Stock!#REF!<>\"\",IF(Stock!#REF!>0,Stock!#REF!/Stock!#REF!,0),\"\")","v":{"$error":"#REF!"}},{"$f":"IF(Stock!#REF!<>\"\",E438*Pilotage!$D$15,\"\")","v":{"$error":"#REF!"}},{"$f":"IF(Stock!#REF!<>\"\",IF(Stock!#REF!>0,Stock!#REF!,0),\"\")","v":{"$error":"#REF!"}},{"$f":"IF(Stock!#REF!<>\"\",Pilotage!$M$27,\"\")","v":{"$error":"#REF!"}},{"$f":"IF(Stock!#REF!<>\"\",ROUND(Stock!#REF!*J438,0),\"\")","v":{"$error":"#REF!"}},{"$f":"IF(Stock!#REF!<>\"\",$H438*K438,\"\")","v":{"$error":"#REF!"}},{"$f":"IF(Stock!#REF!<>\"\",Pilotage!N$27,\"\")","v":{"$error":"#REF!"}},{"$f":"IF(Stock!#REF!<>\"\",ROUND(K438*M438,0),\"\")","v":{"$error":"#REF!"}},{"$f":"IF(Stock!#REF!<>\"\",$H438*N438,\"\")","v":{"$error":"#REF!"}},{"$f":"IF(Stock!#REF!<>\"\",Pilotage!O$27,\"\")","v":{"$error":"#REF!"}},{"$f":"IF(Stock!#REF!<>\"\",ROUND(K438*P438,0),\"\")","v":{"$error":"#REF!"}},{"$f":"IF(Stock!#REF!<>\"\",$H438*Q438,\"\")","v":{"$error":"#REF!"}},{"$f":"IF(Stock!#REF!<>\"\",Pilotage!P$27,\"\")","v":{"$error":"#REF!"}},{"$f":"IF(Stock!#REF!<>\"\",ROUND(Q438*S438,0),\"\")","v":{"$error":"#REF!"}},{"$f":"IF(Stock!#REF!<>\"\",$H438*T438,\"\")","v":{"$error":"#REF!"}},{"$f":"IF(Stock!#REF!<>\"\",Pilotage!Q$27,\"\")","v":{"$error":"#REF!"}},{"$f":"IF(Stock!#REF!<>\"\",ROUND(T438*V438,0),\"\")","v":{"$error":"#REF!"}},{"$f":"IF(Stock!#REF!<>\"\",$H438*W438,\"\")","v":{"$error":"#REF!"}},{"$f":"IF(Stock!#REF!<>\"\",Pilotage!R$27,\"\")","v":{"$error":"#REF!"}},{"$f":"IF(Stock!#REF!<>\"\",ROUND(W438*Y438,0),\"\")","v":{"$error":"#REF!"}},{"$f":"IF(Stock!#REF!<>\"\",$H438*Z438,\"\")","v":{"$error":"#REF!"}}]
[{"$f":"IF(Stock!#REF!<>\"\",Stock!#REF!,\"\")","v":{"$error":"#REF!"}},{"$f":"IF(Stock!#REF!<>\"\",Stock!#REF!,\"\")","v":{"$error":"#REF!"}},{"$f":"IF(Stock!#REF!<>\"\",Stock!#REF!,\"\")","v":{"$error":"#REF!"}},{"$f":"IF(Stock!#REF!<>\"\",SUM(Stock!#REF!,Stock!#REF!,Stock!#REF!),\"\")","v":{"$error":"#REF!"}},{"$f":"IF(Stock!#REF!<>\"\",#REF!*(1+Pilotage!$M$20),\"\")","v":{"$error":"#REF!"}},null,{"$f":"IF(Stock!#REF!<>\"\",IF(Stock!#REF!>0,Stock!#REF!/Stock!#REF!,0),\"\")","v":{"$error":"#REF!"}},{"$f":"IF(Stock!#REF!<>\"\",E439*Pilotage!$D$15,\"\")","v":{"$error":"#REF!"}},{"$f":"IF(Stock!#REF!<>\"\",IF(Stock!#REF!>0,Stock!#REF!,0),\"\")","v":{"$error":"#REF!"}},{"$f":"IF(Stock!#REF!<>\"\",Pilotage!$M$27,\"\")","v":{"$error":"#REF!"}},{"$f":"IF(Stock!#REF!<>\"\",ROUND(Stock!#REF!*J439,0),\"\")","v":{"$error":"#REF!"}},{"$f":"IF(Stock!#REF!<>\"\",$H439*K439,\"\")","v":{"$error":"#REF!"}},{"$f":"IF(Stock!#REF!<>\"\",Pilotage!N$27,\"\")","v":{"$error":"#REF!"}},{"$f":"IF(Stock!#REF!<>\"\",ROUND(K439*M439,0),\"\")","v":{"$error":"#REF!"}},{"$f":"IF(Stock!#REF!<>\"\",$H439*N439,\"\")","v":{"$error":"#REF!"}},{"$f":"IF(Stock!#REF!<>\"\",Pilotage!O$27,\"\")","v":{"$error":"#REF!"}},{"$f":"IF(Stock!#REF!<>\"\",ROUND(K439*P439,0),\"\")","v":{"$error":"#REF!"}},{"$f":"IF(Stock!#REF!<>\"\",$H439*Q439,\"\")","v":{"$error":"#REF!"}},{"$f":"IF(Stock!#REF!<>\"\",Pilotage!P$27,\"\")","v":{"$error":"#REF!"}},{"$f":"IF(Stock!#REF!<>\"\",ROUND(Q439*S439,0),\"\")","v":{"$error":"#REF!"}},{"$f":"IF(Stock!#REF!<>\"\",$H439*T439,\"\")","v":{"$error":"#REF!"}},{"$f":"IF(Stock!#REF!<>\"\",Pilotage!Q$27,\"\")","v":{"$error":"#REF!"}},{"$f":"IF(Stock!#REF!<>\"\",ROUND(T439*V439,0),\"\")","v":{"$error":"#REF!"}},{"$f":"IF(Stock!#REF!<>\"\",$H439*W439,\"\")","v":{"$error":"#REF!"}},{"$f":"IF(Stock!#REF!<>\"\",Pilotage!R$27,\"\")","v":{"$error":"#REF!"}},{"$f":"IF(Stock!#REF!<>\"\",ROUND(W439*Y439,0),\"\")","v":{"$error":"#REF!"}},{"$f":"IF(Stock!#REF!<>\"\",$H439*Z439,\"\")","v":{"$error":"#REF!"}}]
[{"$f":"IF(Stock!#REF!<>\"\",Stock!#REF!,\"\")","v":{"$error":"#REF!"}},{"$f":"IF(Stock!#REF!<>\"\",Stock!#REF!,\"\")","v":{"$error":"#REF!"}},{"$f":"IF(Stock!#REF!<>\"\",Stock!#REF!,\"\")","v":{"$error":"#REF!"}},{"$f":"IF(Stock!#REF!<>\"\",SUM(Stock!#REF!,Stock!#REF!,Stock!#REF!),\"\")","v":{"$error":"#REF!"}},{"$f":"IF(Stock!#REF!<>\"\",#REF!*(1+Pilotage!$M$20),\"\")","v":{"$error":"#REF!"}},null,{"$f":"IF(Stock!#REF!<>\"\",IF(Stock!#REF!>0,Stock!#REF!/Stock!#REF!,0),\"\")","v":{"$error":"#REF!"}},{"$f":"IF(Stock!#REF!<>\"\",E440*Pilotage!$D$15,\"\")","v":{"$error":"#REF!"}},{"$f":"IF(Stock!#REF!<>\"\",IF(Stock!#REF!>0,Stock!#REF!,0),\"\")","v":{"$error":"#REF!"}},{"$f":"IF(Stock!#REF!<>\"\",Pilotage!$M$27,\"\")","v":{"$error":"#REF!"}},{"$f":"IF(Stock!#REF!<>\"\",ROUND(Stock!#REF!*J440,0),\"\")","v":{"$error":"#REF!"}},{"$f":"IF(Stock!#REF!<>\"\",$H440*K440,\"\")","v":{"$error":"#REF!"}},{"$f":"IF(Stock!#REF!<>\"\",Pilotage!N$27,\"\")","v":{"$error":"#REF!"}},{"$f":"IF(Stock!#REF!<>\"\",ROUND(K440*M440,0),\"\")","v":{"$error":"#REF!"}},{"$f":"IF(Stock!#REF!<>\"\",$H440*N440,\"\")","v":{"$error":"#REF!"}},{"$f":"IF(Stock!#REF!<>\"\",Pilotage!O$27,\"\")","v":{"$error":"#REF!"}},{"$f":"IF(Stock!#REF!<>\"\",ROUND(K440*P440,0),\"\")","v":{"$error":"#REF!"}},{"$f":"IF(Stock!#REF!<>\"\",$H440*Q440,\"\")","v":{"$error":"#REF!"}},{"$f":"IF(Stock!#REF!<>\"\",Pilotage!P$27,\"\")","v":{"$error":"#REF!"}},{"$f":"IF(Stock!#REF!<>\"\",ROUND(Q440*S440,0),\"\")","v":{"$error":"#REF!"}},{"$f":"IF(Stock!#REF!<>\"\",$H440*T440,\"\")","v":{"$error":"#REF!"}},{"$f":"IF(Stock!#REF!<>\"\",Pilotage!Q$27,\"\")","v":{"$error":"#REF!"}},{"$f":"IF(Stock!#REF!<>\"\",ROUND(T440*V440,0),\"\")","v":{"$error":"#REF!"}},{"$f":"IF(Stock!#REF!<>\"\",$H440*W440,\"\")","v":{"$error":"#REF!"}},{"$f":"IF(Stock!#REF!<>\"\",Pilotage!R$27,\"\")","v":{"$error":"#REF!"}},{"$f":"IF(Stock!#REF!<>\"\",ROUND(W440*Y440,0),\"\")","v":{"$error":"#REF!"}},{"$f":"IF(Stock!#REF!<>\"\",$H440*Z440,\"\")","v":{"$error":"#REF!"}}]
[{"$f":"IF(Stock!#REF!<>\"\",Stock!#REF!,\"\")","v":{"$error":"#REF!"}},{"$f":"IF(Stock!#REF!<>\"\",Stock!#REF!,\"\")","v":{"$error":"#REF!"}},{"$f":"IF(Stock!#REF!<>\"\",Stock!#REF!,\"\")","v":{"$error":"#REF!"}},{"$f":"IF(Stock!#REF!<>\"\",SUM(Stock!#REF!,Stock!#REF!,Stock!#REF!),\"\")","v":{"$error":"#REF!"}},{"$f":"IF(Stock!#REF!<>\"\",#REF!*(1+Pilotage!$M$20),\"\")","v":{"$error":"#REF!"}},null,{"$f":"IF(Stock!#REF!<>\"\",IF(Stock!#REF!>0,Stock!#REF!/Stock!#REF!,0),\"\")","v":{"$error":"#REF!"}},{"$f":"IF(Stock!#REF!<>\"\",E441*Pilotage!$D$15,\"\")","v":{"$error":"#REF!"}},{"$f":"IF(Stock!#REF!<>\"\",IF(Stock!#REF!>0,Stock!#REF!,0),\"\")","v":{"$error":"#REF!"}},{"$f":"IF(Stock!#REF!<>\"\",Pilotage!$M$27,\"\")","v":{"$error":"#REF!"}},{"$f":"IF(Stock!#REF!<>\"\",ROUND(Stock!#REF!*J441,0),\"\")","v":{"$error":"#REF!"}},{"$f":"IF(Stock!#REF!<>\"\",$H441*K441,\"\")","v":{"$error":"#REF!"}},{"$f":"IF(Stock!#REF!<>\"\",Pilotage!N$27,\"\")","v":{"$error":"#REF!"}},{"$f":"IF(Stock!#REF!<>\"\",ROUND(K441*M441,0),\"\")","v":{"$error":"#REF!"}},{"$f":"IF(Stock!#REF!<>\"\",$H441*N441,\"\")","v":{"$error":"#REF!"}},{"$f":"IF(Stock!#REF!<>\"\",Pilotage!O$27,\"\")","v":{"$error":"#REF!"}},{"$f":"IF(Stock!#REF!<>\"\",ROUND(K441*P441,0),\"\")","v":{"$error":"#REF!"}},{"$f":"IF(Stock!#REF!<>\"\",$H441*Q441,\"\")","v":{"$error":"#REF!"}},{"$f":"IF(Stock!#REF!<>\"\",Pilotage!P$27,\"\")","v":{"$error":"#REF!"}},{"$f":"IF(Stock!#REF!<>\"\",ROUND(Q441*S441,0),\"\")","v":{"$error":"#REF!"}},{"$f":"IF(Stock!#REF!<>\"\",$H441*T441,\"\")","v":{"$error":"#REF!"}},{"$f":"IF(Stock!#REF!<>\"\",Pilotage!Q$27,\"\")","v":{"$error":"#REF!"}},{"$f":"IF(Stock!#REF!<>\"\",ROUND(T441*V441,0),\"\")","v":{"$error":"#REF!"}},{"$f":"IF(Stock!#REF!<>\"\",$H441*W441,\"\")","v":{"$error":"#REF!"}},{"$f":"IF(Stock!#REF!<>\"\",Pilotage!R$27,\"\")","v":{"$error":"#REF!"}},{"$f":"IF(Stock!#REF!<>\"\",ROUND(W441*Y441,0),\"\")","v":{"$error":"#REF!"}},{"$f":"IF(Stock!#REF!<>\"\",$H441*Z441,\"\")","v":{"$error":"#REF!"}}]
[{"$f":"IF(Stock!#REF!<>\"\",Stock!#REF!,\"\")","v":{"$error":"#REF!"}},{"$f":"IF(Stock!#REF!<>\"\",Stock!#REF!,\"\")","v":{"$error":"#REF!"}},{"$f":"IF(Stock!#REF!<>\"\",Stock!#REF!,\"\")","v":{"$error":"#REF!"}},{"$f":"IF(Stock!#REF!<>\"\",SUM(Stock!#REF!,Stock!#REF!,Stock!#REF!),\"\")","v":{"$error":"#REF!"}},{"$f":"IF(Stock!#REF!<>\"\",#REF!*(1+Pilotage!$M$20),\"\")","v":{"$error":"#REF!"}},null,{"$f":"IF(Stock!#REF!<>\"\",IF(Stock!#REF!>0,Stock!#REF!/Stock!#REF!,0),\"\")","v":{"$error":"#REF!"}},{"$f":"IF(Stock!#REF!<>\"\",E442*Pilotage!$D$15,\"\")","v":{"$error":"#REF!"}},{"$f":"IF(Stock!#REF!<>\"\",IF(Stock!#REF!>0,Stock!#REF!,0),\"\")","v":{"$error":"#REF!"}},{"$f":"IF(Stock!#REF!<>\"\",Pilotage!$M$27,\"\")","v":{"$error":"#REF!"}},{"$f":"IF(Stock!#REF!<>\"\",ROUND(Stock!#REF!*J442,0),\"\")","v":{"$error":"#REF!"}},{"$f":"IF(Stock!#REF!<>\"\",$H442*K442,\"\")","v":{"$error":"#REF!"}},{"$f":"IF(Stock!#REF!<>\"\",Pilotage!N$27,\"\")","v":{"$error":"#REF!"}},{"$f":"IF(Stock!#REF!<>\"\",ROUND(K442*M442,0),\"\")","v":{"$error":"#REF!"}},{"$f":"IF(Stock!#REF!<>\"\",$H442*N442,\"\")","v":{"$error":"#REF!"}},{"$f":"IF(Stock!#REF!<>\"\",Pilotage!O$27,\"\")","v":{"$error":"#REF!"}},{"$f":"IF(Stock!#REF!<>\"\",ROUND(K442*P442,0),\"\")","v":{"$error":"#REF!"}},{"$f":"IF(Stock!#REF!<>\"\",$H442*Q442,\"\")","v":{"$error":"#REF!"}},{"$f":"IF(Stock!#REF!<>\"\",Pilotage!P$27,\"\")","v":{"$error":"#REF!"}},{"$f":"IF(Stock!#REF!<>\"\",ROUND(Q442*S442,0),\"\")","v":{"$error":"#REF!"}},{"$f":"IF(Stock!#REF!<>\"\",$H442*T442,\"\")","v":{"$error":"#REF!"}},{"$f":"IF(Stock!#REF!<>\"\",Pilotage!Q$27,\"\")","v":{"$error":"#REF!"}},{"$f":"IF(Stock!#REF!<>\"\",ROUND(T442*V442,0),\"\")","v":{"$error":"#REF!"}},{"$f":"IF(Stock!#REF!<>\"\",$H442*W442,\"\")","v":{"$error":"#REF!"}},{"$f":"IF(Stock!#REF!<>\"\",Pilotage!R$27,\"\")","v":{"$error":"#REF!"}},{"$f":"IF(Stock!#REF!<>\"\",ROUND(W442*Y442,0),\"\")","v":{"$error":"#REF!"}},{"$f":"IF(Stock!#REF!<>\"\",$H442*Z442,\"\")","v":{"$error":"#REF!"}}]
[{"$f":"IF(Stock!#REF!<>\"\",Stock!#REF!,\"\")","v":{"$error":"#REF!"}},{"$f":"IF(Stock!#REF!<>\"\",Stock!#REF!,\"\")","v":{"$error":"#REF!"}},{"$f":"IF(Stock!#REF!<>\"\",Stock!#REF!,\"\")","v":{"$error":"#REF!"}},{"$f":"IF(Stock!#REF!<>\"\",SUM(Stock!#REF!,Stock!#REF!,Stock!#REF!),\"\")","v":{"$error":"#REF!"}},{"$f":"IF(Stock!#REF!<>\"\",#REF!*(1+Pilotage!$M$20),\"\")","v":{"$error":"#REF!"}},null,{"$f":"IF(Stock!#REF!<>\"\",IF(Stock!#REF!>0,Stock!#REF!/Stock!#REF!,0),\"\")","v":{"$error":"#REF!"}},{"$f":"IF(Stock!#REF!<>\"\",E443*Pilotage!$D$15,\"\")","v":{"$error":"#REF!"}},{"$f":"IF(Stock!#REF!<>\"\",IF(Stock!#REF!>0,Stock!#REF!,0),\"\")","v":{"$error":"#REF!"}},{"$f":"IF(Stock!#REF!<>\"\",Pilotage!$M$27,\"\")","v":{"$error":"#REF!"}},{"$f":"IF(Stock!#REF!<>\"\",ROUND(Stock!#REF!*J443,0),\"\")","v":{"$error":"#REF!"}},{"$f":"IF(Stock!#REF!<>\"\",$H443*K443,\"\")","v":{"$error":"#REF!"}},{"$f":"IF(Stock!#REF!<>\"\",Pilotage!N$27,\"\")","v":{"$error":"#REF!"}},{"$f":"IF(Stock!#REF!<>\"\",ROUND(K443*M443,0),\"\")","v":{"$error":"#REF!"}},{"$f":"IF(Stock!#REF!<>\"\",$H443*N443,\"\")","v":{"$error":"#REF!"}},{"$f":"IF(Stock!#REF!<>\"\",Pilotage!O$27,\"\")","v":{"$error":"#REF!"}},{"$f":"IF(Stock!#REF!<>\"\",ROUND(K443*P443,0),\"\")","v":{"$error":"#REF!"}},{"$f":"IF(Stock!#REF!<>\"\",$H443*Q443,\"\")","v":{"$error":"#REF!"}},{"$f":"IF(Stock!#REF!<>\"\",Pilotage!P$27,\"\")","v":{"$error":"#REF!"}},{"$f":"IF(Stock!#REF!<>\"\",ROUND(Q443*S443,0),\"\")","v":{"$error":"#REF!"}},{"$f":"IF(Stock!#REF!<>\"\",$H443*T443,\"\")","v":{"$error":"#REF!"}},{"$f":"IF(Stock!#REF!<>\"\",Pilotage!Q$27,\"\")","v":{"$error":"#REF!"}},{"$f":"IF(Stock!#REF!<>\"\",ROUND(T443*V443,0),\"\")","v":{"$error":"#REF!"}},{"$f":"IF(Stock!#REF!<>\"\",$H443*W443,\"\")","v":{"$error":"#REF!"}},{"$f":"IF(Stock!#REF!<>\"\",Pilotage!R$27,\"\")","v":{"$error":"#REF!"}},{"$f":"IF(Stock!#REF!<>\"\",ROUND(W443*Y443,0),\"\")","v":{"$error":"#REF!"}},{"$f":"IF(Stock!#REF!<>\"\",$H443*Z443,\"\")","v":{"$error":"#REF!"}}]
[{"$f":"IF(Stock!#REF!<>\"\",Stock!#REF!,\"\")","v":{"$error":"#REF!"}},{"$f":"IF(Stock!#REF!<>\"\",Stock!#REF!,\"\")","v":{"$error":"#REF!"}},{"$f":"IF(Stock!#REF!<>\"\",Stock!#REF!,\"\")","v":{"$error":"#REF!"}},{"$f":"IF(Stock!#REF!<>\"\",SUM(Stock!#REF!,Stock!#REF!,Stock!#REF!),\"\")","v":{"$error":"#REF!"}},{"$f":"IF(Stock!#REF!<>\"\",#REF!*(1+Pilotage!$M$20),\"\")","v":{"$error":"#REF!"}},null,{"$f":"IF(Stock!#REF!<>\"\",IF(Stock!#REF!>0,Stock!#REF!/Stock!#REF!,0),\"\")","v":{"$error":"#REF!"}},{"$f":"IF(Stock!#REF!<>\"\",E444*Pilotage!$D$15,\"\")","v":{"$error":"#REF!"}},{"$f":"IF(Stock!#REF!<>\"\",IF(Stock!#REF!>0,Stock!#REF!,0),\"\")","v":{"$error":"#REF!"}},{"$f":"IF(Stock!#REF!<>\"\",Pilotage!$M$27,\"\")","v":{"$error":"#REF!"}},{"$f":"IF(Stock!#REF!<>\"\",ROUND(Stock!#REF!*J444,0),\"\")","v":{"$error":"#REF!"}},{"$f":"IF(Stock!#REF!<>\"\",$H444*K444,\"\")","v":{"$error":"#REF!"}},{"$f":"IF(Stock!#REF!<>\"\",Pilotage!N$27,\"\")","v":{"$error":"#REF!"}},{"$f":"IF(Stock!#REF!<>\"\",ROUND(K444*M444,0),\"\")","v":{"$error":"#REF!"}},{"$f":"IF(Stock!#REF!<>\"\",$H444*N444,\"\")","v":{"$error":"#REF!"}},{"$f":"IF(Stock!#REF!<>\"\",Pilotage!O$27,\"\")","v":{"$error":"#REF!"}},{"$f":"IF(Stock!#REF!<>\"\",ROUND(K444*P444,0),\"\")","v":{"$error":"#REF!"}},{"$f":"IF(Stock!#REF!<>\"\",$H444*Q444,\"\")","v":{"$error":"#REF!"}},{"$f":"IF(Stock!#REF!<>\"\",Pilotage!P$27,\"\")","v":{"$error":"#REF!"}},{"$f":"IF(Stock!#REF!<>\"\",ROUND(Q444*S444,0),\"\")","v":{"$error":"#REF!"}},{"$f":"IF(Stock!#REF!<>\"\",$H444*T444,\"\")","v":{"$error":"#REF!"}},{"$f":"IF(Stock!#REF!<>\"\",Pilotage!Q$27,\"\")","v":{"$error":"#REF!"}},{"$f":"IF(Stock!#REF!<>\"\",ROUND(T444*V444,0),\"\")","v":{"$error":"#REF!"}},{"$f":"IF(Stock!#REF!<>\"\",$H444*W444,\"\")","v":{"$error":"#REF!"}},{"$f":"IF(Stock!#REF!<>\"\",Pilotage!R$27,\"\")","v":{"$error":"#REF!"}},{"$f":"IF(Stock!#REF!<>\"\",ROUND(W444*Y444,0),\"\")","v":{"$error":"#REF!"}},{"$f":"IF(Stock!#REF!<>\"\",$H444*Z444,\"\")","v":{"$error":"#REF!"}}]
[{"$f":"IF(Stock!#REF!<>\"\",Stock!#REF!,\"\")","v":{"$error":"#REF!"}},{"$f":"IF(Stock!#REF!<>\"\",Stock!#REF!,\"\")","v":{"$error":"#REF!"}},{"$f":"IF(Stock!#REF!<>\"\",Stock!#REF!,\"\")","v":{"$error":"#REF!"}},{"$f":"IF(Stock!#REF!<>\"\",SUM(Stock!#REF!,Stock!#REF!,Stock!#REF!),\"\")","v":{"$error":"#REF!"}},{"$f":"IF(Stock!#REF!<>\"\",#REF!*(1+Pilotage!$M$20),\"\")","v":{"$error":"#REF!"}},null,{"$f":"IF(Stock!#REF!<>\"\",IF(Stock!#REF!>0,Stock!#REF!/Stock!#REF!,0),\"\")","v":{"$error":"#REF!"}},{"$f":"IF(Stock!#REF!<>\"\",E445*Pilotage!$D$15,\"\")","v":{"$error":"#REF!"}},{"$f":"IF(Stock!#REF!<>\"\",IF(Stock!#REF!>0,Stock!#REF!,0),\"\")","v":{"$error":"#REF!"}},{"$f":"IF(Stock!#REF!<>\"\",Pilotage!$M$27,\"\")","v":{"$error":"#REF!"}},{"$f":"IF(Stock!#REF!<>\"\",ROUND(Stock!#REF!*J445,0),\"\")","v":{"$error":"#REF!"}},{"$f":"IF(Stock!#REF!<>\"\",$H445*K445,\"\")","v":{"$error":"#REF!"}},{"$f":"IF(Stock!#REF!<>\"\",Pilotage!N$27,\"\")","v":{"$error":"#REF!"}},{"$f":"IF(Stock!#REF!<>\"\",ROUND(K445*M445,0),\"\")","v":{"$error":"#REF!"}},{"$f":"IF(Stock!#REF!<>\"\",$H445*N445,\"\")","v":{"$error":"#REF!"}},{"$f":"IF(Stock!#REF!<>\"\",Pilotage!O$27,\"\")","v":{"$error":"#REF!"}},{"$f":"IF(Stock!#REF!<>\"\",ROUND(K445*P445,0),\"\")","v":{"$error":"#REF!"}},{"$f":"IF(Stock!#REF!<>\"\",$H445*Q445,\"\")","v":{"$error":"#REF!"}},{"$f":"IF(Stock!#REF!<>\"\",Pilotage!P$27,\"\")","v":{"$error":"#REF!"}},{"$f":"IF(Stock!#REF!<>\"\",ROUND(Q445*S445,0),\"\")","v":{"$error":"#REF!"}},{"$f":"IF(Stock!#REF!<>\"\",$H445*T445,\"\")","v":{"$error":"#REF!"}},{"$f":"IF(Stock!#REF!<>\"\",Pilotage!Q$27,\"\")","v":{"$error":"#REF!"}},{"$f":"IF(Stock!#REF!<>\"\",ROUND(T445*V445,0),\"\")","v":{"$error":"#REF!"}},{"$f":"IF(Stock!#REF!<>\"\",$H445*W445,\"\")","v":{"$error":"#REF!"}},{"$f":"IF(Stock!#REF!<>\"\",Pilotage!R$27,\"\")","v":{"$error":"#REF!"}},{"$f":"IF(Stock!#REF!<>\"\",ROUND(W445*Y445,0),\"\")","v":{"$error":"#REF!"}},{"$f":"IF(Stock!#REF!<>\"\",$H445*Z445,\"\")","v":{"$error":"#REF!"}}]
[{"$f":"IF(Stock!#REF!<>\"\",Stock!#REF!,\"\")","v":{"$error":"#REF!"}},{"$f":"IF(Stock!#REF!<>\"\",Stock!#REF!,\"\")","v":{"$error":"#REF!"}},{"$f":"IF(Stock!#REF!<>\"\",Stock!#REF!,\"\")","v":{"$error":"#REF!"}},{"$f":"IF(Stock!#REF!<>\"\",SUM(Stock!#REF!,Stock!#REF!,Stock!#REF!),\"\")","v":{"$error":"#REF!"}},{"$f":"IF(Stock!#REF!<>\"\",#REF!*(1+Pilotage!$M$20),\"\")","v":{"$error":"#REF!"}},null,{"$f":"IF(Stock!#REF!<>\"\",IF(Stock!#REF!>0,Stock!#REF!/Stock!#REF!,0),\"\")","v":{"$error":"#REF!"}},{"$f":"IF(Stock!#REF!<>\"\",E446*Pilotage!$D$15,\"\")","v":{"$error":"#REF!"}},{"$f":"IF(Stock!#REF!<>\"\",IF(Stock!#REF!>0,Stock!#REF!,0),\"\")","v":{"$error":"#REF!"}},{"$f":"IF(Stock!#REF!<>\"\",Pilotage!$M$27,\"\")","v":{"$error":"#REF!"}},{"$f":"IF(Stock!#REF!<>\"\",ROUND(Stock!#REF!*J446,0),\"\")","v":{"$error":"#REF!"}},{"$f":"IF(Stock!#REF!<>\"\",$H446*K446,\"\")","v":{"$error":"#REF!"}},{"$f":"IF(Stock!#REF!<>\"\",Pilotage!N$27,\"\")","v":{"$error":"#REF!"}},{"$f":"IF(Stock!#REF!<>\"\",ROUND(K446*M446,0),\"\")","v":{"$error":"#REF!"}},{"$f":"IF(Stock!#REF!<>\"\",$H446*N446,\"\")","v":{"$error":"#REF!"}},{"$f":"IF(Stock!#REF!<>\"\",Pilotage!O$27,\"\")","v":{"$error":"#REF!"}},{"$f":"IF(Stock!#REF!<>\"\",ROUND(K446*P446,0),\"\")","v":{"$error":"#REF!"}},{"$f":"IF(Stock!#REF!<>\"\",$H446*Q446,\"\")","v":{"$error":"#REF!"}},{"$f":"IF(Stock!#REF!<>\"\",Pilotage!P$27,\"\")","v":{"$error":"#REF!"}},{"$f":"IF(Stock!#REF!<>\"\",ROUND(Q446*S446,0),\"\")","v":{"$error":"#REF!"}},{"$f":"IF(Stock!#REF!<>\"\",$H446*T446,\"\")","v":{"$error":"#REF!"}},{"$f":"IF(Stock!#REF!<>\"\",Pilotage!Q$27,\"\")","v":{"$error":"#REF!"}},{"$f":"IF(Stock!#REF!<>\"\",ROUND(T446*V446,0),\"\")","v":{"$error":"#REF!"}},{"$f":"IF(Stock!#REF!<>\"\",$H446*W446,\"\")","v":{"$error":"#REF!"}},{"$f":"IF(Stock!#REF!<>\"\",Pilotage!R$27,\"\")","v":{"$error":"#REF!"}},{"$f":"IF(Stock!#REF!<>\"\",ROUND(W446*Y446,0),\"\")","v":{"$error":"#REF!"}},{"$f":"IF(Stock!#REF!<>\"\",$H446*Z446,\"\")","v":{"$error":"#REF!"}}]
[{"$f":"IF(Stock!#REF!<>\"\",Stock!#REF!,\"\")","v":{"$error":"#REF!"}},{"$f":"IF(Stock!#REF!<>\"\",Stock!#REF!,\"\")","v":{"$error":"#REF!"}},{"$f":"IF(Stock!#REF!<>\"\",Stock!#REF!,\"\")","v":{"$error":"#REF!"}},{"$f":"IF(Stock!#REF!<>\"\",SUM(Stock!#REF!,Stock!#REF!,Stock!#REF!),\"\")","v":{"$error":"#REF!"}},{"$f":"IF(Stock!#REF!<>\"\",#REF!*(1+Pilotage!$M$20),\"\")","v":{"$error":"#REF!"}},null,{"$f":"IF(Stock!#REF!<>\"\",IF(Stock!#REF!>0,Stock!#REF!/Stock!#REF!,0),\"\")","v":{"$error":"#REF!"}},{"$f":"IF(Stock!#REF!<>\"\",E447*Pilotage!$D$15,\"\")","v":{"$error":"#REF!"}},{"$f":"IF(Stock!#REF!<>\"\",IF(Stock!#REF!>0,Stock!#REF!,0),\"\")","v":{"$error":"#REF!"}},{"$f":"IF(Stock!#REF!<>\"\",Pilotage!$M$27,\"\")","v":{"$error":"#REF!"}},{"$f":"IF(Stock!#REF!<>\"\",ROUND(Stock!#REF!*J447,0),\"\")","v":{"$error":"#REF!"}},{"$f":"IF(Stock!#REF!<>\"\",$H447*K447,\"\")","v":{"$error":"#REF!"}},{"$f":"IF(Stock!#REF!<>\"\",Pilotage!N$27,\"\")","v":{"$error":"#REF!"}},{"$f":"IF(Stock!#REF!<>\"\",ROUND(K447*M447,0),\"\")","v":{"$error":"#REF!"}},{"$f":"IF(Stock!#REF!<>\"\",$H447*N447,\"\")","v":{"$error":"#REF!"}},{"$f":"IF(Stock!#REF!<>\"\",Pilotage!O$27,\"\")","v":{"$error":"#REF!"}},{"$f":"IF(Stock!#REF!<>\"\",ROUND(K447*P447,0),\"\")","v":{"$error":"#REF!"}},{"$f":"IF(Stock!#REF!<>\"\",$H447*Q447,\"\")","v":{"$error":"#REF!"}},{"$f":"IF(Stock!#REF!<>\"\",Pilotage!P$27,\"\")","v":{"$error":"#REF!"}},{"$f":"IF(Stock!#REF!<>\"\",ROUND(Q447*S447,0),\"\")","v":{"$error":"#REF!"}},{"$f":"IF(Stock!#REF!<>\"\",$H447*T447,\"\")","v":{"$error":"#REF!"}},{"$f":"IF(Stock!#REF!<>\"\",Pilotage!Q$27,\"\")","v":{"$error":"#REF!"}},{"$f":"IF(Stock!#REF!<>\"\",ROUND(T447*V447,0),\"\")","v":{"$error":"#REF!"}},{"$f":"IF(Stock!#REF!<>\"\",$H447*W447,\"\")","v":{"$error":"#REF!"}},{"$f":"IF(Stock!#REF!<>\"\",Pilotage!R$27,\"\")","v":{"$error":"#REF!"}},{"$f":"IF(Stock!#REF!<>\"\",ROUND(W447*Y447,0),\"\")","v":{"$error":"#REF!"}},{"$f":"IF(Stock!#REF!<>\"\",$H447*Z447,\"\")","v":{"$error":"#REF!"}}]
[{"$f":"IF(Stock!#REF!<>\"\",Stock!#REF!,\"\")","v":{"$error":"#REF!"}},{"$f":"IF(Stock!#REF!<>\"\",Stock!#REF!,\"\")","v":{"$error":"#REF!"}},{"$f":"IF(Stock!#REF!<>\"\",Stock!#REF!,\"\")","v":{"$error":"#REF!"}},{"$f":"IF(Stock!#REF!<>\"\",SUM(Stock!#REF!,Stock!#REF!,Stock!#REF!),\"\")","v":{"$error":"#REF!"}},{"$f":"IF(Stock!#REF!<>\"\",#REF!*(1+Pilotage!$M$20),\"\")","v":{"$error":"#REF!"}},null,{"$f":"IF(Stock!#REF!<>\"\",IF(Stock!#REF!>0,Stock!#REF!/Stock!#REF!,0),\"\")","v":{"$error":"#REF!"}},{"$f":"IF(Stock!#REF!<>\"\",E448*Pilotage!$D$15,\"\")","v":{"$error":"#REF!"}},{"$f":"IF(Stock!#REF!<>\"\",IF(Stock!#REF!>0,Stock!#REF!,0),\"\")","v":{"$error":"#REF!"}},{"$f":"IF(Stock!#REF!<>\"\",Pilotage!$M$27,\"\")","v":{"$error":"#REF!"}},{"$f":"IF(Stock!#REF!<>\"\",ROUND(Stock!#REF!*J448,0),\"\")","v":{"$error":"#REF!"}},{"$f":"IF(Stock!#REF!<>\"\",$H448*K448,\"\")","v":{"$error":"#REF!"}},{"$f":"IF(Stock!#REF!<>\"\",Pilotage!N$27,\"\")","v":{"$error":"#REF!"}},{"$f":"IF(Stock!#REF!<>\"\",ROUND(K448*M448,0),\"\")","v":{"$error":"#REF!"}},{"$f":"IF(Stock!#REF!<>\"\",$H448*N448,\"\")","v":{"$error":"#REF!"}},{"$f":"IF(Stock!#REF!<>\"\",Pilotage!O$27,\"\")","v":{"$error":"#REF!"}},{"$f":"IF(Stock!#REF!<>\"\",ROUND(K448*P448,0),\"\")","v":{"$error":"#REF!"}},{"$f":"IF(Stock!#REF!<>\"\",$H448*Q448,\"\")","v":{"$error":"#REF!"}},{"$f":"IF(Stock!#REF!<>\"\",Pilotage!P$27,\"\")","v":{"$error":"#REF!"}},{"$f":"IF(Stock!#REF!<>\"\",ROUND(Q448*S448,0),\"\")","v":{"$error":"#REF!"}},{"$f":"IF(Stock!#REF!<>\"\",$H448*T448,\"\")","v":{"$error":"#REF!"}},{"$f":"IF(Stock!#REF!<>\"\",Pilotage!Q$27,\"\")","v":{"$error":"#REF!"}},{"$f":"IF(Stock!#REF!<>\"\",ROUND(T448*V448,0),\"\")","v":{"$error":"#REF!"}},{"$f":"IF(Stock!#REF!<>\"\",$H448*W448,\"\")","v":{"$error":"#REF!"}},{"$f":"IF(Stock!#REF!<>\"\",Pilotage!R$27,\"\")","v":{"$error":"#REF!"}},{"$f":"IF(Stock!#REF!<>\"\",ROUND(W448*Y448,0),\"\")","v":{"$error":"#REF!"}},{"$f":"IF(Stock!#REF!<>\"\",$H448*Z448,\"\")","v":{"$error":"#REF!"}}]
[{"$f":"IF(Stock!#REF!<>\"\",Stock!#REF!,\"\")","v":{"$error":"#REF!"}},{"$f":"IF(Stock!#REF!<>\"\",Stock!#REF!,\"\")","v":{"$error":"#REF!"}},{"$f":"IF(Stock!#REF!<>\"\",Stock!#REF!,\"\")","v":{"$error":"#REF!"}},{"$f":"IF(Stock!#REF!<>\"\",SUM(Stock!#REF!,Stock!#REF!,Stock!#REF!),\"\")","v":{"$error":"#REF!"}},{"$f":"IF(Stock!#REF!<>\"\",#REF!*(1+Pilotage!$M$20),\"\")","v":{"$error":"#REF!"}},null,{"$f":"IF(Stock!#REF!<>\"\",IF(Stock!#REF!>0,Stock!#REF!/Stock!#REF!,0),\"\")","v":{"$error":"#REF!"}},{"$f":"IF(Stock!#REF!<>\"\",E449*Pilotage!$D$15,\"\")","v":{"$error":"#REF!"}},{"$f":"IF(Stock!#REF!<>\"\",IF(Stock!#REF!>0,Stock!#REF!,0),\"\")","v":{"$error":"#REF!"}},{"$f":"IF(Stock!#REF!<>\"\",Pilotage!$M$27,\"\")","v":{"$error":"#REF!"}},{"$f":"IF(Stock!#REF!<>\"\",ROUND(Stock!#REF!*J449,0),\"\")","v":{"$error":"#REF!"}},{"$f":"IF(Stock!#REF!<>\"\",$H449*K449,\"\")","v":{"$error":"#REF!"}},{"$f":"IF(Stock!#REF!<>\"\",Pilotage!N$27,\"\")","v":{"$error":"#REF!"}},{"$f":"IF(Stock!#REF!<>\"\",ROUND(K449*M449,0),\"\")","v":{"$error":"#REF!"}},{"$f":"IF(Stock!#REF!<>\"\",$H449*N449,\"\")","v":{"$error":"#REF!"}},{"$f":"IF(Stock!#REF!<>\"\",Pilotage!O$27,\"\")","v":{"$error":"#REF!"}},{"$f":"IF(Stock!#REF!<>\"\",ROUND(K449*P449,0),\"\")","v":{"$error":"#REF!"}},{"$f":"IF(Stock!#REF!<>\"\",$H449*Q449,\"\")","v":{"$error":"#REF!"}},{"$f":"IF(Stock!#REF!<>\"\",Pilotage!P$27,\"\")","v":{"$error":"#REF!"}},{"$f":"IF(Stock!#REF!<>\"\",ROUND(Q449*S449,0),\"\")","v":{"$error":"#REF!"}},{"$f":"IF(Stock!#REF!<>\"\",$H449*T449,\"\")","v":{"$error":"#REF!"}},{"$f":"IF(Stock!#REF!<>\"\",Pilotage!Q$27,\"\")","v":{"$error":"#REF!"}},{"$f":"IF(Stock!#REF!<>\"\",ROUND(T449*V449,0),\"\")","v":{"$error":"#REF!"}},{"$f":"IF(Stock!#REF!<>\"\",$H449*W449,\"\")","v":{"$error":"#REF!"}},{"$f":"IF(Stock!#REF!<>\"\",Pilotage!R$27,\"\")","v":{"$error":"#REF!"}},{"$f":"IF(Stock!#REF!<>\"\",ROUND(W449*Y449,0),\"\")","v":{"$error":"#REF!"}},{"$f":"IF(Stock!#REF!<>\"\",$H449*Z449,\"\")","v":{"$error":"#REF!"}}]
[{"$f":"IF(Stock!#REF!<>\"\",Stock!#REF!,\"\")","v":{"$error":"#REF!"}},{"$f":"IF(Stock!#REF!<>\"\",Stock!#REF!,\"\")","v":{"$error":"#REF!"}},{"$f":"IF(Stock!#REF!<>\"\",Stock!#REF!,\"\")","v":{"$error":"#REF!"}},{"$f":"IF(Stock!#REF!<>\"\",SUM(Stock!#REF!,Stock!#REF!,Stock!#REF!),\"\")","v":{"$error":"#REF!"}},{"$f":"IF(Stock!#REF!<>\"\",#REF!*(1+Pilotage!$M$20),\"\")","v":{"$error":"#REF!"}},null,{"$f":"IF(Stock!#REF!<>\"\",IF(Stock!#REF!>0,Stock!#REF!/Stock!#REF!,0),\"\")","v":{"$error":"#REF!"}},{"$f":"IF(Stock!#REF!<>\"\",E450*Pilotage!$D$15,\"\")","v":{"$error":"#REF!"}},{"$f":"IF(Stock!#REF!<>\"\",IF(Stock!#REF!>0,Stock!#REF!,0),\"\")","v":{"$error":"#REF!"}},{"$f":"IF(Stock!#REF!<>\"\",Pilotage!$M$27,\"\")","v":{"$error":"#REF!"}},{"$f":"IF(Stock!#REF!<>\"\",ROUND(Stock!#REF!*J450,0),\"\")","v":{"$error":"#REF!"}},{"$f":"IF(Stock!#REF!<>\"\",$H450*K450,\"\")","v":{"$error":"#REF!"}},{"$f":"IF(Stock!#REF!<>\"\",Pilotage!N$27,\"\")","v":{"$error":"#REF!"}},{"$f":"IF(Stock!#REF!<>\"\",ROUND(K450*M450,0),\"\")","v":{"$error":"#REF!"}},{"$f":"IF(Stock!#REF!<>\"\",$H450*N450,\"\")","v":{"$error":"#REF!"}},{"$f":"IF(Stock!#REF!<>\"\",Pilotage!O$27,\"\")","v":{"$error":"#REF!"}},{"$f":"IF(Stock!#REF!<>\"\",ROUND(K450*P450,0),\"\")","v":{"$error":"#REF!"}},{"$f":"IF(Stock!#REF!<>\"\",$H450*Q450,\"\")","v":{"$error":"#REF!"}},{"$f":"IF(Stock!#REF!<>\"\",Pilotage!P$27,\"\")","v":{"$error":"#REF!"}},{"$f":"IF(Stock!#REF!<>\"\",ROUND(Q450*S450,0),\"\")","v":{"$error":"#REF!"}},{"$f":"IF(Stock!#REF!<>\"\",$H450*T450,\"\")","v":{"$error":"#REF!"}},{"$f":"IF(Stock!#REF!<>\"\",Pilotage!Q$27,\"\")","v":{"$error":"#REF!"}},{"$f":"IF(Stock!#REF!<>\"\",ROUND(T450*V450,0),\"\")","v":{"$error":"#REF!"}},{"$f":"IF(Stock!#REF!<>\"\",$H450*W450,\"\")","v":{"$error":"#REF!"}},{"$f":"IF(Stock!#REF!<>\"\",Pilotage!R$27,\"\")","v":{"$error":"#REF!"}},{"$f":"IF(Stock!#REF!<>\"\",ROUND(W450*Y450,0),\"\")","v":{"$error":"#REF!"}},{"$f":"IF(Stock!#REF!<>\"\",$H450*Z450,\"\")","v":{"$error":"#REF!"}}]
[{"$f":"IF(Stock!#REF!<>\"\",Stock!#REF!,\"\")","v":{"$error":"#REF!"}},{"$f":"IF(Stock!#REF!<>\"\",Stock!#REF!,\"\")","v":{"$error":"#REF!"}},{"$f":"IF(Stock!#REF!<>\"\",Stock!#REF!,\"\")","v":{"$error":"#REF!"}},{"$f":"IF(Stock!#REF!<>\"\",SUM(Stock!#REF!,Stock!#REF!,Stock!#REF!),\"\")","v":{"$error":"#REF!"}},{"$f":"IF(Stock!#REF!<>\"\",#REF!*(1+Pilotage!$M$20),\"\")","v":{"$error":"#REF!"}},null,{"$f":"IF(Stock!#REF!<>\"\",IF(Stock!#REF!>0,Stock!#REF!/Stock!#REF!,0),\"\")","v":{"$error":"#REF!"}},{"$f":"IF(Stock!#REF!<>\"\",E451*Pilotage!$D$15,\"\")","v":{"$error":"#REF!"}},{"$f":"IF(Stock!#REF!<>\"\",IF(Stock!#REF!>0,Stock!#REF!,0),\"\")","v":{"$error":"#REF!"}},{"$f":"IF(Stock!#REF!<>\"\",Pilotage!$M$27,\"\")","v":{"$error":"#REF!"}},{"$f":"IF(Stock!#REF!<>\"\",ROUND(Stock!#REF!*J451,0),\"\")","v":{"$error":"#REF!"}},{"$f":"IF(Stock!#REF!<>\"\",$H451*K451,\"\")","v":{"$error":"#REF!"}},{"$f":"IF(Stock!#REF!<>\"\",Pilotage!N$27,\"\")","v":{"$error":"#REF!"}},{"$f":"IF(Stock!#REF!<>\"\",ROUND(K451*M451,0),\"\")","v":{"$error":"#REF!"}},{"$f":"IF(Stock!#REF!<>\"\",$H451*N451,\"\")","v":{"$error":"#REF!"}},{"$f":"IF(Stock!#REF!<>\"\",Pilotage!O$27,\"\")","v":{"$error":"#REF!"}},{"$f":"IF(Stock!#REF!<>\"\",ROUND(K451*P451,0),\"\")","v":{"$error":"#REF!"}},{"$f":"IF(Stock!#REF!<>\"\",$H451*Q451,\"\")","v":{"$error":"#REF!"}},{"$f":"IF(Stock!#REF!<>\"\",Pilotage!P$27,\"\")","v":{"$error":"#REF!"}},{"$f":"IF(Stock!#REF!<>\"\",ROUND(Q451*S451,0),\"\")","v":{"$error":"#REF!"}},{"$f":"IF(Stock!#REF!<>\"\",$H451*T451,\"\")","v":{"$error":"#REF!"}},{"$f":"IF(Stock!#REF!<>\"\",Pilotage!Q$27,\"\")","v":{"$error":"#REF!"}},{"$f":"IF(Stock!#REF!<>\"\",ROUND(T451*V451,0),\"\")","v":{"$error":"#REF!"}},{"$f":"IF(Stock!#REF!<>\"\",$H451*W451,\"\")","v":{"$error":"#REF!"}},{"$f":"IF(Stock!#REF!<>\"\",Pilotage!R$27,\"\")","v":{"$error":"#REF!"}},{"$f":"IF(Stock!#REF!<>\"\",ROUND(W451*Y451,0),\"\")","v":{"$error":"#REF!"}},{"$f":"IF(Stock!#REF!<>\"\",$H451*Z451,\"\")","v":{"$error":"#REF!"}}]
[{"$f":"IF(Stock!#REF!<>\"\",Stock!#REF!,\"\")","v":{"$error":"#REF!"}},{"$f":"IF(Stock!#REF!<>\"\",Stock!#REF!,\"\")","v":{"$error":"#REF!"}},{"$f":"IF(Stock!#REF!<>\"\",Stock!#REF!,\"\")","v":{"$error":"#REF!"}},{"$f":"IF(Stock!#REF!<>\"\",SUM(Stock!#REF!,Stock!#REF!,Stock!#REF!),\"\")","v":{"$error":"#REF!"}},{"$f":"IF(Stock!#REF!<>\"\",#REF!*(1+Pilotage!$M$20),\"\")","v":{"$error":"#REF!"}},null,{"$f":"IF(Stock!#REF!<>\"\",IF(Stock!#REF!>0,Stock!#REF!/Stock!#REF!,0),\"\")","v":{"$error":"#REF!"}},{"$f":"IF(Stock!#REF!<>\"\",E452*Pilotage!$D$15,\"\")","v":{"$error":"#REF!"}},{"$f":"IF(Stock!#REF!<>\"\",IF(Stock!#REF!>0,Stock!#REF!,0),\"\")","v":{"$error":"#REF!"}},{"$f":"IF(Stock!#REF!<>\"\",Pilotage!$M$27,\"\")","v":{"$error":"#REF!"}},{"$f":"IF(Stock!#REF!<>\"\",ROUND(Stock!#REF!*J452,0),\"\")","v":{"$error":"#REF!"}},{"$f":"IF(Stock!#REF!<>\"\",$H452*K452,\"\")","v":{"$error":"#REF!"}},{"$f":"IF(Stock!#REF!<>\"\",Pilotage!N$27,\"\")","v":{"$error":"#REF!"}},{"$f":"IF(Stock!#REF!<>\"\",ROUND(K452*M452,0),\"\")","v":{"$error":"#REF!"}},{"$f":"IF(Stock!#REF!<>\"\",$H452*N452,\"\")","v":{"$error":"#REF!"}},{"$f":"IF(Stock!#REF!<>\"\",Pilotage!O$27,\"\")","v":{"$error":"#REF!"}},{"$f":"IF(Stock!#REF!<>\"\",ROUND(K452*P452,0),\"\")","v":{"$error":"#REF!"}},{"$f":"IF(Stock!#REF!<>\"\",$H452*Q452,\"\")","v":{"$error":"#REF!"}},{"$f":"IF(Stock!#REF!<>\"\",Pilotage!P$27,\"\")","v":{"$error":"#REF!"}},{"$f":"IF(Stock!#REF!<>\"\",ROUND(Q452*S452,0),\"\")","v":{"$error":"#REF!"}},{"$f":"IF(Stock!#REF!<>\"\",$H452*T452,\"\")","v":{"$error":"#REF!"}},{"$f":"IF(Stock!#REF!<>\"\",Pilotage!Q$27,\"\")","v":{"$error":"#REF!"}},{"$f":"IF(Stock!#REF!<>\"\",ROUND(T452*V452,0),\"\")","v":{"$error":"#REF!"}},{"$f":"IF(Stock!#REF!<>\"\",$H452*W452,\"\")","v":{"$error":"#REF!"}},{"$f":"IF(Stock!#REF!<>\"\",Pilotage!R$27,\"\")","v":{"$error":"#REF!"}},{"$f":"IF(Stock!#REF!<>\"\",ROUND(W452*Y452,0),\"\")","v":{"$error":"#REF!"}},{"$f":"IF(Stock!#REF!<>\"\",$H452*Z452,\"\")","v":{"$error":"#REF!"}}]
[{"$f":"IF(Stock!#REF!<>\"\",Stock!#REF!,\"\")","v":{"$error":"#REF!"}},{"$f":"IF(Stock!#REF!<>\"\",Stock!#REF!,\"\")","v":{"$error":"#REF!"}},{"$f":"IF(Stock!#REF!<>\"\",Stock!#REF!,\"\")","v":{"$error":"#REF!"}},{"$f":"IF(Stock!#REF!<>\"\",SUM(Stock!#REF!,Stock!#REF!,Stock!#REF!),\"\")","v":{"$error":"#REF!"}},{"$f":"IF(Stock!#REF!<>\"\",#REF!*(1+Pilotage!$M$20),\"\")","v":{"$error":"#REF!"}},null,{"$f":"IF(Stock!#REF!<>\"\",IF(Stock!#REF!>0,Stock!#REF!/Stock!#REF!,0),\"\")","v":{"$error":"#REF!"}},{"$f":"IF(Stock!#REF!<>\"\",E453*Pilotage!$D$15,\"\")","v":{"$error":"#REF!"}},{"$f":"IF(Stock!#REF!<>\"\",IF(Stock!#REF!>0,Stock!#REF!,0),\"\")","v":{"$error":"#REF!"}},{"$f":"IF(Stock!#REF!<>\"\",Pilotage!$M$27,\"\")","v":{"$error":"#REF!"}},{"$f":"IF(Stock!#REF!<>\"\",ROUND(Stock!#REF!*J453,0),\"\")","v":{"$error":"#REF!"}},{"$f":"IF(Stock!#REF!<>\"\",$H453*K453,\"\")","v":{"$error":"#REF!"}},{"$f":"IF(Stock!#REF!<>\"\",Pilotage!N$27,\"\")","v":{"$error":"#REF!"}},{"$f":"IF(Stock!#REF!<>\"\",ROUND(K453*M453,0),\"\")","v":{"$error":"#REF!"}},{"$f":"IF(Stock!#REF!<>\"\",$H453*N453,\"\")","v":{"$error":"#REF!"}},{"$f":"IF(Stock!#REF!<>\"\",Pilotage!O$27,\"\")","v":{"$error":"#REF!"}},{"$f":"IF(Stock!#REF!<>\"\",ROUND(K453*P453,0),\"\")","v":{"$error":"#REF!"}},{"$f":"IF(Stock!#REF!<>\"\",$H453*Q453,\"\")","v":{"$error":"#REF!"}},{"$f":"IF(Stock!#REF!<>\"\",Pilotage!P$27,\"\")","v":{"$error":"#REF!"}},{"$f":"IF(Stock!#REF!<>\"\",ROUND(Q453*S453,0),\"\")","v":{"$error":"#REF!"}},{"$f":"IF(Stock!#REF!<>\"\",$H453*T453,\"\")","v":{"$error":"#REF!"}},{"$f":"IF(Stock!#REF!<>\"\",Pilotage!Q$27,\"\")","v":{"$error":"#REF!"}},{"$f":"IF(Stock!#REF!<>\"\",ROUND(T453*V453,0),\"\")","v":{"$error":"#REF!"}},{"$f":"IF(Stock!#REF!<>\"\",$H453*W453,\"\")","v":{"$error":"#REF!"}},{"$f":"IF(Stock!#REF!<>\"\",Pilotage!R$27,\"\")","v":{"$error":"#REF!"}},{"$f":"IF(Stock!#REF!<>\"\",ROUND(W453*Y453,0),\"\")","v":{"$error":"#REF!"}},{"$f":"IF(Stock!#REF!<>\"\",$H453*Z453,\"\")","v":{"$error":"#REF!"}}]
[{"$f":"IF(Stock!#REF!<>\"\",Stock!#REF!,\"\")","v":{"$error":"#REF!"}},{"$f":"IF(Stock!#REF!<>\"\",Stock!#REF!,\"\")","v":{"$error":"#REF!"}},{"$f":"IF(Stock!#REF!<>\"\",Stock!#REF!,\"\")","v":{"$error":"#REF!"}},{"$f":"IF(Stock!#REF!<>\"\",SUM(Stock!#REF!,Stock!#REF!,Stock!#REF!),\"\")","v":{"$error":"#REF!"}},{"$f":"IF(Stock!#REF!<>\"\",#REF!*(1+Pilotage!$M$20),\"\")","v":{"$error":"#REF!"}},null,{"$f":"IF(Stock!#REF!<>\"\",IF(Stock!#REF!>0,Stock!#REF!/Stock!#REF!,0),\"\")","v":{"$error":"#REF!"}},{"$f":"IF(Stock!#REF!<>\"\",E454*Pilotage!$D$15,\"\")","v":{"$error":"#REF!"}},{"$f":"IF(Stock!#REF!<>\"\",IF(Stock!#REF!>0,Stock!#REF!,0),\"\")","v":{"$error":"#REF!"}},{"$f":"IF(Stock!#REF!<>\"\",Pilotage!$M$27,\"\")","v":{"$error":"#REF!"}},{"$f":"IF(Stock!#REF!<>\"\",ROUND(Stock!#REF!*J454,0),\"\")","v":{"$error":"#REF!"}},{"$f":"IF(Stock!#REF!<>\"\",$H454*K454,\"\")","v":{"$error":"#REF!"}},{"$f":"IF(Stock!#REF!<>\"\",Pilotage!N$27,\"\")","v":{"$error":"#REF!"}},{"$f":"IF(Stock!#REF!<>\"\",ROUND(K454*M454,0),\"\")","v":{"$error":"#REF!"}},{"$f":"IF(Stock!#REF!<>\"\",$H454*N454,\"\")","v":{"$error":"#REF!"}},{"$f":"IF(Stock!#REF!<>\"\",Pilotage!O$27,\"\")","v":{"$error":"#REF!"}},{"$f":"IF(Stock!#REF!<>\"\",ROUND(K454*P454,0),\"\")","v":{"$error":"#REF!"}},{"$f":"IF(Stock!#REF!<>\"\",$H454*Q454,\"\")","v":{"$error":"#REF!"}},{"$f":"IF(Stock!#REF!<>\"\",Pilotage!P$27,\"\")","v":{"$error":"#REF!"}},{"$f":"IF(Stock!#REF!<>\"\",ROUND(Q454*S454,0),\"\")","v":{"$error":"#REF!"}},{"$f":"IF(Stock!#REF!<>\"\",$H454*T454,\"\")","v":{"$error":"#REF!"}},{"$f":"IF(Stock!#REF!<>\"\",Pilotage!Q$27,\"\")","v":{"$error":"#REF!"}},{"$f":"IF(Stock!#REF!<>\"\",ROUND(T454*V454,0),\"\")","v":{"$error":"#REF!"}},{"$f":"IF(Stock!#REF!<>\"\",$H454*W454,\"\")","v":{"$error":"#REF!"}},{"$f":"IF(Stock!#REF!<>\"\",Pilotage!R$27,\"\")","v":{"$error":"#REF!"}},{"$f":"IF(Stock!#REF!<>\"\",ROUND(W454*Y454,0),\"\")","v":{"$error":"#REF!"}},{"$f":"IF(Stock!#REF!<>\"\",$H454*Z454,\"\")","v":{"$error":"#REF!"}}]
[{"$f":"IF(Stock!#REF!<>\"\",Stock!#REF!,\"\")","v":{"$error":"#REF!"}},{"$f":"IF(Stock!#REF!<>\"\",Stock!#REF!,\"\")","v":{"$error":"#REF!"}},{"$f":"IF(Stock!#REF!<>\"\",Stock!#REF!,\"\")","v":{"$error":"#REF!"}},{"$f":"IF(Stock!#REF!<>\"\",SUM(Stock!#REF!,Stock!#REF!,Stock!#REF!),\"\")","v":{"$error":"#REF!"}},{"$f":"IF(Stock!#REF!<>\"\",#REF!*(1+Pilotage!$M$20),\"\")","v":{"$error":"#REF!"}},null,{"$f":"IF(Stock!#REF!<>\"\",IF(Stock!#REF!>0,Stock!#REF!/Stock!#REF!,0),\"\")","v":{"$error":"#REF!"}},{"$f":"IF(Stock!#REF!<>\"\",E455*Pilotage!$D$15,\"\")","v":{"$error":"#REF!"}},{"$f":"IF(Stock!#REF!<>\"\",IF(Stock!#REF!>0,Stock!#REF!,0),\"\")","v":{"$error":"#REF!"}},{"$f":"IF(Stock!#REF!<>\"\",Pilotage!$M$27,\"\")","v":{"$error":"#REF!"}},{"$f":"IF(Stock!#REF!<>\"\",ROUND(Stock!#REF!*J455,0),\"\")","v":{"$error":"#REF!"}},{"$f":"IF(Stock!#REF!<>\"\",$H455*K455,\"\")","v":{"$error":"#REF!"}},{"$f":"IF(Stock!#REF!<>\"\",Pilotage!N$27,\"\")","v":{"$error":"#REF!"}},{"$f":"IF(Stock!#REF!<>\"\",ROUND(K455*M455,0),\"\")","v":{"$error":"#REF!"}},{"$f":"IF(Stock!#REF!<>\"\",$H455*N455,\"\")","v":{"$error":"#REF!"}},{"$f":"IF(Stock!#REF!<>\"\",Pilotage!O$27,\"\")","v":{"$error":"#REF!"}},{"$f":"IF(Stock!#REF!<>\"\",ROUND(K455*P455,0),\"\")","v":{"$error":"#REF!"}},{"$f":"IF(Stock!#REF!<>\"\",$H455*Q455,\"\")","v":{"$error":"#REF!"}},{"$f":"IF(Stock!#REF!<>\"\",Pilotage!P$27,\"\")","v":{"$error":"#REF!"}},{"$f":"IF(Stock!#REF!<>\"\",ROUND(Q455*S455,0),\"\")","v":{"$error":"#REF!"}},{"$f":"IF(Stock!#REF!<>\"\",$H455*T455,\"\")","v":{"$error":"#REF!"}},{"$f":"IF(Stock!#REF!<>\"\",Pilotage!Q$27,\"\")","v":{"$error":"#REF!"}},{"$f":"IF(Stock!#REF!<>\"\",ROUND(T455*V455,0),\"\")","v":{"$error":"#REF!"}},{"$f":"IF(Stock!#REF!<>\"\",$H455*W455,\"\")","v":{"$error":"#REF!"}},{"$f":"IF(Stock!#REF!<>\"\",Pilotage!R$27,\"\")","v":{"$error":"#REF!"}},{"$f":"IF(Stock!#REF!<>\"\",ROUND(W455*Y455,0),\"\")","v":{"$error":"#REF!"}},{"$f":"IF(Stock!#REF!<>\"\",$H455*Z455,\"\")","v":{"$error":"#REF!"}}]
[{"$f":"IF(Stock!#REF!<>\"\",Stock!#REF!,\"\")","v":{"$error":"#REF!"}},{"$f":"IF(Stock!#REF!<>\"\",Stock!#REF!,\"\")","v":{"$error":"#REF!"}},{"$f":"IF(Stock!#REF!<>\"\",Stock!#REF!,\"\")","v":{"$error":"#REF!"}},{"$f":"IF(Stock!#REF!<>\"\",SUM(Stock!#REF!,Stock!#REF!,Stock!#REF!),\"\")","v":{"$error":"#REF!"}},{"$f":"IF(Stock!#REF!<>\"\",#REF!*(1+Pilotage!$M$20),\"\")","v":{"$error":"#REF!"}},null,{"$f":"IF(Stock!#REF!<>\"\",IF(Stock!#REF!>0,Stock!#REF!/Stock!#REF!,0),\"\")","v":{"$error":"#REF!"}},{"$f":"IF(Stock!#REF!<>\"\",E456*Pilotage!$D$15,\"\")","v":{"$error":"#REF!"}},{"$f":"IF(Stock!#REF!<>\"\",IF(Stock!#REF!>0,Stock!#REF!,0),\"\")","v":{"$error":"#REF!"}},{"$f":"IF(Stock!#REF!<>\"\",Pilotage!$M$27,\"\")","v":{"$error":"#REF!"}},{"$f":"IF(Stock!#REF!<>\"\",ROUND(Stock!#REF!*J456,0),\"\")","v":{"$error":"#REF!"}},{"$f":"IF(Stock!#REF!<>\"\",$H456*K456,\"\")","v":{"$error":"#REF!"}},{"$f":"IF(Stock!#REF!<>\"\",Pilotage!N$27,\"\")","v":{"$error":"#REF!"}},{"$f":"IF(Stock!#REF!<>\"\",ROUND(K456*M456,0),\"\")","v":{"$error":"#REF!"}},{"$f":"IF(Stock!#REF!<>\"\",$H456*N456,\"\")","v":{"$error":"#REF!"}},{"$f":"IF(Stock!#REF!<>\"\",Pilotage!O$27,\"\")","v":{"$error":"#REF!"}},{"$f":"IF(Stock!#REF!<>\"\",ROUND(K456*P456,0),\"\")","v":{"$error":"#REF!"}},{"$f":"IF(Stock!#REF!<>\"\",$H456*Q456,\"\")","v":{"$error":"#REF!"}},{"$f":"IF(Stock!#REF!<>\"\",Pilotage!P$27,\"\")","v":{"$error":"#REF!"}},{"$f":"IF(Stock!#REF!<>\"\",ROUND(Q456*S456,0),\"\")","v":{"$error":"#REF!"}},{"$f":"IF(Stock!#REF!<>\"\",$H456*T456,\"\")","v":{"$error":"#REF!"}},{"$f":"IF(Stock!#REF!<>\"\",Pilotage!Q$27,\"\")","v":{"$error":"#REF!"}},{"$f":"IF(Stock!#REF!<>\"\",ROUND(T456*V456,0),\"\")","v":{"$error":"#REF!"}},{"$f":"IF(Stock!#REF!<>\"\",$H456*W456,\"\")","v":{"$error":"#REF!"}},{"$f":"IF(Stock!#REF!<>\"\",Pilotage!R$27,\"\")","v":{"$error":"#REF!"}},{"$f":"IF(Stock!#REF!<>\"\",ROUND(W456*Y456,0),\"\")","v":{"$error":"#REF!"}},{"$f":"IF(Stock!#REF!<>\"\",$H456*Z456,\"\")","v":{"$error":"#REF!"}}]
[{"$f":"IF(Stock!B8<>\"\",Stock!B8,\"\")","v":""},{"$f":"IF(Stock!C8<>\"\",Stock!C8,\"\")","v":""},{"$f":"IF(Stock!D8<>\"\",Stock!D8,\"\")","v":"Article 1"},{"$f":"IF(Stock!$A8<>\"\",SUM(Stock!$J8,Stock!#REF!,Stock!$G8),\"\")","v":{"$error":"#REF!"}},{"$f":"IF(Stock!$A8<>\"\",#REF!*(1+Pilotage!$M$20),\"\")","v":{"$error":"#REF!"}},null,{"$f":"IF(Stock!$A8<>\"\",IF(Stock!$A8>0,Stock!$K8/Stock!$A8,0),\"\")","v":0},{"$f":"IF(Stock!$A8<>\"\",E457*Pilotage!$D$15,\"\")","v":{"$error":"#REF!"}},{"$f":"IF(Stock!$A8<>\"\",IF(Stock!$A8>0,Stock!$A8,0),\"\")","v":0},{"$f":"IF(Stock!$A8<>\"\",Pilotage!$M$27,\"\")","v":0},{"$f":"IF(Stock!$A8<>\"\",ROUND(Stock!$A8*J457,0),\"\")","v":0},{"$f":"IF(Stock!$A8<>\"\",$H457*K457,\"\")","v":{"$error":"#REF!"}},{"$f":"IF(Stock!$A8<>\"\",Pilotage!N$27,\"\")","v":0},{"$f":"IF(Stock!$A8<>\"\",ROUND(K457*M457,0),\"\")","v":0},{"$f":"IF(Stock!$A8<>\"\",$H457*N457,\"\")","v":{"$error":"#REF!"}},{"$f":"IF(Stock!$A8<>\"\",Pilotage!O$27,\"\")","v":0},{"$f":"IF(Stock!$A8<>\"\",ROUND(K457*P457,0),\"\")","v":0},{"$f":"IF(Stock!$A8<>\"\",$H457*Q457,\"\")","v":{"$error":"#REF!"}},{"$f":"IF(Stock!$A8<>\"\",Pilotage!P$27,\"\")","v":0},{"$f":"IF(Stock!$A8<>\"\",ROUND(Q457*S457,0),\"\")","v":0},{"$f":"IF(Stock!$A8<>\"\",$H457*T457,\"\")","v":{"$error":"#REF!"}},{"$f":"IF(Stock!$A8<>\"\",Pilotage!Q$27,\"\")","v":0},{"$f":"IF(Stock!$A8<>\"\",ROUND(T457*V457,0),\"\")","v":0},{"$f":"IF(Stock!$A8<>\"\",$H457*W457,\"\")","v":{"$error":"#REF!"}},{"$f":"IF(Stock!$A8<>\"\",Pilotage!R$27,\"\")","v":0},{"$f":"IF(Stock!$A8<>\"\",ROUND(W457*Y457,0),\"\")","v":0},{"$f":"IF(Stock!$A8<>\"\",$H457*Z457,\"\")","v":{"$error":"#REF!"}}]
[{"$f":"IF(Stock!B9<>\"\",Stock!B9,\"\")","v":""},{"$f":"IF(Stock!C9<>\"\",Stock!C9,\"\")","v":""},{"$f":"IF(Stock!D9<>\"\",Stock!D9,\"\")","v":"Article 2"},{"$f":"IF(Stock!$A9<>\"\",SUM(Stock!$J9,Stock!#REF!,Stock!$G9),\"\")","v":{"$error":"#REF!"}},{"$f":"IF(Stock!$A9<>\"\",#REF!*(1+Pilotage!$M$20),\"\")","v":{"$error":"#REF!"}},null,{"$f":"IF(Stock!$A9<>\"\",IF(Stock!$A9>0,Stock!$K9/Stock!$A9,0),\"\")","v":0},{"$f":"IF(Stock!$A9<>\"\",E458*Pilotage!$D$15,\"\")","v":{"$error":"#REF!"}},{"$f":"IF(Stock!$A9<>\"\",IF(Stock!$A9>0,Stock!$A9,0),\"\")","v":0},{"$f":"IF(Stock!$A9<>\"\",Pilotage!$M$27,\"\")","v":0},{"$f":"IF(Stock!$A9<>\"\",ROUND(Stock!$A9*J458,0),\"\")","v":0},{"$f":"IF(Stock!$A9<>\"\",$H458*K458,\"\")","v":{"$error":"#REF!"}},{"$f":"IF(Stock!$A9<>\"\",Pilotage!N$27,\"\")","v":0},{"$f":"IF(Stock!$A9<>\"\",ROUND(K458*M458,0),\"\")","v":0},{"$f":"IF(Stock!$A9<>\"\",$H458*N458,\"\")","v":{"$error":"#REF!"}},{"$f":"IF(Stock!$A9<>\"\",Pilotage!O$27,\"\")","v":0},{"$f":"IF(Stock!$A9<>\"\",ROUND(K458*P458,0),\"\")","v":0},{"$f":"IF(Stock!$A9<>\"\",$H458*Q458,\"\")","v":{"$error":"#REF!"}},{"$f":"IF(Stock!$A9<>\"\",Pilotage!P$27,\"\")","v":0},{"$f":"IF(Stock!$A9<>\"\",ROUND(Q458*S458,0),\"\")","v":0},{"$f":"IF(Stock!$A9<>\"\",$H458*T458,\"\")","v":{"$error":"#REF!"}},{"$f":"IF(Stock!$A9<>\"\",Pilotage!Q$27,\"\")","v":0},{"$f":"IF(Stock!$A9<>\"\",ROUND(T458*V458,0),\"\")","v":0},{"$f":"IF(Stock!$A9<>\"\",$H458*W458,\"\")","v":{"$error":"#REF!"}},{"$f":"IF(Stock!$A9<>\"\",Pilotage!R$27,\"\")","v":0},{"$f":"IF(Stock!$A9<>\"\",ROUND(W458*Y458,0),\"\")","v":0},{"$f":"IF(Stock!$A9<>\"\",$H458*Z458,\"\")","v":{"$error":"#REF!"}}]
[{"$f":"IF(Stock!B10<>\"\",Stock!B10,\"\")","v":""},{"$f":"IF(Stock!C10<>\"\",Stock!C10,\"\")","v":""},{"$f":"IF(Stock!D10<>\"\",Stock!D10,\"\")","v":"Article 3"},{"$f":"IF(Stock!$A10<>\"\",SUM(Stock!$J10,Stock!#REF!,Stock!$G10),\"\")","v":{"$error":"#REF!"}},{"$f":"IF(Stock!$A10<>\"\",#REF!*(1+Pilotage!$M$20),\"\")","v":{"$error":"#REF!"}},null,{"$f":"IF(Stock!$A10<>\"\",IF(Stock!$A10>0,Stock!$K10/Stock!$A10,0),\"\")","v":0},{"$f":"IF(Stock!$A10<>\"\",E459*Pilotage!$D$15,\"\")","v":{"$error":"#REF!"}},{"$f":"IF(Stock!$A10<>\"\",IF(Stock!$A10>0,Stock!$A10,0),\"\")","v":0},{"$f":"IF(Stock!$A10<>\"\",Pilotage!$M$27,\"\")","v":0},{"$f":"IF(Stock!$A10<>\"\",ROUND(Stock!$A10*J459,0),\"\")","v":0},{"$f":"IF(Stock!$A10<>\"\",$H459*K459,\"\")","v":{"$error":"#REF!"}},{"$f":"IF(Stock!$A10<>\"\",Pilotage!N$27,\"\")","v":0},{"$f":"IF(Stock!$A10<>\"\",ROUND(K459*M459,0),\"\")","v":0},{"$f":"IF(Stock!$A10<>\"\",$H459*N459,\"\")","v":{"$error":"#REF!"}},{"$f":"IF(Stock!$A10<>\"\",Pilotage!O$27,\"\")","v":0},{"$f":"IF(Stock!$A10<>\"\",ROUND(K459*P459,0),\"\")","v":0},{"$f":"IF(Stock!$A10<>\"\",$H459*Q459,\"\")","v":{"$error":"#REF!"}},{"$f":"IF(Stock!$A10<>\"\",Pilotage!P$27,\"\")","v":0},{"$f":"IF(Stock!$A10<>\"\",ROUND(Q459*S459,0),\"\")","v":0},{"$f":"IF(Stock!$A10<>\"\",$H459*T459,\"\")","v":{"$error":"#REF!"}},{"$f":"IF(Stock!$A10<>\"\",Pilotage!Q$27,\"\")","v":0},{"$f":"IF(Stock!$A10<>\"\",ROUND(T459*V459,0),\"\")","v":0},{"$f":"IF(Stock!$A10<>\"\",$H459*W459,\"\")","v":{"$error":"#REF!"}},{"$f":"IF(Stock!$A10<>\"\",Pilotage!R$27,\"\")","v":0},{"$f":"IF(Stock!$A10<>\"\",ROUND(W459*Y459,0),\"\")","v":0},{"$f":"IF(Stock!$A10<>\"\",$H459*Z459,\"\")","v":{"$error":"#REF!"}}]
[{"$f":"IF(Stock!B11<>\"\",Stock!B11,\"\")","v":""},{"$f":"IF(Stock!C11<>\"\",Stock!C11,\"\")","v":""},{"$f":"IF(Stock!D11<>\"\",Stock!D11,\"\")","v":"Article 4"},{"$f":"IF(Stock!$A11<>\"\",SUM(Stock!$J11,Stock!#REF!,Stock!$G11),\"\")","v":{"$error":"#REF!"}},{"$f":"IF(Stock!$A11<>\"\",#REF!*(1+Pilotage!$M$20),\"\")","v":{"$error":"#REF!"}},null,{"$f":"IF(Stock!$A11<>\"\",IF(Stock!$A11>0,Stock!$K11/Stock!$A11,0),\"\")","v":0},{"$f":"IF(Stock!$A11<>\"\",E460*Pilotage!$D$15,\"\")","v":{"$error":"#REF!"}},{"$f":"IF(Stock!$A11<>\"\",IF(Stock!$A11>0,Stock!$A11,0),\"\")","v":0},{"$f":"IF(Stock!$A11<>\"\",Pilotage!$M$27,\"\")","v":0},{"$f":"IF(Stock!$A11<>\"\",ROUND(Stock!$A11*J460,0),\"\")","v":0},{"$f":"IF(Stock!$A11<>\"\",$H460*K460,\"\")","v":{"$error":"#REF!"}},{"$f":"IF(Stock!$A11<>\"\",Pilotage!N$27,\"\")","v":0},{"$f":"IF(Stock!$A11<>\"\",ROUND(K460*M460,0),\"\")","v":0},{"$f":"IF(Stock!$A11<>\"\",$H460*N460,\"\")","v":{"$error":"#REF!"}},{"$f":"IF(Stock!$A11<>\"\",Pilotage!O$27,\"\")","v":0},{"$f":"IF(Stock!$A11<>\"\",ROUND(K460*P460,0),\"\")","v":0},{"$f":"IF(Stock!$A11<>\"\",$H460*Q460,\"\")","v":{"$error":"#REF!"}},{"$f":"IF(Stock!$A11<>\"\",Pilotage!P$27,\"\")","v":0},{"$f":"IF(Stock!$A11<>\"\",ROUND(Q460*S460,0),\"\")","v":0},{"$f":"IF(Stock!$A11<>\"\",$H460*T460,\"\")","v":{"$error":"#REF!"}},{"$f":"IF(Stock!$A11<>\"\",Pilotage!Q$27,\"\")","v":0},{"$f":"IF(Stock!$A11<>\"\",ROUND(T460*V460,0),\"\")","v":0},{"$f":"IF(Stock!$A11<>\"\",$H460*W460,\"\")","v":{"$error":"#REF!"}},{"$f":"IF(Stock!$A11<>\"\",Pilotage!R$27,\"\")","v":0},{"$f":"IF(Stock!$A11<>\"\",ROUND(W460*Y460,0),\"\")","v":0},{"$f":"IF(Stock!$A11<>\"\",$H460*Z460,\"\")","v":{"$error":"#REF!"}}]
[{"$f":"IF(Stock!B12<>\"\",Stock!B12,\"\")","v":""},{"$f":"IF(Stock!C12<>\"\",Stock!C12,\"\")","v":""},{"$f":"IF(Stock!D12<>\"\",Stock!D12,\"\")","v":"Article 5"},{"$f":"IF(Stock!$A12<>\"\",SUM(Stock!$J12,Stock!#REF!,Stock!$G12),\"\")","v":{"$error":"#REF!"}},{"$f":"IF(Stock!$A12<>\"\",#REF!*(1+Pilotage!$M$20),\"\")","v":{"$error":"#REF!"}},null,{"$f":"IF(Stock!$A12<>\"\",IF(Stock!$A12>0,Stock!$K12/Stock!$A12,0),\"\")","v":0},{"$f":"IF(Stock!$A12<>\"\",E461*Pilotage!$D$15,\"\")","v":{"$error":"#REF!"}},{"$f":"IF(Stock!$A12<>\"\",IF(Stock!$A12>0,Stock!$A12,0),\"\")","v":0},{"$f":"IF(Stock!$A12<>\"\",Pilotage!$M$27,\"\")","v":0},{"$f":"IF(Stock!$A12<>\"\",ROUND(Stock!$A12*J461,0),\"\")","v":0},{"$f":"IF(Stock!$A12<>\"\",$H461*K461,\"\")","v":{"$error":"#REF!"}},{"$f":"IF(Stock!$A12<>\"\",Pilotage!N$27,\"\")","v":0},{"$f":"IF(Stock!$A12<>\"\",ROUND(K461*M461,0),\"\")","v":0},{"$f":"IF(Stock!$A12<>\"\",$H461*N461,\"\")","v":{"$error":"#REF!"}},{"$f":"IF(Stock!$A12<>\"\",Pilotage!O$27,\"\")","v":0},{"$f":"IF(Stock!$A12<>\"\",ROUND(K461*P461,0),\"\")","v":0},{"$f":"IF(Stock!$A12<>\"\",$H461*Q461,\"\")","v":{"$error":"#REF!"}},{"$f":"IF(Stock!$A12<>\"\",Pilotage!P$27,\"\")","v":0},{"$f":"IF(Stock!$A12<>\"\",ROUND(Q461*S461,0),\"\")","v":0},{"$f":"IF(Stock!$A12<>\"\",$H461*T461,\"\")","v":{"$error":"#REF!"}},{"$f":"IF(Stock!$A12<>\"\",Pilotage!Q$27,\"\")","v":0},{"$f":"IF(Stock!$A12<>\"\",ROUND(T461*V461,0),\"\")","v":0},{"$f":"IF(Stock!$A12<>\"\",$H461*W461,\"\")","v":{"$error":"#REF!"}},{"$f":"IF(Stock!$A12<>\"\",Pilotage!R$27,\"\")","v":0},{"$f":"IF(Stock!$A12<>\"\",ROUND(W461*Y461,0),\"\")","v":0},{"$f":"IF(Stock!$A12<>\"\",$H461*Z461,\"\")","v":{"$error":"#REF!"}}]
[{"$f":"IF(Stock!B13<>\"\",Stock!B13,\"\")","v":""},{"$f":"IF(Stock!C13<>\"\",Stock!C13,\"\")","v":""},{"$f":"IF(Stock!D13<>\"\",Stock!D13,\"\")","v":"Article 6"},{"$f":"IF(Stock!$A13<>\"\",SUM(Stock!$J13,Stock!#REF!,Stock!$G13),\"\")","v":{"$error":"#REF!"}},{"$f":"IF(Stock!$A13<>\"\",#REF!*(1+Pilotage!$M$20),\"\")","v":{"$error":"#REF!"}},null,{"$f":"IF(Stock!$A13<>\"\",IF(Stock!$A13>0,Stock!$K13/Stock!$A13,0),\"\")","v":0},{"$f":"IF(Stock!$A13<>\"\",E462*Pilotage!$D$15,\"\")","v":{"$error":"#REF!"}},{"$f":"IF(Stock!$A13<>\"\",IF(Stock!$A13>0,Stock!$A13,0),\"\")","v":0},{"$f":"IF(Stock!$A13<>\"\",Pilotage!$M$27,\"\")","v":0},{"$f":"IF(Stock!$A13<>\"\",ROUND(Stock!$A13*J462,0),\"\")","v":0},{"$f":"IF(Stock!$A13<>\"\",$H462*K462,\"\")","v":{"$error":"#REF!"}},{"$f":"IF(Stock!$A13<>\"\",Pilotage!N$27,\"\")","v":0},{"$f":"IF(Stock!$A13<>\"\",ROUND(K462*M462,0),\"\")","v":0},{"$f":"IF(Stock!$A13<>\"\",$H462*N462,\"\")","v":{"$error":"#REF!"}},{"$f":"IF(Stock!$A13<>\"\",Pilotage!O$27,\"\")","v":0},{"$f":"IF(Stock!$A13<>\"\",ROUND(K462*P462,0),\"\")","v":0},{"$f":"IF(Stock!$A13<>\"\",$H462*Q462,\"\")","v":{"$error":"#REF!"}},{"$f":"IF(Stock!$A13<>\"\",Pilotage!P$27,\"\")","v":0},{"$f":"IF(Stock!$A13<>\"\",ROUND(Q462*S462,0),\"\")","v":0},{"$f":"IF(Stock!$A13<>\"\",$H462*T462,\"\")","v":{"$error":"#REF!"}},{"$f":"IF(Stock!$A13<>\"\",Pilotage!Q$27,\"\")","v":0},{"$f":"IF(Stock!$A13<>\"\",ROUND(T462*V462,0),\"\")","v":0},{"$f":"IF(Stock!$A13<>\"\",$H462*W462,\"\")","v":{"$error":"#REF!"}},{"$f":"IF(Stock!$A13<>\"\",Pilotage!R$27,\"\")","v":0},{"$f":"IF(Stock!$A13<>\"\",ROUND(W462*Y462,0),\"\")","v":0},{"$f":"IF(Stock!$A13<>\"\",$H462*Z462,\"\")","v":{"$error":"#REF!"}}]
[{"$f":"IF(Stock!B14<>\"\",Stock!B14,\"\")","v":""},{"$f":"IF(Stock!C14<>\"\",Stock!C14,\"\")","v":""},{"$f":"IF(Stock!D14<>\"\",Stock!D14,\"\")","v":"Article 7"},{"$f":"IF(Stock!$A14<>\"\",SUM(Stock!$J14,Stock!#REF!,Stock!$G14),\"\")","v":{"$error":"#REF!"}},{"$f":"IF(Stock!$A14<>\"\",#REF!*(1+Pilotage!$M$20),\"\")","v":{"$error":"#REF!"}},null,{"$f":"IF(Stock!$A14<>\"\",IF(Stock!$A14>0,Stock!$K14/Stock!$A14,0),\"\")","v":0},{"$f":"IF(Stock!$A14<>\"\",E463*Pilotage!$D$15,\"\")","v":{"$error":"#REF!"}},{"$f":"IF(Stock!$A14<>\"\",IF(Stock!$A14>0,Stock!$A14,0),\"\")","v":0},{"$f":"IF(Stock!$A14<>\"\",Pilotage!$M$27,\"\")","v":0},{"$f":"IF(Stock!$A14<>\"\",ROUND(Stock!$A14*J463,0),\"\")","v":0},{"$f":"IF(Stock!$A14<>\"\",$H463*K463,\"\")","v":{"$error":"#REF!"}},{"$f":"IF(Stock!$A14<>\"\",Pilotage!N$27,\"\")","v":0},{"$f":"IF(Stock!$A14<>\"\",ROUND(K463*M463,0),\"\")","v":0},{"$f":"IF(Stock!$A14<>\"\",$H463*N463,\"\")","v":{"$error":"#REF!"}},{"$f":"IF(Stock!$A14<>\"\",Pilotage!O$27,\"\")","v":0},{"$f":"IF(Stock!$A14<>\"\",ROUND(K463*P463,0),\"\")","v":0},{"$f":"IF(Stock!$A14<>\"\",$H463*Q463,\"\")","v":{"$error":"#REF!"}},{"$f":"IF(Stock!$A14<>\"\",Pilotage!P$27,\"\")","v":0},{"$f":"IF(Stock!$A14<>\"\",ROUND(Q463*S463,0),\"\")","v":0},{"$f":"IF(Stock!$A14<>\"\",$H463*T463,\"\")","v":{"$error":"#REF!"}},{"$f":"IF(Stock!$A14<>\"\",Pilotage!Q$27,\"\")","v":0},{"$f":"IF(Stock!$A14<>\"\",ROUND(T463*V463,0),\"\")","v":0},{"$f":"IF(Stock!$A14<>\"\",$H463*W463,\"\")","v":{"$error":"#REF!"}},{"$f":"IF(Stock!$A14<>\"\",Pilotage!R$27,\"\")","v":0},{"$f":"IF(Stock!$A14<>\"\",ROUND(W463*Y463,0),\"\")","v":0},{"$f":"IF(Stock!$A14<>\"\",$H463*Z463,\"\")","v":{"$error":"#REF!"}}]
[{"$f":"IF(Stock!B15<>\"\",Stock!B15,\"\")","v":""},{"$f":"IF(Stock!C15<>\"\",Stock!C15,\"\")","v":""},{"$f":"IF(Stock!D15<>\"\",Stock!D15,\"\")","v":"Article 8"},{"$f":"IF(Stock!$A15<>\"\",SUM(Stock!$J15,Stock!#REF!,Stock!$G15),\"\")","v":{"$error":"#REF!"}},{"$f":"IF(Stock!$A15<>\"\",#REF!*(1+Pilotage!$M$20),\"\")","v":{"$error":"#REF!"}},null,{"$f":"IF(Stock!$A15<>\"\",IF(Stock!$A15>0,Stock!$K15/Stock!$A15,0),\"\")","v":0},{"$f":"IF(Stock!$A15<>\"\",E464*Pilotage!$D$15,\"\")","v":{"$error":"#REF!"}},{"$f":"IF(Stock!$A15<>\"\",IF(Stock!$A15>0,Stock!$A15,0),\"\")","v":0},{"$f":"IF(Stock!$A15<>\"\",Pilotage!$M$27,\"\")","v":0},{"$f":"IF(Stock!$A15<>\"\",ROUND(Stock!$A15*J464,0),\"\")","v":0},{"$f":"IF(Stock!$A15<>\"\",$H464*K464,\"\")","v":{"$error":"#REF!"}},{"$f":"IF(Stock!$A15<>\"\",Pilotage!N$27,\"\")","v":0},{"$f":"IF(Stock!$A15<>\"\",ROUND(K464*M464,0),\"\")","v":0},{"$f":"IF(Stock!$A15<>\"\",$H464*N464,\"\")","v":{"$error":"#REF!"}},{"$f":"IF(Stock!$A15<>\"\",Pilotage!O$27,\"\")","v":0},{"$f":"IF(Stock!$A15<>\"\",ROUND(K464*P464,0),\"\")","v":0},{"$f":"IF(Stock!$A15<>\"\",$H464*Q464,\"\")","v":{"$error":"#REF!"}},{"$f":"IF(Stock!$A15<>\"\",Pilotage!P$27,\"\")","v":0},{"$f":"IF(Stock!$A15<>\"\",ROUND(Q464*S464,0),\"\")","v":0},{"$f":"IF(Stock!$A15<>\"\",$H464*T464,\"\")","v":{"$error":"#REF!"}},{"$f":"IF(Stock!$A15<>\"\",Pilotage!Q$27,\"\")","v":0},{"$f":"IF(Stock!$A15<>\"\",ROUND(T464*V464,0),\"\")","v":0},{"$f":"IF(Stock!$A15<>\"\",$H464*W464,\"\")","v":{"$error":"#REF!"}},{"$f":"IF(Stock!$A15<>\"\",Pilotage!R$27,\"\")","v":0},{"$f":"IF(Stock!$A15<>\"\",ROUND(W464*Y464,0),\"\")","v":0},{"$f":"IF(Stock!$A15<>\"\",$H464*Z464,\"\")","v":{"$error":"#REF!"}}]
[{"$f":"IF(Stock!B16<>\"\",Stock!B16,\"\")","v":""},{"$f":"IF(Stock!C16<>\"\",Stock!C16,\"\")","v":""},{"$f":"IF(Stock!D16<>\"\",Stock!D16,\"\")","v":"Article 9"},{"$f":"IF(Stock!$A16<>\"\",SUM(Stock!$J16,Stock!#REF!,Stock!$G16),\"\")","v":{"$error":"#REF!"}},{"$f":"IF(Stock!$A16<>\"\",#REF!*(1+Pilotage!$M$20),\"\")","v":{"$error":"#REF!"}},null,{"$f":"IF(Stock!$A16<>\"\",IF(Stock!$A16>0,Stock!$K16/Stock!$A16,0),\"\")","v":0},{"$f":"IF(Stock!$A16<>\"\",E465*Pilotage!$D$15,\"\")","v":{"$error":"#REF!"}},{"$f":"IF(Stock!$A16<>\"\",IF(Stock!$A16>0,Stock!$A16,0),\"\")","v":0},{"$f":"IF(Stock!$A16<>\"\",Pilotage!$M$27,\"\")","v":0},{"$f":"IF(Stock!$A16<>\"\",ROUND(Stock!$A16*J465,0),\"\")","v":0},{"$f":"IF(Stock!$A16<>\"\",$H465*K465,\"\")","v":{"$error":"#REF!"}},{"$f":"IF(Stock!$A16<>\"\",Pilotage!N$27,\"\")","v":0},{"$f":"IF(Stock!$A16<>\"\",ROUND(K465*M465,0),\"\")","v":0},{"$f":"IF(Stock!$A16<>\"\",$H465*N465,\"\")","v":{"$error":"#REF!"}},{"$f":"IF(Stock!$A16<>\"\",Pilotage!O$27,\"\")","v":0},{"$f":"IF(Stock!$A16<>\"\",ROUND(K465*P465,0),\"\")","v":0},{"$f":"IF(Stock!$A16<>\"\",$H465*Q465,\"\")","v":{"$error":"#REF!"}},{"$f":"IF(Stock!$A16<>\"\",Pilotage!P$27,\"\")","v":0},{"$f":"IF(Stock!$A16<>\"\",ROUND(Q465*S465,0),\"\")","v":0},{"$f":"IF(Stock!$A16<>\"\",$H465*T465,\"\")","v":{"$error":"#REF!"}},{"$f":"IF(Stock!$A16<>\"\",Pilotage!Q$27,\"\")","v":0},{"$f":"IF(Stock!$A16<>\"\",ROUND(T465*V465,0),\"\")","v":0},{"$f":"IF(Stock!$A16<>\"\",$H465*W465,\"\")","v":{"$error":"#REF!"}},{"$f":"IF(Stock!$A16<>\"\",Pilotage!R$27,\"\")","v":0},{"$f":"IF(Stock!$A16<>\"\",ROUND(W465*Y465,0),\"\")","v":0},{"$f":"IF(Stock!$A16<>\"\",$H465*Z465,\"\")","v":{"$error":"#REF!"}}]
[{"$f":"IF(Stock!B17<>\"\",Stock!B17,\"\")","v":""},{"$f":"IF(Stock!C17<>\"\",Stock!C17,\"\")","v":""},{"$f":"IF(Stock!D17<>\"\",Stock!D17,\"\")","v":"Article 10"},{"$f":"IF(Stock!$A17<>\"\",SUM(Stock!$J17,Stock!#REF!,Stock!$G17),\"\")","v":{"$error":"#REF!"}},{"$f":"IF(Stock!$A17<>\"\",#REF!*(1+Pilotage!$M$20),\"\")","v":{"$error":"#REF!"}},null,{"$f":"IF(Stock!$A17<>\"\",IF(Stock!$A17>0,Stock!$K17/Stock!$A17,0),\"\")","v":0},{"$f":"IF(Stock!$A17<>\"\",E466*Pilotage!$D$15,\"\")","v":{"$error":"#REF!"}},{"$f":"IF(Stock!$A17<>\"\",IF(Stock!$A17>0,Stock!$A17,0),\"\")","v":0},{"$f":"IF(Stock!$A17<>\"\",Pilotage!$M$27,\"\")","v":0},{"$f":"IF(Stock!$A17<>\"\",ROUND(Stock!$A17*J466,0),\"\")","v":0},{"$f":"IF(Stock!$A17<>\"\",$H466*K466,\"\")","v":{"$error":"#REF!"}},{"$f":"IF(Stock!$A17<>\"\",Pilotage!N$27,\"\")","v":0},{"$f":"IF(Stock!$A17<>\"\",ROUND(K466*M466,0),\"\")","v":0},{"$f":"IF(Stock!$A17<>\"\",$H466*N466,\"\")","v":{"$error":"#REF!"}},{"$f":"IF(Stock!$A17<>\"\",Pilotage!O$27,\"\")","v":0},{"$f":"IF(Stock!$A17<>\"\",ROUND(K466*P466,0),\"\")","v":0},{"$f":"IF(Stock!$A17<>\"\",$H466*Q466,\"\")","v":{"$error":"#REF!"}},{"$f":"IF(Stock!$A17<>\"\",Pilotage!P$27,\"\")","v":0},{"$f":"IF(Stock!$A17<>\"\",ROUND(Q466*S466,0),\"\")","v":0},{"$f":"IF(Stock!$A17<>\"\",$H466*T466,\"\")","v":{"$error":"#REF!"}},{"$f":"IF(Stock!$A17<>\"\",Pilotage!Q$27,\"\")","v":0},{"$f":"IF(Stock!$A17<>\"\",ROUND(T466*V466,0),\"\")","v":0},{"$f":"IF(Stock!$A17<>\"\",$H466*W466,\"\")","v":{"$error":"#REF!"}},{"$f":"IF(Stock!$A17<>\"\",Pilotage!R$27,\"\")","v":0},{"$f":"IF(Stock!$A17<>\"\",ROUND(W466*Y466,0),\"\")","v":0},{"$f":"IF(Stock!$A17<>\"\",$H466*Z466,\"\")","v":{"$error":"#REF!"}}]
[{"$f":"IF(Stock!B18<>\"\",Stock!B18,\"\")","v":""},{"$f":"IF(Stock!C18<>\"\",Stock!C18,\"\")","v":""},{"$f":"IF(Stock!D18<>\"\",Stock!D18,\"\")","v":"Article 11"},{"$f":"IF(Stock!$A18<>\"\",SUM(Stock!$J18,Stock!#REF!,Stock!$G18),\"\")","v":{"$error":"#REF!"}},{"$f":"IF(Stock!$A18<>\"\",#REF!*(1+Pilotage!$M$20),\"\")","v":{"$error":"#REF!"}},null,{"$f":"IF(Stock!$A18<>\"\",IF(Stock!$A18>0,Stock!$K18/Stock!$A18,0),\"\")","v":0},{"$f":"IF(Stock!$A18<>\"\",E467*Pilotage!$D$15,\"\")","v":{"$error":"#REF!"}},{"$f":"IF(Stock!$A18<>\"\",IF(Stock!$A18>0,Stock!$A18,0),\"\")","v":0},{"$f":"IF(Stock!$A18<>\"\",Pilotage!$M$27,\"\")","v":0},{"$f":"IF(Stock!$A18<>\"\",ROUND(Stock!$A18*J467,0),\"\")","v":0},{"$f":"IF(Stock!$A18<>\"\",$H467*K467,\"\")","v":{"$error":"#REF!"}},{"$f":"IF(Stock!$A18<>\"\",Pilotage!N$27,\"\")","v":0},{"$f":"IF(Stock!$A18<>\"\",ROUND(K467*M467,0),\"\")","v":0},{"$f":"IF(Stock!$A18<>\"\",$H467*N467,\"\")","v":{"$error":"#REF!"}},{"$f":"IF(Stock!$A18<>\"\",Pilotage!O$27,\"\")","v":0},{"$f":"IF(Stock!$A18<>\"\",ROUND(K467*P467,0),\"\")","v":0},{"$f":"IF(Stock!$A18<>\"\",$H467*Q467,\"\")","v":{"$error":"#REF!"}},{"$f":"IF(Stock!$A18<>\"\",Pilotage!P$27,\"\")","v":0},{"$f":"IF(Stock!$A18<>\"\",ROUND(Q467*S467,0),\"\")","v":0},{"$f":"IF(Stock!$A18<>\"\",$H467*T467,\"\")","v":{"$error":"#REF!"}},{"$f":"IF(Stock!$A18<>\"\",Pilotage!Q$27,\"\")","v":0},{"$f":"IF(Stock!$A18<>\"\",ROUND(T467*V467,0),\"\")","v":0},{"$f":"IF(Stock!$A18<>\"\",$H467*W467,\"\")","v":{"$error":"#REF!"}},{"$f":"IF(Stock!$A18<>\"\",Pilotage!R$27,\"\")","v":0},{"$f":"IF(Stock!$A18<>\"\",ROUND(W467*Y467,0),\"\")","v":0},{"$f":"IF(Stock!$A18<>\"\",$H467*Z467,\"\")","v":{"$error":"#REF!"}}]
[{"$f":"IF(Stock!B19<>\"\",Stock!B19,\"\")","v":""},{"$f":"IF(Stock!C19<>\"\",Stock!C19,\"\")","v":""},{"$f":"IF(Stock!D19<>\"\",Stock!D19,\"\")","v":"Article 12"},{"$f":"IF(Stock!$A19<>\"\",SUM(Stock!$J19,Stock!#REF!,Stock!$G19),\"\")","v":{"$error":"#REF!"}},{"$f":"IF(Stock!$A19<>\"\",#REF!*(1+Pilotage!$M$20),\"\")","v":{"$error":"#REF!"}},null,{"$f":"IF(Stock!$A19<>\"\",IF(Stock!$A19>0,Stock!$K19/Stock!$A19,0),\"\")","v":0},{"$f":"IF(Stock!$A19<>\"\",E468*Pilotage!$D$15,\"\")","v":{"$error":"#REF!"}},{"$f":"IF(Stock!$A19<>\"\",IF(Stock!$A19>0,Stock!$A19,0),\"\")","v":0},{"$f":"IF(Stock!$A19<>\"\",Pilotage!$M$27,\"\")","v":0},{"$f":"IF(Stock!$A19<>\"\",ROUND(Stock!$A19*J468,0),\"\")","v":0},{"$f":"IF(Stock!$A19<>\"\",$H468*K468,\"\")","v":{"$error":"#REF!"}},{"$f":"IF(Stock!$A19<>\"\",Pilotage!N$27,\"\")","v":0},{"$f":"IF(Stock!$A19<>\"\",ROUND(K468*M468,0),\"\")","v":0},{"$f":"IF(Stock!$A19<>\"\",$H468*N468,\"\")","v":{"$error":"#REF!"}},{"$f":"IF(Stock!$A19<>\"\",Pilotage!O$27,\"\")","v":0},{"$f":"IF(Stock!$A19<>\"\",ROUND(K468*P468,0),\"\")","v":0},{"$f":"IF(Stock!$A19<>\"\",$H468*Q468,\"\")","v":{"$error":"#REF!"}},{"$f":"IF(Stock!$A19<>\"\",Pilotage!P$27,\"\")","v":0},{"$f":"IF(Stock!$A19<>\"\",ROUND(Q468*S468,0),\"\")","v":0},{"$f":"IF(Stock!$A19<>\"\",$H468*T468,\"\")","v":{"$error":"#REF!"}},{"$f":"IF(Stock!$A19<>\"\",Pilotage!Q$27,\"\")","v":0},{"$f":"IF(Stock!$A19<>\"\",ROUND(T468*V468,0),\"\")","v":0},{"$f":"IF(Stock!$A19<>\"\",$H468*W468,\"\")","v":{"$error":"#REF!"}},{"$f":"IF(Stock!$A19<>\"\",Pilotage!R$27,\"\")","v":0},{"$f":"IF(Stock!$A19<>\"\",ROUND(W468*Y468,0),\"\")","v":0},{"$f":"IF(Stock!$A19<>\"\",$H468*Z468,\"\")","v":{"$error":"#REF!"}}]
[{"$f":"IF(Stock!B20<>\"\",Stock!B20,\"\")","v":""},{"$f":"IF(Stock!C20<>\"\",Stock!C20,\"\")","v":""},{"$f":"IF(Stock!D20<>\"\",Stock!D20,\"\")","v":"Article 13"},{"$f":"IF(Stock!$A20<>\"\",SUM(Stock!$J20,Stock!#REF!,Stock!$G20),\"\")","v":{"$error":"#REF!"}},{"$f":"IF(Stock!$A20<>\"\",#REF!*(1+Pilotage!$M$20),\"\")","v":{"$error":"#REF!"}},null,{"$f":"IF(Stock!$A20<>\"\",IF(Stock!$A20>0,Stock!$K20/Stock!$A20,0),\"\")","v":0},{"$f":"IF(Stock!$A20<>\"\",E469*Pilotage!$D$15,\"\")","v":{"$error":"#REF!"}},{"$f":"IF(Stock!$A20<>\"\",IF(Stock!$A20>0,Stock!$A20,0),\"\")","v":0},{"$f":"IF(Stock!$A20<>\"\",Pilotage!$M$27,\"\")","v":0},{"$f":"IF(Stock!$A20<>\"\",ROUND(Stock!$A20*J469,0),\"\")","v":0},{"$f":"IF(Stock!$A20<>\"\",$H469*K469,\"\")","v":{"$error":"#REF!"}},{"$f":"IF(Stock!$A20<>\"\",Pilotage!N$27,\"\")","v":0},{"$f":"IF(Stock!$A20<>\"\",ROUND(K469*M469,0),\"\")","v":0},{"$f":"IF(Stock!$A20<>\"\",$H469*N469,\"\")","v":{"$error":"#REF!"}},{"$f":"IF(Stock!$A20<>\"\",Pilotage!O$27,\"\")","v":0},{"$f":"IF(Stock!$A20<>\"\",ROUND(K469*P469,0),\"\")","v":0},{"$f":"IF(Stock!$A20<>\"\",$H469*Q469,\"\")","v":{"$error":"#REF!"}},{"$f":"IF(Stock!$A20<>\"\",Pilotage!P$27,\"\")","v":0},{"$f":"IF(Stock!$A20<>\"\",ROUND(Q469*S469,0),\"\")","v":0},{"$f":"IF(Stock!$A20<>\"\",$H469*T469,\"\")","v":{"$error":"#REF!"}},{"$f":"IF(Stock!$A20<>\"\",Pilotage!Q$27,\"\")","v":0},{"$f":"IF(Stock!$A20<>\"\",ROUND(T469*V469,0),\"\")","v":0},{"$f":"IF(Stock!$A20<>\"\",$H469*W469,\"\")","v":{"$error":"#REF!"}},{"$f":"IF(Stock!$A20<>\"\",Pilotage!R$27,\"\")","v":0},{"$f":"IF(Stock!$A20<>\"\",ROUND(W469*Y469,0),\"\")","v":0},{"$f":"IF(Stock!$A20<>\"\",$H469*Z469,\"\")","v":{"$error":"#REF!"}}]
[{"$f":"IF(Stock!B21<>\"\",Stock!B21,\"\")","v":""},{"$f":"IF(Stock!C21<>\"\",Stock!C21,\"\")","v":""},{"$f":"IF(Stock!D21<>\"\",Stock!D21,\"\")","v":"Article 14"},{"$f":"IF(Stock!$A21<>\"\",SUM(Stock!$J21,Stock!#REF!,Stock!$G21),\"\")","v":{"$error":"#REF!"}},{"$f":"IF(Stock!$A21<>\"\",#REF!*(1+Pilotage!$M$20),\"\")","v":{"$error":"#REF!"}},null,{"$f":"IF(Stock!$A21<>\"\",IF(Stock!$A21>0,Stock!$K21/Stock!$A21,0),\"\")","v":0},{"$f":"IF(Stock!$A21<>\"\",E470*Pilotage!$D$15,\"\")","v":{"$error":"#REF!"}},{"$f":"IF(Stock!$A21<>\"\",IF(Stock!$A21>0,Stock!$A21,0),\"\")","v":0},{"$f":"IF(Stock!$A21<>\"\",Pilotage!$M$27,\"\")","v":0},{"$f":"IF(Stock!$A21<>\"\",ROUND(Stock!$A21*J470,0),\"\")","v":0},{"$f":"IF(Stock!$A21<>\"\",$H470*K470,\"\")","v":{"$error":"#REF!"}},{"$f":"IF(Stock!$A21<>\"\",Pilotage!N$27,\"\")","v":0},{"$f":"IF(Stock!$A21<>\"\",ROUND(K470*M470,0),\"\")","v":0},{"$f":"IF(Stock!$A21<>\"\",$H470*N470,\"\")","v":{"$error":"#REF!"}},{"$f":"IF(Stock!$A21<>\"\",Pilotage!O$27,\"\")","v":0},{"$f":"IF(Stock!$A21<>\"\",ROUND(K470*P470,0),\"\")","v":0},{"$f":"IF(Stock!$A21<>\"\",$H470*Q470,\"\")","v":{"$error":"#REF!"}},{"$f":"IF(Stock!$A21<>\"\",Pilotage!P$27,\"\")","v":0},{"$f":"IF(Stock!$A21<>\"\",ROUND(Q470*S470,0),\"\")","v":0},{"$f":"IF(Stock!$A21<>\"\",$H470*T470,\"\")","v":{"$error":"#REF!"}},{"$f":"IF(Stock!$A21<>\"\",Pilotage!Q$27,\"\")","v":0},{"$f":"IF(Stock!$A21<>\"\",ROUND(T470*V470,0),\"\")","v":0},{"$f":"IF(Stock!$A21<>\"\",$H470*W470,\"\")","v":{"$error":"#REF!"}},{"$f":"IF(Stock!$A21<>\"\",Pilotage!R$27,\"\")","v":0},{"$f":"IF(Stock!$A21<>\"\",ROUND(W470*Y470,0),\"\")","v":0},{"$f":"IF(Stock!$A21<>\"\",$H470*Z470,\"\")","v":{"$error":"#REF!"}}]
[{"$f":"IF(Stock!B22<>\"\",Stock!B22,\"\")","v":""},{"$f":"IF(Stock!C22<>\"\",Stock!C22,\"\")","v":""},{"$f":"IF(Stock!D22<>\"\",Stock!D22,\"\")","v":"Article 15"},{"$f":"IF(Stock!$A22<>\"\",SUM(Stock!$J22,Stock!#REF!,Stock!$G22),\"\")","v":{"$error":"#REF!"}},{"$f":"IF(Stock!$A22<>\"\",#REF!*(1+Pilotage!$M$20),\"\")","v":{"$error":"#REF!"}},null,{"$f":"IF(Stock!$A22<>\"\",IF(Stock!$A22>0,Stock!$K22/Stock!$A22,0),\"\")","v":0},{"$f":"IF(Stock!$A22<>\"\",E471*Pilotage!$D$15,\"\")","v":{"$error":"#REF!"}},{"$f":"IF(Stock!$A22<>\"\",IF(Stock!$A22>0,Stock!$A22,0),\"\")","v":0},{"$f":"IF(Stock!$A22<>\"\",Pilotage!$M$27,\"\")","v":0},{"$f":"IF(Stock!$A22<>\"\",ROUND(Stock!$A22*J471,0),\"\")","v":0},{"$f":"IF(Stock!$A22<>\"\",$H471*K471,\"\")","v":{"$error":"#REF!"}},{"$f":"IF(Stock!$A22<>\"\",Pilotage!N$27,\"\")","v":0},{"$f":"IF(Stock!$A22<>\"\",ROUND(K471*M471,0),\"\")","v":0},{"$f":"IF(Stock!$A22<>\"\",$H471*N471,\"\")","v":{"$error":"#REF!"}},{"$f":"IF(Stock!$A22<>\"\",Pilotage!O$27,\"\")","v":0},{"$f":"IF(Stock!$A22<>\"\",ROUND(K471*P471,0),\"\")","v":0},{"$f":"IF(Stock!$A22<>\"\",$H471*Q471,\"\")","v":{"$error":"#REF!"}},{"$f":"IF(Stock!$A22<>\"\",Pilotage!P$27,\"\")","v":0},{"$f":"IF(Stock!$A22<>\"\",ROUND(Q471*S471,0),\"\")","v":0},{"$f":"IF(Stock!$A22<>\"\",$H471*T471,\"\")","v":{"$error":"#REF!"}},{"$f":"IF(Stock!$A22<>\"\",Pilotage!Q$27,\"\")","v":0},{"$f":"IF(Stock!$A22<>\"\",ROUND(T471*V471,0),\"\")","v":0},{"$f":"IF(Stock!$A22<>\"\",$H471*W471,\"\")","v":{"$error":"#REF!"}},{"$f":"IF(Stock!$A22<>\"\",Pilotage!R$27,\"\")","v":0},{"$f":"IF(Stock!$A22<>\"\",ROUND(W471*Y471,0),\"\")","v":0},{"$f":"IF(Stock!$A22<>\"\",$H471*Z471,\"\")","v":{"$error":"#REF!"}}]
[{"$f":"IF(Stock!B23<>\"\",Stock!B23,\"\")","v":""},{"$f":"IF(Stock!C23<>\"\",Stock!C23,\"\")","v":""},{"$f":"IF(Stock!D23<>\"\",Stock!D23,\"\")","v":"Article 16"},{"$f":"IF(Stock!$A23<>\"\",SUM(Stock!$J23,Stock!#REF!,Stock!$G23),\"\")","v":{"$error":"#REF!"}},{"$f":"IF(Stock!$A23<>\"\",#REF!*(1+Pilotage!$M$20),\"\")","v":{"$error":"#REF!"}},null,{"$f":"IF(Stock!$A23<>\"\",IF(Stock!$A23>0,Stock!$K23/Stock!$A23,0),\"\")","v":0},{"$f":"IF(Stock!$A23<>\"\",E472*Pilotage!$D$15,\"\")","v":{"$error":"#REF!"}},{"$f":"IF(Stock!$A23<>\"\",IF(Stock!$A23>0,Stock!$A23,0),\"\")","v":0},{"$f":"IF(Stock!$A23<>\"\",Pilotage!$M$27,\"\")","v":0},{"$f":"IF(Stock!$A23<>\"\",ROUND(Stock!$A23*J472,0),\"\")","v":0},{"$f":"IF(Stock!$A23<>\"\",$H472*K472,\"\")","v":{"$error":"#REF!"}},{"$f":"IF(Stock!$A23<>\"\",Pilotage!N$27,\"\")","v":0},{"$f":"IF(Stock!$A23<>\"\",ROUND(K472*M472,0),\"\")","v":0},{"$f":"IF(Stock!$A23<>\"\",$H472*N472,\"\")","v":{"$error":"#REF!"}},{"$f":"IF(Stock!$A23<>\"\",Pilotage!O$27,\"\")","v":0},{"$f":"IF(Stock!$A23<>\"\",ROUND(K472*P472,0),\"\")","v":0},{"$f":"IF(Stock!$A23<>\"\",$H472*Q472,\"\")","v":{"$error":"#REF!"}},{"$f":"IF(Stock!$A23<>\"\",Pilotage!P$27,\"\")","v":0},{"$f":"IF(Stock!$A23<>\"\",ROUND(Q472*S472,0),\"\")","v":0},{"$f":"IF(Stock!$A23<>\"\",$H472*T472,\"\")","v":{"$error":"#REF!"}},{"$f":"IF(Stock!$A23<>\"\",Pilotage!Q$27,\"\")","v":0},{"$f":"IF(Stock!$A23<>\"\",ROUND(T472*V472,0),\"\")","v":0},{"$f":"IF(Stock!$A23<>\"\",$H472*W472,\"\")","v":{"$error":"#REF!"}},{"$f":"IF(Stock!$A23<>\"\",Pilotage!R$27,\"\")","v":0},{"$f":"IF(Stock!$A23<>\"\",ROUND(W472*Y472,0),\"\")","v":0},{"$f":"IF(Stock!$A23<>\"\",$H472*Z472,\"\")","v":{"$error":"#REF!"}}]
[{"$f":"IF(Stock!B24<>\"\",Stock!B24,\"\")","v":""},{"$f":"IF(Stock!C24<>\"\",Stock!C24,\"\")","v":""},{"$f":"IF(Stock!D24<>\"\",Stock!D24,\"\")","v":"Article 17"},{"$f":"IF(Stock!$A24<>\"\",SUM(Stock!$J24,Stock!#REF!,Stock!$G24),\"\")","v":{"$error":"#REF!"}},{"$f":"IF(Stock!$A24<>\"\",#REF!*(1+Pilotage!$M$20),\"\")","v":{"$error":"#REF!"}},null,{"$f":"IF(Stock!$A24<>\"\",IF(Stock!$A24>0,Stock!$K24/Stock!$A24,0),\"\")","v":0},{"$f":"IF(Stock!$A24<>\"\",E473*Pilotage!$D$15,\"\")","v":{"$error":"#REF!"}},{"$f":"IF(Stock!$A24<>\"\",IF(Stock!$A24>0,Stock!$A24,0),\"\")","v":0},{"$f":"IF(Stock!$A24<>\"\",Pilotage!$M$27,\"\")","v":0},{"$f":"IF(Stock!$A24<>\"\",ROUND(Stock!$A24*J473,0),\"\")","v":0},{"$f":"IF(Stock!$A24<>\"\",$H473*K473,\"\")","v":{"$error":"#REF!"}},{"$f":"IF(Stock!$A24<>\"\",Pilotage!N$27,\"\")","v":0},{"$f":"IF(Stock!$A24<>\"\",ROUND(K473*M473,0),\"\")","v":0},{"$f":"IF(Stock!$A24<>\"\",$H473*N473,\"\")","v":{"$error":"#REF!"}},{"$f":"IF(Stock!$A24<>\"\",Pilotage!O$27,\"\")","v":0},{"$f":"IF(Stock!$A24<>\"\",ROUND(K473*P473,0),\"\")","v":0},{"$f":"IF(Stock!$A24<>\"\",$H473*Q473,\"\")","v":{"$error":"#REF!"}},{"$f":"IF(Stock!$A24<>\"\",Pilotage!P$27,\"\")","v":0},{"$f":"IF(Stock!$A24<>\"\",ROUND(Q473*S473,0),\"\")","v":0},{"$f":"IF(Stock!$A24<>\"\",$H473*T473,\"\")","v":{"$error":"#REF!"}},{"$f":"IF(Stock!$A24<>\"\",Pilotage!Q$27,\"\")","v":0},{"$f":"IF(Stock!$A24<>\"\",ROUND(T473*V473,0),\"\")","v":0},{"$f":"IF(Stock!$A24<>\"\",$H473*W473,\"\")","v":{"$error":"#REF!"}},{"$f":"IF(Stock!$A24<>\"\",Pilotage!R$27,\"\")","v":0},{"$f":"IF(Stock!$A24<>\"\",ROUND(W473*Y473,0),\"\")","v":0},{"$f":"IF(Stock!$A24<>\"\",$H473*Z473,\"\")","v":{"$error":"#REF!"}}]
[{"$f":"IF(Stock!B25<>\"\",Stock!B25,\"\")","v":""},{"$f":"IF(Stock!C25<>\"\",Stock!C25,\"\")","v":""},{"$f":"IF(Stock!D25<>\"\",Stock!D25,\"\")","v":"Article 18"},{"$f":"IF(Stock!$A25<>\"\",SUM(Stock!$J25,Stock!#REF!,Stock!$G25),\"\")","v":{"$error":"#REF!"}},{"$f":"IF(Stock!$A25<>\"\",D474*(1+Pilotage!$M$20),\"\")","v":{"$error":"#REF!"}},null,{"$f":"IF(Stock!$A25<>\"\",IF(Stock!$A25>0,Stock!$K25/Stock!$A25,0),\"\")","v":0},{"$f":"IF(Stock!$A25<>\"\",E474*Pilotage!$D$15,\"\")","v":{"$error":"#REF!"}},{"$f":"IF(Stock!$A25<>\"\",IF(Stock!$A25>0,Stock!$A25,0),\"\")","v":0},{"$f":"IF(Stock!$A25<>\"\",Pilotage!$M$27,\"\")","v":0},{"$f":"IF(Stock!$A25<>\"\",ROUND(Stock!$A25*J474,0),\"\")","v":0},{"$f":"IF(Stock!$A25<>\"\",$H474*K474,\"\")","v":{"$error":"#REF!"}},{"$f":"IF(Stock!$A25<>\"\",Pilotage!N$27,\"\")","v":0},{"$f":"IF(Stock!$A25<>\"\",ROUND(K474*M474,0),\"\")","v":0},{"$f":"IF(Stock!$A25<>\"\",$H474*N474,\"\")","v":{"$error":"#REF!"}},{"$f":"IF(Stock!$A25<>\"\",Pilotage!O$27,\"\")","v":0},{"$f":"IF(Stock!$A25<>\"\",ROUND(K474*P474,0),\"\")","v":0},{"$f":"IF(Stock!$A25<>\"\",$H474*Q474,\"\")","v":{"$error":"#REF!"}},{"$f":"IF(Stock!$A25<>\"\",Pilotage!P$27,\"\")","v":0},{"$f":"IF(Stock!$A25<>\"\",ROUND(Q474*S474,0),\"\")","v":0},{"$f":"IF(Stock!$A25<>\"\",$H474*T474,\"\")","v":{"$error":"#REF!"}},{"$f":"IF(Stock!$A25<>\"\",Pilotage!Q$27,\"\")","v":0},{"$f":"IF(Stock!$A25<>\"\",ROUND(T474*V474,0),\"\")","v":0},{"$f":"IF(Stock!$A25<>\"\",$H474*W474,\"\")","v":{"$error":"#REF!"}},{"$f":"IF(Stock!$A25<>\"\",Pilotage!R$27,\"\")","v":0},{"$f":"IF(Stock!$A25<>\"\",ROUND(W474*Y474,0),\"\")","v":0},{"$f":"IF(Stock!$A25<>\"\",$H474*Z474,\"\")","v":{"$error":"#REF!"}}]
[{"$f":"IF(Stock!B26<>\"\",Stock!B26,\"\")","v":""},{"$f":"IF(Stock!C26<>\"\",Stock!C26,\"\")","v":""},{"$f":"IF(Stock!D26<>\"\",Stock!D26,\"\")","v":"Article 19"},{"$f":"IF(Stock!$A26<>\"\",SUM(Stock!$J26,Stock!#REF!,Stock!$G26),\"\")","v":{"$error":"#REF!"}},{"$f":"IF(Stock!$A26<>\"\",D475*(1+Pilotage!$M$20),\"\")","v":{"$error":"#REF!"}},null,{"$f":"IF(Stock!$A26<>\"\",IF(Stock!$A26>0,Stock!$K26/Stock!$A26,0),\"\")","v":0},{"$f":"IF(Stock!$A26<>\"\",E475*Pilotage!$D$15,\"\")","v":{"$error":"#REF!"}},{"$f":"IF(Stock!$A26<>\"\",IF(Stock!$A26>0,Stock!$A26,0),\"\")","v":0},{"$f":"IF(Stock!$A26<>\"\",Pilotage!$M$27,\"\")","v":0},{"$f":"IF(Stock!$A26<>\"\",ROUND(Stock!$A26*J475,0),\"\")","v":0},{"$f":"IF(Stock!$A26<>\"\",$H475*K475,\"\")","v":{"$error":"#REF!"}},{"$f":"IF(Stock!$A26<>\"\",Pilotage!N$27,\"\")","v":0},{"$f":"IF(Stock!$A26<>\"\",ROUND(K475*M475,0),\"\")","v":0},{"$f":"IF(Stock!$A26<>\"\",$H475*N475,\"\")","v":{"$error":"#REF!"}},{"$f":"IF(Stock!$A26<>\"\",Pilotage!O$27,\"\")","v":0},{"$f":"IF(Stock!$A26<>\"\",ROUND(K475*P475,0),\"\")","v":0},{"$f":"IF(Stock!$A26<>\"\",$H475*Q475,\"\")","v":{"$error":"#REF!"}},{"$f":"IF(Stock!$A26<>\"\",Pilotage!P$27,\"\")","v":0},{"$f":"IF(Stock!$A26<>\"\",ROUND(Q475*S475,0),\"\")","v":0},{"$f":"IF(Stock!$A26<>\"\",$H475*T475,\"\")","v":{"$error":"#REF!"}},{"$f":"IF(Stock!$A26<>\"\",Pilotage!Q$27,\"\")","v":0},{"$f":"IF(Stock!$A26<>\"\",ROUND(T475*V475,0),\"\")","v":0},{"$f":"IF(Stock!$A26<>\"\",$H475*W475,\"\")","v":{"$error":"#REF!"}},{"$f":"IF(Stock!$A26<>\"\",Pilotage!R$27,\"\")","v":0},{"$f":"IF(Stock!$A26<>\"\",ROUND(W475*Y475,0),\"\")","v":0},{"$f":"IF(Stock!$A26<>\"\",$H475*Z475,\"\")","v":{"$error":"#REF!"}}]
[{"$f":"IF(Stock!B27<>\"\",Stock!B27,\"\")","v":""},{"$f":"IF(Stock!C27<>\"\",Stock!C27,\"\")","v":""},{"$f":"IF(Stock!D27<>\"\",Stock!D27,\"\")","v":"Article 20"},{"$f":"IF(Stock!$A27<>\"\",SUM(Stock!$J27,Stock!#REF!,Stock!$G27),\"\")","v":{"$error":"#REF!"}},{"$f":"IF(Stock!$A27<>\"\",D476*(1+Pilotage!$M$20),\"\")","v":{"$error":"#REF!"}},null,{"$f":"IF(Stock!$A27<>\"\",IF(Stock!$A27>0,Stock!$K27/Stock!$A27,0),\"\")","v":0},{"$f":"IF(Stock!$A27<>\"\",E476*Pilotage!$D$15,\"\")","v":{"$error":"#REF!"}},{"$f":"IF(Stock!$A27<>\"\",IF(Stock!$A27>0,Stock!$A27,0),\"\")","v":0},{"$f":"IF(Stock!$A27<>\"\",Pilotage!$M$27,\"\")","v":0},{"$f":"IF(Stock!$A27<>\"\",ROUND(Stock!$A27*J476,0),\"\")","v":0},{"$f":"IF(Stock!$A27<>\"\",$H476*K476,\"\")","v":{"$error":"#REF!"}},{"$f":"IF(Stock!$A27<>\"\",Pilotage!N$27,\"\")","v":0},{"$f":"IF(Stock!$A27<>\"\",ROUND(K476*M476,0),\"\")","v":0},{"$f":"IF(Stock!$A27<>\"\",$H476*N476,\"\")","v":{"$error":"#REF!"}},{"$f":"IF(Stock!$A27<>\"\",Pilotage!O$27,\"\")","v":0},{"$f":"IF(Stock!$A27<>\"\",ROUND(K476*P476,0),\"\")","v":0},{"$f":"IF(Stock!$A27<>\"\",$H476*Q476,\"\")","v":{"$error":"#REF!"}},{"$f":"IF(Stock!$A27<>\"\",Pilotage!P$27,\"\")","v":0},{"$f":"IF(Stock!$A27<>\"\",ROUND(Q476*S476,0),\"\")","v":0},{"$f":"IF(Stock!$A27<>\"\",$H476*T476,\"\")","v":{"$error":"#REF!"}},{"$f":"IF(Stock!$A27<>\"\",Pilotage!Q$27,\"\")","v":0},{"$f":"IF(Stock!$A27<>\"\",ROUND(T476*V476,0),\"\")","v":0},{"$f":"IF(Stock!$A27<>\"\",$H476*W476,\"\")","v":{"$error":"#REF!"}},{"$f":"IF(Stock!$A27<>\"\",Pilotage!R$27,\"\")","v":0},{"$f":"IF(Stock!$A27<>\"\",ROUND(W476*Y476,0),\"\")","v":0},{"$f":"IF(Stock!$A27<>\"\",$H476*Z476,\"\")","v":{"$error":"#REF!"}}]
[{"$f":"IF(Stock!B28<>\"\",Stock!B28,\"\")","v":""},{"$f":"IF(Stock!C28<>\"\",Stock!C28,\"\")","v":""},{"$f":"IF(Stock!D28<>\"\",Stock!D28,\"\")","v":"Article 21"},{"$f":"IF(Stock!$A28<>\"\",SUM(Stock!$J28,Stock!#REF!,Stock!$G28),\"\")","v":{"$error":"#REF!"}},{"$f":"IF(Stock!$A28<>\"\",D477*(1+Pilotage!$M$20),\"\")","v":{"$error":"#REF!"}},null,{"$f":"IF(Stock!$A28<>\"\",IF(Stock!$A28>0,Stock!$K28/Stock!$A28,0),\"\")","v":0},{"$f":"IF(Stock!$A28<>\"\",E477*Pilotage!$D$15,\"\")","v":{"$error":"#REF!"}},{"$f":"IF(Stock!$A28<>\"\",IF(Stock!$A28>0,Stock!$A28,0),\"\")","v":0},{"$f":"IF(Stock!$A28<>\"\",Pilotage!$M$27,\"\")","v":0},{"$f":"IF(Stock!$A28<>\"\",ROUND(Stock!$A28*J477,0),\"\")","v":0},{"$f":"IF(Stock!$A28<>\"\",$H477*K477,\"\")","v":{"$error":"#REF!"}},{"$f":"IF(Stock!$A28<>\"\",Pilotage!N$27,\"\")","v":0},{"$f":"IF(Stock!$A28<>\"\",ROUND(K477*M477,0),\"\")","v":0},{"$f":"IF(Stock!$A28<>\"\",$H477*N477,\"\")","v":{"$error":"#REF!"}},{"$f":"IF(Stock!$A28<>\"\",Pilotage!O$27,\"\")","v":0},{"$f":"IF(Stock!$A28<>\"\",ROUND(K477*P477,0),\"\")","v":0},{"$f":"IF(Stock!$A28<>\"\",$H477*Q477,\"\")","v":{"$error":"#REF!"}},{"$f":"IF(Stock!$A28<>\"\",Pilotage!P$27,\"\")","v":0},{"$f":"IF(Stock!$A28<>\"\",ROUND(Q477*S477,0),\"\")","v":0},{"$f":"IF(Stock!$A28<>\"\",$H477*T477,\"\")","v":{"$error":"#REF!"}},{"$f":"IF(Stock!$A28<>\"\",Pilotage!Q$27,\"\")","v":0},{"$f":"IF(Stock!$A28<>\"\",ROUND(T477*V477,0),\"\")","v":0},{"$f":"IF(Stock!$A28<>\"\",$H477*W477,\"\")","v":{"$error":"#REF!"}},{"$f":"IF(Stock!$A28<>\"\",Pilotage!R$27,\"\")","v":0},{"$f":"IF(Stock!$A28<>\"\",ROUND(W477*Y477,0),\"\")","v":0},{"$f":"IF(Stock!$A28<>\"\",$H477*Z477,\"\")","v":{"$error":"#REF!"}}]
[{"$f":"IF(Stock!B29<>\"\",Stock!B29,\"\")","v":""},{"$f":"IF(Stock!C29<>\"\",Stock!C29,\"\")","v":""},{"$f":"IF(Stock!D29<>\"\",Stock!D29,\"\")","v":"Article 22"},{"$f":"IF(Stock!$A29<>\"\",SUM(Stock!$J29,Stock!$F29,Stock!$G29),\"\")","v":450},{"$f":"IF(Stock!$A29<>\"\",D478*(1+Pilotage!$M$20),\"\")","v":450},null,{"$f":"IF(Stock!$A29<>\"\",IF(Stock!$A29>0,Stock!$K29/Stock!$A29,0),\"\")","v":0},{"$f":"IF(Stock!$A29<>\"\",E478*Pilotage!$D$15,\"\")","v":375},{"$f":"IF(Stock!$A29<>\"\",IF(Stock!$A29>0,Stock!$A29,0),\"\")","v":0},{"$f":"IF(Stock!$A29<>\"\",Pilotage!$M$27,\"\")","v":0},{"$f":"IF(Stock!$A29<>\"\",ROUND(Stock!$A29*J478,0),\"\")","v":0},{"$f":"IF(Stock!$A29<>\"\",$H478*K478,\"\")","v":0},{"$f":"IF(Stock!$A29<>\"\",Pilotage!N$27,\"\")","v":0},{"$f":"IF(Stock!$A29<>\"\",ROUND(K478*M478,0),\"\")","v":0},{"$f":"IF(Stock!$A29<>\"\",$H478*N478,\"\")","v":0},{"$f":"IF(Stock!$A29<>\"\",Pilotage!O$27,\"\")","v":0},{"$f":"IF(Stock!$A29<>\"\",ROUND(K478*P478,0),\"\")","v":0},{"$f":"IF(Stock!$A29<>\"\",$H478*Q478,\"\")","v":0},{"$f":"IF(Stock!$A29<>\"\",Pilotage!P$27,\"\")","v":0},{"$f":"IF(Stock!$A29<>\"\",ROUND(Q478*S478,0),\"\")","v":0},{"$f":"IF(Stock!$A29<>\"\",$H478*T478,\"\")","v":0},{"$f":"IF(Stock!$A29<>\"\",Pilotage!Q$27,\"\")","v":0},{"$f":"IF(Stock!$A29<>\"\",ROUND(T478*V478,0),\"\")","v":0},{"$f":"IF(Stock!$A29<>\"\",$H478*W478,\"\")","v":0},{"$f":"IF(Stock!$A29<>\"\",Pilotage!R$27,\"\")","v":0},{"$f":"IF(Stock!$A29<>\"\",ROUND(W478*Y478,0),\"\")","v":0},{"$f":"IF(Stock!$A29<>\"\",$H478*Z478,\"\")","v":0}]
[{"$f":"IF(Stock!B30<>\"\",Stock!B30,\"\")","v":""},{"$f":"IF(Stock!C30<>\"\",Stock!C30,\"\")","v":""},{"$f":"IF(Stock!D30<>\"\",Stock!D30,\"\")","v":"Article 23"},{"$f":"IF(Stock!$A30<>\"\",SUM(Stock!$J30,Stock!$F30,Stock!$G30),\"\")","v":500},{"$f":"IF(Stock!$A30<>\"\",D479*(1+Pilotage!$M$20),\"\")","v":500},null,{"$f":"IF(Stock!$A30<>\"\",IF(Stock!$A30>0,Stock!$K30/Stock!$A30,0),\"\")","v":0},{"$f":"IF(Stock!$A30<>\"\",E479*Pilotage!$D$15,\"\")","v":416.66666666666669},{"$f":"IF(Stock!$A30<>\"\",IF(Stock!$A30>0,Stock!$A30,0),\"\")","v":0},{"$f":"IF(Stock!$A30<>\"\",Pilotage!$M$27,\"\")","v":0},{"$f":"IF(Stock!$A30<>\"\",ROUND(Stock!$A30*J479,0),\"\")","v":0},{"$f":"IF(Stock!$A30<>\"\",$H479*K479,\"\")","v":0},{"$f":"IF(Stock!$A30<>\"\",Pilotage!N$27,\"\")","v":0},{"$f":"IF(Stock!$A30<>\"\",ROUND(K479*M479,0),\"\")","v":0},{"$f":"IF(Stock!$A30<>\"\",$H479*N479,\"\")","v":0},{"$f":"IF(Stock!$A30<>\"\",Pilotage!O$27,\"\")","v":0},{"$f":"IF(Stock!$A30<>\"\",ROUND(K479*P479,0),\"\")","v":0},{"$f":"IF(Stock!$A30<>\"\",$H479*Q479,\"\")","v":0},{"$f":"IF(Stock!$A30<>\"\",Pilotage!P$27,\"\")","v":0},{"$f":"IF(Stock!$A30<>\"\",ROUND(Q479*S479,0),\"\")","v":0},{"$f":"IF(Stock!$A30<>\"\",$H479*T479,\"\")","v":0},{"$f":"IF(Stock!$A30<>\"\",Pilotage!Q$27,\"\")","v":0},{"$f":"IF(Stock!$A30<>\"\",ROUND(T479*V479,0),\"\")","v":0},{"$f":"IF(Stock!$A30<>\"\",$H479*W479,\"\")","v":0},{"$f":"IF(Stock!$A30<>\"\",Pilotage!R$27,\"\")","v":0},{"$f":"IF(Stock!$A30<>\"\",ROUND(W479*Y479,0),\"\")","v":0},{"$f":"IF(Stock!$A30<>\"\",$H479*Z479,\"\")","v":0}]
[{"$f":"IF(Stock!B31<>\"\",Stock!B31,\"\")","v":""},{"$f":"IF(Stock!C31<>\"\",Stock!C31,\"\")","v":""},{"$f":"IF(Stock!D31<>\"\",Stock!D31,\"\")","v":""},{"$f":"IF(Stock!$A31<>\"\",SUM(Stock!$J31,Stock!$F31,Stock!$G31),\"\")","v":""},{"$f":"IF(Stock!$A31<>\"\",D480*(1+Pilotage!$M$20),\"\")","v":""},null,{"$f":"IF(Stock!$A31<>\"\",IF(Stock!$A31>0,Stock!$K31/Stock!$A31,0),\"\")","v":""},{"$f":"IF(Stock!$A31<>\"\",E480*Pilotage!$D$15,\"\")","v":""},{"$f":"IF(Stock!$A31<>\"\",IF(Stock!$A31>0,Stock!$A31,0),\"\")","v":""},{"$f":"IF(Stock!$A31<>\"\",Pilotage!$M$27,\"\")","v":""},{"$f":"IF(Stock!$A31<>\"\",ROUND(Stock!$A31*J480,0),\"\")","v":""},{"$f":"IF(Stock!$A31<>\"\",$H480*K480,\"\")","v":""},{"$f":"IF(Stock!$A31<>\"\",Pilotage!N$27,\"\")","v":""},{"$f":"IF(Stock!$A31<>\"\",ROUND(K480*M480,0),\"\")","v":""},{"$f":"IF(Stock!$A31<>\"\",$H480*N480,\"\")","v":""},{"$f":"IF(Stock!$A31<>\"\",Pilotage!O$27,\"\")","v":""},{"$f":"IF(Stock!$A31<>\"\",ROUND(K480*P480,0),\"\")","v":""},{"$f":"IF(Stock!$A31<>\"\",$H480*Q480,\"\")","v":""},{"$f":"IF(Stock!$A31<>\"\",Pilotage!P$27,\"\")","v":""},{"$f":"IF(Stock!$A31<>\"\",ROUND(Q480*S480,0),\"\")","v":""},{"$f":"IF(Stock!$A31<>\"\",$H480*T480,\"\")","v":""},{"$f":"IF(Stock!$A31<>\"\",Pilotage!Q$27,\"\")","v":""},{"$f":"IF(Stock!$A31<>\"\",ROUND(T480*V480,0),\"\")","v":""},{"$f":"IF(Stock!$A31<>\"\",$H480*W480,\"\")","v":""},{"$f":"IF(Stock!$A31<>\"\",Pilotage!R$27,\"\")","v":""},{"$f":"IF(Stock!$A31<>\"\",ROUND(W480*Y480,0),\"\")","v":""},{"$f":"IF(Stock!$A31<>\"\",$H480*Z480,\"\")","v":""}]
[{"$f":"IF(Stock!B32<>\"\",Stock!B32,\"\")","v":""},{"$f":"IF(Stock!C32<>\"\",Stock!C32,\"\")","v":""},{"$f":"IF(Stock!D32<>\"\",Stock!D32,\"\")","v":""},{"$f":"IF(Stock!$A32<>\"\",SUM(Stock!$J32,Stock!$F32,Stock!$G32),\"\")","v":""},{"$f":"IF(Stock!$A32<>\"\",D481*(1+Pilotage!$M$20),\"\")","v":""},null,{"$f":"IF(Stock!$A32<>\"\",IF(Stock!$A32>0,Stock!$K32/Stock!$A32,0),\"\")","v":""},{"$f":"IF(Stock!$A32<>\"\",E481*Pilotage!$D$15,\"\")","v":""},{"$f":"IF(Stock!$A32<>\"\",IF(Stock!$A32>0,Stock!$A32,0),\"\")","v":""},{"$f":"IF(Stock!$A32<>\"\",Pilotage!$M$27,\"\")","v":""},{"$f":"IF(Stock!$A32<>\"\",ROUND(Stock!$A32*J481,0),\"\")","v":""},{"$f":"IF(Stock!$A32<>\"\",$H481*K481,\"\")","v":""},{"$f":"IF(Stock!$A32<>\"\",Pilotage!N$27,\"\")","v":""},{"$f":"IF(Stock!$A32<>\"\",ROUND(K481*M481,0),\"\")","v":""},{"$f":"IF(Stock!$A32<>\"\",$H481*N481,\"\")","v":""},{"$f":"IF(Stock!$A32<>\"\",Pilotage!O$27,\"\")","v":""},{"$f":"IF(Stock!$A32<>\"\",ROUND(K481*P481,0),\"\")","v":""},{"$f":"IF(Stock!$A32<>\"\",$H481*Q481,\"\")","v":""},{"$f":"IF(Stock!$A32<>\"\",Pilotage!P$27,\"\")","v":""},{"$f":"IF(Stock!$A32<>\"\",ROUND(Q481*S481,0),\"\")","v":""},{"$f":"IF(Stock!$A32<>\"\",$H481*T481,\"\")","v":""},{"$f":"IF(Stock!$A32<>\"\",Pilotage!Q$27,\"\")","v":""},{"$f":"IF(Stock!$A32<>\"\",ROUND(T481*V481,0),\"\")","v":""},{"$f":"IF(Stock!$A32<>\"\",$H481*W481,\"\")","v":""},{"$f":"IF(Stock!$A32<>\"\",Pilotage!R$27,\"\")","v":""},{"$f":"IF(Stock!$A32<>\"\",ROUND(W481*Y481,0),\"\")","v":""},{"$f":"IF(Stock!$A32<>\"\",$H481*Z481,\"\")","v":""}]
[{"$f":"IF(Stock!B33<>\"\",Stock!B33,\"\")","v":""},{"$f":"IF(Stock!C33<>\"\",Stock!C33,\"\")","v":""},{"$f":"IF(Stock!D33<>\"\",Stock!D33,\"\")","v":""},{"$f":"IF(Stock!$A33<>\"\",SUM(Stock!$J33,Stock!$F33,Stock!$G33),\"\")","v":""},{"$f":"IF(Stock!$A33<>\"\",D482*(1+Pilotage!$M$20),\"\")","v":""},null,{"$f":"IF(Stock!$A33<>\"\",IF(Stock!$A33>0,Stock!$K33/Stock!$A33,0),\"\")","v":""},{"$f":"IF(Stock!$A33<>\"\",E482*Pilotage!$D$15,\"\")","v":""},{"$f":"IF(Stock!$A33<>\"\",IF(Stock!$A33>0,Stock!$A33,0),\"\")","v":""},{"$f":"IF(Stock!$A33<>\"\",Pilotage!$M$27,\"\")","v":""},{"$f":"IF(Stock!$A33<>\"\",ROUND(Stock!$A33*J482,0),\"\")","v":""},{"$f":"IF(Stock!$A33<>\"\",$H482*K482,\"\")","v":""},{"$f":"IF(Stock!$A33<>\"\",Pilotage!N$27,\"\")","v":""},{"$f":"IF(Stock!$A33<>\"\",ROUND(K482*M482,0),\"\")","v":""},{"$f":"IF(Stock!$A33<>\"\",$H482*N482,\"\")","v":""},{"$f":"IF(Stock!$A33<>\"\",Pilotage!O$27,\"\")","v":""},{"$f":"IF(Stock!$A33<>\"\",ROUND(K482*P482,0),\"\")","v":""},{"$f":"IF(Stock!$A33<>\"\",$H482*Q482,\"\")","v":""},{"$f":"IF(Stock!$A33<>\"\",Pilotage!P$27,\"\")","v":""},{"$f":"IF(Stock!$A33<>\"\",ROUND(Q482*S482,0),\"\")","v":""},{"$f":"IF(Stock!$A33<>\"\",$H482*T482,\"\")","v":""},{"$f":"IF(Stock!$A33<>\"\",Pilotage!Q$27,\"\")","v":""},{"$f":"IF(Stock!$A33<>\"\",ROUND(T482*V482,0),\"\")","v":""},{"$f":"IF(Stock!$A33<>\"\",$H482*W482,\"\")","v":""},{"$f":"IF(Stock!$A33<>\"\",Pilotage!R$27,\"\")","v":""},{"$f":"IF(Stock!$A33<>\"\",ROUND(W482*Y482,0),\"\")","v":""},{"$f":"IF(Stock!$A33<>\"\",$H482*Z482,\"\")","v":""}]
[{"$f":"IF(Stock!B34<>\"\",Stock!B34,\"\")","v":""},{"$f":"IF(Stock!C34<>\"\",Stock!C34,\"\")","v":""},{"$f":"IF(Stock!D34<>\"\",Stock!D34,\"\")","v":""},{"$f":"IF(Stock!$A34<>\"\",SUM(Stock!$J34,Stock!$F34,Stock!$G34),\"\")","v":""},{"$f":"IF(Stock!$A34<>\"\",D483*(1+Pilotage!$M$20),\"\")","v":""},null,{"$f":"IF(Stock!$A34<>\"\",IF(Stock!$A34>0,Stock!$K34/Stock!$A34,0),\"\")","v":""},{"$f":"IF(Stock!$A34<>\"\",E483*Pilotage!$D$15,\"\")","v":""},{"$f":"IF(Stock!$A34<>\"\",IF(Stock!$A34>0,Stock!$A34,0),\"\")","v":""},{"$f":"IF(Stock!$A34<>\"\",Pilotage!$M$27,\"\")","v":""},{"$f":"IF(Stock!$A34<>\"\",ROUND(Stock!$A34*J483,0),\"\")","v":""},{"$f":"IF(Stock!$A34<>\"\",$H483*K483,\"\")","v":""},{"$f":"IF(Stock!$A34<>\"\",Pilotage!N$27,\"\")","v":""},{"$f":"IF(Stock!$A34<>\"\",ROUND(K483*M483,0),\"\")","v":""},{"$f":"IF(Stock!$A34<>\"\",$H483*N483,\"\")","v":""},{"$f":"IF(Stock!$A34<>\"\",Pilotage!O$27,\"\")","v":""},{"$f":"IF(Stock!$A34<>\"\",ROUND(K483*P483,0),\"\")","v":""},{"$f":"IF(Stock!$A34<>\"\",$H483*Q483,\"\")","v":""},{"$f":"IF(Stock!$A34<>\"\",Pilotage!P$27,\"\")","v":""},{"$f":"IF(Stock!$A34<>\"\",ROUND(Q483*S483,0),\"\")","v":""},{"$f":"IF(Stock!$A34<>\"\",$H483*T483,\"\")","v":""},{"$f":"IF(Stock!$A34<>\"\",Pilotage!Q$27,\"\")","v":""},{"$f":"IF(Stock!$A34<>\"\",ROUND(T483*V483,0),\"\")","v":""},{"$f":"IF(Stock!$A34<>\"\",$H483*W483,\"\")","v":""},{"$f":"IF(Stock!$A34<>\"\",Pilotage!R$27,\"\")","v":""},{"$f":"IF(Stock!$A34<>\"\",ROUND(W483*Y483,0),\"\")","v":""},{"$f":"IF(Stock!$A34<>\"\",$H483*Z483,\"\")","v":""}]
[{"$f":"IF(Stock!B35<>\"\",Stock!B35,\"\")","v":""},{"$f":"IF(Stock!C35<>\"\",Stock!C35,\"\")","v":""},{"$f":"IF(Stock!D35<>\"\",Stock!D35,\"\")","v":""},{"$f":"IF(Stock!$A35<>\"\",SUM(Stock!$J35,Stock!$F35,Stock!$G35),\"\")","v":""},{"$f":"IF(Stock!$A35<>\"\",D484*(1+Pilotage!$M$20),\"\")","v":""},null,{"$f":"IF(Stock!$A35<>\"\",IF(Stock!$A35>0,Stock!$K35/Stock!$A35,0),\"\")","v":""},{"$f":"IF(Stock!$A35<>\"\",E484*Pilotage!$D$15,\"\")","v":""},{"$f":"IF(Stock!$A35<>\"\",IF(Stock!$A35>0,Stock!$A35,0),\"\")","v":""},{"$f":"IF(Stock!$A35<>\"\",Pilotage!$M$27,\"\")","v":""},{"$f":"IF(Stock!$A35<>\"\",ROUND(Stock!$A35*J484,0),\"\")","v":""},{"$f":"IF(Stock!$A35<>\"\",$H484*K484,\"\")","v":""},{"$f":"IF(Stock!$A35<>\"\",Pilotage!N$27,\"\")","v":""},{"$f":"IF(Stock!$A35<>\"\",ROUND(K484*M484,0),\"\")","v":""},{"$f":"IF(Stock!$A35<>\"\",$H484*N484,\"\")","v":""},{"$f":"IF(Stock!$A35<>\"\",Pilotage!O$27,\"\")","v":""},{"$f":"IF(Stock!$A35<>\"\",ROUND(K484*P484,0),\"\")","v":""},{"$f":"IF(Stock!$A35<>\"\",$H484*Q484,\"\")","v":""},{"$f":"IF(Stock!$A35<>\"\",Pilotage!P$27,\"\")","v":""},{"$f":"IF(Stock!$A35<>\"\",ROUND(Q484*S484,0),\"\")","v":""},{"$f":"IF(Stock!$A35<>\"\",$H484*T484,\"\")","v":""},{"$f":"IF(Stock!$A35<>\"\",Pilotage!Q$27,\"\")","v":""},{"$f":"IF(Stock!$A35<>\"\",ROUND(T484*V484,0),\"\")","v":""},{"$f":"IF(Stock!$A35<>\"\",$H484*W484,\"\")","v":""},{"$f":"IF(Stock!$A35<>\"\",Pilotage!R$27,\"\")","v":""},{"$f":"IF(Stock!$A35<>\"\",ROUND(W484*Y484,0),\"\")","v":""},{"$f":"IF(Stock!$A35<>\"\",$H484*Z484,\"\")","v":""}]
[{"$f":"IF(Stock!B36<>\"\",Stock!B36,\"\")","v":""},{"$f":"IF(Stock!C36<>\"\",Stock!C36,\"\")","v":""},{"$f":"IF(Stock!D36<>\"\",Stock!D36,\"\")","v":""},{"$f":"IF(Stock!$A36<>\"\",SUM(Stock!$J36,Stock!$F36,Stock!$G36),\"\")","v":""},{"$f":"IF(Stock!$A36<>\"\",D485*(1+Pilotage!$M$20),\"\")","v":""},null,{"$f":"IF(Stock!$A36<>\"\",IF(Stock!$A36>0,Stock!$K36/Stock!$A36,0),\"\")","v":""},{"$f":"IF(Stock!$A36<>\"\",E485*Pilotage!$D$15,\"\")","v":""},{"$f":"IF(Stock!$A36<>\"\",IF(Stock!$A36>0,Stock!$A36,0),\"\")","v":""},{"$f":"IF(Stock!$A36<>\"\",Pilotage!$M$27,\"\")","v":""},{"$f":"IF(Stock!$A36<>\"\",ROUND(Stock!$A36*J485,0),\"\")","v":""},{"$f":"IF(Stock!$A36<>\"\",$H485*K485,\"\")","v":""},{"$f":"IF(Stock!$A36<>\"\",Pilotage!N$27,\"\")","v":""},{"$f":"IF(Stock!$A36<>\"\",ROUND(K485*M485,0),\"\")","v":""},{"$f":"IF(Stock!$A36<>\"\",$H485*N485,\"\")","v":""},{"$f":"IF(Stock!$A36<>\"\",Pilotage!O$27,\"\")","v":""},{"$f":"IF(Stock!$A36<>\"\",ROUND(K485*P485,0),\"\")","v":""},{"$f":"IF(Stock!$A36<>\"\",$H485*Q485,\"\")","v":""},{"$f":"IF(Stock!$A36<>\"\",Pilotage!P$27,\"\")","v":""},{"$f":"IF(Stock!$A36<>\"\",ROUND(Q485*S485,0),\"\")","v":""},{"$f":"IF(Stock!$A36<>\"\",$H485*T485,\"\")","v":""},{"$f":"IF(Stock!$A36<>\"\",Pilotage!Q$27,\"\")","v":""},{"$f":"IF(Stock!$A36<>\"\",ROUND(T485*V485,0),\"\")","v":""},{"$f":"IF(Stock!$A36<>\"\",$H485*W485,\"\")","v":""},{"$f":"IF(Stock!$A36<>\"\",Pilotage!R$27,\"\")","v":""},{"$f":"IF(Stock!$A36<>\"\",ROUND(W485*Y485,0),\"\")","v":""},{"$f":"IF(Stock!$A36<>\"\",$H485*Z485,\"\")","v":""}]
[{"$f":"IF(Stock!B37<>\"\",Stock!B37,\"\")","v":""},{"$f":"IF(Stock!C37<>\"\",Stock!C37,\"\")","v":""},{"$f":"IF(Stock!D37<>\"\",Stock!D37,\"\")","v":""},{"$f":"IF(Stock!$A37<>\"\",SUM(Stock!$J37,Stock!$F37,Stock!$G37),\"\")","v":""},{"$f":"IF(Stock!$A37<>\"\",D486*(1+Pilotage!$M$20),\"\")","v":""},null,{"$f":"IF(Stock!$A37<>\"\",IF(Stock!$A37>0,Stock!$K37/Stock!$A37,0),\"\")","v":""},{"$f":"IF(Stock!$A37<>\"\",E486*Pilotage!$D$15,\"\")","v":""},{"$f":"IF(Stock!$A37<>\"\",IF(Stock!$A37>0,Stock!$A37,0),\"\")","v":""},{"$f":"IF(Stock!$A37<>\"\",Pilotage!$M$27,\"\")","v":""},{"$f":"IF(Stock!$A37<>\"\",ROUND(Stock!$A37*J486,0),\"\")","v":""},{"$f":"IF(Stock!$A37<>\"\",$H486*K486,\"\")","v":""},{"$f":"IF(Stock!$A37<>\"\",Pilotage!N$27,\"\")","v":""},{"$f":"IF(Stock!$A37<>\"\",ROUND(K486*M486,0),\"\")","v":""},{"$f":"IF(Stock!$A37<>\"\",$H486*N486,\"\")","v":""},{"$f":"IF(Stock!$A37<>\"\",Pilotage!O$27,\"\")","v":""},{"$f":"IF(Stock!$A37<>\"\",ROUND(K486*P486,0),\"\")","v":""},{"$f":"IF(Stock!$A37<>\"\",$H486*Q486,\"\")","v":""},{"$f":"IF(Stock!$A37<>\"\",Pilotage!P$27,\"\")","v":""},{"$f":"IF(Stock!$A37<>\"\",ROUND(Q486*S486,0),\"\")","v":""},{"$f":"IF(Stock!$A37<>\"\",$H486*T486,\"\")","v":""},{"$f":"IF(Stock!$A37<>\"\",Pilotage!Q$27,\"\")","v":""},{"$f":"IF(Stock!$A37<>\"\",ROUND(T486*V486,0),\"\")","v":""},{"$f":"IF(Stock!$A37<>\"\",$H486*W486,\"\")","v":""},{"$f":"IF(Stock!$A37<>\"\",Pilotage!R$27,\"\")","v":""},{"$f":"IF(Stock!$A37<>\"\",ROUND(W486*Y486,0),\"\")","v":""},{"$f":"IF(Stock!$A37<>\"\",$H486*Z486,\"\")","v":""}]
[{"$f":"IF(Stock!B38<>\"\",Stock!B38,\"\")","v":""},{"$f":"IF(Stock!C38<>\"\",Stock!C38,\"\")","v":""},{"$f":"IF(Stock!D38<>\"\",Stock!D38,\"\")","v":""},{"$f":"IF(Stock!$A38<>\"\",SUM(Stock!$J38,Stock!$F38,Stock!$G38),\"\")","v":""},{"$f":"IF(Stock!$A38<>\"\",D487*(1+Pilotage!$M$20),\"\")","v":""},null,{"$f":"IF(Stock!$A38<>\"\",IF(Stock!$A38>0,Stock!$K38/Stock!$A38,0),\"\")","v":""},{"$f":"IF(Stock!$A38<>\"\",E487*Pilotage!$D$15,\"\")","v":""},{"$f":"IF(Stock!$A38<>\"\",IF(Stock!$A38>0,Stock!$A38,0),\"\")","v":""},{"$f":"IF(Stock!$A38<>\"\",Pilotage!$M$27,\"\")","v":""},{"$f":"IF(Stock!$A38<>\"\",ROUND(Stock!$A38*J487,0),\"\")","v":""},{"$f":"IF(Stock!$A38<>\"\",$H487*K487,\"\")","v":""},{"$f":"IF(Stock!$A38<>\"\",Pilotage!N$27,\"\")","v":""},{"$f":"IF(Stock!$A38<>\"\",ROUND(K487*M487,0),\"\")","v":""},{"$f":"IF(Stock!$A38<>\"\",$H487*N487,\"\")","v":""},{"$f":"IF(Stock!$A38<>\"\",Pilotage!O$27,\"\")","v":""},{"$f":"IF(Stock!$A38<>\"\",ROUND(K487*P487,0),\"\")","v":""},{"$f":"IF(Stock!$A38<>\"\",$H487*Q487,\"\")","v":""},{"$f":"IF(Stock!$A38<>\"\",Pilotage!P$27,\"\")","v":""},{"$f":"IF(Stock!$A38<>\"\",ROUND(Q487*S487,0),\"\")","v":""},{"$f":"IF(Stock!$A38<>\"\",$H487*T487,\"\")","v":""},{"$f":"IF(Stock!$A38<>\"\",Pilotage!Q$27,\"\")","v":""},{"$f":"IF(Stock!$A38<>\"\",ROUND(T487*V487,0),\"\")","v":""},{"$f":"IF(Stock!$A38<>\"\",$H487*W487,\"\")","v":""},{"$f":"IF(Stock!$A38<>\"\",Pilotage!R$27,\"\")","v":""},{"$f":"IF(Stock!$A38<>\"\",ROUND(W487*Y487,0),\"\")","v":""},{"$f":"IF(Stock!$A38<>\"\",$H487*Z487,\"\")","v":""}]
[{"$f":"IF(Stock!B39<>\"\",Stock!B39,\"\")","v":""},{"$f":"IF(Stock!C39<>\"\",Stock!C39,\"\")","v":""},{"$f":"IF(Stock!D39<>\"\",Stock!D39,\"\")","v":""},{"$f":"IF(Stock!$A39<>\"\",SUM(Stock!$J39,Stock!$F39,Stock!$G39),\"\")","v":""},{"$f":"IF(Stock!$A39<>\"\",D488*(1+Pilotage!$M$20),\"\")","v":""},null,{"$f":"IF(Stock!$A39<>\"\",IF(Stock!$A39>0,Stock!$K39/Stock!$A39,0),\"\")","v":""},{"$f":"IF(Stock!$A39<>\"\",E488*Pilotage!$D$15,\"\")","v":""},{"$f":"IF(Stock!$A39<>\"\",IF(Stock!$A39>0,Stock!$A39,0),\"\")","v":""},{"$f":"IF(Stock!$A39<>\"\",Pilotage!$M$27,\"\")","v":""},{"$f":"IF(Stock!$A39<>\"\",ROUND(Stock!$A39*J488,0),\"\")","v":""},{"$f":"IF(Stock!$A39<>\"\",$H488*K488,\"\")","v":""},{"$f":"IF(Stock!$A39<>\"\",Pilotage!N$27,\"\")","v":""},{"$f":"IF(Stock!$A39<>\"\",ROUND(K488*M488,0),\"\")","v":""},{"$f":"IF(Stock!$A39<>\"\",$H488*N488,\"\")","v":""},{"$f":"IF(Stock!$A39<>\"\",Pilotage!O$27,\"\")","v":""},{"$f":"IF(Stock!$A39<>\"\",ROUND(K488*P488,0),\"\")","v":""},{"$f":"IF(Stock!$A39<>\"\",$H488*Q488,\"\")","v":""},{"$f":"IF(Stock!$A39<>\"\",Pilotage!P$27,\"\")","v":""},{"$f":"IF(Stock!$A39<>\"\",ROUND(Q488*S488,0),\"\")","v":""},{"$f":"IF(Stock!$A39<>\"\",$H488*T488,\"\")","v":""},{"$f":"IF(Stock!$A39<>\"\",Pilotage!Q$27,\"\")","v":""},{"$f":"IF(Stock!$A39<>\"\",ROUND(T488*V488,0),\"\")","v":""},{"$f":"IF(Stock!$A39<>\"\",$H488*W488,\"\")","v":""},{"$f":"IF(Stock!$A39<>\"\",Pilotage!R$27,\"\")","v":""},{"$f":"IF(Stock!$A39<>\"\",ROUND(W488*Y488,0),\"\")","v":""},{"$f":"IF(Stock!$A39<>\"\",$H488*Z488,\"\")","v":""}]
[{"$f":"IF(Stock!B40<>\"\",Stock!B40,\"\")","v":""},{"$f":"IF(Stock!C40<>\"\",Stock!C40,\"\")","v":""},{"$f":"IF(Stock!D40<>\"\",Stock!D40,\"\")","v":""},{"$f":"IF(Stock!$A40<>\"\",SUM(Stock!$J40,Stock!$F40,Stock!$G40),\"\")","v":""},{"$f":"IF(Stock!$A40<>\"\",D489*(1+Pilotage!$M$20),\"\")","v":""},null,{"$f":"IF(Stock!$A40<>\"\",IF(Stock!$A40>0,Stock!$K40/Stock!$A40,0),\"\")","v":""},{"$f":"IF(Stock!$A40<>\"\",E489*Pilotage!$D$15,\"\")","v":""},{"$f":"IF(Stock!$A40<>\"\",IF(Stock!$A40>0,Stock!$A40,0),\"\")","v":""},{"$f":"IF(Stock!$A40<>\"\",Pilotage!$M$27,\"\")","v":""},{"$f":"IF(Stock!$A40<>\"\",ROUND(Stock!$A40*J489,0),\"\")","v":""},{"$f":"IF(Stock!$A40<>\"\",$H489*K489,\"\")","v":""},{"$f":"IF(Stock!$A40<>\"\",Pilotage!N$27,\"\")","v":""},{"$f":"IF(Stock!$A40<>\"\",ROUND(K489*M489,0),\"\")","v":""},{"$f":"IF(Stock!$A40<>\"\",$H489*N489,\"\")","v":""},{"$f":"IF(Stock!$A40<>\"\",Pilotage!O$27,\"\")","v":""},{"$f":"IF(Stock!$A40<>\"\",ROUND(K489*P489,0),\"\")","v":""},{"$f":"IF(Stock!$A40<>\"\",$H489*Q489,\"\")","v":""},{"$f":"IF(Stock!$A40<>\"\",Pilotage!P$27,\"\")","v":""},{"$f":"IF(Stock!$A40<>\"\",ROUND(Q489*S489,0),\"\")","v":""},{"$f":"IF(Stock!$A40<>\"\",$H489*T489,\"\")","v":""},{"$f":"IF(Stock!$A40<>\"\",Pilotage!Q$27,\"\")","v":""},{"$f":"IF(Stock!$A40<>\"\",ROUND(T489*V489,0),\"\")","v":""},{"$f":"IF(Stock!$A40<>\"\",$H489*W489,\"\")","v":""},{"$f":"IF(Stock!$A40<>\"\",Pilotage!R$27,\"\")","v":""},{"$f":"IF(Stock!$A40<>\"\",ROUND(W489*Y489,0),\"\")","v":""},{"$f":"IF(Stock!$A40<>\"\",$H489*Z489,\"\")","v":""}]
[{"$f":"IF(Stock!B41<>\"\",Stock!B41,\"\")","v":""},{"$f":"IF(Stock!C41<>\"\",Stock!C41,\"\")","v":""},{"$f":"IF(Stock!D41<>\"\",Stock!D41,\"\")","v":""},{"$f":"IF(Stock!$A41<>\"\",SUM(Stock!$J41,Stock!$F41,Stock!$G41),\"\")","v":""},{"$f":"IF(Stock!$A41<>\"\",D490*(1+Pilotage!$M$20),\"\")","v":""},null,{"$f":"IF(Stock!$A41<>\"\",IF(Stock!$A41>0,Stock!$K41/Stock!$A41,0),\"\")","v":""},{"$f":"IF(Stock!$A41<>\"\",E490*Pilotage!$D$15,\"\")","v":""},{"$f":"IF(Stock!$A41<>\"\",IF(Stock!$A41>0,Stock!$A41,0),\"\")","v":""},{"$f":"IF(Stock!$A41<>\"\",Pilotage!$M$27,\"\")","v":""},{"$f":"IF(Stock!$A41<>\"\",ROUND(Stock!$A41*J490,0),\"\")","v":""},{"$f":"IF(Stock!$A41<>\"\",$H490*K490,\"\")","v":""},{"$f":"IF(Stock!$A41<>\"\",Pilotage!N$27,\"\")","v":""},{"$f":"IF(Stock!$A41<>\"\",ROUND(K490*M490,0),\"\")","v":""},{"$f":"IF(Stock!$A41<>\"\",$H490*N490,\"\")","v":""},{"$f":"IF(Stock!$A41<>\"\",Pilotage!O$27,\"\")","v":""},{"$f":"IF(Stock!$A41<>\"\",ROUND(K490*P490,0),\"\")","v":""},{"$f":"IF(Stock!$A41<>\"\",$H490*Q490,\"\")","v":""},{"$f":"IF(Stock!$A41<>\"\",Pilotage!P$27,\"\")","v":""},{"$f":"IF(Stock!$A41<>\"\",ROUND(Q490*S490,0),\"\")","v":""},{"$f":"IF(Stock!$A41<>\"\",$H490*T490,\"\")","v":""},{"$f":"IF(Stock!$A41<>\"\",Pilotage!Q$27,\"\")","v":""},{"$f":"IF(Stock!$A41<>\"\",ROUND(T490*V490,0),\"\")","v":""},{"$f":"IF(Stock!$A41<>\"\",$H490*W490,\"\")","v":""},{"$f":"IF(Stock!$A41<>\"\",Pilotage!R$27,\"\")","v":""},{"$f":"IF(Stock!$A41<>\"\",ROUND(W490*Y490,0),\"\")","v":""},{"$f":"IF(Stock!$A41<>\"\",$H490*Z490,\"\")","v":""}]
[{"$f":"IF(Stock!B42<>\"\",Stock!B42,\"\")","v":""},{"$f":"IF(Stock!C42<>\"\",Stock!C42,\"\")","v":""},{"$f":"IF(Stock!D42<>\"\",Stock!D42,\"\")","v":""},{"$f":"IF(Stock!$A42<>\"\",SUM(Stock!$J42,Stock!$F42,Stock!$G42),\"\")","v":""},{"$f":"IF(Stock!$A42<>\"\",D491*(1+Pilotage!$M$20),\"\")","v":""},null,{"$f":"IF(Stock!$A42<>\"\",IF(Stock!$A42>0,Stock!$K42/Stock!$A42,0),\"\")","v":""},{"$f":"IF(Stock!$A42<>\"\",E491*Pilotage!$D$15,\"\")","v":""},{"$f":"IF(Stock!$A42<>\"\",IF(Stock!$A42>0,Stock!$A42,0),\"\")","v":""},{"$f":"IF(Stock!$A42<>\"\",Pilotage!$M$27,\"\")","v":""},{"$f":"IF(Stock!$A42<>\"\",ROUND(Stock!$A42*J491,0),\"\")","v":""},{"$f":"IF(Stock!$A42<>\"\",$H491*K491,\"\")","v":""},{"$f":"IF(Stock!$A42<>\"\",Pilotage!N$27,\"\")","v":""},{"$f":"IF(Stock!$A42<>\"\",ROUND(K491*M491,0),\"\")","v":""},{"$f":"IF(Stock!$A42<>\"\",$H491*N491,\"\")","v":""},{"$f":"IF(Stock!$A42<>\"\",Pilotage!O$27,\"\")","v":""},{"$f":"IF(Stock!$A42<>\"\",ROUND(K491*P491,0),\"\")","v":""},{"$f":"IF(Stock!$A42<>\"\",$H491*Q491,\"\")","v":""},{"$f":"IF(Stock!$A42<>\"\",Pilotage!P$27,\"\")","v":""},{"$f":"IF(Stock!$A42<>\"\",ROUND(Q491*S491,0),\"\")","v":""},{"$f":"IF(Stock!$A42<>\"\",$H491*T491,\"\")","v":""},{"$f":"IF(Stock!$A42<>\"\",Pilotage!Q$27,\"\")","v":""},{"$f":"IF(Stock!$A42<>\"\",ROUND(T491*V491,0),\"\")","v":""},{"$f":"IF(Stock!$A42<>\"\",$H491*W491,\"\")","v":""},{"$f":"IF(Stock!$A42<>\"\",Pilotage!R$27,\"\")","v":""},{"$f":"IF(Stock!$A42<>\"\",ROUND(W491*Y491,0),\"\")","v":""},{"$f":"IF(Stock!$A42<>\"\",$H491*Z491,\"\")","v":""}]
[{"$f":"IF(Stock!B43<>\"\",Stock!B43,\"\")","v":""},{"$f":"IF(Stock!C43<>\"\",Stock!C43,\"\")","v":""},{"$f":"IF(Stock!D43<>\"\",Stock!D43,\"\")","v":""},{"$f":"IF(Stock!$A43<>\"\",SUM(Stock!$J43,Stock!$F43,Stock!$G43),\"\")","v":""},{"$f":"IF(Stock!$A43<>\"\",D492*(1+Pilotage!$M$20),\"\")","v":""},null,{"$f":"IF(Stock!$A43<>\"\",IF(Stock!$A43>0,Stock!$K43/Stock!$A43,0),\"\")","v":""},{"$f":"IF(Stock!$A43<>\"\",E492*Pilotage!$D$15,\"\")","v":""},{"$f":"IF(Stock!$A43<>\"\",IF(Stock!$A43>0,Stock!$A43,0),\"\")","v":""},{"$f":"IF(Stock!$A43<>\"\",Pilotage!$M$27,\"\")","v":""},{"$f":"IF(Stock!$A43<>\"\",ROUND(Stock!$A43*J492,0),\"\")","v":""},{"$f":"IF(Stock!$A43<>\"\",$H492*K492,\"\")","v":""},{"$f":"IF(Stock!$A43<>\"\",Pilotage!N$27,\"\")","v":""},{"$f":"IF(Stock!$A43<>\"\",ROUND(K492*M492,0),\"\")","v":""},{"$f":"IF(Stock!$A43<>\"\",$H492*N492,\"\")","v":""},{"$f":"IF(Stock!$A43<>\"\",Pilotage!O$27,\"\")","v":""},{"$f":"IF(Stock!$A43<>\"\",ROUND(K492*P492,0),\"\")","v":""},{"$f":"IF(Stock!$A43<>\"\",$H492*Q492,\"\")","v":""},{"$f":"IF(Stock!$A43<>\"\",Pilotage!P$27,\"\")","v":""},{"$f":"IF(Stock!$A43<>\"\",ROUND(Q492*S492,0),\"\")","v":""},{"$f":"IF(Stock!$A43<>\"\",$H492*T492,\"\")","v":""},{"$f":"IF(Stock!$A43<>\"\",Pilotage!Q$27,\"\")","v":""},{"$f":"IF(Stock!$A43<>\"\",ROUND(T492*V492,0),\"\")","v":""},{"$f":"IF(Stock!$A43<>\"\",$H492*W492,\"\")","v":""},{"$f":"IF(Stock!$A43<>\"\",Pilotage!R$27,\"\")","v":""},{"$f":"IF(Stock!$A43<>\"\",ROUND(W492*Y492,0),\"\")","v":""},{"$f":"IF(Stock!$A43<>\"\",$H492*Z492,\"\")","v":""}]
[{"$f":"IF(Stock!B44<>\"\",Stock!B44,\"\")","v":""},{"$f":"IF(Stock!C44<>\"\",Stock!C44,\"\")","v":""},{"$f":"IF(Stock!D44<>\"\",Stock!D44,\"\")","v":""},{"$f":"IF(Stock!$A44<>\"\",SUM(Stock!$J44,Stock!$F44,Stock!$G44),\"\")","v":""},{"$f":"IF(Stock!$A44<>\"\",D493*(1+Pilotage!$M$20),\"\")","v":""},null,{"$f":"IF(Stock!$A44<>\"\",IF(Stock!$A44>0,Stock!$K44/Stock!$A44,0),\"\")","v":""},{"$f":"IF(Stock!$A44<>\"\",E493*Pilotage!$D$15,\"\")","v":""},{"$f":"IF(Stock!$A44<>\"\",IF(Stock!$A44>0,Stock!$A44,0),\"\")","v":""},{"$f":"IF(Stock!$A44<>\"\",Pilotage!$M$27,\"\")","v":""},{"$f":"IF(Stock!$A44<>\"\",ROUND(Stock!$A44*J493,0),\"\")","v":""},{"$f":"IF(Stock!$A44<>\"\",$H493*K493,\"\")","v":""},{"$f":"IF(Stock!$A44<>\"\",Pilotage!N$27,\"\")","v":""},{"$f":"IF(Stock!$A44<>\"\",ROUND(K493*M493,0),\"\")","v":""},{"$f":"IF(Stock!$A44<>\"\",$H493*N493,\"\")","v":""},{"$f":"IF(Stock!$A44<>\"\",Pilotage!O$27,\"\")","v":""},{"$f":"IF(Stock!$A44<>\"\",ROUND(K493*P493,0),\"\")","v":""},{"$f":"IF(Stock!$A44<>\"\",$H493*Q493,\"\")","v":""},{"$f":"IF(Stock!$A44<>\"\",Pilotage!P$27,\"\")","v":""},{"$f":"IF(Stock!$A44<>\"\",ROUND(Q493*S493,0),\"\")","v":""},{"$f":"IF(Stock!$A44<>\"\",$H493*T493,\"\")","v":""},{"$f":"IF(Stock!$A44<>\"\",Pilotage!Q$27,\"\")","v":""},{"$f":"IF(Stock!$A44<>\"\",ROUND(T493*V493,0),\"\")","v":""},{"$f":"IF(Stock!$A44<>\"\",$H493*W493,\"\")","v":""},{"$f":"IF(Stock!$A44<>\"\",Pilotage!R$27,\"\")","v":""},{"$f":"IF(Stock!$A44<>\"\",ROUND(W493*Y493,0),\"\")","v":""},{"$f":"IF(Stock!$A44<>\"\",$H493*Z493,\"\")","v":""}]
[{"$f":"IF(Stock!B45<>\"\",Stock!B45,\"\")","v":""},{"$f":"IF(Stock!C45<>\"\",Stock!C45,\"\")","v":""},{"$f":"IF(Stock!D45<>\"\",Stock!D45,\"\")","v":""},{"$f":"IF(Stock!$A45<>\"\",SUM(Stock!$J45,Stock!$F45,Stock!$G45),\"\")","v":""},{"$f":"IF(Stock!$A45<>\"\",D494*(1+Pilotage!$M$20),\"\")","v":""},null,{"$f":"IF(Stock!$A45<>\"\",IF(Stock!$A45>0,Stock!$K45/Stock!$A45,0),\"\")","v":""},{"$f":"IF(Stock!$A45<>\"\",E494*Pilotage!$D$15,\"\")","v":""},{"$f":"IF(Stock!$A45<>\"\",IF(Stock!$A45>0,Stock!$A45,0),\"\")","v":""},{"$f":"IF(Stock!$A45<>\"\",Pilotage!$M$27,\"\")","v":""},{"$f":"IF(Stock!$A45<>\"\",ROUND(Stock!$A45*J494,0),\"\")","v":""},{"$f":"IF(Stock!$A45<>\"\",$H494*K494,\"\")","v":""},{"$f":"IF(Stock!$A45<>\"\",Pilotage!N$27,\"\")","v":""},{"$f":"IF(Stock!$A45<>\"\",ROUND(K494*M494,0),\"\")","v":""},{"$f":"IF(Stock!$A45<>\"\",$H494*N494,\"\")","v":""},{"$f":"IF(Stock!$A45<>\"\",Pilotage!O$27,\"\")","v":""},{"$f":"IF(Stock!$A45<>\"\",ROUND(K494*P494,0),\"\")","v":""},{"$f":"IF(Stock!$A45<>\"\",$H494*Q494,\"\")","v":""},{"$f":"IF(Stock!$A45<>\"\",Pilotage!P$27,\"\")","v":""},{"$f":"IF(Stock!$A45<>\"\",ROUND(Q494*S494,0),\"\")","v":""},{"$f":"IF(Stock!$A45<>\"\",$H494*T494,\"\")","v":""},{"$f":"IF(Stock!$A45<>\"\",Pilotage!Q$27,\"\")","v":""},{"$f":"IF(Stock!$A45<>\"\",ROUND(T494*V494,0),\"\")","v":""},{"$f":"IF(Stock!$A45<>\"\",$H494*W494,\"\")","v":""},{"$f":"IF(Stock!$A45<>\"\",Pilotage!R$27,\"\")","v":""},{"$f":"IF(Stock!$A45<>\"\",ROUND(W494*Y494,0),\"\")","v":""},{"$f":"IF(Stock!$A45<>\"\",$H494*Z494,\"\")","v":""}]
[{"$f":"IF(Stock!B46<>\"\",Stock!B46,\"\")","v":""},{"$f":"IF(Stock!C46<>\"\",Stock!C46,\"\")","v":""},{"$f":"IF(Stock!D46<>\"\",Stock!D46,\"\")","v":""},{"$f":"IF(Stock!$A46<>\"\",SUM(Stock!$J46,Stock!$F46,Stock!$G46),\"\")","v":""},{"$f":"IF(Stock!$A46<>\"\",D495*(1+Pilotage!$M$20),\"\")","v":""},null,{"$f":"IF(Stock!$A46<>\"\",IF(Stock!$A46>0,Stock!$K46/Stock!$A46,0),\"\")","v":""},{"$f":"IF(Stock!$A46<>\"\",E495*Pilotage!$D$15,\"\")","v":""},{"$f":"IF(Stock!$A46<>\"\",IF(Stock!$A46>0,Stock!$A46,0),\"\")","v":""},{"$f":"IF(Stock!$A46<>\"\",Pilotage!$M$27,\"\")","v":""},{"$f":"IF(Stock!$A46<>\"\",ROUND(Stock!$A46*J495,0),\"\")","v":""},{"$f":"IF(Stock!$A46<>\"\",$H495*K495,\"\")","v":""},{"$f":"IF(Stock!$A46<>\"\",Pilotage!N$27,\"\")","v":""},{"$f":"IF(Stock!$A46<>\"\",ROUND(K495*M495,0),\"\")","v":""},{"$f":"IF(Stock!$A46<>\"\",$H495*N495,\"\")","v":""},{"$f":"IF(Stock!$A46<>\"\",Pilotage!O$27,\"\")","v":""},{"$f":"IF(Stock!$A46<>\"\",ROUND(K495*P495,0),\"\")","v":""},{"$f":"IF(Stock!$A46<>\"\",$H495*Q495,\"\")","v":""},{"$f":"IF(Stock!$A46<>\"\",Pilotage!P$27,\"\")","v":""},{"$f":"IF(Stock!$A46<>\"\",ROUND(Q495*S495,0),\"\")","v":""},{"$f":"IF(Stock!$A46<>\"\",$H495*T495,\"\")","v":""},{"$f":"IF(Stock!$A46<>\"\",Pilotage!Q$27,\"\")","v":""},{"$f":"IF(Stock!$A46<>\"\",ROUND(T495*V495,0),\"\")","v":""},{"$f":"IF(Stock!$A46<>\"\",$H495*W495,\"\")","v":""},{"$f":"IF(Stock!$A46<>\"\",Pilotage!R$27,\"\")","v":""},{"$f":"IF(Stock!$A46<>\"\",ROUND(W495*Y495,0),\"\")","v":""},{"$f":"IF(Stock!$A46<>\"\",$H495*Z495,\"\")","v":""}]
[{"$f":"IF(Stock!B47<>\"\",Stock!B47,\"\")","v":""},{"$f":"IF(Stock!C47<>\"\",Stock!C47,\"\")","v":""},{"$f":"IF(Stock!D47<>\"\",Stock!D47,\"\")","v":""},{"$f":"IF(Stock!$A47<>\"\",SUM(Stock!$J47,Stock!$F47,Stock!$G47),\"\")","v":""},{"$f":"IF(Stock!$A47<>\"\",D496*(1+Pilotage!$M$20),\"\")","v":""},null,{"$f":"IF(Stock!$A47<>\"\",IF(Stock!$A47>0,Stock!$K47/Stock!$A47,0),\"\")","v":""},{"$f":"IF(Stock!$A47<>\"\",E496*Pilotage!$D$15,\"\")","v":""},{"$f":"IF(Stock!$A47<>\"\",IF(Stock!$A47>0,Stock!$A47,0),\"\")","v":""},{"$f":"IF(Stock!$A47<>\"\",Pilotage!$M$27,\"\")","v":""},{"$f":"IF(Stock!$A47<>\"\",ROUND(Stock!$A47*J496,0),\"\")","v":""},{"$f":"IF(Stock!$A47<>\"\",$H496*K496,\"\")","v":""},{"$f":"IF(Stock!$A47<>\"\",Pilotage!N$27,\"\")","v":""},{"$f":"IF(Stock!$A47<>\"\",ROUND(K496*M496,0),\"\")","v":""},{"$f":"IF(Stock!$A47<>\"\",$H496*N496,\"\")","v":""},{"$f":"IF(Stock!$A47<>\"\",Pilotage!O$27,\"\")","v":""},{"$f":"IF(Stock!$A47<>\"\",ROUND(K496*P496,0),\"\")","v":""},{"$f":"IF(Stock!$A47<>\"\",$H496*Q496,\"\")","v":""},{"$f":"IF(Stock!$A47<>\"\",Pilotage!P$27,\"\")","v":""},{"$f":"IF(Stock!$A47<>\"\",ROUND(Q496*S496,0),\"\")","v":""},{"$f":"IF(Stock!$A47<>\"\",$H496*T496,\"\")","v":""},{"$f":"IF(Stock!$A47<>\"\",Pilotage!Q$27,\"\")","v":""},{"$f":"IF(Stock!$A47<>\"\",ROUND(T496*V496,0),\"\")","v":""},{"$f":"IF(Stock!$A47<>\"\",$H496*W496,\"\")","v":""},{"$f":"IF(Stock!$A47<>\"\",Pilotage!R$27,\"\")","v":""},{"$f":"IF(Stock!$A47<>\"\",ROUND(W496*Y496,0),\"\")","v":""},{"$f":"IF(Stock!$A47<>\"\",$H496*Z496,\"\")","v":""}]
[{"$f":"IF(Stock!B48<>\"\",Stock!B48,\"\")","v":""},{"$f":"IF(Stock!C48<>\"\",Stock!C48,\"\")","v":""},{"$f":"IF(Stock!D48<>\"\",Stock!D48,\"\")","v":""},{"$f":"IF(Stock!$A48<>\"\",SUM(Stock!$J48,Stock!$F48,Stock!$G48),\"\")","v":""},{"$f":"IF(Stock!$A48<>\"\",D497*(1+Pilotage!$M$20),\"\")","v":""},null,{"$f":"IF(Stock!$A48<>\"\",IF(Stock!$A48>0,Stock!$K48/Stock!$A48,0),\"\")","v":""},{"$f":"IF(Stock!$A48<>\"\",E497*Pilotage!$D$15,\"\")","v":""},{"$f":"IF(Stock!$A48<>\"\",IF(Stock!$A48>0,Stock!$A48,0),\"\")","v":""},{"$f":"IF(Stock!$A48<>\"\",Pilotage!$M$27,\"\")","v":""},{"$f":"IF(Stock!$A48<>\"\",ROUND(Stock!$A48*J497,0),\"\")","v":""},{"$f":"IF(Stock!$A48<>\"\",$H497*K497,\"\")","v":""},{"$f":"IF(Stock!$A48<>\"\",Pilotage!N$27,\"\")","v":""},{"$f":"IF(Stock!$A48<>\"\",ROUND(K497*M497,0),\"\")","v":""},{"$f":"IF(Stock!$A48<>\"\",$H497*N497,\"\")","v":""},{"$f":"IF(Stock!$A48<>\"\",Pilotage!O$27,\"\")","v":""},{"$f":"IF(Stock!$A48<>\"\",ROUND(K497*P497,0),\"\")","v":""},{"$f":"IF(Stock!$A48<>\"\",$H497*Q497,\"\")","v":""},{"$f":"IF(Stock!$A48<>\"\",Pilotage!P$27,\"\")","v":""},{"$f":"IF(Stock!$A48<>\"\",ROUND(Q497*S497,0),\"\")","v":""},{"$f":"IF(Stock!$A48<>\"\",$H497*T497,\"\")","v":""},{"$f":"IF(Stock!$A48<>\"\",Pilotage!Q$27,\"\")","v":""},{"$f":"IF(Stock!$A48<>\"\",ROUND(T497*V497,0),\"\")","v":""},{"$f":"IF(Stock!$A48<>\"\",$H497*W497,\"\")","v":""},{"$f":"IF(Stock!$A48<>\"\",Pilotage!R$27,\"\")","v":""},{"$f":"IF(Stock!$A48<>\"\",ROUND(W497*Y497,0),\"\")","v":""},{"$f":"IF(Stock!$A48<>\"\",$H497*Z497,\"\")","v":""}]
[{"$f":"IF(Stock!B49<>\"\",Stock!B49,\"\")","v":""},{"$f":"IF(Stock!C49<>\"\",Stock!C49,\"\")","v":""},{"$f":"IF(Stock!D49<>\"\",Stock!D49,\"\")","v":""},{"$f":"IF(Stock!$A49<>\"\",SUM(Stock!$J49,Stock!$F49,Stock!$G49),\"\")","v":""},{"$f":"IF(Stock!$A49<>\"\",D498*(1+Pilotage!$M$20),\"\")","v":""},null,{"$f":"IF(Stock!$A49<>\"\",IF(Stock!$A49>0,Stock!$K49/Stock!$A49,0),\"\")","v":""},{"$f":"IF(Stock!$A49<>\"\",E498*Pilotage!$D$15,\"\")","v":""},{"$f":"IF(Stock!$A49<>\"\",IF(Stock!$A49>0,Stock!$A49,0),\"\")","v":""},{"$f":"IF(Stock!$A49<>\"\",Pilotage!$M$27,\"\")","v":""},{"$f":"IF(Stock!$A49<>\"\",ROUND(Stock!$A49*J498,0),\"\")","v":""},{"$f":"IF(Stock!$A49<>\"\",$H498*K498,\"\")","v":""},{"$f":"IF(Stock!$A49<>\"\",Pilotage!N$27,\"\")","v":""},{"$f":"IF(Stock!$A49<>\"\",ROUND(K498*M498,0),\"\")","v":""},{"$f":"IF(Stock!$A49<>\"\",$H498*N498,\"\")","v":""},{"$f":"IF(Stock!$A49<>\"\",Pilotage!O$27,\"\")","v":""},{"$f":"IF(Stock!$A49<>\"\",ROUND(K498*P498,0),\"\")","v":""},{"$f":"IF(Stock!$A49<>\"\",$H498*Q498,\"\")","v":""},{"$f":"IF(Stock!$A49<>\"\",Pilotage!P$27,\"\")","v":""},{"$f":"IF(Stock!$A49<>\"\",ROUND(Q498*S498,0),\"\")","v":""},{"$f":"IF(Stock!$A49<>\"\",$H498*T498,\"\")","v":""},{"$f":"IF(Stock!$A49<>\"\",Pilotage!Q$27,\"\")","v":""},{"$f":"IF(Stock!$A49<>\"\",ROUND(T498*V498,0),\"\")","v":""},{"$f":"IF(Stock!$A49<>\"\",$H498*W498,\"\")","v":""},{"$f":"IF(Stock!$A49<>\"\",Pilotage!R$27,\"\")","v":""},{"$f":"IF(Stock!$A49<>\"\",ROUND(W498*Y498,0),\"\")","v":""},{"$f":"IF(Stock!$A49<>\"\",$H498*Z498,\"\")","v":""}]
[{"$f":"IF(Stock!B50<>\"\",Stock!B50,\"\")","v":""},{"$f":"IF(Stock!C50<>\"\",Stock!C50,\"\")","v":""},{"$f":"IF(Stock!D50<>\"\",Stock!D50,\"\")","v":""},{"$f":"IF(Stock!$A50<>\"\",SUM(Stock!$J50,Stock!$F50,Stock!$G50),\"\")","v":""},{"$f":"IF(Stock!$A50<>\"\",D499*(1+Pilotage!$M$20),\"\")","v":""},null,{"$f":"IF(Stock!$A50<>\"\",IF(Stock!$A50>0,Stock!$K50/Stock!$A50,0),\"\")","v":""},{"$f":"IF(Stock!$A50<>\"\",E499*Pilotage!$D$15,\"\")","v":""},{"$f":"IF(Stock!$A50<>\"\",IF(Stock!$A50>0,Stock!$A50,0),\"\")","v":""},{"$f":"IF(Stock!$A50<>\"\",Pilotage!$M$27,\"\")","v":""},{"$f":"IF(Stock!$A50<>\"\",ROUND(Stock!$A50*J499,0),\"\")","v":""},{"$f":"IF(Stock!$A50<>\"\",$H499*K499,\"\")","v":""},{"$f":"IF(Stock!$A50<>\"\",Pilotage!N$27,\"\")","v":""},{"$f":"IF(Stock!$A50<>\"\",ROUND(K499*M499,0),\"\")","v":""},{"$f":"IF(Stock!$A50<>\"\",$H499*N499,\"\")","v":""},{"$f":"IF(Stock!$A50<>\"\",Pilotage!O$27,\"\")","v":""},{"$f":"IF(Stock!$A50<>\"\",ROUND(K499*P499,0),\"\")","v":""},{"$f":"IF(Stock!$A50<>\"\",$H499*Q499,\"\")","v":""},{"$f":"IF(Stock!$A50<>\"\",Pilotage!P$27,\"\")","v":""},{"$f":"IF(Stock!$A50<>\"\",ROUND(Q499*S499,0),\"\")","v":""},{"$f":"IF(Stock!$A50<>\"\",$H499*T499,\"\")","v":""},{"$f":"IF(Stock!$A50<>\"\",Pilotage!Q$27,\"\")","v":""},{"$f":"IF(Stock!$A50<>\"\",ROUND(T499*V499,0),\"\")","v":""},{"$f":"IF(Stock!$A50<>\"\",$H499*W499,\"\")","v":""},{"$f":"IF(Stock!$A50<>\"\",Pilotage!R$27,\"\")","v":""},{"$f":"IF(Stock!$A50<>\"\",ROUND(W499*Y499,0),\"\")","v":""},{"$f":"IF(Stock!$A50<>\"\",$H499*Z499,\"\")","v":""}]
[{"$f":"IF(Stock!B51<>\"\",Stock!B51,\"\")","v":""},{"$f":"IF(Stock!C51<>\"\",Stock!C51,\"\")","v":""},{"$f":"IF(Stock!D51<>\"\",Stock!D51,\"\")","v":""},{"$f":"IF(Stock!$A51<>\"\",SUM(Stock!$J51,Stock!$F51,Stock!$G51),\"\")","v":""},{"$f":"IF(Stock!$A51<>\"\",D500*(1+Pilotage!$M$20),\"\")","v":""},null,{"$f":"IF(Stock!$A51<>\"\",IF(Stock!$A51>0,Stock!$K51/Stock!$A51,0),\"\")","v":""},{"$f":"IF(Stock!$A51<>\"\",E500*Pilotage!$D$15,\"\")","v":""},{"$f":"IF(Stock!$A51<>\"\",IF(Stock!$A51>0,Stock!$A51,0),\"\")","v":""},{"$f":"IF(Stock!$A51<>\"\",Pilotage!$M$27,\"\")","v":""},{"$f":"IF(Stock!$A51<>\"\",ROUND(Stock!$A51*J500,0),\"\")","v":""},{"$f":"IF(Stock!$A51<>\"\",$H500*K500,\"\")","v":""},{"$f":"IF(Stock!$A51<>\"\",Pilotage!N$27,\"\")","v":""},{"$f":"IF(Stock!$A51<>\"\",ROUND(K500*M500,0),\"\")","v":""},{"$f":"IF(Stock!$A51<>\"\",$H500*N500,\"\")","v":""},{"$f":"IF(Stock!$A51<>\"\",Pilotage!O$27,\"\")","v":""},{"$f":"IF(Stock!$A51<>\"\",ROUND(K500*P500,0),\"\")","v":""},{"$f":"IF(Stock!$A51<>\"\",$H500*Q500,\"\")","v":""},{"$f":"IF(Stock!$A51<>\"\",Pilotage!P$27,\"\")","v":""},{"$f":"IF(Stock!$A51<>\"\",ROUND(Q500*S500,0),\"\")","v":""},{"$f":"IF(Stock!$A51<>\"\",$H500*T500,\"\")","v":""},{"$f":"IF(Stock!$A51<>\"\",Pilotage!Q$27,\"\")","v":""},{"$f":"IF(Stock!$A51<>\"\",ROUND(T500*V500,0),\"\")","v":""},{"$f":"IF(Stock!$A51<>\"\",$H500*W500,\"\")","v":""},{"$f":"IF(Stock!$A51<>\"\",Pilotage!R$27,\"\")","v":""},{"$f":"IF(Stock!$A51<>\"\",ROUND(W500*Y500,0),\"\")","v":""},{"$f":"IF(Stock!$A51<>\"\",$H500*Z500,\"\")","v":""}]
[]
[]
[]
[]
[]
[]
[]
[]
[]
[]
[]
[]
[]
[]
[]
[]
[]
[]
[]
[]
[]
[]
[]
[]
[]
[]
[]
[]
[]
[]
[]
[]
[]
[]
[]
[]
[]
[]
[]
[]
[]
[]
[]
[]
[]
[]
[]
[]
[]
[]
[]
[]
[]
[]
[]
[]
[]
[]
[]
[]
[]
[]
[]
[]
[]
[]
[]
[]
[]
[]
[]
[]
[]
[]
[]
[]
[]
[]
[]
[]
[]
[]
[]
[]
[]
[]
[]
[]
[]
[]
[]
[]
[]
[]
[]
[]
[]
[]
[]
[]
[]
[]
[]
[]
[]
[]
[]
[]
[]
[]
[]
[]
[]
[]
[]
[]
[]
[]
[]
[]
[]
[]
[]
[]
[]
[]
[]
[]
[{"$f":"IF(Stock!B181<>\"\",Stock!B181,\"\")","v":""},{"$f":"IF(Stock!C181<>\"\",Stock!C181,\"\")","v":""},{"$f":"IF(Stock!D185<>\"\",Stock!D185,\"\")","v":""},{"$f":"IF(Stock!$A181<>\"\",SUM(Stock!$J181,Stock!$F181,Stock!$G181),\"\")","v":""},{"$f":"IF(#REF!<>\"\",D629*(1+Pilotage!$M$19),\"\")","v":{"$error":"#REF!"}}]
[{"$f":"IF(Stock!B182<>\"\",Stock!B182,\"\")","v":""},{"$f":"IF(Stock!C182<>\"\",Stock!C182,\"\")","v":""},{"$f":"IF(Stock!D186<>\"\",Stock!D186,\"\")","v":""},{"$f":"IF(Stock!$A182<>\"\",SUM(Stock!$J182,Stock!$F182,Stock!$G182),\"\")","v":""},{"$f":"IF(#REF!<>\"\",D630*(1+Pilotage!$M$19),\"\")","v":{"$error":"#REF!"}}]
[{"$f":"IF(Stock!B183<>\"\",Stock!B183,\"\")","v":""},{"$f":"IF(Stock!C183<>\"\",Stock!C183,\"\")","v":""},{"$f":"IF(Stock!D187<>\"\",Stock!D187,\"\")","v":""},{"$f":"IF(Stock!$A183<>\"\",SUM(Stock!$J183,Stock!$F183,Stock!$G183),\"\")","v":""},{"$f":"IF(#REF!<>\"\",D631*(1+Pilotage!$M$19),\"\")","v":{"$error":"#REF!"}}]
[{"$f":"IF(Stock!B184<>\"\",Stock!B184,\"\")","v":""},{"$f":"IF(Stock!C184<>\"\",Stock!C184,\"\")","v":""},{"$f":"IF(Stock!D188<>\"\",Stock!D188,\"\")","v":""},{"$f":"IF(Stock!$A184<>\"\",SUM(Stock!$J184,Stock!$F184,Stock!$G184),\"\")","v":""},{"$f":"IF(#REF!<>\"\",D632*(1+Pilotage!$M$19),\"\")","v":{"$error":"#REF!"}}]
[{"$f":"IF(Stock!B185<>\"\",Stock!B185,\"\")","v":""},{"$f":"IF(Stock!C185<>\"\",Stock!C185,\"\")","v":""},{"$f":"IF(Stock!D189<>\"\",Stock!D189,\"\")","v":""},{"$f":"IF(Stock!$A185<>\"\",SUM(Stock!$J185,Stock!$F185,Stock!$G185),\"\")","v":""},{"$f":"IF(#REF!<>\"\",D633*(1+Pilotage!$M$19),\"\")","v":{"$error":"#REF!"}}]
[{"$f":"IF(Stock!B186<>\"\",Stock!B186,\"\")","v":""},{"$f":"IF(Stock!C186<>\"\",Stock!C186,\"\")","v":""},{"$f":"IF(Stock!D190<>\"\",Stock!D190,\"\")","v":""},{"$f":"IF(Stock!$A186<>\"\",SUM(Stock!$J186,Stock!$F186,Stock!$G186),\"\")","v":""},{"$f":"IF(#REF!<>\"\",D634*(1+Pilotage!$M$19),\"\")","v":{"$error":"#REF!"}}]
[{"$f":"IF(Stock!B187<>\"\",Stock!B187,\"\")","v":""},{"$f":"IF(Stock!C187<>\"\",Stock!C187,\"\")","v":""},{"$f":"IF(Stock!D191<>\"\",Stock!D191,\"\")","v":""},{"$f":"IF(Stock!$A187<>\"\",SUM(Stock!$J187,Stock!$F187,Stock!$G187),\"\")","v":""},{"$f":"IF(#REF!<>\"\",D635*(1+Pilotage!$M$19),\"\")","v":{"$error":"#REF!"}}]
[{"$f":"IF(Stock!B188<>\"\",Stock!B188,\"\")","v":""},{"$f":"IF(Stock!C188<>\"\",Stock!C188,\"\")","v":""},{"$f":"IF(Stock!D192<>\"\",Stock!D192,\"\")","v":""},{"$f":"IF(Stock!$A188<>\"\",SUM(Stock!$J188,Stock!$F188,Stock!$G188),\"\")","v":""},{"$f":"IF(#REF!<>\"\",D636*(1+Pilotage!$M$19),\"\")","v":{"$error":"#REF!"}}]
[{"$f":"IF(Stock!B189<>\"\",Stock!B189,\"\")","v":""},{"$f":"IF(Stock!C189<>\"\",Stock!C189,\"\")","v":""},{"$f":"IF(Stock!D193<>\"\",Stock!D193,\"\")","v":""},{"$f":"IF(Stock!$A189<>\"\",SUM(Stock!$J189,Stock!$F189,Stock!$G189),\"\")","v":""},{"$f":"IF(#REF!<>\"\",D637*(1+Pilotage!$M$19),\"\")","v":{"$error":"#REF!"}}]
[{"$f":"IF(Stock!B190<>\"\",Stock!B190,\"\")","v":""},{"$f":"IF(Stock!C190<>\"\",Stock!C190,\"\")","v":""},{"$f":"IF(Stock!D194<>\"\",Stock!D194,\"\")","v":""},{"$f":"IF(Stock!$A190<>\"\",SUM(Stock!$J190,Stock!$F190,Stock!$G190),\"\")","v":""},{"$f":"IF(#REF!<>\"\",D638*(1+Pilotage!$M$19),\"\")","v":{"$error":"#REF!"}}]
[{"$f":"IF(Stock!B191<>\"\",Stock!B191,\"\")","v":""},{"$f":"IF(Stock!C191<>\"\",Stock!C191,\"\")","v":""},{"$f":"IF(Stock!D195<>\"\",Stock!D195,\"\")","v":""},{"$f":"IF(Stock!$A191<>\"\",SUM(Stock!$J191,Stock!$F191,Stock!$G191),\"\")","v":""},{"$f":"IF(#REF!<>\"\",D639*(1+Pilotage!$M$19),\"\")","v":{"$error":"#REF!"}}]
[{"$f":"IF(Stock!B192<>\"\",Stock!B192,\"\")","v":""},{"$f":"IF(Stock!C192<>\"\",Stock!C192,\"\")","v":""},{"$f":"IF(Stock!D196<>\"\",Stock!D196,\"\")","v":""},{"$f":"IF(Stock!$A192<>\"\",SUM(Stock!$J192,Stock!$F192,Stock!$G192),\"\")","v":""},{"$f":"IF(#REF!<>\"\",D640*(1+Pilotage!$M$19),\"\")","v":{"$error":"#REF!"}}]
[{"$f":"IF(Stock!B193<>\"\",Stock!B193,\"\")","v":""},{"$f":"IF(Stock!C193<>\"\",Stock!C193,\"\")","v":""},{"$f":"IF(Stock!D197<>\"\",Stock!D197,\"\")","v":""},{"$f":"IF(Stock!$A193<>\"\",SUM(Stock!$J193,Stock!$F193,Stock!$G193),\"\")","v":""},{"$f":"IF(#REF!<>\"\",D641*(1+Pilotage!$M$19),\"\")","v":{"$error":"#REF!"}}]
[{"$f":"IF(Stock!B194<>\"\",Stock!B194,\"\")","v":""},{"$f":"IF(Stock!C194<>\"\",Stock!C194,\"\")","v":""},{"$f":"IF(Stock!D198<>\"\",Stock!D198,\"\")","v":""},{"$f":"IF(Stock!$A194<>\"\",SUM(Stock!$J194,Stock!$F194,Stock!$G194),\"\")","v":""},{"$f":"IF(#REF!<>\"\",D642*(1+Pilotage!$M$19),\"\")","v":{"$error":"#REF!"}}]
[{"$f":"IF(Stock!B195<>\"\",Stock!B195,\"\")","v":""},{"$f":"IF(Stock!C195<>\"\",Stock!C195,\"\")","v":""},{"$f":"IF(Stock!D199<>\"\",Stock!D199,\"\")","v":""},{"$f":"IF(Stock!$A195<>\"\",SUM(Stock!$J195,Stock!$F195,Stock!$G195),\"\")","v":""},{"$f":"IF(#REF!<>\"\",D643*(1+Pilotage!$M$19),\"\")","v":{"$error":"#REF!"}}]
[{"$f":"IF(Stock!B196<>\"\",Stock!B196,\"\")","v":""},{"$f":"IF(Stock!C196<>\"\",Stock!C196,\"\")","v":""},{"$f":"IF(Stock!D200<>\"\",Stock!D200,\"\")","v":""},{"$f":"IF(Stock!$A196<>\"\",SUM(Stock!$J196,Stock!$F196,Stock!$G196),\"\")","v":""}]
[{"$f":"IF(Stock!B197<>\"\",Stock!B197,\"\")","v":""},{"$f":"IF(Stock!C197<>\"\",Stock!C197,\"\")","v":""},{"$f":"IF(Stock!D201<>\"\",Stock!D201,\"\")","v":""},{"$f":"IF(Stock!$A197<>\"\",SUM(Stock!$J197,Stock!$F197,Stock!$G197),\"\")","v":""}]
[{"$f":"IF(Stock!B198<>\"\",Stock!B198,\"\")","v":""},{"$f":"IF(Stock!C198<>\"\",Stock!C198,\"\")","v":""},{"$f":"IF(Stock!D202<>\"\",Stock!D202,\"\")","v":""},{"$f":"IF(Stock!$A198<>\"\",SUM(Stock!$J198,Stock!$F198,Stock!$G198),\"\")","v":""}]
[{"$f":"IF(Stock!B199<>\"\",Stock!B199,\"\")","v":""},{"$f":"IF(Stock!C199<>\"\",Stock!C199,\"\")","v":""},{"$f":"IF(Stock!D203<>\"\",Stock!D203,\"\")","v":""},{"$f":"IF(Stock!$A199<>\"\",SUM(Stock!$J199,Stock!$F199,Stock!$G199),\"\")","v":""}]
[{"$f":"IF(Stock!B200<>\"\",Stock!B200,\"\")","v":""},{"$f":"IF(Stock!C200<>\"\",Stock!C200,\"\")","v":""},{"$f":"IF(Stock!D204<>\"\",Stock!D204,\"\")","v":""},{"$f":"IF(Stock!$A200<>\"\",SUM(Stock!$J200,Stock!$F200,Stock!$G200),\"\")","v":""}]
[{"$f":"IF(Stock!B201<>\"\",Stock!B201,\"\")","v":""},{"$f":"IF(Stock!C201<>\"\",Stock!C201,\"\")","v":""},{"$f":"IF(Stock!D205<>\"\",Stock!D205,\"\")","v":""},{"$f":"IF(Stock!$A201<>\"\",SUM(Stock!$J201,Stock!$F201,Stock!$G201),\"\")","v":""}]
[{"$f":"IF(Stock!B202<>\"\",Stock!B202,\"\")","v":""},{"$f":"IF(Stock!C202<>\"\",Stock!C202,\"\")","v":""},{"$f":"IF(Stock!D206<>\"\",Stock!D206,\"\")","v":""},{"$f":"IF(Stock!$A202<>\"\",SUM(Stock!$J202,Stock!$F202,Stock!$G202),\"\")","v":""}]
[{"$f":"IF(Stock!B203<>\"\",Stock!B203,\"\")","v":""},{"$f":"IF(Stock!C203<>\"\",Stock!C203,\"\")","v":""},{"$f":"IF(Stock!D207<>\"\",Stock!D207,\"\")","v":""},{"$f":"IF(Stock!$A203<>\"\",SUM(Stock!$J203,Stock!$F203,Stock!$G203),\"\")","v":""}]
[{"$f":"IF(Stock!B204<>\"\",Stock!B204,\"\")","v":""},{"$f":"IF(Stock!C204<>\"\",Stock!C204,\"\")","v":""},{"$f":"IF(Stock!D208<>\"\",Stock!D208,\"\")","v":""},{"$f":"IF(Stock!$A204<>\"\",SUM(Stock!$J204,Stock!$F204,Stock!$G204),\"\")","v":""}]
[{"$f":"IF(Stock!B205<>\"\",Stock!B205,\"\")","v":""},{"$f":"IF(Stock!C205<>\"\",Stock!C205,\"\")","v":""},{"$f":"IF(Stock!D209<>\"\",Stock!D209,\"\")","v":""},{"$f":"IF(Stock!$A205<>\"\",SUM(Stock!$J205,Stock!$F205,Stock!$G205),\"\")","v":""}]
[{"$f":"IF(Stock!B206<>\"\",Stock!B206,\"\")","v":""},{"$f":"IF(Stock!C206<>\"\",Stock!C206,\"\")","v":""},{"$f":"IF(Stock!D210<>\"\",Stock!D210,\"\")","v":""},{"$f":"IF(Stock!$A206<>\"\",SUM(Stock!$J206,Stock!$F206,Stock!$G206),\"\")","v":""}]
[{"$f":"IF(Stock!B207<>\"\",Stock!B207,\"\")","v":""},{"$f":"IF(Stock!C207<>\"\",Stock!C207,\"\")","v":""},{"$f":"IF(Stock!D211<>\"\",Stock!D211,\"\")","v":""},{"$f":"IF(Stock!$A207<>\"\",SUM(Stock!$J207,Stock!$F207,Stock!$G207),\"\")","v":""}]
[{"$f":"IF(Stock!B208<>\"\",Stock!B208,\"\")","v":""},{"$f":"IF(Stock!C208<>\"\",Stock!C208,\"\")","v":""},{"$f":"IF(Stock!D212<>\"\",Stock!D212,\"\")","v":""},{"$f":"IF(Stock!$A208<>\"\",SUM(Stock!$J208,Stock!$F208,Stock!$G208),\"\")","v":""}]
[{"$f":"IF(Stock!B209<>\"\",Stock!B209,\"\")","v":""},{"$f":"IF(Stock!C209<>\"\",Stock!C209,\"\")","v":""},{"$f":"IF(Stock!D213<>\"\",Stock!D213,\"\")","v":""},{"$f":"IF(Stock!$A209<>\"\",SUM(Stock!$J209,Stock!$F209,Stock!$G209),\"\")","v":""}]
[{"$f":"IF(Stock!B210<>\"\",Stock!B210,\"\")","v":""},{"$f":"IF(Stock!C210<>\"\",Stock!C210,\"\")","v":""},{"$f":"IF(Stock!D214<>\"\",Stock!D214,\"\")","v":""},{"$f":"IF(Stock!$A210<>\"\",SUM(Stock!$J210,Stock!$F210,Stock!$G210),\"\")","v":""}]
[{"$f":"IF(Stock!B211<>\"\",Stock!B211,\"\")","v":""},{"$f":"IF(Stock!C211<>\"\",Stock!C211,\"\")","v":""},{"$f":"IF(Stock!D215<>\"\",Stock!D215,\"\")","v":""},{"$f":"IF(Stock!$A211<>\"\",SUM(Stock!$J211,Stock!$F211,Stock!$G211),\"\")","v":""}]
[{"$f":"IF(Stock!B212<>\"\",Stock!B212,\"\")","v":""},{"$f":"IF(Stock!C212<>\"\",Stock!C212,\"\")","v":""},{"$f":"IF(Stock!D216<>\"\",Stock!D216,\"\")","v":""},{"$f":"IF(Stock!$A212<>\"\",SUM(Stock!$J212,Stock!$F212,Stock!$G212),\"\")","v":""}]
[{"$f":"IF(Stock!B213<>\"\",Stock!B213,\"\")","v":""},{"$f":"IF(Stock!C213<>\"\",Stock!C213,\"\")","v":""},{"$f":"IF(Stock!D217<>\"\",Stock!D217,\"\")","v":""},{"$f":"IF(Stock!$A213<>\"\",SUM(Stock!$J213,Stock!$F213,Stock!$G213),\"\")","v":""}]
[{"$f":"IF(Stock!B214<>\"\",Stock!B214,\"\")","v":""},{"$f":"IF(Stock!C214<>\"\",Stock!C214,\"\")","v":""},{"$f":"IF(Stock!D218<>\"\",Stock!D218,\"\")","v":""},{"$f":"IF(Stock!$A214<>\"\",SUM(Stock!$J214,Stock!$F214,Stock!$G214),\"\")","v":""}]
[{"$f":"IF(Stock!B215<>\"\",Stock!B215,\"\")","v":""},{"$f":"IF(Stock!C215<>\"\",Stock!C215,\"\")","v":""},{"$f":"IF(Stock!D219<>\"\",Stock!D219,\"\")","v":""},{"$f":"IF(Stock!$A215<>\"\",SUM(Stock!$J215,Stock!$F215,Stock!$G215),\"\")","v":""}]
[{"$f":"IF(Stock!B216<>\"\",Stock!B216,\"\")","v":""},{"$f":"IF(Stock!C216<>\"\",Stock!C216,\"\")","v":""},{"$f":"IF(Stock!D220<>\"\",Stock!D220,\"\")","v":""},{"$f":"IF(Stock!$A216<>\"\",SUM(Stock!$J216,Stock!$F216,Stock!$G216),\"\")","v":""}]
[{"$f":"IF(Stock!B217<>\"\",Stock!B217,\"\")","v":""},{"$f":"IF(Stock!C217<>\"\",Stock!C217,\"\")","v":""},{"$f":"IF(Stock!D221<>\"\",Stock!D221,\"\")","v":""},{"$f":"IF(Stock!$A217<>\"\",SUM(Stock!$J217,Stock!$F217,Stock!$G217),\"\")","v":""}]
[{"$f":"IF(Stock!B218<>\"\",Stock!B218,\"\")","v":""},{"$f":"IF(Stock!C218<>\"\",Stock!C218,\"\")","v":""},{"$f":"IF(Stock!D222<>\"\",Stock!D222,\"\")","v":""},{"$f":"IF(Stock!$A218<>\"\",SUM(Stock!$J218,Stock!$F218,Stock!$G218),\"\")","v":""}]
[{"$f":"IF(Stock!B219<>\"\",Stock!B219,\"\")","v":""},{"$f":"IF(Stock!C219<>\"\",Stock!C219,\"\")","v":""},{"$f":"IF(Stock!D223<>\"\",Stock!D223,\"\")","v":""},{"$f":"IF(Stock!$A219<>\"\",SUM(Stock!$J219,Stock!$F219,Stock!$G219),\"\")","v":""}]
[{"$f":"IF(Stock!B220<>\"\",Stock!B220,\"\")","v":""},{"$f":"IF(Stock!C220<>\"\",Stock!C220,\"\")","v":""},{"$f":"IF(Stock!D224<>\"\",Stock!D224,\"\")","v":""},{"$f":"IF(Stock!$A220<>\"\",SUM(Stock!$J220,Stock!$F220,Stock!$G220),\"\")","v":""}]
[{"$f":"IF(Stock!B221<>\"\",Stock!B221,\"\")","v":""},{"$f":"IF(Stock!C221<>\"\",Stock!C221,\"\")","v":""},{"$f":"IF(Stock!D225<>\"\",Stock!D225,\"\")","v":""},{"$f":"IF(Stock!$A221<>\"\",SUM(Stock!$J221,Stock!$F221,Stock!$G221),\"\")","v":""}]
[{"$f":"IF(Stock!B222<>\"\",Stock!B222,\"\")","v":""},{"$f":"IF(Stock!C222<>\"\",Stock!C222,\"\")","v":""},{"$f":"IF(Stock!D226<>\"\",Stock!D226,\"\")","v":""},{"$f":"IF(Stock!$A222<>\"\",SUM(Stock!$J222,Stock!$F222,Stock!$G222),\"\")","v":""}]
[{"$f":"IF(Stock!B223<>\"\",Stock!B223,\"\")","v":""},{"$f":"IF(Stock!C223<>\"\",Stock!C223,\"\")","v":""},{"$f":"IF(Stock!D227<>\"\",Stock!D227,\"\")","v":""},{"$f":"IF(Stock!$A223<>\"\",SUM(Stock!$J223,Stock!$F223,Stock!$G223),\"\")","v":""}]
[{"$f":"IF(Stock!B224<>\"\",Stock!B224,\"\")","v":""},{"$f":"IF(Stock!C224<>\"\",Stock!C224,\"\")","v":""},{"$f":"IF(Stock!D228<>\"\",Stock!D228,\"\")","v":""},{"$f":"IF(Stock!$A224<>\"\",SUM(Stock!$J224,Stock!$F224,Stock!$G224),\"\")","v":""}]
[{"$f":"IF(Stock!B225<>\"\",Stock!B225,\"\")","v":""},{"$f":"IF(Stock!C225<>\"\",Stock!C225,\"\")","v":""},{"$f":"IF(Stock!D229<>\"\",Stock!D229,\"\")","v":""},{"$f":"IF(Stock!$A225<>\"\",SUM(Stock!$J225,Stock!$F225,Stock!$G225),\"\")","v":""}]
[{"$f":"IF(Stock!B226<>\"\",Stock!B226,\"\")","v":""},{"$f":"IF(Stock!C226<>\"\",Stock!C226,\"\")","v":""},{"$f":"IF(Stock!D230<>\"\",Stock!D230,\"\")","v":""},{"$f":"IF(Stock!$A226<>\"\",SUM(Stock!$J226,Stock!$F226,Stock!$G226),\"\")","v":""}]
[{"$f":"IF(Stock!B227<>\"\",Stock!B227,\"\")","v":""},{"$f":"IF(Stock!C227<>\"\",Stock!C227,\"\")","v":""},{"$f":"IF(Stock!D231<>\"\",Stock!D231,\"\")","v":""},{"$f":"IF(Stock!$A227<>\"\",SUM(Stock!$J227,Stock!$F227,Stock!$G227),\"\")","v":""}]
[{"$f":"IF(Stock!B228<>\"\",Stock!B228,\"\")","v":""},{"$f":"IF(Stock!C228<>\"\",Stock!C228,\"\")","v":""},{"$f":"IF(Stock!D232<>\"\",Stock!D232,\"\")","v":""},{"$f":"IF(Stock!$A228<>\"\",SUM(Stock!$J228,Stock!$F228,Stock!$G228),\"\")","v":""}]
[{"$f":"IF(Stock!B229<>\"\",Stock!B229,\"\")","v":""},{"$f":"IF(Stock!C229<>\"\",Stock!C229,\"\")","v":""},{"$f":"IF(Stock!D233<>\"\",Stock!D233,\"\")","v":""},{"$f":"IF(Stock!$A229<>\"\",SUM(Stock!$J229,Stock!$F229,Stock!$G229),\"\")","v":""}]
[{"$f":"IF(Stock!B230<>\"\",Stock!B230,\"\")","v":""},{"$f":"IF(Stock!C230<>\"\",Stock!C230,\"\")","v":""},{"$f":"IF(Stock!D234<>\"\",Stock!D234,\"\")","v":""},{"$f":"IF(Stock!$A230<>\"\",SUM(Stock!$J230,Stock!$F230,Stock!$G230),\"\")","v":""}]
[{"$f":"IF(Stock!B231<>\"\",Stock!B231,\"\")","v":""},{"$f":"IF(Stock!C231<>\"\",Stock!C231,\"\")","v":""},{"$f":"IF(Stock!D235<>\"\",Stock!D235,\"\")","v":""},{"$f":"IF(Stock!$A231<>\"\",SUM(Stock!$J231,Stock!$F231,Stock!$G231),\"\")","v":""}]
[{"$f":"IF(Stock!B232<>\"\",Stock!B232,\"\")","v":""},{"$f":"IF(Stock!C232<>\"\",Stock!C232,\"\")","v":""},{"$f":"IF(Stock!D236<>\"\",Stock!D236,\"\")","v":""},{"$f":"IF(Stock!$A232<>\"\",SUM(Stock!$J232,Stock!$F232,Stock!$G232),\"\")","v":""}]
[{"$f":"IF(Stock!B233<>\"\",Stock!B233,\"\")","v":""},{"$f":"IF(Stock!C233<>\"\",Stock!C233,\"\")","v":""},{"$f":"IF(Stock!D237<>\"\",Stock!D237,\"\")","v":""},{"$f":"IF(Stock!$A233<>\"\",SUM(Stock!$J233,Stock!$F233,Stock!$G233),\"\")","v":""}]
[{"$f":"IF(Stock!B234<>\"\",Stock!B234,\"\")","v":""},{"$f":"IF(Stock!C234<>\"\",Stock!C234,\"\")","v":""},{"$f":"IF(Stock!D238<>\"\",Stock!D238,\"\")","v":""},{"$f":"IF(Stock!$A234<>\"\",SUM(Stock!$J234,Stock!$F234,Stock!$G234),\"\")","v":""}]
[{"$f":"IF(Stock!B235<>\"\",Stock!B235,\"\")","v":""},{"$f":"IF(Stock!C235<>\"\",Stock!C235,\"\")","v":""},{"$f":"IF(Stock!D239<>\"\",Stock!D239,\"\")","v":""},{"$f":"IF(Stock!$A235<>\"\",SUM(Stock!$J235,Stock!$F235,Stock!$G235),\"\")","v":""}]
[{"$f":"IF(Stock!B236<>\"\",Stock!B236,\"\")","v":""},{"$f":"IF(Stock!C236<>\"\",Stock!C236,\"\")","v":""},{"$f":"IF(Stock!D240<>\"\",Stock!D240,\"\")","v":""},{"$f":"IF(Stock!$A236<>\"\",SUM(Stock!$J236,Stock!$F236,Stock!$G236),\"\")","v":""}]
[{"$f":"IF(Stock!B237<>\"\",Stock!B237,\"\")","v":""},{"$f":"IF(Stock!C237<>\"\",Stock!C237,\"\")","v":""},{"$f":"IF(Stock!D241<>\"\",Stock!D241,\"\")","v":""},{"$f":"IF(Stock!$A237<>\"\",SUM(Stock!$J237,Stock!$F237,Stock!$G237),\"\")","v":""}]
[{"$f":"IF(Stock!B238<>\"\",Stock!B238,\"\")","v":""},{"$f":"IF(Stock!C238<>\"\",Stock!C238,\"\")","v":""},{"$f":"IF(Stock!D242<>\"\",Stock!D242,\"\")","v":""},{"$f":"IF(Stock!$A238<>\"\",SUM(Stock!$J238,Stock!$F238,Stock!$G238),\"\")","v":""}]
[{"$f":"IF(Stock!B239<>\"\",Stock!B239,\"\")","v":""},{"$f":"IF(Stock!C239<>\"\",Stock!C239,\"\")","v":""},{"$f":"IF(Stock!D243<>\"\",Stock!D243,\"\")","v":""},{"$f":"IF(Stock!$A239<>\"\",SUM(Stock!$J239,Stock!$F239,Stock!$G239),\"\")","v":""}]
[{"$f":"IF(Stock!B240<>\"\",Stock!B240,\"\")","v":""},{"$f":"IF(Stock!C240<>\"\",Stock!C240,\"\")","v":""},{"$f":"IF(Stock!D244<>\"\",Stock!D244,\"\")","v":""},{"$f":"IF(Stock!$A240<>\"\",SUM(Stock!$J240,Stock!$F240,Stock!$G240),\"\")","v":""}]
[{"$f":"IF(Stock!B241<>\"\",Stock!B241,\"\")","v":""},{"$f":"IF(Stock!C241<>\"\",Stock!C241,\"\")","v":""},{"$f":"IF(Stock!D245<>\"\",Stock!D245,\"\")","v":""},{"$f":"IF(Stock!$A241<>\"\",SUM(Stock!$J241,Stock!$F241,Stock!$G241),\"\")","v":""}]
[{"$f":"IF(Stock!B242<>\"\",Stock!B242,\"\")","v":""},{"$f":"IF(Stock!C242<>\"\",Stock!C242,\"\")","v":""},{"$f":"IF(Stock!D246<>\"\",Stock!D246,\"\")","v":""},{"$f":"IF(Stock!$A242<>\"\",SUM(Stock!$J242,Stock!$F242,Stock!$G242),\"\")","v":""}]
[{"$f":"IF(Stock!B243<>\"\",Stock!B243,\"\")","v":""},{"$f":"IF(Stock!C243<>\"\",Stock!C243,\"\")","v":""},{"$f":"IF(Stock!D247<>\"\",Stock!D247,\"\")","v":""},{"$f":"IF(Stock!$A243<>\"\",SUM(Stock!$J243,Stock!$F243,Stock!$G243),\"\")","v":""}]
[{"$f":"IF(Stock!B244<>\"\",Stock!B244,\"\")","v":""},{"$f":"IF(Stock!C244<>\"\",Stock!C244,\"\")","v":""},{"$f":"IF(Stock!D248<>\"\",Stock!D248,\"\")","v":""},{"$f":"IF(Stock!$A244<>\"\",SUM(Stock!$J244,Stock!$F244,Stock!$G244),\"\")","v":""}]
[{"$f":"IF(Stock!B245<>\"\",Stock!B245,\"\")","v":""},{"$f":"IF(Stock!C245<>\"\",Stock!C245,\"\")","v":""},{"$f":"IF(Stock!D249<>\"\",Stock!D249,\"\")","v":""},{"$f":"IF(Stock!$A245<>\"\",SUM(Stock!$J245,Stock!$F245,Stock!$G245),\"\")","v":""}]
[{"$f":"IF(Stock!B246<>\"\",Stock!B246,\"\")","v":""},{"$f":"IF(Stock!C246<>\"\",Stock!C246,\"\")","v":""},{"$f":"IF(Stock!D250<>\"\",Stock!D250,\"\")","v":""},{"$f":"IF(Stock!$A246<>\"\",SUM(Stock!$J246,Stock!$F246,Stock!$G246),\"\")","v":""}]
[{"$f":"IF(Stock!B247<>\"\",Stock!B247,\"\")","v":""},{"$f":"IF(Stock!C247<>\"\",Stock!C247,\"\")","v":""},{"$f":"IF(Stock!D251<>\"\",Stock!D251,\"\")","v":""},{"$f":"IF(Stock!$A247<>\"\",SUM(Stock!$J247,Stock!$F247,Stock!$G247),\"\")","v":""}]
[{"$f":"IF(Stock!B248<>\"\",Stock!B248,\"\")","v":""},{"$f":"IF(Stock!C248<>\"\",Stock!C248,\"\")","v":""},{"$f":"IF(Stock!D252<>\"\",Stock!D252,\"\")","v":""},{"$f":"IF(Stock!$A248<>\"\",SUM(Stock!$J248,Stock!$F248,Stock!$G248),\"\")","v":""}]
[{"$f":"IF(Stock!B249<>\"\",Stock!B249,\"\")","v":""},{"$f":"IF(Stock!C249<>\"\",Stock!C249,\"\")","v":""},{"$f":"IF(Stock!D253<>\"\",Stock!D253,\"\")","v":""},{"$f":"IF(Stock!$A249<>\"\",SUM(Stock!$J249,Stock!$F249,Stock!$G249),\"\")","v":""}]
[{"$f":"IF(Stock!B250<>\"\",Stock!B250,\"\")","v":""},{"$f":"IF(Stock!C250<>\"\",Stock!C250,\"\")","v":""},{"$f":"IF(Stock!D254<>\"\",Stock!D254,\"\")","v":""},{"$f":"IF(Stock!$A250<>\"\",SUM(Stock!$J250,Stock!$F250,Stock!$G250),\"\")","v":""}]
[{"$f":"IF(Stock!B251<>\"\",Stock!B251,\"\")","v":""},{"$f":"IF(Stock!C251<>\"\",Stock!C251,\"\")","v":""},{"$f":"IF(Stock!D255<>\"\",Stock!D255,\"\")","v":""},{"$f":"IF(Stock!$A251<>\"\",SUM(Stock!$J251,Stock!$F251,Stock!$G251),\"\")","v":""}]
[{"$f":"IF(Stock!B252<>\"\",Stock!B252,\"\")","v":""},{"$f":"IF(Stock!C252<>\"\",Stock!C252,\"\")","v":""},{"$f":"IF(Stock!D256<>\"\",Stock!D256,\"\")","v":""},{"$f":"IF(Stock!$A252<>\"\",SUM(Stock!$J252,Stock!$F252,Stock!$G252),\"\")","v":""}]
[{"$f":"IF(Stock!B253<>\"\",Stock!B253,\"\")","v":""},{"$f":"IF(Stock!C253<>\"\",Stock!C253,\"\")","v":""},{"$f":"IF(Stock!D257<>\"\",Stock!D257,\"\")","v":""},{"$f":"IF(Stock!$A253<>\"\",SUM(Stock!$J253,Stock!$F253,Stock!$G253),\"\")","v":""}]
[{"$f":"IF(Stock!B254<>\"\",Stock!B254,\"\")","v":""},{"$f":"IF(Stock!C254<>\"\",Stock!C254,\"\")","v":""},{"$f":"IF(Stock!D258<>\"\",Stock!D258,\"\")","v":""},{"$f":"IF(Stock!$A254<>\"\",SUM(Stock!$J254,Stock!$F254,Stock!$G254),\"\")","v":""}]
[{"$f":"IF(Stock!B330<>\"\",Stock!B330,\"\")","v":""},{"$f":"IF(Stock!C330<>\"\",Stock!C330,\"\")","v":""},{"$f":"IF(Stock!D334<>\"\",Stock!D334,\"\")","v":""},{"$f":"IF(Stock!F330<>\"\",Stock!F330,\"\")","v":""}]
[{"$f":"IF(Stock!B331<>\"\",Stock!B331,\"\")","v":""},{"$f":"IF(Stock!C331<>\"\",Stock!C331,\"\")","v":""},{"$f":"IF(Stock!D335<>\"\",Stock!D335,\"\")","v":""},{"$f":"IF(Stock!F331<>\"\",Stock!F331,\"\")","v":""}]

{"sheet":"Prestations","index":46,"n_rows":13,"n_cols":17,"rows_kept":13,"cut":false,"hidden":false,"merged":[]}
["Qtt","Catégorie","Société","Designation","Commentaires","Coût TTC","Coût HT","TVA","Prix TTC","Prix HT","Dont TVA","Gain unitaire","CA par produit","TVA à déduire","TVA à payer","Marge nette","Sous totaux CA"]
[]
[]
[null,null,null,null,null,null,null,null,null,null,null,null,"CA"]
[null,null,null,null,null,null,null,null,null,null,null,null,{"$f":"SUM(M$6:M$495)","v":0},{"$f":"SUM($N$6:$N$995)","v":0},{"$f":"SUM($O$6:$O$995)","v":0},{"$f":"SUM(P$6:P$995)","v":0}]
[null,"Prestation de services"]
[{"$f":"Pilotage!H26","v":0},{"$f":"ROUND(A7/12,1) & \" h/mois\"","v":"0 h/mois"},null,{"$f":"Pilotage!F26","v":"Formations"},"/h",0,{"$f":"IF(F7<>\"\",F7*Pilotage!$D$15,\"\")","v":0},{"$f":"IF(F7<>\"\",F7-G7,\"\")","v":0},{"$f":"Pilotage!G26","v":0},{"$f":"IF(A7<>\"\",I7*Pilotage!$D$15,\"\")","v":0},{"$f":"IF(A7<>\"\",I7-J7,\"\")","v":0},{"$f":"IF(A7<>\"\",J7-G7,\"\")","v":0},{"$f":"IF(A7<>\"\",J7*A7,\"\")","v":0},{"$f":"IF($A7<>\"\",H7*A7,\"\")","v":0},{"$f":"IF($I7<>\"\",K7*$A7,\"\")","v":0},{"$f":"IF(I7<>\"\",L7*A7,\"\")","v":0}]
[{"$f":"Pilotage!H27","v":0},{"$f":"ROUND(A8/12,1) & \" h/mois\"","v":"0 h/mois"},null,{"$f":"Pilotage!F27","v":"Presta(conseil, accomp)"},"/h",0,{"$f":"IF(F8<>\"\",F8*Pilotage!$D$15,\"\")","v":0},0,{"$f":"Pilotage!G27","v":0},{"$f":"IF(A8<>\"\",I8*Pilotage!$D$15,\"\")","v":0},0,0,0,0,0,0]
[{"$f":"Pilotage!H28","v":0},{"$f":"ROUND(A9/12,1) & \" pers/mois\"","v":"0 pers/mois"},null,{"$f":"Pilotage!F28","v":"Cours collectifs"},"/personne",0,{"$f":"IF(F9<>\"\",F9*Pilotage!$D$15,\"\")","v":0},0,{"$f":"Pilotage!G28","v":0},{"$f":"IF(A9<>\"\",I9*Pilotage!$D$15,\"\")","v":0},0,0,0,0,0,0]
[{"$f":"Pilotage!H29","v":0},{"$f":"ROUND(A10/12,1) & \" h/mois\"","v":"0 h/mois"},null,{"$f":"Pilotage!F29","v":"Privatisation du fablab"},"/h",0,{"$f":"IF(F10<>\"\",F10*Pilotage!$D$15,\"\")","v":0},0,{"$f":"Pilotage!G29","v":0},{"$f":"IF(A10<>\"\",I10*Pilotage!$D$15,\"\")","v":0},0,0,0,0,0,0]
[{"$f":"Pilotage!H30","v":0},{"$f":"ROUND(A11/12,1) & \" h/mois\"","v":"0 h/mois"},null,{"$f":"Pilotage!F30","v":"Location à emporter Impr.3D"},"/h",0,{"$f":"IF(F11<>\"\",F11*Pilotage!$D$15,\"\")","v":0},0,{"$f":"Pilotage!G30","v":0},{"$f":"IF(A11<>\"\",I11*Pilotage!$D$15,\"\")","v":0},0,0,0,0,0,0]
[{"$f":"Pilotage!H31","v":0},null,null,{"$f":"Pilotage!F31","v":"Location bureau(0,5j)"},{"$f":"\"/mois\"","v":"/mois"},1,{"$f":"IF(F12<>\"\",F12*Pilotage!$D$15,\"\")","v":0.83333333333333337},0.16666666666666663,{"$f":"Pilotage!G31","v":0},{"$f":"IF(A12<>\"\",I12*Pilotage!$D$15,\"\")","v":0},{"$f":"IF(A12<>\"\",I12-J12,\"\")","v":0},-0.83333333333333337,0,0,{"$f":"IF($I12<>\"\",K12*$A12,\"\")","v":0},{"$f":"IF(I12<>\"\",L12*A12,\"\")","v":0}]
[null,null,null,null,null,null,{"$f":"IF(F13<>\"\",F13*Pilotage!$D$15,\"\")","v":""},{"$f":"IF(F13<>\"\",F13-G13,\"\")","v":""},null,{"$f":"IF(A13<>\"\",I13*Pilotage!$D$15,\"\")","v":""},"",{"$f":"IF(A13<>\"\",J13-G13,\"\")","v":""},{"$f":"IF(A13<>\"\",J13*A13,\"\")","v":""},{"$f":"IF($A13<>\"\",H13*A13,\"\")","v":""},"",""]

{"sheet":"Abos","index":47,"n_rows":13,"n_cols":18,"rows_kept":13,"cut":false,"hidden":false,"merged":[]}
["Qtt","Catégorie","Société","Designation","Commentaires","Coût TTC","Coût HT","TVA","Prix TTC","Prix HT","Dont TVA","Gain unitaire","CA par produit","TVA à déduire","TVA à payer","Marge nette","Sous totaux CA"]
[]
[]
[null,null,null,null,null,null,null,null,null,null,null,null,"CA"]
[null,null,null,null,null,null,null,null,null,null,null,null,{"$f":"SUM(M$6:M$491)","v":0},{"$f":"SUM($N$6:$N$991)","v":0},{"$f":"SUM($O$6:$O$991)","v":0},{"$f":"SUM(P$6:P$991)","v":0}]
[null,null,null,null,null,null,{"$f":"IF(F6<>\"\",F6*Pilotage!$D$15,\"\")","v":""},{"$f":"IF(F6<>\"\",F6-G6,\"\")","v":""},null,{"$f":"IF(A6<>\"\",I6*Pilotage!$D$15,\"\")","v":""},{"$f":"IF(A6<>\"\",I6-J6,\"\")","v":""},{"$f":"IF(A6<>\"\",J6-G6,\"\")","v":""},{"$f":"IF(A6<>\"\",J6*A6,\"\")","v":""},{"$f":"IF($A6<>\"\",H6*A6,\"\")","v":""},{"$f":"IF($I6<>\"\",K6*$A6,\"\")","v":""},{"$f":"IF(I6<>\"\",L6*A6,\"\")","v":""}]
[null,"Adhésions",null,null,null,null,{"$f":"IF(F7<>\"\",F7*Pilotage!$D$15,\"\")","v":""},"",null,{"$f":"IF(A7<>\"\",I7*Pilotage!$D$15,\"\")","v":""},"","","","","","",{"$f":"SUM(M9:M9)","v":0},{"$f":"Q7/$M$5","v":{"$error":"#DIV/0!"}}]
[{"$f":"Pilotage!H34","v":0},{"$f":"ROUND(A8/12,1) & \" personnes/mois\"","v":"0 personnes/mois"},null,{"$f":"Pilotage!F34","v":"Starter"},null,0,{"$f":"IF(F8<>\"\",F8*Pilotage!$D$15,\"\")","v":0},0,{"$f":"Pilotage!G34","v":0},{"$f":"IF(A8<>\"\",I8*Pilotage!$D$15,\"\")","v":0},0,0,0,0,0,0]
[{"$f":"Pilotage!H35","v":0},{"$f":"ROUND(A9/12,1) & \" personnes/mois\"","v":"0 personnes/mois"},null,{"$f":"Pilotage!F35","v":"Maker"},null,0,{"$f":"IF(F9<>\"\",F9*Pilotage!$D$15,\"\")","v":0},0,{"$f":"Pilotage!G35","v":0},{"$f":"IF(A9<>\"\",I9*Pilotage!$D$15,\"\")","v":0},0,0,0,0,0,0]
[{"$f":"Pilotage!H36","v":0},{"$f":"ROUND(A10/12,1) & \" personnes/mois\"","v":"0 personnes/mois"},null,{"$f":"Pilotage!F36","v":"Startup"},null,0,{"$f":"IF(F10<>\"\",F10*Pilotage!$D$15,\"\")","v":0},0,{"$f":"Pilotage!G36","v":0},{"$f":"IF(A10<>\"\",I10*Pilotage!$D$15,\"\")","v":0},0,0,0,0,0,0]
[{"$f":"Pilotage!H37","v":0},{"$f":"ROUND(A11/12,1) & \" personnes/mois\"","v":"0 personnes/mois"},null,{"$f":"Pilotage!F37","v":"Pro"},null,0,{"$f":"IF(F11<>\"\",F11*Pilotage!$D$15,\"\")","v":0},0,{"$f":"Pilotage!G37","v":0},{"$f":"IF(A11<>\"\",I11*Pilotage!$D$15,\"\")","v":0},0,0,0,0,0,0]
[{"$f":"Pilotage!H38","v":0},null,null,{"$f":"Pilotage!F38","v":"Accès atelier"},null,0,{"$f":"IF(F12<>\"\",F12*Pilotage!$D$15,\"\")","v":0},{"$f":"IF(F12<>\"\",F12-G12,\"\")","v":0},{"$f":"Pilotage!G38","v":0},{"$f":"IF(A12<>\"\",I12*Pilotage!$D$15,\"\")","v":0},{"$f":"IF(A12<>\"\",I12-J12,\"\")","v":0},{"$f":"IF(A12<>\"\",J12-G12,\"\")","v":0},{"$f":"IF(A12<>\"\",J12*A12,\"\")","v":0},{"$f":"IF($A12<>\"\",H12*A12,\"\")","v":0},{"$f":"IF($I12<>\"\",K12*$A12,\"\")","v":0},{"$f":"IF(I12<>\"\",L12*A12,\"\")","v":0}]
[{"$f":"Pilotage!H39","v":0},null,null,{"$f":"Pilotage!F39","v":"Accès atelier réduit"},null,0,{"$f":"IF(F13<>\"\",F13*Pilotage!$D$15,\"\")","v":0},0,{"$f":"Pilotage!G39","v":0},{"$f":"IF(A13<>\"\",I13*Pilotage!$D$15,\"\")","v":0},0,0,0,0,0,0]

{"sheet":"Locations","index":48,"n_rows":7,"n_cols":17,"rows_kept":7,"cut":false,"hidden":false,"merged":[]}
["Qtt","Catégorie","Société","Designation","Commentaires","Coût TTC","Coût HT","TVA","Prix TTC","Prix HT","Dont TVA","Gain unitaire","CA par produit","TVA à déduire","TVA à payer","Marge nette","Sous totaux CA"]
[]
[]
[null,null,null,null,null,null,null,null,null,null,null,null,"CA"]
[null,null,null,null,null,null,null,null,null,null,null,null,{"$f":"SUM(M$6:M$486)","v":0},{"$f":"SUM($N$6:$N$986)","v":0},{"$f":"SUM($O$6:$O$986)","v":0},{"$f":"SUM(P$6:P$986)","v":0}]
[]
[null,"Locations de machine",null,null,null,null,{"$f":"IF(F7<>\"\",F7*Pilotage!$D$15,\"\")","v":""},{"$f":"IF(F7<>\"\",F7-G7,\"\")","v":""},null,{"$f":"IF(A7<>\"\",I7*Pilotage!$D$15,\"\")","v":""},{"$f":"IF(A7<>\"\",I7-J7,\"\")","v":""},{"$f":"IF(A7<>\"\",J7-G7,\"\")","v":""},{"$f":"IF(A7<>\"\",J7*A7,\"\")","v":""},{"$f":"IF($A7<>\"\",H7*A7,\"\")","v":""},{"$f":"IF($I7<>\"\",K7*$A7,\"\")","v":""},{"$f":"IF(I7<>\"\",L7*A7,\"\")","v":""}]

{"sheet":"Credit-bail","index":49,"n_rows":403,"n_cols":15,"rows_kept":403,"cut":false,"hidden":false,"merged":[[2,1,2,8],[2,9,2,14]]}
[]
[]
[null,"Crédit-bail"]
[]
[null,"Montant emprunté",0,null,null,"Date","Intérêts cumulé","Intérêts","Capital restant dû",null,null,"Date",null,null,"Intérêts annuels"]
[null,"Taux annuel",{"$f":"Pilotage!D22","v":0.04},null,1,{"$f":"C9","v":"2014-10-01"},{"$f":"IF(E6<>\"\",IF($C$5=0,0,CUMIPMT($C$6/$C$8,$C$7*$C$8,$C$5,1,E6,Pilotage!$D$25)),\"\")","v":0},{"$f":"IF(E6<>\"\",IF($C$5=0,0,CUMIPMT($C$6/$C$8,$C$7*$C$8,$C$5,E6,E6,Pilotage!$D$25)),\"\")","v":0},{"$f":"IF(E6<>\"\",IF($C$5=0,0,$C$5+CUMPRINC($C$6/$C$8,$C$7*$C$8,$C$5,1,E6,Pilotage!$D$25)),\"\")","v":0},null,1,{"$f":"F6","v":"2014-10-01"},{"$f":"IF(K6<>\"\",K6*$C$8-$C$8+1,\"\")","v":1},{"$f":"IF(K6<>\"\",K6*$C$8,\"\")","v":12},{"$f":"IF(K6<>\"\",IF($C$5=0,0,-1*CUMIPMT($C$6/$C$8,$C$7*$C$8,$C$5,M6,N6,Pilotage!$D$25)),\"\")","v":0}]
[null,"Nb années de décaissement",1,"durée de l'amortissement",{"$f":"IF(E6<$C$10,E6+1,\"\")","v":2},{"$f":"IF(E7<>\"\",EDATE(F6,$C$11),\"\")","v":"2014-11-01"},{"$f":"IF(E7<>\"\",IF($C$5=0,0,CUMIPMT($C$6/$C$8,$C$7*$C$8,$C$5,1,E7,Pilotage!$D$25)),\"\")","v":0},{"$f":"IF(E7<>\"\",IF($C$5=0,0,CUMIPMT($C$6/$C$8,$C$7*$C$8,$C$5,E7,E7,Pilotage!$D$25)),\"\")","v":0},{"$f":"IF(E7<>\"\",IF($C$5=0,0,$C$5+CUMPRINC($C$6/$C$8,$C$7*$C$8,$C$5,1,E7,Pilotage!$D$25)),\"\")","v":0},null,{"$f":"IF(E6<$C$7,E6+1,\"\")","v":""},{"$f":"IF(K7<>\"\",EDATE(L6,12),\"\")","v":""},{"$f":"IF(K7<>\"\",K7*$C$8-$C$8+1,\"\")","v":""},"",{"$f":"IF(K7<>\"\",IF($C$5=0,0,-1*CUMIPMT($C$6/$C$8,$C$7*$C$8,$C$5,M7,N7,Pilotage!$D$25)),\"\")","v":""}]
[null,"Périodicité (nb fois/an, 4 = trimest.)",12,null,{"$f":"IF(E7<$C$10,E7+1,\"\")","v":3},{"$f":"IF(E8<>\"\",EDATE(F7,$C$11),\"\")","v":"2014-12-01"},{"$f":"IF(E8<>\"\",IF($C$5=0,0,CUMIPMT($C$6/$C$8,$C$7*$C$8,$C$5,1,E8,Pilotage!$D$25)),\"\")","v":0},{"$f":"IF(E8<>\"\",IF($C$5=0,0,CUMIPMT($C$6/$C$8,$C$7*$C$8,$C$5,E8,E8,Pilotage!$D$25)),\"\")","v":0},{"$f":"IF(E8<>\"\",IF($C$5=0,0,$C$5+CUMPRINC($C$6/$C$8,$C$7*$C$8,$C$5,1,E8,Pilotage!$D$25)),\"\")","v":0},null,{"$f":"IF(E7<$C$7,E7+1,\"\")","v":""},{"$f":"IF(K8<>\"\",EDATE(L7,12),\"\")","v":""},"","",{"$f":"IF(K8<>\"\",IF($C$5=0,0,-1*CUMIPMT($C$6/$C$8,$C$7*$C$8,$C$5,M8,N8,Pilotage!$D$25)),\"\")","v":""}]
[null,"Date de départ",{"$f":"Pilotage!D26","v":"2014-10-01"},null,4,"2015-01-01",{"$f":"IF(E9<>\"\",IF($C$5=0,0,CUMIPMT($C$6/$C$8,$C$7*$C$8,$C$5,1,E9,Pilotage!$D$25)),\"\")","v":0},{"$f":"IF(E9<>\"\",IF($C$5=0,0,CUMIPMT($C$6/$C$8,$C$7*$C$8,$C$5,E9,E9,Pilotage!$D$25)),\"\")","v":0},{"$f":"IF(E9<>\"\",IF($C$5=0,0,$C$5+CUMPRINC($C$6/$C$8,$C$7*$C$8,$C$5,1,E9,Pilotage!$D$25)),\"\")","v":0},null,"","","","",{"$f":"IF(K9<>\"\",IF($C$5=0,0,-1*CUMIPMT($C$6/$C$8,$C$7*$C$8,$C$5,M9,N9,Pilotage!$D$25)),\"\")","v":""}]
[null,"Échéances",{"$f":"C7*C8","v":12},null,5,"2015-02-01",{"$f":"IF(E10<>\"\",IF($C$5=0,0,CUMIPMT($C$6/$C$8,$C$7*$C$8,$C$5,1,E10,Pilotage!$D$25)),\"\")","v":0},{"$f":"IF(E10<>\"\",IF($C$5=0,0,CUMIPMT($C$6/$C$8,$C$7*$C$8,$C$5,E10,E10,Pilotage!$D$25)),\"\")","v":0},{"$f":"IF(E10<>\"\",IF($C$5=0,0,$C$5+CUMPRINC($C$6/$C$8,$C$7*$C$8,$C$5,1,E10,Pilotage!$D$25)),\"\")","v":0},null,"","","","",{"$f":"IF(K10<>\"\",IF($C$5=0,0,-1*CUMIPMT($C$6/$C$8,$C$7*$C$8,$C$5,M10,N10,Pilotage!$D$25)),\"\")","v":""}]
[null,"Durée de l'échéance",{"$f":"12/C8","v":1},null,6,"2015-03-01",{"$f":"IF(E11<>\"\",IF($C$5=0,0,CUMIPMT($C$6/$C$8,$C$7*$C$8,$C$5,1,E11,Pilotage!$D$25)),\"\")","v":0},{"$f":"IF(E11<>\"\",IF($C$5=0,0,CUMIPMT($C$6/$C$8,$C$7*$C$8,$C$5,E11,E11,Pilotage!$D$25)),\"\")","v":0},{"$f":"IF(E11<>\"\",IF($C$5=0,0,$C$5+CUMPRINC($C$6/$C$8,$C$7*$C$8,$C$5,1,E11,Pilotage!$D$25)),\"\")","v":0},null,"","","","",{"$f":"IF(K11<>\"\",IF($C$5=0,0,-1*CUMIPMT($C$6/$C$8,$C$7*$C$8,$C$5,M11,N11,Pilotage!$D$25)),\"\")","v":""}]
[null,"Montant échéances",{"$f":"PMT($C$6/$C$8,$C$7*$C$8,$C$5,0,Pilotage!D25)*-1","v":0},null,7,"2015-04-01",{"$f":"IF(E12<>\"\",IF($C$5=0,0,CUMIPMT($C$6/$C$8,$C$7*$C$8,$C$5,1,E12,Pilotage!$D$25)),\"\")","v":0},{"$f":"IF(E12<>\"\",IF($C$5=0,0,CUMIPMT($C$6/$C$8,$C$7*$C$8,$C$5,E12,E12,Pilotage!$D$25)),\"\")","v":0},{"$f":"IF(E12<>\"\",IF($C$5=0,0,$C$5+CUMPRINC($C$6/$C$8,$C$7*$C$8,$C$5,1,E12,Pilotage!$D$25)),\"\")","v":0},null,"","","","",{"$f":"IF(K12<>\"\",IF($C$5=0,0,-1*CUMIPMT($C$6/$C$8,$C$7*$C$8,$C$5,M12,N12,Pilotage!$D$25)),\"\")","v":""}]
[null,"Cout total du crédit",{"$f":"C12*C7*C8","v":0},null,8,"2015-05-01",{"$f":"IF(E13<>\"\",IF($C$5=0,0,CUMIPMT($C$6/$C$8,$C$7*$C$8,$C$5,1,E13,Pilotage!$D$25)),\"\")","v":0},{"$f":"IF(E13<>\"\",IF($C$5=0,0,CUMIPMT($C$6/$C$8,$C$7*$C$8,$C$5,E13,E13,Pilotage!$D$25)),\"\")","v":0},{"$f":"IF(E13<>\"\",IF($C$5=0,0,$C$5+CUMPRINC($C$6/$C$8,$C$7*$C$8,$C$5,1,E13,Pilotage!$D$25)),\"\")","v":0},null,"","","","",{"$f":"IF(K13<>\"\",IF($C$5=0,0,-1*CUMIPMT($C$6/$C$8,$C$7*$C$8,$C$5,M13,N13,Pilotage!$D$25)),\"\")","v":""}]
[null,"Montant des intérêts",{"$f":"C13-C5","v":0},null,9,"2015-06-01",{"$f":"IF(E14<>\"\",IF($C$5=0,0,CUMIPMT($C$6/$C$8,$C$7*$C$8,$C$5,1,E14,Pilotage!$D$25)),\"\")","v":0},{"$f":"IF(E14<>\"\",IF($C$5=0,0,CUMIPMT($C$6/$C$8,$C$7*$C$8,$C$5,E14,E14,Pilotage!$D$25)),\"\")","v":0},{"$f":"IF(E14<>\"\",IF($C$5=0,0,$C$5+CUMPRINC($C$6/$C$8,$C$7*$C$8,$C$5,1,E14,Pilotage!$D$25)),\"\")","v":0},null,"","","","",{"$f":"IF(K14<>\"\",IF($C$5=0,0,-1*CUMIPMT($C$6/$C$8,$C$7*$C$8,$C$5,M14,N14,Pilotage!$D$25)),\"\")","v":""}]
[null,null,null,null,10,"2015-07-01",{"$f":"IF(E15<>\"\",IF($C$5=0,0,CUMIPMT($C$6/$C$8,$C$7*$C$8,$C$5,1,E15,Pilotage!$D$25)),\"\")","v":0},{"$f":"IF(E15<>\"\",IF($C$5=0,0,CUMIPMT($C$6/$C$8,$C$7*$C$8,$C$5,E15,E15,Pilotage!$D$25)),\"\")","v":0},{"$f":"IF(E15<>\"\",IF($C$5=0,0,$C$5+CUMPRINC($C$6/$C$8,$C$7*$C$8,$C$5,1,E15,Pilotage!$D$25)),\"\")","v":0},null,"","","","",{"$f":"IF(K15<>\"\",IF($C$5=0,0,-1*CUMIPMT($C$6/$C$8,$C$7*$C$8,$C$5,M15,N15,Pilotage!$D$25)),\"\")","v":""}]
[null,null,null,null,11,"2015-08-01",{"$f":"IF(E16<>\"\",IF($C$5=0,0,CUMIPMT($C$6/$C$8,$C$7*$C$8,$C$5,1,E16,Pilotage!$D$25)),\"\")","v":0},{"$f":"IF(E16<>\"\",IF($C$5=0,0,CUMIPMT($C$6/$C$8,$C$7*$C$8,$C$5,E16,E16,Pilotage!$D$25)),\"\")","v":0},{"$f":"IF(E16<>\"\",IF($C$5=0,0,$C$5+CUMPRINC($C$6/$C$8,$C$7*$C$8,$C$5,1,E16,Pilotage!$D$25)),\"\")","v":0},null,{"$f":"IF(E15<$C$7,E15+1,\"\")","v":""},{"$f":"IF(K16<>\"\",EDATE(L15,12),\"\")","v":""},{"$f":"IF(K16<>\"\",K16*$C$8-$C$8+1,\"\")","v":""},"",{"$f":"IF(K16<>\"\",-1*CUMIPMT($C$6/$C$8,$C$7*$C$8,$C$5,M16,N16,Pilotage!$D$25),\"\")","v":""}]
[null,null,null,null,12,"2015-09-01",{"$f":"IF(E17<>\"\",IF($C$5=0,0,CUMIPMT($C$6/$C$8,$C$7*$C$8,$C$5,1,E17,Pilotage!$D$25)),\"\")","v":0},{"$f":"IF(E17<>\"\",IF($C$5=0,0,CUMIPMT($C$6/$C$8,$C$7*$C$8,$C$5,E17,E17,Pilotage!$D$25)),\"\")","v":0},{"$f":"IF(E17<>\"\",IF($C$5=0,0,$C$5+CUMPRINC($C$6/$C$8,$C$7*$C$8,$C$5,1,E17,Pilotage!$D$25)),\"\")","v":0},null,{"$f":"IF(E16<$C$7,E16+1,\"\")","v":""},{"$f":"IF(K17<>\"\",EDATE(L16,12),\"\")","v":""},{"$f":"IF(K17<>\"\",K17*$C$8-$C$8+1,\"\")","v":""},"",{"$f":"IF(K17<>\"\",-1*CUMIPMT($C$6/$C$8,$C$7*$C$8,$C$5,M17,N17,Pilotage!$D$25),\"\")","v":""}]
[null,null,null,null,"","",{"$f":"IF(E18<>\"\",IF($C$5=0,0,CUMIPMT($C$6/$C$8,$C$7*$C$8,$C$5,1,E18,Pilotage!$D$25)),\"\")","v":""},{"$f":"IF(E18<>\"\",IF($C$5=0,0,CUMIPMT($C$6/$C$8,$C$7*$C$8,$C$5,E18,E18,Pilotage!$D$25)),\"\")","v":""},{"$f":"IF(E18<>\"\",IF($C$5=0,0,$C$5+CUMPRINC($C$6/$C$8,$C$7*$C$8,$C$5,1,E18,Pilotage!$D$25)),\"\")","v":""},null,{"$f":"IF(E17<$C$7,E17+1,\"\")","v":""},{"$f":"IF(K18<>\"\",EDATE(L17,12),\"\")","v":""},{"$f":"IF(K18<>\"\",K18*$C$8-$C$8+1,\"\")","v":""},"",{"$f":"IF(K18<>\"\",-1*CUMIPMT($C$6/$C$8,$C$7*$C$8,$C$5,M18,N18,Pilotage!$D$25),\"\")","v":""}]
[null,null,null,null,"","",{"$f":"IF(E19<>\"\",IF($C$5=0,0,CUMIPMT($C$6/$C$8,$C$7*$C$8,$C$5,1,E19,Pilotage!$D$25)),\"\")","v":""},{"$f":"IF(E19<>\"\",IF($C$5=0,0,CUMIPMT($C$6/$C$8,$C$7*$C$8,$C$5,E19,E19,Pilotage!$D$25)),\"\")","v":""},{"$f":"IF(E19<>\"\",IF($C$5=0,0,$C$5+CUMPRINC($C$6/$C$8,$C$7*$C$8,$C$5,1,E19,Pilotage!$D$25)),\"\")","v":""},null,{"$f":"IF(E18<$C$7,E18+1,\"\")","v":""},{"$f":"IF(K19<>\"\",EDATE(L18,12),\"\")","v":""},{"$f":"IF(K19<>\"\",K19*$C$8-$C$8+1,\"\")","v":""},"",{"$f":"IF(K19<>\"\",-1*CUMIPMT($C$6/$C$8,$C$7*$C$8,$C$5,M19,N19,Pilotage!$D$25),\"\")","v":""}]
[null,null,null,null,"","",{"$f":"IF(E20<>\"\",IF($C$5=0,0,CUMIPMT($C$6/$C$8,$C$7*$C$8,$C$5,1,E20,Pilotage!$D$25)),\"\")","v":""},{"$f":"IF(E20<>\"\",IF($C$5=0,0,CUMIPMT($C$6/$C$8,$C$7*$C$8,$C$5,E20,E20,Pilotage!$D$25)),\"\")","v":""},{"$f":"IF(E20<>\"\",IF($C$5=0,0,$C$5+CUMPRINC($C$6/$C$8,$C$7*$C$8,$C$5,1,E20,Pilotage!$D$25)),\"\")","v":""},null,{"$f":"IF(E19<$C$7,E19+1,\"\")","v":""},{"$f":"IF(K20<>\"\",EDATE(L19,12),\"\")","v":""},{"$f":"IF(K20<>\"\",K20*$C$8-$C$8+1,\"\")","v":""},"",{"$f":"IF(K20<>\"\",-1*CUMIPMT($C$6/$C$8,$C$7*$C$8,$C$5,M20,N20,Pilotage!$D$25),\"\")","v":""}]
[null,null,null,null,"","",{"$f":"IF(E21<>\"\",IF($C$5=0,0,CUMIPMT($C$6/$C$8,$C$7*$C$8,$C$5,1,E21,Pilotage!$D$25)),\"\")","v":""},{"$f":"IF(E21<>\"\",IF($C$5=0,0,CUMIPMT($C$6/$C$8,$C$7*$C$8,$C$5,E21,E21,Pilotage!$D$25)),\"\")","v":""},{"$f":"IF(E21<>\"\",IF($C$5=0,0,$C$5+CUMPRINC($C$6/$C$8,$C$7*$C$8,$C$5,1,E21,Pilotage!$D$25)),\"\")","v":""},null,{"$f":"IF(E20<$C$7,E20+1,\"\")","v":""},{"$f":"IF(K21<>\"\",EDATE(L20,12),\"\")","v":""},{"$f":"IF(K21<>\"\",K21*$C$8-$C$8+1,\"\")","v":""},"",{"$f":"IF(K21<>\"\",-1*CUMIPMT($C$6/$C$8,$C$7*$C$8,$C$5,M21,N21,Pilotage!$D$25),\"\")","v":""}]
[null,null,null,null,"","",{"$f":"IF(E22<>\"\",IF($C$5=0,0,CUMIPMT($C$6/$C$8,$C$7*$C$8,$C$5,1,E22,Pilotage!$D$25)),\"\")","v":""},{"$f":"IF(E22<>\"\",IF($C$5=0,0,CUMIPMT($C$6/$C$8,$C$7*$C$8,$C$5,E22,E22,Pilotage!$D$25)),\"\")","v":""},{"$f":"IF(E22<>\"\",IF($C$5=0,0,$C$5+CUMPRINC($C$6/$C$8,$C$7*$C$8,$C$5,1,E22,Pilotage!$D$25)),\"\")","v":""},null,"","","","",{"$f":"IF(K22<>\"\",-1*CUMIPMT($C$6/$C$8,$C$7*$C$8,$C$5,M22,N22,Pilotage!$D$25),\"\")","v":""}]
[null,null,null,null,"","",{"$f":"IF(E23<>\"\",IF($C$5=0,0,CUMIPMT($C$6/$C$8,$C$7*$C$8,$C$5,1,E23,Pilotage!$D$25)),\"\")","v":""},{"$f":"IF(E23<>\"\",IF($C$5=0,0,CUMIPMT($C$6/$C$8,$C$7*$C$8,$C$5,E23,E23,Pilotage!$D$25)),\"\")","v":""},{"$f":"IF(E23<>\"\",IF($C$5=0,0,$C$5+CUMPRINC($C$6/$C$8,$C$7*$C$8,$C$5,1,E23,Pilotage!$D$25)),\"\")","v":""},null,"","","","",{"$f":"IF(K23<>\"\",-1*CUMIPMT($C$6/$C$8,$C$7*$C$8,$C$5,M23,N23,Pilotage!$D$25),\"\")","v":""}]
[null,null,null,null,"","",{"$f":"IF(E24<>\"\",IF($C$5=0,0,CUMIPMT($C$6/$C$8,$C$7*$C$8,$C$5,1,E24,Pilotage!$D$25)),\"\")","v":""},{"$f":"IF(E24<>\"\",IF($C$5=0,0,CUMIPMT($C$6/$C$8,$C$7*$C$8,$C$5,E24,E24,Pilotage!$D$25)),\"\")","v":""},{"$f":"IF(E24<>\"\",IF($C$5=0,0,$C$5+CUMPRINC($C$6/$C$8,$C$7*$C$8,$C$5,1,E24,Pilotage!$D$25)),\"\")","v":""},null,"","","","",{"$f":"IF(K24<>\"\",-1*CUMIPMT($C$6/$C$8,$C$7*$C$8,$C$5,M24,N24,Pilotage!$D$25),\"\")","v":""}]
[null,null,null,null,"","",{"$f":"IF(E25<>\"\",IF($C$5=0,0,CUMIPMT($C$6/$C$8,$C$7*$C$8,$C$5,1,E25,Pilotage!$D$25)),\"\")","v":""},{"$f":"IF(E25<>\"\",IF($C$5=0,0,CUMIPMT($C$6/$C$8,$C$7*$C$8,$C$5,E25,E25,Pilotage!$D$25)),\"\")","v":""},{"$f":"IF(E25<>\"\",IF($C$5=0,0,$C$5+CUMPRINC($C$6/$C$8,$C$7*$C$8,$C$5,1,E25,Pilotage!$D$25)),\"\")","v":""},null,"","","","",{"$f":"IF(K25<>\"\",-1*CUMIPMT($C$6/$C$8,$C$7*$C$8,$C$5,M25,N25,Pilotage!$D$25),\"\")","v":""}]
[null,null,null,null,"","",{"$f":"IF(E26<>\"\",IF($C$5=0,0,CUMIPMT($C$6/$C$8,$C$7*$C$8,$C$5,1,E26,Pilotage!$D$25)),\"\")","v":""},{"$f":"IF(E26<>\"\",IF($C$5=0,0,CUMIPMT($C$6/$C$8,$C$7*$C$8,$C$5,E26,E26,Pilotage!$D$25)),\"\")","v":""},{"$f":"IF(E26<>\"\",IF($C$5=0,0,$C$5+CUMPRINC($C$6/$C$8,$C$7*$C$8,$C$5,1,E26,Pilotage!$D$25)),\"\")","v":""},null,"","","","",{"$f":"IF(K26<>\"\",-1*CUMIPMT($C$6/$C$8,$C$7*$C$8,$C$5,M26,N26,Pilotage!$D$25),\"\")","v":""}]
[null,null,null,null,"","",{"$f":"IF(E27<>\"\",IF($C$5=0,0,CUMIPMT($C$6/$C$8,$C$7*$C$8,$C$5,1,E27,Pilotage!$D$25)),\"\")","v":""},{"$f":"IF(E27<>\"\",IF($C$5=0,0,CUMIPMT($C$6/$C$8,$C$7*$C$8,$C$5,E27,E27,Pilotage!$D$25)),\"\")","v":""},{"$f":"IF(E27<>\"\",IF($C$5=0,0,$C$5+CUMPRINC($C$6/$C$8,$C$7*$C$8,$C$5,1,E27,Pilotage!$D$25)),\"\")","v":""},null,"","","","",{"$f":"IF(K27<>\"\",-1*CUMIPMT($C$6/$C$8,$C$7*$C$8,$C$5,M27,N27,Pilotage!$D$25),\"\")","v":""}]
[null,null,null,null,"","",{"$f":"IF(E28<>\"\",IF($C$5=0,0,CUMIPMT($C$6/$C$8,$C$7*$C$8,$C$5,1,E28,Pilotage!$D$25)),\"\")","v":""},{"$f":"IF(E28<>\"\",IF($C$5=0,0,CUMIPMT($C$6/$C$8,$C$7*$C$8,$C$5,E28,E28,Pilotage!$D$25)),\"\")","v":""},{"$f":"IF(E28<>\"\",IF($C$5=0,0,$C$5+CUMPRINC($C$6/$C$8,$C$7*$C$8,$C$5,1,E28,Pilotage!$D$25)),\"\")","v":""},null,"","","","",{"$f":"IF(K28<>\"\",-1*CUMIPMT($C$6/$C$8,$C$7*$C$8,$C$5,M28,N28,Pilotage!$D$25),\"\")","v":""}]
[null,null,null,null,"","",{"$f":"IF(E29<>\"\",IF($C$5=0,0,CUMIPMT($C$6/$C$8,$C$7*$C$8,$C$5,1,E29,Pilotage!$D$25)),\"\")","v":""},{"$f":"IF(E29<>\"\",IF($C$5=0,0,CUMIPMT($C$6/$C$8,$C$7*$C$8,$C$5,E29,E29,Pilotage!$D$25)),\"\")","v":""},{"$f":"IF(E29<>\"\",IF($C$5=0,0,$C$5+CUMPRINC($C$6/$C$8,$C$7*$C$8,$C$5,1,E29,Pilotage!$D$25)),\"\")","v":""},null,"","","","",{"$f":"IF(K29<>\"\",-1*CUMIPMT($C$6/$C$8,$C$7*$C$8,$C$5,M29,N29,Pilotage!$D$25),\"\")","v":""}]
[null,null,null,null,"","",{"$f":"IF(E30<>\"\",IF($C$5=0,0,CUMIPMT($C$6/$C$8,$C$7*$C$8,$C$5,1,E30,Pilotage!$D$25)),\"\")","v":""},{"$f":"IF(E30<>\"\",IF($C$5=0,0,CUMIPMT($C$6/$C$8,$C$7*$C$8,$C$5,E30,E30,Pilotage!$D$25)),\"\")","v":""},{"$f":"IF(E30<>\"\",IF($C$5=0,0,$C$5+CUMPRINC($C$6/$C$8,$C$7*$C$8,$C$5,1,E30,Pilotage!$D$25)),\"\")","v":""},null,"","","","",{"$f":"IF(K30<>\"\",-1*CUMIPMT($C$6/$C$8,$C$7*$C$8,$C$5,M30,N30,Pilotage!$D$25),\"\")","v":""}]
[null,null,null,null,"","",{"$f":"IF(E31<>\"\",IF($C$5=0,0,CUMIPMT($C$6/$C$8,$C$7*$C$8,$C$5,1,E31,Pilotage!$D$25)),\"\")","v":""},{"$f":"IF(E31<>\"\",IF($C$5=0,0,CUMIPMT($C$6/$C$8,$C$7*$C$8,$C$5,E31,E31,Pilotage!$D$25)),\"\")","v":""},{"$f":"IF(E31<>\"\",IF($C$5=0,0,$C$5+CUMPRINC($C$6/$C$8,$C$7*$C$8,$C$5,1,E31,Pilotage!$D$25)),\"\")","v":""},null,"","","","",{"$f":"IF(K31<>\"\",-1*CUMIPMT($C$6/$C$8,$C$7*$C$8,$C$5,M31,N31,Pilotage!$D$25),\"\")","v":""}]
[null,null,null,null,"","",{"$f":"IF(E32<>\"\",IF($C$5=0,0,CUMIPMT($C$6/$C$8,$C$7*$C$8,$C$5,1,E32,Pilotage!$D$25)),\"\")","v":""},{"$f":"IF(E32<>\"\",IF($C$5=0,0,CUMIPMT($C$6/$C$8,$C$7*$C$8,$C$5,E32,E32,Pilotage!$D$25)),\"\")","v":""},{"$f":"IF(E32<>\"\",IF($C$5=0,0,$C$5+CUMPRINC($C$6/$C$8,$C$7*$C$8,$C$5,1,E32,Pilotage!$D$25)),\"\")","v":""},null,"","","","",{"$f":"IF(K32<>\"\",-1*CUMIPMT($C$6/$C$8,$C$7*$C$8,$C$5,M32,N32,Pilotage!$D$25),\"\")","v":""}]
[null,null,null,null,"","",{"$f":"IF(E33<>\"\",IF($C$5=0,0,CUMIPMT($C$6/$C$8,$C$7*$C$8,$C$5,1,E33,Pilotage!$D$25)),\"\")","v":""},{"$f":"IF(E33<>\"\",IF($C$5=0,0,CUMIPMT($C$6/$C$8,$C$7*$C$8,$C$5,E33,E33,Pilotage!$D$25)),\"\")","v":""},{"$f":"IF(E33<>\"\",IF($C$5=0,0,$C$5+CUMPRINC($C$6/$C$8,$C$7*$C$8,$C$5,1,E33,Pilotage!$D$25)),\"\")","v":""},null,"","","","",{"$f":"IF(K33<>\"\",-1*CUMIPMT($C$6/$C$8,$C$7*$C$8,$C$5,M33,N33,Pilotage!$D$25),\"\")","v":""}]
[null,null,null,null,"","",{"$f":"IF(E34<>\"\",IF($C$5=0,0,CUMIPMT($C$6/$C$8,$C$7*$C$8,$C$5,1,E34,Pilotage!$D$25)),\"\")","v":""},{"$f":"IF(E34<>\"\",IF($C$5=0,0,CUMIPMT($C$6/$C$8,$C$7*$C$8,$C$5,E34,E34,Pilotage!$D$25)),\"\")","v":""},{"$f":"IF(E34<>\"\",IF($C$5=0,0,$C$5+CUMPRINC($C$6/$C$8,$C$7*$C$8,$C$5,1,E34,Pilotage!$D$25)),\"\")","v":""},null,"","","","",{"$f":"IF(K34<>\"\",-1*CUMIPMT($C$6/$C$8,$C$7*$C$8,$C$5,M34,N34,Pilotage!$D$25),\"\")","v":""}]
[null,null,null,null,"","",{"$f":"IF(E35<>\"\",IF($C$5=0,0,CUMIPMT($C$6/$C$8,$C$7*$C$8,$C$5,1,E35,Pilotage!$D$25)),\"\")","v":""},{"$f":"IF(E35<>\"\",IF($C$5=0,0,CUMIPMT($C$6/$C$8,$C$7*$C$8,$C$5,E35,E35,Pilotage!$D$25)),\"\")","v":""},{"$f":"IF(E35<>\"\",IF($C$5=0,0,$C$5+CUMPRINC($C$6/$C$8,$C$7*$C$8,$C$5,1,E35,Pilotage!$D$25)),\"\")","v":""},null,"","","","",{"$f":"IF(K35<>\"\",-1*CUMIPMT($C$6/$C$8,$C$7*$C$8,$C$5,M35,N35,Pilotage!$D$25),\"\")","v":""}]
[null,null,null,null,"","",{"$f":"IF(E36<>\"\",IF($C$5=0,0,CUMIPMT($C$6/$C$8,$C$7*$C$8,$C$5,1,E36,Pilotage!$D$25)),\"\")","v":""},{"$f":"IF(E36<>\"\",IF($C$5=0,0,CUMIPMT($C$6/$C$8,$C$7*$C$8,$C$5,E36,E36,Pilotage!$D$25)),\"\")","v":""},{"$f":"IF(E36<>\"\",IF($C$5=0,0,$C$5+CUMPRINC($C$6/$C$8,$C$7*$C$8,$C$5,1,E36,Pilotage!$D$25)),\"\")","v":""},null,"","","","",{"$f":"IF(K36<>\"\",-1*CUMIPMT($C$6/$C$8,$C$7*$C$8,$C$5,M36,N36,Pilotage!$D$25),\"\")","v":""}]
[null,null,null,null,"","",{"$f":"IF(E37<>\"\",IF($C$5=0,0,CUMIPMT($C$6/$C$8,$C$7*$C$8,$C$5,1,E37,Pilotage!$D$25)),\"\")","v":""},{"$f":"IF(E37<>\"\",IF($C$5=0,0,CUMIPMT($C$6/$C$8,$C$7*$C$8,$C$5,E37,E37,Pilotage!$D$25)),\"\")","v":""},{"$f":"IF(E37<>\"\",IF($C$5=0,0,$C$5+CUMPRINC($C$6/$C$8,$C$7*$C$8,$C$5,1,E37,Pilotage!$D$25)),\"\")","v":""},null,"","","","",{"$f":"IF(K37<>\"\",-1*CUMIPMT($C$6/$C$8,$C$7*$C$8,$C$5,M37,N37,Pilotage!$D$25),\"\")","v":""}]
[null,null,null,null,"","",{"$f":"IF(E38<>\"\",IF($C$5=0,0,CUMIPMT($C$6/$C$8,$C$7*$C$8,$C$5,1,E38,Pilotage!$D$25)),\"\")","v":""},{"$f":"IF(E38<>\"\",IF($C$5=0,0,CUMIPMT($C$6/$C$8,$C$7*$C$8,$C$5,E38,E38,Pilotage!$D$25)),\"\")","v":""},{"$f":"IF(E38<>\"\",IF($C$5=0,0,$C$5+CUMPRINC($C$6/$C$8,$C$7*$C$8,$C$5,1,E38,Pilotage!$D$25)),\"\")","v":""},null,"","","","",{"$f":"IF(K38<>\"\",-1*CUMIPMT($C$6/$C$8,$C$7*$C$8,$C$5,M38,N38,Pilotage!$D$25),\"\")","v":""}]
[null,null,null,null,"","",{"$f":"IF(E39<>\"\",IF($C$5=0,0,CUMIPMT($C$6/$C$8,$C$7*$C$8,$C$5,1,E39,Pilotage!$D$25)),\"\")","v":""},{"$f":"IF(E39<>\"\",IF($C$5=0,0,CUMIPMT($C$6/$C$8,$C$7*$C$8,$C$5,E39,E39,Pilotage!$D$25)),\"\")","v":""},{"$f":"IF(E39<>\"\",IF($C$5=0,0,$C$5+CUMPRINC($C$6/$C$8,$C$7*$C$8,$C$5,1,E39,Pilotage!$D$25)),\"\")","v":""},null,"","","","",{"$f":"IF(K39<>\"\",-1*CUMIPMT($C$6/$C$8,$C$7*$C$8,$C$5,M39,N39,Pilotage!$D$25),\"\")","v":""}]
[null,null,null,null,"","",{"$f":"IF(E40<>\"\",IF($C$5=0,0,CUMIPMT($C$6/$C$8,$C$7*$C$8,$C$5,1,E40,Pilotage!$D$25)),\"\")","v":""},{"$f":"IF(E40<>\"\",IF($C$5=0,0,CUMIPMT($C$6/$C$8,$C$7*$C$8,$C$5,E40,E40,Pilotage!$D$25)),\"\")","v":""},{"$f":"IF(E40<>\"\",IF($C$5=0,0,$C$5+CUMPRINC($C$6/$C$8,$C$7*$C$8,$C$5,1,E40,Pilotage!$D$25)),\"\")","v":""},null,"","","","",{"$f":"IF(K40<>\"\",-1*CUMIPMT($C$6/$C$8,$C$7*$C$8,$C$5,M40,N40,Pilotage!$D$25),\"\")","v":""}]
[null,null,null,null,"","",{"$f":"IF(E41<>\"\",IF($C$5=0,0,CUMIPMT($C$6/$C$8,$C$7*$C$8,$C$5,1,E41,Pilotage!$D$25)),\"\")","v":""},{"$f":"IF(E41<>\"\",IF($C$5=0,0,CUMIPMT($C$6/$C$8,$C$7*$C$8,$C$5,E41,E41,Pilotage!$D$25)),\"\")","v":""},{"$f":"IF(E41<>\"\",IF($C$5=0,0,$C$5+CUMPRINC($C$6/$C$8,$C$7*$C$8,$C$5,1,E41,Pilotage!$D$25)),\"\")","v":""},null,"","","","",{"$f":"IF(K41<>\"\",-1*CUMIPMT($C$6/$C$8,$C$7*$C$8,$C$5,M41,N41,Pilotage!$D$25),\"\")","v":""}]
[null,null,null,null,"","",{"$f":"IF(E42<>\"\",IF($C$5=0,0,CUMIPMT($C$6/$C$8,$C$7*$C$8,$C$5,1,E42,Pilotage!$D$25)),\"\")","v":""},{"$f":"IF(E42<>\"\",IF($C$5=0,0,CUMIPMT($C$6/$C$8,$C$7*$C$8,$C$5,E42,E42,Pilotage!$D$25)),\"\")","v":""},{"$f":"IF(E42<>\"\",IF($C$5=0,0,$C$5+CUMPRINC($C$6/$C$8,$C$7*$C$8,$C$5,1,E42,Pilotage!$D$25)),\"\")","v":""},null,"","","","",{"$f":"IF(K42<>\"\",-1*CUMIPMT($C$6/$C$8,$C$7*$C$8,$C$5,M42,N42,Pilotage!$D$25),\"\")","v":""}]
[null,null,null,null,"","",{"$f":"IF(E43<>\"\",IF($C$5=0,0,CUMIPMT($C$6/$C$8,$C$7*$C$8,$C$5,1,E43,Pilotage!$D$25)),\"\")","v":""},{"$f":"IF(E43<>\"\",IF($C$5=0,0,CUMIPMT($C$6/$C$8,$C$7*$C$8,$C$5,E43,E43,Pilotage!$D$25)),\"\")","v":""},{"$f":"IF(E43<>\"\",IF($C$5=0,0,$C$5+CUMPRINC($C$6/$C$8,$C$7*$C$8,$C$5,1,E43,Pilotage!$D$25)),\"\")","v":""},null,"","","","",{"$f":"IF(K43<>\"\",-1*CUMIPMT($C$6/$C$8,$C$7*$C$8,$C$5,M43,N43,Pilotage!$D$25),\"\")","v":""}]
[null,null,null,null,"","",{"$f":"IF(E44<>\"\",IF($C$5=0,0,CUMIPMT($C$6/$C$8,$C$7*$C$8,$C$5,1,E44,Pilotage!$D$25)),\"\")","v":""},{"$f":"IF(E44<>\"\",IF($C$5=0,0,CUMIPMT($C$6/$C$8,$C$7*$C$8,$C$5,E44,E44,Pilotage!$D$25)),\"\")","v":""},{"$f":"IF(E44<>\"\",IF($C$5=0,0,$C$5+CUMPRINC($C$6/$C$8,$C$7*$C$8,$C$5,1,E44,Pilotage!$D$25)),\"\")","v":""},null,"","","","",{"$f":"IF(K44<>\"\",-1*CUMIPMT($C$6/$C$8,$C$7*$C$8,$C$5,M44,N44,Pilotage!$D$25),\"\")","v":""}]
[null,null,null,null,"","",{"$f":"IF(E45<>\"\",IF($C$5=0,0,CUMIPMT($C$6/$C$8,$C$7*$C$8,$C$5,1,E45,Pilotage!$D$25)),\"\")","v":""},{"$f":"IF(E45<>\"\",IF($C$5=0,0,CUMIPMT($C$6/$C$8,$C$7*$C$8,$C$5,E45,E45,Pilotage!$D$25)),\"\")","v":""},{"$f":"IF(E45<>\"\",IF($C$5=0,0,$C$5+CUMPRINC($C$6/$C$8,$C$7*$C$8,$C$5,1,E45,Pilotage!$D$25)),\"\")","v":""},null,"","","","",{"$f":"IF(K45<>\"\",-1*CUMIPMT($C$6/$C$8,$C$7*$C$8,$C$5,M45,N45,Pilotage!$D$25),\"\")","v":""}]
[null,null,null,null,"","",{"$f":"IF(E46<>\"\",IF($C$5=0,0,CUMIPMT($C$6/$C$8,$C$7*$C$8,$C$5,1,E46,Pilotage!$D$25)),\"\")","v":""},{"$f":"IF(E46<>\"\",IF($C$5=0,0,CUMIPMT($C$6/$C$8,$C$7*$C$8,$C$5,E46,E46,Pilotage!$D$25)),\"\")","v":""},{"$f":"IF(E46<>\"\",IF($C$5=0,0,$C$5+CUMPRINC($C$6/$C$8,$C$7*$C$8,$C$5,1,E46,Pilotage!$D$25)),\"\")","v":""},null,"","","","",{"$f":"IF(K46<>\"\",-1*CUMIPMT($C$6/$C$8,$C$7*$C$8,$C$5,M46,N46,Pilotage!$D$25),\"\")","v":""}]
[null,null,null,null,"","",{"$f":"IF(E47<>\"\",IF($C$5=0,0,CUMIPMT($C$6/$C$8,$C$7*$C$8,$C$5,1,E47,Pilotage!$D$25)),\"\")","v":""},{"$f":"IF(E47<>\"\",IF($C$5=0,0,CUMIPMT($C$6/$C$8,$C$7*$C$8,$C$5,E47,E47,Pilotage!$D$25)),\"\")","v":""},{"$f":"IF(E47<>\"\",IF($C$5=0,0,$C$5+CUMPRINC($C$6/$C$8,$C$7*$C$8,$C$5,1,E47,Pilotage!$D$25)),\"\")","v":""},null,"","","","",{"$f":"IF(K47<>\"\",-1*CUMIPMT($C$6/$C$8,$C$7*$C$8,$C$5,M47,N47,Pilotage!$D$25),\"\")","v":""}]
[null,null,null,null,"","",{"$f":"IF(E48<>\"\",IF($C$5=0,0,CUMIPMT($C$6/$C$8,$C$7*$C$8,$C$5,1,E48,Pilotage!$D$25)),\"\")","v":""},{"$f":"IF(E48<>\"\",IF($C$5=0,0,CUMIPMT($C$6/$C$8,$C$7*$C$8,$C$5,E48,E48,Pilotage!$D$25)),\"\")","v":""},{"$f":"IF(E48<>\"\",IF($C$5=0,0,$C$5+CUMPRINC($C$6/$C$8,$C$7*$C$8,$C$5,1,E48,Pilotage!$D$25)),\"\")","v":""},null,"","","","",{"$f":"IF(K48<>\"\",-1*CUMIPMT($C$6/$C$8,$C$7*$C$8,$C$5,M48,N48,Pilotage!$D$25),\"\")","v":""}]
[null,null,null,null,"","",{"$f":"IF(E49<>\"\",IF($C$5=0,0,CUMIPMT($C$6/$C$8,$C$7*$C$8,$C$5,1,E49,Pilotage!$D$25)),\"\")","v":""},{"$f":"IF(E49<>\"\",IF($C$5=0,0,CUMIPMT($C$6/$C$8,$C$7*$C$8,$C$5,E49,E49,Pilotage!$D$25)),\"\")","v":""},{"$f":"IF(E49<>\"\",IF($C$5=0,0,$C$5+CUMPRINC($C$6/$C$8,$C$7*$C$8,$C$5,1,E49,Pilotage!$D$25)),\"\")","v":""},null,"","","","",{"$f":"IF(K49<>\"\",-1*CUMIPMT($C$6/$C$8,$C$7*$C$8,$C$5,M49,N49,Pilotage!$D$25),\"\")","v":""}]
[null,null,null,null,"","",{"$f":"IF(E50<>\"\",IF($C$5=0,0,CUMIPMT($C$6/$C$8,$C$7*$C$8,$C$5,1,E50,Pilotage!$D$25)),\"\")","v":""},{"$f":"IF(E50<>\"\",IF($C$5=0,0,CUMIPMT($C$6/$C$8,$C$7*$C$8,$C$5,E50,E50,Pilotage!$D$25)),\"\")","v":""},{"$f":"IF(E50<>\"\",IF($C$5=0,0,$C$5+CUMPRINC($C$6/$C$8,$C$7*$C$8,$C$5,1,E50,Pilotage!$D$25)),\"\")","v":""},null,"","","","",{"$f":"IF(K50<>\"\",-1*CUMIPMT($C$6/$C$8,$C$7*$C$8,$C$5,M50,N50,Pilotage!$D$25),\"\")","v":""}]
[null,null,null,null,"","",{"$f":"IF(E51<>\"\",IF($C$5=0,0,CUMIPMT($C$6/$C$8,$C$7*$C$8,$C$5,1,E51,Pilotage!$D$25)),\"\")","v":""},{"$f":"IF(E51<>\"\",IF($C$5=0,0,CUMIPMT($C$6/$C$8,$C$7*$C$8,$C$5,E51,E51,Pilotage!$D$25)),\"\")","v":""},{"$f":"IF(E51<>\"\",IF($C$5=0,0,$C$5+CUMPRINC($C$6/$C$8,$C$7*$C$8,$C$5,1,E51,Pilotage!$D$25)),\"\")","v":""},null,"","","","",{"$f":"IF(K51<>\"\",-1*CUMIPMT($C$6/$C$8,$C$7*$C$8,$C$5,M51,N51,Pilotage!$D$25),\"\")","v":""}]
[null,null,null,null,"","",{"$f":"IF(E52<>\"\",IF($C$5=0,0,CUMIPMT($C$6/$C$8,$C$7*$C$8,$C$5,1,E52,Pilotage!$D$25)),\"\")","v":""},{"$f":"IF(E52<>\"\",IF($C$5=0,0,CUMIPMT($C$6/$C$8,$C$7*$C$8,$C$5,E52,E52,Pilotage!$D$25)),\"\")","v":""},{"$f":"IF(E52<>\"\",IF($C$5=0,0,$C$5+CUMPRINC($C$6/$C$8,$C$7*$C$8,$C$5,1,E52,Pilotage!$D$25)),\"\")","v":""},null,"","","","",{"$f":"IF(K52<>\"\",-1*CUMIPMT($C$6/$C$8,$C$7*$C$8,$C$5,M52,N52,Pilotage!$D$25),\"\")","v":""}]
[null,null,null,null,"","",{"$f":"IF(E53<>\"\",IF($C$5=0,0,CUMIPMT($C$6/$C$8,$C$7*$C$8,$C$5,1,E53,Pilotage!$D$25)),\"\")","v":""},{"$f":"IF(E53<>\"\",IF($C$5=0,0,CUMIPMT($C$6/$C$8,$C$7*$C$8,$C$5,E53,E53,Pilotage!$D$25)),\"\")","v":""},{"$f":"IF(E53<>\"\",IF($C$5=0,0,$C$5+CUMPRINC($C$6/$C$8,$C$7*$C$8,$C$5,1,E53,Pilotage!$D$25)),\"\")","v":""},null,"","","","",{"$f":"IF(K53<>\"\",-1*CUMIPMT($C$6/$C$8,$C$7*$C$8,$C$5,M53,N53,Pilotage!$D$25),\"\")","v":""}]
[null,null,null,null,"","",{"$f":"IF(E54<>\"\",IF($C$5=0,0,CUMIPMT($C$6/$C$8,$C$7*$C$8,$C$5,1,E54,Pilotage!$D$25)),\"\")","v":""},{"$f":"IF(E54<>\"\",IF($C$5=0,0,CUMIPMT($C$6/$C$8,$C$7*$C$8,$C$5,E54,E54,Pilotage!$D$25)),\"\")","v":""},{"$f":"IF(E54<>\"\",IF($C$5=0,0,$C$5+CUMPRINC($C$6/$C$8,$C$7*$C$8,$C$5,1,E54,Pilotage!$D$25)),\"\")","v":""},null,"","","","",{"$f":"IF(K54<>\"\",-1*CUMIPMT($C$6/$C$8,$C$7*$C$8,$C$5,M54,N54,Pilotage!$D$25),\"\")","v":""}]
[null,null,null,null,"","",{"$f":"IF(E55<>\"\",IF($C$5=0,0,CUMIPMT($C$6/$C$8,$C$7*$C$8,$C$5,1,E55,Pilotage!$D$25)),\"\")","v":""},{"$f":"IF(E55<>\"\",IF($C$5=0,0,CUMIPMT($C$6/$C$8,$C$7*$C$8,$C$5,E55,E55,Pilotage!$D$25)),\"\")","v":""},{"$f":"IF(E55<>\"\",IF($C$5=0,0,$C$5+CUMPRINC($C$6/$C$8,$C$7*$C$8,$C$5,1,E55,Pilotage!$D$25)),\"\")","v":""},null,"","","","",{"$f":"IF(K55<>\"\",-1*CUMIPMT($C$6/$C$8,$C$7*$C$8,$C$5,M55,N55,Pilotage!$D$25),\"\")","v":""}]
[null,null,null,null,"","",{"$f":"IF(E56<>\"\",IF($C$5=0,0,CUMIPMT($C$6/$C$8,$C$7*$C$8,$C$5,1,E56,Pilotage!$D$25)),\"\")","v":""},{"$f":"IF(E56<>\"\",IF($C$5=0,0,CUMIPMT($C$6/$C$8,$C$7*$C$8,$C$5,E56,E56,Pilotage!$D$25)),\"\")","v":""},{"$f":"IF(E56<>\"\",IF($C$5=0,0,$C$5+CUMPRINC($C$6/$C$8,$C$7*$C$8,$C$5,1,E56,Pilotage!$D$25)),\"\")","v":""},null,"","","","",{"$f":"IF(K56<>\"\",-1*CUMIPMT($C$6/$C$8,$C$7*$C$8,$C$5,M56,N56,Pilotage!$D$25),\"\")","v":""}]
[null,null,null,null,"","",{"$f":"IF(E57<>\"\",IF($C$5=0,0,CUMIPMT($C$6/$C$8,$C$7*$C$8,$C$5,1,E57,Pilotage!$D$25)),\"\")","v":""},{"$f":"IF(E57<>\"\",IF($C$5=0,0,CUMIPMT($C$6/$C$8,$C$7*$C$8,$C$5,E57,E57,Pilotage!$D$25)),\"\")","v":""},{"$f":"IF(E57<>\"\",IF($C$5=0,0,$C$5+CUMPRINC($C$6/$C$8,$C$7*$C$8,$C$5,1,E57,Pilotage!$D$25)),\"\")","v":""},null,"","","","",{"$f":"IF(K57<>\"\",-1*CUMIPMT($C$6/$C$8,$C$7*$C$8,$C$5,M57,N57,Pilotage!$D$25),\"\")","v":""}]
[null,null,null,null,"","",{"$f":"IF(E58<>\"\",IF($C$5=0,0,CUMIPMT($C$6/$C$8,$C$7*$C$8,$C$5,1,E58,Pilotage!$D$25)),\"\")","v":""},{"$f":"IF(E58<>\"\",IF($C$5=0,0,CUMIPMT($C$6/$C$8,$C$7*$C$8,$C$5,E58,E58,Pilotage!$D$25)),\"\")","v":""},{"$f":"IF(E58<>\"\",IF($C$5=0,0,$C$5+CUMPRINC($C$6/$C$8,$C$7*$C$8,$C$5,1,E58,Pilotage!$D$25)),\"\")","v":""},null,"","","","",{"$f":"IF(K58<>\"\",-1*CUMIPMT($C$6/$C$8,$C$7*$C$8,$C$5,M58,N58,Pilotage!$D$25),\"\")","v":""}]
[null,null,null,null,"","",{"$f":"IF(E59<>\"\",IF($C$5=0,0,CUMIPMT($C$6/$C$8,$C$7*$C$8,$C$5,1,E59,Pilotage!$D$25)),\"\")","v":""},{"$f":"IF(E59<>\"\",IF($C$5=0,0,CUMIPMT($C$6/$C$8,$C$7*$C$8,$C$5,E59,E59,Pilotage!$D$25)),\"\")","v":""},{"$f":"IF(E59<>\"\",IF($C$5=0,0,$C$5+CUMPRINC($C$6/$C$8,$C$7*$C$8,$C$5,1,E59,Pilotage!$D$25)),\"\")","v":""},null,"","","","",{"$f":"IF(K59<>\"\",-1*CUMIPMT($C$6/$C$8,$C$7*$C$8,$C$5,M59,N59,Pilotage!$D$25),\"\")","v":""}]
[null,null,null,null,"","",{"$f":"IF(E60<>\"\",IF($C$5=0,0,CUMIPMT($C$6/$C$8,$C$7*$C$8,$C$5,1,E60,Pilotage!$D$25)),\"\")","v":""},{"$f":"IF(E60<>\"\",IF($C$5=0,0,CUMIPMT($C$6/$C$8,$C$7*$C$8,$C$5,E60,E60,Pilotage!$D$25)),\"\")","v":""},{"$f":"IF(E60<>\"\",IF($C$5=0,0,$C$5+CUMPRINC($C$6/$C$8,$C$7*$C$8,$C$5,1,E60,Pilotage!$D$25)),\"\")","v":""},null,null,null,null,{"$f":"IF(K60<>\"\",K60*$C$8,\"\")","v":""},{"$f":"IF(K60<>\"\",-1*CUMIPMT($C$6/$C$8,$C$7*$C$8,$C$5,M60,N60,Pilotage!$D$25),\"\")","v":""}]
[null,null,null,null,"","",{"$f":"IF(E61<>\"\",IF($C$5=0,0,CUMIPMT($C$6/$C$8,$C$7*$C$8,$C$5,1,E61,Pilotage!$D$25)),\"\")","v":""},{"$f":"IF(E61<>\"\",IF($C$5=0,0,CUMIPMT($C$6/$C$8,$C$7*$C$8,$C$5,E61,E61,Pilotage!$D$25)),\"\")","v":""},{"$f":"IF(E61<>\"\",IF($C$5=0,0,$C$5+CUMPRINC($C$6/$C$8,$C$7*$C$8,$C$5,1,E61,Pilotage!$D$25)),\"\")","v":""},null,null,null,null,{"$f":"IF(K61<>\"\",K61*$C$8,\"\")","v":""},{"$f":"IF(K61<>\"\",-1*CUMIPMT($C$6/$C$8,$C$7*$C$8,$C$5,M61,N61,Pilotage!$D$25),\"\")","v":""}]
[null,null,null,null,"","",{"$f":"IF(E62<>\"\",IF($C$5=0,0,CUMIPMT($C$6/$C$8,$C$7*$C$8,$C$5,1,E62,Pilotage!$D$25)),\"\")","v":""},{"$f":"IF(E62<>\"\",IF($C$5=0,0,CUMIPMT($C$6/$C$8,$C$7*$C$8,$C$5,E62,E62,Pilotage!$D$25)),\"\")","v":""},{"$f":"IF(E62<>\"\",IF($C$5=0,0,$C$5+CUMPRINC($C$6/$C$8,$C$7*$C$8,$C$5,1,E62,Pilotage!$D$25)),\"\")","v":""},null,null,null,null,{"$f":"IF(K62<>\"\",K62*$C$8,\"\")","v":""},{"$f":"IF(K62<>\"\",-1*CUMIPMT($C$6/$C$8,$C$7*$C$8,$C$5,M62,N62,Pilotage!$D$25),\"\")","v":""}]
[null,null,null,null,"","",{"$f":"IF(E63<>\"\",IF($C$5=0,0,CUMIPMT($C$6/$C$8,$C$7*$C$8,$C$5,1,E63,Pilotage!$D$25)),\"\")","v":""},{"$f":"IF(E63<>\"\",IF($C$5=0,0,CUMIPMT($C$6/$C$8,$C$7*$C$8,$C$5,E63,E63,Pilotage!$D$25)),\"\")","v":""},{"$f":"IF(E63<>\"\",IF($C$5=0,0,$C$5+CUMPRINC($C$6/$C$8,$C$7*$C$8,$C$5,1,E63,Pilotage!$D$25)),\"\")","v":""},null,null,null,null,null,{"$f":"IF(K63<>\"\",-1*CUMIPMT($C$6/$C$8,$C$7*$C$8,$C$5,M63,N63,Pilotage!$D$25),\"\")","v":""}]
[null,null,null,null,"","",{"$f":"IF(E64<>\"\",IF($C$5=0,0,CUMIPMT($C$6/$C$8,$C$7*$C$8,$C$5,1,E64,Pilotage!$D$25)),\"\")","v":""},{"$f":"IF(E64<>\"\",IF($C$5=0,0,CUMIPMT($C$6/$C$8,$C$7*$C$8,$C$5,E64,E64,Pilotage!$D$25)),\"\")","v":""},{"$f":"IF(E64<>\"\",IF($C$5=0,0,$C$5+CUMPRINC($C$6/$C$8,$C$7*$C$8,$C$5,1,E64,Pilotage!$D$25)),\"\")","v":""},null,null,null,null,null,{"$f":"IF(K64<>\"\",-1*CUMIPMT($C$6/$C$8,$C$7*$C$8,$C$5,M64,N64,Pilotage!$D$25),\"\")","v":""}]
[null,null,null,null,"","",{"$f":"IF(E65<>\"\",IF($C$5=0,0,CUMIPMT($C$6/$C$8,$C$7*$C$8,$C$5,1,E65,Pilotage!$D$25)),\"\")","v":""},{"$f":"IF(E65<>\"\",IF($C$5=0,0,CUMIPMT($C$6/$C$8,$C$7*$C$8,$C$5,E65,E65,Pilotage!$D$25)),\"\")","v":""},{"$f":"IF(E65<>\"\",IF($C$5=0,0,$C$5+CUMPRINC($C$6/$C$8,$C$7*$C$8,$C$5,1,E65,Pilotage!$D$25)),\"\")","v":""},null,null,null,null,null,{"$f":"IF(K65<>\"\",-1*CUMIPMT($C$6/$C$8,$C$7*$C$8,$C$5,M65,N65,Pilotage!$D$25),\"\")","v":""}]
[null,null,null,null,"","",{"$f":"IF(E66<>\"\",IF($C$5=0,0,CUMIPMT($C$6/$C$8,$C$7*$C$8,$C$5,1,E66,Pilotage!$D$25)),\"\")","v":""},{"$f":"IF(E66<>\"\",IF($C$5=0,0,CUMIPMT($C$6/$C$8,$C$7*$C$8,$C$5,E66,E66,Pilotage!$D$25)),\"\")","v":""},{"$f":"IF(E66<>\"\",IF($C$5=0,0,$C$5+CUMPRINC($C$6/$C$8,$C$7*$C$8,$C$5,1,E66,Pilotage!$D$25)),\"\")","v":""},null,null,null,null,null,{"$f":"IF(K66<>\"\",-1*CUMIPMT($C$6/$C$8,$C$7*$C$8,$C$5,M66,N66,Pilotage!$D$25),\"\")","v":""}]
[null,null,null,null,"","",{"$f":"IF(E67<>\"\",IF($C$5=0,0,CUMIPMT($C$6/$C$8,$C$7*$C$8,$C$5,1,E67,Pilotage!$D$25)),\"\")","v":""},{"$f":"IF(E67<>\"\",IF($C$5=0,0,CUMIPMT($C$6/$C$8,$C$7*$C$8,$C$5,E67,E67,Pilotage!$D$25)),\"\")","v":""},{"$f":"IF(E67<>\"\",IF($C$5=0,0,$C$5+CUMPRINC($C$6/$C$8,$C$7*$C$8,$C$5,1,E67,Pilotage!$D$25)),\"\")","v":""},null,null,null,null,null,{"$f":"IF(K67<>\"\",-1*CUMIPMT($C$6/$C$8,$C$7*$C$8,$C$5,M67,N67,Pilotage!$D$25),\"\")","v":""}]
[null,null,null,null,"","",{"$f":"IF(E68<>\"\",IF($C$5=0,0,CUMIPMT($C$6/$C$8,$C$7*$C$8,$C$5,1,E68,Pilotage!$D$25)),\"\")","v":""},{"$f":"IF(E68<>\"\",IF($C$5=0,0,CUMIPMT($C$6/$C$8,$C$7*$C$8,$C$5,E68,E68,Pilotage!$D$25)),\"\")","v":""},{"$f":"IF(E68<>\"\",IF($C$5=0,0,$C$5+CUMPRINC($C$6/$C$8,$C$7*$C$8,$C$5,1,E68,Pilotage!$D$25)),\"\")","v":""},null,null,null,null,null,{"$f":"IF(K68<>\"\",-1*CUMIPMT($C$6/$C$8,$C$7*$C$8,$C$5,M68,N68,Pilotage!$D$25),\"\")","v":""}]
[null,null,null,null,"","",{"$f":"IF(E69<>\"\",IF($C$5=0,0,CUMIPMT($C$6/$C$8,$C$7*$C$8,$C$5,1,E69,Pilotage!$D$25)),\"\")","v":""},{"$f":"IF(E69<>\"\",IF($C$5=0,0,CUMIPMT($C$6/$C$8,$C$7*$C$8,$C$5,E69,E69,Pilotage!$D$25)),\"\")","v":""},{"$f":"IF(E69<>\"\",IF($C$5=0,0,$C$5+CUMPRINC($C$6/$C$8,$C$7*$C$8,$C$5,1,E69,Pilotage!$D$25)),\"\")","v":""},null,null,null,null,null,{"$f":"IF(K69<>\"\",-1*CUMIPMT($C$6/$C$8,$C$7*$C$8,$C$5,M69,N69,Pilotage!$D$25),\"\")","v":""}]
[null,null,null,null,"","",{"$f":"IF(E70<>\"\",IF($C$5=0,0,CUMIPMT($C$6/$C$8,$C$7*$C$8,$C$5,1,E70,Pilotage!$D$25)),\"\")","v":""},{"$f":"IF(E70<>\"\",IF($C$5=0,0,CUMIPMT($C$6/$C$8,$C$7*$C$8,$C$5,E70,E70,Pilotage!$D$25)),\"\")","v":""},{"$f":"IF(E70<>\"\",IF($C$5=0,0,$C$5+CUMPRINC($C$6/$C$8,$C$7*$C$8,$C$5,1,E70,Pilotage!$D$25)),\"\")","v":""},null,null,null,null,null,{"$f":"IF(K70<>\"\",-1*CUMIPMT($C$6/$C$8,$C$7*$C$8,$C$5,M70,N70,Pilotage!$D$25),\"\")","v":""}]
[null,null,null,null,"","",{"$f":"IF(E71<>\"\",IF($C$5=0,0,CUMIPMT($C$6/$C$8,$C$7*$C$8,$C$5,1,E71,Pilotage!$D$25)),\"\")","v":""},{"$f":"IF(E71<>\"\",IF($C$5=0,0,CUMIPMT($C$6/$C$8,$C$7*$C$8,$C$5,E71,E71,Pilotage!$D$25)),\"\")","v":""},{"$f":"IF(E71<>\"\",IF($C$5=0,0,$C$5+CUMPRINC($C$6/$C$8,$C$7*$C$8,$C$5,1,E71,Pilotage!$D$25)),\"\")","v":""},null,null,null,null,null,{"$f":"IF(K71<>\"\",-1*CUMIPMT($C$6/$C$8,$C$7*$C$8,$C$5,M71,N71,Pilotage!$D$25),\"\")","v":""}]
[null,null,null,null,{"$f":"IF(E71<$C$10,E71+1,\"\")","v":""},{"$f":"IF(E72<>\"\",EDATE(F71,$C$11),\"\")","v":""},{"$f":"IF(E72<>\"\",IF($C$5=0,0,CUMIPMT($C$6/$C$8,$C$7*$C$8,$C$5,1,E72,Pilotage!$D$25)),\"\")","v":""},{"$f":"IF(E72<>\"\",IF($C$5=0,0,CUMIPMT($C$6/$C$8,$C$7*$C$8,$C$5,E72,E72,Pilotage!$D$25)),\"\")","v":""},{"$f":"IF(E72<>\"\",IF($C$5=0,0,$C$5+CUMPRINC($C$6/$C$8,$C$7*$C$8,$C$5,1,E72,Pilotage!$D$25)),\"\")","v":""},null,null,null,null,null,{"$f":"IF(K72<>\"\",-1*CUMIPMT($C$6/$C$8,$C$7*$C$8,$C$5,M72,N72,Pilotage!$D$25),\"\")","v":""}]
[null,null,null,null,"","",{"$f":"IF(E73<>\"\",IF($C$5=0,0,CUMIPMT($C$6/$C$8,$C$7*$C$8,$C$5,1,E73,Pilotage!$D$25)),\"\")","v":""},{"$f":"IF(E73<>\"\",IF($C$5=0,0,CUMIPMT($C$6/$C$8,$C$7*$C$8,$C$5,E73,E73,Pilotage!$D$25)),\"\")","v":""},{"$f":"IF(E73<>\"\",IF($C$5=0,0,$C$5+CUMPRINC($C$6/$C$8,$C$7*$C$8,$C$5,1,E73,Pilotage!$D$25)),\"\")","v":""},null,null,null,null,null,{"$f":"IF(K73<>\"\",-1*CUMIPMT($C$6/$C$8,$C$7*$C$8,$C$5,M73,N73,Pilotage!$D$25),\"\")","v":""}]
[null,null,null,null,"","",{"$f":"IF(E74<>\"\",IF($C$5=0,0,CUMIPMT($C$6/$C$8,$C$7*$C$8,$C$5,1,E74,Pilotage!$D$25)),\"\")","v":""},{"$f":"IF(E74<>\"\",IF($C$5=0,0,CUMIPMT($C$6/$C$8,$C$7*$C$8,$C$5,E74,E74,Pilotage!$D$25)),\"\")","v":""},{"$f":"IF(E74<>\"\",IF($C$5=0,0,$C$5+CUMPRINC($C$6/$C$8,$C$7*$C$8,$C$5,1,E74,Pilotage!$D$25)),\"\")","v":""},null,null,null,null,null,{"$f":"IF(K74<>\"\",-1*CUMIPMT($C$6/$C$8,$C$7*$C$8,$C$5,M74,N74,Pilotage!$D$25),\"\")","v":""}]
[null,null,null,null,"","",{"$f":"IF(E75<>\"\",IF($C$5=0,0,CUMIPMT($C$6/$C$8,$C$7*$C$8,$C$5,1,E75,Pilotage!$D$25)),\"\")","v":""},{"$f":"IF(E75<>\"\",IF($C$5=0,0,CUMIPMT($C$6/$C$8,$C$7*$C$8,$C$5,E75,E75,Pilotage!$D$25)),\"\")","v":""},{"$f":"IF(E75<>\"\",IF($C$5=0,0,$C$5+CUMPRINC($C$6/$C$8,$C$7*$C$8,$C$5,1,E75,Pilotage!$D$25)),\"\")","v":""},null,null,null,null,null,{"$f":"IF(K75<>\"\",-1*CUMIPMT($C$6/$C$8,$C$7*$C$8,$C$5,M75,N75,Pilotage!$D$25),\"\")","v":""}]
[null,null,null,null,"","",{"$f":"IF(E76<>\"\",IF($C$5=0,0,CUMIPMT($C$6/$C$8,$C$7*$C$8,$C$5,1,E76,Pilotage!$D$25)),\"\")","v":""},{"$f":"IF(E76<>\"\",IF($C$5=0,0,CUMIPMT($C$6/$C$8,$C$7*$C$8,$C$5,E76,E76,Pilotage!$D$25)),\"\")","v":""},{"$f":"IF(E76<>\"\",IF($C$5=0,0,$C$5+CUMPRINC($C$6/$C$8,$C$7*$C$8,$C$5,1,E76,Pilotage!$D$25)),\"\")","v":""},null,null,null,null,null,{"$f":"IF(K76<>\"\",-1*CUMIPMT($C$6/$C$8,$C$7*$C$8,$C$5,M76,N76,Pilotage!$D$25),\"\")","v":""}]
[null,null,null,null,"","",{"$f":"IF(E77<>\"\",IF($C$5=0,0,CUMIPMT($C$6/$C$8,$C$7*$C$8,$C$5,1,E77,Pilotage!$D$25)),\"\")","v":""},{"$f":"IF(E77<>\"\",IF($C$5=0,0,CUMIPMT($C$6/$C$8,$C$7*$C$8,$C$5,E77,E77,Pilotage!$D$25)),\"\")","v":""},{"$f":"IF(E77<>\"\",IF($C$5=0,0,$C$5+CUMPRINC($C$6/$C$8,$C$7*$C$8,$C$5,1,E77,Pilotage!$D$25)),\"\")","v":""},null,null,null,null,null,{"$f":"IF(K77<>\"\",-1*CUMIPMT($C$6/$C$8,$C$7*$C$8,$C$5,M77,N77,Pilotage!$D$25),\"\")","v":""}]
[null,null,null,null,"","",{"$f":"IF(E78<>\"\",IF($C$5=0,0,CUMIPMT($C$6/$C$8,$C$7*$C$8,$C$5,1,E78,Pilotage!$D$25)),\"\")","v":""},{"$f":"IF(E78<>\"\",IF($C$5=0,0,CUMIPMT($C$6/$C$8,$C$7*$C$8,$C$5,E78,E78,Pilotage!$D$25)),\"\")","v":""},{"$f":"IF(E78<>\"\",IF($C$5=0,0,$C$5+CUMPRINC($C$6/$C$8,$C$7*$C$8,$C$5,1,E78,Pilotage!$D$25)),\"\")","v":""},null,null,null,null,null,{"$f":"IF(K78<>\"\",-1*CUMIPMT($C$6/$C$8,$C$7*$C$8,$C$5,M78,N78,Pilotage!$D$25),\"\")","v":""}]
[null,null,null,null,"","",{"$f":"IF(E79<>\"\",IF($C$5=0,0,CUMIPMT($C$6/$C$8,$C$7*$C$8,$C$5,1,E79,Pilotage!$D$25)),\"\")","v":""},{"$f":"IF(E79<>\"\",IF($C$5=0,0,CUMIPMT($C$6/$C$8,$C$7*$C$8,$C$5,E79,E79,Pilotage!$D$25)),\"\")","v":""},{"$f":"IF(E79<>\"\",IF($C$5=0,0,$C$5+CUMPRINC($C$6/$C$8,$C$7*$C$8,$C$5,1,E79,Pilotage!$D$25)),\"\")","v":""},null,null,null,null,null,{"$f":"IF(K79<>\"\",-1*CUMIPMT($C$6/$C$8,$C$7*$C$8,$C$5,M79,N79,Pilotage!$D$25),\"\")","v":""}]
[null,null,null,null,"","",{"$f":"IF(E80<>\"\",IF($C$5=0,0,CUMIPMT($C$6/$C$8,$C$7*$C$8,$C$5,1,E80,Pilotage!$D$25)),\"\")","v":""},{"$f":"IF(E80<>\"\",IF($C$5=0,0,CUMIPMT($C$6/$C$8,$C$7*$C$8,$C$5,E80,E80,Pilotage!$D$25)),\"\")","v":""},{"$f":"IF(E80<>\"\",IF($C$5=0,0,$C$5+CUMPRINC($C$6/$C$8,$C$7*$C$8,$C$5,1,E80,Pilotage!$D$25)),\"\")","v":""},null,null,null,null,null,{"$f":"IF(K80<>\"\",-1*CUMIPMT($C$6/$C$8,$C$7*$C$8,$C$5,M80,N80,Pilotage!$D$25),\"\")","v":""}]
[null,null,null,null,"","",{"$f":"IF(E81<>\"\",IF($C$5=0,0,CUMIPMT($C$6/$C$8,$C$7*$C$8,$C$5,1,E81,Pilotage!$D$25)),\"\")","v":""},{"$f":"IF(E81<>\"\",IF($C$5=0,0,CUMIPMT($C$6/$C$8,$C$7*$C$8,$C$5,E81,E81,Pilotage!$D$25)),\"\")","v":""},{"$f":"IF(E81<>\"\",IF($C$5=0,0,$C$5+CUMPRINC($C$6/$C$8,$C$7*$C$8,$C$5,1,E81,Pilotage!$D$25)),\"\")","v":""},null,null,null,null,null,{"$f":"IF(K81<>\"\",-1*CUMIPMT($C$6/$C$8,$C$7*$C$8,$C$5,M81,N81,Pilotage!$D$25),\"\")","v":""}]
[null,null,null,null,"","",{"$f":"IF(E82<>\"\",IF($C$5=0,0,CUMIPMT($C$6/$C$8,$C$7*$C$8,$C$5,1,E82,Pilotage!$D$25)),\"\")","v":""},{"$f":"IF(E82<>\"\",IF($C$5=0,0,CUMIPMT($C$6/$C$8,$C$7*$C$8,$C$5,E82,E82,Pilotage!$D$25)),\"\")","v":""},{"$f":"IF(E82<>\"\",IF($C$5=0,0,$C$5+CUMPRINC($C$6/$C$8,$C$7*$C$8,$C$5,1,E82,Pilotage!$D$25)),\"\")","v":""},null,null,null,null,null,{"$f":"IF(K82<>\"\",-1*CUMIPMT($C$6/$C$8,$C$7*$C$8,$C$5,M82,N82,Pilotage!$D$25),\"\")","v":""}]
[null,null,null,null,"","",{"$f":"IF(E83<>\"\",IF($C$5=0,0,CUMIPMT($C$6/$C$8,$C$7*$C$8,$C$5,1,E83,Pilotage!$D$25)),\"\")","v":""},{"$f":"IF(E83<>\"\",IF($C$5=0,0,CUMIPMT($C$6/$C$8,$C$7*$C$8,$C$5,E83,E83,Pilotage!$D$25)),\"\")","v":""},{"$f":"IF(E83<>\"\",IF($C$5=0,0,$C$5+CUMPRINC($C$6/$C$8,$C$7*$C$8,$C$5,1,E83,Pilotage!$D$25)),\"\")","v":""},null,null,null,null,null,{"$f":"IF(K83<>\"\",-1*CUMIPMT($C$6/$C$8,$C$7*$C$8,$C$5,M83,N83,Pilotage!$D$25),\"\")","v":""}]
[null,null,null,null,"","",{"$f":"IF(E84<>\"\",IF($C$5=0,0,CUMIPMT($C$6/$C$8,$C$7*$C$8,$C$5,1,E84,Pilotage!$D$25)),\"\")","v":""},{"$f":"IF(E84<>\"\",IF($C$5=0,0,CUMIPMT($C$6/$C$8,$C$7*$C$8,$C$5,E84,E84,Pilotage!$D$25)),\"\")","v":""},{"$f":"IF(E84<>\"\",IF($C$5=0,0,$C$5+CUMPRINC($C$6/$C$8,$C$7*$C$8,$C$5,1,E84,Pilotage!$D$25)),\"\")","v":""},null,null,null,null,null,{"$f":"IF(K84<>\"\",-1*CUMIPMT($C$6/$C$8,$C$7*$C$8,$C$5,M84,N84,Pilotage!$D$25),\"\")","v":""}]
[null,null,null,null,"","",{"$f":"IF(E85<>\"\",IF($C$5=0,0,CUMIPMT($C$6/$C$8,$C$7*$C$8,$C$5,1,E85,Pilotage!$D$25)),\"\")","v":""},{"$f":"IF(E85<>\"\",IF($C$5=0,0,CUMIPMT($C$6/$C$8,$C$7*$C$8,$C$5,E85,E85,Pilotage!$D$25)),\"\")","v":""},{"$f":"IF(E85<>\"\",IF($C$5=0,0,$C$5+CUMPRINC($C$6/$C$8,$C$7*$C$8,$C$5,1,E85,Pilotage!$D$25)),\"\")","v":""},null,null,null,null,null,{"$f":"IF(K85<>\"\",-1*CUMIPMT($C$6/$C$8,$C$7*$C$8,$C$5,M85,N85,Pilotage!$D$25),\"\")","v":""}]
[null,null,null,null,"","",{"$f":"IF(E86<>\"\",IF($C$5=0,0,CUMIPMT($C$6/$C$8,$C$7*$C$8,$C$5,1,E86,Pilotage!$D$25)),\"\")","v":""},{"$f":"IF(E86<>\"\",IF($C$5=0,0,CUMIPMT($C$6/$C$8,$C$7*$C$8,$C$5,E86,E86,Pilotage!$D$25)),\"\")","v":""},{"$f":"IF(E86<>\"\",IF($C$5=0,0,$C$5+CUMPRINC($C$6/$C$8,$C$7*$C$8,$C$5,1,E86,Pilotage!$D$25)),\"\")","v":""},null,null,null,null,null,{"$f":"IF(K86<>\"\",-1*CUMIPMT($C$6/$C$8,$C$7*$C$8,$C$5,M86,N86,Pilotage!$D$25),\"\")","v":""}]
[null,null,null,null,"","",{"$f":"IF(E87<>\"\",IF($C$5=0,0,CUMIPMT($C$6/$C$8,$C$7*$C$8,$C$5,1,E87,Pilotage!$D$25)),\"\")","v":""},{"$f":"IF(E87<>\"\",IF($C$5=0,0,CUMIPMT($C$6/$C$8,$C$7*$C$8,$C$5,E87,E87,Pilotage!$D$25)),\"\")","v":""},{"$f":"IF(E87<>\"\",IF($C$5=0,0,$C$5+CUMPRINC($C$6/$C$8,$C$7*$C$8,$C$5,1,E87,Pilotage!$D$25)),\"\")","v":""},null,null,null,null,null,{"$f":"IF(K87<>\"\",-1*CUMIPMT($C$6/$C$8,$C$7*$C$8,$C$5,M87,N87,Pilotage!$D$25),\"\")","v":""}]
[null,null,null,null,"","",{"$f":"IF(E88<>\"\",IF($C$5=0,0,CUMIPMT($C$6/$C$8,$C$7*$C$8,$C$5,1,E88,Pilotage!$D$25)),\"\")","v":""},{"$f":"IF(E88<>\"\",IF($C$5=0,0,CUMIPMT($C$6/$C$8,$C$7*$C$8,$C$5,E88,E88,Pilotage!$D$25)),\"\")","v":""},{"$f":"IF(E88<>\"\",IF($C$5=0,0,$C$5+CUMPRINC($C$6/$C$8,$C$7*$C$8,$C$5,1,E88,Pilotage!$D$25)),\"\")","v":""},null,null,null,null,null,{"$f":"IF(K88<>\"\",-1*CUMIPMT($C$6/$C$8,$C$7*$C$8,$C$5,M88,N88,Pilotage!$D$25),\"\")","v":""}]
[null,null,null,null,"","",{"$f":"IF(E89<>\"\",IF($C$5=0,0,CUMIPMT($C$6/$C$8,$C$7*$C$8,$C$5,1,E89,Pilotage!$D$25)),\"\")","v":""},{"$f":"IF(E89<>\"\",IF($C$5=0,0,CUMIPMT($C$6/$C$8,$C$7*$C$8,$C$5,E89,E89,Pilotage!$D$25)),\"\")","v":""},{"$f":"IF(E89<>\"\",IF($C$5=0,0,$C$5+CUMPRINC($C$6/$C$8,$C$7*$C$8,$C$5,1,E89,Pilotage!$D$25)),\"\")","v":""},null,null,null,null,null,{"$f":"IF(K89<>\"\",-1*CUMIPMT($C$6/$C$8,$C$7*$C$8,$C$5,M89,N89,Pilotage!$D$25),\"\")","v":""}]
[null,null,null,null,"","",{"$f":"IF(E90<>\"\",IF($C$5=0,0,CUMIPMT($C$6/$C$8,$C$7*$C$8,$C$5,1,E90,Pilotage!$D$25)),\"\")","v":""},{"$f":"IF(E90<>\"\",IF($C$5=0,0,CUMIPMT($C$6/$C$8,$C$7*$C$8,$C$5,E90,E90,Pilotage!$D$25)),\"\")","v":""},{"$f":"IF(E90<>\"\",IF($C$5=0,0,$C$5+CUMPRINC($C$6/$C$8,$C$7*$C$8,$C$5,1,E90,Pilotage!$D$25)),\"\")","v":""},null,null,null,null,null,{"$f":"IF(K90<>\"\",-1*CUMIPMT($C$6/$C$8,$C$7*$C$8,$C$5,M90,N90,Pilotage!$D$25),\"\")","v":""}]
[null,null,null,null,"","",{"$f":"IF(E91<>\"\",IF($C$5=0,0,CUMIPMT($C$6/$C$8,$C$7*$C$8,$C$5,1,E91,Pilotage!$D$25)),\"\")","v":""},{"$f":"IF(E91<>\"\",IF($C$5=0,0,CUMIPMT($C$6/$C$8,$C$7*$C$8,$C$5,E91,E91,Pilotage!$D$25)),\"\")","v":""},{"$f":"IF(E91<>\"\",IF($C$5=0,0,$C$5+CUMPRINC($C$6/$C$8,$C$7*$C$8,$C$5,1,E91,Pilotage!$D$25)),\"\")","v":""},null,null,null,null,null,{"$f":"IF(K91<>\"\",-1*CUMIPMT($C$6/$C$8,$C$7*$C$8,$C$5,M91,N91,Pilotage!$D$25),\"\")","v":""}]
[null,null,null,null,"","",{"$f":"IF(E92<>\"\",IF($C$5=0,0,CUMIPMT($C$6/$C$8,$C$7*$C$8,$C$5,1,E92,Pilotage!$D$25)),\"\")","v":""},{"$f":"IF(E92<>\"\",IF($C$5=0,0,CUMIPMT($C$6/$C$8,$C$7*$C$8,$C$5,E92,E92,Pilotage!$D$25)),\"\")","v":""},{"$f":"IF(E92<>\"\",IF($C$5=0,0,$C$5+CUMPRINC($C$6/$C$8,$C$7*$C$8,$C$5,1,E92,Pilotage!$D$25)),\"\")","v":""},null,null,null,null,null,{"$f":"IF(K92<>\"\",-1*CUMIPMT($C$6/$C$8,$C$7*$C$8,$C$5,M92,N92,Pilotage!$D$25),\"\")","v":""}]
[null,null,null,null,"","",{"$f":"IF(E93<>\"\",IF($C$5=0,0,CUMIPMT($C$6/$C$8,$C$7*$C$8,$C$5,1,E93,Pilotage!$D$25)),\"\")","v":""},{"$f":"IF(E93<>\"\",IF($C$5=0,0,CUMIPMT($C$6/$C$8,$C$7*$C$8,$C$5,E93,E93,Pilotage!$D$25)),\"\")","v":""},{"$f":"IF(E93<>\"\",IF($C$5=0,0,$C$5+CUMPRINC($C$6/$C$8,$C$7*$C$8,$C$5,1,E93,Pilotage!$D$25)),\"\")","v":""},null,null,null,null,null,{"$f":"IF(K93<>\"\",-1*CUMIPMT($C$6/$C$8,$C$7*$C$8,$C$5,M93,N93,Pilotage!$D$25),\"\")","v":""}]
[null,null,null,null,"","",{"$f":"IF(E94<>\"\",IF($C$5=0,0,CUMIPMT($C$6/$C$8,$C$7*$C$8,$C$5,1,E94,Pilotage!$D$25)),\"\")","v":""},{"$f":"IF(E94<>\"\",IF($C$5=0,0,CUMIPMT($C$6/$C$8,$C$7*$C$8,$C$5,E94,E94,Pilotage!$D$25)),\"\")","v":""},{"$f":"IF(E94<>\"\",IF($C$5=0,0,$C$5+CUMPRINC($C$6/$C$8,$C$7*$C$8,$C$5,1,E94,Pilotage!$D$25)),\"\")","v":""},null,null,null,null,null,{"$f":"IF(K94<>\"\",-1*CUMIPMT($C$6/$C$8,$C$7*$C$8,$C$5,M94,N94,Pilotage!$D$25),\"\")","v":""}]
[null,null,null,null,"","",{"$f":"IF(E95<>\"\",IF($C$5=0,0,CUMIPMT($C$6/$C$8,$C$7*$C$8,$C$5,1,E95,Pilotage!$D$25)),\"\")","v":""},{"$f":"IF(E95<>\"\",IF($C$5=0,0,CUMIPMT($C$6/$C$8,$C$7*$C$8,$C$5,E95,E95,Pilotage!$D$25)),\"\")","v":""},{"$f":"IF(E95<>\"\",IF($C$5=0,0,$C$5+CUMPRINC($C$6/$C$8,$C$7*$C$8,$C$5,1,E95,Pilotage!$D$25)),\"\")","v":""},null,null,null,null,null,{"$f":"IF(K95<>\"\",-1*CUMIPMT($C$6/$C$8,$C$7*$C$8,$C$5,M95,N95,Pilotage!$D$25),\"\")","v":""}]
[null,null,null,null,"","",{"$f":"IF(E96<>\"\",IF($C$5=0,0,CUMIPMT($C$6/$C$8,$C$7*$C$8,$C$5,1,E96,Pilotage!$D$25)),\"\")","v":""},{"$f":"IF(E96<>\"\",IF($C$5=0,0,CUMIPMT($C$6/$C$8,$C$7*$C$8,$C$5,E96,E96,Pilotage!$D$25)),\"\")","v":""},{"$f":"IF(E96<>\"\",IF($C$5=0,0,$C$5+CUMPRINC($C$6/$C$8,$C$7*$C$8,$C$5,1,E96,Pilotage!$D$25)),\"\")","v":""},null,null,null,null,null,{"$f":"IF(K96<>\"\",-1*CUMIPMT($C$6/$C$8,$C$7*$C$8,$C$5,M96,N96,Pilotage!$D$25),\"\")","v":""}]
[null,null,null,null,"","",{"$f":"IF(E97<>\"\",IF($C$5=0,0,CUMIPMT($C$6/$C$8,$C$7*$C$8,$C$5,1,E97,Pilotage!$D$25)),\"\")","v":""},{"$f":"IF(E97<>\"\",IF($C$5=0,0,CUMIPMT($C$6/$C$8,$C$7*$C$8,$C$5,E97,E97,Pilotage!$D$25)),\"\")","v":""},{"$f":"IF(E97<>\"\",IF($C$5=0,0,$C$5+CUMPRINC($C$6/$C$8,$C$7*$C$8,$C$5,1,E97,Pilotage!$D$25)),\"\")","v":""},null,null,null,null,null,{"$f":"IF(K97<>\"\",-1*CUMIPMT($C$6/$C$8,$C$7*$C$8,$C$5,M97,N97,Pilotage!$D$25),\"\")","v":""}]
[null,null,null,null,"","",{"$f":"IF(E98<>\"\",IF($C$5=0,0,CUMIPMT($C$6/$C$8,$C$7*$C$8,$C$5,1,E98,Pilotage!$D$25)),\"\")","v":""},{"$f":"IF(E98<>\"\",IF($C$5=0,0,CUMIPMT($C$6/$C$8,$C$7*$C$8,$C$5,E98,E98,Pilotage!$D$25)),\"\")","v":""},{"$f":"IF(E98<>\"\",IF($C$5=0,0,$C$5+CUMPRINC($C$6/$C$8,$C$7*$C$8,$C$5,1,E98,Pilotage!$D$25)),\"\")","v":""},null,null,null,null,null,{"$f":"IF(K98<>\"\",-1*CUMIPMT($C$6/$C$8,$C$7*$C$8,$C$5,M98,N98,Pilotage!$D$25),\"\")","v":""}]
[null,null,null,null,"","",{"$f":"IF(E99<>\"\",IF($C$5=0,0,CUMIPMT($C$6/$C$8,$C$7*$C$8,$C$5,1,E99,Pilotage!$D$25)),\"\")","v":""},{"$f":"IF(E99<>\"\",IF($C$5=0,0,CUMIPMT($C$6/$C$8,$C$7*$C$8,$C$5,E99,E99,Pilotage!$D$25)),\"\")","v":""},{"$f":"IF(E99<>\"\",IF($C$5=0,0,$C$5+CUMPRINC($C$6/$C$8,$C$7*$C$8,$C$5,1,E99,Pilotage!$D$25)),\"\")","v":""},null,null,null,null,null,{"$f":"IF(K99<>\"\",-1*CUMIPMT($C$6/$C$8,$C$7*$C$8,$C$5,M99,N99,Pilotage!$D$25),\"\")","v":""}]
[null,null,null,null,"","",{"$f":"IF(E100<>\"\",IF($C$5=0,0,CUMIPMT($C$6/$C$8,$C$7*$C$8,$C$5,1,E100,Pilotage!$D$25)),\"\")","v":""},{"$f":"IF(E100<>\"\",IF($C$5=0,0,CUMIPMT($C$6/$C$8,$C$7*$C$8,$C$5,E100,E100,Pilotage!$D$25)),\"\")","v":""},{"$f":"IF(E100<>\"\",IF($C$5=0,0,$C$5+CUMPRINC($C$6/$C$8,$C$7*$C$8,$C$5,1,E100,Pilotage!$D$25)),\"\")","v":""},null,null,null,null,null,{"$f":"IF(K100<>\"\",-1*CUMIPMT($C$6/$C$8,$C$7*$C$8,$C$5,M100,N100,Pilotage!$D$25),\"\")","v":""}]
[null,null,null,null,"","",{"$f":"IF(E101<>\"\",IF($C$5=0,0,CUMIPMT($C$6/$C$8,$C$7*$C$8,$C$5,1,E101,Pilotage!$D$25)),\"\")","v":""},{"$f":"IF(E101<>\"\",IF($C$5=0,0,CUMIPMT($C$6/$C$8,$C$7*$C$8,$C$5,E101,E101,Pilotage!$D$25)),\"\")","v":""},{"$f":"IF(E101<>\"\",IF($C$5=0,0,$C$5+CUMPRINC($C$6/$C$8,$C$7*$C$8,$C$5,1,E101,Pilotage!$D$25)),\"\")","v":""},null,null,null,null,null,{"$f":"IF(K101<>\"\",-1*CUMIPMT($C$6/$C$8,$C$7*$C$8,$C$5,M101,N101,Pilotage!$D$25),\"\")","v":""}]
[null,null,null,null,"","",{"$f":"IF(E102<>\"\",IF($C$5=0,0,CUMIPMT($C$6/$C$8,$C$7*$C$8,$C$5,1,E102,Pilotage!$D$25)),\"\")","v":""},{"$f":"IF(E102<>\"\",IF($C$5=0,0,CUMIPMT($C$6/$C$8,$C$7*$C$8,$C$5,E102,E102,Pilotage!$D$25)),\"\")","v":""},{"$f":"IF(E102<>\"\",IF($C$5=0,0,$C$5+CUMPRINC($C$6/$C$8,$C$7*$C$8,$C$5,1,E102,Pilotage!$D$25)),\"\")","v":""},null,null,null,null,null,{"$f":"IF(K102<>\"\",-1*CUMIPMT($C$6/$C$8,$C$7*$C$8,$C$5,M102,N102,Pilotage!$D$25),\"\")","v":""}]
[null,null,null,null,"","",{"$f":"IF(E103<>\"\",IF($C$5=0,0,CUMIPMT($C$6/$C$8,$C$7*$C$8,$C$5,1,E103,Pilotage!$D$25)),\"\")","v":""},{"$f":"IF(E103<>\"\",IF($C$5=0,0,CUMIPMT($C$6/$C$8,$C$7*$C$8,$C$5,E103,E103,Pilotage!$D$25)),\"\")","v":""},{"$f":"IF(E103<>\"\",IF($C$5=0,0,$C$5+CUMPRINC($C$6/$C$8,$C$7*$C$8,$C$5,1,E103,Pilotage!$D$25)),\"\")","v":""},null,null,null,null,null,{"$f":"IF(K103<>\"\",-1*CUMIPMT($C$6/$C$8,$C$7*$C$8,$C$5,M103,N103,Pilotage!$D$25),\"\")","v":""}]
[null,null,null,null,"","",{"$f":"IF(E104<>\"\",IF($C$5=0,0,CUMIPMT($C$6/$C$8,$C$7*$C$8,$C$5,1,E104,Pilotage!$D$25)),\"\")","v":""},{"$f":"IF(E104<>\"\",IF($C$5=0,0,CUMIPMT($C$6/$C$8,$C$7*$C$8,$C$5,E104,E104,Pilotage!$D$25)),\"\")","v":""},{"$f":"IF(E104<>\"\",IF($C$5=0,0,$C$5+CUMPRINC($C$6/$C$8,$C$7*$C$8,$C$5,1,E104,Pilotage!$D$25)),\"\")","v":""},null,null,null,null,null,{"$f":"IF(K104<>\"\",-1*CUMIPMT($C$6/$C$8,$C$7*$C$8,$C$5,M104,N104,Pilotage!$D$25),\"\")","v":""}]
[null,null,null,null,"","",{"$f":"IF(E105<>\"\",IF($C$5=0,0,CUMIPMT($C$6/$C$8,$C$7*$C$8,$C$5,1,E105,Pilotage!$D$25)),\"\")","v":""},{"$f":"IF(E105<>\"\",IF($C$5=0,0,CUMIPMT($C$6/$C$8,$C$7*$C$8,$C$5,E105,E105,Pilotage!$D$25)),\"\")","v":""},{"$f":"IF(E105<>\"\",IF($C$5=0,0,$C$5+CUMPRINC($C$6/$C$8,$C$7*$C$8,$C$5,1,E105,Pilotage!$D$25)),\"\")","v":""},null,null,null,null,null,{"$f":"IF(K105<>\"\",-1*CUMIPMT($C$6/$C$8,$C$7*$C$8,$C$5,M105,N105,Pilotage!$D$25),\"\")","v":""}]
[null,null,null,null,"","",{"$f":"IF(E106<>\"\",IF($C$5=0,0,CUMIPMT($C$6/$C$8,$C$7*$C$8,$C$5,1,E106,Pilotage!$D$25)),\"\")","v":""},{"$f":"IF(E106<>\"\",IF($C$5=0,0,CUMIPMT($C$6/$C$8,$C$7*$C$8,$C$5,E106,E106,Pilotage!$D$25)),\"\")","v":""},{"$f":"IF(E106<>\"\",IF($C$5=0,0,$C$5+CUMPRINC($C$6/$C$8,$C$7*$C$8,$C$5,1,E106,Pilotage!$D$25)),\"\")","v":""},null,null,null,null,null,{"$f":"IF(K106<>\"\",-1*CUMIPMT($C$6/$C$8,$C$7*$C$8,$C$5,M106,N106,Pilotage!$D$25),\"\")","v":""}]
[null,null,null,null,"","",{"$f":"IF(E107<>\"\",IF($C$5=0,0,CUMIPMT($C$6/$C$8,$C$7*$C$8,$C$5,1,E107,Pilotage!$D$25)),\"\")","v":""},{"$f":"IF(E107<>\"\",IF($C$5=0,0,CUMIPMT($C$6/$C$8,$C$7*$C$8,$C$5,E107,E107,Pilotage!$D$25)),\"\")","v":""},{"$f":"IF(E107<>\"\",IF($C$5=0,0,$C$5+CUMPRINC($C$6/$C$8,$C$7*$C$8,$C$5,1,E107,Pilotage!$D$25)),\"\")","v":""},null,null,null,null,null,{"$f":"IF(K107<>\"\",-1*CUMIPMT($C$6/$C$8,$C$7*$C$8,$C$5,M107,N107,Pilotage!$D$25),\"\")","v":""}]
[null,null,null,null,"","",{"$f":"IF(E108<>\"\",IF($C$5=0,0,CUMIPMT($C$6/$C$8,$C$7*$C$8,$C$5,1,E108,Pilotage!$D$25)),\"\")","v":""},{"$f":"IF(E108<>\"\",IF($C$5=0,0,CUMIPMT($C$6/$C$8,$C$7*$C$8,$C$5,E108,E108,Pilotage!$D$25)),\"\")","v":""},{"$f":"IF(E108<>\"\",IF($C$5=0,0,$C$5+CUMPRINC($C$6/$C$8,$C$7*$C$8,$C$5,1,E108,Pilotage!$D$25)),\"\")","v":""},null,null,null,null,null,{"$f":"IF(K108<>\"\",-1*CUMIPMT($C$6/$C$8,$C$7*$C$8,$C$5,M108,N108,Pilotage!$D$25),\"\")","v":""}]
[null,null,null,null,"","",{"$f":"IF(E109<>\"\",IF($C$5=0,0,CUMIPMT($C$6/$C$8,$C$7*$C$8,$C$5,1,E109,Pilotage!$D$25)),\"\")","v":""},{"$f":"IF(E109<>\"\",IF($C$5=0,0,CUMIPMT($C$6/$C$8,$C$7*$C$8,$C$5,E109,E109,Pilotage!$D$25)),\"\")","v":""},{"$f":"IF(E109<>\"\",IF($C$5=0,0,$C$5+CUMPRINC($C$6/$C$8,$C$7*$C$8,$C$5,1,E109,Pilotage!$D$25)),\"\")","v":""},null,null,null,null,null,{"$f":"IF(K109<>\"\",-1*CUMIPMT($C$6/$C$8,$C$7*$C$8,$C$5,M109,N109,Pilotage!$D$25),\"\")","v":""}]
[null,null,null,null,"","",{"$f":"IF(E110<>\"\",IF($C$5=0,0,CUMIPMT($C$6/$C$8,$C$7*$C$8,$C$5,1,E110,Pilotage!$D$25)),\"\")","v":""},{"$f":"IF(E110<>\"\",IF($C$5=0,0,CUMIPMT($C$6/$C$8,$C$7*$C$8,$C$5,E110,E110,Pilotage!$D$25)),\"\")","v":""},{"$f":"IF(E110<>\"\",IF($C$5=0,0,$C$5+CUMPRINC($C$6/$C$8,$C$7*$C$8,$C$5,1,E110,Pilotage!$D$25)),\"\")","v":""},null,null,null,null,null,{"$f":"IF(K110<>\"\",-1*CUMIPMT($C$6/$C$8,$C$7*$C$8,$C$5,M110,N110,Pilotage!$D$25),\"\")","v":""}]
[null,null,null,null,"","",{"$f":"IF(E111<>\"\",IF($C$5=0,0,CUMIPMT($C$6/$C$8,$C$7*$C$8,$C$5,1,E111,Pilotage!$D$25)),\"\")","v":""},{"$f":"IF(E111<>\"\",IF($C$5=0,0,CUMIPMT($C$6/$C$8,$C$7*$C$8,$C$5,E111,E111,Pilotage!$D$25)),\"\")","v":""},{"$f":"IF(E111<>\"\",IF($C$5=0,0,$C$5+CUMPRINC($C$6/$C$8,$C$7*$C$8,$C$5,1,E111,Pilotage!$D$25)),\"\")","v":""},null,null,null,null,null,{"$f":"IF(K111<>\"\",-1*CUMIPMT($C$6/$C$8,$C$7*$C$8,$C$5,M111,N111,Pilotage!$D$25),\"\")","v":""}]
[null,null,null,null,"","",{"$f":"IF(E112<>\"\",IF($C$5=0,0,CUMIPMT($C$6/$C$8,$C$7*$C$8,$C$5,1,E112,Pilotage!$D$25)),\"\")","v":""},{"$f":"IF(E112<>\"\",IF($C$5=0,0,CUMIPMT($C$6/$C$8,$C$7*$C$8,$C$5,E112,E112,Pilotage!$D$25)),\"\")","v":""},{"$f":"IF(E112<>\"\",IF($C$5=0,0,$C$5+CUMPRINC($C$6/$C$8,$C$7*$C$8,$C$5,1,E112,Pilotage!$D$25)),\"\")","v":""},null,null,null,null,null,{"$f":"IF(K112<>\"\",-1*CUMIPMT($C$6/$C$8,$C$7*$C$8,$C$5,M112,N112,Pilotage!$D$25),\"\")","v":""}]
[null,null,null,null,"","",{"$f":"IF(E113<>\"\",IF($C$5=0,0,CUMIPMT($C$6/$C$8,$C$7*$C$8,$C$5,1,E113,Pilotage!$D$25)),\"\")","v":""},{"$f":"IF(E113<>\"\",IF($C$5=0,0,CUMIPMT($C$6/$C$8,$C$7*$C$8,$C$5,E113,E113,Pilotage!$D$25)),\"\")","v":""},{"$f":"IF(E113<>\"\",IF($C$5=0,0,$C$5+CUMPRINC($C$6/$C$8,$C$7*$C$8,$C$5,1,E113,Pilotage!$D$25)),\"\")","v":""},null,null,null,null,null,{"$f":"IF(K113<>\"\",-1*CUMIPMT($C$6/$C$8,$C$7*$C$8,$C$5,M113,N113,Pilotage!$D$25),\"\")","v":""}]
[null,null,null,null,"","",{"$f":"IF(E114<>\"\",IF($C$5=0,0,CUMIPMT($C$6/$C$8,$C$7*$C$8,$C$5,1,E114,Pilotage!$D$25)),\"\")","v":""},{"$f":"IF(E114<>\"\",IF($C$5=0,0,CUMIPMT($C$6/$C$8,$C$7*$C$8,$C$5,E114,E114,Pilotage!$D$25)),\"\")","v":""},{"$f":"IF(E114<>\"\",IF($C$5=0,0,$C$5+CUMPRINC($C$6/$C$8,$C$7*$C$8,$C$5,1,E114,Pilotage!$D$25)),\"\")","v":""},null,null,null,null,null,{"$f":"IF(K114<>\"\",-1*CUMIPMT($C$6/$C$8,$C$7*$C$8,$C$5,M114,N114,Pilotage!$D$25),\"\")","v":""}]
[null,null,null,null,"","",{"$f":"IF(E115<>\"\",IF($C$5=0,0,CUMIPMT($C$6/$C$8,$C$7*$C$8,$C$5,1,E115,Pilotage!$D$25)),\"\")","v":""},{"$f":"IF(E115<>\"\",IF($C$5=0,0,CUMIPMT($C$6/$C$8,$C$7*$C$8,$C$5,E115,E115,Pilotage!$D$25)),\"\")","v":""},{"$f":"IF(E115<>\"\",IF($C$5=0,0,$C$5+CUMPRINC($C$6/$C$8,$C$7*$C$8,$C$5,1,E115,Pilotage!$D$25)),\"\")","v":""},null,null,null,null,null,{"$f":"IF(K115<>\"\",-1*CUMIPMT($C$6/$C$8,$C$7*$C$8,$C$5,M115,N115,Pilotage!$D$25),\"\")","v":""}]
[null,null,null,null,"","",{"$f":"IF(E116<>\"\",IF($C$5=0,0,CUMIPMT($C$6/$C$8,$C$7*$C$8,$C$5,1,E116,Pilotage!$D$25)),\"\")","v":""},{"$f":"IF(E116<>\"\",IF($C$5=0,0,CUMIPMT($C$6/$C$8,$C$7*$C$8,$C$5,E116,E116,Pilotage!$D$25)),\"\")","v":""},{"$f":"IF(E116<>\"\",IF($C$5=0,0,$C$5+CUMPRINC($C$6/$C$8,$C$7*$C$8,$C$5,1,E116,Pilotage!$D$25)),\"\")","v":""},null,null,null,null,null,{"$f":"IF(K116<>\"\",-1*CUMIPMT($C$6/$C$8,$C$7*$C$8,$C$5,M116,N116,Pilotage!$D$25),\"\")","v":""}]
[null,null,null,null,"","",{"$f":"IF(E117<>\"\",IF($C$5=0,0,CUMIPMT($C$6/$C$8,$C$7*$C$8,$C$5,1,E117,Pilotage!$D$25)),\"\")","v":""},{"$f":"IF(E117<>\"\",IF($C$5=0,0,CUMIPMT($C$6/$C$8,$C$7*$C$8,$C$5,E117,E117,Pilotage!$D$25)),\"\")","v":""},{"$f":"IF(E117<>\"\",IF($C$5=0,0,$C$5+CUMPRINC($C$6/$C$8,$C$7*$C$8,$C$5,1,E117,Pilotage!$D$25)),\"\")","v":""},null,null,null,null,null,{"$f":"IF(K117<>\"\",-1*CUMIPMT($C$6/$C$8,$C$7*$C$8,$C$5,M117,N117,Pilotage!$D$25),\"\")","v":""}]
[null,null,null,null,"","",{"$f":"IF(E118<>\"\",IF($C$5=0,0,CUMIPMT($C$6/$C$8,$C$7*$C$8,$C$5,1,E118,Pilotage!$D$25)),\"\")","v":""},{"$f":"IF(E118<>\"\",IF($C$5=0,0,CUMIPMT($C$6/$C$8,$C$7*$C$8,$C$5,E118,E118,Pilotage!$D$25)),\"\")","v":""},{"$f":"IF(E118<>\"\",IF($C$5=0,0,$C$5+CUMPRINC($C$6/$C$8,$C$7*$C$8,$C$5,1,E118,Pilotage!$D$25)),\"\")","v":""},null,null,null,null,null,{"$f":"IF(K118<>\"\",-1*CUMIPMT($C$6/$C$8,$C$7*$C$8,$C$5,M118,N118,Pilotage!$D$25),\"\")","v":""}]
[null,null,null,null,"","",{"$f":"IF(E119<>\"\",IF($C$5=0,0,CUMIPMT($C$6/$C$8,$C$7*$C$8,$C$5,1,E119,Pilotage!$D$25)),\"\")","v":""},{"$f":"IF(E119<>\"\",IF($C$5=0,0,CUMIPMT($C$6/$C$8,$C$7*$C$8,$C$5,E119,E119,Pilotage!$D$25)),\"\")","v":""},{"$f":"IF(E119<>\"\",IF($C$5=0,0,$C$5+CUMPRINC($C$6/$C$8,$C$7*$C$8,$C$5,1,E119,Pilotage!$D$25)),\"\")","v":""},null,null,null,null,null,{"$f":"IF(K119<>\"\",-1*CUMIPMT($C$6/$C$8,$C$7*$C$8,$C$5,M119,N119,Pilotage!$D$25),\"\")","v":""}]
[null,null,null,null,"","",{"$f":"IF(E120<>\"\",IF($C$5=0,0,CUMIPMT($C$6/$C$8,$C$7*$C$8,$C$5,1,E120,Pilotage!$D$25)),\"\")","v":""},{"$f":"IF(E120<>\"\",IF($C$5=0,0,CUMIPMT($C$6/$C$8,$C$7*$C$8,$C$5,E120,E120,Pilotage!$D$25)),\"\")","v":""},{"$f":"IF(E120<>\"\",IF($C$5=0,0,$C$5+CUMPRINC($C$6/$C$8,$C$7*$C$8,$C$5,1,E120,Pilotage!$D$25)),\"\")","v":""},null,null,null,null,null,{"$f":"IF(K120<>\"\",-1*CUMIPMT($C$6/$C$8,$C$7*$C$8,$C$5,M120,N120,Pilotage!$D$25),\"\")","v":""}]
[null,null,null,null,"","",{"$f":"IF(E121<>\"\",IF($C$5=0,0,CUMIPMT($C$6/$C$8,$C$7*$C$8,$C$5,1,E121,Pilotage!$D$25)),\"\")","v":""},{"$f":"IF(E121<>\"\",IF($C$5=0,0,CUMIPMT($C$6/$C$8,$C$7*$C$8,$C$5,E121,E121,Pilotage!$D$25)),\"\")","v":""},{"$f":"IF(E121<>\"\",IF($C$5=0,0,$C$5+CUMPRINC($C$6/$C$8,$C$7*$C$8,$C$5,1,E121,Pilotage!$D$25)),\"\")","v":""},null,null,null,null,null,{"$f":"IF(K121<>\"\",-1*CUMIPMT($C$6/$C$8,$C$7*$C$8,$C$5,M121,N121,Pilotage!$D$25),\"\")","v":""}]
[null,null,null,null,"","",{"$f":"IF(E122<>\"\",IF($C$5=0,0,CUMIPMT($C$6/$C$8,$C$7*$C$8,$C$5,1,E122,Pilotage!$D$25)),\"\")","v":""},{"$f":"IF(E122<>\"\",IF($C$5=0,0,CUMIPMT($C$6/$C$8,$C$7*$C$8,$C$5,E122,E122,Pilotage!$D$25)),\"\")","v":""},{"$f":"IF(E122<>\"\",IF($C$5=0,0,$C$5+CUMPRINC($C$6/$C$8,$C$7*$C$8,$C$5,1,E122,Pilotage!$D$25)),\"\")","v":""},null,null,null,null,null,{"$f":"IF(K122<>\"\",-1*CUMIPMT($C$6/$C$8,$C$7*$C$8,$C$5,M122,N122,Pilotage!$D$25),\"\")","v":""}]
[null,null,null,null,"","",{"$f":"IF(E123<>\"\",IF($C$5=0,0,CUMIPMT($C$6/$C$8,$C$7*$C$8,$C$5,1,E123,Pilotage!$D$25)),\"\")","v":""},{"$f":"IF(E123<>\"\",IF($C$5=0,0,CUMIPMT($C$6/$C$8,$C$7*$C$8,$C$5,E123,E123,Pilotage!$D$25)),\"\")","v":""},{"$f":"IF(E123<>\"\",IF($C$5=0,0,$C$5+CUMPRINC($C$6/$C$8,$C$7*$C$8,$C$5,1,E123,Pilotage!$D$25)),\"\")","v":""},null,null,null,null,null,{"$f":"IF(K123<>\"\",-1*CUMIPMT($C$6/$C$8,$C$7*$C$8,$C$5,M123,N123,Pilotage!$D$25),\"\")","v":""}]
[null,null,null,null,"","",{"$f":"IF(E124<>\"\",IF($C$5=0,0,CUMIPMT($C$6/$C$8,$C$7*$C$8,$C$5,1,E124,Pilotage!$D$25)),\"\")","v":""},{"$f":"IF(E124<>\"\",IF($C$5=0,0,CUMIPMT($C$6/$C$8,$C$7*$C$8,$C$5,E124,E124,Pilotage!$D$25)),\"\")","v":""},{"$f":"IF(E124<>\"\",IF($C$5=0,0,$C$5+CUMPRINC($C$6/$C$8,$C$7*$C$8,$C$5,1,E124,Pilotage!$D$25)),\"\")","v":""},null,null,null,null,null,{"$f":"IF(K124<>\"\",-1*CUMIPMT($C$6/$C$8,$C$7*$C$8,$C$5,M124,N124,Pilotage!$D$25),\"\")","v":""}]
[null,null,null,null,"","",{"$f":"IF(E125<>\"\",IF($C$5=0,0,CUMIPMT($C$6/$C$8,$C$7*$C$8,$C$5,1,E125,Pilotage!$D$25)),\"\")","v":""},{"$f":"IF(E125<>\"\",IF($C$5=0,0,CUMIPMT($C$6/$C$8,$C$7*$C$8,$C$5,E125,E125,Pilotage!$D$25)),\"\")","v":""},{"$f":"IF(E125<>\"\",IF($C$5=0,0,$C$5+CUMPRINC($C$6/$C$8,$C$7*$C$8,$C$5,1,E125,Pilotage!$D$25)),\"\")","v":""},null,null,null,null,null,{"$f":"IF(K125<>\"\",-1*CUMIPMT($C$6/$C$8,$C$7*$C$8,$C$5,M125,N125,Pilotage!$D$25),\"\")","v":""}]
[null,null,null,null,"","",{"$f":"IF(E126<>\"\",IF($C$5=0,0,CUMIPMT($C$6/$C$8,$C$7*$C$8,$C$5,1,E126,Pilotage!$D$25)),\"\")","v":""},{"$f":"IF(E126<>\"\",IF($C$5=0,0,CUMIPMT($C$6/$C$8,$C$7*$C$8,$C$5,E126,E126,Pilotage!$D$25)),\"\")","v":""},{"$f":"IF(E126<>\"\",IF($C$5=0,0,$C$5+CUMPRINC($C$6/$C$8,$C$7*$C$8,$C$5,1,E126,Pilotage!$D$25)),\"\")","v":""},null,null,null,null,null,{"$f":"IF(K126<>\"\",-1*CUMIPMT($C$6/$C$8,$C$7*$C$8,$C$5,M126,N126,Pilotage!$D$25),\"\")","v":""}]
[null,null,null,null,"","",{"$f":"IF(E127<>\"\",IF($C$5=0,0,CUMIPMT($C$6/$C$8,$C$7*$C$8,$C$5,1,E127,Pilotage!$D$25)),\"\")","v":""},{"$f":"IF(E127<>\"\",IF($C$5=0,0,CUMIPMT($C$6/$C$8,$C$7*$C$8,$C$5,E127,E127,Pilotage!$D$25)),\"\")","v":""},{"$f":"IF(E127<>\"\",IF($C$5=0,0,$C$5+CUMPRINC($C$6/$C$8,$C$7*$C$8,$C$5,1,E127,Pilotage!$D$25)),\"\")","v":""},null,null,null,null,null,{"$f":"IF(K127<>\"\",-1*CUMIPMT($C$6/$C$8,$C$7*$C$8,$C$5,M127,N127,Pilotage!$D$25),\"\")","v":""}]
[null,null,null,null,"","",{"$f":"IF(E128<>\"\",IF($C$5=0,0,CUMIPMT($C$6/$C$8,$C$7*$C$8,$C$5,1,E128,Pilotage!$D$25)),\"\")","v":""},{"$f":"IF(E128<>\"\",IF($C$5=0,0,CUMIPMT($C$6/$C$8,$C$7*$C$8,$C$5,E128,E128,Pilotage!$D$25)),\"\")","v":""},{"$f":"IF(E128<>\"\",IF($C$5=0,0,$C$5+CUMPRINC($C$6/$C$8,$C$7*$C$8,$C$5,1,E128,Pilotage!$D$25)),\"\")","v":""},null,null,null,null,null,{"$f":"IF(K128<>\"\",-1*CUMIPMT($C$6/$C$8,$C$7*$C$8,$C$5,M128,N128,Pilotage!$D$25),\"\")","v":""}]
[null,null,null,null,"","",{"$f":"IF(E129<>\"\",IF($C$5=0,0,CUMIPMT($C$6/$C$8,$C$7*$C$8,$C$5,1,E129,Pilotage!$D$25)),\"\")","v":""},{"$f":"IF(E129<>\"\",IF($C$5=0,0,CUMIPMT($C$6/$C$8,$C$7*$C$8,$C$5,E129,E129,Pilotage!$D$25)),\"\")","v":""},{"$f":"IF(E129<>\"\",IF($C$5=0,0,$C$5+CUMPRINC($C$6/$C$8,$C$7*$C$8,$C$5,1,E129,Pilotage!$D$25)),\"\")","v":""},null,null,null,null,null,{"$f":"IF(K129<>\"\",-1*CUMIPMT($C$6/$C$8,$C$7*$C$8,$C$5,M129,N129,Pilotage!$D$25),\"\")","v":""}]
[null,null,null,null,"","",{"$f":"IF(E130<>\"\",IF($C$5=0,0,CUMIPMT($C$6/$C$8,$C$7*$C$8,$C$5,1,E130,Pilotage!$D$25)),\"\")","v":""},{"$f":"IF(E130<>\"\",IF($C$5=0,0,CUMIPMT($C$6/$C$8,$C$7*$C$8,$C$5,E130,E130,Pilotage!$D$25)),\"\")","v":""},{"$f":"IF(E130<>\"\",IF($C$5=0,0,$C$5+CUMPRINC($C$6/$C$8,$C$7*$C$8,$C$5,1,E130,Pilotage!$D$25)),\"\")","v":""},null,null,null,null,null,{"$f":"IF(K130<>\"\",-1*CUMIPMT($C$6/$C$8,$C$7*$C$8,$C$5,M130,N130,Pilotage!$D$25),\"\")","v":""}]
[null,null,null,null,"","",{"$f":"IF(E131<>\"\",IF($C$5=0,0,CUMIPMT($C$6/$C$8,$C$7*$C$8,$C$5,1,E131,Pilotage!$D$25)),\"\")","v":""},{"$f":"IF(E131<>\"\",IF($C$5=0,0,CUMIPMT($C$6/$C$8,$C$7*$C$8,$C$5,E131,E131,Pilotage!$D$25)),\"\")","v":""},{"$f":"IF(E131<>\"\",IF($C$5=0,0,$C$5+CUMPRINC($C$6/$C$8,$C$7*$C$8,$C$5,1,E131,Pilotage!$D$25)),\"\")","v":""},null,null,null,null,null,{"$f":"IF(K131<>\"\",-1*CUMIPMT($C$6/$C$8,$C$7*$C$8,$C$5,M131,N131,Pilotage!$D$25),\"\")","v":""}]
[null,null,null,null,"","",{"$f":"IF(E132<>\"\",IF($C$5=0,0,CUMIPMT($C$6/$C$8,$C$7*$C$8,$C$5,1,E132,Pilotage!$D$25)),\"\")","v":""},{"$f":"IF(E132<>\"\",IF($C$5=0,0,CUMIPMT($C$6/$C$8,$C$7*$C$8,$C$5,E132,E132,Pilotage!$D$25)),\"\")","v":""},{"$f":"IF(E132<>\"\",IF($C$5=0,0,$C$5+CUMPRINC($C$6/$C$8,$C$7*$C$8,$C$5,1,E132,Pilotage!$D$25)),\"\")","v":""},null,null,null,null,null,{"$f":"IF(K132<>\"\",-1*CUMIPMT($C$6/$C$8,$C$7*$C$8,$C$5,M132,N132,Pilotage!$D$25),\"\")","v":""}]
[null,null,null,null,"","",{"$f":"IF(E133<>\"\",IF($C$5=0,0,CUMIPMT($C$6/$C$8,$C$7*$C$8,$C$5,1,E133,Pilotage!$D$25)),\"\")","v":""},{"$f":"IF(E133<>\"\",IF($C$5=0,0,CUMIPMT($C$6/$C$8,$C$7*$C$8,$C$5,E133,E133,Pilotage!$D$25)),\"\")","v":""},{"$f":"IF(E133<>\"\",IF($C$5=0,0,$C$5+CUMPRINC($C$6/$C$8,$C$7*$C$8,$C$5,1,E133,Pilotage!$D$25)),\"\")","v":""},null,null,null,null,null,{"$f":"IF(K133<>\"\",-1*CUMIPMT($C$6/$C$8,$C$7*$C$8,$C$5,M133,N133,Pilotage!$D$25),\"\")","v":""}]
[null,null,null,null,"","",{"$f":"IF(E134<>\"\",IF($C$5=0,0,CUMIPMT($C$6/$C$8,$C$7*$C$8,$C$5,1,E134,Pilotage!$D$25)),\"\")","v":""},{"$f":"IF(E134<>\"\",IF($C$5=0,0,CUMIPMT($C$6/$C$8,$C$7*$C$8,$C$5,E134,E134,Pilotage!$D$25)),\"\")","v":""},{"$f":"IF(E134<>\"\",IF($C$5=0,0,$C$5+CUMPRINC($C$6/$C$8,$C$7*$C$8,$C$5,1,E134,Pilotage!$D$25)),\"\")","v":""},null,null,null,null,null,{"$f":"IF(K134<>\"\",-1*CUMIPMT($C$6/$C$8,$C$7*$C$8,$C$5,M134,N134,Pilotage!$D$25),\"\")","v":""}]
[null,null,null,null,"","",{"$f":"IF(E135<>\"\",IF($C$5=0,0,CUMIPMT($C$6/$C$8,$C$7*$C$8,$C$5,1,E135,Pilotage!$D$25)),\"\")","v":""},{"$f":"IF(E135<>\"\",IF($C$5=0,0,CUMIPMT($C$6/$C$8,$C$7*$C$8,$C$5,E135,E135,Pilotage!$D$25)),\"\")","v":""},{"$f":"IF(E135<>\"\",IF($C$5=0,0,$C$5+CUMPRINC($C$6/$C$8,$C$7*$C$8,$C$5,1,E135,Pilotage!$D$25)),\"\")","v":""},null,null,null,null,null,{"$f":"IF(K135<>\"\",-1*CUMIPMT($C$6/$C$8,$C$7*$C$8,$C$5,M135,N135,Pilotage!$D$25),\"\")","v":""}]
[null,null,null,null,{"$f":"IF(E135<$C$10,E135+1,\"\")","v":""},{"$f":"IF(E136<>\"\",EDATE(F135,$C$11),\"\")","v":""},{"$f":"IF(E136<>\"\",IF($C$5=0,0,CUMIPMT($C$6/$C$8,$C$7*$C$8,$C$5,1,E136,Pilotage!$D$25)),\"\")","v":""},{"$f":"IF(E136<>\"\",IF($C$5=0,0,CUMIPMT($C$6/$C$8,$C$7*$C$8,$C$5,E136,E136,Pilotage!$D$25)),\"\")","v":""},{"$f":"IF(E136<>\"\",IF($C$5=0,0,$C$5+CUMPRINC($C$6/$C$8,$C$7*$C$8,$C$5,1,E136,Pilotage!$D$25)),\"\")","v":""},null,null,null,null,null,{"$f":"IF(K136<>\"\",-1*CUMIPMT($C$6/$C$8,$C$7*$C$8,$C$5,M136,N136,Pilotage!$D$25),\"\")","v":""}]
[null,null,null,null,"","",{"$f":"IF(E137<>\"\",IF($C$5=0,0,CUMIPMT($C$6/$C$8,$C$7*$C$8,$C$5,1,E137,Pilotage!$D$25)),\"\")","v":""},{"$f":"IF(E137<>\"\",IF($C$5=0,0,CUMIPMT($C$6/$C$8,$C$7*$C$8,$C$5,E137,E137,Pilotage!$D$25)),\"\")","v":""},{"$f":"IF(E137<>\"\",IF($C$5=0,0,$C$5+CUMPRINC($C$6/$C$8,$C$7*$C$8,$C$5,1,E137,Pilotage!$D$25)),\"\")","v":""},null,null,null,null,null,{"$f":"IF(K137<>\"\",-1*CUMIPMT($C$6/$C$8,$C$7*$C$8,$C$5,M137,N137,Pilotage!$D$25),\"\")","v":""}]
[null,null,null,null,"","",{"$f":"IF(E138<>\"\",IF($C$5=0,0,CUMIPMT($C$6/$C$8,$C$7*$C$8,$C$5,1,E138,Pilotage!$D$25)),\"\")","v":""},{"$f":"IF(E138<>\"\",IF($C$5=0,0,CUMIPMT($C$6/$C$8,$C$7*$C$8,$C$5,E138,E138,Pilotage!$D$25)),\"\")","v":""},{"$f":"IF(E138<>\"\",IF($C$5=0,0,$C$5+CUMPRINC($C$6/$C$8,$C$7*$C$8,$C$5,1,E138,Pilotage!$D$25)),\"\")","v":""},null,null,null,null,null,{"$f":"IF(K138<>\"\",-1*CUMIPMT($C$6/$C$8,$C$7*$C$8,$C$5,M138,N138,Pilotage!$D$25),\"\")","v":""}]
[null,null,null,null,"","",{"$f":"IF(E139<>\"\",IF($C$5=0,0,CUMIPMT($C$6/$C$8,$C$7*$C$8,$C$5,1,E139,Pilotage!$D$25)),\"\")","v":""},{"$f":"IF(E139<>\"\",IF($C$5=0,0,CUMIPMT($C$6/$C$8,$C$7*$C$8,$C$5,E139,E139,Pilotage!$D$25)),\"\")","v":""},{"$f":"IF(E139<>\"\",IF($C$5=0,0,$C$5+CUMPRINC($C$6/$C$8,$C$7*$C$8,$C$5,1,E139,Pilotage!$D$25)),\"\")","v":""},null,null,null,null,null,{"$f":"IF(K139<>\"\",-1*CUMIPMT($C$6/$C$8,$C$7*$C$8,$C$5,M139,N139,Pilotage!$D$25),\"\")","v":""}]
[null,null,null,null,"","",{"$f":"IF(E140<>\"\",IF($C$5=0,0,CUMIPMT($C$6/$C$8,$C$7*$C$8,$C$5,1,E140,Pilotage!$D$25)),\"\")","v":""},{"$f":"IF(E140<>\"\",IF($C$5=0,0,CUMIPMT($C$6/$C$8,$C$7*$C$8,$C$5,E140,E140,Pilotage!$D$25)),\"\")","v":""},{"$f":"IF(E140<>\"\",IF($C$5=0,0,$C$5+CUMPRINC($C$6/$C$8,$C$7*$C$8,$C$5,1,E140,Pilotage!$D$25)),\"\")","v":""},null,null,null,null,null,{"$f":"IF(K140<>\"\",-1*CUMIPMT($C$6/$C$8,$C$7*$C$8,$C$5,M140,N140,Pilotage!$D$25),\"\")","v":""}]
[null,null,null,null,"","",{"$f":"IF(E141<>\"\",IF($C$5=0,0,CUMIPMT($C$6/$C$8,$C$7*$C$8,$C$5,1,E141,Pilotage!$D$25)),\"\")","v":""},{"$f":"IF(E141<>\"\",IF($C$5=0,0,CUMIPMT($C$6/$C$8,$C$7*$C$8,$C$5,E141,E141,Pilotage!$D$25)),\"\")","v":""},{"$f":"IF(E141<>\"\",IF($C$5=0,0,$C$5+CUMPRINC($C$6/$C$8,$C$7*$C$8,$C$5,1,E141,Pilotage!$D$25)),\"\")","v":""},null,null,null,null,null,{"$f":"IF(K141<>\"\",-1*CUMIPMT($C$6/$C$8,$C$7*$C$8,$C$5,M141,N141,Pilotage!$D$25),\"\")","v":""}]
[null,null,null,null,"","",{"$f":"IF(E142<>\"\",IF($C$5=0,0,CUMIPMT($C$6/$C$8,$C$7*$C$8,$C$5,1,E142,Pilotage!$D$25)),\"\")","v":""},{"$f":"IF(E142<>\"\",IF($C$5=0,0,CUMIPMT($C$6/$C$8,$C$7*$C$8,$C$5,E142,E142,Pilotage!$D$25)),\"\")","v":""},{"$f":"IF(E142<>\"\",IF($C$5=0,0,$C$5+CUMPRINC($C$6/$C$8,$C$7*$C$8,$C$5,1,E142,Pilotage!$D$25)),\"\")","v":""},null,null,null,null,null,{"$f":"IF(K142<>\"\",-1*CUMIPMT($C$6/$C$8,$C$7*$C$8,$C$5,M142,N142,Pilotage!$D$25),\"\")","v":""}]
[null,null,null,null,"","",{"$f":"IF(E143<>\"\",IF($C$5=0,0,CUMIPMT($C$6/$C$8,$C$7*$C$8,$C$5,1,E143,Pilotage!$D$25)),\"\")","v":""},{"$f":"IF(E143<>\"\",IF($C$5=0,0,CUMIPMT($C$6/$C$8,$C$7*$C$8,$C$5,E143,E143,Pilotage!$D$25)),\"\")","v":""},{"$f":"IF(E143<>\"\",IF($C$5=0,0,$C$5+CUMPRINC($C$6/$C$8,$C$7*$C$8,$C$5,1,E143,Pilotage!$D$25)),\"\")","v":""},null,null,null,null,null,{"$f":"IF(K143<>\"\",-1*CUMIPMT($C$6/$C$8,$C$7*$C$8,$C$5,M143,N143,Pilotage!$D$25),\"\")","v":""}]
[null,null,null,null,"","",{"$f":"IF(E144<>\"\",IF($C$5=0,0,CUMIPMT($C$6/$C$8,$C$7*$C$8,$C$5,1,E144,Pilotage!$D$25)),\"\")","v":""},{"$f":"IF(E144<>\"\",IF($C$5=0,0,CUMIPMT($C$6/$C$8,$C$7*$C$8,$C$5,E144,E144,Pilotage!$D$25)),\"\")","v":""},{"$f":"IF(E144<>\"\",IF($C$5=0,0,$C$5+CUMPRINC($C$6/$C$8,$C$7*$C$8,$C$5,1,E144,Pilotage!$D$25)),\"\")","v":""},null,null,null,null,null,{"$f":"IF(K144<>\"\",-1*CUMIPMT($C$6/$C$8,$C$7*$C$8,$C$5,M144,N144,Pilotage!$D$25),\"\")","v":""}]
[null,null,null,null,"","",{"$f":"IF(E145<>\"\",IF($C$5=0,0,CUMIPMT($C$6/$C$8,$C$7*$C$8,$C$5,1,E145,Pilotage!$D$25)),\"\")","v":""},{"$f":"IF(E145<>\"\",IF($C$5=0,0,CUMIPMT($C$6/$C$8,$C$7*$C$8,$C$5,E145,E145,Pilotage!$D$25)),\"\")","v":""},{"$f":"IF(E145<>\"\",IF($C$5=0,0,$C$5+CUMPRINC($C$6/$C$8,$C$7*$C$8,$C$5,1,E145,Pilotage!$D$25)),\"\")","v":""},null,null,null,null,null,{"$f":"IF(K145<>\"\",-1*CUMIPMT($C$6/$C$8,$C$7*$C$8,$C$5,M145,N145,Pilotage!$D$25),\"\")","v":""}]
[null,null,null,null,"","",{"$f":"IF(E146<>\"\",IF($C$5=0,0,CUMIPMT($C$6/$C$8,$C$7*$C$8,$C$5,1,E146,Pilotage!$D$25)),\"\")","v":""},{"$f":"IF(E146<>\"\",IF($C$5=0,0,CUMIPMT($C$6/$C$8,$C$7*$C$8,$C$5,E146,E146,Pilotage!$D$25)),\"\")","v":""},{"$f":"IF(E146<>\"\",IF($C$5=0,0,$C$5+CUMPRINC($C$6/$C$8,$C$7*$C$8,$C$5,1,E146,Pilotage!$D$25)),\"\")","v":""},null,null,null,null,null,{"$f":"IF(K146<>\"\",-1*CUMIPMT($C$6/$C$8,$C$7*$C$8,$C$5,M146,N146,Pilotage!$D$25),\"\")","v":""}]
[null,null,null,null,"","",{"$f":"IF(E147<>\"\",IF($C$5=0,0,CUMIPMT($C$6/$C$8,$C$7*$C$8,$C$5,1,E147,Pilotage!$D$25)),\"\")","v":""},{"$f":"IF(E147<>\"\",IF($C$5=0,0,CUMIPMT($C$6/$C$8,$C$7*$C$8,$C$5,E147,E147,Pilotage!$D$25)),\"\")","v":""},{"$f":"IF(E147<>\"\",IF($C$5=0,0,$C$5+CUMPRINC($C$6/$C$8,$C$7*$C$8,$C$5,1,E147,Pilotage!$D$25)),\"\")","v":""},null,null,null,null,null,{"$f":"IF(K147<>\"\",-1*CUMIPMT($C$6/$C$8,$C$7*$C$8,$C$5,M147,N147,Pilotage!$D$25),\"\")","v":""}]
[null,null,null,null,"","",{"$f":"IF(E148<>\"\",IF($C$5=0,0,CUMIPMT($C$6/$C$8,$C$7*$C$8,$C$5,1,E148,Pilotage!$D$25)),\"\")","v":""},{"$f":"IF(E148<>\"\",IF($C$5=0,0,CUMIPMT($C$6/$C$8,$C$7*$C$8,$C$5,E148,E148,Pilotage!$D$25)),\"\")","v":""},{"$f":"IF(E148<>\"\",IF($C$5=0,0,$C$5+CUMPRINC($C$6/$C$8,$C$7*$C$8,$C$5,1,E148,Pilotage!$D$25)),\"\")","v":""},null,null,null,null,null,{"$f":"IF(K148<>\"\",-1*CUMIPMT($C$6/$C$8,$C$7*$C$8,$C$5,M148,N148,Pilotage!$D$25),\"\")","v":""}]
[null,null,null,null,"","",{"$f":"IF(E149<>\"\",IF($C$5=0,0,CUMIPMT($C$6/$C$8,$C$7*$C$8,$C$5,1,E149,Pilotage!$D$25)),\"\")","v":""},{"$f":"IF(E149<>\"\",IF($C$5=0,0,CUMIPMT($C$6/$C$8,$C$7*$C$8,$C$5,E149,E149,Pilotage!$D$25)),\"\")","v":""},{"$f":"IF(E149<>\"\",IF($C$5=0,0,$C$5+CUMPRINC($C$6/$C$8,$C$7*$C$8,$C$5,1,E149,Pilotage!$D$25)),\"\")","v":""},null,null,null,null,null,{"$f":"IF(K149<>\"\",-1*CUMIPMT($C$6/$C$8,$C$7*$C$8,$C$5,M149,N149,Pilotage!$D$25),\"\")","v":""}]
[null,null,null,null,"","",{"$f":"IF(E150<>\"\",IF($C$5=0,0,CUMIPMT($C$6/$C$8,$C$7*$C$8,$C$5,1,E150,Pilotage!$D$25)),\"\")","v":""},{"$f":"IF(E150<>\"\",IF($C$5=0,0,CUMIPMT($C$6/$C$8,$C$7*$C$8,$C$5,E150,E150,Pilotage!$D$25)),\"\")","v":""},{"$f":"IF(E150<>\"\",IF($C$5=0,0,$C$5+CUMPRINC($C$6/$C$8,$C$7*$C$8,$C$5,1,E150,Pilotage!$D$25)),\"\")","v":""},null,null,null,null,null,{"$f":"IF(K150<>\"\",-1*CUMIPMT($C$6/$C$8,$C$7*$C$8,$C$5,M150,N150,Pilotage!$D$25),\"\")","v":""}]
[null,null,null,null,"","",{"$f":"IF(E151<>\"\",IF($C$5=0,0,CUMIPMT($C$6/$C$8,$C$7*$C$8,$C$5,1,E151,Pilotage!$D$25)),\"\")","v":""},{"$f":"IF(E151<>\"\",IF($C$5=0,0,CUMIPMT($C$6/$C$8,$C$7*$C$8,$C$5,E151,E151,Pilotage!$D$25)),\"\")","v":""},{"$f":"IF(E151<>\"\",IF($C$5=0,0,$C$5+CUMPRINC($C$6/$C$8,$C$7*$C$8,$C$5,1,E151,Pilotage!$D$25)),\"\")","v":""},null,null,null,null,null,{"$f":"IF(K151<>\"\",-1*CUMIPMT($C$6/$C$8,$C$7*$C$8,$C$5,M151,N151,Pilotage!$D$25),\"\")","v":""}]
[null,null,null,null,"","",{"$f":"IF(E152<>\"\",IF($C$5=0,0,CUMIPMT($C$6/$C$8,$C$7*$C$8,$C$5,1,E152,Pilotage!$D$25)),\"\")","v":""},{"$f":"IF(E152<>\"\",IF($C$5=0,0,CUMIPMT($C$6/$C$8,$C$7*$C$8,$C$5,E152,E152,Pilotage!$D$25)),\"\")","v":""},{"$f":"IF(E152<>\"\",IF($C$5=0,0,$C$5+CUMPRINC($C$6/$C$8,$C$7*$C$8,$C$5,1,E152,Pilotage!$D$25)),\"\")","v":""},null,null,null,null,null,{"$f":"IF(K152<>\"\",-1*CUMIPMT($C$6/$C$8,$C$7*$C$8,$C$5,M152,N152,Pilotage!$D$25),\"\")","v":""}]
[null,null,null,null,"","",{"$f":"IF(E153<>\"\",IF($C$5=0,0,CUMIPMT($C$6/$C$8,$C$7*$C$8,$C$5,1,E153,Pilotage!$D$25)),\"\")","v":""},{"$f":"IF(E153<>\"\",IF($C$5=0,0,CUMIPMT($C$6/$C$8,$C$7*$C$8,$C$5,E153,E153,Pilotage!$D$25)),\"\")","v":""},{"$f":"IF(E153<>\"\",IF($C$5=0,0,$C$5+CUMPRINC($C$6/$C$8,$C$7*$C$8,$C$5,1,E153,Pilotage!$D$25)),\"\")","v":""},null,null,null,null,null,{"$f":"IF(K153<>\"\",-1*CUMIPMT($C$6/$C$8,$C$7*$C$8,$C$5,M153,N153,Pilotage!$D$25),\"\")","v":""}]
[null,null,null,null,"","",{"$f":"IF(E154<>\"\",IF($C$5=0,0,CUMIPMT($C$6/$C$8,$C$7*$C$8,$C$5,1,E154,Pilotage!$D$25)),\"\")","v":""},{"$f":"IF(E154<>\"\",IF($C$5=0,0,CUMIPMT($C$6/$C$8,$C$7*$C$8,$C$5,E154,E154,Pilotage!$D$25)),\"\")","v":""},{"$f":"IF(E154<>\"\",IF($C$5=0,0,$C$5+CUMPRINC($C$6/$C$8,$C$7*$C$8,$C$5,1,E154,Pilotage!$D$25)),\"\")","v":""},null,null,null,null,null,{"$f":"IF(K154<>\"\",-1*CUMIPMT($C$6/$C$8,$C$7*$C$8,$C$5,M154,N154,Pilotage!$D$25),\"\")","v":""}]
[null,null,null,null,"","",{"$f":"IF(E155<>\"\",IF($C$5=0,0,CUMIPMT($C$6/$C$8,$C$7*$C$8,$C$5,1,E155,Pilotage!$D$25)),\"\")","v":""},{"$f":"IF(E155<>\"\",IF($C$5=0,0,CUMIPMT($C$6/$C$8,$C$7*$C$8,$C$5,E155,E155,Pilotage!$D$25)),\"\")","v":""},{"$f":"IF(E155<>\"\",IF($C$5=0,0,$C$5+CUMPRINC($C$6/$C$8,$C$7*$C$8,$C$5,1,E155,Pilotage!$D$25)),\"\")","v":""},null,null,null,null,null,{"$f":"IF(K155<>\"\",-1*CUMIPMT($C$6/$C$8,$C$7*$C$8,$C$5,M155,N155,Pilotage!$D$25),\"\")","v":""}]
[null,null,null,null,"","",{"$f":"IF(E156<>\"\",IF($C$5=0,0,CUMIPMT($C$6/$C$8,$C$7*$C$8,$C$5,1,E156,Pilotage!$D$25)),\"\")","v":""},{"$f":"IF(E156<>\"\",IF($C$5=0,0,CUMIPMT($C$6/$C$8,$C$7*$C$8,$C$5,E156,E156,Pilotage!$D$25)),\"\")","v":""},{"$f":"IF(E156<>\"\",IF($C$5=0,0,$C$5+CUMPRINC($C$6/$C$8,$C$7*$C$8,$C$5,1,E156,Pilotage!$D$25)),\"\")","v":""},null,null,null,null,null,{"$f":"IF(K156<>\"\",-1*CUMIPMT($C$6/$C$8,$C$7*$C$8,$C$5,M156,N156,Pilotage!$D$25),\"\")","v":""}]
[null,null,null,null,"","",{"$f":"IF(E157<>\"\",IF($C$5=0,0,CUMIPMT($C$6/$C$8,$C$7*$C$8,$C$5,1,E157,Pilotage!$D$25)),\"\")","v":""},{"$f":"IF(E157<>\"\",IF($C$5=0,0,CUMIPMT($C$6/$C$8,$C$7*$C$8,$C$5,E157,E157,Pilotage!$D$25)),\"\")","v":""},{"$f":"IF(E157<>\"\",IF($C$5=0,0,$C$5+CUMPRINC($C$6/$C$8,$C$7*$C$8,$C$5,1,E157,Pilotage!$D$25)),\"\")","v":""},null,null,null,null,null,{"$f":"IF(K157<>\"\",-1*CUMIPMT($C$6/$C$8,$C$7*$C$8,$C$5,M157,N157,Pilotage!$D$25),\"\")","v":""}]
[null,null,null,null,"","",{"$f":"IF(E158<>\"\",IF($C$5=0,0,CUMIPMT($C$6/$C$8,$C$7*$C$8,$C$5,1,E158,Pilotage!$D$25)),\"\")","v":""},{"$f":"IF(E158<>\"\",IF($C$5=0,0,CUMIPMT($C$6/$C$8,$C$7*$C$8,$C$5,E158,E158,Pilotage!$D$25)),\"\")","v":""},{"$f":"IF(E158<>\"\",IF($C$5=0,0,$C$5+CUMPRINC($C$6/$C$8,$C$7*$C$8,$C$5,1,E158,Pilotage!$D$25)),\"\")","v":""},null,null,null,null,null,{"$f":"IF(K158<>\"\",-1*CUMIPMT($C$6/$C$8,$C$7*$C$8,$C$5,M158,N158,Pilotage!$D$25),\"\")","v":""}]
[null,null,null,null,"","",{"$f":"IF(E159<>\"\",IF($C$5=0,0,CUMIPMT($C$6/$C$8,$C$7*$C$8,$C$5,1,E159,Pilotage!$D$25)),\"\")","v":""},{"$f":"IF(E159<>\"\",IF($C$5=0,0,CUMIPMT($C$6/$C$8,$C$7*$C$8,$C$5,E159,E159,Pilotage!$D$25)),\"\")","v":""},{"$f":"IF(E159<>\"\",IF($C$5=0,0,$C$5+CUMPRINC($C$6/$C$8,$C$7*$C$8,$C$5,1,E159,Pilotage!$D$25)),\"\")","v":""},null,null,null,null,null,{"$f":"IF(K159<>\"\",-1*CUMIPMT($C$6/$C$8,$C$7*$C$8,$C$5,M159,N159,Pilotage!$D$25),\"\")","v":""}]
[null,null,null,null,"","",{"$f":"IF(E160<>\"\",IF($C$5=0,0,CUMIPMT($C$6/$C$8,$C$7*$C$8,$C$5,1,E160,Pilotage!$D$25)),\"\")","v":""},{"$f":"IF(E160<>\"\",IF($C$5=0,0,CUMIPMT($C$6/$C$8,$C$7*$C$8,$C$5,E160,E160,Pilotage!$D$25)),\"\")","v":""},{"$f":"IF(E160<>\"\",IF($C$5=0,0,$C$5+CUMPRINC($C$6/$C$8,$C$7*$C$8,$C$5,1,E160,Pilotage!$D$25)),\"\")","v":""},null,null,null,null,null,{"$f":"IF(K160<>\"\",-1*CUMIPMT($C$6/$C$8,$C$7*$C$8,$C$5,M160,N160,Pilotage!$D$25),\"\")","v":""}]
[null,null,null,null,"","",{"$f":"IF(E161<>\"\",IF($C$5=0,0,CUMIPMT($C$6/$C$8,$C$7*$C$8,$C$5,1,E161,Pilotage!$D$25)),\"\")","v":""},{"$f":"IF(E161<>\"\",IF($C$5=0,0,CUMIPMT($C$6/$C$8,$C$7*$C$8,$C$5,E161,E161,Pilotage!$D$25)),\"\")","v":""},{"$f":"IF(E161<>\"\",IF($C$5=0,0,$C$5+CUMPRINC($C$6/$C$8,$C$7*$C$8,$C$5,1,E161,Pilotage!$D$25)),\"\")","v":""},null,null,null,null,null,{"$f":"IF(K161<>\"\",-1*CUMIPMT($C$6/$C$8,$C$7*$C$8,$C$5,M161,N161,Pilotage!$D$25),\"\")","v":""}]
[null,null,null,null,"","",{"$f":"IF(E162<>\"\",IF($C$5=0,0,CUMIPMT($C$6/$C$8,$C$7*$C$8,$C$5,1,E162,Pilotage!$D$25)),\"\")","v":""},{"$f":"IF(E162<>\"\",IF($C$5=0,0,CUMIPMT($C$6/$C$8,$C$7*$C$8,$C$5,E162,E162,Pilotage!$D$25)),\"\")","v":""},{"$f":"IF(E162<>\"\",IF($C$5=0,0,$C$5+CUMPRINC($C$6/$C$8,$C$7*$C$8,$C$5,1,E162,Pilotage!$D$25)),\"\")","v":""},null,null,null,null,null,{"$f":"IF(K162<>\"\",-1*CUMIPMT($C$6/$C$8,$C$7*$C$8,$C$5,M162,N162,Pilotage!$D$25),\"\")","v":""}]
[null,null,null,null,"","",{"$f":"IF(E163<>\"\",IF($C$5=0,0,CUMIPMT($C$6/$C$8,$C$7*$C$8,$C$5,1,E163,Pilotage!$D$25)),\"\")","v":""},{"$f":"IF(E163<>\"\",IF($C$5=0,0,CUMIPMT($C$6/$C$8,$C$7*$C$8,$C$5,E163,E163,Pilotage!$D$25)),\"\")","v":""},{"$f":"IF(E163<>\"\",IF($C$5=0,0,$C$5+CUMPRINC($C$6/$C$8,$C$7*$C$8,$C$5,1,E163,Pilotage!$D$25)),\"\")","v":""},null,null,null,null,null,{"$f":"IF(K163<>\"\",-1*CUMIPMT($C$6/$C$8,$C$7*$C$8,$C$5,M163,N163,Pilotage!$D$25),\"\")","v":""}]
[null,null,null,null,"","",{"$f":"IF(E164<>\"\",IF($C$5=0,0,CUMIPMT($C$6/$C$8,$C$7*$C$8,$C$5,1,E164,Pilotage!$D$25)),\"\")","v":""},{"$f":"IF(E164<>\"\",IF($C$5=0,0,CUMIPMT($C$6/$C$8,$C$7*$C$8,$C$5,E164,E164,Pilotage!$D$25)),\"\")","v":""},{"$f":"IF(E164<>\"\",IF($C$5=0,0,$C$5+CUMPRINC($C$6/$C$8,$C$7*$C$8,$C$5,1,E164,Pilotage!$D$25)),\"\")","v":""},null,null,null,null,null,{"$f":"IF(K164<>\"\",-1*CUMIPMT($C$6/$C$8,$C$7*$C$8,$C$5,M164,N164,Pilotage!$D$25),\"\")","v":""}]
[null,null,null,null,"","",{"$f":"IF(E165<>\"\",IF($C$5=0,0,CUMIPMT($C$6/$C$8,$C$7*$C$8,$C$5,1,E165,Pilotage!$D$25)),\"\")","v":""},{"$f":"IF(E165<>\"\",IF($C$5=0,0,CUMIPMT($C$6/$C$8,$C$7*$C$8,$C$5,E165,E165,Pilotage!$D$25)),\"\")","v":""},{"$f":"IF(E165<>\"\",IF($C$5=0,0,$C$5+CUMPRINC($C$6/$C$8,$C$7*$C$8,$C$5,1,E165,Pilotage!$D$25)),\"\")","v":""},null,null,null,null,null,{"$f":"IF(K165<>\"\",-1*CUMIPMT($C$6/$C$8,$C$7*$C$8,$C$5,M165,N165,Pilotage!$D$25),\"\")","v":""}]
[null,null,null,null,"","",{"$f":"IF(E166<>\"\",IF($C$5=0,0,CUMIPMT($C$6/$C$8,$C$7*$C$8,$C$5,1,E166,Pilotage!$D$25)),\"\")","v":""},{"$f":"IF(E166<>\"\",IF($C$5=0,0,CUMIPMT($C$6/$C$8,$C$7*$C$8,$C$5,E166,E166,Pilotage!$D$25)),\"\")","v":""},{"$f":"IF(E166<>\"\",IF($C$5=0,0,$C$5+CUMPRINC($C$6/$C$8,$C$7*$C$8,$C$5,1,E166,Pilotage!$D$25)),\"\")","v":""},null,null,null,null,null,{"$f":"IF(K166<>\"\",-1*CUMIPMT($C$6/$C$8,$C$7*$C$8,$C$5,M166,N166,Pilotage!$D$25),\"\")","v":""}]
[null,null,null,null,"","",{"$f":"IF(E167<>\"\",IF($C$5=0,0,CUMIPMT($C$6/$C$8,$C$7*$C$8,$C$5,1,E167,Pilotage!$D$25)),\"\")","v":""},{"$f":"IF(E167<>\"\",IF($C$5=0,0,CUMIPMT($C$6/$C$8,$C$7*$C$8,$C$5,E167,E167,Pilotage!$D$25)),\"\")","v":""},{"$f":"IF(E167<>\"\",IF($C$5=0,0,$C$5+CUMPRINC($C$6/$C$8,$C$7*$C$8,$C$5,1,E167,Pilotage!$D$25)),\"\")","v":""},null,null,null,null,null,{"$f":"IF(K167<>\"\",-1*CUMIPMT($C$6/$C$8,$C$7*$C$8,$C$5,M167,N167,Pilotage!$D$25),\"\")","v":""}]
[null,null,null,null,"","",{"$f":"IF(E168<>\"\",IF($C$5=0,0,CUMIPMT($C$6/$C$8,$C$7*$C$8,$C$5,1,E168,Pilotage!$D$25)),\"\")","v":""},{"$f":"IF(E168<>\"\",IF($C$5=0,0,CUMIPMT($C$6/$C$8,$C$7*$C$8,$C$5,E168,E168,Pilotage!$D$25)),\"\")","v":""},{"$f":"IF(E168<>\"\",IF($C$5=0,0,$C$5+CUMPRINC($C$6/$C$8,$C$7*$C$8,$C$5,1,E168,Pilotage!$D$25)),\"\")","v":""},null,null,null,null,null,{"$f":"IF(K168<>\"\",-1*CUMIPMT($C$6/$C$8,$C$7*$C$8,$C$5,M168,N168,Pilotage!$D$25),\"\")","v":""}]
[null,null,null,null,"","",{"$f":"IF(E169<>\"\",IF($C$5=0,0,CUMIPMT($C$6/$C$8,$C$7*$C$8,$C$5,1,E169,Pilotage!$D$25)),\"\")","v":""},{"$f":"IF(E169<>\"\",IF($C$5=0,0,CUMIPMT($C$6/$C$8,$C$7*$C$8,$C$5,E169,E169,Pilotage!$D$25)),\"\")","v":""},{"$f":"IF(E169<>\"\",IF($C$5=0,0,$C$5+CUMPRINC($C$6/$C$8,$C$7*$C$8,$C$5,1,E169,Pilotage!$D$25)),\"\")","v":""},null,null,null,null,null,{"$f":"IF(K169<>\"\",-1*CUMIPMT($C$6/$C$8,$C$7*$C$8,$C$5,M169,N169,Pilotage!$D$25),\"\")","v":""}]
[null,null,null,null,"","",{"$f":"IF(E170<>\"\",IF($C$5=0,0,CUMIPMT($C$6/$C$8,$C$7*$C$8,$C$5,1,E170,Pilotage!$D$25)),\"\")","v":""},{"$f":"IF(E170<>\"\",IF($C$5=0,0,CUMIPMT($C$6/$C$8,$C$7*$C$8,$C$5,E170,E170,Pilotage!$D$25)),\"\")","v":""},{"$f":"IF(E170<>\"\",IF($C$5=0,0,$C$5+CUMPRINC($C$6/$C$8,$C$7*$C$8,$C$5,1,E170,Pilotage!$D$25)),\"\")","v":""},null,null,null,null,null,{"$f":"IF(K170<>\"\",-1*CUMIPMT($C$6/$C$8,$C$7*$C$8,$C$5,M170,N170,Pilotage!$D$25),\"\")","v":""}]
[null,null,null,null,"","",{"$f":"IF(E171<>\"\",IF($C$5=0,0,CUMIPMT($C$6/$C$8,$C$7*$C$8,$C$5,1,E171,Pilotage!$D$25)),\"\")","v":""},{"$f":"IF(E171<>\"\",IF($C$5=0,0,CUMIPMT($C$6/$C$8,$C$7*$C$8,$C$5,E171,E171,Pilotage!$D$25)),\"\")","v":""},{"$f":"IF(E171<>\"\",IF($C$5=0,0,$C$5+CUMPRINC($C$6/$C$8,$C$7*$C$8,$C$5,1,E171,Pilotage!$D$25)),\"\")","v":""},null,null,null,null,null,{"$f":"IF(K171<>\"\",-1*CUMIPMT($C$6/$C$8,$C$7*$C$8,$C$5,M171,N171,Pilotage!$D$25),\"\")","v":""}]
[null,null,null,null,"","",{"$f":"IF(E172<>\"\",IF($C$5=0,0,CUMIPMT($C$6/$C$8,$C$7*$C$8,$C$5,1,E172,Pilotage!$D$25)),\"\")","v":""},{"$f":"IF(E172<>\"\",IF($C$5=0,0,CUMIPMT($C$6/$C$8,$C$7*$C$8,$C$5,E172,E172,Pilotage!$D$25)),\"\")","v":""},{"$f":"IF(E172<>\"\",IF($C$5=0,0,$C$5+CUMPRINC($C$6/$C$8,$C$7*$C$8,$C$5,1,E172,Pilotage!$D$25)),\"\")","v":""},null,null,null,null,null,{"$f":"IF(K172<>\"\",-1*CUMIPMT($C$6/$C$8,$C$7*$C$8,$C$5,M172,N172,Pilotage!$D$25),\"\")","v":""}]
[null,null,null,null,"","",{"$f":"IF(E173<>\"\",IF($C$5=0,0,CUMIPMT($C$6/$C$8,$C$7*$C$8,$C$5,1,E173,Pilotage!$D$25)),\"\")","v":""},{"$f":"IF(E173<>\"\",IF($C$5=0,0,CUMIPMT($C$6/$C$8,$C$7*$C$8,$C$5,E173,E173,Pilotage!$D$25)),\"\")","v":""},{"$f":"IF(E173<>\"\",IF($C$5=0,0,$C$5+CUMPRINC($C$6/$C$8,$C$7*$C$8,$C$5,1,E173,Pilotage!$D$25)),\"\")","v":""},null,null,null,null,null,{"$f":"IF(K173<>\"\",-1*CUMIPMT($C$6/$C$8,$C$7*$C$8,$C$5,M173,N173,Pilotage!$D$25),\"\")","v":""}]
[null,null,null,null,"","",{"$f":"IF(E174<>\"\",IF($C$5=0,0,CUMIPMT($C$6/$C$8,$C$7*$C$8,$C$5,1,E174,Pilotage!$D$25)),\"\")","v":""},{"$f":"IF(E174<>\"\",IF($C$5=0,0,CUMIPMT($C$6/$C$8,$C$7*$C$8,$C$5,E174,E174,Pilotage!$D$25)),\"\")","v":""},{"$f":"IF(E174<>\"\",IF($C$5=0,0,$C$5+CUMPRINC($C$6/$C$8,$C$7*$C$8,$C$5,1,E174,Pilotage!$D$25)),\"\")","v":""},null,null,null,null,null,{"$f":"IF(K174<>\"\",-1*CUMIPMT($C$6/$C$8,$C$7*$C$8,$C$5,M174,N174,Pilotage!$D$25),\"\")","v":""}]
[null,null,null,null,"","",{"$f":"IF(E175<>\"\",IF($C$5=0,0,CUMIPMT($C$6/$C$8,$C$7*$C$8,$C$5,1,E175,Pilotage!$D$25)),\"\")","v":""},{"$f":"IF(E175<>\"\",IF($C$5=0,0,CUMIPMT($C$6/$C$8,$C$7*$C$8,$C$5,E175,E175,Pilotage!$D$25)),\"\")","v":""},{"$f":"IF(E175<>\"\",IF($C$5=0,0,$C$5+CUMPRINC($C$6/$C$8,$C$7*$C$8,$C$5,1,E175,Pilotage!$D$25)),\"\")","v":""},null,null,null,null,null,{"$f":"IF(K175<>\"\",-1*CUMIPMT($C$6/$C$8,$C$7*$C$8,$C$5,M175,N175,Pilotage!$D$25),\"\")","v":""}]
[null,null,null,null,"","",{"$f":"IF(E176<>\"\",IF($C$5=0,0,CUMIPMT($C$6/$C$8,$C$7*$C$8,$C$5,1,E176,Pilotage!$D$25)),\"\")","v":""},{"$f":"IF(E176<>\"\",IF($C$5=0,0,CUMIPMT($C$6/$C$8,$C$7*$C$8,$C$5,E176,E176,Pilotage!$D$25)),\"\")","v":""},{"$f":"IF(E176<>\"\",IF($C$5=0,0,$C$5+CUMPRINC($C$6/$C$8,$C$7*$C$8,$C$5,1,E176,Pilotage!$D$25)),\"\")","v":""},null,null,null,null,null,{"$f":"IF(K176<>\"\",-1*CUMIPMT($C$6/$C$8,$C$7*$C$8,$C$5,M176,N176,Pilotage!$D$25),\"\")","v":""}]
[null,null,null,null,"","",{"$f":"IF(E177<>\"\",IF($C$5=0,0,CUMIPMT($C$6/$C$8,$C$7*$C$8,$C$5,1,E177,Pilotage!$D$25)),\"\")","v":""},{"$f":"IF(E177<>\"\",IF($C$5=0,0,CUMIPMT($C$6/$C$8,$C$7*$C$8,$C$5,E177,E177,Pilotage!$D$25)),\"\")","v":""},{"$f":"IF(E177<>\"\",IF($C$5=0,0,$C$5+CUMPRINC($C$6/$C$8,$C$7*$C$8,$C$5,1,E177,Pilotage!$D$25)),\"\")","v":""},null,null,null,null,null,{"$f":"IF(K177<>\"\",-1*CUMIPMT($C$6/$C$8,$C$7*$C$8,$C$5,M177,N177,Pilotage!$D$25),\"\")","v":""}]
[null,null,null,null,"","",{"$f":"IF(E178<>\"\",IF($C$5=0,0,CUMIPMT($C$6/$C$8,$C$7*$C$8,$C$5,1,E178,Pilotage!$D$25)),\"\")","v":""},{"$f":"IF(E178<>\"\",IF($C$5=0,0,CUMIPMT($C$6/$C$8,$C$7*$C$8,$C$5,E178,E178,Pilotage!$D$25)),\"\")","v":""},{"$f":"IF(E178<>\"\",IF($C$5=0,0,$C$5+CUMPRINC($C$6/$C$8,$C$7*$C$8,$C$5,1,E178,Pilotage!$D$25)),\"\")","v":""},null,null,null,null,null,{"$f":"IF(K178<>\"\",-1*CUMIPMT($C$6/$C$8,$C$7*$C$8,$C$5,M178,N178,Pilotage!$D$25),\"\")","v":""}]
[null,null,null,null,"","",{"$f":"IF(E179<>\"\",IF($C$5=0,0,CUMIPMT($C$6/$C$8,$C$7*$C$8,$C$5,1,E179,Pilotage!$D$25)),\"\")","v":""},{"$f":"IF(E179<>\"\",IF($C$5=0,0,CUMIPMT($C$6/$C$8,$C$7*$C$8,$C$5,E179,E179,Pilotage!$D$25)),\"\")","v":""},{"$f":"IF(E179<>\"\",IF($C$5=0,0,$C$5+CUMPRINC($C$6/$C$8,$C$7*$C$8,$C$5,1,E179,Pilotage!$D$25)),\"\")","v":""},null,null,null,null,null,{"$f":"IF(K179<>\"\",-1*CUMIPMT($C$6/$C$8,$C$7*$C$8,$C$5,M179,N179,Pilotage!$D$25),\"\")","v":""}]
[null,null,null,null,"","",{"$f":"IF(E180<>\"\",IF($C$5=0,0,CUMIPMT($C$6/$C$8,$C$7*$C$8,$C$5,1,E180,Pilotage!$D$25)),\"\")","v":""},{"$f":"IF(E180<>\"\",IF($C$5=0,0,CUMIPMT($C$6/$C$8,$C$7*$C$8,$C$5,E180,E180,Pilotage!$D$25)),\"\")","v":""},{"$f":"IF(E180<>\"\",IF($C$5=0,0,$C$5+CUMPRINC($C$6/$C$8,$C$7*$C$8,$C$5,1,E180,Pilotage!$D$25)),\"\")","v":""},null,null,null,null,null,{"$f":"IF(K180<>\"\",-1*CUMIPMT($C$6/$C$8,$C$7*$C$8,$C$5,M180,N180,Pilotage!$D$25),\"\")","v":""}]
[null,null,null,null,"","",{"$f":"IF(E181<>\"\",IF($C$5=0,0,CUMIPMT($C$6/$C$8,$C$7*$C$8,$C$5,1,E181,Pilotage!$D$25)),\"\")","v":""},{"$f":"IF(E181<>\"\",IF($C$5=0,0,CUMIPMT($C$6/$C$8,$C$7*$C$8,$C$5,E181,E181,Pilotage!$D$25)),\"\")","v":""},{"$f":"IF(E181<>\"\",IF($C$5=0,0,$C$5+CUMPRINC($C$6/$C$8,$C$7*$C$8,$C$5,1,E181,Pilotage!$D$25)),\"\")","v":""},null,null,null,null,null,{"$f":"IF(K181<>\"\",-1*CUMIPMT($C$6/$C$8,$C$7*$C$8,$C$5,M181,N181,Pilotage!$D$25),\"\")","v":""}]
[null,null,null,null,"","",{"$f":"IF(E182<>\"\",IF($C$5=0,0,CUMIPMT($C$6/$C$8,$C$7*$C$8,$C$5,1,E182,Pilotage!$D$25)),\"\")","v":""},{"$f":"IF(E182<>\"\",IF($C$5=0,0,CUMIPMT($C$6/$C$8,$C$7*$C$8,$C$5,E182,E182,Pilotage!$D$25)),\"\")","v":""},{"$f":"IF(E182<>\"\",IF($C$5=0,0,$C$5+CUMPRINC($C$6/$C$8,$C$7*$C$8,$C$5,1,E182,Pilotage!$D$25)),\"\")","v":""},null,null,null,null,null,{"$f":"IF(K182<>\"\",-1*CUMIPMT($C$6/$C$8,$C$7*$C$8,$C$5,M182,N182,Pilotage!$D$25),\"\")","v":""}]
[null,null,null,null,"","",{"$f":"IF(E183<>\"\",IF($C$5=0,0,CUMIPMT($C$6/$C$8,$C$7*$C$8,$C$5,1,E183,Pilotage!$D$25)),\"\")","v":""},{"$f":"IF(E183<>\"\",IF($C$5=0,0,CUMIPMT($C$6/$C$8,$C$7*$C$8,$C$5,E183,E183,Pilotage!$D$25)),\"\")","v":""},{"$f":"IF(E183<>\"\",IF($C$5=0,0,$C$5+CUMPRINC($C$6/$C$8,$C$7*$C$8,$C$5,1,E183,Pilotage!$D$25)),\"\")","v":""},null,null,null,null,null,{"$f":"IF(K183<>\"\",-1*CUMIPMT($C$6/$C$8,$C$7*$C$8,$C$5,M183,N183,Pilotage!$D$25),\"\")","v":""}]
[null,null,null,null,"","",{"$f":"IF(E184<>\"\",IF($C$5=0,0,CUMIPMT($C$6/$C$8,$C$7*$C$8,$C$5,1,E184,Pilotage!$D$25)),\"\")","v":""},{"$f":"IF(E184<>\"\",IF($C$5=0,0,CUMIPMT($C$6/$C$8,$C$7*$C$8,$C$5,E184,E184,Pilotage!$D$25)),\"\")","v":""},{"$f":"IF(E184<>\"\",IF($C$5=0,0,$C$5+CUMPRINC($C$6/$C$8,$C$7*$C$8,$C$5,1,E184,Pilotage!$D$25)),\"\")","v":""},null,null,null,null,null,{"$f":"IF(K184<>\"\",-1*CUMIPMT($C$6/$C$8,$C$7*$C$8,$C$5,M184,N184,Pilotage!$D$25),\"\")","v":""}]
[null,null,null,null,"","",{"$f":"IF(E185<>\"\",IF($C$5=0,0,CUMIPMT($C$6/$C$8,$C$7*$C$8,$C$5,1,E185,Pilotage!$D$25)),\"\")","v":""},{"$f":"IF(E185<>\"\",IF($C$5=0,0,CUMIPMT($C$6/$C$8,$C$7*$C$8,$C$5,E185,E185,Pilotage!$D$25)),\"\")","v":""},{"$f":"IF(E185<>\"\",IF($C$5=0,0,$C$5+CUMPRINC($C$6/$C$8,$C$7*$C$8,$C$5,1,E185,Pilotage!$D$25)),\"\")","v":""},null,null,null,null,null,{"$f":"IF(K185<>\"\",-1*CUMIPMT($C$6/$C$8,$C$7*$C$8,$C$5,M185,N185,Pilotage!$D$25),\"\")","v":""}]
[null,null,null,null,"","",{"$f":"IF(E186<>\"\",IF($C$5=0,0,CUMIPMT($C$6/$C$8,$C$7*$C$8,$C$5,1,E186,Pilotage!$D$25)),\"\")","v":""},{"$f":"IF(E186<>\"\",IF($C$5=0,0,CUMIPMT($C$6/$C$8,$C$7*$C$8,$C$5,E186,E186,Pilotage!$D$25)),\"\")","v":""},{"$f":"IF(E186<>\"\",IF($C$5=0,0,$C$5+CUMPRINC($C$6/$C$8,$C$7*$C$8,$C$5,1,E186,Pilotage!$D$25)),\"\")","v":""},null,null,null,null,null,{"$f":"IF(K186<>\"\",-1*CUMIPMT($C$6/$C$8,$C$7*$C$8,$C$5,M186,N186,Pilotage!$D$25),\"\")","v":""}]
[null,null,null,null,"","",{"$f":"IF(E187<>\"\",IF($C$5=0,0,CUMIPMT($C$6/$C$8,$C$7*$C$8,$C$5,1,E187,Pilotage!$D$25)),\"\")","v":""},{"$f":"IF(E187<>\"\",IF($C$5=0,0,CUMIPMT($C$6/$C$8,$C$7*$C$8,$C$5,E187,E187,Pilotage!$D$25)),\"\")","v":""},{"$f":"IF(E187<>\"\",IF($C$5=0,0,$C$5+CUMPRINC($C$6/$C$8,$C$7*$C$8,$C$5,1,E187,Pilotage!$D$25)),\"\")","v":""},null,null,null,null,null,{"$f":"IF(K187<>\"\",-1*CUMIPMT($C$6/$C$8,$C$7*$C$8,$C$5,M187,N187,Pilotage!$D$25),\"\")","v":""}]
[null,null,null,null,"","",{"$f":"IF(E188<>\"\",IF($C$5=0,0,CUMIPMT($C$6/$C$8,$C$7*$C$8,$C$5,1,E188,Pilotage!$D$25)),\"\")","v":""},{"$f":"IF(E188<>\"\",IF($C$5=0,0,CUMIPMT($C$6/$C$8,$C$7*$C$8,$C$5,E188,E188,Pilotage!$D$25)),\"\")","v":""},{"$f":"IF(E188<>\"\",IF($C$5=0,0,$C$5+CUMPRINC($C$6/$C$8,$C$7*$C$8,$C$5,1,E188,Pilotage!$D$25)),\"\")","v":""},null,null,null,null,null,{"$f":"IF(K188<>\"\",-1*CUMIPMT($C$6/$C$8,$C$7*$C$8,$C$5,M188,N188,Pilotage!$D$25),\"\")","v":""}]
[null,null,null,null,"","",{"$f":"IF(E189<>\"\",IF($C$5=0,0,CUMIPMT($C$6/$C$8,$C$7*$C$8,$C$5,1,E189,Pilotage!$D$25)),\"\")","v":""},{"$f":"IF(E189<>\"\",IF($C$5=0,0,CUMIPMT($C$6/$C$8,$C$7*$C$8,$C$5,E189,E189,Pilotage!$D$25)),\"\")","v":""},{"$f":"IF(E189<>\"\",IF($C$5=0,0,$C$5+CUMPRINC($C$6/$C$8,$C$7*$C$8,$C$5,1,E189,Pilotage!$D$25)),\"\")","v":""},null,null,null,null,null,{"$f":"IF(K189<>\"\",-1*CUMIPMT($C$6/$C$8,$C$7*$C$8,$C$5,M189,N189,Pilotage!$D$25),\"\")","v":""}]
[null,null,null,null,"","",{"$f":"IF(E190<>\"\",IF($C$5=0,0,CUMIPMT($C$6/$C$8,$C$7*$C$8,$C$5,1,E190,Pilotage!$D$25)),\"\")","v":""},{"$f":"IF(E190<>\"\",IF($C$5=0,0,CUMIPMT($C$6/$C$8,$C$7*$C$8,$C$5,E190,E190,Pilotage!$D$25)),\"\")","v":""},{"$f":"IF(E190<>\"\",IF($C$5=0,0,$C$5+CUMPRINC($C$6/$C$8,$C$7*$C$8,$C$5,1,E190,Pilotage!$D$25)),\"\")","v":""},null,null,null,null,null,{"$f":"IF(K190<>\"\",-1*CUMIPMT($C$6/$C$8,$C$7*$C$8,$C$5,M190,N190,Pilotage!$D$25),\"\")","v":""}]
[null,null,null,null,"","",{"$f":"IF(E191<>\"\",IF($C$5=0,0,CUMIPMT($C$6/$C$8,$C$7*$C$8,$C$5,1,E191,Pilotage!$D$25)),\"\")","v":""},{"$f":"IF(E191<>\"\",IF($C$5=0,0,CUMIPMT($C$6/$C$8,$C$7*$C$8,$C$5,E191,E191,Pilotage!$D$25)),\"\")","v":""},{"$f":"IF(E191<>\"\",IF($C$5=0,0,$C$5+CUMPRINC($C$6/$C$8,$C$7*$C$8,$C$5,1,E191,Pilotage!$D$25)),\"\")","v":""},null,null,null,null,null,{"$f":"IF(K191<>\"\",-1*CUMIPMT($C$6/$C$8,$C$7*$C$8,$C$5,M191,N191,Pilotage!$D$25),\"\")","v":""}]
[null,null,null,null,"","",{"$f":"IF(E192<>\"\",IF($C$5=0,0,CUMIPMT($C$6/$C$8,$C$7*$C$8,$C$5,1,E192,Pilotage!$D$25)),\"\")","v":""},{"$f":"IF(E192<>\"\",IF($C$5=0,0,CUMIPMT($C$6/$C$8,$C$7*$C$8,$C$5,E192,E192,Pilotage!$D$25)),\"\")","v":""},{"$f":"IF(E192<>\"\",IF($C$5=0,0,$C$5+CUMPRINC($C$6/$C$8,$C$7*$C$8,$C$5,1,E192,Pilotage!$D$25)),\"\")","v":""},null,null,null,null,null,{"$f":"IF(K192<>\"\",-1*CUMIPMT($C$6/$C$8,$C$7*$C$8,$C$5,M192,N192,Pilotage!$D$25),\"\")","v":""}]
[null,null,null,null,"","",{"$f":"IF(E193<>\"\",IF($C$5=0,0,CUMIPMT($C$6/$C$8,$C$7*$C$8,$C$5,1,E193,Pilotage!$D$25)),\"\")","v":""},{"$f":"IF(E193<>\"\",IF($C$5=0,0,CUMIPMT($C$6/$C$8,$C$7*$C$8,$C$5,E193,E193,Pilotage!$D$25)),\"\")","v":""},{"$f":"IF(E193<>\"\",IF($C$5=0,0,$C$5+CUMPRINC($C$6/$C$8,$C$7*$C$8,$C$5,1,E193,Pilotage!$D$25)),\"\")","v":""},null,null,null,null,null,{"$f":"IF(K193<>\"\",-1*CUMIPMT($C$6/$C$8,$C$7*$C$8,$C$5,M193,N193,Pilotage!$D$25),\"\")","v":""}]
[null,null,null,null,"","",{"$f":"IF(E194<>\"\",IF($C$5=0,0,CUMIPMT($C$6/$C$8,$C$7*$C$8,$C$5,1,E194,Pilotage!$D$25)),\"\")","v":""},{"$f":"IF(E194<>\"\",IF($C$5=0,0,CUMIPMT($C$6/$C$8,$C$7*$C$8,$C$5,E194,E194,Pilotage!$D$25)),\"\")","v":""},{"$f":"IF(E194<>\"\",IF($C$5=0,0,$C$5+CUMPRINC($C$6/$C$8,$C$7*$C$8,$C$5,1,E194,Pilotage!$D$25)),\"\")","v":""},null,null,null,null,null,{"$f":"IF(K194<>\"\",-1*CUMIPMT($C$6/$C$8,$C$7*$C$8,$C$5,M194,N194,Pilotage!$D$25),\"\")","v":""}]
[null,null,null,null,"","",{"$f":"IF(E195<>\"\",IF($C$5=0,0,CUMIPMT($C$6/$C$8,$C$7*$C$8,$C$5,1,E195,Pilotage!$D$25)),\"\")","v":""},{"$f":"IF(E195<>\"\",IF($C$5=0,0,CUMIPMT($C$6/$C$8,$C$7*$C$8,$C$5,E195,E195,Pilotage!$D$25)),\"\")","v":""},{"$f":"IF(E195<>\"\",IF($C$5=0,0,$C$5+CUMPRINC($C$6/$C$8,$C$7*$C$8,$C$5,1,E195,Pilotage!$D$25)),\"\")","v":""},null,null,null,null,null,{"$f":"IF(K195<>\"\",-1*CUMIPMT($C$6/$C$8,$C$7*$C$8,$C$5,M195,N195,Pilotage!$D$25),\"\")","v":""}]
[null,null,null,null,"","",{"$f":"IF(E196<>\"\",IF($C$5=0,0,CUMIPMT($C$6/$C$8,$C$7*$C$8,$C$5,1,E196,Pilotage!$D$25)),\"\")","v":""},{"$f":"IF(E196<>\"\",IF($C$5=0,0,CUMIPMT($C$6/$C$8,$C$7*$C$8,$C$5,E196,E196,Pilotage!$D$25)),\"\")","v":""},{"$f":"IF(E196<>\"\",IF($C$5=0,0,$C$5+CUMPRINC($C$6/$C$8,$C$7*$C$8,$C$5,1,E196,Pilotage!$D$25)),\"\")","v":""},null,null,null,null,null,{"$f":"IF(K196<>\"\",-1*CUMIPMT($C$6/$C$8,$C$7*$C$8,$C$5,M196,N196,Pilotage!$D$25),\"\")","v":""}]
[null,null,null,null,"","",{"$f":"IF(E197<>\"\",IF($C$5=0,0,CUMIPMT($C$6/$C$8,$C$7*$C$8,$C$5,1,E197,Pilotage!$D$25)),\"\")","v":""},{"$f":"IF(E197<>\"\",IF($C$5=0,0,CUMIPMT($C$6/$C$8,$C$7*$C$8,$C$5,E197,E197,Pilotage!$D$25)),\"\")","v":""},{"$f":"IF(E197<>\"\",IF($C$5=0,0,$C$5+CUMPRINC($C$6/$C$8,$C$7*$C$8,$C$5,1,E197,Pilotage!$D$25)),\"\")","v":""},null,null,null,null,null,{"$f":"IF(K197<>\"\",-1*CUMIPMT($C$6/$C$8,$C$7*$C$8,$C$5,M197,N197,Pilotage!$D$25),\"\")","v":""}]
[null,null,null,null,"","",{"$f":"IF(E198<>\"\",IF($C$5=0,0,CUMIPMT($C$6/$C$8,$C$7*$C$8,$C$5,1,E198,Pilotage!$D$25)),\"\")","v":""},{"$f":"IF(E198<>\"\",IF($C$5=0,0,CUMIPMT($C$6/$C$8,$C$7*$C$8,$C$5,E198,E198,Pilotage!$D$25)),\"\")","v":""},{"$f":"IF(E198<>\"\",IF($C$5=0,0,$C$5+CUMPRINC($C$6/$C$8,$C$7*$C$8,$C$5,1,E198,Pilotage!$D$25)),\"\")","v":""},null,null,null,null,null,{"$f":"IF(K198<>\"\",-1*CUMIPMT($C$6/$C$8,$C$7*$C$8,$C$5,M198,N198,Pilotage!$D$25),\"\")","v":""}]
[null,null,null,null,"","",{"$f":"IF(E199<>\"\",IF($C$5=0,0,CUMIPMT($C$6/$C$8,$C$7*$C$8,$C$5,1,E199,Pilotage!$D$25)),\"\")","v":""},{"$f":"IF(E199<>\"\",IF($C$5=0,0,CUMIPMT($C$6/$C$8,$C$7*$C$8,$C$5,E199,E199,Pilotage!$D$25)),\"\")","v":""},{"$f":"IF(E199<>\"\",IF($C$5=0,0,$C$5+CUMPRINC($C$6/$C$8,$C$7*$C$8,$C$5,1,E199,Pilotage!$D$25)),\"\")","v":""},null,null,null,null,null,{"$f":"IF(K199<>\"\",-1*CUMIPMT($C$6/$C$8,$C$7*$C$8,$C$5,M199,N199,Pilotage!$D$25),\"\")","v":""}]
[null,null,null,null,{"$f":"IF(E199<$C$10,E199+1,\"\")","v":""},{"$f":"IF(E200<>\"\",EDATE(F199,$C$11),\"\")","v":""},{"$f":"IF(E200<>\"\",IF($C$5=0,0,CUMIPMT($C$6/$C$8,$C$7*$C$8,$C$5,1,E200,Pilotage!$D$25)),\"\")","v":""},{"$f":"IF(E200<>\"\",IF($C$5=0,0,CUMIPMT($C$6/$C$8,$C$7*$C$8,$C$5,E200,E200,Pilotage!$D$25)),\"\")","v":""},{"$f":"IF(E200<>\"\",IF($C$5=0,0,$C$5+CUMPRINC($C$6/$C$8,$C$7*$C$8,$C$5,1,E200,Pilotage!$D$25)),\"\")","v":""},null,null,null,null,null,{"$f":"IF(K200<>\"\",-1*CUMIPMT($C$6/$C$8,$C$7*$C$8,$C$5,M200,N200,Pilotage!$D$25),\"\")","v":""}]
[null,null,null,null,"","",{"$f":"IF(E201<>\"\",IF($C$5=0,0,CUMIPMT($C$6/$C$8,$C$7*$C$8,$C$5,1,E201,Pilotage!$D$25)),\"\")","v":""},{"$f":"IF(E201<>\"\",IF($C$5=0,0,CUMIPMT($C$6/$C$8,$C$7*$C$8,$C$5,E201,E201,Pilotage!$D$25)),\"\")","v":""},{"$f":"IF(E201<>\"\",IF($C$5=0,0,$C$5+CUMPRINC($C$6/$C$8,$C$7*$C$8,$C$5,1,E201,Pilotage!$D$25)),\"\")","v":""},null,null,null,null,null,{"$f":"IF(K201<>\"\",-1*CUMIPMT($C$6/$C$8,$C$7*$C$8,$C$5,M201,N201,Pilotage!$D$25),\"\")","v":""}]
[null,null,null,null,"","",{"$f":"IF(E202<>\"\",IF($C$5=0,0,CUMIPMT($C$6/$C$8,$C$7*$C$8,$C$5,1,E202,Pilotage!$D$25)),\"\")","v":""},{"$f":"IF(E202<>\"\",IF($C$5=0,0,CUMIPMT($C$6/$C$8,$C$7*$C$8,$C$5,E202,E202,Pilotage!$D$25)),\"\")","v":""},{"$f":"IF(E202<>\"\",IF($C$5=0,0,$C$5+CUMPRINC($C$6/$C$8,$C$7*$C$8,$C$5,1,E202,Pilotage!$D$25)),\"\")","v":""},null,null,null,null,null,{"$f":"IF(K202<>\"\",-1*CUMIPMT($C$6/$C$8,$C$7*$C$8,$C$5,M202,N202,Pilotage!$D$25),\"\")","v":""}]
[null,null,null,null,"","",{"$f":"IF(E203<>\"\",IF($C$5=0,0,CUMIPMT($C$6/$C$8,$C$7*$C$8,$C$5,1,E203,Pilotage!$D$25)),\"\")","v":""},{"$f":"IF(E203<>\"\",IF($C$5=0,0,CUMIPMT($C$6/$C$8,$C$7*$C$8,$C$5,E203,E203,Pilotage!$D$25)),\"\")","v":""},{"$f":"IF(E203<>\"\",IF($C$5=0,0,$C$5+CUMPRINC($C$6/$C$8,$C$7*$C$8,$C$5,1,E203,Pilotage!$D$25)),\"\")","v":""},null,null,null,null,null,{"$f":"IF(K203<>\"\",-1*CUMIPMT($C$6/$C$8,$C$7*$C$8,$C$5,M203,N203,Pilotage!$D$25),\"\")","v":""}]
[null,null,null,null,"","",{"$f":"IF(E204<>\"\",IF($C$5=0,0,CUMIPMT($C$6/$C$8,$C$7*$C$8,$C$5,1,E204,Pilotage!$D$25)),\"\")","v":""},{"$f":"IF(E204<>\"\",IF($C$5=0,0,CUMIPMT($C$6/$C$8,$C$7*$C$8,$C$5,E204,E204,Pilotage!$D$25)),\"\")","v":""},{"$f":"IF(E204<>\"\",IF($C$5=0,0,$C$5+CUMPRINC($C$6/$C$8,$C$7*$C$8,$C$5,1,E204,Pilotage!$D$25)),\"\")","v":""},null,null,null,null,null,{"$f":"IF(K204<>\"\",-1*CUMIPMT($C$6/$C$8,$C$7*$C$8,$C$5,M204,N204,Pilotage!$D$25),\"\")","v":""}]
[null,null,null,null,"","",{"$f":"IF(E205<>\"\",IF($C$5=0,0,CUMIPMT($C$6/$C$8,$C$7*$C$8,$C$5,1,E205,Pilotage!$D$25)),\"\")","v":""},{"$f":"IF(E205<>\"\",IF($C$5=0,0,CUMIPMT($C$6/$C$8,$C$7*$C$8,$C$5,E205,E205,Pilotage!$D$25)),\"\")","v":""},{"$f":"IF(E205<>\"\",IF($C$5=0,0,$C$5+CUMPRINC($C$6/$C$8,$C$7*$C$8,$C$5,1,E205,Pilotage!$D$25)),\"\")","v":""},null,null,null,null,null,{"$f":"IF(K205<>\"\",-1*CUMIPMT($C$6/$C$8,$C$7*$C$8,$C$5,M205,N205,Pilotage!$D$25),\"\")","v":""}]
[null,null,null,null,"","",{"$f":"IF(E206<>\"\",IF($C$5=0,0,CUMIPMT($C$6/$C$8,$C$7*$C$8,$C$5,1,E206,Pilotage!$D$25)),\"\")","v":""},{"$f":"IF(E206<>\"\",IF($C$5=0,0,CUMIPMT($C$6/$C$8,$C$7*$C$8,$C$5,E206,E206,Pilotage!$D$25)),\"\")","v":""},{"$f":"IF(E206<>\"\",IF($C$5=0,0,$C$5+CUMPRINC($C$6/$C$8,$C$7*$C$8,$C$5,1,E206,Pilotage!$D$25)),\"\")","v":""},null,null,null,null,null,{"$f":"IF(K206<>\"\",-1*CUMIPMT($C$6/$C$8,$C$7*$C$8,$C$5,M206,N206,Pilotage!$D$25),\"\")","v":""}]
[null,null,null,null,"","",{"$f":"IF(E207<>\"\",IF($C$5=0,0,CUMIPMT($C$6/$C$8,$C$7*$C$8,$C$5,1,E207,Pilotage!$D$25)),\"\")","v":""},{"$f":"IF(E207<>\"\",IF($C$5=0,0,CUMIPMT($C$6/$C$8,$C$7*$C$8,$C$5,E207,E207,Pilotage!$D$25)),\"\")","v":""},{"$f":"IF(E207<>\"\",IF($C$5=0,0,$C$5+CUMPRINC($C$6/$C$8,$C$7*$C$8,$C$5,1,E207,Pilotage!$D$25)),\"\")","v":""},null,null,null,null,null,{"$f":"IF(K207<>\"\",-1*CUMIPMT($C$6/$C$8,$C$7*$C$8,$C$5,M207,N207,Pilotage!$D$25),\"\")","v":""}]
[null,null,null,null,"","",{"$f":"IF(E208<>\"\",IF($C$5=0,0,CUMIPMT($C$6/$C$8,$C$7*$C$8,$C$5,1,E208,Pilotage!$D$25)),\"\")","v":""},{"$f":"IF(E208<>\"\",IF($C$5=0,0,CUMIPMT($C$6/$C$8,$C$7*$C$8,$C$5,E208,E208,Pilotage!$D$25)),\"\")","v":""},{"$f":"IF(E208<>\"\",IF($C$5=0,0,$C$5+CUMPRINC($C$6/$C$8,$C$7*$C$8,$C$5,1,E208,Pilotage!$D$25)),\"\")","v":""},null,null,null,null,null,{"$f":"IF(K208<>\"\",-1*CUMIPMT($C$6/$C$8,$C$7*$C$8,$C$5,M208,N208,Pilotage!$D$25),\"\")","v":""}]
[null,null,null,null,"","",{"$f":"IF(E209<>\"\",IF($C$5=0,0,CUMIPMT($C$6/$C$8,$C$7*$C$8,$C$5,1,E209,Pilotage!$D$25)),\"\")","v":""},{"$f":"IF(E209<>\"\",IF($C$5=0,0,CUMIPMT($C$6/$C$8,$C$7*$C$8,$C$5,E209,E209,Pilotage!$D$25)),\"\")","v":""},{"$f":"IF(E209<>\"\",IF($C$5=0,0,$C$5+CUMPRINC($C$6/$C$8,$C$7*$C$8,$C$5,1,E209,Pilotage!$D$25)),\"\")","v":""},null,null,null,null,null,{"$f":"IF(K209<>\"\",-1*CUMIPMT($C$6/$C$8,$C$7*$C$8,$C$5,M209,N209,Pilotage!$D$25),\"\")","v":""}]
[null,null,null,null,"","",{"$f":"IF(E210<>\"\",IF($C$5=0,0,CUMIPMT($C$6/$C$8,$C$7*$C$8,$C$5,1,E210,Pilotage!$D$25)),\"\")","v":""},{"$f":"IF(E210<>\"\",IF($C$5=0,0,CUMIPMT($C$6/$C$8,$C$7*$C$8,$C$5,E210,E210,Pilotage!$D$25)),\"\")","v":""},{"$f":"IF(E210<>\"\",IF($C$5=0,0,$C$5+CUMPRINC($C$6/$C$8,$C$7*$C$8,$C$5,1,E210,Pilotage!$D$25)),\"\")","v":""},null,null,null,null,null,{"$f":"IF(K210<>\"\",-1*CUMIPMT($C$6/$C$8,$C$7*$C$8,$C$5,M210,N210,Pilotage!$D$25),\"\")","v":""}]
[null,null,null,null,"","",{"$f":"IF(E211<>\"\",IF($C$5=0,0,CUMIPMT($C$6/$C$8,$C$7*$C$8,$C$5,1,E211,Pilotage!$D$25)),\"\")","v":""},{"$f":"IF(E211<>\"\",IF($C$5=0,0,CUMIPMT($C$6/$C$8,$C$7*$C$8,$C$5,E211,E211,Pilotage!$D$25)),\"\")","v":""},{"$f":"IF(E211<>\"\",IF($C$5=0,0,$C$5+CUMPRINC($C$6/$C$8,$C$7*$C$8,$C$5,1,E211,Pilotage!$D$25)),\"\")","v":""},null,null,null,null,null,{"$f":"IF(K211<>\"\",-1*CUMIPMT($C$6/$C$8,$C$7*$C$8,$C$5,M211,N211,Pilotage!$D$25),\"\")","v":""}]
[null,null,null,null,"","",{"$f":"IF(E212<>\"\",IF($C$5=0,0,CUMIPMT($C$6/$C$8,$C$7*$C$8,$C$5,1,E212,Pilotage!$D$25)),\"\")","v":""},{"$f":"IF(E212<>\"\",IF($C$5=0,0,CUMIPMT($C$6/$C$8,$C$7*$C$8,$C$5,E212,E212,Pilotage!$D$25)),\"\")","v":""},{"$f":"IF(E212<>\"\",IF($C$5=0,0,$C$5+CUMPRINC($C$6/$C$8,$C$7*$C$8,$C$5,1,E212,Pilotage!$D$25)),\"\")","v":""},null,null,null,null,null,{"$f":"IF(K212<>\"\",-1*CUMIPMT($C$6/$C$8,$C$7*$C$8,$C$5,M212,N212,Pilotage!$D$25),\"\")","v":""}]
[null,null,null,null,"","",{"$f":"IF(E213<>\"\",IF($C$5=0,0,CUMIPMT($C$6/$C$8,$C$7*$C$8,$C$5,1,E213,Pilotage!$D$25)),\"\")","v":""},{"$f":"IF(E213<>\"\",IF($C$5=0,0,CUMIPMT($C$6/$C$8,$C$7*$C$8,$C$5,E213,E213,Pilotage!$D$25)),\"\")","v":""},{"$f":"IF(E213<>\"\",IF($C$5=0,0,$C$5+CUMPRINC($C$6/$C$8,$C$7*$C$8,$C$5,1,E213,Pilotage!$D$25)),\"\")","v":""},null,null,null,null,null,{"$f":"IF(K213<>\"\",-1*CUMIPMT($C$6/$C$8,$C$7*$C$8,$C$5,M213,N213,Pilotage!$D$25),\"\")","v":""}]
[null,null,null,null,"","",{"$f":"IF(E214<>\"\",IF($C$5=0,0,CUMIPMT($C$6/$C$8,$C$7*$C$8,$C$5,1,E214,Pilotage!$D$25)),\"\")","v":""},{"$f":"IF(E214<>\"\",IF($C$5=0,0,CUMIPMT($C$6/$C$8,$C$7*$C$8,$C$5,E214,E214,Pilotage!$D$25)),\"\")","v":""},{"$f":"IF(E214<>\"\",IF($C$5=0,0,$C$5+CUMPRINC($C$6/$C$8,$C$7*$C$8,$C$5,1,E214,Pilotage!$D$25)),\"\")","v":""},null,null,null,null,null,{"$f":"IF(K214<>\"\",-1*CUMIPMT($C$6/$C$8,$C$7*$C$8,$C$5,M214,N214,Pilotage!$D$25),\"\")","v":""}]
[null,null,null,null,"","",{"$f":"IF(E215<>\"\",IF($C$5=0,0,CUMIPMT($C$6/$C$8,$C$7*$C$8,$C$5,1,E215,Pilotage!$D$25)),\"\")","v":""},{"$f":"IF(E215<>\"\",IF($C$5=0,0,CUMIPMT($C$6/$C$8,$C$7*$C$8,$C$5,E215,E215,Pilotage!$D$25)),\"\")","v":""},{"$f":"IF(E215<>\"\",IF($C$5=0,0,$C$5+CUMPRINC($C$6/$C$8,$C$7*$C$8,$C$5,1,E215,Pilotage!$D$25)),\"\")","v":""},null,null,null,null,null,{"$f":"IF(K215<>\"\",-1*CUMIPMT($C$6/$C$8,$C$7*$C$8,$C$5,M215,N215,Pilotage!$D$25),\"\")","v":""}]
[null,null,null,null,"","",{"$f":"IF(E216<>\"\",IF($C$5=0,0,CUMIPMT($C$6/$C$8,$C$7*$C$8,$C$5,1,E216,Pilotage!$D$25)),\"\")","v":""},{"$f":"IF(E216<>\"\",IF($C$5=0,0,CUMIPMT($C$6/$C$8,$C$7*$C$8,$C$5,E216,E216,Pilotage!$D$25)),\"\")","v":""},{"$f":"IF(E216<>\"\",IF($C$5=0,0,$C$5+CUMPRINC($C$6/$C$8,$C$7*$C$8,$C$5,1,E216,Pilotage!$D$25)),\"\")","v":""},null,null,null,null,null,{"$f":"IF(K216<>\"\",-1*CUMIPMT($C$6/$C$8,$C$7*$C$8,$C$5,M216,N216,Pilotage!$D$25),\"\")","v":""}]
[null,null,null,null,"","",{"$f":"IF(E217<>\"\",IF($C$5=0,0,CUMIPMT($C$6/$C$8,$C$7*$C$8,$C$5,1,E217,Pilotage!$D$25)),\"\")","v":""},{"$f":"IF(E217<>\"\",IF($C$5=0,0,CUMIPMT($C$6/$C$8,$C$7*$C$8,$C$5,E217,E217,Pilotage!$D$25)),\"\")","v":""},{"$f":"IF(E217<>\"\",IF($C$5=0,0,$C$5+CUMPRINC($C$6/$C$8,$C$7*$C$8,$C$5,1,E217,Pilotage!$D$25)),\"\")","v":""},null,null,null,null,null,{"$f":"IF(K217<>\"\",-1*CUMIPMT($C$6/$C$8,$C$7*$C$8,$C$5,M217,N217,Pilotage!$D$25),\"\")","v":""}]
[null,null,null,null,"","",{"$f":"IF(E218<>\"\",IF($C$5=0,0,CUMIPMT($C$6/$C$8,$C$7*$C$8,$C$5,1,E218,Pilotage!$D$25)),\"\")","v":""},{"$f":"IF(E218<>\"\",IF($C$5=0,0,CUMIPMT($C$6/$C$8,$C$7*$C$8,$C$5,E218,E218,Pilotage!$D$25)),\"\")","v":""},{"$f":"IF(E218<>\"\",IF($C$5=0,0,$C$5+CUMPRINC($C$6/$C$8,$C$7*$C$8,$C$5,1,E218,Pilotage!$D$25)),\"\")","v":""},null,null,null,null,null,{"$f":"IF(K218<>\"\",-1*CUMIPMT($C$6/$C$8,$C$7*$C$8,$C$5,M218,N218,Pilotage!$D$25),\"\")","v":""}]
[null,null,null,null,"","",{"$f":"IF(E219<>\"\",IF($C$5=0,0,CUMIPMT($C$6/$C$8,$C$7*$C$8,$C$5,1,E219,Pilotage!$D$25)),\"\")","v":""},{"$f":"IF(E219<>\"\",IF($C$5=0,0,CUMIPMT($C$6/$C$8,$C$7*$C$8,$C$5,E219,E219,Pilotage!$D$25)),\"\")","v":""},{"$f":"IF(E219<>\"\",IF($C$5=0,0,$C$5+CUMPRINC($C$6/$C$8,$C$7*$C$8,$C$5,1,E219,Pilotage!$D$25)),\"\")","v":""},null,null,null,null,null,{"$f":"IF(K219<>\"\",-1*CUMIPMT($C$6/$C$8,$C$7*$C$8,$C$5,M219,N219,Pilotage!$D$25),\"\")","v":""}]
[null,null,null,null,"","",{"$f":"IF(E220<>\"\",IF($C$5=0,0,CUMIPMT($C$6/$C$8,$C$7*$C$8,$C$5,1,E220,Pilotage!$D$25)),\"\")","v":""},{"$f":"IF(E220<>\"\",IF($C$5=0,0,CUMIPMT($C$6/$C$8,$C$7*$C$8,$C$5,E220,E220,Pilotage!$D$25)),\"\")","v":""},{"$f":"IF(E220<>\"\",IF($C$5=0,0,$C$5+CUMPRINC($C$6/$C$8,$C$7*$C$8,$C$5,1,E220,Pilotage!$D$25)),\"\")","v":""},null,null,null,null,null,{"$f":"IF(K220<>\"\",-1*CUMIPMT($C$6/$C$8,$C$7*$C$8,$C$5,M220,N220,Pilotage!$D$25),\"\")","v":""}]
[null,null,null,null,"","",{"$f":"IF(E221<>\"\",IF($C$5=0,0,CUMIPMT($C$6/$C$8,$C$7*$C$8,$C$5,1,E221,Pilotage!$D$25)),\"\")","v":""},{"$f":"IF(E221<>\"\",IF($C$5=0,0,CUMIPMT($C$6/$C$8,$C$7*$C$8,$C$5,E221,E221,Pilotage!$D$25)),\"\")","v":""},{"$f":"IF(E221<>\"\",IF($C$5=0,0,$C$5+CUMPRINC($C$6/$C$8,$C$7*$C$8,$C$5,1,E221,Pilotage!$D$25)),\"\")","v":""},null,null,null,null,null,{"$f":"IF(K221<>\"\",-1*CUMIPMT($C$6/$C$8,$C$7*$C$8,$C$5,M221,N221,Pilotage!$D$25),\"\")","v":""}]
[null,null,null,null,"","",{"$f":"IF(E222<>\"\",IF($C$5=0,0,CUMIPMT($C$6/$C$8,$C$7*$C$8,$C$5,1,E222,Pilotage!$D$25)),\"\")","v":""},{"$f":"IF(E222<>\"\",IF($C$5=0,0,CUMIPMT($C$6/$C$8,$C$7*$C$8,$C$5,E222,E222,Pilotage!$D$25)),\"\")","v":""},{"$f":"IF(E222<>\"\",IF($C$5=0,0,$C$5+CUMPRINC($C$6/$C$8,$C$7*$C$8,$C$5,1,E222,Pilotage!$D$25)),\"\")","v":""},null,null,null,null,null,{"$f":"IF(K222<>\"\",-1*CUMIPMT($C$6/$C$8,$C$7*$C$8,$C$5,M222,N222,Pilotage!$D$25),\"\")","v":""}]
[null,null,null,null,"","",{"$f":"IF(E223<>\"\",IF($C$5=0,0,CUMIPMT($C$6/$C$8,$C$7*$C$8,$C$5,1,E223,Pilotage!$D$25)),\"\")","v":""},{"$f":"IF(E223<>\"\",IF($C$5=0,0,CUMIPMT($C$6/$C$8,$C$7*$C$8,$C$5,E223,E223,Pilotage!$D$25)),\"\")","v":""},{"$f":"IF(E223<>\"\",IF($C$5=0,0,$C$5+CUMPRINC($C$6/$C$8,$C$7*$C$8,$C$5,1,E223,Pilotage!$D$25)),\"\")","v":""},null,null,null,null,null,{"$f":"IF(K223<>\"\",-1*CUMIPMT($C$6/$C$8,$C$7*$C$8,$C$5,M223,N223,Pilotage!$D$25),\"\")","v":""}]
[null,null,null,null,"","",{"$f":"IF(E224<>\"\",IF($C$5=0,0,CUMIPMT($C$6/$C$8,$C$7*$C$8,$C$5,1,E224,Pilotage!$D$25)),\"\")","v":""},{"$f":"IF(E224<>\"\",IF($C$5=0,0,CUMIPMT($C$6/$C$8,$C$7*$C$8,$C$5,E224,E224,Pilotage!$D$25)),\"\")","v":""},{"$f":"IF(E224<>\"\",IF($C$5=0,0,$C$5+CUMPRINC($C$6/$C$8,$C$7*$C$8,$C$5,1,E224,Pilotage!$D$25)),\"\")","v":""},null,null,null,null,null,{"$f":"IF(K224<>\"\",-1*CUMIPMT($C$6/$C$8,$C$7*$C$8,$C$5,M224,N224,Pilotage!$D$25),\"\")","v":""}]
[null,null,null,null,"","",{"$f":"IF(E225<>\"\",IF($C$5=0,0,CUMIPMT($C$6/$C$8,$C$7*$C$8,$C$5,1,E225,Pilotage!$D$25)),\"\")","v":""},{"$f":"IF(E225<>\"\",IF($C$5=0,0,CUMIPMT($C$6/$C$8,$C$7*$C$8,$C$5,E225,E225,Pilotage!$D$25)),\"\")","v":""},{"$f":"IF(E225<>\"\",IF($C$5=0,0,$C$5+CUMPRINC($C$6/$C$8,$C$7*$C$8,$C$5,1,E225,Pilotage!$D$25)),\"\")","v":""},null,null,null,null,null,{"$f":"IF(K225<>\"\",-1*CUMIPMT($C$6/$C$8,$C$7*$C$8,$C$5,M225,N225,Pilotage!$D$25),\"\")","v":""}]
[null,null,null,null,"","",{"$f":"IF(E226<>\"\",IF($C$5=0,0,CUMIPMT($C$6/$C$8,$C$7*$C$8,$C$5,1,E226,Pilotage!$D$25)),\"\")","v":""},{"$f":"IF(E226<>\"\",IF($C$5=0,0,CUMIPMT($C$6/$C$8,$C$7*$C$8,$C$5,E226,E226,Pilotage!$D$25)),\"\")","v":""},{"$f":"IF(E226<>\"\",IF($C$5=0,0,$C$5+CUMPRINC($C$6/$C$8,$C$7*$C$8,$C$5,1,E226,Pilotage!$D$25)),\"\")","v":""},null,null,null,null,null,{"$f":"IF(K226<>\"\",-1*CUMIPMT($C$6/$C$8,$C$7*$C$8,$C$5,M226,N226,Pilotage!$D$25),\"\")","v":""}]
[null,null,null,null,"","",{"$f":"IF(E227<>\"\",IF($C$5=0,0,CUMIPMT($C$6/$C$8,$C$7*$C$8,$C$5,1,E227,Pilotage!$D$25)),\"\")","v":""},{"$f":"IF(E227<>\"\",IF($C$5=0,0,CUMIPMT($C$6/$C$8,$C$7*$C$8,$C$5,E227,E227,Pilotage!$D$25)),\"\")","v":""},{"$f":"IF(E227<>\"\",IF($C$5=0,0,$C$5+CUMPRINC($C$6/$C$8,$C$7*$C$8,$C$5,1,E227,Pilotage!$D$25)),\"\")","v":""},null,null,null,null,null,{"$f":"IF(K227<>\"\",-1*CUMIPMT($C$6/$C$8,$C$7*$C$8,$C$5,M227,N227,Pilotage!$D$25),\"\")","v":""}]
[null,null,null,null,"","",{"$f":"IF(E228<>\"\",IF($C$5=0,0,CUMIPMT($C$6/$C$8,$C$7*$C$8,$C$5,1,E228,Pilotage!$D$25)),\"\")","v":""},{"$f":"IF(E228<>\"\",IF($C$5=0,0,CUMIPMT($C$6/$C$8,$C$7*$C$8,$C$5,E228,E228,Pilotage!$D$25)),\"\")","v":""},{"$f":"IF(E228<>\"\",IF($C$5=0,0,$C$5+CUMPRINC($C$6/$C$8,$C$7*$C$8,$C$5,1,E228,Pilotage!$D$25)),\"\")","v":""},null,null,null,null,null,{"$f":"IF(K228<>\"\",-1*CUMIPMT($C$6/$C$8,$C$7*$C$8,$C$5,M228,N228,Pilotage!$D$25),\"\")","v":""}]
[null,null,null,null,"","",{"$f":"IF(E229<>\"\",IF($C$5=0,0,CUMIPMT($C$6/$C$8,$C$7*$C$8,$C$5,1,E229,Pilotage!$D$25)),\"\")","v":""},{"$f":"IF(E229<>\"\",IF($C$5=0,0,CUMIPMT($C$6/$C$8,$C$7*$C$8,$C$5,E229,E229,Pilotage!$D$25)),\"\")","v":""},{"$f":"IF(E229<>\"\",IF($C$5=0,0,$C$5+CUMPRINC($C$6/$C$8,$C$7*$C$8,$C$5,1,E229,Pilotage!$D$25)),\"\")","v":""},null,null,null,null,null,{"$f":"IF(K229<>\"\",-1*CUMIPMT($C$6/$C$8,$C$7*$C$8,$C$5,M229,N229,Pilotage!$D$25),\"\")","v":""}]
[null,null,null,null,"","",{"$f":"IF(E230<>\"\",IF($C$5=0,0,CUMIPMT($C$6/$C$8,$C$7*$C$8,$C$5,1,E230,Pilotage!$D$25)),\"\")","v":""},{"$f":"IF(E230<>\"\",IF($C$5=0,0,CUMIPMT($C$6/$C$8,$C$7*$C$8,$C$5,E230,E230,Pilotage!$D$25)),\"\")","v":""},{"$f":"IF(E230<>\"\",IF($C$5=0,0,$C$5+CUMPRINC($C$6/$C$8,$C$7*$C$8,$C$5,1,E230,Pilotage!$D$25)),\"\")","v":""},null,null,null,null,null,{"$f":"IF(K230<>\"\",-1*CUMIPMT($C$6/$C$8,$C$7*$C$8,$C$5,M230,N230,Pilotage!$D$25),\"\")","v":""}]
[null,null,null,null,"","",{"$f":"IF(E231<>\"\",IF($C$5=0,0,CUMIPMT($C$6/$C$8,$C$7*$C$8,$C$5,1,E231,Pilotage!$D$25)),\"\")","v":""},{"$f":"IF(E231<>\"\",IF($C$5=0,0,CUMIPMT($C$6/$C$8,$C$7*$C$8,$C$5,E231,E231,Pilotage!$D$25)),\"\")","v":""},{"$f":"IF(E231<>\"\",IF($C$5=0,0,$C$5+CUMPRINC($C$6/$C$8,$C$7*$C$8,$C$5,1,E231,Pilotage!$D$25)),\"\")","v":""},null,null,null,null,null,{"$f":"IF(K231<>\"\",-1*CUMIPMT($C$6/$C$8,$C$7*$C$8,$C$5,M231,N231,Pilotage!$D$25),\"\")","v":""}]
[null,null,null,null,"","",{"$f":"IF(E232<>\"\",IF($C$5=0,0,CUMIPMT($C$6/$C$8,$C$7*$C$8,$C$5,1,E232,Pilotage!$D$25)),\"\")","v":""},{"$f":"IF(E232<>\"\",IF($C$5=0,0,CUMIPMT($C$6/$C$8,$C$7*$C$8,$C$5,E232,E232,Pilotage!$D$25)),\"\")","v":""},{"$f":"IF(E232<>\"\",IF($C$5=0,0,$C$5+CUMPRINC($C$6/$C$8,$C$7*$C$8,$C$5,1,E232,Pilotage!$D$25)),\"\")","v":""},null,null,null,null,null,{"$f":"IF(K232<>\"\",-1*CUMIPMT($C$6/$C$8,$C$7*$C$8,$C$5,M232,N232,Pilotage!$D$25),\"\")","v":""}]
[null,null,null,null,"","",{"$f":"IF(E233<>\"\",IF($C$5=0,0,CUMIPMT($C$6/$C$8,$C$7*$C$8,$C$5,1,E233,Pilotage!$D$25)),\"\")","v":""},{"$f":"IF(E233<>\"\",IF($C$5=0,0,CUMIPMT($C$6/$C$8,$C$7*$C$8,$C$5,E233,E233,Pilotage!$D$25)),\"\")","v":""},{"$f":"IF(E233<>\"\",IF($C$5=0,0,$C$5+CUMPRINC($C$6/$C$8,$C$7*$C$8,$C$5,1,E233,Pilotage!$D$25)),\"\")","v":""},null,null,null,null,null,{"$f":"IF(K233<>\"\",-1*CUMIPMT($C$6/$C$8,$C$7*$C$8,$C$5,M233,N233,Pilotage!$D$25),\"\")","v":""}]
[null,null,null,null,"","",{"$f":"IF(E234<>\"\",IF($C$5=0,0,CUMIPMT($C$6/$C$8,$C$7*$C$8,$C$5,1,E234,Pilotage!$D$25)),\"\")","v":""},{"$f":"IF(E234<>\"\",IF($C$5=0,0,CUMIPMT($C$6/$C$8,$C$7*$C$8,$C$5,E234,E234,Pilotage!$D$25)),\"\")","v":""},{"$f":"IF(E234<>\"\",IF($C$5=0,0,$C$5+CUMPRINC($C$6/$C$8,$C$7*$C$8,$C$5,1,E234,Pilotage!$D$25)),\"\")","v":""},null,null,null,null,null,{"$f":"IF(K234<>\"\",-1*CUMIPMT($C$6/$C$8,$C$7*$C$8,$C$5,M234,N234,Pilotage!$D$25),\"\")","v":""}]
[null,null,null,null,"","",{"$f":"IF(E235<>\"\",IF($C$5=0,0,CUMIPMT($C$6/$C$8,$C$7*$C$8,$C$5,1,E235,Pilotage!$D$25)),\"\")","v":""},{"$f":"IF(E235<>\"\",IF($C$5=0,0,CUMIPMT($C$6/$C$8,$C$7*$C$8,$C$5,E235,E235,Pilotage!$D$25)),\"\")","v":""},{"$f":"IF(E235<>\"\",IF($C$5=0,0,$C$5+CUMPRINC($C$6/$C$8,$C$7*$C$8,$C$5,1,E235,Pilotage!$D$25)),\"\")","v":""},null,null,null,null,null,{"$f":"IF(K235<>\"\",-1*CUMIPMT($C$6/$C$8,$C$7*$C$8,$C$5,M235,N235,Pilotage!$D$25),\"\")","v":""}]
[null,null,null,null,"","",{"$f":"IF(E236<>\"\",IF($C$5=0,0,CUMIPMT($C$6/$C$8,$C$7*$C$8,$C$5,1,E236,Pilotage!$D$25)),\"\")","v":""},{"$f":"IF(E236<>\"\",IF($C$5=0,0,CUMIPMT($C$6/$C$8,$C$7*$C$8,$C$5,E236,E236,Pilotage!$D$25)),\"\")","v":""},{"$f":"IF(E236<>\"\",IF($C$5=0,0,$C$5+CUMPRINC($C$6/$C$8,$C$7*$C$8,$C$5,1,E236,Pilotage!$D$25)),\"\")","v":""},null,null,null,null,null,{"$f":"IF(K236<>\"\",-1*CUMIPMT($C$6/$C$8,$C$7*$C$8,$C$5,M236,N236,Pilotage!$D$25),\"\")","v":""}]
[null,null,null,null,"","",{"$f":"IF(E237<>\"\",IF($C$5=0,0,CUMIPMT($C$6/$C$8,$C$7*$C$8,$C$5,1,E237,Pilotage!$D$25)),\"\")","v":""},{"$f":"IF(E237<>\"\",IF($C$5=0,0,CUMIPMT($C$6/$C$8,$C$7*$C$8,$C$5,E237,E237,Pilotage!$D$25)),\"\")","v":""},{"$f":"IF(E237<>\"\",IF($C$5=0,0,$C$5+CUMPRINC($C$6/$C$8,$C$7*$C$8,$C$5,1,E237,Pilotage!$D$25)),\"\")","v":""},null,null,null,null,null,{"$f":"IF(K237<>\"\",-1*CUMIPMT($C$6/$C$8,$C$7*$C$8,$C$5,M237,N237,Pilotage!$D$25),\"\")","v":""}]
[null,null,null,null,"","",{"$f":"IF(E238<>\"\",IF($C$5=0,0,CUMIPMT($C$6/$C$8,$C$7*$C$8,$C$5,1,E238,Pilotage!$D$25)),\"\")","v":""},{"$f":"IF(E238<>\"\",IF($C$5=0,0,CUMIPMT($C$6/$C$8,$C$7*$C$8,$C$5,E238,E238,Pilotage!$D$25)),\"\")","v":""},{"$f":"IF(E238<>\"\",IF($C$5=0,0,$C$5+CUMPRINC($C$6/$C$8,$C$7*$C$8,$C$5,1,E238,Pilotage!$D$25)),\"\")","v":""},null,null,null,null,null,{"$f":"IF(K238<>\"\",-1*CUMIPMT($C$6/$C$8,$C$7*$C$8,$C$5,M238,N238,Pilotage!$D$25),\"\")","v":""}]
[null,null,null,null,"","",{"$f":"IF(E239<>\"\",IF($C$5=0,0,CUMIPMT($C$6/$C$8,$C$7*$C$8,$C$5,1,E239,Pilotage!$D$25)),\"\")","v":""},{"$f":"IF(E239<>\"\",IF($C$5=0,0,CUMIPMT($C$6/$C$8,$C$7*$C$8,$C$5,E239,E239,Pilotage!$D$25)),\"\")","v":""},{"$f":"IF(E239<>\"\",IF($C$5=0,0,$C$5+CUMPRINC($C$6/$C$8,$C$7*$C$8,$C$5,1,E239,Pilotage!$D$25)),\"\")","v":""},null,null,null,null,null,{"$f":"IF(K239<>\"\",-1*CUMIPMT($C$6/$C$8,$C$7*$C$8,$C$5,M239,N239,Pilotage!$D$25),\"\")","v":""}]
[null,null,null,null,"","",{"$f":"IF(E240<>\"\",IF($C$5=0,0,CUMIPMT($C$6/$C$8,$C$7*$C$8,$C$5,1,E240,Pilotage!$D$25)),\"\")","v":""},{"$f":"IF(E240<>\"\",IF($C$5=0,0,CUMIPMT($C$6/$C$8,$C$7*$C$8,$C$5,E240,E240,Pilotage!$D$25)),\"\")","v":""},{"$f":"IF(E240<>\"\",IF($C$5=0,0,$C$5+CUMPRINC($C$6/$C$8,$C$7*$C$8,$C$5,1,E240,Pilotage!$D$25)),\"\")","v":""},null,null,null,null,null,{"$f":"IF(K240<>\"\",-1*CUMIPMT($C$6/$C$8,$C$7*$C$8,$C$5,M240,N240,Pilotage!$D$25),\"\")","v":""}]
[null,null,null,null,"","",{"$f":"IF(E241<>\"\",IF($C$5=0,0,CUMIPMT($C$6/$C$8,$C$7*$C$8,$C$5,1,E241,Pilotage!$D$25)),\"\")","v":""},{"$f":"IF(E241<>\"\",IF($C$5=0,0,CUMIPMT($C$6/$C$8,$C$7*$C$8,$C$5,E241,E241,Pilotage!$D$25)),\"\")","v":""},{"$f":"IF(E241<>\"\",IF($C$5=0,0,$C$5+CUMPRINC($C$6/$C$8,$C$7*$C$8,$C$5,1,E241,Pilotage!$D$25)),\"\")","v":""},null,null,null,null,null,{"$f":"IF(K241<>\"\",-1*CUMIPMT($C$6/$C$8,$C$7*$C$8,$C$5,M241,N241,Pilotage!$D$25),\"\")","v":""}]
[null,null,null,null,"","",{"$f":"IF(E242<>\"\",IF($C$5=0,0,CUMIPMT($C$6/$C$8,$C$7*$C$8,$C$5,1,E242,Pilotage!$D$25)),\"\")","v":""},{"$f":"IF(E242<>\"\",IF($C$5=0,0,CUMIPMT($C$6/$C$8,$C$7*$C$8,$C$5,E242,E242,Pilotage!$D$25)),\"\")","v":""},{"$f":"IF(E242<>\"\",IF($C$5=0,0,$C$5+CUMPRINC($C$6/$C$8,$C$7*$C$8,$C$5,1,E242,Pilotage!$D$25)),\"\")","v":""},null,null,null,null,null,{"$f":"IF(K242<>\"\",-1*CUMIPMT($C$6/$C$8,$C$7*$C$8,$C$5,M242,N242,Pilotage!$D$25),\"\")","v":""}]
[null,null,null,null,"","",{"$f":"IF(E243<>\"\",IF($C$5=0,0,CUMIPMT($C$6/$C$8,$C$7*$C$8,$C$5,1,E243,Pilotage!$D$25)),\"\")","v":""},{"$f":"IF(E243<>\"\",IF($C$5=0,0,CUMIPMT($C$6/$C$8,$C$7*$C$8,$C$5,E243,E243,Pilotage!$D$25)),\"\")","v":""},{"$f":"IF(E243<>\"\",IF($C$5=0,0,$C$5+CUMPRINC($C$6/$C$8,$C$7*$C$8,$C$5,1,E243,Pilotage!$D$25)),\"\")","v":""},null,null,null,null,null,{"$f":"IF(K243<>\"\",-1*CUMIPMT($C$6/$C$8,$C$7*$C$8,$C$5,M243,N243,Pilotage!$D$25),\"\")","v":""}]
[null,null,null,null,"","",{"$f":"IF(E244<>\"\",IF($C$5=0,0,CUMIPMT($C$6/$C$8,$C$7*$C$8,$C$5,1,E244,Pilotage!$D$25)),\"\")","v":""},{"$f":"IF(E244<>\"\",IF($C$5=0,0,CUMIPMT($C$6/$C$8,$C$7*$C$8,$C$5,E244,E244,Pilotage!$D$25)),\"\")","v":""},{"$f":"IF(E244<>\"\",IF($C$5=0,0,$C$5+CUMPRINC($C$6/$C$8,$C$7*$C$8,$C$5,1,E244,Pilotage!$D$25)),\"\")","v":""},null,null,null,null,null,{"$f":"IF(K244<>\"\",-1*CUMIPMT($C$6/$C$8,$C$7*$C$8,$C$5,M244,N244,Pilotage!$D$25),\"\")","v":""}]
[null,null,null,null,"","",{"$f":"IF(E245<>\"\",IF($C$5=0,0,CUMIPMT($C$6/$C$8,$C$7*$C$8,$C$5,1,E245,Pilotage!$D$25)),\"\")","v":""},{"$f":"IF(E245<>\"\",IF($C$5=0,0,CUMIPMT($C$6/$C$8,$C$7*$C$8,$C$5,E245,E245,Pilotage!$D$25)),\"\")","v":""},{"$f":"IF(E245<>\"\",IF($C$5=0,0,$C$5+CUMPRINC($C$6/$C$8,$C$7*$C$8,$C$5,1,E245,Pilotage!$D$25)),\"\")","v":""},null,null,null,null,null,{"$f":"IF(K245<>\"\",-1*CUMIPMT($C$6/$C$8,$C$7*$C$8,$C$5,M245,N245,Pilotage!$D$25),\"\")","v":""}]
[null,null,null,null,"","",{"$f":"IF(E246<>\"\",IF($C$5=0,0,CUMIPMT($C$6/$C$8,$C$7*$C$8,$C$5,1,E246,Pilotage!$D$25)),\"\")","v":""},{"$f":"IF(E246<>\"\",IF($C$5=0,0,CUMIPMT($C$6/$C$8,$C$7*$C$8,$C$5,E246,E246,Pilotage!$D$25)),\"\")","v":""},{"$f":"IF(E246<>\"\",IF($C$5=0,0,$C$5+CUMPRINC($C$6/$C$8,$C$7*$C$8,$C$5,1,E246,Pilotage!$D$25)),\"\")","v":""},null,null,null,null,null,{"$f":"IF(K246<>\"\",-1*CUMIPMT($C$6/$C$8,$C$7*$C$8,$C$5,M246,N246,Pilotage!$D$25),\"\")","v":""}]
[null,null,null,null,"","",{"$f":"IF(E247<>\"\",IF($C$5=0,0,CUMIPMT($C$6/$C$8,$C$7*$C$8,$C$5,1,E247,Pilotage!$D$25)),\"\")","v":""},{"$f":"IF(E247<>\"\",IF($C$5=0,0,CUMIPMT($C$6/$C$8,$C$7*$C$8,$C$5,E247,E247,Pilotage!$D$25)),\"\")","v":""},{"$f":"IF(E247<>\"\",IF($C$5=0,0,$C$5+CUMPRINC($C$6/$C$8,$C$7*$C$8,$C$5,1,E247,Pilotage!$D$25)),\"\")","v":""},null,null,null,null,null,{"$f":"IF(K247<>\"\",-1*CUMIPMT($C$6/$C$8,$C$7*$C$8,$C$5,M247,N247,Pilotage!$D$25),\"\")","v":""}]
[null,null,null,null,"","",{"$f":"IF(E248<>\"\",IF($C$5=0,0,CUMIPMT($C$6/$C$8,$C$7*$C$8,$C$5,1,E248,Pilotage!$D$25)),\"\")","v":""},{"$f":"IF(E248<>\"\",IF($C$5=0,0,CUMIPMT($C$6/$C$8,$C$7*$C$8,$C$5,E248,E248,Pilotage!$D$25)),\"\")","v":""},{"$f":"IF(E248<>\"\",IF($C$5=0,0,$C$5+CUMPRINC($C$6/$C$8,$C$7*$C$8,$C$5,1,E248,Pilotage!$D$25)),\"\")","v":""},null,null,null,null,null,{"$f":"IF(K248<>\"\",-1*CUMIPMT($C$6/$C$8,$C$7*$C$8,$C$5,M248,N248,Pilotage!$D$25),\"\")","v":""}]
[null,null,null,null,"","",{"$f":"IF(E249<>\"\",IF($C$5=0,0,CUMIPMT($C$6/$C$8,$C$7*$C$8,$C$5,1,E249,Pilotage!$D$25)),\"\")","v":""},{"$f":"IF(E249<>\"\",IF($C$5=0,0,CUMIPMT($C$6/$C$8,$C$7*$C$8,$C$5,E249,E249,Pilotage!$D$25)),\"\")","v":""},{"$f":"IF(E249<>\"\",IF($C$5=0,0,$C$5+CUMPRINC($C$6/$C$8,$C$7*$C$8,$C$5,1,E249,Pilotage!$D$25)),\"\")","v":""},null,null,null,null,null,{"$f":"IF(K249<>\"\",-1*CUMIPMT($C$6/$C$8,$C$7*$C$8,$C$5,M249,N249,Pilotage!$D$25),\"\")","v":""}]
[null,null,null,null,"","",{"$f":"IF(E250<>\"\",IF($C$5=0,0,CUMIPMT($C$6/$C$8,$C$7*$C$8,$C$5,1,E250,Pilotage!$D$25)),\"\")","v":""},{"$f":"IF(E250<>\"\",IF($C$5=0,0,CUMIPMT($C$6/$C$8,$C$7*$C$8,$C$5,E250,E250,Pilotage!$D$25)),\"\")","v":""},{"$f":"IF(E250<>\"\",IF($C$5=0,0,$C$5+CUMPRINC($C$6/$C$8,$C$7*$C$8,$C$5,1,E250,Pilotage!$D$25)),\"\")","v":""},null,null,null,null,null,{"$f":"IF(K250<>\"\",-1*CUMIPMT($C$6/$C$8,$C$7*$C$8,$C$5,M250,N250,Pilotage!$D$25),\"\")","v":""}]
[null,null,null,null,"","",{"$f":"IF(E251<>\"\",IF($C$5=0,0,CUMIPMT($C$6/$C$8,$C$7*$C$8,$C$5,1,E251,Pilotage!$D$25)),\"\")","v":""},{"$f":"IF(E251<>\"\",IF($C$5=0,0,CUMIPMT($C$6/$C$8,$C$7*$C$8,$C$5,E251,E251,Pilotage!$D$25)),\"\")","v":""},{"$f":"IF(E251<>\"\",IF($C$5=0,0,$C$5+CUMPRINC($C$6/$C$8,$C$7*$C$8,$C$5,1,E251,Pilotage!$D$25)),\"\")","v":""},null,null,null,null,null,{"$f":"IF(K251<>\"\",-1*CUMIPMT($C$6/$C$8,$C$7*$C$8,$C$5,M251,N251,Pilotage!$D$25),\"\")","v":""}]
[null,null,null,null,"","",{"$f":"IF(E252<>\"\",IF($C$5=0,0,CUMIPMT($C$6/$C$8,$C$7*$C$8,$C$5,1,E252,Pilotage!$D$25)),\"\")","v":""},{"$f":"IF(E252<>\"\",IF($C$5=0,0,CUMIPMT($C$6/$C$8,$C$7*$C$8,$C$5,E252,E252,Pilotage!$D$25)),\"\")","v":""},{"$f":"IF(E252<>\"\",IF($C$5=0,0,$C$5+CUMPRINC($C$6/$C$8,$C$7*$C$8,$C$5,1,E252,Pilotage!$D$25)),\"\")","v":""},null,null,null,null,null,{"$f":"IF(K252<>\"\",-1*CUMIPMT($C$6/$C$8,$C$7*$C$8,$C$5,M252,N252,Pilotage!$D$25),\"\")","v":""}]
[null,null,null,null,"","",{"$f":"IF(E253<>\"\",IF($C$5=0,0,CUMIPMT($C$6/$C$8,$C$7*$C$8,$C$5,1,E253,Pilotage!$D$25)),\"\")","v":""},{"$f":"IF(E253<>\"\",IF($C$5=0,0,CUMIPMT($C$6/$C$8,$C$7*$C$8,$C$5,E253,E253,Pilotage!$D$25)),\"\")","v":""},{"$f":"IF(E253<>\"\",IF($C$5=0,0,$C$5+CUMPRINC($C$6/$C$8,$C$7*$C$8,$C$5,1,E253,Pilotage!$D$25)),\"\")","v":""},null,null,null,null,null,{"$f":"IF(K253<>\"\",-1*CUMIPMT($C$6/$C$8,$C$7*$C$8,$C$5,M253,N253,Pilotage!$D$25),\"\")","v":""}]
[null,null,null,null,"","",{"$f":"IF(E254<>\"\",IF($C$5=0,0,CUMIPMT($C$6/$C$8,$C$7*$C$8,$C$5,1,E254,Pilotage!$D$25)),\"\")","v":""},{"$f":"IF(E254<>\"\",IF($C$5=0,0,CUMIPMT($C$6/$C$8,$C$7*$C$8,$C$5,E254,E254,Pilotage!$D$25)),\"\")","v":""},{"$f":"IF(E254<>\"\",IF($C$5=0,0,$C$5+CUMPRINC($C$6/$C$8,$C$7*$C$8,$C$5,1,E254,Pilotage!$D$25)),\"\")","v":""},null,null,null,null,null,{"$f":"IF(K254<>\"\",-1*CUMIPMT($C$6/$C$8,$C$7*$C$8,$C$5,M254,N254,Pilotage!$D$25),\"\")","v":""}]
[null,null,null,null,"","",{"$f":"IF(E255<>\"\",IF($C$5=0,0,CUMIPMT($C$6/$C$8,$C$7*$C$8,$C$5,1,E255,Pilotage!$D$25)),\"\")","v":""},{"$f":"IF(E255<>\"\",IF($C$5=0,0,CUMIPMT($C$6/$C$8,$C$7*$C$8,$C$5,E255,E255,Pilotage!$D$25)),\"\")","v":""},{"$f":"IF(E255<>\"\",IF($C$5=0,0,$C$5+CUMPRINC($C$6/$C$8,$C$7*$C$8,$C$5,1,E255,Pilotage!$D$25)),\"\")","v":""},null,null,null,null,null,{"$f":"IF(K255<>\"\",-1*CUMIPMT($C$6/$C$8,$C$7*$C$8,$C$5,M255,N255,Pilotage!$D$25),\"\")","v":""}]
[null,null,null,null,"","",{"$f":"IF(E256<>\"\",IF($C$5=0,0,CUMIPMT($C$6/$C$8,$C$7*$C$8,$C$5,1,E256,Pilotage!$D$25)),\"\")","v":""},{"$f":"IF(E256<>\"\",IF($C$5=0,0,CUMIPMT($C$6/$C$8,$C$7*$C$8,$C$5,E256,E256,Pilotage!$D$25)),\"\")","v":""},{"$f":"IF(E256<>\"\",IF($C$5=0,0,$C$5+CUMPRINC($C$6/$C$8,$C$7*$C$8,$C$5,1,E256,Pilotage!$D$25)),\"\")","v":""},null,null,null,null,null,{"$f":"IF(K256<>\"\",-1*CUMIPMT($C$6/$C$8,$C$7*$C$8,$C$5,M256,N256,Pilotage!$D$25),\"\")","v":""}]
[null,null,null,null,"","",{"$f":"IF(E257<>\"\",IF($C$5=0,0,CUMIPMT($C$6/$C$8,$C$7*$C$8,$C$5,1,E257,Pilotage!$D$25)),\"\")","v":""},{"$f":"IF(E257<>\"\",IF($C$5=0,0,CUMIPMT($C$6/$C$8,$C$7*$C$8,$C$5,E257,E257,Pilotage!$D$25)),\"\")","v":""},{"$f":"IF(E257<>\"\",IF($C$5=0,0,$C$5+CUMPRINC($C$6/$C$8,$C$7*$C$8,$C$5,1,E257,Pilotage!$D$25)),\"\")","v":""},null,null,null,null,null,{"$f":"IF(K257<>\"\",-1*CUMIPMT($C$6/$C$8,$C$7*$C$8,$C$5,M257,N257,Pilotage!$D$25),\"\")","v":""}]
[null,null,null,null,"","",{"$f":"IF(E258<>\"\",IF($C$5=0,0,CUMIPMT($C$6/$C$8,$C$7*$C$8,$C$5,1,E258,Pilotage!$D$25)),\"\")","v":""},{"$f":"IF(E258<>\"\",IF($C$5=0,0,CUMIPMT($C$6/$C$8,$C$7*$C$8,$C$5,E258,E258,Pilotage!$D$25)),\"\")","v":""},{"$f":"IF(E258<>\"\",IF($C$5=0,0,$C$5+CUMPRINC($C$6/$C$8,$C$7*$C$8,$C$5,1,E258,Pilotage!$D$25)),\"\")","v":""},null,null,null,null,null,{"$f":"IF(K258<>\"\",-1*CUMIPMT($C$6/$C$8,$C$7*$C$8,$C$5,M258,N258,Pilotage!$D$25),\"\")","v":""}]
[null,null,null,null,"","",{"$f":"IF(E259<>\"\",IF($C$5=0,0,CUMIPMT($C$6/$C$8,$C$7*$C$8,$C$5,1,E259,Pilotage!$D$25)),\"\")","v":""},{"$f":"IF(E259<>\"\",IF($C$5=0,0,CUMIPMT($C$6/$C$8,$C$7*$C$8,$C$5,E259,E259,Pilotage!$D$25)),\"\")","v":""},{"$f":"IF(E259<>\"\",IF($C$5=0,0,$C$5+CUMPRINC($C$6/$C$8,$C$7*$C$8,$C$5,1,E259,Pilotage!$D$25)),\"\")","v":""},null,null,null,null,null,{"$f":"IF(K259<>\"\",-1*CUMIPMT($C$6/$C$8,$C$7*$C$8,$C$5,M259,N259,Pilotage!$D$25),\"\")","v":""}]
[null,null,null,null,"","",{"$f":"IF(E260<>\"\",IF($C$5=0,0,CUMIPMT($C$6/$C$8,$C$7*$C$8,$C$5,1,E260,Pilotage!$D$25)),\"\")","v":""},{"$f":"IF(E260<>\"\",IF($C$5=0,0,CUMIPMT($C$6/$C$8,$C$7*$C$8,$C$5,E260,E260,Pilotage!$D$25)),\"\")","v":""},{"$f":"IF(E260<>\"\",IF($C$5=0,0,$C$5+CUMPRINC($C$6/$C$8,$C$7*$C$8,$C$5,1,E260,Pilotage!$D$25)),\"\")","v":""},null,null,null,null,null,{"$f":"IF(K260<>\"\",-1*CUMIPMT($C$6/$C$8,$C$7*$C$8,$C$5,M260,N260,Pilotage!$D$25),\"\")","v":""}]
[null,null,null,null,"","",{"$f":"IF(E261<>\"\",IF($C$5=0,0,CUMIPMT($C$6/$C$8,$C$7*$C$8,$C$5,1,E261,Pilotage!$D$25)),\"\")","v":""},{"$f":"IF(E261<>\"\",IF($C$5=0,0,CUMIPMT($C$6/$C$8,$C$7*$C$8,$C$5,E261,E261,Pilotage!$D$25)),\"\")","v":""},{"$f":"IF(E261<>\"\",IF($C$5=0,0,$C$5+CUMPRINC($C$6/$C$8,$C$7*$C$8,$C$5,1,E261,Pilotage!$D$25)),\"\")","v":""},null,null,null,null,null,{"$f":"IF(K261<>\"\",-1*CUMIPMT($C$6/$C$8,$C$7*$C$8,$C$5,M261,N261,Pilotage!$D$25),\"\")","v":""}]
[null,null,null,null,"","",{"$f":"IF(E262<>\"\",IF($C$5=0,0,CUMIPMT($C$6/$C$8,$C$7*$C$8,$C$5,1,E262,Pilotage!$D$25)),\"\")","v":""},{"$f":"IF(E262<>\"\",IF($C$5=0,0,CUMIPMT($C$6/$C$8,$C$7*$C$8,$C$5,E262,E262,Pilotage!$D$25)),\"\")","v":""},{"$f":"IF(E262<>\"\",IF($C$5=0,0,$C$5+CUMPRINC($C$6/$C$8,$C$7*$C$8,$C$5,1,E262,Pilotage!$D$25)),\"\")","v":""},null,null,null,null,null,{"$f":"IF(K262<>\"\",-1*CUMIPMT($C$6/$C$8,$C$7*$C$8,$C$5,M262,N262,Pilotage!$D$25),\"\")","v":""}]
[null,null,null,null,"","",{"$f":"IF(E263<>\"\",IF($C$5=0,0,CUMIPMT($C$6/$C$8,$C$7*$C$8,$C$5,1,E263,Pilotage!$D$25)),\"\")","v":""},{"$f":"IF(E263<>\"\",IF($C$5=0,0,CUMIPMT($C$6/$C$8,$C$7*$C$8,$C$5,E263,E263,Pilotage!$D$25)),\"\")","v":""},{"$f":"IF(E263<>\"\",IF($C$5=0,0,$C$5+CUMPRINC($C$6/$C$8,$C$7*$C$8,$C$5,1,E263,Pilotage!$D$25)),\"\")","v":""},null,null,null,null,null,{"$f":"IF(K263<>\"\",-1*CUMIPMT($C$6/$C$8,$C$7*$C$8,$C$5,M263,N263,Pilotage!$D$25),\"\")","v":""}]
[null,null,null,null,{"$f":"IF(E263<$C$10,E263+1,\"\")","v":""},{"$f":"IF(E264<>\"\",EDATE(F263,$C$11),\"\")","v":""},{"$f":"IF(E264<>\"\",IF($C$5=0,0,CUMIPMT($C$6/$C$8,$C$7*$C$8,$C$5,1,E264,Pilotage!$D$25)),\"\")","v":""},{"$f":"IF(E264<>\"\",IF($C$5=0,0,CUMIPMT($C$6/$C$8,$C$7*$C$8,$C$5,E264,E264,Pilotage!$D$25)),\"\")","v":""},{"$f":"IF(E264<>\"\",IF($C$5=0,0,$C$5+CUMPRINC($C$6/$C$8,$C$7*$C$8,$C$5,1,E264,Pilotage!$D$25)),\"\")","v":""},null,null,null,null,null,{"$f":"IF(K264<>\"\",-1*CUMIPMT($C$6/$C$8,$C$7*$C$8,$C$5,M264,N264,Pilotage!$D$25),\"\")","v":""}]
[null,null,null,null,"","",{"$f":"IF(E265<>\"\",IF($C$5=0,0,CUMIPMT($C$6/$C$8,$C$7*$C$8,$C$5,1,E265,Pilotage!$D$25)),\"\")","v":""},{"$f":"IF(E265<>\"\",IF($C$5=0,0,CUMIPMT($C$6/$C$8,$C$7*$C$8,$C$5,E265,E265,Pilotage!$D$25)),\"\")","v":""},{"$f":"IF(E265<>\"\",IF($C$5=0,0,$C$5+CUMPRINC($C$6/$C$8,$C$7*$C$8,$C$5,1,E265,Pilotage!$D$25)),\"\")","v":""},null,null,null,null,null,{"$f":"IF(K265<>\"\",-1*CUMIPMT($C$6/$C$8,$C$7*$C$8,$C$5,M265,N265,Pilotage!$D$25),\"\")","v":""}]
[null,null,null,null,"","",{"$f":"IF(E266<>\"\",IF($C$5=0,0,CUMIPMT($C$6/$C$8,$C$7*$C$8,$C$5,1,E266,Pilotage!$D$25)),\"\")","v":""},{"$f":"IF(E266<>\"\",IF($C$5=0,0,CUMIPMT($C$6/$C$8,$C$7*$C$8,$C$5,E266,E266,Pilotage!$D$25)),\"\")","v":""},{"$f":"IF(E266<>\"\",IF($C$5=0,0,$C$5+CUMPRINC($C$6/$C$8,$C$7*$C$8,$C$5,1,E266,Pilotage!$D$25)),\"\")","v":""},null,null,null,null,null,{"$f":"IF(K266<>\"\",-1*CUMIPMT($C$6/$C$8,$C$7*$C$8,$C$5,M266,N266,Pilotage!$D$25),\"\")","v":""}]
[null,null,null,null,"","",{"$f":"IF(E267<>\"\",IF($C$5=0,0,CUMIPMT($C$6/$C$8,$C$7*$C$8,$C$5,1,E267,Pilotage!$D$25)),\"\")","v":""},{"$f":"IF(E267<>\"\",IF($C$5=0,0,CUMIPMT($C$6/$C$8,$C$7*$C$8,$C$5,E267,E267,Pilotage!$D$25)),\"\")","v":""},{"$f":"IF(E267<>\"\",IF($C$5=0,0,$C$5+CUMPRINC($C$6/$C$8,$C$7*$C$8,$C$5,1,E267,Pilotage!$D$25)),\"\")","v":""},null,null,null,null,null,{"$f":"IF(K267<>\"\",-1*CUMIPMT($C$6/$C$8,$C$7*$C$8,$C$5,M267,N267,Pilotage!$D$25),\"\")","v":""}]
[null,null,null,null,"","",{"$f":"IF(E268<>\"\",IF($C$5=0,0,CUMIPMT($C$6/$C$8,$C$7*$C$8,$C$5,1,E268,Pilotage!$D$25)),\"\")","v":""},{"$f":"IF(E268<>\"\",IF($C$5=0,0,CUMIPMT($C$6/$C$8,$C$7*$C$8,$C$5,E268,E268,Pilotage!$D$25)),\"\")","v":""},{"$f":"IF(E268<>\"\",IF($C$5=0,0,$C$5+CUMPRINC($C$6/$C$8,$C$7*$C$8,$C$5,1,E268,Pilotage!$D$25)),\"\")","v":""},null,null,null,null,null,{"$f":"IF(K268<>\"\",-1*CUMIPMT($C$6/$C$8,$C$7*$C$8,$C$5,M268,N268,Pilotage!$D$25),\"\")","v":""}]
[null,null,null,null,"","",{"$f":"IF(E269<>\"\",IF($C$5=0,0,CUMIPMT($C$6/$C$8,$C$7*$C$8,$C$5,1,E269,Pilotage!$D$25)),\"\")","v":""},{"$f":"IF(E269<>\"\",IF($C$5=0,0,CUMIPMT($C$6/$C$8,$C$7*$C$8,$C$5,E269,E269,Pilotage!$D$25)),\"\")","v":""},{"$f":"IF(E269<>\"\",IF($C$5=0,0,$C$5+CUMPRINC($C$6/$C$8,$C$7*$C$8,$C$5,1,E269,Pilotage!$D$25)),\"\")","v":""},null,null,null,null,null,{"$f":"IF(K269<>\"\",-1*CUMIPMT($C$6/$C$8,$C$7*$C$8,$C$5,M269,N269,Pilotage!$D$25),\"\")","v":""}]
[null,null,null,null,"","",{"$f":"IF(E270<>\"\",IF($C$5=0,0,CUMIPMT($C$6/$C$8,$C$7*$C$8,$C$5,1,E270,Pilotage!$D$25)),\"\")","v":""},{"$f":"IF(E270<>\"\",IF($C$5=0,0,CUMIPMT($C$6/$C$8,$C$7*$C$8,$C$5,E270,E270,Pilotage!$D$25)),\"\")","v":""},{"$f":"IF(E270<>\"\",IF($C$5=0,0,$C$5+CUMPRINC($C$6/$C$8,$C$7*$C$8,$C$5,1,E270,Pilotage!$D$25)),\"\")","v":""},null,null,null,null,null,{"$f":"IF(K270<>\"\",-1*CUMIPMT($C$6/$C$8,$C$7*$C$8,$C$5,M270,N270,Pilotage!$D$25),\"\")","v":""}]
[null,null,null,null,"","",{"$f":"IF(E271<>\"\",IF($C$5=0,0,CUMIPMT($C$6/$C$8,$C$7*$C$8,$C$5,1,E271,Pilotage!$D$25)),\"\")","v":""},{"$f":"IF(E271<>\"\",IF($C$5=0,0,CUMIPMT($C$6/$C$8,$C$7*$C$8,$C$5,E271,E271,Pilotage!$D$25)),\"\")","v":""},{"$f":"IF(E271<>\"\",IF($C$5=0,0,$C$5+CUMPRINC($C$6/$C$8,$C$7*$C$8,$C$5,1,E271,Pilotage!$D$25)),\"\")","v":""},null,null,null,null,null,{"$f":"IF(K271<>\"\",-1*CUMIPMT($C$6/$C$8,$C$7*$C$8,$C$5,M271,N271,Pilotage!$D$25),\"\")","v":""}]
[null,null,null,null,"","",{"$f":"IF(E272<>\"\",IF($C$5=0,0,CUMIPMT($C$6/$C$8,$C$7*$C$8,$C$5,1,E272,Pilotage!$D$25)),\"\")","v":""},{"$f":"IF(E272<>\"\",IF($C$5=0,0,CUMIPMT($C$6/$C$8,$C$7*$C$8,$C$5,E272,E272,Pilotage!$D$25)),\"\")","v":""},{"$f":"IF(E272<>\"\",IF($C$5=0,0,$C$5+CUMPRINC($C$6/$C$8,$C$7*$C$8,$C$5,1,E272,Pilotage!$D$25)),\"\")","v":""},null,null,null,null,null,{"$f":"IF(K272<>\"\",-1*CUMIPMT($C$6/$C$8,$C$7*$C$8,$C$5,M272,N272,Pilotage!$D$25),\"\")","v":""}]
[null,null,null,null,"","",{"$f":"IF(E273<>\"\",IF($C$5=0,0,CUMIPMT($C$6/$C$8,$C$7*$C$8,$C$5,1,E273,Pilotage!$D$25)),\"\")","v":""},{"$f":"IF(E273<>\"\",IF($C$5=0,0,CUMIPMT($C$6/$C$8,$C$7*$C$8,$C$5,E273,E273,Pilotage!$D$25)),\"\")","v":""},{"$f":"IF(E273<>\"\",IF($C$5=0,0,$C$5+CUMPRINC($C$6/$C$8,$C$7*$C$8,$C$5,1,E273,Pilotage!$D$25)),\"\")","v":""},null,null,null,null,null,{"$f":"IF(K273<>\"\",-1*CUMIPMT($C$6/$C$8,$C$7*$C$8,$C$5,M273,N273,Pilotage!$D$25),\"\")","v":""}]
[null,null,null,null,"","",{"$f":"IF(E274<>\"\",IF($C$5=0,0,CUMIPMT($C$6/$C$8,$C$7*$C$8,$C$5,1,E274,Pilotage!$D$25)),\"\")","v":""},{"$f":"IF(E274<>\"\",IF($C$5=0,0,CUMIPMT($C$6/$C$8,$C$7*$C$8,$C$5,E274,E274,Pilotage!$D$25)),\"\")","v":""},{"$f":"IF(E274<>\"\",IF($C$5=0,0,$C$5+CUMPRINC($C$6/$C$8,$C$7*$C$8,$C$5,1,E274,Pilotage!$D$25)),\"\")","v":""},null,null,null,null,null,{"$f":"IF(K274<>\"\",-1*CUMIPMT($C$6/$C$8,$C$7*$C$8,$C$5,M274,N274,Pilotage!$D$25),\"\")","v":""}]
[null,null,null,null,"","",{"$f":"IF(E275<>\"\",IF($C$5=0,0,CUMIPMT($C$6/$C$8,$C$7*$C$8,$C$5,1,E275,Pilotage!$D$25)),\"\")","v":""},{"$f":"IF(E275<>\"\",IF($C$5=0,0,CUMIPMT($C$6/$C$8,$C$7*$C$8,$C$5,E275,E275,Pilotage!$D$25)),\"\")","v":""},{"$f":"IF(E275<>\"\",IF($C$5=0,0,$C$5+CUMPRINC($C$6/$C$8,$C$7*$C$8,$C$5,1,E275,Pilotage!$D$25)),\"\")","v":""},null,null,null,null,null,{"$f":"IF(K275<>\"\",-1*CUMIPMT($C$6/$C$8,$C$7*$C$8,$C$5,M275,N275,Pilotage!$D$25),\"\")","v":""}]
[null,null,null,null,"","",{"$f":"IF(E276<>\"\",IF($C$5=0,0,CUMIPMT($C$6/$C$8,$C$7*$C$8,$C$5,1,E276,Pilotage!$D$25)),\"\")","v":""},{"$f":"IF(E276<>\"\",IF($C$5=0,0,CUMIPMT($C$6/$C$8,$C$7*$C$8,$C$5,E276,E276,Pilotage!$D$25)),\"\")","v":""},{"$f":"IF(E276<>\"\",IF($C$5=0,0,$C$5+CUMPRINC($C$6/$C$8,$C$7*$C$8,$C$5,1,E276,Pilotage!$D$25)),\"\")","v":""},null,null,null,null,null,{"$f":"IF(K276<>\"\",-1*CUMIPMT($C$6/$C$8,$C$7*$C$8,$C$5,M276,N276,Pilotage!$D$25),\"\")","v":""}]
[null,null,null,null,"","",{"$f":"IF(E277<>\"\",IF($C$5=0,0,CUMIPMT($C$6/$C$8,$C$7*$C$8,$C$5,1,E277,Pilotage!$D$25)),\"\")","v":""},{"$f":"IF(E277<>\"\",IF($C$5=0,0,CUMIPMT($C$6/$C$8,$C$7*$C$8,$C$5,E277,E277,Pilotage!$D$25)),\"\")","v":""},{"$f":"IF(E277<>\"\",IF($C$5=0,0,$C$5+CUMPRINC($C$6/$C$8,$C$7*$C$8,$C$5,1,E277,Pilotage!$D$25)),\"\")","v":""},null,null,null,null,null,{"$f":"IF(K277<>\"\",-1*CUMIPMT($C$6/$C$8,$C$7*$C$8,$C$5,M277,N277,Pilotage!$D$25),\"\")","v":""}]
[null,null,null,null,"","",{"$f":"IF(E278<>\"\",IF($C$5=0,0,CUMIPMT($C$6/$C$8,$C$7*$C$8,$C$5,1,E278,Pilotage!$D$25)),\"\")","v":""},{"$f":"IF(E278<>\"\",IF($C$5=0,0,CUMIPMT($C$6/$C$8,$C$7*$C$8,$C$5,E278,E278,Pilotage!$D$25)),\"\")","v":""},{"$f":"IF(E278<>\"\",IF($C$5=0,0,$C$5+CUMPRINC($C$6/$C$8,$C$7*$C$8,$C$5,1,E278,Pilotage!$D$25)),\"\")","v":""},null,null,null,null,null,{"$f":"IF(K278<>\"\",-1*CUMIPMT($C$6/$C$8,$C$7*$C$8,$C$5,M278,N278,Pilotage!$D$25),\"\")","v":""}]
[null,null,null,null,"","",{"$f":"IF(E279<>\"\",IF($C$5=0,0,CUMIPMT($C$6/$C$8,$C$7*$C$8,$C$5,1,E279,Pilotage!$D$25)),\"\")","v":""},{"$f":"IF(E279<>\"\",IF($C$5=0,0,CUMIPMT($C$6/$C$8,$C$7*$C$8,$C$5,E279,E279,Pilotage!$D$25)),\"\")","v":""},{"$f":"IF(E279<>\"\",IF($C$5=0,0,$C$5+CUMPRINC($C$6/$C$8,$C$7*$C$8,$C$5,1,E279,Pilotage!$D$25)),\"\")","v":""},null,null,null,null,null,{"$f":"IF(K279<>\"\",-1*CUMIPMT($C$6/$C$8,$C$7*$C$8,$C$5,M279,N279,Pilotage!$D$25),\"\")","v":""}]
[null,null,null,null,"","",{"$f":"IF(E280<>\"\",IF($C$5=0,0,CUMIPMT($C$6/$C$8,$C$7*$C$8,$C$5,1,E280,Pilotage!$D$25)),\"\")","v":""},{"$f":"IF(E280<>\"\",IF($C$5=0,0,CUMIPMT($C$6/$C$8,$C$7*$C$8,$C$5,E280,E280,Pilotage!$D$25)),\"\")","v":""},{"$f":"IF(E280<>\"\",IF($C$5=0,0,$C$5+CUMPRINC($C$6/$C$8,$C$7*$C$8,$C$5,1,E280,Pilotage!$D$25)),\"\")","v":""},null,null,null,null,null,{"$f":"IF(K280<>\"\",-1*CUMIPMT($C$6/$C$8,$C$7*$C$8,$C$5,M280,N280,Pilotage!$D$25),\"\")","v":""}]
[null,null,null,null,"","",{"$f":"IF(E281<>\"\",IF($C$5=0,0,CUMIPMT($C$6/$C$8,$C$7*$C$8,$C$5,1,E281,Pilotage!$D$25)),\"\")","v":""},{"$f":"IF(E281<>\"\",IF($C$5=0,0,CUMIPMT($C$6/$C$8,$C$7*$C$8,$C$5,E281,E281,Pilotage!$D$25)),\"\")","v":""},{"$f":"IF(E281<>\"\",IF($C$5=0,0,$C$5+CUMPRINC($C$6/$C$8,$C$7*$C$8,$C$5,1,E281,Pilotage!$D$25)),\"\")","v":""},null,null,null,null,null,{"$f":"IF(K281<>\"\",-1*CUMIPMT($C$6/$C$8,$C$7*$C$8,$C$5,M281,N281,Pilotage!$D$25),\"\")","v":""}]
[null,null,null,null,"","",{"$f":"IF(E282<>\"\",IF($C$5=0,0,CUMIPMT($C$6/$C$8,$C$7*$C$8,$C$5,1,E282,Pilotage!$D$25)),\"\")","v":""},{"$f":"IF(E282<>\"\",IF($C$5=0,0,CUMIPMT($C$6/$C$8,$C$7*$C$8,$C$5,E282,E282,Pilotage!$D$25)),\"\")","v":""},{"$f":"IF(E282<>\"\",IF($C$5=0,0,$C$5+CUMPRINC($C$6/$C$8,$C$7*$C$8,$C$5,1,E282,Pilotage!$D$25)),\"\")","v":""},null,null,null,null,null,{"$f":"IF(K282<>\"\",-1*CUMIPMT($C$6/$C$8,$C$7*$C$8,$C$5,M282,N282,Pilotage!$D$25),\"\")","v":""}]
[null,null,null,null,"","",{"$f":"IF(E283<>\"\",IF($C$5=0,0,CUMIPMT($C$6/$C$8,$C$7*$C$8,$C$5,1,E283,Pilotage!$D$25)),\"\")","v":""},{"$f":"IF(E283<>\"\",IF($C$5=0,0,CUMIPMT($C$6/$C$8,$C$7*$C$8,$C$5,E283,E283,Pilotage!$D$25)),\"\")","v":""},{"$f":"IF(E283<>\"\",IF($C$5=0,0,$C$5+CUMPRINC($C$6/$C$8,$C$7*$C$8,$C$5,1,E283,Pilotage!$D$25)),\"\")","v":""},null,null,null,null,null,{"$f":"IF(K283<>\"\",-1*CUMIPMT($C$6/$C$8,$C$7*$C$8,$C$5,M283,N283,Pilotage!$D$25),\"\")","v":""}]
[null,null,null,null,"","",{"$f":"IF(E284<>\"\",IF($C$5=0,0,CUMIPMT($C$6/$C$8,$C$7*$C$8,$C$5,1,E284,Pilotage!$D$25)),\"\")","v":""},{"$f":"IF(E284<>\"\",IF($C$5=0,0,CUMIPMT($C$6/$C$8,$C$7*$C$8,$C$5,E284,E284,Pilotage!$D$25)),\"\")","v":""},{"$f":"IF(E284<>\"\",IF($C$5=0,0,$C$5+CUMPRINC($C$6/$C$8,$C$7*$C$8,$C$5,1,E284,Pilotage!$D$25)),\"\")","v":""},null,null,null,null,null,{"$f":"IF(K284<>\"\",-1*CUMIPMT($C$6/$C$8,$C$7*$C$8,$C$5,M284,N284,Pilotage!$D$25),\"\")","v":""}]
[null,null,null,null,"","",{"$f":"IF(E285<>\"\",IF($C$5=0,0,CUMIPMT($C$6/$C$8,$C$7*$C$8,$C$5,1,E285,Pilotage!$D$25)),\"\")","v":""},{"$f":"IF(E285<>\"\",IF($C$5=0,0,CUMIPMT($C$6/$C$8,$C$7*$C$8,$C$5,E285,E285,Pilotage!$D$25)),\"\")","v":""},{"$f":"IF(E285<>\"\",IF($C$5=0,0,$C$5+CUMPRINC($C$6/$C$8,$C$7*$C$8,$C$5,1,E285,Pilotage!$D$25)),\"\")","v":""},null,null,null,null,null,{"$f":"IF(K285<>\"\",-1*CUMIPMT($C$6/$C$8,$C$7*$C$8,$C$5,M285,N285,Pilotage!$D$25),\"\")","v":""}]
[null,null,null,null,"","",{"$f":"IF(E286<>\"\",IF($C$5=0,0,CUMIPMT($C$6/$C$8,$C$7*$C$8,$C$5,1,E286,Pilotage!$D$25)),\"\")","v":""},{"$f":"IF(E286<>\"\",IF($C$5=0,0,CUMIPMT($C$6/$C$8,$C$7*$C$8,$C$5,E286,E286,Pilotage!$D$25)),\"\")","v":""},{"$f":"IF(E286<>\"\",IF($C$5=0,0,$C$5+CUMPRINC($C$6/$C$8,$C$7*$C$8,$C$5,1,E286,Pilotage!$D$25)),\"\")","v":""},null,null,null,null,null,{"$f":"IF(K286<>\"\",-1*CUMIPMT($C$6/$C$8,$C$7*$C$8,$C$5,M286,N286,Pilotage!$D$25),\"\")","v":""}]
[null,null,null,null,"","",{"$f":"IF(E287<>\"\",IF($C$5=0,0,CUMIPMT($C$6/$C$8,$C$7*$C$8,$C$5,1,E287,Pilotage!$D$25)),\"\")","v":""},{"$f":"IF(E287<>\"\",IF($C$5=0,0,CUMIPMT($C$6/$C$8,$C$7*$C$8,$C$5,E287,E287,Pilotage!$D$25)),\"\")","v":""},{"$f":"IF(E287<>\"\",IF($C$5=0,0,$C$5+CUMPRINC($C$6/$C$8,$C$7*$C$8,$C$5,1,E287,Pilotage!$D$25)),\"\")","v":""},null,null,null,null,null,{"$f":"IF(K287<>\"\",-1*CUMIPMT($C$6/$C$8,$C$7*$C$8,$C$5,M287,N287,Pilotage!$D$25),\"\")","v":""}]
[null,null,null,null,"","",{"$f":"IF(E288<>\"\",IF($C$5=0,0,CUMIPMT($C$6/$C$8,$C$7*$C$8,$C$5,1,E288,Pilotage!$D$25)),\"\")","v":""},{"$f":"IF(E288<>\"\",IF($C$5=0,0,CUMIPMT($C$6/$C$8,$C$7*$C$8,$C$5,E288,E288,Pilotage!$D$25)),\"\")","v":""},{"$f":"IF(E288<>\"\",IF($C$5=0,0,$C$5+CUMPRINC($C$6/$C$8,$C$7*$C$8,$C$5,1,E288,Pilotage!$D$25)),\"\")","v":""},null,null,null,null,null,{"$f":"IF(K288<>\"\",-1*CUMIPMT($C$6/$C$8,$C$7*$C$8,$C$5,M288,N288,Pilotage!$D$25),\"\")","v":""}]
[null,null,null,null,"","",{"$f":"IF(E289<>\"\",IF($C$5=0,0,CUMIPMT($C$6/$C$8,$C$7*$C$8,$C$5,1,E289,Pilotage!$D$25)),\"\")","v":""},{"$f":"IF(E289<>\"\",IF($C$5=0,0,CUMIPMT($C$6/$C$8,$C$7*$C$8,$C$5,E289,E289,Pilotage!$D$25)),\"\")","v":""},{"$f":"IF(E289<>\"\",IF($C$5=0,0,$C$5+CUMPRINC($C$6/$C$8,$C$7*$C$8,$C$5,1,E289,Pilotage!$D$25)),\"\")","v":""},null,null,null,null,null,{"$f":"IF(K289<>\"\",-1*CUMIPMT($C$6/$C$8,$C$7*$C$8,$C$5,M289,N289,Pilotage!$D$25),\"\")","v":""}]
[null,null,null,null,"","",{"$f":"IF(E290<>\"\",IF($C$5=0,0,CUMIPMT($C$6/$C$8,$C$7*$C$8,$C$5,1,E290,Pilotage!$D$25)),\"\")","v":""},{"$f":"IF(E290<>\"\",IF($C$5=0,0,CUMIPMT($C$6/$C$8,$C$7*$C$8,$C$5,E290,E290,Pilotage!$D$25)),\"\")","v":""},{"$f":"IF(E290<>\"\",IF($C$5=0,0,$C$5+CUMPRINC($C$6/$C$8,$C$7*$C$8,$C$5,1,E290,Pilotage!$D$25)),\"\")","v":""},null,null,null,null,null,{"$f":"IF(K290<>\"\",-1*CUMIPMT($C$6/$C$8,$C$7*$C$8,$C$5,M290,N290,Pilotage!$D$25),\"\")","v":""}]
[null,null,null,null,"","",{"$f":"IF(E291<>\"\",IF($C$5=0,0,CUMIPMT($C$6/$C$8,$C$7*$C$8,$C$5,1,E291,Pilotage!$D$25)),\"\")","v":""},{"$f":"IF(E291<>\"\",IF($C$5=0,0,CUMIPMT($C$6/$C$8,$C$7*$C$8,$C$5,E291,E291,Pilotage!$D$25)),\"\")","v":""},{"$f":"IF(E291<>\"\",IF($C$5=0,0,$C$5+CUMPRINC($C$6/$C$8,$C$7*$C$8,$C$5,1,E291,Pilotage!$D$25)),\"\")","v":""},null,null,null,null,null,{"$f":"IF(K291<>\"\",-1*CUMIPMT($C$6/$C$8,$C$7*$C$8,$C$5,M291,N291,Pilotage!$D$25),\"\")","v":""}]
[null,null,null,null,"","",{"$f":"IF(E292<>\"\",IF($C$5=0,0,CUMIPMT($C$6/$C$8,$C$7*$C$8,$C$5,1,E292,Pilotage!$D$25)),\"\")","v":""},{"$f":"IF(E292<>\"\",IF($C$5=0,0,CUMIPMT($C$6/$C$8,$C$7*$C$8,$C$5,E292,E292,Pilotage!$D$25)),\"\")","v":""},{"$f":"IF(E292<>\"\",IF($C$5=0,0,$C$5+CUMPRINC($C$6/$C$8,$C$7*$C$8,$C$5,1,E292,Pilotage!$D$25)),\"\")","v":""},null,null,null,null,null,{"$f":"IF(K292<>\"\",-1*CUMIPMT($C$6/$C$8,$C$7*$C$8,$C$5,M292,N292,Pilotage!$D$25),\"\")","v":""}]
[null,null,null,null,"","",{"$f":"IF(E293<>\"\",IF($C$5=0,0,CUMIPMT($C$6/$C$8,$C$7*$C$8,$C$5,1,E293,Pilotage!$D$25)),\"\")","v":""},{"$f":"IF(E293<>\"\",IF($C$5=0,0,CUMIPMT($C$6/$C$8,$C$7*$C$8,$C$5,E293,E293,Pilotage!$D$25)),\"\")","v":""},{"$f":"IF(E293<>\"\",IF($C$5=0,0,$C$5+CUMPRINC($C$6/$C$8,$C$7*$C$8,$C$5,1,E293,Pilotage!$D$25)),\"\")","v":""},null,null,null,null,null,{"$f":"IF(K293<>\"\",-1*CUMIPMT($C$6/$C$8,$C$7*$C$8,$C$5,M293,N293,Pilotage!$D$25),\"\")","v":""}]
[null,null,null,null,"","",{"$f":"IF(E294<>\"\",IF($C$5=0,0,CUMIPMT($C$6/$C$8,$C$7*$C$8,$C$5,1,E294,Pilotage!$D$25)),\"\")","v":""},{"$f":"IF(E294<>\"\",IF($C$5=0,0,CUMIPMT($C$6/$C$8,$C$7*$C$8,$C$5,E294,E294,Pilotage!$D$25)),\"\")","v":""},{"$f":"IF(E294<>\"\",IF($C$5=0,0,$C$5+CUMPRINC($C$6/$C$8,$C$7*$C$8,$C$5,1,E294,Pilotage!$D$25)),\"\")","v":""},null,null,null,null,null,{"$f":"IF(K294<>\"\",-1*CUMIPMT($C$6/$C$8,$C$7*$C$8,$C$5,M294,N294,Pilotage!$D$25),\"\")","v":""}]
[null,null,null,null,"","",{"$f":"IF(E295<>\"\",IF($C$5=0,0,CUMIPMT($C$6/$C$8,$C$7*$C$8,$C$5,1,E295,Pilotage!$D$25)),\"\")","v":""},{"$f":"IF(E295<>\"\",IF($C$5=0,0,CUMIPMT($C$6/$C$8,$C$7*$C$8,$C$5,E295,E295,Pilotage!$D$25)),\"\")","v":""},{"$f":"IF(E295<>\"\",IF($C$5=0,0,$C$5+CUMPRINC($C$6/$C$8,$C$7*$C$8,$C$5,1,E295,Pilotage!$D$25)),\"\")","v":""},null,null,null,null,null,{"$f":"IF(K295<>\"\",-1*CUMIPMT($C$6/$C$8,$C$7*$C$8,$C$5,M295,N295,Pilotage!$D$25),\"\")","v":""}]
[null,null,null,null,"","",{"$f":"IF(E296<>\"\",IF($C$5=0,0,CUMIPMT($C$6/$C$8,$C$7*$C$8,$C$5,1,E296,Pilotage!$D$25)),\"\")","v":""},{"$f":"IF(E296<>\"\",IF($C$5=0,0,CUMIPMT($C$6/$C$8,$C$7*$C$8,$C$5,E296,E296,Pilotage!$D$25)),\"\")","v":""},{"$f":"IF(E296<>\"\",IF($C$5=0,0,$C$5+CUMPRINC($C$6/$C$8,$C$7*$C$8,$C$5,1,E296,Pilotage!$D$25)),\"\")","v":""},null,null,null,null,null,{"$f":"IF(K296<>\"\",-1*CUMIPMT($C$6/$C$8,$C$7*$C$8,$C$5,M296,N296,Pilotage!$D$25),\"\")","v":""}]
[null,null,null,null,"","",{"$f":"IF(E297<>\"\",IF($C$5=0,0,CUMIPMT($C$6/$C$8,$C$7*$C$8,$C$5,1,E297,Pilotage!$D$25)),\"\")","v":""},{"$f":"IF(E297<>\"\",IF($C$5=0,0,CUMIPMT($C$6/$C$8,$C$7*$C$8,$C$5,E297,E297,Pilotage!$D$25)),\"\")","v":""},{"$f":"IF(E297<>\"\",IF($C$5=0,0,$C$5+CUMPRINC($C$6/$C$8,$C$7*$C$8,$C$5,1,E297,Pilotage!$D$25)),\"\")","v":""},null,null,null,null,null,{"$f":"IF(K297<>\"\",-1*CUMIPMT($C$6/$C$8,$C$7*$C$8,$C$5,M297,N297,Pilotage!$D$25),\"\")","v":""}]
[null,null,null,null,"","",{"$f":"IF(E298<>\"\",IF($C$5=0,0,CUMIPMT($C$6/$C$8,$C$7*$C$8,$C$5,1,E298,Pilotage!$D$25)),\"\")","v":""},{"$f":"IF(E298<>\"\",IF($C$5=0,0,CUMIPMT($C$6/$C$8,$C$7*$C$8,$C$5,E298,E298,Pilotage!$D$25)),\"\")","v":""},{"$f":"IF(E298<>\"\",IF($C$5=0,0,$C$5+CUMPRINC($C$6/$C$8,$C$7*$C$8,$C$5,1,E298,Pilotage!$D$25)),\"\")","v":""},null,null,null,null,null,{"$f":"IF(K298<>\"\",-1*CUMIPMT($C$6/$C$8,$C$7*$C$8,$C$5,M298,N298,Pilotage!$D$25),\"\")","v":""}]
[null,null,null,null,"","",{"$f":"IF(E299<>\"\",IF($C$5=0,0,CUMIPMT($C$6/$C$8,$C$7*$C$8,$C$5,1,E299,Pilotage!$D$25)),\"\")","v":""},{"$f":"IF(E299<>\"\",IF($C$5=0,0,CUMIPMT($C$6/$C$8,$C$7*$C$8,$C$5,E299,E299,Pilotage!$D$25)),\"\")","v":""},{"$f":"IF(E299<>\"\",IF($C$5=0,0,$C$5+CUMPRINC($C$6/$C$8,$C$7*$C$8,$C$5,1,E299,Pilotage!$D$25)),\"\")","v":""},null,null,null,null,null,{"$f":"IF(K299<>\"\",-1*CUMIPMT($C$6/$C$8,$C$7*$C$8,$C$5,M299,N299,Pilotage!$D$25),\"\")","v":""}]
[null,null,null,null,"","",{"$f":"IF(E300<>\"\",IF($C$5=0,0,CUMIPMT($C$6/$C$8,$C$7*$C$8,$C$5,1,E300,Pilotage!$D$25)),\"\")","v":""},{"$f":"IF(E300<>\"\",IF($C$5=0,0,CUMIPMT($C$6/$C$8,$C$7*$C$8,$C$5,E300,E300,Pilotage!$D$25)),\"\")","v":""},{"$f":"IF(E300<>\"\",IF($C$5=0,0,$C$5+CUMPRINC($C$6/$C$8,$C$7*$C$8,$C$5,1,E300,Pilotage!$D$25)),\"\")","v":""},null,null,null,null,null,{"$f":"IF(K300<>\"\",-1*CUMIPMT($C$6/$C$8,$C$7*$C$8,$C$5,M300,N300,Pilotage!$D$25),\"\")","v":""}]
[null,null,null,null,"","",{"$f":"IF(E301<>\"\",IF($C$5=0,0,CUMIPMT($C$6/$C$8,$C$7*$C$8,$C$5,1,E301,Pilotage!$D$25)),\"\")","v":""},{"$f":"IF(E301<>\"\",IF($C$5=0,0,CUMIPMT($C$6/$C$8,$C$7*$C$8,$C$5,E301,E301,Pilotage!$D$25)),\"\")","v":""},{"$f":"IF(E301<>\"\",IF($C$5=0,0,$C$5+CUMPRINC($C$6/$C$8,$C$7*$C$8,$C$5,1,E301,Pilotage!$D$25)),\"\")","v":""},null,null,null,null,null,{"$f":"IF(K301<>\"\",-1*CUMIPMT($C$6/$C$8,$C$7*$C$8,$C$5,M301,N301,Pilotage!$D$25),\"\")","v":""}]
[null,null,null,null,"","",{"$f":"IF(E302<>\"\",IF($C$5=0,0,CUMIPMT($C$6/$C$8,$C$7*$C$8,$C$5,1,E302,Pilotage!$D$25)),\"\")","v":""},{"$f":"IF(E302<>\"\",IF($C$5=0,0,CUMIPMT($C$6/$C$8,$C$7*$C$8,$C$5,E302,E302,Pilotage!$D$25)),\"\")","v":""},{"$f":"IF(E302<>\"\",IF($C$5=0,0,$C$5+CUMPRINC($C$6/$C$8,$C$7*$C$8,$C$5,1,E302,Pilotage!$D$25)),\"\")","v":""},null,null,null,null,null,{"$f":"IF(K302<>\"\",-1*CUMIPMT($C$6/$C$8,$C$7*$C$8,$C$5,M302,N302,Pilotage!$D$25),\"\")","v":""}]
[null,null,null,null,"","",{"$f":"IF(E303<>\"\",IF($C$5=0,0,CUMIPMT($C$6/$C$8,$C$7*$C$8,$C$5,1,E303,Pilotage!$D$25)),\"\")","v":""},{"$f":"IF(E303<>\"\",IF($C$5=0,0,CUMIPMT($C$6/$C$8,$C$7*$C$8,$C$5,E303,E303,Pilotage!$D$25)),\"\")","v":""},{"$f":"IF(E303<>\"\",IF($C$5=0,0,$C$5+CUMPRINC($C$6/$C$8,$C$7*$C$8,$C$5,1,E303,Pilotage!$D$25)),\"\")","v":""},null,null,null,null,null,{"$f":"IF(K303<>\"\",-1*CUMIPMT($C$6/$C$8,$C$7*$C$8,$C$5,M303,N303,Pilotage!$D$25),\"\")","v":""}]
[null,null,null,null,"","",{"$f":"IF(E304<>\"\",IF($C$5=0,0,CUMIPMT($C$6/$C$8,$C$7*$C$8,$C$5,1,E304,Pilotage!$D$25)),\"\")","v":""},{"$f":"IF(E304<>\"\",IF($C$5=0,0,CUMIPMT($C$6/$C$8,$C$7*$C$8,$C$5,E304,E304,Pilotage!$D$25)),\"\")","v":""},{"$f":"IF(E304<>\"\",IF($C$5=0,0,$C$5+CUMPRINC($C$6/$C$8,$C$7*$C$8,$C$5,1,E304,Pilotage!$D$25)),\"\")","v":""},null,null,null,null,null,{"$f":"IF(K304<>\"\",-1*CUMIPMT($C$6/$C$8,$C$7*$C$8,$C$5,M304,N304,Pilotage!$D$25),\"\")","v":""}]
[null,null,null,null,"","",{"$f":"IF(E305<>\"\",IF($C$5=0,0,CUMIPMT($C$6/$C$8,$C$7*$C$8,$C$5,1,E305,Pilotage!$D$25)),\"\")","v":""},{"$f":"IF(E305<>\"\",IF($C$5=0,0,CUMIPMT($C$6/$C$8,$C$7*$C$8,$C$5,E305,E305,Pilotage!$D$25)),\"\")","v":""},{"$f":"IF(E305<>\"\",IF($C$5=0,0,$C$5+CUMPRINC($C$6/$C$8,$C$7*$C$8,$C$5,1,E305,Pilotage!$D$25)),\"\")","v":""},null,null,null,null,null,{"$f":"IF(K305<>\"\",-1*CUMIPMT($C$6/$C$8,$C$7*$C$8,$C$5,M305,N305,Pilotage!$D$25),\"\")","v":""}]
[null,null,null,null,"","",{"$f":"IF(E306<>\"\",IF($C$5=0,0,CUMIPMT($C$6/$C$8,$C$7*$C$8,$C$5,1,E306,Pilotage!$D$25)),\"\")","v":""},{"$f":"IF(E306<>\"\",IF($C$5=0,0,CUMIPMT($C$6/$C$8,$C$7*$C$8,$C$5,E306,E306,Pilotage!$D$25)),\"\")","v":""},{"$f":"IF(E306<>\"\",IF($C$5=0,0,$C$5+CUMPRINC($C$6/$C$8,$C$7*$C$8,$C$5,1,E306,Pilotage!$D$25)),\"\")","v":""},null,null,null,null,null,{"$f":"IF(K306<>\"\",-1*CUMIPMT($C$6/$C$8,$C$7*$C$8,$C$5,M306,N306,Pilotage!$D$25),\"\")","v":""}]
[null,null,null,null,"","",{"$f":"IF(E307<>\"\",IF($C$5=0,0,CUMIPMT($C$6/$C$8,$C$7*$C$8,$C$5,1,E307,Pilotage!$D$25)),\"\")","v":""},{"$f":"IF(E307<>\"\",IF($C$5=0,0,CUMIPMT($C$6/$C$8,$C$7*$C$8,$C$5,E307,E307,Pilotage!$D$25)),\"\")","v":""},{"$f":"IF(E307<>\"\",IF($C$5=0,0,$C$5+CUMPRINC($C$6/$C$8,$C$7*$C$8,$C$5,1,E307,Pilotage!$D$25)),\"\")","v":""},null,null,null,null,null,{"$f":"IF(K307<>\"\",-1*CUMIPMT($C$6/$C$8,$C$7*$C$8,$C$5,M307,N307,Pilotage!$D$25),\"\")","v":""}]
[null,null,null,null,"","",{"$f":"IF(E308<>\"\",IF($C$5=0,0,CUMIPMT($C$6/$C$8,$C$7*$C$8,$C$5,1,E308,Pilotage!$D$25)),\"\")","v":""},{"$f":"IF(E308<>\"\",IF($C$5=0,0,CUMIPMT($C$6/$C$8,$C$7*$C$8,$C$5,E308,E308,Pilotage!$D$25)),\"\")","v":""},{"$f":"IF(E308<>\"\",IF($C$5=0,0,$C$5+CUMPRINC($C$6/$C$8,$C$7*$C$8,$C$5,1,E308,Pilotage!$D$25)),\"\")","v":""},null,null,null,null,null,{"$f":"IF(K308<>\"\",-1*CUMIPMT($C$6/$C$8,$C$7*$C$8,$C$5,M308,N308,Pilotage!$D$25),\"\")","v":""}]
[null,null,null,null,"","",{"$f":"IF(E309<>\"\",IF($C$5=0,0,CUMIPMT($C$6/$C$8,$C$7*$C$8,$C$5,1,E309,Pilotage!$D$25)),\"\")","v":""},{"$f":"IF(E309<>\"\",IF($C$5=0,0,CUMIPMT($C$6/$C$8,$C$7*$C$8,$C$5,E309,E309,Pilotage!$D$25)),\"\")","v":""},{"$f":"IF(E309<>\"\",IF($C$5=0,0,$C$5+CUMPRINC($C$6/$C$8,$C$7*$C$8,$C$5,1,E309,Pilotage!$D$25)),\"\")","v":""},null,null,null,null,null,{"$f":"IF(K309<>\"\",-1*CUMIPMT($C$6/$C$8,$C$7*$C$8,$C$5,M309,N309,Pilotage!$D$25),\"\")","v":""}]
[null,null,null,null,"","",{"$f":"IF(E310<>\"\",IF($C$5=0,0,CUMIPMT($C$6/$C$8,$C$7*$C$8,$C$5,1,E310,Pilotage!$D$25)),\"\")","v":""},{"$f":"IF(E310<>\"\",IF($C$5=0,0,CUMIPMT($C$6/$C$8,$C$7*$C$8,$C$5,E310,E310,Pilotage!$D$25)),\"\")","v":""},{"$f":"IF(E310<>\"\",IF($C$5=0,0,$C$5+CUMPRINC($C$6/$C$8,$C$7*$C$8,$C$5,1,E310,Pilotage!$D$25)),\"\")","v":""},null,null,null,null,null,{"$f":"IF(K310<>\"\",-1*CUMIPMT($C$6/$C$8,$C$7*$C$8,$C$5,M310,N310,Pilotage!$D$25),\"\")","v":""}]
[null,null,null,null,"","",{"$f":"IF(E311<>\"\",IF($C$5=0,0,CUMIPMT($C$6/$C$8,$C$7*$C$8,$C$5,1,E311,Pilotage!$D$25)),\"\")","v":""},{"$f":"IF(E311<>\"\",IF($C$5=0,0,CUMIPMT($C$6/$C$8,$C$7*$C$8,$C$5,E311,E311,Pilotage!$D$25)),\"\")","v":""},{"$f":"IF(E311<>\"\",IF($C$5=0,0,$C$5+CUMPRINC($C$6/$C$8,$C$7*$C$8,$C$5,1,E311,Pilotage!$D$25)),\"\")","v":""},null,null,null,null,null,{"$f":"IF(K311<>\"\",-1*CUMIPMT($C$6/$C$8,$C$7*$C$8,$C$5,M311,N311,Pilotage!$D$25),\"\")","v":""}]
[null,null,null,null,"","",{"$f":"IF(E312<>\"\",IF($C$5=0,0,CUMIPMT($C$6/$C$8,$C$7*$C$8,$C$5,1,E312,Pilotage!$D$25)),\"\")","v":""},{"$f":"IF(E312<>\"\",IF($C$5=0,0,CUMIPMT($C$6/$C$8,$C$7*$C$8,$C$5,E312,E312,Pilotage!$D$25)),\"\")","v":""},{"$f":"IF(E312<>\"\",IF($C$5=0,0,$C$5+CUMPRINC($C$6/$C$8,$C$7*$C$8,$C$5,1,E312,Pilotage!$D$25)),\"\")","v":""},null,null,null,null,null,{"$f":"IF(K312<>\"\",-1*CUMIPMT($C$6/$C$8,$C$7*$C$8,$C$5,M312,N312,Pilotage!$D$25),\"\")","v":""}]
[null,null,null,null,"","",{"$f":"IF(E313<>\"\",IF($C$5=0,0,CUMIPMT($C$6/$C$8,$C$7*$C$8,$C$5,1,E313,Pilotage!$D$25)),\"\")","v":""},{"$f":"IF(E313<>\"\",IF($C$5=0,0,CUMIPMT($C$6/$C$8,$C$7*$C$8,$C$5,E313,E313,Pilotage!$D$25)),\"\")","v":""},{"$f":"IF(E313<>\"\",IF($C$5=0,0,$C$5+CUMPRINC($C$6/$C$8,$C$7*$C$8,$C$5,1,E313,Pilotage!$D$25)),\"\")","v":""},null,null,null,null,null,{"$f":"IF(K313<>\"\",-1*CUMIPMT($C$6/$C$8,$C$7*$C$8,$C$5,M313,N313,Pilotage!$D$25),\"\")","v":""}]
[null,null,null,null,"","",{"$f":"IF(E314<>\"\",IF($C$5=0,0,CUMIPMT($C$6/$C$8,$C$7*$C$8,$C$5,1,E314,Pilotage!$D$25)),\"\")","v":""},{"$f":"IF(E314<>\"\",IF($C$5=0,0,CUMIPMT($C$6/$C$8,$C$7*$C$8,$C$5,E314,E314,Pilotage!$D$25)),\"\")","v":""},{"$f":"IF(E314<>\"\",IF($C$5=0,0,$C$5+CUMPRINC($C$6/$C$8,$C$7*$C$8,$C$5,1,E314,Pilotage!$D$25)),\"\")","v":""},null,null,null,null,null,{"$f":"IF(K314<>\"\",-1*CUMIPMT($C$6/$C$8,$C$7*$C$8,$C$5,M314,N314,Pilotage!$D$25),\"\")","v":""}]
[null,null,null,null,"","",{"$f":"IF(E315<>\"\",IF($C$5=0,0,CUMIPMT($C$6/$C$8,$C$7*$C$8,$C$5,1,E315,Pilotage!$D$25)),\"\")","v":""},{"$f":"IF(E315<>\"\",IF($C$5=0,0,CUMIPMT($C$6/$C$8,$C$7*$C$8,$C$5,E315,E315,Pilotage!$D$25)),\"\")","v":""},{"$f":"IF(E315<>\"\",IF($C$5=0,0,$C$5+CUMPRINC($C$6/$C$8,$C$7*$C$8,$C$5,1,E315,Pilotage!$D$25)),\"\")","v":""},null,null,null,null,null,{"$f":"IF(K315<>\"\",-1*CUMIPMT($C$6/$C$8,$C$7*$C$8,$C$5,M315,N315,Pilotage!$D$25),\"\")","v":""}]
[null,null,null,null,"","",{"$f":"IF(E316<>\"\",IF($C$5=0,0,CUMIPMT($C$6/$C$8,$C$7*$C$8,$C$5,1,E316,Pilotage!$D$25)),\"\")","v":""},{"$f":"IF(E316<>\"\",IF($C$5=0,0,CUMIPMT($C$6/$C$8,$C$7*$C$8,$C$5,E316,E316,Pilotage!$D$25)),\"\")","v":""},{"$f":"IF(E316<>\"\",IF($C$5=0,0,$C$5+CUMPRINC($C$6/$C$8,$C$7*$C$8,$C$5,1,E316,Pilotage!$D$25)),\"\")","v":""},null,null,null,null,null,{"$f":"IF(K316<>\"\",-1*CUMIPMT($C$6/$C$8,$C$7*$C$8,$C$5,M316,N316,Pilotage!$D$25),\"\")","v":""}]
[null,null,null,null,"","",{"$f":"IF(E317<>\"\",IF($C$5=0,0,CUMIPMT($C$6/$C$8,$C$7*$C$8,$C$5,1,E317,Pilotage!$D$25)),\"\")","v":""},{"$f":"IF(E317<>\"\",IF($C$5=0,0,CUMIPMT($C$6/$C$8,$C$7*$C$8,$C$5,E317,E317,Pilotage!$D$25)),\"\")","v":""},{"$f":"IF(E317<>\"\",IF($C$5=0,0,$C$5+CUMPRINC($C$6/$C$8,$C$7*$C$8,$C$5,1,E317,Pilotage!$D$25)),\"\")","v":""},null,null,null,null,null,{"$f":"IF(K317<>\"\",-1*CUMIPMT($C$6/$C$8,$C$7*$C$8,$C$5,M317,N317,Pilotage!$D$25),\"\")","v":""}]
[null,null,null,null,"","",{"$f":"IF(E318<>\"\",IF($C$5=0,0,CUMIPMT($C$6/$C$8,$C$7*$C$8,$C$5,1,E318,Pilotage!$D$25)),\"\")","v":""},{"$f":"IF(E318<>\"\",IF($C$5=0,0,CUMIPMT($C$6/$C$8,$C$7*$C$8,$C$5,E318,E318,Pilotage!$D$25)),\"\")","v":""},{"$f":"IF(E318<>\"\",IF($C$5=0,0,$C$5+CUMPRINC($C$6/$C$8,$C$7*$C$8,$C$5,1,E318,Pilotage!$D$25)),\"\")","v":""},null,null,null,null,null,{"$f":"IF(K318<>\"\",-1*CUMIPMT($C$6/$C$8,$C$7*$C$8,$C$5,M318,N318,Pilotage!$D$25),\"\")","v":""}]
[null,null,null,null,"","",{"$f":"IF(E319<>\"\",IF($C$5=0,0,CUMIPMT($C$6/$C$8,$C$7*$C$8,$C$5,1,E319,Pilotage!$D$25)),\"\")","v":""},{"$f":"IF(E319<>\"\",IF($C$5=0,0,CUMIPMT($C$6/$C$8,$C$7*$C$8,$C$5,E319,E319,Pilotage!$D$25)),\"\")","v":""},{"$f":"IF(E319<>\"\",IF($C$5=0,0,$C$5+CUMPRINC($C$6/$C$8,$C$7*$C$8,$C$5,1,E319,Pilotage!$D$25)),\"\")","v":""},null,null,null,null,null,{"$f":"IF(K319<>\"\",-1*CUMIPMT($C$6/$C$8,$C$7*$C$8,$C$5,M319,N319,Pilotage!$D$25),\"\")","v":""}]
[null,null,null,null,"","",{"$f":"IF(E320<>\"\",IF($C$5=0,0,CUMIPMT($C$6/$C$8,$C$7*$C$8,$C$5,1,E320,Pilotage!$D$25)),\"\")","v":""},{"$f":"IF(E320<>\"\",IF($C$5=0,0,CUMIPMT($C$6/$C$8,$C$7*$C$8,$C$5,E320,E320,Pilotage!$D$25)),\"\")","v":""},{"$f":"IF(E320<>\"\",IF($C$5=0,0,$C$5+CUMPRINC($C$6/$C$8,$C$7*$C$8,$C$5,1,E320,Pilotage!$D$25)),\"\")","v":""},null,null,null,null,null,{"$f":"IF(K320<>\"\",-1*CUMIPMT($C$6/$C$8,$C$7*$C$8,$C$5,M320,N320,Pilotage!$D$25),\"\")","v":""}]
[null,null,null,null,"","",{"$f":"IF(E321<>\"\",IF($C$5=0,0,CUMIPMT($C$6/$C$8,$C$7*$C$8,$C$5,1,E321,Pilotage!$D$25)),\"\")","v":""},{"$f":"IF(E321<>\"\",IF($C$5=0,0,CUMIPMT($C$6/$C$8,$C$7*$C$8,$C$5,E321,E321,Pilotage!$D$25)),\"\")","v":""},{"$f":"IF(E321<>\"\",IF($C$5=0,0,$C$5+CUMPRINC($C$6/$C$8,$C$7*$C$8,$C$5,1,E321,Pilotage!$D$25)),\"\")","v":""},null,null,null,null,null,{"$f":"IF(K321<>\"\",-1*CUMIPMT($C$6/$C$8,$C$7*$C$8,$C$5,M321,N321,Pilotage!$D$25),\"\")","v":""}]
[null,null,null,null,"","",{"$f":"IF(E322<>\"\",IF($C$5=0,0,CUMIPMT($C$6/$C$8,$C$7*$C$8,$C$5,1,E322,Pilotage!$D$25)),\"\")","v":""},{"$f":"IF(E322<>\"\",IF($C$5=0,0,CUMIPMT($C$6/$C$8,$C$7*$C$8,$C$5,E322,E322,Pilotage!$D$25)),\"\")","v":""},{"$f":"IF(E322<>\"\",IF($C$5=0,0,$C$5+CUMPRINC($C$6/$C$8,$C$7*$C$8,$C$5,1,E322,Pilotage!$D$25)),\"\")","v":""},null,null,null,null,null,{"$f":"IF(K322<>\"\",-1*CUMIPMT($C$6/$C$8,$C$7*$C$8,$C$5,M322,N322,Pilotage!$D$25),\"\")","v":""}]
[null,null,null,null,"","",{"$f":"IF(E323<>\"\",IF($C$5=0,0,CUMIPMT($C$6/$C$8,$C$7*$C$8,$C$5,1,E323,Pilotage!$D$25)),\"\")","v":""},{"$f":"IF(E323<>\"\",IF($C$5=0,0,CUMIPMT($C$6/$C$8,$C$7*$C$8,$C$5,E323,E323,Pilotage!$D$25)),\"\")","v":""},{"$f":"IF(E323<>\"\",IF($C$5=0,0,$C$5+CUMPRINC($C$6/$C$8,$C$7*$C$8,$C$5,1,E323,Pilotage!$D$25)),\"\")","v":""},null,null,null,null,null,{"$f":"IF(K323<>\"\",-1*CUMIPMT($C$6/$C$8,$C$7*$C$8,$C$5,M323,N323,Pilotage!$D$25),\"\")","v":""}]
[null,null,null,null,"","",{"$f":"IF(E324<>\"\",IF($C$5=0,0,CUMIPMT($C$6/$C$8,$C$7*$C$8,$C$5,1,E324,Pilotage!$D$25)),\"\")","v":""},{"$f":"IF(E324<>\"\",IF($C$5=0,0,CUMIPMT($C$6/$C$8,$C$7*$C$8,$C$5,E324,E324,Pilotage!$D$25)),\"\")","v":""},{"$f":"IF(E324<>\"\",IF($C$5=0,0,$C$5+CUMPRINC($C$6/$C$8,$C$7*$C$8,$C$5,1,E324,Pilotage!$D$25)),\"\")","v":""},null,null,null,null,null,{"$f":"IF(K324<>\"\",-1*CUMIPMT($C$6/$C$8,$C$7*$C$8,$C$5,M324,N324,Pilotage!$D$25),\"\")","v":""}]
[null,null,null,null,"","",{"$f":"IF(E325<>\"\",IF($C$5=0,0,CUMIPMT($C$6/$C$8,$C$7*$C$8,$C$5,1,E325,Pilotage!$D$25)),\"\")","v":""},{"$f":"IF(E325<>\"\",IF($C$5=0,0,CUMIPMT($C$6/$C$8,$C$7*$C$8,$C$5,E325,E325,Pilotage!$D$25)),\"\")","v":""},{"$f":"IF(E325<>\"\",IF($C$5=0,0,$C$5+CUMPRINC($C$6/$C$8,$C$7*$C$8,$C$5,1,E325,Pilotage!$D$25)),\"\")","v":""},null,null,null,null,null,{"$f":"IF(K325<>\"\",-1*CUMIPMT($C$6/$C$8,$C$7*$C$8,$C$5,M325,N325,Pilotage!$D$25),\"\")","v":""}]
[null,null,null,null,"","",{"$f":"IF(E326<>\"\",IF($C$5=0,0,CUMIPMT($C$6/$C$8,$C$7*$C$8,$C$5,1,E326,Pilotage!$D$25)),\"\")","v":""},{"$f":"IF(E326<>\"\",IF($C$5=0,0,CUMIPMT($C$6/$C$8,$C$7*$C$8,$C$5,E326,E326,Pilotage!$D$25)),\"\")","v":""},{"$f":"IF(E326<>\"\",IF($C$5=0,0,$C$5+CUMPRINC($C$6/$C$8,$C$7*$C$8,$C$5,1,E326,Pilotage!$D$25)),\"\")","v":""},null,null,null,null,null,{"$f":"IF(K326<>\"\",-1*CUMIPMT($C$6/$C$8,$C$7*$C$8,$C$5,M326,N326,Pilotage!$D$25),\"\")","v":""}]
[null,null,null,null,"","",{"$f":"IF(E327<>\"\",IF($C$5=0,0,CUMIPMT($C$6/$C$8,$C$7*$C$8,$C$5,1,E327,Pilotage!$D$25)),\"\")","v":""},{"$f":"IF(E327<>\"\",IF($C$5=0,0,CUMIPMT($C$6/$C$8,$C$7*$C$8,$C$5,E327,E327,Pilotage!$D$25)),\"\")","v":""},{"$f":"IF(E327<>\"\",IF($C$5=0,0,$C$5+CUMPRINC($C$6/$C$8,$C$7*$C$8,$C$5,1,E327,Pilotage!$D$25)),\"\")","v":""},null,null,null,null,null,{"$f":"IF(K327<>\"\",-1*CUMIPMT($C$6/$C$8,$C$7*$C$8,$C$5,M327,N327,Pilotage!$D$25),\"\")","v":""}]
[null,null,null,null,{"$f":"IF(E327<$C$10,E327+1,\"\")","v":""},{"$f":"IF(E328<>\"\",EDATE(F327,$C$11),\"\")","v":""},{"$f":"IF(E328<>\"\",IF($C$5=0,0,CUMIPMT($C$6/$C$8,$C$7*$C$8,$C$5,1,E328,Pilotage!$D$25)),\"\")","v":""},{"$f":"IF(E328<>\"\",IF($C$5=0,0,CUMIPMT($C$6/$C$8,$C$7*$C$8,$C$5,E328,E328,Pilotage!$D$25)),\"\")","v":""},{"$f":"IF(E328<>\"\",IF($C$5=0,0,$C$5+CUMPRINC($C$6/$C$8,$C$7*$C$8,$C$5,1,E328,Pilotage!$D$25)),\"\")","v":""},null,null,null,null,null,{"$f":"IF(K328<>\"\",-1*CUMIPMT($C$6/$C$8,$C$7*$C$8,$C$5,M328,N328,Pilotage!$D$25),\"\")","v":""}]
[null,null,null,null,"","",{"$f":"IF(E329<>\"\",IF($C$5=0,0,CUMIPMT($C$6/$C$8,$C$7*$C$8,$C$5,1,E329,Pilotage!$D$25)),\"\")","v":""},{"$f":"IF(E329<>\"\",IF($C$5=0,0,CUMIPMT($C$6/$C$8,$C$7*$C$8,$C$5,E329,E329,Pilotage!$D$25)),\"\")","v":""},{"$f":"IF(E329<>\"\",IF($C$5=0,0,$C$5+CUMPRINC($C$6/$C$8,$C$7*$C$8,$C$5,1,E329,Pilotage!$D$25)),\"\")","v":""},null,null,null,null,null,{"$f":"IF(K329<>\"\",-1*CUMIPMT($C$6/$C$8,$C$7*$C$8,$C$5,M329,N329,Pilotage!$D$25),\"\")","v":""}]
[null,null,null,null,"","",{"$f":"IF(E330<>\"\",IF($C$5=0,0,CUMIPMT($C$6/$C$8,$C$7*$C$8,$C$5,1,E330,Pilotage!$D$25)),\"\")","v":""},{"$f":"IF(E330<>\"\",IF($C$5=0,0,CUMIPMT($C$6/$C$8,$C$7*$C$8,$C$5,E330,E330,Pilotage!$D$25)),\"\")","v":""},{"$f":"IF(E330<>\"\",IF($C$5=0,0,$C$5+CUMPRINC($C$6/$C$8,$C$7*$C$8,$C$5,1,E330,Pilotage!$D$25)),\"\")","v":""},null,null,null,null,null,{"$f":"IF(K330<>\"\",-1*CUMIPMT($C$6/$C$8,$C$7*$C$8,$C$5,M330,N330,Pilotage!$D$25),\"\")","v":""}]
[null,null,null,null,"","",{"$f":"IF(E331<>\"\",IF($C$5=0,0,CUMIPMT($C$6/$C$8,$C$7*$C$8,$C$5,1,E331,Pilotage!$D$25)),\"\")","v":""},{"$f":"IF(E331<>\"\",IF($C$5=0,0,CUMIPMT($C$6/$C$8,$C$7*$C$8,$C$5,E331,E331,Pilotage!$D$25)),\"\")","v":""},{"$f":"IF(E331<>\"\",IF($C$5=0,0,$C$5+CUMPRINC($C$6/$C$8,$C$7*$C$8,$C$5,1,E331,Pilotage!$D$25)),\"\")","v":""},null,null,null,null,null,{"$f":"IF(K331<>\"\",-1*CUMIPMT($C$6/$C$8,$C$7*$C$8,$C$5,M331,N331,Pilotage!$D$25),\"\")","v":""}]
[null,null,null,null,"","",{"$f":"IF(E332<>\"\",IF($C$5=0,0,CUMIPMT($C$6/$C$8,$C$7*$C$8,$C$5,1,E332,Pilotage!$D$25)),\"\")","v":""},{"$f":"IF(E332<>\"\",IF($C$5=0,0,CUMIPMT($C$6/$C$8,$C$7*$C$8,$C$5,E332,E332,Pilotage!$D$25)),\"\")","v":""},{"$f":"IF(E332<>\"\",IF($C$5=0,0,$C$5+CUMPRINC($C$6/$C$8,$C$7*$C$8,$C$5,1,E332,Pilotage!$D$25)),\"\")","v":""},null,null,null,null,null,{"$f":"IF(K332<>\"\",-1*CUMIPMT($C$6/$C$8,$C$7*$C$8,$C$5,M332,N332,Pilotage!$D$25),\"\")","v":""}]
[null,null,null,null,"","",{"$f":"IF(E333<>\"\",IF($C$5=0,0,CUMIPMT($C$6/$C$8,$C$7*$C$8,$C$5,1,E333,Pilotage!$D$25)),\"\")","v":""},{"$f":"IF(E333<>\"\",IF($C$5=0,0,CUMIPMT($C$6/$C$8,$C$7*$C$8,$C$5,E333,E333,Pilotage!$D$25)),\"\")","v":""},{"$f":"IF(E333<>\"\",IF($C$5=0,0,$C$5+CUMPRINC($C$6/$C$8,$C$7*$C$8,$C$5,1,E333,Pilotage!$D$25)),\"\")","v":""},null,null,null,null,null,{"$f":"IF(K333<>\"\",-1*CUMIPMT($C$6/$C$8,$C$7*$C$8,$C$5,M333,N333,Pilotage!$D$25),\"\")","v":""}]
[null,null,null,null,"","",{"$f":"IF(E334<>\"\",IF($C$5=0,0,CUMIPMT($C$6/$C$8,$C$7*$C$8,$C$5,1,E334,Pilotage!$D$25)),\"\")","v":""},{"$f":"IF(E334<>\"\",IF($C$5=0,0,CUMIPMT($C$6/$C$8,$C$7*$C$8,$C$5,E334,E334,Pilotage!$D$25)),\"\")","v":""},{"$f":"IF(E334<>\"\",IF($C$5=0,0,$C$5+CUMPRINC($C$6/$C$8,$C$7*$C$8,$C$5,1,E334,Pilotage!$D$25)),\"\")","v":""},null,null,null,null,null,{"$f":"IF(K334<>\"\",-1*CUMIPMT($C$6/$C$8,$C$7*$C$8,$C$5,M334,N334,Pilotage!$D$25),\"\")","v":""}]
[null,null,null,null,"","",{"$f":"IF(E335<>\"\",IF($C$5=0,0,CUMIPMT($C$6/$C$8,$C$7*$C$8,$C$5,1,E335,Pilotage!$D$25)),\"\")","v":""},{"$f":"IF(E335<>\"\",IF($C$5=0,0,CUMIPMT($C$6/$C$8,$C$7*$C$8,$C$5,E335,E335,Pilotage!$D$25)),\"\")","v":""},{"$f":"IF(E335<>\"\",IF($C$5=0,0,$C$5+CUMPRINC($C$6/$C$8,$C$7*$C$8,$C$5,1,E335,Pilotage!$D$25)),\"\")","v":""},null,null,null,null,null,{"$f":"IF(K335<>\"\",-1*CUMIPMT($C$6/$C$8,$C$7*$C$8,$C$5,M335,N335,Pilotage!$D$25),\"\")","v":""}]
[null,null,null,null,"","",{"$f":"IF(E336<>\"\",IF($C$5=0,0,CUMIPMT($C$6/$C$8,$C$7*$C$8,$C$5,1,E336,Pilotage!$D$25)),\"\")","v":""},{"$f":"IF(E336<>\"\",IF($C$5=0,0,CUMIPMT($C$6/$C$8,$C$7*$C$8,$C$5,E336,E336,Pilotage!$D$25)),\"\")","v":""},{"$f":"IF(E336<>\"\",IF($C$5=0,0,$C$5+CUMPRINC($C$6/$C$8,$C$7*$C$8,$C$5,1,E336,Pilotage!$D$25)),\"\")","v":""},null,null,null,null,null,{"$f":"IF(K336<>\"\",-1*CUMIPMT($C$6/$C$8,$C$7*$C$8,$C$5,M336,N336,Pilotage!$D$25),\"\")","v":""}]
[null,null,null,null,"","",{"$f":"IF(E337<>\"\",IF($C$5=0,0,CUMIPMT($C$6/$C$8,$C$7*$C$8,$C$5,1,E337,Pilotage!$D$25)),\"\")","v":""},{"$f":"IF(E337<>\"\",IF($C$5=0,0,CUMIPMT($C$6/$C$8,$C$7*$C$8,$C$5,E337,E337,Pilotage!$D$25)),\"\")","v":""},{"$f":"IF(E337<>\"\",IF($C$5=0,0,$C$5+CUMPRINC($C$6/$C$8,$C$7*$C$8,$C$5,1,E337,Pilotage!$D$25)),\"\")","v":""},null,null,null,null,null,{"$f":"IF(K337<>\"\",-1*CUMIPMT($C$6/$C$8,$C$7*$C$8,$C$5,M337,N337,Pilotage!$D$25),\"\")","v":""}]
[null,null,null,null,"","",{"$f":"IF(E338<>\"\",IF($C$5=0,0,CUMIPMT($C$6/$C$8,$C$7*$C$8,$C$5,1,E338,Pilotage!$D$25)),\"\")","v":""},{"$f":"IF(E338<>\"\",IF($C$5=0,0,CUMIPMT($C$6/$C$8,$C$7*$C$8,$C$5,E338,E338,Pilotage!$D$25)),\"\")","v":""},{"$f":"IF(E338<>\"\",IF($C$5=0,0,$C$5+CUMPRINC($C$6/$C$8,$C$7*$C$8,$C$5,1,E338,Pilotage!$D$25)),\"\")","v":""},null,null,null,null,null,{"$f":"IF(K338<>\"\",-1*CUMIPMT($C$6/$C$8,$C$7*$C$8,$C$5,M338,N338,Pilotage!$D$25),\"\")","v":""}]
[null,null,null,null,"","",{"$f":"IF(E339<>\"\",IF($C$5=0,0,CUMIPMT($C$6/$C$8,$C$7*$C$8,$C$5,1,E339,Pilotage!$D$25)),\"\")","v":""},{"$f":"IF(E339<>\"\",IF($C$5=0,0,CUMIPMT($C$6/$C$8,$C$7*$C$8,$C$5,E339,E339,Pilotage!$D$25)),\"\")","v":""},{"$f":"IF(E339<>\"\",IF($C$5=0,0,$C$5+CUMPRINC($C$6/$C$8,$C$7*$C$8,$C$5,1,E339,Pilotage!$D$25)),\"\")","v":""},null,null,null,null,null,{"$f":"IF(K339<>\"\",-1*CUMIPMT($C$6/$C$8,$C$7*$C$8,$C$5,M339,N339,Pilotage!$D$25),\"\")","v":""}]
[null,null,null,null,"","",{"$f":"IF(E340<>\"\",IF($C$5=0,0,CUMIPMT($C$6/$C$8,$C$7*$C$8,$C$5,1,E340,Pilotage!$D$25)),\"\")","v":""},{"$f":"IF(E340<>\"\",IF($C$5=0,0,CUMIPMT($C$6/$C$8,$C$7*$C$8,$C$5,E340,E340,Pilotage!$D$25)),\"\")","v":""},{"$f":"IF(E340<>\"\",IF($C$5=0,0,$C$5+CUMPRINC($C$6/$C$8,$C$7*$C$8,$C$5,1,E340,Pilotage!$D$25)),\"\")","v":""},null,null,null,null,null,{"$f":"IF(K340<>\"\",-1*CUMIPMT($C$6/$C$8,$C$7*$C$8,$C$5,M340,N340,Pilotage!$D$25),\"\")","v":""}]
[null,null,null,null,"","",{"$f":"IF(E341<>\"\",IF($C$5=0,0,CUMIPMT($C$6/$C$8,$C$7*$C$8,$C$5,1,E341,Pilotage!$D$25)),\"\")","v":""},{"$f":"IF(E341<>\"\",IF($C$5=0,0,CUMIPMT($C$6/$C$8,$C$7*$C$8,$C$5,E341,E341,Pilotage!$D$25)),\"\")","v":""},{"$f":"IF(E341<>\"\",IF($C$5=0,0,$C$5+CUMPRINC($C$6/$C$8,$C$7*$C$8,$C$5,1,E341,Pilotage!$D$25)),\"\")","v":""}]
[null,null,null,null,"","",{"$f":"IF(E342<>\"\",IF($C$5=0,0,CUMIPMT($C$6/$C$8,$C$7*$C$8,$C$5,1,E342,Pilotage!$D$25)),\"\")","v":""},{"$f":"IF(E342<>\"\",IF($C$5=0,0,CUMIPMT($C$6/$C$8,$C$7*$C$8,$C$5,E342,E342,Pilotage!$D$25)),\"\")","v":""},{"$f":"IF(E342<>\"\",IF($C$5=0,0,$C$5+CUMPRINC($C$6/$C$8,$C$7*$C$8,$C$5,1,E342,Pilotage!$D$25)),\"\")","v":""}]
[null,null,null,null,"","",{"$f":"IF(E343<>\"\",IF($C$5=0,0,CUMIPMT($C$6/$C$8,$C$7*$C$8,$C$5,1,E343,Pilotage!$D$25)),\"\")","v":""},{"$f":"IF(E343<>\"\",IF($C$5=0,0,CUMIPMT($C$6/$C$8,$C$7*$C$8,$C$5,E343,E343,Pilotage!$D$25)),\"\")","v":""},{"$f":"IF(E343<>\"\",IF($C$5=0,0,$C$5+CUMPRINC($C$6/$C$8,$C$7*$C$8,$C$5,1,E343,Pilotage!$D$25)),\"\")","v":""}]
[null,null,null,null,"","",{"$f":"IF(E344<>\"\",IF($C$5=0,0,CUMIPMT($C$6/$C$8,$C$7*$C$8,$C$5,1,E344,Pilotage!$D$25)),\"\")","v":""},{"$f":"IF(E344<>\"\",IF($C$5=0,0,CUMIPMT($C$6/$C$8,$C$7*$C$8,$C$5,E344,E344,Pilotage!$D$25)),\"\")","v":""},{"$f":"IF(E344<>\"\",IF($C$5=0,0,$C$5+CUMPRINC($C$6/$C$8,$C$7*$C$8,$C$5,1,E344,Pilotage!$D$25)),\"\")","v":""}]
[null,null,null,null,"","",{"$f":"IF(E345<>\"\",IF($C$5=0,0,CUMIPMT($C$6/$C$8,$C$7*$C$8,$C$5,1,E345,Pilotage!$D$25)),\"\")","v":""},{"$f":"IF(E345<>\"\",IF($C$5=0,0,CUMIPMT($C$6/$C$8,$C$7*$C$8,$C$5,E345,E345,Pilotage!$D$25)),\"\")","v":""},{"$f":"IF(E345<>\"\",IF($C$5=0,0,$C$5+CUMPRINC($C$6/$C$8,$C$7*$C$8,$C$5,1,E345,Pilotage!$D$25)),\"\")","v":""}]
[null,null,null,null,"","",{"$f":"IF(E346<>\"\",IF($C$5=0,0,CUMIPMT($C$6/$C$8,$C$7*$C$8,$C$5,1,E346,Pilotage!$D$25)),\"\")","v":""},{"$f":"IF(E346<>\"\",IF($C$5=0,0,CUMIPMT($C$6/$C$8,$C$7*$C$8,$C$5,E346,E346,Pilotage!$D$25)),\"\")","v":""},{"$f":"IF(E346<>\"\",IF($C$5=0,0,$C$5+CUMPRINC($C$6/$C$8,$C$7*$C$8,$C$5,1,E346,Pilotage!$D$25)),\"\")","v":""}]
[null,null,null,null,"",""]
[null,null,null,null,""]
[null,null,null,null,""]
[null,null,null,null,""]
[null,null,null,null,""]
[null,null,null,null,""]
[null,null,null,null,""]
[null,null,null,null,""]
[null,null,null,null,""]
[null,null,null,null,""]
[null,null,null,null,""]
[null,null,null,null,""]
[null,null,null,null,""]
[null,null,null,null,""]
[null,null,null,null,""]
[null,null,null,null,""]
[null,null,null,null,""]
[null,null,null,null,""]
[null,null,null,null,""]
[null,null,null,null,""]
[null,null,null,null,""]
[null,null,null,null,""]
[null,null,null,null,""]
[null,null,null,null,""]
[null,null,null,null,""]
[null,null,null,null,""]
[null,null,null,null,""]
[null,null,null,null,""]
[null,null,null,null,""]
[null,null,null,null,""]
[null,null,null,null,""]
[null,null,null,null,""]
[null,null,null,null,""]
[null,null,null,null,""]
[null,null,null,null,""]
[null,null,null,null,""]
[null,null,null,null,""]
[null,null,null,null,""]
[null,null,null,null,""]
[null,null,null,null,""]
[null,null,null,null,""]
[null,null,null,null,""]
[null,null,null,null,""]
[null,null,null,null,""]
[null,null,null,null,""]
[null,null,null,null,{"$f":"IF(E391<$C$10,E391+1,\"\")","v":""}]
[null,null,null,null,""]
[null,null,null,null,""]
[null,null,null,null,""]
[null,null,null,null,""]
[null,null,null,null,""]
[null,null,null,null,""]
[null,null,null,null,"",null,{"$f":"IF(E399<>\"\",IF($C$5=0,0,CUMIPMT($C$6/$C$8,$C$7*$C$8,$C$5,1,E399,Pilotage!$D$25)),\"\")","v":""},{"$f":"IF(E399<>\"\",IF($C$5=0,0,CUMIPMT($C$6/$C$8,$C$7*$C$8,$C$5,E399,E399,Pilotage!$D$25)),\"\")","v":""},{"$f":"IF(E399<>\"\",IF($C$5=0,0,$C$5+CUMPRINC($C$6/$C$8,$C$7*$C$8,$C$5,1,E399,Pilotage!$D$25)),\"\")","v":""}]
[null,null,null,null,"",null,{"$f":"IF(E400<>\"\",IF($C$5=0,0,CUMIPMT($C$6/$C$8,$C$7*$C$8,$C$5,1,E400,Pilotage!$D$25)),\"\")","v":""},{"$f":"IF(E400<>\"\",IF($C$5=0,0,CUMIPMT($C$6/$C$8,$C$7*$C$8,$C$5,E400,E400,Pilotage!$D$25)),\"\")","v":""},{"$f":"IF(E400<>\"\",IF($C$5=0,0,$C$5+CUMPRINC($C$6/$C$8,$C$7*$C$8,$C$5,1,E400,Pilotage!$D$25)),\"\")","v":""}]
[null,null,null,null,""]
[null,null,null,null,""]
[null,null,null,null,""]

{"sheet":"Emprunt","index":50,"n_rows":403,"n_cols":15,"rows_kept":403,"cut":false,"hidden":false,"merged":[[2,1,2,8],[2,9,2,14]]}
[]
[]
[null,"Emprunt"]
[]
[null,"Montant emprunté",{"$f":"Pilotage!D29","v":0},null,null,"Date","Intérêts cumulé","Intérêts","Capital restant dû",null,null,"Date",null,null,"Intérêts annuels"]
[null,"Taux annuel",{"$f":"Pilotage!D22","v":0.04},null,1,{"$f":"C9","v":"2014-10-01"},{"$f":"IF(E6<>\"\",IF($C$5=0,0,CUMIPMT($C$6/$C$8,$C$7*$C$8,$C$5,1,E6,Pilotage!$D$25)),\"\")","v":0},{"$f":"IF(E6<>\"\",IF($C$5=0,0,CUMIPMT($C$6/$C$8,$C$7*$C$8,$C$5,E6,E6,Pilotage!$D$25)),\"\")","v":0},{"$f":"IF(E6<>\"\",IF($C$5=0,0,$C$5+CUMPRINC($C$6/$C$8,$C$7*$C$8,$C$5,1,E6,Pilotage!$D$25)),\"\")","v":0},null,1,{"$f":"F6","v":"2014-10-01"},{"$f":"IF(K6<>\"\",K6*$C$8-$C$8+1,\"\")","v":1},{"$f":"IF(K6<>\"\",K6*$C$8,\"\")","v":4},{"$f":"IF(K6<>\"\",IF($C$5=0,0,-1*CUMIPMT($C$6/$C$8,$C$7*$C$8,$C$5,M6,N6,Pilotage!$D$25)),\"\")","v":0}]
[null,"Nb années de décaissement",{"$f":"Pilotage!D23","v":15},null,{"$f":"IF(E6<$C$10,E6+1,\"\")","v":2},{"$f":"IF(E7<>\"\",EDATE(F6,$C$11),\"\")","v":"2015-01-01"},{"$f":"IF(E7<>\"\",IF($C$5=0,0,CUMIPMT($C$6/$C$8,$C$7*$C$8,$C$5,1,E7,Pilotage!$D$25)),\"\")","v":0},{"$f":"IF(E7<>\"\",IF($C$5=0,0,CUMIPMT($C$6/$C$8,$C$7*$C$8,$C$5,E7,E7,Pilotage!$D$25)),\"\")","v":0},{"$f":"IF(E7<>\"\",IF($C$5=0,0,$C$5+CUMPRINC($C$6/$C$8,$C$7*$C$8,$C$5,1,E7,Pilotage!$D$25)),\"\")","v":0},null,{"$f":"IF(E6<$C$7,E6+1,\"\")","v":2},{"$f":"IF(K7<>\"\",EDATE(L6,12),\"\")","v":"2015-10-01"},{"$f":"IF(K7<>\"\",K7*$C$8-$C$8+1,\"\")","v":5},8,{"$f":"IF(K7<>\"\",IF($C$5=0,0,-1*CUMIPMT($C$6/$C$8,$C$7*$C$8,$C$5,M7,N7,Pilotage!$D$25)),\"\")","v":0}]
[null,"Périodicité (nb fois/an, 4 = trimest.)",{"$f":"Pilotage!D24","v":4},null,{"$f":"IF(E7<$C$10,E7+1,\"\")","v":3},{"$f":"IF(E8<>\"\",EDATE(F7,$C$11),\"\")","v":"2015-04-01"},{"$f":"IF(E8<>\"\",IF($C$5=0,0,CUMIPMT($C$6/$C$8,$C$7*$C$8,$C$5,1,E8,Pilotage!$D$25)),\"\")","v":0},{"$f":"IF(E8<>\"\",IF($C$5=0,0,CUMIPMT($C$6/$C$8,$C$7*$C$8,$C$5,E8,E8,Pilotage!$D$25)),\"\")","v":0},{"$f":"IF(E8<>\"\",IF($C$5=0,0,$C$5+CUMPRINC($C$6/$C$8,$C$7*$C$8,$C$5,1,E8,Pilotage!$D$25)),\"\")","v":0},null,{"$f":"IF(E7<$C$7,E7+1,\"\")","v":3},{"$f":"IF(K8<>\"\",EDATE(L7,12),\"\")","v":"2016-10-01"},9,12,{"$f":"IF(K8<>\"\",IF($C$5=0,0,-1*CUMIPMT($C$6/$C$8,$C$7*$C$8,$C$5,M8,N8,Pilotage!$D$25)),\"\")","v":0}]
[null,"Date de départ",{"$f":"Pilotage!D26","v":"2014-10-01"},null,4,"2015-07-01",{"$f":"IF(E9<>\"\",IF($C$5=0,0,CUMIPMT($C$6/$C$8,$C$7*$C$8,$C$5,1,E9,Pilotage!$D$25)),\"\")","v":0},{"$f":"IF(E9<>\"\",IF($C$5=0,0,CUMIPMT($C$6/$C$8,$C$7*$C$8,$C$5,E9,E9,Pilotage!$D$25)),\"\")","v":0},{"$f":"IF(E9<>\"\",IF($C$5=0,0,$C$5+CUMPRINC($C$6/$C$8,$C$7*$C$8,$C$5,1,E9,Pilotage!$D$25)),\"\")","v":0},null,4,"2017-10-01",13,16,{"$f":"IF(K9<>\"\",IF($C$5=0,0,-1*CUMIPMT($C$6/$C$8,$C$7*$C$8,$C$5,M9,N9,Pilotage!$D$25)),\"\")","v":0}]
[null,"Échéances",{"$f":"C7*C8","v":60},null,5,"2015-10-01",{"$f":"IF(E10<>\"\",IF($C$5=0,0,CUMIPMT($C$6/$C$8,$C$7*$C$8,$C$5,1,E10,Pilotage!$D$25)),\"\")","v":0},{"$f":"IF(E10<>\"\",IF($C$5=0,0,CUMIPMT($C$6/$C$8,$C$7*$C$8,$C$5,E10,E10,Pilotage!$D$25)),\"\")","v":0},{"$f":"IF(E10<>\"\",IF($C$5=0,0,$C$5+CUMPRINC($C$6/$C$8,$C$7*$C$8,$C$5,1,E10,Pilotage!$D$25)),\"\")","v":0},null,5,"2018-10-01",17,20,{"$f":"IF(K10<>\"\",IF($C$5=0,0,-1*CUMIPMT($C$6/$C$8,$C$7*$C$8,$C$5,M10,N10,Pilotage!$D$25)),\"\")","v":0}]
[null,"Durée de l'échéance",{"$f":"12/C8","v":3},null,6,"2016-01-01",{"$f":"IF(E11<>\"\",IF($C$5=0,0,CUMIPMT($C$6/$C$8,$C$7*$C$8,$C$5,1,E11,Pilotage!$D$25)),\"\")","v":0},{"$f":"IF(E11<>\"\",IF($C$5=0,0,CUMIPMT($C$6/$C$8,$C$7*$C$8,$C$5,E11,E11,Pilotage!$D$25)),\"\")","v":0},{"$f":"IF(E11<>\"\",IF($C$5=0,0,$C$5+CUMPRINC($C$6/$C$8,$C$7*$C$8,$C$5,1,E11,Pilotage!$D$25)),\"\")","v":0},null,6,"2019-10-01",21,24,{"$f":"IF(K11<>\"\",IF($C$5=0,0,-1*CUMIPMT($C$6/$C$8,$C$7*$C$8,$C$5,M11,N11,Pilotage!$D$25)),\"\")","v":0}]
[null,"Montant échéances",{"$f":"PMT($C$6/$C$8,$C$7*$C$8,$C$5,0,Pilotage!D25)*-1","v":0},null,7,"2016-04-01",{"$f":"IF(E12<>\"\",IF($C$5=0,0,CUMIPMT($C$6/$C$8,$C$7*$C$8,$C$5,1,E12,Pilotage!$D$25)),\"\")","v":0},{"$f":"IF(E12<>\"\",IF($C$5=0,0,CUMIPMT($C$6/$C$8,$C$7*$C$8,$C$5,E12,E12,Pilotage!$D$25)),\"\")","v":0},{"$f":"IF(E12<>\"\",IF($C$5=0,0,$C$5+CUMPRINC($C$6/$C$8,$C$7*$C$8,$C$5,1,E12,Pilotage!$D$25)),\"\")","v":0},null,7,"2020-10-01",25,28,{"$f":"IF(K12<>\"\",IF($C$5=0,0,-1*CUMIPMT($C$6/$C$8,$C$7*$C$8,$C$5,M12,N12,Pilotage!$D$25)),\"\")","v":0}]
[null,"Cout total du crédit",{"$f":"C12*C7*C8","v":0},null,8,"2016-07-01",{"$f":"IF(E13<>\"\",IF($C$5=0,0,CUMIPMT($C$6/$C$8,$C$7*$C$8,$C$5,1,E13,Pilotage!$D$25)),\"\")","v":0},{"$f":"IF(E13<>\"\",IF($C$5=0,0,CUMIPMT($C$6/$C$8,$C$7*$C$8,$C$5,E13,E13,Pilotage!$D$25)),\"\")","v":0},{"$f":"IF(E13<>\"\",IF($C$5=0,0,$C$5+CUMPRINC($C$6/$C$8,$C$7*$C$8,$C$5,1,E13,Pilotage!$D$25)),\"\")","v":0},null,8,"2021-10-01",29,32,{"$f":"IF(K13<>\"\",IF($C$5=0,0,-1*CUMIPMT($C$6/$C$8,$C$7*$C$8,$C$5,M13,N13,Pilotage!$D$25)),\"\")","v":0}]
[null,"Montant des intérêts",{"$f":"C13-C5","v":0},null,9,"2016-10-01",{"$f":"IF(E14<>\"\",IF($C$5=0,0,CUMIPMT($C$6/$C$8,$C$7*$C$8,$C$5,1,E14,Pilotage!$D$25)),\"\")","v":0},{"$f":"IF(E14<>\"\",IF($C$5=0,0,CUMIPMT($C$6/$C$8,$C$7*$C$8,$C$5,E14,E14,Pilotage!$D$25)),\"\")","v":0},{"$f":"IF(E14<>\"\",IF($C$5=0,0,$C$5+CUMPRINC($C$6/$C$8,$C$7*$C$8,$C$5,1,E14,Pilotage!$D$25)),\"\")","v":0},null,9,"2022-10-01",33,36,{"$f":"IF(K14<>\"\",IF($C$5=0,0,-1*CUMIPMT($C$6/$C$8,$C$7*$C$8,$C$5,M14,N14,Pilotage!$D$25)),\"\")","v":0}]
[null,null,null,null,10,"2017-01-01",{"$f":"IF(E15<>\"\",IF($C$5=0,0,CUMIPMT($C$6/$C$8,$C$7*$C$8,$C$5,1,E15,Pilotage!$D$25)),\"\")","v":0},{"$f":"IF(E15<>\"\",IF($C$5=0,0,CUMIPMT($C$6/$C$8,$C$7*$C$8,$C$5,E15,E15,Pilotage!$D$25)),\"\")","v":0},{"$f":"IF(E15<>\"\",IF($C$5=0,0,$C$5+CUMPRINC($C$6/$C$8,$C$7*$C$8,$C$5,1,E15,Pilotage!$D$25)),\"\")","v":0},null,10,"2023-10-01",37,40,{"$f":"IF(K15<>\"\",IF($C$5=0,0,-1*CUMIPMT($C$6/$C$8,$C$7*$C$8,$C$5,M15,N15,Pilotage!$D$25)),\"\")","v":0}]
[null,null,null,null,11,"2017-04-01",{"$f":"IF(E16<>\"\",IF($C$5=0,0,CUMIPMT($C$6/$C$8,$C$7*$C$8,$C$5,1,E16,Pilotage!$D$25)),\"\")","v":0},{"$f":"IF(E16<>\"\",IF($C$5=0,0,CUMIPMT($C$6/$C$8,$C$7*$C$8,$C$5,E16,E16,Pilotage!$D$25)),\"\")","v":0},{"$f":"IF(E16<>\"\",IF($C$5=0,0,$C$5+CUMPRINC($C$6/$C$8,$C$7*$C$8,$C$5,1,E16,Pilotage!$D$25)),\"\")","v":0},null,{"$f":"IF(E15<$C$7,E15+1,\"\")","v":11},{"$f":"IF(K16<>\"\",EDATE(L15,12),\"\")","v":"2024-10-01"},{"$f":"IF(K16<>\"\",K16*$C$8-$C$8+1,\"\")","v":41},44,{"$f":"IF(K16<>\"\",-1*CUMIPMT($C$6/$C$8,$C$7*$C$8,$C$5,M16,N16,Pilotage!$D$25),\"\")","v":{"$error":"#NUM!"}}]
[null,null,null,null,12,"2017-07-01",{"$f":"IF(E17<>\"\",IF($C$5=0,0,CUMIPMT($C$6/$C$8,$C$7*$C$8,$C$5,1,E17,Pilotage!$D$25)),\"\")","v":0},{"$f":"IF(E17<>\"\",IF($C$5=0,0,CUMIPMT($C$6/$C$8,$C$7*$C$8,$C$5,E17,E17,Pilotage!$D$25)),\"\")","v":0},{"$f":"IF(E17<>\"\",IF($C$5=0,0,$C$5+CUMPRINC($C$6/$C$8,$C$7*$C$8,$C$5,1,E17,Pilotage!$D$25)),\"\")","v":0},null,{"$f":"IF(E16<$C$7,E16+1,\"\")","v":12},{"$f":"IF(K17<>\"\",EDATE(L16,12),\"\")","v":"2025-10-01"},{"$f":"IF(K17<>\"\",K17*$C$8-$C$8+1,\"\")","v":45},48,{"$f":"IF(K17<>\"\",-1*CUMIPMT($C$6/$C$8,$C$7*$C$8,$C$5,M17,N17,Pilotage!$D$25),\"\")","v":{"$error":"#NUM!"}}]
[null,null,null,null,13,"2017-10-01",{"$f":"IF(E18<>\"\",IF($C$5=0,0,CUMIPMT($C$6/$C$8,$C$7*$C$8,$C$5,1,E18,Pilotage!$D$25)),\"\")","v":0},{"$f":"IF(E18<>\"\",IF($C$5=0,0,CUMIPMT($C$6/$C$8,$C$7*$C$8,$C$5,E18,E18,Pilotage!$D$25)),\"\")","v":0},{"$f":"IF(E18<>\"\",IF($C$5=0,0,$C$5+CUMPRINC($C$6/$C$8,$C$7*$C$8,$C$5,1,E18,Pilotage!$D$25)),\"\")","v":0},null,{"$f":"IF(E17<$C$7,E17+1,\"\")","v":13},{"$f":"IF(K18<>\"\",EDATE(L17,12),\"\")","v":"2026-10-01"},{"$f":"IF(K18<>\"\",K18*$C$8-$C$8+1,\"\")","v":49},52,{"$f":"IF(K18<>\"\",-1*CUMIPMT($C$6/$C$8,$C$7*$C$8,$C$5,M18,N18,Pilotage!$D$25),\"\")","v":{"$error":"#NUM!"}}]
[null,null,null,null,14,"2018-01-01",{"$f":"IF(E19<>\"\",IF($C$5=0,0,CUMIPMT($C$6/$C$8,$C$7*$C$8,$C$5,1,E19,Pilotage!$D$25)),\"\")","v":0},{"$f":"IF(E19<>\"\",IF($C$5=0,0,CUMIPMT($C$6/$C$8,$C$7*$C$8,$C$5,E19,E19,Pilotage!$D$25)),\"\")","v":0},{"$f":"IF(E19<>\"\",IF($C$5=0,0,$C$5+CUMPRINC($C$6/$C$8,$C$7*$C$8,$C$5,1,E19,Pilotage!$D$25)),\"\")","v":0},null,{"$f":"IF(E18<$C$7,E18+1,\"\")","v":14},{"$f":"IF(K19<>\"\",EDATE(L18,12),\"\")","v":"2027-10-01"},{"$f":"IF(K19<>\"\",K19*$C$8-$C$8+1,\"\")","v":53},56,{"$f":"IF(K19<>\"\",-1*CUMIPMT($C$6/$C$8,$C$7*$C$8,$C$5,M19,N19,Pilotage!$D$25),\"\")","v":{"$error":"#NUM!"}}]
[null,null,null,null,15,"2018-04-01",{"$f":"IF(E20<>\"\",IF($C$5=0,0,CUMIPMT($C$6/$C$8,$C$7*$C$8,$C$5,1,E20,Pilotage!$D$25)),\"\")","v":0},{"$f":"IF(E20<>\"\",IF($C$5=0,0,CUMIPMT($C$6/$C$8,$C$7*$C$8,$C$5,E20,E20,Pilotage!$D$25)),\"\")","v":0},{"$f":"IF(E20<>\"\",IF($C$5=0,0,$C$5+CUMPRINC($C$6/$C$8,$C$7*$C$8,$C$5,1,E20,Pilotage!$D$25)),\"\")","v":0},null,{"$f":"IF(E19<$C$7,E19+1,\"\")","v":15},{"$f":"IF(K20<>\"\",EDATE(L19,12),\"\")","v":"2028-10-01"},{"$f":"IF(K20<>\"\",K20*$C$8-$C$8+1,\"\")","v":57},60,{"$f":"IF(K20<>\"\",-1*CUMIPMT($C$6/$C$8,$C$7*$C$8,$C$5,M20,N20,Pilotage!$D$25),\"\")","v":{"$error":"#NUM!"}}]
[null,null,null,null,16,"2018-07-01",{"$f":"IF(E21<>\"\",IF($C$5=0,0,CUMIPMT($C$6/$C$8,$C$7*$C$8,$C$5,1,E21,Pilotage!$D$25)),\"\")","v":0},{"$f":"IF(E21<>\"\",IF($C$5=0,0,CUMIPMT($C$6/$C$8,$C$7*$C$8,$C$5,E21,E21,Pilotage!$D$25)),\"\")","v":0},{"$f":"IF(E21<>\"\",IF($C$5=0,0,$C$5+CUMPRINC($C$6/$C$8,$C$7*$C$8,$C$5,1,E21,Pilotage!$D$25)),\"\")","v":0},null,{"$f":"IF(E20<$C$7,E20+1,\"\")","v":""},{"$f":"IF(K21<>\"\",EDATE(L20,12),\"\")","v":""},{"$f":"IF(K21<>\"\",K21*$C$8-$C$8+1,\"\")","v":""},{"$f":"IF(K21<>\"\",K21*$C$8,\"\")","v":""},{"$f":"IF(K21<>\"\",-1*CUMIPMT($C$6/$C$8,$C$7*$C$8,$C$5,M21,N21,Pilotage!$D$25),\"\")","v":""}]
[null,null,null,null,17,"2018-10-01",{"$f":"IF(E22<>\"\",IF($C$5=0,0,CUMIPMT($C$6/$C$8,$C$7*$C$8,$C$5,1,E22,Pilotage!$D$25)),\"\")","v":0},{"$f":"IF(E22<>\"\",IF($C$5=0,0,CUMIPMT($C$6/$C$8,$C$7*$C$8,$C$5,E22,E22,Pilotage!$D$25)),\"\")","v":0},{"$f":"IF(E22<>\"\",IF($C$5=0,0,$C$5+CUMPRINC($C$6/$C$8,$C$7*$C$8,$C$5,1,E22,Pilotage!$D$25)),\"\")","v":0},null,"","","","",{"$f":"IF(K22<>\"\",-1*CUMIPMT($C$6/$C$8,$C$7*$C$8,$C$5,M22,N22,Pilotage!$D$25),\"\")","v":""}]
[null,null,null,null,18,"2019-01-01",{"$f":"IF(E23<>\"\",IF($C$5=0,0,CUMIPMT($C$6/$C$8,$C$7*$C$8,$C$5,1,E23,Pilotage!$D$25)),\"\")","v":0},{"$f":"IF(E23<>\"\",IF($C$5=0,0,CUMIPMT($C$6/$C$8,$C$7*$C$8,$C$5,E23,E23,Pilotage!$D$25)),\"\")","v":0},{"$f":"IF(E23<>\"\",IF($C$5=0,0,$C$5+CUMPRINC($C$6/$C$8,$C$7*$C$8,$C$5,1,E23,Pilotage!$D$25)),\"\")","v":0},null,"","","","",{"$f":"IF(K23<>\"\",-1*CUMIPMT($C$6/$C$8,$C$7*$C$8,$C$5,M23,N23,Pilotage!$D$25),\"\")","v":""}]
[null,null,null,null,19,"2019-04-01",{"$f":"IF(E24<>\"\",IF($C$5=0,0,CUMIPMT($C$6/$C$8,$C$7*$C$8,$C$5,1,E24,Pilotage!$D$25)),\"\")","v":0},{"$f":"IF(E24<>\"\",IF($C$5=0,0,CUMIPMT($C$6/$C$8,$C$7*$C$8,$C$5,E24,E24,Pilotage!$D$25)),\"\")","v":0},{"$f":"IF(E24<>\"\",IF($C$5=0,0,$C$5+CUMPRINC($C$6/$C$8,$C$7*$C$8,$C$5,1,E24,Pilotage!$D$25)),\"\")","v":0},null,"","","","",{"$f":"IF(K24<>\"\",-1*CUMIPMT($C$6/$C$8,$C$7*$C$8,$C$5,M24,N24,Pilotage!$D$25),\"\")","v":""}]
[null,null,null,null,20,"2019-07-01",{"$f":"IF(E25<>\"\",IF($C$5=0,0,CUMIPMT($C$6/$C$8,$C$7*$C$8,$C$5,1,E25,Pilotage!$D$25)),\"\")","v":0},{"$f":"IF(E25<>\"\",IF($C$5=0,0,CUMIPMT($C$6/$C$8,$C$7*$C$8,$C$5,E25,E25,Pilotage!$D$25)),\"\")","v":0},{"$f":"IF(E25<>\"\",IF($C$5=0,0,$C$5+CUMPRINC($C$6/$C$8,$C$7*$C$8,$C$5,1,E25,Pilotage!$D$25)),\"\")","v":0},null,"","","","",{"$f":"IF(K25<>\"\",-1*CUMIPMT($C$6/$C$8,$C$7*$C$8,$C$5,M25,N25,Pilotage!$D$25),\"\")","v":""}]
[null,null,null,null,21,"2019-10-01",{"$f":"IF(E26<>\"\",IF($C$5=0,0,CUMIPMT($C$6/$C$8,$C$7*$C$8,$C$5,1,E26,Pilotage!$D$25)),\"\")","v":0},{"$f":"IF(E26<>\"\",IF($C$5=0,0,CUMIPMT($C$6/$C$8,$C$7*$C$8,$C$5,E26,E26,Pilotage!$D$25)),\"\")","v":0},{"$f":"IF(E26<>\"\",IF($C$5=0,0,$C$5+CUMPRINC($C$6/$C$8,$C$7*$C$8,$C$5,1,E26,Pilotage!$D$25)),\"\")","v":0},null,"","","","",{"$f":"IF(K26<>\"\",-1*CUMIPMT($C$6/$C$8,$C$7*$C$8,$C$5,M26,N26,Pilotage!$D$25),\"\")","v":""}]
[null,null,null,null,22,"2020-01-01",{"$f":"IF(E27<>\"\",IF($C$5=0,0,CUMIPMT($C$6/$C$8,$C$7*$C$8,$C$5,1,E27,Pilotage!$D$25)),\"\")","v":0},{"$f":"IF(E27<>\"\",IF($C$5=0,0,CUMIPMT($C$6/$C$8,$C$7*$C$8,$C$5,E27,E27,Pilotage!$D$25)),\"\")","v":0},{"$f":"IF(E27<>\"\",IF($C$5=0,0,$C$5+CUMPRINC($C$6/$C$8,$C$7*$C$8,$C$5,1,E27,Pilotage!$D$25)),\"\")","v":0},null,"","","","",{"$f":"IF(K27<>\"\",-1*CUMIPMT($C$6/$C$8,$C$7*$C$8,$C$5,M27,N27,Pilotage!$D$25),\"\")","v":""}]
[null,null,null,null,23,"2020-04-01",{"$f":"IF(E28<>\"\",IF($C$5=0,0,CUMIPMT($C$6/$C$8,$C$7*$C$8,$C$5,1,E28,Pilotage!$D$25)),\"\")","v":0},{"$f":"IF(E28<>\"\",IF($C$5=0,0,CUMIPMT($C$6/$C$8,$C$7*$C$8,$C$5,E28,E28,Pilotage!$D$25)),\"\")","v":0},{"$f":"IF(E28<>\"\",IF($C$5=0,0,$C$5+CUMPRINC($C$6/$C$8,$C$7*$C$8,$C$5,1,E28,Pilotage!$D$25)),\"\")","v":0},null,"","","","",{"$f":"IF(K28<>\"\",-1*CUMIPMT($C$6/$C$8,$C$7*$C$8,$C$5,M28,N28,Pilotage!$D$25),\"\")","v":""}]
[null,null,null,null,24,"2020-07-01",{"$f":"IF(E29<>\"\",IF($C$5=0,0,CUMIPMT($C$6/$C$8,$C$7*$C$8,$C$5,1,E29,Pilotage!$D$25)),\"\")","v":0},{"$f":"IF(E29<>\"\",IF($C$5=0,0,CUMIPMT($C$6/$C$8,$C$7*$C$8,$C$5,E29,E29,Pilotage!$D$25)),\"\")","v":0},{"$f":"IF(E29<>\"\",IF($C$5=0,0,$C$5+CUMPRINC($C$6/$C$8,$C$7*$C$8,$C$5,1,E29,Pilotage!$D$25)),\"\")","v":0},null,"","","","",{"$f":"IF(K29<>\"\",-1*CUMIPMT($C$6/$C$8,$C$7*$C$8,$C$5,M29,N29,Pilotage!$D$25),\"\")","v":""}]
[null,null,null,null,25,"2020-10-01",{"$f":"IF(E30<>\"\",IF($C$5=0,0,CUMIPMT($C$6/$C$8,$C$7*$C$8,$C$5,1,E30,Pilotage!$D$25)),\"\")","v":0},{"$f":"IF(E30<>\"\",IF($C$5=0,0,CUMIPMT($C$6/$C$8,$C$7*$C$8,$C$5,E30,E30,Pilotage!$D$25)),\"\")","v":0},{"$f":"IF(E30<>\"\",IF($C$5=0,0,$C$5+CUMPRINC($C$6/$C$8,$C$7*$C$8,$C$5,1,E30,Pilotage!$D$25)),\"\")","v":0},null,"","","","",{"$f":"IF(K30<>\"\",-1*CUMIPMT($C$6/$C$8,$C$7*$C$8,$C$5,M30,N30,Pilotage!$D$25),\"\")","v":""}]
[null,null,null,null,26,"2021-01-01",{"$f":"IF(E31<>\"\",IF($C$5=0,0,CUMIPMT($C$6/$C$8,$C$7*$C$8,$C$5,1,E31,Pilotage!$D$25)),\"\")","v":0},{"$f":"IF(E31<>\"\",IF($C$5=0,0,CUMIPMT($C$6/$C$8,$C$7*$C$8,$C$5,E31,E31,Pilotage!$D$25)),\"\")","v":0},{"$f":"IF(E31<>\"\",IF($C$5=0,0,$C$5+CUMPRINC($C$6/$C$8,$C$7*$C$8,$C$5,1,E31,Pilotage!$D$25)),\"\")","v":0},null,"","","","",{"$f":"IF(K31<>\"\",-1*CUMIPMT($C$6/$C$8,$C$7*$C$8,$C$5,M31,N31,Pilotage!$D$25),\"\")","v":""}]
[null,null,null,null,27,"2021-04-01",{"$f":"IF(E32<>\"\",IF($C$5=0,0,CUMIPMT($C$6/$C$8,$C$7*$C$8,$C$5,1,E32,Pilotage!$D$25)),\"\")","v":0},{"$f":"IF(E32<>\"\",IF($C$5=0,0,CUMIPMT($C$6/$C$8,$C$7*$C$8,$C$5,E32,E32,Pilotage!$D$25)),\"\")","v":0},{"$f":"IF(E32<>\"\",IF($C$5=0,0,$C$5+CUMPRINC($C$6/$C$8,$C$7*$C$8,$C$5,1,E32,Pilotage!$D$25)),\"\")","v":0},null,"","","","",{"$f":"IF(K32<>\"\",-1*CUMIPMT($C$6/$C$8,$C$7*$C$8,$C$5,M32,N32,Pilotage!$D$25),\"\")","v":""}]
[null,null,null,null,28,"2021-07-01",{"$f":"IF(E33<>\"\",IF($C$5=0,0,CUMIPMT($C$6/$C$8,$C$7*$C$8,$C$5,1,E33,Pilotage!$D$25)),\"\")","v":0},{"$f":"IF(E33<>\"\",IF($C$5=0,0,CUMIPMT($C$6/$C$8,$C$7*$C$8,$C$5,E33,E33,Pilotage!$D$25)),\"\")","v":0},{"$f":"IF(E33<>\"\",IF($C$5=0,0,$C$5+CUMPRINC($C$6/$C$8,$C$7*$C$8,$C$5,1,E33,Pilotage!$D$25)),\"\")","v":0},null,"","","","",{"$f":"IF(K33<>\"\",-1*CUMIPMT($C$6/$C$8,$C$7*$C$8,$C$5,M33,N33,Pilotage!$D$25),\"\")","v":""}]
[null,null,null,null,29,"2021-10-01",{"$f":"IF(E34<>\"\",IF($C$5=0,0,CUMIPMT($C$6/$C$8,$C$7*$C$8,$C$5,1,E34,Pilotage!$D$25)),\"\")","v":0},{"$f":"IF(E34<>\"\",IF($C$5=0,0,CUMIPMT($C$6/$C$8,$C$7*$C$8,$C$5,E34,E34,Pilotage!$D$25)),\"\")","v":0},{"$f":"IF(E34<>\"\",IF($C$5=0,0,$C$5+CUMPRINC($C$6/$C$8,$C$7*$C$8,$C$5,1,E34,Pilotage!$D$25)),\"\")","v":0},null,"","","","",{"$f":"IF(K34<>\"\",-1*CUMIPMT($C$6/$C$8,$C$7*$C$8,$C$5,M34,N34,Pilotage!$D$25),\"\")","v":""}]
[null,null,null,null,30,"2022-01-01",{"$f":"IF(E35<>\"\",IF($C$5=0,0,CUMIPMT($C$6/$C$8,$C$7*$C$8,$C$5,1,E35,Pilotage!$D$25)),\"\")","v":0},{"$f":"IF(E35<>\"\",IF($C$5=0,0,CUMIPMT($C$6/$C$8,$C$7*$C$8,$C$5,E35,E35,Pilotage!$D$25)),\"\")","v":0},{"$f":"IF(E35<>\"\",IF($C$5=0,0,$C$5+CUMPRINC($C$6/$C$8,$C$7*$C$8,$C$5,1,E35,Pilotage!$D$25)),\"\")","v":0},null,"","","","",{"$f":"IF(K35<>\"\",-1*CUMIPMT($C$6/$C$8,$C$7*$C$8,$C$5,M35,N35,Pilotage!$D$25),\"\")","v":""}]
[null,null,null,null,31,"2022-04-01",{"$f":"IF(E36<>\"\",IF($C$5=0,0,CUMIPMT($C$6/$C$8,$C$7*$C$8,$C$5,1,E36,Pilotage!$D$25)),\"\")","v":0},{"$f":"IF(E36<>\"\",IF($C$5=0,0,CUMIPMT($C$6/$C$8,$C$7*$C$8,$C$5,E36,E36,Pilotage!$D$25)),\"\")","v":0},{"$f":"IF(E36<>\"\",IF($C$5=0,0,$C$5+CUMPRINC($C$6/$C$8,$C$7*$C$8,$C$5,1,E36,Pilotage!$D$25)),\"\")","v":0},null,"","","","",{"$f":"IF(K36<>\"\",-1*CUMIPMT($C$6/$C$8,$C$7*$C$8,$C$5,M36,N36,Pilotage!$D$25),\"\")","v":""}]
[null,null,null,null,32,"2022-07-01",{"$f":"IF(E37<>\"\",IF($C$5=0,0,CUMIPMT($C$6/$C$8,$C$7*$C$8,$C$5,1,E37,Pilotage!$D$25)),\"\")","v":0},{"$f":"IF(E37<>\"\",IF($C$5=0,0,CUMIPMT($C$6/$C$8,$C$7*$C$8,$C$5,E37,E37,Pilotage!$D$25)),\"\")","v":0},{"$f":"IF(E37<>\"\",IF($C$5=0,0,$C$5+CUMPRINC($C$6/$C$8,$C$7*$C$8,$C$5,1,E37,Pilotage!$D$25)),\"\")","v":0},null,"","","","",{"$f":"IF(K37<>\"\",-1*CUMIPMT($C$6/$C$8,$C$7*$C$8,$C$5,M37,N37,Pilotage!$D$25),\"\")","v":""}]
[null,null,null,null,33,"2022-10-01",{"$f":"IF(E38<>\"\",IF($C$5=0,0,CUMIPMT($C$6/$C$8,$C$7*$C$8,$C$5,1,E38,Pilotage!$D$25)),\"\")","v":0},{"$f":"IF(E38<>\"\",IF($C$5=0,0,CUMIPMT($C$6/$C$8,$C$7*$C$8,$C$5,E38,E38,Pilotage!$D$25)),\"\")","v":0},{"$f":"IF(E38<>\"\",IF($C$5=0,0,$C$5+CUMPRINC($C$6/$C$8,$C$7*$C$8,$C$5,1,E38,Pilotage!$D$25)),\"\")","v":0},null,"","","","",{"$f":"IF(K38<>\"\",-1*CUMIPMT($C$6/$C$8,$C$7*$C$8,$C$5,M38,N38,Pilotage!$D$25),\"\")","v":""}]
[null,null,null,null,34,"2023-01-01",{"$f":"IF(E39<>\"\",IF($C$5=0,0,CUMIPMT($C$6/$C$8,$C$7*$C$8,$C$5,1,E39,Pilotage!$D$25)),\"\")","v":0},{"$f":"IF(E39<>\"\",IF($C$5=0,0,CUMIPMT($C$6/$C$8,$C$7*$C$8,$C$5,E39,E39,Pilotage!$D$25)),\"\")","v":0},{"$f":"IF(E39<>\"\",IF($C$5=0,0,$C$5+CUMPRINC($C$6/$C$8,$C$7*$C$8,$C$5,1,E39,Pilotage!$D$25)),\"\")","v":0},null,"","","","",{"$f":"IF(K39<>\"\",-1*CUMIPMT($C$6/$C$8,$C$7*$C$8,$C$5,M39,N39,Pilotage!$D$25),\"\")","v":""}]
[null,null,null,null,35,"2023-04-01",{"$f":"IF(E40<>\"\",IF($C$5=0,0,CUMIPMT($C$6/$C$8,$C$7*$C$8,$C$5,1,E40,Pilotage!$D$25)),\"\")","v":0},{"$f":"IF(E40<>\"\",IF($C$5=0,0,CUMIPMT($C$6/$C$8,$C$7*$C$8,$C$5,E40,E40,Pilotage!$D$25)),\"\")","v":0},{"$f":"IF(E40<>\"\",IF($C$5=0,0,$C$5+CUMPRINC($C$6/$C$8,$C$7*$C$8,$C$5,1,E40,Pilotage!$D$25)),\"\")","v":0},null,"","","","",{"$f":"IF(K40<>\"\",-1*CUMIPMT($C$6/$C$8,$C$7*$C$8,$C$5,M40,N40,Pilotage!$D$25),\"\")","v":""}]
[null,null,null,null,36,"2023-07-01",{"$f":"IF(E41<>\"\",IF($C$5=0,0,CUMIPMT($C$6/$C$8,$C$7*$C$8,$C$5,1,E41,Pilotage!$D$25)),\"\")","v":0},{"$f":"IF(E41<>\"\",IF($C$5=0,0,CUMIPMT($C$6/$C$8,$C$7*$C$8,$C$5,E41,E41,Pilotage!$D$25)),\"\")","v":0},{"$f":"IF(E41<>\"\",IF($C$5=0,0,$C$5+CUMPRINC($C$6/$C$8,$C$7*$C$8,$C$5,1,E41,Pilotage!$D$25)),\"\")","v":0},null,"","","","",{"$f":"IF(K41<>\"\",-1*CUMIPMT($C$6/$C$8,$C$7*$C$8,$C$5,M41,N41,Pilotage!$D$25),\"\")","v":""}]
[null,null,null,null,37,"2023-10-01",{"$f":"IF(E42<>\"\",IF($C$5=0,0,CUMIPMT($C$6/$C$8,$C$7*$C$8,$C$5,1,E42,Pilotage!$D$25)),\"\")","v":0},{"$f":"IF(E42<>\"\",IF($C$5=0,0,CUMIPMT($C$6/$C$8,$C$7*$C$8,$C$5,E42,E42,Pilotage!$D$25)),\"\")","v":0},{"$f":"IF(E42<>\"\",IF($C$5=0,0,$C$5+CUMPRINC($C$6/$C$8,$C$7*$C$8,$C$5,1,E42,Pilotage!$D$25)),\"\")","v":0},null,"","","","",{"$f":"IF(K42<>\"\",-1*CUMIPMT($C$6/$C$8,$C$7*$C$8,$C$5,M42,N42,Pilotage!$D$25),\"\")","v":""}]
[null,null,null,null,38,"2024-01-01",{"$f":"IF(E43<>\"\",IF($C$5=0,0,CUMIPMT($C$6/$C$8,$C$7*$C$8,$C$5,1,E43,Pilotage!$D$25)),\"\")","v":0},{"$f":"IF(E43<>\"\",IF($C$5=0,0,CUMIPMT($C$6/$C$8,$C$7*$C$8,$C$5,E43,E43,Pilotage!$D$25)),\"\")","v":0},{"$f":"IF(E43<>\"\",IF($C$5=0,0,$C$5+CUMPRINC($C$6/$C$8,$C$7*$C$8,$C$5,1,E43,Pilotage!$D$25)),\"\")","v":0},null,"","","","",{"$f":"IF(K43<>\"\",-1*CUMIPMT($C$6/$C$8,$C$7*$C$8,$C$5,M43,N43,Pilotage!$D$25),\"\")","v":""}]
[null,null,null,null,39,"2024-04-01",{"$f":"IF(E44<>\"\",IF($C$5=0,0,CUMIPMT($C$6/$C$8,$C$7*$C$8,$C$5,1,E44,Pilotage!$D$25)),\"\")","v":0},{"$f":"IF(E44<>\"\",IF($C$5=0,0,CUMIPMT($C$6/$C$8,$C$7*$C$8,$C$5,E44,E44,Pilotage!$D$25)),\"\")","v":0},{"$f":"IF(E44<>\"\",IF($C$5=0,0,$C$5+CUMPRINC($C$6/$C$8,$C$7*$C$8,$C$5,1,E44,Pilotage!$D$25)),\"\")","v":0},null,"","","","",{"$f":"IF(K44<>\"\",-1*CUMIPMT($C$6/$C$8,$C$7*$C$8,$C$5,M44,N44,Pilotage!$D$25),\"\")","v":""}]
[null,null,null,null,40,"2024-07-01",{"$f":"IF(E45<>\"\",IF($C$5=0,0,CUMIPMT($C$6/$C$8,$C$7*$C$8,$C$5,1,E45,Pilotage!$D$25)),\"\")","v":0},{"$f":"IF(E45<>\"\",IF($C$5=0,0,CUMIPMT($C$6/$C$8,$C$7*$C$8,$C$5,E45,E45,Pilotage!$D$25)),\"\")","v":0},{"$f":"IF(E45<>\"\",IF($C$5=0,0,$C$5+CUMPRINC($C$6/$C$8,$C$7*$C$8,$C$5,1,E45,Pilotage!$D$25)),\"\")","v":0},null,"","","","",{"$f":"IF(K45<>\"\",-1*CUMIPMT($C$6/$C$8,$C$7*$C$8,$C$5,M45,N45,Pilotage!$D$25),\"\")","v":""}]
[null,null,null,null,41,"2024-10-01",{"$f":"IF(E46<>\"\",IF($C$5=0,0,CUMIPMT($C$6/$C$8,$C$7*$C$8,$C$5,1,E46,Pilotage!$D$25)),\"\")","v":0},{"$f":"IF(E46<>\"\",IF($C$5=0,0,CUMIPMT($C$6/$C$8,$C$7*$C$8,$C$5,E46,E46,Pilotage!$D$25)),\"\")","v":0},{"$f":"IF(E46<>\"\",IF($C$5=0,0,$C$5+CUMPRINC($C$6/$C$8,$C$7*$C$8,$C$5,1,E46,Pilotage!$D$25)),\"\")","v":0},null,"","","","",{"$f":"IF(K46<>\"\",-1*CUMIPMT($C$6/$C$8,$C$7*$C$8,$C$5,M46,N46,Pilotage!$D$25),\"\")","v":""}]
[null,null,null,null,42,"2025-01-01",{"$f":"IF(E47<>\"\",IF($C$5=0,0,CUMIPMT($C$6/$C$8,$C$7*$C$8,$C$5,1,E47,Pilotage!$D$25)),\"\")","v":0},{"$f":"IF(E47<>\"\",IF($C$5=0,0,CUMIPMT($C$6/$C$8,$C$7*$C$8,$C$5,E47,E47,Pilotage!$D$25)),\"\")","v":0},{"$f":"IF(E47<>\"\",IF($C$5=0,0,$C$5+CUMPRINC($C$6/$C$8,$C$7*$C$8,$C$5,1,E47,Pilotage!$D$25)),\"\")","v":0},null,"","","","",{"$f":"IF(K47<>\"\",-1*CUMIPMT($C$6/$C$8,$C$7*$C$8,$C$5,M47,N47,Pilotage!$D$25),\"\")","v":""}]
[null,null,null,null,43,"2025-04-01",{"$f":"IF(E48<>\"\",IF($C$5=0,0,CUMIPMT($C$6/$C$8,$C$7*$C$8,$C$5,1,E48,Pilotage!$D$25)),\"\")","v":0},{"$f":"IF(E48<>\"\",IF($C$5=0,0,CUMIPMT($C$6/$C$8,$C$7*$C$8,$C$5,E48,E48,Pilotage!$D$25)),\"\")","v":0},{"$f":"IF(E48<>\"\",IF($C$5=0,0,$C$5+CUMPRINC($C$6/$C$8,$C$7*$C$8,$C$5,1,E48,Pilotage!$D$25)),\"\")","v":0},null,"","","","",{"$f":"IF(K48<>\"\",-1*CUMIPMT($C$6/$C$8,$C$7*$C$8,$C$5,M48,N48,Pilotage!$D$25),\"\")","v":""}]
[null,null,null,null,44,"2025-07-01",{"$f":"IF(E49<>\"\",IF($C$5=0,0,CUMIPMT($C$6/$C$8,$C$7*$C$8,$C$5,1,E49,Pilotage!$D$25)),\"\")","v":0},{"$f":"IF(E49<>\"\",IF($C$5=0,0,CUMIPMT($C$6/$C$8,$C$7*$C$8,$C$5,E49,E49,Pilotage!$D$25)),\"\")","v":0},{"$f":"IF(E49<>\"\",IF($C$5=0,0,$C$5+CUMPRINC($C$6/$C$8,$C$7*$C$8,$C$5,1,E49,Pilotage!$D$25)),\"\")","v":0},null,"","","","",{"$f":"IF(K49<>\"\",-1*CUMIPMT($C$6/$C$8,$C$7*$C$8,$C$5,M49,N49,Pilotage!$D$25),\"\")","v":""}]
[null,null,null,null,45,"2025-10-01",{"$f":"IF(E50<>\"\",IF($C$5=0,0,CUMIPMT($C$6/$C$8,$C$7*$C$8,$C$5,1,E50,Pilotage!$D$25)),\"\")","v":0},{"$f":"IF(E50<>\"\",IF($C$5=0,0,CUMIPMT($C$6/$C$8,$C$7*$C$8,$C$5,E50,E50,Pilotage!$D$25)),\"\")","v":0},{"$f":"IF(E50<>\"\",IF($C$5=0,0,$C$5+CUMPRINC($C$6/$C$8,$C$7*$C$8,$C$5,1,E50,Pilotage!$D$25)),\"\")","v":0},null,"","","","",{"$f":"IF(K50<>\"\",-1*CUMIPMT($C$6/$C$8,$C$7*$C$8,$C$5,M50,N50,Pilotage!$D$25),\"\")","v":""}]
[null,null,null,null,46,"2026-01-01",{"$f":"IF(E51<>\"\",IF($C$5=0,0,CUMIPMT($C$6/$C$8,$C$7*$C$8,$C$5,1,E51,Pilotage!$D$25)),\"\")","v":0},{"$f":"IF(E51<>\"\",IF($C$5=0,0,CUMIPMT($C$6/$C$8,$C$7*$C$8,$C$5,E51,E51,Pilotage!$D$25)),\"\")","v":0},{"$f":"IF(E51<>\"\",IF($C$5=0,0,$C$5+CUMPRINC($C$6/$C$8,$C$7*$C$8,$C$5,1,E51,Pilotage!$D$25)),\"\")","v":0},null,"","","","",{"$f":"IF(K51<>\"\",-1*CUMIPMT($C$6/$C$8,$C$7*$C$8,$C$5,M51,N51,Pilotage!$D$25),\"\")","v":""}]
[null,null,null,null,47,"2026-04-01",{"$f":"IF(E52<>\"\",IF($C$5=0,0,CUMIPMT($C$6/$C$8,$C$7*$C$8,$C$5,1,E52,Pilotage!$D$25)),\"\")","v":0},{"$f":"IF(E52<>\"\",IF($C$5=0,0,CUMIPMT($C$6/$C$8,$C$7*$C$8,$C$5,E52,E52,Pilotage!$D$25)),\"\")","v":0},{"$f":"IF(E52<>\"\",IF($C$5=0,0,$C$5+CUMPRINC($C$6/$C$8,$C$7*$C$8,$C$5,1,E52,Pilotage!$D$25)),\"\")","v":0},null,"","","","",{"$f":"IF(K52<>\"\",-1*CUMIPMT($C$6/$C$8,$C$7*$C$8,$C$5,M52,N52,Pilotage!$D$25),\"\")","v":""}]
[null,null,null,null,48,"2026-07-01",{"$f":"IF(E53<>\"\",IF($C$5=0,0,CUMIPMT($C$6/$C$8,$C$7*$C$8,$C$5,1,E53,Pilotage!$D$25)),\"\")","v":0},{"$f":"IF(E53<>\"\",IF($C$5=0,0,CUMIPMT($C$6/$C$8,$C$7*$C$8,$C$5,E53,E53,Pilotage!$D$25)),\"\")","v":0},{"$f":"IF(E53<>\"\",IF($C$5=0,0,$C$5+CUMPRINC($C$6/$C$8,$C$7*$C$8,$C$5,1,E53,Pilotage!$D$25)),\"\")","v":0},null,"","","","",{"$f":"IF(K53<>\"\",-1*CUMIPMT($C$6/$C$8,$C$7*$C$8,$C$5,M53,N53,Pilotage!$D$25),\"\")","v":""}]
[null,null,null,null,49,"2026-10-01",{"$f":"IF(E54<>\"\",IF($C$5=0,0,CUMIPMT($C$6/$C$8,$C$7*$C$8,$C$5,1,E54,Pilotage!$D$25)),\"\")","v":0},{"$f":"IF(E54<>\"\",IF($C$5=0,0,CUMIPMT($C$6/$C$8,$C$7*$C$8,$C$5,E54,E54,Pilotage!$D$25)),\"\")","v":0},{"$f":"IF(E54<>\"\",IF($C$5=0,0,$C$5+CUMPRINC($C$6/$C$8,$C$7*$C$8,$C$5,1,E54,Pilotage!$D$25)),\"\")","v":0},null,"","","","",{"$f":"IF(K54<>\"\",-1*CUMIPMT($C$6/$C$8,$C$7*$C$8,$C$5,M54,N54,Pilotage!$D$25),\"\")","v":""}]
[null,null,null,null,50,"2027-01-01",{"$f":"IF(E55<>\"\",IF($C$5=0,0,CUMIPMT($C$6/$C$8,$C$7*$C$8,$C$5,1,E55,Pilotage!$D$25)),\"\")","v":0},{"$f":"IF(E55<>\"\",IF($C$5=0,0,CUMIPMT($C$6/$C$8,$C$7*$C$8,$C$5,E55,E55,Pilotage!$D$25)),\"\")","v":0},{"$f":"IF(E55<>\"\",IF($C$5=0,0,$C$5+CUMPRINC($C$6/$C$8,$C$7*$C$8,$C$5,1,E55,Pilotage!$D$25)),\"\")","v":0},null,"","","","",{"$f":"IF(K55<>\"\",-1*CUMIPMT($C$6/$C$8,$C$7*$C$8,$C$5,M55,N55,Pilotage!$D$25),\"\")","v":""}]
[null,null,null,null,51,"2027-04-01",{"$f":"IF(E56<>\"\",IF($C$5=0,0,CUMIPMT($C$6/$C$8,$C$7*$C$8,$C$5,1,E56,Pilotage!$D$25)),\"\")","v":0},{"$f":"IF(E56<>\"\",IF($C$5=0,0,CUMIPMT($C$6/$C$8,$C$7*$C$8,$C$5,E56,E56,Pilotage!$D$25)),\"\")","v":0},{"$f":"IF(E56<>\"\",IF($C$5=0,0,$C$5+CUMPRINC($C$6/$C$8,$C$7*$C$8,$C$5,1,E56,Pilotage!$D$25)),\"\")","v":0},null,"","","","",{"$f":"IF(K56<>\"\",-1*CUMIPMT($C$6/$C$8,$C$7*$C$8,$C$5,M56,N56,Pilotage!$D$25),\"\")","v":""}]
[null,null,null,null,52,"2027-07-01",{"$f":"IF(E57<>\"\",IF($C$5=0,0,CUMIPMT($C$6/$C$8,$C$7*$C$8,$C$5,1,E57,Pilotage!$D$25)),\"\")","v":0},{"$f":"IF(E57<>\"\",IF($C$5=0,0,CUMIPMT($C$6/$C$8,$C$7*$C$8,$C$5,E57,E57,Pilotage!$D$25)),\"\")","v":0},{"$f":"IF(E57<>\"\",IF($C$5=0,0,$C$5+CUMPRINC($C$6/$C$8,$C$7*$C$8,$C$5,1,E57,Pilotage!$D$25)),\"\")","v":0},null,"","","","",{"$f":"IF(K57<>\"\",-1*CUMIPMT($C$6/$C$8,$C$7*$C$8,$C$5,M57,N57,Pilotage!$D$25),\"\")","v":""}]
[null,null,null,null,53,"2027-10-01",{"$f":"IF(E58<>\"\",IF($C$5=0,0,CUMIPMT($C$6/$C$8,$C$7*$C$8,$C$5,1,E58,Pilotage!$D$25)),\"\")","v":0},{"$f":"IF(E58<>\"\",IF($C$5=0,0,CUMIPMT($C$6/$C$8,$C$7*$C$8,$C$5,E58,E58,Pilotage!$D$25)),\"\")","v":0},{"$f":"IF(E58<>\"\",IF($C$5=0,0,$C$5+CUMPRINC($C$6/$C$8,$C$7*$C$8,$C$5,1,E58,Pilotage!$D$25)),\"\")","v":0},null,"","","","",{"$f":"IF(K58<>\"\",-1*CUMIPMT($C$6/$C$8,$C$7*$C$8,$C$5,M58,N58,Pilotage!$D$25),\"\")","v":""}]
[null,null,null,null,54,"2028-01-01",{"$f":"IF(E59<>\"\",IF($C$5=0,0,CUMIPMT($C$6/$C$8,$C$7*$C$8,$C$5,1,E59,Pilotage!$D$25)),\"\")","v":0},{"$f":"IF(E59<>\"\",IF($C$5=0,0,CUMIPMT($C$6/$C$8,$C$7*$C$8,$C$5,E59,E59,Pilotage!$D$25)),\"\")","v":0},{"$f":"IF(E59<>\"\",IF($C$5=0,0,$C$5+CUMPRINC($C$6/$C$8,$C$7*$C$8,$C$5,1,E59,Pilotage!$D$25)),\"\")","v":0},null,"","","","",{"$f":"IF(K59<>\"\",-1*CUMIPMT($C$6/$C$8,$C$7*$C$8,$C$5,M59,N59,Pilotage!$D$25),\"\")","v":""}]
[null,null,null,null,55,"2028-04-01",{"$f":"IF(E60<>\"\",IF($C$5=0,0,CUMIPMT($C$6/$C$8,$C$7*$C$8,$C$5,1,E60,Pilotage!$D$25)),\"\")","v":0},{"$f":"IF(E60<>\"\",IF($C$5=0,0,CUMIPMT($C$6/$C$8,$C$7*$C$8,$C$5,E60,E60,Pilotage!$D$25)),\"\")","v":0},{"$f":"IF(E60<>\"\",IF($C$5=0,0,$C$5+CUMPRINC($C$6/$C$8,$C$7*$C$8,$C$5,1,E60,Pilotage!$D$25)),\"\")","v":0},null,null,null,null,{"$f":"IF(K60<>\"\",K60*$C$8,\"\")","v":""},{"$f":"IF(K60<>\"\",-1*CUMIPMT($C$6/$C$8,$C$7*$C$8,$C$5,M60,N60,Pilotage!$D$25),\"\")","v":""}]
[null,null,null,null,56,"2028-07-01",{"$f":"IF(E61<>\"\",IF($C$5=0,0,CUMIPMT($C$6/$C$8,$C$7*$C$8,$C$5,1,E61,Pilotage!$D$25)),\"\")","v":0},{"$f":"IF(E61<>\"\",IF($C$5=0,0,CUMIPMT($C$6/$C$8,$C$7*$C$8,$C$5,E61,E61,Pilotage!$D$25)),\"\")","v":0},{"$f":"IF(E61<>\"\",IF($C$5=0,0,$C$5+CUMPRINC($C$6/$C$8,$C$7*$C$8,$C$5,1,E61,Pilotage!$D$25)),\"\")","v":0},null,null,null,null,{"$f":"IF(K61<>\"\",K61*$C$8,\"\")","v":""},{"$f":"IF(K61<>\"\",-1*CUMIPMT($C$6/$C$8,$C$7*$C$8,$C$5,M61,N61,Pilotage!$D$25),\"\")","v":""}]
[null,null,null,null,57,"2028-10-01",{"$f":"IF(E62<>\"\",IF($C$5=0,0,CUMIPMT($C$6/$C$8,$C$7*$C$8,$C$5,1,E62,Pilotage!$D$25)),\"\")","v":0},{"$f":"IF(E62<>\"\",IF($C$5=0,0,CUMIPMT($C$6/$C$8,$C$7*$C$8,$C$5,E62,E62,Pilotage!$D$25)),\"\")","v":0},{"$f":"IF(E62<>\"\",IF($C$5=0,0,$C$5+CUMPRINC($C$6/$C$8,$C$7*$C$8,$C$5,1,E62,Pilotage!$D$25)),\"\")","v":0},null,null,null,null,{"$f":"IF(K62<>\"\",K62*$C$8,\"\")","v":""},{"$f":"IF(K62<>\"\",-1*CUMIPMT($C$6/$C$8,$C$7*$C$8,$C$5,M62,N62,Pilotage!$D$25),\"\")","v":""}]
[null,null,null,null,58,"2029-01-01",{"$f":"IF(E63<>\"\",IF($C$5=0,0,CUMIPMT($C$6/$C$8,$C$7*$C$8,$C$5,1,E63,Pilotage!$D$25)),\"\")","v":0},{"$f":"IF(E63<>\"\",IF($C$5=0,0,CUMIPMT($C$6/$C$8,$C$7*$C$8,$C$5,E63,E63,Pilotage!$D$25)),\"\")","v":0},{"$f":"IF(E63<>\"\",IF($C$5=0,0,$C$5+CUMPRINC($C$6/$C$8,$C$7*$C$8,$C$5,1,E63,Pilotage!$D$25)),\"\")","v":0},null,null,null,null,null,{"$f":"IF(K63<>\"\",-1*CUMIPMT($C$6/$C$8,$C$7*$C$8,$C$5,M63,N63,Pilotage!$D$25),\"\")","v":""}]
[null,null,null,null,59,"2029-04-01",{"$f":"IF(E64<>\"\",IF($C$5=0,0,CUMIPMT($C$6/$C$8,$C$7*$C$8,$C$5,1,E64,Pilotage!$D$25)),\"\")","v":0},{"$f":"IF(E64<>\"\",IF($C$5=0,0,CUMIPMT($C$6/$C$8,$C$7*$C$8,$C$5,E64,E64,Pilotage!$D$25)),\"\")","v":0},{"$f":"IF(E64<>\"\",IF($C$5=0,0,$C$5+CUMPRINC($C$6/$C$8,$C$7*$C$8,$C$5,1,E64,Pilotage!$D$25)),\"\")","v":0},null,null,null,null,null,{"$f":"IF(K64<>\"\",-1*CUMIPMT($C$6/$C$8,$C$7*$C$8,$C$5,M64,N64,Pilotage!$D$25),\"\")","v":""}]
[null,null,null,null,60,"2029-07-01",{"$f":"IF(E65<>\"\",IF($C$5=0,0,CUMIPMT($C$6/$C$8,$C$7*$C$8,$C$5,1,E65,Pilotage!$D$25)),\"\")","v":0},{"$f":"IF(E65<>\"\",IF($C$5=0,0,CUMIPMT($C$6/$C$8,$C$7*$C$8,$C$5,E65,E65,Pilotage!$D$25)),\"\")","v":0},{"$f":"IF(E65<>\"\",IF($C$5=0,0,$C$5+CUMPRINC($C$6/$C$8,$C$7*$C$8,$C$5,1,E65,Pilotage!$D$25)),\"\")","v":0},null,null,null,null,null,{"$f":"IF(K65<>\"\",-1*CUMIPMT($C$6/$C$8,$C$7*$C$8,$C$5,M65,N65,Pilotage!$D$25),\"\")","v":""}]
[null,null,null,null,"","",{"$f":"IF(E66<>\"\",IF($C$5=0,0,CUMIPMT($C$6/$C$8,$C$7*$C$8,$C$5,1,E66,Pilotage!$D$25)),\"\")","v":""},{"$f":"IF(E66<>\"\",IF($C$5=0,0,CUMIPMT($C$6/$C$8,$C$7*$C$8,$C$5,E66,E66,Pilotage!$D$25)),\"\")","v":""},{"$f":"IF(E66<>\"\",IF($C$5=0,0,$C$5+CUMPRINC($C$6/$C$8,$C$7*$C$8,$C$5,1,E66,Pilotage!$D$25)),\"\")","v":""},null,null,null,null,null,{"$f":"IF(K66<>\"\",-1*CUMIPMT($C$6/$C$8,$C$7*$C$8,$C$5,M66,N66,Pilotage!$D$25),\"\")","v":""}]
[null,null,null,null,"","",{"$f":"IF(E67<>\"\",IF($C$5=0,0,CUMIPMT($C$6/$C$8,$C$7*$C$8,$C$5,1,E67,Pilotage!$D$25)),\"\")","v":""},{"$f":"IF(E67<>\"\",IF($C$5=0,0,CUMIPMT($C$6/$C$8,$C$7*$C$8,$C$5,E67,E67,Pilotage!$D$25)),\"\")","v":""},{"$f":"IF(E67<>\"\",IF($C$5=0,0,$C$5+CUMPRINC($C$6/$C$8,$C$7*$C$8,$C$5,1,E67,Pilotage!$D$25)),\"\")","v":""},null,null,null,null,null,{"$f":"IF(K67<>\"\",-1*CUMIPMT($C$6/$C$8,$C$7*$C$8,$C$5,M67,N67,Pilotage!$D$25),\"\")","v":""}]
[null,null,null,null,"","",{"$f":"IF(E68<>\"\",IF($C$5=0,0,CUMIPMT($C$6/$C$8,$C$7*$C$8,$C$5,1,E68,Pilotage!$D$25)),\"\")","v":""},{"$f":"IF(E68<>\"\",IF($C$5=0,0,CUMIPMT($C$6/$C$8,$C$7*$C$8,$C$5,E68,E68,Pilotage!$D$25)),\"\")","v":""},{"$f":"IF(E68<>\"\",IF($C$5=0,0,$C$5+CUMPRINC($C$6/$C$8,$C$7*$C$8,$C$5,1,E68,Pilotage!$D$25)),\"\")","v":""},null,null,null,null,null,{"$f":"IF(K68<>\"\",-1*CUMIPMT($C$6/$C$8,$C$7*$C$8,$C$5,M68,N68,Pilotage!$D$25),\"\")","v":""}]
[null,null,null,null,"","",{"$f":"IF(E69<>\"\",IF($C$5=0,0,CUMIPMT($C$6/$C$8,$C$7*$C$8,$C$5,1,E69,Pilotage!$D$25)),\"\")","v":""},{"$f":"IF(E69<>\"\",IF($C$5=0,0,CUMIPMT($C$6/$C$8,$C$7*$C$8,$C$5,E69,E69,Pilotage!$D$25)),\"\")","v":""},{"$f":"IF(E69<>\"\",IF($C$5=0,0,$C$5+CUMPRINC($C$6/$C$8,$C$7*$C$8,$C$5,1,E69,Pilotage!$D$25)),\"\")","v":""},null,null,null,null,null,{"$f":"IF(K69<>\"\",-1*CUMIPMT($C$6/$C$8,$C$7*$C$8,$C$5,M69,N69,Pilotage!$D$25),\"\")","v":""}]
[null,null,null,null,"","",{"$f":"IF(E70<>\"\",IF($C$5=0,0,CUMIPMT($C$6/$C$8,$C$7*$C$8,$C$5,1,E70,Pilotage!$D$25)),\"\")","v":""},{"$f":"IF(E70<>\"\",IF($C$5=0,0,CUMIPMT($C$6/$C$8,$C$7*$C$8,$C$5,E70,E70,Pilotage!$D$25)),\"\")","v":""},{"$f":"IF(E70<>\"\",IF($C$5=0,0,$C$5+CUMPRINC($C$6/$C$8,$C$7*$C$8,$C$5,1,E70,Pilotage!$D$25)),\"\")","v":""},null,null,null,null,null,{"$f":"IF(K70<>\"\",-1*CUMIPMT($C$6/$C$8,$C$7*$C$8,$C$5,M70,N70,Pilotage!$D$25),\"\")","v":""}]
[null,null,null,null,"","",{"$f":"IF(E71<>\"\",IF($C$5=0,0,CUMIPMT($C$6/$C$8,$C$7*$C$8,$C$5,1,E71,Pilotage!$D$25)),\"\")","v":""},{"$f":"IF(E71<>\"\",IF($C$5=0,0,CUMIPMT($C$6/$C$8,$C$7*$C$8,$C$5,E71,E71,Pilotage!$D$25)),\"\")","v":""},{"$f":"IF(E71<>\"\",IF($C$5=0,0,$C$5+CUMPRINC($C$6/$C$8,$C$7*$C$8,$C$5,1,E71,Pilotage!$D$25)),\"\")","v":""},null,null,null,null,null,{"$f":"IF(K71<>\"\",-1*CUMIPMT($C$6/$C$8,$C$7*$C$8,$C$5,M71,N71,Pilotage!$D$25),\"\")","v":""}]
[null,null,null,null,{"$f":"IF(E71<$C$10,E71+1,\"\")","v":""},{"$f":"IF(E72<>\"\",EDATE(F71,$C$11),\"\")","v":""},{"$f":"IF(E72<>\"\",IF($C$5=0,0,CUMIPMT($C$6/$C$8,$C$7*$C$8,$C$5,1,E72,Pilotage!$D$25)),\"\")","v":""},{"$f":"IF(E72<>\"\",IF($C$5=0,0,CUMIPMT($C$6/$C$8,$C$7*$C$8,$C$5,E72,E72,Pilotage!$D$25)),\"\")","v":""},{"$f":"IF(E72<>\"\",IF($C$5=0,0,$C$5+CUMPRINC($C$6/$C$8,$C$7*$C$8,$C$5,1,E72,Pilotage!$D$25)),\"\")","v":""},null,null,null,null,null,{"$f":"IF(K72<>\"\",-1*CUMIPMT($C$6/$C$8,$C$7*$C$8,$C$5,M72,N72,Pilotage!$D$25),\"\")","v":""}]
[null,null,null,null,"","",{"$f":"IF(E73<>\"\",IF($C$5=0,0,CUMIPMT($C$6/$C$8,$C$7*$C$8,$C$5,1,E73,Pilotage!$D$25)),\"\")","v":""},{"$f":"IF(E73<>\"\",IF($C$5=0,0,CUMIPMT($C$6/$C$8,$C$7*$C$8,$C$5,E73,E73,Pilotage!$D$25)),\"\")","v":""},{"$f":"IF(E73<>\"\",IF($C$5=0,0,$C$5+CUMPRINC($C$6/$C$8,$C$7*$C$8,$C$5,1,E73,Pilotage!$D$25)),\"\")","v":""},null,null,null,null,null,{"$f":"IF(K73<>\"\",-1*CUMIPMT($C$6/$C$8,$C$7*$C$8,$C$5,M73,N73,Pilotage!$D$25),\"\")","v":""}]
[null,null,null,null,"","",{"$f":"IF(E74<>\"\",IF($C$5=0,0,CUMIPMT($C$6/$C$8,$C$7*$C$8,$C$5,1,E74,Pilotage!$D$25)),\"\")","v":""},{"$f":"IF(E74<>\"\",IF($C$5=0,0,CUMIPMT($C$6/$C$8,$C$7*$C$8,$C$5,E74,E74,Pilotage!$D$25)),\"\")","v":""},{"$f":"IF(E74<>\"\",IF($C$5=0,0,$C$5+CUMPRINC($C$6/$C$8,$C$7*$C$8,$C$5,1,E74,Pilotage!$D$25)),\"\")","v":""},null,null,null,null,null,{"$f":"IF(K74<>\"\",-1*CUMIPMT($C$6/$C$8,$C$7*$C$8,$C$5,M74,N74,Pilotage!$D$25),\"\")","v":""}]
[null,null,null,null,"","",{"$f":"IF(E75<>\"\",IF($C$5=0,0,CUMIPMT($C$6/$C$8,$C$7*$C$8,$C$5,1,E75,Pilotage!$D$25)),\"\")","v":""},{"$f":"IF(E75<>\"\",IF($C$5=0,0,CUMIPMT($C$6/$C$8,$C$7*$C$8,$C$5,E75,E75,Pilotage!$D$25)),\"\")","v":""},{"$f":"IF(E75<>\"\",IF($C$5=0,0,$C$5+CUMPRINC($C$6/$C$8,$C$7*$C$8,$C$5,1,E75,Pilotage!$D$25)),\"\")","v":""},null,null,null,null,null,{"$f":"IF(K75<>\"\",-1*CUMIPMT($C$6/$C$8,$C$7*$C$8,$C$5,M75,N75,Pilotage!$D$25),\"\")","v":""}]
[null,null,null,null,"","",{"$f":"IF(E76<>\"\",IF($C$5=0,0,CUMIPMT($C$6/$C$8,$C$7*$C$8,$C$5,1,E76,Pilotage!$D$25)),\"\")","v":""},{"$f":"IF(E76<>\"\",IF($C$5=0,0,CUMIPMT($C$6/$C$8,$C$7*$C$8,$C$5,E76,E76,Pilotage!$D$25)),\"\")","v":""},{"$f":"IF(E76<>\"\",IF($C$5=0,0,$C$5+CUMPRINC($C$6/$C$8,$C$7*$C$8,$C$5,1,E76,Pilotage!$D$25)),\"\")","v":""},null,null,null,null,null,{"$f":"IF(K76<>\"\",-1*CUMIPMT($C$6/$C$8,$C$7*$C$8,$C$5,M76,N76,Pilotage!$D$25),\"\")","v":""}]
[null,null,null,null,"","",{"$f":"IF(E77<>\"\",IF($C$5=0,0,CUMIPMT($C$6/$C$8,$C$7*$C$8,$C$5,1,E77,Pilotage!$D$25)),\"\")","v":""},{"$f":"IF(E77<>\"\",IF($C$5=0,0,CUMIPMT($C$6/$C$8,$C$7*$C$8,$C$5,E77,E77,Pilotage!$D$25)),\"\")","v":""},{"$f":"IF(E77<>\"\",IF($C$5=0,0,$C$5+CUMPRINC($C$6/$C$8,$C$7*$C$8,$C$5,1,E77,Pilotage!$D$25)),\"\")","v":""},null,null,null,null,null,{"$f":"IF(K77<>\"\",-1*CUMIPMT($C$6/$C$8,$C$7*$C$8,$C$5,M77,N77,Pilotage!$D$25),\"\")","v":""}]
[null,null,null,null,"","",{"$f":"IF(E78<>\"\",IF($C$5=0,0,CUMIPMT($C$6/$C$8,$C$7*$C$8,$C$5,1,E78,Pilotage!$D$25)),\"\")","v":""},{"$f":"IF(E78<>\"\",IF($C$5=0,0,CUMIPMT($C$6/$C$8,$C$7*$C$8,$C$5,E78,E78,Pilotage!$D$25)),\"\")","v":""},{"$f":"IF(E78<>\"\",IF($C$5=0,0,$C$5+CUMPRINC($C$6/$C$8,$C$7*$C$8,$C$5,1,E78,Pilotage!$D$25)),\"\")","v":""},null,null,null,null,null,{"$f":"IF(K78<>\"\",-1*CUMIPMT($C$6/$C$8,$C$7*$C$8,$C$5,M78,N78,Pilotage!$D$25),\"\")","v":""}]
[null,null,null,null,"","",{"$f":"IF(E79<>\"\",IF($C$5=0,0,CUMIPMT($C$6/$C$8,$C$7*$C$8,$C$5,1,E79,Pilotage!$D$25)),\"\")","v":""},{"$f":"IF(E79<>\"\",IF($C$5=0,0,CUMIPMT($C$6/$C$8,$C$7*$C$8,$C$5,E79,E79,Pilotage!$D$25)),\"\")","v":""},{"$f":"IF(E79<>\"\",IF($C$5=0,0,$C$5+CUMPRINC($C$6/$C$8,$C$7*$C$8,$C$5,1,E79,Pilotage!$D$25)),\"\")","v":""},null,null,null,null,null,{"$f":"IF(K79<>\"\",-1*CUMIPMT($C$6/$C$8,$C$7*$C$8,$C$5,M79,N79,Pilotage!$D$25),\"\")","v":""}]
[null,null,null,null,"","",{"$f":"IF(E80<>\"\",IF($C$5=0,0,CUMIPMT($C$6/$C$8,$C$7*$C$8,$C$5,1,E80,Pilotage!$D$25)),\"\")","v":""},{"$f":"IF(E80<>\"\",IF($C$5=0,0,CUMIPMT($C$6/$C$8,$C$7*$C$8,$C$5,E80,E80,Pilotage!$D$25)),\"\")","v":""},{"$f":"IF(E80<>\"\",IF($C$5=0,0,$C$5+CUMPRINC($C$6/$C$8,$C$7*$C$8,$C$5,1,E80,Pilotage!$D$25)),\"\")","v":""},null,null,null,null,null,{"$f":"IF(K80<>\"\",-1*CUMIPMT($C$6/$C$8,$C$7*$C$8,$C$5,M80,N80,Pilotage!$D$25),\"\")","v":""}]
[null,null,null,null,"","",{"$f":"IF(E81<>\"\",IF($C$5=0,0,CUMIPMT($C$6/$C$8,$C$7*$C$8,$C$5,1,E81,Pilotage!$D$25)),\"\")","v":""},{"$f":"IF(E81<>\"\",IF($C$5=0,0,CUMIPMT($C$6/$C$8,$C$7*$C$8,$C$5,E81,E81,Pilotage!$D$25)),\"\")","v":""},{"$f":"IF(E81<>\"\",IF($C$5=0,0,$C$5+CUMPRINC($C$6/$C$8,$C$7*$C$8,$C$5,1,E81,Pilotage!$D$25)),\"\")","v":""},null,null,null,null,null,{"$f":"IF(K81<>\"\",-1*CUMIPMT($C$6/$C$8,$C$7*$C$8,$C$5,M81,N81,Pilotage!$D$25),\"\")","v":""}]
[null,null,null,null,"","",{"$f":"IF(E82<>\"\",IF($C$5=0,0,CUMIPMT($C$6/$C$8,$C$7*$C$8,$C$5,1,E82,Pilotage!$D$25)),\"\")","v":""},{"$f":"IF(E82<>\"\",IF($C$5=0,0,CUMIPMT($C$6/$C$8,$C$7*$C$8,$C$5,E82,E82,Pilotage!$D$25)),\"\")","v":""},{"$f":"IF(E82<>\"\",IF($C$5=0,0,$C$5+CUMPRINC($C$6/$C$8,$C$7*$C$8,$C$5,1,E82,Pilotage!$D$25)),\"\")","v":""},null,null,null,null,null,{"$f":"IF(K82<>\"\",-1*CUMIPMT($C$6/$C$8,$C$7*$C$8,$C$5,M82,N82,Pilotage!$D$25),\"\")","v":""}]
[null,null,null,null,"","",{"$f":"IF(E83<>\"\",IF($C$5=0,0,CUMIPMT($C$6/$C$8,$C$7*$C$8,$C$5,1,E83,Pilotage!$D$25)),\"\")","v":""},{"$f":"IF(E83<>\"\",IF($C$5=0,0,CUMIPMT($C$6/$C$8,$C$7*$C$8,$C$5,E83,E83,Pilotage!$D$25)),\"\")","v":""},{"$f":"IF(E83<>\"\",IF($C$5=0,0,$C$5+CUMPRINC($C$6/$C$8,$C$7*$C$8,$C$5,1,E83,Pilotage!$D$25)),\"\")","v":""},null,null,null,null,null,{"$f":"IF(K83<>\"\",-1*CUMIPMT($C$6/$C$8,$C$7*$C$8,$C$5,M83,N83,Pilotage!$D$25),\"\")","v":""}]
[null,null,null,null,"","",{"$f":"IF(E84<>\"\",IF($C$5=0,0,CUMIPMT($C$6/$C$8,$C$7*$C$8,$C$5,1,E84,Pilotage!$D$25)),\"\")","v":""},{"$f":"IF(E84<>\"\",IF($C$5=0,0,CUMIPMT($C$6/$C$8,$C$7*$C$8,$C$5,E84,E84,Pilotage!$D$25)),\"\")","v":""},{"$f":"IF(E84<>\"\",IF($C$5=0,0,$C$5+CUMPRINC($C$6/$C$8,$C$7*$C$8,$C$5,1,E84,Pilotage!$D$25)),\"\")","v":""},null,null,null,null,null,{"$f":"IF(K84<>\"\",-1*CUMIPMT($C$6/$C$8,$C$7*$C$8,$C$5,M84,N84,Pilotage!$D$25),\"\")","v":""}]
[null,null,null,null,"","",{"$f":"IF(E85<>\"\",IF($C$5=0,0,CUMIPMT($C$6/$C$8,$C$7*$C$8,$C$5,1,E85,Pilotage!$D$25)),\"\")","v":""},{"$f":"IF(E85<>\"\",IF($C$5=0,0,CUMIPMT($C$6/$C$8,$C$7*$C$8,$C$5,E85,E85,Pilotage!$D$25)),\"\")","v":""},{"$f":"IF(E85<>\"\",IF($C$5=0,0,$C$5+CUMPRINC($C$6/$C$8,$C$7*$C$8,$C$5,1,E85,Pilotage!$D$25)),\"\")","v":""},null,null,null,null,null,{"$f":"IF(K85<>\"\",-1*CUMIPMT($C$6/$C$8,$C$7*$C$8,$C$5,M85,N85,Pilotage!$D$25),\"\")","v":""}]
[null,null,null,null,"","",{"$f":"IF(E86<>\"\",IF($C$5=0,0,CUMIPMT($C$6/$C$8,$C$7*$C$8,$C$5,1,E86,Pilotage!$D$25)),\"\")","v":""},{"$f":"IF(E86<>\"\",IF($C$5=0,0,CUMIPMT($C$6/$C$8,$C$7*$C$8,$C$5,E86,E86,Pilotage!$D$25)),\"\")","v":""},{"$f":"IF(E86<>\"\",IF($C$5=0,0,$C$5+CUMPRINC($C$6/$C$8,$C$7*$C$8,$C$5,1,E86,Pilotage!$D$25)),\"\")","v":""},null,null,null,null,null,{"$f":"IF(K86<>\"\",-1*CUMIPMT($C$6/$C$8,$C$7*$C$8,$C$5,M86,N86,Pilotage!$D$25),\"\")","v":""}]
[null,null,null,null,"","",{"$f":"IF(E87<>\"\",IF($C$5=0,0,CUMIPMT($C$6/$C$8,$C$7*$C$8,$C$5,1,E87,Pilotage!$D$25)),\"\")","v":""},{"$f":"IF(E87<>\"\",IF($C$5=0,0,CUMIPMT($C$6/$C$8,$C$7*$C$8,$C$5,E87,E87,Pilotage!$D$25)),\"\")","v":""},{"$f":"IF(E87<>\"\",IF($C$5=0,0,$C$5+CUMPRINC($C$6/$C$8,$C$7*$C$8,$C$5,1,E87,Pilotage!$D$25)),\"\")","v":""},null,null,null,null,null,{"$f":"IF(K87<>\"\",-1*CUMIPMT($C$6/$C$8,$C$7*$C$8,$C$5,M87,N87,Pilotage!$D$25),\"\")","v":""}]
[null,null,null,null,"","",{"$f":"IF(E88<>\"\",IF($C$5=0,0,CUMIPMT($C$6/$C$8,$C$7*$C$8,$C$5,1,E88,Pilotage!$D$25)),\"\")","v":""},{"$f":"IF(E88<>\"\",IF($C$5=0,0,CUMIPMT($C$6/$C$8,$C$7*$C$8,$C$5,E88,E88,Pilotage!$D$25)),\"\")","v":""},{"$f":"IF(E88<>\"\",IF($C$5=0,0,$C$5+CUMPRINC($C$6/$C$8,$C$7*$C$8,$C$5,1,E88,Pilotage!$D$25)),\"\")","v":""},null,null,null,null,null,{"$f":"IF(K88<>\"\",-1*CUMIPMT($C$6/$C$8,$C$7*$C$8,$C$5,M88,N88,Pilotage!$D$25),\"\")","v":""}]
[null,null,null,null,"","",{"$f":"IF(E89<>\"\",IF($C$5=0,0,CUMIPMT($C$6/$C$8,$C$7*$C$8,$C$5,1,E89,Pilotage!$D$25)),\"\")","v":""},{"$f":"IF(E89<>\"\",IF($C$5=0,0,CUMIPMT($C$6/$C$8,$C$7*$C$8,$C$5,E89,E89,Pilotage!$D$25)),\"\")","v":""},{"$f":"IF(E89<>\"\",IF($C$5=0,0,$C$5+CUMPRINC($C$6/$C$8,$C$7*$C$8,$C$5,1,E89,Pilotage!$D$25)),\"\")","v":""},null,null,null,null,null,{"$f":"IF(K89<>\"\",-1*CUMIPMT($C$6/$C$8,$C$7*$C$8,$C$5,M89,N89,Pilotage!$D$25),\"\")","v":""}]
[null,null,null,null,"","",{"$f":"IF(E90<>\"\",IF($C$5=0,0,CUMIPMT($C$6/$C$8,$C$7*$C$8,$C$5,1,E90,Pilotage!$D$25)),\"\")","v":""},{"$f":"IF(E90<>\"\",IF($C$5=0,0,CUMIPMT($C$6/$C$8,$C$7*$C$8,$C$5,E90,E90,Pilotage!$D$25)),\"\")","v":""},{"$f":"IF(E90<>\"\",IF($C$5=0,0,$C$5+CUMPRINC($C$6/$C$8,$C$7*$C$8,$C$5,1,E90,Pilotage!$D$25)),\"\")","v":""},null,null,null,null,null,{"$f":"IF(K90<>\"\",-1*CUMIPMT($C$6/$C$8,$C$7*$C$8,$C$5,M90,N90,Pilotage!$D$25),\"\")","v":""}]
[null,null,null,null,"","",{"$f":"IF(E91<>\"\",IF($C$5=0,0,CUMIPMT($C$6/$C$8,$C$7*$C$8,$C$5,1,E91,Pilotage!$D$25)),\"\")","v":""},{"$f":"IF(E91<>\"\",IF($C$5=0,0,CUMIPMT($C$6/$C$8,$C$7*$C$8,$C$5,E91,E91,Pilotage!$D$25)),\"\")","v":""},{"$f":"IF(E91<>\"\",IF($C$5=0,0,$C$5+CUMPRINC($C$6/$C$8,$C$7*$C$8,$C$5,1,E91,Pilotage!$D$25)),\"\")","v":""},null,null,null,null,null,{"$f":"IF(K91<>\"\",-1*CUMIPMT($C$6/$C$8,$C$7*$C$8,$C$5,M91,N91,Pilotage!$D$25),\"\")","v":""}]
[null,null,null,null,"","",{"$f":"IF(E92<>\"\",IF($C$5=0,0,CUMIPMT($C$6/$C$8,$C$7*$C$8,$C$5,1,E92,Pilotage!$D$25)),\"\")","v":""},{"$f":"IF(E92<>\"\",IF($C$5=0,0,CUMIPMT($C$6/$C$8,$C$7*$C$8,$C$5,E92,E92,Pilotage!$D$25)),\"\")","v":""},{"$f":"IF(E92<>\"\",IF($C$5=0,0,$C$5+CUMPRINC($C$6/$C$8,$C$7*$C$8,$C$5,1,E92,Pilotage!$D$25)),\"\")","v":""},null,null,null,null,null,{"$f":"IF(K92<>\"\",-1*CUMIPMT($C$6/$C$8,$C$7*$C$8,$C$5,M92,N92,Pilotage!$D$25),\"\")","v":""}]
[null,null,null,null,"","",{"$f":"IF(E93<>\"\",IF($C$5=0,0,CUMIPMT($C$6/$C$8,$C$7*$C$8,$C$5,1,E93,Pilotage!$D$25)),\"\")","v":""},{"$f":"IF(E93<>\"\",IF($C$5=0,0,CUMIPMT($C$6/$C$8,$C$7*$C$8,$C$5,E93,E93,Pilotage!$D$25)),\"\")","v":""},{"$f":"IF(E93<>\"\",IF($C$5=0,0,$C$5+CUMPRINC($C$6/$C$8,$C$7*$C$8,$C$5,1,E93,Pilotage!$D$25)),\"\")","v":""},null,null,null,null,null,{"$f":"IF(K93<>\"\",-1*CUMIPMT($C$6/$C$8,$C$7*$C$8,$C$5,M93,N93,Pilotage!$D$25),\"\")","v":""}]
[null,null,null,null,"","",{"$f":"IF(E94<>\"\",IF($C$5=0,0,CUMIPMT($C$6/$C$8,$C$7*$C$8,$C$5,1,E94,Pilotage!$D$25)),\"\")","v":""},{"$f":"IF(E94<>\"\",IF($C$5=0,0,CUMIPMT($C$6/$C$8,$C$7*$C$8,$C$5,E94,E94,Pilotage!$D$25)),\"\")","v":""},{"$f":"IF(E94<>\"\",IF($C$5=0,0,$C$5+CUMPRINC($C$6/$C$8,$C$7*$C$8,$C$5,1,E94,Pilotage!$D$25)),\"\")","v":""},null,null,null,null,null,{"$f":"IF(K94<>\"\",-1*CUMIPMT($C$6/$C$8,$C$7*$C$8,$C$5,M94,N94,Pilotage!$D$25),\"\")","v":""}]
[null,null,null,null,"","",{"$f":"IF(E95<>\"\",IF($C$5=0,0,CUMIPMT($C$6/$C$8,$C$7*$C$8,$C$5,1,E95,Pilotage!$D$25)),\"\")","v":""},{"$f":"IF(E95<>\"\",IF($C$5=0,0,CUMIPMT($C$6/$C$8,$C$7*$C$8,$C$5,E95,E95,Pilotage!$D$25)),\"\")","v":""},{"$f":"IF(E95<>\"\",IF($C$5=0,0,$C$5+CUMPRINC($C$6/$C$8,$C$7*$C$8,$C$5,1,E95,Pilotage!$D$25)),\"\")","v":""},null,null,null,null,null,{"$f":"IF(K95<>\"\",-1*CUMIPMT($C$6/$C$8,$C$7*$C$8,$C$5,M95,N95,Pilotage!$D$25),\"\")","v":""}]
[null,null,null,null,"","",{"$f":"IF(E96<>\"\",IF($C$5=0,0,CUMIPMT($C$6/$C$8,$C$7*$C$8,$C$5,1,E96,Pilotage!$D$25)),\"\")","v":""},{"$f":"IF(E96<>\"\",IF($C$5=0,0,CUMIPMT($C$6/$C$8,$C$7*$C$8,$C$5,E96,E96,Pilotage!$D$25)),\"\")","v":""},{"$f":"IF(E96<>\"\",IF($C$5=0,0,$C$5+CUMPRINC($C$6/$C$8,$C$7*$C$8,$C$5,1,E96,Pilotage!$D$25)),\"\")","v":""},null,null,null,null,null,{"$f":"IF(K96<>\"\",-1*CUMIPMT($C$6/$C$8,$C$7*$C$8,$C$5,M96,N96,Pilotage!$D$25),\"\")","v":""}]
[null,null,null,null,"","",{"$f":"IF(E97<>\"\",IF($C$5=0,0,CUMIPMT($C$6/$C$8,$C$7*$C$8,$C$5,1,E97,Pilotage!$D$25)),\"\")","v":""},{"$f":"IF(E97<>\"\",IF($C$5=0,0,CUMIPMT($C$6/$C$8,$C$7*$C$8,$C$5,E97,E97,Pilotage!$D$25)),\"\")","v":""},{"$f":"IF(E97<>\"\",IF($C$5=0,0,$C$5+CUMPRINC($C$6/$C$8,$C$7*$C$8,$C$5,1,E97,Pilotage!$D$25)),\"\")","v":""},null,null,null,null,null,{"$f":"IF(K97<>\"\",-1*CUMIPMT($C$6/$C$8,$C$7*$C$8,$C$5,M97,N97,Pilotage!$D$25),\"\")","v":""}]
[null,null,null,null,"","",{"$f":"IF(E98<>\"\",IF($C$5=0,0,CUMIPMT($C$6/$C$8,$C$7*$C$8,$C$5,1,E98,Pilotage!$D$25)),\"\")","v":""},{"$f":"IF(E98<>\"\",IF($C$5=0,0,CUMIPMT($C$6/$C$8,$C$7*$C$8,$C$5,E98,E98,Pilotage!$D$25)),\"\")","v":""},{"$f":"IF(E98<>\"\",IF($C$5=0,0,$C$5+CUMPRINC($C$6/$C$8,$C$7*$C$8,$C$5,1,E98,Pilotage!$D$25)),\"\")","v":""},null,null,null,null,null,{"$f":"IF(K98<>\"\",-1*CUMIPMT($C$6/$C$8,$C$7*$C$8,$C$5,M98,N98,Pilotage!$D$25),\"\")","v":""}]
[null,null,null,null,"","",{"$f":"IF(E99<>\"\",IF($C$5=0,0,CUMIPMT($C$6/$C$8,$C$7*$C$8,$C$5,1,E99,Pilotage!$D$25)),\"\")","v":""},{"$f":"IF(E99<>\"\",IF($C$5=0,0,CUMIPMT($C$6/$C$8,$C$7*$C$8,$C$5,E99,E99,Pilotage!$D$25)),\"\")","v":""},{"$f":"IF(E99<>\"\",IF($C$5=0,0,$C$5+CUMPRINC($C$6/$C$8,$C$7*$C$8,$C$5,1,E99,Pilotage!$D$25)),\"\")","v":""},null,null,null,null,null,{"$f":"IF(K99<>\"\",-1*CUMIPMT($C$6/$C$8,$C$7*$C$8,$C$5,M99,N99,Pilotage!$D$25),\"\")","v":""}]
[null,null,null,null,"","",{"$f":"IF(E100<>\"\",IF($C$5=0,0,CUMIPMT($C$6/$C$8,$C$7*$C$8,$C$5,1,E100,Pilotage!$D$25)),\"\")","v":""},{"$f":"IF(E100<>\"\",IF($C$5=0,0,CUMIPMT($C$6/$C$8,$C$7*$C$8,$C$5,E100,E100,Pilotage!$D$25)),\"\")","v":""},{"$f":"IF(E100<>\"\",IF($C$5=0,0,$C$5+CUMPRINC($C$6/$C$8,$C$7*$C$8,$C$5,1,E100,Pilotage!$D$25)),\"\")","v":""},null,null,null,null,null,{"$f":"IF(K100<>\"\",-1*CUMIPMT($C$6/$C$8,$C$7*$C$8,$C$5,M100,N100,Pilotage!$D$25),\"\")","v":""}]
[null,null,null,null,"","",{"$f":"IF(E101<>\"\",IF($C$5=0,0,CUMIPMT($C$6/$C$8,$C$7*$C$8,$C$5,1,E101,Pilotage!$D$25)),\"\")","v":""},{"$f":"IF(E101<>\"\",IF($C$5=0,0,CUMIPMT($C$6/$C$8,$C$7*$C$8,$C$5,E101,E101,Pilotage!$D$25)),\"\")","v":""},{"$f":"IF(E101<>\"\",IF($C$5=0,0,$C$5+CUMPRINC($C$6/$C$8,$C$7*$C$8,$C$5,1,E101,Pilotage!$D$25)),\"\")","v":""},null,null,null,null,null,{"$f":"IF(K101<>\"\",-1*CUMIPMT($C$6/$C$8,$C$7*$C$8,$C$5,M101,N101,Pilotage!$D$25),\"\")","v":""}]
[null,null,null,null,"","",{"$f":"IF(E102<>\"\",IF($C$5=0,0,CUMIPMT($C$6/$C$8,$C$7*$C$8,$C$5,1,E102,Pilotage!$D$25)),\"\")","v":""},{"$f":"IF(E102<>\"\",IF($C$5=0,0,CUMIPMT($C$6/$C$8,$C$7*$C$8,$C$5,E102,E102,Pilotage!$D$25)),\"\")","v":""},{"$f":"IF(E102<>\"\",IF($C$5=0,0,$C$5+CUMPRINC($C$6/$C$8,$C$7*$C$8,$C$5,1,E102,Pilotage!$D$25)),\"\")","v":""},null,null,null,null,null,{"$f":"IF(K102<>\"\",-1*CUMIPMT($C$6/$C$8,$C$7*$C$8,$C$5,M102,N102,Pilotage!$D$25),\"\")","v":""}]
[null,null,null,null,"","",{"$f":"IF(E103<>\"\",IF($C$5=0,0,CUMIPMT($C$6/$C$8,$C$7*$C$8,$C$5,1,E103,Pilotage!$D$25)),\"\")","v":""},{"$f":"IF(E103<>\"\",IF($C$5=0,0,CUMIPMT($C$6/$C$8,$C$7*$C$8,$C$5,E103,E103,Pilotage!$D$25)),\"\")","v":""},{"$f":"IF(E103<>\"\",IF($C$5=0,0,$C$5+CUMPRINC($C$6/$C$8,$C$7*$C$8,$C$5,1,E103,Pilotage!$D$25)),\"\")","v":""},null,null,null,null,null,{"$f":"IF(K103<>\"\",-1*CUMIPMT($C$6/$C$8,$C$7*$C$8,$C$5,M103,N103,Pilotage!$D$25),\"\")","v":""}]
[null,null,null,null,"","",{"$f":"IF(E104<>\"\",IF($C$5=0,0,CUMIPMT($C$6/$C$8,$C$7*$C$8,$C$5,1,E104,Pilotage!$D$25)),\"\")","v":""},{"$f":"IF(E104<>\"\",IF($C$5=0,0,CUMIPMT($C$6/$C$8,$C$7*$C$8,$C$5,E104,E104,Pilotage!$D$25)),\"\")","v":""},{"$f":"IF(E104<>\"\",IF($C$5=0,0,$C$5+CUMPRINC($C$6/$C$8,$C$7*$C$8,$C$5,1,E104,Pilotage!$D$25)),\"\")","v":""},null,null,null,null,null,{"$f":"IF(K104<>\"\",-1*CUMIPMT($C$6/$C$8,$C$7*$C$8,$C$5,M104,N104,Pilotage!$D$25),\"\")","v":""}]
[null,null,null,null,"","",{"$f":"IF(E105<>\"\",IF($C$5=0,0,CUMIPMT($C$6/$C$8,$C$7*$C$8,$C$5,1,E105,Pilotage!$D$25)),\"\")","v":""},{"$f":"IF(E105<>\"\",IF($C$5=0,0,CUMIPMT($C$6/$C$8,$C$7*$C$8,$C$5,E105,E105,Pilotage!$D$25)),\"\")","v":""},{"$f":"IF(E105<>\"\",IF($C$5=0,0,$C$5+CUMPRINC($C$6/$C$8,$C$7*$C$8,$C$5,1,E105,Pilotage!$D$25)),\"\")","v":""},null,null,null,null,null,{"$f":"IF(K105<>\"\",-1*CUMIPMT($C$6/$C$8,$C$7*$C$8,$C$5,M105,N105,Pilotage!$D$25),\"\")","v":""}]
[null,null,null,null,"","",{"$f":"IF(E106<>\"\",IF($C$5=0,0,CUMIPMT($C$6/$C$8,$C$7*$C$8,$C$5,1,E106,Pilotage!$D$25)),\"\")","v":""},{"$f":"IF(E106<>\"\",IF($C$5=0,0,CUMIPMT($C$6/$C$8,$C$7*$C$8,$C$5,E106,E106,Pilotage!$D$25)),\"\")","v":""},{"$f":"IF(E106<>\"\",IF($C$5=0,0,$C$5+CUMPRINC($C$6/$C$8,$C$7*$C$8,$C$5,1,E106,Pilotage!$D$25)),\"\")","v":""},null,null,null,null,null,{"$f":"IF(K106<>\"\",-1*CUMIPMT($C$6/$C$8,$C$7*$C$8,$C$5,M106,N106,Pilotage!$D$25),\"\")","v":""}]
[null,null,null,null,"","",{"$f":"IF(E107<>\"\",IF($C$5=0,0,CUMIPMT($C$6/$C$8,$C$7*$C$8,$C$5,1,E107,Pilotage!$D$25)),\"\")","v":""},{"$f":"IF(E107<>\"\",IF($C$5=0,0,CUMIPMT($C$6/$C$8,$C$7*$C$8,$C$5,E107,E107,Pilotage!$D$25)),\"\")","v":""},{"$f":"IF(E107<>\"\",IF($C$5=0,0,$C$5+CUMPRINC($C$6/$C$8,$C$7*$C$8,$C$5,1,E107,Pilotage!$D$25)),\"\")","v":""},null,null,null,null,null,{"$f":"IF(K107<>\"\",-1*CUMIPMT($C$6/$C$8,$C$7*$C$8,$C$5,M107,N107,Pilotage!$D$25),\"\")","v":""}]
[null,null,null,null,"","",{"$f":"IF(E108<>\"\",IF($C$5=0,0,CUMIPMT($C$6/$C$8,$C$7*$C$8,$C$5,1,E108,Pilotage!$D$25)),\"\")","v":""},{"$f":"IF(E108<>\"\",IF($C$5=0,0,CUMIPMT($C$6/$C$8,$C$7*$C$8,$C$5,E108,E108,Pilotage!$D$25)),\"\")","v":""},{"$f":"IF(E108<>\"\",IF($C$5=0,0,$C$5+CUMPRINC($C$6/$C$8,$C$7*$C$8,$C$5,1,E108,Pilotage!$D$25)),\"\")","v":""},null,null,null,null,null,{"$f":"IF(K108<>\"\",-1*CUMIPMT($C$6/$C$8,$C$7*$C$8,$C$5,M108,N108,Pilotage!$D$25),\"\")","v":""}]
[null,null,null,null,"","",{"$f":"IF(E109<>\"\",IF($C$5=0,0,CUMIPMT($C$6/$C$8,$C$7*$C$8,$C$5,1,E109,Pilotage!$D$25)),\"\")","v":""},{"$f":"IF(E109<>\"\",IF($C$5=0,0,CUMIPMT($C$6/$C$8,$C$7*$C$8,$C$5,E109,E109,Pilotage!$D$25)),\"\")","v":""},{"$f":"IF(E109<>\"\",IF($C$5=0,0,$C$5+CUMPRINC($C$6/$C$8,$C$7*$C$8,$C$5,1,E109,Pilotage!$D$25)),\"\")","v":""},null,null,null,null,null,{"$f":"IF(K109<>\"\",-1*CUMIPMT($C$6/$C$8,$C$7*$C$8,$C$5,M109,N109,Pilotage!$D$25),\"\")","v":""}]
[null,null,null,null,"","",{"$f":"IF(E110<>\"\",IF($C$5=0,0,CUMIPMT($C$6/$C$8,$C$7*$C$8,$C$5,1,E110,Pilotage!$D$25)),\"\")","v":""},{"$f":"IF(E110<>\"\",IF($C$5=0,0,CUMIPMT($C$6/$C$8,$C$7*$C$8,$C$5,E110,E110,Pilotage!$D$25)),\"\")","v":""},{"$f":"IF(E110<>\"\",IF($C$5=0,0,$C$5+CUMPRINC($C$6/$C$8,$C$7*$C$8,$C$5,1,E110,Pilotage!$D$25)),\"\")","v":""},null,null,null,null,null,{"$f":"IF(K110<>\"\",-1*CUMIPMT($C$6/$C$8,$C$7*$C$8,$C$5,M110,N110,Pilotage!$D$25),\"\")","v":""}]
[null,null,null,null,"","",{"$f":"IF(E111<>\"\",IF($C$5=0,0,CUMIPMT($C$6/$C$8,$C$7*$C$8,$C$5,1,E111,Pilotage!$D$25)),\"\")","v":""},{"$f":"IF(E111<>\"\",IF($C$5=0,0,CUMIPMT($C$6/$C$8,$C$7*$C$8,$C$5,E111,E111,Pilotage!$D$25)),\"\")","v":""},{"$f":"IF(E111<>\"\",IF($C$5=0,0,$C$5+CUMPRINC($C$6/$C$8,$C$7*$C$8,$C$5,1,E111,Pilotage!$D$25)),\"\")","v":""},null,null,null,null,null,{"$f":"IF(K111<>\"\",-1*CUMIPMT($C$6/$C$8,$C$7*$C$8,$C$5,M111,N111,Pilotage!$D$25),\"\")","v":""}]
[null,null,null,null,"","",{"$f":"IF(E112<>\"\",IF($C$5=0,0,CUMIPMT($C$6/$C$8,$C$7*$C$8,$C$5,1,E112,Pilotage!$D$25)),\"\")","v":""},{"$f":"IF(E112<>\"\",IF($C$5=0,0,CUMIPMT($C$6/$C$8,$C$7*$C$8,$C$5,E112,E112,Pilotage!$D$25)),\"\")","v":""},{"$f":"IF(E112<>\"\",IF($C$5=0,0,$C$5+CUMPRINC($C$6/$C$8,$C$7*$C$8,$C$5,1,E112,Pilotage!$D$25)),\"\")","v":""},null,null,null,null,null,{"$f":"IF(K112<>\"\",-1*CUMIPMT($C$6/$C$8,$C$7*$C$8,$C$5,M112,N112,Pilotage!$D$25),\"\")","v":""}]
[null,null,null,null,"","",{"$f":"IF(E113<>\"\",IF($C$5=0,0,CUMIPMT($C$6/$C$8,$C$7*$C$8,$C$5,1,E113,Pilotage!$D$25)),\"\")","v":""},{"$f":"IF(E113<>\"\",IF($C$5=0,0,CUMIPMT($C$6/$C$8,$C$7*$C$8,$C$5,E113,E113,Pilotage!$D$25)),\"\")","v":""},{"$f":"IF(E113<>\"\",IF($C$5=0,0,$C$5+CUMPRINC($C$6/$C$8,$C$7*$C$8,$C$5,1,E113,Pilotage!$D$25)),\"\")","v":""},null,null,null,null,null,{"$f":"IF(K113<>\"\",-1*CUMIPMT($C$6/$C$8,$C$7*$C$8,$C$5,M113,N113,Pilotage!$D$25),\"\")","v":""}]
[null,null,null,null,"","",{"$f":"IF(E114<>\"\",IF($C$5=0,0,CUMIPMT($C$6/$C$8,$C$7*$C$8,$C$5,1,E114,Pilotage!$D$25)),\"\")","v":""},{"$f":"IF(E114<>\"\",IF($C$5=0,0,CUMIPMT($C$6/$C$8,$C$7*$C$8,$C$5,E114,E114,Pilotage!$D$25)),\"\")","v":""},{"$f":"IF(E114<>\"\",IF($C$5=0,0,$C$5+CUMPRINC($C$6/$C$8,$C$7*$C$8,$C$5,1,E114,Pilotage!$D$25)),\"\")","v":""},null,null,null,null,null,{"$f":"IF(K114<>\"\",-1*CUMIPMT($C$6/$C$8,$C$7*$C$8,$C$5,M114,N114,Pilotage!$D$25),\"\")","v":""}]
[null,null,null,null,"","",{"$f":"IF(E115<>\"\",IF($C$5=0,0,CUMIPMT($C$6/$C$8,$C$7*$C$8,$C$5,1,E115,Pilotage!$D$25)),\"\")","v":""},{"$f":"IF(E115<>\"\",IF($C$5=0,0,CUMIPMT($C$6/$C$8,$C$7*$C$8,$C$5,E115,E115,Pilotage!$D$25)),\"\")","v":""},{"$f":"IF(E115<>\"\",IF($C$5=0,0,$C$5+CUMPRINC($C$6/$C$8,$C$7*$C$8,$C$5,1,E115,Pilotage!$D$25)),\"\")","v":""},null,null,null,null,null,{"$f":"IF(K115<>\"\",-1*CUMIPMT($C$6/$C$8,$C$7*$C$8,$C$5,M115,N115,Pilotage!$D$25),\"\")","v":""}]
[null,null,null,null,"","",{"$f":"IF(E116<>\"\",IF($C$5=0,0,CUMIPMT($C$6/$C$8,$C$7*$C$8,$C$5,1,E116,Pilotage!$D$25)),\"\")","v":""},{"$f":"IF(E116<>\"\",IF($C$5=0,0,CUMIPMT($C$6/$C$8,$C$7*$C$8,$C$5,E116,E116,Pilotage!$D$25)),\"\")","v":""},{"$f":"IF(E116<>\"\",IF($C$5=0,0,$C$5+CUMPRINC($C$6/$C$8,$C$7*$C$8,$C$5,1,E116,Pilotage!$D$25)),\"\")","v":""},null,null,null,null,null,{"$f":"IF(K116<>\"\",-1*CUMIPMT($C$6/$C$8,$C$7*$C$8,$C$5,M116,N116,Pilotage!$D$25),\"\")","v":""}]
[null,null,null,null,"","",{"$f":"IF(E117<>\"\",IF($C$5=0,0,CUMIPMT($C$6/$C$8,$C$7*$C$8,$C$5,1,E117,Pilotage!$D$25)),\"\")","v":""},{"$f":"IF(E117<>\"\",IF($C$5=0,0,CUMIPMT($C$6/$C$8,$C$7*$C$8,$C$5,E117,E117,Pilotage!$D$25)),\"\")","v":""},{"$f":"IF(E117<>\"\",IF($C$5=0,0,$C$5+CUMPRINC($C$6/$C$8,$C$7*$C$8,$C$5,1,E117,Pilotage!$D$25)),\"\")","v":""},null,null,null,null,null,{"$f":"IF(K117<>\"\",-1*CUMIPMT($C$6/$C$8,$C$7*$C$8,$C$5,M117,N117,Pilotage!$D$25),\"\")","v":""}]
[null,null,null,null,"","",{"$f":"IF(E118<>\"\",IF($C$5=0,0,CUMIPMT($C$6/$C$8,$C$7*$C$8,$C$5,1,E118,Pilotage!$D$25)),\"\")","v":""},{"$f":"IF(E118<>\"\",IF($C$5=0,0,CUMIPMT($C$6/$C$8,$C$7*$C$8,$C$5,E118,E118,Pilotage!$D$25)),\"\")","v":""},{"$f":"IF(E118<>\"\",IF($C$5=0,0,$C$5+CUMPRINC($C$6/$C$8,$C$7*$C$8,$C$5,1,E118,Pilotage!$D$25)),\"\")","v":""},null,null,null,null,null,{"$f":"IF(K118<>\"\",-1*CUMIPMT($C$6/$C$8,$C$7*$C$8,$C$5,M118,N118,Pilotage!$D$25),\"\")","v":""}]
[null,null,null,null,"","",{"$f":"IF(E119<>\"\",IF($C$5=0,0,CUMIPMT($C$6/$C$8,$C$7*$C$8,$C$5,1,E119,Pilotage!$D$25)),\"\")","v":""},{"$f":"IF(E119<>\"\",IF($C$5=0,0,CUMIPMT($C$6/$C$8,$C$7*$C$8,$C$5,E119,E119,Pilotage!$D$25)),\"\")","v":""},{"$f":"IF(E119<>\"\",IF($C$5=0,0,$C$5+CUMPRINC($C$6/$C$8,$C$7*$C$8,$C$5,1,E119,Pilotage!$D$25)),\"\")","v":""},null,null,null,null,null,{"$f":"IF(K119<>\"\",-1*CUMIPMT($C$6/$C$8,$C$7*$C$8,$C$5,M119,N119,Pilotage!$D$25),\"\")","v":""}]
[null,null,null,null,"","",{"$f":"IF(E120<>\"\",IF($C$5=0,0,CUMIPMT($C$6/$C$8,$C$7*$C$8,$C$5,1,E120,Pilotage!$D$25)),\"\")","v":""},{"$f":"IF(E120<>\"\",IF($C$5=0,0,CUMIPMT($C$6/$C$8,$C$7*$C$8,$C$5,E120,E120,Pilotage!$D$25)),\"\")","v":""},{"$f":"IF(E120<>\"\",IF($C$5=0,0,$C$5+CUMPRINC($C$6/$C$8,$C$7*$C$8,$C$5,1,E120,Pilotage!$D$25)),\"\")","v":""},null,null,null,null,null,{"$f":"IF(K120<>\"\",-1*CUMIPMT($C$6/$C$8,$C$7*$C$8,$C$5,M120,N120,Pilotage!$D$25),\"\")","v":""}]
[null,null,null,null,"","",{"$f":"IF(E121<>\"\",IF($C$5=0,0,CUMIPMT($C$6/$C$8,$C$7*$C$8,$C$5,1,E121,Pilotage!$D$25)),\"\")","v":""},{"$f":"IF(E121<>\"\",IF($C$5=0,0,CUMIPMT($C$6/$C$8,$C$7*$C$8,$C$5,E121,E121,Pilotage!$D$25)),\"\")","v":""},{"$f":"IF(E121<>\"\",IF($C$5=0,0,$C$5+CUMPRINC($C$6/$C$8,$C$7*$C$8,$C$5,1,E121,Pilotage!$D$25)),\"\")","v":""},null,null,null,null,null,{"$f":"IF(K121<>\"\",-1*CUMIPMT($C$6/$C$8,$C$7*$C$8,$C$5,M121,N121,Pilotage!$D$25),\"\")","v":""}]
[null,null,null,null,"","",{"$f":"IF(E122<>\"\",IF($C$5=0,0,CUMIPMT($C$6/$C$8,$C$7*$C$8,$C$5,1,E122,Pilotage!$D$25)),\"\")","v":""},{"$f":"IF(E122<>\"\",IF($C$5=0,0,CUMIPMT($C$6/$C$8,$C$7*$C$8,$C$5,E122,E122,Pilotage!$D$25)),\"\")","v":""},{"$f":"IF(E122<>\"\",IF($C$5=0,0,$C$5+CUMPRINC($C$6/$C$8,$C$7*$C$8,$C$5,1,E122,Pilotage!$D$25)),\"\")","v":""},null,null,null,null,null,{"$f":"IF(K122<>\"\",-1*CUMIPMT($C$6/$C$8,$C$7*$C$8,$C$5,M122,N122,Pilotage!$D$25),\"\")","v":""}]
[null,null,null,null,"","",{"$f":"IF(E123<>\"\",IF($C$5=0,0,CUMIPMT($C$6/$C$8,$C$7*$C$8,$C$5,1,E123,Pilotage!$D$25)),\"\")","v":""},{"$f":"IF(E123<>\"\",IF($C$5=0,0,CUMIPMT($C$6/$C$8,$C$7*$C$8,$C$5,E123,E123,Pilotage!$D$25)),\"\")","v":""},{"$f":"IF(E123<>\"\",IF($C$5=0,0,$C$5+CUMPRINC($C$6/$C$8,$C$7*$C$8,$C$5,1,E123,Pilotage!$D$25)),\"\")","v":""},null,null,null,null,null,{"$f":"IF(K123<>\"\",-1*CUMIPMT($C$6/$C$8,$C$7*$C$8,$C$5,M123,N123,Pilotage!$D$25),\"\")","v":""}]
[null,null,null,null,"","",{"$f":"IF(E124<>\"\",IF($C$5=0,0,CUMIPMT($C$6/$C$8,$C$7*$C$8,$C$5,1,E124,Pilotage!$D$25)),\"\")","v":""},{"$f":"IF(E124<>\"\",IF($C$5=0,0,CUMIPMT($C$6/$C$8,$C$7*$C$8,$C$5,E124,E124,Pilotage!$D$25)),\"\")","v":""},{"$f":"IF(E124<>\"\",IF($C$5=0,0,$C$5+CUMPRINC($C$6/$C$8,$C$7*$C$8,$C$5,1,E124,Pilotage!$D$25)),\"\")","v":""},null,null,null,null,null,{"$f":"IF(K124<>\"\",-1*CUMIPMT($C$6/$C$8,$C$7*$C$8,$C$5,M124,N124,Pilotage!$D$25),\"\")","v":""}]
[null,null,null,null,"","",{"$f":"IF(E125<>\"\",IF($C$5=0,0,CUMIPMT($C$6/$C$8,$C$7*$C$8,$C$5,1,E125,Pilotage!$D$25)),\"\")","v":""},{"$f":"IF(E125<>\"\",IF($C$5=0,0,CUMIPMT($C$6/$C$8,$C$7*$C$8,$C$5,E125,E125,Pilotage!$D$25)),\"\")","v":""},{"$f":"IF(E125<>\"\",IF($C$5=0,0,$C$5+CUMPRINC($C$6/$C$8,$C$7*$C$8,$C$5,1,E125,Pilotage!$D$25)),\"\")","v":""},null,null,null,null,null,{"$f":"IF(K125<>\"\",-1*CUMIPMT($C$6/$C$8,$C$7*$C$8,$C$5,M125,N125,Pilotage!$D$25),\"\")","v":""}]
[null,null,null,null,"","",{"$f":"IF(E126<>\"\",IF($C$5=0,0,CUMIPMT($C$6/$C$8,$C$7*$C$8,$C$5,1,E126,Pilotage!$D$25)),\"\")","v":""},{"$f":"IF(E126<>\"\",IF($C$5=0,0,CUMIPMT($C$6/$C$8,$C$7*$C$8,$C$5,E126,E126,Pilotage!$D$25)),\"\")","v":""},{"$f":"IF(E126<>\"\",IF($C$5=0,0,$C$5+CUMPRINC($C$6/$C$8,$C$7*$C$8,$C$5,1,E126,Pilotage!$D$25)),\"\")","v":""},null,null,null,null,null,{"$f":"IF(K126<>\"\",-1*CUMIPMT($C$6/$C$8,$C$7*$C$8,$C$5,M126,N126,Pilotage!$D$25),\"\")","v":""}]
[null,null,null,null,"","",{"$f":"IF(E127<>\"\",IF($C$5=0,0,CUMIPMT($C$6/$C$8,$C$7*$C$8,$C$5,1,E127,Pilotage!$D$25)),\"\")","v":""},{"$f":"IF(E127<>\"\",IF($C$5=0,0,CUMIPMT($C$6/$C$8,$C$7*$C$8,$C$5,E127,E127,Pilotage!$D$25)),\"\")","v":""},{"$f":"IF(E127<>\"\",IF($C$5=0,0,$C$5+CUMPRINC($C$6/$C$8,$C$7*$C$8,$C$5,1,E127,Pilotage!$D$25)),\"\")","v":""},null,null,null,null,null,{"$f":"IF(K127<>\"\",-1*CUMIPMT($C$6/$C$8,$C$7*$C$8,$C$5,M127,N127,Pilotage!$D$25),\"\")","v":""}]
[null,null,null,null,"","",{"$f":"IF(E128<>\"\",IF($C$5=0,0,CUMIPMT($C$6/$C$8,$C$7*$C$8,$C$5,1,E128,Pilotage!$D$25)),\"\")","v":""},{"$f":"IF(E128<>\"\",IF($C$5=0,0,CUMIPMT($C$6/$C$8,$C$7*$C$8,$C$5,E128,E128,Pilotage!$D$25)),\"\")","v":""},{"$f":"IF(E128<>\"\",IF($C$5=0,0,$C$5+CUMPRINC($C$6/$C$8,$C$7*$C$8,$C$5,1,E128,Pilotage!$D$25)),\"\")","v":""},null,null,null,null,null,{"$f":"IF(K128<>\"\",-1*CUMIPMT($C$6/$C$8,$C$7*$C$8,$C$5,M128,N128,Pilotage!$D$25),\"\")","v":""}]
[null,null,null,null,"","",{"$f":"IF(E129<>\"\",IF($C$5=0,0,CUMIPMT($C$6/$C$8,$C$7*$C$8,$C$5,1,E129,Pilotage!$D$25)),\"\")","v":""},{"$f":"IF(E129<>\"\",IF($C$5=0,0,CUMIPMT($C$6/$C$8,$C$7*$C$8,$C$5,E129,E129,Pilotage!$D$25)),\"\")","v":""},{"$f":"IF(E129<>\"\",IF($C$5=0,0,$C$5+CUMPRINC($C$6/$C$8,$C$7*$C$8,$C$5,1,E129,Pilotage!$D$25)),\"\")","v":""},null,null,null,null,null,{"$f":"IF(K129<>\"\",-1*CUMIPMT($C$6/$C$8,$C$7*$C$8,$C$5,M129,N129,Pilotage!$D$25),\"\")","v":""}]
[null,null,null,null,"","",{"$f":"IF(E130<>\"\",IF($C$5=0,0,CUMIPMT($C$6/$C$8,$C$7*$C$8,$C$5,1,E130,Pilotage!$D$25)),\"\")","v":""},{"$f":"IF(E130<>\"\",IF($C$5=0,0,CUMIPMT($C$6/$C$8,$C$7*$C$8,$C$5,E130,E130,Pilotage!$D$25)),\"\")","v":""},{"$f":"IF(E130<>\"\",IF($C$5=0,0,$C$5+CUMPRINC($C$6/$C$8,$C$7*$C$8,$C$5,1,E130,Pilotage!$D$25)),\"\")","v":""},null,null,null,null,null,{"$f":"IF(K130<>\"\",-1*CUMIPMT($C$6/$C$8,$C$7*$C$8,$C$5,M130,N130,Pilotage!$D$25),\"\")","v":""}]
[null,null,null,null,"","",{"$f":"IF(E131<>\"\",IF($C$5=0,0,CUMIPMT($C$6/$C$8,$C$7*$C$8,$C$5,1,E131,Pilotage!$D$25)),\"\")","v":""},{"$f":"IF(E131<>\"\",IF($C$5=0,0,CUMIPMT($C$6/$C$8,$C$7*$C$8,$C$5,E131,E131,Pilotage!$D$25)),\"\")","v":""},{"$f":"IF(E131<>\"\",IF($C$5=0,0,$C$5+CUMPRINC($C$6/$C$8,$C$7*$C$8,$C$5,1,E131,Pilotage!$D$25)),\"\")","v":""},null,null,null,null,null,{"$f":"IF(K131<>\"\",-1*CUMIPMT($C$6/$C$8,$C$7*$C$8,$C$5,M131,N131,Pilotage!$D$25),\"\")","v":""}]
[null,null,null,null,"","",{"$f":"IF(E132<>\"\",IF($C$5=0,0,CUMIPMT($C$6/$C$8,$C$7*$C$8,$C$5,1,E132,Pilotage!$D$25)),\"\")","v":""},{"$f":"IF(E132<>\"\",IF($C$5=0,0,CUMIPMT($C$6/$C$8,$C$7*$C$8,$C$5,E132,E132,Pilotage!$D$25)),\"\")","v":""},{"$f":"IF(E132<>\"\",IF($C$5=0,0,$C$5+CUMPRINC($C$6/$C$8,$C$7*$C$8,$C$5,1,E132,Pilotage!$D$25)),\"\")","v":""},null,null,null,null,null,{"$f":"IF(K132<>\"\",-1*CUMIPMT($C$6/$C$8,$C$7*$C$8,$C$5,M132,N132,Pilotage!$D$25),\"\")","v":""}]
[null,null,null,null,"","",{"$f":"IF(E133<>\"\",IF($C$5=0,0,CUMIPMT($C$6/$C$8,$C$7*$C$8,$C$5,1,E133,Pilotage!$D$25)),\"\")","v":""},{"$f":"IF(E133<>\"\",IF($C$5=0,0,CUMIPMT($C$6/$C$8,$C$7*$C$8,$C$5,E133,E133,Pilotage!$D$25)),\"\")","v":""},{"$f":"IF(E133<>\"\",IF($C$5=0,0,$C$5+CUMPRINC($C$6/$C$8,$C$7*$C$8,$C$5,1,E133,Pilotage!$D$25)),\"\")","v":""},null,null,null,null,null,{"$f":"IF(K133<>\"\",-1*CUMIPMT($C$6/$C$8,$C$7*$C$8,$C$5,M133,N133,Pilotage!$D$25),\"\")","v":""}]
[null,null,null,null,"","",{"$f":"IF(E134<>\"\",IF($C$5=0,0,CUMIPMT($C$6/$C$8,$C$7*$C$8,$C$5,1,E134,Pilotage!$D$25)),\"\")","v":""},{"$f":"IF(E134<>\"\",IF($C$5=0,0,CUMIPMT($C$6/$C$8,$C$7*$C$8,$C$5,E134,E134,Pilotage!$D$25)),\"\")","v":""},{"$f":"IF(E134<>\"\",IF($C$5=0,0,$C$5+CUMPRINC($C$6/$C$8,$C$7*$C$8,$C$5,1,E134,Pilotage!$D$25)),\"\")","v":""},null,null,null,null,null,{"$f":"IF(K134<>\"\",-1*CUMIPMT($C$6/$C$8,$C$7*$C$8,$C$5,M134,N134,Pilotage!$D$25),\"\")","v":""}]
[null,null,null,null,"","",{"$f":"IF(E135<>\"\",IF($C$5=0,0,CUMIPMT($C$6/$C$8,$C$7*$C$8,$C$5,1,E135,Pilotage!$D$25)),\"\")","v":""},{"$f":"IF(E135<>\"\",IF($C$5=0,0,CUMIPMT($C$6/$C$8,$C$7*$C$8,$C$5,E135,E135,Pilotage!$D$25)),\"\")","v":""},{"$f":"IF(E135<>\"\",IF($C$5=0,0,$C$5+CUMPRINC($C$6/$C$8,$C$7*$C$8,$C$5,1,E135,Pilotage!$D$25)),\"\")","v":""},null,null,null,null,null,{"$f":"IF(K135<>\"\",-1*CUMIPMT($C$6/$C$8,$C$7*$C$8,$C$5,M135,N135,Pilotage!$D$25),\"\")","v":""}]
[null,null,null,null,{"$f":"IF(E135<$C$10,E135+1,\"\")","v":""},{"$f":"IF(E136<>\"\",EDATE(F135,$C$11),\"\")","v":""},{"$f":"IF(E136<>\"\",IF($C$5=0,0,CUMIPMT($C$6/$C$8,$C$7*$C$8,$C$5,1,E136,Pilotage!$D$25)),\"\")","v":""},{"$f":"IF(E136<>\"\",IF($C$5=0,0,CUMIPMT($C$6/$C$8,$C$7*$C$8,$C$5,E136,E136,Pilotage!$D$25)),\"\")","v":""},{"$f":"IF(E136<>\"\",IF($C$5=0,0,$C$5+CUMPRINC($C$6/$C$8,$C$7*$C$8,$C$5,1,E136,Pilotage!$D$25)),\"\")","v":""},null,null,null,null,null,{"$f":"IF(K136<>\"\",-1*CUMIPMT($C$6/$C$8,$C$7*$C$8,$C$5,M136,N136,Pilotage!$D$25),\"\")","v":""}]
[null,null,null,null,"","",{"$f":"IF(E137<>\"\",IF($C$5=0,0,CUMIPMT($C$6/$C$8,$C$7*$C$8,$C$5,1,E137,Pilotage!$D$25)),\"\")","v":""},{"$f":"IF(E137<>\"\",IF($C$5=0,0,CUMIPMT($C$6/$C$8,$C$7*$C$8,$C$5,E137,E137,Pilotage!$D$25)),\"\")","v":""},{"$f":"IF(E137<>\"\",IF($C$5=0,0,$C$5+CUMPRINC($C$6/$C$8,$C$7*$C$8,$C$5,1,E137,Pilotage!$D$25)),\"\")","v":""},null,null,null,null,null,{"$f":"IF(K137<>\"\",-1*CUMIPMT($C$6/$C$8,$C$7*$C$8,$C$5,M137,N137,Pilotage!$D$25),\"\")","v":""}]
[null,null,null,null,"","",{"$f":"IF(E138<>\"\",IF($C$5=0,0,CUMIPMT($C$6/$C$8,$C$7*$C$8,$C$5,1,E138,Pilotage!$D$25)),\"\")","v":""},{"$f":"IF(E138<>\"\",IF($C$5=0,0,CUMIPMT($C$6/$C$8,$C$7*$C$8,$C$5,E138,E138,Pilotage!$D$25)),\"\")","v":""},{"$f":"IF(E138<>\"\",IF($C$5=0,0,$C$5+CUMPRINC($C$6/$C$8,$C$7*$C$8,$C$5,1,E138,Pilotage!$D$25)),\"\")","v":""},null,null,null,null,null,{"$f":"IF(K138<>\"\",-1*CUMIPMT($C$6/$C$8,$C$7*$C$8,$C$5,M138,N138,Pilotage!$D$25),\"\")","v":""}]
[null,null,null,null,"","",{"$f":"IF(E139<>\"\",IF($C$5=0,0,CUMIPMT($C$6/$C$8,$C$7*$C$8,$C$5,1,E139,Pilotage!$D$25)),\"\")","v":""},{"$f":"IF(E139<>\"\",IF($C$5=0,0,CUMIPMT($C$6/$C$8,$C$7*$C$8,$C$5,E139,E139,Pilotage!$D$25)),\"\")","v":""},{"$f":"IF(E139<>\"\",IF($C$5=0,0,$C$5+CUMPRINC($C$6/$C$8,$C$7*$C$8,$C$5,1,E139,Pilotage!$D$25)),\"\")","v":""},null,null,null,null,null,{"$f":"IF(K139<>\"\",-1*CUMIPMT($C$6/$C$8,$C$7*$C$8,$C$5,M139,N139,Pilotage!$D$25),\"\")","v":""}]
[null,null,null,null,"","",{"$f":"IF(E140<>\"\",IF($C$5=0,0,CUMIPMT($C$6/$C$8,$C$7*$C$8,$C$5,1,E140,Pilotage!$D$25)),\"\")","v":""},{"$f":"IF(E140<>\"\",IF($C$5=0,0,CUMIPMT($C$6/$C$8,$C$7*$C$8,$C$5,E140,E140,Pilotage!$D$25)),\"\")","v":""},{"$f":"IF(E140<>\"\",IF($C$5=0,0,$C$5+CUMPRINC($C$6/$C$8,$C$7*$C$8,$C$5,1,E140,Pilotage!$D$25)),\"\")","v":""},null,null,null,null,null,{"$f":"IF(K140<>\"\",-1*CUMIPMT($C$6/$C$8,$C$7*$C$8,$C$5,M140,N140,Pilotage!$D$25),\"\")","v":""}]
[null,null,null,null,"","",{"$f":"IF(E141<>\"\",IF($C$5=0,0,CUMIPMT($C$6/$C$8,$C$7*$C$8,$C$5,1,E141,Pilotage!$D$25)),\"\")","v":""},{"$f":"IF(E141<>\"\",IF($C$5=0,0,CUMIPMT($C$6/$C$8,$C$7*$C$8,$C$5,E141,E141,Pilotage!$D$25)),\"\")","v":""},{"$f":"IF(E141<>\"\",IF($C$5=0,0,$C$5+CUMPRINC($C$6/$C$8,$C$7*$C$8,$C$5,1,E141,Pilotage!$D$25)),\"\")","v":""},null,null,null,null,null,{"$f":"IF(K141<>\"\",-1*CUMIPMT($C$6/$C$8,$C$7*$C$8,$C$5,M141,N141,Pilotage!$D$25),\"\")","v":""}]
[null,null,null,null,"","",{"$f":"IF(E142<>\"\",IF($C$5=0,0,CUMIPMT($C$6/$C$8,$C$7*$C$8,$C$5,1,E142,Pilotage!$D$25)),\"\")","v":""},{"$f":"IF(E142<>\"\",IF($C$5=0,0,CUMIPMT($C$6/$C$8,$C$7*$C$8,$C$5,E142,E142,Pilotage!$D$25)),\"\")","v":""},{"$f":"IF(E142<>\"\",IF($C$5=0,0,$C$5+CUMPRINC($C$6/$C$8,$C$7*$C$8,$C$5,1,E142,Pilotage!$D$25)),\"\")","v":""},null,null,null,null,null,{"$f":"IF(K142<>\"\",-1*CUMIPMT($C$6/$C$8,$C$7*$C$8,$C$5,M142,N142,Pilotage!$D$25),\"\")","v":""}]
[null,null,null,null,"","",{"$f":"IF(E143<>\"\",IF($C$5=0,0,CUMIPMT($C$6/$C$8,$C$7*$C$8,$C$5,1,E143,Pilotage!$D$25)),\"\")","v":""},{"$f":"IF(E143<>\"\",IF($C$5=0,0,CUMIPMT($C$6/$C$8,$C$7*$C$8,$C$5,E143,E143,Pilotage!$D$25)),\"\")","v":""},{"$f":"IF(E143<>\"\",IF($C$5=0,0,$C$5+CUMPRINC($C$6/$C$8,$C$7*$C$8,$C$5,1,E143,Pilotage!$D$25)),\"\")","v":""},null,null,null,null,null,{"$f":"IF(K143<>\"\",-1*CUMIPMT($C$6/$C$8,$C$7*$C$8,$C$5,M143,N143,Pilotage!$D$25),\"\")","v":""}]
[null,null,null,null,"","",{"$f":"IF(E144<>\"\",IF($C$5=0,0,CUMIPMT($C$6/$C$8,$C$7*$C$8,$C$5,1,E144,Pilotage!$D$25)),\"\")","v":""},{"$f":"IF(E144<>\"\",IF($C$5=0,0,CUMIPMT($C$6/$C$8,$C$7*$C$8,$C$5,E144,E144,Pilotage!$D$25)),\"\")","v":""},{"$f":"IF(E144<>\"\",IF($C$5=0,0,$C$5+CUMPRINC($C$6/$C$8,$C$7*$C$8,$C$5,1,E144,Pilotage!$D$25)),\"\")","v":""},null,null,null,null,null,{"$f":"IF(K144<>\"\",-1*CUMIPMT($C$6/$C$8,$C$7*$C$8,$C$5,M144,N144,Pilotage!$D$25),\"\")","v":""}]
[null,null,null,null,"","",{"$f":"IF(E145<>\"\",IF($C$5=0,0,CUMIPMT($C$6/$C$8,$C$7*$C$8,$C$5,1,E145,Pilotage!$D$25)),\"\")","v":""},{"$f":"IF(E145<>\"\",IF($C$5=0,0,CUMIPMT($C$6/$C$8,$C$7*$C$8,$C$5,E145,E145,Pilotage!$D$25)),\"\")","v":""},{"$f":"IF(E145<>\"\",IF($C$5=0,0,$C$5+CUMPRINC($C$6/$C$8,$C$7*$C$8,$C$5,1,E145,Pilotage!$D$25)),\"\")","v":""},null,null,null,null,null,{"$f":"IF(K145<>\"\",-1*CUMIPMT($C$6/$C$8,$C$7*$C$8,$C$5,M145,N145,Pilotage!$D$25),\"\")","v":""}]
[null,null,null,null,"","",{"$f":"IF(E146<>\"\",IF($C$5=0,0,CUMIPMT($C$6/$C$8,$C$7*$C$8,$C$5,1,E146,Pilotage!$D$25)),\"\")","v":""},{"$f":"IF(E146<>\"\",IF($C$5=0,0,CUMIPMT($C$6/$C$8,$C$7*$C$8,$C$5,E146,E146,Pilotage!$D$25)),\"\")","v":""},{"$f":"IF(E146<>\"\",IF($C$5=0,0,$C$5+CUMPRINC($C$6/$C$8,$C$7*$C$8,$C$5,1,E146,Pilotage!$D$25)),\"\")","v":""},null,null,null,null,null,{"$f":"IF(K146<>\"\",-1*CUMIPMT($C$6/$C$8,$C$7*$C$8,$C$5,M146,N146,Pilotage!$D$25),\"\")","v":""}]
[null,null,null,null,"","",{"$f":"IF(E147<>\"\",IF($C$5=0,0,CUMIPMT($C$6/$C$8,$C$7*$C$8,$C$5,1,E147,Pilotage!$D$25)),\"\")","v":""},{"$f":"IF(E147<>\"\",IF($C$5=0,0,CUMIPMT($C$6/$C$8,$C$7*$C$8,$C$5,E147,E147,Pilotage!$D$25)),\"\")","v":""},{"$f":"IF(E147<>\"\",IF($C$5=0,0,$C$5+CUMPRINC($C$6/$C$8,$C$7*$C$8,$C$5,1,E147,Pilotage!$D$25)),\"\")","v":""},null,null,null,null,null,{"$f":"IF(K147<>\"\",-1*CUMIPMT($C$6/$C$8,$C$7*$C$8,$C$5,M147,N147,Pilotage!$D$25),\"\")","v":""}]
[null,null,null,null,"","",{"$f":"IF(E148<>\"\",IF($C$5=0,0,CUMIPMT($C$6/$C$8,$C$7*$C$8,$C$5,1,E148,Pilotage!$D$25)),\"\")","v":""},{"$f":"IF(E148<>\"\",IF($C$5=0,0,CUMIPMT($C$6/$C$8,$C$7*$C$8,$C$5,E148,E148,Pilotage!$D$25)),\"\")","v":""},{"$f":"IF(E148<>\"\",IF($C$5=0,0,$C$5+CUMPRINC($C$6/$C$8,$C$7*$C$8,$C$5,1,E148,Pilotage!$D$25)),\"\")","v":""},null,null,null,null,null,{"$f":"IF(K148<>\"\",-1*CUMIPMT($C$6/$C$8,$C$7*$C$8,$C$5,M148,N148,Pilotage!$D$25),\"\")","v":""}]
[null,null,null,null,"","",{"$f":"IF(E149<>\"\",IF($C$5=0,0,CUMIPMT($C$6/$C$8,$C$7*$C$8,$C$5,1,E149,Pilotage!$D$25)),\"\")","v":""},{"$f":"IF(E149<>\"\",IF($C$5=0,0,CUMIPMT($C$6/$C$8,$C$7*$C$8,$C$5,E149,E149,Pilotage!$D$25)),\"\")","v":""},{"$f":"IF(E149<>\"\",IF($C$5=0,0,$C$5+CUMPRINC($C$6/$C$8,$C$7*$C$8,$C$5,1,E149,Pilotage!$D$25)),\"\")","v":""},null,null,null,null,null,{"$f":"IF(K149<>\"\",-1*CUMIPMT($C$6/$C$8,$C$7*$C$8,$C$5,M149,N149,Pilotage!$D$25),\"\")","v":""}]
[null,null,null,null,"","",{"$f":"IF(E150<>\"\",IF($C$5=0,0,CUMIPMT($C$6/$C$8,$C$7*$C$8,$C$5,1,E150,Pilotage!$D$25)),\"\")","v":""},{"$f":"IF(E150<>\"\",IF($C$5=0,0,CUMIPMT($C$6/$C$8,$C$7*$C$8,$C$5,E150,E150,Pilotage!$D$25)),\"\")","v":""},{"$f":"IF(E150<>\"\",IF($C$5=0,0,$C$5+CUMPRINC($C$6/$C$8,$C$7*$C$8,$C$5,1,E150,Pilotage!$D$25)),\"\")","v":""},null,null,null,null,null,{"$f":"IF(K150<>\"\",-1*CUMIPMT($C$6/$C$8,$C$7*$C$8,$C$5,M150,N150,Pilotage!$D$25),\"\")","v":""}]
[null,null,null,null,"","",{"$f":"IF(E151<>\"\",IF($C$5=0,0,CUMIPMT($C$6/$C$8,$C$7*$C$8,$C$5,1,E151,Pilotage!$D$25)),\"\")","v":""},{"$f":"IF(E151<>\"\",IF($C$5=0,0,CUMIPMT($C$6/$C$8,$C$7*$C$8,$C$5,E151,E151,Pilotage!$D$25)),\"\")","v":""},{"$f":"IF(E151<>\"\",IF($C$5=0,0,$C$5+CUMPRINC($C$6/$C$8,$C$7*$C$8,$C$5,1,E151,Pilotage!$D$25)),\"\")","v":""},null,null,null,null,null,{"$f":"IF(K151<>\"\",-1*CUMIPMT($C$6/$C$8,$C$7*$C$8,$C$5,M151,N151,Pilotage!$D$25),\"\")","v":""}]
[null,null,null,null,"","",{"$f":"IF(E152<>\"\",IF($C$5=0,0,CUMIPMT($C$6/$C$8,$C$7*$C$8,$C$5,1,E152,Pilotage!$D$25)),\"\")","v":""},{"$f":"IF(E152<>\"\",IF($C$5=0,0,CUMIPMT($C$6/$C$8,$C$7*$C$8,$C$5,E152,E152,Pilotage!$D$25)),\"\")","v":""},{"$f":"IF(E152<>\"\",IF($C$5=0,0,$C$5+CUMPRINC($C$6/$C$8,$C$7*$C$8,$C$5,1,E152,Pilotage!$D$25)),\"\")","v":""},null,null,null,null,null,{"$f":"IF(K152<>\"\",-1*CUMIPMT($C$6/$C$8,$C$7*$C$8,$C$5,M152,N152,Pilotage!$D$25),\"\")","v":""}]
[null,null,null,null,"","",{"$f":"IF(E153<>\"\",IF($C$5=0,0,CUMIPMT($C$6/$C$8,$C$7*$C$8,$C$5,1,E153,Pilotage!$D$25)),\"\")","v":""},{"$f":"IF(E153<>\"\",IF($C$5=0,0,CUMIPMT($C$6/$C$8,$C$7*$C$8,$C$5,E153,E153,Pilotage!$D$25)),\"\")","v":""},{"$f":"IF(E153<>\"\",IF($C$5=0,0,$C$5+CUMPRINC($C$6/$C$8,$C$7*$C$8,$C$5,1,E153,Pilotage!$D$25)),\"\")","v":""},null,null,null,null,null,{"$f":"IF(K153<>\"\",-1*CUMIPMT($C$6/$C$8,$C$7*$C$8,$C$5,M153,N153,Pilotage!$D$25),\"\")","v":""}]
[null,null,null,null,"","",{"$f":"IF(E154<>\"\",IF($C$5=0,0,CUMIPMT($C$6/$C$8,$C$7*$C$8,$C$5,1,E154,Pilotage!$D$25)),\"\")","v":""},{"$f":"IF(E154<>\"\",IF($C$5=0,0,CUMIPMT($C$6/$C$8,$C$7*$C$8,$C$5,E154,E154,Pilotage!$D$25)),\"\")","v":""},{"$f":"IF(E154<>\"\",IF($C$5=0,0,$C$5+CUMPRINC($C$6/$C$8,$C$7*$C$8,$C$5,1,E154,Pilotage!$D$25)),\"\")","v":""},null,null,null,null,null,{"$f":"IF(K154<>\"\",-1*CUMIPMT($C$6/$C$8,$C$7*$C$8,$C$5,M154,N154,Pilotage!$D$25),\"\")","v":""}]
[null,null,null,null,"","",{"$f":"IF(E155<>\"\",IF($C$5=0,0,CUMIPMT($C$6/$C$8,$C$7*$C$8,$C$5,1,E155,Pilotage!$D$25)),\"\")","v":""},{"$f":"IF(E155<>\"\",IF($C$5=0,0,CUMIPMT($C$6/$C$8,$C$7*$C$8,$C$5,E155,E155,Pilotage!$D$25)),\"\")","v":""},{"$f":"IF(E155<>\"\",IF($C$5=0,0,$C$5+CUMPRINC($C$6/$C$8,$C$7*$C$8,$C$5,1,E155,Pilotage!$D$25)),\"\")","v":""},null,null,null,null,null,{"$f":"IF(K155<>\"\",-1*CUMIPMT($C$6/$C$8,$C$7*$C$8,$C$5,M155,N155,Pilotage!$D$25),\"\")","v":""}]
[null,null,null,null,"","",{"$f":"IF(E156<>\"\",IF($C$5=0,0,CUMIPMT($C$6/$C$8,$C$7*$C$8,$C$5,1,E156,Pilotage!$D$25)),\"\")","v":""},{"$f":"IF(E156<>\"\",IF($C$5=0,0,CUMIPMT($C$6/$C$8,$C$7*$C$8,$C$5,E156,E156,Pilotage!$D$25)),\"\")","v":""},{"$f":"IF(E156<>\"\",IF($C$5=0,0,$C$5+CUMPRINC($C$6/$C$8,$C$7*$C$8,$C$5,1,E156,Pilotage!$D$25)),\"\")","v":""},null,null,null,null,null,{"$f":"IF(K156<>\"\",-1*CUMIPMT($C$6/$C$8,$C$7*$C$8,$C$5,M156,N156,Pilotage!$D$25),\"\")","v":""}]
[null,null,null,null,"","",{"$f":"IF(E157<>\"\",IF($C$5=0,0,CUMIPMT($C$6/$C$8,$C$7*$C$8,$C$5,1,E157,Pilotage!$D$25)),\"\")","v":""},{"$f":"IF(E157<>\"\",IF($C$5=0,0,CUMIPMT($C$6/$C$8,$C$7*$C$8,$C$5,E157,E157,Pilotage!$D$25)),\"\")","v":""},{"$f":"IF(E157<>\"\",IF($C$5=0,0,$C$5+CUMPRINC($C$6/$C$8,$C$7*$C$8,$C$5,1,E157,Pilotage!$D$25)),\"\")","v":""},null,null,null,null,null,{"$f":"IF(K157<>\"\",-1*CUMIPMT($C$6/$C$8,$C$7*$C$8,$C$5,M157,N157,Pilotage!$D$25),\"\")","v":""}]
[null,null,null,null,"","",{"$f":"IF(E158<>\"\",IF($C$5=0,0,CUMIPMT($C$6/$C$8,$C$7*$C$8,$C$5,1,E158,Pilotage!$D$25)),\"\")","v":""},{"$f":"IF(E158<>\"\",IF($C$5=0,0,CUMIPMT($C$6/$C$8,$C$7*$C$8,$C$5,E158,E158,Pilotage!$D$25)),\"\")","v":""},{"$f":"IF(E158<>\"\",IF($C$5=0,0,$C$5+CUMPRINC($C$6/$C$8,$C$7*$C$8,$C$5,1,E158,Pilotage!$D$25)),\"\")","v":""},null,null,null,null,null,{"$f":"IF(K158<>\"\",-1*CUMIPMT($C$6/$C$8,$C$7*$C$8,$C$5,M158,N158,Pilotage!$D$25),\"\")","v":""}]
[null,null,null,null,"","",{"$f":"IF(E159<>\"\",IF($C$5=0,0,CUMIPMT($C$6/$C$8,$C$7*$C$8,$C$5,1,E159,Pilotage!$D$25)),\"\")","v":""},{"$f":"IF(E159<>\"\",IF($C$5=0,0,CUMIPMT($C$6/$C$8,$C$7*$C$8,$C$5,E159,E159,Pilotage!$D$25)),\"\")","v":""},{"$f":"IF(E159<>\"\",IF($C$5=0,0,$C$5+CUMPRINC($C$6/$C$8,$C$7*$C$8,$C$5,1,E159,Pilotage!$D$25)),\"\")","v":""},null,null,null,null,null,{"$f":"IF(K159<>\"\",-1*CUMIPMT($C$6/$C$8,$C$7*$C$8,$C$5,M159,N159,Pilotage!$D$25),\"\")","v":""}]
[null,null,null,null,"","",{"$f":"IF(E160<>\"\",IF($C$5=0,0,CUMIPMT($C$6/$C$8,$C$7*$C$8,$C$5,1,E160,Pilotage!$D$25)),\"\")","v":""},{"$f":"IF(E160<>\"\",IF($C$5=0,0,CUMIPMT($C$6/$C$8,$C$7*$C$8,$C$5,E160,E160,Pilotage!$D$25)),\"\")","v":""},{"$f":"IF(E160<>\"\",IF($C$5=0,0,$C$5+CUMPRINC($C$6/$C$8,$C$7*$C$8,$C$5,1,E160,Pilotage!$D$25)),\"\")","v":""},null,null,null,null,null,{"$f":"IF(K160<>\"\",-1*CUMIPMT($C$6/$C$8,$C$7*$C$8,$C$5,M160,N160,Pilotage!$D$25),\"\")","v":""}]
[null,null,null,null,"","",{"$f":"IF(E161<>\"\",IF($C$5=0,0,CUMIPMT($C$6/$C$8,$C$7*$C$8,$C$5,1,E161,Pilotage!$D$25)),\"\")","v":""},{"$f":"IF(E161<>\"\",IF($C$5=0,0,CUMIPMT($C$6/$C$8,$C$7*$C$8,$C$5,E161,E161,Pilotage!$D$25)),\"\")","v":""},{"$f":"IF(E161<>\"\",IF($C$5=0,0,$C$5+CUMPRINC($C$6/$C$8,$C$7*$C$8,$C$5,1,E161,Pilotage!$D$25)),\"\")","v":""},null,null,null,null,null,{"$f":"IF(K161<>\"\",-1*CUMIPMT($C$6/$C$8,$C$7*$C$8,$C$5,M161,N161,Pilotage!$D$25),\"\")","v":""}]
[null,null,null,null,"","",{"$f":"IF(E162<>\"\",IF($C$5=0,0,CUMIPMT($C$6/$C$8,$C$7*$C$8,$C$5,1,E162,Pilotage!$D$25)),\"\")","v":""},{"$f":"IF(E162<>\"\",IF($C$5=0,0,CUMIPMT($C$6/$C$8,$C$7*$C$8,$C$5,E162,E162,Pilotage!$D$25)),\"\")","v":""},{"$f":"IF(E162<>\"\",IF($C$5=0,0,$C$5+CUMPRINC($C$6/$C$8,$C$7*$C$8,$C$5,1,E162,Pilotage!$D$25)),\"\")","v":""},null,null,null,null,null,{"$f":"IF(K162<>\"\",-1*CUMIPMT($C$6/$C$8,$C$7*$C$8,$C$5,M162,N162,Pilotage!$D$25),\"\")","v":""}]
[null,null,null,null,"","",{"$f":"IF(E163<>\"\",IF($C$5=0,0,CUMIPMT($C$6/$C$8,$C$7*$C$8,$C$5,1,E163,Pilotage!$D$25)),\"\")","v":""},{"$f":"IF(E163<>\"\",IF($C$5=0,0,CUMIPMT($C$6/$C$8,$C$7*$C$8,$C$5,E163,E163,Pilotage!$D$25)),\"\")","v":""},{"$f":"IF(E163<>\"\",IF($C$5=0,0,$C$5+CUMPRINC($C$6/$C$8,$C$7*$C$8,$C$5,1,E163,Pilotage!$D$25)),\"\")","v":""},null,null,null,null,null,{"$f":"IF(K163<>\"\",-1*CUMIPMT($C$6/$C$8,$C$7*$C$8,$C$5,M163,N163,Pilotage!$D$25),\"\")","v":""}]
[null,null,null,null,"","",{"$f":"IF(E164<>\"\",IF($C$5=0,0,CUMIPMT($C$6/$C$8,$C$7*$C$8,$C$5,1,E164,Pilotage!$D$25)),\"\")","v":""},{"$f":"IF(E164<>\"\",IF($C$5=0,0,CUMIPMT($C$6/$C$8,$C$7*$C$8,$C$5,E164,E164,Pilotage!$D$25)),\"\")","v":""},{"$f":"IF(E164<>\"\",IF($C$5=0,0,$C$5+CUMPRINC($C$6/$C$8,$C$7*$C$8,$C$5,1,E164,Pilotage!$D$25)),\"\")","v":""},null,null,null,null,null,{"$f":"IF(K164<>\"\",-1*CUMIPMT($C$6/$C$8,$C$7*$C$8,$C$5,M164,N164,Pilotage!$D$25),\"\")","v":""}]
[null,null,null,null,"","",{"$f":"IF(E165<>\"\",IF($C$5=0,0,CUMIPMT($C$6/$C$8,$C$7*$C$8,$C$5,1,E165,Pilotage!$D$25)),\"\")","v":""},{"$f":"IF(E165<>\"\",IF($C$5=0,0,CUMIPMT($C$6/$C$8,$C$7*$C$8,$C$5,E165,E165,Pilotage!$D$25)),\"\")","v":""},{"$f":"IF(E165<>\"\",IF($C$5=0,0,$C$5+CUMPRINC($C$6/$C$8,$C$7*$C$8,$C$5,1,E165,Pilotage!$D$25)),\"\")","v":""},null,null,null,null,null,{"$f":"IF(K165<>\"\",-1*CUMIPMT($C$6/$C$8,$C$7*$C$8,$C$5,M165,N165,Pilotage!$D$25),\"\")","v":""}]
[null,null,null,null,"","",{"$f":"IF(E166<>\"\",IF($C$5=0,0,CUMIPMT($C$6/$C$8,$C$7*$C$8,$C$5,1,E166,Pilotage!$D$25)),\"\")","v":""},{"$f":"IF(E166<>\"\",IF($C$5=0,0,CUMIPMT($C$6/$C$8,$C$7*$C$8,$C$5,E166,E166,Pilotage!$D$25)),\"\")","v":""},{"$f":"IF(E166<>\"\",IF($C$5=0,0,$C$5+CUMPRINC($C$6/$C$8,$C$7*$C$8,$C$5,1,E166,Pilotage!$D$25)),\"\")","v":""},null,null,null,null,null,{"$f":"IF(K166<>\"\",-1*CUMIPMT($C$6/$C$8,$C$7*$C$8,$C$5,M166,N166,Pilotage!$D$25),\"\")","v":""}]
[null,null,null,null,"","",{"$f":"IF(E167<>\"\",IF($C$5=0,0,CUMIPMT($C$6/$C$8,$C$7*$C$8,$C$5,1,E167,Pilotage!$D$25)),\"\")","v":""},{"$f":"IF(E167<>\"\",IF($C$5=0,0,CUMIPMT($C$6/$C$8,$C$7*$C$8,$C$5,E167,E167,Pilotage!$D$25)),\"\")","v":""},{"$f":"IF(E167<>\"\",IF($C$5=0,0,$C$5+CUMPRINC($C$6/$C$8,$C$7*$C$8,$C$5,1,E167,Pilotage!$D$25)),\"\")","v":""},null,null,null,null,null,{"$f":"IF(K167<>\"\",-1*CUMIPMT($C$6/$C$8,$C$7*$C$8,$C$5,M167,N167,Pilotage!$D$25),\"\")","v":""}]
[null,null,null,null,"","",{"$f":"IF(E168<>\"\",IF($C$5=0,0,CUMIPMT($C$6/$C$8,$C$7*$C$8,$C$5,1,E168,Pilotage!$D$25)),\"\")","v":""},{"$f":"IF(E168<>\"\",IF($C$5=0,0,CUMIPMT($C$6/$C$8,$C$7*$C$8,$C$5,E168,E168,Pilotage!$D$25)),\"\")","v":""},{"$f":"IF(E168<>\"\",IF($C$5=0,0,$C$5+CUMPRINC($C$6/$C$8,$C$7*$C$8,$C$5,1,E168,Pilotage!$D$25)),\"\")","v":""},null,null,null,null,null,{"$f":"IF(K168<>\"\",-1*CUMIPMT($C$6/$C$8,$C$7*$C$8,$C$5,M168,N168,Pilotage!$D$25),\"\")","v":""}]
[null,null,null,null,"","",{"$f":"IF(E169<>\"\",IF($C$5=0,0,CUMIPMT($C$6/$C$8,$C$7*$C$8,$C$5,1,E169,Pilotage!$D$25)),\"\")","v":""},{"$f":"IF(E169<>\"\",IF($C$5=0,0,CUMIPMT($C$6/$C$8,$C$7*$C$8,$C$5,E169,E169,Pilotage!$D$25)),\"\")","v":""},{"$f":"IF(E169<>\"\",IF($C$5=0,0,$C$5+CUMPRINC($C$6/$C$8,$C$7*$C$8,$C$5,1,E169,Pilotage!$D$25)),\"\")","v":""},null,null,null,null,null,{"$f":"IF(K169<>\"\",-1*CUMIPMT($C$6/$C$8,$C$7*$C$8,$C$5,M169,N169,Pilotage!$D$25),\"\")","v":""}]
[null,null,null,null,"","",{"$f":"IF(E170<>\"\",IF($C$5=0,0,CUMIPMT($C$6/$C$8,$C$7*$C$8,$C$5,1,E170,Pilotage!$D$25)),\"\")","v":""},{"$f":"IF(E170<>\"\",IF($C$5=0,0,CUMIPMT($C$6/$C$8,$C$7*$C$8,$C$5,E170,E170,Pilotage!$D$25)),\"\")","v":""},{"$f":"IF(E170<>\"\",IF($C$5=0,0,$C$5+CUMPRINC($C$6/$C$8,$C$7*$C$8,$C$5,1,E170,Pilotage!$D$25)),\"\")","v":""},null,null,null,null,null,{"$f":"IF(K170<>\"\",-1*CUMIPMT($C$6/$C$8,$C$7*$C$8,$C$5,M170,N170,Pilotage!$D$25),\"\")","v":""}]
[null,null,null,null,"","",{"$f":"IF(E171<>\"\",IF($C$5=0,0,CUMIPMT($C$6/$C$8,$C$7*$C$8,$C$5,1,E171,Pilotage!$D$25)),\"\")","v":""},{"$f":"IF(E171<>\"\",IF($C$5=0,0,CUMIPMT($C$6/$C$8,$C$7*$C$8,$C$5,E171,E171,Pilotage!$D$25)),\"\")","v":""},{"$f":"IF(E171<>\"\",IF($C$5=0,0,$C$5+CUMPRINC($C$6/$C$8,$C$7*$C$8,$C$5,1,E171,Pilotage!$D$25)),\"\")","v":""},null,null,null,null,null,{"$f":"IF(K171<>\"\",-1*CUMIPMT($C$6/$C$8,$C$7*$C$8,$C$5,M171,N171,Pilotage!$D$25),\"\")","v":""}]
[null,null,null,null,"","",{"$f":"IF(E172<>\"\",IF($C$5=0,0,CUMIPMT($C$6/$C$8,$C$7*$C$8,$C$5,1,E172,Pilotage!$D$25)),\"\")","v":""},{"$f":"IF(E172<>\"\",IF($C$5=0,0,CUMIPMT($C$6/$C$8,$C$7*$C$8,$C$5,E172,E172,Pilotage!$D$25)),\"\")","v":""},{"$f":"IF(E172<>\"\",IF($C$5=0,0,$C$5+CUMPRINC($C$6/$C$8,$C$7*$C$8,$C$5,1,E172,Pilotage!$D$25)),\"\")","v":""},null,null,null,null,null,{"$f":"IF(K172<>\"\",-1*CUMIPMT($C$6/$C$8,$C$7*$C$8,$C$5,M172,N172,Pilotage!$D$25),\"\")","v":""}]
[null,null,null,null,"","",{"$f":"IF(E173<>\"\",IF($C$5=0,0,CUMIPMT($C$6/$C$8,$C$7*$C$8,$C$5,1,E173,Pilotage!$D$25)),\"\")","v":""},{"$f":"IF(E173<>\"\",IF($C$5=0,0,CUMIPMT($C$6/$C$8,$C$7*$C$8,$C$5,E173,E173,Pilotage!$D$25)),\"\")","v":""},{"$f":"IF(E173<>\"\",IF($C$5=0,0,$C$5+CUMPRINC($C$6/$C$8,$C$7*$C$8,$C$5,1,E173,Pilotage!$D$25)),\"\")","v":""},null,null,null,null,null,{"$f":"IF(K173<>\"\",-1*CUMIPMT($C$6/$C$8,$C$7*$C$8,$C$5,M173,N173,Pilotage!$D$25),\"\")","v":""}]
[null,null,null,null,"","",{"$f":"IF(E174<>\"\",IF($C$5=0,0,CUMIPMT($C$6/$C$8,$C$7*$C$8,$C$5,1,E174,Pilotage!$D$25)),\"\")","v":""},{"$f":"IF(E174<>\"\",IF($C$5=0,0,CUMIPMT($C$6/$C$8,$C$7*$C$8,$C$5,E174,E174,Pilotage!$D$25)),\"\")","v":""},{"$f":"IF(E174<>\"\",IF($C$5=0,0,$C$5+CUMPRINC($C$6/$C$8,$C$7*$C$8,$C$5,1,E174,Pilotage!$D$25)),\"\")","v":""},null,null,null,null,null,{"$f":"IF(K174<>\"\",-1*CUMIPMT($C$6/$C$8,$C$7*$C$8,$C$5,M174,N174,Pilotage!$D$25),\"\")","v":""}]
[null,null,null,null,"","",{"$f":"IF(E175<>\"\",IF($C$5=0,0,CUMIPMT($C$6/$C$8,$C$7*$C$8,$C$5,1,E175,Pilotage!$D$25)),\"\")","v":""},{"$f":"IF(E175<>\"\",IF($C$5=0,0,CUMIPMT($C$6/$C$8,$C$7*$C$8,$C$5,E175,E175,Pilotage!$D$25)),\"\")","v":""},{"$f":"IF(E175<>\"\",IF($C$5=0,0,$C$5+CUMPRINC($C$6/$C$8,$C$7*$C$8,$C$5,1,E175,Pilotage!$D$25)),\"\")","v":""},null,null,null,null,null,{"$f":"IF(K175<>\"\",-1*CUMIPMT($C$6/$C$8,$C$7*$C$8,$C$5,M175,N175,Pilotage!$D$25),\"\")","v":""}]
[null,null,null,null,"","",{"$f":"IF(E176<>\"\",IF($C$5=0,0,CUMIPMT($C$6/$C$8,$C$7*$C$8,$C$5,1,E176,Pilotage!$D$25)),\"\")","v":""},{"$f":"IF(E176<>\"\",IF($C$5=0,0,CUMIPMT($C$6/$C$8,$C$7*$C$8,$C$5,E176,E176,Pilotage!$D$25)),\"\")","v":""},{"$f":"IF(E176<>\"\",IF($C$5=0,0,$C$5+CUMPRINC($C$6/$C$8,$C$7*$C$8,$C$5,1,E176,Pilotage!$D$25)),\"\")","v":""},null,null,null,null,null,{"$f":"IF(K176<>\"\",-1*CUMIPMT($C$6/$C$8,$C$7*$C$8,$C$5,M176,N176,Pilotage!$D$25),\"\")","v":""}]
[null,null,null,null,"","",{"$f":"IF(E177<>\"\",IF($C$5=0,0,CUMIPMT($C$6/$C$8,$C$7*$C$8,$C$5,1,E177,Pilotage!$D$25)),\"\")","v":""},{"$f":"IF(E177<>\"\",IF($C$5=0,0,CUMIPMT($C$6/$C$8,$C$7*$C$8,$C$5,E177,E177,Pilotage!$D$25)),\"\")","v":""},{"$f":"IF(E177<>\"\",IF($C$5=0,0,$C$5+CUMPRINC($C$6/$C$8,$C$7*$C$8,$C$5,1,E177,Pilotage!$D$25)),\"\")","v":""},null,null,null,null,null,{"$f":"IF(K177<>\"\",-1*CUMIPMT($C$6/$C$8,$C$7*$C$8,$C$5,M177,N177,Pilotage!$D$25),\"\")","v":""}]
[null,null,null,null,"","",{"$f":"IF(E178<>\"\",IF($C$5=0,0,CUMIPMT($C$6/$C$8,$C$7*$C$8,$C$5,1,E178,Pilotage!$D$25)),\"\")","v":""},{"$f":"IF(E178<>\"\",IF($C$5=0,0,CUMIPMT($C$6/$C$8,$C$7*$C$8,$C$5,E178,E178,Pilotage!$D$25)),\"\")","v":""},{"$f":"IF(E178<>\"\",IF($C$5=0,0,$C$5+CUMPRINC($C$6/$C$8,$C$7*$C$8,$C$5,1,E178,Pilotage!$D$25)),\"\")","v":""},null,null,null,null,null,{"$f":"IF(K178<>\"\",-1*CUMIPMT($C$6/$C$8,$C$7*$C$8,$C$5,M178,N178,Pilotage!$D$25),\"\")","v":""}]
[null,null,null,null,"","",{"$f":"IF(E179<>\"\",IF($C$5=0,0,CUMIPMT($C$6/$C$8,$C$7*$C$8,$C$5,1,E179,Pilotage!$D$25)),\"\")","v":""},{"$f":"IF(E179<>\"\",IF($C$5=0,0,CUMIPMT($C$6/$C$8,$C$7*$C$8,$C$5,E179,E179,Pilotage!$D$25)),\"\")","v":""},{"$f":"IF(E179<>\"\",IF($C$5=0,0,$C$5+CUMPRINC($C$6/$C$8,$C$7*$C$8,$C$5,1,E179,Pilotage!$D$25)),\"\")","v":""},null,null,null,null,null,{"$f":"IF(K179<>\"\",-1*CUMIPMT($C$6/$C$8,$C$7*$C$8,$C$5,M179,N179,Pilotage!$D$25),\"\")","v":""}]
[null,null,null,null,"","",{"$f":"IF(E180<>\"\",IF($C$5=0,0,CUMIPMT($C$6/$C$8,$C$7*$C$8,$C$5,1,E180,Pilotage!$D$25)),\"\")","v":""},{"$f":"IF(E180<>\"\",IF($C$5=0,0,CUMIPMT($C$6/$C$8,$C$7*$C$8,$C$5,E180,E180,Pilotage!$D$25)),\"\")","v":""},{"$f":"IF(E180<>\"\",IF($C$5=0,0,$C$5+CUMPRINC($C$6/$C$8,$C$7*$C$8,$C$5,1,E180,Pilotage!$D$25)),\"\")","v":""},null,null,null,null,null,{"$f":"IF(K180<>\"\",-1*CUMIPMT($C$6/$C$8,$C$7*$C$8,$C$5,M180,N180,Pilotage!$D$25),\"\")","v":""}]
[null,null,null,null,"","",{"$f":"IF(E181<>\"\",IF($C$5=0,0,CUMIPMT($C$6/$C$8,$C$7*$C$8,$C$5,1,E181,Pilotage!$D$25)),\"\")","v":""},{"$f":"IF(E181<>\"\",IF($C$5=0,0,CUMIPMT($C$6/$C$8,$C$7*$C$8,$C$5,E181,E181,Pilotage!$D$25)),\"\")","v":""},{"$f":"IF(E181<>\"\",IF($C$5=0,0,$C$5+CUMPRINC($C$6/$C$8,$C$7*$C$8,$C$5,1,E181,Pilotage!$D$25)),\"\")","v":""},null,null,null,null,null,{"$f":"IF(K181<>\"\",-1*CUMIPMT($C$6/$C$8,$C$7*$C$8,$C$5,M181,N181,Pilotage!$D$25),\"\")","v":""}]
[null,null,null,null,"","",{"$f":"IF(E182<>\"\",IF($C$5=0,0,CUMIPMT($C$6/$C$8,$C$7*$C$8,$C$5,1,E182,Pilotage!$D$25)),\"\")","v":""},{"$f":"IF(E182<>\"\",IF($C$5=0,0,CUMIPMT($C$6/$C$8,$C$7*$C$8,$C$5,E182,E182,Pilotage!$D$25)),\"\")","v":""},{"$f":"IF(E182<>\"\",IF($C$5=0,0,$C$5+CUMPRINC($C$6/$C$8,$C$7*$C$8,$C$5,1,E182,Pilotage!$D$25)),\"\")","v":""},null,null,null,null,null,{"$f":"IF(K182<>\"\",-1*CUMIPMT($C$6/$C$8,$C$7*$C$8,$C$5,M182,N182,Pilotage!$D$25),\"\")","v":""}]
[null,null,null,null,"","",{"$f":"IF(E183<>\"\",IF($C$5=0,0,CUMIPMT($C$6/$C$8,$C$7*$C$8,$C$5,1,E183,Pilotage!$D$25)),\"\")","v":""},{"$f":"IF(E183<>\"\",IF($C$5=0,0,CUMIPMT($C$6/$C$8,$C$7*$C$8,$C$5,E183,E183,Pilotage!$D$25)),\"\")","v":""},{"$f":"IF(E183<>\"\",IF($C$5=0,0,$C$5+CUMPRINC($C$6/$C$8,$C$7*$C$8,$C$5,1,E183,Pilotage!$D$25)),\"\")","v":""},null,null,null,null,null,{"$f":"IF(K183<>\"\",-1*CUMIPMT($C$6/$C$8,$C$7*$C$8,$C$5,M183,N183,Pilotage!$D$25),\"\")","v":""}]
[null,null,null,null,"","",{"$f":"IF(E184<>\"\",IF($C$5=0,0,CUMIPMT($C$6/$C$8,$C$7*$C$8,$C$5,1,E184,Pilotage!$D$25)),\"\")","v":""},{"$f":"IF(E184<>\"\",IF($C$5=0,0,CUMIPMT($C$6/$C$8,$C$7*$C$8,$C$5,E184,E184,Pilotage!$D$25)),\"\")","v":""},{"$f":"IF(E184<>\"\",IF($C$5=0,0,$C$5+CUMPRINC($C$6/$C$8,$C$7*$C$8,$C$5,1,E184,Pilotage!$D$25)),\"\")","v":""},null,null,null,null,null,{"$f":"IF(K184<>\"\",-1*CUMIPMT($C$6/$C$8,$C$7*$C$8,$C$5,M184,N184,Pilotage!$D$25),\"\")","v":""}]
[null,null,null,null,"","",{"$f":"IF(E185<>\"\",IF($C$5=0,0,CUMIPMT($C$6/$C$8,$C$7*$C$8,$C$5,1,E185,Pilotage!$D$25)),\"\")","v":""},{"$f":"IF(E185<>\"\",IF($C$5=0,0,CUMIPMT($C$6/$C$8,$C$7*$C$8,$C$5,E185,E185,Pilotage!$D$25)),\"\")","v":""},{"$f":"IF(E185<>\"\",IF($C$5=0,0,$C$5+CUMPRINC($C$6/$C$8,$C$7*$C$8,$C$5,1,E185,Pilotage!$D$25)),\"\")","v":""},null,null,null,null,null,{"$f":"IF(K185<>\"\",-1*CUMIPMT($C$6/$C$8,$C$7*$C$8,$C$5,M185,N185,Pilotage!$D$25),\"\")","v":""}]
[null,null,null,null,{"$f":"IF(E185<$C$10,E185+1,\"\")","v":""},{"$f":"IF(E186<>\"\",EDATE(F185,$C$11),\"\")","v":""},{"$f":"IF(E186<>\"\",IF($C$5=0,0,CUMIPMT($C$6/$C$8,$C$7*$C$8,$C$5,1,E186,Pilotage!$D$25)),\"\")","v":""},{"$f":"IF(E186<>\"\",IF($C$5=0,0,CUMIPMT($C$6/$C$8,$C$7*$C$8,$C$5,E186,E186,Pilotage!$D$25)),\"\")","v":""},{"$f":"IF(E186<>\"\",IF($C$5=0,0,$C$5+CUMPRINC($C$6/$C$8,$C$7*$C$8,$C$5,1,E186,Pilotage!$D$25)),\"\")","v":""},null,null,null,null,null,{"$f":"IF(K186<>\"\",-1*CUMIPMT($C$6/$C$8,$C$7*$C$8,$C$5,M186,N186,Pilotage!$D$25),\"\")","v":""}]
[null,null,null,null,"","",{"$f":"IF(E187<>\"\",IF($C$5=0,0,CUMIPMT($C$6/$C$8,$C$7*$C$8,$C$5,1,E187,Pilotage!$D$25)),\"\")","v":""},{"$f":"IF(E187<>\"\",IF($C$5=0,0,CUMIPMT($C$6/$C$8,$C$7*$C$8,$C$5,E187,E187,Pilotage!$D$25)),\"\")","v":""},{"$f":"IF(E187<>\"\",IF($C$5=0,0,$C$5+CUMPRINC($C$6/$C$8,$C$7*$C$8,$C$5,1,E187,Pilotage!$D$25)),\"\")","v":""},null,null,null,null,null,{"$f":"IF(K187<>\"\",-1*CUMIPMT($C$6/$C$8,$C$7*$C$8,$C$5,M187,N187,Pilotage!$D$25),\"\")","v":""}]
[null,null,null,null,"","",{"$f":"IF(E188<>\"\",IF($C$5=0,0,CUMIPMT($C$6/$C$8,$C$7*$C$8,$C$5,1,E188,Pilotage!$D$25)),\"\")","v":""},{"$f":"IF(E188<>\"\",IF($C$5=0,0,CUMIPMT($C$6/$C$8,$C$7*$C$8,$C$5,E188,E188,Pilotage!$D$25)),\"\")","v":""},{"$f":"IF(E188<>\"\",IF($C$5=0,0,$C$5+CUMPRINC($C$6/$C$8,$C$7*$C$8,$C$5,1,E188,Pilotage!$D$25)),\"\")","v":""},null,null,null,null,null,{"$f":"IF(K188<>\"\",-1*CUMIPMT($C$6/$C$8,$C$7*$C$8,$C$5,M188,N188,Pilotage!$D$25),\"\")","v":""}]
[null,null,null,null,"","",{"$f":"IF(E189<>\"\",IF($C$5=0,0,CUMIPMT($C$6/$C$8,$C$7*$C$8,$C$5,1,E189,Pilotage!$D$25)),\"\")","v":""},{"$f":"IF(E189<>\"\",IF($C$5=0,0,CUMIPMT($C$6/$C$8,$C$7*$C$8,$C$5,E189,E189,Pilotage!$D$25)),\"\")","v":""},{"$f":"IF(E189<>\"\",IF($C$5=0,0,$C$5+CUMPRINC($C$6/$C$8,$C$7*$C$8,$C$5,1,E189,Pilotage!$D$25)),\"\")","v":""},null,null,null,null,null,{"$f":"IF(K189<>\"\",-1*CUMIPMT($C$6/$C$8,$C$7*$C$8,$C$5,M189,N189,Pilotage!$D$25),\"\")","v":""}]
[null,null,null,null,"","",{"$f":"IF(E190<>\"\",IF($C$5=0,0,CUMIPMT($C$6/$C$8,$C$7*$C$8,$C$5,1,E190,Pilotage!$D$25)),\"\")","v":""},{"$f":"IF(E190<>\"\",IF($C$5=0,0,CUMIPMT($C$6/$C$8,$C$7*$C$8,$C$5,E190,E190,Pilotage!$D$25)),\"\")","v":""},{"$f":"IF(E190<>\"\",IF($C$5=0,0,$C$5+CUMPRINC($C$6/$C$8,$C$7*$C$8,$C$5,1,E190,Pilotage!$D$25)),\"\")","v":""},null,null,null,null,null,{"$f":"IF(K190<>\"\",-1*CUMIPMT($C$6/$C$8,$C$7*$C$8,$C$5,M190,N190,Pilotage!$D$25),\"\")","v":""}]
[null,null,null,null,"","",{"$f":"IF(E191<>\"\",IF($C$5=0,0,CUMIPMT($C$6/$C$8,$C$7*$C$8,$C$5,1,E191,Pilotage!$D$25)),\"\")","v":""},{"$f":"IF(E191<>\"\",IF($C$5=0,0,CUMIPMT($C$6/$C$8,$C$7*$C$8,$C$5,E191,E191,Pilotage!$D$25)),\"\")","v":""},{"$f":"IF(E191<>\"\",IF($C$5=0,0,$C$5+CUMPRINC($C$6/$C$8,$C$7*$C$8,$C$5,1,E191,Pilotage!$D$25)),\"\")","v":""},null,null,null,null,null,{"$f":"IF(K191<>\"\",-1*CUMIPMT($C$6/$C$8,$C$7*$C$8,$C$5,M191,N191,Pilotage!$D$25),\"\")","v":""}]
[null,null,null,null,"","",{"$f":"IF(E192<>\"\",IF($C$5=0,0,CUMIPMT($C$6/$C$8,$C$7*$C$8,$C$5,1,E192,Pilotage!$D$25)),\"\")","v":""},{"$f":"IF(E192<>\"\",IF($C$5=0,0,CUMIPMT($C$6/$C$8,$C$7*$C$8,$C$5,E192,E192,Pilotage!$D$25)),\"\")","v":""},{"$f":"IF(E192<>\"\",IF($C$5=0,0,$C$5+CUMPRINC($C$6/$C$8,$C$7*$C$8,$C$5,1,E192,Pilotage!$D$25)),\"\")","v":""},null,null,null,null,null,{"$f":"IF(K192<>\"\",-1*CUMIPMT($C$6/$C$8,$C$7*$C$8,$C$5,M192,N192,Pilotage!$D$25),\"\")","v":""}]
[null,null,null,null,"","",{"$f":"IF(E193<>\"\",IF($C$5=0,0,CUMIPMT($C$6/$C$8,$C$7*$C$8,$C$5,1,E193,Pilotage!$D$25)),\"\")","v":""},{"$f":"IF(E193<>\"\",IF($C$5=0,0,CUMIPMT($C$6/$C$8,$C$7*$C$8,$C$5,E193,E193,Pilotage!$D$25)),\"\")","v":""},{"$f":"IF(E193<>\"\",IF($C$5=0,0,$C$5+CUMPRINC($C$6/$C$8,$C$7*$C$8,$C$5,1,E193,Pilotage!$D$25)),\"\")","v":""},null,null,null,null,null,{"$f":"IF(K193<>\"\",-1*CUMIPMT($C$6/$C$8,$C$7*$C$8,$C$5,M193,N193,Pilotage!$D$25),\"\")","v":""}]
[null,null,null,null,"","",{"$f":"IF(E194<>\"\",IF($C$5=0,0,CUMIPMT($C$6/$C$8,$C$7*$C$8,$C$5,1,E194,Pilotage!$D$25)),\"\")","v":""},{"$f":"IF(E194<>\"\",IF($C$5=0,0,CUMIPMT($C$6/$C$8,$C$7*$C$8,$C$5,E194,E194,Pilotage!$D$25)),\"\")","v":""},{"$f":"IF(E194<>\"\",IF($C$5=0,0,$C$5+CUMPRINC($C$6/$C$8,$C$7*$C$8,$C$5,1,E194,Pilotage!$D$25)),\"\")","v":""},null,null,null,null,null,{"$f":"IF(K194<>\"\",-1*CUMIPMT($C$6/$C$8,$C$7*$C$8,$C$5,M194,N194,Pilotage!$D$25),\"\")","v":""}]
[null,null,null,null,"","",{"$f":"IF(E195<>\"\",IF($C$5=0,0,CUMIPMT($C$6/$C$8,$C$7*$C$8,$C$5,1,E195,Pilotage!$D$25)),\"\")","v":""},{"$f":"IF(E195<>\"\",IF($C$5=0,0,CUMIPMT($C$6/$C$8,$C$7*$C$8,$C$5,E195,E195,Pilotage!$D$25)),\"\")","v":""},{"$f":"IF(E195<>\"\",IF($C$5=0,0,$C$5+CUMPRINC($C$6/$C$8,$C$7*$C$8,$C$5,1,E195,Pilotage!$D$25)),\"\")","v":""},null,null,null,null,null,{"$f":"IF(K195<>\"\",-1*CUMIPMT($C$6/$C$8,$C$7*$C$8,$C$5,M195,N195,Pilotage!$D$25),\"\")","v":""}]
[null,null,null,null,"","",{"$f":"IF(E196<>\"\",IF($C$5=0,0,CUMIPMT($C$6/$C$8,$C$7*$C$8,$C$5,1,E196,Pilotage!$D$25)),\"\")","v":""},{"$f":"IF(E196<>\"\",IF($C$5=0,0,CUMIPMT($C$6/$C$8,$C$7*$C$8,$C$5,E196,E196,Pilotage!$D$25)),\"\")","v":""},{"$f":"IF(E196<>\"\",IF($C$5=0,0,$C$5+CUMPRINC($C$6/$C$8,$C$7*$C$8,$C$5,1,E196,Pilotage!$D$25)),\"\")","v":""},null,null,null,null,null,{"$f":"IF(K196<>\"\",-1*CUMIPMT($C$6/$C$8,$C$7*$C$8,$C$5,M196,N196,Pilotage!$D$25),\"\")","v":""}]
[null,null,null,null,"","",{"$f":"IF(E197<>\"\",IF($C$5=0,0,CUMIPMT($C$6/$C$8,$C$7*$C$8,$C$5,1,E197,Pilotage!$D$25)),\"\")","v":""},{"$f":"IF(E197<>\"\",IF($C$5=0,0,CUMIPMT($C$6/$C$8,$C$7*$C$8,$C$5,E197,E197,Pilotage!$D$25)),\"\")","v":""},{"$f":"IF(E197<>\"\",IF($C$5=0,0,$C$5+CUMPRINC($C$6/$C$8,$C$7*$C$8,$C$5,1,E197,Pilotage!$D$25)),\"\")","v":""},null,null,null,null,null,{"$f":"IF(K197<>\"\",-1*CUMIPMT($C$6/$C$8,$C$7*$C$8,$C$5,M197,N197,Pilotage!$D$25),\"\")","v":""}]
[null,null,null,null,"","",{"$f":"IF(E198<>\"\",IF($C$5=0,0,CUMIPMT($C$6/$C$8,$C$7*$C$8,$C$5,1,E198,Pilotage!$D$25)),\"\")","v":""},{"$f":"IF(E198<>\"\",IF($C$5=0,0,CUMIPMT($C$6/$C$8,$C$7*$C$8,$C$5,E198,E198,Pilotage!$D$25)),\"\")","v":""},{"$f":"IF(E198<>\"\",IF($C$5=0,0,$C$5+CUMPRINC($C$6/$C$8,$C$7*$C$8,$C$5,1,E198,Pilotage!$D$25)),\"\")","v":""},null,null,null,null,null,{"$f":"IF(K198<>\"\",-1*CUMIPMT($C$6/$C$8,$C$7*$C$8,$C$5,M198,N198,Pilotage!$D$25),\"\")","v":""}]
[null,null,null,null,"","",{"$f":"IF(E199<>\"\",IF($C$5=0,0,CUMIPMT($C$6/$C$8,$C$7*$C$8,$C$5,1,E199,Pilotage!$D$25)),\"\")","v":""},{"$f":"IF(E199<>\"\",IF($C$5=0,0,CUMIPMT($C$6/$C$8,$C$7*$C$8,$C$5,E199,E199,Pilotage!$D$25)),\"\")","v":""},{"$f":"IF(E199<>\"\",IF($C$5=0,0,$C$5+CUMPRINC($C$6/$C$8,$C$7*$C$8,$C$5,1,E199,Pilotage!$D$25)),\"\")","v":""},null,null,null,null,null,{"$f":"IF(K199<>\"\",-1*CUMIPMT($C$6/$C$8,$C$7*$C$8,$C$5,M199,N199,Pilotage!$D$25),\"\")","v":""}]
[null,null,null,null,"","",{"$f":"IF(E200<>\"\",IF($C$5=0,0,CUMIPMT($C$6/$C$8,$C$7*$C$8,$C$5,1,E200,Pilotage!$D$25)),\"\")","v":""},{"$f":"IF(E200<>\"\",IF($C$5=0,0,CUMIPMT($C$6/$C$8,$C$7*$C$8,$C$5,E200,E200,Pilotage!$D$25)),\"\")","v":""},{"$f":"IF(E200<>\"\",IF($C$5=0,0,$C$5+CUMPRINC($C$6/$C$8,$C$7*$C$8,$C$5,1,E200,Pilotage!$D$25)),\"\")","v":""},null,null,null,null,null,{"$f":"IF(K200<>\"\",-1*CUMIPMT($C$6/$C$8,$C$7*$C$8,$C$5,M200,N200,Pilotage!$D$25),\"\")","v":""}]
[null,null,null,null,"","",{"$f":"IF(E201<>\"\",IF($C$5=0,0,CUMIPMT($C$6/$C$8,$C$7*$C$8,$C$5,1,E201,Pilotage!$D$25)),\"\")","v":""},{"$f":"IF(E201<>\"\",IF($C$5=0,0,CUMIPMT($C$6/$C$8,$C$7*$C$8,$C$5,E201,E201,Pilotage!$D$25)),\"\")","v":""},{"$f":"IF(E201<>\"\",IF($C$5=0,0,$C$5+CUMPRINC($C$6/$C$8,$C$7*$C$8,$C$5,1,E201,Pilotage!$D$25)),\"\")","v":""},null,null,null,null,null,{"$f":"IF(K201<>\"\",-1*CUMIPMT($C$6/$C$8,$C$7*$C$8,$C$5,M201,N201,Pilotage!$D$25),\"\")","v":""}]
[null,null,null,null,"","",{"$f":"IF(E202<>\"\",IF($C$5=0,0,CUMIPMT($C$6/$C$8,$C$7*$C$8,$C$5,1,E202,Pilotage!$D$25)),\"\")","v":""},{"$f":"IF(E202<>\"\",IF($C$5=0,0,CUMIPMT($C$6/$C$8,$C$7*$C$8,$C$5,E202,E202,Pilotage!$D$25)),\"\")","v":""},{"$f":"IF(E202<>\"\",IF($C$5=0,0,$C$5+CUMPRINC($C$6/$C$8,$C$7*$C$8,$C$5,1,E202,Pilotage!$D$25)),\"\")","v":""},null,null,null,null,null,{"$f":"IF(K202<>\"\",-1*CUMIPMT($C$6/$C$8,$C$7*$C$8,$C$5,M202,N202,Pilotage!$D$25),\"\")","v":""}]
[null,null,null,null,"","",{"$f":"IF(E203<>\"\",IF($C$5=0,0,CUMIPMT($C$6/$C$8,$C$7*$C$8,$C$5,1,E203,Pilotage!$D$25)),\"\")","v":""},{"$f":"IF(E203<>\"\",IF($C$5=0,0,CUMIPMT($C$6/$C$8,$C$7*$C$8,$C$5,E203,E203,Pilotage!$D$25)),\"\")","v":""},{"$f":"IF(E203<>\"\",IF($C$5=0,0,$C$5+CUMPRINC($C$6/$C$8,$C$7*$C$8,$C$5,1,E203,Pilotage!$D$25)),\"\")","v":""},null,null,null,null,null,{"$f":"IF(K203<>\"\",-1*CUMIPMT($C$6/$C$8,$C$7*$C$8,$C$5,M203,N203,Pilotage!$D$25),\"\")","v":""}]
[null,null,null,null,"","",{"$f":"IF(E204<>\"\",IF($C$5=0,0,CUMIPMT($C$6/$C$8,$C$7*$C$8,$C$5,1,E204,Pilotage!$D$25)),\"\")","v":""},{"$f":"IF(E204<>\"\",IF($C$5=0,0,CUMIPMT($C$6/$C$8,$C$7*$C$8,$C$5,E204,E204,Pilotage!$D$25)),\"\")","v":""},{"$f":"IF(E204<>\"\",IF($C$5=0,0,$C$5+CUMPRINC($C$6/$C$8,$C$7*$C$8,$C$5,1,E204,Pilotage!$D$25)),\"\")","v":""},null,null,null,null,null,{"$f":"IF(K204<>\"\",-1*CUMIPMT($C$6/$C$8,$C$7*$C$8,$C$5,M204,N204,Pilotage!$D$25),\"\")","v":""}]
[null,null,null,null,"","",{"$f":"IF(E205<>\"\",IF($C$5=0,0,CUMIPMT($C$6/$C$8,$C$7*$C$8,$C$5,1,E205,Pilotage!$D$25)),\"\")","v":""},{"$f":"IF(E205<>\"\",IF($C$5=0,0,CUMIPMT($C$6/$C$8,$C$7*$C$8,$C$5,E205,E205,Pilotage!$D$25)),\"\")","v":""},{"$f":"IF(E205<>\"\",IF($C$5=0,0,$C$5+CUMPRINC($C$6/$C$8,$C$7*$C$8,$C$5,1,E205,Pilotage!$D$25)),\"\")","v":""},null,null,null,null,null,{"$f":"IF(K205<>\"\",-1*CUMIPMT($C$6/$C$8,$C$7*$C$8,$C$5,M205,N205,Pilotage!$D$25),\"\")","v":""}]
[null,null,null,null,"","",{"$f":"IF(E206<>\"\",IF($C$5=0,0,CUMIPMT($C$6/$C$8,$C$7*$C$8,$C$5,1,E206,Pilotage!$D$25)),\"\")","v":""},{"$f":"IF(E206<>\"\",IF($C$5=0,0,CUMIPMT($C$6/$C$8,$C$7*$C$8,$C$5,E206,E206,Pilotage!$D$25)),\"\")","v":""},{"$f":"IF(E206<>\"\",IF($C$5=0,0,$C$5+CUMPRINC($C$6/$C$8,$C$7*$C$8,$C$5,1,E206,Pilotage!$D$25)),\"\")","v":""},null,null,null,null,null,{"$f":"IF(K206<>\"\",-1*CUMIPMT($C$6/$C$8,$C$7*$C$8,$C$5,M206,N206,Pilotage!$D$25),\"\")","v":""}]
[null,null,null,null,{"$f":"IF(E206<$C$10,E206+1,\"\")","v":""},{"$f":"IF(E207<>\"\",EDATE(F206,$C$11),\"\")","v":""},{"$f":"IF(E207<>\"\",IF($C$5=0,0,CUMIPMT($C$6/$C$8,$C$7*$C$8,$C$5,1,E207,Pilotage!$D$25)),\"\")","v":""},{"$f":"IF(E207<>\"\",IF($C$5=0,0,CUMIPMT($C$6/$C$8,$C$7*$C$8,$C$5,E207,E207,Pilotage!$D$25)),\"\")","v":""},{"$f":"IF(E207<>\"\",IF($C$5=0,0,$C$5+CUMPRINC($C$6/$C$8,$C$7*$C$8,$C$5,1,E207,Pilotage!$D$25)),\"\")","v":""},null,null,null,null,null,{"$f":"IF(K207<>\"\",-1*CUMIPMT($C$6/$C$8,$C$7*$C$8,$C$5,M207,N207,Pilotage!$D$25),\"\")","v":""}]
[null,null,null,null,"","",{"$f":"IF(E208<>\"\",IF($C$5=0,0,CUMIPMT($C$6/$C$8,$C$7*$C$8,$C$5,1,E208,Pilotage!$D$25)),\"\")","v":""},{"$f":"IF(E208<>\"\",IF($C$5=0,0,CUMIPMT($C$6/$C$8,$C$7*$C$8,$C$5,E208,E208,Pilotage!$D$25)),\"\")","v":""},{"$f":"IF(E208<>\"\",IF($C$5=0,0,$C$5+CUMPRINC($C$6/$C$8,$C$7*$C$8,$C$5,1,E208,Pilotage!$D$25)),\"\")","v":""},null,null,null,null,null,{"$f":"IF(K208<>\"\",-1*CUMIPMT($C$6/$C$8,$C$7*$C$8,$C$5,M208,N208,Pilotage!$D$25),\"\")","v":""}]
[null,null,null,null,"","",{"$f":"IF(E209<>\"\",IF($C$5=0,0,CUMIPMT($C$6/$C$8,$C$7*$C$8,$C$5,1,E209,Pilotage!$D$25)),\"\")","v":""},{"$f":"IF(E209<>\"\",IF($C$5=0,0,CUMIPMT($C$6/$C$8,$C$7*$C$8,$C$5,E209,E209,Pilotage!$D$25)),\"\")","v":""},{"$f":"IF(E209<>\"\",IF($C$5=0,0,$C$5+CUMPRINC($C$6/$C$8,$C$7*$C$8,$C$5,1,E209,Pilotage!$D$25)),\"\")","v":""},null,null,null,null,null,{"$f":"IF(K209<>\"\",-1*CUMIPMT($C$6/$C$8,$C$7*$C$8,$C$5,M209,N209,Pilotage!$D$25),\"\")","v":""}]
[null,null,null,null,"","",{"$f":"IF(E210<>\"\",IF($C$5=0,0,CUMIPMT($C$6/$C$8,$C$7*$C$8,$C$5,1,E210,Pilotage!$D$25)),\"\")","v":""},{"$f":"IF(E210<>\"\",IF($C$5=0,0,CUMIPMT($C$6/$C$8,$C$7*$C$8,$C$5,E210,E210,Pilotage!$D$25)),\"\")","v":""},{"$f":"IF(E210<>\"\",IF($C$5=0,0,$C$5+CUMPRINC($C$6/$C$8,$C$7*$C$8,$C$5,1,E210,Pilotage!$D$25)),\"\")","v":""},null,null,null,null,null,{"$f":"IF(K210<>\"\",-1*CUMIPMT($C$6/$C$8,$C$7*$C$8,$C$5,M210,N210,Pilotage!$D$25),\"\")","v":""}]
[null,null,null,null,"","",{"$f":"IF(E211<>\"\",IF($C$5=0,0,CUMIPMT($C$6/$C$8,$C$7*$C$8,$C$5,1,E211,Pilotage!$D$25)),\"\")","v":""},{"$f":"IF(E211<>\"\",IF($C$5=0,0,CUMIPMT($C$6/$C$8,$C$7*$C$8,$C$5,E211,E211,Pilotage!$D$25)),\"\")","v":""},{"$f":"IF(E211<>\"\",IF($C$5=0,0,$C$5+CUMPRINC($C$6/$C$8,$C$7*$C$8,$C$5,1,E211,Pilotage!$D$25)),\"\")","v":""},null,null,null,null,null,{"$f":"IF(K211<>\"\",-1*CUMIPMT($C$6/$C$8,$C$7*$C$8,$C$5,M211,N211,Pilotage!$D$25),\"\")","v":""}]
[null,null,null,null,"","",{"$f":"IF(E212<>\"\",IF($C$5=0,0,CUMIPMT($C$6/$C$8,$C$7*$C$8,$C$5,1,E212,Pilotage!$D$25)),\"\")","v":""},{"$f":"IF(E212<>\"\",IF($C$5=0,0,CUMIPMT($C$6/$C$8,$C$7*$C$8,$C$5,E212,E212,Pilotage!$D$25)),\"\")","v":""},{"$f":"IF(E212<>\"\",IF($C$5=0,0,$C$5+CUMPRINC($C$6/$C$8,$C$7*$C$8,$C$5,1,E212,Pilotage!$D$25)),\"\")","v":""},null,null,null,null,null,{"$f":"IF(K212<>\"\",-1*CUMIPMT($C$6/$C$8,$C$7*$C$8,$C$5,M212,N212,Pilotage!$D$25),\"\")","v":""}]
[null,null,null,null,"","",{"$f":"IF(E213<>\"\",IF($C$5=0,0,CUMIPMT($C$6/$C$8,$C$7*$C$8,$C$5,1,E213,Pilotage!$D$25)),\"\")","v":""},{"$f":"IF(E213<>\"\",IF($C$5=0,0,CUMIPMT($C$6/$C$8,$C$7*$C$8,$C$5,E213,E213,Pilotage!$D$25)),\"\")","v":""},{"$f":"IF(E213<>\"\",IF($C$5=0,0,$C$5+CUMPRINC($C$6/$C$8,$C$7*$C$8,$C$5,1,E213,Pilotage!$D$25)),\"\")","v":""},null,null,null,null,null,{"$f":"IF(K213<>\"\",-1*CUMIPMT($C$6/$C$8,$C$7*$C$8,$C$5,M213,N213,Pilotage!$D$25),\"\")","v":""}]
[null,null,null,null,"","",{"$f":"IF(E214<>\"\",IF($C$5=0,0,CUMIPMT($C$6/$C$8,$C$7*$C$8,$C$5,1,E214,Pilotage!$D$25)),\"\")","v":""},{"$f":"IF(E214<>\"\",IF($C$5=0,0,CUMIPMT($C$6/$C$8,$C$7*$C$8,$C$5,E214,E214,Pilotage!$D$25)),\"\")","v":""},{"$f":"IF(E214<>\"\",IF($C$5=0,0,$C$5+CUMPRINC($C$6/$C$8,$C$7*$C$8,$C$5,1,E214,Pilotage!$D$25)),\"\")","v":""},null,null,null,null,null,{"$f":"IF(K214<>\"\",-1*CUMIPMT($C$6/$C$8,$C$7*$C$8,$C$5,M214,N214,Pilotage!$D$25),\"\")","v":""}]
[null,null,null,null,"","",{"$f":"IF(E215<>\"\",IF($C$5=0,0,CUMIPMT($C$6/$C$8,$C$7*$C$8,$C$5,1,E215,Pilotage!$D$25)),\"\")","v":""},{"$f":"IF(E215<>\"\",IF($C$5=0,0,CUMIPMT($C$6/$C$8,$C$7*$C$8,$C$5,E215,E215,Pilotage!$D$25)),\"\")","v":""},{"$f":"IF(E215<>\"\",IF($C$5=0,0,$C$5+CUMPRINC($C$6/$C$8,$C$7*$C$8,$C$5,1,E215,Pilotage!$D$25)),\"\")","v":""},null,null,null,null,null,{"$f":"IF(K215<>\"\",-1*CUMIPMT($C$6/$C$8,$C$7*$C$8,$C$5,M215,N215,Pilotage!$D$25),\"\")","v":""}]
[null,null,null,null,"","",{"$f":"IF(E216<>\"\",IF($C$5=0,0,CUMIPMT($C$6/$C$8,$C$7*$C$8,$C$5,1,E216,Pilotage!$D$25)),\"\")","v":""},{"$f":"IF(E216<>\"\",IF($C$5=0,0,CUMIPMT($C$6/$C$8,$C$7*$C$8,$C$5,E216,E216,Pilotage!$D$25)),\"\")","v":""},{"$f":"IF(E216<>\"\",IF($C$5=0,0,$C$5+CUMPRINC($C$6/$C$8,$C$7*$C$8,$C$5,1,E216,Pilotage!$D$25)),\"\")","v":""},null,null,null,null,null,{"$f":"IF(K216<>\"\",-1*CUMIPMT($C$6/$C$8,$C$7*$C$8,$C$5,M216,N216,Pilotage!$D$25),\"\")","v":""}]
[null,null,null,null,"","",{"$f":"IF(E217<>\"\",IF($C$5=0,0,CUMIPMT($C$6/$C$8,$C$7*$C$8,$C$5,1,E217,Pilotage!$D$25)),\"\")","v":""},{"$f":"IF(E217<>\"\",IF($C$5=0,0,CUMIPMT($C$6/$C$8,$C$7*$C$8,$C$5,E217,E217,Pilotage!$D$25)),\"\")","v":""},{"$f":"IF(E217<>\"\",IF($C$5=0,0,$C$5+CUMPRINC($C$6/$C$8,$C$7*$C$8,$C$5,1,E217,Pilotage!$D$25)),\"\")","v":""},null,null,null,null,null,{"$f":"IF(K217<>\"\",-1*CUMIPMT($C$6/$C$8,$C$7*$C$8,$C$5,M217,N217,Pilotage!$D$25),\"\")","v":""}]
[null,null,null,null,"","",{"$f":"IF(E218<>\"\",IF($C$5=0,0,CUMIPMT($C$6/$C$8,$C$7*$C$8,$C$5,1,E218,Pilotage!$D$25)),\"\")","v":""},{"$f":"IF(E218<>\"\",IF($C$5=0,0,CUMIPMT($C$6/$C$8,$C$7*$C$8,$C$5,E218,E218,Pilotage!$D$25)),\"\")","v":""},{"$f":"IF(E218<>\"\",IF($C$5=0,0,$C$5+CUMPRINC($C$6/$C$8,$C$7*$C$8,$C$5,1,E218,Pilotage!$D$25)),\"\")","v":""},null,null,null,null,null,{"$f":"IF(K218<>\"\",-1*CUMIPMT($C$6/$C$8,$C$7*$C$8,$C$5,M218,N218,Pilotage!$D$25),\"\")","v":""}]
[null,null,null,null,"","",{"$f":"IF(E219<>\"\",IF($C$5=0,0,CUMIPMT($C$6/$C$8,$C$7*$C$8,$C$5,1,E219,Pilotage!$D$25)),\"\")","v":""},{"$f":"IF(E219<>\"\",IF($C$5=0,0,CUMIPMT($C$6/$C$8,$C$7*$C$8,$C$5,E219,E219,Pilotage!$D$25)),\"\")","v":""},{"$f":"IF(E219<>\"\",IF($C$5=0,0,$C$5+CUMPRINC($C$6/$C$8,$C$7*$C$8,$C$5,1,E219,Pilotage!$D$25)),\"\")","v":""},null,null,null,null,null,{"$f":"IF(K219<>\"\",-1*CUMIPMT($C$6/$C$8,$C$7*$C$8,$C$5,M219,N219,Pilotage!$D$25),\"\")","v":""}]
[null,null,null,null,"","",{"$f":"IF(E220<>\"\",IF($C$5=0,0,CUMIPMT($C$6/$C$8,$C$7*$C$8,$C$5,1,E220,Pilotage!$D$25)),\"\")","v":""},{"$f":"IF(E220<>\"\",IF($C$5=0,0,CUMIPMT($C$6/$C$8,$C$7*$C$8,$C$5,E220,E220,Pilotage!$D$25)),\"\")","v":""},{"$f":"IF(E220<>\"\",IF($C$5=0,0,$C$5+CUMPRINC($C$6/$C$8,$C$7*$C$8,$C$5,1,E220,Pilotage!$D$25)),\"\")","v":""},null,null,null,null,null,{"$f":"IF(K220<>\"\",-1*CUMIPMT($C$6/$C$8,$C$7*$C$8,$C$5,M220,N220,Pilotage!$D$25),\"\")","v":""}]
[null,null,null,null,"","",{"$f":"IF(E221<>\"\",IF($C$5=0,0,CUMIPMT($C$6/$C$8,$C$7*$C$8,$C$5,1,E221,Pilotage!$D$25)),\"\")","v":""},{"$f":"IF(E221<>\"\",IF($C$5=0,0,CUMIPMT($C$6/$C$8,$C$7*$C$8,$C$5,E221,E221,Pilotage!$D$25)),\"\")","v":""},{"$f":"IF(E221<>\"\",IF($C$5=0,0,$C$5+CUMPRINC($C$6/$C$8,$C$7*$C$8,$C$5,1,E221,Pilotage!$D$25)),\"\")","v":""},null,null,null,null,null,{"$f":"IF(K221<>\"\",-1*CUMIPMT($C$6/$C$8,$C$7*$C$8,$C$5,M221,N221,Pilotage!$D$25),\"\")","v":""}]
[null,null,null,null,"","",{"$f":"IF(E222<>\"\",IF($C$5=0,0,CUMIPMT($C$6/$C$8,$C$7*$C$8,$C$5,1,E222,Pilotage!$D$25)),\"\")","v":""},{"$f":"IF(E222<>\"\",IF($C$5=0,0,CUMIPMT($C$6/$C$8,$C$7*$C$8,$C$5,E222,E222,Pilotage!$D$25)),\"\")","v":""},{"$f":"IF(E222<>\"\",IF($C$5=0,0,$C$5+CUMPRINC($C$6/$C$8,$C$7*$C$8,$C$5,1,E222,Pilotage!$D$25)),\"\")","v":""},null,null,null,null,null,{"$f":"IF(K222<>\"\",-1*CUMIPMT($C$6/$C$8,$C$7*$C$8,$C$5,M222,N222,Pilotage!$D$25),\"\")","v":""}]
[null,null,null,null,"","",{"$f":"IF(E223<>\"\",IF($C$5=0,0,CUMIPMT($C$6/$C$8,$C$7*$C$8,$C$5,1,E223,Pilotage!$D$25)),\"\")","v":""},{"$f":"IF(E223<>\"\",IF($C$5=0,0,CUMIPMT($C$6/$C$8,$C$7*$C$8,$C$5,E223,E223,Pilotage!$D$25)),\"\")","v":""},{"$f":"IF(E223<>\"\",IF($C$5=0,0,$C$5+CUMPRINC($C$6/$C$8,$C$7*$C$8,$C$5,1,E223,Pilotage!$D$25)),\"\")","v":""},null,null,null,null,null,{"$f":"IF(K223<>\"\",-1*CUMIPMT($C$6/$C$8,$C$7*$C$8,$C$5,M223,N223,Pilotage!$D$25),\"\")","v":""}]
[null,null,null,null,"","",{"$f":"IF(E224<>\"\",IF($C$5=0,0,CUMIPMT($C$6/$C$8,$C$7*$C$8,$C$5,1,E224,Pilotage!$D$25)),\"\")","v":""},{"$f":"IF(E224<>\"\",IF($C$5=0,0,CUMIPMT($C$6/$C$8,$C$7*$C$8,$C$5,E224,E224,Pilotage!$D$25)),\"\")","v":""},{"$f":"IF(E224<>\"\",IF($C$5=0,0,$C$5+CUMPRINC($C$6/$C$8,$C$7*$C$8,$C$5,1,E224,Pilotage!$D$25)),\"\")","v":""},null,null,null,null,null,{"$f":"IF(K224<>\"\",-1*CUMIPMT($C$6/$C$8,$C$7*$C$8,$C$5,M224,N224,Pilotage!$D$25),\"\")","v":""}]
[null,null,null,null,"","",{"$f":"IF(E225<>\"\",IF($C$5=0,0,CUMIPMT($C$6/$C$8,$C$7*$C$8,$C$5,1,E225,Pilotage!$D$25)),\"\")","v":""},{"$f":"IF(E225<>\"\",IF($C$5=0,0,CUMIPMT($C$6/$C$8,$C$7*$C$8,$C$5,E225,E225,Pilotage!$D$25)),\"\")","v":""},{"$f":"IF(E225<>\"\",IF($C$5=0,0,$C$5+CUMPRINC($C$6/$C$8,$C$7*$C$8,$C$5,1,E225,Pilotage!$D$25)),\"\")","v":""},null,null,null,null,null,{"$f":"IF(K225<>\"\",-1*CUMIPMT($C$6/$C$8,$C$7*$C$8,$C$5,M225,N225,Pilotage!$D$25),\"\")","v":""}]
[null,null,null,null,"","",{"$f":"IF(E226<>\"\",IF($C$5=0,0,CUMIPMT($C$6/$C$8,$C$7*$C$8,$C$5,1,E226,Pilotage!$D$25)),\"\")","v":""},{"$f":"IF(E226<>\"\",IF($C$5=0,0,CUMIPMT($C$6/$C$8,$C$7*$C$8,$C$5,E226,E226,Pilotage!$D$25)),\"\")","v":""},{"$f":"IF(E226<>\"\",IF($C$5=0,0,$C$5+CUMPRINC($C$6/$C$8,$C$7*$C$8,$C$5,1,E226,Pilotage!$D$25)),\"\")","v":""},null,null,null,null,null,{"$f":"IF(K226<>\"\",-1*CUMIPMT($C$6/$C$8,$C$7*$C$8,$C$5,M226,N226,Pilotage!$D$25),\"\")","v":""}]
[null,null,null,null,"","",{"$f":"IF(E227<>\"\",IF($C$5=0,0,CUMIPMT($C$6/$C$8,$C$7*$C$8,$C$5,1,E227,Pilotage!$D$25)),\"\")","v":""},{"$f":"IF(E227<>\"\",IF($C$5=0,0,CUMIPMT($C$6/$C$8,$C$7*$C$8,$C$5,E227,E227,Pilotage!$D$25)),\"\")","v":""},{"$f":"IF(E227<>\"\",IF($C$5=0,0,$C$5+CUMPRINC($C$6/$C$8,$C$7*$C$8,$C$5,1,E227,Pilotage!$D$25)),\"\")","v":""},null,null,null,null,null,{"$f":"IF(K227<>\"\",-1*CUMIPMT($C$6/$C$8,$C$7*$C$8,$C$5,M227,N227,Pilotage!$D$25),\"\")","v":""}]
[null,null,null,null,"","",{"$f":"IF(E228<>\"\",IF($C$5=0,0,CUMIPMT($C$6/$C$8,$C$7*$C$8,$C$5,1,E228,Pilotage!$D$25)),\"\")","v":""},{"$f":"IF(E228<>\"\",IF($C$5=0,0,CUMIPMT($C$6/$C$8,$C$7*$C$8,$C$5,E228,E228,Pilotage!$D$25)),\"\")","v":""},{"$f":"IF(E228<>\"\",IF($C$5=0,0,$C$5+CUMPRINC($C$6/$C$8,$C$7*$C$8,$C$5,1,E228,Pilotage!$D$25)),\"\")","v":""},null,null,null,null,null,{"$f":"IF(K228<>\"\",-1*CUMIPMT($C$6/$C$8,$C$7*$C$8,$C$5,M228,N228,Pilotage!$D$25),\"\")","v":""}]
[null,null,null,null,"","",{"$f":"IF(E229<>\"\",IF($C$5=0,0,CUMIPMT($C$6/$C$8,$C$7*$C$8,$C$5,1,E229,Pilotage!$D$25)),\"\")","v":""},{"$f":"IF(E229<>\"\",IF($C$5=0,0,CUMIPMT($C$6/$C$8,$C$7*$C$8,$C$5,E229,E229,Pilotage!$D$25)),\"\")","v":""},{"$f":"IF(E229<>\"\",IF($C$5=0,0,$C$5+CUMPRINC($C$6/$C$8,$C$7*$C$8,$C$5,1,E229,Pilotage!$D$25)),\"\")","v":""},null,null,null,null,null,{"$f":"IF(K229<>\"\",-1*CUMIPMT($C$6/$C$8,$C$7*$C$8,$C$5,M229,N229,Pilotage!$D$25),\"\")","v":""}]
[null,null,null,null,"","",{"$f":"IF(E230<>\"\",IF($C$5=0,0,CUMIPMT($C$6/$C$8,$C$7*$C$8,$C$5,1,E230,Pilotage!$D$25)),\"\")","v":""},{"$f":"IF(E230<>\"\",IF($C$5=0,0,CUMIPMT($C$6/$C$8,$C$7*$C$8,$C$5,E230,E230,Pilotage!$D$25)),\"\")","v":""},{"$f":"IF(E230<>\"\",IF($C$5=0,0,$C$5+CUMPRINC($C$6/$C$8,$C$7*$C$8,$C$5,1,E230,Pilotage!$D$25)),\"\")","v":""},null,null,null,null,null,{"$f":"IF(K230<>\"\",-1*CUMIPMT($C$6/$C$8,$C$7*$C$8,$C$5,M230,N230,Pilotage!$D$25),\"\")","v":""}]
[null,null,null,null,"","",{"$f":"IF(E231<>\"\",IF($C$5=0,0,CUMIPMT($C$6/$C$8,$C$7*$C$8,$C$5,1,E231,Pilotage!$D$25)),\"\")","v":""},{"$f":"IF(E231<>\"\",IF($C$5=0,0,CUMIPMT($C$6/$C$8,$C$7*$C$8,$C$5,E231,E231,Pilotage!$D$25)),\"\")","v":""},{"$f":"IF(E231<>\"\",IF($C$5=0,0,$C$5+CUMPRINC($C$6/$C$8,$C$7*$C$8,$C$5,1,E231,Pilotage!$D$25)),\"\")","v":""},null,null,null,null,null,{"$f":"IF(K231<>\"\",-1*CUMIPMT($C$6/$C$8,$C$7*$C$8,$C$5,M231,N231,Pilotage!$D$25),\"\")","v":""}]
[null,null,null,null,"","",{"$f":"IF(E232<>\"\",IF($C$5=0,0,CUMIPMT($C$6/$C$8,$C$7*$C$8,$C$5,1,E232,Pilotage!$D$25)),\"\")","v":""},{"$f":"IF(E232<>\"\",IF($C$5=0,0,CUMIPMT($C$6/$C$8,$C$7*$C$8,$C$5,E232,E232,Pilotage!$D$25)),\"\")","v":""},{"$f":"IF(E232<>\"\",IF($C$5=0,0,$C$5+CUMPRINC($C$6/$C$8,$C$7*$C$8,$C$5,1,E232,Pilotage!$D$25)),\"\")","v":""},null,null,null,null,null,{"$f":"IF(K232<>\"\",-1*CUMIPMT($C$6/$C$8,$C$7*$C$8,$C$5,M232,N232,Pilotage!$D$25),\"\")","v":""}]
[null,null,null,null,"","",{"$f":"IF(E233<>\"\",IF($C$5=0,0,CUMIPMT($C$6/$C$8,$C$7*$C$8,$C$5,1,E233,Pilotage!$D$25)),\"\")","v":""},{"$f":"IF(E233<>\"\",IF($C$5=0,0,CUMIPMT($C$6/$C$8,$C$7*$C$8,$C$5,E233,E233,Pilotage!$D$25)),\"\")","v":""},{"$f":"IF(E233<>\"\",IF($C$5=0,0,$C$5+CUMPRINC($C$6/$C$8,$C$7*$C$8,$C$5,1,E233,Pilotage!$D$25)),\"\")","v":""},null,null,null,null,null,{"$f":"IF(K233<>\"\",-1*CUMIPMT($C$6/$C$8,$C$7*$C$8,$C$5,M233,N233,Pilotage!$D$25),\"\")","v":""}]
[null,null,null,null,"","",{"$f":"IF(E234<>\"\",IF($C$5=0,0,CUMIPMT($C$6/$C$8,$C$7*$C$8,$C$5,1,E234,Pilotage!$D$25)),\"\")","v":""},{"$f":"IF(E234<>\"\",IF($C$5=0,0,CUMIPMT($C$6/$C$8,$C$7*$C$8,$C$5,E234,E234,Pilotage!$D$25)),\"\")","v":""},{"$f":"IF(E234<>\"\",IF($C$5=0,0,$C$5+CUMPRINC($C$6/$C$8,$C$7*$C$8,$C$5,1,E234,Pilotage!$D$25)),\"\")","v":""},null,null,null,null,null,{"$f":"IF(K234<>\"\",-1*CUMIPMT($C$6/$C$8,$C$7*$C$8,$C$5,M234,N234,Pilotage!$D$25),\"\")","v":""}]
[null,null,null,null,"","",{"$f":"IF(E235<>\"\",IF($C$5=0,0,CUMIPMT($C$6/$C$8,$C$7*$C$8,$C$5,1,E235,Pilotage!$D$25)),\"\")","v":""},{"$f":"IF(E235<>\"\",IF($C$5=0,0,CUMIPMT($C$6/$C$8,$C$7*$C$8,$C$5,E235,E235,Pilotage!$D$25)),\"\")","v":""},{"$f":"IF(E235<>\"\",IF($C$5=0,0,$C$5+CUMPRINC($C$6/$C$8,$C$7*$C$8,$C$5,1,E235,Pilotage!$D$25)),\"\")","v":""},null,null,null,null,null,{"$f":"IF(K235<>\"\",-1*CUMIPMT($C$6/$C$8,$C$7*$C$8,$C$5,M235,N235,Pilotage!$D$25),\"\")","v":""}]
[null,null,null,null,"","",{"$f":"IF(E236<>\"\",IF($C$5=0,0,CUMIPMT($C$6/$C$8,$C$7*$C$8,$C$5,1,E236,Pilotage!$D$25)),\"\")","v":""},{"$f":"IF(E236<>\"\",IF($C$5=0,0,CUMIPMT($C$6/$C$8,$C$7*$C$8,$C$5,E236,E236,Pilotage!$D$25)),\"\")","v":""},{"$f":"IF(E236<>\"\",IF($C$5=0,0,$C$5+CUMPRINC($C$6/$C$8,$C$7*$C$8,$C$5,1,E236,Pilotage!$D$25)),\"\")","v":""},null,null,null,null,null,{"$f":"IF(K236<>\"\",-1*CUMIPMT($C$6/$C$8,$C$7*$C$8,$C$5,M236,N236,Pilotage!$D$25),\"\")","v":""}]
[null,null,null,null,"","",{"$f":"IF(E237<>\"\",IF($C$5=0,0,CUMIPMT($C$6/$C$8,$C$7*$C$8,$C$5,1,E237,Pilotage!$D$25)),\"\")","v":""},{"$f":"IF(E237<>\"\",IF($C$5=0,0,CUMIPMT($C$6/$C$8,$C$7*$C$8,$C$5,E237,E237,Pilotage!$D$25)),\"\")","v":""},{"$f":"IF(E237<>\"\",IF($C$5=0,0,$C$5+CUMPRINC($C$6/$C$8,$C$7*$C$8,$C$5,1,E237,Pilotage!$D$25)),\"\")","v":""},null,null,null,null,null,{"$f":"IF(K237<>\"\",-1*CUMIPMT($C$6/$C$8,$C$7*$C$8,$C$5,M237,N237,Pilotage!$D$25),\"\")","v":""}]
[null,null,null,null,"","",{"$f":"IF(E238<>\"\",IF($C$5=0,0,CUMIPMT($C$6/$C$8,$C$7*$C$8,$C$5,1,E238,Pilotage!$D$25)),\"\")","v":""},{"$f":"IF(E238<>\"\",IF($C$5=0,0,CUMIPMT($C$6/$C$8,$C$7*$C$8,$C$5,E238,E238,Pilotage!$D$25)),\"\")","v":""},{"$f":"IF(E238<>\"\",IF($C$5=0,0,$C$5+CUMPRINC($C$6/$C$8,$C$7*$C$8,$C$5,1,E238,Pilotage!$D$25)),\"\")","v":""},null,null,null,null,null,{"$f":"IF(K238<>\"\",-1*CUMIPMT($C$6/$C$8,$C$7*$C$8,$C$5,M238,N238,Pilotage!$D$25),\"\")","v":""}]
[null,null,null,null,"","",{"$f":"IF(E239<>\"\",IF($C$5=0,0,CUMIPMT($C$6/$C$8,$C$7*$C$8,$C$5,1,E239,Pilotage!$D$25)),\"\")","v":""},{"$f":"IF(E239<>\"\",IF($C$5=0,0,CUMIPMT($C$6/$C$8,$C$7*$C$8,$C$5,E239,E239,Pilotage!$D$25)),\"\")","v":""},{"$f":"IF(E239<>\"\",IF($C$5=0,0,$C$5+CUMPRINC($C$6/$C$8,$C$7*$C$8,$C$5,1,E239,Pilotage!$D$25)),\"\")","v":""},null,null,null,null,null,{"$f":"IF(K239<>\"\",-1*CUMIPMT($C$6/$C$8,$C$7*$C$8,$C$5,M239,N239,Pilotage!$D$25),\"\")","v":""}]
[null,null,null,null,"","",{"$f":"IF(E240<>\"\",IF($C$5=0,0,CUMIPMT($C$6/$C$8,$C$7*$C$8,$C$5,1,E240,Pilotage!$D$25)),\"\")","v":""},{"$f":"IF(E240<>\"\",IF($C$5=0,0,CUMIPMT($C$6/$C$8,$C$7*$C$8,$C$5,E240,E240,Pilotage!$D$25)),\"\")","v":""},{"$f":"IF(E240<>\"\",IF($C$5=0,0,$C$5+CUMPRINC($C$6/$C$8,$C$7*$C$8,$C$5,1,E240,Pilotage!$D$25)),\"\")","v":""},null,null,null,null,null,{"$f":"IF(K240<>\"\",-1*CUMIPMT($C$6/$C$8,$C$7*$C$8,$C$5,M240,N240,Pilotage!$D$25),\"\")","v":""}]
[null,null,null,null,"","",{"$f":"IF(E241<>\"\",IF($C$5=0,0,CUMIPMT($C$6/$C$8,$C$7*$C$8,$C$5,1,E241,Pilotage!$D$25)),\"\")","v":""},{"$f":"IF(E241<>\"\",IF($C$5=0,0,CUMIPMT($C$6/$C$8,$C$7*$C$8,$C$5,E241,E241,Pilotage!$D$25)),\"\")","v":""},{"$f":"IF(E241<>\"\",IF($C$5=0,0,$C$5+CUMPRINC($C$6/$C$8,$C$7*$C$8,$C$5,1,E241,Pilotage!$D$25)),\"\")","v":""},null,null,null,null,null,{"$f":"IF(K241<>\"\",-1*CUMIPMT($C$6/$C$8,$C$7*$C$8,$C$5,M241,N241,Pilotage!$D$25),\"\")","v":""}]
[null,null,null,null,"","",{"$f":"IF(E242<>\"\",IF($C$5=0,0,CUMIPMT($C$6/$C$8,$C$7*$C$8,$C$5,1,E242,Pilotage!$D$25)),\"\")","v":""},{"$f":"IF(E242<>\"\",IF($C$5=0,0,CUMIPMT($C$6/$C$8,$C$7*$C$8,$C$5,E242,E242,Pilotage!$D$25)),\"\")","v":""},{"$f":"IF(E242<>\"\",IF($C$5=0,0,$C$5+CUMPRINC($C$6/$C$8,$C$7*$C$8,$C$5,1,E242,Pilotage!$D$25)),\"\")","v":""},null,null,null,null,null,{"$f":"IF(K242<>\"\",-1*CUMIPMT($C$6/$C$8,$C$7*$C$8,$C$5,M242,N242,Pilotage!$D$25),\"\")","v":""}]
[null,null,null,null,"","",{"$f":"IF(E243<>\"\",IF($C$5=0,0,CUMIPMT($C$6/$C$8,$C$7*$C$8,$C$5,1,E243,Pilotage!$D$25)),\"\")","v":""},{"$f":"IF(E243<>\"\",IF($C$5=0,0,CUMIPMT($C$6/$C$8,$C$7*$C$8,$C$5,E243,E243,Pilotage!$D$25)),\"\")","v":""},{"$f":"IF(E243<>\"\",IF($C$5=0,0,$C$5+CUMPRINC($C$6/$C$8,$C$7*$C$8,$C$5,1,E243,Pilotage!$D$25)),\"\")","v":""},null,null,null,null,null,{"$f":"IF(K243<>\"\",-1*CUMIPMT($C$6/$C$8,$C$7*$C$8,$C$5,M243,N243,Pilotage!$D$25),\"\")","v":""}]
[null,null,null,null,"","",{"$f":"IF(E244<>\"\",IF($C$5=0,0,CUMIPMT($C$6/$C$8,$C$7*$C$8,$C$5,1,E244,Pilotage!$D$25)),\"\")","v":""},{"$f":"IF(E244<>\"\",IF($C$5=0,0,CUMIPMT($C$6/$C$8,$C$7*$C$8,$C$5,E244,E244,Pilotage!$D$25)),\"\")","v":""},{"$f":"IF(E244<>\"\",IF($C$5=0,0,$C$5+CUMPRINC($C$6/$C$8,$C$7*$C$8,$C$5,1,E244,Pilotage!$D$25)),\"\")","v":""},null,null,null,null,null,{"$f":"IF(K244<>\"\",-1*CUMIPMT($C$6/$C$8,$C$7*$C$8,$C$5,M244,N244,Pilotage!$D$25),\"\")","v":""}]
[null,null,null,null,"","",{"$f":"IF(E245<>\"\",IF($C$5=0,0,CUMIPMT($C$6/$C$8,$C$7*$C$8,$C$5,1,E245,Pilotage!$D$25)),\"\")","v":""},{"$f":"IF(E245<>\"\",IF($C$5=0,0,CUMIPMT($C$6/$C$8,$C$7*$C$8,$C$5,E245,E245,Pilotage!$D$25)),\"\")","v":""},{"$f":"IF(E245<>\"\",IF($C$5=0,0,$C$5+CUMPRINC($C$6/$C$8,$C$7*$C$8,$C$5,1,E245,Pilotage!$D$25)),\"\")","v":""},null,null,null,null,null,{"$f":"IF(K245<>\"\",-1*CUMIPMT($C$6/$C$8,$C$7*$C$8,$C$5,M245,N245,Pilotage!$D$25),\"\")","v":""}]
[null,null,null,null,"","",{"$f":"IF(E246<>\"\",IF($C$5=0,0,CUMIPMT($C$6/$C$8,$C$7*$C$8,$C$5,1,E246,Pilotage!$D$25)),\"\")","v":""},{"$f":"IF(E246<>\"\",IF($C$5=0,0,CUMIPMT($C$6/$C$8,$C$7*$C$8,$C$5,E246,E246,Pilotage!$D$25)),\"\")","v":""},{"$f":"IF(E246<>\"\",IF($C$5=0,0,$C$5+CUMPRINC($C$6/$C$8,$C$7*$C$8,$C$5,1,E246,Pilotage!$D$25)),\"\")","v":""},null,null,null,null,null,{"$f":"IF(K246<>\"\",-1*CUMIPMT($C$6/$C$8,$C$7*$C$8,$C$5,M246,N246,Pilotage!$D$25),\"\")","v":""}]
[null,null,null,null,"","",{"$f":"IF(E247<>\"\",IF($C$5=0,0,CUMIPMT($C$6/$C$8,$C$7*$C$8,$C$5,1,E247,Pilotage!$D$25)),\"\")","v":""},{"$f":"IF(E247<>\"\",IF($C$5=0,0,CUMIPMT($C$6/$C$8,$C$7*$C$8,$C$5,E247,E247,Pilotage!$D$25)),\"\")","v":""},{"$f":"IF(E247<>\"\",IF($C$5=0,0,$C$5+CUMPRINC($C$6/$C$8,$C$7*$C$8,$C$5,1,E247,Pilotage!$D$25)),\"\")","v":""},null,null,null,null,null,{"$f":"IF(K247<>\"\",-1*CUMIPMT($C$6/$C$8,$C$7*$C$8,$C$5,M247,N247,Pilotage!$D$25),\"\")","v":""}]
[null,null,null,null,"","",{"$f":"IF(E248<>\"\",IF($C$5=0,0,CUMIPMT($C$6/$C$8,$C$7*$C$8,$C$5,1,E248,Pilotage!$D$25)),\"\")","v":""},{"$f":"IF(E248<>\"\",IF($C$5=0,0,CUMIPMT($C$6/$C$8,$C$7*$C$8,$C$5,E248,E248,Pilotage!$D$25)),\"\")","v":""},{"$f":"IF(E248<>\"\",IF($C$5=0,0,$C$5+CUMPRINC($C$6/$C$8,$C$7*$C$8,$C$5,1,E248,Pilotage!$D$25)),\"\")","v":""},null,null,null,null,null,{"$f":"IF(K248<>\"\",-1*CUMIPMT($C$6/$C$8,$C$7*$C$8,$C$5,M248,N248,Pilotage!$D$25),\"\")","v":""}]
[null,null,null,null,"","",{"$f":"IF(E249<>\"\",IF($C$5=0,0,CUMIPMT($C$6/$C$8,$C$7*$C$8,$C$5,1,E249,Pilotage!$D$25)),\"\")","v":""},{"$f":"IF(E249<>\"\",IF($C$5=0,0,CUMIPMT($C$6/$C$8,$C$7*$C$8,$C$5,E249,E249,Pilotage!$D$25)),\"\")","v":""},{"$f":"IF(E249<>\"\",IF($C$5=0,0,$C$5+CUMPRINC($C$6/$C$8,$C$7*$C$8,$C$5,1,E249,Pilotage!$D$25)),\"\")","v":""},null,null,null,null,null,{"$f":"IF(K249<>\"\",-1*CUMIPMT($C$6/$C$8,$C$7*$C$8,$C$5,M249,N249,Pilotage!$D$25),\"\")","v":""}]
[null,null,null,null,"","",{"$f":"IF(E250<>\"\",IF($C$5=0,0,CUMIPMT($C$6/$C$8,$C$7*$C$8,$C$5,1,E250,Pilotage!$D$25)),\"\")","v":""},{"$f":"IF(E250<>\"\",IF($C$5=0,0,CUMIPMT($C$6/$C$8,$C$7*$C$8,$C$5,E250,E250,Pilotage!$D$25)),\"\")","v":""},{"$f":"IF(E250<>\"\",IF($C$5=0,0,$C$5+CUMPRINC($C$6/$C$8,$C$7*$C$8,$C$5,1,E250,Pilotage!$D$25)),\"\")","v":""},null,null,null,null,null,{"$f":"IF(K250<>\"\",-1*CUMIPMT($C$6/$C$8,$C$7*$C$8,$C$5,M250,N250,Pilotage!$D$25),\"\")","v":""}]
[null,null,null,null,"","",{"$f":"IF(E251<>\"\",IF($C$5=0,0,CUMIPMT($C$6/$C$8,$C$7*$C$8,$C$5,1,E251,Pilotage!$D$25)),\"\")","v":""},{"$f":"IF(E251<>\"\",IF($C$5=0,0,CUMIPMT($C$6/$C$8,$C$7*$C$8,$C$5,E251,E251,Pilotage!$D$25)),\"\")","v":""},{"$f":"IF(E251<>\"\",IF($C$5=0,0,$C$5+CUMPRINC($C$6/$C$8,$C$7*$C$8,$C$5,1,E251,Pilotage!$D$25)),\"\")","v":""},null,null,null,null,null,{"$f":"IF(K251<>\"\",-1*CUMIPMT($C$6/$C$8,$C$7*$C$8,$C$5,M251,N251,Pilotage!$D$25),\"\")","v":""}]
[null,null,null,null,"","",{"$f":"IF(E252<>\"\",IF($C$5=0,0,CUMIPMT($C$6/$C$8,$C$7*$C$8,$C$5,1,E252,Pilotage!$D$25)),\"\")","v":""},{"$f":"IF(E252<>\"\",IF($C$5=0,0,CUMIPMT($C$6/$C$8,$C$7*$C$8,$C$5,E252,E252,Pilotage!$D$25)),\"\")","v":""},{"$f":"IF(E252<>\"\",IF($C$5=0,0,$C$5+CUMPRINC($C$6/$C$8,$C$7*$C$8,$C$5,1,E252,Pilotage!$D$25)),\"\")","v":""},null,null,null,null,null,{"$f":"IF(K252<>\"\",-1*CUMIPMT($C$6/$C$8,$C$7*$C$8,$C$5,M252,N252,Pilotage!$D$25),\"\")","v":""}]
[null,null,null,null,"","",{"$f":"IF(E253<>\"\",IF($C$5=0,0,CUMIPMT($C$6/$C$8,$C$7*$C$8,$C$5,1,E253,Pilotage!$D$25)),\"\")","v":""},{"$f":"IF(E253<>\"\",IF($C$5=0,0,CUMIPMT($C$6/$C$8,$C$7*$C$8,$C$5,E253,E253,Pilotage!$D$25)),\"\")","v":""},{"$f":"IF(E253<>\"\",IF($C$5=0,0,$C$5+CUMPRINC($C$6/$C$8,$C$7*$C$8,$C$5,1,E253,Pilotage!$D$25)),\"\")","v":""},null,null,null,null,null,{"$f":"IF(K253<>\"\",-1*CUMIPMT($C$6/$C$8,$C$7*$C$8,$C$5,M253,N253,Pilotage!$D$25),\"\")","v":""}]
[null,null,null,null,"","",{"$f":"IF(E254<>\"\",IF($C$5=0,0,CUMIPMT($C$6/$C$8,$C$7*$C$8,$C$5,1,E254,Pilotage!$D$25)),\"\")","v":""},{"$f":"IF(E254<>\"\",IF($C$5=0,0,CUMIPMT($C$6/$C$8,$C$7*$C$8,$C$5,E254,E254,Pilotage!$D$25)),\"\")","v":""},{"$f":"IF(E254<>\"\",IF($C$5=0,0,$C$5+CUMPRINC($C$6/$C$8,$C$7*$C$8,$C$5,1,E254,Pilotage!$D$25)),\"\")","v":""},null,null,null,null,null,{"$f":"IF(K254<>\"\",-1*CUMIPMT($C$6/$C$8,$C$7*$C$8,$C$5,M254,N254,Pilotage!$D$25),\"\")","v":""}]
[null,null,null,null,"","",{"$f":"IF(E255<>\"\",IF($C$5=0,0,CUMIPMT($C$6/$C$8,$C$7*$C$8,$C$5,1,E255,Pilotage!$D$25)),\"\")","v":""},{"$f":"IF(E255<>\"\",IF($C$5=0,0,CUMIPMT($C$6/$C$8,$C$7*$C$8,$C$5,E255,E255,Pilotage!$D$25)),\"\")","v":""},{"$f":"IF(E255<>\"\",IF($C$5=0,0,$C$5+CUMPRINC($C$6/$C$8,$C$7*$C$8,$C$5,1,E255,Pilotage!$D$25)),\"\")","v":""},null,null,null,null,null,{"$f":"IF(K255<>\"\",-1*CUMIPMT($C$6/$C$8,$C$7*$C$8,$C$5,M255,N255,Pilotage!$D$25),\"\")","v":""}]
[null,null,null,null,"","",{"$f":"IF(E256<>\"\",IF($C$5=0,0,CUMIPMT($C$6/$C$8,$C$7*$C$8,$C$5,1,E256,Pilotage!$D$25)),\"\")","v":""},{"$f":"IF(E256<>\"\",IF($C$5=0,0,CUMIPMT($C$6/$C$8,$C$7*$C$8,$C$5,E256,E256,Pilotage!$D$25)),\"\")","v":""},{"$f":"IF(E256<>\"\",IF($C$5=0,0,$C$5+CUMPRINC($C$6/$C$8,$C$7*$C$8,$C$5,1,E256,Pilotage!$D$25)),\"\")","v":""},null,null,null,null,null,{"$f":"IF(K256<>\"\",-1*CUMIPMT($C$6/$C$8,$C$7*$C$8,$C$5,M256,N256,Pilotage!$D$25),\"\")","v":""}]
[null,null,null,null,"","",{"$f":"IF(E257<>\"\",IF($C$5=0,0,CUMIPMT($C$6/$C$8,$C$7*$C$8,$C$5,1,E257,Pilotage!$D$25)),\"\")","v":""},{"$f":"IF(E257<>\"\",IF($C$5=0,0,CUMIPMT($C$6/$C$8,$C$7*$C$8,$C$5,E257,E257,Pilotage!$D$25)),\"\")","v":""},{"$f":"IF(E257<>\"\",IF($C$5=0,0,$C$5+CUMPRINC($C$6/$C$8,$C$7*$C$8,$C$5,1,E257,Pilotage!$D$25)),\"\")","v":""},null,null,null,null,null,{"$f":"IF(K257<>\"\",-1*CUMIPMT($C$6/$C$8,$C$7*$C$8,$C$5,M257,N257,Pilotage!$D$25),\"\")","v":""}]
[null,null,null,null,"","",{"$f":"IF(E258<>\"\",IF($C$5=0,0,CUMIPMT($C$6/$C$8,$C$7*$C$8,$C$5,1,E258,Pilotage!$D$25)),\"\")","v":""},{"$f":"IF(E258<>\"\",IF($C$5=0,0,CUMIPMT($C$6/$C$8,$C$7*$C$8,$C$5,E258,E258,Pilotage!$D$25)),\"\")","v":""},{"$f":"IF(E258<>\"\",IF($C$5=0,0,$C$5+CUMPRINC($C$6/$C$8,$C$7*$C$8,$C$5,1,E258,Pilotage!$D$25)),\"\")","v":""},null,null,null,null,null,{"$f":"IF(K258<>\"\",-1*CUMIPMT($C$6/$C$8,$C$7*$C$8,$C$5,M258,N258,Pilotage!$D$25),\"\")","v":""}]
[null,null,null,null,"","",{"$f":"IF(E259<>\"\",IF($C$5=0,0,CUMIPMT($C$6/$C$8,$C$7*$C$8,$C$5,1,E259,Pilotage!$D$25)),\"\")","v":""},{"$f":"IF(E259<>\"\",IF($C$5=0,0,CUMIPMT($C$6/$C$8,$C$7*$C$8,$C$5,E259,E259,Pilotage!$D$25)),\"\")","v":""},{"$f":"IF(E259<>\"\",IF($C$5=0,0,$C$5+CUMPRINC($C$6/$C$8,$C$7*$C$8,$C$5,1,E259,Pilotage!$D$25)),\"\")","v":""},null,null,null,null,null,{"$f":"IF(K259<>\"\",-1*CUMIPMT($C$6/$C$8,$C$7*$C$8,$C$5,M259,N259,Pilotage!$D$25),\"\")","v":""}]
[null,null,null,null,"","",{"$f":"IF(E260<>\"\",IF($C$5=0,0,CUMIPMT($C$6/$C$8,$C$7*$C$8,$C$5,1,E260,Pilotage!$D$25)),\"\")","v":""},{"$f":"IF(E260<>\"\",IF($C$5=0,0,CUMIPMT($C$6/$C$8,$C$7*$C$8,$C$5,E260,E260,Pilotage!$D$25)),\"\")","v":""},{"$f":"IF(E260<>\"\",IF($C$5=0,0,$C$5+CUMPRINC($C$6/$C$8,$C$7*$C$8,$C$5,1,E260,Pilotage!$D$25)),\"\")","v":""},null,null,null,null,null,{"$f":"IF(K260<>\"\",-1*CUMIPMT($C$6/$C$8,$C$7*$C$8,$C$5,M260,N260,Pilotage!$D$25),\"\")","v":""}]
[null,null,null,null,"","",{"$f":"IF(E261<>\"\",IF($C$5=0,0,CUMIPMT($C$6/$C$8,$C$7*$C$8,$C$5,1,E261,Pilotage!$D$25)),\"\")","v":""},{"$f":"IF(E261<>\"\",IF($C$5=0,0,CUMIPMT($C$6/$C$8,$C$7*$C$8,$C$5,E261,E261,Pilotage!$D$25)),\"\")","v":""},{"$f":"IF(E261<>\"\",IF($C$5=0,0,$C$5+CUMPRINC($C$6/$C$8,$C$7*$C$8,$C$5,1,E261,Pilotage!$D$25)),\"\")","v":""},null,null,null,null,null,{"$f":"IF(K261<>\"\",-1*CUMIPMT($C$6/$C$8,$C$7*$C$8,$C$5,M261,N261,Pilotage!$D$25),\"\")","v":""}]
[null,null,null,null,"","",{"$f":"IF(E262<>\"\",IF($C$5=0,0,CUMIPMT($C$6/$C$8,$C$7*$C$8,$C$5,1,E262,Pilotage!$D$25)),\"\")","v":""},{"$f":"IF(E262<>\"\",IF($C$5=0,0,CUMIPMT($C$6/$C$8,$C$7*$C$8,$C$5,E262,E262,Pilotage!$D$25)),\"\")","v":""},{"$f":"IF(E262<>\"\",IF($C$5=0,0,$C$5+CUMPRINC($C$6/$C$8,$C$7*$C$8,$C$5,1,E262,Pilotage!$D$25)),\"\")","v":""},null,null,null,null,null,{"$f":"IF(K262<>\"\",-1*CUMIPMT($C$6/$C$8,$C$7*$C$8,$C$5,M262,N262,Pilotage!$D$25),\"\")","v":""}]
[null,null,null,null,"","",{"$f":"IF(E263<>\"\",IF($C$5=0,0,CUMIPMT($C$6/$C$8,$C$7*$C$8,$C$5,1,E263,Pilotage!$D$25)),\"\")","v":""},{"$f":"IF(E263<>\"\",IF($C$5=0,0,CUMIPMT($C$6/$C$8,$C$7*$C$8,$C$5,E263,E263,Pilotage!$D$25)),\"\")","v":""},{"$f":"IF(E263<>\"\",IF($C$5=0,0,$C$5+CUMPRINC($C$6/$C$8,$C$7*$C$8,$C$5,1,E263,Pilotage!$D$25)),\"\")","v":""},null,null,null,null,null,{"$f":"IF(K263<>\"\",-1*CUMIPMT($C$6/$C$8,$C$7*$C$8,$C$5,M263,N263,Pilotage!$D$25),\"\")","v":""}]
[null,null,null,null,"","",{"$f":"IF(E264<>\"\",IF($C$5=0,0,CUMIPMT($C$6/$C$8,$C$7*$C$8,$C$5,1,E264,Pilotage!$D$25)),\"\")","v":""},{"$f":"IF(E264<>\"\",IF($C$5=0,0,CUMIPMT($C$6/$C$8,$C$7*$C$8,$C$5,E264,E264,Pilotage!$D$25)),\"\")","v":""},{"$f":"IF(E264<>\"\",IF($C$5=0,0,$C$5+CUMPRINC($C$6/$C$8,$C$7*$C$8,$C$5,1,E264,Pilotage!$D$25)),\"\")","v":""},null,null,null,null,null,{"$f":"IF(K264<>\"\",-1*CUMIPMT($C$6/$C$8,$C$7*$C$8,$C$5,M264,N264,Pilotage!$D$25),\"\")","v":""}]
[null,null,null,null,"","",{"$f":"IF(E265<>\"\",IF($C$5=0,0,CUMIPMT($C$6/$C$8,$C$7*$C$8,$C$5,1,E265,Pilotage!$D$25)),\"\")","v":""},{"$f":"IF(E265<>\"\",IF($C$5=0,0,CUMIPMT($C$6/$C$8,$C$7*$C$8,$C$5,E265,E265,Pilotage!$D$25)),\"\")","v":""},{"$f":"IF(E265<>\"\",IF($C$5=0,0,$C$5+CUMPRINC($C$6/$C$8,$C$7*$C$8,$C$5,1,E265,Pilotage!$D$25)),\"\")","v":""},null,null,null,null,null,{"$f":"IF(K265<>\"\",-1*CUMIPMT($C$6/$C$8,$C$7*$C$8,$C$5,M265,N265,Pilotage!$D$25),\"\")","v":""}]
[null,null,null,null,"","",{"$f":"IF(E266<>\"\",IF($C$5=0,0,CUMIPMT($C$6/$C$8,$C$7*$C$8,$C$5,1,E266,Pilotage!$D$25)),\"\")","v":""},{"$f":"IF(E266<>\"\",IF($C$5=0,0,CUMIPMT($C$6/$C$8,$C$7*$C$8,$C$5,E266,E266,Pilotage!$D$25)),\"\")","v":""},{"$f":"IF(E266<>\"\",IF($C$5=0,0,$C$5+CUMPRINC($C$6/$C$8,$C$7*$C$8,$C$5,1,E266,Pilotage!$D$25)),\"\")","v":""},null,null,null,null,null,{"$f":"IF(K266<>\"\",-1*CUMIPMT($C$6/$C$8,$C$7*$C$8,$C$5,M266,N266,Pilotage!$D$25),\"\")","v":""}]
[null,null,null,null,"","",{"$f":"IF(E267<>\"\",IF($C$5=0,0,CUMIPMT($C$6/$C$8,$C$7*$C$8,$C$5,1,E267,Pilotage!$D$25)),\"\")","v":""},{"$f":"IF(E267<>\"\",IF($C$5=0,0,CUMIPMT($C$6/$C$8,$C$7*$C$8,$C$5,E267,E267,Pilotage!$D$25)),\"\")","v":""},{"$f":"IF(E267<>\"\",IF($C$5=0,0,$C$5+CUMPRINC($C$6/$C$8,$C$7*$C$8,$C$5,1,E267,Pilotage!$D$25)),\"\")","v":""},null,null,null,null,null,{"$f":"IF(K267<>\"\",-1*CUMIPMT($C$6/$C$8,$C$7*$C$8,$C$5,M267,N267,Pilotage!$D$25),\"\")","v":""}]
[null,null,null,null,"","",{"$f":"IF(E268<>\"\",IF($C$5=0,0,CUMIPMT($C$6/$C$8,$C$7*$C$8,$C$5,1,E268,Pilotage!$D$25)),\"\")","v":""},{"$f":"IF(E268<>\"\",IF($C$5=0,0,CUMIPMT($C$6/$C$8,$C$7*$C$8,$C$5,E268,E268,Pilotage!$D$25)),\"\")","v":""},{"$f":"IF(E268<>\"\",IF($C$5=0,0,$C$5+CUMPRINC($C$6/$C$8,$C$7*$C$8,$C$5,1,E268,Pilotage!$D$25)),\"\")","v":""},null,null,null,null,null,{"$f":"IF(K268<>\"\",-1*CUMIPMT($C$6/$C$8,$C$7*$C$8,$C$5,M268,N268,Pilotage!$D$25),\"\")","v":""}]
[null,null,null,null,"","",{"$f":"IF(E269<>\"\",IF($C$5=0,0,CUMIPMT($C$6/$C$8,$C$7*$C$8,$C$5,1,E269,Pilotage!$D$25)),\"\")","v":""},{"$f":"IF(E269<>\"\",IF($C$5=0,0,CUMIPMT($C$6/$C$8,$C$7*$C$8,$C$5,E269,E269,Pilotage!$D$25)),\"\")","v":""},{"$f":"IF(E269<>\"\",IF($C$5=0,0,$C$5+CUMPRINC($C$6/$C$8,$C$7*$C$8,$C$5,1,E269,Pilotage!$D$25)),\"\")","v":""},null,null,null,null,null,{"$f":"IF(K269<>\"\",-1*CUMIPMT($C$6/$C$8,$C$7*$C$8,$C$5,M269,N269,Pilotage!$D$25),\"\")","v":""}]
[null,null,null,null,"","",{"$f":"IF(E270<>\"\",IF($C$5=0,0,CUMIPMT($C$6/$C$8,$C$7*$C$8,$C$5,1,E270,Pilotage!$D$25)),\"\")","v":""},{"$f":"IF(E270<>\"\",IF($C$5=0,0,CUMIPMT($C$6/$C$8,$C$7*$C$8,$C$5,E270,E270,Pilotage!$D$25)),\"\")","v":""},{"$f":"IF(E270<>\"\",IF($C$5=0,0,$C$5+CUMPRINC($C$6/$C$8,$C$7*$C$8,$C$5,1,E270,Pilotage!$D$25)),\"\")","v":""},null,null,null,null,null,{"$f":"IF(K270<>\"\",-1*CUMIPMT($C$6/$C$8,$C$7*$C$8,$C$5,M270,N270,Pilotage!$D$25),\"\")","v":""}]
[null,null,null,null,{"$f":"IF(E270<$C$10,E270+1,\"\")","v":""},{"$f":"IF(E271<>\"\",EDATE(F270,$C$11),\"\")","v":""},{"$f":"IF(E271<>\"\",IF($C$5=0,0,CUMIPMT($C$6/$C$8,$C$7*$C$8,$C$5,1,E271,Pilotage!$D$25)),\"\")","v":""},{"$f":"IF(E271<>\"\",IF($C$5=0,0,CUMIPMT($C$6/$C$8,$C$7*$C$8,$C$5,E271,E271,Pilotage!$D$25)),\"\")","v":""},{"$f":"IF(E271<>\"\",IF($C$5=0,0,$C$5+CUMPRINC($C$6/$C$8,$C$7*$C$8,$C$5,1,E271,Pilotage!$D$25)),\"\")","v":""},null,null,null,null,null,{"$f":"IF(K271<>\"\",-1*CUMIPMT($C$6/$C$8,$C$7*$C$8,$C$5,M271,N271,Pilotage!$D$25),\"\")","v":""}]
[null,null,null,null,"","",{"$f":"IF(E272<>\"\",IF($C$5=0,0,CUMIPMT($C$6/$C$8,$C$7*$C$8,$C$5,1,E272,Pilotage!$D$25)),\"\")","v":""},{"$f":"IF(E272<>\"\",IF($C$5=0,0,CUMIPMT($C$6/$C$8,$C$7*$C$8,$C$5,E272,E272,Pilotage!$D$25)),\"\")","v":""},{"$f":"IF(E272<>\"\",IF($C$5=0,0,$C$5+CUMPRINC($C$6/$C$8,$C$7*$C$8,$C$5,1,E272,Pilotage!$D$25)),\"\")","v":""},null,null,null,null,null,{"$f":"IF(K272<>\"\",-1*CUMIPMT($C$6/$C$8,$C$7*$C$8,$C$5,M272,N272,Pilotage!$D$25),\"\")","v":""}]
[null,null,null,null,"","",{"$f":"IF(E273<>\"\",IF($C$5=0,0,CUMIPMT($C$6/$C$8,$C$7*$C$8,$C$5,1,E273,Pilotage!$D$25)),\"\")","v":""},{"$f":"IF(E273<>\"\",IF($C$5=0,0,CUMIPMT($C$6/$C$8,$C$7*$C$8,$C$5,E273,E273,Pilotage!$D$25)),\"\")","v":""},{"$f":"IF(E273<>\"\",IF($C$5=0,0,$C$5+CUMPRINC($C$6/$C$8,$C$7*$C$8,$C$5,1,E273,Pilotage!$D$25)),\"\")","v":""},null,null,null,null,null,{"$f":"IF(K273<>\"\",-1*CUMIPMT($C$6/$C$8,$C$7*$C$8,$C$5,M273,N273,Pilotage!$D$25),\"\")","v":""}]
[null,null,null,null,"","",{"$f":"IF(E274<>\"\",IF($C$5=0,0,CUMIPMT($C$6/$C$8,$C$7*$C$8,$C$5,1,E274,Pilotage!$D$25)),\"\")","v":""},{"$f":"IF(E274<>\"\",IF($C$5=0,0,CUMIPMT($C$6/$C$8,$C$7*$C$8,$C$5,E274,E274,Pilotage!$D$25)),\"\")","v":""},{"$f":"IF(E274<>\"\",IF($C$5=0,0,$C$5+CUMPRINC($C$6/$C$8,$C$7*$C$8,$C$5,1,E274,Pilotage!$D$25)),\"\")","v":""},null,null,null,null,null,{"$f":"IF(K274<>\"\",-1*CUMIPMT($C$6/$C$8,$C$7*$C$8,$C$5,M274,N274,Pilotage!$D$25),\"\")","v":""}]
[null,null,null,null,"","",{"$f":"IF(E275<>\"\",IF($C$5=0,0,CUMIPMT($C$6/$C$8,$C$7*$C$8,$C$5,1,E275,Pilotage!$D$25)),\"\")","v":""},{"$f":"IF(E275<>\"\",IF($C$5=0,0,CUMIPMT($C$6/$C$8,$C$7*$C$8,$C$5,E275,E275,Pilotage!$D$25)),\"\")","v":""},{"$f":"IF(E275<>\"\",IF($C$5=0,0,$C$5+CUMPRINC($C$6/$C$8,$C$7*$C$8,$C$5,1,E275,Pilotage!$D$25)),\"\")","v":""},null,null,null,null,null,{"$f":"IF(K275<>\"\",-1*CUMIPMT($C$6/$C$8,$C$7*$C$8,$C$5,M275,N275,Pilotage!$D$25),\"\")","v":""}]
[null,null,null,null,"","",{"$f":"IF(E276<>\"\",IF($C$5=0,0,CUMIPMT($C$6/$C$8,$C$7*$C$8,$C$5,1,E276,Pilotage!$D$25)),\"\")","v":""},{"$f":"IF(E276<>\"\",IF($C$5=0,0,CUMIPMT($C$6/$C$8,$C$7*$C$8,$C$5,E276,E276,Pilotage!$D$25)),\"\")","v":""},{"$f":"IF(E276<>\"\",IF($C$5=0,0,$C$5+CUMPRINC($C$6/$C$8,$C$7*$C$8,$C$5,1,E276,Pilotage!$D$25)),\"\")","v":""},null,null,null,null,null,{"$f":"IF(K276<>\"\",-1*CUMIPMT($C$6/$C$8,$C$7*$C$8,$C$5,M276,N276,Pilotage!$D$25),\"\")","v":""}]
[null,null,null,null,"","",{"$f":"IF(E277<>\"\",IF($C$5=0,0,CUMIPMT($C$6/$C$8,$C$7*$C$8,$C$5,1,E277,Pilotage!$D$25)),\"\")","v":""},{"$f":"IF(E277<>\"\",IF($C$5=0,0,CUMIPMT($C$6/$C$8,$C$7*$C$8,$C$5,E277,E277,Pilotage!$D$25)),\"\")","v":""},{"$f":"IF(E277<>\"\",IF($C$5=0,0,$C$5+CUMPRINC($C$6/$C$8,$C$7*$C$8,$C$5,1,E277,Pilotage!$D$25)),\"\")","v":""},null,null,null,null,null,{"$f":"IF(K277<>\"\",-1*CUMIPMT($C$6/$C$8,$C$7*$C$8,$C$5,M277,N277,Pilotage!$D$25),\"\")","v":""}]
[null,null,null,null,"","",{"$f":"IF(E278<>\"\",IF($C$5=0,0,CUMIPMT($C$6/$C$8,$C$7*$C$8,$C$5,1,E278,Pilotage!$D$25)),\"\")","v":""},{"$f":"IF(E278<>\"\",IF($C$5=0,0,CUMIPMT($C$6/$C$8,$C$7*$C$8,$C$5,E278,E278,Pilotage!$D$25)),\"\")","v":""},{"$f":"IF(E278<>\"\",IF($C$5=0,0,$C$5+CUMPRINC($C$6/$C$8,$C$7*$C$8,$C$5,1,E278,Pilotage!$D$25)),\"\")","v":""},null,null,null,null,null,{"$f":"IF(K278<>\"\",-1*CUMIPMT($C$6/$C$8,$C$7*$C$8,$C$5,M278,N278,Pilotage!$D$25),\"\")","v":""}]
[null,null,null,null,"","",{"$f":"IF(E279<>\"\",IF($C$5=0,0,CUMIPMT($C$6/$C$8,$C$7*$C$8,$C$5,1,E279,Pilotage!$D$25)),\"\")","v":""},{"$f":"IF(E279<>\"\",IF($C$5=0,0,CUMIPMT($C$6/$C$8,$C$7*$C$8,$C$5,E279,E279,Pilotage!$D$25)),\"\")","v":""},{"$f":"IF(E279<>\"\",IF($C$5=0,0,$C$5+CUMPRINC($C$6/$C$8,$C$7*$C$8,$C$5,1,E279,Pilotage!$D$25)),\"\")","v":""},null,null,null,null,null,{"$f":"IF(K279<>\"\",-1*CUMIPMT($C$6/$C$8,$C$7*$C$8,$C$5,M279,N279,Pilotage!$D$25),\"\")","v":""}]
[null,null,null,null,"","",{"$f":"IF(E280<>\"\",IF($C$5=0,0,CUMIPMT($C$6/$C$8,$C$7*$C$8,$C$5,1,E280,Pilotage!$D$25)),\"\")","v":""},{"$f":"IF(E280<>\"\",IF($C$5=0,0,CUMIPMT($C$6/$C$8,$C$7*$C$8,$C$5,E280,E280,Pilotage!$D$25)),\"\")","v":""},{"$f":"IF(E280<>\"\",IF($C$5=0,0,$C$5+CUMPRINC($C$6/$C$8,$C$7*$C$8,$C$5,1,E280,Pilotage!$D$25)),\"\")","v":""},null,null,null,null,null,{"$f":"IF(K280<>\"\",-1*CUMIPMT($C$6/$C$8,$C$7*$C$8,$C$5,M280,N280,Pilotage!$D$25),\"\")","v":""}]
[null,null,null,null,"","",{"$f":"IF(E281<>\"\",IF($C$5=0,0,CUMIPMT($C$6/$C$8,$C$7*$C$8,$C$5,1,E281,Pilotage!$D$25)),\"\")","v":""},{"$f":"IF(E281<>\"\",IF($C$5=0,0,CUMIPMT($C$6/$C$8,$C$7*$C$8,$C$5,E281,E281,Pilotage!$D$25)),\"\")","v":""},{"$f":"IF(E281<>\"\",IF($C$5=0,0,$C$5+CUMPRINC($C$6/$C$8,$C$7*$C$8,$C$5,1,E281,Pilotage!$D$25)),\"\")","v":""},null,null,null,null,null,{"$f":"IF(K281<>\"\",-1*CUMIPMT($C$6/$C$8,$C$7*$C$8,$C$5,M281,N281,Pilotage!$D$25),\"\")","v":""}]
[null,null,null,null,"","",{"$f":"IF(E282<>\"\",IF($C$5=0,0,CUMIPMT($C$6/$C$8,$C$7*$C$8,$C$5,1,E282,Pilotage!$D$25)),\"\")","v":""},{"$f":"IF(E282<>\"\",IF($C$5=0,0,CUMIPMT($C$6/$C$8,$C$7*$C$8,$C$5,E282,E282,Pilotage!$D$25)),\"\")","v":""},{"$f":"IF(E282<>\"\",IF($C$5=0,0,$C$5+CUMPRINC($C$6/$C$8,$C$7*$C$8,$C$5,1,E282,Pilotage!$D$25)),\"\")","v":""},null,null,null,null,null,{"$f":"IF(K282<>\"\",-1*CUMIPMT($C$6/$C$8,$C$7*$C$8,$C$5,M282,N282,Pilotage!$D$25),\"\")","v":""}]
[null,null,null,null,"","",{"$f":"IF(E283<>\"\",IF($C$5=0,0,CUMIPMT($C$6/$C$8,$C$7*$C$8,$C$5,1,E283,Pilotage!$D$25)),\"\")","v":""},{"$f":"IF(E283<>\"\",IF($C$5=0,0,CUMIPMT($C$6/$C$8,$C$7*$C$8,$C$5,E283,E283,Pilotage!$D$25)),\"\")","v":""},{"$f":"IF(E283<>\"\",IF($C$5=0,0,$C$5+CUMPRINC($C$6/$C$8,$C$7*$C$8,$C$5,1,E283,Pilotage!$D$25)),\"\")","v":""},null,null,null,null,null,{"$f":"IF(K283<>\"\",-1*CUMIPMT($C$6/$C$8,$C$7*$C$8,$C$5,M283,N283,Pilotage!$D$25),\"\")","v":""}]
[null,null,null,null,"","",{"$f":"IF(E284<>\"\",IF($C$5=0,0,CUMIPMT($C$6/$C$8,$C$7*$C$8,$C$5,1,E284,Pilotage!$D$25)),\"\")","v":""},{"$f":"IF(E284<>\"\",IF($C$5=0,0,CUMIPMT($C$6/$C$8,$C$7*$C$8,$C$5,E284,E284,Pilotage!$D$25)),\"\")","v":""},{"$f":"IF(E284<>\"\",IF($C$5=0,0,$C$5+CUMPRINC($C$6/$C$8,$C$7*$C$8,$C$5,1,E284,Pilotage!$D$25)),\"\")","v":""},null,null,null,null,null,{"$f":"IF(K284<>\"\",-1*CUMIPMT($C$6/$C$8,$C$7*$C$8,$C$5,M284,N284,Pilotage!$D$25),\"\")","v":""}]
[null,null,null,null,"","",{"$f":"IF(E285<>\"\",IF($C$5=0,0,CUMIPMT($C$6/$C$8,$C$7*$C$8,$C$5,1,E285,Pilotage!$D$25)),\"\")","v":""},{"$f":"IF(E285<>\"\",IF($C$5=0,0,CUMIPMT($C$6/$C$8,$C$7*$C$8,$C$5,E285,E285,Pilotage!$D$25)),\"\")","v":""},{"$f":"IF(E285<>\"\",IF($C$5=0,0,$C$5+CUMPRINC($C$6/$C$8,$C$7*$C$8,$C$5,1,E285,Pilotage!$D$25)),\"\")","v":""},null,null,null,null,null,{"$f":"IF(K285<>\"\",-1*CUMIPMT($C$6/$C$8,$C$7*$C$8,$C$5,M285,N285,Pilotage!$D$25),\"\")","v":""}]
[null,null,null,null,"","",{"$f":"IF(E286<>\"\",IF($C$5=0,0,CUMIPMT($C$6/$C$8,$C$7*$C$8,$C$5,1,E286,Pilotage!$D$25)),\"\")","v":""},{"$f":"IF(E286<>\"\",IF($C$5=0,0,CUMIPMT($C$6/$C$8,$C$7*$C$8,$C$5,E286,E286,Pilotage!$D$25)),\"\")","v":""},{"$f":"IF(E286<>\"\",IF($C$5=0,0,$C$5+CUMPRINC($C$6/$C$8,$C$7*$C$8,$C$5,1,E286,Pilotage!$D$25)),\"\")","v":""},null,null,null,null,null,{"$f":"IF(K286<>\"\",-1*CUMIPMT($C$6/$C$8,$C$7*$C$8,$C$5,M286,N286,Pilotage!$D$25),\"\")","v":""}]
[null,null,null,null,"","",{"$f":"IF(E287<>\"\",IF($C$5=0,0,CUMIPMT($C$6/$C$8,$C$7*$C$8,$C$5,1,E287,Pilotage!$D$25)),\"\")","v":""},{"$f":"IF(E287<>\"\",IF($C$5=0,0,CUMIPMT($C$6/$C$8,$C$7*$C$8,$C$5,E287,E287,Pilotage!$D$25)),\"\")","v":""},{"$f":"IF(E287<>\"\",IF($C$5=0,0,$C$5+CUMPRINC($C$6/$C$8,$C$7*$C$8,$C$5,1,E287,Pilotage!$D$25)),\"\")","v":""},null,null,null,null,null,{"$f":"IF(K287<>\"\",-1*CUMIPMT($C$6/$C$8,$C$7*$C$8,$C$5,M287,N287,Pilotage!$D$25),\"\")","v":""}]
[null,null,null,null,"","",{"$f":"IF(E288<>\"\",IF($C$5=0,0,CUMIPMT($C$6/$C$8,$C$7*$C$8,$C$5,1,E288,Pilotage!$D$25)),\"\")","v":""},{"$f":"IF(E288<>\"\",IF($C$5=0,0,CUMIPMT($C$6/$C$8,$C$7*$C$8,$C$5,E288,E288,Pilotage!$D$25)),\"\")","v":""},{"$f":"IF(E288<>\"\",IF($C$5=0,0,$C$5+CUMPRINC($C$6/$C$8,$C$7*$C$8,$C$5,1,E288,Pilotage!$D$25)),\"\")","v":""},null,null,null,null,null,{"$f":"IF(K288<>\"\",-1*CUMIPMT($C$6/$C$8,$C$7*$C$8,$C$5,M288,N288,Pilotage!$D$25),\"\")","v":""}]
[null,null,null,null,"","",{"$f":"IF(E289<>\"\",IF($C$5=0,0,CUMIPMT($C$6/$C$8,$C$7*$C$8,$C$5,1,E289,Pilotage!$D$25)),\"\")","v":""},{"$f":"IF(E289<>\"\",IF($C$5=0,0,CUMIPMT($C$6/$C$8,$C$7*$C$8,$C$5,E289,E289,Pilotage!$D$25)),\"\")","v":""},{"$f":"IF(E289<>\"\",IF($C$5=0,0,$C$5+CUMPRINC($C$6/$C$8,$C$7*$C$8,$C$5,1,E289,Pilotage!$D$25)),\"\")","v":""},null,null,null,null,null,{"$f":"IF(K289<>\"\",-1*CUMIPMT($C$6/$C$8,$C$7*$C$8,$C$5,M289,N289,Pilotage!$D$25),\"\")","v":""}]
[null,null,null,null,"","",{"$f":"IF(E290<>\"\",IF($C$5=0,0,CUMIPMT($C$6/$C$8,$C$7*$C$8,$C$5,1,E290,Pilotage!$D$25)),\"\")","v":""},{"$f":"IF(E290<>\"\",IF($C$5=0,0,CUMIPMT($C$6/$C$8,$C$7*$C$8,$C$5,E290,E290,Pilotage!$D$25)),\"\")","v":""},{"$f":"IF(E290<>\"\",IF($C$5=0,0,$C$5+CUMPRINC($C$6/$C$8,$C$7*$C$8,$C$5,1,E290,Pilotage!$D$25)),\"\")","v":""},null,null,null,null,null,{"$f":"IF(K290<>\"\",-1*CUMIPMT($C$6/$C$8,$C$7*$C$8,$C$5,M290,N290,Pilotage!$D$25),\"\")","v":""}]
[null,null,null,null,"","",{"$f":"IF(E291<>\"\",IF($C$5=0,0,CUMIPMT($C$6/$C$8,$C$7*$C$8,$C$5,1,E291,Pilotage!$D$25)),\"\")","v":""},{"$f":"IF(E291<>\"\",IF($C$5=0,0,CUMIPMT($C$6/$C$8,$C$7*$C$8,$C$5,E291,E291,Pilotage!$D$25)),\"\")","v":""},{"$f":"IF(E291<>\"\",IF($C$5=0,0,$C$5+CUMPRINC($C$6/$C$8,$C$7*$C$8,$C$5,1,E291,Pilotage!$D$25)),\"\")","v":""},null,null,null,null,null,{"$f":"IF(K291<>\"\",-1*CUMIPMT($C$6/$C$8,$C$7*$C$8,$C$5,M291,N291,Pilotage!$D$25),\"\")","v":""}]
[null,null,null,null,"","",{"$f":"IF(E292<>\"\",IF($C$5=0,0,CUMIPMT($C$6/$C$8,$C$7*$C$8,$C$5,1,E292,Pilotage!$D$25)),\"\")","v":""},{"$f":"IF(E292<>\"\",IF($C$5=0,0,CUMIPMT($C$6/$C$8,$C$7*$C$8,$C$5,E292,E292,Pilotage!$D$25)),\"\")","v":""},{"$f":"IF(E292<>\"\",IF($C$5=0,0,$C$5+CUMPRINC($C$6/$C$8,$C$7*$C$8,$C$5,1,E292,Pilotage!$D$25)),\"\")","v":""},null,null,null,null,null,{"$f":"IF(K292<>\"\",-1*CUMIPMT($C$6/$C$8,$C$7*$C$8,$C$5,M292,N292,Pilotage!$D$25),\"\")","v":""}]
[null,null,null,null,"","",{"$f":"IF(E293<>\"\",IF($C$5=0,0,CUMIPMT($C$6/$C$8,$C$7*$C$8,$C$5,1,E293,Pilotage!$D$25)),\"\")","v":""},{"$f":"IF(E293<>\"\",IF($C$5=0,0,CUMIPMT($C$6/$C$8,$C$7*$C$8,$C$5,E293,E293,Pilotage!$D$25)),\"\")","v":""},{"$f":"IF(E293<>\"\",IF($C$5=0,0,$C$5+CUMPRINC($C$6/$C$8,$C$7*$C$8,$C$5,1,E293,Pilotage!$D$25)),\"\")","v":""},null,null,null,null,null,{"$f":"IF(K293<>\"\",-1*CUMIPMT($C$6/$C$8,$C$7*$C$8,$C$5,M293,N293,Pilotage!$D$25),\"\")","v":""}]
[null,null,null,null,"","",{"$f":"IF(E294<>\"\",IF($C$5=0,0,CUMIPMT($C$6/$C$8,$C$7*$C$8,$C$5,1,E294,Pilotage!$D$25)),\"\")","v":""},{"$f":"IF(E294<>\"\",IF($C$5=0,0,CUMIPMT($C$6/$C$8,$C$7*$C$8,$C$5,E294,E294,Pilotage!$D$25)),\"\")","v":""},{"$f":"IF(E294<>\"\",IF($C$5=0,0,$C$5+CUMPRINC($C$6/$C$8,$C$7*$C$8,$C$5,1,E294,Pilotage!$D$25)),\"\")","v":""},null,null,null,null,null,{"$f":"IF(K294<>\"\",-1*CUMIPMT($C$6/$C$8,$C$7*$C$8,$C$5,M294,N294,Pilotage!$D$25),\"\")","v":""}]
[null,null,null,null,"","",{"$f":"IF(E295<>\"\",IF($C$5=0,0,CUMIPMT($C$6/$C$8,$C$7*$C$8,$C$5,1,E295,Pilotage!$D$25)),\"\")","v":""},{"$f":"IF(E295<>\"\",IF($C$5=0,0,CUMIPMT($C$6/$C$8,$C$7*$C$8,$C$5,E295,E295,Pilotage!$D$25)),\"\")","v":""},{"$f":"IF(E295<>\"\",IF($C$5=0,0,$C$5+CUMPRINC($C$6/$C$8,$C$7*$C$8,$C$5,1,E295,Pilotage!$D$25)),\"\")","v":""},null,null,null,null,null,{"$f":"IF(K295<>\"\",-1*CUMIPMT($C$6/$C$8,$C$7*$C$8,$C$5,M295,N295,Pilotage!$D$25),\"\")","v":""}]
[null,null,null,null,"","",{"$f":"IF(E296<>\"\",IF($C$5=0,0,CUMIPMT($C$6/$C$8,$C$7*$C$8,$C$5,1,E296,Pilotage!$D$25)),\"\")","v":""},{"$f":"IF(E296<>\"\",IF($C$5=0,0,CUMIPMT($C$6/$C$8,$C$7*$C$8,$C$5,E296,E296,Pilotage!$D$25)),\"\")","v":""},{"$f":"IF(E296<>\"\",IF($C$5=0,0,$C$5+CUMPRINC($C$6/$C$8,$C$7*$C$8,$C$5,1,E296,Pilotage!$D$25)),\"\")","v":""},null,null,null,null,null,{"$f":"IF(K296<>\"\",-1*CUMIPMT($C$6/$C$8,$C$7*$C$8,$C$5,M296,N296,Pilotage!$D$25),\"\")","v":""}]
[null,null,null,null,"","",{"$f":"IF(E297<>\"\",IF($C$5=0,0,CUMIPMT($C$6/$C$8,$C$7*$C$8,$C$5,1,E297,Pilotage!$D$25)),\"\")","v":""},{"$f":"IF(E297<>\"\",IF($C$5=0,0,CUMIPMT($C$6/$C$8,$C$7*$C$8,$C$5,E297,E297,Pilotage!$D$25)),\"\")","v":""},{"$f":"IF(E297<>\"\",IF($C$5=0,0,$C$5+CUMPRINC($C$6/$C$8,$C$7*$C$8,$C$5,1,E297,Pilotage!$D$25)),\"\")","v":""},null,null,null,null,null,{"$f":"IF(K297<>\"\",-1*CUMIPMT($C$6/$C$8,$C$7*$C$8,$C$5,M297,N297,Pilotage!$D$25),\"\")","v":""}]
[null,null,null,null,"","",{"$f":"IF(E298<>\"\",IF($C$5=0,0,CUMIPMT($C$6/$C$8,$C$7*$C$8,$C$5,1,E298,Pilotage!$D$25)),\"\")","v":""},{"$f":"IF(E298<>\"\",IF($C$5=0,0,CUMIPMT($C$6/$C$8,$C$7*$C$8,$C$5,E298,E298,Pilotage!$D$25)),\"\")","v":""},{"$f":"IF(E298<>\"\",IF($C$5=0,0,$C$5+CUMPRINC($C$6/$C$8,$C$7*$C$8,$C$5,1,E298,Pilotage!$D$25)),\"\")","v":""},null,null,null,null,null,{"$f":"IF(K298<>\"\",-1*CUMIPMT($C$6/$C$8,$C$7*$C$8,$C$5,M298,N298,Pilotage!$D$25),\"\")","v":""}]
[null,null,null,null,"","",{"$f":"IF(E299<>\"\",IF($C$5=0,0,CUMIPMT($C$6/$C$8,$C$7*$C$8,$C$5,1,E299,Pilotage!$D$25)),\"\")","v":""},{"$f":"IF(E299<>\"\",IF($C$5=0,0,CUMIPMT($C$6/$C$8,$C$7*$C$8,$C$5,E299,E299,Pilotage!$D$25)),\"\")","v":""},{"$f":"IF(E299<>\"\",IF($C$5=0,0,$C$5+CUMPRINC($C$6/$C$8,$C$7*$C$8,$C$5,1,E299,Pilotage!$D$25)),\"\")","v":""},null,null,null,null,null,{"$f":"IF(K299<>\"\",-1*CUMIPMT($C$6/$C$8,$C$7*$C$8,$C$5,M299,N299,Pilotage!$D$25),\"\")","v":""}]
[null,null,null,null,"","",{"$f":"IF(E300<>\"\",IF($C$5=0,0,CUMIPMT($C$6/$C$8,$C$7*$C$8,$C$5,1,E300,Pilotage!$D$25)),\"\")","v":""},{"$f":"IF(E300<>\"\",IF($C$5=0,0,CUMIPMT($C$6/$C$8,$C$7*$C$8,$C$5,E300,E300,Pilotage!$D$25)),\"\")","v":""},{"$f":"IF(E300<>\"\",IF($C$5=0,0,$C$5+CUMPRINC($C$6/$C$8,$C$7*$C$8,$C$5,1,E300,Pilotage!$D$25)),\"\")","v":""},null,null,null,null,null,{"$f":"IF(K300<>\"\",-1*CUMIPMT($C$6/$C$8,$C$7*$C$8,$C$5,M300,N300,Pilotage!$D$25),\"\")","v":""}]
[null,null,null,null,"","",{"$f":"IF(E301<>\"\",IF($C$5=0,0,CUMIPMT($C$6/$C$8,$C$7*$C$8,$C$5,1,E301,Pilotage!$D$25)),\"\")","v":""},{"$f":"IF(E301<>\"\",IF($C$5=0,0,CUMIPMT($C$6/$C$8,$C$7*$C$8,$C$5,E301,E301,Pilotage!$D$25)),\"\")","v":""},{"$f":"IF(E301<>\"\",IF($C$5=0,0,$C$5+CUMPRINC($C$6/$C$8,$C$7*$C$8,$C$5,1,E301,Pilotage!$D$25)),\"\")","v":""},null,null,null,null,null,{"$f":"IF(K301<>\"\",-1*CUMIPMT($C$6/$C$8,$C$7*$C$8,$C$5,M301,N301,Pilotage!$D$25),\"\")","v":""}]
[null,null,null,null,"","",{"$f":"IF(E302<>\"\",IF($C$5=0,0,CUMIPMT($C$6/$C$8,$C$7*$C$8,$C$5,1,E302,Pilotage!$D$25)),\"\")","v":""},{"$f":"IF(E302<>\"\",IF($C$5=0,0,CUMIPMT($C$6/$C$8,$C$7*$C$8,$C$5,E302,E302,Pilotage!$D$25)),\"\")","v":""},{"$f":"IF(E302<>\"\",IF($C$5=0,0,$C$5+CUMPRINC($C$6/$C$8,$C$7*$C$8,$C$5,1,E302,Pilotage!$D$25)),\"\")","v":""},null,null,null,null,null,{"$f":"IF(K302<>\"\",-1*CUMIPMT($C$6/$C$8,$C$7*$C$8,$C$5,M302,N302,Pilotage!$D$25),\"\")","v":""}]
[null,null,null,null,"","",{"$f":"IF(E303<>\"\",IF($C$5=0,0,CUMIPMT($C$6/$C$8,$C$7*$C$8,$C$5,1,E303,Pilotage!$D$25)),\"\")","v":""},{"$f":"IF(E303<>\"\",IF($C$5=0,0,CUMIPMT($C$6/$C$8,$C$7*$C$8,$C$5,E303,E303,Pilotage!$D$25)),\"\")","v":""},{"$f":"IF(E303<>\"\",IF($C$5=0,0,$C$5+CUMPRINC($C$6/$C$8,$C$7*$C$8,$C$5,1,E303,Pilotage!$D$25)),\"\")","v":""},null,null,null,null,null,{"$f":"IF(K303<>\"\",-1*CUMIPMT($C$6/$C$8,$C$7*$C$8,$C$5,M303,N303,Pilotage!$D$25),\"\")","v":""}]
[null,null,null,null,"","",{"$f":"IF(E304<>\"\",IF($C$5=0,0,CUMIPMT($C$6/$C$8,$C$7*$C$8,$C$5,1,E304,Pilotage!$D$25)),\"\")","v":""},{"$f":"IF(E304<>\"\",IF($C$5=0,0,CUMIPMT($C$6/$C$8,$C$7*$C$8,$C$5,E304,E304,Pilotage!$D$25)),\"\")","v":""},{"$f":"IF(E304<>\"\",IF($C$5=0,0,$C$5+CUMPRINC($C$6/$C$8,$C$7*$C$8,$C$5,1,E304,Pilotage!$D$25)),\"\")","v":""},null,null,null,null,null,{"$f":"IF(K304<>\"\",-1*CUMIPMT($C$6/$C$8,$C$7*$C$8,$C$5,M304,N304,Pilotage!$D$25),\"\")","v":""}]
[null,null,null,null,"","",{"$f":"IF(E305<>\"\",IF($C$5=0,0,CUMIPMT($C$6/$C$8,$C$7*$C$8,$C$5,1,E305,Pilotage!$D$25)),\"\")","v":""},{"$f":"IF(E305<>\"\",IF($C$5=0,0,CUMIPMT($C$6/$C$8,$C$7*$C$8,$C$5,E305,E305,Pilotage!$D$25)),\"\")","v":""},{"$f":"IF(E305<>\"\",IF($C$5=0,0,$C$5+CUMPRINC($C$6/$C$8,$C$7*$C$8,$C$5,1,E305,Pilotage!$D$25)),\"\")","v":""},null,null,null,null,null,{"$f":"IF(K305<>\"\",-1*CUMIPMT($C$6/$C$8,$C$7*$C$8,$C$5,M305,N305,Pilotage!$D$25),\"\")","v":""}]
[null,null,null,null,"","",{"$f":"IF(E306<>\"\",IF($C$5=0,0,CUMIPMT($C$6/$C$8,$C$7*$C$8,$C$5,1,E306,Pilotage!$D$25)),\"\")","v":""},{"$f":"IF(E306<>\"\",IF($C$5=0,0,CUMIPMT($C$6/$C$8,$C$7*$C$8,$C$5,E306,E306,Pilotage!$D$25)),\"\")","v":""},{"$f":"IF(E306<>\"\",IF($C$5=0,0,$C$5+CUMPRINC($C$6/$C$8,$C$7*$C$8,$C$5,1,E306,Pilotage!$D$25)),\"\")","v":""},null,null,null,null,null,{"$f":"IF(K306<>\"\",-1*CUMIPMT($C$6/$C$8,$C$7*$C$8,$C$5,M306,N306,Pilotage!$D$25),\"\")","v":""}]
[null,null,null,null,"","",{"$f":"IF(E307<>\"\",IF($C$5=0,0,CUMIPMT($C$6/$C$8,$C$7*$C$8,$C$5,1,E307,Pilotage!$D$25)),\"\")","v":""},{"$f":"IF(E307<>\"\",IF($C$5=0,0,CUMIPMT($C$6/$C$8,$C$7*$C$8,$C$5,E307,E307,Pilotage!$D$25)),\"\")","v":""},{"$f":"IF(E307<>\"\",IF($C$5=0,0,$C$5+CUMPRINC($C$6/$C$8,$C$7*$C$8,$C$5,1,E307,Pilotage!$D$25)),\"\")","v":""},null,null,null,null,null,{"$f":"IF(K307<>\"\",-1*CUMIPMT($C$6/$C$8,$C$7*$C$8,$C$5,M307,N307,Pilotage!$D$25),\"\")","v":""}]
[null,null,null,null,"","",{"$f":"IF(E308<>\"\",IF($C$5=0,0,CUMIPMT($C$6/$C$8,$C$7*$C$8,$C$5,1,E308,Pilotage!$D$25)),\"\")","v":""},{"$f":"IF(E308<>\"\",IF($C$5=0,0,CUMIPMT($C$6/$C$8,$C$7*$C$8,$C$5,E308,E308,Pilotage!$D$25)),\"\")","v":""},{"$f":"IF(E308<>\"\",IF($C$5=0,0,$C$5+CUMPRINC($C$6/$C$8,$C$7*$C$8,$C$5,1,E308,Pilotage!$D$25)),\"\")","v":""},null,null,null,null,null,{"$f":"IF(K308<>\"\",-1*CUMIPMT($C$6/$C$8,$C$7*$C$8,$C$5,M308,N308,Pilotage!$D$25),\"\")","v":""}]
[null,null,null,null,"","",{"$f":"IF(E309<>\"\",IF($C$5=0,0,CUMIPMT($C$6/$C$8,$C$7*$C$8,$C$5,1,E309,Pilotage!$D$25)),\"\")","v":""},{"$f":"IF(E309<>\"\",IF($C$5=0,0,CUMIPMT($C$6/$C$8,$C$7*$C$8,$C$5,E309,E309,Pilotage!$D$25)),\"\")","v":""},{"$f":"IF(E309<>\"\",IF($C$5=0,0,$C$5+CUMPRINC($C$6/$C$8,$C$7*$C$8,$C$5,1,E309,Pilotage!$D$25)),\"\")","v":""},null,null,null,null,null,{"$f":"IF(K309<>\"\",-1*CUMIPMT($C$6/$C$8,$C$7*$C$8,$C$5,M309,N309,Pilotage!$D$25),\"\")","v":""}]
[null,null,null,null,"","",{"$f":"IF(E310<>\"\",IF($C$5=0,0,CUMIPMT($C$6/$C$8,$C$7*$C$8,$C$5,1,E310,Pilotage!$D$25)),\"\")","v":""},{"$f":"IF(E310<>\"\",IF($C$5=0,0,CUMIPMT($C$6/$C$8,$C$7*$C$8,$C$5,E310,E310,Pilotage!$D$25)),\"\")","v":""},{"$f":"IF(E310<>\"\",IF($C$5=0,0,$C$5+CUMPRINC($C$6/$C$8,$C$7*$C$8,$C$5,1,E310,Pilotage!$D$25)),\"\")","v":""},null,null,null,null,null,{"$f":"IF(K310<>\"\",-1*CUMIPMT($C$6/$C$8,$C$7*$C$8,$C$5,M310,N310,Pilotage!$D$25),\"\")","v":""}]
[null,null,null,null,"","",{"$f":"IF(E311<>\"\",IF($C$5=0,0,CUMIPMT($C$6/$C$8,$C$7*$C$8,$C$5,1,E311,Pilotage!$D$25)),\"\")","v":""},{"$f":"IF(E311<>\"\",IF($C$5=0,0,CUMIPMT($C$6/$C$8,$C$7*$C$8,$C$5,E311,E311,Pilotage!$D$25)),\"\")","v":""},{"$f":"IF(E311<>\"\",IF($C$5=0,0,$C$5+CUMPRINC($C$6/$C$8,$C$7*$C$8,$C$5,1,E311,Pilotage!$D$25)),\"\")","v":""},null,null,null,null,null,{"$f":"IF(K311<>\"\",-1*CUMIPMT($C$6/$C$8,$C$7*$C$8,$C$5,M311,N311,Pilotage!$D$25),\"\")","v":""}]
[null,null,null,null,"","",{"$f":"IF(E312<>\"\",IF($C$5=0,0,CUMIPMT($C$6/$C$8,$C$7*$C$8,$C$5,1,E312,Pilotage!$D$25)),\"\")","v":""},{"$f":"IF(E312<>\"\",IF($C$5=0,0,CUMIPMT($C$6/$C$8,$C$7*$C$8,$C$5,E312,E312,Pilotage!$D$25)),\"\")","v":""},{"$f":"IF(E312<>\"\",IF($C$5=0,0,$C$5+CUMPRINC($C$6/$C$8,$C$7*$C$8,$C$5,1,E312,Pilotage!$D$25)),\"\")","v":""},null,null,null,null,null,{"$f":"IF(K312<>\"\",-1*CUMIPMT($C$6/$C$8,$C$7*$C$8,$C$5,M312,N312,Pilotage!$D$25),\"\")","v":""}]
[null,null,null,null,"","",{"$f":"IF(E313<>\"\",IF($C$5=0,0,CUMIPMT($C$6/$C$8,$C$7*$C$8,$C$5,1,E313,Pilotage!$D$25)),\"\")","v":""},{"$f":"IF(E313<>\"\",IF($C$5=0,0,CUMIPMT($C$6/$C$8,$C$7*$C$8,$C$5,E313,E313,Pilotage!$D$25)),\"\")","v":""},{"$f":"IF(E313<>\"\",IF($C$5=0,0,$C$5+CUMPRINC($C$6/$C$8,$C$7*$C$8,$C$5,1,E313,Pilotage!$D$25)),\"\")","v":""},null,null,null,null,null,{"$f":"IF(K313<>\"\",-1*CUMIPMT($C$6/$C$8,$C$7*$C$8,$C$5,M313,N313,Pilotage!$D$25),\"\")","v":""}]
[null,null,null,null,"","",{"$f":"IF(E314<>\"\",IF($C$5=0,0,CUMIPMT($C$6/$C$8,$C$7*$C$8,$C$5,1,E314,Pilotage!$D$25)),\"\")","v":""},{"$f":"IF(E314<>\"\",IF($C$5=0,0,CUMIPMT($C$6/$C$8,$C$7*$C$8,$C$5,E314,E314,Pilotage!$D$25)),\"\")","v":""},{"$f":"IF(E314<>\"\",IF($C$5=0,0,$C$5+CUMPRINC($C$6/$C$8,$C$7*$C$8,$C$5,1,E314,Pilotage!$D$25)),\"\")","v":""},null,null,null,null,null,{"$f":"IF(K314<>\"\",-1*CUMIPMT($C$6/$C$8,$C$7*$C$8,$C$5,M314,N314,Pilotage!$D$25),\"\")","v":""}]
[null,null,null,null,"","",{"$f":"IF(E315<>\"\",IF($C$5=0,0,CUMIPMT($C$6/$C$8,$C$7*$C$8,$C$5,1,E315,Pilotage!$D$25)),\"\")","v":""},{"$f":"IF(E315<>\"\",IF($C$5=0,0,CUMIPMT($C$6/$C$8,$C$7*$C$8,$C$5,E315,E315,Pilotage!$D$25)),\"\")","v":""},{"$f":"IF(E315<>\"\",IF($C$5=0,0,$C$5+CUMPRINC($C$6/$C$8,$C$7*$C$8,$C$5,1,E315,Pilotage!$D$25)),\"\")","v":""},null,null,null,null,null,{"$f":"IF(K315<>\"\",-1*CUMIPMT($C$6/$C$8,$C$7*$C$8,$C$5,M315,N315,Pilotage!$D$25),\"\")","v":""}]
[null,null,null,null,"","",{"$f":"IF(E316<>\"\",IF($C$5=0,0,CUMIPMT($C$6/$C$8,$C$7*$C$8,$C$5,1,E316,Pilotage!$D$25)),\"\")","v":""},{"$f":"IF(E316<>\"\",IF($C$5=0,0,CUMIPMT($C$6/$C$8,$C$7*$C$8,$C$5,E316,E316,Pilotage!$D$25)),\"\")","v":""},{"$f":"IF(E316<>\"\",IF($C$5=0,0,$C$5+CUMPRINC($C$6/$C$8,$C$7*$C$8,$C$5,1,E316,Pilotage!$D$25)),\"\")","v":""},null,null,null,null,null,{"$f":"IF(K316<>\"\",-1*CUMIPMT($C$6/$C$8,$C$7*$C$8,$C$5,M316,N316,Pilotage!$D$25),\"\")","v":""}]
[null,null,null,null,"","",{"$f":"IF(E317<>\"\",IF($C$5=0,0,CUMIPMT($C$6/$C$8,$C$7*$C$8,$C$5,1,E317,Pilotage!$D$25)),\"\")","v":""},{"$f":"IF(E317<>\"\",IF($C$5=0,0,CUMIPMT($C$6/$C$8,$C$7*$C$8,$C$5,E317,E317,Pilotage!$D$25)),\"\")","v":""},{"$f":"IF(E317<>\"\",IF($C$5=0,0,$C$5+CUMPRINC($C$6/$C$8,$C$7*$C$8,$C$5,1,E317,Pilotage!$D$25)),\"\")","v":""},null,null,null,null,null,{"$f":"IF(K317<>\"\",-1*CUMIPMT($C$6/$C$8,$C$7*$C$8,$C$5,M317,N317,Pilotage!$D$25),\"\")","v":""}]
[null,null,null,null,"","",{"$f":"IF(E318<>\"\",IF($C$5=0,0,CUMIPMT($C$6/$C$8,$C$7*$C$8,$C$5,1,E318,Pilotage!$D$25)),\"\")","v":""},{"$f":"IF(E318<>\"\",IF($C$5=0,0,CUMIPMT($C$6/$C$8,$C$7*$C$8,$C$5,E318,E318,Pilotage!$D$25)),\"\")","v":""},{"$f":"IF(E318<>\"\",IF($C$5=0,0,$C$5+CUMPRINC($C$6/$C$8,$C$7*$C$8,$C$5,1,E318,Pilotage!$D$25)),\"\")","v":""},null,null,null,null,null,{"$f":"IF(K318<>\"\",-1*CUMIPMT($C$6/$C$8,$C$7*$C$8,$C$5,M318,N318,Pilotage!$D$25),\"\")","v":""}]
[null,null,null,null,"","",{"$f":"IF(E319<>\"\",IF($C$5=0,0,CUMIPMT($C$6/$C$8,$C$7*$C$8,$C$5,1,E319,Pilotage!$D$25)),\"\")","v":""},{"$f":"IF(E319<>\"\",IF($C$5=0,0,CUMIPMT($C$6/$C$8,$C$7*$C$8,$C$5,E319,E319,Pilotage!$D$25)),\"\")","v":""},{"$f":"IF(E319<>\"\",IF($C$5=0,0,$C$5+CUMPRINC($C$6/$C$8,$C$7*$C$8,$C$5,1,E319,Pilotage!$D$25)),\"\")","v":""},null,null,null,null,null,{"$f":"IF(K319<>\"\",-1*CUMIPMT($C$6/$C$8,$C$7*$C$8,$C$5,M319,N319,Pilotage!$D$25),\"\")","v":""}]
[null,null,null,null,"","",{"$f":"IF(E320<>\"\",IF($C$5=0,0,CUMIPMT($C$6/$C$8,$C$7*$C$8,$C$5,1,E320,Pilotage!$D$25)),\"\")","v":""},{"$f":"IF(E320<>\"\",IF($C$5=0,0,CUMIPMT($C$6/$C$8,$C$7*$C$8,$C$5,E320,E320,Pilotage!$D$25)),\"\")","v":""},{"$f":"IF(E320<>\"\",IF($C$5=0,0,$C$5+CUMPRINC($C$6/$C$8,$C$7*$C$8,$C$5,1,E320,Pilotage!$D$25)),\"\")","v":""},null,null,null,null,null,{"$f":"IF(K320<>\"\",-1*CUMIPMT($C$6/$C$8,$C$7*$C$8,$C$5,M320,N320,Pilotage!$D$25),\"\")","v":""}]
[null,null,null,null,"","",{"$f":"IF(E321<>\"\",IF($C$5=0,0,CUMIPMT($C$6/$C$8,$C$7*$C$8,$C$5,1,E321,Pilotage!$D$25)),\"\")","v":""},{"$f":"IF(E321<>\"\",IF($C$5=0,0,CUMIPMT($C$6/$C$8,$C$7*$C$8,$C$5,E321,E321,Pilotage!$D$25)),\"\")","v":""},{"$f":"IF(E321<>\"\",IF($C$5=0,0,$C$5+CUMPRINC($C$6/$C$8,$C$7*$C$8,$C$5,1,E321,Pilotage!$D$25)),\"\")","v":""},null,null,null,null,null,{"$f":"IF(K321<>\"\",-1*CUMIPMT($C$6/$C$8,$C$7*$C$8,$C$5,M321,N321,Pilotage!$D$25),\"\")","v":""}]
[null,null,null,null,"","",{"$f":"IF(E322<>\"\",IF($C$5=0,0,CUMIPMT($C$6/$C$8,$C$7*$C$8,$C$5,1,E322,Pilotage!$D$25)),\"\")","v":""},{"$f":"IF(E322<>\"\",IF($C$5=0,0,CUMIPMT($C$6/$C$8,$C$7*$C$8,$C$5,E322,E322,Pilotage!$D$25)),\"\")","v":""},{"$f":"IF(E322<>\"\",IF($C$5=0,0,$C$5+CUMPRINC($C$6/$C$8,$C$7*$C$8,$C$5,1,E322,Pilotage!$D$25)),\"\")","v":""},null,null,null,null,null,{"$f":"IF(K322<>\"\",-1*CUMIPMT($C$6/$C$8,$C$7*$C$8,$C$5,M322,N322,Pilotage!$D$25),\"\")","v":""}]
[null,null,null,null,"","",{"$f":"IF(E323<>\"\",IF($C$5=0,0,CUMIPMT($C$6/$C$8,$C$7*$C$8,$C$5,1,E323,Pilotage!$D$25)),\"\")","v":""},{"$f":"IF(E323<>\"\",IF($C$5=0,0,CUMIPMT($C$6/$C$8,$C$7*$C$8,$C$5,E323,E323,Pilotage!$D$25)),\"\")","v":""},{"$f":"IF(E323<>\"\",IF($C$5=0,0,$C$5+CUMPRINC($C$6/$C$8,$C$7*$C$8,$C$5,1,E323,Pilotage!$D$25)),\"\")","v":""},null,null,null,null,null,{"$f":"IF(K323<>\"\",-1*CUMIPMT($C$6/$C$8,$C$7*$C$8,$C$5,M323,N323,Pilotage!$D$25),\"\")","v":""}]
[null,null,null,null,"","",{"$f":"IF(E324<>\"\",IF($C$5=0,0,CUMIPMT($C$6/$C$8,$C$7*$C$8,$C$5,1,E324,Pilotage!$D$25)),\"\")","v":""},{"$f":"IF(E324<>\"\",IF($C$5=0,0,CUMIPMT($C$6/$C$8,$C$7*$C$8,$C$5,E324,E324,Pilotage!$D$25)),\"\")","v":""},{"$f":"IF(E324<>\"\",IF($C$5=0,0,$C$5+CUMPRINC($C$6/$C$8,$C$7*$C$8,$C$5,1,E324,Pilotage!$D$25)),\"\")","v":""},null,null,null,null,null,{"$f":"IF(K324<>\"\",-1*CUMIPMT($C$6/$C$8,$C$7*$C$8,$C$5,M324,N324,Pilotage!$D$25),\"\")","v":""}]
[null,null,null,null,"","",{"$f":"IF(E325<>\"\",IF($C$5=0,0,CUMIPMT($C$6/$C$8,$C$7*$C$8,$C$5,1,E325,Pilotage!$D$25)),\"\")","v":""},{"$f":"IF(E325<>\"\",IF($C$5=0,0,CUMIPMT($C$6/$C$8,$C$7*$C$8,$C$5,E325,E325,Pilotage!$D$25)),\"\")","v":""},{"$f":"IF(E325<>\"\",IF($C$5=0,0,$C$5+CUMPRINC($C$6/$C$8,$C$7*$C$8,$C$5,1,E325,Pilotage!$D$25)),\"\")","v":""},null,null,null,null,null,{"$f":"IF(K325<>\"\",-1*CUMIPMT($C$6/$C$8,$C$7*$C$8,$C$5,M325,N325,Pilotage!$D$25),\"\")","v":""}]
[null,null,null,null,"","",{"$f":"IF(E326<>\"\",IF($C$5=0,0,CUMIPMT($C$6/$C$8,$C$7*$C$8,$C$5,1,E326,Pilotage!$D$25)),\"\")","v":""},{"$f":"IF(E326<>\"\",IF($C$5=0,0,CUMIPMT($C$6/$C$8,$C$7*$C$8,$C$5,E326,E326,Pilotage!$D$25)),\"\")","v":""},{"$f":"IF(E326<>\"\",IF($C$5=0,0,$C$5+CUMPRINC($C$6/$C$8,$C$7*$C$8,$C$5,1,E326,Pilotage!$D$25)),\"\")","v":""},null,null,null,null,null,{"$f":"IF(K326<>\"\",-1*CUMIPMT($C$6/$C$8,$C$7*$C$8,$C$5,M326,N326,Pilotage!$D$25),\"\")","v":""}]
[null,null,null,null,"","",{"$f":"IF(E327<>\"\",IF($C$5=0,0,CUMIPMT($C$6/$C$8,$C$7*$C$8,$C$5,1,E327,Pilotage!$D$25)),\"\")","v":""},{"$f":"IF(E327<>\"\",IF($C$5=0,0,CUMIPMT($C$6/$C$8,$C$7*$C$8,$C$5,E327,E327,Pilotage!$D$25)),\"\")","v":""},{"$f":"IF(E327<>\"\",IF($C$5=0,0,$C$5+CUMPRINC($C$6/$C$8,$C$7*$C$8,$C$5,1,E327,Pilotage!$D$25)),\"\")","v":""},null,null,null,null,null,{"$f":"IF(K327<>\"\",-1*CUMIPMT($C$6/$C$8,$C$7*$C$8,$C$5,M327,N327,Pilotage!$D$25),\"\")","v":""}]
[null,null,null,null,"","",{"$f":"IF(E328<>\"\",IF($C$5=0,0,CUMIPMT($C$6/$C$8,$C$7*$C$8,$C$5,1,E328,Pilotage!$D$25)),\"\")","v":""},{"$f":"IF(E328<>\"\",IF($C$5=0,0,CUMIPMT($C$6/$C$8,$C$7*$C$8,$C$5,E328,E328,Pilotage!$D$25)),\"\")","v":""},{"$f":"IF(E328<>\"\",IF($C$5=0,0,$C$5+CUMPRINC($C$6/$C$8,$C$7*$C$8,$C$5,1,E328,Pilotage!$D$25)),\"\")","v":""},null,null,null,null,null,{"$f":"IF(K328<>\"\",-1*CUMIPMT($C$6/$C$8,$C$7*$C$8,$C$5,M328,N328,Pilotage!$D$25),\"\")","v":""}]
[null,null,null,null,"","",{"$f":"IF(E329<>\"\",IF($C$5=0,0,CUMIPMT($C$6/$C$8,$C$7*$C$8,$C$5,1,E329,Pilotage!$D$25)),\"\")","v":""},{"$f":"IF(E329<>\"\",IF($C$5=0,0,CUMIPMT($C$6/$C$8,$C$7*$C$8,$C$5,E329,E329,Pilotage!$D$25)),\"\")","v":""},{"$f":"IF(E329<>\"\",IF($C$5=0,0,$C$5+CUMPRINC($C$6/$C$8,$C$7*$C$8,$C$5,1,E329,Pilotage!$D$25)),\"\")","v":""},null,null,null,null,null,{"$f":"IF(K329<>\"\",-1*CUMIPMT($C$6/$C$8,$C$7*$C$8,$C$5,M329,N329,Pilotage!$D$25),\"\")","v":""}]
[null,null,null,null,"","",{"$f":"IF(E330<>\"\",IF($C$5=0,0,CUMIPMT($C$6/$C$8,$C$7*$C$8,$C$5,1,E330,Pilotage!$D$25)),\"\")","v":""},{"$f":"IF(E330<>\"\",IF($C$5=0,0,CUMIPMT($C$6/$C$8,$C$7*$C$8,$C$5,E330,E330,Pilotage!$D$25)),\"\")","v":""},{"$f":"IF(E330<>\"\",IF($C$5=0,0,$C$5+CUMPRINC($C$6/$C$8,$C$7*$C$8,$C$5,1,E330,Pilotage!$D$25)),\"\")","v":""},null,null,null,null,null,{"$f":"IF(K330<>\"\",-1*CUMIPMT($C$6/$C$8,$C$7*$C$8,$C$5,M330,N330,Pilotage!$D$25),\"\")","v":""}]
[null,null,null,null,"","",{"$f":"IF(E331<>\"\",IF($C$5=0,0,CUMIPMT($C$6/$C$8,$C$7*$C$8,$C$5,1,E331,Pilotage!$D$25)),\"\")","v":""},{"$f":"IF(E331<>\"\",IF($C$5=0,0,CUMIPMT($C$6/$C$8,$C$7*$C$8,$C$5,E331,E331,Pilotage!$D$25)),\"\")","v":""},{"$f":"IF(E331<>\"\",IF($C$5=0,0,$C$5+CUMPRINC($C$6/$C$8,$C$7*$C$8,$C$5,1,E331,Pilotage!$D$25)),\"\")","v":""},null,null,null,null,null,{"$f":"IF(K331<>\"\",-1*CUMIPMT($C$6/$C$8,$C$7*$C$8,$C$5,M331,N331,Pilotage!$D$25),\"\")","v":""}]
[null,null,null,null,"","",{"$f":"IF(E332<>\"\",IF($C$5=0,0,CUMIPMT($C$6/$C$8,$C$7*$C$8,$C$5,1,E332,Pilotage!$D$25)),\"\")","v":""},{"$f":"IF(E332<>\"\",IF($C$5=0,0,CUMIPMT($C$6/$C$8,$C$7*$C$8,$C$5,E332,E332,Pilotage!$D$25)),\"\")","v":""},{"$f":"IF(E332<>\"\",IF($C$5=0,0,$C$5+CUMPRINC($C$6/$C$8,$C$7*$C$8,$C$5,1,E332,Pilotage!$D$25)),\"\")","v":""},null,null,null,null,null,{"$f":"IF(K332<>\"\",-1*CUMIPMT($C$6/$C$8,$C$7*$C$8,$C$5,M332,N332,Pilotage!$D$25),\"\")","v":""}]
[null,null,null,null,"","",{"$f":"IF(E333<>\"\",IF($C$5=0,0,CUMIPMT($C$6/$C$8,$C$7*$C$8,$C$5,1,E333,Pilotage!$D$25)),\"\")","v":""},{"$f":"IF(E333<>\"\",IF($C$5=0,0,CUMIPMT($C$6/$C$8,$C$7*$C$8,$C$5,E333,E333,Pilotage!$D$25)),\"\")","v":""},{"$f":"IF(E333<>\"\",IF($C$5=0,0,$C$5+CUMPRINC($C$6/$C$8,$C$7*$C$8,$C$5,1,E333,Pilotage!$D$25)),\"\")","v":""},null,null,null,null,null,{"$f":"IF(K333<>\"\",-1*CUMIPMT($C$6/$C$8,$C$7*$C$8,$C$5,M333,N333,Pilotage!$D$25),\"\")","v":""}]
[null,null,null,null,"","",{"$f":"IF(E334<>\"\",IF($C$5=0,0,CUMIPMT($C$6/$C$8,$C$7*$C$8,$C$5,1,E334,Pilotage!$D$25)),\"\")","v":""},{"$f":"IF(E334<>\"\",IF($C$5=0,0,CUMIPMT($C$6/$C$8,$C$7*$C$8,$C$5,E334,E334,Pilotage!$D$25)),\"\")","v":""},{"$f":"IF(E334<>\"\",IF($C$5=0,0,$C$5+CUMPRINC($C$6/$C$8,$C$7*$C$8,$C$5,1,E334,Pilotage!$D$25)),\"\")","v":""},null,null,null,null,null,{"$f":"IF(K334<>\"\",-1*CUMIPMT($C$6/$C$8,$C$7*$C$8,$C$5,M334,N334,Pilotage!$D$25),\"\")","v":""}]
[null,null,null,null,{"$f":"IF(E334<$C$10,E334+1,\"\")","v":""},{"$f":"IF(E335<>\"\",EDATE(F334,$C$11),\"\")","v":""},{"$f":"IF(E335<>\"\",IF($C$5=0,0,CUMIPMT($C$6/$C$8,$C$7*$C$8,$C$5,1,E335,Pilotage!$D$25)),\"\")","v":""},{"$f":"IF(E335<>\"\",IF($C$5=0,0,CUMIPMT($C$6/$C$8,$C$7*$C$8,$C$5,E335,E335,Pilotage!$D$25)),\"\")","v":""},{"$f":"IF(E335<>\"\",IF($C$5=0,0,$C$5+CUMPRINC($C$6/$C$8,$C$7*$C$8,$C$5,1,E335,Pilotage!$D$25)),\"\")","v":""},null,null,null,null,null,{"$f":"IF(K335<>\"\",-1*CUMIPMT($C$6/$C$8,$C$7*$C$8,$C$5,M335,N335,Pilotage!$D$25),\"\")","v":""}]
[null,null,null,null,"","",{"$f":"IF(E336<>\"\",IF($C$5=0,0,CUMIPMT($C$6/$C$8,$C$7*$C$8,$C$5,1,E336,Pilotage!$D$25)),\"\")","v":""},{"$f":"IF(E336<>\"\",IF($C$5=0,0,CUMIPMT($C$6/$C$8,$C$7*$C$8,$C$5,E336,E336,Pilotage!$D$25)),\"\")","v":""},{"$f":"IF(E336<>\"\",IF($C$5=0,0,$C$5+CUMPRINC($C$6/$C$8,$C$7*$C$8,$C$5,1,E336,Pilotage!$D$25)),\"\")","v":""},null,null,null,null,null,{"$f":"IF(K336<>\"\",-1*CUMIPMT($C$6/$C$8,$C$7*$C$8,$C$5,M336,N336,Pilotage!$D$25),\"\")","v":""}]
[null,null,null,null,"","",{"$f":"IF(E337<>\"\",IF($C$5=0,0,CUMIPMT($C$6/$C$8,$C$7*$C$8,$C$5,1,E337,Pilotage!$D$25)),\"\")","v":""},{"$f":"IF(E337<>\"\",IF($C$5=0,0,CUMIPMT($C$6/$C$8,$C$7*$C$8,$C$5,E337,E337,Pilotage!$D$25)),\"\")","v":""},{"$f":"IF(E337<>\"\",IF($C$5=0,0,$C$5+CUMPRINC($C$6/$C$8,$C$7*$C$8,$C$5,1,E337,Pilotage!$D$25)),\"\")","v":""},null,null,null,null,null,{"$f":"IF(K337<>\"\",-1*CUMIPMT($C$6/$C$8,$C$7*$C$8,$C$5,M337,N337,Pilotage!$D$25),\"\")","v":""}]
[null,null,null,null,"","",{"$f":"IF(E338<>\"\",IF($C$5=0,0,CUMIPMT($C$6/$C$8,$C$7*$C$8,$C$5,1,E338,Pilotage!$D$25)),\"\")","v":""},{"$f":"IF(E338<>\"\",IF($C$5=0,0,CUMIPMT($C$6/$C$8,$C$7*$C$8,$C$5,E338,E338,Pilotage!$D$25)),\"\")","v":""},{"$f":"IF(E338<>\"\",IF($C$5=0,0,$C$5+CUMPRINC($C$6/$C$8,$C$7*$C$8,$C$5,1,E338,Pilotage!$D$25)),\"\")","v":""},null,null,null,null,null,{"$f":"IF(K338<>\"\",-1*CUMIPMT($C$6/$C$8,$C$7*$C$8,$C$5,M338,N338,Pilotage!$D$25),\"\")","v":""}]
[null,null,null,null,"","",{"$f":"IF(E339<>\"\",IF($C$5=0,0,CUMIPMT($C$6/$C$8,$C$7*$C$8,$C$5,1,E339,Pilotage!$D$25)),\"\")","v":""},{"$f":"IF(E339<>\"\",IF($C$5=0,0,CUMIPMT($C$6/$C$8,$C$7*$C$8,$C$5,E339,E339,Pilotage!$D$25)),\"\")","v":""},{"$f":"IF(E339<>\"\",IF($C$5=0,0,$C$5+CUMPRINC($C$6/$C$8,$C$7*$C$8,$C$5,1,E339,Pilotage!$D$25)),\"\")","v":""},null,null,null,null,null,{"$f":"IF(K339<>\"\",-1*CUMIPMT($C$6/$C$8,$C$7*$C$8,$C$5,M339,N339,Pilotage!$D$25),\"\")","v":""}]
[null,null,null,null,"","",{"$f":"IF(E340<>\"\",IF($C$5=0,0,CUMIPMT($C$6/$C$8,$C$7*$C$8,$C$5,1,E340,Pilotage!$D$25)),\"\")","v":""},{"$f":"IF(E340<>\"\",IF($C$5=0,0,CUMIPMT($C$6/$C$8,$C$7*$C$8,$C$5,E340,E340,Pilotage!$D$25)),\"\")","v":""},{"$f":"IF(E340<>\"\",IF($C$5=0,0,$C$5+CUMPRINC($C$6/$C$8,$C$7*$C$8,$C$5,1,E340,Pilotage!$D$25)),\"\")","v":""},null,null,null,null,null,{"$f":"IF(K340<>\"\",-1*CUMIPMT($C$6/$C$8,$C$7*$C$8,$C$5,M340,N340,Pilotage!$D$25),\"\")","v":""}]
[null,null,null,null,"","",{"$f":"IF(E341<>\"\",IF($C$5=0,0,CUMIPMT($C$6/$C$8,$C$7*$C$8,$C$5,1,E341,Pilotage!$D$25)),\"\")","v":""},{"$f":"IF(E341<>\"\",IF($C$5=0,0,CUMIPMT($C$6/$C$8,$C$7*$C$8,$C$5,E341,E341,Pilotage!$D$25)),\"\")","v":""},{"$f":"IF(E341<>\"\",IF($C$5=0,0,$C$5+CUMPRINC($C$6/$C$8,$C$7*$C$8,$C$5,1,E341,Pilotage!$D$25)),\"\")","v":""}]
[null,null,null,null,"","",{"$f":"IF(E342<>\"\",IF($C$5=0,0,CUMIPMT($C$6/$C$8,$C$7*$C$8,$C$5,1,E342,Pilotage!$D$25)),\"\")","v":""},{"$f":"IF(E342<>\"\",IF($C$5=0,0,CUMIPMT($C$6/$C$8,$C$7*$C$8,$C$5,E342,E342,Pilotage!$D$25)),\"\")","v":""},{"$f":"IF(E342<>\"\",IF($C$5=0,0,$C$5+CUMPRINC($C$6/$C$8,$C$7*$C$8,$C$5,1,E342,Pilotage!$D$25)),\"\")","v":""}]
[null,null,null,null,"","",{"$f":"IF(E343<>\"\",IF($C$5=0,0,CUMIPMT($C$6/$C$8,$C$7*$C$8,$C$5,1,E343,Pilotage!$D$25)),\"\")","v":""},{"$f":"IF(E343<>\"\",IF($C$5=0,0,CUMIPMT($C$6/$C$8,$C$7*$C$8,$C$5,E343,E343,Pilotage!$D$25)),\"\")","v":""},{"$f":"IF(E343<>\"\",IF($C$5=0,0,$C$5+CUMPRINC($C$6/$C$8,$C$7*$C$8,$C$5,1,E343,Pilotage!$D$25)),\"\")","v":""}]
[null,null,null,null,"","",{"$f":"IF(E344<>\"\",IF($C$5=0,0,CUMIPMT($C$6/$C$8,$C$7*$C$8,$C$5,1,E344,Pilotage!$D$25)),\"\")","v":""},{"$f":"IF(E344<>\"\",IF($C$5=0,0,CUMIPMT($C$6/$C$8,$C$7*$C$8,$C$5,E344,E344,Pilotage!$D$25)),\"\")","v":""},{"$f":"IF(E344<>\"\",IF($C$5=0,0,$C$5+CUMPRINC($C$6/$C$8,$C$7*$C$8,$C$5,1,E344,Pilotage!$D$25)),\"\")","v":""}]
[null,null,null,null,"","",{"$f":"IF(E345<>\"\",IF($C$5=0,0,CUMIPMT($C$6/$C$8,$C$7*$C$8,$C$5,1,E345,Pilotage!$D$25)),\"\")","v":""},{"$f":"IF(E345<>\"\",IF($C$5=0,0,CUMIPMT($C$6/$C$8,$C$7*$C$8,$C$5,E345,E345,Pilotage!$D$25)),\"\")","v":""},{"$f":"IF(E345<>\"\",IF($C$5=0,0,$C$5+CUMPRINC($C$6/$C$8,$C$7*$C$8,$C$5,1,E345,Pilotage!$D$25)),\"\")","v":""}]
[null,null,null,null,"","",{"$f":"IF(E346<>\"\",IF($C$5=0,0,CUMIPMT($C$6/$C$8,$C$7*$C$8,$C$5,1,E346,Pilotage!$D$25)),\"\")","v":""},{"$f":"IF(E346<>\"\",IF($C$5=0,0,CUMIPMT($C$6/$C$8,$C$7*$C$8,$C$5,E346,E346,Pilotage!$D$25)),\"\")","v":""},{"$f":"IF(E346<>\"\",IF($C$5=0,0,$C$5+CUMPRINC($C$6/$C$8,$C$7*$C$8,$C$5,1,E346,Pilotage!$D$25)),\"\")","v":""}]
[null,null,null,null,"",""]
[null,null,null,null,""]
[null,null,null,null,""]
[null,null,null,null,""]
[null,null,null,null,""]
[null,null,null,null,""]
[null,null,null,null,""]
[null,null,null,null,""]
[null,null,null,null,""]
[null,null,null,null,""]
[null,null,null,null,""]
[null,null,null,null,""]
[null,null,null,null,""]
[null,null,null,null,""]
[null,null,null,null,""]
[null,null,null,null,""]
[null,null,null,null,""]
[null,null,null,null,""]
[null,null,null,null,""]
[null,null,null,null,""]
[null,null,null,null,""]
[null,null,null,null,""]
[null,null,null,null,""]
[null,null,null,null,""]
[null,null,null,null,""]
[null,null,null,null,""]
[null,null,null,null,""]
[null,null,null,null,""]
[null,null,null,null,""]
[null,null,null,null,""]
[null,null,null,null,""]
[null,null,null,null,""]
[null,null,null,null,""]
[null,null,null,null,""]
[null,null,null,null,""]
[null,null,null,null,""]
[null,null,null,null,""]
[null,null,null,null,""]
[null,null,null,null,""]
[null,null,null,null,""]
[null,null,null,null,""]
[null,null,null,null,""]
[null,null,null,null,""]
[null,null,null,null,""]
[null,null,null,null,""]
[null,null,null,null,{"$f":"IF(E391<$C$10,E391+1,\"\")","v":""}]
[null,null,null,null,""]
[null,null,null,null,""]
[null,null,null,null,""]
[null,null,null,null,""]
[null,null,null,null,""]
[null,null,null,null,""]
[null,null,null,null,"",null,{"$f":"IF(E399<>\"\",IF($C$5=0,0,CUMIPMT($C$6/$C$8,$C$7*$C$8,$C$5,1,E399,Pilotage!$D$25)),\"\")","v":""},{"$f":"IF(E399<>\"\",IF($C$5=0,0,CUMIPMT($C$6/$C$8,$C$7*$C$8,$C$5,E399,E399,Pilotage!$D$25)),\"\")","v":""},{"$f":"IF(E399<>\"\",IF($C$5=0,0,$C$5+CUMPRINC($C$6/$C$8,$C$7*$C$8,$C$5,1,E399,Pilotage!$D$25)),\"\")","v":""}]
[null,null,null,null,"",null,{"$f":"IF(E400<>\"\",IF($C$5=0,0,CUMIPMT($C$6/$C$8,$C$7*$C$8,$C$5,1,E400,Pilotage!$D$25)),\"\")","v":""},{"$f":"IF(E400<>\"\",IF($C$5=0,0,CUMIPMT($C$6/$C$8,$C$7*$C$8,$C$5,E400,E400,Pilotage!$D$25)),\"\")","v":""},{"$f":"IF(E400<>\"\",IF($C$5=0,0,$C$5+CUMPRINC($C$6/$C$8,$C$7*$C$8,$C$5,1,E400,Pilotage!$D$25)),\"\")","v":""}]
[null,null,null,null,""]
[null,null,null,null,""]
[null,null,null,null,""]

{"sheet":"Prêts honneur","index":51,"n_rows":403,"n_cols":15,"rows_kept":403,"cut":false,"hidden":false,"merged":[[2,1,2,8],[2,9,2,14]]}
[]
[]
[null,"Emprunt"]
[]
[null,"Montant emprunté",{"$f":"Pilotage!H21","v":0},null,null,"Date","Intérêts cumulé","Intérêts","Capital restant dû",null,null,"Date",null,null,"Intérêts annuels"]
[null,"Taux annuel",0,null,1,{"$f":"C9","v":"2014-10-01"},{"$f":"IF(E6<>\"\",IF($C$5=0,0,IF($C$6<=0,0,CUMIPMT($C$6/$C$8,$C$7*$C$8,$C$5,1,E6,Pilotage!$D$25))),\"\")","v":0},{"$f":"IF(E6<>\"\",IF($C$6<=0,0,IF($C$5=0,0,CUMIPMT($C$6/$C$8,$C$7*$C$8,$C$5,E6,E6,Pilotage!$D$25))),\"\")","v":0},{"$f":"IF(E6<>\"\",IF($C$5=0,0,IF($C$6<=0,C$13-E6*C$12,$C$5+CUMPRINC($C$6/$C$8,$C$7*$C$8,$C$5,1,E6,Pilotage!$D$25))),\"\")","v":0},null,1,{"$f":"F6","v":"2014-10-01"},{"$f":"IF(K6<>\"\",K6*$C$8-$C$8+1,\"\")","v":1},{"$f":"IF(K6<>\"\",K6*$C$8,\"\")","v":12},{"$f":"IF(K6<>\"\",IF($C$6<=0,0,IF($C$5=0,0,-1*CUMIPMT($C$6/$C$8,$C$7*$C$8,$C$5,M6,N6,Pilotage!$D$25))),\"\")","v":0}]
[null,"Nb années de décaissement",5,null,{"$f":"IF(E6<$C$10,E6+1,\"\")","v":2},{"$f":"IF(E7<>\"\",EDATE(F6,$C$11),\"\")","v":"2014-11-01"},{"$f":"IF(E7<>\"\",IF($C$5=0,0,IF($C$6<=0,0,CUMIPMT($C$6/$C$8,$C$7*$C$8,$C$5,1,E7,Pilotage!$D$25))),\"\")","v":0},{"$f":"IF(E7<>\"\",IF($C$6<=0,0,IF($C$5=0,0,CUMIPMT($C$6/$C$8,$C$7*$C$8,$C$5,E7,E7,Pilotage!$D$25))),\"\")","v":0},{"$f":"IF(E7<>\"\",IF($C$5=0,0,IF($C$6<=0,C$13-E7*C$12,$C$5+CUMPRINC($C$6/$C$8,$C$7*$C$8,$C$5,1,E7,Pilotage!$D$25))),\"\")","v":0},null,{"$f":"IF(E6<$C$7,E6+1,\"\")","v":2},{"$f":"IF(K7<>\"\",EDATE(L6,12),\"\")","v":"2015-10-01"},{"$f":"IF(K7<>\"\",K7*$C$8-$C$8+1,\"\")","v":13},24,{"$f":"IF(K7<>\"\",IF($C$6<=0,0,IF($C$5=0,0,-1*CUMIPMT($C$6/$C$8,$C$7*$C$8,$C$5,M7,N7,Pilotage!$D$25))),\"\")","v":0}]
[null,"Périodicité (nb fois/an, 4 = trimest.)",12,null,{"$f":"IF(E7<$C$10,E7+1,\"\")","v":3},{"$f":"IF(E8<>\"\",EDATE(F7,$C$11),\"\")","v":"2014-12-01"},{"$f":"IF(E8<>\"\",IF($C$5=0,0,IF($C$6<=0,0,CUMIPMT($C$6/$C$8,$C$7*$C$8,$C$5,1,E8,Pilotage!$D$25))),\"\")","v":0},{"$f":"IF(E8<>\"\",IF($C$6<=0,0,IF($C$5=0,0,CUMIPMT($C$6/$C$8,$C$7*$C$8,$C$5,E8,E8,Pilotage!$D$25))),\"\")","v":0},{"$f":"IF(E8<>\"\",IF($C$5=0,0,IF($C$6<=0,C$13-E8*C$12,$C$5+CUMPRINC($C$6/$C$8,$C$7*$C$8,$C$5,1,E8,Pilotage!$D$25))),\"\")","v":0},null,{"$f":"IF(E7<$C$7,E7+1,\"\")","v":3},{"$f":"IF(K8<>\"\",EDATE(L7,12),\"\")","v":"2016-10-01"},25,36,{"$f":"IF(K8<>\"\",IF($C$6<=0,0,IF($C$5=0,0,-1*CUMIPMT($C$6/$C$8,$C$7*$C$8,$C$5,M8,N8,Pilotage!$D$25))),\"\")","v":0}]
[null,"Date de départ",{"$f":"Pilotage!D26","v":"2014-10-01"},null,4,"2015-01-01",{"$f":"IF(E9<>\"\",IF($C$5=0,0,IF($C$6<=0,0,CUMIPMT($C$6/$C$8,$C$7*$C$8,$C$5,1,E9,Pilotage!$D$25))),\"\")","v":0},{"$f":"IF(E9<>\"\",IF($C$6<=0,0,IF($C$5=0,0,CUMIPMT($C$6/$C$8,$C$7*$C$8,$C$5,E9,E9,Pilotage!$D$25))),\"\")","v":0},{"$f":"IF(E9<>\"\",IF($C$5=0,0,IF($C$6<=0,C$13-E9*C$12,$C$5+CUMPRINC($C$6/$C$8,$C$7*$C$8,$C$5,1,E9,Pilotage!$D$25))),\"\")","v":0},null,4,"2017-10-01",37,48,{"$f":"IF(K9<>\"\",IF($C$6<=0,0,IF($C$5=0,0,-1*CUMIPMT($C$6/$C$8,$C$7*$C$8,$C$5,M9,N9,Pilotage!$D$25))),\"\")","v":0}]
[null,"Échéances",{"$f":"C7*C8","v":60},null,5,"2015-02-01",{"$f":"IF(E10<>\"\",IF($C$5=0,0,IF($C$6<=0,0,CUMIPMT($C$6/$C$8,$C$7*$C$8,$C$5,1,E10,Pilotage!$D$25))),\"\")","v":0},{"$f":"IF(E10<>\"\",IF($C$6<=0,0,IF($C$5=0,0,CUMIPMT($C$6/$C$8,$C$7*$C$8,$C$5,E10,E10,Pilotage!$D$25))),\"\")","v":0},{"$f":"IF(E10<>\"\",IF($C$5=0,0,IF($C$6<=0,C$13-E10*C$12,$C$5+CUMPRINC($C$6/$C$8,$C$7*$C$8,$C$5,1,E10,Pilotage!$D$25))),\"\")","v":0},null,5,"2018-10-01",49,60,{"$f":"IF(K10<>\"\",IF($C$6<=0,0,IF($C$5=0,0,-1*CUMIPMT($C$6/$C$8,$C$7*$C$8,$C$5,M10,N10,Pilotage!$D$25))),\"\")","v":0}]
[null,"Durée de l'échéance",{"$f":"12/C8","v":1},null,6,"2015-03-01",{"$f":"IF(E11<>\"\",IF($C$5=0,0,IF($C$6<=0,0,CUMIPMT($C$6/$C$8,$C$7*$C$8,$C$5,1,E11,Pilotage!$D$25))),\"\")","v":0},{"$f":"IF(E11<>\"\",IF($C$6<=0,0,IF($C$5=0,0,CUMIPMT($C$6/$C$8,$C$7*$C$8,$C$5,E11,E11,Pilotage!$D$25))),\"\")","v":0},{"$f":"IF(E11<>\"\",IF($C$5=0,0,IF($C$6<=0,C$13-E11*C$12,$C$5+CUMPRINC($C$6/$C$8,$C$7*$C$8,$C$5,1,E11,Pilotage!$D$25))),\"\")","v":0},null,"","","","",{"$f":"IF(K11<>\"\",IF($C$6<=0,0,IF($C$5=0,0,-1*CUMIPMT($C$6/$C$8,$C$7*$C$8,$C$5,M11,N11,Pilotage!$D$25))),\"\")","v":""}]
[null,"Montant échéances",{"$f":"PMT($C$6/$C$8,$C$7*$C$8,$C$5,0,Pilotage!D25)*-1","v":0},null,7,"2015-04-01",{"$f":"IF(E12<>\"\",IF($C$5=0,0,IF($C$6<=0,0,CUMIPMT($C$6/$C$8,$C$7*$C$8,$C$5,1,E12,Pilotage!$D$25))),\"\")","v":0},{"$f":"IF(E12<>\"\",IF($C$6<=0,0,IF($C$5=0,0,CUMIPMT($C$6/$C$8,$C$7*$C$8,$C$5,E12,E12,Pilotage!$D$25))),\"\")","v":0},{"$f":"IF(E12<>\"\",IF($C$5=0,0,IF($C$6<=0,C$13-E12*C$12,$C$5+CUMPRINC($C$6/$C$8,$C$7*$C$8,$C$5,1,E12,Pilotage!$D$25))),\"\")","v":0},null,"","","","",{"$f":"IF(K12<>\"\",IF($C$6<=0,0,IF($C$5=0,0,-1*CUMIPMT($C$6/$C$8,$C$7*$C$8,$C$5,M12,N12,Pilotage!$D$25))),\"\")","v":""}]
[null,"Cout total du crédit",{"$f":"C12*C7*C8","v":0},null,8,"2015-05-01",{"$f":"IF(E13<>\"\",IF($C$5=0,0,IF($C$6<=0,0,CUMIPMT($C$6/$C$8,$C$7*$C$8,$C$5,1,E13,Pilotage!$D$25))),\"\")","v":0},{"$f":"IF(E13<>\"\",IF($C$6<=0,0,IF($C$5=0,0,CUMIPMT($C$6/$C$8,$C$7*$C$8,$C$5,E13,E13,Pilotage!$D$25))),\"\")","v":0},{"$f":"IF(E13<>\"\",IF($C$5=0,0,IF($C$6<=0,C$13-E13*C$12,$C$5+CUMPRINC($C$6/$C$8,$C$7*$C$8,$C$5,1,E13,Pilotage!$D$25))),\"\")","v":0},null,"","","","",{"$f":"IF(K13<>\"\",IF($C$6<=0,0,IF($C$5=0,0,-1*CUMIPMT($C$6/$C$8,$C$7*$C$8,$C$5,M13,N13,Pilotage!$D$25))),\"\")","v":""}]
[null,"Montant des intérêts",{"$f":"C13-C5","v":0},null,9,"2015-06-01",{"$f":"IF(E14<>\"\",IF($C$5=0,0,IF($C$6<=0,0,CUMIPMT($C$6/$C$8,$C$7*$C$8,$C$5,1,E14,Pilotage!$D$25))),\"\")","v":0},{"$f":"IF(E14<>\"\",IF($C$6<=0,0,IF($C$5=0,0,CUMIPMT($C$6/$C$8,$C$7*$C$8,$C$5,E14,E14,Pilotage!$D$25))),\"\")","v":0},{"$f":"IF(E14<>\"\",IF($C$5=0,0,IF($C$6<=0,C$13-E14*C$12,$C$5+CUMPRINC($C$6/$C$8,$C$7*$C$8,$C$5,1,E14,Pilotage!$D$25))),\"\")","v":0},null,"","","","",{"$f":"IF(K14<>\"\",IF($C$6<=0,0,IF($C$5=0,0,-1*CUMIPMT($C$6/$C$8,$C$7*$C$8,$C$5,M14,N14,Pilotage!$D$25))),\"\")","v":""}]
[null,null,null,null,10,"2015-07-01",{"$f":"IF(E15<>\"\",IF($C$5=0,0,IF($C$6<=0,0,CUMIPMT($C$6/$C$8,$C$7*$C$8,$C$5,1,E15,Pilotage!$D$25))),\"\")","v":0},{"$f":"IF(E15<>\"\",IF($C$6<=0,0,IF($C$5=0,0,CUMIPMT($C$6/$C$8,$C$7*$C$8,$C$5,E15,E15,Pilotage!$D$25))),\"\")","v":0},{"$f":"IF(E15<>\"\",IF($C$5=0,0,IF($C$6<=0,C$13-E15*C$12,$C$5+CUMPRINC($C$6/$C$8,$C$7*$C$8,$C$5,1,E15,Pilotage!$D$25))),\"\")","v":0},null,"","","","",{"$f":"IF(K15<>\"\",IF($C$6<=0,0,IF($C$5=0,0,-1*CUMIPMT($C$6/$C$8,$C$7*$C$8,$C$5,M15,N15,Pilotage!$D$25))),\"\")","v":""}]
[null,null,null,null,11,"2015-08-01",{"$f":"IF(E16<>\"\",IF($C$5=0,0,IF($C$6<=0,0,CUMIPMT($C$6/$C$8,$C$7*$C$8,$C$5,1,E16,Pilotage!$D$25))),\"\")","v":0},{"$f":"IF(E16<>\"\",IF($C$6<=0,0,IF($C$5=0,0,CUMIPMT($C$6/$C$8,$C$7*$C$8,$C$5,E16,E16,Pilotage!$D$25))),\"\")","v":0},{"$f":"IF(E16<>\"\",IF($C$5=0,0,IF($C$6<=0,C$13-E16*C$12,$C$5+CUMPRINC($C$6/$C$8,$C$7*$C$8,$C$5,1,E16,Pilotage!$D$25))),\"\")","v":0},null,{"$f":"IF(E15<$C$7,E15+1,\"\")","v":""},{"$f":"IF(K16<>\"\",EDATE(L15,12),\"\")","v":""},{"$f":"IF(K16<>\"\",K16*$C$8-$C$8+1,\"\")","v":""},"",{"$f":"IF(K16<>\"\",IF($C$6<=0,0,IF($C$5=0,0,-1*CUMIPMT($C$6/$C$8,$C$7*$C$8,$C$5,M16,N16,Pilotage!$D$25))),\"\")","v":""}]
[null,null,null,null,12,"2015-09-01",{"$f":"IF(E17<>\"\",IF($C$5=0,0,IF($C$6<=0,0,CUMIPMT($C$6/$C$8,$C$7*$C$8,$C$5,1,E17,Pilotage!$D$25))),\"\")","v":0},{"$f":"IF(E17<>\"\",IF($C$6<=0,0,IF($C$5=0,0,CUMIPMT($C$6/$C$8,$C$7*$C$8,$C$5,E17,E17,Pilotage!$D$25))),\"\")","v":0},{"$f":"IF(E17<>\"\",IF($C$5=0,0,IF($C$6<=0,C$13-E17*C$12,$C$5+CUMPRINC($C$6/$C$8,$C$7*$C$8,$C$5,1,E17,Pilotage!$D$25))),\"\")","v":0},null,{"$f":"IF(E16<$C$7,E16+1,\"\")","v":""},{"$f":"IF(K17<>\"\",EDATE(L16,12),\"\")","v":""},{"$f":"IF(K17<>\"\",K17*$C$8-$C$8+1,\"\")","v":""},"",{"$f":"IF(K17<>\"\",IF($C$6<=0,0,IF($C$5=0,0,-1*CUMIPMT($C$6/$C$8,$C$7*$C$8,$C$5,M17,N17,Pilotage!$D$25))),\"\")","v":""}]
[null,null,null,null,13,"2015-10-01",{"$f":"IF(E18<>\"\",IF($C$5=0,0,IF($C$6<=0,0,CUMIPMT($C$6/$C$8,$C$7*$C$8,$C$5,1,E18,Pilotage!$D$25))),\"\")","v":0},{"$f":"IF(E18<>\"\",IF($C$6<=0,0,IF($C$5=0,0,CUMIPMT($C$6/$C$8,$C$7*$C$8,$C$5,E18,E18,Pilotage!$D$25))),\"\")","v":0},{"$f":"IF(E18<>\"\",IF($C$5=0,0,IF($C$6<=0,C$13-E18*C$12,$C$5+CUMPRINC($C$6/$C$8,$C$7*$C$8,$C$5,1,E18,Pilotage!$D$25))),\"\")","v":0},null,{"$f":"IF(E17<$C$7,E17+1,\"\")","v":""},{"$f":"IF(K18<>\"\",EDATE(L17,12),\"\")","v":""},{"$f":"IF(K18<>\"\",K18*$C$8-$C$8+1,\"\")","v":""},"",{"$f":"IF(K18<>\"\",IF($C$6<=0,0,IF($C$5=0,0,-1*CUMIPMT($C$6/$C$8,$C$7*$C$8,$C$5,M18,N18,Pilotage!$D$25))),\"\")","v":""}]
[null,null,null,null,14,"2015-11-01",{"$f":"IF(E19<>\"\",IF($C$5=0,0,IF($C$6<=0,0,CUMIPMT($C$6/$C$8,$C$7*$C$8,$C$5,1,E19,Pilotage!$D$25))),\"\")","v":0},{"$f":"IF(E19<>\"\",IF($C$6<=0,0,IF($C$5=0,0,CUMIPMT($C$6/$C$8,$C$7*$C$8,$C$5,E19,E19,Pilotage!$D$25))),\"\")","v":0},{"$f":"IF(E19<>\"\",IF($C$5=0,0,IF($C$6<=0,C$13-E19*C$12,$C$5+CUMPRINC($C$6/$C$8,$C$7*$C$8,$C$5,1,E19,Pilotage!$D$25))),\"\")","v":0},null,{"$f":"IF(E18<$C$7,E18+1,\"\")","v":""},{"$f":"IF(K19<>\"\",EDATE(L18,12),\"\")","v":""},{"$f":"IF(K19<>\"\",K19*$C$8-$C$8+1,\"\")","v":""},"",{"$f":"IF(K19<>\"\",IF($C$6<=0,0,IF($C$5=0,0,-1*CUMIPMT($C$6/$C$8,$C$7*$C$8,$C$5,M19,N19,Pilotage!$D$25))),\"\")","v":""}]
[null,null,null,null,15,"2015-12-01",{"$f":"IF(E20<>\"\",IF($C$5=0,0,IF($C$6<=0,0,CUMIPMT($C$6/$C$8,$C$7*$C$8,$C$5,1,E20,Pilotage!$D$25))),\"\")","v":0},{"$f":"IF(E20<>\"\",IF($C$6<=0,0,IF($C$5=0,0,CUMIPMT($C$6/$C$8,$C$7*$C$8,$C$5,E20,E20,Pilotage!$D$25))),\"\")","v":0},{"$f":"IF(E20<>\"\",IF($C$5=0,0,IF($C$6<=0,C$13-E20*C$12,$C$5+CUMPRINC($C$6/$C$8,$C$7*$C$8,$C$5,1,E20,Pilotage!$D$25))),\"\")","v":0},null,{"$f":"IF(E19<$C$7,E19+1,\"\")","v":""},{"$f":"IF(K20<>\"\",EDATE(L19,12),\"\")","v":""},{"$f":"IF(K20<>\"\",K20*$C$8-$C$8+1,\"\")","v":""},"",{"$f":"IF(K20<>\"\",IF($C$6<=0,0,IF($C$5=0,0,-1*CUMIPMT($C$6/$C$8,$C$7*$C$8,$C$5,M20,N20,Pilotage!$D$25))),\"\")","v":""}]
[null,null,null,null,16,"2016-01-01",{"$f":"IF(E21<>\"\",IF($C$5=0,0,IF($C$6<=0,0,CUMIPMT($C$6/$C$8,$C$7*$C$8,$C$5,1,E21,Pilotage!$D$25))),\"\")","v":0},{"$f":"IF(E21<>\"\",IF($C$6<=0,0,IF($C$5=0,0,CUMIPMT($C$6/$C$8,$C$7*$C$8,$C$5,E21,E21,Pilotage!$D$25))),\"\")","v":0},{"$f":"IF(E21<>\"\",IF($C$5=0,0,IF($C$6<=0,C$13-E21*C$12,$C$5+CUMPRINC($C$6/$C$8,$C$7*$C$8,$C$5,1,E21,Pilotage!$D$25))),\"\")","v":0},null,{"$f":"IF(E20<$C$7,E20+1,\"\")","v":""},{"$f":"IF(K21<>\"\",EDATE(L20,12),\"\")","v":""},{"$f":"IF(K21<>\"\",K21*$C$8-$C$8+1,\"\")","v":""},"",{"$f":"IF(K21<>\"\",IF($C$6<=0,0,IF($C$5=0,0,-1*CUMIPMT($C$6/$C$8,$C$7*$C$8,$C$5,M21,N21,Pilotage!$D$25))),\"\")","v":""}]
[null,null,null,null,17,"2016-02-01",{"$f":"IF(E22<>\"\",IF($C$5=0,0,IF($C$6<=0,0,CUMIPMT($C$6/$C$8,$C$7*$C$8,$C$5,1,E22,Pilotage!$D$25))),\"\")","v":0},{"$f":"IF(E22<>\"\",IF($C$6<=0,0,IF($C$5=0,0,CUMIPMT($C$6/$C$8,$C$7*$C$8,$C$5,E22,E22,Pilotage!$D$25))),\"\")","v":0},{"$f":"IF(E22<>\"\",IF($C$5=0,0,IF($C$6<=0,C$13-E22*C$12,$C$5+CUMPRINC($C$6/$C$8,$C$7*$C$8,$C$5,1,E22,Pilotage!$D$25))),\"\")","v":0},null,"","","","",{"$f":"IF(K22<>\"\",IF($C$6<=0,0,IF($C$5=0,0,-1*CUMIPMT($C$6/$C$8,$C$7*$C$8,$C$5,M22,N22,Pilotage!$D$25))),\"\")","v":""}]
[null,null,null,null,18,"2016-03-01",{"$f":"IF(E23<>\"\",IF($C$5=0,0,IF($C$6<=0,0,CUMIPMT($C$6/$C$8,$C$7*$C$8,$C$5,1,E23,Pilotage!$D$25))),\"\")","v":0},{"$f":"IF(E23<>\"\",IF($C$6<=0,0,IF($C$5=0,0,CUMIPMT($C$6/$C$8,$C$7*$C$8,$C$5,E23,E23,Pilotage!$D$25))),\"\")","v":0},{"$f":"IF(E23<>\"\",IF($C$5=0,0,IF($C$6<=0,C$13-E23*C$12,$C$5+CUMPRINC($C$6/$C$8,$C$7*$C$8,$C$5,1,E23,Pilotage!$D$25))),\"\")","v":0},null,"","","","",{"$f":"IF(K23<>\"\",IF($C$6<=0,0,IF($C$5=0,0,-1*CUMIPMT($C$6/$C$8,$C$7*$C$8,$C$5,M23,N23,Pilotage!$D$25))),\"\")","v":""}]
[null,null,null,null,19,"2016-04-01",{"$f":"IF(E24<>\"\",IF($C$5=0,0,IF($C$6<=0,0,CUMIPMT($C$6/$C$8,$C$7*$C$8,$C$5,1,E24,Pilotage!$D$25))),\"\")","v":0},{"$f":"IF(E24<>\"\",IF($C$6<=0,0,IF($C$5=0,0,CUMIPMT($C$6/$C$8,$C$7*$C$8,$C$5,E24,E24,Pilotage!$D$25))),\"\")","v":0},{"$f":"IF(E24<>\"\",IF($C$5=0,0,IF($C$6<=0,C$13-E24*C$12,$C$5+CUMPRINC($C$6/$C$8,$C$7*$C$8,$C$5,1,E24,Pilotage!$D$25))),\"\")","v":0},null,"","","","",{"$f":"IF(K24<>\"\",IF($C$6<=0,0,IF($C$5=0,0,-1*CUMIPMT($C$6/$C$8,$C$7*$C$8,$C$5,M24,N24,Pilotage!$D$25))),\"\")","v":""}]
[null,null,null,null,20,"2016-05-01",{"$f":"IF(E25<>\"\",IF($C$5=0,0,IF($C$6<=0,0,CUMIPMT($C$6/$C$8,$C$7*$C$8,$C$5,1,E25,Pilotage!$D$25))),\"\")","v":0},{"$f":"IF(E25<>\"\",IF($C$6<=0,0,IF($C$5=0,0,CUMIPMT($C$6/$C$8,$C$7*$C$8,$C$5,E25,E25,Pilotage!$D$25))),\"\")","v":0},{"$f":"IF(E25<>\"\",IF($C$5=0,0,IF($C$6<=0,C$13-E25*C$12,$C$5+CUMPRINC($C$6/$C$8,$C$7*$C$8,$C$5,1,E25,Pilotage!$D$25))),\"\")","v":0},null,"","","","",{"$f":"IF(K25<>\"\",IF($C$6<=0,0,IF($C$5=0,0,-1*CUMIPMT($C$6/$C$8,$C$7*$C$8,$C$5,M25,N25,Pilotage!$D$25))),\"\")","v":""}]
[null,null,null,null,21,"2016-06-01",{"$f":"IF(E26<>\"\",IF($C$5=0,0,IF($C$6<=0,0,CUMIPMT($C$6/$C$8,$C$7*$C$8,$C$5,1,E26,Pilotage!$D$25))),\"\")","v":0},{"$f":"IF(E26<>\"\",IF($C$6<=0,0,IF($C$5=0,0,CUMIPMT($C$6/$C$8,$C$7*$C$8,$C$5,E26,E26,Pilotage!$D$25))),\"\")","v":0},{"$f":"IF(E26<>\"\",IF($C$5=0,0,IF($C$6<=0,C$13-E26*C$12,$C$5+CUMPRINC($C$6/$C$8,$C$7*$C$8,$C$5,1,E26,Pilotage!$D$25))),\"\")","v":0},null,"","","","",{"$f":"IF(K26<>\"\",IF($C$6<=0,0,IF($C$5=0,0,-1*CUMIPMT($C$6/$C$8,$C$7*$C$8,$C$5,M26,N26,Pilotage!$D$25))),\"\")","v":""}]
[null,null,null,null,22,"2016-07-01",{"$f":"IF(E27<>\"\",IF($C$5=0,0,IF($C$6<=0,0,CUMIPMT($C$6/$C$8,$C$7*$C$8,$C$5,1,E27,Pilotage!$D$25))),\"\")","v":0},{"$f":"IF(E27<>\"\",IF($C$6<=0,0,IF($C$5=0,0,CUMIPMT($C$6/$C$8,$C$7*$C$8,$C$5,E27,E27,Pilotage!$D$25))),\"\")","v":0},{"$f":"IF(E27<>\"\",IF($C$5=0,0,IF($C$6<=0,C$13-E27*C$12,$C$5+CUMPRINC($C$6/$C$8,$C$7*$C$8,$C$5,1,E27,Pilotage!$D$25))),\"\")","v":0},null,"","","","",{"$f":"IF(K27<>\"\",IF($C$6<=0,0,IF($C$5=0,0,-1*CUMIPMT($C$6/$C$8,$C$7*$C$8,$C$5,M27,N27,Pilotage!$D$25))),\"\")","v":""}]
[null,null,null,null,23,"2016-08-01",{"$f":"IF(E28<>\"\",IF($C$5=0,0,IF($C$6<=0,0,CUMIPMT($C$6/$C$8,$C$7*$C$8,$C$5,1,E28,Pilotage!$D$25))),\"\")","v":0},{"$f":"IF(E28<>\"\",IF($C$6<=0,0,IF($C$5=0,0,CUMIPMT($C$6/$C$8,$C$7*$C$8,$C$5,E28,E28,Pilotage!$D$25))),\"\")","v":0},{"$f":"IF(E28<>\"\",IF($C$5=0,0,IF($C$6<=0,C$13-E28*C$12,$C$5+CUMPRINC($C$6/$C$8,$C$7*$C$8,$C$5,1,E28,Pilotage!$D$25))),\"\")","v":0},null,"","","","",{"$f":"IF(K28<>\"\",IF($C$6<=0,0,IF($C$5=0,0,-1*CUMIPMT($C$6/$C$8,$C$7*$C$8,$C$5,M28,N28,Pilotage!$D$25))),\"\")","v":""}]
[null,null,null,null,24,"2016-09-01",{"$f":"IF(E29<>\"\",IF($C$5=0,0,IF($C$6<=0,0,CUMIPMT($C$6/$C$8,$C$7*$C$8,$C$5,1,E29,Pilotage!$D$25))),\"\")","v":0},{"$f":"IF(E29<>\"\",IF($C$6<=0,0,IF($C$5=0,0,CUMIPMT($C$6/$C$8,$C$7*$C$8,$C$5,E29,E29,Pilotage!$D$25))),\"\")","v":0},{"$f":"IF(E29<>\"\",IF($C$5=0,0,IF($C$6<=0,C$13-E29*C$12,$C$5+CUMPRINC($C$6/$C$8,$C$7*$C$8,$C$5,1,E29,Pilotage!$D$25))),\"\")","v":0},null,"","","","",{"$f":"IF(K29<>\"\",IF($C$6<=0,0,IF($C$5=0,0,-1*CUMIPMT($C$6/$C$8,$C$7*$C$8,$C$5,M29,N29,Pilotage!$D$25))),\"\")","v":""}]
[null,null,null,null,25,"2016-10-01",{"$f":"IF(E30<>\"\",IF($C$5=0,0,IF($C$6<=0,0,CUMIPMT($C$6/$C$8,$C$7*$C$8,$C$5,1,E30,Pilotage!$D$25))),\"\")","v":0},{"$f":"IF(E30<>\"\",IF($C$6<=0,0,IF($C$5=0,0,CUMIPMT($C$6/$C$8,$C$7*$C$8,$C$5,E30,E30,Pilotage!$D$25))),\"\")","v":0},{"$f":"IF(E30<>\"\",IF($C$5=0,0,IF($C$6<=0,C$13-E30*C$12,$C$5+CUMPRINC($C$6/$C$8,$C$7*$C$8,$C$5,1,E30,Pilotage!$D$25))),\"\")","v":0},null,"","","","",{"$f":"IF(K30<>\"\",IF($C$6<=0,0,IF($C$5=0,0,-1*CUMIPMT($C$6/$C$8,$C$7*$C$8,$C$5,M30,N30,Pilotage!$D$25))),\"\")","v":""}]
[null,null,null,null,26,"2016-11-01",{"$f":"IF(E31<>\"\",IF($C$5=0,0,IF($C$6<=0,0,CUMIPMT($C$6/$C$8,$C$7*$C$8,$C$5,1,E31,Pilotage!$D$25))),\"\")","v":0},{"$f":"IF(E31<>\"\",IF($C$6<=0,0,IF($C$5=0,0,CUMIPMT($C$6/$C$8,$C$7*$C$8,$C$5,E31,E31,Pilotage!$D$25))),\"\")","v":0},{"$f":"IF(E31<>\"\",IF($C$5=0,0,IF($C$6<=0,C$13-E31*C$12,$C$5+CUMPRINC($C$6/$C$8,$C$7*$C$8,$C$5,1,E31,Pilotage!$D$25))),\"\")","v":0},null,"","","","",{"$f":"IF(K31<>\"\",IF($C$6<=0,0,IF($C$5=0,0,-1*CUMIPMT($C$6/$C$8,$C$7*$C$8,$C$5,M31,N31,Pilotage!$D$25))),\"\")","v":""}]
[null,null,null,null,27,"2016-12-01",{"$f":"IF(E32<>\"\",IF($C$5=0,0,IF($C$6<=0,0,CUMIPMT($C$6/$C$8,$C$7*$C$8,$C$5,1,E32,Pilotage!$D$25))),\"\")","v":0},{"$f":"IF(E32<>\"\",IF($C$6<=0,0,IF($C$5=0,0,CUMIPMT($C$6/$C$8,$C$7*$C$8,$C$5,E32,E32,Pilotage!$D$25))),\"\")","v":0},{"$f":"IF(E32<>\"\",IF($C$5=0,0,IF($C$6<=0,C$13-E32*C$12,$C$5+CUMPRINC($C$6/$C$8,$C$7*$C$8,$C$5,1,E32,Pilotage!$D$25))),\"\")","v":0},null,"","","","",{"$f":"IF(K32<>\"\",IF($C$6<=0,0,IF($C$5=0,0,-1*CUMIPMT($C$6/$C$8,$C$7*$C$8,$C$5,M32,N32,Pilotage!$D$25))),\"\")","v":""}]
[null,null,null,null,28,"2017-01-01",{"$f":"IF(E33<>\"\",IF($C$5=0,0,IF($C$6<=0,0,CUMIPMT($C$6/$C$8,$C$7*$C$8,$C$5,1,E33,Pilotage!$D$25))),\"\")","v":0},{"$f":"IF(E33<>\"\",IF($C$6<=0,0,IF($C$5=0,0,CUMIPMT($C$6/$C$8,$C$7*$C$8,$C$5,E33,E33,Pilotage!$D$25))),\"\")","v":0},{"$f":"IF(E33<>\"\",IF($C$5=0,0,IF($C$6<=0,C$13-E33*C$12,$C$5+CUMPRINC($C$6/$C$8,$C$7*$C$8,$C$5,1,E33,Pilotage!$D$25))),\"\")","v":0},null,"","","","",{"$f":"IF(K33<>\"\",IF($C$6<=0,0,IF($C$5=0,0,-1*CUMIPMT($C$6/$C$8,$C$7*$C$8,$C$5,M33,N33,Pilotage!$D$25))),\"\")","v":""}]
[null,null,null,null,29,"2017-02-01",{"$f":"IF(E34<>\"\",IF($C$5=0,0,IF($C$6<=0,0,CUMIPMT($C$6/$C$8,$C$7*$C$8,$C$5,1,E34,Pilotage!$D$25))),\"\")","v":0},{"$f":"IF(E34<>\"\",IF($C$6<=0,0,IF($C$5=0,0,CUMIPMT($C$6/$C$8,$C$7*$C$8,$C$5,E34,E34,Pilotage!$D$25))),\"\")","v":0},{"$f":"IF(E34<>\"\",IF($C$5=0,0,IF($C$6<=0,C$13-E34*C$12,$C$5+CUMPRINC($C$6/$C$8,$C$7*$C$8,$C$5,1,E34,Pilotage!$D$25))),\"\")","v":0},null,"","","","",{"$f":"IF(K34<>\"\",IF($C$6<=0,0,IF($C$5=0,0,-1*CUMIPMT($C$6/$C$8,$C$7*$C$8,$C$5,M34,N34,Pilotage!$D$25))),\"\")","v":""}]
[null,null,null,null,30,"2017-03-01",{"$f":"IF(E35<>\"\",IF($C$5=0,0,IF($C$6<=0,0,CUMIPMT($C$6/$C$8,$C$7*$C$8,$C$5,1,E35,Pilotage!$D$25))),\"\")","v":0},{"$f":"IF(E35<>\"\",IF($C$6<=0,0,IF($C$5=0,0,CUMIPMT($C$6/$C$8,$C$7*$C$8,$C$5,E35,E35,Pilotage!$D$25))),\"\")","v":0},{"$f":"IF(E35<>\"\",IF($C$5=0,0,IF($C$6<=0,C$13-E35*C$12,$C$5+CUMPRINC($C$6/$C$8,$C$7*$C$8,$C$5,1,E35,Pilotage!$D$25))),\"\")","v":0},null,"","","","",{"$f":"IF(K35<>\"\",IF($C$6<=0,0,IF($C$5=0,0,-1*CUMIPMT($C$6/$C$8,$C$7*$C$8,$C$5,M35,N35,Pilotage!$D$25))),\"\")","v":""}]
[null,null,null,null,31,"2017-04-01",{"$f":"IF(E36<>\"\",IF($C$5=0,0,IF($C$6<=0,0,CUMIPMT($C$6/$C$8,$C$7*$C$8,$C$5,1,E36,Pilotage!$D$25))),\"\")","v":0},{"$f":"IF(E36<>\"\",IF($C$6<=0,0,IF($C$5=0,0,CUMIPMT($C$6/$C$8,$C$7*$C$8,$C$5,E36,E36,Pilotage!$D$25))),\"\")","v":0},{"$f":"IF(E36<>\"\",IF($C$5=0,0,IF($C$6<=0,C$13-E36*C$12,$C$5+CUMPRINC($C$6/$C$8,$C$7*$C$8,$C$5,1,E36,Pilotage!$D$25))),\"\")","v":0},null,"","","","",{"$f":"IF(K36<>\"\",IF($C$6<=0,0,IF($C$5=0,0,-1*CUMIPMT($C$6/$C$8,$C$7*$C$8,$C$5,M36,N36,Pilotage!$D$25))),\"\")","v":""}]
[null,null,null,null,32,"2017-05-01",{"$f":"IF(E37<>\"\",IF($C$5=0,0,IF($C$6<=0,0,CUMIPMT($C$6/$C$8,$C$7*$C$8,$C$5,1,E37,Pilotage!$D$25))),\"\")","v":0},{"$f":"IF(E37<>\"\",IF($C$6<=0,0,IF($C$5=0,0,CUMIPMT($C$6/$C$8,$C$7*$C$8,$C$5,E37,E37,Pilotage!$D$25))),\"\")","v":0},{"$f":"IF(E37<>\"\",IF($C$5=0,0,IF($C$6<=0,C$13-E37*C$12,$C$5+CUMPRINC($C$6/$C$8,$C$7*$C$8,$C$5,1,E37,Pilotage!$D$25))),\"\")","v":0},null,"","","","",{"$f":"IF(K37<>\"\",IF($C$6<=0,0,IF($C$5=0,0,-1*CUMIPMT($C$6/$C$8,$C$7*$C$8,$C$5,M37,N37,Pilotage!$D$25))),\"\")","v":""}]
[null,null,null,null,33,"2017-06-01",{"$f":"IF(E38<>\"\",IF($C$5=0,0,IF($C$6<=0,0,CUMIPMT($C$6/$C$8,$C$7*$C$8,$C$5,1,E38,Pilotage!$D$25))),\"\")","v":0},{"$f":"IF(E38<>\"\",IF($C$6<=0,0,IF($C$5=0,0,CUMIPMT($C$6/$C$8,$C$7*$C$8,$C$5,E38,E38,Pilotage!$D$25))),\"\")","v":0},{"$f":"IF(E38<>\"\",IF($C$5=0,0,IF($C$6<=0,C$13-E38*C$12,$C$5+CUMPRINC($C$6/$C$8,$C$7*$C$8,$C$5,1,E38,Pilotage!$D$25))),\"\")","v":0},null,"","","","",{"$f":"IF(K38<>\"\",IF($C$6<=0,0,IF($C$5=0,0,-1*CUMIPMT($C$6/$C$8,$C$7*$C$8,$C$5,M38,N38,Pilotage!$D$25))),\"\")","v":""}]
[null,null,null,null,34,"2017-07-01",{"$f":"IF(E39<>\"\",IF($C$5=0,0,IF($C$6<=0,0,CUMIPMT($C$6/$C$8,$C$7*$C$8,$C$5,1,E39,Pilotage!$D$25))),\"\")","v":0},{"$f":"IF(E39<>\"\",IF($C$6<=0,0,IF($C$5=0,0,CUMIPMT($C$6/$C$8,$C$7*$C$8,$C$5,E39,E39,Pilotage!$D$25))),\"\")","v":0},{"$f":"IF(E39<>\"\",IF($C$5=0,0,IF($C$6<=0,C$13-E39*C$12,$C$5+CUMPRINC($C$6/$C$8,$C$7*$C$8,$C$5,1,E39,Pilotage!$D$25))),\"\")","v":0},null,"","","","",{"$f":"IF(K39<>\"\",-1*CUMIPMT($C$6/$C$8,$C$7*$C$8,$C$5,M39,N39,Pilotage!$D$25),\"\")","v":""}]
[null,null,null,null,35,"2017-08-01",{"$f":"IF(E40<>\"\",IF($C$5=0,0,IF($C$6<=0,0,CUMIPMT($C$6/$C$8,$C$7*$C$8,$C$5,1,E40,Pilotage!$D$25))),\"\")","v":0},{"$f":"IF(E40<>\"\",IF($C$6<=0,0,IF($C$5=0,0,CUMIPMT($C$6/$C$8,$C$7*$C$8,$C$5,E40,E40,Pilotage!$D$25))),\"\")","v":0},{"$f":"IF(E40<>\"\",IF($C$5=0,0,IF($C$6<=0,C$13-E40*C$12,$C$5+CUMPRINC($C$6/$C$8,$C$7*$C$8,$C$5,1,E40,Pilotage!$D$25))),\"\")","v":0},null,"","","","",{"$f":"IF(K40<>\"\",-1*CUMIPMT($C$6/$C$8,$C$7*$C$8,$C$5,M40,N40,Pilotage!$D$25),\"\")","v":""}]
[null,null,null,null,36,"2017-09-01",{"$f":"IF(E41<>\"\",IF($C$5=0,0,IF($C$6<=0,0,CUMIPMT($C$6/$C$8,$C$7*$C$8,$C$5,1,E41,Pilotage!$D$25))),\"\")","v":0},{"$f":"IF(E41<>\"\",IF($C$6<=0,0,IF($C$5=0,0,CUMIPMT($C$6/$C$8,$C$7*$C$8,$C$5,E41,E41,Pilotage!$D$25))),\"\")","v":0},{"$f":"IF(E41<>\"\",IF($C$5=0,0,IF($C$6<=0,C$13-E41*C$12,$C$5+CUMPRINC($C$6/$C$8,$C$7*$C$8,$C$5,1,E41,Pilotage!$D$25))),\"\")","v":0},null,"","","","",{"$f":"IF(K41<>\"\",-1*CUMIPMT($C$6/$C$8,$C$7*$C$8,$C$5,M41,N41,Pilotage!$D$25),\"\")","v":""}]
[null,null,null,null,37,"2017-10-01",{"$f":"IF(E42<>\"\",IF($C$5=0,0,IF($C$6<=0,0,CUMIPMT($C$6/$C$8,$C$7*$C$8,$C$5,1,E42,Pilotage!$D$25))),\"\")","v":0},{"$f":"IF(E42<>\"\",IF($C$6<=0,0,IF($C$5=0,0,CUMIPMT($C$6/$C$8,$C$7*$C$8,$C$5,E42,E42,Pilotage!$D$25))),\"\")","v":0},{"$f":"IF(E42<>\"\",IF($C$5=0,0,IF($C$6<=0,C$13-E42*C$12,$C$5+CUMPRINC($C$6/$C$8,$C$7*$C$8,$C$5,1,E42,Pilotage!$D$25))),\"\")","v":0},null,"","","","",{"$f":"IF(K42<>\"\",-1*CUMIPMT($C$6/$C$8,$C$7*$C$8,$C$5,M42,N42,Pilotage!$D$25),\"\")","v":""}]
[null,null,null,null,38,"2017-11-01",{"$f":"IF(E43<>\"\",IF($C$5=0,0,IF($C$6<=0,0,CUMIPMT($C$6/$C$8,$C$7*$C$8,$C$5,1,E43,Pilotage!$D$25))),\"\")","v":0},{"$f":"IF(E43<>\"\",IF($C$6<=0,0,IF($C$5=0,0,CUMIPMT($C$6/$C$8,$C$7*$C$8,$C$5,E43,E43,Pilotage!$D$25))),\"\")","v":0},{"$f":"IF(E43<>\"\",IF($C$5=0,0,IF($C$6<=0,C$13-E43*C$12,$C$5+CUMPRINC($C$6/$C$8,$C$7*$C$8,$C$5,1,E43,Pilotage!$D$25))),\"\")","v":0},null,"","","","",{"$f":"IF(K43<>\"\",-1*CUMIPMT($C$6/$C$8,$C$7*$C$8,$C$5,M43,N43,Pilotage!$D$25),\"\")","v":""}]
[null,null,null,null,39,"2017-12-01",{"$f":"IF(E44<>\"\",IF($C$5=0,0,IF($C$6<=0,0,CUMIPMT($C$6/$C$8,$C$7*$C$8,$C$5,1,E44,Pilotage!$D$25))),\"\")","v":0},{"$f":"IF(E44<>\"\",IF($C$6<=0,0,IF($C$5=0,0,CUMIPMT($C$6/$C$8,$C$7*$C$8,$C$5,E44,E44,Pilotage!$D$25))),\"\")","v":0},{"$f":"IF(E44<>\"\",IF($C$5=0,0,IF($C$6<=0,C$13-E44*C$12,$C$5+CUMPRINC($C$6/$C$8,$C$7*$C$8,$C$5,1,E44,Pilotage!$D$25))),\"\")","v":0},null,"","","","",{"$f":"IF(K44<>\"\",-1*CUMIPMT($C$6/$C$8,$C$7*$C$8,$C$5,M44,N44,Pilotage!$D$25),\"\")","v":""}]
[null,null,null,null,40,"2018-01-01",{"$f":"IF(E45<>\"\",IF($C$5=0,0,IF($C$6<=0,0,CUMIPMT($C$6/$C$8,$C$7*$C$8,$C$5,1,E45,Pilotage!$D$25))),\"\")","v":0},{"$f":"IF(E45<>\"\",IF($C$6<=0,0,IF($C$5=0,0,CUMIPMT($C$6/$C$8,$C$7*$C$8,$C$5,E45,E45,Pilotage!$D$25))),\"\")","v":0},{"$f":"IF(E45<>\"\",IF($C$5=0,0,IF($C$6<=0,C$13-E45*C$12,$C$5+CUMPRINC($C$6/$C$8,$C$7*$C$8,$C$5,1,E45,Pilotage!$D$25))),\"\")","v":0},null,"","","","",{"$f":"IF(K45<>\"\",-1*CUMIPMT($C$6/$C$8,$C$7*$C$8,$C$5,M45,N45,Pilotage!$D$25),\"\")","v":""}]
[null,null,null,null,41,"2018-02-01",{"$f":"IF(E46<>\"\",IF($C$5=0,0,IF($C$6<=0,0,CUMIPMT($C$6/$C$8,$C$7*$C$8,$C$5,1,E46,Pilotage!$D$25))),\"\")","v":0},{"$f":"IF(E46<>\"\",IF($C$6<=0,0,IF($C$5=0,0,CUMIPMT($C$6/$C$8,$C$7*$C$8,$C$5,E46,E46,Pilotage!$D$25))),\"\")","v":0},{"$f":"IF(E46<>\"\",IF($C$5=0,0,IF($C$6<=0,C$13-E46*C$12,$C$5+CUMPRINC($C$6/$C$8,$C$7*$C$8,$C$5,1,E46,Pilotage!$D$25))),\"\")","v":0},null,"","","","",{"$f":"IF(K46<>\"\",-1*CUMIPMT($C$6/$C$8,$C$7*$C$8,$C$5,M46,N46,Pilotage!$D$25),\"\")","v":""}]
[null,null,null,null,42,"2018-03-01",{"$f":"IF(E47<>\"\",IF($C$5=0,0,IF($C$6<=0,0,CUMIPMT($C$6/$C$8,$C$7*$C$8,$C$5,1,E47,Pilotage!$D$25))),\"\")","v":0},{"$f":"IF(E47<>\"\",IF($C$6<=0,0,IF($C$5=0,0,CUMIPMT($C$6/$C$8,$C$7*$C$8,$C$5,E47,E47,Pilotage!$D$25))),\"\")","v":0},{"$f":"IF(E47<>\"\",IF($C$5=0,0,IF($C$6<=0,C$13-E47*C$12,$C$5+CUMPRINC($C$6/$C$8,$C$7*$C$8,$C$5,1,E47,Pilotage!$D$25))),\"\")","v":0},null,"","","","",{"$f":"IF(K47<>\"\",-1*CUMIPMT($C$6/$C$8,$C$7*$C$8,$C$5,M47,N47,Pilotage!$D$25),\"\")","v":""}]
[null,null,null,null,43,"2018-04-01",{"$f":"IF(E48<>\"\",IF($C$5=0,0,IF($C$6<=0,0,CUMIPMT($C$6/$C$8,$C$7*$C$8,$C$5,1,E48,Pilotage!$D$25))),\"\")","v":0},{"$f":"IF(E48<>\"\",IF($C$6<=0,0,IF($C$5=0,0,CUMIPMT($C$6/$C$8,$C$7*$C$8,$C$5,E48,E48,Pilotage!$D$25))),\"\")","v":0},{"$f":"IF(E48<>\"\",IF($C$5=0,0,IF($C$6<=0,C$13-E48*C$12,$C$5+CUMPRINC($C$6/$C$8,$C$7*$C$8,$C$5,1,E48,Pilotage!$D$25))),\"\")","v":0},null,"","","","",{"$f":"IF(K48<>\"\",-1*CUMIPMT($C$6/$C$8,$C$7*$C$8,$C$5,M48,N48,Pilotage!$D$25),\"\")","v":""}]
[null,null,null,null,44,"2018-05-01",{"$f":"IF(E49<>\"\",IF($C$5=0,0,IF($C$6<=0,0,CUMIPMT($C$6/$C$8,$C$7*$C$8,$C$5,1,E49,Pilotage!$D$25))),\"\")","v":0},{"$f":"IF(E49<>\"\",IF($C$6<=0,0,IF($C$5=0,0,CUMIPMT($C$6/$C$8,$C$7*$C$8,$C$5,E49,E49,Pilotage!$D$25))),\"\")","v":0},{"$f":"IF(E49<>\"\",IF($C$5=0,0,IF($C$6<=0,C$13-E49*C$12,$C$5+CUMPRINC($C$6/$C$8,$C$7*$C$8,$C$5,1,E49,Pilotage!$D$25))),\"\")","v":0},null,"","","","",{"$f":"IF(K49<>\"\",-1*CUMIPMT($C$6/$C$8,$C$7*$C$8,$C$5,M49,N49,Pilotage!$D$25),\"\")","v":""}]
[null,null,null,null,45,"2018-06-01",{"$f":"IF(E50<>\"\",IF($C$5=0,0,IF($C$6<=0,0,CUMIPMT($C$6/$C$8,$C$7*$C$8,$C$5,1,E50,Pilotage!$D$25))),\"\")","v":0},{"$f":"IF(E50<>\"\",IF($C$6<=0,0,IF($C$5=0,0,CUMIPMT($C$6/$C$8,$C$7*$C$8,$C$5,E50,E50,Pilotage!$D$25))),\"\")","v":0},{"$f":"IF(E50<>\"\",IF($C$5=0,0,IF($C$6<=0,C$13-E50*C$12,$C$5+CUMPRINC($C$6/$C$8,$C$7*$C$8,$C$5,1,E50,Pilotage!$D$25))),\"\")","v":0},null,"","","","",{"$f":"IF(K50<>\"\",-1*CUMIPMT($C$6/$C$8,$C$7*$C$8,$C$5,M50,N50,Pilotage!$D$25),\"\")","v":""}]
[null,null,null,null,46,"2018-07-01",{"$f":"IF(E51<>\"\",IF($C$5=0,0,IF($C$6<=0,0,CUMIPMT($C$6/$C$8,$C$7*$C$8,$C$5,1,E51,Pilotage!$D$25))),\"\")","v":0},{"$f":"IF(E51<>\"\",IF($C$6<=0,0,IF($C$5=0,0,CUMIPMT($C$6/$C$8,$C$7*$C$8,$C$5,E51,E51,Pilotage!$D$25))),\"\")","v":0},{"$f":"IF(E51<>\"\",IF($C$5=0,0,IF($C$6<=0,C$13-E51*C$12,$C$5+CUMPRINC($C$6/$C$8,$C$7*$C$8,$C$5,1,E51,Pilotage!$D$25))),\"\")","v":0},null,"","","","",{"$f":"IF(K51<>\"\",-1*CUMIPMT($C$6/$C$8,$C$7*$C$8,$C$5,M51,N51,Pilotage!$D$25),\"\")","v":""}]
[null,null,null,null,47,"2018-08-01",{"$f":"IF(E52<>\"\",IF($C$5=0,0,IF($C$6<=0,0,CUMIPMT($C$6/$C$8,$C$7*$C$8,$C$5,1,E52,Pilotage!$D$25))),\"\")","v":0},{"$f":"IF(E52<>\"\",IF($C$6<=0,0,IF($C$5=0,0,CUMIPMT($C$6/$C$8,$C$7*$C$8,$C$5,E52,E52,Pilotage!$D$25))),\"\")","v":0},{"$f":"IF(E52<>\"\",IF($C$5=0,0,IF($C$6<=0,C$13-E52*C$12,$C$5+CUMPRINC($C$6/$C$8,$C$7*$C$8,$C$5,1,E52,Pilotage!$D$25))),\"\")","v":0},null,"","","","",{"$f":"IF(K52<>\"\",-1*CUMIPMT($C$6/$C$8,$C$7*$C$8,$C$5,M52,N52,Pilotage!$D$25),\"\")","v":""}]
[null,null,null,null,48,"2018-09-01",{"$f":"IF(E53<>\"\",IF($C$5=0,0,IF($C$6<=0,0,CUMIPMT($C$6/$C$8,$C$7*$C$8,$C$5,1,E53,Pilotage!$D$25))),\"\")","v":0},{"$f":"IF(E53<>\"\",IF($C$6<=0,0,IF($C$5=0,0,CUMIPMT($C$6/$C$8,$C$7*$C$8,$C$5,E53,E53,Pilotage!$D$25))),\"\")","v":0},{"$f":"IF(E53<>\"\",IF($C$5=0,0,IF($C$6<=0,C$13-E53*C$12,$C$5+CUMPRINC($C$6/$C$8,$C$7*$C$8,$C$5,1,E53,Pilotage!$D$25))),\"\")","v":0},null,"","","","",{"$f":"IF(K53<>\"\",-1*CUMIPMT($C$6/$C$8,$C$7*$C$8,$C$5,M53,N53,Pilotage!$D$25),\"\")","v":""}]
[null,null,null,null,49,"2018-10-01",{"$f":"IF(E54<>\"\",IF($C$5=0,0,IF($C$6<=0,0,CUMIPMT($C$6/$C$8,$C$7*$C$8,$C$5,1,E54,Pilotage!$D$25))),\"\")","v":0},{"$f":"IF(E54<>\"\",IF($C$6<=0,0,IF($C$5=0,0,CUMIPMT($C$6/$C$8,$C$7*$C$8,$C$5,E54,E54,Pilotage!$D$25))),\"\")","v":0},{"$f":"IF(E54<>\"\",IF($C$5=0,0,IF($C$6<=0,C$13-E54*C$12,$C$5+CUMPRINC($C$6/$C$8,$C$7*$C$8,$C$5,1,E54,Pilotage!$D$25))),\"\")","v":0},null,"","","","",{"$f":"IF(K54<>\"\",-1*CUMIPMT($C$6/$C$8,$C$7*$C$8,$C$5,M54,N54,Pilotage!$D$25),\"\")","v":""}]
[null,null,null,null,50,"2018-11-01",{"$f":"IF(E55<>\"\",IF($C$5=0,0,IF($C$6<=0,0,CUMIPMT($C$6/$C$8,$C$7*$C$8,$C$5,1,E55,Pilotage!$D$25))),\"\")","v":0},{"$f":"IF(E55<>\"\",IF($C$6<=0,0,IF($C$5=0,0,CUMIPMT($C$6/$C$8,$C$7*$C$8,$C$5,E55,E55,Pilotage!$D$25))),\"\")","v":0},{"$f":"IF(E55<>\"\",IF($C$5=0,0,IF($C$6<=0,C$13-E55*C$12,$C$5+CUMPRINC($C$6/$C$8,$C$7*$C$8,$C$5,1,E55,Pilotage!$D$25))),\"\")","v":0},null,"","","","",{"$f":"IF(K55<>\"\",-1*CUMIPMT($C$6/$C$8,$C$7*$C$8,$C$5,M55,N55,Pilotage!$D$25),\"\")","v":""}]
[null,null,null,null,51,"2018-12-01",{"$f":"IF(E56<>\"\",IF($C$5=0,0,IF($C$6<=0,0,CUMIPMT($C$6/$C$8,$C$7*$C$8,$C$5,1,E56,Pilotage!$D$25))),\"\")","v":0},{"$f":"IF(E56<>\"\",IF($C$6<=0,0,IF($C$5=0,0,CUMIPMT($C$6/$C$8,$C$7*$C$8,$C$5,E56,E56,Pilotage!$D$25))),\"\")","v":0},{"$f":"IF(E56<>\"\",IF($C$5=0,0,IF($C$6<=0,C$13-E56*C$12,$C$5+CUMPRINC($C$6/$C$8,$C$7*$C$8,$C$5,1,E56,Pilotage!$D$25))),\"\")","v":0},null,"","","","",{"$f":"IF(K56<>\"\",-1*CUMIPMT($C$6/$C$8,$C$7*$C$8,$C$5,M56,N56,Pilotage!$D$25),\"\")","v":""}]
[null,null,null,null,52,"2019-01-01",{"$f":"IF(E57<>\"\",IF($C$5=0,0,IF($C$6<=0,0,CUMIPMT($C$6/$C$8,$C$7*$C$8,$C$5,1,E57,Pilotage!$D$25))),\"\")","v":0},{"$f":"IF(E57<>\"\",IF($C$6<=0,0,IF($C$5=0,0,CUMIPMT($C$6/$C$8,$C$7*$C$8,$C$5,E57,E57,Pilotage!$D$25))),\"\")","v":0},{"$f":"IF(E57<>\"\",IF($C$5=0,0,IF($C$6<=0,C$13-E57*C$12,$C$5+CUMPRINC($C$6/$C$8,$C$7*$C$8,$C$5,1,E57,Pilotage!$D$25))),\"\")","v":0},null,"","","","",{"$f":"IF(K57<>\"\",-1*CUMIPMT($C$6/$C$8,$C$7*$C$8,$C$5,M57,N57,Pilotage!$D$25),\"\")","v":""}]
[null,null,null,null,53,"2019-02-01",{"$f":"IF(E58<>\"\",IF($C$5=0,0,IF($C$6<=0,0,CUMIPMT($C$6/$C$8,$C$7*$C$8,$C$5,1,E58,Pilotage!$D$25))),\"\")","v":0},{"$f":"IF(E58<>\"\",IF($C$6<=0,0,IF($C$5=0,0,CUMIPMT($C$6/$C$8,$C$7*$C$8,$C$5,E58,E58,Pilotage!$D$25))),\"\")","v":0},{"$f":"IF(E58<>\"\",IF($C$5=0,0,IF($C$6<=0,C$13-E58*C$12,$C$5+CUMPRINC($C$6/$C$8,$C$7*$C$8,$C$5,1,E58,Pilotage!$D$25))),\"\")","v":0},null,"","","","",{"$f":"IF(K58<>\"\",-1*CUMIPMT($C$6/$C$8,$C$7*$C$8,$C$5,M58,N58,Pilotage!$D$25),\"\")","v":""}]
[null,null,null,null,54,"2019-03-01",{"$f":"IF(E59<>\"\",IF($C$5=0,0,IF($C$6<=0,0,CUMIPMT($C$6/$C$8,$C$7*$C$8,$C$5,1,E59,Pilotage!$D$25))),\"\")","v":0},{"$f":"IF(E59<>\"\",IF($C$6<=0,0,IF($C$5=0,0,CUMIPMT($C$6/$C$8,$C$7*$C$8,$C$5,E59,E59,Pilotage!$D$25))),\"\")","v":0},{"$f":"IF(E59<>\"\",IF($C$5=0,0,IF($C$6<=0,C$13-E59*C$12,$C$5+CUMPRINC($C$6/$C$8,$C$7*$C$8,$C$5,1,E59,Pilotage!$D$25))),\"\")","v":0},null,"","","","",{"$f":"IF(K59<>\"\",-1*CUMIPMT($C$6/$C$8,$C$7*$C$8,$C$5,M59,N59,Pilotage!$D$25),\"\")","v":""}]
[null,null,null,null,55,"2019-04-01",{"$f":"IF(E60<>\"\",IF($C$5=0,0,IF($C$6<=0,0,CUMIPMT($C$6/$C$8,$C$7*$C$8,$C$5,1,E60,Pilotage!$D$25))),\"\")","v":0},{"$f":"IF(E60<>\"\",IF($C$6<=0,0,IF($C$5=0,0,CUMIPMT($C$6/$C$8,$C$7*$C$8,$C$5,E60,E60,Pilotage!$D$25))),\"\")","v":0},{"$f":"IF(E60<>\"\",IF($C$5=0,0,IF($C$6<=0,C$13-E60*C$12,$C$5+CUMPRINC($C$6/$C$8,$C$7*$C$8,$C$5,1,E60,Pilotage!$D$25))),\"\")","v":0},null,null,null,null,{"$f":"IF(K60<>\"\",K60*$C$8,\"\")","v":""},{"$f":"IF(K60<>\"\",-1*CUMIPMT($C$6/$C$8,$C$7*$C$8,$C$5,M60,N60,Pilotage!$D$25),\"\")","v":""}]
[null,null,null,null,56,"2019-05-01",{"$f":"IF(E61<>\"\",IF($C$5=0,0,IF($C$6<=0,0,CUMIPMT($C$6/$C$8,$C$7*$C$8,$C$5,1,E61,Pilotage!$D$25))),\"\")","v":0},{"$f":"IF(E61<>\"\",IF($C$6<=0,0,IF($C$5=0,0,CUMIPMT($C$6/$C$8,$C$7*$C$8,$C$5,E61,E61,Pilotage!$D$25))),\"\")","v":0},{"$f":"IF(E61<>\"\",IF($C$5=0,0,IF($C$6<=0,C$13-E61*C$12,$C$5+CUMPRINC($C$6/$C$8,$C$7*$C$8,$C$5,1,E61,Pilotage!$D$25))),\"\")","v":0},null,null,null,null,{"$f":"IF(K61<>\"\",K61*$C$8,\"\")","v":""},{"$f":"IF(K61<>\"\",-1*CUMIPMT($C$6/$C$8,$C$7*$C$8,$C$5,M61,N61,Pilotage!$D$25),\"\")","v":""}]
[null,null,null,null,57,"2019-06-01",{"$f":"IF(E62<>\"\",IF($C$5=0,0,IF($C$6<=0,0,CUMIPMT($C$6/$C$8,$C$7*$C$8,$C$5,1,E62,Pilotage!$D$25))),\"\")","v":0},{"$f":"IF(E62<>\"\",IF($C$6<=0,0,IF($C$5=0,0,CUMIPMT($C$6/$C$8,$C$7*$C$8,$C$5,E62,E62,Pilotage!$D$25))),\"\")","v":0},{"$f":"IF(E62<>\"\",IF($C$5=0,0,IF($C$6<=0,C$13-E62*C$12,$C$5+CUMPRINC($C$6/$C$8,$C$7*$C$8,$C$5,1,E62,Pilotage!$D$25))),\"\")","v":0},null,null,null,null,{"$f":"IF(K62<>\"\",K62*$C$8,\"\")","v":""},{"$f":"IF(K62<>\"\",-1*CUMIPMT($C$6/$C$8,$C$7*$C$8,$C$5,M62,N62,Pilotage!$D$25),\"\")","v":""}]
[null,null,null,null,58,"2019-07-01",{"$f":"IF(E63<>\"\",IF($C$5=0,0,IF($C$6<=0,0,CUMIPMT($C$6/$C$8,$C$7*$C$8,$C$5,1,E63,Pilotage!$D$25))),\"\")","v":0},{"$f":"IF(E63<>\"\",IF($C$6<=0,0,IF($C$5=0,0,CUMIPMT($C$6/$C$8,$C$7*$C$8,$C$5,E63,E63,Pilotage!$D$25))),\"\")","v":0},{"$f":"IF(E63<>\"\",IF($C$5=0,0,IF($C$6<=0,C$13-E63*C$12,$C$5+CUMPRINC($C$6/$C$8,$C$7*$C$8,$C$5,1,E63,Pilotage!$D$25))),\"\")","v":0},null,null,null,null,null,{"$f":"IF(K63<>\"\",-1*CUMIPMT($C$6/$C$8,$C$7*$C$8,$C$5,M63,N63,Pilotage!$D$25),\"\")","v":""}]
[null,null,null,null,59,"2019-08-01",{"$f":"IF(E64<>\"\",IF($C$5=0,0,IF($C$6<=0,0,CUMIPMT($C$6/$C$8,$C$7*$C$8,$C$5,1,E64,Pilotage!$D$25))),\"\")","v":0},{"$f":"IF(E64<>\"\",IF($C$6<=0,0,IF($C$5=0,0,CUMIPMT($C$6/$C$8,$C$7*$C$8,$C$5,E64,E64,Pilotage!$D$25))),\"\")","v":0},{"$f":"IF(E64<>\"\",IF($C$5=0,0,IF($C$6<=0,C$13-E64*C$12,$C$5+CUMPRINC($C$6/$C$8,$C$7*$C$8,$C$5,1,E64,Pilotage!$D$25))),\"\")","v":0},null,null,null,null,null,{"$f":"IF(K64<>\"\",-1*CUMIPMT($C$6/$C$8,$C$7*$C$8,$C$5,M64,N64,Pilotage!$D$25),\"\")","v":""}]
[null,null,null,null,60,"2019-09-01",{"$f":"IF(E65<>\"\",IF($C$5=0,0,IF($C$6<=0,0,CUMIPMT($C$6/$C$8,$C$7*$C$8,$C$5,1,E65,Pilotage!$D$25))),\"\")","v":0},{"$f":"IF(E65<>\"\",IF($C$6<=0,0,IF($C$5=0,0,CUMIPMT($C$6/$C$8,$C$7*$C$8,$C$5,E65,E65,Pilotage!$D$25))),\"\")","v":0},{"$f":"IF(E65<>\"\",IF($C$5=0,0,IF($C$6<=0,C$13-E65*C$12,$C$5+CUMPRINC($C$6/$C$8,$C$7*$C$8,$C$5,1,E65,Pilotage!$D$25))),\"\")","v":0},null,null,null,null,null,{"$f":"IF(K65<>\"\",-1*CUMIPMT($C$6/$C$8,$C$7*$C$8,$C$5,M65,N65,Pilotage!$D$25),\"\")","v":""}]
[null,null,null,null,"","",{"$f":"IF(E66<>\"\",IF($C$5=0,0,IF($C$6<=0,0,CUMIPMT($C$6/$C$8,$C$7*$C$8,$C$5,1,E66,Pilotage!$D$25))),\"\")","v":""},{"$f":"IF(E66<>\"\",IF($C$6<=0,0,IF($C$5=0,0,CUMIPMT($C$6/$C$8,$C$7*$C$8,$C$5,E66,E66,Pilotage!$D$25))),\"\")","v":""},{"$f":"IF(E66<>\"\",IF($C$5=0,0,IF($C$6<=0,C$13-E66*C$12,$C$5+CUMPRINC($C$6/$C$8,$C$7*$C$8,$C$5,1,E66,Pilotage!$D$25))),\"\")","v":""},null,null,null,null,null,{"$f":"IF(K66<>\"\",-1*CUMIPMT($C$6/$C$8,$C$7*$C$8,$C$5,M66,N66,Pilotage!$D$25),\"\")","v":""}]
[null,null,null,null,"","",{"$f":"IF(E67<>\"\",IF($C$5=0,0,IF($C$6<=0,0,CUMIPMT($C$6/$C$8,$C$7*$C$8,$C$5,1,E67,Pilotage!$D$25))),\"\")","v":""},{"$f":"IF(E67<>\"\",IF($C$6<=0,0,IF($C$5=0,0,CUMIPMT($C$6/$C$8,$C$7*$C$8,$C$5,E67,E67,Pilotage!$D$25))),\"\")","v":""},{"$f":"IF(E67<>\"\",IF($C$5=0,0,IF($C$6<=0,C$13-E67*C$12,$C$5+CUMPRINC($C$6/$C$8,$C$7*$C$8,$C$5,1,E67,Pilotage!$D$25))),\"\")","v":""},null,null,null,null,null,{"$f":"IF(K67<>\"\",-1*CUMIPMT($C$6/$C$8,$C$7*$C$8,$C$5,M67,N67,Pilotage!$D$25),\"\")","v":""}]
[null,null,null,null,"","",{"$f":"IF(E68<>\"\",IF($C$5=0,0,IF($C$6<=0,0,CUMIPMT($C$6/$C$8,$C$7*$C$8,$C$5,1,E68,Pilotage!$D$25))),\"\")","v":""},{"$f":"IF(E68<>\"\",IF($C$6<=0,0,IF($C$5=0,0,CUMIPMT($C$6/$C$8,$C$7*$C$8,$C$5,E68,E68,Pilotage!$D$25))),\"\")","v":""},{"$f":"IF(E68<>\"\",IF($C$5=0,0,IF($C$6<=0,C$13-E68*C$12,$C$5+CUMPRINC($C$6/$C$8,$C$7*$C$8,$C$5,1,E68,Pilotage!$D$25))),\"\")","v":""},null,null,null,null,null,{"$f":"IF(K68<>\"\",-1*CUMIPMT($C$6/$C$8,$C$7*$C$8,$C$5,M68,N68,Pilotage!$D$25),\"\")","v":""}]
[null,null,null,null,"","",{"$f":"IF(E69<>\"\",IF($C$5=0,0,IF($C$6<=0,0,CUMIPMT($C$6/$C$8,$C$7*$C$8,$C$5,1,E69,Pilotage!$D$25))),\"\")","v":""},{"$f":"IF(E69<>\"\",IF($C$6<=0,0,IF($C$5=0,0,CUMIPMT($C$6/$C$8,$C$7*$C$8,$C$5,E69,E69,Pilotage!$D$25))),\"\")","v":""},{"$f":"IF(E69<>\"\",IF($C$5=0,0,IF($C$6<=0,C$13-E69*C$12,$C$5+CUMPRINC($C$6/$C$8,$C$7*$C$8,$C$5,1,E69,Pilotage!$D$25))),\"\")","v":""},null,null,null,null,null,{"$f":"IF(K69<>\"\",-1*CUMIPMT($C$6/$C$8,$C$7*$C$8,$C$5,M69,N69,Pilotage!$D$25),\"\")","v":""}]
[null,null,null,null,"","",{"$f":"IF(E70<>\"\",IF($C$5=0,0,IF($C$6<=0,0,CUMIPMT($C$6/$C$8,$C$7*$C$8,$C$5,1,E70,Pilotage!$D$25))),\"\")","v":""},{"$f":"IF(E70<>\"\",IF($C$6<=0,0,IF($C$5=0,0,CUMIPMT($C$6/$C$8,$C$7*$C$8,$C$5,E70,E70,Pilotage!$D$25))),\"\")","v":""},{"$f":"IF(E70<>\"\",IF($C$5=0,0,IF($C$6<=0,C$13-E70*C$12,$C$5+CUMPRINC($C$6/$C$8,$C$7*$C$8,$C$5,1,E70,Pilotage!$D$25))),\"\")","v":""},null,null,null,null,null,{"$f":"IF(K70<>\"\",-1*CUMIPMT($C$6/$C$8,$C$7*$C$8,$C$5,M70,N70,Pilotage!$D$25),\"\")","v":""}]
[null,null,null,null,"","",{"$f":"IF(E71<>\"\",IF($C$5=0,0,IF($C$6<=0,0,CUMIPMT($C$6/$C$8,$C$7*$C$8,$C$5,1,E71,Pilotage!$D$25))),\"\")","v":""},{"$f":"IF(E71<>\"\",IF($C$6<=0,0,IF($C$5=0,0,CUMIPMT($C$6/$C$8,$C$7*$C$8,$C$5,E71,E71,Pilotage!$D$25))),\"\")","v":""},{"$f":"IF(E71<>\"\",IF($C$5=0,0,IF($C$6<=0,C$13-E71*C$12,$C$5+CUMPRINC($C$6/$C$8,$C$7*$C$8,$C$5,1,E71,Pilotage!$D$25))),\"\")","v":""},null,null,null,null,null,{"$f":"IF(K71<>\"\",-1*CUMIPMT($C$6/$C$8,$C$7*$C$8,$C$5,M71,N71,Pilotage!$D$25),\"\")","v":""}]
[null,null,null,null,{"$f":"IF(E71<$C$10,E71+1,\"\")","v":""},{"$f":"IF(E72<>\"\",EDATE(F71,$C$11),\"\")","v":""},{"$f":"IF(E72<>\"\",IF($C$5=0,0,IF($C$6<=0,0,CUMIPMT($C$6/$C$8,$C$7*$C$8,$C$5,1,E72,Pilotage!$D$25))),\"\")","v":""},{"$f":"IF(E72<>\"\",IF($C$6<=0,0,IF($C$5=0,0,CUMIPMT($C$6/$C$8,$C$7*$C$8,$C$5,E72,E72,Pilotage!$D$25))),\"\")","v":""},{"$f":"IF(E72<>\"\",IF($C$5=0,0,IF($C$6<=0,C$13-E72*C$12,$C$5+CUMPRINC($C$6/$C$8,$C$7*$C$8,$C$5,1,E72,Pilotage!$D$25))),\"\")","v":""},null,null,null,null,null,{"$f":"IF(K72<>\"\",-1*CUMIPMT($C$6/$C$8,$C$7*$C$8,$C$5,M72,N72,Pilotage!$D$25),\"\")","v":""}]
[null,null,null,null,"","",{"$f":"IF(E73<>\"\",IF($C$5=0,0,IF($C$6<=0,0,CUMIPMT($C$6/$C$8,$C$7*$C$8,$C$5,1,E73,Pilotage!$D$25))),\"\")","v":""},{"$f":"IF(E73<>\"\",IF($C$6<=0,0,IF($C$5=0,0,CUMIPMT($C$6/$C$8,$C$7*$C$8,$C$5,E73,E73,Pilotage!$D$25))),\"\")","v":""},{"$f":"IF(E73<>\"\",IF($C$5=0,0,IF($C$6<=0,C$13-E73*C$12,$C$5+CUMPRINC($C$6/$C$8,$C$7*$C$8,$C$5,1,E73,Pilotage!$D$25))),\"\")","v":""},null,null,null,null,null,{"$f":"IF(K73<>\"\",-1*CUMIPMT($C$6/$C$8,$C$7*$C$8,$C$5,M73,N73,Pilotage!$D$25),\"\")","v":""}]
[null,null,null,null,"","",{"$f":"IF(E74<>\"\",IF($C$5=0,0,IF($C$6<=0,0,CUMIPMT($C$6/$C$8,$C$7*$C$8,$C$5,1,E74,Pilotage!$D$25))),\"\")","v":""},{"$f":"IF(E74<>\"\",IF($C$6<=0,0,IF($C$5=0,0,CUMIPMT($C$6/$C$8,$C$7*$C$8,$C$5,E74,E74,Pilotage!$D$25))),\"\")","v":""},{"$f":"IF(E74<>\"\",IF($C$5=0,0,IF($C$6<=0,C$13-E74*C$12,$C$5+CUMPRINC($C$6/$C$8,$C$7*$C$8,$C$5,1,E74,Pilotage!$D$25))),\"\")","v":""},null,null,null,null,null,{"$f":"IF(K74<>\"\",-1*CUMIPMT($C$6/$C$8,$C$7*$C$8,$C$5,M74,N74,Pilotage!$D$25),\"\")","v":""}]
[null,null,null,null,"","",{"$f":"IF(E75<>\"\",IF($C$5=0,0,IF($C$6<=0,0,CUMIPMT($C$6/$C$8,$C$7*$C$8,$C$5,1,E75,Pilotage!$D$25))),\"\")","v":""},{"$f":"IF(E75<>\"\",IF($C$6<=0,0,IF($C$5=0,0,CUMIPMT($C$6/$C$8,$C$7*$C$8,$C$5,E75,E75,Pilotage!$D$25))),\"\")","v":""},{"$f":"IF(E75<>\"\",IF($C$5=0,0,IF($C$6<=0,C$13-E75*C$12,$C$5+CUMPRINC($C$6/$C$8,$C$7*$C$8,$C$5,1,E75,Pilotage!$D$25))),\"\")","v":""},null,null,null,null,null,{"$f":"IF(K75<>\"\",-1*CUMIPMT($C$6/$C$8,$C$7*$C$8,$C$5,M75,N75,Pilotage!$D$25),\"\")","v":""}]
[null,null,null,null,"","",{"$f":"IF(E76<>\"\",IF($C$5=0,0,IF($C$6<=0,0,CUMIPMT($C$6/$C$8,$C$7*$C$8,$C$5,1,E76,Pilotage!$D$25))),\"\")","v":""},{"$f":"IF(E76<>\"\",IF($C$6<=0,0,IF($C$5=0,0,CUMIPMT($C$6/$C$8,$C$7*$C$8,$C$5,E76,E76,Pilotage!$D$25))),\"\")","v":""},{"$f":"IF(E76<>\"\",IF($C$5=0,0,IF($C$6<=0,C$13-E76*C$12,$C$5+CUMPRINC($C$6/$C$8,$C$7*$C$8,$C$5,1,E76,Pilotage!$D$25))),\"\")","v":""},null,null,null,null,null,{"$f":"IF(K76<>\"\",-1*CUMIPMT($C$6/$C$8,$C$7*$C$8,$C$5,M76,N76,Pilotage!$D$25),\"\")","v":""}]
[null,null,null,null,"","",{"$f":"IF(E77<>\"\",IF($C$5=0,0,IF($C$6<=0,0,CUMIPMT($C$6/$C$8,$C$7*$C$8,$C$5,1,E77,Pilotage!$D$25))),\"\")","v":""},{"$f":"IF(E77<>\"\",IF($C$6<=0,0,IF($C$5=0,0,CUMIPMT($C$6/$C$8,$C$7*$C$8,$C$5,E77,E77,Pilotage!$D$25))),\"\")","v":""},{"$f":"IF(E77<>\"\",IF($C$5=0,0,IF($C$6<=0,C$13-E77*C$12,$C$5+CUMPRINC($C$6/$C$8,$C$7*$C$8,$C$5,1,E77,Pilotage!$D$25))),\"\")","v":""},null,null,null,null,null,{"$f":"IF(K77<>\"\",-1*CUMIPMT($C$6/$C$8,$C$7*$C$8,$C$5,M77,N77,Pilotage!$D$25),\"\")","v":""}]
[null,null,null,null,"","",{"$f":"IF(E78<>\"\",IF($C$5=0,0,IF($C$6<=0,0,CUMIPMT($C$6/$C$8,$C$7*$C$8,$C$5,1,E78,Pilotage!$D$25))),\"\")","v":""},{"$f":"IF(E78<>\"\",IF($C$6<=0,0,IF($C$5=0,0,CUMIPMT($C$6/$C$8,$C$7*$C$8,$C$5,E78,E78,Pilotage!$D$25))),\"\")","v":""},{"$f":"IF(E78<>\"\",IF($C$5=0,0,IF($C$6<=0,C$13-E78*C$12,$C$5+CUMPRINC($C$6/$C$8,$C$7*$C$8,$C$5,1,E78,Pilotage!$D$25))),\"\")","v":""},null,null,null,null,null,{"$f":"IF(K78<>\"\",-1*CUMIPMT($C$6/$C$8,$C$7*$C$8,$C$5,M78,N78,Pilotage!$D$25),\"\")","v":""}]
[null,null,null,null,"","",{"$f":"IF(E79<>\"\",IF($C$5=0,0,IF($C$6<=0,0,CUMIPMT($C$6/$C$8,$C$7*$C$8,$C$5,1,E79,Pilotage!$D$25))),\"\")","v":""},{"$f":"IF(E79<>\"\",IF($C$6<=0,0,IF($C$5=0,0,CUMIPMT($C$6/$C$8,$C$7*$C$8,$C$5,E79,E79,Pilotage!$D$25))),\"\")","v":""},{"$f":"IF(E79<>\"\",IF($C$5=0,0,IF($C$6<=0,C$13-E79*C$12,$C$5+CUMPRINC($C$6/$C$8,$C$7*$C$8,$C$5,1,E79,Pilotage!$D$25))),\"\")","v":""},null,null,null,null,null,{"$f":"IF(K79<>\"\",-1*CUMIPMT($C$6/$C$8,$C$7*$C$8,$C$5,M79,N79,Pilotage!$D$25),\"\")","v":""}]
[null,null,null,null,"","",{"$f":"IF(E80<>\"\",IF($C$5=0,0,IF($C$6<=0,0,CUMIPMT($C$6/$C$8,$C$7*$C$8,$C$5,1,E80,Pilotage!$D$25))),\"\")","v":""},{"$f":"IF(E80<>\"\",IF($C$6<=0,0,IF($C$5=0,0,CUMIPMT($C$6/$C$8,$C$7*$C$8,$C$5,E80,E80,Pilotage!$D$25))),\"\")","v":""},{"$f":"IF(E80<>\"\",IF($C$5=0,0,IF($C$6<=0,C$13-E80*C$12,$C$5+CUMPRINC($C$6/$C$8,$C$7*$C$8,$C$5,1,E80,Pilotage!$D$25))),\"\")","v":""},null,null,null,null,null,{"$f":"IF(K80<>\"\",-1*CUMIPMT($C$6/$C$8,$C$7*$C$8,$C$5,M80,N80,Pilotage!$D$25),\"\")","v":""}]
[null,null,null,null,"","",{"$f":"IF(E81<>\"\",IF($C$5=0,0,IF($C$6<=0,0,CUMIPMT($C$6/$C$8,$C$7*$C$8,$C$5,1,E81,Pilotage!$D$25))),\"\")","v":""},{"$f":"IF(E81<>\"\",IF($C$6<=0,0,IF($C$5=0,0,CUMIPMT($C$6/$C$8,$C$7*$C$8,$C$5,E81,E81,Pilotage!$D$25))),\"\")","v":""},{"$f":"IF(E81<>\"\",IF($C$5=0,0,IF($C$6<=0,C$13-E81*C$12,$C$5+CUMPRINC($C$6/$C$8,$C$7*$C$8,$C$5,1,E81,Pilotage!$D$25))),\"\")","v":""},null,null,null,null,null,{"$f":"IF(K81<>\"\",-1*CUMIPMT($C$6/$C$8,$C$7*$C$8,$C$5,M81,N81,Pilotage!$D$25),\"\")","v":""}]
[null,null,null,null,"","",{"$f":"IF(E82<>\"\",IF($C$5=0,0,IF($C$6<=0,0,CUMIPMT($C$6/$C$8,$C$7*$C$8,$C$5,1,E82,Pilotage!$D$25))),\"\")","v":""},{"$f":"IF(E82<>\"\",IF($C$6<=0,0,IF($C$5=0,0,CUMIPMT($C$6/$C$8,$C$7*$C$8,$C$5,E82,E82,Pilotage!$D$25))),\"\")","v":""},{"$f":"IF(E82<>\"\",IF($C$5=0,0,IF($C$6<=0,C$13-E82*C$12,$C$5+CUMPRINC($C$6/$C$8,$C$7*$C$8,$C$5,1,E82,Pilotage!$D$25))),\"\")","v":""},null,null,null,null,null,{"$f":"IF(K82<>\"\",-1*CUMIPMT($C$6/$C$8,$C$7*$C$8,$C$5,M82,N82,Pilotage!$D$25),\"\")","v":""}]
[null,null,null,null,"","",{"$f":"IF(E83<>\"\",IF($C$5=0,0,IF($C$6<=0,0,CUMIPMT($C$6/$C$8,$C$7*$C$8,$C$5,1,E83,Pilotage!$D$25))),\"\")","v":""},{"$f":"IF(E83<>\"\",IF($C$6<=0,0,IF($C$5=0,0,CUMIPMT($C$6/$C$8,$C$7*$C$8,$C$5,E83,E83,Pilotage!$D$25))),\"\")","v":""},{"$f":"IF(E83<>\"\",IF($C$5=0,0,IF($C$6<=0,C$13-E83*C$12,$C$5+CUMPRINC($C$6/$C$8,$C$7*$C$8,$C$5,1,E83,Pilotage!$D$25))),\"\")","v":""},null,null,null,null,null,{"$f":"IF(K83<>\"\",-1*CUMIPMT($C$6/$C$8,$C$7*$C$8,$C$5,M83,N83,Pilotage!$D$25),\"\")","v":""}]
[null,null,null,null,"","",{"$f":"IF(E84<>\"\",IF($C$5=0,0,IF($C$6<=0,0,CUMIPMT($C$6/$C$8,$C$7*$C$8,$C$5,1,E84,Pilotage!$D$25))),\"\")","v":""},{"$f":"IF(E84<>\"\",IF($C$6<=0,0,IF($C$5=0,0,CUMIPMT($C$6/$C$8,$C$7*$C$8,$C$5,E84,E84,Pilotage!$D$25))),\"\")","v":""},{"$f":"IF(E84<>\"\",IF($C$5=0,0,IF($C$6<=0,C$13-E84*C$12,$C$5+CUMPRINC($C$6/$C$8,$C$7*$C$8,$C$5,1,E84,Pilotage!$D$25))),\"\")","v":""},null,null,null,null,null,{"$f":"IF(K84<>\"\",-1*CUMIPMT($C$6/$C$8,$C$7*$C$8,$C$5,M84,N84,Pilotage!$D$25),\"\")","v":""}]
[null,null,null,null,"","",{"$f":"IF(E85<>\"\",IF($C$5=0,0,IF($C$6<=0,0,CUMIPMT($C$6/$C$8,$C$7*$C$8,$C$5,1,E85,Pilotage!$D$25))),\"\")","v":""},{"$f":"IF(E85<>\"\",IF($C$6<=0,0,IF($C$5=0,0,CUMIPMT($C$6/$C$8,$C$7*$C$8,$C$5,E85,E85,Pilotage!$D$25))),\"\")","v":""},{"$f":"IF(E85<>\"\",IF($C$5=0,0,IF($C$6<=0,C$13-E85*C$12,$C$5+CUMPRINC($C$6/$C$8,$C$7*$C$8,$C$5,1,E85,Pilotage!$D$25))),\"\")","v":""},null,null,null,null,null,{"$f":"IF(K85<>\"\",-1*CUMIPMT($C$6/$C$8,$C$7*$C$8,$C$5,M85,N85,Pilotage!$D$25),\"\")","v":""}]
[null,null,null,null,"","",{"$f":"IF(E86<>\"\",IF($C$5=0,0,IF($C$6<=0,0,CUMIPMT($C$6/$C$8,$C$7*$C$8,$C$5,1,E86,Pilotage!$D$25))),\"\")","v":""},{"$f":"IF(E86<>\"\",IF($C$6<=0,0,IF($C$5=0,0,CUMIPMT($C$6/$C$8,$C$7*$C$8,$C$5,E86,E86,Pilotage!$D$25))),\"\")","v":""},{"$f":"IF(E86<>\"\",IF($C$5=0,0,IF($C$6<=0,C$13-E86*C$12,$C$5+CUMPRINC($C$6/$C$8,$C$7*$C$8,$C$5,1,E86,Pilotage!$D$25))),\"\")","v":""},null,null,null,null,null,{"$f":"IF(K86<>\"\",-1*CUMIPMT($C$6/$C$8,$C$7*$C$8,$C$5,M86,N86,Pilotage!$D$25),\"\")","v":""}]
[null,null,null,null,"","",{"$f":"IF(E87<>\"\",IF($C$5=0,0,IF($C$6<=0,0,CUMIPMT($C$6/$C$8,$C$7*$C$8,$C$5,1,E87,Pilotage!$D$25))),\"\")","v":""},{"$f":"IF(E87<>\"\",IF($C$6<=0,0,IF($C$5=0,0,CUMIPMT($C$6/$C$8,$C$7*$C$8,$C$5,E87,E87,Pilotage!$D$25))),\"\")","v":""},{"$f":"IF(E87<>\"\",IF($C$5=0,0,IF($C$6<=0,C$13-E87*C$12,$C$5+CUMPRINC($C$6/$C$8,$C$7*$C$8,$C$5,1,E87,Pilotage!$D$25))),\"\")","v":""},null,null,null,null,null,{"$f":"IF(K87<>\"\",-1*CUMIPMT($C$6/$C$8,$C$7*$C$8,$C$5,M87,N87,Pilotage!$D$25),\"\")","v":""}]
[null,null,null,null,"","",{"$f":"IF(E88<>\"\",IF($C$5=0,0,IF($C$6<=0,0,CUMIPMT($C$6/$C$8,$C$7*$C$8,$C$5,1,E88,Pilotage!$D$25))),\"\")","v":""},{"$f":"IF(E88<>\"\",IF($C$6<=0,0,IF($C$5=0,0,CUMIPMT($C$6/$C$8,$C$7*$C$8,$C$5,E88,E88,Pilotage!$D$25))),\"\")","v":""},{"$f":"IF(E88<>\"\",IF($C$5=0,0,IF($C$6<=0,C$13-E88*C$12,$C$5+CUMPRINC($C$6/$C$8,$C$7*$C$8,$C$5,1,E88,Pilotage!$D$25))),\"\")","v":""},null,null,null,null,null,{"$f":"IF(K88<>\"\",-1*CUMIPMT($C$6/$C$8,$C$7*$C$8,$C$5,M88,N88,Pilotage!$D$25),\"\")","v":""}]
[null,null,null,null,"","",{"$f":"IF(E89<>\"\",IF($C$5=0,0,IF($C$6<=0,0,CUMIPMT($C$6/$C$8,$C$7*$C$8,$C$5,1,E89,Pilotage!$D$25))),\"\")","v":""},{"$f":"IF(E89<>\"\",IF($C$6<=0,0,IF($C$5=0,0,CUMIPMT($C$6/$C$8,$C$7*$C$8,$C$5,E89,E89,Pilotage!$D$25))),\"\")","v":""},{"$f":"IF(E89<>\"\",IF($C$5=0,0,IF($C$6<=0,C$13-E89*C$12,$C$5+CUMPRINC($C$6/$C$8,$C$7*$C$8,$C$5,1,E89,Pilotage!$D$25))),\"\")","v":""},null,null,null,null,null,{"$f":"IF(K89<>\"\",-1*CUMIPMT($C$6/$C$8,$C$7*$C$8,$C$5,M89,N89,Pilotage!$D$25),\"\")","v":""}]
[null,null,null,null,"","",{"$f":"IF(E90<>\"\",IF($C$5=0,0,IF($C$6<=0,0,CUMIPMT($C$6/$C$8,$C$7*$C$8,$C$5,1,E90,Pilotage!$D$25))),\"\")","v":""},{"$f":"IF(E90<>\"\",IF($C$6<=0,0,IF($C$5=0,0,CUMIPMT($C$6/$C$8,$C$7*$C$8,$C$5,E90,E90,Pilotage!$D$25))),\"\")","v":""},{"$f":"IF(E90<>\"\",IF($C$5=0,0,IF($C$6<=0,C$13-E90*C$12,$C$5+CUMPRINC($C$6/$C$8,$C$7*$C$8,$C$5,1,E90,Pilotage!$D$25))),\"\")","v":""},null,null,null,null,null,{"$f":"IF(K90<>\"\",-1*CUMIPMT($C$6/$C$8,$C$7*$C$8,$C$5,M90,N90,Pilotage!$D$25),\"\")","v":""}]
[null,null,null,null,"","",{"$f":"IF(E91<>\"\",IF($C$5=0,0,IF($C$6<=0,0,CUMIPMT($C$6/$C$8,$C$7*$C$8,$C$5,1,E91,Pilotage!$D$25))),\"\")","v":""},{"$f":"IF(E91<>\"\",IF($C$6<=0,0,IF($C$5=0,0,CUMIPMT($C$6/$C$8,$C$7*$C$8,$C$5,E91,E91,Pilotage!$D$25))),\"\")","v":""},{"$f":"IF(E91<>\"\",IF($C$5=0,0,IF($C$6<=0,C$13-E91*C$12,$C$5+CUMPRINC($C$6/$C$8,$C$7*$C$8,$C$5,1,E91,Pilotage!$D$25))),\"\")","v":""},null,null,null,null,null,{"$f":"IF(K91<>\"\",-1*CUMIPMT($C$6/$C$8,$C$7*$C$8,$C$5,M91,N91,Pilotage!$D$25),\"\")","v":""}]
[null,null,null,null,"","",{"$f":"IF(E92<>\"\",IF($C$5=0,0,IF($C$6<=0,0,CUMIPMT($C$6/$C$8,$C$7*$C$8,$C$5,1,E92,Pilotage!$D$25))),\"\")","v":""},{"$f":"IF(E92<>\"\",IF($C$6<=0,0,IF($C$5=0,0,CUMIPMT($C$6/$C$8,$C$7*$C$8,$C$5,E92,E92,Pilotage!$D$25))),\"\")","v":""},{"$f":"IF(E92<>\"\",IF($C$5=0,0,IF($C$6<=0,C$13-E92*C$12,$C$5+CUMPRINC($C$6/$C$8,$C$7*$C$8,$C$5,1,E92,Pilotage!$D$25))),\"\")","v":""},null,null,null,null,null,{"$f":"IF(K92<>\"\",-1*CUMIPMT($C$6/$C$8,$C$7*$C$8,$C$5,M92,N92,Pilotage!$D$25),\"\")","v":""}]
[null,null,null,null,"","",{"$f":"IF(E93<>\"\",IF($C$5=0,0,IF($C$6<=0,0,CUMIPMT($C$6/$C$8,$C$7*$C$8,$C$5,1,E93,Pilotage!$D$25))),\"\")","v":""},{"$f":"IF(E93<>\"\",IF($C$6<=0,0,IF($C$5=0,0,CUMIPMT($C$6/$C$8,$C$7*$C$8,$C$5,E93,E93,Pilotage!$D$25))),\"\")","v":""},{"$f":"IF(E93<>\"\",IF($C$5=0,0,IF($C$6<=0,C$13-E93*C$12,$C$5+CUMPRINC($C$6/$C$8,$C$7*$C$8,$C$5,1,E93,Pilotage!$D$25))),\"\")","v":""},null,null,null,null,null,{"$f":"IF(K93<>\"\",-1*CUMIPMT($C$6/$C$8,$C$7*$C$8,$C$5,M93,N93,Pilotage!$D$25),\"\")","v":""}]
[null,null,null,null,"","",{"$f":"IF(E94<>\"\",IF($C$5=0,0,IF($C$6<=0,0,CUMIPMT($C$6/$C$8,$C$7*$C$8,$C$5,1,E94,Pilotage!$D$25))),\"\")","v":""},{"$f":"IF(E94<>\"\",IF($C$6<=0,0,IF($C$5=0,0,CUMIPMT($C$6/$C$8,$C$7*$C$8,$C$5,E94,E94,Pilotage!$D$25))),\"\")","v":""},{"$f":"IF(E94<>\"\",IF($C$5=0,0,IF($C$6<=0,C$13-E94*C$12,$C$5+CUMPRINC($C$6/$C$8,$C$7*$C$8,$C$5,1,E94,Pilotage!$D$25))),\"\")","v":""},null,null,null,null,null,{"$f":"IF(K94<>\"\",-1*CUMIPMT($C$6/$C$8,$C$7*$C$8,$C$5,M94,N94,Pilotage!$D$25),\"\")","v":""}]
[null,null,null,null,"","",{"$f":"IF(E95<>\"\",IF($C$5=0,0,IF($C$6<=0,0,CUMIPMT($C$6/$C$8,$C$7*$C$8,$C$5,1,E95,Pilotage!$D$25))),\"\")","v":""},{"$f":"IF(E95<>\"\",IF($C$6<=0,0,IF($C$5=0,0,CUMIPMT($C$6/$C$8,$C$7*$C$8,$C$5,E95,E95,Pilotage!$D$25))),\"\")","v":""},{"$f":"IF(E95<>\"\",IF($C$5=0,0,IF($C$6<=0,C$13-E95*C$12,$C$5+CUMPRINC($C$6/$C$8,$C$7*$C$8,$C$5,1,E95,Pilotage!$D$25))),\"\")","v":""},null,null,null,null,null,{"$f":"IF(K95<>\"\",-1*CUMIPMT($C$6/$C$8,$C$7*$C$8,$C$5,M95,N95,Pilotage!$D$25),\"\")","v":""}]
[null,null,null,null,"","",{"$f":"IF(E96<>\"\",IF($C$5=0,0,IF($C$6<=0,0,CUMIPMT($C$6/$C$8,$C$7*$C$8,$C$5,1,E96,Pilotage!$D$25))),\"\")","v":""},{"$f":"IF(E96<>\"\",IF($C$6<=0,0,IF($C$5=0,0,CUMIPMT($C$6/$C$8,$C$7*$C$8,$C$5,E96,E96,Pilotage!$D$25))),\"\")","v":""},{"$f":"IF(E96<>\"\",IF($C$5=0,0,IF($C$6<=0,C$13-E96*C$12,$C$5+CUMPRINC($C$6/$C$8,$C$7*$C$8,$C$5,1,E96,Pilotage!$D$25))),\"\")","v":""},null,null,null,null,null,{"$f":"IF(K96<>\"\",-1*CUMIPMT($C$6/$C$8,$C$7*$C$8,$C$5,M96,N96,Pilotage!$D$25),\"\")","v":""}]
[null,null,null,null,"","",{"$f":"IF(E97<>\"\",IF($C$5=0,0,IF($C$6<=0,0,CUMIPMT($C$6/$C$8,$C$7*$C$8,$C$5,1,E97,Pilotage!$D$25))),\"\")","v":""},{"$f":"IF(E97<>\"\",IF($C$6<=0,0,IF($C$5=0,0,CUMIPMT($C$6/$C$8,$C$7*$C$8,$C$5,E97,E97,Pilotage!$D$25))),\"\")","v":""},{"$f":"IF(E97<>\"\",IF($C$5=0,0,IF($C$6<=0,C$13-E97*C$12,$C$5+CUMPRINC($C$6/$C$8,$C$7*$C$8,$C$5,1,E97,Pilotage!$D$25))),\"\")","v":""},null,null,null,null,null,{"$f":"IF(K97<>\"\",-1*CUMIPMT($C$6/$C$8,$C$7*$C$8,$C$5,M97,N97,Pilotage!$D$25),\"\")","v":""}]
[null,null,null,null,"","",{"$f":"IF(E98<>\"\",IF($C$5=0,0,IF($C$6<=0,0,CUMIPMT($C$6/$C$8,$C$7*$C$8,$C$5,1,E98,Pilotage!$D$25))),\"\")","v":""},{"$f":"IF(E98<>\"\",IF($C$6<=0,0,IF($C$5=0,0,CUMIPMT($C$6/$C$8,$C$7*$C$8,$C$5,E98,E98,Pilotage!$D$25))),\"\")","v":""},{"$f":"IF(E98<>\"\",IF($C$5=0,0,IF($C$6<=0,C$13-E98*C$12,$C$5+CUMPRINC($C$6/$C$8,$C$7*$C$8,$C$5,1,E98,Pilotage!$D$25))),\"\")","v":""},null,null,null,null,null,{"$f":"IF(K98<>\"\",-1*CUMIPMT($C$6/$C$8,$C$7*$C$8,$C$5,M98,N98,Pilotage!$D$25),\"\")","v":""}]
[null,null,null,null,"","",{"$f":"IF(E99<>\"\",IF($C$5=0,0,IF($C$6<=0,0,CUMIPMT($C$6/$C$8,$C$7*$C$8,$C$5,1,E99,Pilotage!$D$25))),\"\")","v":""},{"$f":"IF(E99<>\"\",IF($C$6<=0,0,IF($C$5=0,0,CUMIPMT($C$6/$C$8,$C$7*$C$8,$C$5,E99,E99,Pilotage!$D$25))),\"\")","v":""},{"$f":"IF(E99<>\"\",IF($C$5=0,0,IF($C$6<=0,C$13-E99*C$12,$C$5+CUMPRINC($C$6/$C$8,$C$7*$C$8,$C$5,1,E99,Pilotage!$D$25))),\"\")","v":""},null,null,null,null,null,{"$f":"IF(K99<>\"\",-1*CUMIPMT($C$6/$C$8,$C$7*$C$8,$C$5,M99,N99,Pilotage!$D$25),\"\")","v":""}]
[null,null,null,null,"","",{"$f":"IF(E100<>\"\",IF($C$5=0,0,IF($C$6<=0,0,CUMIPMT($C$6/$C$8,$C$7*$C$8,$C$5,1,E100,Pilotage!$D$25))),\"\")","v":""},{"$f":"IF(E100<>\"\",IF($C$6<=0,0,IF($C$5=0,0,CUMIPMT($C$6/$C$8,$C$7*$C$8,$C$5,E100,E100,Pilotage!$D$25))),\"\")","v":""},{"$f":"IF(E100<>\"\",IF($C$5=0,0,IF($C$6<=0,C$13-E100*C$12,$C$5+CUMPRINC($C$6/$C$8,$C$7*$C$8,$C$5,1,E100,Pilotage!$D$25))),\"\")","v":""},null,null,null,null,null,{"$f":"IF(K100<>\"\",-1*CUMIPMT($C$6/$C$8,$C$7*$C$8,$C$5,M100,N100,Pilotage!$D$25),\"\")","v":""}]
[null,null,null,null,"","",{"$f":"IF(E101<>\"\",IF($C$5=0,0,IF($C$6<=0,0,CUMIPMT($C$6/$C$8,$C$7*$C$8,$C$5,1,E101,Pilotage!$D$25))),\"\")","v":""},{"$f":"IF(E101<>\"\",IF($C$6<=0,0,IF($C$5=0,0,CUMIPMT($C$6/$C$8,$C$7*$C$8,$C$5,E101,E101,Pilotage!$D$25))),\"\")","v":""},{"$f":"IF(E101<>\"\",IF($C$5=0,0,IF($C$6<=0,C$13-E101*C$12,$C$5+CUMPRINC($C$6/$C$8,$C$7*$C$8,$C$5,1,E101,Pilotage!$D$25))),\"\")","v":""},null,null,null,null,null,{"$f":"IF(K101<>\"\",-1*CUMIPMT($C$6/$C$8,$C$7*$C$8,$C$5,M101,N101,Pilotage!$D$25),\"\")","v":""}]
[null,null,null,null,"","",{"$f":"IF(E102<>\"\",IF($C$5=0,0,IF($C$6<=0,0,CUMIPMT($C$6/$C$8,$C$7*$C$8,$C$5,1,E102,Pilotage!$D$25))),\"\")","v":""},{"$f":"IF(E102<>\"\",IF($C$6<=0,0,IF($C$5=0,0,CUMIPMT($C$6/$C$8,$C$7*$C$8,$C$5,E102,E102,Pilotage!$D$25))),\"\")","v":""},{"$f":"IF(E102<>\"\",IF($C$5=0,0,IF($C$6<=0,C$13-E102*C$12,$C$5+CUMPRINC($C$6/$C$8,$C$7*$C$8,$C$5,1,E102,Pilotage!$D$25))),\"\")","v":""},null,null,null,null,null,{"$f":"IF(K102<>\"\",-1*CUMIPMT($C$6/$C$8,$C$7*$C$8,$C$5,M102,N102,Pilotage!$D$25),\"\")","v":""}]
[null,null,null,null,"","",{"$f":"IF(E103<>\"\",IF($C$5=0,0,IF($C$6<=0,0,CUMIPMT($C$6/$C$8,$C$7*$C$8,$C$5,1,E103,Pilotage!$D$25))),\"\")","v":""},{"$f":"IF(E103<>\"\",IF($C$6<=0,0,IF($C$5=0,0,CUMIPMT($C$6/$C$8,$C$7*$C$8,$C$5,E103,E103,Pilotage!$D$25))),\"\")","v":""},{"$f":"IF(E103<>\"\",IF($C$5=0,0,IF($C$6<=0,C$13-E103*C$12,$C$5+CUMPRINC($C$6/$C$8,$C$7*$C$8,$C$5,1,E103,Pilotage!$D$25))),\"\")","v":""},null,null,null,null,null,{"$f":"IF(K103<>\"\",-1*CUMIPMT($C$6/$C$8,$C$7*$C$8,$C$5,M103,N103,Pilotage!$D$25),\"\")","v":""}]
[null,null,null,null,"","",{"$f":"IF(E104<>\"\",IF($C$5=0,0,IF($C$6<=0,0,CUMIPMT($C$6/$C$8,$C$7*$C$8,$C$5,1,E104,Pilotage!$D$25))),\"\")","v":""},{"$f":"IF(E104<>\"\",IF($C$6<=0,0,IF($C$5=0,0,CUMIPMT($C$6/$C$8,$C$7*$C$8,$C$5,E104,E104,Pilotage!$D$25))),\"\")","v":""},{"$f":"IF(E104<>\"\",IF($C$5=0,0,IF($C$6<=0,C$13-E104*C$12,$C$5+CUMPRINC($C$6/$C$8,$C$7*$C$8,$C$5,1,E104,Pilotage!$D$25))),\"\")","v":""},null,null,null,null,null,{"$f":"IF(K104<>\"\",-1*CUMIPMT($C$6/$C$8,$C$7*$C$8,$C$5,M104,N104,Pilotage!$D$25),\"\")","v":""}]
[null,null,null,null,"","",{"$f":"IF(E105<>\"\",IF($C$5=0,0,IF($C$6<=0,0,CUMIPMT($C$6/$C$8,$C$7*$C$8,$C$5,1,E105,Pilotage!$D$25))),\"\")","v":""},{"$f":"IF(E105<>\"\",IF($C$6<=0,0,IF($C$5=0,0,CUMIPMT($C$6/$C$8,$C$7*$C$8,$C$5,E105,E105,Pilotage!$D$25))),\"\")","v":""},{"$f":"IF(E105<>\"\",IF($C$5=0,0,IF($C$6<=0,C$13-E105*C$12,$C$5+CUMPRINC($C$6/$C$8,$C$7*$C$8,$C$5,1,E105,Pilotage!$D$25))),\"\")","v":""},null,null,null,null,null,{"$f":"IF(K105<>\"\",-1*CUMIPMT($C$6/$C$8,$C$7*$C$8,$C$5,M105,N105,Pilotage!$D$25),\"\")","v":""}]
[null,null,null,null,"","",{"$f":"IF(E106<>\"\",IF($C$5=0,0,IF($C$6<=0,0,CUMIPMT($C$6/$C$8,$C$7*$C$8,$C$5,1,E106,Pilotage!$D$25))),\"\")","v":""},{"$f":"IF(E106<>\"\",IF($C$6<=0,0,IF($C$5=0,0,CUMIPMT($C$6/$C$8,$C$7*$C$8,$C$5,E106,E106,Pilotage!$D$25))),\"\")","v":""},{"$f":"IF(E106<>\"\",IF($C$5=0,0,IF($C$6<=0,C$13-E106*C$12,$C$5+CUMPRINC($C$6/$C$8,$C$7*$C$8,$C$5,1,E106,Pilotage!$D$25))),\"\")","v":""},null,null,null,null,null,{"$f":"IF(K106<>\"\",-1*CUMIPMT($C$6/$C$8,$C$7*$C$8,$C$5,M106,N106,Pilotage!$D$25),\"\")","v":""}]
[null,null,null,null,"","",{"$f":"IF(E107<>\"\",IF($C$5=0,0,IF($C$6<=0,0,CUMIPMT($C$6/$C$8,$C$7*$C$8,$C$5,1,E107,Pilotage!$D$25))),\"\")","v":""},{"$f":"IF(E107<>\"\",IF($C$6<=0,0,IF($C$5=0,0,CUMIPMT($C$6/$C$8,$C$7*$C$8,$C$5,E107,E107,Pilotage!$D$25))),\"\")","v":""},{"$f":"IF(E107<>\"\",IF($C$5=0,0,IF($C$6<=0,C$13-E107*C$12,$C$5+CUMPRINC($C$6/$C$8,$C$7*$C$8,$C$5,1,E107,Pilotage!$D$25))),\"\")","v":""},null,null,null,null,null,{"$f":"IF(K107<>\"\",-1*CUMIPMT($C$6/$C$8,$C$7*$C$8,$C$5,M107,N107,Pilotage!$D$25),\"\")","v":""}]
[null,null,null,null,"","",{"$f":"IF(E108<>\"\",IF($C$5=0,0,IF($C$6<=0,0,CUMIPMT($C$6/$C$8,$C$7*$C$8,$C$5,1,E108,Pilotage!$D$25))),\"\")","v":""},{"$f":"IF(E108<>\"\",IF($C$6<=0,0,IF($C$5=0,0,CUMIPMT($C$6/$C$8,$C$7*$C$8,$C$5,E108,E108,Pilotage!$D$25))),\"\")","v":""},{"$f":"IF(E108<>\"\",IF($C$5=0,0,IF($C$6<=0,C$13-E108*C$12,$C$5+CUMPRINC($C$6/$C$8,$C$7*$C$8,$C$5,1,E108,Pilotage!$D$25))),\"\")","v":""},null,null,null,null,null,{"$f":"IF(K108<>\"\",-1*CUMIPMT($C$6/$C$8,$C$7*$C$8,$C$5,M108,N108,Pilotage!$D$25),\"\")","v":""}]
[null,null,null,null,"","",{"$f":"IF(E109<>\"\",IF($C$5=0,0,IF($C$6<=0,0,CUMIPMT($C$6/$C$8,$C$7*$C$8,$C$5,1,E109,Pilotage!$D$25))),\"\")","v":""},{"$f":"IF(E109<>\"\",IF($C$6<=0,0,IF($C$5=0,0,CUMIPMT($C$6/$C$8,$C$7*$C$8,$C$5,E109,E109,Pilotage!$D$25))),\"\")","v":""},{"$f":"IF(E109<>\"\",IF($C$5=0,0,IF($C$6<=0,C$13-E109*C$12,$C$5+CUMPRINC($C$6/$C$8,$C$7*$C$8,$C$5,1,E109,Pilotage!$D$25))),\"\")","v":""},null,null,null,null,null,{"$f":"IF(K109<>\"\",-1*CUMIPMT($C$6/$C$8,$C$7*$C$8,$C$5,M109,N109,Pilotage!$D$25),\"\")","v":""}]
[null,null,null,null,"","",{"$f":"IF(E110<>\"\",IF($C$5=0,0,IF($C$6<=0,0,CUMIPMT($C$6/$C$8,$C$7*$C$8,$C$5,1,E110,Pilotage!$D$25))),\"\")","v":""},{"$f":"IF(E110<>\"\",IF($C$6<=0,0,IF($C$5=0,0,CUMIPMT($C$6/$C$8,$C$7*$C$8,$C$5,E110,E110,Pilotage!$D$25))),\"\")","v":""},{"$f":"IF(E110<>\"\",IF($C$5=0,0,IF($C$6<=0,C$13-E110*C$12,$C$5+CUMPRINC($C$6/$C$8,$C$7*$C$8,$C$5,1,E110,Pilotage!$D$25))),\"\")","v":""},null,null,null,null,null,{"$f":"IF(K110<>\"\",-1*CUMIPMT($C$6/$C$8,$C$7*$C$8,$C$5,M110,N110,Pilotage!$D$25),\"\")","v":""}]
[null,null,null,null,"","",{"$f":"IF(E111<>\"\",IF($C$5=0,0,IF($C$6<=0,0,CUMIPMT($C$6/$C$8,$C$7*$C$8,$C$5,1,E111,Pilotage!$D$25))),\"\")","v":""},{"$f":"IF(E111<>\"\",IF($C$6<=0,0,IF($C$5=0,0,CUMIPMT($C$6/$C$8,$C$7*$C$8,$C$5,E111,E111,Pilotage!$D$25))),\"\")","v":""},{"$f":"IF(E111<>\"\",IF($C$5=0,0,IF($C$6<=0,C$13-E111*C$12,$C$5+CUMPRINC($C$6/$C$8,$C$7*$C$8,$C$5,1,E111,Pilotage!$D$25))),\"\")","v":""},null,null,null,null,null,{"$f":"IF(K111<>\"\",-1*CUMIPMT($C$6/$C$8,$C$7*$C$8,$C$5,M111,N111,Pilotage!$D$25),\"\")","v":""}]
[null,null,null,null,"","",{"$f":"IF(E112<>\"\",IF($C$5=0,0,IF($C$6<=0,0,CUMIPMT($C$6/$C$8,$C$7*$C$8,$C$5,1,E112,Pilotage!$D$25))),\"\")","v":""},{"$f":"IF(E112<>\"\",IF($C$6<=0,0,IF($C$5=0,0,CUMIPMT($C$6/$C$8,$C$7*$C$8,$C$5,E112,E112,Pilotage!$D$25))),\"\")","v":""},{"$f":"IF(E112<>\"\",IF($C$5=0,0,IF($C$6<=0,C$13-E112*C$12,$C$5+CUMPRINC($C$6/$C$8,$C$7*$C$8,$C$5,1,E112,Pilotage!$D$25))),\"\")","v":""},null,null,null,null,null,{"$f":"IF(K112<>\"\",-1*CUMIPMT($C$6/$C$8,$C$7*$C$8,$C$5,M112,N112,Pilotage!$D$25),\"\")","v":""}]
[null,null,null,null,"","",{"$f":"IF(E113<>\"\",IF($C$5=0,0,IF($C$6<=0,0,CUMIPMT($C$6/$C$8,$C$7*$C$8,$C$5,1,E113,Pilotage!$D$25))),\"\")","v":""},{"$f":"IF(E113<>\"\",IF($C$6<=0,0,IF($C$5=0,0,CUMIPMT($C$6/$C$8,$C$7*$C$8,$C$5,E113,E113,Pilotage!$D$25))),\"\")","v":""},{"$f":"IF(E113<>\"\",IF($C$5=0,0,IF($C$6<=0,C$13-E113*C$12,$C$5+CUMPRINC($C$6/$C$8,$C$7*$C$8,$C$5,1,E113,Pilotage!$D$25))),\"\")","v":""},null,null,null,null,null,{"$f":"IF(K113<>\"\",-1*CUMIPMT($C$6/$C$8,$C$7*$C$8,$C$5,M113,N113,Pilotage!$D$25),\"\")","v":""}]
[null,null,null,null,"","",{"$f":"IF(E114<>\"\",IF($C$5=0,0,IF($C$6<=0,0,CUMIPMT($C$6/$C$8,$C$7*$C$8,$C$5,1,E114,Pilotage!$D$25))),\"\")","v":""},{"$f":"IF(E114<>\"\",IF($C$6<=0,0,IF($C$5=0,0,CUMIPMT($C$6/$C$8,$C$7*$C$8,$C$5,E114,E114,Pilotage!$D$25))),\"\")","v":""},{"$f":"IF(E114<>\"\",IF($C$5=0,0,IF($C$6<=0,C$13-E114*C$12,$C$5+CUMPRINC($C$6/$C$8,$C$7*$C$8,$C$5,1,E114,Pilotage!$D$25))),\"\")","v":""},null,null,null,null,null,{"$f":"IF(K114<>\"\",-1*CUMIPMT($C$6/$C$8,$C$7*$C$8,$C$5,M114,N114,Pilotage!$D$25),\"\")","v":""}]
[null,null,null,null,"","",{"$f":"IF(E115<>\"\",IF($C$5=0,0,IF($C$6<=0,0,CUMIPMT($C$6/$C$8,$C$7*$C$8,$C$5,1,E115,Pilotage!$D$25))),\"\")","v":""},{"$f":"IF(E115<>\"\",IF($C$6<=0,0,IF($C$5=0,0,CUMIPMT($C$6/$C$8,$C$7*$C$8,$C$5,E115,E115,Pilotage!$D$25))),\"\")","v":""},{"$f":"IF(E115<>\"\",IF($C$5=0,0,IF($C$6<=0,C$13-E115*C$12,$C$5+CUMPRINC($C$6/$C$8,$C$7*$C$8,$C$5,1,E115,Pilotage!$D$25))),\"\")","v":""},null,null,null,null,null,{"$f":"IF(K115<>\"\",-1*CUMIPMT($C$6/$C$8,$C$7*$C$8,$C$5,M115,N115,Pilotage!$D$25),\"\")","v":""}]
[null,null,null,null,"","",{"$f":"IF(E116<>\"\",IF($C$5=0,0,IF($C$6<=0,0,CUMIPMT($C$6/$C$8,$C$7*$C$8,$C$5,1,E116,Pilotage!$D$25))),\"\")","v":""},{"$f":"IF(E116<>\"\",IF($C$6<=0,0,IF($C$5=0,0,CUMIPMT($C$6/$C$8,$C$7*$C$8,$C$5,E116,E116,Pilotage!$D$25))),\"\")","v":""},{"$f":"IF(E116<>\"\",IF($C$5=0,0,IF($C$6<=0,C$13-E116*C$12,$C$5+CUMPRINC($C$6/$C$8,$C$7*$C$8,$C$5,1,E116,Pilotage!$D$25))),\"\")","v":""},null,null,null,null,null,{"$f":"IF(K116<>\"\",-1*CUMIPMT($C$6/$C$8,$C$7*$C$8,$C$5,M116,N116,Pilotage!$D$25),\"\")","v":""}]
[null,null,null,null,"","",{"$f":"IF(E117<>\"\",IF($C$5=0,0,IF($C$6<=0,0,CUMIPMT($C$6/$C$8,$C$7*$C$8,$C$5,1,E117,Pilotage!$D$25))),\"\")","v":""},{"$f":"IF(E117<>\"\",IF($C$6<=0,0,IF($C$5=0,0,CUMIPMT($C$6/$C$8,$C$7*$C$8,$C$5,E117,E117,Pilotage!$D$25))),\"\")","v":""},{"$f":"IF(E117<>\"\",IF($C$5=0,0,IF($C$6<=0,C$13-E117*C$12,$C$5+CUMPRINC($C$6/$C$8,$C$7*$C$8,$C$5,1,E117,Pilotage!$D$25))),\"\")","v":""},null,null,null,null,null,{"$f":"IF(K117<>\"\",-1*CUMIPMT($C$6/$C$8,$C$7*$C$8,$C$5,M117,N117,Pilotage!$D$25),\"\")","v":""}]
[null,null,null,null,"","",{"$f":"IF(E118<>\"\",IF($C$5=0,0,IF($C$6<=0,0,CUMIPMT($C$6/$C$8,$C$7*$C$8,$C$5,1,E118,Pilotage!$D$25))),\"\")","v":""},{"$f":"IF(E118<>\"\",IF($C$6<=0,0,IF($C$5=0,0,CUMIPMT($C$6/$C$8,$C$7*$C$8,$C$5,E118,E118,Pilotage!$D$25))),\"\")","v":""},{"$f":"IF(E118<>\"\",IF($C$5=0,0,IF($C$6<=0,C$13-E118*C$12,$C$5+CUMPRINC($C$6/$C$8,$C$7*$C$8,$C$5,1,E118,Pilotage!$D$25))),\"\")","v":""},null,null,null,null,null,{"$f":"IF(K118<>\"\",-1*CUMIPMT($C$6/$C$8,$C$7*$C$8,$C$5,M118,N118,Pilotage!$D$25),\"\")","v":""}]
[null,null,null,null,"","",{"$f":"IF(E119<>\"\",IF($C$5=0,0,IF($C$6<=0,0,CUMIPMT($C$6/$C$8,$C$7*$C$8,$C$5,1,E119,Pilotage!$D$25))),\"\")","v":""},{"$f":"IF(E119<>\"\",IF($C$6<=0,0,IF($C$5=0,0,CUMIPMT($C$6/$C$8,$C$7*$C$8,$C$5,E119,E119,Pilotage!$D$25))),\"\")","v":""},{"$f":"IF(E119<>\"\",IF($C$5=0,0,IF($C$6<=0,C$13-E119*C$12,$C$5+CUMPRINC($C$6/$C$8,$C$7*$C$8,$C$5,1,E119,Pilotage!$D$25))),\"\")","v":""},null,null,null,null,null,{"$f":"IF(K119<>\"\",-1*CUMIPMT($C$6/$C$8,$C$7*$C$8,$C$5,M119,N119,Pilotage!$D$25),\"\")","v":""}]
[null,null,null,null,"","",{"$f":"IF(E120<>\"\",IF($C$5=0,0,IF($C$6<=0,0,CUMIPMT($C$6/$C$8,$C$7*$C$8,$C$5,1,E120,Pilotage!$D$25))),\"\")","v":""},{"$f":"IF(E120<>\"\",IF($C$6<=0,0,IF($C$5=0,0,CUMIPMT($C$6/$C$8,$C$7*$C$8,$C$5,E120,E120,Pilotage!$D$25))),\"\")","v":""},{"$f":"IF(E120<>\"\",IF($C$5=0,0,IF($C$6<=0,C$13-E120*C$12,$C$5+CUMPRINC($C$6/$C$8,$C$7*$C$8,$C$5,1,E120,Pilotage!$D$25))),\"\")","v":""},null,null,null,null,null,{"$f":"IF(K120<>\"\",-1*CUMIPMT($C$6/$C$8,$C$7*$C$8,$C$5,M120,N120,Pilotage!$D$25),\"\")","v":""}]
[null,null,null,null,"","",{"$f":"IF(E121<>\"\",IF($C$5=0,0,IF($C$6<=0,0,CUMIPMT($C$6/$C$8,$C$7*$C$8,$C$5,1,E121,Pilotage!$D$25))),\"\")","v":""},{"$f":"IF(E121<>\"\",IF($C$6<=0,0,IF($C$5=0,0,CUMIPMT($C$6/$C$8,$C$7*$C$8,$C$5,E121,E121,Pilotage!$D$25))),\"\")","v":""},{"$f":"IF(E121<>\"\",IF($C$5=0,0,IF($C$6<=0,C$13-E121*C$12,$C$5+CUMPRINC($C$6/$C$8,$C$7*$C$8,$C$5,1,E121,Pilotage!$D$25))),\"\")","v":""},null,null,null,null,null,{"$f":"IF(K121<>\"\",-1*CUMIPMT($C$6/$C$8,$C$7*$C$8,$C$5,M121,N121,Pilotage!$D$25),\"\")","v":""}]
[null,null,null,null,"","",{"$f":"IF(E122<>\"\",IF($C$5=0,0,IF($C$6<=0,0,CUMIPMT($C$6/$C$8,$C$7*$C$8,$C$5,1,E122,Pilotage!$D$25))),\"\")","v":""},{"$f":"IF(E122<>\"\",IF($C$6<=0,0,IF($C$5=0,0,CUMIPMT($C$6/$C$8,$C$7*$C$8,$C$5,E122,E122,Pilotage!$D$25))),\"\")","v":""},{"$f":"IF(E122<>\"\",IF($C$5=0,0,IF($C$6<=0,C$13-E122*C$12,$C$5+CUMPRINC($C$6/$C$8,$C$7*$C$8,$C$5,1,E122,Pilotage!$D$25))),\"\")","v":""},null,null,null,null,null,{"$f":"IF(K122<>\"\",-1*CUMIPMT($C$6/$C$8,$C$7*$C$8,$C$5,M122,N122,Pilotage!$D$25),\"\")","v":""}]
[null,null,null,null,"","",{"$f":"IF(E123<>\"\",IF($C$5=0,0,IF($C$6<=0,0,CUMIPMT($C$6/$C$8,$C$7*$C$8,$C$5,1,E123,Pilotage!$D$25))),\"\")","v":""},{"$f":"IF(E123<>\"\",IF($C$6<=0,0,IF($C$5=0,0,CUMIPMT($C$6/$C$8,$C$7*$C$8,$C$5,E123,E123,Pilotage!$D$25))),\"\")","v":""},{"$f":"IF(E123<>\"\",IF($C$5=0,0,IF($C$6<=0,C$13-E123*C$12,$C$5+CUMPRINC($C$6/$C$8,$C$7*$C$8,$C$5,1,E123,Pilotage!$D$25))),\"\")","v":""},null,null,null,null,null,{"$f":"IF(K123<>\"\",-1*CUMIPMT($C$6/$C$8,$C$7*$C$8,$C$5,M123,N123,Pilotage!$D$25),\"\")","v":""}]
[null,null,null,null,"","",{"$f":"IF(E124<>\"\",IF($C$5=0,0,IF($C$6<=0,0,CUMIPMT($C$6/$C$8,$C$7*$C$8,$C$5,1,E124,Pilotage!$D$25))),\"\")","v":""},{"$f":"IF(E124<>\"\",IF($C$6<=0,0,IF($C$5=0,0,CUMIPMT($C$6/$C$8,$C$7*$C$8,$C$5,E124,E124,Pilotage!$D$25))),\"\")","v":""},{"$f":"IF(E124<>\"\",IF($C$5=0,0,IF($C$6<=0,C$13-E124*C$12,$C$5+CUMPRINC($C$6/$C$8,$C$7*$C$8,$C$5,1,E124,Pilotage!$D$25))),\"\")","v":""},null,null,null,null,null,{"$f":"IF(K124<>\"\",-1*CUMIPMT($C$6/$C$8,$C$7*$C$8,$C$5,M124,N124,Pilotage!$D$25),\"\")","v":""}]
[null,null,null,null,"","",{"$f":"IF(E125<>\"\",IF($C$5=0,0,IF($C$6<=0,0,CUMIPMT($C$6/$C$8,$C$7*$C$8,$C$5,1,E125,Pilotage!$D$25))),\"\")","v":""},{"$f":"IF(E125<>\"\",IF($C$6<=0,0,IF($C$5=0,0,CUMIPMT($C$6/$C$8,$C$7*$C$8,$C$5,E125,E125,Pilotage!$D$25))),\"\")","v":""},{"$f":"IF(E125<>\"\",IF($C$5=0,0,IF($C$6<=0,C$13-E125*C$12,$C$5+CUMPRINC($C$6/$C$8,$C$7*$C$8,$C$5,1,E125,Pilotage!$D$25))),\"\")","v":""},null,null,null,null,null,{"$f":"IF(K125<>\"\",-1*CUMIPMT($C$6/$C$8,$C$7*$C$8,$C$5,M125,N125,Pilotage!$D$25),\"\")","v":""}]
[null,null,null,null,"","",{"$f":"IF(E126<>\"\",IF($C$5=0,0,IF($C$6<=0,0,CUMIPMT($C$6/$C$8,$C$7*$C$8,$C$5,1,E126,Pilotage!$D$25))),\"\")","v":""},{"$f":"IF(E126<>\"\",IF($C$6<=0,0,IF($C$5=0,0,CUMIPMT($C$6/$C$8,$C$7*$C$8,$C$5,E126,E126,Pilotage!$D$25))),\"\")","v":""},{"$f":"IF(E126<>\"\",IF($C$5=0,0,IF($C$6<=0,C$13-E126*C$12,$C$5+CUMPRINC($C$6/$C$8,$C$7*$C$8,$C$5,1,E126,Pilotage!$D$25))),\"\")","v":""},null,null,null,null,null,{"$f":"IF(K126<>\"\",-1*CUMIPMT($C$6/$C$8,$C$7*$C$8,$C$5,M126,N126,Pilotage!$D$25),\"\")","v":""}]
[null,null,null,null,"","",{"$f":"IF(E127<>\"\",IF($C$5=0,0,IF($C$6<=0,0,CUMIPMT($C$6/$C$8,$C$7*$C$8,$C$5,1,E127,Pilotage!$D$25))),\"\")","v":""},{"$f":"IF(E127<>\"\",IF($C$6<=0,0,IF($C$5=0,0,CUMIPMT($C$6/$C$8,$C$7*$C$8,$C$5,E127,E127,Pilotage!$D$25))),\"\")","v":""},{"$f":"IF(E127<>\"\",IF($C$5=0,0,IF($C$6<=0,C$13-E127*C$12,$C$5+CUMPRINC($C$6/$C$8,$C$7*$C$8,$C$5,1,E127,Pilotage!$D$25))),\"\")","v":""},null,null,null,null,null,{"$f":"IF(K127<>\"\",-1*CUMIPMT($C$6/$C$8,$C$7*$C$8,$C$5,M127,N127,Pilotage!$D$25),\"\")","v":""}]
[null,null,null,null,"","",{"$f":"IF(E128<>\"\",IF($C$5=0,0,IF($C$6<=0,0,CUMIPMT($C$6/$C$8,$C$7*$C$8,$C$5,1,E128,Pilotage!$D$25))),\"\")","v":""},{"$f":"IF(E128<>\"\",IF($C$6<=0,0,IF($C$5=0,0,CUMIPMT($C$6/$C$8,$C$7*$C$8,$C$5,E128,E128,Pilotage!$D$25))),\"\")","v":""},{"$f":"IF(E128<>\"\",IF($C$5=0,0,IF($C$6<=0,C$13-E128*C$12,$C$5+CUMPRINC($C$6/$C$8,$C$7*$C$8,$C$5,1,E128,Pilotage!$D$25))),\"\")","v":""},null,null,null,null,null,{"$f":"IF(K128<>\"\",-1*CUMIPMT($C$6/$C$8,$C$7*$C$8,$C$5,M128,N128,Pilotage!$D$25),\"\")","v":""}]
[null,null,null,null,"","",{"$f":"IF(E129<>\"\",IF($C$5=0,0,IF($C$6<=0,0,CUMIPMT($C$6/$C$8,$C$7*$C$8,$C$5,1,E129,Pilotage!$D$25))),\"\")","v":""},{"$f":"IF(E129<>\"\",IF($C$6<=0,0,IF($C$5=0,0,CUMIPMT($C$6/$C$8,$C$7*$C$8,$C$5,E129,E129,Pilotage!$D$25))),\"\")","v":""},{"$f":"IF(E129<>\"\",IF($C$5=0,0,IF($C$6<=0,C$13-E129*C$12,$C$5+CUMPRINC($C$6/$C$8,$C$7*$C$8,$C$5,1,E129,Pilotage!$D$25))),\"\")","v":""},null,null,null,null,null,{"$f":"IF(K129<>\"\",-1*CUMIPMT($C$6/$C$8,$C$7*$C$8,$C$5,M129,N129,Pilotage!$D$25),\"\")","v":""}]
[null,null,null,null,"","",{"$f":"IF(E130<>\"\",IF($C$5=0,0,IF($C$6<=0,0,CUMIPMT($C$6/$C$8,$C$7*$C$8,$C$5,1,E130,Pilotage!$D$25))),\"\")","v":""},{"$f":"IF(E130<>\"\",IF($C$6<=0,0,IF($C$5=0,0,CUMIPMT($C$6/$C$8,$C$7*$C$8,$C$5,E130,E130,Pilotage!$D$25))),\"\")","v":""},{"$f":"IF(E130<>\"\",IF($C$5=0,0,IF($C$6<=0,C$13-E130*C$12,$C$5+CUMPRINC($C$6/$C$8,$C$7*$C$8,$C$5,1,E130,Pilotage!$D$25))),\"\")","v":""},null,null,null,null,null,{"$f":"IF(K130<>\"\",-1*CUMIPMT($C$6/$C$8,$C$7*$C$8,$C$5,M130,N130,Pilotage!$D$25),\"\")","v":""}]
[null,null,null,null,"","",{"$f":"IF(E131<>\"\",IF($C$5=0,0,IF($C$6<=0,0,CUMIPMT($C$6/$C$8,$C$7*$C$8,$C$5,1,E131,Pilotage!$D$25))),\"\")","v":""},{"$f":"IF(E131<>\"\",IF($C$6<=0,0,IF($C$5=0,0,CUMIPMT($C$6/$C$8,$C$7*$C$8,$C$5,E131,E131,Pilotage!$D$25))),\"\")","v":""},{"$f":"IF(E131<>\"\",IF($C$5=0,0,IF($C$6<=0,C$13-E131*C$12,$C$5+CUMPRINC($C$6/$C$8,$C$7*$C$8,$C$5,1,E131,Pilotage!$D$25))),\"\")","v":""},null,null,null,null,null,{"$f":"IF(K131<>\"\",-1*CUMIPMT($C$6/$C$8,$C$7*$C$8,$C$5,M131,N131,Pilotage!$D$25),\"\")","v":""}]
[null,null,null,null,"","",{"$f":"IF(E132<>\"\",IF($C$5=0,0,IF($C$6<=0,0,CUMIPMT($C$6/$C$8,$C$7*$C$8,$C$5,1,E132,Pilotage!$D$25))),\"\")","v":""},{"$f":"IF(E132<>\"\",IF($C$6<=0,0,IF($C$5=0,0,CUMIPMT($C$6/$C$8,$C$7*$C$8,$C$5,E132,E132,Pilotage!$D$25))),\"\")","v":""},{"$f":"IF(E132<>\"\",IF($C$5=0,0,IF($C$6<=0,C$13-E132*C$12,$C$5+CUMPRINC($C$6/$C$8,$C$7*$C$8,$C$5,1,E132,Pilotage!$D$25))),\"\")","v":""},null,null,null,null,null,{"$f":"IF(K132<>\"\",-1*CUMIPMT($C$6/$C$8,$C$7*$C$8,$C$5,M132,N132,Pilotage!$D$25),\"\")","v":""}]
[null,null,null,null,"","",{"$f":"IF(E133<>\"\",IF($C$5=0,0,IF($C$6<=0,0,CUMIPMT($C$6/$C$8,$C$7*$C$8,$C$5,1,E133,Pilotage!$D$25))),\"\")","v":""},{"$f":"IF(E133<>\"\",IF($C$6<=0,0,IF($C$5=0,0,CUMIPMT($C$6/$C$8,$C$7*$C$8,$C$5,E133,E133,Pilotage!$D$25))),\"\")","v":""},{"$f":"IF(E133<>\"\",IF($C$5=0,0,IF($C$6<=0,C$13-E133*C$12,$C$5+CUMPRINC($C$6/$C$8,$C$7*$C$8,$C$5,1,E133,Pilotage!$D$25))),\"\")","v":""},null,null,null,null,null,{"$f":"IF(K133<>\"\",-1*CUMIPMT($C$6/$C$8,$C$7*$C$8,$C$5,M133,N133,Pilotage!$D$25),\"\")","v":""}]
[null,null,null,null,"","",{"$f":"IF(E134<>\"\",IF($C$5=0,0,IF($C$6<=0,0,CUMIPMT($C$6/$C$8,$C$7*$C$8,$C$5,1,E134,Pilotage!$D$25))),\"\")","v":""},{"$f":"IF(E134<>\"\",IF($C$6<=0,0,IF($C$5=0,0,CUMIPMT($C$6/$C$8,$C$7*$C$8,$C$5,E134,E134,Pilotage!$D$25))),\"\")","v":""},{"$f":"IF(E134<>\"\",IF($C$5=0,0,IF($C$6<=0,C$13-E134*C$12,$C$5+CUMPRINC($C$6/$C$8,$C$7*$C$8,$C$5,1,E134,Pilotage!$D$25))),\"\")","v":""},null,null,null,null,null,{"$f":"IF(K134<>\"\",-1*CUMIPMT($C$6/$C$8,$C$7*$C$8,$C$5,M134,N134,Pilotage!$D$25),\"\")","v":""}]
[null,null,null,null,"","",{"$f":"IF(E135<>\"\",IF($C$5=0,0,IF($C$6<=0,0,CUMIPMT($C$6/$C$8,$C$7*$C$8,$C$5,1,E135,Pilotage!$D$25))),\"\")","v":""},{"$f":"IF(E135<>\"\",IF($C$6<=0,0,IF($C$5=0,0,CUMIPMT($C$6/$C$8,$C$7*$C$8,$C$5,E135,E135,Pilotage!$D$25))),\"\")","v":""},{"$f":"IF(E135<>\"\",IF($C$5=0,0,IF($C$6<=0,C$13-E135*C$12,$C$5+CUMPRINC($C$6/$C$8,$C$7*$C$8,$C$5,1,E135,Pilotage!$D$25))),\"\")","v":""},null,null,null,null,null,{"$f":"IF(K135<>\"\",-1*CUMIPMT($C$6/$C$8,$C$7*$C$8,$C$5,M135,N135,Pilotage!$D$25),\"\")","v":""}]
[null,null,null,null,{"$f":"IF(E135<$C$10,E135+1,\"\")","v":""},{"$f":"IF(E136<>\"\",EDATE(F135,$C$11),\"\")","v":""},{"$f":"IF(E136<>\"\",IF($C$5=0,0,IF($C$6<=0,0,CUMIPMT($C$6/$C$8,$C$7*$C$8,$C$5,1,E136,Pilotage!$D$25))),\"\")","v":""},{"$f":"IF(E136<>\"\",IF($C$6<=0,0,IF($C$5=0,0,CUMIPMT($C$6/$C$8,$C$7*$C$8,$C$5,E136,E136,Pilotage!$D$25))),\"\")","v":""},{"$f":"IF(E136<>\"\",IF($C$5=0,0,IF($C$6<=0,C$13-E136*C$12,$C$5+CUMPRINC($C$6/$C$8,$C$7*$C$8,$C$5,1,E136,Pilotage!$D$25))),\"\")","v":""},null,null,null,null,null,{"$f":"IF(K136<>\"\",-1*CUMIPMT($C$6/$C$8,$C$7*$C$8,$C$5,M136,N136,Pilotage!$D$25),\"\")","v":""}]
[null,null,null,null,"","",{"$f":"IF(E137<>\"\",IF($C$5=0,0,IF($C$6<=0,0,CUMIPMT($C$6/$C$8,$C$7*$C$8,$C$5,1,E137,Pilotage!$D$25))),\"\")","v":""},{"$f":"IF(E137<>\"\",IF($C$6<=0,0,IF($C$5=0,0,CUMIPMT($C$6/$C$8,$C$7*$C$8,$C$5,E137,E137,Pilotage!$D$25))),\"\")","v":""},{"$f":"IF(E137<>\"\",IF($C$5=0,0,IF($C$6<=0,C$13-E137*C$12,$C$5+CUMPRINC($C$6/$C$8,$C$7*$C$8,$C$5,1,E137,Pilotage!$D$25))),\"\")","v":""},null,null,null,null,null,{"$f":"IF(K137<>\"\",-1*CUMIPMT($C$6/$C$8,$C$7*$C$8,$C$5,M137,N137,Pilotage!$D$25),\"\")","v":""}]
[null,null,null,null,"","",{"$f":"IF(E138<>\"\",IF($C$5=0,0,IF($C$6<=0,0,CUMIPMT($C$6/$C$8,$C$7*$C$8,$C$5,1,E138,Pilotage!$D$25))),\"\")","v":""},{"$f":"IF(E138<>\"\",IF($C$6<=0,0,IF($C$5=0,0,CUMIPMT($C$6/$C$8,$C$7*$C$8,$C$5,E138,E138,Pilotage!$D$25))),\"\")","v":""},{"$f":"IF(E138<>\"\",IF($C$5=0,0,IF($C$6<=0,C$13-E138*C$12,$C$5+CUMPRINC($C$6/$C$8,$C$7*$C$8,$C$5,1,E138,Pilotage!$D$25))),\"\")","v":""},null,null,null,null,null,{"$f":"IF(K138<>\"\",-1*CUMIPMT($C$6/$C$8,$C$7*$C$8,$C$5,M138,N138,Pilotage!$D$25),\"\")","v":""}]
[null,null,null,null,"","",{"$f":"IF(E139<>\"\",IF($C$5=0,0,IF($C$6<=0,0,CUMIPMT($C$6/$C$8,$C$7*$C$8,$C$5,1,E139,Pilotage!$D$25))),\"\")","v":""},{"$f":"IF(E139<>\"\",IF($C$6<=0,0,IF($C$5=0,0,CUMIPMT($C$6/$C$8,$C$7*$C$8,$C$5,E139,E139,Pilotage!$D$25))),\"\")","v":""},{"$f":"IF(E139<>\"\",IF($C$5=0,0,IF($C$6<=0,C$13-E139*C$12,$C$5+CUMPRINC($C$6/$C$8,$C$7*$C$8,$C$5,1,E139,Pilotage!$D$25))),\"\")","v":""},null,null,null,null,null,{"$f":"IF(K139<>\"\",-1*CUMIPMT($C$6/$C$8,$C$7*$C$8,$C$5,M139,N139,Pilotage!$D$25),\"\")","v":""}]
[null,null,null,null,"","",{"$f":"IF(E140<>\"\",IF($C$5=0,0,IF($C$6<=0,0,CUMIPMT($C$6/$C$8,$C$7*$C$8,$C$5,1,E140,Pilotage!$D$25))),\"\")","v":""},{"$f":"IF(E140<>\"\",IF($C$6<=0,0,IF($C$5=0,0,CUMIPMT($C$6/$C$8,$C$7*$C$8,$C$5,E140,E140,Pilotage!$D$25))),\"\")","v":""},{"$f":"IF(E140<>\"\",IF($C$5=0,0,IF($C$6<=0,C$13-E140*C$12,$C$5+CUMPRINC($C$6/$C$8,$C$7*$C$8,$C$5,1,E140,Pilotage!$D$25))),\"\")","v":""},null,null,null,null,null,{"$f":"IF(K140<>\"\",-1*CUMIPMT($C$6/$C$8,$C$7*$C$8,$C$5,M140,N140,Pilotage!$D$25),\"\")","v":""}]
[null,null,null,null,"","",{"$f":"IF(E141<>\"\",IF($C$5=0,0,IF($C$6<=0,0,CUMIPMT($C$6/$C$8,$C$7*$C$8,$C$5,1,E141,Pilotage!$D$25))),\"\")","v":""},{"$f":"IF(E141<>\"\",IF($C$6<=0,0,IF($C$5=0,0,CUMIPMT($C$6/$C$8,$C$7*$C$8,$C$5,E141,E141,Pilotage!$D$25))),\"\")","v":""},{"$f":"IF(E141<>\"\",IF($C$5=0,0,IF($C$6<=0,C$13-E141*C$12,$C$5+CUMPRINC($C$6/$C$8,$C$7*$C$8,$C$5,1,E141,Pilotage!$D$25))),\"\")","v":""},null,null,null,null,null,{"$f":"IF(K141<>\"\",-1*CUMIPMT($C$6/$C$8,$C$7*$C$8,$C$5,M141,N141,Pilotage!$D$25),\"\")","v":""}]
[null,null,null,null,"","",{"$f":"IF(E142<>\"\",IF($C$5=0,0,IF($C$6<=0,0,CUMIPMT($C$6/$C$8,$C$7*$C$8,$C$5,1,E142,Pilotage!$D$25))),\"\")","v":""},{"$f":"IF(E142<>\"\",IF($C$6<=0,0,IF($C$5=0,0,CUMIPMT($C$6/$C$8,$C$7*$C$8,$C$5,E142,E142,Pilotage!$D$25))),\"\")","v":""},{"$f":"IF(E142<>\"\",IF($C$5=0,0,IF($C$6<=0,C$13-E142*C$12,$C$5+CUMPRINC($C$6/$C$8,$C$7*$C$8,$C$5,1,E142,Pilotage!$D$25))),\"\")","v":""},null,null,null,null,null,{"$f":"IF(K142<>\"\",-1*CUMIPMT($C$6/$C$8,$C$7*$C$8,$C$5,M142,N142,Pilotage!$D$25),\"\")","v":""}]
[null,null,null,null,"","",{"$f":"IF(E143<>\"\",IF($C$5=0,0,IF($C$6<=0,0,CUMIPMT($C$6/$C$8,$C$7*$C$8,$C$5,1,E143,Pilotage!$D$25))),\"\")","v":""},{"$f":"IF(E143<>\"\",IF($C$6<=0,0,IF($C$5=0,0,CUMIPMT($C$6/$C$8,$C$7*$C$8,$C$5,E143,E143,Pilotage!$D$25))),\"\")","v":""},{"$f":"IF(E143<>\"\",IF($C$5=0,0,IF($C$6<=0,C$13-E143*C$12,$C$5+CUMPRINC($C$6/$C$8,$C$7*$C$8,$C$5,1,E143,Pilotage!$D$25))),\"\")","v":""},null,null,null,null,null,{"$f":"IF(K143<>\"\",-1*CUMIPMT($C$6/$C$8,$C$7*$C$8,$C$5,M143,N143,Pilotage!$D$25),\"\")","v":""}]
[null,null,null,null,"","",{"$f":"IF(E144<>\"\",IF($C$5=0,0,IF($C$6<=0,0,CUMIPMT($C$6/$C$8,$C$7*$C$8,$C$5,1,E144,Pilotage!$D$25))),\"\")","v":""},{"$f":"IF(E144<>\"\",IF($C$6<=0,0,IF($C$5=0,0,CUMIPMT($C$6/$C$8,$C$7*$C$8,$C$5,E144,E144,Pilotage!$D$25))),\"\")","v":""},{"$f":"IF(E144<>\"\",IF($C$5=0,0,IF($C$6<=0,C$13-E144*C$12,$C$5+CUMPRINC($C$6/$C$8,$C$7*$C$8,$C$5,1,E144,Pilotage!$D$25))),\"\")","v":""},null,null,null,null,null,{"$f":"IF(K144<>\"\",-1*CUMIPMT($C$6/$C$8,$C$7*$C$8,$C$5,M144,N144,Pilotage!$D$25),\"\")","v":""}]
[null,null,null,null,"","",{"$f":"IF(E145<>\"\",IF($C$5=0,0,IF($C$6<=0,0,CUMIPMT($C$6/$C$8,$C$7*$C$8,$C$5,1,E145,Pilotage!$D$25))),\"\")","v":""},{"$f":"IF(E145<>\"\",IF($C$6<=0,0,IF($C$5=0,0,CUMIPMT($C$6/$C$8,$C$7*$C$8,$C$5,E145,E145,Pilotage!$D$25))),\"\")","v":""},{"$f":"IF(E145<>\"\",IF($C$5=0,0,IF($C$6<=0,C$13-E145*C$12,$C$5+CUMPRINC($C$6/$C$8,$C$7*$C$8,$C$5,1,E145,Pilotage!$D$25))),\"\")","v":""},null,null,null,null,null,{"$f":"IF(K145<>\"\",-1*CUMIPMT($C$6/$C$8,$C$7*$C$8,$C$5,M145,N145,Pilotage!$D$25),\"\")","v":""}]
[null,null,null,null,"","",{"$f":"IF(E146<>\"\",IF($C$5=0,0,IF($C$6<=0,0,CUMIPMT($C$6/$C$8,$C$7*$C$8,$C$5,1,E146,Pilotage!$D$25))),\"\")","v":""},{"$f":"IF(E146<>\"\",IF($C$6<=0,0,IF($C$5=0,0,CUMIPMT($C$6/$C$8,$C$7*$C$8,$C$5,E146,E146,Pilotage!$D$25))),\"\")","v":""},{"$f":"IF(E146<>\"\",IF($C$5=0,0,IF($C$6<=0,C$13-E146*C$12,$C$5+CUMPRINC($C$6/$C$8,$C$7*$C$8,$C$5,1,E146,Pilotage!$D$25))),\"\")","v":""},null,null,null,null,null,{"$f":"IF(K146<>\"\",-1*CUMIPMT($C$6/$C$8,$C$7*$C$8,$C$5,M146,N146,Pilotage!$D$25),\"\")","v":""}]
[null,null,null,null,"","",{"$f":"IF(E147<>\"\",IF($C$5=0,0,IF($C$6<=0,0,CUMIPMT($C$6/$C$8,$C$7*$C$8,$C$5,1,E147,Pilotage!$D$25))),\"\")","v":""},{"$f":"IF(E147<>\"\",IF($C$6<=0,0,IF($C$5=0,0,CUMIPMT($C$6/$C$8,$C$7*$C$8,$C$5,E147,E147,Pilotage!$D$25))),\"\")","v":""},{"$f":"IF(E147<>\"\",IF($C$5=0,0,IF($C$6<=0,C$13-E147*C$12,$C$5+CUMPRINC($C$6/$C$8,$C$7*$C$8,$C$5,1,E147,Pilotage!$D$25))),\"\")","v":""},null,null,null,null,null,{"$f":"IF(K147<>\"\",-1*CUMIPMT($C$6/$C$8,$C$7*$C$8,$C$5,M147,N147,Pilotage!$D$25),\"\")","v":""}]
[null,null,null,null,"","",{"$f":"IF(E148<>\"\",IF($C$5=0,0,IF($C$6<=0,0,CUMIPMT($C$6/$C$8,$C$7*$C$8,$C$5,1,E148,Pilotage!$D$25))),\"\")","v":""},{"$f":"IF(E148<>\"\",IF($C$6<=0,0,IF($C$5=0,0,CUMIPMT($C$6/$C$8,$C$7*$C$8,$C$5,E148,E148,Pilotage!$D$25))),\"\")","v":""},{"$f":"IF(E148<>\"\",IF($C$5=0,0,IF($C$6<=0,C$13-E148*C$12,$C$5+CUMPRINC($C$6/$C$8,$C$7*$C$8,$C$5,1,E148,Pilotage!$D$25))),\"\")","v":""},null,null,null,null,null,{"$f":"IF(K148<>\"\",-1*CUMIPMT($C$6/$C$8,$C$7*$C$8,$C$5,M148,N148,Pilotage!$D$25),\"\")","v":""}]
[null,null,null,null,"","",{"$f":"IF(E149<>\"\",IF($C$5=0,0,IF($C$6<=0,0,CUMIPMT($C$6/$C$8,$C$7*$C$8,$C$5,1,E149,Pilotage!$D$25))),\"\")","v":""},{"$f":"IF(E149<>\"\",IF($C$6<=0,0,IF($C$5=0,0,CUMIPMT($C$6/$C$8,$C$7*$C$8,$C$5,E149,E149,Pilotage!$D$25))),\"\")","v":""},{"$f":"IF(E149<>\"\",IF($C$5=0,0,IF($C$6<=0,C$13-E149*C$12,$C$5+CUMPRINC($C$6/$C$8,$C$7*$C$8,$C$5,1,E149,Pilotage!$D$25))),\"\")","v":""},null,null,null,null,null,{"$f":"IF(K149<>\"\",-1*CUMIPMT($C$6/$C$8,$C$7*$C$8,$C$5,M149,N149,Pilotage!$D$25),\"\")","v":""}]
[null,null,null,null,"","",{"$f":"IF(E150<>\"\",IF($C$5=0,0,IF($C$6<=0,0,CUMIPMT($C$6/$C$8,$C$7*$C$8,$C$5,1,E150,Pilotage!$D$25))),\"\")","v":""},{"$f":"IF(E150<>\"\",IF($C$6<=0,0,IF($C$5=0,0,CUMIPMT($C$6/$C$8,$C$7*$C$8,$C$5,E150,E150,Pilotage!$D$25))),\"\")","v":""},{"$f":"IF(E150<>\"\",IF($C$5=0,0,IF($C$6<=0,C$13-E150*C$12,$C$5+CUMPRINC($C$6/$C$8,$C$7*$C$8,$C$5,1,E150,Pilotage!$D$25))),\"\")","v":""},null,null,null,null,null,{"$f":"IF(K150<>\"\",-1*CUMIPMT($C$6/$C$8,$C$7*$C$8,$C$5,M150,N150,Pilotage!$D$25),\"\")","v":""}]
[null,null,null,null,"","",{"$f":"IF(E151<>\"\",IF($C$5=0,0,IF($C$6<=0,0,CUMIPMT($C$6/$C$8,$C$7*$C$8,$C$5,1,E151,Pilotage!$D$25))),\"\")","v":""},{"$f":"IF(E151<>\"\",IF($C$6<=0,0,IF($C$5=0,0,CUMIPMT($C$6/$C$8,$C$7*$C$8,$C$5,E151,E151,Pilotage!$D$25))),\"\")","v":""},{"$f":"IF(E151<>\"\",IF($C$5=0,0,IF($C$6<=0,C$13-E151*C$12,$C$5+CUMPRINC($C$6/$C$8,$C$7*$C$8,$C$5,1,E151,Pilotage!$D$25))),\"\")","v":""},null,null,null,null,null,{"$f":"IF(K151<>\"\",-1*CUMIPMT($C$6/$C$8,$C$7*$C$8,$C$5,M151,N151,Pilotage!$D$25),\"\")","v":""}]
[null,null,null,null,"","",{"$f":"IF(E152<>\"\",IF($C$5=0,0,IF($C$6<=0,0,CUMIPMT($C$6/$C$8,$C$7*$C$8,$C$5,1,E152,Pilotage!$D$25))),\"\")","v":""},{"$f":"IF(E152<>\"\",IF($C$6<=0,0,IF($C$5=0,0,CUMIPMT($C$6/$C$8,$C$7*$C$8,$C$5,E152,E152,Pilotage!$D$25))),\"\")","v":""},{"$f":"IF(E152<>\"\",IF($C$5=0,0,IF($C$6<=0,C$13-E152*C$12,$C$5+CUMPRINC($C$6/$C$8,$C$7*$C$8,$C$5,1,E152,Pilotage!$D$25))),\"\")","v":""},null,null,null,null,null,{"$f":"IF(K152<>\"\",-1*CUMIPMT($C$6/$C$8,$C$7*$C$8,$C$5,M152,N152,Pilotage!$D$25),\"\")","v":""}]
[null,null,null,null,"","",{"$f":"IF(E153<>\"\",IF($C$5=0,0,IF($C$6<=0,0,CUMIPMT($C$6/$C$8,$C$7*$C$8,$C$5,1,E153,Pilotage!$D$25))),\"\")","v":""},{"$f":"IF(E153<>\"\",IF($C$6<=0,0,IF($C$5=0,0,CUMIPMT($C$6/$C$8,$C$7*$C$8,$C$5,E153,E153,Pilotage!$D$25))),\"\")","v":""},{"$f":"IF(E153<>\"\",IF($C$5=0,0,IF($C$6<=0,C$13-E153*C$12,$C$5+CUMPRINC($C$6/$C$8,$C$7*$C$8,$C$5,1,E153,Pilotage!$D$25))),\"\")","v":""},null,null,null,null,null,{"$f":"IF(K153<>\"\",-1*CUMIPMT($C$6/$C$8,$C$7*$C$8,$C$5,M153,N153,Pilotage!$D$25),\"\")","v":""}]
[null,null,null,null,"","",{"$f":"IF(E154<>\"\",IF($C$5=0,0,IF($C$6<=0,0,CUMIPMT($C$6/$C$8,$C$7*$C$8,$C$5,1,E154,Pilotage!$D$25))),\"\")","v":""},{"$f":"IF(E154<>\"\",IF($C$6<=0,0,IF($C$5=0,0,CUMIPMT($C$6/$C$8,$C$7*$C$8,$C$5,E154,E154,Pilotage!$D$25))),\"\")","v":""},{"$f":"IF(E154<>\"\",IF($C$5=0,0,IF($C$6<=0,C$13-E154*C$12,$C$5+CUMPRINC($C$6/$C$8,$C$7*$C$8,$C$5,1,E154,Pilotage!$D$25))),\"\")","v":""},null,null,null,null,null,{"$f":"IF(K154<>\"\",-1*CUMIPMT($C$6/$C$8,$C$7*$C$8,$C$5,M154,N154,Pilotage!$D$25),\"\")","v":""}]
[null,null,null,null,"","",{"$f":"IF(E155<>\"\",IF($C$5=0,0,IF($C$6<=0,0,CUMIPMT($C$6/$C$8,$C$7*$C$8,$C$5,1,E155,Pilotage!$D$25))),\"\")","v":""},{"$f":"IF(E155<>\"\",IF($C$6<=0,0,IF($C$5=0,0,CUMIPMT($C$6/$C$8,$C$7*$C$8,$C$5,E155,E155,Pilotage!$D$25))),\"\")","v":""},{"$f":"IF(E155<>\"\",IF($C$5=0,0,IF($C$6<=0,C$13-E155*C$12,$C$5+CUMPRINC($C$6/$C$8,$C$7*$C$8,$C$5,1,E155,Pilotage!$D$25))),\"\")","v":""},null,null,null,null,null,{"$f":"IF(K155<>\"\",-1*CUMIPMT($C$6/$C$8,$C$7*$C$8,$C$5,M155,N155,Pilotage!$D$25),\"\")","v":""}]
[null,null,null,null,"","",{"$f":"IF(E156<>\"\",IF($C$5=0,0,IF($C$6<=0,0,CUMIPMT($C$6/$C$8,$C$7*$C$8,$C$5,1,E156,Pilotage!$D$25))),\"\")","v":""},{"$f":"IF(E156<>\"\",IF($C$6<=0,0,IF($C$5=0,0,CUMIPMT($C$6/$C$8,$C$7*$C$8,$C$5,E156,E156,Pilotage!$D$25))),\"\")","v":""},{"$f":"IF(E156<>\"\",IF($C$5=0,0,IF($C$6<=0,C$13-E156*C$12,$C$5+CUMPRINC($C$6/$C$8,$C$7*$C$8,$C$5,1,E156,Pilotage!$D$25))),\"\")","v":""},null,null,null,null,null,{"$f":"IF(K156<>\"\",-1*CUMIPMT($C$6/$C$8,$C$7*$C$8,$C$5,M156,N156,Pilotage!$D$25),\"\")","v":""}]
[null,null,null,null,"","",{"$f":"IF(E157<>\"\",IF($C$5=0,0,IF($C$6<=0,0,CUMIPMT($C$6/$C$8,$C$7*$C$8,$C$5,1,E157,Pilotage!$D$25))),\"\")","v":""},{"$f":"IF(E157<>\"\",IF($C$6<=0,0,IF($C$5=0,0,CUMIPMT($C$6/$C$8,$C$7*$C$8,$C$5,E157,E157,Pilotage!$D$25))),\"\")","v":""},{"$f":"IF(E157<>\"\",IF($C$5=0,0,IF($C$6<=0,C$13-E157*C$12,$C$5+CUMPRINC($C$6/$C$8,$C$7*$C$8,$C$5,1,E157,Pilotage!$D$25))),\"\")","v":""},null,null,null,null,null,{"$f":"IF(K157<>\"\",-1*CUMIPMT($C$6/$C$8,$C$7*$C$8,$C$5,M157,N157,Pilotage!$D$25),\"\")","v":""}]
[null,null,null,null,"","",{"$f":"IF(E158<>\"\",IF($C$5=0,0,IF($C$6<=0,0,CUMIPMT($C$6/$C$8,$C$7*$C$8,$C$5,1,E158,Pilotage!$D$25))),\"\")","v":""},{"$f":"IF(E158<>\"\",IF($C$6<=0,0,IF($C$5=0,0,CUMIPMT($C$6/$C$8,$C$7*$C$8,$C$5,E158,E158,Pilotage!$D$25))),\"\")","v":""},{"$f":"IF(E158<>\"\",IF($C$5=0,0,IF($C$6<=0,C$13-E158*C$12,$C$5+CUMPRINC($C$6/$C$8,$C$7*$C$8,$C$5,1,E158,Pilotage!$D$25))),\"\")","v":""},null,null,null,null,null,{"$f":"IF(K158<>\"\",-1*CUMIPMT($C$6/$C$8,$C$7*$C$8,$C$5,M158,N158,Pilotage!$D$25),\"\")","v":""}]
[null,null,null,null,"","",{"$f":"IF(E159<>\"\",IF($C$5=0,0,IF($C$6<=0,0,CUMIPMT($C$6/$C$8,$C$7*$C$8,$C$5,1,E159,Pilotage!$D$25))),\"\")","v":""},{"$f":"IF(E159<>\"\",IF($C$6<=0,0,IF($C$5=0,0,CUMIPMT($C$6/$C$8,$C$7*$C$8,$C$5,E159,E159,Pilotage!$D$25))),\"\")","v":""},{"$f":"IF(E159<>\"\",IF($C$5=0,0,IF($C$6<=0,C$13-E159*C$12,$C$5+CUMPRINC($C$6/$C$8,$C$7*$C$8,$C$5,1,E159,Pilotage!$D$25))),\"\")","v":""},null,null,null,null,null,{"$f":"IF(K159<>\"\",-1*CUMIPMT($C$6/$C$8,$C$7*$C$8,$C$5,M159,N159,Pilotage!$D$25),\"\")","v":""}]
[null,null,null,null,"","",{"$f":"IF(E160<>\"\",IF($C$5=0,0,IF($C$6<=0,0,CUMIPMT($C$6/$C$8,$C$7*$C$8,$C$5,1,E160,Pilotage!$D$25))),\"\")","v":""},{"$f":"IF(E160<>\"\",IF($C$6<=0,0,IF($C$5=0,0,CUMIPMT($C$6/$C$8,$C$7*$C$8,$C$5,E160,E160,Pilotage!$D$25))),\"\")","v":""},{"$f":"IF(E160<>\"\",IF($C$5=0,0,IF($C$6<=0,C$13-E160*C$12,$C$5+CUMPRINC($C$6/$C$8,$C$7*$C$8,$C$5,1,E160,Pilotage!$D$25))),\"\")","v":""},null,null,null,null,null,{"$f":"IF(K160<>\"\",-1*CUMIPMT($C$6/$C$8,$C$7*$C$8,$C$5,M160,N160,Pilotage!$D$25),\"\")","v":""}]
[null,null,null,null,"","",{"$f":"IF(E161<>\"\",IF($C$5=0,0,IF($C$6<=0,0,CUMIPMT($C$6/$C$8,$C$7*$C$8,$C$5,1,E161,Pilotage!$D$25))),\"\")","v":""},{"$f":"IF(E161<>\"\",IF($C$6<=0,0,IF($C$5=0,0,CUMIPMT($C$6/$C$8,$C$7*$C$8,$C$5,E161,E161,Pilotage!$D$25))),\"\")","v":""},{"$f":"IF(E161<>\"\",IF($C$5=0,0,IF($C$6<=0,C$13-E161*C$12,$C$5+CUMPRINC($C$6/$C$8,$C$7*$C$8,$C$5,1,E161,Pilotage!$D$25))),\"\")","v":""},null,null,null,null,null,{"$f":"IF(K161<>\"\",-1*CUMIPMT($C$6/$C$8,$C$7*$C$8,$C$5,M161,N161,Pilotage!$D$25),\"\")","v":""}]
[null,null,null,null,"","",{"$f":"IF(E162<>\"\",IF($C$5=0,0,IF($C$6<=0,0,CUMIPMT($C$6/$C$8,$C$7*$C$8,$C$5,1,E162,Pilotage!$D$25))),\"\")","v":""},{"$f":"IF(E162<>\"\",IF($C$6<=0,0,IF($C$5=0,0,CUMIPMT($C$6/$C$8,$C$7*$C$8,$C$5,E162,E162,Pilotage!$D$25))),\"\")","v":""},{"$f":"IF(E162<>\"\",IF($C$5=0,0,IF($C$6<=0,C$13-E162*C$12,$C$5+CUMPRINC($C$6/$C$8,$C$7*$C$8,$C$5,1,E162,Pilotage!$D$25))),\"\")","v":""},null,null,null,null,null,{"$f":"IF(K162<>\"\",-1*CUMIPMT($C$6/$C$8,$C$7*$C$8,$C$5,M162,N162,Pilotage!$D$25),\"\")","v":""}]
[null,null,null,null,"","",{"$f":"IF(E163<>\"\",IF($C$5=0,0,IF($C$6<=0,0,CUMIPMT($C$6/$C$8,$C$7*$C$8,$C$5,1,E163,Pilotage!$D$25))),\"\")","v":""},{"$f":"IF(E163<>\"\",IF($C$6<=0,0,IF($C$5=0,0,CUMIPMT($C$6/$C$8,$C$7*$C$8,$C$5,E163,E163,Pilotage!$D$25))),\"\")","v":""},{"$f":"IF(E163<>\"\",IF($C$5=0,0,IF($C$6<=0,C$13-E163*C$12,$C$5+CUMPRINC($C$6/$C$8,$C$7*$C$8,$C$5,1,E163,Pilotage!$D$25))),\"\")","v":""},null,null,null,null,null,{"$f":"IF(K163<>\"\",-1*CUMIPMT($C$6/$C$8,$C$7*$C$8,$C$5,M163,N163,Pilotage!$D$25),\"\")","v":""}]
[null,null,null,null,"","",{"$f":"IF(E164<>\"\",IF($C$5=0,0,IF($C$6<=0,0,CUMIPMT($C$6/$C$8,$C$7*$C$8,$C$5,1,E164,Pilotage!$D$25))),\"\")","v":""},{"$f":"IF(E164<>\"\",IF($C$6<=0,0,IF($C$5=0,0,CUMIPMT($C$6/$C$8,$C$7*$C$8,$C$5,E164,E164,Pilotage!$D$25))),\"\")","v":""},{"$f":"IF(E164<>\"\",IF($C$5=0,0,IF($C$6<=0,C$13-E164*C$12,$C$5+CUMPRINC($C$6/$C$8,$C$7*$C$8,$C$5,1,E164,Pilotage!$D$25))),\"\")","v":""},null,null,null,null,null,{"$f":"IF(K164<>\"\",-1*CUMIPMT($C$6/$C$8,$C$7*$C$8,$C$5,M164,N164,Pilotage!$D$25),\"\")","v":""}]
[null,null,null,null,"","",{"$f":"IF(E165<>\"\",IF($C$5=0,0,IF($C$6<=0,0,CUMIPMT($C$6/$C$8,$C$7*$C$8,$C$5,1,E165,Pilotage!$D$25))),\"\")","v":""},{"$f":"IF(E165<>\"\",IF($C$6<=0,0,IF($C$5=0,0,CUMIPMT($C$6/$C$8,$C$7*$C$8,$C$5,E165,E165,Pilotage!$D$25))),\"\")","v":""},{"$f":"IF(E165<>\"\",IF($C$5=0,0,IF($C$6<=0,C$13-E165*C$12,$C$5+CUMPRINC($C$6/$C$8,$C$7*$C$8,$C$5,1,E165,Pilotage!$D$25))),\"\")","v":""},null,null,null,null,null,{"$f":"IF(K165<>\"\",-1*CUMIPMT($C$6/$C$8,$C$7*$C$8,$C$5,M165,N165,Pilotage!$D$25),\"\")","v":""}]
[null,null,null,null,"","",{"$f":"IF(E166<>\"\",IF($C$5=0,0,IF($C$6<=0,0,CUMIPMT($C$6/$C$8,$C$7*$C$8,$C$5,1,E166,Pilotage!$D$25))),\"\")","v":""},{"$f":"IF(E166<>\"\",IF($C$6<=0,0,IF($C$5=0,0,CUMIPMT($C$6/$C$8,$C$7*$C$8,$C$5,E166,E166,Pilotage!$D$25))),\"\")","v":""},{"$f":"IF(E166<>\"\",IF($C$5=0,0,IF($C$6<=0,C$13-E166*C$12,$C$5+CUMPRINC($C$6/$C$8,$C$7*$C$8,$C$5,1,E166,Pilotage!$D$25))),\"\")","v":""},null,null,null,null,null,{"$f":"IF(K166<>\"\",-1*CUMIPMT($C$6/$C$8,$C$7*$C$8,$C$5,M166,N166,Pilotage!$D$25),\"\")","v":""}]
[null,null,null,null,"","",{"$f":"IF(E167<>\"\",IF($C$5=0,0,IF($C$6<=0,0,CUMIPMT($C$6/$C$8,$C$7*$C$8,$C$5,1,E167,Pilotage!$D$25))),\"\")","v":""},{"$f":"IF(E167<>\"\",IF($C$6<=0,0,IF($C$5=0,0,CUMIPMT($C$6/$C$8,$C$7*$C$8,$C$5,E167,E167,Pilotage!$D$25))),\"\")","v":""},{"$f":"IF(E167<>\"\",IF($C$5=0,0,IF($C$6<=0,C$13-E167*C$12,$C$5+CUMPRINC($C$6/$C$8,$C$7*$C$8,$C$5,1,E167,Pilotage!$D$25))),\"\")","v":""},null,null,null,null,null,{"$f":"IF(K167<>\"\",-1*CUMIPMT($C$6/$C$8,$C$7*$C$8,$C$5,M167,N167,Pilotage!$D$25),\"\")","v":""}]
[null,null,null,null,"","",{"$f":"IF(E168<>\"\",IF($C$5=0,0,IF($C$6<=0,0,CUMIPMT($C$6/$C$8,$C$7*$C$8,$C$5,1,E168,Pilotage!$D$25))),\"\")","v":""},{"$f":"IF(E168<>\"\",IF($C$6<=0,0,IF($C$5=0,0,CUMIPMT($C$6/$C$8,$C$7*$C$8,$C$5,E168,E168,Pilotage!$D$25))),\"\")","v":""},{"$f":"IF(E168<>\"\",IF($C$5=0,0,IF($C$6<=0,C$13-E168*C$12,$C$5+CUMPRINC($C$6/$C$8,$C$7*$C$8,$C$5,1,E168,Pilotage!$D$25))),\"\")","v":""},null,null,null,null,null,{"$f":"IF(K168<>\"\",-1*CUMIPMT($C$6/$C$8,$C$7*$C$8,$C$5,M168,N168,Pilotage!$D$25),\"\")","v":""}]
[null,null,null,null,"","",{"$f":"IF(E169<>\"\",IF($C$5=0,0,IF($C$6<=0,0,CUMIPMT($C$6/$C$8,$C$7*$C$8,$C$5,1,E169,Pilotage!$D$25))),\"\")","v":""},{"$f":"IF(E169<>\"\",IF($C$6<=0,0,IF($C$5=0,0,CUMIPMT($C$6/$C$8,$C$7*$C$8,$C$5,E169,E169,Pilotage!$D$25))),\"\")","v":""},{"$f":"IF(E169<>\"\",IF($C$5=0,0,IF($C$6<=0,C$13-E169*C$12,$C$5+CUMPRINC($C$6/$C$8,$C$7*$C$8,$C$5,1,E169,Pilotage!$D$25))),\"\")","v":""},null,null,null,null,null,{"$f":"IF(K169<>\"\",-1*CUMIPMT($C$6/$C$8,$C$7*$C$8,$C$5,M169,N169,Pilotage!$D$25),\"\")","v":""}]
[null,null,null,null,"","",{"$f":"IF(E170<>\"\",IF($C$5=0,0,IF($C$6<=0,0,CUMIPMT($C$6/$C$8,$C$7*$C$8,$C$5,1,E170,Pilotage!$D$25))),\"\")","v":""},{"$f":"IF(E170<>\"\",IF($C$6<=0,0,IF($C$5=0,0,CUMIPMT($C$6/$C$8,$C$7*$C$8,$C$5,E170,E170,Pilotage!$D$25))),\"\")","v":""},{"$f":"IF(E170<>\"\",IF($C$5=0,0,IF($C$6<=0,C$13-E170*C$12,$C$5+CUMPRINC($C$6/$C$8,$C$7*$C$8,$C$5,1,E170,Pilotage!$D$25))),\"\")","v":""},null,null,null,null,null,{"$f":"IF(K170<>\"\",-1*CUMIPMT($C$6/$C$8,$C$7*$C$8,$C$5,M170,N170,Pilotage!$D$25),\"\")","v":""}]
[null,null,null,null,"","",{"$f":"IF(E171<>\"\",IF($C$5=0,0,IF($C$6<=0,0,CUMIPMT($C$6/$C$8,$C$7*$C$8,$C$5,1,E171,Pilotage!$D$25))),\"\")","v":""},{"$f":"IF(E171<>\"\",IF($C$6<=0,0,IF($C$5=0,0,CUMIPMT($C$6/$C$8,$C$7*$C$8,$C$5,E171,E171,Pilotage!$D$25))),\"\")","v":""},{"$f":"IF(E171<>\"\",IF($C$5=0,0,IF($C$6<=0,C$13-E171*C$12,$C$5+CUMPRINC($C$6/$C$8,$C$7*$C$8,$C$5,1,E171,Pilotage!$D$25))),\"\")","v":""},null,null,null,null,null,{"$f":"IF(K171<>\"\",-1*CUMIPMT($C$6/$C$8,$C$7*$C$8,$C$5,M171,N171,Pilotage!$D$25),\"\")","v":""}]
[null,null,null,null,"","",{"$f":"IF(E172<>\"\",IF($C$5=0,0,IF($C$6<=0,0,CUMIPMT($C$6/$C$8,$C$7*$C$8,$C$5,1,E172,Pilotage!$D$25))),\"\")","v":""},{"$f":"IF(E172<>\"\",IF($C$6<=0,0,IF($C$5=0,0,CUMIPMT($C$6/$C$8,$C$7*$C$8,$C$5,E172,E172,Pilotage!$D$25))),\"\")","v":""},{"$f":"IF(E172<>\"\",IF($C$5=0,0,IF($C$6<=0,C$13-E172*C$12,$C$5+CUMPRINC($C$6/$C$8,$C$7*$C$8,$C$5,1,E172,Pilotage!$D$25))),\"\")","v":""},null,null,null,null,null,{"$f":"IF(K172<>\"\",-1*CUMIPMT($C$6/$C$8,$C$7*$C$8,$C$5,M172,N172,Pilotage!$D$25),\"\")","v":""}]
[null,null,null,null,"","",{"$f":"IF(E173<>\"\",IF($C$5=0,0,IF($C$6<=0,0,CUMIPMT($C$6/$C$8,$C$7*$C$8,$C$5,1,E173,Pilotage!$D$25))),\"\")","v":""},{"$f":"IF(E173<>\"\",IF($C$6<=0,0,IF($C$5=0,0,CUMIPMT($C$6/$C$8,$C$7*$C$8,$C$5,E173,E173,Pilotage!$D$25))),\"\")","v":""},{"$f":"IF(E173<>\"\",IF($C$5=0,0,IF($C$6<=0,C$13-E173*C$12,$C$5+CUMPRINC($C$6/$C$8,$C$7*$C$8,$C$5,1,E173,Pilotage!$D$25))),\"\")","v":""},null,null,null,null,null,{"$f":"IF(K173<>\"\",-1*CUMIPMT($C$6/$C$8,$C$7*$C$8,$C$5,M173,N173,Pilotage!$D$25),\"\")","v":""}]
[null,null,null,null,"","",{"$f":"IF(E174<>\"\",IF($C$5=0,0,IF($C$6<=0,0,CUMIPMT($C$6/$C$8,$C$7*$C$8,$C$5,1,E174,Pilotage!$D$25))),\"\")","v":""},{"$f":"IF(E174<>\"\",IF($C$6<=0,0,IF($C$5=0,0,CUMIPMT($C$6/$C$8,$C$7*$C$8,$C$5,E174,E174,Pilotage!$D$25))),\"\")","v":""},{"$f":"IF(E174<>\"\",IF($C$5=0,0,IF($C$6<=0,C$13-E174*C$12,$C$5+CUMPRINC($C$6/$C$8,$C$7*$C$8,$C$5,1,E174,Pilotage!$D$25))),\"\")","v":""},null,null,null,null,null,{"$f":"IF(K174<>\"\",-1*CUMIPMT($C$6/$C$8,$C$7*$C$8,$C$5,M174,N174,Pilotage!$D$25),\"\")","v":""}]
[null,null,null,null,"","",{"$f":"IF(E175<>\"\",IF($C$5=0,0,IF($C$6<=0,0,CUMIPMT($C$6/$C$8,$C$7*$C$8,$C$5,1,E175,Pilotage!$D$25))),\"\")","v":""},{"$f":"IF(E175<>\"\",IF($C$6<=0,0,IF($C$5=0,0,CUMIPMT($C$6/$C$8,$C$7*$C$8,$C$5,E175,E175,Pilotage!$D$25))),\"\")","v":""},{"$f":"IF(E175<>\"\",IF($C$5=0,0,IF($C$6<=0,C$13-E175*C$12,$C$5+CUMPRINC($C$6/$C$8,$C$7*$C$8,$C$5,1,E175,Pilotage!$D$25))),\"\")","v":""},null,null,null,null,null,{"$f":"IF(K175<>\"\",-1*CUMIPMT($C$6/$C$8,$C$7*$C$8,$C$5,M175,N175,Pilotage!$D$25),\"\")","v":""}]
[null,null,null,null,"","",{"$f":"IF(E176<>\"\",IF($C$5=0,0,IF($C$6<=0,0,CUMIPMT($C$6/$C$8,$C$7*$C$8,$C$5,1,E176,Pilotage!$D$25))),\"\")","v":""},{"$f":"IF(E176<>\"\",IF($C$6<=0,0,IF($C$5=0,0,CUMIPMT($C$6/$C$8,$C$7*$C$8,$C$5,E176,E176,Pilotage!$D$25))),\"\")","v":""},{"$f":"IF(E176<>\"\",IF($C$5=0,0,IF($C$6<=0,C$13-E176*C$12,$C$5+CUMPRINC($C$6/$C$8,$C$7*$C$8,$C$5,1,E176,Pilotage!$D$25))),\"\")","v":""},null,null,null,null,null,{"$f":"IF(K176<>\"\",-1*CUMIPMT($C$6/$C$8,$C$7*$C$8,$C$5,M176,N176,Pilotage!$D$25),\"\")","v":""}]
[null,null,null,null,"","",{"$f":"IF(E177<>\"\",IF($C$5=0,0,IF($C$6<=0,0,CUMIPMT($C$6/$C$8,$C$7*$C$8,$C$5,1,E177,Pilotage!$D$25))),\"\")","v":""},{"$f":"IF(E177<>\"\",IF($C$6<=0,0,IF($C$5=0,0,CUMIPMT($C$6/$C$8,$C$7*$C$8,$C$5,E177,E177,Pilotage!$D$25))),\"\")","v":""},{"$f":"IF(E177<>\"\",IF($C$5=0,0,IF($C$6<=0,C$13-E177*C$12,$C$5+CUMPRINC($C$6/$C$8,$C$7*$C$8,$C$5,1,E177,Pilotage!$D$25))),\"\")","v":""},null,null,null,null,null,{"$f":"IF(K177<>\"\",-1*CUMIPMT($C$6/$C$8,$C$7*$C$8,$C$5,M177,N177,Pilotage!$D$25),\"\")","v":""}]
[null,null,null,null,"","",{"$f":"IF(E178<>\"\",IF($C$5=0,0,IF($C$6<=0,0,CUMIPMT($C$6/$C$8,$C$7*$C$8,$C$5,1,E178,Pilotage!$D$25))),\"\")","v":""},{"$f":"IF(E178<>\"\",IF($C$6<=0,0,IF($C$5=0,0,CUMIPMT($C$6/$C$8,$C$7*$C$8,$C$5,E178,E178,Pilotage!$D$25))),\"\")","v":""},{"$f":"IF(E178<>\"\",IF($C$5=0,0,IF($C$6<=0,C$13-E178*C$12,$C$5+CUMPRINC($C$6/$C$8,$C$7*$C$8,$C$5,1,E178,Pilotage!$D$25))),\"\")","v":""},null,null,null,null,null,{"$f":"IF(K178<>\"\",-1*CUMIPMT($C$6/$C$8,$C$7*$C$8,$C$5,M178,N178,Pilotage!$D$25),\"\")","v":""}]
[null,null,null,null,"","",{"$f":"IF(E179<>\"\",IF($C$5=0,0,IF($C$6<=0,0,CUMIPMT($C$6/$C$8,$C$7*$C$8,$C$5,1,E179,Pilotage!$D$25))),\"\")","v":""},{"$f":"IF(E179<>\"\",IF($C$6<=0,0,IF($C$5=0,0,CUMIPMT($C$6/$C$8,$C$7*$C$8,$C$5,E179,E179,Pilotage!$D$25))),\"\")","v":""},{"$f":"IF(E179<>\"\",IF($C$5=0,0,IF($C$6<=0,C$13-E179*C$12,$C$5+CUMPRINC($C$6/$C$8,$C$7*$C$8,$C$5,1,E179,Pilotage!$D$25))),\"\")","v":""},null,null,null,null,null,{"$f":"IF(K179<>\"\",-1*CUMIPMT($C$6/$C$8,$C$7*$C$8,$C$5,M179,N179,Pilotage!$D$25),\"\")","v":""}]
[null,null,null,null,"","",{"$f":"IF(E180<>\"\",IF($C$5=0,0,IF($C$6<=0,0,CUMIPMT($C$6/$C$8,$C$7*$C$8,$C$5,1,E180,Pilotage!$D$25))),\"\")","v":""},{"$f":"IF(E180<>\"\",IF($C$6<=0,0,IF($C$5=0,0,CUMIPMT($C$6/$C$8,$C$7*$C$8,$C$5,E180,E180,Pilotage!$D$25))),\"\")","v":""},{"$f":"IF(E180<>\"\",IF($C$5=0,0,IF($C$6<=0,C$13-E180*C$12,$C$5+CUMPRINC($C$6/$C$8,$C$7*$C$8,$C$5,1,E180,Pilotage!$D$25))),\"\")","v":""},null,null,null,null,null,{"$f":"IF(K180<>\"\",-1*CUMIPMT($C$6/$C$8,$C$7*$C$8,$C$5,M180,N180,Pilotage!$D$25),\"\")","v":""}]
[null,null,null,null,"","",{"$f":"IF(E181<>\"\",IF($C$5=0,0,IF($C$6<=0,0,CUMIPMT($C$6/$C$8,$C$7*$C$8,$C$5,1,E181,Pilotage!$D$25))),\"\")","v":""},{"$f":"IF(E181<>\"\",IF($C$6<=0,0,IF($C$5=0,0,CUMIPMT($C$6/$C$8,$C$7*$C$8,$C$5,E181,E181,Pilotage!$D$25))),\"\")","v":""},{"$f":"IF(E181<>\"\",IF($C$5=0,0,IF($C$6<=0,C$13-E181*C$12,$C$5+CUMPRINC($C$6/$C$8,$C$7*$C$8,$C$5,1,E181,Pilotage!$D$25))),\"\")","v":""},null,null,null,null,null,{"$f":"IF(K181<>\"\",-1*CUMIPMT($C$6/$C$8,$C$7*$C$8,$C$5,M181,N181,Pilotage!$D$25),\"\")","v":""}]
[null,null,null,null,"","",{"$f":"IF(E182<>\"\",IF($C$5=0,0,IF($C$6<=0,0,CUMIPMT($C$6/$C$8,$C$7*$C$8,$C$5,1,E182,Pilotage!$D$25))),\"\")","v":""},{"$f":"IF(E182<>\"\",IF($C$6<=0,0,IF($C$5=0,0,CUMIPMT($C$6/$C$8,$C$7*$C$8,$C$5,E182,E182,Pilotage!$D$25))),\"\")","v":""},{"$f":"IF(E182<>\"\",IF($C$5=0,0,IF($C$6<=0,C$13-E182*C$12,$C$5+CUMPRINC($C$6/$C$8,$C$7*$C$8,$C$5,1,E182,Pilotage!$D$25))),\"\")","v":""},null,null,null,null,null,{"$f":"IF(K182<>\"\",-1*CUMIPMT($C$6/$C$8,$C$7*$C$8,$C$5,M182,N182,Pilotage!$D$25),\"\")","v":""}]
[null,null,null,null,"","",{"$f":"IF(E183<>\"\",IF($C$5=0,0,IF($C$6<=0,0,CUMIPMT($C$6/$C$8,$C$7*$C$8,$C$5,1,E183,Pilotage!$D$25))),\"\")","v":""},{"$f":"IF(E183<>\"\",IF($C$6<=0,0,IF($C$5=0,0,CUMIPMT($C$6/$C$8,$C$7*$C$8,$C$5,E183,E183,Pilotage!$D$25))),\"\")","v":""},{"$f":"IF(E183<>\"\",IF($C$5=0,0,IF($C$6<=0,C$13-E183*C$12,$C$5+CUMPRINC($C$6/$C$8,$C$7*$C$8,$C$5,1,E183,Pilotage!$D$25))),\"\")","v":""},null,null,null,null,null,{"$f":"IF(K183<>\"\",-1*CUMIPMT($C$6/$C$8,$C$7*$C$8,$C$5,M183,N183,Pilotage!$D$25),\"\")","v":""}]
[null,null,null,null,"","",{"$f":"IF(E184<>\"\",IF($C$5=0,0,IF($C$6<=0,0,CUMIPMT($C$6/$C$8,$C$7*$C$8,$C$5,1,E184,Pilotage!$D$25))),\"\")","v":""},{"$f":"IF(E184<>\"\",IF($C$6<=0,0,IF($C$5=0,0,CUMIPMT($C$6/$C$8,$C$7*$C$8,$C$5,E184,E184,Pilotage!$D$25))),\"\")","v":""},{"$f":"IF(E184<>\"\",IF($C$5=0,0,IF($C$6<=0,C$13-E184*C$12,$C$5+CUMPRINC($C$6/$C$8,$C$7*$C$8,$C$5,1,E184,Pilotage!$D$25))),\"\")","v":""},null,null,null,null,null,{"$f":"IF(K184<>\"\",-1*CUMIPMT($C$6/$C$8,$C$7*$C$8,$C$5,M184,N184,Pilotage!$D$25),\"\")","v":""}]
[null,null,null,null,"","",{"$f":"IF(E185<>\"\",IF($C$5=0,0,IF($C$6<=0,0,CUMIPMT($C$6/$C$8,$C$7*$C$8,$C$5,1,E185,Pilotage!$D$25))),\"\")","v":""},{"$f":"IF(E185<>\"\",IF($C$6<=0,0,IF($C$5=0,0,CUMIPMT($C$6/$C$8,$C$7*$C$8,$C$5,E185,E185,Pilotage!$D$25))),\"\")","v":""},{"$f":"IF(E185<>\"\",IF($C$5=0,0,IF($C$6<=0,C$13-E185*C$12,$C$5+CUMPRINC($C$6/$C$8,$C$7*$C$8,$C$5,1,E185,Pilotage!$D$25))),\"\")","v":""},null,null,null,null,null,{"$f":"IF(K185<>\"\",-1*CUMIPMT($C$6/$C$8,$C$7*$C$8,$C$5,M185,N185,Pilotage!$D$25),\"\")","v":""}]
[null,null,null,null,"","",{"$f":"IF(E186<>\"\",IF($C$5=0,0,IF($C$6<=0,0,CUMIPMT($C$6/$C$8,$C$7*$C$8,$C$5,1,E186,Pilotage!$D$25))),\"\")","v":""},{"$f":"IF(E186<>\"\",IF($C$6<=0,0,IF($C$5=0,0,CUMIPMT($C$6/$C$8,$C$7*$C$8,$C$5,E186,E186,Pilotage!$D$25))),\"\")","v":""},{"$f":"IF(E186<>\"\",IF($C$5=0,0,IF($C$6<=0,C$13-E186*C$12,$C$5+CUMPRINC($C$6/$C$8,$C$7*$C$8,$C$5,1,E186,Pilotage!$D$25))),\"\")","v":""},null,null,null,null,null,{"$f":"IF(K186<>\"\",-1*CUMIPMT($C$6/$C$8,$C$7*$C$8,$C$5,M186,N186,Pilotage!$D$25),\"\")","v":""}]
[null,null,null,null,"","",{"$f":"IF(E187<>\"\",IF($C$5=0,0,IF($C$6<=0,0,CUMIPMT($C$6/$C$8,$C$7*$C$8,$C$5,1,E187,Pilotage!$D$25))),\"\")","v":""},{"$f":"IF(E187<>\"\",IF($C$6<=0,0,IF($C$5=0,0,CUMIPMT($C$6/$C$8,$C$7*$C$8,$C$5,E187,E187,Pilotage!$D$25))),\"\")","v":""},{"$f":"IF(E187<>\"\",IF($C$5=0,0,IF($C$6<=0,C$13-E187*C$12,$C$5+CUMPRINC($C$6/$C$8,$C$7*$C$8,$C$5,1,E187,Pilotage!$D$25))),\"\")","v":""},null,null,null,null,null,{"$f":"IF(K187<>\"\",-1*CUMIPMT($C$6/$C$8,$C$7*$C$8,$C$5,M187,N187,Pilotage!$D$25),\"\")","v":""}]
[null,null,null,null,"","",{"$f":"IF(E188<>\"\",IF($C$5=0,0,IF($C$6<=0,0,CUMIPMT($C$6/$C$8,$C$7*$C$8,$C$5,1,E188,Pilotage!$D$25))),\"\")","v":""},{"$f":"IF(E188<>\"\",IF($C$6<=0,0,IF($C$5=0,0,CUMIPMT($C$6/$C$8,$C$7*$C$8,$C$5,E188,E188,Pilotage!$D$25))),\"\")","v":""},{"$f":"IF(E188<>\"\",IF($C$5=0,0,IF($C$6<=0,C$13-E188*C$12,$C$5+CUMPRINC($C$6/$C$8,$C$7*$C$8,$C$5,1,E188,Pilotage!$D$25))),\"\")","v":""},null,null,null,null,null,{"$f":"IF(K188<>\"\",-1*CUMIPMT($C$6/$C$8,$C$7*$C$8,$C$5,M188,N188,Pilotage!$D$25),\"\")","v":""}]
[null,null,null,null,"","",{"$f":"IF(E189<>\"\",IF($C$5=0,0,IF($C$6<=0,0,CUMIPMT($C$6/$C$8,$C$7*$C$8,$C$5,1,E189,Pilotage!$D$25))),\"\")","v":""},{"$f":"IF(E189<>\"\",IF($C$6<=0,0,IF($C$5=0,0,CUMIPMT($C$6/$C$8,$C$7*$C$8,$C$5,E189,E189,Pilotage!$D$25))),\"\")","v":""},{"$f":"IF(E189<>\"\",IF($C$5=0,0,IF($C$6<=0,C$13-E189*C$12,$C$5+CUMPRINC($C$6/$C$8,$C$7*$C$8,$C$5,1,E189,Pilotage!$D$25))),\"\")","v":""},null,null,null,null,null,{"$f":"IF(K189<>\"\",-1*CUMIPMT($C$6/$C$8,$C$7*$C$8,$C$5,M189,N189,Pilotage!$D$25),\"\")","v":""}]
[null,null,null,null,"","",{"$f":"IF(E190<>\"\",IF($C$5=0,0,IF($C$6<=0,0,CUMIPMT($C$6/$C$8,$C$7*$C$8,$C$5,1,E190,Pilotage!$D$25))),\"\")","v":""},{"$f":"IF(E190<>\"\",IF($C$6<=0,0,IF($C$5=0,0,CUMIPMT($C$6/$C$8,$C$7*$C$8,$C$5,E190,E190,Pilotage!$D$25))),\"\")","v":""},{"$f":"IF(E190<>\"\",IF($C$5=0,0,IF($C$6<=0,C$13-E190*C$12,$C$5+CUMPRINC($C$6/$C$8,$C$7*$C$8,$C$5,1,E190,Pilotage!$D$25))),\"\")","v":""},null,null,null,null,null,{"$f":"IF(K190<>\"\",-1*CUMIPMT($C$6/$C$8,$C$7*$C$8,$C$5,M190,N190,Pilotage!$D$25),\"\")","v":""}]
[null,null,null,null,"","",{"$f":"IF(E191<>\"\",IF($C$5=0,0,IF($C$6<=0,0,CUMIPMT($C$6/$C$8,$C$7*$C$8,$C$5,1,E191,Pilotage!$D$25))),\"\")","v":""},{"$f":"IF(E191<>\"\",IF($C$6<=0,0,IF($C$5=0,0,CUMIPMT($C$6/$C$8,$C$7*$C$8,$C$5,E191,E191,Pilotage!$D$25))),\"\")","v":""},{"$f":"IF(E191<>\"\",IF($C$5=0,0,IF($C$6<=0,C$13-E191*C$12,$C$5+CUMPRINC($C$6/$C$8,$C$7*$C$8,$C$5,1,E191,Pilotage!$D$25))),\"\")","v":""},null,null,null,null,null,{"$f":"IF(K191<>\"\",-1*CUMIPMT($C$6/$C$8,$C$7*$C$8,$C$5,M191,N191,Pilotage!$D$25),\"\")","v":""}]
[null,null,null,null,"","",{"$f":"IF(E192<>\"\",IF($C$5=0,0,IF($C$6<=0,0,CUMIPMT($C$6/$C$8,$C$7*$C$8,$C$5,1,E192,Pilotage!$D$25))),\"\")","v":""},{"$f":"IF(E192<>\"\",IF($C$6<=0,0,IF($C$5=0,0,CUMIPMT($C$6/$C$8,$C$7*$C$8,$C$5,E192,E192,Pilotage!$D$25))),\"\")","v":""},{"$f":"IF(E192<>\"\",IF($C$5=0,0,IF($C$6<=0,C$13-E192*C$12,$C$5+CUMPRINC($C$6/$C$8,$C$7*$C$8,$C$5,1,E192,Pilotage!$D$25))),\"\")","v":""},null,null,null,null,null,{"$f":"IF(K192<>\"\",-1*CUMIPMT($C$6/$C$8,$C$7*$C$8,$C$5,M192,N192,Pilotage!$D$25),\"\")","v":""}]
[null,null,null,null,"","",{"$f":"IF(E193<>\"\",IF($C$5=0,0,IF($C$6<=0,0,CUMIPMT($C$6/$C$8,$C$7*$C$8,$C$5,1,E193,Pilotage!$D$25))),\"\")","v":""},{"$f":"IF(E193<>\"\",IF($C$6<=0,0,IF($C$5=0,0,CUMIPMT($C$6/$C$8,$C$7*$C$8,$C$5,E193,E193,Pilotage!$D$25))),\"\")","v":""},{"$f":"IF(E193<>\"\",IF($C$5=0,0,IF($C$6<=0,C$13-E193*C$12,$C$5+CUMPRINC($C$6/$C$8,$C$7*$C$8,$C$5,1,E193,Pilotage!$D$25))),\"\")","v":""},null,null,null,null,null,{"$f":"IF(K193<>\"\",-1*CUMIPMT($C$6/$C$8,$C$7*$C$8,$C$5,M193,N193,Pilotage!$D$25),\"\")","v":""}]
[null,null,null,null,"","",{"$f":"IF(E194<>\"\",IF($C$5=0,0,IF($C$6<=0,0,CUMIPMT($C$6/$C$8,$C$7*$C$8,$C$5,1,E194,Pilotage!$D$25))),\"\")","v":""},{"$f":"IF(E194<>\"\",IF($C$6<=0,0,IF($C$5=0,0,CUMIPMT($C$6/$C$8,$C$7*$C$8,$C$5,E194,E194,Pilotage!$D$25))),\"\")","v":""},{"$f":"IF(E194<>\"\",IF($C$5=0,0,IF($C$6<=0,C$13-E194*C$12,$C$5+CUMPRINC($C$6/$C$8,$C$7*$C$8,$C$5,1,E194,Pilotage!$D$25))),\"\")","v":""},null,null,null,null,null,{"$f":"IF(K194<>\"\",-1*CUMIPMT($C$6/$C$8,$C$7*$C$8,$C$5,M194,N194,Pilotage!$D$25),\"\")","v":""}]
[null,null,null,null,"","",{"$f":"IF(E195<>\"\",IF($C$5=0,0,IF($C$6<=0,0,CUMIPMT($C$6/$C$8,$C$7*$C$8,$C$5,1,E195,Pilotage!$D$25))),\"\")","v":""},{"$f":"IF(E195<>\"\",IF($C$6<=0,0,IF($C$5=0,0,CUMIPMT($C$6/$C$8,$C$7*$C$8,$C$5,E195,E195,Pilotage!$D$25))),\"\")","v":""},{"$f":"IF(E195<>\"\",IF($C$5=0,0,IF($C$6<=0,C$13-E195*C$12,$C$5+CUMPRINC($C$6/$C$8,$C$7*$C$8,$C$5,1,E195,Pilotage!$D$25))),\"\")","v":""},null,null,null,null,null,{"$f":"IF(K195<>\"\",-1*CUMIPMT($C$6/$C$8,$C$7*$C$8,$C$5,M195,N195,Pilotage!$D$25),\"\")","v":""}]
[null,null,null,null,"","",{"$f":"IF(E196<>\"\",IF($C$5=0,0,IF($C$6<=0,0,CUMIPMT($C$6/$C$8,$C$7*$C$8,$C$5,1,E196,Pilotage!$D$25))),\"\")","v":""},{"$f":"IF(E196<>\"\",IF($C$6<=0,0,IF($C$5=0,0,CUMIPMT($C$6/$C$8,$C$7*$C$8,$C$5,E196,E196,Pilotage!$D$25))),\"\")","v":""},{"$f":"IF(E196<>\"\",IF($C$5=0,0,IF($C$6<=0,C$13-E196*C$12,$C$5+CUMPRINC($C$6/$C$8,$C$7*$C$8,$C$5,1,E196,Pilotage!$D$25))),\"\")","v":""},null,null,null,null,null,{"$f":"IF(K196<>\"\",-1*CUMIPMT($C$6/$C$8,$C$7*$C$8,$C$5,M196,N196,Pilotage!$D$25),\"\")","v":""}]
[null,null,null,null,"","",{"$f":"IF(E197<>\"\",IF($C$5=0,0,IF($C$6<=0,0,CUMIPMT($C$6/$C$8,$C$7*$C$8,$C$5,1,E197,Pilotage!$D$25))),\"\")","v":""},{"$f":"IF(E197<>\"\",IF($C$6<=0,0,IF($C$5=0,0,CUMIPMT($C$6/$C$8,$C$7*$C$8,$C$5,E197,E197,Pilotage!$D$25))),\"\")","v":""},{"$f":"IF(E197<>\"\",IF($C$5=0,0,IF($C$6<=0,C$13-E197*C$12,$C$5+CUMPRINC($C$6/$C$8,$C$7*$C$8,$C$5,1,E197,Pilotage!$D$25))),\"\")","v":""},null,null,null,null,null,{"$f":"IF(K197<>\"\",-1*CUMIPMT($C$6/$C$8,$C$7*$C$8,$C$5,M197,N197,Pilotage!$D$25),\"\")","v":""}]
[null,null,null,null,"","",{"$f":"IF(E198<>\"\",IF($C$5=0,0,IF($C$6<=0,0,CUMIPMT($C$6/$C$8,$C$7*$C$8,$C$5,1,E198,Pilotage!$D$25))),\"\")","v":""},{"$f":"IF(E198<>\"\",IF($C$6<=0,0,IF($C$5=0,0,CUMIPMT($C$6/$C$8,$C$7*$C$8,$C$5,E198,E198,Pilotage!$D$25))),\"\")","v":""},{"$f":"IF(E198<>\"\",IF($C$5=0,0,IF($C$6<=0,C$13-E198*C$12,$C$5+CUMPRINC($C$6/$C$8,$C$7*$C$8,$C$5,1,E198,Pilotage!$D$25))),\"\")","v":""},null,null,null,null,null,{"$f":"IF(K198<>\"\",-1*CUMIPMT($C$6/$C$8,$C$7*$C$8,$C$5,M198,N198,Pilotage!$D$25),\"\")","v":""}]
[null,null,null,null,"","",{"$f":"IF(E199<>\"\",IF($C$5=0,0,IF($C$6<=0,0,CUMIPMT($C$6/$C$8,$C$7*$C$8,$C$5,1,E199,Pilotage!$D$25))),\"\")","v":""},{"$f":"IF(E199<>\"\",IF($C$6<=0,0,IF($C$5=0,0,CUMIPMT($C$6/$C$8,$C$7*$C$8,$C$5,E199,E199,Pilotage!$D$25))),\"\")","v":""},{"$f":"IF(E199<>\"\",IF($C$5=0,0,IF($C$6<=0,C$13-E199*C$12,$C$5+CUMPRINC($C$6/$C$8,$C$7*$C$8,$C$5,1,E199,Pilotage!$D$25))),\"\")","v":""},null,null,null,null,null,{"$f":"IF(K199<>\"\",-1*CUMIPMT($C$6/$C$8,$C$7*$C$8,$C$5,M199,N199,Pilotage!$D$25),\"\")","v":""}]
[null,null,null,null,{"$f":"IF(E199<$C$10,E199+1,\"\")","v":""},{"$f":"IF(E200<>\"\",EDATE(F199,$C$11),\"\")","v":""},{"$f":"IF(E200<>\"\",IF($C$5=0,0,IF($C$6<=0,0,CUMIPMT($C$6/$C$8,$C$7*$C$8,$C$5,1,E200,Pilotage!$D$25))),\"\")","v":""},{"$f":"IF(E200<>\"\",IF($C$6<=0,0,IF($C$5=0,0,CUMIPMT($C$6/$C$8,$C$7*$C$8,$C$5,E200,E200,Pilotage!$D$25))),\"\")","v":""},{"$f":"IF(E200<>\"\",IF($C$5=0,0,IF($C$6<=0,C$13-E200*C$12,$C$5+CUMPRINC($C$6/$C$8,$C$7*$C$8,$C$5,1,E200,Pilotage!$D$25))),\"\")","v":""},null,null,null,null,null,{"$f":"IF(K200<>\"\",-1*CUMIPMT($C$6/$C$8,$C$7*$C$8,$C$5,M200,N200,Pilotage!$D$25),\"\")","v":""}]
[null,null,null,null,"","",{"$f":"IF(E201<>\"\",IF($C$5=0,0,IF($C$6<=0,0,CUMIPMT($C$6/$C$8,$C$7*$C$8,$C$5,1,E201,Pilotage!$D$25))),\"\")","v":""},{"$f":"IF(E201<>\"\",IF($C$6<=0,0,IF($C$5=0,0,CUMIPMT($C$6/$C$8,$C$7*$C$8,$C$5,E201,E201,Pilotage!$D$25))),\"\")","v":""},{"$f":"IF(E201<>\"\",IF($C$5=0,0,IF($C$6<=0,C$13-E201*C$12,$C$5+CUMPRINC($C$6/$C$8,$C$7*$C$8,$C$5,1,E201,Pilotage!$D$25))),\"\")","v":""},null,null,null,null,null,{"$f":"IF(K201<>\"\",-1*CUMIPMT($C$6/$C$8,$C$7*$C$8,$C$5,M201,N201,Pilotage!$D$25),\"\")","v":""}]
[null,null,null,null,"","",{"$f":"IF(E202<>\"\",IF($C$5=0,0,IF($C$6<=0,0,CUMIPMT($C$6/$C$8,$C$7*$C$8,$C$5,1,E202,Pilotage!$D$25))),\"\")","v":""},{"$f":"IF(E202<>\"\",IF($C$6<=0,0,IF($C$5=0,0,CUMIPMT($C$6/$C$8,$C$7*$C$8,$C$5,E202,E202,Pilotage!$D$25))),\"\")","v":""},{"$f":"IF(E202<>\"\",IF($C$5=0,0,IF($C$6<=0,C$13-E202*C$12,$C$5+CUMPRINC($C$6/$C$8,$C$7*$C$8,$C$5,1,E202,Pilotage!$D$25))),\"\")","v":""},null,null,null,null,null,{"$f":"IF(K202<>\"\",-1*CUMIPMT($C$6/$C$8,$C$7*$C$8,$C$5,M202,N202,Pilotage!$D$25),\"\")","v":""}]
[null,null,null,null,"","",{"$f":"IF(E203<>\"\",IF($C$5=0,0,IF($C$6<=0,0,CUMIPMT($C$6/$C$8,$C$7*$C$8,$C$5,1,E203,Pilotage!$D$25))),\"\")","v":""},{"$f":"IF(E203<>\"\",IF($C$6<=0,0,IF($C$5=0,0,CUMIPMT($C$6/$C$8,$C$7*$C$8,$C$5,E203,E203,Pilotage!$D$25))),\"\")","v":""},{"$f":"IF(E203<>\"\",IF($C$5=0,0,IF($C$6<=0,C$13-E203*C$12,$C$5+CUMPRINC($C$6/$C$8,$C$7*$C$8,$C$5,1,E203,Pilotage!$D$25))),\"\")","v":""},null,null,null,null,null,{"$f":"IF(K203<>\"\",-1*CUMIPMT($C$6/$C$8,$C$7*$C$8,$C$5,M203,N203,Pilotage!$D$25),\"\")","v":""}]
[null,null,null,null,"","",{"$f":"IF(E204<>\"\",IF($C$5=0,0,IF($C$6<=0,0,CUMIPMT($C$6/$C$8,$C$7*$C$8,$C$5,1,E204,Pilotage!$D$25))),\"\")","v":""},{"$f":"IF(E204<>\"\",IF($C$6<=0,0,IF($C$5=0,0,CUMIPMT($C$6/$C$8,$C$7*$C$8,$C$5,E204,E204,Pilotage!$D$25))),\"\")","v":""},{"$f":"IF(E204<>\"\",IF($C$5=0,0,IF($C$6<=0,C$13-E204*C$12,$C$5+CUMPRINC($C$6/$C$8,$C$7*$C$8,$C$5,1,E204,Pilotage!$D$25))),\"\")","v":""},null,null,null,null,null,{"$f":"IF(K204<>\"\",-1*CUMIPMT($C$6/$C$8,$C$7*$C$8,$C$5,M204,N204,Pilotage!$D$25),\"\")","v":""}]
[null,null,null,null,"","",{"$f":"IF(E205<>\"\",IF($C$5=0,0,IF($C$6<=0,0,CUMIPMT($C$6/$C$8,$C$7*$C$8,$C$5,1,E205,Pilotage!$D$25))),\"\")","v":""},{"$f":"IF(E205<>\"\",IF($C$6<=0,0,IF($C$5=0,0,CUMIPMT($C$6/$C$8,$C$7*$C$8,$C$5,E205,E205,Pilotage!$D$25))),\"\")","v":""},{"$f":"IF(E205<>\"\",IF($C$5=0,0,IF($C$6<=0,C$13-E205*C$12,$C$5+CUMPRINC($C$6/$C$8,$C$7*$C$8,$C$5,1,E205,Pilotage!$D$25))),\"\")","v":""},null,null,null,null,null,{"$f":"IF(K205<>\"\",-1*CUMIPMT($C$6/$C$8,$C$7*$C$8,$C$5,M205,N205,Pilotage!$D$25),\"\")","v":""}]
[null,null,null,null,"","",{"$f":"IF(E206<>\"\",IF($C$5=0,0,IF($C$6<=0,0,CUMIPMT($C$6/$C$8,$C$7*$C$8,$C$5,1,E206,Pilotage!$D$25))),\"\")","v":""},{"$f":"IF(E206<>\"\",IF($C$6<=0,0,IF($C$5=0,0,CUMIPMT($C$6/$C$8,$C$7*$C$8,$C$5,E206,E206,Pilotage!$D$25))),\"\")","v":""},{"$f":"IF(E206<>\"\",IF($C$5=0,0,IF($C$6<=0,C$13-E206*C$12,$C$5+CUMPRINC($C$6/$C$8,$C$7*$C$8,$C$5,1,E206,Pilotage!$D$25))),\"\")","v":""},null,null,null,null,null,{"$f":"IF(K206<>\"\",-1*CUMIPMT($C$6/$C$8,$C$7*$C$8,$C$5,M206,N206,Pilotage!$D$25),\"\")","v":""}]
[null,null,null,null,"","",{"$f":"IF(E207<>\"\",IF($C$5=0,0,IF($C$6<=0,0,CUMIPMT($C$6/$C$8,$C$7*$C$8,$C$5,1,E207,Pilotage!$D$25))),\"\")","v":""},{"$f":"IF(E207<>\"\",IF($C$6<=0,0,IF($C$5=0,0,CUMIPMT($C$6/$C$8,$C$7*$C$8,$C$5,E207,E207,Pilotage!$D$25))),\"\")","v":""},{"$f":"IF(E207<>\"\",IF($C$5=0,0,IF($C$6<=0,C$13-E207*C$12,$C$5+CUMPRINC($C$6/$C$8,$C$7*$C$8,$C$5,1,E207,Pilotage!$D$25))),\"\")","v":""},null,null,null,null,null,{"$f":"IF(K207<>\"\",-1*CUMIPMT($C$6/$C$8,$C$7*$C$8,$C$5,M207,N207,Pilotage!$D$25),\"\")","v":""}]
[null,null,null,null,"","",{"$f":"IF(E208<>\"\",IF($C$5=0,0,IF($C$6<=0,0,CUMIPMT($C$6/$C$8,$C$7*$C$8,$C$5,1,E208,Pilotage!$D$25))),\"\")","v":""},{"$f":"IF(E208<>\"\",IF($C$6<=0,0,IF($C$5=0,0,CUMIPMT($C$6/$C$8,$C$7*$C$8,$C$5,E208,E208,Pilotage!$D$25))),\"\")","v":""},{"$f":"IF(E208<>\"\",IF($C$5=0,0,IF($C$6<=0,C$13-E208*C$12,$C$5+CUMPRINC($C$6/$C$8,$C$7*$C$8,$C$5,1,E208,Pilotage!$D$25))),\"\")","v":""},null,null,null,null,null,{"$f":"IF(K208<>\"\",-1*CUMIPMT($C$6/$C$8,$C$7*$C$8,$C$5,M208,N208,Pilotage!$D$25),\"\")","v":""}]
[null,null,null,null,"","",{"$f":"IF(E209<>\"\",IF($C$5=0,0,IF($C$6<=0,0,CUMIPMT($C$6/$C$8,$C$7*$C$8,$C$5,1,E209,Pilotage!$D$25))),\"\")","v":""},{"$f":"IF(E209<>\"\",IF($C$6<=0,0,IF($C$5=0,0,CUMIPMT($C$6/$C$8,$C$7*$C$8,$C$5,E209,E209,Pilotage!$D$25))),\"\")","v":""},{"$f":"IF(E209<>\"\",IF($C$5=0,0,IF($C$6<=0,C$13-E209*C$12,$C$5+CUMPRINC($C$6/$C$8,$C$7*$C$8,$C$5,1,E209,Pilotage!$D$25))),\"\")","v":""},null,null,null,null,null,{"$f":"IF(K209<>\"\",-1*CUMIPMT($C$6/$C$8,$C$7*$C$8,$C$5,M209,N209,Pilotage!$D$25),\"\")","v":""}]
[null,null,null,null,"","",{"$f":"IF(E210<>\"\",IF($C$5=0,0,IF($C$6<=0,0,CUMIPMT($C$6/$C$8,$C$7*$C$8,$C$5,1,E210,Pilotage!$D$25))),\"\")","v":""},{"$f":"IF(E210<>\"\",IF($C$6<=0,0,IF($C$5=0,0,CUMIPMT($C$6/$C$8,$C$7*$C$8,$C$5,E210,E210,Pilotage!$D$25))),\"\")","v":""},{"$f":"IF(E210<>\"\",IF($C$5=0,0,IF($C$6<=0,C$13-E210*C$12,$C$5+CUMPRINC($C$6/$C$8,$C$7*$C$8,$C$5,1,E210,Pilotage!$D$25))),\"\")","v":""},null,null,null,null,null,{"$f":"IF(K210<>\"\",-1*CUMIPMT($C$6/$C$8,$C$7*$C$8,$C$5,M210,N210,Pilotage!$D$25),\"\")","v":""}]
[null,null,null,null,"","",{"$f":"IF(E211<>\"\",IF($C$5=0,0,IF($C$6<=0,0,CUMIPMT($C$6/$C$8,$C$7*$C$8,$C$5,1,E211,Pilotage!$D$25))),\"\")","v":""},{"$f":"IF(E211<>\"\",IF($C$6<=0,0,IF($C$5=0,0,CUMIPMT($C$6/$C$8,$C$7*$C$8,$C$5,E211,E211,Pilotage!$D$25))),\"\")","v":""},{"$f":"IF(E211<>\"\",IF($C$5=0,0,IF($C$6<=0,C$13-E211*C$12,$C$5+CUMPRINC($C$6/$C$8,$C$7*$C$8,$C$5,1,E211,Pilotage!$D$25))),\"\")","v":""},null,null,null,null,null,{"$f":"IF(K211<>\"\",-1*CUMIPMT($C$6/$C$8,$C$7*$C$8,$C$5,M211,N211,Pilotage!$D$25),\"\")","v":""}]
[null,null,null,null,"","",{"$f":"IF(E212<>\"\",IF($C$5=0,0,IF($C$6<=0,0,CUMIPMT($C$6/$C$8,$C$7*$C$8,$C$5,1,E212,Pilotage!$D$25))),\"\")","v":""},{"$f":"IF(E212<>\"\",IF($C$6<=0,0,IF($C$5=0,0,CUMIPMT($C$6/$C$8,$C$7*$C$8,$C$5,E212,E212,Pilotage!$D$25))),\"\")","v":""},{"$f":"IF(E212<>\"\",IF($C$5=0,0,IF($C$6<=0,C$13-E212*C$12,$C$5+CUMPRINC($C$6/$C$8,$C$7*$C$8,$C$5,1,E212,Pilotage!$D$25))),\"\")","v":""},null,null,null,null,null,{"$f":"IF(K212<>\"\",-1*CUMIPMT($C$6/$C$8,$C$7*$C$8,$C$5,M212,N212,Pilotage!$D$25),\"\")","v":""}]
[null,null,null,null,"","",{"$f":"IF(E213<>\"\",IF($C$5=0,0,IF($C$6<=0,0,CUMIPMT($C$6/$C$8,$C$7*$C$8,$C$5,1,E213,Pilotage!$D$25))),\"\")","v":""},{"$f":"IF(E213<>\"\",IF($C$6<=0,0,IF($C$5=0,0,CUMIPMT($C$6/$C$8,$C$7*$C$8,$C$5,E213,E213,Pilotage!$D$25))),\"\")","v":""},{"$f":"IF(E213<>\"\",IF($C$5=0,0,IF($C$6<=0,C$13-E213*C$12,$C$5+CUMPRINC($C$6/$C$8,$C$7*$C$8,$C$5,1,E213,Pilotage!$D$25))),\"\")","v":""},null,null,null,null,null,{"$f":"IF(K213<>\"\",-1*CUMIPMT($C$6/$C$8,$C$7*$C$8,$C$5,M213,N213,Pilotage!$D$25),\"\")","v":""}]
[null,null,null,null,"","",{"$f":"IF(E214<>\"\",IF($C$5=0,0,IF($C$6<=0,0,CUMIPMT($C$6/$C$8,$C$7*$C$8,$C$5,1,E214,Pilotage!$D$25))),\"\")","v":""},{"$f":"IF(E214<>\"\",IF($C$6<=0,0,IF($C$5=0,0,CUMIPMT($C$6/$C$8,$C$7*$C$8,$C$5,E214,E214,Pilotage!$D$25))),\"\")","v":""},{"$f":"IF(E214<>\"\",IF($C$5=0,0,IF($C$6<=0,C$13-E214*C$12,$C$5+CUMPRINC($C$6/$C$8,$C$7*$C$8,$C$5,1,E214,Pilotage!$D$25))),\"\")","v":""},null,null,null,null,null,{"$f":"IF(K214<>\"\",-1*CUMIPMT($C$6/$C$8,$C$7*$C$8,$C$5,M214,N214,Pilotage!$D$25),\"\")","v":""}]
[null,null,null,null,"","",{"$f":"IF(E215<>\"\",IF($C$5=0,0,IF($C$6<=0,0,CUMIPMT($C$6/$C$8,$C$7*$C$8,$C$5,1,E215,Pilotage!$D$25))),\"\")","v":""},{"$f":"IF(E215<>\"\",IF($C$6<=0,0,IF($C$5=0,0,CUMIPMT($C$6/$C$8,$C$7*$C$8,$C$5,E215,E215,Pilotage!$D$25))),\"\")","v":""},{"$f":"IF(E215<>\"\",IF($C$5=0,0,IF($C$6<=0,C$13-E215*C$12,$C$5+CUMPRINC($C$6/$C$8,$C$7*$C$8,$C$5,1,E215,Pilotage!$D$25))),\"\")","v":""},null,null,null,null,null,{"$f":"IF(K215<>\"\",-1*CUMIPMT($C$6/$C$8,$C$7*$C$8,$C$5,M215,N215,Pilotage!$D$25),\"\")","v":""}]
[null,null,null,null,"","",{"$f":"IF(E216<>\"\",IF($C$5=0,0,IF($C$6<=0,0,CUMIPMT($C$6/$C$8,$C$7*$C$8,$C$5,1,E216,Pilotage!$D$25))),\"\")","v":""},{"$f":"IF(E216<>\"\",IF($C$6<=0,0,IF($C$5=0,0,CUMIPMT($C$6/$C$8,$C$7*$C$8,$C$5,E216,E216,Pilotage!$D$25))),\"\")","v":""},{"$f":"IF(E216<>\"\",IF($C$5=0,0,IF($C$6<=0,C$13-E216*C$12,$C$5+CUMPRINC($C$6/$C$8,$C$7*$C$8,$C$5,1,E216,Pilotage!$D$25))),\"\")","v":""},null,null,null,null,null,{"$f":"IF(K216<>\"\",-1*CUMIPMT($C$6/$C$8,$C$7*$C$8,$C$5,M216,N216,Pilotage!$D$25),\"\")","v":""}]
[null,null,null,null,"","",{"$f":"IF(E217<>\"\",IF($C$5=0,0,IF($C$6<=0,0,CUMIPMT($C$6/$C$8,$C$7*$C$8,$C$5,1,E217,Pilotage!$D$25))),\"\")","v":""},{"$f":"IF(E217<>\"\",IF($C$6<=0,0,IF($C$5=0,0,CUMIPMT($C$6/$C$8,$C$7*$C$8,$C$5,E217,E217,Pilotage!$D$25))),\"\")","v":""},{"$f":"IF(E217<>\"\",IF($C$5=0,0,IF($C$6<=0,C$13-E217*C$12,$C$5+CUMPRINC($C$6/$C$8,$C$7*$C$8,$C$5,1,E217,Pilotage!$D$25))),\"\")","v":""},null,null,null,null,null,{"$f":"IF(K217<>\"\",-1*CUMIPMT($C$6/$C$8,$C$7*$C$8,$C$5,M217,N217,Pilotage!$D$25),\"\")","v":""}]
[null,null,null,null,"","",{"$f":"IF(E218<>\"\",IF($C$5=0,0,IF($C$6<=0,0,CUMIPMT($C$6/$C$8,$C$7*$C$8,$C$5,1,E218,Pilotage!$D$25))),\"\")","v":""},{"$f":"IF(E218<>\"\",IF($C$6<=0,0,IF($C$5=0,0,CUMIPMT($C$6/$C$8,$C$7*$C$8,$C$5,E218,E218,Pilotage!$D$25))),\"\")","v":""},{"$f":"IF(E218<>\"\",IF($C$5=0,0,IF($C$6<=0,C$13-E218*C$12,$C$5+CUMPRINC($C$6/$C$8,$C$7*$C$8,$C$5,1,E218,Pilotage!$D$25))),\"\")","v":""},null,null,null,null,null,{"$f":"IF(K218<>\"\",-1*CUMIPMT($C$6/$C$8,$C$7*$C$8,$C$5,M218,N218,Pilotage!$D$25),\"\")","v":""}]
[null,null,null,null,"","",{"$f":"IF(E219<>\"\",IF($C$5=0,0,IF($C$6<=0,0,CUMIPMT($C$6/$C$8,$C$7*$C$8,$C$5,1,E219,Pilotage!$D$25))),\"\")","v":""},{"$f":"IF(E219<>\"\",IF($C$6<=0,0,IF($C$5=0,0,CUMIPMT($C$6/$C$8,$C$7*$C$8,$C$5,E219,E219,Pilotage!$D$25))),\"\")","v":""},{"$f":"IF(E219<>\"\",IF($C$5=0,0,IF($C$6<=0,C$13-E219*C$12,$C$5+CUMPRINC($C$6/$C$8,$C$7*$C$8,$C$5,1,E219,Pilotage!$D$25))),\"\")","v":""},null,null,null,null,null,{"$f":"IF(K219<>\"\",-1*CUMIPMT($C$6/$C$8,$C$7*$C$8,$C$5,M219,N219,Pilotage!$D$25),\"\")","v":""}]
[null,null,null,null,"","",{"$f":"IF(E220<>\"\",IF($C$5=0,0,IF($C$6<=0,0,CUMIPMT($C$6/$C$8,$C$7*$C$8,$C$5,1,E220,Pilotage!$D$25))),\"\")","v":""},{"$f":"IF(E220<>\"\",IF($C$6<=0,0,IF($C$5=0,0,CUMIPMT($C$6/$C$8,$C$7*$C$8,$C$5,E220,E220,Pilotage!$D$25))),\"\")","v":""},{"$f":"IF(E220<>\"\",IF($C$5=0,0,IF($C$6<=0,C$13-E220*C$12,$C$5+CUMPRINC($C$6/$C$8,$C$7*$C$8,$C$5,1,E220,Pilotage!$D$25))),\"\")","v":""},null,null,null,null,null,{"$f":"IF(K220<>\"\",-1*CUMIPMT($C$6/$C$8,$C$7*$C$8,$C$5,M220,N220,Pilotage!$D$25),\"\")","v":""}]
[null,null,null,null,"","",{"$f":"IF(E221<>\"\",IF($C$5=0,0,IF($C$6<=0,0,CUMIPMT($C$6/$C$8,$C$7*$C$8,$C$5,1,E221,Pilotage!$D$25))),\"\")","v":""},{"$f":"IF(E221<>\"\",IF($C$6<=0,0,IF($C$5=0,0,CUMIPMT($C$6/$C$8,$C$7*$C$8,$C$5,E221,E221,Pilotage!$D$25))),\"\")","v":""},{"$f":"IF(E221<>\"\",IF($C$5=0,0,IF($C$6<=0,C$13-E221*C$12,$C$5+CUMPRINC($C$6/$C$8,$C$7*$C$8,$C$5,1,E221,Pilotage!$D$25))),\"\")","v":""},null,null,null,null,null,{"$f":"IF(K221<>\"\",-1*CUMIPMT($C$6/$C$8,$C$7*$C$8,$C$5,M221,N221,Pilotage!$D$25),\"\")","v":""}]
[null,null,null,null,"","",{"$f":"IF(E222<>\"\",IF($C$5=0,0,IF($C$6<=0,0,CUMIPMT($C$6/$C$8,$C$7*$C$8,$C$5,1,E222,Pilotage!$D$25))),\"\")","v":""},{"$f":"IF(E222<>\"\",IF($C$6<=0,0,IF($C$5=0,0,CUMIPMT($C$6/$C$8,$C$7*$C$8,$C$5,E222,E222,Pilotage!$D$25))),\"\")","v":""},{"$f":"IF(E222<>\"\",IF($C$5=0,0,IF($C$6<=0,C$13-E222*C$12,$C$5+CUMPRINC($C$6/$C$8,$C$7*$C$8,$C$5,1,E222,Pilotage!$D$25))),\"\")","v":""},null,null,null,null,null,{"$f":"IF(K222<>\"\",-1*CUMIPMT($C$6/$C$8,$C$7*$C$8,$C$5,M222,N222,Pilotage!$D$25),\"\")","v":""}]
[null,null,null,null,"","",{"$f":"IF(E223<>\"\",IF($C$5=0,0,IF($C$6<=0,0,CUMIPMT($C$6/$C$8,$C$7*$C$8,$C$5,1,E223,Pilotage!$D$25))),\"\")","v":""},{"$f":"IF(E223<>\"\",IF($C$6<=0,0,IF($C$5=0,0,CUMIPMT($C$6/$C$8,$C$7*$C$8,$C$5,E223,E223,Pilotage!$D$25))),\"\")","v":""},{"$f":"IF(E223<>\"\",IF($C$5=0,0,IF($C$6<=0,C$13-E223*C$12,$C$5+CUMPRINC($C$6/$C$8,$C$7*$C$8,$C$5,1,E223,Pilotage!$D$25))),\"\")","v":""},null,null,null,null,null,{"$f":"IF(K223<>\"\",-1*CUMIPMT($C$6/$C$8,$C$7*$C$8,$C$5,M223,N223,Pilotage!$D$25),\"\")","v":""}]
[null,null,null,null,"","",{"$f":"IF(E224<>\"\",IF($C$5=0,0,IF($C$6<=0,0,CUMIPMT($C$6/$C$8,$C$7*$C$8,$C$5,1,E224,Pilotage!$D$25))),\"\")","v":""},{"$f":"IF(E224<>\"\",IF($C$6<=0,0,IF($C$5=0,0,CUMIPMT($C$6/$C$8,$C$7*$C$8,$C$5,E224,E224,Pilotage!$D$25))),\"\")","v":""},{"$f":"IF(E224<>\"\",IF($C$5=0,0,IF($C$6<=0,C$13-E224*C$12,$C$5+CUMPRINC($C$6/$C$8,$C$7*$C$8,$C$5,1,E224,Pilotage!$D$25))),\"\")","v":""},null,null,null,null,null,{"$f":"IF(K224<>\"\",-1*CUMIPMT($C$6/$C$8,$C$7*$C$8,$C$5,M224,N224,Pilotage!$D$25),\"\")","v":""}]
[null,null,null,null,"","",{"$f":"IF(E225<>\"\",IF($C$5=0,0,IF($C$6<=0,0,CUMIPMT($C$6/$C$8,$C$7*$C$8,$C$5,1,E225,Pilotage!$D$25))),\"\")","v":""},{"$f":"IF(E225<>\"\",IF($C$6<=0,0,IF($C$5=0,0,CUMIPMT($C$6/$C$8,$C$7*$C$8,$C$5,E225,E225,Pilotage!$D$25))),\"\")","v":""},{"$f":"IF(E225<>\"\",IF($C$5=0,0,IF($C$6<=0,C$13-E225*C$12,$C$5+CUMPRINC($C$6/$C$8,$C$7*$C$8,$C$5,1,E225,Pilotage!$D$25))),\"\")","v":""},null,null,null,null,null,{"$f":"IF(K225<>\"\",-1*CUMIPMT($C$6/$C$8,$C$7*$C$8,$C$5,M225,N225,Pilotage!$D$25),\"\")","v":""}]
[null,null,null,null,"","",{"$f":"IF(E226<>\"\",IF($C$5=0,0,IF($C$6<=0,0,CUMIPMT($C$6/$C$8,$C$7*$C$8,$C$5,1,E226,Pilotage!$D$25))),\"\")","v":""},{"$f":"IF(E226<>\"\",IF($C$6<=0,0,IF($C$5=0,0,CUMIPMT($C$6/$C$8,$C$7*$C$8,$C$5,E226,E226,Pilotage!$D$25))),\"\")","v":""},{"$f":"IF(E226<>\"\",IF($C$5=0,0,IF($C$6<=0,C$13-E226*C$12,$C$5+CUMPRINC($C$6/$C$8,$C$7*$C$8,$C$5,1,E226,Pilotage!$D$25))),\"\")","v":""},null,null,null,null,null,{"$f":"IF(K226<>\"\",-1*CUMIPMT($C$6/$C$8,$C$7*$C$8,$C$5,M226,N226,Pilotage!$D$25),\"\")","v":""}]
[null,null,null,null,"","",{"$f":"IF(E227<>\"\",IF($C$5=0,0,IF($C$6<=0,0,CUMIPMT($C$6/$C$8,$C$7*$C$8,$C$5,1,E227,Pilotage!$D$25))),\"\")","v":""},{"$f":"IF(E227<>\"\",IF($C$6<=0,0,IF($C$5=0,0,CUMIPMT($C$6/$C$8,$C$7*$C$8,$C$5,E227,E227,Pilotage!$D$25))),\"\")","v":""},{"$f":"IF(E227<>\"\",IF($C$5=0,0,IF($C$6<=0,C$13-E227*C$12,$C$5+CUMPRINC($C$6/$C$8,$C$7*$C$8,$C$5,1,E227,Pilotage!$D$25))),\"\")","v":""},null,null,null,null,null,{"$f":"IF(K227<>\"\",-1*CUMIPMT($C$6/$C$8,$C$7*$C$8,$C$5,M227,N227,Pilotage!$D$25),\"\")","v":""}]
[null,null,null,null,"","",{"$f":"IF(E228<>\"\",IF($C$5=0,0,IF($C$6<=0,0,CUMIPMT($C$6/$C$8,$C$7*$C$8,$C$5,1,E228,Pilotage!$D$25))),\"\")","v":""},{"$f":"IF(E228<>\"\",IF($C$6<=0,0,IF($C$5=0,0,CUMIPMT($C$6/$C$8,$C$7*$C$8,$C$5,E228,E228,Pilotage!$D$25))),\"\")","v":""},{"$f":"IF(E228<>\"\",IF($C$5=0,0,IF($C$6<=0,C$13-E228*C$12,$C$5+CUMPRINC($C$6/$C$8,$C$7*$C$8,$C$5,1,E228,Pilotage!$D$25))),\"\")","v":""},null,null,null,null,null,{"$f":"IF(K228<>\"\",-1*CUMIPMT($C$6/$C$8,$C$7*$C$8,$C$5,M228,N228,Pilotage!$D$25),\"\")","v":""}]
[null,null,null,null,"","",{"$f":"IF(E229<>\"\",IF($C$5=0,0,IF($C$6<=0,0,CUMIPMT($C$6/$C$8,$C$7*$C$8,$C$5,1,E229,Pilotage!$D$25))),\"\")","v":""},{"$f":"IF(E229<>\"\",IF($C$6<=0,0,IF($C$5=0,0,CUMIPMT($C$6/$C$8,$C$7*$C$8,$C$5,E229,E229,Pilotage!$D$25))),\"\")","v":""},{"$f":"IF(E229<>\"\",IF($C$5=0,0,IF($C$6<=0,C$13-E229*C$12,$C$5+CUMPRINC($C$6/$C$8,$C$7*$C$8,$C$5,1,E229,Pilotage!$D$25))),\"\")","v":""},null,null,null,null,null,{"$f":"IF(K229<>\"\",-1*CUMIPMT($C$6/$C$8,$C$7*$C$8,$C$5,M229,N229,Pilotage!$D$25),\"\")","v":""}]
[null,null,null,null,"","",{"$f":"IF(E230<>\"\",IF($C$5=0,0,IF($C$6<=0,0,CUMIPMT($C$6/$C$8,$C$7*$C$8,$C$5,1,E230,Pilotage!$D$25))),\"\")","v":""},{"$f":"IF(E230<>\"\",IF($C$6<=0,0,IF($C$5=0,0,CUMIPMT($C$6/$C$8,$C$7*$C$8,$C$5,E230,E230,Pilotage!$D$25))),\"\")","v":""},{"$f":"IF(E230<>\"\",IF($C$5=0,0,IF($C$6<=0,C$13-E230*C$12,$C$5+CUMPRINC($C$6/$C$8,$C$7*$C$8,$C$5,1,E230,Pilotage!$D$25))),\"\")","v":""},null,null,null,null,null,{"$f":"IF(K230<>\"\",-1*CUMIPMT($C$6/$C$8,$C$7*$C$8,$C$5,M230,N230,Pilotage!$D$25),\"\")","v":""}]
[null,null,null,null,"","",{"$f":"IF(E231<>\"\",IF($C$5=0,0,IF($C$6<=0,0,CUMIPMT($C$6/$C$8,$C$7*$C$8,$C$5,1,E231,Pilotage!$D$25))),\"\")","v":""},{"$f":"IF(E231<>\"\",IF($C$6<=0,0,IF($C$5=0,0,CUMIPMT($C$6/$C$8,$C$7*$C$8,$C$5,E231,E231,Pilotage!$D$25))),\"\")","v":""},{"$f":"IF(E231<>\"\",IF($C$5=0,0,IF($C$6<=0,C$13-E231*C$12,$C$5+CUMPRINC($C$6/$C$8,$C$7*$C$8,$C$5,1,E231,Pilotage!$D$25))),\"\")","v":""},null,null,null,null,null,{"$f":"IF(K231<>\"\",-1*CUMIPMT($C$6/$C$8,$C$7*$C$8,$C$5,M231,N231,Pilotage!$D$25),\"\")","v":""}]
[null,null,null,null,"","",{"$f":"IF(E232<>\"\",IF($C$5=0,0,IF($C$6<=0,0,CUMIPMT($C$6/$C$8,$C$7*$C$8,$C$5,1,E232,Pilotage!$D$25))),\"\")","v":""},{"$f":"IF(E232<>\"\",IF($C$6<=0,0,IF($C$5=0,0,CUMIPMT($C$6/$C$8,$C$7*$C$8,$C$5,E232,E232,Pilotage!$D$25))),\"\")","v":""},{"$f":"IF(E232<>\"\",IF($C$5=0,0,IF($C$6<=0,C$13-E232*C$12,$C$5+CUMPRINC($C$6/$C$8,$C$7*$C$8,$C$5,1,E232,Pilotage!$D$25))),\"\")","v":""},null,null,null,null,null,{"$f":"IF(K232<>\"\",-1*CUMIPMT($C$6/$C$8,$C$7*$C$8,$C$5,M232,N232,Pilotage!$D$25),\"\")","v":""}]
[null,null,null,null,"","",{"$f":"IF(E233<>\"\",IF($C$5=0,0,IF($C$6<=0,0,CUMIPMT($C$6/$C$8,$C$7*$C$8,$C$5,1,E233,Pilotage!$D$25))),\"\")","v":""},{"$f":"IF(E233<>\"\",IF($C$6<=0,0,IF($C$5=0,0,CUMIPMT($C$6/$C$8,$C$7*$C$8,$C$5,E233,E233,Pilotage!$D$25))),\"\")","v":""},{"$f":"IF(E233<>\"\",IF($C$5=0,0,IF($C$6<=0,C$13-E233*C$12,$C$5+CUMPRINC($C$6/$C$8,$C$7*$C$8,$C$5,1,E233,Pilotage!$D$25))),\"\")","v":""},null,null,null,null,null,{"$f":"IF(K233<>\"\",-1*CUMIPMT($C$6/$C$8,$C$7*$C$8,$C$5,M233,N233,Pilotage!$D$25),\"\")","v":""}]
[null,null,null,null,"","",{"$f":"IF(E234<>\"\",IF($C$5=0,0,IF($C$6<=0,0,CUMIPMT($C$6/$C$8,$C$7*$C$8,$C$5,1,E234,Pilotage!$D$25))),\"\")","v":""},{"$f":"IF(E234<>\"\",IF($C$6<=0,0,IF($C$5=0,0,CUMIPMT($C$6/$C$8,$C$7*$C$8,$C$5,E234,E234,Pilotage!$D$25))),\"\")","v":""},{"$f":"IF(E234<>\"\",IF($C$5=0,0,IF($C$6<=0,C$13-E234*C$12,$C$5+CUMPRINC($C$6/$C$8,$C$7*$C$8,$C$5,1,E234,Pilotage!$D$25))),\"\")","v":""},null,null,null,null,null,{"$f":"IF(K234<>\"\",-1*CUMIPMT($C$6/$C$8,$C$7*$C$8,$C$5,M234,N234,Pilotage!$D$25),\"\")","v":""}]
[null,null,null,null,"","",{"$f":"IF(E235<>\"\",IF($C$5=0,0,IF($C$6<=0,0,CUMIPMT($C$6/$C$8,$C$7*$C$8,$C$5,1,E235,Pilotage!$D$25))),\"\")","v":""},{"$f":"IF(E235<>\"\",IF($C$6<=0,0,IF($C$5=0,0,CUMIPMT($C$6/$C$8,$C$7*$C$8,$C$5,E235,E235,Pilotage!$D$25))),\"\")","v":""},{"$f":"IF(E235<>\"\",IF($C$5=0,0,IF($C$6<=0,C$13-E235*C$12,$C$5+CUMPRINC($C$6/$C$8,$C$7*$C$8,$C$5,1,E235,Pilotage!$D$25))),\"\")","v":""},null,null,null,null,null,{"$f":"IF(K235<>\"\",-1*CUMIPMT($C$6/$C$8,$C$7*$C$8,$C$5,M235,N235,Pilotage!$D$25),\"\")","v":""}]
[null,null,null,null,"","",{"$f":"IF(E236<>\"\",IF($C$5=0,0,IF($C$6<=0,0,CUMIPMT($C$6/$C$8,$C$7*$C$8,$C$5,1,E236,Pilotage!$D$25))),\"\")","v":""},{"$f":"IF(E236<>\"\",IF($C$6<=0,0,IF($C$5=0,0,CUMIPMT($C$6/$C$8,$C$7*$C$8,$C$5,E236,E236,Pilotage!$D$25))),\"\")","v":""},{"$f":"IF(E236<>\"\",IF($C$5=0,0,IF($C$6<=0,C$13-E236*C$12,$C$5+CUMPRINC($C$6/$C$8,$C$7*$C$8,$C$5,1,E236,Pilotage!$D$25))),\"\")","v":""},null,null,null,null,null,{"$f":"IF(K236<>\"\",-1*CUMIPMT($C$6/$C$8,$C$7*$C$8,$C$5,M236,N236,Pilotage!$D$25),\"\")","v":""}]
[null,null,null,null,"","",{"$f":"IF(E237<>\"\",IF($C$5=0,0,IF($C$6<=0,0,CUMIPMT($C$6/$C$8,$C$7*$C$8,$C$5,1,E237,Pilotage!$D$25))),\"\")","v":""},{"$f":"IF(E237<>\"\",IF($C$6<=0,0,IF($C$5=0,0,CUMIPMT($C$6/$C$8,$C$7*$C$8,$C$5,E237,E237,Pilotage!$D$25))),\"\")","v":""},{"$f":"IF(E237<>\"\",IF($C$5=0,0,IF($C$6<=0,C$13-E237*C$12,$C$5+CUMPRINC($C$6/$C$8,$C$7*$C$8,$C$5,1,E237,Pilotage!$D$25))),\"\")","v":""},null,null,null,null,null,{"$f":"IF(K237<>\"\",-1*CUMIPMT($C$6/$C$8,$C$7*$C$8,$C$5,M237,N237,Pilotage!$D$25),\"\")","v":""}]
[null,null,null,null,"","",{"$f":"IF(E238<>\"\",IF($C$5=0,0,IF($C$6<=0,0,CUMIPMT($C$6/$C$8,$C$7*$C$8,$C$5,1,E238,Pilotage!$D$25))),\"\")","v":""},{"$f":"IF(E238<>\"\",IF($C$6<=0,0,IF($C$5=0,0,CUMIPMT($C$6/$C$8,$C$7*$C$8,$C$5,E238,E238,Pilotage!$D$25))),\"\")","v":""},{"$f":"IF(E238<>\"\",IF($C$5=0,0,IF($C$6<=0,C$13-E238*C$12,$C$5+CUMPRINC($C$6/$C$8,$C$7*$C$8,$C$5,1,E238,Pilotage!$D$25))),\"\")","v":""},null,null,null,null,null,{"$f":"IF(K238<>\"\",-1*CUMIPMT($C$6/$C$8,$C$7*$C$8,$C$5,M238,N238,Pilotage!$D$25),\"\")","v":""}]
[null,null,null,null,"","",{"$f":"IF(E239<>\"\",IF($C$5=0,0,IF($C$6<=0,0,CUMIPMT($C$6/$C$8,$C$7*$C$8,$C$5,1,E239,Pilotage!$D$25))),\"\")","v":""},{"$f":"IF(E239<>\"\",IF($C$6<=0,0,IF($C$5=0,0,CUMIPMT($C$6/$C$8,$C$7*$C$8,$C$5,E239,E239,Pilotage!$D$25))),\"\")","v":""},{"$f":"IF(E239<>\"\",IF($C$5=0,0,IF($C$6<=0,C$13-E239*C$12,$C$5+CUMPRINC($C$6/$C$8,$C$7*$C$8,$C$5,1,E239,Pilotage!$D$25))),\"\")","v":""},null,null,null,null,null,{"$f":"IF(K239<>\"\",-1*CUMIPMT($C$6/$C$8,$C$7*$C$8,$C$5,M239,N239,Pilotage!$D$25),\"\")","v":""}]
[null,null,null,null,"","",{"$f":"IF(E240<>\"\",IF($C$5=0,0,IF($C$6<=0,0,CUMIPMT($C$6/$C$8,$C$7*$C$8,$C$5,1,E240,Pilotage!$D$25))),\"\")","v":""},{"$f":"IF(E240<>\"\",IF($C$6<=0,0,IF($C$5=0,0,CUMIPMT($C$6/$C$8,$C$7*$C$8,$C$5,E240,E240,Pilotage!$D$25))),\"\")","v":""},{"$f":"IF(E240<>\"\",IF($C$5=0,0,IF($C$6<=0,C$13-E240*C$12,$C$5+CUMPRINC($C$6/$C$8,$C$7*$C$8,$C$5,1,E240,Pilotage!$D$25))),\"\")","v":""},null,null,null,null,null,{"$f":"IF(K240<>\"\",-1*CUMIPMT($C$6/$C$8,$C$7*$C$8,$C$5,M240,N240,Pilotage!$D$25),\"\")","v":""}]
[null,null,null,null,"","",{"$f":"IF(E241<>\"\",IF($C$5=0,0,IF($C$6<=0,0,CUMIPMT($C$6/$C$8,$C$7*$C$8,$C$5,1,E241,Pilotage!$D$25))),\"\")","v":""},{"$f":"IF(E241<>\"\",IF($C$6<=0,0,IF($C$5=0,0,CUMIPMT($C$6/$C$8,$C$7*$C$8,$C$5,E241,E241,Pilotage!$D$25))),\"\")","v":""},{"$f":"IF(E241<>\"\",IF($C$5=0,0,IF($C$6<=0,C$13-E241*C$12,$C$5+CUMPRINC($C$6/$C$8,$C$7*$C$8,$C$5,1,E241,Pilotage!$D$25))),\"\")","v":""},null,null,null,null,null,{"$f":"IF(K241<>\"\",-1*CUMIPMT($C$6/$C$8,$C$7*$C$8,$C$5,M241,N241,Pilotage!$D$25),\"\")","v":""}]
[null,null,null,null,"","",{"$f":"IF(E242<>\"\",IF($C$5=0,0,IF($C$6<=0,0,CUMIPMT($C$6/$C$8,$C$7*$C$8,$C$5,1,E242,Pilotage!$D$25))),\"\")","v":""},{"$f":"IF(E242<>\"\",IF($C$6<=0,0,IF($C$5=0,0,CUMIPMT($C$6/$C$8,$C$7*$C$8,$C$5,E242,E242,Pilotage!$D$25))),\"\")","v":""},{"$f":"IF(E242<>\"\",IF($C$5=0,0,IF($C$6<=0,C$13-E242*C$12,$C$5+CUMPRINC($C$6/$C$8,$C$7*$C$8,$C$5,1,E242,Pilotage!$D$25))),\"\")","v":""},null,null,null,null,null,{"$f":"IF(K242<>\"\",-1*CUMIPMT($C$6/$C$8,$C$7*$C$8,$C$5,M242,N242,Pilotage!$D$25),\"\")","v":""}]
[null,null,null,null,"","",{"$f":"IF(E243<>\"\",IF($C$5=0,0,IF($C$6<=0,0,CUMIPMT($C$6/$C$8,$C$7*$C$8,$C$5,1,E243,Pilotage!$D$25))),\"\")","v":""},{"$f":"IF(E243<>\"\",IF($C$6<=0,0,IF($C$5=0,0,CUMIPMT($C$6/$C$8,$C$7*$C$8,$C$5,E243,E243,Pilotage!$D$25))),\"\")","v":""},{"$f":"IF(E243<>\"\",IF($C$5=0,0,IF($C$6<=0,C$13-E243*C$12,$C$5+CUMPRINC($C$6/$C$8,$C$7*$C$8,$C$5,1,E243,Pilotage!$D$25))),\"\")","v":""},null,null,null,null,null,{"$f":"IF(K243<>\"\",-1*CUMIPMT($C$6/$C$8,$C$7*$C$8,$C$5,M243,N243,Pilotage!$D$25),\"\")","v":""}]
[null,null,null,null,"","",{"$f":"IF(E244<>\"\",IF($C$5=0,0,IF($C$6<=0,0,CUMIPMT($C$6/$C$8,$C$7*$C$8,$C$5,1,E244,Pilotage!$D$25))),\"\")","v":""},{"$f":"IF(E244<>\"\",IF($C$6<=0,0,IF($C$5=0,0,CUMIPMT($C$6/$C$8,$C$7*$C$8,$C$5,E244,E244,Pilotage!$D$25))),\"\")","v":""},{"$f":"IF(E244<>\"\",IF($C$5=0,0,IF($C$6<=0,C$13-E244*C$12,$C$5+CUMPRINC($C$6/$C$8,$C$7*$C$8,$C$5,1,E244,Pilotage!$D$25))),\"\")","v":""},null,null,null,null,null,{"$f":"IF(K244<>\"\",-1*CUMIPMT($C$6/$C$8,$C$7*$C$8,$C$5,M244,N244,Pilotage!$D$25),\"\")","v":""}]
[null,null,null,null,"","",{"$f":"IF(E245<>\"\",IF($C$5=0,0,IF($C$6<=0,0,CUMIPMT($C$6/$C$8,$C$7*$C$8,$C$5,1,E245,Pilotage!$D$25))),\"\")","v":""},{"$f":"IF(E245<>\"\",IF($C$6<=0,0,IF($C$5=0,0,CUMIPMT($C$6/$C$8,$C$7*$C$8,$C$5,E245,E245,Pilotage!$D$25))),\"\")","v":""},{"$f":"IF(E245<>\"\",IF($C$5=0,0,IF($C$6<=0,C$13-E245*C$12,$C$5+CUMPRINC($C$6/$C$8,$C$7*$C$8,$C$5,1,E245,Pilotage!$D$25))),\"\")","v":""},null,null,null,null,null,{"$f":"IF(K245<>\"\",-1*CUMIPMT($C$6/$C$8,$C$7*$C$8,$C$5,M245,N245,Pilotage!$D$25),\"\")","v":""}]
[null,null,null,null,"","",{"$f":"IF(E246<>\"\",IF($C$5=0,0,IF($C$6<=0,0,CUMIPMT($C$6/$C$8,$C$7*$C$8,$C$5,1,E246,Pilotage!$D$25))),\"\")","v":""},{"$f":"IF(E246<>\"\",IF($C$6<=0,0,IF($C$5=0,0,CUMIPMT($C$6/$C$8,$C$7*$C$8,$C$5,E246,E246,Pilotage!$D$25))),\"\")","v":""},{"$f":"IF(E246<>\"\",IF($C$5=0,0,IF($C$6<=0,C$13-E246*C$12,$C$5+CUMPRINC($C$6/$C$8,$C$7*$C$8,$C$5,1,E246,Pilotage!$D$25))),\"\")","v":""},null,null,null,null,null,{"$f":"IF(K246<>\"\",-1*CUMIPMT($C$6/$C$8,$C$7*$C$8,$C$5,M246,N246,Pilotage!$D$25),\"\")","v":""}]
[null,null,null,null,"","",{"$f":"IF(E247<>\"\",IF($C$5=0,0,IF($C$6<=0,0,CUMIPMT($C$6/$C$8,$C$7*$C$8,$C$5,1,E247,Pilotage!$D$25))),\"\")","v":""},{"$f":"IF(E247<>\"\",IF($C$6<=0,0,IF($C$5=0,0,CUMIPMT($C$6/$C$8,$C$7*$C$8,$C$5,E247,E247,Pilotage!$D$25))),\"\")","v":""},{"$f":"IF(E247<>\"\",IF($C$5=0,0,IF($C$6<=0,C$13-E247*C$12,$C$5+CUMPRINC($C$6/$C$8,$C$7*$C$8,$C$5,1,E247,Pilotage!$D$25))),\"\")","v":""},null,null,null,null,null,{"$f":"IF(K247<>\"\",-1*CUMIPMT($C$6/$C$8,$C$7*$C$8,$C$5,M247,N247,Pilotage!$D$25),\"\")","v":""}]
[null,null,null,null,"","",{"$f":"IF(E248<>\"\",IF($C$5=0,0,IF($C$6<=0,0,CUMIPMT($C$6/$C$8,$C$7*$C$8,$C$5,1,E248,Pilotage!$D$25))),\"\")","v":""},{"$f":"IF(E248<>\"\",IF($C$6<=0,0,IF($C$5=0,0,CUMIPMT($C$6/$C$8,$C$7*$C$8,$C$5,E248,E248,Pilotage!$D$25))),\"\")","v":""},{"$f":"IF(E248<>\"\",IF($C$5=0,0,IF($C$6<=0,C$13-E248*C$12,$C$5+CUMPRINC($C$6/$C$8,$C$7*$C$8,$C$5,1,E248,Pilotage!$D$25))),\"\")","v":""},null,null,null,null,null,{"$f":"IF(K248<>\"\",-1*CUMIPMT($C$6/$C$8,$C$7*$C$8,$C$5,M248,N248,Pilotage!$D$25),\"\")","v":""}]
[null,null,null,null,"","",{"$f":"IF(E249<>\"\",IF($C$5=0,0,CUMIPMT($C$6/$C$8,$C$7*$C$8,$C$5,1,E249,Pilotage!$D$25)),\"\")","v":""},{"$f":"IF(E249<>\"\",IF($C$5=0,0,CUMIPMT($C$6/$C$8,$C$7*$C$8,$C$5,E249,E249,Pilotage!$D$25)),\"\")","v":""},{"$f":"IF(E249<>\"\",IF($C$5=0,0,$C$5+CUMPRINC($C$6/$C$8,$C$7*$C$8,$C$5,1,E249,Pilotage!$D$25)),\"\")","v":""},null,null,null,null,null,{"$f":"IF(K249<>\"\",-1*CUMIPMT($C$6/$C$8,$C$7*$C$8,$C$5,M249,N249,Pilotage!$D$25),\"\")","v":""}]
[null,null,null,null,"","",{"$f":"IF(E250<>\"\",IF($C$5=0,0,CUMIPMT($C$6/$C$8,$C$7*$C$8,$C$5,1,E250,Pilotage!$D$25)),\"\")","v":""},{"$f":"IF(E250<>\"\",IF($C$5=0,0,CUMIPMT($C$6/$C$8,$C$7*$C$8,$C$5,E250,E250,Pilotage!$D$25)),\"\")","v":""},{"$f":"IF(E250<>\"\",IF($C$5=0,0,$C$5+CUMPRINC($C$6/$C$8,$C$7*$C$8,$C$5,1,E250,Pilotage!$D$25)),\"\")","v":""},null,null,null,null,null,{"$f":"IF(K250<>\"\",-1*CUMIPMT($C$6/$C$8,$C$7*$C$8,$C$5,M250,N250,Pilotage!$D$25),\"\")","v":""}]
[null,null,null,null,"","",{"$f":"IF(E251<>\"\",IF($C$5=0,0,CUMIPMT($C$6/$C$8,$C$7*$C$8,$C$5,1,E251,Pilotage!$D$25)),\"\")","v":""},{"$f":"IF(E251<>\"\",IF($C$5=0,0,CUMIPMT($C$6/$C$8,$C$7*$C$8,$C$5,E251,E251,Pilotage!$D$25)),\"\")","v":""},{"$f":"IF(E251<>\"\",IF($C$5=0,0,$C$5+CUMPRINC($C$6/$C$8,$C$7*$C$8,$C$5,1,E251,Pilotage!$D$25)),\"\")","v":""},null,null,null,null,null,{"$f":"IF(K251<>\"\",-1*CUMIPMT($C$6/$C$8,$C$7*$C$8,$C$5,M251,N251,Pilotage!$D$25),\"\")","v":""}]
[null,null,null,null,"","",{"$f":"IF(E252<>\"\",IF($C$5=0,0,CUMIPMT($C$6/$C$8,$C$7*$C$8,$C$5,1,E252,Pilotage!$D$25)),\"\")","v":""},{"$f":"IF(E252<>\"\",IF($C$5=0,0,CUMIPMT($C$6/$C$8,$C$7*$C$8,$C$5,E252,E252,Pilotage!$D$25)),\"\")","v":""},{"$f":"IF(E252<>\"\",IF($C$5=0,0,$C$5+CUMPRINC($C$6/$C$8,$C$7*$C$8,$C$5,1,E252,Pilotage!$D$25)),\"\")","v":""},null,null,null,null,null,{"$f":"IF(K252<>\"\",-1*CUMIPMT($C$6/$C$8,$C$7*$C$8,$C$5,M252,N252,Pilotage!$D$25),\"\")","v":""}]
[null,null,null,null,"","",{"$f":"IF(E253<>\"\",IF($C$5=0,0,CUMIPMT($C$6/$C$8,$C$7*$C$8,$C$5,1,E253,Pilotage!$D$25)),\"\")","v":""},{"$f":"IF(E253<>\"\",IF($C$5=0,0,CUMIPMT($C$6/$C$8,$C$7*$C$8,$C$5,E253,E253,Pilotage!$D$25)),\"\")","v":""},{"$f":"IF(E253<>\"\",IF($C$5=0,0,$C$5+CUMPRINC($C$6/$C$8,$C$7*$C$8,$C$5,1,E253,Pilotage!$D$25)),\"\")","v":""},null,null,null,null,null,{"$f":"IF(K253<>\"\",-1*CUMIPMT($C$6/$C$8,$C$7*$C$8,$C$5,M253,N253,Pilotage!$D$25),\"\")","v":""}]
[null,null,null,null,"","",{"$f":"IF(E254<>\"\",IF($C$5=0,0,CUMIPMT($C$6/$C$8,$C$7*$C$8,$C$5,1,E254,Pilotage!$D$25)),\"\")","v":""},{"$f":"IF(E254<>\"\",IF($C$5=0,0,CUMIPMT($C$6/$C$8,$C$7*$C$8,$C$5,E254,E254,Pilotage!$D$25)),\"\")","v":""},{"$f":"IF(E254<>\"\",IF($C$5=0,0,$C$5+CUMPRINC($C$6/$C$8,$C$7*$C$8,$C$5,1,E254,Pilotage!$D$25)),\"\")","v":""},null,null,null,null,null,{"$f":"IF(K254<>\"\",-1*CUMIPMT($C$6/$C$8,$C$7*$C$8,$C$5,M254,N254,Pilotage!$D$25),\"\")","v":""}]
[null,null,null,null,"","",{"$f":"IF(E255<>\"\",IF($C$5=0,0,CUMIPMT($C$6/$C$8,$C$7*$C$8,$C$5,1,E255,Pilotage!$D$25)),\"\")","v":""},{"$f":"IF(E255<>\"\",IF($C$5=0,0,CUMIPMT($C$6/$C$8,$C$7*$C$8,$C$5,E255,E255,Pilotage!$D$25)),\"\")","v":""},{"$f":"IF(E255<>\"\",IF($C$5=0,0,$C$5+CUMPRINC($C$6/$C$8,$C$7*$C$8,$C$5,1,E255,Pilotage!$D$25)),\"\")","v":""},null,null,null,null,null,{"$f":"IF(K255<>\"\",-1*CUMIPMT($C$6/$C$8,$C$7*$C$8,$C$5,M255,N255,Pilotage!$D$25),\"\")","v":""}]
[null,null,null,null,"","",{"$f":"IF(E256<>\"\",IF($C$5=0,0,CUMIPMT($C$6/$C$8,$C$7*$C$8,$C$5,1,E256,Pilotage!$D$25)),\"\")","v":""},{"$f":"IF(E256<>\"\",IF($C$5=0,0,CUMIPMT($C$6/$C$8,$C$7*$C$8,$C$5,E256,E256,Pilotage!$D$25)),\"\")","v":""},{"$f":"IF(E256<>\"\",IF($C$5=0,0,$C$5+CUMPRINC($C$6/$C$8,$C$7*$C$8,$C$5,1,E256,Pilotage!$D$25)),\"\")","v":""},null,null,null,null,null,{"$f":"IF(K256<>\"\",-1*CUMIPMT($C$6/$C$8,$C$7*$C$8,$C$5,M256,N256,Pilotage!$D$25),\"\")","v":""}]
[null,null,null,null,"","",{"$f":"IF(E257<>\"\",IF($C$5=0,0,CUMIPMT($C$6/$C$8,$C$7*$C$8,$C$5,1,E257,Pilotage!$D$25)),\"\")","v":""},{"$f":"IF(E257<>\"\",IF($C$5=0,0,CUMIPMT($C$6/$C$8,$C$7*$C$8,$C$5,E257,E257,Pilotage!$D$25)),\"\")","v":""},{"$f":"IF(E257<>\"\",IF($C$5=0,0,$C$5+CUMPRINC($C$6/$C$8,$C$7*$C$8,$C$5,1,E257,Pilotage!$D$25)),\"\")","v":""},null,null,null,null,null,{"$f":"IF(K257<>\"\",-1*CUMIPMT($C$6/$C$8,$C$7*$C$8,$C$5,M257,N257,Pilotage!$D$25),\"\")","v":""}]
[null,null,null,null,"","",{"$f":"IF(E258<>\"\",IF($C$5=0,0,CUMIPMT($C$6/$C$8,$C$7*$C$8,$C$5,1,E258,Pilotage!$D$25)),\"\")","v":""},{"$f":"IF(E258<>\"\",IF($C$5=0,0,CUMIPMT($C$6/$C$8,$C$7*$C$8,$C$5,E258,E258,Pilotage!$D$25)),\"\")","v":""},{"$f":"IF(E258<>\"\",IF($C$5=0,0,$C$5+CUMPRINC($C$6/$C$8,$C$7*$C$8,$C$5,1,E258,Pilotage!$D$25)),\"\")","v":""},null,null,null,null,null,{"$f":"IF(K258<>\"\",-1*CUMIPMT($C$6/$C$8,$C$7*$C$8,$C$5,M258,N258,Pilotage!$D$25),\"\")","v":""}]
[null,null,null,null,"","",{"$f":"IF(E259<>\"\",IF($C$5=0,0,CUMIPMT($C$6/$C$8,$C$7*$C$8,$C$5,1,E259,Pilotage!$D$25)),\"\")","v":""},{"$f":"IF(E259<>\"\",IF($C$5=0,0,CUMIPMT($C$6/$C$8,$C$7*$C$8,$C$5,E259,E259,Pilotage!$D$25)),\"\")","v":""},{"$f":"IF(E259<>\"\",IF($C$5=0,0,$C$5+CUMPRINC($C$6/$C$8,$C$7*$C$8,$C$5,1,E259,Pilotage!$D$25)),\"\")","v":""},null,null,null,null,null,{"$f":"IF(K259<>\"\",-1*CUMIPMT($C$6/$C$8,$C$7*$C$8,$C$5,M259,N259,Pilotage!$D$25),\"\")","v":""}]
[null,null,null,null,"","",{"$f":"IF(E260<>\"\",IF($C$5=0,0,CUMIPMT($C$6/$C$8,$C$7*$C$8,$C$5,1,E260,Pilotage!$D$25)),\"\")","v":""},{"$f":"IF(E260<>\"\",IF($C$5=0,0,CUMIPMT($C$6/$C$8,$C$7*$C$8,$C$5,E260,E260,Pilotage!$D$25)),\"\")","v":""},{"$f":"IF(E260<>\"\",IF($C$5=0,0,$C$5+CUMPRINC($C$6/$C$8,$C$7*$C$8,$C$5,1,E260,Pilotage!$D$25)),\"\")","v":""},null,null,null,null,null,{"$f":"IF(K260<>\"\",-1*CUMIPMT($C$6/$C$8,$C$7*$C$8,$C$5,M260,N260,Pilotage!$D$25),\"\")","v":""}]
[null,null,null,null,"","",{"$f":"IF(E261<>\"\",IF($C$5=0,0,CUMIPMT($C$6/$C$8,$C$7*$C$8,$C$5,1,E261,Pilotage!$D$25)),\"\")","v":""},{"$f":"IF(E261<>\"\",IF($C$5=0,0,CUMIPMT($C$6/$C$8,$C$7*$C$8,$C$5,E261,E261,Pilotage!$D$25)),\"\")","v":""},{"$f":"IF(E261<>\"\",IF($C$5=0,0,$C$5+CUMPRINC($C$6/$C$8,$C$7*$C$8,$C$5,1,E261,Pilotage!$D$25)),\"\")","v":""},null,null,null,null,null,{"$f":"IF(K261<>\"\",-1*CUMIPMT($C$6/$C$8,$C$7*$C$8,$C$5,M261,N261,Pilotage!$D$25),\"\")","v":""}]
[null,null,null,null,"","",{"$f":"IF(E262<>\"\",IF($C$5=0,0,CUMIPMT($C$6/$C$8,$C$7*$C$8,$C$5,1,E262,Pilotage!$D$25)),\"\")","v":""},{"$f":"IF(E262<>\"\",IF($C$5=0,0,CUMIPMT($C$6/$C$8,$C$7*$C$8,$C$5,E262,E262,Pilotage!$D$25)),\"\")","v":""},{"$f":"IF(E262<>\"\",IF($C$5=0,0,$C$5+CUMPRINC($C$6/$C$8,$C$7*$C$8,$C$5,1,E262,Pilotage!$D$25)),\"\")","v":""},null,null,null,null,null,{"$f":"IF(K262<>\"\",-1*CUMIPMT($C$6/$C$8,$C$7*$C$8,$C$5,M262,N262,Pilotage!$D$25),\"\")","v":""}]
[null,null,null,null,"","",{"$f":"IF(E263<>\"\",IF($C$5=0,0,CUMIPMT($C$6/$C$8,$C$7*$C$8,$C$5,1,E263,Pilotage!$D$25)),\"\")","v":""},{"$f":"IF(E263<>\"\",IF($C$5=0,0,CUMIPMT($C$6/$C$8,$C$7*$C$8,$C$5,E263,E263,Pilotage!$D$25)),\"\")","v":""},{"$f":"IF(E263<>\"\",IF($C$5=0,0,$C$5+CUMPRINC($C$6/$C$8,$C$7*$C$8,$C$5,1,E263,Pilotage!$D$25)),\"\")","v":""},null,null,null,null,null,{"$f":"IF(K263<>\"\",-1*CUMIPMT($C$6/$C$8,$C$7*$C$8,$C$5,M263,N263,Pilotage!$D$25),\"\")","v":""}]
[null,null,null,null,{"$f":"IF(E263<$C$10,E263+1,\"\")","v":""},{"$f":"IF(E264<>\"\",EDATE(F263,$C$11),\"\")","v":""},{"$f":"IF(E264<>\"\",IF($C$5=0,0,CUMIPMT($C$6/$C$8,$C$7*$C$8,$C$5,1,E264,Pilotage!$D$25)),\"\")","v":""},{"$f":"IF(E264<>\"\",IF($C$5=0,0,CUMIPMT($C$6/$C$8,$C$7*$C$8,$C$5,E264,E264,Pilotage!$D$25)),\"\")","v":""},{"$f":"IF(E264<>\"\",IF($C$5=0,0,$C$5+CUMPRINC($C$6/$C$8,$C$7*$C$8,$C$5,1,E264,Pilotage!$D$25)),\"\")","v":""},null,null,null,null,null,{"$f":"IF(K264<>\"\",-1*CUMIPMT($C$6/$C$8,$C$7*$C$8,$C$5,M264,N264,Pilotage!$D$25),\"\")","v":""}]
[null,null,null,null,"","",{"$f":"IF(E265<>\"\",IF($C$5=0,0,CUMIPMT($C$6/$C$8,$C$7*$C$8,$C$5,1,E265,Pilotage!$D$25)),\"\")","v":""},{"$f":"IF(E265<>\"\",IF($C$5=0,0,CUMIPMT($C$6/$C$8,$C$7*$C$8,$C$5,E265,E265,Pilotage!$D$25)),\"\")","v":""},{"$f":"IF(E265<>\"\",IF($C$5=0,0,$C$5+CUMPRINC($C$6/$C$8,$C$7*$C$8,$C$5,1,E265,Pilotage!$D$25)),\"\")","v":""},null,null,null,null,null,{"$f":"IF(K265<>\"\",-1*CUMIPMT($C$6/$C$8,$C$7*$C$8,$C$5,M265,N265,Pilotage!$D$25),\"\")","v":""}]
[null,null,null,null,"","",{"$f":"IF(E266<>\"\",IF($C$5=0,0,CUMIPMT($C$6/$C$8,$C$7*$C$8,$C$5,1,E266,Pilotage!$D$25)),\"\")","v":""},{"$f":"IF(E266<>\"\",IF($C$5=0,0,CUMIPMT($C$6/$C$8,$C$7*$C$8,$C$5,E266,E266,Pilotage!$D$25)),\"\")","v":""},{"$f":"IF(E266<>\"\",IF($C$5=0,0,$C$5+CUMPRINC($C$6/$C$8,$C$7*$C$8,$C$5,1,E266,Pilotage!$D$25)),\"\")","v":""},null,null,null,null,null,{"$f":"IF(K266<>\"\",-1*CUMIPMT($C$6/$C$8,$C$7*$C$8,$C$5,M266,N266,Pilotage!$D$25),\"\")","v":""}]
[null,null,null,null,"","",{"$f":"IF(E267<>\"\",IF($C$5=0,0,CUMIPMT($C$6/$C$8,$C$7*$C$8,$C$5,1,E267,Pilotage!$D$25)),\"\")","v":""},{"$f":"IF(E267<>\"\",IF($C$5=0,0,CUMIPMT($C$6/$C$8,$C$7*$C$8,$C$5,E267,E267,Pilotage!$D$25)),\"\")","v":""},{"$f":"IF(E267<>\"\",IF($C$5=0,0,$C$5+CUMPRINC($C$6/$C$8,$C$7*$C$8,$C$5,1,E267,Pilotage!$D$25)),\"\")","v":""},null,null,null,null,null,{"$f":"IF(K267<>\"\",-1*CUMIPMT($C$6/$C$8,$C$7*$C$8,$C$5,M267,N267,Pilotage!$D$25),\"\")","v":""}]
[null,null,null,null,"","",{"$f":"IF(E268<>\"\",IF($C$5=0,0,CUMIPMT($C$6/$C$8,$C$7*$C$8,$C$5,1,E268,Pilotage!$D$25)),\"\")","v":""},{"$f":"IF(E268<>\"\",IF($C$5=0,0,CUMIPMT($C$6/$C$8,$C$7*$C$8,$C$5,E268,E268,Pilotage!$D$25)),\"\")","v":""},{"$f":"IF(E268<>\"\",IF($C$5=0,0,$C$5+CUMPRINC($C$6/$C$8,$C$7*$C$8,$C$5,1,E268,Pilotage!$D$25)),\"\")","v":""},null,null,null,null,null,{"$f":"IF(K268<>\"\",-1*CUMIPMT($C$6/$C$8,$C$7*$C$8,$C$5,M268,N268,Pilotage!$D$25),\"\")","v":""}]
[null,null,null,null,"","",{"$f":"IF(E269<>\"\",IF($C$5=0,0,CUMIPMT($C$6/$C$8,$C$7*$C$8,$C$5,1,E269,Pilotage!$D$25)),\"\")","v":""},{"$f":"IF(E269<>\"\",IF($C$5=0,0,CUMIPMT($C$6/$C$8,$C$7*$C$8,$C$5,E269,E269,Pilotage!$D$25)),\"\")","v":""},{"$f":"IF(E269<>\"\",IF($C$5=0,0,$C$5+CUMPRINC($C$6/$C$8,$C$7*$C$8,$C$5,1,E269,Pilotage!$D$25)),\"\")","v":""},null,null,null,null,null,{"$f":"IF(K269<>\"\",-1*CUMIPMT($C$6/$C$8,$C$7*$C$8,$C$5,M269,N269,Pilotage!$D$25),\"\")","v":""}]
[null,null,null,null,"","",{"$f":"IF(E270<>\"\",IF($C$5=0,0,CUMIPMT($C$6/$C$8,$C$7*$C$8,$C$5,1,E270,Pilotage!$D$25)),\"\")","v":""},{"$f":"IF(E270<>\"\",IF($C$5=0,0,CUMIPMT($C$6/$C$8,$C$7*$C$8,$C$5,E270,E270,Pilotage!$D$25)),\"\")","v":""},{"$f":"IF(E270<>\"\",IF($C$5=0,0,$C$5+CUMPRINC($C$6/$C$8,$C$7*$C$8,$C$5,1,E270,Pilotage!$D$25)),\"\")","v":""},null,null,null,null,null,{"$f":"IF(K270<>\"\",-1*CUMIPMT($C$6/$C$8,$C$7*$C$8,$C$5,M270,N270,Pilotage!$D$25),\"\")","v":""}]
[null,null,null,null,"","",{"$f":"IF(E271<>\"\",IF($C$5=0,0,CUMIPMT($C$6/$C$8,$C$7*$C$8,$C$5,1,E271,Pilotage!$D$25)),\"\")","v":""},{"$f":"IF(E271<>\"\",IF($C$5=0,0,CUMIPMT($C$6/$C$8,$C$7*$C$8,$C$5,E271,E271,Pilotage!$D$25)),\"\")","v":""},{"$f":"IF(E271<>\"\",IF($C$5=0,0,$C$5+CUMPRINC($C$6/$C$8,$C$7*$C$8,$C$5,1,E271,Pilotage!$D$25)),\"\")","v":""},null,null,null,null,null,{"$f":"IF(K271<>\"\",-1*CUMIPMT($C$6/$C$8,$C$7*$C$8,$C$5,M271,N271,Pilotage!$D$25),\"\")","v":""}]
[null,null,null,null,"","",{"$f":"IF(E272<>\"\",IF($C$5=0,0,CUMIPMT($C$6/$C$8,$C$7*$C$8,$C$5,1,E272,Pilotage!$D$25)),\"\")","v":""},{"$f":"IF(E272<>\"\",IF($C$5=0,0,CUMIPMT($C$6/$C$8,$C$7*$C$8,$C$5,E272,E272,Pilotage!$D$25)),\"\")","v":""},{"$f":"IF(E272<>\"\",IF($C$5=0,0,$C$5+CUMPRINC($C$6/$C$8,$C$7*$C$8,$C$5,1,E272,Pilotage!$D$25)),\"\")","v":""},null,null,null,null,null,{"$f":"IF(K272<>\"\",-1*CUMIPMT($C$6/$C$8,$C$7*$C$8,$C$5,M272,N272,Pilotage!$D$25),\"\")","v":""}]
[null,null,null,null,"","",{"$f":"IF(E273<>\"\",IF($C$5=0,0,CUMIPMT($C$6/$C$8,$C$7*$C$8,$C$5,1,E273,Pilotage!$D$25)),\"\")","v":""},{"$f":"IF(E273<>\"\",IF($C$5=0,0,CUMIPMT($C$6/$C$8,$C$7*$C$8,$C$5,E273,E273,Pilotage!$D$25)),\"\")","v":""},{"$f":"IF(E273<>\"\",IF($C$5=0,0,$C$5+CUMPRINC($C$6/$C$8,$C$7*$C$8,$C$5,1,E273,Pilotage!$D$25)),\"\")","v":""},null,null,null,null,null,{"$f":"IF(K273<>\"\",-1*CUMIPMT($C$6/$C$8,$C$7*$C$8,$C$5,M273,N273,Pilotage!$D$25),\"\")","v":""}]
[null,null,null,null,"","",{"$f":"IF(E274<>\"\",IF($C$5=0,0,CUMIPMT($C$6/$C$8,$C$7*$C$8,$C$5,1,E274,Pilotage!$D$25)),\"\")","v":""},{"$f":"IF(E274<>\"\",IF($C$5=0,0,CUMIPMT($C$6/$C$8,$C$7*$C$8,$C$5,E274,E274,Pilotage!$D$25)),\"\")","v":""},{"$f":"IF(E274<>\"\",IF($C$5=0,0,$C$5+CUMPRINC($C$6/$C$8,$C$7*$C$8,$C$5,1,E274,Pilotage!$D$25)),\"\")","v":""},null,null,null,null,null,{"$f":"IF(K274<>\"\",-1*CUMIPMT($C$6/$C$8,$C$7*$C$8,$C$5,M274,N274,Pilotage!$D$25),\"\")","v":""}]
[null,null,null,null,"","",{"$f":"IF(E275<>\"\",IF($C$5=0,0,CUMIPMT($C$6/$C$8,$C$7*$C$8,$C$5,1,E275,Pilotage!$D$25)),\"\")","v":""},{"$f":"IF(E275<>\"\",IF($C$5=0,0,CUMIPMT($C$6/$C$8,$C$7*$C$8,$C$5,E275,E275,Pilotage!$D$25)),\"\")","v":""},{"$f":"IF(E275<>\"\",IF($C$5=0,0,$C$5+CUMPRINC($C$6/$C$8,$C$7*$C$8,$C$5,1,E275,Pilotage!$D$25)),\"\")","v":""},null,null,null,null,null,{"$f":"IF(K275<>\"\",-1*CUMIPMT($C$6/$C$8,$C$7*$C$8,$C$5,M275,N275,Pilotage!$D$25),\"\")","v":""}]
[null,null,null,null,"","",{"$f":"IF(E276<>\"\",IF($C$5=0,0,CUMIPMT($C$6/$C$8,$C$7*$C$8,$C$5,1,E276,Pilotage!$D$25)),\"\")","v":""},{"$f":"IF(E276<>\"\",IF($C$5=0,0,CUMIPMT($C$6/$C$8,$C$7*$C$8,$C$5,E276,E276,Pilotage!$D$25)),\"\")","v":""},{"$f":"IF(E276<>\"\",IF($C$5=0,0,$C$5+CUMPRINC($C$6/$C$8,$C$7*$C$8,$C$5,1,E276,Pilotage!$D$25)),\"\")","v":""},null,null,null,null,null,{"$f":"IF(K276<>\"\",-1*CUMIPMT($C$6/$C$8,$C$7*$C$8,$C$5,M276,N276,Pilotage!$D$25),\"\")","v":""}]
[null,null,null,null,"","",{"$f":"IF(E277<>\"\",IF($C$5=0,0,CUMIPMT($C$6/$C$8,$C$7*$C$8,$C$5,1,E277,Pilotage!$D$25)),\"\")","v":""},{"$f":"IF(E277<>\"\",IF($C$5=0,0,CUMIPMT($C$6/$C$8,$C$7*$C$8,$C$5,E277,E277,Pilotage!$D$25)),\"\")","v":""},{"$f":"IF(E277<>\"\",IF($C$5=0,0,$C$5+CUMPRINC($C$6/$C$8,$C$7*$C$8,$C$5,1,E277,Pilotage!$D$25)),\"\")","v":""},null,null,null,null,null,{"$f":"IF(K277<>\"\",-1*CUMIPMT($C$6/$C$8,$C$7*$C$8,$C$5,M277,N277,Pilotage!$D$25),\"\")","v":""}]
[null,null,null,null,"","",{"$f":"IF(E278<>\"\",IF($C$5=0,0,CUMIPMT($C$6/$C$8,$C$7*$C$8,$C$5,1,E278,Pilotage!$D$25)),\"\")","v":""},{"$f":"IF(E278<>\"\",IF($C$5=0,0,CUMIPMT($C$6/$C$8,$C$7*$C$8,$C$5,E278,E278,Pilotage!$D$25)),\"\")","v":""},{"$f":"IF(E278<>\"\",IF($C$5=0,0,$C$5+CUMPRINC($C$6/$C$8,$C$7*$C$8,$C$5,1,E278,Pilotage!$D$25)),\"\")","v":""},null,null,null,null,null,{"$f":"IF(K278<>\"\",-1*CUMIPMT($C$6/$C$8,$C$7*$C$8,$C$5,M278,N278,Pilotage!$D$25),\"\")","v":""}]
[null,null,null,null,"","",{"$f":"IF(E279<>\"\",IF($C$5=0,0,CUMIPMT($C$6/$C$8,$C$7*$C$8,$C$5,1,E279,Pilotage!$D$25)),\"\")","v":""},{"$f":"IF(E279<>\"\",IF($C$5=0,0,CUMIPMT($C$6/$C$8,$C$7*$C$8,$C$5,E279,E279,Pilotage!$D$25)),\"\")","v":""},{"$f":"IF(E279<>\"\",IF($C$5=0,0,$C$5+CUMPRINC($C$6/$C$8,$C$7*$C$8,$C$5,1,E279,Pilotage!$D$25)),\"\")","v":""},null,null,null,null,null,{"$f":"IF(K279<>\"\",-1*CUMIPMT($C$6/$C$8,$C$7*$C$8,$C$5,M279,N279,Pilotage!$D$25),\"\")","v":""}]
[null,null,null,null,"","",{"$f":"IF(E280<>\"\",IF($C$5=0,0,CUMIPMT($C$6/$C$8,$C$7*$C$8,$C$5,1,E280,Pilotage!$D$25)),\"\")","v":""},{"$f":"IF(E280<>\"\",IF($C$5=0,0,CUMIPMT($C$6/$C$8,$C$7*$C$8,$C$5,E280,E280,Pilotage!$D$25)),\"\")","v":""},{"$f":"IF(E280<>\"\",IF($C$5=0,0,$C$5+CUMPRINC($C$6/$C$8,$C$7*$C$8,$C$5,1,E280,Pilotage!$D$25)),\"\")","v":""},null,null,null,null,null,{"$f":"IF(K280<>\"\",-1*CUMIPMT($C$6/$C$8,$C$7*$C$8,$C$5,M280,N280,Pilotage!$D$25),\"\")","v":""}]
[null,null,null,null,"","",{"$f":"IF(E281<>\"\",IF($C$5=0,0,CUMIPMT($C$6/$C$8,$C$7*$C$8,$C$5,1,E281,Pilotage!$D$25)),\"\")","v":""},{"$f":"IF(E281<>\"\",IF($C$5=0,0,CUMIPMT($C$6/$C$8,$C$7*$C$8,$C$5,E281,E281,Pilotage!$D$25)),\"\")","v":""},{"$f":"IF(E281<>\"\",IF($C$5=0,0,$C$5+CUMPRINC($C$6/$C$8,$C$7*$C$8,$C$5,1,E281,Pilotage!$D$25)),\"\")","v":""},null,null,null,null,null,{"$f":"IF(K281<>\"\",-1*CUMIPMT($C$6/$C$8,$C$7*$C$8,$C$5,M281,N281,Pilotage!$D$25),\"\")","v":""}]
[null,null,null,null,"","",{"$f":"IF(E282<>\"\",IF($C$5=0,0,CUMIPMT($C$6/$C$8,$C$7*$C$8,$C$5,1,E282,Pilotage!$D$25)),\"\")","v":""},{"$f":"IF(E282<>\"\",IF($C$5=0,0,CUMIPMT($C$6/$C$8,$C$7*$C$8,$C$5,E282,E282,Pilotage!$D$25)),\"\")","v":""},{"$f":"IF(E282<>\"\",IF($C$5=0,0,$C$5+CUMPRINC($C$6/$C$8,$C$7*$C$8,$C$5,1,E282,Pilotage!$D$25)),\"\")","v":""},null,null,null,null,null,{"$f":"IF(K282<>\"\",-1*CUMIPMT($C$6/$C$8,$C$7*$C$8,$C$5,M282,N282,Pilotage!$D$25),\"\")","v":""}]
[null,null,null,null,"","",{"$f":"IF(E283<>\"\",IF($C$5=0,0,CUMIPMT($C$6/$C$8,$C$7*$C$8,$C$5,1,E283,Pilotage!$D$25)),\"\")","v":""},{"$f":"IF(E283<>\"\",IF($C$5=0,0,CUMIPMT($C$6/$C$8,$C$7*$C$8,$C$5,E283,E283,Pilotage!$D$25)),\"\")","v":""},{"$f":"IF(E283<>\"\",IF($C$5=0,0,$C$5+CUMPRINC($C$6/$C$8,$C$7*$C$8,$C$5,1,E283,Pilotage!$D$25)),\"\")","v":""},null,null,null,null,null,{"$f":"IF(K283<>\"\",-1*CUMIPMT($C$6/$C$8,$C$7*$C$8,$C$5,M283,N283,Pilotage!$D$25),\"\")","v":""}]
[null,null,null,null,"","",{"$f":"IF(E284<>\"\",IF($C$5=0,0,CUMIPMT($C$6/$C$8,$C$7*$C$8,$C$5,1,E284,Pilotage!$D$25)),\"\")","v":""},{"$f":"IF(E284<>\"\",IF($C$5=0,0,CUMIPMT($C$6/$C$8,$C$7*$C$8,$C$5,E284,E284,Pilotage!$D$25)),\"\")","v":""},{"$f":"IF(E284<>\"\",IF($C$5=0,0,$C$5+CUMPRINC($C$6/$C$8,$C$7*$C$8,$C$5,1,E284,Pilotage!$D$25)),\"\")","v":""},null,null,null,null,null,{"$f":"IF(K284<>\"\",-1*CUMIPMT($C$6/$C$8,$C$7*$C$8,$C$5,M284,N284,Pilotage!$D$25),\"\")","v":""}]
[null,null,null,null,"","",{"$f":"IF(E285<>\"\",IF($C$5=0,0,CUMIPMT($C$6/$C$8,$C$7*$C$8,$C$5,1,E285,Pilotage!$D$25)),\"\")","v":""},{"$f":"IF(E285<>\"\",IF($C$5=0,0,CUMIPMT($C$6/$C$8,$C$7*$C$8,$C$5,E285,E285,Pilotage!$D$25)),\"\")","v":""},{"$f":"IF(E285<>\"\",IF($C$5=0,0,$C$5+CUMPRINC($C$6/$C$8,$C$7*$C$8,$C$5,1,E285,Pilotage!$D$25)),\"\")","v":""},null,null,null,null,null,{"$f":"IF(K285<>\"\",-1*CUMIPMT($C$6/$C$8,$C$7*$C$8,$C$5,M285,N285,Pilotage!$D$25),\"\")","v":""}]
[null,null,null,null,"","",{"$f":"IF(E286<>\"\",IF($C$5=0,0,CUMIPMT($C$6/$C$8,$C$7*$C$8,$C$5,1,E286,Pilotage!$D$25)),\"\")","v":""},{"$f":"IF(E286<>\"\",IF($C$5=0,0,CUMIPMT($C$6/$C$8,$C$7*$C$8,$C$5,E286,E286,Pilotage!$D$25)),\"\")","v":""},{"$f":"IF(E286<>\"\",IF($C$5=0,0,$C$5+CUMPRINC($C$6/$C$8,$C$7*$C$8,$C$5,1,E286,Pilotage!$D$25)),\"\")","v":""},null,null,null,null,null,{"$f":"IF(K286<>\"\",-1*CUMIPMT($C$6/$C$8,$C$7*$C$8,$C$5,M286,N286,Pilotage!$D$25),\"\")","v":""}]
[null,null,null,null,"","",{"$f":"IF(E287<>\"\",IF($C$5=0,0,CUMIPMT($C$6/$C$8,$C$7*$C$8,$C$5,1,E287,Pilotage!$D$25)),\"\")","v":""},{"$f":"IF(E287<>\"\",IF($C$5=0,0,CUMIPMT($C$6/$C$8,$C$7*$C$8,$C$5,E287,E287,Pilotage!$D$25)),\"\")","v":""},{"$f":"IF(E287<>\"\",IF($C$5=0,0,$C$5+CUMPRINC($C$6/$C$8,$C$7*$C$8,$C$5,1,E287,Pilotage!$D$25)),\"\")","v":""},null,null,null,null,null,{"$f":"IF(K287<>\"\",-1*CUMIPMT($C$6/$C$8,$C$7*$C$8,$C$5,M287,N287,Pilotage!$D$25),\"\")","v":""}]
[null,null,null,null,"","",{"$f":"IF(E288<>\"\",IF($C$5=0,0,CUMIPMT($C$6/$C$8,$C$7*$C$8,$C$5,1,E288,Pilotage!$D$25)),\"\")","v":""},{"$f":"IF(E288<>\"\",IF($C$5=0,0,CUMIPMT($C$6/$C$8,$C$7*$C$8,$C$5,E288,E288,Pilotage!$D$25)),\"\")","v":""},{"$f":"IF(E288<>\"\",IF($C$5=0,0,$C$5+CUMPRINC($C$6/$C$8,$C$7*$C$8,$C$5,1,E288,Pilotage!$D$25)),\"\")","v":""},null,null,null,null,null,{"$f":"IF(K288<>\"\",-1*CUMIPMT($C$6/$C$8,$C$7*$C$8,$C$5,M288,N288,Pilotage!$D$25),\"\")","v":""}]
[null,null,null,null,"","",{"$f":"IF(E289<>\"\",IF($C$5=0,0,CUMIPMT($C$6/$C$8,$C$7*$C$8,$C$5,1,E289,Pilotage!$D$25)),\"\")","v":""},{"$f":"IF(E289<>\"\",IF($C$5=0,0,CUMIPMT($C$6/$C$8,$C$7*$C$8,$C$5,E289,E289,Pilotage!$D$25)),\"\")","v":""},{"$f":"IF(E289<>\"\",IF($C$5=0,0,$C$5+CUMPRINC($C$6/$C$8,$C$7*$C$8,$C$5,1,E289,Pilotage!$D$25)),\"\")","v":""},null,null,null,null,null,{"$f":"IF(K289<>\"\",-1*CUMIPMT($C$6/$C$8,$C$7*$C$8,$C$5,M289,N289,Pilotage!$D$25),\"\")","v":""}]
[null,null,null,null,"","",{"$f":"IF(E290<>\"\",IF($C$5=0,0,CUMIPMT($C$6/$C$8,$C$7*$C$8,$C$5,1,E290,Pilotage!$D$25)),\"\")","v":""},{"$f":"IF(E290<>\"\",IF($C$5=0,0,CUMIPMT($C$6/$C$8,$C$7*$C$8,$C$5,E290,E290,Pilotage!$D$25)),\"\")","v":""},{"$f":"IF(E290<>\"\",IF($C$5=0,0,$C$5+CUMPRINC($C$6/$C$8,$C$7*$C$8,$C$5,1,E290,Pilotage!$D$25)),\"\")","v":""},null,null,null,null,null,{"$f":"IF(K290<>\"\",-1*CUMIPMT($C$6/$C$8,$C$7*$C$8,$C$5,M290,N290,Pilotage!$D$25),\"\")","v":""}]
[null,null,null,null,"","",{"$f":"IF(E291<>\"\",IF($C$5=0,0,CUMIPMT($C$6/$C$8,$C$7*$C$8,$C$5,1,E291,Pilotage!$D$25)),\"\")","v":""},{"$f":"IF(E291<>\"\",IF($C$5=0,0,CUMIPMT($C$6/$C$8,$C$7*$C$8,$C$5,E291,E291,Pilotage!$D$25)),\"\")","v":""},{"$f":"IF(E291<>\"\",IF($C$5=0,0,$C$5+CUMPRINC($C$6/$C$8,$C$7*$C$8,$C$5,1,E291,Pilotage!$D$25)),\"\")","v":""},null,null,null,null,null,{"$f":"IF(K291<>\"\",-1*CUMIPMT($C$6/$C$8,$C$7*$C$8,$C$5,M291,N291,Pilotage!$D$25),\"\")","v":""}]
[null,null,null,null,"","",{"$f":"IF(E292<>\"\",IF($C$5=0,0,CUMIPMT($C$6/$C$8,$C$7*$C$8,$C$5,1,E292,Pilotage!$D$25)),\"\")","v":""},{"$f":"IF(E292<>\"\",IF($C$5=0,0,CUMIPMT($C$6/$C$8,$C$7*$C$8,$C$5,E292,E292,Pilotage!$D$25)),\"\")","v":""},{"$f":"IF(E292<>\"\",IF($C$5=0,0,$C$5+CUMPRINC($C$6/$C$8,$C$7*$C$8,$C$5,1,E292,Pilotage!$D$25)),\"\")","v":""},null,null,null,null,null,{"$f":"IF(K292<>\"\",-1*CUMIPMT($C$6/$C$8,$C$7*$C$8,$C$5,M292,N292,Pilotage!$D$25),\"\")","v":""}]
[null,null,null,null,"","",{"$f":"IF(E293<>\"\",IF($C$5=0,0,CUMIPMT($C$6/$C$8,$C$7*$C$8,$C$5,1,E293,Pilotage!$D$25)),\"\")","v":""},{"$f":"IF(E293<>\"\",IF($C$5=0,0,CUMIPMT($C$6/$C$8,$C$7*$C$8,$C$5,E293,E293,Pilotage!$D$25)),\"\")","v":""},{"$f":"IF(E293<>\"\",IF($C$5=0,0,$C$5+CUMPRINC($C$6/$C$8,$C$7*$C$8,$C$5,1,E293,Pilotage!$D$25)),\"\")","v":""},null,null,null,null,null,{"$f":"IF(K293<>\"\",-1*CUMIPMT($C$6/$C$8,$C$7*$C$8,$C$5,M293,N293,Pilotage!$D$25),\"\")","v":""}]
[null,null,null,null,"","",{"$f":"IF(E294<>\"\",IF($C$5=0,0,CUMIPMT($C$6/$C$8,$C$7*$C$8,$C$5,1,E294,Pilotage!$D$25)),\"\")","v":""},{"$f":"IF(E294<>\"\",IF($C$5=0,0,CUMIPMT($C$6/$C$8,$C$7*$C$8,$C$5,E294,E294,Pilotage!$D$25)),\"\")","v":""},{"$f":"IF(E294<>\"\",IF($C$5=0,0,$C$5+CUMPRINC($C$6/$C$8,$C$7*$C$8,$C$5,1,E294,Pilotage!$D$25)),\"\")","v":""},null,null,null,null,null,{"$f":"IF(K294<>\"\",-1*CUMIPMT($C$6/$C$8,$C$7*$C$8,$C$5,M294,N294,Pilotage!$D$25),\"\")","v":""}]
[null,null,null,null,"","",{"$f":"IF(E295<>\"\",IF($C$5=0,0,CUMIPMT($C$6/$C$8,$C$7*$C$8,$C$5,1,E295,Pilotage!$D$25)),\"\")","v":""},{"$f":"IF(E295<>\"\",IF($C$5=0,0,CUMIPMT($C$6/$C$8,$C$7*$C$8,$C$5,E295,E295,Pilotage!$D$25)),\"\")","v":""},{"$f":"IF(E295<>\"\",IF($C$5=0,0,$C$5+CUMPRINC($C$6/$C$8,$C$7*$C$8,$C$5,1,E295,Pilotage!$D$25)),\"\")","v":""},null,null,null,null,null,{"$f":"IF(K295<>\"\",-1*CUMIPMT($C$6/$C$8,$C$7*$C$8,$C$5,M295,N295,Pilotage!$D$25),\"\")","v":""}]
[null,null,null,null,"","",{"$f":"IF(E296<>\"\",IF($C$5=0,0,CUMIPMT($C$6/$C$8,$C$7*$C$8,$C$5,1,E296,Pilotage!$D$25)),\"\")","v":""},{"$f":"IF(E296<>\"\",IF($C$5=0,0,CUMIPMT($C$6/$C$8,$C$7*$C$8,$C$5,E296,E296,Pilotage!$D$25)),\"\")","v":""},{"$f":"IF(E296<>\"\",IF($C$5=0,0,$C$5+CUMPRINC($C$6/$C$8,$C$7*$C$8,$C$5,1,E296,Pilotage!$D$25)),\"\")","v":""},null,null,null,null,null,{"$f":"IF(K296<>\"\",-1*CUMIPMT($C$6/$C$8,$C$7*$C$8,$C$5,M296,N296,Pilotage!$D$25),\"\")","v":""}]
[null,null,null,null,"","",{"$f":"IF(E297<>\"\",IF($C$5=0,0,CUMIPMT($C$6/$C$8,$C$7*$C$8,$C$5,1,E297,Pilotage!$D$25)),\"\")","v":""},{"$f":"IF(E297<>\"\",IF($C$5=0,0,CUMIPMT($C$6/$C$8,$C$7*$C$8,$C$5,E297,E297,Pilotage!$D$25)),\"\")","v":""},{"$f":"IF(E297<>\"\",IF($C$5=0,0,$C$5+CUMPRINC($C$6/$C$8,$C$7*$C$8,$C$5,1,E297,Pilotage!$D$25)),\"\")","v":""},null,null,null,null,null,{"$f":"IF(K297<>\"\",-1*CUMIPMT($C$6/$C$8,$C$7*$C$8,$C$5,M297,N297,Pilotage!$D$25),\"\")","v":""}]
[null,null,null,null,"","",{"$f":"IF(E298<>\"\",IF($C$5=0,0,CUMIPMT($C$6/$C$8,$C$7*$C$8,$C$5,1,E298,Pilotage!$D$25)),\"\")","v":""},{"$f":"IF(E298<>\"\",IF($C$5=0,0,CUMIPMT($C$6/$C$8,$C$7*$C$8,$C$5,E298,E298,Pilotage!$D$25)),\"\")","v":""},{"$f":"IF(E298<>\"\",IF($C$5=0,0,$C$5+CUMPRINC($C$6/$C$8,$C$7*$C$8,$C$5,1,E298,Pilotage!$D$25)),\"\")","v":""},null,null,null,null,null,{"$f":"IF(K298<>\"\",-1*CUMIPMT($C$6/$C$8,$C$7*$C$8,$C$5,M298,N298,Pilotage!$D$25),\"\")","v":""}]
[null,null,null,null,"","",{"$f":"IF(E299<>\"\",IF($C$5=0,0,CUMIPMT($C$6/$C$8,$C$7*$C$8,$C$5,1,E299,Pilotage!$D$25)),\"\")","v":""},{"$f":"IF(E299<>\"\",IF($C$5=0,0,CUMIPMT($C$6/$C$8,$C$7*$C$8,$C$5,E299,E299,Pilotage!$D$25)),\"\")","v":""},{"$f":"IF(E299<>\"\",IF($C$5=0,0,$C$5+CUMPRINC($C$6/$C$8,$C$7*$C$8,$C$5,1,E299,Pilotage!$D$25)),\"\")","v":""},null,null,null,null,null,{"$f":"IF(K299<>\"\",-1*CUMIPMT($C$6/$C$8,$C$7*$C$8,$C$5,M299,N299,Pilotage!$D$25),\"\")","v":""}]
[null,null,null,null,"","",{"$f":"IF(E300<>\"\",IF($C$5=0,0,CUMIPMT($C$6/$C$8,$C$7*$C$8,$C$5,1,E300,Pilotage!$D$25)),\"\")","v":""},{"$f":"IF(E300<>\"\",IF($C$5=0,0,CUMIPMT($C$6/$C$8,$C$7*$C$8,$C$5,E300,E300,Pilotage!$D$25)),\"\")","v":""},{"$f":"IF(E300<>\"\",IF($C$5=0,0,$C$5+CUMPRINC($C$6/$C$8,$C$7*$C$8,$C$5,1,E300,Pilotage!$D$25)),\"\")","v":""},null,null,null,null,null,{"$f":"IF(K300<>\"\",-1*CUMIPMT($C$6/$C$8,$C$7*$C$8,$C$5,M300,N300,Pilotage!$D$25),\"\")","v":""}]
[null,null,null,null,"","",{"$f":"IF(E301<>\"\",IF($C$5=0,0,CUMIPMT($C$6/$C$8,$C$7*$C$8,$C$5,1,E301,Pilotage!$D$25)),\"\")","v":""},{"$f":"IF(E301<>\"\",IF($C$5=0,0,CUMIPMT($C$6/$C$8,$C$7*$C$8,$C$5,E301,E301,Pilotage!$D$25)),\"\")","v":""},{"$f":"IF(E301<>\"\",IF($C$5=0,0,$C$5+CUMPRINC($C$6/$C$8,$C$7*$C$8,$C$5,1,E301,Pilotage!$D$25)),\"\")","v":""},null,null,null,null,null,{"$f":"IF(K301<>\"\",-1*CUMIPMT($C$6/$C$8,$C$7*$C$8,$C$5,M301,N301,Pilotage!$D$25),\"\")","v":""}]
[null,null,null,null,"","",{"$f":"IF(E302<>\"\",IF($C$5=0,0,CUMIPMT($C$6/$C$8,$C$7*$C$8,$C$5,1,E302,Pilotage!$D$25)),\"\")","v":""},{"$f":"IF(E302<>\"\",IF($C$5=0,0,CUMIPMT($C$6/$C$8,$C$7*$C$8,$C$5,E302,E302,Pilotage!$D$25)),\"\")","v":""},{"$f":"IF(E302<>\"\",IF($C$5=0,0,$C$5+CUMPRINC($C$6/$C$8,$C$7*$C$8,$C$5,1,E302,Pilotage!$D$25)),\"\")","v":""},null,null,null,null,null,{"$f":"IF(K302<>\"\",-1*CUMIPMT($C$6/$C$8,$C$7*$C$8,$C$5,M302,N302,Pilotage!$D$25),\"\")","v":""}]
[null,null,null,null,"","",{"$f":"IF(E303<>\"\",IF($C$5=0,0,CUMIPMT($C$6/$C$8,$C$7*$C$8,$C$5,1,E303,Pilotage!$D$25)),\"\")","v":""},{"$f":"IF(E303<>\"\",IF($C$5=0,0,CUMIPMT($C$6/$C$8,$C$7*$C$8,$C$5,E303,E303,Pilotage!$D$25)),\"\")","v":""},{"$f":"IF(E303<>\"\",IF($C$5=0,0,$C$5+CUMPRINC($C$6/$C$8,$C$7*$C$8,$C$5,1,E303,Pilotage!$D$25)),\"\")","v":""},null,null,null,null,null,{"$f":"IF(K303<>\"\",-1*CUMIPMT($C$6/$C$8,$C$7*$C$8,$C$5,M303,N303,Pilotage!$D$25),\"\")","v":""}]
[null,null,null,null,"","",{"$f":"IF(E304<>\"\",IF($C$5=0,0,CUMIPMT($C$6/$C$8,$C$7*$C$8,$C$5,1,E304,Pilotage!$D$25)),\"\")","v":""},{"$f":"IF(E304<>\"\",IF($C$5=0,0,CUMIPMT($C$6/$C$8,$C$7*$C$8,$C$5,E304,E304,Pilotage!$D$25)),\"\")","v":""},{"$f":"IF(E304<>\"\",IF($C$5=0,0,$C$5+CUMPRINC($C$6/$C$8,$C$7*$C$8,$C$5,1,E304,Pilotage!$D$25)),\"\")","v":""},null,null,null,null,null,{"$f":"IF(K304<>\"\",-1*CUMIPMT($C$6/$C$8,$C$7*$C$8,$C$5,M304,N304,Pilotage!$D$25),\"\")","v":""}]
[null,null,null,null,"","",{"$f":"IF(E305<>\"\",IF($C$5=0,0,CUMIPMT($C$6/$C$8,$C$7*$C$8,$C$5,1,E305,Pilotage!$D$25)),\"\")","v":""},{"$f":"IF(E305<>\"\",IF($C$5=0,0,CUMIPMT($C$6/$C$8,$C$7*$C$8,$C$5,E305,E305,Pilotage!$D$25)),\"\")","v":""},{"$f":"IF(E305<>\"\",IF($C$5=0,0,$C$5+CUMPRINC($C$6/$C$8,$C$7*$C$8,$C$5,1,E305,Pilotage!$D$25)),\"\")","v":""},null,null,null,null,null,{"$f":"IF(K305<>\"\",-1*CUMIPMT($C$6/$C$8,$C$7*$C$8,$C$5,M305,N305,Pilotage!$D$25),\"\")","v":""}]
[null,null,null,null,"","",{"$f":"IF(E306<>\"\",IF($C$5=0,0,CUMIPMT($C$6/$C$8,$C$7*$C$8,$C$5,1,E306,Pilotage!$D$25)),\"\")","v":""},{"$f":"IF(E306<>\"\",IF($C$5=0,0,CUMIPMT($C$6/$C$8,$C$7*$C$8,$C$5,E306,E306,Pilotage!$D$25)),\"\")","v":""},{"$f":"IF(E306<>\"\",IF($C$5=0,0,$C$5+CUMPRINC($C$6/$C$8,$C$7*$C$8,$C$5,1,E306,Pilotage!$D$25)),\"\")","v":""},null,null,null,null,null,{"$f":"IF(K306<>\"\",-1*CUMIPMT($C$6/$C$8,$C$7*$C$8,$C$5,M306,N306,Pilotage!$D$25),\"\")","v":""}]
[null,null,null,null,"","",{"$f":"IF(E307<>\"\",IF($C$5=0,0,CUMIPMT($C$6/$C$8,$C$7*$C$8,$C$5,1,E307,Pilotage!$D$25)),\"\")","v":""},{"$f":"IF(E307<>\"\",IF($C$5=0,0,CUMIPMT($C$6/$C$8,$C$7*$C$8,$C$5,E307,E307,Pilotage!$D$25)),\"\")","v":""},{"$f":"IF(E307<>\"\",IF($C$5=0,0,$C$5+CUMPRINC($C$6/$C$8,$C$7*$C$8,$C$5,1,E307,Pilotage!$D$25)),\"\")","v":""},null,null,null,null,null,{"$f":"IF(K307<>\"\",-1*CUMIPMT($C$6/$C$8,$C$7*$C$8,$C$5,M307,N307,Pilotage!$D$25),\"\")","v":""}]
[null,null,null,null,"","",{"$f":"IF(E308<>\"\",IF($C$5=0,0,CUMIPMT($C$6/$C$8,$C$7*$C$8,$C$5,1,E308,Pilotage!$D$25)),\"\")","v":""},{"$f":"IF(E308<>\"\",IF($C$5=0,0,CUMIPMT($C$6/$C$8,$C$7*$C$8,$C$5,E308,E308,Pilotage!$D$25)),\"\")","v":""},{"$f":"IF(E308<>\"\",IF($C$5=0,0,$C$5+CUMPRINC($C$6/$C$8,$C$7*$C$8,$C$5,1,E308,Pilotage!$D$25)),\"\")","v":""},null,null,null,null,null,{"$f":"IF(K308<>\"\",-1*CUMIPMT($C$6/$C$8,$C$7*$C$8,$C$5,M308,N308,Pilotage!$D$25),\"\")","v":""}]
[null,null,null,null,"","",{"$f":"IF(E309<>\"\",IF($C$5=0,0,CUMIPMT($C$6/$C$8,$C$7*$C$8,$C$5,1,E309,Pilotage!$D$25)),\"\")","v":""},{"$f":"IF(E309<>\"\",IF($C$5=0,0,CUMIPMT($C$6/$C$8,$C$7*$C$8,$C$5,E309,E309,Pilotage!$D$25)),\"\")","v":""},{"$f":"IF(E309<>\"\",IF($C$5=0,0,$C$5+CUMPRINC($C$6/$C$8,$C$7*$C$8,$C$5,1,E309,Pilotage!$D$25)),\"\")","v":""},null,null,null,null,null,{"$f":"IF(K309<>\"\",-1*CUMIPMT($C$6/$C$8,$C$7*$C$8,$C$5,M309,N309,Pilotage!$D$25),\"\")","v":""}]
[null,null,null,null,"","",{"$f":"IF(E310<>\"\",IF($C$5=0,0,CUMIPMT($C$6/$C$8,$C$7*$C$8,$C$5,1,E310,Pilotage!$D$25)),\"\")","v":""},{"$f":"IF(E310<>\"\",IF($C$5=0,0,CUMIPMT($C$6/$C$8,$C$7*$C$8,$C$5,E310,E310,Pilotage!$D$25)),\"\")","v":""},{"$f":"IF(E310<>\"\",IF($C$5=0,0,$C$5+CUMPRINC($C$6/$C$8,$C$7*$C$8,$C$5,1,E310,Pilotage!$D$25)),\"\")","v":""},null,null,null,null,null,{"$f":"IF(K310<>\"\",-1*CUMIPMT($C$6/$C$8,$C$7*$C$8,$C$5,M310,N310,Pilotage!$D$25),\"\")","v":""}]
[null,null,null,null,"","",{"$f":"IF(E311<>\"\",IF($C$5=0,0,CUMIPMT($C$6/$C$8,$C$7*$C$8,$C$5,1,E311,Pilotage!$D$25)),\"\")","v":""},{"$f":"IF(E311<>\"\",IF($C$5=0,0,CUMIPMT($C$6/$C$8,$C$7*$C$8,$C$5,E311,E311,Pilotage!$D$25)),\"\")","v":""},{"$f":"IF(E311<>\"\",IF($C$5=0,0,$C$5+CUMPRINC($C$6/$C$8,$C$7*$C$8,$C$5,1,E311,Pilotage!$D$25)),\"\")","v":""},null,null,null,null,null,{"$f":"IF(K311<>\"\",-1*CUMIPMT($C$6/$C$8,$C$7*$C$8,$C$5,M311,N311,Pilotage!$D$25),\"\")","v":""}]
[null,null,null,null,"","",{"$f":"IF(E312<>\"\",IF($C$5=0,0,CUMIPMT($C$6/$C$8,$C$7*$C$8,$C$5,1,E312,Pilotage!$D$25)),\"\")","v":""},{"$f":"IF(E312<>\"\",IF($C$5=0,0,CUMIPMT($C$6/$C$8,$C$7*$C$8,$C$5,E312,E312,Pilotage!$D$25)),\"\")","v":""},{"$f":"IF(E312<>\"\",IF($C$5=0,0,$C$5+CUMPRINC($C$6/$C$8,$C$7*$C$8,$C$5,1,E312,Pilotage!$D$25)),\"\")","v":""},null,null,null,null,null,{"$f":"IF(K312<>\"\",-1*CUMIPMT($C$6/$C$8,$C$7*$C$8,$C$5,M312,N312,Pilotage!$D$25),\"\")","v":""}]
[null,null,null,null,"","",{"$f":"IF(E313<>\"\",IF($C$5=0,0,CUMIPMT($C$6/$C$8,$C$7*$C$8,$C$5,1,E313,Pilotage!$D$25)),\"\")","v":""},{"$f":"IF(E313<>\"\",IF($C$5=0,0,CUMIPMT($C$6/$C$8,$C$7*$C$8,$C$5,E313,E313,Pilotage!$D$25)),\"\")","v":""},{"$f":"IF(E313<>\"\",IF($C$5=0,0,$C$5+CUMPRINC($C$6/$C$8,$C$7*$C$8,$C$5,1,E313,Pilotage!$D$25)),\"\")","v":""},null,null,null,null,null,{"$f":"IF(K313<>\"\",-1*CUMIPMT($C$6/$C$8,$C$7*$C$8,$C$5,M313,N313,Pilotage!$D$25),\"\")","v":""}]
[null,null,null,null,"","",{"$f":"IF(E314<>\"\",IF($C$5=0,0,CUMIPMT($C$6/$C$8,$C$7*$C$8,$C$5,1,E314,Pilotage!$D$25)),\"\")","v":""},{"$f":"IF(E314<>\"\",IF($C$5=0,0,CUMIPMT($C$6/$C$8,$C$7*$C$8,$C$5,E314,E314,Pilotage!$D$25)),\"\")","v":""},{"$f":"IF(E314<>\"\",IF($C$5=0,0,$C$5+CUMPRINC($C$6/$C$8,$C$7*$C$8,$C$5,1,E314,Pilotage!$D$25)),\"\")","v":""},null,null,null,null,null,{"$f":"IF(K314<>\"\",-1*CUMIPMT($C$6/$C$8,$C$7*$C$8,$C$5,M314,N314,Pilotage!$D$25),\"\")","v":""}]
[null,null,null,null,"","",{"$f":"IF(E315<>\"\",IF($C$5=0,0,CUMIPMT($C$6/$C$8,$C$7*$C$8,$C$5,1,E315,Pilotage!$D$25)),\"\")","v":""},{"$f":"IF(E315<>\"\",IF($C$5=0,0,CUMIPMT($C$6/$C$8,$C$7*$C$8,$C$5,E315,E315,Pilotage!$D$25)),\"\")","v":""},{"$f":"IF(E315<>\"\",IF($C$5=0,0,$C$5+CUMPRINC($C$6/$C$8,$C$7*$C$8,$C$5,1,E315,Pilotage!$D$25)),\"\")","v":""},null,null,null,null,null,{"$f":"IF(K315<>\"\",-1*CUMIPMT($C$6/$C$8,$C$7*$C$8,$C$5,M315,N315,Pilotage!$D$25),\"\")","v":""}]
[null,null,null,null,"","",{"$f":"IF(E316<>\"\",IF($C$5=0,0,CUMIPMT($C$6/$C$8,$C$7*$C$8,$C$5,1,E316,Pilotage!$D$25)),\"\")","v":""},{"$f":"IF(E316<>\"\",IF($C$5=0,0,CUMIPMT($C$6/$C$8,$C$7*$C$8,$C$5,E316,E316,Pilotage!$D$25)),\"\")","v":""},{"$f":"IF(E316<>\"\",IF($C$5=0,0,$C$5+CUMPRINC($C$6/$C$8,$C$7*$C$8,$C$5,1,E316,Pilotage!$D$25)),\"\")","v":""},null,null,null,null,null,{"$f":"IF(K316<>\"\",-1*CUMIPMT($C$6/$C$8,$C$7*$C$8,$C$5,M316,N316,Pilotage!$D$25),\"\")","v":""}]
[null,null,null,null,"","",{"$f":"IF(E317<>\"\",IF($C$5=0,0,CUMIPMT($C$6/$C$8,$C$7*$C$8,$C$5,1,E317,Pilotage!$D$25)),\"\")","v":""},{"$f":"IF(E317<>\"\",IF($C$5=0,0,CUMIPMT($C$6/$C$8,$C$7*$C$8,$C$5,E317,E317,Pilotage!$D$25)),\"\")","v":""},{"$f":"IF(E317<>\"\",IF($C$5=0,0,$C$5+CUMPRINC($C$6/$C$8,$C$7*$C$8,$C$5,1,E317,Pilotage!$D$25)),\"\")","v":""},null,null,null,null,null,{"$f":"IF(K317<>\"\",-1*CUMIPMT($C$6/$C$8,$C$7*$C$8,$C$5,M317,N317,Pilotage!$D$25),\"\")","v":""}]
[null,null,null,null,"","",{"$f":"IF(E318<>\"\",IF($C$5=0,0,CUMIPMT($C$6/$C$8,$C$7*$C$8,$C$5,1,E318,Pilotage!$D$25)),\"\")","v":""},{"$f":"IF(E318<>\"\",IF($C$5=0,0,CUMIPMT($C$6/$C$8,$C$7*$C$8,$C$5,E318,E318,Pilotage!$D$25)),\"\")","v":""},{"$f":"IF(E318<>\"\",IF($C$5=0,0,$C$5+CUMPRINC($C$6/$C$8,$C$7*$C$8,$C$5,1,E318,Pilotage!$D$25)),\"\")","v":""},null,null,null,null,null,{"$f":"IF(K318<>\"\",-1*CUMIPMT($C$6/$C$8,$C$7*$C$8,$C$5,M318,N318,Pilotage!$D$25),\"\")","v":""}]
[null,null,null,null,"","",{"$f":"IF(E319<>\"\",IF($C$5=0,0,CUMIPMT($C$6/$C$8,$C$7*$C$8,$C$5,1,E319,Pilotage!$D$25)),\"\")","v":""},{"$f":"IF(E319<>\"\",IF($C$5=0,0,CUMIPMT($C$6/$C$8,$C$7*$C$8,$C$5,E319,E319,Pilotage!$D$25)),\"\")","v":""},{"$f":"IF(E319<>\"\",IF($C$5=0,0,$C$5+CUMPRINC($C$6/$C$8,$C$7*$C$8,$C$5,1,E319,Pilotage!$D$25)),\"\")","v":""},null,null,null,null,null,{"$f":"IF(K319<>\"\",-1*CUMIPMT($C$6/$C$8,$C$7*$C$8,$C$5,M319,N319,Pilotage!$D$25),\"\")","v":""}]
[null,null,null,null,"","",{"$f":"IF(E320<>\"\",IF($C$5=0,0,CUMIPMT($C$6/$C$8,$C$7*$C$8,$C$5,1,E320,Pilotage!$D$25)),\"\")","v":""},{"$f":"IF(E320<>\"\",IF($C$5=0,0,CUMIPMT($C$6/$C$8,$C$7*$C$8,$C$5,E320,E320,Pilotage!$D$25)),\"\")","v":""},{"$f":"IF(E320<>\"\",IF($C$5=0,0,$C$5+CUMPRINC($C$6/$C$8,$C$7*$C$8,$C$5,1,E320,Pilotage!$D$25)),\"\")","v":""},null,null,null,null,null,{"$f":"IF(K320<>\"\",-1*CUMIPMT($C$6/$C$8,$C$7*$C$8,$C$5,M320,N320,Pilotage!$D$25),\"\")","v":""}]
[null,null,null,null,"","",{"$f":"IF(E321<>\"\",IF($C$5=0,0,CUMIPMT($C$6/$C$8,$C$7*$C$8,$C$5,1,E321,Pilotage!$D$25)),\"\")","v":""},{"$f":"IF(E321<>\"\",IF($C$5=0,0,CUMIPMT($C$6/$C$8,$C$7*$C$8,$C$5,E321,E321,Pilotage!$D$25)),\"\")","v":""},{"$f":"IF(E321<>\"\",IF($C$5=0,0,$C$5+CUMPRINC($C$6/$C$8,$C$7*$C$8,$C$5,1,E321,Pilotage!$D$25)),\"\")","v":""},null,null,null,null,null,{"$f":"IF(K321<>\"\",-1*CUMIPMT($C$6/$C$8,$C$7*$C$8,$C$5,M321,N321,Pilotage!$D$25),\"\")","v":""}]
[null,null,null,null,"","",{"$f":"IF(E322<>\"\",IF($C$5=0,0,CUMIPMT($C$6/$C$8,$C$7*$C$8,$C$5,1,E322,Pilotage!$D$25)),\"\")","v":""},{"$f":"IF(E322<>\"\",IF($C$5=0,0,CUMIPMT($C$6/$C$8,$C$7*$C$8,$C$5,E322,E322,Pilotage!$D$25)),\"\")","v":""},{"$f":"IF(E322<>\"\",IF($C$5=0,0,$C$5+CUMPRINC($C$6/$C$8,$C$7*$C$8,$C$5,1,E322,Pilotage!$D$25)),\"\")","v":""},null,null,null,null,null,{"$f":"IF(K322<>\"\",-1*CUMIPMT($C$6/$C$8,$C$7*$C$8,$C$5,M322,N322,Pilotage!$D$25),\"\")","v":""}]
[null,null,null,null,"","",{"$f":"IF(E323<>\"\",IF($C$5=0,0,CUMIPMT($C$6/$C$8,$C$7*$C$8,$C$5,1,E323,Pilotage!$D$25)),\"\")","v":""},{"$f":"IF(E323<>\"\",IF($C$5=0,0,CUMIPMT($C$6/$C$8,$C$7*$C$8,$C$5,E323,E323,Pilotage!$D$25)),\"\")","v":""},{"$f":"IF(E323<>\"\",IF($C$5=0,0,$C$5+CUMPRINC($C$6/$C$8,$C$7*$C$8,$C$5,1,E323,Pilotage!$D$25)),\"\")","v":""},null,null,null,null,null,{"$f":"IF(K323<>\"\",-1*CUMIPMT($C$6/$C$8,$C$7*$C$8,$C$5,M323,N323,Pilotage!$D$25),\"\")","v":""}]
[null,null,null,null,"","",{"$f":"IF(E324<>\"\",IF($C$5=0,0,CUMIPMT($C$6/$C$8,$C$7*$C$8,$C$5,1,E324,Pilotage!$D$25)),\"\")","v":""},{"$f":"IF(E324<>\"\",IF($C$5=0,0,CUMIPMT($C$6/$C$8,$C$7*$C$8,$C$5,E324,E324,Pilotage!$D$25)),\"\")","v":""},{"$f":"IF(E324<>\"\",IF($C$5=0,0,$C$5+CUMPRINC($C$6/$C$8,$C$7*$C$8,$C$5,1,E324,Pilotage!$D$25)),\"\")","v":""},null,null,null,null,null,{"$f":"IF(K324<>\"\",-1*CUMIPMT($C$6/$C$8,$C$7*$C$8,$C$5,M324,N324,Pilotage!$D$25),\"\")","v":""}]
[null,null,null,null,"","",{"$f":"IF(E325<>\"\",IF($C$5=0,0,CUMIPMT($C$6/$C$8,$C$7*$C$8,$C$5,1,E325,Pilotage!$D$25)),\"\")","v":""},{"$f":"IF(E325<>\"\",IF($C$5=0,0,CUMIPMT($C$6/$C$8,$C$7*$C$8,$C$5,E325,E325,Pilotage!$D$25)),\"\")","v":""},{"$f":"IF(E325<>\"\",IF($C$5=0,0,$C$5+CUMPRINC($C$6/$C$8,$C$7*$C$8,$C$5,1,E325,Pilotage!$D$25)),\"\")","v":""},null,null,null,null,null,{"$f":"IF(K325<>\"\",-1*CUMIPMT($C$6/$C$8,$C$7*$C$8,$C$5,M325,N325,Pilotage!$D$25),\"\")","v":""}]
[null,null,null,null,"","",{"$f":"IF(E326<>\"\",IF($C$5=0,0,CUMIPMT($C$6/$C$8,$C$7*$C$8,$C$5,1,E326,Pilotage!$D$25)),\"\")","v":""},{"$f":"IF(E326<>\"\",IF($C$5=0,0,CUMIPMT($C$6/$C$8,$C$7*$C$8,$C$5,E326,E326,Pilotage!$D$25)),\"\")","v":""},{"$f":"IF(E326<>\"\",IF($C$5=0,0,$C$5+CUMPRINC($C$6/$C$8,$C$7*$C$8,$C$5,1,E326,Pilotage!$D$25)),\"\")","v":""},null,null,null,null,null,{"$f":"IF(K326<>\"\",-1*CUMIPMT($C$6/$C$8,$C$7*$C$8,$C$5,M326,N326,Pilotage!$D$25),\"\")","v":""}]
[null,null,null,null,"","",{"$f":"IF(E327<>\"\",IF($C$5=0,0,CUMIPMT($C$6/$C$8,$C$7*$C$8,$C$5,1,E327,Pilotage!$D$25)),\"\")","v":""},{"$f":"IF(E327<>\"\",IF($C$5=0,0,CUMIPMT($C$6/$C$8,$C$7*$C$8,$C$5,E327,E327,Pilotage!$D$25)),\"\")","v":""},{"$f":"IF(E327<>\"\",IF($C$5=0,0,$C$5+CUMPRINC($C$6/$C$8,$C$7*$C$8,$C$5,1,E327,Pilotage!$D$25)),\"\")","v":""},null,null,null,null,null,{"$f":"IF(K327<>\"\",-1*CUMIPMT($C$6/$C$8,$C$7*$C$8,$C$5,M327,N327,Pilotage!$D$25),\"\")","v":""}]
[null,null,null,null,{"$f":"IF(E327<$C$10,E327+1,\"\")","v":""},{"$f":"IF(E328<>\"\",EDATE(F327,$C$11),\"\")","v":""},{"$f":"IF(E328<>\"\",IF($C$5=0,0,CUMIPMT($C$6/$C$8,$C$7*$C$8,$C$5,1,E328,Pilotage!$D$25)),\"\")","v":""},{"$f":"IF(E328<>\"\",IF($C$5=0,0,CUMIPMT($C$6/$C$8,$C$7*$C$8,$C$5,E328,E328,Pilotage!$D$25)),\"\")","v":""},{"$f":"IF(E328<>\"\",IF($C$5=0,0,$C$5+CUMPRINC($C$6/$C$8,$C$7*$C$8,$C$5,1,E328,Pilotage!$D$25)),\"\")","v":""},null,null,null,null,null,{"$f":"IF(K328<>\"\",-1*CUMIPMT($C$6/$C$8,$C$7*$C$8,$C$5,M328,N328,Pilotage!$D$25),\"\")","v":""}]
[null,null,null,null,"","",{"$f":"IF(E329<>\"\",IF($C$5=0,0,CUMIPMT($C$6/$C$8,$C$7*$C$8,$C$5,1,E329,Pilotage!$D$25)),\"\")","v":""},{"$f":"IF(E329<>\"\",IF($C$5=0,0,CUMIPMT($C$6/$C$8,$C$7*$C$8,$C$5,E329,E329,Pilotage!$D$25)),\"\")","v":""},{"$f":"IF(E329<>\"\",IF($C$5=0,0,$C$5+CUMPRINC($C$6/$C$8,$C$7*$C$8,$C$5,1,E329,Pilotage!$D$25)),\"\")","v":""},null,null,null,null,null,{"$f":"IF(K329<>\"\",-1*CUMIPMT($C$6/$C$8,$C$7*$C$8,$C$5,M329,N329,Pilotage!$D$25),\"\")","v":""}]
[null,null,null,null,"","",{"$f":"IF(E330<>\"\",IF($C$5=0,0,CUMIPMT($C$6/$C$8,$C$7*$C$8,$C$5,1,E330,Pilotage!$D$25)),\"\")","v":""},{"$f":"IF(E330<>\"\",IF($C$5=0,0,CUMIPMT($C$6/$C$8,$C$7*$C$8,$C$5,E330,E330,Pilotage!$D$25)),\"\")","v":""},{"$f":"IF(E330<>\"\",IF($C$5=0,0,$C$5+CUMPRINC($C$6/$C$8,$C$7*$C$8,$C$5,1,E330,Pilotage!$D$25)),\"\")","v":""},null,null,null,null,null,{"$f":"IF(K330<>\"\",-1*CUMIPMT($C$6/$C$8,$C$7*$C$8,$C$5,M330,N330,Pilotage!$D$25),\"\")","v":""}]
[null,null,null,null,"","",{"$f":"IF(E331<>\"\",IF($C$5=0,0,CUMIPMT($C$6/$C$8,$C$7*$C$8,$C$5,1,E331,Pilotage!$D$25)),\"\")","v":""},{"$f":"IF(E331<>\"\",IF($C$5=0,0,CUMIPMT($C$6/$C$8,$C$7*$C$8,$C$5,E331,E331,Pilotage!$D$25)),\"\")","v":""},{"$f":"IF(E331<>\"\",IF($C$5=0,0,$C$5+CUMPRINC($C$6/$C$8,$C$7*$C$8,$C$5,1,E331,Pilotage!$D$25)),\"\")","v":""},null,null,null,null,null,{"$f":"IF(K331<>\"\",-1*CUMIPMT($C$6/$C$8,$C$7*$C$8,$C$5,M331,N331,Pilotage!$D$25),\"\")","v":""}]
[null,null,null,null,"","",{"$f":"IF(E332<>\"\",IF($C$5=0,0,CUMIPMT($C$6/$C$8,$C$7*$C$8,$C$5,1,E332,Pilotage!$D$25)),\"\")","v":""},{"$f":"IF(E332<>\"\",IF($C$5=0,0,CUMIPMT($C$6/$C$8,$C$7*$C$8,$C$5,E332,E332,Pilotage!$D$25)),\"\")","v":""},{"$f":"IF(E332<>\"\",IF($C$5=0,0,$C$5+CUMPRINC($C$6/$C$8,$C$7*$C$8,$C$5,1,E332,Pilotage!$D$25)),\"\")","v":""},null,null,null,null,null,{"$f":"IF(K332<>\"\",-1*CUMIPMT($C$6/$C$8,$C$7*$C$8,$C$5,M332,N332,Pilotage!$D$25),\"\")","v":""}]
[null,null,null,null,"","",{"$f":"IF(E333<>\"\",IF($C$5=0,0,CUMIPMT($C$6/$C$8,$C$7*$C$8,$C$5,1,E333,Pilotage!$D$25)),\"\")","v":""},{"$f":"IF(E333<>\"\",IF($C$5=0,0,CUMIPMT($C$6/$C$8,$C$7*$C$8,$C$5,E333,E333,Pilotage!$D$25)),\"\")","v":""},{"$f":"IF(E333<>\"\",IF($C$5=0,0,$C$5+CUMPRINC($C$6/$C$8,$C$7*$C$8,$C$5,1,E333,Pilotage!$D$25)),\"\")","v":""},null,null,null,null,null,{"$f":"IF(K333<>\"\",-1*CUMIPMT($C$6/$C$8,$C$7*$C$8,$C$5,M333,N333,Pilotage!$D$25),\"\")","v":""}]
[null,null,null,null,"","",{"$f":"IF(E334<>\"\",IF($C$5=0,0,CUMIPMT($C$6/$C$8,$C$7*$C$8,$C$5,1,E334,Pilotage!$D$25)),\"\")","v":""},{"$f":"IF(E334<>\"\",IF($C$5=0,0,CUMIPMT($C$6/$C$8,$C$7*$C$8,$C$5,E334,E334,Pilotage!$D$25)),\"\")","v":""},{"$f":"IF(E334<>\"\",IF($C$5=0,0,$C$5+CUMPRINC($C$6/$C$8,$C$7*$C$8,$C$5,1,E334,Pilotage!$D$25)),\"\")","v":""},null,null,null,null,null,{"$f":"IF(K334<>\"\",-1*CUMIPMT($C$6/$C$8,$C$7*$C$8,$C$5,M334,N334,Pilotage!$D$25),\"\")","v":""}]
[null,null,null,null,"","",{"$f":"IF(E335<>\"\",IF($C$5=0,0,CUMIPMT($C$6/$C$8,$C$7*$C$8,$C$5,1,E335,Pilotage!$D$25)),\"\")","v":""},{"$f":"IF(E335<>\"\",IF($C$5=0,0,CUMIPMT($C$6/$C$8,$C$7*$C$8,$C$5,E335,E335,Pilotage!$D$25)),\"\")","v":""},{"$f":"IF(E335<>\"\",IF($C$5=0,0,$C$5+CUMPRINC($C$6/$C$8,$C$7*$C$8,$C$5,1,E335,Pilotage!$D$25)),\"\")","v":""},null,null,null,null,null,{"$f":"IF(K335<>\"\",-1*CUMIPMT($C$6/$C$8,$C$7*$C$8,$C$5,M335,N335,Pilotage!$D$25),\"\")","v":""}]
[null,null,null,null,"","",{"$f":"IF(E336<>\"\",IF($C$5=0,0,CUMIPMT($C$6/$C$8,$C$7*$C$8,$C$5,1,E336,Pilotage!$D$25)),\"\")","v":""},{"$f":"IF(E336<>\"\",IF($C$5=0,0,CUMIPMT($C$6/$C$8,$C$7*$C$8,$C$5,E336,E336,Pilotage!$D$25)),\"\")","v":""},{"$f":"IF(E336<>\"\",IF($C$5=0,0,$C$5+CUMPRINC($C$6/$C$8,$C$7*$C$8,$C$5,1,E336,Pilotage!$D$25)),\"\")","v":""},null,null,null,null,null,{"$f":"IF(K336<>\"\",-1*CUMIPMT($C$6/$C$8,$C$7*$C$8,$C$5,M336,N336,Pilotage!$D$25),\"\")","v":""}]
[null,null,null,null,"","",{"$f":"IF(E337<>\"\",IF($C$5=0,0,CUMIPMT($C$6/$C$8,$C$7*$C$8,$C$5,1,E337,Pilotage!$D$25)),\"\")","v":""},{"$f":"IF(E337<>\"\",IF($C$5=0,0,CUMIPMT($C$6/$C$8,$C$7*$C$8,$C$5,E337,E337,Pilotage!$D$25)),\"\")","v":""},{"$f":"IF(E337<>\"\",IF($C$5=0,0,$C$5+CUMPRINC($C$6/$C$8,$C$7*$C$8,$C$5,1,E337,Pilotage!$D$25)),\"\")","v":""},null,null,null,null,null,{"$f":"IF(K337<>\"\",-1*CUMIPMT($C$6/$C$8,$C$7*$C$8,$C$5,M337,N337,Pilotage!$D$25),\"\")","v":""}]
[null,null,null,null,"","",{"$f":"IF(E338<>\"\",IF($C$5=0,0,CUMIPMT($C$6/$C$8,$C$7*$C$8,$C$5,1,E338,Pilotage!$D$25)),\"\")","v":""},{"$f":"IF(E338<>\"\",IF($C$5=0,0,CUMIPMT($C$6/$C$8,$C$7*$C$8,$C$5,E338,E338,Pilotage!$D$25)),\"\")","v":""},{"$f":"IF(E338<>\"\",IF($C$5=0,0,$C$5+CUMPRINC($C$6/$C$8,$C$7*$C$8,$C$5,1,E338,Pilotage!$D$25)),\"\")","v":""},null,null,null,null,null,{"$f":"IF(K338<>\"\",-1*CUMIPMT($C$6/$C$8,$C$7*$C$8,$C$5,M338,N338,Pilotage!$D$25),\"\")","v":""}]
[null,null,null,null,"","",{"$f":"IF(E339<>\"\",IF($C$5=0,0,CUMIPMT($C$6/$C$8,$C$7*$C$8,$C$5,1,E339,Pilotage!$D$25)),\"\")","v":""},{"$f":"IF(E339<>\"\",IF($C$5=0,0,CUMIPMT($C$6/$C$8,$C$7*$C$8,$C$5,E339,E339,Pilotage!$D$25)),\"\")","v":""},{"$f":"IF(E339<>\"\",IF($C$5=0,0,$C$5+CUMPRINC($C$6/$C$8,$C$7*$C$8,$C$5,1,E339,Pilotage!$D$25)),\"\")","v":""},null,null,null,null,null,{"$f":"IF(K339<>\"\",-1*CUMIPMT($C$6/$C$8,$C$7*$C$8,$C$5,M339,N339,Pilotage!$D$25),\"\")","v":""}]
[null,null,null,null,"","",{"$f":"IF(E340<>\"\",IF($C$5=0,0,CUMIPMT($C$6/$C$8,$C$7*$C$8,$C$5,1,E340,Pilotage!$D$25)),\"\")","v":""},{"$f":"IF(E340<>\"\",IF($C$5=0,0,CUMIPMT($C$6/$C$8,$C$7*$C$8,$C$5,E340,E340,Pilotage!$D$25)),\"\")","v":""},{"$f":"IF(E340<>\"\",IF($C$5=0,0,$C$5+CUMPRINC($C$6/$C$8,$C$7*$C$8,$C$5,1,E340,Pilotage!$D$25)),\"\")","v":""},null,null,null,null,null,{"$f":"IF(K340<>\"\",-1*CUMIPMT($C$6/$C$8,$C$7*$C$8,$C$5,M340,N340,Pilotage!$D$25),\"\")","v":""}]
[null,null,null,null,"","",{"$f":"IF(E341<>\"\",IF($C$5=0,0,CUMIPMT($C$6/$C$8,$C$7*$C$8,$C$5,1,E341,Pilotage!$D$25)),\"\")","v":""},{"$f":"IF(E341<>\"\",IF($C$5=0,0,CUMIPMT($C$6/$C$8,$C$7*$C$8,$C$5,E341,E341,Pilotage!$D$25)),\"\")","v":""},{"$f":"IF(E341<>\"\",IF($C$5=0,0,$C$5+CUMPRINC($C$6/$C$8,$C$7*$C$8,$C$5,1,E341,Pilotage!$D$25)),\"\")","v":""}]
[null,null,null,null,"","",{"$f":"IF(E342<>\"\",IF($C$5=0,0,CUMIPMT($C$6/$C$8,$C$7*$C$8,$C$5,1,E342,Pilotage!$D$25)),\"\")","v":""},{"$f":"IF(E342<>\"\",IF($C$5=0,0,CUMIPMT($C$6/$C$8,$C$7*$C$8,$C$5,E342,E342,Pilotage!$D$25)),\"\")","v":""},{"$f":"IF(E342<>\"\",IF($C$5=0,0,$C$5+CUMPRINC($C$6/$C$8,$C$7*$C$8,$C$5,1,E342,Pilotage!$D$25)),\"\")","v":""}]
[null,null,null,null,"","",{"$f":"IF(E343<>\"\",IF($C$5=0,0,CUMIPMT($C$6/$C$8,$C$7*$C$8,$C$5,1,E343,Pilotage!$D$25)),\"\")","v":""},{"$f":"IF(E343<>\"\",IF($C$5=0,0,CUMIPMT($C$6/$C$8,$C$7*$C$8,$C$5,E343,E343,Pilotage!$D$25)),\"\")","v":""},{"$f":"IF(E343<>\"\",IF($C$5=0,0,$C$5+CUMPRINC($C$6/$C$8,$C$7*$C$8,$C$5,1,E343,Pilotage!$D$25)),\"\")","v":""}]
[null,null,null,null,"","",{"$f":"IF(E344<>\"\",IF($C$5=0,0,CUMIPMT($C$6/$C$8,$C$7*$C$8,$C$5,1,E344,Pilotage!$D$25)),\"\")","v":""},{"$f":"IF(E344<>\"\",IF($C$5=0,0,CUMIPMT($C$6/$C$8,$C$7*$C$8,$C$5,E344,E344,Pilotage!$D$25)),\"\")","v":""},{"$f":"IF(E344<>\"\",IF($C$5=0,0,$C$5+CUMPRINC($C$6/$C$8,$C$7*$C$8,$C$5,1,E344,Pilotage!$D$25)),\"\")","v":""}]
[null,null,null,null,"","",{"$f":"IF(E345<>\"\",IF($C$5=0,0,CUMIPMT($C$6/$C$8,$C$7*$C$8,$C$5,1,E345,Pilotage!$D$25)),\"\")","v":""},{"$f":"IF(E345<>\"\",IF($C$5=0,0,CUMIPMT($C$6/$C$8,$C$7*$C$8,$C$5,E345,E345,Pilotage!$D$25)),\"\")","v":""},{"$f":"IF(E345<>\"\",IF($C$5=0,0,$C$5+CUMPRINC($C$6/$C$8,$C$7*$C$8,$C$5,1,E345,Pilotage!$D$25)),\"\")","v":""}]
[null,null,null,null,"","",{"$f":"IF(E346<>\"\",IF($C$5=0,0,CUMIPMT($C$6/$C$8,$C$7*$C$8,$C$5,1,E346,Pilotage!$D$25)),\"\")","v":""},{"$f":"IF(E346<>\"\",IF($C$5=0,0,CUMIPMT($C$6/$C$8,$C$7*$C$8,$C$5,E346,E346,Pilotage!$D$25)),\"\")","v":""},{"$f":"IF(E346<>\"\",IF($C$5=0,0,$C$5+CUMPRINC($C$6/$C$8,$C$7*$C$8,$C$5,1,E346,Pilotage!$D$25)),\"\")","v":""}]
[null,null,null,null,"",""]
[null,null,null,null,""]
[null,null,null,null,""]
[null,null,null,null,""]
[null,null,null,null,""]
[null,null,null,null,""]
[null,null,null,null,""]
[null,null,null,null,""]
[null,null,null,null,""]
[null,null,null,null,""]
[null,null,null,null,""]
[null,null,null,null,""]
[null,null,null,null,""]
[null,null,null,null,""]
[null,null,null,null,""]
[null,null,null,null,""]
[null,null,null,null,""]
[null,null,null,null,""]
[null,null,null,null,""]
[null,null,null,null,""]
[null,null,null,null,""]
[null,null,null,null,""]
[null,null,null,null,""]
[null,null,null,null,""]
[null,null,null,null,""]
[null,null,null,null,""]
[null,null,null,null,""]
[null,null,null,null,""]
[null,null,null,null,""]
[null,null,null,null,""]
[null,null,null,null,""]
[null,null,null,null,""]
[null,null,null,null,""]
[null,null,null,null,""]
[null,null,null,null,""]
[null,null,null,null,""]
[null,null,null,null,""]
[null,null,null,null,""]
[null,null,null,null,""]
[null,null,null,null,""]
[null,null,null,null,""]
[null,null,null,null,""]
[null,null,null,null,""]
[null,null,null,null,""]
[null,null,null,null,""]
[null,null,null,null,{"$f":"IF(E391<$C$10,E391+1,\"\")","v":""}]
[null,null,null,null,""]
[null,null,null,null,""]
[null,null,null,null,""]
[null,null,null,null,""]
[null,null,null,null,""]
[null,null,null,null,""]
[null,null,null,null,"",null,{"$f":"IF(E399<>\"\",IF($C$5=0,0,CUMIPMT($C$6/$C$8,$C$7*$C$8,$C$5,1,E399,Pilotage!$D$25)),\"\")","v":""},{"$f":"IF(E399<>\"\",IF($C$5=0,0,CUMIPMT($C$6/$C$8,$C$7*$C$8,$C$5,E399,E399,Pilotage!$D$25)),\"\")","v":""},{"$f":"IF(E399<>\"\",IF($C$5=0,0,$C$5+CUMPRINC($C$6/$C$8,$C$7*$C$8,$C$5,1,E399,Pilotage!$D$25)),\"\")","v":""}]
[null,null,null,null,"",null,{"$f":"IF(E400<>\"\",IF($C$5=0,0,CUMIPMT($C$6/$C$8,$C$7*$C$8,$C$5,1,E400,Pilotage!$D$25)),\"\")","v":""},{"$f":"IF(E400<>\"\",IF($C$5=0,0,CUMIPMT($C$6/$C$8,$C$7*$C$8,$C$5,E400,E400,Pilotage!$D$25)),\"\")","v":""},{"$f":"IF(E400<>\"\",IF($C$5=0,0,$C$5+CUMPRINC($C$6/$C$8,$C$7*$C$8,$C$5,1,E400,Pilotage!$D$25)),\"\")","v":""}]
[null,null,null,null,""]
[null,null,null,null,""]
[null,null,null,null,""]

{"sheet":"PCE","index":52,"n_rows":403,"n_cols":15,"rows_kept":403,"cut":false,"hidden":false,"merged":[[2,1,2,8],[2,9,2,14]]}
[]
[]
[null,"Emprunt"]
[]
[null,"Montant emprunté",{"$f":"Pilotage!H22","v":0},null,null,"Date","Intérêts cumulé","Intérêts","Capital restant dû",null,null,"Date",null,null,"Intérêts annuels"]
[null,"Taux annuel",{"$f":"Pilotage!D22","v":0.04},null,1,{"$f":"C9","v":"2014-10-01"},{"$f":"IF(E6<>\"\",IF($C$5=0,0,IF($C$6<=0,0,CUMIPMT($C$6/$C$8,$C$7*$C$8,$C$5,1,E6,Pilotage!$D$25))),\"\")","v":0},{"$f":"IF(E6<>\"\",IF($C$6<=0,0,IF($C$5=0,0,CUMIPMT($C$6/$C$8,$C$7*$C$8,$C$5,E6,E6,Pilotage!$D$25))),\"\")","v":0},{"$f":"IF(E6<>\"\",IF($C$5=0,0,IF($C$6<=0,C$13-E6*C$12,$C$5+CUMPRINC($C$6/$C$8,$C$7*$C$8,$C$5,1,E6,Pilotage!$D$25))),\"\")","v":0},null,1,{"$f":"F6","v":"2014-10-01"},{"$f":"IF(K6<>\"\",K6*$C$8-$C$8+1,\"\")","v":1},{"$f":"IF(K6<>\"\",K6*$C$8,\"\")","v":12},{"$f":"IF(K6<>\"\",IF($C$6<=0,0,IF($C$5=0,0,-1*CUMIPMT($C$6/$C$8,$C$7*$C$8,$C$5,M6,N6,Pilotage!$D$25))),\"\")","v":0}]
[null,"Nb années de décaissement",5,null,{"$f":"IF(E6<$C$10,E6+1,\"\")","v":2},{"$f":"IF(E7<>\"\",EDATE(F6,$C$11),\"\")","v":"2014-11-01"},{"$f":"IF(E7<>\"\",IF($C$5=0,0,IF($C$6<=0,0,CUMIPMT($C$6/$C$8,$C$7*$C$8,$C$5,1,E7,Pilotage!$D$25))),\"\")","v":0},{"$f":"IF(E7<>\"\",IF($C$6<=0,0,IF($C$5=0,0,CUMIPMT($C$6/$C$8,$C$7*$C$8,$C$5,E7,E7,Pilotage!$D$25))),\"\")","v":0},{"$f":"IF(E7<>\"\",IF($C$5=0,0,IF($C$6<=0,C$13-E7*C$12,$C$5+CUMPRINC($C$6/$C$8,$C$7*$C$8,$C$5,1,E7,Pilotage!$D$25))),\"\")","v":0},null,{"$f":"IF(E6<$C$7,E6+1,\"\")","v":2},{"$f":"IF(K7<>\"\",EDATE(L6,12),\"\")","v":"2015-10-01"},{"$f":"IF(K7<>\"\",K7*$C$8-$C$8+1,\"\")","v":13},24,{"$f":"IF(K7<>\"\",IF($C$6<=0,0,IF($C$5=0,0,-1*CUMIPMT($C$6/$C$8,$C$7*$C$8,$C$5,M7,N7,Pilotage!$D$25))),\"\")","v":0}]
[null,"Périodicité (nb fois/an, 4 = trimest.)",12,null,{"$f":"IF(E7<$C$10,E7+1,\"\")","v":3},{"$f":"IF(E8<>\"\",EDATE(F7,$C$11),\"\")","v":"2014-12-01"},{"$f":"IF(E8<>\"\",IF($C$5=0,0,IF($C$6<=0,0,CUMIPMT($C$6/$C$8,$C$7*$C$8,$C$5,1,E8,Pilotage!$D$25))),\"\")","v":0},{"$f":"IF(E8<>\"\",IF($C$6<=0,0,IF($C$5=0,0,CUMIPMT($C$6/$C$8,$C$7*$C$8,$C$5,E8,E8,Pilotage!$D$25))),\"\")","v":0},{"$f":"IF(E8<>\"\",IF($C$5=0,0,IF($C$6<=0,C$13-E8*C$12,$C$5+CUMPRINC($C$6/$C$8,$C$7*$C$8,$C$5,1,E8,Pilotage!$D$25))),\"\")","v":0},null,{"$f":"IF(E7<$C$7,E7+1,\"\")","v":3},{"$f":"IF(K8<>\"\",EDATE(L7,12),\"\")","v":"2016-10-01"},25,36,{"$f":"IF(K8<>\"\",IF($C$6<=0,0,IF($C$5=0,0,-1*CUMIPMT($C$6/$C$8,$C$7*$C$8,$C$5,M8,N8,Pilotage!$D$25))),\"\")","v":0}]
[null,"Date de départ",{"$f":"Pilotage!D26","v":"2014-10-01"},null,4,"2015-01-01",{"$f":"IF(E9<>\"\",IF($C$5=0,0,IF($C$6<=0,0,CUMIPMT($C$6/$C$8,$C$7*$C$8,$C$5,1,E9,Pilotage!$D$25))),\"\")","v":0},{"$f":"IF(E9<>\"\",IF($C$6<=0,0,IF($C$5=0,0,CUMIPMT($C$6/$C$8,$C$7*$C$8,$C$5,E9,E9,Pilotage!$D$25))),\"\")","v":0},{"$f":"IF(E9<>\"\",IF($C$5=0,0,IF($C$6<=0,C$13-E9*C$12,$C$5+CUMPRINC($C$6/$C$8,$C$7*$C$8,$C$5,1,E9,Pilotage!$D$25))),\"\")","v":0},null,4,"2017-10-01",37,48,{"$f":"IF(K9<>\"\",IF($C$6<=0,0,IF($C$5=0,0,-1*CUMIPMT($C$6/$C$8,$C$7*$C$8,$C$5,M9,N9,Pilotage!$D$25))),\"\")","v":0}]
[null,"Échéances",{"$f":"C7*C8","v":60},null,5,"2015-02-01",{"$f":"IF(E10<>\"\",IF($C$5=0,0,IF($C$6<=0,0,CUMIPMT($C$6/$C$8,$C$7*$C$8,$C$5,1,E10,Pilotage!$D$25))),\"\")","v":0},{"$f":"IF(E10<>\"\",IF($C$6<=0,0,IF($C$5=0,0,CUMIPMT($C$6/$C$8,$C$7*$C$8,$C$5,E10,E10,Pilotage!$D$25))),\"\")","v":0},{"$f":"IF(E10<>\"\",IF($C$5=0,0,IF($C$6<=0,C$13-E10*C$12,$C$5+CUMPRINC($C$6/$C$8,$C$7*$C$8,$C$5,1,E10,Pilotage!$D$25))),\"\")","v":0},null,5,"2018-10-01",49,60,{"$f":"IF(K10<>\"\",IF($C$6<=0,0,IF($C$5=0,0,-1*CUMIPMT($C$6/$C$8,$C$7*$C$8,$C$5,M10,N10,Pilotage!$D$25))),\"\")","v":0}]
[null,"Durée de l'échéance",{"$f":"12/C8","v":1},null,6,"2015-03-01",{"$f":"IF(E11<>\"\",IF($C$5=0,0,IF($C$6<=0,0,CUMIPMT($C$6/$C$8,$C$7*$C$8,$C$5,1,E11,Pilotage!$D$25))),\"\")","v":0},{"$f":"IF(E11<>\"\",IF($C$6<=0,0,IF($C$5=0,0,CUMIPMT($C$6/$C$8,$C$7*$C$8,$C$5,E11,E11,Pilotage!$D$25))),\"\")","v":0},{"$f":"IF(E11<>\"\",IF($C$5=0,0,IF($C$6<=0,C$13-E11*C$12,$C$5+CUMPRINC($C$6/$C$8,$C$7*$C$8,$C$5,1,E11,Pilotage!$D$25))),\"\")","v":0},null,"","","","",{"$f":"IF(K11<>\"\",IF($C$6<=0,0,IF($C$5=0,0,-1*CUMIPMT($C$6/$C$8,$C$7*$C$8,$C$5,M11,N11,Pilotage!$D$25))),\"\")","v":""}]
[null,"Montant échéances",{"$f":"PMT($C$6/$C$8,$C$7*$C$8,$C$5,0,Pilotage!D25)*-1","v":0},null,7,"2015-04-01",{"$f":"IF(E12<>\"\",IF($C$5=0,0,IF($C$6<=0,0,CUMIPMT($C$6/$C$8,$C$7*$C$8,$C$5,1,E12,Pilotage!$D$25))),\"\")","v":0},{"$f":"IF(E12<>\"\",IF($C$6<=0,0,IF($C$5=0,0,CUMIPMT($C$6/$C$8,$C$7*$C$8,$C$5,E12,E12,Pilotage!$D$25))),\"\")","v":0},{"$f":"IF(E12<>\"\",IF($C$5=0,0,IF($C$6<=0,C$13-E12*C$12,$C$5+CUMPRINC($C$6/$C$8,$C$7*$C$8,$C$5,1,E12,Pilotage!$D$25))),\"\")","v":0},null,"","","","",{"$f":"IF(K12<>\"\",IF($C$6<=0,0,IF($C$5=0,0,-1*CUMIPMT($C$6/$C$8,$C$7*$C$8,$C$5,M12,N12,Pilotage!$D$25))),\"\")","v":""}]
[null,"Cout total du crédit",{"$f":"C12*C7*C8","v":0},null,8,"2015-05-01",{"$f":"IF(E13<>\"\",IF($C$5=0,0,IF($C$6<=0,0,CUMIPMT($C$6/$C$8,$C$7*$C$8,$C$5,1,E13,Pilotage!$D$25))),\"\")","v":0},{"$f":"IF(E13<>\"\",IF($C$6<=0,0,IF($C$5=0,0,CUMIPMT($C$6/$C$8,$C$7*$C$8,$C$5,E13,E13,Pilotage!$D$25))),\"\")","v":0},{"$f":"IF(E13<>\"\",IF($C$5=0,0,IF($C$6<=0,C$13-E13*C$12,$C$5+CUMPRINC($C$6/$C$8,$C$7*$C$8,$C$5,1,E13,Pilotage!$D$25))),\"\")","v":0},null,"","","","",{"$f":"IF(K13<>\"\",IF($C$6<=0,0,IF($C$5=0,0,-1*CUMIPMT($C$6/$C$8,$C$7*$C$8,$C$5,M13,N13,Pilotage!$D$25))),\"\")","v":""}]
[null,"Montant des intérêts",{"$f":"C13-C5","v":0},null,9,"2015-06-01",{"$f":"IF(E14<>\"\",IF($C$5=0,0,IF($C$6<=0,0,CUMIPMT($C$6/$C$8,$C$7*$C$8,$C$5,1,E14,Pilotage!$D$25))),\"\")","v":0},{"$f":"IF(E14<>\"\",IF($C$6<=0,0,IF($C$5=0,0,CUMIPMT($C$6/$C$8,$C$7*$C$8,$C$5,E14,E14,Pilotage!$D$25))),\"\")","v":0},{"$f":"IF(E14<>\"\",IF($C$5=0,0,IF($C$6<=0,C$13-E14*C$12,$C$5+CUMPRINC($C$6/$C$8,$C$7*$C$8,$C$5,1,E14,Pilotage!$D$25))),\"\")","v":0},null,"","","","",{"$f":"IF(K14<>\"\",IF($C$6<=0,0,IF($C$5=0,0,-1*CUMIPMT($C$6/$C$8,$C$7*$C$8,$C$5,M14,N14,Pilotage!$D$25))),\"\")","v":""}]
[null,null,null,null,10,"2015-07-01",{"$f":"IF(E15<>\"\",IF($C$5=0,0,IF($C$6<=0,0,CUMIPMT($C$6/$C$8,$C$7*$C$8,$C$5,1,E15,Pilotage!$D$25))),\"\")","v":0},{"$f":"IF(E15<>\"\",IF($C$6<=0,0,IF($C$5=0,0,CUMIPMT($C$6/$C$8,$C$7*$C$8,$C$5,E15,E15,Pilotage!$D$25))),\"\")","v":0},{"$f":"IF(E15<>\"\",IF($C$5=0,0,IF($C$6<=0,C$13-E15*C$12,$C$5+CUMPRINC($C$6/$C$8,$C$7*$C$8,$C$5,1,E15,Pilotage!$D$25))),\"\")","v":0},null,"","","","",{"$f":"IF(K15<>\"\",IF($C$6<=0,0,IF($C$5=0,0,-1*CUMIPMT($C$6/$C$8,$C$7*$C$8,$C$5,M15,N15,Pilotage!$D$25))),\"\")","v":""}]
[null,null,null,null,11,"2015-08-01",{"$f":"IF(E16<>\"\",IF($C$5=0,0,IF($C$6<=0,0,CUMIPMT($C$6/$C$8,$C$7*$C$8,$C$5,1,E16,Pilotage!$D$25))),\"\")","v":0},{"$f":"IF(E16<>\"\",IF($C$6<=0,0,IF($C$5=0,0,CUMIPMT($C$6/$C$8,$C$7*$C$8,$C$5,E16,E16,Pilotage!$D$25))),\"\")","v":0},{"$f":"IF(E16<>\"\",IF($C$5=0,0,IF($C$6<=0,C$13-E16*C$12,$C$5+CUMPRINC($C$6/$C$8,$C$7*$C$8,$C$5,1,E16,Pilotage!$D$25))),\"\")","v":0},null,{"$f":"IF(E15<$C$7,E15+1,\"\")","v":""},{"$f":"IF(K16<>\"\",EDATE(L15,12),\"\")","v":""},{"$f":"IF(K16<>\"\",K16*$C$8-$C$8+1,\"\")","v":""},"",{"$f":"IF(K16<>\"\",IF($C$6<=0,0,IF($C$5=0,0,-1*CUMIPMT($C$6/$C$8,$C$7*$C$8,$C$5,M16,N16,Pilotage!$D$25))),\"\")","v":""}]
[null,null,null,null,12,"2015-09-01",{"$f":"IF(E17<>\"\",IF($C$5=0,0,IF($C$6<=0,0,CUMIPMT($C$6/$C$8,$C$7*$C$8,$C$5,1,E17,Pilotage!$D$25))),\"\")","v":0},{"$f":"IF(E17<>\"\",IF($C$6<=0,0,IF($C$5=0,0,CUMIPMT($C$6/$C$8,$C$7*$C$8,$C$5,E17,E17,Pilotage!$D$25))),\"\")","v":0},{"$f":"IF(E17<>\"\",IF($C$5=0,0,IF($C$6<=0,C$13-E17*C$12,$C$5+CUMPRINC($C$6/$C$8,$C$7*$C$8,$C$5,1,E17,Pilotage!$D$25))),\"\")","v":0},null,{"$f":"IF(E16<$C$7,E16+1,\"\")","v":""},{"$f":"IF(K17<>\"\",EDATE(L16,12),\"\")","v":""},{"$f":"IF(K17<>\"\",K17*$C$8-$C$8+1,\"\")","v":""},"",{"$f":"IF(K17<>\"\",IF($C$6<=0,0,IF($C$5=0,0,-1*CUMIPMT($C$6/$C$8,$C$7*$C$8,$C$5,M17,N17,Pilotage!$D$25))),\"\")","v":""}]
[null,null,null,null,13,"2015-10-01",{"$f":"IF(E18<>\"\",IF($C$5=0,0,IF($C$6<=0,0,CUMIPMT($C$6/$C$8,$C$7*$C$8,$C$5,1,E18,Pilotage!$D$25))),\"\")","v":0},{"$f":"IF(E18<>\"\",IF($C$6<=0,0,IF($C$5=0,0,CUMIPMT($C$6/$C$8,$C$7*$C$8,$C$5,E18,E18,Pilotage!$D$25))),\"\")","v":0},{"$f":"IF(E18<>\"\",IF($C$5=0,0,IF($C$6<=0,C$13-E18*C$12,$C$5+CUMPRINC($C$6/$C$8,$C$7*$C$8,$C$5,1,E18,Pilotage!$D$25))),\"\")","v":0},null,{"$f":"IF(E17<$C$7,E17+1,\"\")","v":""},{"$f":"IF(K18<>\"\",EDATE(L17,12),\"\")","v":""},{"$f":"IF(K18<>\"\",K18*$C$8-$C$8+1,\"\")","v":""},"",{"$f":"IF(K18<>\"\",IF($C$6<=0,0,IF($C$5=0,0,-1*CUMIPMT($C$6/$C$8,$C$7*$C$8,$C$5,M18,N18,Pilotage!$D$25))),\"\")","v":""}]
[null,null,null,null,14,"2015-11-01",{"$f":"IF(E19<>\"\",IF($C$5=0,0,IF($C$6<=0,0,CUMIPMT($C$6/$C$8,$C$7*$C$8,$C$5,1,E19,Pilotage!$D$25))),\"\")","v":0},{"$f":"IF(E19<>\"\",IF($C$6<=0,0,IF($C$5=0,0,CUMIPMT($C$6/$C$8,$C$7*$C$8,$C$5,E19,E19,Pilotage!$D$25))),\"\")","v":0},{"$f":"IF(E19<>\"\",IF($C$5=0,0,IF($C$6<=0,C$13-E19*C$12,$C$5+CUMPRINC($C$6/$C$8,$C$7*$C$8,$C$5,1,E19,Pilotage!$D$25))),\"\")","v":0},null,{"$f":"IF(E18<$C$7,E18+1,\"\")","v":""},{"$f":"IF(K19<>\"\",EDATE(L18,12),\"\")","v":""},{"$f":"IF(K19<>\"\",K19*$C$8-$C$8+1,\"\")","v":""},"",{"$f":"IF(K19<>\"\",IF($C$6<=0,0,IF($C$5=0,0,-1*CUMIPMT($C$6/$C$8,$C$7*$C$8,$C$5,M19,N19,Pilotage!$D$25))),\"\")","v":""}]
[null,null,null,null,15,"2015-12-01",{"$f":"IF(E20<>\"\",IF($C$5=0,0,IF($C$6<=0,0,CUMIPMT($C$6/$C$8,$C$7*$C$8,$C$5,1,E20,Pilotage!$D$25))),\"\")","v":0},{"$f":"IF(E20<>\"\",IF($C$6<=0,0,IF($C$5=0,0,CUMIPMT($C$6/$C$8,$C$7*$C$8,$C$5,E20,E20,Pilotage!$D$25))),\"\")","v":0},{"$f":"IF(E20<>\"\",IF($C$5=0,0,IF($C$6<=0,C$13-E20*C$12,$C$5+CUMPRINC($C$6/$C$8,$C$7*$C$8,$C$5,1,E20,Pilotage!$D$25))),\"\")","v":0},null,{"$f":"IF(E19<$C$7,E19+1,\"\")","v":""},{"$f":"IF(K20<>\"\",EDATE(L19,12),\"\")","v":""},{"$f":"IF(K20<>\"\",K20*$C$8-$C$8+1,\"\")","v":""},"",{"$f":"IF(K20<>\"\",IF($C$6<=0,0,IF($C$5=0,0,-1*CUMIPMT($C$6/$C$8,$C$7*$C$8,$C$5,M20,N20,Pilotage!$D$25))),\"\")","v":""}]
[null,null,null,null,16,"2016-01-01",{"$f":"IF(E21<>\"\",IF($C$5=0,0,IF($C$6<=0,0,CUMIPMT($C$6/$C$8,$C$7*$C$8,$C$5,1,E21,Pilotage!$D$25))),\"\")","v":0},{"$f":"IF(E21<>\"\",IF($C$6<=0,0,IF($C$5=0,0,CUMIPMT($C$6/$C$8,$C$7*$C$8,$C$5,E21,E21,Pilotage!$D$25))),\"\")","v":0},{"$f":"IF(E21<>\"\",IF($C$5=0,0,IF($C$6<=0,C$13-E21*C$12,$C$5+CUMPRINC($C$6/$C$8,$C$7*$C$8,$C$5,1,E21,Pilotage!$D$25))),\"\")","v":0},null,{"$f":"IF(E20<$C$7,E20+1,\"\")","v":""},{"$f":"IF(K21<>\"\",EDATE(L20,12),\"\")","v":""},{"$f":"IF(K21<>\"\",K21*$C$8-$C$8+1,\"\")","v":""},"",{"$f":"IF(K21<>\"\",IF($C$6<=0,0,IF($C$5=0,0,-1*CUMIPMT($C$6/$C$8,$C$7*$C$8,$C$5,M21,N21,Pilotage!$D$25))),\"\")","v":""}]
[null,null,null,null,17,"2016-02-01",{"$f":"IF(E22<>\"\",IF($C$5=0,0,IF($C$6<=0,0,CUMIPMT($C$6/$C$8,$C$7*$C$8,$C$5,1,E22,Pilotage!$D$25))),\"\")","v":0},{"$f":"IF(E22<>\"\",IF($C$6<=0,0,IF($C$5=0,0,CUMIPMT($C$6/$C$8,$C$7*$C$8,$C$5,E22,E22,Pilotage!$D$25))),\"\")","v":0},{"$f":"IF(E22<>\"\",IF($C$5=0,0,IF($C$6<=0,C$13-E22*C$12,$C$5+CUMPRINC($C$6/$C$8,$C$7*$C$8,$C$5,1,E22,Pilotage!$D$25))),\"\")","v":0},null,"","","","",{"$f":"IF(K22<>\"\",IF($C$6<=0,0,IF($C$5=0,0,-1*CUMIPMT($C$6/$C$8,$C$7*$C$8,$C$5,M22,N22,Pilotage!$D$25))),\"\")","v":""}]
[null,null,null,null,18,"2016-03-01",{"$f":"IF(E23<>\"\",IF($C$5=0,0,IF($C$6<=0,0,CUMIPMT($C$6/$C$8,$C$7*$C$8,$C$5,1,E23,Pilotage!$D$25))),\"\")","v":0},{"$f":"IF(E23<>\"\",IF($C$6<=0,0,IF($C$5=0,0,CUMIPMT($C$6/$C$8,$C$7*$C$8,$C$5,E23,E23,Pilotage!$D$25))),\"\")","v":0},{"$f":"IF(E23<>\"\",IF($C$5=0,0,IF($C$6<=0,C$13-E23*C$12,$C$5+CUMPRINC($C$6/$C$8,$C$7*$C$8,$C$5,1,E23,Pilotage!$D$25))),\"\")","v":0},null,"","","","",{"$f":"IF(K23<>\"\",IF($C$6<=0,0,IF($C$5=0,0,-1*CUMIPMT($C$6/$C$8,$C$7*$C$8,$C$5,M23,N23,Pilotage!$D$25))),\"\")","v":""}]
[null,null,null,null,19,"2016-04-01",{"$f":"IF(E24<>\"\",IF($C$5=0,0,IF($C$6<=0,0,CUMIPMT($C$6/$C$8,$C$7*$C$8,$C$5,1,E24,Pilotage!$D$25))),\"\")","v":0},{"$f":"IF(E24<>\"\",IF($C$6<=0,0,IF($C$5=0,0,CUMIPMT($C$6/$C$8,$C$7*$C$8,$C$5,E24,E24,Pilotage!$D$25))),\"\")","v":0},{"$f":"IF(E24<>\"\",IF($C$5=0,0,IF($C$6<=0,C$13-E24*C$12,$C$5+CUMPRINC($C$6/$C$8,$C$7*$C$8,$C$5,1,E24,Pilotage!$D$25))),\"\")","v":0},null,"","","","",{"$f":"IF(K24<>\"\",IF($C$6<=0,0,IF($C$5=0,0,-1*CUMIPMT($C$6/$C$8,$C$7*$C$8,$C$5,M24,N24,Pilotage!$D$25))),\"\")","v":""}]
[null,null,null,null,20,"2016-05-01",{"$f":"IF(E25<>\"\",IF($C$5=0,0,IF($C$6<=0,0,CUMIPMT($C$6/$C$8,$C$7*$C$8,$C$5,1,E25,Pilotage!$D$25))),\"\")","v":0},{"$f":"IF(E25<>\"\",IF($C$6<=0,0,IF($C$5=0,0,CUMIPMT($C$6/$C$8,$C$7*$C$8,$C$5,E25,E25,Pilotage!$D$25))),\"\")","v":0},{"$f":"IF(E25<>\"\",IF($C$5=0,0,IF($C$6<=0,C$13-E25*C$12,$C$5+CUMPRINC($C$6/$C$8,$C$7*$C$8,$C$5,1,E25,Pilotage!$D$25))),\"\")","v":0},null,"","","","",{"$f":"IF(K25<>\"\",IF($C$6<=0,0,IF($C$5=0,0,-1*CUMIPMT($C$6/$C$8,$C$7*$C$8,$C$5,M25,N25,Pilotage!$D$25))),\"\")","v":""}]
[null,null,null,null,21,"2016-06-01",{"$f":"IF(E26<>\"\",IF($C$5=0,0,IF($C$6<=0,0,CUMIPMT($C$6/$C$8,$C$7*$C$8,$C$5,1,E26,Pilotage!$D$25))),\"\")","v":0},{"$f":"IF(E26<>\"\",IF($C$6<=0,0,IF($C$5=0,0,CUMIPMT($C$6/$C$8,$C$7*$C$8,$C$5,E26,E26,Pilotage!$D$25))),\"\")","v":0},{"$f":"IF(E26<>\"\",IF($C$5=0,0,IF($C$6<=0,C$13-E26*C$12,$C$5+CUMPRINC($C$6/$C$8,$C$7*$C$8,$C$5,1,E26,Pilotage!$D$25))),\"\")","v":0},null,"","","","",{"$f":"IF(K26<>\"\",IF($C$6<=0,0,IF($C$5=0,0,-1*CUMIPMT($C$6/$C$8,$C$7*$C$8,$C$5,M26,N26,Pilotage!$D$25))),\"\")","v":""}]
[null,null,null,null,22,"2016-07-01",{"$f":"IF(E27<>\"\",IF($C$5=0,0,IF($C$6<=0,0,CUMIPMT($C$6/$C$8,$C$7*$C$8,$C$5,1,E27,Pilotage!$D$25))),\"\")","v":0},{"$f":"IF(E27<>\"\",IF($C$6<=0,0,IF($C$5=0,0,CUMIPMT($C$6/$C$8,$C$7*$C$8,$C$5,E27,E27,Pilotage!$D$25))),\"\")","v":0},{"$f":"IF(E27<>\"\",IF($C$5=0,0,IF($C$6<=0,C$13-E27*C$12,$C$5+CUMPRINC($C$6/$C$8,$C$7*$C$8,$C$5,1,E27,Pilotage!$D$25))),\"\")","v":0},null,"","","","",{"$f":"IF(K27<>\"\",IF($C$6<=0,0,IF($C$5=0,0,-1*CUMIPMT($C$6/$C$8,$C$7*$C$8,$C$5,M27,N27,Pilotage!$D$25))),\"\")","v":""}]
[null,null,null,null,23,"2016-08-01",{"$f":"IF(E28<>\"\",IF($C$5=0,0,IF($C$6<=0,0,CUMIPMT($C$6/$C$8,$C$7*$C$8,$C$5,1,E28,Pilotage!$D$25))),\"\")","v":0},{"$f":"IF(E28<>\"\",IF($C$6<=0,0,IF($C$5=0,0,CUMIPMT($C$6/$C$8,$C$7*$C$8,$C$5,E28,E28,Pilotage!$D$25))),\"\")","v":0},{"$f":"IF(E28<>\"\",IF($C$5=0,0,IF($C$6<=0,C$13-E28*C$12,$C$5+CUMPRINC($C$6/$C$8,$C$7*$C$8,$C$5,1,E28,Pilotage!$D$25))),\"\")","v":0},null,"","","","",{"$f":"IF(K28<>\"\",IF($C$6<=0,0,IF($C$5=0,0,-1*CUMIPMT($C$6/$C$8,$C$7*$C$8,$C$5,M28,N28,Pilotage!$D$25))),\"\")","v":""}]
[null,null,null,null,24,"2016-09-01",{"$f":"IF(E29<>\"\",IF($C$5=0,0,IF($C$6<=0,0,CUMIPMT($C$6/$C$8,$C$7*$C$8,$C$5,1,E29,Pilotage!$D$25))),\"\")","v":0},{"$f":"IF(E29<>\"\",IF($C$6<=0,0,IF($C$5=0,0,CUMIPMT($C$6/$C$8,$C$7*$C$8,$C$5,E29,E29,Pilotage!$D$25))),\"\")","v":0},{"$f":"IF(E29<>\"\",IF($C$5=0,0,IF($C$6<=0,C$13-E29*C$12,$C$5+CUMPRINC($C$6/$C$8,$C$7*$C$8,$C$5,1,E29,Pilotage!$D$25))),\"\")","v":0},null,"","","","",{"$f":"IF(K29<>\"\",IF($C$6<=0,0,IF($C$5=0,0,-1*CUMIPMT($C$6/$C$8,$C$7*$C$8,$C$5,M29,N29,Pilotage!$D$25))),\"\")","v":""}]
[null,null,null,null,25,"2016-10-01",{"$f":"IF(E30<>\"\",IF($C$5=0,0,IF($C$6<=0,0,CUMIPMT($C$6/$C$8,$C$7*$C$8,$C$5,1,E30,Pilotage!$D$25))),\"\")","v":0},{"$f":"IF(E30<>\"\",IF($C$6<=0,0,IF($C$5=0,0,CUMIPMT($C$6/$C$8,$C$7*$C$8,$C$5,E30,E30,Pilotage!$D$25))),\"\")","v":0},{"$f":"IF(E30<>\"\",IF($C$5=0,0,IF($C$6<=0,C$13-E30*C$12,$C$5+CUMPRINC($C$6/$C$8,$C$7*$C$8,$C$5,1,E30,Pilotage!$D$25))),\"\")","v":0},null,"","","","",{"$f":"IF(K30<>\"\",IF($C$6<=0,0,IF($C$5=0,0,-1*CUMIPMT($C$6/$C$8,$C$7*$C$8,$C$5,M30,N30,Pilotage!$D$25))),\"\")","v":""}]
[null,null,null,null,26,"2016-11-01",{"$f":"IF(E31<>\"\",IF($C$5=0,0,IF($C$6<=0,0,CUMIPMT($C$6/$C$8,$C$7*$C$8,$C$5,1,E31,Pilotage!$D$25))),\"\")","v":0},{"$f":"IF(E31<>\"\",IF($C$6<=0,0,IF($C$5=0,0,CUMIPMT($C$6/$C$8,$C$7*$C$8,$C$5,E31,E31,Pilotage!$D$25))),\"\")","v":0},{"$f":"IF(E31<>\"\",IF($C$5=0,0,IF($C$6<=0,C$13-E31*C$12,$C$5+CUMPRINC($C$6/$C$8,$C$7*$C$8,$C$5,1,E31,Pilotage!$D$25))),\"\")","v":0},null,"","","","",{"$f":"IF(K31<>\"\",IF($C$6<=0,0,IF($C$5=0,0,-1*CUMIPMT($C$6/$C$8,$C$7*$C$8,$C$5,M31,N31,Pilotage!$D$25))),\"\")","v":""}]
[null,null,null,null,27,"2016-12-01",{"$f":"IF(E32<>\"\",IF($C$5=0,0,IF($C$6<=0,0,CUMIPMT($C$6/$C$8,$C$7*$C$8,$C$5,1,E32,Pilotage!$D$25))),\"\")","v":0},{"$f":"IF(E32<>\"\",IF($C$6<=0,0,IF($C$5=0,0,CUMIPMT($C$6/$C$8,$C$7*$C$8,$C$5,E32,E32,Pilotage!$D$25))),\"\")","v":0},{"$f":"IF(E32<>\"\",IF($C$5=0,0,IF($C$6<=0,C$13-E32*C$12,$C$5+CUMPRINC($C$6/$C$8,$C$7*$C$8,$C$5,1,E32,Pilotage!$D$25))),\"\")","v":0},null,"","","","",{"$f":"IF(K32<>\"\",IF($C$6<=0,0,IF($C$5=0,0,-1*CUMIPMT($C$6/$C$8,$C$7*$C$8,$C$5,M32,N32,Pilotage!$D$25))),\"\")","v":""}]
[null,null,null,null,28,"2017-01-01",{"$f":"IF(E33<>\"\",IF($C$5=0,0,IF($C$6<=0,0,CUMIPMT($C$6/$C$8,$C$7*$C$8,$C$5,1,E33,Pilotage!$D$25))),\"\")","v":0},{"$f":"IF(E33<>\"\",IF($C$6<=0,0,IF($C$5=0,0,CUMIPMT($C$6/$C$8,$C$7*$C$8,$C$5,E33,E33,Pilotage!$D$25))),\"\")","v":0},{"$f":"IF(E33<>\"\",IF($C$5=0,0,IF($C$6<=0,C$13-E33*C$12,$C$5+CUMPRINC($C$6/$C$8,$C$7*$C$8,$C$5,1,E33,Pilotage!$D$25))),\"\")","v":0},null,"","","","",{"$f":"IF(K33<>\"\",IF($C$6<=0,0,IF($C$5=0,0,-1*CUMIPMT($C$6/$C$8,$C$7*$C$8,$C$5,M33,N33,Pilotage!$D$25))),\"\")","v":""}]
[null,null,null,null,29,"2017-02-01",{"$f":"IF(E34<>\"\",IF($C$5=0,0,IF($C$6<=0,0,CUMIPMT($C$6/$C$8,$C$7*$C$8,$C$5,1,E34,Pilotage!$D$25))),\"\")","v":0},{"$f":"IF(E34<>\"\",IF($C$6<=0,0,IF($C$5=0,0,CUMIPMT($C$6/$C$8,$C$7*$C$8,$C$5,E34,E34,Pilotage!$D$25))),\"\")","v":0},{"$f":"IF(E34<>\"\",IF($C$5=0,0,IF($C$6<=0,C$13-E34*C$12,$C$5+CUMPRINC($C$6/$C$8,$C$7*$C$8,$C$5,1,E34,Pilotage!$D$25))),\"\")","v":0},null,"","","","",{"$f":"IF(K34<>\"\",IF($C$6<=0,0,IF($C$5=0,0,-1*CUMIPMT($C$6/$C$8,$C$7*$C$8,$C$5,M34,N34,Pilotage!$D$25))),\"\")","v":""}]
[null,null,null,null,30,"2017-03-01",{"$f":"IF(E35<>\"\",IF($C$5=0,0,IF($C$6<=0,0,CUMIPMT($C$6/$C$8,$C$7*$C$8,$C$5,1,E35,Pilotage!$D$25))),\"\")","v":0},{"$f":"IF(E35<>\"\",IF($C$6<=0,0,IF($C$5=0,0,CUMIPMT($C$6/$C$8,$C$7*$C$8,$C$5,E35,E35,Pilotage!$D$25))),\"\")","v":0},{"$f":"IF(E35<>\"\",IF($C$5=0,0,IF($C$6<=0,C$13-E35*C$12,$C$5+CUMPRINC($C$6/$C$8,$C$7*$C$8,$C$5,1,E35,Pilotage!$D$25))),\"\")","v":0},null,"","","","",{"$f":"IF(K35<>\"\",IF($C$6<=0,0,IF($C$5=0,0,-1*CUMIPMT($C$6/$C$8,$C$7*$C$8,$C$5,M35,N35,Pilotage!$D$25))),\"\")","v":""}]
[null,null,null,null,31,"2017-04-01",{"$f":"IF(E36<>\"\",IF($C$5=0,0,IF($C$6<=0,0,CUMIPMT($C$6/$C$8,$C$7*$C$8,$C$5,1,E36,Pilotage!$D$25))),\"\")","v":0},{"$f":"IF(E36<>\"\",IF($C$6<=0,0,IF($C$5=0,0,CUMIPMT($C$6/$C$8,$C$7*$C$8,$C$5,E36,E36,Pilotage!$D$25))),\"\")","v":0},{"$f":"IF(E36<>\"\",IF($C$5=0,0,IF($C$6<=0,C$13-E36*C$12,$C$5+CUMPRINC($C$6/$C$8,$C$7*$C$8,$C$5,1,E36,Pilotage!$D$25))),\"\")","v":0},null,"","","","",{"$f":"IF(K36<>\"\",IF($C$6<=0,0,IF($C$5=0,0,-1*CUMIPMT($C$6/$C$8,$C$7*$C$8,$C$5,M36,N36,Pilotage!$D$25))),\"\")","v":""}]
[null,null,null,null,32,"2017-05-01",{"$f":"IF(E37<>\"\",IF($C$5=0,0,IF($C$6<=0,0,CUMIPMT($C$6/$C$8,$C$7*$C$8,$C$5,1,E37,Pilotage!$D$25))),\"\")","v":0},{"$f":"IF(E37<>\"\",IF($C$6<=0,0,IF($C$5=0,0,CUMIPMT($C$6/$C$8,$C$7*$C$8,$C$5,E37,E37,Pilotage!$D$25))),\"\")","v":0},{"$f":"IF(E37<>\"\",IF($C$5=0,0,IF($C$6<=0,C$13-E37*C$12,$C$5+CUMPRINC($C$6/$C$8,$C$7*$C$8,$C$5,1,E37,Pilotage!$D$25))),\"\")","v":0},null,"","","","",{"$f":"IF(K37<>\"\",IF($C$6<=0,0,IF($C$5=0,0,-1*CUMIPMT($C$6/$C$8,$C$7*$C$8,$C$5,M37,N37,Pilotage!$D$25))),\"\")","v":""}]
[null,null,null,null,33,"2017-06-01",{"$f":"IF(E38<>\"\",IF($C$5=0,0,IF($C$6<=0,0,CUMIPMT($C$6/$C$8,$C$7*$C$8,$C$5,1,E38,Pilotage!$D$25))),\"\")","v":0},{"$f":"IF(E38<>\"\",IF($C$6<=0,0,IF($C$5=0,0,CUMIPMT($C$6/$C$8,$C$7*$C$8,$C$5,E38,E38,Pilotage!$D$25))),\"\")","v":0},{"$f":"IF(E38<>\"\",IF($C$5=0,0,IF($C$6<=0,C$13-E38*C$12,$C$5+CUMPRINC($C$6/$C$8,$C$7*$C$8,$C$5,1,E38,Pilotage!$D$25))),\"\")","v":0},null,"","","","",{"$f":"IF(K38<>\"\",IF($C$6<=0,0,IF($C$5=0,0,-1*CUMIPMT($C$6/$C$8,$C$7*$C$8,$C$5,M38,N38,Pilotage!$D$25))),\"\")","v":""}]
[null,null,null,null,34,"2017-07-01",{"$f":"IF(E39<>\"\",IF($C$5=0,0,IF($C$6<=0,0,CUMIPMT($C$6/$C$8,$C$7*$C$8,$C$5,1,E39,Pilotage!$D$25))),\"\")","v":0},{"$f":"IF(E39<>\"\",IF($C$6<=0,0,IF($C$5=0,0,CUMIPMT($C$6/$C$8,$C$7*$C$8,$C$5,E39,E39,Pilotage!$D$25))),\"\")","v":0},{"$f":"IF(E39<>\"\",IF($C$5=0,0,IF($C$6<=0,C$13-E39*C$12,$C$5+CUMPRINC($C$6/$C$8,$C$7*$C$8,$C$5,1,E39,Pilotage!$D$25))),\"\")","v":0},null,"","","","",{"$f":"IF(K39<>\"\",-1*CUMIPMT($C$6/$C$8,$C$7*$C$8,$C$5,M39,N39,Pilotage!$D$25),\"\")","v":""}]
[null,null,null,null,35,"2017-08-01",{"$f":"IF(E40<>\"\",IF($C$5=0,0,IF($C$6<=0,0,CUMIPMT($C$6/$C$8,$C$7*$C$8,$C$5,1,E40,Pilotage!$D$25))),\"\")","v":0},{"$f":"IF(E40<>\"\",IF($C$6<=0,0,IF($C$5=0,0,CUMIPMT($C$6/$C$8,$C$7*$C$8,$C$5,E40,E40,Pilotage!$D$25))),\"\")","v":0},{"$f":"IF(E40<>\"\",IF($C$5=0,0,IF($C$6<=0,C$13-E40*C$12,$C$5+CUMPRINC($C$6/$C$8,$C$7*$C$8,$C$5,1,E40,Pilotage!$D$25))),\"\")","v":0},null,"","","","",{"$f":"IF(K40<>\"\",-1*CUMIPMT($C$6/$C$8,$C$7*$C$8,$C$5,M40,N40,Pilotage!$D$25),\"\")","v":""}]
[null,null,null,null,36,"2017-09-01",{"$f":"IF(E41<>\"\",IF($C$5=0,0,IF($C$6<=0,0,CUMIPMT($C$6/$C$8,$C$7*$C$8,$C$5,1,E41,Pilotage!$D$25))),\"\")","v":0},{"$f":"IF(E41<>\"\",IF($C$6<=0,0,IF($C$5=0,0,CUMIPMT($C$6/$C$8,$C$7*$C$8,$C$5,E41,E41,Pilotage!$D$25))),\"\")","v":0},{"$f":"IF(E41<>\"\",IF($C$5=0,0,IF($C$6<=0,C$13-E41*C$12,$C$5+CUMPRINC($C$6/$C$8,$C$7*$C$8,$C$5,1,E41,Pilotage!$D$25))),\"\")","v":0},null,"","","","",{"$f":"IF(K41<>\"\",-1*CUMIPMT($C$6/$C$8,$C$7*$C$8,$C$5,M41,N41,Pilotage!$D$25),\"\")","v":""}]
[null,null,null,null,37,"2017-10-01",{"$f":"IF(E42<>\"\",IF($C$5=0,0,IF($C$6<=0,0,CUMIPMT($C$6/$C$8,$C$7*$C$8,$C$5,1,E42,Pilotage!$D$25))),\"\")","v":0},{"$f":"IF(E42<>\"\",IF($C$6<=0,0,IF($C$5=0,0,CUMIPMT($C$6/$C$8,$C$7*$C$8,$C$5,E42,E42,Pilotage!$D$25))),\"\")","v":0},{"$f":"IF(E42<>\"\",IF($C$5=0,0,IF($C$6<=0,C$13-E42*C$12,$C$5+CUMPRINC($C$6/$C$8,$C$7*$C$8,$C$5,1,E42,Pilotage!$D$25))),\"\")","v":0},null,"","","","",{"$f":"IF(K42<>\"\",-1*CUMIPMT($C$6/$C$8,$C$7*$C$8,$C$5,M42,N42,Pilotage!$D$25),\"\")","v":""}]
[null,null,null,null,38,"2017-11-01",{"$f":"IF(E43<>\"\",IF($C$5=0,0,IF($C$6<=0,0,CUMIPMT($C$6/$C$8,$C$7*$C$8,$C$5,1,E43,Pilotage!$D$25))),\"\")","v":0},{"$f":"IF(E43<>\"\",IF($C$6<=0,0,IF($C$5=0,0,CUMIPMT($C$6/$C$8,$C$7*$C$8,$C$5,E43,E43,Pilotage!$D$25))),\"\")","v":0},{"$f":"IF(E43<>\"\",IF($C$5=0,0,IF($C$6<=0,C$13-E43*C$12,$C$5+CUMPRINC($C$6/$C$8,$C$7*$C$8,$C$5,1,E43,Pilotage!$D$25))),\"\")","v":0},null,"","","","",{"$f":"IF(K43<>\"\",-1*CUMIPMT($C$6/$C$8,$C$7*$C$8,$C$5,M43,N43,Pilotage!$D$25),\"\")","v":""}]
[null,null,null,null,39,"2017-12-01",{"$f":"IF(E44<>\"\",IF($C$5=0,0,IF($C$6<=0,0,CUMIPMT($C$6/$C$8,$C$7*$C$8,$C$5,1,E44,Pilotage!$D$25))),\"\")","v":0},{"$f":"IF(E44<>\"\",IF($C$6<=0,0,IF($C$5=0,0,CUMIPMT($C$6/$C$8,$C$7*$C$8,$C$5,E44,E44,Pilotage!$D$25))),\"\")","v":0},{"$f":"IF(E44<>\"\",IF($C$5=0,0,IF($C$6<=0,C$13-E44*C$12,$C$5+CUMPRINC($C$6/$C$8,$C$7*$C$8,$C$5,1,E44,Pilotage!$D$25))),\"\")","v":0},null,"","","","",{"$f":"IF(K44<>\"\",-1*CUMIPMT($C$6/$C$8,$C$7*$C$8,$C$5,M44,N44,Pilotage!$D$25),\"\")","v":""}]
[null,null,null,null,40,"2018-01-01",{"$f":"IF(E45<>\"\",IF($C$5=0,0,IF($C$6<=0,0,CUMIPMT($C$6/$C$8,$C$7*$C$8,$C$5,1,E45,Pilotage!$D$25))),\"\")","v":0},{"$f":"IF(E45<>\"\",IF($C$6<=0,0,IF($C$5=0,0,CUMIPMT($C$6/$C$8,$C$7*$C$8,$C$5,E45,E45,Pilotage!$D$25))),\"\")","v":0},{"$f":"IF(E45<>\"\",IF($C$5=0,0,IF($C$6<=0,C$13-E45*C$12,$C$5+CUMPRINC($C$6/$C$8,$C$7*$C$8,$C$5,1,E45,Pilotage!$D$25))),\"\")","v":0},null,"","","","",{"$f":"IF(K45<>\"\",-1*CUMIPMT($C$6/$C$8,$C$7*$C$8,$C$5,M45,N45,Pilotage!$D$25),\"\")","v":""}]
[null,null,null,null,41,"2018-02-01",{"$f":"IF(E46<>\"\",IF($C$5=0,0,IF($C$6<=0,0,CUMIPMT($C$6/$C$8,$C$7*$C$8,$C$5,1,E46,Pilotage!$D$25))),\"\")","v":0},{"$f":"IF(E46<>\"\",IF($C$6<=0,0,IF($C$5=0,0,CUMIPMT($C$6/$C$8,$C$7*$C$8,$C$5,E46,E46,Pilotage!$D$25))),\"\")","v":0},{"$f":"IF(E46<>\"\",IF($C$5=0,0,IF($C$6<=0,C$13-E46*C$12,$C$5+CUMPRINC($C$6/$C$8,$C$7*$C$8,$C$5,1,E46,Pilotage!$D$25))),\"\")","v":0},null,"","","","",{"$f":"IF(K46<>\"\",-1*CUMIPMT($C$6/$C$8,$C$7*$C$8,$C$5,M46,N46,Pilotage!$D$25),\"\")","v":""}]
[null,null,null,null,42,"2018-03-01",{"$f":"IF(E47<>\"\",IF($C$5=0,0,IF($C$6<=0,0,CUMIPMT($C$6/$C$8,$C$7*$C$8,$C$5,1,E47,Pilotage!$D$25))),\"\")","v":0},{"$f":"IF(E47<>\"\",IF($C$6<=0,0,IF($C$5=0,0,CUMIPMT($C$6/$C$8,$C$7*$C$8,$C$5,E47,E47,Pilotage!$D$25))),\"\")","v":0},{"$f":"IF(E47<>\"\",IF($C$5=0,0,IF($C$6<=0,C$13-E47*C$12,$C$5+CUMPRINC($C$6/$C$8,$C$7*$C$8,$C$5,1,E47,Pilotage!$D$25))),\"\")","v":0},null,"","","","",{"$f":"IF(K47<>\"\",-1*CUMIPMT($C$6/$C$8,$C$7*$C$8,$C$5,M47,N47,Pilotage!$D$25),\"\")","v":""}]
[null,null,null,null,43,"2018-04-01",{"$f":"IF(E48<>\"\",IF($C$5=0,0,IF($C$6<=0,0,CUMIPMT($C$6/$C$8,$C$7*$C$8,$C$5,1,E48,Pilotage!$D$25))),\"\")","v":0},{"$f":"IF(E48<>\"\",IF($C$6<=0,0,IF($C$5=0,0,CUMIPMT($C$6/$C$8,$C$7*$C$8,$C$5,E48,E48,Pilotage!$D$25))),\"\")","v":0},{"$f":"IF(E48<>\"\",IF($C$5=0,0,IF($C$6<=0,C$13-E48*C$12,$C$5+CUMPRINC($C$6/$C$8,$C$7*$C$8,$C$5,1,E48,Pilotage!$D$25))),\"\")","v":0},null,"","","","",{"$f":"IF(K48<>\"\",-1*CUMIPMT($C$6/$C$8,$C$7*$C$8,$C$5,M48,N48,Pilotage!$D$25),\"\")","v":""}]
[null,null,null,null,44,"2018-05-01",{"$f":"IF(E49<>\"\",IF($C$5=0,0,IF($C$6<=0,0,CUMIPMT($C$6/$C$8,$C$7*$C$8,$C$5,1,E49,Pilotage!$D$25))),\"\")","v":0},{"$f":"IF(E49<>\"\",IF($C$6<=0,0,IF($C$5=0,0,CUMIPMT($C$6/$C$8,$C$7*$C$8,$C$5,E49,E49,Pilotage!$D$25))),\"\")","v":0},{"$f":"IF(E49<>\"\",IF($C$5=0,0,IF($C$6<=0,C$13-E49*C$12,$C$5+CUMPRINC($C$6/$C$8,$C$7*$C$8,$C$5,1,E49,Pilotage!$D$25))),\"\")","v":0},null,"","","","",{"$f":"IF(K49<>\"\",-1*CUMIPMT($C$6/$C$8,$C$7*$C$8,$C$5,M49,N49,Pilotage!$D$25),\"\")","v":""}]
[null,null,null,null,45,"2018-06-01",{"$f":"IF(E50<>\"\",IF($C$5=0,0,IF($C$6<=0,0,CUMIPMT($C$6/$C$8,$C$7*$C$8,$C$5,1,E50,Pilotage!$D$25))),\"\")","v":0},{"$f":"IF(E50<>\"\",IF($C$6<=0,0,IF($C$5=0,0,CUMIPMT($C$6/$C$8,$C$7*$C$8,$C$5,E50,E50,Pilotage!$D$25))),\"\")","v":0},{"$f":"IF(E50<>\"\",IF($C$5=0,0,IF($C$6<=0,C$13-E50*C$12,$C$5+CUMPRINC($C$6/$C$8,$C$7*$C$8,$C$5,1,E50,Pilotage!$D$25))),\"\")","v":0},null,"","","","",{"$f":"IF(K50<>\"\",-1*CUMIPMT($C$6/$C$8,$C$7*$C$8,$C$5,M50,N50,Pilotage!$D$25),\"\")","v":""}]
[null,null,null,null,46,"2018-07-01",{"$f":"IF(E51<>\"\",IF($C$5=0,0,IF($C$6<=0,0,CUMIPMT($C$6/$C$8,$C$7*$C$8,$C$5,1,E51,Pilotage!$D$25))),\"\")","v":0},{"$f":"IF(E51<>\"\",IF($C$6<=0,0,IF($C$5=0,0,CUMIPMT($C$6/$C$8,$C$7*$C$8,$C$5,E51,E51,Pilotage!$D$25))),\"\")","v":0},{"$f":"IF(E51<>\"\",IF($C$5=0,0,IF($C$6<=0,C$13-E51*C$12,$C$5+CUMPRINC($C$6/$C$8,$C$7*$C$8,$C$5,1,E51,Pilotage!$D$25))),\"\")","v":0},null,"","","","",{"$f":"IF(K51<>\"\",-1*CUMIPMT($C$6/$C$8,$C$7*$C$8,$C$5,M51,N51,Pilotage!$D$25),\"\")","v":""}]
[null,null,null,null,47,"2018-08-01",{"$f":"IF(E52<>\"\",IF($C$5=0,0,IF($C$6<=0,0,CUMIPMT($C$6/$C$8,$C$7*$C$8,$C$5,1,E52,Pilotage!$D$25))),\"\")","v":0},{"$f":"IF(E52<>\"\",IF($C$6<=0,0,IF($C$5=0,0,CUMIPMT($C$6/$C$8,$C$7*$C$8,$C$5,E52,E52,Pilotage!$D$25))),\"\")","v":0},{"$f":"IF(E52<>\"\",IF($C$5=0,0,IF($C$6<=0,C$13-E52*C$12,$C$5+CUMPRINC($C$6/$C$8,$C$7*$C$8,$C$5,1,E52,Pilotage!$D$25))),\"\")","v":0},null,"","","","",{"$f":"IF(K52<>\"\",-1*CUMIPMT($C$6/$C$8,$C$7*$C$8,$C$5,M52,N52,Pilotage!$D$25),\"\")","v":""}]
[null,null,null,null,48,"2018-09-01",{"$f":"IF(E53<>\"\",IF($C$5=0,0,IF($C$6<=0,0,CUMIPMT($C$6/$C$8,$C$7*$C$8,$C$5,1,E53,Pilotage!$D$25))),\"\")","v":0},{"$f":"IF(E53<>\"\",IF($C$6<=0,0,IF($C$5=0,0,CUMIPMT($C$6/$C$8,$C$7*$C$8,$C$5,E53,E53,Pilotage!$D$25))),\"\")","v":0},{"$f":"IF(E53<>\"\",IF($C$5=0,0,IF($C$6<=0,C$13-E53*C$12,$C$5+CUMPRINC($C$6/$C$8,$C$7*$C$8,$C$5,1,E53,Pilotage!$D$25))),\"\")","v":0},null,"","","","",{"$f":"IF(K53<>\"\",-1*CUMIPMT($C$6/$C$8,$C$7*$C$8,$C$5,M53,N53,Pilotage!$D$25),\"\")","v":""}]
[null,null,null,null,49,"2018-10-01",{"$f":"IF(E54<>\"\",IF($C$5=0,0,IF($C$6<=0,0,CUMIPMT($C$6/$C$8,$C$7*$C$8,$C$5,1,E54,Pilotage!$D$25))),\"\")","v":0},{"$f":"IF(E54<>\"\",IF($C$6<=0,0,IF($C$5=0,0,CUMIPMT($C$6/$C$8,$C$7*$C$8,$C$5,E54,E54,Pilotage!$D$25))),\"\")","v":0},{"$f":"IF(E54<>\"\",IF($C$5=0,0,IF($C$6<=0,C$13-E54*C$12,$C$5+CUMPRINC($C$6/$C$8,$C$7*$C$8,$C$5,1,E54,Pilotage!$D$25))),\"\")","v":0},null,"","","","",{"$f":"IF(K54<>\"\",-1*CUMIPMT($C$6/$C$8,$C$7*$C$8,$C$5,M54,N54,Pilotage!$D$25),\"\")","v":""}]
[null,null,null,null,50,"2018-11-01",{"$f":"IF(E55<>\"\",IF($C$5=0,0,IF($C$6<=0,0,CUMIPMT($C$6/$C$8,$C$7*$C$8,$C$5,1,E55,Pilotage!$D$25))),\"\")","v":0},{"$f":"IF(E55<>\"\",IF($C$6<=0,0,IF($C$5=0,0,CUMIPMT($C$6/$C$8,$C$7*$C$8,$C$5,E55,E55,Pilotage!$D$25))),\"\")","v":0},{"$f":"IF(E55<>\"\",IF($C$5=0,0,IF($C$6<=0,C$13-E55*C$12,$C$5+CUMPRINC($C$6/$C$8,$C$7*$C$8,$C$5,1,E55,Pilotage!$D$25))),\"\")","v":0},null,"","","","",{"$f":"IF(K55<>\"\",-1*CUMIPMT($C$6/$C$8,$C$7*$C$8,$C$5,M55,N55,Pilotage!$D$25),\"\")","v":""}]
[null,null,null,null,51,"2018-12-01",{"$f":"IF(E56<>\"\",IF($C$5=0,0,IF($C$6<=0,0,CUMIPMT($C$6/$C$8,$C$7*$C$8,$C$5,1,E56,Pilotage!$D$25))),\"\")","v":0},{"$f":"IF(E56<>\"\",IF($C$6<=0,0,IF($C$5=0,0,CUMIPMT($C$6/$C$8,$C$7*$C$8,$C$5,E56,E56,Pilotage!$D$25))),\"\")","v":0},{"$f":"IF(E56<>\"\",IF($C$5=0,0,IF($C$6<=0,C$13-E56*C$12,$C$5+CUMPRINC($C$6/$C$8,$C$7*$C$8,$C$5,1,E56,Pilotage!$D$25))),\"\")","v":0},null,"","","","",{"$f":"IF(K56<>\"\",-1*CUMIPMT($C$6/$C$8,$C$7*$C$8,$C$5,M56,N56,Pilotage!$D$25),\"\")","v":""}]
[null,null,null,null,52,"2019-01-01",{"$f":"IF(E57<>\"\",IF($C$5=0,0,IF($C$6<=0,0,CUMIPMT($C$6/$C$8,$C$7*$C$8,$C$5,1,E57,Pilotage!$D$25))),\"\")","v":0},{"$f":"IF(E57<>\"\",IF($C$6<=0,0,IF($C$5=0,0,CUMIPMT($C$6/$C$8,$C$7*$C$8,$C$5,E57,E57,Pilotage!$D$25))),\"\")","v":0},{"$f":"IF(E57<>\"\",IF($C$5=0,0,IF($C$6<=0,C$13-E57*C$12,$C$5+CUMPRINC($C$6/$C$8,$C$7*$C$8,$C$5,1,E57,Pilotage!$D$25))),\"\")","v":0},null,"","","","",{"$f":"IF(K57<>\"\",-1*CUMIPMT($C$6/$C$8,$C$7*$C$8,$C$5,M57,N57,Pilotage!$D$25),\"\")","v":""}]
[null,null,null,null,53,"2019-02-01",{"$f":"IF(E58<>\"\",IF($C$5=0,0,IF($C$6<=0,0,CUMIPMT($C$6/$C$8,$C$7*$C$8,$C$5,1,E58,Pilotage!$D$25))),\"\")","v":0},{"$f":"IF(E58<>\"\",IF($C$6<=0,0,IF($C$5=0,0,CUMIPMT($C$6/$C$8,$C$7*$C$8,$C$5,E58,E58,Pilotage!$D$25))),\"\")","v":0},{"$f":"IF(E58<>\"\",IF($C$5=0,0,IF($C$6<=0,C$13-E58*C$12,$C$5+CUMPRINC($C$6/$C$8,$C$7*$C$8,$C$5,1,E58,Pilotage!$D$25))),\"\")","v":0},null,"","","","",{"$f":"IF(K58<>\"\",-1*CUMIPMT($C$6/$C$8,$C$7*$C$8,$C$5,M58,N58,Pilotage!$D$25),\"\")","v":""}]
[null,null,null,null,54,"2019-03-01",{"$f":"IF(E59<>\"\",IF($C$5=0,0,IF($C$6<=0,0,CUMIPMT($C$6/$C$8,$C$7*$C$8,$C$5,1,E59,Pilotage!$D$25))),\"\")","v":0},{"$f":"IF(E59<>\"\",IF($C$6<=0,0,IF($C$5=0,0,CUMIPMT($C$6/$C$8,$C$7*$C$8,$C$5,E59,E59,Pilotage!$D$25))),\"\")","v":0},{"$f":"IF(E59<>\"\",IF($C$5=0,0,IF($C$6<=0,C$13-E59*C$12,$C$5+CUMPRINC($C$6/$C$8,$C$7*$C$8,$C$5,1,E59,Pilotage!$D$25))),\"\")","v":0},null,"","","","",{"$f":"IF(K59<>\"\",-1*CUMIPMT($C$6/$C$8,$C$7*$C$8,$C$5,M59,N59,Pilotage!$D$25),\"\")","v":""}]
[null,null,null,null,55,"2019-04-01",{"$f":"IF(E60<>\"\",IF($C$5=0,0,IF($C$6<=0,0,CUMIPMT($C$6/$C$8,$C$7*$C$8,$C$5,1,E60,Pilotage!$D$25))),\"\")","v":0},{"$f":"IF(E60<>\"\",IF($C$6<=0,0,IF($C$5=0,0,CUMIPMT($C$6/$C$8,$C$7*$C$8,$C$5,E60,E60,Pilotage!$D$25))),\"\")","v":0},{"$f":"IF(E60<>\"\",IF($C$5=0,0,IF($C$6<=0,C$13-E60*C$12,$C$5+CUMPRINC($C$6/$C$8,$C$7*$C$8,$C$5,1,E60,Pilotage!$D$25))),\"\")","v":0},null,null,null,null,{"$f":"IF(K60<>\"\",K60*$C$8,\"\")","v":""},{"$f":"IF(K60<>\"\",-1*CUMIPMT($C$6/$C$8,$C$7*$C$8,$C$5,M60,N60,Pilotage!$D$25),\"\")","v":""}]
[null,null,null,null,56,"2019-05-01",{"$f":"IF(E61<>\"\",IF($C$5=0,0,IF($C$6<=0,0,CUMIPMT($C$6/$C$8,$C$7*$C$8,$C$5,1,E61,Pilotage!$D$25))),\"\")","v":0},{"$f":"IF(E61<>\"\",IF($C$6<=0,0,IF($C$5=0,0,CUMIPMT($C$6/$C$8,$C$7*$C$8,$C$5,E61,E61,Pilotage!$D$25))),\"\")","v":0},{"$f":"IF(E61<>\"\",IF($C$5=0,0,IF($C$6<=0,C$13-E61*C$12,$C$5+CUMPRINC($C$6/$C$8,$C$7*$C$8,$C$5,1,E61,Pilotage!$D$25))),\"\")","v":0},null,null,null,null,{"$f":"IF(K61<>\"\",K61*$C$8,\"\")","v":""},{"$f":"IF(K61<>\"\",-1*CUMIPMT($C$6/$C$8,$C$7*$C$8,$C$5,M61,N61,Pilotage!$D$25),\"\")","v":""}]
[null,null,null,null,57,"2019-06-01",{"$f":"IF(E62<>\"\",IF($C$5=0,0,IF($C$6<=0,0,CUMIPMT($C$6/$C$8,$C$7*$C$8,$C$5,1,E62,Pilotage!$D$25))),\"\")","v":0},{"$f":"IF(E62<>\"\",IF($C$6<=0,0,IF($C$5=0,0,CUMIPMT($C$6/$C$8,$C$7*$C$8,$C$5,E62,E62,Pilotage!$D$25))),\"\")","v":0},{"$f":"IF(E62<>\"\",IF($C$5=0,0,IF($C$6<=0,C$13-E62*C$12,$C$5+CUMPRINC($C$6/$C$8,$C$7*$C$8,$C$5,1,E62,Pilotage!$D$25))),\"\")","v":0},null,null,null,null,{"$f":"IF(K62<>\"\",K62*$C$8,\"\")","v":""},{"$f":"IF(K62<>\"\",-1*CUMIPMT($C$6/$C$8,$C$7*$C$8,$C$5,M62,N62,Pilotage!$D$25),\"\")","v":""}]
[null,null,null,null,58,"2019-07-01",{"$f":"IF(E63<>\"\",IF($C$5=0,0,IF($C$6<=0,0,CUMIPMT($C$6/$C$8,$C$7*$C$8,$C$5,1,E63,Pilotage!$D$25))),\"\")","v":0},{"$f":"IF(E63<>\"\",IF($C$6<=0,0,IF($C$5=0,0,CUMIPMT($C$6/$C$8,$C$7*$C$8,$C$5,E63,E63,Pilotage!$D$25))),\"\")","v":0},{"$f":"IF(E63<>\"\",IF($C$5=0,0,IF($C$6<=0,C$13-E63*C$12,$C$5+CUMPRINC($C$6/$C$8,$C$7*$C$8,$C$5,1,E63,Pilotage!$D$25))),\"\")","v":0},null,null,null,null,null,{"$f":"IF(K63<>\"\",-1*CUMIPMT($C$6/$C$8,$C$7*$C$8,$C$5,M63,N63,Pilotage!$D$25),\"\")","v":""}]
[null,null,null,null,59,"2019-08-01",{"$f":"IF(E64<>\"\",IF($C$5=0,0,IF($C$6<=0,0,CUMIPMT($C$6/$C$8,$C$7*$C$8,$C$5,1,E64,Pilotage!$D$25))),\"\")","v":0},{"$f":"IF(E64<>\"\",IF($C$6<=0,0,IF($C$5=0,0,CUMIPMT($C$6/$C$8,$C$7*$C$8,$C$5,E64,E64,Pilotage!$D$25))),\"\")","v":0},{"$f":"IF(E64<>\"\",IF($C$5=0,0,IF($C$6<=0,C$13-E64*C$12,$C$5+CUMPRINC($C$6/$C$8,$C$7*$C$8,$C$5,1,E64,Pilotage!$D$25))),\"\")","v":0},null,null,null,null,null,{"$f":"IF(K64<>\"\",-1*CUMIPMT($C$6/$C$8,$C$7*$C$8,$C$5,M64,N64,Pilotage!$D$25),\"\")","v":""}]
[null,null,null,null,60,"2019-09-01",{"$f":"IF(E65<>\"\",IF($C$5=0,0,IF($C$6<=0,0,CUMIPMT($C$6/$C$8,$C$7*$C$8,$C$5,1,E65,Pilotage!$D$25))),\"\")","v":0},{"$f":"IF(E65<>\"\",IF($C$6<=0,0,IF($C$5=0,0,CUMIPMT($C$6/$C$8,$C$7*$C$8,$C$5,E65,E65,Pilotage!$D$25))),\"\")","v":0},{"$f":"IF(E65<>\"\",IF($C$5=0,0,IF($C$6<=0,C$13-E65*C$12,$C$5+CUMPRINC($C$6/$C$8,$C$7*$C$8,$C$5,1,E65,Pilotage!$D$25))),\"\")","v":0},null,null,null,null,null,{"$f":"IF(K65<>\"\",-1*CUMIPMT($C$6/$C$8,$C$7*$C$8,$C$5,M65,N65,Pilotage!$D$25),\"\")","v":""}]
[null,null,null,null,"","",{"$f":"IF(E66<>\"\",IF($C$5=0,0,IF($C$6<=0,0,CUMIPMT($C$6/$C$8,$C$7*$C$8,$C$5,1,E66,Pilotage!$D$25))),\"\")","v":""},{"$f":"IF(E66<>\"\",IF($C$6<=0,0,IF($C$5=0,0,CUMIPMT($C$6/$C$8,$C$7*$C$8,$C$5,E66,E66,Pilotage!$D$25))),\"\")","v":""},{"$f":"IF(E66<>\"\",IF($C$5=0,0,IF($C$6<=0,C$13-E66*C$12,$C$5+CUMPRINC($C$6/$C$8,$C$7*$C$8,$C$5,1,E66,Pilotage!$D$25))),\"\")","v":""},null,null,null,null,null,{"$f":"IF(K66<>\"\",-1*CUMIPMT($C$6/$C$8,$C$7*$C$8,$C$5,M66,N66,Pilotage!$D$25),\"\")","v":""}]
[null,null,null,null,"","",{"$f":"IF(E67<>\"\",IF($C$5=0,0,IF($C$6<=0,0,CUMIPMT($C$6/$C$8,$C$7*$C$8,$C$5,1,E67,Pilotage!$D$25))),\"\")","v":""},{"$f":"IF(E67<>\"\",IF($C$6<=0,0,IF($C$5=0,0,CUMIPMT($C$6/$C$8,$C$7*$C$8,$C$5,E67,E67,Pilotage!$D$25))),\"\")","v":""},{"$f":"IF(E67<>\"\",IF($C$5=0,0,IF($C$6<=0,C$13-E67*C$12,$C$5+CUMPRINC($C$6/$C$8,$C$7*$C$8,$C$5,1,E67,Pilotage!$D$25))),\"\")","v":""},null,null,null,null,null,{"$f":"IF(K67<>\"\",-1*CUMIPMT($C$6/$C$8,$C$7*$C$8,$C$5,M67,N67,Pilotage!$D$25),\"\")","v":""}]
[null,null,null,null,"","",{"$f":"IF(E68<>\"\",IF($C$5=0,0,IF($C$6<=0,0,CUMIPMT($C$6/$C$8,$C$7*$C$8,$C$5,1,E68,Pilotage!$D$25))),\"\")","v":""},{"$f":"IF(E68<>\"\",IF($C$6<=0,0,IF($C$5=0,0,CUMIPMT($C$6/$C$8,$C$7*$C$8,$C$5,E68,E68,Pilotage!$D$25))),\"\")","v":""},{"$f":"IF(E68<>\"\",IF($C$5=0,0,IF($C$6<=0,C$13-E68*C$12,$C$5+CUMPRINC($C$6/$C$8,$C$7*$C$8,$C$5,1,E68,Pilotage!$D$25))),\"\")","v":""},null,null,null,null,null,{"$f":"IF(K68<>\"\",-1*CUMIPMT($C$6/$C$8,$C$7*$C$8,$C$5,M68,N68,Pilotage!$D$25),\"\")","v":""}]
[null,null,null,null,"","",{"$f":"IF(E69<>\"\",IF($C$5=0,0,IF($C$6<=0,0,CUMIPMT($C$6/$C$8,$C$7*$C$8,$C$5,1,E69,Pilotage!$D$25))),\"\")","v":""},{"$f":"IF(E69<>\"\",IF($C$6<=0,0,IF($C$5=0,0,CUMIPMT($C$6/$C$8,$C$7*$C$8,$C$5,E69,E69,Pilotage!$D$25))),\"\")","v":""},{"$f":"IF(E69<>\"\",IF($C$5=0,0,IF($C$6<=0,C$13-E69*C$12,$C$5+CUMPRINC($C$6/$C$8,$C$7*$C$8,$C$5,1,E69,Pilotage!$D$25))),\"\")","v":""},null,null,null,null,null,{"$f":"IF(K69<>\"\",-1*CUMIPMT($C$6/$C$8,$C$7*$C$8,$C$5,M69,N69,Pilotage!$D$25),\"\")","v":""}]
[null,null,null,null,"","",{"$f":"IF(E70<>\"\",IF($C$5=0,0,IF($C$6<=0,0,CUMIPMT($C$6/$C$8,$C$7*$C$8,$C$5,1,E70,Pilotage!$D$25))),\"\")","v":""},{"$f":"IF(E70<>\"\",IF($C$6<=0,0,IF($C$5=0,0,CUMIPMT($C$6/$C$8,$C$7*$C$8,$C$5,E70,E70,Pilotage!$D$25))),\"\")","v":""},{"$f":"IF(E70<>\"\",IF($C$5=0,0,IF($C$6<=0,C$13-E70*C$12,$C$5+CUMPRINC($C$6/$C$8,$C$7*$C$8,$C$5,1,E70,Pilotage!$D$25))),\"\")","v":""},null,null,null,null,null,{"$f":"IF(K70<>\"\",-1*CUMIPMT($C$6/$C$8,$C$7*$C$8,$C$5,M70,N70,Pilotage!$D$25),\"\")","v":""}]
[null,null,null,null,"","",{"$f":"IF(E71<>\"\",IF($C$5=0,0,IF($C$6<=0,0,CUMIPMT($C$6/$C$8,$C$7*$C$8,$C$5,1,E71,Pilotage!$D$25))),\"\")","v":""},{"$f":"IF(E71<>\"\",IF($C$6<=0,0,IF($C$5=0,0,CUMIPMT($C$6/$C$8,$C$7*$C$8,$C$5,E71,E71,Pilotage!$D$25))),\"\")","v":""},{"$f":"IF(E71<>\"\",IF($C$5=0,0,IF($C$6<=0,C$13-E71*C$12,$C$5+CUMPRINC($C$6/$C$8,$C$7*$C$8,$C$5,1,E71,Pilotage!$D$25))),\"\")","v":""},null,null,null,null,null,{"$f":"IF(K71<>\"\",-1*CUMIPMT($C$6/$C$8,$C$7*$C$8,$C$5,M71,N71,Pilotage!$D$25),\"\")","v":""}]
[null,null,null,null,{"$f":"IF(E71<$C$10,E71+1,\"\")","v":""},{"$f":"IF(E72<>\"\",EDATE(F71,$C$11),\"\")","v":""},{"$f":"IF(E72<>\"\",IF($C$5=0,0,IF($C$6<=0,0,CUMIPMT($C$6/$C$8,$C$7*$C$8,$C$5,1,E72,Pilotage!$D$25))),\"\")","v":""},{"$f":"IF(E72<>\"\",IF($C$6<=0,0,IF($C$5=0,0,CUMIPMT($C$6/$C$8,$C$7*$C$8,$C$5,E72,E72,Pilotage!$D$25))),\"\")","v":""},{"$f":"IF(E72<>\"\",IF($C$5=0,0,IF($C$6<=0,C$13-E72*C$12,$C$5+CUMPRINC($C$6/$C$8,$C$7*$C$8,$C$5,1,E72,Pilotage!$D$25))),\"\")","v":""},null,null,null,null,null,{"$f":"IF(K72<>\"\",-1*CUMIPMT($C$6/$C$8,$C$7*$C$8,$C$5,M72,N72,Pilotage!$D$25),\"\")","v":""}]
[null,null,null,null,"","",{"$f":"IF(E73<>\"\",IF($C$5=0,0,IF($C$6<=0,0,CUMIPMT($C$6/$C$8,$C$7*$C$8,$C$5,1,E73,Pilotage!$D$25))),\"\")","v":""},{"$f":"IF(E73<>\"\",IF($C$6<=0,0,IF($C$5=0,0,CUMIPMT($C$6/$C$8,$C$7*$C$8,$C$5,E73,E73,Pilotage!$D$25))),\"\")","v":""},{"$f":"IF(E73<>\"\",IF($C$5=0,0,IF($C$6<=0,C$13-E73*C$12,$C$5+CUMPRINC($C$6/$C$8,$C$7*$C$8,$C$5,1,E73,Pilotage!$D$25))),\"\")","v":""},null,null,null,null,null,{"$f":"IF(K73<>\"\",-1*CUMIPMT($C$6/$C$8,$C$7*$C$8,$C$5,M73,N73,Pilotage!$D$25),\"\")","v":""}]
[null,null,null,null,"","",{"$f":"IF(E74<>\"\",IF($C$5=0,0,IF($C$6<=0,0,CUMIPMT($C$6/$C$8,$C$7*$C$8,$C$5,1,E74,Pilotage!$D$25))),\"\")","v":""},{"$f":"IF(E74<>\"\",IF($C$6<=0,0,IF($C$5=0,0,CUMIPMT($C$6/$C$8,$C$7*$C$8,$C$5,E74,E74,Pilotage!$D$25))),\"\")","v":""},{"$f":"IF(E74<>\"\",IF($C$5=0,0,IF($C$6<=0,C$13-E74*C$12,$C$5+CUMPRINC($C$6/$C$8,$C$7*$C$8,$C$5,1,E74,Pilotage!$D$25))),\"\")","v":""},null,null,null,null,null,{"$f":"IF(K74<>\"\",-1*CUMIPMT($C$6/$C$8,$C$7*$C$8,$C$5,M74,N74,Pilotage!$D$25),\"\")","v":""}]
[null,null,null,null,"","",{"$f":"IF(E75<>\"\",IF($C$5=0,0,IF($C$6<=0,0,CUMIPMT($C$6/$C$8,$C$7*$C$8,$C$5,1,E75,Pilotage!$D$25))),\"\")","v":""},{"$f":"IF(E75<>\"\",IF($C$6<=0,0,IF($C$5=0,0,CUMIPMT($C$6/$C$8,$C$7*$C$8,$C$5,E75,E75,Pilotage!$D$25))),\"\")","v":""},{"$f":"IF(E75<>\"\",IF($C$5=0,0,IF($C$6<=0,C$13-E75*C$12,$C$5+CUMPRINC($C$6/$C$8,$C$7*$C$8,$C$5,1,E75,Pilotage!$D$25))),\"\")","v":""},null,null,null,null,null,{"$f":"IF(K75<>\"\",-1*CUMIPMT($C$6/$C$8,$C$7*$C$8,$C$5,M75,N75,Pilotage!$D$25),\"\")","v":""}]
[null,null,null,null,"","",{"$f":"IF(E76<>\"\",IF($C$5=0,0,IF($C$6<=0,0,CUMIPMT($C$6/$C$8,$C$7*$C$8,$C$5,1,E76,Pilotage!$D$25))),\"\")","v":""},{"$f":"IF(E76<>\"\",IF($C$6<=0,0,IF($C$5=0,0,CUMIPMT($C$6/$C$8,$C$7*$C$8,$C$5,E76,E76,Pilotage!$D$25))),\"\")","v":""},{"$f":"IF(E76<>\"\",IF($C$5=0,0,IF($C$6<=0,C$13-E76*C$12,$C$5+CUMPRINC($C$6/$C$8,$C$7*$C$8,$C$5,1,E76,Pilotage!$D$25))),\"\")","v":""},null,null,null,null,null,{"$f":"IF(K76<>\"\",-1*CUMIPMT($C$6/$C$8,$C$7*$C$8,$C$5,M76,N76,Pilotage!$D$25),\"\")","v":""}]
[null,null,null,null,"","",{"$f":"IF(E77<>\"\",IF($C$5=0,0,IF($C$6<=0,0,CUMIPMT($C$6/$C$8,$C$7*$C$8,$C$5,1,E77,Pilotage!$D$25))),\"\")","v":""},{"$f":"IF(E77<>\"\",IF($C$6<=0,0,IF($C$5=0,0,CUMIPMT($C$6/$C$8,$C$7*$C$8,$C$5,E77,E77,Pilotage!$D$25))),\"\")","v":""},{"$f":"IF(E77<>\"\",IF($C$5=0,0,IF($C$6<=0,C$13-E77*C$12,$C$5+CUMPRINC($C$6/$C$8,$C$7*$C$8,$C$5,1,E77,Pilotage!$D$25))),\"\")","v":""},null,null,null,null,null,{"$f":"IF(K77<>\"\",-1*CUMIPMT($C$6/$C$8,$C$7*$C$8,$C$5,M77,N77,Pilotage!$D$25),\"\")","v":""}]
[null,null,null,null,"","",{"$f":"IF(E78<>\"\",IF($C$5=0,0,IF($C$6<=0,0,CUMIPMT($C$6/$C$8,$C$7*$C$8,$C$5,1,E78,Pilotage!$D$25))),\"\")","v":""},{"$f":"IF(E78<>\"\",IF($C$6<=0,0,IF($C$5=0,0,CUMIPMT($C$6/$C$8,$C$7*$C$8,$C$5,E78,E78,Pilotage!$D$25))),\"\")","v":""},{"$f":"IF(E78<>\"\",IF($C$5=0,0,IF($C$6<=0,C$13-E78*C$12,$C$5+CUMPRINC($C$6/$C$8,$C$7*$C$8,$C$5,1,E78,Pilotage!$D$25))),\"\")","v":""},null,null,null,null,null,{"$f":"IF(K78<>\"\",-1*CUMIPMT($C$6/$C$8,$C$7*$C$8,$C$5,M78,N78,Pilotage!$D$25),\"\")","v":""}]
[null,null,null,null,"","",{"$f":"IF(E79<>\"\",IF($C$5=0,0,IF($C$6<=0,0,CUMIPMT($C$6/$C$8,$C$7*$C$8,$C$5,1,E79,Pilotage!$D$25))),\"\")","v":""},{"$f":"IF(E79<>\"\",IF($C$6<=0,0,IF($C$5=0,0,CUMIPMT($C$6/$C$8,$C$7*$C$8,$C$5,E79,E79,Pilotage!$D$25))),\"\")","v":""},{"$f":"IF(E79<>\"\",IF($C$5=0,0,IF($C$6<=0,C$13-E79*C$12,$C$5+CUMPRINC($C$6/$C$8,$C$7*$C$8,$C$5,1,E79,Pilotage!$D$25))),\"\")","v":""},null,null,null,null,null,{"$f":"IF(K79<>\"\",-1*CUMIPMT($C$6/$C$8,$C$7*$C$8,$C$5,M79,N79,Pilotage!$D$25),\"\")","v":""}]
[null,null,null,null,"","",{"$f":"IF(E80<>\"\",IF($C$5=0,0,IF($C$6<=0,0,CUMIPMT($C$6/$C$8,$C$7*$C$8,$C$5,1,E80,Pilotage!$D$25))),\"\")","v":""},{"$f":"IF(E80<>\"\",IF($C$6<=0,0,IF($C$5=0,0,CUMIPMT($C$6/$C$8,$C$7*$C$8,$C$5,E80,E80,Pilotage!$D$25))),\"\")","v":""},{"$f":"IF(E80<>\"\",IF($C$5=0,0,IF($C$6<=0,C$13-E80*C$12,$C$5+CUMPRINC($C$6/$C$8,$C$7*$C$8,$C$5,1,E80,Pilotage!$D$25))),\"\")","v":""},null,null,null,null,null,{"$f":"IF(K80<>\"\",-1*CUMIPMT($C$6/$C$8,$C$7*$C$8,$C$5,M80,N80,Pilotage!$D$25),\"\")","v":""}]
[null,null,null,null,"","",{"$f":"IF(E81<>\"\",IF($C$5=0,0,IF($C$6<=0,0,CUMIPMT($C$6/$C$8,$C$7*$C$8,$C$5,1,E81,Pilotage!$D$25))),\"\")","v":""},{"$f":"IF(E81<>\"\",IF($C$6<=0,0,IF($C$5=0,0,CUMIPMT($C$6/$C$8,$C$7*$C$8,$C$5,E81,E81,Pilotage!$D$25))),\"\")","v":""},{"$f":"IF(E81<>\"\",IF($C$5=0,0,IF($C$6<=0,C$13-E81*C$12,$C$5+CUMPRINC($C$6/$C$8,$C$7*$C$8,$C$5,1,E81,Pilotage!$D$25))),\"\")","v":""},null,null,null,null,null,{"$f":"IF(K81<>\"\",-1*CUMIPMT($C$6/$C$8,$C$7*$C$8,$C$5,M81,N81,Pilotage!$D$25),\"\")","v":""}]
[null,null,null,null,"","",{"$f":"IF(E82<>\"\",IF($C$5=0,0,IF($C$6<=0,0,CUMIPMT($C$6/$C$8,$C$7*$C$8,$C$5,1,E82,Pilotage!$D$25))),\"\")","v":""},{"$f":"IF(E82<>\"\",IF($C$6<=0,0,IF($C$5=0,0,CUMIPMT($C$6/$C$8,$C$7*$C$8,$C$5,E82,E82,Pilotage!$D$25))),\"\")","v":""},{"$f":"IF(E82<>\"\",IF($C$5=0,0,IF($C$6<=0,C$13-E82*C$12,$C$5+CUMPRINC($C$6/$C$8,$C$7*$C$8,$C$5,1,E82,Pilotage!$D$25))),\"\")","v":""},null,null,null,null,null,{"$f":"IF(K82<>\"\",-1*CUMIPMT($C$6/$C$8,$C$7*$C$8,$C$5,M82,N82,Pilotage!$D$25),\"\")","v":""}]
[null,null,null,null,"","",{"$f":"IF(E83<>\"\",IF($C$5=0,0,IF($C$6<=0,0,CUMIPMT($C$6/$C$8,$C$7*$C$8,$C$5,1,E83,Pilotage!$D$25))),\"\")","v":""},{"$f":"IF(E83<>\"\",IF($C$6<=0,0,IF($C$5=0,0,CUMIPMT($C$6/$C$8,$C$7*$C$8,$C$5,E83,E83,Pilotage!$D$25))),\"\")","v":""},{"$f":"IF(E83<>\"\",IF($C$5=0,0,IF($C$6<=0,C$13-E83*C$12,$C$5+CUMPRINC($C$6/$C$8,$C$7*$C$8,$C$5,1,E83,Pilotage!$D$25))),\"\")","v":""},null,null,null,null,null,{"$f":"IF(K83<>\"\",-1*CUMIPMT($C$6/$C$8,$C$7*$C$8,$C$5,M83,N83,Pilotage!$D$25),\"\")","v":""}]
[null,null,null,null,"","",{"$f":"IF(E84<>\"\",IF($C$5=0,0,IF($C$6<=0,0,CUMIPMT($C$6/$C$8,$C$7*$C$8,$C$5,1,E84,Pilotage!$D$25))),\"\")","v":""},{"$f":"IF(E84<>\"\",IF($C$6<=0,0,IF($C$5=0,0,CUMIPMT($C$6/$C$8,$C$7*$C$8,$C$5,E84,E84,Pilotage!$D$25))),\"\")","v":""},{"$f":"IF(E84<>\"\",IF($C$5=0,0,IF($C$6<=0,C$13-E84*C$12,$C$5+CUMPRINC($C$6/$C$8,$C$7*$C$8,$C$5,1,E84,Pilotage!$D$25))),\"\")","v":""},null,null,null,null,null,{"$f":"IF(K84<>\"\",-1*CUMIPMT($C$6/$C$8,$C$7*$C$8,$C$5,M84,N84,Pilotage!$D$25),\"\")","v":""}]
[null,null,null,null,"","",{"$f":"IF(E85<>\"\",IF($C$5=0,0,IF($C$6<=0,0,CUMIPMT($C$6/$C$8,$C$7*$C$8,$C$5,1,E85,Pilotage!$D$25))),\"\")","v":""},{"$f":"IF(E85<>\"\",IF($C$6<=0,0,IF($C$5=0,0,CUMIPMT($C$6/$C$8,$C$7*$C$8,$C$5,E85,E85,Pilotage!$D$25))),\"\")","v":""},{"$f":"IF(E85<>\"\",IF($C$5=0,0,IF($C$6<=0,C$13-E85*C$12,$C$5+CUMPRINC($C$6/$C$8,$C$7*$C$8,$C$5,1,E85,Pilotage!$D$25))),\"\")","v":""},null,null,null,null,null,{"$f":"IF(K85<>\"\",-1*CUMIPMT($C$6/$C$8,$C$7*$C$8,$C$5,M85,N85,Pilotage!$D$25),\"\")","v":""}]
[null,null,null,null,"","",{"$f":"IF(E86<>\"\",IF($C$5=0,0,IF($C$6<=0,0,CUMIPMT($C$6/$C$8,$C$7*$C$8,$C$5,1,E86,Pilotage!$D$25))),\"\")","v":""},{"$f":"IF(E86<>\"\",IF($C$6<=0,0,IF($C$5=0,0,CUMIPMT($C$6/$C$8,$C$7*$C$8,$C$5,E86,E86,Pilotage!$D$25))),\"\")","v":""},{"$f":"IF(E86<>\"\",IF($C$5=0,0,IF($C$6<=0,C$13-E86*C$12,$C$5+CUMPRINC($C$6/$C$8,$C$7*$C$8,$C$5,1,E86,Pilotage!$D$25))),\"\")","v":""},null,null,null,null,null,{"$f":"IF(K86<>\"\",-1*CUMIPMT($C$6/$C$8,$C$7*$C$8,$C$5,M86,N86,Pilotage!$D$25),\"\")","v":""}]
[null,null,null,null,"","",{"$f":"IF(E87<>\"\",IF($C$5=0,0,IF($C$6<=0,0,CUMIPMT($C$6/$C$8,$C$7*$C$8,$C$5,1,E87,Pilotage!$D$25))),\"\")","v":""},{"$f":"IF(E87<>\"\",IF($C$6<=0,0,IF($C$5=0,0,CUMIPMT($C$6/$C$8,$C$7*$C$8,$C$5,E87,E87,Pilotage!$D$25))),\"\")","v":""},{"$f":"IF(E87<>\"\",IF($C$5=0,0,IF($C$6<=0,C$13-E87*C$12,$C$5+CUMPRINC($C$6/$C$8,$C$7*$C$8,$C$5,1,E87,Pilotage!$D$25))),\"\")","v":""},null,null,null,null,null,{"$f":"IF(K87<>\"\",-1*CUMIPMT($C$6/$C$8,$C$7*$C$8,$C$5,M87,N87,Pilotage!$D$25),\"\")","v":""}]
[null,null,null,null,"","",{"$f":"IF(E88<>\"\",IF($C$5=0,0,IF($C$6<=0,0,CUMIPMT($C$6/$C$8,$C$7*$C$8,$C$5,1,E88,Pilotage!$D$25))),\"\")","v":""},{"$f":"IF(E88<>\"\",IF($C$6<=0,0,IF($C$5=0,0,CUMIPMT($C$6/$C$8,$C$7*$C$8,$C$5,E88,E88,Pilotage!$D$25))),\"\")","v":""},{"$f":"IF(E88<>\"\",IF($C$5=0,0,IF($C$6<=0,C$13-E88*C$12,$C$5+CUMPRINC($C$6/$C$8,$C$7*$C$8,$C$5,1,E88,Pilotage!$D$25))),\"\")","v":""},null,null,null,null,null,{"$f":"IF(K88<>\"\",-1*CUMIPMT($C$6/$C$8,$C$7*$C$8,$C$5,M88,N88,Pilotage!$D$25),\"\")","v":""}]
[null,null,null,null,"","",{"$f":"IF(E89<>\"\",IF($C$5=0,0,IF($C$6<=0,0,CUMIPMT($C$6/$C$8,$C$7*$C$8,$C$5,1,E89,Pilotage!$D$25))),\"\")","v":""},{"$f":"IF(E89<>\"\",IF($C$6<=0,0,IF($C$5=0,0,CUMIPMT($C$6/$C$8,$C$7*$C$8,$C$5,E89,E89,Pilotage!$D$25))),\"\")","v":""},{"$f":"IF(E89<>\"\",IF($C$5=0,0,IF($C$6<=0,C$13-E89*C$12,$C$5+CUMPRINC($C$6/$C$8,$C$7*$C$8,$C$5,1,E89,Pilotage!$D$25))),\"\")","v":""},null,null,null,null,null,{"$f":"IF(K89<>\"\",-1*CUMIPMT($C$6/$C$8,$C$7*$C$8,$C$5,M89,N89,Pilotage!$D$25),\"\")","v":""}]
[null,null,null,null,"","",{"$f":"IF(E90<>\"\",IF($C$5=0,0,IF($C$6<=0,0,CUMIPMT($C$6/$C$8,$C$7*$C$8,$C$5,1,E90,Pilotage!$D$25))),\"\")","v":""},{"$f":"IF(E90<>\"\",IF($C$6<=0,0,IF($C$5=0,0,CUMIPMT($C$6/$C$8,$C$7*$C$8,$C$5,E90,E90,Pilotage!$D$25))),\"\")","v":""},{"$f":"IF(E90<>\"\",IF($C$5=0,0,IF($C$6<=0,C$13-E90*C$12,$C$5+CUMPRINC($C$6/$C$8,$C$7*$C$8,$C$5,1,E90,Pilotage!$D$25))),\"\")","v":""},null,null,null,null,null,{"$f":"IF(K90<>\"\",-1*CUMIPMT($C$6/$C$8,$C$7*$C$8,$C$5,M90,N90,Pilotage!$D$25),\"\")","v":""}]
[null,null,null,null,"","",{"$f":"IF(E91<>\"\",IF($C$5=0,0,IF($C$6<=0,0,CUMIPMT($C$6/$C$8,$C$7*$C$8,$C$5,1,E91,Pilotage!$D$25))),\"\")","v":""},{"$f":"IF(E91<>\"\",IF($C$6<=0,0,IF($C$5=0,0,CUMIPMT($C$6/$C$8,$C$7*$C$8,$C$5,E91,E91,Pilotage!$D$25))),\"\")","v":""},{"$f":"IF(E91<>\"\",IF($C$5=0,0,IF($C$6<=0,C$13-E91*C$12,$C$5+CUMPRINC($C$6/$C$8,$C$7*$C$8,$C$5,1,E91,Pilotage!$D$25))),\"\")","v":""},null,null,null,null,null,{"$f":"IF(K91<>\"\",-1*CUMIPMT($C$6/$C$8,$C$7*$C$8,$C$5,M91,N91,Pilotage!$D$25),\"\")","v":""}]
[null,null,null,null,"","",{"$f":"IF(E92<>\"\",IF($C$5=0,0,IF($C$6<=0,0,CUMIPMT($C$6/$C$8,$C$7*$C$8,$C$5,1,E92,Pilotage!$D$25))),\"\")","v":""},{"$f":"IF(E92<>\"\",IF($C$6<=0,0,IF($C$5=0,0,CUMIPMT($C$6/$C$8,$C$7*$C$8,$C$5,E92,E92,Pilotage!$D$25))),\"\")","v":""},{"$f":"IF(E92<>\"\",IF($C$5=0,0,IF($C$6<=0,C$13-E92*C$12,$C$5+CUMPRINC($C$6/$C$8,$C$7*$C$8,$C$5,1,E92,Pilotage!$D$25))),\"\")","v":""},null,null,null,null,null,{"$f":"IF(K92<>\"\",-1*CUMIPMT($C$6/$C$8,$C$7*$C$8,$C$5,M92,N92,Pilotage!$D$25),\"\")","v":""}]
[null,null,null,null,"","",{"$f":"IF(E93<>\"\",IF($C$5=0,0,IF($C$6<=0,0,CUMIPMT($C$6/$C$8,$C$7*$C$8,$C$5,1,E93,Pilotage!$D$25))),\"\")","v":""},{"$f":"IF(E93<>\"\",IF($C$6<=0,0,IF($C$5=0,0,CUMIPMT($C$6/$C$8,$C$7*$C$8,$C$5,E93,E93,Pilotage!$D$25))),\"\")","v":""},{"$f":"IF(E93<>\"\",IF($C$5=0,0,IF($C$6<=0,C$13-E93*C$12,$C$5+CUMPRINC($C$6/$C$8,$C$7*$C$8,$C$5,1,E93,Pilotage!$D$25))),\"\")","v":""},null,null,null,null,null,{"$f":"IF(K93<>\"\",-1*CUMIPMT($C$6/$C$8,$C$7*$C$8,$C$5,M93,N93,Pilotage!$D$25),\"\")","v":""}]
[null,null,null,null,"","",{"$f":"IF(E94<>\"\",IF($C$5=0,0,IF($C$6<=0,0,CUMIPMT($C$6/$C$8,$C$7*$C$8,$C$5,1,E94,Pilotage!$D$25))),\"\")","v":""},{"$f":"IF(E94<>\"\",IF($C$6<=0,0,IF($C$5=0,0,CUMIPMT($C$6/$C$8,$C$7*$C$8,$C$5,E94,E94,Pilotage!$D$25))),\"\")","v":""},{"$f":"IF(E94<>\"\",IF($C$5=0,0,IF($C$6<=0,C$13-E94*C$12,$C$5+CUMPRINC($C$6/$C$8,$C$7*$C$8,$C$5,1,E94,Pilotage!$D$25))),\"\")","v":""},null,null,null,null,null,{"$f":"IF(K94<>\"\",-1*CUMIPMT($C$6/$C$8,$C$7*$C$8,$C$5,M94,N94,Pilotage!$D$25),\"\")","v":""}]
[null,null,null,null,"","",{"$f":"IF(E95<>\"\",IF($C$5=0,0,IF($C$6<=0,0,CUMIPMT($C$6/$C$8,$C$7*$C$8,$C$5,1,E95,Pilotage!$D$25))),\"\")","v":""},{"$f":"IF(E95<>\"\",IF($C$6<=0,0,IF($C$5=0,0,CUMIPMT($C$6/$C$8,$C$7*$C$8,$C$5,E95,E95,Pilotage!$D$25))),\"\")","v":""},{"$f":"IF(E95<>\"\",IF($C$5=0,0,IF($C$6<=0,C$13-E95*C$12,$C$5+CUMPRINC($C$6/$C$8,$C$7*$C$8,$C$5,1,E95,Pilotage!$D$25))),\"\")","v":""},null,null,null,null,null,{"$f":"IF(K95<>\"\",-1*CUMIPMT($C$6/$C$8,$C$7*$C$8,$C$5,M95,N95,Pilotage!$D$25),\"\")","v":""}]
[null,null,null,null,"","",{"$f":"IF(E96<>\"\",IF($C$5=0,0,IF($C$6<=0,0,CUMIPMT($C$6/$C$8,$C$7*$C$8,$C$5,1,E96,Pilotage!$D$25))),\"\")","v":""},{"$f":"IF(E96<>\"\",IF($C$6<=0,0,IF($C$5=0,0,CUMIPMT($C$6/$C$8,$C$7*$C$8,$C$5,E96,E96,Pilotage!$D$25))),\"\")","v":""},{"$f":"IF(E96<>\"\",IF($C$5=0,0,IF($C$6<=0,C$13-E96*C$12,$C$5+CUMPRINC($C$6/$C$8,$C$7*$C$8,$C$5,1,E96,Pilotage!$D$25))),\"\")","v":""},null,null,null,null,null,{"$f":"IF(K96<>\"\",-1*CUMIPMT($C$6/$C$8,$C$7*$C$8,$C$5,M96,N96,Pilotage!$D$25),\"\")","v":""}]
[null,null,null,null,"","",{"$f":"IF(E97<>\"\",IF($C$5=0,0,IF($C$6<=0,0,CUMIPMT($C$6/$C$8,$C$7*$C$8,$C$5,1,E97,Pilotage!$D$25))),\"\")","v":""},{"$f":"IF(E97<>\"\",IF($C$6<=0,0,IF($C$5=0,0,CUMIPMT($C$6/$C$8,$C$7*$C$8,$C$5,E97,E97,Pilotage!$D$25))),\"\")","v":""},{"$f":"IF(E97<>\"\",IF($C$5=0,0,IF($C$6<=0,C$13-E97*C$12,$C$5+CUMPRINC($C$6/$C$8,$C$7*$C$8,$C$5,1,E97,Pilotage!$D$25))),\"\")","v":""},null,null,null,null,null,{"$f":"IF(K97<>\"\",-1*CUMIPMT($C$6/$C$8,$C$7*$C$8,$C$5,M97,N97,Pilotage!$D$25),\"\")","v":""}]
[null,null,null,null,"","",{"$f":"IF(E98<>\"\",IF($C$5=0,0,IF($C$6<=0,0,CUMIPMT($C$6/$C$8,$C$7*$C$8,$C$5,1,E98,Pilotage!$D$25))),\"\")","v":""},{"$f":"IF(E98<>\"\",IF($C$6<=0,0,IF($C$5=0,0,CUMIPMT($C$6/$C$8,$C$7*$C$8,$C$5,E98,E98,Pilotage!$D$25))),\"\")","v":""},{"$f":"IF(E98<>\"\",IF($C$5=0,0,IF($C$6<=0,C$13-E98*C$12,$C$5+CUMPRINC($C$6/$C$8,$C$7*$C$8,$C$5,1,E98,Pilotage!$D$25))),\"\")","v":""},null,null,null,null,null,{"$f":"IF(K98<>\"\",-1*CUMIPMT($C$6/$C$8,$C$7*$C$8,$C$5,M98,N98,Pilotage!$D$25),\"\")","v":""}]
[null,null,null,null,"","",{"$f":"IF(E99<>\"\",IF($C$5=0,0,IF($C$6<=0,0,CUMIPMT($C$6/$C$8,$C$7*$C$8,$C$5,1,E99,Pilotage!$D$25))),\"\")","v":""},{"$f":"IF(E99<>\"\",IF($C$6<=0,0,IF($C$5=0,0,CUMIPMT($C$6/$C$8,$C$7*$C$8,$C$5,E99,E99,Pilotage!$D$25))),\"\")","v":""},{"$f":"IF(E99<>\"\",IF($C$5=0,0,IF($C$6<=0,C$13-E99*C$12,$C$5+CUMPRINC($C$6/$C$8,$C$7*$C$8,$C$5,1,E99,Pilotage!$D$25))),\"\")","v":""},null,null,null,null,null,{"$f":"IF(K99<>\"\",-1*CUMIPMT($C$6/$C$8,$C$7*$C$8,$C$5,M99,N99,Pilotage!$D$25),\"\")","v":""}]
[null,null,null,null,"","",{"$f":"IF(E100<>\"\",IF($C$5=0,0,IF($C$6<=0,0,CUMIPMT($C$6/$C$8,$C$7*$C$8,$C$5,1,E100,Pilotage!$D$25))),\"\")","v":""},{"$f":"IF(E100<>\"\",IF($C$6<=0,0,IF($C$5=0,0,CUMIPMT($C$6/$C$8,$C$7*$C$8,$C$5,E100,E100,Pilotage!$D$25))),\"\")","v":""},{"$f":"IF(E100<>\"\",IF($C$5=0,0,IF($C$6<=0,C$13-E100*C$12,$C$5+CUMPRINC($C$6/$C$8,$C$7*$C$8,$C$5,1,E100,Pilotage!$D$25))),\"\")","v":""},null,null,null,null,null,{"$f":"IF(K100<>\"\",-1*CUMIPMT($C$6/$C$8,$C$7*$C$8,$C$5,M100,N100,Pilotage!$D$25),\"\")","v":""}]
[null,null,null,null,"","",{"$f":"IF(E101<>\"\",IF($C$5=0,0,IF($C$6<=0,0,CUMIPMT($C$6/$C$8,$C$7*$C$8,$C$5,1,E101,Pilotage!$D$25))),\"\")","v":""},{"$f":"IF(E101<>\"\",IF($C$6<=0,0,IF($C$5=0,0,CUMIPMT($C$6/$C$8,$C$7*$C$8,$C$5,E101,E101,Pilotage!$D$25))),\"\")","v":""},{"$f":"IF(E101<>\"\",IF($C$5=0,0,IF($C$6<=0,C$13-E101*C$12,$C$5+CUMPRINC($C$6/$C$8,$C$7*$C$8,$C$5,1,E101,Pilotage!$D$25))),\"\")","v":""},null,null,null,null,null,{"$f":"IF(K101<>\"\",-1*CUMIPMT($C$6/$C$8,$C$7*$C$8,$C$5,M101,N101,Pilotage!$D$25),\"\")","v":""}]
[null,null,null,null,"","",{"$f":"IF(E102<>\"\",IF($C$5=0,0,IF($C$6<=0,0,CUMIPMT($C$6/$C$8,$C$7*$C$8,$C$5,1,E102,Pilotage!$D$25))),\"\")","v":""},{"$f":"IF(E102<>\"\",IF($C$6<=0,0,IF($C$5=0,0,CUMIPMT($C$6/$C$8,$C$7*$C$8,$C$5,E102,E102,Pilotage!$D$25))),\"\")","v":""},{"$f":"IF(E102<>\"\",IF($C$5=0,0,IF($C$6<=0,C$13-E102*C$12,$C$5+CUMPRINC($C$6/$C$8,$C$7*$C$8,$C$5,1,E102,Pilotage!$D$25))),\"\")","v":""},null,null,null,null,null,{"$f":"IF(K102<>\"\",-1*CUMIPMT($C$6/$C$8,$C$7*$C$8,$C$5,M102,N102,Pilotage!$D$25),\"\")","v":""}]
[null,null,null,null,"","",{"$f":"IF(E103<>\"\",IF($C$5=0,0,IF($C$6<=0,0,CUMIPMT($C$6/$C$8,$C$7*$C$8,$C$5,1,E103,Pilotage!$D$25))),\"\")","v":""},{"$f":"IF(E103<>\"\",IF($C$6<=0,0,IF($C$5=0,0,CUMIPMT($C$6/$C$8,$C$7*$C$8,$C$5,E103,E103,Pilotage!$D$25))),\"\")","v":""},{"$f":"IF(E103<>\"\",IF($C$5=0,0,IF($C$6<=0,C$13-E103*C$12,$C$5+CUMPRINC($C$6/$C$8,$C$7*$C$8,$C$5,1,E103,Pilotage!$D$25))),\"\")","v":""},null,null,null,null,null,{"$f":"IF(K103<>\"\",-1*CUMIPMT($C$6/$C$8,$C$7*$C$8,$C$5,M103,N103,Pilotage!$D$25),\"\")","v":""}]
[null,null,null,null,"","",{"$f":"IF(E104<>\"\",IF($C$5=0,0,IF($C$6<=0,0,CUMIPMT($C$6/$C$8,$C$7*$C$8,$C$5,1,E104,Pilotage!$D$25))),\"\")","v":""},{"$f":"IF(E104<>\"\",IF($C$6<=0,0,IF($C$5=0,0,CUMIPMT($C$6/$C$8,$C$7*$C$8,$C$5,E104,E104,Pilotage!$D$25))),\"\")","v":""},{"$f":"IF(E104<>\"\",IF($C$5=0,0,IF($C$6<=0,C$13-E104*C$12,$C$5+CUMPRINC($C$6/$C$8,$C$7*$C$8,$C$5,1,E104,Pilotage!$D$25))),\"\")","v":""},null,null,null,null,null,{"$f":"IF(K104<>\"\",-1*CUMIPMT($C$6/$C$8,$C$7*$C$8,$C$5,M104,N104,Pilotage!$D$25),\"\")","v":""}]
[null,null,null,null,"","",{"$f":"IF(E105<>\"\",IF($C$5=0,0,IF($C$6<=0,0,CUMIPMT($C$6/$C$8,$C$7*$C$8,$C$5,1,E105,Pilotage!$D$25))),\"\")","v":""},{"$f":"IF(E105<>\"\",IF($C$6<=0,0,IF($C$5=0,0,CUMIPMT($C$6/$C$8,$C$7*$C$8,$C$5,E105,E105,Pilotage!$D$25))),\"\")","v":""},{"$f":"IF(E105<>\"\",IF($C$5=0,0,IF($C$6<=0,C$13-E105*C$12,$C$5+CUMPRINC($C$6/$C$8,$C$7*$C$8,$C$5,1,E105,Pilotage!$D$25))),\"\")","v":""},null,null,null,null,null,{"$f":"IF(K105<>\"\",-1*CUMIPMT($C$6/$C$8,$C$7*$C$8,$C$5,M105,N105,Pilotage!$D$25),\"\")","v":""}]
[null,null,null,null,"","",{"$f":"IF(E106<>\"\",IF($C$5=0,0,IF($C$6<=0,0,CUMIPMT($C$6/$C$8,$C$7*$C$8,$C$5,1,E106,Pilotage!$D$25))),\"\")","v":""},{"$f":"IF(E106<>\"\",IF($C$6<=0,0,IF($C$5=0,0,CUMIPMT($C$6/$C$8,$C$7*$C$8,$C$5,E106,E106,Pilotage!$D$25))),\"\")","v":""},{"$f":"IF(E106<>\"\",IF($C$5=0,0,IF($C$6<=0,C$13-E106*C$12,$C$5+CUMPRINC($C$6/$C$8,$C$7*$C$8,$C$5,1,E106,Pilotage!$D$25))),\"\")","v":""},null,null,null,null,null,{"$f":"IF(K106<>\"\",-1*CUMIPMT($C$6/$C$8,$C$7*$C$8,$C$5,M106,N106,Pilotage!$D$25),\"\")","v":""}]
[null,null,null,null,"","",{"$f":"IF(E107<>\"\",IF($C$5=0,0,IF($C$6<=0,0,CUMIPMT($C$6/$C$8,$C$7*$C$8,$C$5,1,E107,Pilotage!$D$25))),\"\")","v":""},{"$f":"IF(E107<>\"\",IF($C$6<=0,0,IF($C$5=0,0,CUMIPMT($C$6/$C$8,$C$7*$C$8,$C$5,E107,E107,Pilotage!$D$25))),\"\")","v":""},{"$f":"IF(E107<>\"\",IF($C$5=0,0,IF($C$6<=0,C$13-E107*C$12,$C$5+CUMPRINC($C$6/$C$8,$C$7*$C$8,$C$5,1,E107,Pilotage!$D$25))),\"\")","v":""},null,null,null,null,null,{"$f":"IF(K107<>\"\",-1*CUMIPMT($C$6/$C$8,$C$7*$C$8,$C$5,M107,N107,Pilotage!$D$25),\"\")","v":""}]
[null,null,null,null,"","",{"$f":"IF(E108<>\"\",IF($C$5=0,0,IF($C$6<=0,0,CUMIPMT($C$6/$C$8,$C$7*$C$8,$C$5,1,E108,Pilotage!$D$25))),\"\")","v":""},{"$f":"IF(E108<>\"\",IF($C$6<=0,0,IF($C$5=0,0,CUMIPMT($C$6/$C$8,$C$7*$C$8,$C$5,E108,E108,Pilotage!$D$25))),\"\")","v":""},{"$f":"IF(E108<>\"\",IF($C$5=0,0,IF($C$6<=0,C$13-E108*C$12,$C$5+CUMPRINC($C$6/$C$8,$C$7*$C$8,$C$5,1,E108,Pilotage!$D$25))),\"\")","v":""},null,null,null,null,null,{"$f":"IF(K108<>\"\",-1*CUMIPMT($C$6/$C$8,$C$7*$C$8,$C$5,M108,N108,Pilotage!$D$25),\"\")","v":""}]
[null,null,null,null,"","",{"$f":"IF(E109<>\"\",IF($C$5=0,0,IF($C$6<=0,0,CUMIPMT($C$6/$C$8,$C$7*$C$8,$C$5,1,E109,Pilotage!$D$25))),\"\")","v":""},{"$f":"IF(E109<>\"\",IF($C$6<=0,0,IF($C$5=0,0,CUMIPMT($C$6/$C$8,$C$7*$C$8,$C$5,E109,E109,Pilotage!$D$25))),\"\")","v":""},{"$f":"IF(E109<>\"\",IF($C$5=0,0,IF($C$6<=0,C$13-E109*C$12,$C$5+CUMPRINC($C$6/$C$8,$C$7*$C$8,$C$5,1,E109,Pilotage!$D$25))),\"\")","v":""},null,null,null,null,null,{"$f":"IF(K109<>\"\",-1*CUMIPMT($C$6/$C$8,$C$7*$C$8,$C$5,M109,N109,Pilotage!$D$25),\"\")","v":""}]
[null,null,null,null,"","",{"$f":"IF(E110<>\"\",IF($C$5=0,0,IF($C$6<=0,0,CUMIPMT($C$6/$C$8,$C$7*$C$8,$C$5,1,E110,Pilotage!$D$25))),\"\")","v":""},{"$f":"IF(E110<>\"\",IF($C$6<=0,0,IF($C$5=0,0,CUMIPMT($C$6/$C$8,$C$7*$C$8,$C$5,E110,E110,Pilotage!$D$25))),\"\")","v":""},{"$f":"IF(E110<>\"\",IF($C$5=0,0,IF($C$6<=0,C$13-E110*C$12,$C$5+CUMPRINC($C$6/$C$8,$C$7*$C$8,$C$5,1,E110,Pilotage!$D$25))),\"\")","v":""},null,null,null,null,null,{"$f":"IF(K110<>\"\",-1*CUMIPMT($C$6/$C$8,$C$7*$C$8,$C$5,M110,N110,Pilotage!$D$25),\"\")","v":""}]
[null,null,null,null,"","",{"$f":"IF(E111<>\"\",IF($C$5=0,0,IF($C$6<=0,0,CUMIPMT($C$6/$C$8,$C$7*$C$8,$C$5,1,E111,Pilotage!$D$25))),\"\")","v":""},{"$f":"IF(E111<>\"\",IF($C$6<=0,0,IF($C$5=0,0,CUMIPMT($C$6/$C$8,$C$7*$C$8,$C$5,E111,E111,Pilotage!$D$25))),\"\")","v":""},{"$f":"IF(E111<>\"\",IF($C$5=0,0,IF($C$6<=0,C$13-E111*C$12,$C$5+CUMPRINC($C$6/$C$8,$C$7*$C$8,$C$5,1,E111,Pilotage!$D$25))),\"\")","v":""},null,null,null,null,null,{"$f":"IF(K111<>\"\",-1*CUMIPMT($C$6/$C$8,$C$7*$C$8,$C$5,M111,N111,Pilotage!$D$25),\"\")","v":""}]
[null,null,null,null,"","",{"$f":"IF(E112<>\"\",IF($C$5=0,0,IF($C$6<=0,0,CUMIPMT($C$6/$C$8,$C$7*$C$8,$C$5,1,E112,Pilotage!$D$25))),\"\")","v":""},{"$f":"IF(E112<>\"\",IF($C$6<=0,0,IF($C$5=0,0,CUMIPMT($C$6/$C$8,$C$7*$C$8,$C$5,E112,E112,Pilotage!$D$25))),\"\")","v":""},{"$f":"IF(E112<>\"\",IF($C$5=0,0,IF($C$6<=0,C$13-E112*C$12,$C$5+CUMPRINC($C$6/$C$8,$C$7*$C$8,$C$5,1,E112,Pilotage!$D$25))),\"\")","v":""},null,null,null,null,null,{"$f":"IF(K112<>\"\",-1*CUMIPMT($C$6/$C$8,$C$7*$C$8,$C$5,M112,N112,Pilotage!$D$25),\"\")","v":""}]
[null,null,null,null,"","",{"$f":"IF(E113<>\"\",IF($C$5=0,0,IF($C$6<=0,0,CUMIPMT($C$6/$C$8,$C$7*$C$8,$C$5,1,E113,Pilotage!$D$25))),\"\")","v":""},{"$f":"IF(E113<>\"\",IF($C$6<=0,0,IF($C$5=0,0,CUMIPMT($C$6/$C$8,$C$7*$C$8,$C$5,E113,E113,Pilotage!$D$25))),\"\")","v":""},{"$f":"IF(E113<>\"\",IF($C$5=0,0,IF($C$6<=0,C$13-E113*C$12,$C$5+CUMPRINC($C$6/$C$8,$C$7*$C$8,$C$5,1,E113,Pilotage!$D$25))),\"\")","v":""},null,null,null,null,null,{"$f":"IF(K113<>\"\",-1*CUMIPMT($C$6/$C$8,$C$7*$C$8,$C$5,M113,N113,Pilotage!$D$25),\"\")","v":""}]
[null,null,null,null,"","",{"$f":"IF(E114<>\"\",IF($C$5=0,0,IF($C$6<=0,0,CUMIPMT($C$6/$C$8,$C$7*$C$8,$C$5,1,E114,Pilotage!$D$25))),\"\")","v":""},{"$f":"IF(E114<>\"\",IF($C$6<=0,0,IF($C$5=0,0,CUMIPMT($C$6/$C$8,$C$7*$C$8,$C$5,E114,E114,Pilotage!$D$25))),\"\")","v":""},{"$f":"IF(E114<>\"\",IF($C$5=0,0,IF($C$6<=0,C$13-E114*C$12,$C$5+CUMPRINC($C$6/$C$8,$C$7*$C$8,$C$5,1,E114,Pilotage!$D$25))),\"\")","v":""},null,null,null,null,null,{"$f":"IF(K114<>\"\",-1*CUMIPMT($C$6/$C$8,$C$7*$C$8,$C$5,M114,N114,Pilotage!$D$25),\"\")","v":""}]
[null,null,null,null,"","",{"$f":"IF(E115<>\"\",IF($C$5=0,0,IF($C$6<=0,0,CUMIPMT($C$6/$C$8,$C$7*$C$8,$C$5,1,E115,Pilotage!$D$25))),\"\")","v":""},{"$f":"IF(E115<>\"\",IF($C$6<=0,0,IF($C$5=0,0,CUMIPMT($C$6/$C$8,$C$7*$C$8,$C$5,E115,E115,Pilotage!$D$25))),\"\")","v":""},{"$f":"IF(E115<>\"\",IF($C$5=0,0,IF($C$6<=0,C$13-E115*C$12,$C$5+CUMPRINC($C$6/$C$8,$C$7*$C$8,$C$5,1,E115,Pilotage!$D$25))),\"\")","v":""},null,null,null,null,null,{"$f":"IF(K115<>\"\",-1*CUMIPMT($C$6/$C$8,$C$7*$C$8,$C$5,M115,N115,Pilotage!$D$25),\"\")","v":""}]
[null,null,null,null,"","",{"$f":"IF(E116<>\"\",IF($C$5=0,0,IF($C$6<=0,0,CUMIPMT($C$6/$C$8,$C$7*$C$8,$C$5,1,E116,Pilotage!$D$25))),\"\")","v":""},{"$f":"IF(E116<>\"\",IF($C$6<=0,0,IF($C$5=0,0,CUMIPMT($C$6/$C$8,$C$7*$C$8,$C$5,E116,E116,Pilotage!$D$25))),\"\")","v":""},{"$f":"IF(E116<>\"\",IF($C$5=0,0,IF($C$6<=0,C$13-E116*C$12,$C$5+CUMPRINC($C$6/$C$8,$C$7*$C$8,$C$5,1,E116,Pilotage!$D$25))),\"\")","v":""},null,null,null,null,null,{"$f":"IF(K116<>\"\",-1*CUMIPMT($C$6/$C$8,$C$7*$C$8,$C$5,M116,N116,Pilotage!$D$25),\"\")","v":""}]
[null,null,null,null,"","",{"$f":"IF(E117<>\"\",IF($C$5=0,0,IF($C$6<=0,0,CUMIPMT($C$6/$C$8,$C$7*$C$8,$C$5,1,E117,Pilotage!$D$25))),\"\")","v":""},{"$f":"IF(E117<>\"\",IF($C$6<=0,0,IF($C$5=0,0,CUMIPMT($C$6/$C$8,$C$7*$C$8,$C$5,E117,E117,Pilotage!$D$25))),\"\")","v":""},{"$f":"IF(E117<>\"\",IF($C$5=0,0,IF($C$6<=0,C$13-E117*C$12,$C$5+CUMPRINC($C$6/$C$8,$C$7*$C$8,$C$5,1,E117,Pilotage!$D$25))),\"\")","v":""},null,null,null,null,null,{"$f":"IF(K117<>\"\",-1*CUMIPMT($C$6/$C$8,$C$7*$C$8,$C$5,M117,N117,Pilotage!$D$25),\"\")","v":""}]
[null,null,null,null,"","",{"$f":"IF(E118<>\"\",IF($C$5=0,0,IF($C$6<=0,0,CUMIPMT($C$6/$C$8,$C$7*$C$8,$C$5,1,E118,Pilotage!$D$25))),\"\")","v":""},{"$f":"IF(E118<>\"\",IF($C$6<=0,0,IF($C$5=0,0,CUMIPMT($C$6/$C$8,$C$7*$C$8,$C$5,E118,E118,Pilotage!$D$25))),\"\")","v":""},{"$f":"IF(E118<>\"\",IF($C$5=0,0,IF($C$6<=0,C$13-E118*C$12,$C$5+CUMPRINC($C$6/$C$8,$C$7*$C$8,$C$5,1,E118,Pilotage!$D$25))),\"\")","v":""},null,null,null,null,null,{"$f":"IF(K118<>\"\",-1*CUMIPMT($C$6/$C$8,$C$7*$C$8,$C$5,M118,N118,Pilotage!$D$25),\"\")","v":""}]
[null,null,null,null,"","",{"$f":"IF(E119<>\"\",IF($C$5=0,0,IF($C$6<=0,0,CUMIPMT($C$6/$C$8,$C$7*$C$8,$C$5,1,E119,Pilotage!$D$25))),\"\")","v":""},{"$f":"IF(E119<>\"\",IF($C$6<=0,0,IF($C$5=0,0,CUMIPMT($C$6/$C$8,$C$7*$C$8,$C$5,E119,E119,Pilotage!$D$25))),\"\")","v":""},{"$f":"IF(E119<>\"\",IF($C$5=0,0,IF($C$6<=0,C$13-E119*C$12,$C$5+CUMPRINC($C$6/$C$8,$C$7*$C$8,$C$5,1,E119,Pilotage!$D$25))),\"\")","v":""},null,null,null,null,null,{"$f":"IF(K119<>\"\",-1*CUMIPMT($C$6/$C$8,$C$7*$C$8,$C$5,M119,N119,Pilotage!$D$25),\"\")","v":""}]
[null,null,null,null,"","",{"$f":"IF(E120<>\"\",IF($C$5=0,0,IF($C$6<=0,0,CUMIPMT($C$6/$C$8,$C$7*$C$8,$C$5,1,E120,Pilotage!$D$25))),\"\")","v":""},{"$f":"IF(E120<>\"\",IF($C$6<=0,0,IF($C$5=0,0,CUMIPMT($C$6/$C$8,$C$7*$C$8,$C$5,E120,E120,Pilotage!$D$25))),\"\")","v":""},{"$f":"IF(E120<>\"\",IF($C$5=0,0,IF($C$6<=0,C$13-E120*C$12,$C$5+CUMPRINC($C$6/$C$8,$C$7*$C$8,$C$5,1,E120,Pilotage!$D$25))),\"\")","v":""},null,null,null,null,null,{"$f":"IF(K120<>\"\",-1*CUMIPMT($C$6/$C$8,$C$7*$C$8,$C$5,M120,N120,Pilotage!$D$25),\"\")","v":""}]
[null,null,null,null,"","",{"$f":"IF(E121<>\"\",IF($C$5=0,0,IF($C$6<=0,0,CUMIPMT($C$6/$C$8,$C$7*$C$8,$C$5,1,E121,Pilotage!$D$25))),\"\")","v":""},{"$f":"IF(E121<>\"\",IF($C$6<=0,0,IF($C$5=0,0,CUMIPMT($C$6/$C$8,$C$7*$C$8,$C$5,E121,E121,Pilotage!$D$25))),\"\")","v":""},{"$f":"IF(E121<>\"\",IF($C$5=0,0,IF($C$6<=0,C$13-E121*C$12,$C$5+CUMPRINC($C$6/$C$8,$C$7*$C$8,$C$5,1,E121,Pilotage!$D$25))),\"\")","v":""},null,null,null,null,null,{"$f":"IF(K121<>\"\",-1*CUMIPMT($C$6/$C$8,$C$7*$C$8,$C$5,M121,N121,Pilotage!$D$25),\"\")","v":""}]
[null,null,null,null,"","",{"$f":"IF(E122<>\"\",IF($C$5=0,0,IF($C$6<=0,0,CUMIPMT($C$6/$C$8,$C$7*$C$8,$C$5,1,E122,Pilotage!$D$25))),\"\")","v":""},{"$f":"IF(E122<>\"\",IF($C$6<=0,0,IF($C$5=0,0,CUMIPMT($C$6/$C$8,$C$7*$C$8,$C$5,E122,E122,Pilotage!$D$25))),\"\")","v":""},{"$f":"IF(E122<>\"\",IF($C$5=0,0,IF($C$6<=0,C$13-E122*C$12,$C$5+CUMPRINC($C$6/$C$8,$C$7*$C$8,$C$5,1,E122,Pilotage!$D$25))),\"\")","v":""},null,null,null,null,null,{"$f":"IF(K122<>\"\",-1*CUMIPMT($C$6/$C$8,$C$7*$C$8,$C$5,M122,N122,Pilotage!$D$25),\"\")","v":""}]
[null,null,null,null,"","",{"$f":"IF(E123<>\"\",IF($C$5=0,0,IF($C$6<=0,0,CUMIPMT($C$6/$C$8,$C$7*$C$8,$C$5,1,E123,Pilotage!$D$25))),\"\")","v":""},{"$f":"IF(E123<>\"\",IF($C$6<=0,0,IF($C$5=0,0,CUMIPMT($C$6/$C$8,$C$7*$C$8,$C$5,E123,E123,Pilotage!$D$25))),\"\")","v":""},{"$f":"IF(E123<>\"\",IF($C$5=0,0,IF($C$6<=0,C$13-E123*C$12,$C$5+CUMPRINC($C$6/$C$8,$C$7*$C$8,$C$5,1,E123,Pilotage!$D$25))),\"\")","v":""},null,null,null,null,null,{"$f":"IF(K123<>\"\",-1*CUMIPMT($C$6/$C$8,$C$7*$C$8,$C$5,M123,N123,Pilotage!$D$25),\"\")","v":""}]
[null,null,null,null,"","",{"$f":"IF(E124<>\"\",IF($C$5=0,0,IF($C$6<=0,0,CUMIPMT($C$6/$C$8,$C$7*$C$8,$C$5,1,E124,Pilotage!$D$25))),\"\")","v":""},{"$f":"IF(E124<>\"\",IF($C$6<=0,0,IF($C$5=0,0,CUMIPMT($C$6/$C$8,$C$7*$C$8,$C$5,E124,E124,Pilotage!$D$25))),\"\")","v":""},{"$f":"IF(E124<>\"\",IF($C$5=0,0,IF($C$6<=0,C$13-E124*C$12,$C$5+CUMPRINC($C$6/$C$8,$C$7*$C$8,$C$5,1,E124,Pilotage!$D$25))),\"\")","v":""},null,null,null,null,null,{"$f":"IF(K124<>\"\",-1*CUMIPMT($C$6/$C$8,$C$7*$C$8,$C$5,M124,N124,Pilotage!$D$25),\"\")","v":""}]
[null,null,null,null,"","",{"$f":"IF(E125<>\"\",IF($C$5=0,0,IF($C$6<=0,0,CUMIPMT($C$6/$C$8,$C$7*$C$8,$C$5,1,E125,Pilotage!$D$25))),\"\")","v":""},{"$f":"IF(E125<>\"\",IF($C$6<=0,0,IF($C$5=0,0,CUMIPMT($C$6/$C$8,$C$7*$C$8,$C$5,E125,E125,Pilotage!$D$25))),\"\")","v":""},{"$f":"IF(E125<>\"\",IF($C$5=0,0,IF($C$6<=0,C$13-E125*C$12,$C$5+CUMPRINC($C$6/$C$8,$C$7*$C$8,$C$5,1,E125,Pilotage!$D$25))),\"\")","v":""},null,null,null,null,null,{"$f":"IF(K125<>\"\",-1*CUMIPMT($C$6/$C$8,$C$7*$C$8,$C$5,M125,N125,Pilotage!$D$25),\"\")","v":""}]
[null,null,null,null,"","",{"$f":"IF(E126<>\"\",IF($C$5=0,0,IF($C$6<=0,0,CUMIPMT($C$6/$C$8,$C$7*$C$8,$C$5,1,E126,Pilotage!$D$25))),\"\")","v":""},{"$f":"IF(E126<>\"\",IF($C$6<=0,0,IF($C$5=0,0,CUMIPMT($C$6/$C$8,$C$7*$C$8,$C$5,E126,E126,Pilotage!$D$25))),\"\")","v":""},{"$f":"IF(E126<>\"\",IF($C$5=0,0,IF($C$6<=0,C$13-E126*C$12,$C$5+CUMPRINC($C$6/$C$8,$C$7*$C$8,$C$5,1,E126,Pilotage!$D$25))),\"\")","v":""},null,null,null,null,null,{"$f":"IF(K126<>\"\",-1*CUMIPMT($C$6/$C$8,$C$7*$C$8,$C$5,M126,N126,Pilotage!$D$25),\"\")","v":""}]
[null,null,null,null,"","",{"$f":"IF(E127<>\"\",IF($C$5=0,0,IF($C$6<=0,0,CUMIPMT($C$6/$C$8,$C$7*$C$8,$C$5,1,E127,Pilotage!$D$25))),\"\")","v":""},{"$f":"IF(E127<>\"\",IF($C$6<=0,0,IF($C$5=0,0,CUMIPMT($C$6/$C$8,$C$7*$C$8,$C$5,E127,E127,Pilotage!$D$25))),\"\")","v":""},{"$f":"IF(E127<>\"\",IF($C$5=0,0,IF($C$6<=0,C$13-E127*C$12,$C$5+CUMPRINC($C$6/$C$8,$C$7*$C$8,$C$5,1,E127,Pilotage!$D$25))),\"\")","v":""},null,null,null,null,null,{"$f":"IF(K127<>\"\",-1*CUMIPMT($C$6/$C$8,$C$7*$C$8,$C$5,M127,N127,Pilotage!$D$25),\"\")","v":""}]
[null,null,null,null,"","",{"$f":"IF(E128<>\"\",IF($C$5=0,0,IF($C$6<=0,0,CUMIPMT($C$6/$C$8,$C$7*$C$8,$C$5,1,E128,Pilotage!$D$25))),\"\")","v":""},{"$f":"IF(E128<>\"\",IF($C$6<=0,0,IF($C$5=0,0,CUMIPMT($C$6/$C$8,$C$7*$C$8,$C$5,E128,E128,Pilotage!$D$25))),\"\")","v":""},{"$f":"IF(E128<>\"\",IF($C$5=0,0,IF($C$6<=0,C$13-E128*C$12,$C$5+CUMPRINC($C$6/$C$8,$C$7*$C$8,$C$5,1,E128,Pilotage!$D$25))),\"\")","v":""},null,null,null,null,null,{"$f":"IF(K128<>\"\",-1*CUMIPMT($C$6/$C$8,$C$7*$C$8,$C$5,M128,N128,Pilotage!$D$25),\"\")","v":""}]
[null,null,null,null,"","",{"$f":"IF(E129<>\"\",IF($C$5=0,0,IF($C$6<=0,0,CUMIPMT($C$6/$C$8,$C$7*$C$8,$C$5,1,E129,Pilotage!$D$25))),\"\")","v":""},{"$f":"IF(E129<>\"\",IF($C$6<=0,0,IF($C$5=0,0,CUMIPMT($C$6/$C$8,$C$7*$C$8,$C$5,E129,E129,Pilotage!$D$25))),\"\")","v":""},{"$f":"IF(E129<>\"\",IF($C$5=0,0,IF($C$6<=0,C$13-E129*C$12,$C$5+CUMPRINC($C$6/$C$8,$C$7*$C$8,$C$5,1,E129,Pilotage!$D$25))),\"\")","v":""},null,null,null,null,null,{"$f":"IF(K129<>\"\",-1*CUMIPMT($C$6/$C$8,$C$7*$C$8,$C$5,M129,N129,Pilotage!$D$25),\"\")","v":""}]
[null,null,null,null,"","",{"$f":"IF(E130<>\"\",IF($C$5=0,0,IF($C$6<=0,0,CUMIPMT($C$6/$C$8,$C$7*$C$8,$C$5,1,E130,Pilotage!$D$25))),\"\")","v":""},{"$f":"IF(E130<>\"\",IF($C$6<=0,0,IF($C$5=0,0,CUMIPMT($C$6/$C$8,$C$7*$C$8,$C$5,E130,E130,Pilotage!$D$25))),\"\")","v":""},{"$f":"IF(E130<>\"\",IF($C$5=0,0,IF($C$6<=0,C$13-E130*C$12,$C$5+CUMPRINC($C$6/$C$8,$C$7*$C$8,$C$5,1,E130,Pilotage!$D$25))),\"\")","v":""},null,null,null,null,null,{"$f":"IF(K130<>\"\",-1*CUMIPMT($C$6/$C$8,$C$7*$C$8,$C$5,M130,N130,Pilotage!$D$25),\"\")","v":""}]
[null,null,null,null,"","",{"$f":"IF(E131<>\"\",IF($C$5=0,0,IF($C$6<=0,0,CUMIPMT($C$6/$C$8,$C$7*$C$8,$C$5,1,E131,Pilotage!$D$25))),\"\")","v":""},{"$f":"IF(E131<>\"\",IF($C$6<=0,0,IF($C$5=0,0,CUMIPMT($C$6/$C$8,$C$7*$C$8,$C$5,E131,E131,Pilotage!$D$25))),\"\")","v":""},{"$f":"IF(E131<>\"\",IF($C$5=0,0,IF($C$6<=0,C$13-E131*C$12,$C$5+CUMPRINC($C$6/$C$8,$C$7*$C$8,$C$5,1,E131,Pilotage!$D$25))),\"\")","v":""},null,null,null,null,null,{"$f":"IF(K131<>\"\",-1*CUMIPMT($C$6/$C$8,$C$7*$C$8,$C$5,M131,N131,Pilotage!$D$25),\"\")","v":""}]
[null,null,null,null,"","",{"$f":"IF(E132<>\"\",IF($C$5=0,0,IF($C$6<=0,0,CUMIPMT($C$6/$C$8,$C$7*$C$8,$C$5,1,E132,Pilotage!$D$25))),\"\")","v":""},{"$f":"IF(E132<>\"\",IF($C$6<=0,0,IF($C$5=0,0,CUMIPMT($C$6/$C$8,$C$7*$C$8,$C$5,E132,E132,Pilotage!$D$25))),\"\")","v":""},{"$f":"IF(E132<>\"\",IF($C$5=0,0,IF($C$6<=0,C$13-E132*C$12,$C$5+CUMPRINC($C$6/$C$8,$C$7*$C$8,$C$5,1,E132,Pilotage!$D$25))),\"\")","v":""},null,null,null,null,null,{"$f":"IF(K132<>\"\",-1*CUMIPMT($C$6/$C$8,$C$7*$C$8,$C$5,M132,N132,Pilotage!$D$25),\"\")","v":""}]
[null,null,null,null,"","",{"$f":"IF(E133<>\"\",IF($C$5=0,0,IF($C$6<=0,0,CUMIPMT($C$6/$C$8,$C$7*$C$8,$C$5,1,E133,Pilotage!$D$25))),\"\")","v":""},{"$f":"IF(E133<>\"\",IF($C$6<=0,0,IF($C$5=0,0,CUMIPMT($C$6/$C$8,$C$7*$C$8,$C$5,E133,E133,Pilotage!$D$25))),\"\")","v":""},{"$f":"IF(E133<>\"\",IF($C$5=0,0,IF($C$6<=0,C$13-E133*C$12,$C$5+CUMPRINC($C$6/$C$8,$C$7*$C$8,$C$5,1,E133,Pilotage!$D$25))),\"\")","v":""},null,null,null,null,null,{"$f":"IF(K133<>\"\",-1*CUMIPMT($C$6/$C$8,$C$7*$C$8,$C$5,M133,N133,Pilotage!$D$25),\"\")","v":""}]
[null,null,null,null,"","",{"$f":"IF(E134<>\"\",IF($C$5=0,0,IF($C$6<=0,0,CUMIPMT($C$6/$C$8,$C$7*$C$8,$C$5,1,E134,Pilotage!$D$25))),\"\")","v":""},{"$f":"IF(E134<>\"\",IF($C$6<=0,0,IF($C$5=0,0,CUMIPMT($C$6/$C$8,$C$7*$C$8,$C$5,E134,E134,Pilotage!$D$25))),\"\")","v":""},{"$f":"IF(E134<>\"\",IF($C$5=0,0,IF($C$6<=0,C$13-E134*C$12,$C$5+CUMPRINC($C$6/$C$8,$C$7*$C$8,$C$5,1,E134,Pilotage!$D$25))),\"\")","v":""},null,null,null,null,null,{"$f":"IF(K134<>\"\",-1*CUMIPMT($C$6/$C$8,$C$7*$C$8,$C$5,M134,N134,Pilotage!$D$25),\"\")","v":""}]
[null,null,null,null,"","",{"$f":"IF(E135<>\"\",IF($C$5=0,0,IF($C$6<=0,0,CUMIPMT($C$6/$C$8,$C$7*$C$8,$C$5,1,E135,Pilotage!$D$25))),\"\")","v":""},{"$f":"IF(E135<>\"\",IF($C$6<=0,0,IF($C$5=0,0,CUMIPMT($C$6/$C$8,$C$7*$C$8,$C$5,E135,E135,Pilotage!$D$25))),\"\")","v":""},{"$f":"IF(E135<>\"\",IF($C$5=0,0,IF($C$6<=0,C$13-E135*C$12,$C$5+CUMPRINC($C$6/$C$8,$C$7*$C$8,$C$5,1,E135,Pilotage!$D$25))),\"\")","v":""},null,null,null,null,null,{"$f":"IF(K135<>\"\",-1*CUMIPMT($C$6/$C$8,$C$7*$C$8,$C$5,M135,N135,Pilotage!$D$25),\"\")","v":""}]
[null,null,null,null,{"$f":"IF(E135<$C$10,E135+1,\"\")","v":""},{"$f":"IF(E136<>\"\",EDATE(F135,$C$11),\"\")","v":""},{"$f":"IF(E136<>\"\",IF($C$5=0,0,IF($C$6<=0,0,CUMIPMT($C$6/$C$8,$C$7*$C$8,$C$5,1,E136,Pilotage!$D$25))),\"\")","v":""},{"$f":"IF(E136<>\"\",IF($C$6<=0,0,IF($C$5=0,0,CUMIPMT($C$6/$C$8,$C$7*$C$8,$C$5,E136,E136,Pilotage!$D$25))),\"\")","v":""},{"$f":"IF(E136<>\"\",IF($C$5=0,0,IF($C$6<=0,C$13-E136*C$12,$C$5+CUMPRINC($C$6/$C$8,$C$7*$C$8,$C$5,1,E136,Pilotage!$D$25))),\"\")","v":""},null,null,null,null,null,{"$f":"IF(K136<>\"\",-1*CUMIPMT($C$6/$C$8,$C$7*$C$8,$C$5,M136,N136,Pilotage!$D$25),\"\")","v":""}]
[null,null,null,null,"","",{"$f":"IF(E137<>\"\",IF($C$5=0,0,IF($C$6<=0,0,CUMIPMT($C$6/$C$8,$C$7*$C$8,$C$5,1,E137,Pilotage!$D$25))),\"\")","v":""},{"$f":"IF(E137<>\"\",IF($C$6<=0,0,IF($C$5=0,0,CUMIPMT($C$6/$C$8,$C$7*$C$8,$C$5,E137,E137,Pilotage!$D$25))),\"\")","v":""},{"$f":"IF(E137<>\"\",IF($C$5=0,0,IF($C$6<=0,C$13-E137*C$12,$C$5+CUMPRINC($C$6/$C$8,$C$7*$C$8,$C$5,1,E137,Pilotage!$D$25))),\"\")","v":""},null,null,null,null,null,{"$f":"IF(K137<>\"\",-1*CUMIPMT($C$6/$C$8,$C$7*$C$8,$C$5,M137,N137,Pilotage!$D$25),\"\")","v":""}]
[null,null,null,null,"","",{"$f":"IF(E138<>\"\",IF($C$5=0,0,IF($C$6<=0,0,CUMIPMT($C$6/$C$8,$C$7*$C$8,$C$5,1,E138,Pilotage!$D$25))),\"\")","v":""},{"$f":"IF(E138<>\"\",IF($C$6<=0,0,IF($C$5=0,0,CUMIPMT($C$6/$C$8,$C$7*$C$8,$C$5,E138,E138,Pilotage!$D$25))),\"\")","v":""},{"$f":"IF(E138<>\"\",IF($C$5=0,0,IF($C$6<=0,C$13-E138*C$12,$C$5+CUMPRINC($C$6/$C$8,$C$7*$C$8,$C$5,1,E138,Pilotage!$D$25))),\"\")","v":""},null,null,null,null,null,{"$f":"IF(K138<>\"\",-1*CUMIPMT($C$6/$C$8,$C$7*$C$8,$C$5,M138,N138,Pilotage!$D$25),\"\")","v":""}]
[null,null,null,null,"","",{"$f":"IF(E139<>\"\",IF($C$5=0,0,IF($C$6<=0,0,CUMIPMT($C$6/$C$8,$C$7*$C$8,$C$5,1,E139,Pilotage!$D$25))),\"\")","v":""},{"$f":"IF(E139<>\"\",IF($C$6<=0,0,IF($C$5=0,0,CUMIPMT($C$6/$C$8,$C$7*$C$8,$C$5,E139,E139,Pilotage!$D$25))),\"\")","v":""},{"$f":"IF(E139<>\"\",IF($C$5=0,0,IF($C$6<=0,C$13-E139*C$12,$C$5+CUMPRINC($C$6/$C$8,$C$7*$C$8,$C$5,1,E139,Pilotage!$D$25))),\"\")","v":""},null,null,null,null,null,{"$f":"IF(K139<>\"\",-1*CUMIPMT($C$6/$C$8,$C$7*$C$8,$C$5,M139,N139,Pilotage!$D$25),\"\")","v":""}]
[null,null,null,null,"","",{"$f":"IF(E140<>\"\",IF($C$5=0,0,IF($C$6<=0,0,CUMIPMT($C$6/$C$8,$C$7*$C$8,$C$5,1,E140,Pilotage!$D$25))),\"\")","v":""},{"$f":"IF(E140<>\"\",IF($C$6<=0,0,IF($C$5=0,0,CUMIPMT($C$6/$C$8,$C$7*$C$8,$C$5,E140,E140,Pilotage!$D$25))),\"\")","v":""},{"$f":"IF(E140<>\"\",IF($C$5=0,0,IF($C$6<=0,C$13-E140*C$12,$C$5+CUMPRINC($C$6/$C$8,$C$7*$C$8,$C$5,1,E140,Pilotage!$D$25))),\"\")","v":""},null,null,null,null,null,{"$f":"IF(K140<>\"\",-1*CUMIPMT($C$6/$C$8,$C$7*$C$8,$C$5,M140,N140,Pilotage!$D$25),\"\")","v":""}]
[null,null,null,null,"","",{"$f":"IF(E141<>\"\",IF($C$5=0,0,IF($C$6<=0,0,CUMIPMT($C$6/$C$8,$C$7*$C$8,$C$5,1,E141,Pilotage!$D$25))),\"\")","v":""},{"$f":"IF(E141<>\"\",IF($C$6<=0,0,IF($C$5=0,0,CUMIPMT($C$6/$C$8,$C$7*$C$8,$C$5,E141,E141,Pilotage!$D$25))),\"\")","v":""},{"$f":"IF(E141<>\"\",IF($C$5=0,0,IF($C$6<=0,C$13-E141*C$12,$C$5+CUMPRINC($C$6/$C$8,$C$7*$C$8,$C$5,1,E141,Pilotage!$D$25))),\"\")","v":""},null,null,null,null,null,{"$f":"IF(K141<>\"\",-1*CUMIPMT($C$6/$C$8,$C$7*$C$8,$C$5,M141,N141,Pilotage!$D$25),\"\")","v":""}]
[null,null,null,null,"","",{"$f":"IF(E142<>\"\",IF($C$5=0,0,IF($C$6<=0,0,CUMIPMT($C$6/$C$8,$C$7*$C$8,$C$5,1,E142,Pilotage!$D$25))),\"\")","v":""},{"$f":"IF(E142<>\"\",IF($C$6<=0,0,IF($C$5=0,0,CUMIPMT($C$6/$C$8,$C$7*$C$8,$C$5,E142,E142,Pilotage!$D$25))),\"\")","v":""},{"$f":"IF(E142<>\"\",IF($C$5=0,0,IF($C$6<=0,C$13-E142*C$12,$C$5+CUMPRINC($C$6/$C$8,$C$7*$C$8,$C$5,1,E142,Pilotage!$D$25))),\"\")","v":""},null,null,null,null,null,{"$f":"IF(K142<>\"\",-1*CUMIPMT($C$6/$C$8,$C$7*$C$8,$C$5,M142,N142,Pilotage!$D$25),\"\")","v":""}]
[null,null,null,null,"","",{"$f":"IF(E143<>\"\",IF($C$5=0,0,IF($C$6<=0,0,CUMIPMT($C$6/$C$8,$C$7*$C$8,$C$5,1,E143,Pilotage!$D$25))),\"\")","v":""},{"$f":"IF(E143<>\"\",IF($C$6<=0,0,IF($C$5=0,0,CUMIPMT($C$6/$C$8,$C$7*$C$8,$C$5,E143,E143,Pilotage!$D$25))),\"\")","v":""},{"$f":"IF(E143<>\"\",IF($C$5=0,0,IF($C$6<=0,C$13-E143*C$12,$C$5+CUMPRINC($C$6/$C$8,$C$7*$C$8,$C$5,1,E143,Pilotage!$D$25))),\"\")","v":""},null,null,null,null,null,{"$f":"IF(K143<>\"\",-1*CUMIPMT($C$6/$C$8,$C$7*$C$8,$C$5,M143,N143,Pilotage!$D$25),\"\")","v":""}]
[null,null,null,null,"","",{"$f":"IF(E144<>\"\",IF($C$5=0,0,IF($C$6<=0,0,CUMIPMT($C$6/$C$8,$C$7*$C$8,$C$5,1,E144,Pilotage!$D$25))),\"\")","v":""},{"$f":"IF(E144<>\"\",IF($C$6<=0,0,IF($C$5=0,0,CUMIPMT($C$6/$C$8,$C$7*$C$8,$C$5,E144,E144,Pilotage!$D$25))),\"\")","v":""},{"$f":"IF(E144<>\"\",IF($C$5=0,0,IF($C$6<=0,C$13-E144*C$12,$C$5+CUMPRINC($C$6/$C$8,$C$7*$C$8,$C$5,1,E144,Pilotage!$D$25))),\"\")","v":""},null,null,null,null,null,{"$f":"IF(K144<>\"\",-1*CUMIPMT($C$6/$C$8,$C$7*$C$8,$C$5,M144,N144,Pilotage!$D$25),\"\")","v":""}]
[null,null,null,null,"","",{"$f":"IF(E145<>\"\",IF($C$5=0,0,IF($C$6<=0,0,CUMIPMT($C$6/$C$8,$C$7*$C$8,$C$5,1,E145,Pilotage!$D$25))),\"\")","v":""},{"$f":"IF(E145<>\"\",IF($C$6<=0,0,IF($C$5=0,0,CUMIPMT($C$6/$C$8,$C$7*$C$8,$C$5,E145,E145,Pilotage!$D$25))),\"\")","v":""},{"$f":"IF(E145<>\"\",IF($C$5=0,0,IF($C$6<=0,C$13-E145*C$12,$C$5+CUMPRINC($C$6/$C$8,$C$7*$C$8,$C$5,1,E145,Pilotage!$D$25))),\"\")","v":""},null,null,null,null,null,{"$f":"IF(K145<>\"\",-1*CUMIPMT($C$6/$C$8,$C$7*$C$8,$C$5,M145,N145,Pilotage!$D$25),\"\")","v":""}]
[null,null,null,null,"","",{"$f":"IF(E146<>\"\",IF($C$5=0,0,IF($C$6<=0,0,CUMIPMT($C$6/$C$8,$C$7*$C$8,$C$5,1,E146,Pilotage!$D$25))),\"\")","v":""},{"$f":"IF(E146<>\"\",IF($C$6<=0,0,IF($C$5=0,0,CUMIPMT($C$6/$C$8,$C$7*$C$8,$C$5,E146,E146,Pilotage!$D$25))),\"\")","v":""},{"$f":"IF(E146<>\"\",IF($C$5=0,0,IF($C$6<=0,C$13-E146*C$12,$C$5+CUMPRINC($C$6/$C$8,$C$7*$C$8,$C$5,1,E146,Pilotage!$D$25))),\"\")","v":""},null,null,null,null,null,{"$f":"IF(K146<>\"\",-1*CUMIPMT($C$6/$C$8,$C$7*$C$8,$C$5,M146,N146,Pilotage!$D$25),\"\")","v":""}]
[null,null,null,null,"","",{"$f":"IF(E147<>\"\",IF($C$5=0,0,IF($C$6<=0,0,CUMIPMT($C$6/$C$8,$C$7*$C$8,$C$5,1,E147,Pilotage!$D$25))),\"\")","v":""},{"$f":"IF(E147<>\"\",IF($C$6<=0,0,IF($C$5=0,0,CUMIPMT($C$6/$C$8,$C$7*$C$8,$C$5,E147,E147,Pilotage!$D$25))),\"\")","v":""},{"$f":"IF(E147<>\"\",IF($C$5=0,0,IF($C$6<=0,C$13-E147*C$12,$C$5+CUMPRINC($C$6/$C$8,$C$7*$C$8,$C$5,1,E147,Pilotage!$D$25))),\"\")","v":""},null,null,null,null,null,{"$f":"IF(K147<>\"\",-1*CUMIPMT($C$6/$C$8,$C$7*$C$8,$C$5,M147,N147,Pilotage!$D$25),\"\")","v":""}]
[null,null,null,null,"","",{"$f":"IF(E148<>\"\",IF($C$5=0,0,IF($C$6<=0,0,CUMIPMT($C$6/$C$8,$C$7*$C$8,$C$5,1,E148,Pilotage!$D$25))),\"\")","v":""},{"$f":"IF(E148<>\"\",IF($C$6<=0,0,IF($C$5=0,0,CUMIPMT($C$6/$C$8,$C$7*$C$8,$C$5,E148,E148,Pilotage!$D$25))),\"\")","v":""},{"$f":"IF(E148<>\"\",IF($C$5=0,0,IF($C$6<=0,C$13-E148*C$12,$C$5+CUMPRINC($C$6/$C$8,$C$7*$C$8,$C$5,1,E148,Pilotage!$D$25))),\"\")","v":""},null,null,null,null,null,{"$f":"IF(K148<>\"\",-1*CUMIPMT($C$6/$C$8,$C$7*$C$8,$C$5,M148,N148,Pilotage!$D$25),\"\")","v":""}]
[null,null,null,null,"","",{"$f":"IF(E149<>\"\",IF($C$5=0,0,IF($C$6<=0,0,CUMIPMT($C$6/$C$8,$C$7*$C$8,$C$5,1,E149,Pilotage!$D$25))),\"\")","v":""},{"$f":"IF(E149<>\"\",IF($C$6<=0,0,IF($C$5=0,0,CUMIPMT($C$6/$C$8,$C$7*$C$8,$C$5,E149,E149,Pilotage!$D$25))),\"\")","v":""},{"$f":"IF(E149<>\"\",IF($C$5=0,0,IF($C$6<=0,C$13-E149*C$12,$C$5+CUMPRINC($C$6/$C$8,$C$7*$C$8,$C$5,1,E149,Pilotage!$D$25))),\"\")","v":""},null,null,null,null,null,{"$f":"IF(K149<>\"\",-1*CUMIPMT($C$6/$C$8,$C$7*$C$8,$C$5,M149,N149,Pilotage!$D$25),\"\")","v":""}]
[null,null,null,null,"","",{"$f":"IF(E150<>\"\",IF($C$5=0,0,IF($C$6<=0,0,CUMIPMT($C$6/$C$8,$C$7*$C$8,$C$5,1,E150,Pilotage!$D$25))),\"\")","v":""},{"$f":"IF(E150<>\"\",IF($C$6<=0,0,IF($C$5=0,0,CUMIPMT($C$6/$C$8,$C$7*$C$8,$C$5,E150,E150,Pilotage!$D$25))),\"\")","v":""},{"$f":"IF(E150<>\"\",IF($C$5=0,0,IF($C$6<=0,C$13-E150*C$12,$C$5+CUMPRINC($C$6/$C$8,$C$7*$C$8,$C$5,1,E150,Pilotage!$D$25))),\"\")","v":""},null,null,null,null,null,{"$f":"IF(K150<>\"\",-1*CUMIPMT($C$6/$C$8,$C$7*$C$8,$C$5,M150,N150,Pilotage!$D$25),\"\")","v":""}]
[null,null,null,null,"","",{"$f":"IF(E151<>\"\",IF($C$5=0,0,IF($C$6<=0,0,CUMIPMT($C$6/$C$8,$C$7*$C$8,$C$5,1,E151,Pilotage!$D$25))),\"\")","v":""},{"$f":"IF(E151<>\"\",IF($C$6<=0,0,IF($C$5=0,0,CUMIPMT($C$6/$C$8,$C$7*$C$8,$C$5,E151,E151,Pilotage!$D$25))),\"\")","v":""},{"$f":"IF(E151<>\"\",IF($C$5=0,0,IF($C$6<=0,C$13-E151*C$12,$C$5+CUMPRINC($C$6/$C$8,$C$7*$C$8,$C$5,1,E151,Pilotage!$D$25))),\"\")","v":""},null,null,null,null,null,{"$f":"IF(K151<>\"\",-1*CUMIPMT($C$6/$C$8,$C$7*$C$8,$C$5,M151,N151,Pilotage!$D$25),\"\")","v":""}]
[null,null,null,null,"","",{"$f":"IF(E152<>\"\",IF($C$5=0,0,IF($C$6<=0,0,CUMIPMT($C$6/$C$8,$C$7*$C$8,$C$5,1,E152,Pilotage!$D$25))),\"\")","v":""},{"$f":"IF(E152<>\"\",IF($C$6<=0,0,IF($C$5=0,0,CUMIPMT($C$6/$C$8,$C$7*$C$8,$C$5,E152,E152,Pilotage!$D$25))),\"\")","v":""},{"$f":"IF(E152<>\"\",IF($C$5=0,0,IF($C$6<=0,C$13-E152*C$12,$C$5+CUMPRINC($C$6/$C$8,$C$7*$C$8,$C$5,1,E152,Pilotage!$D$25))),\"\")","v":""},null,null,null,null,null,{"$f":"IF(K152<>\"\",-1*CUMIPMT($C$6/$C$8,$C$7*$C$8,$C$5,M152,N152,Pilotage!$D$25),\"\")","v":""}]
[null,null,null,null,"","",{"$f":"IF(E153<>\"\",IF($C$5=0,0,IF($C$6<=0,0,CUMIPMT($C$6/$C$8,$C$7*$C$8,$C$5,1,E153,Pilotage!$D$25))),\"\")","v":""},{"$f":"IF(E153<>\"\",IF($C$6<=0,0,IF($C$5=0,0,CUMIPMT($C$6/$C$8,$C$7*$C$8,$C$5,E153,E153,Pilotage!$D$25))),\"\")","v":""},{"$f":"IF(E153<>\"\",IF($C$5=0,0,IF($C$6<=0,C$13-E153*C$12,$C$5+CUMPRINC($C$6/$C$8,$C$7*$C$8,$C$5,1,E153,Pilotage!$D$25))),\"\")","v":""},null,null,null,null,null,{"$f":"IF(K153<>\"\",-1*CUMIPMT($C$6/$C$8,$C$7*$C$8,$C$5,M153,N153,Pilotage!$D$25),\"\")","v":""}]
[null,null,null,null,"","",{"$f":"IF(E154<>\"\",IF($C$5=0,0,IF($C$6<=0,0,CUMIPMT($C$6/$C$8,$C$7*$C$8,$C$5,1,E154,Pilotage!$D$25))),\"\")","v":""},{"$f":"IF(E154<>\"\",IF($C$6<=0,0,IF($C$5=0,0,CUMIPMT($C$6/$C$8,$C$7*$C$8,$C$5,E154,E154,Pilotage!$D$25))),\"\")","v":""},{"$f":"IF(E154<>\"\",IF($C$5=0,0,IF($C$6<=0,C$13-E154*C$12,$C$5+CUMPRINC($C$6/$C$8,$C$7*$C$8,$C$5,1,E154,Pilotage!$D$25))),\"\")","v":""},null,null,null,null,null,{"$f":"IF(K154<>\"\",-1*CUMIPMT($C$6/$C$8,$C$7*$C$8,$C$5,M154,N154,Pilotage!$D$25),\"\")","v":""}]
[null,null,null,null,"","",{"$f":"IF(E155<>\"\",IF($C$5=0,0,IF($C$6<=0,0,CUMIPMT($C$6/$C$8,$C$7*$C$8,$C$5,1,E155,Pilotage!$D$25))),\"\")","v":""},{"$f":"IF(E155<>\"\",IF($C$6<=0,0,IF($C$5=0,0,CUMIPMT($C$6/$C$8,$C$7*$C$8,$C$5,E155,E155,Pilotage!$D$25))),\"\")","v":""},{"$f":"IF(E155<>\"\",IF($C$5=0,0,IF($C$6<=0,C$13-E155*C$12,$C$5+CUMPRINC($C$6/$C$8,$C$7*$C$8,$C$5,1,E155,Pilotage!$D$25))),\"\")","v":""},null,null,null,null,null,{"$f":"IF(K155<>\"\",-1*CUMIPMT($C$6/$C$8,$C$7*$C$8,$C$5,M155,N155,Pilotage!$D$25),\"\")","v":""}]
[null,null,null,null,"","",{"$f":"IF(E156<>\"\",IF($C$5=0,0,IF($C$6<=0,0,CUMIPMT($C$6/$C$8,$C$7*$C$8,$C$5,1,E156,Pilotage!$D$25))),\"\")","v":""},{"$f":"IF(E156<>\"\",IF($C$6<=0,0,IF($C$5=0,0,CUMIPMT($C$6/$C$8,$C$7*$C$8,$C$5,E156,E156,Pilotage!$D$25))),\"\")","v":""},{"$f":"IF(E156<>\"\",IF($C$5=0,0,IF($C$6<=0,C$13-E156*C$12,$C$5+CUMPRINC($C$6/$C$8,$C$7*$C$8,$C$5,1,E156,Pilotage!$D$25))),\"\")","v":""},null,null,null,null,null,{"$f":"IF(K156<>\"\",-1*CUMIPMT($C$6/$C$8,$C$7*$C$8,$C$5,M156,N156,Pilotage!$D$25),\"\")","v":""}]
[null,null,null,null,"","",{"$f":"IF(E157<>\"\",IF($C$5=0,0,IF($C$6<=0,0,CUMIPMT($C$6/$C$8,$C$7*$C$8,$C$5,1,E157,Pilotage!$D$25))),\"\")","v":""},{"$f":"IF(E157<>\"\",IF($C$6<=0,0,IF($C$5=0,0,CUMIPMT($C$6/$C$8,$C$7*$C$8,$C$5,E157,E157,Pilotage!$D$25))),\"\")","v":""},{"$f":"IF(E157<>\"\",IF($C$5=0,0,IF($C$6<=0,C$13-E157*C$12,$C$5+CUMPRINC($C$6/$C$8,$C$7*$C$8,$C$5,1,E157,Pilotage!$D$25))),\"\")","v":""},null,null,null,null,null,{"$f":"IF(K157<>\"\",-1*CUMIPMT($C$6/$C$8,$C$7*$C$8,$C$5,M157,N157,Pilotage!$D$25),\"\")","v":""}]
[null,null,null,null,"","",{"$f":"IF(E158<>\"\",IF($C$5=0,0,IF($C$6<=0,0,CUMIPMT($C$6/$C$8,$C$7*$C$8,$C$5,1,E158,Pilotage!$D$25))),\"\")","v":""},{"$f":"IF(E158<>\"\",IF($C$6<=0,0,IF($C$5=0,0,CUMIPMT($C$6/$C$8,$C$7*$C$8,$C$5,E158,E158,Pilotage!$D$25))),\"\")","v":""},{"$f":"IF(E158<>\"\",IF($C$5=0,0,IF($C$6<=0,C$13-E158*C$12,$C$5+CUMPRINC($C$6/$C$8,$C$7*$C$8,$C$5,1,E158,Pilotage!$D$25))),\"\")","v":""},null,null,null,null,null,{"$f":"IF(K158<>\"\",-1*CUMIPMT($C$6/$C$8,$C$7*$C$8,$C$5,M158,N158,Pilotage!$D$25),\"\")","v":""}]
[null,null,null,null,"","",{"$f":"IF(E159<>\"\",IF($C$5=0,0,IF($C$6<=0,0,CUMIPMT($C$6/$C$8,$C$7*$C$8,$C$5,1,E159,Pilotage!$D$25))),\"\")","v":""},{"$f":"IF(E159<>\"\",IF($C$6<=0,0,IF($C$5=0,0,CUMIPMT($C$6/$C$8,$C$7*$C$8,$C$5,E159,E159,Pilotage!$D$25))),\"\")","v":""},{"$f":"IF(E159<>\"\",IF($C$5=0,0,IF($C$6<=0,C$13-E159*C$12,$C$5+CUMPRINC($C$6/$C$8,$C$7*$C$8,$C$5,1,E159,Pilotage!$D$25))),\"\")","v":""},null,null,null,null,null,{"$f":"IF(K159<>\"\",-1*CUMIPMT($C$6/$C$8,$C$7*$C$8,$C$5,M159,N159,Pilotage!$D$25),\"\")","v":""}]
[null,null,null,null,"","",{"$f":"IF(E160<>\"\",IF($C$5=0,0,IF($C$6<=0,0,CUMIPMT($C$6/$C$8,$C$7*$C$8,$C$5,1,E160,Pilotage!$D$25))),\"\")","v":""},{"$f":"IF(E160<>\"\",IF($C$6<=0,0,IF($C$5=0,0,CUMIPMT($C$6/$C$8,$C$7*$C$8,$C$5,E160,E160,Pilotage!$D$25))),\"\")","v":""},{"$f":"IF(E160<>\"\",IF($C$5=0,0,IF($C$6<=0,C$13-E160*C$12,$C$5+CUMPRINC($C$6/$C$8,$C$7*$C$8,$C$5,1,E160,Pilotage!$D$25))),\"\")","v":""},null,null,null,null,null,{"$f":"IF(K160<>\"\",-1*CUMIPMT($C$6/$C$8,$C$7*$C$8,$C$5,M160,N160,Pilotage!$D$25),\"\")","v":""}]
[null,null,null,null,"","",{"$f":"IF(E161<>\"\",IF($C$5=0,0,IF($C$6<=0,0,CUMIPMT($C$6/$C$8,$C$7*$C$8,$C$5,1,E161,Pilotage!$D$25))),\"\")","v":""},{"$f":"IF(E161<>\"\",IF($C$6<=0,0,IF($C$5=0,0,CUMIPMT($C$6/$C$8,$C$7*$C$8,$C$5,E161,E161,Pilotage!$D$25))),\"\")","v":""},{"$f":"IF(E161<>\"\",IF($C$5=0,0,IF($C$6<=0,C$13-E161*C$12,$C$5+CUMPRINC($C$6/$C$8,$C$7*$C$8,$C$5,1,E161,Pilotage!$D$25))),\"\")","v":""},null,null,null,null,null,{"$f":"IF(K161<>\"\",-1*CUMIPMT($C$6/$C$8,$C$7*$C$8,$C$5,M161,N161,Pilotage!$D$25),\"\")","v":""}]
[null,null,null,null,"","",{"$f":"IF(E162<>\"\",IF($C$5=0,0,IF($C$6<=0,0,CUMIPMT($C$6/$C$8,$C$7*$C$8,$C$5,1,E162,Pilotage!$D$25))),\"\")","v":""},{"$f":"IF(E162<>\"\",IF($C$6<=0,0,IF($C$5=0,0,CUMIPMT($C$6/$C$8,$C$7*$C$8,$C$5,E162,E162,Pilotage!$D$25))),\"\")","v":""},{"$f":"IF(E162<>\"\",IF($C$5=0,0,IF($C$6<=0,C$13-E162*C$12,$C$5+CUMPRINC($C$6/$C$8,$C$7*$C$8,$C$5,1,E162,Pilotage!$D$25))),\"\")","v":""},null,null,null,null,null,{"$f":"IF(K162<>\"\",-1*CUMIPMT($C$6/$C$8,$C$7*$C$8,$C$5,M162,N162,Pilotage!$D$25),\"\")","v":""}]
[null,null,null,null,"","",{"$f":"IF(E163<>\"\",IF($C$5=0,0,IF($C$6<=0,0,CUMIPMT($C$6/$C$8,$C$7*$C$8,$C$5,1,E163,Pilotage!$D$25))),\"\")","v":""},{"$f":"IF(E163<>\"\",IF($C$6<=0,0,IF($C$5=0,0,CUMIPMT($C$6/$C$8,$C$7*$C$8,$C$5,E163,E163,Pilotage!$D$25))),\"\")","v":""},{"$f":"IF(E163<>\"\",IF($C$5=0,0,IF($C$6<=0,C$13-E163*C$12,$C$5+CUMPRINC($C$6/$C$8,$C$7*$C$8,$C$5,1,E163,Pilotage!$D$25))),\"\")","v":""},null,null,null,null,null,{"$f":"IF(K163<>\"\",-1*CUMIPMT($C$6/$C$8,$C$7*$C$8,$C$5,M163,N163,Pilotage!$D$25),\"\")","v":""}]
[null,null,null,null,"","",{"$f":"IF(E164<>\"\",IF($C$5=0,0,IF($C$6<=0,0,CUMIPMT($C$6/$C$8,$C$7*$C$8,$C$5,1,E164,Pilotage!$D$25))),\"\")","v":""},{"$f":"IF(E164<>\"\",IF($C$6<=0,0,IF($C$5=0,0,CUMIPMT($C$6/$C$8,$C$7*$C$8,$C$5,E164,E164,Pilotage!$D$25))),\"\")","v":""},{"$f":"IF(E164<>\"\",IF($C$5=0,0,IF($C$6<=0,C$13-E164*C$12,$C$5+CUMPRINC($C$6/$C$8,$C$7*$C$8,$C$5,1,E164,Pilotage!$D$25))),\"\")","v":""},null,null,null,null,null,{"$f":"IF(K164<>\"\",-1*CUMIPMT($C$6/$C$8,$C$7*$C$8,$C$5,M164,N164,Pilotage!$D$25),\"\")","v":""}]
[null,null,null,null,"","",{"$f":"IF(E165<>\"\",IF($C$5=0,0,IF($C$6<=0,0,CUMIPMT($C$6/$C$8,$C$7*$C$8,$C$5,1,E165,Pilotage!$D$25))),\"\")","v":""},{"$f":"IF(E165<>\"\",IF($C$6<=0,0,IF($C$5=0,0,CUMIPMT($C$6/$C$8,$C$7*$C$8,$C$5,E165,E165,Pilotage!$D$25))),\"\")","v":""},{"$f":"IF(E165<>\"\",IF($C$5=0,0,IF($C$6<=0,C$13-E165*C$12,$C$5+CUMPRINC($C$6/$C$8,$C$7*$C$8,$C$5,1,E165,Pilotage!$D$25))),\"\")","v":""},null,null,null,null,null,{"$f":"IF(K165<>\"\",-1*CUMIPMT($C$6/$C$8,$C$7*$C$8,$C$5,M165,N165,Pilotage!$D$25),\"\")","v":""}]
[null,null,null,null,"","",{"$f":"IF(E166<>\"\",IF($C$5=0,0,IF($C$6<=0,0,CUMIPMT($C$6/$C$8,$C$7*$C$8,$C$5,1,E166,Pilotage!$D$25))),\"\")","v":""},{"$f":"IF(E166<>\"\",IF($C$6<=0,0,IF($C$5=0,0,CUMIPMT($C$6/$C$8,$C$7*$C$8,$C$5,E166,E166,Pilotage!$D$25))),\"\")","v":""},{"$f":"IF(E166<>\"\",IF($C$5=0,0,IF($C$6<=0,C$13-E166*C$12,$C$5+CUMPRINC($C$6/$C$8,$C$7*$C$8,$C$5,1,E166,Pilotage!$D$25))),\"\")","v":""},null,null,null,null,null,{"$f":"IF(K166<>\"\",-1*CUMIPMT($C$6/$C$8,$C$7*$C$8,$C$5,M166,N166,Pilotage!$D$25),\"\")","v":""}]
[null,null,null,null,"","",{"$f":"IF(E167<>\"\",IF($C$5=0,0,IF($C$6<=0,0,CUMIPMT($C$6/$C$8,$C$7*$C$8,$C$5,1,E167,Pilotage!$D$25))),\"\")","v":""},{"$f":"IF(E167<>\"\",IF($C$6<=0,0,IF($C$5=0,0,CUMIPMT($C$6/$C$8,$C$7*$C$8,$C$5,E167,E167,Pilotage!$D$25))),\"\")","v":""},{"$f":"IF(E167<>\"\",IF($C$5=0,0,IF($C$6<=0,C$13-E167*C$12,$C$5+CUMPRINC($C$6/$C$8,$C$7*$C$8,$C$5,1,E167,Pilotage!$D$25))),\"\")","v":""},null,null,null,null,null,{"$f":"IF(K167<>\"\",-1*CUMIPMT($C$6/$C$8,$C$7*$C$8,$C$5,M167,N167,Pilotage!$D$25),\"\")","v":""}]
[null,null,null,null,"","",{"$f":"IF(E168<>\"\",IF($C$5=0,0,IF($C$6<=0,0,CUMIPMT($C$6/$C$8,$C$7*$C$8,$C$5,1,E168,Pilotage!$D$25))),\"\")","v":""},{"$f":"IF(E168<>\"\",IF($C$6<=0,0,IF($C$5=0,0,CUMIPMT($C$6/$C$8,$C$7*$C$8,$C$5,E168,E168,Pilotage!$D$25))),\"\")","v":""},{"$f":"IF(E168<>\"\",IF($C$5=0,0,IF($C$6<=0,C$13-E168*C$12,$C$5+CUMPRINC($C$6/$C$8,$C$7*$C$8,$C$5,1,E168,Pilotage!$D$25))),\"\")","v":""},null,null,null,null,null,{"$f":"IF(K168<>\"\",-1*CUMIPMT($C$6/$C$8,$C$7*$C$8,$C$5,M168,N168,Pilotage!$D$25),\"\")","v":""}]
[null,null,null,null,"","",{"$f":"IF(E169<>\"\",IF($C$5=0,0,IF($C$6<=0,0,CUMIPMT($C$6/$C$8,$C$7*$C$8,$C$5,1,E169,Pilotage!$D$25))),\"\")","v":""},{"$f":"IF(E169<>\"\",IF($C$6<=0,0,IF($C$5=0,0,CUMIPMT($C$6/$C$8,$C$7*$C$8,$C$5,E169,E169,Pilotage!$D$25))),\"\")","v":""},{"$f":"IF(E169<>\"\",IF($C$5=0,0,IF($C$6<=0,C$13-E169*C$12,$C$5+CUMPRINC($C$6/$C$8,$C$7*$C$8,$C$5,1,E169,Pilotage!$D$25))),\"\")","v":""},null,null,null,null,null,{"$f":"IF(K169<>\"\",-1*CUMIPMT($C$6/$C$8,$C$7*$C$8,$C$5,M169,N169,Pilotage!$D$25),\"\")","v":""}]
[null,null,null,null,"","",{"$f":"IF(E170<>\"\",IF($C$5=0,0,IF($C$6<=0,0,CUMIPMT($C$6/$C$8,$C$7*$C$8,$C$5,1,E170,Pilotage!$D$25))),\"\")","v":""},{"$f":"IF(E170<>\"\",IF($C$6<=0,0,IF($C$5=0,0,CUMIPMT($C$6/$C$8,$C$7*$C$8,$C$5,E170,E170,Pilotage!$D$25))),\"\")","v":""},{"$f":"IF(E170<>\"\",IF($C$5=0,0,IF($C$6<=0,C$13-E170*C$12,$C$5+CUMPRINC($C$6/$C$8,$C$7*$C$8,$C$5,1,E170,Pilotage!$D$25))),\"\")","v":""},null,null,null,null,null,{"$f":"IF(K170<>\"\",-1*CUMIPMT($C$6/$C$8,$C$7*$C$8,$C$5,M170,N170,Pilotage!$D$25),\"\")","v":""}]
[null,null,null,null,"","",{"$f":"IF(E171<>\"\",IF($C$5=0,0,IF($C$6<=0,0,CUMIPMT($C$6/$C$8,$C$7*$C$8,$C$5,1,E171,Pilotage!$D$25))),\"\")","v":""},{"$f":"IF(E171<>\"\",IF($C$6<=0,0,IF($C$5=0,0,CUMIPMT($C$6/$C$8,$C$7*$C$8,$C$5,E171,E171,Pilotage!$D$25))),\"\")","v":""},{"$f":"IF(E171<>\"\",IF($C$5=0,0,IF($C$6<=0,C$13-E171*C$12,$C$5+CUMPRINC($C$6/$C$8,$C$7*$C$8,$C$5,1,E171,Pilotage!$D$25))),\"\")","v":""},null,null,null,null,null,{"$f":"IF(K171<>\"\",-1*CUMIPMT($C$6/$C$8,$C$7*$C$8,$C$5,M171,N171,Pilotage!$D$25),\"\")","v":""}]
[null,null,null,null,"","",{"$f":"IF(E172<>\"\",IF($C$5=0,0,IF($C$6<=0,0,CUMIPMT($C$6/$C$8,$C$7*$C$8,$C$5,1,E172,Pilotage!$D$25))),\"\")","v":""},{"$f":"IF(E172<>\"\",IF($C$6<=0,0,IF($C$5=0,0,CUMIPMT($C$6/$C$8,$C$7*$C$8,$C$5,E172,E172,Pilotage!$D$25))),\"\")","v":""},{"$f":"IF(E172<>\"\",IF($C$5=0,0,IF($C$6<=0,C$13-E172*C$12,$C$5+CUMPRINC($C$6/$C$8,$C$7*$C$8,$C$5,1,E172,Pilotage!$D$25))),\"\")","v":""},null,null,null,null,null,{"$f":"IF(K172<>\"\",-1*CUMIPMT($C$6/$C$8,$C$7*$C$8,$C$5,M172,N172,Pilotage!$D$25),\"\")","v":""}]
[null,null,null,null,"","",{"$f":"IF(E173<>\"\",IF($C$5=0,0,IF($C$6<=0,0,CUMIPMT($C$6/$C$8,$C$7*$C$8,$C$5,1,E173,Pilotage!$D$25))),\"\")","v":""},{"$f":"IF(E173<>\"\",IF($C$6<=0,0,IF($C$5=0,0,CUMIPMT($C$6/$C$8,$C$7*$C$8,$C$5,E173,E173,Pilotage!$D$25))),\"\")","v":""},{"$f":"IF(E173<>\"\",IF($C$5=0,0,IF($C$6<=0,C$13-E173*C$12,$C$5+CUMPRINC($C$6/$C$8,$C$7*$C$8,$C$5,1,E173,Pilotage!$D$25))),\"\")","v":""},null,null,null,null,null,{"$f":"IF(K173<>\"\",-1*CUMIPMT($C$6/$C$8,$C$7*$C$8,$C$5,M173,N173,Pilotage!$D$25),\"\")","v":""}]
[null,null,null,null,"","",{"$f":"IF(E174<>\"\",IF($C$5=0,0,IF($C$6<=0,0,CUMIPMT($C$6/$C$8,$C$7*$C$8,$C$5,1,E174,Pilotage!$D$25))),\"\")","v":""},{"$f":"IF(E174<>\"\",IF($C$6<=0,0,IF($C$5=0,0,CUMIPMT($C$6/$C$8,$C$7*$C$8,$C$5,E174,E174,Pilotage!$D$25))),\"\")","v":""},{"$f":"IF(E174<>\"\",IF($C$5=0,0,IF($C$6<=0,C$13-E174*C$12,$C$5+CUMPRINC($C$6/$C$8,$C$7*$C$8,$C$5,1,E174,Pilotage!$D$25))),\"\")","v":""},null,null,null,null,null,{"$f":"IF(K174<>\"\",-1*CUMIPMT($C$6/$C$8,$C$7*$C$8,$C$5,M174,N174,Pilotage!$D$25),\"\")","v":""}]
[null,null,null,null,"","",{"$f":"IF(E175<>\"\",IF($C$5=0,0,IF($C$6<=0,0,CUMIPMT($C$6/$C$8,$C$7*$C$8,$C$5,1,E175,Pilotage!$D$25))),\"\")","v":""},{"$f":"IF(E175<>\"\",IF($C$6<=0,0,IF($C$5=0,0,CUMIPMT($C$6/$C$8,$C$7*$C$8,$C$5,E175,E175,Pilotage!$D$25))),\"\")","v":""},{"$f":"IF(E175<>\"\",IF($C$5=0,0,IF($C$6<=0,C$13-E175*C$12,$C$5+CUMPRINC($C$6/$C$8,$C$7*$C$8,$C$5,1,E175,Pilotage!$D$25))),\"\")","v":""},null,null,null,null,null,{"$f":"IF(K175<>\"\",-1*CUMIPMT($C$6/$C$8,$C$7*$C$8,$C$5,M175,N175,Pilotage!$D$25),\"\")","v":""}]
[null,null,null,null,"","",{"$f":"IF(E176<>\"\",IF($C$5=0,0,IF($C$6<=0,0,CUMIPMT($C$6/$C$8,$C$7*$C$8,$C$5,1,E176,Pilotage!$D$25))),\"\")","v":""},{"$f":"IF(E176<>\"\",IF($C$6<=0,0,IF($C$5=0,0,CUMIPMT($C$6/$C$8,$C$7*$C$8,$C$5,E176,E176,Pilotage!$D$25))),\"\")","v":""},{"$f":"IF(E176<>\"\",IF($C$5=0,0,IF($C$6<=0,C$13-E176*C$12,$C$5+CUMPRINC($C$6/$C$8,$C$7*$C$8,$C$5,1,E176,Pilotage!$D$25))),\"\")","v":""},null,null,null,null,null,{"$f":"IF(K176<>\"\",-1*CUMIPMT($C$6/$C$8,$C$7*$C$8,$C$5,M176,N176,Pilotage!$D$25),\"\")","v":""}]
[null,null,null,null,"","",{"$f":"IF(E177<>\"\",IF($C$5=0,0,IF($C$6<=0,0,CUMIPMT($C$6/$C$8,$C$7*$C$8,$C$5,1,E177,Pilotage!$D$25))),\"\")","v":""},{"$f":"IF(E177<>\"\",IF($C$6<=0,0,IF($C$5=0,0,CUMIPMT($C$6/$C$8,$C$7*$C$8,$C$5,E177,E177,Pilotage!$D$25))),\"\")","v":""},{"$f":"IF(E177<>\"\",IF($C$5=0,0,IF($C$6<=0,C$13-E177*C$12,$C$5+CUMPRINC($C$6/$C$8,$C$7*$C$8,$C$5,1,E177,Pilotage!$D$25))),\"\")","v":""},null,null,null,null,null,{"$f":"IF(K177<>\"\",-1*CUMIPMT($C$6/$C$8,$C$7*$C$8,$C$5,M177,N177,Pilotage!$D$25),\"\")","v":""}]
[null,null,null,null,"","",{"$f":"IF(E178<>\"\",IF($C$5=0,0,IF($C$6<=0,0,CUMIPMT($C$6/$C$8,$C$7*$C$8,$C$5,1,E178,Pilotage!$D$25))),\"\")","v":""},{"$f":"IF(E178<>\"\",IF($C$6<=0,0,IF($C$5=0,0,CUMIPMT($C$6/$C$8,$C$7*$C$8,$C$5,E178,E178,Pilotage!$D$25))),\"\")","v":""},{"$f":"IF(E178<>\"\",IF($C$5=0,0,IF($C$6<=0,C$13-E178*C$12,$C$5+CUMPRINC($C$6/$C$8,$C$7*$C$8,$C$5,1,E178,Pilotage!$D$25))),\"\")","v":""},null,null,null,null,null,{"$f":"IF(K178<>\"\",-1*CUMIPMT($C$6/$C$8,$C$7*$C$8,$C$5,M178,N178,Pilotage!$D$25),\"\")","v":""}]
[null,null,null,null,"","",{"$f":"IF(E179<>\"\",IF($C$5=0,0,IF($C$6<=0,0,CUMIPMT($C$6/$C$8,$C$7*$C$8,$C$5,1,E179,Pilotage!$D$25))),\"\")","v":""},{"$f":"IF(E179<>\"\",IF($C$6<=0,0,IF($C$5=0,0,CUMIPMT($C$6/$C$8,$C$7*$C$8,$C$5,E179,E179,Pilotage!$D$25))),\"\")","v":""},{"$f":"IF(E179<>\"\",IF($C$5=0,0,IF($C$6<=0,C$13-E179*C$12,$C$5+CUMPRINC($C$6/$C$8,$C$7*$C$8,$C$5,1,E179,Pilotage!$D$25))),\"\")","v":""},null,null,null,null,null,{"$f":"IF(K179<>\"\",-1*CUMIPMT($C$6/$C$8,$C$7*$C$8,$C$5,M179,N179,Pilotage!$D$25),\"\")","v":""}]
[null,null,null,null,"","",{"$f":"IF(E180<>\"\",IF($C$5=0,0,IF($C$6<=0,0,CUMIPMT($C$6/$C$8,$C$7*$C$8,$C$5,1,E180,Pilotage!$D$25))),\"\")","v":""},{"$f":"IF(E180<>\"\",IF($C$6<=0,0,IF($C$5=0,0,CUMIPMT($C$6/$C$8,$C$7*$C$8,$C$5,E180,E180,Pilotage!$D$25))),\"\")","v":""},{"$f":"IF(E180<>\"\",IF($C$5=0,0,IF($C$6<=0,C$13-E180*C$12,$C$5+CUMPRINC($C$6/$C$8,$C$7*$C$8,$C$5,1,E180,Pilotage!$D$25))),\"\")","v":""},null,null,null,null,null,{"$f":"IF(K180<>\"\",-1*CUMIPMT($C$6/$C$8,$C$7*$C$8,$C$5,M180,N180,Pilotage!$D$25),\"\")","v":""}]
[null,null,null,null,"","",{"$f":"IF(E181<>\"\",IF($C$5=0,0,IF($C$6<=0,0,CUMIPMT($C$6/$C$8,$C$7*$C$8,$C$5,1,E181,Pilotage!$D$25))),\"\")","v":""},{"$f":"IF(E181<>\"\",IF($C$6<=0,0,IF($C$5=0,0,CUMIPMT($C$6/$C$8,$C$7*$C$8,$C$5,E181,E181,Pilotage!$D$25))),\"\")","v":""},{"$f":"IF(E181<>\"\",IF($C$5=0,0,IF($C$6<=0,C$13-E181*C$12,$C$5+CUMPRINC($C$6/$C$8,$C$7*$C$8,$C$5,1,E181,Pilotage!$D$25))),\"\")","v":""},null,null,null,null,null,{"$f":"IF(K181<>\"\",-1*CUMIPMT($C$6/$C$8,$C$7*$C$8,$C$5,M181,N181,Pilotage!$D$25),\"\")","v":""}]
[null,null,null,null,"","",{"$f":"IF(E182<>\"\",IF($C$5=0,0,IF($C$6<=0,0,CUMIPMT($C$6/$C$8,$C$7*$C$8,$C$5,1,E182,Pilotage!$D$25))),\"\")","v":""},{"$f":"IF(E182<>\"\",IF($C$6<=0,0,IF($C$5=0,0,CUMIPMT($C$6/$C$8,$C$7*$C$8,$C$5,E182,E182,Pilotage!$D$25))),\"\")","v":""},{"$f":"IF(E182<>\"\",IF($C$5=0,0,IF($C$6<=0,C$13-E182*C$12,$C$5+CUMPRINC($C$6/$C$8,$C$7*$C$8,$C$5,1,E182,Pilotage!$D$25))),\"\")","v":""},null,null,null,null,null,{"$f":"IF(K182<>\"\",-1*CUMIPMT($C$6/$C$8,$C$7*$C$8,$C$5,M182,N182,Pilotage!$D$25),\"\")","v":""}]
[null,null,null,null,"","",{"$f":"IF(E183<>\"\",IF($C$5=0,0,IF($C$6<=0,0,CUMIPMT($C$6/$C$8,$C$7*$C$8,$C$5,1,E183,Pilotage!$D$25))),\"\")","v":""},{"$f":"IF(E183<>\"\",IF($C$6<=0,0,IF($C$5=0,0,CUMIPMT($C$6/$C$8,$C$7*$C$8,$C$5,E183,E183,Pilotage!$D$25))),\"\")","v":""},{"$f":"IF(E183<>\"\",IF($C$5=0,0,IF($C$6<=0,C$13-E183*C$12,$C$5+CUMPRINC($C$6/$C$8,$C$7*$C$8,$C$5,1,E183,Pilotage!$D$25))),\"\")","v":""},null,null,null,null,null,{"$f":"IF(K183<>\"\",-1*CUMIPMT($C$6/$C$8,$C$7*$C$8,$C$5,M183,N183,Pilotage!$D$25),\"\")","v":""}]
[null,null,null,null,"","",{"$f":"IF(E184<>\"\",IF($C$5=0,0,IF($C$6<=0,0,CUMIPMT($C$6/$C$8,$C$7*$C$8,$C$5,1,E184,Pilotage!$D$25))),\"\")","v":""},{"$f":"IF(E184<>\"\",IF($C$6<=0,0,IF($C$5=0,0,CUMIPMT($C$6/$C$8,$C$7*$C$8,$C$5,E184,E184,Pilotage!$D$25))),\"\")","v":""},{"$f":"IF(E184<>\"\",IF($C$5=0,0,IF($C$6<=0,C$13-E184*C$12,$C$5+CUMPRINC($C$6/$C$8,$C$7*$C$8,$C$5,1,E184,Pilotage!$D$25))),\"\")","v":""},null,null,null,null,null,{"$f":"IF(K184<>\"\",-1*CUMIPMT($C$6/$C$8,$C$7*$C$8,$C$5,M184,N184,Pilotage!$D$25),\"\")","v":""}]
[null,null,null,null,"","",{"$f":"IF(E185<>\"\",IF($C$5=0,0,IF($C$6<=0,0,CUMIPMT($C$6/$C$8,$C$7*$C$8,$C$5,1,E185,Pilotage!$D$25))),\"\")","v":""},{"$f":"IF(E185<>\"\",IF($C$6<=0,0,IF($C$5=0,0,CUMIPMT($C$6/$C$8,$C$7*$C$8,$C$5,E185,E185,Pilotage!$D$25))),\"\")","v":""},{"$f":"IF(E185<>\"\",IF($C$5=0,0,IF($C$6<=0,C$13-E185*C$12,$C$5+CUMPRINC($C$6/$C$8,$C$7*$C$8,$C$5,1,E185,Pilotage!$D$25))),\"\")","v":""},null,null,null,null,null,{"$f":"IF(K185<>\"\",-1*CUMIPMT($C$6/$C$8,$C$7*$C$8,$C$5,M185,N185,Pilotage!$D$25),\"\")","v":""}]
[null,null,null,null,"","",{"$f":"IF(E186<>\"\",IF($C$5=0,0,IF($C$6<=0,0,CUMIPMT($C$6/$C$8,$C$7*$C$8,$C$5,1,E186,Pilotage!$D$25))),\"\")","v":""},{"$f":"IF(E186<>\"\",IF($C$6<=0,0,IF($C$5=0,0,CUMIPMT($C$6/$C$8,$C$7*$C$8,$C$5,E186,E186,Pilotage!$D$25))),\"\")","v":""},{"$f":"IF(E186<>\"\",IF($C$5=0,0,IF($C$6<=0,C$13-E186*C$12,$C$5+CUMPRINC($C$6/$C$8,$C$7*$C$8,$C$5,1,E186,Pilotage!$D$25))),\"\")","v":""},null,null,null,null,null,{"$f":"IF(K186<>\"\",-1*CUMIPMT($C$6/$C$8,$C$7*$C$8,$C$5,M186,N186,Pilotage!$D$25),\"\")","v":""}]
[null,null,null,null,"","",{"$f":"IF(E187<>\"\",IF($C$5=0,0,IF($C$6<=0,0,CUMIPMT($C$6/$C$8,$C$7*$C$8,$C$5,1,E187,Pilotage!$D$25))),\"\")","v":""},{"$f":"IF(E187<>\"\",IF($C$6<=0,0,IF($C$5=0,0,CUMIPMT($C$6/$C$8,$C$7*$C$8,$C$5,E187,E187,Pilotage!$D$25))),\"\")","v":""},{"$f":"IF(E187<>\"\",IF($C$5=0,0,IF($C$6<=0,C$13-E187*C$12,$C$5+CUMPRINC($C$6/$C$8,$C$7*$C$8,$C$5,1,E187,Pilotage!$D$25))),\"\")","v":""},null,null,null,null,null,{"$f":"IF(K187<>\"\",-1*CUMIPMT($C$6/$C$8,$C$7*$C$8,$C$5,M187,N187,Pilotage!$D$25),\"\")","v":""}]
[null,null,null,null,"","",{"$f":"IF(E188<>\"\",IF($C$5=0,0,IF($C$6<=0,0,CUMIPMT($C$6/$C$8,$C$7*$C$8,$C$5,1,E188,Pilotage!$D$25))),\"\")","v":""},{"$f":"IF(E188<>\"\",IF($C$6<=0,0,IF($C$5=0,0,CUMIPMT($C$6/$C$8,$C$7*$C$8,$C$5,E188,E188,Pilotage!$D$25))),\"\")","v":""},{"$f":"IF(E188<>\"\",IF($C$5=0,0,IF($C$6<=0,C$13-E188*C$12,$C$5+CUMPRINC($C$6/$C$8,$C$7*$C$8,$C$5,1,E188,Pilotage!$D$25))),\"\")","v":""},null,null,null,null,null,{"$f":"IF(K188<>\"\",-1*CUMIPMT($C$6/$C$8,$C$7*$C$8,$C$5,M188,N188,Pilotage!$D$25),\"\")","v":""}]
[null,null,null,null,"","",{"$f":"IF(E189<>\"\",IF($C$5=0,0,IF($C$6<=0,0,CUMIPMT($C$6/$C$8,$C$7*$C$8,$C$5,1,E189,Pilotage!$D$25))),\"\")","v":""},{"$f":"IF(E189<>\"\",IF($C$6<=0,0,IF($C$5=0,0,CUMIPMT($C$6/$C$8,$C$7*$C$8,$C$5,E189,E189,Pilotage!$D$25))),\"\")","v":""},{"$f":"IF(E189<>\"\",IF($C$5=0,0,IF($C$6<=0,C$13-E189*C$12,$C$5+CUMPRINC($C$6/$C$8,$C$7*$C$8,$C$5,1,E189,Pilotage!$D$25))),\"\")","v":""},null,null,null,null,null,{"$f":"IF(K189<>\"\",-1*CUMIPMT($C$6/$C$8,$C$7*$C$8,$C$5,M189,N189,Pilotage!$D$25),\"\")","v":""}]
[null,null,null,null,"","",{"$f":"IF(E190<>\"\",IF($C$5=0,0,IF($C$6<=0,0,CUMIPMT($C$6/$C$8,$C$7*$C$8,$C$5,1,E190,Pilotage!$D$25))),\"\")","v":""},{"$f":"IF(E190<>\"\",IF($C$6<=0,0,IF($C$5=0,0,CUMIPMT($C$6/$C$8,$C$7*$C$8,$C$5,E190,E190,Pilotage!$D$25))),\"\")","v":""},{"$f":"IF(E190<>\"\",IF($C$5=0,0,IF($C$6<=0,C$13-E190*C$12,$C$5+CUMPRINC($C$6/$C$8,$C$7*$C$8,$C$5,1,E190,Pilotage!$D$25))),\"\")","v":""},null,null,null,null,null,{"$f":"IF(K190<>\"\",-1*CUMIPMT($C$6/$C$8,$C$7*$C$8,$C$5,M190,N190,Pilotage!$D$25),\"\")","v":""}]
[null,null,null,null,"","",{"$f":"IF(E191<>\"\",IF($C$5=0,0,IF($C$6<=0,0,CUMIPMT($C$6/$C$8,$C$7*$C$8,$C$5,1,E191,Pilotage!$D$25))),\"\")","v":""},{"$f":"IF(E191<>\"\",IF($C$6<=0,0,IF($C$5=0,0,CUMIPMT($C$6/$C$8,$C$7*$C$8,$C$5,E191,E191,Pilotage!$D$25))),\"\")","v":""},{"$f":"IF(E191<>\"\",IF($C$5=0,0,IF($C$6<=0,C$13-E191*C$12,$C$5+CUMPRINC($C$6/$C$8,$C$7*$C$8,$C$5,1,E191,Pilotage!$D$25))),\"\")","v":""},null,null,null,null,null,{"$f":"IF(K191<>\"\",-1*CUMIPMT($C$6/$C$8,$C$7*$C$8,$C$5,M191,N191,Pilotage!$D$25),\"\")","v":""}]
[null,null,null,null,"","",{"$f":"IF(E192<>\"\",IF($C$5=0,0,IF($C$6<=0,0,CUMIPMT($C$6/$C$8,$C$7*$C$8,$C$5,1,E192,Pilotage!$D$25))),\"\")","v":""},{"$f":"IF(E192<>\"\",IF($C$6<=0,0,IF($C$5=0,0,CUMIPMT($C$6/$C$8,$C$7*$C$8,$C$5,E192,E192,Pilotage!$D$25))),\"\")","v":""},{"$f":"IF(E192<>\"\",IF($C$5=0,0,IF($C$6<=0,C$13-E192*C$12,$C$5+CUMPRINC($C$6/$C$8,$C$7*$C$8,$C$5,1,E192,Pilotage!$D$25))),\"\")","v":""},null,null,null,null,null,{"$f":"IF(K192<>\"\",-1*CUMIPMT($C$6/$C$8,$C$7*$C$8,$C$5,M192,N192,Pilotage!$D$25),\"\")","v":""}]
[null,null,null,null,"","",{"$f":"IF(E193<>\"\",IF($C$5=0,0,IF($C$6<=0,0,CUMIPMT($C$6/$C$8,$C$7*$C$8,$C$5,1,E193,Pilotage!$D$25))),\"\")","v":""},{"$f":"IF(E193<>\"\",IF($C$6<=0,0,IF($C$5=0,0,CUMIPMT($C$6/$C$8,$C$7*$C$8,$C$5,E193,E193,Pilotage!$D$25))),\"\")","v":""},{"$f":"IF(E193<>\"\",IF($C$5=0,0,IF($C$6<=0,C$13-E193*C$12,$C$5+CUMPRINC($C$6/$C$8,$C$7*$C$8,$C$5,1,E193,Pilotage!$D$25))),\"\")","v":""},null,null,null,null,null,{"$f":"IF(K193<>\"\",-1*CUMIPMT($C$6/$C$8,$C$7*$C$8,$C$5,M193,N193,Pilotage!$D$25),\"\")","v":""}]
[null,null,null,null,"","",{"$f":"IF(E194<>\"\",IF($C$5=0,0,IF($C$6<=0,0,CUMIPMT($C$6/$C$8,$C$7*$C$8,$C$5,1,E194,Pilotage!$D$25))),\"\")","v":""},{"$f":"IF(E194<>\"\",IF($C$6<=0,0,IF($C$5=0,0,CUMIPMT($C$6/$C$8,$C$7*$C$8,$C$5,E194,E194,Pilotage!$D$25))),\"\")","v":""},{"$f":"IF(E194<>\"\",IF($C$5=0,0,IF($C$6<=0,C$13-E194*C$12,$C$5+CUMPRINC($C$6/$C$8,$C$7*$C$8,$C$5,1,E194,Pilotage!$D$25))),\"\")","v":""},null,null,null,null,null,{"$f":"IF(K194<>\"\",-1*CUMIPMT($C$6/$C$8,$C$7*$C$8,$C$5,M194,N194,Pilotage!$D$25),\"\")","v":""}]
[null,null,null,null,"","",{"$f":"IF(E195<>\"\",IF($C$5=0,0,IF($C$6<=0,0,CUMIPMT($C$6/$C$8,$C$7*$C$8,$C$5,1,E195,Pilotage!$D$25))),\"\")","v":""},{"$f":"IF(E195<>\"\",IF($C$6<=0,0,IF($C$5=0,0,CUMIPMT($C$6/$C$8,$C$7*$C$8,$C$5,E195,E195,Pilotage!$D$25))),\"\")","v":""},{"$f":"IF(E195<>\"\",IF($C$5=0,0,IF($C$6<=0,C$13-E195*C$12,$C$5+CUMPRINC($C$6/$C$8,$C$7*$C$8,$C$5,1,E195,Pilotage!$D$25))),\"\")","v":""},null,null,null,null,null,{"$f":"IF(K195<>\"\",-1*CUMIPMT($C$6/$C$8,$C$7*$C$8,$C$5,M195,N195,Pilotage!$D$25),\"\")","v":""}]
[null,null,null,null,"","",{"$f":"IF(E196<>\"\",IF($C$5=0,0,IF($C$6<=0,0,CUMIPMT($C$6/$C$8,$C$7*$C$8,$C$5,1,E196,Pilotage!$D$25))),\"\")","v":""},{"$f":"IF(E196<>\"\",IF($C$6<=0,0,IF($C$5=0,0,CUMIPMT($C$6/$C$8,$C$7*$C$8,$C$5,E196,E196,Pilotage!$D$25))),\"\")","v":""},{"$f":"IF(E196<>\"\",IF($C$5=0,0,IF($C$6<=0,C$13-E196*C$12,$C$5+CUMPRINC($C$6/$C$8,$C$7*$C$8,$C$5,1,E196,Pilotage!$D$25))),\"\")","v":""},null,null,null,null,null,{"$f":"IF(K196<>\"\",-1*CUMIPMT($C$6/$C$8,$C$7*$C$8,$C$5,M196,N196,Pilotage!$D$25),\"\")","v":""}]
[null,null,null,null,"","",{"$f":"IF(E197<>\"\",IF($C$5=0,0,IF($C$6<=0,0,CUMIPMT($C$6/$C$8,$C$7*$C$8,$C$5,1,E197,Pilotage!$D$25))),\"\")","v":""},{"$f":"IF(E197<>\"\",IF($C$6<=0,0,IF($C$5=0,0,CUMIPMT($C$6/$C$8,$C$7*$C$8,$C$5,E197,E197,Pilotage!$D$25))),\"\")","v":""},{"$f":"IF(E197<>\"\",IF($C$5=0,0,IF($C$6<=0,C$13-E197*C$12,$C$5+CUMPRINC($C$6/$C$8,$C$7*$C$8,$C$5,1,E197,Pilotage!$D$25))),\"\")","v":""},null,null,null,null,null,{"$f":"IF(K197<>\"\",-1*CUMIPMT($C$6/$C$8,$C$7*$C$8,$C$5,M197,N197,Pilotage!$D$25),\"\")","v":""}]
[null,null,null,null,"","",{"$f":"IF(E198<>\"\",IF($C$5=0,0,IF($C$6<=0,0,CUMIPMT($C$6/$C$8,$C$7*$C$8,$C$5,1,E198,Pilotage!$D$25))),\"\")","v":""},{"$f":"IF(E198<>\"\",IF($C$6<=0,0,IF($C$5=0,0,CUMIPMT($C$6/$C$8,$C$7*$C$8,$C$5,E198,E198,Pilotage!$D$25))),\"\")","v":""},{"$f":"IF(E198<>\"\",IF($C$5=0,0,IF($C$6<=0,C$13-E198*C$12,$C$5+CUMPRINC($C$6/$C$8,$C$7*$C$8,$C$5,1,E198,Pilotage!$D$25))),\"\")","v":""},null,null,null,null,null,{"$f":"IF(K198<>\"\",-1*CUMIPMT($C$6/$C$8,$C$7*$C$8,$C$5,M198,N198,Pilotage!$D$25),\"\")","v":""}]
[null,null,null,null,"","",{"$f":"IF(E199<>\"\",IF($C$5=0,0,IF($C$6<=0,0,CUMIPMT($C$6/$C$8,$C$7*$C$8,$C$5,1,E199,Pilotage!$D$25))),\"\")","v":""},{"$f":"IF(E199<>\"\",IF($C$6<=0,0,IF($C$5=0,0,CUMIPMT($C$6/$C$8,$C$7*$C$8,$C$5,E199,E199,Pilotage!$D$25))),\"\")","v":""},{"$f":"IF(E199<>\"\",IF($C$5=0,0,IF($C$6<=0,C$13-E199*C$12,$C$5+CUMPRINC($C$6/$C$8,$C$7*$C$8,$C$5,1,E199,Pilotage!$D$25))),\"\")","v":""},null,null,null,null,null,{"$f":"IF(K199<>\"\",-1*CUMIPMT($C$6/$C$8,$C$7*$C$8,$C$5,M199,N199,Pilotage!$D$25),\"\")","v":""}]
[null,null,null,null,{"$f":"IF(E199<$C$10,E199+1,\"\")","v":""},{"$f":"IF(E200<>\"\",EDATE(F199,$C$11),\"\")","v":""},{"$f":"IF(E200<>\"\",IF($C$5=0,0,IF($C$6<=0,0,CUMIPMT($C$6/$C$8,$C$7*$C$8,$C$5,1,E200,Pilotage!$D$25))),\"\")","v":""},{"$f":"IF(E200<>\"\",IF($C$6<=0,0,IF($C$5=0,0,CUMIPMT($C$6/$C$8,$C$7*$C$8,$C$5,E200,E200,Pilotage!$D$25))),\"\")","v":""},{"$f":"IF(E200<>\"\",IF($C$5=0,0,IF($C$6<=0,C$13-E200*C$12,$C$5+CUMPRINC($C$6/$C$8,$C$7*$C$8,$C$5,1,E200,Pilotage!$D$25))),\"\")","v":""},null,null,null,null,null,{"$f":"IF(K200<>\"\",-1*CUMIPMT($C$6/$C$8,$C$7*$C$8,$C$5,M200,N200,Pilotage!$D$25),\"\")","v":""}]
[null,null,null,null,"","",{"$f":"IF(E201<>\"\",IF($C$5=0,0,IF($C$6<=0,0,CUMIPMT($C$6/$C$8,$C$7*$C$8,$C$5,1,E201,Pilotage!$D$25))),\"\")","v":""},{"$f":"IF(E201<>\"\",IF($C$6<=0,0,IF($C$5=0,0,CUMIPMT($C$6/$C$8,$C$7*$C$8,$C$5,E201,E201,Pilotage!$D$25))),\"\")","v":""},{"$f":"IF(E201<>\"\",IF($C$5=0,0,IF($C$6<=0,C$13-E201*C$12,$C$5+CUMPRINC($C$6/$C$8,$C$7*$C$8,$C$5,1,E201,Pilotage!$D$25))),\"\")","v":""},null,null,null,null,null,{"$f":"IF(K201<>\"\",-1*CUMIPMT($C$6/$C$8,$C$7*$C$8,$C$5,M201,N201,Pilotage!$D$25),\"\")","v":""}]
[null,null,null,null,"","",{"$f":"IF(E202<>\"\",IF($C$5=0,0,IF($C$6<=0,0,CUMIPMT($C$6/$C$8,$C$7*$C$8,$C$5,1,E202,Pilotage!$D$25))),\"\")","v":""},{"$f":"IF(E202<>\"\",IF($C$6<=0,0,IF($C$5=0,0,CUMIPMT($C$6/$C$8,$C$7*$C$8,$C$5,E202,E202,Pilotage!$D$25))),\"\")","v":""},{"$f":"IF(E202<>\"\",IF($C$5=0,0,IF($C$6<=0,C$13-E202*C$12,$C$5+CUMPRINC($C$6/$C$8,$C$7*$C$8,$C$5,1,E202,Pilotage!$D$25))),\"\")","v":""},null,null,null,null,null,{"$f":"IF(K202<>\"\",-1*CUMIPMT($C$6/$C$8,$C$7*$C$8,$C$5,M202,N202,Pilotage!$D$25),\"\")","v":""}]
[null,null,null,null,"","",{"$f":"IF(E203<>\"\",IF($C$5=0,0,IF($C$6<=0,0,CUMIPMT($C$6/$C$8,$C$7*$C$8,$C$5,1,E203,Pilotage!$D$25))),\"\")","v":""},{"$f":"IF(E203<>\"\",IF($C$6<=0,0,IF($C$5=0,0,CUMIPMT($C$6/$C$8,$C$7*$C$8,$C$5,E203,E203,Pilotage!$D$25))),\"\")","v":""},{"$f":"IF(E203<>\"\",IF($C$5=0,0,IF($C$6<=0,C$13-E203*C$12,$C$5+CUMPRINC($C$6/$C$8,$C$7*$C$8,$C$5,1,E203,Pilotage!$D$25))),\"\")","v":""},null,null,null,null,null,{"$f":"IF(K203<>\"\",-1*CUMIPMT($C$6/$C$8,$C$7*$C$8,$C$5,M203,N203,Pilotage!$D$25),\"\")","v":""}]
[null,null,null,null,"","",{"$f":"IF(E204<>\"\",IF($C$5=0,0,IF($C$6<=0,0,CUMIPMT($C$6/$C$8,$C$7*$C$8,$C$5,1,E204,Pilotage!$D$25))),\"\")","v":""},{"$f":"IF(E204<>\"\",IF($C$6<=0,0,IF($C$5=0,0,CUMIPMT($C$6/$C$8,$C$7*$C$8,$C$5,E204,E204,Pilotage!$D$25))),\"\")","v":""},{"$f":"IF(E204<>\"\",IF($C$5=0,0,IF($C$6<=0,C$13-E204*C$12,$C$5+CUMPRINC($C$6/$C$8,$C$7*$C$8,$C$5,1,E204,Pilotage!$D$25))),\"\")","v":""},null,null,null,null,null,{"$f":"IF(K204<>\"\",-1*CUMIPMT($C$6/$C$8,$C$7*$C$8,$C$5,M204,N204,Pilotage!$D$25),\"\")","v":""}]
[null,null,null,null,"","",{"$f":"IF(E205<>\"\",IF($C$5=0,0,IF($C$6<=0,0,CUMIPMT($C$6/$C$8,$C$7*$C$8,$C$5,1,E205,Pilotage!$D$25))),\"\")","v":""},{"$f":"IF(E205<>\"\",IF($C$6<=0,0,IF($C$5=0,0,CUMIPMT($C$6/$C$8,$C$7*$C$8,$C$5,E205,E205,Pilotage!$D$25))),\"\")","v":""},{"$f":"IF(E205<>\"\",IF($C$5=0,0,IF($C$6<=0,C$13-E205*C$12,$C$5+CUMPRINC($C$6/$C$8,$C$7*$C$8,$C$5,1,E205,Pilotage!$D$25))),\"\")","v":""},null,null,null,null,null,{"$f":"IF(K205<>\"\",-1*CUMIPMT($C$6/$C$8,$C$7*$C$8,$C$5,M205,N205,Pilotage!$D$25),\"\")","v":""}]
[null,null,null,null,"","",{"$f":"IF(E206<>\"\",IF($C$5=0,0,IF($C$6<=0,0,CUMIPMT($C$6/$C$8,$C$7*$C$8,$C$5,1,E206,Pilotage!$D$25))),\"\")","v":""},{"$f":"IF(E206<>\"\",IF($C$6<=0,0,IF($C$5=0,0,CUMIPMT($C$6/$C$8,$C$7*$C$8,$C$5,E206,E206,Pilotage!$D$25))),\"\")","v":""},{"$f":"IF(E206<>\"\",IF($C$5=0,0,IF($C$6<=0,C$13-E206*C$12,$C$5+CUMPRINC($C$6/$C$8,$C$7*$C$8,$C$5,1,E206,Pilotage!$D$25))),\"\")","v":""},null,null,null,null,null,{"$f":"IF(K206<>\"\",-1*CUMIPMT($C$6/$C$8,$C$7*$C$8,$C$5,M206,N206,Pilotage!$D$25),\"\")","v":""}]
[null,null,null,null,"","",{"$f":"IF(E207<>\"\",IF($C$5=0,0,IF($C$6<=0,0,CUMIPMT($C$6/$C$8,$C$7*$C$8,$C$5,1,E207,Pilotage!$D$25))),\"\")","v":""},{"$f":"IF(E207<>\"\",IF($C$6<=0,0,IF($C$5=0,0,CUMIPMT($C$6/$C$8,$C$7*$C$8,$C$5,E207,E207,Pilotage!$D$25))),\"\")","v":""},{"$f":"IF(E207<>\"\",IF($C$5=0,0,IF($C$6<=0,C$13-E207*C$12,$C$5+CUMPRINC($C$6/$C$8,$C$7*$C$8,$C$5,1,E207,Pilotage!$D$25))),\"\")","v":""},null,null,null,null,null,{"$f":"IF(K207<>\"\",-1*CUMIPMT($C$6/$C$8,$C$7*$C$8,$C$5,M207,N207,Pilotage!$D$25),\"\")","v":""}]
[null,null,null,null,"","",{"$f":"IF(E208<>\"\",IF($C$5=0,0,IF($C$6<=0,0,CUMIPMT($C$6/$C$8,$C$7*$C$8,$C$5,1,E208,Pilotage!$D$25))),\"\")","v":""},{"$f":"IF(E208<>\"\",IF($C$6<=0,0,IF($C$5=0,0,CUMIPMT($C$6/$C$8,$C$7*$C$8,$C$5,E208,E208,Pilotage!$D$25))),\"\")","v":""},{"$f":"IF(E208<>\"\",IF($C$5=0,0,IF($C$6<=0,C$13-E208*C$12,$C$5+CUMPRINC($C$6/$C$8,$C$7*$C$8,$C$5,1,E208,Pilotage!$D$25))),\"\")","v":""},null,null,null,null,null,{"$f":"IF(K208<>\"\",-1*CUMIPMT($C$6/$C$8,$C$7*$C$8,$C$5,M208,N208,Pilotage!$D$25),\"\")","v":""}]
[null,null,null,null,"","",{"$f":"IF(E209<>\"\",IF($C$5=0,0,IF($C$6<=0,0,CUMIPMT($C$6/$C$8,$C$7*$C$8,$C$5,1,E209,Pilotage!$D$25))),\"\")","v":""},{"$f":"IF(E209<>\"\",IF($C$6<=0,0,IF($C$5=0,0,CUMIPMT($C$6/$C$8,$C$7*$C$8,$C$5,E209,E209,Pilotage!$D$25))),\"\")","v":""},{"$f":"IF(E209<>\"\",IF($C$5=0,0,IF($C$6<=0,C$13-E209*C$12,$C$5+CUMPRINC($C$6/$C$8,$C$7*$C$8,$C$5,1,E209,Pilotage!$D$25))),\"\")","v":""},null,null,null,null,null,{"$f":"IF(K209<>\"\",-1*CUMIPMT($C$6/$C$8,$C$7*$C$8,$C$5,M209,N209,Pilotage!$D$25),\"\")","v":""}]
[null,null,null,null,"","",{"$f":"IF(E210<>\"\",IF($C$5=0,0,IF($C$6<=0,0,CUMIPMT($C$6/$C$8,$C$7*$C$8,$C$5,1,E210,Pilotage!$D$25))),\"\")","v":""},{"$f":"IF(E210<>\"\",IF($C$6<=0,0,IF($C$5=0,0,CUMIPMT($C$6/$C$8,$C$7*$C$8,$C$5,E210,E210,Pilotage!$D$25))),\"\")","v":""},{"$f":"IF(E210<>\"\",IF($C$5=0,0,IF($C$6<=0,C$13-E210*C$12,$C$5+CUMPRINC($C$6/$C$8,$C$7*$C$8,$C$5,1,E210,Pilotage!$D$25))),\"\")","v":""},null,null,null,null,null,{"$f":"IF(K210<>\"\",-1*CUMIPMT($C$6/$C$8,$C$7*$C$8,$C$5,M210,N210,Pilotage!$D$25),\"\")","v":""}]
[null,null,null,null,"","",{"$f":"IF(E211<>\"\",IF($C$5=0,0,IF($C$6<=0,0,CUMIPMT($C$6/$C$8,$C$7*$C$8,$C$5,1,E211,Pilotage!$D$25))),\"\")","v":""},{"$f":"IF(E211<>\"\",IF($C$6<=0,0,IF($C$5=0,0,CUMIPMT($C$6/$C$8,$C$7*$C$8,$C$5,E211,E211,Pilotage!$D$25))),\"\")","v":""},{"$f":"IF(E211<>\"\",IF($C$5=0,0,IF($C$6<=0,C$13-E211*C$12,$C$5+CUMPRINC($C$6/$C$8,$C$7*$C$8,$C$5,1,E211,Pilotage!$D$25))),\"\")","v":""},null,null,null,null,null,{"$f":"IF(K211<>\"\",-1*CUMIPMT($C$6/$C$8,$C$7*$C$8,$C$5,M211,N211,Pilotage!$D$25),\"\")","v":""}]
[null,null,null,null,"","",{"$f":"IF(E212<>\"\",IF($C$5=0,0,IF($C$6<=0,0,CUMIPMT($C$6/$C$8,$C$7*$C$8,$C$5,1,E212,Pilotage!$D$25))),\"\")","v":""},{"$f":"IF(E212<>\"\",IF($C$6<=0,0,IF($C$5=0,0,CUMIPMT($C$6/$C$8,$C$7*$C$8,$C$5,E212,E212,Pilotage!$D$25))),\"\")","v":""},{"$f":"IF(E212<>\"\",IF($C$5=0,0,IF($C$6<=0,C$13-E212*C$12,$C$5+CUMPRINC($C$6/$C$8,$C$7*$C$8,$C$5,1,E212,Pilotage!$D$25))),\"\")","v":""},null,null,null,null,null,{"$f":"IF(K212<>\"\",-1*CUMIPMT($C$6/$C$8,$C$7*$C$8,$C$5,M212,N212,Pilotage!$D$25),\"\")","v":""}]
[null,null,null,null,"","",{"$f":"IF(E213<>\"\",IF($C$5=0,0,IF($C$6<=0,0,CUMIPMT($C$6/$C$8,$C$7*$C$8,$C$5,1,E213,Pilotage!$D$25))),\"\")","v":""},{"$f":"IF(E213<>\"\",IF($C$6<=0,0,IF($C$5=0,0,CUMIPMT($C$6/$C$8,$C$7*$C$8,$C$5,E213,E213,Pilotage!$D$25))),\"\")","v":""},{"$f":"IF(E213<>\"\",IF($C$5=0,0,IF($C$6<=0,C$13-E213*C$12,$C$5+CUMPRINC($C$6/$C$8,$C$7*$C$8,$C$5,1,E213,Pilotage!$D$25))),\"\")","v":""},null,null,null,null,null,{"$f":"IF(K213<>\"\",-1*CUMIPMT($C$6/$C$8,$C$7*$C$8,$C$5,M213,N213,Pilotage!$D$25),\"\")","v":""}]
[null,null,null,null,"","",{"$f":"IF(E214<>\"\",IF($C$5=0,0,IF($C$6<=0,0,CUMIPMT($C$6/$C$8,$C$7*$C$8,$C$5,1,E214,Pilotage!$D$25))),\"\")","v":""},{"$f":"IF(E214<>\"\",IF($C$6<=0,0,IF($C$5=0,0,CUMIPMT($C$6/$C$8,$C$7*$C$8,$C$5,E214,E214,Pilotage!$D$25))),\"\")","v":""},{"$f":"IF(E214<>\"\",IF($C$5=0,0,IF($C$6<=0,C$13-E214*C$12,$C$5+CUMPRINC($C$6/$C$8,$C$7*$C$8,$C$5,1,E214,Pilotage!$D$25))),\"\")","v":""},null,null,null,null,null,{"$f":"IF(K214<>\"\",-1*CUMIPMT($C$6/$C$8,$C$7*$C$8,$C$5,M214,N214,Pilotage!$D$25),\"\")","v":""}]
[null,null,null,null,"","",{"$f":"IF(E215<>\"\",IF($C$5=0,0,IF($C$6<=0,0,CUMIPMT($C$6/$C$8,$C$7*$C$8,$C$5,1,E215,Pilotage!$D$25))),\"\")","v":""},{"$f":"IF(E215<>\"\",IF($C$6<=0,0,IF($C$5=0,0,CUMIPMT($C$6/$C$8,$C$7*$C$8,$C$5,E215,E215,Pilotage!$D$25))),\"\")","v":""},{"$f":"IF(E215<>\"\",IF($C$5=0,0,IF($C$6<=0,C$13-E215*C$12,$C$5+CUMPRINC($C$6/$C$8,$C$7*$C$8,$C$5,1,E215,Pilotage!$D$25))),\"\")","v":""},null,null,null,null,null,{"$f":"IF(K215<>\"\",-1*CUMIPMT($C$6/$C$8,$C$7*$C$8,$C$5,M215,N215,Pilotage!$D$25),\"\")","v":""}]
[null,null,null,null,"","",{"$f":"IF(E216<>\"\",IF($C$5=0,0,IF($C$6<=0,0,CUMIPMT($C$6/$C$8,$C$7*$C$8,$C$5,1,E216,Pilotage!$D$25))),\"\")","v":""},{"$f":"IF(E216<>\"\",IF($C$6<=0,0,IF($C$5=0,0,CUMIPMT($C$6/$C$8,$C$7*$C$8,$C$5,E216,E216,Pilotage!$D$25))),\"\")","v":""},{"$f":"IF(E216<>\"\",IF($C$5=0,0,IF($C$6<=0,C$13-E216*C$12,$C$5+CUMPRINC($C$6/$C$8,$C$7*$C$8,$C$5,1,E216,Pilotage!$D$25))),\"\")","v":""},null,null,null,null,null,{"$f":"IF(K216<>\"\",-1*CUMIPMT($C$6/$C$8,$C$7*$C$8,$C$5,M216,N216,Pilotage!$D$25),\"\")","v":""}]
[null,null,null,null,"","",{"$f":"IF(E217<>\"\",IF($C$5=0,0,IF($C$6<=0,0,CUMIPMT($C$6/$C$8,$C$7*$C$8,$C$5,1,E217,Pilotage!$D$25))),\"\")","v":""},{"$f":"IF(E217<>\"\",IF($C$6<=0,0,IF($C$5=0,0,CUMIPMT($C$6/$C$8,$C$7*$C$8,$C$5,E217,E217,Pilotage!$D$25))),\"\")","v":""},{"$f":"IF(E217<>\"\",IF($C$5=0,0,IF($C$6<=0,C$13-E217*C$12,$C$5+CUMPRINC($C$6/$C$8,$C$7*$C$8,$C$5,1,E217,Pilotage!$D$25))),\"\")","v":""},null,null,null,null,null,{"$f":"IF(K217<>\"\",-1*CUMIPMT($C$6/$C$8,$C$7*$C$8,$C$5,M217,N217,Pilotage!$D$25),\"\")","v":""}]
[null,null,null,null,"","",{"$f":"IF(E218<>\"\",IF($C$5=0,0,IF($C$6<=0,0,CUMIPMT($C$6/$C$8,$C$7*$C$8,$C$5,1,E218,Pilotage!$D$25))),\"\")","v":""},{"$f":"IF(E218<>\"\",IF($C$6<=0,0,IF($C$5=0,0,CUMIPMT($C$6/$C$8,$C$7*$C$8,$C$5,E218,E218,Pilotage!$D$25))),\"\")","v":""},{"$f":"IF(E218<>\"\",IF($C$5=0,0,IF($C$6<=0,C$13-E218*C$12,$C$5+CUMPRINC($C$6/$C$8,$C$7*$C$8,$C$5,1,E218,Pilotage!$D$25))),\"\")","v":""},null,null,null,null,null,{"$f":"IF(K218<>\"\",-1*CUMIPMT($C$6/$C$8,$C$7*$C$8,$C$5,M218,N218,Pilotage!$D$25),\"\")","v":""}]
[null,null,null,null,"","",{"$f":"IF(E219<>\"\",IF($C$5=0,0,IF($C$6<=0,0,CUMIPMT($C$6/$C$8,$C$7*$C$8,$C$5,1,E219,Pilotage!$D$25))),\"\")","v":""},{"$f":"IF(E219<>\"\",IF($C$6<=0,0,IF($C$5=0,0,CUMIPMT($C$6/$C$8,$C$7*$C$8,$C$5,E219,E219,Pilotage!$D$25))),\"\")","v":""},{"$f":"IF(E219<>\"\",IF($C$5=0,0,IF($C$6<=0,C$13-E219*C$12,$C$5+CUMPRINC($C$6/$C$8,$C$7*$C$8,$C$5,1,E219,Pilotage!$D$25))),\"\")","v":""},null,null,null,null,null,{"$f":"IF(K219<>\"\",-1*CUMIPMT($C$6/$C$8,$C$7*$C$8,$C$5,M219,N219,Pilotage!$D$25),\"\")","v":""}]
[null,null,null,null,"","",{"$f":"IF(E220<>\"\",IF($C$5=0,0,IF($C$6<=0,0,CUMIPMT($C$6/$C$8,$C$7*$C$8,$C$5,1,E220,Pilotage!$D$25))),\"\")","v":""},{"$f":"IF(E220<>\"\",IF($C$6<=0,0,IF($C$5=0,0,CUMIPMT($C$6/$C$8,$C$7*$C$8,$C$5,E220,E220,Pilotage!$D$25))),\"\")","v":""},{"$f":"IF(E220<>\"\",IF($C$5=0,0,IF($C$6<=0,C$13-E220*C$12,$C$5+CUMPRINC($C$6/$C$8,$C$7*$C$8,$C$5,1,E220,Pilotage!$D$25))),\"\")","v":""},null,null,null,null,null,{"$f":"IF(K220<>\"\",-1*CUMIPMT($C$6/$C$8,$C$7*$C$8,$C$5,M220,N220,Pilotage!$D$25),\"\")","v":""}]
[null,null,null,null,"","",{"$f":"IF(E221<>\"\",IF($C$5=0,0,IF($C$6<=0,0,CUMIPMT($C$6/$C$8,$C$7*$C$8,$C$5,1,E221,Pilotage!$D$25))),\"\")","v":""},{"$f":"IF(E221<>\"\",IF($C$6<=0,0,IF($C$5=0,0,CUMIPMT($C$6/$C$8,$C$7*$C$8,$C$5,E221,E221,Pilotage!$D$25))),\"\")","v":""},{"$f":"IF(E221<>\"\",IF($C$5=0,0,IF($C$6<=0,C$13-E221*C$12,$C$5+CUMPRINC($C$6/$C$8,$C$7*$C$8,$C$5,1,E221,Pilotage!$D$25))),\"\")","v":""},null,null,null,null,null,{"$f":"IF(K221<>\"\",-1*CUMIPMT($C$6/$C$8,$C$7*$C$8,$C$5,M221,N221,Pilotage!$D$25),\"\")","v":""}]
[null,null,null,null,"","",{"$f":"IF(E222<>\"\",IF($C$5=0,0,IF($C$6<=0,0,CUMIPMT($C$6/$C$8,$C$7*$C$8,$C$5,1,E222,Pilotage!$D$25))),\"\")","v":""},{"$f":"IF(E222<>\"\",IF($C$6<=0,0,IF($C$5=0,0,CUMIPMT($C$6/$C$8,$C$7*$C$8,$C$5,E222,E222,Pilotage!$D$25))),\"\")","v":""},{"$f":"IF(E222<>\"\",IF($C$5=0,0,IF($C$6<=0,C$13-E222*C$12,$C$5+CUMPRINC($C$6/$C$8,$C$7*$C$8,$C$5,1,E222,Pilotage!$D$25))),\"\")","v":""},null,null,null,null,null,{"$f":"IF(K222<>\"\",-1*CUMIPMT($C$6/$C$8,$C$7*$C$8,$C$5,M222,N222,Pilotage!$D$25),\"\")","v":""}]
[null,null,null,null,"","",{"$f":"IF(E223<>\"\",IF($C$5=0,0,IF($C$6<=0,0,CUMIPMT($C$6/$C$8,$C$7*$C$8,$C$5,1,E223,Pilotage!$D$25))),\"\")","v":""},{"$f":"IF(E223<>\"\",IF($C$6<=0,0,IF($C$5=0,0,CUMIPMT($C$6/$C$8,$C$7*$C$8,$C$5,E223,E223,Pilotage!$D$25))),\"\")","v":""},{"$f":"IF(E223<>\"\",IF($C$5=0,0,IF($C$6<=0,C$13-E223*C$12,$C$5+CUMPRINC($C$6/$C$8,$C$7*$C$8,$C$5,1,E223,Pilotage!$D$25))),\"\")","v":""},null,null,null,null,null,{"$f":"IF(K223<>\"\",-1*CUMIPMT($C$6/$C$8,$C$7*$C$8,$C$5,M223,N223,Pilotage!$D$25),\"\")","v":""}]
[null,null,null,null,"","",{"$f":"IF(E224<>\"\",IF($C$5=0,0,IF($C$6<=0,0,CUMIPMT($C$6/$C$8,$C$7*$C$8,$C$5,1,E224,Pilotage!$D$25))),\"\")","v":""},{"$f":"IF(E224<>\"\",IF($C$6<=0,0,IF($C$5=0,0,CUMIPMT($C$6/$C$8,$C$7*$C$8,$C$5,E224,E224,Pilotage!$D$25))),\"\")","v":""},{"$f":"IF(E224<>\"\",IF($C$5=0,0,IF($C$6<=0,C$13-E224*C$12,$C$5+CUMPRINC($C$6/$C$8,$C$7*$C$8,$C$5,1,E224,Pilotage!$D$25))),\"\")","v":""},null,null,null,null,null,{"$f":"IF(K224<>\"\",-1*CUMIPMT($C$6/$C$8,$C$7*$C$8,$C$5,M224,N224,Pilotage!$D$25),\"\")","v":""}]
[null,null,null,null,"","",{"$f":"IF(E225<>\"\",IF($C$5=0,0,IF($C$6<=0,0,CUMIPMT($C$6/$C$8,$C$7*$C$8,$C$5,1,E225,Pilotage!$D$25))),\"\")","v":""},{"$f":"IF(E225<>\"\",IF($C$6<=0,0,IF($C$5=0,0,CUMIPMT($C$6/$C$8,$C$7*$C$8,$C$5,E225,E225,Pilotage!$D$25))),\"\")","v":""},{"$f":"IF(E225<>\"\",IF($C$5=0,0,IF($C$6<=0,C$13-E225*C$12,$C$5+CUMPRINC($C$6/$C$8,$C$7*$C$8,$C$5,1,E225,Pilotage!$D$25))),\"\")","v":""},null,null,null,null,null,{"$f":"IF(K225<>\"\",-1*CUMIPMT($C$6/$C$8,$C$7*$C$8,$C$5,M225,N225,Pilotage!$D$25),\"\")","v":""}]
[null,null,null,null,"","",{"$f":"IF(E226<>\"\",IF($C$5=0,0,IF($C$6<=0,0,CUMIPMT($C$6/$C$8,$C$7*$C$8,$C$5,1,E226,Pilotage!$D$25))),\"\")","v":""},{"$f":"IF(E226<>\"\",IF($C$6<=0,0,IF($C$5=0,0,CUMIPMT($C$6/$C$8,$C$7*$C$8,$C$5,E226,E226,Pilotage!$D$25))),\"\")","v":""},{"$f":"IF(E226<>\"\",IF($C$5=0,0,IF($C$6<=0,C$13-E226*C$12,$C$5+CUMPRINC($C$6/$C$8,$C$7*$C$8,$C$5,1,E226,Pilotage!$D$25))),\"\")","v":""},null,null,null,null,null,{"$f":"IF(K226<>\"\",-1*CUMIPMT($C$6/$C$8,$C$7*$C$8,$C$5,M226,N226,Pilotage!$D$25),\"\")","v":""}]
[null,null,null,null,"","",{"$f":"IF(E227<>\"\",IF($C$5=0,0,IF($C$6<=0,0,CUMIPMT($C$6/$C$8,$C$7*$C$8,$C$5,1,E227,Pilotage!$D$25))),\"\")","v":""},{"$f":"IF(E227<>\"\",IF($C$6<=0,0,IF($C$5=0,0,CUMIPMT($C$6/$C$8,$C$7*$C$8,$C$5,E227,E227,Pilotage!$D$25))),\"\")","v":""},{"$f":"IF(E227<>\"\",IF($C$5=0,0,IF($C$6<=0,C$13-E227*C$12,$C$5+CUMPRINC($C$6/$C$8,$C$7*$C$8,$C$5,1,E227,Pilotage!$D$25))),\"\")","v":""},null,null,null,null,null,{"$f":"IF(K227<>\"\",-1*CUMIPMT($C$6/$C$8,$C$7*$C$8,$C$5,M227,N227,Pilotage!$D$25),\"\")","v":""}]
[null,null,null,null,"","",{"$f":"IF(E228<>\"\",IF($C$5=0,0,IF($C$6<=0,0,CUMIPMT($C$6/$C$8,$C$7*$C$8,$C$5,1,E228,Pilotage!$D$25))),\"\")","v":""},{"$f":"IF(E228<>\"\",IF($C$6<=0,0,IF($C$5=0,0,CUMIPMT($C$6/$C$8,$C$7*$C$8,$C$5,E228,E228,Pilotage!$D$25))),\"\")","v":""},{"$f":"IF(E228<>\"\",IF($C$5=0,0,IF($C$6<=0,C$13-E228*C$12,$C$5+CUMPRINC($C$6/$C$8,$C$7*$C$8,$C$5,1,E228,Pilotage!$D$25))),\"\")","v":""},null,null,null,null,null,{"$f":"IF(K228<>\"\",-1*CUMIPMT($C$6/$C$8,$C$7*$C$8,$C$5,M228,N228,Pilotage!$D$25),\"\")","v":""}]
[null,null,null,null,"","",{"$f":"IF(E229<>\"\",IF($C$5=0,0,IF($C$6<=0,0,CUMIPMT($C$6/$C$8,$C$7*$C$8,$C$5,1,E229,Pilotage!$D$25))),\"\")","v":""},{"$f":"IF(E229<>\"\",IF($C$6<=0,0,IF($C$5=0,0,CUMIPMT($C$6/$C$8,$C$7*$C$8,$C$5,E229,E229,Pilotage!$D$25))),\"\")","v":""},{"$f":"IF(E229<>\"\",IF($C$5=0,0,IF($C$6<=0,C$13-E229*C$12,$C$5+CUMPRINC($C$6/$C$8,$C$7*$C$8,$C$5,1,E229,Pilotage!$D$25))),\"\")","v":""},null,null,null,null,null,{"$f":"IF(K229<>\"\",-1*CUMIPMT($C$6/$C$8,$C$7*$C$8,$C$5,M229,N229,Pilotage!$D$25),\"\")","v":""}]
[null,null,null,null,"","",{"$f":"IF(E230<>\"\",IF($C$5=0,0,IF($C$6<=0,0,CUMIPMT($C$6/$C$8,$C$7*$C$8,$C$5,1,E230,Pilotage!$D$25))),\"\")","v":""},{"$f":"IF(E230<>\"\",IF($C$6<=0,0,IF($C$5=0,0,CUMIPMT($C$6/$C$8,$C$7*$C$8,$C$5,E230,E230,Pilotage!$D$25))),\"\")","v":""},{"$f":"IF(E230<>\"\",IF($C$5=0,0,IF($C$6<=0,C$13-E230*C$12,$C$5+CUMPRINC($C$6/$C$8,$C$7*$C$8,$C$5,1,E230,Pilotage!$D$25))),\"\")","v":""},null,null,null,null,null,{"$f":"IF(K230<>\"\",-1*CUMIPMT($C$6/$C$8,$C$7*$C$8,$C$5,M230,N230,Pilotage!$D$25),\"\")","v":""}]
[null,null,null,null,"","",{"$f":"IF(E231<>\"\",IF($C$5=0,0,IF($C$6<=0,0,CUMIPMT($C$6/$C$8,$C$7*$C$8,$C$5,1,E231,Pilotage!$D$25))),\"\")","v":""},{"$f":"IF(E231<>\"\",IF($C$6<=0,0,IF($C$5=0,0,CUMIPMT($C$6/$C$8,$C$7*$C$8,$C$5,E231,E231,Pilotage!$D$25))),\"\")","v":""},{"$f":"IF(E231<>\"\",IF($C$5=0,0,IF($C$6<=0,C$13-E231*C$12,$C$5+CUMPRINC($C$6/$C$8,$C$7*$C$8,$C$5,1,E231,Pilotage!$D$25))),\"\")","v":""},null,null,null,null,null,{"$f":"IF(K231<>\"\",-1*CUMIPMT($C$6/$C$8,$C$7*$C$8,$C$5,M231,N231,Pilotage!$D$25),\"\")","v":""}]
[null,null,null,null,"","",{"$f":"IF(E232<>\"\",IF($C$5=0,0,IF($C$6<=0,0,CUMIPMT($C$6/$C$8,$C$7*$C$8,$C$5,1,E232,Pilotage!$D$25))),\"\")","v":""},{"$f":"IF(E232<>\"\",IF($C$6<=0,0,IF($C$5=0,0,CUMIPMT($C$6/$C$8,$C$7*$C$8,$C$5,E232,E232,Pilotage!$D$25))),\"\")","v":""},{"$f":"IF(E232<>\"\",IF($C$5=0,0,IF($C$6<=0,C$13-E232*C$12,$C$5+CUMPRINC($C$6/$C$8,$C$7*$C$8,$C$5,1,E232,Pilotage!$D$25))),\"\")","v":""},null,null,null,null,null,{"$f":"IF(K232<>\"\",-1*CUMIPMT($C$6/$C$8,$C$7*$C$8,$C$5,M232,N232,Pilotage!$D$25),\"\")","v":""}]
[null,null,null,null,"","",{"$f":"IF(E233<>\"\",IF($C$5=0,0,IF($C$6<=0,0,CUMIPMT($C$6/$C$8,$C$7*$C$8,$C$5,1,E233,Pilotage!$D$25))),\"\")","v":""},{"$f":"IF(E233<>\"\",IF($C$6<=0,0,IF($C$5=0,0,CUMIPMT($C$6/$C$8,$C$7*$C$8,$C$5,E233,E233,Pilotage!$D$25))),\"\")","v":""},{"$f":"IF(E233<>\"\",IF($C$5=0,0,IF($C$6<=0,C$13-E233*C$12,$C$5+CUMPRINC($C$6/$C$8,$C$7*$C$8,$C$5,1,E233,Pilotage!$D$25))),\"\")","v":""},null,null,null,null,null,{"$f":"IF(K233<>\"\",-1*CUMIPMT($C$6/$C$8,$C$7*$C$8,$C$5,M233,N233,Pilotage!$D$25),\"\")","v":""}]
[null,null,null,null,"","",{"$f":"IF(E234<>\"\",IF($C$5=0,0,IF($C$6<=0,0,CUMIPMT($C$6/$C$8,$C$7*$C$8,$C$5,1,E234,Pilotage!$D$25))),\"\")","v":""},{"$f":"IF(E234<>\"\",IF($C$6<=0,0,IF($C$5=0,0,CUMIPMT($C$6/$C$8,$C$7*$C$8,$C$5,E234,E234,Pilotage!$D$25))),\"\")","v":""},{"$f":"IF(E234<>\"\",IF($C$5=0,0,IF($C$6<=0,C$13-E234*C$12,$C$5+CUMPRINC($C$6/$C$8,$C$7*$C$8,$C$5,1,E234,Pilotage!$D$25))),\"\")","v":""},null,null,null,null,null,{"$f":"IF(K234<>\"\",-1*CUMIPMT($C$6/$C$8,$C$7*$C$8,$C$5,M234,N234,Pilotage!$D$25),\"\")","v":""}]
[null,null,null,null,"","",{"$f":"IF(E235<>\"\",IF($C$5=0,0,IF($C$6<=0,0,CUMIPMT($C$6/$C$8,$C$7*$C$8,$C$5,1,E235,Pilotage!$D$25))),\"\")","v":""},{"$f":"IF(E235<>\"\",IF($C$6<=0,0,IF($C$5=0,0,CUMIPMT($C$6/$C$8,$C$7*$C$8,$C$5,E235,E235,Pilotage!$D$25))),\"\")","v":""},{"$f":"IF(E235<>\"\",IF($C$5=0,0,IF($C$6<=0,C$13-E235*C$12,$C$5+CUMPRINC($C$6/$C$8,$C$7*$C$8,$C$5,1,E235,Pilotage!$D$25))),\"\")","v":""},null,null,null,null,null,{"$f":"IF(K235<>\"\",-1*CUMIPMT($C$6/$C$8,$C$7*$C$8,$C$5,M235,N235,Pilotage!$D$25),\"\")","v":""}]
[null,null,null,null,"","",{"$f":"IF(E236<>\"\",IF($C$5=0,0,IF($C$6<=0,0,CUMIPMT($C$6/$C$8,$C$7*$C$8,$C$5,1,E236,Pilotage!$D$25))),\"\")","v":""},{"$f":"IF(E236<>\"\",IF($C$6<=0,0,IF($C$5=0,0,CUMIPMT($C$6/$C$8,$C$7*$C$8,$C$5,E236,E236,Pilotage!$D$25))),\"\")","v":""},{"$f":"IF(E236<>\"\",IF($C$5=0,0,IF($C$6<=0,C$13-E236*C$12,$C$5+CUMPRINC($C$6/$C$8,$C$7*$C$8,$C$5,1,E236,Pilotage!$D$25))),\"\")","v":""},null,null,null,null,null,{"$f":"IF(K236<>\"\",-1*CUMIPMT($C$6/$C$8,$C$7*$C$8,$C$5,M236,N236,Pilotage!$D$25),\"\")","v":""}]
[null,null,null,null,"","",{"$f":"IF(E237<>\"\",IF($C$5=0,0,IF($C$6<=0,0,CUMIPMT($C$6/$C$8,$C$7*$C$8,$C$5,1,E237,Pilotage!$D$25))),\"\")","v":""},{"$f":"IF(E237<>\"\",IF($C$6<=0,0,IF($C$5=0,0,CUMIPMT($C$6/$C$8,$C$7*$C$8,$C$5,E237,E237,Pilotage!$D$25))),\"\")","v":""},{"$f":"IF(E237<>\"\",IF($C$5=0,0,IF($C$6<=0,C$13-E237*C$12,$C$5+CUMPRINC($C$6/$C$8,$C$7*$C$8,$C$5,1,E237,Pilotage!$D$25))),\"\")","v":""},null,null,null,null,null,{"$f":"IF(K237<>\"\",-1*CUMIPMT($C$6/$C$8,$C$7*$C$8,$C$5,M237,N237,Pilotage!$D$25),\"\")","v":""}]
[null,null,null,null,"","",{"$f":"IF(E238<>\"\",IF($C$5=0,0,IF($C$6<=0,0,CUMIPMT($C$6/$C$8,$C$7*$C$8,$C$5,1,E238,Pilotage!$D$25))),\"\")","v":""},{"$f":"IF(E238<>\"\",IF($C$6<=0,0,IF($C$5=0,0,CUMIPMT($C$6/$C$8,$C$7*$C$8,$C$5,E238,E238,Pilotage!$D$25))),\"\")","v":""},{"$f":"IF(E238<>\"\",IF($C$5=0,0,IF($C$6<=0,C$13-E238*C$12,$C$5+CUMPRINC($C$6/$C$8,$C$7*$C$8,$C$5,1,E238,Pilotage!$D$25))),\"\")","v":""},null,null,null,null,null,{"$f":"IF(K238<>\"\",-1*CUMIPMT($C$6/$C$8,$C$7*$C$8,$C$5,M238,N238,Pilotage!$D$25),\"\")","v":""}]
[null,null,null,null,"","",{"$f":"IF(E239<>\"\",IF($C$5=0,0,IF($C$6<=0,0,CUMIPMT($C$6/$C$8,$C$7*$C$8,$C$5,1,E239,Pilotage!$D$25))),\"\")","v":""},{"$f":"IF(E239<>\"\",IF($C$6<=0,0,IF($C$5=0,0,CUMIPMT($C$6/$C$8,$C$7*$C$8,$C$5,E239,E239,Pilotage!$D$25))),\"\")","v":""},{"$f":"IF(E239<>\"\",IF($C$5=0,0,IF($C$6<=0,C$13-E239*C$12,$C$5+CUMPRINC($C$6/$C$8,$C$7*$C$8,$C$5,1,E239,Pilotage!$D$25))),\"\")","v":""},null,null,null,null,null,{"$f":"IF(K239<>\"\",-1*CUMIPMT($C$6/$C$8,$C$7*$C$8,$C$5,M239,N239,Pilotage!$D$25),\"\")","v":""}]
[null,null,null,null,"","",{"$f":"IF(E240<>\"\",IF($C$5=0,0,IF($C$6<=0,0,CUMIPMT($C$6/$C$8,$C$7*$C$8,$C$5,1,E240,Pilotage!$D$25))),\"\")","v":""},{"$f":"IF(E240<>\"\",IF($C$6<=0,0,IF($C$5=0,0,CUMIPMT($C$6/$C$8,$C$7*$C$8,$C$5,E240,E240,Pilotage!$D$25))),\"\")","v":""},{"$f":"IF(E240<>\"\",IF($C$5=0,0,IF($C$6<=0,C$13-E240*C$12,$C$5+CUMPRINC($C$6/$C$8,$C$7*$C$8,$C$5,1,E240,Pilotage!$D$25))),\"\")","v":""},null,null,null,null,null,{"$f":"IF(K240<>\"\",-1*CUMIPMT($C$6/$C$8,$C$7*$C$8,$C$5,M240,N240,Pilotage!$D$25),\"\")","v":""}]
[null,null,null,null,"","",{"$f":"IF(E241<>\"\",IF($C$5=0,0,IF($C$6<=0,0,CUMIPMT($C$6/$C$8,$C$7*$C$8,$C$5,1,E241,Pilotage!$D$25))),\"\")","v":""},{"$f":"IF(E241<>\"\",IF($C$6<=0,0,IF($C$5=0,0,CUMIPMT($C$6/$C$8,$C$7*$C$8,$C$5,E241,E241,Pilotage!$D$25))),\"\")","v":""},{"$f":"IF(E241<>\"\",IF($C$5=0,0,IF($C$6<=0,C$13-E241*C$12,$C$5+CUMPRINC($C$6/$C$8,$C$7*$C$8,$C$5,1,E241,Pilotage!$D$25))),\"\")","v":""},null,null,null,null,null,{"$f":"IF(K241<>\"\",-1*CUMIPMT($C$6/$C$8,$C$7*$C$8,$C$5,M241,N241,Pilotage!$D$25),\"\")","v":""}]
[null,null,null,null,"","",{"$f":"IF(E242<>\"\",IF($C$5=0,0,IF($C$6<=0,0,CUMIPMT($C$6/$C$8,$C$7*$C$8,$C$5,1,E242,Pilotage!$D$25))),\"\")","v":""},{"$f":"IF(E242<>\"\",IF($C$6<=0,0,IF($C$5=0,0,CUMIPMT($C$6/$C$8,$C$7*$C$8,$C$5,E242,E242,Pilotage!$D$25))),\"\")","v":""},{"$f":"IF(E242<>\"\",IF($C$5=0,0,IF($C$6<=0,C$13-E242*C$12,$C$5+CUMPRINC($C$6/$C$8,$C$7*$C$8,$C$5,1,E242,Pilotage!$D$25))),\"\")","v":""},null,null,null,null,null,{"$f":"IF(K242<>\"\",-1*CUMIPMT($C$6/$C$8,$C$7*$C$8,$C$5,M242,N242,Pilotage!$D$25),\"\")","v":""}]
[null,null,null,null,"","",{"$f":"IF(E243<>\"\",IF($C$5=0,0,IF($C$6<=0,0,CUMIPMT($C$6/$C$8,$C$7*$C$8,$C$5,1,E243,Pilotage!$D$25))),\"\")","v":""},{"$f":"IF(E243<>\"\",IF($C$6<=0,0,IF($C$5=0,0,CUMIPMT($C$6/$C$8,$C$7*$C$8,$C$5,E243,E243,Pilotage!$D$25))),\"\")","v":""},{"$f":"IF(E243<>\"\",IF($C$5=0,0,IF($C$6<=0,C$13-E243*C$12,$C$5+CUMPRINC($C$6/$C$8,$C$7*$C$8,$C$5,1,E243,Pilotage!$D$25))),\"\")","v":""},null,null,null,null,null,{"$f":"IF(K243<>\"\",-1*CUMIPMT($C$6/$C$8,$C$7*$C$8,$C$5,M243,N243,Pilotage!$D$25),\"\")","v":""}]
[null,null,null,null,"","",{"$f":"IF(E244<>\"\",IF($C$5=0,0,IF($C$6<=0,0,CUMIPMT($C$6/$C$8,$C$7*$C$8,$C$5,1,E244,Pilotage!$D$25))),\"\")","v":""},{"$f":"IF(E244<>\"\",IF($C$6<=0,0,IF($C$5=0,0,CUMIPMT($C$6/$C$8,$C$7*$C$8,$C$5,E244,E244,Pilotage!$D$25))),\"\")","v":""},{"$f":"IF(E244<>\"\",IF($C$5=0,0,IF($C$6<=0,C$13-E244*C$12,$C$5+CUMPRINC($C$6/$C$8,$C$7*$C$8,$C$5,1,E244,Pilotage!$D$25))),\"\")","v":""},null,null,null,null,null,{"$f":"IF(K244<>\"\",-1*CUMIPMT($C$6/$C$8,$C$7*$C$8,$C$5,M244,N244,Pilotage!$D$25),\"\")","v":""}]
[null,null,null,null,"","",{"$f":"IF(E245<>\"\",IF($C$5=0,0,IF($C$6<=0,0,CUMIPMT($C$6/$C$8,$C$7*$C$8,$C$5,1,E245,Pilotage!$D$25))),\"\")","v":""},{"$f":"IF(E245<>\"\",IF($C$6<=0,0,IF($C$5=0,0,CUMIPMT($C$6/$C$8,$C$7*$C$8,$C$5,E245,E245,Pilotage!$D$25))),\"\")","v":""},{"$f":"IF(E245<>\"\",IF($C$5=0,0,IF($C$6<=0,C$13-E245*C$12,$C$5+CUMPRINC($C$6/$C$8,$C$7*$C$8,$C$5,1,E245,Pilotage!$D$25))),\"\")","v":""},null,null,null,null,null,{"$f":"IF(K245<>\"\",-1*CUMIPMT($C$6/$C$8,$C$7*$C$8,$C$5,M245,N245,Pilotage!$D$25),\"\")","v":""}]
[null,null,null,null,"","",{"$f":"IF(E246<>\"\",IF($C$5=0,0,IF($C$6<=0,0,CUMIPMT($C$6/$C$8,$C$7*$C$8,$C$5,1,E246,Pilotage!$D$25))),\"\")","v":""},{"$f":"IF(E246<>\"\",IF($C$6<=0,0,IF($C$5=0,0,CUMIPMT($C$6/$C$8,$C$7*$C$8,$C$5,E246,E246,Pilotage!$D$25))),\"\")","v":""},{"$f":"IF(E246<>\"\",IF($C$5=0,0,IF($C$6<=0,C$13-E246*C$12,$C$5+CUMPRINC($C$6/$C$8,$C$7*$C$8,$C$5,1,E246,Pilotage!$D$25))),\"\")","v":""},null,null,null,null,null,{"$f":"IF(K246<>\"\",-1*CUMIPMT($C$6/$C$8,$C$7*$C$8,$C$5,M246,N246,Pilotage!$D$25),\"\")","v":""}]
[null,null,null,null,"","",{"$f":"IF(E247<>\"\",IF($C$5=0,0,IF($C$6<=0,0,CUMIPMT($C$6/$C$8,$C$7*$C$8,$C$5,1,E247,Pilotage!$D$25))),\"\")","v":""},{"$f":"IF(E247<>\"\",IF($C$6<=0,0,IF($C$5=0,0,CUMIPMT($C$6/$C$8,$C$7*$C$8,$C$5,E247,E247,Pilotage!$D$25))),\"\")","v":""},{"$f":"IF(E247<>\"\",IF($C$5=0,0,IF($C$6<=0,C$13-E247*C$12,$C$5+CUMPRINC($C$6/$C$8,$C$7*$C$8,$C$5,1,E247,Pilotage!$D$25))),\"\")","v":""},null,null,null,null,null,{"$f":"IF(K247<>\"\",-1*CUMIPMT($C$6/$C$8,$C$7*$C$8,$C$5,M247,N247,Pilotage!$D$25),\"\")","v":""}]
[null,null,null,null,"","",{"$f":"IF(E248<>\"\",IF($C$5=0,0,IF($C$6<=0,0,CUMIPMT($C$6/$C$8,$C$7*$C$8,$C$5,1,E248,Pilotage!$D$25))),\"\")","v":""},{"$f":"IF(E248<>\"\",IF($C$6<=0,0,IF($C$5=0,0,CUMIPMT($C$6/$C$8,$C$7*$C$8,$C$5,E248,E248,Pilotage!$D$25))),\"\")","v":""},{"$f":"IF(E248<>\"\",IF($C$5=0,0,IF($C$6<=0,C$13-E248*C$12,$C$5+CUMPRINC($C$6/$C$8,$C$7*$C$8,$C$5,1,E248,Pilotage!$D$25))),\"\")","v":""},null,null,null,null,null,{"$f":"IF(K248<>\"\",-1*CUMIPMT($C$6/$C$8,$C$7*$C$8,$C$5,M248,N248,Pilotage!$D$25),\"\")","v":""}]
[null,null,null,null,"","",{"$f":"IF(E249<>\"\",IF($C$5=0,0,CUMIPMT($C$6/$C$8,$C$7*$C$8,$C$5,1,E249,Pilotage!$D$25)),\"\")","v":""},{"$f":"IF(E249<>\"\",IF($C$5=0,0,CUMIPMT($C$6/$C$8,$C$7*$C$8,$C$5,E249,E249,Pilotage!$D$25)),\"\")","v":""},{"$f":"IF(E249<>\"\",IF($C$5=0,0,$C$5+CUMPRINC($C$6/$C$8,$C$7*$C$8,$C$5,1,E249,Pilotage!$D$25)),\"\")","v":""},null,null,null,null,null,{"$f":"IF(K249<>\"\",-1*CUMIPMT($C$6/$C$8,$C$7*$C$8,$C$5,M249,N249,Pilotage!$D$25),\"\")","v":""}]
[null,null,null,null,"","",{"$f":"IF(E250<>\"\",IF($C$5=0,0,CUMIPMT($C$6/$C$8,$C$7*$C$8,$C$5,1,E250,Pilotage!$D$25)),\"\")","v":""},{"$f":"IF(E250<>\"\",IF($C$5=0,0,CUMIPMT($C$6/$C$8,$C$7*$C$8,$C$5,E250,E250,Pilotage!$D$25)),\"\")","v":""},{"$f":"IF(E250<>\"\",IF($C$5=0,0,$C$5+CUMPRINC($C$6/$C$8,$C$7*$C$8,$C$5,1,E250,Pilotage!$D$25)),\"\")","v":""},null,null,null,null,null,{"$f":"IF(K250<>\"\",-1*CUMIPMT($C$6/$C$8,$C$7*$C$8,$C$5,M250,N250,Pilotage!$D$25),\"\")","v":""}]
[null,null,null,null,"","",{"$f":"IF(E251<>\"\",IF($C$5=0,0,CUMIPMT($C$6/$C$8,$C$7*$C$8,$C$5,1,E251,Pilotage!$D$25)),\"\")","v":""},{"$f":"IF(E251<>\"\",IF($C$5=0,0,CUMIPMT($C$6/$C$8,$C$7*$C$8,$C$5,E251,E251,Pilotage!$D$25)),\"\")","v":""},{"$f":"IF(E251<>\"\",IF($C$5=0,0,$C$5+CUMPRINC($C$6/$C$8,$C$7*$C$8,$C$5,1,E251,Pilotage!$D$25)),\"\")","v":""},null,null,null,null,null,{"$f":"IF(K251<>\"\",-1*CUMIPMT($C$6/$C$8,$C$7*$C$8,$C$5,M251,N251,Pilotage!$D$25),\"\")","v":""}]
[null,null,null,null,"","",{"$f":"IF(E252<>\"\",IF($C$5=0,0,CUMIPMT($C$6/$C$8,$C$7*$C$8,$C$5,1,E252,Pilotage!$D$25)),\"\")","v":""},{"$f":"IF(E252<>\"\",IF($C$5=0,0,CUMIPMT($C$6/$C$8,$C$7*$C$8,$C$5,E252,E252,Pilotage!$D$25)),\"\")","v":""},{"$f":"IF(E252<>\"\",IF($C$5=0,0,$C$5+CUMPRINC($C$6/$C$8,$C$7*$C$8,$C$5,1,E252,Pilotage!$D$25)),\"\")","v":""},null,null,null,null,null,{"$f":"IF(K252<>\"\",-1*CUMIPMT($C$6/$C$8,$C$7*$C$8,$C$5,M252,N252,Pilotage!$D$25),\"\")","v":""}]
[null,null,null,null,"","",{"$f":"IF(E253<>\"\",IF($C$5=0,0,CUMIPMT($C$6/$C$8,$C$7*$C$8,$C$5,1,E253,Pilotage!$D$25)),\"\")","v":""},{"$f":"IF(E253<>\"\",IF($C$5=0,0,CUMIPMT($C$6/$C$8,$C$7*$C$8,$C$5,E253,E253,Pilotage!$D$25)),\"\")","v":""},{"$f":"IF(E253<>\"\",IF($C$5=0,0,$C$5+CUMPRINC($C$6/$C$8,$C$7*$C$8,$C$5,1,E253,Pilotage!$D$25)),\"\")","v":""},null,null,null,null,null,{"$f":"IF(K253<>\"\",-1*CUMIPMT($C$6/$C$8,$C$7*$C$8,$C$5,M253,N253,Pilotage!$D$25),\"\")","v":""}]
[null,null,null,null,"","",{"$f":"IF(E254<>\"\",IF($C$5=0,0,CUMIPMT($C$6/$C$8,$C$7*$C$8,$C$5,1,E254,Pilotage!$D$25)),\"\")","v":""},{"$f":"IF(E254<>\"\",IF($C$5=0,0,CUMIPMT($C$6/$C$8,$C$7*$C$8,$C$5,E254,E254,Pilotage!$D$25)),\"\")","v":""},{"$f":"IF(E254<>\"\",IF($C$5=0,0,$C$5+CUMPRINC($C$6/$C$8,$C$7*$C$8,$C$5,1,E254,Pilotage!$D$25)),\"\")","v":""},null,null,null,null,null,{"$f":"IF(K254<>\"\",-1*CUMIPMT($C$6/$C$8,$C$7*$C$8,$C$5,M254,N254,Pilotage!$D$25),\"\")","v":""}]
[null,null,null,null,"","",{"$f":"IF(E255<>\"\",IF($C$5=0,0,CUMIPMT($C$6/$C$8,$C$7*$C$8,$C$5,1,E255,Pilotage!$D$25)),\"\")","v":""},{"$f":"IF(E255<>\"\",IF($C$5=0,0,CUMIPMT($C$6/$C$8,$C$7*$C$8,$C$5,E255,E255,Pilotage!$D$25)),\"\")","v":""},{"$f":"IF(E255<>\"\",IF($C$5=0,0,$C$5+CUMPRINC($C$6/$C$8,$C$7*$C$8,$C$5,1,E255,Pilotage!$D$25)),\"\")","v":""},null,null,null,null,null,{"$f":"IF(K255<>\"\",-1*CUMIPMT($C$6/$C$8,$C$7*$C$8,$C$5,M255,N255,Pilotage!$D$25),\"\")","v":""}]
[null,null,null,null,"","",{"$f":"IF(E256<>\"\",IF($C$5=0,0,CUMIPMT($C$6/$C$8,$C$7*$C$8,$C$5,1,E256,Pilotage!$D$25)),\"\")","v":""},{"$f":"IF(E256<>\"\",IF($C$5=0,0,CUMIPMT($C$6/$C$8,$C$7*$C$8,$C$5,E256,E256,Pilotage!$D$25)),\"\")","v":""},{"$f":"IF(E256<>\"\",IF($C$5=0,0,$C$5+CUMPRINC($C$6/$C$8,$C$7*$C$8,$C$5,1,E256,Pilotage!$D$25)),\"\")","v":""},null,null,null,null,null,{"$f":"IF(K256<>\"\",-1*CUMIPMT($C$6/$C$8,$C$7*$C$8,$C$5,M256,N256,Pilotage!$D$25),\"\")","v":""}]
[null,null,null,null,"","",{"$f":"IF(E257<>\"\",IF($C$5=0,0,CUMIPMT($C$6/$C$8,$C$7*$C$8,$C$5,1,E257,Pilotage!$D$25)),\"\")","v":""},{"$f":"IF(E257<>\"\",IF($C$5=0,0,CUMIPMT($C$6/$C$8,$C$7*$C$8,$C$5,E257,E257,Pilotage!$D$25)),\"\")","v":""},{"$f":"IF(E257<>\"\",IF($C$5=0,0,$C$5+CUMPRINC($C$6/$C$8,$C$7*$C$8,$C$5,1,E257,Pilotage!$D$25)),\"\")","v":""},null,null,null,null,null,{"$f":"IF(K257<>\"\",-1*CUMIPMT($C$6/$C$8,$C$7*$C$8,$C$5,M257,N257,Pilotage!$D$25),\"\")","v":""}]
[null,null,null,null,"","",{"$f":"IF(E258<>\"\",IF($C$5=0,0,CUMIPMT($C$6/$C$8,$C$7*$C$8,$C$5,1,E258,Pilotage!$D$25)),\"\")","v":""},{"$f":"IF(E258<>\"\",IF($C$5=0,0,CUMIPMT($C$6/$C$8,$C$7*$C$8,$C$5,E258,E258,Pilotage!$D$25)),\"\")","v":""},{"$f":"IF(E258<>\"\",IF($C$5=0,0,$C$5+CUMPRINC($C$6/$C$8,$C$7*$C$8,$C$5,1,E258,Pilotage!$D$25)),\"\")","v":""},null,null,null,null,null,{"$f":"IF(K258<>\"\",-1*CUMIPMT($C$6/$C$8,$C$7*$C$8,$C$5,M258,N258,Pilotage!$D$25),\"\")","v":""}]
[null,null,null,null,"","",{"$f":"IF(E259<>\"\",IF($C$5=0,0,CUMIPMT($C$6/$C$8,$C$7*$C$8,$C$5,1,E259,Pilotage!$D$25)),\"\")","v":""},{"$f":"IF(E259<>\"\",IF($C$5=0,0,CUMIPMT($C$6/$C$8,$C$7*$C$8,$C$5,E259,E259,Pilotage!$D$25)),\"\")","v":""},{"$f":"IF(E259<>\"\",IF($C$5=0,0,$C$5+CUMPRINC($C$6/$C$8,$C$7*$C$8,$C$5,1,E259,Pilotage!$D$25)),\"\")","v":""},null,null,null,null,null,{"$f":"IF(K259<>\"\",-1*CUMIPMT($C$6/$C$8,$C$7*$C$8,$C$5,M259,N259,Pilotage!$D$25),\"\")","v":""}]
[null,null,null,null,"","",{"$f":"IF(E260<>\"\",IF($C$5=0,0,CUMIPMT($C$6/$C$8,$C$7*$C$8,$C$5,1,E260,Pilotage!$D$25)),\"\")","v":""},{"$f":"IF(E260<>\"\",IF($C$5=0,0,CUMIPMT($C$6/$C$8,$C$7*$C$8,$C$5,E260,E260,Pilotage!$D$25)),\"\")","v":""},{"$f":"IF(E260<>\"\",IF($C$5=0,0,$C$5+CUMPRINC($C$6/$C$8,$C$7*$C$8,$C$5,1,E260,Pilotage!$D$25)),\"\")","v":""},null,null,null,null,null,{"$f":"IF(K260<>\"\",-1*CUMIPMT($C$6/$C$8,$C$7*$C$8,$C$5,M260,N260,Pilotage!$D$25),\"\")","v":""}]
[null,null,null,null,"","",{"$f":"IF(E261<>\"\",IF($C$5=0,0,CUMIPMT($C$6/$C$8,$C$7*$C$8,$C$5,1,E261,Pilotage!$D$25)),\"\")","v":""},{"$f":"IF(E261<>\"\",IF($C$5=0,0,CUMIPMT($C$6/$C$8,$C$7*$C$8,$C$5,E261,E261,Pilotage!$D$25)),\"\")","v":""},{"$f":"IF(E261<>\"\",IF($C$5=0,0,$C$5+CUMPRINC($C$6/$C$8,$C$7*$C$8,$C$5,1,E261,Pilotage!$D$25)),\"\")","v":""},null,null,null,null,null,{"$f":"IF(K261<>\"\",-1*CUMIPMT($C$6/$C$8,$C$7*$C$8,$C$5,M261,N261,Pilotage!$D$25),\"\")","v":""}]
[null,null,null,null,"","",{"$f":"IF(E262<>\"\",IF($C$5=0,0,CUMIPMT($C$6/$C$8,$C$7*$C$8,$C$5,1,E262,Pilotage!$D$25)),\"\")","v":""},{"$f":"IF(E262<>\"\",IF($C$5=0,0,CUMIPMT($C$6/$C$8,$C$7*$C$8,$C$5,E262,E262,Pilotage!$D$25)),\"\")","v":""},{"$f":"IF(E262<>\"\",IF($C$5=0,0,$C$5+CUMPRINC($C$6/$C$8,$C$7*$C$8,$C$5,1,E262,Pilotage!$D$25)),\"\")","v":""},null,null,null,null,null,{"$f":"IF(K262<>\"\",-1*CUMIPMT($C$6/$C$8,$C$7*$C$8,$C$5,M262,N262,Pilotage!$D$25),\"\")","v":""}]
[null,null,null,null,"","",{"$f":"IF(E263<>\"\",IF($C$5=0,0,CUMIPMT($C$6/$C$8,$C$7*$C$8,$C$5,1,E263,Pilotage!$D$25)),\"\")","v":""},{"$f":"IF(E263<>\"\",IF($C$5=0,0,CUMIPMT($C$6/$C$8,$C$7*$C$8,$C$5,E263,E263,Pilotage!$D$25)),\"\")","v":""},{"$f":"IF(E263<>\"\",IF($C$5=0,0,$C$5+CUMPRINC($C$6/$C$8,$C$7*$C$8,$C$5,1,E263,Pilotage!$D$25)),\"\")","v":""},null,null,null,null,null,{"$f":"IF(K263<>\"\",-1*CUMIPMT($C$6/$C$8,$C$7*$C$8,$C$5,M263,N263,Pilotage!$D$25),\"\")","v":""}]
[null,null,null,null,{"$f":"IF(E263<$C$10,E263+1,\"\")","v":""},{"$f":"IF(E264<>\"\",EDATE(F263,$C$11),\"\")","v":""},{"$f":"IF(E264<>\"\",IF($C$5=0,0,CUMIPMT($C$6/$C$8,$C$7*$C$8,$C$5,1,E264,Pilotage!$D$25)),\"\")","v":""},{"$f":"IF(E264<>\"\",IF($C$5=0,0,CUMIPMT($C$6/$C$8,$C$7*$C$8,$C$5,E264,E264,Pilotage!$D$25)),\"\")","v":""},{"$f":"IF(E264<>\"\",IF($C$5=0,0,$C$5+CUMPRINC($C$6/$C$8,$C$7*$C$8,$C$5,1,E264,Pilotage!$D$25)),\"\")","v":""},null,null,null,null,null,{"$f":"IF(K264<>\"\",-1*CUMIPMT($C$6/$C$8,$C$7*$C$8,$C$5,M264,N264,Pilotage!$D$25),\"\")","v":""}]
[null,null,null,null,"","",{"$f":"IF(E265<>\"\",IF($C$5=0,0,CUMIPMT($C$6/$C$8,$C$7*$C$8,$C$5,1,E265,Pilotage!$D$25)),\"\")","v":""},{"$f":"IF(E265<>\"\",IF($C$5=0,0,CUMIPMT($C$6/$C$8,$C$7*$C$8,$C$5,E265,E265,Pilotage!$D$25)),\"\")","v":""},{"$f":"IF(E265<>\"\",IF($C$5=0,0,$C$5+CUMPRINC($C$6/$C$8,$C$7*$C$8,$C$5,1,E265,Pilotage!$D$25)),\"\")","v":""},null,null,null,null,null,{"$f":"IF(K265<>\"\",-1*CUMIPMT($C$6/$C$8,$C$7*$C$8,$C$5,M265,N265,Pilotage!$D$25),\"\")","v":""}]
[null,null,null,null,"","",{"$f":"IF(E266<>\"\",IF($C$5=0,0,CUMIPMT($C$6/$C$8,$C$7*$C$8,$C$5,1,E266,Pilotage!$D$25)),\"\")","v":""},{"$f":"IF(E266<>\"\",IF($C$5=0,0,CUMIPMT($C$6/$C$8,$C$7*$C$8,$C$5,E266,E266,Pilotage!$D$25)),\"\")","v":""},{"$f":"IF(E266<>\"\",IF($C$5=0,0,$C$5+CUMPRINC($C$6/$C$8,$C$7*$C$8,$C$5,1,E266,Pilotage!$D$25)),\"\")","v":""},null,null,null,null,null,{"$f":"IF(K266<>\"\",-1*CUMIPMT($C$6/$C$8,$C$7*$C$8,$C$5,M266,N266,Pilotage!$D$25),\"\")","v":""}]
[null,null,null,null,"","",{"$f":"IF(E267<>\"\",IF($C$5=0,0,CUMIPMT($C$6/$C$8,$C$7*$C$8,$C$5,1,E267,Pilotage!$D$25)),\"\")","v":""},{"$f":"IF(E267<>\"\",IF($C$5=0,0,CUMIPMT($C$6/$C$8,$C$7*$C$8,$C$5,E267,E267,Pilotage!$D$25)),\"\")","v":""},{"$f":"IF(E267<>\"\",IF($C$5=0,0,$C$5+CUMPRINC($C$6/$C$8,$C$7*$C$8,$C$5,1,E267,Pilotage!$D$25)),\"\")","v":""},null,null,null,null,null,{"$f":"IF(K267<>\"\",-1*CUMIPMT($C$6/$C$8,$C$7*$C$8,$C$5,M267,N267,Pilotage!$D$25),\"\")","v":""}]
[null,null,null,null,"","",{"$f":"IF(E268<>\"\",IF($C$5=0,0,CUMIPMT($C$6/$C$8,$C$7*$C$8,$C$5,1,E268,Pilotage!$D$25)),\"\")","v":""},{"$f":"IF(E268<>\"\",IF($C$5=0,0,CUMIPMT($C$6/$C$8,$C$7*$C$8,$C$5,E268,E268,Pilotage!$D$25)),\"\")","v":""},{"$f":"IF(E268<>\"\",IF($C$5=0,0,$C$5+CUMPRINC($C$6/$C$8,$C$7*$C$8,$C$5,1,E268,Pilotage!$D$25)),\"\")","v":""},null,null,null,null,null,{"$f":"IF(K268<>\"\",-1*CUMIPMT($C$6/$C$8,$C$7*$C$8,$C$5,M268,N268,Pilotage!$D$25),\"\")","v":""}]
[null,null,null,null,"","",{"$f":"IF(E269<>\"\",IF($C$5=0,0,CUMIPMT($C$6/$C$8,$C$7*$C$8,$C$5,1,E269,Pilotage!$D$25)),\"\")","v":""},{"$f":"IF(E269<>\"\",IF($C$5=0,0,CUMIPMT($C$6/$C$8,$C$7*$C$8,$C$5,E269,E269,Pilotage!$D$25)),\"\")","v":""},{"$f":"IF(E269<>\"\",IF($C$5=0,0,$C$5+CUMPRINC($C$6/$C$8,$C$7*$C$8,$C$5,1,E269,Pilotage!$D$25)),\"\")","v":""},null,null,null,null,null,{"$f":"IF(K269<>\"\",-1*CUMIPMT($C$6/$C$8,$C$7*$C$8,$C$5,M269,N269,Pilotage!$D$25),\"\")","v":""}]
[null,null,null,null,"","",{"$f":"IF(E270<>\"\",IF($C$5=0,0,CUMIPMT($C$6/$C$8,$C$7*$C$8,$C$5,1,E270,Pilotage!$D$25)),\"\")","v":""},{"$f":"IF(E270<>\"\",IF($C$5=0,0,CUMIPMT($C$6/$C$8,$C$7*$C$8,$C$5,E270,E270,Pilotage!$D$25)),\"\")","v":""},{"$f":"IF(E270<>\"\",IF($C$5=0,0,$C$5+CUMPRINC($C$6/$C$8,$C$7*$C$8,$C$5,1,E270,Pilotage!$D$25)),\"\")","v":""},null,null,null,null,null,{"$f":"IF(K270<>\"\",-1*CUMIPMT($C$6/$C$8,$C$7*$C$8,$C$5,M270,N270,Pilotage!$D$25),\"\")","v":""}]
[null,null,null,null,"","",{"$f":"IF(E271<>\"\",IF($C$5=0,0,CUMIPMT($C$6/$C$8,$C$7*$C$8,$C$5,1,E271,Pilotage!$D$25)),\"\")","v":""},{"$f":"IF(E271<>\"\",IF($C$5=0,0,CUMIPMT($C$6/$C$8,$C$7*$C$8,$C$5,E271,E271,Pilotage!$D$25)),\"\")","v":""},{"$f":"IF(E271<>\"\",IF($C$5=0,0,$C$5+CUMPRINC($C$6/$C$8,$C$7*$C$8,$C$5,1,E271,Pilotage!$D$25)),\"\")","v":""},null,null,null,null,null,{"$f":"IF(K271<>\"\",-1*CUMIPMT($C$6/$C$8,$C$7*$C$8,$C$5,M271,N271,Pilotage!$D$25),\"\")","v":""}]
[null,null,null,null,"","",{"$f":"IF(E272<>\"\",IF($C$5=0,0,CUMIPMT($C$6/$C$8,$C$7*$C$8,$C$5,1,E272,Pilotage!$D$25)),\"\")","v":""},{"$f":"IF(E272<>\"\",IF($C$5=0,0,CUMIPMT($C$6/$C$8,$C$7*$C$8,$C$5,E272,E272,Pilotage!$D$25)),\"\")","v":""},{"$f":"IF(E272<>\"\",IF($C$5=0,0,$C$5+CUMPRINC($C$6/$C$8,$C$7*$C$8,$C$5,1,E272,Pilotage!$D$25)),\"\")","v":""},null,null,null,null,null,{"$f":"IF(K272<>\"\",-1*CUMIPMT($C$6/$C$8,$C$7*$C$8,$C$5,M272,N272,Pilotage!$D$25),\"\")","v":""}]
[null,null,null,null,"","",{"$f":"IF(E273<>\"\",IF($C$5=0,0,CUMIPMT($C$6/$C$8,$C$7*$C$8,$C$5,1,E273,Pilotage!$D$25)),\"\")","v":""},{"$f":"IF(E273<>\"\",IF($C$5=0,0,CUMIPMT($C$6/$C$8,$C$7*$C$8,$C$5,E273,E273,Pilotage!$D$25)),\"\")","v":""},{"$f":"IF(E273<>\"\",IF($C$5=0,0,$C$5+CUMPRINC($C$6/$C$8,$C$7*$C$8,$C$5,1,E273,Pilotage!$D$25)),\"\")","v":""},null,null,null,null,null,{"$f":"IF(K273<>\"\",-1*CUMIPMT($C$6/$C$8,$C$7*$C$8,$C$5,M273,N273,Pilotage!$D$25),\"\")","v":""}]
[null,null,null,null,"","",{"$f":"IF(E274<>\"\",IF($C$5=0,0,CUMIPMT($C$6/$C$8,$C$7*$C$8,$C$5,1,E274,Pilotage!$D$25)),\"\")","v":""},{"$f":"IF(E274<>\"\",IF($C$5=0,0,CUMIPMT($C$6/$C$8,$C$7*$C$8,$C$5,E274,E274,Pilotage!$D$25)),\"\")","v":""},{"$f":"IF(E274<>\"\",IF($C$5=0,0,$C$5+CUMPRINC($C$6/$C$8,$C$7*$C$8,$C$5,1,E274,Pilotage!$D$25)),\"\")","v":""},null,null,null,null,null,{"$f":"IF(K274<>\"\",-1*CUMIPMT($C$6/$C$8,$C$7*$C$8,$C$5,M274,N274,Pilotage!$D$25),\"\")","v":""}]
[null,null,null,null,"","",{"$f":"IF(E275<>\"\",IF($C$5=0,0,CUMIPMT($C$6/$C$8,$C$7*$C$8,$C$5,1,E275,Pilotage!$D$25)),\"\")","v":""},{"$f":"IF(E275<>\"\",IF($C$5=0,0,CUMIPMT($C$6/$C$8,$C$7*$C$8,$C$5,E275,E275,Pilotage!$D$25)),\"\")","v":""},{"$f":"IF(E275<>\"\",IF($C$5=0,0,$C$5+CUMPRINC($C$6/$C$8,$C$7*$C$8,$C$5,1,E275,Pilotage!$D$25)),\"\")","v":""},null,null,null,null,null,{"$f":"IF(K275<>\"\",-1*CUMIPMT($C$6/$C$8,$C$7*$C$8,$C$5,M275,N275,Pilotage!$D$25),\"\")","v":""}]
[null,null,null,null,"","",{"$f":"IF(E276<>\"\",IF($C$5=0,0,CUMIPMT($C$6/$C$8,$C$7*$C$8,$C$5,1,E276,Pilotage!$D$25)),\"\")","v":""},{"$f":"IF(E276<>\"\",IF($C$5=0,0,CUMIPMT($C$6/$C$8,$C$7*$C$8,$C$5,E276,E276,Pilotage!$D$25)),\"\")","v":""},{"$f":"IF(E276<>\"\",IF($C$5=0,0,$C$5+CUMPRINC($C$6/$C$8,$C$7*$C$8,$C$5,1,E276,Pilotage!$D$25)),\"\")","v":""},null,null,null,null,null,{"$f":"IF(K276<>\"\",-1*CUMIPMT($C$6/$C$8,$C$7*$C$8,$C$5,M276,N276,Pilotage!$D$25),\"\")","v":""}]
[null,null,null,null,"","",{"$f":"IF(E277<>\"\",IF($C$5=0,0,CUMIPMT($C$6/$C$8,$C$7*$C$8,$C$5,1,E277,Pilotage!$D$25)),\"\")","v":""},{"$f":"IF(E277<>\"\",IF($C$5=0,0,CUMIPMT($C$6/$C$8,$C$7*$C$8,$C$5,E277,E277,Pilotage!$D$25)),\"\")","v":""},{"$f":"IF(E277<>\"\",IF($C$5=0,0,$C$5+CUMPRINC($C$6/$C$8,$C$7*$C$8,$C$5,1,E277,Pilotage!$D$25)),\"\")","v":""},null,null,null,null,null,{"$f":"IF(K277<>\"\",-1*CUMIPMT($C$6/$C$8,$C$7*$C$8,$C$5,M277,N277,Pilotage!$D$25),\"\")","v":""}]
[null,null,null,null,"","",{"$f":"IF(E278<>\"\",IF($C$5=0,0,CUMIPMT($C$6/$C$8,$C$7*$C$8,$C$5,1,E278,Pilotage!$D$25)),\"\")","v":""},{"$f":"IF(E278<>\"\",IF($C$5=0,0,CUMIPMT($C$6/$C$8,$C$7*$C$8,$C$5,E278,E278,Pilotage!$D$25)),\"\")","v":""},{"$f":"IF(E278<>\"\",IF($C$5=0,0,$C$5+CUMPRINC($C$6/$C$8,$C$7*$C$8,$C$5,1,E278,Pilotage!$D$25)),\"\")","v":""},null,null,null,null,null,{"$f":"IF(K278<>\"\",-1*CUMIPMT($C$6/$C$8,$C$7*$C$8,$C$5,M278,N278,Pilotage!$D$25),\"\")","v":""}]
[null,null,null,null,"","",{"$f":"IF(E279<>\"\",IF($C$5=0,0,CUMIPMT($C$6/$C$8,$C$7*$C$8,$C$5,1,E279,Pilotage!$D$25)),\"\")","v":""},{"$f":"IF(E279<>\"\",IF($C$5=0,0,CUMIPMT($C$6/$C$8,$C$7*$C$8,$C$5,E279,E279,Pilotage!$D$25)),\"\")","v":""},{"$f":"IF(E279<>\"\",IF($C$5=0,0,$C$5+CUMPRINC($C$6/$C$8,$C$7*$C$8,$C$5,1,E279,Pilotage!$D$25)),\"\")","v":""},null,null,null,null,null,{"$f":"IF(K279<>\"\",-1*CUMIPMT($C$6/$C$8,$C$7*$C$8,$C$5,M279,N279,Pilotage!$D$25),\"\")","v":""}]
[null,null,null,null,"","",{"$f":"IF(E280<>\"\",IF($C$5=0,0,CUMIPMT($C$6/$C$8,$C$7*$C$8,$C$5,1,E280,Pilotage!$D$25)),\"\")","v":""},{"$f":"IF(E280<>\"\",IF($C$5=0,0,CUMIPMT($C$6/$C$8,$C$7*$C$8,$C$5,E280,E280,Pilotage!$D$25)),\"\")","v":""},{"$f":"IF(E280<>\"\",IF($C$5=0,0,$C$5+CUMPRINC($C$6/$C$8,$C$7*$C$8,$C$5,1,E280,Pilotage!$D$25)),\"\")","v":""},null,null,null,null,null,{"$f":"IF(K280<>\"\",-1*CUMIPMT($C$6/$C$8,$C$7*$C$8,$C$5,M280,N280,Pilotage!$D$25),\"\")","v":""}]
[null,null,null,null,"","",{"$f":"IF(E281<>\"\",IF($C$5=0,0,CUMIPMT($C$6/$C$8,$C$7*$C$8,$C$5,1,E281,Pilotage!$D$25)),\"\")","v":""},{"$f":"IF(E281<>\"\",IF($C$5=0,0,CUMIPMT($C$6/$C$8,$C$7*$C$8,$C$5,E281,E281,Pilotage!$D$25)),\"\")","v":""},{"$f":"IF(E281<>\"\",IF($C$5=0,0,$C$5+CUMPRINC($C$6/$C$8,$C$7*$C$8,$C$5,1,E281,Pilotage!$D$25)),\"\")","v":""},null,null,null,null,null,{"$f":"IF(K281<>\"\",-1*CUMIPMT($C$6/$C$8,$C$7*$C$8,$C$5,M281,N281,Pilotage!$D$25),\"\")","v":""}]
[null,null,null,null,"","",{"$f":"IF(E282<>\"\",IF($C$5=0,0,CUMIPMT($C$6/$C$8,$C$7*$C$8,$C$5,1,E282,Pilotage!$D$25)),\"\")","v":""},{"$f":"IF(E282<>\"\",IF($C$5=0,0,CUMIPMT($C$6/$C$8,$C$7*$C$8,$C$5,E282,E282,Pilotage!$D$25)),\"\")","v":""},{"$f":"IF(E282<>\"\",IF($C$5=0,0,$C$5+CUMPRINC($C$6/$C$8,$C$7*$C$8,$C$5,1,E282,Pilotage!$D$25)),\"\")","v":""},null,null,null,null,null,{"$f":"IF(K282<>\"\",-1*CUMIPMT($C$6/$C$8,$C$7*$C$8,$C$5,M282,N282,Pilotage!$D$25),\"\")","v":""}]
[null,null,null,null,"","",{"$f":"IF(E283<>\"\",IF($C$5=0,0,CUMIPMT($C$6/$C$8,$C$7*$C$8,$C$5,1,E283,Pilotage!$D$25)),\"\")","v":""},{"$f":"IF(E283<>\"\",IF($C$5=0,0,CUMIPMT($C$6/$C$8,$C$7*$C$8,$C$5,E283,E283,Pilotage!$D$25)),\"\")","v":""},{"$f":"IF(E283<>\"\",IF($C$5=0,0,$C$5+CUMPRINC($C$6/$C$8,$C$7*$C$8,$C$5,1,E283,Pilotage!$D$25)),\"\")","v":""},null,null,null,null,null,{"$f":"IF(K283<>\"\",-1*CUMIPMT($C$6/$C$8,$C$7*$C$8,$C$5,M283,N283,Pilotage!$D$25),\"\")","v":""}]
[null,null,null,null,"","",{"$f":"IF(E284<>\"\",IF($C$5=0,0,CUMIPMT($C$6/$C$8,$C$7*$C$8,$C$5,1,E284,Pilotage!$D$25)),\"\")","v":""},{"$f":"IF(E284<>\"\",IF($C$5=0,0,CUMIPMT($C$6/$C$8,$C$7*$C$8,$C$5,E284,E284,Pilotage!$D$25)),\"\")","v":""},{"$f":"IF(E284<>\"\",IF($C$5=0,0,$C$5+CUMPRINC($C$6/$C$8,$C$7*$C$8,$C$5,1,E284,Pilotage!$D$25)),\"\")","v":""},null,null,null,null,null,{"$f":"IF(K284<>\"\",-1*CUMIPMT($C$6/$C$8,$C$7*$C$8,$C$5,M284,N284,Pilotage!$D$25),\"\")","v":""}]
[null,null,null,null,"","",{"$f":"IF(E285<>\"\",IF($C$5=0,0,CUMIPMT($C$6/$C$8,$C$7*$C$8,$C$5,1,E285,Pilotage!$D$25)),\"\")","v":""},{"$f":"IF(E285<>\"\",IF($C$5=0,0,CUMIPMT($C$6/$C$8,$C$7*$C$8,$C$5,E285,E285,Pilotage!$D$25)),\"\")","v":""},{"$f":"IF(E285<>\"\",IF($C$5=0,0,$C$5+CUMPRINC($C$6/$C$8,$C$7*$C$8,$C$5,1,E285,Pilotage!$D$25)),\"\")","v":""},null,null,null,null,null,{"$f":"IF(K285<>\"\",-1*CUMIPMT($C$6/$C$8,$C$7*$C$8,$C$5,M285,N285,Pilotage!$D$25),\"\")","v":""}]
[null,null,null,null,"","",{"$f":"IF(E286<>\"\",IF($C$5=0,0,CUMIPMT($C$6/$C$8,$C$7*$C$8,$C$5,1,E286,Pilotage!$D$25)),\"\")","v":""},{"$f":"IF(E286<>\"\",IF($C$5=0,0,CUMIPMT($C$6/$C$8,$C$7*$C$8,$C$5,E286,E286,Pilotage!$D$25)),\"\")","v":""},{"$f":"IF(E286<>\"\",IF($C$5=0,0,$C$5+CUMPRINC($C$6/$C$8,$C$7*$C$8,$C$5,1,E286,Pilotage!$D$25)),\"\")","v":""},null,null,null,null,null,{"$f":"IF(K286<>\"\",-1*CUMIPMT($C$6/$C$8,$C$7*$C$8,$C$5,M286,N286,Pilotage!$D$25),\"\")","v":""}]
[null,null,null,null,"","",{"$f":"IF(E287<>\"\",IF($C$5=0,0,CUMIPMT($C$6/$C$8,$C$7*$C$8,$C$5,1,E287,Pilotage!$D$25)),\"\")","v":""},{"$f":"IF(E287<>\"\",IF($C$5=0,0,CUMIPMT($C$6/$C$8,$C$7*$C$8,$C$5,E287,E287,Pilotage!$D$25)),\"\")","v":""},{"$f":"IF(E287<>\"\",IF($C$5=0,0,$C$5+CUMPRINC($C$6/$C$8,$C$7*$C$8,$C$5,1,E287,Pilotage!$D$25)),\"\")","v":""},null,null,null,null,null,{"$f":"IF(K287<>\"\",-1*CUMIPMT($C$6/$C$8,$C$7*$C$8,$C$5,M287,N287,Pilotage!$D$25),\"\")","v":""}]
[null,null,null,null,"","",{"$f":"IF(E288<>\"\",IF($C$5=0,0,CUMIPMT($C$6/$C$8,$C$7*$C$8,$C$5,1,E288,Pilotage!$D$25)),\"\")","v":""},{"$f":"IF(E288<>\"\",IF($C$5=0,0,CUMIPMT($C$6/$C$8,$C$7*$C$8,$C$5,E288,E288,Pilotage!$D$25)),\"\")","v":""},{"$f":"IF(E288<>\"\",IF($C$5=0,0,$C$5+CUMPRINC($C$6/$C$8,$C$7*$C$8,$C$5,1,E288,Pilotage!$D$25)),\"\")","v":""},null,null,null,null,null,{"$f":"IF(K288<>\"\",-1*CUMIPMT($C$6/$C$8,$C$7*$C$8,$C$5,M288,N288,Pilotage!$D$25),\"\")","v":""}]
[null,null,null,null,"","",{"$f":"IF(E289<>\"\",IF($C$5=0,0,CUMIPMT($C$6/$C$8,$C$7*$C$8,$C$5,1,E289,Pilotage!$D$25)),\"\")","v":""},{"$f":"IF(E289<>\"\",IF($C$5=0,0,CUMIPMT($C$6/$C$8,$C$7*$C$8,$C$5,E289,E289,Pilotage!$D$25)),\"\")","v":""},{"$f":"IF(E289<>\"\",IF($C$5=0,0,$C$5+CUMPRINC($C$6/$C$8,$C$7*$C$8,$C$5,1,E289,Pilotage!$D$25)),\"\")","v":""},null,null,null,null,null,{"$f":"IF(K289<>\"\",-1*CUMIPMT($C$6/$C$8,$C$7*$C$8,$C$5,M289,N289,Pilotage!$D$25),\"\")","v":""}]
[null,null,null,null,"","",{"$f":"IF(E290<>\"\",IF($C$5=0,0,CUMIPMT($C$6/$C$8,$C$7*$C$8,$C$5,1,E290,Pilotage!$D$25)),\"\")","v":""},{"$f":"IF(E290<>\"\",IF($C$5=0,0,CUMIPMT($C$6/$C$8,$C$7*$C$8,$C$5,E290,E290,Pilotage!$D$25)),\"\")","v":""},{"$f":"IF(E290<>\"\",IF($C$5=0,0,$C$5+CUMPRINC($C$6/$C$8,$C$7*$C$8,$C$5,1,E290,Pilotage!$D$25)),\"\")","v":""},null,null,null,null,null,{"$f":"IF(K290<>\"\",-1*CUMIPMT($C$6/$C$8,$C$7*$C$8,$C$5,M290,N290,Pilotage!$D$25),\"\")","v":""}]
[null,null,null,null,"","",{"$f":"IF(E291<>\"\",IF($C$5=0,0,CUMIPMT($C$6/$C$8,$C$7*$C$8,$C$5,1,E291,Pilotage!$D$25)),\"\")","v":""},{"$f":"IF(E291<>\"\",IF($C$5=0,0,CUMIPMT($C$6/$C$8,$C$7*$C$8,$C$5,E291,E291,Pilotage!$D$25)),\"\")","v":""},{"$f":"IF(E291<>\"\",IF($C$5=0,0,$C$5+CUMPRINC($C$6/$C$8,$C$7*$C$8,$C$5,1,E291,Pilotage!$D$25)),\"\")","v":""},null,null,null,null,null,{"$f":"IF(K291<>\"\",-1*CUMIPMT($C$6/$C$8,$C$7*$C$8,$C$5,M291,N291,Pilotage!$D$25),\"\")","v":""}]
[null,null,null,null,"","",{"$f":"IF(E292<>\"\",IF($C$5=0,0,CUMIPMT($C$6/$C$8,$C$7*$C$8,$C$5,1,E292,Pilotage!$D$25)),\"\")","v":""},{"$f":"IF(E292<>\"\",IF($C$5=0,0,CUMIPMT($C$6/$C$8,$C$7*$C$8,$C$5,E292,E292,Pilotage!$D$25)),\"\")","v":""},{"$f":"IF(E292<>\"\",IF($C$5=0,0,$C$5+CUMPRINC($C$6/$C$8,$C$7*$C$8,$C$5,1,E292,Pilotage!$D$25)),\"\")","v":""},null,null,null,null,null,{"$f":"IF(K292<>\"\",-1*CUMIPMT($C$6/$C$8,$C$7*$C$8,$C$5,M292,N292,Pilotage!$D$25),\"\")","v":""}]
[null,null,null,null,"","",{"$f":"IF(E293<>\"\",IF($C$5=0,0,CUMIPMT($C$6/$C$8,$C$7*$C$8,$C$5,1,E293,Pilotage!$D$25)),\"\")","v":""},{"$f":"IF(E293<>\"\",IF($C$5=0,0,CUMIPMT($C$6/$C$8,$C$7*$C$8,$C$5,E293,E293,Pilotage!$D$25)),\"\")","v":""},{"$f":"IF(E293<>\"\",IF($C$5=0,0,$C$5+CUMPRINC($C$6/$C$8,$C$7*$C$8,$C$5,1,E293,Pilotage!$D$25)),\"\")","v":""},null,null,null,null,null,{"$f":"IF(K293<>\"\",-1*CUMIPMT($C$6/$C$8,$C$7*$C$8,$C$5,M293,N293,Pilotage!$D$25),\"\")","v":""}]
[null,null,null,null,"","",{"$f":"IF(E294<>\"\",IF($C$5=0,0,CUMIPMT($C$6/$C$8,$C$7*$C$8,$C$5,1,E294,Pilotage!$D$25)),\"\")","v":""},{"$f":"IF(E294<>\"\",IF($C$5=0,0,CUMIPMT($C$6/$C$8,$C$7*$C$8,$C$5,E294,E294,Pilotage!$D$25)),\"\")","v":""},{"$f":"IF(E294<>\"\",IF($C$5=0,0,$C$5+CUMPRINC($C$6/$C$8,$C$7*$C$8,$C$5,1,E294,Pilotage!$D$25)),\"\")","v":""},null,null,null,null,null,{"$f":"IF(K294<>\"\",-1*CUMIPMT($C$6/$C$8,$C$7*$C$8,$C$5,M294,N294,Pilotage!$D$25),\"\")","v":""}]
[null,null,null,null,"","",{"$f":"IF(E295<>\"\",IF($C$5=0,0,CUMIPMT($C$6/$C$8,$C$7*$C$8,$C$5,1,E295,Pilotage!$D$25)),\"\")","v":""},{"$f":"IF(E295<>\"\",IF($C$5=0,0,CUMIPMT($C$6/$C$8,$C$7*$C$8,$C$5,E295,E295,Pilotage!$D$25)),\"\")","v":""},{"$f":"IF(E295<>\"\",IF($C$5=0,0,$C$5+CUMPRINC($C$6/$C$8,$C$7*$C$8,$C$5,1,E295,Pilotage!$D$25)),\"\")","v":""},null,null,null,null,null,{"$f":"IF(K295<>\"\",-1*CUMIPMT($C$6/$C$8,$C$7*$C$8,$C$5,M295,N295,Pilotage!$D$25),\"\")","v":""}]
[null,null,null,null,"","",{"$f":"IF(E296<>\"\",IF($C$5=0,0,CUMIPMT($C$6/$C$8,$C$7*$C$8,$C$5,1,E296,Pilotage!$D$25)),\"\")","v":""},{"$f":"IF(E296<>\"\",IF($C$5=0,0,CUMIPMT($C$6/$C$8,$C$7*$C$8,$C$5,E296,E296,Pilotage!$D$25)),\"\")","v":""},{"$f":"IF(E296<>\"\",IF($C$5=0,0,$C$5+CUMPRINC($C$6/$C$8,$C$7*$C$8,$C$5,1,E296,Pilotage!$D$25)),\"\")","v":""},null,null,null,null,null,{"$f":"IF(K296<>\"\",-1*CUMIPMT($C$6/$C$8,$C$7*$C$8,$C$5,M296,N296,Pilotage!$D$25),\"\")","v":""}]
[null,null,null,null,"","",{"$f":"IF(E297<>\"\",IF($C$5=0,0,CUMIPMT($C$6/$C$8,$C$7*$C$8,$C$5,1,E297,Pilotage!$D$25)),\"\")","v":""},{"$f":"IF(E297<>\"\",IF($C$5=0,0,CUMIPMT($C$6/$C$8,$C$7*$C$8,$C$5,E297,E297,Pilotage!$D$25)),\"\")","v":""},{"$f":"IF(E297<>\"\",IF($C$5=0,0,$C$5+CUMPRINC($C$6/$C$8,$C$7*$C$8,$C$5,1,E297,Pilotage!$D$25)),\"\")","v":""},null,null,null,null,null,{"$f":"IF(K297<>\"\",-1*CUMIPMT($C$6/$C$8,$C$7*$C$8,$C$5,M297,N297,Pilotage!$D$25),\"\")","v":""}]
[null,null,null,null,"","",{"$f":"IF(E298<>\"\",IF($C$5=0,0,CUMIPMT($C$6/$C$8,$C$7*$C$8,$C$5,1,E298,Pilotage!$D$25)),\"\")","v":""},{"$f":"IF(E298<>\"\",IF($C$5=0,0,CUMIPMT($C$6/$C$8,$C$7*$C$8,$C$5,E298,E298,Pilotage!$D$25)),\"\")","v":""},{"$f":"IF(E298<>\"\",IF($C$5=0,0,$C$5+CUMPRINC($C$6/$C$8,$C$7*$C$8,$C$5,1,E298,Pilotage!$D$25)),\"\")","v":""},null,null,null,null,null,{"$f":"IF(K298<>\"\",-1*CUMIPMT($C$6/$C$8,$C$7*$C$8,$C$5,M298,N298,Pilotage!$D$25),\"\")","v":""}]
[null,null,null,null,"","",{"$f":"IF(E299<>\"\",IF($C$5=0,0,CUMIPMT($C$6/$C$8,$C$7*$C$8,$C$5,1,E299,Pilotage!$D$25)),\"\")","v":""},{"$f":"IF(E299<>\"\",IF($C$5=0,0,CUMIPMT($C$6/$C$8,$C$7*$C$8,$C$5,E299,E299,Pilotage!$D$25)),\"\")","v":""},{"$f":"IF(E299<>\"\",IF($C$5=0,0,$C$5+CUMPRINC($C$6/$C$8,$C$7*$C$8,$C$5,1,E299,Pilotage!$D$25)),\"\")","v":""},null,null,null,null,null,{"$f":"IF(K299<>\"\",-1*CUMIPMT($C$6/$C$8,$C$7*$C$8,$C$5,M299,N299,Pilotage!$D$25),\"\")","v":""}]
[null,null,null,null,"","",{"$f":"IF(E300<>\"\",IF($C$5=0,0,CUMIPMT($C$6/$C$8,$C$7*$C$8,$C$5,1,E300,Pilotage!$D$25)),\"\")","v":""},{"$f":"IF(E300<>\"\",IF($C$5=0,0,CUMIPMT($C$6/$C$8,$C$7*$C$8,$C$5,E300,E300,Pilotage!$D$25)),\"\")","v":""},{"$f":"IF(E300<>\"\",IF($C$5=0,0,$C$5+CUMPRINC($C$6/$C$8,$C$7*$C$8,$C$5,1,E300,Pilotage!$D$25)),\"\")","v":""},null,null,null,null,null,{"$f":"IF(K300<>\"\",-1*CUMIPMT($C$6/$C$8,$C$7*$C$8,$C$5,M300,N300,Pilotage!$D$25),\"\")","v":""}]
[null,null,null,null,"","",{"$f":"IF(E301<>\"\",IF($C$5=0,0,CUMIPMT($C$6/$C$8,$C$7*$C$8,$C$5,1,E301,Pilotage!$D$25)),\"\")","v":""},{"$f":"IF(E301<>\"\",IF($C$5=0,0,CUMIPMT($C$6/$C$8,$C$7*$C$8,$C$5,E301,E301,Pilotage!$D$25)),\"\")","v":""},{"$f":"IF(E301<>\"\",IF($C$5=0,0,$C$5+CUMPRINC($C$6/$C$8,$C$7*$C$8,$C$5,1,E301,Pilotage!$D$25)),\"\")","v":""},null,null,null,null,null,{"$f":"IF(K301<>\"\",-1*CUMIPMT($C$6/$C$8,$C$7*$C$8,$C$5,M301,N301,Pilotage!$D$25),\"\")","v":""}]
[null,null,null,null,"","",{"$f":"IF(E302<>\"\",IF($C$5=0,0,CUMIPMT($C$6/$C$8,$C$7*$C$8,$C$5,1,E302,Pilotage!$D$25)),\"\")","v":""},{"$f":"IF(E302<>\"\",IF($C$5=0,0,CUMIPMT($C$6/$C$8,$C$7*$C$8,$C$5,E302,E302,Pilotage!$D$25)),\"\")","v":""},{"$f":"IF(E302<>\"\",IF($C$5=0,0,$C$5+CUMPRINC($C$6/$C$8,$C$7*$C$8,$C$5,1,E302,Pilotage!$D$25)),\"\")","v":""},null,null,null,null,null,{"$f":"IF(K302<>\"\",-1*CUMIPMT($C$6/$C$8,$C$7*$C$8,$C$5,M302,N302,Pilotage!$D$25),\"\")","v":""}]
[null,null,null,null,"","",{"$f":"IF(E303<>\"\",IF($C$5=0,0,CUMIPMT($C$6/$C$8,$C$7*$C$8,$C$5,1,E303,Pilotage!$D$25)),\"\")","v":""},{"$f":"IF(E303<>\"\",IF($C$5=0,0,CUMIPMT($C$6/$C$8,$C$7*$C$8,$C$5,E303,E303,Pilotage!$D$25)),\"\")","v":""},{"$f":"IF(E303<>\"\",IF($C$5=0,0,$C$5+CUMPRINC($C$6/$C$8,$C$7*$C$8,$C$5,1,E303,Pilotage!$D$25)),\"\")","v":""},null,null,null,null,null,{"$f":"IF(K303<>\"\",-1*CUMIPMT($C$6/$C$8,$C$7*$C$8,$C$5,M303,N303,Pilotage!$D$25),\"\")","v":""}]
[null,null,null,null,"","",{"$f":"IF(E304<>\"\",IF($C$5=0,0,CUMIPMT($C$6/$C$8,$C$7*$C$8,$C$5,1,E304,Pilotage!$D$25)),\"\")","v":""},{"$f":"IF(E304<>\"\",IF($C$5=0,0,CUMIPMT($C$6/$C$8,$C$7*$C$8,$C$5,E304,E304,Pilotage!$D$25)),\"\")","v":""},{"$f":"IF(E304<>\"\",IF($C$5=0,0,$C$5+CUMPRINC($C$6/$C$8,$C$7*$C$8,$C$5,1,E304,Pilotage!$D$25)),\"\")","v":""},null,null,null,null,null,{"$f":"IF(K304<>\"\",-1*CUMIPMT($C$6/$C$8,$C$7*$C$8,$C$5,M304,N304,Pilotage!$D$25),\"\")","v":""}]
[null,null,null,null,"","",{"$f":"IF(E305<>\"\",IF($C$5=0,0,CUMIPMT($C$6/$C$8,$C$7*$C$8,$C$5,1,E305,Pilotage!$D$25)),\"\")","v":""},{"$f":"IF(E305<>\"\",IF($C$5=0,0,CUMIPMT($C$6/$C$8,$C$7*$C$8,$C$5,E305,E305,Pilotage!$D$25)),\"\")","v":""},{"$f":"IF(E305<>\"\",IF($C$5=0,0,$C$5+CUMPRINC($C$6/$C$8,$C$7*$C$8,$C$5,1,E305,Pilotage!$D$25)),\"\")","v":""},null,null,null,null,null,{"$f":"IF(K305<>\"\",-1*CUMIPMT($C$6/$C$8,$C$7*$C$8,$C$5,M305,N305,Pilotage!$D$25),\"\")","v":""}]
[null,null,null,null,"","",{"$f":"IF(E306<>\"\",IF($C$5=0,0,CUMIPMT($C$6/$C$8,$C$7*$C$8,$C$5,1,E306,Pilotage!$D$25)),\"\")","v":""},{"$f":"IF(E306<>\"\",IF($C$5=0,0,CUMIPMT($C$6/$C$8,$C$7*$C$8,$C$5,E306,E306,Pilotage!$D$25)),\"\")","v":""},{"$f":"IF(E306<>\"\",IF($C$5=0,0,$C$5+CUMPRINC($C$6/$C$8,$C$7*$C$8,$C$5,1,E306,Pilotage!$D$25)),\"\")","v":""},null,null,null,null,null,{"$f":"IF(K306<>\"\",-1*CUMIPMT($C$6/$C$8,$C$7*$C$8,$C$5,M306,N306,Pilotage!$D$25),\"\")","v":""}]
[null,null,null,null,"","",{"$f":"IF(E307<>\"\",IF($C$5=0,0,CUMIPMT($C$6/$C$8,$C$7*$C$8,$C$5,1,E307,Pilotage!$D$25)),\"\")","v":""},{"$f":"IF(E307<>\"\",IF($C$5=0,0,CUMIPMT($C$6/$C$8,$C$7*$C$8,$C$5,E307,E307,Pilotage!$D$25)),\"\")","v":""},{"$f":"IF(E307<>\"\",IF($C$5=0,0,$C$5+CUMPRINC($C$6/$C$8,$C$7*$C$8,$C$5,1,E307,Pilotage!$D$25)),\"\")","v":""},null,null,null,null,null,{"$f":"IF(K307<>\"\",-1*CUMIPMT($C$6/$C$8,$C$7*$C$8,$C$5,M307,N307,Pilotage!$D$25),\"\")","v":""}]
[null,null,null,null,"","",{"$f":"IF(E308<>\"\",IF($C$5=0,0,CUMIPMT($C$6/$C$8,$C$7*$C$8,$C$5,1,E308,Pilotage!$D$25)),\"\")","v":""},{"$f":"IF(E308<>\"\",IF($C$5=0,0,CUMIPMT($C$6/$C$8,$C$7*$C$8,$C$5,E308,E308,Pilotage!$D$25)),\"\")","v":""},{"$f":"IF(E308<>\"\",IF($C$5=0,0,$C$5+CUMPRINC($C$6/$C$8,$C$7*$C$8,$C$5,1,E308,Pilotage!$D$25)),\"\")","v":""},null,null,null,null,null,{"$f":"IF(K308<>\"\",-1*CUMIPMT($C$6/$C$8,$C$7*$C$8,$C$5,M308,N308,Pilotage!$D$25),\"\")","v":""}]
[null,null,null,null,"","",{"$f":"IF(E309<>\"\",IF($C$5=0,0,CUMIPMT($C$6/$C$8,$C$7*$C$8,$C$5,1,E309,Pilotage!$D$25)),\"\")","v":""},{"$f":"IF(E309<>\"\",IF($C$5=0,0,CUMIPMT($C$6/$C$8,$C$7*$C$8,$C$5,E309,E309,Pilotage!$D$25)),\"\")","v":""},{"$f":"IF(E309<>\"\",IF($C$5=0,0,$C$5+CUMPRINC($C$6/$C$8,$C$7*$C$8,$C$5,1,E309,Pilotage!$D$25)),\"\")","v":""},null,null,null,null,null,{"$f":"IF(K309<>\"\",-1*CUMIPMT($C$6/$C$8,$C$7*$C$8,$C$5,M309,N309,Pilotage!$D$25),\"\")","v":""}]
[null,null,null,null,"","",{"$f":"IF(E310<>\"\",IF($C$5=0,0,CUMIPMT($C$6/$C$8,$C$7*$C$8,$C$5,1,E310,Pilotage!$D$25)),\"\")","v":""},{"$f":"IF(E310<>\"\",IF($C$5=0,0,CUMIPMT($C$6/$C$8,$C$7*$C$8,$C$5,E310,E310,Pilotage!$D$25)),\"\")","v":""},{"$f":"IF(E310<>\"\",IF($C$5=0,0,$C$5+CUMPRINC($C$6/$C$8,$C$7*$C$8,$C$5,1,E310,Pilotage!$D$25)),\"\")","v":""},null,null,null,null,null,{"$f":"IF(K310<>\"\",-1*CUMIPMT($C$6/$C$8,$C$7*$C$8,$C$5,M310,N310,Pilotage!$D$25),\"\")","v":""}]
[null,null,null,null,"","",{"$f":"IF(E311<>\"\",IF($C$5=0,0,CUMIPMT($C$6/$C$8,$C$7*$C$8,$C$5,1,E311,Pilotage!$D$25)),\"\")","v":""},{"$f":"IF(E311<>\"\",IF($C$5=0,0,CUMIPMT($C$6/$C$8,$C$7*$C$8,$C$5,E311,E311,Pilotage!$D$25)),\"\")","v":""},{"$f":"IF(E311<>\"\",IF($C$5=0,0,$C$5+CUMPRINC($C$6/$C$8,$C$7*$C$8,$C$5,1,E311,Pilotage!$D$25)),\"\")","v":""},null,null,null,null,null,{"$f":"IF(K311<>\"\",-1*CUMIPMT($C$6/$C$8,$C$7*$C$8,$C$5,M311,N311,Pilotage!$D$25),\"\")","v":""}]
[null,null,null,null,"","",{"$f":"IF(E312<>\"\",IF($C$5=0,0,CUMIPMT($C$6/$C$8,$C$7*$C$8,$C$5,1,E312,Pilotage!$D$25)),\"\")","v":""},{"$f":"IF(E312<>\"\",IF($C$5=0,0,CUMIPMT($C$6/$C$8,$C$7*$C$8,$C$5,E312,E312,Pilotage!$D$25)),\"\")","v":""},{"$f":"IF(E312<>\"\",IF($C$5=0,0,$C$5+CUMPRINC($C$6/$C$8,$C$7*$C$8,$C$5,1,E312,Pilotage!$D$25)),\"\")","v":""},null,null,null,null,null,{"$f":"IF(K312<>\"\",-1*CUMIPMT($C$6/$C$8,$C$7*$C$8,$C$5,M312,N312,Pilotage!$D$25),\"\")","v":""}]
[null,null,null,null,"","",{"$f":"IF(E313<>\"\",IF($C$5=0,0,CUMIPMT($C$6/$C$8,$C$7*$C$8,$C$5,1,E313,Pilotage!$D$25)),\"\")","v":""},{"$f":"IF(E313<>\"\",IF($C$5=0,0,CUMIPMT($C$6/$C$8,$C$7*$C$8,$C$5,E313,E313,Pilotage!$D$25)),\"\")","v":""},{"$f":"IF(E313<>\"\",IF($C$5=0,0,$C$5+CUMPRINC($C$6/$C$8,$C$7*$C$8,$C$5,1,E313,Pilotage!$D$25)),\"\")","v":""},null,null,null,null,null,{"$f":"IF(K313<>\"\",-1*CUMIPMT($C$6/$C$8,$C$7*$C$8,$C$5,M313,N313,Pilotage!$D$25),\"\")","v":""}]
[null,null,null,null,"","",{"$f":"IF(E314<>\"\",IF($C$5=0,0,CUMIPMT($C$6/$C$8,$C$7*$C$8,$C$5,1,E314,Pilotage!$D$25)),\"\")","v":""},{"$f":"IF(E314<>\"\",IF($C$5=0,0,CUMIPMT($C$6/$C$8,$C$7*$C$8,$C$5,E314,E314,Pilotage!$D$25)),\"\")","v":""},{"$f":"IF(E314<>\"\",IF($C$5=0,0,$C$5+CUMPRINC($C$6/$C$8,$C$7*$C$8,$C$5,1,E314,Pilotage!$D$25)),\"\")","v":""},null,null,null,null,null,{"$f":"IF(K314<>\"\",-1*CUMIPMT($C$6/$C$8,$C$7*$C$8,$C$5,M314,N314,Pilotage!$D$25),\"\")","v":""}]
[null,null,null,null,"","",{"$f":"IF(E315<>\"\",IF($C$5=0,0,CUMIPMT($C$6/$C$8,$C$7*$C$8,$C$5,1,E315,Pilotage!$D$25)),\"\")","v":""},{"$f":"IF(E315<>\"\",IF($C$5=0,0,CUMIPMT($C$6/$C$8,$C$7*$C$8,$C$5,E315,E315,Pilotage!$D$25)),\"\")","v":""},{"$f":"IF(E315<>\"\",IF($C$5=0,0,$C$5+CUMPRINC($C$6/$C$8,$C$7*$C$8,$C$5,1,E315,Pilotage!$D$25)),\"\")","v":""},null,null,null,null,null,{"$f":"IF(K315<>\"\",-1*CUMIPMT($C$6/$C$8,$C$7*$C$8,$C$5,M315,N315,Pilotage!$D$25),\"\")","v":""}]
[null,null,null,null,"","",{"$f":"IF(E316<>\"\",IF($C$5=0,0,CUMIPMT($C$6/$C$8,$C$7*$C$8,$C$5,1,E316,Pilotage!$D$25)),\"\")","v":""},{"$f":"IF(E316<>\"\",IF($C$5=0,0,CUMIPMT($C$6/$C$8,$C$7*$C$8,$C$5,E316,E316,Pilotage!$D$25)),\"\")","v":""},{"$f":"IF(E316<>\"\",IF($C$5=0,0,$C$5+CUMPRINC($C$6/$C$8,$C$7*$C$8,$C$5,1,E316,Pilotage!$D$25)),\"\")","v":""},null,null,null,null,null,{"$f":"IF(K316<>\"\",-1*CUMIPMT($C$6/$C$8,$C$7*$C$8,$C$5,M316,N316,Pilotage!$D$25),\"\")","v":""}]
[null,null,null,null,"","",{"$f":"IF(E317<>\"\",IF($C$5=0,0,CUMIPMT($C$6/$C$8,$C$7*$C$8,$C$5,1,E317,Pilotage!$D$25)),\"\")","v":""},{"$f":"IF(E317<>\"\",IF($C$5=0,0,CUMIPMT($C$6/$C$8,$C$7*$C$8,$C$5,E317,E317,Pilotage!$D$25)),\"\")","v":""},{"$f":"IF(E317<>\"\",IF($C$5=0,0,$C$5+CUMPRINC($C$6/$C$8,$C$7*$C$8,$C$5,1,E317,Pilotage!$D$25)),\"\")","v":""},null,null,null,null,null,{"$f":"IF(K317<>\"\",-1*CUMIPMT($C$6/$C$8,$C$7*$C$8,$C$5,M317,N317,Pilotage!$D$25),\"\")","v":""}]
[null,null,null,null,"","",{"$f":"IF(E318<>\"\",IF($C$5=0,0,CUMIPMT($C$6/$C$8,$C$7*$C$8,$C$5,1,E318,Pilotage!$D$25)),\"\")","v":""},{"$f":"IF(E318<>\"\",IF($C$5=0,0,CUMIPMT($C$6/$C$8,$C$7*$C$8,$C$5,E318,E318,Pilotage!$D$25)),\"\")","v":""},{"$f":"IF(E318<>\"\",IF($C$5=0,0,$C$5+CUMPRINC($C$6/$C$8,$C$7*$C$8,$C$5,1,E318,Pilotage!$D$25)),\"\")","v":""},null,null,null,null,null,{"$f":"IF(K318<>\"\",-1*CUMIPMT($C$6/$C$8,$C$7*$C$8,$C$5,M318,N318,Pilotage!$D$25),\"\")","v":""}]
[null,null,null,null,"","",{"$f":"IF(E319<>\"\",IF($C$5=0,0,CUMIPMT($C$6/$C$8,$C$7*$C$8,$C$5,1,E319,Pilotage!$D$25)),\"\")","v":""},{"$f":"IF(E319<>\"\",IF($C$5=0,0,CUMIPMT($C$6/$C$8,$C$7*$C$8,$C$5,E319,E319,Pilotage!$D$25)),\"\")","v":""},{"$f":"IF(E319<>\"\",IF($C$5=0,0,$C$5+CUMPRINC($C$6/$C$8,$C$7*$C$8,$C$5,1,E319,Pilotage!$D$25)),\"\")","v":""},null,null,null,null,null,{"$f":"IF(K319<>\"\",-1*CUMIPMT($C$6/$C$8,$C$7*$C$8,$C$5,M319,N319,Pilotage!$D$25),\"\")","v":""}]
[null,null,null,null,"","",{"$f":"IF(E320<>\"\",IF($C$5=0,0,CUMIPMT($C$6/$C$8,$C$7*$C$8,$C$5,1,E320,Pilotage!$D$25)),\"\")","v":""},{"$f":"IF(E320<>\"\",IF($C$5=0,0,CUMIPMT($C$6/$C$8,$C$7*$C$8,$C$5,E320,E320,Pilotage!$D$25)),\"\")","v":""},{"$f":"IF(E320<>\"\",IF($C$5=0,0,$C$5+CUMPRINC($C$6/$C$8,$C$7*$C$8,$C$5,1,E320,Pilotage!$D$25)),\"\")","v":""},null,null,null,null,null,{"$f":"IF(K320<>\"\",-1*CUMIPMT($C$6/$C$8,$C$7*$C$8,$C$5,M320,N320,Pilotage!$D$25),\"\")","v":""}]
[null,null,null,null,"","",{"$f":"IF(E321<>\"\",IF($C$5=0,0,CUMIPMT($C$6/$C$8,$C$7*$C$8,$C$5,1,E321,Pilotage!$D$25)),\"\")","v":""},{"$f":"IF(E321<>\"\",IF($C$5=0,0,CUMIPMT($C$6/$C$8,$C$7*$C$8,$C$5,E321,E321,Pilotage!$D$25)),\"\")","v":""},{"$f":"IF(E321<>\"\",IF($C$5=0,0,$C$5+CUMPRINC($C$6/$C$8,$C$7*$C$8,$C$5,1,E321,Pilotage!$D$25)),\"\")","v":""},null,null,null,null,null,{"$f":"IF(K321<>\"\",-1*CUMIPMT($C$6/$C$8,$C$7*$C$8,$C$5,M321,N321,Pilotage!$D$25),\"\")","v":""}]
[null,null,null,null,"","",{"$f":"IF(E322<>\"\",IF($C$5=0,0,CUMIPMT($C$6/$C$8,$C$7*$C$8,$C$5,1,E322,Pilotage!$D$25)),\"\")","v":""},{"$f":"IF(E322<>\"\",IF($C$5=0,0,CUMIPMT($C$6/$C$8,$C$7*$C$8,$C$5,E322,E322,Pilotage!$D$25)),\"\")","v":""},{"$f":"IF(E322<>\"\",IF($C$5=0,0,$C$5+CUMPRINC($C$6/$C$8,$C$7*$C$8,$C$5,1,E322,Pilotage!$D$25)),\"\")","v":""},null,null,null,null,null,{"$f":"IF(K322<>\"\",-1*CUMIPMT($C$6/$C$8,$C$7*$C$8,$C$5,M322,N322,Pilotage!$D$25),\"\")","v":""}]
[null,null,null,null,"","",{"$f":"IF(E323<>\"\",IF($C$5=0,0,CUMIPMT($C$6/$C$8,$C$7*$C$8,$C$5,1,E323,Pilotage!$D$25)),\"\")","v":""},{"$f":"IF(E323<>\"\",IF($C$5=0,0,CUMIPMT($C$6/$C$8,$C$7*$C$8,$C$5,E323,E323,Pilotage!$D$25)),\"\")","v":""},{"$f":"IF(E323<>\"\",IF($C$5=0,0,$C$5+CUMPRINC($C$6/$C$8,$C$7*$C$8,$C$5,1,E323,Pilotage!$D$25)),\"\")","v":""},null,null,null,null,null,{"$f":"IF(K323<>\"\",-1*CUMIPMT($C$6/$C$8,$C$7*$C$8,$C$5,M323,N323,Pilotage!$D$25),\"\")","v":""}]
[null,null,null,null,"","",{"$f":"IF(E324<>\"\",IF($C$5=0,0,CUMIPMT($C$6/$C$8,$C$7*$C$8,$C$5,1,E324,Pilotage!$D$25)),\"\")","v":""},{"$f":"IF(E324<>\"\",IF($C$5=0,0,CUMIPMT($C$6/$C$8,$C$7*$C$8,$C$5,E324,E324,Pilotage!$D$25)),\"\")","v":""},{"$f":"IF(E324<>\"\",IF($C$5=0,0,$C$5+CUMPRINC($C$6/$C$8,$C$7*$C$8,$C$5,1,E324,Pilotage!$D$25)),\"\")","v":""},null,null,null,null,null,{"$f":"IF(K324<>\"\",-1*CUMIPMT($C$6/$C$8,$C$7*$C$8,$C$5,M324,N324,Pilotage!$D$25),\"\")","v":""}]
[null,null,null,null,"","",{"$f":"IF(E325<>\"\",IF($C$5=0,0,CUMIPMT($C$6/$C$8,$C$7*$C$8,$C$5,1,E325,Pilotage!$D$25)),\"\")","v":""},{"$f":"IF(E325<>\"\",IF($C$5=0,0,CUMIPMT($C$6/$C$8,$C$7*$C$8,$C$5,E325,E325,Pilotage!$D$25)),\"\")","v":""},{"$f":"IF(E325<>\"\",IF($C$5=0,0,$C$5+CUMPRINC($C$6/$C$8,$C$7*$C$8,$C$5,1,E325,Pilotage!$D$25)),\"\")","v":""},null,null,null,null,null,{"$f":"IF(K325<>\"\",-1*CUMIPMT($C$6/$C$8,$C$7*$C$8,$C$5,M325,N325,Pilotage!$D$25),\"\")","v":""}]
[null,null,null,null,"","",{"$f":"IF(E326<>\"\",IF($C$5=0,0,CUMIPMT($C$6/$C$8,$C$7*$C$8,$C$5,1,E326,Pilotage!$D$25)),\"\")","v":""},{"$f":"IF(E326<>\"\",IF($C$5=0,0,CUMIPMT($C$6/$C$8,$C$7*$C$8,$C$5,E326,E326,Pilotage!$D$25)),\"\")","v":""},{"$f":"IF(E326<>\"\",IF($C$5=0,0,$C$5+CUMPRINC($C$6/$C$8,$C$7*$C$8,$C$5,1,E326,Pilotage!$D$25)),\"\")","v":""},null,null,null,null,null,{"$f":"IF(K326<>\"\",-1*CUMIPMT($C$6/$C$8,$C$7*$C$8,$C$5,M326,N326,Pilotage!$D$25),\"\")","v":""}]
[null,null,null,null,"","",{"$f":"IF(E327<>\"\",IF($C$5=0,0,CUMIPMT($C$6/$C$8,$C$7*$C$8,$C$5,1,E327,Pilotage!$D$25)),\"\")","v":""},{"$f":"IF(E327<>\"\",IF($C$5=0,0,CUMIPMT($C$6/$C$8,$C$7*$C$8,$C$5,E327,E327,Pilotage!$D$25)),\"\")","v":""},{"$f":"IF(E327<>\"\",IF($C$5=0,0,$C$5+CUMPRINC($C$6/$C$8,$C$7*$C$8,$C$5,1,E327,Pilotage!$D$25)),\"\")","v":""},null,null,null,null,null,{"$f":"IF(K327<>\"\",-1*CUMIPMT($C$6/$C$8,$C$7*$C$8,$C$5,M327,N327,Pilotage!$D$25),\"\")","v":""}]
[null,null,null,null,{"$f":"IF(E327<$C$10,E327+1,\"\")","v":""},{"$f":"IF(E328<>\"\",EDATE(F327,$C$11),\"\")","v":""},{"$f":"IF(E328<>\"\",IF($C$5=0,0,CUMIPMT($C$6/$C$8,$C$7*$C$8,$C$5,1,E328,Pilotage!$D$25)),\"\")","v":""},{"$f":"IF(E328<>\"\",IF($C$5=0,0,CUMIPMT($C$6/$C$8,$C$7*$C$8,$C$5,E328,E328,Pilotage!$D$25)),\"\")","v":""},{"$f":"IF(E328<>\"\",IF($C$5=0,0,$C$5+CUMPRINC($C$6/$C$8,$C$7*$C$8,$C$5,1,E328,Pilotage!$D$25)),\"\")","v":""},null,null,null,null,null,{"$f":"IF(K328<>\"\",-1*CUMIPMT($C$6/$C$8,$C$7*$C$8,$C$5,M328,N328,Pilotage!$D$25),\"\")","v":""}]
[null,null,null,null,"","",{"$f":"IF(E329<>\"\",IF($C$5=0,0,CUMIPMT($C$6/$C$8,$C$7*$C$8,$C$5,1,E329,Pilotage!$D$25)),\"\")","v":""},{"$f":"IF(E329<>\"\",IF($C$5=0,0,CUMIPMT($C$6/$C$8,$C$7*$C$8,$C$5,E329,E329,Pilotage!$D$25)),\"\")","v":""},{"$f":"IF(E329<>\"\",IF($C$5=0,0,$C$5+CUMPRINC($C$6/$C$8,$C$7*$C$8,$C$5,1,E329,Pilotage!$D$25)),\"\")","v":""},null,null,null,null,null,{"$f":"IF(K329<>\"\",-1*CUMIPMT($C$6/$C$8,$C$7*$C$8,$C$5,M329,N329,Pilotage!$D$25),\"\")","v":""}]
[null,null,null,null,"","",{"$f":"IF(E330<>\"\",IF($C$5=0,0,CUMIPMT($C$6/$C$8,$C$7*$C$8,$C$5,1,E330,Pilotage!$D$25)),\"\")","v":""},{"$f":"IF(E330<>\"\",IF($C$5=0,0,CUMIPMT($C$6/$C$8,$C$7*$C$8,$C$5,E330,E330,Pilotage!$D$25)),\"\")","v":""},{"$f":"IF(E330<>\"\",IF($C$5=0,0,$C$5+CUMPRINC($C$6/$C$8,$C$7*$C$8,$C$5,1,E330,Pilotage!$D$25)),\"\")","v":""},null,null,null,null,null,{"$f":"IF(K330<>\"\",-1*CUMIPMT($C$6/$C$8,$C$7*$C$8,$C$5,M330,N330,Pilotage!$D$25),\"\")","v":""}]
[null,null,null,null,"","",{"$f":"IF(E331<>\"\",IF($C$5=0,0,CUMIPMT($C$6/$C$8,$C$7*$C$8,$C$5,1,E331,Pilotage!$D$25)),\"\")","v":""},{"$f":"IF(E331<>\"\",IF($C$5=0,0,CUMIPMT($C$6/$C$8,$C$7*$C$8,$C$5,E331,E331,Pilotage!$D$25)),\"\")","v":""},{"$f":"IF(E331<>\"\",IF($C$5=0,0,$C$5+CUMPRINC($C$6/$C$8,$C$7*$C$8,$C$5,1,E331,Pilotage!$D$25)),\"\")","v":""},null,null,null,null,null,{"$f":"IF(K331<>\"\",-1*CUMIPMT($C$6/$C$8,$C$7*$C$8,$C$5,M331,N331,Pilotage!$D$25),\"\")","v":""}]
[null,null,null,null,"","",{"$f":"IF(E332<>\"\",IF($C$5=0,0,CUMIPMT($C$6/$C$8,$C$7*$C$8,$C$5,1,E332,Pilotage!$D$25)),\"\")","v":""},{"$f":"IF(E332<>\"\",IF($C$5=0,0,CUMIPMT($C$6/$C$8,$C$7*$C$8,$C$5,E332,E332,Pilotage!$D$25)),\"\")","v":""},{"$f":"IF(E332<>\"\",IF($C$5=0,0,$C$5+CUMPRINC($C$6/$C$8,$C$7*$C$8,$C$5,1,E332,Pilotage!$D$25)),\"\")","v":""},null,null,null,null,null,{"$f":"IF(K332<>\"\",-1*CUMIPMT($C$6/$C$8,$C$7*$C$8,$C$5,M332,N332,Pilotage!$D$25),\"\")","v":""}]
[null,null,null,null,"","",{"$f":"IF(E333<>\"\",IF($C$5=0,0,CUMIPMT($C$6/$C$8,$C$7*$C$8,$C$5,1,E333,Pilotage!$D$25)),\"\")","v":""},{"$f":"IF(E333<>\"\",IF($C$5=0,0,CUMIPMT($C$6/$C$8,$C$7*$C$8,$C$5,E333,E333,Pilotage!$D$25)),\"\")","v":""},{"$f":"IF(E333<>\"\",IF($C$5=0,0,$C$5+CUMPRINC($C$6/$C$8,$C$7*$C$8,$C$5,1,E333,Pilotage!$D$25)),\"\")","v":""},null,null,null,null,null,{"$f":"IF(K333<>\"\",-1*CUMIPMT($C$6/$C$8,$C$7*$C$8,$C$5,M333,N333,Pilotage!$D$25),\"\")","v":""}]
[null,null,null,null,"","",{"$f":"IF(E334<>\"\",IF($C$5=0,0,CUMIPMT($C$6/$C$8,$C$7*$C$8,$C$5,1,E334,Pilotage!$D$25)),\"\")","v":""},{"$f":"IF(E334<>\"\",IF($C$5=0,0,CUMIPMT($C$6/$C$8,$C$7*$C$8,$C$5,E334,E334,Pilotage!$D$25)),\"\")","v":""},{"$f":"IF(E334<>\"\",IF($C$5=0,0,$C$5+CUMPRINC($C$6/$C$8,$C$7*$C$8,$C$5,1,E334,Pilotage!$D$25)),\"\")","v":""},null,null,null,null,null,{"$f":"IF(K334<>\"\",-1*CUMIPMT($C$6/$C$8,$C$7*$C$8,$C$5,M334,N334,Pilotage!$D$25),\"\")","v":""}]
[null,null,null,null,"","",{"$f":"IF(E335<>\"\",IF($C$5=0,0,CUMIPMT($C$6/$C$8,$C$7*$C$8,$C$5,1,E335,Pilotage!$D$25)),\"\")","v":""},{"$f":"IF(E335<>\"\",IF($C$5=0,0,CUMIPMT($C$6/$C$8,$C$7*$C$8,$C$5,E335,E335,Pilotage!$D$25)),\"\")","v":""},{"$f":"IF(E335<>\"\",IF($C$5=0,0,$C$5+CUMPRINC($C$6/$C$8,$C$7*$C$8,$C$5,1,E335,Pilotage!$D$25)),\"\")","v":""},null,null,null,null,null,{"$f":"IF(K335<>\"\",-1*CUMIPMT($C$6/$C$8,$C$7*$C$8,$C$5,M335,N335,Pilotage!$D$25),\"\")","v":""}]
[null,null,null,null,"","",{"$f":"IF(E336<>\"\",IF($C$5=0,0,CUMIPMT($C$6/$C$8,$C$7*$C$8,$C$5,1,E336,Pilotage!$D$25)),\"\")","v":""},{"$f":"IF(E336<>\"\",IF($C$5=0,0,CUMIPMT($C$6/$C$8,$C$7*$C$8,$C$5,E336,E336,Pilotage!$D$25)),\"\")","v":""},{"$f":"IF(E336<>\"\",IF($C$5=0,0,$C$5+CUMPRINC($C$6/$C$8,$C$7*$C$8,$C$5,1,E336,Pilotage!$D$25)),\"\")","v":""},null,null,null,null,null,{"$f":"IF(K336<>\"\",-1*CUMIPMT($C$6/$C$8,$C$7*$C$8,$C$5,M336,N336,Pilotage!$D$25),\"\")","v":""}]
[null,null,null,null,"","",{"$f":"IF(E337<>\"\",IF($C$5=0,0,CUMIPMT($C$6/$C$8,$C$7*$C$8,$C$5,1,E337,Pilotage!$D$25)),\"\")","v":""},{"$f":"IF(E337<>\"\",IF($C$5=0,0,CUMIPMT($C$6/$C$8,$C$7*$C$8,$C$5,E337,E337,Pilotage!$D$25)),\"\")","v":""},{"$f":"IF(E337<>\"\",IF($C$5=0,0,$C$5+CUMPRINC($C$6/$C$8,$C$7*$C$8,$C$5,1,E337,Pilotage!$D$25)),\"\")","v":""},null,null,null,null,null,{"$f":"IF(K337<>\"\",-1*CUMIPMT($C$6/$C$8,$C$7*$C$8,$C$5,M337,N337,Pilotage!$D$25),\"\")","v":""}]
[null,null,null,null,"","",{"$f":"IF(E338<>\"\",IF($C$5=0,0,CUMIPMT($C$6/$C$8,$C$7*$C$8,$C$5,1,E338,Pilotage!$D$25)),\"\")","v":""},{"$f":"IF(E338<>\"\",IF($C$5=0,0,CUMIPMT($C$6/$C$8,$C$7*$C$8,$C$5,E338,E338,Pilotage!$D$25)),\"\")","v":""},{"$f":"IF(E338<>\"\",IF($C$5=0,0,$C$5+CUMPRINC($C$6/$C$8,$C$7*$C$8,$C$5,1,E338,Pilotage!$D$25)),\"\")","v":""},null,null,null,null,null,{"$f":"IF(K338<>\"\",-1*CUMIPMT($C$6/$C$8,$C$7*$C$8,$C$5,M338,N338,Pilotage!$D$25),\"\")","v":""}]
[null,null,null,null,"","",{"$f":"IF(E339<>\"\",IF($C$5=0,0,CUMIPMT($C$6/$C$8,$C$7*$C$8,$C$5,1,E339,Pilotage!$D$25)),\"\")","v":""},{"$f":"IF(E339<>\"\",IF($C$5=0,0,CUMIPMT($C$6/$C$8,$C$7*$C$8,$C$5,E339,E339,Pilotage!$D$25)),\"\")","v":""},{"$f":"IF(E339<>\"\",IF($C$5=0,0,$C$5+CUMPRINC($C$6/$C$8,$C$7*$C$8,$C$5,1,E339,Pilotage!$D$25)),\"\")","v":""},null,null,null,null,null,{"$f":"IF(K339<>\"\",-1*CUMIPMT($C$6/$C$8,$C$7*$C$8,$C$5,M339,N339,Pilotage!$D$25),\"\")","v":""}]
[null,null,null,null,"","",{"$f":"IF(E340<>\"\",IF($C$5=0,0,CUMIPMT($C$6/$C$8,$C$7*$C$8,$C$5,1,E340,Pilotage!$D$25)),\"\")","v":""},{"$f":"IF(E340<>\"\",IF($C$5=0,0,CUMIPMT($C$6/$C$8,$C$7*$C$8,$C$5,E340,E340,Pilotage!$D$25)),\"\")","v":""},{"$f":"IF(E340<>\"\",IF($C$5=0,0,$C$5+CUMPRINC($C$6/$C$8,$C$7*$C$8,$C$5,1,E340,Pilotage!$D$25)),\"\")","v":""},null,null,null,null,null,{"$f":"IF(K340<>\"\",-1*CUMIPMT($C$6/$C$8,$C$7*$C$8,$C$5,M340,N340,Pilotage!$D$25),\"\")","v":""}]
[null,null,null,null,"","",{"$f":"IF(E341<>\"\",IF($C$5=0,0,CUMIPMT($C$6/$C$8,$C$7*$C$8,$C$5,1,E341,Pilotage!$D$25)),\"\")","v":""},{"$f":"IF(E341<>\"\",IF($C$5=0,0,CUMIPMT($C$6/$C$8,$C$7*$C$8,$C$5,E341,E341,Pilotage!$D$25)),\"\")","v":""},{"$f":"IF(E341<>\"\",IF($C$5=0,0,$C$5+CUMPRINC($C$6/$C$8,$C$7*$C$8,$C$5,1,E341,Pilotage!$D$25)),\"\")","v":""}]
[null,null,null,null,"","",{"$f":"IF(E342<>\"\",IF($C$5=0,0,CUMIPMT($C$6/$C$8,$C$7*$C$8,$C$5,1,E342,Pilotage!$D$25)),\"\")","v":""},{"$f":"IF(E342<>\"\",IF($C$5=0,0,CUMIPMT($C$6/$C$8,$C$7*$C$8,$C$5,E342,E342,Pilotage!$D$25)),\"\")","v":""},{"$f":"IF(E342<>\"\",IF($C$5=0,0,$C$5+CUMPRINC($C$6/$C$8,$C$7*$C$8,$C$5,1,E342,Pilotage!$D$25)),\"\")","v":""}]
[null,null,null,null,"","",{"$f":"IF(E343<>\"\",IF($C$5=0,0,CUMIPMT($C$6/$C$8,$C$7*$C$8,$C$5,1,E343,Pilotage!$D$25)),\"\")","v":""},{"$f":"IF(E343<>\"\",IF($C$5=0,0,CUMIPMT($C$6/$C$8,$C$7*$C$8,$C$5,E343,E343,Pilotage!$D$25)),\"\")","v":""},{"$f":"IF(E343<>\"\",IF($C$5=0,0,$C$5+CUMPRINC($C$6/$C$8,$C$7*$C$8,$C$5,1,E343,Pilotage!$D$25)),\"\")","v":""}]
[null,null,null,null,"","",{"$f":"IF(E344<>\"\",IF($C$5=0,0,CUMIPMT($C$6/$C$8,$C$7*$C$8,$C$5,1,E344,Pilotage!$D$25)),\"\")","v":""},{"$f":"IF(E344<>\"\",IF($C$5=0,0,CUMIPMT($C$6/$C$8,$C$7*$C$8,$C$5,E344,E344,Pilotage!$D$25)),\"\")","v":""},{"$f":"IF(E344<>\"\",IF($C$5=0,0,$C$5+CUMPRINC($C$6/$C$8,$C$7*$C$8,$C$5,1,E344,Pilotage!$D$25)),\"\")","v":""}]
[null,null,null,null,"","",{"$f":"IF(E345<>\"\",IF($C$5=0,0,CUMIPMT($C$6/$C$8,$C$7*$C$8,$C$5,1,E345,Pilotage!$D$25)),\"\")","v":""},{"$f":"IF(E345<>\"\",IF($C$5=0,0,CUMIPMT($C$6/$C$8,$C$7*$C$8,$C$5,E345,E345,Pilotage!$D$25)),\"\")","v":""},{"$f":"IF(E345<>\"\",IF($C$5=0,0,$C$5+CUMPRINC($C$6/$C$8,$C$7*$C$8,$C$5,1,E345,Pilotage!$D$25)),\"\")","v":""}]
[null,null,null,null,"","",{"$f":"IF(E346<>\"\",IF($C$5=0,0,CUMIPMT($C$6/$C$8,$C$7*$C$8,$C$5,1,E346,Pilotage!$D$25)),\"\")","v":""},{"$f":"IF(E346<>\"\",IF($C$5=0,0,CUMIPMT($C$6/$C$8,$C$7*$C$8,$C$5,E346,E346,Pilotage!$D$25)),\"\")","v":""},{"$f":"IF(E346<>\"\",IF($C$5=0,0,$C$5+CUMPRINC($C$6/$C$8,$C$7*$C$8,$C$5,1,E346,Pilotage!$D$25)),\"\")","v":""}]
[null,null,null,null,"",""]
[null,null,null,null,""]
[null,null,null,null,""]
[null,null,null,null,""]
[null,null,null,null,""]
[null,null,null,null,""]
[null,null,null,null,""]
[null,null,null,null,""]
[null,null,null,null,""]
[null,null,null,null,""]
[null,null,null,null,""]
[null,null,null,null,""]
[null,null,null,null,""]
[null,null,null,null,""]
[null,null,null,null,""]
[null,null,null,null,""]
[null,null,null,null,""]
[null,null,null,null,""]
[null,null,null,null,""]
[null,null,null,null,""]
[null,null,null,null,""]
[null,null,null,null,""]
[null,null,null,null,""]
[null,null,null,null,""]
[null,null,null,null,""]
[null,null,null,null,""]
[null,null,null,null,""]
[null,null,null,null,""]
[null,null,null,null,""]
[null,null,null,null,""]
[null,null,null,null,""]
[null,null,null,null,""]
[null,null,null,null,""]
[null,null,null,null,""]
[null,null,null,null,""]
[null,null,null,null,""]
[null,null,null,null,""]
[null,null,null,null,""]
[null,null,null,null,""]
[null,null,null,null,""]
[null,null,null,null,""]
[null,null,null,null,""]
[null,null,null,null,""]
[null,null,null,null,""]
[null,null,null,null,""]
[null,null,null,null,{"$f":"IF(E391<$C$10,E391+1,\"\")","v":""}]
[null,null,null,null,""]
[null,null,null,null,""]
[null,null,null,null,""]
[null,null,null,null,""]
[null,null,null,null,""]
[null,null,null,null,""]
[null,null,null,null,"",null,{"$f":"IF(E399<>\"\",IF($C$5=0,0,CUMIPMT($C$6/$C$8,$C$7*$C$8,$C$5,1,E399,Pilotage!$D$25)),\"\")","v":""},{"$f":"IF(E399<>\"\",IF($C$5=0,0,CUMIPMT($C$6/$C$8,$C$7*$C$8,$C$5,E399,E399,Pilotage!$D$25)),\"\")","v":""},{"$f":"IF(E399<>\"\",IF($C$5=0,0,$C$5+CUMPRINC($C$6/$C$8,$C$7*$C$8,$C$5,1,E399,Pilotage!$D$25)),\"\")","v":""}]
[null,null,null,null,"",null,{"$f":"IF(E400<>\"\",IF($C$5=0,0,CUMIPMT($C$6/$C$8,$C$7*$C$8,$C$5,1,E400,Pilotage!$D$25)),\"\")","v":""},{"$f":"IF(E400<>\"\",IF($C$5=0,0,CUMIPMT($C$6/$C$8,$C$7*$C$8,$C$5,E400,E400,Pilotage!$D$25)),\"\")","v":""},{"$f":"IF(E400<>\"\",IF($C$5=0,0,$C$5+CUMPRINC($C$6/$C$8,$C$7*$C$8,$C$5,1,E400,Pilotage!$D$25)),\"\")","v":""}]
[null,null,null,null,""]
[null,null,null,null,""]
[null,null,null,null,""]

{"sheet":"Change","index":53,"n_rows":16,"n_cols":9,"rows_kept":16,"cut":false,"hidden":false,"merged":[[1,1,1,8],[1,9,1,14]]}
[]
[null,"Taux de change"]
[]
[null,"Cross Rates"]
[null,"Currency Last Trade","USD $ N/A","JPY ¥ N/A","EUR € N/A","CAD $ N/A","GBP £ N/A","AUD $ N/A","CHF N/A"]
[null,"1 USD $","–","102.8160 ","0.7467 ","1.0894 ","0.5924 ","1.0751 ","0.9084 "]
[null,"1 JPY ¥","0.0097","–","0.0073","0.0106","0.0058","0.0105","0.0088"]
[null,"1 EUR €","1.3392","137.6861","–","1.4589","0.7933","1.4397","1.2165"]
[null,"1 CAD $","0.9179","94.3760","0.6854","–","0.5438","0.9868","0.8338"]
[null,"1 GBP £","1.6880","173.5508","1.2605","1.8389","–","1.8147","1.5334"]
[null,"1 AUD $","0.9301","95.6343","0.6946","1.0133","0.5510","–","0.8450"]
[null,"1 CHF","1.1008","113.1824","0.8220","1.1993","0.6522","1.1835","–"]
[]
[]
[null,"Mise à jour"]
[null,"2014-07-31"]

{"sheet":"Ammortissements","index":54,"n_rows":14,"n_cols":9,"rows_kept":14,"cut":false,"hidden":false,"merged":[[1,1,1,8]]}
[]
[null,"Tableau des amortissements"]
[]
[null,"Investissements (immobilisations)"," Durée d’amortissement","Tps Min","Tps Max","Taux min","Taux max","Colonne1","Taux utilisé"]
[null,"Agencement","10 ans",10,10,{"$f":"100/D5/100","v":0.1},{"$f":"100/E5/100","v":0.1},{"$f":"IF(Pilotage!$L$6=Immobilisations[[#Headers],[Taux max]],Immobilisations[[#This Row],[Tps Max]],Immobilisations[[#This Row],[Tps Min]])","v":10},{"$f":"IF(Pilotage!$L$6=Immobilisations[[#Headers],[Taux max]],Immobilisations[[#This Row],[Taux max]],Immobilisations[[#This Row],[Taux min]])","v":0.1}]
[null,"Equipement informatique","3 ans",3,3,{"$f":"100/D6/100","v":0.33333333333333337},{"$f":"100/E6/100","v":0.33333333333333337},{"$f":"IF(Pilotage!$L$6=Immobilisations[[#Headers],[Taux max]],Immobilisations[[#This Row],[Tps Max]],Immobilisations[[#This Row],[Tps Min]])","v":3},{"$f":"IF(Pilotage!$L$6=Immobilisations[[#Headers],[Taux max]],Immobilisations[[#This Row],[Taux max]],Immobilisations[[#This Row],[Taux min]])","v":0.33333333333333337}]
[null,"Frais d’installation","5 à 10 ans",5,10,0.2,0.1,{"$f":"IF(Pilotage!$L$6=Immobilisations[[#Headers],[Taux max]],Immobilisations[[#This Row],[Tps Max]],Immobilisations[[#This Row],[Tps Min]])","v":10},{"$f":"IF(Pilotage!$L$6=Immobilisations[[#Headers],[Taux max]],Immobilisations[[#This Row],[Taux max]],Immobilisations[[#This Row],[Taux min]])","v":0.1}]
[null,"Logiciels","1 à 2 ans",1,2,1,0.5,{"$f":"IF(Pilotage!$L$6=Immobilisations[[#Headers],[Taux max]],Immobilisations[[#This Row],[Tps Max]],Immobilisations[[#This Row],[Tps Min]])","v":2},{"$f":"IF(Pilotage!$L$6=Immobilisations[[#Headers],[Taux max]],Immobilisations[[#This Row],[Taux max]],Immobilisations[[#This Row],[Taux min]])","v":0.5}]
[null,"Matériel de bureau","5 à 10 ans",5,10,0.2,0.1,{"$f":"IF(Pilotage!$L$6=Immobilisations[[#Headers],[Taux max]],Immobilisations[[#This Row],[Tps Max]],Immobilisations[[#This Row],[Tps Min]])","v":10},{"$f":"IF(Pilotage!$L$6=Immobilisations[[#Headers],[Taux max]],Immobilisations[[#This Row],[Taux max]],Immobilisations[[#This Row],[Taux min]])","v":0.1}]
[null,"Matériel fixe","10 ans",10,10,0.1,0.1,{"$f":"IF(Pilotage!$L$6=Immobilisations[[#Headers],[Taux max]],Immobilisations[[#This Row],[Tps Max]],Immobilisations[[#This Row],[Tps Min]])","v":10},{"$f":"IF(Pilotage!$L$6=Immobilisations[[#Headers],[Taux max]],Immobilisations[[#This Row],[Taux max]],Immobilisations[[#This Row],[Taux min]])","v":0.1}]
[null,"Matériel mobile","4 à 10 ans",4,10,0.25,0.1,{"$f":"IF(Pilotage!$L$6=Immobilisations[[#Headers],[Taux max]],Immobilisations[[#This Row],[Tps Max]],Immobilisations[[#This Row],[Tps Min]])","v":10},{"$f":"IF(Pilotage!$L$6=Immobilisations[[#Headers],[Taux max]],Immobilisations[[#This Row],[Taux max]],Immobilisations[[#This Row],[Taux min]])","v":0.1}]
[null,"Matériel roulant","5 à 7 ans",5,7,0.2,0.14285714285714288,{"$f":"IF(Pilotage!$L$6=Immobilisations[[#Headers],[Taux max]],Immobilisations[[#This Row],[Tps Max]],Immobilisations[[#This Row],[Tps Min]])","v":7},{"$f":"IF(Pilotage!$L$6=Immobilisations[[#Headers],[Taux max]],Immobilisations[[#This Row],[Taux max]],Immobilisations[[#This Row],[Taux min]])","v":0.14285714285714288}]
[null,"Mobilier","10 ans",10,10,0.1,0.1,{"$f":"IF(Pilotage!$L$6=Immobilisations[[#Headers],[Taux max]],Immobilisations[[#This Row],[Tps Max]],Immobilisations[[#This Row],[Tps Min]])","v":10},{"$f":"IF(Pilotage!$L$6=Immobilisations[[#Headers],[Taux max]],Immobilisations[[#This Row],[Taux max]],Immobilisations[[#This Row],[Taux min]])","v":0.1}]
[null,"Non amortissable",0,0,0,0,0,{"$f":"IF(Pilotage!$L$6=Immobilisations[[#Headers],[Taux max]],Immobilisations[[#This Row],[Tps Max]],Immobilisations[[#This Row],[Tps Min]])","v":0},{"$f":"IF(Pilotage!$L$6=Immobilisations[[#Headers],[Taux max]],Immobilisations[[#This Row],[Taux max]],Immobilisations[[#This Row],[Taux min]])","v":0}]